{"text_format":"3","workbook":"xlsx","n_sheets":18,"sheets":["Cover","BudgetSum 2-4","CashSum 5","EstRev 6-11","EstExp 12-20","Itemize 21","DeficitBudgetSum Calc 22","DefReductPlan 23-27","Bckgrnd-Assumpt 28-29","EBF Spending Plan 30-34","AC 35","VendContract 36","Ref 37","Error Checks","FY24 Data for FY25 Plan","EBF Spending Plan Data Table","District Drop-down","B25"],"not_rendered":{"external_links":9,"defined_names":182,"comments":4},"read":"whole","date_system":"1900"}

{"sheet":"Cover","index":0,"n_rows":72,"n_cols":25,"rows_kept":72,"merged":[[0,6,0,14],[1,6,1,14],[2,6,2,14],[2,15,12,19],[3,6,3,14],[4,6,4,9],[9,7,9,9],[10,7,10,9],[12,7,12,12],[13,7,13,12],[23,4,23,10],[23,13,23,17],[24,8,24,10],[24,11,24,12],[24,13,24,16],[26,7,26,17],[27,3,27,7],[30,12,30,14],[36,4,36,6],[36,7,36,8],[36,9,36,11],[41,0,41,17],[42,15,42,17],[43,4,43,5],[47,4,47,9],[47,10,47,16],[48,4,48,9],[48,10,48,16],[49,4,49,9],[49,10,49,16],[50,4,50,9],[50,10,50,16],[51,4,51,9],[51,10,51,16],[52,4,52,9],[52,10,52,16],[53,4,53,9],[53,10,53,16],[54,4,54,9],[54,10,54,16],[55,4,55,9],[55,10,55,16],[56,4,56,9],[56,10,56,16],[57,4,57,9],[57,10,57,16],[59,4,59,16],[70,2,70,6],[71,2,71,3]]}
["District Type:",{"$nulls":5},"ILLINOIS STATE BOARD OF EDUCATION"]
[null,{"$f":"IF(N14=\"SD\",\"x\",\"\")","v":"x"},"School District",{"$nulls":3},"School Business Services Division"]
[null,{"$f":"IF(N14=\"JA\",\"x\",\"\")","v":""},"Joint Agreement",{"$nulls":12},{"$f":"'DeficitBudgetSum Calc 22'!D7 & \" \"","v":"Unbalanced budget; however, a Deficit Reduction Plan is not required at this time. "}]
[{"$nulls":6},"SCHOOL DISTRICT/JOINT AGREEMENT BUDGET FORM *"]
["Accounting Basis:",{"$nulls":5},{"$f":"\"July 1, \"&'B25'!L2-1","v":"July 1, 2024"},{"$nulls":3},{"$f":"\"- June 30, \"&'B25'!L2","v":"- June 30, 2025"}]
[null,"x","Cash"]
[null,null,"Accrual"]
[null,null,"Is this an amended budget?"]
[]
[null,null,"Date of Amended Budget:"]
[{"$nulls":7},"(MM/DD/YY)"]
[]
[null,null,"District Name:",{"$nulls":4},"Hoover-Schrum Memorial SD 157",{"$nulls":16},{"$f":"IF(H14<>\"Select dist name from drop-down on line above\",1,0)","v":1}]
[null,null,"District RCDT No:",{"$nulls":4},{"$f":"IFERROR(VLOOKUP(H13,'District Drop-down'!$C$2:$D$1001,2,FALSE),\"Please select district from drop-down list on line 13.\")","v":"07016157002"},{"$nulls":5},{"$f":"IFERROR(VLOOKUP(H14,'District Drop-down'!$D$2:$F$1001,3,FALSE),\"\")","v":"SD"},null,{"$f":"_xlfn.IFNA(VLOOKUP(H13,#REF!,6),\"\")","v":{"$error":"#REF!"}}]
[]
[null,null,{"$f":"\"If your FY\"&'B25'!L2-1&\" AFR states that you need to do a deficit reduction plan and your FY\"&'B25'!L2&\" budget is balanced, please state the\"","v":"If your FY2024 AFR states that you need to do a deficit reduction plan and your FY2025 budget is balanced, please state the"}]
[{"$nulls":4},"measures you took to have your budget become balanced.  (Bckgrnd-Assumpt 25-26)"]
[]
[]
[]
[]
[]
[]
[null,null,"Budget of",null,{"$f":"IF(H13=\"\",\"\",H13)","v":"Hoover-Schrum Memorial SD 157"},{"$nulls":6},",  County of ",null,{"$f":"IFERROR(VLOOKUP($H$13,'District Drop-down'!$C$2:$E$1001,3,FALSE),\"\")","v":"Cook"},{"$nulls":4},","]
[null,"State of Illinois, for the Fiscal Year beginning ",{"$nulls":6},{"$f":"\"July 1, \"&'B25'!L2-1","v":"July 1, 2024"},null,null,"and ending",null,{"$f":"\"June 30, \"&'B25'!L2","v":"June 30, 2025"},{"$nulls":3},"."]
[]
[null,null," WHEREAS the Board of Education of",{"$nulls":4},{"$f":"IF(H13=\" Click here to choose your district from drop-down list\",\"\",H13)","v":"Hoover-Schrum Memorial SD 157"},{"$nulls":10},", "]
["   County of ",null,null,{"$f":"N24","v":"Cook"},{"$nulls":4},",  State of Illinois, caused to be prepared in tentative form a budget, and the Secretary"]
["   of this Board has made the same conveniently available to public inspection for at least thirty days prior to final action thereon;"]
[]
[null,null,"AND WHEREAS a public hearing was held as to such budget on the ",{"$nulls":7},26,"day of ","September",null,null,",     20","24",","]
["   notice of said hearing was given at least thirty days prior thereto as required by law, and all other legal requirements have been complied with;"]
[]
[null,null,"NOW, THEREFORE, Be it resolved by the Board of Education of said district as follows:   "]
[]
[null,null,"Section 1:  That the fiscal year of this school district be and the same hereby is fixed and declared to be "]
["   beginning",{"$nulls":3},{"$f":"I25","v":"July 1, 2024"},null,null,"and ending",null,{"$f":"N25","v":"June 30, 2025"},null,null,"."]
[]
[null,null,"Section 2: That the following budget containing an estimate of amounts available in each Fund, separately, and expenditures from each be "]
["   and the same is hereby adopted as the budget of this school district for said fiscal year."]
[]
["ADOPTION OF BUDGET  "]
[null,null,"The budget shall be approved and signed below by members of the School Board.  Adopted this",{"$nulls":10},26,"day of","September",null,null,", 20","24"]
["   by a roll call vote of ",{"$nulls":3},"6",null,"Yeas, and",0,"Nays, to wit:"]
[]
[]
[]
[{"$nulls":4},"** MEMBERS VOTING YEA:",{"$nulls":5},"** MEMBERS VOTING NAY:"]
[{"$nulls":4},"Charles Garcia"]
[{"$nulls":4},"Angela Bomba"]
[{"$nulls":4},"Alexis Smith"]
[{"$nulls":4},"Tyana Roth"]
[{"$nulls":4},"Allicia Ocampo"]
[{"$nulls":4},"Eric Gibson"]
[]
[]
[]
[]
[]
[{"$nulls":3},"*","Based on the 23 Illinois Administrative Code-Part 100 and inconformity with Section 17-1 of the School Code. "]
[{"$nulls":3},"**","Type in the members who voted \"YEA\" nor \"NAY\".  Actual school board member signatures are not required for electronic submission."]
[]
[{"$nulls":3},"(1)","A certified copy of this document must be filed with the county clerk within 30 days of adoption as required "]
[{"$nulls":4},"by Section 18-50 of the Property Tax Code (35 ILCS 200/18-50).  "]
[{"$nulls":3},"(2)","Districts are required to submit the adopted/amended budget electronically to ISBE within 30 days of adoption or by October 30,"]
[{"$nulls":4},"whichever comes first. Budgets are submitted through IWAS:",{"$nulls":7},"https://apps.isbe.net/iwas/asp/login.asp?js=true"]
[{"$nulls":4},"Please type the member signatures before submitting to ISBE.  We do not accept PDF copies."]
[]
[]
[null,null,"SD50-36/JA50-39",null,"5/24"]
[null,null,{"$f":"H13","v":"Hoover-Schrum Memorial SD 157"}]
[null,null,{"$f":"H14","v":"07016157002"}]

{"sheet":"BudgetSum 2-4","index":1,"n_rows":132,"n_cols":12,"rows_kept":132}
["Begin entering data on EstRev 6-11 and EstExp 12-20 tabs.",null,"(10)","(20)","(30)","(40)","(50)","(60)","(70)","(80)","(90)"]
["Description:  Enter Whole Numbers Only","Acct #","  Educational   ","Operations & Maintenance","Debt Service","Transportation","   Municipal Retirement/ Social Security","Capital Projects","Working Cash","Tort","Fire Prevention & Safety"]
[{"$f":"\"ESTIMATED BEGINNING FUND BALANCE (without Student Activity Funds)1 as of July 1, \"&'B25'!L2-1","v":"ESTIMATED BEGINNING FUND BALANCE (without Student Activity Funds)1 as of July 1, 2024"},null,{"$f":"7606730-230232","v":{"v":7376498,"d":"7,376,498 "}},{"v":0,"d":"0 "},{"v":3057750,"d":"3,057,750 "},{"v":969,"d":"969 "},{"$f":"182433-170385","v":{"v":12048,"d":"12,048 "}},{"v":0,"d":"0 "},{"v":5004949,"d":"5,004,949 "},{"v":0,"d":"0 "},{"v":0,"d":"0 "}]
["RECEIPTS/REVENUES (without Student Activity Funds)"]
["LOCAL SOURCES",1000,{"$f":"'EstRev 6-11'!C111","v":{"v":5003900,"d":"5,003,900 "}},{"$f":"'EstRev 6-11'!D111","v":{"v":247000,"d":"247,000 "}},{"$f":"'EstRev 6-11'!E111","v":{"v":1695000,"d":"1,695,000 "}},{"$f":"'EstRev 6-11'!F111","v":{"v":25000,"d":"25,000 "}},{"$f":"'EstRev 6-11'!G111","v":{"v":390000,"d":"390,000 "}},{"$f":"'EstRev 6-11'!H111","v":{"v":0,"d":"0 "}},{"$f":"'EstRev 6-11'!I111","v":{"v":27000,"d":"27,000 "}},{"$f":"'EstRev 6-11'!J111","v":{"v":21000,"d":"21,000 "}},{"$f":"'EstRev 6-11'!K111","v":{"v":28000,"d":"28,000 "}}]
["FLOW-THROUGH RECEIPTS/REVENUES FROM ONE DISTRICT TO ANOTHER DISTRICT",2000,{"$f":"'EstRev 6-11'!C117","v":{"v":0,"d":"0 "}},{"$f":"'EstRev 6-11'!D117","v":{"v":0,"d":"0 "}},null,{"$f":"'EstRev 6-11'!F117","v":{"v":0,"d":"0 "}},{"$f":"'EstRev 6-11'!G117","v":{"v":0,"d":"0 "}}]
["STATE SOURCES",3000,{"$f":"'EstRev 6-11'!C172","v":{"v":6057000,"d":"6,057,000 "}},{"$f":"'EstRev 6-11'!D172","v":{"v":1350000,"d":"1,350,000 "}},{"$f":"'EstRev 6-11'!E172","v":{"v":500000,"d":"500,000 "}},{"$f":"'EstRev 6-11'!F172","v":{"v":485000,"d":"485,000 "}},{"$f":"'EstRev 6-11'!G172","v":{"v":215000,"d":"215,000 "}},{"$f":"'EstRev 6-11'!H172","v":{"v":0,"d":"0 "}},{"$f":"'EstRev 6-11'!I172","v":{"v":0,"d":"0 "}},{"$f":"'EstRev 6-11'!J172","v":{"v":200000,"d":"200,000 "}},{"$f":"'EstRev 6-11'!K172","v":{"v":150000,"d":"150,000 "}}]
["FEDERAL SOURCES",4000,{"$f":"'EstRev 6-11'!C271","v":{"v":1757000,"d":"1,757,000 "}},{"$f":"'EstRev 6-11'!D271","v":{"v":0,"d":"0 "}},{"$f":"'EstRev 6-11'!E271","v":{"v":0,"d":"0 "}},{"$f":"'EstRev 6-11'!F271","v":{"v":0,"d":"0 "}},{"$f":"'EstRev 6-11'!G271","v":{"v":0,"d":"0 "}},{"$f":"'EstRev 6-11'!H271","v":{"v":203000,"d":"203,000 "}},{"$f":"'EstRev 6-11'!I271","v":{"v":0,"d":"0 "}},{"$f":"'EstRev 6-11'!J271","v":{"v":0,"d":"0 "}},{"$f":"'EstRev 6-11'!K271","v":{"v":0,"d":"0 "}}]
["Total Direct Receipts/Revenues 8",null,{"$f":"SUM(C5:C8)","v":{"v":12817900,"d":"12,817,900 "}},{"$f":"SUM(D5:D8)","v":{"v":1597000,"d":"1,597,000 "}},{"v":2195000,"d":"2,195,000 "},{"v":510000,"d":"510,000 "},{"v":605000,"d":"605,000 "},{"v":203000,"d":"203,000 "},{"v":27000,"d":"27,000 "},{"v":221000,"d":"221,000 "},{"v":178000,"d":"178,000 "}]
["Receipts/Revenues for \"On Behalf\" Payments 2",3998,{"v":0,"d":"0 "}]
["Total Receipts/Revenues",null,{"$f":"SUM(C9:C10)","v":{"v":12817900,"d":"12,817,900 "}},{"$f":"SUM(D9:D10)","v":{"v":1597000,"d":"1,597,000 "}},{"v":2195000,"d":"2,195,000 "},{"v":510000,"d":"510,000 "},{"v":605000,"d":"605,000 "},{"v":203000,"d":"203,000 "},{"v":27000,"d":"27,000 "},{"v":221000,"d":"221,000 "},{"v":178000,"d":"178,000 "}]
["DISBURSEMENTS/EXPENDITURES (without Student Activity Funds)"]
["INSTRUCTION","1000",{"$f":"'EstExp 12-20'!K34","v":{"v":7233137,"d":"7,233,137 "}},{"$nulls":3},{"$f":"'EstExp 12-20'!K233","v":{"v":212500,"d":"212,500 "}},null,null,{"$f":"'EstExp 12-20'!K344","v":{"v":0,"d":"0 "}}]
["SUPPORT SERVICES",2000,{"$f":"'EstExp 12-20'!K76","v":{"v":5295819,"d":"5,295,819 "}},{"$f":"'EstExp 12-20'!K133","v":{"v":1564500,"d":"1,564,500 "}},null,{"$f":"'EstExp 12-20'!K188","v":{"v":450000,"d":"450,000 "}},{"$f":"'EstExp 12-20'!K276","v":{"v":366300,"d":"366,300 "}},{"$f":"'EstExp 12-20'!K300","v":{"v":203000,"d":"203,000 "}},null,{"$f":"'EstExp 12-20'!K387","v":{"v":15000,"d":"15,000 "}},{"$f":"'EstExp 12-20'!K438","v":{"v":150000,"d":"150,000 "}}]
["COMMUNITY SERVICES",3000,{"$f":"'EstExp 12-20'!K77","v":{"v":315000,"d":"315,000 "}},{"$f":"'EstExp 12-20'!K134","v":{"v":0,"d":"0 "}},null,{"$f":"'EstExp 12-20'!K189","v":{"v":0,"d":"0 "}},{"$f":"'EstExp 12-20'!K277","v":{"v":22100,"d":"22,100 "}},null,null,{"$f":"'EstExp 12-20'!K388","v":{"v":0,"d":"0 "}}]
["PAYMENTS TO OTHER DISTRICTS & GOVT UNITS",4000,{"$f":"'EstExp 12-20'!K104","v":{"v":890000,"d":"890,000 "}},{"$f":"'EstExp 12-20'!K143","v":{"v":0,"d":"0 "}},{"$f":"'EstExp 12-20'!K164","v":{"v":0,"d":"0 "}},{"$f":"'EstExp 12-20'!K200","v":{"v":0,"d":"0 "}},{"$f":"'EstExp 12-20'!K282","v":{"v":0,"d":"0 "}},{"$f":"'EstExp 12-20'!K307","v":{"v":0,"d":"0 "}},null,{"$f":"'EstExp 12-20'!K415","v":{"v":0,"d":"0 "}},{"$f":"'EstExp 12-20'!K443","v":{"v":0,"d":"0 "}}]
["DEBT SERVICES",5000,{"$f":"'EstExp 12-20'!K114","v":{"v":0,"d":"0 "}},{"$f":"'EstExp 12-20'!K153","v":{"v":0,"d":"0 "}},{"$f":"'EstExp 12-20'!K176","v":{"v":1322000,"d":"1,322,000 "}},{"$f":"'EstExp 12-20'!K212","v":{"v":0,"d":"0 "}},{"$f":"'EstExp 12-20'!K290","v":{"v":0,"d":"0 "}},null,null,{"$f":"'EstExp 12-20'!K426","v":{"v":0,"d":"0 "}},{"$f":"'EstExp 12-20'!K451","v":{"v":0,"d":"0 "}}]
["PROVISION FOR CONTINGENCIES",6000,{"$f":"'EstExp 12-20'!K115","v":{"v":0,"d":"0 "}},{"$f":"'EstExp 12-20'!K154","v":{"v":0,"d":"0 "}},{"$f":"'EstExp 12-20'!K177","v":{"v":0,"d":"0 "}},{"$f":"'EstExp 12-20'!K213","v":{"v":0,"d":"0 "}},{"$f":"'EstExp 12-20'!K291","v":{"v":0,"d":"0 "}},{"$f":"'EstExp 12-20'!K308","v":{"v":0,"d":"0 "}},null,{"$f":"'EstExp 12-20'!K427","v":{"v":0,"d":"0 "}},{"$f":"'EstExp 12-20'!K452","v":{"v":0,"d":"0 "}}]
["Total Direct Disbursements/Expenditures 9",null,{"$f":"SUM(C13:C18)","v":{"v":13733956,"d":"13,733,956 "}},{"v":1564500,"d":"1,564,500 "},{"v":1322000,"d":"1,322,000 "},{"v":450000,"d":"450,000 "},{"$f":"SUM(G13:G18)","v":{"v":600900,"d":"600,900 "}},{"$f":"SUM(H13:H18)","v":{"v":203000,"d":"203,000 "}},null,{"$f":"SUM(J13:J18)","v":{"v":15000,"d":"15,000 "}},{"$f":"SUM(K13:K18)","v":{"v":150000,"d":"150,000 "}}]
["Disbursements/Expenditures for \"On Behalf\" Payments 2",4180,{"$f":"C10","v":{"v":0,"d":"0 "}},{"v":0,"d":"0 "},{"v":0,"d":"0 "},{"v":0,"d":"0 "},{"v":0,"d":"0 "},{"v":0,"d":"0 "},null,{"$f":"J10","v":{"v":0,"d":"0 "}},{"$f":"K10","v":{"v":0,"d":"0 "}}]
["Total Disbursements/Expenditures",null,{"$f":"SUM(C19:C20)","v":{"v":13733956,"d":"13,733,956 "}},{"v":1564500,"d":"1,564,500 "},{"v":1322000,"d":"1,322,000 "},{"v":450000,"d":"450,000 "},{"v":600900,"d":"600,900 "},{"v":203000,"d":"203,000 "},null,{"$f":"SUM(J19:J20)","v":{"v":15000,"d":"15,000 "}},{"$f":"SUM(K19:K20)","v":{"v":150000,"d":"150,000 "}}]
["Excess of Direct Receipts/Revenues Over (Under) Direct Disbursements/Expenditures",null,{"$f":"C9-C19","v":{"v":-916056,"d":"(916,056)"}},{"$f":"D9-D19","v":{"v":32500,"d":"32,500 "}},{"v":873000,"d":"873,000 "},{"v":60000,"d":"60,000 "},{"v":4100,"d":"4,100 "},{"v":0,"d":"0 "},{"v":27000,"d":"27,000 "},{"v":206000,"d":"206,000 "},{"v":28000,"d":"28,000 "}]
["OTHER SOURCES/USES OF FUNDS"]
["OTHER SOURCES OF FUNDS (7000)"]
["PERMANENT TRANSFER FROM VARIOUS FUNDS"]
["Abolishment the Working Cash Fund 16",7110]
["Abatement of the Working Cash Fund 16","7110",{"v":0,"d":"0 "},null,{"v":0,"d":"0 "}]
["Transfer of Working Cash Fund Interest",7120,{"v":0,"d":"0 "}]
["Transfer Among Funds",7130,{"v":0,"d":"0 "}]
["Transfer of Interest",7140,{"v":0,"d":"0 "},{"v":0,"d":"0 "},{"$nulls":4},{"v":0,"d":"0 "},null,{"v":0,"d":"0 "}]
["Transfer from Capital Projects Fund to O&M Fund",7150,null,{"$f":"H54","v":{"v":0,"d":"0 "}}]
["Transfer of Excess Fire Prev & Safety Tax & Interest 3 Proceeds to O&M Fund",7160,null,{"$f":"K55","v":{"v":0,"d":"0 "}}]
["Transfer of Excess Accumulated Fire Prev & Safety Bond and Int 3a Proceeds to Debt Service Fund                             ",7170,null,null,{"$f":"K56","v":{"v":0,"d":"0 "}}]
["SALE OF BONDS (7200)"]
["Principal on Bonds Sold 4",7210,{"v":0,"d":"0 "},null,{"v":0,"d":"0 "},null,null,{"v":0,"d":"0 "},{"v":0,"d":"0 "}]
["Premium on Bonds Sold",7220,null,null,{"v":0,"d":"0 "},null,null,{"v":0,"d":"0 "}]
["Accrued Interest on Bonds Sold",7230,null,null,{"v":0,"d":"0 "},{"$nulls":3},{"v":0,"d":"0 "}]
["Sale or Compensation for Fixed Assets 5",7300]
["Transfer to Debt Service to Pay Principal on GASB 87 Leases",7400,null,null,{"$f":"SUM(C57:H60)","v":{"v":0,"d":"0 "}}]
["Transfer to Debt Service to Pay Interest on GASB 87 Leases",7500,null,null,{"$f":"SUM(C61:H64)","v":{"v":0,"d":"0 "}}]
["Transfer to Debt Service Fund to Pay Principal on Revenue Bonds",7600,null,null,{"$f":"SUM(C65:D68)","v":{"v":0,"d":"0 "}}]
["Transfer to Debt Service Fund to Pay Interest on Revenue Bonds",7700,null,null,{"$f":"SUM(C69:D72)","v":{"v":0,"d":"0 "}}]
["Transfer to Capital Projects Fund",7800,{"$nulls":5},{"$f":"SUM(C73:D76)","v":{"v":0,"d":"0 "}}]
["ISBE Loan Proceeds",7900,null,null,{"v":0,"d":"0 "},null,null,{"v":0,"d":"0 "}]
["Other Sources Not Classified Elsewhere",7990,null,null,{"v":0,"d":"0 "},null,null,{"v":0,"d":"0 "}]
["Total Other Sources of Funds 8",null,{"$f":"SUM(C26:C45)","v":{"v":0,"d":"0 "}},{"$f":"SUM(D26:D45)","v":{"v":0,"d":"0 "}},{"v":0,"d":"0 "},{"v":0,"d":"0 "},{"v":0,"d":"0 "},{"v":0,"d":"0 "},{"v":0,"d":"0 "},{"v":0,"d":"0 "},{"v":0,"d":"0 "}]
["OTHER USES OF FUNDS (8000)"]
[]
["TRANSFER TO VARIOUS OTHER FUNDS (8100)"]
["Abolishment or Abatement of the Working Cash Fund 16","8110",{"$nulls":6},{"$f":"SUM(C26,C27,D27,E27,F27,G27,H27,J27,K27)","v":{"v":0,"d":"0 "}}]
["Transfer of Working Cash Fund Interest","8120",{"$nulls":6},{"$f":"SUM(C28:K28)","v":{"v":0,"d":"0 "}}]
["Transfer Among Funds","8130",{"v":0,"d":"0 "}]
["Transfer of Interest 6","8140"]
["Transfer from Capital Projects Fund to O&M Fund","8150"]
["Transfer of Excess Fire Prev & Safety Tax & Interest 3 Proceeds to O&M Fund","8160"]
["Transfer of Excess Accumulated Fire Prev & Safety Bond 3a                                  and Int Proceeds to Debt Service Fund                             ","8170"]
["Taxes Pledged to Pay Principal on GASB 87 Leases","8410"]
["Grants/Reimbursements Pledged to Pay Principal on GASB 87 Leases","8420"]
["Other Revenues Pledged to Pay Principal on GASB 87 Leases","8430"]
["Fund Balance Transfers Pledged to Pay Principal on GASB 87 Leases","8440"]
["Taxes Pledged to Pay Interest on GASB 87 Leases","8510"]
["Grants/Reimbursements Pledged to Pay Interest on GASB 87 Leases","8520"]
["Other Revenues Pledged to Pay Interest on GASB 87 Leases","8530"]
["Fund Balance Transfers Pledged to Pay Interest on GASB 87 Leases","8540"]
["Taxes Pledged to Pay Principal on Revenue Bonds","8610"]
["Grants/Reimbursements Pledged to Pay Principal on Revenue Bonds","8620"]
["Other Revenues Pledged  to Pay Principal on Revenue Bonds","8630"]
["Fund Balance Transfers Pledged to Pay Principal on Revenue Bonds","8640"]
["Taxes Pledged to Pay Interest on Revenue Bonds","8710"]
["Grants/Reimbursements Pledged to Pay Interest on Revenue Bonds","8720"]
["Other Revenues Pledged to Pay Interest on Revenue Bonds","8730"]
["Fund Balance Transfers Pledged to Pay Interest on Revenue Bonds","8740"]
["Taxes Transferred to Pay for Capital Projects","8810"]
["Grants/Reimbursements Pledged to Pay for Capital Projects","8820"]
["Other Revenues Pledged to Pay for Capital Projects","8830"]
["Fund Balance Transfers Pledged to Pay for Capital Projects","8840"]
["Transfer to Debt Service Fund to Pay Principal on ISBE Loans","8910"]
["Other Uses Not Classified Elsewhere","8990",null,null,{"v":115000,"d":"115,000 "},null,null,{"v":0,"d":"0 "}]
["Total Other Uses of Funds 9",null,{"$f":"SUM(C50:C78)","v":{"v":0,"d":"0 "}},{"$f":"SUM(D50:D78)","v":{"v":0,"d":"0 "}},{"v":115000,"d":"115,000 "},{"v":0,"d":"0 "},{"v":0,"d":"0 "},{"v":0,"d":"0 "},{"v":0,"d":"0 "},{"v":0,"d":"0 "},{"v":0,"d":"0 "}]
["Total Other Sources/Uses of Fund",null,{"$f":"C46-C79","v":{"v":0,"d":"0 "}},{"v":0,"d":"0 "},{"v":-115000,"d":"(115,000)"},{"v":0,"d":"0 "},{"v":0,"d":"0 "},{"v":0,"d":"0 "},{"v":0,"d":"0 "},{"v":0,"d":"0 "},{"v":0,"d":"0 "}]
[{"$f":"\"ESTIMATED ENDING FUND BALANCE (without Student Activity Funds) as of June 30, \"&'B25'!L2","v":"ESTIMATED ENDING FUND BALANCE (without Student Activity Funds) as of June 30, 2025"},null,{"$f":"C3+C22+C80","v":{"v":6460442,"d":"6,460,442 "}},{"v":32500,"d":"32,500 "},{"$f":"E3+E22+E80","v":{"v":3815750,"d":"3,815,750 "}},{"v":60969,"d":"60,969 "},{"v":16148,"d":"16,148 "},{"v":0,"d":"0 "},{"v":5031949,"d":"5,031,949 "},{"v":206000,"d":"206,000 "},{"v":28000,"d":"28,000 "}]
[]
[{"$f":"\"Student Activity (Fund 11) ESTIMATED BEGINNING FUND BALANCE as of July 1, \"&'B25'!L2-1","v":"Student Activity (Fund 11) ESTIMATED BEGINNING FUND BALANCE as of July 1, 2024"},null,{"v":0,"d":"0 "}]
["RECEIPTS/REVENUES (For Student Activity Funds)"]
["Total Student Activity Direct Receipts/Revenues  (Local Sources)",1799,{"$f":"'EstRev 6-11'!C82","v":{"v":0,"d":"0 "}}]
["DISBURSEMENTS/EXPENDITURES (For Student Activity Funds)"]
["Total Student Activity Direct Disbursements/Expenditures",1999,{"$f":"'EstExp 12-20'!K33","v":{"v":0,"d":"0 "}}]
["Excess of Direct Receipts/Revenues Over (Under) Direct Disbursements/Expenditures",null,{"$f":"C85-C87","v":{"v":0,"d":"0 "}}]
[{"$f":"\"Student Activity ESTIMATED ENDING FUND BALANCE as of June 30, \"&'B25'!L2","v":"Student Activity ESTIMATED ENDING FUND BALANCE as of June 30, 2025"},null,{"$f":"C83+C88","v":{"v":0,"d":"0 "}}]
[]
[{"$f":"\"Total ESTIMATED BEGINNING FUND BALANCE (All Sources Including Student Activity Funds) as of July 1, \"&'B25'!L2-1","v":"Total ESTIMATED BEGINNING FUND BALANCE (All Sources Including Student Activity Funds) as of July 1, 2024"},null,{"$f":"C3+C83","v":{"v":7376498,"d":"7,376,498 "}},{"$f":"D3","v":{"v":0,"d":"0 "}},{"$f":"E3","v":{"v":3057750,"d":"3,057,750 "}},{"v":969,"d":"969 "},{"v":12048,"d":"12,048 "},{"v":0,"d":"0 "},{"v":5004949,"d":"5,004,949 "},{"v":0,"d":"0 "},{"v":0,"d":"0 "}]
["RECEIPTS/REVENUES  (All Sources with Student Activity Funds)"]
["LOCAL SOURCES",1000,{"$f":"C5+C85","v":{"v":5003900,"d":"5,003,900 "}},{"$f":"D5","v":{"v":247000,"d":"247,000 "}},{"$f":"E5","v":{"v":1695000,"d":"1,695,000 "}},{"v":25000,"d":"25,000 "},{"v":390000,"d":"390,000 "},{"v":0,"d":"0 "},{"v":27000,"d":"27,000 "},{"v":21000,"d":"21,000 "},{"v":28000,"d":"28,000 "}]
["FLOW-THROUGH RECEIPTS/REVENUES FROM ONE DISTRICT TO ANOTHER DISTRICT",2000,{"$f":"C6","v":{"v":0,"d":"0 "}},{"$f":"D6","v":{"v":0,"d":"0 "}},null,{"$f":"F6","v":{"v":0,"d":"0 "}},{"$f":"G6","v":{"v":0,"d":"0 "}}]
["STATE SOURCES",3000,{"$f":"C7","v":{"v":6057000,"d":"6,057,000 "}},{"$f":"D7","v":{"v":1350000,"d":"1,350,000 "}},{"v":500000,"d":"500,000 "},{"v":485000,"d":"485,000 "},{"v":215000,"d":"215,000 "},{"v":0,"d":"0 "},{"v":0,"d":"0 "},{"v":200000,"d":"200,000 "},{"v":150000,"d":"150,000 "}]
["FEDERAL SOURCES",4000,{"$f":"C8","v":{"v":1757000,"d":"1,757,000 "}},{"$f":"D8","v":{"v":0,"d":"0 "}},{"v":0,"d":"0 "},{"v":0,"d":"0 "},{"v":0,"d":"0 "},{"v":203000,"d":"203,000 "},{"v":0,"d":"0 "},{"v":0,"d":"0 "},{"v":0,"d":"0 "}]
["Total Direct Receipts/Revenues 8",null,{"$f":"SUM(C93:C96)","v":{"v":12817900,"d":"12,817,900 "}},{"$f":"SUM(D93:D96)","v":{"v":1597000,"d":"1,597,000 "}},{"v":2195000,"d":"2,195,000 "},{"v":510000,"d":"510,000 "},{"v":605000,"d":"605,000 "},{"v":203000,"d":"203,000 "},{"v":27000,"d":"27,000 "},{"v":221000,"d":"221,000 "},{"v":178000,"d":"178,000 "}]
["Receipts/Revenues for \"On Behalf\" Payments 2",3998,{"$f":"C10","v":{"v":0,"d":"0 "}},{"$f":"D10","v":{"v":0,"d":"0 "}},{"v":0,"d":"0 "},{"v":0,"d":"0 "},{"v":0,"d":"0 "},{"v":0,"d":"0 "},null,{"v":0,"d":"0 "},{"v":0,"d":"0 "}]
["Total Receipts/Revenues",null,{"$f":"SUM(C97:C98)","v":{"v":12817900,"d":"12,817,900 "}},{"$f":"SUM(D97:D98)","v":{"v":1597000,"d":"1,597,000 "}},{"v":2195000,"d":"2,195,000 "},{"v":510000,"d":"510,000 "},{"v":605000,"d":"605,000 "},{"v":203000,"d":"203,000 "},{"v":27000,"d":"27,000 "},{"v":221000,"d":"221,000 "},{"v":178000,"d":"178,000 "}]
["DISBURSEMENTS/EXPENDITURES (All Sources with Student Activity Funds)"]
["INSTRUCTION","1000",{"$f":"C13+C87","v":{"v":7233137,"d":"7,233,137 "}},{"$nulls":3},{"$f":"G13","v":{"v":212500,"d":"212,500 "}},null,null,{"$f":"J13","v":{"v":0,"d":"0 "}}]
["SUPPORT SERVICES",2000,{"$f":"C14","v":{"v":5295819,"d":"5,295,819 "}},{"v":1564500,"d":"1,564,500 "},null,{"$f":"F14","v":{"v":450000,"d":"450,000 "}},{"v":366300,"d":"366,300 "},{"$f":"H14","v":{"v":203000,"d":"203,000 "}},null,{"$f":"J14","v":{"v":15000,"d":"15,000 "}},{"$f":"K14","v":{"v":150000,"d":"150,000 "}}]
["COMMUNITY SERVICES",3000,{"v":315000,"d":"315,000 "},{"v":0,"d":"0 "},null,{"$f":"F15","v":{"v":0,"d":"0 "}},{"v":22100,"d":"22,100 "},null,null,{"$f":"J15","v":{"v":0,"d":"0 "}}]
["PAYMENTS TO OTHER DISTRICTS & GOVT UNITS",4000,{"v":890000,"d":"890,000 "},{"v":0,"d":"0 "},{"$f":"E16","v":{"v":0,"d":"0 "}},{"$f":"F16","v":{"v":0,"d":"0 "}},{"v":0,"d":"0 "},{"$f":"H16","v":{"v":0,"d":"0 "}},null,{"$f":"J16","v":{"v":0,"d":"0 "}},{"v":0,"d":"0 "}]
["DEBT SERVICES",5000,{"v":0,"d":"0 "},{"v":0,"d":"0 "},{"$f":"E17","v":{"v":1322000,"d":"1,322,000 "}},{"$f":"F17","v":{"v":0,"d":"0 "}},{"v":0,"d":"0 "},null,null,{"v":0,"d":"0 "},{"v":0,"d":"0 "}]
["PROVISION FOR CONTINGENCIES",6000,{"v":0,"d":"0 "},{"v":0,"d":"0 "},{"$f":"E18","v":{"v":0,"d":"0 "}},{"$f":"F18","v":{"v":0,"d":"0 "}},{"v":0,"d":"0 "},{"$f":"H18","v":{"v":0,"d":"0 "}},null,{"v":0,"d":"0 "},{"v":0,"d":"0 "}]
["Total Direct Disbursements/Expenditures 9",null,{"$f":"SUM(C101:C106)","v":{"v":13733956,"d":"13,733,956 "}},{"v":1564500,"d":"1,564,500 "},{"v":1322000,"d":"1,322,000 "},{"v":450000,"d":"450,000 "},{"v":600900,"d":"600,900 "},{"v":203000,"d":"203,000 "},null,{"$f":"SUM(J101:J106)","v":{"v":15000,"d":"15,000 "}},{"$f":"SUM(K101:K106)","v":{"v":150000,"d":"150,000 "}}]
["Disbursements/Expenditures for \"On Behalf\" Payments 2",4180,{"$f":"C98","v":{"v":0,"d":"0 "}},{"v":0,"d":"0 "},{"v":0,"d":"0 "},{"v":0,"d":"0 "},{"v":0,"d":"0 "},{"v":0,"d":"0 "},null,{"$f":"J98","v":{"v":0,"d":"0 "}},{"$f":"K98","v":{"v":0,"d":"0 "}}]
["Total Disbursements/Expenditures",null,{"$f":"SUM(C107:C108)","v":{"v":13733956,"d":"13,733,956 "}},{"v":1564500,"d":"1,564,500 "},{"v":1322000,"d":"1,322,000 "},{"v":450000,"d":"450,000 "},{"v":600900,"d":"600,900 "},{"v":203000,"d":"203,000 "},null,{"$f":"SUM(J107:J108)","v":{"v":15000,"d":"15,000 "}},{"$f":"SUM(K107:K108)","v":{"v":150000,"d":"150,000 "}}]
["Excess of Direct Receipts/Revenues Over (Under) Direct Disbursements/Expenditures",null,{"$f":"C97-C107","v":{"v":-916056,"d":"(916,056)"}},{"$f":"D97-D107","v":{"v":32500,"d":"32,500 "}},{"v":873000,"d":"873,000 "},{"v":60000,"d":"60,000 "},{"v":4100,"d":"4,100 "},{"v":0,"d":"0 "},{"v":27000,"d":"27,000 "},{"v":206000,"d":"206,000 "},{"v":28000,"d":"28,000 "}]
["OTHER SOURCES/USES OF FUNDS"]
["OTHER SOURCES OF FUNDS (7000)"]
["Total Other Sources of Funds 8",null,{"$f":"C46","v":{"v":0,"d":"0 "}},{"$f":"D46","v":{"v":0,"d":"0 "}},{"v":0,"d":"0 "},{"v":0,"d":"0 "},{"v":0,"d":"0 "},{"v":0,"d":"0 "},{"v":0,"d":"0 "},{"v":0,"d":"0 "},{"v":0,"d":"0 "}]
["OTHER USES OF FUNDS (8000)"]
[]
["Total Other Uses of Funds 9",null,{"$f":"C79","v":{"v":0,"d":"0 "}},{"$f":"D79","v":{"v":0,"d":"0 "}},{"v":115000,"d":"115,000 "},{"v":0,"d":"0 "},{"v":0,"d":"0 "},{"v":0,"d":"0 "},{"v":0,"d":"0 "},{"v":0,"d":"0 "},{"v":0,"d":"0 "}]
["Total Other Sources/Uses of Fund",null,{"$f":"C80","v":{"v":0,"d":"0 "}},{"$f":"D80","v":{"v":0,"d":"0 "}},{"v":-115000,"d":"(115,000)"},{"v":0,"d":"0 "},{"v":0,"d":"0 "},{"v":0,"d":"0 "},{"v":0,"d":"0 "},{"v":0,"d":"0 "},{"v":0,"d":"0 "}]
[{"$f":"\"ESTIMATED ENDING FUND BALANCE (All Sources with Student Activity Funds) as of June 30, \"&'B25'!L2","v":"ESTIMATED ENDING FUND BALANCE (All Sources with Student Activity Funds) as of June 30, 2025"},null,{"$f":"C81+C89","v":{"v":6460442,"d":"6,460,442 "}},{"$f":"D81+D89","v":{"v":32500,"d":"32,500 "}},{"v":3815750,"d":"3,815,750 "},{"v":60969,"d":"60,969 "},{"v":16148,"d":"16,148 "},{"v":0,"d":"0 "},{"v":5031949,"d":"5,031,949 "},{"v":206000,"d":"206,000 "},{"v":28000,"d":"28,000 "}]
[]
["SUMMARY OF EXPENDITURES Without Student Activity Funds (by Major Object)"]
[null,null,"(10)","(20)","(30)","(40)","(50)","(60)","(70)","(80)","(90)"]
["Description","Acct #","Educational","Operations & Maintenance","Debt Service","Transportation","Municipal Retirement/ Social Security","Capital Projects","Working Cash","Tort","Fire Prevention & Safety","Total By Object"]
["Object Name"]
["Salaries",100,{"$f":"'EstExp 12-20'!C116","v":{"v":8357606,"d":"8,357,606 "}},{"$f":"'EstExp 12-20'!C155","v":{"v":818000,"d":"818,000 "}},null,{"$f":"'EstExp 12-20'!C214","v":{"v":0,"d":"0 "}},null,{"$f":"'EstExp 12-20'!C309","v":{"v":0,"d":"0 "}},null,{"$f":"'EstExp 12-20'!C$428","v":{"v":0,"d":"0 "}},{"$f":"'EstExp 12-20'!C453","v":{"v":115000,"d":"115,000 "}},{"$f":"SUM(C124:K124)","v":{"v":9290606,"d":"9,290,606 "}}]
["Employee Benefits",200,{"$f":"'EstExp 12-20'!D116","v":{"v":1443450,"d":"1,443,450 "}},{"$f":"'EstExp 12-20'!D155","v":{"v":85000,"d":"85,000 "}},null,{"$f":"'EstExp 12-20'!D214","v":{"v":0,"d":"0 "}},{"$f":"'EstExp 12-20'!D292","v":{"v":600900,"d":"600,900 "}},{"$f":"'EstExp 12-20'!D309","v":{"v":0,"d":"0 "}},null,{"$f":"'EstExp 12-20'!D428","v":{"v":0,"d":"0 "}},{"$f":"'EstExp 12-20'!D453","v":{"v":20000,"d":"20,000 "}},{"v":2149350,"d":"2,149,350 "}]
["Purchased Services",300,{"$f":"'EstExp 12-20'!E116","v":{"v":2028400,"d":"2,028,400 "}},{"$f":"'EstExp 12-20'!E155","v":{"v":209500,"d":"209,500 "}},{"$f":"'EstExp 12-20'!E178","v":{"v":0,"d":"0 "}},{"$f":"'EstExp 12-20'!E214","v":{"v":450000,"d":"450,000 "}},null,{"$f":"'EstExp 12-20'!E309","v":{"v":0,"d":"0 "}},null,{"$f":"'EstExp 12-20'!E428","v":{"v":15000,"d":"15,000 "}},{"$f":"'EstExp 12-20'!E453","v":{"v":15000,"d":"15,000 "}},{"v":2717900,"d":"2,717,900 "}]
["Supplies & Materials",400,{"$f":"'EstExp 12-20'!F116","v":{"v":778000,"d":"778,000 "}},{"$f":"'EstExp 12-20'!F155","v":{"v":442000,"d":"442,000 "}},null,{"$f":"'EstExp 12-20'!F214","v":{"v":0,"d":"0 "}},null,{"$f":"'EstExp 12-20'!F309","v":{"v":0,"d":"0 "}},null,{"$f":"'EstExp 12-20'!F428","v":{"v":0,"d":"0 "}},{"$f":"'EstExp 12-20'!F453","v":{"v":0,"d":"0 "}},{"v":1220000,"d":"1,220,000 "}]
["Capital Outlay",500,{"$f":"'EstExp 12-20'!G116","v":{"v":195500,"d":"195,500 "}},{"$f":"'EstExp 12-20'!G155","v":{"v":10000,"d":"10,000 "}},null,{"$f":"'EstExp 12-20'!G214","v":{"v":0,"d":"0 "}},null,{"$f":"'EstExp 12-20'!G309","v":{"v":203000,"d":"203,000 "}},null,{"$f":"'EstExp 12-20'!G428","v":{"v":0,"d":"0 "}},{"$f":"'EstExp 12-20'!G453","v":{"v":0,"d":"0 "}},{"v":408500,"d":"408,500 "}]
["Other Objects",600,{"$f":"'EstExp 12-20'!H116","v":{"v":931000,"d":"931,000 "}},{"$f":"'EstExp 12-20'!H155","v":{"v":0,"d":"0 "}},{"$f":"'EstExp 12-20'!H178","v":{"v":1322000,"d":"1,322,000 "}},{"$f":"'EstExp 12-20'!H214","v":{"v":0,"d":"0 "}},{"$f":"'EstExp 12-20'!H292","v":{"v":0,"d":"0 "}},{"$f":"'EstExp 12-20'!H309","v":{"v":0,"d":"0 "}},null,{"$f":"'EstExp 12-20'!H428","v":{"v":0,"d":"0 "}},{"$f":"'EstExp 12-20'!H453","v":{"v":0,"d":"0 "}},{"v":2253000,"d":"2,253,000 "}]
["Non-Capitalized Equipment ",700,{"$f":"'EstExp 12-20'!I116","v":{"v":0,"d":"0 "}},{"$f":"'EstExp 12-20'!I155","v":{"v":0,"d":"0 "}},null,{"$f":"'EstExp 12-20'!I214","v":{"v":0,"d":"0 "}},null,{"$f":"'EstExp 12-20'!I309","v":{"v":0,"d":"0 "}},null,{"$f":"'EstExp 12-20'!I428","v":{"v":0,"d":"0 "}},{"$f":"'EstExp 12-20'!I453","v":{"v":0,"d":"0 "}},{"v":0,"d":"0 "}]
["Termination Benefits",800,{"$f":"'EstExp 12-20'!J116","v":{"v":0,"d":"0 "}},{"$f":"'EstExp 12-20'!J155","v":{"v":0,"d":"0 "}},null,{"$f":"'EstExp 12-20'!J214","v":{"v":0,"d":"0 "}},{"$nulls":3},{"$f":"'EstExp 12-20'!J428","v":{"v":0,"d":"0 "}},null,{"v":0,"d":"0 "}]
["Total Expenditures",null,{"$f":"SUM(C124:C131)","v":{"v":13733956,"d":"13,733,956 "}},{"v":1564500,"d":"1,564,500 "},{"v":1322000,"d":"1,322,000 "},{"v":450000,"d":"450,000 "},{"v":600900,"d":"600,900 "},{"v":203000,"d":"203,000 "},null,{"$f":"SUM(J124:J131)","v":{"v":15000,"d":"15,000 "}},{"$f":"SUM(K124:K131)","v":{"v":150000,"d":"150,000 "}},{"v":18039356,"d":"18,039,356 "}]

{"sheet":"CashSum 5","index":2,"n_rows":37,"n_cols":11,"rows_kept":37,"merged":[[3,0,3,1],[10,0,10,1],[12,0,12,1],[18,0,18,1],[20,0,20,1],[23,0,23,1],[25,0,25,1],[26,0,26,1],[29,0,29,1],[31,0,31,1],[33,0,33,1],[34,0,34,1],[36,0,36,1]]}
[null,null,"(10)","(20)","(30)","(40)","(50)","(60)","(70)","(80)","(90)"]
["Description:  Enter Whole Numbers Only","Acct #","  Educational   ","Operations & Maintenance","Debt Service","Transportation","   Municipal Retirement/ Social Security","Capital Projects","Working Cash","Tort","Fire Prevention & Safety"]
[{"$f":"\"BEGINNING CASH BALANCE ON HAND (without Student Activity Funds)7 as of July 1, \"&'B25'!L2-1","v":"BEGINNING CASH BALANCE ON HAND (without Student Activity Funds)7 as of July 1, 2024"},null,{"v":7376498,"d":"7,376,498 "},{"v":0,"d":"0 "},{"v":3057750,"d":"3,057,750 "},{"v":969,"d":"969 "},{"v":12048,"d":"12,048 "},{"v":0,"d":"0 "},{"v":5004949,"d":"5,004,949 "},{"v":0,"d":"0 "},{"v":0,"d":"0 "}]
["Total Direct Receipts & Other Sources 8",null,{"$f":"'BudgetSum 2-4'!C9+'BudgetSum 2-4'!C46","v":{"v":12817900,"d":"12,817,900 "}},{"$f":"'BudgetSum 2-4'!D9+'BudgetSum 2-4'!D46","v":{"v":1597000,"d":"1,597,000 "}},{"$f":"'BudgetSum 2-4'!E9+'BudgetSum 2-4'!E46","v":{"v":2195000,"d":"2,195,000 "}},{"$f":"'BudgetSum 2-4'!F9+'BudgetSum 2-4'!F46","v":{"v":510000,"d":"510,000 "}},{"$f":"'BudgetSum 2-4'!G9+'BudgetSum 2-4'!G46","v":{"v":605000,"d":"605,000 "}},{"$f":"'BudgetSum 2-4'!H9+'BudgetSum 2-4'!H46","v":{"v":203000,"d":"203,000 "}},{"$f":"'BudgetSum 2-4'!I9+'BudgetSum 2-4'!I46","v":{"v":27000,"d":"27,000 "}},{"$f":"'BudgetSum 2-4'!J9+'BudgetSum 2-4'!J46","v":{"v":221000,"d":"221,000 "}},{"$f":"'BudgetSum 2-4'!K9+'BudgetSum 2-4'!K46","v":{"v":178000,"d":"178,000 "}}]
["OTHER RECEIPTS"]
["Interfund Loans Payable (Loans from Other Funds)",411]
["Interfund Loans Receivable (Repayment of Loans)",141]
["Notes and Warrants Payable",433]
["Other Current Assets",199]
["Total Other Receipts",null,{"$f":"SUM(C6:C9)","v":{"v":0,"d":"0 "}},{"$f":"SUM(D6:D9)","v":{"v":0,"d":"0 "}},{"v":0,"d":"0 "},{"v":0,"d":"0 "},{"v":0,"d":"0 "},{"v":0,"d":"0 "},{"v":0,"d":"0 "},{"v":0,"d":"0 "},{"v":0,"d":"0 "}]
["Total Direct Receipts, Other Sources, & Other Receipts",null,{"$f":"SUM(C4,C10)","v":{"v":12817900,"d":"12,817,900 "}},{"$f":"SUM(D4,D10)","v":{"v":1597000,"d":"1,597,000 "}},{"v":2195000,"d":"2,195,000 "},{"v":510000,"d":"510,000 "},{"v":605000,"d":"605,000 "},{"v":203000,"d":"203,000 "},{"v":27000,"d":"27,000 "},{"v":221000,"d":"221,000 "},{"v":178000,"d":"178,000 "}]
["Total Amount Available",null,{"$f":"SUM(C3,C11)","v":{"v":20194398,"d":"20,194,398 "}},{"$f":"SUM(D3,D11)","v":{"v":1597000,"d":"1,597,000 "}},{"v":5252750,"d":"5,252,750 "},{"v":510969,"d":"510,969 "},{"v":617048,"d":"617,048 "},{"v":203000,"d":"203,000 "},{"v":5031949,"d":"5,031,949 "},{"v":221000,"d":"221,000 "},{"v":178000,"d":"178,000 "}]
["Total Direct Disbursements & Other Uses 9",null,{"$f":"SUM('BudgetSum 2-4'!C19,'BudgetSum 2-4'!C79)","v":{"v":13733956,"d":"13,733,956 "}},{"$f":"SUM('BudgetSum 2-4'!D19,'BudgetSum 2-4'!D79)","v":{"v":1564500,"d":"1,564,500 "}},{"$f":"SUM('BudgetSum 2-4'!E19,'BudgetSum 2-4'!E79)","v":{"v":1437000,"d":"1,437,000 "}},{"$f":"SUM('BudgetSum 2-4'!F19,'BudgetSum 2-4'!F79)","v":{"v":450000,"d":"450,000 "}},{"$f":"SUM('BudgetSum 2-4'!G19,'BudgetSum 2-4'!G79)","v":{"v":600900,"d":"600,900 "}},{"$f":"SUM('BudgetSum 2-4'!H19,'BudgetSum 2-4'!H79)","v":{"v":203000,"d":"203,000 "}},{"$f":"SUM('BudgetSum 2-4'!I19,'BudgetSum 2-4'!I79)","v":{"v":0,"d":"0 "}},{"$f":"SUM('BudgetSum 2-4'!J19,'BudgetSum 2-4'!J79)","v":{"v":15000,"d":"15,000 "}},{"$f":"SUM('BudgetSum 2-4'!K19,'BudgetSum 2-4'!K79)","v":{"v":150000,"d":"150,000 "}}]
["OTHER DISBURSEMENTS"]
["Interfund Loans Receivable (Loans to Other Funds) 10",141]
["Interfund Loans Payable (Repayment of Loans)",411]
["Notes and Warrants Payable",433]
["Other Current Liabilities",499]
["Total Other Disbursements",null,{"$f":"SUM(C15:C18)","v":{"v":0,"d":"0 "}},{"v":0,"d":"0 "},{"v":0,"d":"0 "},{"v":0,"d":"0 "},{"v":0,"d":"0 "},{"v":0,"d":"0 "},{"v":0,"d":"0 "},{"v":0,"d":"0 "},{"v":0,"d":"0 "}]
["Total Direct Disbursements, Other Uses, & Other Disbursements",null,{"$f":"SUM(C13,C19)","v":{"v":13733956,"d":"13,733,956 "}},{"$f":"SUM(D13,D19)","v":{"v":1564500,"d":"1,564,500 "}},{"$f":"SUM(E13,E19)","v":{"v":1437000,"d":"1,437,000 "}},{"v":450000,"d":"450,000 "},{"v":600900,"d":"600,900 "},{"v":203000,"d":"203,000 "},{"v":0,"d":"0 "},{"v":15000,"d":"15,000 "},{"v":150000,"d":"150,000 "}]
[{"$f":"\"ENDING CASH BALANCE ON HAND (without Student Activity Funds) as of June 30, \"&'B25'!L2","v":"ENDING CASH BALANCE ON HAND (without Student Activity Funds) as of June 30, 2025"},null,{"$f":"SUM(C12-C20)","v":{"v":6460442,"d":"6,460,442 "}},{"$f":"SUM(D12-D20)","v":{"v":32500,"d":"32,500 "}},{"v":3815750,"d":"3,815,750 "},{"v":60969,"d":"60,969 "},{"v":16148,"d":"16,148 "},{"v":0,"d":"0 "},{"v":5031949,"d":"5,031,949 "},{"v":206000,"d":"206,000 "},{"v":28000,"d":"28,000 "}]
[]
[{"$f":"\"Activity Funds BEGINNING CASH BALANCE ON HAND7 as of July 1, \"&'B25'!L2-1","v":"Activity Funds BEGINNING CASH BALANCE ON HAND7 as of July 1, 2024"},null,{"v":0,"d":"0 "}]
["Total Direct Receipts & Other Sources 8",null,{"$f":"'BudgetSum 2-4'!C85","v":{"v":0,"d":"0 "}}]
["Total Amount Available",null,{"$f":"SUM(C23,C24)","v":{"v":0,"d":"0 "}}]
["Total Direct Disbursements & Other Uses 9",null,{"$f":"'BudgetSum 2-4'!C87","v":{"v":0,"d":"0 "}}]
[{"$f":"\"Activity funds ENDING CASH BALANCE ON HAND7 as of June 30, \"&'B25'!L2","v":"Activity funds ENDING CASH BALANCE ON HAND7 as of June 30, 2025"},null,{"$f":"SUM(C25-C26)","v":{"v":0,"d":"0 "}}]
[]
[{"$f":"\"Total BEGINNING CASH BALANCE ON HAND (with Student Activity Funds)7 as of July 1, \"&'B25'!L2-1","v":"Total BEGINNING CASH BALANCE ON HAND (with Student Activity Funds)7 as of July 1, 2024"},null,{"$f":"C3+C23","v":{"v":7376498,"d":"7,376,498 "}},{"$f":"D3","v":{"v":0,"d":"0 "}},{"v":3057750,"d":"3,057,750 "},{"v":969,"d":"969 "},{"v":12048,"d":"12,048 "},{"v":0,"d":"0 "},{"v":5004949,"d":"5,004,949 "},{"v":0,"d":"0 "},{"v":0,"d":"0 "}]
["Total Direct Receipts & Other Sources 8",null,{"$f":"C4+C24","v":{"v":12817900,"d":"12,817,900 "}},{"v":1597000,"d":"1,597,000 "},{"v":2195000,"d":"2,195,000 "},{"v":510000,"d":"510,000 "},{"v":605000,"d":"605,000 "},{"v":203000,"d":"203,000 "},{"v":27000,"d":"27,000 "},{"v":221000,"d":"221,000 "},{"v":178000,"d":"178,000 "}]
["Total Other Receipts",null,{"$f":"C10","v":{"v":0,"d":"0 "}},{"v":0,"d":"0 "},{"v":0,"d":"0 "},{"v":0,"d":"0 "},{"v":0,"d":"0 "},{"v":0,"d":"0 "},{"v":0,"d":"0 "},{"v":0,"d":"0 "},{"v":0,"d":"0 "}]
["Total Direct Receipts, Other Sources, & Other Receipts",null,{"$f":"SUM(C30,C31)","v":{"v":12817900,"d":"12,817,900 "}},{"v":1597000,"d":"1,597,000 "},{"v":2195000,"d":"2,195,000 "},{"v":510000,"d":"510,000 "},{"v":605000,"d":"605,000 "},{"v":203000,"d":"203,000 "},{"v":27000,"d":"27,000 "},{"v":221000,"d":"221,000 "},{"v":178000,"d":"178,000 "}]
["Total Amount Available",null,{"$f":"SUM(C29,C32)","v":{"v":20194398,"d":"20,194,398 "}},{"v":1597000,"d":"1,597,000 "},{"v":5252750,"d":"5,252,750 "},{"v":510969,"d":"510,969 "},{"v":617048,"d":"617,048 "},{"v":203000,"d":"203,000 "},{"v":5031949,"d":"5,031,949 "},{"v":221000,"d":"221,000 "},{"v":178000,"d":"178,000 "}]
["Total Direct Disbursements & Other Uses 9",null,{"$f":"C13+C26","v":{"v":13733956,"d":"13,733,956 "}},{"$f":"D13","v":{"v":1564500,"d":"1,564,500 "}},{"v":1437000,"d":"1,437,000 "},{"v":450000,"d":"450,000 "},{"v":600900,"d":"600,900 "},{"v":203000,"d":"203,000 "},{"v":0,"d":"0 "},{"v":15000,"d":"15,000 "},{"v":150000,"d":"150,000 "}]
["Total Other Disbursements",null,{"$f":"C19","v":{"v":0,"d":"0 "}},{"v":0,"d":"0 "},{"v":0,"d":"0 "},{"v":0,"d":"0 "},{"v":0,"d":"0 "},{"v":0,"d":"0 "},{"v":0,"d":"0 "},{"v":0,"d":"0 "},{"v":0,"d":"0 "}]
["Total Direct Disbursements, Other Uses, & Other Disbursements",null,{"$f":"SUM(C34,C35)","v":{"v":13733956,"d":"13,733,956 "}},{"v":1564500,"d":"1,564,500 "},{"v":1437000,"d":"1,437,000 "},{"v":450000,"d":"450,000 "},{"v":600900,"d":"600,900 "},{"v":203000,"d":"203,000 "},{"v":0,"d":"0 "},{"v":15000,"d":"15,000 "},{"v":150000,"d":"150,000 "}]
[{"$f":"\"Total ENDING CASH BALANCE ON HAND (with Student Activity Funds)7 as of June 30, \"&'B25'!L2","v":"Total ENDING CASH BALANCE ON HAND (with Student Activity Funds)7 as of June 30, 2025"},null,{"$f":"SUM(C33-C36)","v":{"v":6460442,"d":"6,460,442 "}},{"v":32500,"d":"32,500 "},{"v":3815750,"d":"3,815,750 "},{"v":60969,"d":"60,969 "},{"v":16148,"d":"16,148 "},{"v":0,"d":"0 "},{"v":5031949,"d":"5,031,949 "},{"v":206000,"d":"206,000 "},{"v":28000,"d":"28,000 "}]

{"sheet":"EstRev 6-11","index":3,"n_rows":273,"n_cols":11,"rows_kept":273,"merged":[[173,0,173,1],[176,0,176,1],[177,0,177,1],[183,0,183,1]]}
[null,null,"(10)","(20)","(30)","(40)","(50)","(60)","(70)","(80)","(90)"]
["Description:  Enter Whole Numbers Only","Acct      #","Educational     ","Operations & Maintenance","Debt Service","Transportation","Municipal Retirement/ Social Security","Capital Projects","Working Cash","Tort","Fire Prevention & Safety"]
["RECEIPTS/REVENUES FROM LOCAL SOURCES (1000)"]
["AD VALOREM TAXES LEVIED BY LOCAL EDUCATION AGENCY",1100]
["Designated Purposes Levies   11  (1110-1120)","­",{"v":4220000,"d":"4,220,000 "},{"v":202000,"d":"202,000 "},{"v":1695000,"d":"1,695,000 "},{"v":25000,"d":"25,000 "},{"v":106000,"d":"106,000 "},{"v":0,"d":"0 "},{"v":27000,"d":"27,000 "},{"v":21000,"d":"21,000 "},{"v":28000,"d":"28,000 "}]
["Leasing Purposes Levy 12 ",1130]
["Special Education Purposes Levy",1140,{"v":212000,"d":"212,000 "}]
["FICA and Medicare Only Levies",1150,{"$nulls":4},{"v":254000,"d":"254,000 "}]
["Area Vocational Construction Purposes Levy",1160]
["Summer School Purposes Levy",1170]
["Other Tax Levies (Describe & Itemize)",1190,{"v":0,"d":"0 "}]
["Total Ad Valorem Taxes Levied by District",null,{"$f":"SUM(C5:C11)","v":{"v":4432000,"d":"4,432,000 "}},{"$f":"SUM(D5:D11)","v":{"v":202000,"d":"202,000 "}},{"v":1695000,"d":"1,695,000 "},{"v":25000,"d":"25,000 "},{"v":360000,"d":"360,000 "},{"v":0,"d":"0 "},{"v":27000,"d":"27,000 "},{"v":21000,"d":"21,000 "},{"v":28000,"d":"28,000 "}]
["PAYMENTS IN LIEU OF TAXES",1200]
["Mobile Home Privilege Tax",1210]
["Payments from Local Housing Authority",1220]
["Corporate Personal Property Replacement Taxes13",1230,{"v":550000,"d":"550,000 "},{"v":0,"d":"0 "},null,{"v":0,"d":"0 "},{"v":30000,"d":"30,000 "}]
["Other Payments in Lieu of Taxes (Describe & Itemize)",1290]
["Total Payments in Lieu of Taxes",null,{"$f":"SUM(C14:C17)","v":{"v":550000,"d":"550,000 "}},{"$f":"SUM(D14:D17)","v":{"v":0,"d":"0 "}},{"v":0,"d":"0 "},{"v":0,"d":"0 "},{"v":30000,"d":"30,000 "},{"v":0,"d":"0 "},{"v":0,"d":"0 "},{"v":0,"d":"0 "},{"v":0,"d":"0 "}]
["TUITION",1300]
["Regular Tuition from Pupils or Parents (In State)",1311,{"v":3000,"d":"3,000 "}]
["Regular Tuition from Other Districts (In State)",1312]
["Regular Tuition from Other Sources (In State)",1313]
["Regular Tuition from Other Sources (Out of State)",1314]
["Summer School Tuition from Pupils or Parents (In State)",1321]
["Summer School Tuition from Other Districts (In State)",1322]
["Summer School Tuition from Other Sources (In State)",1323]
["Summer School Tuition from Other Sources (Out of State)",1324]
["CTE Tuition from Pupils or Parents (In State)",1331]
["CTE Tuition from Other Districts (In State)",1332]
["CTE Tuition from Other Sources (In State)",1333]
["CTE Tuition from Other Sources (Out of State)",1334]
["Special Education Tuition from Pupils or Parents (In State)",1341]
["Special Education Tuition from Other Districts (In State)",1342,{"v":0,"d":"0 "}]
["Special Education Tuition from Other Sources (In State)",1343]
["Special Education Tuition from Other Sources (Out of State)",1344]
["Adult Tuition from Pupils or Parents (In State)",1351]
["Adult Tuition from Other Districts (In State)",1352]
["Adult Tuition from Other Sources (In State)",1353]
["Adult Tuition from Other Sources (Out of State)",1354]
["Total Tuition",null,{"$f":"SUM(C20:C39)","v":{"v":3000,"d":"3,000 "}}]
["TRANSPORTATION FEES",1400]
["Regular Transportation Fees from Pupils or Parents (In State)",1411]
["Regular Transportation Fees from Other Districts (In State)",1412]
["Regular Transportation Fees from Other Sources (In State)",1413]
["Regular Transportation Fees from Co-curricular Activities (In State)",1415]
["Regular Transportation Fees from Other Sources (Out of State)",1416]
["Summer School Transportation Fees from Pupils or Parents (In State)",1421]
["Summer School Transportation Fees from Other Districts (In State)",1422]
["Summer School Transportation Fees from Other Sources (In State)",1423]
["Summer School Transportation Fees from Other Sources (Out of State)",1424]
["CTE Transportation Fees from Pupils or Parents (In State)","1431"]
["CTE Transportation Fees from Other Districts (In State)","1432"]
["CTE Transportation Fees from Other Sources (In State)",1433]
["CTE Transportation Fees from Other Sources (Out of State)","1434"]
["Special Education Transportation Fees from Pupils or Parents (In State)",1441]
["Special Education Transportation Fees from Other Districts (In State)",1442]
["Special Education Transportation Fees from Other Sources (In State)",1443]
["Special Education Transportation Fees from Other Sources (Out of State)","1444"]
["Adult Transportation Fees from Pupils or Parents (In State)",1451]
["Adult Transportation Fees from Other Districts (In State)",1452]
["Adult Transportation Fees from Other Sources (In State)",1453]
["Adult Transportation Fees from Other Sources (Out of State)","1454"]
["Total Transportation Fees",{"$nulls":4},{"$f":"SUM(F42:F62)","v":{"v":0,"d":"0 "}}]
["EARNINGS ON INVESTMENTS","1500"]
["Interest on Investments",1510,{"v":0,"d":"0 "},{"v":0,"d":"0 "},{"v":0,"d":"0 "},{"v":0,"d":"0 "},{"v":0,"d":"0 "},{"v":0,"d":"0 "},{"v":0,"d":"0 "},{"v":0,"d":"0 "},{"v":0,"d":"0 "}]
["Gain or Loss on Sale of Investments",1520]
["Total Earnings on Investments",null,{"$f":"SUM(C65:C66)","v":{"v":0,"d":"0 "}},{"$f":"SUM(D65:D66)","v":{"v":0,"d":"0 "}},{"v":0,"d":"0 "},{"v":0,"d":"0 "},{"v":0,"d":"0 "},{"v":0,"d":"0 "},{"v":0,"d":"0 "},{"v":0,"d":"0 "},{"v":0,"d":"0 "}]
["FOOD SERVICE","1600"]
["Sales to Pupils - Lunch",1611,{"v":0,"d":"0 "}]
["Sales to Pupils - Breakfast",1612]
["Sales to Pupils - A la Carte",1613]
["Sales to Pupils - Other (Describe & Itemize)",1614,{"v":0,"d":"0 "}]
["Sales to Adults",1620,{"v":1900,"d":"1,900 "}]
["Other Food Service (Describe & Itemize)",1690,{"v":0,"d":"0 "}]
["Total Food Service",null,{"$f":"SUM(C69:C74)","v":{"v":1900,"d":"1,900 "}}]
["DISTRICT/SCHOOL ACTIVITY INCOME","1700"]
["Admissions - Athletic",1711]
["Admissions - Other",1719,{"v":0,"d":"0 "}]
["Fees",1720]
["Book Store Sales",1730]
["Other District/School Activity Revenue (Describe & Itemize)",1790]
["Student Activity Fund Revenues ","1799"]
["Total District/School Activity Income (without Student Activity Funds 1799)",null,{"$f":"SUM(C77:C81)","v":{"v":0,"d":"0 "}},{"$f":"SUM(D77:D81)","v":{"v":0,"d":"0 "}}]
["Total District/School Activity Income (with Student Activity Funds 1799)",null,{"$f":"C83+C82","v":{"v":0,"d":"0 "}}]
["TEXTBOOK INCOME","1800"]
["Textbook Rentals - Regular Textbooks",1811,{"v":0,"d":"0 "}]
["Textbook Rentals - Summer School Textbooks",1812]
["Textbook Rentals - Adult/Continuing Education Textbooks",1813]
["Textbook Rentals - Other (Describe & Itemize)",1819]
["Textbook Sales - Regular Textbooks",1821]
["Textbook Sales - Summer School",1822]
["Textbook Sales - Adult/Continuing Education",1823]
["Textbook Sales - Other (Describe & Itemize)",1829]
["Other Textbook Income (Describe & Itemize)",1890]
["Total Textbooks",null,{"$f":"SUM(C86:C94)","v":{"v":0,"d":"0 "}}]
["OTHER REVENUE FROM LOCAL SOURCES","1900"]
["Rentals",1910,{"v":0,"d":"0 "},{"v":45000,"d":"45,000 "}]
["Contributions and Donations from Private Sources",1920,{"v":0,"d":"0 "}]
["Impact Fees from Municipal or County Governments",1930,{"v":0,"d":"0 "},{"v":0,"d":"0 "}]
["Services Provided Other Districts",1940]
["Refund of Prior Years' Expenditures",1950,{"v":0,"d":"0 "}]
["Payments of Surplus Moneys from TIF Districts",1960,{"v":0,"d":"0 "}]
["Drivers' Education Fees",1970]
["Proceeds from Vendors' Contracts",1980]
["School Facility Occupation Tax Proceeds",1983]
["Payment from Other Districts",1991]
["Sale of Vocational Projects",1992]
["Other Local Fees (Describe & Itemize)",1993,{"v":0,"d":"0 "},{"v":0,"d":"0 "}]
["Other Local Revenues (Describe & Itemize)",1999,{"v":17000,"d":"17,000 "},{"v":0,"d":"0 "},{"v":0,"d":"0 "},{"$nulls":4},{"v":0,"d":"0 "}]
["Total Other Revenue from Local Sources",null,{"$f":"SUM(C97:C109)","v":{"v":17000,"d":"17,000 "}},{"$f":"SUM(D97:D109)","v":{"v":45000,"d":"45,000 "}},{"$f":"SUM(E97:E109)","v":{"v":0,"d":"0 "}},{"v":0,"d":"0 "},{"v":0,"d":"0 "},{"v":0,"d":"0 "},{"v":0,"d":"0 "},{"v":0,"d":"0 "},{"v":0,"d":"0 "}]
["Total Receipts/Revenues from Local Sources (without Student Activity Funds 1799)","1000",{"$f":"SUM(C12,C18,C40,C63,C67,C75,C83,C95,C110)","v":{"v":5003900,"d":"5,003,900 "}},{"v":247000,"d":"247,000 "},{"v":1695000,"d":"1,695,000 "},{"v":25000,"d":"25,000 "},{"v":390000,"d":"390,000 "},{"v":0,"d":"0 "},{"v":27000,"d":"27,000 "},{"v":21000,"d":"21,000 "},{"v":28000,"d":"28,000 "}]
["Total Receipts/Revenues from Local Sources (with Student Activity Funds 1799)",null,{"$f":"C12+C18+C40+C67+C75+C84+C95+C110","v":{"v":5003900,"d":"5,003,900 "}}]
["FLOW-THROUGH RECEIPTS/REVENUES FROM ONE                                               DISTRICT TO ANOTHER DISTRICT (2000)"]
["Flow-Through Revenue from State Sources",2100]
["Flow-Through Revenue from Federal Sources",2200]
["Other Flow-Through Revenue (Describe & Itemize)",2300]
["Total Flow-Through Receipts/Revenues From One District to Another District","2000",{"$f":"SUM(C114:C116)","v":{"v":0,"d":"0 "}},{"$f":"SUM(D114:D116)","v":{"v":0,"d":"0 "}},null,{"$f":"SUM(F114:F116)","v":{"v":0,"d":"0 "}},{"$f":"SUM(G114:G116)","v":{"v":0,"d":"0 "}}]
["RECEIPTS/REVENUES FROM STATE SOURCES (3000)"]
["UNRESTRICTED GRANTS-IN-AID (3001-3099)"]
["Evidence Based Funding Formula (Section 18-8.15)",3001,{"v":5500000,"d":"5,500,000 "},{"v":1300000,"d":"1,300,000 "},{"v":500000,"d":"500,000 "},{"v":200000,"d":"200,000 "},{"v":215000,"d":"215,000 "},{"v":0,"d":"0 "},null,{"v":200000,"d":"200,000 "},{"v":150000,"d":"150,000 "}]
["Reorganization Incentives (Accounts 3005-3021)",3005]
["Fast Growth District Grants","3030"]
["Other Unrestricted Grants-In-Aid From State Sources (Describe & Itemize)",3099,{"v":0,"d":"0 "}]
["Total Unrestricted Grants-In-Aid",null,{"$f":"SUM(C120:C123)","v":{"v":5500000,"d":"5,500,000 "}},{"v":1300000,"d":"1,300,000 "},{"v":500000,"d":"500,000 "},{"v":200000,"d":"200,000 "},{"v":215000,"d":"215,000 "},{"v":0,"d":"0 "},null,{"$f":"SUM(J120:J123)","v":{"v":200000,"d":"200,000 "}},{"$f":"SUM(K120:K123)","v":{"v":150000,"d":"150,000 "}}]
["RESTRICTED GRANTS-IN-AID (3100-3900)"]
["SPECIAL EDUCATION"]
["Special Education - Private Facility Tuition",3100,{"v":5000,"d":"5,000 "}]
["Special Education - Funding for Children Requiring Sp Ed Services",3105,{"v":0,"d":"0 "}]
["Special Education - Personnel ",3110,{"v":0,"d":"0 "}]
["Special Education - Orphanage - Individual",3120,{"v":40000,"d":"40,000 "}]
["Special Education - Orphanage - Summer Individual",3130,{"v":0,"d":"0 "}]
["Special Education - Summer School",3145,{"v":0,"d":"0 "}]
["Special Education - Other (Describe & Itemize)",3199]
["Total Special Education",null,{"$f":"SUM(C127:C133)","v":{"v":45000,"d":"45,000 "}},{"$f":"SUM(D127:D133)","v":{"v":0,"d":"0 "}},null,{"$f":"SUM(F127:F133)","v":{"v":0,"d":"0 "}}]
["CAREER AND TECHNICAL EDUCATION (CTE)"]
["CTE - Technical Education - Tech Prep",3200]
["CTE - Secondary Program Improvement (CTEI)",3220,{"v":0,"d":"0 "}]
["CTE - WECEP",3225]
["CTE - Agriculture Education",3235]
["CTE - Instructor Practicum",3240]
["CTE - Student Organizations",3270]
["CTE - Other (Describe & Itemize)",3299]
["Total Career and Technical Education",null,{"$f":"SUM(C136:C142)","v":{"v":0,"d":"0 "}},{"$f":"SUM(D136:D142)","v":{"v":0,"d":"0 "}},null,null,{"$f":"SUM(G136:G142)","v":{"v":0,"d":"0 "}}]
["BILINGUAL EDUCATION"]
["Bilingual Education - Downstate - TPI and TBE",3305,{"v":0,"d":"0 "}]
["Bilingual Education - Downstate - Transitional Bilingual Education",3310,{"v":0,"d":"0 "}]
["Total Bilingual Education",null,{"$f":"SUM(C145:C146)","v":{"v":0,"d":"0 "}},{"$nulls":3},{"$f":"SUM(G145:G146)","v":{"v":0,"d":"0 "}}]
["State Free Lunch & Breakfast",3360,{"v":13000,"d":"13,000 "}]
["School Breakfast Initiative",3365,{"v":0,"d":"0 "}]
["Driver Education",3370]
["Adult Education (from ICCB)",3410]
["Adult Education - Other (Describe & Itemize)",3499]
["TRANSPORTATION"]
["Transportation - Regular and Vocational",3500,{"$nulls":3},{"v":145000,"d":"145,000 "}]
["Transportation - Special Education",3510,{"$nulls":3},{"v":140000,"d":"140,000 "}]
["Transportation - Other (Describe & Itemize)",3599]
["Total Transportation",null,{"$f":"SUM(C154:C156)","v":{"v":0,"d":"0 "}},{"$f":"SUM(D154:D156)","v":{"v":0,"d":"0 "}},null,{"$f":"SUM(F154:F156)","v":{"v":285000,"d":"285,000 "}},{"$f":"SUM(G154:G156)","v":{"v":0,"d":"0 "}}]
["Learning Improvement - Change Grants",3610,{"v":0,"d":"0 "}]
["Scientific Literacy",3660]
["Truant Alternative/Optional Education",3695]
["Early Childhood - Block Grant",3705,{"v":329000,"d":"329,000 "}]
["Chicago General Education Block Grant",3766]
["Chicago Educational Services Block Grant",3767]
["School Safety & Educational Improvement Block Grant",3775,{"v":0,"d":"0 "}]
["Technology - Technology for Success",3780,{"v":0,"d":"0 "}]
["State Charter Schools",3815]
["Extended Learning Opportunities - Summer Bridges",3825,{"v":0,"d":"0 "},null,null,{"v":0,"d":"0 "}]
["Infrastructure Improvements - Planning/Construction",3920]
["School Infrastructure - Maintenance Projects",3925,null,{"v":50000,"d":"50,000 "},{"$nulls":6},{"v":0,"d":"0 "}]
["Other Restricted Revenue from State Sources (Describe & Itemize)",3999,{"v":170000,"d":"170,000 "},{"v":0,"d":"0 "}]
["Total Restricted Grants-In-Aid",null,{"$f":"SUM(C134,C143,C147:C152,C157:C170)","v":{"v":557000,"d":"557,000 "}},{"v":50000,"d":"50,000 "},{"v":0,"d":"0 "},{"v":285000,"d":"285,000 "},{"v":0,"d":"0 "},{"v":0,"d":"0 "},{"v":0,"d":"0 "},{"v":0,"d":"0 "},{"v":0,"d":"0 "}]
["Total Receipts/Revenues from State Sources",3000,{"$f":"SUM(C124,C171)","v":{"v":6057000,"d":"6,057,000 "}},{"v":1350000,"d":"1,350,000 "},{"v":500000,"d":"500,000 "},{"v":485000,"d":"485,000 "},{"v":215000,"d":"215,000 "},{"v":0,"d":"0 "},{"v":0,"d":"0 "},{"v":200000,"d":"200,000 "},{"v":150000,"d":"150,000 "}]
["RECEIPTS/REVENUES FROM FEDERAL SOURCES (4000)"]
["UNRESTRICTED GRANTS-IN-AID RECEIVED DIRECTLY FROM FEDERAL GOVT. (4001-4009)"]
["Federal Impact Aid",4001]
["Other Unrestricted Grants-In-Aid Received from Fed. Govt. (Describe & Itemize)",4009]
["Total Unrestricted Grants-In-Aid Received Directly from Fed Govt",null,{"$f":"SUM(C175:C176)","v":{"v":0,"d":"0 "}},{"$f":"SUM(D175:D176)","v":{"v":0,"d":"0 "}},{"v":0,"d":"0 "},{"v":0,"d":"0 "},{"v":0,"d":"0 "},{"v":0,"d":"0 "},{"v":0,"d":"0 "},{"v":0,"d":"0 "},{"v":0,"d":"0 "}]
["RESTRICTED GRANTS-IN-AID RECEIVED DIRECTLY FROM FEDERAL GOVT                     (4045-4090)"]
["Head Start",4045]
["Construction (Impact Aid)",4050]
["MAGNET",4060]
["Other Restricted Grants-In-Aid Received from Fed. Govt. (Describe & Itemize)",4090]
["Total Restricted Grants-In-Aid Received Directly  from Federal Govt.",null,{"$f":"SUM(C179:C182)","v":{"v":0,"d":"0 "}},{"$f":"SUM(D179:D182)","v":{"v":0,"d":"0 "}},null,{"$f":"SUM(F179:F182)","v":{"v":0,"d":"0 "}},{"$f":"SUM(G179:G182)","v":{"v":0,"d":"0 "}},{"$f":"SUM(H179:H182)","v":{"v":0,"d":"0 "}},null,null,{"$f":"SUM(K179:K182)","v":{"v":0,"d":"0 "}}]
["RESTRICTED GRANTS-IN-AID RECEIVED FROM FEDERAL                                                     GOVT. THRU THE STATE  (4100-4999)"]
["TITLE V"]
["Title V - Flexibility and Accountability",4100,{"v":0,"d":"0 "}]
["Title V - SEA Projects","4105"]
["Title V - Rural Education Initiative (REI)","4107",{"v":0,"d":"0 "}]
["Title V - Other (Describe & Itemize)","4199"]
["Total Title V",null,{"$f":"SUM(C186:C189)","v":{"v":0,"d":"0 "}},{"$f":"SUM(D186:D189)","v":{"v":0,"d":"0 "}},null,{"$f":"SUM(F186:F189)","v":{"v":0,"d":"0 "}},{"$f":"SUM(G186:G189)","v":{"v":0,"d":"0 "}}]
["FOOD SERVICE"]
["Breakfast Start-Up Expansion","4200"]
["National School Lunch Program",4210,{"v":480000,"d":"480,000 "}]
["Special Milk Program",4215,{"v":0,"d":"0 "}]
["School Breakfast Program",4220,{"v":140000,"d":"140,000 "}]
["Summer Food Service Admin/Program",4225,{"v":0,"d":"0 "}]
["Child and Adult Care Food Program",4226]
["Fresh Fruit and Vegetables",4240,{"v":0,"d":"0 "}]
["Food Service - Other (Describe & Itemize)",4299,{"v":0,"d":"0 "}]
["Total Food Service",null,{"$f":"SUM(C192:C199)","v":{"v":620000,"d":"620,000 "}},{"$nulls":3},{"$f":"SUM(G192:G199)","v":{"v":0,"d":"0 "}}]
["TITLE I"]
["Title I - Low Income",4300,{"v":540000,"d":"540,000 "},null,null,{"v":0,"d":"0 "}]
["Title I - Low Income - Neglected, Private",4305,{"v":0,"d":"0 "}]
["Title I - Migrant Education",4340]
["Title I - Other (Describe & Itemize)",4399]
["Total Title I",null,{"$f":"SUM(C202:C205)","v":{"v":540000,"d":"540,000 "}},{"$f":"SUM(D202:D205)","v":{"v":0,"d":"0 "}},null,{"$f":"SUM(F202:F205)","v":{"v":0,"d":"0 "}},{"$f":"SUM(G202:G205)","v":{"v":0,"d":"0 "}}]
["TITLE IV"]
["Title IV - Student Support & Academic Enrichment Grant",4400,{"v":37000,"d":"37,000 "}]
["Title IV - Part A − Student Support & Academic Enrichment Grants Safe and Drug Free Schools",4415]
["Title IV - 21st Century",4421]
["Title IV - Other (Describe & Itemize)",4499]
["Total Title IV",null,{"$f":"SUM(C208:C211)","v":{"v":37000,"d":"37,000 "}},{"$f":"SUM(D208:D211)","v":{"v":0,"d":"0 "}},null,{"$f":"SUM(F208:F211)","v":{"v":0,"d":"0 "}},{"$f":"SUM(G208:G211)","v":{"v":0,"d":"0 "}}]
["FEDERAL - SPECIAL EDUCATION"]
["Federal Special Education - Preschool Flow-Through","4600",{"v":25000,"d":"25,000 "}]
["Federal Special Education - Preschool Discretionary",4605]
["Federal Special Education - IDEA Flow Through",4620,{"v":230000,"d":"230,000 "}]
["Federal Special Education - IDEA Room & Board",4625,{"v":0,"d":"0 "}]
["Federal Special Education - IDEA Discretionary",4630]
["Federal Special Education - IDEA - Other (Describe & Itemize)",4699]
["Total Federal Special Education",null,{"$f":"SUM(C214:C219)","v":{"v":255000,"d":"255,000 "}},{"$f":"SUM(D214:D219)","v":{"v":0,"d":"0 "}},null,{"$f":"SUM(F214:F219)","v":{"v":0,"d":"0 "}},{"$f":"SUM(G214:G219)","v":{"v":0,"d":"0 "}}]
["CTE - PERKINS"]
["CTE - Perkins-Title IIIE Tech Prep",4770]
["CTE - Other (Describe & Itemize)",4799]
["Total CTE - Perkins",null,{"$f":"SUM(C222:C223)","v":{"v":0,"d":"0 "}},{"$f":"SUM(D222:D223)","v":{"v":0,"d":"0 "}},null,null,{"$f":"SUM(G222:G223)","v":{"v":0,"d":"0 "}}]
["Federal - Adult Education",4810]
["ARRA - General State Aid - Education Stabilization",4850,{"v":0,"d":"0 "},null,null,{"v":0,"d":"0 "},{"v":0,"d":"0 "}]
["ARRA - Title I - Low Income",4851,{"v":0,"d":"0 "}]
["ARRA - Title I - Neglected, Private",4852]
["ARRA - Title I - Delinquent, Private",4853]
["ARRA - Title I - School Improvement (Part A)",4854]
["ARRA - Title I - School Improvement (Section 1003g)",4855]
["ARRA - IDEA - Part B - Preschool",4856,{"v":0,"d":"0 "}]
["ARRA - IDEA - Part B - Flow-Through",4857,{"v":0,"d":"0 "}]
["ARRA - Title IID - Technology - Formula",4860]
["ARRA - Title IID - Technology - Competitive",4861,{"v":0,"d":"0 "}]
["ARRA - McKinney - Vento Homeless Education",4862]
["ARRA - Child Nutrition Equipment Assistance",4863]
["Impact Aid Formula Grants",4864]
["Impact Aid Competitive Grants",4865]
["Qualified Zone Academy Bond Tax Credits",4866]
["Qualified School Construction Bond Credits",4867,{"v":0,"d":"0 "}]
["Build America Bond Tax Credits",4868]
["Build America Bond Interest Reimbursement",4869,null,null,{"v":0,"d":"0 "}]
["ARRA - General State Aid - Other Government Services Stabilization",4870,{"v":0,"d":"0 "}]
["Other ARRA Funds - II",4871]
["Other ARRA Funds - III",4872]
["Other ARRA Funds - IV",4873]
["Other ARRA Funds - V",4874]
["ARRA - Early Childhood",4875]
["Other ARRA Funds - VII",4876]
["Other ARRA Funds - VIII",4877]
["Other ARRA Funds - IX",4878]
["Other ARRA Funds - X",4879]
["Other ARRA Funds - Ed Job Fund Program",4880,{"v":0,"d":"0 "}]
["Total Stimulus Programs",null,{"$f":"SUM(C226:C254)","v":{"v":0,"d":"0 "}},{"v":0,"d":"0 "},{"v":0,"d":"0 "},{"v":0,"d":"0 "},{"v":0,"d":"0 "},{"v":0,"d":"0 "},null,{"$f":"SUM(J226:J254)","v":{"v":0,"d":"0 "}},{"$f":"SUM(K226:K254)","v":{"v":0,"d":"0 "}}]
["    Race to the Top Program",4901]
["Race to the Top - Preschool Expansion Grant",4902]
["Title III - Instruction for English Learners & Immigrant Students",4905,{"v":0,"d":"0 "}]
["Title III - English Language Acquistion ",4909,{"v":12000,"d":"12,000 "}]
["McKinney Education for Homeless Children",4920]
["Title II - Eisenhower - Professional Development Formula",4930]
["Title II - Teacher Quality",4932,{"v":53000,"d":"53,000 "}]
["Title II - Part A − Supporting Effective Instruction − State Grants",4935,{"v":0,"d":"0 "}]
["Federal Charter Schools",4960]
["State Assessment Grants",4981]
["Grant for State Assessments and Related Activities ",4982]
["Medicaid Matching Funds - Administrative Outreach",4991,{"v":40000,"d":"40,000 "}]
["Medicaid Matching Funds - Fee-For-Service Program",4992,{"v":0,"d":"0 "}]
["Other Restricted Grants Received from Fed. Govt. thru State (Describe & Itemize)",4998,{"v":200000,"d":"200,000 "},{"v":0,"d":"0 "},{"$nulls":3},{"v":203000,"d":"203,000 "}]
["Total Restricted Grants-In-Aid Received from Federal Govt. Thru the State",null,{"$f":"SUM(C190,C200,C206,C212,C220,C224:C225,C255:C269)","v":{"v":1757000,"d":"1,757,000 "}},{"$f":"SUM(D190,D200,D206,D212,D220,D224:D225,D255:D269)","v":{"v":0,"d":"0 "}},{"$f":"SUM(E255:E257)","v":{"v":0,"d":"0 "}},{"$f":"SUM(F190,F200,F206,F212,F220,F224:F225,F255:F269)","v":{"v":0,"d":"0 "}},{"$f":"SUM(G190,G200,G206,G212,G220,G224:G225,G255:G269)","v":{"v":0,"d":"0 "}},{"$f":"SUM(H190,H200,H206,H212,H220,H224:H225,H255:H269)","v":{"v":203000,"d":"203,000 "}},null,{"$f":"SUM(J255:J257)","v":{"v":0,"d":"0 "}},{"$f":"SUM(K190,K200,K206,K212,K220,K224:K225,K255:K269)","v":{"v":0,"d":"0 "}}]
["TOTAL RECEIPTS/REVENUES FROM FEDERAL SOURCES",4000,{"$f":"SUM(C177,C183,C270)","v":{"v":1757000,"d":"1,757,000 "}},{"v":0,"d":"0 "},{"v":0,"d":"0 "},{"v":0,"d":"0 "},{"v":0,"d":"0 "},{"v":203000,"d":"203,000 "},{"v":0,"d":"0 "},{"v":0,"d":"0 "},{"v":0,"d":"0 "}]
["TOTAL DIRECT RECEIPTS/REVENUES (without Student Activity Funds 1799)",null,{"$f":"SUM(C111,C117,C172,C271)","v":{"v":12817900,"d":"12,817,900 "}},{"$f":"SUM(D111,D117,D172,D271)","v":{"v":1597000,"d":"1,597,000 "}},{"$f":"SUM(E111,E117,E172,E271)","v":{"v":2195000,"d":"2,195,000 "}},{"$f":"SUM(F111,F117,F172,F271)","v":{"v":510000,"d":"510,000 "}},{"$f":"SUM(G111,G117,G172,G271)","v":{"v":605000,"d":"605,000 "}},{"v":203000,"d":"203,000 "},{"$f":"SUM(I111,I117,I172,I271)","v":{"v":27000,"d":"27,000 "}},{"v":221000,"d":"221,000 "},{"v":178000,"d":"178,000 "}]
["TOTAL DIRECT RECEIPTS/REVENUES (with Student Activity Funds 1799)",null,{"$f":"SUM(C112,C117,C172,C271)","v":{"v":12817900,"d":"12,817,900 "}}]

{"sheet":"EstExp 12-20","index":4,"n_rows":454,"n_cols":11,"rows_kept":454,"merged":[[0,0,1,0],[178,0,178,1],[213,0,213,1],[291,0,291,1],[292,0,292,1],[427,0,427,1],[428,0,428,1],[452,0,452,1],[453,0,453,1]]}
["Description:  Enter Whole Numbers Only",null,"(100)","(200)","(300)","(400)","(500)","(600)","(700)","(800)","(900)"]
[null,"Funct #","Salaries","Employee Benefits","Purchased Services","Supplies & Materials","Capital Outlay","Other Objects","Non-Capitalized Equipment","Termination Benefits","Total"]
["10 - EDUCATIONAL FUND (ED)"]
["INSTRUCTION (ED)","1000"]
["Regular Programs",1100,{"v":3754899,"d":"3,754,899 "},{"v":510650,"d":"510,650 "},{"v":178400,"d":"178,400 "},{"v":156500,"d":"156,500 "},{"v":125000,"d":"125,000 "},{"v":0,"d":"0 "},null,null,{"$f":"SUM(C5:J5)","v":{"v":4725449,"d":"4,725,449 "}}]
["Tuition Payment to Charter Schools",1115,{"$nulls":8},{"$f":"SUM(C6:J6)","v":{"v":0,"d":"0 "}}]
["Pre-K Programs",1125,{"$f":"200000+42388","v":{"v":242388,"d":"242,388 "}},{"v":36200,"d":"36,200 "},{"v":7000,"d":"7,000 "},{"v":18000,"d":"18,000 "},{"v":0,"d":"0 "},{"v":0,"d":"0 "},{"v":0,"d":"0 "},null,{"$f":"SUM(C7:J7)","v":{"v":303588,"d":"303,588 "}}]
["Special Education Programs (Functions 1200 - 1220)",1200,{"v":1000000,"d":"1,000,000 "},{"v":176500,"d":"176,500 "},{"v":448000,"d":"448,000 "},{"v":11000,"d":"11,000 "},{"v":3000,"d":"3,000 "},{"v":0,"d":"0 "},null,null,{"v":1638500,"d":"1,638,500 "}]
["Special Education Programs Pre-K",1225,null,null,{"v":0,"d":"0 "},{"$nulls":5},{"v":0,"d":"0 "}]
["Remedial and Supplemental Programs K-12",1250,null,{"v":0,"d":"0 "},{"$nulls":6},{"v":0,"d":"0 "}]
["Remedial and Supplemental Programs Pre-K",1275,{"$nulls":8},{"v":0,"d":"0 "}]
["Adult/Continuing Education Programs",1300,{"$nulls":8},{"v":0,"d":"0 "}]
["CTE Programs",1400,{"$nulls":3},{"v":0,"d":"0 "},{"$nulls":4},{"v":0,"d":"0 "}]
["Interscholastic Programs",1500,{"v":235000,"d":"235,000 "},{"v":12100,"d":"12,100 "},{"v":21000,"d":"21,000 "},{"v":15000,"d":"15,000 "},null,{"v":13000,"d":"13,000 "},null,null,{"v":296100,"d":"296,100 "}]
["Summer School Programs",1600,{"v":109000,"d":"109,000 "},{"v":9000,"d":"9,000 "},{"v":0,"d":"0 "},{"v":0,"d":"0 "},{"$nulls":4},{"v":118000,"d":"118,000 "}]
["Gifted Programs",1650,{"$nulls":8},{"v":0,"d":"0 "}]
["Driver's Education Programs",1700,{"$nulls":8},{"v":0,"d":"0 "}]
["Bilingual Programs",1800,{"v":115000,"d":"115,000 "},{"v":36500,"d":"36,500 "},{"v":0,"d":"0 "},{"v":0,"d":"0 "},{"v":0,"d":"0 "},{"v":0,"d":"0 "},null,null,{"v":151500,"d":"151,500 "}]
["Truant Alternative & Optional Programs",1900,{"$nulls":8},{"v":0,"d":"0 "}]
["Pre-K Programs - Private Tuition",1910,{"$nulls":8},{"v":0,"d":"0 "}]
["Regular K-12 Programs  Private Tuition",1911,{"$nulls":8},{"v":0,"d":"0 "}]
["Special Education Programs K-12 Private Tuition",1912,{"$nulls":8},{"v":0,"d":"0 "}]
["Special Education Programs Pre-K Tuition",1913,{"$nulls":8},{"v":0,"d":"0 "}]
["Remedial/Supplemental Programs K-12 Private Tuition",1914,{"$nulls":8},{"v":0,"d":"0 "}]
["Remedial/Supplemental Programs Pre-K Private Tuition",1915,{"$nulls":8},{"v":0,"d":"0 "}]
["Adult/Continuing Education Programs Private Tuition",1916,{"$nulls":8},{"v":0,"d":"0 "}]
["CTE Programs Private Tuition",1917,{"$nulls":8},{"v":0,"d":"0 "}]
["Interscholastic Programs Private Tuition",1918,{"$nulls":8},{"v":0,"d":"0 "}]
["Summer School Programs Private Tuition",1919,{"$nulls":8},{"v":0,"d":"0 "}]
["Gifted Programs Private Tuition",1920,{"$nulls":8},{"v":0,"d":"0 "}]
["Bilingual Programs Private Tuition",1921,{"$nulls":8},{"v":0,"d":"0 "}]
["Truants Alternative/Opt Ed Programs Private Tuition",1922,{"$nulls":8},{"v":0,"d":"0 "}]
["Student Activity Fund Expenditures ",1999,{"$nulls":8},{"$f":"SUM(C33:J33)","v":{"v":0,"d":"0 "}}]
["Total Instruction14 (Without Student Activity Funds 1999)",1000,{"$f":"SUM(C5:C32)","v":{"v":5456287,"d":"5,456,287 "}},{"$f":"SUM(D5:D32)","v":{"v":780950,"d":"780,950 "}},{"v":654400,"d":"654,400 "},{"v":200500,"d":"200,500 "},{"v":128000,"d":"128,000 "},{"$f":"SUM(H5:H32)","v":{"v":13000,"d":"13,000 "}},{"v":0,"d":"0 "},{"v":0,"d":"0 "},{"v":7233137,"d":"7,233,137 "}]
["Total Instruction14 (With Student Activity Funds 1999)",1000,{"$f":"SUM(C5:C33)","v":{"v":5456287,"d":"5,456,287 "}},{"$f":"SUM(D5:D33)","v":{"v":780950,"d":"780,950 "}},{"v":654400,"d":"654,400 "},{"v":200500,"d":"200,500 "},{"v":128000,"d":"128,000 "},{"$f":"SUM(H5:H33)","v":{"v":13000,"d":"13,000 "}},{"v":0,"d":"0 "},{"v":0,"d":"0 "},{"$f":"SUM(C35:J35)","v":{"v":7233137,"d":"7,233,137 "}}]
["SUPPORT SERVICES (ED)",2000]
["Support Services - Pupil",2100]
["Attendance & Social Work Services",2110,{"v":130000,"d":"130,000 "},{"v":20000,"d":"20,000 "},{"v":2000,"d":"2,000 "},{"v":2000,"d":"2,000 "},{"v":0,"d":"0 "},{"$nulls":3},{"$f":"SUM(C38:J38)","v":{"v":154000,"d":"154,000 "}}]
["Guidance Services",2120,{"v":0,"d":"0 "},{"v":0,"d":"0 "},{"v":0,"d":"0 "},{"$nulls":5},{"v":0,"d":"0 "}]
["Health Services",2130,{"v":30000,"d":"30,000 "},{"v":8000,"d":"8,000 "},{"v":350000,"d":"350,000 "},{"v":5000,"d":"5,000 "},{"v":0,"d":"0 "},{"$nulls":3},{"v":393000,"d":"393,000 "}]
["Psychological Services",2140,{"v":0,"d":"0 "},{"v":0,"d":"0 "},{"v":42000,"d":"42,000 "},{"v":0,"d":"0 "},{"v":0,"d":"0 "},{"$nulls":3},{"v":42000,"d":"42,000 "}]
["Speech Pathology & Audiology Services",2150,{"v":0,"d":"0 "},{"v":0,"d":"0 "},{"v":29000,"d":"29,000 "},{"v":0,"d":"0 "},{"$nulls":4},{"v":29000,"d":"29,000 "}]
["Other Support Services - Pupils (Describe & Itemize)",2190,{"v":0,"d":"0 "},{"v":0,"d":"0 "},{"$nulls":6},{"v":0,"d":"0 "}]
["Total Support Services - Pupil",2100,{"$f":"SUM(C38:C43)","v":{"v":160000,"d":"160,000 "}},{"$f":"SUM(D38:D43)","v":{"v":28000,"d":"28,000 "}},{"v":423000,"d":"423,000 "},{"v":7000,"d":"7,000 "},{"v":0,"d":"0 "},{"v":0,"d":"0 "},{"v":0,"d":"0 "},{"v":0,"d":"0 "},{"v":618000,"d":"618,000 "}]
["Support Services - Instructional Staff",2200]
["Improvement of Instruction Services",2210,{"v":182500,"d":"182,500 "},{"v":85500,"d":"85,500 "},{"v":229500,"d":"229,500 "},{"v":13500,"d":"13,500 "},{"v":0,"d":"0 "},{"v":0,"d":"0 "},null,null,{"$f":"SUM(C46:J46)","v":{"v":511000,"d":"511,000 "}}]
["Educational Media Services",2220,{"v":27500,"d":"27,500 "},{"v":2000,"d":"2,000 "},{"v":0,"d":"0 "},{"v":13000,"d":"13,000 "},{"v":0,"d":"0 "},{"v":0,"d":"0 "},null,null,{"$f":"SUM(C47:J47)","v":{"v":42500,"d":"42,500 "}}]
["Assessment & Testing",2230,null,null,{"v":2000,"d":"2,000 "},{"v":0,"d":"0 "},{"v":0,"d":"0 "},{"$nulls":3},{"$f":"SUM(C48:J48)","v":{"v":2000,"d":"2,000 "}}]
["Total Support Services - Instructional Staff",2200,{"$f":"SUM(C46:C48)","v":{"v":210000,"d":"210,000 "}},{"$f":"SUM(D46:D48)","v":{"v":87500,"d":"87,500 "}},{"v":231500,"d":"231,500 "},{"v":26500,"d":"26,500 "},{"v":0,"d":"0 "},{"v":0,"d":"0 "},{"v":0,"d":"0 "},{"v":0,"d":"0 "},{"v":555500,"d":"555,500 "}]
["Support Services - General Administration",2300]
["Board of Education Services",2310,{"v":500,"d":"500 "},{"v":3000,"d":"3,000 "},{"v":217500,"d":"217,500 "},{"v":33500,"d":"33,500 "},{"v":0,"d":"0 "},{"v":10000,"d":"10,000 "},null,null,{"$f":"SUM(C51:J51)","v":{"v":264500,"d":"264,500 "}}]
["Executive Administration Services",2320,{"v":260000,"d":"260,000 "},{"v":45000,"d":"45,000 "},{"v":29000,"d":"29,000 "},{"v":12500,"d":"12,500 "},{"v":0,"d":"0 "},{"v":6000,"d":"6,000 "},null,null,{"$f":"SUM(C52:J52)","v":{"v":352500,"d":"352,500 "}}]
["Special Area Administration Services",2330,{"v":267819,"d":"267,819 "},{"v":90000,"d":"90,000 "},{"v":0,"d":"0 "},{"v":500,"d":"500 "},{"v":0,"d":"0 "},{"v":0,"d":"0 "},null,null,{"$f":"SUM(C53:J53)","v":{"v":358319,"d":"358,319 "}}]
["Tort Immunity Services","2361, 2365",{"v":0,"d":"0 "},{"v":0,"d":"0 "},{"$nulls":6},{"$f":"SUM(C54:J54)","v":{"v":0,"d":"0 "}}]
["Total Support Services - General Administration",2300,{"$f":"SUM(C51:C54)","v":{"v":528319,"d":"528,319 "}},{"$f":"SUM(D51:D54)","v":{"v":138000,"d":"138,000 "}},{"v":246500,"d":"246,500 "},{"v":46500,"d":"46,500 "},{"v":0,"d":"0 "},{"v":16000,"d":"16,000 "},{"v":0,"d":"0 "},{"v":0,"d":"0 "},{"v":975319,"d":"975,319 "}]
["Support Services - School Administration",2400]
["Office of the Principal Services",2410,{"v":775000,"d":"775,000 "},{"v":200000,"d":"200,000 "},{"v":0,"d":"0 "},{"v":20000,"d":"20,000 "},{"v":0,"d":"0 "},{"v":8000,"d":"8,000 "},null,null,{"$f":"SUM(C57:J57)","v":{"v":1003000,"d":"1,003,000 "}}]
["Other Support Services - School Administration (Describe & Itemize)",2490,{"$nulls":8},{"$f":"SUM(C58:J58)","v":{"v":0,"d":"0 "}}]
["Total Support Services - School Administration",2400,{"$f":"SUM(C57:C58)","v":{"v":775000,"d":"775,000 "}},{"$f":"SUM(D57:D58)","v":{"v":200000,"d":"200,000 "}},{"v":0,"d":"0 "},{"v":20000,"d":"20,000 "},{"v":0,"d":"0 "},{"v":8000,"d":"8,000 "},{"v":0,"d":"0 "},{"v":0,"d":"0 "},{"$f":"SUM(K57:K58)","v":{"v":1003000,"d":"1,003,000 "}}]
["Support Services - Business",2500]
["Direction of Business Support Services",2510,{"v":100000,"d":"100,000 "},{"v":35000,"d":"35,000 "},{"v":37000,"d":"37,000 "},{"v":8000,"d":"8,000 "},{"v":0,"d":"0 "},{"v":2000,"d":"2,000 "},null,null,{"$f":"SUM(C61:J61)","v":{"v":182000,"d":"182,000 "}}]
["Fiscal Services",2520,{"v":155000,"d":"155,000 "},{"v":25000,"d":"25,000 "},{"v":2000,"d":"2,000 "},{"v":20000,"d":"20,000 "},{"v":0,"d":"0 "},{"v":0,"d":"0 "},null,null,{"v":202000,"d":"202,000 "}]
["Operation & Maintenance of Plant Services",2540,{"v":0,"d":"0 "},{"v":0,"d":"0 "},{"v":99000,"d":"99,000 "},null,{"v":0,"d":"0 "},{"v":0,"d":"0 "},null,null,{"v":99000,"d":"99,000 "}]
["Pupil Transportation Services",2550,null,{"v":0,"d":"0 "},{"v":0,"d":"0 "},{"$nulls":5},{"v":0,"d":"0 "}]
["Food Services",2560,{"v":386000,"d":"386,000 "},{"v":40000,"d":"40,000 "},{"v":31000,"d":"31,000 "},{"v":235000,"d":"235,000 "},{"v":0,"d":"0 "},{"v":500,"d":"500 "},null,null,{"v":692500,"d":"692,500 "}]
["Internal Services",2570,null,null,{"v":0,"d":"0 "},{"$nulls":5},{"v":0,"d":"0 "}]
["Total Support Services - Business",2500,{"$f":"SUM(C61:C66)","v":{"v":641000,"d":"641,000 "}},{"$f":"SUM(D61:D66)","v":{"v":100000,"d":"100,000 "}},{"v":169000,"d":"169,000 "},{"v":263000,"d":"263,000 "},{"v":0,"d":"0 "},{"v":2500,"d":"2,500 "},{"v":0,"d":"0 "},{"v":0,"d":"0 "},{"v":1175500,"d":"1,175,500 "}]
["Support Services - Central","2600"]
["Direction of Central Support Services",2610,{"$nulls":8},{"$f":"SUM(C69:J69)","v":{"v":0,"d":"0 "}}]
["Planning, Research, Development & Evaluation Services",2620,{"$nulls":8},{"$f":"SUM(C70:J70)","v":{"v":0,"d":"0 "}}]
["Information Services",2630,{"v":329000,"d":"329,000 "},{"v":67000,"d":"67,000 "},{"v":189000,"d":"189,000 "},{"v":187000,"d":"187,000 "},{"v":42500,"d":"42,500 "},{"v":1500,"d":"1,500 "},null,null,{"v":816000,"d":"816,000 "}]
["Staff Services",2640,{"v":2500,"d":"2,500 "},{"v":0,"d":"0 "},{"v":5000,"d":"5,000 "},{"v":20000,"d":"20,000 "},{"$nulls":4},{"v":27500,"d":"27,500 "}]
["Data Processing Services",2660,{"$nulls":8},{"v":0,"d":"0 "}]
["Total Support Services - Central",2600,{"$f":"SUM(C69:C73)","v":{"v":331500,"d":"331,500 "}},{"$f":"SUM(D69:D73)","v":{"v":67000,"d":"67,000 "}},{"v":194000,"d":"194,000 "},{"v":207000,"d":"207,000 "},{"v":42500,"d":"42,500 "},{"v":1500,"d":"1,500 "},{"v":0,"d":"0 "},{"v":0,"d":"0 "},{"$f":"SUM(K69:K73)","v":{"v":843500,"d":"843,500 "}}]
["Other Support Services - Misc. (Describe & Itemize)",2900,{"v":70000,"d":"70,000 "},{"v":5000,"d":"5,000 "},{"v":50000,"d":"50,000 "},{"v":0,"d":"0 "},{"$nulls":4},{"v":125000,"d":"125,000 "}]
["Total Support Services",2000,{"$f":"SUM(C44,C49,C55,C59,C67,C74,C75)","v":{"v":2715819,"d":"2,715,819 "}},{"$f":"SUM(D44,D49,D55,D59,D67,D74,D75)","v":{"v":625500,"d":"625,500 "}},{"v":1314000,"d":"1,314,000 "},{"v":570000,"d":"570,000 "},{"v":42500,"d":"42,500 "},{"v":28000,"d":"28,000 "},{"v":0,"d":"0 "},{"v":0,"d":"0 "},{"v":5295819,"d":"5,295,819 "}]
["COMMUNITY SERVICES (ED)",3000,{"v":185500,"d":"185,500 "},{"v":37000,"d":"37,000 "},{"v":60000,"d":"60,000 "},{"v":7500,"d":"7,500 "},{"v":25000,"d":"25,000 "},{"v":0,"d":"0 "},null,null,{"v":315000,"d":"315,000 "}]
["PAYMENTS TO OTHER DIST & GOVT UNITS (ED)",4000]
["Payments to Other Dist & Govt Units (In-State)",4100]
["Payments for Regular Programs",4110,{"$nulls":8},{"$f":"SUM(C80:J80)","v":{"v":0,"d":"0 "}}]
["Payments for Special Education Programs",4120,{"$nulls":5},{"v":50000,"d":"50,000 "},null,null,{"v":50000,"d":"50,000 "}]
["Payments for Adult/Continuing Education Programs",4130,{"$nulls":8},{"v":0,"d":"0 "}]
["Payments for CTE Programs",4140,{"$nulls":8},{"v":0,"d":"0 "}]
["Payments for Community College Programs",4170,{"$nulls":8},{"v":0,"d":"0 "}]
["Other Payments to In-State Govt Units - Programs (Describe & Itemize)",4190,{"$nulls":5},{"v":110000,"d":"110,000 "},null,null,{"v":110000,"d":"110,000 "}]
["Total Payments to Other Dist & Govt Units (In-State)",4100,null,null,{"$f":"SUM(E80:E85)","v":{"v":0,"d":"0 "}},null,null,{"$f":"SUM(H80:H85)","v":{"v":160000,"d":"160,000 "}},null,null,{"$f":"SUM(K80:K85)","v":{"v":160000,"d":"160,000 "}}]
["Payments for Regular Programs - Tuition",4210,{"$nulls":8},{"$f":"SUM(C87:J87)","v":{"v":0,"d":"0 "}}]
["Payments for Special Education Programs - Tuition",4220,{"$nulls":5},{"v":600000,"d":"600,000 "},null,null,{"$f":"SUM(C88:J88)","v":{"v":600000,"d":"600,000 "}}]
["Payments for Adult/Continuing Education Programs - Tuition",4230,{"$nulls":8},{"v":0,"d":"0 "}]
["Payments for CTE Programs - Tuition",4240,{"$nulls":8},{"v":0,"d":"0 "}]
["Payments for Community College Programs - Tuition",4270,{"$nulls":8},{"v":0,"d":"0 "}]
["Payments for Other Programs - Tuition",4280,{"$nulls":5},{"v":130000,"d":"130,000 "},null,null,{"v":130000,"d":"130,000 "}]
["Other Payments to In-State Govt Units - Tuition (Describe & Itemize)",4290,{"$nulls":5},{"v":0,"d":"0 "},null,null,{"v":0,"d":"0 "}]
["Total Payments to Other Dist & Govt Units - Tuition (In State)",4200,{"$nulls":5},{"$f":"SUM(H87:H93)","v":{"v":730000,"d":"730,000 "}},null,null,{"$f":"SUM(K87:K93)","v":{"v":730000,"d":"730,000 "}}]
["Payments for Regular Programs - Transfers",4310,{"$nulls":8},{"v":0,"d":"0 "}]
["Payments for Special Education Programs - Transfers",4320,{"$nulls":8},{"v":0,"d":"0 "}]
["Payments for Adult/Continuing Ed Programs - Transfers",4330,{"$nulls":8},{"v":0,"d":"0 "}]
["Payments for CTE Programs - Transfers",4340,{"$nulls":8},{"v":0,"d":"0 "}]
["Payments for Community College Program - Transfers",4370,{"$nulls":8},{"v":0,"d":"0 "}]
["Payments for Other Programs - Transfers",4380,{"$nulls":8},{"v":0,"d":"0 "}]
["Other Payments to In-State Govt Units - Transfers (Describe & Itemize)",4390,{"$nulls":8},{"v":0,"d":"0 "}]
["Total Payments to Other Dist & Govt Units-Transfers (In State)",4300,null,null,{"$f":"SUM(E95:E101)","v":{"v":0,"d":"0 "}},null,null,{"$f":"SUM(H95:H101)","v":{"v":0,"d":"0 "}},null,null,{"$f":"SUM(K95:K101)","v":{"v":0,"d":"0 "}}]
["Payments to Other Dist & Govt Units (Out of State)",4400,{"$nulls":8},{"$f":"SUM(C103:J103)","v":{"v":0,"d":"0 "}}]
["Total Payments to Other Dist & Govt Units",4000,null,null,{"$f":"SUM(E86,E94,E102,E103)","v":{"v":0,"d":"0 "}},null,null,{"$f":"SUM(H86,H94,H102,H103)","v":{"v":890000,"d":"890,000 "}},null,null,{"$f":"SUM(K86,K94,K102,K103)","v":{"v":890000,"d":"890,000 "}}]
["DEBT SERVICE (ED)",5000]
["Debt Service - Interest on Short-Term Debt",5100]
["Tax Anticipation Warrants",5110,{"$nulls":8},{"$f":"SUM(C107:J107)","v":{"v":0,"d":"0 "}}]
["Tax Anticipation Notes",5120,{"$nulls":8},{"$f":"SUM(C108:J108)","v":{"v":0,"d":"0 "}}]
["Corporate Personal Property Repl Tax Anticipated Notes",5130,{"$nulls":8},{"$f":"SUM(C109:J109)","v":{"v":0,"d":"0 "}}]
["State Aid Anticipation Certificates",5140,{"$nulls":8},{"$f":"SUM(C110:J110)","v":{"v":0,"d":"0 "}}]
["Other Interest on Short-Term Debt (Describe & Itemize)",5150,{"$nulls":8},{"$f":"SUM(C111:J111)","v":{"v":0,"d":"0 "}}]
["Total Debt Service - Interest on Short-Term Debt",5100,{"$nulls":5},{"$f":"SUM(H107:H111)","v":{"v":0,"d":"0 "}},null,null,{"$f":"SUM(K107:K111)","v":{"v":0,"d":"0 "}}]
["Debt Service - Interest on Long-Term Debt",5200,{"$nulls":8},{"$f":"H113","v":{"v":0,"d":"0 "}}]
["Total Debt Service",5000,{"$nulls":5},{"$f":"SUM(H112:H113)","v":{"v":0,"d":"0 "}},null,null,{"$f":"SUM(K112:K113)","v":{"v":0,"d":"0 "}}]
["PROVISION FOR CONTINGENCIES (ED)",6000,{"$nulls":8},{"$f":"SUM(C115:J115)","v":{"v":0,"d":"0 "}}]
["Total Direct Disbursements/Expenditures (without Student Activity Funds (1999)",null,{"$f":"SUM(C34,C76,C77,C104,C114,C115,)","v":{"v":8357606,"d":"8,357,606 "}},{"$f":"SUM(D34,D76,D77,D104,D114,D115,)","v":{"v":1443450,"d":"1,443,450 "}},{"v":2028400,"d":"2,028,400 "},{"v":778000,"d":"778,000 "},{"v":195500,"d":"195,500 "},{"v":931000,"d":"931,000 "},{"v":0,"d":"0 "},{"v":0,"d":"0 "},{"v":13733956,"d":"13,733,956 "}]
["Total Direct Disbursements/Expenditures (with Student Activity Funds (1999)",null,{"$f":"SUM(C35,C76,C77,C104,C114,C115,)","v":{"v":8357606,"d":"8,357,606 "}},{"$f":"SUM(D35,D76,D77,D104,D114,D115,)","v":{"v":1443450,"d":"1,443,450 "}},{"$f":"SUM(E35,E76,E77,E104,E114,E115,)","v":{"v":2028400,"d":"2,028,400 "}},{"v":778000,"d":"778,000 "},{"v":195500,"d":"195,500 "},{"v":931000,"d":"931,000 "},{"v":0,"d":"0 "},{"v":0,"d":"0 "},{"v":13733956,"d":"13,733,956 "}]
["Excess (Deficiency) of Receipts/Revenues Over Disbursements/Expenditures (without Student Activity Funds 1999)",{"$nulls":9},{"$f":"'EstRev 6-11'!C272-'EstExp 12-20'!K116","v":{"v":-916056,"d":"(916,056)"}}]
["Excess (Deficiency) of Receipts/Revenues Over Disbursements/Expenditures (with Student Activity Funds 1999)",{"$nulls":9},{"$f":"'EstRev 6-11'!C273-'EstExp 12-20'!K117","v":{"v":-916056,"d":"(916,056)"}}]
[]
["20 - OPERATIONS AND MAINTENANCE FUND (O&M)"]
["SUPPORT SERVICES (O&M)","2000"]
["Support Services - Pupil",2100]
["Other Support Services - Pupils (Describe & Itemize)",2190,{"$nulls":8},{"$f":"SUM(C124:J124)","v":{"v":0,"d":"0 "}}]
["Support Services - Business",2500]
["Direction of Business Support Services",2510,{"$nulls":8},{"$f":"SUM(C126:J126)","v":{"v":0,"d":"0 "}}]
["Facilities Acquisition & Construction Services",2530,null,null,{"v":0,"d":"0 "},null,{"v":0,"d":"0 "},{"$nulls":3},{"$f":"SUM(C127:J127)","v":{"v":0,"d":"0 "}}]
["Operation & Maintenance of Plant Services",2540,{"v":818000,"d":"818,000 "},{"v":85000,"d":"85,000 "},{"v":209500,"d":"209,500 "},{"v":442000,"d":"442,000 "},{"v":10000,"d":"10,000 "},{"v":0,"d":"0 "},{"v":0,"d":"0 "},null,{"$f":"SUM(C128:J128)","v":{"v":1564500,"d":"1,564,500 "}}]
["Pupil Transportation Services",2550,{"$nulls":8},{"$f":"SUM(C129:J129)","v":{"v":0,"d":"0 "}}]
["Food Services",2560,{"$nulls":8},{"$f":"SUM(C130:J130)","v":{"v":0,"d":"0 "}}]
["Total Support Services - Business",2500,{"$f":"SUM(C126:C129)","v":{"v":818000,"d":"818,000 "}},{"$f":"SUM(D126:D129)","v":{"v":85000,"d":"85,000 "}},{"$f":"SUM(E126:E130)","v":{"v":209500,"d":"209,500 "}},{"v":442000,"d":"442,000 "},{"$f":"SUM(G126:G130)","v":{"v":10000,"d":"10,000 "}},{"$f":"SUM(H126:H130)","v":{"v":0,"d":"0 "}},{"v":0,"d":"0 "},{"v":0,"d":"0 "},{"v":1564500,"d":"1,564,500 "}]
["Other Support Services - Misc. (Describe & Itemize)",2900,{"$nulls":8},{"$f":"SUM(C132:J132)","v":{"v":0,"d":"0 "}}]
["Total Support Services",2000,{"$f":"SUM(C124,C131,C132)","v":{"v":818000,"d":"818,000 "}},{"$f":"SUM(D124,D131,D132)","v":{"v":85000,"d":"85,000 "}},{"v":209500,"d":"209,500 "},{"v":442000,"d":"442,000 "},{"$f":"SUM(G124,G131,G132)","v":{"v":10000,"d":"10,000 "}},{"$f":"SUM(H124,H131,H132)","v":{"v":0,"d":"0 "}},{"v":0,"d":"0 "},{"v":0,"d":"0 "},{"v":1564500,"d":"1,564,500 "}]
["COMMUNITY SERVICES (O&M)",3000,null,null,{"v":0,"d":"0 "},{"$nulls":5},{"$f":"SUM(C134:J134)","v":{"v":0,"d":"0 "}}]
["PAYMENTS TO OTHER DIST & GOVT UNITS (O&M)",4000]
["Payments to Other Dist & Govt Units (In-State)",4100]
["Payments for Regular Programs",4110,{"$nulls":8},{"$f":"SUM(E137,H137)","v":{"v":0,"d":"0 "}}]
["Payments for Special Education Programs",4120,{"$nulls":8},{"$f":"SUM(C138:J138)","v":{"v":0,"d":"0 "}}]
["Payments for CTE Program",4140,{"$nulls":8},{"$f":"SUM(C139:J139)","v":{"v":0,"d":"0 "}}]
["Other Payments to In-State Govt Units - Programs (Describe & Itemize)",4190,{"$nulls":8},{"$f":"SUM(C140:J140)","v":{"v":0,"d":"0 "}}]
["Total Payments to Other Dist & Govt Units (In-State)",4100,null,null,{"$f":"SUM(E137:E140)","v":{"v":0,"d":"0 "}},null,null,{"$f":"SUM(H137:H140)","v":{"v":0,"d":"0 "}},null,null,{"$f":"SUM(K137:K140)","v":{"v":0,"d":"0 "}}]
["Payments to Other Dist & Govt Units (Out of State) 14",4400,{"$nulls":8},{"$f":"SUM(C142:J142)","v":{"v":0,"d":"0 "}}]
["Total Payments to Other Dist & Govt Unit",4000,null,null,{"$f":"SUM(E141:E142)","v":{"v":0,"d":"0 "}},null,null,{"$f":"SUM(H141:H142)","v":{"v":0,"d":"0 "}},null,null,{"$f":"SUM(K141:K142)","v":{"v":0,"d":"0 "}}]
["DEBT SERVICE (O&M)",5000]
["Debt Service - Interest on Short-Term Debt",5100]
["Tax Anticipation Warrants",5110,{"$nulls":8},{"$f":"SUM(C146:J146)","v":{"v":0,"d":"0 "}}]
["Tax Anticipation Notes",5120,{"$nulls":8},{"$f":"SUM(C147:J147)","v":{"v":0,"d":"0 "}}]
["Corporate Personal Prop Repl Tax Anticipated Notes",5130,{"$nulls":8},{"$f":"SUM(C148:J148)","v":{"v":0,"d":"0 "}}]
["State Aid Anticipation Certificates",5140,{"$nulls":8},{"$f":"SUM(C149:J149)","v":{"v":0,"d":"0 "}}]
["Other Interest on Short-Term Debt (Describe & Itemize)",5150,{"$nulls":8},{"$f":"SUM(C150:J150)","v":{"v":0,"d":"0 "}}]
["Total Debt Service - Interest on Short-Term Debt",5100,{"$nulls":5},{"$f":"SUM(H146:H150)","v":{"v":0,"d":"0 "}},null,null,{"$f":"SUM(K146:K150)","v":{"v":0,"d":"0 "}}]
["Debt Service - Interest on Long-Term Debt",5200,{"$nulls":8},{"$f":"SUM(H152:J152)","v":{"v":0,"d":"0 "}}]
["Total Debt Service",5000,{"$nulls":5},{"$f":"SUM(H151:H152)","v":{"v":0,"d":"0 "}},null,null,{"$f":"SUM(K151:K152)","v":{"v":0,"d":"0 "}}]
["PROVISION FOR CONTINGENCIES (O&M)",6000,{"$nulls":8},{"$f":"SUM(C154:J154)","v":{"v":0,"d":"0 "}}]
["Total Direct Disbursements/Expenditures",null,{"$f":"SUM(C133,C134,C143,C153,C154)","v":{"v":818000,"d":"818,000 "}},{"$f":"SUM(D133,D134,D143,D153,D154)","v":{"v":85000,"d":"85,000 "}},{"$f":"SUM(E133,E134,E143)","v":{"v":209500,"d":"209,500 "}},{"v":442000,"d":"442,000 "},{"v":10000,"d":"10,000 "},{"$f":"SUM(H133,H134,H143,H153,H154)","v":{"v":0,"d":"0 "}},{"v":0,"d":"0 "},{"v":0,"d":"0 "},{"$f":"SUM(K133,K134,K143,K153,K154)","v":{"v":1564500,"d":"1,564,500 "}}]
["Excess (Deficiency) of Receipts/Revenues Over Disbursements/Expenditures",{"$nulls":9},{"$f":"'EstRev 6-11'!D272-'EstExp 12-20'!K155","v":{"v":32500,"d":"32,500 "}}]
[]
["30 - DEBT SERVICE FUND (DS)"]
["PAYMENTS TO OTHER DIST & GOVT UNITS (DS)",4000]
["Payments to Other Dist & Govt Units (In-State)","4100"]
["Payments for Regular Programs ","4110",{"$nulls":8},{"$f":"H161","v":{"v":0,"d":"0 "}}]
["Payments for Special Education Programs","4120",{"$nulls":8},{"$f":"H162","v":{"v":0,"d":"0 "}}]
["Other Payments to In-State Govt Units - Programs (Describe & Itemize)","4190",{"$nulls":8},{"$f":"H163","v":{"v":0,"d":"0 "}}]
["Total Payments to Other Dist & Govt Units (In-State)","4000",{"$nulls":5},{"$f":"SUM(H161:H163)","v":{"v":0,"d":"0 "}},null,null,{"$f":"SUM(K161:K163)","v":{"v":0,"d":"0 "}}]
["DEBT SERVICE (DS)",5000]
["Debt Service - Interest on Short-Term Debt",5100]
["Tax Anticipation Warrants",5110,{"$nulls":8},{"$f":"SUM(C167:J167)","v":{"v":0,"d":"0 "}}]
["Tax Anticipation Notes",5120,{"$nulls":8},{"$f":"SUM(C168:J168)","v":{"v":0,"d":"0 "}}]
["Corporate Personal Prop Repl Tax Anticipation Notes",5130,{"$nulls":8},{"v":0,"d":"0 "}]
["State Aid Anticipation Certificates",5140,{"$nulls":8},{"v":0,"d":"0 "}]
["Other Interest on Short-Term Debt (Describe & Itemize)",5150,{"$nulls":8},{"v":0,"d":"0 "}]
["Total Debt Service - Interest On Short-Term Debt",5100,{"$nulls":5},{"$f":"SUM(H167:H171)","v":{"v":0,"d":"0 "}},null,null,{"$f":"SUM(K167:K171)","v":{"v":0,"d":"0 "}}]
["Debt Service - Interest on Long-Term Debt",5200,{"$nulls":5},{"v":1300000,"d":"1,300,000 "},null,null,{"v":1300000,"d":"1,300,000 "}]
["Debt Service - Payments of Principal on Long-Term Debt 15 (Lease/Purchase Principal Retired) (Describe & Itemize)",5300,{"$nulls":5},{"v":20000,"d":"20,000 "},null,null,{"v":20000,"d":"20,000 "}]
["Debt Service - Other (Describe & Itemize)",5400,{"$nulls":5},{"v":2000,"d":"2,000 "},null,null,{"$f":"SUM(C175:J175)","v":{"v":2000,"d":"2,000 "}}]
["Total Debt Service",5000,null,null,{"$f":"SUM(E172:E175)","v":{"v":0,"d":"0 "}},null,null,{"$f":"SUM(H172:H175)","v":{"v":1322000,"d":"1,322,000 "}},null,null,{"$f":"SUM(K172:K175)","v":{"v":1322000,"d":"1,322,000 "}}]
["PROVISION FOR CONTINGENCIES (DS)",6000,{"$nulls":8},{"$f":"SUM(C177:J177)","v":{"v":0,"d":"0 "}}]
["Total Direct Disbursements/Expenditures",{"$nulls":3},{"$f":"SUM(E176)","v":{"v":0,"d":"0 "}},null,null,{"$f":"SUM(H164,H176,H177)","v":{"v":1322000,"d":"1,322,000 "}},null,null,{"$f":"SUM(K164,K176,K177)","v":{"v":1322000,"d":"1,322,000 "}}]
["Excess (Deficiency) of Receipts/Revenues Over Disbursements/Expenditures",{"$nulls":9},{"$f":"'EstRev 6-11'!E272-'EstExp 12-20'!K178","v":{"v":873000,"d":"873,000 "}}]
[]
["40 - TRANSPORTATION FUND (TR)"]
["SUPPORT SERVICES (TR)","2000"]
["Support Services - Pupils","2100"]
["Other Support Services - Pupils (Describe & Itemize)",2190,null,null,{"v":0,"d":"0 "},{"$nulls":5},{"$f":"SUM(C184:J184)","v":{"v":0,"d":"0 "}}]
["Support Services - Business"]
["Pupil Transportation Services",2550,{"v":0,"d":"0 "},{"v":0,"d":"0 "},{"v":450000,"d":"450,000 "},{"$nulls":5},{"$f":"SUM(C186:J186)","v":{"v":450000,"d":"450,000 "}}]
["Other Support Services - Business (Describe & Itemize)",2900,{"$nulls":8},{"$f":"SUM(C187:J187)","v":{"v":0,"d":"0 "}}]
["Total Support Services",2000,{"$f":"SUM(C184:C187)","v":{"v":0,"d":"0 "}},{"$f":"SUM(D184,D186,D187)","v":{"v":0,"d":"0 "}},{"v":450000,"d":"450,000 "},{"v":0,"d":"0 "},{"v":0,"d":"0 "},{"v":0,"d":"0 "},{"v":0,"d":"0 "},{"v":0,"d":"0 "},{"$f":"SUM(K184,K186,K187)","v":{"v":450000,"d":"450,000 "}}]
["COMMUNITY SERVICES (TR)",3000,{"$nulls":8},{"$f":"SUM(C189:J189)","v":{"v":0,"d":"0 "}}]
["PAYMENTS TO OTHER DIST & GOVT UNITS (TR)",4000]
["Payments to Other Dist & Govt Units (In-State)",4100]
["Payments for Regular Program",4110,{"$nulls":8},{"$f":"SUM(C192:J192)","v":{"v":0,"d":"0 "}}]
["Payments for Special Education Programs",4120,{"$nulls":8},{"v":0,"d":"0 "}]
["Payments for Adult/Continuing Education Programs",4130,{"$nulls":8},{"v":0,"d":"0 "}]
["Payments for CTE Programs",4140,{"$nulls":8},{"v":0,"d":"0 "}]
["Payments for Community College Programs",4170,{"$nulls":8},{"v":0,"d":"0 "}]
["Other Payments to In-State Govt Units - Programs (Describe & Itemize)",4190,{"$nulls":8},{"v":0,"d":"0 "}]
["Total Payments to Other Dist & Govt Units (In-State)",4100,null,null,{"$f":"SUM(E192:E197)","v":{"v":0,"d":"0 "}},null,null,{"$f":"SUM(H192:H197)","v":{"v":0,"d":"0 "}},null,null,{"$f":"SUM(K192:K197)","v":{"v":0,"d":"0 "}}]
["Payments to Other Dist & Govt Units (Out-of-State) (Describe & Itemize)",4400,{"$nulls":8},{"$f":"SUM(C199:J199)","v":{"v":0,"d":"0 "}}]
["Total Payments to Other Dist & Govt Units",4000,null,null,{"$f":"SUM(E198,E199)","v":{"v":0,"d":"0 "}},null,null,{"$f":"SUM(H198,H199)","v":{"v":0,"d":"0 "}},null,null,{"$f":"SUM(K198,K199)","v":{"v":0,"d":"0 "}}]
["DEBT SERVICE (TR)",5000]
["Debt Service - Interest on Short-Term Debt","5100"]
["Tax Anticipation Warrants",5110,{"$nulls":8},{"$f":"SUM(C203:J203)","v":{"v":0,"d":"0 "}}]
["Tax Anticipation Notes",5120,{"$nulls":8},{"v":0,"d":"0 "}]
["Corporate Personal Prop Repl Tax Anticipation Notes",5130,{"$nulls":8},{"v":0,"d":"0 "}]
["State Aid Anticipation Certificates",5140,{"$nulls":8},{"v":0,"d":"0 "}]
["Other Interest on Short-Term Debt (Describe & Itemize)",5150,{"$nulls":8},{"v":0,"d":"0 "}]
["Total Debt Service - Interest On Short-Term Debt",5100,{"$nulls":5},{"$f":"SUM(H203:H207)","v":{"v":0,"d":"0 "}},null,null,{"v":0,"d":"0 "}]
["Debt Service - Interest on Long-Term Debt",5200,{"$nulls":8},{"$f":"H209","v":{"v":0,"d":"0 "}}]
["Debt Service - Payments of Principal on Long-Term Debt 15 (Lease/Purchase Principal Retired) (Describe & Itemize)",5300,{"$nulls":8},{"v":0,"d":"0 "}]
["Debt Service - Other (Describe & Itemize)",5400,{"$nulls":8},{"$f":"H211","v":{"v":0,"d":"0 "}}]
["Total Debt Service",5000,{"$nulls":5},{"$f":"SUM(H208:H211)","v":{"v":0,"d":"0 "}},null,null,{"$f":"SUM(K208:K211)","v":{"v":0,"d":"0 "}}]
["PROVISION FOR CONTINGENCIES (TR)",6000,{"$nulls":8},{"$f":"SUM(C213:J213)","v":{"v":0,"d":"0 "}}]
["Total Direct Disbursements/Expenditures",null,{"$f":"SUM(C188,C189)","v":{"v":0,"d":"0 "}},{"$f":"SUM(D188,D189,D200,D212,D213)","v":{"v":0,"d":"0 "}},{"$f":"SUM(E188,E189,E200,E212,E213)","v":{"v":450000,"d":"450,000 "}},{"v":0,"d":"0 "},{"v":0,"d":"0 "},{"$f":"SUM(H188,H189,H200,H212,H213)","v":{"v":0,"d":"0 "}},{"$f":"SUM(I188,I189,I200,I212,I213)","v":{"v":0,"d":"0 "}},{"v":0,"d":"0 "},{"v":450000,"d":"450,000 "}]
["Excess (Deficiency) of Receipts/Revenues Over Disbursements/Expenditures",{"$nulls":9},{"$f":"'EstRev 6-11'!F272-'EstExp 12-20'!K214","v":{"v":60000,"d":"60,000 "}}]
[]
["50 - MUNICIPAL RETIREMENT/SOC SEC FUND (MR/SS)"]
["INSTRUCTION (MR/SS)","1000"]
["Regular Program",1100,null,{"v":70000,"d":"70,000 "},{"$nulls":6},{"$f":"SUM(C219:J219)","v":{"v":70000,"d":"70,000 "}}]
["Pre-K Programs",1125,null,{"v":9500,"d":"9,500 "},{"$nulls":6},{"$f":"SUM(C220:J220)","v":{"v":9500,"d":"9,500 "}}]
["Special Education Programs (Functions 1200-1220)",1200,null,{"v":94000,"d":"94,000 "},{"$nulls":6},{"v":94000,"d":"94,000 "}]
["Special Education Programs Pre-K",1225,{"$nulls":8},{"v":0,"d":"0 "}]
["Remedial and Supplemental Programs K-12",1250,null,{"v":0,"d":"0 "},{"$nulls":6},{"v":0,"d":"0 "}]
["Remedial and Supplemental Programs Pre-K",1275,{"$nulls":8},{"v":0,"d":"0 "}]
["Adult/Continuing Education Programs",1300,{"$nulls":8},{"v":0,"d":"0 "}]
["CTE Programs",1400,{"$nulls":8},{"v":0,"d":"0 "}]
["Interscholastic Programs",1500,null,{"v":22000,"d":"22,000 "},{"$nulls":6},{"v":22000,"d":"22,000 "}]
["Summer School Programs",1600,null,{"v":5000,"d":"5,000 "},{"$nulls":6},{"v":5000,"d":"5,000 "}]
["Gifted Programs",1650,{"$nulls":8},{"v":0,"d":"0 "}]
["Driver's Education Programs",1700,{"$nulls":8},{"v":0,"d":"0 "}]
["Bilingual Programs",1800,null,{"v":12000,"d":"12,000 "},{"$nulls":6},{"v":12000,"d":"12,000 "}]
["Truant Alternative & Optional Programs",1900,{"$nulls":8},{"v":0,"d":"0 "}]
["Total Instruction",1000,null,{"$f":"SUM(D219:D232)","v":{"v":212500,"d":"212,500 "}},{"$nulls":6},{"$f":"SUM(K219:K232)","v":{"v":212500,"d":"212,500 "}}]
["SUPPORT SERVICES (MR/SS)",2000]
["Support Services - Pupil",2100]
["Attendance & Social Work Services",2110,null,{"v":2000,"d":"2,000 "},{"$nulls":6},{"$f":"SUM(C236:J236)","v":{"v":2000,"d":"2,000 "}}]
["Guidance Services",2120,{"$nulls":8},{"v":0,"d":"0 "}]
["Health Services",2130,null,{"v":4500,"d":"4,500 "},{"$nulls":6},{"v":4500,"d":"4,500 "}]
["Psychological Services",2140,null,{"v":0,"d":"0 "},{"$nulls":6},{"v":0,"d":"0 "}]
["Speech Pathology & Audiology Services",2150,null,{"v":0,"d":"0 "},{"$nulls":6},{"v":0,"d":"0 "}]
["Other Support Services - Pupils (Describe & Itemize)",2190,null,{"v":0,"d":"0 "},{"$nulls":6},{"v":0,"d":"0 "}]
["Total Support Services - Pupil",2100,null,{"$f":"SUM(D236:D241)","v":{"v":6500,"d":"6,500 "}},{"$nulls":6},{"$f":"SUM(K236:K241)","v":{"v":6500,"d":"6,500 "}}]
["Support Services - Instructional Staff","2200"]
["Improvement of Instruction Services",2210,null,{"v":6300,"d":"6,300 "},{"$nulls":6},{"$f":"SUM(C244:J244)","v":{"v":6300,"d":"6,300 "}}]
["Educational Media Services",2220,null,{"v":5500,"d":"5,500 "},{"$nulls":6},{"$f":"SUM(C245:J245)","v":{"v":5500,"d":"5,500 "}}]
["Assessment & Testing",2230,{"$nulls":8},{"$f":"SUM(C246:J246)","v":{"v":0,"d":"0 "}}]
["Total Support Services - Instructional Staff",2200,null,{"$f":"SUM(D244:D246)","v":{"v":11800,"d":"11,800 "}},{"$nulls":6},{"$f":"SUM(K244:K246)","v":{"v":11800,"d":"11,800 "}}]
["Support Services - General Administration",2300]
["Board of Education Services",2310,null,{"v":0,"d":"0 "},{"$nulls":6},{"$f":"SUM(C249:J249)","v":{"v":0,"d":"0 "}}]
["Executive Administration Services",2320,null,{"v":16000,"d":"16,000 "},{"$nulls":6},{"$f":"SUM(C250:J250)","v":{"v":16000,"d":"16,000 "}}]
["Special Area Administrative Services",2330,null,{"v":10000,"d":"10,000 "},{"$nulls":6},{"v":10000,"d":"10,000 "}]
["Claims Paid from Self Insurance Fund",2361,{"$nulls":8},{"v":0,"d":"0 "}]
["Risk Management and Claims Services Payments",2365,null,{"v":0,"d":"0 "},{"$nulls":6},{"v":0,"d":"0 "}]
["Total Support Services - General Administration",2300,null,{"$f":"D249+D250+D251+D252+D253","v":{"v":26000,"d":"26,000 "}},{"$nulls":6},{"$f":"K249+K250+K251+K252+K253","v":{"v":26000,"d":"26,000 "}}]
["Support Services - School Administration",2400]
["Office of the Principal Services",2410,null,{"v":39000,"d":"39,000 "},{"$nulls":6},{"$f":"SUM(C256:J256)","v":{"v":39000,"d":"39,000 "}}]
["Other Support Services - School Administration (Describe & Itemize)",2490,{"$nulls":8},{"$f":"SUM(C257:J257)","v":{"v":0,"d":"0 "}}]
["Total Support Services - School Administration",2400,null,{"$f":"SUM(D256:D257)","v":{"v":39000,"d":"39,000 "}},{"$nulls":6},{"$f":"SUM(K256:K257)","v":{"v":39000,"d":"39,000 "}}]
["Support Services - Business",2500]
["Direction of Business Support Services",2510,null,{"v":2000,"d":"2,000 "},{"$nulls":6},{"$f":"SUM(C260:J260)","v":{"v":2000,"d":"2,000 "}}]
["Fiscal Services",2520,null,{"v":25000,"d":"25,000 "},{"$nulls":6},{"$f":"SUM(C261:J261)","v":{"v":25000,"d":"25,000 "}}]
["Facilities Acquisition & Construction Services","2530",{"$nulls":8},{"v":0,"d":"0 "}]
["Operation & Maintenance of Plant Service",2540,null,{"v":140000,"d":"140,000 "},{"$nulls":6},{"v":140000,"d":"140,000 "}]
["Pupil Transportation Services",2550,null,{"v":0,"d":"0 "},{"$nulls":6},{"v":0,"d":"0 "}]
["Food Services",2560,null,{"v":63000,"d":"63,000 "},{"$nulls":6},{"v":63000,"d":"63,000 "}]
["Internal Services",2570,{"$nulls":8},{"v":0,"d":"0 "}]
["Total Support Services - Business",2500,null,{"$f":"SUM(D260:D266)","v":{"v":230000,"d":"230,000 "}},{"$nulls":6},{"$f":"SUM(K260:K266)","v":{"v":230000,"d":"230,000 "}}]
["Support Services - Central",2600]
["Direction of Central Support Services",2610,{"$nulls":8},{"$f":"SUM(C269:J269)","v":{"v":0,"d":"0 "}}]
["Planning, Research, Development & Evaluation Services",2620,{"$nulls":8},{"$f":"SUM(C270:J270)","v":{"v":0,"d":"0 "}}]
["Information Services",2630,null,{"v":48000,"d":"48,000 "},{"$nulls":6},{"$f":"SUM(C271:J271)","v":{"v":48000,"d":"48,000 "}}]
["Staff Services",2640,null,{"v":0,"d":"0 "},{"$nulls":6},{"$f":"SUM(C272:J272)","v":{"v":0,"d":"0 "}}]
["Data Processing Services",2660,{"$nulls":8},{"$f":"SUM(C273:J273)","v":{"v":0,"d":"0 "}}]
["Total Support Services - Central",2600,null,{"$f":"SUM(D269:D273)","v":{"v":48000,"d":"48,000 "}},{"$nulls":6},{"$f":"SUM(K269:K273)","v":{"v":48000,"d":"48,000 "}}]
["Other Support Services - Misc. (Describe & Itemize)",2900,null,{"v":5000,"d":"5,000 "},{"$nulls":6},{"$f":"SUM(C275:J275)","v":{"v":5000,"d":"5,000 "}}]
["Total Support Services",2000,null,{"$f":"SUM(D242,D247,D254,D258,D267,D274,D275)","v":{"v":366300,"d":"366,300 "}},{"$nulls":6},{"$f":"SUM(K242,K247,K254,K258,K267,K274,K275)","v":{"v":366300,"d":"366,300 "}}]
["COMMUNITY SERVICES (MR/SS)",3000,null,{"v":22100,"d":"22,100 "},{"$nulls":6},{"$f":"SUM(C277:J277)","v":{"v":22100,"d":"22,100 "}}]
["PAYMENTS TO OTHER DIST & GOVT UNITS (MR/SS)",4000]
["Payments for Regular Programs",4110,{"$nulls":8},{"$f":"D279","v":{"v":0,"d":"0 "}}]
["Payments for Special Education Programs",4120,{"$nulls":8},{"$f":"D280","v":{"v":0,"d":"0 "}}]
["Payments for CTE Programs",4140,{"$nulls":8},{"$f":"D281","v":{"v":0,"d":"0 "}}]
["Total Payments to Other Dist & Govt Units",4000,null,{"$f":"SUM(D279:D281)","v":{"v":0,"d":"0 "}},{"$nulls":6},{"$f":"SUM(K279:K281)","v":{"v":0,"d":"0 "}}]
["DEBT SERVICE (MR/SS)",5000]
["Debt Service - Interest on Short-Term Debt",5100]
["Tax Anticipation Warrants",5110,{"$nulls":8},{"$f":"SUM(C285:J285)","v":{"v":0,"d":"0 "}}]
["Tax Anticipation Notes",5120,{"$nulls":8},{"$f":"SUM(C286:J286)","v":{"v":0,"d":"0 "}}]
["Corporate Personal Prop Repl Tax Anticipation Notes",5130,{"$nulls":8},{"$f":"SUM(C287:J287)","v":{"v":0,"d":"0 "}}]
["State Aid Anticipation Certificates",5140,{"$nulls":8},{"$f":"SUM(C288:J288)","v":{"v":0,"d":"0 "}}]
["Other Interest on Short-Term Debt (Describe & Itemize)",5150,{"$nulls":8},{"$f":"SUM(C289:J289)","v":{"v":0,"d":"0 "}}]
["Total Debt Service",5000,{"$nulls":5},{"$f":"SUM(H285:H289)","v":{"v":0,"d":"0 "}},null,null,{"$f":"SUM(K285:K289)","v":{"v":0,"d":"0 "}}]
["PROVISION FOR CONTINGENCIES (MR/SS)",6000,{"$nulls":8},{"$f":"SUM(C291:J291)","v":{"v":0,"d":"0 "}}]
["Total Direct Disbursements/Expenditures",null,null,{"$f":"SUM(D233,D276,D277,D282)","v":{"v":600900,"d":"600,900 "}},{"$nulls":3},{"$f":"SUM(H290,H291)","v":{"v":0,"d":"0 "}},null,null,{"$f":"SUM(K233,K276,K277,K282,K290,K291)","v":{"v":600900,"d":"600,900 "}}]
["Excess (Deficiency) of Receipts/Revenues Over Disbursements/Expenditures",{"$nulls":9},{"$f":"'EstRev 6-11'!G272-'EstExp 12-20'!K292","v":{"v":4100,"d":"4,100 "}}]
[]
["60 - CAPITAL PROJECTS (CP)"]
["SUPPORT SERVICES (CP)","2000"]
["Support Services - Business"]
["Facilities Acquisition & Construction Services",2530,null,null,{"v":0,"d":"0 "},{"v":0,"d":"0 "},{"v":203000,"d":"203,000 "},{"v":0,"d":"0 "},null,null,{"$f":"SUM(C298:J298)","v":{"v":203000,"d":"203,000 "}}]
["Other Support Services - Business (Describe & Itemize)",2900,{"$nulls":8},{"$f":"SUM(C299:J299)","v":{"v":0,"d":"0 "}}]
["Total Support Services",2000,{"$f":"SUM(C298:C299)","v":{"v":0,"d":"0 "}},{"$f":"SUM(D298:D299)","v":{"v":0,"d":"0 "}},{"v":0,"d":"0 "},{"v":0,"d":"0 "},{"v":203000,"d":"203,000 "},{"v":0,"d":"0 "},{"v":0,"d":"0 "},null,{"v":203000,"d":"203,000 "}]
["PAYMENTS TO OTHER DIST & GOVT UNITS (CP)",4000]
["Payments to Other Dist & Govt Units (In-State)",4100]
["Payments to Regular Programs",4110,{"$nulls":8},{"$f":"SUM(E303,H303)","v":{"v":0,"d":"0 "}}]
["Payment for Special Education Programs",4120,{"$nulls":8},{"$f":"SUM(C304:J304)","v":{"v":0,"d":"0 "}}]
["Payment for CTE Programs",4140,{"$nulls":8},{"$f":"SUM(C305:J305)","v":{"v":0,"d":"0 "}}]
["Payments to Other Govt Units - Programs (In-State) (Describe & Itemize)",4190,{"$nulls":8},{"$f":"SUM(C306:J306)","v":{"v":0,"d":"0 "}}]
["Total Payments to Other Districts & Govt Units",4000,null,null,{"$f":"SUM(E303:E306)","v":{"v":0,"d":"0 "}},null,null,{"$f":"SUM(H303:H306)","v":{"v":0,"d":"0 "}},null,null,{"$f":"SUM(K303:K306)","v":{"v":0,"d":"0 "}}]
["PROVISION FOR CONTINGENCIES (CP)",6000,{"$nulls":8},{"$f":"SUM(C308:J308)","v":{"v":0,"d":"0 "}}]
["Total Direct Disbursements/Expenditures",null,{"$f":"(C300)","v":{"v":0,"d":"0 "}},{"$f":"(D300)","v":{"v":0,"d":"0 "}},{"$f":"SUM(E300,E307)","v":{"v":0,"d":"0 "}},{"$f":"SUM(F300)","v":{"v":0,"d":"0 "}},{"$f":"G300","v":{"v":203000,"d":"203,000 "}},{"$f":"SUM(H300,H307,H308)","v":{"v":0,"d":"0 "}},{"$f":"SUM(I300)","v":{"v":0,"d":"0 "}},null,{"$f":"SUM(K300,K307,K308)","v":{"v":203000,"d":"203,000 "}}]
["Excess (Deficiency) of Receipts/Revenues Over Disbursements/Expenditures",{"$nulls":9},{"$f":"'EstRev 6-11'!H272-'EstExp 12-20'!K309","v":{"v":0,"d":"0 "}}]
[]
["70 WORKING CASH FUND (WC)"]
[]
["80 - TORT FUND (TF)"]
["INSTRUCTION (TF)","1000"]
["Regular Programs",1100,null,null,{"v":0,"d":"0 "},{"$nulls":5},{"$f":"SUM(C316:J316)","v":{"v":0,"d":"0 "}}]
["Tuition Payment to Charter Schools",1115,{"$nulls":8},{"$f":"SUM(C317,E317)","v":{"v":0,"d":"0 "}}]
["Pre-K Programs",1125,{"$nulls":8},{"$f":"SUM(C318:J318)","v":{"v":0,"d":"0 "}}]
["Special Education Programs (Functions 1200 - 1220)",1200,{"$nulls":8},{"v":0,"d":"0 "}]
["Special Education Programs Pre-K",1225,{"$nulls":8},{"v":0,"d":"0 "}]
["Remedial and Supplemental Programs K-12",1250,{"$nulls":8},{"v":0,"d":"0 "}]
["Remedial and Supplemental Programs Pre-K",1275,{"$nulls":8},{"v":0,"d":"0 "}]
["Adult/Continuing Education Programs",1300,{"$nulls":8},{"v":0,"d":"0 "}]
["CTE Programs",1400,{"$nulls":8},{"v":0,"d":"0 "}]
["Interscholastic Programs",1500,{"$nulls":8},{"v":0,"d":"0 "}]
["Summer School Programs",1600,{"$nulls":8},{"v":0,"d":"0 "}]
["Gifted Programs",1650,{"$nulls":8},{"v":0,"d":"0 "}]
["Driver's Education Programs",1700,{"$nulls":8},{"v":0,"d":"0 "}]
["Bilingual Programs",1800,{"$nulls":8},{"v":0,"d":"0 "}]
["Truant Alternative & Optional Programs",1900,{"$nulls":8},{"v":0,"d":"0 "}]
["Pre-K Programs - Private Tuition",1910,{"$nulls":8},{"v":0,"d":"0 "}]
["Regular K-12 Programs  Private Tuition",1911,{"$nulls":8},{"v":0,"d":"0 "}]
["Special Education Programs K-12 Private Tuition",1912,{"$nulls":8},{"v":0,"d":"0 "}]
["Special Education Programs Pre-K Tuition",1913,{"$nulls":8},{"v":0,"d":"0 "}]
["Remedial/Supplemental Programs K-12 Private Tuition",1914,{"$nulls":8},{"v":0,"d":"0 "}]
["Remedial/Supplemental Programs Pre-K Private Tuition",1915,{"$nulls":8},{"v":0,"d":"0 "}]
["Adult/Continuing Education Programs Private Tuition",1916,{"$nulls":8},{"v":0,"d":"0 "}]
["CTE Programs Private Tuition",1917,{"$nulls":8},{"v":0,"d":"0 "}]
["Interscholastic Programs Private Tuition",1918,{"$nulls":8},{"v":0,"d":"0 "}]
["Summer School Programs Private Tuition",1919,{"$nulls":8},{"v":0,"d":"0 "}]
["Gifted Programs Private Tuition",1920,{"$nulls":8},{"v":0,"d":"0 "}]
["Bilingual Programs Private Tuition",1921,{"$nulls":8},{"v":0,"d":"0 "}]
["Truants Alternative/Opt Ed Programs Private Tuition",1922,{"$nulls":8},{"v":0,"d":"0 "}]
["Total Instruction14",1000,{"$f":"SUM(C316:C343)","v":{"v":0,"d":"0 "}},{"v":0,"d":"0 "},{"v":0,"d":"0 "},{"v":0,"d":"0 "},{"v":0,"d":"0 "},{"v":0,"d":"0 "},{"v":0,"d":"0 "},{"v":0,"d":"0 "},{"v":0,"d":"0 "}]
["SUPPORT SERVICES (TF)",2000]
["Support Services - Pupil",2100]
["Attendance & Social Work Services",2110,{"$nulls":8},{"$f":"SUM(C347:J347)","v":{"v":0,"d":"0 "}}]
["Guidance Services",2120,{"$nulls":8},{"v":0,"d":"0 "}]
["Health Services",2130,{"$nulls":8},{"v":0,"d":"0 "}]
["Psychological Services",2140,{"$nulls":8},{"v":0,"d":"0 "}]
["Speech Pathology & Audiology Services",2150,{"$nulls":8},{"v":0,"d":"0 "}]
["Other Support Services - Pupils (Describe & Itemize)",2190,{"$nulls":8},{"v":0,"d":"0 "}]
["Total Support Services - Pupil",2100,{"$f":"SUM(C347:C352)","v":{"v":0,"d":"0 "}},{"$f":"SUM(D347:D352)","v":{"v":0,"d":"0 "}},{"v":0,"d":"0 "},{"v":0,"d":"0 "},{"v":0,"d":"0 "},{"v":0,"d":"0 "},{"v":0,"d":"0 "},{"v":0,"d":"0 "},{"v":0,"d":"0 "}]
["Support Services - Instructional Staff",2200]
["Improvement of Instruction Services",2210,{"$nulls":8},{"$f":"SUM(C355:J355)","v":{"v":0,"d":"0 "}}]
["Educational Media Services",2220,{"$nulls":8},{"$f":"SUM(C356:J356)","v":{"v":0,"d":"0 "}}]
["Assessment & Testing",2230,{"$nulls":8},{"$f":"SUM(C357:J357)","v":{"v":0,"d":"0 "}}]
["Total Support Services - Instructional Staff",2200,{"$f":"SUM(C355:C357)","v":{"v":0,"d":"0 "}},{"$f":"SUM(D355:D357)","v":{"v":0,"d":"0 "}},{"v":0,"d":"0 "},{"v":0,"d":"0 "},{"v":0,"d":"0 "},{"v":0,"d":"0 "},{"v":0,"d":"0 "},{"v":0,"d":"0 "},{"v":0,"d":"0 "}]
["Support Services - General Administration",2300]
["Board of Education Services",2310,null,null,{"v":15000,"d":"15,000 "},null,null,{"v":0,"d":"0 "},null,null,{"$f":"SUM(C360:J360)","v":{"v":15000,"d":"15,000 "}}]
["Executive Administration Services",2320,{"v":0,"d":"0 "},{"v":0,"d":"0 "},{"$nulls":6},{"$f":"SUM(C361:J361)","v":{"v":0,"d":"0 "}}]
["Special Area Administration Services",2330,{"v":0,"d":"0 "},{"v":0,"d":"0 "},{"$nulls":6},{"$f":"SUM(C362:J362)","v":{"v":0,"d":"0 "}}]
["Claims Paid from Self Insurance Fund",2361,{"$nulls":8},{"$f":"SUM(C363:J363)","v":{"v":0,"d":"0 "}}]
["Risk Management and Claims Services Payments",2365,{"v":0,"d":"0 "},{"v":0,"d":"0 "},{"$nulls":6},{"$f":"SUM(C364:J364)","v":{"v":0,"d":"0 "}}]
["Total Support Services - General Administration",2300,{"$f":"SUM(C360:C364)","v":{"v":0,"d":"0 "}},{"v":0,"d":"0 "},{"v":15000,"d":"15,000 "},{"v":0,"d":"0 "},{"v":0,"d":"0 "},{"v":0,"d":"0 "},{"v":0,"d":"0 "},{"v":0,"d":"0 "},{"v":15000,"d":"15,000 "}]
["Support Services - School Administration",2400]
["Office of the Principal Services",2410,null,{"v":0,"d":"0 "},{"$nulls":6},{"$f":"SUM(C367:J367)","v":{"v":0,"d":"0 "}}]
["Other Support Services - School Administration (Describe & Itemize)",2490,{"$nulls":8},{"$f":"SUM(C368:J368)","v":{"v":0,"d":"0 "}}]
["Total Support Services - School Administration",2400,{"$f":"SUM(C367:C368)","v":{"v":0,"d":"0 "}},{"$f":"SUM(D367:D368)","v":{"v":0,"d":"0 "}},{"v":0,"d":"0 "},{"v":0,"d":"0 "},{"v":0,"d":"0 "},{"v":0,"d":"0 "},{"v":0,"d":"0 "},{"v":0,"d":"0 "},{"$f":"SUM(K367:K368)","v":{"v":0,"d":"0 "}}]
["Support Services - Business",2500]
["Direction of Business Support Services",2510,{"v":0,"d":"0 "},{"v":0,"d":"0 "},{"$nulls":6},{"$f":"SUM(C371:J371)","v":{"v":0,"d":"0 "}}]
["Fiscal Services",2520,{"$nulls":8},{"v":0,"d":"0 "}]
["Facilities Acquisition & Construction Services",2530,{"$nulls":8},{"v":0,"d":"0 "}]
["Operation & Maintenance of Plant Services",2540,{"v":0,"d":"0 "},{"$nulls":4},{"v":0,"d":"0 "},null,null,{"v":0,"d":"0 "}]
["Pupil Transportation Services",2550,{"$nulls":8},{"v":0,"d":"0 "}]
["Food Services",2560,{"$nulls":8},{"v":0,"d":"0 "}]
["Internal Services",2570,{"$nulls":8},{"v":0,"d":"0 "}]
["Total Support Services - Business",2500,{"$f":"SUM(C371:C377)","v":{"v":0,"d":"0 "}},{"$f":"SUM(D371:D377)","v":{"v":0,"d":"0 "}},{"v":0,"d":"0 "},{"v":0,"d":"0 "},{"v":0,"d":"0 "},{"v":0,"d":"0 "},{"v":0,"d":"0 "},{"v":0,"d":"0 "},{"v":0,"d":"0 "}]
["Support Services - Central","2600"]
["Direction of Central Support Services",2610,null,null,{"v":0,"d":"0 "},{"$nulls":5},{"$f":"SUM(C380:J380)","v":{"v":0,"d":"0 "}}]
["Planning, Research, Development & Evaluation Services",2620,{"$nulls":8},{"$f":"SUM(C381:J381)","v":{"v":0,"d":"0 "}}]
["Information Services",2630,{"$nulls":8},{"v":0,"d":"0 "}]
["Staff Services",2640,{"$nulls":8},{"v":0,"d":"0 "}]
["Data Processing Services",2660,{"$nulls":8},{"v":0,"d":"0 "}]
["Total Support Services - Central",2600,{"$f":"SUM(C380:C384)","v":{"v":0,"d":"0 "}},{"$f":"SUM(D380:D384)","v":{"v":0,"d":"0 "}},{"v":0,"d":"0 "},{"v":0,"d":"0 "},{"v":0,"d":"0 "},{"v":0,"d":"0 "},{"v":0,"d":"0 "},{"v":0,"d":"0 "},{"$f":"SUM(K380:K384)","v":{"v":0,"d":"0 "}}]
["Other Support Services - Misc. (Describe & Itemize)",2900,{"$nulls":8},{"$f":"SUM(C386:J386)","v":{"v":0,"d":"0 "}}]
["Total Support Services",2000,{"$f":"SUM(C353,C358,C365,C369,C378,C385,C386)","v":{"v":0,"d":"0 "}},{"v":0,"d":"0 "},{"v":15000,"d":"15,000 "},{"v":0,"d":"0 "},{"v":0,"d":"0 "},{"v":0,"d":"0 "},{"v":0,"d":"0 "},{"v":0,"d":"0 "},{"$f":"SUM(C387:J387)","v":{"v":15000,"d":"15,000 "}}]
["COMMUNITY SERVICES (TF)",3000,{"$nulls":8},{"$f":"SUM(C388:J388)","v":{"v":0,"d":"0 "}}]
["PAYMENTS TO OTHER DIST & GOVT UNITS (TF)",4000]
["Payments to Other Dist & Govt Units (In-State)",4100]
["Payments for Regular Programs",4110,{"$nulls":8},{"$f":"SUM(C391:J391)","v":{"v":0,"d":"0 "}}]
["Payments for Special Education Programs",4120,{"$nulls":8},{"v":0,"d":"0 "}]
["Payments for Adult/Continuing Education Programs",4130,{"$nulls":8},{"v":0,"d":"0 "}]
["Payments for CTE Programs",4140,{"$nulls":8},{"v":0,"d":"0 "}]
["Payments for Community College Programs",4170,{"$nulls":8},{"v":0,"d":"0 "}]
["Other Payments to In-State Govt Units - Programs (Describe & Itemize)",4190,{"$nulls":8},{"v":0,"d":"0 "}]
["Total Payments to Other Dist & Govt Units (In-State)",4100,null,null,{"$f":"SUM(E391:E396)","v":{"v":0,"d":"0 "}},null,null,{"$f":"SUM(H391:H396)","v":{"v":0,"d":"0 "}},null,null,{"$f":"SUM(K391:K396)","v":{"v":0,"d":"0 "}}]
["Payments for Regular Programs - Tuition",4210,{"$nulls":8},{"$f":"SUM(C398:J398)","v":{"v":0,"d":"0 "}}]
["Payments for Special Education Programs - Tuition",4220,{"$nulls":8},{"v":0,"d":"0 "}]
["Payments for Adult/Continuing Education Programs - Tuition",4230,{"$nulls":8},{"v":0,"d":"0 "}]
["Payments for CTE Programs - Tuition",4240,{"$nulls":8},{"v":0,"d":"0 "}]
["Payments for Community College Programs - Tuition",4270,{"$nulls":8},{"v":0,"d":"0 "}]
["Payments for Other Programs - Tuition",4280,{"$nulls":8},{"v":0,"d":"0 "}]
["Other Payments to In-State Govt Units - Tuition (Describe & Itemize)",4290,{"$nulls":8},{"v":0,"d":"0 "}]
["Total Payments to Other Dist & Govt Units - Tuition (In State)",4200,{"$nulls":5},{"$f":"SUM(H398:H404)","v":{"v":0,"d":"0 "}},null,null,{"$f":"SUM(K398:K404)","v":{"v":0,"d":"0 "}}]
["Payments for Regular Programs - Transfers",4310,{"$nulls":8},{"$f":"SUM(C406:J406)","v":{"v":0,"d":"0 "}}]
["Payments for Special Education Programs - Transfers",4320,{"$nulls":8},{"v":0,"d":"0 "}]
["Payments for Adult/Continuing Ed Programs - Transfers",4330,{"$nulls":8},{"v":0,"d":"0 "}]
["Payments for CTE Programs - Transfers",4340,{"$nulls":8},{"v":0,"d":"0 "}]
["Payments for Community College Program - Transfers",4370,{"$nulls":8},{"v":0,"d":"0 "}]
["Payments for Other Programs - Transfers",4380,{"$nulls":8},{"v":0,"d":"0 "}]
["Other Payments to In-State Govt Units - Transfers (Describe & Itemize)",4390,{"$nulls":8},{"v":0,"d":"0 "}]
["Total Payments to Other Dist & Govt Units-Transfers (In State)",4300,null,null,{"$f":"SUM(E406:E412)","v":{"v":0,"d":"0 "}},null,null,{"$f":"SUM(H406:H412)","v":{"v":0,"d":"0 "}},null,null,{"$f":"SUM(K406:K412)","v":{"v":0,"d":"0 "}}]
["Payments to Other Dist & Govt Units (Out of State)",4400,{"$nulls":8},{"$f":"SUM(C414:J414)","v":{"v":0,"d":"0 "}}]
["Total Payments to Other Dist & Govt Units",4000,null,null,{"$f":"SUM(E397,E405,E413,E414)","v":{"v":0,"d":"0 "}},null,null,{"$f":"SUM(H397,H405,H413,H414)","v":{"v":0,"d":"0 "}},null,null,{"$f":"SUM(K397,K405,K413,K414)","v":{"v":0,"d":"0 "}}]
["DEBT SERVICE (TF)",5000]
["Debt Service - Interest on Short-Term Debt"]
["Tax Anticipation Warrants",5110,{"$nulls":8},{"$f":"SUM(C418:J418)","v":{"v":0,"d":"0 "}}]
["Tax Anticipation Notes",5120,{"$nulls":8},{"$f":"SUM(C419:J419)","v":{"v":0,"d":"0 "}}]
["Corporate Personal Property Replacement Tax Anticipation Notes",5130,{"$nulls":8},{"$f":"SUM(C420:J420)","v":{"v":0,"d":"0 "}}]
["State Aid Anticipation Certificates",5140,{"$nulls":8},{"$f":"SUM(C421:J421)","v":{"v":0,"d":"0 "}}]
["Other Interest or Short-Term Debt (Describe & Itemize)",5150,{"$nulls":8},{"$f":"SUM(C422:J422)","v":{"v":0,"d":"0 "}}]
["Debt Service - Interest on Long-Term Debt",5200,{"$nulls":8},{"$f":"SUM(C423:J423)","v":{"v":0,"d":"0 "}}]
["Debt Service - Payments of Principal on Long-Term Debt 15 (Lease/Purchase Principal Retired) (Describe & Itemize)",5300,{"$nulls":8},{"v":0,"d":"0 "}]
["Debt Service - Other (Describe & Itemize)",5400,{"$nulls":8},{"v":0,"d":"0 "}]
["Total Debt Service",5000,null,null,{"$f":"SUM(E418:E425)","v":{"v":0,"d":"0 "}},null,null,{"$f":"SUM(H418:H425)","v":{"v":0,"d":"0 "}},null,null,{"$f":"SUM(K418:K425)","v":{"v":0,"d":"0 "}}]
["PROVISION FOR CONTINGENCIES (TF)",6000,{"$nulls":8},{"$f":"SUM(C427:J427)","v":{"v":0,"d":"0 "}}]
["Total Direct Disbursements/Expenditures",null,{"$f":"SUM(C344+C387+C388)","v":{"v":0,"d":"0 "}},{"$f":"SUM(D344+D387+D388)","v":{"v":0,"d":"0 "}},{"$f":"SUM(E344+E387+E388+E415+E426)","v":{"v":15000,"d":"15,000 "}},{"$f":"SUM(F344+F387+F388)","v":{"v":0,"d":"0 "}},{"$f":"SUM(G344+G387+G388)","v":{"v":0,"d":"0 "}},{"$f":"SUM(H344+H387+H388+H415+H426+H427)","v":{"v":0,"d":"0 "}},{"$f":"SUM(I344+I387+I388)","v":{"v":0,"d":"0 "}},{"$f":"SUM(J344+J387+J388)","v":{"v":0,"d":"0 "}},{"$f":"SUM(K344+K387+K388+K415+K426+K427)","v":{"v":15000,"d":"15,000 "}}]
["Excess (Deficiency) of Receipts/Revenues Over Disbursements/Expenditures",{"$nulls":9},{"$f":"'EstRev 6-11'!J272-'EstExp 12-20'!K428","v":{"v":206000,"d":"206,000 "}}]
[]
["90 - FIRE PREVENTION & SAFETY FUND (FP&S)"]
["SUPPORT SERVICES (FP&S)","2000"]
["Support Services - Business",2500]
["Facilities Acquisition & Construction Services",2530,{"$nulls":8},{"$f":"SUM(C434:J434)","v":{"v":0,"d":"0 "}}]
["Operation & Maintenance of Plant Service",2540,{"v":115000,"d":"115,000 "},{"v":20000,"d":"20,000 "},{"v":15000,"d":"15,000 "},{"v":0,"d":"0 "},{"v":0,"d":"0 "},{"$nulls":3},{"$f":"SUM(C435:J435)","v":{"v":150000,"d":"150,000 "}}]
["Total Support Services - Business",2500,{"$f":"SUM(C434:C435)","v":{"v":115000,"d":"115,000 "}},{"$f":"SUM(D434:D435)","v":{"v":20000,"d":"20,000 "}},{"v":15000,"d":"15,000 "},{"v":0,"d":"0 "},{"v":0,"d":"0 "},{"v":0,"d":"0 "},{"v":0,"d":"0 "},null,{"v":150000,"d":"150,000 "}]
["Other Support Services - Misc. (Describe & Itemize)",2900,{"$nulls":8},{"$f":"SUM(C437:J437)","v":{"v":0,"d":"0 "}}]
["Total Support Services",2000,{"$f":"SUM(C436,C437)","v":{"v":115000,"d":"115,000 "}},{"$f":"SUM(D436,D437)","v":{"v":20000,"d":"20,000 "}},{"v":15000,"d":"15,000 "},{"v":0,"d":"0 "},{"v":0,"d":"0 "},{"v":0,"d":"0 "},{"v":0,"d":"0 "},null,{"$f":"SUM(K436,K437)","v":{"v":150000,"d":"150,000 "}}]
["PAYMENTS TO OTHER DISTRICTS & GOVT UNITS (FP&S)",4000]
["Payments to Regular Programs",4110,{"$nulls":8},{"$f":"H440","v":{"v":0,"d":"0 "}}]
["Payments to Special Education Programs",4120,{"$nulls":8},{"$f":"H441","v":{"v":0,"d":"0 "}}]
["Other Payments to In-State Govt Units - Programs (Describe & Itemize)",4190,{"$nulls":8},{"$f":"H442","v":{"v":0,"d":"0 "}}]
["Total Payments to Other Districts & Govt Units (FPS)",4000,{"$nulls":5},{"$f":"SUM(H440:H442)","v":{"v":0,"d":"0 "}},null,null,{"$f":"SUM(K440:K442)","v":{"v":0,"d":"0 "}}]
["DEBT SERVICE (FP&S)",5000]
["Debt Service - Interest on Short-Term Debt",5100]
["Tax Anticipation Warrants",5110,{"$nulls":8},{"$f":"SUM(C446:J446)","v":{"v":0,"d":"0 "}}]
["Other Interest on Short-Term Debt (Describe & Itemize)",5150,{"$nulls":8},{"$f":"SUM(C447:J447)","v":{"v":0,"d":"0 "}}]
["Total Debt Service - Interest on Short-Term Debt",5100,{"$nulls":5},{"$f":"SUM(H446:H447)","v":{"v":0,"d":"0 "}},null,null,{"$f":"SUM(K446:K447)","v":{"v":0,"d":"0 "}}]
["Debt Service - Interest on Long-Term Debt",5200,{"$nulls":8},{"$f":"H449","v":{"v":0,"d":"0 "}}]
["Debt Service - Payments of Principal on Long-Term Debt 15 (Lease/Purchase Principal Retired) (Describe & Itemize)",5300,{"$nulls":8},{"$f":"H450","v":{"v":0,"d":"0 "}}]
["Total Debt Service",5000,{"$nulls":5},{"$f":"SUM(H448:H450)","v":{"v":0,"d":"0 "}},null,null,{"$f":"SUM(K448:K450)","v":{"v":0,"d":"0 "}}]
["PROVISIONS FOR CONTINGENCIES (FP&S)",6000,{"$nulls":8},{"$f":"SUM(C452:J452)","v":{"v":0,"d":"0 "}}]
["Total Direct Disbursements/Expenditures",null,{"$f":"SUM(C438)","v":{"v":115000,"d":"115,000 "}},{"$f":"SUM(D438)","v":{"v":20000,"d":"20,000 "}},{"$f":"SUM(E438)","v":{"v":15000,"d":"15,000 "}},{"$f":"SUM(F438)","v":{"v":0,"d":"0 "}},{"$f":"SUM(G438)","v":{"v":0,"d":"0 "}},{"$f":"SUM(H438,H443,H451,H452)","v":{"v":0,"d":"0 "}},{"$f":"SUM(I438)","v":{"v":0,"d":"0 "}},null,{"$f":"SUM(K438,K443,K451,K452)","v":{"v":150000,"d":"150,000 "}}]
["Excess (Deficiency) of Receipts/Revenues Over Disbursements/Expenditures",{"$nulls":9},{"$f":"'EstRev 6-11'!K272-'EstExp 12-20'!K453","v":{"v":28000,"d":"28,000 "}}]

{"sheet":"Itemize 21","index":5,"n_rows":48,"n_cols":9,"rows_kept":48}
[null,"If there is an amount in column C or column G, please describe the type of revenue or expenditure in column D or column H."]
[null,"Revenue Check:",{"$f":"IF(COUNTIF(A:A,\"ERROR-Describe Revenue\")<>0,\"Error - Please describe all the revenue.\",\"OK\")","v":"OK"}]
[null,"Expenditure Check:",{"$f":"IF(COUNTIF(I:I,\"ERROR-Describe Expenditures\")<>0,\"Error - Please describe all the expenditures.\",\"OK\")","v":"OK"}]
["Error Message ","Revenues Acct. (EstRev tab)","Amount ","Describe Revenue",null,"Expenditures Fund-Function (EstExp tab)","Amount ","Describe Expenditures ","Error Message"]
[{"$f":"IF(AND(C5=\"\",D5=\"\"),\"OK\",IF(AND(C5<>\"\",D5<>\"\"),\"OK\",\"ERROR-Describe Revenue\"))","v":"OK"},1190,{"$f":"IF(SUM('EstRev 6-11'!$C$11:$K$11)>0,SUM('EstRev 6-11'!$C$11:$K$11),\"\")","v":""},null,null,"10-2190",{"$f":"IF(SUM('EstExp 12-20'!$C$43:$J$43)>0,SUM('EstExp 12-20'!$C$43:$J$43),\"\")","v":""},null,{"$f":"IF(AND(G5=\"\",H5=\"\"),\"OK\",IF(AND(G5<>\"\",H5<>\"\"),\"OK\",\"ERROR-Describe Expenditures\"))","v":"OK"}]
["OK",1290,{"$f":"IF(SUM('EstRev 6-11'!$C$17:$K$17)>0,SUM('EstRev 6-11'!$C$17:$K$17),\"\")","v":""},null,null,"10-2490",{"$f":"IF(SUM('EstExp 12-20'!$C$58:$J$58)>0,SUM('EstExp 12-20'!$C$58:$J$58),\"\")","v":""},null,{"$f":"IF(AND(G6=\"\",H6=\"\"),\"OK\",IF(AND(G6<>\"\",H6<>\"\"),\"OK\",\"ERROR-Describe Expenditures\"))","v":"OK"}]
["OK",1614,{"$f":"IF(SUM('EstRev 6-11'!$C$72:$K$72)>0,SUM('EstRev 6-11'!$C$72:$K$72),\"\")","v":""},null,null,"10-2900",{"$f":"IF(SUM('EstExp 12-20'!$C$75:$J$75)>0,SUM('EstExp 12-20'!$C$75:$J$75),\"\")","v":{"v":125000,"d":"$125,000"}},"Huntington Learning Center and McKinney Vento Exps","OK"]
["OK",1690,{"$f":"IF(SUM('EstRev 6-11'!$C$74:$K$74)>0,SUM('EstRev 6-11'!$C$74:$K$74),\"\")","v":""},null,null,"10-4190",{"$f":"IF(SUM('EstExp 12-20'!$C$85:$J$85)>0,SUM('EstExp 12-20'!$C$85:$J$85),\"\")","v":{"v":110000,"d":"$110,000"}},"Refund to ISBE for ESSER III","OK"]
["OK",1790,{"$f":"IF(SUM('EstRev 6-11'!$C$81:$K$81)>0,SUM('EstRev 6-11'!$C$81:$K$81),\"\")","v":""},null,null,"10-4290",{"$f":"IF(SUM('EstExp 12-20'!$C$93:$J$93)>0,SUM('EstExp 12-20'!$C$93:$J$93),\"\")","v":""},null,"OK"]
["OK",1819,{"$f":"IF(SUM('EstRev 6-11'!$C$89:$K$89)>0,SUM('EstRev 6-11'!$C$89:$K$89),\"\")","v":""},null,null,"10-4390",{"$f":"IF(SUM('EstExp 12-20'!$C$101:$J$101)>0,SUM('EstExp 12-20'!$C$101:$J$101),\"\")","v":""},null,"OK"]
["OK",1829,{"$f":"IF(SUM('EstRev 6-11'!$C$93:$K$93)>0,SUM('EstRev 6-11'!$C$93:$K$93),\"\")","v":""},null,null,"10-4400",{"$f":"IF(SUM('EstExp 12-20'!$C$103:$J$103)>0,SUM('EstExp 12-20'!$C$103:$J$103),\"\")","v":""},null,"OK"]
["OK",1890,{"$f":"IF(SUM('EstRev 6-11'!$C$94:$K$94)>0,SUM('EstRev 6-11'!$C$94:$K$94),\"\")","v":""},null,null,"10-5150",{"$f":"IF(SUM('EstExp 12-20'!$C$111:$J$111)>0,SUM('EstExp 12-20'!$C$111:$J$111),\"\")","v":""},null,"OK"]
["OK",1993,{"$f":"IF(SUM('EstRev 6-11'!$C$108:$K$108)>0,SUM('EstRev 6-11'!$C$108:$K$108),\"\")","v":""},null,null,"20-2190",{"$f":"IF(SUM('EstExp 12-20'!$C$124:$J$124)>0,SUM('EstExp 12-20'!$C$124:$J$124),\"\")","v":""},null,"OK"]
["OK",1999,{"$f":"IF(SUM('EstRev 6-11'!$C$109:$K$109)>0,SUM('EstRev 6-11'!$C$109:$K$109),\"\")","v":{"v":17000,"d":"$17,000"}},"Misc Rev & Tech Fee",null,"20-2900",{"$f":"IF(SUM('EstExp 12-20'!$C$132:$J$132)>0,SUM('EstExp 12-20'!$C$132:$J$132),\"\")","v":""},null,"OK"]
["OK",2300,{"$f":"IF(SUM('EstRev 6-11'!$C$116:$K$116)>0,SUM('EstRev 6-11'!$C$116:$K$116),\"\")","v":""},null,null,"20-4190",{"$f":"IF(SUM('EstExp 12-20'!$C$140:$J$140)>0,SUM('EstExp 12-20'!$C$140:$J$140),\"\")","v":""},null,"OK"]
["OK",3099,{"$f":"IF(SUM('EstRev 6-11'!$C$123:$K$123)>0,SUM('EstRev 6-11'!$C$123:$K$123),\"\")","v":""},null,null,"20-4400",{"$f":"IF(SUM('EstExp 12-20'!$C$142:$J$142)>0,SUM('EstExp 12-20'!$C$142:$J$142),\"\")","v":""},null,"OK"]
["OK",3199,{"$f":"IF(SUM('EstRev 6-11'!$C$133:$K$133)>0,SUM('EstRev 6-11'!$C$133:$K$133),\"\")","v":""},null,null,"20-5150",{"$f":"IF(SUM('EstExp 12-20'!$C$150:$J$150)>0,SUM('EstExp 12-20'!$C$150:$J$150),\"\")","v":""},null,"OK"]
["OK",3299,{"$f":"IF(SUM('EstRev 6-11'!$C$142:$K$142)>0,SUM('EstRev 6-11'!$C$142:$K$142),\"\")","v":""},null,null,"30-4190",{"$f":"IF(SUM('EstExp 12-20'!$C$163:$J$163)>0,SUM('EstExp 12-20'!$C$163:$J$163),\"\")","v":""},null,"OK"]
["OK",3499,{"$f":"IF(SUM('EstRev 6-11'!$C$152:$K$152)>0,SUM('EstRev 6-11'!$C$152:$K$152),\"\")","v":""},null,null,"30-5150",{"$f":"IF(SUM('EstExp 12-20'!$C$171:$J$171)>0,SUM('EstExp 12-20'!$C$171:$J$171),\"\")","v":""},null,"OK"]
["OK",3599,{"$f":"IF(SUM('EstRev 6-11'!$C$156:$K$156)>0,SUM('EstRev 6-11'!$C$156:$K$156),\"\")","v":""},null,null,"30-5300",{"$f":"IF(SUM('EstExp 12-20'!$C$174:$J$174)>0,SUM('EstExp 12-20'!$C$174:$J$174),\"\")","v":{"v":20000,"d":"$20,000"}},"Exp related to Bond Payments","OK"]
["OK",3999,{"$f":"IF(SUM('EstRev 6-11'!$C$170:$K$170)>0,SUM('EstRev 6-11'!$C$170:$K$170),\"\")","v":{"v":170000,"d":"$170,000"}},"Teacher Vacancy Grant Funds",null,"30-5400",{"$f":"IF(SUM('EstExp 12-20'!$C$175:$J$175)>0,SUM('EstExp 12-20'!$C$175:$J$175),\"\")","v":{"v":2000,"d":"$2,000"}},"Exp Related to Bond Payments","OK"]
["OK",4009,{"$f":"IF(SUM('EstRev 6-11'!$C$176:$K$176)>0,SUM('EstRev 6-11'!$C$176:$K$176),\"\")","v":""},null,null,"40-2190",{"$f":"IF(SUM('EstExp 12-20'!$C$184:$J$184)>0,SUM('EstExp 12-20'!$C$184:$J$184),\"\")","v":""},null,"OK"]
["OK",4090,{"$f":"IF(SUM('EstRev 6-11'!$C$182:$K$182)>0,SUM('EstRev 6-11'!$C$182:$K$182),\"\")","v":""},null,null,"40-2900",{"$f":"IF(SUM('EstExp 12-20'!$C$187:$J$187)>0,SUM('EstExp 12-20'!$C$187:$J$187),\"\")","v":""},null,"OK"]
["OK",4199,{"$f":"IF(SUM('EstRev 6-11'!$C$189:$K$189)>0,SUM('EstRev 6-11'!$C$189:$K$189),\"\")","v":""},null,null,"40-4190",{"$f":"IF(SUM('EstExp 12-20'!$C$197:$J$197)>0,SUM('EstExp 12-20'!$C$197:$J$197),\"\")","v":""},null,"OK"]
["OK",4299,{"$f":"IF(SUM('EstRev 6-11'!$C$199:$K$199)>0,SUM('EstRev 6-11'!$C$199:$K$199),\"\")","v":""},null,null,"40-4400",{"$f":"IF(SUM('EstExp 12-20'!$C$199:$J$199)>0,SUM('EstExp 12-20'!$C$199:$J$199),\"\")","v":""},null,"OK"]
["OK",4399,{"$f":"IF(SUM('EstRev 6-11'!$C$205:$K$205)>0,SUM('EstRev 6-11'!$C$205:$K$205),\"\")","v":""},null,null,"40-5150",{"$f":"IF(SUM('EstExp 12-20'!$C$207:$J$207)>0,SUM('EstExp 12-20'!$C$207:$J$207),\"\")","v":""},null,"OK"]
["OK",4499,{"$f":"IF(SUM('EstRev 6-11'!$C$211:$K$211)>0,SUM('EstRev 6-11'!$C$211:$K$211),\"\")","v":""},null,null,"40-5300",{"$f":"IF(SUM('EstExp 12-20'!$C$210:$J$210)>0,SUM('EstExp 12-20'!$C$210:$J$210),\"\")","v":""},null,"OK"]
["OK",4699,{"$f":"IF(SUM('EstRev 6-11'!$C$219:$K$219)>0,SUM('EstRev 6-11'!$C$219:$K$219),\"\")","v":""},null,null,"40-5400",{"$f":"IF(SUM('EstExp 12-20'!$C$211:$J$211)>0,SUM('EstExp 12-20'!$C$211:$J$211),\"\")","v":""},null,"OK"]
["OK",4799,{"$f":"IF(SUM('EstRev 6-11'!$C$223:$K$223)>0,SUM('EstRev 6-11'!$C$223:$K$223),\"\")","v":""},null,null,"50-2190",{"$f":"IF(SUM('EstExp 12-20'!$C$241:$J$241)>0,SUM('EstExp 12-20'!$C$241:$J$241),\"\")","v":""},null,"OK"]
["OK",4998,{"$f":"IF(SUM('EstRev 6-11'!$C$269:$K$269)>0,SUM('EstRev 6-11'!$C$269:$K$269),\"\")","v":{"v":403000,"d":"$403,000"}},"Remained of ESSER III funds to be received",null,"50-2490",{"$f":"IF(SUM('EstExp 12-20'!$C$257:$J$257)>0,SUM('EstExp 12-20'!$C$257:$J$257),\"\")","v":""},null,"OK"]
[{"$nulls":5},"50-2900",{"$f":"IF(SUM('EstExp 12-20'!$C$275:$J$275)>0,SUM('EstExp 12-20'!$C$275:$J$275),\"\")","v":{"v":5000,"d":"$5,000"}},"IMRF Exp","OK"]
[{"$nulls":5},"50-5150",{"$f":"IF(SUM('EstExp 12-20'!$C$289:$J$289)>0,SUM('EstExp 12-20'!$C$289:$J$289),\"\")","v":""},null,"OK"]
[{"$nulls":5},"60-2900",{"$f":"IF(SUM('EstExp 12-20'!$C$299:$J$299)>0,SUM('EstExp 12-20'!$C$299:$J$299),\"\")","v":""},null,"OK"]
[{"$nulls":5},"60-4190",{"$f":"IF(SUM('EstExp 12-20'!$C$306:$J$306)>0,SUM('EstExp 12-20'!$C$306:$J$306),\"\")","v":""},null,"OK"]
[{"$nulls":5},"80-2190",{"$f":"IF(SUM('EstExp 12-20'!$C$352:$J$352)>0,SUM('EstExp 12-20'!$C$352:$J$352),\"\")","v":""},null,"OK"]
[{"$nulls":5},"80-2490",{"$f":"IF(SUM('EstExp 12-20'!$C$368:$J$368)>0,SUM('EstExp 12-20'!$C$368:$J$368),\"\")","v":""},null,"OK"]
[{"$nulls":5},"80-2900",{"$f":"IF(SUM('EstExp 12-20'!$C$386:$J$386)>0,SUM('EstExp 12-20'!$C$386:$J$386),\"\")","v":""},null,"OK"]
[{"$nulls":5},"80-4190",{"$f":"IF(SUM('EstExp 12-20'!$C$396:$J$396)>0,SUM('EstExp 12-20'!$C$396:$J$396),\"\")","v":""},null,"OK"]
[{"$nulls":5},"80-4290",{"$f":"IF(SUM('EstExp 12-20'!$C$404:$J$404)>0,SUM('EstExp 12-20'!$C$404:$J$404),\"\")","v":""},null,"OK"]
[{"$nulls":5},"80-4390",{"$f":"IF(SUM('EstExp 12-20'!$C$412:$J$412)>0,SUM('EstExp 12-20'!$C$412:$J$412),\"\")","v":""},null,"OK"]
[{"$nulls":5},"80-4400",{"$f":"IF(SUM('EstExp 12-20'!$C$414:$J$414)>0,SUM('EstExp 12-20'!$C$414:$J$414),\"\")","v":""},null,"OK"]
[{"$nulls":5},"80-5150",{"$f":"IF(SUM('EstExp 12-20'!$C$422:$J$422)>0,SUM('EstExp 12-20'!$C$422:$J$422),\"\")","v":""},null,"OK"]
[{"$nulls":5},"80-5300",{"$f":"IF(SUM('EstExp 12-20'!$C$424:$J$424)>0,SUM('EstExp 12-20'!$C$424:$J$424),\"\")","v":""},null,"OK"]
[{"$nulls":5},"80-5400",{"$f":"IF(SUM('EstExp 12-20'!$C$425:$J$425)>0,SUM('EstExp 12-20'!$C$425:$J$425),\"\")","v":""},null,"OK"]
[{"$nulls":5},"90-2900",{"$f":"IF(SUM('EstExp 12-20'!$C$437:$J$437)>0,SUM('EstExp 12-20'!$C$437:$J$437),\"\")","v":""},null,"OK"]
[{"$nulls":5},"90-4190",{"$f":"IF(SUM('EstExp 12-20'!$C$442:$J$442)>0,SUM('EstExp 12-20'!$C$442:$J$442),\"\")","v":""},null,"OK"]
[{"$nulls":5},"90-5150",{"$f":"IF(SUM('EstExp 12-20'!$C$447:$J$447)>0,SUM('EstExp 12-20'!$C$447:$J$447),\"\")","v":""},null,"OK"]
[{"$nulls":5},"90-5300",{"$f":"IF(SUM('EstExp 12-20'!$C$450:$J$450)>0,SUM('EstExp 12-20'!$C$450:$J$450),\"\")","v":""},null,"OK"]

{"sheet":"DeficitBudgetSum Calc 22","index":6,"n_rows":20,"n_cols":7,"rows_kept":20,"merged":[[0,1,0,6],[6,3,6,6],[7,1,7,3],[7,4,7,5],[8,1,8,5],[10,1,10,5],[12,1,12,3],[12,4,12,5],[13,1,13,5],[16,1,16,5]]}
[null,"DEFICIT BUDGET SUMMARY INFORMATION - Operating Funds Only (School Districts Only)"]
[null,"Description ","EDUCATIONAL FUND (10)","OPERATIONS & MAINTENANCE FUND (20)","TRANSPORTATION FUND (40)","WORKING CASH FUND (70)","TOTAL"]
[null,"Direct Revenues",{"$f":"'BudgetSum 2-4'!C9","v":{"v":12817900,"d":"12,817,900 "}},{"$f":"'BudgetSum 2-4'!D9","v":{"v":1597000,"d":"1,597,000 "}},{"$f":"'BudgetSum 2-4'!F9","v":{"v":510000,"d":"510,000 "}},{"$f":"'BudgetSum 2-4'!I9","v":{"v":27000,"d":"27,000 "}},{"$f":"SUM(C3:F3)","v":{"v":14951900,"d":"14,951,900 "}}]
[null,"Direct Expenditures",{"$f":"'BudgetSum 2-4'!C19","v":{"v":13733956,"d":"13,733,956 "}},{"$f":"'BudgetSum 2-4'!D19","v":{"v":1564500,"d":"1,564,500 "}},{"$f":"'BudgetSum 2-4'!F19","v":{"v":450000,"d":"450,000 "}},null,{"$f":"SUM(C4:F4)","v":{"v":15748456,"d":"15,748,456 "}}]
[null,"Difference",{"$f":"(C3-C4)","v":{"v":-916056,"d":"(916,056)"}},{"$f":"(D3-D4)","v":{"v":32500,"d":"32,500 "}},{"$f":"(E3-E4)","v":{"v":60000,"d":"60,000 "}},{"$f":"(F3-F4)","v":{"v":27000,"d":"27,000 "}},{"$f":"SUM(G3-G4)","v":{"v":-796556,"d":"(796,556)"}}]
[null,{"$f":"\"Estimated Fund Balance - June 30, \"&'B25'!L2","v":"Estimated Fund Balance - June 30, 2025"},{"$f":"'BudgetSum 2-4'!C81","v":{"v":6460442,"d":"6,460,442 "}},{"$f":"'BudgetSum 2-4'!D81","v":{"v":32500,"d":"32,500 "}},{"$f":"'BudgetSum 2-4'!F81","v":{"v":60969,"d":"60,969 "}},{"$f":"'BudgetSum 2-4'!I81","v":{"v":5031949,"d":"5,031,949 "}},{"$f":"SUM(C6:F6)","v":{"v":11585860,"d":"11,585,860 "}}]
[{"$nulls":3},{"$f":"IF(Cover!B3=\"X\", \"Deficit Reduction Plan is not required\", IF(AND(G5<0,G6>=0,ABS(G5*3)>ABS(G6)),B17,IF(AND(G5<0,G6>0,ABS(G5*3)<=ABS(G6)),B18,IF(AND(G5<0,G6<0),B17,IF(G6=0,B20,B19)))))","v":"Unbalanced budget; however, a Deficit Reduction Plan is not required at this time."}]
[null,{"$f":"\"A deficit reduction plan is required if the local board of education adopts (or amends) the \"&'B25'!L2-1&-'B25'!L2","v":"A deficit reduction plan is required if the local board of education adopts (or amends) the 2024-2025"},null,null,"school district budget in which the “operating funds”"]
[null,"listed above result in direct revenues (line 9, BudgetSum 2-4) being less than direct expenditures (line 19, BudgetSum 2-4) by an amount equal to or greater than one-third (1/3) of the ending fund balance (line 81, BudgetSum 2-4)."]
[]
[null,"Note:  The balance is determined using only the four funds listed above.  That is, if the estimated ending fund balance is less than three times the deficit spending, the district must adopt and file with ISBE a deficit reduction plan to balance the shortfall within three years."]
[]
[null,{"$f":"\"Per School Code (105 ILCS 5/17-1) - If the Deficit AFR Summary Information tab from the \"&'B25'!L2-2&\"-\"&'B25'!L2-1","v":"Per School Code (105 ILCS 5/17-1) - If the Deficit AFR Summary Information tab from the 2023-2024"},null,null,"Annual Financial Report (AFR) reflects a deficit as"]
[null,"defined above, then the school district shall adopt and submit a deficit reduction plan (found here on page 23-27) to ISBE within 30 days after acceptance of the AFR."]
[null,"The deficit reduction plan, if required, is developed using ISBE guidelines and format. "]
[]
[null,"Unbalanced budget. A Deficit Reduction Plan must be adopted and submitted concurrently with this budget.  This Deficit Reduction Plan must result in a balanced budget by the last year of the attached plan, as adopted by the local board of education.  (Tab: Deficit BudgetSum Calc)",{"$nulls":4},"Deficit Reduction Plan is required"]
[null,"Unbalanced budget; however, a Deficit Reduction Plan is not required at this time.",{"$nulls":4},"Deficit Reduction Plan is not required"]
[null,"Balanced budget; no Deficit Reduction Plan is required.",{"$nulls":4},"Deficit Reduction Plan is not required"]
[null,"To determine if the budget is balanced, complete all pages of the budget first.",{"$nulls":4},"ERROR - INCOMPLETE BUDGET. PLEASE COMPLETE BUDGET FORM"]

{"sheet":"DefReductPlan 23-27","index":7,"n_rows":30,"n_cols":26,"rows_kept":30,"merged":[[0,2,0,6],[0,22,0,25],[1,2,1,6],[1,7,1,11],[1,12,1,16],[1,17,1,21],[1,22,1,25],[2,2,2,6],[2,7,2,11],[2,12,2,16],[2,17,2,21],[2,22,2,25],[3,9,3,10],[3,14,3,15],[3,19,3,20],[3,22,3,23],[6,0,6,1],[12,0,12,1],[20,0,20,1],[21,0,21,1],[25,0,25,1],[26,0,26,1],[29,0,29,3]]}
["*School Districts Only",null,"DEFICIT REDUCTION PLAN",{"$nulls":19},"SUMMARY"]
[null,null,"ESTIMATED BUDGET",{"$nulls":4},"ESTIMATED BUDGET",{"$nulls":4},"ESTIMATED BUDGET",{"$nulls":4},"ESTIMATED BUDGET",{"$nulls":4},"BUDGET ADDENDUM - DEFICIT REDUCTION PLAN"]
[{"$f":"Cover!H14","v":"07016157002"},null,{"$f":"\"FY\"&'B25'!L2-1&-'B25'!L2","v":"FY2024-2025"},{"$nulls":4},{"$f":"\"FY\"&'B25'!L2&-'B25'!L2-1","v":"FY2025-2026"},{"$nulls":4},{"$f":"\"FY\"&'B25'!L2+1&-'B25'!L2-2","v":"FY2026-2027"},{"$nulls":4},{"$f":"\"FY\"&'B25'!L2+2&-'B25'!L2-3","v":"FY2027-2028"},{"$nulls":4},"ESTIMATED BUDGET"]
["District Number",{"$nulls":21},"Date of Adoption:"]
[{"$f":"Cover!H13","v":"Hoover-Schrum Memorial SD 157"},{"$nulls":23},"(Enter as MM/DD/YY)"]
["District Name",null,"Educational Fund","Operations & Maintenance Fund","Transportation Fund","Working Cash Fund","Total","Educational Fund","Operations & Maintenance Fund","Transportation Fund","Working Cash Fund","Total","Educational Fund","Operations & Maintenance Fund","Transportation Fund","Working Cash Fund","Total","Educational Fund","Operations & Maintenance Fund","Transportation Fund","Working Cash Fund","Total",{"$f":"\"FY\"&'B25'!L2-1&-'B25'!L2","v":"FY2024-2025"},{"$f":"\"FY\"&'B25'!L2&-'B25'!L2-1","v":"FY2025-2026"},{"$f":"\"FY\"&'B25'!L2+1&-'B25'!L2-2","v":"FY2026-2027"},{"$f":"\"FY\"&'B25'!L2+2&-'B25'!L2-3","v":"FY2027-2028"}]
["ESTIMATED BEGINNING FUND BALANCE                                                             (must equal prior Ending Fund Balance)",null,{"$f":"'BudgetSum 2-4'!C3","v":{"v":7376498,"d":"7,376,498 "}},{"$f":"'BudgetSum 2-4'!D3","v":{"v":0,"d":"0 "}},{"$f":"'BudgetSum 2-4'!F3","v":{"v":969,"d":"969 "}},{"$f":"'BudgetSum 2-4'!I3","v":{"v":5004949,"d":"5,004,949 "}},{"$f":"SUM(C7:F7)","v":{"v":12382416,"d":"12,382,416 "}},{"$f":"C27","v":{"v":6460442,"d":"6,460,442 "}},{"$f":"D27","v":{"v":32500,"d":"32,500 "}},{"$f":"E27","v":{"v":60969,"d":"60,969 "}},{"$f":"F27","v":{"v":5031949,"d":"5,031,949 "}},{"$f":"SUM(H7:K7)","v":{"v":11585860,"d":"11,585,860 "}},{"$f":"H27","v":{"v":6460442,"d":"6,460,442 "}},{"$f":"I27","v":{"v":32500,"d":"32,500 "}},{"$f":"J27","v":{"v":60969,"d":"60,969 "}},{"$f":"K27","v":{"v":5031949,"d":"5,031,949 "}},{"$f":"SUM(M7:P7)","v":{"v":11585860,"d":"11,585,860 "}},{"$f":"M27","v":{"v":6460442,"d":"6,460,442 "}},{"$f":"N27","v":{"v":32500,"d":"32,500 "}},{"$f":"O27","v":{"v":60969,"d":"60,969 "}},{"$f":"P27","v":{"v":5031949,"d":"5,031,949 "}},{"$f":"SUM(R7:U7)","v":{"v":11585860,"d":"11,585,860 "}},{"$f":"G7","v":{"v":12382416,"d":"12,382,416 "}},{"$f":"L7","v":{"v":11585860,"d":"11,585,860 "}},{"$f":"Q7","v":{"v":11585860,"d":"11,585,860 "}},{"$f":"V7","v":{"v":11585860,"d":"11,585,860 "}}]
["  RECEIPTS/REVENUES","Acct  #"]
["LOCAL SOURCES",1000,{"$f":"'BudgetSum 2-4'!C5","v":{"v":5003900,"d":"5,003,900 "}},{"$f":"'BudgetSum 2-4'!D5","v":{"v":247000,"d":"247,000 "}},{"$f":"'BudgetSum 2-4'!F5","v":{"v":25000,"d":"25,000 "}},{"$f":"'BudgetSum 2-4'!I5","v":{"v":27000,"d":"27,000 "}},{"$f":"SUM(C9:F9)","v":{"v":5302900,"d":"5,302,900 "}},{"$nulls":4},{"$f":"SUM(H9:K9)","v":{"v":0,"d":"0 "}},{"$nulls":4},{"$f":"SUM(M9:P9)","v":{"v":0,"d":"0 "}},{"$nulls":4},{"$f":"SUM(R9:U9)","v":{"v":0,"d":"0 "}},{"$f":"G9","v":{"v":5302900,"d":"5,302,900 "}},{"$f":"L9","v":{"v":0,"d":"0 "}},{"$f":"Q9","v":{"v":0,"d":"0 "}},{"$f":"V9","v":{"v":0,"d":"0 "}}]
["FLOW-THROUGH RECEIPTS/REVENUES FROM ONE DISTRICT TO ANOTHER DISTRICT",2000,{"$f":"'BudgetSum 2-4'!C6","v":{"v":0,"d":"0 "}},{"$f":"'BudgetSum 2-4'!D6","v":{"v":0,"d":"0 "}},{"$f":"'BudgetSum 2-4'!F6","v":{"v":0,"d":"0 "}},null,{"$f":"SUM(C10:F10)","v":{"v":0,"d":"0 "}},{"$nulls":4},{"v":0,"d":"0 "},{"$nulls":4},{"$f":"SUM(M10:P10)","v":{"v":0,"d":"0 "}},{"$nulls":4},{"$f":"SUM(R10:U10)","v":{"v":0,"d":"0 "}},{"$f":"G10","v":{"v":0,"d":"0 "}},{"$f":"L10","v":{"v":0,"d":"0 "}},{"$f":"Q10","v":{"v":0,"d":"0 "}},{"$f":"V10","v":{"v":0,"d":"0 "}}]
["STATE SOURCES",3000,{"$f":"'BudgetSum 2-4'!C7","v":{"v":6057000,"d":"6,057,000 "}},{"$f":"'BudgetSum 2-4'!D7","v":{"v":1350000,"d":"1,350,000 "}},{"$f":"'BudgetSum 2-4'!F7","v":{"v":485000,"d":"485,000 "}},{"$f":"'BudgetSum 2-4'!I7","v":{"v":0,"d":"0 "}},{"$f":"SUM(C11:F11)","v":{"v":7892000,"d":"7,892,000 "}},{"$nulls":4},{"v":0,"d":"0 "},{"$nulls":4},{"$f":"SUM(M11:P11)","v":{"v":0,"d":"0 "}},{"$nulls":4},{"$f":"SUM(R11:U11)","v":{"v":0,"d":"0 "}},{"$f":"G11","v":{"v":7892000,"d":"7,892,000 "}},{"$f":"L11","v":{"v":0,"d":"0 "}},{"$f":"Q11","v":{"v":0,"d":"0 "}},{"$f":"V11","v":{"v":0,"d":"0 "}}]
["FEDERAL SOURCES",4000,{"$f":"'BudgetSum 2-4'!C8","v":{"v":1757000,"d":"1,757,000 "}},{"$f":"'BudgetSum 2-4'!D8","v":{"v":0,"d":"0 "}},{"$f":"'BudgetSum 2-4'!F8","v":{"v":0,"d":"0 "}},{"$f":"'BudgetSum 2-4'!I8","v":{"v":0,"d":"0 "}},{"$f":"SUM(C12:F12)","v":{"v":1757000,"d":"1,757,000 "}},{"$nulls":4},{"v":0,"d":"0 "},{"$nulls":4},{"$f":"SUM(M12:P12)","v":{"v":0,"d":"0 "}},{"$nulls":4},{"$f":"SUM(R12:U12)","v":{"v":0,"d":"0 "}},{"$f":"G12","v":{"v":1757000,"d":"1,757,000 "}},{"$f":"L12","v":{"v":0,"d":"0 "}},{"$f":"Q12","v":{"v":0,"d":"0 "}},{"$f":"V12","v":{"v":0,"d":"0 "}}]
["Total Receipts/Revenues",null,{"$f":"SUM(C9:C12)","v":{"v":12817900,"d":"12,817,900 "}},{"$f":"SUM(D9:D12)","v":{"v":1597000,"d":"1,597,000 "}},{"$f":"SUM(E9:E12)","v":{"v":510000,"d":"510,000 "}},{"$f":"SUM(F9:F12)","v":{"v":27000,"d":"27,000 "}},{"$f":"SUM(C13:F13)","v":{"v":14951900,"d":"14,951,900 "}},{"$f":"SUM(H9:H12)","v":{"v":0,"d":"0 "}},{"$f":"SUM(I9:I12)","v":{"v":0,"d":"0 "}},{"$f":"SUM(J9:J12)","v":{"v":0,"d":"0 "}},{"$f":"SUM(K9:K12)","v":{"v":0,"d":"0 "}},{"v":0,"d":"0 "},{"$f":"SUM(M9:M12)","v":{"v":0,"d":"0 "}},{"$f":"SUM(N9:N12)","v":{"v":0,"d":"0 "}},{"$f":"SUM(O9:O12)","v":{"v":0,"d":"0 "}},{"$f":"SUM(P9:P12)","v":{"v":0,"d":"0 "}},{"$f":"SUM(M13:P13)","v":{"v":0,"d":"0 "}},{"$f":"SUM(R9:R12)","v":{"v":0,"d":"0 "}},{"$f":"SUM(S9:S12)","v":{"v":0,"d":"0 "}},{"$f":"SUM(T9:T12)","v":{"v":0,"d":"0 "}},{"$f":"SUM(U9:U12)","v":{"v":0,"d":"0 "}},{"$f":"SUM(R13:U13)","v":{"v":0,"d":"0 "}},{"$f":"G13","v":{"v":14951900,"d":"14,951,900 "}},{"$f":"L13","v":{"v":0,"d":"0 "}},{"$f":"Q13","v":{"v":0,"d":"0 "}},{"$f":"V13","v":{"v":0,"d":"0 "}}]
["DISBURSEMENTS/EXPENDITURES","Funct #"]
["INSTRUCTION",1000,{"$f":"'BudgetSum 2-4'!C13","v":{"v":7233137,"d":"7,233,137 "}},{"$nulls":3},{"$f":"SUM(C15:F15)","v":{"v":7233137,"d":"7,233,137 "}},{"$nulls":4},{"v":0,"d":"0 "},{"$nulls":4},{"$f":"SUM(M15:P15)","v":{"v":0,"d":"0 "}},{"$nulls":4},{"$f":"SUM(R15:U15)","v":{"v":0,"d":"0 "}},{"$f":"G15","v":{"v":7233137,"d":"7,233,137 "}},{"$f":"L15","v":{"v":0,"d":"0 "}},{"$f":"Q15","v":{"v":0,"d":"0 "}},{"$f":"V15","v":{"v":0,"d":"0 "}}]
["SUPPORT SERVICES",2000,{"$f":"'BudgetSum 2-4'!C14","v":{"v":5295819,"d":"5,295,819 "}},{"$f":"'BudgetSum 2-4'!D14","v":{"v":1564500,"d":"1,564,500 "}},{"$f":"'BudgetSum 2-4'!F14","v":{"v":450000,"d":"450,000 "}},null,{"v":7310319,"d":"7,310,319 "},{"$nulls":4},{"v":0,"d":"0 "},{"$nulls":4},{"v":0,"d":"0 "},{"$nulls":4},{"v":0,"d":"0 "},{"v":7310319,"d":"7,310,319 "},{"v":0,"d":"0 "},{"v":0,"d":"0 "},{"v":0,"d":"0 "}]
["COMMUNITY SERVICES",3000,{"$f":"'BudgetSum 2-4'!C15","v":{"v":315000,"d":"315,000 "}},{"$f":"'BudgetSum 2-4'!D15","v":{"v":0,"d":"0 "}},{"$f":"'BudgetSum 2-4'!F15","v":{"v":0,"d":"0 "}},null,{"v":315000,"d":"315,000 "},{"$nulls":4},{"v":0,"d":"0 "},{"$nulls":4},{"v":0,"d":"0 "},{"$nulls":4},{"v":0,"d":"0 "},{"v":315000,"d":"315,000 "},{"v":0,"d":"0 "},{"v":0,"d":"0 "},{"v":0,"d":"0 "}]
["PAYMENTS TO OTHER DISTRICTS & GOVT. UNITS",4000,{"$f":"'BudgetSum 2-4'!C16","v":{"v":890000,"d":"890,000 "}},{"$f":"'BudgetSum 2-4'!D16","v":{"v":0,"d":"0 "}},{"$f":"'BudgetSum 2-4'!F16","v":{"v":0,"d":"0 "}},null,{"v":890000,"d":"890,000 "},{"$nulls":4},{"v":0,"d":"0 "},{"$nulls":4},{"v":0,"d":"0 "},{"$nulls":4},{"v":0,"d":"0 "},{"v":890000,"d":"890,000 "},{"v":0,"d":"0 "},{"v":0,"d":"0 "},{"v":0,"d":"0 "}]
["DEBT SERVICES",5000,{"$f":"'BudgetSum 2-4'!C17","v":{"v":0,"d":"0 "}},{"$f":"'BudgetSum 2-4'!D17","v":{"v":0,"d":"0 "}},{"$f":"'BudgetSum 2-4'!F17","v":{"v":0,"d":"0 "}},null,{"v":0,"d":"0 "},{"$nulls":4},{"v":0,"d":"0 "},{"$nulls":4},{"v":0,"d":"0 "},{"$nulls":4},{"v":0,"d":"0 "},{"v":0,"d":"0 "},{"v":0,"d":"0 "},{"v":0,"d":"0 "},{"v":0,"d":"0 "}]
["PROVISION FOR CONTINGENCIES",6000,{"$f":"'BudgetSum 2-4'!C18","v":{"v":0,"d":"0 "}},{"$f":"'BudgetSum 2-4'!D18","v":{"v":0,"d":"0 "}},{"$f":"'BudgetSum 2-4'!F18","v":{"v":0,"d":"0 "}},null,{"v":0,"d":"0 "},{"$nulls":4},{"v":0,"d":"0 "},{"$nulls":4},{"v":0,"d":"0 "},{"$nulls":4},{"v":0,"d":"0 "},{"v":0,"d":"0 "},{"v":0,"d":"0 "},{"v":0,"d":"0 "},{"v":0,"d":"0 "}]
["Total Disbursements/Expenditures",null,{"$f":"SUM(C15:C20)","v":{"v":13733956,"d":"13,733,956 "}},{"$f":"SUM(D15:D20)","v":{"v":1564500,"d":"1,564,500 "}},{"$f":"SUM(E15:E20)","v":{"v":450000,"d":"450,000 "}},null,{"v":15748456,"d":"15,748,456 "},{"$f":"SUM(H15:H20)","v":{"v":0,"d":"0 "}},{"$f":"SUM(I15:I20)","v":{"v":0,"d":"0 "}},{"$f":"SUM(J15:J20)","v":{"v":0,"d":"0 "}},null,{"v":0,"d":"0 "},{"$f":"SUM(M15:M20)","v":{"v":0,"d":"0 "}},{"$f":"SUM(N15:N20)","v":{"v":0,"d":"0 "}},{"$f":"SUM(O15:O20)","v":{"v":0,"d":"0 "}},null,{"v":0,"d":"0 "},{"$f":"SUM(R15:R20)","v":{"v":0,"d":"0 "}},{"$f":"SUM(S15:S20)","v":{"v":0,"d":"0 "}},{"$f":"SUM(T15:T20)","v":{"v":0,"d":"0 "}},null,{"v":0,"d":"0 "},{"v":15748456,"d":"15,748,456 "},{"v":0,"d":"0 "},{"v":0,"d":"0 "},{"v":0,"d":"0 "}]
["Excess of Receipts/Revenue Over/(Under) Disbursements/Expenditures",null,{"$f":"SUM(C13-C21)","v":{"v":-916056,"d":"(916,056)"}},{"$f":"SUM(D13-D21)","v":{"v":32500,"d":"32,500 "}},{"$f":"SUM(E13-E21)","v":{"v":60000,"d":"60,000 "}},{"$f":"SUM(F13-F21)","v":{"v":27000,"d":"27,000 "}},{"$f":"G13-G21","v":{"v":-796556,"d":"(796,556)"}},{"$f":"SUM(H13-H21)","v":{"v":0,"d":"0 "}},{"$f":"SUM(I13-I21)","v":{"v":0,"d":"0 "}},{"$f":"SUM(J13-J21)","v":{"v":0,"d":"0 "}},{"$f":"SUM(K13-K21)","v":{"v":0,"d":"0 "}},{"$f":"SUM(H22:K22)","v":{"v":0,"d":"0 "}},{"$f":"SUM(M13-M21)","v":{"v":0,"d":"0 "}},{"$f":"SUM(N13-N21)","v":{"v":0,"d":"0 "}},{"$f":"SUM(O13-O21)","v":{"v":0,"d":"0 "}},{"$f":"SUM(P13-P21)","v":{"v":0,"d":"0 "}},{"$f":"SUM(M22:P22)","v":{"v":0,"d":"0 "}},{"$f":"SUM(R13-R21)","v":{"v":0,"d":"0 "}},{"$f":"SUM(S13-S21)","v":{"v":0,"d":"0 "}},{"$f":"SUM(T13-T21)","v":{"v":0,"d":"0 "}},{"$f":"SUM(U13-U21)","v":{"v":0,"d":"0 "}},{"$f":"SUM(R22:U22)","v":{"v":0,"d":"0 "}},{"v":-796556,"d":"(796,556)"},{"v":0,"d":"0 "},{"v":0,"d":"0 "},{"v":0,"d":"0 "}]
["OTHER SOURCES/USES OF FUNDS"]
["OTHER SOURCES OF FUNDS (7000)",null,{"$f":"'BudgetSum 2-4'!C46","v":{"v":0,"d":"0 "}},{"$f":"'BudgetSum 2-4'!D46","v":{"v":0,"d":"0 "}},{"$f":"'BudgetSum 2-4'!F46","v":{"v":0,"d":"0 "}},{"$f":"'BudgetSum 2-4'!I46","v":{"v":0,"d":"0 "}},{"$f":"SUM(C24:F24)","v":{"v":0,"d":"0 "}},{"$nulls":4},{"$f":"SUM(H24:K24)","v":{"v":0,"d":"0 "}},{"$nulls":4},{"$f":"SUM(M24:P24)","v":{"v":0,"d":"0 "}},{"$nulls":4},{"$f":"SUM(R24:U24)","v":{"v":0,"d":"0 "}},{"$f":"G24","v":{"v":0,"d":"0 "}},{"$f":"L24","v":{"v":0,"d":"0 "}},{"$f":"Q24","v":{"v":0,"d":"0 "}},{"$f":"V24","v":{"v":0,"d":"0 "}}]
["OTHER USES OF FUNDS (8000)",null,{"$f":"'BudgetSum 2-4'!C79","v":{"v":0,"d":"0 "}},{"$f":"'BudgetSum 2-4'!D79","v":{"v":0,"d":"0 "}},{"$f":"'BudgetSum 2-4'!F79","v":{"v":0,"d":"0 "}},{"$f":"'BudgetSum 2-4'!I79","v":{"v":0,"d":"0 "}},{"$f":"SUM(C25:F25)","v":{"v":0,"d":"0 "}},{"$nulls":4},{"$f":"SUM(H25:K25)","v":{"v":0,"d":"0 "}},{"$nulls":4},{"$f":"SUM(M25:P25)","v":{"v":0,"d":"0 "}},{"$nulls":4},{"$f":"SUM(R25:U25)","v":{"v":0,"d":"0 "}},{"$f":"G25","v":{"v":0,"d":"0 "}},{"$f":"L25","v":{"v":0,"d":"0 "}},{"$f":"Q25","v":{"v":0,"d":"0 "}},{"$f":"V25","v":{"v":0,"d":"0 "}}]
["TOTAL OTHER SOURCES/USES OF FUNDS",null,{"$f":"SUM(C24-C25)","v":{"v":0,"d":"0 "}},{"v":0,"d":"0 "},{"v":0,"d":"0 "},{"v":0,"d":"0 "},{"v":0,"d":"0 "},{"v":0,"d":"0 "},{"$f":"SUM(I24-I25)","v":{"v":0,"d":"0 "}},{"v":0,"d":"0 "},{"v":0,"d":"0 "},{"$f":"SUM(H26:K26)","v":{"v":0,"d":"0 "}},{"v":0,"d":"0 "},{"v":0,"d":"0 "},{"v":0,"d":"0 "},{"v":0,"d":"0 "},{"$f":"SUM(M26:P26)","v":{"v":0,"d":"0 "}},{"v":0,"d":"0 "},{"v":0,"d":"0 "},{"v":0,"d":"0 "},{"v":0,"d":"0 "},{"$f":"SUM(R26:U26)","v":{"v":0,"d":"0 "}},{"$f":"G26","v":{"v":0,"d":"0 "}},{"$f":"L26","v":{"v":0,"d":"0 "}},{"$f":"Q26","v":{"v":0,"d":"0 "}},{"$f":"V26","v":{"v":0,"d":"0 "}}]
["ESTIMATED ENDING FUND BALANCE",null,{"$f":"C7+C22+C26","v":{"v":6460442,"d":"6,460,442 "}},{"$f":"D7+D22+D26","v":{"v":32500,"d":"32,500 "}},{"v":60969,"d":"60,969 "},{"v":5031949,"d":"5,031,949 "},{"v":11585860,"d":"11,585,860 "},{"v":6460442,"d":"6,460,442 "},{"v":32500,"d":"32,500 "},{"v":60969,"d":"60,969 "},{"v":5031949,"d":"5,031,949 "},{"$f":"SUM(H27:K27)","v":{"v":11585860,"d":"11,585,860 "}},{"v":6460442,"d":"6,460,442 "},{"v":32500,"d":"32,500 "},{"v":60969,"d":"60,969 "},{"v":5031949,"d":"5,031,949 "},{"v":11585860,"d":"11,585,860 "},{"v":6460442,"d":"6,460,442 "},{"v":32500,"d":"32,500 "},{"v":60969,"d":"60,969 "},{"v":5031949,"d":"5,031,949 "},{"$f":"V7+V22+V26","v":{"v":11585860,"d":"11,585,860 "}},{"$f":"G27","v":{"v":11585860,"d":"11,585,860 "}},{"$f":"L27","v":{"v":11585860,"d":"11,585,860 "}},{"$f":"Q27","v":{"v":11585860,"d":"11,585,860 "}},{"$f":"V27","v":{"v":11585860,"d":"11,585,860 "}}]
[]
[]
[{"$f":"IF(V13<>0,IF(V21<>0,IF(V22<0,IF(V27/3<ABS(V22),\"The district's plan does not result in a balanced budget.  Revise the plan prior to school board approval and submission to ISBE.\", \"The district's plan meets the requirements.\"),\"The district's plan meets the requirements.\"),\"Plan is incomplete.\"),\"Plan is incomplete.\")","v":"Plan is incomplete."}]

{"sheet":"Bckgrnd-Assumpt 28-29","index":8,"n_rows":33,"n_cols":2,"rows_kept":33}
[null,"Deficit Reduction Plan-Background/Assumptions (School Districts Only) "]
[null,{"$f":"\"Fiscal Year \"&'B25'!L2-1&-'B25'!L2","v":"Fiscal Year 2024-2025"}]
[null,{"$f":"\"through Fiscal Year \"&'B25'!L2+2&-'B25'!L2-3","v":"through Fiscal Year 2027-2028"}]
[]
[null,{"$f":"Cover!H13&\"              \"&Cover!H14","v":"Hoover-Schrum Memorial SD 157              07016157002"}]
[null,"Please complete the following schedule and include a brief description to identify any areas of the budget that will be impacted from one year to the next.  If the deficit reduction plan relies upon new local revenues, identify contingencies for further budget reductions which will be enacted in the event those new revenues are not available.  "]
[]
[]
[{"v":1,"d":"1."},"Background and Narrative of Budget Reductions:"]
[]
[]
[{"v":2,"d":"2."},"Assumptions Used in the Deficit Reduction Plan:"]
[]
[]
[null,"- EBF and Estimated New Tier Funding:"]
[]
[]
[null,"- Equal Assessed Valuation and Tax Rates:"]
[]
[]
[null,"- Employee Salaries and Benefits:"]
[]
[]
[null,"- Short- and Long-Term Borrowing:"]
[]
[]
[null,"- Educational Impact:"]
[]
[]
[null,"- Other Assumptions:"]
[]
[]
[null,"- Has the district considered shared services or outsourcing (Ex: Transportation, Insurance)? If yes, please explain:"]

{"sheet":"EBF Spending Plan 30-34","index":9,"n_rows":167,"n_cols":22,"rows_kept":167,"merged":[[0,0,0,12],[1,0,1,12],[2,0,2,12],[3,0,3,12],[4,0,4,12],[5,1,5,12],[6,0,8,0],[6,1,8,12],[9,6,9,7],[9,8,9,10],[9,11,9,12],[10,1,10,5],[10,6,10,7],[10,8,10,10],[10,11,10,12],[11,1,11,5],[11,6,12,12],[12,1,12,5],[13,0,13,12],[14,0,14,12],[15,0,15,12],[16,0,16,12],[17,0,27,3],[17,4,20,4],[17,7,17,8],[17,9,17,10],[18,5,18,10],[19,7,19,8],[19,9,19,10],[21,4,24,4],[21,7,21,8],[21,9,21,10],[23,7,23,8],[23,9,23,10],[24,7,24,8],[24,9,24,10],[25,4,27,4],[28,0,28,12],[29,0,29,5],[29,8,31,12],[30,0,32,0],[30,1,32,5],[30,6,31,6],[30,7,31,7],[32,6,32,12],[33,6,33,7],[33,8,33,10],[33,11,33,12],[34,1,34,5],[34,6,34,7],[34,8,34,10],[34,11,34,12],[35,0,35,12],[36,0,39,0],[36,1,39,5],[36,8,36,9],[37,8,37,9],[38,8,38,9],[39,8,39,9],[40,1,40,5],[40,6,40,12],[41,6,41,7],[41,8,41,10],[41,11,41,12],[42,1,42,5],[42,6,42,7],[42,8,42,10],[42,11,42,12],[43,1,43,5],[43,6,44,12],[44,1,44,5],[45,0,45,12],[46,1,46,12],[47,1,47,12],[48,0,50,4],[48,5,49,5],[48,6,49,6],[48,7,49,7],[48,8,50,12],[51,0,63,3],[51,8,63,12],[64,8,64,12],[65,0,73,3],[65,8,73,12],[74,8,74,12],[75,0,86,3],[75,8,86,12],[87,8,87,12],[89,8,89,10],[89,11,89,12],[90,4,90,12],[91,0,91,12],[92,1,92,5],[92,6,93,12],[93,1,93,5],[94,0,94,12],[95,0,95,12],[96,0,96,12],[97,0,97,12],[98,1,98,5],[98,8,100,12],[99,0,101,0],[99,1,101,4],[102,0,102,12],[103,0,106,0],[103,1,103,5],[103,8,103,9],[104,1,106,5],[104,6,104,7],[104,8,104,10],[104,11,104,12],[105,8,105,9],[106,6,106,7],[106,8,106,10],[107,0,108,0],[107,1,107,5],[107,6,108,12],[108,1,108,5],[109,0,109,12],[110,0,113,0],[110,1,110,5],[110,8,110,9],[111,1,113,5],[111,6,111,7],[111,8,111,10],[111,11,111,12],[112,8,112,9],[113,6,113,7],[113,8,113,10],[113,11,113,12],[114,0,115,0],[114,1,114,5],[114,6,115,12],[115,1,115,5],[116,0,116,12],[117,0,120,0],[117,1,117,5],[117,8,117,9],[118,1,120,5],[118,6,118,7],[118,8,118,10],[119,8,119,9],[120,6,120,7],[120,8,120,10],[121,0,122,0],[121,1,121,5],[121,6,122,12],[122,1,122,5],[123,0,123,12],[124,0,124,12],[125,0,125,12],[126,0,126,12],[127,3,128,12],[130,3,131,12],[136,3,137,3],[136,5,136,6],[137,5,137,6],[140,1,140,12],[141,0,141,12],[142,0,142,3],[142,5,142,12],[143,0,143,3],[143,5,143,12],[144,0,144,3],[144,5,144,12],[145,0,145,3],[145,5,145,12],[146,0,146,3],[146,5,146,12],[147,0,147,3],[147,5,147,12],[148,0,148,3],[148,5,148,12],[149,0,149,3],[149,5,149,12],[150,0,150,3],[150,5,150,12],[151,0,151,3],[151,5,151,12],[152,0,152,3],[152,5,152,12],[153,0,153,3],[153,5,153,12],[154,0,154,3],[154,5,154,12],[155,0,155,3],[155,5,155,12],[156,0,156,3],[156,5,156,12],[157,0,157,3],[157,5,157,12],[158,0,158,3],[158,5,158,12],[159,0,159,3],[159,5,159,12],[160,0,160,3],[160,5,160,12],[161,0,161,3],[161,5,161,12],[162,0,162,3],[162,5,162,12],[163,0,163,3],[163,5,163,12],[164,0,164,3],[164,5,164,12],[165,0,165,3],[165,5,165,12],[166,0,166,3],[166,5,166,12]]}
["Evidence-Based Funding: Fiscal Year 2025 Spending Plan",{"$nulls":12},"RCDT",{"$f":"IF(Cover!H13=0,\"\",IF(Cover!H8=\"Yes\",\"\",Cover!H14))","v":"07016157002"},null,"P1.Q2","P2.Q1","P2.Q2","P2.Q3,P3Q2-4","P2.Q4","Assurances"]
[{"$f":"IF(Cover!H13=0,\"\",IF(Cover!H8=\"Yes\",\"N/A - EBF Spending Plan Not Required for Amended Budgets\",IFERROR(VLOOKUP(O1,'FY24 Data for FY25 Plan'!A3:B932,2,FALSE),\"N/A - EBF Spending Plan Not Required for Joint Agreements\")))","v":"HOOVER-SCHRUM MEMORIAL SD 157"},{"$nulls":15},"Focus increased time and attention on special student groups","Estimated","Climate and culture survey data (e.g., Five Essentials Survey)","Yes","Core Teachers","Yes"]
["Part I: Achieving Student Growth and Making Progress Toward State Education Goals",{"$nulls":12},"Color Key","Text or dollar figure entered by user.",null,"Increase the number of high-quality educators dedicated to special student groups","Actual","Attendance data (e.g., chronic absenteeism, graduation or dropout rates)",null,"Specialist Teachers","No"]
["The questions below allow you to indicate the strategic priorities and strategies that will drive your efforts to achieve student growth and make progress toward state education goals. These may involve investing in any combination of an Organizational Unit's core resources: time, money, people, and programs.  ",{"$nulls":13},"Response selected from dropdown list",null,"Increase number and/or quality of professional development opportunities",null,"Student growth and achievement data, disaggregated by student groups",null,"Instructional Facilitator"]
["Collaboration Opportunity - Organizational Units may find that Part I is most easily and effectively completed if led by program leaders in consultation with finance leaders. ",{"$nulls":13},"Value is provided based on district selection.",null,"Maintain or expand early childhood programming",null,"Student grades or other local academic performance data",null,"Core Intervention Teacher"]
["1)","What are the Organizational Unit's strategic goals for student success for the 2024-25 school year? What measures will be used to evaluate progress? (No more than 2000 characters, including spaces.)",{"$nulls":14},"Maintain or decrease class sizes",null,"Student discipline and behavior data",null,"Substitute Teacher"]
[null,"Hoover Schrum Memorial School District 157 will set goals for student success that align with broader educational objectives.  These goals will focus on academic achievement, standardized test scores, student well-being, and more. Creating a nurturing learning community where excellence is expected of everyone.\nCreating a nurturing learning community where excellence is expected of everyone requires a comprehensive approach that involves strategies and initiatives.  Some steps we include in this process is:\n1. Clear Vision and Mission\n2. Leadership Support\n3. High Expectations\n4. Inclusive Environment\n5. Effective Teaching\n6. Student Support Services\n7. Parent and Community Engagement\n8. Positive Behavior Supports\n9. Safe and Well-Maintained Facilities\n10. Technology Integration\nJust to name a few. Student success will be measured using a combination of academic performance (grades, test scores), personal growth (skills development, critical thinking) and overall well-being (attendance, engagement, mental helath). ",{"$nulls":11},{"$f":"IF(LEN(B7)>10,1,0)","v":1},null,null,"Maintain or expand pupil support services",null,"Educator shortages, retention and recruitment data",null,"Guidance Counselor"]
[{"$nulls":16},"Maintain or expand college and career readiness options (e.g., CTE programming, AP/IB programming, dual credit/dual enrollment programming)",null,"Family and community engagement data",null,"Nurse"]
[{"$nulls":16},"Improve programs, curriculum, and/or learning tools",null,"Site-based expenditure data",null,"Supervisory Aide"]
[{"$nulls":6},"Top Strategy 1",null,"Top Strategy 2",null,null,"Top Strategy 3",{"$nulls":4},"Increase number and/or quality of community, parent, and family engagement opportunities",null,"Annual Financial Report data",null,"Librarian"]
["2)","Select the top three strategies that the Organizational Unit will employ to achieve student growth and make progress toward state education goals. (Select three different responses from the dropdown list.) ",{"$nulls":4},"Maintain or expand early childhood programming",null,"Increase the number of high-quality educators dedicated to special student groups",null,null,"Improve programs, curriculum, and/or learning tools",null,{"$f":"IF(OR(G11=\"\",I11=\"\",L11=\"\"),0,IF(OR(G11=I11,G11=L11,I11=L11),0,1))","v":1},null,null,"Maintain or increase equitable resource allocation for students so that more dollars benefit students in greater need",null,"Financial projections",null,"Librarian Aide"]
[null,"If \"Other\" was selected in question 2, please describe. (No more than 1000 characters, including spaces.)",{"$nulls":14},"Provide interventions and services to reduce truancy or dropout rates",null,"EBF student allocations and/or cost factors",null,"Principal"]
[{"$f":"IF(OR(G11=\"Other\", I11=\"Other\",M11=\"Other\"),\"Required\",\"\")","v":""},{"$f":"IF(COUNTIF(G11:M11,\"Other\"),\"Required\",\"\")","v":""},{"$nulls":11},{"$f":"IF(B13=\"\",1,IF(LEN(G12)>10,1,0))","v":1},null,null,"Provide alternative learning programs and models to address unique student needs",null,"Health and/or technology access data (e.g., CDC School Health Index, ventilation data, etc.)",null,"Assistant Principal"]
[{"$nulls":16},"Other",null,"Equity Journey Continuum Data",null,"School Site Staff"]
["Part II: Planned Use of Evidence-Based Funding",{"$nulls":17},"State Performance Plan Indicators for Special Education",null,"Gifted"]
["The questions below provide an opportunity to document the stakeholders with whom you consulted and the data you analyzed as you determined your strategic allocations of FY 2025 EBF dollars. Key statistics related to EBF distributions are provided for your reference. Form 50-36/50-39 is typically released before current-year appropriations are known. Therefore, the figures provided are for the prior fiscal year. ",{"$nulls":17},"Other local data sources",null,"Professional Development"]
["Collaboration Opportunity - Organizational Units may find that questions in this section are most easily and effectively completed if led by finance leaders in consultation with program leaders.",{"$nulls":19},"Instructional Materials"]
["Evidence-Based Funding  Organizational Unit Results\n(FY 2024)",{"$nulls":3},"Final Resources / Adequacy Target =\nPercent of Adequacy","Average Student Enrollment",{"$f":"IF(Cover!H13=0,\"\",VLOOKUP($O$1,'FY24 Data for FY25 Plan'!$A$3:$BC$932,3,FALSE))","v":803.81},"Adequacy Target",null,{"$f":"IF(Cover!H13=0,\"\",VLOOKUP($O$1,'FY24 Data for FY25 Plan'!$A$3:$BC$932,4,FALSE))","v":{"v":13556327.83,"d":"$13,556,328"}},{"$nulls":10},"Assessments"]
[{"$nulls":20},"Computer & Tech Equip"]
[{"$nulls":5},"Final Resources",{"$f":"IF(Cover!H13=0,\"\",VLOOKUP($O$1,'FY24 Data for FY25 Plan'!$A$3:$BC$932,5,FALSE))","v":{"v":10877534.83,"d":"$10,877,535"}},"Percent of Adequacy",null,{"$f":"IF(Cover!H13=0,\"\",VLOOKUP($O$1,'FY24 Data for FY25 Plan'!$A$3:$BC$932,6,FALSE))","v":{"v":0.8023953806965437,"d":"80%"}},{"$nulls":10},"Student Activities"]
[{"$nulls":20},"Maintenance & Operations"]
[{"$nulls":4},"Base Funding Minimum\n+\nTier Funding = \nGross State Contribution","Tier Assignment",{"$f":"IF(Cover!H13=0,\"\",VLOOKUP($O$1,'FY24 Data for FY25 Plan'!$A$3:$BC$932,7,FALSE))","v":2},"Gross State Contribution",null,{"$f":"IF(Cover!H13=0,\"\",VLOOKUP($O$1,'FY24 Data for FY25 Plan'!$A$3:$BC$932,10,FALSE))","v":{"v":7452400.140000001,"d":"$7,452,400"}},{"$nulls":10},"Central Office"]
[{"$nulls":20},"Employee Benefits"]
[{"$nulls":5},"FY24 Base Funding Minimum",{"$f":"IF(Cover!H13=0,\"\",VLOOKUP($O$1,'FY24 Data for FY25 Plan'!$A$3:$BC$932,9,FALSE))","v":{"v":7352394.44,"d":"$7,352,394"}},"FY 2024 Tier Funding",null,{"$f":"IF(Cover!H13=0,\"\",VLOOKUP($O$1,'FY24 Data for FY25 Plan'!$A$3:$BC$932,8,FALSE))","v":{"v":100005.7,"d":"$100,006"}},{"$nulls":10},"Low-Income Intervention Teacher"]
[{"$nulls":20},"Low-Income Pupil Support Staff"]
[{"$nulls":4},"Within FY 2024 Gross State Contribution, Resources Attributable to \nSpecific Populations","Low-Income Students",{"$f":"IF(Cover!H13=0,\"\",VLOOKUP(O1,'FY24 Data for FY25 Plan'!$A$3:$BC$932,53,FALSE))","v":{"v":1959131.7299999997,"d":"$1,959,132"}},{"$nulls":13},"Low-Income Extended Day Teacher"]
[{"$nulls":5},"English Learners (Els)",{"$f":"IF(Cover!H13=0,\"\",VLOOKUP(O1,'FY24 Data for FY25 Plan'!$A$3:$BC$932,54,FALSE))","v":{"v":41951.83,"d":"$41,952"}},{"$nulls":13},"Low-Income Summer School Teacher"]
[{"$nulls":5},"Special Education",{"$f":"IF(Cover!H13=0,\"\",VLOOKUP($O$1,'FY24 Data for FY25 Plan'!$A$3:$BC$932,55,FALSE))","v":{"v":317522.38999999996,"d":"$317,522"}},{"$nulls":13},"EL Intervention Teacher"]
[{"$nulls":20},"EL Pupil Support Staff"]
[{"$nulls":6},"FY 2025 Tier Funding","Funding Type (Select)","*Note: Tier Funding allocations are published annually at https://www.isbe.net/Pages/ebfdistribution.aspx . Amounts are available in early August. Districts must use actual funding amounts if they are available before submitting the budget to ISBE.",{"$nulls":11},"EL Extended Day Teacher"]
["1)","FY 2025 Tier Funding Allocation*: Enter the dollar amount of Tier Funding (e.g., NEW MONEY only) allocated to the Organizational Unit for FY 2025. Select whether the amount is estimated or actual funding. ",{"$nulls":4},{"v":107412,"d":"$107,412"},"Estimated",{"$nulls":5},{"$f":"IF(AND(ISNUMBER(G31),H31<>0),1,0)","v":1},{"$nulls":6},"EL Summer School Teacher"]
[{"$nulls":20},"EL Core Teacher"]
[{"$nulls":20},"Sp Ed Teacher"]
[{"$nulls":6},"Data Source 1",null,"Data Source 2",null,null,"Data Source 3",{"$nulls":8},"Sp Ed Instructional Assistant"]
["2)","Select the top three sources of data used to inform the Organizational Unit's planned allocation of EBF dollars. (Select three different responses.)",{"$nulls":4},"EBF student allocations and/or cost factors",null,"Attendance data (e.g., chronic absenteeism, graduation or dropout rates)",null,null,"Student growth and achievement data, disaggregated by student groups",null,{"$f":"IF(OR(G35=\"\",I35=\"\",L35=\"\"),0,IF(OR(G35=I35,G35=L35,I35=L35),0,1))","v":1},{"$nulls":6},"Sp Ed Psychologist"]
[{"$nulls":20},"Other"]
["3)","Indicate with which groups the Organizational Unit engaged to inform its intended allocation of EBF dollars. (Select any that apply; otherwise leave blank.)",{"$nulls":4},"Bilingual Program Director(s)","Yes","Principals",null,"Yes","Bilingual Parent Advisory Committee","Yes",{"$f":"IF(COUNTIF(H37:M40,\"Yes\"),1,0)","v":1}]
[{"$nulls":6},"Special Ed. Program Director(s)","Yes","School Improvement Teams",null,null,"Other Parent Group(s)"]
[{"$nulls":6},"Other Program Leaders","Yes","Teacher or Support Staff Unions",null,"Yes","Community Focus Group(s)"]
[{"$nulls":6},"School Board Members","Yes","Other School Staff",null,null,"Other"]
[null,"[Optional] Provide a brief description of the Organizational Unit's process for consulting with internal and external stakeholders in determining the allocation of EBF dollars. (No more than 1000 characters, including spaces.)"]
[{"$nulls":6},"Priority Investment 1",null,"Priority Investment 2",null,null,"Priority Investment 3"]
["4)","Given the data analyzed, the stakeholders consulted, and the priorities identified in Part I, indicate the top three priority investments the Organizational Unit will make with its FY 2025 Base Funding Minimum (e.g., excluding Tier Funding). Choose \"Other\" if investments do not match the provided list. (Select three different responses. \"Other\" may be selected more than once if needed.)",{"$nulls":4},"Core Teachers",null,"Instructional Materials",null,null,"Assessments",null,{"$f":"IF(OR(G43=\"\",I43=\"\",L43=\"\"),0,IF(OR(G43=\"Other\",I43=\"Other\"),1,IF(OR(G43=I43,G43=L43,I43=L43),0,1)))","v":1}]
[null,"If \"Other\" was selected in question 4, please describe. (No more than 1000 characters, including spaces.)",{"$nulls":11},{"$f":"IF(B45=\"\",1,IF(AND(B45=\"Required\",LEN(G44)>10),1,0))","v":1}]
[null,{"$f":"IF(COUNTIF(G43:L43,\"Other\"), \"Required\",\"\")","v":""}]
[]
[null,"Cost Factor Table"]
["5)","The table below presents the regionally adjusted amount embedded in the Organizational Unit's FY 2024 Adequacy Target for each of the 34 cost factors in the Evidence-Based Funding model (Column F). Column G is required for all Organizational Units that receive at least $5,000 in Tier Funding, while column H is optional. Organizational Units may choose to provide additional narrative context in Columns I-M to elaborate on the figures included in the table. ISBE has produced guidance for populating the cost factor table. The guidance includes a definition for each cost factor, along with suggestions for using Employee Information System position codes and common expenditure accounts to support a determination of expenditures. This guidance is available at https://www.isbe.net/ebfspendingplan.\n\nColumn G: If the Organizational Unit will receive at least $5,000 in FY 2025 Tier Funding (as entered in Q2.1/cell G31), column G is required. Please indicate the Organizational Unit's planned expenditures in FY 2025 from Tier Funds only. Organizational Units are not expected to place a value in each cell. Rather, the table allows for the communication of priority investments with new state resources for the current fiscal year.  During years in which there is no new Tier Funding, column G will not be required. During years in which Tier Funding is available, the amount of new Tier Funding entered in Q2.1/cell G31 above must equal the sum in cell G90 below. If some or all Tier Funding is invested outside of the cost factors, enter a dollar amount in cell G89 and provide additional context in the space for a narrative beginning in row 93.\n\nColumn H: Optionally, Organizational Units may populate column H with total planned expenditures in FY 2025 for each cost factor from all revenue sources (e.g., not just from EBF). By comparing the figures in column F to the figures entered in column H, the Organizational Unit may engage local stakeholders in productive dialogue about resource allocation decisions.   \n\n"]
["Cost Factors",{"$nulls":4},"Amount in FY 2024 Adjusted Adequacy Target ","Budgeted FY 2025 Investments with New Tier Funding","Budgeted FY 2025 Expenditures \n(All Resources)","Optional District Narratives"]
[]
[{"$nulls":6},{"$f":"IF(G31=0,\"[N/A]\",IF(G31>=5000,\"[Required]\",\"[Optional]\"))","v":"[Required]"},"[Optional]"]
["Core Investments",{"$nulls":3},"Core Teachers",{"$f":"IF(Cover!H13=0,\"\",VLOOKUP($O$1,'FY24 Data for FY25 Plan'!$A$3:$BC$932,12,FALSE))","v":{"v":3150256.11,"d":"$3,150,256"}},{"v":27412,"d":"$27,412"},null,"Enter optional context for core investment decisions."]
[{"$nulls":4},"Specialist Teachers",{"$f":"IF(Cover!H13=0,\"\",VLOOKUP($O$1,'FY24 Data for FY25 Plan'!$A$3:$BC$932,13,FALSE))","v":{"v":630051.22,"d":"$630,051"}}]
[{"$nulls":4},"Instructional Facilitator",{"$f":"IF(Cover!H13=0,\"\",VLOOKUP($O$1,'FY24 Data for FY25 Plan'!$A$3:$BC$932,14,FALSE))","v":{"v":295705.22,"d":"$295,705"}},{"v":30000,"d":"$30,000"}]
[{"$nulls":4},"Core Intervention Teacher",{"$f":"IF(Cover!H13=0,\"\",VLOOKUP($O$1,'FY24 Data for FY25 Plan'!$A$3:$BC$932,15,FALSE))","v":{"v":130523.25,"d":"$130,523"}}]
[{"$nulls":4},"Substitute Teachers",{"$f":"IF(Cover!H13=0,\"\",VLOOKUP($O$1,'FY24 Data for FY25 Plan'!$A$3:$BC$932,16,FALSE))","v":{"v":123021.74,"d":"$123,022"}}]
[{"$nulls":4},"Guidance Counselor",{"$f":"IF(Cover!H13=0,\"\",VLOOKUP($O$1,'FY24 Data for FY25 Plan'!$A$3:$BC$932,17,FALSE))","v":{"v":182791.58,"d":"$182,792"}}]
[{"$nulls":4},"Nurse",{"$f":"IF(Cover!H13=0,\"\",VLOOKUP($O$1,'FY24 Data for FY25 Plan'!$A$3:$BC$932,18,FALSE))","v":{"v":68560.01,"d":"$68,560"}}]
[{"$nulls":4},"Supervisory Aide",{"$f":"IF(Cover!H13=0,\"\",VLOOKUP($O$1,'FY24 Data for FY25 Plan'!$A$3:$BC$932,19,FALSE))","v":{"v":111818.06,"d":"$111,818"}}]
[{"$nulls":4},"Librarian",{"$f":"IF(Cover!H13=0,\"\",VLOOKUP($O$1,'FY24 Data for FY25 Plan'!$A$3:$BC$932,20,FALSE))","v":{"v":150706.41,"d":"$150,706"}}]
[{"$nulls":4},"Librarian Aide",{"$f":"IF(Cover!H13=0,\"\",VLOOKUP($O$1,'FY24 Data for FY25 Plan'!$A$3:$BC$932,21,FALSE))","v":{"v":83863.54,"d":"$83,864"}}]
[{"$nulls":4},"Principal",{"$f":"IF(Cover!H13=0,\"\",VLOOKUP($O$1,'FY24 Data for FY25 Plan'!$A$3:$BC$932,22,FALSE))","v":{"v":223577.66,"d":"$223,578"}}]
[{"$nulls":4},"Assistant Principal",{"$f":"IF(Cover!H13=0,\"\",VLOOKUP($O$1,'FY24 Data for FY25 Plan'!$A$3:$BC$932,23,FALSE))","v":{"v":192500.87,"d":"$192,501"}}]
[{"$nulls":4},"School Site Staff",{"$f":"IF(Cover!H13=0,\"\",VLOOKUP($O$1,'FY24 Data for FY25 Plan'!$A$3:$BC$932,24,FALSE))","v":{"v":134176.4,"d":"$134,176"}}]
[{"$nulls":4},"Subtotal",{"$f":"IF(Cover!H13=0,\"\",VLOOKUP($O$1,'FY24 Data for FY25 Plan'!$A$3:$BC$932,25,FALSE))","v":{"v":5477552.07,"d":"$5,477,552"}},{"$f":"IF(AND(ISBLANK(G52),ISBLANK(G53),ISBLANK(G54),ISBLANK(G55),ISBLANK(G56),ISBLANK(G57),ISBLANK(G58),ISBLANK(G59),ISBLANK(G60),ISBLANK(G61),ISBLANK(G62),ISBLANK(G63),ISBLANK(G64)),\"\",SUM(G52:G64))","v":{"v":57412,"d":"$57,412"}},{"$f":"IF(AND(ISBLANK(H52),ISBLANK(H53),ISBLANK(H54),ISBLANK(H55),ISBLANK(H56),ISBLANK(H57),ISBLANK(H58),ISBLANK(H59),ISBLANK(H60),ISBLANK(H61),ISBLANK(H62),ISBLANK(H63),ISBLANK(H64)),\"\",SUM(H52:H64))","v":""}]
["Per Student Investments",{"$nulls":3},"Gifted",{"$f":"IF(Cover!H13=0,\"\",VLOOKUP($O$1,'FY24 Data for FY25 Plan'!$A$3:$BC$932,26,FALSE))","v":{"v":71998.2,"d":"$71,998"}},null,null,"Enter optional context for per student investment decisions."]
[{"$nulls":4},"Professional Development",{"$f":"IF(Cover!H13=0,\"\",VLOOKUP($O$1,'FY24 Data for FY25 Plan'!$A$3:$BC$932,27,FALSE))","v":{"v":100476.25,"d":"$100,476"}}]
[{"$nulls":4},"Instructional Materials",{"$f":"IF(Cover!H13=0,\"\",VLOOKUP($O$1,'FY24 Data for FY25 Plan'!$A$3:$BC$932,28,FALSE))","v":{"v":261238.25,"d":"$261,238"}},{"v":40000,"d":"$40,000"}]
[{"$nulls":4},"Assessments",{"$f":"IF(Cover!H13=0,\"\",VLOOKUP($O$1,'FY24 Data for FY25 Plan'!$A$3:$BC$932,29,FALSE))","v":{"v":27329.54,"d":"$27,330"}},{"v":10000,"d":"$10,000"}]
[{"$nulls":4},"Computer & Tech Equipment",{"$f":"IF(Cover!H13=0,\"\",VLOOKUP($O$1,'FY24 Data for FY25 Plan'!$A$3:$BC$932,30,FALSE))","v":{"v":458975.51,"d":"$458,976"}}]
[{"$nulls":4},"Student Activities",{"$f":"IF(Cover!H13=0,\"\",VLOOKUP($O$1,'FY24 Data for FY25 Plan'!$A$3:$BC$932,31,FALSE))","v":{"v":136639.5,"d":"$136,640"}}]
[{"$nulls":4},"Maintenance & Operations",{"$f":"IF(Cover!H13=0,\"\",VLOOKUP($O$1,'FY24 Data for FY25 Plan'!$A$3:$BC$932,32,FALSE))","v":{"v":1093985.4100000001,"d":"$1,093,985"}}]
[{"$nulls":4},"Central Office",{"$f":"IF(Cover!H13=0,\"\",VLOOKUP($O$1,'FY24 Data for FY25 Plan'!$A$3:$BC$932,33,FALSE))","v":{"v":753169.97,"d":"$753,170"}}]
[{"$nulls":4},"Employee Benefits",{"$f":"IF(Cover!H13=0,\"\",VLOOKUP($O$1,'FY24 Data for FY25 Plan'!$A$3:$BC$932,34,FALSE))","v":{"v":2496067.9178400002,"d":"$2,496,068"}}]
[{"$nulls":4},"Subtotal*",{"$f":"IF(Cover!H13=0,\"\",VLOOKUP($O$1,'FY24 Data for FY25 Plan'!$A$3:$BC$932,38,FALSE))","v":{"v":5443867.90784,"d":"$5,443,868"}},{"$f":"IF(AND(ISBLANK(G66),ISBLANK(G67),ISBLANK(G68),ISBLANK(G69),ISBLANK(G70),ISBLANK(G71),ISBLANK(G72),ISBLANK(G73),ISBLANK(G74)),\"\",SUM(G66:G74))","v":{"v":50000,"d":"$50,000"}},{"$f":"IF(AND(ISBLANK(H66),ISBLANK(H67),ISBLANK(H68),ISBLANK(H69),ISBLANK(H70),ISBLANK(H71),ISBLANK(H72),ISBLANK(H73),ISBLANK(H74)),\"\",SUM(H66:H74))","v":""}]
["Additional Investments",{"$nulls":3},"Low-Income Intervention Teacher",{"$f":"IF(Cover!H13=0,\"\",VLOOKUP($O$1,'FY24 Data for FY25 Plan'!$A$3:$BC$932,39,FALSE))","v":{"v":360563.11,"d":"$360,563"}},null,null,"Enter optional context for additional investment decisions."]
[{"$nulls":4},"Low-Income Pupil Support Staff",{"$f":"IF(Cover!H13=0,\"\",VLOOKUP($O$1,'FY24 Data for FY25 Plan'!$A$3:$BC$932,40,FALSE))","v":{"v":360563.11,"d":"$360,563"}}]
[{"$nulls":4},"Low-Income Extended Day Teacher",{"$f":"IF(Cover!H13=0,\"\",VLOOKUP($O$1,'FY24 Data for FY25 Plan'!$A$3:$BC$932,41,FALSE))","v":{"v":376071.2,"d":"$376,071"}}]
[{"$nulls":4},"Low-Income Summer School Teacher",{"$f":"IF(Cover!H13=0,\"\",VLOOKUP($O$1,'FY24 Data for FY25 Plan'!$A$3:$BC$932,42,FALSE))","v":{"v":376071.2,"d":"$376,071"}}]
[{"$nulls":4},"EL Intervention Teacher",{"$f":"IF(Cover!H13=0,\"\",VLOOKUP($O$1,'FY24 Data for FY25 Plan'!$A$3:$BC$932,43,FALSE))","v":{"v":88396.11,"d":"$88,396"}}]
[{"$nulls":4},"EL Pupil Support Staff",{"$f":"IF(Cover!H13=0,\"\",VLOOKUP($O$1,'FY24 Data for FY25 Plan'!$A$3:$BC$932,44,FALSE))","v":{"v":88396.11,"d":"$88,396"}}]
[{"$nulls":4},"EL Extended Day Teacher",{"$f":"IF(Cover!H13=0,\"\",VLOOKUP($O$1,'FY24 Data for FY25 Plan'!$A$3:$BC$932,45,FALSE))","v":{"v":92273.14,"d":"$92,273"}}]
[{"$nulls":4},"EL Summer School Teacher",{"$f":"IF(Cover!H13=0,\"\",VLOOKUP($O$1,'FY24 Data for FY25 Plan'!$A$3:$BC$932,46,FALSE))","v":{"v":92273.14,"d":"$92,273"}}]
[{"$nulls":4},"EL Core Teacher",{"$f":"IF(Cover!H13=0,\"\",VLOOKUP($O$1,'FY24 Data for FY25 Plan'!$A$3:$BC$932,47,FALSE))","v":{"v":110882.84,"d":"$110,883"}}]
[{"$nulls":4},"Sp Ed Teacher",{"$f":"IF(Cover!H13=0,\"\",VLOOKUP($O$1,'FY24 Data for FY25 Plan'!$A$3:$BC$932,48,FALSE))","v":{"v":441980.58,"d":"$441,981"}}]
[{"$nulls":4},"Sp Ed Instructional Assistant",{"$f":"IF(Cover!H13=0,\"\",VLOOKUP($O$1,'FY24 Data for FY25 Plan'!$A$3:$BC$932,49,FALSE))","v":{"v":179034.53,"d":"$179,035"}}]
[{"$nulls":4},"Sp Ed Psychologist",{"$f":"IF(Cover!H13=0,\"\",VLOOKUP($O$1,'FY24 Data for FY25 Plan'!$A$3:$BC$932,50,FALSE))","v":{"v":68402.68,"d":"$68,403"}}]
[{"$nulls":4},"Subtotal",{"$f":"IF(Cover!H13=0,\"\",VLOOKUP($O$1,'FY24 Data for FY25 Plan'!$A$3:$BC$932,51,FALSE))","v":{"v":2634907.75,"d":"$2,634,908"}},{"$f":"IF(AND(ISBLANK(G76),ISBLANK(G77),ISBLANK(G78),ISBLANK(G79),ISBLANK(G80),ISBLANK(G81),ISBLANK(G82),ISBLANK(G83),ISBLANK(G84),ISBLANK(G85),ISBLANK(G86),ISBLANK(G87)),\"\",SUM(G76:G87))","v":""},{"$f":"IF(AND(ISBLANK(H76),ISBLANK(H77),ISBLANK(H78),ISBLANK(H79),ISBLANK(H80),ISBLANK(H81),ISBLANK(H82),ISBLANK(H83),ISBLANK(H84),ISBLANK(H85),ISBLANK(H86),ISBLANK(H87)),\"\",SUM(H76:H87))","v":""}]
[{"$nulls":4},"Other Investments","N/A",null,null,{"$f":"SUM(G88,G89,G75,G65)","v":{"v":107412,"d":"$107,412.00"}}]
[{"$nulls":4},"Total**",{"$f":"IF(Cover!H13=0,\"\",VLOOKUP($O$1,'FY24 Data for FY25 Plan'!$A$3:$BC$932,52,FALSE))","v":{"v":13556327.83,"d":"$13,556,328"}},{"$f":"IF(AND(ISBLANK(G52),ISBLANK(G53),ISBLANK(G54),ISBLANK(G55),ISBLANK(G56),ISBLANK(G57),ISBLANK(G58),ISBLANK(G59),ISBLANK(G60),ISBLANK(G61),ISBLANK(G62),ISBLANK(G63),ISBLANK(G64),ISBLANK(G66),ISBLANK(G67),ISBLANK(G68),ISBLANK(G69),ISBLANK(G70),ISBLANK(G71),ISBLANK(G72),ISBLANK(G73),ISBLANK(G74),ISBLANK(G76),ISBLANK(G77),ISBLANK(G78),ISBLANK(G79),ISBLANK(G80),ISBLANK(G81),ISBLANK(G82),ISBLANK(G83),ISBLANK(G84),ISBLANK(G85),ISBLANK(G86),ISBLANK(G87),ISBLANK(G89)),\"\",SUM(G65,G75,G88,G89))","v":{"v":107412,"d":"$107,412"}},{"$f":"IF(H65=\"\",\"\",SUM(H65,H75,H88,H89))","v":""},"Tier Funding Check (Cell G90)",null,null,{"$f":"IF(I89=0,\"\",IF(ROUND(G90,0)=ROUND(G31,0),\"  Complete, G90=G31\",IF(G90<G31,\"  Incomplete, G90<G31\",IF(G90>G31,\"  Incomplete, G90>G31\"))))","v":"  Complete, G90=G31"},null,{"$f":"IF(G51=\"[N/A]\",0,IF(AND(G51=\"[Optional]\",G90=\"\"),1,IF(AND(G51=\"[Required]\",G90=\"\"),0,IF(ROUND(G31,0)=ROUND(G90,0),1,0))))","v":1}]
[{"$nulls":4},"*The subtotal for Per Student Investments is a calculated figure that adjusts salary portions of Central Office and Maintenance & Operations to account for regional salary differences. As a result, the sum of each individual cost factor will not equal the subtotal.\n**The total is the Final Adequacy Target (adjusted for Regionalization Factor) calculated in the Full FY 2024 EBF Calculation file. Due to differences in rounding, this figure may vary slightly from the sum of the subtotals in this table. "]
[]
[null,"If some or all Tier Funding was invested outside of the cost factors, please describe. (No more than 1000 characters, including spaces.)",{"$nulls":11},{"$f":"IF(B94=\"\",1,IF(AND(B94=\"Required\",LEN(G93)>10),1,0))","v":1}]
[null,{"$f":"IF(G89>0,\"Required\",\"\")","v":""}]
[]
["Part III: Support for Special Student Groups"]
["EBF statute sets aside specific allocations to be spent for special education, English learners, and low-income students. Per statue these designated funds must be spent on programs and services benefiting these specific student groups. Funds for English learners and low-income students must be spent in addition to, and not in lieu of, funding that supports general programs of instruction for all students. Funds attributable to special education must be used for the provision of special education facilities and services as outlined in ILCS 14-1.08. Current-year EBF amounts attributable to each of the special student groups must be reported in cells G100-G102 below. If the Organizational Unit received at least $5,000 for any of the student groups, a response to the questions below is required. For amounts less than $5,000, a response is optional. All other EBF funds may be spent in any manner deemed appropriate by the school district. "]
["Collaboration Opportunity - Organizational Units may find that questions in this section are most easily and effectively completed through collaboration between program leaders affiliated with each student group and finance leaders. "]
[{"$nulls":6},"Enter Amounts","Select type","*Note: Allocations for each of the three student groups are published annually at isbe.net/ebfdist under \"Reports.\" Amounts are typically available by September 1. Districts must use actual funding amounts if they are available before submitting the budget to ISBE."]
["1)","FY 2025 Student Population Allocations*: Enter the dollar amount of resources attributable to Specific Populations within the FY25 Gross State Contribution. Enter \"0\" if no funds are allocated for a student group. Select whether amounts are estimated or actual.",{"$nulls":3},"Low-Income Students",{"v":1980313.44,"d":"$1,980,313"},"Actual",{"$nulls":5},{"$f":"IF(SUM(G100,G101,G102)=0,0,IF(AND(ISNUMBER(G100),H100<>0),1,0))","v":1}]
[{"$nulls":5},"English Learners",{"v":46667.23,"d":"$46,667"},"Actual",{"$nulls":5},{"$f":"IF(AND(ISNUMBER(G101),H101<>0),1,0)","v":1}]
[{"$nulls":5},"Special Education",{"v":324633.08,"d":"$324,633"},"Actual",{"$nulls":5},1]
[]
["2)","Organizational Unit investment of EBF dollars for low-income students: Select the investments that apply.  (Optionally, dollar amounts for each investment may be entered.)",{"$nulls":4},"Low-Income Intervention Teacher","Yes","Low-Income Extended Day Teacher",null,null,"Other Investments",null,{"$f":"IF(B105=\"Response Optional\",1,IF(AND(B105=\"Response Required\",COUNTIF(H104:M106,\"Yes\")),1,0))","v":1}]
[null,{"$f":"IF($O$1=0,\"\",IF($G$100>=5000,\"Response Required\",\"Response Optional\"))","v":"Response Required"},{"$nulls":4},{"v":340000,"d":"$340,000"},null,"[Optional - Enter $]",null,null,"[Optional - Enter $]"]
[{"$nulls":6},"Low-Income Pupil Support Staff",null,"Low-Income Summer School Teacher"]
[{"$nulls":6},"[Optional - Enter $]",null,"[Optional - Enter $]"]
[null,"Additional context for the Organizational Unit's planned use of  dollars attributable to low-income students in FY 2025. (Required if \"Other Investments\" selected above. No more than 500 characters, including spaces.)",{"$nulls":11},{"$f":"IF(B109=\"\",1,IF(AND(B109=\"Required\",LEN(G108)>10),1,0))","v":1}]
[null,{"$f":"IF(M104=\"Yes\",\"Required\",\"\")","v":""}]
[]
["3)","Organizational Unit investment of EBF dollars for English learners: Select the investments that apply. (Optionally, dollar amounts for each investment may be entered.)",{"$nulls":4},"English Learner Intervention Teacher","Yes","English Learner Extended Day Teacher",null,null,"English Learner Core Teacher",null,{"$f":"IF(B112=\"Response Optional\",1,IF(AND(B112=\"Response Required\",COUNTIF(H111:M113,\"Yes\")),1,0))","v":1}]
[null,{"$f":"IF($O$1=0,\"\",IF($G$101>=5000,\"Response Required\",\"Response Optional\"))","v":"Response Required"},{"$nulls":4},"[Optional - Enter $]",null,"[Optional - Enter $]",null,null,"[Optional - Enter $]"]
[{"$nulls":6},"English Learner Pupil Support Staff",null,"English Learner Summer School Teacher",null,null,"Other Investments"]
[{"$nulls":6},"[Optional - Enter $]",null,"[Optional - Enter $]",null,null,"[Optional - Enter $]"]
[null,"Additional context for the Organizational Unit's planned use of  dollars attributable to English learners in FY 2025. (Required if \"Other Investments\" selected above. No more than 500 characters, including spaces.)",{"$nulls":11},{"$f":"IF(B116=\"\",1,IF(AND(B116=\"Required\",LEN(G115)>10),1,0))","v":1}]
[null,{"$f":"IF(M113=\"Yes\",\"Required\",\"\")","v":""}]
[]
["4)","Organizational Units investment of EBF dollars for Special Education:  Select the investments that apply. (Optionally, dollar amounts for each investment may be entered.)",{"$nulls":4},"Special Education Teacher","Yes","Special Education Psychologist",{"$nulls":4},{"$f":"IF(B119=\"Response Optional\",1,IF(AND(B119=\"Response Required\",COUNTIF(H118:K120,\"Yes\")),1,0))","v":1}]
[null,{"$f":"IF($O$1=0,\"\",IF($G$102>=5000,\"Response Required\",\"Response Optional\"))","v":"Response Required"},{"$nulls":4},"[Optional - Enter $]",null,"[Optional - Enter $]"]
[{"$nulls":6},"Special Education Instructional Assistant",null,"Other Investments"]
[{"$nulls":6},"[Optional - Enter $]",null,"[Optional - Enter $]"]
[null,"Additional context for the Organizational Unit's planned use of dollars attributable to Special Education  students in FY 2025. (Required if \"Other Investments\" selected above. No more than 500 characters, including spaces.)",{"$nulls":11},{"$f":"IF(B123=\"\",1,IF(AND(B123=\"Required\",LEN(G122)>10),1,0))","v":1}]
[null,{"$f":"IF(K120=\"Yes\",\"Required\",\"\")","v":""}]
[]
["Plan Assurances"]
["Please complete the assurances below related to Article 14C of the Illinois School Code, which stipulates allowable expenditures for English learners. Organizational Units should maintain supporting documentation (e.g., sign-in sheets, meeting agendas) to affirm the veracity of the below assurances. Note that a separate collection of the Bilingual Service Plan takes place before each school year and must be separately reviewed by the Bilingual Parent Advisory Committee (BPAC). Responses in this plan should be aligned with information contained in the Bilingual Service Plan. Responses in this section are only required if an Organizational Unit receives any amount of EBF dollars attributable to English learners."]
["Collaboration Opportunity - Organizational Units may find that the plan assurances are most easily and effectively completed if led by program leaders."]
[{"$nulls":3},"1). \"I hereby affirm that at least 60% of the school district's state funds attributable to English learners will be used for instructional costs of programs and services for English learners (function 1000), in accordance                 \n       with Article 14C of the Illinois School Code. The remaining balance of state funds attributable to English learners will also be used to serve English learners.\""]
[]
[{"$nulls":3},{"$f":"IF(G101=\"\",\"\",IF($G$101>=1,\"Required\",\"N/A\"))","v":"Required"},"Yes",{"$nulls":8},{"$f":"IF(D130=\"\",1,IF(D130=\"N/A\",1,IF(AND(D130=\"Required\",E130<>\"\"),1,0)))","v":1}]
[{"$nulls":3},"2). \"My school district has at least one attendance center with 20 or more English learners (including parental refusals) who speak the same home language other than English in grades K-12. Alternatively       \n        and/or additionally, my school district has at least one attendance center with 20 or more English learners (including parent refusals) who speak the same home language other than English in pre-K.\""]
[]
[{"$nulls":3},{"$f":"IF(G101=\"\",\"\",IF($G$101>=0,\"Required\",\"N/A\"))","v":"Required"},"Yes",{"$nulls":8},{"$f":"IF(D133=\"\",1,IF(D133=\"N/A\",1,IF(AND(D133=\"Required\",E133<>\"\"),1,0)))","v":1}]
[{"$nulls":3},"3). \"I hereby affirm that the school district's BPAC will review this EBF Spending Plan by or before October 31, 2024.\""]
[{"$nulls":3},{"$f":"IF($E$133=0,\"\",IF($E$133=\"Yes\",\"Required\",\"N/A\"))","v":"Required"},"Yes",{"$nulls":8},{"$f":"IF(OR(D135=\"\",D135=\"N/A\"),1,IF(AND(D135=\"Required\",E135<>\"\"),1,0))","v":1}]
[{"$nulls":3},"4). Enter the anticipated date on which the BPAC review will take place and the name of the BPAC chair for SY 2024-25. "]
[{"$nulls":3},{"$f":"IF($E$133=0,\"\",IF($E$133=\"Yes\",\"Required\",\"N/A\"))","v":"Required"},"BPAC Meeting (MM/DD/YYYY)","2024-09-11",{"$nulls":7},{"$f":"IF(OR(D137=\"\",D137=\"N/A\"),1,IF(AND(D137=\"Required\",F137<>\"\"),1,0))","v":1}]
[{"$nulls":4},"Name of Chair","Nellie Sandavol",{"$nulls":7},{"$f":"IF(OR(D137=\"\",D137=\"N/A\"),1,IF(AND(D137=\"Required\",F138<>\"\"),1,0))","v":1}]
[]
[{"$nulls":13},{"$f":"SUM(N7:N138)","v":24}]
[null,"Spending Plan Completion Tracker"]
["Use the information below to confirm completion of all required questions. Note that the \"status\" column adjusts to responses, so the tracker is most helpful to consult after you have completed the spending plan. "]
["Question",{"$nulls":3},"Status","Acceptance Criteria"]
["Part 1, Q1",{"$nulls":3},{"$f":"IF(N7=1,\"Complete\",\"Incomplete\")","v":"Complete"},"Character length of response must be >10 and <=2000, including spaces."]
["Part 1, Q2",{"$nulls":3},{"$f":"IF(N11=1,\"Complete\",\"Incomplete\")","v":"Complete"},"A different response must be selected in G11, I11, and L11; cells cannot be blank. "]
["Part 1, Q2 (Narrative)",{"$nulls":3},{"$f":"IF(N13=1,\"Complete\",\"Incomplete\")","v":"Complete"},"Response required only if \"Other\" selected in G11, I11, or L11; character length of response must be >10 and <=1000, including spaces. "]
["Part 2, Q1",{"$nulls":3},{"$f":"IF(N31=1,\"Complete\",\"Incomplete\")","v":"Complete"},"A numeric value must be entered in cell G31 (estimated or actual Tier Funding, or 0 if appropriations did not include Tier Funding). A type must be selected in cell H31."]
["Part 2, Q2",{"$nulls":3},{"$f":"IF(N35=1,\"Complete\",\"Incomplete\")","v":"Complete"},"A different response must be selected in G35, I35, and L35; cells cannot be blank. "]
["Part 2, Q3",{"$nulls":3},{"$f":"IF(N37=1,\"Complete\",\"Incomplete\")","v":"Complete"},"At least one response must be selected. "]
["Part 2, Q4",{"$nulls":3},{"$f":"IF(N43=1,\"Complete\",\"Incomplete\")","v":"Complete"},"Cells G43, I43, and L43 cannot be blank. \"Other\" may be selected more than once, but other responses may not be repeated."]
["Part 2, Q4 (Narrative)",{"$nulls":3},{"$f":"IF(N44=1,\"Complete\",\"Incomplete\")","v":"Complete"},"Response required only if \"Other\" selected in G43, I43, or L43; character length of response must be >10 and <=1000, including spaces. "]
["Part 2, Q5 (Cell G90)",{"$nulls":3},{"$f":"IF(N90=1,\"Complete\",\"Incomplete\")","v":"Complete"},"Cell G90 must be equal to the value in cell G31. "]
["Part 2, Q5 (Narrative)",{"$nulls":3},{"$f":"IF(N93=1,\"Complete\",\"Incomplete\")","v":"Complete"},"Response required only if a value was entered in cell G89; character length of response must be >10 and <=1000, including spaces."]
["Part 3, Q1 Low-Income Funds",{"$nulls":3},{"$f":"IF(N100=1,\"Complete\",\"Incomplete\")","v":"Complete"},"A numeric value must be entered. A type must be selected in cell H100."]
["Part 3, Q1 English Learner Funds",{"$nulls":3},{"$f":"IF(N101=1,\"Complete\",\"Incomplete\")","v":"Complete"},"A numeric value must be entered, which may be \"0\" if the organizational unit received no funding for the specified student group. A type must be selected in cell H101."]
["Part 3, Q1 Spec. Ed. Funds",{"$nulls":3},{"$f":"IF(N102=1,\"Complete\",\"Incomplete\")","v":"Complete"},"A numeric value must be entered. A type must be selected in cell H102."]
["Part 3, Q2",{"$nulls":3},{"$f":"IF(N104=1,\"Complete\",\"Incomplete\")","v":"Complete"},"At least one response must be selected. "]
["Part 3, Q2 (Narrative)",{"$nulls":3},{"$f":"IF(N108=1,\"Complete\",\"Incomplete\")","v":"Complete"},"Response required only if \"Other Investments\" was selected in the previous question; character length of response must be >10 and <=500, including spaces."]
["Part 3, Q3",{"$nulls":3},{"$f":"IF(N111=1,\"Complete\",\"Incomplete\")","v":"Complete"},"At least one response must be selected. "]
["Part 3, Q3 (Narrative)",{"$nulls":3},{"$f":"IF(N115=1,\"Complete\",\"Incomplete\")","v":"Complete"},"Response required only if \"Other Investments\" was selected in the previous question; character length of response must be >10 and <=500, including spaces."]
["Part 3, Q4",{"$nulls":3},{"$f":"IF(N118=1,\"Complete\",\"Incomplete\")","v":"Complete"},"At least one response must be selected. "]
["Part 3, Q4 (Narrative",{"$nulls":3},{"$f":"IF(N122=1,\"Complete\",\"Incomplete\")","v":"Complete"},"Response required only if \"Other Investments\" was selected in the previous question; character length of response must be >10 and <=500, including spaces."]
["Assurances 1",{"$nulls":3},{"$f":"IF(N130=1,\"Complete\",\"Incomplete\")","v":"Complete"},"Response required if the value entered in cell G101>0. "]
["Assurances 2",{"$nulls":3},{"$f":"IF(N133=1,\"Complete\",\"Incomplete\")","v":"Complete"},"Response required if the value entered in cell G101>0. "]
["Assurances 3",{"$nulls":3},{"$f":"IF(N135=1,\"Complete\",\"Incomplete\")","v":"Complete"},"Response required if \"Yes\" selected in cell E133."]
["Assurances 4  (Meeting Date)",{"$nulls":3},{"$f":"IF(N137=1,\"Complete\",\"Incomplete\")","v":"Complete"},"Response required if \"Yes\" selected in cell E133; enter date in MM/DD/YYYY format."]
["Assurances 4 (Name of Chair)",{"$nulls":3},{"$f":"IF(N138=1,\"Complete\",\"Incomplete\")","v":"Complete"},"Response required if \"Yes\" selected in cell E133."]

{"sheet":"AC 35","index":10,"n_rows":26,"n_cols":12,"rows_kept":26,"merged":[[0,0,0,10],[1,0,1,10],[4,0,4,6],[4,7,4,9],[10,9,10,11],[11,0,11,4],[11,9,11,11],[15,0,15,2],[22,1,22,3],[24,1,24,2],[24,11,25,11],[25,1,25,2],[31,2,31,3],[31,5,31,7],[32,5,32,7],[33,2,33,3],[33,5,33,7],[34,5,34,7],[38,2,39,9]]}
["ESTIMATED LIMITATION OF ADMINISTRATIVE COSTS (School Districts Only) "]
["(For Local Use Only)"]
["This is an estimated Limitation of Administrative Costs Worksheet only and will not be accepted for Official Submission of the Limitation of Administrative Costs Worksheet.    "]
[]
[{"$f":"\"The worksheet is intended for use during the budgeting process to estimate the district's percent increase of FY\"&'B25'!L2","v":"The worksheet is intended for use during the budgeting process to estimate the district's percent increase of FY2025"},{"$nulls":6},{"$f":"\"budgeted expenditures over actual FY\"&'B25'!L2-1","v":"budgeted expenditures over actual FY2024"},null,null,"expenditures. Budget"]
["information is copied to this page.  Insert the prior year estimated actual expenditures to compute the estimated percentage increase (decrease).  "]
[]
["The official Limitation of Administrative Costs Worksheet is attached to the end of the Annual Financial Report (ISBE Form 50-35) and may be submitted in conjunction with that report."]
["An official Limitation of Administrative Costs Worksheet can also be found on the ISBE website at: ",{"$nulls":5},"Limitation of Administrative Costs"]
[]
["ESTIMATED LIMITATION OF ADMINISTRATIVE COSTS WORKSHEET",{"$nulls":7},"School District Name:",{"$f":"Cover!H13","v":"Hoover-Schrum Memorial SD 157"}]
["(Section 17-1.5 of the School Code)",{"$nulls":7},"RCDT Number:",{"$f":"Cover!H14","v":"07016157002"}]
[]
[{"$nulls":4},{"$f":"\"Estimated Actual Expenditures, Fiscal Year \"&'B25'!L2-1","v":"Estimated Actual Expenditures, Fiscal Year 2024"},{"$nulls":3},{"$f":"\"Budgeted Expenditures, Fiscal Year \"&'B25'!L2","v":"Budgeted Expenditures, Fiscal Year 2025"}]
[{"$nulls":4},"(10)","(20)","(80)",null,"(10)","(20)","(80)"]
["Description",null,null,"Funct. No.","Educational Fund","Operations & Maintenance Fund","Tort Fund","Total","Educational Fund","Operations & Maintenance Fund","Tort Fund","Total"]
[{"v":1,"d":"1."},"Executive Administration Services",null,2320,{"v":333572,"d":"333,572 "},null,{"v":0,"d":"0 "},{"$f":"SUM(E17:G17)","v":{"v":333572,"d":"333,572 "}},{"$f":"'EstExp 12-20'!K52","v":{"v":352500,"d":"352,500 "}},null,{"$f":"'EstExp 12-20'!K361","v":{"v":0,"d":"0 "}},{"$f":"SUM(I17:K17)","v":{"v":352500,"d":"352,500 "}}]
[{"v":2,"d":"2."},"Special Area Administration Services",null,2330,{"v":356643,"d":"356,643 "},null,{"v":0,"d":"0 "},{"v":356643,"d":"356,643 "},{"$f":"'EstExp 12-20'!K53","v":{"v":358319,"d":"358,319 "}},null,{"$f":"'EstExp 12-20'!K362","v":{"v":0,"d":"0 "}},{"v":358319,"d":"358,319 "}]
[{"v":3,"d":"3."},"Other Support Services - School Administration",null,2490,{"v":0,"d":"0 "},null,{"v":0,"d":"0 "},{"v":0,"d":"0 "},{"$f":"'EstExp 12-20'!K58","v":{"v":0,"d":"0 "}},null,{"$f":"'EstExp 12-20'!K368","v":{"v":0,"d":"0 "}},{"v":0,"d":"0 "}]
[{"v":4,"d":"4."},"Direction of Business Support Services",null,2510,{"v":171445,"d":"171,445 "},{"v":0,"d":"0 "},{"v":0,"d":"0 "},{"v":171445,"d":"171,445 "},{"$f":"'EstExp 12-20'!K61","v":{"v":182000,"d":"182,000 "}},{"$f":"'EstExp 12-20'!K126","v":{"v":0,"d":"0 "}},{"$f":"'EstExp 12-20'!K371","v":{"v":0,"d":"0 "}},{"v":182000,"d":"182,000 "}]
[{"v":5,"d":"5."},"Internal Services",null,2570,{"v":451,"d":"451 "},null,{"v":0,"d":"0 "},{"v":451,"d":"451 "},{"$f":"'EstExp 12-20'!K66","v":{"v":0,"d":"0 "}},null,{"$f":"'EstExp 12-20'!K377","v":{"v":0,"d":"0 "}},{"v":0,"d":"0 "}]
[{"v":6,"d":"6."},"Direction of Central Support Services",null,2610,{"v":0,"d":"0 "},null,{"v":0,"d":"0 "},{"v":0,"d":"0 "},{"$f":"'EstExp 12-20'!K69","v":{"v":0,"d":"0 "}},null,{"$f":"'EstExp 12-20'!K380","v":{"v":0,"d":"0 "}},{"v":0,"d":"0 "}]
[{"v":7,"d":"7."},"Deduct - Early Retirement or other pension obligations required by state law and included above.",{"$nulls":5},{"v":0,"d":"0 "},{"$nulls":3},{"v":0,"d":"0 "}]
[{"v":8,"d":"8."},"Totals",null,null,{"$f":"SUM(E17:E22)-E23","v":{"v":862111,"d":"862,111 "}},{"v":0,"d":"0 "},{"$f":"SUM(G17:G22)-G23","v":{"v":0,"d":"0 "}},{"v":862111,"d":"862,111 "},{"v":892819,"d":"892,819 "},{"v":0,"d":"0 "},{"v":0,"d":"0 "},{"v":892819,"d":"892,819 "}]
[{"v":9,"d":"9."},{"$f":"\"Estimated Percent Increase (Decrease) for FY\"&'B25'!L2","v":"Estimated Percent Increase (Decrease) for FY2025"},{"$nulls":9},{"$f":"IF(AND(H24>0,L24>0),(((L24-H24)/H24)),\"Enter Actual Data\")","v":{"v":0.035619543191074,"d":"4%"}}]
[null,{"$f":"\"(Budgeted) over (Actual) FY \"&'B25'!L2-\"1\"","v":"(Budgeted) over (Actual) FY 2024"}]

{"sheet":"VendContract 36","index":11,"n_rows":5,"n_cols":6,"rows_kept":5,"merged":[[0,0,0,5],[1,0,1,5],[3,0,3,4]]}
["REPORTING OF PUBLIC VENDOR CONTRACTS OF $1,000 OR MORE (School Districts Only) "]
["In accordance with the School Code, Section 10-20.21, all school districts are required to file a report listing ‘vendor contracts’ as an attachment to their budget.   In this context, the term \"vendor contracts\" refers to \"all contracts and agreements that pertain to goods and services that were intended to generate additional revenue and other remunerations for the school district in excess of $1,000, including without limitation vending machine contracts, sports and other attire, class rings, and photographic services.  The report is to list information regarding such contracts for the fiscal year immediately preceding the fiscal year of the budget.  All such contracts executed on or after July 1, 2007 must be approved by the school board."]
["  See:  School Code, Section 10-20.21 - Contracts"]
[]
["Name of Vendor","Product or Service Provided","Net Revenue","Non-Monetary Remuneration","Purpose of Proceeds","Distribution Method and Recipient of Non-Monetary Remunerations Distributed"]

{"sheet":"Ref 37","index":12,"n_rows":40,"n_cols":2,"rows_kept":40}
[null,"Reference Description"]
[]
[1,"Each fund balance should correspond to the fund balance reflected on the books as of June 30th - Balance Sheet Accounts #720 and #730 (audit figures, if available)."]
[]
[2,"Accounting and Financial Reporting for Certain Grants and Other Financial Assistance.  The \"On-Behalf\" Payments should only be reflected on this page (Budget Summary, Lines 10 and 20)."]
[]
[3,"Requires the secretary of the school board to notify the county clerk (within 30 days of the transfer approval) to abate an equal amount of taxes to be next extended.  See Sec. 10-22.14 & 17-2.11."]
["3a","Requires notification to the county clerk to abate an equal amount from taxes next extended.  See section 10-22.14"]
[4,"Principal on Bonds Sold:"]
[null,"(1)  Funding Bonds are to be entered in the fund or funds in which the liability occurs."]
[null,"(2)  Refunding Bonds can be entered in the Debt Services Fund only."]
[null,"(3)  Building Bonds can be entered in the Capital Projects Fund only."]
[null,"(4)  Fire Prevention and Safety Bonds can be entered in the Fire Prevention & Safety Fund only."]
[]
[5,"The proceeds from the sale of school sites, buildings, or other real estate shall be used first to pay the principal and interest on any outstanding bonds on the property being sold, and after all such bonds have been retired, the remaining proceeds from the sale next shall be used by the school board to meet any urgent district needs as determined under Sections 2-3.12 and 17-2.11 of the School Code.  Once these issues have been addressed, any remaining proceeds may be used for any other authorized purpose and for deposit into any district fund."]
[]
[6,"The School Code, Section 10-22.44 prohibits the transfer of interest earned on the investment of \"any funds for purposes of Illinois Municipal Retirement under the Pension Code.\"  This prohibition does not include funds for Social Security and Medicare-only purposes.  For additional requirements on interest earnings, see 23 Illinois Administrative Code, Part 100, Section 100.50."]
[]
[7,"Cash plus investments must be greater than or equal to zero."]
[]
[8,"For cash basis budgets, this total will equal the Budget Summary - Total Direct Receipts/Revenues (Line 9) plus Total Other Sources of Funds (Line 46)."]
[]
[9,"For cash basis budgets, this total will equal the Budget Summary - Total Direct Disbursements/Expenditures (Line 19) plus Total Other Uses of Funds (Line 79)."]
[]
[10,"Working Cash Fund loans may be made to any district fund for which taxes are levied (Section 20-5 of the School Code)."]
[]
[11,"Include revenue accounts 1110 through 1115, 1117,1118 & 1120."]
[]
["12","The School Code Section 17-2.2c.  Tax for leasing educational facilities or computer technology or both, and for temporary relocation expense purposes."]
[]
["13","Corporate personal property replacement tax revenue must be first applied to the Municipal Retirement/Social Security Fund to replace tax revenue lost due to the abolition of the corporate personal property tax (30 ILCS 115/12).  This provision does not apply to taxes levied for Medicare-Only purposes."]
[]
[14,"Only tuition payments made to private facilities.  See Functions 4200 or 4400 for estimated public facility disbursements/expenditures."]
[]
[15,"Payment towards the retirement of lease/purchase agreements or bonded/other indebtedness (principal only) otherwise reported within the fund - e.g.: alternate revenue bonds.  (Describe & Itemize)"]
[]
[16,"Only abolishment of Working Cash Fund must transfer its funds directly to the Educational Fund upon adoption of a resolution and"]
[null,"at the close of the current school Year (see 105 ILCS 5/20-8 for further explanation)"]
[null,"Only abatement of working cash fund can transfer its funds to any fund in most need of money "]
[null,"(see 105 ILCS 5/20-10 for further explanation)"]

{"sheet":"Error Checks","index":13,"n_rows":56,"n_cols":11,"rows_kept":56,"merged":[[0,0,0,2],[1,0,1,2],[2,0,2,2],[6,8,6,10],[12,1,12,2],[22,1,22,2],[33,1,33,2],[43,1,43,2],[46,1,46,2],[48,1,48,2],[50,1,50,2],[53,1,53,2]]}
["CHECK FOR ERRORS"]
["This worksheet checks various cells to assure that selected items are in balance."]
["Please fix errors below before submitting to ISBE."]
[null,"Budget Item References","Message"]
[{"v":1,"d":"1."},"Deficit Reduction Plan (DefReductPlan 23-27 tab)"]
[null,"Is Deficit Reduction Plan Required? (Joint Agreements do not complete Deficit Reduction Plan.)",{"$f":"IF(Cover!B3=\"X\", \"Deficit Reduction Plan is not required\", IF(AND('DeficitBudgetSum Calc 22'!G5<0,'DeficitBudgetSum Calc 22'!G6>=0,ABS('DeficitBudgetSum Calc 22'!G5*3)>ABS('DeficitBudgetSum Calc 22'!G6)),'DeficitBudgetSum Calc 22'!G17,IF(AND('DeficitBudgetSum Calc 22'!G5<0,'DeficitBudgetSum Calc 22'!G6>0,ABS('DeficitBudgetSum Calc 22'!G5*3)<=ABS('DeficitBudgetSum Calc 22'!G6)),'DeficitBudgetSum Calc 22'!G18,IF(AND('DeficitBudgetSum Calc 22'!G5<0,'DeficitBudgetSum Calc 22'!G6<0),'DeficitBudgetSum Calc 22'!G17,IF('DeficitBudgetSum Calc 22'!G6=0,'DeficitBudgetSum Calc 22'!G20,'DeficitBudgetSum Calc 22'!G19)))))","v":"Deficit Reduction Plan is not required"}]
[null,"If required, is Deficit Reduction Plan completed? (DefReductPlan 23-27 tab)",{"$f":"IF(AND(C6='DeficitBudgetSum Calc 22'!G17,'DefReductPlan 23-27'!Z22>0),\"Deficit Reduction Plan complete\",IF(AND(C6='DeficitBudgetSum Calc 22'!G17,'DefReductPlan 23-27'!Z22=0),\"ERROR - PLEASE COMPLETE Deficit Reduction Plan\",\"\"))","v":""},{"$nulls":5},"For ISBE Use Only"]
[{"v":2,"d":"2."},"Cover Page (Cover tab)",{"$nulls":6},"RCDT",{"$f":"IF(ChosenDistrict=\"\",\"\",Cover!H14)","v":"07016157002"},"Type"]
[null,"District Name must be selected from drop-down. (Cell H13)\n",{"$f":"IF(ChosenDistrict=\"\",\"ERROR -Choose district from drop-down list.\",\"OK\")","v":"OK"},null,null,{"$f":"C9","v":"OK"},null,null,"Tier Funding",{"$f":"IF('EBF Spending Plan 30-34'!G31=\"[Enter $]\",\"\",'EBF Spending Plan 30-34'!G31)","v":107412},{"$f":"IF('EBF Spending Plan 30-34'!H31=\"\",\"\",'EBF Spending Plan 30-34'!H31)","v":"Estimated"}]
[null,"Accounting Basis must be selected on Cover sheet.",{"$f":"IF(AND(Cover!B6=\"\",Cover!B7=\"\"),\"ERROR - Choose Accounting Basis.\",\"OK\")","v":"OK"},null,null,{"$f":"C10","v":"OK"},null,null,"Low-Income",{"$f":"IF('EBF Spending Plan 30-34'!G100=\"[Enter $]\",\"\",'EBF Spending Plan 30-34'!G100)","v":1980313.44},{"$f":"IF('EBF Spending Plan 30-34'!H100=\"\",\"\",'EBF Spending Plan 30-34'!H100)","v":"Actual"}]
[null,"Dates (Day, Month, Year) must be input on Cover sheet.",{"$f":"IF(OR(ISBLANK(Cover!M31),ISBLANK(Cover!Q31),ISBLANK(Cover!P43),ISBLANK(Cover!T43)),\"ERROR - INPUT DATE(S)\",\"OK\")","v":"OK"},null,null,"OK",null,null,"EL",{"$f":"IF('EBF Spending Plan 30-34'!G101=\"[Enter $]\",\"\",'EBF Spending Plan 30-34'!G101)","v":46667.23},{"$f":"IF('EBF Spending Plan 30-34'!H101=\"\",\"\",'EBF Spending Plan 30-34'!H101)","v":"Actual"}]
[null,"Board Names must be typed on Cover sheet.",{"$f":"IF(AND(Cover!E49:J58=\"\",Cover!K49:Q58=\"\"),\"ERROR - TYPE BOARD NAMES\",\"OK\")","v":"OK"},null,null,"OK",null,null,"SpEd",{"$f":"IF('EBF Spending Plan 30-34'!G102=\"[Enter $]\",\"\",'EBF Spending Plan 30-34'!G102)","v":324633.08},{"$f":"IF('EBF Spending Plan 30-34'!H102=\"\",\"\",'EBF Spending Plan 30-34'!H102)","v":"Actual"}]
[{"v":3,"d":"3."},"Budget Summary:  Other Sources (BudgetSum 2-4 tab - Acct 7000) must equal Other Uses (BudgetSum 2-4 tab - Acct 8000)."]
[null,"Estimated Beginning Fund Balance July, 1 2024 for all Funds (Cells C3 - K3)\n(Line must have a number or zero.  Do not leave blank.)",{"$f":"IF(AND(ISNUMBER('BudgetSum 2-4'!C3),ISNUMBER('BudgetSum 2-4'!D3),ISNUMBER('BudgetSum 2-4'!E3),ISNUMBER('BudgetSum 2-4'!F3),ISNUMBER('BudgetSum 2-4'!G3),ISNUMBER('BudgetSum 2-4'!H3),ISNUMBER('BudgetSum 2-4'!I3),ISNUMBER('BudgetSum 2-4'!J3),ISNUMBER('BudgetSum 2-4'!K3)),\"OK\",\"ERROR - ENTER AMOUNTS. IF ZERO, ENTER NUMBER 0\")","v":"OK"},null,null,{"$f":"C14","v":"OK"}]
[null,"Estimated Activity Fund Beginning Fund Balance July, 1 2024 (Cell C83)\n(Cell must have a number or zero.  Do not leave blank.)",{"$f":"IF(ISNUMBER('BudgetSum 2-4'!C83),\"OK\",\"ERROR - ENTER AMOUNT. IF ZERO, ENTER NUMBER 0\")","v":"OK"},null,null,{"$f":"C15","v":"OK"}]
[null,"Transfer Among Funds (Funds 10, 20, 40 - Acct 7130 - Cells C29, D29, F29), must equal (Funds 10, 20 & 40 - Acct 8130 - Cells C52, D52, F52).",{"$f":"IF(SUM('BudgetSum 2-4'!C29:D29,'BudgetSum 2-4'!F29)<>SUM('BudgetSum 2-4'!C52:D52,'BudgetSum 2-4'!F52),\"ERROR - CHECK TRANSFER(S)\",\"OK\")","v":"OK"},null,null,"OK"]
[null,"Transfer of Interest (Funds 10 thru 90 - Acct 7140 - Cells C30:K30), must equal (Funds 10 thru 60, & 80 - Acct 8140 - Cells C53:H53, J53).",{"$f":"IF(SUM('BudgetSum 2-4'!C30:K30)<>SUM('BudgetSum 2-4'!C53:J53),\"ERROR - CHECK TRANSFER(S)\",\"OK\")","v":"OK"},null,null,"OK"]
[null,"Transfer to Debt Service to Pay Principal on GASB 87 Leases (Fund 30 - Acct 7400 - Cell E39) must equal (Funds 10, 20 & 60 - Acct 8400 Cells C57:H60).",{"$f":"IF(('BudgetSum 2-4'!E39)<>SUM('BudgetSum 2-4'!C57:H60),\"ERROR - CHECK TRANSFER(S)\",\"OK\")","v":"OK"},null,null,"OK"]
[null,"Transfer to Debt Service to Pay Interest on GASB 87 Leases (Fund 30 - Acct 7500 - Cell E40) must equal (Funds 10, 20 & 60 - Acct 8500 - Cells C61:H64).",{"$f":"IF(('BudgetSum 2-4'!E40)<>SUM('BudgetSum 2-4'!C61:H64),\"ERROR - CHECK TRANSFER(S)\",\"OK\")","v":"OK"},null,null,"OK"]
[null,"Transfer to Debt Service Fund to Pay Principal on Revenue Bonds (Fund 30 - Acct 7600 - Cell E41) must equal (Funds 10 & 20 - Acct 8600 - Cells C65:D68).",{"$f":"IF(('BudgetSum 2-4'!E41)<>SUM('BudgetSum 2-4'!C65:D68),\"ERROR - CHECK TRANSFER(S)\",\"OK\")","v":"OK"},null,null,"OK"]
[null,"Transfer to Debt Service to Pay Interest on Revenue Bonds (Fund 30 - Acct 7700 - Cell E42) must equal (Funds 10 & 20 - Acct 8700 - Cells C69:D72).",{"$f":"IF(('BudgetSum 2-4'!E42)<>SUM('BudgetSum 2-4'!C69:D72),\"ERROR - CHECK TRANSFER(S)\",\"OK\")","v":"OK"},null,null,"OK"]
[null,"Transfer to Capital Projects Fund (Fund 60 - Acct 7800 - Cell H43) must equal (Fund 10 & 20, Acct 8800 - Cells C73:D76).",{"$f":"IF(('BudgetSum 2-4'!H43)<>SUM('BudgetSum 2-4'!C73:D76),\"ERROR - CHECK TRANSFER(S)\",\"OK\")","v":"OK"},null,null,"OK"]
[{"v":4,"d":"4."},"Summary of Cash Transactions:  Beginning Cash Balance on Hand July 1, 2024 (CashSum 5 tab, All Funds) cannot be negative.",{"$nulls":3},0]
[null," Educational (Fund 10 - Cell C3)",{"$f":"IF(OR('CashSum 5'!$C$3<0,'CashSum 5'!$C$3=\"\"),\"CHECK ERROR - NEGATIVE BEGINNING BALANCE OR BLANK\",\"OK\")","v":"OK"},null,null,"OK"]
[null,"Operations & Maintenance (Fund 20 - Cell D3)",{"$f":"IF(OR('CashSum 5'!$D$3<0,'CashSum 5'!$D$3=\"\"),\"CHECK ERROR - NEGATIVE BEGINNING BALANCE OR BLANK\",\"OK\")","v":"OK"},null,null,"OK"]
[null,"Debt Service (Fund 30 - Cell E3)",{"$f":"IF(OR('CashSum 5'!$E$3<0,'CashSum 5'!$E$3=\"\"),\"CHECK ERROR - NEGATIVE BEGINNING BALANCE OR BLANK\",\"OK\")","v":"OK"},null,null,"OK"]
[null,"Transportation (Fund 40 - Cell F3)",{"$f":"IF(OR('CashSum 5'!$F$3<0,'CashSum 5'!$F$3=\"\"),\"CHECK ERROR - NEGATIVE BEGINNING BALANCE OR BLANK\",\"OK\")","v":"OK"},null,null,"OK"]
[null,"Municipal Retirement/Social Security (Fund 50 - Cell G3)",{"$f":"IF(OR('CashSum 5'!$G$3<0,'CashSum 5'!$G$3=\"\"),\"CHECK ERROR - NEGATIVE BEGINNING BALANCE OR BLANK\",\"OK\")","v":"OK"},null,null,"OK"]
[null,"Capital Projects (Fund 60 - Cell H3)",{"$f":"IF(OR('CashSum 5'!$H$3<0,'CashSum 5'!$H$3=\"\"),\"CHECK ERROR - NEGATIVE BEGINNING BALANCE OR BLANK\",\"OK\")","v":"OK"},null,null,"OK"]
[null,"Working Cash (Fund 70 - Cell I3)",{"$f":"IF(OR('CashSum 5'!$I$3<0,'CashSum 5'!$I$3=\"\"),\"CHECK ERROR - NEGATIVE BEGINNING BALANCE OR BLANK\",\"OK\")","v":"OK"},null,null,"OK"]
[null,"Tort (Fund 80 - Cell J3)",{"$f":"IF(OR('CashSum 5'!$J$3<0,'CashSum 5'!$J$3=\"\"),\"CHECK ERROR - NEGATIVE BEGINNING BALANCE OR BLANK\",\"OK\")","v":"OK"},null,null,"OK"]
[null,"Fire Prevention & Safety (Fund 90 - Cell K3)",{"$f":"IF(OR('CashSum 5'!$K$3<0,'CashSum 5'!$K$3=\"\"),\"CHECK ERROR - NEGATIVE BEGINNING BALANCE OR BLANK\",\"OK\")","v":"OK"},null,null,"OK"]
[null,"Activity Funds (Cell C23)",{"$f":"IF(ISNUMBER('CashSum 5'!C23),\"OK\",\"ERROR - ENTER AMOUNTS. IF ZERO, ENTER NUMBER 0\")","v":"OK"},null,null,"OK"]
[{"v":5,"d":"5."},"Summary of Cash Transactions:  Ending Cash Balance on Hand June 30, 2024 (CashSum 5 tab - All Funds) cannot be negative.",{"$nulls":3},0]
[null,"Educational (Fund 10 - Cell C21)",{"$f":"IF('CashSum 5'!$C$21<0,\"CHECK ERROR - NEGATIVE END BALANCE\",\"OK\")","v":"OK"},null,null,"OK"]
[null,"Operations & Maintenance (Fund 20 - Cell D21)",{"$f":"IF('CashSum 5'!$D$21<0,\"CHECK ERROR - NEGATIVE END BALANCE\",\"OK\")","v":"OK"},null,null,"OK"]
[null,"Debt Service (Fund 30 - Cell E21)",{"$f":"IF('CashSum 5'!$E$21<0,\"CHECK ERROR - NEGATIVE END BALANCE\",\"OK\")","v":"OK"},null,null,"OK"]
[null,"Transportation (Fund 40 - Cell F21)",{"$f":"IF('CashSum 5'!$F$21<0,\"CHECK ERROR - NEGATIVE END BALANCE\",\"OK\")","v":"OK"},null,null,"OK"]
[null,"Municipal Retirement/Social Security (Fund 50 - Cell G21)",{"$f":"IF('CashSum 5'!$G$21<0,\"CHECK ERROR - NEGATIVE END BALANCE\",\"OK\")","v":"OK"},null,null,"OK"]
[null,"Capital Projects (Fund 60 - Cell H21)",{"$f":"IF('CashSum 5'!$H$21<0,\"CHECK ERROR - NEGATIVE END BALANCE\",\"OK\")","v":"OK"},null,null,"OK"]
[null,"Working Cash (Fund 70 - Cell I21)",{"$f":"IF('CashSum 5'!$I$21<0,\"CHECK ERROR - NEGATIVE END BALANCE\",\"OK\")","v":"OK"},null,null,"OK"]
[null,"Tort (Fund 80 - Cell J21)",{"$f":"IF('CashSum 5'!$J$21<0,\"CHECK ERROR - NEGATIVE END BALANCE\",\"OK\")","v":"OK"},null,null,"OK"]
[null,"Fire Prevention & Safety (Fund 90 - Cell K21)",{"$f":"IF('CashSum 5'!$K$21<0,\"ERROR - NEGATIVE END BALANCE. PLEASE CORRECT.\",\"OK\")","v":"OK"},null,null,"OK"]
[{"v":6,"d":"6."},"Summary of Cash Transactions:  Other Receipts (CashSum 5 tab) must equal Other Disbursements (CashSum 5 tab).",{"$nulls":3},0]
[null,"Interfund Loans Payable (Funds 10:60, 80, 90 - Acct 411 - Cells C6:H6, J6:K6) must equal Interfund Loans Receivable (Funds 10:20, 40, 70 - Acct 141 - Cells C15:D15, F15, I15).",{"$f":"IF(SUM('CashSum 5'!C6:K6)<>SUM('CashSum 5'!C15:K15),\"ERROR - CHECK INTERFUND LOANS\",\"OK\")","v":"OK"},null,null,"OK"]
[null,"Interfund Loans Receivable (Funds 10, 20, 40, 70 - Acct 141 - Cells C7:D7, F7, I7) must equal Interfund Loans Payable (Funds 10:60, 80, 90 - Acct 411 - Cells C16:H16, J16, K16).",{"$f":"IF(SUM('CashSum 5'!C7:K7)<>SUM('CashSum 5'!C16:K16),\"ERROR - CHECK INTERFUND LOANS\",\"OK\")","v":"OK"},null,null,"OK"]
[{"v":7,"d":"7."},"Estimated Revenue (EstRev 6-11 tab)",{"$nulls":3},0]
[null,"Amounts must be input for revenue.",{"$f":"IF(OR('BudgetSum 2-4'!C9>0,'BudgetSum 2-4'!D9>0,'BudgetSum 2-4'!E9>0,'BudgetSum 2-4'!F9>0,'BudgetSum 2-4'!G9>0,'BudgetSum 2-4'!H9>0,'BudgetSum 2-4'!I9>0,'BudgetSum 2-4'!J9>0,'BudgetSum 2-4'!K9>0),\"OK\",\"ERROR - ESTREV TAB IS BLANK. PLEASE INPUT AMOUNTS.\")","v":"OK"},null,null,"OK"]
[{"v":8,"d":"8."},"Estimated Expenditures (EstExp 12-20 tab)",{"$nulls":3},0]
[null,"Amounts must be input for expenditures.",{"$f":"IF(OR('BudgetSum 2-4'!C19>0,'BudgetSum 2-4'!D19>0,'BudgetSum 2-4'!E19>0,'BudgetSum 2-4'!F19>0,'BudgetSum 2-4'!G19>0,'BudgetSum 2-4'!H19>0,'BudgetSum 2-4'!I19>0,'BudgetSum 2-4'!J19>0,'BudgetSum 2-4'!K19>0),\"OK\",\"ERROR - ESTEXP TAB IS BLANK. PLEASE INPUT AMOUNTS.\")","v":"OK"},null,null,"OK"]
[{"v":9,"d":"9."},"Itemization Notes:  Revenues/Expenditures reported that require note on Itemize 21 tab.",{"$nulls":3},0]
[null,"Include brief note(s) describing revenue source.",{"$f":"IF('Itemize 21'!C2=\"OK\",\"OK\",\"ERROR -Please describe revenue.\")","v":"OK"},null,null,"OK"]
[null,"Include brief note(s) describing expenditure use. ",{"$f":"IF('Itemize 21'!C3=\"OK\",\"OK\",\"ERROR -Please describe expenditures.\")","v":"OK"},null,null,{"$f":"COUNTIFS(F8:F52,\"OK\")","v":37}]
[{"v":10,"d":"10."},"EBF Spending Plan"]
[null,"All required questions have been answered.",{"$f":"IF(Cover!B3=\"x\",\"OK\",IF(Cover!H8=\"Yes\",\"OK\",IF('EBF Spending Plan 30-34'!N140=24,\"OK\",\"INCOMPLETE\")))","v":"OK"}]
[null,"End of Balancing"]

{"sheet":"FY24 Data for FY25 Plan","index":14,"n_rows":939,"n_cols":56,"rows_kept":939,"hidden":true,"merged":[[933,52,933,54]]}
[1,2,3,4,5,6,7,8,9,10,11,12,13,14,15,16,17,18,19,20,21,22,23,24,25,26,27,28,29,30,31,32,33,34,35,36,37,38,39,40,41,42,43,44,45,46,47,48,49,50,51,52,53,54,55]
["District ID","District Name","ASE","Final Adequacy Target\n(Adjusted for Regionalization Factor)","Final Resources","Final Adequacy Level","Tier Assignment"," Calculated New FY 24 Funding\n(Tier Funding)","Gross Base Funding Minimum","Total Gross FY 24 State Contribution","Regionalization Factor\n(CWI)","Core Teachers","Specialist Teacher","Instructional Facilitator","Core Intervention Teacher","Substitute Teachers","Guidance Counselor","Nurse","Supervisory Aide","Librarian","Librarian Aide","Principal","Assistant Principal","School Site Staff","Total Core Investment Cost","Gifted","Professional Development","Instructional Materials","Assessments","Computer & Tech Equip","Student Activities","Maintenance & Operations","Central Office","Employee Benefits","Total Cost","Total Salary Portion of Central Office and O&M Subject to CWI\nCost Subject to CWI","Total Cost NOT Subject to CWI","Total Adjusted Per Student Investments","LI Intervention Teacher","LI Pupil Support Staff","LI Extended Day Teacher","LI Summer School Teacher","EL Intervention Teacher","EL Pupil Support Staff","EL Extended Day Teacher","EL Summer School Teacher","EL Core Teacher","Sp Ed Teacher","Sp Ed Instructional Assistant","Sp Ed Psychologist","Total Additional Investments","Final Adjusted Adequacy Target","Total Allocation of Low-Income Funds from State Contribution\n","Total Allocation of EL Funds from State Contribution\n","Total Allocation of Sp Ed Funds from FY 23 State Contribution\n","Calculated Final Adequacy Target"]
[null,"ALT SCH-ADAMS/PIKE ROE  ",31.31,{"v":464554.07,"d":"$464,554.07"},{"v":377919.13,"d":"$377,919.13"},{"v":0.8135094586513901,"d":"81%"},2,{"v":3242.91,"d":"$3,242.91"},{"v":331463.7300000001,"d":"$331,463.73"},{"v":334706.6400000001,"d":"$334,706.64"},{"v":0.9,"d":"0.90"},{"v":100336.45,"d":"$100,336.45"},{"v":33442.13,"d":"$33,442.13"},{"v":10827.67,"d":"$10,827.67"},{"v":3609.22,"d":"$3,609.22"},{"v":3406.83,"d":"$3,406.83"},{"v":9251.28,"d":"$9,251.28"},{"v":2201.86,"d":"$2,201.86"},{"v":4009.77,"d":"$4,009.77"},{"v":3623.22,"d":"$3,623.22"},{"v":2673.18,"d":"$2,673.18"},{"v":5375.16,"d":"$5,375.16"},{"v":4628.02,"d":"$4,628.02"},{"v":4811.53,"d":"$4,811.53"},{"v":188196.31999999995,"d":"$188,196.32"},{"v":2817.9,"d":"$2,817.90"},{"v":3913.75,"d":"$3,913.75"},{"v":10175.75,"d":"$10,175.75"},{"v":1064.54,"d":"$1,064.54"},{"v":17878.01,"d":"$17,878.01"},{"v":26895.289999999997,"d":"$26,895.29"},{"v":42612.909999999996,"d":"$42,612.91"},{"v":29337.469999999998,"d":"$29,337.47"},{"v":89063.74584000002,"d":"$89,063.75"},{"v":223759.36584,"d":"$223,759.37"},{"v":29803.36,"d":"$29,803.36"},{"v":193956.00584000006,"d":"$193,956.01"},{"v":220779.02584000005,"d":"$220,779.03"},{"v":7259.17,"d":"$7,259.17"},{"v":7259.17,"d":"$7,259.17"},{"v":7259.17,"d":"$7,259.17"},{"v":7259.17,"d":"$7,259.17"},{"v":659.92,"d":"$659.92"},{"v":659.92,"d":"$659.92"},{"v":659.92,"d":"$659.92"},{"v":659.92,"d":"$659.92"},{"v":1319.85,"d":"$1,319.85"},{"v":14518.35,"d":"$14,518.35"},{"v":5880.99,"d":"$5,880.99"},{"v":2183.08,"d":"$2,183.08"},{"v":55578.62999999999,"d":"$55,578.63"},{"v":464554.07,"d":"$464,554.07"},{"v":6683.799999999999,"d":"$6,683.80"},{"v":388.26000000000005,"d":"$388.26"},{"v":3134.33,"d":"$3,134.33"},{"v":464553.97583999997,"d":"$464,553.98"}]
[null,"SAFE SCH-ADAMS/PIKE ROE",64.64,{"v":921850.67,"d":"$921,850.67"},{"v":768033.6100000001,"d":"$768,033.61"},{"v":0.8331431922699585,"d":"83%"},2,{"v":4974.35,"d":"$4,974.35"},{"v":675848.55,"d":"$675,848.55"},{"v":680822.9,"d":"$680,822.90"},{"v":0.9,"d":"0.90"},{"v":200477.9,"d":"$200,477.90"},{"v":60879.51,"d":"$60,879.51"},{"v":21717.45,"d":"$21,717.45"},{"v":7657.55,"d":"$7,657.55"},{"v":6830.9,"d":"$6,830.90"},{"v":18706.17,"d":"$18,706.17"},{"v":4403.73,"d":"$4,403.73"},{"v":8286.85,"d":"$8,286.85"},{"v":7971.08,"d":"$7,971.08"},{"v":5613.67,"d":"$5,613.67"},{"v":11825.35,"d":"$11,825.35"},{"v":10181.65,"d":"$10,181.65"},{"v":9943.83,"d":"$9,943.83"},{"v":374495.63999999996,"d":"$374,495.64"},{"v":5817.6,"d":"$5,817.60"},{"v":8080.000000000001,"d":"$8,080.00"},{"v":21008,"d":"$21,008.00"},{"v":2197.76,"d":"$2,197.76"},{"v":36909.44,"d":"$36,909.44"},{"v":45771.86000000001,"d":"$45,771.86"},{"v":87975.04000000001,"d":"$87,975.04"},{"v":60567.68000000001,"d":"$60,567.68"},{"v":177055.47995999997,"d":"$177,055.48"},{"v":445382.85996000003,"d":"$445,382.86"},{"v":61529.52,"d":"$61,529.52"},{"v":383853.33995999995,"d":"$383,853.34"},{"v":439229.89995999995,"d":"$439,229.90"},{"v":15178.27,"d":"$15,178.27"},{"v":15178.27,"d":"$15,178.27"},{"v":15838.2,"d":"$15,838.20"},{"v":15838.2,"d":"$15,838.20"},{"v":0,"d":"$0.00"},{"v":0,"d":"$0.00"},{"v":0,"d":"$0.00"},{"v":0,"d":"$0.00"},{"v":0,"d":"$0.00"},{"v":29696.62,"d":"$29,696.62"},{"v":12029.31,"d":"$12,029.31"},{"v":4366.17,"d":"$4,366.17"},{"v":108125.04,"d":"$108,125.04"},{"v":921850.67,"d":"$921,850.67"},{"v":29997.33,"d":"$29,997.33"},{"v":0,"d":"$0.00"},{"v":14090.38,"d":"$14,090.38"},{"v":921850.57996,"d":"$921,850.58"}]
["01001001026","PAYSON COMM UNIT SCHOOL DIST 1",469.95,{"v":6469310.53,"d":"$6,469,310.53"},{"v":5123475.87,"d":"$5,123,475.87"},{"v":0.7919662916536486,"d":"79%"},2,{"v":37179.73,"d":"$37,179.73"},{"v":2381625.0699999994,"d":"$2,381,625.07"},{"v":2418804.7999999993,"d":"$2,418,804.80"},{"v":0.9,"d":"0.90"},{"v":1464634.53,"d":"$1,464,634.53"},{"v":358742.7,"d":"$358,742.70"},{"v":154114.79,"d":"$154,114.79"},{"v":61350.31,"d":"$61,350.31"},{"v":50700.68,"d":"$50,700.68"},{"v":107902.08,"d":"$107,902.08"},{"v":33578.48,"d":"$33,578.48"},{"v":58008,"d":"$58,008.00"},{"v":68116.53,"d":"$68,116.53"},{"v":41434.29,"d":"$41,434.29"},{"v":101053,"d":"$101,053.00"},{"v":87006.87,"d":"$87,006.87"},{"v":69606.87,"d":"$69,606.87"},{"v":2656249.13,"d":"$2,656,249.13"},{"v":41966.1,"d":"$41,966.10"},{"v":58743.75,"d":"$58,743.75"},{"v":152733.75,"d":"$152,733.75"},{"v":15978.3,"d":"$15,978.30"},{"v":268341.44999999995,"d":"$268,341.45"},{"v":186229.26999999996,"d":"$186,229.27"},{"v":639601.95,"d":"$639,601.95"},{"v":440343.14999999997,"d":"$440,343.15"},{"v":1265502.0348,"d":"$1,265,502.03"},{"v":3069439.7547999998,"d":"$3,069,439.75"},{"v":447336,"d":"$447,336.00"},{"v":2622103.7547999998,"d":"$2,622,103.75"},{"v":3024706.1547999997,"d":"$3,024,706.15"},{"v":108227.7,"d":"$108,227.70"},{"v":108227.7,"d":"$108,227.70"},{"v":112847.17,"d":"$112,847.17"},{"v":112847.17,"d":"$112,847.17"},{"v":659.92,"d":"$659.92"},{"v":659.92,"d":"$659.92"},{"v":659.92,"d":"$659.92"},{"v":659.92,"d":"$659.92"},{"v":1319.85,"d":"$1,319.85"},{"v":219755.02,"d":"$219,755.02"},{"v":89016.89,"d":"$89,016.89"},{"v":33473.97,"d":"$33,473.97"},{"v":788355.1499999999,"d":"$788,355.15"},{"v":6469310.53,"d":"$6,469,310.53"},{"v":230411.81,"d":"$230,411.81"},{"v":466.98,"d":"$466.98"},{"v":182844.64000000004,"d":"$182,844.64"},{"v":6469310.434799999,"d":"$6,469,310.43"}]
["01001002026","LIBERTY COMM UNIT SCHOOL DIST 2",583.52,{"v":7524808.43,"d":"$7,524,808.43"},{"v":5746983,"d":"$5,746,983.00"},{"v":0.7637381141940912,"d":"76%"},1,{"v":72871.66,"d":"$72,871.66"},{"v":2381784.190000001,"d":"$2,381,784.19"},{"v":2454655.850000001,"d":"$2,454,655.85"},{"v":0.9,"d":"0.90"},{"v":1740693.81,"d":"$1,740,693.81"},{"v":423480.53,"d":"$423,480.53"},{"v":190673.94,"d":"$190,673.94"},{"v":76256.28,"d":"$76,256.28"},{"v":57374.39,"d":"$57,374.39"},{"v":131452.02,"d":"$131,452.02"},{"v":41835.49,"d":"$41,835.49"},{"v":71641.22,"d":"$71,641.22"},{"v":84783.34,"d":"$84,783.34"},{"v":51325.05,"d":"$51,325.05"},{"v":125778.74,"d":"$125,778.74"},{"v":108295.78,"d":"$108,295.78"},{"v":85966.09,"d":"$85,966.09"},{"v":3189556.6799999997,"d":"$3,189,556.68"},{"v":52164.899999999994,"d":"$52,164.90"},{"v":72940,"d":"$72,940.00"},{"v":189644,"d":"$189,644.00"},{"v":19839.68,"d":"$19,839.68"},{"v":333189.92,"d":"$333,189.92"},{"v":224401.55,"d":"$224,401.55"},{"v":794170.72,"d":"$794,170.72"},{"v":546758.24,"d":"$546,758.24"},{"v":1447441.5112799997,"d":"$1,447,441.51"},{"v":3680550.5212799995,"d":"$3,680,550.52"},{"v":555441.01,"d":"$555,441.01"},{"v":3125109.5112799993,"d":"$3,125,109.51"},{"v":3625006.411279999,"d":"$3,625,006.41"},{"v":69952.05,"d":"$69,952.05"},{"v":69952.05,"d":"$69,952.05"},{"v":72591.75,"d":"$72,591.75"},{"v":72591.75,"d":"$72,591.75"},{"v":0,"d":"$0.00"},{"v":0,"d":"$0.00"},{"v":0,"d":"$0.00"},{"v":0,"d":"$0.00"},{"v":0,"d":"$0.00"},{"v":272549.02,"d":"$272,549.02"},{"v":110402.33,"d":"$110,402.33"},{"v":42206.31,"d":"$42,206.31"},{"v":710245.26,"d":"$710,245.26"},{"v":7524808.43,"d":"$7,524,808.43"},{"v":111191.82,"d":"$111,191.82"},{"v":0,"d":"$0.00"},{"v":245397.23,"d":"$245,397.23"},{"v":7524808.351279998,"d":"$7,524,808.35"}]
["01001003026","CAMP POINT C U SCHOOL DIST 3",811.2,{"v":10785305.2,"d":"$10,785,305.20"},{"v":8755700.99,"d":"$8,755,700.99"},{"v":0.8118176377614238,"d":"81%"},2,{"v":47762.82,"d":"$47,762.82"},{"v":3633559.92,"d":"$3,633,559.92"},{"v":3681322.7399999998,"d":"$3,681,322.74"},{"v":0.9,"d":"0.90"},{"v":2478872.5,"d":"$2,478,872.50"},{"v":598154.63,"d":"$598,154.63"},{"v":265141.69,"d":"$265,141.69"},{"v":107417.67,"d":"$107,417.67"},{"v":83542.11,"d":"$83,542.11"},{"v":183773.88,"d":"$183,773.88"},{"v":58349.5,"d":"$58,349.50"},{"v":99709.61,"d":"$99,709.61"},{"v":119566.26,"d":"$119,566.26"},{"v":71908.54,"d":"$71,908.54"},{"v":177380.28,"d":"$177,380.28"},{"v":152724.82,"d":"$152,724.82"},{"v":119646.83,"d":"$119,646.83"},{"v":4516188.319999999,"d":"$4,516,188.32"},{"v":72670.5,"d":"$72,670.50"},{"v":101399.99999999999,"d":"$101,400.00"},{"v":263640,"d":"$263,640.00"},{"v":27580.799999999996,"d":"$27,580.80"},{"v":463195.19999999995,"d":"$463,195.20"},{"v":306238.73,"d":"$306,238.73"},{"v":1104043.2,"d":"$1,104,043.20"},{"v":760094.3999999999,"d":"$760,094.40"},{"v":2093766.3287999998,"d":"$2,093,766.33"},{"v":5192629.158799999,"d":"$5,192,629.16"},{"v":772165.05,"d":"$772,165.05"},{"v":4420464.1088000005,"d":"$4,420,464.11"},{"v":5115412.648800001,"d":"$5,115,412.65"},{"v":137264.4,"d":"$137,264.40"},{"v":137264.4,"d":"$137,264.40"},{"v":143203.72,"d":"$143,203.72"},{"v":143203.72,"d":"$143,203.72"},{"v":0,"d":"$0.00"},{"v":0,"d":"$0.00"},{"v":0,"d":"$0.00"},{"v":0,"d":"$0.00"},{"v":659.92,"d":"$659.92"},{"v":379456.87,"d":"$379,456.87"},{"v":153707.85,"d":"$153,707.85"},{"v":58943.29,"d":"$58,943.29"},{"v":1153704.1700000002,"d":"$1,153,704.17"},{"v":10785305.2,"d":"$10,785,305.20"},{"v":380802.84,"d":"$380,802.84"},{"v":54.38,"d":"$54.38"},{"v":253941.90000000002,"d":"$253,941.90"},{"v":10785305.1388,"d":"$10,785,305.14"}]
["01001004026","COMMUNITY UNIT SCHOOL DIST 4",634.56,{"v":8427434.53,"d":"$8,427,434.53"},{"v":6729521.21,"d":"$6,729,521.21"},{"v":0.798525480802519,"d":"80%"},2,{"v":43207.29,"d":"$43,207.29"},{"v":2777896.5100000002,"d":"$2,777,896.51"},{"v":2821103.8000000003,"d":"$2,821,103.80"},{"v":0.9,"d":"0.90"},{"v":1934117.91,"d":"$1,934,117.91"},{"v":461010.69,"d":"$461,010.69"},{"v":206708.72,"d":"$206,708.72"},{"v":84320.8,"d":"$84,320.80"},{"v":65514.03,"d":"$65,514.03"},{"v":140637.76,"d":"$140,637.76"},{"v":45138.29,"d":"$45,138.29"},{"v":77789.53,"d":"$77,789.53"},{"v":94203.72,"d":"$94,203.72"},{"v":56136.78,"d":"$56,136.78"},{"v":139754.16,"d":"$139,754.16"},{"v":120328.65,"d":"$120,328.65"},{"v":93343.77,"d":"$93,343.77"},{"v":3519004.81,"d":"$3,519,004.81"},{"v":56698.2,"d":"$56,698.20"},{"v":79320,"d":"$79,320.00"},{"v":206232,"d":"$206,232.00"},{"v":21575.039999999997,"d":"$21,575.04"},{"v":362333.76,"d":"$362,333.76"},{"v":228359.93999999997,"d":"$228,359.94"},{"v":863636.1599999999,"d":"$863,636.16"},{"v":594582.72,"d":"$594,582.72"},{"v":1638301.91484,"d":"$1,638,301.91"},{"v":4051039.73484,"d":"$4,051,039.73"},{"v":604024.97,"d":"$604,024.97"},{"v":3447014.7648400003,"d":"$3,447,014.76"},{"v":3990637.23484,"d":"$3,990,637.23"},{"v":104928.07,"d":"$104,928.07"},{"v":104928.07,"d":"$104,928.07"},{"v":109547.55,"d":"$109,547.55"},{"v":109547.55,"d":"$109,547.55"},{"v":4619.47,"d":"$4,619.47"},{"v":4619.47,"d":"$4,619.47"},{"v":5279.4,"d":"$5,279.40"},{"v":5279.4,"d":"$5,279.40"},{"v":5939.32,"d":"$5,939.32"},{"v":296966.25,"d":"$296,966.25"},{"v":120293.1,"d":"$120,293.10"},{"v":45844.78,"d":"$45,844.78"},{"v":917792.43,"d":"$917,792.43"},{"v":8427434.53,"d":"$8,427,434.53"},{"v":151440.48999999996,"d":"$151,440.49"},{"v":823.37,"d":"$823.37"},{"v":241670.90000000002,"d":"$241,670.90"},{"v":8427434.47484,"d":"$8,427,434.47"}]
["01001172022","QUINCY SCHOOL DISTRICT 172",6053.8,{"v":85086132.73,"d":"$85,086,132.73"},{"v":74109693.92999999,"d":"$74,109,693.93"},{"v":0.8709961488691577,"d":"87%"},2,{"v":125614.3,"d":"$125,614.30"},{"v":16979168.669999998,"d":"$16,979,168.67"},{"v":17104782.97,"d":"$17,104,782.97"},{"v":0.9,"d":"0.90"},{"v":19256253.18,"d":"$19,256,253.18"},{"v":4665961.78,"d":"$4,665,961.78"},{"v":1986979.79,"d":"$1,986,979.79"},{"v":807719.9,"d":"$807,719.90"},{"v":674927.76,"d":"$674,927.76"},{"v":1371700.33,"d":"$1,371,700.33"},{"v":443125.93,"d":"$443,125.93"},{"v":746619.17,"d":"$746,619.17"},{"v":898558.56,"d":"$898,558.56"},{"v":538913.08,"d":"$538,913.08"},{"v":1333039.68,"d":"$1,333,039.68"},{"v":1147750.2,"d":"$1,147,750.20"},{"v":895907.81,"d":"$895,907.81"},{"v":34767457.17,"d":"$34,767,457.17"},{"v":538550.1,"d":"$538,550.10"},{"v":756725,"d":"$756,725.00"},{"v":1967485,"d":"$1,967,485.00"},{"v":205829.2,"d":"$205,829.20"},{"v":3456719.8,"d":"$3,456,719.80"},{"v":2298789.97,"d":"$2,298,789.97"},{"v":8239221.799999999,"d":"$8,239,221.80"},{"v":5672410.6,"d":"$5,672,410.60"},{"v":16759491.160199998,"d":"$16,759,491.16"},{"v":39895222.6302,"d":"$39,895,222.63"},{"v":5762491.14,"d":"$5,762,491.14"},{"v":34132731.4902,"d":"$34,132,731.49"},{"v":39318973.510199994,"d":"$39,318,973.51"},{"v":1592399.02,"d":"$1,592,399.02"},{"v":1592399.02,"d":"$1,592,399.02"},{"v":1659051.45,"d":"$1,659,051.45"},{"v":1659051.45,"d":"$1,659,051.45"},{"v":14518.35,"d":"$14,518.35"},{"v":14518.35,"d":"$14,518.35"},{"v":14518.35,"d":"$14,518.35"},{"v":14518.35,"d":"$14,518.35"},{"v":17817.97,"d":"$17,817.97"},{"v":2833058.02,"d":"$2,833,058.02"},{"v":1147596.17,"d":"$1,147,596.17"},{"v":440255.47,"d":"$440,255.47"},{"v":10999701.969999999,"d":"$10,999,701.97"},{"v":85086132.73,"d":"$85,086,132.73"},{"v":5256749.699999999,"d":"$5,256,749.70"},{"v":2037.8300000000002,"d":"$2,037.83"},{"v":2435983.95,"d":"$2,435,983.95"},{"v":85086132.6502,"d":"$85,086,132.65"}]
["01005001026","BROWN COUNTY C U SCH DIST 1",638.7,{"v":8498720.37,"d":"$8,498,720.37"},{"v":7692611.41,"d":"$7,692,611.41"},{"v":0.905149372504887,"d":"91%"},3,{"v":9658.03,"d":"$9,658.03"},{"v":2368614.9499999997,"d":"$2,368,614.95"},{"v":2378272.9799999995,"d":"$2,378,272.98"},{"v":0.9,"d":"0.90"},{"v":1933190.61,"d":"$1,933,190.61"},{"v":473334.08,"d":"$473,334.08"},{"v":209377.63,"d":"$209,377.63"},{"v":84164.44,"d":"$84,164.44"},{"v":65536.21,"d":"$65,536.21"},{"v":146507.11,"d":"$146,507.11"},{"v":46239.22,"d":"$46,239.22"},{"v":78591.49,"d":"$78,591.49"},{"v":93479.07,"d":"$93,479.07"},{"v":56671.41,"d":"$56,671.41"},{"v":138679.12,"d":"$138,679.12"},{"v":119403.04,"d":"$119,403.04"},{"v":94306.08,"d":"$94,306.08"},{"v":3539479.5100000002,"d":"$3,539,479.51"},{"v":56906.09999999999,"d":"$56,906.10"},{"v":79837.5,"d":"$79,837.50"},{"v":207577.5,"d":"$207,577.50"},{"v":21715.8,"d":"$21,715.80"},{"v":364697.69999999995,"d":"$364,697.70"},{"v":250603.89,"d":"$250,603.89"},{"v":869270.7,"d":"$869,270.70"},{"v":598461.9,"d":"$598,461.90"},{"v":1648019.7048,"d":"$1,648,019.70"},{"v":4097090.7948,"d":"$4,097,090.79"},{"v":607965.75,"d":"$607,965.75"},{"v":3489125.0448,"d":"$3,489,125.04"},{"v":4036294.2147999997,"d":"$4,036,294.21"},{"v":108227.7,"d":"$108,227.70"},{"v":108227.7,"d":"$108,227.70"},{"v":112847.17,"d":"$112,847.17"},{"v":112847.17,"d":"$112,847.17"},{"v":2639.7,"d":"$2,639.70"},{"v":2639.7,"d":"$2,639.70"},{"v":3299.62,"d":"$3,299.62"},{"v":3299.62,"d":"$3,299.62"},{"v":3959.55,"d":"$3,959.55"},{"v":298286.1,"d":"$298,286.10"},{"v":120827.73,"d":"$120,827.73"},{"v":45844.78,"d":"$45,844.78"},{"v":922946.54,"d":"$922,946.54"},{"v":8498720.37,"d":"$8,498,720.37"},{"v":284937.08,"d":"$284,937.08"},{"v":162.95,"d":"$162.95"},{"v":210060.55,"d":"$210,060.55"},{"v":8498720.264800001,"d":"$8,498,720.26"}]
["01009015026","BEARDSTOWN C U SCH DIST 15",1338.75,{"v":21894878.65,"d":"$21,894,878.65"},{"v":15194409.35,"d":"$15,194,409.35"},{"v":0.6939709323303329,"d":"69%"},1,{"v":841089.2,"d":"$841,089.20"},{"v":12333932.63,"d":"$12,333,932.63"},{"v":13175021.83,"d":"$13,175,021.83"},{"v":0.9,"d":"0.90"},{"v":4254917.59,"d":"$4,254,917.59"},{"v":1044293.39,"d":"$1,044,293.39"},{"v":440063.6,"d":"$440,063.60"},{"v":176958.89,"d":"$176,958.89"},{"v":183223.81,"d":"$183,223.81"},{"v":305552.88,"d":"$305,552.88"},{"v":97983.12,"d":"$97,983.12"},{"v":165202.52,"d":"$165,202.52"},{"v":196378.52,"d":"$196,378.52"},{"v":118956.51,"d":"$118,956.51"},{"v":291333.67,"d":"$291,333.67"},{"v":250838.95,"d":"$250,838.95"},{"v":198235.24,"d":"$198,235.24"},{"v":7723938.689999998,"d":"$7,723,938.69"},{"v":118530,"d":"$118,530.00"},{"v":167343.75,"d":"$167,343.75"},{"v":435093.75,"d":"$435,093.75"},{"v":45517.5,"d":"$45,517.50"},{"v":764426.25,"d":"$764,426.25"},{"v":526672,"d":"$526,672.00"},{"v":1822038.75,"d":"$1,822,038.75"},{"v":1254408.75,"d":"$1,254,408.75"},{"v":4462988.358,"d":"$4,462,988.36"},{"v":9597019.108,"d":"$9,597,019.11"},{"v":1274329.35,"d":"$1,274,329.35"},{"v":8322689.757999999,"d":"$8,322,689.76"},{"v":9469586.168,"d":"$9,469,586.17"},{"v":368898.07,"d":"$368,898.07"},{"v":368898.07,"d":"$368,898.07"},{"v":384736.27,"d":"$384,736.27"},{"v":384736.27,"d":"$384,736.27"},{"v":415752.75,"d":"$415,752.75"},{"v":415752.75,"d":"$415,752.75"},{"v":432910.8,"d":"$432,910.80"},{"v":432910.8,"d":"$432,910.80"},{"v":520020.9,"d":"$520,020.90"},{"v":626268.82,"d":"$626,268.82"},{"v":253684.78,"d":"$253,684.78"},{"v":96783.43,"d":"$96,783.43"},{"v":4701353.71,"d":"$4,701,353.71"},{"v":21894878.65,"d":"$21,894,878.65"},{"v":1891672.5399999998,"d":"$1,891,672.54"},{"v":841216.7700000001,"d":"$841,216.77"},{"v":727000.03,"d":"$727,000.03"},{"v":21894878.567999996,"d":"$21,894,878.57"}]
["01009064026","VIRGINIA C U SCH DIST 64",293.12,{"v":3870580.73,"d":"$3,870,580.73"},{"v":3096181.3600000003,"d":"$3,096,181.36"},{"v":0.7999268264842523,"d":"80%"},2,{"v":17965.53,"d":"$17,965.53"},{"v":775312.3799999999,"d":"$775,312.38"},{"v":793277.9099999999,"d":"$793,277.91"},{"v":0.9,"d":"0.90"},{"v":895647.76,"d":"$895,647.76"},{"v":210594.12,"d":"$210,594.12"},{"v":94488.74,"d":"$94,488.74"},{"v":38159.19,"d":"$38,159.19"},{"v":30228.14,"d":"$30,228.14"},{"v":63034.97,"d":"$63,034.97"},{"v":20917.74,"d":"$20,917.74"},{"v":35553.29,"d":"$35,553.29"},{"v":42753.99,"d":"$42,753.99"},{"v":25929.84,"d":"$25,929.84"},{"v":63426.88,"d":"$63,426.88"},{"v":54610.69,"d":"$54,610.69"},{"v":42662.27,"d":"$42,662.27"},{"v":1618007.6199999996,"d":"$1,618,007.62"},{"v":26096.399999999998,"d":"$26,096.40"},{"v":36640,"d":"$36,640.00"},{"v":95264,"d":"$95,264.00"},{"v":9966.08,"d":"$9,966.08"},{"v":167371.52,"d":"$167,371.52"},{"v":99997.01999999999,"d":"$99,997.02"},{"v":398936.31999999995,"d":"$398,936.32"},{"v":274653.43999999994,"d":"$274,653.44"},{"v":752610.71868,"d":"$752,610.72"},{"v":1861535.4986799997,"d":"$1,861,535.50"},{"v":279015.06,"d":"$279,015.06"},{"v":1582520.43868,"d":"$1,582,520.44"},{"v":1833633.98868,"d":"$1,833,633.99"},{"v":49494.37,"d":"$49,494.37"},{"v":49494.37,"d":"$49,494.37"},{"v":51474.15,"d":"$51,474.15"},{"v":51474.15,"d":"$51,474.15"},{"v":659.92,"d":"$659.92"},{"v":659.92,"d":"$659.92"},{"v":659.92,"d":"$659.92"},{"v":659.92,"d":"$659.92"},{"v":1319.85,"d":"$1,319.85"},{"v":136604.47,"d":"$136,604.47"},{"v":55334.82,"d":"$55,334.82"},{"v":21103.15,"d":"$21,103.15"},{"v":418939.01000000007,"d":"$418,939.01"},{"v":3870580.73,"d":"$3,870,580.73"},{"v":141598.83,"d":"$141,598.83"},{"v":51.07,"d":"$51.07"},{"v":51263.85999999999,"d":"$51,263.86"},{"v":3870580.61868,"d":"$3,870,580.62"}]
["01009262026","A C CENTRAL CUSD 262",341.13,{"v":4626779.07,"d":"$4,626,779.07"},{"v":4455798.92,"d":"$4,455,798.92"},{"v":0.9630455339636521,"d":"96%"},3,{"v":5257.92,"d":"$5,257.92"},{"v":1354739.06,"d":"$1,354,739.06"},{"v":1359996.98,"d":"$1,359,996.98"},{"v":0.9,"d":"0.90"},{"v":1059534.37,"d":"$1,059,534.37"},{"v":262038.5,"d":"$262,038.50"},{"v":111624.52,"d":"$111,624.52"},{"v":43839.71,"d":"$43,839.71"},{"v":35999.21,"d":"$35,999.21"},{"v":78170.11,"d":"$78,170.11"},{"v":24220.54,"d":"$24,220.54"},{"v":41701.6,"d":"$41,701.60"},{"v":48551.14,"d":"$48,551.14"},{"v":29939.61,"d":"$29,939.61"},{"v":72027.14,"d":"$72,027.14"},{"v":62015.53,"d":"$62,015.53"},{"v":50039.96,"d":"$50,039.96"},{"v":1919701.9400000002,"d":"$1,919,701.94"},{"v":30582,"d":"$30,582.00"},{"v":42641.25,"d":"$42,641.25"},{"v":110867.25,"d":"$110,867.25"},{"v":11598.42,"d":"$11,598.42"},{"v":194785.22999999998,"d":"$194,785.23"},{"v":139341.36,"d":"$139,341.36"},{"v":464277.93,"d":"$464,277.93"},{"v":319638.81,"d":"$319,638.81"},{"v":900440.60832,"d":"$900,440.61"},{"v":2214172.85832,"d":"$2,214,172.86"},{"v":324714.82,"d":"$324,714.82"},{"v":1889458.0383199996,"d":"$1,889,458.04"},{"v":2181701.3683199994,"d":"$2,181,701.37"},{"v":67972.27,"d":"$67,972.27"},{"v":67972.27,"d":"$67,972.27"},{"v":70611.97,"d":"$70,611.97"},{"v":70611.97,"d":"$70,611.97"},{"v":0,"d":"$0.00"},{"v":0,"d":"$0.00"},{"v":0,"d":"$0.00"},{"v":0,"d":"$0.00"},{"v":0,"d":"$0.00"},{"v":159041.92,"d":"$159,041.92"},{"v":64423.63,"d":"$64,423.63"},{"v":24741.63,"d":"$24,741.63"},{"v":525375.66,"d":"$525,375.66"},{"v":4626779.07,"d":"$4,626,779.07"},{"v":119001.56,"d":"$119,001.56"},{"v":3.15,"d":"$3.15"},{"v":88907.27000000002,"d":"$88,907.27"},{"v":4626778.96832,"d":"$4,626,778.97"}]
["01069001026","FRANKLIN C U SCHOOL DISTRICT 1",270.46,{"v":3520498.92,"d":"$3,520,498.92"},{"v":3541232.7300000004,"d":"$3,541,232.73"},{"v":1.005889452168899,"d":"101%"},4,{"v":224.25,"d":"$224.25"},{"v":519288.99000000005,"d":"$519,288.99"},{"v":519513.24000000005,"d":"$519,513.24"},{"v":0.9,"d":"0.90"},{"v":821848.42,"d":"$821,848.42"},{"v":201222.68,"d":"$201,222.68"},{"v":88244.91,"d":"$88,244.91"},{"v":34582.11,"d":"$34,582.11"},{"v":27795.02,"d":"$27,795.02"},{"v":61478.58,"d":"$61,478.58"},{"v":18715.87,"d":"$18,715.87"},{"v":32880.11,"d":"$32,880.11"},{"v":38406.13,"d":"$38,406.13"},{"v":23791.3,"d":"$23,791.30"},{"v":56976.69,"d":"$56,976.69"},{"v":49057.06,"d":"$49,057.06"},{"v":39454.58,"d":"$39,454.58"},{"v":1494453.4600000004,"d":"$1,494,453.46"},{"v":24237,"d":"$24,237.00"},{"v":33807.5,"d":"$33,807.50"},{"v":87899.5,"d":"$87,899.50"},{"v":9195.64,"d":"$9,195.64"},{"v":77216.32,"d":"$77,216.32"},{"v":107251.99999999999,"d":"$107,252.00"},{"v":368096.06,"d":"$368,096.06"},{"v":253421.01999999996,"d":"$253,421.02"},{"v":697256.0804399999,"d":"$697,256.08"},{"v":1658381.12044,"d":"$1,658,381.12"},{"v":257445.46,"d":"$257,445.46"},{"v":1400935.66044,"d":"$1,400,935.66"},{"v":1632636.57044,"d":"$1,632,636.57"},{"v":48174.52,"d":"$48,174.52"},{"v":48174.52,"d":"$48,174.52"},{"v":50154.3,"d":"$50,154.30"},{"v":50154.3,"d":"$50,154.30"},{"v":0,"d":"$0.00"},{"v":0,"d":"$0.00"},{"v":0,"d":"$0.00"},{"v":0,"d":"$0.00"},{"v":0,"d":"$0.00"},{"v":126045.67,"d":"$126,045.67"},{"v":51057.73,"d":"$51,057.73"},{"v":19647.76,"d":"$19,647.76"},{"v":393408.8,"d":"$393,408.80"},{"v":3520498.92,"d":"$3,520,498.92"},{"v":77232.72,"d":"$77,232.72"},{"v":0,"d":"$0.00"},{"v":99187.19999999998,"d":"$99,187.20"},{"v":3520498.83044,"d":"$3,520,498.83"}]
["01069006026","WAVERLY C U SCHOOL DIST 6",331.05,{"v":4477194.38,"d":"$4,477,194.38"},{"v":3885716.3400000003,"d":"$3,885,716.34"},{"v":0.8678909178832661,"d":"87%"},2,{"v":6869.17,"d":"$6,869.17"},{"v":1000268.4099999999,"d":"$1,000,268.41"},{"v":1007137.58,"d":"$1,007,137.58"},{"v":0.9,"d":"0.90"},{"v":1023189.35,"d":"$1,023,189.35"},{"v":248418.84,"d":"$248,418.84"},{"v":107732.55,"d":"$107,732.55"},{"v":43023.61,"d":"$43,023.61"},{"v":34996.01,"d":"$34,996.01"},{"v":72868.08,"d":"$72,868.08"},{"v":23119.61,"d":"$23,119.61"},{"v":40365.01,"d":"$40,365.01"},{"v":47826.5,"d":"$47,826.50"},{"v":29137.66,"d":"$29,137.66"},{"v":70952.11,"d":"$70,952.11"},{"v":61089.93,"d":"$61,089.93"},{"v":48436.11,"d":"$48,436.11"},{"v":1851155.3700000003,"d":"$1,851,155.37"},{"v":29487.6,"d":"$29,487.60"},{"v":41381.25,"d":"$41,381.25"},{"v":107591.25,"d":"$107,591.25"},{"v":11255.699999999999,"d":"$11,255.70"},{"v":189029.55,"d":"$189,029.55"},{"v":125494.06,"d":"$125,494.06"},{"v":450559.05,"d":"$450,559.05"},{"v":310193.85,"d":"$310,193.85"},{"v":873081.4842,"d":"$873,081.48"},{"v":2138073.7942,"d":"$2,138,073.79"},{"v":315119.87,"d":"$315,119.87"},{"v":1822953.9241999998,"d":"$1,822,953.92"},{"v":2106561.8041999997,"d":"$2,106,561.80"},{"v":67312.35,"d":"$67,312.35"},{"v":67312.35,"d":"$67,312.35"},{"v":69952.05,"d":"$69,952.05"},{"v":69952.05,"d":"$69,952.05"},{"v":659.92,"d":"$659.92"},{"v":659.92,"d":"$659.92"},{"v":659.92,"d":"$659.92"},{"v":659.92,"d":"$659.92"},{"v":1319.85,"d":"$1,319.85"},{"v":154422.45,"d":"$154,422.45"},{"v":62552.41,"d":"$62,552.41"},{"v":24013.93,"d":"$24,013.93"},{"v":519477.11999999994,"d":"$519,477.12"},{"v":4477194.38,"d":"$4,477,194.38"},{"v":149778.05,"d":"$149,778.05"},{"v":243.10000000000002,"d":"$243.10"},{"v":107298.93000000002,"d":"$107,298.93"},{"v":4477194.2942,"d":"$4,477,194.29"}]
["01069011026","MEREDOSIA-CHAMBERSBURG CUSD 11",183.25,{"v":2570507.49,"d":"$2,570,507.49"},{"v":4678986.76,"d":"$4,678,986.76"},{"v":1.820257975595317,"d":"182%"},4,{"v":163.73,"d":"$163.73"},{"v":343310.57,"d":"$343,310.57"},{"v":343474.3,"d":"$343,474.30"},{"v":0.9,"d":"0.90"},{"v":590748.99,"d":"$590,748.99"},{"v":138837.51,"d":"$138,837.51"},{"v":58651.43,"d":"$58,651.43"},{"v":23253.22,"d":"$23,253.22"},{"v":21222.94,"d":"$21,222.94"},{"v":38903.2,"d":"$38,903.20"},{"v":12660.74,"d":"$12,660.74"},{"v":22187.39,"d":"$22,187.39"},{"v":26087.18,"d":"$26,087.18"},{"v":16039.08,"d":"$16,039.08"},{"v":38701.15,"d":"$38,701.15"},{"v":33321.78,"d":"$33,321.78"},{"v":26623.82,"d":"$26,623.82"},{"v":1047238.4299999999,"d":"$1,047,238.43"},{"v":16200,"d":"$16,200.00"},{"v":22906.25,"d":"$22,906.25"},{"v":59556.25,"d":"$59,556.25"},{"v":6230.5,"d":"$6,230.50"},{"v":52317.869999999995,"d":"$52,317.87"},{"v":62025,"d":"$62,025.00"},{"v":249403.25,"d":"$249,403.25"},{"v":171705.25,"d":"$171,705.25"},{"v":520843.04699999996,"d":"$520,843.05"},{"v":1161187.417,"d":"$1,161,187.42"},{"v":174432.01,"d":"$174,432.01"},{"v":986755.4069999999,"d":"$986,755.41"},{"v":1143744.207,"d":"$1,143,744.21"},{"v":60713.1,"d":"$60,713.10"},{"v":60713.1,"d":"$60,713.10"},{"v":62692.87,"d":"$62,692.87"},{"v":62692.87,"d":"$62,692.87"},{"v":0,"d":"$0.00"},{"v":0,"d":"$0.00"},{"v":0,"d":"$0.00"},{"v":0,"d":"$0.00"},{"v":0,"d":"$0.00"},{"v":85130.32,"d":"$85,130.32"},{"v":34484.02,"d":"$34,484.02"},{"v":13098.51,"d":"$13,098.51"},{"v":379524.79000000004,"d":"$379,524.79"},{"v":2570507.49,"d":"$2,570,507.49"},{"v":203791.87,"d":"$203,791.87"},{"v":0,"d":"$0.00"},{"v":71236.34999999999,"d":"$71,236.35"},{"v":2570507.427,"d":"$2,570,507.43"}]
["01069027026","TRIOPIA C U SCHOOL DISTRICT 27",365,{"v":4729277.9,"d":"$4,729,277.90"},{"v":3906333.51,"d":"$3,906,333.51"},{"v":0.8259894200761599,"d":"83%"},2,{"v":15173.4,"d":"$15,173.40"},{"v":1060491.22,"d":"$1,060,491.22"},{"v":1075664.6199999999,"d":"$1,075,664.62"},{"v":0.9,"d":"0.90"},{"v":1076106.84,"d":"$1,076,106.84"},{"v":268816.98,"d":"$268,816.98"},{"v":119721.17,"d":"$119,721.17"},{"v":47166.19,"d":"$47,166.19"},{"v":35777.16,"d":"$35,777.16"},{"v":84730.35,"d":"$84,730.35"},{"v":25871.94,"d":"$25,871.94"},{"v":44909.42,"d":"$44,909.42"},{"v":52174.36,"d":"$52,174.36"},{"v":32078.16,"d":"$32,078.16"},{"v":77402.3,"d":"$77,402.30"},{"v":66643.56,"d":"$66,643.56"},{"v":53889.19,"d":"$53,889.19"},{"v":1985287.6199999999,"d":"$1,985,287.62"},{"v":32580,"d":"$32,580.00"},{"v":45625,"d":"$45,625.00"},{"v":118625,"d":"$118,625.00"},{"v":12410,"d":"$12,410.00"},{"v":208415,"d":"$208,415.00"},{"v":152130,"d":"$152,130.00"},{"v":496765,"d":"$496,765.00"},{"v":342005,"d":"$342,005.00"},{"v":908095.485,"d":"$908,095.49"},{"v":2316650.485,"d":"$2,316,650.49"},{"v":347436.2,"d":"$347,436.20"},{"v":1969214.285,"d":"$1,969,214.29"},{"v":2281906.8649999998,"d":"$2,281,906.87"},{"v":48174.52,"d":"$48,174.52"},{"v":48174.52,"d":"$48,174.52"},{"v":50154.3,"d":"$50,154.30"},{"v":50154.3,"d":"$50,154.30"},{"v":0,"d":"$0.00"},{"v":0,"d":"$0.00"},{"v":0,"d":"$0.00"},{"v":0,"d":"$0.00"},{"v":0,"d":"$0.00"},{"v":170260.65,"d":"$170,260.65"},{"v":68968.04,"d":"$68,968.04"},{"v":26197.02,"d":"$26,197.02"},{"v":462083.35000000003,"d":"$462,083.35"},{"v":4729277.9,"d":"$4,729,277.90"},{"v":73398.07999999999,"d":"$73,398.08"},{"v":0,"d":"$0.00"},{"v":113184.63,"d":"$113,184.63"},{"v":4729277.834999999,"d":"$4,729,277.84"}]
["01069117022","JACKSONVILLE SCHOOL DIST 117",3005.87,{"v":42539554.42,"d":"$42,539,554.42"},{"v":35508148.5,"d":"$35,508,148.50"},{"v":0.834708989883209,"d":"83%"},2,{"v":151488.81,"d":"$151,488.81"},{"v":11223485.54,"d":"$11,223,485.54"},{"v":11374974.35,"d":"$11,374,974.35"},{"v":0.9,"d":"0.90"},{"v":9590460.81,"d":"$9,590,460.81"},{"v":2302691.24,"d":"$2,302,691.24"},{"v":984402.55,"d":"$984,402.55"},{"v":401081.8,"d":"$401,081.80"},{"v":339360.56,"d":"$339,360.56"},{"v":676038.81,"d":"$676,038.81"},{"v":220186.8,"d":"$220,186.80"},{"v":369968.11,"d":"$369,968.11"},{"v":447105.34,"d":"$447,105.34"},{"v":267585.31,"d":"$267,585.31"},{"v":663294.74,"d":"$663,294.74"},{"v":571098.28,"d":"$571,098.28"},{"v":443944.29,"d":"$443,944.29"},{"v":17277218.640000004,"d":"$17,277,218.64"},{"v":267783.3,"d":"$267,783.30"},{"v":375733.75,"d":"$375,733.75"},{"v":976907.75,"d":"$976,907.75"},{"v":102199.58,"d":"$102,199.58"},{"v":1716351.77,"d":"$1,716,351.77"},{"v":1110277.4500000002,"d":"$1,110,277.45"},{"v":4090989.0699999994,"d":"$4,090,989.07"},{"v":2816500.19,"d":"$2,816,500.19"},{"v":8401169.635680001,"d":"$8,401,169.64"},{"v":19857912.49568,"d":"$19,857,912.50"},{"v":2861227.53,"d":"$2,861,227.53"},{"v":16996684.965679996,"d":"$16,996,684.97"},{"v":19571789.735679995,"d":"$19,571,789.74"},{"v":802468.8,"d":"$802,468.80"},{"v":802468.8,"d":"$802,468.80"},{"v":836124.97,"d":"$836,124.97"},{"v":836124.97,"d":"$836,124.97"},{"v":40915.35,"d":"$40,915.35"},{"v":40915.35,"d":"$40,915.35"},{"v":42895.12,"d":"$42,895.12"},{"v":42895.12,"d":"$42,895.12"},{"v":51474.15,"d":"$51,474.15"},{"v":1406300.17,"d":"$1,406,300.17"},{"v":569654.65,"d":"$569,654.65"},{"v":218308.5,"d":"$218,308.50"},{"v":5690545.950000001,"d":"$5,690,545.95"},{"v":42539554.42,"d":"$42,539,554.42"},{"v":3187006.5,"d":"$3,187,006.50"},{"v":58217.83000000001,"d":"$58,217.83"},{"v":1344819.7299999995,"d":"$1,344,819.73"},{"v":42539554.32568,"d":"$42,539,554.33"}]
["01075003026","PLEASANT HILL C U SCH DIST 3",338.25,{"v":4521939.27,"d":"$4,521,939.27"},{"v":3119016.91,"d":"$3,119,016.91"},{"v":0.6897520563118931,"d":"69%"},1,{"v":168917.53,"d":"$168,917.53"},{"v":1311943.32,"d":"$1,311,943.32"},{"v":1480860.85,"d":"$1,480,860.85"},{"v":0.9,"d":"0.90"},{"v":1044116.35,"d":"$1,044,116.35"},{"v":249621.37,"d":"$249,621.37"},{"v":109332.6,"d":"$109,332.60"},{"v":44184.56,"d":"$44,184.56"},{"v":35315.05,"d":"$35,315.05"},{"v":74708.13,"d":"$74,708.13"},{"v":24220.54,"d":"$24,220.54"},{"v":41166.97,"d":"$41,166.97"},{"v":49275.79,"d":"$49,275.79"},{"v":29672.29,"d":"$29,672.29"},{"v":73102.17,"d":"$73,102.17"},{"v":62941.14,"d":"$62,941.14"},{"v":49398.42,"d":"$49,398.42"},{"v":1887055.38,"d":"$1,887,055.38"},{"v":30285,"d":"$30,285.00"},{"v":42281.25,"d":"$42,281.25"},{"v":109931.25,"d":"$109,931.25"},{"v":11500.5,"d":"$11,500.50"},{"v":193140.75,"d":"$193,140.75"},{"v":123423.5,"d":"$123,423.50"},{"v":460358.25,"d":"$460,358.25"},{"v":316940.25,"d":"$316,940.25"},{"v":880184.2200000001,"d":"$880,184.22"},{"v":2168044.97,"d":"$2,168,044.97"},{"v":321973.41,"d":"$321,973.41"},{"v":1846071.5600000003,"d":"$1,846,071.56"},{"v":2135847.62,"d":"$2,135,847.62"},{"v":62032.95,"d":"$62,032.95"},{"v":62032.95,"d":"$62,032.95"},{"v":64672.65,"d":"$64,672.65"},{"v":64672.65,"d":"$64,672.65"},{"v":0,"d":"$0.00"},{"v":0,"d":"$0.00"},{"v":0,"d":"$0.00"},{"v":0,"d":"$0.00"},{"v":0,"d":"$0.00"},{"v":157722.07,"d":"$157,722.07"},{"v":63889,"d":"$63,889.00"},{"v":24013.93,"d":"$24,013.93"},{"v":499036.2,"d":"$499,036.20"},{"v":4521939.27,"d":"$4,521,939.27"},{"v":182667.24,"d":"$182,667.24"},{"v":0,"d":"$0.00"},{"v":154557.93,"d":"$154,557.93"},{"v":4521939.2,"d":"$4,521,939.20"}]
["01075004026","GRIGGSVILLE-PERRY C U SCH DIST 4",315.63,{"v":4361727.81,"d":"$4,361,727.81"},{"v":3990010.2199999997,"d":"$3,990,010.22"},{"v":0.9147774445833657,"d":"91%"},3,{"v":4956.71,"d":"$4,956.71"},{"v":1693508.2099999997,"d":"$1,693,508.21"},{"v":1698464.9199999997,"d":"$1,698,464.92"},{"v":0.9,"d":"0.90"},{"v":994536.18,"d":"$994,536.18"},{"v":239705.33,"d":"$239,705.33"},{"v":102334.78,"d":"$102,334.78"},{"v":40952.33,"d":"$40,952.33"},{"v":34475.56,"d":"$34,475.56"},{"v":70460.71,"d":"$70,460.71"},{"v":22569.14,"d":"$22,569.14"},{"v":38493.79,"d":"$38,493.79"},{"v":45652.57,"d":"$45,652.57"},{"v":27801.07,"d":"$27,801.07"},{"v":67727.01,"d":"$67,727.01"},{"v":58313.11,"d":"$58,313.11"},{"v":46190.73,"d":"$46,190.73"},{"v":1789212.3100000003,"d":"$1,789,212.31"},{"v":28152,"d":"$28,152.00"},{"v":39453.75,"d":"$39,453.75"},{"v":102579.75,"d":"$102,579.75"},{"v":10731.42,"d":"$10,731.42"},{"v":180224.73,"d":"$180,224.73"},{"v":118204.49999999999,"d":"$118,204.50"},{"v":429572.43,"d":"$429,572.43"},{"v":295745.31,"d":"$295,745.31"},{"v":855757.5613200001,"d":"$855,757.56"},{"v":2060421.4513200002,"d":"$2,060,421.45"},{"v":300441.88,"d":"$300,441.88"},{"v":1759979.57132,"d":"$1,759,979.57"},{"v":2030377.26132,"d":"$2,030,377.26"},{"v":76551.3,"d":"$76,551.30"},{"v":76551.3,"d":"$76,551.30"},{"v":79850.92,"d":"$79,850.92"},{"v":79850.92,"d":"$79,850.92"},{"v":0,"d":"$0.00"},{"v":0,"d":"$0.00"},{"v":0,"d":"$0.00"},{"v":0,"d":"$0.00"},{"v":0,"d":"$0.00"},{"v":147163.27,"d":"$147,163.27"},{"v":59611.91,"d":"$59,611.91"},{"v":22558.54,"d":"$22,558.54"},{"v":542138.16,"d":"$542,138.16"},{"v":4361727.81,"d":"$4,361,727.81"},{"v":273672.59,"d":"$273,672.59"},{"v":0,"d":"$0.00"},{"v":148536.62000000002,"d":"$148,536.62"},{"v":4361727.73132,"d":"$4,361,727.73"}]
["01075010026","PIKELAND C U SCH DIST 10",1084.45,{"v":15068262.41,"d":"$15,068,262.41"},{"v":11419576.47,"d":"$11,419,576.47"},{"v":0.7578562251757335,"d":"76%"},1,{"v":190272.04,"d":"$190,272.04"},{"v":5719676.640000001,"d":"$5,719,676.64"},{"v":5909948.680000001,"d":"$5,909,948.68"},{"v":0.9,"d":"0.90"},{"v":3418021.62,"d":"$3,418,021.62"},{"v":825339.24,"d":"$825,339.24"},{"v":354359.05,"d":"$354,359.05"},{"v":143788.32,"d":"$143,788.32"},{"v":119001.48,"d":"$119,001.48"},{"v":247768.9,"d":"$247,768.90"},{"v":78716.78,"d":"$78,716.78"},{"v":133391.68,"d":"$133,391.68"},{"v":160146.32,"d":"$160,146.32"},{"v":95967.16,"d":"$95,967.16"},{"v":237582.07,"d":"$237,582.07"},{"v":204558.7,"d":"$204,558.70"},{"v":160063.73,"d":"$160,063.73"},{"v":6178705.050000003,"d":"$6,178,705.05"},{"v":97120.8,"d":"$97,120.80"},{"v":135556.25,"d":"$135,556.25"},{"v":352446.25,"d":"$352,446.25"},{"v":36871.299999999996,"d":"$36,871.30"},{"v":619220.9500000001,"d":"$619,220.95"},{"v":412006.18000000005,"d":"$412,006.18"},{"v":1475936.45,"d":"$1,475,936.45"},{"v":1016129.6499999999,"d":"$1,016,129.65"},{"v":2959059.8418000005,"d":"$2,959,059.84"},{"v":7104347.671800001,"d":"$7,104,347.67"},{"v":1032266.26,"d":"$1,032,266.26"},{"v":6072081.4118,"d":"$6,072,081.41"},{"v":7001121.0418,"d":"$7,001,121.04"},{"v":264629.92,"d":"$264,629.92"},{"v":264629.92,"d":"$264,629.92"},{"v":275848.65,"d":"$275,848.65"},{"v":275848.65,"d":"$275,848.65"},{"v":2639.7,"d":"$2,639.70"},{"v":2639.7,"d":"$2,639.70"},{"v":3299.62,"d":"$3,299.62"},{"v":3299.62,"d":"$3,299.62"},{"v":3959.55,"d":"$3,959.55"},{"v":507482.32,"d":"$507,482.32"},{"v":205567.54,"d":"$205,567.54"},{"v":78591.06,"d":"$78,591.06"},{"v":1888436.2500000005,"d":"$1,888,436.25"},{"v":15068262.41,"d":"$15,068,262.41"},{"v":845654,"d":"$845,654.00"},{"v":720.8,"d":"$720.80"},{"v":535973.92,"d":"$535,973.92"},{"v":15068262.341800002,"d":"$15,068,262.34"}]
["01075012026","WESTERN CUSD 12",458.38,{"v":6353138.76,"d":"$6,353,138.76"},{"v":5270696.09,"d":"$5,270,696.09"},{"v":0.8296208046304344,"d":"83%"},2,{"v":23537.4,"d":"$23,537.40"},{"v":2248692.5500000003,"d":"$2,248,692.55"},{"v":2272229.95,"d":"$2,272,229.95"},{"v":0.9,"d":"0.90"},{"v":1448398.25,"d":"$1,448,398.25"},{"v":344045.04,"d":"$344,045.04"},{"v":149029.74,"d":"$149,029.74"},{"v":60973.32,"d":"$60,973.32"},{"v":50428.04,"d":"$50,428.04"},{"v":100774.51,"d":"$100,774.51"},{"v":32477.55,"d":"$32,477.55"},{"v":55869.46,"d":"$55,869.46"},{"v":68116.53,"d":"$68,116.53"},{"v":40632.33,"d":"$40,632.33"},{"v":101053,"d":"$101,053.00"},{"v":87006.87,"d":"$87,006.87"},{"v":67040.72,"d":"$67,040.72"},{"v":2605845.36,"d":"$2,605,845.36"},{"v":40781.7,"d":"$40,781.70"},{"v":57297.5,"d":"$57,297.50"},{"v":148973.5,"d":"$148,973.50"},{"v":15584.920000000002,"d":"$15,584.92"},{"v":261734.98,"d":"$261,734.98"},{"v":162936.88999999998,"d":"$162,936.89"},{"v":623855.18,"d":"$623,855.18"},{"v":429502.05999999994,"d":"$429,502.06"},{"v":1249591.68732,"d":"$1,249,591.69"},{"v":2990258.41732,"d":"$2,990,258.42"},{"v":436322.75,"d":"$436,322.75"},{"v":2553935.6673200005,"d":"$2,553,935.67"},{"v":2946626.1373200007,"d":"$2,946,626.14"},{"v":113507.1,"d":"$113,507.10"},{"v":113507.1,"d":"$113,507.10"},{"v":118126.57,"d":"$118,126.57"},{"v":118126.57,"d":"$118,126.57"},{"v":659.92,"d":"$659.92"},{"v":659.92,"d":"$659.92"},{"v":659.92,"d":"$659.92"},{"v":659.92,"d":"$659.92"},{"v":659.92,"d":"$659.92"},{"v":214475.62,"d":"$214,475.62"},{"v":86878.35,"d":"$86,878.35"},{"v":32746.27,"d":"$32,746.27"},{"v":800667.1799999999,"d":"$800,667.18"},{"v":6353138.76,"d":"$6,353,138.76"},{"v":411638.38,"d":"$411,638.38"},{"v":61.370000000000005,"d":"$61.37"},{"v":161138.19999999998,"d":"$161,138.20"},{"v":6353138.67732,"d":"$6,353,138.68"}]
["01086001026","WINCHESTER C U SCH DIST 1",541.36,{"v":7345713.49,"d":"$7,345,713.49"},{"v":5787947.109999999,"d":"$5,787,947.11"},{"v":0.7879353200855646,"d":"79%"},2,{"v":49882.07,"d":"$49,882.07"},{"v":2971419.19,"d":"$2,971,419.19"},{"v":3021301.26,"d":"$3,021,301.26"},{"v":0.9,"d":"0.90"},{"v":1676171.2,"d":"$1,676,171.20"},{"v":405572.47,"d":"$405,572.47"},{"v":177273.77,"d":"$177,273.77"},{"v":70952.76,"d":"$70,952.76"},{"v":57433.82,"d":"$57,433.82"},{"v":121902.57,"d":"$121,902.57"},{"v":39083.15,"d":"$39,083.15"},{"v":66562.18,"d":"$66,562.18"},{"v":78986.19,"d":"$78,986.19"},{"v":47849.92,"d":"$47,849.92"},{"v":117178.48,"d":"$117,178.48"},{"v":100890.94,"d":"$100,890.94"},{"v":79871.48,"d":"$79,871.48"},{"v":3039728.9299999992,"d":"$3,039,728.93"},{"v":48355.2,"d":"$48,355.20"},{"v":67670,"d":"$67,670.00"},{"v":175942,"d":"$175,942.00"},{"v":18406.24,"d":"$18,406.24"},{"v":309116.56,"d":"$309,116.56"},{"v":205212.56,"d":"$205,212.56"},{"v":736790.96,"d":"$736,790.96"},{"v":507254.31999999995,"d":"$507,254.32"},{"v":1433710.39704,"d":"$1,433,710.40"},{"v":3502458.23704,"d":"$3,502,458.24"},{"v":515309.75,"d":"$515,309.75"},{"v":2987148.4870400005,"d":"$2,987,148.49"},{"v":3450927.2570400005,"d":"$3,450,927.26"},{"v":112847.17,"d":"$112,847.17"},{"v":112847.17,"d":"$112,847.17"},{"v":117466.65,"d":"$117,466.65"},{"v":117466.65,"d":"$117,466.65"},{"v":0,"d":"$0.00"},{"v":0,"d":"$0.00"},{"v":0,"d":"$0.00"},{"v":0,"d":"$0.00"},{"v":0,"d":"$0.00"},{"v":252751.27,"d":"$252,751.27"},{"v":102382.79,"d":"$102,382.79"},{"v":39295.53,"d":"$39,295.53"},{"v":855057.2300000001,"d":"$855,057.23"},{"v":7345713.49,"d":"$7,345,713.49"},{"v":289744.98,"d":"$289,744.98"},{"v":0,"d":"$0.00"},{"v":251643.61000000002,"d":"$251,643.61"},{"v":7345713.41704,"d":"$7,345,713.42"}]
["01086002026","SCOTT-MORGAN C U SCHOOL DIST 2",183.43,{"v":2518227.09,"d":"$2,518,227.09"},{"v":2375491.75,"d":"$2,375,491.75"},{"v":0.943319115036603,"d":"94%"},3,{"v":2861.74,"d":"$2,861.74"},{"v":1011935.0199999999,"d":"$1,011,935.02"},{"v":1014796.7599999999,"d":"$1,014,796.76"},{"v":0.9,"d":"0.90"},{"v":567001.06,"d":"$567,001.06"},{"v":139957.46,"d":"$139,957.46"},{"v":59405.41,"d":"$59,405.41"},{"v":23535.97,"d":"$23,535.97"},{"v":19671.05,"d":"$19,671.05"},{"v":42176.07,"d":"$42,176.07"},{"v":12660.74,"d":"$12,660.74"},{"v":22454.71,"d":"$22,454.71"},{"v":26087.18,"d":"$26,087.18"},{"v":15771.76,"d":"$15,771.76"},{"v":38701.15,"d":"$38,701.15"},{"v":33321.78,"d":"$33,321.78"},{"v":26944.59,"d":"$26,944.59"},{"v":1027688.93,"d":"$1,027,688.93"},{"v":16344,"d":"$16,344.00"},{"v":22928.75,"d":"$22,928.75"},{"v":59614.75,"d":"$59,614.75"},{"v":6236.620000000001,"d":"$6,236.62"},{"v":104738.53,"d":"$104,738.53"},{"v":74226.7,"d":"$74,226.70"},{"v":249648.23,"d":"$249,648.23"},{"v":171873.91,"d":"$171,873.91"},{"v":491886.97452,"d":"$491,886.97"},{"v":1197498.46452,"d":"$1,197,498.46"},{"v":174603.34,"d":"$174,603.34"},{"v":1022895.12452,"d":"$1,022,895.12"},{"v":1180038.12452,"d":"$1,180,038.12"},{"v":43555.05,"d":"$43,555.05"},{"v":43555.05,"d":"$43,555.05"},{"v":44874.9,"d":"$44,874.90"},{"v":44874.9,"d":"$44,874.90"},{"v":0,"d":"$0.00"},{"v":0,"d":"$0.00"},{"v":0,"d":"$0.00"},{"v":0,"d":"$0.00"},{"v":0,"d":"$0.00"},{"v":85790.25,"d":"$85,790.25"},{"v":34751.34,"d":"$34,751.34"},{"v":13098.51,"d":"$13,098.51"},{"v":310500,"d":"$310,500.00"},{"v":2518227.09,"d":"$2,518,227.09"},{"v":195977.52999999997,"d":"$195,977.53"},{"v":27.78,"d":"$27.78"},{"v":74662.7,"d":"$74,662.70"},{"v":2518227.0545200002,"d":"$2,518,227.05"}]
[null,"ALT SCH-BOND/EFFINGHAM/FAYETTE RO",103.99,{"v":1523139.9,"d":"$1,523,139.90"},{"v":927819.22,"d":"$927,819.22"},{"v":0.6091490479633552,"d":"61%"},1,{"v":104511.83,"d":"$104,511.83"},{"v":775505.23,"d":"$775,505.23"},{"v":880017.0599999999,"d":"$880,017.06"},{"v":0.9,"d":"0.90"},{"v":331326.85,"d":"$331,326.85"},{"v":110431.23,"d":"$110,431.23"},{"v":36814.09,"d":"$36,814.09"},{"v":12271.36,"d":"$12,271.36"},{"v":11052.09,"d":"$11,052.09"},{"v":31608.54,"d":"$31,608.54"},{"v":7156.07,"d":"$7,156.07"},{"v":13633.21,"d":"$13,633.21"},{"v":12318.94,"d":"$12,318.94"},{"v":9088.81,"d":"$9,088.81"},{"v":18275.54,"d":"$18,275.54"},{"v":15735.28,"d":"$15,735.28"},{"v":16359.21,"d":"$16,359.21"},{"v":626071.2199999999,"d":"$626,071.22"},{"v":9359.1,"d":"$9,359.10"},{"v":12998.75,"d":"$12,998.75"},{"v":33796.75,"d":"$33,796.75"},{"v":3535.66,"d":"$3,535.66"},{"v":59378.29,"d":"$59,378.29"},{"v":89327.40999999999,"d":"$89,327.41"},{"v":141530.38999999998,"d":"$141,530.39"},{"v":97438.62999999999,"d":"$97,438.63"},{"v":290927.20836,"d":"$290,927.21"},{"v":738292.18836,"d":"$738,292.19"},{"v":98986,"d":"$98,986.00"},{"v":639306.18836,"d":"$639,306.19"},{"v":728393.58836,"d":"$728,393.59"},{"v":23097.37,"d":"$23,097.37"},{"v":23097.37,"d":"$23,097.37"},{"v":23757.3,"d":"$23,757.30"},{"v":23757.3,"d":"$23,757.30"},{"v":0,"d":"$0.00"},{"v":0,"d":"$0.00"},{"v":0,"d":"$0.00"},{"v":0,"d":"$0.00"},{"v":0,"d":"$0.00"},{"v":48174.52,"d":"$48,174.52"},{"v":19514.21,"d":"$19,514.21"},{"v":7276.95,"d":"$7,276.95"},{"v":168675.02,"d":"$168,675.02"},{"v":1523139.9,"d":"$1,523,139.90"},{"v":50734.479999999996,"d":"$50,734.48"},{"v":59.4,"d":"$59.40"},{"v":26218.78,"d":"$26,218.78"},{"v":1523139.82836,"d":"$1,523,139.83"}]
[null,"SAFE SCH-BOND/EFFINGHAM/FAYETTE R",38,{"v":479223.79,"d":"$479,223.79"},{"v":484194.79,"d":"$484,194.79"},{"v":1.010373024260753,"d":"101%"},4,{"v":30.52,"d":"$30.52"},{"v":436272.42,"d":"$436,272.42"},{"v":436302.94,"d":"$436,302.94"},{"v":0.9,"d":"0.90"},{"v":105436.29,"d":"$105,436.29"},{"v":21087.25,"d":"$21,087.25"},{"v":11924.34,"d":"$11,924.34"},{"v":5020.77,"d":"$5,020.77"},{"v":3831.23,"d":"$3,831.23"},{"v":10145.79,"d":"$10,145.79"},{"v":2752.33,"d":"$2,752.33"},{"v":4277.08,"d":"$4,277.08"},{"v":5797.15,"d":"$5,797.15"},{"v":3207.81,"d":"$3,207.81"},{"v":8600.25,"d":"$8,600.25"},{"v":7404.84,"d":"$7,404.84"},{"v":5132.3,"d":"$5,132.30"},{"v":194617.42999999996,"d":"$194,617.43"},{"v":3420,"d":"$3,420.00"},{"v":4750,"d":"$4,750.00"},{"v":12350,"d":"$12,350.00"},{"v":1292,"d":"$1,292.00"},{"v":10849,"d":"$10,849.00"},{"v":9462,"d":"$9,462.00"},{"v":51718,"d":"$51,718.00"},{"v":35606,"d":"$35,606.00"},{"v":95529.249,"d":"$95,529.25"},{"v":224976.249,"d":"$224,976.25"},{"v":36171.44,"d":"$36,171.44"},{"v":188804.809,"d":"$188,804.81"},{"v":221359.09900000002,"d":"$221,359.10"},{"v":7919.1,"d":"$7,919.10"},{"v":7919.1,"d":"$7,919.10"},{"v":8579.02,"d":"$8,579.02"},{"v":8579.02,"d":"$8,579.02"},{"v":659.92,"d":"$659.92"},{"v":659.92,"d":"$659.92"},{"v":659.92,"d":"$659.92"},{"v":659.92,"d":"$659.92"},{"v":1319.85,"d":"$1,319.85"},{"v":17158.05,"d":"$17,158.05"},{"v":6950.26,"d":"$6,950.26"},{"v":2183.08,"d":"$2,183.08"},{"v":63247.159999999996,"d":"$63,247.16"},{"v":479223.79,"d":"$479,223.79"},{"v":260.88,"d":"$260.88"},{"v":0.33,"d":"$0.33"},{"v":135.22,"d":"$135.22"},{"v":479223.68899999995,"d":"$479,223.69"}]
["03003001026","MULBERRY GROVE C U SCH DIST 1",330.79,{"v":4622490.17,"d":"$4,622,490.17"},{"v":3971022.9400000004,"d":"$3,971,022.94"},{"v":0.8590657403171936,"d":"86%"},2,{"v":11535.38,"d":"$11,535.38"},{"v":2268575.6799999997,"d":"$2,268,575.68"},{"v":2280111.0599999996,"d":"$2,280,111.06"},{"v":0.93051,"d":"0.93"},{"v":1063781.78,"d":"$1,063,781.78"},{"v":259414.28,"d":"$259,414.28"},{"v":111482.13,"d":"$111,482.13"},{"v":44482.11,"d":"$44,482.11"},{"v":36702.02,"d":"$36,702.02"},{"v":78233.33,"d":"$78,233.33"},{"v":24472.49,"d":"$24,472.49"},{"v":41733.39,"d":"$41,733.39"},{"v":49447.82,"d":"$49,447.82"},{"v":30125.42,"d":"$30,125.42"},{"v":73357.38,"d":"$73,357.38"},{"v":63160.87,"d":"$63,160.87"},{"v":50078.1,"d":"$50,078.10"},{"v":1926471.12,"d":"$1,926,471.12"},{"v":29538.899999999998,"d":"$29,538.90"},{"v":41348.75,"d":"$41,348.75"},{"v":107506.75,"d":"$107,506.75"},{"v":11246.859999999999,"d":"$11,246.86"},{"v":188881.09,"d":"$188,881.09"},{"v":129153.80999999998,"d":"$129,153.81"},{"v":450205.18999999994,"d":"$450,205.19"},{"v":309950.23,"d":"$309,950.23"},{"v":885688.6065600001,"d":"$885,688.61"},{"v":2153520.18656,"d":"$2,153,520.19"},{"v":314872.38,"d":"$314,872.38"},{"v":1838647.8065600004,"d":"$1,838,647.81"},{"v":2131639.6965600005,"d":"$2,131,639.70"},{"v":77099.49,"d":"$77,099.49"},{"v":77099.49,"d":"$77,099.49"},{"v":80510.98,"d":"$80,510.98"},{"v":80510.98,"d":"$80,510.98"},{"v":0,"d":"$0.00"},{"v":0,"d":"$0.00"},{"v":0,"d":"$0.00"},{"v":0,"d":"$0.00"},{"v":0,"d":"$0.00"},{"v":159657.37,"d":"$159,657.37"},{"v":64672.93,"d":"$64,672.93"},{"v":24828,"d":"$24,828.00"},{"v":564379.24,"d":"$564,379.24"},{"v":4622490.17,"d":"$4,622,490.17"},{"v":246864.72000000003,"d":"$246,864.72"},{"v":0,"d":"$0.00"},{"v":143139.41999999998,"d":"$143,139.42"},{"v":4622490.05656,"d":"$4,622,490.06"}]
["03003002026","BOND CO C U SCHOOL DIST 2",1581.05,{"v":21821375.86,"d":"$21,821,375.86"},{"v":16767341.489999998,"d":"$16,767,341.49"},{"v":0.7683906641622733,"d":"77%"},1,{"v":201177.98,"d":"$201,177.98"},{"v":8403008.33,"d":"$8,403,008.33"},{"v":8604186.31,"d":"$8,604,186.31"},{"v":0.93051,"d":"0.93"},{"v":5013701.73,"d":"$5,013,701.73"},{"v":1227175.93,"d":"$1,227,175.93"},{"v":537652.15,"d":"$537,652.15"},{"v":216570.74,"d":"$216,570.74"},{"v":171750.32,"d":"$171,750.32"},{"v":376691.57,"d":"$376,691.57"},{"v":118947.71,"d":"$118,947.71"},{"v":201757.45,"d":"$201,757.45"},{"v":240496.22,"d":"$240,496.22"},{"v":145375.92,"d":"$145,375.92"},{"v":356783.66,"d":"$356,783.66"},{"v":307191.54,"d":"$307,191.54"},{"v":242099.44,"d":"$242,099.44"},{"v":9156194.379999999,"d":"$9,156,194.38"},{"v":140667.3,"d":"$140,667.30"},{"v":197631.25,"d":"$197,631.25"},{"v":513841.25,"d":"$513,841.25"},{"v":53755.7,"d":"$53,755.70"},{"v":902779.55,"d":"$902,779.55"},{"v":621187.01,"d":"$621,187.01"},{"v":2151809.05,"d":"$2,151,809.05"},{"v":1481443.85,"d":"$1,481,443.85"},{"v":4166926.0182,"d":"$4,166,926.02"},{"v":10230040.9782,"d":"$10,230,040.98"},{"v":1504969.87,"d":"$1,504,969.87"},{"v":8725071.108200002,"d":"$8,725,071.11"},{"v":10125460.618200002,"d":"$10,125,460.62"},{"v":328866.89,"d":"$328,866.89"},{"v":328866.89,"d":"$328,866.89"},{"v":342512.82,"d":"$342,512.82"},{"v":342512.82,"d":"$342,512.82"},{"v":682.29,"d":"$682.29"},{"v":682.29,"d":"$682.29"},{"v":682.29,"d":"$682.29"},{"v":682.29,"d":"$682.29"},{"v":682.29,"d":"$682.29"},{"v":764854.32,"d":"$764,854.32"},{"v":309822.06,"d":"$309,822.06"},{"v":118873.48,"d":"$118,873.48"},{"v":2539720.7300000004,"d":"$2,539,720.73"},{"v":21821375.86,"d":"$21,821,375.86"},{"v":948751.1699999999,"d":"$948,751.17"},{"v":581.26,"d":"$581.26"},{"v":649374.1399999999,"d":"$649,374.14"},{"v":21821375.7282,"d":"$21,821,375.73"}]
["03011001026","MORRISONVILLE C U SCH DIST 1",276.75,{"v":3741417.78,"d":"$3,741,417.78"},{"v":3337545.8,"d":"$3,337,545.80"},{"v":0.8920537604330303,"d":"89%"},2,{"v":5742.46,"d":"$5,742.46"},{"v":785336.6999999998,"d":"$785,336.70"},{"v":791079.1599999998,"d":"$791,079.16"},{"v":0.9,"d":"0.90"},{"v":848959.31,"d":"$848,959.31"},{"v":205490.19,"d":"$205,490.19"},{"v":90566.8,"d":"$90,566.80"},{"v":36464.9,"d":"$36,464.90"},{"v":29168.3,"d":"$29,168.30"},{"v":61965.86,"d":"$61,965.86"},{"v":19816.81,"d":"$19,816.81"},{"v":33949.38,"d":"$33,949.38"},{"v":40580.06,"d":"$40,580.06"},{"v":24593.25,"d":"$24,593.25"},{"v":60201.79,"d":"$60,201.79"},{"v":51833.88,"d":"$51,833.88"},{"v":40737.66,"d":"$40,737.66"},{"v":1544328.19,"d":"$1,544,328.19"},{"v":24570,"d":"$24,570.00"},{"v":34593.75,"d":"$34,593.75"},{"v":89943.75,"d":"$89,943.75"},{"v":9409.5,"d":"$9,409.50"},{"v":158024.25,"d":"$158,024.25"},{"v":105076,"d":"$105,076.00"},{"v":376656.75,"d":"$376,656.75"},{"v":259314.75,"d":"$259,314.75"},{"v":729523.38,"d":"$729,523.38"},{"v":1787112.13,"d":"$1,787,112.13"},{"v":263432.79,"d":"$263,432.79"},{"v":1523679.3399999999,"d":"$1,523,679.34"},{"v":1760768.8499999999,"d":"$1,760,768.85"},{"v":57413.47,"d":"$57,413.47"},{"v":57413.47,"d":"$57,413.47"},{"v":60053.17,"d":"$60,053.17"},{"v":60053.17,"d":"$60,053.17"},{"v":0,"d":"$0.00"},{"v":0,"d":"$0.00"},{"v":0,"d":"$0.00"},{"v":0,"d":"$0.00"},{"v":0,"d":"$0.00"},{"v":129345.3,"d":"$129,345.30"},{"v":52394.32,"d":"$52,394.32"},{"v":19647.76,"d":"$19,647.76"},{"v":436320.66,"d":"$436,320.66"},{"v":3741417.78,"d":"$3,741,417.78"},{"v":121528.04999999999,"d":"$121,528.05"},{"v":0,"d":"$0.00"},{"v":46280.99,"d":"$46,280.99"},{"v":3741417.7,"d":"$3,741,417.70"}]
["03011003026","TAYLORVILLE C U SCH DIST 3",2163.94,{"v":30121989.35,"d":"$30,121,989.35"},{"v":23040606.35,"d":"$23,040,606.35"},{"v":0.7649098498203938,"d":"76%"},1,{"v":277823.87,"d":"$277,823.87"},{"v":8650203.299999999,"d":"$8,650,203.30"},{"v":8928027.169999998,"d":"$8,928,027.17"},{"v":0.9,"d":"0.90"},{"v":6771142.27,"d":"$6,771,142.27"},{"v":1686771.46,"d":"$1,686,771.46"},{"v":714184.48,"d":"$714,184.48"},{"v":285696.03,"d":"$285,696.03"},{"v":235592.64,"d":"$235,592.64"},{"v":512833.17,"d":"$512,833.17"},{"v":158534.49,"d":"$158,534.49"},{"v":268119.95,"d":"$268,119.95"},{"v":315944.78,"d":"$315,944.78"},{"v":192201.64,"d":"$192,201.64"},{"v":468713.95,"d":"$468,713.95"},{"v":403563.78,"d":"$403,563.78"},{"v":321731.3,"d":"$321,731.30"},{"v":12335029.94,"d":"$12,335,029.94"},{"v":192902.4,"d":"$192,902.40"},{"v":270492.5,"d":"$270,492.50"},{"v":703280.5,"d":"$703,280.50"},{"v":73573.95999999999,"d":"$73,573.96"},{"v":1235609.7400000002,"d":"$1,235,609.74"},{"v":903728.62,"d":"$903,728.62"},{"v":2945122.34,"d":"$2,945,122.34"},{"v":2027611.7799999998,"d":"$2,027,611.78"},{"v":5898471.5181599995,"d":"$5,898,471.52"},{"v":14250793.35816,"d":"$14,250,793.36"},{"v":2059811.2,"d":"$2,059,811.20"},{"v":12190982.158160001,"d":"$12,190,982.16"},{"v":14044812.238160001,"d":"$14,044,812.24"},{"v":529259.85,"d":"$529,259.85"},{"v":529259.85,"d":"$529,259.85"},{"v":551697.3,"d":"$551,697.30"},{"v":551697.3,"d":"$551,697.30"},{"v":0,"d":"$0.00"},{"v":0,"d":"$0.00"},{"v":0,"d":"$0.00"},{"v":0,"d":"$0.00"},{"v":659.92,"d":"$659.92"},{"v":1012324.95,"d":"$1,012,324.95"},{"v":410065.81,"d":"$410,065.81"},{"v":157182.12,"d":"$157,182.12"},{"v":3742147.1,"d":"$3,742,147.10"},{"v":30121989.35,"d":"$30,121,989.35"},{"v":1792872.38,"d":"$1,792,872.38"},{"v":53.96,"d":"$53.96"},{"v":439862.05,"d":"$439,862.05"},{"v":30121989.278160002,"d":"$30,121,989.28"}]
["03011004026","EDINBURG C U SCH DIST 4",223.38,{"v":3030452.34,"d":"$3,030,452.34"},{"v":2805409.3899999997,"d":"$2,805,409.39"},{"v":0.9257394854789235,"d":"93%"},3,{"v":3443.83,"d":"$3,443.83"},{"v":578876.1299999999,"d":"$578,876.13"},{"v":582319.9599999998,"d":"$582,319.96"},{"v":0.9,"d":"0.90"},{"v":691115.41,"d":"$691,115.41"},{"v":171034.75,"d":"$171,034.75"},{"v":72617.09,"d":"$72,617.09"},{"v":28117.64,"d":"$28,117.64"},{"v":23622.56,"d":"$23,622.56"},{"v":50183.64,"d":"$50,183.64"},{"v":15413.07,"d":"$15,413.07"},{"v":26999.11,"d":"$26,999.11"},{"v":31159.69,"d":"$31,159.69"},{"v":19514.21,"d":"$19,514.21"},{"v":46226.37,"d":"$46,226.37"},{"v":39801.01,"d":"$39,801.01"},{"v":32397.66,"d":"$32,397.66"},{"v":1248202.2100000002,"d":"$1,248,202.21"},{"v":19962,"d":"$19,962.00"},{"v":27922.5,"d":"$27,922.50"},{"v":72598.5,"d":"$72,598.50"},{"v":7594.92,"d":"$7,594.92"},{"v":127549.98000000001,"d":"$127,549.98"},{"v":90719.57999999999,"d":"$90,719.58"},{"v":304020.18,"d":"$304,020.18"},{"v":209307.06,"d":"$209,307.06"},{"v":589946.50332,"d":"$589,946.50"},{"v":1449621.2233199999,"d":"$1,449,621.22"},{"v":212630.95,"d":"$212,630.95"},{"v":1236990.27332,"d":"$1,236,990.27"},{"v":1428358.12332,"d":"$1,428,358.12"},{"v":46854.67,"d":"$46,854.67"},{"v":46854.67,"d":"$46,854.67"},{"v":48834.45,"d":"$48,834.45"},{"v":48834.45,"d":"$48,834.45"},{"v":0,"d":"$0.00"},{"v":0,"d":"$0.00"},{"v":0,"d":"$0.00"},{"v":0,"d":"$0.00"},{"v":0,"d":"$0.00"},{"v":104268.15,"d":"$104,268.15"},{"v":42236.24,"d":"$42,236.24"},{"v":16009.29,"d":"$16,009.29"},{"v":353891.92,"d":"$353,891.92"},{"v":3030452.34,"d":"$3,030,452.34"},{"v":76861.4,"d":"$76,861.40"},{"v":0,"d":"$0.00"},{"v":39087.509999999995,"d":"$39,087.51"},{"v":3030452.25332,"d":"$3,030,452.25"}]
["03011008026","PANA COMM UNIT SCHOOL DIST 8",1126.12,{"v":15981492.95,"d":"$15,981,492.95"},{"v":12345875.79,"d":"$12,345,875.79"},{"v":0.7725107928668203,"d":"77%"},1,{"v":135383.65,"d":"$135,383.65"},{"v":7164851.26,"d":"$7,164,851.26"},{"v":7300234.91,"d":"$7,300,234.91"},{"v":0.9,"d":"0.90"},{"v":3598266.58,"d":"$3,598,266.58"},{"v":888426.59,"d":"$888,426.59"},{"v":370271.78,"d":"$370,271.78"},{"v":148496.39,"d":"$148,496.39"},{"v":126562,"d":"$126,562.00"},{"v":262118.59,"d":"$262,118.59"},{"v":82019.58,"d":"$82,019.58"},{"v":139005.36,"d":"$139,005.36"},{"v":164494.18,"d":"$164,494.18"},{"v":99976.93,"d":"$99,976.93"},{"v":244032.26,"d":"$244,032.26"},{"v":210112.33,"d":"$210,112.33"},{"v":166799.88,"d":"$166,799.88"},{"v":6500582.449999999,"d":"$6,500,582.45"},{"v":100900.79999999999,"d":"$100,900.80"},{"v":140765,"d":"$140,765.00"},{"v":365989,"d":"$365,989.00"},{"v":38288.08,"d":"$38,288.08"},{"v":643014.52,"d":"$643,014.52"},{"v":458408.42000000004,"d":"$458,408.42"},{"v":1532649.32,"d":"$1,532,649.32"},{"v":1055174.44,"d":"$1,055,174.44"},{"v":3147918.11868,"d":"$3,147,918.12"},{"v":7483107.69868,"d":"$7,483,107.70"},{"v":1071931.1,"d":"$1,071,931.10"},{"v":6411176.598679999,"d":"$6,411,176.60"},{"v":7375914.588679999,"d":"$7,375,914.59"},{"v":312804.45,"d":"$312,804.45"},{"v":312804.45,"d":"$312,804.45"},{"v":325343.02,"d":"$325,343.02"},{"v":325343.02,"d":"$325,343.02"},{"v":1319.85,"d":"$1,319.85"},{"v":1319.85,"d":"$1,319.85"},{"v":1319.85,"d":"$1,319.85"},{"v":1319.85,"d":"$1,319.85"},{"v":1979.77,"d":"$1,979.77"},{"v":526620.15,"d":"$526,620.15"},{"v":213319.76,"d":"$213,319.76"},{"v":81501.84,"d":"$81,501.84"},{"v":2104995.8600000003,"d":"$2,104,995.86"},{"v":15981492.95,"d":"$15,981,492.95"},{"v":1521992.8199999998,"d":"$1,521,992.82"},{"v":1106.0000000000002,"d":"$1,106.00"},{"v":289556.3,"d":"$289,556.30"},{"v":15981492.898679998,"d":"$15,981,492.90"}]
["03011014024","SOUTH FORK SCHOOL DISTRICT 14",280.46,{"v":3899698.08,"d":"$3,899,698.08"},{"v":2796458.7,"d":"$2,796,458.70"},{"v":0.7170962065863314,"d":"72%"},1,{"v":114023.2,"d":"$114,023.20"},{"v":2039468.62,"d":"$2,039,468.62"},{"v":2153491.8200000003,"d":"$2,153,491.82"},{"v":0.9,"d":"0.90"},{"v":893176.02,"d":"$893,176.02"},{"v":216546.64,"d":"$216,546.64"},{"v":91382.89,"d":"$91,382.89"},{"v":35837.3,"d":"$35,837.30"},{"v":30906.72,"d":"$30,906.72"},{"v":62831.35,"d":"$62,831.35"},{"v":19266.34,"d":"$19,266.34"},{"v":34216.7,"d":"$34,216.70"},{"v":39855.42,"d":"$39,855.42"},{"v":24593.25,"d":"$24,593.25"},{"v":59126.76,"d":"$59,126.76"},{"v":50908.27,"d":"$50,908.27"},{"v":41058.43,"d":"$41,058.43"},{"v":1599706.09,"d":"$1,599,706.09"},{"v":25121.699999999997,"d":"$25,121.70"},{"v":35057.5,"d":"$35,057.50"},{"v":91149.5,"d":"$91,149.50"},{"v":9535.64,"d":"$9,535.64"},{"v":160142.65999999997,"d":"$160,142.66"},{"v":107845.45,"d":"$107,845.45"},{"v":381706.06,"d":"$381,706.06"},{"v":262791.01999999996,"d":"$262,791.02"},{"v":765601.52544,"d":"$765,601.53"},{"v":1838951.05544,"d":"$1,838,951.06"},{"v":266964.26,"d":"$266,964.26"},{"v":1571986.7954399998,"d":"$1,571,986.80"},{"v":1812254.6254399999,"d":"$1,812,254.63"},{"v":69292.12,"d":"$69,292.12"},{"v":69292.12,"d":"$69,292.12"},{"v":72591.75,"d":"$72,591.75"},{"v":72591.75,"d":"$72,591.75"},{"v":0,"d":"$0.00"},{"v":0,"d":"$0.00"},{"v":0,"d":"$0.00"},{"v":0,"d":"$0.00"},{"v":0,"d":"$0.00"},{"v":130665.15,"d":"$130,665.15"},{"v":52928.96,"d":"$52,928.96"},{"v":20375.46,"d":"$20,375.46"},{"v":487737.31000000006,"d":"$487,737.31"},{"v":3899698.08,"d":"$3,899,698.08"},{"v":336412.22,"d":"$336,412.22"},{"v":0,"d":"$0.00"},{"v":80309.08,"d":"$80,309.08"},{"v":3899698.02544,"d":"$3,899,698.03"}]
["03025010026","ALTAMONT COMM UNIT SCH DIST 10",686.45,{"v":9503797.8,"d":"$9,503,797.80"},{"v":7159783.890000001,"d":"$7,159,783.89"},{"v":0.7533602924506664,"d":"75%"},1,{"v":133249.81,"d":"$133,249.81"},{"v":3552602.0300000003,"d":"$3,552,602.03"},{"v":3685851.8400000003,"d":"$3,685,851.84"},{"v":0.9,"d":"0.90"},{"v":2155250.91,"d":"$2,155,250.91"},{"v":532371.87,"d":"$532,371.87"},{"v":225759.43,"d":"$225,759.43"},{"v":90284.05,"d":"$90,284.05"},{"v":74543.58,"d":"$74,543.58"},{"v":157016.61,"d":"$157,016.61"},{"v":49542.03,"d":"$49,542.03"},{"v":84739.8,"d":"$84,739.80"},{"v":100000.87,"d":"$100,000.87"},{"v":60681.18,"d":"$60,681.18"},{"v":148354.41,"d":"$148,354.41"},{"v":127733.49,"d":"$127,733.49"},{"v":101683.77,"d":"$101,683.77"},{"v":3907962.0000000005,"d":"$3,907,962.00"},{"v":61038,"d":"$61,038.00"},{"v":85806.25,"d":"$85,806.25"},{"v":223096.25,"d":"$223,096.25"},{"v":23339.3,"d":"$23,339.30"},{"v":391962.94999999995,"d":"$391,962.95"},{"v":276150.18,"d":"$276,150.18"},{"v":934258.4500000001,"d":"$934,258.45"},{"v":643203.65,"d":"$643,203.65"},{"v":1860954.3018,"d":"$1,860,954.30"},{"v":4499809.3318,"d":"$4,499,809.33"},{"v":653418.02,"d":"$653,418.02"},{"v":3846391.3118,"d":"$3,846,391.31"},{"v":4434467.5218,"d":"$4,434,467.52"},{"v":161681.62,"d":"$161,681.62"},{"v":161681.62,"d":"$161,681.62"},{"v":168940.8,"d":"$168,940.80"},{"v":168940.8,"d":"$168,940.80"},{"v":0,"d":"$0.00"},{"v":0,"d":"$0.00"},{"v":0,"d":"$0.00"},{"v":0,"d":"$0.00"},{"v":0,"d":"$0.00"},{"v":320723.55,"d":"$320,723.55"},{"v":129916.54,"d":"$129,916.54"},{"v":49483.26,"d":"$49,483.26"},{"v":1161368.19,"d":"$1,161,368.19"},{"v":9503797.8,"d":"$9,503,797.80"},{"v":497247.62000000005,"d":"$497,247.62"},{"v":0,"d":"$0.00"},{"v":257561.1,"d":"$257,561.10"},{"v":9503797.7118,"d":"$9,503,797.71"}]
["03025020026","BEECHER CITY C U SCHOOL DIST 20",321.25,{"v":4238184.82,"d":"$4,238,184.82"},{"v":4502007.25,"d":"$4,502,007.25"},{"v":1.0622489205178172,"d":"106%"},4,{"v":269.96,"d":"$269.96"},{"v":600628.4,"d":"$600,628.40"},{"v":600898.36,"d":"$600,898.36"},{"v":0.9,"d":"0.90"},{"v":997513.47,"d":"$997,513.47"},{"v":236933.02,"d":"$236,933.02"},{"v":103934.83,"d":"$103,934.83"},{"v":42113.27,"d":"$42,113.27"},{"v":33992.82,"d":"$33,992.82"},{"v":70271.6,"d":"$70,271.60"},{"v":22569.14,"d":"$22,569.14"},{"v":39295.74,"d":"$39,295.74"},{"v":47101.86,"d":"$47,101.86"},{"v":28335.7,"d":"$28,335.70"},{"v":69877.08,"d":"$69,877.08"},{"v":60164.32,"d":"$60,164.32"},{"v":47153.04,"d":"$47,153.04"},{"v":1799255.8900000004,"d":"$1,799,255.89"},{"v":28710,"d":"$28,710.00"},{"v":40156.25,"d":"$40,156.25"},{"v":104406.25,"d":"$104,406.25"},{"v":10922.5,"d":"$10,922.50"},{"v":91716.87,"d":"$91,716.87"},{"v":114191,"d":"$114,191.00"},{"v":437221.25,"d":"$437,221.25"},{"v":301011.25,"d":"$301,011.25"},{"v":845412.0210000001,"d":"$845,412.02"},{"v":1973747.3910000003,"d":"$1,973,747.39"},{"v":305791.45,"d":"$305,791.45"},{"v":1667955.9410000003,"d":"$1,667,955.94"},{"v":1943168.2410000004,"d":"$1,943,168.24"},{"v":63352.8,"d":"$63,352.80"},{"v":63352.8,"d":"$63,352.80"},{"v":65992.5,"d":"$65,992.50"},{"v":65992.5,"d":"$65,992.50"},{"v":659.92,"d":"$659.92"},{"v":659.92,"d":"$659.92"},{"v":659.92,"d":"$659.92"},{"v":659.92,"d":"$659.92"},{"v":659.92,"d":"$659.92"},{"v":149802.97,"d":"$149,802.97"},{"v":60681.18,"d":"$60,681.18"},{"v":23286.24,"d":"$23,286.24"},{"v":495760.59,"d":"$495,760.59"},{"v":4238184.82,"d":"$4,238,184.82"},{"v":214480.30999999994,"d":"$214,480.31"},{"v":18.240000000000002,"d":"$18.24"},{"v":91193.67,"d":"$91,193.67"},{"v":4238184.721000001,"d":"$4,238,184.72"}]
["03025030026","DIETERICH COMM UNIT SCH DIST 30",572.25,{"v":7345487.37,"d":"$7,345,487.37"},{"v":4829425.29,"d":"$4,829,425.29"},{"v":0.6574683267068228,"d":"66%"},1,{"v":360325.41,"d":"$360,325.41"},{"v":2897744.5700000003,"d":"$2,897,744.57"},{"v":3258069.9800000004,"d":"$3,258,069.98"},{"v":0.9,"d":"0.90"},{"v":1708107.86,"d":"$1,708,107.86"},{"v":404839.38,"d":"$404,839.38"},{"v":185494.64,"d":"$185,494.64"},{"v":75157.45,"d":"$75,157.45"},{"v":56317.19,"d":"$56,317.19"},{"v":127611.82,"d":"$127,611.82"},{"v":40734.55,"d":"$40,734.55"},{"v":69769.99,"d":"$69,769.99"},{"v":84058.7,"d":"$84,058.70"},{"v":50523.1,"d":"$50,523.10"},{"v":124703.71,"d":"$124,703.71"},{"v":107370.18,"d":"$107,370.18"},{"v":83720.7,"d":"$83,720.70"},{"v":3118409.270000001,"d":"$3,118,409.27"},{"v":51255,"d":"$51,255.00"},{"v":71531.25,"d":"$71,531.25"},{"v":185981.25,"d":"$185,981.25"},{"v":19456.5,"d":"$19,456.50"},{"v":326754.75,"d":"$326,754.75"},{"v":203614.5,"d":"$203,614.50"},{"v":778832.25,"d":"$778,832.25"},{"v":536198.25,"d":"$536,198.25"},{"v":1415064.939,"d":"$1,415,064.94"},{"v":3588688.6890000002,"d":"$3,588,688.69"},{"v":544713.33,"d":"$544,713.33"},{"v":3043975.359,"d":"$3,043,975.36"},{"v":3534217.3490000004,"d":"$3,534,217.35"},{"v":67312.35,"d":"$67,312.35"},{"v":67312.35,"d":"$67,312.35"},{"v":70611.97,"d":"$70,611.97"},{"v":70611.97,"d":"$70,611.97"},{"v":0,"d":"$0.00"},{"v":0,"d":"$0.00"},{"v":0,"d":"$0.00"},{"v":0,"d":"$0.00"},{"v":0,"d":"$0.00"},{"v":267269.62,"d":"$267,269.62"},{"v":108263.79,"d":"$108,263.79"},{"v":41478.61,"d":"$41,478.61"},{"v":692860.66,"d":"$692,860.66"},{"v":7345487.37,"d":"$7,345,487.37"},{"v":200507.83,"d":"$200,507.83"},{"v":0,"d":"$0.00"},{"v":225406.68000000002,"d":"$225,406.68"},{"v":7345487.279000001,"d":"$7,345,487.28"}]
["03025040026","EFFINGHAM COMM UNIT SCH DIST 40",2300.71,{"v":31900715.96,"d":"$31,900,715.96"},{"v":30181066.689999998,"d":"$30,181,066.69"},{"v":0.946093709239747,"d":"95%"},3,{"v":36252.31,"d":"$36,252.31"},{"v":6393735.890000001,"d":"$6,393,735.89"},{"v":6429988.2,"d":"$6,429,988.20"},{"v":0.9,"d":"0.90"},{"v":7154970.19,"d":"$7,154,970.19"},{"v":1754299.74,"d":"$1,754,299.74"},{"v":756828.94,"d":"$756,828.94"},{"v":305590.64,"d":"$305,590.64"},{"v":250404.75,"d":"$250,404.75"},{"v":530528.27,"d":"$530,528.27"},{"v":167892.43,"d":"$167,892.43"},{"v":284159.03,"d":"$284,159.03"},{"v":339133.39,"d":"$339,133.39"},{"v":204498.27,"d":"$204,498.27"},{"v":503114.97,"d":"$503,114.97"},{"v":433183.14,"d":"$433,183.14"},{"v":340977.44,"d":"$340,977.44"},{"v":13025581.2,"d":"$13,025,581.20"},{"v":204611.40000000002,"d":"$204,611.40"},{"v":287588.75,"d":"$287,588.75"},{"v":747730.75,"d":"$747,730.75"},{"v":78224.14,"d":"$78,224.14"},{"v":1313705.41,"d":"$1,313,705.41"},{"v":908919.9,"d":"$908,919.90"},{"v":3131266.31,"d":"$3,131,266.31"},{"v":2155765.27,"d":"$2,155,765.27"},{"v":6253124.776439999,"d":"$6,253,124.78"},{"v":15080936.706439998,"d":"$15,080,936.71"},{"v":2189999.83,"d":"$2,189,999.83"},{"v":12890936.876440002,"d":"$12,890,936.88"},{"v":14861936.716440002,"d":"$14,861,936.72"},{"v":514741.5,"d":"$514,741.50"},{"v":514741.5,"d":"$514,741.50"},{"v":536519.02,"d":"$536,519.02"},{"v":536519.02,"d":"$536,519.02"},{"v":43555.05,"d":"$43,555.05"},{"v":43555.05,"d":"$43,555.05"},{"v":44874.9,"d":"$44,874.90"},{"v":44874.9,"d":"$44,874.90"},{"v":54113.85,"d":"$54,113.85"},{"v":1076337.67,"d":"$1,076,337.67"},{"v":435995.65,"d":"$435,995.65"},{"v":167369.85,"d":"$167,369.85"},{"v":4013197.9599999995,"d":"$4,013,197.96"},{"v":31900715.96,"d":"$31,900,715.96"},{"v":1447233.0699999998,"d":"$1,447,233.07"},{"v":2720.0699999999997,"d":"$2,720.07"},{"v":889681.86,"d":"$889,681.86"},{"v":31900715.876440004,"d":"$31,900,715.88"}]
["03025050026","TEUTOPOLIS C U SCHOOL DIST 50",1071.5,{"v":13252396.37,"d":"$13,252,396.37"},{"v":10454826.47,"d":"$10,454,826.47"},{"v":0.7889008280545416,"d":"79%"},2,{"v":66783.91,"d":"$66,783.91"},{"v":3325385.8499999996,"d":"$3,325,385.85"},{"v":3392169.76,"d":"$3,392,169.76"},{"v":0.9,"d":"0.90"},{"v":3078630.65,"d":"$3,078,630.65"},{"v":741584.42,"d":"$741,584.42"},{"v":350749.82,"d":"$350,749.82"},{"v":142438.88,"d":"$142,438.88"},{"v":98945.6,"d":"$98,945.60"},{"v":242655.98,"d":"$242,655.98"},{"v":77615.84,"d":"$77,615.84"},{"v":131787.77,"d":"$131,787.77"},{"v":158697.03,"d":"$158,697.03"},{"v":95165.2,"d":"$95,165.20"},{"v":235432,"d":"$235,432.00"},{"v":202707.49,"d":"$202,707.49"},{"v":158139.11,"d":"$158,139.11"},{"v":5714549.79,"d":"$5,714,549.79"},{"v":95580,"d":"$95,580.00"},{"v":133937.5,"d":"$133,937.50"},{"v":348237.5,"d":"$348,237.50"},{"v":36431,"d":"$36,431.00"},{"v":611826.5,"d":"$611,826.50"},{"v":399761,"d":"$399,761.00"},{"v":1458311.5,"d":"$1,458,311.50"},{"v":1003995.5,"d":"$1,003,995.50"},{"v":2521327.422,"d":"$2,521,327.42"},{"v":6609407.922,"d":"$6,609,407.92"},{"v":1019939.42,"d":"$1,019,939.42"},{"v":5589468.502,"d":"$5,589,468.50"},{"v":6507413.972,"d":"$6,507,413.97"},{"v":60713.1,"d":"$60,713.10"},{"v":60713.1,"d":"$60,713.10"},{"v":63352.8,"d":"$63,352.80"},{"v":63352.8,"d":"$63,352.80"},{"v":0,"d":"$0.00"},{"v":0,"d":"$0.00"},{"v":0,"d":"$0.00"},{"v":0,"d":"$0.00"},{"v":659.92,"d":"$659.92"},{"v":500883.07,"d":"$500,883.07"},{"v":202894.36,"d":"$202,894.36"},{"v":77863.36,"d":"$77,863.36"},{"v":1030432.51,"d":"$1,030,432.51"},{"v":13252396.37,"d":"$13,252,396.37"},{"v":57391.09,"d":"$57,391.09"},{"v":16.2,"d":"$16.20"},{"v":265903.72000000003,"d":"$265,903.72"},{"v":13252396.272,"d":"$13,252,396.27"}]
["03026201026","BROWNSTOWN C U SCH DIST 201",375.75,{"v":5172098.92,"d":"$5,172,098.92"},{"v":3518637.33,"d":"$3,518,637.33"},{"v":0.6803112980677485,"d":"68%"},1,{"v":218487.13,"d":"$218,487.13"},{"v":2435781.36,"d":"$2,435,781.36"},{"v":2654268.4899999998,"d":"$2,654,268.49"},{"v":0.9,"d":"0.90"},{"v":1195806.33,"d":"$1,195,806.33"},{"v":279766.91,"d":"$279,766.91"},{"v":121162.69,"d":"$121,162.69"},{"v":49738.68,"d":"$49,738.68"},{"v":41186.2,"d":"$41,186.20"},{"v":81377.44,"d":"$81,377.44"},{"v":26422.41,"d":"$26,422.41"},{"v":45711.37,"d":"$45,711.37"},{"v":55797.58,"d":"$55,797.58"},{"v":33147.43,"d":"$33,147.43"},{"v":82777.46,"d":"$82,777.46"},{"v":71271.58,"d":"$71,271.58"},{"v":54851.49,"d":"$54,851.49"},{"v":2139017.57,"d":"$2,139,017.57"},{"v":33570,"d":"$33,570.00"},{"v":46968.75,"d":"$46,968.75"},{"v":122118.75,"d":"$122,118.75"},{"v":12775.5,"d":"$12,775.50"},{"v":214553.25,"d":"$214,553.25"},{"v":127143,"d":"$127,143.00"},{"v":511395.75,"d":"$511,395.75"},{"v":352077.75,"d":"$352,077.75"},{"v":1016994.7199999999,"d":"$1,016,994.72"},{"v":2437597.4699999997,"d":"$2,437,597.47"},{"v":357668.91,"d":"$357,668.91"},{"v":2079928.5599999998,"d":"$2,079,928.56"},{"v":2401830.57,"d":"$2,401,830.57"},{"v":87770.02,"d":"$87,770.02"},{"v":87770.02,"d":"$87,770.02"},{"v":91069.65,"d":"$91,069.65"},{"v":91069.65,"d":"$91,069.65"},{"v":0,"d":"$0.00"},{"v":0,"d":"$0.00"},{"v":0,"d":"$0.00"},{"v":0,"d":"$0.00"},{"v":0,"d":"$0.00"},{"v":175540.05,"d":"$175,540.05"},{"v":71106.58,"d":"$71,106.58"},{"v":26924.71,"d":"$26,924.71"},{"v":631250.6799999998,"d":"$631,250.68"},{"v":5172098.92,"d":"$5,172,098.92"},{"v":338263.01,"d":"$338,263.01"},{"v":0,"d":"$0.00"},{"v":154164.91000000003,"d":"$154,164.91"},{"v":5172098.819999999,"d":"$5,172,098.82"}]
["03026202026","ST ELMO C U SCHOOL DIST 202",391.38,{"v":5584053.16,"d":"$5,584,053.16"},{"v":4580057.76,"d":"$4,580,057.76"},{"v":0.8202031085248479,"d":"82%"},2,{"v":31516.29,"d":"$31,516.29"},{"v":2417145.22,"d":"$2,417,145.22"},{"v":2448661.5100000002,"d":"$2,448,661.51"},{"v":0.9,"d":"0.90"},{"v":1266333.01,"d":"$1,266,333.01"},{"v":308209.32,"d":"$308,209.32"},{"v":127597.19,"d":"$127,597.19"},{"v":50837.52,"d":"$50,837.52"},{"v":44636.49,"d":"$44,636.49"},{"v":88599.56,"d":"$88,599.56"},{"v":27523.35,"d":"$27,523.35"},{"v":47849.92,"d":"$47,849.92"},{"v":56522.23,"d":"$56,522.23"},{"v":34216.7,"d":"$34,216.70"},{"v":83852.49,"d":"$83,852.49"},{"v":72197.19,"d":"$72,197.19"},{"v":57417.65,"d":"$57,417.65"},{"v":2265792.62,"d":"$2,265,792.62"},{"v":35021.7,"d":"$35,021.70"},{"v":48922.5,"d":"$48,922.50"},{"v":127198.5,"d":"$127,198.50"},{"v":13306.92,"d":"$13,306.92"},{"v":223477.97999999998,"d":"$223,477.98"},{"v":151895.93,"d":"$151,895.93"},{"v":532668.1799999999,"d":"$532,668.18"},{"v":366723.06,"d":"$366,723.06"},{"v":1103187.17532,"d":"$1,103,187.18"},{"v":2602401.94532,"d":"$2,602,401.95"},{"v":372546.79,"d":"$372,546.79"},{"v":2229855.15532,"d":"$2,229,855.16"},{"v":2565147.26532,"d":"$2,565,147.27"},{"v":112847.17,"d":"$112,847.17"},{"v":112847.17,"d":"$112,847.17"},{"v":117466.65,"d":"$117,466.65"},{"v":117466.65,"d":"$117,466.65"},{"v":1319.85,"d":"$1,319.85"},{"v":1319.85,"d":"$1,319.85"},{"v":1319.85,"d":"$1,319.85"},{"v":1319.85,"d":"$1,319.85"},{"v":1979.77,"d":"$1,979.77"},{"v":182799.22,"d":"$182,799.22"},{"v":74047.08,"d":"$74,047.08"},{"v":28380.1,"d":"$28,380.10"},{"v":753113.2099999998,"d":"$753,113.21"},{"v":5584053.16,"d":"$5,584,053.16"},{"v":359945.95000000007,"d":"$359,945.95"},{"v":304.78999999999996,"d":"$304.79"},{"v":142846.52000000002,"d":"$142,846.52"},{"v":5584053.09532,"d":"$5,584,053.10"}]
["03026203026","VANDALIA C U SCH DIST 203",1348.5,{"v":18685047.54,"d":"$18,685,047.54"},{"v":13516617.8,"d":"$13,516,617.80"},{"v":0.7233922081848768,"d":"72%"},1,{"v":483339.55,"d":"$483,339.55"},{"v":8319561.15,"d":"$8,319,561.15"},{"v":8802900.700000001,"d":"$8,802,900.70"},{"v":0.9,"d":"0.90"},{"v":4279646.25,"d":"$4,279,646.25"},{"v":1022585.64,"d":"$1,022,585.64"},{"v":440656.89,"d":"$440,656.89"},{"v":179248.64,"d":"$179,248.64"},{"v":148125.1,"d":"$148,125.10"},{"v":298737.99,"d":"$298,737.99"},{"v":97983.12,"d":"$97,983.12"},{"v":165737.16,"d":"$165,737.16"},{"v":200001.74,"d":"$200,001.74"},{"v":119758.46,"d":"$119,758.46"},{"v":296708.83,"d":"$296,708.83"},{"v":255466.98,"d":"$255,466.98"},{"v":198876.78,"d":"$198,876.78"},{"v":7703533.58,"d":"$7,703,533.58"},{"v":120825,"d":"$120,825.00"},{"v":168562.5,"d":"$168,562.50"},{"v":438262.5,"d":"$438,262.50"},{"v":45849,"d":"$45,849.00"},{"v":769993.5,"d":"$769,993.50"},{"v":490476.5,"d":"$490,476.50"},{"v":1835308.5,"d":"$1,835,308.50"},{"v":1263544.5,"d":"$1,263,544.50"},{"v":3671927.6549999993,"d":"$3,671,927.66"},{"v":8804749.655,"d":"$8,804,749.66"},{"v":1283610.18,"d":"$1,283,610.18"},{"v":7521139.475,"d":"$7,521,139.48"},{"v":8676388.635,"d":"$8,676,388.64"},{"v":322043.4,"d":"$322,043.40"},{"v":322043.4,"d":"$322,043.40"},{"v":335241.9,"d":"$335,241.90"},{"v":335241.9,"d":"$335,241.90"},{"v":1319.85,"d":"$1,319.85"},{"v":1319.85,"d":"$1,319.85"},{"v":1319.85,"d":"$1,319.85"},{"v":1319.85,"d":"$1,319.85"},{"v":1319.85,"d":"$1,319.85"},{"v":630888.3,"d":"$630,888.30"},{"v":255556,"d":"$255,556.00"},{"v":97511.13,"d":"$97,511.13"},{"v":2305125.2800000003,"d":"$2,305,125.28"},{"v":18685047.54,"d":"$18,685,047.54"},{"v":1284814.5099999998,"d":"$1,284,814.51"},{"v":193.33,"d":"$193.33"},{"v":597510.0900000001,"d":"$597,510.09"},{"v":18685047.495,"d":"$18,685,047.50"}]
["03026204026","RAMSEY COMM UNIT SCH DIST 204",387.45,{"v":5351396.11,"d":"$5,351,396.11"},{"v":3983615.42,"d":"$3,983,615.42"},{"v":0.7444067563146619,"d":"74%"},1,{"v":101586.65,"d":"$101,586.65"},{"v":2753985.1099999994,"d":"$2,753,985.11"},{"v":2855571.7599999993,"d":"$2,855,571.76"},{"v":0.9,"d":"0.90"},{"v":1216063.14,"d":"$1,216,063.14"},{"v":298732.68,"d":"$298,732.68"},{"v":126530.49,"d":"$126,530.49"},{"v":50304.17,"d":"$50,304.17"},{"v":42059.52,"d":"$42,059.52"},{"v":87341.34,"d":"$87,341.34"},{"v":27523.35,"d":"$27,523.35"},{"v":47315.28,"d":"$47,315.28"},{"v":55797.58,"d":"$55,797.58"},{"v":34216.7,"d":"$34,216.70"},{"v":82777.46,"d":"$82,777.46"},{"v":71271.58,"d":"$71,271.58"},{"v":56776.11,"d":"$56,776.11"},{"v":2196709.4,"d":"$2,196,709.40"},{"v":34406.1,"d":"$34,406.10"},{"v":48431.24999999999,"d":"$48,431.25"},{"v":125921.24999999997,"d":"$125,921.25"},{"v":13173.3,"d":"$13,173.30"},{"v":221233.94999999998,"d":"$221,233.95"},{"v":153777.02999999997,"d":"$153,777.03"},{"v":527319.45,"d":"$527,319.45"},{"v":363040.6499999999,"d":"$363,040.65"},{"v":1047709.8798000001,"d":"$1,047,709.88"},{"v":2535012.8597999997,"d":"$2,535,012.86"},{"v":368805.9,"d":"$368,805.90"},{"v":2166206.9598000003,"d":"$2,166,206.96"},{"v":2498132.2698000004,"d":"$2,498,132.27"},{"v":91729.57,"d":"$91,729.57"},{"v":91729.57,"d":"$91,729.57"},{"v":95689.12,"d":"$95,689.12"},{"v":95689.12,"d":"$95,689.12"},{"v":0,"d":"$0.00"},{"v":0,"d":"$0.00"},{"v":0,"d":"$0.00"},{"v":0,"d":"$0.00"},{"v":0,"d":"$0.00"},{"v":180819.45,"d":"$180,819.45"},{"v":73245.13,"d":"$73,245.13"},{"v":27652.41,"d":"$27,652.41"},{"v":656554.3700000001,"d":"$656,554.37"},{"v":5351396.11,"d":"$5,351,396.11"},{"v":407115.41000000003,"d":"$407,115.41"},{"v":0,"d":"$0.00"},{"v":147696.02000000002,"d":"$147,696.02"},{"v":5351396.0398,"d":"$5,351,396.04"}]
["03068002026","PANHANDLE COMM UNIT SCH DIST 2",421.79,{"v":5773466.45,"d":"$5,773,466.45"},{"v":5433527.43,"d":"$5,433,527.43"},{"v":0.9411204649851216,"d":"94%"},3,{"v":6561.02,"d":"$6,561.02"},{"v":1218249.32,"d":"$1,218,249.32"},{"v":1224810.34,"d":"$1,224,810.34"},{"v":0.9,"d":"0.90"},{"v":1313092.24,"d":"$1,313,092.24"},{"v":320447.82,"d":"$320,447.82"},{"v":137576.63,"d":"$137,576.63"},{"v":54791.6,"d":"$54,791.60"},{"v":45248.34,"d":"$45,248.34"},{"v":95741.64,"d":"$95,741.64"},{"v":30275.68,"d":"$30,275.68"},{"v":51592.37,"d":"$51,592.37"},{"v":60870.09,"d":"$60,870.09"},{"v":37157.2,"d":"$37,157.20"},{"v":90302.68,"d":"$90,302.68"},{"v":77750.82,"d":"$77,750.82"},{"v":61908.41,"d":"$61,908.41"},{"v":2376755.5200000005,"d":"$2,376,755.52"},{"v":37841.399999999994,"d":"$37,841.40"},{"v":52723.75,"d":"$52,723.75"},{"v":137081.75,"d":"$137,081.75"},{"v":14340.86,"d":"$14,340.86"},{"v":240842.09,"d":"$240,842.09"},{"v":165506.13999999998,"d":"$165,506.14"},{"v":574056.19,"d":"$574,056.19"},{"v":395217.23,"d":"$395,217.23"},{"v":1128025.5405599999,"d":"$1,128,025.54"},{"v":2745634.95056,"d":"$2,745,634.95"},{"v":401493.46,"d":"$401,493.46"},{"v":2344141.4905599994,"d":"$2,344,141.49"},{"v":2705485.6005599992,"d":"$2,705,485.60"},{"v":87770.02,"d":"$87,770.02"},{"v":87770.02,"d":"$87,770.02"},{"v":91729.57,"d":"$91,729.57"},{"v":91729.57,"d":"$91,729.57"},{"v":4619.47,"d":"$4,619.47"},{"v":4619.47,"d":"$4,619.47"},{"v":4619.47,"d":"$4,619.47"},{"v":4619.47,"d":"$4,619.47"},{"v":5939.32,"d":"$5,939.32"},{"v":197317.57,"d":"$197,317.57"},{"v":79928.08,"d":"$79,928.08"},{"v":30563.19,"d":"$30,563.19"},{"v":691225.2199999999,"d":"$691,225.22"},{"v":5773466.45,"d":"$5,773,466.45"},{"v":223284.6,"d":"$223,284.60"},{"v":91.11,"d":"$91.11"},{"v":72081.16,"d":"$72,081.16"},{"v":5773466.340559999,"d":"$5,773,466.34"}]
["03068003026","HILLSBORO COMM UNIT SCH DIST 3",1470.37,{"v":20091333.48,"d":"$20,091,333.48"},{"v":16531149.639999999,"d":"$16,531,149.64"},{"v":0.8228000225299131,"d":"82%"},2,{"v":96184.68,"d":"$96,184.68"},{"v":5866116.629999999,"d":"$5,866,116.63"},{"v":5962301.309999999,"d":"$5,962,301.31"},{"v":0.9,"d":"0.90"},{"v":4581270.2,"d":"$4,581,270.20"},{"v":1111488.35,"d":"$1,111,488.35"},{"v":482333.23,"d":"$482,333.23"},{"v":195441.94,"d":"$195,441.94"},{"v":157304.87,"d":"$157,304.87"},{"v":335299.35,"d":"$335,299.35"},{"v":107341.06,"d":"$107,341.06"},{"v":181241.6,"d":"$181,241.60"},{"v":217393.2,"d":"$217,393.20"},{"v":130451.18,"d":"$130,451.18"},{"v":322509.6,"d":"$322,509.60"},{"v":277681.5,"d":"$277,681.50"},{"v":217481.38,"d":"$217,481.38"},{"v":8317237.46,"d":"$8,317,237.46"},{"v":131381.09999999998,"d":"$131,381.10"},{"v":183796.25,"d":"$183,796.25"},{"v":477870.25,"d":"$477,870.25"},{"v":49992.58,"d":"$49,992.58"},{"v":839581.2699999999,"d":"$839,581.27"},{"v":563341.0299999999,"d":"$563,341.03"},{"v":2001173.57,"d":"$2,001,173.57"},{"v":1377736.69,"d":"$1,377,736.69"},{"v":3927192.9166800007,"d":"$3,927,192.92"},{"v":9552065.656680001,"d":"$9,552,065.66"},{"v":1399615.79,"d":"$1,399,615.79"},{"v":8152449.866680001,"d":"$8,152,449.87"},{"v":9412104.07668,"d":"$9,412,104.08"},{"v":315444.15,"d":"$315,444.15"},{"v":315444.15,"d":"$315,444.15"},{"v":328642.65,"d":"$328,642.65"},{"v":328642.65,"d":"$328,642.65"},{"v":0,"d":"$0.00"},{"v":0,"d":"$0.00"},{"v":0,"d":"$0.00"},{"v":0,"d":"$0.00"},{"v":659.92,"d":"$659.92"},{"v":687641.85,"d":"$687,641.85"},{"v":278545.35,"d":"$278,545.35"},{"v":106971.16,"d":"$106,971.16"},{"v":2361991.8800000004,"d":"$2,361,991.88"},{"v":20091333.48,"d":"$20,091,333.48"},{"v":1212924.3099999996,"d":"$1,212,924.31"},{"v":134.17,"d":"$134.17"},{"v":363245.93000000005,"d":"$363,245.93"},{"v":20091333.41668,"d":"$20,091,333.42"}]
["03068012026","LITCHFIELD C U SCHOOL DIST 12",1216.14,{"v":17337835.88,"d":"$17,337,835.88"},{"v":13533849.739999998,"d":"$13,533,849.74"},{"v":0.7805962539772293,"d":"78%"},2,{"v":128378.66,"d":"$128,378.66"},{"v":6604761.27,"d":"$6,604,761.27"},{"v":6733139.93,"d":"$6,733,139.93"},{"v":0.9,"d":"0.90"},{"v":3909777.49,"d":"$3,909,777.49"},{"v":953519.21,"d":"$953,519.21"},{"v":398702.14,"d":"$398,702.14"},{"v":161142.57,"d":"$161,142.57"},{"v":138157.82,"d":"$138,157.82"},{"v":277864.57,"d":"$277,864.57"},{"v":88625.18,"d":"$88,625.18"},{"v":149698.08,"d":"$149,698.08"},{"v":178987.06,"d":"$178,987.06"},{"v":107996.47,"d":"$107,996.47"},{"v":265532.9,"d":"$265,532.90"},{"v":228624.43,"d":"$228,624.43"},{"v":179630.64,"d":"$179,630.64"},{"v":7038258.56,"d":"$7,038,258.56"},{"v":108552.6,"d":"$108,552.60"},{"v":152017.5,"d":"$152,017.50"},{"v":395245.5,"d":"$395,245.50"},{"v":41348.759999999995,"d":"$41,348.76"},{"v":694415.94,"d":"$694,415.94"},{"v":474295.74,"d":"$474,295.74"},{"v":1655166.5399999998,"d":"$1,655,166.54"},{"v":1139523.18,"d":"$1,139,523.18"},{"v":3424182.9129599994,"d":"$3,424,182.91"},{"v":8084748.672959999,"d":"$8,084,748.67"},{"v":1157619.34,"d":"$1,157,619.34"},{"v":6927129.332959998,"d":"$6,927,129.33"},{"v":7968986.732959999,"d":"$7,968,986.73"},{"v":349760.25,"d":"$349,760.25"},{"v":349760.25,"d":"$349,760.25"},{"v":364938.52,"d":"$364,938.52"},{"v":364938.52,"d":"$364,938.52"},{"v":2639.7,"d":"$2,639.70"},{"v":2639.7,"d":"$2,639.70"},{"v":2639.7,"d":"$2,639.70"},{"v":2639.7,"d":"$2,639.70"},{"v":3299.62,"d":"$3,299.62"},{"v":568855.35,"d":"$568,855.35"},{"v":230428.11,"d":"$230,428.11"},{"v":88051.09,"d":"$88,051.09"},{"v":2330590.51,"d":"$2,330,590.51"},{"v":17337835.88,"d":"$17,337,835.88"},{"v":1234354.2999999998,"d":"$1,234,354.30"},{"v":1338.58,"d":"$1,338.58"},{"v":305238.0800000001,"d":"$305,238.08"},{"v":17337835.80296,"d":"$17,337,835.80"}]
["03068022026","NOKOMIS COMM UNIT SCH DIST 22",550.7,{"v":7502680.13,"d":"$7,502,680.13"},{"v":6064492.83,"d":"$6,064,492.83"},{"v":0.8083101938133673,"d":"81%"},2,{"v":41647.92,"d":"$41,647.92"},{"v":3117794.51,"d":"$3,117,794.51"},{"v":3159442.4299999997,"d":"$3,159,442.43"},{"v":0.9,"d":"0.90"},{"v":1705265.64,"d":"$1,705,265.64"},{"v":416106.23,"d":"$416,106.23"},{"v":180255.4,"d":"$180,255.40"},{"v":72396.45,"d":"$72,396.45"},{"v":58584.12,"d":"$58,584.12"},{"v":124986.33,"d":"$124,986.33"},{"v":39633.62,"d":"$39,633.62"},{"v":67898.77,"d":"$67,898.77"},{"v":80435.48,"d":"$80,435.48"},{"v":48384.55,"d":"$48,384.55"},{"v":119328.55,"d":"$119,328.55"},{"v":102742.15,"d":"$102,742.15"},{"v":81475.32,"d":"$81,475.32"},{"v":3097492.61,"d":"$3,097,492.61"},{"v":49060.799999999996,"d":"$49,060.80"},{"v":68837.5,"d":"$68,837.50"},{"v":178977.5,"d":"$178,977.50"},{"v":18723.8,"d":"$18,723.80"},{"v":314449.7,"d":"$314,449.70"},{"v":213962.33999999997,"d":"$213,962.34"},{"v":749502.7,"d":"$749,502.70"},{"v":516005.9,"d":"$516,005.90"},{"v":1464694.0218,"d":"$1,464,694.02"},{"v":3574214.2617999995,"d":"$3,574,214.26"},{"v":524200.31,"d":"$524,200.31"},{"v":3050013.9517999995,"d":"$3,050,013.95"},{"v":3521794.2217999995,"d":"$3,521,794.22"},{"v":118126.57,"d":"$118,126.57"},{"v":118126.57,"d":"$118,126.57"},{"v":122746.05,"d":"$122,746.05"},{"v":122746.05,"d":"$122,746.05"},{"v":0,"d":"$0.00"},{"v":0,"d":"$0.00"},{"v":0,"d":"$0.00"},{"v":0,"d":"$0.00"},{"v":0,"d":"$0.00"},{"v":257370.75,"d":"$257,370.75"},{"v":104254.02,"d":"$104,254.02"},{"v":40023.22,"d":"$40,023.22"},{"v":883393.23,"d":"$883,393.23"},{"v":7502680.13,"d":"$7,502,680.13"},{"v":603590.35,"d":"$603,590.35"},{"v":0,"d":"$0.00"},{"v":122796.86000000002,"d":"$122,796.86"},{"v":7502680.061799999,"d":"$7,502,680.06"}]
[null,"ALT SCH-BOONE/WINNEBAGO ROE",17,{"v":219656.29,"d":"$219,656.29"},{"v":302044.3,"d":"$302,044.30"},{"v":1.3750769440747632,"d":"138%"},4,{"v":13.99,"d":"$13.99"},{"v":280078.68,"d":"$280,078.68"},{"v":280092.67,"d":"$280,092.67"},{"v":0.91537,"d":"0.92"},{"v":50237.37,"d":"$50,237.37"},{"v":11809.04,"d":"$11,809.04"},{"v":5298.23,"d":"$5,298.23"},{"v":1276.62,"d":"$1,276.62"},{"v":1781.19,"d":"$1,781.19"},{"v":4223.79,"d":"$4,223.79"},{"v":559.86,"d":"$559.86"},{"v":1903.18,"d":"$1,903.18"},{"v":1474.03,"d":"$1,474.03"},{"v":1359.41,"d":"$1,359.41"},{"v":2186.78,"d":"$2,186.78"},{"v":1882.82,"d":"$1,882.82"},{"v":2283.72,"d":"$2,283.72"},{"v":86276.04,"d":"$86,276.04"},{"v":1530,"d":"$1,530.00"},{"v":2125,"d":"$2,125.00"},{"v":5525,"d":"$5,525.00"},{"v":578,"d":"$578.00"},{"v":4853.5,"d":"$4,853.50"},{"v":6673,"d":"$6,673.00"},{"v":23137,"d":"$23,137.00"},{"v":15929,"d":"$15,929.00"},{"v":42877.452000000005,"d":"$42,877.45"},{"v":103227.952,"d":"$103,227.95"},{"v":16181.96,"d":"$16,181.96"},{"v":87045.992,"d":"$87,045.99"},{"v":101858.472,"d":"$101,858.47"},{"v":4698.36,"d":"$4,698.36"},{"v":4698.36,"d":"$4,698.36"},{"v":4698.36,"d":"$4,698.36"},{"v":4698.36,"d":"$4,698.36"},{"v":0,"d":"$0.00"},{"v":0,"d":"$0.00"},{"v":0,"d":"$0.00"},{"v":0,"d":"$0.00"},{"v":671.19,"d":"$671.19"},{"v":8054.34,"d":"$8,054.34"},{"v":3262.59,"d":"$3,262.59"},{"v":740.12,"d":"$740.12"},{"v":31521.679999999997,"d":"$31,521.68"},{"v":219656.29,"d":"$219,656.29"},{"v":6.710000000000001,"d":"$6.71"},{"v":0.05,"d":"$0.05"},{"v":2.8600000000000003,"d":"$2.86"},{"v":219656.19199999998,"d":"$219,656.19"}]
[null,"SAFE SCH-BOONE/WINNEBAGO ROE",163,{"v":2430844.64,"d":"$2,430,844.64"},{"v":1936393.16,"d":"$1,936,393.16"},{"v":0.7965927267157641,"d":"80%"},2,{"v":20287.97,"d":"$20,287.97"},{"v":1693308.7,"d":"$1,693,308.70"},{"v":1713596.67,"d":"$1,713,596.67"},{"v":0.91537,"d":"0.92"},{"v":512295.18,"d":"$512,295.18"},{"v":144541.06,"d":"$144,541.06"},{"v":56208.81,"d":"$56,208.81"},{"v":20587.31,"d":"$20,587.31"},{"v":18784.17,"d":"$18,784.17"},{"v":48370.32,"d":"$48,370.32"},{"v":11757.22,"d":"$11,757.22"},{"v":20935,"d":"$20,935.00"},{"v":22110.57,"d":"$22,110.57"},{"v":14409.8,"d":"$14,409.80"},{"v":32801.73,"d":"$32,801.73"},{"v":28242.36,"d":"$28,242.36"},{"v":25121.02,"d":"$25,121.02"},{"v":956164.55,"d":"$956,164.55"},{"v":14670,"d":"$14,670.00"},{"v":20375,"d":"$20,375.00"},{"v":52975,"d":"$52,975.00"},{"v":5542,"d":"$5,542.00"},{"v":93073,"d":"$93,073.00"},{"v":98537,"d":"$98,537.00"},{"v":221843,"d":"$221,843.00"},{"v":152731,"d":"$152,731.00"},{"v":470837.08800000005,"d":"$470,837.09"},{"v":1130583.088,"d":"$1,130,583.09"},{"v":155156.44,"d":"$155,156.44"},{"v":975426.648,"d":"$975,426.65"},{"v":1117452.198,"d":"$1,117,452.20"},{"v":46312.45,"d":"$46,312.45"},{"v":46312.45,"d":"$46,312.45"},{"v":48326.04,"d":"$48,326.04"},{"v":48326.04,"d":"$48,326.04"},{"v":8725.53,"d":"$8,725.53"},{"v":8725.53,"d":"$8,725.53"},{"v":9396.73,"d":"$9,396.73"},{"v":9396.73,"d":"$9,396.73"},{"v":11410.31,"d":"$11,410.31"},{"v":77187.43,"d":"$77,187.43"},{"v":31266.56,"d":"$31,266.56"},{"v":11841.95,"d":"$11,841.95"},{"v":357227.75,"d":"$357,227.75"},{"v":2430844.64,"d":"$2,430,844.64"},{"v":94303.68999999999,"d":"$94,303.69"},{"v":4522.08,"d":"$4,522.08"},{"v":39348.939999999995,"d":"$39,348.94"},{"v":2430844.498,"d":"$2,430,844.50"}]
[null,"ALOP-BOONE/WINNEBAGO ROE",126.98,{"v":1964066.91,"d":"$1,964,066.91"},{"v":1680550.92,"d":"$1,680,550.92"},{"v":0.8556485074126116,"d":"86%"},2,{"v":7030.63,"d":"$7,030.63"},{"v":1484144.23,"d":"$1,484,144.23"},{"v":1491174.8599999999,"d":"$1,491,174.86"},{"v":0.91537,"d":"0.92"},{"v":421223.3,"d":"$421,223.30"},{"v":140223.54,"d":"$140,223.54"},{"v":46252.86,"d":"$46,252.86"},{"v":15417.62,"d":"$15,417.62"},{"v":14693.07,"d":"$14,693.07"},{"v":39205.29,"d":"$39,205.29"},{"v":8957.88,"d":"$8,957.88"},{"v":17128.64,"d":"$17,128.64"},{"v":15477.4,"d":"$15,477.40"},{"v":11419.09,"d":"$11,419.09"},{"v":22961.21,"d":"$22,961.21"},{"v":19769.65,"d":"$19,769.65"},{"v":20553.56,"d":"$20,553.56"},{"v":793283.11,"d":"$793,283.11"},{"v":11428.199999999999,"d":"$11,428.20"},{"v":15872.5,"d":"$15,872.50"},{"v":41268.5,"d":"$41,268.50"},{"v":4317.32,"d":"$4,317.32"},{"v":72505.58,"d":"$72,505.58"},{"v":108673.21999999999,"d":"$108,673.22"},{"v":172819.78,"d":"$172,819.78"},{"v":118980.26,"d":"$118,980.26"},{"v":376275.09371999995,"d":"$376,275.09"},{"v":922140.4537199999,"d":"$922,140.45"},{"v":120869.72,"d":"$120,869.72"},{"v":801270.7337199998,"d":"$801,270.73"},{"v":911911.2437199998,"d":"$911,911.24"},{"v":36244.53,"d":"$36,244.53"},{"v":36244.53,"d":"$36,244.53"},{"v":37586.92,"d":"$37,586.92"},{"v":37586.92,"d":"$37,586.92"},{"v":3355.97,"d":"$3,355.97"},{"v":3355.97,"d":"$3,355.97"},{"v":3355.97,"d":"$3,355.97"},{"v":3355.97,"d":"$3,355.97"},{"v":4027.17,"d":"$4,027.17"},{"v":60407.55,"d":"$60,407.55"},{"v":24469.48,"d":"$24,469.48"},{"v":8881.46,"d":"$8,881.46"},{"v":258872.44,"d":"$258,872.44"},{"v":1964066.91,"d":"$1,964,066.91"},{"v":55309.399999999994,"d":"$55,309.40"},{"v":3876.6099999999997,"d":"$3,876.61"},{"v":22623.72,"d":"$22,623.72"},{"v":1964066.7937199997,"d":"$1,964,066.79"}]
["04004100026","BELVIDERE C U SCH DIST 100",7394.3,{"v":112238842.06,"d":"$112,238,842.06"},{"v":82598958.76,"d":"$82,598,958.76"},{"v":0.7359213374265277,"d":"74%"},1,{"v":2381222.26,"d":"$2,381,222.26"},{"v":40922609.440000005,"d":"$40,922,609.44"},{"v":43303831.7,"d":"$43,303,831.70"},{"v":0.95352,"d":"0.95"},{"v":24517900.4,"d":"$24,517,900.40"},{"v":6091940.54,"d":"$6,091,940.54"},{"v":2588943.34,"d":"$2,588,943.34"},{"v":1037788,"d":"$1,037,788.00"},{"v":918427.77,"d":"$918,427.77"},{"v":1838861.77,"d":"$1,838,861.77"},{"v":573870.21,"d":"$573,870.21"},{"v":971708.98,"d":"$971,708.98"},{"v":1147765.56,"d":"$1,147,765.56"},{"v":697840.55,"d":"$697,840.55"},{"v":1702746.05,"d":"$1,702,746.05"},{"v":1466068.22,"d":"$1,466,068.22"},{"v":1166004.98,"d":"$1,166,004.98"},{"v":44719866.37,"d":"$44,719,866.37"},{"v":662651.9999999999,"d":"$662,652.00"},{"v":924287.5,"d":"$924,287.50"},{"v":2403147.5,"d":"$2,403,147.50"},{"v":251406.19999999995,"d":"$251,406.20"},{"v":4222145.3,"d":"$4,222,145.30"},{"v":3068811.4999999995,"d":"$3,068,811.50"},{"v":10063642.3,"d":"$10,063,642.30"},{"v":6928459.1,"d":"$6,928,459.10"},{"v":21499700.644199993,"d":"$21,499,700.64"},{"v":50024252.04419999,"d":"$50,024,252.04"},{"v":7038486.28,"d":"$7,038,486.28"},{"v":42985765.76419999,"d":"$42,985,765.76"},{"v":49697103.19419999,"d":"$49,697,103.19"},{"v":1763303.05,"d":"$1,763,303.05"},{"v":1763303.05,"d":"$1,763,303.05"},{"v":1836715.75,"d":"$1,836,715.75"},{"v":1836715.75,"d":"$1,836,715.75"},{"v":918707.46,"d":"$918,707.46"},{"v":918707.46,"d":"$918,707.46"},{"v":957161.73,"d":"$957,161.73"},{"v":957161.73,"d":"$957,161.73"},{"v":1148733.91,"d":"$1,148,733.91"},{"v":3666439.82,"d":"$3,666,439.82"},{"v":1485176.89,"d":"$1,485,176.89"},{"v":569745.79,"d":"$569,745.79"},{"v":17821872.39,"d":"$17,821,872.39"},{"v":112238842.06,"d":"$112,238,842.06"},{"v":5281762.83,"d":"$5,281,762.83"},{"v":927264.05,"d":"$927,264.05"},{"v":3336335.8099999996,"d":"$3,336,335.81"},{"v":112238841.95419998,"d":"$112,238,841.95"}]
["04004200026","NORTH BOONE C U SCH DIST 200",1502.62,{"v":21551007.85,"d":"$21,551,007.85"},{"v":15021888.17,"d":"$15,021,888.17"},{"v":0.6970387777015263,"d":"70%"},1,{"v":757452.21,"d":"$757,452.21"},{"v":8864926.39,"d":"$8,864,926.39"},{"v":9622378.600000001,"d":"$9,622,378.60"},{"v":0.95352,"d":"0.95"},{"v":4907638.73,"d":"$4,907,638.73"},{"v":1197954.71,"d":"$1,197,954.71"},{"v":522187.99,"d":"$522,187.99"},{"v":210788.23,"d":"$210,788.23"},{"v":173196.19,"d":"$173,196.19"},{"v":367705.99,"d":"$367,705.99"},{"v":115473.88,"d":"$115,473.88"},{"v":196267.65,"d":"$196,267.65"},{"v":234159.52,"d":"$234,159.52"},{"v":141324.04,"d":"$141,324.04"},{"v":347382.97,"d":"$347,382.97"},{"v":299097.53,"d":"$299,097.53"},{"v":235511.93,"d":"$235,511.93"},{"v":8948689.360000001,"d":"$8,948,689.36"},{"v":134740.8,"d":"$134,740.80"},{"v":187827.5,"d":"$187,827.50"},{"v":488351.5,"d":"$488,351.50"},{"v":51089.08,"d":"$51,089.08"},{"v":857996.02,"d":"$857,996.02"},{"v":589781.34,"d":"$589,781.34"},{"v":2045065.8199999998,"d":"$2,045,065.82"},{"v":1407954.94,"d":"$1,407,954.94"},{"v":4079388.901679999,"d":"$4,079,388.90"},{"v":9842195.90168,"d":"$9,842,195.90"},{"v":1430313.92,"d":"$1,430,313.92"},{"v":8411881.98168,"d":"$8,411,881.98"},{"v":9775714.90168,"d":"$9,775,714.90"},{"v":311829.16,"d":"$311,829.16"},{"v":311829.16,"d":"$311,829.16"},{"v":325113.37,"d":"$325,113.37"},{"v":325113.37,"d":"$325,113.37"},{"v":73412.69,"d":"$73,412.69"},{"v":73412.69,"d":"$73,412.69"},{"v":76209.37,"d":"$76,209.37"},{"v":76209.37,"d":"$76,209.37"},{"v":91591.07,"d":"$91,591.07"},{"v":744614.49,"d":"$744,614.49"},{"v":301623.45,"d":"$301,623.45"},{"v":115645.28,"d":"$115,645.28"},{"v":2826603.47,"d":"$2,826,603.47"},{"v":21551007.85,"d":"$21,551,007.85"},{"v":944005.8600000001,"d":"$944,005.86"},{"v":109272.41,"d":"$109,272.41"},{"v":726325.1000000001,"d":"$726,325.10"},{"v":21551007.73168,"d":"$21,551,007.73"}]
["04101122022","HARLEM UNIT DIST 122",6016.86,{"v":85596630.89,"d":"$85,596,630.89"},{"v":70874251.41,"d":"$70,874,251.41"},{"v":0.8280028159178403,"d":"83%"},2,{"v":400956.65,"d":"$400,956.65"},{"v":32524416.400000002,"d":"$32,524,416.40"},{"v":32925373.05,"d":"$32,925,373.05"},{"v":0.91537,"d":"0.92"},{"v":19245172.89,"d":"$19,245,172.89"},{"v":4677952.78,"d":"$4,677,952.78"},{"v":2010286.04,"d":"$2,010,286.04"},{"v":816056.7,"d":"$816,056.70"},{"v":682794.25,"d":"$682,794.25"},{"v":1400614.66,"d":"$1,400,614.66"},{"v":448454.07,"d":"$448,454.07"},{"v":755291.52,"d":"$755,291.52"},{"v":907270.76,"d":"$907,270.76"},{"v":545125.81,"d":"$545,125.81"},{"v":1345964.51,"d":"$1,345,964.51"},{"v":1158878.51,"d":"$1,158,878.51"},{"v":906314.22,"d":"$906,314.22"},{"v":34900176.72,"d":"$34,900,176.72"},{"v":536440.5,"d":"$536,440.50"},{"v":752107.5,"d":"$752,107.50"},{"v":1955479.5000000002,"d":"$1,955,479.50"},{"v":204573.24000000002,"d":"$204,573.24"},{"v":3435627.0600000005,"d":"$3,435,627.06"},{"v":2317266.29,"d":"$2,317,266.29"},{"v":8188946.460000001,"d":"$8,188,946.46"},{"v":5637797.82,"d":"$5,637,797.82"},{"v":16689467.480039999,"d":"$16,689,467.48"},{"v":39717705.85004,"d":"$39,717,705.85"},{"v":5727328.69,"d":"$5,727,328.69"},{"v":33990377.160040006,"d":"$33,990,377.16"},{"v":39233002.020040005,"d":"$39,233,002.02"},{"v":1488039.43,"d":"$1,488,039.43"},{"v":1488039.43,"d":"$1,488,039.43"},{"v":1549789.37,"d":"$1,549,789.37"},{"v":1549789.37,"d":"$1,549,789.37"},{"v":172497.12,"d":"$172,497.12"},{"v":172497.12,"d":"$172,497.12"},{"v":179209.07,"d":"$179,209.07"},{"v":179209.07,"d":"$179,209.07"},{"v":215453.61,"d":"$215,453.61"},{"v":2863989.28,"d":"$2,863,989.28"},{"v":1160125.6,"d":"$1,160,125.60"},{"v":444813.57,"d":"$444,813.57"},{"v":11463452.040000001,"d":"$11,463,452.04"},{"v":85596630.89,"d":"$85,596,630.89"},{"v":4503758.710000001,"d":"$4,503,758.71"},{"v":123669.52,"d":"$123,669.52"},{"v":2531411.8499999996,"d":"$2,531,411.85"},{"v":85596630.78004001,"d":"$85,596,630.78"}]
["04101131004","KINNIKINNICK C C SCH DIST 131",1685.3,{"v":20958569.19,"d":"$20,958,569.19"},{"v":17145233.23,"d":"$17,145,233.23"},{"v":0.8180536120843849,"d":"82%"},2,{"v":87730.22,"d":"$87,730.22"},{"v":4443641.279999999,"d":"$4,443,641.28"},{"v":4531371.499999999,"d":"$4,531,371.50"},{"v":0.91537,"d":"0.92"},{"v":4945026.01,"d":"$4,945,026.01"},{"v":989005.2,"d":"$989,005.20"},{"v":537461.19,"d":"$537,461.19"},{"v":238729.79,"d":"$238,729.79"},{"v":165651.49,"d":"$165,651.49"},{"v":329521.9,"d":"$329,521.90"},{"v":125410.37,"d":"$125,410.37"},{"v":203368.63,"d":"$203,368.63"},{"v":275645.22,"d":"$275,645.22"},{"v":152526.47,"d":"$152,526.47"},{"v":408928.29,"d":"$408,928.29"},{"v":352088.19,"d":"$352,088.19"},{"v":244032.77,"d":"$244,032.77"},{"v":8967395.52,"d":"$8,967,395.52"},{"v":149817.6,"d":"$149,817.60"},{"v":210662.5,"d":"$210,662.50"},{"v":547722.5,"d":"$547,722.50"},{"v":57300.200000000004,"d":"$57,300.20"},{"v":962306.3,"d":"$962,306.30"},{"v":281258.6,"d":"$281,258.60"},{"v":2293693.3000000003,"d":"$2,293,693.30"},{"v":1579126.1,"d":"$1,579,126.10"},{"v":4027226.4311999995,"d":"$4,027,226.43"},{"v":10109113.5312,"d":"$10,109,113.53"},{"v":1604203.36,"d":"$1,604,203.36"},{"v":8504910.1712,"d":"$8,504,910.17"},{"v":9973349.7912,"d":"$9,973,349.79"},{"v":162429.2,"d":"$162,429.20"},{"v":162429.2,"d":"$162,429.20"},{"v":169141.15,"d":"$169,141.15"},{"v":169141.15,"d":"$169,141.15"},{"v":19464.65,"d":"$19,464.65"},{"v":19464.65,"d":"$19,464.65"},{"v":20135.85,"d":"$20,135.85"},{"v":20135.85,"d":"$20,135.85"},{"v":24163.02,"d":"$24,163.02"},{"v":802078.08,"d":"$802,078.08"},{"v":324900.42,"d":"$324,900.42"},{"v":124340.56,"d":"$124,340.56"},{"v":2017823.78,"d":"$2,017,823.78"},{"v":20958569.19,"d":"$20,958,569.19"},{"v":191345.24999999997,"d":"$191,345.25"},{"v":2071.9300000000003,"d":"$2,071.93"},{"v":672332.3599999999,"d":"$672,332.36"},{"v":20958569.0912,"d":"$20,958,569.09"}]
["04101133004","PRAIRIE HILL C C SCH DIST 133",730,{"v":8882862.15,"d":"$8,882,862.15"},{"v":6136017.42,"d":"$6,136,017.42"},{"v":0.6907703076310826,"d":"69%"},1,{"v":310858.19,"d":"$310,858.19"},{"v":2358675.2,"d":"$2,358,675.20"},{"v":2669533.39,"d":"$2,669,533.39"},{"v":0.91537,"d":"0.92"},{"v":2112822.52,"d":"$2,112,822.52"},{"v":422564.5,"d":"$422,564.50"},{"v":232984.96,"d":"$232,984.96"},{"v":102768.7,"d":"$102,768.70"},{"v":69676.82,"d":"$69,676.82"},{"v":138275.37,"d":"$138,275.37"},{"v":53747.3,"d":"$53,747.30"},{"v":87818.27,"d":"$87,818.27"},{"v":118660.1,"d":"$118,660.10"},{"v":65795.73,"d":"$65,795.73"},{"v":176035.97,"d":"$176,035.97"},{"v":151567.37,"d":"$151,567.37"},{"v":105377.78,"d":"$105,377.78"},{"v":3838095.39,"d":"$3,838,095.39"},{"v":64665,"d":"$64,665.00"},{"v":91250,"d":"$91,250.00"},{"v":237250,"d":"$237,250.00"},{"v":24820,"d":"$24,820.00"},{"v":416830,"d":"$416,830.00"},{"v":117588.5,"d":"$117,588.50"},{"v":993530,"d":"$993,530.00"},{"v":684010,"d":"$684,010.00"},{"v":1697782.791,"d":"$1,697,782.79"},{"v":4327726.291,"d":"$4,327,726.29"},{"v":694872.4,"d":"$694,872.40"},{"v":3632853.8910000003,"d":"$3,632,853.89"},{"v":4268919.231000001,"d":"$4,268,919.23"},{"v":44298.87,"d":"$44,298.87"},{"v":44298.87,"d":"$44,298.87"},{"v":46312.45,"d":"$46,312.45"},{"v":46312.45,"d":"$46,312.45"},{"v":10067.92,"d":"$10,067.92"},{"v":10067.92,"d":"$10,067.92"},{"v":10067.92,"d":"$10,067.92"},{"v":10067.92,"d":"$10,067.92"},{"v":12752.7,"d":"$12,752.70"},{"v":347007.84,"d":"$347,007.84"},{"v":140563.61,"d":"$140,563.61"},{"v":54028.93,"d":"$54,028.93"},{"v":775847.4000000001,"d":"$775,847.40"},{"v":8882862.15,"d":"$8,882,862.15"},{"v":72173.96,"d":"$72,173.96"},{"v":3871.53,"d":"$3,871.53"},{"v":275128.24,"d":"$275,128.24"},{"v":8882862.021000002,"d":"$8,882,862.02"}]
["04101134004","SHIRLAND C C SCHOOL DIST 134",103.75,{"v":1283333.64,"d":"$1,283,333.64"},{"v":1370921.8299999998,"d":"$1,370,921.83"},{"v":1.0682505213531222,"d":"107%"},4,{"v":81.74,"d":"$81.74"},{"v":116026.32000000002,"d":"$116,026.32"},{"v":116108.06000000003,"d":"$116,108.06"},{"v":0.91537,"d":"0.92"},{"v":314050.96,"d":"$314,050.96"},{"v":62810.19,"d":"$62,810.19"},{"v":32554.06,"d":"$32,554.06"},{"v":14042.92,"d":"$14,042.92"},{"v":10542.61,"d":"$10,542.61"},{"v":19262.24,"d":"$19,262.24"},{"v":7278.28,"d":"$7,278.28"},{"v":12506.62,"d":"$12,506.62"},{"v":16214.42,"d":"$16,214.42"},{"v":9244.02,"d":"$9,244.02"},{"v":24054.6,"d":"$24,054.60"},{"v":20711.07,"d":"$20,711.07"},{"v":15007.36,"d":"$15,007.36"},{"v":558279.35,"d":"$558,279.35"},{"v":9270,"d":"$9,270.00"},{"v":12968.75,"d":"$12,968.75"},{"v":33718.75,"d":"$33,718.75"},{"v":3527.5,"d":"$3,527.50"},{"v":29620.62,"d":"$29,620.62"},{"v":17091,"d":"$17,091.00"},{"v":141203.75,"d":"$141,203.75"},{"v":97213.75,"d":"$97,213.75"},{"v":253486.86900000004,"d":"$253,486.87"},{"v":598100.9890000001,"d":"$598,100.99"},{"v":98757.55,"d":"$98,757.55"},{"v":499343.4390000001,"d":"$499,343.44"},{"v":589743.1290000001,"d":"$589,743.13"},{"v":12752.7,"d":"$12,752.70"},{"v":12752.7,"d":"$12,752.70"},{"v":13423.9,"d":"$13,423.90"},{"v":13423.9,"d":"$13,423.90"},{"v":1342.39,"d":"$1,342.39"},{"v":1342.39,"d":"$1,342.39"},{"v":1342.39,"d":"$1,342.39"},{"v":1342.39,"d":"$1,342.39"},{"v":1342.39,"d":"$1,342.39"},{"v":48997.23,"d":"$48,997.23"},{"v":19847.47,"d":"$19,847.47"},{"v":7401.22,"d":"$7,401.22"},{"v":135311.07,"d":"$135,311.07"},{"v":1283333.64,"d":"$1,283,333.64"},{"v":23124.63,"d":"$23,124.63"},{"v":4.14,"d":"$4.14"},{"v":34161.88,"d":"$34,161.88"},{"v":1283333.549,"d":"$1,283,333.55"}]
["04101140004","ROCKTON SCH DIST 140",1558.75,{"v":19429069.7,"d":"$19,429,069.70"},{"v":13286841.629999999,"d":"$13,286,841.63"},{"v":0.6838640158874926,"d":"68%"},1,{"v":748137,"d":"$748,137.00"},{"v":5703100.8999999985,"d":"$5,703,100.90"},{"v":6451237.8999999985,"d":"$6,451,237.90"},{"v":0.91537,"d":"0.92"},{"v":4579271.53,"d":"$4,579,271.53"},{"v":915854.3,"d":"$915,854.30"},{"v":497247.35,"d":"$497,247.35"},{"v":220218.66,"d":"$220,218.66"},{"v":153763.73,"d":"$153,763.73"},{"v":304068.22,"d":"$304,068.22"},{"v":115892.62,"d":"$115,892.62"},{"v":188143.17,"d":"$188,143.17"},{"v":254271.66,"d":"$254,271.66"},{"v":140835.49,"d":"$140,835.49"},{"v":377219.94,"d":"$377,219.94"},{"v":324787.23,"d":"$324,787.23"},{"v":225762.93,"d":"$225,762.93"},{"v":8297336.83,"d":"$8,297,336.83"},{"v":138375,"d":"$138,375.00"},{"v":194843.75,"d":"$194,843.75"},{"v":506593.75,"d":"$506,593.75"},{"v":52997.5,"d":"$52,997.50"},{"v":890046.25,"d":"$890,046.25"},{"v":259457.5,"d":"$259,457.50"},{"v":2121458.75,"d":"$2,121,458.75"},{"v":1460548.75,"d":"$1,460,548.75"},{"v":3735832.1339999996,"d":"$3,735,832.13"},{"v":9360153.384,"d":"$9,360,153.38"},{"v":1483742.95,"d":"$1,483,742.95"},{"v":7876410.433999999,"d":"$7,876,410.43"},{"v":9234584.214,"d":"$9,234,584.21"},{"v":158402.03,"d":"$158,402.03"},{"v":158402.03,"d":"$158,402.03"},{"v":165113.98,"d":"$165,113.98"},{"v":165113.98,"d":"$165,113.98"},{"v":17451.07,"d":"$17,451.07"},{"v":17451.07,"d":"$17,451.07"},{"v":18122.26,"d":"$18,122.26"},{"v":18122.26,"d":"$18,122.26"},{"v":22149.43,"d":"$22,149.43"},{"v":741670.53,"d":"$741,670.53"},{"v":300430.93,"d":"$300,430.93"},{"v":114718.97,"d":"$114,718.97"},{"v":1897148.54,"d":"$1,897,148.54"},{"v":19429069.7,"d":"$19,429,069.70"},{"v":352042.94000000006,"d":"$352,042.94"},{"v":10306.06,"d":"$10,306.06"},{"v":609996.0299999999,"d":"$609,996.03"},{"v":19429069.584,"d":"$19,429,069.58"}]
["04101205025","ROCKFORD SCHOOL DIST 205",25548.12,{"v":406606154.87,"d":"$406,606,154.87"},{"v":326864525.65999997,"d":"$326,864,525.66"},{"v":0.8038848446957351,"d":"80%"},2,{"v":2920485.31,"d":"$2,920,485.31"},{"v":176993641.38,"d":"$176,993,641.38"},{"v":179914126.69,"d":"$179,914,126.69"},{"v":0.91537,"d":"0.92"},{"v":87105979.81,"d":"$87,105,979.81"},{"v":20950312.76,"d":"$20,950,312.76"},{"v":8519693.09,"d":"$8,519,693.09"},{"v":3473467.78,"d":"$3,473,467.78"},{"v":3402828.38,"d":"$3,402,828.38"},{"v":5852505.51,"d":"$5,852,505.51"},{"v":1906349.69,"d":"$1,906,349.69"},{"v":3202512.18,"d":"$3,202,512.18"},{"v":3869351.37,"d":"$3,869,351.37"},{"v":2315085.42,"d":"$2,315,085.42"},{"v":5740303.57,"d":"$5,740,303.57"},{"v":4942414.45,"d":"$4,942,414.45"},{"v":3842863.66,"d":"$3,842,863.66"},{"v":155123667.67,"d":"$155,123,667.67"},{"v":2282291.1,"d":"$2,282,291.10"},{"v":3193515,"d":"$3,193,515.00"},{"v":8303139,"d":"$8,303,139.00"},{"v":868636.08,"d":"$868,636.08"},{"v":14587976.520000001,"d":"$14,587,976.52"},{"v":9519342.61,"d":"$9,519,342.61"},{"v":34770991.32,"d":"$34,770,991.32"},{"v":23938588.44,"d":"$23,938,588.44"},{"v":81470891.38668,"d":"$81,470,891.39"},{"v":178935371.45668,"d":"$178,935,371.46"},{"v":24318744.46,"d":"$24,318,744.46"},{"v":154616626.99668002,"d":"$154,616,627.00"},{"v":176877276.10668004,"d":"$176,877,276.11"},{"v":9630977.8,"d":"$9,630,977.80"},{"v":9630977.8,"d":"$9,630,977.80"},{"v":10032352.44,"d":"$10,032,352.44"},{"v":10032352.44,"d":"$10,032,352.44"},{"v":3056622.26,"d":"$3,056,622.26"},{"v":3056622.26,"d":"$3,056,622.26"},{"v":3183478.13,"d":"$3,183,478.13"},{"v":3183478.13,"d":"$3,183,478.13"},{"v":3820442.23,"d":"$3,820,442.23"},{"v":12161383.15,"d":"$12,161,383.15"},{"v":4926251.65,"d":"$4,926,251.65"},{"v":1890272.64,"d":"$1,890,272.64"},{"v":74605210.93,"d":"$74,605,210.93"},{"v":406606154.87,"d":"$406,606,154.87"},{"v":57561471.62,"d":"$57,561,471.62"},{"v":3567768.57,"d":"$3,567,768.57"},{"v":12806818.049999999,"d":"$12,806,818.05"},{"v":406606154.70668,"d":"$406,606,154.71"}]
["04101207016","HONONEGAH COMM H S DIST 207",1904.49,{"v":26350014.92,"d":"$26,350,014.92"},{"v":19711537.98,"d":"$19,711,537.98"},{"v":0.7480655339226654,"d":"75%"},1,{"v":433637.71,"d":"$433,637.71"},{"v":6752727.09,"d":"$6,752,727.09"},{"v":7186364.8,"d":"$7,186,364.80"},{"v":0.91537,"d":"0.92"},{"v":5836671.44,"d":"$5,836,671.44"},{"v":1945362.58,"d":"$1,945,362.58"},{"v":698932.22,"d":"$698,932.22"},{"v":232732.68,"d":"$232,732.68"},{"v":185398.24,"d":"$185,398.24"},{"v":596704.62,"d":"$596,704.62"},{"v":141646.54,"d":"$141,646.54"},{"v":258832.8,"d":"$258,832.80"},{"v":233635.12,"d":"$233,635.12"},{"v":172373.94,"d":"$172,373.94"},{"v":346604.99,"d":"$346,604.99"},{"v":298427.69,"d":"$298,427.69"},{"v":310587.16,"d":"$310,587.16"},{"v":11257910.019999998,"d":"$11,257,910.02"},{"v":171404.1,"d":"$171,404.10"},{"v":238061.25,"d":"$238,061.25"},{"v":618959.25,"d":"$618,959.25"},{"v":64752.66,"d":"$64,752.66"},{"v":1087463.79,"d":"$1,087,463.79"},{"v":1635956.91,"d":"$1,635,956.91"},{"v":2592010.89,"d":"$2,592,010.89"},{"v":1784507.1300000001,"d":"$1,784,507.13"},{"v":4883536.695359999,"d":"$4,883,536.70"},{"v":13076652.675359998,"d":"$13,076,652.68"},{"v":1812845.94,"d":"$1,812,845.94"},{"v":11263806.73536,"d":"$11,263,806.74"},{"v":12923231.51536,"d":"$12,923,231.52"},{"v":178537.88,"d":"$178,537.88"},{"v":178537.88,"d":"$178,537.88"},{"v":185921.02,"d":"$185,921.02"},{"v":185921.02,"d":"$185,921.02"},{"v":4698.36,"d":"$4,698.36"},{"v":4698.36,"d":"$4,698.36"},{"v":5369.56,"d":"$5,369.56"},{"v":5369.56,"d":"$5,369.56"},{"v":6040.75,"d":"$6,040.75"},{"v":906113.32,"d":"$906,113.32"},{"v":367042.31,"d":"$367,042.31"},{"v":140623.25,"d":"$140,623.25"},{"v":2168873.27,"d":"$2,168,873.27"},{"v":26350014.92,"d":"$26,350,014.92"},{"v":251397.79,"d":"$251,397.79"},{"v":2217.9700000000003,"d":"$2,217.97"},{"v":691572.03,"d":"$691,572.03"},{"v":26350014.805359997,"d":"$26,350,014.81"}]
["04101320026","SOUTH BELOIT C U SCH DIST 320",862.7,{"v":12628384.51,"d":"$12,628,384.51"},{"v":10316602.51,"d":"$10,316,602.51"},{"v":0.8169376298156446,"d":"82%"},2,{"v":77069.56,"d":"$77,069.56"},{"v":5328098.56,"d":"$5,328,098.56"},{"v":5405168.119999999,"d":"$5,405,168.12"},{"v":0.91537,"d":"0.92"},{"v":2801239.1,"d":"$2,801,239.10"},{"v":668095.26,"d":"$668,095.26"},{"v":286074.19,"d":"$286,074.19"},{"v":116816.05,"d":"$116,816.05"},{"v":102518.66,"d":"$102,518.66"},{"v":197135.21,"d":"$197,135.21"},{"v":63265.05,"d":"$63,265.05"},{"v":107393.86,"d":"$107,393.86"},{"v":130452.41,"d":"$130,452.41"},{"v":78030.47,"d":"$78,030.47"},{"v":193530.23,"d":"$193,530.23"},{"v":166629.97,"d":"$166,629.97"},{"v":128867.57,"d":"$128,867.57"},{"v":5040048.030000001,"d":"$5,040,048.03"},{"v":76878,"d":"$76,878.00"},{"v":107837.5,"d":"$107,837.50"},{"v":280377.5,"d":"$280,377.50"},{"v":29331.799999999996,"d":"$29,331.80"},{"v":492601.69999999995,"d":"$492,601.70"},{"v":313037.16,"d":"$313,037.16"},{"v":1174134.7,"d":"$1,174,134.70"},{"v":808349.8999999999,"d":"$808,349.90"},{"v":2484306.2928,"d":"$2,484,306.29"},{"v":5766854.5528,"d":"$5,766,854.55"},{"v":821186.87,"d":"$821,186.87"},{"v":4945667.6828,"d":"$4,945,667.68"},{"v":5697357.5028,"d":"$5,697,357.50"},{"v":241630.21,"d":"$241,630.21"},{"v":241630.21,"d":"$241,630.21"},{"v":251698.14,"d":"$251,698.14"},{"v":251698.14,"d":"$251,698.14"},{"v":49668.43,"d":"$49,668.43"},{"v":49668.43,"d":"$49,668.43"},{"v":51682.01,"d":"$51,682.01"},{"v":51682.01,"d":"$51,682.01"},{"v":61749.94,"d":"$61,749.94"},{"v":410100.17,"d":"$410,100.17"},{"v":166120.63,"d":"$166,120.63"},{"v":63650.52,"d":"$63,650.52"},{"v":1890978.8399999999,"d":"$1,890,978.84"},{"v":12628384.51,"d":"$12,628,384.51"},{"v":1152749.59,"d":"$1,152,749.59"},{"v":27173.210000000003,"d":"$27,173.21"},{"v":381688.26,"d":"$381,688.26"},{"v":12628384.3728,"d":"$12,628,384.37"}]
["04101321026","PECATONICA C U SCH DIST 321",882.75,{"v":11560585.74,"d":"$11,560,585.74"},{"v":8150185.39,"d":"$8,150,185.39"},{"v":0.7049976163232019,"d":"70%"},1,{"v":360738.09,"d":"$360,738.09"},{"v":3240660.3999999994,"d":"$3,240,660.40"},{"v":3601398.4899999993,"d":"$3,601,398.49"},{"v":0.91537,"d":"0.92"},{"v":2663280.44,"d":"$2,663,280.44"},{"v":652149.48,"d":"$652,149.48"},{"v":294662.07,"d":"$294,662.07"},{"v":118859.54,"d":"$118,859.54"},{"v":88555.37,"d":"$88,555.37"},{"v":207809.43,"d":"$207,809.43"},{"v":65504.52,"d":"$65,504.52"},{"v":110656.46,"d":"$110,656.46"},{"v":131926.45,"d":"$131,926.45"},{"v":79661.77,"d":"$79,661.77"},{"v":195717.01,"d":"$195,717.01"},{"v":168512.79,"d":"$168,512.79"},{"v":132782.53,"d":"$132,782.53"},{"v":4910077.86,"d":"$4,910,077.86"},{"v":78750,"d":"$78,750.00"},{"v":110343.75,"d":"$110,343.75"},{"v":286893.75,"d":"$286,893.75"},{"v":30013.5,"d":"$30,013.50"},{"v":504050.25,"d":"$504,050.25"},{"v":349463,"d":"$349,463.00"},{"v":1201422.75,"d":"$1,201,422.75"},{"v":827136.75,"d":"$827,136.75"},{"v":2202842.433,"d":"$2,202,842.43"},{"v":5590916.183,"d":"$5,590,916.18"},{"v":840272.07,"d":"$840,272.07"},{"v":4750644.113,"d":"$4,750,644.11"},{"v":5519803.953,"d":"$5,519,803.95"},{"v":106720.01,"d":"$106,720.01"},{"v":106720.01,"d":"$106,720.01"},{"v":111418.37,"d":"$111,418.37"},{"v":111418.37,"d":"$111,418.37"},{"v":7383.14,"d":"$7,383.14"},{"v":7383.14,"d":"$7,383.14"},{"v":7383.14,"d":"$7,383.14"},{"v":7383.14,"d":"$7,383.14"},{"v":9396.73,"d":"$9,396.73"},{"v":420168.1,"d":"$420,168.10"},{"v":170198.88,"d":"$170,198.88"},{"v":65130.77,"d":"$65,130.77"},{"v":1130703.8,"d":"$1,130,703.80"},{"v":11560585.74,"d":"$11,560,585.74"},{"v":192289.58000000002,"d":"$192,289.58"},{"v":2947.79,"d":"$2,947.79"},{"v":345920.62000000005,"d":"$345,920.62"},{"v":11560585.613000002,"d":"$11,560,585.61"}]
["04101322026","DURAND C U SCH DIST 322",516.96,{"v":6722745.67,"d":"$6,722,745.67"},{"v":7090684.57,"d":"$7,090,684.57"},{"v":1.0547304506314903,"d":"105%"},4,{"v":428.22,"d":"$428.22"},{"v":2217334.36,"d":"$2,217,334.36"},{"v":2217762.58,"d":"$2,217,762.58"},{"v":0.91537,"d":"0.92"},{"v":1583902.27,"d":"$1,583,902.27"},{"v":390668.67,"d":"$390,668.67"},{"v":172482.4,"d":"$172,482.40"},{"v":68526.3,"d":"$68,526.30"},{"v":53004.94,"d":"$53,004.94"},{"v":120929.38,"d":"$120,929.38"},{"v":37511.13,"d":"$37,511.13"},{"v":64708.2,"d":"$64,708.20"},{"v":75912.98,"d":"$75,912.98"},{"v":46220.14,"d":"$46,220.14"},{"v":112619.28,"d":"$112,619.28"},{"v":96965.46,"d":"$96,965.46"},{"v":77646.79,"d":"$77,646.79"},{"v":2901097.9399999995,"d":"$2,901,097.94"},{"v":46323.899999999994,"d":"$46,323.90"},{"v":64620,"d":"$64,620.00"},{"v":168012,"d":"$168,012.00"},{"v":17576.64,"d":"$17,576.64"},{"v":147592.08000000002,"d":"$147,592.08"},{"v":209520.47,"d":"$209,520.47"},{"v":703582.5599999999,"d":"$703,582.56"},{"v":484391.5199999999,"d":"$484,391.52"},{"v":1313231.0594399997,"d":"$1,313,231.06"},{"v":3154850.22944,"d":"$3,154,850.23"},{"v":492083.88,"d":"$492,083.88"},{"v":2662766.34944,"d":"$2,662,766.35"},{"v":3113205.16944,"d":"$3,113,205.17"},{"v":74502.65,"d":"$74,502.65"},{"v":74502.65,"d":"$74,502.65"},{"v":77858.62,"d":"$77,858.62"},{"v":77858.62,"d":"$77,858.62"},{"v":4027.17,"d":"$4,027.17"},{"v":4027.17,"d":"$4,027.17"},{"v":4027.17,"d":"$4,027.17"},{"v":4027.17,"d":"$4,027.17"},{"v":4698.36,"d":"$4,698.36"},{"v":245657.38,"d":"$245,657.38"},{"v":99509.25,"d":"$99,509.25"},{"v":37746.24,"d":"$37,746.24"},{"v":708442.45,"d":"$708,442.45"},{"v":6722745.67,"d":"$6,722,745.67"},{"v":83175.51999999999,"d":"$83,175.52"},{"v":1.75,"d":"$1.75"},{"v":245662.18,"d":"$245,662.18"},{"v":6722745.559439999,"d":"$6,722,745.56"}]
["04101323026","WINNEBAGO C U SCH DIST 323",1268.77,{"v":16652315.38,"d":"$16,652,315.38"},{"v":13568777.71,"d":"$13,568,777.71"},{"v":0.8148282926647286,"d":"81%"},2,{"v":79520.07,"d":"$79,520.07"},{"v":4527268.26,"d":"$4,527,268.26"},{"v":4606788.33,"d":"$4,606,788.33"},{"v":0.91537,"d":"0.92"},{"v":3821568.02,"d":"$3,821,568.02"},{"v":941547.46,"d":"$941,547.46"},{"v":423832.71,"d":"$423,832.71"},{"v":170214.51,"d":"$170,214.51"},{"v":127500.44,"d":"$127,500.44"},{"v":298499.09,"d":"$298,499.09"},{"v":94057.78,"d":"$94,057.78"},{"v":159051.67,"d":"$159,051.67"},{"v":188676.94,"d":"$188,676.94"},{"v":114462.82,"d":"$114,462.82"},{"v":279908.13,"d":"$279,908.13"},{"v":241001.54,"d":"$241,001.54"},{"v":190854.5,"d":"$190,854.50"},{"v":7051175.610000001,"d":"$7,051,175.61"},{"v":113199.29999999999,"d":"$113,199.30"},{"v":158596.25,"d":"$158,596.25"},{"v":412350.2499999999,"d":"$412,350.25"},{"v":43138.17999999999,"d":"$43,138.18"},{"v":724467.67,"d":"$724,467.67"},{"v":508576.38999999996,"d":"$508,576.39"},{"v":1726795.9699999997,"d":"$1,726,795.97"},{"v":1188837.49,"d":"$1,188,837.49"},{"v":3173495.37228,"d":"$3,173,495.37"},{"v":8049456.87228,"d":"$8,049,456.87"},{"v":1207716.78,"d":"$1,207,716.78"},{"v":6841740.092279999,"d":"$6,841,740.09"},{"v":7947247.792279999,"d":"$7,947,247.79"},{"v":157730.83,"d":"$157,730.83"},{"v":157730.83,"d":"$157,730.83"},{"v":164442.78,"d":"$164,442.78"},{"v":164442.78,"d":"$164,442.78"},{"v":12752.7,"d":"$12,752.70"},{"v":12752.7,"d":"$12,752.70"},{"v":13423.9,"d":"$13,423.90"},{"v":13423.9,"d":"$13,423.90"},{"v":16108.68,"d":"$16,108.68"},{"v":603404.35,"d":"$603,404.35"},{"v":244422.99,"d":"$244,422.99"},{"v":93255.42,"d":"$93,255.42"},{"v":1653891.8599999999,"d":"$1,653,891.86"},{"v":16652315.38,"d":"$16,652,315.38"},{"v":233867.98,"d":"$233,867.98"},{"v":3119.48,"d":"$3,119.48"},{"v":468284.39,"d":"$468,284.39"},{"v":16652315.262279999,"d":"$16,652,315.26"}]
[null,"SAFE SCH-INTERMEDIATE SERVICE CEN",28.65,{"v":456816.14,"d":"$456,816.14"},{"v":454627.19,"d":"$454,627.19"},{"v":0.9952082472392503,"d":"100%"},3,{"v":519.13,"d":"$519.13"},{"v":408945.58,"d":"$408,945.58"},{"v":409464.71,"d":"$409,464.71"},{"v":1.05749,"d":"1.06"},{"v":101001.45,"d":"$101,001.45"},{"v":30714.83,"d":"$30,714.83"},{"v":10693.85,"d":"$10,693.85"},{"v":3281.89,"d":"$3,281.89"},{"v":3789.67,"d":"$3,789.67"},{"v":8836.25,"d":"$8,836.25"},{"v":1293.58,"d":"$1,293.58"},{"v":4083.24,"d":"$4,083.24"},{"v":3405.79,"d":"$3,405.79"},{"v":2826.86,"d":"$2,826.86"},{"v":5052.6,"d":"$5,052.60"},{"v":4350.3,"d":"$4,350.30"},{"v":4899.7,"d":"$4,899.70"},{"v":184230.01,"d":"$184,230.01"},{"v":2578.5,"d":"$2,578.50"},{"v":3581.25,"d":"$3,581.25"},{"v":9311.25,"d":"$9,311.25"},{"v":974.1,"d":"$974.10"},{"v":8179.570000000001,"d":"$8,179.57"},{"v":20346.449999999997,"d":"$20,346.45"},{"v":38992.649999999994,"d":"$38,992.65"},{"v":26845.050000000003,"d":"$26,845.05"},{"v":81655.63260000001,"d":"$81,655.63"},{"v":192464.45260000002,"d":"$192,464.45"},{"v":27271.36,"d":"$27,271.36"},{"v":165193.09260000003,"d":"$165,193.09"},{"v":194032.28260000004,"d":"$194,032.28"},{"v":4652.42,"d":"$4,652.42"},{"v":4652.42,"d":"$4,652.42"},{"v":5427.83,"d":"$5,427.83"},{"v":5427.83,"d":"$5,427.83"},{"v":6203.23,"d":"$6,203.23"},{"v":6203.23,"d":"$6,203.23"},{"v":6978.64,"d":"$6,978.64"},{"v":6978.64,"d":"$6,978.64"},{"v":8529.44,"d":"$8,529.44"},{"v":15508.09,"d":"$15,508.09"},{"v":6281.91,"d":"$6,281.91"},{"v":1710.06,"d":"$1,710.06"},{"v":78553.74,"d":"$78,553.74"},{"v":456816.14,"d":"$456,816.14"},{"v":427.54,"d":"$427.54"},{"v":138.63,"d":"$138.63"},{"v":317.72,"d":"$317.72"},{"v":456816.03260000004,"d":"$456,816.03"}]
[null,"Region 05 North Cook ISC 1 ALOP",270,{"v":4485501.41,"d":"$4,485,501.41"},{"v":534180.9400000001,"d":"$534,180.94"},{"v":0.11909057453623675,"d":"12%"},1,{"v":1091414.95,"d":"$1,091,414.95"},{"v":85630.8,"d":"$85,630.80"},{"v":1177045.75,"d":"$1,177,045.75"},{"v":1.05749,"d":"1.06"},{"v":911403.47,"d":"$911,403.47"},{"v":238697.48,"d":"$238,697.48"},{"v":105974.57,"d":"$105,974.57"},{"v":41187.3,"d":"$41,187.30"},{"v":37469.72,"d":"$37,469.72"},{"v":90148.42,"d":"$90,148.42"},{"v":22637.74,"d":"$22,637.74"},{"v":39576.05,"d":"$39,576.05"},{"v":45126.77,"d":"$45,126.77"},{"v":27954.51,"d":"$27,954.51"},{"v":66946.98,"d":"$66,946.98"},{"v":57641.5,"d":"$57,641.50"},{"v":47489.4,"d":"$47,489.40"},{"v":1732253.91,"d":"$1,732,253.91"},{"v":24300,"d":"$24,300.00"},{"v":33750,"d":"$33,750.00"},{"v":87750,"d":"$87,750.00"},{"v":9180,"d":"$9,180.00"},{"v":154170,"d":"$154,170.00"},{"v":137990,"d":"$137,990.00"},{"v":367470,"d":"$367,470.00"},{"v":252990,"d":"$252,990.00"},{"v":803859.9089999998,"d":"$803,859.91"},{"v":1871459.9089999998,"d":"$1,871,459.91"},{"v":257007.6,"d":"$257,007.60"},{"v":1614452.3089999997,"d":"$1,614,452.31"},{"v":1886235.2689999996,"d":"$1,886,235.27"},{"v":50401.29,"d":"$50,401.29"},{"v":50401.29,"d":"$50,401.29"},{"v":52727.5,"d":"$52,727.50"},{"v":52727.5,"d":"$52,727.50"},{"v":80642.07,"d":"$80,642.07"},{"v":80642.07,"d":"$80,642.07"},{"v":83743.69,"d":"$83,743.69"},{"v":83743.69,"d":"$83,743.69"},{"v":100802.59,"d":"$100,802.59"},{"v":148102.26,"d":"$148,102.26"},{"v":59992.27,"d":"$59,992.27"},{"v":23085.9,"d":"$23,085.90"},{"v":867012.1200000001,"d":"$867,012.12"},{"v":4485501.41,"d":"$4,485,501.41"},{"v":92480.98999999999,"d":"$92,480.99"},{"v":135775.38,"d":"$135,775.38"},{"v":74554.81,"d":"$74,554.81"},{"v":4485501.299,"d":"$4,485,501.30"}]
["05016015004","PALATINE C C SCHOOL DIST 15",10639.81,{"v":167394680.58,"d":"$167,394,680.58"},{"v":151392498.12,"d":"$151,392,498.12"},{"v":0.9044044744758041,"d":"90%"},3,{"v":190229.12,"d":"$190,229.12"},{"v":17608077.309999995,"d":"$17,608,077.31"},{"v":17798306.429999996,"d":"$17,798,306.43"},{"v":1.05749,"d":"1.06"},{"v":37956456.59,"d":"$37,956,456.59"},{"v":7591291.31,"d":"$7,591,291.31"},{"v":3922334.32,"d":"$3,922,334.32"},{"v":1743259.7,"d":"$1,743,259.70"},{"v":1477335.15,"d":"$1,477,335.15"},{"v":2425564.89,"d":"$2,425,564.89"},{"v":917151.91,"d":"$917,151.91"},{"v":1485044.37,"d":"$1,485,044.37"},{"v":2012824.6,"d":"$2,012,824.60"},{"v":1113783.28,"d":"$1,113,783.28"},{"v":2986088.14,"d":"$2,986,088.14"},{"v":2571028.69,"d":"$2,571,028.69"},{"v":1781983.25,"d":"$1,781,983.25"},{"v":67984146.2,"d":"$67,984,146.20"},{"v":946287.8999999999,"d":"$946,287.90"},{"v":1329976.25,"d":"$1,329,976.25"},{"v":3457938.25,"d":"$3,457,938.25"},{"v":361753.54,"d":"$361,753.54"},{"v":6075331.51,"d":"$6,075,331.51"},{"v":1794312.5899999999,"d":"$1,794,312.59"},{"v":14480781.41,"d":"$14,480,781.41"},{"v":9969501.969999999,"d":"$9,969,501.97"},{"v":30415535.514839992,"d":"$30,415,535.51"},{"v":68831418.93484,"d":"$68,831,418.93"},{"v":10127822.34,"d":"$10,127,822.34"},{"v":58703596.59483999,"d":"$58,703,596.59"},{"v":69413667.43484,"d":"$69,413,667.43"},{"v":2542551.49,"d":"$2,542,551.49"},{"v":2542551.49,"d":"$2,542,551.49"},{"v":2648006.51,"d":"$2,648,006.51"},{"v":2648006.51,"d":"$2,648,006.51"},{"v":1966425.91,"d":"$1,966,425.91"},{"v":1966425.91,"d":"$1,966,425.91"},{"v":2047843.39,"d":"$2,047,843.39"},{"v":2047843.39,"d":"$2,047,843.39"},{"v":2458032.39,"d":"$2,458,032.39"},{"v":5850427.27,"d":"$5,850,427.27"},{"v":2369851.9,"d":"$2,369,851.90"},{"v":908900.65,"d":"$908,900.65"},{"v":29996866.81,"d":"$29,996,866.81"},{"v":167394680.58,"d":"$167,394,680.58"},{"v":5370621.419999999,"d":"$5,370,621.42"},{"v":1455446.11,"d":"$1,455,446.11"},{"v":4413461.949999999,"d":"$4,413,461.95"},{"v":167394680.44484,"d":"$167,394,680.44"}]
["05016021004","WHEELING C C SCHOOL DIST 21",5756.5,{"v":100751953.44,"d":"$100,751,953.44"},{"v":91882957.84,"d":"$91,882,957.84"},{"v":0.9119719737713902,"d":"91%"},3,{"v":114495.61,"d":"$114,495.61"},{"v":13432736.430000002,"d":"$13,432,736.43"},{"v":13547232.040000001,"d":"$13,547,232.04"},{"v":1.05749,"d":"1.06"},{"v":21596804.94,"d":"$21,596,804.94"},{"v":4319360.98,"d":"$4,319,360.98"},{"v":2122293.32,"d":"$2,122,293.32"},{"v":942422.12,"d":"$942,422.12"},{"v":921695.46,"d":"$921,695.46"},{"v":1281925.35,"d":"$1,281,925.35"},{"v":496089.93,"d":"$496,089.93"},{"v":803142.65,"d":"$803,142.65"},{"v":1088151.37,"d":"$1,088,151.37"},{"v":602435.51,"d":"$602,435.51"},{"v":1614306.53,"d":"$1,614,306.53"},{"v":1389921.6,"d":"$1,389,921.60"},{"v":963733.32,"d":"$963,733.32"},{"v":38142283.080000006,"d":"$38,142,283.08"},{"v":511560,"d":"$511,560.00"},{"v":719562.5,"d":"$719,562.50"},{"v":1870862.5,"d":"$1,870,862.50"},{"v":195721,"d":"$195,721.00"},{"v":3286961.5,"d":"$3,286,961.50"},{"v":944178,"d":"$944,178.00"},{"v":7834596.5,"d":"$7,834,596.50"},{"v":5393840.5,"d":"$5,393,840.50"},{"v":18685766.972999997,"d":"$18,685,766.97"},{"v":39443049.473,"d":"$39,443,049.47"},{"v":5479497.22,"d":"$5,479,497.22"},{"v":33963552.253,"d":"$33,963,552.25"},{"v":39758065.763,"d":"$39,758,065.76"},{"v":1927655.69,"d":"$1,927,655.69"},{"v":1927655.69,"d":"$1,927,655.69"},{"v":2008297.76,"d":"$2,008,297.76"},{"v":2008297.76,"d":"$2,008,297.76"},{"v":1882682.22,"d":"$1,882,682.22"},{"v":1882682.22,"d":"$1,882,682.22"},{"v":1960998.08,"d":"$1,960,998.08"},{"v":1960998.08,"d":"$1,960,998.08"},{"v":2353352.78,"d":"$2,353,352.78"},{"v":3165201.34,"d":"$3,165,201.34"},{"v":1282138.56,"d":"$1,282,138.56"},{"v":491644.28,"d":"$491,644.28"},{"v":22851604.46,"d":"$22,851,604.46"},{"v":100751953.44,"d":"$100,751,953.44"},{"v":5794096.13,"d":"$5,794,096.13"},{"v":1594073.83,"d":"$1,594,073.83"},{"v":2396048.98,"d":"$2,396,048.98"},{"v":100751953.303,"d":"$100,751,953.30"}]
["05016023002","PROSPECT HEIGHTS SCHOOL DIST 23",1370.89,{"v":21169114.75,"d":"$21,169,114.75"},{"v":20923023.76,"d":"$20,923,023.76"},{"v":0.9883749985341264,"d":"99%"},3,{"v":24056.81,"d":"$24,056.81"},{"v":1880202.4800000002,"d":"$1,880,202.48"},{"v":1904259.2900000003,"d":"$1,904,259.29"},{"v":1.05749,"d":"1.06"},{"v":4838946.77,"d":"$4,838,946.77"},{"v":967789.35,"d":"$967,789.35"},{"v":504394.93,"d":"$504,394.93"},{"v":223438.1,"d":"$223,438.10"},{"v":190184.59,"d":"$190,184.59"},{"v":312335.19,"d":"$312,335.19"},{"v":117716.25,"d":"$117,716.25"},{"v":190970.17,"d":"$190,970.17"},{"v":257988.94,"d":"$257,988.94"},{"v":143227.62,"d":"$143,227.62"},{"v":382734.64,"d":"$382,734.64"},{"v":329535.4,"d":"$329,535.40"},{"v":229155.2,"d":"$229,155.20"},{"v":8688417.149999999,"d":"$8,688,417.15"},{"v":121752.9,"d":"$121,752.90"},{"v":171361.25,"d":"$171,361.25"},{"v":445539.24999999994,"d":"$445,539.25"},{"v":46610.259999999995,"d":"$46,610.26"},{"v":391389.08999999997,"d":"$391,389.09"},{"v":231989.09000000003,"d":"$231,989.09"},{"v":1865781.2899999998,"d":"$1,865,781.29"},{"v":1284523.93,"d":"$1,284,523.93"},{"v":3917135.12496,"d":"$3,917,135.12"},{"v":8476082.18496,"d":"$8,476,082.18"},{"v":1304922.77,"d":"$1,304,922.77"},{"v":7171159.414960001,"d":"$7,171,159.41"},{"v":8551102.19496,"d":"$8,551,102.19"},{"v":297755.34,"d":"$297,755.34"},{"v":297755.34,"d":"$297,755.34"},{"v":310161.81,"d":"$310,161.81"},{"v":310161.81,"d":"$310,161.81"},{"v":288450.48,"d":"$288,450.48"},{"v":288450.48,"d":"$288,450.48"},{"v":300081.55,"d":"$300,081.55"},{"v":300081.55,"d":"$300,081.55"},{"v":360563.11,"d":"$360,563.11"},{"v":753693.21,"d":"$753,693.21"},{"v":305301,"d":"$305,301.00"},{"v":117139.59,"d":"$117,139.59"},{"v":3929595.2699999996,"d":"$3,929,595.27"},{"v":21169114.75,"d":"$21,169,114.75"},{"v":418517.30000000005,"d":"$418,517.30"},{"v":148563.26,"d":"$148,563.26"},{"v":614892.6400000001,"d":"$614,892.64"},{"v":21169114.614959996,"d":"$21,169,114.61"}]
["05016025002","ARLINGTON HEIGHTS SCH DIST 25",5088.8,{"v":68204512.2,"d":"$68,204,512.20"},{"v":72531167.67999999,"d":"$72,531,167.68"},{"v":1.063436499147046,"d":"106%"},4,{"v":4344.52,"d":"$4,344.52"},{"v":5058580.829999999,"d":"$5,058,580.83"},{"v":5062925.349999999,"d":"$5,062,925.35"},{"v":1.05749,"d":"1.06"},{"v":16962123.37,"d":"$16,962,123.37"},{"v":3392424.67,"d":"$3,392,424.67"},{"v":1875257.79,"d":"$1,875,257.79"},{"v":833284.03,"d":"$833,284.03"},{"v":583052.25,"d":"$583,052.25"},{"v":1153971.24,"d":"$1,153,971.24"},{"v":437878.59,"d":"$437,878.59"},{"v":710170.33,"d":"$710,170.33"},{"v":962136.97,"d":"$962,136.97"},{"v":532392.17,"d":"$532,392.17"},{"v":1427360.24,"d":"$1,427,360.24"},{"v":1228960.41,"d":"$1,228,960.41"},{"v":852170.92,"d":"$852,170.92"},{"v":30951182.979999997,"d":"$30,951,182.98"},{"v":454130.1,"d":"$454,130.10"},{"v":636100,"d":"$636,100.00"},{"v":1653860,"d":"$1,653,860.00"},{"v":173019.2,"d":"$173,019.20"},{"v":1452852.3900000001,"d":"$1,452,852.39"},{"v":855775.1699999999,"d":"$855,775.17"},{"v":6925856.8,"d":"$6,925,856.80"},{"v":4768205.6,"d":"$4,768,205.60"},{"v":12275358.4122,"d":"$12,275,358.41"},{"v":29195157.672199998,"d":"$29,195,157.67"},{"v":4843926.94,"d":"$4,843,926.94"},{"v":24351230.732199997,"d":"$24,351,230.73"},{"v":29473635.022199996,"d":"$29,473,635.02"},{"v":398557.93,"d":"$398,557.93"},{"v":398557.93,"d":"$398,557.93"},{"v":414841.43,"d":"$414,841.43"},{"v":414841.43,"d":"$414,841.43"},{"v":334974.76,"d":"$334,974.76"},{"v":334974.76,"d":"$334,974.76"},{"v":348932.04,"d":"$348,932.04"},{"v":348932.04,"d":"$348,932.04"},{"v":418718.45,"d":"$418,718.45"},{"v":2798434.99,"d":"$2,798,434.99"},{"v":1133571.3,"d":"$1,133,571.30"},{"v":434357.03,"d":"$434,357.03"},{"v":7779694.090000001,"d":"$7,779,694.09"},{"v":68204512.2,"d":"$68,204,512.20"},{"v":282039.13,"d":"$282,039.13"},{"v":152252.4,"d":"$152,252.40"},{"v":2095965.9099999997,"d":"$2,095,965.91"},{"v":68204512.0922,"d":"$68,204,512.09"}]
["05016026002","RIVER TRAILS SCHOOL DIST 26",1491.48,{"v":21754398.78,"d":"$21,754,398.78"},{"v":25551721.53,"d":"$25,551,721.53"},{"v":1.174554249391212,"d":"117%"},4,{"v":1385.72,"d":"$1,385.72"},{"v":1523718.0899999996,"d":"$1,523,718.09"},{"v":1525103.8099999996,"d":"$1,525,103.81"},{"v":1.05749,"d":"1.06"},{"v":5228304.26,"d":"$5,228,304.26"},{"v":1045660.85,"d":"$1,045,660.85"},{"v":548640.1,"d":"$548,640.10"},{"v":243348.43,"d":"$243,348.43"},{"v":192308.17,"d":"$192,308.17"},{"v":332998.58,"d":"$332,998.58"},{"v":127418.14,"d":"$127,418.14"},{"v":207617.24,"d":"$207,617.24"},{"v":280978.05,"d":"$280,978.05"},{"v":155791.45,"d":"$155,791.45"},{"v":416839.71,"d":"$416,839.71"},{"v":358899.94,"d":"$358,899.94"},{"v":249130.9,"d":"$249,130.90"},{"v":9387935.819999998,"d":"$9,387,935.82"},{"v":132853.5,"d":"$132,853.50"},{"v":186435,"d":"$186,435.00"},{"v":484731,"d":"$484,731.00"},{"v":50710.32000000001,"d":"$50,710.32"},{"v":425817.54,"d":"$425,817.54"},{"v":246724.59,"d":"$246,724.59"},{"v":2029904.28,"d":"$2,029,904.28"},{"v":1397516.76,"d":"$1,397,516.76"},{"v":3983920.5307199997,"d":"$3,983,920.53"},{"v":8938613.52072,"d":"$8,938,613.52"},{"v":1419709.98,"d":"$1,419,709.98"},{"v":7518903.540720001,"d":"$7,518,903.54"},{"v":9020232.64072,"d":"$9,020,232.64"},{"v":261311.33,"d":"$261,311.33"},{"v":261311.33,"d":"$261,311.33"},{"v":272166.99,"d":"$272,166.99"},{"v":272166.99,"d":"$272,166.99"},{"v":187647.89,"d":"$187,647.89"},{"v":187647.89,"d":"$187,647.89"},{"v":195401.94,"d":"$195,401.94"},{"v":195401.94,"d":"$195,401.94"},{"v":234172.17,"d":"$234,172.17"},{"v":819602.6,"d":"$819,602.60"},{"v":331999.13,"d":"$331,999.13"},{"v":127399.99,"d":"$127,399.99"},{"v":3346230.19,"d":"$3,346,230.19"},{"v":21754398.78,"d":"$21,754,398.78"},{"v":330775.59,"d":"$330,775.59"},{"v":83854.39,"d":"$83,854.39"},{"v":524127.84,"d":"$524,127.84"},{"v":21754398.65072,"d":"$21,754,398.65"}]
["05016027002","NORTHBROOK ELEM SCHOOL DIST 27",1353.31,{"v":17522324.19,"d":"$17,522,324.19"},{"v":30266526.61,"d":"$30,266,526.61"},{"v":1.727312329221321,"d":"173%"},4,{"v":1116.14,"d":"$1,116.14"},{"v":791396.7899999999,"d":"$791,396.79"},{"v":792512.9299999999,"d":"$792,512.93"},{"v":1.05749,"d":"1.06"},{"v":4467287.34,"d":"$4,467,287.34"},{"v":893457.45,"d":"$893,457.45"},{"v":498495.58,"d":"$498,495.58"},{"v":221225.85,"d":"$221,225.85"},{"v":147847.84,"d":"$147,847.84"},{"v":307566.71,"d":"$307,566.71"},{"v":116422.66,"d":"$116,422.66"},{"v":188771.5,"d":"$188,771.50"},{"v":255434.59,"d":"$255,434.59"},{"v":141343.05,"d":"$141,343.05"},{"v":378945.19,"d":"$378,945.19"},{"v":326272.67,"d":"$326,272.67"},{"v":226516.9,"d":"$226,516.90"},{"v":8169587.33,"d":"$8,169,587.33"},{"v":120935.7,"d":"$120,935.70"},{"v":169163.75,"d":"$169,163.75"},{"v":439825.75,"d":"$439,825.75"},{"v":46012.54,"d":"$46,012.54"},{"v":386370,"d":"$386,370.00"},{"v":228806.84999999998,"d":"$228,806.85"},{"v":1841854.9100000001,"d":"$1,841,854.91"},{"v":1268051.47,"d":"$1,268,051.47"},{"v":3129668.160839999,"d":"$3,129,668.16"},{"v":7630689.130839999,"d":"$7,630,689.13"},{"v":1288188.72,"d":"$1,288,188.72"},{"v":6342500.410839999,"d":"$6,342,500.41"},{"v":7704747.090839999,"d":"$7,704,747.09"},{"v":63583.17,"d":"$63,583.17"},{"v":63583.17,"d":"$63,583.17"},{"v":66684.79,"d":"$66,684.79"},{"v":66684.79,"d":"$66,684.79"},{"v":42647.24,"d":"$42,647.24"},{"v":42647.24,"d":"$42,647.24"},{"v":44198.05,"d":"$44,198.05"},{"v":44198.05,"d":"$44,198.05"},{"v":53502.91,"d":"$53,502.91"},{"v":743612.95,"d":"$743,612.95"},{"v":301217.75,"d":"$301,217.75"},{"v":115429.52,"d":"$115,429.52"},{"v":1647989.63,"d":"$1,647,989.63"},{"v":17522324.19,"d":"$17,522,324.19"},{"v":33245.69999999999,"d":"$33,245.70"},{"v":14961.519999999999,"d":"$14,961.52"},{"v":475677.74999999994,"d":"$475,677.75"},{"v":17522324.050839998,"d":"$17,522,324.05"}]
["05016028002","NORTHBROOK SCHOOL DIST 28",1777.75,{"v":23048225.91,"d":"$23,048,225.91"},{"v":44037818.88,"d":"$44,037,818.88"},{"v":1.9106815011255676,"d":"191%"},4,{"v":1468.13,"d":"$1,468.13"},{"v":1056245.46,"d":"$1,056,245.46"},{"v":1057713.5899999999,"d":"$1,057,713.59"},{"v":1.05749,"d":"1.06"},{"v":5849211.48,"d":"$5,849,211.48"},{"v":1169842.29,"d":"$1,169,842.29"},{"v":654828.51,"d":"$654,828.51"},{"v":291280.7,"d":"$291,280.70"},{"v":194529.67,"d":"$194,529.67"},{"v":402936.23,"d":"$402,936.23"},{"v":153289.84,"d":"$153,289.84"},{"v":248135.58,"d":"$248,135.58"},{"v":336322.21,"d":"$336,322.21"},{"v":185944.64,"d":"$185,944.64"},{"v":498944.5,"d":"$498,944.50"},{"v":429592.35,"d":"$429,592.35"},{"v":297751,"d":"$297,751.00"},{"v":10712609.000000002,"d":"$10,712,609.00"},{"v":158242.5,"d":"$158,242.50"},{"v":222218.75,"d":"$222,218.75"},{"v":577768.75,"d":"$577,768.75"},{"v":60443.5,"d":"$60,443.50"},{"v":507547.62,"d":"$507,547.62"},{"v":297901.25,"d":"$297,901.25"},{"v":2419517.75,"d":"$2,419,517.75"},{"v":1665751.75,"d":"$1,665,751.75"},{"v":4118595.873,"d":"$4,118,595.87"},{"v":10027987.743,"d":"$10,027,987.74"},{"v":1692204.67,"d":"$1,692,204.67"},{"v":8335783.072999999,"d":"$8,335,783.07"},{"v":10125272.582999999,"d":"$10,125,272.58"},{"v":73663.43,"d":"$73,663.43"},{"v":73663.43,"d":"$73,663.43"},{"v":76765.04,"d":"$76,765.04"},{"v":76765.04,"d":"$76,765.04"},{"v":72112.62,"d":"$72,112.62"},{"v":72112.62,"d":"$72,112.62"},{"v":75214.24,"d":"$75,214.24"},{"v":75214.24,"d":"$75,214.24"},{"v":90722.33,"d":"$90,722.33"},{"v":977009.72,"d":"$977,009.72"},{"v":395760.55,"d":"$395,760.55"},{"v":151340.93,"d":"$151,340.93"},{"v":2210344.19,"d":"$2,210,344.19"},{"v":23048225.91,"d":"$23,048,225.91"},{"v":47979.68,"d":"$47,979.68"},{"v":24899.879999999997,"d":"$24,899.88"},{"v":609917.1000000001,"d":"$609,917.10"},{"v":23048225.773000002,"d":"$23,048,225.77"}]
["05016029002","SUNSET RIDGE SCHOOL DIST 29",487,{"v":6170365.68,"d":"$6,170,365.68"},{"v":14794472.72,"d":"$14,794,472.72"},{"v":2.3976654686695977,"d":"240%"},4,{"v":393.04,"d":"$393.04"},{"v":370262.88000000006,"d":"$370,262.88"},{"v":370655.92000000004,"d":"$370,655.92"},{"v":1.05749,"d":"1.06"},{"v":1612736.45,"d":"$1,612,736.45"},{"v":322547.28,"d":"$322,547.28"},{"v":179192.93,"d":"$179,192.93"},{"v":78903.88,"d":"$78,903.88"},{"v":51879.07,"d":"$51,879.07"},{"v":106495.96,"d":"$106,495.96"},{"v":41394.72,"d":"$41,394.72"},{"v":67530.57,"d":"$67,530.57"},{"v":91105,"d":"$91,105.00"},{"v":50883.5,"d":"$50,883.50"},{"v":135157.12,"d":"$135,157.12"},{"v":116370.58,"d":"$116,370.58"},{"v":81033.5,"d":"$81,033.50"},{"v":2935230.56,"d":"$2,935,230.56"},{"v":43605,"d":"$43,605.00"},{"v":60875,"d":"$60,875.00"},{"v":158275,"d":"$158,275.00"},{"v":16558,"d":"$16,558.00"},{"v":139038.5,"d":"$139,038.50"},{"v":79224.5,"d":"$79,224.50"},{"v":662807,"d":"$662,807.00"},{"v":456319,"d":"$456,319.00"},{"v":1097323.038,"d":"$1,097,323.04"},{"v":2714025.0379999997,"d":"$2,714,025.04"},{"v":463565.56,"d":"$463,565.56"},{"v":2250459.4779999997,"d":"$2,250,459.48"},{"v":2740675.4179999996,"d":"$2,740,675.42"},{"v":6203.23,"d":"$6,203.23"},{"v":6203.23,"d":"$6,203.23"},{"v":6203.23,"d":"$6,203.23"},{"v":6203.23,"d":"$6,203.23"},{"v":10080.25,"d":"$10,080.25"},{"v":10080.25,"d":"$10,080.25"},{"v":10080.25,"d":"$10,080.25"},{"v":10080.25,"d":"$10,080.25"},{"v":12406.47,"d":"$12,406.47"},{"v":267514.56,"d":"$267,514.56"},{"v":108363,"d":"$108,363.00"},{"v":41041.6,"d":"$41,041.60"},{"v":494459.55,"d":"$494,459.55"},{"v":6170365.68,"d":"$6,170,365.68"},{"v":11517.880000000001,"d":"$11,517.88"},{"v":1577.62,"d":"$1,577.62"},{"v":254060.88,"d":"$254,060.88"},{"v":6170365.528,"d":"$6,170,365.53"}]
["05016030002","NORTHBROOK/GLENVIEW SCH DIST 30",1230.75,{"v":16010397.45,"d":"$16,010,397.45"},{"v":26840253.290000003,"d":"$26,840,253.29"},{"v":1.6764264206320503,"d":"168%"},4,{"v":1019.83,"d":"$1,019.83"},{"v":711513.6,"d":"$711,513.60"},{"v":712533.4299999999,"d":"$712,533.43"},{"v":1.05749,"d":"1.06"},{"v":4064656.29,"d":"$4,064,656.29"},{"v":812931.25,"d":"$812,931.25"},{"v":452775.57,"d":"$452,775.57"},{"v":200578.1,"d":"$200,578.10"},{"v":135529.07,"d":"$135,529.07"},{"v":274982.12,"d":"$274,982.12"},{"v":106073.98,"d":"$106,073.98"},{"v":171496.24,"d":"$171,496.24"},{"v":231594.03,"d":"$231,594.03"},{"v":128465.13,"d":"$128,465.13"},{"v":343576.97,"d":"$343,576.97"},{"v":295820.56,"d":"$295,820.56"},{"v":205787.4,"d":"$205,787.40"},{"v":7424266.710000001,"d":"$7,424,266.71"},{"v":109890,"d":"$109,890.00"},{"v":153843.75,"d":"$153,843.75"},{"v":399993.75,"d":"$399,993.75"},{"v":41845.5,"d":"$41,845.50"},{"v":351379.12,"d":"$351,379.12"},{"v":203837,"d":"$203,837.00"},{"v":1675050.75,"d":"$1,675,050.75"},{"v":1153212.75,"d":"$1,153,212.75"},{"v":2863522.1040000003,"d":"$2,863,522.10"},{"v":6952574.724,"d":"$6,952,574.72"},{"v":1171526.31,"d":"$1,171,526.31"},{"v":5781048.414000001,"d":"$5,781,048.41"},{"v":7019925.764,"d":"$7,019,925.76"},{"v":51176.69,"d":"$51,176.69"},{"v":51176.69,"d":"$51,176.69"},{"v":53502.91,"d":"$53,502.91"},{"v":53502.91,"d":"$53,502.91"},{"v":56604.53,"d":"$56,604.53"},{"v":56604.53,"d":"$56,604.53"},{"v":58930.74,"d":"$58,930.74"},{"v":58930.74,"d":"$58,930.74"},{"v":70561.81,"d":"$70,561.81"},{"v":676152.76,"d":"$676,152.76"},{"v":273891.43,"d":"$273,891.43"},{"v":105169.12,"d":"$105,169.12"},{"v":1566204.8599999999,"d":"$1,566,204.86"},{"v":16010397.45,"d":"$16,010,397.45"},{"v":39983.240000000005,"d":"$39,983.24"},{"v":19440.510000000002,"d":"$19,440.51"},{"v":413335.88000000006,"d":"$413,335.88"},{"v":16010397.334,"d":"$16,010,397.33"}]
["05016031002","WEST NORTHFIELD SCHOOL DIST 31",907,{"v":13603004.57,"d":"$13,603,004.57"},{"v":20517661.040000003,"d":"$20,517,661.04"},{"v":1.5083183229423853,"d":"151%"},4,{"v":866.48,"d":"$866.48"},{"v":808369.7800000001,"d":"$808,369.78"},{"v":809236.2600000001,"d":"$809,236.26"},{"v":1.05749,"d":"1.06"},{"v":3240221.29,"d":"$3,240,221.29"},{"v":648044.25,"d":"$648,044.25"},{"v":334051.03,"d":"$334,051.03"},{"v":147483.9,"d":"$147,483.90"},{"v":121517.55,"d":"$121,517.55"},{"v":202660.23,"d":"$202,660.23"},{"v":77615.11,"d":"$77,615.11"},{"v":126266.46,"d":"$126,266.46"},{"v":170289.72,"d":"$170,289.72"},{"v":94856.89,"d":"$94,856.89"},{"v":252630.13,"d":"$252,630.13"},{"v":217515.11,"d":"$217,515.11"},{"v":151513.8,"d":"$151,513.80"},{"v":5784665.470000001,"d":"$5,784,665.47"},{"v":80910,"d":"$80,910.00"},{"v":113375,"d":"$113,375.00"},{"v":294775,"d":"$294,775.00"},{"v":30838,"d":"$30,838.00"},{"v":258948.5,"d":"$258,948.50"},{"v":150691,"d":"$150,691.00"},{"v":1234427,"d":"$1,234,427.00"},{"v":849859,"d":"$849,859.00"},{"v":2504110.974,"d":"$2,504,110.97"},{"v":5517934.473999999,"d":"$5,517,934.47"},{"v":863355.16,"d":"$863,355.16"},{"v":4654579.313999999,"d":"$4,654,579.31"},{"v":5567568.753999999,"d":"$5,567,568.75"},{"v":186097.09,"d":"$186,097.09"},{"v":186097.09,"d":"$186,097.09"},{"v":193851.13,"d":"$193,851.13"},{"v":193851.13,"d":"$193,851.13"},{"v":133369.58,"d":"$133,369.58"},{"v":133369.58,"d":"$133,369.58"},{"v":139572.81,"d":"$139,572.81"},{"v":139572.81,"d":"$139,572.81"},{"v":167487.38,"d":"$167,487.38"},{"v":498585.12,"d":"$498,585.12"},{"v":201963.52,"d":"$201,963.52"},{"v":76953.01,"d":"$76,953.01"},{"v":2250770.25,"d":"$2,250,770.25"},{"v":13603004.57,"d":"$13,603,004.57"},{"v":225920.18,"d":"$225,920.18"},{"v":58352.81,"d":"$58,352.81"},{"v":336411.8599999999,"d":"$336,411.86"},{"v":13603004.474,"d":"$13,603,004.47"}]
["05016034004","GLENVIEW C C SCHOOL DIST 34",4307.8,{"v":60371933.49,"d":"$60,371,933.49"},{"v":66634411.87,"d":"$66,634,411.87"},{"v":1.103731618617736,"d":"110%"},4,{"v":3845.59,"d":"$3,845.59"},{"v":4595162.71,"d":"$4,595,162.71"},{"v":4599008.3,"d":"$4,599,008.30"},{"v":1.05749,"d":"1.06"},{"v":14592794.51,"d":"$14,592,794.51"},{"v":2918558.89,"d":"$2,918,558.89"},{"v":1587664.18,"d":"$1,587,664.18"},{"v":704973.04,"d":"$704,973.04"},{"v":524408.24,"d":"$524,408.24"},{"v":988664.06,"d":"$988,664.06"},{"v":371258.95,"d":"$371,258.95"},{"v":600865.03,"d":"$600,865.03"},{"v":813984.9,"d":"$813,984.90"},{"v":450727.3,"d":"$450,727.30"},{"v":1207572.02,"d":"$1,207,572.02"},{"v":1039722.26,"d":"$1,039,722.26"},{"v":721009.72,"d":"$721,009.72"},{"v":26522203.099999994,"d":"$26,522,203.10"},{"v":384312.6,"d":"$384,312.60"},{"v":538475,"d":"$538,475.00"},{"v":1400035,"d":"$1,400,035.00"},{"v":146465.2,"d":"$146,465.20"},{"v":1229876.9,"d":"$1,229,876.90"},{"v":734915.3400000001,"d":"$734,915.34"},{"v":5862915.800000001,"d":"$5,862,915.80"},{"v":4036408.6000000006,"d":"$4,036,408.60"},{"v":10964639.770199997,"d":"$10,964,639.77"},{"v":25298044.210199997,"d":"$25,298,044.21"},{"v":4100508.66,"d":"$4,100,508.66"},{"v":21197535.550199997,"d":"$21,197,535.55"},{"v":25533782.4502,"d":"$25,533,782.45"},{"v":512542.4,"d":"$512,542.40"},{"v":512542.4,"d":"$512,542.40"},{"v":534253.72,"d":"$534,253.72"},{"v":534253.72,"d":"$534,253.72"},{"v":473772.17,"d":"$473,772.17"},{"v":473772.17,"d":"$473,772.17"},{"v":493157.28,"d":"$493,157.28"},{"v":493157.28,"d":"$493,157.28"},{"v":592409.07,"d":"$592,409.07"},{"v":2368860.87,"d":"$2,368,860.87"},{"v":959562.3,"d":"$959,562.30"},{"v":367664.42,"d":"$367,664.42"},{"v":8315947.800000001,"d":"$8,315,947.80"},{"v":60371933.49,"d":"$60,371,933.49"},{"v":546622.7899999999,"d":"$546,622.79"},{"v":213830.61,"d":"$213,830.61"},{"v":1725440.9699999995,"d":"$1,725,440.97"},{"v":60371933.3502,"d":"$60,371,933.35"}]
["05016035002","GLENCOE SCHOOL DIST 35",1214.5,{"v":15283506.93,"d":"$15,283,506.93"},{"v":29314896.23,"d":"$29,314,896.23"},{"v":1.9180739318708184,"d":"192%"},4,{"v":973.53,"d":"$973.53"},{"v":719554.19,"d":"$719,554.19"},{"v":720527.72,"d":"$720,527.72"},{"v":1.05749,"d":"1.06"},{"v":3965842.08,"d":"$3,965,842.08"},{"v":793168.4,"d":"$793,168.40"},{"v":446876.21,"d":"$446,876.21"},{"v":198365.84,"d":"$198,365.84"},{"v":127542.76,"d":"$127,542.76"},{"v":274187.38,"d":"$274,187.38"},{"v":104133.61,"d":"$104,133.61"},{"v":169297.57,"d":"$169,297.57"},{"v":229039.68,"d":"$229,039.68"},{"v":126894.65,"d":"$126,894.65"},{"v":339787.52,"d":"$339,787.52"},{"v":292557.83,"d":"$292,557.83"},{"v":203149.1,"d":"$203,149.10"},{"v":7270842.630000001,"d":"$7,270,842.63"},{"v":108900,"d":"$108,900.00"},{"v":151812.5,"d":"$151,812.50"},{"v":394712.5,"d":"$394,712.50"},{"v":41293,"d":"$41,293.00"},{"v":346739.75,"d":"$346,739.75"},{"v":204446,"d":"$204,446.00"},{"v":1652934.5,"d":"$1,652,934.50"},{"v":1137986.5,"d":"$1,137,986.50"},{"v":2712328.86,"d":"$2,712,328.86"},{"v":6751153.609999999,"d":"$6,751,153.61"},{"v":1156058.26,"d":"$1,156,058.26"},{"v":5595095.35,"d":"$5,595,095.35"},{"v":6817615.39,"d":"$6,817,615.39"},{"v":16283.49,"d":"$16,283.49"},{"v":16283.49,"d":"$16,283.49"},{"v":17058.89,"d":"$17,058.89"},{"v":17058.89,"d":"$17,058.89"},{"v":16283.49,"d":"$16,283.49"},{"v":16283.49,"d":"$16,283.49"},{"v":17058.89,"d":"$17,058.89"},{"v":17058.89,"d":"$17,058.89"},{"v":20160.51,"d":"$20,160.51"},{"v":667623.31,"d":"$667,623.31"},{"v":270436.38,"d":"$270,436.38"},{"v":103459.05,"d":"$103,459.05"},{"v":1195048.7700000003,"d":"$1,195,048.77"},{"v":15283506.93,"d":"$15,283,506.93"},{"v":12016.9,"d":"$12,016.90"},{"v":45.28,"d":"$45.28"},{"v":435707.4,"d":"$435,707.40"},{"v":15283506.79,"d":"$15,283,506.79"}]
["05016036002","WINNETKA SCHOOL DIST 36",1716.5,{"v":21465508.52,"d":"$21,465,508.52"},{"v":45143975.09,"d":"$45,143,975.09"},{"v":2.103093669918797,"d":"210%"},4,{"v":1367.31,"d":"$1,367.31"},{"v":1089135.21,"d":"$1,089,135.21"},{"v":1090502.52,"d":"$1,090,502.52"},{"v":1.05749,"d":"1.06"},{"v":5600701.11,"d":"$5,600,701.11"},{"v":1120140.22,"d":"$1,120,140.22"},{"v":632705.93,"d":"$632,705.93"},{"v":280956.83,"d":"$280,956.83"},{"v":178895.47,"d":"$178,895.47"},{"v":380683.35,"d":"$380,683.35"},{"v":146821.92,"d":"$146,821.92"},{"v":239340.9,"d":"$239,340.90"},{"v":324401.93,"d":"$324,401.93"},{"v":179348.63,"d":"$179,348.63"},{"v":481260.39,"d":"$481,260.39"},{"v":414366.29,"d":"$414,366.29"},{"v":287197.8,"d":"$287,197.80"},{"v":10266820.77,"d":"$10,266,820.77"},{"v":153045,"d":"$153,045.00"},{"v":214562.5,"d":"$214,562.50"},{"v":557862.5,"d":"$557,862.50"},{"v":58361,"d":"$58,361.00"},{"v":490060.75,"d":"$490,060.75"},{"v":281320.5,"d":"$281,320.50"},{"v":2336156.5,"d":"$2,336,156.50"},{"v":1608360.5,"d":"$1,608,360.50"},{"v":3805726.557,"d":"$3,805,726.56"},{"v":9505455.807,"d":"$9,505,455.81"},{"v":1633902.02,"d":"$1,633,902.02"},{"v":7871553.7870000005,"d":"$7,871,553.79"},{"v":9599388.827,"d":"$9,599,388.83"},{"v":11631.06,"d":"$11,631.06"},{"v":11631.06,"d":"$11,631.06"},{"v":12406.47,"d":"$12,406.47"},{"v":12406.47,"d":"$12,406.47"},{"v":14732.68,"d":"$14,732.68"},{"v":14732.68,"d":"$14,732.68"},{"v":15508.09,"d":"$15,508.09"},{"v":15508.09,"d":"$15,508.09"},{"v":18609.7,"d":"$18,609.70"},{"v":943667.32,"d":"$943,667.32"},{"v":382254.44,"d":"$382,254.44"},{"v":146210.73,"d":"$146,210.73"},{"v":1599298.7899999998,"d":"$1,599,298.79"},{"v":21465508.52,"d":"$21,465,508.52"},{"v":13669.11,"d":"$13,669.11"},{"v":34.77,"d":"$34.77"},{"v":708283.9999999999,"d":"$708,284.00"},{"v":21465508.387,"d":"$21,465,508.39"}]
["05016037002","AVOCA SCHOOL DIST 37",694.81,{"v":9337673.71,"d":"$9,337,673.71"},{"v":15536958.28,"d":"$15,536,958.28"},{"v":1.6639003206292158,"d":"166%"},4,{"v":594.79,"d":"$594.79"},{"v":463694.35000000003,"d":"$463,694.35"},{"v":464289.14,"d":"$464,289.14"},{"v":1.05749,"d":"1.06"},{"v":2297061.74,"d":"$2,297,061.74"},{"v":459412.34,"d":"$459,412.34"},{"v":255147.14,"d":"$255,147.14"},{"v":112825.18,"d":"$112,825.18"},{"v":79830.4,"d":"$79,830.40"},{"v":159743.95,"d":"$159,743.95"},{"v":58858.12,"d":"$58,858.12"},{"v":96741.46,"d":"$96,741.46"},{"v":130271.64,"d":"$130,271.64"},{"v":72242,"d":"$72,242.00"},{"v":193262.05,"d":"$193,262.05"},{"v":166399.06,"d":"$166,399.06"},{"v":116085.2,"d":"$116,085.20"},{"v":4197880.28,"d":"$4,197,880.28"},{"v":62203.49999999999,"d":"$62,203.50"},{"v":86851.25,"d":"$86,851.25"},{"v":225813.25,"d":"$225,813.25"},{"v":23623.54,"d":"$23,623.54"},{"v":198368.25,"d":"$198,368.25"},{"v":119790.66999999998,"d":"$119,790.67"},{"v":945636.41,"d":"$945,636.41"},{"v":651036.97,"d":"$651,036.97"},{"v":1680873.20184,"d":"$1,680,873.20"},{"v":3994197.04184,"d":"$3,994,197.04"},{"v":661375.74,"d":"$661,375.74"},{"v":3332821.30184,"d":"$3,332,821.30"},{"v":4032219.53184,"d":"$4,032,219.53"},{"v":45748.86,"d":"$45,748.86"},{"v":45748.86,"d":"$45,748.86"},{"v":47299.67,"d":"$47,299.67"},{"v":47299.67,"d":"$47,299.67"},{"v":61256.95,"d":"$61,256.95"},{"v":61256.95,"d":"$61,256.95"},{"v":63583.17,"d":"$63,583.17"},{"v":63583.17,"d":"$63,583.17"},{"v":76765.04,"d":"$76,765.04"},{"v":381499.03,"d":"$381,499.03"},{"v":154535.07,"d":"$154,535.07"},{"v":58997.31,"d":"$58,997.31"},{"v":1107573.75,"d":"$1,107,573.75"},{"v":9337673.71,"d":"$9,337,673.71"},{"v":26087.84,"d":"$26,087.84"},{"v":22858.800000000003,"d":"$22,858.80"},{"v":259374.71999999997,"d":"$259,374.72"},{"v":9337673.56184,"d":"$9,337,673.56"}]
["05016038002","KENILWORTH SCHOOL DIST 38",454.54,{"v":5648545.76,"d":"$5,648,545.76"},{"v":13578332.02,"d":"$13,578,332.02"},{"v":2.4038633299484857,"d":"240%"},4,{"v":359.8,"d":"$359.80"},{"v":274862.6900000001,"d":"$274,862.69"},{"v":275222.4900000001,"d":"$275,222.49"},{"v":1.05749,"d":"1.06"},{"v":1474839,"d":"$1,474,839.00"},{"v":294967.8,"d":"$294,967.80"},{"v":166656.8,"d":"$166,656.80"},{"v":73741.95,"d":"$73,741.95"},{"v":46933.99,"d":"$46,933.99"},{"v":102522.23,"d":"$102,522.23"},{"v":38807.55,"d":"$38,807.55"},{"v":63133.23,"d":"$63,133.23"},{"v":85144.86,"d":"$85,144.86"},{"v":47114.35,"d":"$47,114.35"},{"v":126315.06,"d":"$126,315.06"},{"v":108757.55,"d":"$108,757.55"},{"v":75756.9,"d":"$75,756.90"},{"v":2704691.2699999996,"d":"$2,704,691.27"},{"v":40691.7,"d":"$40,691.70"},{"v":56817.49999999999,"d":"$56,817.50"},{"v":147725.5,"d":"$147,725.50"},{"v":15454.36,"d":"$15,454.36"},{"v":129771.17,"d":"$129,771.17"},{"v":76581.93,"d":"$76,581.93"},{"v":618628.94,"d":"$618,628.94"},{"v":425903.98,"d":"$425,903.98"},{"v":999500.00856,"d":"$999,500.01"},{"v":2511075.08856,"d":"$2,511,075.09"},{"v":432667.53,"d":"$432,667.53"},{"v":2078407.55856,"d":"$2,078,407.56"},{"v":2535949.13856,"d":"$2,535,949.14"},{"v":0,"d":"$0.00"},{"v":0,"d":"$0.00"},{"v":0,"d":"$0.00"},{"v":0,"d":"$0.00"},{"v":3101.61,"d":"$3,101.61"},{"v":3101.61,"d":"$3,101.61"},{"v":3877.02,"d":"$3,877.02"},{"v":3877.02,"d":"$3,877.02"},{"v":4652.42,"d":"$4,652.42"},{"v":249680.26,"d":"$249,680.26"},{"v":101138.8,"d":"$101,138.80"},{"v":38476.5,"d":"$38,476.50"},{"v":407905.24,"d":"$407,905.24"},{"v":5648545.76,"d":"$5,648,545.76"},{"v":3435.04,"d":"$3,435.04"},{"v":12.020000000000001,"d":"$12.02"},{"v":163554.46000000002,"d":"$163,554.46"},{"v":5648545.64856,"d":"$5,648,545.65"}]
["05016039002","WILMETTE SCHOOL DIST 39",3228.79,{"v":40977476.34,"d":"$40,977,476.34"},{"v":62247473.41,"d":"$62,247,473.41"},{"v":1.5190655689364005,"d":"152%"},4,{"v":2610.2,"d":"$2,610.20"},{"v":2801455.6799999997,"d":"$2,801,455.68"},{"v":2804065.88,"d":"$2,804,065.88"},{"v":1.05749,"d":"1.06"},{"v":10468407.24,"d":"$10,468,407.24"},{"v":2093681.44,"d":"$2,093,681.44"},{"v":1189457.65,"d":"$1,189,457.65"},{"v":528729.78,"d":"$528,729.78"},{"v":342224.19,"d":"$342,224.19"},{"v":742292.79,"d":"$742,292.79"},{"v":277474.02,"d":"$277,474.02"},{"v":450413.2,"d":"$450,413.20"},{"v":610488.68,"d":"$610,488.68"},{"v":337652.85,"d":"$337,652.85"},{"v":905679.01,"d":"$905,679.01"},{"v":779791.69,"d":"$779,791.69"},{"v":540474.61,"d":"$540,474.61"},{"v":19266767.150000002,"d":"$19,266,767.15"},{"v":288911.69999999995,"d":"$288,911.70"},{"v":403598.75,"d":"$403,598.75"},{"v":1049356.75,"d":"$1,049,356.75"},{"v":109778.85999999999,"d":"$109,778.86"},{"v":921819.54,"d":"$921,819.54"},{"v":552647.9299999999,"d":"$552,647.93"},{"v":4394383.1899999995,"d":"$4,394,383.19"},{"v":3025376.23,"d":"$3,025,376.23"},{"v":7284650.30856,"d":"$7,284,650.31"},{"v":18030523.258559998,"d":"$18,030,523.26"},{"v":3073420.62,"d":"$3,073,420.62"},{"v":14957102.638559997,"d":"$14,957,102.64"},{"v":18207214.208559997,"d":"$18,207,214.21"},{"v":69011,"d":"$69,011.00"},{"v":69011,"d":"$69,011.00"},{"v":72112.62,"d":"$72,112.62"},{"v":72112.62,"d":"$72,112.62"},{"v":84519.09,"d":"$84,519.09"},{"v":84519.09,"d":"$84,519.09"},{"v":88396.11,"d":"$88,396.11"},{"v":88396.11,"d":"$88,396.11"},{"v":106230.42,"d":"$106,230.42"},{"v":1774900.99,"d":"$1,774,900.99"},{"v":718965.01,"d":"$718,965.01"},{"v":275320.79,"d":"$275,320.79"},{"v":3503494.8499999996,"d":"$3,503,494.85"},{"v":40977476.34,"d":"$40,977,476.34"},{"v":48454.420000000006,"d":"$48,454.42"},{"v":21185.82,"d":"$21,185.82"},{"v":1539015.81,"d":"$1,539,015.81"},{"v":40977476.20856,"d":"$40,977,476.21"}]
["05016054004","SCHAUMBURG C C SCHOOL DIST 54",14909.38,{"v":226645982.46,"d":"$226,645,982.46"},{"v":195939026.08999997,"d":"$195,939,026.09"},{"v":0.8645157702037829,"d":"86%"},2,{"v":309364.6,"d":"$309,364.60"},{"v":17921875.119999997,"d":"$17,921,875.12"},{"v":18231239.72,"d":"$18,231,239.72"},{"v":1.05749,"d":"1.06"},{"v":52822833.74,"d":"$52,822,833.74"},{"v":10564566.74,"d":"$10,564,566.74"},{"v":5495987.54,"d":"$5,495,987.54"},{"v":2442333.38,"d":"$2,442,333.38"},{"v":1980173.18,"d":"$1,980,173.18"},{"v":3339522.83,"d":"$3,339,522.83"},{"v":1285176.91,"d":"$1,285,176.91"},{"v":2080883.87,"d":"$2,080,883.87"},{"v":2819997.92,"d":"$2,819,997.92"},{"v":1560427.33,"d":"$1,560,427.33"},{"v":4183554.97,"d":"$4,183,554.97"},{"v":3602050.35,"d":"$3,602,050.35"},{"v":2496962.57,"d":"$2,496,962.57"},{"v":94674471.33,"d":"$94,674,471.33"},{"v":1327376.7,"d":"$1,327,376.70"},{"v":1863672.5,"d":"$1,863,672.50"},{"v":4845548.5,"d":"$4,845,548.50"},{"v":506918.92000000004,"d":"$506,918.92"},{"v":8513255.98,"d":"$8,513,255.98"},{"v":2464073.51,"d":"$2,464,073.51"},{"v":20291666.18,"d":"$20,291,666.18"},{"v":13970089.059999999,"d":"$13,970,089.06"},{"v":40900886.614319995,"d":"$40,900,886.61"},{"v":94683487.96431999,"d":"$94,683,487.96"},{"v":14191940.63,"d":"$14,191,940.63"},{"v":80491547.33432001,"d":"$80,491,547.33"},{"v":95499382.62432,"d":"$95,499,382.62"},{"v":2986082.89,"d":"$2,986,082.89"},{"v":2986082.89,"d":"$2,986,082.89"},{"v":3110147.61,"d":"$3,110,147.61"},{"v":3110147.61,"d":"$3,110,147.61"},{"v":2153298.41,"d":"$2,153,298.41"},{"v":2153298.41,"d":"$2,153,298.41"},{"v":2243245.34,"d":"$2,243,245.34"},{"v":2243245.34,"d":"$2,243,245.34"},{"v":2692204.57,"d":"$2,692,204.57"},{"v":8199127.63,"d":"$8,199,127.63"},{"v":3321247.71,"d":"$3,321,247.71"},{"v":1273999.97,"d":"$1,273,999.97"},{"v":36472128.379999995,"d":"$36,472,128.38"},{"v":226645982.46,"d":"$226,645,982.46"},{"v":4042979.51,"d":"$4,042,979.51"},{"v":1353110.79,"d":"$1,353,110.79"},{"v":5384531.08,"d":"$5,384,531.08"},{"v":226645982.33432,"d":"$226,645,982.33"}]
["05016057002","MOUNT PROSPECT SCHOOL DIST 57",2108.63,{"v":28490910.83,"d":"$28,490,910.83"},{"v":29230847.18,"d":"$29,230,847.18"},{"v":1.0259709615608663,"d":"103%"},4,{"v":1814.82,"d":"$1,814.82"},{"v":2114523.1300000004,"d":"$2,114,523.13"},{"v":2116337.95,"d":"$2,116,337.95"},{"v":1.05749,"d":"1.06"},{"v":7060791.72,"d":"$7,060,791.72"},{"v":1412158.34,"d":"$1,412,158.34"},{"v":776502.73,"d":"$776,502.73"},{"v":344374.9,"d":"$344,374.90"},{"v":244240.14,"d":"$244,240.14"},{"v":480821.35,"d":"$480,821.35"},{"v":181101.93,"d":"$181,101.93"},{"v":293993.55,"d":"$293,993.55"},{"v":397626.51,"d":"$397,626.51"},{"v":220495.16,"d":"$220,495.16"},{"v":589891.35,"d":"$589,891.35"},{"v":507897.8,"d":"$507,897.80"},{"v":352778.41,"d":"$352,778.41"},{"v":12862673.890000002,"d":"$12,862,673.89"},{"v":187647.3,"d":"$187,647.30"},{"v":263578.75,"d":"$263,578.75"},{"v":685304.75,"d":"$685,304.75"},{"v":71693.42000000001,"d":"$71,693.42"},{"v":602013.86,"d":"$602,013.86"},{"v":356989.09,"d":"$356,989.09"},{"v":2869845.4299999997,"d":"$2,869,845.43"},{"v":1975786.31,"d":"$1,975,786.31"},{"v":5136164.79732,"d":"$5,136,164.80"},{"v":12149023.707320001,"d":"$12,149,023.71"},{"v":2007162.72,"d":"$2,007,162.72"},{"v":10141860.987319998,"d":"$10,141,860.99"},{"v":12264415.487319998,"d":"$12,264,415.49"},{"v":212460.84,"d":"$212,460.84"},{"v":212460.84,"d":"$212,460.84"},{"v":221765.69,"d":"$221,765.69"},{"v":221765.69,"d":"$221,765.69"},{"v":128717.15,"d":"$128,717.15"},{"v":128717.15,"d":"$128,717.15"},{"v":134144.98,"d":"$134,144.98"},{"v":134144.98,"d":"$134,144.98"},{"v":161284.14,"d":"$161,284.14"},{"v":1159229.79,"d":"$1,159,229.79"},{"v":469573.04,"d":"$469,573.04"},{"v":179557.04,"d":"$179,557.04"},{"v":3363821.33,"d":"$3,363,821.33"},{"v":28490910.83,"d":"$28,490,910.83"},{"v":146586.42,"d":"$146,586.42"},{"v":68512.23,"d":"$68,512.23"},{"v":820393.4699999999,"d":"$820,393.47"},{"v":28490910.707319997,"d":"$28,490,910.71"}]
["05016059004","COMM CONS SCH DIST 59",5840.56,{"v":98821697.8,"d":"$98,821,697.80"},{"v":120095683.29,"d":"$120,095,683.29"},{"v":1.2152764621900678,"d":"122%"},4,{"v":6294.78,"d":"$6,294.78"},{"v":12050683.690000001,"d":"$12,050,683.69"},{"v":12056978.47,"d":"$12,056,978.47"},{"v":1.05749,"d":"1.06"},{"v":21829092.08,"d":"$21,829,092.08"},{"v":4365818.41,"d":"$4,365,818.41"},{"v":2152527.52,"d":"$2,152,527.52"},{"v":955695.67,"d":"$955,695.67"},{"v":914094.6,"d":"$914,094.60"},{"v":1315304.68,"d":"$1,315,304.68"},{"v":502557.85,"d":"$502,557.85"},{"v":814764.19,"d":"$814,764.19"},{"v":1103477.44,"d":"$1,103,477.44"},{"v":610916.09,"d":"$610,916.09"},{"v":1637043.24,"d":"$1,637,043.24"},{"v":1409497.96,"d":"$1,409,497.96"},{"v":977678.62,"d":"$977,678.62"},{"v":38588468.35000001,"d":"$38,588,468.35"},{"v":517363.19999999995,"d":"$517,363.20"},{"v":730070,"d":"$730,070.00"},{"v":1898182,"d":"$1,898,182.00"},{"v":198579.04,"d":"$198,579.04"},{"v":1667479.8699999999,"d":"$1,667,479.87"},{"v":968522.9199999999,"d":"$968,522.92"},{"v":7949002.16,"d":"$7,949,002.16"},{"v":5472604.720000001,"d":"$5,472,604.72"},{"v":18578106.255839996,"d":"$18,578,106.26"},{"v":37979910.16584,"d":"$37,979,910.17"},{"v":5559512.25,"d":"$5,559,512.25"},{"v":32420397.915839992,"d":"$32,420,397.92"},{"v":38299526.515839994,"d":"$38,299,526.52"},{"v":1994340.48,"d":"$1,994,340.48"},{"v":1994340.48,"d":"$1,994,340.48"},{"v":2077308.76,"d":"$2,077,308.76"},{"v":2077308.76,"d":"$2,077,308.76"},{"v":1646183.84,"d":"$1,646,183.84"},{"v":1646183.84,"d":"$1,646,183.84"},{"v":1714419.44,"d":"$1,714,419.44"},{"v":1714419.44,"d":"$1,714,419.44"},{"v":2057148.25,"d":"$2,057,148.25"},{"v":3211725.61,"d":"$3,211,725.61"},{"v":1300984.3,"d":"$1,300,984.30"},{"v":499339.58,"d":"$499,339.58"},{"v":21933702.779999997,"d":"$21,933,702.78"},{"v":98821697.8,"d":"$98,821,697.80"},{"v":5415880.23,"d":"$5,415,880.23"},{"v":876151.53,"d":"$876,151.53"},{"v":2382312.979999999,"d":"$2,382,312.98"},{"v":98821697.64584,"d":"$98,821,697.65"}]
["05016062004","DES PLAINES C C SCH DIST 62",3967.63,{"v":65508175.12,"d":"$65,508,175.12"},{"v":95432329.23000002,"d":"$95,432,329.23"},{"v":1.4568003009576131,"d":"146%"},4,{"v":4172.76,"d":"$4,172.76"},{"v":8064088.149999999,"d":"$8,064,088.15"},{"v":8068260.909999999,"d":"$8,068,260.91"},{"v":1.05749,"d":"1.06"},{"v":14516840.31,"d":"$14,516,840.31"},{"v":2903368.05,"d":"$2,903,368.05"},{"v":1461565.45,"d":"$1,461,565.45"},{"v":648929.16,"d":"$648,929.16"},{"v":600949.92,"d":"$600,949.92"},{"v":898857.76,"d":"$898,857.76"},{"v":341506.49,"d":"$341,506.49"},{"v":553436.58,"d":"$553,436.58"},{"v":749274.81,"d":"$749,274.81"},{"v":415234.48,"d":"$415,234.48"},{"v":1111572.57,"d":"$1,111,572.57"},{"v":957066.51,"d":"$957,066.51"},{"v":664097.81,"d":"$664,097.81"},{"v":25822699.9,"d":"$25,822,699.90"},{"v":350921.7,"d":"$350,921.70"},{"v":495953.74999999994,"d":"$495,953.75"},{"v":1289479.75,"d":"$1,289,479.75"},{"v":134899.41999999998,"d":"$134,899.42"},{"v":1132758.36,"d":"$1,132,758.36"},{"v":661939.8500000001,"d":"$661,939.85"},{"v":5399944.43,"d":"$5,399,944.43"},{"v":3717669.3099999996,"d":"$3,717,669.31"},{"v":12265364.66832,"d":"$12,265,364.67"},{"v":25448931.23832,"d":"$25,448,931.24"},{"v":3776707.64,"d":"$3,776,707.64"},{"v":21672223.59832,"d":"$21,672,223.60"},{"v":25666054.15832,"d":"$25,666,054.16"},{"v":1217385.13,"d":"$1,217,385.13"},{"v":1217385.13,"d":"$1,217,385.13"},{"v":1267786.42,"d":"$1,267,786.42"},{"v":1267786.42,"d":"$1,267,786.42"},{"v":1058427.2,"d":"$1,058,427.20"},{"v":1058427.2,"d":"$1,058,427.20"},{"v":1102625.25,"d":"$1,102,625.25"},{"v":1102625.25,"d":"$1,102,625.25"},{"v":1323615.55,"d":"$1,323,615.55"},{"v":2181212.97,"d":"$2,181,212.97"},{"v":883551.14,"d":"$883,551.14"},{"v":338593.28,"d":"$338,593.28"},{"v":14019420.940000001,"d":"$14,019,420.94"},{"v":65508175.12,"d":"$65,508,175.12"},{"v":3696995.9499999993,"d":"$3,696,995.95"},{"v":483656.93,"d":"$483,656.93"},{"v":1907056.82,"d":"$1,907,056.82"},{"v":65508174.99832,"d":"$65,508,175.00"}]
["05016063002","EAST MAINE SCHOOL DIST 63",3368.75,{"v":58885321.38,"d":"$58,885,321.38"},{"v":44102223.05,"d":"$44,102,223.05"},{"v":0.7489510461426983,"d":"75%"},1,{"v":784362.08,"d":"$784,362.08"},{"v":8023420.87,"d":"$8,023,420.87"},{"v":8807782.95,"d":"$8,807,782.95"},{"v":1.05749,"d":"1.06"},{"v":12804552.22,"d":"$12,804,552.22"},{"v":2560910.44,"d":"$2,560,910.44"},{"v":1241077.02,"d":"$1,241,077.02"},{"v":550852.36,"d":"$550,852.36"},{"v":539146.57,"d":"$539,146.57"},{"v":747061.27,"d":"$747,061.27"},{"v":289763.08,"d":"$289,763.08"},{"v":469887.13,"d":"$469,887.13"},{"v":636032.14,"d":"$636,032.14"},{"v":352415.35,"d":"$352,415.35"},{"v":943573.53,"d":"$943,573.53"},{"v":812418.96,"d":"$812,418.96"},{"v":563842.41,"d":"$563,842.41"},{"v":22511532.48,"d":"$22,511,532.48"},{"v":298620,"d":"$298,620.00"},{"v":421093.75,"d":"$421,093.75"},{"v":1094843.75,"d":"$1,094,843.75"},{"v":114537.5,"d":"$114,537.50"},{"v":1923556.25,"d":"$1,923,556.25"},{"v":549042,"d":"$549,042.00"},{"v":4584868.75,"d":"$4,584,868.75"},{"v":3156518.75,"d":"$3,156,518.75"},{"v":10919359.952999998,"d":"$10,919,359.95"},{"v":23062440.702999998,"d":"$23,062,440.70"},{"v":3206645.75,"d":"$3,206,645.75"},{"v":19855794.952999998,"d":"$19,855,794.95"},{"v":23246790.762999997,"d":"$23,246,790.76"},{"v":1212732.7,"d":"$1,212,732.70"},{"v":1212732.7,"d":"$1,212,732.70"},{"v":1263133.99,"d":"$1,263,133.99"},{"v":1263133.99,"d":"$1,263,133.99"},{"v":990967,"d":"$990,967.00"},{"v":990967,"d":"$990,967.00"},{"v":1032063.44,"d":"$1,032,063.44"},{"v":1032063.44,"d":"$1,032,063.44"},{"v":1239096.45,"d":"$1,239,096.45"},{"v":1852441.45,"d":"$1,852,441.45"},{"v":750374.57,"d":"$750,374.57"},{"v":287291.26,"d":"$287,291.26"},{"v":13126997.989999998,"d":"$13,126,997.99"},{"v":58885321.38,"d":"$58,885,321.38"},{"v":3913373.8400000003,"d":"$3,913,373.84"},{"v":800421.0300000001,"d":"$800,421.03"},{"v":1263068.8700000003,"d":"$1,263,068.87"},{"v":58885321.232999995,"d":"$58,885,321.23"}]
["05016064004","PARK RIDGE C C SCHOOL DIST 64",4597.73,{"v":60878559.81,"d":"$60,878,559.81"},{"v":76987839.35999998,"d":"$76,987,839.36"},{"v":1.2646133482834765,"d":"126%"},4,{"v":3877.86,"d":"$3,877.86"},{"v":3376015.25,"d":"$3,376,015.25"},{"v":3379893.11,"d":"$3,379,893.11"},{"v":1.05749,"d":"1.06"},{"v":15354548.86,"d":"$15,354,548.86"},{"v":3070909.77,"d":"$3,070,909.77"},{"v":1694590.01,"d":"$1,694,590.01"},{"v":752905.31,"d":"$752,905.31"},{"v":518503.24,"d":"$518,503.24"},{"v":1038733.06,"d":"$1,038,733.06"},{"v":395837.07,"d":"$395,837.07"},{"v":641697.47,"d":"$641,697.47"},{"v":869329.07,"d":"$869,329.07"},{"v":481194.58,"d":"$481,194.58"},{"v":1289676.81,"d":"$1,289,676.81"},{"v":1110414.67,"d":"$1,110,414.67"},{"v":770006.72,"d":"$770,006.72"},{"v":27988346.639999993,"d":"$27,988,346.64"},{"v":409903.19999999995,"d":"$409,903.20"},{"v":574716.25,"d":"$574,716.25"},{"v":1494262.25,"d":"$1,494,262.25"},{"v":156322.82,"d":"$156,322.82"},{"v":1312651.91,"d":"$1,312,651.91"},{"v":768907.84,"d":"$768,907.84"},{"v":6257510.529999999,"d":"$6,257,510.53"},{"v":4308073.01,"d":"$4,308,073.01"},{"v":10929184.596719999,"d":"$10,929,184.60"},{"v":26211532.406719998,"d":"$26,211,532.41"},{"v":4376487.23,"d":"$4,376,487.23"},{"v":21835045.176719997,"d":"$21,835,045.18"},{"v":26463136.656719998,"d":"$26,463,136.66"},{"v":335750.16,"d":"$335,750.16"},{"v":335750.16,"d":"$335,750.16"},{"v":349707.44,"d":"$349,707.44"},{"v":349707.44,"d":"$349,707.44"},{"v":208583.82,"d":"$208,583.82"},{"v":208583.82,"d":"$208,583.82"},{"v":217113.27,"d":"$217,113.27"},{"v":217113.27,"d":"$217,113.27"},{"v":260535.92,"d":"$260,535.92"},{"v":2527818.8,"d":"$2,527,818.80"},{"v":1023951.91,"d":"$1,023,951.91"},{"v":392460.39,"d":"$392,460.39"},{"v":6427076.399999999,"d":"$6,427,076.40"},{"v":60878559.81,"d":"$60,878,559.81"},{"v":183108.53,"d":"$183,108.53"},{"v":630.3299999999999,"d":"$630.33"},{"v":1671905.7,"d":"$1,671,905.70"},{"v":60878559.69671999,"d":"$60,878,559.70"}]
["05016065004","EVANSTON C C SCHOOL DIST 65",6611.88,{"v":94993033.64,"d":"$94,993,033.64"},{"v":130502494.54,"d":"$130,502,494.54"},{"v":1.3738112105627875,"d":"137%"},4,{"v":6050.9,"d":"$6,050.90"},{"v":8282670.400000002,"d":"$8,282,670.40"},{"v":8288721.300000003,"d":"$8,288,721.30"},{"v":1.05749,"d":"1.06"},{"v":23095241.37,"d":"$23,095,241.37"},{"v":4619048.27,"d":"$4,619,048.27"},{"v":2437171.45,"d":"$2,437,171.45"},{"v":1082531.82,"d":"$1,082,531.82"},{"v":834550.42,"d":"$834,550.42"},{"v":1498096.27,"d":"$1,498,096.27"},{"v":569824.28,"d":"$569,824.28"},{"v":922813.1,"d":"$922,813.10"},{"v":1249926.61,"d":"$1,249,926.61"},{"v":691952.78,"d":"$691,952.78"},{"v":1854305.16,"d":"$1,854,305.16"},{"v":1596560.96,"d":"$1,596,560.96"},{"v":1107332.23,"d":"$1,107,332.23"},{"v":41559354.72,"d":"$41,559,354.72"},{"v":591319.8,"d":"$591,319.80"},{"v":826485,"d":"$826,485.00"},{"v":2148861,"d":"$2,148,861.00"},{"v":224803.91999999998,"d":"$224,803.92"},{"v":1887691.73,"d":"$1,887,691.73"},{"v":1111870.26,"d":"$1,111,870.26"},{"v":8998768.68,"d":"$8,998,768.68"},{"v":6195331.5600000005,"d":"$6,195,331.56"},{"v":17340916.162320003,"d":"$17,340,916.16"},{"v":39326048.112320006,"d":"$39,326,048.11"},{"v":6293716.33,"d":"$6,293,716.33"},{"v":33032331.78232,"d":"$33,032,331.78"},{"v":39687873.86232,"d":"$39,687,873.86"},{"v":1134416.84,"d":"$1,134,416.84"},{"v":1134416.84,"d":"$1,134,416.84"},{"v":1181716.52,"d":"$1,181,716.52"},{"v":1181716.52,"d":"$1,181,716.52"},{"v":645136.57,"d":"$645,136.57"},{"v":645136.57,"d":"$645,136.57"},{"v":671500.33,"d":"$671,500.33"},{"v":671500.33,"d":"$671,500.33"},{"v":806420.72,"d":"$806,420.72"},{"v":3635871.89,"d":"$3,635,871.89"},{"v":1472794.64,"d":"$1,472,794.64"},{"v":565177.16,"d":"$565,177.16"},{"v":13745804.930000002,"d":"$13,745,804.93"},{"v":94993033.64,"d":"$94,993,033.64"},{"v":1868899.91,"d":"$1,868,899.91"},{"v":322331.12,"d":"$322,331.12"},{"v":3022781.6200000006,"d":"$3,022,781.62"},{"v":94993033.51232001,"d":"$94,993,033.51"}]
["05016067002","GOLF ELEM SCHOOL DIST 67",679.46,{"v":9994177.91,"d":"$9,994,177.91"},{"v":11361423.169999998,"d":"$11,361,423.17"},{"v":1.1368041746217021,"d":"114%"},4,{"v":636.61,"d":"$636.61"},{"v":607035.44,"d":"$607,035.44"},{"v":607672.0499999999,"d":"$607,672.05"},{"v":1.05749,"d":"1.06"},{"v":2398825.63,"d":"$2,398,825.63"},{"v":479765.11,"d":"$479,765.11"},{"v":249247.79,"d":"$249,247.79"},{"v":110612.92,"d":"$110,612.92"},{"v":88552.58,"d":"$88,552.58"},{"v":153385.98,"d":"$153,385.98"},{"v":57564.54,"d":"$57,564.54"},{"v":94542.79,"d":"$94,542.79"},{"v":127717.29,"d":"$127,717.29"},{"v":70985.62,"d":"$70,985.62"},{"v":189472.59,"d":"$189,472.59"},{"v":163136.33,"d":"$163,136.33"},{"v":113446.9,"d":"$113,446.90"},{"v":4297256.07,"d":"$4,297,256.07"},{"v":60552,"d":"$60,552.00"},{"v":84932.49999999999,"d":"$84,932.50"},{"v":220824.49999999994,"d":"$220,824.50"},{"v":23101.64,"d":"$23,101.64"},{"v":193985.83,"d":"$193,985.83"},{"v":113569.84,"d":"$113,569.84"},{"v":924745.0599999998,"d":"$924,745.06"},{"v":636654.02,"d":"$636,654.02"},{"v":1832947.0544399996,"d":"$1,832,947.05"},{"v":4091312.4444399993,"d":"$4,091,312.44"},{"v":646764.38,"d":"$646,764.38"},{"v":3444548.0644399994,"d":"$3,444,548.06"},{"v":4128494.9244399993,"d":"$4,128,494.92"},{"v":140348.22,"d":"$140,348.22"},{"v":140348.22,"d":"$140,348.22"},{"v":146551.45,"d":"$146,551.45"},{"v":146551.45,"d":"$146,551.45"},{"v":77540.45,"d":"$77,540.45"},{"v":77540.45,"d":"$77,540.45"},{"v":80642.07,"d":"$80,642.07"},{"v":80642.07,"d":"$80,642.07"},{"v":96925.56,"d":"$96,925.56"},{"v":372969.58,"d":"$372,969.58"},{"v":151080.02,"d":"$151,080.02"},{"v":57287.24,"d":"$57,287.24"},{"v":1568426.7800000003,"d":"$1,568,426.78"},{"v":9994177.91,"d":"$9,994,177.91"},{"v":146515.09999999998,"d":"$146,515.10"},{"v":12511.880000000001,"d":"$12,511.88"},{"v":204622.47000000003,"d":"$204,622.47"},{"v":9994177.774440002,"d":"$9,994,177.77"}]
["05016068002","SKOKIE SCHOOL DIST 68",1637.54,{"v":26275248.7,"d":"$26,275,248.70"},{"v":33152142.009999998,"d":"$33,152,142.01"},{"v":1.2617251462970929,"d":"126%"},4,{"v":1673.69,"d":"$1,673.69"},{"v":2338398.9999999995,"d":"$2,338,399.00"},{"v":2340072.6899999995,"d":"$2,340,072.69"},{"v":1.05749,"d":"1.06"},{"v":6052739.26,"d":"$6,052,739.26"},{"v":1210547.84,"d":"$1,210,547.84"},{"v":603209.15,"d":"$603,209.15"},{"v":266945.85,"d":"$266,945.85"},{"v":239569.05,"d":"$239,569.05"},{"v":368762.16,"d":"$368,762.16"},{"v":141000.78,"d":"$141,000.78"},{"v":228033.46,"d":"$228,033.46"},{"v":308224.41,"d":"$308,224.41"},{"v":171182.14,"d":"$171,182.14"},{"v":457260.53,"d":"$457,260.53"},{"v":393702.36,"d":"$393,702.36"},{"v":273629.4,"d":"$273,629.40"},{"v":10714806.389999999,"d":"$10,714,806.39"},{"v":144858.59999999998,"d":"$144,858.60"},{"v":204692.49999999997,"d":"$204,692.50"},{"v":532200.5,"d":"$532,200.50"},{"v":55676.36,"d":"$55,676.36"},{"v":467517.67,"d":"$467,517.67"},{"v":272036.18,"d":"$272,036.18"},{"v":2228691.9399999995,"d":"$2,228,691.94"},{"v":1534374.98,"d":"$1,534,374.98"},{"v":4896029.989560001,"d":"$4,896,029.99"},{"v":10336078.71956,"d":"$10,336,078.72"},{"v":1558741.57,"d":"$1,558,741.57"},{"v":8777337.149559999,"d":"$8,777,337.15"},{"v":10425690.769559998,"d":"$10,425,690.77"},{"v":512542.4,"d":"$512,542.40"},{"v":512542.4,"d":"$512,542.40"},{"v":534253.72,"d":"$534,253.72"},{"v":534253.72,"d":"$534,253.72"},{"v":307060.19,"d":"$307,060.19"},{"v":307060.19,"d":"$307,060.19"},{"v":319466.67,"d":"$319,466.67"},{"v":319466.67,"d":"$319,466.67"},{"v":383825.24,"d":"$383,825.24"},{"v":900244.67,"d":"$900,244.67"},{"v":364665.08,"d":"$364,665.08"},{"v":139370.46,"d":"$139,370.46"},{"v":5134751.41,"d":"$5,134,751.41"},{"v":26275248.7,"d":"$26,275,248.70"},{"v":1126684.7,"d":"$1,126,684.70"},{"v":73005.67,"d":"$73,005.67"},{"v":593169.84,"d":"$593,169.84"},{"v":26275248.569559995,"d":"$26,275,248.57"}]
["05016069002","SKOKIE SCHOOL DIST 69",1679,{"v":28480415.73,"d":"$28,480,415.73"},{"v":21501956.19,"d":"$21,501,956.19"},{"v":0.7549733962398167,"d":"75%"},1,{"v":372284.71,"d":"$372,284.71"},{"v":4146912.13,"d":"$4,146,912.13"},{"v":4519196.84,"d":"$4,519,196.84"},{"v":1.05749,"d":"1.06"},{"v":6278389.63,"d":"$6,278,389.63"},{"v":1255677.92,"d":"$1,255,677.92"},{"v":617957.54,"d":"$617,957.54"},{"v":274320.05,"d":"$274,320.05"},{"v":258362.43,"d":"$258,362.43"},{"v":371941.14,"d":"$371,941.14"},{"v":144234.75,"d":"$144,234.75"},{"v":234001.28,"d":"$234,001.28"},{"v":316738.89,"d":"$316,738.89"},{"v":175579.48,"d":"$175,579.48"},{"v":469892.04,"d":"$469,892.04"},{"v":404578.11,"d":"$404,578.11"},{"v":280790.5,"d":"$280,790.50"},{"v":11082463.76,"d":"$11,082,463.76"},{"v":149085,"d":"$149,085.00"},{"v":209875,"d":"$209,875.00"},{"v":545675,"d":"$545,675.00"},{"v":57086,"d":"$57,086.00"},{"v":958709,"d":"$958,709.00"},{"v":273712.5,"d":"$273,712.50"},{"v":2285119,"d":"$2,285,119.00"},{"v":1573223,"d":"$1,573,223.00"},{"v":5252585.7239999985,"d":"$5,252,585.72"},{"v":11305070.224,"d":"$11,305,070.22"},{"v":1598206.52,"d":"$1,598,206.52"},{"v":9706863.704,"d":"$9,706,863.70"},{"v":11396951.114,"d":"$11,396,951.11"},{"v":544333.98,"d":"$544,333.98"},{"v":544333.98,"d":"$544,333.98"},{"v":567596.12,"d":"$567,596.12"},{"v":567596.12,"d":"$567,596.12"},{"v":438103.56,"d":"$438,103.56"},{"v":438103.56,"d":"$438,103.56"},{"v":456713.27,"d":"$456,713.27"},{"v":456713.27,"d":"$456,713.27"},{"v":548211.01,"d":"$548,211.01"},{"v":922731.4,"d":"$922,731.40"},{"v":373773.85,"d":"$373,773.85"},{"v":142790.6,"d":"$142,790.60"},{"v":6001000.72,"d":"$6,001,000.72"},{"v":28480415.73,"d":"$28,480,415.73"},{"v":1565418.05,"d":"$1,565,418.05"},{"v":278538,"d":"$278,538.00"},{"v":649651.1200000001,"d":"$649,651.12"},{"v":28480415.593999997,"d":"$28,480,415.59"}]
["05016070002","MORTON GROVE SCHOOL DIST 70",844.04,{"v":12297347.94,"d":"$12,297,347.94"},{"v":14290233.38,"d":"$14,290,233.38"},{"v":1.1620581486124886,"d":"116%"},4,{"v":783.32,"d":"$783.32"},{"v":866246.2600000001,"d":"$866,246.26"},{"v":867029.5800000001,"d":"$867,029.58"},{"v":1.05749,"d":"1.06"},{"v":2931979.93,"d":"$2,931,979.93"},{"v":586395.98,"d":"$586,395.98"},{"v":310453.61,"d":"$310,453.61"},{"v":137897.44,"d":"$137,897.44"},{"v":108406.75,"d":"$108,406.75"},{"v":192328.54,"d":"$192,328.54"},{"v":72440.77,"d":"$72,440.77"},{"v":117471.78,"d":"$117,471.78"},{"v":159220.89,"d":"$159,220.89"},{"v":87946.79,"d":"$87,946.79"},{"v":236209.17,"d":"$236,209.17"},{"v":203376.63,"d":"$203,376.63"},{"v":140960.6,"d":"$140,960.60"},{"v":5285088.879999999,"d":"$5,285,088.88"},{"v":75056.4,"d":"$75,056.40"},{"v":105505,"d":"$105,505.00"},{"v":274313,"d":"$274,313.00"},{"v":28697.359999999997,"d":"$28,697.36"},{"v":240973.41,"d":"$240,973.41"},{"v":142827.59999999998,"d":"$142,827.60"},{"v":1148738.44,"d":"$1,148,738.44"},{"v":790865.48,"d":"$790,865.48"},{"v":2250931.34256,"d":"$2,250,931.34"},{"v":5057908.03256,"d":"$5,057,908.03"},{"v":803424.79,"d":"$803,424.79"},{"v":4254483.24256,"d":"$4,254,483.24"},{"v":5104096.92256,"d":"$5,104,096.92"},{"v":154305.5,"d":"$154,305.50"},{"v":154305.5,"d":"$154,305.50"},{"v":160508.74,"d":"$160,508.74"},{"v":160508.74,"d":"$160,508.74"},{"v":103904.2,"d":"$103,904.20"},{"v":103904.2,"d":"$103,904.20"},{"v":108556.63,"d":"$108,556.63"},{"v":108556.63,"d":"$108,556.63"},{"v":130267.96,"d":"$130,267.96"},{"v":463691.91,"d":"$463,691.91"},{"v":187829.21,"d":"$187,829.21"},{"v":71822.81,"d":"$71,822.81"},{"v":1908162.0299999998,"d":"$1,908,162.03"},{"v":12297347.94,"d":"$12,297,347.94"},{"v":162694.27000000002,"d":"$162,694.27"},{"v":51388.57,"d":"$51,388.57"},{"v":269117.39,"d":"$269,117.39"},{"v":12297347.832559997,"d":"$12,297,347.83"}]
["05016071002","NILES ELEM SCHOOL DIST 71",608,{"v":9147670.73,"d":"$9,147,670.73"},{"v":11635248.12,"d":"$11,635,248.12"},{"v":1.2719356067159184,"d":"127%"},4,{"v":582.69,"d":"$582.69"},{"v":555000.4500000001,"d":"$555,000.45"},{"v":555583.14,"d":"$555,583.14"},{"v":1.05749,"d":"1.06"},{"v":2205621.72,"d":"$2,205,621.72"},{"v":441124.33,"d":"$441,124.33"},{"v":223438.1,"d":"$223,438.10"},{"v":98814.21,"d":"$98,814.21"},{"v":81894.35,"d":"$81,894.35"},{"v":134312.07,"d":"$134,312.07"},{"v":52390.2,"d":"$52,390.20"},{"v":84491.73,"d":"$84,491.73"},{"v":114094.11,"d":"$114,094.11"},{"v":63447.32,"d":"$63,447.32"},{"v":169262.18,"d":"$169,262.18"},{"v":145735.12,"d":"$145,735.12"},{"v":101386.1,"d":"$101,386.10"},{"v":3916011.5400000005,"d":"$3,916,011.54"},{"v":54000,"d":"$54,000.00"},{"v":76000,"d":"$76,000.00"},{"v":197600,"d":"$197,600.00"},{"v":20672,"d":"$20,672.00"},{"v":173584,"d":"$173,584.00"},{"v":99180,"d":"$99,180.00"},{"v":827488,"d":"$827,488.00"},{"v":569696,"d":"$569,696.00"},{"v":1685382.453,"d":"$1,685,382.45"},{"v":3703602.4529999997,"d":"$3,703,602.45"},{"v":578743.04,"d":"$578,743.04"},{"v":3124859.4129999997,"d":"$3,124,859.41"},{"v":3736874.3829999994,"d":"$3,736,874.38"},{"v":155856.31,"d":"$155,856.31"},{"v":155856.31,"d":"$155,856.31"},{"v":162059.54,"d":"$162,059.54"},{"v":162059.54,"d":"$162,059.54"},{"v":63583.17,"d":"$63,583.17"},{"v":63583.17,"d":"$63,583.17"},{"v":65909.38,"d":"$65,909.38"},{"v":65909.38,"d":"$65,909.38"},{"v":79091.26,"d":"$79,091.26"},{"v":334199.35,"d":"$334,199.35"},{"v":135375.23,"d":"$135,375.23"},{"v":51302.01,"d":"$51,302.01"},{"v":1494784.6500000001,"d":"$1,494,784.65"},{"v":9147670.73,"d":"$9,147,670.73"},{"v":200937.15000000002,"d":"$200,937.15"},{"v":18642.809999999998,"d":"$18,642.81"},{"v":197141.66999999998,"d":"$197,141.67"},{"v":9147670.573,"d":"$9,147,670.57"}]
["05016072002","SKOKIE FAIRVIEW SCHOOL DIST 72",731.55,{"v":10548418.2,"d":"$10,548,418.20"},{"v":14779261.12,"d":"$14,779,261.12"},{"v":1.4010879015016677,"d":"140%"},4,{"v":671.91,"d":"$671.91"},{"v":541844.0099999999,"d":"$541,844.01"},{"v":542515.9199999999,"d":"$542,515.92"},{"v":1.05749,"d":"1.06"},{"v":2578755.99,"d":"$2,578,755.99"},{"v":515751.19,"d":"$515,751.19"},{"v":269158.11,"d":"$269,158.11"},{"v":118724.53,"d":"$118,724.53"},{"v":92916.77,"d":"$92,916.77"},{"v":164512.42,"d":"$164,512.42"},{"v":62092.09,"d":"$62,092.09"},{"v":101767,"d":"$101,767.00"},{"v":137083.23,"d":"$137,083.23"},{"v":76325.25,"d":"$76,325.25"},{"v":203367.25,"d":"$203,367.25"},{"v":175099.67,"d":"$175,099.67"},{"v":122115.6,"d":"$122,115.60"},{"v":4617669.1,"d":"$4,617,669.10"},{"v":65217.59999999999,"d":"$65,217.60"},{"v":91443.75,"d":"$91,443.75"},{"v":237753.75,"d":"$237,753.75"},{"v":24872.7,"d":"$24,872.70"},{"v":208857.52000000002,"d":"$208,857.52"},{"v":122736.91999999998,"d":"$122,736.92"},{"v":995639.55,"d":"$995,639.55"},{"v":685462.35,"d":"$685,462.35"},{"v":1927056.2081999998,"d":"$1,927,056.21"},{"v":4359040.3482,"d":"$4,359,040.35"},{"v":696347.81,"d":"$696,347.81"},{"v":3662692.538199999,"d":"$3,662,692.54"},{"v":4399073.378199999,"d":"$4,399,073.38"},{"v":141899.03,"d":"$141,899.03"},{"v":141899.03,"d":"$141,899.03"},{"v":147326.86,"d":"$147,326.86"},{"v":147326.86,"d":"$147,326.86"},{"v":61256.95,"d":"$61,256.95"},{"v":61256.95,"d":"$61,256.95"},{"v":63583.17,"d":"$63,583.17"},{"v":63583.17,"d":"$63,583.17"},{"v":76765.04,"d":"$76,765.04"},{"v":401659.55,"d":"$401,659.55"},{"v":162701.56,"d":"$162,701.56"},{"v":62417.44,"d":"$62,417.44"},{"v":1531675.61,"d":"$1,531,675.61"},{"v":10548418.2,"d":"$10,548,418.20"},{"v":148169.06999999995,"d":"$148,169.07"},{"v":161.62,"d":"$161.62"},{"v":231769.87,"d":"$231,769.87"},{"v":10548418.0882,"d":"$10,548,418.09"}]
["05016073002","EAST PRAIRIE SCHOOL DIST 73",507.5,{"v":7729678.27,"d":"$7,729,678.27"},{"v":8555903.96,"d":"$8,555,903.96"},{"v":1.1068900491249039,"d":"111%"},4,{"v":492.36,"d":"$492.36"},{"v":619650.7200000001,"d":"$619,650.72"},{"v":620143.0800000001,"d":"$620,143.08"},{"v":1.05749,"d":"1.06"},{"v":1823638.42,"d":"$1,823,638.42"},{"v":364727.67,"d":"$364,727.67"},{"v":186567.13,"d":"$186,567.13"},{"v":81853.56,"d":"$81,853.56"},{"v":69490.24,"d":"$69,490.24"},{"v":111264.44,"d":"$111,264.44"},{"v":43335.1,"d":"$43,335.10"},{"v":70357.43,"d":"$70,357.43"},{"v":94510.79,"d":"$94,510.79"},{"v":52768.07,"d":"$52,768.07"},{"v":140209.72,"d":"$140,209.72"},{"v":120720.89,"d":"$120,720.89"},{"v":84425.6,"d":"$84,425.60"},{"v":3243869.0600000005,"d":"$3,243,869.06"},{"v":45315,"d":"$45,315.00"},{"v":63437.5,"d":"$63,437.50"},{"v":164937.5,"d":"$164,937.50"},{"v":17255,"d":"$17,255.00"},{"v":144891.25,"d":"$144,891.25"},{"v":82963.5,"d":"$82,963.50"},{"v":690707.5,"d":"$690,707.50"},{"v":475527.5,"d":"$475,527.50"},{"v":1427244.189,"d":"$1,427,244.19"},{"v":3112278.9390000002,"d":"$3,112,278.94"},{"v":483079.1,"d":"$483,079.10"},{"v":2629199.839,"d":"$2,629,199.84"},{"v":3140051.149,"d":"$3,140,051.15"},{"v":111658.25,"d":"$111,658.25"},{"v":111658.25,"d":"$111,658.25"},{"v":116310.68,"d":"$116,310.68"},{"v":116310.68,"d":"$116,310.68"},{"v":85294.49,"d":"$85,294.49"},{"v":85294.49,"d":"$85,294.49"},{"v":89171.52,"d":"$89,171.52"},{"v":89171.52,"d":"$89,171.52"},{"v":107005.82,"d":"$107,005.82"},{"v":278370.23,"d":"$278,370.23"},{"v":112760.34,"d":"$112,760.34"},{"v":42751.67,"d":"$42,751.67"},{"v":1345757.94,"d":"$1,345,757.94"},{"v":7729678.27,"d":"$7,729,678.27"},{"v":166153.68000000005,"d":"$166,153.68"},{"v":34882.02,"d":"$34,882.02"},{"v":177077.82,"d":"$177,077.82"},{"v":7729678.149,"d":"$7,729,678.15"}]
["05016073502","SKOKIE SCHOOL DIST 73-5",1005.97,{"v":15167113.64,"d":"$15,167,113.64"},{"v":16922994.48,"d":"$16,922,994.48"},{"v":1.1157689512768758,"d":"112%"},4,{"v":966.12,"d":"$966.12"},{"v":1806578.0000000002,"d":"$1,806,578.00"},{"v":1807544.1200000003,"d":"$1,807,544.12"},{"v":1.05749,"d":"1.06"},{"v":3591970.39,"d":"$3,591,970.39"},{"v":718394.07,"d":"$718,394.07"},{"v":370184.58,"d":"$370,184.58"},{"v":163707.12,"d":"$163,707.12"},{"v":135595.22,"d":"$135,595.22"},{"v":224913.12,"d":"$224,913.12"},{"v":86023.41,"d":"$86,023.41"},{"v":140086.67,"d":"$140,086.67"},{"v":189021.59,"d":"$189,021.59"},{"v":104907.95,"d":"$104,907.95"},{"v":280419.44,"d":"$280,419.44"},{"v":241441.78,"d":"$241,441.78"},{"v":168097.4,"d":"$168,097.40"},{"v":6414762.740000001,"d":"$6,414,762.74"},{"v":89457.3,"d":"$89,457.30"},{"v":125746.25,"d":"$125,746.25"},{"v":326940.25,"d":"$326,940.25"},{"v":34202.979999999996,"d":"$34,202.98"},{"v":287204.43,"d":"$287,204.43"},{"v":166591.01,"d":"$166,591.01"},{"v":1369125.17,"d":"$1,369,125.17"},{"v":942593.89,"d":"$942,593.89"},{"v":2794986.30408,"d":"$2,794,986.30"},{"v":6136847.5840799995,"d":"$6,136,847.58"},{"v":957562.72,"d":"$957,562.72"},{"v":5179284.864080001,"d":"$5,179,284.86"},{"v":6191897.864080001,"d":"$6,191,897.86"},{"v":227968.93,"d":"$227,968.93"},{"v":227968.93,"d":"$227,968.93"},{"v":237273.79,"d":"$237,273.79"},{"v":237273.79,"d":"$237,273.79"},{"v":144225.24,"d":"$144,225.24"},{"v":144225.24,"d":"$144,225.24"},{"v":149653.07,"d":"$149,653.07"},{"v":149653.07,"d":"$149,653.07"},{"v":179893.85,"d":"$179,893.85"},{"v":552863.43,"d":"$552,863.43"},{"v":223950.21,"d":"$223,950.21"},{"v":85503.35,"d":"$85,503.35"},{"v":2560452.9000000004,"d":"$2,560,452.90"},{"v":15167113.64,"d":"$15,167,113.64"},{"v":344699.36000000004,"d":"$344,699.36"},{"v":59057.95,"d":"$59,057.95"},{"v":408519.12,"d":"$408,519.12"},{"v":15167113.504080003,"d":"$15,167,113.50"}]
["05016074002","LINCOLNWOOD SCHOOL DIST 74",1179.88,{"v":17394106.08,"d":"$17,394,106.08"},{"v":26035859.41,"d":"$26,035,859.41"},{"v":1.4968207788462564,"d":"150%"},4,{"v":1107.97,"d":"$1,107.97"},{"v":1165544.21,"d":"$1,165,544.21"},{"v":1166652.18,"d":"$1,166,652.18"},{"v":1.05749,"d":"1.06"},{"v":4157571.15,"d":"$4,157,571.15"},{"v":831514.22,"d":"$831,514.22"},{"v":434340.08,"d":"$434,340.08"},{"v":192466.48,"d":"$192,466.48"},{"v":154130.45,"d":"$154,130.45"},{"v":267829.41,"d":"$267,829.41"},{"v":100899.64,"d":"$100,899.64"},{"v":164272.04,"d":"$164,272.04"},{"v":222228.09,"d":"$222,228.09"},{"v":123125.5,"d":"$123,125.50"},{"v":329682.32,"d":"$329,682.32"},{"v":283857.22,"d":"$283,857.22"},{"v":197118.7,"d":"$197,118.70"},{"v":7459035.300000001,"d":"$7,459,035.30"},{"v":104959.8,"d":"$104,959.80"},{"v":147485.00000000003,"d":"$147,485.00"},{"v":383461.00000000006,"d":"$383,461.00"},{"v":40115.92,"d":"$40,115.92"},{"v":336855.74,"d":"$336,855.74"},{"v":198765.18,"d":"$198,765.18"},{"v":1605816.6800000002,"d":"$1,605,816.68"},{"v":1105547.56,"d":"$1,105,547.56"},{"v":3191199.84432,"d":"$3,191,199.84"},{"v":7114206.72432,"d":"$7,114,206.72"},{"v":1123104.17,"d":"$1,123,104.17"},{"v":5991102.554319999,"d":"$5,991,102.55"},{"v":7178773.974319999,"d":"$7,178,773.97"},{"v":245027.83,"d":"$245,027.83"},{"v":245027.83,"d":"$245,027.83"},{"v":255883.49,"d":"$255,883.49"},{"v":255883.49,"d":"$255,883.49"},{"v":139572.81,"d":"$139,572.81"},{"v":139572.81,"d":"$139,572.81"},{"v":145000.64,"d":"$145,000.64"},{"v":145000.64,"d":"$145,000.64"},{"v":174466.02,"d":"$174,466.02"},{"v":648238.19,"d":"$648,238.19"},{"v":262583.98,"d":"$262,583.98"},{"v":100038.92,"d":"$100,038.92"},{"v":2756296.65,"d":"$2,756,296.65"},{"v":17394106.08,"d":"$17,394,106.08"},{"v":352011.51999999996,"d":"$352,011.52"},{"v":42353.759999999995,"d":"$42,353.76"},{"v":417870.16000000003,"d":"$417,870.16"},{"v":17394105.924319997,"d":"$17,394,105.92"}]
["05016202017","EVANSTON TWP H S DIST 202",3701.82,{"v":57096483.01,"d":"$57,096,483.01"},{"v":71440901.32000001,"d":"$71,440,901.32"},{"v":1.2512312064385418,"d":"125%"},4,{"v":3636.95,"d":"$3,636.95"},{"v":2962571.229999999,"d":"$2,962,571.23"},{"v":2966208.1799999992,"d":"$2,966,208.18"},{"v":1.05749,"d":"1.06"},{"v":13317806.03,"d":"$13,317,806.03"},{"v":4438824.74,"d":"$4,438,824.74"},{"v":1569095.73,"d":"$1,569,095.73"},{"v":522466.47,"d":"$522,466.47"},{"v":443873.69,"d":"$443,873.69"},{"v":1340651.98,"d":"$1,340,651.98"},{"v":318868.75,"d":"$318,868.75"},{"v":581077,"d":"$581,077.00"},{"v":524492.36,"d":"$524,492.36"},{"v":387279.97,"d":"$387,279.97"},{"v":778100.8,"d":"$778,100.80"},{"v":669946.56,"d":"$669,946.56"},{"v":697265.02,"d":"$697,265.02"},{"v":25589749.099999998,"d":"$25,589,749.10"},{"v":333163.8,"d":"$333,163.80"},{"v":462727.49999999994,"d":"$462,727.50"},{"v":1203091.5,"d":"$1,203,091.50"},{"v":125861.87999999999,"d":"$125,861.88"},{"v":1056869.61,"d":"$1,056,869.61"},{"v":3179863.38,"d":"$3,179,863.38"},{"v":5038177.02,"d":"$5,038,177.02"},{"v":3468605.34,"d":"$3,468,605.34"},{"v":10012877.67348,"d":"$10,012,877.67"},{"v":24881237.703479998,"d":"$24,881,237.70"},{"v":3523688.42,"d":"$3,523,688.42"},{"v":21357549.283479996,"d":"$21,357,549.28"},{"v":25083814.543479994,"d":"$25,083,814.54"},{"v":555189.65,"d":"$555,189.65"},{"v":555189.65,"d":"$555,189.65"},{"v":577676.38,"d":"$577,676.38"},{"v":577676.38,"d":"$577,676.38"},{"v":183770.87,"d":"$183,770.87"},{"v":183770.87,"d":"$183,770.87"},{"v":191524.92,"d":"$191,524.92"},{"v":191524.92,"d":"$191,524.92"},{"v":230295.14,"d":"$230,295.14"},{"v":2035436.92,"d":"$2,035,436.92"},{"v":824501.15,"d":"$824,501.15"},{"v":316362.4,"d":"$316,362.40"},{"v":6422919.250000001,"d":"$6,422,919.25"},{"v":57096483.01,"d":"$57,096,483.01"},{"v":588986.3699999999,"d":"$588,986.37"},{"v":26872.109999999997,"d":"$26,872.11"},{"v":1137853.0100000002,"d":"$1,137,853.01"},{"v":57096482.89347999,"d":"$57,096,482.89"}]
["05016203017","NEW TRIER TWP H S DIST 203",3912.66,{"v":55371572.02,"d":"$55,371,572.02"},{"v":117463156.56,"d":"$117,463,156.56"},{"v":2.121362140803457,"d":"212%"},4,{"v":3527.08,"d":"$3,527.08"},{"v":2420656.98,"d":"$2,420,656.98"},{"v":2424184.06,"d":"$2,424,184.06"},{"v":1.05749,"d":"1.06"},{"v":13416192.57,"d":"$13,416,192.57"},{"v":4471616.98,"d":"$4,471,616.98"},{"v":1659000.67,"d":"$1,659,000.67"},{"v":553000.22,"d":"$553,000.22"},{"v":411700.61,"d":"$411,700.61"},{"v":1417648.88,"d":"$1,417,648.88"},{"v":336978.94,"d":"$336,978.94"},{"v":614371.14,"d":"$614,371.14"},{"v":555144.51,"d":"$555,144.51"},{"v":409580.76,"d":"$409,580.76"},{"v":823574.22,"d":"$823,574.22"},{"v":709099.28,"d":"$709,099.28"},{"v":737216.42,"d":"$737,216.42"},{"v":26115125.200000003,"d":"$26,115,125.20"},{"v":352139.39999999997,"d":"$352,139.40"},{"v":489082.5,"d":"$489,082.50"},{"v":1271614.5,"d":"$1,271,614.50"},{"v":133030.44,"d":"$133,030.44"},{"v":1117064.43,"d":"$1,117,064.43"},{"v":3360974.94,"d":"$3,360,974.94"},{"v":5325130.26,"d":"$5,325,130.26"},{"v":3666162.42,"d":"$3,666,162.42"},{"v":9495993.780240001,"d":"$9,495,993.78"},{"v":25211192.67024,"d":"$25,211,192.67"},{"v":3724382.8,"d":"$3,724,382.80"},{"v":21486809.87024,"d":"$21,486,809.87"},{"v":25425307.430239998,"d":"$25,425,307.43"},{"v":103904.2,"d":"$103,904.20"},{"v":103904.2,"d":"$103,904.20"},{"v":107781.23,"d":"$107,781.23"},{"v":107781.23,"d":"$107,781.23"},{"v":9304.85,"d":"$9,304.85"},{"v":9304.85,"d":"$9,304.85"},{"v":10080.25,"d":"$10,080.25"},{"v":10080.25,"d":"$10,080.25"},{"v":12406.47,"d":"$12,406.47"},{"v":2150972.2,"d":"$2,150,972.20"},{"v":871301.41,"d":"$871,301.41"},{"v":334318.11,"d":"$334,318.11"},{"v":3831139.25,"d":"$3,831,139.25"},{"v":55371572.02,"d":"$55,371,572.02"},{"v":68227.83999999998,"d":"$68,227.84"},{"v":8103.330000000001,"d":"$8,103.33"},{"v":1460707.3800000004,"d":"$1,460,707.38"},{"v":55371571.88024,"d":"$55,371,571.88"}]
["05016207017","MAINE TOWNSHIP H S DIST 207",6206.65,{"v":99321745.57,"d":"$99,321,745.57"},{"v":135411149.62,"d":"$135,411,149.62"},{"v":1.3633585358662965,"d":"136%"},4,{"v":6326.63,"d":"$6,326.63"},{"v":5627226.4399999995,"d":"$5,627,226.44"},{"v":5633553.069999999,"d":"$5,633,553.07"},{"v":1.05749,"d":"1.06"},{"v":22804474,"d":"$22,804,474.00"},{"v":7600731.18,"d":"$7,600,731.18"},{"v":2631840.02,"d":"$2,631,840.02"},{"v":876997.28,"d":"$876,997.28"},{"v":785582.19,"d":"$785,582.19"},{"v":2248309.6,"d":"$2,248,309.60"},{"v":534897.48,"d":"$534,897.48"},{"v":974638.89,"d":"$974,638.89"},{"v":880397.9,"d":"$880,397.90"},{"v":649549.86,"d":"$649,549.86"},{"v":1306097.77,"d":"$1,306,097.77"},{"v":1124553.16,"d":"$1,124,553.16"},{"v":1169520.73,"d":"$1,169,520.73"},{"v":43587590.05999999,"d":"$43,587,590.06"},{"v":558598.5,"d":"$558,598.50"},{"v":775831.25,"d":"$775,831.25"},{"v":2017161.2499999998,"d":"$2,017,161.25"},{"v":211026.09999999998,"d":"$211,026.10"},{"v":1771998.57,"d":"$1,771,998.57"},{"v":5331512.35,"d":"$5,331,512.35"},{"v":8447250.65,"d":"$8,447,250.65"},{"v":5815631.05,"d":"$5,815,631.05"},{"v":17572536.0036,"d":"$17,572,536.00"},{"v":42501545.7236,"d":"$42,501,545.72"},{"v":5907986,"d":"$5,907,986.00"},{"v":36593559.72360001,"d":"$36,593,559.72"},{"v":42841195.83360001,"d":"$42,841,195.83"},{"v":1277866.68,"d":"$1,277,866.68"},{"v":1277866.68,"d":"$1,277,866.68"},{"v":1331369.59,"d":"$1,331,369.59"},{"v":1331369.59,"d":"$1,331,369.59"},{"v":440429.78,"d":"$440,429.78"},{"v":440429.78,"d":"$440,429.78"},{"v":459039.48,"d":"$459,039.48"},{"v":459039.48,"d":"$459,039.48"},{"v":550537.22,"d":"$550,537.22"},{"v":3412555.39,"d":"$3,412,555.39"},{"v":1382335.08,"d":"$1,382,335.08"},{"v":530120.79,"d":"$530,120.79"},{"v":12892959.54,"d":"$12,892,959.54"},{"v":99321745.57,"d":"$99,321,745.57"},{"v":1309607.09,"d":"$1,309,607.09"},{"v":94378.51000000001,"d":"$94,378.51"},{"v":1865064.7699999998,"d":"$1,865,064.77"},{"v":99321745.43359998,"d":"$99,321,745.43"}]
["05016211017","TOWNSHIP H S DIST 211",12253,{"v":193660520.58,"d":"$193,660,520.58"},{"v":193165388.92000002,"d":"$193,165,388.92"},{"v":0.9974433009964183,"d":"100%"},3,{"v":220077.91,"d":"$220,077.91"},{"v":12465957.420000002,"d":"$12,465,957.42"},{"v":12686035.330000002,"d":"$12,686,035.33"},{"v":1.05749,"d":"1.06"},{"v":44586915.39,"d":"$44,586,915.39"},{"v":14860818.89,"d":"$14,860,818.89"},{"v":5195827.26,"d":"$5,195,827.26"},{"v":1731942.42,"d":"$1,731,942.42"},{"v":1522992.61,"d":"$1,522,992.61"},{"v":4439550.92,"d":"$4,439,550.92"},{"v":1056212.33,"d":"$1,056,212.33"},{"v":1924150.13,"d":"$1,924,150.13"},{"v":1738658.14,"d":"$1,738,658.14"},{"v":1282766.75,"d":"$1,282,766.75"},{"v":2579353.63,"d":"$2,579,353.63"},{"v":2220829.35,"d":"$2,220,829.35"},{"v":2308889.46,"d":"$2,308,889.46"},{"v":85448907.27999999,"d":"$85,448,907.28"},{"v":1102770,"d":"$1,102,770.00"},{"v":1531625,"d":"$1,531,625.00"},{"v":3982225,"d":"$3,982,225.00"},{"v":416602,"d":"$416,602.00"},{"v":3498231.5,"d":"$3,498,231.50"},{"v":10525327,"d":"$10,525,327.00"},{"v":16676333,"d":"$16,676,333.00"},{"v":11481061,"d":"$11,481,061.00"},{"v":34163066.934,"d":"$34,163,066.93"},{"v":83377241.434,"d":"$83,377,241.43"},{"v":11663385.64,"d":"$11,663,385.64"},{"v":71713855.794,"d":"$71,713,855.79"},{"v":84047769.474,"d":"$84,047,769.47"},{"v":2206801.32,"d":"$2,206,801.32"},{"v":2206801.32,"d":"$2,206,801.32"},{"v":2298299.06,"d":"$2,298,299.06"},{"v":2298299.06,"d":"$2,298,299.06"},{"v":870003.89,"d":"$870,003.89"},{"v":870003.89,"d":"$870,003.89"},{"v":905672.5,"d":"$905,672.50"},{"v":905672.5,"d":"$905,672.50"},{"v":1087117.16,"d":"$1,087,117.16"},{"v":6738265.47,"d":"$6,738,265.47"},{"v":2729491.45,"d":"$2,729,491.45"},{"v":1047416.08,"d":"$1,047,416.08"},{"v":24163843.7,"d":"$24,163,843.70"},{"v":193660520.58,"d":"$193,660,520.58"},{"v":2014667.5400000003,"d":"$2,014,667.54"},{"v":202955.59,"d":"$202,955.59"},{"v":4014468.060000001,"d":"$4,014,468.06"},{"v":193660520.454,"d":"$193,660,520.45"}]
["05016214017","TOWNSHIP HIGH SCHOOL DIST 214",12049.5,{"v":193349736.33,"d":"$193,349,736.33"},{"v":229743096.42,"d":"$229,743,096.42"},{"v":1.188225548070495,"d":"119%"},4,{"v":12316.07,"d":"$12,316.07"},{"v":10130814.459999997,"d":"$10,130,814.46"},{"v":10143130.529999997,"d":"$10,143,130.53"},{"v":1.05749,"d":"1.06"},{"v":44350278.79,"d":"$44,350,278.79"},{"v":14781947.91,"d":"$14,781,947.91"},{"v":5109314.96,"d":"$5,109,314.96"},{"v":1703104.98,"d":"$1,703,104.98"},{"v":1531163.4,"d":"$1,531,163.40"},{"v":4365271.55,"d":"$4,365,271.55"},{"v":1038748.92,"d":"$1,038,748.92"},{"v":1892112.37,"d":"$1,892,112.37"},{"v":1709708.88,"d":"$1,709,708.88"},{"v":1261408.25,"d":"$1,261,408.25"},{"v":2536406.51,"d":"$2,536,406.51"},{"v":2183851.78,"d":"$2,183,851.78"},{"v":2270445.66,"d":"$2,270,445.66"},{"v":84733763.96000001,"d":"$84,733,763.96"},{"v":1084455,"d":"$1,084,455.00"},{"v":1506187.5,"d":"$1,506,187.50"},{"v":3916087.5,"d":"$3,916,087.50"},{"v":409683,"d":"$409,683.00"},{"v":3440132.25,"d":"$3,440,132.25"},{"v":10350520.5,"d":"$10,350,520.50"},{"v":16399369.5,"d":"$16,399,369.50"},{"v":11290381.5,"d":"$11,290,381.50"},{"v":34230403.37099999,"d":"$34,230,403.37"},{"v":82627220.12099999,"d":"$82,627,220.12"},{"v":11469678.06,"d":"$11,469,678.06"},{"v":71157542.06099999,"d":"$71,157,542.06"},{"v":83286611.91099998,"d":"$83,286,611.91"},{"v":2538674.47,"d":"$2,538,674.47"},{"v":2538674.47,"d":"$2,538,674.47"},{"v":2644129.48,"d":"$2,644,129.48"},{"v":2644129.48,"d":"$2,644,129.48"},{"v":866902.27,"d":"$866,902.27"},{"v":866902.27,"d":"$866,902.27"},{"v":903346.29,"d":"$903,346.29"},{"v":903346.29,"d":"$903,346.29"},{"v":1084015.55,"d":"$1,084,015.55"},{"v":6625831.81,"d":"$6,625,831.81"},{"v":2683947.58,"d":"$2,683,947.58"},{"v":1029460.38,"d":"$1,029,460.38"},{"v":25329360.34,"d":"$25,329,360.34"},{"v":193349736.33,"d":"$193,349,736.33"},{"v":2333737.55,"d":"$2,333,737.55"},{"v":191166.08000000002,"d":"$191,166.08"},{"v":3390689.0500000003,"d":"$3,390,689.05"},{"v":193349736.211,"d":"$193,349,736.21"}]
["05016219017","NILES TWP COMM HIGH SCH DIST 219",4618.99,{"v":74878417.74,"d":"$74,878,417.74"},{"v":148110899.52,"d":"$148,110,899.52"},{"v":1.9780185531468473,"d":"198%"},4,{"v":4769.63,"d":"$4,769.63"},{"v":4853816.65,"d":"$4,853,816.65"},{"v":4858586.28,"d":"$4,858,586.28"},{"v":1.05749,"d":"1.06"},{"v":17170148.09,"d":"$17,170,148.09"},{"v":5722810.35,"d":"$5,722,810.35"},{"v":1958401.1,"d":"$1,958,401.10"},{"v":652234.92,"d":"$652,234.92"},{"v":595723.39,"d":"$595,723.39"},{"v":1673097.44,"d":"$1,673,097.44"},{"v":397777.45,"d":"$397,777.45"},{"v":725246.92,"d":"$725,246.92"},{"v":654764.01,"d":"$654,764.01"},{"v":483393.25,"d":"$483,393.25"},{"v":971362.85,"d":"$971,362.85"},{"v":836345.62,"d":"$836,345.62"},{"v":870262.12,"d":"$870,262.12"},{"v":32711567.51000001,"d":"$32,711,567.51"},{"v":415709.1,"d":"$415,709.10"},{"v":577373.75,"d":"$577,373.75"},{"v":1501171.75,"d":"$1,501,171.75"},{"v":157045.66,"d":"$157,045.66"},{"v":1318721.64,"d":"$1,318,721.64"},{"v":3967712.4099999997,"d":"$3,967,712.41"},{"v":6286445.39,"d":"$6,286,445.39"},{"v":4327993.63,"d":"$4,327,993.63"},{"v":13287886.88436,"d":"$13,287,886.88"},{"v":31840060.21436,"d":"$31,840,060.21"},{"v":4396724.2,"d":"$4,396,724.20"},{"v":27443336.014360003,"d":"$27,443,336.01"},{"v":32092827.884360004,"d":"$32,092,827.88"},{"v":1096422.02,"d":"$1,096,422.02"},{"v":1096422.02,"d":"$1,096,422.02"},{"v":1142170.89,"d":"$1,142,170.89"},{"v":1142170.89,"d":"$1,142,170.89"},{"v":306284.79,"d":"$306,284.79"},{"v":306284.79,"d":"$306,284.79"},{"v":319466.67,"d":"$319,466.67"},{"v":319466.67,"d":"$319,466.67"},{"v":383049.84,"d":"$383,049.84"},{"v":2539449.87,"d":"$2,539,449.87"},{"v":1028663.35,"d":"$1,028,663.35"},{"v":394170.46,"d":"$394,170.46"},{"v":10074022.26,"d":"$10,074,022.26"},{"v":74878417.74,"d":"$74,878,417.74"},{"v":1439768.72,"d":"$1,439,768.72"},{"v":105822.69,"d":"$105,822.69"},{"v":1598238.5,"d":"$1,598,238.50"},{"v":74878417.65436001,"d":"$74,878,417.65"}]
["05016225017","GLENBROOK HSD 225",5159.66,{"v":76616375.97,"d":"$76,616,375.97"},{"v":132344672.74000001,"d":"$132,344,672.74"},{"v":1.7273679557986539,"d":"173%"},4,{"v":4880.34,"d":"$4,880.34"},{"v":3358743.87,"d":"$3,358,743.87"},{"v":3363624.21,"d":"$3,363,624.21"},{"v":1.05749,"d":"1.06"},{"v":18121783.45,"d":"$18,121,783.45"},{"v":6039990.41,"d":"$6,039,990.41"},{"v":2187404.26,"d":"$2,187,404.26"},{"v":728569.31,"d":"$728,569.31"},{"v":584496.28,"d":"$584,496.28"},{"v":1868760.16,"d":"$1,868,760.16"},{"v":444346.52,"d":"$444,346.52"},{"v":810052.75,"d":"$810,052.75"},{"v":731394.38,"d":"$731,394.38"},{"v":539930.47,"d":"$539,930.47"},{"v":1085046.41,"d":"$1,085,046.41"},{"v":934227.43,"d":"$934,227.43"},{"v":972025.12,"d":"$972,025.12"},{"v":35048026.949999996,"d":"$35,048,026.95"},{"v":464369.39999999997,"d":"$464,369.40"},{"v":644957.5,"d":"$644,957.50"},{"v":1676889.5,"d":"$1,676,889.50"},{"v":175428.44,"d":"$175,428.44"},{"v":1473082.93,"d":"$1,473,082.93"},{"v":4432147.9399999995,"d":"$4,432,147.94"},{"v":7022297.26,"d":"$7,022,297.26"},{"v":4834601.42,"d":"$4,834,601.42"},{"v":13308270.954239998,"d":"$13,308,270.95"},{"v":34032045.344239995,"d":"$34,032,045.34"},{"v":4911377.16,"d":"$4,911,377.16"},{"v":29120668.184239987,"d":"$29,120,668.18"},{"v":34314400.41423999,"d":"$34,314,400.41"},{"v":451285.44,"d":"$451,285.44"},{"v":451285.44,"d":"$451,285.44"},{"v":469895.15,"d":"$469,895.15"},{"v":469895.15,"d":"$469,895.15"},{"v":184546.28,"d":"$184,546.28"},{"v":184546.28,"d":"$184,546.28"},{"v":192300.32,"d":"$192,300.32"},{"v":192300.32,"d":"$192,300.32"},{"v":231070.55,"d":"$231,070.55"},{"v":2837205.22,"d":"$2,837,205.22"},{"v":1149276.09,"d":"$1,149,276.09"},{"v":440342.27,"d":"$440,342.27"},{"v":7253948.51,"d":"$7,253,948.51"},{"v":76616375.97,"d":"$76,616,375.97"},{"v":279479.43,"d":"$279,479.43"},{"v":38197.850000000006,"d":"$38,197.85"},{"v":1478209.94,"d":"$1,478,209.94"},{"v":76616375.87424,"d":"$76,616,375.87"}]
[null,"SAFE SCH-INTERMEDIATE SERVICE CEN",72.64,{"v":1252448.75,"d":"$1,252,448.75"},{"v":876202.39,"d":"$876,202.39"},{"v":0.6995914124230632,"d":"70%"},1,{"v":45556.04,"d":"$45,556.04"},{"v":750957.52,"d":"$750,957.52"},{"v":796513.56,"d":"$796,513.56"},{"v":1.05749,"d":"1.06"},{"v":268932,"d":"$268,932.00"},{"v":82164.38,"d":"$82,164.38"},{"v":28799.67,"d":"$28,799.67"},{"v":9845.69,"d":"$9,845.69"},{"v":10308.23,"d":"$10,308.23"},{"v":24697.08,"d":"$24,697.08"},{"v":5821.13,"d":"$5,821.13"},{"v":10679.25,"d":"$10,679.25"},{"v":10217.38,"d":"$10,217.38"},{"v":7224.2,"d":"$7,224.20"},{"v":15157.8,"d":"$15,157.80"},{"v":13050.9,"d":"$13,050.90"},{"v":12814.6,"d":"$12,814.60"},{"v":499712.31,"d":"$499,712.31"},{"v":6537.599999999999,"d":"$6,537.60"},{"v":9080,"d":"$9,080.00"},{"v":23607.999999999996,"d":"$23,608.00"},{"v":2469.7599999999998,"d":"$2,469.76"},{"v":41477.44,"d":"$41,477.44"},{"v":52033.85999999999,"d":"$52,033.86"},{"v":98863.04,"d":"$98,863.04"},{"v":68063.68,"d":"$68,063.68"},{"v":223018.59396,"d":"$223,018.59"},{"v":525151.97396,"d":"$525,151.97"},{"v":69144.56,"d":"$69,144.56"},{"v":456007.41396,"d":"$456,007.41"},{"v":529127.09396,"d":"$529,127.09"},{"v":23262.13,"d":"$23,262.13"},{"v":23262.13,"d":"$23,262.13"},{"v":24037.54,"d":"$24,037.54"},{"v":24037.54,"d":"$24,037.54"},{"v":12406.47,"d":"$12,406.47"},{"v":12406.47,"d":"$12,406.47"},{"v":13181.87,"d":"$13,181.87"},{"v":13181.87,"d":"$13,181.87"},{"v":16283.49,"d":"$16,283.49"},{"v":39545.63,"d":"$39,545.63"},{"v":16018.87,"d":"$16,018.87"},{"v":5985.23,"d":"$5,985.23"},{"v":223609.24,"d":"$223,609.24"},{"v":1252448.75,"d":"$1,252,448.75"},{"v":30548.2,"d":"$30,548.20"},{"v":11092.28,"d":"$11,092.28"},{"v":13599.15,"d":"$13,599.15"},{"v":1252448.64396,"d":"$1,252,448.64"}]
[null,"ALOP SCH-INTERMEDIATE SERVICE CEN",2373,{"v":40661387.65,"d":"$40,661,387.65"},{"v":18419763.45,"d":"$18,419,763.45"},{"v":0.45300380814721164,"d":"45%"},1,{"v":5053454.9,"d":"$5,053,454.90"},{"v":14353624.69,"d":"$14,353,624.69"},{"v":19407079.59,"d":"$19,407,079.59"},{"v":1.05749,"d":"1.06"},{"v":8734061.26,"d":"$8,734,061.26"},{"v":2589333.19,"d":"$2,589,333.19"},{"v":965940.32,"d":"$965,940.32"},{"v":351231.08,"d":"$351,231.08"},{"v":334678.31,"d":"$334,678.31"},{"v":813234.49,"d":"$813,234.49"},{"v":203739.67,"d":"$203,739.67"},{"v":359953.64,"d":"$359,953.64"},{"v":370380.16,"d":"$370,380.16"},{"v":248135.58,"d":"$248,135.58"},{"v":549470.53,"d":"$549,470.53"},{"v":473095.38,"d":"$473,095.38"},{"v":431927.41,"d":"$431,927.41"},{"v":16425181.020000001,"d":"$16,425,181.02"},{"v":213570,"d":"$213,570.00"},{"v":296625,"d":"$296,625.00"},{"v":771225,"d":"$771,225.00"},{"v":80682,"d":"$80,682.00"},{"v":1354983,"d":"$1,354,983.00"},{"v":1585349,"d":"$1,585,349.00"},{"v":3229653,"d":"$3,229,653.00"},{"v":2223501,"d":"$2,223,501.00"},{"v":7255287.165,"d":"$7,255,287.17"},{"v":17010875.165,"d":"$17,010,875.17"},{"v":2258811.24,"d":"$2,258,811.24"},{"v":14752063.924999999,"d":"$14,752,063.93"},{"v":17140734.215,"d":"$17,140,734.22"},{"v":759896.45,"d":"$759,896.45"},{"v":759896.45,"d":"$759,896.45"},{"v":791688.03,"d":"$791,688.03"},{"v":791688.03,"d":"$791,688.03"},{"v":366766.34,"d":"$366,766.34"},{"v":366766.34,"d":"$366,766.34"},{"v":382274.43,"d":"$382,274.43"},{"v":382274.43,"d":"$382,274.43"},{"v":459039.48,"d":"$459,039.48"},{"v":1304230.44,"d":"$1,304,230.44"},{"v":528308.93,"d":"$528,308.93"},{"v":202642.94,"d":"$202,642.94"},{"v":7095472.289999998,"d":"$7,095,472.29"},{"v":40661387.65,"d":"$40,661,387.65"},{"v":1652293.78,"d":"$1,652,293.78"},{"v":573900.01,"d":"$573,900.01"},{"v":743873.21,"d":"$743,873.21"},{"v":40661387.525,"d":"$40,661,387.53"}]
["06016078002","ROSEMONT ELEM SCHOOL DIST 78",192.3,{"v":2871286.36,"d":"$2,871,286.36"},{"v":8776903.840000002,"d":"$8,776,903.84"},{"v":3.0567845695474283,"d":"306%"},4,{"v":182.89,"d":"$182.89"},{"v":270084.88,"d":"$270,084.88"},{"v":270267.77,"d":"$270,267.77"},{"v":1.05749,"d":"1.06"},{"v":690962.07,"d":"$690,962.07"},{"v":138192.41,"d":"$138,192.41"},{"v":70054.85,"d":"$70,054.85"},{"v":30234.19,"d":"$30,234.19"},{"v":25712.17,"d":"$25,712.17"},{"v":41326.79,"d":"$41,326.79"},{"v":15523.02,"d":"$15,523.02"},{"v":26384.03,"d":"$26,384.03"},{"v":34909.39,"d":"$34,909.39"},{"v":19788.02,"d":"$19,788.02"},{"v":51789.17,"d":"$51,789.17"},{"v":44590.59,"d":"$44,590.59"},{"v":31659.6,"d":"$31,659.60"},{"v":1221126.3,"d":"$1,221,126.30"},{"v":16872.3,"d":"$16,872.30"},{"v":24037.5,"d":"$24,037.50"},{"v":62497.5,"d":"$62,497.50"},{"v":6538.2,"d":"$6,538.20"},{"v":54901.64,"d":"$54,901.64"},{"v":30624.509999999995,"d":"$30,624.51"},{"v":261720.3,"d":"$261,720.30"},{"v":180185.1,"d":"$180,185.10"},{"v":528455.5332,"d":"$528,455.53"},{"v":1165832.5832,"d":"$1,165,832.58"},{"v":183046.52,"d":"$183,046.52"},{"v":982786.0631999997,"d":"$982,786.06"},{"v":1176355.9231999996,"d":"$1,176,355.92"},{"v":47299.67,"d":"$47,299.67"},{"v":47299.67,"d":"$47,299.67"},{"v":49625.89,"d":"$49,625.89"},{"v":49625.89,"d":"$49,625.89"},{"v":21711.32,"d":"$21,711.32"},{"v":21711.32,"d":"$21,711.32"},{"v":22486.73,"d":"$22,486.73"},{"v":22486.73,"d":"$22,486.73"},{"v":27139.15,"d":"$27,139.15"},{"v":105455.01,"d":"$105,455.01"},{"v":42717.01,"d":"$42,717.01"},{"v":16245.63,"d":"$16,245.63"},{"v":473804.0200000001,"d":"$473,804.02"},{"v":2871286.36,"d":"$2,871,286.36"},{"v":145590.09,"d":"$145,590.09"},{"v":62.49,"d":"$62.49"},{"v":64607.36999999999,"d":"$64,607.37"},{"v":2871286.2432,"d":"$2,871,286.24"}]
["06016079002","PENNOYER SCHOOL DIST 79",419.25,{"v":6510216.23,"d":"$6,510,216.23"},{"v":5599693.37,"d":"$5,599,693.37"},{"v":0.8601393828051084,"d":"86%"},2,{"v":8699.29,"d":"$8,699.29"},{"v":544192.3999999999,"d":"$544,192.40"},{"v":552891.69,"d":"$552,891.69"},{"v":1.05749,"d":"1.06"},{"v":1512447.39,"d":"$1,512,447.39"},{"v":302489.47,"d":"$302,489.47"},{"v":153383.25,"d":"$153,383.25"},{"v":67842.59,"d":"$67,842.59"},{"v":57317.34,"d":"$57,317.34"},{"v":95369.52,"d":"$95,369.52"},{"v":35573.59,"d":"$35,573.59"},{"v":58107.7,"d":"$58,107.70"},{"v":78333.27,"d":"$78,333.27"},{"v":43659.29,"d":"$43,659.29"},{"v":116209.86,"d":"$116,209.86"},{"v":100056.95,"d":"$100,056.95"},{"v":69726.5,"d":"$69,726.50"},{"v":2690516.72,"d":"$2,690,516.72"},{"v":37485,"d":"$37,485.00"},{"v":52406.25,"d":"$52,406.25"},{"v":136256.25,"d":"$136,256.25"},{"v":14254.5,"d":"$14,254.50"},{"v":239391.75,"d":"$239,391.75"},{"v":71840.5,"d":"$71,840.50"},{"v":570599.25,"d":"$570,599.25"},{"v":392837.25,"d":"$392,837.25"},{"v":1179434.949,"d":"$1,179,434.95"},{"v":2694505.699,"d":"$2,694,505.70"},{"v":399075.69,"d":"$399,075.69"},{"v":2295430.009,"d":"$2,295,430.01"},{"v":2717448.559,"d":"$2,717,448.56"},{"v":109332.04,"d":"$109,332.04"},{"v":109332.04,"d":"$109,332.04"},{"v":113209.06,"d":"$113,209.06"},{"v":113209.06,"d":"$113,209.06"},{"v":55829.12,"d":"$55,829.12"},{"v":55829.12,"d":"$55,829.12"},{"v":58155.34,"d":"$58,155.34"},{"v":58155.34,"d":"$58,155.34"},{"v":70561.81,"d":"$70,561.81"},{"v":230295.14,"d":"$230,295.14"},{"v":93286.41,"d":"$93,286.41"},{"v":35056.37,"d":"$35,056.37"},{"v":1102250.85,"d":"$1,102,250.85"},{"v":6510216.23,"d":"$6,510,216.23"},{"v":211027.54,"d":"$211,027.54"},{"v":14939.58,"d":"$14,939.58"},{"v":120623.45000000001,"d":"$120,623.45"},{"v":6510216.129000001,"d":"$6,510,216.13"}]
["06016080002","NORRIDGE SCHOOL DIST 80",1063,{"v":16656022.68,"d":"$16,656,022.68"},{"v":13945118.299999999,"d":"$13,945,118.30"},{"v":0.8372417934291622,"d":"84%"},2,{"v":25563.17,"d":"$25,563.17"},{"v":1340591.2600000002,"d":"$1,340,591.26"},{"v":1366154.4300000002,"d":"$1,366,154.43"},{"v":1.05749,"d":"1.06"},{"v":3853016.89,"d":"$3,853,016.89"},{"v":770603.37,"d":"$770,603.37"},{"v":391569.75,"d":"$391,569.75"},{"v":173293.58,"d":"$173,293.58"},{"v":147034.81,"d":"$147,034.81"},{"v":242397.54,"d":"$242,397.54"},{"v":91197.75,"d":"$91,197.75"},{"v":148253.16,"d":"$148,253.16"},{"v":200090.43,"d":"$200,090.43"},{"v":111189.87,"d":"$111,189.87"},{"v":296840.4,"d":"$296,840.40"},{"v":255580.26,"d":"$255,580.26"},{"v":177896.8,"d":"$177,896.80"},{"v":6858964.609999999,"d":"$6,858,964.61"},{"v":94545,"d":"$94,545.00"},{"v":132875,"d":"$132,875.00"},{"v":345475,"d":"$345,475.00"},{"v":36142,"d":"$36,142.00"},{"v":606973,"d":"$606,973.00"},{"v":179672.5,"d":"$179,672.50"},{"v":1446743,"d":"$1,446,743.00"},{"v":996031,"d":"$996,031.00"},{"v":3023752.6199999996,"d":"$3,023,752.62"},{"v":6862209.119999999,"d":"$6,862,209.12"},{"v":1011848.44,"d":"$1,011,848.44"},{"v":5850360.68,"d":"$5,850,360.68"},{"v":6920380.279999999,"d":"$6,920,380.28"},{"v":287675.08,"d":"$287,675.08"},{"v":287675.08,"d":"$287,675.08"},{"v":300081.55,"d":"$300,081.55"},{"v":300081.55,"d":"$300,081.55"},{"v":148102.26,"d":"$148,102.26"},{"v":148102.26,"d":"$148,102.26"},{"v":154305.5,"d":"$154,305.50"},{"v":154305.5,"d":"$154,305.50"},{"v":185321.68,"d":"$185,321.68"},{"v":583879.62,"d":"$583,879.62"},{"v":236514.04,"d":"$236,514.04"},{"v":90633.55,"d":"$90,633.55"},{"v":2876677.67,"d":"$2,876,677.67"},{"v":16656022.68,"d":"$16,656,022.68"},{"v":426370.5999999999,"d":"$426,370.60"},{"v":52523.079999999994,"d":"$52,523.08"},{"v":317985.99,"d":"$317,985.99"},{"v":16656022.559999999,"d":"$16,656,022.56"}]
["06016081002","SCHILLER PARK SCHOOL DIST 81",1275.47,{"v":21702428.59,"d":"$21,702,428.59"},{"v":17859808.04,"d":"$17,859,808.04"},{"v":0.8229405278738898,"d":"82%"},2,{"v":82366.89,"d":"$82,366.89"},{"v":3948595.0999999996,"d":"$3,948,595.10"},{"v":4030961.9899999998,"d":"$4,030,961.99"},{"v":1.05749,"d":"1.06"},{"v":4838209.35,"d":"$4,838,209.35"},{"v":967641.86,"d":"$967,641.86"},{"v":469736.22,"d":"$469,736.22"},{"v":208689.71,"d":"$208,689.71"},{"v":196932.15,"d":"$196,932.15"},{"v":288492.81,"d":"$288,492.81"},{"v":109954.74,"d":"$109,954.74"},{"v":177778.15,"d":"$177,778.15"},{"v":240959.96,"d":"$240,959.96"},{"v":133490.66,"d":"$133,490.66"},{"v":357471.63,"d":"$357,471.63"},{"v":307783.89,"d":"$307,783.89"},{"v":213325.4,"d":"$213,325.40"},{"v":8510466.53,"d":"$8,510,466.53"},{"v":113712.3,"d":"$113,712.30"},{"v":159433.75,"d":"$159,433.75"},{"v":414527.75,"d":"$414,527.75"},{"v":43365.979999999996,"d":"$43,365.98"},{"v":728293.37,"d":"$728,293.37"},{"v":213773.43,"d":"$213,773.43"},{"v":1735914.67,"d":"$1,735,914.67"},{"v":1195115.39,"d":"$1,195,115.39"},{"v":4003444.78008,"d":"$4,003,444.78"},{"v":8607581.420079999,"d":"$8,607,581.42"},{"v":1214094.38,"d":"$1,214,094.38"},{"v":7393487.040080001,"d":"$7,393,487.04"},{"v":8677379.70008,"d":"$8,677,379.70"},{"v":483077.02,"d":"$483,077.02"},{"v":483077.02,"d":"$483,077.02"},{"v":503237.54,"d":"$503,237.54"},{"v":503237.54,"d":"$503,237.54"},{"v":271391.58,"d":"$271,391.58"},{"v":271391.58,"d":"$271,391.58"},{"v":283022.65,"d":"$283,022.65"},{"v":283022.65,"d":"$283,022.65"},{"v":339627.18,"d":"$339,627.18"},{"v":700965.7,"d":"$700,965.70"},{"v":283942.49,"d":"$283,942.49"},{"v":108589.25,"d":"$108,589.25"},{"v":4514582.2,"d":"$4,514,582.20"},{"v":21702428.59,"d":"$21,702,428.59"},{"v":1638034.7599999998,"d":"$1,638,034.76"},{"v":244314.45,"d":"$244,314.45"},{"v":549557.12,"d":"$549,557.12"},{"v":21702428.43008,"d":"$21,702,428.43"}]
["06016083002","MANNHEIM SCHOOL DIST 83",2323.61,{"v":39700854.33,"d":"$39,700,854.33"},{"v":54280834.53,"d":"$54,280,834.53"},{"v":1.3672460063153509,"d":"137%"},4,{"v":2528.88,"d":"$2,528.88"},{"v":6507547.069999999,"d":"$6,507,547.07"},{"v":6510075.949999999,"d":"$6,510,075.95"},{"v":1.05749,"d":"1.06"},{"v":8789303.04,"d":"$8,789,303.04"},{"v":1757860.6,"d":"$1,757,860.60"},{"v":856144.04,"d":"$856,144.04"},{"v":380508.46,"d":"$380,508.46"},{"v":368135.9,"d":"$368,135.90"},{"v":531685.09,"d":"$531,685.09"},{"v":199858.91,"d":"$199,858.91"},{"v":324146.74,"d":"$324,146.74"},{"v":439347.5,"d":"$439,347.50"},{"v":242795.96,"d":"$242,795.96"},{"v":651785.73,"d":"$651,785.73"},{"v":561189,"d":"$561,189.00"},{"v":388960.81,"d":"$388,960.81"},{"v":15491721.780000003,"d":"$15,491,721.78"},{"v":207040.50000000003,"d":"$207,040.50"},{"v":290451.25,"d":"$290,451.25"},{"v":755173.25,"d":"$755,173.25"},{"v":79002.74,"d":"$79,002.74"},{"v":663390.6499999999,"d":"$663,390.65"},{"v":394235.93000000005,"d":"$394,235.93"},{"v":3162433.21,"d":"$3,162,433.21"},{"v":2177222.5700000003,"d":"$2,177,222.57"},{"v":7473108.35904,"d":"$7,473,108.36"},{"v":15202058.45904,"d":"$15,202,058.46"},{"v":2211797.88,"d":"$2,211,797.88"},{"v":12990260.579040002,"d":"$12,990,260.58"},{"v":15329214.719040003,"d":"$15,329,214.72"},{"v":863025.25,"d":"$863,025.25"},{"v":863025.25,"d":"$863,025.25"},{"v":899469.26,"d":"$899,469.26"},{"v":899469.26,"d":"$899,469.26"},{"v":630403.89,"d":"$630,403.89"},{"v":630403.89,"d":"$630,403.89"},{"v":656767.64,"d":"$656,767.64"},{"v":656767.64,"d":"$656,767.64"},{"v":787811.01,"d":"$787,811.01"},{"v":1277091.28,"d":"$1,277,091.28"},{"v":517315.58,"d":"$517,315.58"},{"v":198367.78,"d":"$198,367.78"},{"v":8879917.729999999,"d":"$8,879,917.73"},{"v":39700854.33,"d":"$39,700,854.33"},{"v":3437375.1799999997,"d":"$3,437,375.18"},{"v":343819.58,"d":"$343,819.58"},{"v":1045789.99,"d":"$1,045,789.99"},{"v":39700854.229040004,"d":"$39,700,854.23"}]
["06016084002","FRANKLIN PARK SCHOOL DIST 84",1240.89,{"v":20309713.02,"d":"$20,309,713.02"},{"v":21218699.95,"d":"$21,218,699.95"},{"v":1.044756266575745,"d":"104%"},4,{"v":1293.69,"d":"$1,293.69"},{"v":3790244.8499999996,"d":"$3,790,244.85"},{"v":3791538.5399999996,"d":"$3,791,538.54"},{"v":1.05749,"d":"1.06"},{"v":4622882.85,"d":"$4,622,882.85"},{"v":924576.56,"d":"$924,576.56"},{"v":456462.67,"d":"$456,462.67"},{"v":202790.36,"d":"$202,790.36"},{"v":182071.38,"d":"$182,071.38"},{"v":280545.35,"d":"$280,545.35"},{"v":106720.78,"d":"$106,720.78"},{"v":172752.62,"d":"$172,752.62"},{"v":234148.37,"d":"$234,148.37"},{"v":129407.42,"d":"$129,407.42"},{"v":347366.43,"d":"$347,366.43"},{"v":299083.28,"d":"$299,083.28"},{"v":207295,"d":"$207,295.00"},{"v":8166103.07,"d":"$8,166,103.07"},{"v":110622.6,"d":"$110,622.60"},{"v":155111.25000000003,"d":"$155,111.25"},{"v":403289.25,"d":"$403,289.25"},{"v":42190.26,"d":"$42,190.26"},{"v":708548.19,"d":"$708,548.19"},{"v":207933.42000000004,"d":"$207,933.42"},{"v":1688851.29,"d":"$1,688,851.29"},{"v":1162713.9300000002,"d":"$1,162,713.93"},{"v":3719267.1369600003,"d":"$3,719,267.14"},{"v":8198527.326960001,"d":"$8,198,527.33"},{"v":1181178.37,"d":"$1,181,178.37"},{"v":7017348.956959999,"d":"$7,017,348.96"},{"v":8266433.266959999,"d":"$8,266,433.27"},{"v":410964.4,"d":"$410,964.40"},{"v":410964.4,"d":"$410,964.40"},{"v":428023.3,"d":"$428,023.30"},{"v":428023.3,"d":"$428,023.30"},{"v":212460.84,"d":"$212,460.84"},{"v":212460.84,"d":"$212,460.84"},{"v":221765.69,"d":"$221,765.69"},{"v":221765.69,"d":"$221,765.69"},{"v":265963.75,"d":"$265,963.75"},{"v":682355.99,"d":"$682,355.99"},{"v":276404.19,"d":"$276,404.19"},{"v":106024.15,"d":"$106,024.15"},{"v":3877176.54,"d":"$3,877,176.54"},{"v":20309713.02,"d":"$20,309,713.02"},{"v":1356544.15,"d":"$1,356,544.15"},{"v":130109.46000000002,"d":"$130,109.46"},{"v":443501.06999999995,"d":"$443,501.07"},{"v":20309712.87696,"d":"$20,309,712.88"}]
["06016084502","RHODES SCHOOL DIST 84-5",524.23,{"v":9263535.83,"d":"$9,263,535.83"},{"v":13012856.530000001,"d":"$13,012,856.53"},{"v":1.4047396986211043,"d":"140%"},4,{"v":590.07,"d":"$590.07"},{"v":1642470.5,"d":"$1,642,470.50"},{"v":1643060.57,"d":"$1,643,060.57"},{"v":1.05749,"d":"1.06"},{"v":2044126.85,"d":"$2,044,126.85"},{"v":408825.36,"d":"$408,825.36"},{"v":192466.48,"d":"$192,466.48"},{"v":85540.66,"d":"$85,540.66"},{"v":86844.88,"d":"$86,844.88"},{"v":118417.15,"d":"$118,417.15"},{"v":44628.69,"d":"$44,628.69"},{"v":72870.19,"d":"$72,870.19"},{"v":98768.04,"d":"$98,768.04"},{"v":54338.55,"d":"$54,338.55"},{"v":146525.47,"d":"$146,525.47"},{"v":126158.76,"d":"$126,158.76"},{"v":87440.8,"d":"$87,440.80"},{"v":3566951.8799999994,"d":"$3,566,951.88"},{"v":46543.5,"d":"$46,543.50"},{"v":65528.75,"d":"$65,528.75"},{"v":170374.74999999997,"d":"$170,374.75"},{"v":17823.82,"d":"$17,823.82"},{"v":149667.66,"d":"$149,667.66"},{"v":87624.67,"d":"$87,624.67"},{"v":713477.0299999999,"d":"$713,477.03"},{"v":491203.51,"d":"$491,203.51"},{"v":1753261.82472,"d":"$1,753,261.82"},{"v":3495505.51472,"d":"$3,495,505.51"},{"v":499004.05,"d":"$499,004.05"},{"v":2996501.4647199996,"d":"$2,996,501.46"},{"v":3524193.2547199996,"d":"$3,524,193.25"},{"v":231845.95,"d":"$231,845.95"},{"v":231845.95,"d":"$231,845.95"},{"v":241150.81,"d":"$241,150.81"},{"v":241150.81,"d":"$241,150.81"},{"v":145776.05,"d":"$145,776.05"},{"v":145776.05,"d":"$145,776.05"},{"v":151979.29,"d":"$151,979.29"},{"v":151979.29,"d":"$151,979.29"},{"v":182220.06,"d":"$182,220.06"},{"v":287675.08,"d":"$287,675.08"},{"v":116529.49,"d":"$116,529.49"},{"v":44461.74,"d":"$44,461.74"},{"v":2172390.5700000008,"d":"$2,172,390.57"},{"v":9263535.83,"d":"$9,263,535.83"},{"v":1036219.1499999999,"d":"$1,036,219.15"},{"v":88859.22,"d":"$88,859.22"},{"v":202948.31000000003,"d":"$202,948.31"},{"v":9263535.70472,"d":"$9,263,535.70"}]
["06016085502","RIVER GROVE SCHOOL DIST 85-5",702.72,{"v":11807194.91,"d":"$11,807,194.91"},{"v":8630297.26,"d":"$8,630,297.26"},{"v":0.7309354445136368,"d":"73%"},1,{"v":263648.76,"d":"$263,648.76"},{"v":4200306.63,"d":"$4,200,306.63"},{"v":4463955.39,"d":"$4,463,955.39"},{"v":1.05749,"d":"1.06"},{"v":2684206.98,"d":"$2,684,206.98"},{"v":536841.39,"d":"$536,841.39"},{"v":258096.82,"d":"$258,096.82"},{"v":114300.02,"d":"$114,300.02"},{"v":106901.45,"d":"$106,901.45"},{"v":158949.2,"d":"$158,949.20"},{"v":59504.92,"d":"$59,504.92"},{"v":97683.75,"d":"$97,683.75"},{"v":131974.54,"d":"$131,974.54"},{"v":73184.29,"d":"$73,184.29"},{"v":195788.35,"d":"$195,788.35"},{"v":168574.21,"d":"$168,574.21"},{"v":117215.9,"d":"$117,215.90"},{"v":4703221.82,"d":"$4,703,221.82"},{"v":62922.600000000006,"d":"$62,922.60"},{"v":87840,"d":"$87,840.00"},{"v":228384,"d":"$228,384.00"},{"v":23892.479999999996,"d":"$23,892.48"},{"v":401253.12,"d":"$401,253.12"},{"v":118887.26000000001,"d":"$118,887.26"},{"v":956401.9199999999,"d":"$956,401.92"},{"v":658448.6399999999,"d":"$658,448.64"},{"v":2172649.93908,"d":"$2,172,649.94"},{"v":4710679.9590799995,"d":"$4,710,679.96"},{"v":668905.11,"d":"$668,905.11"},{"v":4041774.8490799996,"d":"$4,041,774.85"},{"v":4749135.309079999,"d":"$4,749,135.31"},{"v":263637.54,"d":"$263,637.54"},{"v":263637.54,"d":"$263,637.54"},{"v":275268.61,"d":"$275,268.61"},{"v":275268.61,"d":"$275,268.61"},{"v":126390.94,"d":"$126,390.94"},{"v":126390.94,"d":"$126,390.94"},{"v":131818.77,"d":"$131,818.77"},{"v":131818.77,"d":"$131,818.77"},{"v":158182.52,"d":"$158,182.52"},{"v":386151.46,"d":"$386,151.46"},{"v":156419.64,"d":"$156,419.64"},{"v":59852.34,"d":"$59,852.34"},{"v":2354837.6799999997,"d":"$2,354,837.68"},{"v":11807194.91,"d":"$11,807,194.91"},{"v":1209925.26,"d":"$1,209,925.26"},{"v":229702.45,"d":"$229,702.45"},{"v":365697.94999999995,"d":"$365,697.95"},{"v":11807194.80908,"d":"$11,807,194.81"}]
["06016086002","UNION RIDGE SCHOOL DIST 86",584.25,{"v":9779603.78,"d":"$9,779,603.78"},{"v":7325970.79,"d":"$7,325,970.79"},{"v":0.749107116689343,"d":"75%"},1,{"v":124882.47,"d":"$124,882.47"},{"v":1094670.5,"d":"$1,094,670.50"},{"v":1219552.97,"d":"$1,219,552.97"},{"v":1.05749,"d":"1.06"},{"v":2179812.04,"d":"$2,179,812.04"},{"v":435962.4,"d":"$435,962.40"},{"v":215326.49,"d":"$215,326.49"},{"v":95127.11,"d":"$95,127.11"},{"v":88420.92,"d":"$88,420.92"},{"v":127954.11,"d":"$127,954.11"},{"v":49803.03,"d":"$49,803.03"},{"v":81036.68,"d":"$81,036.68"},{"v":109836.87,"d":"$109,836.87"},{"v":60934.56,"d":"$60,934.56"},{"v":162946.43,"d":"$162,946.43"},{"v":140297.25,"d":"$140,297.25"},{"v":97240.2,"d":"$97,240.20"},{"v":3844698.09,"d":"$3,844,698.09"},{"v":51975,"d":"$51,975.00"},{"v":73031.25,"d":"$73,031.25"},{"v":189881.25,"d":"$189,881.25"},{"v":19864.5,"d":"$19,864.50"},{"v":333606.75,"d":"$333,606.75"},{"v":94755.5,"d":"$94,755.50"},{"v":795164.25,"d":"$795,164.25"},{"v":547442.25,"d":"$547,442.25"},{"v":1799261.43,"d":"$1,799,261.43"},{"v":3904982.1799999997,"d":"$3,904,982.18"},{"v":556135.89,"d":"$556,135.89"},{"v":3348846.2899999996,"d":"$3,348,846.29"},{"v":3936954.4299999997,"d":"$3,936,954.43"},{"v":187647.89,"d":"$187,647.89"},{"v":187647.89,"d":"$187,647.89"},{"v":195401.94,"d":"$195,401.94"},{"v":195401.94,"d":"$195,401.94"},{"v":137246.6,"d":"$137,246.60"},{"v":137246.6,"d":"$137,246.60"},{"v":142674.43,"d":"$142,674.43"},{"v":142674.43,"d":"$142,674.43"},{"v":171364.4,"d":"$171,364.40"},{"v":321017.48,"d":"$321,017.48"},{"v":130035.61,"d":"$130,035.61"},{"v":49591.94,"d":"$49,591.94"},{"v":1997951.1499999997,"d":"$1,997,951.15"},{"v":9779603.78,"d":"$9,779,603.78"},{"v":464241.16000000003,"d":"$464,241.16"},{"v":88932.61,"d":"$88,932.61"},{"v":180093.06999999998,"d":"$180,093.07"},{"v":9779603.67,"d":"$9,779,603.67"}]
["06016087002","BERKELEY SCHOOL DIST 87",2322.39,{"v":40303460.99,"d":"$40,303,460.99"},{"v":32236126.810000002,"d":"$32,236,126.81"},{"v":0.7998352007039383,"d":"80%"},2,{"v":264028.92,"d":"$264,028.92"},{"v":16712602.770000001,"d":"$16,712,602.77"},{"v":16976631.69,"d":"$16,976,631.69"},{"v":1.05749,"d":"1.06"},{"v":8888117.25,"d":"$8,888,117.25"},{"v":1777623.44,"d":"$1,777,623.44"},{"v":856144.04,"d":"$856,144.04"},{"v":379771.04,"d":"$379,771.04"},{"v":367631.76,"d":"$367,631.76"},{"v":532479.84,"d":"$532,479.84"},{"v":199858.91,"d":"$199,858.91"},{"v":323832.64,"d":"$323,832.64"},{"v":438496.05,"d":"$438,496.05"},{"v":243110.05,"d":"$243,110.05"},{"v":650522.58,"d":"$650,522.58"},{"v":560101.42,"d":"$560,101.42"},{"v":388583.91,"d":"$388,583.91"},{"v":15606272.930000002,"d":"$15,606,272.93"},{"v":206765.09999999998,"d":"$206,765.10"},{"v":290298.75,"d":"$290,298.75"},{"v":754776.75,"d":"$754,776.75"},{"v":78961.26,"d":"$78,961.26"},{"v":1326084.69,"d":"$1,326,084.69"},{"v":395094.67,"d":"$395,094.67"},{"v":3160772.79,"d":"$3,160,772.79"},{"v":2176079.4299999997,"d":"$2,176,079.43"},{"v":7460305.206959999,"d":"$7,460,305.21"},{"v":15849138.646959998,"d":"$15,849,138.65"},{"v":2210636.59,"d":"$2,210,636.59"},{"v":13638502.056959998,"d":"$13,638,502.06"},{"v":15976228.136959998,"d":"$15,976,228.14"},{"v":956849.2,"d":"$956,849.20"},{"v":956849.2,"d":"$956,849.20"},{"v":997170.24,"d":"$997,170.24"},{"v":997170.24,"d":"$997,170.24"},{"v":528825.89,"d":"$528,825.89"},{"v":528825.89,"d":"$528,825.89"},{"v":550537.22,"d":"$550,537.22"},{"v":550537.22,"d":"$550,537.22"},{"v":661420.07,"d":"$661,420.07"},{"v":1277091.28,"d":"$1,277,091.28"},{"v":517315.58,"d":"$517,315.58"},{"v":198367.78,"d":"$198,367.78"},{"v":8720959.809999999,"d":"$8,720,959.81"},{"v":40303460.99,"d":"$40,303,460.99"},{"v":5656590.790000001,"d":"$5,656,590.79"},{"v":889131.06,"d":"$889,131.06"},{"v":940863.66,"d":"$940,863.66"},{"v":40303460.876959994,"d":"$40,303,460.88"}]
["06016088002","BELLWOOD SCHOOL DIST 88",2082.47,{"v":37685164.71,"d":"$37,685,164.71"},{"v":30372536.269999996,"d":"$30,372,536.27"},{"v":0.8059547172933132,"d":"81%"},2,{"v":254423.13,"d":"$254,423.13"},{"v":19220233.240000002,"d":"$19,220,233.24"},{"v":19474656.37,"d":"$19,474,656.37"},{"v":1.05749,"d":"1.06"},{"v":8399945.54,"d":"$8,399,945.54"},{"v":1679989.1,"d":"$1,679,989.10"},{"v":766916.28,"d":"$766,916.28"},{"v":340687.8,"d":"$340,687.80"},{"v":349061.35,"d":"$349,061.35"},{"v":468900.16,"d":"$468,900.16"},{"v":179161.55,"d":"$179,161.55"},{"v":290538.5,"d":"$290,538.50"},{"v":393369.27,"d":"$393,369.27"},{"v":217668.3,"d":"$217,668.30"},{"v":583575.6,"d":"$583,575.60"},{"v":502459.92,"d":"$502,459.92"},{"v":348632.51,"d":"$348,632.51"},{"v":14520905.879999999,"d":"$14,520,905.88"},{"v":185967.90000000002,"d":"$185,967.90"},{"v":260308.75000000003,"d":"$260,308.75"},{"v":676802.75,"d":"$676,802.75"},{"v":70803.98000000001,"d":"$70,803.98"},{"v":1189090.37,"d":"$1,189,090.37"},{"v":348145.35,"d":"$348,145.35"},{"v":2834241.6700000004,"d":"$2,834,241.67"},{"v":1951274.3900000001,"d":"$1,951,274.39"},{"v":7028058.34608,"d":"$7,028,058.35"},{"v":14544693.50608,"d":"$14,544,693.51"},{"v":1982261.54,"d":"$1,982,261.54"},{"v":12562431.966079999,"d":"$12,562,431.97"},{"v":14658653.716079999,"d":"$14,658,653.72"},{"v":1087892.57,"d":"$1,087,892.57"},{"v":1087892.57,"d":"$1,087,892.57"},{"v":1132866.03,"d":"$1,132,866.03"},{"v":1132866.03,"d":"$1,132,866.03"},{"v":427247.9,"d":"$427,247.90"},{"v":427247.9,"d":"$427,247.90"},{"v":445082.2,"d":"$445,082.20"},{"v":445082.2,"d":"$445,082.20"},{"v":533478.32,"d":"$533,478.32"},{"v":1144497.1,"d":"$1,144,497.10"},{"v":463605.22,"d":"$463,605.22"},{"v":177846.97,"d":"$177,846.97"},{"v":8505605.010000002,"d":"$8,505,605.01"},{"v":37685164.71,"d":"$37,685,164.71"},{"v":8025156.050000001,"d":"$8,025,156.05"},{"v":664429.21,"d":"$664,429.21"},{"v":987797.3800000001,"d":"$987,797.38"},{"v":37685164.606079996,"d":"$37,685,164.61"}]
["06016089002","MAYWOOD-MELROSE PARK-BROADVIEW-89",4079.29,{"v":74875674.74,"d":"$74,875,674.74"},{"v":57291415.22,"d":"$57,291,415.22"},{"v":0.7651539090491006,"d":"77%"},1,{"v":936236.23,"d":"$936,236.23"},{"v":45859249.44,"d":"$45,859,249.44"},{"v":46795485.669999994,"d":"$46,795,485.67"},{"v":1.05749,"d":"1.06"},{"v":16630284.6,"d":"$16,630,284.60"},{"v":3326056.91,"d":"$3,326,056.91"},{"v":1503598.36,"d":"$1,503,598.36"},{"v":667364.64,"d":"$667,364.64"},{"v":696597.35,"d":"$696,597.35"},{"v":918726.41,"d":"$918,726.41"},{"v":351208.38,"d":"$351,208.38"},{"v":569141.37,"d":"$569,141.37"},{"v":770561.02,"d":"$770,561.02"},{"v":426541.93,"d":"$426,541.93"},{"v":1143151.34,"d":"$1,143,151.34"},{"v":984255.9,"d":"$984,255.90"},{"v":682942.81,"d":"$682,942.81"},{"v":28670431.019999996,"d":"$28,670,431.02"},{"v":365591.69999999995,"d":"$365,591.70"},{"v":509911.25,"d":"$509,911.25"},{"v":1325769.25,"d":"$1,325,769.25"},{"v":138695.86,"d":"$138,695.86"},{"v":2329274.59,"d":"$2,329,274.59"},{"v":682913.77,"d":"$682,913.77"},{"v":5551913.69,"d":"$5,551,913.69"},{"v":3822294.7299999995,"d":"$3,822,294.73"},{"v":13996944.46056,"d":"$13,996,944.46"},{"v":28723309.300559998,"d":"$28,723,309.30"},{"v":3882994.56,"d":"$3,882,994.56"},{"v":24840314.74056,"d":"$24,840,314.74"},{"v":28946542.65056,"d":"$28,946,542.65"},{"v":2214555.37,"d":"$2,214,555.37"},{"v":2214555.37,"d":"$2,214,555.37"},{"v":2306828.51,"d":"$2,306,828.51"},{"v":2306828.51,"d":"$2,306,828.51"},{"v":883961.17,"d":"$883,961.17"},{"v":883961.17,"d":"$883,961.17"},{"v":921180.59,"d":"$921,180.59"},{"v":921180.59,"d":"$921,180.59"},{"v":1105726.87,"d":"$1,105,726.87"},{"v":2243245.34,"d":"$2,243,245.34"},{"v":908678.8,"d":"$908,678.80"},{"v":347998.65,"d":"$347,998.65"},{"v":17258700.939999998,"d":"$17,258,700.94"},{"v":74875674.74,"d":"$74,875,674.74"},{"v":16762668.45,"d":"$16,762,668.45"},{"v":1241613.3599999999,"d":"$1,241,613.36"},{"v":1948244.3099999998,"d":"$1,948,244.31"},{"v":74875674.61056,"d":"$74,875,674.61"}]
["06016090002","RIVER FOREST SCHOOL DIST 90",1392.8,{"v":17896801.61,"d":"$17,896,801.61"},{"v":23954938.17,"d":"$23,954,938.17"},{"v":1.3385038674516547,"d":"134%"},4,{"v":1139.99,"d":"$1,139.99"},{"v":1077026.08,"d":"$1,077,026.08"},{"v":1078166.07,"d":"$1,078,166.07"},{"v":1.05749,"d":"1.06"},{"v":4580849.94,"d":"$4,580,849.94"},{"v":916169.98,"d":"$916,169.98"},{"v":512506.55,"d":"$512,506.55"},{"v":227125.2,"d":"$227,125.20"},{"v":150531.88,"d":"$150,531.88"},{"v":316308.92,"d":"$316,308.92"},{"v":119656.63,"d":"$119,656.63"},{"v":194111.13,"d":"$194,111.13"},{"v":262246.18,"d":"$262,246.18"},{"v":145426.29,"d":"$145,426.29"},{"v":389050.4,"d":"$389,050.40"},{"v":334973.28,"d":"$334,973.28"},{"v":232924.2,"d":"$232,924.20"},{"v":8381880.58,"d":"$8,381,880.58"},{"v":124572.6,"d":"$124,572.60"},{"v":174100,"d":"$174,100.00"},{"v":452660,"d":"$452,660.00"},{"v":47355.2,"d":"$47,355.20"},{"v":397644.39,"d":"$397,644.39"},{"v":235368.42,"d":"$235,368.42"},{"v":1895600.7999999998,"d":"$1,895,600.80"},{"v":1305053.5999999999,"d":"$1,305,053.60"},{"v":3191115.9252,"d":"$3,191,115.93"},{"v":7823470.9352,"d":"$7,823,470.94"},{"v":1325778.46,"d":"$1,325,778.46"},{"v":6497692.475199999,"d":"$6,497,692.48"},{"v":7899689.935199999,"d":"$7,899,689.94"},{"v":65133.98,"d":"$65,133.98"},{"v":65133.98,"d":"$65,133.98"},{"v":68235.59,"d":"$68,235.59"},{"v":68235.59,"d":"$68,235.59"},{"v":28689.96,"d":"$28,689.96"},{"v":28689.96,"d":"$28,689.96"},{"v":30240.77,"d":"$30,240.77"},{"v":30240.77,"d":"$30,240.77"},{"v":36444.01,"d":"$36,444.01"},{"v":765324.28,"d":"$765,324.28"},{"v":310012.43,"d":"$310,012.43"},{"v":118849.66,"d":"$118,849.66"},{"v":1615230.98,"d":"$1,615,230.98"},{"v":17896801.61,"d":"$17,896,801.61"},{"v":41532.64000000001,"d":"$41,532.64"},{"v":3731.61,"d":"$3,731.61"},{"v":552082.4200000002,"d":"$552,082.42"},{"v":17896801.4952,"d":"$17,896,801.50"}]
["06016091002","FOREST PARK SCHOOL DIST 91",638.72,{"v":9748813.29,"d":"$9,748,813.29"},{"v":18576194.669999998,"d":"$18,576,194.67"},{"v":1.9054826590078227,"d":"191%"},4,{"v":620.98,"d":"$620.98"},{"v":1596369.2200000002,"d":"$1,596,369.22"},{"v":1596990.2000000002,"d":"$1,596,990.20"},{"v":1.05749,"d":"1.06"},{"v":2399563.05,"d":"$2,399,563.05"},{"v":479912.6,"d":"$479,912.60"},{"v":234499.4,"d":"$234,499.40"},{"v":103976.14,"d":"$103,976.14"},{"v":87965.66,"d":"$87,965.66"},{"v":137491.06,"d":"$137,491.06"},{"v":54330.57,"d":"$54,330.57"},{"v":88889.07,"d":"$88,889.07"},{"v":120054.25,"d":"$120,054.25"},{"v":66588.28,"d":"$66,588.28"},{"v":178104.24,"d":"$178,104.24"},{"v":153348.15,"d":"$153,348.15"},{"v":106662.7,"d":"$106,662.70"},{"v":4211385.169999999,"d":"$4,211,385.17"},{"v":56262.6,"d":"$56,262.60"},{"v":79840,"d":"$79,840.00"},{"v":207584,"d":"$207,584.00"},{"v":21716.479999999996,"d":"$21,716.48"},{"v":182354.55,"d":"$182,354.55"},{"v":100647.26000000001,"d":"$100,647.26"},{"v":869297.9199999999,"d":"$869,297.92"},{"v":598480.6399999999,"d":"$598,480.64"},{"v":1801703.6530799998,"d":"$1,801,703.65"},{"v":3917887.10308,"d":"$3,917,887.10"},{"v":607984.79,"d":"$607,984.79"},{"v":3309902.3130799998,"d":"$3,309,902.31"},{"v":3952840.14308,"d":"$3,952,840.14"},{"v":207808.41,"d":"$207,808.41"},{"v":207808.41,"d":"$207,808.41"},{"v":217113.27,"d":"$217,113.27"},{"v":217113.27,"d":"$217,113.27"},{"v":35668.6,"d":"$35,668.60"},{"v":35668.6,"d":"$35,668.60"},{"v":36444.01,"d":"$36,444.01"},{"v":36444.01,"d":"$36,444.01"},{"v":44198.05,"d":"$44,198.05"},{"v":350482.85,"d":"$350,482.85"},{"v":141971.24,"d":"$141,971.24"},{"v":53867.11,"d":"$53,867.11"},{"v":1584587.83,"d":"$1,584,587.83"},{"v":9748813.29,"d":"$9,748,813.29"},{"v":695517.6699999999,"d":"$695,517.67"},{"v":86.21000000000001,"d":"$86.21"},{"v":464852.06000000006,"d":"$464,852.06"},{"v":9748813.14308,"d":"$9,748,813.14"}]
["06016092002","LINDOP SCHOOL DISTRICT 92",342.71,{"v":5360840.29,"d":"$5,360,840.29"},{"v":6566223.19,"d":"$6,566,223.19"},{"v":1.22484961961066,"d":"122%"},4,{"v":341.47,"d":"$341.47"},{"v":1718009.9400000002,"d":"$1,718,009.94"},{"v":1718351.4100000001,"d":"$1,718,351.41"},{"v":1.05749,"d":"1.06"},{"v":1294171.22,"d":"$1,294,171.22"},{"v":258834.24,"d":"$258,834.24"},{"v":125361.31,"d":"$125,361.31"},{"v":55306.46,"d":"$55,306.46"},{"v":48619.23,"d":"$48,619.23"},{"v":77090.36,"d":"$77,090.36"},{"v":29105.66,"d":"$29,105.66"},{"v":47428.44,"d":"$47,428.44"},{"v":63858.64,"d":"$63,858.64"},{"v":35806.9,"d":"$35,806.90"},{"v":94736.29,"d":"$94,736.29"},{"v":81568.16,"d":"$81,568.16"},{"v":56911.9,"d":"$56,911.90"},{"v":2268798.8099999996,"d":"$2,268,798.81"},{"v":30431.7,"d":"$30,431.70"},{"v":42838.75,"d":"$42,838.75"},{"v":111380.75,"d":"$111,380.75"},{"v":11652.14,"d":"$11,652.14"},{"v":97843.7,"d":"$97,843.70"},{"v":57557.92999999999,"d":"$57,557.93"},{"v":466428.30999999994,"d":"$466,428.31"},{"v":321119.27,"d":"$321,119.27"},{"v":994302.86244,"d":"$994,302.86"},{"v":2133555.41244,"d":"$2,133,555.41"},{"v":326218.79,"d":"$326,218.79"},{"v":1807336.62244,"d":"$1,807,336.62"},{"v":2152309.72244,"d":"$2,152,309.72"},{"v":127941.74,"d":"$127,941.74"},{"v":127941.74,"d":"$127,941.74"},{"v":133369.58,"d":"$133,369.58"},{"v":133369.58,"d":"$133,369.58"},{"v":23262.13,"d":"$23,262.13"},{"v":23262.13,"d":"$23,262.13"},{"v":24037.54,"d":"$24,037.54"},{"v":24037.54,"d":"$24,037.54"},{"v":28689.96,"d":"$28,689.96"},{"v":188423.3,"d":"$188,423.30"},{"v":76325.25,"d":"$76,325.25"},{"v":29071.14,"d":"$29,071.14"},{"v":939731.63,"d":"$939,731.63"},{"v":5360840.29,"d":"$5,360,840.29"},{"v":561369.7200000001,"d":"$561,369.72"},{"v":11852.52,"d":"$11,852.52"},{"v":97976.64,"d":"$97,976.64"},{"v":5360840.162439999,"d":"$5,360,840.16"}]
["06016092502","WESTCHESTER SCHOOL DIST 92-5",1027.88,{"v":15574135.75,"d":"$15,574,135.75"},{"v":14955648.49,"d":"$14,955,648.49"},{"v":0.9602875389088605,"d":"96%"},3,{"v":17698.61,"d":"$17,698.61"},{"v":1387539.9200000002,"d":"$1,387,539.92"},{"v":1405238.5300000003,"d":"$1,405,238.53"},{"v":1.05749,"d":"1.06"},{"v":3701845.89,"d":"$3,701,845.89"},{"v":740369.17,"d":"$740,369.17"},{"v":378296.2,"d":"$378,296.20"},{"v":168131.64,"d":"$168,131.64"},{"v":136086.06,"d":"$136,086.06"},{"v":228886.85,"d":"$228,886.85"},{"v":87963.79,"d":"$87,963.79"},{"v":143227.62,"d":"$143,227.62"},{"v":194130.29,"d":"$194,130.29"},{"v":107420.72,"d":"$107,420.72"},{"v":287998.34,"d":"$287,998.34"},{"v":247967.23,"d":"$247,967.23"},{"v":171866.4,"d":"$171,866.40"},{"v":6594190.2,"d":"$6,594,190.20"},{"v":90897.3,"d":"$90,897.30"},{"v":128485,"d":"$128,485.00"},{"v":334061,"d":"$334,061.00"},{"v":34947.92,"d":"$34,947.92"},{"v":586919.48,"d":"$586,919.48"},{"v":168672.84999999998,"d":"$168,672.85"},{"v":1398944.68,"d":"$1,398,944.68"},{"v":963123.56,"d":"$963,123.56"},{"v":2808952.47432,"d":"$2,808,952.47"},{"v":6515004.264320001,"d":"$6,515,004.26"},{"v":978418.41,"d":"$978,418.41"},{"v":5536585.85432,"d":"$5,536,585.85"},{"v":6571253.53432,"d":"$6,571,253.53"},{"v":255108.09,"d":"$255,108.09"},{"v":255108.09,"d":"$255,108.09"},{"v":265963.75,"d":"$265,963.75"},{"v":265963.75,"d":"$265,963.75"},{"v":91497.73,"d":"$91,497.73"},{"v":91497.73,"d":"$91,497.73"},{"v":94599.35,"d":"$94,599.35"},{"v":94599.35,"d":"$94,599.35"},{"v":113984.46,"d":"$113,984.46"},{"v":564494.5,"d":"$564,494.50"},{"v":228661.65,"d":"$228,661.65"},{"v":87213.42,"d":"$87,213.42"},{"v":2408691.87,"d":"$2,408,691.87"},{"v":15574135.75,"d":"$15,574,135.75"},{"v":388770.38,"d":"$388,770.38"},{"v":36151.16,"d":"$36,151.16"},{"v":384900.55000000005,"d":"$384,900.55"},{"v":15574135.60432,"d":"$15,574,135.60"}]
["06016093002","HILLSIDE SCHOOL DIST 93",420.5,{"v":6843114.51,"d":"$6,843,114.51"},{"v":8911016.67,"d":"$8,911,016.67"},{"v":1.30218727992614,"d":"130%"},4,{"v":435.89,"d":"$435.89"},{"v":627817.8200000001,"d":"$627,817.82"},{"v":628253.7100000001,"d":"$628,253.71"},{"v":1.05749,"d":"1.06"},{"v":1595775.8,"d":"$1,595,775.80"},{"v":319155.15,"d":"$319,155.15"},{"v":154858.09,"d":"$154,858.09"},{"v":67842.59,"d":"$67,842.59"},{"v":62753.43,"d":"$62,753.43"},{"v":95369.52,"d":"$95,369.52"},{"v":35573.59,"d":"$35,573.59"},{"v":58421.79,"d":"$58,421.79"},{"v":78333.27,"d":"$78,333.27"},{"v":43659.29,"d":"$43,659.29"},{"v":116209.86,"d":"$116,209.86"},{"v":100056.95,"d":"$100,056.95"},{"v":70103.4,"d":"$70,103.40"},{"v":2798112.7300000004,"d":"$2,798,112.73"},{"v":37305,"d":"$37,305.00"},{"v":52562.5,"d":"$52,562.50"},{"v":136662.5,"d":"$136,662.50"},{"v":14297,"d":"$14,297.00"},{"v":120052.75,"d":"$120,052.75"},{"v":70722.5,"d":"$70,722.50"},{"v":572300.5,"d":"$572,300.50"},{"v":394008.5,"d":"$394,008.50"},{"v":1277957.562,"d":"$1,277,957.56"},{"v":2675868.812,"d":"$2,675,868.81"},{"v":400265.54,"d":"$400,265.54"},{"v":2275603.272,"d":"$2,275,603.27"},{"v":2698880.0719999997,"d":"$2,698,880.07"},{"v":156631.71,"d":"$156,631.71"},{"v":156631.71,"d":"$156,631.71"},{"v":162834.95,"d":"$162,834.95"},{"v":162834.95,"d":"$162,834.95"},{"v":65133.98,"d":"$65,133.98"},{"v":65133.98,"d":"$65,133.98"},{"v":67460.19,"d":"$67,460.19"},{"v":67460.19,"d":"$67,460.19"},{"v":81417.47,"d":"$81,417.47"},{"v":231070.55,"d":"$231,070.55"},{"v":93600.51,"d":"$93,600.51"},{"v":35911.4,"d":"$35,911.40"},{"v":1346121.5899999999,"d":"$1,346,121.59"},{"v":6843114.51,"d":"$6,843,114.51"},{"v":393229.49,"d":"$393,229.49"},{"v":217.13,"d":"$217.13"},{"v":118951.34999999999,"d":"$118,951.35"},{"v":6843114.392,"d":"$6,843,114.39"}]
["06016094002","KOMAREK SCHOOL DIST 94",478.97,{"v":7076440.49,"d":"$7,076,440.49"},{"v":7953129.45,"d":"$7,953,129.45"},{"v":1.123888409891793,"d":"112%"},4,{"v":450.75,"d":"$450.75"},{"v":558193.0300000001,"d":"$558,193.03"},{"v":558643.7800000001,"d":"$558,643.78"},{"v":1.05749,"d":"1.06"},{"v":1683528.72,"d":"$1,683,528.72"},{"v":336705.73,"d":"$336,705.73"},{"v":176243.26,"d":"$176,243.26"},{"v":78166.46,"d":"$78,166.46"},{"v":62733.38,"d":"$62,733.38"},{"v":108085.46,"d":"$108,085.46"},{"v":40101.14,"d":"$40,101.14"},{"v":66588.28,"d":"$66,588.28"},{"v":90253.55,"d":"$90,253.55"},{"v":49941.21,"d":"$49,941.21"},{"v":133893.96,"d":"$133,893.96"},{"v":115283.01,"d":"$115,283.01"},{"v":79902.8,"d":"$79,902.80"},{"v":3021426.959999999,"d":"$3,021,426.96"},{"v":42162.3,"d":"$42,162.30"},{"v":59871.25,"d":"$59,871.25"},{"v":155665.25,"d":"$155,665.25"},{"v":16284.98,"d":"$16,284.98"},{"v":136745.93,"d":"$136,745.93"},{"v":79906.59,"d":"$79,906.59"},{"v":651878.1699999999,"d":"$651,878.17"},{"v":448794.89,"d":"$448,794.89"},{"v":1299085.7500799994,"d":"$1,299,085.75"},{"v":2890395.110079999,"d":"$2,890,395.11"},{"v":455921.96,"d":"$455,921.96"},{"v":2434473.150079999,"d":"$2,434,473.15"},{"v":2916606.0600799993,"d":"$2,916,606.06"},{"v":102353.39,"d":"$102,353.39"},{"v":102353.39,"d":"$102,353.39"},{"v":107005.82,"d":"$107,005.82"},{"v":107005.82,"d":"$107,005.82"},{"v":58155.34,"d":"$58,155.34"},{"v":58155.34,"d":"$58,155.34"},{"v":60481.55,"d":"$60,481.55"},{"v":60481.55,"d":"$60,481.55"},{"v":72888.02,"d":"$72,888.02"},{"v":262862.13,"d":"$262,862.13"},{"v":106478.43,"d":"$106,478.43"},{"v":40186.57,"d":"$40,186.57"},{"v":1138407.35,"d":"$1,138,407.35"},{"v":7076440.49,"d":"$7,076,440.49"},{"v":69959.98999999998,"d":"$69,959.99"},{"v":18272.989999999998,"d":"$18,272.99"},{"v":213722.43,"d":"$213,722.43"},{"v":7076440.370079998,"d":"$7,076,440.37"}]
["06016095002","BROOKFIELD SCHOOL DIST 95",1303.39,{"v":17915372.99,"d":"$17,915,372.99"},{"v":11687099.54,"d":"$11,687,099.54"},{"v":0.6523503332318843,"d":"65%"},1,{"v":877655.29,"d":"$877,655.29"},{"v":3993411.64,"d":"$3,993,411.64"},{"v":4871066.93,"d":"$4,871,066.93"},{"v":1.05749,"d":"1.06"},{"v":4445164.75,"d":"$4,445,164.75"},{"v":889032.94,"d":"$889,032.94"},{"v":480060.09,"d":"$480,060.09"},{"v":212376.81,"d":"$212,376.81"},{"v":150826.88,"d":"$150,826.88"},{"v":287698.06,"d":"$287,698.06"},{"v":111895.12,"d":"$111,895.12"},{"v":181547.3,"d":"$181,547.30"},{"v":245217.21,"d":"$245,217.21"},{"v":136003.42,"d":"$136,003.42"},{"v":363787.38,"d":"$363,787.38"},{"v":313221.77,"d":"$313,221.77"},{"v":217848.2,"d":"$217,848.20"},{"v":8034679.929999999,"d":"$8,034,679.93"},{"v":115783.20000000001,"d":"$115,783.20"},{"v":162923.75,"d":"$162,923.75"},{"v":423601.75,"d":"$423,601.75"},{"v":44315.259999999995,"d":"$44,315.26"},{"v":744235.6900000001,"d":"$744,235.69"},{"v":212516.76,"d":"$212,516.76"},{"v":1773913.79,"d":"$1,773,913.79"},{"v":1221276.43,"d":"$1,221,276.43"},{"v":3161713.9779600003,"d":"$3,161,713.98"},{"v":7860280.607960001,"d":"$7,860,280.61"},{"v":1240670.87,"d":"$1,240,670.87"},{"v":6619609.7379600005,"d":"$6,619,609.74"},{"v":7931606.767960001,"d":"$7,931,606.77"},{"v":141899.03,"d":"$141,899.03"},{"v":141899.03,"d":"$141,899.03"},{"v":148102.26,"d":"$148,102.26"},{"v":148102.26,"d":"$148,102.26"},{"v":47299.67,"d":"$47,299.67"},{"v":47299.67,"d":"$47,299.67"},{"v":48850.48,"d":"$48,850.48"},{"v":48850.48,"d":"$48,850.48"},{"v":58930.74,"d":"$58,930.74"},{"v":716473.79,"d":"$716,473.79"},{"v":290224.4,"d":"$290,224.40"},{"v":111154.36,"d":"$111,154.36"},{"v":1949086.1700000002,"d":"$1,949,086.17"},{"v":17915372.99,"d":"$17,915,372.99"},{"v":311315.07,"d":"$311,315.07"},{"v":54664.63,"d":"$54,664.63"},{"v":561464.99,"d":"$561,464.99"},{"v":17915372.867960002,"d":"$17,915,372.87"}]
["06016096002","RIVERSIDE SCHOOL DIST 96",1652,{"v":22289643.5,"d":"$22,289,643.50"},{"v":26959580.659999996,"d":"$26,959,580.66"},{"v":1.2095115231430236,"d":"121%"},4,{"v":1419.81,"d":"$1,419.81"},{"v":1496026.16,"d":"$1,496,026.16"},{"v":1497445.97,"d":"$1,497,445.97"},{"v":1.05749,"d":"1.06"},{"v":5621348.86,"d":"$5,621,348.86"},{"v":1124269.76,"d":"$1,124,269.76"},{"v":608371.08,"d":"$608,371.08"},{"v":269895.53,"d":"$269,895.53"},{"v":191518.53,"d":"$191,518.53"},{"v":370351.65,"d":"$370,351.65"},{"v":141647.58,"d":"$141,647.58"},{"v":230232.13,"d":"$230,232.13"},{"v":311630.2,"d":"$311,630.20"},{"v":172752.62,"d":"$172,752.62"},{"v":462313.13,"d":"$462,313.13"},{"v":398052.66,"d":"$398,052.66"},{"v":276267.7,"d":"$276,267.70"},{"v":10178651.43,"d":"$10,178,651.43"},{"v":147015,"d":"$147,015.00"},{"v":206500,"d":"$206,500.00"},{"v":536900,"d":"$536,900.00"},{"v":56168,"d":"$56,168.00"},{"v":471646,"d":"$471,646.00"},{"v":273751.5,"d":"$273,751.50"},{"v":2248372,"d":"$2,248,372.00"},{"v":1547924,"d":"$1,547,924.00"},{"v":4018229.429999999,"d":"$4,018,229.43"},{"v":9506505.93,"d":"$9,506,505.93"},{"v":1572505.76,"d":"$1,572,505.76"},{"v":7934000.17,"d":"$7,934,000.17"},{"v":9596909.28,"d":"$9,596,909.28"},{"v":183770.87,"d":"$183,770.87"},{"v":183770.87,"d":"$183,770.87"},{"v":191524.92,"d":"$191,524.92"},{"v":191524.92,"d":"$191,524.92"},{"v":65133.98,"d":"$65,133.98"},{"v":65133.98,"d":"$65,133.98"},{"v":67460.19,"d":"$67,460.19"},{"v":67460.19,"d":"$67,460.19"},{"v":81417.47,"d":"$81,417.47"},{"v":907998.71,"d":"$907,998.71"},{"v":367806.04,"d":"$367,806.04"},{"v":141080.53,"d":"$141,080.53"},{"v":2514082.6699999995,"d":"$2,514,082.67"},{"v":22289643.5,"d":"$22,289,643.50"},{"v":209992.21,"d":"$209,992.21"},{"v":15945.3,"d":"$15,945.30"},{"v":617099.4500000001,"d":"$617,099.45"},{"v":22289643.38,"d":"$22,289,643.38"}]
["06016097002","OAK PARK ELEM SCHOOL DIST 97",5609.97,{"v":73475554.93,"d":"$73,475,554.93"},{"v":77161218.5,"d":"$77,161,218.50"},{"v":1.0501617656853537,"d":"105%"},4,{"v":4680.27,"d":"$4,680.27"},{"v":11495398.100000001,"d":"$11,495,398.10"},{"v":11500078.370000001,"d":"$11,500,078.37"},{"v":1.05749,"d":"1.06"},{"v":18856554.07,"d":"$18,856,554.07"},{"v":3771310.8,"d":"$3,771,310.80"},{"v":2066986.86,"d":"$2,066,986.86"},{"v":918824.69,"d":"$918,824.69"},{"v":624023.6,"d":"$624,023.60"},{"v":1258082.97,"d":"$1,258,082.97"},{"v":483154.07,"d":"$483,154.07"},{"v":782726.43,"d":"$782,726.43"},{"v":1060905.01,"d":"$1,060,905.01"},{"v":587044.82,"d":"$587,044.82"},{"v":1573885.71,"d":"$1,573,885.71"},{"v":1355119.18,"d":"$1,355,119.18"},{"v":939234.82,"d":"$939,234.82"},{"v":34277853.03,"d":"$34,277,853.03"},{"v":500900.39999999997,"d":"$500,900.40"},{"v":701246.2499999999,"d":"$701,246.25"},{"v":1823240.2499999995,"d":"$1,823,240.25"},{"v":190738.97999999998,"d":"$190,738.98"},{"v":1601646.4300000002,"d":"$1,601,646.43"},{"v":931293.7599999999,"d":"$931,293.76"},{"v":7635169.169999999,"d":"$7,635,169.17"},{"v":5256541.89,"d":"$5,256,541.89"},{"v":13160488.648079999,"d":"$13,160,488.65"},{"v":31801265.778079998,"d":"$31,801,265.78"},{"v":5340018.24,"d":"$5,340,018.24"},{"v":26461247.53808,"d":"$26,461,247.54"},{"v":32108263.41808,"d":"$32,108,263.42"},{"v":438103.56,"d":"$438,103.56"},{"v":438103.56,"d":"$438,103.56"},{"v":455937.87,"d":"$455,937.87"},{"v":455937.87,"d":"$455,937.87"},{"v":91497.73,"d":"$91,497.73"},{"v":91497.73,"d":"$91,497.73"},{"v":95374.75,"d":"$95,374.75"},{"v":95374.75,"d":"$95,374.75"},{"v":114759.87,"d":"$114,759.87"},{"v":3084559.27,"d":"$3,084,559.27"},{"v":1249472.61,"d":"$1,249,472.61"},{"v":478818.78,"d":"$478,818.78"},{"v":7089438.350000001,"d":"$7,089,438.35"},{"v":73475554.93,"d":"$73,475,554.93"},{"v":515697.99000000005,"d":"$515,697.99"},{"v":18094.12,"d":"$18,094.12"},{"v":1860717.2100000004,"d":"$1,860,717.21"},{"v":73475554.79808,"d":"$73,475,554.80"}]
["06016098002","BERWYN NORTH SCHOOL DIST 98",2478.31,{"v":43447776.09,"d":"$43,447,776.09"},{"v":32291206.099999998,"d":"$32,291,206.10"},{"v":0.7432188481433503,"d":"74%"},1,{"v":894808.65,"d":"$894,808.65"},{"v":27954152.669999987,"d":"$27,954,152.67"},{"v":28848961.319999985,"d":"$28,848,961.32"},{"v":1.05749,"d":"1.06"},{"v":9670519.34,"d":"$9,670,519.34"},{"v":1934103.86,"d":"$1,934,103.86"},{"v":912925.34,"d":"$912,925.34"},{"v":404843.3,"d":"$404,843.30"},{"v":398276.8,"d":"$398,276.80"},{"v":559501.2,"d":"$559,501.20"},{"v":212794.76,"d":"$212,794.76"},{"v":345505.24,"d":"$345,505.24"},{"v":467445.3,"d":"$467,445.30"},{"v":259128.93,"d":"$259,128.93"},{"v":693469.7,"d":"$693,469.70"},{"v":597078.99,"d":"$597,078.99"},{"v":414590.01,"d":"$414,590.01"},{"v":16870182.77,"d":"$16,870,182.77"},{"v":220243.5,"d":"$220,243.50"},{"v":309788.75,"d":"$309,788.75"},{"v":805450.75,"d":"$805,450.75"},{"v":84262.54000000001,"d":"$84,262.54"},{"v":1415115.01,"d":"$1,415,115.01"},{"v":413483.58999999997,"d":"$413,483.59"},{"v":3372979.91,"d":"$3,372,979.91"},{"v":2322176.4699999997,"d":"$2,322,176.47"},{"v":8058634.500840001,"d":"$8,058,634.50"},{"v":17002135.02084,"d":"$17,002,135.02"},{"v":2359053.72,"d":"$2,359,053.72"},{"v":14643081.300839996,"d":"$14,643,081.30"},{"v":17137757.010839995,"d":"$17,137,757.01"},{"v":1108053.09,"d":"$1,108,053.09"},{"v":1108053.09,"d":"$1,108,053.09"},{"v":1154577.36,"d":"$1,154,577.36"},{"v":1154577.36,"d":"$1,154,577.36"},{"v":522622.66,"d":"$522,622.66"},{"v":522622.66,"d":"$522,622.66"},{"v":545109.39,"d":"$545,109.39"},{"v":545109.39,"d":"$545,109.39"},{"v":653666.02,"d":"$653,666.02"},{"v":1362385.78,"d":"$1,362,385.78"},{"v":551866.1,"d":"$551,866.10"},{"v":211193.28,"d":"$211,193.28"},{"v":9439836.179999998,"d":"$9,439,836.18"},{"v":43447776.09,"d":"$43,447,776.09"},{"v":8220453.51,"d":"$8,220,453.51"},{"v":873710.9299999999,"d":"$873,710.93"},{"v":1683718.8,"d":"$1,683,718.80"},{"v":43447775.960839994,"d":"$43,447,775.96"}]
["06016099002","CICERO SCHOOL DISTRICT 99",9348.63,{"v":179007212.22,"d":"$179,007,212.22"},{"v":149110094.58,"d":"$149,110,094.58"},{"v":0.8329837257995146,"d":"83%"},2,{"v":986847.45,"d":"$986,847.45"},{"v":122927254.81999998,"d":"$122,927,254.82"},{"v":123914102.26999998,"d":"$123,914,102.27"},{"v":1.05749,"d":"1.06"},{"v":37543501.67,"d":"$37,543,501.67"},{"v":7508700.33,"d":"$7,508,700.33"},{"v":3445961.33,"d":"$3,445,961.33"},{"v":1531620.3,"d":"$1,531,620.30"},{"v":1679872.88,"d":"$1,679,872.88"},{"v":2125945.64,"d":"$2,125,945.64"},{"v":805903.59,"d":"$805,903.59"},{"v":1304753.45,"d":"$1,304,753.45"},{"v":1768458.84,"d":"$1,768,458.84"},{"v":978408.04,"d":"$978,408.04"},{"v":2623563.91,"d":"$2,623,563.91"},{"v":2258894.5,"d":"$2,258,894.50"},{"v":1565642.64,"d":"$1,565,642.64"},{"v":65141227.120000005,"d":"$65,141,227.12"},{"v":833186.7,"d":"$833,186.70"},{"v":1168578.75,"d":"$1,168,578.75"},{"v":3038304.75,"d":"$3,038,304.75"},{"v":317853.42,"d":"$317,853.42"},{"v":5338067.73,"d":"$5,338,067.73"},{"v":1574214.5099999998,"d":"$1,574,214.51"},{"v":12723485.43,"d":"$12,723,485.43"},{"v":8759666.309999999,"d":"$8,759,666.31"},{"v":33695884.83132,"d":"$33,695,884.83"},{"v":67449242.43132,"d":"$67,449,242.43"},{"v":8898773.92,"d":"$8,898,773.92"},{"v":58550468.51132001,"d":"$58,550,468.51"},{"v":67960832.94132,"d":"$67,960,832.94"},{"v":4878069.97,"d":"$4,878,069.97"},{"v":4878069.97,"d":"$4,878,069.97"},{"v":5081225.96,"d":"$5,081,225.96"},{"v":5081225.96,"d":"$5,081,225.96"},{"v":3368357.33,"d":"$3,368,357.33"},{"v":3368357.33,"d":"$3,368,357.33"},{"v":3508705.55,"d":"$3,508,705.55"},{"v":3508705.55,"d":"$3,508,705.55"},{"v":4210446.66,"d":"$4,210,446.66"},{"v":5140932.11,"d":"$5,140,932.11"},{"v":2082454.35,"d":"$2,082,454.35"},{"v":798601.32,"d":"$798,601.32"},{"v":45905152.06,"d":"$45,905,152.06"},{"v":179007212.22,"d":"$179,007,212.22"},{"v":41184407.02000001,"d":"$41,184,407.02"},{"v":6028007.48,"d":"$6,028,007.48"},{"v":5896248.75,"d":"$5,896,248.75"},{"v":179007212.12132,"d":"$179,007,212.12"}]
["06016100002","BERWYN SOUTH SCHOOL DISTRICT 100",3048.79,{"v":51127818.06,"d":"$51,127,818.06"},{"v":39560426.29,"d":"$39,560,426.29"},{"v":0.7737554190866247,"d":"77%"},2,{"v":460119.16,"d":"$460,119.16"},{"v":26825833.799999997,"d":"$26,825,833.80"},{"v":27285952.959999997,"d":"$27,285,952.96"},{"v":1.05749,"d":"1.06"},{"v":11486046.15,"d":"$11,486,046.15"},{"v":2297209.22,"d":"$2,297,209.22"},{"v":1123089.9,"d":"$1,123,089.90"},{"v":499233,"d":"$499,233.00"},{"v":461784.18,"d":"$461,784.18"},{"v":693018.54,"d":"$693,018.54"},{"v":261951,"d":"$261,951.00"},{"v":425285.55,"d":"$425,285.55"},{"v":576430.73,"d":"$576,430.73"},{"v":318807.11,"d":"$318,807.11"},{"v":855152.99,"d":"$855,152.99"},{"v":736288.67,"d":"$736,288.67"},{"v":510322.61,"d":"$510,322.61"},{"v":20244619.650000002,"d":"$20,244,619.65"},{"v":272066.4,"d":"$272,066.40"},{"v":381098.75,"d":"$381,098.75"},{"v":990856.7500000001,"d":"$990,856.75"},{"v":103658.86000000002,"d":"$103,658.86"},{"v":1740859.09,"d":"$1,740,859.09"},{"v":514268.76,"d":"$514,268.76"},{"v":4149403.1900000004,"d":"$4,149,403.19"},{"v":2856716.23,"d":"$2,856,716.23"},{"v":9405414.715559999,"d":"$9,405,414.72"},{"v":20414342.745559998,"d":"$20,414,342.75"},{"v":2902082.22,"d":"$2,902,082.22"},{"v":17512260.52556,"d":"$17,512,260.53"},{"v":20581183.44556,"d":"$20,581,183.45"},{"v":1087892.57,"d":"$1,087,892.57"},{"v":1087892.57,"d":"$1,087,892.57"},{"v":1133641.44,"d":"$1,133,641.44"},{"v":1133641.44,"d":"$1,133,641.44"},{"v":607917.16,"d":"$607,917.16"},{"v":607917.16,"d":"$607,917.16"},{"v":633505.51,"d":"$633,505.51"},{"v":633505.51,"d":"$633,505.51"},{"v":760671.85,"d":"$760,671.85"},{"v":1676424.62,"d":"$1,676,424.62"},{"v":679074.85,"d":"$679,074.85"},{"v":259930.19,"d":"$259,930.19"},{"v":10302014.869999997,"d":"$10,302,014.87"},{"v":51127818.06,"d":"$51,127,818.06"},{"v":5609509.819999999,"d":"$5,609,509.82"},{"v":907935.19,"d":"$907,935.19"},{"v":1945618.0599999998,"d":"$1,945,618.06"},{"v":51127817.96556,"d":"$51,127,817.97"}]
["06016101002","WESTERN SPRINGS SCHOOL DIST 101",1453.5,{"v":18163040.8,"d":"$18,163,040.80"},{"v":19640746.48,"d":"$19,640,746.48"},{"v":1.081357835192442,"d":"108%"},4,{"v":1156.95,"d":"$1,156.95"},{"v":1115184.76,"d":"$1,115,184.76"},{"v":1116341.71,"d":"$1,116,341.71"},{"v":1.05749,"d":"1.06"},{"v":4762255.14,"d":"$4,762,255.14"},{"v":952451.01,"d":"$952,451.01"},{"v":535366.55,"d":"$535,366.55"},{"v":237449.07,"d":"$237,449.07"},{"v":151459.75,"d":"$151,459.75"},{"v":320282.65,"d":"$320,282.65"},{"v":124830.97,"d":"$124,830.97"},{"v":202591.71,"d":"$202,591.71"},{"v":274166.46,"d":"$274,166.46"},{"v":151708.21,"d":"$151,708.21"},{"v":406734.51,"d":"$406,734.51"},{"v":350199.34,"d":"$350,199.34"},{"v":243100.5,"d":"$243,100.50"},{"v":8712595.87,"d":"$8,712,595.87"},{"v":129690,"d":"$129,690.00"},{"v":181687.5,"d":"$181,687.50"},{"v":472387.5,"d":"$472,387.50"},{"v":49419,"d":"$49,419.00"},{"v":414974.25,"d":"$414,974.25"},{"v":236607,"d":"$236,607.00"},{"v":1978213.5,"d":"$1,978,213.50"},{"v":1361929.5,"d":"$1,361,929.50"},{"v":3219964.134,"d":"$3,219,964.13"},{"v":8044872.384,"d":"$8,044,872.38"},{"v":1383557.58,"d":"$1,383,557.58"},{"v":6661314.804,"d":"$6,661,314.80"},{"v":8124413.103999999,"d":"$8,124,413.10"},{"v":19385.11,"d":"$19,385.11"},{"v":19385.11,"d":"$19,385.11"},{"v":20160.51,"d":"$20,160.51"},{"v":20160.51,"d":"$20,160.51"},{"v":0,"d":"$0.00"},{"v":0,"d":"$0.00"},{"v":0,"d":"$0.00"},{"v":0,"d":"$0.00"},{"v":775.4,"d":"$775.40"},{"v":798666.67,"d":"$798,666.67"},{"v":323518.55,"d":"$323,518.55"},{"v":123979.86,"d":"$123,979.86"},{"v":1326031.7200000002,"d":"$1,326,031.72"},{"v":18163040.8,"d":"$18,163,040.80"},{"v":14454.03,"d":"$14,454.03"},{"v":0.26,"d":"$0.26"},{"v":434705.62999999995,"d":"$434,705.63"},{"v":18163040.694,"d":"$18,163,040.69"}]
["06016102002","LA GRANGE SCHOOL DIST 102",2933.53,{"v":38859445.3,"d":"$38,859,445.30"},{"v":38663311.28,"d":"$38,663,311.28"},{"v":0.9949527323798418,"d":"99%"},3,{"v":44160.29,"d":"$44,160.29"},{"v":3527604.3100000005,"d":"$3,527,604.31"},{"v":3571764.6000000006,"d":"$3,571,764.60"},{"v":1.05749,"d":"1.06"},{"v":9819478.08,"d":"$9,819,478.08"},{"v":1963895.61,"d":"$1,963,895.61"},{"v":1081056.98,"d":"$1,081,056.98"},{"v":480060.09,"d":"$480,060.09"},{"v":331109.31,"d":"$331,109.31"},{"v":662818.19,"d":"$662,818.19"},{"v":252249.11,"d":"$252,249.11"},{"v":409266.67,"d":"$409,266.67"},{"v":554293.07,"d":"$554,293.07"},{"v":306871.47,"d":"$306,871.47"},{"v":822311.07,"d":"$822,311.07"},{"v":708011.7,"d":"$708,011.70"},{"v":491100.71,"d":"$491,100.71"},{"v":17882522.060000002,"d":"$17,882,522.06"},{"v":261198.00000000003,"d":"$261,198.00"},{"v":366691.25000000006,"d":"$366,691.25"},{"v":953397.2500000001,"d":"$953,397.25"},{"v":99740.02000000002,"d":"$99,740.02"},{"v":837522.81,"d":"$837,522.81"},{"v":490431.76,"d":"$490,431.76"},{"v":3992534.33,"d":"$3,992,534.33"},{"v":2748717.6100000003,"d":"$2,748,717.61"},{"v":6976951.171920001,"d":"$6,976,951.17"},{"v":16727184.201920003,"d":"$16,727,184.20"},{"v":2792368.53,"d":"$2,792,368.53"},{"v":13934815.671920002,"d":"$13,934,815.67"},{"v":16887717.46192,"d":"$16,887,717.46"},{"v":229519.74,"d":"$229,519.74"},{"v":229519.74,"d":"$229,519.74"},{"v":239600,"d":"$239,600.00"},{"v":239600,"d":"$239,600.00"},{"v":118636.89,"d":"$118,636.89"},{"v":118636.89,"d":"$118,636.89"},{"v":124064.72,"d":"$124,064.72"},{"v":124064.72,"d":"$124,064.72"},{"v":148877.67,"d":"$148,877.67"},{"v":1612841.44,"d":"$1,612,841.44"},{"v":653319.01,"d":"$653,319.01"},{"v":250524.82,"d":"$250,524.82"},{"v":4089205.639999999,"d":"$4,089,205.64"},{"v":38859445.3,"d":"$38,859,445.30"},{"v":228265.99000000002,"d":"$228,265.99"},{"v":42492.189999999995,"d":"$42,492.19"},{"v":1205835.0599999998,"d":"$1,205,835.06"},{"v":38859445.16192,"d":"$38,859,445.16"}]
["06016103002","LYONS SCHOOL DIST 103",2093.23,{"v":35684411.57,"d":"$35,684,411.57"},{"v":30573007.65,"d":"$30,573,007.65"},{"v":0.8567608741432302,"d":"86%"},2,{"v":106047.09,"d":"$106,047.09"},{"v":12259554.989999998,"d":"$12,259,554.99"},{"v":12365602.079999998,"d":"$12,365,602.08"},{"v":1.05749,"d":"1.06"},{"v":7916198.35,"d":"$7,916,198.35"},{"v":1583239.67,"d":"$1,583,239.67"},{"v":771340.79,"d":"$771,340.79"},{"v":342900.06,"d":"$342,900.06"},{"v":323973.3,"d":"$323,973.30"},{"v":471284.39,"d":"$471,284.39"},{"v":180455.13,"d":"$180,455.13"},{"v":292108.98,"d":"$292,108.98"},{"v":395923.62,"d":"$395,923.62"},{"v":218924.68,"d":"$218,924.68"},{"v":587365.05,"d":"$587,365.05"},{"v":505722.64,"d":"$505,722.64"},{"v":350517.01,"d":"$350,517.01"},{"v":13939953.670000002,"d":"$13,939,953.67"},{"v":185661,"d":"$185,661.00"},{"v":261653.75000000006,"d":"$261,653.75"},{"v":680299.7500000001,"d":"$680,299.75"},{"v":71169.82,"d":"$71,169.82"},{"v":1195234.33,"d":"$1,195,234.33"},{"v":347224.34,"d":"$347,224.34"},{"v":2848886.0300000003,"d":"$2,848,886.03"},{"v":1961356.5100000002,"d":"$1,961,356.51"},{"v":6586005.75672,"d":"$6,586,005.76"},{"v":14137491.28672,"d":"$14,137,491.29"},{"v":1992503.77,"d":"$1,992,503.77"},{"v":12144987.516720003,"d":"$12,144,987.52"},{"v":14252040.326720003,"d":"$14,252,040.33"},{"v":775404.54,"d":"$775,404.54"},{"v":775404.54,"d":"$775,404.54"},{"v":807971.53,"d":"$807,971.53"},{"v":807971.53,"d":"$807,971.53"},{"v":474547.58,"d":"$474,547.58"},{"v":474547.58,"d":"$474,547.58"},{"v":493932.69,"d":"$493,932.69"},{"v":493932.69,"d":"$493,932.69"},{"v":593184.47,"d":"$593,184.47"},{"v":1150700.34,"d":"$1,150,700.34"},{"v":466117.98,"d":"$466,117.98"},{"v":178702,"d":"$178,702.00"},{"v":7492417.470000001,"d":"$7,492,417.47"},{"v":35684411.57,"d":"$35,684,411.57"},{"v":3273084.2000000007,"d":"$3,273,084.20"},{"v":449167.86,"d":"$449,167.86"},{"v":1177442.0400000003,"d":"$1,177,442.04"},{"v":35684411.46672001,"d":"$35,684,411.47"}]
["06016105002","LA GRANGE SCHOOL DIST 105 (SOUTH)",1200.73,{"v":17362726.17,"d":"$17,362,726.17"},{"v":28887904.77,"d":"$28,887,904.77"},{"v":1.6637885368435779,"d":"166%"},4,{"v":1105.97,"d":"$1,105.97"},{"v":1557624.7,"d":"$1,557,624.70"},{"v":1558730.67,"d":"$1,558,730.67"},{"v":1.05749,"d":"1.06"},{"v":4203291.15,"d":"$4,203,291.15"},{"v":840658.23,"d":"$840,658.23"},{"v":442451.7,"d":"$442,451.70"},{"v":196153.58,"d":"$196,153.58"},{"v":152791.99,"d":"$152,791.99"},{"v":273392.63,"d":"$273,392.63"},{"v":102840.02,"d":"$102,840.02"},{"v":167412.99,"d":"$167,412.99"},{"v":226485.34,"d":"$226,485.34"},{"v":125324.17,"d":"$125,324.17"},{"v":335998.07,"d":"$335,998.07"},{"v":289295.1,"d":"$289,295.10"},{"v":200887.7,"d":"$200,887.70"},{"v":7556982.670000001,"d":"$7,556,982.67"},{"v":106693.2,"d":"$106,693.20"},{"v":150091.25,"d":"$150,091.25"},{"v":390237.25,"d":"$390,237.25"},{"v":40824.82,"d":"$40,824.82"},{"v":342808.41000000003,"d":"$342,808.41"},{"v":203012.84000000003,"d":"$203,012.84"},{"v":1634193.53,"d":"$1,634,193.53"},{"v":1125084.01,"d":"$1,125,084.01"},{"v":3173490.72372,"d":"$3,173,490.72"},{"v":7166436.03372,"d":"$7,166,436.03"},{"v":1142950.87,"d":"$1,142,950.87"},{"v":6023485.163720001,"d":"$6,023,485.16"},{"v":7232144.273720001,"d":"$7,232,144.27"},{"v":234172.17,"d":"$234,172.17"},{"v":234172.17,"d":"$234,172.17"},{"v":244252.43,"d":"$244,252.43"},{"v":244252.43,"d":"$244,252.43"},{"v":110107.44,"d":"$110,107.44"},{"v":110107.44,"d":"$110,107.44"},{"v":114759.87,"d":"$114,759.87"},{"v":114759.87,"d":"$114,759.87"},{"v":137246.6,"d":"$137,246.60"},{"v":659869.26,"d":"$659,869.26"},{"v":267295.42,"d":"$267,295.42"},{"v":102604.02,"d":"$102,604.02"},{"v":2573599.1199999996,"d":"$2,573,599.12"},{"v":17362726.17,"d":"$17,362,726.17"},{"v":434601.41000000003,"d":"$434,601.41"},{"v":95669.08000000002,"d":"$95,669.08"},{"v":564460.27,"d":"$564,460.27"},{"v":17362726.063720003,"d":"$17,362,726.06"}]
["06016106002","LAGRANGE HIGHLANDS SCH DIST 106",943,{"v":12231551.84,"d":"$12,231,551.84"},{"v":14366708.239999998,"d":"$14,366,708.24"},{"v":1.1745613662051895,"d":"117%"},4,{"v":779.13,"d":"$779.13"},{"v":573602.0699999998,"d":"$573,602.07"},{"v":574381.1999999998,"d":"$574,381.20"},{"v":1.05749,"d":"1.06"},{"v":3127396.1,"d":"$3,127,396.10"},{"v":625479.21,"d":"$625,479.21"},{"v":346587.16,"d":"$346,587.16"},{"v":153383.25,"d":"$153,383.25"},{"v":103442.54,"d":"$103,442.54"},{"v":212197.19,"d":"$212,197.19"},{"v":80849.07,"d":"$80,849.07"},{"v":131291.99,"d":"$131,291.99"},{"v":177101.31,"d":"$177,101.31"},{"v":98626.04,"d":"$98,626.04"},{"v":262735.33,"d":"$262,735.33"},{"v":226215.72,"d":"$226,215.72"},{"v":157544.2,"d":"$157,544.20"},{"v":5702849.110000001,"d":"$5,702,849.11"},{"v":84015,"d":"$84,015.00"},{"v":117875,"d":"$117,875.00"},{"v":306475,"d":"$306,475.00"},{"v":32062,"d":"$32,062.00"},{"v":269226.5,"d":"$269,226.50"},{"v":157297.5,"d":"$157,297.50"},{"v":1283423,"d":"$1,283,423.00"},{"v":883591,"d":"$883,591.00"},{"v":2186041.992,"d":"$2,186,041.99"},{"v":5320006.992000001,"d":"$5,320,006.99"},{"v":897622.84,"d":"$897,622.84"},{"v":4422384.152000001,"d":"$4,422,384.15"},{"v":5371611.322000001,"d":"$5,371,611.32"},{"v":49625.89,"d":"$49,625.89"},{"v":49625.89,"d":"$49,625.89"},{"v":51952.1,"d":"$51,952.10"},{"v":51952.1,"d":"$51,952.10"},{"v":27139.15,"d":"$27,139.15"},{"v":27139.15,"d":"$27,139.15"},{"v":28689.96,"d":"$28,689.96"},{"v":28689.96,"d":"$28,689.96"},{"v":34117.79,"d":"$34,117.79"},{"v":517970.23,"d":"$517,970.23"},{"v":209815.91,"d":"$209,815.91"},{"v":80373.15,"d":"$80,373.15"},{"v":1157091.2799999998,"d":"$1,157,091.28"},{"v":12231551.84,"d":"$12,231,551.84"},{"v":27759.24,"d":"$27,759.24"},{"v":92.42,"d":"$92.42"},{"v":287557.48000000004,"d":"$287,557.48"},{"v":12231551.712000001,"d":"$12,231,551.71"}]
["06016107002","PLEASANTDALE SCHOOL DIST 107",793.75,{"v":10750057.05,"d":"$10,750,057.05"},{"v":15573687.13,"d":"$15,573,687.13"},{"v":1.448707393604018,"d":"145%"},4,{"v":684.76,"d":"$684.76"},{"v":533389.99,"d":"$533,389.99"},{"v":534074.75,"d":"$534,074.75"},{"v":1.05749,"d":"1.06"},{"v":2671670.85,"d":"$2,671,670.85"},{"v":534334.16,"d":"$534,334.16"},{"v":292018.12,"d":"$292,018.12"},{"v":129048.41,"d":"$129,048.41"},{"v":92496.51,"d":"$92,496.51"},{"v":177228.36,"d":"$177,228.36"},{"v":67913.22,"d":"$67,913.22"},{"v":110247.58,"d":"$110,247.58"},{"v":149003.51,"d":"$149,003.51"},{"v":82921.25,"d":"$82,921.25"},{"v":221051.36,"d":"$221,051.36"},{"v":190325.72,"d":"$190,325.72"},{"v":132291.9,"d":"$132,291.90"},{"v":4850550.950000001,"d":"$4,850,550.95"},{"v":70515,"d":"$70,515.00"},{"v":99218.75,"d":"$99,218.75"},{"v":257968.75,"d":"$257,968.75"},{"v":26987.5,"d":"$26,987.50"},{"v":226615.62,"d":"$226,615.62"},{"v":131107.5,"d":"$131,107.50"},{"v":1080293.75,"d":"$1,080,293.75"},{"v":743743.75,"d":"$743,743.75"},{"v":1939608.6899999997,"d":"$1,939,608.69"},{"v":4576059.31,"d":"$4,576,059.31"},{"v":755554.75,"d":"$755,554.75"},{"v":3820504.5599999996,"d":"$3,820,504.56"},{"v":4619496.149999999,"d":"$4,619,496.15"},{"v":67460.19,"d":"$67,460.19"},{"v":67460.19,"d":"$67,460.19"},{"v":70561.81,"d":"$70,561.81"},{"v":70561.81,"d":"$70,561.81"},{"v":60481.55,"d":"$60,481.55"},{"v":60481.55,"d":"$60,481.55"},{"v":63583.17,"d":"$63,583.17"},{"v":63583.17,"d":"$63,583.17"},{"v":75989.64,"d":"$75,989.64"},{"v":435777.35,"d":"$435,777.35"},{"v":176521.77,"d":"$176,521.77"},{"v":67547.64,"d":"$67,547.64"},{"v":1280009.8399999999,"d":"$1,280,009.84"},{"v":10750057.05,"d":"$10,750,057.05"},{"v":43601.33000000001,"d":"$43,601.33"},{"v":1533.7200000000003,"d":"$1,533.72"},{"v":317064.26000000007,"d":"$317,064.26"},{"v":10750056.940000001,"d":"$10,750,056.94"}]
["06016200013","OAK PARK & RIVER FOREST DIST 200",3354.48,{"v":48747628.75,"d":"$48,747,628.75"},{"v":67548219.48,"d":"$67,548,219.48"},{"v":1.3856719026563935,"d":"139%"},4,{"v":3105.14,"d":"$3,105.14"},{"v":6217320.84,"d":"$6,217,320.84"},{"v":6220425.9799999995,"d":"$6,220,425.98"},{"v":1.05749,"d":"1.06"},{"v":11717328.38,"d":"$11,717,328.38"},{"v":3905385.54,"d":"$3,905,385.54"},{"v":1422364.07,"d":"$1,422,364.07"},{"v":474121.35,"d":"$474,121.35"},{"v":367653.57,"d":"$367,653.57"},{"v":1214739.39,"d":"$1,214,739.39"},{"v":289116.29,"d":"$289,116.29"},{"v":526738.45,"d":"$526,738.45"},{"v":475959.79,"d":"$475,959.79"},{"v":351158.97,"d":"$351,158.97"},{"v":706101.21,"d":"$706,101.21"},{"v":607954.75,"d":"$607,954.75"},{"v":632061.31,"d":"$632,061.31"},{"v":22690683.07,"d":"$22,690,683.07"},{"v":301903.2,"d":"$301,903.20"},{"v":419310,"d":"$419,310.00"},{"v":1090206,"d":"$1,090,206.00"},{"v":114052.32,"d":"$114,052.32"},{"v":957704.04,"d":"$957,704.04"},{"v":2881498.32,"d":"$2,881,498.32"},{"v":4565447.28,"d":"$4,565,447.28"},{"v":3143147.7600000002,"d":"$3,143,147.76"},{"v":8419900.407720001,"d":"$8,419,900.41"},{"v":21893169.32772,"d":"$21,893,169.33"},{"v":3193062.42,"d":"$3,193,062.42"},{"v":18700106.90772,"d":"$18,700,106.91"},{"v":22076738.47772,"d":"$22,076,738.48"},{"v":246578.64,"d":"$246,578.64"},{"v":246578.64,"d":"$246,578.64"},{"v":256658.9,"d":"$256,658.90"},{"v":256658.9,"d":"$256,658.90"},{"v":17834.3,"d":"$17,834.30"},{"v":17834.3,"d":"$17,834.30"},{"v":18609.7,"d":"$18,609.70"},{"v":18609.7,"d":"$18,609.70"},{"v":22486.73,"d":"$22,486.73"},{"v":1844687.4,"d":"$1,844,687.40"},{"v":747233.62,"d":"$747,233.62"},{"v":286436.23,"d":"$286,436.23"},{"v":3980207.06,"d":"$3,980,207.06"},{"v":48747628.75,"d":"$48,747,628.75"},{"v":267268.46,"d":"$267,268.46"},{"v":36.169999999999995,"d":"$36.17"},{"v":1003039.8699999999,"d":"$1,003,039.87"},{"v":48747628.60772,"d":"$48,747,628.61"}]
["06016201017","J S MORTON H S DISTRICT 201",7797.66,{"v":148837873.74,"d":"$148,837,873.74"},{"v":113250716.50999999,"d":"$113,250,716.51"},{"v":0.7608998547495642,"d":"76%"},1,{"v":2154390.23,"d":"$2,154,390.23"},{"v":77506672.51999998,"d":"$77,506,672.52"},{"v":79661062.74999999,"d":"$79,661,062.75"},{"v":1.05749,"d":"1.06"},{"v":31515923.87,"d":"$31,515,923.87"},{"v":10504257.42,"d":"$10,504,257.42"},{"v":3306127.11,"d":"$3,306,127.11"},{"v":1101759.65,"d":"$1,101,759.65"},{"v":1238746.53,"d":"$1,238,746.53"},{"v":2825333.46,"d":"$2,825,333.46"},{"v":672017.52,"d":"$672,017.52"},{"v":1224344.95,"d":"$1,224,344.95"},{"v":1106031.79,"d":"$1,106,031.79"},{"v":816334.67,"d":"$816,334.67"},{"v":1640832.7,"d":"$1,640,832.70"},{"v":1412760.69,"d":"$1,412,760.69"},{"v":1469156.24,"d":"$1,469,156.24"},{"v":58833626.60000001,"d":"$58,833,626.60"},{"v":701789.4,"d":"$701,789.40"},{"v":974707.5,"d":"$974,707.50"},{"v":2534239.5,"d":"$2,534,239.50"},{"v":265120.44,"d":"$265,120.44"},{"v":4452463.86,"d":"$4,452,463.86"},{"v":6698189.9399999995,"d":"$6,698,189.94"},{"v":10612615.26,"d":"$10,612,615.26"},{"v":7306407.42,"d":"$7,306,407.42"},{"v":26845729.359239995,"d":"$26,845,729.36"},{"v":60391262.679239996,"d":"$60,391,262.68"},{"v":7422436.6,"d":"$7,422,436.60"},{"v":52968826.07923999,"d":"$52,968,826.08"},{"v":60817978.55923998,"d":"$60,817,978.56"},{"v":3701781.28,"d":"$3,701,781.28"},{"v":3701781.28,"d":"$3,701,781.28"},{"v":3856086.78,"d":"$3,856,086.78"},{"v":3856086.78,"d":"$3,856,086.78"},{"v":1383321.7,"d":"$1,383,321.70"},{"v":1383321.7,"d":"$1,383,321.70"},{"v":1441477.04,"d":"$1,441,477.04"},{"v":1441477.04,"d":"$1,441,477.04"},{"v":1729927.53,"d":"$1,729,927.53"},{"v":4287987.12,"d":"$4,287,987.12"},{"v":1736949.1,"d":"$1,736,949.10"},{"v":666071.12,"d":"$666,071.12"},{"v":29186268.470000003,"d":"$29,186,268.47"},{"v":148837873.74,"d":"$148,837,873.74"},{"v":24337390.669999998,"d":"$24,337,390.67"},{"v":1729486.99,"d":"$1,729,486.99"},{"v":4286965.750000001,"d":"$4,286,965.75"},{"v":148837873.62924,"d":"$148,837,873.63"}]
["06016204017","LYONS TWP H S DIST 204",3935.99,{"v":58217066.77,"d":"$58,217,066.77"},{"v":79677440.32000001,"d":"$79,677,440.32"},{"v":1.3686268433066917,"d":"137%"},4,{"v":3708.33,"d":"$3,708.33"},{"v":2800348.3599999994,"d":"$2,800,348.36"},{"v":2804056.6899999995,"d":"$2,804,056.69"},{"v":1.05749,"d":"1.06"},{"v":13844513.3,"d":"$13,844,513.30"},{"v":4614376.27,"d":"$4,614,376.27"},{"v":1668330.43,"d":"$1,668,330.43"},{"v":555544.7,"d":"$555,544.70"},{"v":443200.2,"d":"$443,200.20"},{"v":1425801.5,"d":"$1,425,801.50"},{"v":338919.32,"d":"$338,919.32"},{"v":617826.2,"d":"$617,826.20"},{"v":557698.86,"d":"$557,698.86"},{"v":411779.43,"d":"$411,779.43"},{"v":827363.67,"d":"$827,363.67"},{"v":712362.01,"d":"$712,362.01"},{"v":741362.32,"d":"$741,362.32"},{"v":26759078.21,"d":"$26,759,078.21"},{"v":354239.1,"d":"$354,239.10"},{"v":491998.75,"d":"$491,998.75"},{"v":1279196.75,"d":"$1,279,196.75"},{"v":133823.66,"d":"$133,823.66"},{"v":1123725.14,"d":"$1,123,725.14"},{"v":3381015.4099999997,"d":"$3,381,015.41"},{"v":5356882.39,"d":"$5,356,882.39"},{"v":3688022.63,"d":"$3,688,022.63"},{"v":10102075.059360001,"d":"$10,102,075.06"},{"v":25910978.88936,"d":"$25,910,978.89"},{"v":3746590.16,"d":"$3,746,590.16"},{"v":22164388.729360003,"d":"$22,164,388.73"},{"v":26126370.349360004,"d":"$26,126,370.35"},{"v":359787.7,"d":"$359,787.70"},{"v":359787.7,"d":"$359,787.70"},{"v":374520.39,"d":"$374,520.39"},{"v":374520.39,"d":"$374,520.39"},{"v":91497.73,"d":"$91,497.73"},{"v":91497.73,"d":"$91,497.73"},{"v":94599.35,"d":"$94,599.35"},{"v":94599.35,"d":"$94,599.35"},{"v":113984.46,"d":"$113,984.46"},{"v":2164154.07,"d":"$2,164,154.07"},{"v":876641.04,"d":"$876,641.04"},{"v":336028.18,"d":"$336,028.18"},{"v":5331618.09,"d":"$5,331,618.09"},{"v":58217066.77,"d":"$58,217,066.77"},{"v":283592.01,"d":"$283,592.01"},{"v":10583.090000000002,"d":"$10,583.09"},{"v":1052731.8400000003,"d":"$1,052,731.84"},{"v":58217066.64936,"d":"$58,217,066.65"}]
["06016208017","RIVERSIDE BROOKFIELD TWP DIST 208",1640,{"v":24878865.08,"d":"$24,878,865.08"},{"v":18393533.92,"d":"$18,393,533.92"},{"v":0.7393236733610681,"d":"74%"},1,{"v":455014.28,"d":"$455,014.28"},{"v":2555341.41,"d":"$2,555,341.41"},{"v":3010355.6900000004,"d":"$3,010,355.69"},{"v":1.05749,"d":"1.06"},{"v":5823465.56,"d":"$5,823,465.56"},{"v":1940961.06,"d":"$1,940,961.06"},{"v":695491.08,"d":"$695,491.08"},{"v":231547.64,"d":"$231,547.64"},{"v":186401.7,"d":"$186,401.70"},{"v":594234.93,"d":"$594,234.93"},{"v":141000.78,"d":"$141,000.78"},{"v":257558.45,"d":"$257,558.45"},{"v":232445.48,"d":"$232,445.48"},{"v":171496.24,"d":"$171,496.24"},{"v":344840.12,"d":"$344,840.12"},{"v":296908.13,"d":"$296,908.13"},{"v":309058,"d":"$309,058.00"},{"v":11225409.169999998,"d":"$11,225,409.17"},{"v":147600,"d":"$147,600.00"},{"v":205000,"d":"$205,000.00"},{"v":533000,"d":"$533,000.00"},{"v":55760,"d":"$55,760.00"},{"v":936440,"d":"$936,440.00"},{"v":1408760,"d":"$1,408,760.00"},{"v":2232040,"d":"$2,232,040.00"},{"v":1536680,"d":"$1,536,680.00"},{"v":4242742.101,"d":"$4,242,742.10"},{"v":11298022.101,"d":"$11,298,022.10"},{"v":1561083.2,"d":"$1,561,083.20"},{"v":9736938.901,"d":"$9,736,938.90"},{"v":11387768.771000002,"d":"$11,387,768.77"},{"v":189974.11,"d":"$189,974.11"},{"v":189974.11,"d":"$189,974.11"},{"v":197728.15,"d":"$197,728.15"},{"v":197728.15,"d":"$197,728.15"},{"v":15508.09,"d":"$15,508.09"},{"v":15508.09,"d":"$15,508.09"},{"v":16283.49,"d":"$16,283.49"},{"v":16283.49,"d":"$16,283.49"},{"v":19385.11,"d":"$19,385.11"},{"v":901795.48,"d":"$901,795.48"},{"v":365293.27,"d":"$365,293.27"},{"v":140225.5,"d":"$140,225.50"},{"v":2265687.04,"d":"$2,265,687.04"},{"v":24878865.08,"d":"$24,878,865.08"},{"v":239388.59999999998,"d":"$239,388.60"},{"v":14268.379999999997,"d":"$14,268.38"},{"v":498833.50999999995,"d":"$498,833.51"},{"v":24878864.981,"d":"$24,878,864.98"}]
["06016209017","PROVISO TWP H S DIST 209",4396.66,{"v":82185867.41,"d":"$82,185,867.41"},{"v":66106571.78,"d":"$66,106,571.78"},{"v":0.8043544938233074,"d":"80%"},2,{"v":477030.02,"d":"$477,030.02"},{"v":18683014.41,"d":"$18,683,014.41"},{"v":19160044.43,"d":"$19,160,044.43"},{"v":1.05749,"d":"1.06"},{"v":17830864.62,"d":"$17,830,864.62"},{"v":5943027.17,"d":"$5,943,027.17"},{"v":1864255.36,"d":"$1,864,255.36"},{"v":620853.01,"d":"$620,853.01"},{"v":678277.69,"d":"$678,277.69"},{"v":1592477.15,"d":"$1,592,477.15"},{"v":379020.46,"d":"$379,020.46"},{"v":690382.3,"d":"$690,382.30"},{"v":623260.41,"d":"$623,260.41"},{"v":460150.17,"d":"$460,150.17"},{"v":924626.27,"d":"$924,626.27"},{"v":796105.33,"d":"$796,105.33"},{"v":828426.22,"d":"$828,426.22"},{"v":33231726.16,"d":"$33,231,726.16"},{"v":395699.39999999997,"d":"$395,699.40"},{"v":549582.5,"d":"$549,582.50"},{"v":1428914.5,"d":"$1,428,914.50"},{"v":149486.44,"d":"$149,486.44"},{"v":2510492.86,"d":"$2,510,492.86"},{"v":3776730.94,"d":"$3,776,730.94"},{"v":5983854.26,"d":"$5,983,854.26"},{"v":4119670.42,"d":"$4,119,670.42"},{"v":14757733.269240001,"d":"$14,757,733.27"},{"v":33672164.58924,"d":"$33,672,164.59"},{"v":4185092.72,"d":"$4,185,092.72"},{"v":29487071.86924,"d":"$29,487,071.87"},{"v":33912765.569240004,"d":"$33,912,765.57"},{"v":2131587.08,"d":"$2,131,587.08"},{"v":2131587.08,"d":"$2,131,587.08"},{"v":2220758.6,"d":"$2,220,758.60"},{"v":2220758.6,"d":"$2,220,758.60"},{"v":480750.81,"d":"$480,750.81"},{"v":480750.81,"d":"$480,750.81"},{"v":500911.33,"d":"$500,911.33"},{"v":500911.33,"d":"$500,911.33"},{"v":600938.52,"d":"$600,938.52"},{"v":2417711.36,"d":"$2,417,711.36"},{"v":979350.32,"d":"$979,350.32"},{"v":375359.72,"d":"$375,359.72"},{"v":15041375.56,"d":"$15,041,375.56"},{"v":82185867.41,"d":"$82,185,867.41"},{"v":10964751.97,"d":"$10,964,751.97"},{"v":335131.97,"d":"$335,131.97"},{"v":1425409.74,"d":"$1,425,409.74"},{"v":82185867.28924,"d":"$82,185,867.29"}]
["06016212016","LEYDEN COMM H S DIST 212",3459,{"v":58713818.25,"d":"$58,713,818.25"},{"v":82391926.42,"d":"$82,391,926.42"},{"v":1.4032799922699628,"d":"140%"},4,{"v":3739.97,"d":"$3,739.97"},{"v":9781048.21,"d":"$9,781,048.21"},{"v":9784788.180000002,"d":"$9,784,788.18"},{"v":1.05749,"d":"1.06"},{"v":13304235.47,"d":"$13,304,235.47"},{"v":4434301.67,"d":"$4,434,301.67"},{"v":1466468.38,"d":"$1,466,468.38"},{"v":488540.07,"d":"$488,540.07"},{"v":476503.13,"d":"$476,503.13"},{"v":1252784.92,"d":"$1,252,784.92"},{"v":298171.39,"d":"$298,171.39"},{"v":543071.43,"d":"$543,071.43"},{"v":490434.42,"d":"$490,434.42"},{"v":362152.31,"d":"$362,152.31"},{"v":727574.77,"d":"$727,574.77"},{"v":626443.54,"d":"$626,443.54"},{"v":651660.11,"d":"$651,660.11"},{"v":25122341.61,"d":"$25,122,341.61"},{"v":311310,"d":"$311,310.00"},{"v":432375,"d":"$432,375.00"},{"v":1124175,"d":"$1,124,175.00"},{"v":117606,"d":"$117,606.00"},{"v":987544.5,"d":"$987,544.50"},{"v":2971281,"d":"$2,971,281.00"},{"v":4707699,"d":"$4,707,699.00"},{"v":3241083,"d":"$3,241,083.00"},{"v":10527545.958,"d":"$10,527,545.96"},{"v":24420619.458,"d":"$24,420,619.46"},{"v":3292552.92,"d":"$3,292,552.92"},{"v":21128066.538000003,"d":"$21,128,066.54"},{"v":24609908.318000004,"d":"$24,609,908.32"},{"v":1147598.72,"d":"$1,147,598.72"},{"v":1147598.72,"d":"$1,147,598.72"},{"v":1194898.39,"d":"$1,194,898.39"},{"v":1194898.39,"d":"$1,194,898.39"},{"v":248904.85,"d":"$248,904.85"},{"v":248904.85,"d":"$248,904.85"},{"v":259760.52,"d":"$259,760.52"},{"v":259760.52,"d":"$259,760.52"},{"v":311712.62,"d":"$311,712.62"},{"v":1902067.34,"d":"$1,902,067.34"},{"v":770476.7,"d":"$770,476.70"},{"v":294986.57,"d":"$294,986.57"},{"v":8981568.189999998,"d":"$8,981,568.19"},{"v":58713818.25,"d":"$58,713,818.25"},{"v":1783414.2,"d":"$1,783,414.20"},{"v":87733.69,"d":"$87,733.69"},{"v":1071480.5899999999,"d":"$1,071,480.59"},{"v":58713818.118,"d":"$58,713,818.12"}]
["06016234016","RIDGEWOOD COMM H S DIST 234",853,{"v":13900730.01,"d":"$13,900,730.01"},{"v":14165013.74,"d":"$14,165,013.74"},{"v":1.019012219488464,"d":"102%"},4,{"v":885.45,"d":"$885.45"},{"v":972947.58,"d":"$972,947.58"},{"v":973833.0299999999,"d":"$973,833.03"},{"v":1.05749,"d":"1.06"},{"v":3202651.61,"d":"$3,202,651.61"},{"v":1067443.77,"d":"$1,067,443.77"},{"v":361316.09,"d":"$361,316.09"},{"v":120438.69,"d":"$120,438.69"},{"v":110832.8,"d":"$110,832.80"},{"v":308893.46,"d":"$308,893.46"},{"v":73087.56,"d":"$73,087.56"},{"v":133804.75,"d":"$133,804.75"},{"v":120905.7,"d":"$120,905.70"},{"v":89203.17,"d":"$89,203.17"},{"v":179367.39,"d":"$179,367.39"},{"v":154435.73,"d":"$154,435.73"},{"v":160559.4,"d":"$160,559.40"},{"v":6082940.12,"d":"$6,082,940.12"},{"v":76770,"d":"$76,770.00"},{"v":106625,"d":"$106,625.00"},{"v":277225,"d":"$277,225.00"},{"v":29002,"d":"$29,002.00"},{"v":243531.5,"d":"$243,531.50"},{"v":732727,"d":"$732,727.00"},{"v":1160933,"d":"$1,160,933.00"},{"v":799261,"d":"$799,261.00"},{"v":2469803.022,"d":"$2,469,803.02"},{"v":5895877.522,"d":"$5,895,877.52"},{"v":811953.64,"d":"$811,953.64"},{"v":5083923.882,"d":"$5,083,923.88"},{"v":5942556.732,"d":"$5,942,556.73"},{"v":225642.72,"d":"$225,642.72"},{"v":225642.72,"d":"$225,642.72"},{"v":234947.57,"d":"$234,947.57"},{"v":234947.57,"d":"$234,947.57"},{"v":41871.84,"d":"$41,871.84"},{"v":41871.84,"d":"$41,871.84"},{"v":43422.65,"d":"$43,422.65"},{"v":43422.65,"d":"$43,422.65"},{"v":52727.5,"d":"$52,727.50"},{"v":468344.34,"d":"$468,344.34"},{"v":189713.79,"d":"$189,713.79"},{"v":72677.85,"d":"$72,677.85"},{"v":1875233.0400000003,"d":"$1,875,233.04"},{"v":13900730.01,"d":"$13,900,730.01"},{"v":303470.62000000005,"d":"$303,470.62"},{"v":19741.659999999996,"d":"$19,741.66"},{"v":273439.99999999994,"d":"$273,440.00"},{"v":13900729.892,"d":"$13,900,729.89"}]
["06016401026","ELMWOOD PARK C U SCH DIST 401",2800.5,{"v":47063615.87,"d":"$47,063,615.87"},{"v":30608057.67,"d":"$30,608,057.67"},{"v":0.6503549951314016,"d":"65%"},1,{"v":2402189.24,"d":"$2,402,189.24"},{"v":15304445.64,"d":"$15,304,445.64"},{"v":17706634.880000003,"d":"$17,706,634.88"},{"v":1.05749,"d":"1.06"},{"v":10522948.05,"d":"$10,522,948.05"},{"v":2602956.8,"d":"$2,602,956.80"},{"v":1085691.17,"d":"$1,085,691.17"},{"v":435319.37,"d":"$435,319.37"},{"v":406397.15,"d":"$406,397.15"},{"v":766547.85,"d":"$766,547.85"},{"v":240606.85,"d":"$240,606.85"},{"v":407382.09,"d":"$407,382.09"},{"v":481919.93,"d":"$481,919.93"},{"v":292737.17,"d":"$292,737.17"},{"v":714943.27,"d":"$714,943.27"},{"v":615567.78,"d":"$615,567.78"},{"v":488839.31,"d":"$488,839.31"},{"v":19061856.790000003,"d":"$19,061,856.79"},{"v":250245,"d":"$250,245.00"},{"v":350062.5,"d":"$350,062.50"},{"v":910162.5,"d":"$910,162.50"},{"v":95217,"d":"$95,217.00"},{"v":1599085.5,"d":"$1,599,085.50"},{"v":1145776.5,"d":"$1,145,776.50"},{"v":3811480.5,"d":"$3,811,480.50"},{"v":2624068.5,"d":"$2,624,068.50"},{"v":8516496.033,"d":"$8,516,496.03"},{"v":19302594.033,"d":"$19,302,594.03"},{"v":2665739.94,"d":"$2,665,739.94"},{"v":16636854.093,"d":"$16,636,854.09"},{"v":19455847.413,"d":"$19,455,847.41"},{"v":882410.36,"d":"$882,410.36"},{"v":882410.36,"d":"$882,410.36"},{"v":918854.38,"d":"$918,854.38"},{"v":918854.38,"d":"$918,854.38"},{"v":476098.38,"d":"$476,098.38"},{"v":476098.38,"d":"$476,098.38"},{"v":496258.9,"d":"$496,258.90"},{"v":496258.9,"d":"$496,258.90"},{"v":595510.68,"d":"$595,510.68"},{"v":1539953.42,"d":"$1,539,953.42"},{"v":623794.02,"d":"$623,794.02"},{"v":239409.39,"d":"$239,409.39"},{"v":8545911.55,"d":"$8,545,911.55"},{"v":47063615.87,"d":"$47,063,615.87"},{"v":3747020.38,"d":"$3,747,020.38"},{"v":578754.03,"d":"$578,754.03"},{"v":1335051.02,"d":"$1,335,051.02"},{"v":47063615.753000006,"d":"$47,063,615.75"}]
[null,"Region 07 South Cook ISC 4 TAOEP",1,{"v":10520.95,"d":"$10,520.95"},{"v":6209.82,"d":"$6,209.82"},{"v":0.5902337716651063,"d":"59%"},1,{"v":792.85,"d":"$792.85"},{"v":5157.7300000000005,"d":"$5,157.73"},{"v":5950.580000000001,"d":"$5,950.58"},{"v":1.05749,"d":"1.06"},{"v":3392.63,"d":"$3,392.63"},{"v":1130.76,"d":"$1,130.76"},{"v":0,"d":"$0.00"},{"v":0,"d":"$0.00"},{"v":72.01,"d":"$72.01"},{"v":0,"d":"$0.00"},{"v":0,"d":"$0.00"},{"v":0,"d":"$0.00"},{"v":0,"d":"$0.00"},{"v":0,"d":"$0.00"},{"v":0,"d":"$0.00"},{"v":0,"d":"$0.00"},{"v":0,"d":"$0.00"},{"v":4595.400000000001,"d":"$4,595.40"},{"v":90,"d":"$90.00"},{"v":125,"d":"$125.00"},{"v":325,"d":"$325.00"},{"v":34,"d":"$34.00"},{"v":571,"d":"$571.00"},{"v":859,"d":"$859.00"},{"v":1361,"d":"$1,361.00"},{"v":937,"d":"$937.00"},{"v":1568.811,"d":"$1,568.81"},{"v":5870.811,"d":"$5,870.81"},{"v":951.88,"d":"$951.88"},{"v":4918.931,"d":"$4,918.93"},{"v":5925.531,"d":"$5,925.53"},{"v":0,"d":"$0.00"},{"v":0,"d":"$0.00"},{"v":0,"d":"$0.00"},{"v":0,"d":"$0.00"},{"v":0,"d":"$0.00"},{"v":0,"d":"$0.00"},{"v":0,"d":"$0.00"},{"v":0,"d":"$0.00"},{"v":0,"d":"$0.00"},{"v":0,"d":"$0.00"},{"v":0,"d":"$0.00"},{"v":0,"d":"$0.00"},{"v":0,"d":"$0.00"},{"v":10520.95,"d":"$10,520.95"},{"v":0,"d":"$0.00"},{"v":0,"d":"$0.00"},{"v":0,"d":"$0.00"},{"v":10520.931,"d":"$10,520.93"}]
[null,"SAFE SCH-INTERMEDIATE SERVICE CEN",129,{"v":2133460.12,"d":"$2,133,460.12"},{"v":1419485.61,"d":"$1,419,485.61"},{"v":0.6653443374418454,"d":"67%"},1,{"v":103648.98,"d":"$103,648.98"},{"v":1206139.6,"d":"$1,206,139.60"},{"v":1309788.58,"d":"$1,309,788.58"},{"v":1.05749,"d":"1.06"},{"v":476129.51,"d":"$476,129.51"},{"v":140902.01,"d":"$140,902.01"},{"v":52067.42,"d":"$52,067.42"},{"v":17773.59,"d":"$17,773.59"},{"v":17383.45,"d":"$17,383.45"},{"v":44420.54,"d":"$44,420.54"},{"v":10348.68,"d":"$10,348.68"},{"v":19159.83,"d":"$19,159.83"},{"v":18731.87,"d":"$18,731.87"},{"v":13192.01,"d":"$13,192.01"},{"v":27789.31,"d":"$27,789.31"},{"v":23926.66,"d":"$23,926.66"},{"v":22990.9,"d":"$22,990.90"},{"v":884815.7800000001,"d":"$884,815.78"},{"v":11610,"d":"$11,610.00"},{"v":16125,"d":"$16,125.00"},{"v":41925,"d":"$41,925.00"},{"v":4386,"d":"$4,386.00"},{"v":73659,"d":"$73,659.00"},{"v":86411,"d":"$86,411.00"},{"v":175569,"d":"$175,569.00"},{"v":120873,"d":"$120,873.00"},{"v":377530.116,"d":"$377,530.12"},{"v":908088.1159999999,"d":"$908,088.12"},{"v":122792.52,"d":"$122,792.52"},{"v":785295.5959999999,"d":"$785,295.60"},{"v":915147.4559999999,"d":"$915,147.46"},{"v":42647.24,"d":"$42,647.24"},{"v":42647.24,"d":"$42,647.24"},{"v":44973.46,"d":"$44,973.46"},{"v":44973.46,"d":"$44,973.46"},{"v":9304.85,"d":"$9,304.85"},{"v":9304.85,"d":"$9,304.85"},{"v":9304.85,"d":"$9,304.85"},{"v":9304.85,"d":"$9,304.85"},{"v":11631.06,"d":"$11,631.06"},{"v":70561.81,"d":"$70,561.81"},{"v":28582.7,"d":"$28,582.70"},{"v":10260.4,"d":"$10,260.40"},{"v":333496.7700000001,"d":"$333,496.77"},{"v":2133460.12,"d":"$2,133,460.12"},{"v":52519.42,"d":"$52,519.42"},{"v":5797.25,"d":"$5,797.25"},{"v":22577.73,"d":"$22,577.73"},{"v":2133460.006,"d":"$2,133,460.01"}]
[null,"SOUTH COOK ISC 4 ALOP",67,{"v":1116053.88,"d":"$1,116,053.88"},{"v":395039.5,"d":"$395,039.50"},{"v":0.3539609575121947,"d":"35%"},1,{"v":178110.96,"d":"$178,110.96"},{"v":283434.12,"d":"$283,434.12"},{"v":461545.07999999996,"d":"$461,545.08"},{"v":1.05749,"d":"1.06"},{"v":257840.59,"d":"$257,840.59"},{"v":85938.26,"d":"$85,938.26"},{"v":27989.27,"d":"$27,989.27"},{"v":9329.75,"d":"$9,329.75"},{"v":9002.95,"d":"$9,002.95"},{"v":23551.99,"d":"$23,551.99"},{"v":5174.34,"d":"$5,174.34"},{"v":10365.15,"d":"$10,365.15"},{"v":9365.93,"d":"$9,365.93"},{"v":6910.1,"d":"$6,910.10"},{"v":13894.65,"d":"$13,894.65"},{"v":11963.33,"d":"$11,963.33"},{"v":12437.7,"d":"$12,437.70"},{"v":483764.01000000007,"d":"$483,764.01"},{"v":6030,"d":"$6,030.00"},{"v":8375,"d":"$8,375.00"},{"v":21775,"d":"$21,775.00"},{"v":2278,"d":"$2,278.00"},{"v":19128.5,"d":"$19,128.50"},{"v":57553,"d":"$57,553.00"},{"v":91187,"d":"$91,187.00"},{"v":62779,"d":"$62,779.00"},{"v":199276.91399999996,"d":"$199,276.91"},{"v":468382.414,"d":"$468,382.41"},{"v":63775.96,"d":"$63,775.96"},{"v":404606.45399999997,"d":"$404,606.45"},{"v":472048.88399999996,"d":"$472,048.88"},{"v":22486.73,"d":"$22,486.73"},{"v":22486.73,"d":"$22,486.73"},{"v":23262.13,"d":"$23,262.13"},{"v":23262.13,"d":"$23,262.13"},{"v":2326.21,"d":"$2,326.21"},{"v":2326.21,"d":"$2,326.21"},{"v":2326.21,"d":"$2,326.21"},{"v":2326.21,"d":"$2,326.21"},{"v":3101.61,"d":"$3,101.61"},{"v":36444.01,"d":"$36,444.01"},{"v":14762.49,"d":"$14,762.49"},{"v":5130.2,"d":"$5,130.20"},{"v":160240.87000000002,"d":"$160,240.87"},{"v":1116053.88,"d":"$1,116,053.88"},{"v":27375.65,"d":"$27,375.65"},{"v":2564.79,"d":"$2,564.79"},{"v":11684.07,"d":"$11,684.07"},{"v":1116053.7640000002,"d":"$1,116,053.76"}]
["07016104002","SUMMIT SCHOOL DIST 104",1434.3,{"v":26801743.86,"d":"$26,801,743.86"},{"v":22151227.6,"d":"$22,151,227.60"},{"v":0.8264845644263985,"d":"83%"},2,{"v":145686.75,"d":"$145,686.75"},{"v":13943909.61,"d":"$13,943,909.61"},{"v":14089596.36,"d":"$14,089,596.36"},{"v":1.05749,"d":"1.06"},{"v":5661906.93,"d":"$5,661,906.93"},{"v":1132381.37,"d":"$1,132,381.37"},{"v":527992.36,"d":"$527,992.36"},{"v":233761.98,"d":"$233,761.98"},{"v":249920.66,"d":"$249,920.66"},{"v":325845.87,"d":"$325,845.87"},{"v":122890.59,"d":"$122,890.59"},{"v":199764.85,"d":"$199,764.85"},{"v":269909.22,"d":"$269,909.22"},{"v":149823.63,"d":"$149,823.63"},{"v":400418.75,"d":"$400,418.75"},{"v":344761.46,"d":"$344,761.46"},{"v":239708.4,"d":"$239,708.40"},{"v":9859086.070000004,"d":"$9,859,086.07"},{"v":127992.59999999999,"d":"$127,992.60"},{"v":179287.5,"d":"$179,287.50"},{"v":466147.5,"d":"$466,147.50"},{"v":48766.2,"d":"$48,766.20"},{"v":818985.3,"d":"$818,985.30"},{"v":242391.34,"d":"$242,391.34"},{"v":1952082.3,"d":"$1,952,082.30"},{"v":1343939.0999999999,"d":"$1,343,939.10"},{"v":5024901.7332,"d":"$5,024,901.73"},{"v":10204493.573199999,"d":"$10,204,493.57"},{"v":1365281.48,"d":"$1,365,281.48"},{"v":8839212.093199998,"d":"$8,839,212.09"},{"v":10282983.603199998,"d":"$10,282,983.60"},{"v":672275.73,"d":"$672,275.73"},{"v":672275.73,"d":"$672,275.73"},{"v":700190.3,"d":"$700,190.30"},{"v":700190.3,"d":"$700,190.30"},{"v":503237.54,"d":"$503,237.54"},{"v":503237.54,"d":"$503,237.54"},{"v":524173.47,"d":"$524,173.47"},{"v":524173.47,"d":"$524,173.47"},{"v":629628.48,"d":"$629,628.48"},{"v":788586.41,"d":"$788,586.41"},{"v":319435.3,"d":"$319,435.30"},{"v":122269.79,"d":"$122,269.79"},{"v":6659674.0600000005,"d":"$6,659,674.06"},{"v":26801743.86,"d":"$26,801,743.86"},{"v":4555705.490000001,"d":"$4,555,705.49"},{"v":691841.62,"d":"$691,841.62"},{"v":788217.3800000001,"d":"$788,217.38"},{"v":26801743.733200006,"d":"$26,801,743.73"}]
["07016108002","WILLOW SPRINGS SCHOOL DIST 108",393.25,{"v":6229985.79,"d":"$6,229,985.79"},{"v":4155336.8899999997,"d":"$4,155,336.89"},{"v":0.6669897861837658,"d":"67%"},1,{"v":280405.12,"d":"$280,405.12"},{"v":1859590.8,"d":"$1,859,590.80"},{"v":2139995.92,"d":"$2,139,995.92"},{"v":1.05749,"d":"1.06"},{"v":1488112.55,"d":"$1,488,112.55"},{"v":297622.5,"d":"$297,622.50"},{"v":143796.8,"d":"$143,796.80"},{"v":63418.07,"d":"$63,418.07"},{"v":55506.83,"d":"$55,506.83"},{"v":85832.57,"d":"$85,832.57"},{"v":32986.42,"d":"$32,986.42"},{"v":54338.55,"d":"$54,338.55"},{"v":73224.58,"d":"$73,224.58"},{"v":40832.43,"d":"$40,832.43"},{"v":108630.95,"d":"$108,630.95"},{"v":93531.5,"d":"$93,531.50"},{"v":65203.7,"d":"$65,203.70"},{"v":2603037.4500000007,"d":"$2,603,037.45"},{"v":34830,"d":"$34,830.00"},{"v":49156.25,"d":"$49,156.25"},{"v":127806.25,"d":"$127,806.25"},{"v":13370.5,"d":"$13,370.50"},{"v":224545.75,"d":"$224,545.75"},{"v":63689,"d":"$63,689.00"},{"v":535213.25,"d":"$535,213.25"},{"v":368475.25,"d":"$368,475.25"},{"v":1134090.015,"d":"$1,134,090.02"},{"v":2551176.2649999997,"d":"$2,551,176.27"},{"v":374326.81,"d":"$374,326.81"},{"v":2176849.4549999996,"d":"$2,176,849.46"},{"v":2572696.3049999997,"d":"$2,572,696.31"},{"v":138797.41,"d":"$138,797.41"},{"v":138797.41,"d":"$138,797.41"},{"v":144225.24,"d":"$144,225.24"},{"v":144225.24,"d":"$144,225.24"},{"v":28689.96,"d":"$28,689.96"},{"v":28689.96,"d":"$28,689.96"},{"v":29465.37,"d":"$29,465.37"},{"v":29465.37,"d":"$29,465.37"},{"v":35668.6,"d":"$35,668.60"},{"v":215562.46,"d":"$215,562.46"},{"v":87318.59,"d":"$87,318.59"},{"v":33346.3,"d":"$33,346.30"},{"v":1054251.91,"d":"$1,054,251.91"},{"v":6229985.79,"d":"$6,229,985.79"},{"v":520971.05000000005,"d":"$520,971.05"},{"v":30203.37,"d":"$30,203.37"},{"v":171735.46999999997,"d":"$171,735.47"},{"v":6229985.665000001,"d":"$6,229,985.67"}]
["07016109002","INDIAN SPRINGS SCHOOL DIST 109",2392.72,{"v":41264878.15,"d":"$41,264,878.15"},{"v":30586013.22,"d":"$30,586,013.22"},{"v":0.7412117663068878,"d":"74%"},1,{"v":817795.52,"d":"$817,795.52"},{"v":18973852.500000004,"d":"$18,973,852.50"},{"v":19791648.020000003,"d":"$19,791,648.02"},{"v":1.05749,"d":"1.06"},{"v":9186772.15,"d":"$9,186,772.15"},{"v":1837354.42,"d":"$1,837,354.42"},{"v":881953.72,"d":"$881,953.72"},{"v":391569.75,"d":"$391,569.75"},{"v":376387.12,"d":"$376,387.12"},{"v":534069.33,"d":"$534,069.33"},{"v":205680.04,"d":"$205,680.04"},{"v":333883.7,"d":"$333,883.70"},{"v":452119.23,"d":"$452,119.23"},{"v":250334.25,"d":"$250,334.25"},{"v":670732.99,"d":"$670,732.99"},{"v":577502.63,"d":"$577,502.63"},{"v":400644.71,"d":"$400,644.71"},{"v":16099004.040000001,"d":"$16,099,004.04"},{"v":211797.90000000002,"d":"$211,797.90"},{"v":299090,"d":"$299,090.00"},{"v":777634,"d":"$777,634.00"},{"v":81352.48000000001,"d":"$81,352.48"},{"v":1366243.12,"d":"$1,366,243.12"},{"v":392453.59,"d":"$392,453.59"},{"v":3256491.92,"d":"$3,256,491.92"},{"v":2241978.64,"d":"$2,241,978.64"},{"v":7632991.40808,"d":"$7,632,991.41"},{"v":16260033.05808,"d":"$16,260,033.06"},{"v":2277582.31,"d":"$2,277,582.31"},{"v":13982450.74808,"d":"$13,982,450.75"},{"v":16390971.25808,"d":"$16,390,971.26"},{"v":960726.22,"d":"$960,726.22"},{"v":960726.22,"d":"$960,726.22"},{"v":1001047.26,"d":"$1,001,047.26"},{"v":1001047.26,"d":"$1,001,047.26"},{"v":524948.87,"d":"$524,948.87"},{"v":524948.87,"d":"$524,948.87"},{"v":546660.2,"d":"$546,660.20"},{"v":546660.2,"d":"$546,660.20"},{"v":655992.24,"d":"$655,992.24"},{"v":1315086.1,"d":"$1,315,086.10"},{"v":532706.27,"d":"$532,706.27"},{"v":204353.01,"d":"$204,353.01"},{"v":8774902.72,"d":"$8,774,902.72"},{"v":41264878.15,"d":"$41,264,878.15"},{"v":5291040.66,"d":"$5,291,040.66"},{"v":928688.9099999999,"d":"$928,688.91"},{"v":1525254.4000000001,"d":"$1,525,254.40"},{"v":41264878.01808,"d":"$41,264,878.02"}]
["07016110002","CENTRAL STICKNEY SCH DIST 110",305.72,{"v":5408953.35,"d":"$5,408,953.35"},{"v":8578178.54,"d":"$8,578,178.54"},{"v":1.5859220786217356,"d":"159%"},4,{"v":344.54,"d":"$344.54"},{"v":957049.8999999999,"d":"$957,049.90"},{"v":957394.44,"d":"$957,394.44"},{"v":1.05749,"d":"1.06"},{"v":1176184.1,"d":"$1,176,184.10"},{"v":235236.82,"d":"$235,236.82"},{"v":112087.76,"d":"$112,087.76"},{"v":49407.1,"d":"$49,407.10"},{"v":50622.27,"d":"$50,622.27"},{"v":70732.39,"d":"$70,732.39"},{"v":25871.7,"d":"$25,871.70"},{"v":42402.91,"d":"$42,402.91"},{"v":57047.05,"d":"$57,047.05"},{"v":31723.66,"d":"$31,723.66"},{"v":84631.09,"d":"$84,631.09"},{"v":72867.56,"d":"$72,867.56"},{"v":50881.5,"d":"$50,881.50"},{"v":2059695.9100000001,"d":"$2,059,695.91"},{"v":27297.9,"d":"$27,297.90"},{"v":38215,"d":"$38,215.00"},{"v":99359,"d":"$99,359.00"},{"v":10394.48,"d":"$10,394.48"},{"v":87283.06,"d":"$87,283.06"},{"v":53289.75,"d":"$53,289.75"},{"v":416084.9199999999,"d":"$416,084.92"},{"v":286459.64,"d":"$286,459.64"},{"v":1023423.2470800001,"d":"$1,023,423.25"},{"v":2041806.9970800001,"d":"$2,041,807.00"},{"v":291008.75,"d":"$291,008.75"},{"v":1750798.2470800001,"d":"$1,750,798.25"},{"v":2058537.0870800002,"d":"$2,058,537.09"},{"v":134144.98,"d":"$134,144.98"},{"v":134144.98,"d":"$134,144.98"},{"v":139572.81,"d":"$139,572.81"},{"v":139572.81,"d":"$139,572.81"},{"v":90722.33,"d":"$90,722.33"},{"v":90722.33,"d":"$90,722.33"},{"v":93823.94,"d":"$93,823.94"},{"v":93823.94,"d":"$93,823.94"},{"v":113209.06,"d":"$113,209.06"},{"v":167487.38,"d":"$167,487.38"},{"v":67844.66,"d":"$67,844.66"},{"v":25651,"d":"$25,651.00"},{"v":1290720.22,"d":"$1,290,720.22"},{"v":5408953.35,"d":"$5,408,953.35"},{"v":728311.64,"d":"$728,311.64"},{"v":48618.51,"d":"$48,618.51"},{"v":80411.29000000001,"d":"$80,411.29"},{"v":5408953.21708,"d":"$5,408,953.22"}]
["07016111002","BURBANK SCHOOL DISTRICT 111",3319.8,{"v":57029092.49,"d":"$57,029,092.49"},{"v":43490542,"d":"$43,490,542.00"},{"v":0.7626027366229968,"d":"76%"},1,{"v":635621.25,"d":"$635,621.25"},{"v":16228824.260000002,"d":"$16,228,824.26"},{"v":16864445.51,"d":"$16,864,445.51"},{"v":1.05749,"d":"1.06"},{"v":12505159.9,"d":"$12,505,159.90"},{"v":2501031.97,"d":"$2,501,031.97"},{"v":1223378.95,"d":"$1,223,378.95"},{"v":543478.17,"d":"$543,478.17"},{"v":518373.66,"d":"$518,373.66"},{"v":758982.46,"d":"$758,982.46"},{"v":285882.33,"d":"$285,882.33"},{"v":463291.12,"d":"$463,291.12"},{"v":627517.65,"d":"$627,517.65"},{"v":347075.72,"d":"$347,075.72"},{"v":930942.03,"d":"$930,942.03"},{"v":801543.21,"d":"$801,543.21"},{"v":555927.51,"d":"$555,927.51"},{"v":22062584.68,"d":"$22,062,584.68"},{"v":295137,"d":"$295,137.00"},{"v":414974.99999999994,"d":"$414,975.00"},{"v":1078935,"d":"$1,078,935.00"},{"v":112873.2,"d":"$112,873.20"},{"v":1895605.7999999998,"d":"$1,895,605.80"},{"v":562017.1,"d":"$562,017.10"},{"v":4518247.8,"d":"$4,518,247.80"},{"v":3110652.5999999996,"d":"$3,110,652.60"},{"v":10537608.355199998,"d":"$10,537,608.36"},{"v":22526051.855199996,"d":"$22,526,051.86"},{"v":3160051.22,"d":"$3,160,051.22"},{"v":19366000.6352,"d":"$19,366,000.64"},{"v":22707723.1952,"d":"$22,707,723.20"},{"v":1216609.72,"d":"$1,216,609.72"},{"v":1216609.72,"d":"$1,216,609.72"},{"v":1267786.42,"d":"$1,267,786.42"},{"v":1267786.42,"d":"$1,267,786.42"},{"v":832784.47,"d":"$832,784.47"},{"v":832784.47,"d":"$832,784.47"},{"v":867677.68,"d":"$867,677.68"},{"v":867677.68,"d":"$867,677.68"},{"v":1041368.3,"d":"$1,041,368.30"},{"v":1825302.29,"d":"$1,825,302.29"},{"v":739381.23,"d":"$739,381.23"},{"v":283016.1,"d":"$283,016.10"},{"v":12258784.499999998,"d":"$12,258,784.50"},{"v":57029092.49,"d":"$57,029,092.49"},{"v":5418837.159999999,"d":"$5,418,837.16"},{"v":1034861.15,"d":"$1,034,861.15"},{"v":1541443.23,"d":"$1,541,443.23"},{"v":57029092.3752,"d":"$57,029,092.38"}]
["07016113A02","LEMONT-BROMBEREK CSD 113A",2493.75,{"v":33419009.02,"d":"$33,419,009.02"},{"v":32980562.95,"d":"$32,980,562.95"},{"v":0.9868803389790042,"d":"99%"},3,{"v":37977.72,"d":"$37,977.72"},{"v":1687799.4100000001,"d":"$1,687,799.41"},{"v":1725777.1300000001,"d":"$1,725,777.13"},{"v":1.05749,"d":"1.06"},{"v":8416168.77,"d":"$8,416,168.77"},{"v":1683233.74,"d":"$1,683,233.74"},{"v":918824.69,"d":"$918,824.69"},{"v":407792.98,"d":"$407,792.98"},{"v":286423.04,"d":"$286,423.04"},{"v":555527.47,"d":"$555,527.47"},{"v":214735.14,"d":"$214,735.14"},{"v":347703.91,"d":"$347,703.91"},{"v":470851.1,"d":"$470,851.10"},{"v":260699.41,"d":"$260,699.41"},{"v":698522.31,"d":"$698,522.31"},{"v":601429.3,"d":"$601,429.30"},{"v":417228.31,"d":"$417,228.31"},{"v":15279140.170000002,"d":"$15,279,140.17"},{"v":221445,"d":"$221,445.00"},{"v":311718.75,"d":"$311,718.75"},{"v":810468.75,"d":"$810,468.75"},{"v":84787.5,"d":"$84,787.50"},{"v":711965.62,"d":"$711,965.62"},{"v":409304.5,"d":"$409,304.50"},{"v":3393993.75,"d":"$3,393,993.75"},{"v":2336643.75,"d":"$2,336,643.75"},{"v":6016841.916,"d":"$6,016,841.92"},{"v":14297169.536,"d":"$14,297,169.54"},{"v":2373750.75,"d":"$2,373,750.75"},{"v":11923418.786,"d":"$11,923,418.79"},{"v":14433636.466,"d":"$14,433,636.47"},{"v":222541.1,"d":"$222,541.10"},{"v":222541.1,"d":"$222,541.10"},{"v":231845.95,"d":"$231,845.95"},{"v":231845.95,"d":"$231,845.95"},{"v":123289.32,"d":"$123,289.32"},{"v":123289.32,"d":"$123,289.32"},{"v":128717.15,"d":"$128,717.15"},{"v":128717.15,"d":"$128,717.15"},{"v":154305.5,"d":"$154,305.50"},{"v":1370915.23,"d":"$1,370,915.23"},{"v":555321.16,"d":"$555,321.16"},{"v":212903.35,"d":"$212,903.35"},{"v":3706232.2800000003,"d":"$3,706,232.28"},{"v":33419009.02,"d":"$33,419,009.02"},{"v":193390.79,"d":"$193,390.79"},{"v":39313.16,"d":"$39,313.16"},{"v":600270.8099999999,"d":"$600,270.81"},{"v":33419008.916,"d":"$33,419,008.92"}]
["07016117002","NORTH PALOS SCHOOL DIST 117",3151.89,{"v":55765852.3,"d":"$55,765,852.30"},{"v":37437500.6,"d":"$37,437,500.60"},{"v":0.671333783237094,"d":"67%"},1,{"v":2424235.55,"d":"$2,424,235.55"},{"v":17288615.59,"d":"$17,288,615.59"},{"v":19712851.14,"d":"$19,712,851.14"},{"v":1.05749,"d":"1.06"},{"v":12141612.09,"d":"$12,141,612.09"},{"v":2428322.41,"d":"$2,428,322.41"},{"v":1161435.71,"d":"$1,161,435.71"},{"v":516193.65,"d":"$516,193.65"},{"v":511773.76,"d":"$511,773.76"},{"v":718450.41,"d":"$718,450.41"},{"v":271652.89,"d":"$271,652.89"},{"v":439733.95,"d":"$439,733.95"},{"v":596014.05,"d":"$596,014.05"},{"v":329800.46,"d":"$329,800.46"},{"v":884205.45,"d":"$884,205.45"},{"v":761302.91,"d":"$761,302.91"},{"v":527660.01,"d":"$527,660.01"},{"v":21288157.750000004,"d":"$21,288,157.75"},{"v":280745.10000000003,"d":"$280,745.10"},{"v":393986.25,"d":"$393,986.25"},{"v":1024364.25,"d":"$1,024,364.25"},{"v":107164.26000000001,"d":"$107,164.26"},{"v":1799729.19,"d":"$1,799,729.19"},{"v":532233.5900000001,"d":"$532,233.59"},{"v":4289722.29,"d":"$4,289,722.29"},{"v":2953320.93,"d":"$2,953,320.93"},{"v":10358757.79596,"d":"$10,358,757.80"},{"v":21740023.65596,"d":"$21,740,023.66"},{"v":3000221.05,"d":"$3,000,221.05"},{"v":18739802.605960004,"d":"$18,739,802.61"},{"v":21912506.355960004,"d":"$21,912,506.36"},{"v":1307332.05,"d":"$1,307,332.05"},{"v":1307332.05,"d":"$1,307,332.05"},{"v":1361610.37,"d":"$1,361,610.37"},{"v":1361610.37,"d":"$1,361,610.37"},{"v":848292.56,"d":"$848,292.56"},{"v":848292.56,"d":"$848,292.56"},{"v":883185.77,"d":"$883,185.77"},{"v":883185.77,"d":"$883,185.77"},{"v":1059978,"d":"$1,059,978.00"},{"v":1733029.15,"d":"$1,733,029.15"},{"v":702003.84,"d":"$702,003.84"},{"v":269335.56,"d":"$269,335.56"},{"v":12565188.05,"d":"$12,565,188.05"},{"v":55765852.3,"d":"$55,765,852.30"},{"v":5169319.600000001,"d":"$5,169,319.60"},{"v":1559835.4700000002,"d":"$1,559,835.47"},{"v":1792298.5499999998,"d":"$1,792,298.55"},{"v":55765852.15596001,"d":"$55,765,852.16"}]
["07016118004","PALOS COMM CONS SCHOOL DIST 118",2047,{"v":29714719.18,"d":"$29,714,719.18"},{"v":27569060,"d":"$27,569,060.00"},{"v":0.9277913694219203,"d":"93%"},3,{"v":33768.12,"d":"$33,768.12"},{"v":1790237.3799999997,"d":"$1,790,237.38"},{"v":1824005.4999999998,"d":"$1,824,005.50"},{"v":1.05749,"d":"1.06"},{"v":7121997.54,"d":"$7,121,997.54"},{"v":1424399.5,"d":"$1,424,399.50"},{"v":754380.15,"d":"$754,380.15"},{"v":334788.45,"d":"$334,788.45"},{"v":261930.61,"d":"$261,930.61"},{"v":460157.95,"d":"$460,157.95"},{"v":175927.58,"d":"$175,927.58"},{"v":285512.97,"d":"$285,512.97"},{"v":386557.68,"d":"$386,557.68"},{"v":213899.15,"d":"$213,899.15"},{"v":573470.39,"d":"$573,470.39"},{"v":493759.31,"d":"$493,759.31"},{"v":342602.1,"d":"$342,602.10"},{"v":12829383.379999999,"d":"$12,829,383.38"},{"v":182497.5,"d":"$182,497.50"},{"v":255875,"d":"$255,875.00"},{"v":665275,"d":"$665,275.00"},{"v":69598,"d":"$69,598.00"},{"v":584418.5,"d":"$584,418.50"},{"v":341136.75,"d":"$341,136.75"},{"v":2785967,"d":"$2,785,967.00"},{"v":1918039,"d":"$1,918,039.00"},{"v":5436168.261,"d":"$5,436,168.26"},{"v":12238975.011,"d":"$12,238,975.01"},{"v":1948498.36,"d":"$1,948,498.36"},{"v":10290476.651,"d":"$10,290,476.65"},{"v":12350994.181,"d":"$12,350,994.18"},{"v":344279.61,"d":"$344,279.61"},{"v":344279.61,"d":"$344,279.61"},{"v":358236.89,"d":"$358,236.89"},{"v":358236.89,"d":"$358,236.89"},{"v":257434.3,"d":"$257,434.30"},{"v":257434.3,"d":"$257,434.30"},{"v":268289.97,"d":"$268,289.97"},{"v":268289.97,"d":"$268,289.97"},{"v":322568.28,"d":"$322,568.28"},{"v":1125111.99,"d":"$1,125,111.99"},{"v":455752.83,"d":"$455,752.83"},{"v":174426.84,"d":"$174,426.84"},{"v":4534341.48,"d":"$4,534,341.48"},{"v":29714719.18,"d":"$29,714,719.18"},{"v":325295.38,"d":"$325,295.38"},{"v":32394.1,"d":"$32,394.10"},{"v":710346.56,"d":"$710,346.56"},{"v":29714719.040999997,"d":"$29,714,719.04"}]
["07016122002","RIDGELAND SCHOOL DISTRICT 122",2223.39,{"v":38769248.19,"d":"$38,769,248.19"},{"v":26123829.8,"d":"$26,123,829.80"},{"v":0.6738286404722774,"d":"67%"},1,{"v":1596159.69,"d":"$1,596,159.69"},{"v":10959277.66,"d":"$10,959,277.66"},{"v":12555437.35,"d":"$12,555,437.35"},{"v":1.05749,"d":"1.06"},{"v":8543004.92,"d":"$8,543,004.92"},{"v":1708600.98,"d":"$1,708,600.98"},{"v":819273.06,"d":"$819,273.06"},{"v":363547.81,"d":"$363,547.81"},{"v":354628.54,"d":"$354,628.54"},{"v":499895.25,"d":"$499,895.25"},{"v":190803.81,"d":"$190,803.81"},{"v":310326.53,"d":"$310,326.53"},{"v":419764.18,"d":"$419,764.18"},{"v":232430.8,"d":"$232,430.80"},{"v":622733.27,"d":"$622,733.27"},{"v":536174.76,"d":"$536,174.76"},{"v":372377.21,"d":"$372,377.21"},{"v":14973561.120000001,"d":"$14,973,561.12"},{"v":197368.2,"d":"$197,368.20"},{"v":277923.75,"d":"$277,923.75"},{"v":722601.75,"d":"$722,601.75"},{"v":75595.26000000001,"d":"$75,595.26"},{"v":1269555.69,"d":"$1,269,555.69"},{"v":368713.42000000004,"d":"$368,713.42"},{"v":3026033.79,"d":"$3,026,033.79"},{"v":2083316.4300000002,"d":"$2,083,316.43"},{"v":7184563.827959999,"d":"$7,184,563.83"},{"v":15205672.117959999,"d":"$15,205,672.12"},{"v":2116400.47,"d":"$2,116,400.47"},{"v":13089271.647959996,"d":"$13,089,271.65"},{"v":15327343.977959996,"d":"$15,327,343.98"},{"v":894041.43,"d":"$894,041.43"},{"v":894041.43,"d":"$894,041.43"},{"v":931260.85,"d":"$931,260.85"},{"v":931260.85,"d":"$931,260.85"},{"v":545884.79,"d":"$545,884.79"},{"v":545884.79,"d":"$545,884.79"},{"v":568371.52,"d":"$568,371.52"},{"v":568371.52,"d":"$568,371.52"},{"v":682355.99,"d":"$682,355.99"},{"v":1222037.55,"d":"$1,222,037.55"},{"v":495014.79,"d":"$495,014.79"},{"v":189817.44,"d":"$189,817.44"},{"v":8468342.95,"d":"$8,468,342.95"},{"v":38769248.19,"d":"$38,769,248.19"},{"v":4572813.89,"d":"$4,572,813.89"},{"v":906047.26,"d":"$906,047.26"},{"v":1231410.62,"d":"$1,231,410.62"},{"v":38769248.04796,"d":"$38,769,248.05"}]
["07016123002","OAK LAWN-HOMETOWN SCH DIST 123",3197.75,{"v":49263482.22,"d":"$49,263,482.22"},{"v":33459541.61,"d":"$33,459,541.61"},{"v":0.6791956252823738,"d":"68%"},1,{"v":1930854.74,"d":"$1,930,854.74"},{"v":9727299.440000001,"d":"$9,727,299.44"},{"v":11658154.180000002,"d":"$11,658,154.18"},{"v":1.05749,"d":"1.06"},{"v":11463186.15,"d":"$11,463,186.15"},{"v":2292637.23,"d":"$2,292,637.23"},{"v":1178396.36,"d":"$1,178,396.36"},{"v":523567.84,"d":"$523,567.84"},{"v":432393.58,"d":"$432,393.58"},{"v":723218.89,"d":"$723,218.89"},{"v":275533.65,"d":"$275,533.65"},{"v":446015.86,"d":"$446,015.86"},{"v":604528.54,"d":"$604,528.54"},{"v":334511.89,"d":"$334,511.89"},{"v":896836.96,"d":"$896,836.96"},{"v":772178.66,"d":"$772,178.66"},{"v":535198.01,"d":"$535,198.01"},{"v":20478203.62,"d":"$20,478,203.62"},{"v":284670,"d":"$284,670.00"},{"v":399718.75,"d":"$399,718.75"},{"v":1039268.75,"d":"$1,039,268.75"},{"v":108723.5,"d":"$108,723.50"},{"v":1825915.25,"d":"$1,825,915.25"},{"v":535123,"d":"$535,123.00"},{"v":4352137.75,"d":"$4,352,137.75"},{"v":2996291.75,"d":"$2,996,291.75"},{"v":8913461.055,"d":"$8,913,461.06"},{"v":20455309.805,"d":"$20,455,309.81"},{"v":3043874.27,"d":"$3,043,874.27"},{"v":17411435.535,"d":"$17,411,435.54"},{"v":20630302.135,"d":"$20,630,302.14"},{"v":745939.16,"d":"$745,939.16"},{"v":745939.16,"d":"$745,939.16"},{"v":776955.35,"d":"$776,955.35"},{"v":776955.35,"d":"$776,955.35"},{"v":443531.39,"d":"$443,531.39"},{"v":443531.39,"d":"$443,531.39"},{"v":462141.1,"d":"$462,141.10"},{"v":462141.1,"d":"$462,141.10"},{"v":555189.65,"d":"$555,189.65"},{"v":1757842.09,"d":"$1,757,842.09"},{"v":712054.9,"d":"$712,054.90"},{"v":272755.69,"d":"$272,755.69"},{"v":8154976.330000001,"d":"$8,154,976.33"},{"v":49263482.22,"d":"$49,263,482.22"},{"v":1928947.8199999996,"d":"$1,928,947.82"},{"v":467821.99,"d":"$467,821.99"},{"v":1497294.7000000004,"d":"$1,497,294.70"},{"v":49263482.085,"d":"$49,263,482.09"}]
["07016124002","EVERGREEN PK ELEM SCH DIST 124",1771.88,{"v":26237908.04,"d":"$26,237,908.04"},{"v":19997602.87,"d":"$19,997,602.87"},{"v":0.7621645307817003,"d":"76%"},1,{"v":279420.96,"d":"$279,420.96"},{"v":4633131.600000001,"d":"$4,633,131.60"},{"v":4912552.5600000005,"d":"$4,912,552.56"},{"v":1.05749,"d":"1.06"},{"v":6278389.63,"d":"$6,278,389.63"},{"v":1255677.92,"d":"$1,255,677.92"},{"v":652616.25,"d":"$652,616.25"},{"v":289805.86,"d":"$289,805.86"},{"v":226972.62,"d":"$226,972.62"},{"v":402141.49,"d":"$402,141.49"},{"v":151996.26,"d":"$151,996.26"},{"v":246879.2,"d":"$246,879.20"},{"v":334619.31,"d":"$334,619.31"},{"v":185002.35,"d":"$185,002.35"},{"v":496418.2,"d":"$496,418.20"},{"v":427417.2,"d":"$427,417.20"},{"v":296243.4,"d":"$296,243.40"},{"v":11244179.689999998,"d":"$11,244,179.69"},{"v":156987,"d":"$156,987.00"},{"v":221485,"d":"$221,485.00"},{"v":575861,"d":"$575,861.00"},{"v":60243.92,"d":"$60,243.92"},{"v":1011743.48,"d":"$1,011,743.48"},{"v":296859.33999999997,"d":"$296,859.34"},{"v":2411528.6799999997,"d":"$2,411,528.68"},{"v":1660251.56,"d":"$1,660,251.56"},{"v":4707789.946319999,"d":"$4,707,789.95"},{"v":11102749.92632,"d":"$11,102,749.93"},{"v":1686617.13,"d":"$1,686,617.13"},{"v":9416132.796319999,"d":"$9,416,132.80"},{"v":11199713.536319999,"d":"$11,199,713.54"},{"v":395456.31,"d":"$395,456.31"},{"v":395456.31,"d":"$395,456.31"},{"v":412515.21,"d":"$412,515.21"},{"v":412515.21,"d":"$412,515.21"},{"v":123289.32,"d":"$123,289.32"},{"v":123289.32,"d":"$123,289.32"},{"v":128717.15,"d":"$128,717.15"},{"v":128717.15,"d":"$128,717.15"},{"v":154305.5,"d":"$154,305.50"},{"v":973908.1,"d":"$973,908.10"},{"v":394504.17,"d":"$394,504.17"},{"v":151340.93,"d":"$151,340.93"},{"v":3794014.68,"d":"$3,794,014.68"},{"v":26237908.04,"d":"$26,237,908.04"},{"v":658368.6,"d":"$658,368.60"},{"v":57857.51,"d":"$57,857.51"},{"v":919412.7599999999,"d":"$919,412.76"},{"v":26237907.90632,"d":"$26,237,907.91"}]
["07016125002","ATWOOD HEIGHTS DISTRICT 125",553.05,{"v":8557584.84,"d":"$8,557,584.84"},{"v":6723465.42,"d":"$6,723,465.42"},{"v":0.7856732414235696,"d":"79%"},2,{"v":57819.23,"d":"$57,819.23"},{"v":3012679.8399999994,"d":"$3,012,679.84"},{"v":3070499.0699999994,"d":"$3,070,499.07"},{"v":1.05749,"d":"1.06"},{"v":2045601.69,"d":"$2,045,601.69"},{"v":409120.33,"d":"$409,120.33"},{"v":202790.36,"d":"$202,790.36"},{"v":89965.17,"d":"$89,965.17"},{"v":75401.12,"d":"$75,401.12"},{"v":123980.38,"d":"$123,980.38"},{"v":46569.06,"d":"$46,569.06"},{"v":76953.44,"d":"$76,953.44"},{"v":103876.73,"d":"$103,876.73"},{"v":57479.5,"d":"$57,479.50"},{"v":154104.37,"d":"$154,104.37"},{"v":132684.22,"d":"$132,684.22"},{"v":92340.5,"d":"$92,340.50"},{"v":3610866.87,"d":"$3,610,866.87"},{"v":48912.3,"d":"$48,912.30"},{"v":69131.25,"d":"$69,131.25"},{"v":179741.25,"d":"$179,741.25"},{"v":18803.7,"d":"$18,803.70"},{"v":315791.55,"d":"$315,791.55"},{"v":91988.51,"d":"$91,988.51"},{"v":752701.05,"d":"$752,701.05"},{"v":518207.85000000003,"d":"$518,207.85"},{"v":1549921.5821999996,"d":"$1,549,921.58"},{"v":3545199.0422,"d":"$3,545,199.04"},{"v":526437.23,"d":"$526,437.23"},{"v":3018761.812199999,"d":"$3,018,761.81"},{"v":3575463.912199999,"d":"$3,575,463.91"},{"v":175241.42,"d":"$175,241.42"},{"v":175241.42,"d":"$175,241.42"},{"v":182995.47,"d":"$182,995.47"},{"v":182995.47,"d":"$182,995.47"},{"v":34117.79,"d":"$34,117.79"},{"v":34117.79,"d":"$34,117.79"},{"v":34893.2,"d":"$34,893.20"},{"v":34893.2,"d":"$34,893.20"},{"v":42647.24,"d":"$42,647.24"},{"v":303958.58,"d":"$303,958.58"},{"v":123125.5,"d":"$123,125.50"},{"v":47026.84,"d":"$47,026.84"},{"v":1371253.9200000002,"d":"$1,371,253.92"},{"v":8557584.84,"d":"$8,557,584.84"},{"v":550174.15,"d":"$550,174.15"},{"v":15058.840000000002,"d":"$15,058.84"},{"v":277130.65,"d":"$277,130.65"},{"v":8557584.7022,"d":"$8,557,584.70"}]
["07016126002","ALSIP-HAZLGRN-OAKLWN S DIST 126",1492.54,{"v":23311574.09,"d":"$23,311,574.09"},{"v":26653415.7,"d":"$26,653,415.70"},{"v":1.143355467850348,"d":"114%"},4,{"v":1484.91,"d":"$1,484.91"},{"v":2497470.01,"d":"$2,497,470.01"},{"v":2498954.92,"d":"$2,498,954.92"},{"v":1.05749,"d":"1.06"},{"v":5476077.21,"d":"$5,476,077.21"},{"v":1095215.43,"d":"$1,095,215.43"},{"v":550114.94,"d":"$550,114.94"},{"v":244085.85,"d":"$244,085.85"},{"v":210794.15,"d":"$210,794.15"},{"v":336177.57,"d":"$336,177.57"},{"v":128064.93,"d":"$128,064.93"},{"v":208245.43,"d":"$208,245.43"},{"v":281829.5,"d":"$281,829.50"},{"v":156105.55,"d":"$156,105.55"},{"v":418102.86,"d":"$418,102.86"},{"v":359987.52,"d":"$359,987.52"},{"v":249884.7,"d":"$249,884.70"},{"v":9714685.639999999,"d":"$9,714,685.64"},{"v":132716.7,"d":"$132,716.70"},{"v":186567.5,"d":"$186,567.50"},{"v":485075.5,"d":"$485,075.50"},{"v":50746.36,"d":"$50,746.36"},{"v":426120.17,"d":"$426,120.17"},{"v":249096.43000000002,"d":"$249,096.43"},{"v":2031346.94,"d":"$2,031,346.94"},{"v":1398509.98,"d":"$1,398,509.98"},{"v":4322975.34456,"d":"$4,322,975.34"},{"v":9283154.92456,"d":"$9,283,154.92"},{"v":1420718.97,"d":"$1,420,718.97"},{"v":7862435.954559998,"d":"$7,862,435.95"},{"v":9364832.054559998,"d":"$9,364,832.05"},{"v":434226.54,"d":"$434,226.54"},{"v":434226.54,"d":"$434,226.54"},{"v":452060.84,"d":"$452,060.84"},{"v":452060.84,"d":"$452,060.84"},{"v":220990.29,"d":"$220,990.29"},{"v":220990.29,"d":"$220,990.29"},{"v":230295.14,"d":"$230,295.14"},{"v":230295.14,"d":"$230,295.14"},{"v":276819.42,"d":"$276,819.42"},{"v":820378,"d":"$820,378.00"},{"v":332313.22,"d":"$332,313.22"},{"v":127399.99,"d":"$127,399.99"},{"v":4232056.25,"d":"$4,232,056.25"},{"v":23311574.09,"d":"$23,311,574.09"},{"v":1067414.08,"d":"$1,067,414.08"},{"v":55161.180000000015,"d":"$55,161.18"},{"v":556695.6000000001,"d":"$556,695.60"},{"v":23311573.94456,"d":"$23,311,573.94"}]
["07016127002","WORTH SCHOOL DISTRICT 127",995.46,{"v":16730936.5,"d":"$16,730,936.50"},{"v":12415657.620000001,"d":"$12,415,657.62"},{"v":0.7420778639617693,"d":"74%"},1,{"v":333042.49,"d":"$333,042.49"},{"v":8006884.539999999,"d":"$8,006,884.54"},{"v":8339927.029999999,"d":"$8,339,927.03"},{"v":1.05749,"d":"1.06"},{"v":3810246.56,"d":"$3,810,246.56"},{"v":762049.31,"d":"$762,049.31"},{"v":366497.49,"d":"$366,497.49"},{"v":162232.29,"d":"$162,232.29"},{"v":151283.39,"d":"$151,283.39"},{"v":227297.36,"d":"$227,297.36"},{"v":85376.62,"d":"$85,376.62"},{"v":138516.19,"d":"$138,516.19"},{"v":187318.7,"d":"$187,318.70"},{"v":103965.67,"d":"$103,965.67"},{"v":277893.14,"d":"$277,893.14"},{"v":239266.62,"d":"$239,266.62"},{"v":166212.9,"d":"$166,212.90"},{"v":6678156.240000001,"d":"$6,678,156.24"},{"v":88054.20000000001,"d":"$88,054.20"},{"v":124432.5,"d":"$124,432.50"},{"v":323524.49999999994,"d":"$323,524.50"},{"v":33845.64,"d":"$33,845.64"},{"v":568407.66,"d":"$568,407.66"},{"v":168258.09999999998,"d":"$168,258.10"},{"v":1354821.0599999998,"d":"$1,354,821.06"},{"v":932746.02,"d":"$932,746.02"},{"v":3079165.6424399996,"d":"$3,079,165.64"},{"v":6673255.32244,"d":"$6,673,255.32"},{"v":947558.46,"d":"$947,558.46"},{"v":5725696.862439999,"d":"$5,725,696.86"},{"v":6727730.452439999,"d":"$6,727,730.45"},{"v":421044.66,"d":"$421,044.66"},{"v":421044.66,"d":"$421,044.66"},{"v":438878.97,"d":"$438,878.97"},{"v":438878.97,"d":"$438,878.97"},{"v":141123.62,"d":"$141,123.62"},{"v":141123.62,"d":"$141,123.62"},{"v":146551.45,"d":"$146,551.45"},{"v":146551.45,"d":"$146,551.45"},{"v":176016.83,"d":"$176,016.83"},{"v":547435.6,"d":"$547,435.60"},{"v":221751.54,"d":"$221,751.54"},{"v":84648.32,"d":"$84,648.32"},{"v":3325049.6900000004,"d":"$3,325,049.69"},{"v":16730936.5,"d":"$16,730,936.50"},{"v":1778770.29,"d":"$1,778,770.29"},{"v":134852.21,"d":"$134,852.21"},{"v":503086.1400000001,"d":"$503,086.14"},{"v":16730936.38244,"d":"$16,730,936.38"}]
["07016127502","CHICAGO RIDGE SCHOOL DIST 127-5",1323.21,{"v":23570134.91,"d":"$23,570,134.91"},{"v":15602466.799999999,"d":"$15,602,466.80"},{"v":0.661959163983419,"d":"66%"},1,{"v":1159907.65,"d":"$1,159,907.65"},{"v":12270591.260000002,"d":"$12,270,591.26"},{"v":13430498.910000002,"d":"$13,430,498.91"},{"v":1.05749,"d":"1.06"},{"v":5190695.87,"d":"$5,190,695.87"},{"v":1038139.17,"d":"$1,038,139.17"},{"v":486696.87,"d":"$486,696.87"},{"v":216063.91,"d":"$216,063.91"},{"v":217367.94,"d":"$217,367.94"},{"v":291671.79,"d":"$291,671.79"},{"v":113188.7,"d":"$113,188.70"},{"v":184374.16,"d":"$184,374.16"},{"v":249474.45,"d":"$249,474.45"},{"v":138202.09,"d":"$138,202.09"},{"v":370103.14,"d":"$370,103.14"},{"v":318659.64,"d":"$318,659.64"},{"v":221240.3,"d":"$221,240.30"},{"v":9035878.030000003,"d":"$9,035,878.03"},{"v":117236.70000000001,"d":"$117,236.70"},{"v":165401.25,"d":"$165,401.25"},{"v":430043.25,"d":"$430,043.25"},{"v":44989.14,"d":"$44,989.14"},{"v":755552.91,"d":"$755,552.91"},{"v":214411.51,"d":"$214,411.51"},{"v":1800888.81,"d":"$1,800,888.81"},{"v":1239847.77,"d":"$1,239,847.77"},{"v":4385431.81044,"d":"$4,385,431.81"},{"v":9153803.15044,"d":"$9,153,803.15"},{"v":1259537.13,"d":"$1,259,537.13"},{"v":7894266.02044,"d":"$7,894,266.02"},{"v":9226213.93044,"d":"$9,226,213.93"},{"v":574574.76,"d":"$574,574.76"},{"v":574574.76,"d":"$574,574.76"},{"v":598612.3,"d":"$598,612.30"},{"v":598612.3,"d":"$598,612.30"},{"v":342728.8,"d":"$342,728.80"},{"v":342728.8,"d":"$342,728.80"},{"v":356686.08,"d":"$356,686.08"},{"v":356686.08,"d":"$356,686.08"},{"v":428023.3,"d":"$428,023.30"},{"v":727329.46,"d":"$727,329.46"},{"v":294621.74,"d":"$294,621.74"},{"v":112864.42,"d":"$112,864.42"},{"v":5308042.8,"d":"$5,308,042.80"},{"v":23570134.91,"d":"$23,570,134.91"},{"v":3376750.45,"d":"$3,376,750.45"},{"v":682702.3200000001,"d":"$682,702.32"},{"v":841282.2999999999,"d":"$841,282.30"},{"v":23570134.760440003,"d":"$23,570,134.76"}]
["07016128002","PALOS HEIGHTS SCHOOL DIST 128",703.25,{"v":9637718.67,"d":"$9,637,718.67"},{"v":9721466.14,"d":"$9,721,466.14"},{"v":1.0086895532923872,"d":"101%"},4,{"v":613.9,"d":"$613.90"},{"v":616866.58,"d":"$616,866.58"},{"v":617480.48,"d":"$617,480.48"},{"v":1.05749,"d":"1.06"},{"v":2410624.35,"d":"$2,410,624.35"},{"v":482124.86,"d":"$482,124.86"},{"v":258834.24,"d":"$258,834.24"},{"v":114300.02,"d":"$114,300.02"},{"v":83408.76,"d":"$83,408.76"},{"v":154180.73,"d":"$154,180.73"},{"v":60151.71,"d":"$60,151.71"},{"v":97683.75,"d":"$97,683.75"},{"v":131974.54,"d":"$131,974.54"},{"v":73498.38,"d":"$73,498.38"},{"v":195788.35,"d":"$195,788.35"},{"v":168574.21,"d":"$168,574.21"},{"v":117215.9,"d":"$117,215.90"},{"v":4348359.800000001,"d":"$4,348,359.80"},{"v":62145,"d":"$62,145.00"},{"v":87906.25,"d":"$87,906.25"},{"v":228556.25,"d":"$228,556.25"},{"v":23910.5,"d":"$23,910.50"},{"v":200777.87,"d":"$200,777.87"},{"v":113840.5,"d":"$113,840.50"},{"v":957123.25,"d":"$957,123.25"},{"v":658945.25,"d":"$658,945.25"},{"v":1743772.989,"d":"$1,743,772.99"},{"v":4076977.859,"d":"$4,076,977.86"},{"v":669409.61,"d":"$669,409.61"},{"v":3407568.2490000003,"d":"$3,407,568.25"},{"v":4115462.2090000003,"d":"$4,115,462.21"},{"v":93823.94,"d":"$93,823.94"},{"v":93823.94,"d":"$93,823.94"},{"v":97700.97,"d":"$97,700.97"},{"v":97700.97,"d":"$97,700.97"},{"v":35668.6,"d":"$35,668.60"},{"v":35668.6,"d":"$35,668.60"},{"v":36444.01,"d":"$36,444.01"},{"v":36444.01,"d":"$36,444.01"},{"v":44198.05,"d":"$44,198.05"},{"v":386151.46,"d":"$386,151.46"},{"v":156419.64,"d":"$156,419.64"},{"v":59852.34,"d":"$59,852.34"},{"v":1173896.53,"d":"$1,173,896.53"},{"v":9637718.67,"d":"$9,637,718.67"},{"v":70433.36,"d":"$70,433.36"},{"v":8156.6399999999985,"d":"$8,156.64"},{"v":285219.13,"d":"$285,219.13"},{"v":9637718.539,"d":"$9,637,718.54"}]
["07016130002","COOK COUNTY SCHOOL DIST 130",2975.78,{"v":49755610.83,"d":"$49,755,610.83"},{"v":41115234.86,"d":"$41,115,234.86"},{"v":0.8263436861518679,"d":"83%"},2,{"v":247049.74,"d":"$247,049.74"},{"v":21367362.06,"d":"$21,367,362.06"},{"v":21614411.799999997,"d":"$21,614,411.80"},{"v":1.05749,"d":"1.06"},{"v":11302428.7,"d":"$11,302,428.70"},{"v":2260485.73,"d":"$2,260,485.73"},{"v":1096542.79,"d":"$1,096,542.79"},{"v":487434.29,"d":"$487,434.29"},{"v":449079.06,"d":"$449,079.06"},{"v":677918.36,"d":"$677,918.36"},{"v":256129.87,"d":"$256,129.87"},{"v":415234.48,"d":"$415,234.48"},{"v":562807.55,"d":"$562,807.55"},{"v":311268.81,"d":"$311,268.81"},{"v":834942.58,"d":"$834,942.58"},{"v":718887.46,"d":"$718,887.46"},{"v":498261.81,"d":"$498,261.81"},{"v":19871421.489999995,"d":"$19,871,421.49"},{"v":264835.80000000005,"d":"$264,835.80"},{"v":371972.5,"d":"$371,972.50"},{"v":967128.5000000001,"d":"$967,128.50"},{"v":101176.52000000002,"d":"$101,176.52"},{"v":1699170.3800000001,"d":"$1,699,170.38"},{"v":502366.26,"d":"$502,366.26"},{"v":4050036.58,"d":"$4,050,036.58"},{"v":2788305.8600000003,"d":"$2,788,305.86"},{"v":9147940.27992,"d":"$9,147,940.28"},{"v":19892932.679920003,"d":"$19,892,932.68"},{"v":2832585.46,"d":"$2,832,585.46"},{"v":17060347.21992,"d":"$17,060,347.22"},{"v":20055778.009919997,"d":"$20,055,778.01"},{"v":1147598.72,"d":"$1,147,598.72"},{"v":1147598.72,"d":"$1,147,598.72"},{"v":1195673.8,"d":"$1,195,673.80"},{"v":1195673.8,"d":"$1,195,673.80"},{"v":485403.24,"d":"$485,403.24"},{"v":485403.24,"d":"$485,403.24"},{"v":505563.76,"d":"$505,563.76"},{"v":505563.76,"d":"$505,563.76"},{"v":607141.75,"d":"$607,141.75"},{"v":1636103.58,"d":"$1,636,103.58"},{"v":662741.88,"d":"$662,741.88"},{"v":253944.96,"d":"$253,944.96"},{"v":9828411.210000003,"d":"$9,828,411.21"},{"v":49755610.83,"d":"$49,755,610.83"},{"v":7303896.399999999,"d":"$7,303,896.40"},{"v":801007.5300000001,"d":"$801,007.53"},{"v":1567488.66,"d":"$1,567,488.66"},{"v":49755610.70992,"d":"$49,755,610.71"}]
["07016132002","CALUMET PUBLIC SCHOOLS DIST 132",918.56,{"v":15575083.14,"d":"$15,575,083.14"},{"v":12822491.74,"d":"$12,822,491.74"},{"v":0.8232695533463457,"d":"82%"},2,{"v":93283.49,"d":"$93,283.49"},{"v":10515207.04,"d":"$10,515,207.04"},{"v":10608490.53,"d":"$10,608,490.53"},{"v":1.05749,"d":"1.06"},{"v":3650226.53,"d":"$3,650,226.53"},{"v":730045.3,"d":"$730,045.30"},{"v":338475.55,"d":"$338,475.55"},{"v":150433.57,"d":"$150,433.57"},{"v":141513.56,"d":"$141,513.56"},{"v":209812.95,"d":"$209,812.95"},{"v":78261.9,"d":"$78,261.90"},{"v":128151.03,"d":"$128,151.03"},{"v":173695.52,"d":"$173,695.52"},{"v":96113.27,"d":"$96,113.27"},{"v":257682.73,"d":"$257,682.73"},{"v":221865.42,"d":"$221,865.42"},{"v":153775.2,"d":"$153,775.20"},{"v":6330052.53,"d":"$6,330,052.53"},{"v":82183.5,"d":"$82,183.50"},{"v":114820,"d":"$114,820.00"},{"v":298532,"d":"$298,532.00"},{"v":31231.039999999997,"d":"$31,231.04"},{"v":524497.76,"d":"$524,497.76"},{"v":156571.59,"d":"$156,571.59"},{"v":1250160.16,"d":"$1,250,160.16"},{"v":860690.72,"d":"$860,690.72"},{"v":2870571.7988399994,"d":"$2,870,571.80"},{"v":6189258.568839999,"d":"$6,189,258.57"},{"v":874358.89,"d":"$874,358.89"},{"v":5314899.678839999,"d":"$5,314,899.68"},{"v":6239525.4588399995,"d":"$6,239,525.46"},{"v":456713.27,"d":"$456,713.27"},{"v":456713.27,"d":"$456,713.27"},{"v":475322.98,"d":"$475,322.98"},{"v":475322.98,"d":"$475,322.98"},{"v":66684.79,"d":"$66,684.79"},{"v":66684.79,"d":"$66,684.79"},{"v":69011,"d":"$69,011.00"},{"v":69011,"d":"$69,011.00"},{"v":82968.28,"d":"$82,968.28"},{"v":504788.35,"d":"$504,788.35"},{"v":204476.28,"d":"$204,476.28"},{"v":77808.05,"d":"$77,808.05"},{"v":3005505.0399999996,"d":"$3,005,505.04"},{"v":15575083.14,"d":"$15,575,083.14"},{"v":3405138.65,"d":"$3,405,138.65"},{"v":52273.2,"d":"$52,273.20"},{"v":448025.11000000004,"d":"$448,025.11"},{"v":15575083.028839998,"d":"$15,575,083.03"}]
["07016133002","GEN GEO PATTON SCHOOL DIST 133",198.88,{"v":3193375.89,"d":"$3,193,375.89"},{"v":5421709.97,"d":"$5,421,709.97"},{"v":1.6977988676428566,"d":"170%"},4,{"v":203.41,"d":"$203.41"},{"v":2861218.3699999996,"d":"$2,861,218.37"},{"v":2861421.78,"d":"$2,861,421.78"},{"v":1.05749,"d":"1.06"},{"v":802312.41,"d":"$802,312.41"},{"v":160462.47,"d":"$160,462.47"},{"v":72267.11,"d":"$72,267.11"},{"v":31709.03,"d":"$31,709.03"},{"v":29428.73,"d":"$29,428.73"},{"v":42916.28,"d":"$42,916.28"},{"v":16816.6,"d":"$16,816.60"},{"v":27326.32,"d":"$27,326.32"},{"v":36612.29,"d":"$36,612.29"},{"v":20416.21,"d":"$20,416.21"},{"v":54315.47,"d":"$54,315.47"},{"v":46765.75,"d":"$46,765.75"},{"v":32790.3,"d":"$32,790.30"},{"v":1374138.9700000002,"d":"$1,374,138.97"},{"v":17831.699999999997,"d":"$17,831.70"},{"v":24860,"d":"$24,860.00"},{"v":64636,"d":"$64,636.00"},{"v":6761.92,"d":"$6,761.92"},{"v":56780.23,"d":"$56,780.23"},{"v":32410.85,"d":"$32,410.85"},{"v":270675.68,"d":"$270,675.68"},{"v":186350.56,"d":"$186,350.56"},{"v":595131.4813199999,"d":"$595,131.48"},{"v":1255438.4213199997,"d":"$1,255,438.42"},{"v":189309.89,"d":"$189,309.89"},{"v":1066128.5313199996,"d":"$1,066,128.53"},{"v":1266321.8413199997,"d":"$1,266,321.84"},{"v":93823.94,"d":"$93,823.94"},{"v":93823.94,"d":"$93,823.94"},{"v":97700.97,"d":"$97,700.97"},{"v":97700.97,"d":"$97,700.97"},{"v":0,"d":"$0.00"},{"v":0,"d":"$0.00"},{"v":0,"d":"$0.00"},{"v":0,"d":"$0.00"},{"v":0,"d":"$0.00"},{"v":109332.04,"d":"$109,332.04"},{"v":44287.49,"d":"$44,287.49"},{"v":16245.63,"d":"$16,245.63"},{"v":552914.98,"d":"$552,914.98"},{"v":3193375.89,"d":"$3,193,375.89"},{"v":1026126.2399999999,"d":"$1,026,126.24"},{"v":0,"d":"$0.00"},{"v":122234.43000000001,"d":"$122,234.43"},{"v":3193375.79132,"d":"$3,193,375.79"}]
["07016135002","ORLAND SCHOOL DISTRICT 135",5162.25,{"v":74015722.24,"d":"$74,015,722.24"},{"v":76466696.52,"d":"$76,466,696.52"},{"v":1.0331142385134415,"d":"103%"},4,{"v":4714.68,"d":"$4,714.68"},{"v":4635203.929999999,"d":"$4,635,203.93"},{"v":4639918.6099999985,"d":"$4,639,918.61"},{"v":1.05749,"d":"1.06"},{"v":17945840.99,"d":"$17,945,840.99"},{"v":3589168.19,"d":"$3,589,168.19"},{"v":1902542.31,"d":"$1,902,542.31"},{"v":845082.74,"d":"$845,082.74"},{"v":649325.29,"d":"$649,325.29"},{"v":1173839.89,"d":"$1,173,839.89"},{"v":444346.52,"d":"$444,346.52"},{"v":720221.39,"d":"$720,221.39"},{"v":975760.15,"d":"$975,760.15"},{"v":540244.56,"d":"$540,244.56"},{"v":1447570.65,"d":"$1,447,570.65"},{"v":1246361.62,"d":"$1,246,361.62"},{"v":864231.72,"d":"$864,231.72"},{"v":32344536.019999992,"d":"$32,344,536.02"},{"v":458910,"d":"$458,910.00"},{"v":645281.25,"d":"$645,281.25"},{"v":1677731.25,"d":"$1,677,731.25"},{"v":175516.5,"d":"$175,516.50"},{"v":1473822.37,"d":"$1,473,822.37"},{"v":867705,"d":"$867,705.00"},{"v":7025822.25,"d":"$7,025,822.25"},{"v":4837028.25,"d":"$4,837,028.25"},{"v":13506933.225,"d":"$13,506,933.23"},{"v":30668750.095,"d":"$30,668,750.10"},{"v":4913842.53,"d":"$4,913,842.53"},{"v":25754907.565,"d":"$25,754,907.57"},{"v":30951246.895000003,"d":"$30,951,246.90"},{"v":895592.24,"d":"$895,592.24"},{"v":895592.24,"d":"$895,592.24"},{"v":932811.66,"d":"$932,811.66"},{"v":932811.66,"d":"$932,811.66"},{"v":493932.69,"d":"$493,932.69"},{"v":493932.69,"d":"$493,932.69"},{"v":514093.21,"d":"$514,093.21"},{"v":514093.21,"d":"$514,093.21"},{"v":617222.01,"d":"$617,222.01"},{"v":2838756.03,"d":"$2,838,756.03"},{"v":1149904.28,"d":"$1,149,904.28"},{"v":441197.3,"d":"$441,197.30"},{"v":10719939.22,"d":"$10,719,939.22"},{"v":74015722.24,"d":"$74,015,722.24"},{"v":837812.5499999999,"d":"$837,812.55"},{"v":152314.37,"d":"$152,314.37"},{"v":1915634.55,"d":"$1,915,634.55"},{"v":74015722.13499999,"d":"$74,015,722.14"}]
["07016140002","KIRBY SCHOOL DIST 140",3444.04,{"v":49477473.7,"d":"$49,477,473.70"},{"v":38983852.45,"d":"$38,983,852.45"},{"v":0.787911134799916,"d":"79%"},2,{"v":262349.52,"d":"$262,349.52"},{"v":5979051.73,"d":"$5,979,051.73"},{"v":6241401.25,"d":"$6,241,401.25"},{"v":1.05749,"d":"1.06"},{"v":11929972.69,"d":"$11,929,972.69"},{"v":2385994.53,"d":"$2,385,994.53"},{"v":1269098.96,"d":"$1,269,098.96"},{"v":564125.91,"d":"$564,125.91"},{"v":422813.41,"d":"$422,813.41"},{"v":779645.85,"d":"$779,645.85"},{"v":296877.8,"d":"$296,877.80"},{"v":480566.39,"d":"$480,566.39"},{"v":651358.21,"d":"$651,358.21"},{"v":360267.74,"d":"$360,267.74"},{"v":966310.25,"d":"$966,310.25"},{"v":831995.32,"d":"$831,995.32"},{"v":576657.01,"d":"$576,657.01"},{"v":21515684.070000004,"d":"$21,515,684.07"},{"v":304631.1,"d":"$304,631.10"},{"v":430505.00000000006,"d":"$430,505.00"},{"v":1119313,"d":"$1,119,313.00"},{"v":117097.36000000002,"d":"$117,097.36"},{"v":1966546.84,"d":"$1,966,546.84"},{"v":573860.43,"d":"$573,860.43"},{"v":4687338.44,"d":"$4,687,338.44"},{"v":3227065.48,"d":"$3,227,065.48"},{"v":8819206.498559998,"d":"$8,819,206.50"},{"v":21245564.148560002,"d":"$21,245,564.15"},{"v":3278312.79,"d":"$3,278,312.79"},{"v":17967251.35856,"d":"$17,967,251.36"},{"v":21434034.348559998,"d":"$21,434,034.35"},{"v":593184.47,"d":"$593,184.47"},{"v":593184.47,"d":"$593,184.47"},{"v":617997.42,"d":"$617,997.42"},{"v":617997.42,"d":"$617,997.42"},{"v":215562.46,"d":"$215,562.46"},{"v":215562.46,"d":"$215,562.46"},{"v":224867.31,"d":"$224,867.31"},{"v":224867.31,"d":"$224,867.31"},{"v":269840.78,"d":"$269,840.78"},{"v":1893537.89,"d":"$1,893,537.89"},{"v":767021.65,"d":"$767,021.65"},{"v":294131.53,"d":"$294,131.53"},{"v":6527755.17,"d":"$6,527,755.17"},{"v":49477473.7,"d":"$49,477,473.70"},{"v":673385.17,"d":"$673,385.17"},{"v":28248.670000000002,"d":"$28,248.67"},{"v":1543829.1,"d":"$1,543,829.10"},{"v":49477473.58856,"d":"$49,477,473.59"}]
["07016142002","FOREST RIDGE SCHOOL DIST 142",1482.12,{"v":21706503.65,"d":"$21,706,503.65"},{"v":14811186.02,"d":"$14,811,186.02"},{"v":0.6823386326429407,"d":"68%"},1,{"v":852217.39,"d":"$852,217.39"},{"v":7686241.490000001,"d":"$7,686,241.49"},{"v":8538458.88,"d":"$8,538,458.88"},{"v":1.05749,"d":"1.06"},{"v":5235678.46,"d":"$5,235,678.46"},{"v":1047135.69,"d":"$1,047,135.69"},{"v":545690.43,"d":"$545,690.43"},{"v":241873.59,"d":"$241,873.59"},{"v":187145.39,"d":"$187,145.39"},{"v":335382.82,"d":"$335,382.82"},{"v":127418.14,"d":"$127,418.14"},{"v":206360.86,"d":"$206,360.86"},{"v":279275.15,"d":"$279,275.15"},{"v":154849.17,"d":"$154,849.17"},{"v":414313.41,"d":"$414,313.41"},{"v":356724.79,"d":"$356,724.79"},{"v":247623.3,"d":"$247,623.30"},{"v":9379471.2,"d":"$9,379,471.20"},{"v":131801.4,"d":"$131,801.40"},{"v":185265,"d":"$185,265.00"},{"v":481689,"d":"$481,689.00"},{"v":50392.08,"d":"$50,392.08"},{"v":846290.52,"d":"$846,290.52"},{"v":248569.18,"d":"$248,569.18"},{"v":2017165.3199999998,"d":"$2,017,165.32"},{"v":1388746.44,"d":"$1,388,746.44"},{"v":3885164.4676800002,"d":"$3,885,164.47"},{"v":9235083.40768,"d":"$9,235,083.41"},{"v":1410800.38,"d":"$1,410,800.38"},{"v":7824283.027679999,"d":"$7,824,283.03"},{"v":9316190.31768,"d":"$9,316,190.32"},{"v":303183.17,"d":"$303,183.17"},{"v":303183.17,"d":"$303,183.17"},{"v":316365.05,"d":"$316,365.05"},{"v":316365.05,"d":"$316,365.05"},{"v":93823.94,"d":"$93,823.94"},{"v":93823.94,"d":"$93,823.94"},{"v":97700.97,"d":"$97,700.97"},{"v":97700.97,"d":"$97,700.97"},{"v":117086.08,"d":"$117,086.08"},{"v":814950.17,"d":"$814,950.17"},{"v":330114.55,"d":"$330,114.55"},{"v":126544.96,"d":"$126,544.96"},{"v":3010842.0199999996,"d":"$3,010,842.02"},{"v":21706503.65,"d":"$21,706,503.65"},{"v":817107.2300000001,"d":"$817,107.23"},{"v":161293.75000000003,"d":"$161,293.75"},{"v":817713.31,"d":"$817,713.31"},{"v":21706503.537679996,"d":"$21,706,503.54"}]
["07016143002","MIDLOTHIAN SCHOOL DIST 143",1581.89,{"v":25094069.39,"d":"$25,094,069.39"},{"v":17878842.08,"d":"$17,878,842.08"},{"v":0.7124728079027599,"d":"71%"},1,{"v":771255.66,"d":"$771,255.66"},{"v":13149984.519999998,"d":"$13,149,984.52"},{"v":13921240.179999998,"d":"$13,921,240.18"},{"v":1.05749,"d":"1.06"},{"v":5866172.13,"d":"$5,866,172.13"},{"v":1173234.42,"d":"$1,173,234.42"},{"v":582561.4,"d":"$582,561.40"},{"v":258096.82,"d":"$258,096.82"},{"v":222713.62,"d":"$222,713.62"},{"v":360019.95,"d":"$360,019.95"},{"v":135826.44,"d":"$135,826.44"},{"v":220495.16,"d":"$220,495.16"},{"v":298007.02,"d":"$298,007.02"},{"v":165214.32,"d":"$165,214.32"},{"v":442102.72,"d":"$442,102.72"},{"v":380651.45,"d":"$380,651.45"},{"v":264583.8,"d":"$264,583.80"},{"v":10369679.25,"d":"$10,369,679.25"},{"v":140795.1,"d":"$140,795.10"},{"v":197736.25,"d":"$197,736.25"},{"v":514114.25,"d":"$514,114.25"},{"v":53784.259999999995,"d":"$53,784.26"},{"v":903259.19,"d":"$903,259.19"},{"v":267281.51,"d":"$267,281.51"},{"v":2152952.29,"d":"$2,152,952.29"},{"v":1482230.93,"d":"$1,482,230.93"},{"v":4566878.16096,"d":"$4,566,878.16"},{"v":10279031.94096,"d":"$10,279,031.94"},{"v":1505769.45,"d":"$1,505,769.45"},{"v":8773262.49096,"d":"$8,773,262.49"},{"v":10365598.62096,"d":"$10,365,598.62"},{"v":513317.8,"d":"$513,317.80"},{"v":513317.8,"d":"$513,317.80"},{"v":535029.13,"d":"$535,029.13"},{"v":535029.13,"d":"$535,029.13"},{"v":169813.59,"d":"$169,813.59"},{"v":169813.59,"d":"$169,813.59"},{"v":176792.23,"d":"$176,792.23"},{"v":176792.23,"d":"$176,792.23"},{"v":212460.84,"d":"$212,460.84"},{"v":869228.49,"d":"$869,228.49"},{"v":352101.25,"d":"$352,101.25"},{"v":135095.29,"d":"$135,095.29"},{"v":4358791.369999999,"d":"$4,358,791.37"},{"v":25094069.39,"d":"$25,094,069.39"},{"v":2789646.19,"d":"$2,789,646.19"},{"v":236852.95,"d":"$236,852.95"},{"v":905223.69,"d":"$905,223.69"},{"v":25094069.240960002,"d":"$25,094,069.24"}]
["07016143502","POSEN-ROBBINS EL SCH DIST 143-5",1201.63,{"v":21782182.6,"d":"$21,782,182.60"},{"v":17094706.55,"d":"$17,094,706.55"},{"v":0.7848022791802324,"d":"78%"},2,{"v":198563.12,"d":"$198,563.12"},{"v":14874143.530000001,"d":"$14,874,143.53"},{"v":15072706.65,"d":"$15,072,706.65"},{"v":1.05749,"d":"1.06"},{"v":4785852.56,"d":"$4,785,852.56"},{"v":957170.51,"d":"$957,170.51"},{"v":442451.7,"d":"$442,451.70"},{"v":196153.58,"d":"$196,153.58"},{"v":201554.86,"d":"$201,554.86"},{"v":274187.38,"d":"$274,187.38"},{"v":102840.02,"d":"$102,840.02"},{"v":167412.99,"d":"$167,412.99"},{"v":226485.34,"d":"$226,485.34"},{"v":125324.17,"d":"$125,324.17"},{"v":335998.07,"d":"$335,998.07"},{"v":289295.1,"d":"$289,295.10"},{"v":200887.7,"d":"$200,887.70"},{"v":8305613.9799999995,"d":"$8,305,613.98"},{"v":107381.70000000001,"d":"$107,381.70"},{"v":150203.75,"d":"$150,203.75"},{"v":390529.75,"d":"$390,529.75"},{"v":40855.42,"d":"$40,855.42"},{"v":686130.73,"d":"$686,130.73"},{"v":204566.77000000002,"d":"$204,566.77"},{"v":1635418.4300000002,"d":"$1,635,418.43"},{"v":1125927.31,"d":"$1,125,927.31"},{"v":4062664.5013200003,"d":"$4,062,664.50"},{"v":8403678.36132,"d":"$8,403,678.36"},{"v":1143807.56,"d":"$1,143,807.56"},{"v":7259870.80132,"d":"$7,259,870.80"},{"v":8469435.85132,"d":"$8,469,435.85"},{"v":607917.16,"d":"$607,917.16"},{"v":607917.16,"d":"$607,917.16"},{"v":633505.51,"d":"$633,505.51"},{"v":633505.51,"d":"$633,505.51"},{"v":279921.03,"d":"$279,921.03"},{"v":279921.03,"d":"$279,921.03"},{"v":291552.1,"d":"$291,552.10"},{"v":291552.1,"d":"$291,552.10"},{"v":350482.85,"d":"$350,482.85"},{"v":660644.67,"d":"$660,644.67"},{"v":267609.51,"d":"$267,609.51"},{"v":102604.02,"d":"$102,604.02"},{"v":5007132.65,"d":"$5,007,132.65"},{"v":21782182.6,"d":"$21,782,182.60"},{"v":4930428.5200000005,"d":"$4,930,428.52"},{"v":297460.23,"d":"$297,460.23"},{"v":523433.43,"d":"$523,433.43"},{"v":21782182.48132,"d":"$21,782,182.48"}]
["07016144002","PRAIRIE-HILLS ELEM SCH DIST 144",2530.45,{"v":41654102.89,"d":"$41,654,102.89"},{"v":29021991.79,"d":"$29,021,991.79"},{"v":0.6967378907821198,"d":"70%"},1,{"v":1534161.82,"d":"$1,534,161.82"},{"v":23230532.18,"d":"$23,230,532.18"},{"v":24764694,"d":"$24,764,694.00"},{"v":1.05749,"d":"1.06"},{"v":9948526.49,"d":"$9,948,526.49"},{"v":1989705.29,"d":"$1,989,705.29"},{"v":932098.25,"d":"$932,098.25"},{"v":414429.75,"d":"$414,429.75"},{"v":375288.07,"d":"$375,288.07"},{"v":573806.63,"d":"$573,806.63"},{"v":217322.31,"d":"$217,322.31"},{"v":353043.54,"d":"$353,043.54"},{"v":478514.14,"d":"$478,514.14"},{"v":264468.56,"d":"$264,468.56"},{"v":709890.66,"d":"$709,890.66"},{"v":611217.48,"d":"$611,217.48"},{"v":423635.61,"d":"$423,635.61"},{"v":17291946.78,"d":"$17,291,946.78"},{"v":226421.10000000003,"d":"$226,421.10"},{"v":316306.25,"d":"$316,306.25"},{"v":822396.2500000001,"d":"$822,396.25"},{"v":86035.30000000002,"d":"$86,035.30"},{"v":1444886.95,"d":"$1,444,886.95"},{"v":426671.43000000005,"d":"$426,671.43"},{"v":3443942.4500000007,"d":"$3,443,942.45"},{"v":2371031.6500000004,"d":"$2,371,031.65"},{"v":7635372.970799999,"d":"$7,635,372.97"},{"v":16773064.3508,"d":"$16,773,064.35"},{"v":2408684.74,"d":"$2,408,684.74"},{"v":14364379.6108,"d":"$14,364,379.61"},{"v":16911539.6308,"d":"$16,911,539.63"},{"v":1154577.36,"d":"$1,154,577.36"},{"v":1154577.36,"d":"$1,154,577.36"},{"v":1202652.44,"d":"$1,202,652.44"},{"v":1202652.44,"d":"$1,202,652.44"},{"v":106230.42,"d":"$106,230.42"},{"v":106230.42,"d":"$106,230.42"},{"v":110107.44,"d":"$110,107.44"},{"v":110107.44,"d":"$110,107.44"},{"v":132594.17,"d":"$132,594.17"},{"v":1391075.74,"d":"$1,391,075.74"},{"v":563487.64,"d":"$563,487.64"},{"v":216323.48,"d":"$216,323.48"},{"v":7450616.350000001,"d":"$7,450,616.35"},{"v":41654102.89,"d":"$41,654,102.89"},{"v":6684222.43,"d":"$6,684,222.43"},{"v":154038.59,"d":"$154,038.59"},{"v":1243351.45,"d":"$1,243,351.45"},{"v":41654102.760800004,"d":"$41,654,102.76"}]
["07016145002","ARBOR PARK SCHOOL DISTRICT 145",1096.88,{"v":16758706.25,"d":"$16,758,706.25"},{"v":12720236.77,"d":"$12,720,236.77"},{"v":0.7590225987760839,"d":"76%"},1,{"v":214919.09,"d":"$214,919.09"},{"v":6608696.45,"d":"$6,608,696.45"},{"v":6823615.54,"d":"$6,823,615.54"},{"v":1.05749,"d":"1.06"},{"v":3909798.19,"d":"$3,909,798.19"},{"v":781959.63,"d":"$781,959.63"},{"v":403368.46,"d":"$403,368.46"},{"v":179192.93,"d":"$179,192.93"},{"v":146526.67,"d":"$146,526.67"},{"v":250345,"d":"$250,345.00"},{"v":93784.92,"d":"$93,784.92"},{"v":152964.59,"d":"$152,964.59"},{"v":206902.02,"d":"$206,902.02"},{"v":114330.82,"d":"$114,330.82"},{"v":306945.6,"d":"$306,945.60"},{"v":264280.86,"d":"$264,280.86"},{"v":183550.3,"d":"$183,550.30"},{"v":6993949.989999999,"d":"$6,993,949.99"},{"v":97467.3,"d":"$97,467.30"},{"v":137110,"d":"$137,110.00"},{"v":356486,"d":"$356,486.00"},{"v":37293.92,"d":"$37,293.92"},{"v":626318.48,"d":"$626,318.48"},{"v":185900.01,"d":"$185,900.01"},{"v":1492853.6800000002,"d":"$1,492,853.68"},{"v":1027776.5599999999,"d":"$1,027,776.56"},{"v":3026557.4923199997,"d":"$3,026,557.49"},{"v":6987763.44232,"d":"$6,987,763.44"},{"v":1044098.13,"d":"$1,044,098.13"},{"v":5943665.31232,"d":"$5,943,665.31"},{"v":7047788.64232,"d":"$7,047,788.64"},{"v":260535.92,"d":"$260,535.92"},{"v":260535.92,"d":"$260,535.92"},{"v":271391.58,"d":"$271,391.58"},{"v":271391.58,"d":"$271,391.58"},{"v":133369.58,"d":"$133,369.58"},{"v":133369.58,"d":"$133,369.58"},{"v":139572.81,"d":"$139,572.81"},{"v":139572.81,"d":"$139,572.81"},{"v":167487.38,"d":"$167,487.38"},{"v":602489.32,"d":"$602,489.32"},{"v":244052.34,"d":"$244,052.34"},{"v":93198.65,"d":"$93,198.65"},{"v":2716967.4699999997,"d":"$2,716,967.47"},{"v":16758706.25,"d":"$16,758,706.25"},{"v":865700.6199999999,"d":"$865,700.62"},{"v":144063.91,"d":"$144,063.91"},{"v":628903.79,"d":"$628,903.79"},{"v":16758706.102319997,"d":"$16,758,706.10"}]
["07016146004","TINLEY PARK COMM SCH DIST 146",2240.63,{"v":32757312.51,"d":"$32,757,312.51"},{"v":32456631.229999997,"d":"$32,456,631.23"},{"v":0.9908209417390937,"d":"99%"},3,{"v":37225.76,"d":"$37,225.76"},{"v":5090557.120000001,"d":"$5,090,557.12"},{"v":5127782.880000001,"d":"$5,127,782.88"},{"v":1.05749,"d":"1.06"},{"v":7923572.54,"d":"$7,923,572.54"},{"v":1584714.5,"d":"$1,584,714.50"},{"v":825172.42,"d":"$825,172.42"},{"v":366497.49,"d":"$366,497.49"},{"v":289728.61,"d":"$289,728.61"},{"v":503074.23,"d":"$503,074.23"},{"v":192744.19,"d":"$192,744.19"},{"v":312525.2,"d":"$312,525.20"},{"v":423169.97,"d":"$423,169.97"},{"v":234315.37,"d":"$234,315.37"},{"v":627785.87,"d":"$627,785.87"},{"v":540525.06,"d":"$540,525.06"},{"v":375015.51,"d":"$375,015.51"},{"v":14198840.959999997,"d":"$14,198,840.96"},{"v":198492.3,"d":"$198,492.30"},{"v":280078.75,"d":"$280,078.75"},{"v":728204.75,"d":"$728,204.75"},{"v":76181.42,"d":"$76,181.42"},{"v":639699.86,"d":"$639,699.86"},{"v":370583.43,"d":"$370,583.43"},{"v":3049497.4299999997,"d":"$3,049,497.43"},{"v":2099470.31,"d":"$2,099,470.31"},{"v":6001853.39232,"d":"$6,001,853.39"},{"v":13444061.64232,"d":"$13,444,061.64"},{"v":2132810.88,"d":"$2,132,810.88"},{"v":11311250.76232,"d":"$11,311,250.76"},{"v":13566676.93232,"d":"$13,566,676.93"},{"v":468344.34,"d":"$468,344.34"},{"v":468344.34,"d":"$468,344.34"},{"v":487729.45,"d":"$487,729.45"},{"v":487729.45,"d":"$487,729.45"},{"v":217113.27,"d":"$217,113.27"},{"v":217113.27,"d":"$217,113.27"},{"v":225642.72,"d":"$225,642.72"},{"v":225642.72,"d":"$225,642.72"},{"v":271391.58,"d":"$271,391.58"},{"v":1232117.81,"d":"$1,232,117.81"},{"v":499098.03,"d":"$499,098.03"},{"v":191527.51,"d":"$191,527.51"},{"v":4991794.490000001,"d":"$4,991,794.49"},{"v":32757312.51,"d":"$32,757,312.51"},{"v":684573.2600000001,"d":"$684,573.26"},{"v":85577.04,"d":"$85,577.04"},{"v":907786.9800000002,"d":"$907,786.98"},{"v":32757312.38232,"d":"$32,757,312.38"}]
["07016147002","W HARVEY-DIXMOOR PUB SCH DIST147",749.71,{"v":14250403.94,"d":"$14,250,403.94"},{"v":15090155.76,"d":"$15,090,155.76"},{"v":1.0589282818603387,"d":"106%"},4,{"v":907.72,"d":"$907.72"},{"v":10538601.49,"d":"$10,538,601.49"},{"v":10539509.21,"d":"$10,539,509.21"},{"v":1.05749,"d":"1.06"},{"v":3139932.23,"d":"$3,139,932.23"},{"v":627986.43,"d":"$627,986.43"},{"v":275794.89,"d":"$275,794.89"},{"v":121674.21,"d":"$121,674.21"},{"v":136117.75,"d":"$136,117.75"},{"v":168486.15,"d":"$168,486.15"},{"v":64032.46,"d":"$64,032.46"},{"v":104279.76,"d":"$104,279.76"},{"v":140489.02,"d":"$140,489.02"},{"v":78209.82,"d":"$78,209.82"},{"v":208419.85,"d":"$208,419.85"},{"v":179449.97,"d":"$179,449.97"},{"v":125130.8,"d":"$125,130.80"},{"v":5370003.339999999,"d":"$5,370,003.34"},{"v":67122,"d":"$67,122.00"},{"v":93713.75,"d":"$93,713.75"},{"v":243655.75,"d":"$243,655.75"},{"v":25490.14,"d":"$25,490.14"},{"v":214042.2,"d":"$214,042.20"},{"v":125504.68,"d":"$125,504.68"},{"v":1020355.31,"d":"$1,020,355.31"},{"v":702478.27,"d":"$702,478.27"},{"v":2726110.2584400005,"d":"$2,726,110.26"},{"v":5218472.358440001,"d":"$5,218,472.36"},{"v":713633.95,"d":"$713,633.95"},{"v":4504838.40844,"d":"$4,504,838.41"},{"v":5259499.16844,"d":"$5,259,499.17"},{"v":546660.2,"d":"$546,660.20"},{"v":546660.2,"d":"$546,660.20"},{"v":569922.33,"d":"$569,922.33"},{"v":569922.33,"d":"$569,922.33"},{"v":139572.81,"d":"$139,572.81"},{"v":139572.81,"d":"$139,572.81"},{"v":145776.05,"d":"$145,776.05"},{"v":145776.05,"d":"$145,776.05"},{"v":175241.42,"d":"$175,241.42"},{"v":411739.81,"d":"$411,739.81"},{"v":166784.8,"d":"$166,784.80"},{"v":63272.48,"d":"$63,272.48"},{"v":3620901.2899999996,"d":"$3,620,901.29"},{"v":14250403.94,"d":"$14,250,403.94"},{"v":4251759.16,"d":"$4,251,759.16"},{"v":149043.81000000003,"d":"$149,043.81"},{"v":450747.0400000001,"d":"$450,747.04"},{"v":14250403.798439998,"d":"$14,250,403.80"}]
["07016148002","DOLTON SCHOOL DISTRICT 148",1930.39,{"v":33082175.41,"d":"$33,082,175.41"},{"v":28065743.71,"d":"$28,065,743.71"},{"v":0.8483645153975079,"d":"85%"},2,{"v":137166.23,"d":"$137,166.23"},{"v":23339167.79,"d":"$23,339,167.79"},{"v":23476334.02,"d":"$23,476,334.02"},{"v":1.05749,"d":"1.06"},{"v":7902924.79,"d":"$7,902,924.79"},{"v":1580584.95,"d":"$1,580,584.95"},{"v":711609.81,"d":"$711,609.81"},{"v":315615.54,"d":"$315,615.54"},{"v":302416.73,"d":"$302,416.73"},{"v":433931.33,"d":"$433,931.33"},{"v":165578.9,"d":"$165,578.90"},{"v":269179.99,"d":"$269,179.99"},{"v":364420.02,"d":"$364,420.02"},{"v":201963.52,"d":"$201,963.52"},{"v":540628.48,"d":"$540,628.48"},{"v":465482.35,"d":"$465,482.35"},{"v":323003.3,"d":"$323,003.30"},{"v":13577339.71,"d":"$13,577,339.71"},{"v":172497.60000000003,"d":"$172,497.60"},{"v":241298.75000000003,"d":"$241,298.75"},{"v":627376.75,"d":"$627,376.75"},{"v":65633.26000000001,"d":"$65,633.26"},{"v":1102252.69,"d":"$1,102,252.69"},{"v":322183.84,"d":"$322,183.84"},{"v":2627260.79,"d":"$2,627,260.79"},{"v":1808775.4300000002,"d":"$1,808,775.43"},{"v":6110537.652960001,"d":"$6,110,537.65"},{"v":13077816.76296,"d":"$13,077,816.76"},{"v":1837499.63,"d":"$1,837,499.63"},{"v":11240317.13296,"d":"$11,240,317.13"},{"v":13183454.61296,"d":"$13,183,454.61"},{"v":1074710.69,"d":"$1,074,710.69"},{"v":1074710.69,"d":"$1,074,710.69"},{"v":1118908.75,"d":"$1,118,908.75"},{"v":1118908.75,"d":"$1,118,908.75"},{"v":51952.1,"d":"$51,952.10"},{"v":51952.1,"d":"$51,952.10"},{"v":54278.31,"d":"$54,278.31"},{"v":54278.31,"d":"$54,278.31"},{"v":65133.98,"d":"$65,133.98"},{"v":1061528.81,"d":"$1,061,528.81"},{"v":429996.98,"d":"$429,996.98"},{"v":165021.47,"d":"$165,021.47"},{"v":6321380.939999999,"d":"$6,321,380.94"},{"v":33082175.41,"d":"$33,082,175.41"},{"v":7561189.18,"d":"$7,561,189.18"},{"v":16001.73,"d":"$16,001.73"},{"v":840189.29,"d":"$840,189.29"},{"v":33082175.262959998,"d":"$33,082,175.26"}]
["07016149002","DOLTON SCHOOL DISTRICT 149",2377.38,{"v":40188944.15,"d":"$40,188,944.15"},{"v":30143625.69,"d":"$30,143,625.69"},{"v":0.75004771405521,"d":"75%"},1,{"v":719985.48,"d":"$719,985.48"},{"v":24347667.13,"d":"$24,347,667.13"},{"v":25067652.61,"d":"$25,067,652.61"},{"v":1.05749,"d":"1.06"},{"v":9638810.3,"d":"$9,638,810.30"},{"v":1927762.05,"d":"$1,927,762.05"},{"v":875316.94,"d":"$875,316.94"},{"v":388620.07,"d":"$388,620.07"},{"v":365741.95,"d":"$365,741.95"},{"v":538043.06,"d":"$538,043.06"},{"v":204386.46,"d":"$204,386.46"},{"v":331685.03,"d":"$331,685.03"},{"v":448713.43,"d":"$448,713.43"},{"v":248763.77,"d":"$248,763.77"},{"v":665680.39,"d":"$665,680.39"},{"v":573152.33,"d":"$573,152.33"},{"v":398006.41,"d":"$398,006.41"},{"v":16604682.190000001,"d":"$16,604,682.19"},{"v":213327,"d":"$213,327.00"},{"v":297172.5,"d":"$297,172.50"},{"v":772648.5,"d":"$772,648.50"},{"v":80830.92,"d":"$80,830.92"},{"v":1357483.98,"d":"$1,357,483.98"},{"v":400942.26,"d":"$400,942.26"},{"v":3235614.1799999997,"d":"$3,235,614.18"},{"v":2227605.06,"d":"$2,227,605.06"},{"v":7403492.830320001,"d":"$7,403,492.83"},{"v":15989117.230320001,"d":"$15,989,117.23"},{"v":2262980.47,"d":"$2,262,980.47"},{"v":13726136.76032,"d":"$13,726,136.76"},{"v":16119215.970320001,"d":"$16,119,215.97"},{"v":1246850.5,"d":"$1,246,850.50"},{"v":1246850.5,"d":"$1,246,850.50"},{"v":1298802.6,"d":"$1,298,802.60"},{"v":1298802.6,"d":"$1,298,802.60"},{"v":62807.76,"d":"$62,807.76"},{"v":62807.76,"d":"$62,807.76"},{"v":65133.98,"d":"$65,133.98"},{"v":65133.98,"d":"$65,133.98"},{"v":78315.85,"d":"$78,315.85"},{"v":1307332.05,"d":"$1,307,332.05"},{"v":529565.31,"d":"$529,565.31"},{"v":202642.94,"d":"$202,642.94"},{"v":7465045.830000001,"d":"$7,465,045.83"},{"v":40188944.15,"d":"$40,188,944.15"},{"v":7741338.129999999,"d":"$7,741,338.13"},{"v":40265.67,"d":"$40,265.67"},{"v":918382.85,"d":"$918,382.85"},{"v":40188943.990320005,"d":"$40,188,943.99"}]
["07016150002","SOUTH HOLLAND SCHOOL DIST 150",865.62,{"v":13416091.99,"d":"$13,416,091.99"},{"v":10220603.72,"d":"$10,220,603.72"},{"v":0.761816759129124,"d":"76%"},1,{"v":147360.05,"d":"$147,360.05"},{"v":3547094.4200000004,"d":"$3,547,094.42"},{"v":3694454.47,"d":"$3,694,454.47"},{"v":1.05749,"d":"1.06"},{"v":3266768.39,"d":"$3,266,768.39"},{"v":653353.67,"d":"$653,353.67"},{"v":317827.8,"d":"$317,827.80"},{"v":140847.12,"d":"$140,847.12"},{"v":118245.68,"d":"$118,245.68"},{"v":200276,"d":"$200,276.00"},{"v":73734.35,"d":"$73,734.35"},{"v":120298.64,"d":"$120,298.64"},{"v":162626.69,"d":"$162,626.69"},{"v":90145.46,"d":"$90,145.46"},{"v":241261.77,"d":"$241,261.77"},{"v":207726.93,"d":"$207,726.93"},{"v":144352.7,"d":"$144,352.70"},{"v":5737465.199999999,"d":"$5,737,465.20"},{"v":77576.4,"d":"$77,576.40"},{"v":108202.5,"d":"$108,202.50"},{"v":281326.5,"d":"$281,326.50"},{"v":29431.079999999998,"d":"$29,431.08"},{"v":494269.02,"d":"$494,269.02"},{"v":150151.76,"d":"$150,151.76"},{"v":1178108.82,"d":"$1,178,108.82"},{"v":811085.94,"d":"$811,085.94"},{"v":2429114.1706800004,"d":"$2,429,114.17"},{"v":5559266.190680001,"d":"$5,559,266.19"},{"v":823966.36,"d":"$823,966.36"},{"v":4735299.830680001,"d":"$4,735,299.83"},{"v":5606636.01068,"d":"$5,606,636.01"},{"v":325669.9,"d":"$325,669.90"},{"v":325669.9,"d":"$325,669.90"},{"v":339627.18,"d":"$339,627.18"},{"v":339627.18,"d":"$339,627.18"},{"v":0,"d":"$0.00"},{"v":0,"d":"$0.00"},{"v":0,"d":"$0.00"},{"v":0,"d":"$0.00"},{"v":0,"d":"$0.00"},{"v":475322.98,"d":"$475,322.98"},{"v":192540.65,"d":"$192,540.65"},{"v":73532.88,"d":"$73,532.88"},{"v":2071990.67,"d":"$2,071,990.67"},{"v":13416091.99,"d":"$13,416,091.99"},{"v":954218.46,"d":"$954,218.46"},{"v":0,"d":"$0.00"},{"v":373815.44999999995,"d":"$373,815.45"},{"v":13416091.88068,"d":"$13,416,091.88"}]
["07016151002","SOUTH HOLLAND SCHOOL DIST 151",1485.72,{"v":25562482.35,"d":"$25,562,482.35"},{"v":21185133.28,"d":"$21,185,133.28"},{"v":0.8287588423508486,"d":"83%"},2,{"v":133737.34,"d":"$133,737.34"},{"v":14449640.12,"d":"$14,449,640.12"},{"v":14583377.459999999,"d":"$14,583,377.46"},{"v":1.05749,"d":"1.06"},{"v":5855110.84,"d":"$5,855,110.84"},{"v":1171022.16,"d":"$1,171,022.16"},{"v":547165.27,"d":"$547,165.27"},{"v":243348.43,"d":"$243,348.43"},{"v":233047.74,"d":"$233,047.74"},{"v":341740.79,"d":"$341,740.79"},{"v":128064.93,"d":"$128,064.93"},{"v":207303.14,"d":"$207,303.14"},{"v":280978.05,"d":"$280,978.05"},{"v":155163.26,"d":"$155,163.26"},{"v":416839.71,"d":"$416,839.71"},{"v":358899.94,"d":"$358,899.94"},{"v":248754,"d":"$248,754.00"},{"v":10187438.26,"d":"$10,187,438.26"},{"v":133242.3,"d":"$133,242.30"},{"v":185715,"d":"$185,715.00"},{"v":482859,"d":"$482,859.00"},{"v":50514.479999999996,"d":"$50,514.48"},{"v":848346.12,"d":"$848,346.12"},{"v":254890.59000000003,"d":"$254,890.59"},{"v":2022064.9200000002,"d":"$2,022,064.92"},{"v":1392119.6400000001,"d":"$1,392,119.64"},{"v":4723550.75508,"d":"$4,723,550.76"},{"v":10093302.80508,"d":"$10,093,302.81"},{"v":1414227.15,"d":"$1,414,227.15"},{"v":8679075.65508,"d":"$8,679,075.66"},{"v":10174606.71508,"d":"$10,174,606.72"},{"v":704067.32,"d":"$704,067.32"},{"v":704067.32,"d":"$704,067.32"},{"v":733532.69,"d":"$733,532.69"},{"v":733532.69,"d":"$733,532.69"},{"v":196952.75,"d":"$196,952.75"},{"v":196952.75,"d":"$196,952.75"},{"v":205482.2,"d":"$205,482.20"},{"v":205482.2,"d":"$205,482.20"},{"v":246578.64,"d":"$246,578.64"},{"v":816500.98,"d":"$816,500.98"},{"v":330742.75,"d":"$330,742.75"},{"v":126544.96,"d":"$126,544.96"},{"v":5200437.250000001,"d":"$5,200,437.25"},{"v":25562482.35,"d":"$25,562,482.35"},{"v":3527659.5899999994,"d":"$3,527,659.59"},{"v":255885.22999999998,"d":"$255,885.23"},{"v":761457.58,"d":"$761,457.58"},{"v":25562482.22508,"d":"$25,562,482.23"}]
["07016152002","HARVEY SCHOOL DISTRICT 152",1563.06,{"v":28046735.27,"d":"$28,046,735.27"},{"v":23882518.599999998,"d":"$23,882,518.60"},{"v":0.8515257968561415,"d":"85%"},2,{"v":110753.62,"d":"$110,753.62"},{"v":19483438.089999996,"d":"$19,483,438.09"},{"v":19594191.709999997,"d":"$19,594,191.71"},{"v":1.05749,"d":"1.06"},{"v":6403750.95,"d":"$6,403,750.95"},{"v":1280750.18,"d":"$1,280,750.18"},{"v":575187.21,"d":"$575,187.21"},{"v":255147.14,"d":"$255,147.14"},{"v":259598.05,"d":"$259,598.05"},{"v":352072.49,"d":"$352,072.49"},{"v":133886.07,"d":"$133,886.07"},{"v":217982.4,"d":"$217,982.40"},{"v":294601.23,"d":"$294,601.23"},{"v":163329.75,"d":"$163,329.75"},{"v":437050.12,"d":"$437,050.12"},{"v":376301.15,"d":"$376,301.15"},{"v":261568.6,"d":"$261,568.60"},{"v":11011225.340000002,"d":"$11,011,225.34"},{"v":140067.90000000002,"d":"$140,067.90"},{"v":195382.50000000003,"d":"$195,382.50"},{"v":507994.5000000001,"d":"$507,994.50"},{"v":53144.04000000001,"d":"$53,144.04"},{"v":892507.26,"d":"$892,507.26"},{"v":261890.59000000003,"d":"$261,890.59"},{"v":2127324.66,"d":"$2,127,324.66"},{"v":1464587.2200000002,"d":"$1,464,587.22"},{"v":5222598.4928399995,"d":"$5,222,598.49"},{"v":10865497.16284,"d":"$10,865,497.16"},{"v":1487845.55,"d":"$1,487,845.55"},{"v":9377651.612839999,"d":"$9,377,651.61"},{"v":10951033.40284,"d":"$10,951,033.40"},{"v":852944.99,"d":"$852,944.99"},{"v":852944.99,"d":"$852,944.99"},{"v":887838.2,"d":"$887,838.20"},{"v":887838.2,"d":"$887,838.20"},{"v":236498.38,"d":"$236,498.38"},{"v":236498.38,"d":"$236,498.38"},{"v":246578.64,"d":"$246,578.64"},{"v":246578.64,"d":"$246,578.64"},{"v":296204.53,"d":"$296,204.53"},{"v":859148.23,"d":"$859,148.23"},{"v":348018.01,"d":"$348,018.01"},{"v":133385.23,"d":"$133,385.23"},{"v":6084476.42,"d":"$6,084,476.42"},{"v":28046735.27,"d":"$28,046,735.27"},{"v":6645921.489999998,"d":"$6,645,921.49"},{"v":60495.920000000006,"d":"$60,495.92"},{"v":823793.79,"d":"$823,793.79"},{"v":28046735.16284,"d":"$28,046,735.16"}]
["07016152502","HAZEL CREST SCHOOL DIST 152-5",856.04,{"v":14211518.67,"d":"$14,211,518.67"},{"v":12004185.41,"d":"$12,004,185.41"},{"v":0.8446799873218617,"d":"84%"},2,{"v":59850.4,"d":"$59,850.40"},{"v":8942311.280000001,"d":"$8,942,311.28"},{"v":9002161.680000002,"d":"$9,002,161.68"},{"v":1.05749,"d":"1.06"},{"v":3429000.68,"d":"$3,429,000.68"},{"v":685800.13,"d":"$685,800.13"},{"v":314878.12,"d":"$314,878.12"},{"v":139372.28,"d":"$139,372.28"},{"v":128595.85,"d":"$128,595.85"},{"v":193123.28,"d":"$193,123.28"},{"v":73087.56,"d":"$73,087.56"},{"v":119042.26,"d":"$119,042.26"},{"v":160923.79,"d":"$160,923.79"},{"v":89203.17,"d":"$89,203.17"},{"v":238735.47,"d":"$238,735.47"},{"v":205551.78,"d":"$205,551.78"},{"v":142845.1,"d":"$142,845.10"},{"v":5920159.469999999,"d":"$5,920,159.47"},{"v":76586.40000000001,"d":"$76,586.40"},{"v":107005,"d":"$107,005.00"},{"v":278213,"d":"$278,213.00"},{"v":29105.359999999997,"d":"$29,105.36"},{"v":488798.83999999997,"d":"$488,798.84"},{"v":143712.6,"d":"$143,712.60"},{"v":1165070.44,"d":"$1,165,070.44"},{"v":802109.48,"d":"$802,109.48"},{"v":2609338.34856,"d":"$2,609,338.35"},{"v":5699939.468559999,"d":"$5,699,939.47"},{"v":814847.35,"d":"$814,847.35"},{"v":4885092.11856,"d":"$4,885,092.12"},{"v":5746785.03856,"d":"$5,746,785.04"},{"v":433451.13,"d":"$433,451.13"},{"v":433451.13,"d":"$433,451.13"},{"v":451285.44,"d":"$451,285.44"},{"v":451285.44,"d":"$451,285.44"},{"v":7754.04,"d":"$7,754.04"},{"v":7754.04,"d":"$7,754.04"},{"v":7754.04,"d":"$7,754.04"},{"v":7754.04,"d":"$7,754.04"},{"v":10080.25,"d":"$10,080.25"},{"v":470670.55,"d":"$470,670.55"},{"v":190656.07,"d":"$190,656.07"},{"v":72677.85,"d":"$72,677.85"},{"v":2544574.02,"d":"$2,544,574.02"},{"v":14211518.67,"d":"$14,211,518.67"},{"v":2735410.1899999995,"d":"$2,735,410.19"},{"v":560.8199999999999,"d":"$560.82"},{"v":355287.36,"d":"$355,287.36"},{"v":14211518.528559998,"d":"$14,211,518.53"}]
["07016153002","HOMEWOOD SCHOOL DISTRICT 153",1892.37,{"v":26682346.98,"d":"$26,682,346.98"},{"v":18589263.47,"d":"$18,589,263.47"},{"v":0.6966877195598181,"d":"70%"},1,{"v":922409.57,"d":"$922,409.57"},{"v":8281539.83,"d":"$8,281,539.83"},{"v":9203949.4,"d":"$9,203,949.40"},{"v":1.05749,"d":"1.06"},{"v":6571145.17,"d":"$6,571,145.17"},{"v":1314229.02,"d":"$1,314,229.02"},{"v":696861.42,"d":"$696,861.42"},{"v":309716.19,"d":"$309,716.19"},{"v":226322.09,"d":"$226,322.09"},{"v":435520.82,"d":"$435,520.82"},{"v":162991.73,"d":"$162,991.73"},{"v":263840.37,"d":"$263,840.37"},{"v":357608.43,"d":"$357,608.43"},{"v":197880.27,"d":"$197,880.27"},{"v":530523.27,"d":"$530,523.27"},{"v":456781.74,"d":"$456,781.74"},{"v":316596,"d":"$316,596.00"},{"v":11840016.519999998,"d":"$11,840,016.52"},{"v":169106.40000000002,"d":"$169,106.40"},{"v":236546.25000000003,"d":"$236,546.25"},{"v":615020.2500000001,"d":"$615,020.25"},{"v":64340.58,"d":"$64,340.58"},{"v":1080543.27,"d":"$1,080,543.27"},{"v":324313.68000000005,"d":"$324,313.68"},{"v":2575515.5700000003,"d":"$2,575,515.57"},{"v":1773150.6900000002,"d":"$1,773,150.69"},{"v":4733470.74768,"d":"$4,733,470.75"},{"v":11572007.43768,"d":"$11,572,007.44"},{"v":1801309.15,"d":"$1,801,309.15"},{"v":9770698.28768,"d":"$9,770,698.29"},{"v":11675564.69768,"d":"$11,675,564.70"},{"v":331097.73,"d":"$331,097.73"},{"v":331097.73,"d":"$331,097.73"},{"v":345055.02,"d":"$345,055.02"},{"v":345055.02,"d":"$345,055.02"},{"v":35668.6,"d":"$35,668.60"},{"v":35668.6,"d":"$35,668.60"},{"v":37219.41,"d":"$37,219.41"},{"v":37219.41,"d":"$37,219.41"},{"v":44973.46,"d":"$44,973.46"},{"v":1040592.89,"d":"$1,040,592.89"},{"v":421516.4,"d":"$421,516.40"},{"v":161601.33,"d":"$161,601.33"},{"v":3166765.6,"d":"$3,166,765.60"},{"v":26682346.98,"d":"$26,682,346.98"},{"v":711304.1799999999,"d":"$711,304.18"},{"v":61799.67,"d":"$61,799.67"},{"v":963794.5399999999,"d":"$963,794.54"},{"v":26682346.81768,"d":"$26,682,346.82"}]
["07016154002","THORNTON SCHOOL DISTRICT 154",252,{"v":3981941.27,"d":"$3,981,941.27"},{"v":2791170.48,"d":"$2,791,170.48"},{"v":0.7009572192911826,"d":"70%"},1,{"v":126509.25,"d":"$126,509.25"},{"v":631756.67,"d":"$631,756.67"},{"v":758265.92,"d":"$758,265.92"},{"v":1.05749,"d":"1.06"},{"v":940947.28,"d":"$940,947.28"},{"v":188189.45,"d":"$188,189.45"},{"v":92177.43,"d":"$92,177.43"},{"v":40558.07,"d":"$40,558.07"},{"v":35362.94,"d":"$35,362.94"},{"v":56426.96,"d":"$56,426.96"},{"v":21344.15,"d":"$21,344.15"},{"v":34864.62,"d":"$34,864.62"},{"v":46829.67,"d":"$46,829.67"},{"v":26069.94,"d":"$26,069.94"},{"v":69473.28,"d":"$69,473.28"},{"v":59816.65,"d":"$59,816.65"},{"v":41835.9,"d":"$41,835.90"},{"v":1653896.3399999996,"d":"$1,653,896.34"},{"v":22275,"d":"$22,275.00"},{"v":31500,"d":"$31,500.00"},{"v":81900,"d":"$81,900.00"},{"v":8568,"d":"$8,568.00"},{"v":143892,"d":"$143,892.00"},{"v":42283.5,"d":"$42,283.50"},{"v":342972,"d":"$342,972.00"},{"v":236124,"d":"$236,124.00"},{"v":724190.4389999999,"d":"$724,190.44"},{"v":1633704.9389999998,"d":"$1,633,704.94"},{"v":239873.76,"d":"$239,873.76"},{"v":1393831.1789999998,"d":"$1,393,831.18"},{"v":1647495.2789999999,"d":"$1,647,495.28"},{"v":86845.3,"d":"$86,845.30"},{"v":86845.3,"d":"$86,845.30"},{"v":89946.92,"d":"$89,946.92"},{"v":89946.92,"d":"$89,946.92"},{"v":20935.92,"d":"$20,935.92"},{"v":20935.92,"d":"$20,935.92"},{"v":21711.32,"d":"$21,711.32"},{"v":21711.32,"d":"$21,711.32"},{"v":26363.75,"d":"$26,363.75"},{"v":138022,"d":"$138,022.00"},{"v":55909.03,"d":"$55,909.03"},{"v":21375.83,"d":"$21,375.83"},{"v":680549.5299999999,"d":"$680,549.53"},{"v":3981941.27,"d":"$3,981,941.27"},{"v":167486.67999999996,"d":"$167,486.68"},{"v":25664.019999999997,"d":"$25,664.02"},{"v":112102.31000000001,"d":"$112,102.31"},{"v":3981941.1489999993,"d":"$3,981,941.15"}]
["07016154502","BURNHAM SCHOOL DISTRICT 154-5",165.56,{"v":2906832.66,"d":"$2,906,832.66"},{"v":2254619.19,"d":"$2,254,619.19"},{"v":0.7756274453033013,"d":"78%"},2,{"v":28307.16,"d":"$28,307.16"},{"v":1675779.3500000003,"d":"$1,675,779.35"},{"v":1704086.5100000002,"d":"$1,704,086.51"},{"v":1.05749,"d":"1.06"},{"v":657040.77,"d":"$657,040.77"},{"v":131408.14,"d":"$131,408.14"},{"v":60468.39,"d":"$60,468.39"},{"v":26547.1,"d":"$26,547.10"},{"v":26696,"d":"$26,696.00"},{"v":37353.06,"d":"$37,353.06"},{"v":13582.64,"d":"$13,582.64"},{"v":22928.98,"d":"$22,928.98"},{"v":30652.15,"d":"$30,652.15"},{"v":17275.26,"d":"$17,275.26"},{"v":45473.42,"d":"$45,473.42"},{"v":39152.72,"d":"$39,152.72"},{"v":27513.7,"d":"$27,513.70"},{"v":1136092.3299999998,"d":"$1,136,092.33"},{"v":14803.199999999999,"d":"$14,803.20"},{"v":20695,"d":"$20,695.00"},{"v":53806.99999999999,"d":"$53,807.00"},{"v":5629.039999999999,"d":"$5,629.04"},{"v":94534.76000000001,"d":"$94,534.76"},{"v":28434,"d":"$28,434.00"},{"v":225327.15999999997,"d":"$225,327.16"},{"v":155129.71999999997,"d":"$155,129.72"},{"v":539091.2708400001,"d":"$539,091.27"},{"v":1137451.15084,"d":"$1,137,451.15"},{"v":157593.25,"d":"$157,593.25"},{"v":979857.90084,"d":"$979,857.90"},{"v":1146511.18084,"d":"$1,146,511.18"},{"v":82192.88,"d":"$82,192.88"},{"v":82192.88,"d":"$82,192.88"},{"v":85294.49,"d":"$85,294.49"},{"v":85294.49,"d":"$85,294.49"},{"v":27914.56,"d":"$27,914.56"},{"v":27914.56,"d":"$27,914.56"},{"v":28689.96,"d":"$28,689.96"},{"v":28689.96,"d":"$28,689.96"},{"v":34893.2,"d":"$34,893.20"},{"v":90722.33,"d":"$90,722.33"},{"v":36749.19,"d":"$36,749.19"},{"v":13680.53,"d":"$13,680.53"},{"v":624229.03,"d":"$624,229.03"},{"v":2906832.66,"d":"$2,906,832.66"},{"v":459735.54000000004,"d":"$459,735.54"},{"v":35321.189999999995,"d":"$35,321.19"},{"v":96001.26,"d":"$96,001.26"},{"v":2906832.54084,"d":"$2,906,832.54"}]
["07016155002","CALUMET CITY SCHOOL DISTRICT 155",944.47,{"v":16701376.33,"d":"$16,701,376.33"},{"v":12452394.62,"d":"$12,452,394.62"},{"v":0.7455909246013618,"d":"75%"},1,{"v":331089.09,"d":"$331,089.09"},{"v":10383624.190000001,"d":"$10,383,624.19"},{"v":10714713.280000001,"d":"$10,714,713.28"},{"v":1.05749,"d":"1.06"},{"v":3840480.76,"d":"$3,840,480.76"},{"v":768096.14,"d":"$768,096.14"},{"v":347324.58,"d":"$347,324.58"},{"v":154120.67,"d":"$154,120.67"},{"v":153789.84,"d":"$153,789.84"},{"v":215376.17,"d":"$215,376.17"},{"v":80849.07,"d":"$80,849.07"},{"v":131606.08,"d":"$131,606.08"},{"v":177952.76,"d":"$177,952.76"},{"v":98626.04,"d":"$98,626.04"},{"v":263998.48,"d":"$263,998.48"},{"v":227303.29,"d":"$227,303.29"},{"v":157921.1,"d":"$157,921.10"},{"v":6617444.9799999995,"d":"$6,617,444.98"},{"v":84372.29999999999,"d":"$84,372.30"},{"v":118058.75,"d":"$118,058.75"},{"v":306952.75,"d":"$306,952.75"},{"v":32111.979999999996,"d":"$32,111.98"},{"v":539292.37,"d":"$539,292.37"},{"v":160004.66999999998,"d":"$160,004.67"},{"v":1285423.67,"d":"$1,285,423.67"},{"v":884968.3899999999,"d":"$884,968.39"},{"v":3101773.94808,"d":"$3,101,773.95"},{"v":6512958.82808,"d":"$6,512,958.83"},{"v":899022.1,"d":"$899,022.10"},{"v":5613936.728080001,"d":"$5,613,936.73"},{"v":6564643.608080001,"d":"$6,564,643.61"},{"v":518745.63,"d":"$518,745.63"},{"v":518745.63,"d":"$518,745.63"},{"v":540456.96,"d":"$540,456.96"},{"v":540456.96,"d":"$540,456.96"},{"v":110882.84,"d":"$110,882.84"},{"v":110882.84,"d":"$110,882.84"},{"v":115535.27,"d":"$115,535.27"},{"v":115535.27,"d":"$115,535.27"},{"v":138797.41,"d":"$138,797.41"},{"v":518745.63,"d":"$518,745.63"},{"v":210130,"d":"$210,130.00"},{"v":80373.15,"d":"$80,373.15"},{"v":3519287.5899999994,"d":"$3,519,287.59"},{"v":16701376.33,"d":"$16,701,376.33"},{"v":4075613.8400000003,"d":"$4,075,613.84"},{"v":112758.29,"d":"$112,758.29"},{"v":530252.0800000001,"d":"$530,252.08"},{"v":16701376.17808,"d":"$16,701,376.18"}]
["07016156002","LINCOLN ELEM SCHOOL DIST 156",782.64,{"v":13416178.07,"d":"$13,416,178.07"},{"v":10490408.100000001,"d":"$10,490,408.10"},{"v":0.7819222468027365,"d":"78%"},2,{"v":131537.26,"d":"$131,537.26"},{"v":9493171.81,"d":"$9,493,171.81"},{"v":9624709.07,"d":"$9,624,709.07"},{"v":1.05749,"d":"1.06"},{"v":3084625.77,"d":"$3,084,625.77"},{"v":616925.14,"d":"$616,925.14"},{"v":287593.6,"d":"$287,593.60"},{"v":127573.57,"d":"$127,573.57"},{"v":122271.64,"d":"$122,271.64"},{"v":177228.36,"d":"$177,228.36"},{"v":66619.63,"d":"$66,619.63"},{"v":108991.2,"d":"$108,991.20"},{"v":147300.61,"d":"$147,300.61"},{"v":81664.87,"d":"$81,664.87"},{"v":218525.06,"d":"$218,525.06"},{"v":188150.57,"d":"$188,150.57"},{"v":130784.3,"d":"$130,784.30"},{"v":5358254.32,"d":"$5,358,254.32"},{"v":69957.9,"d":"$69,957.90"},{"v":97830,"d":"$97,830.00"},{"v":254358,"d":"$254,358.00"},{"v":26609.76,"d":"$26,609.76"},{"v":446887.44000000006,"d":"$446,887.44"},{"v":132378.51,"d":"$132,378.51"},{"v":1065173.04,"d":"$1,065,173.04"},{"v":733333.6799999999,"d":"$733,333.68"},{"v":2477887.30596,"d":"$2,477,887.31"},{"v":5304415.63596,"d":"$5,304,415.64"},{"v":744979.36,"d":"$744,979.36"},{"v":4559436.27596,"d":"$4,559,436.28"},{"v":5347244.49596,"d":"$5,347,244.50"},{"v":372969.58,"d":"$372,969.58"},{"v":372969.58,"d":"$372,969.58"},{"v":388477.67,"d":"$388,477.67"},{"v":388477.67,"d":"$388,477.67"},{"v":96925.56,"d":"$96,925.56"},{"v":96925.56,"d":"$96,925.56"},{"v":100802.59,"d":"$100,802.59"},{"v":100802.59,"d":"$100,802.59"},{"v":120963.1,"d":"$120,963.10"},{"v":430349.52,"d":"$430,349.52"},{"v":174323.1,"d":"$174,323.10"},{"v":66692.61,"d":"$66,692.61"},{"v":2710679.1300000004,"d":"$2,710,679.13"},{"v":13416178.07,"d":"$13,416,178.07"},{"v":2437650.0300000003,"d":"$2,437,650.03"},{"v":158258.23,"d":"$158,258.23"},{"v":401421.0399999999,"d":"$401,421.04"},{"v":13416177.945960002,"d":"$13,416,177.95"}]
["07016157002","HOOVER-SCHRUM MEMORIAL SD 157",803.81,{"v":13556327.83,"d":"$13,556,327.83"},{"v":10877534.83,"d":"$10,877,534.83"},{"v":0.8023953806965437,"d":"80%"},2,{"v":100005.7,"d":"$100,005.70"},{"v":7352394.44,"d":"$7,352,394.44"},{"v":7452400.140000001,"d":"$7,452,400.14"},{"v":1.05749,"d":"1.06"},{"v":3150256.11,"d":"$3,150,256.11"},{"v":630051.22,"d":"$630,051.22"},{"v":295705.22,"d":"$295,705.22"},{"v":130523.25,"d":"$130,523.25"},{"v":123021.74,"d":"$123,021.74"},{"v":182791.58,"d":"$182,791.58"},{"v":68560.01,"d":"$68,560.01"},{"v":111818.06,"d":"$111,818.06"},{"v":150706.41,"d":"$150,706.41"},{"v":83863.54,"d":"$83,863.54"},{"v":223577.66,"d":"$223,577.66"},{"v":192500.87,"d":"$192,500.87"},{"v":134176.4,"d":"$134,176.40"},{"v":5477552.07,"d":"$5,477,552.07"},{"v":71998.2,"d":"$71,998.20"},{"v":100476.25,"d":"$100,476.25"},{"v":261238.25,"d":"$261,238.25"},{"v":27329.54,"d":"$27,329.54"},{"v":458975.51,"d":"$458,975.51"},{"v":136639.5,"d":"$136,639.50"},{"v":1093985.4100000001,"d":"$1,093,985.41"},{"v":753169.97,"d":"$753,169.97"},{"v":2496067.9178400002,"d":"$2,496,067.92"},{"v":5399880.54784,"d":"$5,399,880.55"},{"v":765130.66,"d":"$765,130.66"},{"v":4634749.88784,"d":"$4,634,749.89"},{"v":5443867.90784,"d":"$5,443,867.91"},{"v":360563.11,"d":"$360,563.11"},{"v":360563.11,"d":"$360,563.11"},{"v":376071.2,"d":"$376,071.20"},{"v":376071.2,"d":"$376,071.20"},{"v":88396.11,"d":"$88,396.11"},{"v":88396.11,"d":"$88,396.11"},{"v":92273.14,"d":"$92,273.14"},{"v":92273.14,"d":"$92,273.14"},{"v":110882.84,"d":"$110,882.84"},{"v":441980.58,"d":"$441,980.58"},{"v":179034.53,"d":"$179,034.53"},{"v":68402.68,"d":"$68,402.68"},{"v":2634907.75,"d":"$2,634,907.75"},{"v":13556327.83,"d":"$13,556,327.83"},{"v":1959131.7299999997,"d":"$1,959,131.73"},{"v":41951.83,"d":"$41,951.83"},{"v":317522.38999999996,"d":"$317,522.39"},{"v":13556327.72784,"d":"$13,556,327.73"}]
["07016158002","LANSING SCHOOL DISTRICT 158",2570.22,{"v":40302191.25,"d":"$40,302,191.25"},{"v":31114793.490000002,"d":"$31,114,793.49"},{"v":0.7720372645991055,"d":"77%"},1,{"v":402578.87,"d":"$402,578.87"},{"v":22703630.730000008,"d":"$22,703,630.73"},{"v":23106209.60000001,"d":"$23,106,209.60"},{"v":1.05749,"d":"1.06"},{"v":9715501.93,"d":"$9,715,501.93"},{"v":1943100.38,"d":"$1,943,100.38"},{"v":946846.64,"d":"$946,846.64"},{"v":421066.53,"d":"$421,066.53"},{"v":356856.07,"d":"$356,856.07"},{"v":582548.84,"d":"$582,548.84"},{"v":220556.27,"d":"$220,556.27"},{"v":358697.26,"d":"$358,697.26"},{"v":486177.17,"d":"$486,177.17"},{"v":268865.9,"d":"$268,865.90"},{"v":721259.02,"d":"$721,259.02"},{"v":621005.66,"d":"$621,005.66"},{"v":430419.81,"d":"$430,419.81"},{"v":17072901.479999997,"d":"$17,072,901.48"},{"v":229167.90000000002,"d":"$229,167.90"},{"v":321277.5,"d":"$321,277.50"},{"v":835321.5000000001,"d":"$835,321.50"},{"v":87387.48000000001,"d":"$87,387.48"},{"v":1467595.6199999999,"d":"$1,467,595.62"},{"v":431623.51,"d":"$431,623.51"},{"v":3498069.42,"d":"$3,498,069.42"},{"v":2408296.14,"d":"$2,408,296.14"},{"v":7317874.267080001,"d":"$7,317,874.27"},{"v":16596613.337080002,"d":"$16,596,613.34"},{"v":2446541.01,"d":"$2,446,541.01"},{"v":14150072.32708,"d":"$14,150,072.33"},{"v":16737264.97708,"d":"$16,737,264.98"},{"v":939014.9,"d":"$939,014.90"},{"v":939014.9,"d":"$939,014.90"},{"v":978560.53,"d":"$978,560.53"},{"v":978560.53,"d":"$978,560.53"},{"v":84519.09,"d":"$84,519.09"},{"v":84519.09,"d":"$84,519.09"},{"v":88396.11,"d":"$88,396.11"},{"v":88396.11,"d":"$88,396.11"},{"v":106230.42,"d":"$106,230.42"},{"v":1412787.07,"d":"$1,412,787.07"},{"v":572282.32,"d":"$572,282.32"},{"v":219743.61,"d":"$219,743.61"},{"v":6492024.680000001,"d":"$6,492,024.68"},{"v":40302191.25,"d":"$40,302,191.25"},{"v":3276052.7699999996,"d":"$3,276,052.77"},{"v":76128.29,"d":"$76,128.29"},{"v":1091467.98,"d":"$1,091,467.98"},{"v":40302191.13708,"d":"$40,302,191.14"}]
["07016159002","ELEM SCHOOL DISTRICT 159",1652.48,{"v":25007140.3,"d":"$25,007,140.30"},{"v":30468688.81,"d":"$30,468,688.81"},{"v":1.2183995628640512,"d":"122%"},4,{"v":1592.91,"d":"$1,592.91"},{"v":7581029.739999999,"d":"$7,581,029.74"},{"v":7582622.649999999,"d":"$7,582,622.65"},{"v":1.05749,"d":"1.06"},{"v":6151553.48,"d":"$6,151,553.48"},{"v":1230310.69,"d":"$1,230,310.69"},{"v":608371.08,"d":"$608,371.08"},{"v":269895.53,"d":"$269,895.53"},{"v":224100.04,"d":"$224,100.04"},{"v":378299.11,"d":"$378,299.11"},{"v":142294.37,"d":"$142,294.37"},{"v":230546.22,"d":"$230,546.22"},{"v":311630.2,"d":"$311,630.20"},{"v":172752.62,"d":"$172,752.62"},{"v":462313.13,"d":"$462,313.13"},{"v":398052.66,"d":"$398,052.66"},{"v":276644.6,"d":"$276,644.60"},{"v":10856763.729999999,"d":"$10,856,763.73"},{"v":148048.2,"d":"$148,048.20"},{"v":206560,"d":"$206,560.00"},{"v":537056,"d":"$537,056.00"},{"v":56184.32000000001,"d":"$56,184.32"},{"v":471783.04,"d":"$471,783.04"},{"v":281902.34,"d":"$281,902.34"},{"v":2249025.2800000003,"d":"$2,249,025.28"},{"v":1548373.7600000002,"d":"$1,548,373.76"},{"v":4609331.18772,"d":"$4,609,331.19"},{"v":10108264.127720002,"d":"$10,108,264.13"},{"v":1572962.66,"d":"$1,572,962.66"},{"v":8535301.467719998,"d":"$8,535,301.47"},{"v":10198693.747719998,"d":"$10,198,693.75"},{"v":542007.77,"d":"$542,007.77"},{"v":542007.77,"d":"$542,007.77"},{"v":564494.5,"d":"$564,494.50"},{"v":564494.5,"d":"$564,494.50"},{"v":60481.55,"d":"$60,481.55"},{"v":60481.55,"d":"$60,481.55"},{"v":62807.76,"d":"$62,807.76"},{"v":62807.76,"d":"$62,807.76"},{"v":75214.24,"d":"$75,214.24"},{"v":907998.71,"d":"$907,998.71"},{"v":367806.04,"d":"$367,806.04"},{"v":141080.53,"d":"$141,080.53"},{"v":3951682.6799999992,"d":"$3,951,682.68"},{"v":25007140.3,"d":"$25,007,140.30"},{"v":1585164.61,"d":"$1,585,164.61"},{"v":29123.320000000003,"d":"$29,123.32"},{"v":683052.9900000001,"d":"$683,052.99"},{"v":25007140.157719996,"d":"$25,007,140.16"}]
["07016160002","COUNTRY CLUB HILLS SCH DIST 160",1222.79,{"v":19704588.42,"d":"$19,704,588.42"},{"v":14318547.55,"d":"$14,318,547.55"},{"v":0.7266605749281618,"d":"73%"},1,{"v":516655.12,"d":"$516,655.12"},{"v":11541508.91,"d":"$11,541,508.91"},{"v":12058164.03,"d":"$12,058,164.03"},{"v":1.05749,"d":"1.06"},{"v":4747506.75,"d":"$4,747,506.75"},{"v":949501.34,"d":"$949,501.34"},{"v":450563.31,"d":"$450,563.31"},{"v":199840.68,"d":"$199,840.68"},{"v":176118.76,"d":"$176,118.76"},{"v":280545.35,"d":"$280,545.35"},{"v":104780.4,"d":"$104,780.40"},{"v":170239.85,"d":"$170,239.85"},{"v":230742.58,"d":"$230,742.58"},{"v":127836.94,"d":"$127,836.94"},{"v":342313.82,"d":"$342,313.82"},{"v":294732.98,"d":"$294,732.98"},{"v":204279.8,"d":"$204,279.80"},{"v":8279002.56,"d":"$8,279,002.56"},{"v":109196.1,"d":"$109,196.10"},{"v":152848.75,"d":"$152,848.75"},{"v":397406.75,"d":"$397,406.75"},{"v":41574.86,"d":"$41,574.86"},{"v":698213.09,"d":"$698,213.09"},{"v":208762.01,"d":"$208,762.01"},{"v":1664217.19,"d":"$1,664,217.19"},{"v":1145754.23,"d":"$1,145,754.23"},{"v":3596589.1515599997,"d":"$3,596,589.15"},{"v":8014562.13156,"d":"$8,014,562.13"},{"v":1163949.34,"d":"$1,163,949.34"},{"v":6850612.791559999,"d":"$6,850,612.79"},{"v":8081477.571559999,"d":"$8,081,477.57"},{"v":544333.98,"d":"$544,333.98"},{"v":544333.98,"d":"$544,333.98"},{"v":566820.72,"d":"$566,820.72"},{"v":566820.72,"d":"$566,820.72"},{"v":13957.28,"d":"$13,957.28"},{"v":13957.28,"d":"$13,957.28"},{"v":13957.28,"d":"$13,957.28"},{"v":13957.28,"d":"$13,957.28"},{"v":17058.89,"d":"$17,058.89"},{"v":672275.73,"d":"$672,275.73"},{"v":272320.95,"d":"$272,320.95"},{"v":104314.09,"d":"$104,314.09"},{"v":3344108.1799999992,"d":"$3,344,108.18"},{"v":19704588.42,"d":"$19,704,588.42"},{"v":2596237.8400000003,"d":"$2,596,237.84"},{"v":27496.25,"d":"$27,496.25"},{"v":714756.7999999999,"d":"$714,756.80"},{"v":19704588.311559997,"d":"$19,704,588.31"}]
["07016161002","FLOSSMOOR SCHOOL DISTRICT 161",2309.25,{"v":33082755.47,"d":"$33,082,755.47"},{"v":25790890.57,"d":"$25,790,890.57"},{"v":0.779587135460576,"d":"78%"},2,{"v":259357.61,"d":"$259,357.61"},{"v":12740837.450000001,"d":"$12,740,837.45"},{"v":13000195.06,"d":"$13,000,195.06"},{"v":1.05749,"d":"1.06"},{"v":8084329.99,"d":"$8,084,329.99"},{"v":1616865.99,"d":"$1,616,865.99"},{"v":850982.1,"d":"$850,982.10"},{"v":377558.78,"d":"$377,558.78"},{"v":282561.88,"d":"$282,561.88"},{"v":528506.11,"d":"$528,506.11"},{"v":198565.33,"d":"$198,565.33"},{"v":321948.07,"d":"$321,948.07"},{"v":435941.7,"d":"$435,941.70"},{"v":241539.57,"d":"$241,539.57"},{"v":646733.13,"d":"$646,733.13"},{"v":556838.7,"d":"$556,838.70"},{"v":386322.51,"d":"$386,322.51"},{"v":14528693.86,"d":"$14,528,693.86"},{"v":206100,"d":"$206,100.00"},{"v":288656.25,"d":"$288,656.25"},{"v":750506.25,"d":"$750,506.25"},{"v":78514.5,"d":"$78,514.50"},{"v":1318581.75,"d":"$1,318,581.75"},{"v":393014,"d":"$393,014.00"},{"v":3142889.25,"d":"$3,142,889.25"},{"v":2163767.25,"d":"$2,163,767.25"},{"v":5890936.926,"d":"$5,890,936.93"},{"v":14232966.175999999,"d":"$14,232,966.18"},{"v":2198128.89,"d":"$2,198,128.89"},{"v":12034837.285999998,"d":"$12,034,837.29"},{"v":14359336.595999999,"d":"$14,359,336.60"},{"v":435777.35,"d":"$435,777.35"},{"v":435777.35,"d":"$435,777.35"},{"v":453611.65,"d":"$453,611.65"},{"v":453611.65,"d":"$453,611.65"},{"v":81417.47,"d":"$81,417.47"},{"v":81417.47,"d":"$81,417.47"},{"v":85294.49,"d":"$85,294.49"},{"v":85294.49,"d":"$85,294.49"},{"v":102353.39,"d":"$102,353.39"},{"v":1269337.23,"d":"$1,269,337.23"},{"v":514174.62,"d":"$514,174.62"},{"v":196657.71,"d":"$196,657.71"},{"v":4194724.87,"d":"$4,194,724.87"},{"v":33082755.47,"d":"$33,082,755.47"},{"v":668483.7399999999,"d":"$668,483.74"},{"v":62388.15,"d":"$62,388.15"},{"v":843998.3299999998,"d":"$843,998.33"},{"v":33082755.326,"d":"$33,082,755.33"}]
["07016162002","MATTESON ELEM SCHOOL DIST 162",2328.8,{"v":35807766.42,"d":"$35,807,766.42"},{"v":30862582.35,"d":"$30,862,582.35"},{"v":0.8618963268471856,"d":"86%"},2,{"v":93677.18,"d":"$93,677.18"},{"v":18597124.47,"d":"$18,597,124.47"},{"v":18690801.65,"d":"$18,690,801.65"},{"v":1.05749,"d":"1.06"},{"v":8733259.15,"d":"$8,733,259.15"},{"v":1746651.82,"d":"$1,746,651.82"},{"v":858356.29,"d":"$858,356.29"},{"v":381245.88,"d":"$381,245.88"},{"v":315052.24,"d":"$315,052.24"},{"v":526121.87,"d":"$526,121.87"},{"v":199858.91,"d":"$199,858.91"},{"v":324774.93,"d":"$324,774.93"},{"v":440198.95,"d":"$440,198.95"},{"v":243738.24,"d":"$243,738.24"},{"v":653048.88,"d":"$653,048.88"},{"v":562276.58,"d":"$562,276.58"},{"v":389714.61,"d":"$389,714.61"},{"v":15374298.350000001,"d":"$15,374,298.35"},{"v":207582.30000000002,"d":"$207,582.30"},{"v":291100,"d":"$291,100.00"},{"v":756860,"d":"$756,860.00"},{"v":79179.2,"d":"$79,179.20"},{"v":1329744.7999999998,"d":"$1,329,744.80"},{"v":389512.58999999997,"d":"$389,512.59"},{"v":3169496.8,"d":"$3,169,496.80"},{"v":2182085.6,"d":"$2,182,085.60"},{"v":6476045.7252,"d":"$6,476,045.73"},{"v":14881607.0152,"d":"$14,881,607.02"},{"v":2216738.14,"d":"$2,216,738.14"},{"v":12664868.8752,"d":"$12,664,868.88"},{"v":15009047.2852,"d":"$15,009,047.29"},{"v":792463.44,"d":"$792,463.44"},{"v":792463.44,"d":"$792,463.44"},{"v":825805.83,"d":"$825,805.83"},{"v":825805.83,"d":"$825,805.83"},{"v":35668.6,"d":"$35,668.60"},{"v":35668.6,"d":"$35,668.60"},{"v":37219.41,"d":"$37,219.41"},{"v":37219.41,"d":"$37,219.41"},{"v":44973.46,"d":"$44,973.46"},{"v":1280192.89,"d":"$1,280,192.89"},{"v":518571.96,"d":"$518,571.96"},{"v":198367.78,"d":"$198,367.78"},{"v":5424420.65,"d":"$5,424,420.65"},{"v":35807766.42,"d":"$35,807,766.42"},{"v":2637918.0799999996,"d":"$2,637,918.08"},{"v":6340.530000000001,"d":"$6,340.53"},{"v":1198516.88,"d":"$1,198,516.88"},{"v":35807766.2852,"d":"$35,807,766.29"}]
["07016163002","PARK FOREST SCHOOL DIST 163",1481.22,{"v":24302859.22,"d":"$24,302,859.22"},{"v":20441864.5,"d":"$20,441,864.50"},{"v":0.841130021572828,"d":"84%"},2,{"v":118847.68,"d":"$118,847.68"},{"v":16976066.69,"d":"$16,976,066.69"},{"v":17094914.37,"d":"$17,094,914.37"},{"v":1.05749,"d":"1.06"},{"v":5817502.44,"d":"$5,817,502.44"},{"v":1163500.48,"d":"$1,163,500.48"},{"v":545690.43,"d":"$545,690.43"},{"v":241873.59,"d":"$241,873.59"},{"v":218727.21,"d":"$218,727.21"},{"v":336177.57,"d":"$336,177.57"},{"v":127418.14,"d":"$127,418.14"},{"v":206360.86,"d":"$206,360.86"},{"v":279275.15,"d":"$279,275.15"},{"v":154849.17,"d":"$154,849.17"},{"v":414313.41,"d":"$414,313.41"},{"v":356724.79,"d":"$356,724.79"},{"v":247623.3,"d":"$247,623.30"},{"v":10110036.54,"d":"$10,110,036.54"},{"v":132297.3,"d":"$132,297.30"},{"v":185152.5,"d":"$185,152.50"},{"v":481396.5,"d":"$481,396.50"},{"v":50361.479999999996,"d":"$50,361.48"},{"v":845776.62,"d":"$845,776.62"},{"v":250044.09000000003,"d":"$250,044.09"},{"v":2015940.42,"d":"$2,015,940.42"},{"v":1387903.1400000001,"d":"$1,387,903.14"},{"v":4452011.50308,"d":"$4,452,011.50"},{"v":9800883.55308,"d":"$9,800,883.55"},{"v":1409943.69,"d":"$1,409,943.69"},{"v":8390939.86308,"d":"$8,390,939.86"},{"v":9881941.21308,"d":"$9,881,941.21"},{"v":683906.8,"d":"$683,906.80"},{"v":683906.8,"d":"$683,906.80"},{"v":712596.77,"d":"$712,596.77"},{"v":712596.77,"d":"$712,596.77"},{"v":46524.27,"d":"$46,524.27"},{"v":46524.27,"d":"$46,524.27"},{"v":48075.08,"d":"$48,075.08"},{"v":48075.08,"d":"$48,075.08"},{"v":58155.34,"d":"$58,155.34"},{"v":814174.76,"d":"$814,174.76"},{"v":329800.46,"d":"$329,800.46"},{"v":126544.96,"d":"$126,544.96"},{"v":4310881.36,"d":"$4,310,881.36"},{"v":24302859.22,"d":"$24,302,859.22"},{"v":3906904.94,"d":"$3,906,904.94"},{"v":6277.19,"d":"$6,277.19"},{"v":924368.69,"d":"$924,368.69"},{"v":24302859.11308,"d":"$24,302,859.11"}]
["07016167002","BROOKWOOD SCHOOL DIST 167",1068.14,{"v":17406262.24,"d":"$17,406,262.24"},{"v":13670414.06,"d":"$13,670,414.06"},{"v":0.7853733255026498,"d":"79%"},2,{"v":148510.49,"d":"$148,510.49"},{"v":9208649.7,"d":"$9,208,649.70"},{"v":9357160.19,"d":"$9,357,160.19"},{"v":1.05749,"d":"1.06"},{"v":4145035.01,"d":"$4,145,035.01"},{"v":829006.99,"d":"$829,006.99"},{"v":393044.59,"d":"$393,044.59"},{"v":174031,"d":"$174,031.00"},{"v":156435.05,"d":"$156,435.05"},{"v":240013.3,"d":"$240,013.30"},{"v":91844.55,"d":"$91,844.55"},{"v":148567.25,"d":"$148,567.25"},{"v":200941.88,"d":"$200,941.88"},{"v":111503.96,"d":"$111,503.96"},{"v":298103.55,"d":"$298,103.55"},{"v":256667.83,"d":"$256,667.83"},{"v":178273.7,"d":"$178,273.70"},{"v":7223468.659999999,"d":"$7,223,468.66"},{"v":95480.1,"d":"$95,480.10"},{"v":133517.5,"d":"$133,517.50"},{"v":347145.5,"d":"$347,145.50"},{"v":36316.759999999995,"d":"$36,316.76"},{"v":609907.9400000001,"d":"$609,907.94"},{"v":178366.01,"d":"$178,366.01"},{"v":1453738.54,"d":"$1,453,738.54"},{"v":1000847.1799999999,"d":"$1,000,847.18"},{"v":3184829.81796,"d":"$3,184,829.82"},{"v":7040149.347960001,"d":"$7,040,149.35"},{"v":1016741.1,"d":"$1,016,741.10"},{"v":6023408.24796,"d":"$6,023,408.25"},{"v":7098601.78796,"d":"$7,098,601.79"},{"v":435777.35,"d":"$435,777.35"},{"v":435777.35,"d":"$435,777.35"},{"v":454387.06,"d":"$454,387.06"},{"v":454387.06,"d":"$454,387.06"},{"v":72888.02,"d":"$72,888.02"},{"v":72888.02,"d":"$72,888.02"},{"v":75989.64,"d":"$75,989.64"},{"v":75989.64,"d":"$75,989.64"},{"v":90722.33,"d":"$90,722.33"},{"v":586981.23,"d":"$586,981.23"},{"v":237770.42,"d":"$237,770.42"},{"v":90633.55,"d":"$90,633.55"},{"v":3084191.6699999995,"d":"$3,084,191.67"},{"v":17406262.24,"d":"$17,406,262.24"},{"v":2151904.66,"d":"$2,151,904.66"},{"v":103759.5,"d":"$103,759.50"},{"v":548279.61,"d":"$548,279.61"},{"v":17406262.11796,"d":"$17,406,262.12"}]
["07016168004","COMM CONS SCHOOL DIST 168",1171.8,{"v":20037388.17,"d":"$20,037,388.17"},{"v":15520867.579999998,"d":"$15,520,867.58"},{"v":0.77459534388009,"d":"77%"},2,{"v":206841.63,"d":"$206,841.63"},{"v":14140771.94,"d":"$14,140,771.94"},{"v":14347613.57,"d":"$14,347,613.57"},{"v":1.05749,"d":"1.06"},{"v":4775528.69,"d":"$4,775,528.69"},{"v":955105.73,"d":"$955,105.73"},{"v":431390.4,"d":"$431,390.40"},{"v":190991.65,"d":"$190,991.65"},{"v":183053.03,"d":"$183,053.03"},{"v":263855.68,"d":"$263,855.68"},{"v":100252.85,"d":"$100,252.85"},{"v":163329.75,"d":"$163,329.75"},{"v":220525.19,"d":"$220,525.19"},{"v":122497.31,"d":"$122,497.31"},{"v":327156.01,"d":"$327,156.01"},{"v":281682.07,"d":"$281,682.07"},{"v":195988,"d":"$195,988.00"},{"v":8211356.36,"d":"$8,211,356.36"},{"v":104750.1,"d":"$104,750.10"},{"v":146475,"d":"$146,475.00"},{"v":380835,"d":"$380,835.00"},{"v":39841.2,"d":"$39,841.20"},{"v":669097.8,"d":"$669,097.80"},{"v":196139.01,"d":"$196,139.01"},{"v":1594819.8,"d":"$1,594,819.80"},{"v":1097976.6,"d":"$1,097,976.60"},{"v":3699433.5762,"d":"$3,699,433.58"},{"v":7929368.0862,"d":"$7,929,368.09"},{"v":1115412.98,"d":"$1,115,412.98"},{"v":6813955.1062,"d":"$6,813,955.11"},{"v":7993493.176200001,"d":"$7,993,493.18"},{"v":632730.1,"d":"$632,730.10"},{"v":632730.1,"d":"$632,730.10"},{"v":659093.86,"d":"$659,093.86"},{"v":659093.86,"d":"$659,093.86"},{"v":45748.86,"d":"$45,748.86"},{"v":45748.86,"d":"$45,748.86"},{"v":47299.67,"d":"$47,299.67"},{"v":47299.67,"d":"$47,299.67"},{"v":57379.93,"d":"$57,379.93"},{"v":644361.17,"d":"$644,361.17"},{"v":261013.5,"d":"$261,013.50"},{"v":100038.92,"d":"$100,038.92"},{"v":3832538.4999999995,"d":"$3,832,538.50"},{"v":20037388.17,"d":"$20,037,388.17"},{"v":4271392.99,"d":"$4,271,392.99"},{"v":23789.670000000002,"d":"$23,789.67"},{"v":632878.69,"d":"$632,878.69"},{"v":20037388.0362,"d":"$20,037,388.04"}]
["07016169002","FORD HEIGHTS SCHOOL DISTRICT 169",395.75,{"v":5925577.68,"d":"$5,925,577.68"},{"v":8773904.96,"d":"$8,773,904.96"},{"v":1.480683476585527,"d":"148%"},4,{"v":377.44,"d":"$377.44"},{"v":2767578.0000000005,"d":"$2,767,578.00"},{"v":2767955.4400000004,"d":"$2,767,955.44"},{"v":1.05749,"d":"1.06"},{"v":1510972.55,"d":"$1,510,972.55"},{"v":302194.5,"d":"$302,194.50"},{"v":145271.64,"d":"$145,271.64"},{"v":64155.49,"d":"$64,155.49"},{"v":53285.9,"d":"$53,285.90"},{"v":85832.57,"d":"$85,832.57"},{"v":33633.21,"d":"$33,633.21"},{"v":54966.74,"d":"$54,966.74"},{"v":74076.03,"d":"$74,076.03"},{"v":41146.53,"d":"$41,146.53"},{"v":109894.1,"d":"$109,894.10"},{"v":94619.07,"d":"$94,619.07"},{"v":65957.5,"d":"$65,957.50"},{"v":2636005.8299999996,"d":"$2,636,005.83"},{"v":35460,"d":"$35,460.00"},{"v":49468.75,"d":"$49,468.75"},{"v":128618.75,"d":"$128,618.75"},{"v":13455.5,"d":"$13,455.50"},{"v":112986.62,"d":"$112,986.62"},{"v":63510,"d":"$63,510.00"},{"v":538615.75,"d":"$538,615.75"},{"v":370817.75,"d":"$370,817.75"},{"v":1090851.1679999998,"d":"$1,090,851.17"},{"v":2403784.2879999997,"d":"$2,403,784.29"},{"v":376706.51,"d":"$376,706.51"},{"v":2027077.7779999997,"d":"$2,027,077.78"},{"v":2425441.138,"d":"$2,425,441.14"},{"v":128717.15,"d":"$128,717.15"},{"v":128717.15,"d":"$128,717.15"},{"v":134144.98,"d":"$134,144.98"},{"v":134144.98,"d":"$134,144.98"},{"v":0,"d":"$0.00"},{"v":0,"d":"$0.00"},{"v":0,"d":"$0.00"},{"v":0,"d":"$0.00"},{"v":0,"d":"$0.00"},{"v":217113.27,"d":"$217,113.27"},{"v":87946.79,"d":"$87,946.79"},{"v":33346.3,"d":"$33,346.30"},{"v":864130.6200000001,"d":"$864,130.62"},{"v":5925577.68,"d":"$5,925,577.68"},{"v":1042048.34,"d":"$1,042,048.34"},{"v":0,"d":"$0.00"},{"v":144787.44,"d":"$144,787.44"},{"v":5925577.5879999995,"d":"$5,925,577.59"}]
["07016170002","CHICAGO HEIGHTS SCHOOL DIST 170",2649.81,{"v":47114510.98,"d":"$47,114,510.98"},{"v":37536022.13,"d":"$37,536,022.13"},{"v":0.7966976914168536,"d":"80%"},2,{"v":383131.72,"d":"$383,131.72"},{"v":27775341.169999994,"d":"$27,775,341.17"},{"v":28158472.889999993,"d":"$28,158,472.89"},{"v":1.05749,"d":"1.06"},{"v":10513389.83,"d":"$10,513,389.83"},{"v":2102677.96,"d":"$2,102,677.96"},{"v":976343.42,"d":"$976,343.42"},{"v":433602.66,"d":"$433,602.66"},{"v":433831.55,"d":"$433,831.55"},{"v":601622.74,"d":"$601,622.74"},{"v":228317.79,"d":"$228,317.79"},{"v":369690.61,"d":"$369,690.61"},{"v":500651.8,"d":"$500,651.80"},{"v":277346.48,"d":"$277,346.48"},{"v":742732.58,"d":"$742,732.58"},{"v":639494.44,"d":"$639,494.44"},{"v":443611.31,"d":"$443,611.31"},{"v":18263313.169999998,"d":"$18,263,313.17"},{"v":236893.49999999997,"d":"$236,893.50"},{"v":331226.24999999994,"d":"$331,226.25"},{"v":861188.25,"d":"$861,188.25"},{"v":90093.54,"d":"$90,093.54"},{"v":1513041.51,"d":"$1,513,041.51"},{"v":447334.58999999997,"d":"$447,334.59"},{"v":3606391.4099999997,"d":"$3,606,391.41"},{"v":2482871.9699999997,"d":"$2,482,871.97"},{"v":8758946.193839999,"d":"$8,758,946.19"},{"v":18327987.21384,"d":"$18,327,987.21"},{"v":2522301.14,"d":"$2,522,301.14"},{"v":15805686.07384,"d":"$15,805,686.07"},{"v":18472994.30384,"d":"$18,472,994.30"},{"v":1280968.3,"d":"$1,280,968.30"},{"v":1280968.3,"d":"$1,280,968.30"},{"v":1334471.21,"d":"$1,334,471.21"},{"v":1334471.21,"d":"$1,334,471.21"},{"v":538906.15,"d":"$538,906.15"},{"v":538906.15,"d":"$538,906.15"},{"v":561392.88,"d":"$561,392.88"},{"v":561392.88,"d":"$561,392.88"},{"v":673826.54,"d":"$673,826.54"},{"v":1456985.13,"d":"$1,456,985.13"},{"v":590185.78,"d":"$590,185.78"},{"v":225728.85,"d":"$225,728.85"},{"v":10378203.379999999,"d":"$10,378,203.38"},{"v":47114510.98,"d":"$47,114,510.98"},{"v":10223315.84,"d":"$10,223,315.84"},{"v":603395.5299999999,"d":"$603,395.53"},{"v":1714142.0499999998,"d":"$1,714,142.05"},{"v":47114510.85383999,"d":"$47,114,510.85"}]
["07016171002","SUNNYBROOK SCHOOL DISTRICT 171",984.13,{"v":15481470.24,"d":"$15,481,470.24"},{"v":10343501.07,"d":"$10,343,501.07"},{"v":0.6681213676511902,"d":"67%"},1,{"v":712088.37,"d":"$712,088.37"},{"v":6827571.34,"d":"$6,827,571.34"},{"v":7539659.71,"d":"$7,539,659.71"},{"v":1.05749,"d":"1.06"},{"v":3651701.37,"d":"$3,651,701.37"},{"v":730340.27,"d":"$730,340.27"},{"v":362072.97,"d":"$362,072.97"},{"v":160757.45,"d":"$160,757.45"},{"v":137014.28,"d":"$137,014.28"},{"v":224913.12,"d":"$224,913.12"},{"v":84083.03,"d":"$84,083.03"},{"v":136945.71,"d":"$136,945.71"},{"v":185615.8,"d":"$185,615.80"},{"v":102709.28,"d":"$102,709.28"},{"v":275366.84,"d":"$275,366.84"},{"v":237091.47,"d":"$237,091.47"},{"v":164328.4,"d":"$164,328.40"},{"v":6452939.990000001,"d":"$6,452,939.99"},{"v":87822,"d":"$87,822.00"},{"v":123016.25,"d":"$123,016.25"},{"v":319842.25,"d":"$319,842.25"},{"v":33460.42,"d":"$33,460.42"},{"v":561938.23,"d":"$561,938.23"},{"v":167399.91999999998,"d":"$167,399.92"},{"v":1339400.93,"d":"$1,339,400.93"},{"v":922129.8099999999,"d":"$922,129.81"},{"v":2812444.9873200003,"d":"$2,812,444.99"},{"v":6367454.797320001,"d":"$6,367,454.80"},{"v":936773.66,"d":"$936,773.66"},{"v":5430681.137320001,"d":"$5,430,681.14"},{"v":6421309.90732,"d":"$6,421,309.91"},{"v":321017.48,"d":"$321,017.48"},{"v":321017.48,"d":"$321,017.48"},{"v":334974.76,"d":"$334,974.76"},{"v":334974.76,"d":"$334,974.76"},{"v":84519.09,"d":"$84,519.09"},{"v":84519.09,"d":"$84,519.09"},{"v":88396.11,"d":"$88,396.11"},{"v":88396.11,"d":"$88,396.11"},{"v":106230.42,"d":"$106,230.42"},{"v":540456.96,"d":"$540,456.96"},{"v":218924.68,"d":"$218,924.68"},{"v":83793.28,"d":"$83,793.28"},{"v":2607220.22,"d":"$2,607,220.22"},{"v":15481470.24,"d":"$15,481,470.24"},{"v":1640988.4700000002,"d":"$1,640,988.47"},{"v":116433.87000000001,"d":"$116,433.87"},{"v":522328.04,"d":"$522,328.04"},{"v":15481470.117320003,"d":"$15,481,470.12"}]
["07016172002","SANDRIDGE SCHOOL DISTRICT 172",406,{"v":6452055.78,"d":"$6,452,055.78"},{"v":4002609.3,"d":"$4,002,609.30"},{"v":0.6203618562020553,"d":"62%"},1,{"v":407206.44,"d":"$407,206.44"},{"v":2893264.2699999996,"d":"$2,893,264.27"},{"v":3300470.7099999995,"d":"$3,300,470.71"},{"v":1.05749,"d":"1.06"},{"v":1555217.72,"d":"$1,555,217.72"},{"v":311043.54,"d":"$311,043.54"},{"v":148958.73,"d":"$148,958.73"},{"v":65630.33,"d":"$65,630.33"},{"v":57547.07,"d":"$57,547.07"},{"v":89806.3,"d":"$89,806.30"},{"v":34280,"d":"$34,280.00"},{"v":56537.22,"d":"$56,537.22"},{"v":75778.92,"d":"$75,778.92"},{"v":42088.82,"d":"$42,088.82"},{"v":112420.4,"d":"$112,420.40"},{"v":96794.22,"d":"$96,794.22"},{"v":67842,"d":"$67,842.00"},{"v":2713945.27,"d":"$2,713,945.27"},{"v":36225,"d":"$36,225.00"},{"v":50750,"d":"$50,750.00"},{"v":131950,"d":"$131,950.00"},{"v":13804,"d":"$13,804.00"},{"v":231826,"d":"$231,826.00"},{"v":66866.5,"d":"$66,866.50"},{"v":552566,"d":"$552,566.00"},{"v":380422,"d":"$380,422.00"},{"v":1174939.5929999999,"d":"$1,174,939.59"},{"v":2639349.093,"d":"$2,639,349.09"},{"v":386463.28,"d":"$386,463.28"},{"v":2252885.813,"d":"$2,252,885.81"},{"v":2661566.863,"d":"$2,661,566.86"},{"v":153530.09,"d":"$153,530.09"},{"v":153530.09,"d":"$153,530.09"},{"v":159733.33,"d":"$159,733.33"},{"v":159733.33,"d":"$159,733.33"},{"v":19385.11,"d":"$19,385.11"},{"v":19385.11,"d":"$19,385.11"},{"v":20160.51,"d":"$20,160.51"},{"v":20160.51,"d":"$20,160.51"},{"v":24037.54,"d":"$24,037.54"},{"v":222541.1,"d":"$222,541.10"},{"v":90145.46,"d":"$90,145.46"},{"v":34201.34,"d":"$34,201.34"},{"v":1076543.52,"d":"$1,076,543.52"},{"v":6452055.78,"d":"$6,452,055.78"},{"v":1131595.12,"d":"$1,131,595.12"},{"v":28324.980000000003,"d":"$28,324.98"},{"v":174630.82,"d":"$174,630.82"},{"v":6452055.652999999,"d":"$6,452,055.65"}]
["07016194002","STEGER SCHOOL DISTRICT 194",1421.7,{"v":22805989.3,"d":"$22,805,989.30"},{"v":16121762.940000001,"d":"$16,121,762.94"},{"v":0.7069091688120717,"d":"71%"},1,{"v":737039.59,"d":"$737,039.59"},{"v":9852842.760000002,"d":"$9,852,842.76"},{"v":10589882.350000001,"d":"$10,589,882.35"},{"v":1.05749,"d":"1.06"},{"v":5435519.14,"d":"$5,435,519.14"},{"v":1087103.82,"d":"$1,087,103.82"},{"v":522830.42,"d":"$522,830.42"},{"v":231549.72,"d":"$231,549.72"},{"v":203790.21,"d":"$203,790.21"},{"v":318693.15,"d":"$318,693.15"},{"v":121597.01,"d":"$121,597.01"},{"v":197880.27,"d":"$197,880.27"},{"v":267354.87,"d":"$267,354.87"},{"v":148253.16,"d":"$148,253.16"},{"v":396629.3,"d":"$396,629.30"},{"v":341498.73,"d":"$341,498.73"},{"v":237447,"d":"$237,447.00"},{"v":9510146.8,"d":"$9,510,146.80"},{"v":126926.1,"d":"$126,926.10"},{"v":177712.5,"d":"$177,712.50"},{"v":462052.5,"d":"$462,052.50"},{"v":48337.8,"d":"$48,337.80"},{"v":811790.7,"d":"$811,790.70"},{"v":236549.01,"d":"$236,549.01"},{"v":1934933.7000000002,"d":"$1,934,933.70"},{"v":1332132.9,"d":"$1,332,132.90"},{"v":4160263.0608,"d":"$4,160,263.06"},{"v":9290698.270800002,"d":"$9,290,698.27"},{"v":1353287.79,"d":"$1,353,287.79"},{"v":7937410.4808,"d":"$7,937,410.48"},{"v":9368498.7808,"d":"$9,368,498.78"},{"v":535029.13,"d":"$535,029.13"},{"v":535029.13,"d":"$535,029.13"},{"v":557515.86,"d":"$557,515.86"},{"v":557515.86,"d":"$557,515.86"},{"v":97700.97,"d":"$97,700.97"},{"v":97700.97,"d":"$97,700.97"},{"v":102353.39,"d":"$102,353.39"},{"v":102353.39,"d":"$102,353.39"},{"v":122513.91,"d":"$122,513.91"},{"v":781607.77,"d":"$781,607.77"},{"v":316608.44,"d":"$316,608.44"},{"v":121414.76,"d":"$121,414.76"},{"v":3927343.5800000005,"d":"$3,927,343.58"},{"v":22805989.3,"d":"$22,805,989.30"},{"v":2432433.88,"d":"$2,432,433.88"},{"v":142638.44,"d":"$142,638.44"},{"v":699242.4500000001,"d":"$699,242.45"},{"v":22805989.160800003,"d":"$22,805,989.16"}]
["07016205017","THORNTON TWP H S DIST 205",4770.49,{"v":87340028.01,"d":"$87,340,028.01"},{"v":83545146.52,"d":"$83,545,146.52"},{"v":0.9565504892033523,"d":"96%"},3,{"v":99254.15,"d":"$99,254.15"},{"v":49960856.800000004,"d":"$49,960,856.80"},{"v":50060110.95,"d":"$50,060,110.95"},{"v":1.05749,"d":"1.06"},{"v":19359248.67,"d":"$19,359,248.67"},{"v":6452437.58,"d":"$6,452,437.58"},{"v":2022861.25,"d":"$2,022,861.25"},{"v":674287.08,"d":"$674,287.08"},{"v":714580.36,"d":"$714,580.36"},{"v":1728354.04,"d":"$1,728,354.04"},{"v":411360.09,"d":"$411,360.09"},{"v":749118.19,"d":"$749,118.19"},{"v":676901.67,"d":"$676,901.67"},{"v":499412.13,"d":"$499,412.13"},{"v":1004204.77,"d":"$1,004,204.77"},{"v":864622.59,"d":"$864,622.59"},{"v":898906.52,"d":"$898,906.52"},{"v":36056294.940000005,"d":"$36,056,294.94"},{"v":429344.1,"d":"$429,344.10"},{"v":596311.25,"d":"$596,311.25"},{"v":1550409.25,"d":"$1,550,409.25"},{"v":162196.66,"d":"$162,196.66"},{"v":2723949.79,"d":"$2,723,949.79"},{"v":4097850.9099999997,"d":"$4,097,850.91"},{"v":6492636.89,"d":"$6,492,636.89"},{"v":4469949.13,"d":"$4,469,949.13"},{"v":15611989.85436,"d":"$15,611,989.85"},{"v":36134637.83436,"d":"$36,134,637.83"},{"v":4540934.02,"d":"$4,540,934.02"},{"v":31593703.814359996,"d":"$31,593,703.81"},{"v":36395696.124359995,"d":"$36,395,696.12"},{"v":2322336.6,"d":"$2,322,336.60"},{"v":2322336.6,"d":"$2,322,336.60"},{"v":2419262.17,"d":"$2,419,262.17"},{"v":2419262.17,"d":"$2,419,262.17"},{"v":245803.23,"d":"$245,803.23"},{"v":245803.23,"d":"$245,803.23"},{"v":255883.49,"d":"$255,883.49"},{"v":255883.49,"d":"$255,883.49"},{"v":307835.6,"d":"$307,835.60"},{"v":2623193.56,"d":"$2,623,193.56"},{"v":1062585.68,"d":"$1,062,585.68"},{"v":407850.99,"d":"$407,850.99"},{"v":14888036.81,"d":"$14,888,036.81"},{"v":87340028.01,"d":"$87,340,028.01"},{"v":13380714.239999998,"d":"$13,380,714.24"},{"v":84453.09000000001,"d":"$84,453.09"},{"v":2465282.3400000003,"d":"$2,465,282.34"},{"v":87340027.87436,"d":"$87,340,027.87"}]
["07016206017","BLOOM TWP HIGH SCH DIST 206",2930,{"v":53598290.9,"d":"$53,598,290.90"},{"v":44489572.14,"d":"$44,489,572.14"},{"v":0.8300557982903892,"d":"83%"},2,{"v":288286.7,"d":"$288,286.70"},{"v":23816537.13,"d":"$23,816,537.13"},{"v":24104823.83,"d":"$24,104,823.83"},{"v":1.05749,"d":"1.06"},{"v":11717328.38,"d":"$11,717,328.38"},{"v":3905385.54,"d":"$3,905,385.54"},{"v":1242554.18,"d":"$1,242,554.18"},{"v":413902,"d":"$413,902.00"},{"v":438478.37,"d":"$438,478.37"},{"v":1061651.43,"d":"$1,061,651.43"},{"v":252249.11,"d":"$252,249.11"},{"v":460150.17,"d":"$460,150.17"},{"v":415506.94,"d":"$415,506.94"},{"v":306557.38,"d":"$306,557.38"},{"v":616417.51,"d":"$616,417.51"},{"v":530736.88,"d":"$530,736.88"},{"v":552158.51,"d":"$552,158.51"},{"v":21913076.400000006,"d":"$21,913,076.40"},{"v":263700,"d":"$263,700.00"},{"v":366250,"d":"$366,250.00"},{"v":952250,"d":"$952,250.00"},{"v":99620,"d":"$99,620.00"},{"v":1673030,"d":"$1,673,030.00"},{"v":2516870,"d":"$2,516,870.00"},{"v":3987730,"d":"$3,987,730.00"},{"v":2745410,"d":"$2,745,410.00"},{"v":9578846.46,"d":"$9,578,846.46"},{"v":22183706.46,"d":"$22,183,706.46"},{"v":2789008.4,"d":"$2,789,008.40"},{"v":19394698.060000002,"d":"$19,394,698.06"},{"v":22344046.550000004,"d":"$22,344,046.55"},{"v":1299578.01,"d":"$1,299,578.01"},{"v":1299578.01,"d":"$1,299,578.01"},{"v":1353080.92,"d":"$1,353,080.92"},{"v":1353080.92,"d":"$1,353,080.92"},{"v":285348.87,"d":"$285,348.87"},{"v":285348.87,"d":"$285,348.87"},{"v":296979.93,"d":"$296,979.93"},{"v":296979.93,"d":"$296,979.93"},{"v":356686.08,"d":"$356,686.08"},{"v":1611290.63,"d":"$1,611,290.63"},{"v":652690.82,"d":"$652,690.82"},{"v":250524.82,"d":"$250,524.82"},{"v":9341167.809999999,"d":"$9,341,167.81"},{"v":53598290.9,"d":"$53,598,290.90"},{"v":8418674.28,"d":"$8,418,674.28"},{"v":175799.13,"d":"$175,799.13"},{"v":1245776.4899999998,"d":"$1,245,776.49"},{"v":53598290.760000005,"d":"$53,598,290.76"}]
["07016210017","LEMONT TWP H S DIST 210",1361.65,{"v":19964317.79,"d":"$19,964,317.79"},{"v":22225987.230000004,"d":"$22,225,987.23"},{"v":1.1132855860034878,"d":"111%"},4,{"v":1271.69,"d":"$1,271.69"},{"v":887853.35,"d":"$887,853.35"},{"v":889125.0399999999,"d":"$889,125.04"},{"v":1.05749,"d":"1.06"},{"v":4764113.9,"d":"$4,764,113.90"},{"v":1587879.15,"d":"$1,587,879.15"},{"v":576748.7,"d":"$576,748.70"},{"v":191684.12,"d":"$191,684.12"},{"v":151339.77,"d":"$151,339.77"},{"v":492780.18,"d":"$492,780.18"},{"v":117069.46,"d":"$117,069.46"},{"v":213585.06,"d":"$213,585.06"},{"v":192427.39,"d":"$192,427.39"},{"v":142285.34,"d":"$142,285.34"},{"v":285472.04,"d":"$285,472.04"},{"v":245792.08,"d":"$245,792.08"},{"v":256292,"d":"$256,292.00"},{"v":9217469.19,"d":"$9,217,469.19"},{"v":122548.50000000001,"d":"$122,548.50"},{"v":170206.25,"d":"$170,206.25"},{"v":442536.25000000006,"d":"$442,536.25"},{"v":46296.100000000006,"d":"$46,296.10"},{"v":388751.07,"d":"$388,751.07"},{"v":1169657.35,"d":"$1,169,657.35"},{"v":1853205.6500000001,"d":"$1,853,205.65"},{"v":1275866.05,"d":"$1,275,866.05"},{"v":3456387.4955999996,"d":"$3,456,387.50"},{"v":8925454.715599999,"d":"$8,925,454.72"},{"v":1296127.4,"d":"$1,296,127.40"},{"v":7629327.3156,"d":"$7,629,327.32"},{"v":8999969.0756,"d":"$8,999,969.08"},{"v":105455.01,"d":"$105,455.01"},{"v":105455.01,"d":"$105,455.01"},{"v":110107.44,"d":"$110,107.44"},{"v":110107.44,"d":"$110,107.44"},{"v":27914.56,"d":"$27,914.56"},{"v":27914.56,"d":"$27,914.56"},{"v":28689.96,"d":"$28,689.96"},{"v":28689.96,"d":"$28,689.96"},{"v":34893.2,"d":"$34,893.20"},{"v":748265.38,"d":"$748,265.38"},{"v":303102.33,"d":"$303,102.33"},{"v":116284.56,"d":"$116,284.56"},{"v":1746879.4100000001,"d":"$1,746,879.41"},{"v":19964317.79,"d":"$19,964,317.79"},{"v":67734.28,"d":"$67,734.28"},{"v":4874.37,"d":"$4,874.37"},{"v":319425.37,"d":"$319,425.37"},{"v":19964317.6756,"d":"$19,964,317.68"}]
["07016215017","THORNTON FRACTIONAL T H S D 215",3359.14,{"v":57453131.26,"d":"$57,453,131.26"},{"v":43853045.72,"d":"$43,853,045.72"},{"v":0.7632838238449738,"d":"76%"},1,{"v":781373.05,"d":"$781,373.05"},{"v":32362513.69,"d":"$32,362,513.69"},{"v":33143886.740000002,"d":"$33,143,886.74"},{"v":1.05749,"d":"1.06"},{"v":12997201.61,"d":"$12,997,201.61"},{"v":4331967.29,"d":"$4,331,967.29"},{"v":1424060.39,"d":"$1,424,060.39"},{"v":474121.35,"d":"$474,121.35"},{"v":456614.86,"d":"$456,614.86"},{"v":1216551.08,"d":"$1,216,551.08"},{"v":289116.29,"d":"$289,116.29"},{"v":527366.64,"d":"$527,366.64"},{"v":475959.79,"d":"$475,959.79"},{"v":351473.06,"d":"$351,473.06"},{"v":706101.21,"d":"$706,101.21"},{"v":607954.75,"d":"$607,954.75"},{"v":632815.11,"d":"$632,815.11"},{"v":24491303.429999996,"d":"$24,491,303.43"},{"v":302322.6,"d":"$302,322.60"},{"v":419892.5,"d":"$419,892.50"},{"v":1091720.5,"d":"$1,091,720.50"},{"v":114210.76,"d":"$114,210.76"},{"v":1918068.94,"d":"$1,918,068.94"},{"v":2885501.26,"d":"$2,885,501.26"},{"v":4571789.54,"d":"$4,571,789.54"},{"v":3147514.1799999997,"d":"$3,147,514.18"},{"v":10109023.48596,"d":"$10,109,023.49"},{"v":24560043.76596,"d":"$24,560,043.77"},{"v":3197498.18,"d":"$3,197,498.18"},{"v":21362545.58596,"d":"$21,362,545.59"},{"v":24743867.935960002,"d":"$24,743,867.94"},{"v":1170860.85,"d":"$1,170,860.85"},{"v":1170860.85,"d":"$1,170,860.85"},{"v":1219711.34,"d":"$1,219,711.34"},{"v":1219711.34,"d":"$1,219,711.34"},{"v":103904.2,"d":"$103,904.20"},{"v":103904.2,"d":"$103,904.20"},{"v":108556.63,"d":"$108,556.63"},{"v":108556.63,"d":"$108,556.63"},{"v":130267.96,"d":"$130,267.96"},{"v":1847013.62,"d":"$1,847,013.62"},{"v":748175.9,"d":"$748,175.90"},{"v":286436.23,"d":"$286,436.23"},{"v":8217959.75,"d":"$8,217,959.75"},{"v":57453131.26,"d":"$57,453,131.26"},{"v":4821164.7,"d":"$4,821,164.70"},{"v":80136.97,"d":"$80,136.97"},{"v":1575985.0099999995,"d":"$1,575,985.01"},{"v":57453131.11596,"d":"$57,453,131.12"}]
["07016217016","ARGO COMM H S DIST 217",1933.98,{"v":34740427.05,"d":"$34,740,427.05"},{"v":25701382.61,"d":"$25,701,382.61"},{"v":0.739811936479923,"d":"74%"},1,{"v":726647.14,"d":"$726,647.14"},{"v":12907729.27,"d":"$12,907,729.27"},{"v":13634376.41,"d":"$13,634,376.41"},{"v":1.05749,"d":"1.06"},{"v":7603753.09,"d":"$7,603,753.09"},{"v":2534330.9,"d":"$2,534,330.90"},{"v":819322.41,"d":"$819,322.41"},{"v":273107.47,"d":"$273,107.47"},{"v":282133.38,"d":"$282,133.38"},{"v":700218.9,"d":"$700,218.90"},{"v":166225.7,"d":"$166,225.70"},{"v":303416.42,"d":"$303,416.42"},{"v":274166.46,"d":"$274,166.46"},{"v":202277.61,"d":"$202,277.61"},{"v":406734.51,"d":"$406,734.51"},{"v":350199.34,"d":"$350,199.34"},{"v":364085.41,"d":"$364,085.41"},{"v":14279971.600000001,"d":"$14,279,971.60"},{"v":174058.2,"d":"$174,058.20"},{"v":241747.50000000003,"d":"$241,747.50"},{"v":628543.5000000001,"d":"$628,543.50"},{"v":65755.32,"d":"$65,755.32"},{"v":1104302.58,"d":"$1,104,302.58"},{"v":1661288.8200000003,"d":"$1,661,288.82"},{"v":2632146.7800000003,"d":"$2,632,146.78"},{"v":1812139.2600000002,"d":"$1,812,139.26"},{"v":6183300.48672,"d":"$6,183,300.49"},{"v":14503282.44672,"d":"$14,503,282.45"},{"v":1840916.88,"d":"$1,840,916.88"},{"v":12662365.566720001,"d":"$12,662,365.57"},{"v":14609116.75672,"d":"$14,609,116.76"},{"v":762222.66,"d":"$762,222.66"},{"v":762222.66,"d":"$762,222.66"},{"v":794014.25,"d":"$794,014.25"},{"v":794014.25,"d":"$794,014.25"},{"v":202380.58,"d":"$202,380.58"},{"v":202380.58,"d":"$202,380.58"},{"v":210910.03,"d":"$210,910.03"},{"v":210910.03,"d":"$210,910.03"},{"v":253557.28,"d":"$253,557.28"},{"v":1063079.62,"d":"$1,063,079.62"},{"v":430625.17,"d":"$430,625.17"},{"v":165021.47,"d":"$165,021.47"},{"v":5851338.579999999,"d":"$5,851,338.58"},{"v":34740427.05,"d":"$34,740,427.05"},{"v":3054700.31,"d":"$3,054,700.31"},{"v":169163.88,"d":"$169,163.88"},{"v":915544.29,"d":"$915,544.29"},{"v":34740426.93672,"d":"$34,740,426.94"}]
["07016218016","COMMUNITY HIGH SCHOOL DIST 218",5429,{"v":93276082.29,"d":"$93,276,082.29"},{"v":71940986.88,"d":"$71,940,986.88"},{"v":0.7712693877550717,"d":"77%"},1,{"v":858880.68,"d":"$858,880.68"},{"v":24772057.18,"d":"$24,772,057.18"},{"v":25630937.86,"d":"$25,630,937.86"},{"v":1.05749,"d":"1.06"},{"v":20784157.23,"d":"$20,784,157.23"},{"v":6927359.59,"d":"$6,927,359.59"},{"v":2301905.84,"d":"$2,301,905.84"},{"v":766736.5,"d":"$766,736.50"},{"v":742972.79,"d":"$742,972.79"},{"v":1966591.52,"d":"$1,966,591.52"},{"v":467631.05,"d":"$467,631.05"},{"v":852455.67,"d":"$852,455.67"},{"v":769709.57,"d":"$769,709.57"},{"v":568199.08,"d":"$568,199.08"},{"v":1141888.19,"d":"$1,141,888.19"},{"v":983168.33,"d":"$983,168.33"},{"v":1022906.62,"d":"$1,022,906.62"},{"v":39295681.97999999,"d":"$39,295,681.98"},{"v":488610,"d":"$488,610.00"},{"v":678625,"d":"$678,625.00"},{"v":1764425,"d":"$1,764,425.00"},{"v":184586,"d":"$184,586.00"},{"v":3099959,"d":"$3,099,959.00"},{"v":4663511,"d":"$4,663,511.00"},{"v":7388869,"d":"$7,388,869.00"},{"v":5086973,"d":"$5,086,973.00"},{"v":16430023.356,"d":"$16,430,023.36"},{"v":39785581.356,"d":"$39,785,581.36"},{"v":5167756.52,"d":"$5,167,756.52"},{"v":34617824.835999995,"d":"$34,617,824.84"},{"v":40082675.676,"d":"$40,082,675.68"},{"v":1729927.53,"d":"$1,729,927.53"},{"v":1729927.53,"d":"$1,729,927.53"},{"v":1802040.15,"d":"$1,802,040.15"},{"v":1802040.15,"d":"$1,802,040.15"},{"v":407862.78,"d":"$407,862.78"},{"v":407862.78,"d":"$407,862.78"},{"v":424921.68,"d":"$424,921.68"},{"v":424921.68,"d":"$424,921.68"},{"v":510216.18,"d":"$510,216.18"},{"v":2985307.48,"d":"$2,985,307.48"},{"v":1209268.36,"d":"$1,209,268.36"},{"v":463428.17,"d":"$463,428.17"},{"v":13897724.469999999,"d":"$13,897,724.47"},{"v":93276082.29,"d":"$93,276,082.29"},{"v":4752831.24,"d":"$4,752,831.24"},{"v":168289.61000000004,"d":"$168,289.61"},{"v":2470603.3900000006,"d":"$2,470,603.39"},{"v":93276082.12599999,"d":"$93,276,082.13"}]
["07016220017","REAVIS TWP H S DIST 220",1979.82,{"v":35058516.84,"d":"$35,058,516.84"},{"v":30726938.67,"d":"$30,726,938.67"},{"v":0.8764471928527824,"d":"88%"},2,{"v":52716.07,"d":"$52,716.07"},{"v":4491477.330000001,"d":"$4,491,477.33"},{"v":4544193.400000001,"d":"$4,544,193.40"},{"v":1.05749,"d":"1.06"},{"v":7619868.13,"d":"$7,619,868.13"},{"v":2539702.04,"d":"$2,539,702.04"},{"v":838830.09,"d":"$838,830.09"},{"v":279044.59,"d":"$279,044.59"},{"v":283089.32,"d":"$283,089.32"},{"v":716524.13,"d":"$716,524.13"},{"v":170106.45,"d":"$170,106.45"},{"v":310640.62,"d":"$310,640.62"},{"v":280126.6,"d":"$280,126.60"},{"v":206989.05,"d":"$206,989.05"},{"v":415576.56,"d":"$415,576.56"},{"v":357812.36,"d":"$357,812.36"},{"v":372754.11,"d":"$372,754.11"},{"v":14391064.049999999,"d":"$14,391,064.05"},{"v":178183.8,"d":"$178,183.80"},{"v":247477.5,"d":"$247,477.50"},{"v":643441.5,"d":"$643,441.50"},{"v":67313.88,"d":"$67,313.88"},{"v":1130477.22,"d":"$1,130,477.22"},{"v":1700665.38,"d":"$1,700,665.38"},{"v":2694535.02,"d":"$2,694,535.02"},{"v":1855091.3399999999,"d":"$1,855,091.34"},{"v":6219447.570479999,"d":"$6,219,447.57"},{"v":14736633.21048,"d":"$14,736,633.21"},{"v":1884551.06,"d":"$1,884,551.06"},{"v":12852082.15048,"d":"$12,852,082.15"},{"v":14844976.05048,"d":"$14,844,976.05"},{"v":660644.67,"d":"$660,644.67"},{"v":660644.67,"d":"$660,644.67"},{"v":688559.23,"d":"$688,559.23"},{"v":688559.23,"d":"$688,559.23"},{"v":267514.56,"d":"$267,514.56"},{"v":267514.56,"d":"$267,514.56"},{"v":278370.23,"d":"$278,370.23"},{"v":278370.23,"d":"$278,370.23"},{"v":334199.35,"d":"$334,199.35"},{"v":1088667.97,"d":"$1,088,667.97"},{"v":440990.33,"d":"$440,990.33"},{"v":168441.6,"d":"$168,441.60"},{"v":5822476.63,"d":"$5,822,476.63"},{"v":35058516.84,"d":"$35,058,516.84"},{"v":1528760.5599999998,"d":"$1,528,760.56"},{"v":137057.58000000002,"d":"$137,057.58"},{"v":501347.63,"d":"$501,347.63"},{"v":35058516.73048,"d":"$35,058,516.73"}]
["07016227017","RICH TWP H S DISTRICT 227",3182.65,{"v":54548281.27,"d":"$54,548,281.27"},{"v":50853702.31,"d":"$50,853,702.31"},{"v":0.9322695624136573,"d":"93%"},3,{"v":61989.25,"d":"$61,989.25"},{"v":28060957.08,"d":"$28,060,957.08"},{"v":28122946.33,"d":"$28,122,946.33"},{"v":1.05749,"d":"1.06"},{"v":12314432.92,"d":"$12,314,432.92"},{"v":4104400.48,"d":"$4,104,400.48"},{"v":1349422.32,"d":"$1,349,422.32"},{"v":449524.72,"d":"$449,524.72"},{"v":433919.67,"d":"$433,919.67"},{"v":1153141.87,"d":"$1,153,141.87"},{"v":274240.06,"d":"$274,240.06"},{"v":499726.22,"d":"$499,726.22"},{"v":451267.78,"d":"$451,267.78"},{"v":332941.42,"d":"$332,941.42"},{"v":669469.84,"d":"$669,469.84"},{"v":576415.06,"d":"$576,415.06"},{"v":599647.91,"d":"$599,647.91"},{"v":23208550.27,"d":"$23,208,550.27"},{"v":286438.5,"d":"$286,438.50"},{"v":397831.25,"d":"$397,831.25"},{"v":1034361.25,"d":"$1,034,361.25"},{"v":108210.1,"d":"$108,210.10"},{"v":1817293.15,"d":"$1,817,293.15"},{"v":2733896.35,"d":"$2,733,896.35"},{"v":4331586.65,"d":"$4,331,586.65"},{"v":2982143.0500000003,"d":"$2,982,143.05"},{"v":9602745.255599998,"d":"$9,602,745.26"},{"v":23294505.5556,"d":"$23,294,505.56"},{"v":3029500.88,"d":"$3,029,500.88"},{"v":20265004.675600003,"d":"$20,265,004.68"},{"v":23468671.555600002,"d":"$23,468,671.56"},{"v":1108828.49,"d":"$1,108,828.49"},{"v":1108828.49,"d":"$1,108,828.49"},{"v":1155352.76,"d":"$1,155,352.76"},{"v":1155352.76,"d":"$1,155,352.76"},{"v":114759.87,"d":"$114,759.87"},{"v":114759.87,"d":"$114,759.87"},{"v":119412.29,"d":"$119,412.29"},{"v":119412.29,"d":"$119,412.29"},{"v":143449.84,"d":"$143,449.84"},{"v":1750088.05,"d":"$1,750,088.05"},{"v":708913.94,"d":"$708,913.94"},{"v":271900.66,"d":"$271,900.66"},{"v":7871059.3100000005,"d":"$7,871,059.31"},{"v":54548281.27,"d":"$54,548,281.27"},{"v":3557763.3899999997,"d":"$3,557,763.39"},{"v":39293.79,"d":"$39,293.79"},{"v":1496639.9200000002,"d":"$1,496,639.92"},{"v":54548281.1356,"d":"$54,548,281.14"}]
["07016228016","BREMEN COMM H S DISTRICT 228",5153,{"v":86116105.01,"d":"$86,116,105.01"},{"v":64629046.94,"d":"$64,629,046.94"},{"v":0.7504873441790606,"d":"75%"},1,{"v":1531016.03,"d":"$1,531,016.03"},{"v":45577149.71,"d":"$45,577,149.71"},{"v":47108165.74,"d":"$47,108,165.74"},{"v":1.05749,"d":"1.06"},{"v":19515310.09,"d":"$19,515,310.09"},{"v":6504452.84,"d":"$6,504,452.84"},{"v":2184859.78,"d":"$2,184,859.78"},{"v":727721.15,"d":"$727,721.15"},{"v":677227.92,"d":"$677,227.92"},{"v":1866948.46,"d":"$1,866,948.46"},{"v":444346.52,"d":"$444,346.52"},{"v":809110.47,"d":"$809,110.47"},{"v":730542.94,"d":"$730,542.94"},{"v":539302.28,"d":"$539,302.28"},{"v":1083783.26,"d":"$1,083,783.26"},{"v":933139.85,"d":"$933,139.85"},{"v":970894.42,"d":"$970,894.42"},{"v":36987639.980000004,"d":"$36,987,639.98"},{"v":463770,"d":"$463,770.00"},{"v":644125,"d":"$644,125.00"},{"v":1674725,"d":"$1,674,725.00"},{"v":175202,"d":"$175,202.00"},{"v":2942363,"d":"$2,942,363.00"},{"v":4426427,"d":"$4,426,427.00"},{"v":7013233,"d":"$7,013,233.00"},{"v":4828361,"d":"$4,828,361.00"},{"v":15066565.956,"d":"$15,066,565.96"},{"v":37234771.956,"d":"$37,234,771.96"},{"v":4905037.64,"d":"$4,905,037.64"},{"v":32329734.316,"d":"$32,329,734.32"},{"v":37516762.566,"d":"$37,516,762.57"},{"v":1486450.5,"d":"$1,486,450.50"},{"v":1486450.5,"d":"$1,486,450.50"},{"v":1548482.87,"d":"$1,548,482.87"},{"v":1548482.87,"d":"$1,548,482.87"},{"v":210134.63,"d":"$210,134.63"},{"v":210134.63,"d":"$210,134.63"},{"v":218664.08,"d":"$218,664.08"},{"v":218664.08,"d":"$218,664.08"},{"v":262862.13,"d":"$262,862.13"},{"v":2833328.19,"d":"$2,833,328.19"},{"v":1147705.61,"d":"$1,147,705.61"},{"v":440342.27,"d":"$440,342.27"},{"v":11611702.36,"d":"$11,611,702.36"},{"v":86116105.01,"d":"$86,116,105.01"},{"v":4585832.2299999995,"d":"$4,585,832.23"},{"v":191264.47999999998,"d":"$191,264.48"},{"v":2582786.4999999995,"d":"$2,582,786.50"},{"v":86116104.906,"d":"$86,116,104.91"}]
["07016229016","OAK LAWN COMM H S DIST 229",1858.98,{"v":31675172.54,"d":"$31,675,172.54"},{"v":22861841.330000002,"d":"$22,861,841.33"},{"v":0.7217590149234275,"d":"72%"},1,{"v":812734.11,"d":"$812,734.11"},{"v":7287955.68,"d":"$7,287,955.68"},{"v":8100689.79,"d":"$8,100,689.79"},{"v":1.05749,"d":"1.06"},{"v":7077045.82,"d":"$7,077,045.82"},{"v":2358779.37,"d":"$2,358,779.37"},{"v":787940.5,"d":"$787,940.50"},{"v":262081.39,"d":"$262,081.39"},{"v":251403.2,"d":"$251,403.20"},{"v":673043.52,"d":"$673,043.52"},{"v":159757.77,"d":"$159,757.77"},{"v":291794.88,"d":"$291,794.88"},{"v":263097.63,"d":"$263,097.63"},{"v":194425.22,"d":"$194,425.22"},{"v":390313.55,"d":"$390,313.55"},{"v":336060.85,"d":"$336,060.85"},{"v":350140.11,"d":"$350,140.11"},{"v":13395883.810000002,"d":"$13,395,883.81"},{"v":167308.2,"d":"$167,308.20"},{"v":232372.5,"d":"$232,372.50"},{"v":604168.5,"d":"$604,168.50"},{"v":63205.32,"d":"$63,205.32"},{"v":1061477.58,"d":"$1,061,477.58"},{"v":1596863.82,"d":"$1,596,863.82"},{"v":2530071.78,"d":"$2,530,071.78"},{"v":1741864.26,"d":"$1,741,864.26"},{"v":5568209.694720001,"d":"$5,568,209.69"},{"v":13565541.65472,"d":"$13,565,541.65"},{"v":1769525.88,"d":"$1,769,525.88"},{"v":11796015.774720002,"d":"$11,796,015.77"},{"v":13667271.694720002,"d":"$13,667,271.69"},{"v":562943.69,"d":"$562,943.69"},{"v":562943.69,"d":"$562,943.69"},{"v":586205.83,"d":"$586,205.83"},{"v":586205.83,"d":"$586,205.83"},{"v":134920.39,"d":"$134,920.39"},{"v":134920.39,"d":"$134,920.39"},{"v":140348.22,"d":"$140,348.22"},{"v":140348.22,"d":"$140,348.22"},{"v":169038.19,"d":"$169,038.19"},{"v":1021983.18,"d":"$1,021,983.18"},{"v":413978.1,"d":"$413,978.10"},{"v":158181.2,"d":"$158,181.20"},{"v":4612016.930000001,"d":"$4,612,016.93"},{"v":31675172.54,"d":"$31,675,172.54"},{"v":1597771.17,"d":"$1,597,771.17"},{"v":97146.24,"d":"$97,146.24"},{"v":647885.69,"d":"$647,885.69"},{"v":31675172.434720002,"d":"$31,675,172.43"}]
["07016230013","CONS HIGH SCHOOL DISTRICT 230",7695.5,{"v":123573154.49,"d":"$123,573,154.49"},{"v":100510409.91,"d":"$100,510,409.91"},{"v":0.8133676794512329,"d":"81%"},2,{"v":492695.45,"d":"$492,695.45"},{"v":8251139.110000001,"d":"$8,251,139.11"},{"v":8743834.56,"d":"$8,743,834.56"},{"v":1.05749,"d":"1.06"},{"v":28248812.11,"d":"$28,248,812.11"},{"v":9415329.07,"d":"$9,415,329.07"},{"v":3262870.96,"d":"$3,262,870.96"},{"v":1087340.93,"d":"$1,087,340.93"},{"v":953441.2,"d":"$953,441.20"},{"v":2788193.78,"d":"$2,788,193.78"},{"v":663609.21,"d":"$663,609.21"},{"v":1208326.08,"d":"$1,208,326.08"},{"v":1091557.16,"d":"$1,091,557.16"},{"v":805655.41,"d":"$805,655.41"},{"v":1619359.13,"d":"$1,619,359.13"},{"v":1394271.9,"d":"$1,394,271.90"},{"v":1449934.34,"d":"$1,449,934.34"},{"v":53988701.28,"d":"$53,988,701.28"},{"v":692595,"d":"$692,595.00"},{"v":961937.5,"d":"$961,937.50"},{"v":2501037.5,"d":"$2,501,037.50"},{"v":261647,"d":"$261,647.00"},{"v":4394130.5,"d":"$4,394,130.50"},{"v":6610434.5,"d":"$6,610,434.50"},{"v":10473575.5,"d":"$10,473,575.50"},{"v":7210683.5,"d":"$7,210,683.50"},{"v":21401011.757999998,"d":"$21,401,011.76"},{"v":54507052.758,"d":"$54,507,052.76"},{"v":7325192.54,"d":"$7,325,192.54"},{"v":47181860.218,"d":"$47,181,860.22"},{"v":54928178.068,"d":"$54,928,178.07"},{"v":1565541.77,"d":"$1,565,541.77"},{"v":1565541.77,"d":"$1,565,541.77"},{"v":1630675.75,"d":"$1,630,675.75"},{"v":1630675.75,"d":"$1,630,675.75"},{"v":311712.62,"d":"$311,712.62"},{"v":311712.62,"d":"$311,712.62"},{"v":324119.09,"d":"$324,119.09"},{"v":324119.09,"d":"$324,119.09"},{"v":389253.08,"d":"$389,253.08"},{"v":4231382.58,"d":"$4,231,382.58"},{"v":1714020.12,"d":"$1,714,020.12"},{"v":657520.79,"d":"$657,520.79"},{"v":14656275.030000001,"d":"$14,656,275.03"},{"v":123573154.49,"d":"$123,573,154.49"},{"v":1356579.5400000003,"d":"$1,356,579.54"},{"v":88260.48999999999,"d":"$88,260.49"},{"v":2424958.65,"d":"$2,424,958.65"},{"v":123573154.378,"d":"$123,573,154.38"}]
["07016231016","EVERGREEN PARK COMM HI SCH D 231",933,{"v":14826121.72,"d":"$14,826,121.72"},{"v":14447084.389999999,"d":"$14,447,084.39"},{"v":0.974434492232133,"d":"97%"},3,{"v":16848.56,"d":"$16,848.56"},{"v":4866251.34,"d":"$4,866,251.34"},{"v":4883099.899999999,"d":"$4,883,099.90"},{"v":1.05749,"d":"1.06"},{"v":3412147.09,"d":"$3,412,147.09"},{"v":1137268.62,"d":"$1,137,268.62"},{"v":395242.49,"d":"$395,242.49"},{"v":131464.77,"d":"$131,464.77"},{"v":113801.28,"d":"$113,801.28"},{"v":337880.53,"d":"$337,880.53"},{"v":80202.28,"d":"$80,202.28"},{"v":146368.58,"d":"$146,368.58"},{"v":131974.54,"d":"$131,974.54"},{"v":97683.75,"d":"$97,683.75"},{"v":195788.35,"d":"$195,788.35"},{"v":168574.21,"d":"$168,574.21"},{"v":175635.4,"d":"$175,635.40"},{"v":6524031.890000001,"d":"$6,524,031.89"},{"v":83970,"d":"$83,970.00"},{"v":116625,"d":"$116,625.00"},{"v":303225,"d":"$303,225.00"},{"v":31722,"d":"$31,722.00"},{"v":532743,"d":"$532,743.00"},{"v":801447,"d":"$801,447.00"},{"v":1269813,"d":"$1,269,813.00"},{"v":874221,"d":"$874,221.00"},{"v":2560606.3709999993,"d":"$2,560,606.37"},{"v":6574372.370999999,"d":"$6,574,372.37"},{"v":888104.04,"d":"$888,104.04"},{"v":5686268.330999999,"d":"$5,686,268.33"},{"v":6625429.470999999,"d":"$6,625,429.47"},{"v":180669.25,"d":"$180,669.25"},{"v":180669.25,"d":"$180,669.25"},{"v":187647.89,"d":"$187,647.89"},{"v":187647.89,"d":"$187,647.89"},{"v":26363.75,"d":"$26,363.75"},{"v":26363.75,"d":"$26,363.75"},{"v":27139.15,"d":"$27,139.15"},{"v":27139.15,"d":"$27,139.15"},{"v":33342.39,"d":"$33,342.39"},{"v":512542.4,"d":"$512,542.40"},{"v":207617.24,"d":"$207,617.24"},{"v":79518.11,"d":"$79,518.11"},{"v":1676660.2200000002,"d":"$1,676,660.22"},{"v":14826121.72,"d":"$14,826,121.72"},{"v":259328.87999999998,"d":"$259,328.88"},{"v":1103.74,"d":"$1,103.74"},{"v":234402.47,"d":"$234,402.47"},{"v":14826121.581,"d":"$14,826,121.58"}]
["07016233016","HOMEWOOD FLOSSMOOR C H S D 233",2800.65,{"v":42798570.62,"d":"$42,798,570.62"},{"v":33342227.099999998,"d":"$33,342,227.10"},{"v":0.7790500153857708,"d":"78%"},2,{"v":394725.41,"d":"$394,725.41"},{"v":20523060.759999998,"d":"$20,523,060.76"},{"v":20917786.169999998,"d":"$20,917,786.17"},{"v":1.05749,"d":"1.06"},{"v":10026945.79,"d":"$10,026,945.79"},{"v":3341981.02,"d":"$3,341,981.02"},{"v":1187423.79,"d":"$1,187,423.79"},{"v":395242.49,"d":"$395,242.49"},{"v":321918.54,"d":"$321,918.54"},{"v":1014547.44,"d":"$1,014,547.44"},{"v":241253.64,"d":"$241,253.64"},{"v":439733.95,"d":"$439,733.95"},{"v":396775.07,"d":"$396,775.07"},{"v":293051.26,"d":"$293,051.26"},{"v":588628.2,"d":"$588,628.20"},{"v":506810.22,"d":"$506,810.22"},{"v":527660.01,"d":"$527,660.01"},{"v":19281971.419999998,"d":"$19,281,971.42"},{"v":252058.49999999997,"d":"$252,058.50"},{"v":350081.24999999994,"d":"$350,081.25"},{"v":910211.2499999999,"d":"$910,211.25"},{"v":95222.09999999999,"d":"$95,222.10"},{"v":1599171.15,"d":"$1,599,171.15"},{"v":2405758.3499999996,"d":"$2,405,758.35"},{"v":3811684.6499999994,"d":"$3,811,684.65"},{"v":2624209.05,"d":"$2,624,209.05"},{"v":7313675.6436,"d":"$7,313,675.64"},{"v":19362071.9436,"d":"$19,362,071.94"},{"v":2665882.72,"d":"$2,665,882.72"},{"v":16696189.223599998,"d":"$16,696,189.22"},{"v":19515333.5336,"d":"$19,515,333.53"},{"v":384600.65,"d":"$384,600.65"},{"v":384600.65,"d":"$384,600.65"},{"v":400108.74,"d":"$400,108.74"},{"v":400108.74,"d":"$400,108.74"},{"v":5427.83,"d":"$5,427.83"},{"v":5427.83,"d":"$5,427.83"},{"v":5427.83,"d":"$5,427.83"},{"v":5427.83,"d":"$5,427.83"},{"v":6978.64,"d":"$6,978.64"},{"v":1539953.42,"d":"$1,539,953.42"},{"v":623794.02,"d":"$623,794.02"},{"v":239409.39,"d":"$239,409.39"},{"v":4001265.5700000003,"d":"$4,001,265.57"},{"v":42798570.62,"d":"$42,798,570.62"},{"v":589285.17,"d":"$589,285.17"},{"v":1283.41,"d":"$1,283.41"},{"v":1153712.9799999997,"d":"$1,153,712.98"},{"v":42798570.5236,"d":"$42,798,570.52"}]
[null,"ALT SCH-CAROLL/JODAVIESS/STEPHENS",53,{"v":780442.51,"d":"$780,442.51"},{"v":472730.06,"d":"$472,730.06"},{"v":0.6057205417987803,"d":"61%"},1,{"v":54504.77,"d":"$54,504.77"},{"v":394685.81,"d":"$394,685.81"},{"v":449190.58,"d":"$449,190.58"},{"v":0.9,"d":"0.90"},{"v":169633.57,"d":"$169,633.57"},{"v":56538.86,"d":"$56,538.86"},{"v":18767.97,"d":"$18,767.97"},{"v":5774.76,"d":"$5,774.76"},{"v":5712.4,"d":"$5,712.40"},{"v":16189.74,"d":"$16,189.74"},{"v":3853.26,"d":"$3,853.26"},{"v":6950.26,"d":"$6,950.26"},{"v":5797.15,"d":"$5,797.15"},{"v":4544.4,"d":"$4,544.40"},{"v":8600.25,"d":"$8,600.25"},{"v":7404.84,"d":"$7,404.84"},{"v":8339.99,"d":"$8,339.99"},{"v":318107.45000000007,"d":"$318,107.45"},{"v":4770,"d":"$4,770.00"},{"v":6625,"d":"$6,625.00"},{"v":17225,"d":"$17,225.00"},{"v":1802,"d":"$1,802.00"},{"v":30263,"d":"$30,263.00"},{"v":45527,"d":"$45,527.00"},{"v":72133,"d":"$72,133.00"},{"v":49661,"d":"$49,661.00"},{"v":149293.43700000003,"d":"$149,293.44"},{"v":377299.43700000003,"d":"$377,299.44"},{"v":50449.64,"d":"$50,449.64"},{"v":326849.797,"d":"$326,849.80"},{"v":372254.467,"d":"$372,254.47"},{"v":11878.65,"d":"$11,878.65"},{"v":11878.65,"d":"$11,878.65"},{"v":12538.57,"d":"$12,538.57"},{"v":12538.57,"d":"$12,538.57"},{"v":659.92,"d":"$659.92"},{"v":659.92,"d":"$659.92"},{"v":659.92,"d":"$659.92"},{"v":659.92,"d":"$659.92"},{"v":659.92,"d":"$659.92"},{"v":24417.22,"d":"$24,417.22"},{"v":9890.76,"d":"$9,890.76"},{"v":3638.47,"d":"$3,638.47"},{"v":90080.48999999998,"d":"$90,080.49"},{"v":780442.51,"d":"$780,442.51"},{"v":17628.71,"d":"$17,628.71"},{"v":933.1200000000001,"d":"$933.12"},{"v":8813.8,"d":"$8,813.80"},{"v":780442.4070000001,"d":"$780,442.41"}]
[null,"SAFE SCH-CARROLL/JO DAVIESS/STEPH",29.63,{"v":426190.87,"d":"$426,190.87"},{"v":297970.77,"d":"$297,970.77"},{"v":0.6991486467084572,"d":"70%"},1,{"v":15569.36,"d":"$15,569.36"},{"v":255351.69000000003,"d":"$255,351.69"},{"v":270921.05000000005,"d":"$270,921.05"},{"v":0.9,"d":"0.90"},{"v":92488.23,"d":"$92,488.23"},{"v":28985.83,"d":"$28,985.83"},{"v":9917.33,"d":"$9,917.33"},{"v":3514.97,"d":"$3,514.97"},{"v":3156.69,"d":"$3,156.69"},{"v":7614.84,"d":"$7,614.84"},{"v":1651.4,"d":"$1,651.40"},{"v":3742.45,"d":"$3,742.45"},{"v":3623.22,"d":"$3,623.22"},{"v":2405.86,"d":"$2,405.86"},{"v":5375.16,"d":"$5,375.16"},{"v":4628.02,"d":"$4,628.02"},{"v":4490.76,"d":"$4,490.76"},{"v":171594.75999999998,"d":"$171,594.76"},{"v":2666.7,"d":"$2,666.70"},{"v":3703.7500000000005,"d":"$3,703.75"},{"v":9629.750000000002,"d":"$9,629.75"},{"v":1007.4200000000001,"d":"$1,007.42"},{"v":16918.73,"d":"$16,918.73"},{"v":22414.370000000003,"d":"$22,414.37"},{"v":40326.43,"d":"$40,326.43"},{"v":27763.310000000005,"d":"$27,763.31"},{"v":81701.98032000002,"d":"$81,701.98"},{"v":206132.44032000005,"d":"$206,132.44"},{"v":28204.2,"d":"$28,204.20"},{"v":177928.24032000004,"d":"$177,928.24"},{"v":203312.02032000004,"d":"$203,312.02"},{"v":6599.25,"d":"$6,599.25"},{"v":6599.25,"d":"$6,599.25"},{"v":6599.25,"d":"$6,599.25"},{"v":6599.25,"d":"$6,599.25"},{"v":659.92,"d":"$659.92"},{"v":659.92,"d":"$659.92"},{"v":659.92,"d":"$659.92"},{"v":659.92,"d":"$659.92"},{"v":1319.85,"d":"$1,319.85"},{"v":13858.42,"d":"$13,858.42"},{"v":5613.67,"d":"$5,613.67"},{"v":1455.39,"d":"$1,455.39"},{"v":51284.00999999999,"d":"$51,284.01"},{"v":426190.87,"d":"$426,190.87"},{"v":10510.59,"d":"$10,510.59"},{"v":235.58,"d":"$235.58"},{"v":5300.28,"d":"$5,300.28"},{"v":426190.79032000003,"d":"$426,190.79"}]
["08008308026","EASTLAND COMM UNIT SCH DIST 308",659.75,{"v":8603830.98,"d":"$8,603,830.98"},{"v":8740004.57,"d":"$8,740,004.57"},{"v":1.015827087993307,"d":"102%"},4,{"v":548.05,"d":"$548.05"},{"v":595029.86,"d":"$595,029.86"},{"v":595577.91,"d":"$595,577.91"},{"v":0.9,"d":"0.90"},{"v":2027696.31,"d":"$2,027,696.31"},{"v":482997.91,"d":"$482,997.91"},{"v":215150.22,"d":"$215,150.22"},{"v":86925.43,"d":"$86,925.43"},{"v":68577.31,"d":"$68,577.31"},{"v":145656.12,"d":"$145,656.12"},{"v":47340.16,"d":"$47,340.16"},{"v":80730.03,"d":"$80,730.03"},{"v":97102.29,"d":"$97,102.29"},{"v":58275.32,"d":"$58,275.32"},{"v":144054.28,"d":"$144,054.28"},{"v":124031.07,"d":"$124,031.07"},{"v":96872.23,"d":"$96,872.23"},{"v":3675408.68,"d":"$3,675,408.68"},{"v":59130,"d":"$59,130.00"},{"v":82468.75,"d":"$82,468.75"},{"v":214418.75,"d":"$214,418.75"},{"v":22431.5,"d":"$22,431.50"},{"v":188358.62,"d":"$188,358.62"},{"v":236634,"d":"$236,634.00"},{"v":897919.75,"d":"$897,919.75"},{"v":618185.75,"d":"$618,185.75"},{"v":1710927.3450000002,"d":"$1,710,927.35"},{"v":4030474.4650000003,"d":"$4,030,474.47"},{"v":628002.83,"d":"$628,002.83"},{"v":3402471.6350000002,"d":"$3,402,471.64"},{"v":3967674.1750000003,"d":"$3,967,674.18"},{"v":117466.65,"d":"$117,466.65"},{"v":117466.65,"d":"$117,466.65"},{"v":122746.05,"d":"$122,746.05"},{"v":122746.05,"d":"$122,746.05"},{"v":0,"d":"$0.00"},{"v":0,"d":"$0.00"},{"v":0,"d":"$0.00"},{"v":0,"d":"$0.00"},{"v":0,"d":"$0.00"},{"v":308184.97,"d":"$308,184.97"},{"v":124837.5,"d":"$124,837.50"},{"v":47300.17,"d":"$47,300.17"},{"v":960748.0399999999,"d":"$960,748.04"},{"v":8603830.98,"d":"$8,603,830.98"},{"v":202894.56,"d":"$202,894.56"},{"v":0,"d":"$0.00"},{"v":137179.2,"d":"$137,179.20"},{"v":8603830.895,"d":"$8,603,830.90"}]
["08008314026","WEST CARROLL",870.71,{"v":12147497.42,"d":"$12,147,497.42"},{"v":11661081.58,"d":"$11,661,081.58"},{"v":0.9599575267907322,"d":"96%"},3,{"v":13804.54,"d":"$13,804.54"},{"v":4106289.7999999993,"d":"$4,106,289.80"},{"v":4120094.3399999994,"d":"$4,120,094.34"},{"v":0.9,"d":"0.90"},{"v":2756793.27,"d":"$2,756,793.27"},{"v":672213.4,"d":"$672,213.40"},{"v":285571.81,"d":"$285,571.81"},{"v":114792.48,"d":"$114,792.48"},{"v":95874.54,"d":"$95,874.54"},{"v":200654.51,"d":"$200,654.51"},{"v":62753.23,"d":"$62,753.23"},{"v":107194.51,"d":"$107,194.51"},{"v":127537.34,"d":"$127,537.34"},{"v":76987.58,"d":"$76,987.58"},{"v":189205.63,"d":"$189,205.63"},{"v":162906.48,"d":"$162,906.48"},{"v":128628.36,"d":"$128,628.36"},{"v":4981113.140000001,"d":"$4,981,113.14"},{"v":78071.4,"d":"$78,071.40"},{"v":108838.74999999999,"d":"$108,838.75"},{"v":282980.75,"d":"$282,980.75"},{"v":29604.139999999992,"d":"$29,604.14"},{"v":497175.41000000003,"d":"$497,175.41"},{"v":341317.3,"d":"$341,317.30"},{"v":1185036.31,"d":"$1,185,036.31"},{"v":815855.2699999999,"d":"$815,855.27"},{"v":2385388.74744,"d":"$2,385,388.75"},{"v":5724268.07744,"d":"$5,724,268.08"},{"v":828811.43,"d":"$828,811.43"},{"v":4895456.64744,"d":"$4,895,456.65"},{"v":5641386.927440001,"d":"$5,641,386.93"},{"v":217775.25,"d":"$217,775.25"},{"v":217775.25,"d":"$217,775.25"},{"v":227014.2,"d":"$227,014.20"},{"v":227014.2,"d":"$227,014.20"},{"v":0,"d":"$0.00"},{"v":0,"d":"$0.00"},{"v":0,"d":"$0.00"},{"v":0,"d":"$0.00"},{"v":0,"d":"$0.00"},{"v":407173.72,"d":"$407,173.72"},{"v":164935.2,"d":"$164,935.20"},{"v":63309.46,"d":"$63,309.46"},{"v":1524997.2799999998,"d":"$1,524,997.28"},{"v":12147497.42,"d":"$12,147,497.42"},{"v":665190.29,"d":"$665,190.29"},{"v":0,"d":"$0.00"},{"v":409304.14,"d":"$409,304.14"},{"v":12147497.34744,"d":"$12,147,497.35"}]
["08008399026","CHADWICK-MILLEDGEVILLE CUSD 399",382.44,{"v":5003153.38,"d":"$5,003,153.38"},{"v":5062137.78,"d":"$5,062,137.78"},{"v":1.011789444680187,"d":"101%"},4,{"v":318.69,"d":"$318.69"},{"v":1381642.05,"d":"$1,381,642.05"},{"v":1381960.74,"d":"$1,381,960.74"},{"v":0.9,"d":"0.90"},{"v":1176016.81,"d":"$1,176,016.81"},{"v":285719.87,"d":"$285,719.87"},{"v":124898.31,"d":"$124,898.31"},{"v":50209.92,"d":"$50,209.92"},{"v":39690.95,"d":"$39,690.95"},{"v":85704.91,"d":"$85,704.91"},{"v":27523.35,"d":"$27,523.35"},{"v":46780.65,"d":"$46,780.65"},{"v":55797.58,"d":"$55,797.58"},{"v":33682.06,"d":"$33,682.06"},{"v":82777.46,"d":"$82,777.46"},{"v":71271.58,"d":"$71,271.58"},{"v":56134.57,"d":"$56,134.57"},{"v":2136208.02,"d":"$2,136,208.02"},{"v":34164.899999999994,"d":"$34,164.90"},{"v":47805,"d":"$47,805.00"},{"v":124293,"d":"$124,293.00"},{"v":13002.96,"d":"$13,002.96"},{"v":109186.61,"d":"$109,186.61"},{"v":146527.58999999997,"d":"$146,527.59"},{"v":520500.83999999997,"d":"$520,500.84"},{"v":358346.27999999997,"d":"$358,346.28"},{"v":993418.0581599999,"d":"$993,418.06"},{"v":2347245.2381599997,"d":"$2,347,245.24"},{"v":364036.98,"d":"$364,036.98"},{"v":1983208.2581599993,"d":"$1,983,208.26"},{"v":2310841.538159999,"d":"$2,310,841.54"},{"v":67972.27,"d":"$67,972.27"},{"v":67972.27,"d":"$67,972.27"},{"v":70611.97,"d":"$70,611.97"},{"v":70611.97,"d":"$70,611.97"},{"v":0,"d":"$0.00"},{"v":0,"d":"$0.00"},{"v":0,"d":"$0.00"},{"v":0,"d":"$0.00"},{"v":0,"d":"$0.00"},{"v":178839.67,"d":"$178,839.67"},{"v":72443.17,"d":"$72,443.17"},{"v":27652.41,"d":"$27,652.41"},{"v":556103.7300000001,"d":"$556,103.73"},{"v":5003153.38,"d":"$5,003,153.38"},{"v":135331.99000000002,"d":"$135,331.99"},{"v":0,"d":"$0.00"},{"v":111084.72000000002,"d":"$111,084.72"},{"v":5003153.28816,"d":"$5,003,153.29"}]
["08043119022","EAST DUBUQUE UNIT SCH DIST 119",589.03,{"v":7628464.67,"d":"$7,628,464.67"},{"v":6979600.460000001,"d":"$6,979,600.46"},{"v":0.9149417034660005,"d":"91%"},3,{"v":8669.06,"d":"$8,669.06"},{"v":1250284.2400000002,"d":"$1,250,284.24"},{"v":1258953.3000000003,"d":"$1,258,953.30"},{"v":0.9,"d":"0.90"},{"v":1746098.09,"d":"$1,746,098.09"},{"v":430719.59,"d":"$430,719.59"},{"v":193310.72,"d":"$193,310.72"},{"v":77166.63,"d":"$77,166.63"},{"v":57958.16,"d":"$57,958.16"},{"v":135401.27,"d":"$135,401.27"},{"v":41835.49,"d":"$41,835.49"},{"v":72443.17,"d":"$72,443.17"},{"v":85507.99,"d":"$85,507.99"},{"v":52127.01,"d":"$52,127.01"},{"v":126853.77,"d":"$126,853.77"},{"v":109221.39,"d":"$109,221.39"},{"v":86928.39,"d":"$86,928.39"},{"v":3215571.670000001,"d":"$3,215,571.67"},{"v":52720.2,"d":"$52,720.20"},{"v":73628.75,"d":"$73,628.75"},{"v":191434.75,"d":"$191,434.75"},{"v":20027.02,"d":"$20,027.02"},{"v":336336.13,"d":"$336,336.13"},{"v":237744.65999999997,"d":"$237,744.66"},{"v":801669.8300000001,"d":"$801,669.83"},{"v":551921.1099999999,"d":"$551,921.11"},{"v":1466427.48492,"d":"$1,466,427.48"},{"v":3731909.93492,"d":"$3,731,909.93"},{"v":560685.87,"d":"$560,685.87"},{"v":3171224.0649200003,"d":"$3,171,224.06"},{"v":3675841.34492,"d":"$3,675,841.34"},{"v":64012.72,"d":"$64,012.72"},{"v":64012.72,"d":"$64,012.72"},{"v":66652.42,"d":"$66,652.42"},{"v":66652.42,"d":"$66,652.42"},{"v":8579.02,"d":"$8,579.02"},{"v":8579.02,"d":"$8,579.02"},{"v":9238.95,"d":"$9,238.95"},{"v":9238.95,"d":"$9,238.95"},{"v":11218.72,"d":"$11,218.72"},{"v":275188.72,"d":"$275,188.72"},{"v":111471.6,"d":"$111,471.60"},{"v":42206.31,"d":"$42,206.31"},{"v":737051.5699999998,"d":"$737,051.57"},{"v":7628464.67,"d":"$7,628,464.67"},{"v":122962.99000000002,"d":"$122,962.99"},{"v":429.96,"d":"$429.96"},{"v":213895.09,"d":"$213,895.09"},{"v":7628464.58492,"d":"$7,628,464.58"}]
["08043120022","GALENA UNIT SCHOOL DIST 120",788.38,{"v":10354150.72,"d":"$10,354,150.72"},{"v":11804996.12,"d":"$11,804,996.12"},{"v":1.1401221055433892,"d":"114%"},4,{"v":659.54,"d":"$659.54"},{"v":756277.6999999998,"d":"$756,277.70"},{"v":756937.2399999999,"d":"$756,937.24"},{"v":0.9,"d":"0.90"},{"v":2375661.68,"d":"$2,375,661.68"},{"v":575299.36,"d":"$575,299.36"},{"v":258049.62,"d":"$258,049.62"},{"v":104813.03,"d":"$104,813.03"},{"v":82126.46,"d":"$82,126.46"},{"v":178268.23,"d":"$178,268.23"},{"v":57248.56,"d":"$57,248.56"},{"v":97036.43,"d":"$97,036.43"},{"v":116667.68,"d":"$116,667.68"},{"v":69769.99,"d":"$69,769.99"},{"v":173080.15,"d":"$173,080.15"},{"v":149022.4,"d":"$149,022.40"},{"v":116439.14,"d":"$116,439.14"},{"v":4353482.73,"d":"$4,353,482.73"},{"v":70542,"d":"$70,542.00"},{"v":98547.5,"d":"$98,547.50"},{"v":256223.5,"d":"$256,223.50"},{"v":26804.92,"d":"$26,804.92"},{"v":225082.48000000004,"d":"$225,082.48"},{"v":299129.89999999997,"d":"$299,129.90"},{"v":1072985.1800000002,"d":"$1,072,985.18"},{"v":738712.0599999999,"d":"$738,712.06"},{"v":2058609.9673199998,"d":"$2,058,609.97"},{"v":4846637.50732,"d":"$4,846,637.51"},{"v":750443.15,"d":"$750,443.15"},{"v":4096194.35732,"d":"$4,096,194.36"},{"v":4771593.18732,"d":"$4,771,593.19"},{"v":119446.42,"d":"$119,446.42"},{"v":119446.42,"d":"$119,446.42"},{"v":124725.82,"d":"$124,725.82"},{"v":124725.82,"d":"$124,725.82"},{"v":31016.47,"d":"$31,016.47"},{"v":31016.47,"d":"$31,016.47"},{"v":32336.32,"d":"$32,336.32"},{"v":32336.32,"d":"$32,336.32"},{"v":38935.57,"d":"$38,935.57"},{"v":368898.07,"d":"$368,898.07"},{"v":149430.76,"d":"$149,430.76"},{"v":56760.21,"d":"$56,760.21"},{"v":1229074.67,"d":"$1,229,074.67"},{"v":10354150.72,"d":"$10,354,150.72"},{"v":153850.03999999998,"d":"$153,850.04"},{"v":28893.679999999997,"d":"$28,893.68"},{"v":282619.14999999997,"d":"$282,619.15"},{"v":10354150.58732,"d":"$10,354,150.59"}]
["08043205026","WARREN COMM UNIT SCHOOL DIST 205",362.37,{"v":4814602.44,"d":"$4,814,602.44"},{"v":4258407.0600000005,"d":"$4,258,407.06"},{"v":0.8844774024581769,"d":"88%"},2,{"v":7519.05,"d":"$7,519.05"},{"v":1025471.4099999999,"d":"$1,025,471.41"},{"v":1032990.46,"d":"$1,032,990.46"},{"v":0.9,"d":"0.90"},{"v":1106786.14,"d":"$1,106,786.14"},{"v":265907.97,"d":"$265,907.97"},{"v":117962.6,"d":"$117,962.60"},{"v":46789.2,"d":"$46,789.20"},{"v":37427.12,"d":"$37,427.12"},{"v":80402.88,"d":"$80,402.88"},{"v":25871.94,"d":"$25,871.94"},{"v":44107.47,"d":"$44,107.47"},{"v":52174.36,"d":"$52,174.36"},{"v":31810.84,"d":"$31,810.84"},{"v":77402.3,"d":"$77,402.30"},{"v":66643.56,"d":"$66,643.56"},{"v":52926.88,"d":"$52,926.88"},{"v":2006213.2600000002,"d":"$2,006,213.26"},{"v":32441.399999999998,"d":"$32,441.40"},{"v":45296.25,"d":"$45,296.25"},{"v":117770.25,"d":"$117,770.25"},{"v":12320.58,"d":"$12,320.58"},{"v":206913.27,"d":"$206,913.27"},{"v":134567.47999999998,"d":"$134,567.48"},{"v":493185.57,"d":"$493,185.57"},{"v":339540.68999999994,"d":"$339,540.69"},{"v":935018.1466799999,"d":"$935,018.15"},{"v":2317053.63668,"d":"$2,317,053.64"},{"v":344932.75,"d":"$344,932.75"},{"v":1972120.8866799995,"d":"$1,972,120.89"},{"v":2282560.3566799993,"d":"$2,282,560.36"},{"v":64012.72,"d":"$64,012.72"},{"v":64012.72,"d":"$64,012.72"},{"v":66652.42,"d":"$66,652.42"},{"v":66652.42,"d":"$66,652.42"},{"v":0,"d":"$0.00"},{"v":0,"d":"$0.00"},{"v":0,"d":"$0.00"},{"v":0,"d":"$0.00"},{"v":0,"d":"$0.00"},{"v":169600.72,"d":"$169,600.72"},{"v":68700.72,"d":"$68,700.72"},{"v":26197.02,"d":"$26,197.02"},{"v":525828.74,"d":"$525,828.74"},{"v":4814602.44,"d":"$4,814,602.44"},{"v":118808.43000000002,"d":"$118,808.43"},{"v":0,"d":"$0.00"},{"v":121029.16,"d":"$121,029.16"},{"v":4814602.35668,"d":"$4,814,602.36"}]
["08043206026","STOCKTON C U SCHOOL DIST 206",516.72,{"v":6893961.98,"d":"$6,893,961.98"},{"v":5951398.239999999,"d":"$5,951,398.24"},{"v":0.8632769164183872,"d":"86%"},2,{"v":10721.76,"d":"$10,721.76"},{"v":1314629.5899999996,"d":"$1,314,629.59"},{"v":1325351.3499999996,"d":"$1,325,351.35"},{"v":0.9,"d":"0.90"},{"v":1562325.54,"d":"$1,562,325.54"},{"v":383188.23,"d":"$383,188.23"},{"v":168581.66,"d":"$168,581.66"},{"v":67909.03,"d":"$67,909.03"},{"v":53132.4,"d":"$53,132.40"},{"v":119967.96,"d":"$119,967.96"},{"v":36881.28,"d":"$36,881.28"},{"v":63621.68,"d":"$63,621.68"},{"v":75362.97,"d":"$75,362.97"},{"v":45444.06,"d":"$45,444.06"},{"v":111803.32,"d":"$111,803.32"},{"v":96262.92,"d":"$96,262.92"},{"v":76343.02,"d":"$76,343.02"},{"v":2860824.07,"d":"$2,860,824.07"},{"v":46025.1,"d":"$46,025.10"},{"v":64590,"d":"$64,590.00"},{"v":167933.99999999997,"d":"$167,934.00"},{"v":17568.479999999996,"d":"$17,568.48"},{"v":295047.12,"d":"$295,047.12"},{"v":205322.72999999998,"d":"$205,322.73"},{"v":703255.9199999999,"d":"$703,255.92"},{"v":484166.64,"d":"$484,166.64"},{"v":1337193.75408,"d":"$1,337,193.75"},{"v":3321103.7440799996,"d":"$3,321,103.74"},{"v":491855.43,"d":"$491,855.43"},{"v":2829248.31408,"d":"$2,829,248.31"},{"v":3271918.19408,"d":"$3,271,918.19"},{"v":92389.5,"d":"$92,389.50"},{"v":92389.5,"d":"$92,389.50"},{"v":96349.05,"d":"$96,349.05"},{"v":96349.05,"d":"$96,349.05"},{"v":1319.85,"d":"$1,319.85"},{"v":1319.85,"d":"$1,319.85"},{"v":1319.85,"d":"$1,319.85"},{"v":1319.85,"d":"$1,319.85"},{"v":1979.77,"d":"$1,979.77"},{"v":241532.55,"d":"$241,532.55"},{"v":97838.38,"d":"$97,838.38"},{"v":37112.44,"d":"$37,112.44"},{"v":761219.6399999999,"d":"$761,219.64"},{"v":6893961.98,"d":"$6,893,961.98"},{"v":150689.59999999998,"d":"$150,689.60"},{"v":58.46,"d":"$58.46"},{"v":161406.19999999998,"d":"$161,406.20"},{"v":6893961.904079999,"d":"$6,893,961.90"}]
["08043210026","RIVER RIDGE C U SCH DIST 210",429.04,{"v":5649900.68,"d":"$5,649,900.68"},{"v":7537276.170000001,"d":"$7,537,276.17"},{"v":1.3340546315585855,"d":"133%"},4,{"v":359.88,"d":"$359.88"},{"v":442527.04000000004,"d":"$442,527.04"},{"v":442886.92000000004,"d":"$442,886.92"},{"v":0.9,"d":"0.90"},{"v":1309390.93,"d":"$1,309,390.93"},{"v":321054.67,"d":"$321,054.67"},{"v":140275.52,"d":"$140,275.52"},{"v":56141.04,"d":"$56,141.04"},{"v":44733.78,"d":"$44,733.78"},{"v":98636.29,"d":"$98,636.29"},{"v":30826.15,"d":"$30,826.15"},{"v":52661.64,"d":"$52,661.64"},{"v":62319.38,"d":"$62,319.38"},{"v":37959.15,"d":"$37,959.15"},{"v":92452.75,"d":"$92,452.75"},{"v":79602.03,"d":"$79,602.03"},{"v":63191.49,"d":"$63,191.49"},{"v":2389244.82,"d":"$2,389,244.82"},{"v":38216.7,"d":"$38,216.70"},{"v":53630,"d":"$53,630.00"},{"v":139438,"d":"$139,438.00"},{"v":14587.36,"d":"$14,587.36"},{"v":122490.91,"d":"$122,490.91"},{"v":169914.79,"d":"$169,914.79"},{"v":583923.44,"d":"$583,923.44"},{"v":402010.4799999999,"d":"$402,010.48"},{"v":1122337.4535599998,"d":"$1,122,337.45"},{"v":2646549.13356,"d":"$2,646,549.13"},{"v":408394.59,"d":"$408,394.59"},{"v":2238154.54356,"d":"$2,238,154.54"},{"v":2605709.67356,"d":"$2,605,709.67"},{"v":80510.85,"d":"$80,510.85"},{"v":80510.85,"d":"$80,510.85"},{"v":83810.47,"d":"$83,810.47"},{"v":83810.47,"d":"$83,810.47"},{"v":2639.7,"d":"$2,639.70"},{"v":2639.7,"d":"$2,639.70"},{"v":2639.7,"d":"$2,639.70"},{"v":2639.7,"d":"$2,639.70"},{"v":3299.62,"d":"$3,299.62"},{"v":200617.2,"d":"$200,617.20"},{"v":81264.67,"d":"$81,264.67"},{"v":30563.19,"d":"$30,563.19"},{"v":654946.12,"d":"$654,946.12"},{"v":5649900.68,"d":"$5,649,900.68"},{"v":166151.17,"d":"$166,151.17"},{"v":4.95,"d":"$4.95"},{"v":169376.16,"d":"$169,376.16"},{"v":5649900.6135599995,"d":"$5,649,900.61"}]
["08043211026","SCALES MOUND C U SCH DISTRICT 211",240.03,{"v":2998621.69,"d":"$2,998,621.69"},{"v":4551337.73,"d":"$4,551,337.73"},{"v":1.5178099141942778,"d":"152%"},4,{"v":191,"d":"$191.00"},{"v":142614.61000000002,"d":"$142,614.61"},{"v":142805.61000000002,"d":"$142,805.61"},{"v":0.9,"d":"0.90"},{"v":706991.67,"d":"$706,991.67"},{"v":172478.01,"d":"$172,478.01"},{"v":77637.87,"d":"$77,637.87"},{"v":31255.63,"d":"$31,255.63"},{"v":23228.56,"d":"$23,228.56"},{"v":54241.95,"d":"$54,241.95"},{"v":16514.01,"d":"$16,514.01"},{"v":29404.98,"d":"$29,404.98"},{"v":34782.91,"d":"$34,782.91"},{"v":20850.8,"d":"$20,850.80"},{"v":51601.53,"d":"$51,601.53"},{"v":44429.04,"d":"$44,429.04"},{"v":35284.59,"d":"$35,284.59"},{"v":1298701.5500000003,"d":"$1,298,701.55"},{"v":21460.499999999996,"d":"$21,460.50"},{"v":30003.75,"d":"$30,003.75"},{"v":78009.74999999999,"d":"$78,009.75"},{"v":8161.019999999999,"d":"$8,161.02"},{"v":68528.56,"d":"$68,528.56"},{"v":93549.04999999999,"d":"$93,549.05"},{"v":326680.82999999996,"d":"$326,680.83"},{"v":224908.11,"d":"$224,908.11"},{"v":588142.82892,"d":"$588,142.83"},{"v":1439444.39892,"d":"$1,439,444.40"},{"v":228479.75,"d":"$228,479.75"},{"v":1210964.64892,"d":"$1,210,964.65"},{"v":1416596.41892,"d":"$1,416,596.42"},{"v":26397,"d":"$26,397.00"},{"v":26397,"d":"$26,397.00"},{"v":27716.85,"d":"$27,716.85"},{"v":27716.85,"d":"$27,716.85"},{"v":0,"d":"$0.00"},{"v":0,"d":"$0.00"},{"v":0,"d":"$0.00"},{"v":0,"d":"$0.00"},{"v":0,"d":"$0.00"},{"v":112187.25,"d":"$112,187.25"},{"v":45444.06,"d":"$45,444.06"},{"v":17464.68,"d":"$17,464.68"},{"v":283323.69,"d":"$283,323.69"},{"v":2998621.69,"d":"$2,998,621.69"},{"v":24483.57,"d":"$24,483.57"},{"v":0.04,"d":"$0.04"},{"v":71080.95,"d":"$71,080.95"},{"v":2998621.6589200003,"d":"$2,998,621.66"}]
["08089145022","FREEPORT SCHOOL DIST 145",3387.37,{"v":51365110.7,"d":"$51,365,110.70"},{"v":40990352.85,"d":"$40,990,352.85"},{"v":0.7980193616130958,"d":"80%"},2,{"v":382523.58,"d":"$382,523.58"},{"v":24894830.090000004,"d":"$24,894,830.09"},{"v":25277353.67,"d":"$25,277,353.67"},{"v":0.9,"d":"0.90"},{"v":11355299.07,"d":"$11,355,299.07"},{"v":2742835.97,"d":"$2,742,835.97"},{"v":1111624.92,"d":"$1,111,624.92"},{"v":451229.62,"d":"$451,229.62"},{"v":421000.83,"d":"$421,000.83"},{"v":765191.19,"d":"$765,191.19"},{"v":247710.15,"d":"$247,710.15"},{"v":417550.71,"d":"$417,550.71"},{"v":502178.29,"d":"$502,178.29"},{"v":301267.38,"d":"$301,267.38"},{"v":744997.17,"d":"$744,997.17"},{"v":641444.26,"d":"$641,444.26"},{"v":501041.17,"d":"$501,041.17"},{"v":20203370.730000004,"d":"$20,203,370.73"},{"v":303018.30000000005,"d":"$303,018.30"},{"v":423421.25000000006,"d":"$423,421.25"},{"v":1100895.25,"d":"$1,100,895.25"},{"v":115170.58000000002,"d":"$115,170.58"},{"v":1934188.27,"d":"$1,934,188.27"},{"v":1280987.79,"d":"$1,280,987.79"},{"v":4610210.57,"d":"$4,610,210.57"},{"v":3173965.6900000004,"d":"$3,173,965.69"},{"v":10306655.47968,"d":"$10,306,655.48"},{"v":23248513.179680005,"d":"$23,248,513.18"},{"v":3224369.75,"d":"$3,224,369.75"},{"v":20024143.429679997,"d":"$20,024,143.43"},{"v":22926076.199679997,"d":"$22,926,076.20"},{"v":1249897.95,"d":"$1,249,897.95"},{"v":1249897.95,"d":"$1,249,897.95"},{"v":1302032.02,"d":"$1,302,032.02"},{"v":1302032.02,"d":"$1,302,032.02"},{"v":123405.97,"d":"$123,405.97"},{"v":123405.97,"d":"$123,405.97"},{"v":128685.37,"d":"$128,685.37"},{"v":128685.37,"d":"$128,685.37"},{"v":154422.45,"d":"$154,422.45"},{"v":1585139.85,"d":"$1,585,139.85"},{"v":642097.83,"d":"$642,097.83"},{"v":245960.91,"d":"$245,960.91"},{"v":8235663.66,"d":"$8,235,663.66"},{"v":51365110.7,"d":"$51,365,110.70"},{"v":6852380.84,"d":"$6,852,380.84"},{"v":151585.27,"d":"$151,585.27"},{"v":1939035.1600000001,"d":"$1,939,035.16"},{"v":51365110.58968,"d":"$51,365,110.59"}]
["08089200026","PEARL CITY C U SCH DIST 200",404.29,{"v":5446899.35,"d":"$5,446,899.35"},{"v":3995857.13,"d":"$3,995,857.13"},{"v":0.7336021602822531,"d":"73%"},1,{"v":112344.57,"d":"$112,344.57"},{"v":1780132.7400000002,"d":"$1,780,132.74"},{"v":1892477.3100000003,"d":"$1,892,477.31"},{"v":0.9,"d":"0.90"},{"v":1223311.56,"d":"$1,223,311.56"},{"v":299893.69,"d":"$299,893.69"},{"v":132367.36,"d":"$132,367.36"},{"v":53536.41,"d":"$53,536.41"},{"v":42143.62,"d":"$42,143.62"},{"v":94294.31,"d":"$94,294.31"},{"v":28624.28,"d":"$28,624.28"},{"v":49721.14,"d":"$49,721.14"},{"v":59420.8,"d":"$59,420.80"},{"v":35820.61,"d":"$35,820.61"},{"v":88152.62,"d":"$88,152.62"},{"v":75899.61,"d":"$75,899.61"},{"v":59663.03,"d":"$59,663.03"},{"v":2242849.0399999996,"d":"$2,242,849.04"},{"v":36266.399999999994,"d":"$36,266.40"},{"v":50536.25,"d":"$50,536.25"},{"v":131394.25,"d":"$131,394.25"},{"v":13745.86,"d":"$13,745.86"},{"v":230849.59,"d":"$230,849.59"},{"v":161395.71999999997,"d":"$161,395.72"},{"v":550238.6900000001,"d":"$550,238.69"},{"v":378819.73,"d":"$378,819.73"},{"v":1059086.2005599998,"d":"$1,059,086.20"},{"v":2612332.69056,"d":"$2,612,332.69"},{"v":384835.56,"d":"$384,835.56"},{"v":2227497.130559999,"d":"$2,227,497.13"},{"v":2573849.130559999,"d":"$2,573,849.13"},{"v":69292.12,"d":"$69,292.12"},{"v":69292.12,"d":"$69,292.12"},{"v":72591.75,"d":"$72,591.75"},{"v":72591.75,"d":"$72,591.75"},{"v":9898.87,"d":"$9,898.87"},{"v":9898.87,"d":"$9,898.87"},{"v":9898.87,"d":"$9,898.87"},{"v":9898.87,"d":"$9,898.87"},{"v":12538.57,"d":"$12,538.57"},{"v":188738.55,"d":"$188,738.55"},{"v":76452.94,"d":"$76,452.94"},{"v":29107.8,"d":"$29,107.80"},{"v":630201.0800000001,"d":"$630,201.08"},{"v":5446899.35,"d":"$5,446,899.35"},{"v":122577.36,"d":"$122,577.36"},{"v":1814.44,"d":"$1,814.44"},{"v":173191.14999999997,"d":"$173,191.15"},{"v":5446899.250559999,"d":"$5,446,899.25"}]
["08089201026","DAKOTA COMM UNIT SCH DIST 201",765.96,{"v":9982598.93,"d":"$9,982,598.93"},{"v":7958047.369999999,"d":"$7,958,047.37"},{"v":0.7971919362686446,"d":"80%"},2,{"v":51126.1,"d":"$51,126.10"},{"v":2653165.12,"d":"$2,653,165.12"},{"v":2704291.22,"d":"$2,704,291.22"},{"v":0.9,"d":"0.90"},{"v":2295586.37,"d":"$2,295,586.37"},{"v":564672.73,"d":"$564,672.73"},{"v":251900.04,"d":"$251,900.04"},{"v":101330.19,"d":"$101,330.19"},{"v":76077.01,"d":"$76,077.01"},{"v":176806.4,"d":"$176,806.40"},{"v":55597.16,"d":"$55,597.16"},{"v":94630.57,"d":"$94,630.57"},{"v":112319.82,"d":"$112,319.82"},{"v":67898.77,"d":"$67,898.77"},{"v":166629.96,"d":"$166,629.96"},{"v":143468.77,"d":"$143,468.77"},{"v":113552.22,"d":"$113,552.22"},{"v":4220470.01,"d":"$4,220,470.01"},{"v":68621.4,"d":"$68,621.40"},{"v":95745,"d":"$95,745.00"},{"v":248937,"d":"$248,937.00"},{"v":26042.64,"d":"$26,042.64"},{"v":437363.16000000003,"d":"$437,363.16"},{"v":307357.14,"d":"$307,357.14"},{"v":1042471.56,"d":"$1,042,471.56"},{"v":717704.52,"d":"$717,704.52"},{"v":1922845.3754399999,"d":"$1,922,845.38"},{"v":4867087.7954400005,"d":"$4,867,087.80"},{"v":729102,"d":"$729,102.00"},{"v":4137985.7954400005,"d":"$4,137,985.80"},{"v":4794177.59544,"d":"$4,794,177.60"},{"v":100308.6,"d":"$100,308.60"},{"v":100308.6,"d":"$100,308.60"},{"v":104268.15,"d":"$104,268.15"},{"v":104268.15,"d":"$104,268.15"},{"v":0,"d":"$0.00"},{"v":0,"d":"$0.00"},{"v":0,"d":"$0.00"},{"v":0,"d":"$0.00"},{"v":0,"d":"$0.00"},{"v":358339.27,"d":"$358,339.27"},{"v":145153.67,"d":"$145,153.67"},{"v":55304.82,"d":"$55,304.82"},{"v":967951.26,"d":"$967,951.26"},{"v":9982598.93,"d":"$9,982,598.93"},{"v":226406.26999999996,"d":"$226,406.27"},{"v":0,"d":"$0.00"},{"v":234816.67,"d":"$234,816.67"},{"v":9982598.86544,"d":"$9,982,598.87"}]
["08089202026","LENA WINSLOW C U SCH DIST 202",753.88,{"v":10066540.29,"d":"$10,066,540.29"},{"v":7598609.109999999,"d":"$7,598,609.11"},{"v":0.7548381957551377,"d":"75%"},1,{"v":126356.38,"d":"$126,356.38"},{"v":2529035.4400000004,"d":"$2,529,035.44"},{"v":2655391.8200000003,"d":"$2,655,391.82"},{"v":0.9,"d":"0.90"},{"v":2290310.65,"d":"$2,290,310.65"},{"v":560153.6,"d":"$560,153.60"},{"v":247568.97,"d":"$247,568.97"},{"v":99258.91,"d":"$99,258.91"},{"v":77822.1,"d":"$77,822.10"},{"v":172275.31,"d":"$172,275.31"},{"v":54496.23,"d":"$54,496.23"},{"v":92759.34,"d":"$92,759.34"},{"v":110145.88,"d":"$110,145.88"},{"v":66829.5,"d":"$66,829.50"},{"v":163404.86,"d":"$163,404.86"},{"v":140691.96,"d":"$140,691.96"},{"v":111306.84,"d":"$111,306.84"},{"v":4187024.15,"d":"$4,187,024.15"},{"v":67452.29999999999,"d":"$67,452.30"},{"v":94235,"d":"$94,235.00"},{"v":245011,"d":"$245,011.00"},{"v":25631.92,"d":"$25,631.92"},{"v":430465.48,"d":"$430,465.48"},{"v":296327.25,"d":"$296,327.25"},{"v":1026030.6799999999,"d":"$1,026,030.68"},{"v":706385.5599999999,"d":"$706,385.56"},{"v":1953695.5753199996,"d":"$1,953,695.58"},{"v":4845234.765319999,"d":"$4,845,234.77"},{"v":717603.29,"d":"$717,603.29"},{"v":4127631.4753199983,"d":"$4,127,631.48"},{"v":4773474.435319998,"d":"$4,773,474.44"},{"v":120766.27,"d":"$120,766.27"},{"v":120766.27,"d":"$120,766.27"},{"v":125385.75,"d":"$125,385.75"},{"v":125385.75,"d":"$125,385.75"},{"v":11878.65,"d":"$11,878.65"},{"v":11878.65,"d":"$11,878.65"},{"v":12538.57,"d":"$12,538.57"},{"v":12538.57,"d":"$12,538.57"},{"v":15178.27,"d":"$15,178.27"},{"v":352399.95,"d":"$352,399.95"},{"v":142747.81,"d":"$142,747.81"},{"v":54577.12,"d":"$54,577.12"},{"v":1106041.6300000001,"d":"$1,106,041.63"},{"v":10066540.29,"d":"$10,066,540.29"},{"v":219886.93,"d":"$219,886.93"},{"v":2129.54,"d":"$2,129.54"},{"v":277337.83999999997,"d":"$277,337.84"},{"v":10066540.215319999,"d":"$10,066,540.22"}]
["08089203026","ORANGEVILLE C U SCHOOL DIST 203",294.47,{"v":3733727.99,"d":"$3,733,727.99"},{"v":3348725.0700000003,"d":"$3,348,725.07"},{"v":0.896885118297008,"d":"90%"},2,{"v":6110.15,"d":"$6,110.15"},{"v":1126678.2600000002,"d":"$1,126,678.26"},{"v":1132788.4100000001,"d":"$1,132,788.41"},{"v":0.9,"d":"0.90"},{"v":875793.96,"d":"$875,793.96"},{"v":215187.12,"d":"$215,187.12"},{"v":95525.46,"d":"$95,525.46"},{"v":38536.19,"d":"$38,536.19"},{"v":29044.01,"d":"$29,044.01"},{"v":68620.66,"d":"$68,620.66"},{"v":20917.74,"d":"$20,917.74"},{"v":35820.61,"d":"$35,820.61"},{"v":42753.99,"d":"$42,753.99"},{"v":25662.52,"d":"$25,662.52"},{"v":63426.88,"d":"$63,426.88"},{"v":54610.69,"d":"$54,610.69"},{"v":42983.04,"d":"$42,983.04"},{"v":1608882.8699999999,"d":"$1,608,882.87"},{"v":26262.899999999998,"d":"$26,262.90"},{"v":36808.75,"d":"$36,808.75"},{"v":95702.75,"d":"$95,702.75"},{"v":10011.98,"d":"$10,011.98"},{"v":84071.18,"d":"$84,071.18"},{"v":117913.31,"d":"$117,913.31"},{"v":400773.67,"d":"$400,773.67"},{"v":275918.39,"d":"$275,918.39"},{"v":734380.28808,"d":"$734,380.29"},{"v":1781843.21808,"d":"$1,781,843.22"},{"v":280300.1,"d":"$280,300.10"},{"v":1501543.11808,"d":"$1,501,543.12"},{"v":1753813.20808,"d":"$1,753,813.21"},{"v":38275.65,"d":"$38,275.65"},{"v":38275.65,"d":"$38,275.65"},{"v":40255.42,"d":"$40,255.42"},{"v":40255.42,"d":"$40,255.42"},{"v":0,"d":"$0.00"},{"v":0,"d":"$0.00"},{"v":0,"d":"$0.00"},{"v":0,"d":"$0.00"},{"v":0,"d":"$0.00"},{"v":137264.4,"d":"$137,264.40"},{"v":55602.14,"d":"$55,602.14"},{"v":21103.15,"d":"$21,103.15"},{"v":371031.8300000001,"d":"$371,031.83"},{"v":3733727.99,"d":"$3,733,727.99"},{"v":68479.37,"d":"$68,479.37"},{"v":0,"d":"$0.00"},{"v":122230.12000000001,"d":"$122,230.12"},{"v":3733727.90808,"d":"$3,733,727.91"}]
[null,"Champaign/Ford ROE TAOEP",11,{"v":151528.32,"d":"$151,528.32"},{"v":50972.07,"d":"$50,972.07"},{"v":0.33638642598294494,"d":"34%"},1,{"v":25131.76,"d":"$25,131.76"},{"v":35819.240000000005,"d":"$35,819.24"},{"v":60951,"d":"$60,951.00"},{"v":0.9,"d":"0.90"},{"v":34648.56,"d":"$34,648.56"},{"v":11548.35,"d":"$11,548.35"},{"v":3609.22,"d":"$3,609.22"},{"v":721.84,"d":"$721.84"},{"v":1089,"d":"$1,089.00"},{"v":3083.76,"d":"$3,083.76"},{"v":550.46,"d":"$550.46"},{"v":1336.59,"d":"$1,336.59"},{"v":724.64,"d":"$724.64"},{"v":801.95,"d":"$801.95"},{"v":1075.03,"d":"$1,075.03"},{"v":925.6,"d":"$925.60"},{"v":1603.84,"d":"$1,603.84"},{"v":61718.83999999998,"d":"$61,718.84"},{"v":990,"d":"$990.00"},{"v":1375,"d":"$1,375.00"},{"v":3575,"d":"$3,575.00"},{"v":374,"d":"$374.00"},{"v":6281,"d":"$6,281.00"},{"v":9449,"d":"$9,449.00"},{"v":14971,"d":"$14,971.00"},{"v":10307,"d":"$10,307.00"},{"v":28396.998,"d":"$28,397.00"},{"v":75718.99799999999,"d":"$75,719.00"},{"v":10470.68,"d":"$10,470.68"},{"v":65248.31799999999,"d":"$65,248.32"},{"v":74671.92799999999,"d":"$74,671.93"},{"v":1979.77,"d":"$1,979.77"},{"v":1979.77,"d":"$1,979.77"},{"v":1979.77,"d":"$1,979.77"},{"v":1979.77,"d":"$1,979.77"},{"v":0,"d":"$0.00"},{"v":0,"d":"$0.00"},{"v":0,"d":"$0.00"},{"v":0,"d":"$0.00"},{"v":0,"d":"$0.00"},{"v":4619.47,"d":"$4,619.47"},{"v":1871.22,"d":"$1,871.22"},{"v":727.69,"d":"$727.69"},{"v":15137.46,"d":"$15,137.46"},{"v":151528.32,"d":"$151,528.32"},{"v":3669.7200000000003,"d":"$3,669.72"},{"v":0,"d":"$0.00"},{"v":2149.58,"d":"$2,149.58"},{"v":151528.22799999997,"d":"$151,528.23"}]
[null,"SAFE SCH-CHAMPAIGN/FORD ROE",90,{"v":1300739.78,"d":"$1,300,739.78"},{"v":909859.94,"d":"$909,859.94"},{"v":0.6994942062892856,"d":"70%"},1,{"v":47357.63,"d":"$47,357.63"},{"v":779785.9700000001,"d":"$779,785.97"},{"v":827143.6000000001,"d":"$827,143.60"},{"v":0.9,"d":"0.90"},{"v":281200.32,"d":"$281,200.32"},{"v":88955.52,"d":"$88,955.52"},{"v":31195.69,"d":"$31,195.69"},{"v":9917.33,"d":"$9,917.33"},{"v":9604.93,"d":"$9,604.93"},{"v":26510.13,"d":"$26,510.13"},{"v":6055.13,"d":"$6,055.13"},{"v":11494.67,"d":"$11,494.67"},{"v":10145.01,"d":"$10,145.01"},{"v":7752.22,"d":"$7,752.22"},{"v":15050.44,"d":"$15,050.44"},{"v":12958.47,"d":"$12,958.47"},{"v":13793.06,"d":"$13,793.06"},{"v":524632.92,"d":"$524,632.92"},{"v":8100,"d":"$8,100.00"},{"v":11250,"d":"$11,250.00"},{"v":29250,"d":"$29,250.00"},{"v":3060,"d":"$3,060.00"},{"v":51390,"d":"$51,390.00"},{"v":69380,"d":"$69,380.00"},{"v":122490,"d":"$122,490.00"},{"v":84330,"d":"$84,330.00"},{"v":249388.51199999996,"d":"$249,388.51"},{"v":628638.512,"d":"$628,638.51"},{"v":85669.2,"d":"$85,669.20"},{"v":542969.312,"d":"$542,969.31"},{"v":620071.5920000001,"d":"$620,071.59"},{"v":19797.75,"d":"$19,797.75"},{"v":19797.75,"d":"$19,797.75"},{"v":20457.67,"d":"$20,457.67"},{"v":20457.67,"d":"$20,457.67"},{"v":1979.77,"d":"$1,979.77"},{"v":1979.77,"d":"$1,979.77"},{"v":1979.77,"d":"$1,979.77"},{"v":1979.77,"d":"$1,979.77"},{"v":2639.7,"d":"$2,639.70"},{"v":41575.27,"d":"$41,575.27"},{"v":16841.03,"d":"$16,841.03"},{"v":6549.25,"d":"$6,549.25"},{"v":156035.17,"d":"$156,035.17"},{"v":1300739.78,"d":"$1,300,739.78"},{"v":35085.7,"d":"$35,085.70"},{"v":1927.42,"d":"$1,927.42"},{"v":17887.69,"d":"$17,887.69"},{"v":1300739.682,"d":"$1,300,739.68"}]
["09010001026","FISHER C U SCHOOL DISTRICT 1",597.25,{"v":7802204.71,"d":"$7,802,204.71"},{"v":6487792.9799999995,"d":"$6,487,792.98"},{"v":0.8315332936195159,"d":"83%"},2,{"v":29504.94,"d":"$29,504.94"},{"v":1597693.4600000002,"d":"$1,597,693.46"},{"v":1627198.4000000001,"d":"$1,627,198.40"},{"v":0.9,"d":"0.90"},{"v":1802418.95,"d":"$1,802,418.95"},{"v":436691.56,"d":"$436,691.56"},{"v":195788.97,"d":"$195,788.97"},{"v":78860.92,"d":"$78,860.92"},{"v":59875.79,"d":"$59,875.79"},{"v":135510.33,"d":"$135,510.33"},{"v":42936.42,"d":"$42,936.42"},{"v":73512.45,"d":"$73,512.45"},{"v":87681.92,"d":"$87,681.92"},{"v":53196.28,"d":"$53,196.28"},{"v":130078.87,"d":"$130,078.87"},{"v":111998.2,"d":"$111,998.20"},{"v":88211.47,"d":"$88,211.47"},{"v":3296762.1300000004,"d":"$3,296,762.13"},{"v":53685,"d":"$53,685.00"},{"v":74656.25,"d":"$74,656.25"},{"v":194106.25,"d":"$194,106.25"},{"v":20306.5,"d":"$20,306.50"},{"v":341029.75,"d":"$341,029.75"},{"v":229314.5,"d":"$229,314.50"},{"v":812857.25,"d":"$812,857.25"},{"v":559623.25,"d":"$559,623.25"},{"v":1506315.1260000002,"d":"$1,506,315.13"},{"v":3791893.876,"d":"$3,791,893.88"},{"v":568510.33,"d":"$568,510.33"},{"v":3223383.546,"d":"$3,223,383.55"},{"v":3735042.836,"d":"$3,735,042.84"},{"v":81830.7,"d":"$81,830.70"},{"v":81830.7,"d":"$81,830.70"},{"v":85790.25,"d":"$85,790.25"},{"v":85790.25,"d":"$85,790.25"},{"v":0,"d":"$0.00"},{"v":0,"d":"$0.00"},{"v":0,"d":"$0.00"},{"v":0,"d":"$0.00"},{"v":0,"d":"$0.00"},{"v":279148.27,"d":"$279,148.27"},{"v":113075.51,"d":"$113,075.51"},{"v":42934,"d":"$42,934.00"},{"v":770399.68,"d":"$770,399.68"},{"v":7802204.71,"d":"$7,802,204.71"},{"v":117602.19,"d":"$117,602.19"},{"v":0,"d":"$0.00"},{"v":189917.91999999998,"d":"$189,917.92"},{"v":7802204.646,"d":"$7,802,204.65"}]
["09010003026","MAHOMET-SEYMOUR C U SCH DIST 3",3353.75,{"v":42478387.64,"d":"$42,478,387.64"},{"v":27883161.2,"d":"$27,883,161.20"},{"v":0.6564081818807942,"d":"66%"},1,{"v":2018673.59,"d":"$2,018,673.59"},{"v":12800274.310000002,"d":"$12,800,274.31"},{"v":14818947.900000002,"d":"$14,818,947.90"},{"v":0.9,"d":"0.90"},{"v":9810449.82,"d":"$9,810,449.82"},{"v":2361122.34,"d":"$2,361,122.34"},{"v":1098788.07,"d":"$1,098,788.07"},{"v":448059.5,"d":"$448,059.50"},{"v":321169.28,"d":"$321,169.28"},{"v":757983.58,"d":"$757,983.58"},{"v":245508.28,"d":"$245,508.28"},{"v":413006.31,"d":"$413,006.31"},{"v":499279.71,"d":"$499,279.71"},{"v":298594.2,"d":"$298,594.20"},{"v":740697.04,"d":"$740,697.04"},{"v":637741.84,"d":"$637,741.84"},{"v":495588.1,"d":"$495,588.10"},{"v":18127988.07,"d":"$18,127,988.07"},{"v":300375,"d":"$300,375.00"},{"v":419218.75,"d":"$419,218.75"},{"v":1089968.75,"d":"$1,089,968.75"},{"v":114027.5,"d":"$114,027.50"},{"v":1914991.25,"d":"$1,914,991.25"},{"v":1249120.5,"d":"$1,249,120.50"},{"v":4564453.75,"d":"$4,564,453.75"},{"v":3142463.75,"d":"$3,142,463.75"},{"v":8138741.663999999,"d":"$8,138,741.66"},{"v":20933360.913999997,"d":"$20,933,360.91"},{"v":3192367.55,"d":"$3,192,367.55"},{"v":17740993.363999996,"d":"$17,740,993.36"},{"v":20614124.153999995,"d":"$20,614,124.15"},{"v":284427.67,"d":"$284,427.67"},{"v":284427.67,"d":"$284,427.67"},{"v":296306.32,"d":"$296,306.32"},{"v":296306.32,"d":"$296,306.32"},{"v":23757.3,"d":"$23,757.30"},{"v":23757.3,"d":"$23,757.30"},{"v":24417.22,"d":"$24,417.22"},{"v":24417.22,"d":"$24,417.22"},{"v":29696.62,"d":"$29,696.62"},{"v":1569301.65,"d":"$1,569,301.65"},{"v":635682.2,"d":"$635,682.20"},{"v":243777.82,"d":"$243,777.82"},{"v":3736275.31,"d":"$3,736,275.31"},{"v":42478387.64,"d":"$42,478,387.64"},{"v":573543.4,"d":"$573,543.40"},{"v":20606.239999999998,"d":"$20,606.24"},{"v":1321648.72,"d":"$1,321,648.72"},{"v":42478387.533999994,"d":"$42,478,387.53"}]
["09010004026","CHAMPAIGN COMM UNIT SCH DIST 4",10100.5,{"v":145811336.73,"d":"$145,811,336.73"},{"v":134998320.88,"d":"$134,998,320.88"},{"v":0.9258424201266151,"d":"93%"},3,{"v":165701.58,"d":"$165,701.58"},{"v":15718802.750000002,"d":"$15,718,802.75"},{"v":15884504.330000002,"d":"$15,884,504.33"},{"v":0.9,"d":"0.90"},{"v":32015244.42,"d":"$32,015,244.42"},{"v":7669425.81,"d":"$7,669,425.81"},{"v":3306936.96,"d":"$3,306,936.96"},{"v":1351677.52,"d":"$1,351,677.52"},{"v":1173251.35,"d":"$1,173,251.35"},{"v":2252917.24,"d":"$2,252,917.24"},{"v":740928.58,"d":"$740,928.58"},{"v":1243296.01,"d":"$1,243,296.01"},{"v":1507259.52,"d":"$1,507,259.52"},{"v":899525.07,"d":"$899,525.07"},{"v":2236066.56,"d":"$2,236,066.56"},{"v":1925258.4,"d":"$1,925,258.40"},{"v":1491896.61,"d":"$1,491,896.61"},{"v":57813684.05000001,"d":"$57,813,684.05"},{"v":902880,"d":"$902,880.00"},{"v":1262562.5,"d":"$1,262,562.50"},{"v":3282662.5,"d":"$3,282,662.50"},{"v":343417,"d":"$343,417.00"},{"v":5767385.5,"d":"$5,767,385.50"},{"v":3694915,"d":"$3,694,915.00"},{"v":13746780.5,"d":"$13,746,780.50"},{"v":9464168.5,"d":"$9,464,168.50"},{"v":28946944.455,"d":"$28,946,944.46"},{"v":67411715.955,"d":"$67,411,715.96"},{"v":9614463.94,"d":"$9,614,463.94"},{"v":57797252.015,"d":"$57,797,252.02"},{"v":66450269.555,"d":"$66,450,269.56"},{"v":2463500.02,"d":"$2,463,500.02"},{"v":2463500.02,"d":"$2,463,500.02"},{"v":2565788.4,"d":"$2,565,788.40"},{"v":2565788.4,"d":"$2,565,788.40"},{"v":770792.4,"d":"$770,792.40"},{"v":770792.4,"d":"$770,792.40"},{"v":803128.72,"d":"$803,128.72"},{"v":803128.72,"d":"$803,128.72"},{"v":964150.42,"d":"$964,150.42"},{"v":4727042.77,"d":"$4,727,042.77"},{"v":1914798.83,"d":"$1,914,798.83"},{"v":734971.95,"d":"$734,971.95"},{"v":21547383.05,"d":"$21,547,383.05"},{"v":145811336.73,"d":"$145,811,336.73"},{"v":6486852.279999999,"d":"$6,486,852.28"},{"v":416254.42999999993,"d":"$416,254.43"},{"v":3808339.7100000004,"d":"$3,808,339.71"},{"v":145811336.65500003,"d":"$145,811,336.66"}]
["09010007026","TOLONO C U SCHOOL DIST 7",1517.55,{"v":19605918.14,"d":"$19,605,918.14"},{"v":14116685.16,"d":"$14,116,685.16"},{"v":0.7200216311828384,"d":"72%"},1,{"v":494789.03,"d":"$494,789.03"},{"v":6311533.290000002,"d":"$6,311,533.29"},{"v":6806322.320000002,"d":"$6,806,322.32"},{"v":0.9,"d":"0.90"},{"v":4502394.49,"d":"$4,502,394.49"},{"v":1107452.28,"d":"$1,107,452.28"},{"v":499029.92,"d":"$499,029.92"},{"v":200589.11,"d":"$200,589.11"},{"v":148696.47,"d":"$148,696.47"},{"v":351976.37,"d":"$351,976.37"},{"v":110643.86,"d":"$110,643.86"},{"v":187389.91,"d":"$187,389.91"},{"v":222465.7,"d":"$222,465.70"},{"v":134728.27,"d":"$134,728.27"},{"v":330034.82,"d":"$330,034.82"},{"v":284160.73,"d":"$284,160.73"},{"v":224859.06,"d":"$224,859.06"},{"v":8304420.990000001,"d":"$8,304,420.99"},{"v":135927,"d":"$135,927.00"},{"v":189693.75,"d":"$189,693.75"},{"v":493203.75,"d":"$493,203.75"},{"v":51596.7,"d":"$51,596.70"},{"v":866521.05,"d":"$866,521.05"},{"v":608343,"d":"$608,343.00"},{"v":2065385.5499999998,"d":"$2,065,385.55"},{"v":1421944.3499999999,"d":"$1,421,944.35"},{"v":3767283.0042,"d":"$3,767,283.00"},{"v":9599898.154199999,"d":"$9,599,898.15"},{"v":1444525.49,"d":"$1,444,525.49"},{"v":8155372.664199999,"d":"$8,155,372.66"},{"v":9455445.604199998,"d":"$9,455,445.60"},{"v":177519.82,"d":"$177,519.82"},{"v":177519.82,"d":"$177,519.82"},{"v":184779,"d":"$184,779.00"},{"v":184779,"d":"$184,779.00"},{"v":2639.7,"d":"$2,639.70"},{"v":2639.7,"d":"$2,639.70"},{"v":2639.7,"d":"$2,639.70"},{"v":2639.7,"d":"$2,639.70"},{"v":3299.62,"d":"$3,299.62"},{"v":710079.3,"d":"$710,079.30"},{"v":287634.16,"d":"$287,634.16"},{"v":109881.94,"d":"$109,881.94"},{"v":1846051.4599999997,"d":"$1,846,051.46"},{"v":19605918.14,"d":"$19,605,918.14"},{"v":322773.21,"d":"$322,773.21"},{"v":6481.610000000001,"d":"$6,481.61"},{"v":593590.2500000001,"d":"$593,590.25"},{"v":19605918.0542,"d":"$19,605,918.05"}]
["09010008026","HERITAGE COMM UNIT SCH DIST 8",375.78,{"v":4796234.42,"d":"$4,796,234.42"},{"v":5414147.819999999,"d":"$5,414,147.82"},{"v":1.1288330273064509,"d":"113%"},4,{"v":305.51,"d":"$305.51"},{"v":638555.84,"d":"$638,555.84"},{"v":638861.35,"d":"$638,861.35"},{"v":0.9,"d":"0.90"},{"v":1130330.79,"d":"$1,130,330.79"},{"v":279276.88,"d":"$279,276.88"},{"v":122764.91,"d":"$122,764.91"},{"v":48421.38,"d":"$48,421.38"},{"v":37471.81,"d":"$37,471.81"},{"v":85312.18,"d":"$85,312.18"},{"v":26972.88,"d":"$26,972.88"},{"v":45978.69,"d":"$45,978.69"},{"v":53623.65,"d":"$53,623.65"},{"v":33147.43,"d":"$33,147.43"},{"v":79552.36,"d":"$79,552.36"},{"v":68494.77,"d":"$68,494.77"},{"v":55172.26,"d":"$55,172.26"},{"v":2066519.9899999995,"d":"$2,066,519.99"},{"v":33685.2,"d":"$33,685.20"},{"v":46972.5,"d":"$46,972.50"},{"v":122128.5,"d":"$122,128.50"},{"v":12776.52,"d":"$12,776.52"},{"v":107285.18,"d":"$107,285.18"},{"v":152624.91999999998,"d":"$152,624.92"},{"v":511436.57999999996,"d":"$511,436.58"},{"v":352105.86000000004,"d":"$352,105.86"},{"v":944361.20292,"d":"$944,361.20"},{"v":2283376.46292,"d":"$2,283,376.46"},{"v":357697.46,"d":"$357,697.46"},{"v":1925679.0029199999,"d":"$1,925,679.00"},{"v":2247606.71292,"d":"$2,247,606.71"},{"v":50814.22,"d":"$50,814.22"},{"v":50814.22,"d":"$50,814.22"},{"v":53453.92,"d":"$53,453.92"},{"v":53453.92,"d":"$53,453.92"},{"v":0,"d":"$0.00"},{"v":0,"d":"$0.00"},{"v":0,"d":"$0.00"},{"v":0,"d":"$0.00"},{"v":0,"d":"$0.00"},{"v":175540.05,"d":"$175,540.05"},{"v":71106.58,"d":"$71,106.58"},{"v":26924.71,"d":"$26,924.71"},{"v":482107.62,"d":"$482,107.62"},{"v":4796234.42,"d":"$4,796,234.42"},{"v":131261.84,"d":"$131,261.84"},{"v":0,"d":"$0.00"},{"v":153719.73,"d":"$153,719.73"},{"v":4796234.322919999,"d":"$4,796,234.32"}]
["09010116022","URBANA SCHOOL DIST 116",4114,{"v":62936737.91,"d":"$62,936,737.91"},{"v":46016294.57,"d":"$46,016,294.57"},{"v":0.7311515674009613,"d":"73%"},1,{"v":1279074.05,"d":"$1,279,074.05"},{"v":11697938.920000002,"d":"$11,697,938.92"},{"v":12977012.970000003,"d":"$12,977,012.97"},{"v":0.9,"d":"0.90"},{"v":13551345.17,"d":"$13,551,345.17"},{"v":3228905.27,"d":"$3,228,905.27"},{"v":1345380.26,"d":"$1,345,380.26"},{"v":549858.77,"d":"$549,858.77"},{"v":519360.01,"d":"$519,360.01"},{"v":908578.02,"d":"$908,578.02"},{"v":301105.44,"d":"$301,105.44"},{"v":505765.65,"d":"$505,765.65"},{"v":613773.46,"d":"$613,773.46"},{"v":366225.66,"d":"$366,225.66"},{"v":910552.1,"d":"$910,552.10"},{"v":783987.43,"d":"$783,987.43"},{"v":606894.94,"d":"$606,894.94"},{"v":24191732.180000007,"d":"$24,191,732.18"},{"v":367290,"d":"$367,290.00"},{"v":514250,"d":"$514,250.00"},{"v":1337050,"d":"$1,337,050.00"},{"v":139876,"d":"$139,876.00"},{"v":2349094,"d":"$2,349,094.00"},{"v":1478407,"d":"$1,478,407.00"},{"v":5599154,"d":"$5,599,154.00"},{"v":3854818,"d":"$3,854,818.00"},{"v":12673368.306,"d":"$12,673,368.31"},{"v":28313307.306,"d":"$28,313,307.31"},{"v":3916034.32,"d":"$3,916,034.32"},{"v":24397272.986,"d":"$24,397,272.99"},{"v":27921703.866,"d":"$27,921,703.87"},{"v":1315890.45,"d":"$1,315,890.45"},{"v":1315890.45,"d":"$1,315,890.45"},{"v":1370664.22,"d":"$1,370,664.22"},{"v":1370664.22,"d":"$1,370,664.22"},{"v":458647.87,"d":"$458,647.87"},{"v":458647.87,"d":"$458,647.87"},{"v":477785.7,"d":"$477,785.70"},{"v":477785.7,"d":"$477,785.70"},{"v":573474.82,"d":"$573,474.82"},{"v":1925001.22,"d":"$1,925,001.22"},{"v":779766.6,"d":"$779,766.60"},{"v":299082.64,"d":"$299,082.64"},{"v":10823301.760000002,"d":"$10,823,301.76"},{"v":62936737.91,"d":"$62,936,737.91"},{"v":4789798.890000001,"d":"$4,789,798.89"},{"v":414365.8,"d":"$414,365.80"},{"v":2026826.57,"d":"$2,026,826.57"},{"v":62936737.80600001,"d":"$62,936,737.81"}]
["09010130004","THOMASBORO C C SCHOOL DIST 130",133.21,{"v":2064670.32,"d":"$2,064,670.32"},{"v":1611574.99,"d":"$1,611,574.99"},{"v":0.7805483395528251,"d":"78%"},2,{"v":14376.19,"d":"$14,376.19"},{"v":882296.59,"d":"$882,296.59"},{"v":896672.7799999999,"d":"$896,672.78"},{"v":0.9,"d":"0.90"},{"v":464421.78,"d":"$464,421.78"},{"v":92884.35,"d":"$92,884.35"},{"v":41421.4,"d":"$41,421.40"},{"v":17572.71,"d":"$17,572.71"},{"v":17898.66,"d":"$17,898.66"},{"v":25026.28,"d":"$25,026.28"},{"v":9357.93,"d":"$9,357.93"},{"v":15504.44,"d":"$15,504.44"},{"v":20290.03,"d":"$20,290.03"},{"v":11761.99,"d":"$11,761.99"},{"v":30100.89,"d":"$30,100.89"},{"v":25916.94,"d":"$25,916.94"},{"v":18604.6,"d":"$18,604.60"},{"v":790762,"d":"$790,762.00"},{"v":11921.399999999998,"d":"$11,921.40"},{"v":16651.25,"d":"$16,651.25"},{"v":43293.25,"d":"$43,293.25"},{"v":4529.139999999999,"d":"$4,529.14"},{"v":76062.91,"d":"$76,062.91"},{"v":22528.1,"d":"$22,528.10"},{"v":181298.81,"d":"$181,298.81"},{"v":124817.76999999999,"d":"$124,817.77"},{"v":423117.24144,"d":"$423,117.24"},{"v":904219.87144,"d":"$904,219.87"},{"v":126799.93,"d":"$126,799.93"},{"v":777419.9414400002,"d":"$777,419.94"},{"v":891539.8714400001,"d":"$891,539.87"},{"v":64012.72,"d":"$64,012.72"},{"v":64012.72,"d":"$64,012.72"},{"v":66652.42,"d":"$66,652.42"},{"v":66652.42,"d":"$66,652.42"},{"v":4619.47,"d":"$4,619.47"},{"v":4619.47,"d":"$4,619.47"},{"v":4619.47,"d":"$4,619.47"},{"v":4619.47,"d":"$4,619.47"},{"v":5939.32,"d":"$5,939.32"},{"v":62032.95,"d":"$62,032.95"},{"v":25127.89,"d":"$25,127.89"},{"v":9460.03,"d":"$9,460.03"},{"v":382368.3499999999,"d":"$382,368.35"},{"v":2064670.32,"d":"$2,064,670.32"},{"v":312477.99999999994,"d":"$312,478.00"},{"v":3843.93,"d":"$3,843.93"},{"v":76855.95,"d":"$76,855.95"},{"v":2064670.22144,"d":"$2,064,670.22"}]
["09010137002","RANTOUL CITY SCHOOL DIST 137",1615.3,{"v":24847210.71,"d":"$24,847,210.71"},{"v":17380423.77,"d":"$17,380,423.77"},{"v":0.6994919459110587,"d":"70%"},1,{"v":905100.63,"d":"$905,100.63"},{"v":14730992.540000001,"d":"$14,730,992.54"},{"v":15636093.170000002,"d":"$15,636,093.17"},{"v":0.9,"d":"0.90"},{"v":5397334.2,"d":"$5,397,334.20"},{"v":1079466.84,"d":"$1,079,466.84"},{"v":506470.77,"d":"$506,470.77"},{"v":224679.72,"d":"$224,679.72"},{"v":213703.81,"d":"$213,703.81"},{"v":305726.47,"d":"$305,726.47"},{"v":117799.93,"d":"$117,799.93"},{"v":191399.68,"d":"$191,399.68"},{"v":259422.55,"d":"$259,422.55"},{"v":143817.08,"d":"$143,817.08"},{"v":384861.45,"d":"$384,861.45"},{"v":331366.59,"d":"$331,366.59"},{"v":229670.6,"d":"$229,670.60"},{"v":9385719.689999998,"d":"$9,385,719.69"},{"v":143847,"d":"$143,847.00"},{"v":201912.5,"d":"$201,912.50"},{"v":524972.5,"d":"$524,972.50"},{"v":54920.2,"d":"$54,920.20"},{"v":922336.2999999999,"d":"$922,336.30"},{"v":265341.33999999997,"d":"$265,341.34"},{"v":2198423.3,"d":"$2,198,423.30"},{"v":1513536.1,"d":"$1,513,536.10"},{"v":5086447.3572,"d":"$5,086,447.36"},{"v":10911736.5972,"d":"$10,911,736.60"},{"v":1537571.76,"d":"$1,537,571.76"},{"v":9374164.837199999,"d":"$9,374,164.84"},{"v":10757979.4172,"d":"$10,757,979.42"},{"v":604491.3,"d":"$604,491.30"},{"v":604491.3,"d":"$604,491.30"},{"v":630228.37,"d":"$630,228.37"},{"v":630228.37,"d":"$630,228.37"},{"v":197977.5,"d":"$197,977.50"},{"v":197977.5,"d":"$197,977.50"},{"v":205896.6,"d":"$205,896.60"},{"v":205896.6,"d":"$205,896.60"},{"v":247471.87,"d":"$247,471.87"},{"v":755614.12,"d":"$755,614.12"},{"v":306079.11,"d":"$306,079.11"},{"v":117158.89,"d":"$117,158.89"},{"v":4703511.53,"d":"$4,703,511.53"},{"v":24847210.71,"d":"$24,847,210.71"},{"v":4150922.2899999996,"d":"$4,150,922.29"},{"v":340929.12000000005,"d":"$340,929.12"},{"v":1008485.71,"d":"$1,008,485.71"},{"v":24847210.637199998,"d":"$24,847,210.64"}]
["09010142004","LUDLOW C C SCHOOL DIST 142",59.5,{"v":855212.77,"d":"$855,212.77"},{"v":1007793.15,"d":"$1,007,793.15"},{"v":1.1784121862445998,"d":"118%"},4,{"v":54.47,"d":"$54.47"},{"v":439106.78,"d":"$439,106.78"},{"v":439161.25,"d":"$439,161.25"},{"v":0.9,"d":"0.90"},{"v":193927.47,"d":"$193,927.47"},{"v":38785.49,"d":"$38,785.49"},{"v":18200.31,"d":"$18,200.31"},{"v":7531.16,"d":"$7,531.16"},{"v":7441.19,"d":"$7,441.19"},{"v":10145.79,"d":"$10,145.79"},{"v":3853.26,"d":"$3,853.26"},{"v":6682.95,"d":"$6,682.95"},{"v":8695.72,"d":"$8,695.72"},{"v":5079.04,"d":"$5,079.04"},{"v":12900.38,"d":"$12,900.38"},{"v":11107.26,"d":"$11,107.26"},{"v":8019.22,"d":"$8,019.22"},{"v":332369.23999999993,"d":"$332,369.24"},{"v":5355,"d":"$5,355.00"},{"v":7437.5,"d":"$7,437.50"},{"v":19337.5,"d":"$19,337.50"},{"v":2023,"d":"$2,023.00"},{"v":16987.25,"d":"$16,987.25"},{"v":9855.5,"d":"$9,855.50"},{"v":80979.5,"d":"$80,979.50"},{"v":55751.5,"d":"$55,751.50"},{"v":176670.423,"d":"$176,670.42"},{"v":374397.173,"d":"$374,397.17"},{"v":56636.86,"d":"$56,636.86"},{"v":317760.313,"d":"$317,760.31"},{"v":368733.483,"d":"$368,733.48"},{"v":19797.75,"d":"$19,797.75"},{"v":19797.75,"d":"$19,797.75"},{"v":20457.67,"d":"$20,457.67"},{"v":20457.67,"d":"$20,457.67"},{"v":5939.32,"d":"$5,939.32"},{"v":5939.32,"d":"$5,939.32"},{"v":5939.32,"d":"$5,939.32"},{"v":5939.32,"d":"$5,939.32"},{"v":7259.17,"d":"$7,259.17"},{"v":27716.85,"d":"$27,716.85"},{"v":11227.35,"d":"$11,227.35"},{"v":3638.47,"d":"$3,638.47"},{"v":154109.96000000002,"d":"$154,109.96"},{"v":855212.77,"d":"$855,212.77"},{"v":223167.62,"d":"$223,167.62"},{"v":11.81,"d":"$11.81"},{"v":20072.21,"d":"$20,072.21"},{"v":855212.683,"d":"$855,212.68"}]
["09010169004","ST JOSEPH C C SCHOOL DIST 169",763.3,{"v":9272321.85,"d":"$9,272,321.85"},{"v":6735173.62,"d":"$6,735,173.62"},{"v":0.7263740117045225,"d":"73%"},1,{"v":207997.46,"d":"$207,997.46"},{"v":2810696.4899999998,"d":"$2,810,696.49"},{"v":3018693.9499999997,"d":"$3,018,693.95"},{"v":0.9,"d":"0.90"},{"v":2187803.14,"d":"$2,187,803.14"},{"v":437560.62,"d":"$437,560.62"},{"v":239114.45,"d":"$239,114.45"},{"v":106063.89,"d":"$106,063.89"},{"v":72340.44,"d":"$72,340.44"},{"v":146775.76,"d":"$146,775.76"},{"v":55597.16,"d":"$55,597.16"},{"v":90620.8,"d":"$90,620.80"},{"v":122464.83,"d":"$122,464.83"},{"v":67631.45,"d":"$67,631.45"},{"v":181680.4,"d":"$181,680.40"},{"v":156427.24,"d":"$156,427.24"},{"v":108740.69,"d":"$108,740.69"},{"v":3972820.8700000006,"d":"$3,972,820.87"},{"v":68037.3,"d":"$68,037.30"},{"v":95412.5,"d":"$95,412.50"},{"v":248072.5,"d":"$248,072.50"},{"v":25952.199999999997,"d":"$25,952.20"},{"v":435844.30000000005,"d":"$435,844.30"},{"v":128573.93,"d":"$128,573.93"},{"v":1038851.2999999999,"d":"$1,038,851.30"},{"v":715212.1,"d":"$715,212.10"},{"v":1792648.8222,"d":"$1,792,648.82"},{"v":4548604.9522,"d":"$4,548,604.95"},{"v":726570,"d":"$726,570.00"},{"v":3822034.9522,"d":"$3,822,034.95"},{"v":4475947.9522,"d":"$4,475,947.95"},{"v":60053.17,"d":"$60,053.17"},{"v":60053.17,"d":"$60,053.17"},{"v":62692.87,"d":"$62,692.87"},{"v":62692.87,"d":"$62,692.87"},{"v":3959.55,"d":"$3,959.55"},{"v":3959.55,"d":"$3,959.55"},{"v":3959.55,"d":"$3,959.55"},{"v":3959.55,"d":"$3,959.55"},{"v":5279.4,"d":"$5,279.40"},{"v":357019.42,"d":"$357,019.42"},{"v":144619.03,"d":"$144,619.03"},{"v":55304.82,"d":"$55,304.82"},{"v":823552.9499999998,"d":"$823,552.95"},{"v":9272321.85,"d":"$9,272,321.85"},{"v":69369.99,"d":"$69,369.99"},{"v":792.95,"d":"$792.95"},{"v":254707.22000000003,"d":"$254,707.22"},{"v":9272321.7722,"d":"$9,272,321.77"}]
["09010188004","GIFFORD C C SCHOOL DIST 188",166.47,{"v":2053957.46,"d":"$2,053,957.46"},{"v":2227559.86,"d":"$2,227,559.86"},{"v":1.0845209325805607,"d":"108%"},4,{"v":130.83,"d":"$130.83"},{"v":305449.05999999994,"d":"$305,449.06"},{"v":305579.88999999996,"d":"$305,579.89"},{"v":0.9,"d":"0.90"},{"v":498312.01,"d":"$498,312.01"},{"v":99662.4,"d":"$99,662.40"},{"v":51462.95,"d":"$51,462.95"},{"v":21965.89,"d":"$21,965.89"},{"v":16816.48,"d":"$16,816.48"},{"v":31113.75,"d":"$31,113.75"},{"v":11559.8,"d":"$11,559.80"},{"v":19246.89,"d":"$19,246.89"},{"v":25362.54,"d":"$25,362.54"},{"v":14435.17,"d":"$14,435.17"},{"v":37626.12,"d":"$37,626.12"},{"v":32396.17,"d":"$32,396.17"},{"v":23095.36,"d":"$23,095.36"},{"v":883055.5300000001,"d":"$883,055.53"},{"v":14922.899999999998,"d":"$14,922.90"},{"v":20808.75,"d":"$20,808.75"},{"v":54102.75,"d":"$54,102.75"},{"v":5659.98,"d":"$5,659.98"},{"v":47527.18,"d":"$47,527.18"},{"v":27979.01,"d":"$27,979.01"},{"v":226565.66999999998,"d":"$226,565.67"},{"v":155982.39,"d":"$155,982.39"},{"v":410512.95408,"d":"$410,512.95"},{"v":964061.58408,"d":"$964,061.58"},{"v":158459.46,"d":"$158,459.46"},{"v":805602.12408,"d":"$805,602.12"},{"v":948215.63408,"d":"$948,215.63"},{"v":25077.15,"d":"$25,077.15"},{"v":25077.15,"d":"$25,077.15"},{"v":25737.07,"d":"$25,737.07"},{"v":25737.07,"d":"$25,737.07"},{"v":0,"d":"$0.00"},{"v":0,"d":"$0.00"},{"v":0,"d":"$0.00"},{"v":0,"d":"$0.00"},{"v":0,"d":"$0.00"},{"v":77871.15,"d":"$77,871.15"},{"v":31543.52,"d":"$31,543.52"},{"v":11643.12,"d":"$11,643.12"},{"v":222686.22999999998,"d":"$222,686.23"},{"v":2053957.46,"d":"$2,053,957.46"},{"v":38377.15,"d":"$38,377.15"},{"v":0,"d":"$0.00"},{"v":41925.37000000001,"d":"$41,925.37"},{"v":2053957.39408,"d":"$2,053,957.39"}]
["09010193017","RANTOUL TOWNSHIP H S DIST 193",826,{"v":13370845.82,"d":"$13,370,845.82"},{"v":8525051.83,"d":"$8,525,051.83"},{"v":0.6375850821081415,"d":"64%"},1,{"v":769566.75,"d":"$769,566.75"},{"v":5879671.65,"d":"$5,879,671.65"},{"v":6649238.4,"d":"$6,649,238.40"},{"v":0.9,"d":"0.90"},{"v":2751673.14,"d":"$2,751,673.14"},{"v":917132.65,"d":"$917,132.65"},{"v":298121.98,"d":"$298,121.98"},{"v":98892.76,"d":"$98,892.76"},{"v":101881.77,"d":"$101,881.77"},{"v":254410.2,"d":"$254,410.20"},{"v":60551.37,"d":"$60,551.37"},{"v":110402.33,"d":"$110,402.33"},{"v":99276.22,"d":"$99,276.22"},{"v":73512.45,"d":"$73,512.45"},{"v":147279.38,"d":"$147,279.38"},{"v":126807.88,"d":"$126,807.88"},{"v":132477.59,"d":"$132,477.59"},{"v":5172419.72,"d":"$5,172,419.72"},{"v":74340,"d":"$74,340.00"},{"v":103250,"d":"$103,250.00"},{"v":268450,"d":"$268,450.00"},{"v":28084,"d":"$28,084.00"},{"v":471646,"d":"$471,646.00"},{"v":709534,"d":"$709,534.00"},{"v":1124186,"d":"$1,124,186.00"},{"v":773962,"d":"$773,962.00"},{"v":2625441.234,"d":"$2,625,441.23"},{"v":6178893.234,"d":"$6,178,893.23"},{"v":786252.88,"d":"$786,252.88"},{"v":5392640.354,"d":"$5,392,640.35"},{"v":6100267.944,"d":"$6,100,267.94"},{"v":267929.55,"d":"$267,929.55"},{"v":267929.55,"d":"$267,929.55"},{"v":279148.27,"d":"$279,148.27"},{"v":279148.27,"d":"$279,148.27"},{"v":75231.45,"d":"$75,231.45"},{"v":75231.45,"d":"$75,231.45"},{"v":78531.07,"d":"$78,531.07"},{"v":78531.07,"d":"$78,531.07"},{"v":94369.27,"d":"$94,369.27"},{"v":386056.12,"d":"$386,056.12"},{"v":156381.03,"d":"$156,381.03"},{"v":59670.99,"d":"$59,670.99"},{"v":2098158.0900000003,"d":"$2,098,158.09"},{"v":13370845.82,"d":"$13,370,845.82"},{"v":1458410.95,"d":"$1,458,410.95"},{"v":98723.71,"d":"$98,723.71"},{"v":460328.9600000001,"d":"$460,328.96"},{"v":13370845.754,"d":"$13,370,845.75"}]
["09010197004","PRAIRIEVIEW-OGDEN CCSD 197",270.5,{"v":3213993.03,"d":"$3,213,993.03"},{"v":3107769.58,"d":"$3,107,769.58"},{"v":0.9669496949718028,"d":"97%"},3,{"v":3652.41,"d":"$3,652.41"},{"v":202735.01,"d":"$202,735.01"},{"v":206387.42,"d":"$206,387.42"},{"v":0.9,"d":"0.90"},{"v":783241.05,"d":"$783,241.05"},{"v":156648.2,"d":"$156,648.20"},{"v":84097.99,"d":"$84,097.99"},{"v":37028.22,"d":"$37,028.22"},{"v":25784.59,"d":"$25,784.59"},{"v":50728.95,"d":"$50,728.95"},{"v":19266.34,"d":"$19,266.34"},{"v":31810.84,"d":"$31,810.84"},{"v":42753.99,"d":"$42,753.99"},{"v":23791.3,"d":"$23,791.30"},{"v":63426.88,"d":"$63,426.88"},{"v":54610.69,"d":"$54,610.69"},{"v":38171.51,"d":"$38,171.51"},{"v":1411360.55,"d":"$1,411,360.55"},{"v":24120,"d":"$24,120.00"},{"v":33812.5,"d":"$33,812.50"},{"v":87912.5,"d":"$87,912.50"},{"v":9197,"d":"$9,197.00"},{"v":77227.75,"d":"$77,227.75"},{"v":44598,"d":"$44,598.00"},{"v":368150.5,"d":"$368,150.50"},{"v":253458.5,"d":"$253,458.50"},{"v":636803.8079999998,"d":"$636,803.81"},{"v":1535280.5579999997,"d":"$1,535,280.56"},{"v":257483.54,"d":"$257,483.54"},{"v":1277797.0179999997,"d":"$1,277,797.02"},{"v":1509532.1979999996,"d":"$1,509,532.20"},{"v":23757.3,"d":"$23,757.30"},{"v":23757.3,"d":"$23,757.30"},{"v":24417.22,"d":"$24,417.22"},{"v":24417.22,"d":"$24,417.22"},{"v":0,"d":"$0.00"},{"v":0,"d":"$0.00"},{"v":0,"d":"$0.00"},{"v":0,"d":"$0.00"},{"v":0,"d":"$0.00"},{"v":126045.67,"d":"$126,045.67"},{"v":51057.73,"d":"$51,057.73"},{"v":19647.76,"d":"$19,647.76"},{"v":293100.2,"d":"$293,100.20"},{"v":3213993.03,"d":"$3,213,993.03"},{"v":24623.51,"d":"$24,623.51"},{"v":8.25,"d":"$8.25"},{"v":56357.200000000004,"d":"$56,357.20"},{"v":3213992.948,"d":"$3,213,992.95"}]
["09010305016","ST JOSEPH OGDEN C H S DIST 305",457,{"v":6168014.66,"d":"$6,168,014.66"},{"v":4380790.42,"d":"$4,380,790.42"},{"v":0.710243191931713,"d":"71%"},1,{"v":169039.84,"d":"$169,039.84"},{"v":1107804.75,"d":"$1,107,804.75"},{"v":1276844.59,"d":"$1,276,844.59"},{"v":0.9,"d":"0.90"},{"v":1362843.36,"d":"$1,362,843.36"},{"v":454235.68,"d":"$454,235.68"},{"v":164580.66,"d":"$164,580.66"},{"v":54860.22,"d":"$54,860.22"},{"v":42712.34,"d":"$42,712.34"},{"v":140311.08,"d":"$140,311.08"},{"v":33028.02,"d":"$33,028.02"},{"v":60948.5,"d":"$60,948.50"},{"v":55072.94,"d":"$55,072.94"},{"v":40632.33,"d":"$40,632.33"},{"v":81702.43,"d":"$81,702.43"},{"v":70345.98,"d":"$70,345.98"},{"v":73135.33,"d":"$73,135.33"},{"v":2634408.87,"d":"$2,634,408.87"},{"v":41130,"d":"$41,130.00"},{"v":57125,"d":"$57,125.00"},{"v":148525,"d":"$148,525.00"},{"v":15538,"d":"$15,538.00"},{"v":260947,"d":"$260,947.00"},{"v":392563,"d":"$392,563.00"},{"v":621977,"d":"$621,977.00"},{"v":428209,"d":"$428,209.00"},{"v":1148574.369,"d":"$1,148,574.37"},{"v":3114588.369,"d":"$3,114,588.37"},{"v":435009.16,"d":"$435,009.16"},{"v":2679579.209,"d":"$2,679,579.21"},{"v":3071087.449,"d":"$3,071,087.45"},{"v":31676.4,"d":"$31,676.40"},{"v":31676.4,"d":"$31,676.40"},{"v":32996.25,"d":"$32,996.25"},{"v":32996.25,"d":"$32,996.25"},{"v":0,"d":"$0.00"},{"v":0,"d":"$0.00"},{"v":0,"d":"$0.00"},{"v":0,"d":"$0.00"},{"v":0,"d":"$0.00"},{"v":213815.7,"d":"$213,815.70"},{"v":86611.03,"d":"$86,611.03"},{"v":32746.27,"d":"$32,746.27"},{"v":462518.30000000005,"d":"$462,518.30"},{"v":6168014.66,"d":"$6,168,014.66"},{"v":34462.969999999994,"d":"$34,462.97"},{"v":6.89,"d":"$6.89"},{"v":120142.97999999998,"d":"$120,142.98"},{"v":6168014.619,"d":"$6,168,014.62"}]
["09027005026","GIBSON CITY-MELVIN-SIBLEY CUSD 5",923.87,{"v":12358458.78,"d":"$12,358,458.78"},{"v":11550630.58,"d":"$11,550,630.58"},{"v":0.9346335805798593,"d":"93%"},3,{"v":14044.28,"d":"$14,044.28"},{"v":2761056.9599999995,"d":"$2,761,056.96"},{"v":2775101.2399999993,"d":"$2,775,101.24"},{"v":0.9,"d":"0.90"},{"v":2813557.58,"d":"$2,813,557.58"},{"v":681930.49,"d":"$681,930.49"},{"v":302172.08,"d":"$302,172.08"},{"v":122417.89,"d":"$122,417.89"},{"v":95854.84,"d":"$95,854.84"},{"v":208960.25,"d":"$208,960.25"},{"v":67156.97,"d":"$67,156.97"},{"v":113877.46,"d":"$113,877.46"},{"v":136233.07,"d":"$136,233.07"},{"v":82066.62,"d":"$82,066.62"},{"v":202106.01,"d":"$202,106.01"},{"v":174013.74,"d":"$174,013.74"},{"v":136647.59,"d":"$136,647.59"},{"v":5136994.590000001,"d":"$5,136,994.59"},{"v":82421.1,"d":"$82,421.10"},{"v":115483.75,"d":"$115,483.75"},{"v":300257.75,"d":"$300,257.75"},{"v":31411.579999999994,"d":"$31,411.58"},{"v":527529.77,"d":"$527,529.77"},{"v":351534.39,"d":"$351,534.39"},{"v":1257387.0699999998,"d":"$1,257,387.07"},{"v":865666.19,"d":"$865,666.19"},{"v":2402581.4296799996,"d":"$2,402,581.43"},{"v":5934273.029679999,"d":"$5,934,273.03"},{"v":879413.37,"d":"$879,413.37"},{"v":5054859.659679999,"d":"$5,054,859.66"},{"v":5846331.689679999,"d":"$5,846,331.69"},{"v":155082.37,"d":"$155,082.37"},{"v":155082.37,"d":"$155,082.37"},{"v":161681.62,"d":"$161,681.62"},{"v":161681.62,"d":"$161,681.62"},{"v":12538.57,"d":"$12,538.57"},{"v":12538.57,"d":"$12,538.57"},{"v":13198.5,"d":"$13,198.50"},{"v":13198.5,"d":"$13,198.50"},{"v":15838.2,"d":"$15,838.20"},{"v":432250.87,"d":"$432,250.87"},{"v":175093.29,"d":"$175,093.29"},{"v":66947.94,"d":"$66,947.94"},{"v":1375132.42,"d":"$1,375,132.42"},{"v":12358458.78,"d":"$12,358,458.78"},{"v":273721.45,"d":"$273,721.45"},{"v":727.47,"d":"$727.47"},{"v":358977.80999999994,"d":"$358,977.81"},{"v":12358458.699679999,"d":"$12,358,458.70"}]
["09027010026","PAXTON-BUCKLEY-LODA CU DIST 10",1257.46,{"v":17357906.03,"d":"$17,357,906.03"},{"v":13205859.899999999,"d":"$13,205,859.90"},{"v":0.7607979831885285,"d":"76%"},1,{"v":182419.21,"d":"$182,419.21"},{"v":4742411.9399999995,"d":"$4,742,411.94"},{"v":4924831.149999999,"d":"$4,924,831.15"},{"v":0.9,"d":"0.90"},{"v":3921207.13,"d":"$3,921,207.13"},{"v":962348.22,"d":"$962,348.22"},{"v":413922.99,"d":"$413,922.99"},{"v":166634.59,"d":"$166,634.59"},{"v":136083,"d":"$136,083.00"},{"v":288468.63,"d":"$288,468.63"},{"v":91377.52,"d":"$91,377.52"},{"v":155311.75,"d":"$155,311.75"},{"v":184784.22,"d":"$184,784.22"},{"v":111738.92,"d":"$111,738.92"},{"v":274133.16,"d":"$274,133.16"},{"v":236029.27,"d":"$236,029.27"},{"v":186366.78,"d":"$186,366.78"},{"v":7128406.179999999,"d":"$7,128,406.18"},{"v":112601.69999999998,"d":"$112,601.70"},{"v":157182.5,"d":"$157,182.50"},{"v":408674.5,"d":"$408,674.50"},{"v":42753.64,"d":"$42,753.64"},{"v":718009.6599999999,"d":"$718,009.66"},{"v":500045.6099999999,"d":"$500,045.61"},{"v":1711403.06,"d":"$1,711,403.06"},{"v":1178240.02,"d":"$1,178,240.02"},{"v":3397465.84044,"d":"$3,397,465.84"},{"v":8226376.530439999,"d":"$8,226,376.53"},{"v":1196951.02,"d":"$1,196,951.02"},{"v":7029425.510439999,"d":"$7,029,425.51"},{"v":8106681.42044,"d":"$8,106,681.42"},{"v":267269.62,"d":"$267,269.62"},{"v":267269.62,"d":"$267,269.62"},{"v":278488.35,"d":"$278,488.35"},{"v":278488.35,"d":"$278,488.35"},{"v":21117.6,"d":"$21,117.60"},{"v":21117.6,"d":"$21,117.60"},{"v":22437.45,"d":"$22,437.45"},{"v":22437.45,"d":"$22,437.45"},{"v":27056.92,"d":"$27,056.92"},{"v":587993.17,"d":"$587,993.17"},{"v":238180.33,"d":"$238,180.33"},{"v":90961.87,"d":"$90,961.87"},{"v":2122818.33,"d":"$2,122,818.33"},{"v":17357906.03,"d":"$17,357,906.03"},{"v":622789.87,"d":"$622,789.87"},{"v":6141.08,"d":"$6,141.08"},{"v":539948.99,"d":"$539,948.99"},{"v":17357905.93044,"d":"$17,357,905.93"}]
[null,"ALT SCH-CLK/CLS/CMBN/DGLAS/EDGR/M",59.65,{"v":849988.41,"d":"$849,988.41"},{"v":731181.4099999999,"d":"$731,181.41"},{"v":0.8602251529523796,"d":"86%"},2,{"v":2728.67,"d":"$2,728.67"},{"v":646182.57,"d":"$646,182.57"},{"v":648911.24,"d":"$648,911.24"},{"v":0.9,"d":"0.90"},{"v":186295.95,"d":"$186,295.95"},{"v":59582.67,"d":"$59,582.67"},{"v":20650.76,"d":"$20,650.76"},{"v":6402.35,"d":"$6,402.35"},{"v":6227.58,"d":"$6,227.58"},{"v":17542.51,"d":"$17,542.51"},{"v":3853.26,"d":"$3,853.26"},{"v":7752.22,"d":"$7,752.22"},{"v":6521.79,"d":"$6,521.79"},{"v":5079.04,"d":"$5,079.04"},{"v":9675.28,"d":"$9,675.28"},{"v":8330.44,"d":"$8,330.44"},{"v":9302.3,"d":"$9,302.30"},{"v":347216.14999999997,"d":"$347,216.15"},{"v":5368.499999999999,"d":"$5,368.50"},{"v":7456.249999999999,"d":"$7,456.25"},{"v":19386.249999999996,"d":"$19,386.25"},{"v":2028.0999999999997,"d":"$2,028.10"},{"v":34060.15,"d":"$34,060.15"},{"v":46969.34999999999,"d":"$46,969.35"},{"v":81183.65,"d":"$81,183.65"},{"v":55892.049999999996,"d":"$55,892.05"},{"v":162049.0416,"d":"$162,049.04"},{"v":414393.3416,"d":"$414,393.34"},{"v":56779.64,"d":"$56,779.64"},{"v":357613.7015999999,"d":"$357,613.70"},{"v":408715.3715999999,"d":"$408,715.37"},{"v":12538.57,"d":"$12,538.57"},{"v":12538.57,"d":"$12,538.57"},{"v":13198.5,"d":"$13,198.50"},{"v":13198.5,"d":"$13,198.50"},{"v":0,"d":"$0.00"},{"v":0,"d":"$0.00"},{"v":0,"d":"$0.00"},{"v":0,"d":"$0.00"},{"v":0,"d":"$0.00"},{"v":27716.85,"d":"$27,716.85"},{"v":11227.35,"d":"$11,227.35"},{"v":3638.47,"d":"$3,638.47"},{"v":94056.81,"d":"$94,056.81"},{"v":849988.41,"d":"$849,988.41"},{"v":19579.98,"d":"$19,579.98"},{"v":0,"d":"$0.00"},{"v":9950.699999999999,"d":"$9,950.70"},{"v":849988.3315999999,"d":"$849,988.33"}]
[null,"SAFE SCH-CLK/CLS/CMBN/DGLAS/EDGR/",114.98,{"v":1648921.5,"d":"$1,648,921.50"},{"v":1091382.22,"d":"$1,091,382.22"},{"v":0.6618763961777441,"d":"66%"},1,{"v":82147.43,"d":"$82,147.43"},{"v":926490.0700000001,"d":"$926,490.07"},{"v":1008637.5,"d":"$1,008,637.50"},{"v":0.9,"d":"0.90"},{"v":356550.61,"d":"$356,550.61"},{"v":110472.44,"d":"$110,472.44"},{"v":40108.43,"d":"$40,108.43"},{"v":13965.66,"d":"$13,965.66"},{"v":12146.06,"d":"$12,146.06"},{"v":33841.31,"d":"$33,841.31"},{"v":8257,"d":"$8,257.00"},{"v":14969.8,"d":"$14,969.80"},{"v":14492.88,"d":"$14,492.88"},{"v":9890.76,"d":"$9,890.76"},{"v":21500.64,"d":"$21,500.64"},{"v":18512.1,"d":"$18,512.10"},{"v":17963.06,"d":"$17,963.06"},{"v":672670.7500000001,"d":"$672,670.75"},{"v":10348.2,"d":"$10,348.20"},{"v":14372.5,"d":"$14,372.50"},{"v":37368.5,"d":"$37,368.50"},{"v":3909.3199999999997,"d":"$3,909.32"},{"v":65653.58,"d":"$65,653.58"},{"v":84951.32,"d":"$84,951.32"},{"v":156487.78,"d":"$156,487.78"},{"v":107736.26,"d":"$107,736.26"},{"v":316348.78572,"d":"$316,348.79"},{"v":797176.24572,"d":"$797,176.25"},{"v":109447.16,"d":"$109,447.16"},{"v":687729.0857199997,"d":"$687,729.09"},{"v":786231.5257199998,"d":"$786,231.53"},{"v":25077.15,"d":"$25,077.15"},{"v":25077.15,"d":"$25,077.15"},{"v":26397,"d":"$26,397.00"},{"v":26397,"d":"$26,397.00"},{"v":659.92,"d":"$659.92"},{"v":659.92,"d":"$659.92"},{"v":659.92,"d":"$659.92"},{"v":659.92,"d":"$659.92"},{"v":1319.85,"d":"$1,319.85"},{"v":53453.92,"d":"$53,453.92"},{"v":21652.75,"d":"$21,652.75"},{"v":8004.64,"d":"$8,004.64"},{"v":190019.14,"d":"$190,019.14"},{"v":1648921.5,"d":"$1,648,921.50"},{"v":63397.07000000001,"d":"$63,397.07"},{"v":262.87,"d":"$262.87"},{"v":33220.729999999996,"d":"$33,220.73"},{"v":1648921.41572,"d":"$1,648,921.42"}]
["11012002C26","MARSHALL C U SCHOOL DIST 2C",1221.21,{"v":16257723.18,"d":"$16,257,723.18"},{"v":12181602.69,"d":"$12,181,602.69"},{"v":0.7492809758863171,"d":"75%"},1,{"v":261491.44,"d":"$261,491.44"},{"v":6604786.15,"d":"$6,604,786.15"},{"v":6866277.590000001,"d":"$6,866,277.59"},{"v":0.9,"d":"0.90"},{"v":3711775.67,"d":"$3,711,775.67"},{"v":890536.91,"d":"$890,536.91"},{"v":398888.46,"d":"$398,888.46"},{"v":162459.88,"d":"$162,459.88"},{"v":126176.4,"d":"$126,176.40"},{"v":272387.95,"d":"$272,387.95"},{"v":88625.18,"d":"$88,625.18"},{"v":149965.39,"d":"$149,965.39"},{"v":181161,"d":"$181,161.00"},{"v":108531.1,"d":"$108,531.10"},{"v":268758,"d":"$268,758.00"},{"v":231401.25,"d":"$231,401.25"},{"v":179951.4,"d":"$179,951.40"},{"v":6770618.59,"d":"$6,770,618.59"},{"v":108551.70000000001,"d":"$108,551.70"},{"v":152651.25,"d":"$152,651.25"},{"v":396893.24999999994,"d":"$396,893.25"},{"v":41521.14,"d":"$41,521.14"},{"v":697310.91,"d":"$697,310.91"},{"v":446440.75,"d":"$446,440.75"},{"v":1662066.81,"d":"$1,662,066.81"},{"v":1144273.77,"d":"$1,144,273.77"},{"v":3161070.6434400002,"d":"$3,161,070.64"},{"v":7810780.223440001,"d":"$7,810,780.22"},{"v":1162445.37,"d":"$1,162,445.37"},{"v":6648334.853440001,"d":"$6,648,334.85"},{"v":7694535.683440001,"d":"$7,694,535.68"},{"v":216455.4,"d":"$216,455.40"},{"v":216455.4,"d":"$216,455.40"},{"v":225034.42,"d":"$225,034.42"},{"v":225034.42,"d":"$225,034.42"},{"v":3299.62,"d":"$3,299.62"},{"v":3299.62,"d":"$3,299.62"},{"v":3299.62,"d":"$3,299.62"},{"v":3299.62,"d":"$3,299.62"},{"v":4619.47,"d":"$4,619.47"},{"v":571495.05,"d":"$571,495.05"},{"v":231497.38,"d":"$231,497.38"},{"v":88778.79,"d":"$88,778.79"},{"v":1792568.81,"d":"$1,792,568.81"},{"v":16257723.18,"d":"$16,257,723.18"},{"v":589169.3600000001,"d":"$589,169.36"},{"v":1914.6100000000001,"d":"$1,914.61"},{"v":553235.29,"d":"$553,235.29"},{"v":16257723.08344,"d":"$16,257,723.08"}]
["11012003C26","MARTINSVILLE C U SCH DIST 3C",348.75,{"v":4871780.34,"d":"$4,871,780.34"},{"v":4049902.46,"d":"$4,049,902.46"},{"v":0.8312982477366786,"d":"83%"},2,{"v":20845.65,"d":"$20,845.65"},{"v":2252261.93,"d":"$2,252,261.93"},{"v":2273107.58,"d":"$2,273,107.58"},{"v":0.9,"d":"0.90"},{"v":1116007.26,"d":"$1,116,007.26"},{"v":263710.88,"d":"$263,710.88"},{"v":112282.09,"d":"$112,282.09"},{"v":45973.1,"d":"$45,973.10"},{"v":38958.84,"d":"$38,958.84"},{"v":75195.41,"d":"$75,195.41"},{"v":24771.01,"d":"$24,771.01"},{"v":42236.24,"d":"$42,236.24"},{"v":51449.72,"d":"$51,449.72"},{"v":30741.57,"d":"$30,741.57"},{"v":76327.27,"d":"$76,327.27"},{"v":65717.95,"d":"$65,717.95"},{"v":50681.5,"d":"$50,681.50"},{"v":1994052.8400000003,"d":"$1,994,052.84"},{"v":31140,"d":"$31,140.00"},{"v":43593.75,"d":"$43,593.75"},{"v":113343.75,"d":"$113,343.75"},{"v":11857.5,"d":"$11,857.50"},{"v":199136.25,"d":"$199,136.25"},{"v":120993,"d":"$120,993.00"},{"v":474648.75,"d":"$474,648.75"},{"v":326778.75,"d":"$326,778.75"},{"v":960824.4750000001,"d":"$960,824.48"},{"v":2282316.225,"d":"$2,282,316.23"},{"v":331968.15,"d":"$331,968.15"},{"v":1950348.0750000002,"d":"$1,950,348.08"},{"v":2249119.4050000003,"d":"$2,249,119.41"},{"v":91729.57,"d":"$91,729.57"},{"v":91729.57,"d":"$91,729.57"},{"v":95689.12,"d":"$95,689.12"},{"v":95689.12,"d":"$95,689.12"},{"v":0,"d":"$0.00"},{"v":0,"d":"$0.00"},{"v":0,"d":"$0.00"},{"v":0,"d":"$0.00"},{"v":0,"d":"$0.00"},{"v":163001.47,"d":"$163,001.47"},{"v":66027.54,"d":"$66,027.54"},{"v":24741.63,"d":"$24,741.63"},{"v":628608.02,"d":"$628,608.02"},{"v":4871780.34,"d":"$4,871,780.34"},{"v":384314.02999999997,"d":"$384,314.03"},{"v":0,"d":"$0.00"},{"v":131920.06,"d":"$131,920.06"},{"v":4871780.265000001,"d":"$4,871,780.27"}]
["11012004C26","CASEY-WESTFIELD C U SCH DIST 4C",821,{"v":11220964.16,"d":"$11,220,964.16"},{"v":8739122.96,"d":"$8,739,122.96"},{"v":0.778821038494432,"d":"78%"},2,{"v":83516.52,"d":"$83,516.52"},{"v":4483205.49,"d":"$4,483,205.49"},{"v":4566722.01,"d":"$4,566,722.01"},{"v":0.9,"d":"0.90"},{"v":2552519.81,"d":"$2,552,519.81"},{"v":611825.66,"d":"$611,825.66"},{"v":267902.68,"d":"$267,902.68"},{"v":109111.96,"d":"$109,111.96"},{"v":88186.14,"d":"$88,186.14"},{"v":184166.6,"d":"$184,166.60"},{"v":59450.43,"d":"$59,450.43"},{"v":100778.88,"d":"$100,778.88"},{"v":121740.19,"d":"$121,740.19"},{"v":72710.49,"d":"$72,710.49"},{"v":180605.37,"d":"$180,605.37"},{"v":155501.64,"d":"$155,501.64"},{"v":120929.91,"d":"$120,929.91"},{"v":4625429.760000001,"d":"$4,625,429.76"},{"v":72900,"d":"$72,900.00"},{"v":102625,"d":"$102,625.00"},{"v":266825,"d":"$266,825.00"},{"v":27914,"d":"$27,914.00"},{"v":468791,"d":"$468,791.00"},{"v":300680,"d":"$300,680.00"},{"v":1117381,"d":"$1,117,381.00"},{"v":769277,"d":"$769,277.00"},{"v":2196969.624,"d":"$2,196,969.62"},{"v":5323362.624,"d":"$5,323,362.62"},{"v":781493.48,"d":"$781,493.48"},{"v":4541869.143999999,"d":"$4,541,869.14"},{"v":5245213.273999999,"d":"$5,245,213.27"},{"v":181479.37,"d":"$181,479.37"},{"v":181479.37,"d":"$181,479.37"},{"v":188738.55,"d":"$188,738.55"},{"v":188738.55,"d":"$188,738.55"},{"v":1979.77,"d":"$1,979.77"},{"v":1979.77,"d":"$1,979.77"},{"v":1979.77,"d":"$1,979.77"},{"v":1979.77,"d":"$1,979.77"},{"v":2639.7,"d":"$2,639.70"},{"v":384076.35,"d":"$384,076.35"},{"v":155579.07,"d":"$155,579.07"},{"v":59670.99,"d":"$59,670.99"},{"v":1350321.0300000003,"d":"$1,350,321.03"},{"v":11220964.16,"d":"$11,220,964.16"},{"v":521820.05999999994,"d":"$521,820.06"},{"v":656.6,"d":"$656.60"},{"v":351781.5800000001,"d":"$351,781.58"},{"v":11220964.064,"d":"$11,220,964.06"}]
["11015001026","CHARLESTON C U SCHOOL DIST 1",2545.37,{"v":35377357.75,"d":"$35,377,357.75"},{"v":25870307.85,"d":"$25,870,307.85"},{"v":0.7312673838678639,"d":"73%"},1,{"v":758854.62,"d":"$758,854.62"},{"v":10288370.049999999,"d":"$10,288,370.05"},{"v":11047224.669999998,"d":"$11,047,224.67"},{"v":0.9,"d":"0.90"},{"v":8013340.89,"d":"$8,013,340.89"},{"v":1931554.76,"d":"$1,931,554.76"},{"v":833772.77,"d":"$833,772.77"},{"v":338947.53,"d":"$338,947.53"},{"v":279733.51,"d":"$279,733.51"},{"v":572747.86,"d":"$572,747.86"},{"v":186057.84,"d":"$186,057.84"},{"v":313564.01,"d":"$313,564.01"},{"v":377539.52,"d":"$377,539.52"},{"v":226418.34,"d":"$226,418.34"},{"v":560091.67,"d":"$560,091.67"},{"v":482240.2,"d":"$482,240.20"},{"v":376262.03,"d":"$376,262.03"},{"v":14492270.929999996,"d":"$14,492,270.93"},{"v":226623.59999999998,"d":"$226,623.60"},{"v":318171.25,"d":"$318,171.25"},{"v":827245.25,"d":"$827,245.25"},{"v":86542.58000000002,"d":"$86,542.58"},{"v":1453406.27,"d":"$1,453,406.27"},{"v":949891.6399999999,"d":"$949,891.64"},{"v":3464248.5700000003,"d":"$3,464,248.57"},{"v":2385011.69,"d":"$2,385,011.69"},{"v":6952342.54668,"d":"$6,952,342.55"},{"v":16663483.39668,"d":"$16,663,483.40"},{"v":2422886.79,"d":"$2,422,886.79"},{"v":14240596.606679998,"d":"$14,240,596.61"},{"v":16421194.716679998,"d":"$16,421,194.72"},{"v":607790.92,"d":"$607,790.92"},{"v":607790.92,"d":"$607,790.92"},{"v":633528,"d":"$633,528.00"},{"v":633528,"d":"$633,528.00"},{"v":23097.37,"d":"$23,097.37"},{"v":23097.37,"d":"$23,097.37"},{"v":23757.3,"d":"$23,757.30"},{"v":23757.3,"d":"$23,757.30"},{"v":29036.7,"d":"$29,036.70"},{"v":1191164.62,"d":"$1,191,164.62"},{"v":482508.99,"d":"$482,508.99"},{"v":184834.53,"d":"$184,834.53"},{"v":4463892.0200000005,"d":"$4,463,892.02"},{"v":35377357.75,"d":"$35,377,357.75"},{"v":1662599.0499999998,"d":"$1,662,599.05"},{"v":13746.32,"d":"$13,746.32"},{"v":1126364.0999999999,"d":"$1,126,364.10"},{"v":35377357.66667999,"d":"$35,377,357.67"}]
["11015002026","MATTOON C U SCHOOL DIST 2",2969.71,{"v":41916953.31,"d":"$41,916,953.31"},{"v":32234796.78,"d":"$32,234,796.78"},{"v":0.7690157378950021,"d":"77%"},1,{"v":395435.66,"d":"$395,435.66"},{"v":16076926.79,"d":"$16,076,926.79"},{"v":16472362.45,"d":"$16,472,362.45"},{"v":0.9,"d":"0.90"},{"v":9445766.87,"d":"$9,445,766.87"},{"v":2300309.71,"d":"$2,300,309.71"},{"v":975305.65,"d":"$975,305.65"},{"v":395120.71,"d":"$395,120.71"},{"v":332555.42,"d":"$332,555.42"},{"v":677631.72,"d":"$677,631.72"},{"v":217434.46,"d":"$217,434.46"},{"v":366492.97,"d":"$366,492.97"},{"v":439134.26,"d":"$439,134.26"},{"v":264110.18,"d":"$264,110.18"},{"v":651469.39,"d":"$651,469.39"},{"v":560916.63,"d":"$560,916.63"},{"v":439774.29,"d":"$439,774.29"},{"v":17066022.26,"d":"$17,066,022.26"},{"v":264087,"d":"$264,087.00"},{"v":371213.75,"d":"$371,213.75"},{"v":965155.75,"d":"$965,155.75"},{"v":100970.14000000001,"d":"$100,970.14"},{"v":1695704.4100000001,"d":"$1,695,704.41"},{"v":1146552.84,"d":"$1,146,552.84"},{"v":4041775.3099999996,"d":"$4,041,775.31"},{"v":2782618.27,"d":"$2,782,618.27"},{"v":8260781.99244,"d":"$8,260,781.99"},{"v":19628859.46244,"d":"$19,628,859.46"},{"v":2826807.55,"d":"$2,826,807.55"},{"v":16802051.91244,"d":"$16,802,051.91"},{"v":19346178.702439997,"d":"$19,346,178.70"},{"v":797849.32,"d":"$797,849.32"},{"v":797849.32,"d":"$797,849.32"},{"v":831505.5,"d":"$831,505.50"},{"v":831505.5,"d":"$831,505.50"},{"v":14518.35,"d":"$14,518.35"},{"v":14518.35,"d":"$14,518.35"},{"v":15178.27,"d":"$15,178.27"},{"v":15178.27,"d":"$15,178.27"},{"v":18477.9,"d":"$18,477.90"},{"v":1389802.05,"d":"$1,389,802.05"},{"v":562971.7,"d":"$562,971.70"},{"v":215397.72,"d":"$215,397.72"},{"v":5504752.25,"d":"$5,504,752.25"},{"v":41916953.31,"d":"$41,916,953.31"},{"v":3185835.5699999994,"d":"$3,185,835.57"},{"v":2791.66,"d":"$2,791.66"},{"v":1434875.7599999998,"d":"$1,434,875.76"},{"v":41916953.21244,"d":"$41,916,953.21"}]
["11015005026","OAKLAND C U SCHOOL DIST 5",242.29,{"v":3319421.15,"d":"$3,319,421.15"},{"v":2931798.4899999998,"d":"$2,931,798.49"},{"v":0.8832258268885224,"d":"88%"},2,{"v":5027.43,"d":"$5,027.43"},{"v":830751.8299999998,"d":"$830,751.83"},{"v":835779.2599999999,"d":"$835,779.26"},{"v":0.9,"d":"0.90"},{"v":762218.03,"d":"$762,218.03"},{"v":181598.85,"d":"$181,598.85"},{"v":78516.07,"d":"$78,516.07"},{"v":31161.38,"d":"$31,161.38"},{"v":26285.95,"d":"$26,285.95"},{"v":52605.52,"d":"$52,605.52"},{"v":17614.94,"d":"$17,614.94"},{"v":29404.98,"d":"$29,404.98"},{"v":34782.91,"d":"$34,782.91"},{"v":21118.12,"d":"$21,118.12"},{"v":51601.53,"d":"$51,601.53"},{"v":44429.04,"d":"$44,429.04"},{"v":35284.59,"d":"$35,284.59"},{"v":1366621.91,"d":"$1,366,621.91"},{"v":21611.7,"d":"$21,611.70"},{"v":30286.25,"d":"$30,286.25"},{"v":78744.25,"d":"$78,744.25"},{"v":8237.859999999999,"d":"$8,237.86"},{"v":138347.59,"d":"$138,347.59"},{"v":86741.23,"d":"$86,741.23"},{"v":329756.69,"d":"$329,756.69"},{"v":227025.72999999998,"d":"$227,025.73"},{"v":650753.7255599999,"d":"$650,753.73"},{"v":1571505.02556,"d":"$1,571,505.03"},{"v":230631,"d":"$230,631.00"},{"v":1340874.02556,"d":"$1,340,874.03"},{"v":1548441.92556,"d":"$1,548,441.93"},{"v":56093.62,"d":"$56,093.62"},{"v":56093.62,"d":"$56,093.62"},{"v":58073.4,"d":"$58,073.40"},{"v":58073.4,"d":"$58,073.40"},{"v":0,"d":"$0.00"},{"v":0,"d":"$0.00"},{"v":0,"d":"$0.00"},{"v":0,"d":"$0.00"},{"v":0,"d":"$0.00"},{"v":112847.17,"d":"$112,847.17"},{"v":45711.37,"d":"$45,711.37"},{"v":17464.68,"d":"$17,464.68"},{"v":404357.26,"d":"$404,357.26"},{"v":3319421.15,"d":"$3,319,421.15"},{"v":186641.34000000003,"d":"$186,641.34"},{"v":0,"d":"$0.00"},{"v":68825.05000000002,"d":"$68,825.05"},{"v":3319421.0955599993,"d":"$3,319,421.10"}]
["11018003026","NEOGA COMM UNIT SCHOOL DIST 3",502.6,{"v":6962782.51,"d":"$6,962,782.51"},{"v":6088077.92,"d":"$6,088,077.92"},{"v":0.8743742765562844,"d":"87%"},2,{"v":10428.78,"d":"$10,428.78"},{"v":2486304.57,"d":"$2,486,304.57"},{"v":2496733.3499999996,"d":"$2,496,733.35"},{"v":0.9,"d":"0.90"},{"v":1574350.64,"d":"$1,574,350.64"},{"v":391462.78,"d":"$391,462.78"},{"v":165287.32,"d":"$165,287.32"},{"v":65492.89,"d":"$65,492.89"},{"v":54504.76,"d":"$54,504.76"},{"v":116287.86,"d":"$116,287.86"},{"v":35780.35,"d":"$35,780.35"},{"v":62017.77,"d":"$62,017.77"},{"v":72464.4,"d":"$72,464.40"},{"v":44374.78,"d":"$44,374.78"},{"v":107503.2,"d":"$107,503.20"},{"v":92560.5,"d":"$92,560.50"},{"v":74418.4,"d":"$74,418.40"},{"v":2856505.6499999994,"d":"$2,856,505.65"},{"v":44679.6,"d":"$44,679.60"},{"v":62825,"d":"$62,825.00"},{"v":163345,"d":"$163,345.00"},{"v":17088.4,"d":"$17,088.40"},{"v":286984.6,"d":"$286,984.60"},{"v":206925.78,"d":"$206,925.78"},{"v":684038.6,"d":"$684,038.60"},{"v":470936.19999999995,"d":"$470,936.20"},{"v":1362467.3634,"d":"$1,362,467.36"},{"v":3299290.5434,"d":"$3,299,290.54"},{"v":478414.88,"d":"$478,414.88"},{"v":2820875.6634,"d":"$2,820,875.66"},{"v":3251449.0534,"d":"$3,251,449.05"},{"v":119446.42,"d":"$119,446.42"},{"v":119446.42,"d":"$119,446.42"},{"v":124725.82,"d":"$124,725.82"},{"v":124725.82,"d":"$124,725.82"},{"v":0,"d":"$0.00"},{"v":0,"d":"$0.00"},{"v":0,"d":"$0.00"},{"v":0,"d":"$0.00"},{"v":0,"d":"$0.00"},{"v":234933.3,"d":"$234,933.30"},{"v":95165.2,"d":"$95,165.20"},{"v":36384.75,"d":"$36,384.75"},{"v":854827.73,"d":"$854,827.73"},{"v":6962782.51,"d":"$6,962,782.51"},{"v":266468.45,"d":"$266,468.45"},{"v":6.65,"d":"$6.65"},{"v":199219.61,"d":"$199,219.61"},{"v":6962782.4333999995,"d":"$6,962,782.43"}]
["11018077026","CUMBERLAND C U SCHOOL DIST 77",966.13,{"v":12910914.67,"d":"$12,910,914.67"},{"v":9418376.91,"d":"$9,418,376.91"},{"v":0.7294895172597404,"d":"73%"},1,{"v":303354.02,"d":"$303,354.02"},{"v":5725100.780000001,"d":"$5,725,100.78"},{"v":6028454.800000001,"d":"$6,028,454.80"},{"v":0.9,"d":"0.90"},{"v":2966695.58,"d":"$2,966,695.58"},{"v":716406.97,"d":"$716,406.97"},{"v":316356.21,"d":"$316,356.21"},{"v":128254.76,"d":"$128,254.76"},{"v":100245.32,"d":"$100,245.32"},{"v":218807.87,"d":"$218,807.87"},{"v":69909.3,"d":"$69,909.30"},{"v":118689.19,"d":"$118,689.19"},{"v":142754.86,"d":"$142,754.86"},{"v":85541.76,"d":"$85,541.76"},{"v":211781.3,"d":"$211,781.30"},{"v":182344.18,"d":"$182,344.18"},{"v":142421.43,"d":"$142,421.43"},{"v":5400208.7299999995,"d":"$5,400,208.73"},{"v":86712.29999999999,"d":"$86,712.30"},{"v":120766.25,"d":"$120,766.25"},{"v":313992.25,"d":"$313,992.25"},{"v":32848.42,"d":"$32,848.42"},{"v":551660.23,"d":"$551,660.23"},{"v":365655.85,"d":"$365,655.85"},{"v":1314902.93,"d":"$1,314,902.93"},{"v":905263.81,"d":"$905,263.81"},{"v":2509626.78432,"d":"$2,509,626.78"},{"v":6201428.82432,"d":"$6,201,428.82"},{"v":919639.82,"d":"$919,639.82"},{"v":5281789.004319998,"d":"$5,281,789.00"},{"v":6109464.8343199985,"d":"$6,109,464.83"},{"v":169600.72,"d":"$169,600.72"},{"v":169600.72,"d":"$169,600.72"},{"v":176859.9,"d":"$176,859.90"},{"v":176859.9,"d":"$176,859.90"},{"v":659.92,"d":"$659.92"},{"v":659.92,"d":"$659.92"},{"v":659.92,"d":"$659.92"},{"v":659.92,"d":"$659.92"},{"v":659.92,"d":"$659.92"},{"v":452048.62,"d":"$452,048.62"},{"v":183112.83,"d":"$183,112.83"},{"v":69858.72,"d":"$69,858.72"},{"v":1401241.0100000002,"d":"$1,401,241.01"},{"v":12910914.67,"d":"$12,910,914.67"},{"v":630020.59,"d":"$630,020.59"},{"v":660.46,"d":"$660.46"},{"v":414384.67000000004,"d":"$414,384.67"},{"v":12910914.574319998,"d":"$12,910,914.57"}]
["11021301026","TUSCOLA C U SCHOOL DIST 301",919.95,{"v":12281376.6,"d":"$12,281,376.60"},{"v":12803259.83,"d":"$12,803,259.83"},{"v":1.0424938707603837,"d":"104%"},4,{"v":782.3,"d":"$782.30"},{"v":1594754.1500000001,"d":"$1,594,754.15"},{"v":1595536.4500000002,"d":"$1,595,536.45"},{"v":0.9,"d":"0.90"},{"v":2801633.23,"d":"$2,801,633.23"},{"v":679545.62,"d":"$679,545.62"},{"v":300822.64,"d":"$300,822.64"},{"v":121790.29,"d":"$121,790.29"},{"v":95104.42,"d":"$95,104.42"},{"v":209636.64,"d":"$209,636.64"},{"v":66606.5,"d":"$66,606.50"},{"v":113075.51,"d":"$113,075.51"},{"v":135508.42,"d":"$135,508.42"},{"v":81531.99,"d":"$81,531.99"},{"v":201030.98,"d":"$201,030.98"},{"v":173088.13,"d":"$173,088.13"},{"v":135685.28,"d":"$135,685.28"},{"v":5115059.65,"d":"$5,115,059.65"},{"v":82135.79999999999,"d":"$82,135.80"},{"v":114993.75,"d":"$114,993.75"},{"v":298983.74999999994,"d":"$298,983.75"},{"v":31278.299999999996,"d":"$31,278.30"},{"v":525291.45,"d":"$525,291.45"},{"v":351339.9199999999,"d":"$351,339.92"},{"v":1252051.95,"d":"$1,252,051.95"},{"v":861993.1499999999,"d":"$861,993.15"},{"v":2385971.5308,"d":"$2,385,971.53"},{"v":5904039.6008,"d":"$5,904,039.60"},{"v":875682,"d":"$875,682.00"},{"v":5028357.600799999,"d":"$5,028,357.60"},{"v":5816471.400799999,"d":"$5,816,471.40"},{"v":164321.32,"d":"$164,321.32"},{"v":164321.32,"d":"$164,321.32"},{"v":171580.5,"d":"$171,580.50"},{"v":171580.5,"d":"$171,580.50"},{"v":1319.85,"d":"$1,319.85"},{"v":1319.85,"d":"$1,319.85"},{"v":1319.85,"d":"$1,319.85"},{"v":1319.85,"d":"$1,319.85"},{"v":1979.77,"d":"$1,979.77"},{"v":430271.1,"d":"$430,271.10"},{"v":174291.33,"d":"$174,291.33"},{"v":66220.24,"d":"$66,220.24"},{"v":1349845.48,"d":"$1,349,845.48"},{"v":12281376.6,"d":"$12,281,376.60"},{"v":271497.22000000003,"d":"$271,497.22"},{"v":121.49000000000001,"d":"$121.49"},{"v":280366.56,"d":"$280,366.56"},{"v":12281376.5308,"d":"$12,281,376.53"}]
["11021302026","VILLA GROVE C U SCH DIST 302",619,{"v":8458202.92,"d":"$8,458,202.92"},{"v":6041358.68,"d":"$6,041,358.68"},{"v":0.7142603147667211,"d":"71%"},1,{"v":232401.27,"d":"$232,401.27"},{"v":2825254.7600000002,"d":"$2,825,254.76"},{"v":3057656.0300000003,"d":"$3,057,656.03"},{"v":0.9,"d":"0.90"},{"v":1914137.73,"d":"$1,914,137.73"},{"v":464808.63,"d":"$464,808.63"},{"v":202441.93,"d":"$202,441.93"},{"v":82093.15,"d":"$82,093.15"},{"v":66158.15,"d":"$66,158.15"},{"v":141881.47,"d":"$141,881.47"},{"v":44587.82,"d":"$44,587.82"},{"v":76185.63,"d":"$76,185.63"},{"v":91305.14,"d":"$91,305.14"},{"v":54800.19,"d":"$54,800.19"},{"v":135454.03,"d":"$135,454.03"},{"v":116626.23,"d":"$116,626.23"},{"v":91419.16,"d":"$91,419.16"},{"v":3481899.26,"d":"$3,481,899.26"},{"v":55035,"d":"$55,035.00"},{"v":77375,"d":"$77,375.00"},{"v":201175,"d":"$201,175.00"},{"v":21046,"d":"$21,046.00"},{"v":353449,"d":"$353,449.00"},{"v":238611.5,"d":"$238,611.50"},{"v":842459,"d":"$842,459.00"},{"v":580003,"d":"$580,003.00"},{"v":1653026.2469999997,"d":"$1,653,026.25"},{"v":4022179.7469999995,"d":"$4,022,179.75"},{"v":589213.72,"d":"$589,213.72"},{"v":3432966.027,"d":"$3,432,966.03"},{"v":3963258.3669999996,"d":"$3,963,258.37"},{"v":127365.52,"d":"$127,365.52"},{"v":127365.52,"d":"$127,365.52"},{"v":132644.92,"d":"$132,644.92"},{"v":132644.92,"d":"$132,644.92"},{"v":7919.1,"d":"$7,919.10"},{"v":7919.1,"d":"$7,919.10"},{"v":7919.1,"d":"$7,919.10"},{"v":7919.1,"d":"$7,919.10"},{"v":9898.87,"d":"$9,898.87"},{"v":289707.07,"d":"$289,707.07"},{"v":117352.6,"d":"$117,352.60"},{"v":44389.39,"d":"$44,389.39"},{"v":1013045.21,"d":"$1,013,045.21"},{"v":8458202.92,"d":"$8,458,202.92"},{"v":298093.47,"d":"$298,093.47"},{"v":3131.12,"d":"$3,131.12"},{"v":247794.64,"d":"$247,794.64"},{"v":8458202.837,"d":"$8,458,202.84"}]
["11021305026","ARTHUR C U SCHOOL DIST 305",989.94,{"v":13356343.68,"d":"$13,356,343.68"},{"v":14334456.26,"d":"$14,334,456.26"},{"v":1.073232061366064,"d":"107%"},4,{"v":850.77,"d":"$850.77"},{"v":2161102.27,"d":"$2,161,102.27"},{"v":2161953.04,"d":"$2,161,953.04"},{"v":0.9,"d":"0.90"},{"v":3063703.39,"d":"$3,063,703.39"},{"v":747066.5,"d":"$747,066.50"},{"v":324924.1,"d":"$324,924.10"},{"v":130420.29,"d":"$130,420.29"},{"v":106986.22,"d":"$106,986.22"},{"v":227004.55,"d":"$227,004.55"},{"v":71560.71,"d":"$71,560.71"},{"v":121897,"d":"$121,897.00"},{"v":144928.8,"d":"$144,928.80"},{"v":87947.62,"d":"$87,947.62"},{"v":215006.4,"d":"$215,006.40"},{"v":185121,"d":"$185,121.00"},{"v":146270.66,"d":"$146,270.66"},{"v":5572837.24,"d":"$5,572,837.24"},{"v":88495.2,"d":"$88,495.20"},{"v":123742.5,"d":"$123,742.50"},{"v":321730.5,"d":"$321,730.50"},{"v":33657.96,"d":"$33,657.96"},{"v":282627.86,"d":"$282,627.86"},{"v":386241.77999999997,"d":"$386,241.78"},{"v":1347308.34,"d":"$1,347,308.34"},{"v":927573.78,"d":"$927,573.78"},{"v":2670070.90716,"d":"$2,670,070.91"},{"v":6181448.82716,"d":"$6,181,448.83"},{"v":942304.08,"d":"$942,304.08"},{"v":5239144.747160001,"d":"$5,239,144.75"},{"v":6087218.417160001,"d":"$6,087,218.42"},{"v":209856.15,"d":"$209,856.15"},{"v":209856.15,"d":"$209,856.15"},{"v":218435.17,"d":"$218,435.17"},{"v":218435.17,"d":"$218,435.17"},{"v":21777.52,"d":"$21,777.52"},{"v":21777.52,"d":"$21,777.52"},{"v":23097.37,"d":"$23,097.37"},{"v":23097.37,"d":"$23,097.37"},{"v":27716.85,"d":"$27,716.85"},{"v":463267.35,"d":"$463,267.35"},{"v":187657.23,"d":"$187,657.23"},{"v":71314.11,"d":"$71,314.11"},{"v":1696287.9600000002,"d":"$1,696,287.96"},{"v":13356343.68,"d":"$13,356,343.68"},{"v":613045.4900000001,"d":"$613,045.49"},{"v":1101.76,"d":"$1,101.76"},{"v":376564.49,"d":"$376,564.49"},{"v":13356343.617160002,"d":"$13,356,343.62"}]
["11021306026","ARCOLA C U SCHOOL DISTRICT 306",641.25,{"v":9221339.95,"d":"$9,221,339.95"},{"v":7479923.39,"d":"$7,479,923.39"},{"v":0.8111536317452434,"d":"81%"},2,{"v":42922.31,"d":"$42,922.31"},{"v":3148288.42,"d":"$3,148,288.42"},{"v":3191210.73,"d":"$3,191,210.73"},{"v":0.9,"d":"0.90"},{"v":2001530.07,"d":"$2,001,530.07"},{"v":481805.99,"d":"$481,805.99"},{"v":209157,"d":"$209,157.00"},{"v":84509.29,"d":"$84,509.29"},{"v":74016.92,"d":"$74,016.92"},{"v":143139.69,"d":"$143,139.69"},{"v":46789.69,"d":"$46,789.69"},{"v":78591.49,"d":"$78,591.49"},{"v":94203.72,"d":"$94,203.72"},{"v":56671.41,"d":"$56,671.41"},{"v":139754.16,"d":"$139,754.16"},{"v":120328.65,"d":"$120,328.65"},{"v":94306.08,"d":"$94,306.08"},{"v":3624804.1600000006,"d":"$3,624,804.16"},{"v":56745,"d":"$56,745.00"},{"v":80156.25,"d":"$80,156.25"},{"v":208406.25,"d":"$208,406.25"},{"v":21802.5,"d":"$21,802.50"},{"v":366153.75,"d":"$366,153.75"},{"v":236676.5,"d":"$236,676.50"},{"v":872741.25,"d":"$872,741.25"},{"v":600851.25,"d":"$600,851.25"},{"v":1828545.831,"d":"$1,828,545.83"},{"v":4272078.581,"d":"$4,272,078.58"},{"v":610393.05,"d":"$610,393.05"},{"v":3661685.5310000004,"d":"$3,661,685.53"},{"v":4211039.271000001,"d":"$4,211,039.27"},{"v":145183.5,"d":"$145,183.50"},{"v":145183.5,"d":"$145,183.50"},{"v":151782.75,"d":"$151,782.75"},{"v":151782.75,"d":"$151,782.75"},{"v":60713.1,"d":"$60,713.10"},{"v":60713.1,"d":"$60,713.10"},{"v":63352.8,"d":"$63,352.80"},{"v":63352.8,"d":"$63,352.80"},{"v":75891.37,"d":"$75,891.37"},{"v":299605.95,"d":"$299,605.95"},{"v":121362.37,"d":"$121,362.37"},{"v":46572.48,"d":"$46,572.48"},{"v":1385496.4700000002,"d":"$1,385,496.47"},{"v":9221339.95,"d":"$9,221,339.95"},{"v":404038.01,"d":"$404,038.01"},{"v":49678.240000000005,"d":"$49,678.24"},{"v":320762.9799999999,"d":"$320,762.98"},{"v":9221339.901000002,"d":"$9,221,339.90"}]
["11023001026","SHILOH COMM UNIT SCH DIST 1",338,{"v":4541400.89,"d":"$4,541,400.89"},{"v":5430909.409999999,"d":"$5,430,909.41"},{"v":1.1958665490110474,"d":"120%"},4,{"v":289.28,"d":"$289.28"},{"v":608784.9699999999,"d":"$608,784.97"},{"v":609074.2499999999,"d":"$609,074.25"},{"v":0.9,"d":"0.90"},{"v":1044506.35,"d":"$1,044,506.35"},{"v":261630.89,"d":"$261,630.89"},{"v":110557.82,"d":"$110,557.82"},{"v":43933.95,"d":"$43,933.95"},{"v":36062.83,"d":"$36,062.83"},{"v":78359.22,"d":"$78,359.22"},{"v":23670.08,"d":"$23,670.08"},{"v":41434.29,"d":"$41,434.29"},{"v":48551.14,"d":"$48,551.14"},{"v":29939.61,"d":"$29,939.61"},{"v":72027.14,"d":"$72,027.14"},{"v":62015.53,"d":"$62,015.53"},{"v":49719.19,"d":"$49,719.19"},{"v":1902408.04,"d":"$1,902,408.04"},{"v":29880,"d":"$29,880.00"},{"v":42250,"d":"$42,250.00"},{"v":109850,"d":"$109,850.00"},{"v":11492,"d":"$11,492.00"},{"v":96499,"d":"$96,499.00"},{"v":141263,"d":"$141,263.00"},{"v":460018,"d":"$460,018.00"},{"v":316706,"d":"$316,706.00"},{"v":904778.874,"d":"$904,778.87"},{"v":2112736.874,"d":"$2,112,736.87"},{"v":321735.44,"d":"$321,735.44"},{"v":1791001.434,"d":"$1,791,001.43"},{"v":2080563.324,"d":"$2,080,563.32"},{"v":76551.3,"d":"$76,551.30"},{"v":76551.3,"d":"$76,551.30"},{"v":79850.92,"d":"$79,850.92"},{"v":79850.92,"d":"$79,850.92"},{"v":0,"d":"$0.00"},{"v":0,"d":"$0.00"},{"v":0,"d":"$0.00"},{"v":0,"d":"$0.00"},{"v":0,"d":"$0.00"},{"v":157722.07,"d":"$157,722.07"},{"v":63889,"d":"$63,889.00"},{"v":24013.93,"d":"$24,013.93"},{"v":558429.4400000001,"d":"$558,429.44"},{"v":4541400.89,"d":"$4,541,400.89"},{"v":260005.7,"d":"$260,005.70"},{"v":0,"d":"$0.00"},{"v":111454.83,"d":"$111,454.83"},{"v":4541400.8040000005,"d":"$4,541,400.80"}]
["11023003026","KANSAS COMM UNIT SCHOOL DIST 3",171.44,{"v":2284731.99,"d":"$2,284,731.99"},{"v":2704634.15,"d":"$2,704,634.15"},{"v":1.1837861779140229,"d":"118%"},4,{"v":145.53,"d":"$145.53"},{"v":585433.86,"d":"$585,433.86"},{"v":585579.39,"d":"$585,579.39"},{"v":0.9,"d":"0.90"},{"v":533671.97,"d":"$533,671.97"},{"v":130020.1,"d":"$130,020.10"},{"v":55262.84,"d":"$55,262.84"},{"v":22186.53,"d":"$22,186.53"},{"v":18277.91,"d":"$18,277.91"},{"v":37834.09,"d":"$37,834.09"},{"v":12110.27,"d":"$12,110.27"},{"v":20850.8,"d":"$20,850.80"},{"v":24637.89,"d":"$24,637.89"},{"v":14969.8,"d":"$14,969.80"},{"v":36551.08,"d":"$36,551.08"},{"v":31470.57,"d":"$31,470.57"},{"v":25019.98,"d":"$25,019.98"},{"v":962863.83,"d":"$962,863.83"},{"v":15309.899999999998,"d":"$15,309.90"},{"v":21430,"d":"$21,430.00"},{"v":55718,"d":"$55,718.00"},{"v":5828.960000000001,"d":"$5,828.96"},{"v":48946.12,"d":"$48,946.12"},{"v":66459.15,"d":"$66,459.15"},{"v":233329.84000000003,"d":"$233,329.84"},{"v":160639.28,"d":"$160,639.28"},{"v":455495.78615999996,"d":"$455,495.79"},{"v":1063157.03616,"d":"$1,063,157.04"},{"v":163190.3,"d":"$163,190.30"},{"v":899966.7361599999,"d":"$899,966.74"},{"v":1046838.0061599999,"d":"$1,046,838.01"},{"v":36955.8,"d":"$36,955.80"},{"v":36955.8,"d":"$36,955.80"},{"v":38275.65,"d":"$38,275.65"},{"v":38275.65,"d":"$38,275.65"},{"v":0,"d":"$0.00"},{"v":0,"d":"$0.00"},{"v":0,"d":"$0.00"},{"v":0,"d":"$0.00"},{"v":0,"d":"$0.00"},{"v":79850.92,"d":"$79,850.92"},{"v":32345.47,"d":"$32,345.47"},{"v":12370.81,"d":"$12,370.81"},{"v":275030.10000000003,"d":"$275,030.10"},{"v":2284731.99,"d":"$2,284,731.99"},{"v":139940.40000000002,"d":"$139,940.40"},{"v":0,"d":"$0.00"},{"v":68466.08999999998,"d":"$68,466.09"},{"v":2284731.93616,"d":"$2,284,731.94"}]
["11023004026","PARIS COMM UNIT SCHOOL DIST 4",584.79,{"v":7659046.08,"d":"$7,659,046.08"},{"v":7231405.2299999995,"d":"$7,231,405.23"},{"v":0.9441652595462645,"d":"94%"},3,{"v":8703.82,"d":"$8,703.82"},{"v":1593718.0300000003,"d":"$1,593,718.03"},{"v":1602421.8500000003,"d":"$1,602,421.85"},{"v":0.9,"d":"0.90"},{"v":1755758.31,"d":"$1,755,758.31"},{"v":428417.87,"d":"$428,417.87"},{"v":190768.19,"d":"$190,768.19"},{"v":77605.73,"d":"$77,605.73"},{"v":58654.26,"d":"$58,654.26"},{"v":133575.73,"d":"$133,575.73"},{"v":42385.95,"d":"$42,385.95"},{"v":71908.54,"d":"$71,908.54"},{"v":86232.63,"d":"$86,232.63"},{"v":51859.69,"d":"$51,859.69"},{"v":127928.8,"d":"$127,928.80"},{"v":110146.99,"d":"$110,146.99"},{"v":86286.86,"d":"$86,286.86"},{"v":3221529.55,"d":"$3,221,529.55"},{"v":52181.09999999999,"d":"$52,181.10"},{"v":73098.75,"d":"$73,098.75"},{"v":190056.75,"d":"$190,056.75"},{"v":19882.86,"d":"$19,882.86"},{"v":333915.08999999997,"d":"$333,915.09"},{"v":227092.22999999998,"d":"$227,092.23"},{"v":795899.19,"d":"$795,899.19"},{"v":547948.23,"d":"$547,948.23"},{"v":1479241.8795599998,"d":"$1,479,241.88"},{"v":3719316.0795599995,"d":"$3,719,316.08"},{"v":556649.9,"d":"$556,649.90"},{"v":3162666.1795599996,"d":"$3,162,666.18"},{"v":3663651.0895599998,"d":"$3,663,651.09"},{"v":85130.32,"d":"$85,130.32"},{"v":85130.32,"d":"$85,130.32"},{"v":88429.95,"d":"$88,429.95"},{"v":88429.95,"d":"$88,429.95"},{"v":0,"d":"$0.00"},{"v":0,"d":"$0.00"},{"v":0,"d":"$0.00"},{"v":0,"d":"$0.00"},{"v":659.92,"d":"$659.92"},{"v":273208.95,"d":"$273,208.95"},{"v":110669.65,"d":"$110,669.65"},{"v":42206.31,"d":"$42,206.31"},{"v":773865.3700000001,"d":"$773,865.37"},{"v":7659046.08,"d":"$7,659,046.08"},{"v":160948.83,"d":"$160,948.83"},{"v":46.379999999999995,"d":"$46.38"},{"v":162240.94999999995,"d":"$162,240.95"},{"v":7659046.009559999,"d":"$7,659,046.01"}]
["11023006026","EDGAR COUNTY C U DIST 6",287.37,{"v":3780683.53,"d":"$3,780,683.53"},{"v":3933061.37,"d":"$3,933,061.37"},{"v":1.0403043097341713,"d":"104%"},4,{"v":240.82,"d":"$240.82"},{"v":646854.0099999999,"d":"$646,854.01"},{"v":647094.8299999998,"d":"$647,094.83"},{"v":0.9,"d":"0.90"},{"v":874635.19,"d":"$874,635.19"},{"v":216976.02,"d":"$216,976.02"},{"v":93736.92,"d":"$93,736.92"},{"v":37280.99,"d":"$37,280.99"},{"v":29816.01,"d":"$29,816.01"},{"v":66591.5,"d":"$66,591.50"},{"v":20367.27,"d":"$20,367.27"},{"v":35285.97,"d":"$35,285.97"},{"v":41304.7,"d":"$41,304.70"},{"v":25127.89,"d":"$25,127.89"},{"v":61276.82,"d":"$61,276.82"},{"v":52759.48,"d":"$52,759.48"},{"v":42341.5,"d":"$42,341.50"},{"v":1597500.2599999998,"d":"$1,597,500.26"},{"v":25525.799999999996,"d":"$25,525.80"},{"v":35921.25,"d":"$35,921.25"},{"v":93395.25,"d":"$93,395.25"},{"v":9770.579999999998,"d":"$9,770.58"},{"v":82044.13,"d":"$82,044.13"},{"v":118053.49999999999,"d":"$118,053.50"},{"v":391110.56999999995,"d":"$391,110.57"},{"v":269265.69,"d":"$269,265.69"},{"v":749830.6276799998,"d":"$749,830.63"},{"v":1774917.3976799995,"d":"$1,774,917.40"},{"v":273541.75,"d":"$273,541.75"},{"v":1501375.6476799997,"d":"$1,501,375.65"},{"v":1747563.2176799998,"d":"$1,747,563.22"},{"v":55433.7,"d":"$55,433.70"},{"v":55433.7,"d":"$55,433.70"},{"v":58073.4,"d":"$58,073.40"},{"v":58073.4,"d":"$58,073.40"},{"v":0,"d":"$0.00"},{"v":0,"d":"$0.00"},{"v":0,"d":"$0.00"},{"v":0,"d":"$0.00"},{"v":0,"d":"$0.00"},{"v":133964.77,"d":"$133,964.77"},{"v":54265.55,"d":"$54,265.55"},{"v":20375.46,"d":"$20,375.46"},{"v":435619.98,"d":"$435,619.98"},{"v":3780683.53,"d":"$3,780,683.53"},{"v":102864.52,"d":"$102,864.52"},{"v":0,"d":"$0.00"},{"v":121605.45999999999,"d":"$121,605.46"},{"v":3780683.4576799995,"d":"$3,780,683.46"}]
["11023095025","PARIS-UNION SCHOOL DIST 95",1110.7,{"v":15763389.57,"d":"$15,763,389.57"},{"v":11929418.65,"d":"$11,929,418.65"},{"v":0.7567800438494143,"d":"76%"},1,{"v":238434.47,"d":"$238,434.47"},{"v":8456495.770000001,"d":"$8,456,495.77"},{"v":8694930.240000002,"d":"$8,694,930.24"},{"v":0.9,"d":"0.90"},{"v":3551363.61,"d":"$3,551,363.61"},{"v":859994.05,"d":"$859,994.05"},{"v":363083.3,"d":"$363,083.30"},{"v":147114.81,"d":"$147,114.81"},{"v":125587.98,"d":"$125,587.98"},{"v":252299.98,"d":"$252,299.98"},{"v":80368.18,"d":"$80,368.18"},{"v":136332.18,"d":"$136,332.18"},{"v":163769.54,"d":"$163,769.54"},{"v":98640.34,"d":"$98,640.34"},{"v":242957.23,"d":"$242,957.23"},{"v":209186.73,"d":"$209,186.73"},{"v":163592.19,"d":"$163,592.19"},{"v":6394290.120000001,"d":"$6,394,290.12"},{"v":98441.09999999999,"d":"$98,441.10"},{"v":138837.5,"d":"$138,837.50"},{"v":360977.49999999994,"d":"$360,977.50"},{"v":37763.799999999996,"d":"$37,763.80"},{"v":634209.7,"d":"$634,209.70"},{"v":420815.56999999995,"d":"$420,815.57"},{"v":1511662.6999999997,"d":"$1,511,662.70"},{"v":1040725.8999999999,"d":"$1,040,725.90"},{"v":3112905.2358,"d":"$3,112,905.24"},{"v":7356339.005799999,"d":"$7,356,339.01"},{"v":1057253.11,"d":"$1,057,253.11"},{"v":6299085.895799999,"d":"$6,299,085.90"},{"v":7250613.685799999,"d":"$7,250,613.69"},{"v":319403.7,"d":"$319,403.70"},{"v":319403.7,"d":"$319,403.70"},{"v":332602.2,"d":"$332,602.20"},{"v":332602.2,"d":"$332,602.20"},{"v":659.92,"d":"$659.92"},{"v":659.92,"d":"$659.92"},{"v":659.92,"d":"$659.92"},{"v":659.92,"d":"$659.92"},{"v":1319.85,"d":"$1,319.85"},{"v":519360.97,"d":"$519,360.97"},{"v":210379.26,"d":"$210,379.26"},{"v":80774.14,"d":"$80,774.14"},{"v":2118485.6999999997,"d":"$2,118,485.70"},{"v":15763389.57,"d":"$15,763,389.57"},{"v":1543905.88,"d":"$1,543,905.88"},{"v":189.38,"d":"$189.38"},{"v":544817.64,"d":"$544,817.64"},{"v":15763389.5058,"d":"$15,763,389.51"}]
["11070300026","SULLIVAN C U SCHOOL DIST 300",1103.25,{"v":14795104.32,"d":"$14,795,104.32"},{"v":10312461.45,"d":"$10,312,461.45"},{"v":0.6970185019959358,"d":"70%"},1,{"v":497341.15,"d":"$497,341.15"},{"v":5038570.85,"d":"$5,038,570.85"},{"v":5535912,"d":"$5,535,912.00"},{"v":0.9,"d":"0.90"},{"v":3371898.67,"d":"$3,371,898.67"},{"v":820925.73,"d":"$820,925.73"},{"v":361577.5,"d":"$361,577.50"},{"v":146675.7,"d":"$146,675.70"},{"v":114726.44,"d":"$114,726.44"},{"v":248525.33,"d":"$248,525.33"},{"v":79817.71,"d":"$79,817.71"},{"v":135797.54,"d":"$135,797.54"},{"v":163044.9,"d":"$163,044.90"},{"v":97838.38,"d":"$97,838.38"},{"v":241882.2,"d":"$241,882.20"},{"v":208261.12,"d":"$208,261.12"},{"v":162950.65,"d":"$162,950.65"},{"v":6153921.870000002,"d":"$6,153,921.87"},{"v":98235,"d":"$98,235.00"},{"v":137906.25,"d":"$137,906.25"},{"v":358556.25,"d":"$358,556.25"},{"v":37510.5,"d":"$37,510.50"},{"v":629955.75,"d":"$629,955.75"},{"v":422606.5,"d":"$422,606.50"},{"v":1501523.25,"d":"$1,501,523.25"},{"v":1033745.25,"d":"$1,033,745.25"},{"v":2877625.185,"d":"$2,877,625.19"},{"v":7097663.9350000005,"d":"$7,097,663.94"},{"v":1050161.61,"d":"$1,050,161.61"},{"v":6047502.325,"d":"$6,047,502.33"},{"v":6992647.765000001,"d":"$6,992,647.77"},{"v":206556.52,"d":"$206,556.52"},{"v":206556.52,"d":"$206,556.52"},{"v":215135.55,"d":"$215,135.55"},{"v":215135.55,"d":"$215,135.55"},{"v":0,"d":"$0.00"},{"v":0,"d":"$0.00"},{"v":0,"d":"$0.00"},{"v":0,"d":"$0.00"},{"v":0,"d":"$0.00"},{"v":516061.35,"d":"$516,061.35"},{"v":209042.67,"d":"$209,042.67"},{"v":80046.45,"d":"$80,046.45"},{"v":1648534.6099999996,"d":"$1,648,534.61"},{"v":14795104.32,"d":"$14,795,104.32"},{"v":549830.22,"d":"$549,830.22"},{"v":0,"d":"$0.00"},{"v":460647.63000000006,"d":"$460,647.63"},{"v":14795104.245000001,"d":"$14,795,104.25"}]
["11070302026","OKAW Valley CUSD 302",454.44,{"v":6162537.28,"d":"$6,162,537.28"},{"v":5727040.92,"d":"$5,727,040.92"},{"v":0.9293316469803165,"d":"93%"},3,{"v":7003.17,"d":"$7,003.17"},{"v":1057287.74,"d":"$1,057,287.74"},{"v":1064290.91,"d":"$1,064,290.91"},{"v":0.9,"d":"0.90"},{"v":1404704.44,"d":"$1,404,704.44"},{"v":351567.79,"d":"$351,567.79"},{"v":149659.5,"d":"$149,659.50"},{"v":58400.82,"d":"$58,400.82"},{"v":47740.74,"d":"$47,740.74"},{"v":105763.86,"d":"$105,763.86"},{"v":32477.55,"d":"$32,477.55"},{"v":55869.46,"d":"$55,869.46"},{"v":64493.31,"d":"$64,493.31"},{"v":40097.7,"d":"$40,097.70"},{"v":95677.84,"d":"$95,677.84"},{"v":82378.84,"d":"$82,378.84"},{"v":67040.72,"d":"$67,040.72"},{"v":2555872.57,"d":"$2,555,872.57"},{"v":40629.6,"d":"$40,629.60"},{"v":56805,"d":"$56,805.00"},{"v":147693,"d":"$147,693.00"},{"v":15450.96,"d":"$15,450.96"},{"v":259485.24,"d":"$259,485.24"},{"v":192276.48,"d":"$192,276.48"},{"v":618492.84,"d":"$618,492.84"},{"v":425810.2799999999,"d":"$425,810.28"},{"v":1197681.3711599999,"d":"$1,197,681.37"},{"v":2954324.77116,"d":"$2,954,324.77"},{"v":432572.34,"d":"$432,572.34"},{"v":2521752.4311599997,"d":"$2,521,752.43"},{"v":2911067.53116,"d":"$2,911,067.53"},{"v":89089.87,"d":"$89,089.87"},{"v":89089.87,"d":"$89,089.87"},{"v":93049.42,"d":"$93,049.42"},{"v":93049.42,"d":"$93,049.42"},{"v":0,"d":"$0.00"},{"v":0,"d":"$0.00"},{"v":0,"d":"$0.00"},{"v":0,"d":"$0.00"},{"v":0,"d":"$0.00"},{"v":212495.85,"d":"$212,495.85"},{"v":86076.39,"d":"$86,076.39"},{"v":32746.27,"d":"$32,746.27"},{"v":695597.09,"d":"$695,597.09"},{"v":6162537.28,"d":"$6,162,537.28"},{"v":144633.68000000002,"d":"$144,633.68"},{"v":0,"d":"$0.00"},{"v":156851.43999999997,"d":"$156,851.44"},{"v":6162537.191159999,"d":"$6,162,537.19"}]
["11087001026","WINDSOR COMM UNIT SCH DIST 1",311.38,{"v":4245637.18,"d":"$4,245,637.18"},{"v":3328151.38,"d":"$3,328,151.38"},{"v":0.7838991507983732,"d":"78%"},2,{"v":27685.25,"d":"$27,685.25"},{"v":1442957.17,"d":"$1,442,957.17"},{"v":1470642.42,"d":"$1,470,642.42"},{"v":0.9,"d":"0.90"},{"v":972565.95,"d":"$972,565.95"},{"v":231462.41,"d":"$231,462.41"},{"v":100702.6,"d":"$100,702.60"},{"v":40858.08,"d":"$40,858.08"},{"v":33467.7,"d":"$33,467.70"},{"v":68147.89,"d":"$68,147.89"},{"v":21468.21,"d":"$21,468.21"},{"v":37959.15,"d":"$37,959.15"},{"v":45652.57,"d":"$45,652.57"},{"v":26999.11,"d":"$26,999.11"},{"v":67727.01,"d":"$67,727.01"},{"v":58313.11,"d":"$58,313.11"},{"v":45549.19,"d":"$45,549.19"},{"v":1750872.98,"d":"$1,750,872.98"},{"v":27747,"d":"$27,747.00"},{"v":38922.5,"d":"$38,922.50"},{"v":101198.5,"d":"$101,198.50"},{"v":10586.92,"d":"$10,586.92"},{"v":177797.98,"d":"$177,797.98"},{"v":111665.83999999998,"d":"$111,665.84"},{"v":423788.18,"d":"$423,788.18"},{"v":291763.06,"d":"$291,763.06"},{"v":831273.97332,"d":"$831,273.97"},{"v":2014743.9533199999,"d":"$2,014,743.95"},{"v":296396.39,"d":"$296,396.39"},{"v":1718347.5633199997,"d":"$1,718,347.56"},{"v":1985104.3133199997,"d":"$1,985,104.31"},{"v":68632.2,"d":"$68,632.20"},{"v":68632.2,"d":"$68,632.20"},{"v":71271.9,"d":"$71,271.90"},{"v":71271.9,"d":"$71,271.90"},{"v":659.92,"d":"$659.92"},{"v":659.92,"d":"$659.92"},{"v":659.92,"d":"$659.92"},{"v":659.92,"d":"$659.92"},{"v":659.92,"d":"$659.92"},{"v":145183.5,"d":"$145,183.50"},{"v":58809.96,"d":"$58,809.96"},{"v":22558.54,"d":"$22,558.54"},{"v":509659.7999999999,"d":"$509,659.80"},{"v":4245637.18,"d":"$4,245,637.18"},{"v":236296.84,"d":"$236,296.84"},{"v":27.68,"d":"$27.68"},{"v":115473.35,"d":"$115,473.35"},{"v":4245637.09332,"d":"$4,245,637.09"}]
["11087003A26","COWDEN-HERRICK CUD 3A",321.25,{"v":4503041.45,"d":"$4,503,041.45"},{"v":3725052.2199999997,"d":"$3,725,052.22"},{"v":0.8272302756617973,"d":"83%"},2,{"v":23115.24,"d":"$23,115.24"},{"v":2447499.5599999996,"d":"$2,447,499.56"},{"v":2470614.8,"d":"$2,470,614.80"},{"v":0.9,"d":"0.90"},{"v":1034106.93,"d":"$1,034,106.93"},{"v":248293.03,"d":"$248,293.03"},{"v":104311.82,"d":"$104,311.82"},{"v":42301.77,"d":"$42,301.77"},{"v":35892.91,"d":"$35,892.91"},{"v":70555.26,"d":"$70,555.26"},{"v":22569.14,"d":"$22,569.14"},{"v":39295.74,"d":"$39,295.74"},{"v":47101.86,"d":"$47,101.86"},{"v":28335.7,"d":"$28,335.70"},{"v":69877.08,"d":"$69,877.08"},{"v":60164.32,"d":"$60,164.32"},{"v":47153.04,"d":"$47,153.04"},{"v":1849958.6,"d":"$1,849,958.60"},{"v":28800,"d":"$28,800.00"},{"v":40156.25,"d":"$40,156.25"},{"v":104406.25,"d":"$104,406.25"},{"v":10922.5,"d":"$10,922.50"},{"v":183433.75,"d":"$183,433.75"},{"v":119082,"d":"$119,082.00"},{"v":437221.25,"d":"$437,221.25"},{"v":301011.25,"d":"$301,011.25"},{"v":886976.685,"d":"$886,976.69"},{"v":2112009.935,"d":"$2,112,009.94"},{"v":305791.45,"d":"$305,791.45"},{"v":1806218.485,"d":"$1,806,218.49"},{"v":2081430.7850000001,"d":"$2,081,430.79"},{"v":82490.62,"d":"$82,490.62"},{"v":82490.62,"d":"$82,490.62"},{"v":86450.17,"d":"$86,450.17"},{"v":86450.17,"d":"$86,450.17"},{"v":0,"d":"$0.00"},{"v":0,"d":"$0.00"},{"v":0,"d":"$0.00"},{"v":0,"d":"$0.00"},{"v":0,"d":"$0.00"},{"v":149802.97,"d":"$149,802.97"},{"v":60681.18,"d":"$60,681.18"},{"v":23286.24,"d":"$23,286.24"},{"v":571651.97,"d":"$571,651.97"},{"v":4503041.45,"d":"$4,503,041.45"},{"v":351626.57,"d":"$351,626.57"},{"v":0,"d":"$0.00"},{"v":135640.96999999997,"d":"$135,640.97"},{"v":4503041.355,"d":"$4,503,041.36"}]
["11087004026","SHELBYVILLE C U SCHOOL DIST 4",1161.75,{"v":15571215.78,"d":"$15,571,215.78"},{"v":11004049.55,"d":"$11,004,049.55"},{"v":0.7066917384918547,"d":"71%"},1,{"v":478423.59,"d":"$478,423.59"},{"v":5354223.38,"d":"$5,354,223.38"},{"v":5832646.97,"d":"$5,832,646.97"},{"v":0.9,"d":"0.90"},{"v":3581794.47,"d":"$3,581,794.47"},{"v":859344.68,"d":"$859,344.68"},{"v":380122.66,"d":"$380,122.66"},{"v":155367.81,"d":"$155,367.81"},{"v":121280.05,"d":"$121,280.05"},{"v":260416.62,"d":"$260,416.62"},{"v":84771.91,"d":"$84,771.91"},{"v":143015.13,"d":"$143,015.13"},{"v":173189.91,"d":"$173,189.91"},{"v":103452.06,"d":"$103,452.06"},{"v":256932.64,"d":"$256,932.64"},{"v":221219.59,"d":"$221,219.59"},{"v":171611.41,"d":"$171,611.41"},{"v":6512518.9399999995,"d":"$6,512,518.94"},{"v":103815,"d":"$103,815.00"},{"v":145218.75,"d":"$145,218.75"},{"v":377568.75,"d":"$377,568.75"},{"v":39499.5,"d":"$39,499.50"},{"v":663359.25,"d":"$663,359.25"},{"v":428757.5,"d":"$428,757.50"},{"v":1581141.75,"d":"$1,581,141.75"},{"v":1088559.75,"d":"$1,088,559.75"},{"v":3031965.5160000003,"d":"$3,031,965.52"},{"v":7459885.766000001,"d":"$7,459,885.77"},{"v":1105846.59,"d":"$1,105,846.59"},{"v":6354039.176000001,"d":"$6,354,039.18"},{"v":7349301.106000001,"d":"$7,349,301.11"},{"v":211176,"d":"$211,176.00"},{"v":211176,"d":"$211,176.00"},{"v":219755.02,"d":"$219,755.02"},{"v":219755.02,"d":"$219,755.02"},{"v":0,"d":"$0.00"},{"v":0,"d":"$0.00"},{"v":0,"d":"$0.00"},{"v":0,"d":"$0.00"},{"v":0,"d":"$0.00"},{"v":543118.27,"d":"$543,118.27"},{"v":220002.71,"d":"$220,002.71"},{"v":84412.62,"d":"$84,412.62"},{"v":1709395.6400000001,"d":"$1,709,395.64"},{"v":15571215.78,"d":"$15,571,215.78"},{"v":666046.9400000001,"d":"$666,046.94"},{"v":0,"d":"$0.00"},{"v":466505.26,"d":"$466,505.26"},{"v":15571215.686,"d":"$15,571,215.69"}]
["11087005A26","STEWARDSON-STRASBURG CU DIST 5A",380.45,{"v":5043466.81,"d":"$5,043,466.81"},{"v":3593184.63,"d":"$3,593,184.63"},{"v":0.7124433976398072,"d":"71%"},1,{"v":141297.21,"d":"$141,297.21"},{"v":1597551.69,"d":"$1,597,551.69"},{"v":1738848.9,"d":"$1,738,848.90"},{"v":0.9,"d":"0.90"},{"v":1157630.17,"d":"$1,157,630.17"},{"v":283774.54,"d":"$283,774.54"},{"v":124553.45,"d":"$124,553.45"},{"v":50304.17,"d":"$50,304.17"},{"v":38822.91,"d":"$38,822.91"},{"v":86570.4,"d":"$86,570.40"},{"v":26972.88,"d":"$26,972.88"},{"v":46780.65,"d":"$46,780.65"},{"v":55797.58,"d":"$55,797.58"},{"v":33414.75,"d":"$33,414.75"},{"v":82777.46,"d":"$82,777.46"},{"v":71271.58,"d":"$71,271.58"},{"v":56134.57,"d":"$56,134.57"},{"v":2114805.1099999994,"d":"$2,114,805.11"},{"v":34091.1,"d":"$34,091.10"},{"v":47556.25,"d":"$47,556.25"},{"v":123646.25,"d":"$123,646.25"},{"v":12935.3,"d":"$12,935.30"},{"v":217236.95,"d":"$217,236.95"},{"v":150696.03,"d":"$150,696.03"},{"v":517792.45,"d":"$517,792.45"},{"v":356481.64999999997,"d":"$356,481.65"},{"v":976587.6678000002,"d":"$976,587.67"},{"v":2437023.6478000004,"d":"$2,437,023.65"},{"v":362142.74,"d":"$362,142.74"},{"v":2074880.9078,"d":"$2,074,880.91"},{"v":2400809.3678,"d":"$2,400,809.37"},{"v":61373.02,"d":"$61,373.02"},{"v":61373.02,"d":"$61,373.02"},{"v":64012.72,"d":"$64,012.72"},{"v":64012.72,"d":"$64,012.72"},{"v":0,"d":"$0.00"},{"v":0,"d":"$0.00"},{"v":0,"d":"$0.00"},{"v":0,"d":"$0.00"},{"v":0,"d":"$0.00"},{"v":177519.82,"d":"$177,519.82"},{"v":71908.54,"d":"$71,908.54"},{"v":27652.41,"d":"$27,652.41"},{"v":527852.25,"d":"$527,852.25"},{"v":5043466.81,"d":"$5,043,466.81"},{"v":140680.53,"d":"$140,680.53"},{"v":0,"d":"$0.00"},{"v":129481.20000000001,"d":"$129,481.20"},{"v":5043466.7277999995,"d":"$5,043,466.73"}]
["11087021026","CENTRAL A & M C U DIST #21",689,{"v":9068495.5,"d":"$9,068,495.50"},{"v":7710704.470000001,"d":"$7,710,704.47"},{"v":0.8502738375952219,"d":"85%"},2,{"v":19758.84,"d":"$19,758.84"},{"v":2434478.2600000002,"d":"$2,434,478.26"},{"v":2454237.1,"d":"$2,454,237.10"},{"v":0.9,"d":"0.90"},{"v":2073558.21,"d":"$2,073,558.21"},{"v":506314.92,"d":"$506,314.92"},{"v":225633.05,"d":"$225,633.05"},{"v":90628.91,"d":"$90,628.91"},{"v":69650.03,"d":"$69,650.03"},{"v":156449.28,"d":"$156,449.28"},{"v":49542.03,"d":"$49,542.03"},{"v":84739.8,"d":"$84,739.80"},{"v":100725.51,"d":"$100,725.51"},{"v":60948.5,"d":"$60,948.50"},{"v":149429.44,"d":"$149,429.44"},{"v":128659.09,"d":"$128,659.09"},{"v":101683.77,"d":"$101,683.77"},{"v":3797962.5399999986,"d":"$3,797,962.54"},{"v":61380,"d":"$61,380.00"},{"v":86125,"d":"$86,125.00"},{"v":223925,"d":"$223,925.00"},{"v":23426,"d":"$23,426.00"},{"v":393419,"d":"$393,419.00"},{"v":267919,"d":"$267,919.00"},{"v":937729,"d":"$937,729.00"},{"v":645593,"d":"$645,593.00"},{"v":1753793.6969999995,"d":"$1,753,793.70"},{"v":4393309.697,"d":"$4,393,309.70"},{"v":655845.32,"d":"$655,845.32"},{"v":3737464.377,"d":"$3,737,464.38"},{"v":4327725.157,"d":"$4,327,725.16"},{"v":108227.7,"d":"$108,227.70"},{"v":108227.7,"d":"$108,227.70"},{"v":112187.25,"d":"$112,187.25"},{"v":112187.25,"d":"$112,187.25"},{"v":0,"d":"$0.00"},{"v":0,"d":"$0.00"},{"v":0,"d":"$0.00"},{"v":0,"d":"$0.00"},{"v":0,"d":"$0.00"},{"v":322043.4,"d":"$322,043.40"},{"v":130451.18,"d":"$130,451.18"},{"v":49483.26,"d":"$49,483.26"},{"v":942807.74,"d":"$942,807.74"},{"v":9068495.5,"d":"$9,068,495.50"},{"v":250023.37000000002,"d":"$250,023.37"},{"v":0,"d":"$0.00"},{"v":196672.49,"d":"$196,672.49"},{"v":9068495.436999999,"d":"$9,068,495.44"}]
[null,"ALT SCH-CLAY/CWFORD/JSPER/LWRNCE/",20.98,{"v":285315.62,"d":"$285,315.62"},{"v":265534.97000000003,"d":"$265,534.97"},{"v":0.9306709881498954,"d":"93%"},3,{"v":324.23,"d":"$324.23"},{"v":237003.41,"d":"$237,003.41"},{"v":237327.64,"d":"$237,327.64"},{"v":0.9,"d":"0.90"},{"v":64901.77,"d":"$64,901.77"},{"v":20293.21,"d":"$20,293.21"},{"v":6402.35,"d":"$6,402.35"},{"v":1443.69,"d":"$1,443.69"},{"v":2116.71,"d":"$2,116.71"},{"v":5302.02,"d":"$5,302.02"},{"v":1100.93,"d":"$1,100.93"},{"v":2405.86,"d":"$2,405.86"},{"v":1449.28,"d":"$1,449.28"},{"v":1603.9,"d":"$1,603.90"},{"v":2150.06,"d":"$2,150.06"},{"v":1851.21,"d":"$1,851.21"},{"v":2886.92,"d":"$2,886.92"},{"v":113907.91,"d":"$113,907.91"},{"v":1888.2,"d":"$1,888.20"},{"v":2622.5,"d":"$2,622.50"},{"v":6818.5,"d":"$6,818.50"},{"v":713.3199999999999,"d":"$713.32"},{"v":11979.58,"d":"$11,979.58"},{"v":15789.220000000001,"d":"$15,789.22"},{"v":28553.78,"d":"$28,553.78"},{"v":19658.260000000002,"d":"$19,658.26"},{"v":53786.49672,"d":"$53,786.50"},{"v":141809.85672,"d":"$141,809.86"},{"v":19970.44,"d":"$19,970.44"},{"v":121839.41672000004,"d":"$121,839.42"},{"v":139812.80672000005,"d":"$139,812.81"},{"v":3959.55,"d":"$3,959.55"},{"v":3959.55,"d":"$3,959.55"},{"v":4619.47,"d":"$4,619.47"},{"v":4619.47,"d":"$4,619.47"},{"v":0,"d":"$0.00"},{"v":0,"d":"$0.00"},{"v":0,"d":"$0.00"},{"v":0,"d":"$0.00"},{"v":0,"d":"$0.00"},{"v":9238.95,"d":"$9,238.95"},{"v":3742.45,"d":"$3,742.45"},{"v":1455.39,"d":"$1,455.39"},{"v":31594.83,"d":"$31,594.83"},{"v":285315.62,"d":"$285,315.62"},{"v":4075.439999999999,"d":"$4,075.44"},{"v":0,"d":"$0.00"},{"v":2181.15,"d":"$2,181.15"},{"v":285315.54672000004,"d":"$285,315.55"}]
[null,"SAFE SCH-CLAY/CWFORD/JSPER/LWRNCE",17,{"v":226096.71,"d":"$226,096.71"},{"v":135646.99,"d":"$135,646.99"},{"v":0.599951189028801,"d":"60%"},1,{"v":16255.23,"d":"$16,255.23"},{"v":113037.31999999999,"d":"$113,037.32"},{"v":129292.54999999999,"d":"$129,292.55"},{"v":0.9,"d":"0.90"},{"v":49740.85,"d":"$49,740.85"},{"v":13315.93,"d":"$13,315.93"},{"v":5397.76,"d":"$5,397.76"},{"v":1977.03,"d":"$1,977.03"},{"v":1689.99,"d":"$1,689.99"},{"v":4341.97,"d":"$4,341.97"},{"v":1100.93,"d":"$1,100.93"},{"v":2138.54,"d":"$2,138.54"},{"v":2173.93,"d":"$2,173.93"},{"v":1336.59,"d":"$1,336.59"},{"v":3225.09,"d":"$3,225.09"},{"v":2776.81,"d":"$2,776.81"},{"v":2566.15,"d":"$2,566.15"},{"v":91781.56999999996,"d":"$91,781.57"},{"v":1530,"d":"$1,530.00"},{"v":2125,"d":"$2,125.00"},{"v":5525,"d":"$5,525.00"},{"v":578,"d":"$578.00"},{"v":9707,"d":"$9,707.00"},{"v":9113,"d":"$9,113.00"},{"v":23137,"d":"$23,137.00"},{"v":15929,"d":"$15,929.00"},{"v":43236.170999999995,"d":"$43,236.17"},{"v":110880.171,"d":"$110,880.17"},{"v":16181.96,"d":"$16,181.96"},{"v":94698.21100000001,"d":"$94,698.21"},{"v":109261.971,"d":"$109,261.97"},{"v":3299.62,"d":"$3,299.62"},{"v":3299.62,"d":"$3,299.62"},{"v":3299.62,"d":"$3,299.62"},{"v":3299.62,"d":"$3,299.62"},{"v":0,"d":"$0.00"},{"v":0,"d":"$0.00"},{"v":0,"d":"$0.00"},{"v":0,"d":"$0.00"},{"v":0,"d":"$0.00"},{"v":7919.1,"d":"$7,919.10"},{"v":3207.81,"d":"$3,207.81"},{"v":727.69,"d":"$727.69"},{"v":25053.08,"d":"$25,053.08"},{"v":226096.71,"d":"$226,096.71"},{"v":5301.41,"d":"$5,301.41"},{"v":0,"d":"$0.00"},{"v":3155.1000000000004,"d":"$3,155.10"},{"v":226096.62099999998,"d":"$226,096.62"}]
["12013010026","CLAY CITY COMM UNIT DIST 10",253.95,{"v":3565920.9,"d":"$3,565,920.90"},{"v":3006246.7,"d":"$3,006,246.70"},{"v":0.843049182610865,"d":"84%"},2,{"v":11355.23,"d":"$11,355.23"},{"v":1346870.6799999997,"d":"$1,346,870.68"},{"v":1358225.9099999997,"d":"$1,358,225.91"},{"v":0.9,"d":"0.90"},{"v":811264.85,"d":"$811,264.85"},{"v":191504.43,"d":"$191,504.43"},{"v":82187.4,"d":"$82,187.40"},{"v":33671.77,"d":"$33,671.77"},{"v":28524.96,"d":"$28,524.96"},{"v":55216.51,"d":"$55,216.51"},{"v":17614.94,"d":"$17,614.94"},{"v":30741.57,"d":"$30,741.57"},{"v":37681.48,"d":"$37,681.48"},{"v":22187.39,"d":"$22,187.39"},{"v":55901.66,"d":"$55,901.66"},{"v":48131.46,"d":"$48,131.46"},{"v":36888.43,"d":"$36,888.43"},{"v":1451516.8499999996,"d":"$1,451,516.85"},{"v":22720.5,"d":"$22,720.50"},{"v":31743.749999999993,"d":"$31,743.75"},{"v":82533.74999999999,"d":"$82,533.75"},{"v":8634.3,"d":"$8,634.30"},{"v":145005.44999999998,"d":"$145,005.45"},{"v":88841.10999999999,"d":"$88,841.11"},{"v":345625.94999999995,"d":"$345,625.95"},{"v":237951.14999999997,"d":"$237,951.15"},{"v":704017.4778,"d":"$704,017.48"},{"v":1667073.4377999997,"d":"$1,667,073.44"},{"v":241729.92,"d":"$241,729.92"},{"v":1425343.5178,"d":"$1,425,343.52"},{"v":1642900.4378,"d":"$1,642,900.44"},{"v":69952.05,"d":"$69,952.05"},{"v":69952.05,"d":"$69,952.05"},{"v":73251.67,"d":"$73,251.67"},{"v":73251.67,"d":"$73,251.67"},{"v":0,"d":"$0.00"},{"v":0,"d":"$0.00"},{"v":0,"d":"$0.00"},{"v":0,"d":"$0.00"},{"v":0,"d":"$0.00"},{"v":118786.5,"d":"$118,786.50"},{"v":48117.24,"d":"$48,117.24"},{"v":18192.37,"d":"$18,192.37"},{"v":471503.55,"d":"$471,503.55"},{"v":3565920.9,"d":"$3,565,920.90"},{"v":249572.72000000003,"d":"$249,572.72"},{"v":0,"d":"$0.00"},{"v":85485.33,"d":"$85,485.33"},{"v":3565920.8377999994,"d":"$3,565,920.84"}]
["12013025026","NORTH CLAY C U SCHOOL DISTRICT 25",534.3,{"v":7375928.39,"d":"$7,375,928.39"},{"v":6155088,"d":"$6,155,088.00"},{"v":0.8344831558214193,"d":"83%"},2,{"v":31063.86,"d":"$31,063.86"},{"v":3402585.4199999995,"d":"$3,402,585.42"},{"v":3433649.2799999993,"d":"$3,433,649.28"},{"v":0.9,"d":"0.90"},{"v":1666358.96,"d":"$1,666,358.96"},{"v":412173.77,"d":"$412,173.77"},{"v":175611.61,"d":"$175,611.61"},{"v":69352.72,"d":"$69,352.72"},{"v":57739.97,"d":"$57,739.97"},{"v":124011.77,"d":"$124,011.77"},{"v":38532.69,"d":"$38,532.69"},{"v":65760.22,"d":"$65,760.22"},{"v":76812.26,"d":"$76,812.26"},{"v":47047.96,"d":"$47,047.96"},{"v":113953.39,"d":"$113,953.39"},{"v":98114.13,"d":"$98,114.13"},{"v":78909.17,"d":"$78,909.17"},{"v":3024378.62,"d":"$3,024,378.62"},{"v":47772,"d":"$47,772.00"},{"v":66787.5,"d":"$66,787.50"},{"v":173647.5,"d":"$173,647.50"},{"v":18166.199999999997,"d":"$18,166.20"},{"v":305085.3,"d":"$305,085.30"},{"v":218355.89999999997,"d":"$218,355.90"},{"v":727182.3,"d":"$727,182.30"},{"v":500639.1,"d":"$500,639.10"},{"v":1442285.5241999996,"d":"$1,442,285.52"},{"v":3499921.3241999997,"d":"$3,499,921.32"},{"v":508589.48,"d":"$508,589.48"},{"v":2991331.8441999992,"d":"$2,991,331.84"},{"v":3449062.3741999995,"d":"$3,449,062.37"},{"v":120106.35,"d":"$120,106.35"},{"v":120106.35,"d":"$120,106.35"},{"v":125385.75,"d":"$125,385.75"},{"v":125385.75,"d":"$125,385.75"},{"v":3959.55,"d":"$3,959.55"},{"v":3959.55,"d":"$3,959.55"},{"v":4619.47,"d":"$4,619.47"},{"v":4619.47,"d":"$4,619.47"},{"v":5279.4,"d":"$5,279.40"},{"v":249451.65,"d":"$249,451.65"},{"v":101046.2,"d":"$101,046.20"},{"v":38567.83,"d":"$38,567.83"},{"v":902487.3199999998,"d":"$902,487.32"},{"v":7375928.39,"d":"$7,375,928.39"},{"v":556339.6699999999,"d":"$556,339.67"},{"v":496.39,"d":"$496.39"},{"v":194179.70000000004,"d":"$194,179.70"},{"v":7375928.314199999,"d":"$7,375,928.31"}]
["12013035026","FLORA COMM UNIT SCH DIST 35",1222.97,{"v":16860239.71,"d":"$16,860,239.71"},{"v":12408116.54,"d":"$12,408,116.54"},{"v":0.7359395093677467,"d":"74%"},1,{"v":369138.29,"d":"$369,138.29"},{"v":7846010.339999999,"d":"$7,846,010.34"},{"v":8215148.629999999,"d":"$8,215,148.63"},{"v":0.9,"d":"0.90"},{"v":3835202.49,"d":"$3,835,202.49"},{"v":923978.47,"d":"$923,978.47"},{"v":400081.55,"d":"$400,081.55"},{"v":162648.37,"d":"$162,648.37"},{"v":132850.11,"d":"$132,850.11"},{"v":274889.88,"d":"$274,889.88"},{"v":88625.18,"d":"$88,625.18"},{"v":150232.71,"d":"$150,232.71"},{"v":181161,"d":"$181,161.00"},{"v":108531.1,"d":"$108,531.10"},{"v":268758,"d":"$268,758.00"},{"v":231401.25,"d":"$231,401.25"},{"v":180272.17,"d":"$180,272.17"},{"v":6938632.279999999,"d":"$6,938,632.28"},{"v":109369.79999999999,"d":"$109,369.80"},{"v":152871.25,"d":"$152,871.25"},{"v":397465.25,"d":"$397,465.25"},{"v":41580.979999999996,"d":"$41,580.98"},{"v":698315.87,"d":"$698,315.87"},{"v":457233.93999999994,"d":"$457,233.94"},{"v":1664462.17,"d":"$1,664,462.17"},{"v":1145922.89,"d":"$1,145,922.89"},{"v":3306072.0340799997,"d":"$3,306,072.03"},{"v":7973294.184079999,"d":"$7,973,294.18"},{"v":1164120.68,"d":"$1,164,120.68"},{"v":6809173.504079999,"d":"$6,809,173.50"},{"v":7856882.11408,"d":"$7,856,882.11"},{"v":284427.67,"d":"$284,427.67"},{"v":284427.67,"d":"$284,427.67"},{"v":296306.32,"d":"$296,306.32"},{"v":296306.32,"d":"$296,306.32"},{"v":1979.77,"d":"$1,979.77"},{"v":1979.77,"d":"$1,979.77"},{"v":1979.77,"d":"$1,979.77"},{"v":1979.77,"d":"$1,979.77"},{"v":2639.7,"d":"$2,639.70"},{"v":572154.97,"d":"$572,154.97"},{"v":231764.7,"d":"$231,764.70"},{"v":88778.79,"d":"$88,778.79"},{"v":2064725.22,"d":"$2,064,725.22"},{"v":16860239.71,"d":"$16,860,239.71"},{"v":1074557.6800000002,"d":"$1,074,557.68"},{"v":603.31,"d":"$603.31"},{"v":519807.18000000005,"d":"$519,807.18"},{"v":16860239.614079997,"d":"$16,860,239.61"}]
["12017001026","HUTSONVILLE C U SCHOOL DIST 1",286.12,{"v":3786038.78,"d":"$3,786,038.78"},{"v":3849862.1500000004,"d":"$3,849,862.15"},{"v":1.016857558442653,"d":"102%"},4,{"v":241.16,"d":"$241.16"},{"v":1351328.3399999999,"d":"$1,351,328.34"},{"v":1351569.4999999998,"d":"$1,351,569.50"},{"v":0.9,"d":"0.90"},{"v":870773.19,"d":"$870,773.19"},{"v":214182.96,"d":"$214,182.96"},{"v":93642.67,"d":"$93,642.67"},{"v":37280.99,"d":"$37,280.99"},{"v":29173.59,"d":"$29,173.59"},{"v":63791.4,"d":"$63,791.40"},{"v":19816.81,"d":"$19,816.81"},{"v":35018.65,"d":"$35,018.65"},{"v":41304.7,"d":"$41,304.70"},{"v":25127.89,"d":"$25,127.89"},{"v":61276.82,"d":"$61,276.82"},{"v":52759.48,"d":"$52,759.48"},{"v":42020.73,"d":"$42,020.73"},{"v":1586169.8799999997,"d":"$1,586,169.88"},{"v":25451.1,"d":"$25,451.10"},{"v":35765,"d":"$35,765.00"},{"v":92989,"d":"$92,989.00"},{"v":9728.08,"d":"$9,728.08"},{"v":163374.52,"d":"$163,374.52"},{"v":113032.08999999998,"d":"$113,032.09"},{"v":389409.31999999995,"d":"$389,409.32"},{"v":268094.44,"d":"$268,094.44"},{"v":732843.38868,"d":"$732,843.39"},{"v":1830686.9386799997,"d":"$1,830,686.94"},{"v":272351.9,"d":"$272,351.90"},{"v":1558335.0386800002,"d":"$1,558,335.04"},{"v":1803451.7486800002,"d":"$1,803,451.75"},{"v":46194.75,"d":"$46,194.75"},{"v":46194.75,"d":"$46,194.75"},{"v":48174.52,"d":"$48,174.52"},{"v":48174.52,"d":"$48,174.52"},{"v":0,"d":"$0.00"},{"v":0,"d":"$0.00"},{"v":0,"d":"$0.00"},{"v":0,"d":"$0.00"},{"v":0,"d":"$0.00"},{"v":133304.85,"d":"$133,304.85"},{"v":53998.23,"d":"$53,998.23"},{"v":20375.46,"d":"$20,375.46"},{"v":396417.08,"d":"$396,417.08"},{"v":3786038.78,"d":"$3,786,038.78"},{"v":164985.71,"d":"$164,985.71"},{"v":0,"d":"$0.00"},{"v":89190.07,"d":"$89,190.07"},{"v":3786038.70868,"d":"$3,786,038.71"}]
["12017002026","ROBINSON C U SCHOOL DIST 2",1471.21,{"v":19365625.6,"d":"$19,365,625.60"},{"v":21801502.01,"d":"$21,801,502.01"},{"v":1.1257835125140496,"d":"113%"},4,{"v":1233.55,"d":"$1,233.55"},{"v":1972554.8199999998,"d":"$1,972,554.82"},{"v":1973788.3699999999,"d":"$1,973,788.37"},{"v":0.9,"d":"0.90"},{"v":4504666.89,"d":"$4,504,666.89"},{"v":1091645.25,"d":"$1,091,645.25"},{"v":481956.24,"d":"$481,956.24"},{"v":195347.7,"d":"$195,347.70"},{"v":153803.84,"d":"$153,803.84"},{"v":332986.53,"d":"$332,986.53"},{"v":107341.06,"d":"$107,341.06"},{"v":180974.28,"d":"$180,974.28"},{"v":217393.2,"d":"$217,393.20"},{"v":130718.5,"d":"$130,718.50"},{"v":322509.6,"d":"$322,509.60"},{"v":277681.5,"d":"$277,681.50"},{"v":217160.61,"d":"$217,160.61"},{"v":8214185.2,"d":"$8,214,185.20"},{"v":130707,"d":"$130,707.00"},{"v":183901.25,"d":"$183,901.25"},{"v":478143.25,"d":"$478,143.25"},{"v":50021.13999999999,"d":"$50,021.14"},{"v":420030.44,"d":"$420,030.44"},{"v":556662.08,"d":"$556,662.08"},{"v":2002316.8099999998,"d":"$2,002,316.81"},{"v":1378523.7699999998,"d":"$1,378,523.77"},{"v":3852982.84944,"d":"$3,852,982.85"},{"v":9053288.58944,"d":"$9,053,288.59"},{"v":1400415.37,"d":"$1,400,415.37"},{"v":7652873.219439999,"d":"$7,652,873.22"},{"v":8913247.04944,"d":"$8,913,247.05"},{"v":285087.6,"d":"$285,087.60"},{"v":285087.6,"d":"$285,087.60"},{"v":296966.25,"d":"$296,966.25"},{"v":296966.25,"d":"$296,966.25"},{"v":0,"d":"$0.00"},{"v":0,"d":"$0.00"},{"v":0,"d":"$0.00"},{"v":0,"d":"$0.00"},{"v":0,"d":"$0.00"},{"v":688301.77,"d":"$688,301.77"},{"v":278812.67,"d":"$278,812.67"},{"v":106971.16,"d":"$106,971.16"},{"v":2238193.3000000003,"d":"$2,238,193.30"},{"v":19365625.6,"d":"$19,365,625.60"},{"v":744854.7,"d":"$744,854.70"},{"v":0,"d":"$0.00"},{"v":437656.66,"d":"$437,656.66"},{"v":19365625.54944,"d":"$19,365,625.55"}]
["12017003026","PALESTINE C U SCHOOL DIST 3",295.25,{"v":3886992.23,"d":"$3,886,992.23"},{"v":2814993.3,"d":"$2,814,993.30"},{"v":0.7242086254440493,"d":"72%"},1,{"v":93369.64,"d":"$93,369.64"},{"v":1290549.27,"d":"$1,290,549.27"},{"v":1383918.91,"d":"$1,383,918.91"},{"v":0.9,"d":"0.90"},{"v":900677.21,"d":"$900,677.21"},{"v":219297.77,"d":"$219,297.77"},{"v":96058.81,"d":"$96,058.81"},{"v":37814.34,"d":"$37,814.34"},{"v":30005.16,"d":"$30,005.16"},{"v":66496.95,"d":"$66,496.95"},{"v":20367.27,"d":"$20,367.27"},{"v":36087.93,"d":"$36,087.93"},{"v":42029.35,"d":"$42,029.35"},{"v":25929.84,"d":"$25,929.84"},{"v":62351.85,"d":"$62,351.85"},{"v":53685.09,"d":"$53,685.09"},{"v":43303.81,"d":"$43,303.81"},{"v":1634105.3800000004,"d":"$1,634,105.38"},{"v":26325,"d":"$26,325.00"},{"v":36906.25,"d":"$36,906.25"},{"v":95956.25,"d":"$95,956.25"},{"v":10038.5,"d":"$10,038.50"},{"v":168587.75,"d":"$168,587.75"},{"v":114538.5,"d":"$114,538.50"},{"v":401835.25,"d":"$401,835.25"},{"v":276649.25,"d":"$276,649.25"},{"v":751798.2239999998,"d":"$751,798.22"},{"v":1882634.974,"d":"$1,882,634.97"},{"v":281042.57,"d":"$281,042.57"},{"v":1601592.4039999999,"d":"$1,601,592.40"},{"v":1854530.714,"d":"$1,854,530.71"},{"v":44874.9,"d":"$44,874.90"},{"v":44874.9,"d":"$44,874.90"},{"v":46854.67,"d":"$46,854.67"},{"v":46854.67,"d":"$46,854.67"},{"v":0,"d":"$0.00"},{"v":0,"d":"$0.00"},{"v":0,"d":"$0.00"},{"v":0,"d":"$0.00"},{"v":0,"d":"$0.00"},{"v":137924.32,"d":"$137,924.32"},{"v":55869.46,"d":"$55,869.46"},{"v":21103.15,"d":"$21,103.15"},{"v":398356.07000000007,"d":"$398,356.07"},{"v":3886992.23,"d":"$3,886,992.23"},{"v":150053.36000000002,"d":"$150,053.36"},{"v":0,"d":"$0.00"},{"v":88372.05000000002,"d":"$88,372.05"},{"v":3886992.164000001,"d":"$3,886,992.16"}]
["12017004026","OBLONG C U SCHOOL DIST 4",523.03,{"v":7163931.31,"d":"$7,163,931.31"},{"v":5483092.32,"d":"$5,483,092.32"},{"v":0.765374775766799,"d":"77%"},1,{"v":75357.49,"d":"$75,357.49"},{"v":2948395.1700000004,"d":"$2,948,395.17"},{"v":3023752.6600000006,"d":"$3,023,752.66"},{"v":0.9,"d":"0.90"},{"v":1627160.86,"d":"$1,627,160.86"},{"v":400196.61,"d":"$400,196.61"},{"v":171374.79,"d":"$171,374.79"},{"v":68630.87,"d":"$68,630.87"},{"v":55971.77,"d":"$55,971.77"},{"v":119575.24,"d":"$119,575.24"},{"v":37431.75,"d":"$37,431.75"},{"v":64156.32,"d":"$64,156.32"},{"v":76087.62,"d":"$76,087.62"},{"v":45978.69,"d":"$45,978.69"},{"v":112878.36,"d":"$112,878.36"},{"v":97188.52,"d":"$97,188.52"},{"v":76984.56,"d":"$76,984.56"},{"v":2953615.9600000004,"d":"$2,953,615.96"},{"v":46675.8,"d":"$46,675.80"},{"v":65378.75,"d":"$65,378.75"},{"v":169984.75,"d":"$169,984.75"},{"v":17783.02,"d":"$17,783.02"},{"v":298650.13,"d":"$298,650.13"},{"v":208324.14,"d":"$208,324.14"},{"v":711843.83,"d":"$711,843.83"},{"v":490079.11,"d":"$490,079.11"},{"v":1399275.45192,"d":"$1,399,275.45"},{"v":3407994.9819199997,"d":"$3,407,994.98"},{"v":497861.79,"d":"$497,861.79"},{"v":2910133.1919199997,"d":"$2,910,133.19"},{"v":3358208.8019199995,"d":"$3,358,208.80"},{"v":115486.87,"d":"$115,486.87"},{"v":115486.87,"d":"$115,486.87"},{"v":120106.35,"d":"$120,106.35"},{"v":120106.35,"d":"$120,106.35"},{"v":0,"d":"$0.00"},{"v":0,"d":"$0.00"},{"v":0,"d":"$0.00"},{"v":0,"d":"$0.00"},{"v":0,"d":"$0.00"},{"v":244172.25,"d":"$244,172.25"},{"v":98907.66,"d":"$98,907.66"},{"v":37840.14,"d":"$37,840.14"},{"v":852106.49,"d":"$852,106.49"},{"v":7163931.31,"d":"$7,163,931.31"},{"v":389749.29,"d":"$389,749.29"},{"v":0,"d":"$0.00"},{"v":206423.62999999998,"d":"$206,423.63"},{"v":7163931.25192,"d":"$7,163,931.25"}]
["12040001026","JASPER COUNTY COMM UNIT DIST 1",1160.12,{"v":15712814.81,"d":"$15,712,814.81"},{"v":14292137.739999998,"d":"$14,292,137.74"},{"v":0.9095848142310027,"d":"91%"},3,{"v":17856.21,"d":"$17,856.21"},{"v":2505013.5699999994,"d":"$2,505,013.57"},{"v":2522869.7799999993,"d":"$2,522,869.78"},{"v":0.9,"d":"0.90"},{"v":3570335.26,"d":"$3,570,335.26"},{"v":879953.67,"d":"$879,953.67"},{"v":381945.51,"d":"$381,945.51"},{"v":152983.81,"d":"$152,983.81"},{"v":121924.8,"d":"$121,924.80"},{"v":267813.34,"d":"$267,813.34"},{"v":84221.45,"d":"$84,221.45"},{"v":143282.44,"d":"$143,282.44"},{"v":169566.69,"d":"$169,566.69"},{"v":102917.43,"d":"$102,917.43"},{"v":251557.48,"d":"$251,557.48"},{"v":216591.57,"d":"$216,591.57"},{"v":171932.18,"d":"$171,932.18"},{"v":6515025.63,"d":"$6,515,025.63"},{"v":103645.79999999999,"d":"$103,645.80"},{"v":145014.99999999997,"d":"$145,015.00"},{"v":377039,"d":"$377,039.00"},{"v":39444.079999999994,"d":"$39,444.08"},{"v":662428.52,"d":"$662,428.52"},{"v":467062.6599999999,"d":"$467,062.66"},{"v":1578923.3199999998,"d":"$1,578,923.32"},{"v":1087032.44,"d":"$1,087,032.44"},{"v":3058648.5556799998,"d":"$3,058,648.56"},{"v":7519239.37568,"d":"$7,519,239.38"},{"v":1104295.02,"d":"$1,104,295.02"},{"v":6414944.355679998,"d":"$6,414,944.36"},{"v":7408809.865679998,"d":"$7,408,809.87"},{"v":225694.35,"d":"$225,694.35"},{"v":225694.35,"d":"$225,694.35"},{"v":234933.3,"d":"$234,933.30"},{"v":234933.3,"d":"$234,933.30"},{"v":3959.55,"d":"$3,959.55"},{"v":3959.55,"d":"$3,959.55"},{"v":3959.55,"d":"$3,959.55"},{"v":3959.55,"d":"$3,959.55"},{"v":5279.4,"d":"$5,279.40"},{"v":542458.35,"d":"$542,458.35"},{"v":219735.39,"d":"$219,735.39"},{"v":84412.62,"d":"$84,412.62"},{"v":1788979.2600000002,"d":"$1,788,979.26"},{"v":15712814.81,"d":"$15,712,814.81"},{"v":514588.57,"d":"$514,588.57"},{"v":377.09999999999997,"d":"$377.10"},{"v":365570.97,"d":"$365,570.97"},{"v":15712814.755679997,"d":"$15,712,814.76"}]
["12051010026","RED HILL C U SCHOOL DIST 10",871.13,{"v":11645946.21,"d":"$11,645,946.21"},{"v":8493316,"d":"$8,493,316.00"},{"v":0.729293768565328,"d":"73%"},1,{"v":282506.59,"d":"$282,506.59"},{"v":5823741.039999998,"d":"$5,823,741.04"},{"v":6106247.629999998,"d":"$6,106,247.63"},{"v":0.9,"d":"0.90"},{"v":2680485.32,"d":"$2,680,485.32"},{"v":636071.65,"d":"$636,071.65"},{"v":283592.61,"d":"$283,592.61"},{"v":116015.53,"d":"$116,015.53"},{"v":90958.79,"d":"$90,958.79"},{"v":192283.23,"d":"$192,283.23"},{"v":63303.7,"d":"$63,303.70"},{"v":106659.88,"d":"$106,659.88"},{"v":129711.27,"d":"$129,711.27"},{"v":77254.9,"d":"$77,254.90"},{"v":192430.72,"d":"$192,430.72"},{"v":165683.29,"d":"$165,683.29"},{"v":127986.83,"d":"$127,986.83"},{"v":4862437.72,"d":"$4,862,437.72"},{"v":77742,"d":"$77,742.00"},{"v":108891.25,"d":"$108,891.25"},{"v":283117.25,"d":"$283,117.25"},{"v":29618.42,"d":"$29,618.42"},{"v":497415.23,"d":"$497,415.23"},{"v":308446.98,"d":"$308,446.98"},{"v":1185607.93,"d":"$1,185,607.93"},{"v":816248.8099999999,"d":"$816,248.81"},{"v":2269277.69232,"d":"$2,269,277.69"},{"v":5576365.56232,"d":"$5,576,365.56"},{"v":829211.22,"d":"$829,211.22"},{"v":4747154.34232,"d":"$4,747,154.34"},{"v":5493444.43232,"d":"$5,493,444.43"},{"v":160361.77,"d":"$160,361.77"},{"v":160361.77,"d":"$160,361.77"},{"v":166961.02,"d":"$166,961.02"},{"v":166961.02,"d":"$166,961.02"},{"v":0,"d":"$0.00"},{"v":0,"d":"$0.00"},{"v":0,"d":"$0.00"},{"v":0,"d":"$0.00"},{"v":0,"d":"$0.00"},{"v":407173.72,"d":"$407,173.72"},{"v":164935.2,"d":"$164,935.20"},{"v":63309.46,"d":"$63,309.46"},{"v":1290063.9599999997,"d":"$1,290,063.96"},{"v":11645946.21,"d":"$11,645,946.21"},{"v":494494.49,"d":"$494,494.49"},{"v":0,"d":"$0.00"},{"v":375841.75000000006,"d":"$375,841.75"},{"v":11645946.112319998,"d":"$11,645,946.11"}]
["12051020026","LAWRENCE CO C U DISTRICT 20",1065.71,{"v":14570664.91,"d":"$14,570,664.91"},{"v":11153984.57,"d":"$11,153,984.57"},{"v":0.7655096482484408,"d":"77%"},1,{"v":170173.79,"d":"$170,173.79"},{"v":7463507.59,"d":"$7,463,507.59"},{"v":7633681.38,"d":"$7,633,681.38"},{"v":0.9,"d":"0.90"},{"v":3329209.06,"d":"$3,329,209.06"},{"v":800841.18,"d":"$800,841.18"},{"v":348145.19,"d":"$348,145.19"},{"v":141089.44,"d":"$141,089.44"},{"v":114531.08,"d":"$114,531.08"},{"v":238597.66,"d":"$238,597.66"},{"v":77615.84,"d":"$77,615.84"},{"v":130718.5,"d":"$130,718.50"},{"v":157247.74,"d":"$157,247.74"},{"v":94363.25,"d":"$94,363.25"},{"v":233281.94,"d":"$233,281.94"},{"v":200856.28,"d":"$200,856.28"},{"v":156856.04,"d":"$156,856.04"},{"v":6023353.200000002,"d":"$6,023,353.20"},{"v":95224.5,"d":"$95,224.50"},{"v":133213.75,"d":"$133,213.75"},{"v":346355.75,"d":"$346,355.75"},{"v":36234.14,"d":"$36,234.14"},{"v":608520.4099999999,"d":"$608,520.41"},{"v":395901.14999999997,"d":"$395,901.15"},{"v":1450431.31,"d":"$1,450,431.31"},{"v":998570.2699999999,"d":"$998,570.27"},{"v":2851527.6464400003,"d":"$2,851,527.65"},{"v":6915978.9264400005,"d":"$6,915,978.93"},{"v":1014428.03,"d":"$1,014,428.03"},{"v":5901550.89644,"d":"$5,901,550.90"},{"v":6814536.11644,"d":"$6,814,536.12"},{"v":231633.67,"d":"$231,633.67"},{"v":231633.67,"d":"$231,633.67"},{"v":240872.62,"d":"$240,872.62"},{"v":240872.62,"d":"$240,872.62"},{"v":1979.77,"d":"$1,979.77"},{"v":1979.77,"d":"$1,979.77"},{"v":1979.77,"d":"$1,979.77"},{"v":1979.77,"d":"$1,979.77"},{"v":2639.7,"d":"$2,639.70"},{"v":498243.37,"d":"$498,243.37"},{"v":201825.09,"d":"$201,825.09"},{"v":77135.67,"d":"$77,135.67"},{"v":1732775.49,"d":"$1,732,775.49"},{"v":14570664.91,"d":"$14,570,664.91"},{"v":910305.59,"d":"$910,305.59"},{"v":2504.28,"d":"$2,504.28"},{"v":463904.30000000005,"d":"$463,904.30"},{"v":14570664.806440001,"d":"$14,570,664.81"}]
["12080001026","EAST RICHLAND C U SCH DIST 1",2099.54,{"v":29029727.85,"d":"$29,029,727.85"},{"v":22002984.450000003,"d":"$22,002,984.45"},{"v":0.7579466319385423,"d":"76%"},1,{"v":375665.72,"d":"$375,665.72"},{"v":11017622.040000001,"d":"$11,017,622.04"},{"v":11393287.760000002,"d":"$11,393,287.76"},{"v":0.9,"d":"0.90"},{"v":6596821.93,"d":"$6,596,821.93"},{"v":1619384.39,"d":"$1,619,384.39"},{"v":690802.7,"d":"$690,802.70"},{"v":278383.33,"d":"$278,383.33"},{"v":227817.82,"d":"$227,817.82"},{"v":481777.45,"d":"$481,777.45"},{"v":153580.29,"d":"$153,580.29"},{"v":259298.46,"d":"$259,298.46"},{"v":308698.34,"d":"$308,698.34"},{"v":186855.28,"d":"$186,855.28"},{"v":457963.63,"d":"$457,963.63"},{"v":394307.73,"d":"$394,307.73"},{"v":311145.93,"d":"$311,145.93"},{"v":11966837.28,"d":"$11,966,837.28"},{"v":187774.2,"d":"$187,774.20"},{"v":262442.5,"d":"$262,442.50"},{"v":682350.5,"d":"$682,350.50"},{"v":71384.36,"d":"$71,384.36"},{"v":1198837.34,"d":"$1,198,837.34"},{"v":834879.92,"d":"$834,879.92"},{"v":2857473.9400000004,"d":"$2,857,473.94"},{"v":1967268.98,"d":"$1,967,268.98"},{"v":5684502.10656,"d":"$5,684,502.11"},{"v":13746913.846560001,"d":"$13,746,913.85"},{"v":1998510.13,"d":"$1,998,510.13"},{"v":11748403.716559999,"d":"$11,748,403.72"},{"v":13547062.826559998,"d":"$13,547,062.83"},{"v":477125.77,"d":"$477,125.77"},{"v":477125.77,"d":"$477,125.77"},{"v":496923.52,"d":"$496,923.52"},{"v":496923.52,"d":"$496,923.52"},{"v":6599.25,"d":"$6,599.25"},{"v":6599.25,"d":"$6,599.25"},{"v":6599.25,"d":"$6,599.25"},{"v":6599.25,"d":"$6,599.25"},{"v":8579.02,"d":"$8,579.02"},{"v":982628.32,"d":"$982,628.32"},{"v":398036.5,"d":"$398,036.50"},{"v":152088.25,"d":"$152,088.25"},{"v":3515827.67,"d":"$3,515,827.67"},{"v":29029727.85,"d":"$29,029,727.85"},{"v":1743400.4300000002,"d":"$1,743,400.43"},{"v":3453.35,"d":"$3,453.35"},{"v":790839.14,"d":"$790,839.14"},{"v":29029727.77656,"d":"$29,029,727.78"}]
[null,"ALT SCH-CLINTON/MARION/WASHINGTON",78,{"v":1123955.72,"d":"$1,123,955.72"},{"v":690966.76,"d":"$690,966.76"},{"v":0.6147633289325669,"d":"61%"},1,{"v":74871.82,"d":"$74,871.82"},{"v":578571.1900000001,"d":"$578,571.19"},{"v":653443.01,"d":"$653,443.01"},{"v":0.93051,"d":"0.93"},{"v":248157.56,"d":"$248,157.56"},{"v":75099.37,"d":"$75,099.37"},{"v":28131.87,"d":"$28,131.87"},{"v":9312.33,"d":"$9,312.33"},{"v":8419.25,"d":"$8,419.25"},{"v":23927.24,"d":"$23,927.24"},{"v":5122.15,"d":"$5,122.15"},{"v":10226.06,"d":"$10,226.06"},{"v":9739.72,"d":"$9,739.72"},{"v":6909.5,"d":"$6,909.50"},{"v":14449.18,"d":"$14,449.18"},{"v":12440.77,"d":"$12,440.77"},{"v":12270.79,"d":"$12,270.79"},{"v":464205.79,"d":"$464,205.79"},{"v":7020,"d":"$7,020.00"},{"v":9750,"d":"$9,750.00"},{"v":25350,"d":"$25,350.00"},{"v":2652,"d":"$2,652.00"},{"v":44538,"d":"$44,538.00"},{"v":54802,"d":"$54,802.00"},{"v":106158,"d":"$106,158.00"},{"v":73086,"d":"$73,086.00"},{"v":211236.09900000002,"d":"$211,236.10"},{"v":534592.099,"d":"$534,592.10"},{"v":74246.64,"d":"$74,246.64"},{"v":460345.45900000003,"d":"$460,345.46"},{"v":529432.699,"d":"$529,432.70"},{"v":17739.7,"d":"$17,739.70"},{"v":17739.7,"d":"$17,739.70"},{"v":18422,"d":"$18,422.00"},{"v":18422,"d":"$18,422.00"},{"v":0,"d":"$0.00"},{"v":0,"d":"$0.00"},{"v":0,"d":"$0.00"},{"v":0,"d":"$0.00"},{"v":0,"d":"$0.00"},{"v":37526.3,"d":"$37,526.30"},{"v":15200.9,"d":"$15,200.90"},{"v":5266.54,"d":"$5,266.54"},{"v":130317.13999999998,"d":"$130,317.14"},{"v":1123955.72,"d":"$1,123,955.72"},{"v":23964.059999999998,"d":"$23,964.06"},{"v":0,"d":"$0.00"},{"v":13084.830000000002,"d":"$13,084.83"},{"v":1123955.629,"d":"$1,123,955.63"}]
[null,"SAFE SCH-CLINTON/MARION/WASHINGTO",60,{"v":850258.12,"d":"$850,258.12"},{"v":472077.77,"d":"$472,077.77"},{"v":0.5552170086890791,"d":"56%"},1,{"v":74688.95,"d":"$74,688.95"},{"v":387051.96,"d":"$387,051.96"},{"v":461740.91000000003,"d":"$461,740.91"},{"v":0.93051,"d":"0.93"},{"v":187444.66,"d":"$187,444.66"},{"v":53306.86,"d":"$53,306.86"},{"v":21220.15,"d":"$21,220.15"},{"v":7722.25,"d":"$7,722.25"},{"v":6413.34,"d":"$6,413.34"},{"v":17452.88,"d":"$17,452.88"},{"v":3983.89,"d":"$3,983.89"},{"v":7738.64,"d":"$7,738.64"},{"v":8241.3,"d":"$8,241.30"},{"v":5527.6,"d":"$5,527.60"},{"v":12226.23,"d":"$12,226.23"},{"v":10526.81,"d":"$10,526.81"},{"v":9286,"d":"$9,286.00"},{"v":351090.61000000004,"d":"$351,090.61"},{"v":5400,"d":"$5,400.00"},{"v":7500,"d":"$7,500.00"},{"v":19500,"d":"$19,500.00"},{"v":2040,"d":"$2,040.00"},{"v":34260,"d":"$34,260.00"},{"v":36900,"d":"$36,900.00"},{"v":81660,"d":"$81,660.00"},{"v":56220,"d":"$56,220.00"},{"v":160293.921,"d":"$160,293.92"},{"v":403773.921,"d":"$403,773.92"},{"v":57112.8,"d":"$57,112.80"},{"v":346661.121,"d":"$346,661.12"},{"v":399805.15099999995,"d":"$399,805.15"},{"v":13645.92,"d":"$13,645.92"},{"v":13645.92,"d":"$13,645.92"},{"v":13645.92,"d":"$13,645.92"},{"v":13645.92,"d":"$13,645.92"},{"v":0,"d":"$0.00"},{"v":0,"d":"$0.00"},{"v":0,"d":"$0.00"},{"v":0,"d":"$0.00"},{"v":0,"d":"$0.00"},{"v":28656.45,"d":"$28,656.45"},{"v":11607.96,"d":"$11,607.96"},{"v":4514.18,"d":"$4,514.18"},{"v":99362.26999999999,"d":"$99,362.27"},{"v":850258.12,"d":"$850,258.12"},{"v":22356.690000000002,"d":"$22,356.69"},{"v":42.93,"d":"$42.93"},{"v":12216.21,"d":"$12,216.21"},{"v":850258.031,"d":"$850,258.03"}]
["13014001026","CARLYLE C U SCHOOL DISTRICT 1",966.73,{"v":13327640.82,"d":"$13,327,640.82"},{"v":11342922.05,"d":"$11,342,922.05"},{"v":0.8510825136417505,"d":"85%"},2,{"v":28800.47,"d":"$28,800.47"},{"v":3429146.42,"d":"$3,429,146.42"},{"v":3457946.89,"d":"$3,457,946.89"},{"v":0.93051,"d":"0.93"},{"v":3078684.93,"d":"$3,078,684.93"},{"v":741385.09,"d":"$741,385.09"},{"v":326690.91,"d":"$326,690.91"},{"v":132407.71,"d":"$132,407.71"},{"v":105456.06,"d":"$105,456.06"},{"v":226631.49,"d":"$226,631.49"},{"v":72848.36,"d":"$72,848.36"},{"v":122436.37,"d":"$122,436.37"},{"v":147594.25,"d":"$147,594.25"},{"v":88718,"d":"$88,718.00"},{"v":218960.69,"d":"$218,960.69"},{"v":188525.65,"d":"$188,525.65"},{"v":146917.87,"d":"$146,917.87"},{"v":5597257.380000002,"d":"$5,597,257.38"},{"v":86128.2,"d":"$86,128.20"},{"v":120841.25,"d":"$120,841.25"},{"v":314187.25,"d":"$314,187.25"},{"v":32868.82,"d":"$32,868.82"},{"v":552002.8300000001,"d":"$552,002.83"},{"v":360829.16000000003,"d":"$360,829.16"},{"v":1315719.53,"d":"$1,315,719.53"},{"v":905826.01,"d":"$905,826.01"},{"v":2548697.52972,"d":"$2,548,697.53"},{"v":6237100.57972,"d":"$6,237,100.58"},{"v":920210.95,"d":"$920,210.95"},{"v":5316889.629720001,"d":"$5,316,889.63"},{"v":6173155.119720001,"d":"$6,173,155.12"},{"v":202642.04,"d":"$202,642.04"},{"v":202642.04,"d":"$202,642.04"},{"v":211511.9,"d":"$211,511.90"},{"v":211511.9,"d":"$211,511.90"},{"v":0,"d":"$0.00"},{"v":0,"d":"$0.00"},{"v":0,"d":"$0.00"},{"v":0,"d":"$0.00"},{"v":0,"d":"$0.00"},{"v":467373.07,"d":"$467,373.07"},{"v":189320.35,"d":"$189,320.35"},{"v":72226.93,"d":"$72,226.93"},{"v":1557228.23,"d":"$1,557,228.23"},{"v":13327640.82,"d":"$13,327,640.82"},{"v":416384.42000000004,"d":"$416,384.42"},{"v":0,"d":"$0.00"},{"v":381918.8,"d":"$381,918.80"},{"v":13327640.729720004,"d":"$13,327,640.73"}]
["13014003026","WESCLIN C U SCHOOL DISTRICT 3",1285.37,{"v":17366708.62,"d":"$17,366,708.62"},{"v":11780469.09,"d":"$11,780,469.09"},{"v":0.6783363127560782,"d":"68%"},1,{"v":695572.37,"d":"$695,572.37"},{"v":5907365.440000001,"d":"$5,907,365.44"},{"v":6602937.810000001,"d":"$6,602,937.81"},{"v":0.93051,"d":"0.93"},{"v":4012904.62,"d":"$4,012,904.62"},{"v":961854.58,"d":"$961,854.58"},{"v":434051.69,"d":"$434,051.69"},{"v":176694.94,"d":"$176,694.94"},{"v":136438.94,"d":"$136,438.94"},{"v":294991.65,"d":"$294,991.65"},{"v":96182.6,"d":"$96,182.60"},{"v":163064.24,"d":"$163,064.24"},{"v":197042.08,"d":"$197,042.08"},{"v":118014.29,"d":"$118,014.29"},{"v":292318.07,"d":"$292,318.07"},{"v":251686.53,"d":"$251,686.53"},{"v":195669.41,"d":"$195,669.41"},{"v":7330913.640000002,"d":"$7,330,913.64"},{"v":114341.4,"d":"$114,341.40"},{"v":160671.25,"d":"$160,671.25"},{"v":417745.25,"d":"$417,745.25"},{"v":43702.579999999994,"d":"$43,702.58"},{"v":733946.27,"d":"$733,946.27"},{"v":468199.51999999996,"d":"$468,199.52"},{"v":1749388.5699999998,"d":"$1,749,388.57"},{"v":1204391.69,"d":"$1,204,391.69"},{"v":3306287.91768,"d":"$3,306,287.92"},{"v":8198674.447679999,"d":"$8,198,674.45"},{"v":1223517.99,"d":"$1,223,517.99"},{"v":6975156.45768,"d":"$6,975,156.46"},{"v":8113652.17768,"d":"$8,113,652.18"},{"v":197865.97,"d":"$197,865.97"},{"v":197865.97,"d":"$197,865.97"},{"v":206053.53,"d":"$206,053.53"},{"v":206053.53,"d":"$206,053.53"},{"v":27291.85,"d":"$27,291.85"},{"v":27291.85,"d":"$27,291.85"},{"v":27974.15,"d":"$27,974.15"},{"v":27974.15,"d":"$27,974.15"},{"v":34114.82,"d":"$34,114.82"},{"v":621572.07,"d":"$621,572.07"},{"v":251782.25,"d":"$251,782.25"},{"v":96302.57,"d":"$96,302.57"},{"v":1922142.71,"d":"$1,922,142.71"},{"v":17366708.62,"d":"$17,366,708.62"},{"v":474313.44999999995,"d":"$474,313.45"},{"v":24757.489999999998,"d":"$24,757.49"},{"v":588876.3499999999,"d":"$588,876.35"},{"v":17366708.527680002,"d":"$17,366,708.53"}]
["13014012004","BREESE SCHOOL DISTRICT 12",555.97,{"v":7349524.94,"d":"$7,349,524.94"},{"v":5568667.48,"d":"$5,568,667.48"},{"v":0.7576908066115087,"d":"76%"},1,{"v":74369.57,"d":"$74,369.57"},{"v":1278866.1400000001,"d":"$1,278,866.14"},{"v":1353235.7100000002,"d":"$1,353,235.71"},{"v":0.93051,"d":"0.93"},{"v":1711725.75,"d":"$1,711,725.75"},{"v":342345.14,"d":"$342,345.14"},{"v":179737.69,"d":"$179,737.69"},{"v":79811.32,"d":"$79,811.32"},{"v":59855.55,"d":"$59,855.55"},{"v":109792.53,"d":"$109,792.53"},{"v":41546.33,"d":"$41,546.33"},{"v":67989.49,"d":"$67,989.49"},{"v":92152.76,"d":"$92,152.76"},{"v":50853.93,"d":"$50,853.93"},{"v":136711.49,"d":"$136,711.49"},{"v":117708.91,"d":"$117,708.91"},{"v":81584.19,"d":"$81,584.19"},{"v":3071815.0799999996,"d":"$3,071,815.08"},{"v":49302.899999999994,"d":"$49,302.90"},{"v":69496.25,"d":"$69,496.25"},{"v":180690.25,"d":"$180,690.25"},{"v":18902.98,"d":"$18,902.98"},{"v":317458.87,"d":"$317,458.87"},{"v":92593.00999999998,"d":"$92,593.01"},{"v":756675.1699999999,"d":"$756,675.17"},{"v":520943.89,"d":"$520,943.89"},{"v":1417174.04808,"d":"$1,417,174.05"},{"v":3423237.36808,"d":"$3,423,237.37"},{"v":529216.72,"d":"$529,216.72"},{"v":2894020.6480799997,"d":"$2,894,020.65"},{"v":3386462.09808,"d":"$3,386,462.10"},{"v":90063.13,"d":"$90,063.13"},{"v":90063.13,"d":"$90,063.13"},{"v":93474.61,"d":"$93,474.61"},{"v":93474.61,"d":"$93,474.61"},{"v":19786.59,"d":"$19,786.59"},{"v":19786.59,"d":"$19,786.59"},{"v":20468.89,"d":"$20,468.89"},{"v":20468.89,"d":"$20,468.89"},{"v":24562.67,"d":"$24,562.67"},{"v":268824.8,"d":"$268,824.80"},{"v":108893.75,"d":"$108,893.75"},{"v":41380.01,"d":"$41,380.01"},{"v":891247.67,"d":"$891,247.67"},{"v":7349524.94,"d":"$7,349,524.94"},{"v":158277.88999999998,"d":"$158,277.89"},{"v":4420.5599999999995,"d":"$4,420.56"},{"v":168781.67000000004,"d":"$168,781.67"},{"v":7349524.84808,"d":"$7,349,524.85"}]
["13014021002","AVISTON SCHOOL DISTRICT 21",401,{"v":4806061.01,"d":"$4,806,061.01"},{"v":3016988.17,"d":"$3,016,988.17"},{"v":0.6277465399882637,"d":"63%"},1,{"v":273726.81,"d":"$273,726.81"},{"v":1312840.1899999997,"d":"$1,312,840.19"},{"v":1586566.9999999998,"d":"$1,586,567.00"},{"v":0.93051,"d":"0.93"},{"v":1178352.52,"d":"$1,178,352.52"},{"v":235670.5,"d":"$235,670.50"},{"v":129774.5,"d":"$129,774.50"},{"v":57100.78,"d":"$57,100.78"},{"v":37630.46,"d":"$37,630.46"},{"v":76225.38,"d":"$76,225.38"},{"v":30163.77,"d":"$30,163.77"},{"v":48919.27,"d":"$48,919.27"},{"v":65930.42,"d":"$65,930.42"},{"v":36758.55,"d":"$36,758.55"},{"v":97809.85,"d":"$97,809.85"},{"v":84214.5,"d":"$84,214.50"},{"v":58700.82,"d":"$58,700.82"},{"v":2137251.3200000003,"d":"$2,137,251.32"},{"v":35820,"d":"$35,820.00"},{"v":50125,"d":"$50,125.00"},{"v":130325,"d":"$130,325.00"},{"v":13634,"d":"$13,634.00"},{"v":228971,"d":"$228,971.00"},{"v":64134,"d":"$64,134.00"},{"v":545761,"d":"$545,761.00"},{"v":375737,"d":"$375,737.00"},{"v":903436.9710000001,"d":"$903,436.97"},{"v":2347943.971,"d":"$2,347,943.97"},{"v":381703.88,"d":"$381,703.88"},{"v":1966240.091,"d":"$1,966,240.09"},{"v":2321419.361,"d":"$2,321,419.36"},{"v":10916.74,"d":"$10,916.74"},{"v":10916.74,"d":"$10,916.74"},{"v":11599.03,"d":"$11,599.03"},{"v":11599.03,"d":"$11,599.03"},{"v":0,"d":"$0.00"},{"v":0,"d":"$0.00"},{"v":0,"d":"$0.00"},{"v":0,"d":"$0.00"},{"v":0,"d":"$0.00"},{"v":193772.19,"d":"$193,772.19"},{"v":78491.94,"d":"$78,491.94"},{"v":30094.55,"d":"$30,094.55"},{"v":347390.22000000003,"d":"$347,390.22"},{"v":4806061.01,"d":"$4,806,061.01"},{"v":28565.59,"d":"$28,565.59"},{"v":28.35,"d":"$28.35"},{"v":122923.76,"d":"$122,923.76"},{"v":4806060.901,"d":"$4,806,060.90"}]
["13014046002","WILLOW GROVE SCHOOL DISTRICT 46",152.56,{"v":2220430.58,"d":"$2,220,430.58"},{"v":1522668.87,"d":"$1,522,668.87"},{"v":0.6857538730168272,"d":"69%"},1,{"v":90733.3,"d":"$90,733.30"},{"v":1164061.2000000002,"d":"$1,164,061.20"},{"v":1254794.5000000002,"d":"$1,254,794.50"},{"v":0.93051,"d":"0.93"},{"v":523640.13,"d":"$523,640.13"},{"v":104728.02,"d":"$104,728.02"},{"v":48665.44,"d":"$48,665.44"},{"v":21412.79,"d":"$21,412.79"},{"v":18932.18,"d":"$18,932.18"},{"v":28671.93,"d":"$28,671.93"},{"v":10813.42,"d":"$10,813.42"},{"v":18517.46,"d":"$18,517.46"},{"v":24723.91,"d":"$24,723.91"},{"v":13819,"d":"$13,819.00"},{"v":36678.69,"d":"$36,678.69"},{"v":31580.43,"d":"$31,580.43"},{"v":22220.08,"d":"$22,220.08"},{"v":904403.4800000002,"d":"$904,403.48"},{"v":13603.5,"d":"$13,603.50"},{"v":19070,"d":"$19,070.00"},{"v":49582,"d":"$49,582.00"},{"v":5187.04,"d":"$5,187.04"},{"v":87111.76000000001,"d":"$87,111.76"},{"v":25051.589999999997,"d":"$25,051.59"},{"v":207634.15999999997,"d":"$207,634.16"},{"v":142948.71999999997,"d":"$142,948.72"},{"v":437996.06184000004,"d":"$437,996.06"},{"v":988184.8318399999,"d":"$988,184.83"},{"v":145218.81,"d":"$145,218.81"},{"v":842966.0218400001,"d":"$842,966.02"},{"v":978093.5718400001,"d":"$978,093.57"},{"v":54583.71,"d":"$54,583.71"},{"v":54583.71,"d":"$54,583.71"},{"v":56630.6,"d":"$56,630.60"},{"v":56630.6,"d":"$56,630.60"},{"v":0,"d":"$0.00"},{"v":0,"d":"$0.00"},{"v":0,"d":"$0.00"},{"v":0,"d":"$0.00"},{"v":682.29,"d":"$682.29"},{"v":73688.01,"d":"$73,688.01"},{"v":29849.04,"d":"$29,849.04"},{"v":11285.45,"d":"$11,285.45"},{"v":337933.41,"d":"$337,933.41"},{"v":2220430.58,"d":"$2,220,430.58"},{"v":188741.13999999998,"d":"$188,741.14"},{"v":36.29,"d":"$36.29"},{"v":89257.17000000001,"d":"$89,257.17"},{"v":2220430.4618400005,"d":"$2,220,430.46"}]
["13014057002","BARTELSO SCHOOL DISTRICT 57",171.31,{"v":2050755.9,"d":"$2,050,755.90"},{"v":1403696.01,"d":"$1,403,696.01"},{"v":0.6844773724654407,"d":"68%"},1,{"v":76747.51,"d":"$76,747.51"},{"v":653417.28,"d":"$653,417.28"},{"v":730164.79,"d":"$730,164.79"},{"v":0.93051,"d":"0.93"},{"v":502876.21,"d":"$502,876.21"},{"v":100575.24,"d":"$100,575.24"},{"v":55154.16,"d":"$55,154.16"},{"v":24008.28,"d":"$24,008.28"},{"v":16071.16,"d":"$16,071.16"},{"v":32168.51,"d":"$32,168.51"},{"v":12520.81,"d":"$12,520.81"},{"v":20728.5,"d":"$20,728.50"},{"v":27720.74,"d":"$27,720.74"},{"v":15477.28,"d":"$15,477.28"},{"v":41124.59,"d":"$41,124.59"},{"v":35408.37,"d":"$35,408.37"},{"v":24873.23,"d":"$24,873.23"},{"v":908707.0800000002,"d":"$908,707.08"},{"v":15388.2,"d":"$15,388.20"},{"v":21413.75,"d":"$21,413.75"},{"v":55675.75,"d":"$55,675.75"},{"v":5824.539999999999,"d":"$5,824.54"},{"v":97818.01000000001,"d":"$97,818.01"},{"v":27695.26,"d":"$27,695.26"},{"v":233152.90999999997,"d":"$233,152.91"},{"v":160517.47,"d":"$160,517.47"},{"v":385270.84284000006,"d":"$385,270.84"},{"v":1002756.7328400001,"d":"$1,002,756.73"},{"v":163066.56,"d":"$163,066.56"},{"v":839690.1728399999,"d":"$839,690.17"},{"v":991425.23284,"d":"$991,425.23"},{"v":5458.37,"d":"$5,458.37"},{"v":5458.37,"d":"$5,458.37"},{"v":5458.37,"d":"$5,458.37"},{"v":5458.37,"d":"$5,458.37"},{"v":0,"d":"$0.00"},{"v":0,"d":"$0.00"},{"v":0,"d":"$0.00"},{"v":0,"d":"$0.00"},{"v":0,"d":"$0.00"},{"v":82557.87,"d":"$82,557.87"},{"v":33441.98,"d":"$33,441.98"},{"v":12790.18,"d":"$12,790.18"},{"v":150623.50999999998,"d":"$150,623.51"},{"v":2050755.9,"d":"$2,050,755.90"},{"v":14441.460000000001,"d":"$14,441.46"},{"v":0,"d":"$0.00"},{"v":52033.38999999999,"d":"$52,033.39"},{"v":2050755.8228400003,"d":"$2,050,755.82"}]
["13014060002","GERMANTOWN SCHOOL DISTRICT 60",221.25,{"v":2735540.84,"d":"$2,735,540.84"},{"v":1959576.76,"d":"$1,959,576.76"},{"v":0.7163397933404643,"d":"72%"},1,{"v":70162.66,"d":"$70,162.66"},{"v":779249.2899999999,"d":"$779,249.29"},{"v":849411.95,"d":"$849,411.95"},{"v":0.93051,"d":"0.93"},{"v":668338.71,"d":"$668,338.71"},{"v":133667.74,"d":"$133,667.74"},{"v":71375.97,"d":"$71,375.97"},{"v":31145.88,"d":"$31,145.88"},{"v":21776.84,"d":"$21,776.84"},{"v":41958.92,"d":"$41,958.92"},{"v":15935.57,"d":"$15,935.57"},{"v":26808.86,"d":"$26,808.86"},{"v":35962.05,"d":"$35,962.05"},{"v":20175.74,"d":"$20,175.74"},{"v":53350.82,"d":"$53,350.82"},{"v":45935.18,"d":"$45,935.18"},{"v":32169.37,"d":"$32,169.37"},{"v":1198601.6500000001,"d":"$1,198,601.65"},{"v":19755,"d":"$19,755.00"},{"v":27656.25,"d":"$27,656.25"},{"v":71906.25,"d":"$71,906.25"},{"v":7522.5,"d":"$7,522.50"},{"v":126333.75,"d":"$126,333.75"},{"v":35683.5,"d":"$35,683.50"},{"v":301121.25,"d":"$301,121.25"},{"v":207311.25,"d":"$207,311.25"},{"v":518584.4160000001,"d":"$518,584.42"},{"v":1315874.1660000002,"d":"$1,315,874.17"},{"v":210603.45,"d":"$210,603.45"},{"v":1105270.7160000002,"d":"$1,105,270.72"},{"v":1301239.3260000004,"d":"$1,301,239.33"},{"v":17057.41,"d":"$17,057.41"},{"v":17057.41,"d":"$17,057.41"},{"v":17739.7,"d":"$17,739.70"},{"v":17739.7,"d":"$17,739.70"},{"v":0,"d":"$0.00"},{"v":0,"d":"$0.00"},{"v":0,"d":"$0.00"},{"v":0,"d":"$0.00"},{"v":0,"d":"$0.00"},{"v":106438.24,"d":"$106,438.24"},{"v":43115.29,"d":"$43,115.29"},{"v":16552,"d":"$16,552.00"},{"v":235699.75000000003,"d":"$235,699.75"},{"v":2735540.84,"d":"$2,735,540.84"},{"v":24227.440000000002,"d":"$24,227.44"},{"v":0,"d":"$0.00"},{"v":74535.81,"d":"$74,535.81"},{"v":2735540.7260000007,"d":"$2,735,540.73"}]
["13014062002","DAMIANSVILLE SCHOOL DISTRICT 62",90.38,{"v":1100914.2,"d":"$1,100,914.20"},{"v":849028.4600000001,"d":"$849,028.46"},{"v":0.7712031146478082,"d":"77%"},1,{"v":6785.31,"d":"$6,785.31"},{"v":270247.05000000005,"d":"$270,247.05"},{"v":277032.36000000004,"d":"$277,032.36"},{"v":0.93051,"d":"0.93"},{"v":267984.35,"d":"$267,984.35"},{"v":53596.86,"d":"$53,596.86"},{"v":28550.39,"d":"$28,550.39"},{"v":12328.57,"d":"$12,328.57"},{"v":8718.95,"d":"$8,718.95"},{"v":16783.57,"d":"$16,783.57"},{"v":6260.4,"d":"$6,260.40"},{"v":10778.82,"d":"$10,778.82"},{"v":14234.97,"d":"$14,234.97"},{"v":8015.02,"d":"$8,015.02"},{"v":21118.03,"d":"$21,118.03"},{"v":18182.67,"d":"$18,182.67"},{"v":12934.07,"d":"$12,934.07"},{"v":479486.67000000004,"d":"$479,486.67"},{"v":7991.999999999998,"d":"$7,992.00"},{"v":11297.5,"d":"$11,297.50"},{"v":29373.5,"d":"$29,373.50"},{"v":3072.92,"d":"$3,072.92"},{"v":51606.98,"d":"$51,606.98"},{"v":14405.839999999998,"d":"$14,405.84"},{"v":123007.18,"d":"$123,007.18"},{"v":84686.06,"d":"$84,686.06"},{"v":207909.93731999997,"d":"$207,909.94"},{"v":533351.91732,"d":"$533,351.92"},{"v":86030.91,"d":"$86,030.91"},{"v":447321.00732,"d":"$447,321.01"},{"v":527373.62732,"d":"$527,373.63"},{"v":6140.66,"d":"$6,140.66"},{"v":6140.66,"d":"$6,140.66"},{"v":6822.96,"d":"$6,822.96"},{"v":6822.96,"d":"$6,822.96"},{"v":0,"d":"$0.00"},{"v":0,"d":"$0.00"},{"v":0,"d":"$0.00"},{"v":0,"d":"$0.00"},{"v":0,"d":"$0.00"},{"v":43666.97,"d":"$43,666.97"},{"v":17688.32,"d":"$17,688.32"},{"v":6771.27,"d":"$6,771.27"},{"v":94053.8,"d":"$94,053.80"},{"v":1100914.2,"d":"$1,100,914.20"},{"v":26559.120000000003,"d":"$26,559.12"},{"v":2.09,"d":"$2.09"},{"v":18205.999999999996,"d":"$18,206.00"},{"v":1100914.09732,"d":"$1,100,914.10"}]
["13014063002","ALBERS SCHOOL DISTRICT 63",165.32,{"v":2029655.01,"d":"$2,029,655.01"},{"v":1501969.6,"d":"$1,501,969.60"},{"v":0.7400122644488237,"d":"74%"},1,{"v":38164.68,"d":"$38,164.68"},{"v":790728.7799999999,"d":"$790,728.78"},{"v":828893.46,"d":"$828,893.46"},{"v":0.93051,"d":"0.93"},{"v":488601.02,"d":"$488,601.02"},{"v":97720.19,"d":"$97,720.19"},{"v":53207.54,"d":"$53,207.54"},{"v":23359.41,"d":"$23,359.41"},{"v":16037.95,"d":"$16,037.95"},{"v":31469.19,"d":"$31,469.19"},{"v":11951.68,"d":"$11,951.68"},{"v":20175.74,"d":"$20,175.74"},{"v":26971.53,"d":"$26,971.53"},{"v":14924.52,"d":"$14,924.52"},{"v":40013.12,"d":"$40,013.12"},{"v":34451.38,"d":"$34,451.38"},{"v":24209.94,"d":"$24,209.94"},{"v":883093.21,"d":"$883,093.21"},{"v":14653.8,"d":"$14,653.80"},{"v":20665,"d":"$20,665.00"},{"v":53729,"d":"$53,729.00"},{"v":5620.879999999999,"d":"$5,620.88"},{"v":94397.72,"d":"$94,397.72"},{"v":27150.18,"d":"$27,150.18"},{"v":225000.52,"d":"$225,000.52"},{"v":154904.84,"d":"$154,904.84"},{"v":383952.97547999996,"d":"$383,952.98"},{"v":980074.91548,"d":"$980,074.92"},{"v":157364.8,"d":"$157,364.80"},{"v":822710.1154800002,"d":"$822,710.12"},{"v":969139.6354800002,"d":"$969,139.64"},{"v":12963.63,"d":"$12,963.63"},{"v":12963.63,"d":"$12,963.63"},{"v":13645.92,"d":"$13,645.92"},{"v":13645.92,"d":"$13,645.92"},{"v":0,"d":"$0.00"},{"v":0,"d":"$0.00"},{"v":0,"d":"$0.00"},{"v":0,"d":"$0.00"},{"v":0,"d":"$0.00"},{"v":79828.68,"d":"$79,828.68"},{"v":32336.46,"d":"$32,336.46"},{"v":12037.82,"d":"$12,037.82"},{"v":177422.06,"d":"$177,422.06"},{"v":2029655.01,"d":"$2,029,655.01"},{"v":23418.66,"d":"$23,418.66"},{"v":64.38,"d":"$64.38"},{"v":54130.56999999999,"d":"$54,130.57"},{"v":2029654.9054800002,"d":"$2,029,654.91"}]
["13014071016","CENTRAL COMMUNITY H S DIST 71",616.32,{"v":8616007.18,"d":"$8,616,007.18"},{"v":6522528.95,"d":"$6,522,528.95"},{"v":0.7570245490440736,"d":"76%"},1,{"v":90960.38,"d":"$90,960.38"},{"v":698352.62,"d":"$698,352.62"},{"v":789313,"d":"$789,313.00"},{"v":0.93051,"d":"0.93"},{"v":1924001.47,"d":"$1,924,001.47"},{"v":641269.68,"d":"$641,269.68"},{"v":229865.18,"d":"$229,865.18"},{"v":76124.18,"d":"$76,124.18"},{"v":61115.6,"d":"$61,115.60"},{"v":196080.41,"d":"$196,080.41"},{"v":46668.48,"d":"$46,668.48"},{"v":85125.06,"d":"$85,125.06"},{"v":76419.36,"d":"$76,419.36"},{"v":56657.91,"d":"$56,657.91"},{"v":113370.5,"d":"$113,370.50"},{"v":97612.26,"d":"$97,612.26"},{"v":102146.06,"d":"$102,146.06"},{"v":3706456.1500000004,"d":"$3,706,456.15"},{"v":55468.8,"d":"$55,468.80"},{"v":77040,"d":"$77,040.00"},{"v":200304.00000000003,"d":"$200,304.00"},{"v":20954.88,"d":"$20,954.88"},{"v":351918.72,"d":"$351,918.72"},{"v":529418.88,"d":"$529,418.88"},{"v":838811.52,"d":"$838,811.52"},{"v":577491.8400000001,"d":"$577,491.84"},{"v":1582306.26648,"d":"$1,582,306.27"},{"v":4233714.90648,"d":"$4,233,714.91"},{"v":586662.68,"d":"$586,662.68"},{"v":3647052.2264799993,"d":"$3,647,052.23"},{"v":4192947.716479999,"d":"$4,192,947.72"},{"v":61406.68,"d":"$61,406.68"},{"v":61406.68,"d":"$61,406.68"},{"v":64135.86,"d":"$64,135.86"},{"v":64135.86,"d":"$64,135.86"},{"v":0,"d":"$0.00"},{"v":0,"d":"$0.00"},{"v":0,"d":"$0.00"},{"v":0,"d":"$0.00"},{"v":682.29,"d":"$682.29"},{"v":298163.55,"d":"$298,163.55"},{"v":120778.09,"d":"$120,778.09"},{"v":45894.19,"d":"$45,894.19"},{"v":716603.2,"d":"$716,603.20"},{"v":8616007.18,"d":"$8,616,007.18"},{"v":89048.65000000001,"d":"$89,048.65"},{"v":69.83,"d":"$69.83"},{"v":164937.01999999996,"d":"$164,937.02"},{"v":8616007.06648,"d":"$8,616,007.07"}]
["13014141502","ST ROSE SCHOOL DISTRICT 14-15",162.06,{"v":2052123.29,"d":"$2,052,123.29"},{"v":1509034.89,"d":"$1,509,034.89"},{"v":0.7353529377857214,"d":"74%"},1,{"v":37642.87,"d":"$37,642.87"},{"v":481928.8,"d":"$481,928.80"},{"v":519571.67,"d":"$519,571.67"},{"v":0.93051,"d":"0.93"},{"v":496387.49,"d":"$496,387.49"},{"v":99277.49,"d":"$99,277.49"},{"v":51909.8,"d":"$51,909.80"},{"v":22710.53,"d":"$22,710.53"},{"v":16504.17,"d":"$16,504.17"},{"v":30769.88,"d":"$30,769.88"},{"v":11382.55,"d":"$11,382.55"},{"v":19622.98,"d":"$19,622.98"},{"v":26222.33,"d":"$26,222.33"},{"v":14648.14,"d":"$14,648.14"},{"v":38901.64,"d":"$38,901.64"},{"v":33494.4,"d":"$33,494.40"},{"v":23546.65,"d":"$23,546.65"},{"v":885378.0500000002,"d":"$885,378.05"},{"v":14458.5,"d":"$14,458.50"},{"v":20257.5,"d":"$20,257.50"},{"v":52669.5,"d":"$52,669.50"},{"v":5510.04,"d":"$5,510.04"},{"v":92536.26000000001,"d":"$92,536.26"},{"v":26301.089999999997,"d":"$26,301.09"},{"v":220563.65999999997,"d":"$220,563.66"},{"v":151850.21999999997,"d":"$151,850.22"},{"v":391480.12283999997,"d":"$391,480.12"},{"v":975626.8928399999,"d":"$975,626.89"},{"v":154261.67,"d":"$154,261.67"},{"v":821365.22284,"d":"$821,365.22"},{"v":964907.24284,"d":"$964,907.24"},{"v":19786.59,"d":"$19,786.59"},{"v":19786.59,"d":"$19,786.59"},{"v":20468.89,"d":"$20,468.89"},{"v":20468.89,"d":"$20,468.89"},{"v":0,"d":"$0.00"},{"v":0,"d":"$0.00"},{"v":0,"d":"$0.00"},{"v":0,"d":"$0.00"},{"v":0,"d":"$0.00"},{"v":77781.79,"d":"$77,781.79"},{"v":31507.32,"d":"$31,507.32"},{"v":12037.82,"d":"$12,037.82"},{"v":201837.89,"d":"$201,837.89"},{"v":2052123.29,"d":"$2,052,123.29"},{"v":27422.92,"d":"$27,422.92"},{"v":0,"d":"$0.00"},{"v":44943.56,"d":"$44,943.56"},{"v":2052123.1828400004,"d":"$2,052,123.18"}]
["13014186002","NORTH WAMAC SCHOOL DISTRICT 186",130.5,{"v":1843910.01,"d":"$1,843,910.01"},{"v":1335332.83,"d":"$1,335,332.83"},{"v":0.7241854660792258,"d":"72%"},1,{"v":50892.06,"d":"$50,892.06"},{"v":1055280.63,"d":"$1,055,280.63"},{"v":1106172.69,"d":"$1,106,172.69"},{"v":0.93051,"d":"0.93"},{"v":439935.58,"d":"$439,935.58"},{"v":87987.1,"d":"$87,987.10"},{"v":41527.84,"d":"$41,527.84"},{"v":18168.43,"d":"$18,168.43"},{"v":15554.72,"d":"$15,554.72"},{"v":25175.35,"d":"$25,175.35"},{"v":9106.04,"d":"$9,106.04"},{"v":15753.66,"d":"$15,753.66"},{"v":20977.86,"d":"$20,977.86"},{"v":11884.34,"d":"$11,884.34"},{"v":31121.31,"d":"$31,121.31"},{"v":26795.52,"d":"$26,795.52"},{"v":18903.65,"d":"$18,903.65"},{"v":762891.4000000001,"d":"$762,891.40"},{"v":11655,"d":"$11,655.00"},{"v":16312.5,"d":"$16,312.50"},{"v":42412.5,"d":"$42,412.50"},{"v":4437,"d":"$4,437.00"},{"v":74515.5,"d":"$74,515.50"},{"v":21519.5,"d":"$21,519.50"},{"v":177610.5,"d":"$177,610.50"},{"v":122278.5,"d":"$122,278.50"},{"v":361273.284,"d":"$361,273.28"},{"v":832014.284,"d":"$832,014.28"},{"v":124220.34,"d":"$124,220.34"},{"v":707793.944,"d":"$707,793.94"},{"v":823382.204,"d":"$823,382.20"},{"v":38890.89,"d":"$38,890.89"},{"v":38890.89,"d":"$38,890.89"},{"v":40937.78,"d":"$40,937.78"},{"v":40937.78,"d":"$40,937.78"},{"v":0,"d":"$0.00"},{"v":0,"d":"$0.00"},{"v":0,"d":"$0.00"},{"v":0,"d":"$0.00"},{"v":0,"d":"$0.00"},{"v":62771.27,"d":"$62,771.27"},{"v":25426.96,"d":"$25,426.96"},{"v":9780.73,"d":"$9,780.73"},{"v":257636.3,"d":"$257,636.30"},{"v":1843910.01,"d":"$1,843,910.01"},{"v":236415.82000000004,"d":"$236,415.82"},{"v":0,"d":"$0.00"},{"v":60049.91,"d":"$60,049.91"},{"v":1843909.9040000003,"d":"$1,843,909.90"}]
["13041001026","WALTONVILLE C U SCHOOL DIST 1",312.72,{"v":4190223.9,"d":"$4,190,223.90"},{"v":3602318.73,"d":"$3,602,318.73"},{"v":0.8596960009702584,"d":"86%"},2,{"v":11472.44,"d":"$11,472.44"},{"v":1675058.9500000002,"d":"$1,675,058.95"},{"v":1686531.3900000001,"d":"$1,686,531.39"},{"v":0.9,"d":"0.90"},{"v":958291.92,"d":"$958,291.92"},{"v":231975.36,"d":"$231,975.36"},{"v":101079.59,"d":"$101,079.59"},{"v":40324.73,"d":"$40,324.73"},{"v":32602.3,"d":"$32,602.30"},{"v":70555.26,"d":"$70,555.26"},{"v":22018.68,"d":"$22,018.68"},{"v":37959.15,"d":"$37,959.15"},{"v":44927.92,"d":"$44,927.92"},{"v":27533.75,"d":"$27,533.75"},{"v":66651.98,"d":"$66,651.98"},{"v":57387.51,"d":"$57,387.51"},{"v":45549.19,"d":"$45,549.19"},{"v":1736857.3399999999,"d":"$1,736,857.34"},{"v":27942.300000000003,"d":"$27,942.30"},{"v":39090,"d":"$39,090.00"},{"v":101634,"d":"$101,634.00"},{"v":10632.48,"d":"$10,632.48"},{"v":178563.12,"d":"$178,563.12"},{"v":118626.16999999998,"d":"$118,626.17"},{"v":425611.92000000004,"d":"$425,611.92"},{"v":293018.64,"d":"$293,018.64"},{"v":815043.72108,"d":"$815,043.72"},{"v":2010162.35108,"d":"$2,010,162.35"},{"v":297671.91,"d":"$297,671.91"},{"v":1712490.4410800003,"d":"$1,712,490.44"},{"v":1980395.1510800002,"d":"$1,980,395.15"},{"v":60053.17,"d":"$60,053.17"},{"v":60053.17,"d":"$60,053.17"},{"v":62692.87,"d":"$62,692.87"},{"v":62692.87,"d":"$62,692.87"},{"v":0,"d":"$0.00"},{"v":0,"d":"$0.00"},{"v":0,"d":"$0.00"},{"v":0,"d":"$0.00"},{"v":0,"d":"$0.00"},{"v":145843.42,"d":"$145,843.42"},{"v":59077.27,"d":"$59,077.27"},{"v":22558.54,"d":"$22,558.54"},{"v":472971.31,"d":"$472,971.31"},{"v":4190223.9,"d":"$4,190,223.90"},{"v":136614.31,"d":"$136,614.31"},{"v":0,"d":"$0.00"},{"v":163131.54,"d":"$163,131.54"},{"v":4190223.80108,"d":"$4,190,223.80"}]
["13041002004","ROME COMM CONS SCHOOL DIST 2",344.55,{"v":4524349.79,"d":"$4,524,349.79"},{"v":3192435.42,"d":"$3,192,435.42"},{"v":0.7056119814290486,"d":"71%"},1,{"v":149985.68,"d":"$149,985.68"},{"v":2294119.9899999998,"d":"$2,294,119.99"},{"v":2444105.67,"d":"$2,444,105.67"},{"v":0.9,"d":"0.90"},{"v":1051224.97,"d":"$1,051,224.97"},{"v":210244.99,"d":"$210,244.99"},{"v":107319.08,"d":"$107,319.08"},{"v":47697.37,"d":"$47,697.37"},{"v":36602.53,"d":"$36,602.53"},{"v":66285.82,"d":"$66,285.82"},{"v":24771.01,"d":"$24,771.01"},{"v":40632.33,"d":"$40,632.33"},{"v":55072.94,"d":"$55,072.94"},{"v":30474.25,"d":"$30,474.25"},{"v":81702.43,"d":"$81,702.43"},{"v":70345.98,"d":"$70,345.98"},{"v":48756.88,"d":"$48,756.88"},{"v":1871130.58,"d":"$1,871,130.58"},{"v":30642.299999999996,"d":"$30,642.30"},{"v":43068.75,"d":"$43,068.75"},{"v":111978.75,"d":"$111,978.75"},{"v":11714.699999999999,"d":"$11,714.70"},{"v":196738.05,"d":"$196,738.05"},{"v":57830.59,"d":"$57,830.59"},{"v":468932.55,"d":"$468,932.55"},{"v":322843.35,"d":"$322,843.35"},{"v":892992.1182,"d":"$892,992.12"},{"v":2136741.1582,"d":"$2,136,741.16"},{"v":327970.25,"d":"$327,970.25"},{"v":1808770.9082,"d":"$1,808,770.91"},{"v":2103944.1282,"d":"$2,103,944.13"},{"v":73251.67,"d":"$73,251.67"},{"v":73251.67,"d":"$73,251.67"},{"v":75891.37,"d":"$75,891.37"},{"v":75891.37,"d":"$75,891.37"},{"v":0,"d":"$0.00"},{"v":0,"d":"$0.00"},{"v":0,"d":"$0.00"},{"v":0,"d":"$0.00"},{"v":0,"d":"$0.00"},{"v":161021.7,"d":"$161,021.70"},{"v":65225.59,"d":"$65,225.59"},{"v":24741.63,"d":"$24,741.63"},{"v":549275,"d":"$549,275.00"},{"v":4524349.79,"d":"$4,524,349.79"},{"v":241421.34,"d":"$241,421.34"},{"v":0,"d":"$0.00"},{"v":155493.75,"d":"$155,493.75"},{"v":4524349.7082,"d":"$4,524,349.71"}]
["13041003004","FIELD COMM CONS SCHOOL DIST 3",236.14,{"v":3000226.41,"d":"$3,000,226.41"},{"v":2205390.18,"d":"$2,205,390.18"},{"v":0.7350745839211514,"d":"74%"},1,{"v":65420.35,"d":"$65,420.35"},{"v":1381950.24,"d":"$1,381,950.24"},{"v":1447370.59,"d":"$1,447,370.59"},{"v":0.9,"d":"0.90"},{"v":704791.43,"d":"$704,791.43"},{"v":140958.27,"d":"$140,958.27"},{"v":73428.84,"d":"$73,428.84"},{"v":32007.44,"d":"$32,007.44"},{"v":23961.45,"d":"$23,961.45"},{"v":45317.86,"d":"$45,317.86"},{"v":16514.01,"d":"$16,514.01"},{"v":27801.07,"d":"$27,801.07"},{"v":36956.84,"d":"$36,956.84"},{"v":20583.48,"d":"$20,583.48"},{"v":54826.63,"d":"$54,826.63"},{"v":47205.85,"d":"$47,205.85"},{"v":33359.97,"d":"$33,359.97"},{"v":1257713.14,"d":"$1,257,713.14"},{"v":21162.6,"d":"$21,162.60"},{"v":29517.5,"d":"$29,517.50"},{"v":76745.5,"d":"$76,745.50"},{"v":8028.76,"d":"$8,028.76"},{"v":134835.94,"d":"$134,835.94"},{"v":40448.34,"d":"$40,448.34"},{"v":321386.54,"d":"$321,386.54"},{"v":221263.18,"d":"$221,263.18"},{"v":586913.3859599999,"d":"$586,913.39"},{"v":1440301.7459599997,"d":"$1,440,301.75"},{"v":224776.94,"d":"$224,776.94"},{"v":1215524.80596,"d":"$1,215,524.81"},{"v":1417824.04596,"d":"$1,417,824.05"},{"v":37615.72,"d":"$37,615.72"},{"v":37615.72,"d":"$37,615.72"},{"v":38935.57,"d":"$38,935.57"},{"v":38935.57,"d":"$38,935.57"},{"v":0,"d":"$0.00"},{"v":0,"d":"$0.00"},{"v":0,"d":"$0.00"},{"v":0,"d":"$0.00"},{"v":0,"d":"$0.00"},{"v":110207.47,"d":"$110,207.47"},{"v":44642.1,"d":"$44,642.10"},{"v":16736.98,"d":"$16,736.98"},{"v":324689.13,"d":"$324,689.13"},{"v":3000226.41,"d":"$3,000,226.41"},{"v":103409.84999999999,"d":"$103,409.85"},{"v":0,"d":"$0.00"},{"v":89903.11000000002,"d":"$89,903.11"},{"v":3000226.31596,"d":"$3,000,226.32"}]
["13041005004","OPDYKE-BELLE-RIVE CC SCH DIST 5",143.25,{"v":1924134.34,"d":"$1,924,134.34"},{"v":1798713.06,"d":"$1,798,713.06"},{"v":0.9348167758390508,"d":"93%"},3,{"v":2186.6,"d":"$2,186.60"},{"v":948052.8600000001,"d":"$948,052.86"},{"v":950239.4600000001,"d":"$950,239.46"},{"v":0.9,"d":"0.90"},{"v":449987.04,"d":"$449,987.04"},{"v":89997.4,"d":"$89,997.40"},{"v":44559.38,"d":"$44,559.38"},{"v":19455.5,"d":"$19,455.50"},{"v":15775.88,"d":"$15,775.88"},{"v":27055.44,"d":"$27,055.44"},{"v":9908.4,"d":"$9,908.40"},{"v":16841.03,"d":"$16,841.03"},{"v":22463.96,"d":"$22,463.96"},{"v":12563.94,"d":"$12,563.94"},{"v":33325.99,"d":"$33,325.99"},{"v":28693.75,"d":"$28,693.75"},{"v":20208.44,"d":"$20,208.44"},{"v":790836.1499999998,"d":"$790,836.15"},{"v":12825,"d":"$12,825.00"},{"v":17906.25,"d":"$17,906.25"},{"v":46556.25,"d":"$46,556.25"},{"v":4870.5,"d":"$4,870.50"},{"v":81795.75,"d":"$81,795.75"},{"v":24260.5,"d":"$24,260.50"},{"v":194963.25,"d":"$194,963.25"},{"v":134225.25,"d":"$134,225.25"},{"v":381828.129,"d":"$381,828.13"},{"v":899230.879,"d":"$899,230.88"},{"v":136356.81,"d":"$136,356.81"},{"v":762874.0689999999,"d":"$762,874.07"},{"v":885595.1889999999,"d":"$885,595.19"},{"v":34976.02,"d":"$34,976.02"},{"v":34976.02,"d":"$34,976.02"},{"v":36955.8,"d":"$36,955.80"},{"v":36955.8,"d":"$36,955.80"},{"v":0,"d":"$0.00"},{"v":0,"d":"$0.00"},{"v":0,"d":"$0.00"},{"v":0,"d":"$0.00"},{"v":0,"d":"$0.00"},{"v":66652.42,"d":"$66,652.42"},{"v":26999.11,"d":"$26,999.11"},{"v":10187.73,"d":"$10,187.73"},{"v":247702.9,"d":"$247,702.90"},{"v":1924134.34,"d":"$1,924,134.34"},{"v":167354.12,"d":"$167,354.12"},{"v":0,"d":"$0.00"},{"v":75344.53,"d":"$75,344.53"},{"v":1924134.2389999996,"d":"$1,924,134.24"}]
["13041006004","GRAND PRAIRIE C C SCH DIST 6",73.29,{"v":981182.92,"d":"$981,182.92"},{"v":777844.69,"d":"$777,844.69"},{"v":0.7927621589662404,"d":"79%"},2,{"v":6557.98,"d":"$6,557.98"},{"v":428131.81,"d":"$428,131.81"},{"v":434689.79,"d":"$434,689.79"},{"v":0.9,"d":"0.90"},{"v":229072.9,"d":"$229,072.90"},{"v":45814.58,"d":"$45,814.58"},{"v":22593.49,"d":"$22,593.49"},{"v":9413.95,"d":"$9,413.95"},{"v":8074.3,"d":"$8,074.30"},{"v":12851.33,"d":"$12,851.33"},{"v":4954.2,"d":"$4,954.20"},{"v":8554.17,"d":"$8,554.17"},{"v":10869.66,"d":"$10,869.66"},{"v":6415.63,"d":"$6,415.63"},{"v":16125.48,"d":"$16,125.48"},{"v":13884.07,"d":"$13,884.07"},{"v":10264.6,"d":"$10,264.60"},{"v":398888.3599999999,"d":"$398,888.36"},{"v":6521.400000000001,"d":"$6,521.40"},{"v":9161.25,"d":"$9,161.25"},{"v":23819.25,"d":"$23,819.25"},{"v":2491.86,"d":"$2,491.86"},{"v":41848.59,"d":"$41,848.59"},{"v":12135.18,"d":"$12,135.18"},{"v":99747.69,"d":"$99,747.69"},{"v":68672.73,"d":"$68,672.73"},{"v":194618.48855999997,"d":"$194,618.49"},{"v":459016.43856,"d":"$459,016.44"},{"v":69763.28,"d":"$69,763.28"},{"v":389253.1585599999,"d":"$389,253.16"},{"v":452040.1085599999,"d":"$452,040.11"},{"v":19137.82,"d":"$19,137.82"},{"v":19137.82,"d":"$19,137.82"},{"v":19797.75,"d":"$19,797.75"},{"v":19797.75,"d":"$19,797.75"},{"v":0,"d":"$0.00"},{"v":0,"d":"$0.00"},{"v":0,"d":"$0.00"},{"v":0,"d":"$0.00"},{"v":0,"d":"$0.00"},{"v":33656.17,"d":"$33,656.17"},{"v":13633.21,"d":"$13,633.21"},{"v":5093.86,"d":"$5,093.86"},{"v":130254.37999999999,"d":"$130,254.38"},{"v":981182.92,"d":"$981,182.92"},{"v":51445.20999999999,"d":"$51,445.21"},{"v":0,"d":"$0.00"},{"v":31727.980000000003,"d":"$31,727.98"},{"v":981182.8485599998,"d":"$981,182.85"}]
["13041012004","MCCLELLAN C C SCHOOL DIST 12",54.9,{"v":716839.5,"d":"$716,839.50"},{"v":776760.4,"d":"$776,760.40"},{"v":1.0835903992455773,"d":"108%"},4,{"v":45.66,"d":"$45.66"},{"v":260475.39000000007,"d":"$260,475.39"},{"v":260521.05000000008,"d":"$260,521.05"},{"v":0.9,"d":"0.90"},{"v":175727.16,"d":"$175,727.16"},{"v":35145.43,"d":"$35,145.43"},{"v":16317.52,"d":"$16,317.52"},{"v":6903.56,"d":"$6,903.56"},{"v":6072.87,"d":"$6,072.87"},{"v":9469.4,"d":"$9,469.40"},{"v":3853.26,"d":"$3,853.26"},{"v":6148.31,"d":"$6,148.31"},{"v":7971.08,"d":"$7,971.08"},{"v":4811.72,"d":"$4,811.72"},{"v":11825.35,"d":"$11,825.35"},{"v":10181.65,"d":"$10,181.65"},{"v":7377.68,"d":"$7,377.68"},{"v":301804.98999999993,"d":"$301,804.99"},{"v":4904.099999999999,"d":"$4,904.10"},{"v":6862.499999999999,"d":"$6,862.50"},{"v":17842.5,"d":"$17,842.50"},{"v":1866.5999999999997,"d":"$1,866.60"},{"v":15673.939999999999,"d":"$15,673.94"},{"v":8712.17,"d":"$8,712.17"},{"v":74718.9,"d":"$74,718.90"},{"v":51441.299999999996,"d":"$51,441.30"},{"v":145250.70659999998,"d":"$145,250.71"},{"v":327272.7165999999,"d":"$327,272.72"},{"v":52258.21,"d":"$52,258.21"},{"v":275014.5065999999,"d":"$275,014.51"},{"v":322046.8865999999,"d":"$322,046.89"},{"v":13198.5,"d":"$13,198.50"},{"v":13198.5,"d":"$13,198.50"},{"v":13858.42,"d":"$13,858.42"},{"v":13858.42,"d":"$13,858.42"},{"v":0,"d":"$0.00"},{"v":0,"d":"$0.00"},{"v":0,"d":"$0.00"},{"v":0,"d":"$0.00"},{"v":0,"d":"$0.00"},{"v":25077.15,"d":"$25,077.15"},{"v":10158.08,"d":"$10,158.08"},{"v":3638.47,"d":"$3,638.47"},{"v":92987.54,"d":"$92,987.54"},{"v":716839.5,"d":"$716,839.50"},{"v":24888.229999999996,"d":"$24,888.23"},{"v":0,"d":"$0.00"},{"v":26616.219999999994,"d":"$26,616.22"},{"v":716839.4165999999,"d":"$716,839.42"}]
["13041079002","SUMMERSVILLE SCHOOL DIST 79",268,{"v":3467510.43,"d":"$3,467,510.43"},{"v":2256768.54,"d":"$2,256,768.54"},{"v":0.6508325167460275,"d":"65%"},1,{"v":182314.49,"d":"$182,314.49"},{"v":1611969.2900000003,"d":"$1,611,969.29"},{"v":1794283.7800000003,"d":"$1,794,283.78"},{"v":0.9,"d":"0.90"},{"v":821524.47,"d":"$821,524.47"},{"v":164304.89,"d":"$164,304.89"},{"v":84097.99,"d":"$84,097.99"},{"v":37028.22,"d":"$37,028.22"},{"v":28035.23,"d":"$28,035.23"},{"v":48699.79,"d":"$48,699.79"},{"v":18715.87,"d":"$18,715.87"},{"v":31543.52,"d":"$31,543.52"},{"v":42753.99,"d":"$42,753.99"},{"v":23523.98,"d":"$23,523.98"},{"v":63426.88,"d":"$63,426.88"},{"v":54610.69,"d":"$54,610.69"},{"v":37850.74,"d":"$37,850.74"},{"v":1456116.26,"d":"$1,456,116.26"},{"v":23805,"d":"$23,805.00"},{"v":33500,"d":"$33,500.00"},{"v":87100,"d":"$87,100.00"},{"v":9112,"d":"$9,112.00"},{"v":153028,"d":"$153,028.00"},{"v":42238.5,"d":"$42,238.50"},{"v":364748,"d":"$364,748.00"},{"v":251116,"d":"$251,116.00"},{"v":682482.8849999999,"d":"$682,482.89"},{"v":1647130.3849999998,"d":"$1,647,130.39"},{"v":255103.84,"d":"$255,103.84"},{"v":1392026.5449999997,"d":"$1,392,026.55"},{"v":1621619.9949999996,"d":"$1,621,620.00"},{"v":47514.6,"d":"$47,514.60"},{"v":47514.6,"d":"$47,514.60"},{"v":49494.37,"d":"$49,494.37"},{"v":49494.37,"d":"$49,494.37"},{"v":0,"d":"$0.00"},{"v":0,"d":"$0.00"},{"v":0,"d":"$0.00"},{"v":0,"d":"$0.00"},{"v":659.92,"d":"$659.92"},{"v":125385.75,"d":"$125,385.75"},{"v":50790.42,"d":"$50,790.42"},{"v":18920.07,"d":"$18,920.07"},{"v":389774.1,"d":"$389,774.10"},{"v":3467510.43,"d":"$3,467,510.43"},{"v":213895.58999999997,"d":"$213,895.59"},{"v":36.46,"d":"$36.46"},{"v":122099.78000000001,"d":"$122,099.78"},{"v":3467510.355,"d":"$3,467,510.36"}]
["13041080002","MOUNT VERNON SCHOOL DIST 80",1331.63,{"v":19168497.4,"d":"$19,168,497.40"},{"v":14549328.629999999,"d":"$14,549,328.63"},{"v":0.7590229075545588,"d":"76%"},1,{"v":258852.12,"d":"$258,852.12"},{"v":8942365.580000002,"d":"$8,942,365.58"},{"v":9201217.700000001,"d":"$9,201,217.70"},{"v":0.9,"d":"0.90"},{"v":4405730.94,"d":"$4,405,730.94"},{"v":881146.18,"d":"$881,146.18"},{"v":417352,"d":"$417,352.00"},{"v":184513.51,"d":"$184,513.51"},{"v":161476.55,"d":"$161,476.55"},{"v":250262.82,"d":"$250,262.82"},{"v":97432.65,"d":"$97,432.65"},{"v":157717.62,"d":"$157,717.62"},{"v":213045.33,"d":"$213,045.33"},{"v":118154.55,"d":"$118,154.55"},{"v":316059.4,"d":"$316,059.40"},{"v":272127.87,"d":"$272,127.87"},{"v":189253.71,"d":"$189,253.71"},{"v":7664273.130000001,"d":"$7,664,273.13"},{"v":118257.3,"d":"$118,257.30"},{"v":166453.75,"d":"$166,453.75"},{"v":432779.75,"d":"$432,779.75"},{"v":45275.42,"d":"$45,275.42"},{"v":760360.73,"d":"$760,360.73"},{"v":216656.09000000003,"d":"$216,656.09"},{"v":1812348.4300000002,"d":"$1,812,348.43"},{"v":1247737.31,"d":"$1,247,737.31"},{"v":3868676.0083200005,"d":"$3,868,676.01"},{"v":8668544.788320001,"d":"$8,668,544.79"},{"v":1267551.96,"d":"$1,267,551.96"},{"v":7400992.828320001,"d":"$7,400,992.83"},{"v":8541789.588320002,"d":"$8,541,789.59"},{"v":463927.27,"d":"$463,927.27"},{"v":463927.27,"d":"$463,927.27"},{"v":483725.02,"d":"$483,725.02"},{"v":483725.02,"d":"$483,725.02"},{"v":17817.97,"d":"$17,817.97"},{"v":17817.97,"d":"$17,817.97"},{"v":18477.9,"d":"$18,477.90"},{"v":18477.9,"d":"$18,477.90"},{"v":22437.45,"d":"$22,437.45"},{"v":622969.2,"d":"$622,969.20"},{"v":252348.19,"d":"$252,348.19"},{"v":96783.43,"d":"$96,783.43"},{"v":2962434.59,"d":"$2,962,434.59"},{"v":19168497.4,"d":"$19,168,497.40"},{"v":2844278.2000000007,"d":"$2,844,278.20"},{"v":18159.369999999995,"d":"$18,159.37"},{"v":696505.04,"d":"$696,505.04"},{"v":19168497.30832,"d":"$19,168,497.31"}]
["13041082002","BETHEL SCHOOL DISTRICT 82",159.28,{"v":2253336.49,"d":"$2,253,336.49"},{"v":1933612.73,"d":"$1,933,612.73"},{"v":0.858110956167048,"d":"86%"},2,{"v":6521.24,"d":"$6,521.24"},{"v":917217.6999999998,"d":"$917,217.70"},{"v":923738.9399999998,"d":"$923,738.94"},{"v":0.9,"d":"0.90"},{"v":525298.68,"d":"$525,298.68"},{"v":105059.73,"d":"$105,059.73"},{"v":49580.16,"d":"$49,580.16"},{"v":21965.89,"d":"$21,965.89"},{"v":18907.44,"d":"$18,907.44"},{"v":29084.59,"d":"$29,084.59"},{"v":11559.8,"d":"$11,559.80"},{"v":18712.26,"d":"$18,712.26"},{"v":25362.54,"d":"$25,362.54"},{"v":13900.53,"d":"$13,900.53"},{"v":37626.12,"d":"$37,626.12"},{"v":32396.17,"d":"$32,396.17"},{"v":22453.83,"d":"$22,453.83"},{"v":911907.7400000001,"d":"$911,907.74"},{"v":14140.8,"d":"$14,140.80"},{"v":19910,"d":"$19,910.00"},{"v":51766,"d":"$51,766.00"},{"v":5415.52,"d":"$5,415.52"},{"v":90948.88,"d":"$90,948.88"},{"v":25362.6,"d":"$25,362.60"},{"v":216780.08,"d":"$216,780.08"},{"v":149245.36,"d":"$149,245.36"},{"v":453118.8139199999,"d":"$453,118.81"},{"v":1026688.0539199999,"d":"$1,026,688.05"},{"v":151615.44,"d":"$151,615.44"},{"v":875072.6139199999,"d":"$875,072.61"},{"v":1011526.5039199999,"d":"$1,011,526.50"},{"v":52794,"d":"$52,794.00"},{"v":52794,"d":"$52,794.00"},{"v":54773.77,"d":"$54,773.77"},{"v":54773.77,"d":"$54,773.77"},{"v":0,"d":"$0.00"},{"v":0,"d":"$0.00"},{"v":0,"d":"$0.00"},{"v":0,"d":"$0.00"},{"v":0,"d":"$0.00"},{"v":73911.6,"d":"$73,911.60"},{"v":29939.61,"d":"$29,939.61"},{"v":10915.42,"d":"$10,915.42"},{"v":329902.17,"d":"$329,902.17"},{"v":2253336.49,"d":"$2,253,336.49"},{"v":195354.62,"d":"$195,354.62"},{"v":0,"d":"$0.00"},{"v":82880.78,"d":"$82,880.78"},{"v":2253336.41392,"d":"$2,253,336.41"}]
["13041099004","FARRINGTON C C SCHOOL DIST 99",53.12,{"v":672041.87,"d":"$672,041.87"},{"v":592809.39,"d":"$592,809.39"},{"v":0.8821018696349976,"d":"88%"},2,{"v":1102.22,"d":"$1,102.22"},{"v":377281.0499999999,"d":"$377,281.05"},{"v":378383.26999999984,"d":"$378,383.27"},{"v":0.9,"d":"0.90"},{"v":160037.23,"d":"$160,037.23"},{"v":32007.44,"d":"$32,007.44"},{"v":15689.92,"d":"$15,689.92"},{"v":6903.56,"d":"$6,903.56"},{"v":5405.94,"d":"$5,405.94"},{"v":9469.4,"d":"$9,469.40"},{"v":3302.8,"d":"$3,302.80"},{"v":5880.99,"d":"$5,880.99"},{"v":7971.08,"d":"$7,971.08"},{"v":4544.4,"d":"$4,544.40"},{"v":11825.35,"d":"$11,825.35"},{"v":10181.65,"d":"$10,181.65"},{"v":7056.91,"d":"$7,056.91"},{"v":280276.67,"d":"$280,276.67"},{"v":4751.099999999999,"d":"$4,751.10"},{"v":6640,"d":"$6,640.00"},{"v":17264,"d":"$17,264.00"},{"v":1806.08,"d":"$1,806.08"},{"v":30331.519999999997,"d":"$30,331.52"},{"v":9056.43,"d":"$9,056.43"},{"v":72296.31999999999,"d":"$72,296.32"},{"v":49773.44,"d":"$49,773.44"},{"v":131320.22868,"d":"$131,320.23"},{"v":323239.11868,"d":"$323,239.12"},{"v":50563.86,"d":"$50,563.86"},{"v":272675.25868,"d":"$272,675.26"},{"v":318182.72868000006,"d":"$318,182.73"},{"v":8579.02,"d":"$8,579.02"},{"v":8579.02,"d":"$8,579.02"},{"v":9238.95,"d":"$9,238.95"},{"v":9238.95,"d":"$9,238.95"},{"v":0,"d":"$0.00"},{"v":0,"d":"$0.00"},{"v":0,"d":"$0.00"},{"v":0,"d":"$0.00"},{"v":0,"d":"$0.00"},{"v":24417.22,"d":"$24,417.22"},{"v":9890.76,"d":"$9,890.76"},{"v":3638.47,"d":"$3,638.47"},{"v":73582.39,"d":"$73,582.39"},{"v":672041.87,"d":"$672,041.87"},{"v":24156.93,"d":"$24,156.93"},{"v":0,"d":"$0.00"},{"v":24752.76,"d":"$24,752.76"},{"v":672041.7886800001,"d":"$672,041.79"}]
["13041178004","SPRING GARDEN CONS SCHL DIST 178",224.04,{"v":2917871.95,"d":"$2,917,871.95"},{"v":2190152.22,"d":"$2,190,152.22"},{"v":0.7505991549766261,"d":"75%"},1,{"v":48476.89,"d":"$48,476.89"},{"v":1409285.1799999997,"d":"$1,409,285.18"},{"v":1457762.0699999996,"d":"$1,457,762.07"},{"v":0.9,"d":"0.90"},{"v":687218.71,"d":"$687,218.71"},{"v":137443.74,"d":"$137,443.74"},{"v":69663.26,"d":"$69,663.26"},{"v":30124.65,"d":"$30,124.65"},{"v":23671.59,"d":"$23,671.59"},{"v":41259.54,"d":"$41,259.54"},{"v":15963.54,"d":"$15,963.54"},{"v":26197.16,"d":"$26,197.16"},{"v":34782.91,"d":"$34,782.91"},{"v":19514.21,"d":"$19,514.21"},{"v":51601.53,"d":"$51,601.53"},{"v":44429.04,"d":"$44,429.04"},{"v":31435.36,"d":"$31,435.36"},{"v":1213305.2400000002,"d":"$1,213,305.24"},{"v":19901.699999999997,"d":"$19,901.70"},{"v":28005,"d":"$28,005.00"},{"v":72813,"d":"$72,813.00"},{"v":7617.359999999999,"d":"$7,617.36"},{"v":127926.84,"d":"$127,926.84"},{"v":36484.92999999999,"d":"$36,484.93"},{"v":304918.44,"d":"$304,918.44"},{"v":209925.47999999998,"d":"$209,925.48"},{"v":574966.70256,"d":"$574,966.70"},{"v":1382559.4525600001,"d":"$1,382,559.45"},{"v":213259.19,"d":"$213,259.19"},{"v":1169300.2625600002,"d":"$1,169,300.26"},{"v":1361233.5325600002,"d":"$1,361,233.53"},{"v":44214.97,"d":"$44,214.97"},{"v":44214.97,"d":"$44,214.97"},{"v":46194.75,"d":"$46,194.75"},{"v":46194.75,"d":"$46,194.75"},{"v":0,"d":"$0.00"},{"v":0,"d":"$0.00"},{"v":0,"d":"$0.00"},{"v":0,"d":"$0.00"},{"v":0,"d":"$0.00"},{"v":104268.15,"d":"$104,268.15"},{"v":42236.24,"d":"$42,236.24"},{"v":16009.29,"d":"$16,009.29"},{"v":343333.11999999994,"d":"$343,333.12"},{"v":2917871.95,"d":"$2,917,871.95"},{"v":184026.97,"d":"$184,026.97"},{"v":0,"d":"$0.00"},{"v":105471.51000000001,"d":"$105,471.51"},{"v":2917871.8925600005,"d":"$2,917,871.89"}]
["13041201017","MT VERNON TWP H S DIST 201",1155,{"v":17276794.1,"d":"$17,276,794.10"},{"v":13410818.1,"d":"$13,410,818.10"},{"v":0.7762330223059148,"d":"78%"},2,{"v":144567.11,"d":"$144,567.11"},{"v":5899120.760000001,"d":"$5,899,120.76"},{"v":6043687.870000001,"d":"$6,043,687.87"},{"v":0.9,"d":"0.90"},{"v":3727607.58,"d":"$3,727,607.58"},{"v":1242411.6,"d":"$1,242,411.60"},{"v":416504.56,"d":"$416,504.56"},{"v":138594.24,"d":"$138,594.24"},{"v":126629.5,"d":"$126,629.50"},{"v":356174.28,"d":"$356,174.28"},{"v":84771.91,"d":"$84,771.91"},{"v":154242.48,"d":"$154,242.48"},{"v":139131.64,"d":"$139,131.64"},{"v":102917.43,"d":"$102,917.43"},{"v":206406.14,"d":"$206,406.14"},{"v":177716.16,"d":"$177,716.16"},{"v":185083.71,"d":"$185,083.71"},{"v":7058191.2299999995,"d":"$7,058,191.23"},{"v":103950,"d":"$103,950.00"},{"v":144375,"d":"$144,375.00"},{"v":375375,"d":"$375,375.00"},{"v":39270,"d":"$39,270.00"},{"v":659505,"d":"$659,505.00"},{"v":992145,"d":"$992,145.00"},{"v":1571955,"d":"$1,571,955.00"},{"v":1082235,"d":"$1,082,235.00"},{"v":3320193.999,"d":"$3,320,194.00"},{"v":8289003.999,"d":"$8,289,004.00"},{"v":1099421.4,"d":"$1,099,421.40"},{"v":7189582.598999999,"d":"$7,189,582.60"},{"v":8179061.858999999,"d":"$8,179,061.86"},{"v":287067.37,"d":"$287,067.37"},{"v":287067.37,"d":"$287,067.37"},{"v":298946.02,"d":"$298,946.02"},{"v":298946.02,"d":"$298,946.02"},{"v":4619.47,"d":"$4,619.47"},{"v":4619.47,"d":"$4,619.47"},{"v":4619.47,"d":"$4,619.47"},{"v":4619.47,"d":"$4,619.47"},{"v":5939.32,"d":"$5,939.32"},{"v":540478.57,"d":"$540,478.57"},{"v":218933.44,"d":"$218,933.44"},{"v":83684.92,"d":"$83,684.92"},{"v":2039540.9099999997,"d":"$2,039,540.91"},{"v":17276794.1,"d":"$17,276,794.10"},{"v":1178922.3799999997,"d":"$1,178,922.38"},{"v":641.03,"d":"$641.03"},{"v":564666.6100000001,"d":"$564,666.61"},{"v":17276793.998999998,"d":"$17,276,794.00"}]
["13041209027","WOODLAWN UNIT DIST 209",492.62,{"v":6533517.02,"d":"$6,533,517.02"},{"v":4756770.140000001,"d":"$4,756,770.14"},{"v":0.7280565927109196,"d":"73%"},1,{"v":162811.7,"d":"$162,811.70"},{"v":2926723.69,"d":"$2,926,723.69"},{"v":3089535.39,"d":"$3,089,535.39"},{"v":0.9,"d":"0.90"},{"v":1499852.92,"d":"$1,499,852.92"},{"v":374831.25,"d":"$374,831.25"},{"v":161615.98,"d":"$161,615.98"},{"v":64331.94,"d":"$64,331.94"},{"v":50056.86,"d":"$50,056.86"},{"v":114353.26,"d":"$114,353.26"},{"v":35229.88,"d":"$35,229.88"},{"v":60681.18,"d":"$60,681.18"},{"v":71015.11,"d":"$71,015.11"},{"v":43572.83,"d":"$43,572.83"},{"v":105353.13,"d":"$105,353.13"},{"v":90709.29,"d":"$90,709.29"},{"v":72814.56,"d":"$72,814.56"},{"v":2744418.1899999995,"d":"$2,744,418.19"},{"v":44081.1,"d":"$44,081.10"},{"v":61577.49999999999,"d":"$61,577.50"},{"v":160101.5,"d":"$160,101.50"},{"v":16749.079999999998,"d":"$16,749.08"},{"v":281286.02,"d":"$281,286.02"},{"v":207026.71,"d":"$207,026.71"},{"v":670455.82,"d":"$670,455.82"},{"v":461584.93999999994,"d":"$461,584.94"},{"v":1262378.15268,"d":"$1,262,378.15"},{"v":3165240.82268,"d":"$3,165,240.82"},{"v":468915.12,"d":"$468,915.12"},{"v":2696325.70268,"d":"$2,696,325.70"},{"v":3118349.30268,"d":"$3,118,349.30"},{"v":76551.3,"d":"$76,551.30"},{"v":76551.3,"d":"$76,551.30"},{"v":79191,"d":"$79,191.00"},{"v":79191,"d":"$79,191.00"},{"v":0,"d":"$0.00"},{"v":0,"d":"$0.00"},{"v":0,"d":"$0.00"},{"v":0,"d":"$0.00"},{"v":0,"d":"$0.00"},{"v":230313.82,"d":"$230,313.82"},{"v":93293.98,"d":"$93,293.98"},{"v":35657.05,"d":"$35,657.05"},{"v":670749.45,"d":"$670,749.45"},{"v":6533517.02,"d":"$6,533,517.02"},{"v":220032.48000000004,"d":"$220,032.48"},{"v":0,"d":"$0.00"},{"v":207597.12999999998,"d":"$207,597.13"},{"v":6533516.94268,"d":"$6,533,516.94"}]
["13041318027","BLUFORD UNIT DIST 318",369.25,{"v":5015898.54,"d":"$5,015,898.54"},{"v":3727134.37,"d":"$3,727,134.37"},{"v":0.7430641469873113,"d":"74%"},1,{"v":98591.91,"d":"$98,591.91"},{"v":2553426.51,"d":"$2,553,426.51"},{"v":2652018.42,"d":"$2,652,018.42"},{"v":0.9,"d":"0.90"},{"v":1153425.49,"d":"$1,153,425.49"},{"v":283126.05,"d":"$283,126.05"},{"v":120693.62,"d":"$120,693.62"},{"v":48327.13,"d":"$48,327.13"},{"v":39138.68,"d":"$39,138.68"},{"v":83093.92,"d":"$83,093.92"},{"v":25871.94,"d":"$25,871.94"},{"v":45444.06,"d":"$45,444.06"},{"v":53623.65,"d":"$53,623.65"},{"v":32612.79,"d":"$32,612.79"},{"v":79552.36,"d":"$79,552.36"},{"v":68494.77,"d":"$68,494.77"},{"v":54530.73,"d":"$54,530.73"},{"v":2087935.19,"d":"$2,087,935.19"},{"v":33120,"d":"$33,120.00"},{"v":46156.25,"d":"$46,156.25"},{"v":120006.25,"d":"$120,006.25"},{"v":12554.5,"d":"$12,554.50"},{"v":210841.75,"d":"$210,841.75"},{"v":146435,"d":"$146,435.00"},{"v":502549.25,"d":"$502,549.25"},{"v":345987.25,"d":"$345,987.25"},{"v":977647.8239999999,"d":"$977,647.82"},{"v":2395298.074,"d":"$2,395,298.07"},{"v":351481.69,"d":"$351,481.69"},{"v":2043816.384,"d":"$2,043,816.38"},{"v":2360149.904,"d":"$2,360,149.90"},{"v":73251.67,"d":"$73,251.67"},{"v":73251.67,"d":"$73,251.67"},{"v":76551.3,"d":"$76,551.30"},{"v":76551.3,"d":"$76,551.30"},{"v":0,"d":"$0.00"},{"v":0,"d":"$0.00"},{"v":0,"d":"$0.00"},{"v":0,"d":"$0.00"},{"v":0,"d":"$0.00"},{"v":172240.42,"d":"$172,240.42"},{"v":69769.99,"d":"$69,769.99"},{"v":26197.02,"d":"$26,197.02"},{"v":567813.37,"d":"$567,813.37"},{"v":5015898.54,"d":"$5,015,898.54"},{"v":289350.89,"d":"$289,350.89"},{"v":0,"d":"$0.00"},{"v":141059.22,"d":"$141,059.22"},{"v":5015898.464000001,"d":"$5,015,898.46"}]
["13058001003","RACCOON CONS SCHOOL DIST 1",218.25,{"v":2809514.58,"d":"$2,809,514.58"},{"v":2078066.26,"d":"$2,078,066.26"},{"v":0.7396531325350872,"d":"74%"},1,{"v":55583.57,"d":"$55,583.57"},{"v":1183210.3299999998,"d":"$1,183,210.33"},{"v":1238793.9,"d":"$1,238,793.90"},{"v":0.9,"d":"0.90"},{"v":658349.25,"d":"$658,349.25"},{"v":131669.84,"d":"$131,669.84"},{"v":67780.47,"d":"$67,780.47"},{"v":30124.65,"d":"$30,124.65"},{"v":22548.44,"d":"$22,548.44"},{"v":41935.93,"d":"$41,935.93"},{"v":15413.07,"d":"$15,413.07"},{"v":25662.52,"d":"$25,662.52"},{"v":34782.91,"d":"$34,782.91"},{"v":19246.89,"d":"$19,246.89"},{"v":51601.53,"d":"$51,601.53"},{"v":44429.04,"d":"$44,429.04"},{"v":30793.82,"d":"$30,793.82"},{"v":1174338.36,"d":"$1,174,338.36"},{"v":19350,"d":"$19,350.00"},{"v":27281.25,"d":"$27,281.25"},{"v":70931.25,"d":"$70,931.25"},{"v":7420.5,"d":"$7,420.50"},{"v":124620.75,"d":"$124,620.75"},{"v":36609,"d":"$36,609.00"},{"v":297038.25,"d":"$297,038.25"},{"v":204500.25,"d":"$204,500.25"},{"v":551740.674,"d":"$551,740.67"},{"v":1339491.924,"d":"$1,339,491.92"},{"v":207747.81,"d":"$207,747.81"},{"v":1131744.114,"d":"$1,131,744.11"},{"v":1318717.134,"d":"$1,318,717.13"},{"v":38935.57,"d":"$38,935.57"},{"v":38935.57,"d":"$38,935.57"},{"v":40255.42,"d":"$40,255.42"},{"v":40255.42,"d":"$40,255.42"},{"v":0,"d":"$0.00"},{"v":0,"d":"$0.00"},{"v":0,"d":"$0.00"},{"v":0,"d":"$0.00"},{"v":0,"d":"$0.00"},{"v":101628.45,"d":"$101,628.45"},{"v":41166.97,"d":"$41,166.97"},{"v":15281.59,"d":"$15,281.59"},{"v":316458.99000000005,"d":"$316,458.99"},{"v":2809514.58,"d":"$2,809,514.58"},{"v":149172.28,"d":"$149,172.28"},{"v":0,"d":"$0.00"},{"v":100733.13,"d":"$100,733.13"},{"v":2809514.484,"d":"$2,809,514.48"}]
["13058002003","KELL CONSOLIDATED SCHOOL DIST 2",80.63,{"v":1029029.22,"d":"$1,029,029.22"},{"v":890134.8099999999,"d":"$890,134.81"},{"v":0.8650238425688243,"d":"87%"},2,{"v":2572.12,"d":"$2,572.12"},{"v":586616.82,"d":"$586,616.82"},{"v":589188.94,"d":"$589,188.94"},{"v":0.9,"d":"0.90"},{"v":240369.65,"d":"$240,369.65"},{"v":48073.92,"d":"$48,073.92"},{"v":24476.28,"d":"$24,476.28"},{"v":10669.14,"d":"$10,669.14"},{"v":8251.2,"d":"$8,251.20"},{"v":14880.49,"d":"$14,880.49"},{"v":5504.67,"d":"$5,504.67"},{"v":9356.13,"d":"$9,356.13"},{"v":12318.94,"d":"$12,318.94"},{"v":6950.26,"d":"$6,950.26"},{"v":18275.54,"d":"$18,275.54"},{"v":15735.28,"d":"$15,735.28"},{"v":11226.91,"d":"$11,226.91"},{"v":426088.41,"d":"$426,088.41"},{"v":7152.3,"d":"$7,152.30"},{"v":10078.75,"d":"$10,078.75"},{"v":26204.75,"d":"$26,204.75"},{"v":2741.42,"d":"$2,741.42"},{"v":46039.729999999996,"d":"$46,039.73"},{"v":13383.43,"d":"$13,383.43"},{"v":109737.43,"d":"$109,737.43"},{"v":75550.31,"d":"$75,550.31"},{"v":201659.99832,"d":"$201,660.00"},{"v":492548.11832,"d":"$492,548.12"},{"v":76750.08,"d":"$76,750.08"},{"v":415798.03831999993,"d":"$415,798.04"},{"v":484873.10831999994,"d":"$484,873.11"},{"v":14518.35,"d":"$14,518.35"},{"v":14518.35,"d":"$14,518.35"},{"v":15178.27,"d":"$15,178.27"},{"v":15178.27,"d":"$15,178.27"},{"v":0,"d":"$0.00"},{"v":0,"d":"$0.00"},{"v":0,"d":"$0.00"},{"v":0,"d":"$0.00"},{"v":0,"d":"$0.00"},{"v":37615.72,"d":"$37,615.72"},{"v":15237.12,"d":"$15,237.12"},{"v":5821.56,"d":"$5,821.56"},{"v":118067.64,"d":"$118,067.64"},{"v":1029029.22,"d":"$1,029,029.22"},{"v":56231.55999999999,"d":"$56,231.56"},{"v":0,"d":"$0.00"},{"v":36745.850000000006,"d":"$36,745.85"},{"v":1029029.1583199999,"d":"$1,029,029.16"}]
["13058007004","IUKA COMM CONS SCHOOL DIST 7",228.5,{"v":2998543.94,"d":"$2,998,543.94"},{"v":1856391.13,"d":"$1,856,391.13"},{"v":0.6190975243804497,"d":"62%"},1,{"v":191975.81,"d":"$191,975.81"},{"v":1324474.2600000002,"d":"$1,324,474.26"},{"v":1516450.0700000003,"d":"$1,516,450.07"},{"v":0.9,"d":"0.90"},{"v":702908.64,"d":"$702,908.64"},{"v":140581.72,"d":"$140,581.72"},{"v":71546.05,"d":"$71,546.05"},{"v":31379.85,"d":"$31,379.85"},{"v":24365.68,"d":"$24,365.68"},{"v":41935.93,"d":"$41,935.93"},{"v":16514.01,"d":"$16,514.01"},{"v":26999.11,"d":"$26,999.11"},{"v":36232.2,"d":"$36,232.20"},{"v":20048.85,"d":"$20,048.85"},{"v":53751.6,"d":"$53,751.60"},{"v":46280.25,"d":"$46,280.25"},{"v":32397.66,"d":"$32,397.66"},{"v":1244941.5500000003,"d":"$1,244,941.55"},{"v":20205,"d":"$20,205.00"},{"v":28562.5,"d":"$28,562.50"},{"v":74262.5,"d":"$74,262.50"},{"v":7769,"d":"$7,769.00"},{"v":130473.5,"d":"$130,473.50"},{"v":36556.5,"d":"$36,556.50"},{"v":310988.5,"d":"$310,988.50"},{"v":214104.5,"d":"$214,104.50"},{"v":592190.2109999999,"d":"$592,190.21"},{"v":1415112.211,"d":"$1,415,112.21"},{"v":217504.58,"d":"$217,504.58"},{"v":1197607.6309999998,"d":"$1,197,607.63"},{"v":1393361.7509999997,"d":"$1,393,361.75"},{"v":47514.6,"d":"$47,514.60"},{"v":47514.6,"d":"$47,514.60"},{"v":49494.37,"d":"$49,494.37"},{"v":49494.37,"d":"$49,494.37"},{"v":0,"d":"$0.00"},{"v":0,"d":"$0.00"},{"v":0,"d":"$0.00"},{"v":0,"d":"$0.00"},{"v":0,"d":"$0.00"},{"v":106907.85,"d":"$106,907.85"},{"v":43305.51,"d":"$43,305.51"},{"v":16009.29,"d":"$16,009.29"},{"v":360240.59,"d":"$360,240.59"},{"v":2998543.94,"d":"$2,998,543.94"},{"v":176130.37,"d":"$176,130.37"},{"v":0,"d":"$0.00"},{"v":106976.66999999998,"d":"$106,976.67"},{"v":2998543.891,"d":"$2,998,543.89"}]
["13058010004","SELMAVILLE C C SCH DIST 10",243.31,{"v":3118786.9,"d":"$3,118,786.90"},{"v":2412458.6399999997,"d":"$2,412,458.64"},{"v":0.7735246803813366,"d":"77%"},2,{"v":25182.46,"d":"$25,182.46"},{"v":1270299.64,"d":"$1,270,299.64"},{"v":1295482.0999999999,"d":"$1,295,482.10"},{"v":0.9,"d":"0.90"},{"v":727384.92,"d":"$727,384.92"},{"v":145476.98,"d":"$145,476.98"},{"v":75939.23,"d":"$75,939.23"},{"v":33262.64,"d":"$33,262.64"},{"v":25003.75,"d":"$25,003.75"},{"v":45994.24,"d":"$45,994.24"},{"v":17064.47,"d":"$17,064.47"},{"v":28603.02,"d":"$28,603.02"},{"v":38406.13,"d":"$38,406.13"},{"v":21385.44,"d":"$21,385.44"},{"v":56976.69,"d":"$56,976.69"},{"v":49057.06,"d":"$49,057.06"},{"v":34322.28,"d":"$34,322.28"},{"v":1298876.8499999999,"d":"$1,298,876.85"},{"v":21598.199999999997,"d":"$21,598.20"},{"v":30413.75,"d":"$30,413.75"},{"v":79075.75,"d":"$79,075.75"},{"v":8272.54,"d":"$8,272.54"},{"v":138930.01,"d":"$138,930.01"},{"v":40681.34,"d":"$40,681.34"},{"v":331144.91,"d":"$331,144.91"},{"v":227981.47000000003,"d":"$227,981.47"},{"v":611821.77684,"d":"$611,821.78"},{"v":1489919.74684,"d":"$1,489,919.75"},{"v":231601.92,"d":"$231,601.92"},{"v":1258317.82684,"d":"$1,258,317.83"},{"v":1466759.54684,"d":"$1,466,759.55"},{"v":39595.5,"d":"$39,595.50"},{"v":39595.5,"d":"$39,595.50"},{"v":41575.27,"d":"$41,575.27"},{"v":41575.27,"d":"$41,575.27"},{"v":2639.7,"d":"$2,639.70"},{"v":2639.7,"d":"$2,639.70"},{"v":2639.7,"d":"$2,639.70"},{"v":2639.7,"d":"$2,639.70"},{"v":3299.62,"d":"$3,299.62"},{"v":113507.1,"d":"$113,507.10"},{"v":45978.69,"d":"$45,978.69"},{"v":17464.68,"d":"$17,464.68"},{"v":353150.43000000005,"d":"$353,150.43"},{"v":3118786.9,"d":"$3,118,786.90"},{"v":110843.38,"d":"$110,843.38"},{"v":979.47,"d":"$979.47"},{"v":99145.55000000002,"d":"$99,145.55"},{"v":3118786.8268399998,"d":"$3,118,786.83"}]
["13058100026","PATOKA COMM UNIT SCH DIST 100",221.11,{"v":2860559.32,"d":"$2,860,559.32"},{"v":5101769.68,"d":"$5,101,769.68"},{"v":1.783486762302136,"d":"178%"},4,{"v":182.21,"d":"$182.21"},{"v":427789.5,"d":"$427,789.50"},{"v":427971.71,"d":"$427,971.71"},{"v":0.9,"d":"0.90"},{"v":673506.22,"d":"$673,506.22"},{"v":162990.48,"d":"$162,990.48"},{"v":72240.1,"d":"$72,240.10"},{"v":28650.99,"d":"$28,650.99"},{"v":22619.67,"d":"$22,619.67"},{"v":49223.59,"d":"$49,223.59"},{"v":15413.07,"d":"$15,413.07"},{"v":26999.11,"d":"$26,999.11"},{"v":31884.33,"d":"$31,884.33"},{"v":19246.89,"d":"$19,246.89"},{"v":47301.4,"d":"$47,301.40"},{"v":40726.62,"d":"$40,726.62"},{"v":32397.66,"d":"$32,397.66"},{"v":1223200.13,"d":"$1,223,200.13"},{"v":19764.899999999998,"d":"$19,764.90"},{"v":27638.75,"d":"$27,638.75"},{"v":71860.75,"d":"$71,860.75"},{"v":7517.74,"d":"$7,517.74"},{"v":63126.89,"d":"$63,126.89"},{"v":83982.10999999999,"d":"$83,982.11"},{"v":300930.70999999996,"d":"$300,930.71"},{"v":207180.06999999998,"d":"$207,180.07"},{"v":566601.98004,"d":"$566,601.98"},{"v":1348603.90004,"d":"$1,348,603.90"},{"v":210470.18,"d":"$210,470.18"},{"v":1138133.7200399998,"d":"$1,138,133.72"},{"v":1327556.8800399997,"d":"$1,327,556.88"},{"v":36295.87,"d":"$36,295.87"},{"v":36295.87,"d":"$36,295.87"},{"v":38275.65,"d":"$38,275.65"},{"v":38275.65,"d":"$38,275.65"},{"v":0,"d":"$0.00"},{"v":0,"d":"$0.00"},{"v":0,"d":"$0.00"},{"v":0,"d":"$0.00"},{"v":0,"d":"$0.00"},{"v":102948.3,"d":"$102,948.30"},{"v":41701.6,"d":"$41,701.60"},{"v":16009.29,"d":"$16,009.29"},{"v":309802.23,"d":"$309,802.23"},{"v":2860559.32,"d":"$2,860,559.32"},{"v":233464.97,"d":"$233,464.97"},{"v":0,"d":"$0.00"},{"v":68912.90999999999,"d":"$68,912.91"},{"v":2860559.2400399996,"d":"$2,860,559.24"}]
["13058111002","SALEM SCHOOL DIST 111",923.36,{"v":12500848.13,"d":"$12,500,848.13"},{"v":9188795.79,"d":"$9,188,795.79"},{"v":0.7350537895063604,"d":"74%"},1,{"v":282885.11,"d":"$282,885.11"},{"v":6026909.969999999,"d":"$6,026,909.97"},{"v":6309795.079999999,"d":"$6,309,795.08"},{"v":0.9,"d":"0.90"},{"v":2891966.97,"d":"$2,891,966.97"},{"v":578393.38,"d":"$578,393.38"},{"v":289322.21,"d":"$289,322.21"},{"v":128029.78,"d":"$128,029.78"},{"v":102543.12,"d":"$102,543.12"},{"v":175860.36,"d":"$175,860.36"},{"v":67156.97,"d":"$67,156.97"},{"v":109333.06,"d":"$109,333.06"},{"v":147827.37,"d":"$147,827.37"},{"v":82066.62,"d":"$82,066.62"},{"v":219306.52,"d":"$219,306.52"},{"v":188823.42,"d":"$188,823.42"},{"v":131194.52,"d":"$131,194.52"},{"v":5111824.299999999,"d":"$5,111,824.30"},{"v":81610.2,"d":"$81,610.20"},{"v":115419.99999999999,"d":"$115,420.00"},{"v":300091.99999999994,"d":"$300,092.00"},{"v":31394.23999999999,"d":"$31,394.24"},{"v":527238.56,"d":"$527,238.56"},{"v":152571.18,"d":"$152,571.18"},{"v":1256692.96,"d":"$1,256,692.96"},{"v":865188.3199999998,"d":"$865,188.32"},{"v":2486756.36604,"d":"$2,486,756.37"},{"v":5816963.82604,"d":"$5,816,963.83"},{"v":878927.91,"d":"$878,927.91"},{"v":4938035.9160400005,"d":"$4,938,035.92"},{"v":5729071.026040001,"d":"$5,729,071.03"},{"v":238232.92,"d":"$238,232.92"},{"v":238232.92,"d":"$238,232.92"},{"v":248131.8,"d":"$248,131.80"},{"v":248131.8,"d":"$248,131.80"},{"v":2639.7,"d":"$2,639.70"},{"v":2639.7,"d":"$2,639.70"},{"v":2639.7,"d":"$2,639.70"},{"v":2639.7,"d":"$2,639.70"},{"v":3299.62,"d":"$3,299.62"},{"v":431590.95,"d":"$431,590.95"},{"v":174825.97,"d":"$174,825.97"},{"v":66947.94,"d":"$66,947.94"},{"v":1659952.7199999997,"d":"$1,659,952.72"},{"v":12500848.13,"d":"$12,500,848.13"},{"v":978036.3900000001,"d":"$978,036.39"},{"v":552.3199999999999,"d":"$552.32"},{"v":425613.33999999997,"d":"$425,613.34"},{"v":12500848.046039999,"d":"$12,500,848.05"}]
["13058133002","CENTRAL CITY SCHOOL DIST 133",337.3,{"v":4558447.56,"d":"$4,558,447.56"},{"v":3039558.5500000003,"d":"$3,039,558.55"},{"v":0.6667968666946781,"d":"67%"},1,{"v":219767.5,"d":"$219,767.50"},{"v":2504554.8099999996,"d":"$2,504,554.81"},{"v":2724322.3099999996,"d":"$2,724,322.31"},{"v":0.9,"d":"0.90"},{"v":1058756.13,"d":"$1,058,756.13"},{"v":211751.22,"d":"$211,751.22"},{"v":105436.29,"d":"$105,436.29"},{"v":46442.17,"d":"$46,442.17"},{"v":37423.54,"d":"$37,423.54"},{"v":63580.28,"d":"$63,580.28"},{"v":24220.54,"d":"$24,220.54"},{"v":39830.38,"d":"$39,830.38"},{"v":53623.65,"d":"$53,623.65"},{"v":29939.61,"d":"$29,939.61"},{"v":79552.36,"d":"$79,552.36"},{"v":68494.77,"d":"$68,494.77"},{"v":47794.58,"d":"$47,794.58"},{"v":1866845.52,"d":"$1,866,845.52"},{"v":29952,"d":"$29,952.00"},{"v":42162.5,"d":"$42,162.50"},{"v":109622.5,"d":"$109,622.50"},{"v":11468.199999999999,"d":"$11,468.20"},{"v":192598.3,"d":"$192,598.30"},{"v":55775.67999999999,"d":"$55,775.68"},{"v":459065.29999999993,"d":"$459,065.30"},{"v":316050.1,"d":"$316,050.10"},{"v":906349.6391999999,"d":"$906,349.64"},{"v":2123044.2192,"d":"$2,123,044.22"},{"v":321069.12,"d":"$321,069.12"},{"v":1801975.0991999991,"d":"$1,801,975.10"},{"v":2090937.299199999,"d":"$2,090,937.30"},{"v":84470.4,"d":"$84,470.40"},{"v":84470.4,"d":"$84,470.40"},{"v":87770.02,"d":"$87,770.02"},{"v":87770.02,"d":"$87,770.02"},{"v":1979.77,"d":"$1,979.77"},{"v":1979.77,"d":"$1,979.77"},{"v":1979.77,"d":"$1,979.77"},{"v":1979.77,"d":"$1,979.77"},{"v":2639.7,"d":"$2,639.70"},{"v":157722.07,"d":"$157,722.07"},{"v":63889,"d":"$63,889.00"},{"v":24013.93,"d":"$24,013.93"},{"v":600664.6200000002,"d":"$600,664.62"},{"v":4558447.56,"d":"$4,558,447.56"},{"v":345399.62,"d":"$345,399.62"},{"v":1853.76,"d":"$1,853.76"},{"v":156980.57,"d":"$156,980.57"},{"v":4558447.439199999,"d":"$4,558,447.44"}]
["13058135002","CENTRALIA SCHOOL DIST 135",1116.05,{"v":16408271.12,"d":"$16,408,271.12"},{"v":14267613.139999999,"d":"$14,267,613.14"},{"v":0.869537871214795,"d":"87%"},2,{"v":37203.94,"d":"$37,203.94"},{"v":9116269.59,"d":"$9,116,269.59"},{"v":9153473.53,"d":"$9,153,473.53"},{"v":0.9,"d":"0.90"},{"v":3760561.22,"d":"$3,760,561.22"},{"v":752112.24,"d":"$752,112.24"},{"v":349571.52,"d":"$349,571.52"},{"v":155016.45,"d":"$155,016.45"},{"v":139116.94,"d":"$139,116.94"},{"v":214414.36,"d":"$214,414.36"},{"v":81469.11,"d":"$81,469.11"},{"v":132322.41,"d":"$132,322.41"},{"v":178987.06,"d":"$178,987.06"},{"v":99174.97,"d":"$99,174.97"},{"v":265532.9,"d":"$265,532.90"},{"v":228624.43,"d":"$228,624.43"},{"v":158780.65,"d":"$158,780.65"},{"v":6515684.260000002,"d":"$6,515,684.26"},{"v":99402.29999999999,"d":"$99,402.30"},{"v":139506.25,"d":"$139,506.25"},{"v":362716.25,"d":"$362,716.25"},{"v":37945.7,"d":"$37,945.70"},{"v":637264.55,"d":"$637,264.55"},{"v":186603.51,"d":"$186,603.51"},{"v":1518944.05,"d":"$1,518,944.05"},{"v":1045738.8500000001,"d":"$1,045,738.85"},{"v":3325844.5992,"d":"$3,325,844.60"},{"v":7353966.0592,"d":"$7,353,966.06"},{"v":1062345.67,"d":"$1,062,345.67"},{"v":6291620.3892,"d":"$6,291,620.39"},{"v":7247731.4892,"d":"$7,247,731.49"},{"v":448089.07,"d":"$448,089.07"},{"v":448089.07,"d":"$448,089.07"},{"v":467226.9,"d":"$467,226.90"},{"v":467226.9,"d":"$467,226.90"},{"v":0,"d":"$0.00"},{"v":0,"d":"$0.00"},{"v":0,"d":"$0.00"},{"v":0,"d":"$0.00"},{"v":0,"d":"$0.00"},{"v":522000.67,"d":"$522,000.67"},{"v":211448.53,"d":"$211,448.53"},{"v":80774.14,"d":"$80,774.14"},{"v":2644855.28,"d":"$2,644,855.28"},{"v":16408271.12,"d":"$16,408,271.12"},{"v":3387035.18,"d":"$3,387,035.18"},{"v":64.47,"d":"$64.47"},{"v":575352.36,"d":"$575,352.36"},{"v":16408271.0292,"d":"$16,408,271.03"}]
["13058200017","CENTRALIA H S DIST 200",810.16,{"v":12575941.79,"d":"$12,575,941.79"},{"v":9961182.99,"d":"$9,961,182.99"},{"v":0.7920824663740751,"d":"79%"},2,{"v":102527.1,"d":"$102,527.10"},{"v":5701367.4,"d":"$5,701,367.40"},{"v":5803894.5,"d":"$5,803,894.50"},{"v":0.9,"d":"0.90"},{"v":2696812.92,"d":"$2,696,812.92"},{"v":898847.73,"d":"$898,847.73"},{"v":292347.22,"d":"$292,347.22"},{"v":97449.07,"d":"$97,449.07"},{"v":93871.24,"d":"$93,871.24"},{"v":249784.56,"d":"$249,784.56"},{"v":59450.43,"d":"$59,450.43"},{"v":108263.79,"d":"$108,263.79"},{"v":97826.94,"d":"$97,826.94"},{"v":72175.86,"d":"$72,175.86"},{"v":145129.32,"d":"$145,129.32"},{"v":124956.67,"d":"$124,956.67"},{"v":129911.44,"d":"$129,911.44"},{"v":5066827.190000001,"d":"$5,066,827.19"},{"v":72914.40000000001,"d":"$72,914.40"},{"v":101270.00000000001,"d":"$101,270.00"},{"v":263302,"d":"$263,302.00"},{"v":27545.440000000002,"d":"$27,545.44"},{"v":462601.36,"d":"$462,601.36"},{"v":695927.4400000001,"d":"$695,927.44"},{"v":1102627.76,"d":"$1,102,627.76"},{"v":759119.92,"d":"$759,119.92"},{"v":2441984.3342399998,"d":"$2,441,984.33"},{"v":5927292.65424,"d":"$5,927,292.65"},{"v":771175.1,"d":"$771,175.10"},{"v":5156117.554240001,"d":"$5,156,117.55"},{"v":5850175.144240001,"d":"$5,850,175.14"},{"v":261330.3,"d":"$261,330.30"},{"v":261330.3,"d":"$261,330.30"},{"v":272549.02,"d":"$272,549.02"},{"v":272549.02,"d":"$272,549.02"},{"v":0,"d":"$0.00"},{"v":0,"d":"$0.00"},{"v":0,"d":"$0.00"},{"v":0,"d":"$0.00"},{"v":0,"d":"$0.00"},{"v":378796.95,"d":"$378,796.95"},{"v":153440.53,"d":"$153,440.53"},{"v":58943.29,"d":"$58,943.29"},{"v":1658939.4100000001,"d":"$1,658,939.41"},{"v":12575941.79,"d":"$12,575,941.79"},{"v":1293095.23,"d":"$1,293,095.23"},{"v":0,"d":"$0.00"},{"v":374096.66,"d":"$374,096.66"},{"v":12575941.744240003,"d":"$12,575,941.74"}]
["13058401026","SOUTH CENTRAL COMM UNIT DIST 401",617.2,{"v":8499389.6,"d":"$8,499,389.60"},{"v":6650375.16,"d":"$6,650,375.16"},{"v":0.7824532669969618,"d":"78%"},2,{"v":62860.19,"d":"$62,860.19"},{"v":3261268.26,"d":"$3,261,268.26"},{"v":3324128.4499999997,"d":"$3,324,128.45"},{"v":0.9,"d":"0.90"},{"v":1923780.99,"d":"$1,923,780.99"},{"v":475301.04,"d":"$475,301.04"},{"v":201940.72,"d":"$201,940.72"},{"v":81120.7,"d":"$81,120.70"},{"v":66466.95,"d":"$66,466.95"},{"v":141190.57,"d":"$141,190.57"},{"v":44587.82,"d":"$44,587.82"},{"v":75918.31,"d":"$75,918.31"},{"v":89855.85,"d":"$89,855.85"},{"v":54532.87,"d":"$54,532.87"},{"v":133303.96,"d":"$133,303.96"},{"v":114775.02,"d":"$114,775.02"},{"v":91098.39,"d":"$91,098.39"},{"v":3493873.1900000004,"d":"$3,493,873.19"},{"v":54881.100000000006,"d":"$54,881.10"},{"v":77150,"d":"$77,150.00"},{"v":200590,"d":"$200,590.00"},{"v":20984.8,"d":"$20,984.80"},{"v":352421.19999999995,"d":"$352,421.20"},{"v":249183.17,"d":"$249,183.17"},{"v":840009.2000000001,"d":"$840,009.20"},{"v":578316.4,"d":"$578,316.40"},{"v":1661721.7788,"d":"$1,661,721.78"},{"v":4035257.6488,"d":"$4,035,257.65"},{"v":587500.33,"d":"$587,500.33"},{"v":3447757.3188,"d":"$3,447,757.32"},{"v":3976507.6088,"d":"$3,976,507.61"},{"v":141883.87,"d":"$141,883.87"},{"v":141883.87,"d":"$141,883.87"},{"v":147823.2,"d":"$147,823.20"},{"v":147823.2,"d":"$147,823.20"},{"v":0,"d":"$0.00"},{"v":0,"d":"$0.00"},{"v":0,"d":"$0.00"},{"v":0,"d":"$0.00"},{"v":0,"d":"$0.00"},{"v":288387.22,"d":"$288,387.22"},{"v":116817.96,"d":"$116,817.96"},{"v":44389.39,"d":"$44,389.39"},{"v":1029008.71,"d":"$1,029,008.71"},{"v":8499389.6,"d":"$8,499,389.60"},{"v":547071.24,"d":"$547,071.24"},{"v":0,"d":"$0.00"},{"v":250010.27000000002,"d":"$250,010.27"},{"v":8499389.5088,"d":"$8,499,389.51"}]
["13058501026","SANDOVAL C U SCHOOL DIST 501",399.37,{"v":5772479.81,"d":"$5,772,479.81"},{"v":4375301.61,"d":"$4,375,301.61"},{"v":0.7579587549912974,"d":"76%"},1,{"v":88357.49,"d":"$88,357.49"},{"v":3377883.9699999997,"d":"$3,377,883.97"},{"v":3466241.46,"d":"$3,466,241.46"},{"v":0.9,"d":"0.90"},{"v":1298396.06,"d":"$1,298,396.06"},{"v":308271.28,"d":"$308,271.28"},{"v":129353.59,"d":"$129,353.59"},{"v":53159.41,"d":"$53,159.41"},{"v":46615.41,"d":"$46,615.41"},{"v":88614.07,"d":"$88,614.07"},{"v":28624.28,"d":"$28,624.28"},{"v":48651.87,"d":"$48,651.87"},{"v":59420.8,"d":"$59,420.80"},{"v":35285.97,"d":"$35,285.97"},{"v":88152.62,"d":"$88,152.62"},{"v":75899.61,"d":"$75,899.61"},{"v":58379.95,"d":"$58,379.95"},{"v":2318824.9200000004,"d":"$2,318,824.92"},{"v":35396.1,"d":"$35,396.10"},{"v":49921.25,"d":"$49,921.25"},{"v":129795.24999999999,"d":"$129,795.25"},{"v":13578.58,"d":"$13,578.58"},{"v":228040.27,"d":"$228,040.27"},{"v":141779.02999999997,"d":"$141,779.03"},{"v":543542.57,"d":"$543,542.57"},{"v":374209.69,"d":"$374,209.69"},{"v":1147438.4926799997,"d":"$1,147,438.49"},{"v":2663701.2326799994,"d":"$2,663,701.23"},{"v":380152.31,"d":"$380,152.31"},{"v":2283548.9226799994,"d":"$2,283,548.92"},{"v":2625685.992679999,"d":"$2,625,685.99"},{"v":131325.07,"d":"$131,325.07"},{"v":131325.07,"d":"$131,325.07"},{"v":137264.4,"d":"$137,264.40"},{"v":137264.4,"d":"$137,264.40"},{"v":0,"d":"$0.00"},{"v":0,"d":"$0.00"},{"v":0,"d":"$0.00"},{"v":0,"d":"$0.00"},{"v":0,"d":"$0.00"},{"v":186758.77,"d":"$186,758.77"},{"v":75650.99,"d":"$75,650.99"},{"v":28380.1,"d":"$28,380.10"},{"v":827968.8,"d":"$827,968.80"},{"v":5772479.81,"d":"$5,772,479.81"},{"v":608549.24,"d":"$608,549.24"},{"v":251.43,"d":"$251.43"},{"v":203694.46,"d":"$203,694.46"},{"v":5772479.71268,"d":"$5,772,479.71"}]
["13058600016","SALEM COMM H S DIST 600",702,{"v":10200526.65,"d":"$10,200,526.65"},{"v":7205762.1899999995,"d":"$7,205,762.19"},{"v":0.706410799877671,"d":"71%"},1,{"v":331758.97,"d":"$331,758.97"},{"v":3944908.02,"d":"$3,944,908.02"},{"v":4276666.99,"d":"$4,276,666.99"},{"v":0.9,"d":"0.90"},{"v":2217507.84,"d":"$2,217,507.84"},{"v":739095.36,"d":"$739,095.36"},{"v":253367.59,"d":"$253,367.59"},{"v":84455.86,"d":"$84,455.86"},{"v":73617.51,"d":"$73,617.51"},{"v":215863.2,"d":"$215,863.20"},{"v":51193.43,"d":"$51,193.43"},{"v":93828.61,"d":"$93,828.61"},{"v":84783.34,"d":"$84,783.34"},{"v":62552.41,"d":"$62,552.41"},{"v":125778.74,"d":"$125,778.74"},{"v":108295.78,"d":"$108,295.78"},{"v":112589.91,"d":"$112,589.91"},{"v":4222929.579999999,"d":"$4,222,929.58"},{"v":63180,"d":"$63,180.00"},{"v":87750,"d":"$87,750.00"},{"v":228150,"d":"$228,150.00"},{"v":23868,"d":"$23,868.00"},{"v":400842,"d":"$400,842.00"},{"v":603018,"d":"$603,018.00"},{"v":955422,"d":"$955,422.00"},{"v":657774,"d":"$657,774.00"},{"v":1943781.225,"d":"$1,943,781.23"},{"v":4963785.225,"d":"$4,963,785.23"},{"v":668219.76,"d":"$668,219.76"},{"v":4295565.465,"d":"$4,295,565.47"},{"v":4896963.245,"d":"$4,896,963.25"},{"v":139244.17,"d":"$139,244.17"},{"v":139244.17,"d":"$139,244.17"},{"v":145183.5,"d":"$145,183.50"},{"v":145183.5,"d":"$145,183.50"},{"v":0,"d":"$0.00"},{"v":0,"d":"$0.00"},{"v":0,"d":"$0.00"},{"v":0,"d":"$0.00"},{"v":0,"d":"$0.00"},{"v":327982.72,"d":"$327,982.72"},{"v":132857.04,"d":"$132,857.04"},{"v":50938.65,"d":"$50,938.65"},{"v":1080633.75,"d":"$1,080,633.75"},{"v":10200526.65,"d":"$10,200,526.65"},{"v":510075.74,"d":"$510,075.74"},{"v":0,"d":"$0.00"},{"v":306739.57999999996,"d":"$306,739.58"},{"v":10200526.575,"d":"$10,200,526.58"}]
["13058722026","ODIN C U SCHOOL DIST 722",243,{"v":3262113.97,"d":"$3,262,113.97"},{"v":2446701.74,"d":"$2,446,701.74"},{"v":0.7500356402323981,"d":"75%"},1,{"v":58852.53,"d":"$58,852.53"},{"v":1740995.37,"d":"$1,740,995.37"},{"v":1799847.9000000001,"d":"$1,799,847.90"},{"v":0.9,"d":"0.90"},{"v":750420.08,"d":"$750,420.08"},{"v":180009.03,"d":"$180,009.03"},{"v":79237.91,"d":"$79,237.91"},{"v":31161.38,"d":"$31,161.38"},{"v":25579.91,"d":"$25,579.91"},{"v":52023.69,"d":"$52,023.69"},{"v":17064.47,"d":"$17,064.47"},{"v":29404.98,"d":"$29,404.98"},{"v":34782.91,"d":"$34,782.91"},{"v":21118.12,"d":"$21,118.12"},{"v":51601.53,"d":"$51,601.53"},{"v":44429.04,"d":"$44,429.04"},{"v":35284.59,"d":"$35,284.59"},{"v":1352117.6400000001,"d":"$1,352,117.64"},{"v":21375,"d":"$21,375.00"},{"v":30375,"d":"$30,375.00"},{"v":78975,"d":"$78,975.00"},{"v":8262,"d":"$8,262.00"},{"v":138753,"d":"$138,753.00"},{"v":87257.5,"d":"$87,257.50"},{"v":330723,"d":"$330,723.00"},{"v":227691,"d":"$227,691.00"},{"v":636107.349,"d":"$636,107.35"},{"v":1559518.849,"d":"$1,559,518.85"},{"v":231306.84,"d":"$231,306.84"},{"v":1328212.0089999998,"d":"$1,328,212.01"},{"v":1536388.1589999998,"d":"$1,536,388.16"},{"v":48174.52,"d":"$48,174.52"},{"v":48174.52,"d":"$48,174.52"},{"v":50154.3,"d":"$50,154.30"},{"v":50154.3,"d":"$50,154.30"},{"v":0,"d":"$0.00"},{"v":0,"d":"$0.00"},{"v":0,"d":"$0.00"},{"v":0,"d":"$0.00"},{"v":0,"d":"$0.00"},{"v":113507.1,"d":"$113,507.10"},{"v":45978.69,"d":"$45,978.69"},{"v":17464.68,"d":"$17,464.68"},{"v":373608.11,"d":"$373,608.11"},{"v":3262113.97,"d":"$3,262,113.97"},{"v":263587.92000000004,"d":"$263,587.92"},{"v":0,"d":"$0.00"},{"v":86740.50999999998,"d":"$86,740.51"},{"v":3262113.9089999995,"d":"$3,262,113.91"}]
["13095001004","OAKDALE C C SCHOOL DISTRICT 1",61.05,{"v":785915.8,"d":"$785,915.80"},{"v":843270.8200000001,"d":"$843,270.82"},{"v":1.0729785811660741,"d":"107%"},4,{"v":50.06,"d":"$50.06"},{"v":342212.08999999997,"d":"$342,212.09"},{"v":342262.14999999997,"d":"$342,262.15"},{"v":0.9,"d":"0.90"},{"v":190161.89,"d":"$190,161.89"},{"v":38032.37,"d":"$38,032.37"},{"v":18200.31,"d":"$18,200.31"},{"v":7531.16,"d":"$7,531.16"},{"v":6588.05,"d":"$6,588.05"},{"v":10822.17,"d":"$10,822.17"},{"v":3853.26,"d":"$3,853.26"},{"v":6950.26,"d":"$6,950.26"},{"v":8695.72,"d":"$8,695.72"},{"v":5346.36,"d":"$5,346.36"},{"v":12900.38,"d":"$12,900.38"},{"v":11107.26,"d":"$11,107.26"},{"v":8339.99,"d":"$8,339.99"},{"v":328529.18,"d":"$328,529.18"},{"v":5442.3,"d":"$5,442.30"},{"v":7631.250000000001,"d":"$7,631.25"},{"v":19841.25,"d":"$19,841.25"},{"v":2075.7000000000003,"d":"$2,075.70"},{"v":17429.77,"d":"$17,429.77"},{"v":10202.43,"d":"$10,202.43"},{"v":83089.05,"d":"$83,089.05"},{"v":57203.850000000006,"d":"$57,203.85"},{"v":158631.10619999998,"d":"$158,631.11"},{"v":361546.7062,"d":"$361,546.71"},{"v":58112.27,"d":"$58,112.27"},{"v":303434.4362,"d":"$303,434.44"},{"v":355735.4762,"d":"$355,735.48"},{"v":13858.42,"d":"$13,858.42"},{"v":13858.42,"d":"$13,858.42"},{"v":14518.35,"d":"$14,518.35"},{"v":14518.35,"d":"$14,518.35"},{"v":0,"d":"$0.00"},{"v":0,"d":"$0.00"},{"v":0,"d":"$0.00"},{"v":0,"d":"$0.00"},{"v":659.92,"d":"$659.92"},{"v":28376.77,"d":"$28,376.77"},{"v":11494.67,"d":"$11,494.67"},{"v":4366.17,"d":"$4,366.17"},{"v":101651.06999999999,"d":"$101,651.07"},{"v":785915.8,"d":"$785,915.80"},{"v":53799.75,"d":"$53,799.75"},{"v":0.05,"d":"$0.05"},{"v":38725.520000000004,"d":"$38,725.52"},{"v":785915.7261999999,"d":"$785,915.73"}]
["13095010026","WEST WASHINGTON CO C U DIST 10",512.28,{"v":6518795.25,"d":"$6,518,795.25"},{"v":4825600.84,"d":"$4,825,600.84"},{"v":0.7402596116207208,"d":"74%"},1,{"v":128179.83,"d":"$128,179.83"},{"v":2660319.46,"d":"$2,660,319.46"},{"v":2788499.29,"d":"$2,788,499.29"},{"v":0.9,"d":"0.90"},{"v":1505466.99,"d":"$1,505,466.99"},{"v":373356.07,"d":"$373,356.07"},{"v":168519.55,"d":"$168,519.55"},{"v":67469.93,"d":"$67,469.93"},{"v":48986.32,"d":"$48,986.32"},{"v":118411.57,"d":"$118,411.57"},{"v":36881.28,"d":"$36,881.28"},{"v":63354.36,"d":"$63,354.36"},{"v":74638.33,"d":"$74,638.33"},{"v":45444.06,"d":"$45,444.06"},{"v":110728.29,"d":"$110,728.29"},{"v":95337.31,"d":"$95,337.31"},{"v":76022.25,"d":"$76,022.25"},{"v":2784616.3099999996,"d":"$2,784,616.31"},{"v":45790.2,"d":"$45,790.20"},{"v":64035,"d":"$64,035.00"},{"v":166491,"d":"$166,491.00"},{"v":17417.519999999997,"d":"$17,417.52"},{"v":292511.88,"d":"$292,511.88"},{"v":209631.28,"d":"$209,631.28"},{"v":697213.08,"d":"$697,213.08"},{"v":480006.36,"d":"$480,006.36"},{"v":1246085.4229199998,"d":"$1,246,085.42"},{"v":3219181.7429199996,"d":"$3,219,181.74"},{"v":487629.08,"d":"$487,629.08"},{"v":2731552.6629199996,"d":"$2,731,552.66"},{"v":3170418.8329199995,"d":"$3,170,418.83"},{"v":45534.82,"d":"$45,534.82"},{"v":45534.82,"d":"$45,534.82"},{"v":47514.6,"d":"$47,514.60"},{"v":47514.6,"d":"$47,514.60"},{"v":659.92,"d":"$659.92"},{"v":659.92,"d":"$659.92"},{"v":659.92,"d":"$659.92"},{"v":659.92,"d":"$659.92"},{"v":1319.85,"d":"$1,319.85"},{"v":239552.77,"d":"$239,552.77"},{"v":97036.43,"d":"$97,036.43"},{"v":37112.44,"d":"$37,112.44"},{"v":563760.01,"d":"$563,760.01"},{"v":6518795.25,"d":"$6,518,795.25"},{"v":148973.59000000003,"d":"$148,973.59"},{"v":364.3,"d":"$364.30"},{"v":191386.66999999995,"d":"$191,386.67"},{"v":6518795.152919998,"d":"$6,518,795.15"}]
["13095011004","IRVINGTON C C SCH DISTRICT 11",68.25,{"v":866591.88,"d":"$866,591.88"},{"v":675184.4299999999,"d":"$675,184.43"},{"v":0.7791261902892512,"d":"78%"},2,{"v":5837.21,"d":"$5,837.21"},{"v":254083.88000000003,"d":"$254,083.88"},{"v":259921.09000000003,"d":"$259,921.09"},{"v":0.9,"d":"0.90"},{"v":207734.6,"d":"$207,734.60"},{"v":41546.91,"d":"$41,546.91"},{"v":20710.7,"d":"$20,710.70"},{"v":8786.35,"d":"$8,786.35"},{"v":7017.41,"d":"$7,017.41"},{"v":11498.56,"d":"$11,498.56"},{"v":4403.73,"d":"$4,403.73"},{"v":7752.22,"d":"$7,752.22"},{"v":10145.01,"d":"$10,145.01"},{"v":5880.99,"d":"$5,880.99"},{"v":15050.44,"d":"$15,050.44"},{"v":12958.47,"d":"$12,958.47"},{"v":9302.3,"d":"$9,302.30"},{"v":362787.6899999999,"d":"$362,787.69"},{"v":6075,"d":"$6,075.00"},{"v":8531.25,"d":"$8,531.25"},{"v":22181.25,"d":"$22,181.25"},{"v":2320.5,"d":"$2,320.50"},{"v":38970.75,"d":"$38,970.75"},{"v":10545.5,"d":"$10,545.50"},{"v":92888.25,"d":"$92,888.25"},{"v":63950.25,"d":"$63,950.25"},{"v":169769.38199999998,"d":"$169,769.38"},{"v":415232.132,"d":"$415,232.13"},{"v":64965.81,"d":"$64,965.81"},{"v":350266.322,"d":"$350,266.32"},{"v":408735.542,"d":"$408,735.54"},{"v":11218.72,"d":"$11,218.72"},{"v":11218.72,"d":"$11,218.72"},{"v":11878.65,"d":"$11,878.65"},{"v":11878.65,"d":"$11,878.65"},{"v":0,"d":"$0.00"},{"v":0,"d":"$0.00"},{"v":0,"d":"$0.00"},{"v":0,"d":"$0.00"},{"v":0,"d":"$0.00"},{"v":31676.4,"d":"$31,676.40"},{"v":12831.26,"d":"$12,831.26"},{"v":4366.17,"d":"$4,366.17"},{"v":95068.56999999999,"d":"$95,068.57"},{"v":866591.88,"d":"$866,591.88"},{"v":52467.49000000001,"d":"$52,467.49"},{"v":0,"d":"$0.00"},{"v":24051.4,"d":"$24,051.40"},{"v":866591.8019999998,"d":"$866,591.80"}]
["13095015004","ASHLEY C C SCH DISTRICT 15",114.4,{"v":1444907.92,"d":"$1,444,907.92"},{"v":1691721.54,"d":"$1,691,721.54"},{"v":1.1708161583057832,"d":"117%"},4,{"v":92.03,"d":"$92.03"},{"v":579368.9799999999,"d":"$579,368.98"},{"v":579461.0099999999,"d":"$579,461.01"},{"v":0.9,"d":"0.90"},{"v":353337.11,"d":"$353,337.11"},{"v":70667.41,"d":"$70,667.41"},{"v":35773.02,"d":"$35,773.02"},{"v":15062.32,"d":"$15,062.32"},{"v":11998.96,"d":"$11,998.96"},{"v":20291.58,"d":"$20,291.58"},{"v":7706.53,"d":"$7,706.53"},{"v":13365.9,"d":"$13,365.90"},{"v":17391.45,"d":"$17,391.45"},{"v":9890.76,"d":"$9,890.76"},{"v":25800.76,"d":"$25,800.76"},{"v":22214.52,"d":"$22,214.52"},{"v":16038.45,"d":"$16,038.45"},{"v":619538.77,"d":"$619,538.77"},{"v":10153.8,"d":"$10,153.80"},{"v":14299.999999999998,"d":"$14,300.00"},{"v":37180,"d":"$37,180.00"},{"v":3889.6,"d":"$3,889.60"},{"v":32661.2,"d":"$32,661.20"},{"v":18318.5,"d":"$18,318.50"},{"v":155698.4,"d":"$155,698.40"},{"v":107192.79999999999,"d":"$107,192.80"},{"v":290602.4346,"d":"$290,602.43"},{"v":669996.7346,"d":"$669,996.73"},{"v":108895.07,"d":"$108,895.07"},{"v":561101.6646,"d":"$561,101.66"},{"v":659107.2246000001,"d":"$659,107.22"},{"v":20457.67,"d":"$20,457.67"},{"v":20457.67,"d":"$20,457.67"},{"v":21117.6,"d":"$21,117.60"},{"v":21117.6,"d":"$21,117.60"},{"v":0,"d":"$0.00"},{"v":0,"d":"$0.00"},{"v":0,"d":"$0.00"},{"v":0,"d":"$0.00"},{"v":0,"d":"$0.00"},{"v":53453.92,"d":"$53,453.92"},{"v":21652.75,"d":"$21,652.75"},{"v":8004.64,"d":"$8,004.64"},{"v":166261.85,"d":"$166,261.85"},{"v":1444907.92,"d":"$1,444,907.92"},{"v":196298.40000000002,"d":"$196,298.40"},{"v":0,"d":"$0.00"},{"v":41228.17,"d":"$41,228.17"},{"v":1444907.8446000002,"d":"$1,444,907.84"}]
["13095049004","NASHVILLE C C SCH DISTRICT 49",535,{"v":6986759.54,"d":"$6,986,759.54"},{"v":5579878.26,"d":"$5,579,878.26"},{"v":0.7986360812984269,"d":"80%"},2,{"v":29392.75,"d":"$29,392.75"},{"v":1032450,"d":"$1,032,450.00"},{"v":1061842.75,"d":"$1,061,842.75"},{"v":0.9,"d":"0.90"},{"v":1634262.58,"d":"$1,634,262.58"},{"v":326852.51,"d":"$326,852.51"},{"v":166940.8,"d":"$166,940.80"},{"v":74056.44,"d":"$74,056.44"},{"v":56482.29,"d":"$56,482.29"},{"v":101457.9,"d":"$101,457.90"},{"v":38532.69,"d":"$38,532.69"},{"v":63087.04,"d":"$63,087.04"},{"v":85507.99,"d":"$85,507.99"},{"v":47582.6,"d":"$47,582.60"},{"v":126853.77,"d":"$126,853.77"},{"v":109221.39,"d":"$109,221.39"},{"v":75701.48,"d":"$75,701.48"},{"v":2906539.4800000004,"d":"$2,906,539.48"},{"v":47520,"d":"$47,520.00"},{"v":66875,"d":"$66,875.00"},{"v":173875,"d":"$173,875.00"},{"v":18190,"d":"$18,190.00"},{"v":305485,"d":"$305,485.00"},{"v":88010,"d":"$88,010.00"},{"v":728135,"d":"$728,135.00"},{"v":501295,"d":"$501,295.00"},{"v":1377537.012,"d":"$1,377,537.01"},{"v":3306922.012,"d":"$3,306,922.01"},{"v":509255.8,"d":"$509,255.80"},{"v":2797666.2120000003,"d":"$2,797,666.21"},{"v":3255996.432,"d":"$3,255,996.43"},{"v":106247.92,"d":"$106,247.92"},{"v":106247.92,"d":"$106,247.92"},{"v":110867.4,"d":"$110,867.40"},{"v":110867.4,"d":"$110,867.40"},{"v":0,"d":"$0.00"},{"v":0,"d":"$0.00"},{"v":0,"d":"$0.00"},{"v":0,"d":"$0.00"},{"v":0,"d":"$0.00"},{"v":250111.57,"d":"$250,111.57"},{"v":101313.52,"d":"$101,313.52"},{"v":38567.83,"d":"$38,567.83"},{"v":824223.5599999999,"d":"$824,223.56"},{"v":6986759.54,"d":"$6,986,759.54"},{"v":198339.82999999996,"d":"$198,339.83"},{"v":0,"d":"$0.00"},{"v":147421.72999999998,"d":"$147,421.73"},{"v":6986759.472,"d":"$6,986,759.47"}]
["13095099016","NASHVILLE COMM H S DISTRICT 99",402.98,{"v":5687421.77,"d":"$5,687,421.77"},{"v":4518190.87,"d":"$4,518,190.87"},{"v":0.7944181129369627,"d":"79%"},2,{"v":35713.89,"d":"$35,713.89"},{"v":1470307.6300000001,"d":"$1,470,307.63"},{"v":1506021.52,"d":"$1,506,021.52"},{"v":0.9,"d":"0.90"},{"v":1244460.78,"d":"$1,244,460.78"},{"v":414778.77,"d":"$414,778.77"},{"v":145090.84,"d":"$145,090.84"},{"v":48363.61,"d":"$48,363.61"},{"v":40397.92,"d":"$40,397.92"},{"v":124121.34,"d":"$124,121.34"},{"v":29174.75,"d":"$29,174.75"},{"v":53730.91,"d":"$53,730.91"},{"v":48551.14,"d":"$48,551.14"},{"v":35820.61,"d":"$35,820.61"},{"v":72027.14,"d":"$72,027.14"},{"v":62015.53,"d":"$62,015.53"},{"v":64474.56,"d":"$64,474.56"},{"v":2383007.9000000004,"d":"$2,383,007.90"},{"v":36268.2,"d":"$36,268.20"},{"v":50372.49999999999,"d":"$50,372.50"},{"v":130968.49999999999,"d":"$130,968.50"},{"v":13701.319999999998,"d":"$13,701.32"},{"v":230101.58,"d":"$230,101.58"},{"v":346159.81999999995,"d":"$346,159.82"},{"v":548455.7799999999,"d":"$548,455.78"},{"v":377592.25999999995,"d":"$377,592.26"},{"v":1074248.1247199997,"d":"$1,074,248.12"},{"v":2807868.0847199997,"d":"$2,807,868.08"},{"v":383588.6,"d":"$383,588.60"},{"v":2424279.4847199996,"d":"$2,424,279.48"},{"v":2769509.2247199994,"d":"$2,769,509.22"},{"v":59393.25,"d":"$59,393.25"},{"v":59393.25,"d":"$59,393.25"},{"v":61373.02,"d":"$61,373.02"},{"v":61373.02,"d":"$61,373.02"},{"v":0,"d":"$0.00"},{"v":0,"d":"$0.00"},{"v":0,"d":"$0.00"},{"v":0,"d":"$0.00"},{"v":0,"d":"$0.00"},{"v":188078.62,"d":"$188,078.62"},{"v":76185.63,"d":"$76,185.63"},{"v":29107.8,"d":"$29,107.80"},{"v":534904.59,"d":"$534,904.59"},{"v":5687421.77,"d":"$5,687,421.77"},{"v":119515.16,"d":"$119,515.16"},{"v":29.79,"d":"$29.79"},{"v":134479.41999999998,"d":"$134,479.42"},{"v":5687421.71472,"d":"$5,687,421.71"}]
["15016299025","CITY OF CHICAGO SCHOOL DIST 299",321895.69,{"v":5630097606.27,"d":"$5,630,097,606.27"},{"v":4540168661.32,"d":"$4,540,168,661.32"},{"v":0.806410293182805,"d":"81%"},2,{"v":23357289.62,"d":"$23,357,289.62"},{"v":1749161294.9799995,"d":"$1,749,161,294.98"},{"v":1772518584.5999994,"d":"$1,772,518,584.60"},{"v":1.05749,"d":"1.06"},{"v":1265136770.58,"d":"$1,265,136,770.58"},{"v":307920895.24,"d":"$307,920,895.24"},{"v":124408112.77,"d":"$124,408,112.77"},{"v":50421078.23,"d":"$50,421,078.23"},{"v":49526996.68,"d":"$49,526,996.68"},{"v":86856108.98,"d":"$86,856,108.98"},{"v":27759045.18,"d":"$27,759,045.18"},{"v":46739007.63,"d":"$46,739,007.63"},{"v":56015103.68,"d":"$56,015,103.68"},{"v":33701524.15,"d":"$33,701,524.15"},{"v":83100155.3,"d":"$83,100,155.30"},{"v":71549422.94,"d":"$71,549,422.94"},{"v":56084606.12,"d":"$56,084,606.12"},{"v":2259218827.48,"d":"$2,259,218,827.48"},{"v":28872565.200000003,"d":"$28,872,565.20"},{"v":40236961.25,"d":"$40,236,961.25"},{"v":104616099.25,"d":"$104,616,099.25"},{"v":10944453.459999999,"d":"$10,944,453.46"},{"v":183802438.99,"d":"$183,802,438.99"},{"v":125459091.60000001,"d":"$125,459,091.60"},{"v":438100034.09000003,"d":"$438,100,034.09"},{"v":301616261.53,"d":"$301,616,261.53"},{"v":1028367525.42216,"d":"$1,028,367,525.42"},{"v":2262015430.79216,"d":"$2,262,015,430.79"},{"v":306406069.39,"d":"$306,406,069.39"},{"v":1955609361.4021602,"d":"$1,955,609,361.40"},{"v":2279630715.71216,"d":"$2,279,630,715.71"},{"v":138729177.5,"d":"$138,729,177.50"},{"v":138729177.5,"d":"$138,729,177.50"},{"v":144509042.96,"d":"$144,509,042.96"},{"v":144509042.96,"d":"$144,509,042.96"},{"v":46597935.98,"d":"$46,597,935.98"},{"v":46597935.98,"d":"$46,597,935.98"},{"v":48539548.95,"d":"$48,539,548.95"},{"v":48539548.95,"d":"$48,539,548.95"},{"v":58247613.82,"d":"$58,247,613.82"},{"v":177020204.62,"d":"$177,020,204.62"},{"v":71706159.12,"d":"$71,706,159.12"},{"v":27522674.6,"d":"$27,522,674.60"},{"v":1091248062.9400003,"d":"$1,091,248,062.94"},{"v":5630097606.27,"d":"$5,630,097,606.27"},{"v":761121395.0000002,"d":"$761,121,395.00"},{"v":48160292.419999994,"d":"$48,160,292.42"},{"v":385874274.9,"d":"$385,874,274.90"},{"v":5630097606.13216,"d":"$5,630,097,606.13"}]
[null,"SAFE SCH-DE KALB ROE",55,{"v":858675.16,"d":"$858,675.16"},{"v":422117.65,"d":"$422,117.65"},{"v":0.4915917795968385,"d":"49%"},1,{"v":94904.99,"d":"$94,904.99"},{"v":336250.13999999996,"d":"$336,250.14"},{"v":431155.12999999995,"d":"$431,155.13"},{"v":1.05749,"d":"1.06"},{"v":199239.49,"d":"$199,239.49"},{"v":62572.89,"d":"$62,572.89"},{"v":22457.35,"d":"$22,457.35"},{"v":7411.95,"d":"$7,411.95"},{"v":6694.87,"d":"$6,694.87"},{"v":18689.46,"d":"$18,689.46"},{"v":4527.54,"d":"$4,527.54"},{"v":8480.58,"d":"$8,480.58"},{"v":7663.03,"d":"$7,663.03"},{"v":5653.72,"d":"$5,653.72"},{"v":11368.35,"d":"$11,368.35"},{"v":9788.18,"d":"$9,788.18"},{"v":10176.3,"d":"$10,176.30"},{"v":374723.70999999996,"d":"$374,723.71"},{"v":4950,"d":"$4,950.00"},{"v":6875,"d":"$6,875.00"},{"v":17875,"d":"$17,875.00"},{"v":1870,"d":"$1,870.00"},{"v":31405,"d":"$31,405.00"},{"v":41755,"d":"$41,755.00"},{"v":74855,"d":"$74,855.00"},{"v":51535,"d":"$51,535.00"},{"v":148777.602,"d":"$148,777.60"},{"v":379897.602,"d":"$379,897.60"},{"v":52353.4,"d":"$52,353.40"},{"v":327544.202,"d":"$327,544.20"},{"v":382907.392,"d":"$382,907.39"},{"v":12406.47,"d":"$12,406.47"},{"v":12406.47,"d":"$12,406.47"},{"v":12406.47,"d":"$12,406.47"},{"v":12406.47,"d":"$12,406.47"},{"v":775.4,"d":"$775.40"},{"v":775.4,"d":"$775.40"},{"v":775.4,"d":"$775.40"},{"v":775.4,"d":"$775.40"},{"v":1550.8,"d":"$1,550.80"},{"v":30240.77,"d":"$30,240.77"},{"v":12249.73,"d":"$12,249.73"},{"v":4275.16,"d":"$4,275.16"},{"v":101043.94,"d":"$101,043.94"},{"v":858675.16,"d":"$858,675.16"},{"v":27239.14,"d":"$27,239.14"},{"v":2018.3400000000001,"d":"$2,018.34"},{"v":17265.68,"d":"$17,265.68"},{"v":858675.0419999999,"d":"$858,675.04"}]
["16019424026","GENOA KINGSTON C U S DIST 424",1528.96,{"v":22771981.38,"d":"$22,771,981.38"},{"v":16472016.59,"d":"$16,472,016.59"},{"v":0.7233457780914452,"d":"72%"},1,{"v":570228.42,"d":"$570,228.42"},{"v":8637937.209999999,"d":"$8,637,937.21"},{"v":9208165.629999999,"d":"$9,208,165.63"},{"v":1.05749,"d":"1.06"},{"v":5439859.11,"d":"$5,439,859.11"},{"v":1340094.97,"d":"$1,340,094.97"},{"v":591443.57,"d":"$591,443.57"},{"v":237386.29,"d":"$237,386.29"},{"v":187842.07,"d":"$187,842.07"},{"v":414123.82,"d":"$414,123.82"},{"v":130652.1,"d":"$130,652.10"},{"v":222065.64,"d":"$222,065.64"},{"v":263097.63,"d":"$263,097.63"},{"v":159560.6,"d":"$159,560.60"},{"v":390313.55,"d":"$390,313.55"},{"v":336060.85,"d":"$336,060.85"},{"v":266468.3,"d":"$266,468.30"},{"v":9978968.500000002,"d":"$9,978,968.50"},{"v":136917,"d":"$136,917.00"},{"v":191119.99999999997,"d":"$191,120.00"},{"v":496911.99999999994,"d":"$496,912.00"},{"v":51984.64,"d":"$51,984.64"},{"v":873036.1599999999,"d":"$873,036.16"},{"v":614636.56,"d":"$614,636.56"},{"v":2080914.56,"d":"$2,080,914.56"},{"v":1432635.5199999998,"d":"$1,432,635.52"},{"v":4013591.8454399994,"d":"$4,013,591.85"},{"v":9891748.285439998,"d":"$9,891,748.29"},{"v":1455386.44,"d":"$1,455,386.44"},{"v":8436361.84544,"d":"$8,436,361.85"},{"v":9975418.44544,"d":"$9,975,418.45"},{"v":269840.78,"d":"$269,840.78"},{"v":269840.78,"d":"$269,840.78"},{"v":280696.44,"d":"$280,696.44"},{"v":280696.44,"d":"$280,696.44"},{"v":75989.64,"d":"$75,989.64"},{"v":75989.64,"d":"$75,989.64"},{"v":79091.26,"d":"$79,091.26"},{"v":79091.26,"d":"$79,091.26"},{"v":95374.75,"d":"$95,374.75"},{"v":840538.52,"d":"$840,538.52"},{"v":340479.71,"d":"$340,479.71"},{"v":129965.09,"d":"$129,965.09"},{"v":2817594.3099999996,"d":"$2,817,594.31"},{"v":22771981.38,"d":"$22,771,981.38"},{"v":638845.23,"d":"$638,845.23"},{"v":111404.58000000002,"d":"$111,404.58"},{"v":760364.2999999999,"d":"$760,364.30"},{"v":22771981.25544,"d":"$22,771,981.26"}]
["16019425026","INDIAN CREEK COMM UNIT DIST 425",655.37,{"v":9330902.08,"d":"$9,330,902.08"},{"v":10368751.15,"d":"$10,368,751.15"},{"v":1.1112270883459963,"d":"111%"},4,{"v":594.36,"d":"$594.36"},{"v":668662.55,"d":"$668,662.55"},{"v":669256.91,"d":"$669,256.91"},{"v":1.05749,"d":"1.06"},{"v":2312141.2,"d":"$2,312,141.20"},{"v":559885.7,"d":"$559,885.70"},{"v":251472.79,"d":"$251,472.79"},{"v":101731.22,"d":"$101,731.22"},{"v":78068.21,"d":"$78,068.21"},{"v":174195.16,"d":"$174,195.16"},{"v":55624.16,"d":"$55,624.16"},{"v":94228.7,"d":"$94,228.70"},{"v":113242.67,"d":"$113,242.67"},{"v":68472.85,"d":"$68,472.85"},{"v":167999.03,"d":"$167,999.03"},{"v":144647.55,"d":"$144,647.55"},{"v":113070,"d":"$113,070.00"},{"v":4234779.24,"d":"$4,234,779.24"},{"v":58510.8,"d":"$58,510.80"},{"v":81921.25,"d":"$81,921.25"},{"v":212995.25,"d":"$212,995.25"},{"v":22282.58,"d":"$22,282.58"},{"v":187108.13,"d":"$187,108.13"},{"v":248789.56,"d":"$248,789.56"},{"v":891958.5700000001,"d":"$891,958.57"},{"v":614081.69,"d":"$614,081.69"},{"v":1670513.8816799999,"d":"$1,670,513.88"},{"v":3988161.7116799997,"d":"$3,988,161.71"},{"v":623833.59,"d":"$623,833.59"},{"v":3364328.1216800003,"d":"$3,364,328.12"},{"v":4024025.90168,"d":"$4,024,025.90"},{"v":113209.06,"d":"$113,209.06"},{"v":113209.06,"d":"$113,209.06"},{"v":117861.49,"d":"$117,861.49"},{"v":117861.49,"d":"$117,861.49"},{"v":9304.85,"d":"$9,304.85"},{"v":9304.85,"d":"$9,304.85"},{"v":9304.85,"d":"$9,304.85"},{"v":9304.85,"d":"$9,304.85"},{"v":11631.06,"d":"$11,631.06"},{"v":359787.7,"d":"$359,787.70"},{"v":145740.39,"d":"$145,740.39"},{"v":55577.18,"d":"$55,577.18"},{"v":1072096.8299999998,"d":"$1,072,096.83"},{"v":9330902.08,"d":"$9,330,902.08"},{"v":127273.69000000002,"d":"$127,273.69"},{"v":3714.1099999999997,"d":"$3,714.11"},{"v":258328.24999999997,"d":"$258,328.25"},{"v":9330901.97168,"d":"$9,330,901.97"}]
["16019426026","HIAWATHA C U SCHOOL DIST 426",407.29,{"v":5840821.82,"d":"$5,840,821.82"},{"v":6162761.550000001,"d":"$6,162,761.55"},{"v":1.0551189096194686,"d":"106%"},4,{"v":372.05,"d":"$372.05"},{"v":1634790.7,"d":"$1,634,790.70"},{"v":1635162.75,"d":"$1,635,162.75"},{"v":1.05749,"d":"1.06"},{"v":1442020.94,"d":"$1,442,020.94"},{"v":351265.38,"d":"$351,265.38"},{"v":156046.12,"d":"$156,046.12"},{"v":62793.94,"d":"$62,793.94"},{"v":48953.81,"d":"$48,953.81"},{"v":108188.33,"d":"$108,188.33"},{"v":34280,"d":"$34,280.00"},{"v":58735.89,"d":"$58,735.89"},{"v":69818.78,"d":"$69,818.78"},{"v":42402.91,"d":"$42,402.91"},{"v":103578.35,"d":"$103,578.35"},{"v":89181.19,"d":"$89,181.19"},{"v":70480.3,"d":"$70,480.30"},{"v":2637745.94,"d":"$2,637,745.94"},{"v":36296.1,"d":"$36,296.10"},{"v":50911.25,"d":"$50,911.25"},{"v":132369.25,"d":"$132,369.25"},{"v":13847.859999999999,"d":"$13,847.86"},{"v":116281.29,"d":"$116,281.29"},{"v":157752.75,"d":"$157,752.75"},{"v":554321.69,"d":"$554,321.69"},{"v":381630.73,"d":"$381,630.73"},{"v":1046670.3165599998,"d":"$1,046,670.32"},{"v":2490081.2365599996,"d":"$2,490,081.24"},{"v":387691.2,"d":"$387,691.20"},{"v":2102390.0365599995,"d":"$2,102,390.04"},{"v":2512369.5965599995,"d":"$2,512,369.60"},{"v":72888.02,"d":"$72,888.02"},{"v":72888.02,"d":"$72,888.02"},{"v":75989.64,"d":"$75,989.64"},{"v":75989.64,"d":"$75,989.64"},{"v":8529.44,"d":"$8,529.44"},{"v":8529.44,"d":"$8,529.44"},{"v":8529.44,"d":"$8,529.44"},{"v":8529.44,"d":"$8,529.44"},{"v":10855.66,"d":"$10,855.66"},{"v":223316.5,"d":"$223,316.50"},{"v":90459.55,"d":"$90,459.55"},{"v":34201.34,"d":"$34,201.34"},{"v":690706.13,"d":"$690,706.13"},{"v":5840821.82,"d":"$5,840,821.82"},{"v":180315.50000000003,"d":"$180,315.50"},{"v":2497.3999999999996,"d":"$2,497.40"},{"v":214641.90000000002,"d":"$214,641.90"},{"v":5840821.666559999,"d":"$5,840,821.67"}]
["16019427026","SYCAMORE C U SCHOOL DIST 427",3628.02,{"v":51566470.22,"d":"$51,566,470.22"},{"v":39041994.23,"d":"$39,041,994.23"},{"v":0.7571197730508535,"d":"76%"},1,{"v":621366.15,"d":"$621,366.15"},{"v":11858760.26,"d":"$11,858,760.26"},{"v":12480126.41,"d":"$12,480,126.41"},{"v":1.05749,"d":"1.06"},{"v":12565158.04,"d":"$12,565,158.04"},{"v":3077199.55,"d":"$3,077,199.55"},{"v":1401873.16,"d":"$1,401,873.16"},{"v":566031.44,"d":"$566,031.44"},{"v":417067.2,"d":"$417,067.20"},{"v":978540.48,"d":"$978,540.48"},{"v":311754.03,"d":"$311,754.03"},{"v":526738.45,"d":"$526,738.45"},{"v":628369.1,"d":"$628,369.10"},{"v":379113.48,"d":"$379,113.48"},{"v":932205.18,"d":"$932,205.18"},{"v":802630.78,"d":"$802,630.78"},{"v":632061.31,"d":"$632,061.31"},{"v":23218742.200000003,"d":"$23,218,742.20"},{"v":324099.9,"d":"$324,099.90"},{"v":453502.50000000006,"d":"$453,502.50"},{"v":1179106.5000000002,"d":"$1,179,106.50"},{"v":123352.68000000002,"d":"$123,352.68"},{"v":2071599.42,"d":"$2,071,599.42"},{"v":1426493.01,"d":"$1,426,493.01"},{"v":4937735.220000001,"d":"$4,937,735.22"},{"v":3399454.74,"d":"$3,399,454.74"},{"v":8991778.66428,"d":"$8,991,778.66"},{"v":22907122.63428,"d":"$22,907,122.63"},{"v":3453439.67,"d":"$3,453,439.67"},{"v":19453682.964279994,"d":"$19,453,682.96"},{"v":23105660.874279995,"d":"$23,105,660.87"},{"v":451285.44,"d":"$451,285.44"},{"v":451285.44,"d":"$451,285.44"},{"v":470670.55,"d":"$470,670.55"},{"v":470670.55,"d":"$470,670.55"},{"v":53502.91,"d":"$53,502.91"},{"v":53502.91,"d":"$53,502.91"},{"v":55829.12,"d":"$55,829.12"},{"v":55829.12,"d":"$55,829.12"},{"v":66684.79,"d":"$66,684.79"},{"v":1995115.88,"d":"$1,995,115.88"},{"v":808168.18,"d":"$808,168.18"},{"v":309522.14,"d":"$309,522.14"},{"v":5242067.029999999,"d":"$5,242,067.03"},{"v":51566470.22,"d":"$51,566,470.22"},{"v":714869.4700000001,"d":"$714,869.47"},{"v":30668.279999999995,"d":"$30,668.28"},{"v":1447495.7300000002,"d":"$1,447,495.73"},{"v":51566470.104279995,"d":"$51,566,470.10"}]
["16019428026","DEKALB COMM UNIT SCH DIST 428",6582.75,{"v":107517830.89,"d":"$107,517,830.89"},{"v":88106166.13,"d":"$88,106,166.13"},{"v":0.8194563208789079,"d":"82%"},2,{"v":578803.17,"d":"$578,803.17"},{"v":50582556.19,"d":"$50,582,556.19"},{"v":51161359.36,"d":"$51,161,359.36"},{"v":1.05749,"d":"1.06"},{"v":24826067.63,"d":"$24,826,067.63"},{"v":6005023.66,"d":"$6,005,023.66"},{"v":2538400.87,"d":"$2,538,400.87"},{"v":1032209.14,"d":"$1,032,209.14"},{"v":924567.19,"d":"$924,567.19"},{"v":1755889.7,"d":"$1,755,889.70"},{"v":566590.32,"d":"$566,590.32"},{"v":953908.57,"d":"$953,908.57"},{"v":1148604.22,"d":"$1,148,604.22"},{"v":688811.82,"d":"$688,811.82"},{"v":1703990.23,"d":"$1,703,990.23"},{"v":1467139.47,"d":"$1,467,139.47"},{"v":1144645.33,"d":"$1,144,645.33"},{"v":44755848.14999999,"d":"$44,755,848.15"},{"v":587160,"d":"$587,160.00"},{"v":822843.75,"d":"$822,843.75"},{"v":2139393.75,"d":"$2,139,393.75"},{"v":223813.5,"d":"$223,813.50"},{"v":3758750.25,"d":"$3,758,750.25"},{"v":2496304,"d":"$2,496,304.00"},{"v":8959122.75,"d":"$8,959,122.75"},{"v":6168036.75,"d":"$6,168,036.75"},{"v":19382203.998,"d":"$19,382,204.00"},{"v":44537628.747999996,"d":"$44,537,628.75"},{"v":6265988.07,"d":"$6,265,988.07"},{"v":38271640.677999996,"d":"$38,271,640.68"},{"v":44897860.397999994,"d":"$44,897,860.40"},{"v":2157175.43,"d":"$2,157,175.43"},{"v":2157175.43,"d":"$2,157,175.43"},{"v":2247122.36,"d":"$2,247,122.36"},{"v":2247122.36,"d":"$2,247,122.36"},{"v":638933.34,"d":"$638,933.34"},{"v":638933.34,"d":"$638,933.34"},{"v":665297.09,"d":"$665,297.09"},{"v":665297.09,"d":"$665,297.09"},{"v":798666.67,"d":"$798,666.67"},{"v":3619588.4,"d":"$3,619,588.40"},{"v":1466198.63,"d":"$1,466,198.63"},{"v":562612.06,"d":"$562,612.06"},{"v":17864122.2,"d":"$17,864,122.20"},{"v":107517830.89,"d":"$107,517,830.89"},{"v":5745335.200000001,"d":"$5,745,335.20"},{"v":754479.1400000001,"d":"$754,479.14"},{"v":3338431.5900000003,"d":"$3,338,431.59"},{"v":107517830.74799998,"d":"$107,517,830.75"}]
["16019429026","HINCKLEY BIG ROCK C U S D 429",681.69,{"v":9793250.69,"d":"$9,793,250.69"},{"v":8723906.02,"d":"$8,723,906.02"},{"v":0.8908079958484143,"d":"89%"},2,{"v":14144.83,"d":"$14,144.83"},{"v":772795.5199999998,"d":"$772,795.52"},{"v":786940.3499999997,"d":"$786,940.35"},{"v":1.05749,"d":"1.06"},{"v":2374084.44,"d":"$2,374,084.44"},{"v":572274.35,"d":"$572,274.35"},{"v":261169.98,"d":"$261,169.98"},{"v":105418.32,"d":"$105,418.32"},{"v":80065.97,"d":"$80,065.97"},{"v":179869.48,"d":"$179,869.48"},{"v":58211.33,"d":"$58,211.33"},{"v":98311.94,"d":"$98,311.94"},{"v":117499.91,"d":"$117,499.91"},{"v":70671.52,"d":"$70,671.52"},{"v":174314.79,"d":"$174,314.79"},{"v":150085.43,"d":"$150,085.43"},{"v":117969.7,"d":"$117,969.70"},{"v":4359947.16,"d":"$4,359,947.16"},{"v":60640.2,"d":"$60,640.20"},{"v":85211.25,"d":"$85,211.25"},{"v":221549.25,"d":"$221,549.25"},{"v":23177.46,"d":"$23,177.46"},{"v":389244.99,"d":"$389,244.99"},{"v":253629.53999999998,"d":"$253,629.54"},{"v":927780.0899999999,"d":"$927,780.09"},{"v":638743.53,"d":"$638,743.53"},{"v":1715392.85616,"d":"$1,715,392.86"},{"v":4315369.16616,"d":"$4,315,369.17"},{"v":648887.07,"d":"$648,887.07"},{"v":3666482.0961600007,"d":"$3,666,482.10"},{"v":4352673.67616,"d":"$4,352,673.68"},{"v":96925.56,"d":"$96,925.56"},{"v":96925.56,"d":"$96,925.56"},{"v":101577.99,"d":"$101,577.99"},{"v":101577.99,"d":"$101,577.99"},{"v":18609.7,"d":"$18,609.70"},{"v":18609.7,"d":"$18,609.70"},{"v":19385.11,"d":"$19,385.11"},{"v":19385.11,"d":"$19,385.11"},{"v":23262.13,"d":"$23,262.13"},{"v":374520.39,"d":"$374,520.39"},{"v":151708.21,"d":"$151,708.21"},{"v":58142.28,"d":"$58,142.28"},{"v":1080629.73,"d":"$1,080,629.73"},{"v":9793250.69,"d":"$9,793,250.69"},{"v":112547.97000000002,"d":"$112,547.97"},{"v":751.03,"d":"$751.03"},{"v":303286.58999999997,"d":"$303,286.59"},{"v":9793250.56616,"d":"$9,793,250.57"}]
["16019430026","SANDWICH C U SCHOOL DIST 430",1831.72,{"v":27404144.49,"d":"$27,404,144.49"},{"v":21206424.599999998,"d":"$21,206,424.60"},{"v":0.7738400521037393,"d":"77%"},2,{"v":165874.39,"d":"$165,874.39"},{"v":6426176.940000001,"d":"$6,426,176.94"},{"v":6592051.330000001,"d":"$6,592,051.33"},{"v":1.05749,"d":"1.06"},{"v":6592373.28,"d":"$6,592,373.28"},{"v":1604402.65,"d":"$1,604,402.65"},{"v":706964.28,"d":"$706,964.28"},{"v":286536.7,"d":"$286,536.70"},{"v":227295.52,"d":"$227,295.52"},{"v":489223.21,"d":"$489,223.21"},{"v":157170.6,"d":"$157,170.60"},{"v":265410.84,"d":"$265,410.84"},{"v":318441.79,"d":"$318,441.79"},{"v":191598.36,"d":"$191,598.36"},{"v":472418.34,"d":"$472,418.34"},{"v":406753.27,"d":"$406,753.27"},{"v":318480.5,"d":"$318,480.50"},{"v":12037069.339999996,"d":"$12,037,069.34"},{"v":163662.3,"d":"$163,662.30"},{"v":228965,"d":"$228,965.00"},{"v":595309,"d":"$595,309.00"},{"v":62278.48,"d":"$62,278.48"},{"v":1045912.12,"d":"$1,045,912.12"},{"v":706377.9500000001,"d":"$706,377.95"},{"v":2492970.9200000004,"d":"$2,492,970.92"},{"v":1716321.6400000001,"d":"$1,716,321.64"},{"v":4841721.67608,"d":"$4,841,721.68"},{"v":11853519.08608,"d":"$11,853,519.09"},{"v":1743577.63,"d":"$1,743,577.63"},{"v":10109941.45608,"d":"$10,109,941.46"},{"v":11953757.356080001,"d":"$11,953,757.36"},{"v":383825.24,"d":"$383,825.24"},{"v":383825.24,"d":"$383,825.24"},{"v":400108.74,"d":"$400,108.74"},{"v":400108.74,"d":"$400,108.74"},{"v":51176.69,"d":"$51,176.69"},{"v":51176.69,"d":"$51,176.69"},{"v":53502.91,"d":"$53,502.91"},{"v":53502.91,"d":"$53,502.91"},{"v":64358.57,"d":"$64,358.57"},{"v":1007250.5,"d":"$1,007,250.50"},{"v":408010.28,"d":"$408,010.28"},{"v":156471.13,"d":"$156,471.13"},{"v":3413317.6399999997,"d":"$3,413,317.64"},{"v":27404144.49,"d":"$27,404,144.49"},{"v":766532.9600000001,"d":"$766,532.96"},{"v":38682.92999999999,"d":"$38,682.93"},{"v":801539.36,"d":"$801,539.36"},{"v":27404144.33608,"d":"$27,404,144.34"}]
["16019432026","SOMONAUK C U SCHOOL DIST 432",751.96,{"v":10783531.91,"d":"$10,783,531.91"},{"v":9195953.239999998,"d":"$9,195,953.24"},{"v":0.8527774867037973,"d":"85%"},2,{"v":17622.71,"d":"$17,622.71"},{"v":1721324.67,"d":"$1,721,324.67"},{"v":1738947.38,"d":"$1,738,947.38"},{"v":1.05749,"d":"1.06"},{"v":2640099.43,"d":"$2,640,099.43"},{"v":650124.36,"d":"$650,124.36"},{"v":290596.33,"d":"$290,596.33"},{"v":116738.85,"d":"$116,738.85"},{"v":87502.02,"d":"$87,502.02"},{"v":202754.88,"d":"$202,754.88"},{"v":63385.67,"d":"$63,385.67"},{"v":108991.2,"d":"$108,991.20"},{"v":129420.19,"d":"$129,420.19"},{"v":78209.82,"d":"$78,209.82"},{"v":191998.89,"d":"$191,998.89"},{"v":165311.48,"d":"$165,311.48"},{"v":130784.3,"d":"$130,784.30"},{"v":4855917.420000001,"d":"$4,855,917.42"},{"v":67286.7,"d":"$67,286.70"},{"v":93995,"d":"$93,995.00"},{"v":244387,"d":"$244,387.00"},{"v":25566.64,"d":"$25,566.64"},{"v":429369.16,"d":"$429,369.16"},{"v":301395.49,"d":"$301,395.49"},{"v":1023417.5599999999,"d":"$1,023,417.56"},{"v":704586.5199999999,"d":"$704,586.52"},{"v":1883284.92444,"d":"$1,883,284.92"},{"v":4773288.99444,"d":"$4,773,288.99"},{"v":715775.68,"d":"$715,775.68"},{"v":4057513.3144399994,"d":"$4,057,513.31"},{"v":4814438.934439999,"d":"$4,814,438.93"},{"v":114759.87,"d":"$114,759.87"},{"v":114759.87,"d":"$114,759.87"},{"v":119412.29,"d":"$119,412.29"},{"v":119412.29,"d":"$119,412.29"},{"v":0,"d":"$0.00"},{"v":0,"d":"$0.00"},{"v":0,"d":"$0.00"},{"v":0,"d":"$0.00"},{"v":0,"d":"$0.00"},{"v":413290.62,"d":"$413,290.62"},{"v":167412.99,"d":"$167,412.99"},{"v":64127.51,"d":"$64,127.51"},{"v":1113175.44,"d":"$1,113,175.44"},{"v":10783531.91,"d":"$10,783,531.91"},{"v":131474.87,"d":"$131,474.87"},{"v":0,"d":"$0.00"},{"v":280661.50000000006,"d":"$280,661.50"},{"v":10783531.79444,"d":"$10,783,531.79"}]
[null,"SAFE SCH-DE WITT/LIVINGSTON/MCLEA",29.64,{"v":390416.14,"d":"$390,416.14"},{"v":577658.76,"d":"$577,658.76"},{"v":1.4795975391796046,"d":"148%"},4,{"v":24.86,"d":"$24.86"},{"v":538617.15,"d":"$538,617.15"},{"v":538642.01,"d":"$538,642.01"},{"v":0.90122,"d":"0.90"},{"v":88085.74,"d":"$88,085.74"},{"v":25421.68,"d":"$25,421.68"},{"v":9647.65,"d":"$9,647.65"},{"v":3425.36,"d":"$3,425.36"},{"v":2940.01,"d":"$2,940.01"},{"v":8113.1,"d":"$8,113.10"},{"v":1653.63,"d":"$1,653.63"},{"v":3479.84,"d":"$3,479.84"},{"v":3628.13,"d":"$3,628.13"},{"v":2409.12,"d":"$2,409.12"},{"v":5382.44,"d":"$5,382.44"},{"v":4634.29,"d":"$4,634.29"},{"v":4175.64,"d":"$4,175.64"},{"v":162996.63000000003,"d":"$162,996.63"},{"v":2667.6,"d":"$2,667.60"},{"v":3705,"d":"$3,705.00"},{"v":9633,"d":"$9,633.00"},{"v":1007.76,"d":"$1,007.76"},{"v":8462.21,"d":"$8,462.21"},{"v":18756.86,"d":"$18,756.86"},{"v":40340.03999999999,"d":"$40,340.04"},{"v":27772.68,"d":"$27,772.68"},{"v":75759.15396,"d":"$75,759.15"},{"v":188104.30396,"d":"$188,104.30"},{"v":28213.72,"d":"$28,213.72"},{"v":159890.58396,"d":"$159,890.58"},{"v":185317.34396,"d":"$185,317.34"},{"v":5286.55,"d":"$5,286.55"},{"v":5286.55,"d":"$5,286.55"},{"v":5286.55,"d":"$5,286.55"},{"v":5286.55,"d":"$5,286.55"},{"v":0,"d":"$0.00"},{"v":0,"d":"$0.00"},{"v":0,"d":"$0.00"},{"v":0,"d":"$0.00"},{"v":0,"d":"$0.00"},{"v":13877.21,"d":"$13,877.21"},{"v":5621.28,"d":"$5,621.28"},{"v":1457.36,"d":"$1,457.36"},{"v":42102.05,"d":"$42,102.05"},{"v":390416.14,"d":"$390,416.14"},{"v":13.92,"d":"$13.92"},{"v":0,"d":"$0.00"},{"v":9.010000000000002,"d":"$9.01"},{"v":390416.02396,"d":"$390,416.02"}]
[null,"ALOP-DE WITT/LIVINGSTON/MCLEAN",248,{"v":3521844.04,"d":"$3,521,844.04"},{"v":2135603.85,"d":"$2,135,603.85"},{"v":0.6063879677079624,"d":"61%"},1,{"v":245121.63,"d":"$245,121.63"},{"v":1783419.45,"d":"$1,783,419.45"},{"v":2028541.08,"d":"$2,028,541.08"},{"v":0.90122,"d":"0.90"},{"v":765328.32,"d":"$765,328.32"},{"v":240842.67,"d":"$240,842.67"},{"v":87114.15,"d":"$87,114.15"},{"v":29603.58,"d":"$29,603.58"},{"v":25690.88,"d":"$25,690.88"},{"v":74234.3,"d":"$74,234.30"},{"v":17638.82,"d":"$17,638.82"},{"v":32389.32,"d":"$32,389.32"},{"v":30476.3,"d":"$30,476.30"},{"v":21949.78,"d":"$21,949.78"},{"v":45212.54,"d":"$45,212.54"},{"v":38928.1,"d":"$38,928.10"},{"v":38865.66,"d":"$38,865.66"},{"v":1448274.4200000002,"d":"$1,448,274.42"},{"v":22320,"d":"$22,320.00"},{"v":31000,"d":"$31,000.00"},{"v":80600,"d":"$80,600.00"},{"v":8432,"d":"$8,432.00"},{"v":141608,"d":"$141,608.00"},{"v":189242,"d":"$189,242.00"},{"v":337528,"d":"$337,528.00"},{"v":232376,"d":"$232,376.00"},{"v":671595.561,"d":"$671,595.56"},{"v":1714701.561,"d":"$1,714,701.56"},{"v":236066.24,"d":"$236,066.24"},{"v":1478635.321,"d":"$1,478,635.32"},{"v":1691382.9309999999,"d":"$1,691,382.93"},{"v":46918.18,"d":"$46,918.18"},{"v":46918.18,"d":"$46,918.18"},{"v":48900.64,"d":"$48,900.64"},{"v":48900.64,"d":"$48,900.64"},{"v":1982.45,"d":"$1,982.45"},{"v":1982.45,"d":"$1,982.45"},{"v":1982.45,"d":"$1,982.45"},{"v":1982.45,"d":"$1,982.45"},{"v":2643.27,"d":"$2,643.27"},{"v":115643.42,"d":"$115,643.42"},{"v":46844.06,"d":"$46,844.06"},{"v":17488.35,"d":"$17,488.35"},{"v":382186.54000000004,"d":"$382,186.54"},{"v":3521844.04,"d":"$3,521,844.04"},{"v":45149.81,"d":"$45,149.81"},{"v":1066.18,"d":"$1,066.18"},{"v":28851.48,"d":"$28,851.48"},{"v":3521843.891,"d":"$3,521,843.89"}]
["17020015026","CLINTON C U SCHOOL DIST 15",1607.19,{"v":21709099.35,"d":"$21,709,099.35"},{"v":25706935.55,"d":"$25,706,935.55"},{"v":1.184154862232919,"d":"118%"},4,{"v":1382.83,"d":"$1,382.83"},{"v":2153723.11,"d":"$2,153,723.11"},{"v":2155105.94,"d":"$2,155,105.94"},{"v":0.9,"d":"0.90"},{"v":5021577.9,"d":"$5,021,577.90"},{"v":1214656.73,"d":"$1,214,656.73"},{"v":526517.8,"d":"$526,517.80"},{"v":214207.74,"d":"$214,207.74"},{"v":174433.87,"d":"$174,433.87"},{"v":363583.99,"d":"$363,583.99"},{"v":117249.47,"d":"$117,249.47"},{"v":197815.32,"d":"$197,815.32"},{"v":238407.87,"d":"$238,407.87"},{"v":142747.81,"d":"$142,747.81"},{"v":353685.52,"d":"$353,685.52"},{"v":304524.04,"d":"$304,524.04"},{"v":237369.06,"d":"$237,369.06"},{"v":9106777.120000001,"d":"$9,106,777.12"},{"v":143094.59999999998,"d":"$143,094.60"},{"v":200898.75,"d":"$200,898.75"},{"v":522336.75,"d":"$522,336.75"},{"v":54644.46,"d":"$54,644.46"},{"v":458852.73,"d":"$458,852.73"},{"v":606655.36,"d":"$606,655.36"},{"v":2187385.59,"d":"$2,187,385.59"},{"v":1505937.03,"d":"$1,505,937.03"},{"v":4346178.056159999,"d":"$4,346,178.06"},{"v":10025983.326159999,"d":"$10,025,983.33"},{"v":1529852.01,"d":"$1,529,852.01"},{"v":8496131.31616,"d":"$8,496,131.32"},{"v":9872998.116160002,"d":"$9,872,998.12"},{"v":364278.6,"d":"$364,278.60"},{"v":364278.6,"d":"$364,278.60"},{"v":379456.87,"d":"$379,456.87"},{"v":379456.87,"d":"$379,456.87"},{"v":13198.5,"d":"$13,198.50"},{"v":13198.5,"d":"$13,198.50"},{"v":13198.5,"d":"$13,198.50"},{"v":13198.5,"d":"$13,198.50"},{"v":16498.12,"d":"$16,498.12"},{"v":751654.57,"d":"$751,654.57"},{"v":304475.2,"d":"$304,475.20"},{"v":116431.2,"d":"$116,431.20"},{"v":2729324.0300000003,"d":"$2,729,324.03"},{"v":21709099.35,"d":"$21,709,099.35"},{"v":860454.77,"d":"$860,454.77"},{"v":34.339999999999996,"d":"$34.34"},{"v":612745.9700000001,"d":"$612,745.97"},{"v":21709099.266160004,"d":"$21,709,099.27"}]
["17020018026","BLUE RIDGE COMM UNIT SCH DIST 18",610.37,{"v":8127137.43,"d":"$8,127,137.43"},{"v":9433748.3,"d":"$9,433,748.30"},{"v":1.160771351691047,"d":"116%"},4,{"v":517.68,"d":"$517.68"},{"v":888031.3999999999,"d":"$888,031.40"},{"v":888549.08,"d":"$888,549.08"},{"v":0.9,"d":"0.90"},{"v":1903624.93,"d":"$1,903,624.93"},{"v":462224.96,"d":"$462,224.96"},{"v":199209.69,"d":"$199,209.69"},{"v":80837.96,"d":"$80,837.96"},{"v":64922.04,"d":"$64,922.04"},{"v":137823.15,"d":"$137,823.15"},{"v":43486.89,"d":"$43,486.89"},{"v":75116.35,"d":"$75,116.35"},{"v":89855.85,"d":"$89,855.85"},{"v":53998.23,"d":"$53,998.23"},{"v":133303.96,"d":"$133,303.96"},{"v":114775.02,"d":"$114,775.02"},{"v":90136.08,"d":"$90,136.08"},{"v":3449315.1100000003,"d":"$3,449,315.11"},{"v":54550.799999999996,"d":"$54,550.80"},{"v":76296.25,"d":"$76,296.25"},{"v":198370.25,"d":"$198,370.25"},{"v":20752.58,"d":"$20,752.58"},{"v":174260.62,"d":"$174,260.62"},{"v":234070.02000000002,"d":"$234,070.02"},{"v":830713.57,"d":"$830,713.57"},{"v":571916.6900000001,"d":"$571,916.69"},{"v":1620570.9016800001,"d":"$1,620,570.90"},{"v":3781501.68168,"d":"$3,781,501.68"},{"v":580998.99,"d":"$580,998.99"},{"v":3200502.69168,"d":"$3,200,502.69"},{"v":3723401.78168,"d":"$3,723,401.78"},{"v":124065.9,"d":"$124,065.90"},{"v":124065.9,"d":"$124,065.90"},{"v":128685.37,"d":"$128,685.37"},{"v":128685.37,"d":"$128,685.37"},{"v":659.92,"d":"$659.92"},{"v":659.92,"d":"$659.92"},{"v":659.92,"d":"$659.92"},{"v":659.92,"d":"$659.92"},{"v":1319.85,"d":"$1,319.85"},{"v":285087.6,"d":"$285,087.60"},{"v":115481.37,"d":"$115,481.37"},{"v":44389.39,"d":"$44,389.39"},{"v":954420.4299999999,"d":"$954,420.43"},{"v":8127137.43,"d":"$8,127,137.43"},{"v":275293.14,"d":"$275,293.14"},{"v":36.519999999999996,"d":"$36.52"},{"v":249723.07,"d":"$249,723.07"},{"v":8127137.32168,"d":"$8,127,137.32"}]
["17053005026","WOODLAND C U S DIST 5",437.21,{"v":6016093.86,"d":"$6,016,093.86"},{"v":5560278.07,"d":"$5,560,278.07"},{"v":0.9242339297545468,"d":"92%"},3,{"v":6836.75,"d":"$6,836.75"},{"v":1593950.5299999998,"d":"$1,593,950.53"},{"v":1600787.2799999998,"d":"$1,600,787.28"},{"v":0.9,"d":"0.90"},{"v":1355681.09,"d":"$1,355,681.09"},{"v":334642.69,"d":"$334,642.69"},{"v":143162.9,"d":"$143,162.90"},{"v":56862.89,"d":"$56,862.89"},{"v":47031.44,"d":"$47,031.44"},{"v":100949.11,"d":"$100,949.11"},{"v":30826.15,"d":"$30,826.15"},{"v":53730.91,"d":"$53,730.91"},{"v":63044.02,"d":"$63,044.02"},{"v":38493.79,"d":"$38,493.79"},{"v":93527.78,"d":"$93,527.78"},{"v":80527.63,"d":"$80,527.63"},{"v":64474.56,"d":"$64,474.56"},{"v":2462954.9599999995,"d":"$2,462,954.96"},{"v":38651.399999999994,"d":"$38,651.40"},{"v":54651.25,"d":"$54,651.25"},{"v":142093.25,"d":"$142,093.25"},{"v":14865.14,"d":"$14,865.14"},{"v":249646.91,"d":"$249,646.91"},{"v":175382.13999999998,"d":"$175,382.14"},{"v":595042.8099999999,"d":"$595,042.81"},{"v":409665.77,"d":"$409,665.77"},{"v":1176308.80044,"d":"$1,176,308.80"},{"v":2856307.47044,"d":"$2,856,307.47"},{"v":416171.45,"d":"$416,171.45"},{"v":2440136.02044,"d":"$2,440,136.02"},{"v":2814690.32044,"d":"$2,814,690.32"},{"v":102948.3,"d":"$102,948.30"},{"v":102948.3,"d":"$102,948.30"},{"v":106907.85,"d":"$106,907.85"},{"v":106907.85,"d":"$106,907.85"},{"v":0,"d":"$0.00"},{"v":0,"d":"$0.00"},{"v":0,"d":"$0.00"},{"v":0,"d":"$0.00"},{"v":0,"d":"$0.00"},{"v":204576.75,"d":"$204,576.75"},{"v":82868.58,"d":"$82,868.58"},{"v":31290.88,"d":"$31,290.88"},{"v":738448.51,"d":"$738,448.51"},{"v":6016093.86,"d":"$6,016,093.86"},{"v":212848.06,"d":"$212,848.06"},{"v":0,"d":"$0.00"},{"v":213717.30000000002,"d":"$213,717.30"},{"v":6016093.790439999,"d":"$6,016,093.79"}]
["17053006J26","TRI POINT C U SCH DIST 6-J",356.5,{"v":4778693.56,"d":"$4,778,693.56"},{"v":6307625.85,"d":"$6,307,625.85"},{"v":1.3199477578553918,"d":"132%"},4,{"v":304.39,"d":"$304.39"},{"v":664295.5900000001,"d":"$664,295.59"},{"v":664599.9800000001,"d":"$664,599.98"},{"v":0.9,"d":"0.90"},{"v":1107608.74,"d":"$1,107,608.74"},{"v":272038.26,"d":"$272,038.26"},{"v":116645.3,"d":"$116,645.30"},{"v":46350.09,"d":"$46,350.09"},{"v":38162.33,"d":"$38,162.33"},{"v":80875.65,"d":"$80,875.65"},{"v":24771.01,"d":"$24,771.01"},{"v":43840.15,"d":"$43,840.15"},{"v":51449.72,"d":"$51,449.72"},{"v":31543.52,"d":"$31,543.52"},{"v":76327.27,"d":"$76,327.27"},{"v":65717.95,"d":"$65,717.95"},{"v":52606.11,"d":"$52,606.11"},{"v":2007936.1,"d":"$2,007,936.10"},{"v":31590,"d":"$31,590.00"},{"v":44562.5,"d":"$44,562.50"},{"v":115862.5,"d":"$115,862.50"},{"v":12121,"d":"$12,121.00"},{"v":101780.75,"d":"$101,780.75"},{"v":140960,"d":"$140,960.00"},{"v":485196.5,"d":"$485,196.50"},{"v":334040.5,"d":"$334,040.50"},{"v":953440.677,"d":"$953,440.68"},{"v":2219554.427,"d":"$2,219,554.43"},{"v":339345.22,"d":"$339,345.22"},{"v":1880209.2070000002,"d":"$1,880,209.21"},{"v":2185619.8970000003,"d":"$2,185,619.90"},{"v":79850.92,"d":"$79,850.92"},{"v":79850.92,"d":"$79,850.92"},{"v":83150.55,"d":"$83,150.55"},{"v":83150.55,"d":"$83,150.55"},{"v":0,"d":"$0.00"},{"v":0,"d":"$0.00"},{"v":0,"d":"$0.00"},{"v":0,"d":"$0.00"},{"v":0,"d":"$0.00"},{"v":166301.1,"d":"$166,301.10"},{"v":67364.13,"d":"$67,364.13"},{"v":25469.32,"d":"$25,469.32"},{"v":585137.49,"d":"$585,137.49"},{"v":4778693.56,"d":"$4,778,693.56"},{"v":246076.13999999998,"d":"$246,076.14"},{"v":0,"d":"$0.00"},{"v":151817.07,"d":"$151,817.07"},{"v":4778693.487000001,"d":"$4,778,693.49"}]
["17053008026","PRAIRIE CENTRAL C U SCHOOL DIST 8",1623.61,{"v":21890780.58,"d":"$21,890,780.58"},{"v":21201754.84,"d":"$21,201,754.84"},{"v":0.9685243868996837,"d":"97%"},3,{"v":24876.91,"d":"$24,876.91"},{"v":6267222.159999999,"d":"$6,267,222.16"},{"v":6292099.069999999,"d":"$6,292,099.07"},{"v":0.9,"d":"0.90"},{"v":4957378.85,"d":"$4,957,378.85"},{"v":1205473.35,"d":"$1,205,473.35"},{"v":533014.4,"d":"$533,014.40"},{"v":216373.28,"d":"$216,373.28"},{"v":170104.84,"d":"$170,104.84"},{"v":369656.96,"d":"$369,656.96"},{"v":118350.4,"d":"$118,350.40"},{"v":200221.18,"d":"$200,221.18"},{"v":240581.8,"d":"$240,581.80"},{"v":144351.72,"d":"$144,351.72"},{"v":356910.62,"d":"$356,910.62"},{"v":307300.86,"d":"$307,300.86"},{"v":240255.98,"d":"$240,255.98"},{"v":9059974.239999998,"d":"$9,059,974.24"},{"v":144144.90000000002,"d":"$144,144.90"},{"v":202951.25,"d":"$202,951.25"},{"v":527673.25,"d":"$527,673.25"},{"v":55202.740000000005,"d":"$55,202.74"},{"v":927081.3099999999,"d":"$927,081.31"},{"v":622400.73,"d":"$622,400.73"},{"v":2209733.21,"d":"$2,209,733.21"},{"v":1521322.57,"d":"$1,521,322.57"},{"v":4263911.91804,"d":"$4,263,911.92"},{"v":10474421.87804,"d":"$10,474,421.88"},{"v":1545481.88,"d":"$1,545,481.88"},{"v":8928939.998040002,"d":"$8,928,940.00"},{"v":10319873.688040001,"d":"$10,319,873.69"},{"v":296306.32,"d":"$296,306.32"},{"v":296306.32,"d":"$296,306.32"},{"v":308844.9,"d":"$308,844.90"},{"v":308844.9,"d":"$308,844.90"},{"v":21777.52,"d":"$21,777.52"},{"v":21777.52,"d":"$21,777.52"},{"v":22437.45,"d":"$22,437.45"},{"v":22437.45,"d":"$22,437.45"},{"v":27056.92,"d":"$27,056.92"},{"v":759573.67,"d":"$759,573.67"},{"v":307683.01,"d":"$307,683.01"},{"v":117886.59,"d":"$117,886.59"},{"v":2510932.5699999994,"d":"$2,510,932.57"},{"v":21890780.58,"d":"$21,890,780.58"},{"v":667145.3799999999,"d":"$667,145.38"},{"v":1012.43,"d":"$1,012.43"},{"v":760347.25,"d":"$760,347.25"},{"v":21890780.498039998,"d":"$21,890,780.50"}]
["17053074027","FLANAGAN-CORNELL UNIT 74",292.25,{"v":3917896.05,"d":"$3,917,896.05"},{"v":3229423.14,"d":"$3,229,423.14"},{"v":0.8242748400637123,"d":"82%"},2,{"v":14218.29,"d":"$14,218.29"},{"v":803663.3999999999,"d":"$803,663.40"},{"v":817881.69,"d":"$817,881.69"},{"v":0.9,"d":"0.90"},{"v":901092.85,"d":"$901,092.85"},{"v":226212.65,"d":"$226,212.65"},{"v":96185.2,"d":"$96,185.20"},{"v":37469.49,"d":"$37,469.49"},{"v":30215.88,"d":"$30,215.88"},{"v":67064.27,"d":"$67,064.27"},{"v":20917.74,"d":"$20,917.74"},{"v":36087.93,"d":"$36,087.93"},{"v":41304.7,"d":"$41,304.70"},{"v":25395.21,"d":"$25,395.21"},{"v":61276.82,"d":"$61,276.82"},{"v":52759.48,"d":"$52,759.48"},{"v":43303.81,"d":"$43,303.81"},{"v":1639286.0299999998,"d":"$1,639,286.03"},{"v":26010,"d":"$26,010.00"},{"v":36531.25,"d":"$36,531.25"},{"v":94981.25,"d":"$94,981.25"},{"v":9936.5,"d":"$9,936.50"},{"v":166874.75,"d":"$166,874.75"},{"v":123866,"d":"$123,866.00"},{"v":397752.25,"d":"$397,752.25"},{"v":273838.25,"d":"$273,838.25"},{"v":759019.2119999999,"d":"$759,019.21"},{"v":1888809.4619999998,"d":"$1,888,809.46"},{"v":278186.93,"d":"$278,186.93"},{"v":1610622.532,"d":"$1,610,622.53"},{"v":1860990.7619999999,"d":"$1,860,990.76"},{"v":50154.3,"d":"$50,154.30"},{"v":50154.3,"d":"$50,154.30"},{"v":52134.07,"d":"$52,134.07"},{"v":52134.07,"d":"$52,134.07"},{"v":0,"d":"$0.00"},{"v":0,"d":"$0.00"},{"v":0,"d":"$0.00"},{"v":0,"d":"$0.00"},{"v":0,"d":"$0.00"},{"v":136604.47,"d":"$136,604.47"},{"v":55334.82,"d":"$55,334.82"},{"v":21103.15,"d":"$21,103.15"},{"v":417619.18000000005,"d":"$417,619.18"},{"v":3917896.05,"d":"$3,917,896.05"},{"v":146033.51000000004,"d":"$146,033.51"},{"v":0,"d":"$0.00"},{"v":149753.08,"d":"$149,753.08"},{"v":3917895.9719999996,"d":"$3,917,895.97"}]
["17053090017","PONTIAC TWP H S DIST 90",677.32,{"v":9939401.15,"d":"$9,939,401.15"},{"v":7597626.82,"d":"$7,597,626.82"},{"v":0.7643948267446676,"d":"76%"},1,{"v":117093.99,"d":"$117,093.99"},{"v":3095372.24,"d":"$3,095,372.24"},{"v":3212466.2300000004,"d":"$3,212,466.23"},{"v":0.9,"d":"0.90"},{"v":2151098.1,"d":"$2,151,098.10"},{"v":716960.98,"d":"$716,960.98"},{"v":243983.61,"d":"$243,983.61"},{"v":80846.64,"d":"$80,846.64"},{"v":72172.37,"d":"$72,172.37"},{"v":208153.8,"d":"$208,153.80"},{"v":49542.03,"d":"$49,542.03"},{"v":90353.48,"d":"$90,353.48"},{"v":81160.12,"d":"$81,160.12"},{"v":60146.55,"d":"$60,146.55"},{"v":120403.58,"d":"$120,403.58"},{"v":103667.76,"d":"$103,667.76"},{"v":108419.92,"d":"$108,419.92"},{"v":4086908.9399999995,"d":"$4,086,908.94"},{"v":60958.799999999996,"d":"$60,958.80"},{"v":84664.99999999999,"d":"$84,665.00"},{"v":220128.99999999997,"d":"$220,129.00"},{"v":23028.879999999997,"d":"$23,028.88"},{"v":386749.72,"d":"$386,749.72"},{"v":581817.8799999999,"d":"$581,817.88"},{"v":921832.5199999999,"d":"$921,832.52"},{"v":634648.84,"d":"$634,648.84"},{"v":1899531.37548,"d":"$1,899,531.38"},{"v":4813362.01548,"d":"$4,813,362.02"},{"v":644727.36,"d":"$644,727.36"},{"v":4168634.6554799997,"d":"$4,168,634.66"},{"v":4748889.275479999,"d":"$4,748,889.28"},{"v":142543.8,"d":"$142,543.80"},{"v":142543.8,"d":"$142,543.80"},{"v":148483.12,"d":"$148,483.12"},{"v":148483.12,"d":"$148,483.12"},{"v":5279.4,"d":"$5,279.40"},{"v":5279.4,"d":"$5,279.40"},{"v":5279.4,"d":"$5,279.40"},{"v":5279.4,"d":"$5,279.40"},{"v":6599.25,"d":"$6,599.25"},{"v":316764,"d":"$316,764.00"},{"v":128312.64,"d":"$128,312.64"},{"v":48755.56,"d":"$48,755.56"},{"v":1103602.8900000001,"d":"$1,103,602.89"},{"v":9939401.15,"d":"$9,939,401.15"},{"v":340721.42,"d":"$340,721.42"},{"v":433.24,"d":"$433.24"},{"v":300132.3,"d":"$300,132.30"},{"v":9939401.10548,"d":"$9,939,401.11"}]
["17053230017","DWIGHT TWP H S DIST 230",219.49,{"v":3036224.42,"d":"$3,036,224.42"},{"v":3686803.6,"d":"$3,686,803.60"},{"v":1.214272428518311,"d":"121%"},4,{"v":193.4,"d":"$193.40"},{"v":662326.07,"d":"$662,326.07"},{"v":662519.47,"d":"$662,519.47"},{"v":0.9,"d":"0.90"},{"v":677812.45,"d":"$677,812.45"},{"v":225914.88,"d":"$225,914.88"},{"v":78681.1,"d":"$78,681.10"},{"v":25986.42,"d":"$25,986.42"},{"v":22050.8,"d":"$22,050.80"},{"v":67071.78,"d":"$67,071.78"},{"v":15963.54,"d":"$15,963.54"},{"v":29137.66,"d":"$29,137.66"},{"v":26087.18,"d":"$26,087.18"},{"v":19514.21,"d":"$19,514.21"},{"v":38701.15,"d":"$38,701.15"},{"v":33321.78,"d":"$33,321.78"},{"v":34963.82,"d":"$34,963.82"},{"v":1295206.7699999998,"d":"$1,295,206.77"},{"v":19754.100000000002,"d":"$19,754.10"},{"v":27436.25,"d":"$27,436.25"},{"v":71334.25,"d":"$71,334.25"},{"v":7462.66,"d":"$7,462.66"},{"v":62664.39,"d":"$62,664.39"},{"v":188541.91,"d":"$188,541.91"},{"v":298725.89,"d":"$298,725.89"},{"v":205662.13,"d":"$205,662.13"},{"v":585380.04636,"d":"$585,380.05"},{"v":1466961.62636,"d":"$1,466,961.63"},{"v":208928.14,"d":"$208,928.14"},{"v":1258033.48636,"d":"$1,258,033.49"},{"v":1446068.80636,"d":"$1,446,068.81"},{"v":32336.32,"d":"$32,336.32"},{"v":32336.32,"d":"$32,336.32"},{"v":33656.17,"d":"$33,656.17"},{"v":33656.17,"d":"$33,656.17"},{"v":659.92,"d":"$659.92"},{"v":659.92,"d":"$659.92"},{"v":659.92,"d":"$659.92"},{"v":659.92,"d":"$659.92"},{"v":1319.85,"d":"$1,319.85"},{"v":102288.37,"d":"$102,288.37"},{"v":41434.29,"d":"$41,434.29"},{"v":15281.59,"d":"$15,281.59"},{"v":294948.76000000007,"d":"$294,948.76"},{"v":3036224.42,"d":"$3,036,224.42"},{"v":61450.90000000001,"d":"$61,450.90"},{"v":2.1,"d":"$2.10"},{"v":76292.69000000002,"d":"$76,292.69"},{"v":3036224.33636,"d":"$3,036,224.34"}]
["17053232002","DWIGHT COMMON SCHOOL DIST 232",478,{"v":6162038.32,"d":"$6,162,038.32"},{"v":5462597.170000001,"d":"$5,462,597.17"},{"v":0.8864919181482793,"d":"89%"},2,{"v":9918.33,"d":"$9,918.33"},{"v":843481.14,"d":"$843,481.14"},{"v":853399.47,"d":"$853,399.47"},{"v":0.9,"d":"0.90"},{"v":1425900.38,"d":"$1,425,900.38"},{"v":285180.07,"d":"$285,180.07"},{"v":149368.08,"d":"$149,368.08"},{"v":66525.28,"d":"$66,525.28"},{"v":49443.3,"d":"$49,443.30"},{"v":90635.72,"d":"$90,635.72"},{"v":34679.42,"d":"$34,679.42"},{"v":56671.41,"d":"$56,671.41"},{"v":76812.26,"d":"$76,812.26"},{"v":42236.24,"d":"$42,236.24"},{"v":113953.39,"d":"$113,953.39"},{"v":98114.13,"d":"$98,114.13"},{"v":68003.02,"d":"$68,003.02"},{"v":2557522.7,"d":"$2,557,522.70"},{"v":42030,"d":"$42,030.00"},{"v":59750,"d":"$59,750.00"},{"v":155350,"d":"$155,350.00"},{"v":16252,"d":"$16,252.00"},{"v":272938,"d":"$272,938.00"},{"v":77905,"d":"$77,905.00"},{"v":650558,"d":"$650,558.00"},{"v":447886,"d":"$447,886.00"},{"v":1211231.163,"d":"$1,211,231.16"},{"v":2933900.1629999997,"d":"$2,933,900.16"},{"v":454998.64,"d":"$454,998.64"},{"v":2478901.5229999996,"d":"$2,478,901.52"},{"v":2888400.2929999996,"d":"$2,888,400.29"},{"v":79850.92,"d":"$79,850.92"},{"v":79850.92,"d":"$79,850.92"},{"v":83150.55,"d":"$83,150.55"},{"v":83150.55,"d":"$83,150.55"},{"v":7919.1,"d":"$7,919.10"},{"v":7919.1,"d":"$7,919.10"},{"v":7919.1,"d":"$7,919.10"},{"v":7919.1,"d":"$7,919.10"},{"v":9898.87,"d":"$9,898.87"},{"v":223714.57,"d":"$223,714.57"},{"v":90620.8,"d":"$90,620.80"},{"v":34201.66,"d":"$34,201.66"},{"v":716115.24,"d":"$716,115.24"},{"v":6162038.32,"d":"$6,162,038.32"},{"v":163701.02999999997,"d":"$163,701.03"},{"v":139.49,"d":"$139.49"},{"v":174330.94,"d":"$174,330.94"},{"v":6162038.233,"d":"$6,162,038.23"}]
["17053425004","ROOKS CREEK C C SCH DIST 425",61,{"v":726900.84,"d":"$726,900.84"},{"v":787098.77,"d":"$787,098.77"},{"v":1.0828145005307739,"d":"108%"},4,{"v":46.3,"d":"$46.30"},{"v":31714.999999999993,"d":"$31,715.00"},{"v":31761.299999999992,"d":"$31,761.30"},{"v":0.9,"d":"0.90"},{"v":180120.33,"d":"$180,120.33"},{"v":36024.06,"d":"$36,024.06"},{"v":18827.91,"d":"$18,827.91"},{"v":8158.76,"d":"$8,158.76"},{"v":5901.56,"d":"$5,901.56"},{"v":10145.79,"d":"$10,145.79"},{"v":3853.26,"d":"$3,853.26"},{"v":6950.26,"d":"$6,950.26"},{"v":9420.37,"d":"$9,420.37"},{"v":5079.04,"d":"$5,079.04"},{"v":13975.41,"d":"$13,975.41"},{"v":12032.86,"d":"$12,032.86"},{"v":8339.99,"d":"$8,339.99"},{"v":318829.5999999999,"d":"$318,829.60"},{"v":5445,"d":"$5,445.00"},{"v":7625,"d":"$7,625.00"},{"v":19825,"d":"$19,825.00"},{"v":2074,"d":"$2,074.00"},{"v":17415.5,"d":"$17,415.50"},{"v":8926.5,"d":"$8,926.50"},{"v":83021,"d":"$83,021.00"},{"v":57157,"d":"$57,157.00"},{"v":144393.741,"d":"$144,393.74"},{"v":345882.74100000004,"d":"$345,882.74"},{"v":58064.68,"d":"$58,064.68"},{"v":287818.06100000005,"d":"$287,818.06"},{"v":340076.27100000007,"d":"$340,076.27"},{"v":5939.32,"d":"$5,939.32"},{"v":5939.32,"d":"$5,939.32"},{"v":5939.32,"d":"$5,939.32"},{"v":5939.32,"d":"$5,939.32"},{"v":0,"d":"$0.00"},{"v":0,"d":"$0.00"},{"v":0,"d":"$0.00"},{"v":0,"d":"$0.00"},{"v":0,"d":"$0.00"},{"v":28376.77,"d":"$28,376.77"},{"v":11494.67,"d":"$11,494.67"},{"v":4366.17,"d":"$4,366.17"},{"v":67994.89,"d":"$67,994.89"},{"v":726900.84,"d":"$726,900.84"},{"v":3492.7700000000004,"d":"$3,492.77"},{"v":0,"d":"$0.00"},{"v":6811.31,"d":"$6,811.31"},{"v":726900.761,"d":"$726,900.76"}]
["17053426004","CORNELL C C SCH DIST 426",98.46,{"v":1287854.8,"d":"$1,287,854.80"},{"v":1171009.29,"d":"$1,171,009.29"},{"v":0.9092712082138452,"d":"91%"},3,{"v":1463.53,"d":"$1,463.53"},{"v":261849.19999999998,"d":"$261,849.20"},{"v":263312.73,"d":"$263,312.73"},{"v":0.9,"d":"0.90"},{"v":301874.15,"d":"$301,874.15"},{"v":60374.82,"d":"$60,374.82"},{"v":30752.25,"d":"$30,752.25"},{"v":13179.53,"d":"$13,179.53"},{"v":10468.32,"d":"$10,468.32"},{"v":17586.03,"d":"$17,586.03"},{"v":6605.6,"d":"$6,605.60"},{"v":11494.67,"d":"$11,494.67"},{"v":15217.52,"d":"$15,217.52"},{"v":8554.17,"d":"$8,554.17"},{"v":22575.67,"d":"$22,575.67"},{"v":19437.7,"d":"$19,437.70"},{"v":13793.06,"d":"$13,793.06"},{"v":531913.4900000001,"d":"$531,913.49"},{"v":8712,"d":"$8,712.00"},{"v":12307.5,"d":"$12,307.50"},{"v":31999.5,"d":"$31,999.50"},{"v":3347.6400000000003,"d":"$3,347.64"},{"v":56220.66,"d":"$56,220.66"},{"v":16107.68,"d":"$16,107.68"},{"v":134004.06,"d":"$134,004.06"},{"v":92257.02,"d":"$92,257.02"},{"v":254038.13244000004,"d":"$254,038.13"},{"v":608994.1924400001,"d":"$608,994.19"},{"v":93722.1,"d":"$93,722.10"},{"v":515272.09244000004,"d":"$515,272.09"},{"v":599621.98244,"d":"$599,621.98"},{"v":21117.6,"d":"$21,117.60"},{"v":21117.6,"d":"$21,117.60"},{"v":21777.52,"d":"$21,777.52"},{"v":21777.52,"d":"$21,777.52"},{"v":0,"d":"$0.00"},{"v":0,"d":"$0.00"},{"v":0,"d":"$0.00"},{"v":0,"d":"$0.00"},{"v":0,"d":"$0.00"},{"v":45534.82,"d":"$45,534.82"},{"v":18444.94,"d":"$18,444.94"},{"v":6549.25,"d":"$6,549.25"},{"v":156319.25,"d":"$156,319.25"},{"v":1287854.8,"d":"$1,287,854.80"},{"v":32441.780000000006,"d":"$32,441.78"},{"v":0,"d":"$0.00"},{"v":33741.48,"d":"$33,741.48"},{"v":1287854.7224400002,"d":"$1,287,854.72"}]
["17053429004","PONTIAC C C SCHOOL DIST 429",1047.38,{"v":14295977.81,"d":"$14,295,977.81"},{"v":11634101.05,"d":"$11,634,101.05"},{"v":0.8138023998513747,"d":"81%"},2,{"v":72758.99,"d":"$72,758.99"},{"v":4596832.289999999,"d":"$4,596,832.29"},{"v":4669591.279999999,"d":"$4,669,591.28"},{"v":0.9,"d":"0.90"},{"v":3295511.84,"d":"$3,295,511.84"},{"v":659102.36,"d":"$659,102.36"},{"v":328233.23,"d":"$328,233.23"},{"v":144974.9,"d":"$144,974.90"},{"v":117690.57,"d":"$117,690.57"},{"v":198857.48,"d":"$198,857.48"},{"v":76514.91,"d":"$76,514.91"},{"v":124035.55,"d":"$124,035.55"},{"v":167392.76,"d":"$167,392.76"},{"v":93026.66,"d":"$93,026.66"},{"v":248332.39,"d":"$248,332.39"},{"v":213814.75,"d":"$213,814.75"},{"v":148836.81,"d":"$148,836.81"},{"v":5816324.21,"d":"$5,816,324.21"},{"v":92524.5,"d":"$92,524.50"},{"v":130922.49999999997,"d":"$130,922.50"},{"v":340398.49999999994,"d":"$340,398.50"},{"v":35610.92,"d":"$35,610.92"},{"v":598053.98,"d":"$598,053.98"},{"v":172484.09,"d":"$172,484.09"},{"v":1425484.18,"d":"$1,425,484.18"},{"v":981395.0599999998,"d":"$981,395.06"},{"v":2849598.39732,"d":"$2,849,598.40"},{"v":6626472.127319999,"d":"$6,626,472.13"},{"v":996980.07,"d":"$996,980.07"},{"v":5629492.057319999,"d":"$5,629,492.06"},{"v":6526774.117319999,"d":"$6,526,774.12"},{"v":281787.97,"d":"$281,787.97"},{"v":281787.97,"d":"$281,787.97"},{"v":293666.62,"d":"$293,666.62"},{"v":293666.62,"d":"$293,666.62"},{"v":7259.17,"d":"$7,259.17"},{"v":7259.17,"d":"$7,259.17"},{"v":7259.17,"d":"$7,259.17"},{"v":7259.17,"d":"$7,259.17"},{"v":9238.95,"d":"$9,238.95"},{"v":489664.35,"d":"$489,664.35"},{"v":198349.95,"d":"$198,349.95"},{"v":75680.28,"d":"$75,680.28"},{"v":1952879.3899999997,"d":"$1,952,879.39"},{"v":14295977.81,"d":"$14,295,977.81"},{"v":1064750.6300000001,"d":"$1,064,750.63"},{"v":810.73,"d":"$810.73"},{"v":524150.86,"d":"$524,150.86"},{"v":14295977.717319999,"d":"$14,295,977.72"}]
["17053435004","ODELL COMM CONS SCHOOL DIST 435",167,{"v":2245110.97,"d":"$2,245,110.97"},{"v":1629309.85,"d":"$1,629,309.85"},{"v":0.7257146180173001,"d":"73%"},1,{"v":56275.59,"d":"$56,275.59"},{"v":696286.48,"d":"$696,286.48"},{"v":752562.07,"d":"$752,562.07"},{"v":0.9,"d":"0.90"},{"v":525298.68,"d":"$525,298.68"},{"v":105059.73,"d":"$105,059.73"},{"v":52090.55,"d":"$52,090.55"},{"v":22593.49,"d":"$22,593.49"},{"v":18459.15,"d":"$18,459.15"},{"v":30437.37,"d":"$30,437.37"},{"v":11559.8,"d":"$11,559.80"},{"v":19514.21,"d":"$19,514.21"},{"v":26087.18,"d":"$26,087.18"},{"v":14702.49,"d":"$14,702.49"},{"v":38701.15,"d":"$38,701.15"},{"v":33321.78,"d":"$33,321.78"},{"v":23416.13,"d":"$23,416.13"},{"v":921241.7100000002,"d":"$921,241.71"},{"v":14625,"d":"$14,625.00"},{"v":20875,"d":"$20,875.00"},{"v":54275,"d":"$54,275.00"},{"v":5678,"d":"$5,678.00"},{"v":95357,"d":"$95,357.00"},{"v":26388.5,"d":"$26,388.50"},{"v":227287,"d":"$227,287.00"},{"v":156479,"d":"$156,479.00"},{"v":446162.81999999995,"d":"$446,162.82"},{"v":1047127.32,"d":"$1,047,127.32"},{"v":158963.96,"d":"$158,963.96"},{"v":888163.36,"d":"$888,163.36"},{"v":1031230.9199999999,"d":"$1,031,230.92"},{"v":42235.2,"d":"$42,235.20"},{"v":42235.2,"d":"$42,235.20"},{"v":43555.05,"d":"$43,555.05"},{"v":43555.05,"d":"$43,555.05"},{"v":0,"d":"$0.00"},{"v":0,"d":"$0.00"},{"v":0,"d":"$0.00"},{"v":0,"d":"$0.00"},{"v":0,"d":"$0.00"},{"v":77871.15,"d":"$77,871.15"},{"v":31543.52,"d":"$31,543.52"},{"v":11643.12,"d":"$11,643.12"},{"v":292638.29,"d":"$292,638.29"},{"v":2245110.97,"d":"$2,245,110.97"},{"v":108977.67000000001,"d":"$108,977.67"},{"v":0,"d":"$0.00"},{"v":92911.08000000002,"d":"$92,911.08"},{"v":2245110.92,"d":"$2,245,110.92"}]
["17053438004","SAUNEMIN C CONSOL SCH DIST 438",115.55,{"v":1446204.18,"d":"$1,446,204.18"},{"v":1260773.52,"d":"$1,260,773.52"},{"v":0.8717811339751487,"d":"87%"},2,{"v":3249.89,"d":"$3,249.89"},{"v":654442.8899999999,"d":"$654,442.89"},{"v":657692.7799999999,"d":"$657,692.78"},{"v":0.9,"d":"0.90"},{"v":340785.17,"d":"$340,785.17"},{"v":68157.02,"d":"$68,157.02"},{"v":35773.02,"d":"$35,773.02"},{"v":15689.92,"d":"$15,689.92"},{"v":11496.34,"d":"$11,496.34"},{"v":20967.96,"d":"$20,967.96"},{"v":7706.53,"d":"$7,706.53"},{"v":13365.9,"d":"$13,365.90"},{"v":18116.1,"d":"$18,116.10"},{"v":10158.08,"d":"$10,158.08"},{"v":26875.8,"d":"$26,875.80"},{"v":23140.12,"d":"$23,140.12"},{"v":16038.45,"d":"$16,038.45"},{"v":608270.41,"d":"$608,270.41"},{"v":10197,"d":"$10,197.00"},{"v":14443.75,"d":"$14,443.75"},{"v":37553.75,"d":"$37,553.75"},{"v":3928.7,"d":"$3,928.70"},{"v":65979.05,"d":"$65,979.05"},{"v":18810.02,"d":"$18,810.02"},{"v":157263.55,"d":"$157,263.55"},{"v":108270.35,"d":"$108,270.35"},{"v":282062.8512,"d":"$282,062.85"},{"v":698509.0211999998,"d":"$698,509.02"},{"v":109989.73,"d":"$109,989.73"},{"v":588519.2912000001,"d":"$588,519.29"},{"v":687510.0412000001,"d":"$687,510.04"},{"v":16498.12,"d":"$16,498.12"},{"v":16498.12,"d":"$16,498.12"},{"v":17158.05,"d":"$17,158.05"},{"v":17158.05,"d":"$17,158.05"},{"v":0,"d":"$0.00"},{"v":0,"d":"$0.00"},{"v":0,"d":"$0.00"},{"v":0,"d":"$0.00"},{"v":0,"d":"$0.00"},{"v":53453.92,"d":"$53,453.92"},{"v":21652.75,"d":"$21,652.75"},{"v":8004.64,"d":"$8,004.64"},{"v":150423.65000000002,"d":"$150,423.65"},{"v":1446204.18,"d":"$1,446,204.18"},{"v":60324.020000000004,"d":"$60,324.02"},{"v":0,"d":"$0.00"},{"v":40042.27000000001,"d":"$40,042.27"},{"v":1446204.1012,"d":"$1,446,204.10"}]
["17054021026","HARTSBURG EMDEN C U S DIST 21",188.36,{"v":2492083.13,"d":"$2,492,083.13"},{"v":2672440.31,"d":"$2,672,440.31"},{"v":1.072372056063796,"d":"107%"},4,{"v":158.74,"d":"$158.74"},{"v":332749.87999999995,"d":"$332,749.88"},{"v":332908.61999999994,"d":"$332,908.62"},{"v":0.9,"d":"0.90"},{"v":585766.86,"d":"$585,766.86"},{"v":144287.95,"d":"$144,287.95"},{"v":61382.45,"d":"$61,382.45"},{"v":23535.97,"d":"$23,535.97"},{"v":19869.83,"d":"$19,869.83"},{"v":41594.23,"d":"$41,594.23"},{"v":13211.2,"d":"$13,211.20"},{"v":22989.34,"d":"$22,989.34"},{"v":26087.18,"d":"$26,087.18"},{"v":16573.71,"d":"$16,573.71"},{"v":38701.15,"d":"$38,701.15"},{"v":33321.78,"d":"$33,321.78"},{"v":27586.13,"d":"$27,586.13"},{"v":1054907.7799999998,"d":"$1,054,907.78"},{"v":16855.199999999997,"d":"$16,855.20"},{"v":23545,"d":"$23,545.00"},{"v":61217,"d":"$61,217.00"},{"v":6404.24,"d":"$6,404.24"},{"v":53776.770000000004,"d":"$53,776.77"},{"v":75621.34,"d":"$75,621.34"},{"v":256357.96000000002,"d":"$256,357.96"},{"v":176493.32,"d":"$176,493.32"},{"v":495309.64703999995,"d":"$495,309.65"},{"v":1165580.47704,"d":"$1,165,580.48"},{"v":179296.11,"d":"$179,296.11"},{"v":986284.3670399998,"d":"$986,284.37"},{"v":1147650.8570399997,"d":"$1,147,650.86"},{"v":37615.72,"d":"$37,615.72"},{"v":37615.72,"d":"$37,615.72"},{"v":38935.57,"d":"$38,935.57"},{"v":38935.57,"d":"$38,935.57"},{"v":0,"d":"$0.00"},{"v":0,"d":"$0.00"},{"v":0,"d":"$0.00"},{"v":0,"d":"$0.00"},{"v":0,"d":"$0.00"},{"v":87770.02,"d":"$87,770.02"},{"v":35553.29,"d":"$35,553.29"},{"v":13098.51,"d":"$13,098.51"},{"v":289524.4,"d":"$289,524.40"},{"v":2492083.13,"d":"$2,492,083.13"},{"v":75371.95000000001,"d":"$75,371.95"},{"v":0,"d":"$0.00"},{"v":52525.19,"d":"$52,525.19"},{"v":2492083.0370399994,"d":"$2,492,083.04"}]
["17054023026","MT PULASKI COMM UNIT DIST 23",515.75,{"v":6594223.59,"d":"$6,594,223.59"},{"v":8182135.7700000005,"d":"$8,182,135.77"},{"v":1.2408035090602685,"d":"124%"},4,{"v":420.04,"d":"$420.04"},{"v":549494.1499999998,"d":"$549,494.15"},{"v":549914.1899999998,"d":"$549,914.19"},{"v":0.9,"d":"0.90"},{"v":1545035.57,"d":"$1,545,035.57"},{"v":380018.89,"d":"$380,018.89"},{"v":169397.75,"d":"$169,397.75"},{"v":67281.43,"d":"$67,281.43"},{"v":51484.77,"d":"$51,484.77"},{"v":119480.68,"d":"$119,480.68"},{"v":37431.75,"d":"$37,431.75"},{"v":63621.68,"d":"$63,621.68"},{"v":74638.33,"d":"$74,638.33"},{"v":45444.06,"d":"$45,444.06"},{"v":110728.29,"d":"$110,728.29"},{"v":95337.31,"d":"$95,337.31"},{"v":76343.02,"d":"$76,343.02"},{"v":2836243.5300000007,"d":"$2,836,243.53"},{"v":45990,"d":"$45,990.00"},{"v":64468.75,"d":"$64,468.75"},{"v":167618.75,"d":"$167,618.75"},{"v":17535.5,"d":"$17,535.50"},{"v":147246.62,"d":"$147,246.62"},{"v":206791,"d":"$206,791.00"},{"v":701935.75,"d":"$701,935.75"},{"v":483257.75,"d":"$483,257.75"},{"v":1299706.701,"d":"$1,299,706.70"},{"v":3134550.821,"d":"$3,134,550.82"},{"v":490932.11,"d":"$490,932.11"},{"v":2643618.711,"d":"$2,643,618.71"},{"v":3085457.6010000003,"d":"$3,085,457.60"},{"v":72591.75,"d":"$72,591.75"},{"v":72591.75,"d":"$72,591.75"},{"v":75891.37,"d":"$75,891.37"},{"v":75891.37,"d":"$75,891.37"},{"v":0,"d":"$0.00"},{"v":0,"d":"$0.00"},{"v":0,"d":"$0.00"},{"v":0,"d":"$0.00"},{"v":0,"d":"$0.00"},{"v":240872.62,"d":"$240,872.62"},{"v":97571.07,"d":"$97,571.07"},{"v":37112.44,"d":"$37,112.44"},{"v":672522.3699999999,"d":"$672,522.37"},{"v":6594223.59,"d":"$6,594,223.59"},{"v":168548.72,"d":"$168,548.72"},{"v":11.379999999999999,"d":"$11.38"},{"v":145352.86,"d":"$145,352.86"},{"v":6594223.501000001,"d":"$6,594,223.50"}]
["17054027002","LINCOLN ELEM SCHOOL DIST 27",1024.56,{"v":14548709.93,"d":"$14,548,709.93"},{"v":11104446.5,"d":"$11,104,446.50"},{"v":0.7632598734477621,"d":"76%"},1,{"v":184260.98,"d":"$184,260.98"},{"v":6937844,"d":"$6,937,844.00"},{"v":7122104.98,"d":"$7,122,104.98"},{"v":0.9,"d":"0.90"},{"v":3347602.39,"d":"$3,347,602.39"},{"v":669520.47,"d":"$669,520.47"},{"v":320702.06,"d":"$320,702.06"},{"v":141836.92,"d":"$141,836.92"},{"v":121754.56,"d":"$121,754.56"},{"v":194799.16,"d":"$194,799.16"},{"v":74863.51,"d":"$74,863.51"},{"v":121362.37,"d":"$121,362.37"},{"v":163769.54,"d":"$163,769.54"},{"v":91155.43,"d":"$91,155.43"},{"v":242957.23,"d":"$242,957.23"},{"v":209186.73,"d":"$209,186.73"},{"v":145629.12,"d":"$145,629.12"},{"v":5845139.49,"d":"$5,845,139.49"},{"v":90657.9,"d":"$90,657.90"},{"v":128070,"d":"$128,070.00"},{"v":332982,"d":"$332,982.00"},{"v":34835.04,"d":"$34,835.04"},{"v":585023.76,"d":"$585,023.76"},{"v":168795.43,"d":"$168,795.43"},{"v":1394426.1600000001,"d":"$1,394,426.16"},{"v":960012.72,"d":"$960,012.72"},{"v":2926852.6328399996,"d":"$2,926,852.63"},{"v":6621655.64284,"d":"$6,621,655.64"},{"v":975258.17,"d":"$975,258.17"},{"v":5646397.47284,"d":"$5,646,397.47"},{"v":6524129.82284,"d":"$6,524,129.82"},{"v":349100.32,"d":"$349,100.32"},{"v":349100.32,"d":"$349,100.32"},{"v":363618.67,"d":"$363,618.67"},{"v":363618.67,"d":"$363,618.67"},{"v":1319.85,"d":"$1,319.85"},{"v":1319.85,"d":"$1,319.85"},{"v":1319.85,"d":"$1,319.85"},{"v":1319.85,"d":"$1,319.85"},{"v":1319.85,"d":"$1,319.85"},{"v":479105.55,"d":"$479,105.55"},{"v":194072.86,"d":"$194,072.86"},{"v":74224.89,"d":"$74,224.89"},{"v":2179440.5300000007,"d":"$2,179,440.53"},{"v":14548709.93,"d":"$14,548,709.93"},{"v":1623132.84,"d":"$1,623,132.84"},{"v":254.88,"d":"$254.88"},{"v":579904.9199999999,"d":"$579,904.92"},{"v":14548709.842840001,"d":"$14,548,709.84"}]
["17054061004","CHESTER-EAST LINCOLN CCS DIST 61",279.98,{"v":3517573.49,"d":"$3,517,573.49"},{"v":3641679.84,"d":"$3,641,679.84"},{"v":1.035281807289263,"d":"104%"},4,{"v":224.06,"d":"$224.06"},{"v":321632,"d":"$321,632.00"},{"v":321856.06,"d":"$321,856.06"},{"v":0.9,"d":"0.90"},{"v":848511.14,"d":"$848,511.14"},{"v":169702.22,"d":"$169,702.22"},{"v":87235.98,"d":"$87,235.98"},{"v":38283.41,"d":"$38,283.41"},{"v":28933.06,"d":"$28,933.06"},{"v":52758.1,"d":"$52,758.10"},{"v":19816.81,"d":"$19,816.81"},{"v":33147.43,"d":"$33,147.43"},{"v":44203.28,"d":"$44,203.28"},{"v":24860.57,"d":"$24,860.57"},{"v":65576.95,"d":"$65,576.95"},{"v":56461.9,"d":"$56,461.90"},{"v":39775.35,"d":"$39,775.35"},{"v":1509266.2000000002,"d":"$1,509,266.20"},{"v":25003.800000000003,"d":"$25,003.80"},{"v":34997.5,"d":"$34,997.50"},{"v":90993.5,"d":"$90,993.50"},{"v":9519.32,"d":"$9,519.32"},{"v":79934.29000000001,"d":"$79,934.29"},{"v":46279.34,"d":"$46,279.34"},{"v":381052.77999999997,"d":"$381,052.78"},{"v":262341.26,"d":"$262,341.26"},{"v":706256.49972,"d":"$706,256.50"},{"v":1636378.28972,"d":"$1,636,378.29"},{"v":266507.36,"d":"$266,507.36"},{"v":1369870.9297200004,"d":"$1,369,870.93"},{"v":1609727.5497200005,"d":"$1,609,727.55"},{"v":46194.75,"d":"$46,194.75"},{"v":46194.75,"d":"$46,194.75"},{"v":48174.52,"d":"$48,174.52"},{"v":48174.52,"d":"$48,174.52"},{"v":1319.85,"d":"$1,319.85"},{"v":1319.85,"d":"$1,319.85"},{"v":1319.85,"d":"$1,319.85"},{"v":1319.85,"d":"$1,319.85"},{"v":1319.85,"d":"$1,319.85"},{"v":130665.15,"d":"$130,665.15"},{"v":52928.96,"d":"$52,928.96"},{"v":19647.76,"d":"$19,647.76"},{"v":398579.66000000003,"d":"$398,579.66"},{"v":3517573.49,"d":"$3,517,573.49"},{"v":96784.79,"d":"$96,784.79"},{"v":108.86000000000001,"d":"$108.86"},{"v":82558.61,"d":"$82,558.61"},{"v":3517573.409720001,"d":"$3,517,573.41"}]
["17054088002","NEW HOLLAND-MIDDLETOWN E DIST 88",82.88,{"v":1129786.47,"d":"$1,129,786.47"},{"v":1960781.0199999998,"d":"$1,960,781.02"},{"v":1.7355323966660707,"d":"174%"},4,{"v":71.96,"d":"$71.96"},{"v":160032.72,"d":"$160,032.72"},{"v":160104.68,"d":"$160,104.68"},{"v":0.9,"d":"0.90"},{"v":268611.51,"d":"$268,611.51"},{"v":53722.29,"d":"$53,722.29"},{"v":25731.47,"d":"$25,731.47"},{"v":11296.74,"d":"$11,296.74"},{"v":9592.37,"d":"$9,592.37"},{"v":15556.87,"d":"$15,556.87"},{"v":5504.67,"d":"$5,504.67"},{"v":9623.44,"d":"$9,623.44"},{"v":13043.59,"d":"$13,043.59"},{"v":7217.58,"d":"$7,217.58"},{"v":19350.57,"d":"$19,350.57"},{"v":16660.89,"d":"$16,660.89"},{"v":11547.68,"d":"$11,547.68"},{"v":467459.67000000004,"d":"$467,459.67"},{"v":7377.3,"d":"$7,377.30"},{"v":10360,"d":"$10,360.00"},{"v":26936,"d":"$26,936.00"},{"v":2817.9199999999996,"d":"$2,817.92"},{"v":23662.23,"d":"$23,662.23"},{"v":13821.169999999998,"d":"$13,821.17"},{"v":112799.68,"d":"$112,799.68"},{"v":77658.56,"d":"$77,658.56"},{"v":230913.26531999998,"d":"$230,913.27"},{"v":506346.12532,"d":"$506,346.13"},{"v":78891.81,"d":"$78,891.81"},{"v":427454.3153199999,"d":"$427,454.32"},{"v":498456.9353199999,"d":"$498,456.94"},{"v":25737.07,"d":"$25,737.07"},{"v":25737.07,"d":"$25,737.07"},{"v":26397,"d":"$26,397.00"},{"v":26397,"d":"$26,397.00"},{"v":0,"d":"$0.00"},{"v":0,"d":"$0.00"},{"v":0,"d":"$0.00"},{"v":0,"d":"$0.00"},{"v":0,"d":"$0.00"},{"v":38275.65,"d":"$38,275.65"},{"v":15504.44,"d":"$15,504.44"},{"v":5821.56,"d":"$5,821.56"},{"v":163869.79,"d":"$163,869.79"},{"v":1129786.47,"d":"$1,129,786.47"},{"v":60077.09,"d":"$60,077.09"},{"v":0,"d":"$0.00"},{"v":27359.239999999998,"d":"$27,359.24"},{"v":1129786.39532,"d":"$1,129,786.40"}]
["17054092004","WEST LINCOLN-BROADWELL E S D #92",189.46,{"v":2337483.3,"d":"$2,337,483.30"},{"v":2808777.0600000005,"d":"$2,808,777.06"},{"v":1.2016244394131075,"d":"120%"},4,{"v":148.89,"d":"$148.89"},{"v":152780.26,"d":"$152,780.26"},{"v":152929.15000000002,"d":"$152,929.15"},{"v":0.9,"d":"0.90"},{"v":562326.91,"d":"$562,326.91"},{"v":112465.37,"d":"$112,465.37"},{"v":58994.11,"d":"$58,994.11"},{"v":25731.47,"d":"$25,731.47"},{"v":19065.72,"d":"$19,065.72"},{"v":35848.45,"d":"$35,848.45"},{"v":13211.2,"d":"$13,211.20"},{"v":22187.39,"d":"$22,187.39"},{"v":29710.4,"d":"$29,710.40"},{"v":16841.03,"d":"$16,841.03"},{"v":44076.31,"d":"$44,076.31"},{"v":37949.8,"d":"$37,949.80"},{"v":26623.82,"d":"$26,623.82"},{"v":1005031.9799999999,"d":"$1,005,031.98"},{"v":16886.699999999997,"d":"$16,886.70"},{"v":23682.5,"d":"$23,682.50"},{"v":61574.499999999985,"d":"$61,574.50"},{"v":6441.639999999999,"d":"$6,441.64"},{"v":54090.83,"d":"$54,090.83"},{"v":31677.429999999993,"d":"$31,677.43"},{"v":257855.05999999997,"d":"$257,855.06"},{"v":177524.02,"d":"$177,524.02"},{"v":467257.0214400001,"d":"$467,257.02"},{"v":1096989.70144,"d":"$1,096,989.70"},{"v":180343.18,"d":"$180,343.18"},{"v":916646.52144,"d":"$916,646.52"},{"v":1078955.3814400001,"d":"$1,078,955.38"},{"v":28376.77,"d":"$28,376.77"},{"v":28376.77,"d":"$28,376.77"},{"v":29696.62,"d":"$29,696.62"},{"v":29696.62,"d":"$29,696.62"},{"v":0,"d":"$0.00"},{"v":0,"d":"$0.00"},{"v":0,"d":"$0.00"},{"v":0,"d":"$0.00"},{"v":0,"d":"$0.00"},{"v":88429.95,"d":"$88,429.95"},{"v":35820.61,"d":"$35,820.61"},{"v":13098.51,"d":"$13,098.51"},{"v":253495.84999999998,"d":"$253,495.85"},{"v":2337483.3,"d":"$2,337,483.30"},{"v":21735.43,"d":"$21,735.43"},{"v":0,"d":"$0.00"},{"v":60650.689999999995,"d":"$60,650.69"},{"v":2337483.21144,"d":"$2,337,483.21"}]
["17054404016","LINCOLN COMM H S DIST 404",795.66,{"v":11650806.75,"d":"$11,650,806.75"},{"v":9780908.08,"d":"$9,780,908.08"},{"v":0.8395047905159014,"d":"84%"},2,{"v":41482.71,"d":"$41,482.71"},{"v":2789717.5700000003,"d":"$2,789,717.57"},{"v":2831200.2800000003,"d":"$2,831,200.28"},{"v":0.9,"d":"0.90"},{"v":2526457.5,"d":"$2,526,457.50"},{"v":842068.27,"d":"$842,068.27"},{"v":286572.46,"d":"$286,572.46"},{"v":95283.54,"d":"$95,283.54"},{"v":84468.18,"d":"$84,468.18"},{"v":245158.92,"d":"$245,158.92"},{"v":58349.5,"d":"$58,349.50"},{"v":106125.24,"d":"$106,125.24"},{"v":95653,"d":"$95,653.00"},{"v":70839.27,"d":"$70,839.27"},{"v":141904.22,"d":"$141,904.22"},{"v":122179.86,"d":"$122,179.86"},{"v":127345.29,"d":"$127,345.29"},{"v":4802405.25,"d":"$4,802,405.25"},{"v":71609.40000000001,"d":"$71,609.40"},{"v":99457.50000000001,"d":"$99,457.50"},{"v":258589.50000000003,"d":"$258,589.50"},{"v":27052.440000000002,"d":"$27,052.44"},{"v":454321.86,"d":"$454,321.86"},{"v":683471.9400000001,"d":"$683,471.94"},{"v":1082893.26,"d":"$1,082,893.26"},{"v":745533.42,"d":"$745,533.42"},{"v":2225195.52324,"d":"$2,225,195.52"},{"v":5648124.84324,"d":"$5,648,124.84"},{"v":757372.84,"d":"$757,372.84"},{"v":4890752.003240001,"d":"$4,890,752.00"},{"v":5572387.553240001,"d":"$5,572,387.55"},{"v":167620.95,"d":"$167,620.95"},{"v":167620.95,"d":"$167,620.95"},{"v":174880.12,"d":"$174,880.12"},{"v":174880.12,"d":"$174,880.12"},{"v":1979.77,"d":"$1,979.77"},{"v":1979.77,"d":"$1,979.77"},{"v":1979.77,"d":"$1,979.77"},{"v":1979.77,"d":"$1,979.77"},{"v":2639.7,"d":"$2,639.70"},{"v":372197.7,"d":"$372,197.70"},{"v":150767.35,"d":"$150,767.35"},{"v":57487.9,"d":"$57,487.90"},{"v":1276013.87,"d":"$1,276,013.87"},{"v":11650806.75,"d":"$11,650,806.75"},{"v":438144.1699999999,"d":"$438,144.17"},{"v":124.03999999999999,"d":"$124.04"},{"v":315998.27999999997,"d":"$315,998.28"},{"v":11650806.673240002,"d":"$11,650,806.67"}]
["17064002026","LEROY COMMUNITY UNIT SCH DIST 2",734.29,{"v":9341443.77,"d":"$9,341,443.77"},{"v":7181472.449999999,"d":"$7,181,472.45"},{"v":0.7687754298819699,"d":"77%"},1,{"v":65014.79,"d":"$65,014.79"},{"v":1807489.1699999997,"d":"$1,807,489.17"},{"v":1872503.9599999997,"d":"$1,872,503.96"},{"v":0.90122,"d":"0.90"},{"v":2155581.29,"d":"$2,155,581.29"},{"v":519664.08,"d":"$519,664.08"},{"v":239670.38,"d":"$239,670.38"},{"v":97664.68,"d":"$97,664.68"},{"v":70787.38,"d":"$70,787.38"},{"v":165371.61,"d":"$165,371.61"},{"v":53467.67,"d":"$53,467.67"},{"v":90208.28,"d":"$90,208.28"},{"v":108843.94,"d":"$108,843.94"},{"v":65314,"d":"$65,314.00"},{"v":161473.38,"d":"$161,473.38"},{"v":139028.95,"d":"$139,028.95"},{"v":108245.68,"d":"$108,245.68"},{"v":3975321.32,"d":"$3,975,321.32"},{"v":65276.09999999999,"d":"$65,276.10"},{"v":91786.24999999999,"d":"$91,786.25"},{"v":238644.25,"d":"$238,644.25"},{"v":24965.859999999997,"d":"$24,965.86"},{"v":419279.58999999997,"d":"$419,279.59"},{"v":273485.18999999994,"d":"$273,485.19"},{"v":999368.69,"d":"$999,368.69"},{"v":688029.73,"d":"$688,029.73"},{"v":1790373.9585599997,"d":"$1,790,373.96"},{"v":4591209.618559999,"d":"$4,591,209.62"},{"v":698955.96,"d":"$698,955.96"},{"v":3892253.6585599994,"d":"$3,892,253.66"},{"v":4522166.748559999,"d":"$4,522,166.75"},{"v":75333.43,"d":"$75,333.43"},{"v":75333.43,"d":"$75,333.43"},{"v":78637.52,"d":"$78,637.52"},{"v":78637.52,"d":"$78,637.52"},{"v":0,"d":"$0.00"},{"v":0,"d":"$0.00"},{"v":0,"d":"$0.00"},{"v":0,"d":"$0.00"},{"v":0,"d":"$0.00"},{"v":343626.17,"d":"$343,626.17"},{"v":139193.78,"d":"$139,193.78"},{"v":53193.74,"d":"$53,193.74"},{"v":843955.5900000001,"d":"$843,955.59"},{"v":9341443.77,"d":"$9,341,443.77"},{"v":74314.11,"d":"$74,314.11"},{"v":0,"d":"$0.00"},{"v":250359.84,"d":"$250,359.84"},{"v":9341443.658559998,"d":"$9,341,443.66"}]
["17064003026","TRI VALLEY C U SCHOOL DISTRICT 3",1086.61,{"v":13235474.47,"d":"$13,235,474.47"},{"v":10552042.97,"d":"$10,552,042.97"},{"v":0.7972546049571277,"d":"80%"},2,{"v":53671.17,"d":"$53,671.17"},{"v":2022347.7000000002,"d":"$2,022,347.70"},{"v":2076018.87,"d":"$2,076,018.87"},{"v":0.90122,"d":"0.90"},{"v":3089650.29,"d":"$3,089,650.29"},{"v":740682.97,"d":"$740,682.97"},{"v":354712.84,"d":"$354,712.84"},{"v":145051.38,"d":"$145,051.38"},{"v":98189.22,"d":"$98,189.22"},{"v":244150.15,"d":"$244,150.15"},{"v":78823.48,"d":"$78,823.48"},{"v":133304.82,"d":"$133,304.82"},{"v":161814.66,"d":"$161,814.66"},{"v":96632.61,"d":"$96,632.61"},{"v":240057.1,"d":"$240,057.10"},{"v":206689.71,"d":"$206,689.71"},{"v":159959.5,"d":"$159,959.50"},{"v":5749718.73,"d":"$5,749,718.73"},{"v":97389.9,"d":"$97,389.90"},{"v":135826.25,"d":"$135,826.25"},{"v":353148.25,"d":"$353,148.25"},{"v":36944.74,"d":"$36,944.74"},{"v":620454.31,"d":"$620,454.31"},{"v":398651.61,"d":"$398,651.61"},{"v":1478876.21,"d":"$1,478,876.21"},{"v":1018153.5700000001,"d":"$1,018,153.57"},{"v":2505493.43304,"d":"$2,505,493.43"},{"v":6644938.27304,"d":"$6,644,938.27"},{"v":1034322.32,"d":"$1,034,322.32"},{"v":5610615.95304,"d":"$5,610,615.95"},{"v":6542767.91304,"d":"$6,542,767.91"},{"v":35023.43,"d":"$35,023.43"},{"v":35023.43,"d":"$35,023.43"},{"v":36345.07,"d":"$36,345.07"},{"v":36345.07,"d":"$36,345.07"},{"v":1321.63,"d":"$1,321.63"},{"v":1321.63,"d":"$1,321.63"},{"v":1321.63,"d":"$1,321.63"},{"v":1321.63,"d":"$1,321.63"},{"v":1321.63,"d":"$1,321.63"},{"v":508831.06,"d":"$508,831.06"},{"v":206113.88,"d":"$206,113.88"},{"v":78697.59,"d":"$78,697.59"},{"v":942987.6799999999,"d":"$942,987.68"},{"v":13235474.47,"d":"$13,235,474.47"},{"v":34674.24999999999,"d":"$34,674.25"},{"v":104.55,"d":"$104.55"},{"v":318652.43999999994,"d":"$318,652.44"},{"v":13235474.323040001,"d":"$13,235,474.32"}]
["17064004026","HEYWORTH C U SCH DIST 4",857.37,{"v":11041686.88,"d":"$11,041,686.88"},{"v":8009811.08,"d":"$8,009,811.08"},{"v":0.725415524552531,"d":"73%"},1,{"v":262451.68,"d":"$262,451.68"},{"v":3650095.5699999994,"d":"$3,650,095.57"},{"v":3912547.2499999995,"d":"$3,912,547.25"},{"v":0.90122,"d":"0.90"},{"v":2543951.53,"d":"$2,543,951.53"},{"v":615934.14,"d":"$615,934.14"},{"v":281338.85,"d":"$281,338.85"},{"v":113408.06,"d":"$113,408.06"},{"v":84114.06,"d":"$84,114.06"},{"v":194845.31,"d":"$194,845.31"},{"v":62287.09,"d":"$62,287.09"},{"v":105466.06,"d":"$105,466.06"},{"v":126258.97,"d":"$126,258.97"},{"v":76021.22,"d":"$76,021.22"},{"v":187309.13,"d":"$187,309.13"},{"v":161273.58,"d":"$161,273.58"},{"v":126554.3,"d":"$126,554.30"},{"v":4678762.3,"d":"$4,678,762.30"},{"v":76586.4,"d":"$76,586.40"},{"v":107171.25,"d":"$107,171.25"},{"v":278645.25,"d":"$278,645.25"},{"v":29150.579999999998,"d":"$29,150.58"},{"v":489558.27,"d":"$489,558.27"},{"v":325333.93999999994,"d":"$325,333.94"},{"v":1166880.57,"d":"$1,166,880.57"},{"v":803355.69,"d":"$803,355.69"},{"v":2122093.59468,"d":"$2,122,093.59"},{"v":5398775.544679999,"d":"$5,398,775.54"},{"v":816113.35,"d":"$816,113.35"},{"v":4582662.19468,"d":"$4,582,662.19"},{"v":5318159.86468,"d":"$5,318,159.86"},{"v":101766.21,"d":"$101,766.21"},{"v":101766.21,"d":"$101,766.21"},{"v":105731.13,"d":"$105,731.13"},{"v":105731.13,"d":"$105,731.13"},{"v":660.81,"d":"$660.81"},{"v":660.81,"d":"$660.81"},{"v":660.81,"d":"$660.81"},{"v":660.81,"d":"$660.81"},{"v":660.81,"d":"$660.81"},{"v":401778.29,"d":"$401,778.29"},{"v":162749.66,"d":"$162,749.66"},{"v":61937.92,"d":"$61,937.92"},{"v":1044764.6000000001,"d":"$1,044,764.60"},{"v":11041686.88,"d":"$11,041,686.88"},{"v":146262.22,"d":"$146,262.22"},{"v":400.12,"d":"$400.12"},{"v":314222.33,"d":"$314,222.33"},{"v":11041686.76468,"d":"$11,041,686.76"}]
["17064005026","MCLEAN COUNTY UNIT DIST NO 5",12286.28,{"v":164366403.83,"d":"$164,366,403.83"},{"v":127695112.28,"d":"$127,695,112.28"},{"v":0.7768930225672627,"d":"78%"},2,{"v":720219.11,"d":"$720,219.11"},{"v":22348991.599999998,"d":"$22,348,991.60"},{"v":23069210.709999997,"d":"$23,069,210.71"},{"v":0.90122,"d":"0.90"},{"v":37107673.38,"d":"$37,107,673.38"},{"v":8984851.92,"d":"$8,984,851.92"},{"v":4037667.77,"d":"$4,037,667.77"},{"v":1642516.59,"d":"$1,642,516.59"},{"v":1274098.42,"d":"$1,274,098.42"},{"v":2791413.7,"d":"$2,791,413.70"},{"v":902335.98,"d":"$902,335.98"},{"v":1517479.98,"d":"$1,517,479.98"},{"v":1827852.63,"d":"$1,827,852.63"},{"v":1095883.41,"d":"$1,095,883.41"},{"v":2711676.46,"d":"$2,711,676.46"},{"v":2334759.6,"d":"$2,334,759.60"},{"v":1820904.45,"d":"$1,820,904.45"},{"v":68049114.29,"d":"$68,049,114.29"},{"v":1094650.2,"d":"$1,094,650.20"},{"v":1535785,"d":"$1,535,785.00"},{"v":3993041,"d":"$3,993,041.00"},{"v":417733.51999999996,"d":"$417,733.52"},{"v":7015465.880000001,"d":"$7,015,465.88"},{"v":4650437.199999999,"d":"$4,650,437.20"},{"v":16721627.079999998,"d":"$16,721,627.08"},{"v":11512244.36,"d":"$11,512,244.36"},{"v":31929135.055919997,"d":"$31,929,135.06"},{"v":78870119.29591998,"d":"$78,870,119.30"},{"v":11695064.2,"d":"$11,695,064.20"},{"v":67175055.09591998,"d":"$67,175,055.10"},{"v":77714880.84591998,"d":"$77,714,880.85"},{"v":1876066.74,"d":"$1,876,066.74"},{"v":1876066.74,"d":"$1,876,066.74"},{"v":1954704.27,"d":"$1,954,704.27"},{"v":1954704.27,"d":"$1,954,704.27"},{"v":366754.85,"d":"$366,754.85"},{"v":366754.85,"d":"$366,754.85"},{"v":381953.7,"d":"$381,953.70"},{"v":381953.7,"d":"$381,953.70"},{"v":458608.77,"d":"$458,608.77"},{"v":5757720.86,"d":"$5,757,720.86"},{"v":2332299.01,"d":"$2,332,299.01"},{"v":894820.79,"d":"$894,820.79"},{"v":18602408.549999997,"d":"$18,602,408.55"},{"v":164366403.83,"d":"$164,366,403.83"},{"v":2356942.7199999997,"d":"$2,356,942.72"},{"v":260034.75,"d":"$260,034.75"},{"v":4603512.369999999,"d":"$4,603,512.37"},{"v":164366403.68592,"d":"$164,366,403.69"}]
["17064007026","LEXINGTON C U SCH DIST 7",479.95,{"v":6141902.99,"d":"$6,141,902.99"},{"v":5685378.760000001,"d":"$5,685,378.76"},{"v":0.9256705567080278,"d":"93%"},3,{"v":6979.72,"d":"$6,979.72"},{"v":906088.6400000001,"d":"$906,088.64"},{"v":913068.3600000001,"d":"$913,068.36"},{"v":0.90122,"d":"0.90"},{"v":1415992.27,"d":"$1,415,992.27"},{"v":343611.38,"d":"$343,611.38"},{"v":156554.36,"d":"$156,554.36"},{"v":63224.44,"d":"$63,224.44"},{"v":46618.32,"d":"$46,618.32"},{"v":108536.28,"d":"$108,536.28"},{"v":34175.21,"d":"$34,175.21"},{"v":58889.68,"d":"$58,889.68"},{"v":70385.75,"d":"$70,385.75"},{"v":42561.17,"d":"$42,561.17"},{"v":104419.45,"d":"$104,419.45"},{"v":89905.39,"d":"$89,905.39"},{"v":70664.84,"d":"$70,664.84"},{"v":2605538.54,"d":"$2,605,538.54"},{"v":42835.49999999999,"d":"$42,835.50"},{"v":59993.75,"d":"$59,993.75"},{"v":155983.75,"d":"$155,983.75"},{"v":16318.3,"d":"$16,318.30"},{"v":274051.44999999995,"d":"$274,051.45"},{"v":183421.16999999998,"d":"$183,421.17"},{"v":653211.95,"d":"$653,211.95"},{"v":449713.14999999997,"d":"$449,713.15"},{"v":1177955.0267999999,"d":"$1,177,955.03"},{"v":3013484.0467999997,"d":"$3,013,484.05"},{"v":456854.8,"d":"$456,854.80"},{"v":2556629.2468,"d":"$2,556,629.25"},{"v":2968355.9268,"d":"$2,968,355.93"},{"v":53526.38,"d":"$53,526.38"},{"v":53526.38,"d":"$53,526.38"},{"v":55508.84,"d":"$55,508.84"},{"v":55508.84,"d":"$55,508.84"},{"v":0,"d":"$0.00"},{"v":0,"d":"$0.00"},{"v":0,"d":"$0.00"},{"v":0,"d":"$0.00"},{"v":0,"d":"$0.00"},{"v":224678.65,"d":"$224,678.65"},{"v":91011.32,"d":"$91,011.32"},{"v":34248.02,"d":"$34,248.02"},{"v":568008.4299999999,"d":"$568,008.43"},{"v":6141902.99,"d":"$6,141,902.99"},{"v":92111.59000000001,"d":"$92,111.59"},{"v":3.01,"d":"$3.01"},{"v":164240.44999999998,"d":"$164,240.45"},{"v":6141902.8968,"d":"$6,141,902.90"}]
["17064016026","OLYMPIA C U SCHOOL DIST 16",1629.61,{"v":21667278.61,"d":"$21,667,278.61"},{"v":18235503.909999996,"d":"$18,235,503.91"},{"v":0.8416148718179979,"d":"84%"},2,{"v":40999.87,"d":"$40,999.87"},{"v":3140256.0199999996,"d":"$3,140,256.02"},{"v":3181255.8899999997,"d":"$3,181,255.89"},{"v":0.90122,"d":"0.90"},{"v":4966543.94,"d":"$4,966,543.94"},{"v":1202393.43,"d":"$1,202,393.43"},{"v":534616.33,"d":"$534,616.33"},{"v":216477.83,"d":"$216,477.83"},{"v":167667.02,"d":"$167,667.02"},{"v":369874,"d":"$369,874.00"},{"v":119062.04,"d":"$119,062.04"},{"v":201027.95,"d":"$201,027.95"},{"v":240907.93,"d":"$240,907.93"},{"v":144815.07,"d":"$144,815.07"},{"v":357394.43,"d":"$357,394.43"},{"v":307717.42,"d":"$307,717.42"},{"v":241224.06,"d":"$241,224.06"},{"v":9069721.450000001,"d":"$9,069,721.45"},{"v":145645.2,"d":"$145,645.20"},{"v":203701.25,"d":"$203,701.25"},{"v":529623.25,"d":"$529,623.25"},{"v":55406.740000000005,"d":"$55,406.74"},{"v":930507.3099999999,"d":"$930,507.31"},{"v":618576.56,"d":"$618,576.56"},{"v":2217899.21,"d":"$2,217,899.21"},{"v":1526944.5699999998,"d":"$1,526,944.57"},{"v":4201353.79104,"d":"$4,201,353.79"},{"v":10429657.88104,"d":"$10,429,657.88"},{"v":1551193.16,"d":"$1,551,193.16"},{"v":8878464.72104,"d":"$8,878,464.72"},{"v":10276431.011039998,"d":"$10,276,431.01"},{"v":270936.02,"d":"$270,936.02"},{"v":270936.02,"d":"$270,936.02"},{"v":282169.95,"d":"$282,169.95"},{"v":282169.95,"d":"$282,169.95"},{"v":4625.73,"d":"$4,625.73"},{"v":4625.73,"d":"$4,625.73"},{"v":4625.73,"d":"$4,625.73"},{"v":4625.73,"d":"$4,625.73"},{"v":5947.37,"d":"$5,947.37"},{"v":763246.59,"d":"$763,246.59"},{"v":309170.82,"d":"$309,170.82"},{"v":118046.39,"d":"$118,046.39"},{"v":2321126.03,"d":"$2,321,126.03"},{"v":21667278.61,"d":"$21,667,278.61"},{"v":436376.35,"d":"$436,376.35"},{"v":184.13,"d":"$184.13"},{"v":528358.81,"d":"$528,358.81"},{"v":21667278.49104,"d":"$21,667,278.49"}]
["17064019026","RIDGEVIEW COMM UNIT SCH DIST 19",523.96,{"v":6858374.03,"d":"$6,858,374.03"},{"v":7513316.7,"d":"$7,513,316.70"},{"v":1.0954953269003906,"d":"110%"},4,{"v":436.86,"d":"$436.86"},{"v":565357.5900000001,"d":"$565,357.59"},{"v":565794.4500000001,"d":"$565,794.45"},{"v":0.90122,"d":"0.90"},{"v":1591464.44,"d":"$1,591,464.44"},{"v":387184.83,"d":"$387,184.83"},{"v":171763.67,"d":"$171,763.67"},{"v":69163.6,"d":"$69,163.60"},{"v":54223.59,"d":"$54,223.59"},{"v":120618.52,"d":"$120,618.52"},{"v":37482.49,"d":"$37,482.49"},{"v":64510.96,"d":"$64,510.96"},{"v":76916.38,"d":"$76,916.38"},{"v":46308.7,"d":"$46,308.70"},{"v":114107.86,"d":"$114,107.86"},{"v":98247.12,"d":"$98,247.12"},{"v":77410.12,"d":"$77,410.12"},{"v":2909402.2800000003,"d":"$2,909,402.28"},{"v":46647,"d":"$46,647.00"},{"v":65495,"d":"$65,495.00"},{"v":170287,"d":"$170,287.00"},{"v":17814.64,"d":"$17,814.64"},{"v":149590.58000000002,"d":"$149,590.58"},{"v":202634.38,"d":"$202,634.38"},{"v":713109.5599999999,"d":"$713,109.56"},{"v":490950.52,"d":"$490,950.52"},{"v":1360209.3224400003,"d":"$1,360,209.32"},{"v":3216738.0024400004,"d":"$3,216,738.00"},{"v":498747.04,"d":"$498,747.04"},{"v":2717990.9624400004,"d":"$2,717,990.96"},{"v":3167471.76244,"d":"$3,167,471.76"},{"v":97801.29,"d":"$97,801.29"},{"v":97801.29,"d":"$97,801.29"},{"v":101766.21,"d":"$101,766.21"},{"v":101766.21,"d":"$101,766.21"},{"v":0,"d":"$0.00"},{"v":0,"d":"$0.00"},{"v":0,"d":"$0.00"},{"v":0,"d":"$0.00"},{"v":0,"d":"$0.00"},{"v":245164.05,"d":"$245,164.05"},{"v":99309.41,"d":"$99,309.41"},{"v":37891.43,"d":"$37,891.43"},{"v":781499.8900000001,"d":"$781,499.89"},{"v":6858374.03,"d":"$6,858,374.03"},{"v":146316.50999999998,"d":"$146,316.51"},{"v":10.91,"d":"$10.91"},{"v":141930.88000000006,"d":"$141,930.88"},{"v":6858373.9324400015,"d":"$6,858,373.93"}]
["17064087025","BLOOMINGTON SCH DIST 87",4839.13,{"v":70774913.37,"d":"$70,774,913.37"},{"v":60466602.91,"d":"$60,466,602.91"},{"v":0.8543507866112136,"d":"85%"},2,{"v":145215.01,"d":"$145,215.01"},{"v":9542333.220000003,"d":"$9,542,333.22"},{"v":9687548.230000002,"d":"$9,687,548.23"},{"v":0.90122,"d":"0.90"},{"v":15644076.64,"d":"$15,644,076.64"},{"v":3771196.59,"d":"$3,771,196.59"},{"v":1588575.32,"d":"$1,588,575.32"},{"v":646353.46,"d":"$646,353.46"},{"v":571873.45,"d":"$571,873.45"},{"v":1090307.87,"d":"$1,090,307.87"},{"v":354981.29,"d":"$354,981.29"},{"v":596927.21,"d":"$596,927.21"},{"v":719821.28,"d":"$719,821.28"},{"v":431233.06,"d":"$431,233.06"},{"v":1067877.35,"d":"$1,067,877.35"},{"v":919444.83,"d":"$919,444.83"},{"v":716284.51,"d":"$716,284.51"},{"v":28118952.860000003,"d":"$28,118,952.86"},{"v":431082,"d":"$431,082.00"},{"v":604891.25,"d":"$604,891.25"},{"v":1572717.25,"d":"$1,572,717.25"},{"v":164530.42,"d":"$164,530.42"},{"v":2763143.2299999995,"d":"$2,763,143.23"},{"v":1808162.72,"d":"$1,808,162.72"},{"v":6586055.93,"d":"$6,586,055.93"},{"v":4534264.8100000005,"d":"$4,534,264.81"},{"v":14071809.50232,"d":"$14,071,809.50"},{"v":32536657.11232,"d":"$32,536,657.11"},{"v":4606271.06,"d":"$4,606,271.06"},{"v":27930386.052320004,"d":"$27,930,386.05"},{"v":32081649.652320005,"d":"$32,081,649.65"},{"v":1404902.39,"d":"$1,404,902.39"},{"v":1404902.39,"d":"$1,404,902.39"},{"v":1463054.51,"d":"$1,463,054.51"},{"v":1463054.51,"d":"$1,463,054.51"},{"v":243842.41,"d":"$243,842.41"},{"v":243842.41,"d":"$243,842.41"},{"v":253754.71,"d":"$253,754.71"},{"v":253754.71,"d":"$253,754.71"},{"v":304637.81,"d":"$304,637.81"},{"v":2267932.74,"d":"$2,267,932.74"},{"v":918679.01,"d":"$918,679.01"},{"v":351953.13,"d":"$351,953.13"},{"v":10574310.73,"d":"$10,574,310.73"},{"v":70774913.37,"d":"$70,774,913.37"},{"v":4370930.07,"d":"$4,370,930.07"},{"v":186070.45999999996,"d":"$186,070.46"},{"v":1806634.78,"d":"$1,806,634.78"},{"v":70774913.24232002,"d":"$70,774,913.24"}]
[null,"SAFE SCH-DU PAGE ROE",59,{"v":920277.81,"d":"$920,277.81"},{"v":530280.91,"d":"$530,280.91"},{"v":0.5762182943430962,"d":"58%"},1,{"v":73949.63,"d":"$73,949.63"},{"v":438253.13,"d":"$438,253.13"},{"v":512202.76,"d":"$512,202.76"},{"v":1.05749,"d":"1.06"},{"v":203623.69,"d":"$203,623.69"},{"v":60397.12,"d":"$60,397.12"},{"v":23599.97,"d":"$23,599.97"},{"v":8038.63,"d":"$8,038.63"},{"v":7311.5,"d":"$7,311.50"},{"v":20056.75,"d":"$20,056.75"},{"v":4527.54,"d":"$4,527.54"},{"v":8794.67,"d":"$8,794.67"},{"v":8514.48,"d":"$8,514.48"},{"v":5967.81,"d":"$5,967.81"},{"v":12631.5,"d":"$12,631.50"},{"v":10875.75,"d":"$10,875.75"},{"v":10553.2,"d":"$10,553.20"},{"v":384892.61,"d":"$384,892.61"},{"v":5310,"d":"$5,310.00"},{"v":7375,"d":"$7,375.00"},{"v":19175,"d":"$19,175.00"},{"v":2006,"d":"$2,006.00"},{"v":33689,"d":"$33,689.00"},{"v":39701,"d":"$39,701.00"},{"v":80299,"d":"$80,299.00"},{"v":55283,"d":"$55,283.00"},{"v":160507.089,"d":"$160,507.09"},{"v":403345.08900000004,"d":"$403,345.09"},{"v":56160.92,"d":"$56,160.92"},{"v":347184.16900000005,"d":"$347,184.17"},{"v":406573.77900000004,"d":"$406,573.78"},{"v":9304.85,"d":"$9,304.85"},{"v":9304.85,"d":"$9,304.85"},{"v":10080.25,"d":"$10,080.25"},{"v":10080.25,"d":"$10,080.25"},{"v":7754.04,"d":"$7,754.04"},{"v":7754.04,"d":"$7,754.04"},{"v":7754.04,"d":"$7,754.04"},{"v":7754.04,"d":"$7,754.04"},{"v":10080.25,"d":"$10,080.25"},{"v":31791.58,"d":"$31,791.58"},{"v":12877.92,"d":"$12,877.92"},{"v":4275.16,"d":"$4,275.16"},{"v":128811.27,"d":"$128,811.27"},{"v":920277.81,"d":"$920,277.81"},{"v":21299.36,"d":"$21,299.36"},{"v":5931.540000000001,"d":"$5,931.54"},{"v":18488.839999999997,"d":"$18,488.84"},{"v":920277.659,"d":"$920,277.66"}]
[null,"ALOP-DU PAGE ROE",203,{"v":3140198.66,"d":"$3,140,198.66"},{"v":5682009.7700000005,"d":"$5,682,009.77"},{"v":1.8094427726429259,"d":"181%"},4,{"v":200.02,"d":"$200.02"},{"v":5367989.909999999,"d":"$5,367,989.91"},{"v":5368189.929999999,"d":"$5,368,189.93"},{"v":1.05749,"d":"1.06"},{"v":733658.27,"d":"$733,658.27"},{"v":244528.29,"d":"$244,528.29"},{"v":85664.14,"d":"$85,664.14"},{"v":27989.27,"d":"$27,989.27"},{"v":24485.47,"d":"$24,485.47"},{"v":73373.52,"d":"$73,373.52"},{"v":17463.4,"d":"$17,463.40"},{"v":31723.66,"d":"$31,723.66"},{"v":28097.8,"d":"$28,097.80"},{"v":21044.41,"d":"$21,044.41"},{"v":41683.97,"d":"$41,683.97"},{"v":35889.99,"d":"$35,889.99"},{"v":38066.9,"d":"$38,066.90"},{"v":1403669.0899999996,"d":"$1,403,669.09"},{"v":18270,"d":"$18,270.00"},{"v":25375,"d":"$25,375.00"},{"v":65975,"d":"$65,975.00"},{"v":6902,"d":"$6,902.00"},{"v":57956.5,"d":"$57,956.50"},{"v":174377,"d":"$174,377.00"},{"v":276283,"d":"$276,283.00"},{"v":190211,"d":"$190,211.00"},{"v":551074.8509999999,"d":"$551,074.85"},{"v":1366424.3509999998,"d":"$1,366,424.35"},{"v":193231.64,"d":"$193,231.64"},{"v":1173192.7109999997,"d":"$1,173,192.71"},{"v":1377533.2309999997,"d":"$1,377,533.23"},{"v":33342.39,"d":"$33,342.39"},{"v":33342.39,"d":"$33,342.39"},{"v":34117.79,"d":"$34,117.79"},{"v":34117.79,"d":"$34,117.79"},{"v":9304.85,"d":"$9,304.85"},{"v":9304.85,"d":"$9,304.85"},{"v":10080.25,"d":"$10,080.25"},{"v":10080.25,"d":"$10,080.25"},{"v":12406.47,"d":"$12,406.47"},{"v":110882.84,"d":"$110,882.84"},{"v":44915.68,"d":"$44,915.68"},{"v":17100.67,"d":"$17,100.67"},{"v":358996.22,"d":"$358,996.22"},{"v":3140198.66,"d":"$3,140,198.66"},{"v":18261.079999999998,"d":"$18,261.08"},{"v":11.34,"d":"$11.34"},{"v":14907.3,"d":"$14,907.30"},{"v":3140198.5409999993,"d":"$3,140,198.54"}]
["19022002002","BENSENVILLE SCHOOL DISTRICT 2",2007.31,{"v":34525277.8,"d":"$34,525,277.80"},{"v":31643019.03,"d":"$31,643,019.03"},{"v":0.9165174343651481,"d":"92%"},3,{"v":39234.89,"d":"$39,234.89"},{"v":4558223.499999999,"d":"$4,558,223.50"},{"v":4597458.389999999,"d":"$4,597,458.39"},{"v":1.05749,"d":"1.06"},{"v":7467847.29,"d":"$7,467,847.29"},{"v":1493569.45,"d":"$1,493,569.45"},{"v":739631.76,"d":"$739,631.76"},{"v":328151.67,"d":"$328,151.67"},{"v":313952.41,"d":"$313,952.41"},{"v":451415.74,"d":"$451,415.74"},{"v":172693.62,"d":"$172,693.62"},{"v":279859.25,"d":"$279,859.25"},{"v":378894.64,"d":"$378,894.64"},{"v":209815.91,"d":"$209,815.91"},{"v":562102.04,"d":"$562,102.04"},{"v":483971.13,"d":"$483,971.13"},{"v":335817.9,"d":"$335,817.90"},{"v":13217722.810000002,"d":"$13,217,722.81"},{"v":177838.2,"d":"$177,838.20"},{"v":250913.75,"d":"$250,913.75"},{"v":652375.7500000001,"d":"$652,375.75"},{"v":68248.54000000001,"d":"$68,248.54"},{"v":1146174.01,"d":"$1,146,174.01"},{"v":332639.34,"d":"$332,639.34"},{"v":2731948.91,"d":"$2,731,948.91"},{"v":1880849.4700000002,"d":"$1,880,849.47"},{"v":6382600.75584,"d":"$6,382,600.76"},{"v":13623588.72584,"d":"$13,623,588.73"},{"v":1910718.24,"d":"$1,910,718.24"},{"v":11712870.485839998,"d":"$11,712,870.49"},{"v":13733435.915839998,"d":"$13,733,435.92"},{"v":669949.52,"d":"$669,949.52"},{"v":669949.52,"d":"$669,949.52"},{"v":697864.08,"d":"$697,864.08"},{"v":697864.08,"d":"$697,864.08"},{"v":584655.02,"d":"$584,655.02"},{"v":584655.02,"d":"$584,655.02"},{"v":608692.56,"d":"$608,692.56"},{"v":608692.56,"d":"$608,692.56"},{"v":730431.07,"d":"$730,431.07"},{"v":1103400.66,"d":"$1,103,400.66"},{"v":446958.15,"d":"$446,958.15"},{"v":171006.7,"d":"$171,006.70"},{"v":7574118.940000002,"d":"$7,574,118.94"},{"v":34525277.8,"d":"$34,525,277.80"},{"v":1991804.2100000002,"d":"$1,991,804.21"},{"v":421833.38000000006,"d":"$421,833.38"},{"v":719573.61,"d":"$719,573.61"},{"v":34525277.66584001,"d":"$34,525,277.67"}]
["19022004002","ADDISON SCHOOL DIST 4",3515.96,{"v":61927101.72,"d":"$61,927,101.72"},{"v":47922458.089999996,"d":"$47,922,458.09"},{"v":0.7738527520095929,"d":"77%"},2,{"v":330665.09,"d":"$330,665.09"},{"v":12719083.89,"d":"$12,719,083.89"},{"v":13049748.98,"d":"$13,049,748.98"},{"v":1.05749,"d":"1.06"},{"v":13287562,"d":"$13,287,562.00"},{"v":2657512.39,"d":"$2,657,512.39"},{"v":1295646.06,"d":"$1,295,646.06"},{"v":575187.21,"d":"$575,187.21"},{"v":567019.86,"d":"$567,019.86"},{"v":800309.25,"d":"$800,309.25"},{"v":302698.94,"d":"$302,698.94"},{"v":490617.45,"d":"$490,617.45"},{"v":664129.94,"d":"$664,129.94"},{"v":367806.04,"d":"$367,806.04"},{"v":985257.51,"d":"$985,257.51"},{"v":848308.96,"d":"$848,308.96"},{"v":588717.81,"d":"$588,717.81"},{"v":23430773.42,"d":"$23,430,773.42"},{"v":312971.4,"d":"$312,971.40"},{"v":439495,"d":"$439,495.00"},{"v":1142687,"d":"$1,142,687.00"},{"v":119542.64,"d":"$119,542.64"},{"v":2007613.1600000001,"d":"$2,007,613.16"},{"v":592885.4199999999,"d":"$592,885.42"},{"v":4785221.5600000005,"d":"$4,785,221.56"},{"v":3294454.52,"d":"$3,294,454.52"},{"v":11494445.59344,"d":"$11,494,445.59"},{"v":24189316.29344,"d":"$24,189,316.29"},{"v":3346772,"d":"$3,346,772.00"},{"v":20842544.293440003,"d":"$20,842,544.29"},{"v":24381722.21344,"d":"$24,381,722.21"},{"v":1301128.82,"d":"$1,301,128.82"},{"v":1301128.82,"d":"$1,301,128.82"},{"v":1355407.14,"d":"$1,355,407.14"},{"v":1355407.14,"d":"$1,355,407.14"},{"v":1084790.95,"d":"$1,084,790.95"},{"v":1084790.95,"d":"$1,084,790.95"},{"v":1129764.41,"d":"$1,129,764.41"},{"v":1129764.41,"d":"$1,129,764.41"},{"v":1356182.54,"d":"$1,356,182.54"},{"v":1933083.52,"d":"$1,933,083.52"},{"v":783040.52,"d":"$783,040.52"},{"v":300116.77,"d":"$300,116.77"},{"v":14114605.989999998,"d":"$14,114,605.99"},{"v":61927101.72,"d":"$61,927,101.72"},{"v":5927766.609999999,"d":"$5,927,766.61"},{"v":888888.15,"d":"$888,888.15"},{"v":1768879.3,"d":"$1,768,879.30"},{"v":61927101.62344,"d":"$61,927,101.62"}]
["19022007002","WOOD DALE SCHOOL DISTRICT 7",890.96,{"v":15111822.28,"d":"$15,111,822.28"},{"v":16598715.56,"d":"$16,598,715.56"},{"v":1.0983927187899671,"d":"110%"},4,{"v":962.59,"d":"$962.59"},{"v":1695932.24,"d":"$1,695,932.24"},{"v":1696894.83,"d":"$1,696,894.83"},{"v":1.05749,"d":"1.06"},{"v":3345672.27,"d":"$3,345,672.27"},{"v":669134.45,"d":"$669,134.45"},{"v":328151.67,"d":"$328,151.67"},{"v":145271.64,"d":"$145,271.64"},{"v":139898.87,"d":"$139,898.87"},{"v":201070.74,"d":"$201,070.74"},{"v":76321.52,"d":"$76,321.52"},{"v":124067.79,"d":"$124,067.79"},{"v":167735.38,"d":"$167,735.38"},{"v":92972.32,"d":"$92,972.32"},{"v":248840.67,"d":"$248,840.67"},{"v":214252.39,"d":"$214,252.39"},{"v":148875.5,"d":"$148,875.50"},{"v":5902265.209999999,"d":"$5,902,265.21"},{"v":78986.7,"d":"$78,986.70"},{"v":111370,"d":"$111,370.00"},{"v":289561.99999999994,"d":"$289,562.00"},{"v":30292.639999999996,"d":"$30,292.64"},{"v":254369.08,"d":"$254,369.08"},{"v":148907.58999999997,"d":"$148,907.59"},{"v":1212596.5599999998,"d":"$1,212,596.56"},{"v":834829.52,"d":"$834,829.52"},{"v":2841810.17844,"d":"$2,841,810.18"},{"v":5802724.26844,"d":"$5,802,724.27"},{"v":848087,"d":"$848,087.00"},{"v":4954637.26844,"d":"$4,954,637.27"},{"v":5851480.78844,"d":"$5,851,480.79"},{"v":319466.67,"d":"$319,466.67"},{"v":319466.67,"d":"$319,466.67"},{"v":332648.54,"d":"$332,648.54"},{"v":332648.54,"d":"$332,648.54"},{"v":241926.21,"d":"$241,926.21"},{"v":241926.21,"d":"$241,926.21"},{"v":252006.47,"d":"$252,006.47"},{"v":252006.47,"d":"$252,006.47"},{"v":302407.77,"d":"$302,407.77"},{"v":489280.26,"d":"$489,280.26"},{"v":198194.37,"d":"$198,194.37"},{"v":76097.98,"d":"$76,097.98"},{"v":3358076.1599999997,"d":"$3,358,076.16"},{"v":15111822.28,"d":"$15,111,822.28"},{"v":907994.8099999999,"d":"$907,994.81"},{"v":114853.43000000001,"d":"$114,853.43"},{"v":362331.92999999993,"d":"$362,331.93"},{"v":15111822.15844,"d":"$15,111,822.16"}]
["19022010002","ITASCA SCHOOL DIST 10",990.8,{"v":13612458.35,"d":"$13,612,458.35"},{"v":13389275.18,"d":"$13,389,275.18"},{"v":0.9836044919836247,"d":"98%"},3,{"v":15469.34,"d":"$15,469.34"},{"v":698144.6799999998,"d":"$698,144.68"},{"v":713614.0199999998,"d":"$713,614.02"},{"v":1.05749,"d":"1.06"},{"v":3351571.63,"d":"$3,351,571.63"},{"v":670314.32,"d":"$670,314.32"},{"v":364285.23,"d":"$364,285.23"},{"v":161494.87,"d":"$161,494.87"},{"v":117598.26,"d":"$117,598.26"},{"v":224913.12,"d":"$224,913.12"},{"v":84729.83,"d":"$84,729.83"},{"v":137888,"d":"$137,888.00"},{"v":186467.25,"d":"$186,467.25"},{"v":103337.47,"d":"$103,337.47"},{"v":276629.99,"d":"$276,629.99"},{"v":238179.05,"d":"$238,179.05"},{"v":165459.1,"d":"$165,459.10"},{"v":6082868.119999999,"d":"$6,082,868.12"},{"v":88332.3,"d":"$88,332.30"},{"v":123850,"d":"$123,850.00"},{"v":322010,"d":"$322,010.00"},{"v":33687.2,"d":"$33,687.20"},{"v":282873.4,"d":"$282,873.40"},{"v":167239.43,"d":"$167,239.43"},{"v":1348478.8,"d":"$1,348,478.80"},{"v":928379.6,"d":"$928,379.60"},{"v":2462588.7641999996,"d":"$2,462,588.76"},{"v":5757439.4942,"d":"$5,757,439.49"},{"v":943122.7,"d":"$943,122.70"},{"v":4814316.794199999,"d":"$4,814,316.79"},{"v":5811659.6142,"d":"$5,811,659.61"},{"v":100802.59,"d":"$100,802.59"},{"v":100802.59,"d":"$100,802.59"},{"v":105455.01,"d":"$105,455.01"},{"v":105455.01,"d":"$105,455.01"},{"v":85294.49,"d":"$85,294.49"},{"v":85294.49,"d":"$85,294.49"},{"v":89171.52,"d":"$89,171.52"},{"v":89171.52,"d":"$89,171.52"},{"v":107005.82,"d":"$107,005.82"},{"v":544333.98,"d":"$544,333.98"},{"v":220495.16,"d":"$220,495.16"},{"v":84648.32,"d":"$84,648.32"},{"v":1717930.5,"d":"$1,717,930.50"},{"v":13612458.35,"d":"$13,612,458.35"},{"v":99644.41,"d":"$99,644.41"},{"v":21564.32,"d":"$21,564.32"},{"v":300542.96,"d":"$300,542.96"},{"v":13612458.234199999,"d":"$13,612,458.23"}]
["19022011002","MEDINAH SCHOOL DISTRICT 11",629,{"v":9712067.26,"d":"$9,712,067.26"},{"v":10698939.819999998,"d":"$10,698,939.82"},{"v":1.1016130277499745,"d":"110%"},4,{"v":618.64,"d":"$618.64"},{"v":742164.2699999999,"d":"$742,164.27"},{"v":742782.9099999999,"d":"$742,782.91"},{"v":1.05749,"d":"1.06"},{"v":2241755.28,"d":"$2,241,755.28"},{"v":448351.05,"d":"$448,351.05"},{"v":230812.3,"d":"$230,812.30"},{"v":102501.31,"d":"$102,501.31"},{"v":87340.09,"d":"$87,340.09"},{"v":142259.54,"d":"$142,259.54"},{"v":53683.78,"d":"$53,683.78"},{"v":87632.69,"d":"$87,632.69"},{"v":118351.36,"d":"$118,351.36"},{"v":65645.99,"d":"$65,645.99"},{"v":175577.94,"d":"$175,577.94"},{"v":151173,"d":"$151,173.00"},{"v":105155.1,"d":"$105,155.10"},{"v":4010239.4299999992,"d":"$4,010,239.43"},{"v":55800,"d":"$55,800.00"},{"v":78625,"d":"$78,625.00"},{"v":204425,"d":"$204,425.00"},{"v":21386,"d":"$21,386.00"},{"v":179579.5,"d":"$179,579.50"},{"v":105214,"d":"$105,214.00"},{"v":856069,"d":"$856,069.00"},{"v":589373,"d":"$589,373.00"},{"v":1797358.695,"d":"$1,797,358.70"},{"v":3887830.1950000003,"d":"$3,887,830.20"},{"v":598732.52,"d":"$598,732.52"},{"v":3289097.6750000003,"d":"$3,289,097.68"},{"v":3922251.325,"d":"$3,922,251.33"},{"v":153530.09,"d":"$153,530.09"},{"v":153530.09,"d":"$153,530.09"},{"v":159733.33,"d":"$159,733.33"},{"v":159733.33,"d":"$159,733.33"},{"v":114759.87,"d":"$114,759.87"},{"v":114759.87,"d":"$114,759.87"},{"v":120187.7,"d":"$120,187.70"},{"v":120187.7,"d":"$120,187.70"},{"v":144225.24,"d":"$144,225.24"},{"v":345830.42,"d":"$345,830.42"},{"v":140086.67,"d":"$140,086.67"},{"v":53012.07,"d":"$53,012.07"},{"v":1779576.38,"d":"$1,779,576.38"},{"v":9712067.26,"d":"$9,712,067.26"},{"v":301519.99999999994,"d":"$301,520.00"},{"v":16839.700000000004,"d":"$16,839.70"},{"v":211782.04999999996,"d":"$211,782.05"},{"v":9712067.134999998,"d":"$9,712,067.14"}]
["19022012002","ROSELLE SCHOOL DISTRICT 12",695,{"v":10015451.07,"d":"$10,015,451.07"},{"v":10247417.2,"d":"$10,247,417.20"},{"v":1.0231608270440085,"d":"102%"},4,{"v":637.96,"d":"$637.96"},{"v":591848.51,"d":"$591,848.51"},{"v":592486.47,"d":"$592,486.47"},{"v":1.05749,"d":"1.06"},{"v":2430534.67,"d":"$2,430,534.67"},{"v":486106.92,"d":"$486,106.92"},{"v":255147.14,"d":"$255,147.14"},{"v":112825.18,"d":"$112,825.18"},{"v":88213.45,"d":"$88,213.45"},{"v":155770.22,"d":"$155,770.22"},{"v":59504.92,"d":"$59,504.92"},{"v":96741.46,"d":"$96,741.46"},{"v":130271.64,"d":"$130,271.64"},{"v":72556.1,"d":"$72,556.10"},{"v":193262.05,"d":"$193,262.05"},{"v":166399.06,"d":"$166,399.06"},{"v":116085.2,"d":"$116,085.20"},{"v":4363418.010000001,"d":"$4,363,418.01"},{"v":62055,"d":"$62,055.00"},{"v":86875,"d":"$86,875.00"},{"v":225875,"d":"$225,875.00"},{"v":23630,"d":"$23,630.00"},{"v":198422.5,"d":"$198,422.50"},{"v":116133.5,"d":"$116,133.50"},{"v":945895,"d":"$945,895.00"},{"v":651215,"d":"$651,215.00"},{"v":1829558.94,"d":"$1,829,558.94"},{"v":4139659.94,"d":"$4,139,659.94"},{"v":661556.6,"d":"$661,556.60"},{"v":3478103.34,"d":"$3,478,103.34"},{"v":4177692.82,"d":"$4,177,692.82"},{"v":114759.87,"d":"$114,759.87"},{"v":114759.87,"d":"$114,759.87"},{"v":120187.7,"d":"$120,187.70"},{"v":120187.7,"d":"$120,187.70"},{"v":76765.04,"d":"$76,765.04"},{"v":76765.04,"d":"$76,765.04"},{"v":79866.66,"d":"$79,866.66"},{"v":79866.66,"d":"$79,866.66"},{"v":96150.16,"d":"$96,150.16"},{"v":381499.03,"d":"$381,499.03"},{"v":154535.07,"d":"$154,535.07"},{"v":58997.31,"d":"$58,997.31"},{"v":1474340.1100000003,"d":"$1,474,340.11"},{"v":10015451.07,"d":"$10,015,451.07"},{"v":105337.68999999999,"d":"$105,337.69"},{"v":26705.090000000004,"d":"$26,705.09"},{"v":190702.94,"d":"$190,702.94"},{"v":10015450.940000001,"d":"$10,015,450.94"}]
["19022013002","BLOOMINGDALE SCHOOL DISTRICT 13",1311.7,{"v":17615646.4,"d":"$17,615,646.40"},{"v":18172640.74,"d":"$18,172,640.74"},{"v":1.0316192961275608,"d":"103%"},4,{"v":1122.08,"d":"$1,122.08"},{"v":921957.1299999999,"d":"$921,957.13"},{"v":923079.2099999998,"d":"$923,079.21"},{"v":1.05749,"d":"1.06"},{"v":4413455.71,"d":"$4,413,455.71"},{"v":882691.14,"d":"$882,691.14"},{"v":482272.35,"d":"$482,272.35"},{"v":213851.65,"d":"$213,851.65"},{"v":150689.04,"d":"$150,689.04"},{"v":300414,"d":"$300,414.00"},{"v":112541.91,"d":"$112,541.91"},{"v":182803.68,"d":"$182,803.68"},{"v":246920.1,"d":"$246,920.10"},{"v":136945.71,"d":"$136,945.71"},{"v":366313.69,"d":"$366,313.69"},{"v":315396.92,"d":"$315,396.92"},{"v":219355.8,"d":"$219,355.80"},{"v":8023651.699999999,"d":"$8,023,651.70"},{"v":116756.1,"d":"$116,756.10"},{"v":163962.5,"d":"$163,962.50"},{"v":426302.5,"d":"$426,302.50"},{"v":44597.8,"d":"$44,597.80"},{"v":374490.34,"d":"$374,490.34"},{"v":223416.01,"d":"$223,416.01"},{"v":1785223.7000000002,"d":"$1,785,223.70"},{"v":1229062.9,"d":"$1,229,062.90"},{"v":3171233.6387999994,"d":"$3,171,233.64"},{"v":7535045.488799999,"d":"$7,535,045.49"},{"v":1248580.99,"d":"$1,248,580.99"},{"v":6286464.498799998,"d":"$6,286,464.50"},{"v":7606826.408799998,"d":"$7,606,826.41"},{"v":151979.29,"d":"$151,979.29"},{"v":151979.29,"d":"$151,979.29"},{"v":158182.52,"d":"$158,182.52"},{"v":158182.52,"d":"$158,182.52"},{"v":44973.46,"d":"$44,973.46"},{"v":44973.46,"d":"$44,973.46"},{"v":46524.27,"d":"$46,524.27"},{"v":46524.27,"d":"$46,524.27"},{"v":56604.53,"d":"$56,604.53"},{"v":721126.22,"d":"$721,126.22"},{"v":292108.98,"d":"$292,108.98"},{"v":112009.39,"d":"$112,009.39"},{"v":1985168.2,"d":"$1,985,168.20"},{"v":17615646.4,"d":"$17,615,646.40"},{"v":148963.68,"d":"$148,963.68"},{"v":6054.379999999999,"d":"$6,054.38"},{"v":364844.79,"d":"$364,844.79"},{"v":17615646.308799997,"d":"$17,615,646.31"}]
["19022015002","MARQUARDT SCHOOL DISTRICT 15",2370.14,{"v":40621294.24,"d":"$40,621,294.24"},{"v":36129586.15,"d":"$36,129,586.15"},{"v":0.8894247912569709,"d":"89%"},2,{"v":49179.6,"d":"$49,179.60"},{"v":12704312.610000001,"d":"$12,704,312.61"},{"v":12753492.21,"d":"$12,753,492.21"},{"v":1.05749,"d":"1.06"},{"v":9100494.07,"d":"$9,100,494.07"},{"v":1820098.8,"d":"$1,820,098.80"},{"v":873104.69,"d":"$873,104.69"},{"v":387882.65,"d":"$387,882.65"},{"v":369711.21,"d":"$369,711.21"},{"v":534864.08,"d":"$534,864.08"},{"v":203739.67,"d":"$203,739.67"},{"v":330742.75,"d":"$330,742.75"},{"v":447861.98,"d":"$447,861.98"},{"v":247821.49,"d":"$247,821.49"},{"v":664417.24,"d":"$664,417.24"},{"v":572064.76,"d":"$572,064.76"},{"v":396875.71,"d":"$396,875.71"},{"v":15949679.100000003,"d":"$15,949,679.10"},{"v":211017.60000000003,"d":"$211,017.60"},{"v":296267.5,"d":"$296,267.50"},{"v":770295.5,"d":"$770,295.50"},{"v":80584.76000000001,"d":"$80,584.76"},{"v":1353349.94,"d":"$1,353,349.94"},{"v":395792.92000000004,"d":"$395,792.92"},{"v":3225760.54,"d":"$3,225,760.54"},{"v":2220821.18,"d":"$2,220,821.18"},{"v":7503653.496960001,"d":"$7,503,653.50"},{"v":16057543.43696,"d":"$16,057,543.44"},{"v":2256088.86,"d":"$2,256,088.86"},{"v":13801454.576960001,"d":"$13,801,454.58"},{"v":16187245.976960002,"d":"$16,187,245.98"},{"v":949870.56,"d":"$949,870.56"},{"v":949870.56,"d":"$949,870.56"},{"v":989416.19,"d":"$989,416.19"},{"v":989416.19,"d":"$989,416.19"},{"v":482301.62,"d":"$482,301.62"},{"v":482301.62,"d":"$482,301.62"},{"v":502462.14,"d":"$502,462.14"},{"v":502462.14,"d":"$502,462.14"},{"v":603264.73,"d":"$603,264.73"},{"v":1302679.63,"d":"$1,302,679.63"},{"v":527680.74,"d":"$527,680.74"},{"v":202642.94,"d":"$202,642.94"},{"v":8484369.06,"d":"$8,484,369.06"},{"v":40621294.24,"d":"$40,621,294.24"},{"v":4780114.4399999995,"d":"$4,780,114.44"},{"v":394226.48,"d":"$394,226.48"},{"v":639888.62,"d":"$639,888.62"},{"v":40621294.13696001,"d":"$40,621,294.14"}]
["19022016002","QUEEN BEE SCHOOL DISTRICT 16",1654.64,{"v":27803239,"d":"$27,803,239.00"},{"v":22989747.72,"d":"$22,989,747.72"},{"v":0.8268730028181248,"d":"83%"},2,{"v":114978.04,"d":"$114,978.04"},{"v":9579081.03,"d":"$9,579,081.03"},{"v":9694059.069999998,"d":"$9,694,059.07"},{"v":1.05749,"d":"1.06"},{"v":6093297.34,"d":"$6,093,297.34"},{"v":1218659.46,"d":"$1,218,659.46"},{"v":609108.5,"d":"$609,108.50"},{"v":270632.95,"d":"$270,632.95"},{"v":250845.26,"d":"$250,845.26"},{"v":375914.87,"d":"$375,914.87"},{"v":141647.58,"d":"$141,647.58"},{"v":230860.32,"d":"$230,860.32"},{"v":312481.65,"d":"$312,481.65"},{"v":172752.62,"d":"$172,752.62"},{"v":463576.29,"d":"$463,576.29"},{"v":399140.24,"d":"$399,140.24"},{"v":277021.5,"d":"$277,021.50"},{"v":10815938.579999998,"d":"$10,815,938.58"},{"v":147042.9,"d":"$147,042.90"},{"v":206830,"d":"$206,830.00"},{"v":537758,"d":"$537,758.00"},{"v":56257.76,"d":"$56,257.76"},{"v":944799.44,"d":"$944,799.44"},{"v":278481.17000000004,"d":"$278,481.17"},{"v":2251965.04,"d":"$2,251,965.04"},{"v":1550397.6800000002,"d":"$1,550,397.68"},{"v":5116917.35496,"d":"$5,116,917.35"},{"v":11090449.34496,"d":"$11,090,449.34"},{"v":1575018.72,"d":"$1,575,018.72"},{"v":9515430.62496,"d":"$9,515,430.62"},{"v":11180997.16496,"d":"$11,180,997.16"},{"v":520296.44,"d":"$520,296.44"},{"v":520296.44,"d":"$520,296.44"},{"v":542007.77,"d":"$542,007.77"},{"v":542007.77,"d":"$542,007.77"},{"v":424146.28,"d":"$424,146.28"},{"v":424146.28,"d":"$424,146.28"},{"v":441980.58,"d":"$441,980.58"},{"v":441980.58,"d":"$441,980.58"},{"v":530376.7,"d":"$530,376.70"},{"v":909549.52,"d":"$909,549.52"},{"v":368434.23,"d":"$368,434.23"},{"v":141080.53,"d":"$141,080.53"},{"v":5806303.120000002,"d":"$5,806,303.12"},{"v":27803239,"d":"$27,803,239.00"},{"v":1708527.0599999998,"d":"$1,708,527.06"},{"v":539272.4700000001,"d":"$539,272.47"},{"v":636710.81,"d":"$636,710.81"},{"v":27803238.86496,"d":"$27,803,238.86"}]
["19022020002","KEENEYVILLE SCHOOL DISTRICT 20",1312.39,{"v":21424794.32,"d":"$21,424,794.32"},{"v":16034445.3,"d":"$16,034,445.30"},{"v":0.7484060318390959,"d":"75%"},1,{"v":286379.51,"d":"$286,379.51"},{"v":2955615.24,"d":"$2,955,615.24"},{"v":3241994.75,"d":"$3,241,994.75"},{"v":1.05749,"d":"1.06"},{"v":4914900.97,"d":"$4,914,900.97"},{"v":982980.19,"d":"$982,980.19"},{"v":483009.77,"d":"$483,009.77"},{"v":214589.07,"d":"$214,589.07"},{"v":192028.09,"d":"$192,028.09"},{"v":295645.52,"d":"$295,645.52"},{"v":112541.91,"d":"$112,541.91"},{"v":182803.68,"d":"$182,803.68"},{"v":247771.55,"d":"$247,771.55"},{"v":137259.81,"d":"$137,259.81"},{"v":367576.84,"d":"$367,576.84"},{"v":316484.49,"d":"$316,484.49"},{"v":219355.8,"d":"$219,355.80"},{"v":8666947.69,"d":"$8,666,947.69"},{"v":116953.20000000001,"d":"$116,953.20"},{"v":164048.75,"d":"$164,048.75"},{"v":426526.75,"d":"$426,526.75"},{"v":44621.26,"d":"$44,621.26"},{"v":749374.69,"d":"$749,374.69"},{"v":219432.84000000003,"d":"$219,432.84"},{"v":1786162.79,"d":"$1,786,162.79"},{"v":1229709.4300000002,"d":"$1,229,709.43"},{"v":3921614.37096,"d":"$3,921,614.37"},{"v":8658444.080960002,"d":"$8,658,444.08"},{"v":1249237.79,"d":"$1,249,237.79"},{"v":7409206.29096,"d":"$7,409,206.29"},{"v":8730262.76096,"d":"$8,730,262.76"},{"v":444306.8,"d":"$444,306.80"},{"v":444306.8,"d":"$444,306.80"},{"v":462916.51,"d":"$462,916.51"},{"v":462916.51,"d":"$462,916.51"},{"v":203931.39,"d":"$203,931.39"},{"v":203931.39,"d":"$203,931.39"},{"v":212460.84,"d":"$212,460.84"},{"v":212460.84,"d":"$212,460.84"},{"v":255108.09,"d":"$255,108.09"},{"v":721126.22,"d":"$721,126.22"},{"v":292108.98,"d":"$292,108.98"},{"v":112009.39,"d":"$112,009.39"},{"v":4027583.76,"d":"$4,027,583.76"},{"v":21424794.32,"d":"$21,424,794.32"},{"v":1173833.3099999998,"d":"$1,173,833.31"},{"v":159773.30000000002,"d":"$159,773.30"},{"v":579932.7800000001,"d":"$579,932.78"},{"v":21424794.21096,"d":"$21,424,794.21"}]
["19022025002","BENJAMIN SCHOOL DISTRICT 25",593.5,{"v":8285487.39,"d":"$8,285,487.39"},{"v":10664062.979999999,"d":"$10,664,062.98"},{"v":1.2870773290743007,"d":"129%"},4,{"v":527.77,"d":"$527.77"},{"v":570081.6699999999,"d":"$570,081.67"},{"v":570609.44,"d":"$570,609.44"},{"v":1.05749,"d":"1.06"},{"v":2023479.11,"d":"$2,023,479.11"},{"v":404695.81,"d":"$404,695.81"},{"v":218276.17,"d":"$218,276.17"},{"v":96601.95,"d":"$96,601.95"},{"v":72165.17,"d":"$72,165.17"},{"v":130338.34,"d":"$130,338.34"},{"v":50449.82,"d":"$50,449.82"},{"v":82607.16,"d":"$82,607.16"},{"v":111539.77,"d":"$111,539.77"},{"v":61876.84,"d":"$61,876.84"},{"v":165472.73,"d":"$165,472.73"},{"v":142472.4,"d":"$142,472.40"},{"v":99124.7,"d":"$99,124.70"},{"v":3659099.9699999997,"d":"$3,659,099.97"},{"v":52672.5,"d":"$52,672.50"},{"v":74187.5,"d":"$74,187.50"},{"v":192887.5,"d":"$192,887.50"},{"v":20179,"d":"$20,179.00"},{"v":169444.25,"d":"$169,444.25"},{"v":96096.25,"d":"$96,096.25"},{"v":807753.5,"d":"$807,753.50"},{"v":556109.5,"d":"$556,109.50"},{"v":1504747.659,"d":"$1,504,747.66"},{"v":3474077.659,"d":"$3,474,077.66"},{"v":564940.78,"d":"$564,940.78"},{"v":2909136.8789999997,"d":"$2,909,136.88"},{"v":3506556.0989999995,"d":"$3,506,556.10"},{"v":59706.14,"d":"$59,706.14"},{"v":59706.14,"d":"$59,706.14"},{"v":62807.76,"d":"$62,807.76"},{"v":62807.76,"d":"$62,807.76"},{"v":69011,"d":"$69,011.00"},{"v":69011,"d":"$69,011.00"},{"v":71337.21,"d":"$71,337.21"},{"v":71337.21,"d":"$71,337.21"},{"v":86069.9,"d":"$86,069.90"},{"v":325669.9,"d":"$325,669.90"},{"v":131920.18,"d":"$131,920.18"},{"v":50446.97,"d":"$50,446.97"},{"v":1119831.1700000002,"d":"$1,119,831.17"},{"v":8285487.39,"d":"$8,285,487.39"},{"v":49593.71,"d":"$49,593.71"},{"v":10343.31,"d":"$10,343.31"},{"v":252899.18000000005,"d":"$252,899.18"},{"v":8285487.238999999,"d":"$8,285,487.24"}]
["19022033002","WEST CHICAGO SCHOOL DIST 33",3350.78,{"v":62091562.69,"d":"$62,091,562.69"},{"v":51445983.400000006,"d":"$51,445,983.40"},{"v":0.8285503081449344,"d":"83%"},2,{"v":279331.39,"d":"$279,331.39"},{"v":26140616.77,"d":"$26,140,616.77"},{"v":26419948.16,"d":"$26,419,948.16"},{"v":1.05749,"d":"1.06"},{"v":12846585.13,"d":"$12,846,585.13"},{"v":2569317.02,"d":"$2,569,317.02"},{"v":1234440.24,"d":"$1,234,440.24"},{"v":547902.68,"d":"$547,902.68"},{"v":576679.18,"d":"$576,679.18"},{"v":759777.2,"d":"$759,777.20"},{"v":288469.5,"d":"$288,469.50"},{"v":467374.37,"d":"$467,374.37"},{"v":632626.34,"d":"$632,626.34"},{"v":350216.68,"d":"$350,216.68"},{"v":938520.93,"d":"$938,520.93"},{"v":808068.66,"d":"$808,068.66"},{"v":560827.21,"d":"$560,827.21"},{"v":22580805.14,"d":"$22,580,805.14"},{"v":298765.80000000005,"d":"$298,765.80"},{"v":418847.5,"d":"$418,847.50"},{"v":1089003.5,"d":"$1,089,003.50"},{"v":113926.51999999999,"d":"$113,926.52"},{"v":1913295.38,"d":"$1,913,295.38"},{"v":563358.1799999999,"d":"$563,358.18"},{"v":4560411.58,"d":"$4,560,411.58"},{"v":3139680.86,"d":"$3,139,680.86"},{"v":11625971.755919999,"d":"$11,625,971.76"},{"v":23723261.07592,"d":"$23,723,261.08"},{"v":3189540.46,"d":"$3,189,540.46"},{"v":20533720.615919996,"d":"$20,533,720.62"},{"v":23906627.755919997,"d":"$23,906,627.76"},{"v":1350754.71,"d":"$1,350,754.71"},{"v":1350754.71,"d":"$1,350,754.71"},{"v":1407359.24,"d":"$1,407,359.24"},{"v":1407359.24,"d":"$1,407,359.24"},{"v":1352305.52,"d":"$1,352,305.52"},{"v":1352305.52,"d":"$1,352,305.52"},{"v":1408910.05,"d":"$1,408,910.05"},{"v":1408910.05,"d":"$1,408,910.05"},{"v":1690381.9,"d":"$1,690,381.90"},{"v":1842361.19,"d":"$1,842,361.19"},{"v":746291.33,"d":"$746,291.33"},{"v":286436.23,"d":"$286,436.23"},{"v":15604129.690000001,"d":"$15,604,129.69"},{"v":62091562.69,"d":"$62,091,562.69"},{"v":6900049.32,"d":"$6,900,049.32"},{"v":2066305.8299999998,"d":"$2,066,305.83"},{"v":2055978.8899999997,"d":"$2,055,978.89"},{"v":62091562.58591999,"d":"$62,091,562.59"}]
["19022034002","WINFIELD SCHOOL DISTRICT 34",286.14,{"v":4082177.16,"d":"$4,082,177.16"},{"v":4999354.539999999,"d":"$4,999,354.54"},{"v":1.224678485046445,"d":"122%"},4,{"v":260.02,"d":"$260.02"},{"v":279385.23,"d":"$279,385.23"},{"v":279645.25,"d":"$279,645.25"},{"v":1.05749,"d":"1.06"},{"v":1013214.39,"d":"$1,013,214.39"},{"v":202642.87,"d":"$202,642.87"},{"v":104713.56,"d":"$104,713.56"},{"v":45720,"d":"$45,720.00"},{"v":35992.69,"d":"$35,992.69"},{"v":61990.19,"d":"$61,990.19"},{"v":23931.32,"d":"$23,931.32"},{"v":39576.05,"d":"$39,576.05"},{"v":52789.81,"d":"$52,789.81"},{"v":29524.99,"d":"$29,524.99"},{"v":78315.34,"d":"$78,315.34"},{"v":67429.68,"d":"$67,429.68"},{"v":47489.4,"d":"$47,489.40"},{"v":1803330.29,"d":"$1,803,330.29"},{"v":25542.899999999994,"d":"$25,542.90"},{"v":35767.5,"d":"$35,767.50"},{"v":92995.5,"d":"$92,995.50"},{"v":9728.759999999998,"d":"$9,728.76"},{"v":81692.97,"d":"$81,692.97"},{"v":46512.24999999999,"d":"$46,512.25"},{"v":389436.54,"d":"$389,436.54"},{"v":268113.18,"d":"$268,113.18"},{"v":744484.11696,"d":"$744,484.12"},{"v":1694273.7169599999,"d":"$1,694,273.72"},{"v":272370.94,"d":"$272,370.94"},{"v":1421902.77696,"d":"$1,421,902.78"},{"v":1709932.31696,"d":"$1,709,932.32"},{"v":46524.27,"d":"$46,524.27"},{"v":46524.27,"d":"$46,524.27"},{"v":48075.08,"d":"$48,075.08"},{"v":48075.08,"d":"$48,075.08"},{"v":25588.34,"d":"$25,588.34"},{"v":25588.34,"d":"$25,588.34"},{"v":26363.75,"d":"$26,363.75"},{"v":26363.75,"d":"$26,363.75"},{"v":31791.58,"d":"$31,791.58"},{"v":156631.71,"d":"$156,631.71"},{"v":63447.32,"d":"$63,447.32"},{"v":23940.93,"d":"$23,940.93"},{"v":568914.42,"d":"$568,914.42"},{"v":4082177.16,"d":"$4,082,177.16"},{"v":39060.41999999999,"d":"$39,060.42"},{"v":5822.349999999999,"d":"$5,822.35"},{"v":138202.81999999998,"d":"$138,202.82"},{"v":4082177.02696,"d":"$4,082,177.03"}]
["19022041002","GLEN ELLYN SCHOOL DISTRICT 41",3267.47,{"v":45423482.07,"d":"$45,423,482.07"},{"v":53455712.59,"d":"$53,455,712.59"},{"v":1.1768299160249738,"d":"118%"},4,{"v":2893.4,"d":"$2,893.40"},{"v":2633466.0899999994,"d":"$2,633,466.09"},{"v":2636359.4899999993,"d":"$2,636,359.49"},{"v":1.05749,"d":"1.06"},{"v":11154207.38,"d":"$11,154,207.38"},{"v":2230841.47,"d":"$2,230,841.47"},{"v":1203468.62,"d":"$1,203,468.62"},{"v":534629.13,"d":"$534,629.13"},{"v":394198.22,"d":"$394,198.22"},{"v":737524.32,"d":"$737,524.32"},{"v":281354.78,"d":"$281,354.78"},{"v":455752.83,"d":"$455,752.83"},{"v":617300.27,"d":"$617,300.27"},{"v":341736.09,"d":"$341,736.09"},{"v":915784.22,"d":"$915,784.22"},{"v":788492.3,"d":"$788,492.30"},{"v":546881.91,"d":"$546,881.91"},{"v":20202171.540000003,"d":"$20,202,171.54"},{"v":291214.8,"d":"$291,214.80"},{"v":408433.75,"d":"$408,433.75"},{"v":1061927.75,"d":"$1,061,927.75"},{"v":111093.98000000001,"d":"$111,093.98"},{"v":932862.6799999999,"d":"$932,862.68"},{"v":546298.6799999999,"d":"$546,298.68"},{"v":4447026.67,"d":"$4,447,026.67"},{"v":3061619.3899999997,"d":"$3,061,619.39"},{"v":8238523.78308,"d":"$8,238,523.78"},{"v":19099001.48308,"d":"$19,099,001.48"},{"v":3110239.34,"d":"$3,110,239.34"},{"v":15988762.143080004,"d":"$15,988,762.14"},{"v":19277809.133080006,"d":"$19,277,809.13"},{"v":403210.36,"d":"$403,210.36"},{"v":403210.36,"d":"$403,210.36"},{"v":420269.26,"d":"$420,269.26"},{"v":420269.26,"d":"$420,269.26"},{"v":279921.03,"d":"$279,921.03"},{"v":279921.03,"d":"$279,921.03"},{"v":291552.1,"d":"$291,552.10"},{"v":291552.1,"d":"$291,552.10"},{"v":350482.85,"d":"$350,482.85"},{"v":1796612.32,"d":"$1,796,612.32"},{"v":727759.69,"d":"$727,759.69"},{"v":278740.93,"d":"$278,740.93"},{"v":5943501.289999999,"d":"$5,943,501.29"},{"v":45423482.07,"d":"$45,423,482.07"},{"v":402212.1000000001,"d":"$402,212.10"},{"v":138269.72999999998,"d":"$138,269.73"},{"v":962064.1400000001,"d":"$962,064.14"},{"v":45423481.96308001,"d":"$45,423,481.96"}]
["19022044002","LOMBARD SCHOOL DISTRICT 44",2930.88,{"v":42745148.55,"d":"$42,745,148.55"},{"v":51349738.05,"d":"$51,349,738.05"},{"v":1.201299791716363,"d":"120%"},4,{"v":2722.79,"d":"$2,722.79"},{"v":3365574.6999999997,"d":"$3,365,574.70"},{"v":3368297.4899999998,"d":"$3,368,297.49"},{"v":1.05749,"d":"1.06"},{"v":10359269.15,"d":"$10,359,269.15"},{"v":2071853.82,"d":"$2,071,853.82"},{"v":1080319.56,"d":"$1,080,319.56"},{"v":479322.67,"d":"$479,322.67"},{"v":377996.58,"d":"$377,996.58"},{"v":652486.49,"d":"$652,486.49"},{"v":252249.11,"d":"$252,249.11"},{"v":408638.47,"d":"$408,638.47"},{"v":553441.62,"d":"$553,441.62"},{"v":306557.38,"d":"$306,557.38"},{"v":821047.92,"d":"$821,047.92"},{"v":706924.13,"d":"$706,924.13"},{"v":490346.91,"d":"$490,346.91"},{"v":18560453.810000002,"d":"$18,560,453.81"},{"v":259564.5,"d":"$259,564.50"},{"v":366360,"d":"$366,360.00"},{"v":952536,"d":"$952,536.00"},{"v":99649.92,"d":"$99,649.92"},{"v":836766.24,"d":"$836,766.24"},{"v":479814.09,"d":"$479,814.09"},{"v":3988927.6799999997,"d":"$3,988,927.68"},{"v":2746234.56,"d":"$2,746,234.56"},{"v":7829260.996320001,"d":"$7,829,261.00"},{"v":17559113.98632,"d":"$17,559,113.99"},{"v":2789846.05,"d":"$2,789,846.05"},{"v":14769267.93632,"d":"$14,769,267.94"},{"v":17719502.22632,"d":"$17,719,502.23"},{"v":589307.45,"d":"$589,307.45"},{"v":589307.45,"d":"$589,307.45"},{"v":613344.99,"d":"$613,344.99"},{"v":613344.99,"d":"$613,344.99"},{"v":290001.29,"d":"$290,001.29"},{"v":290001.29,"d":"$290,001.29"},{"v":301632.36,"d":"$301,632.36"},{"v":301632.36,"d":"$301,632.36"},{"v":362113.92,"d":"$362,113.92"},{"v":1611290.63,"d":"$1,611,290.63"},{"v":652690.82,"d":"$652,690.82"},{"v":250524.82,"d":"$250,524.82"},{"v":6465192.37,"d":"$6,465,192.37"},{"v":42745148.55,"d":"$42,745,148.55"},{"v":899092.2000000001,"d":"$899,092.20"},{"v":90650.63,"d":"$90,650.63"},{"v":1200692.95,"d":"$1,200,692.95"},{"v":42745148.40632,"d":"$42,745,148.41"}]
["19022045002","VILLA PARK SCHOOL DIST 45",3100.97,{"v":50602382.45,"d":"$50,602,382.45"},{"v":40966705.19,"d":"$40,966,705.19"},{"v":0.8095805613595175,"d":"81%"},2,{"v":155182.27,"d":"$155,182.27"},{"v":6286352.11,"d":"$6,286,352.11"},{"v":6441534.38,"d":"$6,441,534.38"},{"v":1.05749,"d":"1.06"},{"v":11472035.18,"d":"$11,472,035.18"},{"v":2294407.03,"d":"$2,294,407.03"},{"v":1142262.8,"d":"$1,142,262.80"},{"v":507344.61,"d":"$507,344.61"},{"v":452868.01,"d":"$452,868.01"},{"v":702555.49,"d":"$702,555.49"},{"v":266478.55,"d":"$266,478.55"},{"v":432509.75,"d":"$432,509.75"},{"v":585796.67,"d":"$585,796.67"},{"v":324460.83,"d":"$324,460.83"},{"v":869047.65,"d":"$869,047.65"},{"v":748252,"d":"$748,252.00"},{"v":518991.31,"d":"$518,991.31"},{"v":20317009.879999995,"d":"$20,317,009.88"},{"v":274467.6,"d":"$274,467.60"},{"v":387621.25,"d":"$387,621.25"},{"v":1007815.2499999999,"d":"$1,007,815.25"},{"v":105432.98,"d":"$105,432.98"},{"v":1770653.87,"d":"$1,770,653.87"},{"v":517851.76,"d":"$517,851.76"},{"v":4220420.17,"d":"$4,220,420.17"},{"v":2905608.8899999997,"d":"$2,905,608.89"},{"v":9262254.74808,"d":"$9,262,254.75"},{"v":20452126.51808,"d":"$20,452,126.52"},{"v":2951751.32,"d":"$2,951,751.32"},{"v":17500375.198080003,"d":"$17,500,375.20"},{"v":20621822.698080003,"d":"$20,621,822.70"},{"v":1004148.88,"d":"$1,004,148.88"},{"v":1004148.88,"d":"$1,004,148.88"},{"v":1046020.72,"d":"$1,046,020.72"},{"v":1046020.72,"d":"$1,046,020.72"},{"v":544333.98,"d":"$544,333.98"},{"v":544333.98,"d":"$544,333.98"},{"v":566820.72,"d":"$566,820.72"},{"v":566820.72,"d":"$566,820.72"},{"v":680029.78,"d":"$680,029.78"},{"v":1705114.58,"d":"$1,705,114.58"},{"v":690696.39,"d":"$690,696.39"},{"v":265060.39,"d":"$265,060.39"},{"v":9663549.740000002,"d":"$9,663,549.74"},{"v":50602382.45,"d":"$50,602,382.45"},{"v":2313482.98,"d":"$2,313,482.98"},{"v":493495.97000000003,"d":"$493,495.97"},{"v":1483834.5999999999,"d":"$1,483,834.60"},{"v":50602382.31808,"d":"$50,602,382.32"}]
["19022048002","SALT CREEK SCHOOL DIST 48",467.46,{"v":6911764.15,"d":"$6,911,764.15"},{"v":11906839.540000001,"d":"$11,906,839.54"},{"v":1.7226918166760654,"d":"172%"},4,{"v":440.26,"d":"$440.26"},{"v":484061.65,"d":"$484,061.65"},{"v":484501.91000000003,"d":"$484,501.91"},{"v":1.05749,"d":"1.06"},{"v":1676154.52,"d":"$1,676,154.52"},{"v":335230.89,"d":"$335,230.89"},{"v":171818.74,"d":"$171,818.74"},{"v":75954.2,"d":"$75,954.20"},{"v":61447.97,"d":"$61,447.97"},{"v":104906.47,"d":"$104,906.47"},{"v":39454.34,"d":"$39,454.34"},{"v":65017.8,"d":"$65,017.80"},{"v":87699.21,"d":"$87,699.21"},{"v":48370.73,"d":"$48,370.73"},{"v":130104.51,"d":"$130,104.51"},{"v":112020.28,"d":"$112,020.28"},{"v":78018.3,"d":"$78,018.30"},{"v":2986197.96,"d":"$2,986,197.96"},{"v":41449.5,"d":"$41,449.50"},{"v":58432.5,"d":"$58,432.50"},{"v":151924.5,"d":"$151,924.50"},{"v":15893.64,"d":"$15,893.64"},{"v":133459.83000000002,"d":"$133,459.83"},{"v":78006.43,"d":"$78,006.43"},{"v":636213.0599999999,"d":"$636,213.06"},{"v":438010.02,"d":"$438,010.02"},{"v":1268935.87344,"d":"$1,268,935.87"},{"v":2822325.3534399997,"d":"$2,822,325.35"},{"v":444965.82,"d":"$444,965.82"},{"v":2377359.5334400004,"d":"$2,377,359.53"},{"v":2847906.4334400003,"d":"$2,847,906.43"},{"v":110882.84,"d":"$110,882.84"},{"v":110882.84,"d":"$110,882.84"},{"v":115535.27,"d":"$115,535.27"},{"v":115535.27,"d":"$115,535.27"},{"v":41871.84,"d":"$41,871.84"},{"v":41871.84,"d":"$41,871.84"},{"v":44198.05,"d":"$44,198.05"},{"v":44198.05,"d":"$44,198.05"},{"v":52727.5,"d":"$52,727.50"},{"v":256658.9,"d":"$256,658.90"},{"v":103965.67,"d":"$103,965.67"},{"v":39331.54,"d":"$39,331.54"},{"v":1077659.61,"d":"$1,077,659.61"},{"v":6911764.15,"d":"$6,911,764.15"},{"v":175409.96,"d":"$175,409.96"},{"v":120.49000000000001,"d":"$120.49"},{"v":141798.26,"d":"$141,798.26"},{"v":6911764.003440001,"d":"$6,911,764.00"}]
["19022053002","BUTLER SCHOOL DISTRICT 53",462.4,{"v":5834148.73,"d":"$5,834,148.73"},{"v":11395060.929999998,"d":"$11,395,060.93"},{"v":1.9531659985637695,"d":"195%"},4,{"v":371.62,"d":"$371.62"},{"v":293970.02999999997,"d":"$293,970.03"},{"v":294341.64999999997,"d":"$294,341.65"},{"v":1.05749,"d":"1.06"},{"v":1482213.19,"d":"$1,482,213.19"},{"v":296442.63,"d":"$296,442.63"},{"v":170343.9,"d":"$170,343.90"},{"v":75216.78,"d":"$75,216.78"},{"v":48504.38,"d":"$48,504.38"},{"v":108085.46,"d":"$108,085.46"},{"v":38807.55,"d":"$38,807.55"},{"v":64389.61,"d":"$64,389.61"},{"v":86847.76,"d":"$86,847.76"},{"v":48056.63,"d":"$48,056.63"},{"v":128841.36,"d":"$128,841.36"},{"v":110932.71,"d":"$110,932.71"},{"v":77264.5,"d":"$77,264.50"},{"v":2735946.459999999,"d":"$2,735,946.46"},{"v":41323.5,"d":"$41,323.50"},{"v":57800,"d":"$57,800.00"},{"v":150280,"d":"$150,280.00"},{"v":15721.599999999999,"d":"$15,721.60"},{"v":132015.19,"d":"$132,015.19"},{"v":81490.67,"d":"$81,490.67"},{"v":629326.4,"d":"$629,326.40"},{"v":433268.8,"d":"$433,268.80"},{"v":1035271.1646,"d":"$1,035,271.16"},{"v":2576497.3246,"d":"$2,576,497.32"},{"v":440149.31,"d":"$440,149.31"},{"v":2136348.0146,"d":"$2,136,348.01"},{"v":2601801.5045999996,"d":"$2,601,801.50"},{"v":8529.44,"d":"$8,529.44"},{"v":8529.44,"d":"$8,529.44"},{"v":8529.44,"d":"$8,529.44"},{"v":8529.44,"d":"$8,529.44"},{"v":12406.47,"d":"$12,406.47"},{"v":12406.47,"d":"$12,406.47"},{"v":13181.87,"d":"$13,181.87"},{"v":13181.87,"d":"$13,181.87"},{"v":15508.09,"d":"$15,508.09"},{"v":253557.28,"d":"$253,557.28"},{"v":102709.28,"d":"$102,709.28"},{"v":39331.54,"d":"$39,331.54"},{"v":496400.62999999995,"d":"$496,400.63"},{"v":5834148.73,"d":"$5,834,148.73"},{"v":8100.14,"d":"$8,100.14"},{"v":17.73,"d":"$17.73"},{"v":172080.6,"d":"$172,080.60"},{"v":5834148.594599999,"d":"$5,834,148.59"}]
["19022058002","DOWNERS GROVE GRADE SCH DIST 58",4848.21,{"v":64264325.09,"d":"$64,264,325.09"},{"v":64298042.699999996,"d":"$64,298,042.70"},{"v":1.0005246707244302,"d":"100%"},4,{"v":4093.53,"d":"$4,093.53"},{"v":3460925.5799999996,"d":"$3,460,925.58"},{"v":3465019.1099999994,"d":"$3,465,019.11"},{"v":1.05749,"d":"1.06"},{"v":16336791.64,"d":"$16,336,791.64"},{"v":3267358.32,"d":"$3,267,358.32"},{"v":1786767.45,"d":"$1,786,767.45"},{"v":793463.38,"d":"$793,463.38"},{"v":548291.89,"d":"$548,291.89"},{"v":1088007.32,"d":"$1,088,007.32"},{"v":417828.02,"d":"$417,828.02"},{"v":676562.09,"d":"$676,562.09"},{"v":916158.74,"d":"$916,158.74"},{"v":507264.52,"d":"$507,264.52"},{"v":1359150.1,"d":"$1,359,150.10"},{"v":1170231.33,"d":"$1,170,231.33"},{"v":811842.62,"d":"$811,842.62"},{"v":29679717.419999998,"d":"$29,679,717.42"},{"v":432011.69999999995,"d":"$432,011.70"},{"v":606026.25,"d":"$606,026.25"},{"v":1575668.25,"d":"$1,575,668.25"},{"v":164839.14,"d":"$164,839.14"},{"v":1384163.95,"d":"$1,384,163.95"},{"v":804014.85,"d":"$804,014.85"},{"v":6598413.8100000005,"d":"$6,598,413.81"},{"v":4542772.77,"d":"$4,542,772.77"},{"v":11541087.58344,"d":"$11,541,087.58"},{"v":27648998.303439997,"d":"$27,648,998.30"},{"v":4614914.13,"d":"$4,614,914.13"},{"v":23034084.173440002,"d":"$23,034,084.17"},{"v":27914309.71344,"d":"$27,914,309.71"},{"v":412515.21,"d":"$412,515.21"},{"v":412515.21,"d":"$412,515.21"},{"v":429574.11,"d":"$429,574.11"},{"v":429574.11,"d":"$429,574.11"},{"v":155080.9,"d":"$155,080.90"},{"v":155080.9,"d":"$155,080.90"},{"v":161284.14,"d":"$161,284.14"},{"v":161284.14,"d":"$161,284.14"},{"v":193851.13,"d":"$193,851.13"},{"v":2665840.81,"d":"$2,665,840.81"},{"v":1079860.94,"d":"$1,079,860.94"},{"v":413836.23,"d":"$413,836.23"},{"v":6670297.83,"d":"$6,670,297.83"},{"v":64264325.09,"d":"$64,264,325.09"},{"v":427014.69,"d":"$427,014.69"},{"v":65560.91,"d":"$65,560.91"},{"v":1558023.3200000003,"d":"$1,558,023.32"},{"v":64264324.96344,"d":"$64,264,324.96"}]
["19022060002","MAERCKER SCHOOL DISTRICT 60",1351.75,{"v":20452765.48,"d":"$20,452,765.48"},{"v":20160258.49,"d":"$20,160,258.49"},{"v":0.9856984137286454,"d":"99%"},3,{"v":23242.74,"d":"$23,242.74"},{"v":1469425.44,"d":"$1,469,425.44"},{"v":1492668.18,"d":"$1,492,668.18"},{"v":1.05749,"d":"1.06"},{"v":4812399.66,"d":"$4,812,399.66"},{"v":962479.92,"d":"$962,479.92"},{"v":497758.16,"d":"$497,758.16"},{"v":221225.85,"d":"$221,225.85"},{"v":183045.02,"d":"$183,045.02"},{"v":301208.74,"d":"$301,208.74"},{"v":115775.87,"d":"$115,775.87"},{"v":188457.4,"d":"$188,457.40"},{"v":255434.59,"d":"$255,434.59"},{"v":141343.05,"d":"$141,343.05"},{"v":378945.19,"d":"$378,945.19"},{"v":326272.67,"d":"$326,272.67"},{"v":226140,"d":"$226,140.00"},{"v":8610486.120000001,"d":"$8,610,486.12"},{"v":120375,"d":"$120,375.00"},{"v":168968.75,"d":"$168,968.75"},{"v":439318.75,"d":"$439,318.75"},{"v":45959.5,"d":"$45,959.50"},{"v":385924.62,"d":"$385,924.62"},{"v":222615.5,"d":"$222,615.50"},{"v":1839731.75,"d":"$1,839,731.75"},{"v":1266589.75,"d":"$1,266,589.75"},{"v":3771727.371,"d":"$3,771,727.37"},{"v":8261210.991,"d":"$8,261,210.99"},{"v":1286703.79,"d":"$1,286,703.79"},{"v":6974507.200999999,"d":"$6,974,507.20"},{"v":8335183.590999999,"d":"$8,335,183.59"},{"v":275268.61,"d":"$275,268.61"},{"v":275268.61,"d":"$275,268.61"},{"v":286899.68,"d":"$286,899.68"},{"v":286899.68,"d":"$286,899.68"},{"v":229519.74,"d":"$229,519.74"},{"v":229519.74,"d":"$229,519.74"},{"v":238824.59,"d":"$238,824.59"},{"v":238824.59,"d":"$238,824.59"},{"v":286899.68,"d":"$286,899.68"},{"v":742837.55,"d":"$742,837.55"},{"v":300903.66,"d":"$300,903.66"},{"v":115429.52,"d":"$115,429.52"},{"v":3507095.65,"d":"$3,507,095.65"},{"v":20452765.48,"d":"$20,452,765.48"},{"v":443484.86,"d":"$443,484.86"},{"v":62572.38,"d":"$62,572.38"},{"v":353490.82000000007,"d":"$353,490.82"},{"v":20452765.360999998,"d":"$20,452,765.36"}]
["19022061002","DARIEN SCHOOL DIST 61",1252.39,{"v":18569107.13,"d":"$18,569,107.13"},{"v":17005380.9,"d":"$17,005,380.90"},{"v":0.9157888303916527,"d":"92%"},3,{"v":21102.13,"d":"$21,102.13"},{"v":1993854.0699999996,"d":"$1,993,854.07"},{"v":2014956.1999999995,"d":"$2,014,956.20"},{"v":1.05749,"d":"1.06"},{"v":4437790.56,"d":"$4,437,790.56"},{"v":887558.1,"d":"$887,558.10"},{"v":460887.18,"d":"$460,887.18"},{"v":205002.62,"d":"$205,002.62"},{"v":160785.95,"d":"$160,785.95"},{"v":282929.58,"d":"$282,929.58"},{"v":107367.57,"d":"$107,367.57"},{"v":174637.19,"d":"$174,637.19"},{"v":236702.72,"d":"$236,702.72"},{"v":130977.89,"d":"$130,977.89"},{"v":351155.88,"d":"$351,155.88"},{"v":302346.01,"d":"$302,346.01"},{"v":209556.4,"d":"$209,556.40"},{"v":7947697.649999999,"d":"$7,947,697.65"},{"v":111207.6,"d":"$111,207.60"},{"v":156548.75,"d":"$156,548.75"},{"v":407026.75,"d":"$407,026.75"},{"v":42581.259999999995,"d":"$42,581.26"},{"v":715114.69,"d":"$715,114.69"},{"v":209240.68,"d":"$209,240.68"},{"v":1704502.79,"d":"$1,704,502.79"},{"v":1173489.4300000002,"d":"$1,173,489.43"},{"v":3332783.4969599997,"d":"$3,332,783.50"},{"v":7852495.446959998,"d":"$7,852,495.45"},{"v":1192124.99,"d":"$1,192,124.99"},{"v":6660370.456959998,"d":"$6,660,370.46"},{"v":7921030.706959998,"d":"$7,921,030.71"},{"v":261311.33,"d":"$261,311.33"},{"v":261311.33,"d":"$261,311.33"},{"v":272166.99,"d":"$272,166.99"},{"v":272166.99,"d":"$272,166.99"},{"v":104679.61,"d":"$104,679.61"},{"v":104679.61,"d":"$104,679.61"},{"v":109332.04,"d":"$109,332.04"},{"v":109332.04,"d":"$109,332.04"},{"v":131043.36,"d":"$131,043.36"},{"v":688559.23,"d":"$688,559.23"},{"v":278916.96,"d":"$278,916.96"},{"v":106879.19,"d":"$106,879.19"},{"v":2700378.68,"d":"$2,700,378.68"},{"v":18569107.13,"d":"$18,569,107.13"},{"v":609490.61,"d":"$609,490.61"},{"v":81756.72,"d":"$81,756.72"},{"v":514332.10000000003,"d":"$514,332.10"},{"v":18569107.03696,"d":"$18,569,107.04"}]
["19022062002","GOWER SCHOOL DIST 62",885,{"v":12266117.45,"d":"$12,266,117.45"},{"v":14334854.73,"d":"$14,334,854.73"},{"v":1.1686546120590098,"d":"117%"},4,{"v":781.33,"d":"$781.33"},{"v":600195.42,"d":"$600,195.42"},{"v":600976.75,"d":"$600,976.75"},{"v":1.05749,"d":"1.06"},{"v":3053654.15,"d":"$3,053,654.15"},{"v":610730.82,"d":"$610,730.82"},{"v":325939.41,"d":"$325,939.41"},{"v":144534.22,"d":"$144,534.22"},{"v":106573.83,"d":"$106,573.83"},{"v":197097.01,"d":"$197,097.01"},{"v":75674.73,"d":"$75,674.73"},{"v":123439.6,"d":"$123,439.60"},{"v":166883.93,"d":"$166,883.93"},{"v":92344.12,"d":"$92,344.12"},{"v":247577.52,"d":"$247,577.52"},{"v":213164.81,"d":"$213,164.81"},{"v":148121.7,"d":"$148,121.70"},{"v":5505735.849999999,"d":"$5,505,735.85"},{"v":79110,"d":"$79,110.00"},{"v":110625,"d":"$110,625.00"},{"v":287625,"d":"$287,625.00"},{"v":30090,"d":"$30,090.00"},{"v":252667.5,"d":"$252,667.50"},{"v":145897,"d":"$145,897.00"},{"v":1204485,"d":"$1,204,485.00"},{"v":829245,"d":"$829,245.00"},{"v":2223709.8449999997,"d":"$2,223,709.85"},{"v":5163454.345,"d":"$5,163,454.35"},{"v":842413.8,"d":"$842,413.80"},{"v":4321040.545,"d":"$4,321,040.55"},{"v":5211884.705,"d":"$5,211,884.71"},{"v":111658.25,"d":"$111,658.25"},{"v":111658.25,"d":"$111,658.25"},{"v":116310.68,"d":"$116,310.68"},{"v":116310.68,"d":"$116,310.68"},{"v":62807.76,"d":"$62,807.76"},{"v":62807.76,"d":"$62,807.76"},{"v":65133.98,"d":"$65,133.98"},{"v":65133.98,"d":"$65,133.98"},{"v":78315.85,"d":"$78,315.85"},{"v":486178.64,"d":"$486,178.64"},{"v":196937.99,"d":"$196,937.99"},{"v":75242.95,"d":"$75,242.95"},{"v":1548496.77,"d":"$1,548,496.77"},{"v":12266117.45,"d":"$12,266,117.45"},{"v":107883.86000000003,"d":"$107,883.86"},{"v":10272.4,"d":"$10,272.40"},{"v":301006.66,"d":"$301,006.66"},{"v":12266117.325,"d":"$12,266,117.33"}]
["19022063002","CASS SCHOOL DIST 63",742.8,{"v":10562720.28,"d":"$10,562,720.28"},{"v":10199720.600000001,"d":"$10,199,720.60"},{"v":0.9656338830928506,"d":"97%"},3,{"v":12003.58,"d":"$12,003.58"},{"v":598748.33,"d":"$598,748.33"},{"v":610751.9099999999,"d":"$610,751.91"},{"v":1.05749,"d":"1.06"},{"v":2597928.9,"d":"$2,597,928.90"},{"v":519585.77,"d":"$519,585.77"},{"v":273582.63,"d":"$273,582.63"},{"v":120936.79,"d":"$120,936.79"},{"v":92617.75,"d":"$92,617.75"},{"v":166101.92,"d":"$166,101.92"},{"v":63385.67,"d":"$63,385.67"},{"v":103337.47,"d":"$103,337.47"},{"v":139637.57,"d":"$139,637.57"},{"v":77581.63,"d":"$77,581.63"},{"v":207156.7,"d":"$207,156.70"},{"v":178362.39,"d":"$178,362.39"},{"v":124000.1,"d":"$124,000.10"},{"v":4664215.289999999,"d":"$4,664,215.29"},{"v":66267,"d":"$66,267.00"},{"v":92850,"d":"$92,850.00"},{"v":241410,"d":"$241,410.00"},{"v":25255.199999999997,"d":"$25,255.20"},{"v":212069.40000000002,"d":"$212,069.40"},{"v":123077.18,"d":"$123,077.18"},{"v":1010950.8,"d":"$1,010,950.80"},{"v":696003.6,"d":"$696,003.60"},{"v":1924716.0161999997,"d":"$1,924,716.02"},{"v":4392599.1962,"d":"$4,392,599.20"},{"v":707056.46,"d":"$707,056.46"},{"v":3685542.7362,"d":"$3,685,542.74"},{"v":4433247.8662,"d":"$4,433,247.87"},{"v":124840.13,"d":"$124,840.13"},{"v":124840.13,"d":"$124,840.13"},{"v":129492.55,"d":"$129,492.55"},{"v":129492.55,"d":"$129,492.55"},{"v":59706.14,"d":"$59,706.14"},{"v":59706.14,"d":"$59,706.14"},{"v":62807.76,"d":"$62,807.76"},{"v":62807.76,"d":"$62,807.76"},{"v":75214.24,"d":"$75,214.24"},{"v":407862.78,"d":"$407,862.78"},{"v":165214.32,"d":"$165,214.32"},{"v":63272.48,"d":"$63,272.48"},{"v":1465256.9800000002,"d":"$1,465,256.98"},{"v":10562720.28,"d":"$10,562,720.28"},{"v":94929.65,"d":"$94,929.65"},{"v":3566.9000000000005,"d":"$3,566.90"},{"v":223180,"d":"$223,180.00"},{"v":10562720.1362,"d":"$10,562,720.14"}]
["19022066002","CENTER CASS SCHOOL DIST 66",1092,{"v":14780819.05,"d":"$14,780,819.05"},{"v":14374404.860000001,"d":"$14,374,404.86"},{"v":0.9725039465928649,"d":"97%"},3,{"v":16797.08,"d":"$16,797.08"},{"v":761112,"d":"$761,112.00"},{"v":777909.08,"d":"$777,909.08"},{"v":1.05749,"d":"1.06"},{"v":3723968.48,"d":"$3,723,968.48"},{"v":744793.69,"d":"$744,793.69"},{"v":401893.62,"d":"$401,893.62"},{"v":178455.51,"d":"$178,455.51"},{"v":127179.19,"d":"$127,179.19"},{"v":245576.52,"d":"$245,576.52"},{"v":93784.92,"d":"$93,784.92"},{"v":152022.3,"d":"$152,022.30"},{"v":206050.57,"d":"$206,050.57"},{"v":114016.73,"d":"$114,016.73"},{"v":305682.45,"d":"$305,682.45"},{"v":263193.29,"d":"$263,193.29"},{"v":182419.6,"d":"$182,419.60"},{"v":6739036.87,"d":"$6,739,036.87"},{"v":97155,"d":"$97,155.00"},{"v":136500,"d":"$136,500.00"},{"v":354900,"d":"$354,900.00"},{"v":37128,"d":"$37,128.00"},{"v":311766,"d":"$311,766.00"},{"v":181933.5,"d":"$181,933.50"},{"v":1486212,"d":"$1,486,212.00"},{"v":1023204,"d":"$1,023,204.00"},{"v":2666162.0309999995,"d":"$2,666,162.03"},{"v":6294960.5309999995,"d":"$6,294,960.53"},{"v":1039452.96,"d":"$1,039,452.96"},{"v":5255507.5709999995,"d":"$5,255,507.57"},{"v":6354718.681,"d":"$6,354,718.68"},{"v":119412.29,"d":"$119,412.29"},{"v":119412.29,"d":"$119,412.29"},{"v":124064.72,"d":"$124,064.72"},{"v":124064.72,"d":"$124,064.72"},{"v":49625.89,"d":"$49,625.89"},{"v":49625.89,"d":"$49,625.89"},{"v":51176.69,"d":"$51,176.69"},{"v":51176.69,"d":"$51,176.69"},{"v":62032.36,"d":"$62,032.36"},{"v":600163.11,"d":"$600,163.11"},{"v":243110.05,"d":"$243,110.05"},{"v":93198.65,"d":"$93,198.65"},{"v":1687063.3499999999,"d":"$1,687,063.35"},{"v":14780819.05,"d":"$14,780,819.05"},{"v":94686.59,"d":"$94,686.59"},{"v":7573.44,"d":"$7,573.44"},{"v":341951.82,"d":"$341,951.82"},{"v":14780818.900999999,"d":"$14,780,818.90"}]
["19022068002","WOODRIDGE SCHOOL DIST 68",2725.62,{"v":40865246.71,"d":"$40,865,246.71"},{"v":38566409.220000006,"d":"$38,566,409.22"},{"v":0.9437459045258265,"d":"94%"},3,{"v":46439.7,"d":"$46,439.70"},{"v":4521689.43,"d":"$4,521,689.43"},{"v":4568129.13,"d":"$4,568,129.13"},{"v":1.05749,"d":"1.06"},{"v":9766383.88,"d":"$9,766,383.88"},{"v":1953276.77,"d":"$1,953,276.77"},{"v":1004365.36,"d":"$1,004,365.36"},{"v":446138.79,"d":"$446,138.79"},{"v":364691.23,"d":"$364,691.23"},{"v":611159.7,"d":"$611,159.70"},{"v":234785.71,"d":"$234,785.71"},{"v":380369.86,"d":"$380,369.86"},{"v":515126.43,"d":"$515,126.43"},{"v":284884.78,"d":"$284,884.78"},{"v":764206.14,"d":"$764,206.14"},{"v":657983.23,"d":"$657,983.23"},{"v":456425.91,"d":"$456,425.91"},{"v":17439797.79,"d":"$17,439,797.79"},{"v":241795.80000000005,"d":"$241,795.80"},{"v":340702.5,"d":"$340,702.50"},{"v":885826.5000000001,"d":"$885,826.50"},{"v":92671.08,"d":"$92,671.08"},{"v":778164.51,"d":"$778,164.51"},{"v":450257.18000000005,"d":"$450,257.18"},{"v":3709568.8200000003,"d":"$3,709,568.82"},{"v":2553905.9400000004,"d":"$2,553,905.94"},{"v":7523177.25768,"d":"$7,523,177.26"},{"v":16576069.58768,"d":"$16,576,069.59"},{"v":2594463.16,"d":"$2,594,463.16"},{"v":13981606.42768,"d":"$13,981,606.43"},{"v":16725225.26768,"d":"$16,725,225.27"},{"v":628077.67,"d":"$628,077.67"},{"v":628077.67,"d":"$628,077.67"},{"v":654441.43,"d":"$654,441.43"},{"v":654441.43,"d":"$654,441.43"},{"v":336525.57,"d":"$336,525.57"},{"v":336525.57,"d":"$336,525.57"},{"v":351258.25,"d":"$351,258.25"},{"v":351258.25,"d":"$351,258.25"},{"v":421044.66,"d":"$421,044.66"},{"v":1498856.98,"d":"$1,498,856.98"},{"v":607146.94,"d":"$607,146.94"},{"v":232569.12,"d":"$232,569.12"},{"v":6700223.54,"d":"$6,700,223.54"},{"v":40865246.71,"d":"$40,865,246.71"},{"v":1709887.28,"d":"$1,709,887.28"},{"v":181095.96,"d":"$181,095.96"},{"v":1036851.28,"d":"$1,036,851.28"},{"v":40865246.597679995,"d":"$40,865,246.60"}]
["19022086017","HINSDALE TWP H S DIST 86",3955.82,{"v":58540051.46,"d":"$58,540,051.46"},{"v":87129051.5,"d":"$87,129,051.50"},{"v":1.4883664999771082,"d":"149%"},4,{"v":3728.9,"d":"$3,728.90"},{"v":2812426.9099999997,"d":"$2,812,426.91"},{"v":2816155.8099999996,"d":"$2,816,155.81"},{"v":1.05749,"d":"1.06"},{"v":13949685.12,"d":"$13,949,685.12"},{"v":4649430.04,"d":"$4,649,430.04"},{"v":1676812.03,"d":"$1,676,812.03"},{"v":558937.34,"d":"$558,937.34"},{"v":445730.54,"d":"$445,730.54"},{"v":1433048.26,"d":"$1,433,048.26"},{"v":340859.7,"d":"$340,859.70"},{"v":620967.15,"d":"$620,967.15"},{"v":561104.65,"d":"$561,104.65"},{"v":413978.1,"d":"$413,978.10"},{"v":832416.28,"d":"$832,416.28"},{"v":716712.31,"d":"$716,712.31"},{"v":745131.32,"d":"$745,131.32"},{"v":26944812.84,"d":"$26,944,812.84"},{"v":356023.8,"d":"$356,023.80"},{"v":494477.49999999994,"d":"$494,477.50"},{"v":1285641.5,"d":"$1,285,641.50"},{"v":134497.88,"d":"$134,497.88"},{"v":1129386.61,"d":"$1,129,386.61"},{"v":3398049.38,"d":"$3,398,049.38"},{"v":5383871.02,"d":"$5,383,871.02"},{"v":3706603.34,"d":"$3,706,603.34"},{"v":10159463.97348,"d":"$10,159,463.97"},{"v":26048015.00348,"d":"$26,048,015.00"},{"v":3765465.94,"d":"$3,765,465.94"},{"v":22282549.063479997,"d":"$22,282,549.06"},{"v":26264491.633479998,"d":"$26,264,491.63"},{"v":386926.86,"d":"$386,926.86"},{"v":386926.86,"d":"$386,926.86"},{"v":403210.36,"d":"$403,210.36"},{"v":403210.36,"d":"$403,210.36"},{"v":66684.79,"d":"$66,684.79"},{"v":66684.79,"d":"$66,684.79"},{"v":69786.4,"d":"$69,786.40"},{"v":69786.4,"d":"$69,786.40"},{"v":83743.69,"d":"$83,743.69"},{"v":2175009.74,"d":"$2,175,009.74"},{"v":881038.38,"d":"$881,038.38"},{"v":337738.24,"d":"$337,738.24"},{"v":5330746.87,"d":"$5,330,746.87"},{"v":58540051.46,"d":"$58,540,051.46"},{"v":246425.91,"d":"$246,425.91"},{"v":12993.49,"d":"$12,993.49"},{"v":1516023.3800000006,"d":"$1,516,023.38"},{"v":58540051.34348,"d":"$58,540,051.34"}]
["19022087017","GLENBARD TWP H S DIST 87",7884.98,{"v":124814169.83,"d":"$124,814,169.83"},{"v":120034217.46000001,"d":"$120,034,217.46"},{"v":0.9617034478015565,"d":"96%"},3,{"v":141840.17,"d":"$141,840.17"},{"v":8210528.619999999,"d":"$8,210,528.62"},{"v":8352368.789999999,"d":"$8,352,368.79"},{"v":1.05749,"d":"1.06"},{"v":28891717.28,"d":"$28,891,717.28"},{"v":9629609.36,"d":"$9,629,609.36"},{"v":3343446.14,"d":"$3,343,446.14"},{"v":1114482.04,"d":"$1,114,482.04"},{"v":982172.35,"d":"$982,172.35"},{"v":2856132.22,"d":"$2,856,132.22"},{"v":679779.03,"d":"$679,779.03"},{"v":1238165.16,"d":"$1,238,165.16"},{"v":1118803.52,"d":"$1,118,803.52"},{"v":825443.44,"d":"$825,443.44"},{"v":1659779.96,"d":"$1,659,779.96"},{"v":1429074.32,"d":"$1,429,074.32"},{"v":1485739.84,"d":"$1,485,739.84"},{"v":55254344.660000004,"d":"$55,254,344.66"},{"v":709648.2,"d":"$709,648.20"},{"v":985622.5,"d":"$985,622.50"},{"v":2562618.5,"d":"$2,562,618.50"},{"v":268089.32,"d":"$268,089.32"},{"v":2251161.79,"d":"$2,251,161.79"},{"v":6773197.819999999,"d":"$6,773,197.82"},{"v":10731457.78,"d":"$10,731,457.78"},{"v":7388226.26,"d":"$7,388,226.26"},{"v":22026135.75072,"d":"$22,026,135.75"},{"v":53696157.920719996,"d":"$53,696,157.92"},{"v":7505554.76,"d":"$7,505,554.76"},{"v":46190603.160720006,"d":"$46,190,603.16"},{"v":54127652.26072001,"d":"$54,127,652.26"},{"v":1566317.17,"d":"$1,566,317.17"},{"v":1566317.17,"d":"$1,566,317.17"},{"v":1631451.15,"d":"$1,631,451.15"},{"v":1631451.15,"d":"$1,631,451.15"},{"v":425697.09,"d":"$425,697.09"},{"v":425697.09,"d":"$425,697.09"},{"v":443531.39,"d":"$443,531.39"},{"v":443531.39,"d":"$443,531.39"},{"v":531927.51,"d":"$531,927.51"},{"v":4336062.2,"d":"$4,336,062.20"},{"v":1756423.04,"d":"$1,756,423.04"},{"v":673766.42,"d":"$673,766.42"},{"v":15432172.769999998,"d":"$15,432,172.77"},{"v":124814169.83,"d":"$124,814,169.83"},{"v":1803067.82,"d":"$1,803,067.82"},{"v":90890.5,"d":"$90,890.50"},{"v":2279102.24,"d":"$2,279,102.24"},{"v":124814169.69072,"d":"$124,814,169.69"}]
["19022088016","DU PAGE HIGH SCHOOL DIST 88",3859.5,{"v":66136743.44,"d":"$66,136,743.44"},{"v":57204656.440000005,"d":"$57,204,656.44"},{"v":0.8649451645876202,"d":"86%"},2,{"v":91377.11,"d":"$91,377.11"},{"v":5638326.340000001,"d":"$5,638,326.34"},{"v":5729703.450000001,"d":"$5,729,703.45"},{"v":1.05749,"d":"1.06"},{"v":14603616.37,"d":"$14,603,616.37"},{"v":4867385.33,"d":"$4,867,385.33"},{"v":1636100.35,"d":"$1,636,100.35"},{"v":545366.78,"d":"$545,366.78"},{"v":526269.03,"d":"$526,269.03"},{"v":1397720.27,"d":"$1,397,720.27"},{"v":332451.4,"d":"$332,451.40"},{"v":605890.56,"d":"$605,890.56"},{"v":547481.48,"d":"$547,481.48"},{"v":403927.04,"d":"$403,927.04"},{"v":812205.87,"d":"$812,205.87"},{"v":699311.1,"d":"$699,311.10"},{"v":727040.12,"d":"$727,040.12"},{"v":27704765.700000003,"d":"$27,704,765.70"},{"v":347355,"d":"$347,355.00"},{"v":482437.5,"d":"$482,437.50"},{"v":1254337.5,"d":"$1,254,337.50"},{"v":131223,"d":"$131,223.00"},{"v":2203774.5,"d":"$2,203,774.50"},{"v":3315310.5,"d":"$3,315,310.50"},{"v":5252779.5,"d":"$5,252,779.50"},{"v":3616351.5,"d":"$3,616,351.50"},{"v":11642226.375,"d":"$11,642,226.38"},{"v":28245795.375,"d":"$28,245,795.38"},{"v":3673780.86,"d":"$3,673,780.86"},{"v":24572014.515,"d":"$24,572,014.52"},{"v":28457001.035,"d":"$28,457,001.04"},{"v":1104176.06,"d":"$1,104,176.06"},{"v":1104176.06,"d":"$1,104,176.06"},{"v":1149924.93,"d":"$1,149,924.93"},{"v":1149924.93,"d":"$1,149,924.93"},{"v":403985.76,"d":"$403,985.76"},{"v":403985.76,"d":"$403,985.76"},{"v":421044.66,"d":"$421,044.66"},{"v":421044.66,"d":"$421,044.66"},{"v":505563.76,"d":"$505,563.76"},{"v":2122282.23,"d":"$2,122,282.23"},{"v":859679.87,"d":"$859,679.87"},{"v":329187.91,"d":"$329,187.91"},{"v":9974976.589999998,"d":"$9,974,976.59"},{"v":66136743.44,"d":"$66,136,743.44"},{"v":2039345.0699999996,"d":"$2,039,345.07"},{"v":149911.48,"d":"$149,911.48"},{"v":1309579.4400000002,"d":"$1,309,579.44"},{"v":66136743.324999996,"d":"$66,136,743.33"}]
["19022089004","GLEN ELLYN C C SCHOOL DIST 89",2192.38,{"v":30120419.52,"d":"$30,120,419.52"},{"v":31195109.42,"d":"$31,195,109.42"},{"v":1.0356797786062177,"d":"104%"},4,{"v":1918.62,"d":"$1,918.62"},{"v":1645157.7800000003,"d":"$1,645,157.78"},{"v":1647076.4000000004,"d":"$1,647,076.40"},{"v":1.05749,"d":"1.06"},{"v":7515042.14,"d":"$7,515,042.14"},{"v":1503008.42,"d":"$1,503,008.42"},{"v":807474.35,"d":"$807,474.35"},{"v":358385.87,"d":"$358,385.87"},{"v":260831.92,"d":"$260,831.92"},{"v":484795.08,"d":"$484,795.08"},{"v":188863.44,"d":"$188,863.44"},{"v":305615.09,"d":"$305,615.09"},{"v":413804.04,"d":"$413,804.04"},{"v":228975.75,"d":"$228,975.75"},{"v":613891.21,"d":"$613,891.21"},{"v":528561.73,"d":"$528,561.73"},{"v":366723.71,"d":"$366,723.71"},{"v":13575972.749999996,"d":"$13,575,972.75"},{"v":194374.8,"d":"$194,374.80"},{"v":274047.5,"d":"$274,047.50"},{"v":712523.5,"d":"$712,523.50"},{"v":74540.92,"d":"$74,540.92"},{"v":625924.48,"d":"$625,924.48"},{"v":356577.76,"d":"$356,577.76"},{"v":2983829.1799999997,"d":"$2,983,829.18"},{"v":2054260.06,"d":"$2,054,260.06"},{"v":5452060.510319999,"d":"$5,452,060.51"},{"v":12728138.71032,"d":"$12,728,138.71"},{"v":2086882.67,"d":"$2,086,882.67"},{"v":10641256.04032,"d":"$10,641,256.04"},{"v":12848113.590319999,"d":"$12,848,113.59"},{"v":265188.35,"d":"$265,188.35"},{"v":265188.35,"d":"$265,188.35"},{"v":276044.01,"d":"$276,044.01"},{"v":276044.01,"d":"$276,044.01"},{"v":137246.6,"d":"$137,246.60"},{"v":137246.6,"d":"$137,246.60"},{"v":143449.84,"d":"$143,449.84"},{"v":143449.84,"d":"$143,449.84"},{"v":172139.8,"d":"$172,139.80"},{"v":1204978.65,"d":"$1,204,978.65"},{"v":488104.68,"d":"$488,104.68"},{"v":187252.34,"d":"$187,252.34"},{"v":3696333.0700000003,"d":"$3,696,333.07"},{"v":30120419.52,"d":"$30,120,419.52"},{"v":187401.22,"d":"$187,401.22"},{"v":53696.88000000001,"d":"$53,696.88"},{"v":574941.18,"d":"$574,941.18"},{"v":30120419.410319995,"d":"$30,120,419.41"}]
["19022093004","COMMUNITY CONSOLIDATED S D 93",3216.96,{"v":48670643.26,"d":"$48,670,643.26"},{"v":58218813.13,"d":"$58,218,813.13"},{"v":1.1961792413343173,"d":"120%"},4,{"v":3100.24,"d":"$3,100.24"},{"v":3917896.38,"d":"$3,917,896.38"},{"v":3920996.62,"d":"$3,920,996.62"},{"v":1.05749,"d":"1.06"},{"v":11323076.44,"d":"$11,323,076.44"},{"v":2264615.28,"d":"$2,264,615.28"},{"v":1185770.55,"d":"$1,185,770.55"},{"v":526517.52,"d":"$526,517.52"},{"v":434578.23,"d":"$434,578.23"},{"v":730371.6,"d":"$730,371.60"},{"v":276180.44,"d":"$276,180.44"},{"v":448842.72,"d":"$448,842.72"},{"v":607934.33,"d":"$607,934.33"},{"v":336396.47,"d":"$336,396.47"},{"v":901889.56,"d":"$901,889.56"},{"v":776528.97,"d":"$776,528.97"},{"v":538590.11,"d":"$538,590.11"},{"v":20351292.21999999,"d":"$20,351,292.22"},{"v":285424.2,"d":"$285,424.20"},{"v":402120,"d":"$402,120.00"},{"v":1045512,"d":"$1,045,512.00"},{"v":109376.64,"d":"$109,376.64"},{"v":918442.0700000001,"d":"$918,442.07"},{"v":539599.1000000001,"d":"$539,599.10"},{"v":4378282.5600000005,"d":"$4,378,282.56"},{"v":3014291.52,"d":"$3,014,291.52"},{"v":8973585.84444,"d":"$8,973,585.84"},{"v":19666633.93444,"d":"$19,666,633.93"},{"v":3062159.88,"d":"$3,062,159.88"},{"v":16604474.054440003,"d":"$16,604,474.05"},{"v":19842677.504440002,"d":"$19,842,677.50"},{"v":659093.86,"d":"$659,093.86"},{"v":659093.86,"d":"$659,093.86"},{"v":686233.02,"d":"$686,233.02"},{"v":686233.02,"d":"$686,233.02"},{"v":567596.12,"d":"$567,596.12"},{"v":567596.12,"d":"$567,596.12"},{"v":590858.26,"d":"$590,858.26"},{"v":590858.26,"d":"$590,858.26"},{"v":709495.15,"d":"$709,495.15"},{"v":1768697.76,"d":"$1,768,697.76"},{"v":716452.24,"d":"$716,452.24"},{"v":274465.76,"d":"$274,465.76"},{"v":8476673.43,"d":"$8,476,673.43"},{"v":48670643.26,"d":"$48,670,643.26"},{"v":865553.49,"d":"$865,553.49"},{"v":132109.3,"d":"$132,109.30"},{"v":1378785.69,"d":"$1,378,785.69"},{"v":48670643.15443999,"d":"$48,670,643.15"}]
["19022094016","COMMUNITY HIGH SCH DISTRICT 94",2073,{"v":37155073.45,"d":"$37,155,073.45"},{"v":26540443.44,"d":"$26,540,443.44"},{"v":0.7143154615402866,"d":"71%"},1,{"v":1019013.39,"d":"$1,019,013.39"},{"v":6465327.0600000005,"d":"$6,465,327.06"},{"v":7484340.45,"d":"$7,484,340.45"},{"v":1.05749,"d":"1.06"},{"v":7970158.15,"d":"$7,970,158.15"},{"v":2656453.71,"d":"$2,656,453.71"},{"v":878693.6,"d":"$878,693.60"},{"v":292615.14,"d":"$292,615.14"},{"v":301565.64,"d":"$301,565.64"},{"v":750946.27,"d":"$750,946.27"},{"v":178514.76,"d":"$178,514.76"},{"v":325403.12,"d":"$325,403.12"},{"v":293749.78,"d":"$293,749.78"},{"v":217040.11,"d":"$217,040.11"},{"v":435786.97,"d":"$435,786.97"},{"v":375213.57,"d":"$375,213.57"},{"v":390468.41,"d":"$390,468.41"},{"v":15066609.229999999,"d":"$15,066,609.23"},{"v":186570,"d":"$186,570.00"},{"v":259125,"d":"$259,125.00"},{"v":673725,"d":"$673,725.00"},{"v":70482,"d":"$70,482.00"},{"v":1183683,"d":"$1,183,683.00"},{"v":1780707,"d":"$1,780,707.00"},{"v":2821353,"d":"$2,821,353.00"},{"v":1942401,"d":"$1,942,401.00"},{"v":6609708.146999999,"d":"$6,609,708.15"},{"v":15527754.147,"d":"$15,527,754.15"},{"v":1973247.24,"d":"$1,973,247.24"},{"v":13554506.907,"d":"$13,554,506.91"},{"v":15641196.127,"d":"$15,641,196.13"},{"v":685457.61,"d":"$685,457.61"},{"v":685457.61,"d":"$685,457.61"},{"v":714147.58,"d":"$714,147.58"},{"v":714147.58,"d":"$714,147.58"},{"v":350482.85,"d":"$350,482.85"},{"v":350482.85,"d":"$350,482.85"},{"v":365215.53,"d":"$365,215.53"},{"v":365215.53,"d":"$365,215.53"},{"v":438103.56,"d":"$438,103.56"},{"v":1139844.67,"d":"$1,139,844.67"},{"v":461720.64,"d":"$461,720.64"},{"v":176991.94,"d":"$176,991.94"},{"v":6447267.95,"d":"$6,447,267.95"},{"v":37155073.45,"d":"$37,155,073.45"},{"v":1668568.81,"d":"$1,668,568.81"},{"v":385321.41,"d":"$385,321.41"},{"v":940766.0100000001,"d":"$940,766.01"},{"v":37155073.307000004,"d":"$37,155,073.31"}]
["19022099016","COMMUNITY HIGH SCHOOL DIST 99",4844.65,{"v":73523774.01,"d":"$73,523,774.01"},{"v":83938266.96000001,"d":"$83,938,266.96"},{"v":1.1416479647601268,"d":"114%"},4,{"v":4683.34,"d":"$4,683.34"},{"v":4047757.97,"d":"$4,047,757.97"},{"v":4052441.31,"d":"$4,052,441.31"},{"v":1.05749,"d":"1.06"},{"v":17369465.66,"d":"$17,369,465.66"},{"v":5789242.9,"d":"$5,789,242.90"},{"v":2054243.16,"d":"$2,054,243.16"},{"v":684465,"d":"$684,465.00"},{"v":566970.59,"d":"$566,970.59"},{"v":1754623.57,"d":"$1,754,623.57"},{"v":417181.23,"d":"$417,181.23"},{"v":760739.73,"d":"$760,739.73"},{"v":687119.05,"d":"$687,119.05"},{"v":506950.42,"d":"$506,950.42"},{"v":1019362.57,"d":"$1,019,362.57"},{"v":877673.5,"d":"$877,673.50"},{"v":912851.82,"d":"$912,851.82"},{"v":33400889.200000007,"d":"$33,400,889.20"},{"v":436018.49999999994,"d":"$436,018.50"},{"v":605581.25,"d":"$605,581.25"},{"v":1574511.2499999998,"d":"$1,574,511.25"},{"v":164718.09999999998,"d":"$164,718.10"},{"v":1383147.57,"d":"$1,383,147.57"},{"v":4161554.3499999996,"d":"$4,161,554.35"},{"v":6593568.649999999,"d":"$6,593,568.65"},{"v":4539437.05,"d":"$4,539,437.05"},{"v":12842037.6156,"d":"$12,842,037.62"},{"v":32300574.335599996,"d":"$32,300,574.34"},{"v":4611525.44,"d":"$4,611,525.44"},{"v":27689048.895599995,"d":"$27,689,048.90"},{"v":32565690.925599996,"d":"$32,565,690.93"},{"v":682355.99,"d":"$682,355.99"},{"v":682355.99,"d":"$682,355.99"},{"v":711045.96,"d":"$711,045.96"},{"v":711045.96,"d":"$711,045.96"},{"v":114759.87,"d":"$114,759.87"},{"v":114759.87,"d":"$114,759.87"},{"v":120187.7,"d":"$120,187.70"},{"v":120187.7,"d":"$120,187.70"},{"v":144225.24,"d":"$144,225.24"},{"v":2663514.6,"d":"$2,663,514.60"},{"v":1078918.66,"d":"$1,078,918.66"},{"v":413836.23,"d":"$413,836.23"},{"v":7557193.770000001,"d":"$7,557,193.77"},{"v":73523774.01,"d":"$73,523,774.01"},{"v":560738.8099999999,"d":"$560,738.81"},{"v":28880.130000000005,"d":"$28,880.13"},{"v":1670194.9500000002,"d":"$1,670,194.95"},{"v":73523773.8956,"d":"$73,523,773.90"}]
["19022100016","FENTON COMM H S DIST 100",1440.82,{"v":24822441.67,"d":"$24,822,441.67"},{"v":28194940.61,"d":"$28,194,940.61"},{"v":1.1358649155000713,"d":"114%"},4,{"v":1581.15,"d":"$1,581.15"},{"v":1850759.68,"d":"$1,850,759.68"},{"v":1852340.8299999998,"d":"$1,852,340.83"},{"v":1.05749,"d":"1.06"},{"v":5498620.33,"d":"$5,498,620.33"},{"v":1832690.15,"d":"$1,832,690.15"},{"v":610675.09,"d":"$610,675.09"},{"v":203558.36,"d":"$203,558.36"},{"v":202742.57,"d":"$202,742.57"},{"v":521767.25,"d":"$521,767.25"},{"v":124184.18,"d":"$124,184.18"},{"v":226148.88,"d":"$226,148.88"},{"v":204347.67,"d":"$204,347.67"},{"v":150765.92,"d":"$150,765.92"},{"v":303156.15,"d":"$303,156.15"},{"v":261018.14,"d":"$261,018.14"},{"v":271368,"d":"$271,368.00"},{"v":10411042.690000001,"d":"$10,411,042.69"},{"v":129673.79999999999,"d":"$129,673.80"},{"v":180102.5,"d":"$180,102.50"},{"v":468266.5,"d":"$468,266.50"},{"v":48987.88,"d":"$48,987.88"},{"v":411354.11,"d":"$411,354.11"},{"v":1237664.38,"d":"$1,237,664.38"},{"v":1960956.02,"d":"$1,960,956.02"},{"v":1350048.3399999999,"d":"$1,350,048.34"},{"v":4465034.727479999,"d":"$4,465,034.73"},{"v":10252088.25748,"d":"$10,252,088.26"},{"v":1371487.74,"d":"$1,371,487.74"},{"v":8880600.51748,"d":"$8,880,600.52"},{"v":10330935.087480001,"d":"$10,330,935.09"},{"v":446633.01,"d":"$446,633.01"},{"v":446633.01,"d":"$446,633.01"},{"v":465242.72,"d":"$465,242.72"},{"v":465242.72,"d":"$465,242.72"},{"v":191524.92,"d":"$191,524.92"},{"v":191524.92,"d":"$191,524.92"},{"v":199278.96,"d":"$199,278.96"},{"v":199278.96,"d":"$199,278.96"},{"v":239600,"d":"$239,600.00"},{"v":791688.03,"d":"$791,688.03"},{"v":320691.68,"d":"$320,691.68"},{"v":123124.82,"d":"$123,124.82"},{"v":4080463.75,"d":"$4,080,463.75"},{"v":24822441.67,"d":"$24,822,441.67"},{"v":809550.7300000001,"d":"$809,550.73"},{"v":31929.359999999997,"d":"$31,929.36"},{"v":416946.39,"d":"$416,946.39"},{"v":24822441.527480002,"d":"$24,822,441.53"}]
["19022108016","LAKE PARK COMM H S DIST 108",2566.99,{"v":39809811.84,"d":"$39,809,811.84"},{"v":42983320.77,"d":"$42,983,320.77"},{"v":1.0797167528134692,"d":"108%"},4,{"v":2535.82,"d":"$2,535.82"},{"v":2071475.76,"d":"$2,071,475.76"},{"v":2074011.58,"d":"$2,074,011.58"},{"v":1.05749,"d":"1.06"},{"v":9312795.2,"d":"$9,312,795.20"},{"v":3103954.63,"d":"$3,103,954.63"},{"v":1088189.09,"d":"$1,088,189.09"},{"v":362164.25,"d":"$362,164.25"},{"v":310276.74,"d":"$310,276.74"},{"v":929397.92,"d":"$929,397.92"},{"v":221203.07,"d":"$221,203.07"},{"v":402984.75,"d":"$402,984.75"},{"v":363568.57,"d":"$363,568.57"},{"v":268551.8,"d":"$268,551.80"},{"v":539365.32,"d":"$539,365.32"},{"v":464394.77,"d":"$464,394.77"},{"v":483562.71,"d":"$483,562.71"},{"v":17850408.82,"d":"$17,850,408.82"},{"v":231029.09999999998,"d":"$231,029.10"},{"v":320873.75,"d":"$320,873.75"},{"v":834271.7499999999,"d":"$834,271.75"},{"v":87277.65999999999,"d":"$87,277.66"},{"v":732875.64,"d":"$732,875.64"},{"v":2205044.4099999997,"d":"$2,205,044.41"},{"v":3493673.3899999997,"d":"$3,493,673.39"},{"v":2405269.63,"d":"$2,405,269.63"},{"v":6990700.383359999,"d":"$6,990,700.38"},{"v":17301015.713359997,"d":"$17,301,015.71"},{"v":2443466.44,"d":"$2,443,466.44"},{"v":14857549.27336,"d":"$14,857,549.27"},{"v":17441490.59336,"d":"$17,441,490.59"},{"v":441980.58,"d":"$441,980.58"},{"v":441980.58,"d":"$441,980.58"},{"v":459814.89,"d":"$459,814.89"},{"v":459814.89,"d":"$459,814.89"},{"v":96150.16,"d":"$96,150.16"},{"v":96150.16,"d":"$96,150.16"},{"v":100027.18,"d":"$100,027.18"},{"v":100027.18,"d":"$100,027.18"},{"v":120187.7,"d":"$120,187.70"},{"v":1411236.26,"d":"$1,411,236.26"},{"v":571654.13,"d":"$571,654.13"},{"v":218888.58,"d":"$218,888.58"},{"v":4517912.29,"d":"$4,517,912.29"},{"v":39809811.84,"d":"$39,809,811.84"},{"v":380431.02999999997,"d":"$380,431.03"},{"v":7575.010000000001,"d":"$7,575.01"},{"v":673677.7699999999,"d":"$673,677.77"},{"v":39809811.70336,"d":"$39,809,811.70"}]
["19022180004","COMMUNITY CONS SCH DIST 180",478.21,{"v":7658237.99,"d":"$7,658,237.99"},{"v":10465480.110000001,"d":"$10,465,480.11"},{"v":1.3665650145197434,"d":"137%"},4,{"v":487.81,"d":"$487.81"},{"v":1851507.8099999998,"d":"$1,851,507.81"},{"v":1851995.6199999999,"d":"$1,851,995.62"},{"v":1.05749,"d":"1.06"},{"v":1870095.85,"d":"$1,870,095.85"},{"v":374019.16,"d":"$374,019.16"},{"v":175505.84,"d":"$175,505.84"},{"v":77429.04,"d":"$77,429.04"},{"v":70079.34,"d":"$70,079.34"},{"v":108085.46,"d":"$108,085.46"},{"v":40747.93,"d":"$40,747.93"},{"v":66588.28,"d":"$66,588.28"},{"v":89402.1,"d":"$89,402.10"},{"v":49627.11,"d":"$49,627.11"},{"v":132630.81,"d":"$132,630.81"},{"v":114195.43,"d":"$114,195.43"},{"v":79902.8,"d":"$79,902.80"},{"v":3248309.15,"d":"$3,248,309.15"},{"v":42731.99999999999,"d":"$42,732.00"},{"v":59776.24999999999,"d":"$59,776.25"},{"v":155418.24999999997,"d":"$155,418.25"},{"v":16259.139999999998,"d":"$16,259.14"},{"v":136528.95,"d":"$136,528.95"},{"v":80924.76,"d":"$80,924.76"},{"v":650843.8099999998,"d":"$650,843.81"},{"v":448082.7699999999,"d":"$448,082.77"},{"v":1426041.72144,"d":"$1,426,041.72"},{"v":3016607.6514399997,"d":"$3,016,607.65"},{"v":455198.53,"d":"$455,198.53"},{"v":2561409.12144,"d":"$2,561,409.12"},{"v":3042777.01144,"d":"$3,042,777.01"},{"v":210910.03,"d":"$210,910.03"},{"v":210910.03,"d":"$210,910.03"},{"v":220214.89,"d":"$220,214.89"},{"v":220214.89,"d":"$220,214.89"},{"v":17834.3,"d":"$17,834.30"},{"v":17834.3,"d":"$17,834.30"},{"v":18609.7,"d":"$18,609.70"},{"v":18609.7,"d":"$18,609.70"},{"v":22486.73,"d":"$22,486.73"},{"v":262862.13,"d":"$262,862.13"},{"v":106478.43,"d":"$106,478.43"},{"v":40186.57,"d":"$40,186.57"},{"v":1367151.7,"d":"$1,367,151.70"},{"v":7658237.99,"d":"$7,658,237.99"},{"v":1170077.47,"d":"$1,170,077.47"},{"v":30.89,"d":"$30.89"},{"v":321876.87999999995,"d":"$321,876.88"},{"v":7658237.86144,"d":"$7,658,237.86"}]
["19022181004","HINSDALE C C SCHOOL DIST 181",3451.56,{"v":43929106.48,"d":"$43,929,106.48"},{"v":65748610.93,"d":"$65,748,610.93"},{"v":1.4966981165422513,"d":"150%"},4,{"v":2798.21,"d":"$2,798.21"},{"v":2256248.05,"d":"$2,256,248.05"},{"v":2259046.26,"d":"$2,259,046.26"},{"v":1.05749,"d":"1.06"},{"v":11202139.65,"d":"$11,202,139.65"},{"v":2240427.92,"d":"$2,240,427.92"},{"v":1272048.64,"d":"$1,272,048.64"},{"v":564863.33,"d":"$564,863.33"},{"v":367344.54,"d":"$367,344.54"},{"v":793156.54,"d":"$793,156.54"},{"v":296877.8,"d":"$296,877.80"},{"v":481508.67,"d":"$481,508.67"},{"v":652209.66,"d":"$652,209.66"},{"v":360895.93,"d":"$360,895.93"},{"v":967573.4,"d":"$967,573.40"},{"v":833082.9,"d":"$833,082.90"},{"v":577787.71,"d":"$577,787.71"},{"v":20609916.69,"d":"$20,609,916.69"},{"v":308713.5,"d":"$308,713.50"},{"v":431445,"d":"$431,445.00"},{"v":1121757,"d":"$1,121,757.00"},{"v":117353.04000000001,"d":"$117,353.04"},{"v":985420.37,"d":"$985,420.37"},{"v":590835.51,"d":"$590,835.51"},{"v":4697573.16,"d":"$4,697,573.16"},{"v":3234111.72,"d":"$3,234,111.72"},{"v":7814427.41484,"d":"$7,814,427.41"},{"v":19301636.714840002,"d":"$19,301,636.71"},{"v":3285470.93,"d":"$3,285,470.93"},{"v":16016165.784839999,"d":"$16,016,165.78"},{"v":19490518.434839997,"d":"$19,490,518.43"},{"v":77540.45,"d":"$77,540.45"},{"v":77540.45,"d":"$77,540.45"},{"v":80642.07,"d":"$80,642.07"},{"v":80642.07,"d":"$80,642.07"},{"v":103128.8,"d":"$103,128.80"},{"v":103128.8,"d":"$103,128.80"},{"v":107781.23,"d":"$107,781.23"},{"v":107781.23,"d":"$107,781.23"},{"v":129492.55,"d":"$129,492.55"},{"v":1897414.91,"d":"$1,897,414.91"},{"v":768592.12,"d":"$768,592.12"},{"v":294986.57,"d":"$294,986.57"},{"v":3828671.25,"d":"$3,828,671.25"},{"v":43929106.48,"d":"$43,929,106.48"},{"v":76201.69000000002,"d":"$76,201.69"},{"v":9115.269999999999,"d":"$9,115.27"},{"v":1375151.4200000002,"d":"$1,375,151.42"},{"v":43929106.37484,"d":"$43,929,106.37"}]
["19022200026","COMMUNITY UNIT SCHOOL DIST 200",11342.03,{"v":165450091.28,"d":"$165,450,091.28"},{"v":160985647.86999997,"d":"$160,985,647.87"},{"v":0.9730163738474789,"d":"97%"},3,{"v":188019.27,"d":"$188,019.27"},{"v":13843927.379999999,"d":"$13,843,927.38"},{"v":14031946.649999999,"d":"$14,031,946.65"},{"v":1.05749,"d":"1.06"},{"v":39781389.26,"d":"$39,781,389.26"},{"v":9791576.09,"d":"$9,791,576.09"},{"v":4391685.98,"d":"$4,391,685.98"},{"v":1772062.85,"d":"$1,772,062.85"},{"v":1388315.4,"d":"$1,388,315.40"},{"v":3092853.6,"d":"$3,092,853.60"},{"v":977303.63,"d":"$977,303.63"},{"v":1649316.41,"d":"$1,649,316.41"},{"v":1965143.48,"d":"$1,965,143.48"},{"v":1186967.57,"d":"$1,186,967.57"},{"v":2915351.71,"d":"$2,915,351.71"},{"v":2510124.46,"d":"$2,510,124.46"},{"v":1979101.95,"d":"$1,979,101.95"},{"v":73401192.38999999,"d":"$73,401,192.39"},{"v":1011985.2,"d":"$1,011,985.20"},{"v":1417753.75,"d":"$1,417,753.75"},{"v":3686159.75,"d":"$3,686,159.75"},{"v":385629.02,"d":"$385,629.02"},{"v":3238149.5600000005,"d":"$3,238,149.56"},{"v":4534138.62,"d":"$4,534,138.62"},{"v":15436502.83,"d":"$15,436,502.83"},{"v":10627482.110000001,"d":"$10,627,482.11"},{"v":29728445.857919995,"d":"$29,728,445.86"},{"v":70066246.69792,"d":"$70,066,246.70"},{"v":10796251.51,"d":"$10,796,251.51"},{"v":59269995.18792001,"d":"$59,269,995.19"},{"v":70686923.18792,"d":"$70,686,923.19"},{"v":1871051.16,"d":"$1,871,051.16"},{"v":1871051.16,"d":"$1,871,051.16"},{"v":1949367.01,"d":"$1,949,367.01"},{"v":1949367.01,"d":"$1,949,367.01"},{"v":747489.97,"d":"$747,489.97"},{"v":747489.97,"d":"$747,489.97"},{"v":779281.56,"d":"$779,281.56"},{"v":779281.56,"d":"$779,281.56"},{"v":935137.87,"d":"$935,137.87"},{"v":6236578.73,"d":"$6,236,578.73"},{"v":2526271.55,"d":"$2,526,271.55"},{"v":969608.03,"d":"$969,608.03"},{"v":21361975.580000002,"d":"$21,361,975.58"},{"v":165450091.28,"d":"$165,450,091.28"},{"v":2111422.29,"d":"$2,111,422.29"},{"v":375239.48000000004,"d":"$375,239.48"},{"v":5219828.59,"d":"$5,219,828.59"},{"v":165450091.15792,"d":"$165,450,091.16"}]
["19022201026","WESTMONT C U SCHOOL DIST 201",1304.12,{"v":19664778.83,"d":"$19,664,778.83"},{"v":24515154.520000003,"d":"$24,515,154.52"},{"v":1.2466529490075127,"d":"125%"},4,{"v":1252.61,"d":"$1,252.61"},{"v":1328908.92,"d":"$1,328,908.92"},{"v":1330161.53,"d":"$1,330,161.53"},{"v":1.05749,"d":"1.06"},{"v":4754438.22,"d":"$4,754,438.22"},{"v":1146933.17,"d":"$1,146,933.17"},{"v":501875.94,"d":"$501,875.94"},{"v":203351.71,"d":"$203,351.71"},{"v":168529.22,"d":"$168,529.22"},{"v":343288.55,"d":"$343,288.55"},{"v":111248.32,"d":"$111,248.32"},{"v":188457.4,"d":"$188,457.40"},{"v":226485.34,"d":"$226,485.34"},{"v":136003.42,"d":"$136,003.42"},{"v":335998.07,"d":"$335,998.07"},{"v":289295.1,"d":"$289,295.10"},{"v":226140,"d":"$226,140.00"},{"v":8632044.46,"d":"$8,632,044.46"},{"v":116073.9,"d":"$116,073.90"},{"v":163015,"d":"$163,015.00"},{"v":423839,"d":"$423,839.00"},{"v":44340.08,"d":"$44,340.08"},{"v":372326.25,"d":"$372,326.25"},{"v":486479.85,"d":"$486,479.85"},{"v":1774907.3199999998,"d":"$1,774,907.32"},{"v":1221960.44,"d":"$1,221,960.44"},{"v":3565699.97268,"d":"$3,565,699.97"},{"v":8168641.81268,"d":"$8,168,641.81"},{"v":1241365.74,"d":"$1,241,365.74"},{"v":6927276.07268,"d":"$6,927,276.07"},{"v":8240007.92268,"d":"$8,240,007.92"},{"v":319466.67,"d":"$319,466.67"},{"v":319466.67,"d":"$319,466.67"},{"v":332648.54,"d":"$332,648.54"},{"v":332648.54,"d":"$332,648.54"},{"v":69786.4,"d":"$69,786.40"},{"v":69786.4,"d":"$69,786.40"},{"v":72112.62,"d":"$72,112.62"},{"v":72112.62,"d":"$72,112.62"},{"v":86845.3,"d":"$86,845.30"},{"v":716473.79,"d":"$716,473.79"},{"v":290224.4,"d":"$290,224.40"},{"v":111154.36,"d":"$111,154.36"},{"v":2792726.3099999996,"d":"$2,792,726.31"},{"v":19664778.83,"d":"$19,664,778.83"},{"v":388361.04,"d":"$388,361.04"},{"v":26309.100000000002,"d":"$26,309.10"},{"v":517210.26999999996,"d":"$517,210.27"},{"v":19664778.692679998,"d":"$19,664,778.69"}]
["19022202026","LISLE C U SCH DIST 202",1456.25,{"v":20846403.4,"d":"$20,846,403.40"},{"v":30882157.209999997,"d":"$30,882,157.21"},{"v":1.4814141613512093,"d":"148%"},4,{"v":1327.88,"d":"$1,327.88"},{"v":1257077.4900000002,"d":"$1,257,077.49"},{"v":1258405.37,"d":"$1,258,405.37"},{"v":1.05749,"d":"1.06"},{"v":5162498.1,"d":"$5,162,498.10"},{"v":1236346.26,"d":"$1,236,346.26"},{"v":560318.35,"d":"$560,318.35"},{"v":227502.83,"d":"$227,502.83"},{"v":175525.85,"d":"$175,525.85"},{"v":379590.58,"d":"$379,590.58"},{"v":124184.18,"d":"$124,184.18"},{"v":210444.1,"d":"$210,444.10"},{"v":253731.69,"d":"$253,731.69"},{"v":152022.3,"d":"$152,022.30"},{"v":376418.89,"d":"$376,418.89"},{"v":324097.52,"d":"$324,097.52"},{"v":252523,"d":"$252,523.00"},{"v":9435203.649999999,"d":"$9,435,203.65"},{"v":130320,"d":"$130,320.00"},{"v":182031.25,"d":"$182,031.25"},{"v":473281.25,"d":"$473,281.25"},{"v":49512.5,"d":"$49,512.50"},{"v":415759.37,"d":"$415,759.37"},{"v":532144,"d":"$532,144.00"},{"v":1981956.25,"d":"$1,981,956.25"},{"v":1364506.25,"d":"$1,364,506.25"},{"v":3740920.8000000003,"d":"$3,740,920.80"},{"v":8870431.67,"d":"$8,870,431.67"},{"v":1386175.25,"d":"$1,386,175.25"},{"v":7484256.420000002,"d":"$7,484,256.42"},{"v":8950122.880000003,"d":"$8,950,122.88"},{"v":227968.93,"d":"$227,968.93"},{"v":227968.93,"d":"$227,968.93"},{"v":237273.79,"d":"$237,273.79"},{"v":237273.79,"d":"$237,273.79"},{"v":52727.5,"d":"$52,727.50"},{"v":52727.5,"d":"$52,727.50"},{"v":55053.72,"d":"$55,053.72"},{"v":55053.72,"d":"$55,053.72"},{"v":66684.79,"d":"$66,684.79"},{"v":800217.48,"d":"$800,217.48"},{"v":324146.74,"d":"$324,146.74"},{"v":123979.86,"d":"$123,979.86"},{"v":2461076.75,"d":"$2,461,076.75"},{"v":20846403.4,"d":"$20,846,403.40"},{"v":320411.3,"d":"$320,411.30"},{"v":13438.31,"d":"$13,438.31"},{"v":568577.75,"d":"$568,577.75"},{"v":20846403.28,"d":"$20,846,403.28"}]
["19022203026","NAPERVILLE C U DIST 203",15948.29,{"v":220396865.09,"d":"$220,396,865.09"},{"v":264850663.1,"d":"$264,850,663.10"},{"v":1.2016988671406332,"d":"120%"},4,{"v":14038.93,"d":"$14,038.93"},{"v":12697660.959999999,"d":"$12,697,660.96"},{"v":12711699.889999999,"d":"$12,711,699.89"},{"v":1.05749,"d":"1.06"},{"v":54312767.4,"d":"$54,312,767.40"},{"v":13296163.69,"d":"$13,296,163.69"},{"v":6168256.52,"d":"$6,168,256.52"},{"v":2494321.58,"d":"$2,494,321.58"},{"v":1812197.37,"d":"$1,812,197.37"},{"v":4300854.08,"d":"$4,300,854.08"},{"v":1374434.29,"d":"$1,374,434.29"},{"v":2316769.73,"d":"$2,316,769.73"},{"v":2768911,"d":"$2,768,911.00"},{"v":1669104.44,"d":"$1,669,104.44"},{"v":4107765.93,"d":"$4,107,765.93"},{"v":3536795.82,"d":"$3,536,795.82"},{"v":2780014.48,"d":"$2,780,014.48"},{"v":100938356.33000001,"d":"$100,938,356.33"},{"v":1427058.9,"d":"$1,427,058.90"},{"v":1993536.25,"d":"$1,993,536.25"},{"v":5183194.25,"d":"$5,183,194.25"},{"v":542241.86,"d":"$542,241.86"},{"v":4553236.79,"d":"$4,553,236.79"},{"v":6264824.89,"d":"$6,264,824.89"},{"v":21705622.689999998,"d":"$21,705,622.69"},{"v":14943547.73,"d":"$14,943,547.73"},{"v":39149959.699559994,"d":"$39,149,959.70"},{"v":95763223.05956,"d":"$95,763,223.06"},{"v":15180858.28,"d":"$15,180,858.28"},{"v":80582364.77956,"d":"$80,582,364.78"},{"v":96635970.59956,"d":"$96,635,970.60"},{"v":1241422.67,"d":"$1,241,422.67"},{"v":1241422.67,"d":"$1,241,422.67"},{"v":1292599.37,"d":"$1,292,599.37"},{"v":1292599.37,"d":"$1,292,599.37"},{"v":762998.06,"d":"$762,998.06"},{"v":762998.06,"d":"$762,998.06"},{"v":794789.65,"d":"$794,789.65"},{"v":794789.65,"d":"$794,789.65"},{"v":953747.58,"d":"$953,747.58"},{"v":8769825.37,"d":"$8,769,825.37"},{"v":3552422.13,"d":"$3,552,422.13"},{"v":1362923.46,"d":"$1,362,923.46"},{"v":22822538.040000003,"d":"$22,822,538.04"},{"v":220396865.09,"d":"$220,396,865.09"},{"v":884673.6399999999,"d":"$884,673.64"},{"v":256951.24,"d":"$256,951.24"},{"v":5619186.9,"d":"$5,619,186.90"},{"v":220396864.96956,"d":"$220,396,864.97"}]
["19022204026","INDIAN PRAIRIE C U SCH DIST 204",25761.7,{"v":370638261.6,"d":"$370,638,261.60"},{"v":316260094.34000003,"d":"$316,260,094.34"},{"v":0.8532850682353837,"d":"85%"},2,{"v":551061.14,"d":"$551,061.14"},{"v":41987410.61,"d":"$41,987,410.61"},{"v":42538471.75,"d":"$42,538,471.75"},{"v":1.05749,"d":"1.06"},{"v":87741408.81,"d":"$87,741,408.81"},{"v":21662976.79,"d":"$21,662,976.79"},{"v":9983929.61,"d":"$9,983,929.61"},{"v":4022625.7,"d":"$4,022,625.70"},{"v":3002262.56,"d":"$3,002,262.56"},{"v":7049804.27,"d":"$7,049,804.27"},{"v":2221085.81,"d":"$2,221,085.81"},{"v":3749360.12,"d":"$3,749,360.12"},{"v":4457333.67,"d":"$4,457,333.67"},{"v":2696825.5,"d":"$2,696,825.50"},{"v":6612593.67,"d":"$6,612,593.67"},{"v":5693458.21,"d":"$5,693,458.21"},{"v":4499055.43,"d":"$4,499,055.43"},{"v":163392720.14999998,"d":"$163,392,720.15"},{"v":2304858.5999999996,"d":"$2,304,858.60"},{"v":3220212.5,"d":"$3,220,212.50"},{"v":8372552.5,"d":"$8,372,552.50"},{"v":875897.7999999999,"d":"$875,897.80"},{"v":14709930.700000001,"d":"$14,709,930.70"},{"v":10415916.28,"d":"$10,415,916.28"},{"v":35061673.699999996,"d":"$35,061,673.70"},{"v":24138712.9,"d":"$24,138,712.90"},{"v":64764740.3058,"d":"$64,764,740.31"},{"v":163864495.28579998,"d":"$163,864,495.29"},{"v":24522046.99,"d":"$24,522,046.99"},{"v":139342448.29579997,"d":"$139,342,448.30"},{"v":165274267.76579997,"d":"$165,274,267.77"},{"v":2223084.82,"d":"$2,223,084.82"},{"v":2223084.82,"d":"$2,223,084.82"},{"v":2315357.96,"d":"$2,315,357.96"},{"v":2315357.96,"d":"$2,315,357.96"},{"v":2022255.04,"d":"$2,022,255.04"},{"v":2022255.04,"d":"$2,022,255.04"},{"v":2106774.14,"d":"$2,106,774.14"},{"v":2106774.14,"d":"$2,106,774.14"},{"v":2528594.21,"d":"$2,528,594.21"},{"v":14166640.99,"d":"$14,166,640.99"},{"v":5738528.06,"d":"$5,738,528.06"},{"v":2202566.39,"d":"$2,202,566.39"},{"v":41971273.57,"d":"$41,971,273.57"},{"v":370638261.6,"d":"$370,638,261.60"},{"v":1719470.1300000001,"d":"$1,719,470.13"},{"v":935476.7500000001,"d":"$935,476.75"},{"v":9712679.550000003,"d":"$9,712,679.55"},{"v":370638261.48579997,"d":"$370,638,261.49"}]
["19022205026","ELMHURST SCHOOL DIST 205",8066,{"v":112638470.83,"d":"$112,638,470.83"},{"v":124715650.05,"d":"$124,715,650.05"},{"v":1.1072207313452216,"d":"111%"},4,{"v":7174.89,"d":"$7,174.89"},{"v":6521865.850000001,"d":"$6,521,865.85"},{"v":6529040.74,"d":"$6,529,040.74"},{"v":1.05749,"d":"1.06"},{"v":27461454.59,"d":"$27,461,454.59"},{"v":6758559.64,"d":"$6,758,559.64"},{"v":3122591.18,"d":"$3,122,591.18"},{"v":1259311.88,"d":"$1,259,311.88"},{"v":928717.48,"d":"$928,717.48"},{"v":2183592.99,"d":"$2,183,592.99"},{"v":694655.26,"d":"$694,655.26"},{"v":1172833.26,"d":"$1,172,833.26"},{"v":1396375.78,"d":"$1,396,375.78"},{"v":843975.09,"d":"$843,975.09"},{"v":2071567.07,"d":"$2,071,567.07"},{"v":1783623.96,"d":"$1,783,623.96"},{"v":1407344.64,"d":"$1,407,344.64"},{"v":51084602.82,"d":"$51,084,602.82"},{"v":719347.5,"d":"$719,347.50"},{"v":1008250,"d":"$1,008,250.00"},{"v":2621450,"d":"$2,621,450.00"},{"v":274244,"d":"$274,244.00"},{"v":2302843,"d":"$2,302,843.00"},{"v":3214585.75,"d":"$3,214,585.75"},{"v":10977826,"d":"$10,977,826.00"},{"v":7557842,"d":"$7,557,842.00"},{"v":20046828.156,"d":"$20,046,828.16"},{"v":48723216.406,"d":"$48,723,216.41"},{"v":7677864.08,"d":"$7,677,864.08"},{"v":41045352.326000005,"d":"$41,045,352.33"},{"v":49164616.80600001,"d":"$49,164,616.81"},{"v":652115.22,"d":"$652,115.22"},{"v":652115.22,"d":"$652,115.22"},{"v":679254.37,"d":"$679,254.37"},{"v":679254.37,"d":"$679,254.37"},{"v":525724.27,"d":"$525,724.27"},{"v":525724.27,"d":"$525,724.27"},{"v":548211.01,"d":"$548,211.01"},{"v":548211.01,"d":"$548,211.01"},{"v":657543.05,"d":"$657,543.05"},{"v":4435313.98,"d":"$4,435,313.98"},{"v":1796627.28,"d":"$1,796,627.28"},{"v":689157.03,"d":"$689,157.03"},{"v":12389251.079999998,"d":"$12,389,251.08"},{"v":112638470.83,"d":"$112,638,470.83"},{"v":506358.6699999999,"d":"$506,358.67"},{"v":192619.49,"d":"$192,619.49"},{"v":2738177.15,"d":"$2,738,177.15"},{"v":112638470.70600002,"d":"$112,638,470.71"}]
[null,"ALT SCH-EDWD/GLTN/HDIN/POP/SLNE/",32.32,{"v":452065.14,"d":"$452,065.14"},{"v":331558.36,"d":"$331,558.36"},{"v":0.7334304963218353,"d":"73%"},1,{"v":10989.71,"d":"$10,989.71"},{"v":286351.85000000003,"d":"$286,351.85"},{"v":297341.56000000006,"d":"$297,341.56"},{"v":0.9,"d":"0.90"},{"v":99203.31,"d":"$99,203.31"},{"v":30136.4,"d":"$30,136.40"},{"v":10544.93,"d":"$10,544.93"},{"v":3514.97,"d":"$3,514.97"},{"v":3333.28,"d":"$3,333.28"},{"v":8967.61,"d":"$8,967.61"},{"v":2201.86,"d":"$2,201.86"},{"v":4009.77,"d":"$4,009.77"},{"v":3623.22,"d":"$3,623.22"},{"v":2673.18,"d":"$2,673.18"},{"v":5375.16,"d":"$5,375.16"},{"v":4628.02,"d":"$4,628.02"},{"v":4811.53,"d":"$4,811.53"},{"v":183023.23999999996,"d":"$183,023.24"},{"v":2908.7999999999997,"d":"$2,908.80"},{"v":4040,"d":"$4,040.00"},{"v":10504,"d":"$10,504.00"},{"v":1098.8799999999999,"d":"$1,098.88"},{"v":18454.72,"d":"$18,454.72"},{"v":22888.979999999996,"d":"$22,888.98"},{"v":43987.52,"d":"$43,987.52"},{"v":30283.84,"d":"$30,283.84"},{"v":86332.47048,"d":"$86,332.47"},{"v":220499.21048,"d":"$220,499.21"},{"v":30764.76,"d":"$30,764.76"},{"v":189734.45047999997,"d":"$189,734.45"},{"v":217422.73047999997,"d":"$217,422.73"},{"v":7259.17,"d":"$7,259.17"},{"v":7259.17,"d":"$7,259.17"},{"v":7259.17,"d":"$7,259.17"},{"v":7259.17,"d":"$7,259.17"},{"v":0,"d":"$0.00"},{"v":0,"d":"$0.00"},{"v":0,"d":"$0.00"},{"v":0,"d":"$0.00"},{"v":0,"d":"$0.00"},{"v":14518.35,"d":"$14,518.35"},{"v":5880.99,"d":"$5,880.99"},{"v":2183.08,"d":"$2,183.08"},{"v":51619.1,"d":"$51,619.10"},{"v":452065.14,"d":"$452,065.14"},{"v":14407.25,"d":"$14,407.25"},{"v":0,"d":"$0.00"},{"v":7060.71,"d":"$7,060.71"},{"v":452065.0704799999,"d":"$452,065.07"}]
[null,"SAFE SCH-EDWD/GLTN/HDIN/POP/SLNE/",14.97,{"v":195885.21,"d":"$195,885.21"},{"v":174333.44999999998,"d":"$174,333.45"},{"v":0.8899776047410624,"d":"89%"},2,{"v":310.62,"d":"$310.62"},{"v":154744.93,"d":"$154,744.93"},{"v":155055.55,"d":"$155,055.55"},{"v":0.9,"d":"0.90"},{"v":43903.98,"d":"$43,903.98"},{"v":11956.11,"d":"$11,956.11"},{"v":4048.32,"d":"$4,048.32"},{"v":1349.44,"d":"$1,349.44"},{"v":1471.66,"d":"$1,471.66"},{"v":3665.59,"d":"$3,665.59"},{"v":550.46,"d":"$550.46"},{"v":1603.9,"d":"$1,603.90"},{"v":1449.28,"d":"$1,449.28"},{"v":1069.27,"d":"$1,069.27"},{"v":2150.06,"d":"$2,150.06"},{"v":1851.21,"d":"$1,851.21"},{"v":1924.61,"d":"$1,924.61"},{"v":76993.89000000001,"d":"$76,993.89"},{"v":1347.3000000000002,"d":"$1,347.30"},{"v":1871.25,"d":"$1,871.25"},{"v":4865.25,"d":"$4,865.25"},{"v":508.98,"d":"$508.98"},{"v":8547.869999999999,"d":"$8,547.87"},{"v":8394.03,"d":"$8,394.03"},{"v":20374.17,"d":"$20,374.17"},{"v":14026.89,"d":"$14,026.89"},{"v":37181.863079999996,"d":"$37,181.86"},{"v":97117.60308,"d":"$97,117.60"},{"v":14249.64,"d":"$14,249.64"},{"v":82867.96307999999,"d":"$82,867.96"},{"v":95692.63307999999,"d":"$95,692.63"},{"v":3299.62,"d":"$3,299.62"},{"v":3299.62,"d":"$3,299.62"},{"v":3299.62,"d":"$3,299.62"},{"v":3299.62,"d":"$3,299.62"},{"v":0,"d":"$0.00"},{"v":0,"d":"$0.00"},{"v":0,"d":"$0.00"},{"v":0,"d":"$0.00"},{"v":0,"d":"$0.00"},{"v":6599.25,"d":"$6,599.25"},{"v":2673.18,"d":"$2,673.18"},{"v":727.69,"d":"$727.69"},{"v":23198.6,"d":"$23,198.60"},{"v":195885.21,"d":"$195,885.21"},{"v":705.01,"d":"$705.01"},{"v":0,"d":"$0.00"},{"v":348.99,"d":"$348.99"},{"v":195885.12308000002,"d":"$195,885.12"}]
["20024001026","EDWARDS COUNTY C U SCH DIST 1",815.19,{"v":10923125.99,"d":"$10,923,125.99"},{"v":8194256.95,"d":"$8,194,256.95"},{"v":0.7501750833508422,"d":"75%"},1,{"v":177289.64,"d":"$177,289.64"},{"v":4683857.35,"d":"$4,683,857.35"},{"v":4861146.989999999,"d":"$4,861,146.99"},{"v":0.9,"d":"0.90"},{"v":2496796.57,"d":"$2,496,796.57"},{"v":607224.1,"d":"$607,224.10"},{"v":267589.97,"d":"$267,589.97"},{"v":108233.76,"d":"$108,233.76"},{"v":84721.59,"d":"$84,721.59"},{"v":184923.03,"d":"$184,923.03"},{"v":58899.96,"d":"$58,899.96"},{"v":100244.25,"d":"$100,244.25"},{"v":120290.9,"d":"$120,290.90"},{"v":72443.17,"d":"$72,443.17"},{"v":178455.31,"d":"$178,455.31"},{"v":153650.43,"d":"$153,650.43"},{"v":120288.37,"d":"$120,288.37"},{"v":4553761.409999998,"d":"$4,553,761.41"},{"v":72835.2,"d":"$72,835.20"},{"v":101898.75,"d":"$101,898.75"},{"v":264936.75,"d":"$264,936.75"},{"v":27716.46,"d":"$27,716.46"},{"v":465473.49,"d":"$465,473.49"},{"v":313870.56,"d":"$313,870.56"},{"v":1109473.5899999999,"d":"$1,109,473.59"},{"v":763833.0299999999,"d":"$763,833.03"},{"v":2123582.40816,"d":"$2,123,582.41"},{"v":5243620.238159999,"d":"$5,243,620.24"},{"v":775963.05,"d":"$775,963.05"},{"v":4467657.18816,"d":"$4,467,657.19"},{"v":5166023.928160001,"d":"$5,166,023.93"},{"v":145183.5,"d":"$145,183.50"},{"v":145183.5,"d":"$145,183.50"},{"v":151122.82,"d":"$151,122.82"},{"v":151122.82,"d":"$151,122.82"},{"v":2639.7,"d":"$2,639.70"},{"v":2639.7,"d":"$2,639.70"},{"v":3299.62,"d":"$3,299.62"},{"v":3299.62,"d":"$3,299.62"},{"v":3959.55,"d":"$3,959.55"},{"v":381436.65,"d":"$381,436.65"},{"v":154509.8,"d":"$154,509.80"},{"v":58943.29,"d":"$58,943.29"},{"v":1203340.57,"d":"$1,203,340.57"},{"v":10923125.99,"d":"$10,923,125.99"},{"v":313823.22000000003,"d":"$313,823.22"},{"v":574.84,"d":"$574.84"},{"v":347267.62,"d":"$347,267.62"},{"v":10923125.90816,"d":"$10,923,125.91"}]
["20030007026","GALLATIN C U SCHOOL DISTRICT 7",680.55,{"v":9517807.22,"d":"$9,517,807.22"},{"v":7590782.699999999,"d":"$7,590,782.70"},{"v":0.7975348233623919,"d":"80%"},2,{"v":63153.63,"d":"$63,153.63"},{"v":3611245.15,"d":"$3,611,245.15"},{"v":3674398.78,"d":"$3,674,398.78"},{"v":0.9,"d":"0.90"},{"v":2160417.2,"d":"$2,160,417.20"},{"v":523301.83,"d":"$523,301.83"},{"v":222651.42,"d":"$222,651.42"},{"v":89907.06,"d":"$89,907.06"},{"v":75430.87,"d":"$75,430.87"},{"v":153365.52,"d":"$153,365.52"},{"v":49542.03,"d":"$49,542.03"},{"v":83403.21,"d":"$83,403.21"},{"v":100000.87,"d":"$100,000.87"},{"v":60146.55,"d":"$60,146.55"},{"v":148354.41,"d":"$148,354.41"},{"v":127733.49,"d":"$127,733.49"},{"v":100079.92,"d":"$100,079.92"},{"v":3894334.3800000004,"d":"$3,894,334.38"},{"v":60912,"d":"$60,912.00"},{"v":85068.74999999999,"d":"$85,068.75"},{"v":221178.74999999997,"d":"$221,178.75"},{"v":23138.699999999997,"d":"$23,138.70"},{"v":388594.05,"d":"$388,594.05"},{"v":259811.25999999998,"d":"$259,811.26"},{"v":926228.5499999999,"d":"$926,228.55"},{"v":637675.35,"d":"$637,675.35"},{"v":1871892.7182,"d":"$1,871,892.72"},{"v":4474500.1282,"d":"$4,474,500.13"},{"v":647801.93,"d":"$647,801.93"},{"v":3826698.198199999,"d":"$3,826,698.20"},{"v":4409719.928199999,"d":"$4,409,719.93"},{"v":169600.72,"d":"$169,600.72"},{"v":169600.72,"d":"$169,600.72"},{"v":176859.9,"d":"$176,859.90"},{"v":176859.9,"d":"$176,859.90"},{"v":4619.47,"d":"$4,619.47"},{"v":4619.47,"d":"$4,619.47"},{"v":4619.47,"d":"$4,619.47"},{"v":4619.47,"d":"$4,619.47"},{"v":5939.32,"d":"$5,939.32"},{"v":318083.85,"d":"$318,083.85"},{"v":128847.27,"d":"$128,847.27"},{"v":49483.26,"d":"$49,483.26"},{"v":1213752.8199999998,"d":"$1,213,752.82"},{"v":9517807.22,"d":"$9,517,807.22"},{"v":699757.6499999999,"d":"$699,757.65"},{"v":1310.36,"d":"$1,310.36"},{"v":270593.80000000005,"d":"$270,593.80"},{"v":9517807.1282,"d":"$9,517,807.13"}]
["20033010026","HAMILTON CO C U SCHOOL DIST 10",1075.79,{"v":14739162.99,"d":"$14,739,162.99"},{"v":11589457.84,"d":"$11,589,457.84"},{"v":0.7863036624171289,"d":"79%"},2,{"v":107947.59,"d":"$107,947.59"},{"v":6502835.0200000005,"d":"$6,502,835.02"},{"v":6610782.61,"d":"$6,610,782.61"},{"v":0.9,"d":"0.90"},{"v":3347670.82,"d":"$3,347,670.82"},{"v":813770.84,"d":"$813,770.84"},{"v":352319.9,"d":"$352,319.90"},{"v":142721.63,"d":"$142,721.63"},{"v":115448.47,"d":"$115,448.47"},{"v":245441.57,"d":"$245,441.57"},{"v":78716.78,"d":"$78,716.78"},{"v":132589.72,"d":"$132,589.72"},{"v":158697.03,"d":"$158,697.03"},{"v":95432.52,"d":"$95,432.52"},{"v":235432,"d":"$235,432.00"},{"v":202707.49,"d":"$202,707.49"},{"v":159101.42,"d":"$159,101.42"},{"v":6080050.1899999995,"d":"$6,080,050.19"},{"v":95801.4,"d":"$95,801.40"},{"v":134473.75,"d":"$134,473.75"},{"v":349631.75,"d":"$349,631.75"},{"v":36576.86,"d":"$36,576.86"},{"v":614276.09,"d":"$614,276.09"},{"v":413273.7799999999,"d":"$413,273.78"},{"v":1464150.19,"d":"$1,464,150.19"},{"v":1008015.23,"d":"$1,008,015.23"},{"v":2882884.6155600003,"d":"$2,882,884.62"},{"v":6999083.66556,"d":"$6,999,083.67"},{"v":1024022.98,"d":"$1,024,022.98"},{"v":5975060.685560001,"d":"$5,975,060.69"},{"v":6896681.365560001,"d":"$6,896,681.37"},{"v":239552.77,"d":"$239,552.77"},{"v":239552.77,"d":"$239,552.77"},{"v":249451.65,"d":"$249,451.65"},{"v":249451.65,"d":"$249,451.65"},{"v":0,"d":"$0.00"},{"v":0,"d":"$0.00"},{"v":0,"d":"$0.00"},{"v":0,"d":"$0.00"},{"v":0,"d":"$0.00"},{"v":502862.85,"d":"$502,862.85"},{"v":203696.31,"d":"$203,696.31"},{"v":77863.36,"d":"$77,863.36"},{"v":1762431.36,"d":"$1,762,431.36"},{"v":14739162.99,"d":"$14,739,162.99"},{"v":730597.68,"d":"$730,597.68"},{"v":0,"d":"$0.00"},{"v":429795.96,"d":"$429,795.96"},{"v":14739162.91556,"d":"$14,739,162.92"}]
["20035001026","HARDIN CO COMM UNIT DIST 1",514.5,{"v":6991309.98,"d":"$6,991,309.98"},{"v":5750829.65,"d":"$5,750,829.65"},{"v":0.8225682549409717,"d":"82%"},2,{"v":41100.17,"d":"$41,100.17"},{"v":3530688.6999999997,"d":"$3,530,688.70"},{"v":3571788.8699999996,"d":"$3,571,788.87"},{"v":0.9,"d":"0.90"},{"v":1585199.61,"d":"$1,585,199.61"},{"v":386127.27,"d":"$386,127.27"},{"v":168298.92,"d":"$168,298.92"},{"v":67814.78,"d":"$67,814.78"},{"v":54483.19,"d":"$54,483.19"},{"v":119102.47,"d":"$119,102.47"},{"v":36881.28,"d":"$36,881.28"},{"v":63087.04,"d":"$63,087.04"},{"v":75362.97,"d":"$75,362.97"},{"v":45444.06,"d":"$45,444.06"},{"v":111803.32,"d":"$111,803.32"},{"v":96262.92,"d":"$96,262.92"},{"v":75701.48,"d":"$75,701.48"},{"v":2885569.31,"d":"$2,885,569.31"},{"v":45855,"d":"$45,855.00"},{"v":64312.5,"d":"$64,312.50"},{"v":167212.5,"d":"$167,212.50"},{"v":17493,"d":"$17,493.00"},{"v":293779.5,"d":"$293,779.50"},{"v":200565.5,"d":"$200,565.50"},{"v":700234.5,"d":"$700,234.50"},{"v":482086.5,"d":"$482,086.50"},{"v":1363757.514,"d":"$1,363,757.51"},{"v":3335296.514,"d":"$3,335,296.51"},{"v":489742.26,"d":"$489,742.26"},{"v":2845554.2539999997,"d":"$2,845,554.25"},{"v":3286322.284,"d":"$3,286,322.28"},{"v":108887.62,"d":"$108,887.62"},{"v":108887.62,"d":"$108,887.62"},{"v":113507.1,"d":"$113,507.10"},{"v":113507.1,"d":"$113,507.10"},{"v":0,"d":"$0.00"},{"v":0,"d":"$0.00"},{"v":0,"d":"$0.00"},{"v":0,"d":"$0.00"},{"v":0,"d":"$0.00"},{"v":240212.7,"d":"$240,212.70"},{"v":97303.75,"d":"$97,303.75"},{"v":37112.44,"d":"$37,112.44"},{"v":819418.3299999998,"d":"$819,418.33"},{"v":6991309.98,"d":"$6,991,309.98"},{"v":645331.92,"d":"$645,331.92"},{"v":0,"d":"$0.00"},{"v":213751.94,"d":"$213,751.94"},{"v":6991309.924000001,"d":"$6,991,309.92"}]
["20076001026","POPE CO COMM UNIT DIST 1",467.03,{"v":6519396.71,"d":"$6,519,396.71"},{"v":4896639.220000001,"d":"$4,896,639.22"},{"v":0.7510877827835086,"d":"75%"},1,{"v":97685.6,"d":"$97,685.60"},{"v":2509024.27,"d":"$2,509,024.27"},{"v":2606709.87,"d":"$2,606,709.87"},{"v":0.9,"d":"0.90"},{"v":1468627.26,"d":"$1,468,627.26"},{"v":366180.57,"d":"$366,180.57"},{"v":153519.33,"d":"$153,519.33"},{"v":61633.06,"d":"$61,633.06"},{"v":51095.28,"d":"$51,095.28"},{"v":109145.79,"d":"$109,145.79"},{"v":33578.48,"d":"$33,578.48"},{"v":57740.68,"d":"$57,740.68"},{"v":68116.53,"d":"$68,116.53"},{"v":41434.29,"d":"$41,434.29"},{"v":101053,"d":"$101,053.00"},{"v":87006.87,"d":"$87,006.87"},{"v":69286.1,"d":"$69,286.10"},{"v":2668417.24,"d":"$2,668,417.24"},{"v":41590.8,"d":"$41,590.80"},{"v":58378.75,"d":"$58,378.75"},{"v":151784.75,"d":"$151,784.75"},{"v":15879.019999999997,"d":"$15,879.02"},{"v":266674.13,"d":"$266,674.13"},{"v":194701.86,"d":"$194,701.86"},{"v":635627.8299999998,"d":"$635,627.83"},{"v":437607.11,"d":"$437,607.11"},{"v":1277653.42392,"d":"$1,277,653.42"},{"v":3079897.6739199995,"d":"$3,079,897.67"},{"v":444556.51,"d":"$444,556.51"},{"v":2635341.1639199993,"d":"$2,635,341.16"},{"v":3035442.0139199994,"d":"$3,035,442.01"},{"v":116146.8,"d":"$116,146.80"},{"v":116146.8,"d":"$116,146.80"},{"v":121426.2,"d":"$121,426.20"},{"v":121426.2,"d":"$121,426.20"},{"v":0,"d":"$0.00"},{"v":0,"d":"$0.00"},{"v":0,"d":"$0.00"},{"v":0,"d":"$0.00"},{"v":0,"d":"$0.00"},{"v":218435.17,"d":"$218,435.17"},{"v":88482.25,"d":"$88,482.25"},{"v":33473.97,"d":"$33,473.97"},{"v":815537.39,"d":"$815,537.39"},{"v":6519396.71,"d":"$6,519,396.71"},{"v":278763.4,"d":"$278,763.40"},{"v":0,"d":"$0.00"},{"v":186409.43,"d":"$186,409.43"},{"v":6519396.64392,"d":"$6,519,396.64"}]
["20083001026","GALATIA C U SCHOOL DIST 1",386.21,{"v":5314282.51,"d":"$5,314,282.51"},{"v":3686943.38,"d":"$3,686,943.38"},{"v":0.6937800865991222,"d":"69%"},1,{"v":187261.63,"d":"$187,261.63"},{"v":2017178.24,"d":"$2,017,178.24"},{"v":2204439.87,"d":"$2,204,439.87"},{"v":0.9,"d":"0.90"},{"v":1210881.67,"d":"$1,210,881.67"},{"v":294328.62,"d":"$294,328.62"},{"v":125525.9,"d":"$125,525.90"},{"v":50837.52,"d":"$50,837.52"},{"v":41784.86,"d":"$41,784.86"},{"v":86381.29,"d":"$86,381.29"},{"v":27523.35,"d":"$27,523.35"},{"v":47315.28,"d":"$47,315.28"},{"v":56522.23,"d":"$56,522.23"},{"v":33949.38,"d":"$33,949.38"},{"v":83852.49,"d":"$83,852.49"},{"v":72197.19,"d":"$72,197.19"},{"v":56776.11,"d":"$56,776.11"},{"v":2187875.89,"d":"$2,187,875.89"},{"v":34452,"d":"$34,452.00"},{"v":48276.25,"d":"$48,276.25"},{"v":125518.25,"d":"$125,518.25"},{"v":13131.14,"d":"$13,131.14"},{"v":220525.90999999997,"d":"$220,525.91"},{"v":148012.5,"d":"$148,012.50"},{"v":525631.8099999999,"d":"$525,631.81"},{"v":361878.77,"d":"$361,878.77"},{"v":1040674.14744,"d":"$1,040,674.15"},{"v":2518100.77744,"d":"$2,518,100.78"},{"v":367625.57,"d":"$367,625.57"},{"v":2150475.2074400005,"d":"$2,150,475.21"},{"v":2481338.2174400007,"d":"$2,481,338.22"},{"v":89089.87,"d":"$89,089.87"},{"v":89089.87,"d":"$89,089.87"},{"v":93049.42,"d":"$93,049.42"},{"v":93049.42,"d":"$93,049.42"},{"v":0,"d":"$0.00"},{"v":0,"d":"$0.00"},{"v":0,"d":"$0.00"},{"v":0,"d":"$0.00"},{"v":0,"d":"$0.00"},{"v":180159.52,"d":"$180,159.52"},{"v":72977.81,"d":"$72,977.81"},{"v":27652.41,"d":"$27,652.41"},{"v":645068.32,"d":"$645,068.32"},{"v":5314282.51,"d":"$5,314,282.51"},{"v":268753.27,"d":"$268,753.27"},{"v":0,"d":"$0.00"},{"v":178944.97999999998,"d":"$178,944.98"},{"v":5314282.427440001,"d":"$5,314,282.43"}]
["20083002026","CARRIER MILLS-STONEFORT CUSD 2",430.86,{"v":5974670.64,"d":"$5,974,670.64"},{"v":4188147.37,"d":"$4,188,147.37"},{"v":0.7009838068663816,"d":"70%"},1,{"v":213517.68,"d":"$213,517.68"},{"v":3323535.959999999,"d":"$3,323,535.96"},{"v":3537053.639999999,"d":"$3,537,053.64"},{"v":0.9,"d":"0.90"},{"v":1372488.98,"d":"$1,372,488.98"},{"v":327612.3,"d":"$327,612.30"},{"v":140054.88,"d":"$140,054.88"},{"v":56485.89,"d":"$56,485.89"},{"v":47484.7,"d":"$47,484.70"},{"v":93916.09,"d":"$93,916.09"},{"v":30826.15,"d":"$30,826.15"},{"v":52661.64,"d":"$52,661.64"},{"v":63044.02,"d":"$63,044.02"},{"v":37959.15,"d":"$37,959.15"},{"v":93527.78,"d":"$93,527.78"},{"v":80527.63,"d":"$80,527.63"},{"v":63191.49,"d":"$63,191.49"},{"v":2459780.6999999997,"d":"$2,459,780.70"},{"v":38515.5,"d":"$38,515.50"},{"v":53857.5,"d":"$53,857.50"},{"v":140029.5,"d":"$140,029.50"},{"v":14649.239999999998,"d":"$14,649.24"},{"v":246021.06,"d":"$246,021.06"},{"v":155721.61,"d":"$155,721.61"},{"v":586400.46,"d":"$586,400.46"},{"v":403715.81999999995,"d":"$403,715.82"},{"v":1174600.56804,"d":"$1,174,600.57"},{"v":2813511.2580399998,"d":"$2,813,511.26"},{"v":410127.01,"d":"$410,127.01"},{"v":2403384.24804,"d":"$2,403,384.25"},{"v":2772498.54804,"d":"$2,772,498.55"},{"v":104928.07,"d":"$104,928.07"},{"v":104928.07,"d":"$104,928.07"},{"v":108887.62,"d":"$108,887.62"},{"v":108887.62,"d":"$108,887.62"},{"v":0,"d":"$0.00"},{"v":0,"d":"$0.00"},{"v":0,"d":"$0.00"},{"v":0,"d":"$0.00"},{"v":659.92,"d":"$659.92"},{"v":201277.12,"d":"$201,277.12"},{"v":81531.99,"d":"$81,531.99"},{"v":31290.88,"d":"$31,290.88"},{"v":742391.2899999999,"d":"$742,391.29"},{"v":5974670.64,"d":"$5,974,670.64"},{"v":637639.2,"d":"$637,639.20"},{"v":21.35,"d":"$21.35"},{"v":218080.53999999998,"d":"$218,080.54"},{"v":5974670.53804,"d":"$5,974,670.54"}]
["20083003026","HARRISBURG C U SCHOOL DIST 3",1722.36,{"v":24395235.71,"d":"$24,395,235.71"},{"v":17961713.93,"d":"$17,961,713.93"},{"v":0.7362795811248178,"d":"74%"},1,{"v":541669.81,"d":"$541,669.81"},{"v":12810678.229999999,"d":"$12,810,678.23"},{"v":13352348.04,"d":"$13,352,348.04"},{"v":0.9,"d":"0.90"},{"v":5530313.2,"d":"$5,530,313.20"},{"v":1348830.58,"d":"$1,348,830.58"},{"v":566028.61,"d":"$566,028.61"},{"v":229051.61,"d":"$229,051.61"},{"v":193952.39,"d":"$193,952.39"},{"v":390392.29,"d":"$390,392.29"},{"v":125506.47,"d":"$125,506.47"},{"v":212517.81,"d":"$212,517.81"},{"v":254350.04,"d":"$254,350.04"},{"v":153173.21,"d":"$153,173.21"},{"v":377336.23,"d":"$377,336.23"},{"v":324887.35,"d":"$324,887.35"},{"v":255011.35,"d":"$255,011.35"},{"v":9961351.14,"d":"$9,961,351.14"},{"v":153670.5,"d":"$153,670.50"},{"v":215295,"d":"$215,295.00"},{"v":559767,"d":"$559,767.00"},{"v":58560.240000000005,"d":"$58,560.24"},{"v":983467.5599999999,"d":"$983,467.56"},{"v":668661.81,"d":"$668,661.81"},{"v":2344131.96,"d":"$2,344,131.96"},{"v":1613851.32,"d":"$1,613,851.32"},{"v":4810839.49104,"d":"$4,810,839.49"},{"v":11408244.88104,"d":"$11,408,244.88"},{"v":1639480.03,"d":"$1,639,480.03"},{"v":9768764.851040002,"d":"$9,768,764.85"},{"v":11244296.871040002,"d":"$11,244,296.87"},{"v":469206.67,"d":"$469,206.67"},{"v":469206.67,"d":"$469,206.67"},{"v":488344.5,"d":"$488,344.50"},{"v":488344.5,"d":"$488,344.50"},{"v":3299.62,"d":"$3,299.62"},{"v":3299.62,"d":"$3,299.62"},{"v":3299.62,"d":"$3,299.62"},{"v":3299.62,"d":"$3,299.62"},{"v":3959.55,"d":"$3,959.55"},{"v":805768.42,"d":"$805,768.42"},{"v":326395.27,"d":"$326,395.27"},{"v":125163.54,"d":"$125,163.54"},{"v":3189587.6000000006,"d":"$3,189,587.60"},{"v":24395235.71,"d":"$24,395,235.71"},{"v":2279454.34,"d":"$2,279,454.34"},{"v":1864.37,"d":"$1,864.37"},{"v":858158.94,"d":"$858,158.94"},{"v":24395235.611040004,"d":"$24,395,235.61"}]
["20083004026","ELDORADO COMM UNIT DISTRICT 4",1018.79,{"v":14246433.72,"d":"$14,246,433.72"},{"v":10432235.530000001,"d":"$10,432,235.53"},{"v":0.7322699655952914,"d":"73%"},1,{"v":344732.73,"d":"$344,732.73"},{"v":7830628.009999999,"d":"$7,830,628.01"},{"v":8175360.739999998,"d":"$8,175,360.74"},{"v":0.9,"d":"0.90"},{"v":3240655.77,"d":"$3,240,655.77"},{"v":783707.85,"d":"$783,707.85"},{"v":332894.36,"d":"$332,894.36"},{"v":135441.07,"d":"$135,441.07"},{"v":112908.42,"d":"$112,908.42"},{"v":229615.54,"d":"$229,615.54"},{"v":73762.57,"d":"$73,762.57"},{"v":125104.82,"d":"$125,104.82"},{"v":150725.95,"d":"$150,725.95"},{"v":90353.48,"d":"$90,353.48"},{"v":223606.65,"d":"$223,606.65"},{"v":192525.84,"d":"$192,525.84"},{"v":150119.89,"d":"$150,119.89"},{"v":5841422.210000002,"d":"$5,841,422.21"},{"v":90986.40000000001,"d":"$90,986.40"},{"v":127348.74999999999,"d":"$127,348.75"},{"v":331106.75,"d":"$331,106.75"},{"v":34638.86,"d":"$34,638.86"},{"v":581729.0900000001,"d":"$581,729.09"},{"v":385543.42000000004,"d":"$385,543.42"},{"v":1386573.19,"d":"$1,386,573.19"},{"v":954606.23,"d":"$954,606.23"},{"v":2802689.60856,"d":"$2,802,689.61"},{"v":6695222.29856,"d":"$6,695,222.30"},{"v":969765.82,"d":"$969,765.82"},{"v":5725456.47856,"d":"$5,725,456.48"},{"v":6598245.708559999,"d":"$6,598,245.71"},{"v":260670.37,"d":"$260,670.37"},{"v":260670.37,"d":"$260,670.37"},{"v":271229.17,"d":"$271,229.17"},{"v":271229.17,"d":"$271,229.17"},{"v":0,"d":"$0.00"},{"v":0,"d":"$0.00"},{"v":0,"d":"$0.00"},{"v":0,"d":"$0.00"},{"v":0,"d":"$0.00"},{"v":476465.85,"d":"$476,465.85"},{"v":193003.59,"d":"$193,003.59"},{"v":73497.19,"d":"$73,497.19"},{"v":1806765.7099999997,"d":"$1,806,765.71"},{"v":14246433.72,"d":"$14,246,433.72"},{"v":1435909.73,"d":"$1,435,909.73"},{"v":0,"d":"$0.00"},{"v":476979.0800000001,"d":"$476,979.08"},{"v":14246433.628560001,"d":"$14,246,433.63"}]
["20093017024","ALLENDALE C C SCHOOL DIST 17",170.62,{"v":2236024.51,"d":"$2,236,024.51"},{"v":1598368.44,"d":"$1,598,368.44"},{"v":0.7148259926721465,"d":"71%"},1,{"v":64959.33,"d":"$64,959.33"},{"v":1031817.4,"d":"$1,031,817.40"},{"v":1096776.73,"d":"$1,096,776.73"},{"v":0.9,"d":"0.90"},{"v":517283.66,"d":"$517,283.66"},{"v":119622.01,"d":"$119,622.01"},{"v":54508.86,"d":"$54,508.86"},{"v":22531.38,"d":"$22,531.38"},{"v":17468.82,"d":"$17,468.82"},{"v":35913.99,"d":"$35,913.99"},{"v":12110.27,"d":"$12,110.27"},{"v":20583.48,"d":"$20,583.48"},{"v":25362.54,"d":"$25,362.54"},{"v":14702.49,"d":"$14,702.49"},{"v":37626.12,"d":"$37,626.12"},{"v":32396.17,"d":"$32,396.17"},{"v":24699.21,"d":"$24,699.21"},{"v":934808.9999999999,"d":"$934,809.00"},{"v":15175.8,"d":"$15,175.80"},{"v":21327.5,"d":"$21,327.50"},{"v":55451.5,"d":"$55,451.50"},{"v":5801.08,"d":"$5,801.08"},{"v":97424.02000000002,"d":"$97,424.02"},{"v":54736.76,"d":"$54,736.76"},{"v":232213.82,"d":"$232,213.82"},{"v":159870.94,"d":"$159,870.94"},{"v":434741.00868,"d":"$434,741.01"},{"v":1076742.4286800001,"d":"$1,076,742.43"},{"v":162409.76,"d":"$162,409.76"},{"v":914332.6686800001,"d":"$914,332.67"},{"v":1060501.4486800001,"d":"$1,060,501.45"},{"v":28376.77,"d":"$28,376.77"},{"v":28376.77,"d":"$28,376.77"},{"v":29696.62,"d":"$29,696.62"},{"v":29696.62,"d":"$29,696.62"},{"v":0,"d":"$0.00"},{"v":0,"d":"$0.00"},{"v":0,"d":"$0.00"},{"v":0,"d":"$0.00"},{"v":0,"d":"$0.00"},{"v":79850.92,"d":"$79,850.92"},{"v":32345.47,"d":"$32,345.47"},{"v":12370.81,"d":"$12,370.81"},{"v":240713.98,"d":"$240,713.98"},{"v":2236024.51,"d":"$2,236,024.51"},{"v":120473.08,"d":"$120,473.08"},{"v":0,"d":"$0.00"},{"v":65259.579999999994,"d":"$65,259.58"},{"v":2236024.42868,"d":"$2,236,024.43"}]
["20093348026","WABASH C U SCH DIST 348",1327.46,{"v":18214057.3,"d":"$18,214,057.30"},{"v":14839404.440000001,"d":"$14,839,404.44"},{"v":0.8147226175685744,"d":"81%"},2,{"v":98201.35,"d":"$98,201.35"},{"v":6848232.519999999,"d":"$6,848,232.52"},{"v":6946433.869999998,"d":"$6,946,433.87"},{"v":0.9,"d":"0.90"},{"v":4126568.58,"d":"$4,126,568.58"},{"v":1013812.48,"d":"$1,013,812.48"},{"v":436925.61,"d":"$436,925.61"},{"v":175076.1,"d":"$175,076.10"},{"v":142387.09,"d":"$142,387.09"},{"v":304200.1,"d":"$304,200.10"},{"v":96882.19,"d":"$96,882.19"},{"v":163865.93,"d":"$163,865.93"},{"v":194204.59,"d":"$194,204.59"},{"v":117887.23,"d":"$117,887.23"},{"v":288108.57,"d":"$288,108.57"},{"v":248062.14,"d":"$248,062.14"},{"v":196631.39,"d":"$196,631.39"},{"v":7504612,"d":"$7,504,612.00"},{"v":118069.2,"d":"$118,069.20"},{"v":165932.5,"d":"$165,932.50"},{"v":431424.5,"d":"$431,424.50"},{"v":45133.64,"d":"$45,133.64"},{"v":757979.66,"d":"$757,979.66"},{"v":525779.64,"d":"$525,779.64"},{"v":1806673.06,"d":"$1,806,673.06"},{"v":1243830.02,"d":"$1,243,830.02"},{"v":3560107.65444,"d":"$3,560,107.65"},{"v":8654929.874440001,"d":"$8,654,929.87"},{"v":1263582.62,"d":"$1,263,582.62"},{"v":7391347.254439999,"d":"$7,391,347.25"},{"v":8528571.60444,"d":"$8,528,571.60"},{"v":294326.55,"d":"$294,326.55"},{"v":294326.55,"d":"$294,326.55"},{"v":306865.12,"d":"$306,865.12"},{"v":306865.12,"d":"$306,865.12"},{"v":1979.77,"d":"$1,979.77"},{"v":1979.77,"d":"$1,979.77"},{"v":1979.77,"d":"$1,979.77"},{"v":1979.77,"d":"$1,979.77"},{"v":1979.77,"d":"$1,979.77"},{"v":620989.42,"d":"$620,989.42"},{"v":251546.23,"d":"$251,546.23"},{"v":96055.74,"d":"$96,055.74"},{"v":2180873.58,"d":"$2,180,873.58"},{"v":18214057.3,"d":"$18,214,057.30"},{"v":798604.16,"d":"$798,604.16"},{"v":559.68,"d":"$559.68"},{"v":523664.74000000005,"d":"$523,664.74"},{"v":18214057.18444,"d":"$18,214,057.18"}]
["20096006004","NEW HOPE C C SCHOOL DIST 6",191.75,{"v":2463701.37,"d":"$2,463,701.37"},{"v":1692010.87,"d":"$1,692,010.87"},{"v":0.6867759585651405,"d":"69%"},1,{"v":95064.37,"d":"$95,064.37"},{"v":1062889.01,"d":"$1,062,889.01"},{"v":1157953.38,"d":"$1,157,953.38"},{"v":0.9,"d":"0.90"},{"v":586175.59,"d":"$586,175.59"},{"v":117235.11,"d":"$117,235.11"},{"v":59621.71,"d":"$59,621.71"},{"v":26359.07,"d":"$26,359.07"},{"v":19855.25,"d":"$19,855.25"},{"v":35172.07,"d":"$35,172.07"},{"v":13761.67,"d":"$13,761.67"},{"v":22454.71,"d":"$22,454.71"},{"v":30435.04,"d":"$30,435.04"},{"v":16841.03,"d":"$16,841.03"},{"v":45151.34,"d":"$45,151.34"},{"v":38875.41,"d":"$38,875.41"},{"v":26944.59,"d":"$26,944.59"},{"v":1038882.5899999999,"d":"$1,038,882.59"},{"v":17145,"d":"$17,145.00"},{"v":23968.75,"d":"$23,968.75"},{"v":62318.75,"d":"$62,318.75"},{"v":6519.5,"d":"$6,519.50"},{"v":109489.25,"d":"$109,489.25"},{"v":30756.5,"d":"$30,756.50"},{"v":260971.75,"d":"$260,971.75"},{"v":179669.75,"d":"$179,669.75"},{"v":483882.465,"d":"$483,882.47"},{"v":1174721.715,"d":"$1,174,721.72"},{"v":182522.99,"d":"$182,522.99"},{"v":992198.7250000001,"d":"$992,198.73"},{"v":1156469.415,"d":"$1,156,469.42"},{"v":31676.4,"d":"$31,676.40"},{"v":31676.4,"d":"$31,676.40"},{"v":32996.25,"d":"$32,996.25"},{"v":32996.25,"d":"$32,996.25"},{"v":0,"d":"$0.00"},{"v":0,"d":"$0.00"},{"v":0,"d":"$0.00"},{"v":0,"d":"$0.00"},{"v":0,"d":"$0.00"},{"v":89089.87,"d":"$89,089.87"},{"v":36087.93,"d":"$36,087.93"},{"v":13826.2,"d":"$13,826.20"},{"v":268349.3,"d":"$268,349.30"},{"v":2463701.37,"d":"$2,463,701.37"},{"v":101390.23000000001,"d":"$101,390.23"},{"v":0,"d":"$0.00"},{"v":69314.98999999999,"d":"$69,314.99"},{"v":2463701.3049999997,"d":"$2,463,701.31"}]
["20096014004","GEFF C C SCHOOL DISTRICT 14",92,{"v":1252566.07,"d":"$1,252,566.07"},{"v":913661.3300000001,"d":"$913,661.33"},{"v":0.7294316458691876,"d":"73%"},1,{"v":31425.03,"d":"$31,425.03"},{"v":717141.62,"d":"$717,141.62"},{"v":748566.65,"d":"$748,566.65"},{"v":0.9,"d":"0.90"},{"v":296225.78,"d":"$296,225.78"},{"v":59245.15,"d":"$59,245.15"},{"v":28241.86,"d":"$28,241.86"},{"v":12551.94,"d":"$12,551.94"},{"v":10362.65,"d":"$10,362.65"},{"v":16909.65,"d":"$16,909.65"},{"v":6055.13,"d":"$6,055.13"},{"v":10692.72,"d":"$10,692.72"},{"v":14492.88,"d":"$14,492.88"},{"v":8019.54,"d":"$8,019.54"},{"v":21500.64,"d":"$21,500.64"},{"v":18512.1,"d":"$18,512.10"},{"v":12830.76,"d":"$12,830.76"},{"v":515640.80000000005,"d":"$515,640.80"},{"v":8280,"d":"$8,280.00"},{"v":11500,"d":"$11,500.00"},{"v":29900,"d":"$29,900.00"},{"v":3128,"d":"$3,128.00"},{"v":52532,"d":"$52,532.00"},{"v":14910,"d":"$14,910.00"},{"v":125212,"d":"$125,212.00"},{"v":86204,"d":"$86,204.00"},{"v":249527.59499999997,"d":"$249,527.60"},{"v":581193.595,"d":"$581,193.60"},{"v":87572.96,"d":"$87,572.96"},{"v":493620.63499999995,"d":"$493,620.64"},{"v":572436.2949999999,"d":"$572,436.30"},{"v":23757.3,"d":"$23,757.30"},{"v":23757.3,"d":"$23,757.30"},{"v":25077.15,"d":"$25,077.15"},{"v":25077.15,"d":"$25,077.15"},{"v":0,"d":"$0.00"},{"v":0,"d":"$0.00"},{"v":0,"d":"$0.00"},{"v":0,"d":"$0.00"},{"v":0,"d":"$0.00"},{"v":42895.12,"d":"$42,895.12"},{"v":17375.67,"d":"$17,375.67"},{"v":6549.25,"d":"$6,549.25"},{"v":164488.94,"d":"$164,488.94"},{"v":1252566.07,"d":"$1,252,566.07"},{"v":103816.36,"d":"$103,816.36"},{"v":0,"d":"$0.00"},{"v":38561.81999999999,"d":"$38,561.82"},{"v":1252566.035,"d":"$1,252,566.04"}]
["20096017004","JASPER COMM CONS SCHOOL DIST 17",180.05,{"v":2332299.18,"d":"$2,332,299.18"},{"v":1607525.48,"d":"$1,607,525.48"},{"v":0.689244970707403,"d":"69%"},1,{"v":92322.11,"d":"$92,322.11"},{"v":1290494.54,"d":"$1,290,494.54"},{"v":1382816.6500000001,"d":"$1,382,816.65"},{"v":0.9,"d":"0.90"},{"v":551657.76,"d":"$551,657.76"},{"v":110331.54,"d":"$110,331.54"},{"v":55856.13,"d":"$55,856.13"},{"v":24476.28,"d":"$24,476.28"},{"v":18847.08,"d":"$18,847.08"},{"v":33142.91,"d":"$33,142.91"},{"v":12660.74,"d":"$12,660.74"},{"v":21118.12,"d":"$21,118.12"},{"v":28261.11,"d":"$28,261.11"},{"v":15771.76,"d":"$15,771.76"},{"v":41926.24,"d":"$41,926.24"},{"v":36098.59,"d":"$36,098.59"},{"v":25340.75,"d":"$25,340.75"},{"v":975489.01,"d":"$975,489.01"},{"v":16137,"d":"$16,137.00"},{"v":22506.25,"d":"$22,506.25"},{"v":58516.25,"d":"$58,516.25"},{"v":6121.7,"d":"$6,121.70"},{"v":102808.55,"d":"$102,808.55"},{"v":29830.18,"d":"$29,830.18"},{"v":245048.05,"d":"$245,048.05"},{"v":168706.85,"d":"$168,706.85"},{"v":458790.8141999999,"d":"$458,790.81"},{"v":1108465.6442,"d":"$1,108,465.64"},{"v":171385.99,"d":"$171,385.99"},{"v":937079.6542,"d":"$937,079.65"},{"v":1091327.0442,"d":"$1,091,327.04"},{"v":32996.25,"d":"$32,996.25"},{"v":32996.25,"d":"$32,996.25"},{"v":34316.1,"d":"$34,316.10"},{"v":34316.1,"d":"$34,316.10"},{"v":0,"d":"$0.00"},{"v":0,"d":"$0.00"},{"v":0,"d":"$0.00"},{"v":0,"d":"$0.00"},{"v":0,"d":"$0.00"},{"v":83810.47,"d":"$83,810.47"},{"v":33949.38,"d":"$33,949.38"},{"v":13098.51,"d":"$13,098.51"},{"v":265483.06,"d":"$265,483.06"},{"v":2332299.18,"d":"$2,332,299.18"},{"v":150452.68,"d":"$150,452.68"},{"v":0,"d":"$0.00"},{"v":101642.97,"d":"$101,642.97"},{"v":2332299.1141999997,"d":"$2,332,299.11"}]
["20096100026","WAYNE CITY C U SCHOOL DIST 100",477.45,{"v":6404996.82,"d":"$6,404,996.82"},{"v":5222374.12,"d":"$5,222,374.12"},{"v":0.815359361880214,"d":"82%"},2,{"v":32009.24,"d":"$32,009.24"},{"v":2617746.06,"d":"$2,617,746.06"},{"v":2649755.3000000003,"d":"$2,649,755.30"},{"v":0.9,"d":"0.90"},{"v":1467483.27,"d":"$1,467,483.27"},{"v":353250.47,"d":"$353,250.47"},{"v":156059.69,"d":"$156,059.69"},{"v":63044.61,"d":"$63,044.61"},{"v":49904.17,"d":"$49,904.17"},{"v":106076.53,"d":"$106,076.53"},{"v":34128.95,"d":"$34,128.95"},{"v":58542.64,"d":"$58,542.64"},{"v":70290.46,"d":"$70,290.46"},{"v":42236.24,"d":"$42,236.24"},{"v":104278.1,"d":"$104,278.10"},{"v":89783.68,"d":"$89,783.68"},{"v":70248.41,"d":"$70,248.41"},{"v":2665327.2200000007,"d":"$2,665,327.22"},{"v":42610.5,"d":"$42,610.50"},{"v":59681.25,"d":"$59,681.25"},{"v":155171.25,"d":"$155,171.25"},{"v":16233.3,"d":"$16,233.30"},{"v":272623.95,"d":"$272,623.95"},{"v":177242.75,"d":"$177,242.75"},{"v":649809.45,"d":"$649,809.45"},{"v":447370.64999999997,"d":"$447,370.65"},{"v":1247206.1657999998,"d":"$1,247,206.17"},{"v":3067949.2657999997,"d":"$3,067,949.27"},{"v":454475.1,"d":"$454,475.10"},{"v":2613474.1657999996,"d":"$2,613,474.17"},{"v":3022501.7557999995,"d":"$3,022,501.76"},{"v":90409.72,"d":"$90,409.72"},{"v":90409.72,"d":"$90,409.72"},{"v":94369.27,"d":"$94,369.27"},{"v":94369.27,"d":"$94,369.27"},{"v":0,"d":"$0.00"},{"v":0,"d":"$0.00"},{"v":0,"d":"$0.00"},{"v":0,"d":"$0.00"},{"v":0,"d":"$0.00"},{"v":223054.65,"d":"$223,054.65"},{"v":90353.48,"d":"$90,353.48"},{"v":34201.66,"d":"$34,201.66"},{"v":717167.77,"d":"$717,167.77"},{"v":6404996.82,"d":"$6,404,996.82"},{"v":219627.55000000002,"d":"$219,627.55"},{"v":34.88,"d":"$34.88"},{"v":170662.92,"d":"$170,662.92"},{"v":6404996.7458,"d":"$6,404,996.75"}]
["20096112004","FAIRFIELD PUBLIC SCHOOL DIST 112",569.47,{"v":7672112.19,"d":"$7,672,112.19"},{"v":5477608.16,"d":"$5,477,608.16"},{"v":0.7139635115268042,"d":"71%"},1,{"v":231087.9,"d":"$231,087.90"},{"v":3988100.4399999995,"d":"$3,988,100.44"},{"v":4219188.34,"d":"$4,219,188.34"},{"v":0.9,"d":"0.90"},{"v":1788651.45,"d":"$1,788,651.45"},{"v":357730.29,"d":"$357,730.29"},{"v":178237.54,"d":"$178,237.54"},{"v":79077.22,"d":"$79,077.22"},{"v":62865.67,"d":"$62,865.67"},{"v":108898.14,"d":"$108,898.14"},{"v":41285.02,"d":"$41,285.02"},{"v":67364.13,"d":"$67,364.13"},{"v":91305.14,"d":"$91,305.14"},{"v":50523.1,"d":"$50,523.10"},{"v":135454.03,"d":"$135,454.03"},{"v":116626.23,"d":"$116,626.23"},{"v":80833.78,"d":"$80,833.78"},{"v":3158851.7399999998,"d":"$3,158,851.74"},{"v":50697.899999999994,"d":"$50,697.90"},{"v":71183.75,"d":"$71,183.75"},{"v":185077.75,"d":"$185,077.75"},{"v":19361.98,"d":"$19,361.98"},{"v":325167.37,"d":"$325,167.37"},{"v":94634.66999999998,"d":"$94,634.67"},{"v":775048.6699999999,"d":"$775,048.67"},{"v":533593.39,"d":"$533,593.39"},{"v":1524137.0350799998,"d":"$1,524,137.04"},{"v":3578902.51508,"d":"$3,578,902.52"},{"v":542067.1,"d":"$542,067.10"},{"v":3036835.4150799997,"d":"$3,036,835.42"},{"v":3524695.80508,"d":"$3,524,695.81"},{"v":140564.02,"d":"$140,564.02"},{"v":140564.02,"d":"$140,564.02"},{"v":146503.35,"d":"$146,503.35"},{"v":146503.35,"d":"$146,503.35"},{"v":0,"d":"$0.00"},{"v":0,"d":"$0.00"},{"v":0,"d":"$0.00"},{"v":0,"d":"$0.00"},{"v":0,"d":"$0.00"},{"v":265949.77,"d":"$265,949.77"},{"v":107729.15,"d":"$107,729.15"},{"v":40750.92,"d":"$40,750.92"},{"v":988564.5800000001,"d":"$988,564.58"},{"v":7672112.19,"d":"$7,672,112.19"},{"v":600727.9800000001,"d":"$600,727.98"},{"v":0,"d":"$0.00"},{"v":306236.05999999994,"d":"$306,236.06"},{"v":7672112.12508,"d":"$7,672,112.13"}]
["20096200026","NORTH WAYNE C U SCHOOL DIST 200",361.79,{"v":4855517.66,"d":"$4,855,517.66"},{"v":4462152.52,"d":"$4,462,152.52"},{"v":0.9189859521590124,"d":"92%"},3,{"v":5517.86,"d":"$5,517.86"},{"v":1948177.2100000002,"d":"$1,948,177.21"},{"v":1953695.0700000003,"d":"$1,953,695.07"},{"v":0.9,"d":"0.90"},{"v":1120878.18,"d":"$1,120,878.18"},{"v":270939.49,"d":"$270,939.49"},{"v":117523.5,"d":"$117,523.50"},{"v":46883.44,"d":"$46,883.44"},{"v":37900.24,"d":"$37,900.24"},{"v":79915.6,"d":"$79,915.60"},{"v":25871.94,"d":"$25,871.94"},{"v":44107.47,"d":"$44,107.47"},{"v":52174.36,"d":"$52,174.36"},{"v":31810.84,"d":"$31,810.84"},{"v":77402.3,"d":"$77,402.30"},{"v":66643.56,"d":"$66,643.56"},{"v":52926.88,"d":"$52,926.88"},{"v":2024977.8,"d":"$2,024,977.80"},{"v":32381.1,"d":"$32,381.10"},{"v":45223.75,"d":"$45,223.75"},{"v":117581.75000000001,"d":"$117,581.75"},{"v":12300.860000000002,"d":"$12,300.86"},{"v":206582.09000000003,"d":"$206,582.09"},{"v":136374.79,"d":"$136,374.79"},{"v":492396.19000000006,"d":"$492,396.19"},{"v":338997.23,"d":"$338,997.23"},{"v":945040.08156,"d":"$945,040.08"},{"v":2326877.84156,"d":"$2,326,877.84"},{"v":344380.66,"d":"$344,380.66"},{"v":1982497.1815599997,"d":"$1,982,497.18"},{"v":2292439.77156,"d":"$2,292,439.77"},{"v":67312.35,"d":"$67,312.35"},{"v":67312.35,"d":"$67,312.35"},{"v":69952.05,"d":"$69,952.05"},{"v":69952.05,"d":"$69,952.05"},{"v":0,"d":"$0.00"},{"v":0,"d":"$0.00"},{"v":0,"d":"$0.00"},{"v":0,"d":"$0.00"},{"v":0,"d":"$0.00"},{"v":168940.8,"d":"$168,940.80"},{"v":68433.4,"d":"$68,433.40"},{"v":26197.02,"d":"$26,197.02"},{"v":538100.02,"d":"$538,100.02"},{"v":4855517.66,"d":"$4,855,517.66"},{"v":146441.37,"d":"$146,441.37"},{"v":0,"d":"$0.00"},{"v":143324.71000000002,"d":"$143,324.71"},{"v":4855517.591560001,"d":"$4,855,517.59"}]
["20096225016","FAIRFIELD COMM H S DIST 225",438.5,{"v":6337567.05,"d":"$6,337,567.05"},{"v":4448500.21,"d":"$4,448,500.21"},{"v":0.701925545702905,"d":"70%"},1,{"v":218614.45,"d":"$218,614.45"},{"v":2912975.45,"d":"$2,912,975.45"},{"v":3131589.9000000004,"d":"$3,131,589.90"},{"v":0.9,"d":"0.90"},{"v":1379445.79,"d":"$1,379,445.79"},{"v":459769.27,"d":"$459,769.27"},{"v":158084.05,"d":"$158,084.05"},{"v":52694.68,"d":"$52,694.68"},{"v":45609.43,"d":"$45,609.43"},{"v":134914.5,"d":"$134,914.50"},{"v":31927.08,"d":"$31,927.08"},{"v":58542.64,"d":"$58,542.64"},{"v":52899.01,"d":"$52,899.01"},{"v":39028.42,"d":"$39,028.42"},{"v":78477.33,"d":"$78,477.33"},{"v":67569.16,"d":"$67,569.16"},{"v":70248.41,"d":"$70,248.41"},{"v":2629209.77,"d":"$2,629,209.77"},{"v":39465,"d":"$39,465.00"},{"v":54812.5,"d":"$54,812.50"},{"v":142512.5,"d":"$142,512.50"},{"v":14909,"d":"$14,909.00"},{"v":250383.5,"d":"$250,383.50"},{"v":376671.5,"d":"$376,671.50"},{"v":596798.5,"d":"$596,798.50"},{"v":410874.5,"d":"$410,874.50"},{"v":1205732.499,"d":"$1,205,732.50"},{"v":3092159.499,"d":"$3,092,159.50"},{"v":417399.38,"d":"$417,399.38"},{"v":2674760.119,"d":"$2,674,760.12"},{"v":3050419.559,"d":"$3,050,419.56"},{"v":83150.55,"d":"$83,150.55"},{"v":83150.55,"d":"$83,150.55"},{"v":86450.17,"d":"$86,450.17"},{"v":86450.17,"d":"$86,450.17"},{"v":0,"d":"$0.00"},{"v":0,"d":"$0.00"},{"v":0,"d":"$0.00"},{"v":0,"d":"$0.00"},{"v":0,"d":"$0.00"},{"v":204576.75,"d":"$204,576.75"},{"v":82868.58,"d":"$82,868.58"},{"v":31290.88,"d":"$31,290.88"},{"v":657937.6499999999,"d":"$657,937.65"},{"v":6337567.05,"d":"$6,337,567.05"},{"v":332649.1500000001,"d":"$332,649.15"},{"v":0,"d":"$0.00"},{"v":204438.65000000002,"d":"$204,438.65"},{"v":6337566.979,"d":"$6,337,566.98"}]
["20097001026","GRAYVILLE C U SCHOOL DIST 1",256.68,{"v":3478474.06,"d":"$3,478,474.06"},{"v":2982269.8499999996,"d":"$2,982,269.85"},{"v":0.857350032962442,"d":"86%"},2,{"v":9753.45,"d":"$9,753.45"},{"v":1642404.97,"d":"$1,642,404.97"},{"v":1652158.42,"d":"$1,652,158.42"},{"v":0.9,"d":"0.90"},{"v":795328.65,"d":"$795,328.65"},{"v":192550.95,"d":"$192,550.95"},{"v":83380.49,"d":"$83,380.49"},{"v":33232.67,"d":"$33,232.67"},{"v":27235.46,"d":"$27,235.46"},{"v":57042.05,"d":"$57,042.05"},{"v":18165.41,"d":"$18,165.41"},{"v":31276.2,"d":"$31,276.20"},{"v":36956.84,"d":"$36,956.84"},{"v":22454.71,"d":"$22,454.71"},{"v":54826.63,"d":"$54,826.63"},{"v":47205.85,"d":"$47,205.85"},{"v":37529.97,"d":"$37,529.97"},{"v":1437185.88,"d":"$1,437,185.88"},{"v":22914,"d":"$22,914.00"},{"v":32085,"d":"$32,085.00"},{"v":83421,"d":"$83,421.00"},{"v":8727.12,"d":"$8,727.12"},{"v":146564.28,"d":"$146,564.28"},{"v":97482.62,"d":"$97,482.62"},{"v":349341.48,"d":"$349,341.48"},{"v":240509.15999999997,"d":"$240,509.16"},{"v":678630.62352,"d":"$678,630.62"},{"v":1659675.28352,"d":"$1,659,675.28"},{"v":244328.55,"d":"$244,328.55"},{"v":1415346.7335200002,"d":"$1,415,346.73"},{"v":1635242.4235200002,"d":"$1,635,242.42"},{"v":53453.92,"d":"$53,453.92"},{"v":53453.92,"d":"$53,453.92"},{"v":56093.62,"d":"$56,093.62"},{"v":56093.62,"d":"$56,093.62"},{"v":0,"d":"$0.00"},{"v":0,"d":"$0.00"},{"v":0,"d":"$0.00"},{"v":0,"d":"$0.00"},{"v":0,"d":"$0.00"},{"v":120106.35,"d":"$120,106.35"},{"v":48651.87,"d":"$48,651.87"},{"v":18192.37,"d":"$18,192.37"},{"v":406045.67,"d":"$406,045.67"},{"v":3478474.06,"d":"$3,478,474.06"},{"v":168234.93999999997,"d":"$168,234.94"},{"v":0,"d":"$0.00"},{"v":105402.33,"d":"$105,402.33"},{"v":3478473.97352,"d":"$3,478,473.97"}]
["20097003026","NORRIS CITY-OMAHA-ENFIELD CUSD 3",663.37,{"v":9050400.25,"d":"$9,050,400.25"},{"v":6616355.73,"d":"$6,616,355.73"},{"v":0.7310566988459986,"d":"73%"},1,{"v":211057.09,"d":"$211,057.09"},{"v":4199071.649999999,"d":"$4,199,071.65"},{"v":4410128.739999999,"d":"$4,410,128.74"},{"v":0.9,"d":"0.90"},{"v":2066643.8,"d":"$2,066,643.80"},{"v":495309.84,"d":"$495,309.84"},{"v":216154.81,"d":"$216,154.81"},{"v":88369.12,"d":"$88,369.12"},{"v":71080.73,"d":"$71,080.73"},{"v":148645.33,"d":"$148,645.33"},{"v":47890.62,"d":"$47,890.62"},{"v":81264.67,"d":"$81,264.67"},{"v":98551.58,"d":"$98,551.58"},{"v":58809.96,"d":"$58,809.96"},{"v":146204.35,"d":"$146,204.35"},{"v":125882.28,"d":"$125,882.28"},{"v":97513.77,"d":"$97,513.77"},{"v":3742320.8600000003,"d":"$3,742,320.86"},{"v":59381.09999999999,"d":"$59,381.10"},{"v":82921.24999999999,"d":"$82,921.25"},{"v":215595.24999999997,"d":"$215,595.25"},{"v":22554.579999999994,"d":"$22,554.58"},{"v":378784.26999999996,"d":"$378,784.27"},{"v":244401.94999999998,"d":"$244,401.95"},{"v":902846.5699999998,"d":"$902,846.57"},{"v":621577.69,"d":"$621,577.69"},{"v":1770676.37568,"d":"$1,770,676.38"},{"v":4298739.03568,"d":"$4,298,739.04"},{"v":631448.63,"d":"$631,448.63"},{"v":3667290.40568,"d":"$3,667,290.41"},{"v":4235594.16568,"d":"$4,235,594.17"},{"v":143203.72,"d":"$143,203.72"},{"v":143203.72,"d":"$143,203.72"},{"v":149143.05,"d":"$149,143.05"},{"v":149143.05,"d":"$149,143.05"},{"v":659.92,"d":"$659.92"},{"v":659.92,"d":"$659.92"},{"v":659.92,"d":"$659.92"},{"v":659.92,"d":"$659.92"},{"v":1319.85,"d":"$1,319.85"},{"v":310164.75,"d":"$310,164.75"},{"v":125639.46,"d":"$125,639.46"},{"v":48027.87,"d":"$48,027.87"},{"v":1072485.1500000001,"d":"$1,072,485.15"},{"v":9050400.25,"d":"$9,050,400.25"},{"v":620549.3999999999,"d":"$620,549.40"},{"v":640.4,"d":"$640.40"},{"v":315565.35,"d":"$315,565.35"},{"v":9050400.17568,"d":"$9,050,400.18"}]
["20097005026","CARMI-WHITE COUNTY C U S DIST 5",1258.05,{"v":17212830.88,"d":"$17,212,830.88"},{"v":13315051.54,"d":"$13,315,051.54"},{"v":0.7735538467104256,"d":"77%"},2,{"v":127592.23,"d":"$127,592.23"},{"v":6189296.739999999,"d":"$6,189,296.74"},{"v":6316888.97,"d":"$6,316,888.97"},{"v":0.9,"d":"0.90"},{"v":3900194.17,"d":"$3,900,194.17"},{"v":940537.02,"d":"$940,537.02"},{"v":411221.94,"d":"$411,221.94"},{"v":167135.8,"d":"$167,135.80"},{"v":134996.94,"d":"$134,996.94"},{"v":285413.88,"d":"$285,413.88"},{"v":91377.52,"d":"$91,377.52"},{"v":154777.12,"d":"$154,777.12"},{"v":186233.5,"d":"$186,233.50"},{"v":111738.92,"d":"$111,738.92"},{"v":276283.22,"d":"$276,283.22"},{"v":237880.48,"d":"$237,880.48"},{"v":185725.25,"d":"$185,725.25"},{"v":7083515.76,"d":"$7,083,515.76"},{"v":111852,"d":"$111,852.00"},{"v":157256.25,"d":"$157,256.25"},{"v":408866.25,"d":"$408,866.25"},{"v":42773.7,"d":"$42,773.70"},{"v":718346.55,"d":"$718,346.55"},{"v":471718.34,"d":"$471,718.34"},{"v":1712206.0500000003,"d":"$1,712,206.05"},{"v":1178792.85,"d":"$1,178,792.85"},{"v":3368383.6482000006,"d":"$3,368,383.65"},{"v":8170195.638200001,"d":"$8,170,195.64"},{"v":1197512.63,"d":"$1,197,512.63"},{"v":6972683.008200002,"d":"$6,972,683.01"},{"v":8050444.368200002,"d":"$8,050,444.37"},{"v":278488.35,"d":"$278,488.35"},{"v":278488.35,"d":"$278,488.35"},{"v":289707.07,"d":"$289,707.07"},{"v":289707.07,"d":"$289,707.07"},{"v":4619.47,"d":"$4,619.47"},{"v":4619.47,"d":"$4,619.47"},{"v":4619.47,"d":"$4,619.47"},{"v":4619.47,"d":"$4,619.47"},{"v":5939.32,"d":"$5,939.32"},{"v":588653.1,"d":"$588,653.10"},{"v":238447.65,"d":"$238,447.65"},{"v":90961.87,"d":"$90,961.87"},{"v":2078870.6600000001,"d":"$2,078,870.66"},{"v":17212830.88,"d":"$17,212,830.88"},{"v":922152.0300000001,"d":"$922,152.03"},{"v":1834.71,"d":"$1,834.71"},{"v":636910.19,"d":"$636,910.19"},{"v":17212830.788200002,"d":"$17,212,830.79"}]
[null,"ALT SCH-FRANKLIN/WILLIAMSON ROE",91.32,{"v":1324639.36,"d":"$1,324,639.36"},{"v":871761.8300000001,"d":"$871,761.83"},{"v":0.658112582431493,"d":"66%"},1,{"v":67769.44,"d":"$67,769.44"},{"v":739297.9,"d":"$739,297.90"},{"v":807067.3400000001,"d":"$807,067.34"},{"v":0.9,"d":"0.90"},{"v":288073.92,"d":"$288,073.92"},{"v":91581.12,"d":"$91,581.12"},{"v":31917.53,"d":"$31,917.53"},{"v":10639.17,"d":"$10,639.17"},{"v":9757,"d":"$9,757.00"},{"v":26604.68,"d":"$26,604.68"},{"v":6055.13,"d":"$6,055.13"},{"v":11761.99,"d":"$11,761.99"},{"v":10869.66,"d":"$10,869.66"},{"v":8019.54,"d":"$8,019.54"},{"v":16125.48,"d":"$16,125.48"},{"v":13884.07,"d":"$13,884.07"},{"v":14113.83,"d":"$14,113.83"},{"v":539403.1199999998,"d":"$539,403.12"},{"v":8218.8,"d":"$8,218.80"},{"v":11415,"d":"$11,415.00"},{"v":29678.999999999996,"d":"$29,679.00"},{"v":3104.8799999999997,"d":"$3,104.88"},{"v":52143.72,"d":"$52,143.72"},{"v":71123.87999999999,"d":"$71,123.88"},{"v":124286.51999999999,"d":"$124,286.52"},{"v":85566.84,"d":"$85,566.84"},{"v":254067.34848,"d":"$254,067.35"},{"v":639605.9884799998,"d":"$639,605.99"},{"v":86925.68,"d":"$86,925.68"},{"v":552680.3084800001,"d":"$552,680.31"},{"v":630913.4184800001,"d":"$630,913.42"},{"v":21777.52,"d":"$21,777.52"},{"v":21777.52,"d":"$21,777.52"},{"v":22437.45,"d":"$22,437.45"},{"v":22437.45,"d":"$22,437.45"},{"v":0,"d":"$0.00"},{"v":0,"d":"$0.00"},{"v":0,"d":"$0.00"},{"v":0,"d":"$0.00"},{"v":0,"d":"$0.00"},{"v":42235.2,"d":"$42,235.20"},{"v":17108.35,"d":"$17,108.35"},{"v":6549.25,"d":"$6,549.25"},{"v":154322.74,"d":"$154,322.74"},{"v":1324639.36,"d":"$1,324,639.36"},{"v":36893.43,"d":"$36,893.43"},{"v":60.55,"d":"$60.55"},{"v":17889.7,"d":"$17,889.70"},{"v":1324639.2784799999,"d":"$1,324,639.28"}]
[null,"SAFE SCH-FRANKLIN/WILLIAMSON ROE",18.32,{"v":229786.19,"d":"$229,786.19"},{"v":203237.89,"d":"$203,237.89"},{"v":0.884465206547008,"d":"88%"},2,{"v":380.13,"d":"$380.13"},{"v":180259.27999999997,"d":"$180,259.28"},{"v":180639.40999999997,"d":"$180,639.41"},{"v":0.9,"d":"0.90"},{"v":52908.81,"d":"$52,908.81"},{"v":12698.64,"d":"$12,698.64"},{"v":5209.27,"d":"$5,209.27"},{"v":1255.19,"d":"$1,255.19"},{"v":1788.06,"d":"$1,788.06"},{"v":4152.87,"d":"$4,152.87"},{"v":550.46,"d":"$550.46"},{"v":1871.22,"d":"$1,871.22"},{"v":1449.28,"d":"$1,449.28"},{"v":1336.59,"d":"$1,336.59"},{"v":2150.06,"d":"$2,150.06"},{"v":1851.21,"d":"$1,851.21"},{"v":2245.38,"d":"$2,245.38"},{"v":89467.04000000001,"d":"$89,467.04"},{"v":1648.8000000000002,"d":"$1,648.80"},{"v":2290,"d":"$2,290.00"},{"v":5954,"d":"$5,954.00"},{"v":622.88,"d":"$622.88"},{"v":10460.720000000001,"d":"$10,460.72"},{"v":7605.58,"d":"$7,605.58"},{"v":24933.52,"d":"$24,933.52"},{"v":17165.84,"d":"$17,165.84"},{"v":43688.80847999999,"d":"$43,688.81"},{"v":114370.14847999999,"d":"$114,370.15"},{"v":17438.44,"d":"$17,438.44"},{"v":96931.70848,"d":"$96,931.71"},{"v":112626.29848,"d":"$112,626.30"},{"v":3959.55,"d":"$3,959.55"},{"v":3959.55,"d":"$3,959.55"},{"v":3959.55,"d":"$3,959.55"},{"v":3959.55,"d":"$3,959.55"},{"v":0,"d":"$0.00"},{"v":0,"d":"$0.00"},{"v":0,"d":"$0.00"},{"v":0,"d":"$0.00"},{"v":0,"d":"$0.00"},{"v":7919.1,"d":"$7,919.10"},{"v":3207.81,"d":"$3,207.81"},{"v":727.69,"d":"$727.69"},{"v":27692.800000000003,"d":"$27,692.80"},{"v":229786.19,"d":"$229,786.19"},{"v":4551.39,"d":"$4,551.39"},{"v":0,"d":"$0.00"},{"v":2268.5699999999997,"d":"$2,268.57"},{"v":229786.13848000002,"d":"$229,786.14"}]
["21028047004","BENTON COMM CONS SCH DIST 47",1043.23,{"v":14095857.95,"d":"$14,095,857.95"},{"v":10395699,"d":"$10,395,699.00"},{"v":0.7375002668780442,"d":"74%"},1,{"v":308010.43,"d":"$308,010.43"},{"v":7351819.499999999,"d":"$7,351,819.50"},{"v":7659829.929999999,"d":"$7,659,829.93"},{"v":0.9,"d":"0.90"},{"v":3268525.17,"d":"$3,268,525.17"},{"v":653705.02,"d":"$653,705.02"},{"v":326978.03,"d":"$326,978.03"},{"v":144974.9,"d":"$144,974.90"},{"v":115505.88,"d":"$115,505.88"},{"v":200886.64,"d":"$200,886.64"},{"v":75964.44,"d":"$75,964.44"},{"v":123500.91,"d":"$123,500.91"},{"v":167392.76,"d":"$167,392.76"},{"v":92759.34,"d":"$92,759.34"},{"v":248332.39,"d":"$248,332.39"},{"v":213814.75,"d":"$213,814.75"},{"v":148195.27,"d":"$148,195.27"},{"v":5780535.499999999,"d":"$5,780,535.50"},{"v":93103.2,"d":"$93,103.20"},{"v":130403.74999999999,"d":"$130,403.75"},{"v":339049.75,"d":"$339,049.75"},{"v":35469.82,"d":"$35,469.82"},{"v":595684.33,"d":"$595,684.33"},{"v":175333.84,"d":"$175,333.84"},{"v":1419836.0299999998,"d":"$1,419,836.03"},{"v":977506.51,"d":"$977,506.51"},{"v":2801748.6547199995,"d":"$2,801,748.65"},{"v":6568135.8847199995,"d":"$6,568,135.88"},{"v":993029.77,"d":"$993,029.77"},{"v":5575106.11472,"d":"$5,575,106.11"},{"v":6468832.90472,"d":"$6,468,832.90"},{"v":259350.52,"d":"$259,350.52"},{"v":259350.52,"d":"$259,350.52"},{"v":270569.25,"d":"$270,569.25"},{"v":270569.25,"d":"$270,569.25"},{"v":4619.47,"d":"$4,619.47"},{"v":4619.47,"d":"$4,619.47"},{"v":5279.4,"d":"$5,279.40"},{"v":5279.4,"d":"$5,279.40"},{"v":5939.32,"d":"$5,939.32"},{"v":487684.57,"d":"$487,684.57"},{"v":197548,"d":"$197,548.00"},{"v":75680.28,"d":"$75,680.28"},{"v":1846489.45,"d":"$1,846,489.45"},{"v":14095857.95,"d":"$14,095,857.95"},{"v":1269633.51,"d":"$1,269,633.51"},{"v":4489.83,"d":"$4,489.83"},{"v":529215.71,"d":"$529,215.71"},{"v":14095857.854719998,"d":"$14,095,857.85"}]
["21028091004","AKIN COMM CONS SCHOOL DIST 91",95.5,{"v":1196202.28,"d":"$1,196,202.28"},{"v":1743030.17,"d":"$1,743,030.17"},{"v":1.457136639130967,"d":"146%"},4,{"v":76.19,"d":"$76.19"},{"v":213587.96,"d":"$213,587.96"},{"v":213664.15,"d":"$213,664.15"},{"v":0.9,"d":"0.90"},{"v":295598.18,"d":"$295,598.18"},{"v":59119.63,"d":"$59,119.63"},{"v":29497.05,"d":"$29,497.05"},{"v":12551.94,"d":"$12,551.94"},{"v":9943.52,"d":"$9,943.52"},{"v":16233.26,"d":"$16,233.26"},{"v":6055.13,"d":"$6,055.13"},{"v":10960.03,"d":"$10,960.03"},{"v":14492.88,"d":"$14,492.88"},{"v":8286.85,"d":"$8,286.85"},{"v":21500.64,"d":"$21,500.64"},{"v":18512.1,"d":"$18,512.10"},{"v":13151.52,"d":"$13,151.52"},{"v":515902.73000000004,"d":"$515,902.73"},{"v":8370,"d":"$8,370.00"},{"v":11937.5,"d":"$11,937.50"},{"v":31037.5,"d":"$31,037.50"},{"v":3247,"d":"$3,247.00"},{"v":27265.25,"d":"$27,265.25"},{"v":14353,"d":"$14,353.00"},{"v":129975.5,"d":"$129,975.50"},{"v":89483.5,"d":"$89,483.50"},{"v":240373.51200000002,"d":"$240,373.51"},{"v":556042.762,"d":"$556,042.76"},{"v":90904.54,"d":"$90,904.54"},{"v":465138.222,"d":"$465,138.22"},{"v":546952.302,"d":"$546,952.30"},{"v":15838.2,"d":"$15,838.20"},{"v":15838.2,"d":"$15,838.20"},{"v":16498.12,"d":"$16,498.12"},{"v":16498.12,"d":"$16,498.12"},{"v":0,"d":"$0.00"},{"v":0,"d":"$0.00"},{"v":0,"d":"$0.00"},{"v":0,"d":"$0.00"},{"v":0,"d":"$0.00"},{"v":44214.97,"d":"$44,214.97"},{"v":17910.3,"d":"$17,910.30"},{"v":6549.25,"d":"$6,549.25"},{"v":133347.16,"d":"$133,347.16"},{"v":1196202.28,"d":"$1,196,202.28"},{"v":93643.39000000001,"d":"$93,643.39"},{"v":0,"d":"$0.00"},{"v":23215.539999999997,"d":"$23,215.54"},{"v":1196202.192,"d":"$1,196,202.19"}]
["21028099026","CHRISTOPHER UNIT 99",679.95,{"v":9727762.53,"d":"$9,727,762.53"},{"v":7095529.07,"d":"$7,095,529.07"},{"v":0.729410185345057,"d":"73%"},1,{"v":250190.7,"d":"$250,190.70"},{"v":5986961.479999999,"d":"$5,986,961.48"},{"v":6237152.179999999,"d":"$6,237,152.18"},{"v":0.9,"d":"0.90"},{"v":2198805.71,"d":"$2,198,805.71"},{"v":540697.95,"d":"$540,697.95"},{"v":223593.9,"d":"$223,593.90"},{"v":88934.61,"d":"$88,934.61"},{"v":77551.63,"d":"$77,551.63"},{"v":156151.11,"d":"$156,151.11"},{"v":48441.09,"d":"$48,441.09"},{"v":83670.53,"d":"$83,670.53"},{"v":98551.58,"d":"$98,551.58"},{"v":60146.55,"d":"$60,146.55"},{"v":146204.35,"d":"$146,204.35"},{"v":125882.28,"d":"$125,882.28"},{"v":100400.69,"d":"$100,400.69"},{"v":3949031.979999999,"d":"$3,949,031.98"},{"v":60866.09999999999,"d":"$60,866.10"},{"v":84993.74999999999,"d":"$84,993.75"},{"v":220983.74999999997,"d":"$220,983.75"},{"v":23118.3,"d":"$23,118.30"},{"v":388251.44999999995,"d":"$388,251.45"},{"v":273100.05,"d":"$273,100.05"},{"v":925411.95,"d":"$925,411.95"},{"v":637113.1499999999,"d":"$637,113.15"},{"v":1920900.8027999997,"d":"$1,920,900.80"},{"v":4534739.3028,"d":"$4,534,739.30"},{"v":647230.8,"d":"$647,230.80"},{"v":3887508.502799999,"d":"$3,887,508.50"},{"v":4470016.222799999,"d":"$4,470,016.22"},{"v":197977.5,"d":"$197,977.50"},{"v":197977.5,"d":"$197,977.50"},{"v":206556.52,"d":"$206,556.52"},{"v":206556.52,"d":"$206,556.52"},{"v":659.92,"d":"$659.92"},{"v":659.92,"d":"$659.92"},{"v":659.92,"d":"$659.92"},{"v":659.92,"d":"$659.92"},{"v":1319.85,"d":"$1,319.85"},{"v":318083.85,"d":"$318,083.85"},{"v":128847.27,"d":"$128,847.27"},{"v":48755.56,"d":"$48,755.56"},{"v":1308714.2500000002,"d":"$1,308,714.25"},{"v":9727762.53,"d":"$9,727,762.53"},{"v":1021235.0599999999,"d":"$1,021,235.06"},{"v":216.54000000000002,"d":"$216.54"},{"v":395263.66000000003,"d":"$395,263.66"},{"v":9727762.452799998,"d":"$9,727,762.45"}]
["21028103013","BENTON CONS HIGH SCHOOL DIST 103",567,{"v":8421423.36,"d":"$8,421,423.36"},{"v":6168894.4,"d":"$6,168,894.40"},{"v":0.732523961365125,"d":"73%"},1,{"v":202189.48,"d":"$202,189.48"},{"v":3858455.500000001,"d":"$3,858,455.50"},{"v":4060644.980000001,"d":"$4,060,644.98"},{"v":0.9,"d":"0.90"},{"v":1819771.24,"d":"$1,819,771.24"},{"v":606529.75,"d":"$606,529.75"},{"v":204282.13,"d":"$204,282.13"},{"v":67853.43,"d":"$67,853.43"},{"v":61524.51,"d":"$61,524.51"},{"v":174232.44,"d":"$174,232.44"},{"v":41285.02,"d":"$41,285.02"},{"v":75650.99,"d":"$75,650.99"},{"v":68116.53,"d":"$68,116.53"},{"v":50523.1,"d":"$50,523.10"},{"v":101053,"d":"$101,053.00"},{"v":87006.87,"d":"$87,006.87"},{"v":90777.62,"d":"$90,777.62"},{"v":3448606.6300000004,"d":"$3,448,606.63"},{"v":51030,"d":"$51,030.00"},{"v":70875,"d":"$70,875.00"},{"v":184275,"d":"$184,275.00"},{"v":19278,"d":"$19,278.00"},{"v":323757,"d":"$323,757.00"},{"v":487053,"d":"$487,053.00"},{"v":771687,"d":"$771,687.00"},{"v":531279,"d":"$531,279.00"},{"v":1615095.204,"d":"$1,615,095.20"},{"v":4054329.204,"d":"$4,054,329.20"},{"v":539715.96,"d":"$539,715.96"},{"v":3514613.244,"d":"$3,514,613.24"},{"v":4000357.604,"d":"$4,000,357.60"},{"v":133304.85,"d":"$133,304.85"},{"v":133304.85,"d":"$133,304.85"},{"v":139244.17,"d":"$139,244.17"},{"v":139244.17,"d":"$139,244.17"},{"v":2639.7,"d":"$2,639.70"},{"v":2639.7,"d":"$2,639.70"},{"v":2639.7,"d":"$2,639.70"},{"v":2639.7,"d":"$2,639.70"},{"v":3299.62,"d":"$3,299.62"},{"v":265289.85,"d":"$265,289.85"},{"v":107461.83,"d":"$107,461.83"},{"v":40750.92,"d":"$40,750.92"},{"v":972459.0599999998,"d":"$972,459.06"},{"v":8421423.36,"d":"$8,421,423.36"},{"v":563377.85,"d":"$563,377.85"},{"v":658.5799999999999,"d":"$658.58"},{"v":270454.31,"d":"$270,454.31"},{"v":8421423.294,"d":"$8,421,423.29"}]
["21028115004","EWING NORTHERN C C DISTRICT 115",217,{"v":2780759.53,"d":"$2,780,759.53"},{"v":1754838.4,"d":"$1,754,838.40"},{"v":0.631064420014772,"d":"63%"},1,{"v":164562.51,"d":"$164,562.51"},{"v":1142648.23,"d":"$1,142,648.23"},{"v":1307210.74,"d":"$1,307,210.74"},{"v":0.9,"d":"0.90"},{"v":661487.23,"d":"$661,487.23"},{"v":132297.44,"d":"$132,297.44"},{"v":67152.87,"d":"$67,152.87"},{"v":29497.05,"d":"$29,497.05"},{"v":22433.14,"d":"$22,433.14"},{"v":38554,"d":"$38,554.00"},{"v":15413.07,"d":"$15,413.07"},{"v":25395.21,"d":"$25,395.21"},{"v":34058.26,"d":"$34,058.26"},{"v":18979.57,"d":"$18,979.57"},{"v":50526.5,"d":"$50,526.50"},{"v":43503.43,"d":"$43,503.43"},{"v":30473.05,"d":"$30,473.05"},{"v":1169770.8199999998,"d":"$1,169,770.82"},{"v":19305,"d":"$19,305.00"},{"v":27125,"d":"$27,125.00"},{"v":70525,"d":"$70,525.00"},{"v":7378,"d":"$7,378.00"},{"v":123907,"d":"$123,907.00"},{"v":33694.5,"d":"$33,694.50"},{"v":295337,"d":"$295,337.00"},{"v":203329,"d":"$203,329.00"},{"v":546070.962,"d":"$546,070.96"},{"v":1326671.462,"d":"$1,326,671.46"},{"v":206557.96,"d":"$206,557.96"},{"v":1120113.502,"d":"$1,120,113.50"},{"v":1306015.662,"d":"$1,306,015.66"},{"v":36295.87,"d":"$36,295.87"},{"v":36295.87,"d":"$36,295.87"},{"v":37615.72,"d":"$37,615.72"},{"v":37615.72,"d":"$37,615.72"},{"v":0,"d":"$0.00"},{"v":0,"d":"$0.00"},{"v":0,"d":"$0.00"},{"v":0,"d":"$0.00"},{"v":0,"d":"$0.00"},{"v":100968.52,"d":"$100,968.52"},{"v":40899.65,"d":"$40,899.65"},{"v":15281.59,"d":"$15,281.59"},{"v":304972.94000000006,"d":"$304,972.94"},{"v":2780759.53,"d":"$2,780,759.53"},{"v":111908.64,"d":"$111,908.64"},{"v":0,"d":"$0.00"},{"v":100471.01000000001,"d":"$100,471.01"},{"v":2780759.422,"d":"$2,780,759.42"}]
["21028168026","FRANKFORT COMM UNIT SCH DIST 168",1457.3,{"v":20775017.23,"d":"$20,775,017.23"},{"v":15756966.14,"d":"$15,756,966.14"},{"v":0.7584574282444531,"d":"76%"},1,{"v":313038.54,"d":"$313,038.54"},{"v":12409032.730000002,"d":"$12,409,032.73"},{"v":12722071.270000001,"d":"$12,722,071.27"},{"v":0.9,"d":"0.90"},{"v":4698686.44,"d":"$4,698,686.44"},{"v":1128620.95,"d":"$1,128,620.95"},{"v":477153.93,"d":"$477,153.93"},{"v":193715.51,"d":"$193,715.51"},{"v":166319.37,"d":"$166,319.37"},{"v":327400.84,"d":"$327,400.84"},{"v":106240.13,"d":"$106,240.13"},{"v":179103.06,"d":"$179,103.06"},{"v":215943.91,"d":"$215,943.91"},{"v":129381.91,"d":"$129,381.91"},{"v":320359.53,"d":"$320,359.53"},{"v":275830.29,"d":"$275,830.29"},{"v":214915.23,"d":"$214,915.23"},{"v":8433671.1,"d":"$8,433,671.10"},{"v":129537,"d":"$129,537.00"},{"v":182162.5,"d":"$182,162.50"},{"v":473622.5,"d":"$473,622.50"},{"v":49548.2,"d":"$49,548.20"},{"v":832118.2999999999,"d":"$832,118.30"},{"v":538318.44,"d":"$538,318.44"},{"v":1983385.2999999998,"d":"$1,983,385.30"},{"v":1365490.1,"d":"$1,365,490.10"},{"v":4110422.5632,"d":"$4,110,422.56"},{"v":9664604.9032,"d":"$9,664,604.90"},{"v":1387174.72,"d":"$1,387,174.72"},{"v":8277430.183200001,"d":"$8,277,430.18"},{"v":9525887.4232,"d":"$9,525,887.42"},{"v":428951.25,"d":"$428,951.25"},{"v":428951.25,"d":"$428,951.25"},{"v":446769.22,"d":"$446,769.22"},{"v":446769.22,"d":"$446,769.22"},{"v":0,"d":"$0.00"},{"v":0,"d":"$0.00"},{"v":0,"d":"$0.00"},{"v":0,"d":"$0.00"},{"v":659.92,"d":"$659.92"},{"v":681702.52,"d":"$681,702.52"},{"v":276139.49,"d":"$276,139.49"},{"v":105515.77,"d":"$105,515.77"},{"v":2815458.64,"d":"$2,815,458.64"},{"v":20775017.23,"d":"$20,775,017.23"},{"v":2430723.6599999997,"d":"$2,430,723.66"},{"v":113.74,"d":"$113.74"},{"v":761120.96,"d":"$761,120.96"},{"v":20775017.1632,"d":"$20,775,017.16"}]
["21028174026","THOMPSONVILLE CUSD 174",288.53,{"v":3958855.48,"d":"$3,958,855.48"},{"v":2906396.04,"d":"$2,906,396.04"},{"v":0.7341505782878439,"d":"73%"},1,{"v":90147.32,"d":"$90,147.32"},{"v":1979390.1800000002,"d":"$1,979,390.18"},{"v":2069537.5000000002,"d":"$2,069,537.50"},{"v":0.9,"d":"0.90"},{"v":898890.84,"d":"$898,890.84"},{"v":220961.15,"d":"$220,961.15"},{"v":94270.27,"d":"$94,270.27"},{"v":37908.59,"d":"$37,908.59"},{"v":30948.77,"d":"$30,948.77"},{"v":65820.56,"d":"$65,820.56"},{"v":20367.27,"d":"$20,367.27"},{"v":35553.29,"d":"$35,553.29"},{"v":42029.35,"d":"$42,029.35"},{"v":25395.21,"d":"$25,395.21"},{"v":62351.85,"d":"$62,351.85"},{"v":53685.09,"d":"$53,685.09"},{"v":42662.27,"d":"$42,662.27"},{"v":1630844.5100000005,"d":"$1,630,844.51"},{"v":25765.199999999997,"d":"$25,765.20"},{"v":36066.25,"d":"$36,066.25"},{"v":93772.24999999999,"d":"$93,772.25"},{"v":9810.019999999999,"d":"$9,810.02"},{"v":164750.63,"d":"$164,750.63"},{"v":115239.47999999998,"d":"$115,239.48"},{"v":392689.32999999996,"d":"$392,689.33"},{"v":270352.61,"d":"$270,352.61"},{"v":773526.71892,"d":"$773,526.72"},{"v":1881972.48892,"d":"$1,881,972.49"},{"v":274645.93,"d":"$274,645.93"},{"v":1607326.5589199997,"d":"$1,607,326.56"},{"v":1854507.8889199998,"d":"$1,854,507.89"},{"v":64672.65,"d":"$64,672.65"},{"v":64672.65,"d":"$64,672.65"},{"v":67312.35,"d":"$67,312.35"},{"v":67312.35,"d":"$67,312.35"},{"v":0,"d":"$0.00"},{"v":0,"d":"$0.00"},{"v":0,"d":"$0.00"},{"v":0,"d":"$0.00"},{"v":0,"d":"$0.00"},{"v":134624.7,"d":"$134,624.70"},{"v":54532.87,"d":"$54,532.87"},{"v":20375.46,"d":"$20,375.46"},{"v":473503.03,"d":"$473,503.03"},{"v":3958855.48,"d":"$3,958,855.48"},{"v":236430.71999999997,"d":"$236,430.72"},{"v":0,"d":"$0.00"},{"v":113484.42,"d":"$113,484.42"},{"v":3958855.428920001,"d":"$3,958,855.43"}]
["21028188026","ZEIGLER-ROYALTON C U S DIST 188",489.36,{"v":6946567.39,"d":"$6,946,567.39"},{"v":5403231.5,"d":"$5,403,231.50"},{"v":0.7778275508819328,"d":"78%"},2,{"v":67987.44,"d":"$67,987.44"},{"v":4503761.8100000005,"d":"$4,503,761.81"},{"v":4571749.250000001,"d":"$4,571,749.25"},{"v":0.9,"d":"0.90"},{"v":1572861.79,"d":"$1,572,861.79"},{"v":378752.39,"d":"$378,752.39"},{"v":160013.77,"d":"$160,013.77"},{"v":64394.05,"d":"$64,394.05"},{"v":55538.83,"d":"$55,538.83"},{"v":108971.19,"d":"$108,971.19"},{"v":35229.88,"d":"$35,229.88"},{"v":59879.23,"d":"$59,879.23"},{"v":71739.75,"d":"$71,739.75"},{"v":43305.51,"d":"$43,305.51"},{"v":106428.16,"d":"$106,428.16"},{"v":91634.89,"d":"$91,634.89"},{"v":71852.25,"d":"$71,852.25"},{"v":2820601.69,"d":"$2,820,601.69"},{"v":43510.5,"d":"$43,510.50"},{"v":61169.99999999999,"d":"$61,170.00"},{"v":159042,"d":"$159,042.00"},{"v":16638.239999999998,"d":"$16,638.24"},{"v":279424.56,"d":"$279,424.56"},{"v":182171.51,"d":"$182,171.51"},{"v":666018.96,"d":"$666,018.96"},{"v":458530.31999999995,"d":"$458,530.32"},{"v":1372583.6150399998,"d":"$1,372,583.62"},{"v":3239089.7050399994,"d":"$3,239,089.71"},{"v":465811.99,"d":"$465,811.99"},{"v":2773277.71504,"d":"$2,773,277.72"},{"v":3192508.50504,"d":"$3,192,508.51"},{"v":141223.95,"d":"$141,223.95"},{"v":141223.95,"d":"$141,223.95"},{"v":147163.27,"d":"$147,163.27"},{"v":147163.27,"d":"$147,163.27"},{"v":0,"d":"$0.00"},{"v":0,"d":"$0.00"},{"v":0,"d":"$0.00"},{"v":0,"d":"$0.00"},{"v":0,"d":"$0.00"},{"v":228993.97,"d":"$228,993.97"},{"v":92759.34,"d":"$92,759.34"},{"v":34929.36,"d":"$34,929.36"},{"v":933457.11,"d":"$933,457.11"},{"v":6946567.39,"d":"$6,946,567.39"},{"v":933058.42,"d":"$933,058.42"},{"v":22.02,"d":"$22.02"},{"v":268646.24,"d":"$268,646.24"},{"v":6946567.305040001,"d":"$6,946,567.31"}]
["21028196026","SESSER-VALIER COMM UNIT S D 196",577.26,{"v":7824351.43,"d":"$7,824,351.43"},{"v":5925757.67,"d":"$5,925,757.67"},{"v":0.7573480975406546,"d":"76%"},1,{"v":120357.95,"d":"$120,357.95"},{"v":4124627.11,"d":"$4,124,627.11"},{"v":4244985.06,"d":"$4,244,985.06"},{"v":0.9,"d":"0.90"},{"v":1782715.01,"d":"$1,782,715.01"},{"v":435060.09,"d":"$435,060.09"},{"v":188163.55,"d":"$188,163.55"},{"v":75628.69,"d":"$75,628.69"},{"v":60958.59,"d":"$60,958.59"},{"v":132804.79,"d":"$132,804.79"},{"v":41835.49,"d":"$41,835.49"},{"v":70839.27,"d":"$70,839.27"},{"v":84058.7,"d":"$84,058.70"},{"v":50790.42,"d":"$50,790.42"},{"v":124703.71,"d":"$124,703.71"},{"v":107370.18,"d":"$107,370.18"},{"v":85003.78,"d":"$85,003.78"},{"v":3239932.27,"d":"$3,239,932.27"},{"v":51698.7,"d":"$51,698.70"},{"v":72157.5,"d":"$72,157.50"},{"v":187609.5,"d":"$187,609.50"},{"v":19626.84,"d":"$19,626.84"},{"v":329615.46,"d":"$329,615.46"},{"v":226084.74999999997,"d":"$226,084.75"},{"v":785650.86,"d":"$785,650.86"},{"v":540892.62,"d":"$540,892.62"},{"v":1524884.7146399997,"d":"$1,524,884.71"},{"v":3738220.9446399994,"d":"$3,738,220.94"},{"v":549482.24,"d":"$549,482.24"},{"v":3188738.704639999,"d":"$3,188,738.70"},{"v":3683272.714639999,"d":"$3,683,272.71"},{"v":117466.65,"d":"$117,466.65"},{"v":117466.65,"d":"$117,466.65"},{"v":122746.05,"d":"$122,746.05"},{"v":122746.05,"d":"$122,746.05"},{"v":0,"d":"$0.00"},{"v":0,"d":"$0.00"},{"v":0,"d":"$0.00"},{"v":0,"d":"$0.00"},{"v":0,"d":"$0.00"},{"v":269909.32,"d":"$269,909.32"},{"v":109333.06,"d":"$109,333.06"},{"v":41478.61,"d":"$41,478.61"},{"v":901146.39,"d":"$901,146.39"},{"v":7824351.43,"d":"$7,824,351.43"},{"v":448385.7300000001,"d":"$448,385.73"},{"v":0,"d":"$0.00"},{"v":230179.2,"d":"$230,179.20"},{"v":7824351.374639998,"d":"$7,824,351.37"}]
["21044001026","GOREVILLE COMM UNIT DIST 1",572.79,{"v":7587005.01,"d":"$7,587,005.01"},{"v":5577531.4,"d":"$5,577,531.40"},{"v":0.7351427068584472,"d":"74%"},1,{"v":156427.87,"d":"$156,427.87"},{"v":2457629.9299999997,"d":"$2,457,629.93"},{"v":2614057.8,"d":"$2,614,057.80"},{"v":0.9,"d":"0.90"},{"v":1746211.46,"d":"$1,746,211.46"},{"v":419965.41,"d":"$419,965.41"},{"v":186876.22,"d":"$186,876.22"},{"v":75440.19,"d":"$75,440.19"},{"v":58773.9,"d":"$58,773.90"},{"v":128855.53,"d":"$128,855.53"},{"v":41285.02,"d":"$41,285.02"},{"v":70037.31,"d":"$70,037.31"},{"v":84058.7,"d":"$84,058.70"},{"v":50523.1,"d":"$50,523.10"},{"v":124703.71,"d":"$124,703.71"},{"v":107370.18,"d":"$107,370.18"},{"v":84041.47,"d":"$84,041.47"},{"v":3178142.2000000007,"d":"$3,178,142.20"},{"v":51251.399999999994,"d":"$51,251.40"},{"v":71598.75,"d":"$71,598.75"},{"v":186156.75,"d":"$186,156.75"},{"v":19474.86,"d":"$19,474.86"},{"v":327063.08999999997,"d":"$327,063.09"},{"v":213578,"d":"$213,578.00"},{"v":779567.1900000001,"d":"$779,567.19"},{"v":536704.23,"d":"$536,704.23"},{"v":1472016.04656,"d":"$1,472,016.05"},{"v":3657410.31656,"d":"$3,657,410.32"},{"v":545227.34,"d":"$545,227.34"},{"v":3112182.97656,"d":"$3,112,182.98"},{"v":3602887.57656,"d":"$3,602,887.58"},{"v":95029.2,"d":"$95,029.20"},{"v":95029.2,"d":"$95,029.20"},{"v":98988.75,"d":"$98,988.75"},{"v":98988.75,"d":"$98,988.75"},{"v":0,"d":"$0.00"},{"v":0,"d":"$0.00"},{"v":0,"d":"$0.00"},{"v":0,"d":"$0.00"},{"v":0,"d":"$0.00"},{"v":267929.55,"d":"$267,929.55"},{"v":108531.1,"d":"$108,531.10"},{"v":41478.61,"d":"$41,478.61"},{"v":805975.1599999999,"d":"$805,975.16"},{"v":7587005.01,"d":"$7,587,005.01"},{"v":267495.71,"d":"$267,495.71"},{"v":0,"d":"$0.00"},{"v":235201.01,"d":"$235,201.01"},{"v":7587004.936560001,"d":"$7,587,004.94"}]
["21044032003","NEW SIMPSON HILL CONS DIST 32",195.46,{"v":2536425.47,"d":"$2,536,425.47"},{"v":2044894.54,"d":"$2,044,894.54"},{"v":0.8062111677186399,"d":"81%"},2,{"v":16646.48,"d":"$16,646.48"},{"v":1321816.7899999998,"d":"$1,321,816.79"},{"v":1338463.2699999998,"d":"$1,338,463.27"},{"v":0.9,"d":"0.90"},{"v":594334.35,"d":"$594,334.35"},{"v":118866.87,"d":"$118,866.87"},{"v":60249.31,"d":"$60,249.31"},{"v":26986.67,"d":"$26,986.67"},{"v":20458.56,"d":"$20,458.56"},{"v":36524.84,"d":"$36,524.84"},{"v":13761.67,"d":"$13,761.67"},{"v":22989.34,"d":"$22,989.34"},{"v":31159.69,"d":"$31,159.69"},{"v":17108.35,"d":"$17,108.35"},{"v":46226.37,"d":"$46,226.37"},{"v":39801.01,"d":"$39,801.01"},{"v":27586.13,"d":"$27,586.13"},{"v":1056053.16,"d":"$1,056,053.16"},{"v":17366.399999999998,"d":"$17,366.40"},{"v":24432.5,"d":"$24,432.50"},{"v":63524.5,"d":"$63,524.50"},{"v":6645.639999999999,"d":"$6,645.64"},{"v":111607.66,"d":"$111,607.66"},{"v":32034.92,"d":"$32,034.92"},{"v":266021.06,"d":"$266,021.06"},{"v":183146.02,"d":"$183,146.02"},{"v":499310.66844,"d":"$499,310.67"},{"v":1204089.3684399999,"d":"$1,204,089.37"},{"v":186054.46,"d":"$186,054.46"},{"v":1018034.9084399999,"d":"$1,018,034.91"},{"v":1185483.91844,"d":"$1,185,483.92"},{"v":37615.72,"d":"$37,615.72"},{"v":37615.72,"d":"$37,615.72"},{"v":38935.57,"d":"$38,935.57"},{"v":38935.57,"d":"$38,935.57"},{"v":0,"d":"$0.00"},{"v":0,"d":"$0.00"},{"v":0,"d":"$0.00"},{"v":0,"d":"$0.00"},{"v":0,"d":"$0.00"},{"v":91069.65,"d":"$91,069.65"},{"v":36889.88,"d":"$36,889.88"},{"v":13826.2,"d":"$13,826.20"},{"v":294888.31,"d":"$294,888.31"},{"v":2536425.47,"d":"$2,536,425.47"},{"v":185380.91999999998,"d":"$185,380.92"},{"v":0,"d":"$0.00"},{"v":83971.26999999997,"d":"$83,971.27"},{"v":2536425.38844,"d":"$2,536,425.39"}]
["21044043003","BUNCOMBE CONS SCHOOL DIST 43",63.5,{"v":898629.1,"d":"$898,629.10"},{"v":735704.35,"d":"$735,704.35"},{"v":0.8186963342273247,"d":"82%"},2,{"v":5030.67,"d":"$5,030.67"},{"v":343064.17,"d":"$343,064.17"},{"v":348094.83999999997,"d":"$348,094.84"},{"v":0.9,"d":"0.90"},{"v":210872.59,"d":"$210,872.59"},{"v":42174.51,"d":"$42,174.51"},{"v":19455.5,"d":"$19,455.50"},{"v":8158.76,"d":"$8,158.76"},{"v":7590.94,"d":"$7,590.94"},{"v":11498.56,"d":"$11,498.56"},{"v":4403.73,"d":"$4,403.73"},{"v":7217.58,"d":"$7,217.58"},{"v":9420.37,"d":"$9,420.37"},{"v":5346.36,"d":"$5,346.36"},{"v":13975.41,"d":"$13,975.41"},{"v":12032.86,"d":"$12,032.86"},{"v":8660.76,"d":"$8,660.76"},{"v":360807.92999999993,"d":"$360,807.93"},{"v":5670,"d":"$5,670.00"},{"v":7937.5,"d":"$7,937.50"},{"v":20637.5,"d":"$20,637.50"},{"v":2159,"d":"$2,159.00"},{"v":36258.5,"d":"$36,258.50"},{"v":10045,"d":"$10,045.00"},{"v":86423.5,"d":"$86,423.50"},{"v":59499.5,"d":"$59,499.50"},{"v":180713.01000000004,"d":"$180,713.01"},{"v":409343.51,"d":"$409,343.51"},{"v":60444.38,"d":"$60,444.38"},{"v":348899.13,"d":"$348,899.13"},{"v":403299.07,"d":"$403,299.07"},{"v":21777.52,"d":"$21,777.52"},{"v":21777.52,"d":"$21,777.52"},{"v":22437.45,"d":"$22,437.45"},{"v":22437.45,"d":"$22,437.45"},{"v":0,"d":"$0.00"},{"v":0,"d":"$0.00"},{"v":0,"d":"$0.00"},{"v":0,"d":"$0.00"},{"v":0,"d":"$0.00"},{"v":29696.62,"d":"$29,696.62"},{"v":12029.31,"d":"$12,029.31"},{"v":4366.17,"d":"$4,366.17"},{"v":134522.04,"d":"$134,522.04"},{"v":898629.1,"d":"$898,629.10"},{"v":51378.75000000001,"d":"$51,378.75"},{"v":0,"d":"$0.00"},{"v":25706.839999999997,"d":"$25,706.84"},{"v":898629.04,"d":"$898,629.04"}]
["21044055002","VIENNA SCHOOL DIST 55",380,{"v":5042233.99,"d":"$5,042,233.99"},{"v":3660646.4000000004,"d":"$3,660,646.40"},{"v":0.725996930578781,"d":"73%"},1,{"v":130586.81,"d":"$130,586.81"},{"v":2393976.73,"d":"$2,393,976.73"},{"v":2524563.54,"d":"$2,524,563.54"},{"v":0.9,"d":"0.90"},{"v":1184903.13,"d":"$1,184,903.13"},{"v":236980.62,"d":"$236,980.62"},{"v":118615.83,"d":"$118,615.83"},{"v":52718.14,"d":"$52,718.14"},{"v":41090.76,"d":"$41,090.76"},{"v":72373.3,"d":"$72,373.30"},{"v":27523.35,"d":"$27,523.35"},{"v":44909.42,"d":"$44,909.42"},{"v":60870.09,"d":"$60,870.09"},{"v":33414.75,"d":"$33,414.75"},{"v":90302.68,"d":"$90,302.68"},{"v":77750.82,"d":"$77,750.82"},{"v":53889.19,"d":"$53,889.19"},{"v":2095342.08,"d":"$2,095,342.08"},{"v":33975,"d":"$33,975.00"},{"v":47500,"d":"$47,500.00"},{"v":123500,"d":"$123,500.00"},{"v":12920,"d":"$12,920.00"},{"v":216980,"d":"$216,980.00"},{"v":63493.5,"d":"$63,493.50"},{"v":517180,"d":"$517,180.00"},{"v":356060,"d":"$356,060.00"},{"v":997812.282,"d":"$997,812.28"},{"v":2369420.782,"d":"$2,369,420.78"},{"v":361714.4,"d":"$361,714.40"},{"v":2007706.3820000002,"d":"$2,007,706.38"},{"v":2333249.342,"d":"$2,333,249.34"},{"v":80510.85,"d":"$80,510.85"},{"v":80510.85,"d":"$80,510.85"},{"v":84470.4,"d":"$84,470.40"},{"v":84470.4,"d":"$84,470.40"},{"v":1319.85,"d":"$1,319.85"},{"v":1319.85,"d":"$1,319.85"},{"v":1319.85,"d":"$1,319.85"},{"v":1319.85,"d":"$1,319.85"},{"v":1319.85,"d":"$1,319.85"},{"v":177519.82,"d":"$177,519.82"},{"v":71908.54,"d":"$71,908.54"},{"v":27652.41,"d":"$27,652.41"},{"v":613642.5199999999,"d":"$613,642.52"},{"v":5042233.99,"d":"$5,042,233.99"},{"v":333450.37,"d":"$333,450.37"},{"v":6990.989999999999,"d":"$6,990.99"},{"v":161893.37,"d":"$161,893.37"},{"v":5042233.942,"d":"$5,042,233.94"}]
["21044064002","CYPRESS SCHOOL DIST 64",100.32,{"v":1376847.59,"d":"$1,376,847.59"},{"v":1089268.4300000002,"d":"$1,089,268.43"},{"v":0.791132176074768,"d":"79%"},2,{"v":11470.3,"d":"$11,470.30"},{"v":731896.8500000001,"d":"$731,896.85"},{"v":743367.1500000001,"d":"$743,367.15"},{"v":0.9,"d":"0.90"},{"v":324467.64,"d":"$324,467.64"},{"v":64893.52,"d":"$64,893.52"},{"v":30752.25,"d":"$30,752.25"},{"v":13807.13,"d":"$13,807.13"},{"v":11409.92,"d":"$11,409.92"},{"v":18262.42,"d":"$18,262.42"},{"v":6605.6,"d":"$6,605.60"},{"v":11761.99,"d":"$11,761.99"},{"v":15942.16,"d":"$15,942.16"},{"v":8821.49,"d":"$8,821.49"},{"v":23650.7,"d":"$23,650.70"},{"v":20363.31,"d":"$20,363.31"},{"v":14113.83,"d":"$14,113.83"},{"v":564851.96,"d":"$564,851.96"},{"v":9028.8,"d":"$9,028.80"},{"v":12540,"d":"$12,540.00"},{"v":32603.999999999996,"d":"$32,604.00"},{"v":3410.8799999999997,"d":"$3,410.88"},{"v":57282.72,"d":"$57,282.72"},{"v":15950,"d":"$15,950.00"},{"v":136535.52,"d":"$136,535.52"},{"v":93999.84,"d":"$93,999.84"},{"v":274894.62948,"d":"$274,894.63"},{"v":636246.38948,"d":"$636,246.39"},{"v":95492.6,"d":"$95,492.60"},{"v":540753.78948,"d":"$540,753.79"},{"v":626697.12948,"d":"$626,697.13"},{"v":27716.85,"d":"$27,716.85"},{"v":27716.85,"d":"$27,716.85"},{"v":28376.77,"d":"$28,376.77"},{"v":28376.77,"d":"$28,376.77"},{"v":0,"d":"$0.00"},{"v":0,"d":"$0.00"},{"v":0,"d":"$0.00"},{"v":0,"d":"$0.00"},{"v":0,"d":"$0.00"},{"v":46854.67,"d":"$46,854.67"},{"v":18979.57,"d":"$18,979.57"},{"v":7276.95,"d":"$7,276.95"},{"v":185298.43000000002,"d":"$185,298.43"},{"v":1376847.59,"d":"$1,376,847.59"},{"v":69015.24,"d":"$69,015.24"},{"v":0,"d":"$0.00"},{"v":41395.33,"d":"$41,395.33"},{"v":1376847.51948,"d":"$1,376,847.52"}]
["21044133017","VIENNA H S DISTRICT 133",330.65,{"v":4805015.82,"d":"$4,805,015.82"},{"v":4132954.87,"d":"$4,132,954.87"},{"v":0.8601334573753807,"d":"86%"},2,{"v":14320.19,"d":"$14,320.19"},{"v":2288875.9799999995,"d":"$2,288,875.98"},{"v":2303196.1699999995,"d":"$2,303,196.17"},{"v":0.9,"d":"0.90"},{"v":1043787.87,"d":"$1,043,787.87"},{"v":347894.49,"d":"$347,894.49"},{"v":119104.42,"d":"$119,104.42"},{"v":39701.47,"d":"$39,701.47"},{"v":34677.28,"d":"$34,677.28"},{"v":101764.08,"d":"$101,764.08"},{"v":24220.54,"d":"$24,220.54"},{"v":44107.47,"d":"$44,107.47"},{"v":39855.42,"d":"$39,855.42"},{"v":29404.98,"d":"$29,404.98"},{"v":59126.76,"d":"$59,126.76"},{"v":50908.27,"d":"$50,908.27"},{"v":52926.88,"d":"$52,926.88"},{"v":1987479.9299999997,"d":"$1,987,479.93"},{"v":29758.499999999996,"d":"$29,758.50"},{"v":41331.25,"d":"$41,331.25"},{"v":107461.24999999999,"d":"$107,461.25"},{"v":11242.099999999999,"d":"$11,242.10"},{"v":188801.15,"d":"$188,801.15"},{"v":284028.35,"d":"$284,028.35"},{"v":450014.64999999997,"d":"$450,014.65"},{"v":309819.05,"d":"$309,819.05"},{"v":915655.3386,"d":"$915,655.34"},{"v":2338111.6386,"d":"$2,338,111.64"},{"v":314739.12,"d":"$314,739.12"},{"v":2023372.5185999996,"d":"$2,023,372.52"},{"v":2306637.7186,"d":"$2,306,637.72"},{"v":65332.57,"d":"$65,332.57"},{"v":65332.57,"d":"$65,332.57"},{"v":67972.27,"d":"$67,972.27"},{"v":67972.27,"d":"$67,972.27"},{"v":659.92,"d":"$659.92"},{"v":659.92,"d":"$659.92"},{"v":659.92,"d":"$659.92"},{"v":659.92,"d":"$659.92"},{"v":659.92,"d":"$659.92"},{"v":154422.45,"d":"$154,422.45"},{"v":62552.41,"d":"$62,552.41"},{"v":24013.93,"d":"$24,013.93"},{"v":510898.0699999999,"d":"$510,898.07"},{"v":4805015.82,"d":"$4,805,015.82"},{"v":246508.83000000002,"d":"$246,508.83"},{"v":450.57,"d":"$450.57"},{"v":177709.06999999998,"d":"$177,709.07"},{"v":4805015.718599999,"d":"$4,805,015.72"}]
["21061001026","MASSAC UNIT DISTRICT #1",1839.22,{"v":25686263.91,"d":"$25,686,263.91"},{"v":20311146.03,"d":"$20,311,146.03"},{"v":0.7907395992335268,"d":"79%"},2,{"v":207889.04,"d":"$207,889.04"},{"v":12737095.420000002,"d":"$12,737,095.42"},{"v":12944984.46,"d":"$12,944,984.46"},{"v":0.9,"d":"0.90"},{"v":5837934.32,"d":"$5,837,934.32"},{"v":1414299.9,"d":"$1,414,299.90"},{"v":603088.97,"d":"$603,088.97"},{"v":244930.03,"d":"$244,930.03"},{"v":203276.63,"d":"$203,276.63"},{"v":415891.35,"d":"$415,891.35"},{"v":134313.94,"d":"$134,313.94"},{"v":226685.66,"d":"$226,685.66"},{"v":272466.14,"d":"$272,466.14"},{"v":163331.29,"d":"$163,331.29"},{"v":404212.03,"d":"$404,212.03"},{"v":348027.48,"d":"$348,027.48"},{"v":272012.11,"d":"$272,012.11"},{"v":10540469.85,"d":"$10,540,469.85"},{"v":164292.3,"d":"$164,292.30"},{"v":229902.5,"d":"$229,902.50"},{"v":597746.5,"d":"$597,746.50"},{"v":62533.48,"d":"$62,533.48"},{"v":1050194.62,"d":"$1,050,194.62"},{"v":700165.9500000001,"d":"$700,165.95"},{"v":2503178.4200000004,"d":"$2,503,178.42"},{"v":1723349.1400000001,"d":"$1,723,349.14"},{"v":5050585.27608,"d":"$5,050,585.28"},{"v":12081948.186080001,"d":"$12,081,948.19"},{"v":1750716.73,"d":"$1,750,716.73"},{"v":10331231.45608,"d":"$10,331,231.46"},{"v":11906876.506080002,"d":"$11,906,876.51"},{"v":464587.2,"d":"$464,587.20"},{"v":464587.2,"d":"$464,587.20"},{"v":483725.02,"d":"$483,725.02"},{"v":483725.02,"d":"$483,725.02"},{"v":0,"d":"$0.00"},{"v":0,"d":"$0.00"},{"v":0,"d":"$0.00"},{"v":0,"d":"$0.00"},{"v":0,"d":"$0.00"},{"v":860542.2,"d":"$860,542.20"},{"v":348582.67,"d":"$348,582.67"},{"v":133168.18,"d":"$133,168.18"},{"v":3238917.4899999998,"d":"$3,238,917.49"},{"v":25686263.91,"d":"$25,686,263.91"},{"v":2108971.4299999997,"d":"$2,108,971.43"},{"v":0,"d":"$0.00"},{"v":927155.0899999999,"d":"$927,155.09"},{"v":25686263.84608,"d":"$25,686,263.85"}]
["21061038026","JOPPA-MAPLE GROVE UNIT DIST 38",210.13,{"v":2913408.8,"d":"$2,913,408.80"},{"v":4201672.13,"d":"$4,201,672.13"},{"v":1.4421841967388855,"d":"144%"},4,{"v":185.57,"d":"$185.57"},{"v":529048.23,"d":"$529,048.23"},{"v":529233.7999999999,"d":"$529,233.80"},{"v":0.9,"d":"0.90"},{"v":673913.18,"d":"$673,913.18"},{"v":162205.88,"d":"$162,205.88"},{"v":67564.17,"d":"$67,564.17"},{"v":27301.55,"d":"$27,301.55"},{"v":23749.48,"d":"$23,749.48"},{"v":46328.94,"d":"$46,328.94"},{"v":14312.14,"d":"$14,312.14"},{"v":25662.52,"d":"$25,662.52"},{"v":30435.04,"d":"$30,435.04"},{"v":18177.62,"d":"$18,177.62"},{"v":45151.34,"d":"$45,151.34"},{"v":38875.41,"d":"$38,875.41"},{"v":30793.82,"d":"$30,793.82"},{"v":1204471.0900000003,"d":"$1,204,471.09"},{"v":18762.3,"d":"$18,762.30"},{"v":26266.249999999996,"d":"$26,266.25"},{"v":68292.25,"d":"$68,292.25"},{"v":7144.419999999998,"d":"$7,144.42"},{"v":59992.11,"d":"$59,992.11"},{"v":78353.65,"d":"$78,353.65"},{"v":285986.93,"d":"$285,986.93"},{"v":196891.80999999997,"d":"$196,891.81"},{"v":586997.0353200001,"d":"$586,997.04"},{"v":1328686.75532,"d":"$1,328,686.76"},{"v":200018.54,"d":"$200,018.54"},{"v":1128668.21532,"d":"$1,128,668.22"},{"v":1308684.89532,"d":"$1,308,684.90"},{"v":60713.1,"d":"$60,713.10"},{"v":60713.1,"d":"$60,713.10"},{"v":62692.87,"d":"$62,692.87"},{"v":62692.87,"d":"$62,692.87"},{"v":0,"d":"$0.00"},{"v":0,"d":"$0.00"},{"v":0,"d":"$0.00"},{"v":0,"d":"$0.00"},{"v":0,"d":"$0.00"},{"v":98328.82,"d":"$98,328.82"},{"v":39830.38,"d":"$39,830.38"},{"v":15281.59,"d":"$15,281.59"},{"v":400252.73000000004,"d":"$400,252.73"},{"v":2913408.8,"d":"$2,913,408.80"},{"v":220299.90000000002,"d":"$220,299.90"},{"v":0,"d":"$0.00"},{"v":88838.88000000002,"d":"$88,838.88"},{"v":2913408.71532,"d":"$2,913,408.72"}]
["21100001026","JOHNSTON CITY C U SCH DIST 1",1013.36,{"v":14246486.84,"d":"$14,246,486.84"},{"v":10440132.879999999,"d":"$10,440,132.88"},{"v":0.7328215718900702,"d":"73%"},1,{"v":333267.63,"d":"$333,267.63"},{"v":7113111.969999999,"d":"$7,113,111.97"},{"v":7446379.599999999,"d":"$7,446,379.60"},{"v":0.9,"d":"0.90"},{"v":3228804.38,"d":"$3,228,804.38"},{"v":790382.44,"d":"$790,382.44"},{"v":333303.49,"d":"$333,303.49"},{"v":133841.02,"d":"$133,841.02"},{"v":112704.68,"d":"$112,704.68"},{"v":233077.51,"d":"$233,077.51"},{"v":73212.11,"d":"$73,212.11"},{"v":125104.82,"d":"$125,104.82"},{"v":148552.02,"d":"$148,552.02"},{"v":89818.84,"d":"$89,818.84"},{"v":220381.56,"d":"$220,381.56"},{"v":189749.02,"d":"$189,749.02"},{"v":150119.89,"d":"$150,119.89"},{"v":5829051.7799999975,"d":"$5,829,051.78"},{"v":90774.9,"d":"$90,774.90"},{"v":126670,"d":"$126,670.00"},{"v":329342,"d":"$329,342.00"},{"v":34454.24,"d":"$34,454.24"},{"v":578628.5599999999,"d":"$578,628.56"},{"v":401782.65,"d":"$401,782.65"},{"v":1379182.96,"d":"$1,379,182.96"},{"v":949518.32,"d":"$949,518.32"},{"v":2802006.41004,"d":"$2,802,006.41"},{"v":6692360.040039999,"d":"$6,692,360.04"},{"v":964597.11,"d":"$964,597.11"},{"v":5727762.93004,"d":"$5,727,762.93"},{"v":6595900.32004,"d":"$6,595,900.32"},{"v":265289.85,"d":"$265,289.85"},{"v":265289.85,"d":"$265,289.85"},{"v":275848.65,"d":"$275,848.65"},{"v":275848.65,"d":"$275,848.65"},{"v":0,"d":"$0.00"},{"v":0,"d":"$0.00"},{"v":0,"d":"$0.00"},{"v":0,"d":"$0.00"},{"v":0,"d":"$0.00"},{"v":473826.15,"d":"$473,826.15"},{"v":191934.32,"d":"$191,934.32"},{"v":73497.19,"d":"$73,497.19"},{"v":1821534.66,"d":"$1,821,534.66"},{"v":14246486.84,"d":"$14,246,486.84"},{"v":1466521.7999999998,"d":"$1,466,521.80"},{"v":0,"d":"$0.00"},{"v":311480.75000000006,"d":"$311,480.75"},{"v":14246486.760039996,"d":"$14,246,486.76"}]
["21100002026","MARION COMM UNIT SCH DIST 2",3623.44,{"v":50542154.77,"d":"$50,542,154.77"},{"v":38058603.160000004,"d":"$38,058,603.16"},{"v":0.7530071349983324,"d":"75%"},1,{"v":632375.34,"d":"$632,375.34"},{"v":11787043.709999999,"d":"$11,787,043.71"},{"v":12419419.049999999,"d":"$12,419,419.05"},{"v":0.9,"d":"0.90"},{"v":11492282.42,"d":"$11,492,282.42"},{"v":2779373.72,"d":"$2,779,373.72"},{"v":1189262.79,"d":"$1,189,262.79"},{"v":482579.5,"d":"$482,579.50"},{"v":399972.82,"d":"$399,972.82"},{"v":820109.53,"d":"$820,109.53"},{"v":264774.62,"d":"$264,774.62"},{"v":446688.37,"d":"$446,688.37"},{"v":536961.2,"d":"$536,961.20"},{"v":322385.5,"d":"$322,385.50"},{"v":796598.71,"d":"$796,598.71"},{"v":685873.3,"d":"$685,873.30"},{"v":536004.99,"d":"$536,004.99"},{"v":20752867.470000003,"d":"$20,752,867.47"},{"v":324115.2,"d":"$324,115.20"},{"v":452930,"d":"$452,930.00"},{"v":1177618,"d":"$1,177,618.00"},{"v":123196.96000000002,"d":"$123,196.96"},{"v":2068984.24,"d":"$2,068,984.24"},{"v":1374554.3800000001,"d":"$1,374,554.38"},{"v":4931501.84,"d":"$4,931,501.84"},{"v":3395163.2800000003,"d":"$3,395,163.28"},{"v":9935799.530159999,"d":"$9,935,799.53"},{"v":23783863.43016,"d":"$23,783,863.43"},{"v":3449080.06,"d":"$3,449,080.06"},{"v":20334783.37016,"d":"$20,334,783.37"},{"v":23438955.42016,"d":"$23,438,955.42"},{"v":888259.05,"d":"$888,259.05"},{"v":888259.05,"d":"$888,259.05"},{"v":925214.85,"d":"$925,214.85"},{"v":925214.85,"d":"$925,214.85"},{"v":14518.35,"d":"$14,518.35"},{"v":14518.35,"d":"$14,518.35"},{"v":15178.27,"d":"$15,178.27"},{"v":15178.27,"d":"$15,178.27"},{"v":18477.9,"d":"$18,477.90"},{"v":1695347.32,"d":"$1,695,347.32"},{"v":686739.94,"d":"$686,739.94"},{"v":263425.59,"d":"$263,425.59"},{"v":6350331.790000001,"d":"$6,350,331.79"},{"v":50542154.77,"d":"$50,542,154.77"},{"v":2519795.53,"d":"$2,519,795.53"},{"v":4152.52,"d":"$4,152.52"},{"v":743602.7000000002,"d":"$743,602.70"},{"v":50542154.68016,"d":"$50,542,154.68"}]
["21100003026","CRAB ORCHARD C U SCH DIST 3",466.52,{"v":6250448.83,"d":"$6,250,448.83"},{"v":4893218.0600000005,"d":"$4,893,218.06"},{"v":0.7828586703268796,"d":"78%"},2,{"v":53165.91,"d":"$53,165.91"},{"v":2736954.83,"d":"$2,736,954.83"},{"v":2790120.74,"d":"$2,790,120.74"},{"v":0.9,"d":"0.90"},{"v":1431746.72,"d":"$1,431,746.72"},{"v":350625.59,"d":"$350,625.59"},{"v":152765.35,"d":"$152,765.35"},{"v":60722.72,"d":"$60,722.72"},{"v":48417.92,"d":"$48,417.92"},{"v":107225.69,"d":"$107,225.69"},{"v":33578.48,"d":"$33,578.48"},{"v":57206.05,"d":"$57,206.05"},{"v":67391.89,"d":"$67,391.89"},{"v":41166.97,"d":"$41,166.97"},{"v":99977.97,"d":"$99,977.97"},{"v":86081.26,"d":"$86,081.26"},{"v":68644.56,"d":"$68,644.56"},{"v":2605551.1700000004,"d":"$2,605,551.17"},{"v":41904.899999999994,"d":"$41,904.90"},{"v":58315,"d":"$58,315.00"},{"v":151619,"d":"$151,619.00"},{"v":15861.68,"d":"$15,861.68"},{"v":266382.92,"d":"$266,382.92"},{"v":185632.51,"d":"$185,632.51"},{"v":634933.72,"d":"$634,933.72"},{"v":437129.24,"d":"$437,129.24"},{"v":1213580.75028,"d":"$1,213,580.75"},{"v":3005359.72028,"d":"$3,005,359.72"},{"v":444071.05,"d":"$444,071.05"},{"v":2561288.67028,"d":"$2,561,288.67"},{"v":2960952.61028,"d":"$2,960,952.61"},{"v":84470.4,"d":"$84,470.40"},{"v":84470.4,"d":"$84,470.40"},{"v":87770.02,"d":"$87,770.02"},{"v":87770.02,"d":"$87,770.02"},{"v":0,"d":"$0.00"},{"v":0,"d":"$0.00"},{"v":0,"d":"$0.00"},{"v":0,"d":"$0.00"},{"v":0,"d":"$0.00"},{"v":217775.25,"d":"$217,775.25"},{"v":88214.94,"d":"$88,214.94"},{"v":33473.97,"d":"$33,473.97"},{"v":683945,"d":"$683,945.00"},{"v":6250448.83,"d":"$6,250,448.83"},{"v":260540.22,"d":"$260,540.22"},{"v":0,"d":"$0.00"},{"v":130555.62999999999,"d":"$130,555.63"},{"v":6250448.7802800005,"d":"$6,250,448.78"}]
["21100004026","HERRIN C U SCH DIST 4",2249.64,{"v":31771188.79,"d":"$31,771,188.79"},{"v":22268529.36,"d":"$22,268,529.36"},{"v":0.7009032462458261,"d":"70%"},1,{"v":1102030.59,"d":"$1,102,030.59"},{"v":16184427.510000002,"d":"$16,184,427.51"},{"v":17286458.1,"d":"$17,286,458.10"},{"v":0.9,"d":"0.90"},{"v":7218506.94,"d":"$7,218,506.94"},{"v":1732559.64,"d":"$1,732,559.64"},{"v":736081.76,"d":"$736,081.76"},{"v":299689.49,"d":"$299,689.49"},{"v":253499.06,"d":"$253,499.06"},{"v":502585.32,"d":"$502,585.32"},{"v":164039.16,"d":"$164,039.16"},{"v":276674.13,"d":"$276,674.13"},{"v":334060.88,"d":"$334,060.88"},{"v":199953.86,"d":"$199,953.86"},{"v":495589.75,"d":"$495,589.75"},{"v":426703.9,"d":"$426,703.90"},{"v":331995.91,"d":"$331,995.91"},{"v":12971939.800000003,"d":"$12,971,939.80"},{"v":200907.9,"d":"$200,907.90"},{"v":281205,"d":"$281,205.00"},{"v":731133,"d":"$731,133.00"},{"v":76487.76,"d":"$76,487.76"},{"v":1284544.44,"d":"$1,284,544.44"},{"v":830008.17,"d":"$830,008.17"},{"v":3061760.04,"d":"$3,061,760.04"},{"v":2107912.6799999997,"d":"$2,107,912.68"},{"v":6271279.5159599995,"d":"$6,271,279.52"},{"v":14845238.505959999,"d":"$14,845,238.51"},{"v":2141387.32,"d":"$2,141,387.32"},{"v":12703851.185959999,"d":"$12,703,851.19"},{"v":14631099.765959999,"d":"$14,631,099.77"},{"v":606471.07,"d":"$606,471.07"},{"v":606471.07,"d":"$606,471.07"},{"v":631548.22,"d":"$631,548.22"},{"v":631548.22,"d":"$631,548.22"},{"v":9238.95,"d":"$9,238.95"},{"v":9238.95,"d":"$9,238.95"},{"v":9898.87,"d":"$9,898.87"},{"v":9898.87,"d":"$9,898.87"},{"v":11878.65,"d":"$11,878.65"},{"v":1052580.37,"d":"$1,052,580.37"},{"v":426372.21,"d":"$426,372.21"},{"v":163003.68,"d":"$163,003.68"},{"v":4168149.130000001,"d":"$4,168,149.13"},{"v":31771188.79,"d":"$31,771,188.79"},{"v":3177453.7500000005,"d":"$3,177,453.75"},{"v":9555.960000000001,"d":"$9,555.96"},{"v":762853.34,"d":"$762,853.34"},{"v":31771188.69596,"d":"$31,771,188.70"}]
["21100005026","CARTERVILLE C U SCH DIST 5",2233.5,{"v":29663003.35,"d":"$29,663,003.35"},{"v":19471708.16,"d":"$19,471,708.16"},{"v":0.6564307710264274,"d":"66%"},1,{"v":1459490.92,"d":"$1,459,490.92"},{"v":11850656.919999998,"d":"$11,850,656.92"},{"v":13310147.839999998,"d":"$13,310,147.84"},{"v":0.9,"d":"0.90"},{"v":6807023.55,"d":"$6,807,023.55"},{"v":1622935.93,"d":"$1,622,935.93"},{"v":729364.52,"d":"$729,364.52"},{"v":298496.41,"d":"$298,496.41"},{"v":230385.8,"d":"$230,385.80"},{"v":499232.41,"d":"$499,232.41"},{"v":162938.23,"d":"$162,938.23"},{"v":274268.26,"d":"$274,268.26"},{"v":333336.24,"d":"$333,336.24"},{"v":198617.27,"d":"$198,617.27"},{"v":494514.72,"d":"$494,514.72"},{"v":425778.3,"d":"$425,778.30"},{"v":329108.99,"d":"$329,108.99"},{"v":12406000.630000003,"d":"$12,406,000.63"},{"v":199710,"d":"$199,710.00"},{"v":279187.5,"d":"$279,187.50"},{"v":725887.5,"d":"$725,887.50"},{"v":75939,"d":"$75,939.00"},{"v":1275328.5,"d":"$1,275,328.50"},{"v":806078,"d":"$806,078.00"},{"v":3039793.5,"d":"$3,039,793.50"},{"v":2092789.5,"d":"$2,092,789.50"},{"v":5765982.006,"d":"$5,765,982.01"},{"v":14260695.506000001,"d":"$14,260,695.51"},{"v":2126023.98,"d":"$2,126,023.98"},{"v":12134671.526,"d":"$12,134,671.53"},{"v":14048093.106,"d":"$14,048,093.11"},{"v":373517.55,"d":"$373,517.55"},{"v":373517.55,"d":"$373,517.55"},{"v":388695.82,"d":"$388,695.82"},{"v":388695.82,"d":"$388,695.82"},{"v":9898.87,"d":"$9,898.87"},{"v":9898.87,"d":"$9,898.87"},{"v":10558.8,"d":"$10,558.80"},{"v":10558.8,"d":"$10,558.80"},{"v":12538.57,"d":"$12,538.57"},{"v":1045321.2,"d":"$1,045,321.20"},{"v":423431.71,"d":"$423,431.71"},{"v":162275.98,"d":"$162,275.98"},{"v":3208909.5400000005,"d":"$3,208,909.54"},{"v":29663003.35,"d":"$29,663,003.35"},{"v":1171554.82,"d":"$1,171,554.82"},{"v":7190.91,"d":"$7,190.91"},{"v":679007.89,"d":"$679,007.89"},{"v":29663003.276,"d":"$29,663,003.28"}]
[null,"ALT SCH-GRUNDY/KENDALL ROE",64.65,{"v":977448.13,"d":"$977,448.13"},{"v":695327.4199999999,"d":"$695,327.42"},{"v":0.711370147078802,"d":"71%"},1,{"v":31448.89,"d":"$31,448.89"},{"v":597582.61,"d":"$597,582.61"},{"v":629031.5,"d":"$629,031.50"},{"v":1.05749,"d":"1.06"},{"v":229924.29,"d":"$229,924.29"},{"v":75945.67,"d":"$75,945.67"},{"v":26292.95,"d":"$26,292.95"},{"v":8481.59,"d":"$8,481.59"},{"v":7392.45,"d":"$7,392.45"},{"v":22646.14,"d":"$22,646.14"},{"v":5174.34,"d":"$5,174.34"},{"v":9736.96,"d":"$9,736.96"},{"v":8514.48,"d":"$8,514.48"},{"v":6281.91,"d":"$6,281.91"},{"v":12631.5,"d":"$12,631.50"},{"v":10875.75,"d":"$10,875.75"},{"v":11683.9,"d":"$11,683.90"},{"v":435581.9300000001,"d":"$435,581.93"},{"v":5818.499999999999,"d":"$5,818.50"},{"v":8081.249999999999,"d":"$8,081.25"},{"v":21011.25,"d":"$21,011.25"},{"v":2198.1,"d":"$2,198.10"},{"v":36915.15,"d":"$36,915.15"},{"v":54521.74999999999,"d":"$54,521.75"},{"v":87988.65,"d":"$87,988.65"},{"v":60577.049999999996,"d":"$60,577.05"},{"v":166737.8076,"d":"$166,737.81"},{"v":443849.5076,"d":"$443,849.51"},{"v":61539.04,"d":"$61,539.04"},{"v":382310.46760000003,"d":"$382,310.47"},{"v":447387.3776,"d":"$447,387.38"},{"v":8529.44,"d":"$8,529.44"},{"v":8529.44,"d":"$8,529.44"},{"v":9304.85,"d":"$9,304.85"},{"v":9304.85,"d":"$9,304.85"},{"v":775.4,"d":"$775.40"},{"v":775.4,"d":"$775.40"},{"v":775.4,"d":"$775.40"},{"v":775.4,"d":"$775.40"},{"v":1550.8,"d":"$1,550.80"},{"v":34893.2,"d":"$34,893.20"},{"v":14134.3,"d":"$14,134.30"},{"v":5130.2,"d":"$5,130.20"},{"v":94478.68000000001,"d":"$94,478.68"},{"v":977448.13,"d":"$977,448.13"},{"v":19725.66,"d":"$19,725.66"},{"v":1354.42,"d":"$1,354.42"},{"v":19570.37,"d":"$19,570.37"},{"v":977447.9876000002,"d":"$977,447.99"}]
[null,"SAFE SCH-GRUNDY/KENDALL ROE",126.98,{"v":1945084.94,"d":"$1,945,084.94"},{"v":1300817.99,"d":"$1,300,817.99"},{"v":0.6687718172348813,"d":"67%"},1,{"v":92120.55,"d":"$92,120.55"},{"v":1106309.5,"d":"$1,106,309.50"},{"v":1198430.05,"d":"$1,198,430.05"},{"v":1.05749,"d":"1.06"},{"v":452288.13,"d":"$452,288.13"},{"v":148683.36,"d":"$148,683.36"},{"v":52364.43,"d":"$52,364.43"},{"v":17700.61,"d":"$17,700.61"},{"v":14770.52,"d":"$14,770.52"},{"v":44275.35,"d":"$44,275.35"},{"v":10348.68,"d":"$10,348.68"},{"v":19473.93,"d":"$19,473.93"},{"v":17880.42,"d":"$17,880.42"},{"v":12877.92,"d":"$12,877.92"},{"v":26526.16,"d":"$26,526.16"},{"v":22839.08,"d":"$22,839.08"},{"v":23367.8,"d":"$23,367.80"},{"v":863396.3900000002,"d":"$863,396.39"},{"v":11428.2,"d":"$11,428.20"},{"v":15872.500000000002,"d":"$15,872.50"},{"v":41268.5,"d":"$41,268.50"},{"v":4317.32,"d":"$4,317.32"},{"v":72505.57999999999,"d":"$72,505.58"},{"v":106031.92,"d":"$106,031.92"},{"v":172819.78000000003,"d":"$172,819.78"},{"v":118980.26000000001,"d":"$118,980.26"},{"v":333253.30272,"d":"$333,253.30"},{"v":876477.3627200001,"d":"$876,477.36"},{"v":120869.72,"d":"$120,869.72"},{"v":755607.64272,"d":"$755,607.64"},{"v":883426.16272,"d":"$883,426.16"},{"v":17058.89,"d":"$17,058.89"},{"v":17058.89,"d":"$17,058.89"},{"v":17834.3,"d":"$17,834.30"},{"v":17834.3,"d":"$17,834.30"},{"v":3877.02,"d":"$3,877.02"},{"v":3877.02,"d":"$3,877.02"},{"v":3877.02,"d":"$3,877.02"},{"v":3877.02,"d":"$3,877.02"},{"v":4652.42,"d":"$4,652.42"},{"v":69786.4,"d":"$69,786.40"},{"v":28268.61,"d":"$28,268.61"},{"v":10260.4,"d":"$10,260.40"},{"v":198262.29,"d":"$198,262.29"},{"v":1945084.94,"d":"$1,945,084.94"},{"v":28959.57,"d":"$28,959.57"},{"v":4221.41,"d":"$4,221.41"},{"v":29313.280000000002,"d":"$29,313.28"},{"v":1945084.8427200003,"d":"$1,945,084.84"}]
["24032001026","COAL CITY C U SCHOOL DISTRICT 1",2020.55,{"v":28081943.89,"d":"$28,081,943.89"},{"v":31914601.89,"d":"$31,914,601.89"},{"v":1.1364812213503785,"d":"114%"},4,{"v":1788.77,"d":"$1,788.77"},{"v":1351469.92,"d":"$1,351,469.92"},{"v":1353258.69,"d":"$1,353,258.69"},{"v":1.05749,"d":"1.06"},{"v":6953245.95,"d":"$6,953,245.95"},{"v":1691161.89,"d":"$1,691,161.89"},{"v":778828.74,"d":"$778,828.74"},{"v":315333.83,"d":"$315,333.83"},{"v":231865.58,"d":"$231,865.58"},{"v":540497.26,"d":"$540,497.26"},{"v":173340.41,"d":"$173,340.41"},{"v":292737.17,"d":"$292,737.17"},{"v":350796.84,"d":"$350,796.84"},{"v":211072.29,"d":"$211,072.29"},{"v":520418.06,"d":"$520,418.06"},{"v":448081.14,"d":"$448,081.14"},{"v":351270.81,"d":"$351,270.81"},{"v":12858649.97,"d":"$12,858,649.97"},{"v":178272,"d":"$178,272.00"},{"v":252568.75,"d":"$252,568.75"},{"v":656678.75,"d":"$656,678.75"},{"v":68698.70000000001,"d":"$68,698.70"},{"v":576867.01,"d":"$576,867.01"},{"v":768781.02,"d":"$768,781.02"},{"v":2749968.55,"d":"$2,749,968.55"},{"v":1893255.35,"d":"$1,893,255.35"},{"v":5000768.179199999,"d":"$5,000,768.18"},{"v":12145858.309199998,"d":"$12,145,858.31"},{"v":1923321.13,"d":"$1,923,321.13"},{"v":10222537.179199997,"d":"$10,222,537.18"},{"v":12256430.039199997,"d":"$12,256,430.04"},{"v":286124.27,"d":"$286,124.27"},{"v":286124.27,"d":"$286,124.27"},{"v":297755.34,"d":"$297,755.34"},{"v":297755.34,"d":"$297,755.34"},{"v":12406.47,"d":"$12,406.47"},{"v":12406.47,"d":"$12,406.47"},{"v":12406.47,"d":"$12,406.47"},{"v":12406.47,"d":"$12,406.47"},{"v":15508.09,"d":"$15,508.09"},{"v":1111154.7,"d":"$1,111,154.70"},{"v":450099.1,"d":"$450,099.10"},{"v":172716.77,"d":"$172,716.77"},{"v":2966863.7600000002,"d":"$2,966,863.76"},{"v":28081943.89,"d":"$28,081,943.89"},{"v":293741.04,"d":"$293,741.04"},{"v":10.61,"d":"$10.61"},{"v":616882.5499999999,"d":"$616,882.55"},{"v":28081943.7692,"d":"$28,081,943.77"}]
["24032002C02","MAZON-VERONA-KINSMAN ESD 2C",315.25,{"v":4303980.27,"d":"$4,303,980.27"},{"v":4571680.1899999995,"d":"$4,571,680.19"},{"v":1.0621982219263286,"d":"106%"},4,{"v":274.15,"d":"$274.15"},{"v":324043.01,"d":"$324,043.01"},{"v":324317.16000000003,"d":"$324,317.16"},{"v":1.05749,"d":"1.06"},{"v":1094330.54,"d":"$1,094,330.54"},{"v":218866.1,"d":"$218,866.10"},{"v":115037.44,"d":"$115,037.44"},{"v":51619.36,"d":"$51,619.36"},{"v":37166.71,"d":"$37,166.71"},{"v":69937.65,"d":"$69,937.65"},{"v":26518.49,"d":"$26,518.49"},{"v":43973.39,"d":"$43,973.39"},{"v":59601.4,"d":"$59,601.40"},{"v":32665.95,"d":"$32,665.95"},{"v":88420.54,"d":"$88,420.54"},{"v":76130.29,"d":"$76,130.29"},{"v":52766,"d":"$52,766.00"},{"v":1967033.8599999999,"d":"$1,967,033.86"},{"v":27945,"d":"$27,945.00"},{"v":39406.25,"d":"$39,406.25"},{"v":102456.25,"d":"$102,456.25"},{"v":10718.5,"d":"$10,718.50"},{"v":90003.87,"d":"$90,003.87"},{"v":51646.5,"d":"$51,646.50"},{"v":429055.25,"d":"$429,055.25"},{"v":295389.25,"d":"$295,389.25"},{"v":777966.5850000001,"d":"$777,966.59"},{"v":1824587.455,"d":"$1,824,587.46"},{"v":300080.17,"d":"$300,080.17"},{"v":1524507.2850000001,"d":"$1,524,507.29"},{"v":1841839.0550000002,"d":"$1,841,839.06"},{"v":53502.91,"d":"$53,502.91"},{"v":53502.91,"d":"$53,502.91"},{"v":55053.72,"d":"$55,053.72"},{"v":55053.72,"d":"$55,053.72"},{"v":1550.8,"d":"$1,550.80"},{"v":1550.8,"d":"$1,550.80"},{"v":1550.8,"d":"$1,550.80"},{"v":1550.8,"d":"$1,550.80"},{"v":2326.21,"d":"$2,326.21"},{"v":172915.21,"d":"$172,915.21"},{"v":70043.33,"d":"$70,043.33"},{"v":26506.03,"d":"$26,506.03"},{"v":495107.24,"d":"$495,107.24"},{"v":4303980.27,"d":"$4,303,980.27"},{"v":72606.34,"d":"$72,606.34"},{"v":27.439999999999998,"d":"$27.44"},{"v":90603.73000000003,"d":"$90,603.73"},{"v":4303980.155,"d":"$4,303,980.16"}]
["24032024C04","NETTLE CREEK C C SCH DIST 24C",83.39,{"v":1046835.3,"d":"$1,046,835.30"},{"v":1203401.66,"d":"$1,203,401.66"},{"v":1.149561597703096,"d":"115%"},4,{"v":66.68,"d":"$66.68"},{"v":42254.17,"d":"$42,254.17"},{"v":42320.85,"d":"$42,320.85"},{"v":1.05749,"d":"1.06"},{"v":269158.11,"d":"$269,158.11"},{"v":53831.62,"d":"$53,831.62"},{"v":29496.78,"d":"$29,496.78"},{"v":13273.55,"d":"$13,273.55"},{"v":8741.68,"d":"$8,741.68"},{"v":18279.15,"d":"$18,279.15"},{"v":6467.92,"d":"$6,467.92"},{"v":11307.44,"d":"$11,307.44"},{"v":15326.07,"d":"$15,326.07"},{"v":8480.58,"d":"$8,480.58"},{"v":22736.71,"d":"$22,736.71"},{"v":19576.36,"d":"$19,576.36"},{"v":13568.4,"d":"$13,568.40"},{"v":490244.37000000005,"d":"$490,244.37"},{"v":7392.6,"d":"$7,392.60"},{"v":10423.75,"d":"$10,423.75"},{"v":27101.750000000004,"d":"$27,101.75"},{"v":2835.26,"d":"$2,835.26"},{"v":23807.84,"d":"$23,807.84"},{"v":14234.26,"d":"$14,234.26"},{"v":113493.79000000001,"d":"$113,493.79"},{"v":78136.43,"d":"$78,136.43"},{"v":185646.71795999998,"d":"$185,646.72"},{"v":463072.39796,"d":"$463,072.40"},{"v":79377.27,"d":"$79,377.27"},{"v":383695.12796,"d":"$383,695.13"},{"v":467635.78796,"d":"$467,635.79"},{"v":2326.21,"d":"$2,326.21"},{"v":2326.21,"d":"$2,326.21"},{"v":2326.21,"d":"$2,326.21"},{"v":2326.21,"d":"$2,326.21"},{"v":1550.8,"d":"$1,550.80"},{"v":1550.8,"d":"$1,550.80"},{"v":1550.8,"d":"$1,550.80"},{"v":1550.8,"d":"$1,550.80"},{"v":2326.21,"d":"$2,326.21"},{"v":45748.86,"d":"$45,748.86"},{"v":18531.64,"d":"$18,531.64"},{"v":6840.26,"d":"$6,840.26"},{"v":88955.01,"d":"$88,955.01"},{"v":1046835.3,"d":"$1,046,835.30"},{"v":4397.76,"d":"$4,397.76"},{"v":780.1,"d":"$780.10"},{"v":10877.849999999999,"d":"$10,877.85"},{"v":1046835.16796,"d":"$1,046,835.17"}]
["24032054002","MORRIS SCHOOL DISTRICT 54",1065.31,{"v":15933636.87,"d":"$15,933,636.87"},{"v":12049786.370000001,"d":"$12,049,786.37"},{"v":0.7562483360398059,"d":"76%"},1,{"v":197115.19,"d":"$197,115.19"},{"v":4514853.36,"d":"$4,514,853.36"},{"v":4711968.550000001,"d":"$4,711,968.55"},{"v":1.05749,"d":"1.06"},{"v":3828682.05,"d":"$3,828,682.05"},{"v":765736.4,"d":"$765,736.40"},{"v":392307.17,"d":"$392,307.17"},{"v":174031,"d":"$174,031.00"},{"v":138591.42,"d":"$138,591.42"},{"v":237629.06,"d":"$237,629.06"},{"v":91197.75,"d":"$91,197.75"},{"v":148253.16,"d":"$148,253.16"},{"v":200941.88,"d":"$200,941.88"},{"v":111189.87,"d":"$111,189.87"},{"v":298103.55,"d":"$298,103.55"},{"v":256667.83,"d":"$256,667.83"},{"v":177896.8,"d":"$177,896.80"},{"v":6821227.9399999995,"d":"$6,821,227.94"},{"v":94250.7,"d":"$94,250.70"},{"v":133163.75,"d":"$133,163.75"},{"v":346225.75,"d":"$346,225.75"},{"v":36220.53999999999,"d":"$36,220.54"},{"v":608292.01,"d":"$608,292.01"},{"v":175129.58999999997,"d":"$175,129.59"},{"v":1449886.91,"d":"$1,449,886.91"},{"v":998195.47,"d":"$998,195.47"},{"v":2865817.3568399996,"d":"$2,865,817.36"},{"v":6707182.076839999,"d":"$6,707,182.08"},{"v":1014047.28,"d":"$1,014,047.28"},{"v":5693134.796839999,"d":"$5,693,134.80"},{"v":6765479.646839999,"d":"$6,765,479.65"},{"v":264412.94,"d":"$264,412.94"},{"v":264412.94,"d":"$264,412.94"},{"v":275268.61,"d":"$275,268.61"},{"v":275268.61,"d":"$275,268.61"},{"v":66684.79,"d":"$66,684.79"},{"v":66684.79,"d":"$66,684.79"},{"v":69011,"d":"$69,011.00"},{"v":69011,"d":"$69,011.00"},{"v":82968.28,"d":"$82,968.28"},{"v":585430.42,"d":"$585,430.42"},{"v":237142.23,"d":"$237,142.23"},{"v":90633.55,"d":"$90,633.55"},{"v":2346929.16,"d":"$2,346,929.16"},{"v":15933636.87,"d":"$15,933,636.87"},{"v":769966.11,"d":"$769,966.11"},{"v":73939.34000000001,"d":"$73,939.34"},{"v":506865.3499999999,"d":"$506,865.35"},{"v":15933636.746839998,"d":"$15,933,636.75"}]
["24032060C04","SARATOGA COMM CONS S DIST 60C",729.25,{"v":10506353.09,"d":"$10,506,353.09"},{"v":8985701.67,"d":"$8,985,701.67"},{"v":0.8552636288754312,"d":"86%"},2,{"v":15131.69,"d":"$15,131.69"},{"v":1136250.84,"d":"$1,136,250.84"},{"v":1151382.53,"d":"$1,151,382.53"},{"v":1.05749,"d":"1.06"},{"v":2578755.99,"d":"$2,578,755.99"},{"v":515751.19,"d":"$515,751.19"},{"v":268420.69,"d":"$268,420.69"},{"v":118724.53,"d":"$118,724.53"},{"v":90217.41,"d":"$90,217.41"},{"v":162128.19,"d":"$162,128.19"},{"v":62092.09,"d":"$62,092.09"},{"v":101452.9,"d":"$101,452.90"},{"v":137083.23,"d":"$137,083.23"},{"v":76011.15,"d":"$76,011.15"},{"v":203367.25,"d":"$203,367.25"},{"v":175099.67,"d":"$175,099.67"},{"v":121738.7,"d":"$121,738.70"},{"v":4610842.989999999,"d":"$4,610,842.99"},{"v":64732.5,"d":"$64,732.50"},{"v":91156.25,"d":"$91,156.25"},{"v":237006.25,"d":"$237,006.25"},{"v":24794.5,"d":"$24,794.50"},{"v":416401.75,"d":"$416,401.75"},{"v":120224.25,"d":"$120,224.25"},{"v":992509.25,"d":"$992,509.25"},{"v":683307.25,"d":"$683,307.25"},{"v":1874082.795,"d":"$1,874,082.80"},{"v":4504214.795,"d":"$4,504,214.80"},{"v":694158.49,"d":"$694,158.49"},{"v":3810056.3049999997,"d":"$3,810,056.31"},{"v":4544121.965,"d":"$4,544,121.97"},{"v":137246.6,"d":"$137,246.60"},{"v":137246.6,"d":"$137,246.60"},{"v":142674.43,"d":"$142,674.43"},{"v":142674.43,"d":"$142,674.43"},{"v":31016.18,"d":"$31,016.18"},{"v":31016.18,"d":"$31,016.18"},{"v":32566.99,"d":"$32,566.99"},{"v":32566.99,"d":"$32,566.99"},{"v":39545.63,"d":"$39,545.63"},{"v":400884.14,"d":"$400,884.14"},{"v":162387.46,"d":"$162,387.46"},{"v":61562.41,"d":"$61,562.41"},{"v":1351388.04,"d":"$1,351,388.04"},{"v":10506353.09,"d":"$10,506,353.09"},{"v":197986.37999999998,"d":"$197,986.38"},{"v":13263.69,"d":"$13,263.69"},{"v":225725.56000000006,"d":"$225,725.56"},{"v":10506352.994999997,"d":"$10,506,353.00"}]
["24032072C04","GARDNER COMM CONS SCH DIST 72C",147.55,{"v":2024028.65,"d":"$2,024,028.65"},{"v":1825772.3199999998,"d":"$1,825,772.32"},{"v":0.9020486543014101,"d":"90%"},3,{"v":2300.12,"d":"$2,300.12"},{"v":1049753.85,"d":"$1,049,753.85"},{"v":1052053.9700000002,"d":"$1,052,053.97"},{"v":1.05749,"d":"1.06"},{"v":502920.1,"d":"$502,920.10"},{"v":100584.01,"d":"$100,584.01"},{"v":53831.62,"d":"$53,831.62"},{"v":22860,"d":"$22,860.00"},{"v":17070.39,"d":"$17,070.39"},{"v":32584.58,"d":"$32,584.58"},{"v":12289.05,"d":"$12,289.05"},{"v":20102.12,"d":"$20,102.12"},{"v":26394.9,"d":"$26,394.90"},{"v":15076.59,"d":"$15,076.59"},{"v":39157.67,"d":"$39,157.67"},{"v":33714.84,"d":"$33,714.84"},{"v":24121.6,"d":"$24,121.60"},{"v":900707.47,"d":"$900,707.47"},{"v":12912.3,"d":"$12,912.30"},{"v":18443.75,"d":"$18,443.75"},{"v":47953.75,"d":"$47,953.75"},{"v":5016.7,"d":"$5,016.70"},{"v":84251.05,"d":"$84,251.05"},{"v":24566.509999999995,"d":"$24,566.51"},{"v":200815.55,"d":"$200,815.55"},{"v":138254.35,"d":"$138,254.35"},{"v":356951.6232,"d":"$356,951.62"},{"v":889165.5832,"d":"$889,165.58"},{"v":140449.89,"d":"$140,449.89"},{"v":748715.6932,"d":"$748,715.69"},{"v":897240.0432,"d":"$897,240.04"},{"v":24812.94,"d":"$24,812.94"},{"v":24812.94,"d":"$24,812.94"},{"v":25588.34,"d":"$25,588.34"},{"v":25588.34,"d":"$25,588.34"},{"v":0,"d":"$0.00"},{"v":0,"d":"$0.00"},{"v":0,"d":"$0.00"},{"v":0,"d":"$0.00"},{"v":0,"d":"$0.00"},{"v":80642.07,"d":"$80,642.07"},{"v":32665.95,"d":"$32,665.95"},{"v":11970.46,"d":"$11,970.46"},{"v":226081.04,"d":"$226,081.04"},{"v":2024028.65,"d":"$2,024,028.65"},{"v":98795.21,"d":"$98,795.21"},{"v":3.61,"d":"$3.61"},{"v":68913.14,"d":"$68,913.14"},{"v":2024028.5532,"d":"$2,024,028.55"}]
["24032073017","GARDNER S WILMINGTON THS DIST 73",170.82,{"v":2657394.41,"d":"$2,657,394.41"},{"v":2187305.4400000004,"d":"$2,187,305.44"},{"v":0.8231015432895414,"d":"82%"},2,{"v":13606.86,"d":"$13,606.86"},{"v":1151120.09,"d":"$1,151,120.09"},{"v":1164726.9500000002,"d":"$1,164,726.95"},{"v":1.05749,"d":"1.06"},{"v":620853.01,"d":"$620,853.01"},{"v":206930.29,"d":"$206,930.29"},{"v":72093.58,"d":"$72,093.58"},{"v":23748.47,"d":"$23,748.47"},{"v":20194.4,"d":"$20,194.40"},{"v":61597.52,"d":"$61,597.52"},{"v":14229.43,"d":"$14,229.43"},{"v":26698.13,"d":"$26,698.13"},{"v":23840.56,"d":"$23,840.56"},{"v":17589.35,"d":"$17,589.35"},{"v":35368.21,"d":"$35,368.21"},{"v":30452.11,"d":"$30,452.11"},{"v":32036.5,"d":"$32,036.50"},{"v":1185631.5600000003,"d":"$1,185,631.56"},{"v":15373.8,"d":"$15,373.80"},{"v":21352.5,"d":"$21,352.50"},{"v":55516.5,"d":"$55,516.50"},{"v":5807.88,"d":"$5,807.88"},{"v":97538.22,"d":"$97,538.22"},{"v":146734.38,"d":"$146,734.38"},{"v":232486.02,"d":"$232,486.02"},{"v":160058.34,"d":"$160,058.34"},{"v":456342.0394799999,"d":"$456,342.04"},{"v":1191209.67948,"d":"$1,191,209.68"},{"v":162600.14,"d":"$162,600.14"},{"v":1028609.5394799999,"d":"$1,028,609.54"},{"v":1200557.5594799998,"d":"$1,200,557.56"},{"v":30240.77,"d":"$30,240.77"},{"v":30240.77,"d":"$30,240.77"},{"v":31791.58,"d":"$31,791.58"},{"v":31791.58,"d":"$31,791.58"},{"v":0,"d":"$0.00"},{"v":0,"d":"$0.00"},{"v":0,"d":"$0.00"},{"v":0,"d":"$0.00"},{"v":775.4,"d":"$775.40"},{"v":93823.94,"d":"$93,823.94"},{"v":38005.57,"d":"$38,005.57"},{"v":14535.57,"d":"$14,535.57"},{"v":271205.18,"d":"$271,205.18"},{"v":2657394.41,"d":"$2,657,394.41"},{"v":110922.04,"d":"$110,922.04"},{"v":4.08,"d":"$4.08"},{"v":95909.86,"d":"$95,909.86"},{"v":2657394.29948,"d":"$2,657,394.30"}]
["24032074003","SOUTH WILMINGTON CONS SCH DIST 74",85,{"v":1126020.09,"d":"$1,126,020.09"},{"v":911876.39,"d":"$911,876.39"},{"v":0.8098224872701871,"d":"81%"},2,{"v":4178.78,"d":"$4,178.78"},{"v":246345.27999999997,"d":"$246,345.28"},{"v":250524.05999999997,"d":"$250,524.06"},{"v":1.05749,"d":"1.06"},{"v":285381.34,"d":"$285,381.34"},{"v":57076.26,"d":"$57,076.26"},{"v":30971.61,"d":"$30,971.61"},{"v":13273.55,"d":"$13,273.55"},{"v":9352.48,"d":"$9,352.48"},{"v":19073.9,"d":"$19,073.90"},{"v":6467.92,"d":"$6,467.92"},{"v":11621.54,"d":"$11,621.54"},{"v":15326.07,"d":"$15,326.07"},{"v":8794.67,"d":"$8,794.67"},{"v":22736.71,"d":"$22,736.71"},{"v":19576.36,"d":"$19,576.36"},{"v":13945.3,"d":"$13,945.30"},{"v":513597.70999999996,"d":"$513,597.71"},{"v":7470,"d":"$7,470.00"},{"v":10625,"d":"$10,625.00"},{"v":27625,"d":"$27,625.00"},{"v":2890,"d":"$2,890.00"},{"v":48535,"d":"$48,535.00"},{"v":14467,"d":"$14,467.00"},{"v":115685,"d":"$115,685.00"},{"v":79645,"d":"$79,645.00"},{"v":196826.95500000002,"d":"$196,826.96"},{"v":503768.955,"d":"$503,768.96"},{"v":80909.8,"d":"$80,909.80"},{"v":422859.155,"d":"$422,859.16"},{"v":508420.455,"d":"$508,420.46"},{"v":7754.04,"d":"$7,754.04"},{"v":7754.04,"d":"$7,754.04"},{"v":7754.04,"d":"$7,754.04"},{"v":7754.04,"d":"$7,754.04"},{"v":0,"d":"$0.00"},{"v":0,"d":"$0.00"},{"v":0,"d":"$0.00"},{"v":0,"d":"$0.00"},{"v":775.4,"d":"$775.40"},{"v":46524.27,"d":"$46,524.27"},{"v":18845.74,"d":"$18,845.74"},{"v":6840.26,"d":"$6,840.26"},{"v":104001.83,"d":"$104,001.83"},{"v":1126020.09,"d":"$1,126,020.09"},{"v":14632.030000000002,"d":"$14,632.03"},{"v":3.34,"d":"$3.34"},{"v":18848,"d":"$18,848.00"},{"v":1126019.995,"d":"$1,126,020.00"}]
["24032075002","BRACEVILLE SCHOOL DIST 75",119.25,{"v":1704453.76,"d":"$1,704,453.76"},{"v":1327183.1,"d":"$1,327,183.10"},{"v":0.7786559724565365,"d":"78%"},2,{"v":13204.14,"d":"$13,204.14"},{"v":818101.3400000001,"d":"$818,101.34"},{"v":831305.4800000001,"d":"$831,305.48"},{"v":1.05749,"d":"1.06"},{"v":421803.95,"d":"$421,803.95"},{"v":84360.78,"d":"$84,360.78"},{"v":43507.75,"d":"$43,507.75"},{"v":19172.9,"d":"$19,172.90"},{"v":14605.88,"d":"$14,605.88"},{"v":26226.61,"d":"$26,226.61"},{"v":9701.88,"d":"$9,701.88"},{"v":16332.97,"d":"$16,332.97"},{"v":22137.66,"d":"$22,137.66"},{"v":12249.73,"d":"$12,249.73"},{"v":32841.91,"d":"$32,841.91"},{"v":28276.96,"d":"$28,276.96"},{"v":19598.8,"d":"$19,598.80"},{"v":750817.78,"d":"$750,817.78"},{"v":10575,"d":"$10,575.00"},{"v":14906.25,"d":"$14,906.25"},{"v":38756.25,"d":"$38,756.25"},{"v":4054.5,"d":"$4,054.50"},{"v":68091.75,"d":"$68,091.75"},{"v":19895.5,"d":"$19,895.50"},{"v":162299.25,"d":"$162,299.25"},{"v":111737.25,"d":"$111,737.25"},{"v":303437.33400000003,"d":"$303,437.33"},{"v":733753.084,"d":"$733,753.08"},{"v":113511.69,"d":"$113,511.69"},{"v":620241.3940000001,"d":"$620,241.39"},{"v":740278.8640000001,"d":"$740,278.86"},{"v":26363.75,"d":"$26,363.75"},{"v":26363.75,"d":"$26,363.75"},{"v":27914.56,"d":"$27,914.56"},{"v":27914.56,"d":"$27,914.56"},{"v":775.4,"d":"$775.40"},{"v":775.4,"d":"$775.40"},{"v":775.4,"d":"$775.40"},{"v":775.4,"d":"$775.40"},{"v":775.4,"d":"$775.40"},{"v":65133.98,"d":"$65,133.98"},{"v":26384.03,"d":"$26,384.03"},{"v":9405.36,"d":"$9,405.36"},{"v":213356.99,"d":"$213,356.99"},{"v":1704453.76,"d":"$1,704,453.76"},{"v":179049.49000000002,"d":"$179,049.49"},{"v":78.47999999999999,"d":"$78.48"},{"v":48802.99,"d":"$48,802.99"},{"v":1704453.634,"d":"$1,704,453.63"}]
["24032101016","MORRIS COMM HIGH SCH DIST 101",921.5,{"v":14579916.25,"d":"$14,579,916.25"},{"v":10568770.45,"d":"$10,568,770.45"},{"v":0.7248855390373041,"d":"72%"},1,{"v":336246.91,"d":"$336,246.91"},{"v":2792785.43,"d":"$2,792,785.43"},{"v":3129032.3400000003,"d":"$3,129,032.34"},{"v":1.05749,"d":"1.06"},{"v":3366346.46,"d":"$3,366,346.46"},{"v":1122003.26,"d":"$1,122,003.26"},{"v":390153.53,"d":"$390,153.53"},{"v":129768.45,"d":"$129,768.45"},{"v":111680.45,"d":"$111,680.45"},{"v":333351.3,"d":"$333,351.30"},{"v":78908.69,"d":"$78,908.69"},{"v":144484.01,"d":"$144,484.01"},{"v":130271.64,"d":"$130,271.64"},{"v":96427.37,"d":"$96,427.37"},{"v":193262.05,"d":"$193,262.05"},{"v":166399.06,"d":"$166,399.06"},{"v":173374,"d":"$173,374.00"},{"v":6436430.27,"d":"$6,436,430.27"},{"v":82935,"d":"$82,935.00"},{"v":115187.5,"d":"$115,187.50"},{"v":299487.5,"d":"$299,487.50"},{"v":31331,"d":"$31,331.00"},{"v":526176.5,"d":"$526,176.50"},{"v":791568.5,"d":"$791,568.50"},{"v":1254161.5,"d":"$1,254,161.50"},{"v":863445.5,"d":"$863,445.50"},{"v":2515178.7989999996,"d":"$2,515,178.80"},{"v":6479471.799,"d":"$6,479,471.80"},{"v":877157.42,"d":"$877,157.42"},{"v":5602314.379,"d":"$5,602,314.38"},{"v":6529899.579,"d":"$6,529,899.58"},{"v":175241.42,"d":"$175,241.42"},{"v":175241.42,"d":"$175,241.42"},{"v":182995.47,"d":"$182,995.47"},{"v":182995.47,"d":"$182,995.47"},{"v":20160.51,"d":"$20,160.51"},{"v":20160.51,"d":"$20,160.51"},{"v":20935.92,"d":"$20,935.92"},{"v":20935.92,"d":"$20,935.92"},{"v":24812.94,"d":"$24,812.94"},{"v":506339.16,"d":"$506,339.16"},{"v":205104.47,"d":"$205,104.47"},{"v":78663.08,"d":"$78,663.08"},{"v":1613586.29,"d":"$1,613,586.29"},{"v":14579916.25,"d":"$14,579,916.25"},{"v":302800.99,"d":"$302,800.99"},{"v":9032.060000000001,"d":"$9,032.06"},{"v":327746.22,"d":"$327,746.22"},{"v":14579916.138999999,"d":"$14,579,916.14"}]
["24032111016","MINOOKA COMM H S DISTRICT 111",2899.5,{"v":43369596.69,"d":"$43,369,596.69"},{"v":31421505.869999997,"d":"$31,421,505.87"},{"v":0.7245053739972881,"d":"72%"},1,{"v":978723.17,"d":"$978,723.17"},{"v":6604131.419999999,"d":"$6,604,131.42"},{"v":7582854.589999999,"d":"$7,582,854.59"},{"v":1.05749,"d":"1.06"},{"v":10200818.57,"d":"$10,200,818.57"},{"v":3399932.82,"d":"$3,399,932.82"},{"v":1228983.62,"d":"$1,228,983.62"},{"v":409661.2,"d":"$409,661.20"},{"v":322485.41,"d":"$322,485.41"},{"v":1049875.43,"d":"$1,049,875.43"},{"v":249661.94,"d":"$249,661.94"},{"v":455124.64,"d":"$455,124.64"},{"v":411249.69,"d":"$411,249.69"},{"v":303416.42,"d":"$303,416.42"},{"v":610101.76,"d":"$610,101.76"},{"v":525299.01,"d":"$525,299.01"},{"v":546128.11,"d":"$546,128.11"},{"v":19712738.62000001,"d":"$19,712,738.62"},{"v":260955,"d":"$260,955.00"},{"v":362437.5,"d":"$362,437.50"},{"v":942337.5,"d":"$942,337.50"},{"v":98583,"d":"$98,583.00"},{"v":1655614.5,"d":"$1,655,614.50"},{"v":2490670.5,"d":"$2,490,670.50"},{"v":3946219.5,"d":"$3,946,219.50"},{"v":2716831.5,"d":"$2,716,831.50"},{"v":7366559.976000001,"d":"$7,366,559.98"},{"v":19840208.976,"d":"$19,840,208.98"},{"v":2759976.06,"d":"$2,759,976.06"},{"v":17080232.916,"d":"$17,080,232.92"},{"v":19998879.996,"d":"$19,998,880.00"},{"v":265963.75,"d":"$265,963.75"},{"v":265963.75,"d":"$265,963.75"},{"v":277594.82,"d":"$277,594.82"},{"v":277594.82,"d":"$277,594.82"},{"v":15508.09,"d":"$15,508.09"},{"v":15508.09,"d":"$15,508.09"},{"v":16283.49,"d":"$16,283.49"},{"v":16283.49,"d":"$16,283.49"},{"v":20160.51,"d":"$20,160.51"},{"v":1594231.73,"d":"$1,594,231.73"},{"v":645780.71,"d":"$645,780.71"},{"v":247104.69,"d":"$247,104.69"},{"v":3657977.94,"d":"$3,657,977.94"},{"v":43369596.69,"d":"$43,369,596.69"},{"v":315325.85,"d":"$315,325.85"},{"v":8061.13,"d":"$8,061.13"},{"v":736489.2999999999,"d":"$736,489.30"},{"v":43369596.55600001,"d":"$43,369,596.56"}]
["24032201004","MINOOKA COMM CONS S DIST 201",4442.06,{"v":60725983.13,"d":"$60,725,983.13"},{"v":46093541.38,"d":"$46,093,541.38"},{"v":0.7590415009226711,"d":"76%"},1,{"v":629353.46,"d":"$629,353.46"},{"v":14997035.11,"d":"$14,997,035.11"},{"v":15626388.57,"d":"$15,626,388.57"},{"v":1.05749,"d":"1.06"},{"v":15003537.18,"d":"$15,003,537.18"},{"v":3000707.42,"d":"$3,000,707.42"},{"v":1637071.29,"d":"$1,637,071.29"},{"v":727095.62,"d":"$727,095.62"},{"v":508441.31,"d":"$508,441.31"},{"v":1010122.2,"d":"$1,010,122.20"},{"v":382254.43,"d":"$382,254.43"},{"v":619710.77,"d":"$619,710.77"},{"v":839528.36,"d":"$839,528.36"},{"v":464861.6,"d":"$464,861.60"},{"v":1245466.54,"d":"$1,245,466.54"},{"v":1072349.53,"d":"$1,072,349.53"},{"v":743623.72,"d":"$743,623.72"},{"v":27254769.97,"d":"$27,254,769.97"},{"v":394461,"d":"$394,461.00"},{"v":555257.5,"d":"$555,257.50"},{"v":1443669.5,"d":"$1,443,669.50"},{"v":151030.03999999998,"d":"$151,030.04"},{"v":2536416.26,"d":"$2,536,416.26"},{"v":746386.5,"d":"$746,386.50"},{"v":6045643.66,"d":"$6,045,643.66"},{"v":4162210.2199999997,"d":"$4,162,210.22"},{"v":10698592.668839999,"d":"$10,698,592.67"},{"v":26733667.34884,"d":"$26,733,667.35"},{"v":4228308.07,"d":"$4,228,308.07"},{"v":22505359.278839998,"d":"$22,505,359.28"},{"v":26976752.778839998,"d":"$26,976,752.78"},{"v":497034.31,"d":"$497,034.31"},{"v":497034.31,"d":"$497,034.31"},{"v":517194.82,"d":"$517,194.82"},{"v":517194.82,"d":"$517,194.82"},{"v":122513.91,"d":"$122,513.91"},{"v":122513.91,"d":"$122,513.91"},{"v":127941.74,"d":"$127,941.74"},{"v":127941.74,"d":"$127,941.74"},{"v":153530.09,"d":"$153,530.09"},{"v":2442524.3,"d":"$2,442,524.30"},{"v":989401.39,"d":"$989,401.39"},{"v":379634.89,"d":"$379,634.89"},{"v":6494460.2299999995,"d":"$6,494,460.23"},{"v":60725983.13,"d":"$60,725,983.13"},{"v":742554.6799999999,"d":"$742,554.68"},{"v":75781.60999999999,"d":"$75,781.61"},{"v":1572065.73,"d":"$1,572,065.73"},{"v":60725982.97883999,"d":"$60,725,982.98"}]
["24047018016","NEWARK COMM H S DIST 18",171,{"v":2549439.15,"d":"$2,549,439.15"},{"v":2710751.15,"d":"$2,710,751.15"},{"v":1.0632735242965106,"d":"106%"},4,{"v":162.39,"d":"$162.39"},{"v":130421.13000000002,"d":"$130,421.13"},{"v":130583.52000000002,"d":"$130,583.52"},{"v":1.05749,"d":"1.06"},{"v":609826.93,"d":"$609,826.93"},{"v":203255.3,"d":"$203,255.30"},{"v":72093.58,"d":"$72,093.58"},{"v":23748.47,"d":"$23,748.47"},{"v":19503.01,"d":"$19,503.01"},{"v":61597.52,"d":"$61,597.52"},{"v":14229.43,"d":"$14,229.43"},{"v":26698.13,"d":"$26,698.13"},{"v":23840.56,"d":"$23,840.56"},{"v":17903.45,"d":"$17,903.45"},{"v":35368.21,"d":"$35,368.21"},{"v":30452.11,"d":"$30,452.11"},{"v":32036.5,"d":"$32,036.50"},{"v":1170553.2,"d":"$1,170,553.20"},{"v":15390,"d":"$15,390.00"},{"v":21375,"d":"$21,375.00"},{"v":55575,"d":"$55,575.00"},{"v":5814,"d":"$5,814.00"},{"v":48820.5,"d":"$48,820.50"},{"v":146889,"d":"$146,889.00"},{"v":232731,"d":"$232,731.00"},{"v":160227,"d":"$160,227.00"},{"v":443293.01699999993,"d":"$443,293.02"},{"v":1130114.517,"d":"$1,130,114.52"},{"v":162771.48,"d":"$162,771.48"},{"v":967343.037,"d":"$967,343.04"},{"v":1139472.247,"d":"$1,139,472.25"},{"v":21711.32,"d":"$21,711.32"},{"v":21711.32,"d":"$21,711.32"},{"v":22486.73,"d":"$22,486.73"},{"v":22486.73,"d":"$22,486.73"},{"v":775.4,"d":"$775.40"},{"v":775.4,"d":"$775.40"},{"v":775.4,"d":"$775.40"},{"v":775.4,"d":"$775.40"},{"v":1550.8,"d":"$1,550.80"},{"v":93823.94,"d":"$93,823.94"},{"v":38005.57,"d":"$38,005.57"},{"v":14535.57,"d":"$14,535.57"},{"v":239413.58,"d":"$239,413.58"},{"v":2549439.15,"d":"$2,549,439.15"},{"v":15411.809999999998,"d":"$15,411.81"},{"v":1.5499999999999998,"d":"$1.55"},{"v":42260.990000000005,"d":"$42,260.99"},{"v":2549439.027,"d":"$2,549,439.03"}]
["24047066004","NEWARK COMM CONS SCH DIST 66",233,{"v":3155214.54,"d":"$3,155,214.54"},{"v":3035242.1500000004,"d":"$3,035,242.15"},{"v":0.9619764714953425,"d":"96%"},3,{"v":3585.61,"d":"$3,585.61"},{"v":218123.04000000004,"d":"$218,123.04"},{"v":221708.65000000002,"d":"$221,708.65"},{"v":1.05749,"d":"1.06"},{"v":796413.06,"d":"$796,413.06"},{"v":159282.61,"d":"$159,282.61"},{"v":85540.66,"d":"$85,540.66"},{"v":37608.39,"d":"$37,608.39"},{"v":27120.1,"d":"$27,120.10"},{"v":54042.73,"d":"$54,042.73"},{"v":19403.77,"d":"$19,403.77"},{"v":32037.75,"d":"$32,037.75"},{"v":43423.88,"d":"$43,423.88"},{"v":24185.36,"d":"$24,185.36"},{"v":64420.68,"d":"$64,420.68"},{"v":55466.35,"d":"$55,466.35"},{"v":38443.8,"d":"$38,443.80"},{"v":1437389.1400000001,"d":"$1,437,389.14"},{"v":20835,"d":"$20,835.00"},{"v":29125,"d":"$29,125.00"},{"v":75725,"d":"$75,725.00"},{"v":7922,"d":"$7,922.00"},{"v":66521.5,"d":"$66,521.50"},{"v":40841.5,"d":"$40,841.50"},{"v":317113,"d":"$317,113.00"},{"v":218321,"d":"$218,321.00"},{"v":568728.717,"d":"$568,728.72"},{"v":1345132.717,"d":"$1,345,132.72"},{"v":221788.04,"d":"$221,788.04"},{"v":1123344.677,"d":"$1,123,344.68"},{"v":1357883.307,"d":"$1,357,883.31"},{"v":32566.99,"d":"$32,566.99"},{"v":32566.99,"d":"$32,566.99"},{"v":33342.39,"d":"$33,342.39"},{"v":33342.39,"d":"$33,342.39"},{"v":5427.83,"d":"$5,427.83"},{"v":5427.83,"d":"$5,427.83"},{"v":5427.83,"d":"$5,427.83"},{"v":5427.83,"d":"$5,427.83"},{"v":6978.64,"d":"$6,978.64"},{"v":127941.74,"d":"$127,941.74"},{"v":51825.78,"d":"$51,825.78"},{"v":19665.77,"d":"$19,665.77"},{"v":359942.01,"d":"$359,942.01"},{"v":3155214.54,"d":"$3,155,214.54"},{"v":26564.210000000003,"d":"$26,564.21"},{"v":154.7,"d":"$154.70"},{"v":66116.37999999999,"d":"$66,116.38"},{"v":3155214.4570000004,"d":"$3,155,214.46"}]
["24047088026","PLANO COMM UNIT SCHOOL DIST 88",2329.75,{"v":37842977.1,"d":"$37,842,977.10"},{"v":29130247.729999997,"d":"$29,130,247.73"},{"v":0.7697662806238359,"d":"77%"},1,{"v":377976.14,"d":"$377,976.14"},{"v":16368570.29,"d":"$16,368,570.29"},{"v":16746546.43,"d":"$16,746,546.43"},{"v":1.05749,"d":"1.06"},{"v":8631274.27,"d":"$8,631,274.27"},{"v":2119024.27,"d":"$2,119,024.27"},{"v":900696.87,"d":"$900,696.87"},{"v":362347.51,"d":"$362,347.51"},{"v":323441.12,"d":"$323,441.12"},{"v":629022.1,"d":"$629,022.10"},{"v":199858.91,"d":"$199,858.91"},{"v":338281.04,"d":"$338,281.04"},{"v":401883.76,"d":"$401,883.76"},{"v":243424.15,"d":"$243,424.15"},{"v":596207.1,"d":"$596,207.10"},{"v":513335.67,"d":"$513,335.67"},{"v":405921.31,"d":"$405,921.31"},{"v":15664718.079999996,"d":"$15,664,718.08"},{"v":208170,"d":"$208,170.00"},{"v":291218.75,"d":"$291,218.75"},{"v":757168.75,"d":"$757,168.75"},{"v":79211.5,"d":"$79,211.50"},{"v":1330287.25,"d":"$1,330,287.25"},{"v":926011,"d":"$926,011.00"},{"v":3170789.75,"d":"$3,170,789.75"},{"v":2182975.75,"d":"$2,182,975.75"},{"v":6804767.399999999,"d":"$6,804,767.40"},{"v":15750600.149999999,"d":"$15,750,600.15"},{"v":2217642.43,"d":"$2,217,642.43"},{"v":13532957.719999999,"d":"$13,532,957.72"},{"v":15878092.409999998,"d":"$15,878,092.41"},{"v":659869.26,"d":"$659,869.26"},{"v":659869.26,"d":"$659,869.26"},{"v":687008.42,"d":"$687,008.42"},{"v":687008.42,"d":"$687,008.42"},{"v":301632.36,"d":"$301,632.36"},{"v":301632.36,"d":"$301,632.36"},{"v":314038.83,"d":"$314,038.83"},{"v":314038.83,"d":"$314,038.83"},{"v":376846.6,"d":"$376,846.60"},{"v":1280968.3,"d":"$1,280,968.30"},{"v":518886.06,"d":"$518,886.06"},{"v":198367.78,"d":"$198,367.78"},{"v":6300166.4799999995,"d":"$6,300,166.48"},{"v":37842977.1,"d":"$37,842,977.10"},{"v":2143266.3400000003,"d":"$2,143,266.34"},{"v":397849.67000000004,"d":"$397,849.67"},{"v":873740.8899999999,"d":"$873,740.89"},{"v":37842976.96999999,"d":"$37,842,976.97"}]
["24047090004","LISBON COMM CONS SCH DIST 90",116.5,{"v":1553142.85,"d":"$1,553,142.85"},{"v":1358629.1300000001,"d":"$1,358,629.13"},{"v":0.8747612172312418,"d":"87%"},2,{"v":2417.33,"d":"$2,417.33"},{"v":108782.2,"d":"$108,782.20"},{"v":111199.53,"d":"$111,199.53"},{"v":1.05749,"d":"1.06"},{"v":400418.78,"d":"$400,418.78"},{"v":80083.74,"d":"$80,083.74"},{"v":42032.91,"d":"$42,032.91"},{"v":18435.48,"d":"$18,435.48"},{"v":12980.97,"d":"$12,980.97"},{"v":25431.87,"d":"$25,431.87"},{"v":9055.09,"d":"$9,055.09"},{"v":16018.87,"d":"$16,018.87"},{"v":21286.21,"d":"$21,286.21"},{"v":11935.63,"d":"$11,935.63"},{"v":31578.76,"d":"$31,578.76"},{"v":27189.38,"d":"$27,189.38"},{"v":19221.9,"d":"$19,221.90"},{"v":715669.59,"d":"$715,669.59"},{"v":10440,"d":"$10,440.00"},{"v":14562.5,"d":"$14,562.50"},{"v":37862.5,"d":"$37,862.50"},{"v":3961,"d":"$3,961.00"},{"v":66521.5,"d":"$66,521.50"},{"v":18902,"d":"$18,902.00"},{"v":158556.5,"d":"$158,556.50"},{"v":109160.5,"d":"$109,160.50"},{"v":272065.959,"d":"$272,065.96"},{"v":692032.459,"d":"$692,032.46"},{"v":110894.02,"d":"$110,894.02"},{"v":581138.439,"d":"$581,138.44"},{"v":698407.7490000001,"d":"$698,407.75"},{"v":10080.25,"d":"$10,080.25"},{"v":10080.25,"d":"$10,080.25"},{"v":10080.25,"d":"$10,080.25"},{"v":10080.25,"d":"$10,080.25"},{"v":0,"d":"$0.00"},{"v":0,"d":"$0.00"},{"v":0,"d":"$0.00"},{"v":0,"d":"$0.00"},{"v":0,"d":"$0.00"},{"v":63583.17,"d":"$63,583.17"},{"v":25755.84,"d":"$25,755.84"},{"v":9405.36,"d":"$9,405.36"},{"v":139065.37,"d":"$139,065.37"},{"v":1553142.85,"d":"$1,553,142.85"},{"v":20745.02,"d":"$20,745.02"},{"v":0,"d":"$0.00"},{"v":24876.039999999997,"d":"$24,876.04"},{"v":1553142.7090000003,"d":"$1,553,142.71"}]
["24047115026","YORKVILLE COMM UNIT SCH DIST 115",6782.75,{"v":97251482.89,"d":"$97,251,482.89"},{"v":61928304.44,"d":"$61,928,304.44"},{"v":0.6367851944226534,"d":"64%"},1,{"v":5245283.29,"d":"$5,245,283.29"},{"v":19740960.25,"d":"$19,740,960.25"},{"v":24986243.54,"d":"$24,986,243.54"},{"v":1.05749,"d":"1.06"},{"v":23330814.18,"d":"$23,330,814.18"},{"v":5651252.06,"d":"$5,651,252.06"},{"v":2615759.49,"d":"$2,615,759.49"},{"v":1063329.26,"d":"$1,063,329.26"},{"v":791511.9,"d":"$791,511.90"},{"v":1814649.77,"d":"$1,814,649.77"},{"v":584053.72,"d":"$584,053.72"},{"v":982805.38,"d":"$982,805.38"},{"v":1183513.62,"d":"$1,183,513.62"},{"v":709856.23,"d":"$709,856.23"},{"v":1755779.41,"d":"$1,755,779.41"},{"v":1511730.07,"d":"$1,511,730.07"},{"v":1179320.13,"d":"$1,179,320.13"},{"v":43174375.21999999,"d":"$43,174,375.22"},{"v":604800,"d":"$604,800.00"},{"v":847843.75,"d":"$847,843.75"},{"v":2204393.75,"d":"$2,204,393.75"},{"v":230613.5,"d":"$230,613.50"},{"v":3872950.25,"d":"$3,872,950.25"},{"v":2570199,"d":"$2,570,199.00"},{"v":9231322.75,"d":"$9,231,322.75"},{"v":6355436.75,"d":"$6,355,436.75"},{"v":17016429.288000003,"d":"$17,016,429.29"},{"v":42933989.038,"d":"$42,933,989.04"},{"v":6456364.07,"d":"$6,456,364.07"},{"v":36477624.968,"d":"$36,477,624.97"},{"v":43305165.408,"d":"$43,305,165.41"},{"v":784709.39,"d":"$784,709.39"},{"v":784709.39,"d":"$784,709.39"},{"v":818051.79,"d":"$818,051.79"},{"v":818051.79,"d":"$818,051.79"},{"v":327220.71,"d":"$327,220.71"},{"v":327220.71,"d":"$327,220.71"},{"v":341177.99,"d":"$341,177.99"},{"v":341177.99,"d":"$341,177.99"},{"v":409413.59,"d":"$409,413.59"},{"v":3729695.84,"d":"$3,729,695.84"},{"v":1510800.21,"d":"$1,510,800.21"},{"v":579712.73,"d":"$579,712.73"},{"v":10771942.130000003,"d":"$10,771,942.13"},{"v":97251482.89,"d":"$97,251,482.89"},{"v":1327461.99,"d":"$1,327,461.99"},{"v":275527.53,"d":"$275,527.53"},{"v":2933205.5699999994,"d":"$2,933,205.57"},{"v":97251482.75799999,"d":"$97,251,482.76"}]
["24047308026","OSWEGO COMM UNIT SCHOOL DIST 308",16805.12,{"v":246080288.94,"d":"$246,080,288.94"},{"v":170824583.37,"d":"$170,824,583.37"},{"v":0.6941823097893507,"d":"69%"},1,{"v":8738907.05,"d":"$8,738,907.05"},{"v":89022359.53,"d":"$89,022,359.53"},{"v":97761266.58,"d":"$97,761,266.58"},{"v":1.05749,"d":"1.06"},{"v":58076001.46,"d":"$58,076,001.46"},{"v":14308734.78,"d":"$14,308,734.78"},{"v":6508788.65,"d":"$6,508,788.65"},{"v":2625038.74,"d":"$2,625,038.74"},{"v":2010628.95,"d":"$2,010,628.95"},{"v":4587886.73,"d":"$4,587,886.73"},{"v":1448168.65,"d":"$1,448,168.65"},{"v":2444606.67,"d":"$2,444,606.67"},{"v":2910251.48,"d":"$2,910,251.48"},{"v":1758935.8,"d":"$1,758,935.80"},{"v":4317448.93,"d":"$4,317,448.93"},{"v":3717333.36,"d":"$3,717,333.36"},{"v":2933412.78,"d":"$2,933,412.78"},{"v":107647236.98,"d":"$107,647,236.98"},{"v":1499463.9,"d":"$1,499,463.90"},{"v":2100640,"d":"$2,100,640.00"},{"v":5461664,"d":"$5,461,664.00"},{"v":571374.0800000001,"d":"$571,374.08"},{"v":9595723.52,"d":"$9,595,723.52"},{"v":6741268.949999999,"d":"$6,741,268.95"},{"v":22871768.32,"d":"$22,871,768.32"},{"v":15746397.44,"d":"$15,746,397.44"},{"v":43199835.88968,"d":"$43,199,835.89"},{"v":107788136.09967999,"d":"$107,788,136.10"},{"v":15996457.62,"d":"$15,996,457.62"},{"v":91791678.47967999,"d":"$91,791,678.48"},{"v":108707772.43967998,"d":"$108,707,772.44"},{"v":2115303.59,"d":"$2,115,303.59"},{"v":2115303.59,"d":"$2,115,303.59"},{"v":2203699.7,"d":"$2,203,699.70"},{"v":2203699.7,"d":"$2,203,699.70"},{"v":1249952.12,"d":"$1,249,952.12"},{"v":1249952.12,"d":"$1,249,952.12"},{"v":1301904.22,"d":"$1,301,904.22"},{"v":1301904.22,"d":"$1,301,904.22"},{"v":1562440.15,"d":"$1,562,440.15"},{"v":9241271.33,"d":"$9,241,271.33"},{"v":3743392.31,"d":"$3,743,392.31"},{"v":1436456.34,"d":"$1,436,456.34"},{"v":29725279.39,"d":"$29,725,279.39"},{"v":246080288.94,"d":"$246,080,288.94"},{"v":3929878.1,"d":"$3,929,878.10"},{"v":1359268.3599999999,"d":"$1,359,268.36"},{"v":9099894.73,"d":"$9,099,894.73"},{"v":246080288.80967999,"d":"$246,080,288.81"}]
[null,"ALT SCH-HANCOCK/MC DONOUGH ROE",54.3,{"v":776481.59,"d":"$776,481.59"},{"v":505614.69999999995,"d":"$505,614.70"},{"v":0.651161220705825,"d":"65%"},1,{"v":41649.55,"d":"$41,649.55"},{"v":427966.55,"d":"$427,966.55"},{"v":469616.1,"d":"$469,616.10"},{"v":0.9,"d":"0.90"},{"v":169537.15,"d":"$169,537.15"},{"v":54498.92,"d":"$54,498.92"},{"v":18579.47,"d":"$18,579.47"},{"v":6402.35,"d":"$6,402.35"},{"v":5656.07,"d":"$5,656.07"},{"v":16000.63,"d":"$16,000.63"},{"v":3302.8,"d":"$3,302.80"},{"v":6950.26,"d":"$6,950.26"},{"v":6521.79,"d":"$6,521.79"},{"v":4544.4,"d":"$4,544.40"},{"v":9675.28,"d":"$9,675.28"},{"v":8330.44,"d":"$8,330.44"},{"v":8339.99,"d":"$8,339.99"},{"v":318339.55000000005,"d":"$318,339.55"},{"v":4887,"d":"$4,887.00"},{"v":6787.5,"d":"$6,787.50"},{"v":17647.5,"d":"$17,647.50"},{"v":1846.1999999999998,"d":"$1,846.20"},{"v":31005.300000000003,"d":"$31,005.30"},{"v":43197.2,"d":"$43,197.20"},{"v":73902.29999999999,"d":"$73,902.30"},{"v":50879.1,"d":"$50,879.10"},{"v":148090.12619999997,"d":"$148,090.13"},{"v":378242.2262,"d":"$378,242.23"},{"v":51687.08,"d":"$51,687.08"},{"v":326555.14619999996,"d":"$326,555.15"},{"v":373073.51619999995,"d":"$373,073.52"},{"v":11218.72,"d":"$11,218.72"},{"v":11218.72,"d":"$11,218.72"},{"v":11878.65,"d":"$11,878.65"},{"v":11878.65,"d":"$11,878.65"},{"v":0,"d":"$0.00"},{"v":0,"d":"$0.00"},{"v":0,"d":"$0.00"},{"v":0,"d":"$0.00"},{"v":0,"d":"$0.00"},{"v":25077.15,"d":"$25,077.15"},{"v":10158.08,"d":"$10,158.08"},{"v":3638.47,"d":"$3,638.47"},{"v":85068.44,"d":"$85,068.44"},{"v":776481.59,"d":"$776,481.59"},{"v":21731.48,"d":"$21,731.48"},{"v":0,"d":"$0.00"},{"v":11737.939999999999,"d":"$11,737.94"},{"v":776481.5062,"d":"$776,481.51"}]
[null,"SAFE SCH-HANCOCK/MC DONOUGH ROE",17.64,{"v":227350.56,"d":"$227,350.56"},{"v":175964.5,"d":"$175,964.50"},{"v":0.7739787401447351,"d":"77%"},2,{"v":2312.43,"d":"$2,312.43"},{"v":153229.45,"d":"$153,229.45"},{"v":155541.88,"d":"$155,541.88"},{"v":0.9,"d":"0.90"},{"v":51058.16,"d":"$51,058.16"},{"v":13002.06,"d":"$13,002.06"},{"v":5303.52,"d":"$5,303.52"},{"v":1977.03,"d":"$1,977.03"},{"v":1714.5,"d":"$1,714.50"},{"v":4247.42,"d":"$4,247.42"},{"v":550.46,"d":"$550.46"},{"v":1871.22,"d":"$1,871.22"},{"v":2173.93,"d":"$2,173.93"},{"v":1336.59,"d":"$1,336.59"},{"v":3225.09,"d":"$3,225.09"},{"v":2776.81,"d":"$2,776.81"},{"v":2245.38,"d":"$2,245.38"},{"v":91482.17,"d":"$91,482.17"},{"v":1587.6,"d":"$1,587.60"},{"v":2205,"d":"$2,205.00"},{"v":5733,"d":"$5,733.00"},{"v":599.76,"d":"$599.76"},{"v":10072.44,"d":"$10,072.44"},{"v":8448.86,"d":"$8,448.86"},{"v":24008.04,"d":"$24,008.04"},{"v":16528.68,"d":"$16,528.68"},{"v":43310.958959999996,"d":"$43,310.96"},{"v":112494.33896,"d":"$112,494.34"},{"v":16791.16,"d":"$16,791.16"},{"v":95703.17895999999,"d":"$95,703.18"},{"v":110815.21896,"d":"$110,815.22"},{"v":3299.62,"d":"$3,299.62"},{"v":3299.62,"d":"$3,299.62"},{"v":3299.62,"d":"$3,299.62"},{"v":3299.62,"d":"$3,299.62"},{"v":0,"d":"$0.00"},{"v":0,"d":"$0.00"},{"v":0,"d":"$0.00"},{"v":0,"d":"$0.00"},{"v":0,"d":"$0.00"},{"v":7919.1,"d":"$7,919.10"},{"v":3207.81,"d":"$3,207.81"},{"v":727.69,"d":"$727.69"},{"v":25053.08,"d":"$25,053.08"},{"v":227350.56,"d":"$227,350.56"},{"v":4073.27,"d":"$4,073.27"},{"v":0,"d":"$0.00"},{"v":2270.99,"d":"$2,270.99"},{"v":227350.46896000003,"d":"$227,350.47"}]
["26029001026","ASTORIA COMM UNIT SCH DIST 1",265.29,{"v":3543933.5,"d":"$3,543,933.50"},{"v":3412814.7,"d":"$3,412,814.70"},{"v":0.9630019017004693,"d":"96%"},3,{"v":4027.36,"d":"$4,027.36"},{"v":1836005.8,"d":"$1,836,005.80"},{"v":1840033.1600000001,"d":"$1,840,033.16"},{"v":0.9,"d":"0.90"},{"v":806816.07,"d":"$806,816.07"},{"v":196965.32,"d":"$196,965.32"},{"v":86173.62,"d":"$86,173.62"},{"v":34582.11,"d":"$34,582.11"},{"v":27436.88,"d":"$27,436.88"},{"v":59936.7,"d":"$59,936.70"},{"v":18715.87,"d":"$18,715.87"},{"v":32345.47,"d":"$32,345.47"},{"v":38406.13,"d":"$38,406.13"},{"v":23256.66,"d":"$23,256.66"},{"v":56976.69,"d":"$56,976.69"},{"v":49057.06,"d":"$49,057.06"},{"v":38813.04,"d":"$38,813.04"},{"v":1469481.6199999996,"d":"$1,469,481.62"},{"v":23561.1,"d":"$23,561.10"},{"v":33161.25,"d":"$33,161.25"},{"v":86219.25,"d":"$86,219.25"},{"v":9019.859999999999,"d":"$9,019.86"},{"v":151480.59000000003,"d":"$151,480.59"},{"v":103281.83,"d":"$103,281.83"},{"v":361059.68999999994,"d":"$361,059.69"},{"v":248576.73,"d":"$248,576.73"},{"v":688165.14156,"d":"$688,165.14"},{"v":1704525.4415600002,"d":"$1,704,525.44"},{"v":252524.24,"d":"$252,524.24"},{"v":1452001.2015600002,"d":"$1,452,001.20"},{"v":1679273.0115600002,"d":"$1,679,273.01"},{"v":49494.37,"d":"$49,494.37"},{"v":49494.37,"d":"$49,494.37"},{"v":51474.15,"d":"$51,474.15"},{"v":51474.15,"d":"$51,474.15"},{"v":0,"d":"$0.00"},{"v":0,"d":"$0.00"},{"v":0,"d":"$0.00"},{"v":0,"d":"$0.00"},{"v":0,"d":"$0.00"},{"v":124065.9,"d":"$124,065.90"},{"v":50255.78,"d":"$50,255.78"},{"v":18920.07,"d":"$18,920.07"},{"v":395178.79,"d":"$395,178.79"},{"v":3543933.5,"d":"$3,543,933.50"},{"v":234298.79999999996,"d":"$234,298.80"},{"v":0,"d":"$0.00"},{"v":134365.4,"d":"$134,365.40"},{"v":3543933.4215599997,"d":"$3,543,933.42"}]
["26029002026","V I T COMM UNIT SCH DISTRICT 2",320,{"v":4218810.53,"d":"$4,218,810.53"},{"v":4940792.01,"d":"$4,940,792.01"},{"v":1.1711338954110364,"d":"117%"},4,{"v":268.73,"d":"$268.73"},{"v":768818.1999999998,"d":"$768,818.20"},{"v":769086.9299999998,"d":"$769,086.93"},{"v":0.9,"d":"0.90"},{"v":990391.44,"d":"$990,391.44"},{"v":236567.06,"d":"$236,567.06"},{"v":103401.48,"d":"$103,401.48"},{"v":42207.52,"d":"$42,207.52"},{"v":33742.67,"d":"$33,742.67"},{"v":70366.15,"d":"$70,366.15"},{"v":23119.61,"d":"$23,119.61"},{"v":39028.42,"d":"$39,028.42"},{"v":47101.86,"d":"$47,101.86"},{"v":28068.39,"d":"$28,068.39"},{"v":69877.08,"d":"$69,877.08"},{"v":60164.32,"d":"$60,164.32"},{"v":46832.27,"d":"$46,832.27"},{"v":1790868.27,"d":"$1,790,868.27"},{"v":28620,"d":"$28,620.00"},{"v":40000,"d":"$40,000.00"},{"v":104000,"d":"$104,000.00"},{"v":10880,"d":"$10,880.00"},{"v":91360,"d":"$91,360.00"},{"v":115715,"d":"$115,715.00"},{"v":435520,"d":"$435,520.00"},{"v":299840,"d":"$299,840.00"},{"v":840933.6149999999,"d":"$840,933.62"},{"v":1966868.6149999998,"d":"$1,966,868.62"},{"v":304601.6,"d":"$304,601.60"},{"v":1662267.0149999997,"d":"$1,662,267.02"},{"v":1936408.4549999996,"d":"$1,936,408.46"},{"v":63352.8,"d":"$63,352.80"},{"v":63352.8,"d":"$63,352.80"},{"v":65992.5,"d":"$65,992.50"},{"v":65992.5,"d":"$65,992.50"},{"v":0,"d":"$0.00"},{"v":0,"d":"$0.00"},{"v":0,"d":"$0.00"},{"v":0,"d":"$0.00"},{"v":0,"d":"$0.00"},{"v":149143.05,"d":"$149,143.05"},{"v":60413.86,"d":"$60,413.86"},{"v":23286.24,"d":"$23,286.24"},{"v":491533.75,"d":"$491,533.75"},{"v":4218810.53,"d":"$4,218,810.53"},{"v":99672.58000000002,"d":"$99,672.58"},{"v":0,"d":"$0.00"},{"v":100256.89000000003,"d":"$100,256.89"},{"v":4218810.475,"d":"$4,218,810.48"}]
["26029003026","COMM UNIT SCH DIST 3 FULTON CTY",376.46,{"v":5152832.18,"d":"$5,152,832.18"},{"v":5010414.7,"d":"$5,010,414.70"},{"v":0.972361319945025,"d":"97%"},3,{"v":5855.73,"d":"$5,855.73"},{"v":1822047.82,"d":"$1,822,047.82"},{"v":1827903.55,"d":"$1,827,903.55"},{"v":0.9,"d":"0.90"},{"v":1171345.23,"d":"$1,171,345.23"},{"v":288345.77,"d":"$288,345.77"},{"v":123298.26,"d":"$123,298.26"},{"v":49048.98,"d":"$49,048.98"},{"v":40266.8,"d":"$40,266.80"},{"v":86664.96,"d":"$86,664.96"},{"v":26972.88,"d":"$26,972.88"},{"v":45978.69,"d":"$45,978.69"},{"v":54348.3,"d":"$54,348.30"},{"v":33147.43,"d":"$33,147.43"},{"v":80627.4,"d":"$80,627.40"},{"v":69420.37,"d":"$69,420.37"},{"v":55172.26,"d":"$55,172.26"},{"v":2124637.3299999996,"d":"$2,124,637.33"},{"v":33732,"d":"$33,732.00"},{"v":47057.5,"d":"$47,057.50"},{"v":122349.5,"d":"$122,349.50"},{"v":12799.64,"d":"$12,799.64"},{"v":214958.65999999997,"d":"$214,958.66"},{"v":152222.5,"d":"$152,222.50"},{"v":512362.05999999994,"d":"$512,362.06"},{"v":352743.02,"d":"$352,743.02"},{"v":1005671.3114399998,"d":"$1,005,671.31"},{"v":2453896.1914399997,"d":"$2,453,896.19"},{"v":358344.74,"d":"$358,344.74"},{"v":2095551.4514400002,"d":"$2,095,551.45"},{"v":2418061.71144,"d":"$2,418,061.71"},{"v":78531.07,"d":"$78,531.07"},{"v":78531.07,"d":"$78,531.07"},{"v":81830.7,"d":"$81,830.70"},{"v":81830.7,"d":"$81,830.70"},{"v":2639.7,"d":"$2,639.70"},{"v":2639.7,"d":"$2,639.70"},{"v":3299.62,"d":"$3,299.62"},{"v":3299.62,"d":"$3,299.62"},{"v":3959.55,"d":"$3,959.55"},{"v":175540.05,"d":"$175,540.05"},{"v":71106.58,"d":"$71,106.58"},{"v":26924.71,"d":"$26,924.71"},{"v":610133.07,"d":"$610,133.07"},{"v":5152832.18,"d":"$5,152,832.18"},{"v":279309.07999999996,"d":"$279,309.08"},{"v":87.68,"d":"$87.68"},{"v":185229.45,"d":"$185,229.45"},{"v":5152832.11144,"d":"$5,152,832.11"}]
["26029004026","SPOON RIVER VALLEY C U S DIST 4",244.22,{"v":3250511.41,"d":"$3,250,511.41"},{"v":4677661.71,"d":"$4,677,661.71"},{"v":1.4390540810315138,"d":"144%"},4,{"v":207.05,"d":"$207.05"},{"v":723485.62,"d":"$723,485.62"},{"v":723692.67,"d":"$723,692.67"},{"v":0.9,"d":"0.90"},{"v":760780.85,"d":"$760,780.85"},{"v":186892.29,"d":"$186,892.29"},{"v":79803.4,"d":"$79,803.40"},{"v":31349.88,"d":"$31,349.88"},{"v":25940.38,"d":"$25,940.38"},{"v":54431.06,"d":"$54,431.06"},{"v":17064.47,"d":"$17,064.47"},{"v":29939.61,"d":"$29,939.61"},{"v":34782.91,"d":"$34,782.91"},{"v":21385.44,"d":"$21,385.44"},{"v":51601.53,"d":"$51,601.53"},{"v":44429.04,"d":"$44,429.04"},{"v":35926.12,"d":"$35,926.12"},{"v":1374326.98,"d":"$1,374,326.98"},{"v":21867.3,"d":"$21,867.30"},{"v":30527.5,"d":"$30,527.50"},{"v":79371.5,"d":"$79,371.50"},{"v":8303.48,"d":"$8,303.48"},{"v":69724.79999999999,"d":"$69,724.80"},{"v":97517.31,"d":"$97,517.31"},{"v":332383.42,"d":"$332,383.42"},{"v":228834.13999999998,"d":"$228,834.14"},{"v":647127.42708,"d":"$647,127.43"},{"v":1515656.87708,"d":"$1,515,656.88"},{"v":232468.13,"d":"$232,468.13"},{"v":1283188.7470800001,"d":"$1,283,188.75"},{"v":1492410.0570800002,"d":"$1,492,410.06"},{"v":50154.3,"d":"$50,154.30"},{"v":50154.3,"d":"$50,154.30"},{"v":52794,"d":"$52,794.00"},{"v":52794,"d":"$52,794.00"},{"v":0,"d":"$0.00"},{"v":0,"d":"$0.00"},{"v":0,"d":"$0.00"},{"v":0,"d":"$0.00"},{"v":0,"d":"$0.00"},{"v":114167.02,"d":"$114,167.02"},{"v":46246.01,"d":"$46,246.01"},{"v":17464.68,"d":"$17,464.68"},{"v":383774.31,"d":"$383,774.31"},{"v":3250511.41,"d":"$3,250,511.41"},{"v":85900.31,"d":"$85,900.31"},{"v":0,"d":"$0.00"},{"v":122167.07000000002,"d":"$122,167.07"},{"v":3250511.34708,"d":"$3,250,511.35"}]
["26029066025","CANTON UNION SCHOOL DIST 66",2118.95,{"v":29121730.23,"d":"$29,121,730.23"},{"v":30204149.770000003,"d":"$30,204,149.77"},{"v":1.0371687922198023,"d":"104%"},4,{"v":1855,"d":"$1,855.00"},{"v":9664681.639999999,"d":"$9,664,681.64"},{"v":9666536.639999999,"d":"$9,666,536.64"},{"v":0.9,"d":"0.90"},{"v":6622904.37,"d":"$6,622,904.37"},{"v":1601892.49,"d":"$1,601,892.49"},{"v":694628.22,"d":"$694,628.22"},{"v":282555.88,"d":"$282,555.88"},{"v":228789.52,"d":"$228,789.52"},{"v":480468.2,"d":"$480,468.20"},{"v":154681.22,"d":"$154,681.22"},{"v":261169.68,"d":"$261,169.68"},{"v":314495.49,"d":"$314,495.49"},{"v":188191.87,"d":"$188,191.87"},{"v":466563.88,"d":"$466,563.88"},{"v":401712.57,"d":"$401,712.57"},{"v":313391.31,"d":"$313,391.31"},{"v":12011444.700000001,"d":"$12,011,444.70"},{"v":189123.30000000002,"d":"$189,123.30"},{"v":264868.75,"d":"$264,868.75"},{"v":688658.7500000001,"d":"$688,658.75"},{"v":72044.30000000002,"d":"$72,044.30"},{"v":1209920.45,"d":"$1,209,920.45"},{"v":802468.25,"d":"$802,468.25"},{"v":2883890.95,"d":"$2,883,890.95"},{"v":1985456.1500000001,"d":"$1,985,456.15"},{"v":5703373.984800001,"d":"$5,703,373.98"},{"v":13799804.884800002,"d":"$13,799,804.88"},{"v":2016986.12,"d":"$2,016,986.12"},{"v":11782818.764800001,"d":"$11,782,818.76"},{"v":13598106.264800001,"d":"$13,598,106.26"},{"v":473826.15,"d":"$473,826.15"},{"v":473826.15,"d":"$473,826.15"},{"v":493623.9,"d":"$493,623.90"},{"v":493623.9,"d":"$493,623.90"},{"v":5939.32,"d":"$5,939.32"},{"v":5939.32,"d":"$5,939.32"},{"v":5939.32,"d":"$5,939.32"},{"v":5939.32,"d":"$5,939.32"},{"v":7259.17,"d":"$7,259.17"},{"v":991207.35,"d":"$991,207.35"},{"v":401511.63,"d":"$401,511.63"},{"v":153543.64,"d":"$153,543.64"},{"v":3512179.1700000004,"d":"$3,512,179.17"},{"v":29121730.23,"d":"$29,121,730.23"},{"v":1637104.2499999998,"d":"$1,637,104.25"},{"v":6160.150000000001,"d":"$6,160.15"},{"v":965106.24,"d":"$965,106.24"},{"v":29121730.134800002,"d":"$29,121,730.13"}]
["26029097026","LEWISTOWN SCHOOL DIST 97",578.25,{"v":7945964.31,"d":"$7,945,964.31"},{"v":6892200.55,"d":"$6,892,200.55"},{"v":0.8673837788732781,"d":"87%"},2,{"v":16048.4,"d":"$16,048.40"},{"v":2856104.13,"d":"$2,856,104.13"},{"v":2872152.53,"d":"$2,872,152.53"},{"v":0.9,"d":"0.90"},{"v":1812205.56,"d":"$1,812,205.56"},{"v":435184.89,"d":"$435,184.89"},{"v":188759.01,"d":"$188,759.01"},{"v":76695.39,"d":"$76,695.39"},{"v":62569.44,"d":"$62,569.44"},{"v":130884.69,"d":"$130,884.69"},{"v":41285.02,"d":"$41,285.02"},{"v":71106.58,"d":"$71,106.58"},{"v":85507.99,"d":"$85,507.99"},{"v":51057.73,"d":"$51,057.73"},{"v":126853.77,"d":"$126,853.77"},{"v":109221.39,"d":"$109,221.39"},{"v":85324.55,"d":"$85,324.55"},{"v":3276656.0100000002,"d":"$3,276,656.01"},{"v":51660,"d":"$51,660.00"},{"v":72281.25,"d":"$72,281.25"},{"v":187931.25,"d":"$187,931.25"},{"v":19660.5,"d":"$19,660.50"},{"v":330180.75,"d":"$330,180.75"},{"v":215373,"d":"$215,373.00"},{"v":786998.25,"d":"$786,998.25"},{"v":541820.25,"d":"$541,820.25"},{"v":1556978.5559999999,"d":"$1,556,978.56"},{"v":3762883.806,"d":"$3,762,883.81"},{"v":550424.61,"d":"$550,424.61"},{"v":3212459.196,"d":"$3,212,459.20"},{"v":3707841.336,"d":"$3,707,841.34"},{"v":131985,"d":"$131,985.00"},{"v":131985,"d":"$131,985.00"},{"v":137924.32,"d":"$137,924.32"},{"v":137924.32,"d":"$137,924.32"},{"v":0,"d":"$0.00"},{"v":0,"d":"$0.00"},{"v":0,"d":"$0.00"},{"v":0,"d":"$0.00"},{"v":0,"d":"$0.00"},{"v":270569.25,"d":"$270,569.25"},{"v":109600.38,"d":"$109,600.38"},{"v":41478.61,"d":"$41,478.61"},{"v":961466.88,"d":"$961,466.88"},{"v":7945964.31,"d":"$7,945,964.31"},{"v":377962.72,"d":"$377,962.72"},{"v":22.81,"d":"$22.81"},{"v":231099.68,"d":"$231,099.68"},{"v":7945964.226000001,"d":"$7,945,964.23"}]
["26034307016","ILLINI WEST H S DIST 307",335,{"v":4821538.74,"d":"$4,821,538.74"},{"v":3554739.15,"d":"$3,554,739.15"},{"v":0.7372623848294538,"d":"74%"},1,{"v":90524.9,"d":"$90,524.90"},{"v":1239048.33,"d":"$1,239,048.33"},{"v":1329573.23,"d":"$1,329,573.23"},{"v":0.9,"d":"0.90"},{"v":1049562.63,"d":"$1,049,562.63"},{"v":349819.21,"d":"$349,819.21"},{"v":120548.11,"d":"$120,548.11"},{"v":39701.47,"d":"$39,701.47"},{"v":34655.4,"d":"$34,655.40"},{"v":103305.96,"d":"$103,305.96"},{"v":24220.54,"d":"$24,220.54"},{"v":44642.1,"d":"$44,642.10"},{"v":39855.42,"d":"$39,855.42"},{"v":29672.29,"d":"$29,672.29"},{"v":59126.76,"d":"$59,126.76"},{"v":50908.27,"d":"$50,908.27"},{"v":53568.42,"d":"$53,568.42"},{"v":1999586.5799999998,"d":"$1,999,586.58"},{"v":30150,"d":"$30,150.00"},{"v":41875,"d":"$41,875.00"},{"v":108875,"d":"$108,875.00"},{"v":11390,"d":"$11,390.00"},{"v":191285,"d":"$191,285.00"},{"v":287765,"d":"$287,765.00"},{"v":455935,"d":"$455,935.00"},{"v":313895,"d":"$313,895.00"},{"v":916148.2829999999,"d":"$916,148.28"},{"v":2357318.283,"d":"$2,357,318.28"},{"v":318879.8,"d":"$318,879.80"},{"v":2038438.4829999998,"d":"$2,038,438.48"},{"v":2325430.303,"d":"$2,325,430.30"},{"v":60053.17,"d":"$60,053.17"},{"v":60053.17,"d":"$60,053.17"},{"v":62692.87,"d":"$62,692.87"},{"v":62692.87,"d":"$62,692.87"},{"v":1319.85,"d":"$1,319.85"},{"v":1319.85,"d":"$1,319.85"},{"v":1319.85,"d":"$1,319.85"},{"v":1319.85,"d":"$1,319.85"},{"v":1979.77,"d":"$1,979.77"},{"v":156402.22,"d":"$156,402.22"},{"v":63354.36,"d":"$63,354.36"},{"v":24013.93,"d":"$24,013.93"},{"v":496521.75999999995,"d":"$496,521.76"},{"v":4821538.74,"d":"$4,821,538.74"},{"v":143882.06,"d":"$143,882.06"},{"v":580.54,"d":"$580.54"},{"v":112936.02,"d":"$112,936.02"},{"v":4821538.642999999,"d":"$4,821,538.64"}]
["26034316026","WARSAW COMM UNIT SCH DISTRICT 316",371.12,{"v":4903969.66,"d":"$4,903,969.66"},{"v":3596164.76,"d":"$3,596,164.76"},{"v":0.7333170898940675,"d":"73%"},1,{"v":103930.13,"d":"$103,930.13"},{"v":1769929.93,"d":"$1,769,929.93"},{"v":1873860.06,"d":"$1,873,860.06"},{"v":0.9,"d":"0.90"},{"v":1134816.04,"d":"$1,134,816.04"},{"v":278345.71,"d":"$278,345.71"},{"v":121321.22,"d":"$121,321.22"},{"v":48327.13,"d":"$48,327.13"},{"v":37787.9,"d":"$37,787.90"},{"v":83770.3,"d":"$83,770.30"},{"v":26422.41,"d":"$26,422.41"},{"v":45444.06,"d":"$45,444.06"},{"v":53623.65,"d":"$53,623.65"},{"v":32612.79,"d":"$32,612.79"},{"v":79552.36,"d":"$79,552.36"},{"v":68494.77,"d":"$68,494.77"},{"v":54530.73,"d":"$54,530.73"},{"v":2065049.0699999998,"d":"$2,065,049.07"},{"v":33371.1,"d":"$33,371.10"},{"v":46390,"d":"$46,390.00"},{"v":120614,"d":"$120,614.00"},{"v":12618.079999999998,"d":"$12,618.08"},{"v":211909.52000000002,"d":"$211,909.52"},{"v":147519.95,"d":"$147,519.95"},{"v":505094.32,"d":"$505,094.32"},{"v":347739.43999999994,"d":"$347,739.44"},{"v":948546.76368,"d":"$948,546.76"},{"v":2373803.17368,"d":"$2,373,803.17"},{"v":353261.7,"d":"$353,261.70"},{"v":2020541.47368,"d":"$2,020,541.47"},{"v":2338477.00368,"d":"$2,338,477.00"},{"v":56093.62,"d":"$56,093.62"},{"v":56093.62,"d":"$56,093.62"},{"v":58733.32,"d":"$58,733.32"},{"v":58733.32,"d":"$58,733.32"},{"v":0,"d":"$0.00"},{"v":0,"d":"$0.00"},{"v":0,"d":"$0.00"},{"v":0,"d":"$0.00"},{"v":0,"d":"$0.00"},{"v":173560.27,"d":"$173,560.27"},{"v":70304.63,"d":"$70,304.63"},{"v":26924.71,"d":"$26,924.71"},{"v":500443.49000000005,"d":"$500,443.49"},{"v":4903969.66,"d":"$4,903,969.66"},{"v":129132.01999999999,"d":"$129,132.02"},{"v":0,"d":"$0.00"},{"v":141162.31999999998,"d":"$141,162.32"},{"v":4903969.563680001,"d":"$4,903,969.56"}]
["26034317004","CARTHAGE ESD 317",387.47,{"v":5092870.35,"d":"$5,092,870.35"},{"v":4054636.2199999997,"d":"$4,054,636.22"},{"v":0.7961396896742129,"d":"80%"},2,{"v":23693.84,"d":"$23,693.84"},{"v":1198435.24,"d":"$1,198,435.24"},{"v":1222129.08,"d":"$1,222,129.08"},{"v":0.9,"d":"0.90"},{"v":1188041.12,"d":"$1,188,041.12"},{"v":237608.21,"d":"$237,608.21"},{"v":120498.62,"d":"$120,498.62"},{"v":53345.74,"d":"$53,345.74"},{"v":41287.22,"d":"$41,287.22"},{"v":73726.07,"d":"$73,726.07"},{"v":28073.81,"d":"$28,073.81"},{"v":45978.69,"d":"$45,978.69"},{"v":61594.74,"d":"$61,594.74"},{"v":34216.7,"d":"$34,216.70"},{"v":91377.72,"d":"$91,377.72"},{"v":78676.42,"d":"$78,676.42"},{"v":55172.26,"d":"$55,172.26"},{"v":2109597.32,"d":"$2,109,597.32"},{"v":34737.3,"d":"$34,737.30"},{"v":48433.75,"d":"$48,433.75"},{"v":125927.75,"d":"$125,927.75"},{"v":13173.98,"d":"$13,173.98"},{"v":221245.37,"d":"$221,245.37"},{"v":65295.01,"d":"$65,295.01"},{"v":527346.6699999999,"d":"$527,346.67"},{"v":363059.39,"d":"$363,059.39"},{"v":1005297.2140800001,"d":"$1,005,297.21"},{"v":2404516.43408,"d":"$2,404,516.43"},{"v":368824.94,"d":"$368,824.94"},{"v":2035691.4940799996,"d":"$2,035,691.49"},{"v":2367633.9340799996,"d":"$2,367,633.93"},{"v":77871.15,"d":"$77,871.15"},{"v":77871.15,"d":"$77,871.15"},{"v":81170.77,"d":"$81,170.77"},{"v":81170.77,"d":"$81,170.77"},{"v":2639.7,"d":"$2,639.70"},{"v":2639.7,"d":"$2,639.70"},{"v":3299.62,"d":"$3,299.62"},{"v":3299.62,"d":"$3,299.62"},{"v":3959.55,"d":"$3,959.55"},{"v":180819.45,"d":"$180,819.45"},{"v":73245.13,"d":"$73,245.13"},{"v":27652.41,"d":"$27,652.41"},{"v":615639.0200000001,"d":"$615,639.02"},{"v":5092870.35,"d":"$5,092,870.35"},{"v":194119.93999999997,"d":"$194,119.94"},{"v":1003.95,"d":"$1,003.95"},{"v":141124.78999999998,"d":"$141,124.79"},{"v":5092870.27408,"d":"$5,092,870.27"}]
["26034325026","NAUVOO-COLUSA C U S DIST 325",228.63,{"v":2930941.28,"d":"$2,930,941.28"},{"v":3242775.46,"d":"$3,242,775.46"},{"v":1.1063938681159795,"d":"111%"},4,{"v":186.69,"d":"$186.69"},{"v":322575.06000000006,"d":"$322,575.06"},{"v":322761.75000000006,"d":"$322,761.75"},{"v":0.9,"d":"0.90"},{"v":688577.22,"d":"$688,577.22"},{"v":173702.44,"d":"$173,702.44"},{"v":74343.52,"d":"$74,343.52"},{"v":28933.74,"d":"$28,933.74"},{"v":22796.56,"d":"$22,796.56"},{"v":54038.34,"d":"$54,038.34"},{"v":15963.54,"d":"$15,963.54"},{"v":27801.07,"d":"$27,801.07"},{"v":31884.33,"d":"$31,884.33"},{"v":20048.85,"d":"$20,048.85"},{"v":47301.4,"d":"$47,301.40"},{"v":40726.62,"d":"$40,726.62"},{"v":33359.97,"d":"$33,359.97"},{"v":1259477.6,"d":"$1,259,477.60"},{"v":20502,"d":"$20,502.00"},{"v":28578.75,"d":"$28,578.75"},{"v":74304.75,"d":"$74,304.75"},{"v":7773.42,"d":"$7,773.42"},{"v":65273.86,"d":"$65,273.86"},{"v":99795.79999999999,"d":"$99,795.80"},{"v":311165.43,"d":"$311,165.43"},{"v":214226.31,"d":"$214,226.31"},{"v":576038.17932,"d":"$576,038.18"},{"v":1397658.49932,"d":"$1,397,658.50"},{"v":217628.32,"d":"$217,628.32"},{"v":1180030.1793199999,"d":"$1,180,030.18"},{"v":1375895.6593199999,"d":"$1,375,895.66"},{"v":31676.4,"d":"$31,676.40"},{"v":31676.4,"d":"$31,676.40"},{"v":32996.25,"d":"$32,996.25"},{"v":32996.25,"d":"$32,996.25"},{"v":0,"d":"$0.00"},{"v":0,"d":"$0.00"},{"v":0,"d":"$0.00"},{"v":0,"d":"$0.00"},{"v":0,"d":"$0.00"},{"v":106907.85,"d":"$106,907.85"},{"v":43305.51,"d":"$43,305.51"},{"v":16009.29,"d":"$16,009.29"},{"v":295567.95,"d":"$295,567.95"},{"v":2930941.28,"d":"$2,930,941.28"},{"v":116361.69000000002,"d":"$116,361.69"},{"v":0,"d":"$0.00"},{"v":80014.19000000002,"d":"$80,014.19"},{"v":2930941.2093200004,"d":"$2,930,941.21"}]
["26034327004","DALLAS ESD 327",159.8,{"v":2107719.63,"d":"$2,107,719.63"},{"v":1921353.46,"d":"$1,921,353.46"},{"v":0.9115792407361125,"d":"91%"},3,{"v":2395.23,"d":"$2,395.23"},{"v":938407.6799999999,"d":"$938,407.68"},{"v":940802.9099999999,"d":"$940,802.91"},{"v":0.9,"d":"0.90"},{"v":493291.24,"d":"$493,291.24"},{"v":98658.24,"d":"$98,658.24"},{"v":49580.16,"d":"$49,580.16"},{"v":21338.29,"d":"$21,338.29"},{"v":17171.67,"d":"$17,171.67"},{"v":29760.98,"d":"$29,760.98"},{"v":11009.34,"d":"$11,009.34"},{"v":18712.26,"d":"$18,712.26"},{"v":24637.89,"d":"$24,637.89"},{"v":13900.53,"d":"$13,900.53"},{"v":36551.08,"d":"$36,551.08"},{"v":31470.57,"d":"$31,470.57"},{"v":22453.83,"d":"$22,453.83"},{"v":868536.08,"d":"$868,536.08"},{"v":14367.599999999999,"d":"$14,367.60"},{"v":19975,"d":"$19,975.00"},{"v":51935,"d":"$51,935.00"},{"v":5433.2,"d":"$5,433.20"},{"v":91245.8,"d":"$91,245.80"},{"v":26959.759999999995,"d":"$26,959.76"},{"v":217487.8,"d":"$217,487.80"},{"v":149732.6,"d":"$149,732.60"},{"v":416380.40520000004,"d":"$416,380.41"},{"v":993517.1652,"d":"$993,517.17"},{"v":152110.42,"d":"$152,110.42"},{"v":841406.7452,"d":"$841,406.75"},{"v":978306.1152,"d":"$978,306.12"},{"v":35635.95,"d":"$35,635.95"},{"v":35635.95,"d":"$35,635.95"},{"v":36955.8,"d":"$36,955.80"},{"v":36955.8,"d":"$36,955.80"},{"v":0,"d":"$0.00"},{"v":0,"d":"$0.00"},{"v":0,"d":"$0.00"},{"v":0,"d":"$0.00"},{"v":0,"d":"$0.00"},{"v":74571.52,"d":"$74,571.52"},{"v":30206.93,"d":"$30,206.93"},{"v":10915.42,"d":"$10,915.42"},{"v":260877.37000000002,"d":"$260,877.37"},{"v":2107719.63,"d":"$2,107,719.63"},{"v":253519.54,"d":"$253,519.54"},{"v":0,"d":"$0.00"},{"v":72232.55,"d":"$72,232.55"},{"v":2107719.5652,"d":"$2,107,719.57"}]
["26034328024","HAMILTON C C SCHOOL DIST 328",543.75,{"v":7316987.8,"d":"$7,316,987.80"},{"v":5043225.83,"d":"$5,043,225.83"},{"v":0.6892489051300591,"d":"69%"},1,{"v":256828.27,"d":"$256,828.27"},{"v":1891674.5899999996,"d":"$1,891,674.59"},{"v":2148502.8599999994,"d":"$2,148,502.86"},{"v":0.9,"d":"0.90"},{"v":1682539.25,"d":"$1,682,539.25"},{"v":405017.86,"d":"$405,017.86"},{"v":177085.27,"d":"$177,085.27"},{"v":71580.36,"d":"$71,580.36"},{"v":57075.99,"d":"$57,075.99"},{"v":123160.78,"d":"$123,160.78"},{"v":39083.15,"d":"$39,083.15"},{"v":66562.18,"d":"$66,562.18"},{"v":79710.84,"d":"$79,710.84"},{"v":48117.24,"d":"$48,117.24"},{"v":118253.52,"d":"$118,253.52"},{"v":101816.55,"d":"$101,816.55"},{"v":79871.48,"d":"$79,871.48"},{"v":3049874.4699999997,"d":"$3,049,874.47"},{"v":48870,"d":"$48,870.00"},{"v":67968.75,"d":"$67,968.75"},{"v":176718.75,"d":"$176,718.75"},{"v":18487.5,"d":"$18,487.50"},{"v":310481.25,"d":"$310,481.25"},{"v":205058,"d":"$205,058.00"},{"v":740043.75,"d":"$740,043.75"},{"v":509493.75,"d":"$509,493.75"},{"v":1425093.702,"d":"$1,425,093.70"},{"v":3502215.452,"d":"$3,502,215.45"},{"v":517584.75,"d":"$517,584.75"},{"v":2984630.702,"d":"$2,984,630.70"},{"v":3450456.972,"d":"$3,450,456.97"},{"v":102288.37,"d":"$102,288.37"},{"v":102288.37,"d":"$102,288.37"},{"v":106247.92,"d":"$106,247.92"},{"v":106247.92,"d":"$106,247.92"},{"v":659.92,"d":"$659.92"},{"v":659.92,"d":"$659.92"},{"v":659.92,"d":"$659.92"},{"v":659.92,"d":"$659.92"},{"v":659.92,"d":"$659.92"},{"v":254071.12,"d":"$254,071.12"},{"v":102917.43,"d":"$102,917.43"},{"v":39295.53,"d":"$39,295.53"},{"v":816656.2599999998,"d":"$816,656.26"},{"v":7316987.8,"d":"$7,316,987.80"},{"v":247638.56,"d":"$247,638.56"},{"v":423.83000000000004,"d":"$423.83"},{"v":226720.89,"d":"$226,720.89"},{"v":7316987.702,"d":"$7,316,987.70"}]
["26034337026","SOUTHEASTERN C U SCH DIST 337",421.04,{"v":5946142.32,"d":"$5,946,142.32"},{"v":5604946.43,"d":"$5,604,946.43"},{"v":0.9426189499614936,"d":"94%"},3,{"v":6757.26,"d":"$6,757.26"},{"v":1989219.42,"d":"$1,989,219.42"},{"v":1995976.68,"d":"$1,995,976.68"},{"v":0.9,"d":"0.90"},{"v":1353446.94,"d":"$1,353,446.94"},{"v":328711.21,"d":"$328,711.21"},{"v":136760.54,"d":"$136,760.54"},{"v":55419.2,"d":"$55,419.20"},{"v":47315.09,"d":"$47,315.09"},{"v":94970.7,"d":"$94,970.70"},{"v":29725.21,"d":"$29,725.21"},{"v":51592.37,"d":"$51,592.37"},{"v":61594.74,"d":"$61,594.74"},{"v":36889.88,"d":"$36,889.88"},{"v":91377.72,"d":"$91,377.72"},{"v":78676.42,"d":"$78,676.42"},{"v":61908.41,"d":"$61,908.41"},{"v":2428388.43,"d":"$2,428,388.43"},{"v":37706.399999999994,"d":"$37,706.40"},{"v":52629.999999999985,"d":"$52,630.00"},{"v":136837.99999999997,"d":"$136,838.00"},{"v":14315.359999999997,"d":"$14,315.36"},{"v":240413.84,"d":"$240,413.84"},{"v":162308.61999999997,"d":"$162,308.62"},{"v":573035.44,"d":"$573,035.44"},{"v":394514.48,"d":"$394,514.48"},{"v":1171961.16156,"d":"$1,171,961.16"},{"v":2783723.3015599996,"d":"$2,783,723.30"},{"v":400779.55,"d":"$400,779.55"},{"v":2382943.75156,"d":"$2,382,943.75"},{"v":2743645.3415599996,"d":"$2,743,645.34"},{"v":114167.02,"d":"$114,167.02"},{"v":114167.02,"d":"$114,167.02"},{"v":119446.42,"d":"$119,446.42"},{"v":119446.42,"d":"$119,446.42"},{"v":0,"d":"$0.00"},{"v":0,"d":"$0.00"},{"v":0,"d":"$0.00"},{"v":0,"d":"$0.00"},{"v":0,"d":"$0.00"},{"v":196657.65,"d":"$196,657.65"},{"v":79660.76,"d":"$79,660.76"},{"v":30563.19,"d":"$30,563.19"},{"v":774108.48,"d":"$774,108.48"},{"v":5946142.32,"d":"$5,946,142.32"},{"v":456326.06999999995,"d":"$456,326.07"},{"v":0,"d":"$0.00"},{"v":162133.08000000002,"d":"$162,133.08"},{"v":5946142.251560001,"d":"$5,946,142.25"}]
["26034347004","LA HARPE CUSD 347",185.12,{"v":2506941.66,"d":"$2,506,941.66"},{"v":2300221.9400000004,"d":"$2,300,221.94"},{"v":0.917541072734816,"d":"92%"},3,{"v":2848.91,"d":"$2,848.91"},{"v":514873.61000000004,"d":"$514,873.61"},{"v":517722.52,"d":"$517,722.52"},{"v":0.9,"d":"0.90"},{"v":587430.79,"d":"$587,430.79"},{"v":117486.15,"d":"$117,486.15"},{"v":57111.32,"d":"$57,111.32"},{"v":25103.88,"d":"$25,103.88"},{"v":20632.2,"d":"$20,632.20"},{"v":35172.07,"d":"$35,172.07"},{"v":12660.74,"d":"$12,660.74"},{"v":21920.07,"d":"$21,920.07"},{"v":28985.76,"d":"$28,985.76"},{"v":16039.08,"d":"$16,039.08"},{"v":43001.28,"d":"$43,001.28"},{"v":37024.2,"d":"$37,024.20"},{"v":26303.05,"d":"$26,303.05"},{"v":1028870.5899999999,"d":"$1,028,870.59"},{"v":16646.399999999998,"d":"$16,646.40"},{"v":23140,"d":"$23,140.00"},{"v":60163.999999999985,"d":"$60,164.00"},{"v":6294.079999999999,"d":"$6,294.08"},{"v":105703.52,"d":"$105,703.52"},{"v":31281.679999999993,"d":"$31,281.68"},{"v":251948.31999999998,"d":"$251,948.32"},{"v":173457.44,"d":"$173,457.44"},{"v":498471.51168000005,"d":"$498,471.51"},{"v":1167106.95168,"d":"$1,167,106.95"},{"v":176212.02,"d":"$176,212.02"},{"v":990894.9316799999,"d":"$990,894.93"},{"v":1149485.74168,"d":"$1,149,485.74"},{"v":47514.6,"d":"$47,514.60"},{"v":47514.6,"d":"$47,514.60"},{"v":49494.37,"d":"$49,494.37"},{"v":49494.37,"d":"$49,494.37"},{"v":0,"d":"$0.00"},{"v":0,"d":"$0.00"},{"v":0,"d":"$0.00"},{"v":0,"d":"$0.00"},{"v":0,"d":"$0.00"},{"v":86450.17,"d":"$86,450.17"},{"v":35018.65,"d":"$35,018.65"},{"v":13098.51,"d":"$13,098.51"},{"v":328585.27,"d":"$328,585.27"},{"v":2506941.66,"d":"$2,506,941.66"},{"v":78645.08999999998,"d":"$78,645.09"},{"v":0,"d":"$0.00"},{"v":96662.86999999998,"d":"$96,662.87"},{"v":2506941.60168,"d":"$2,506,941.60"}]
["26062103026","WEST PRAIRIE",541.7,{"v":7330674.91,"d":"$7,330,674.91"},{"v":7163595.350000001,"d":"$7,163,595.35"},{"v":0.9772081613151224,"d":"98%"},3,{"v":8330.65,"d":"$8,330.65"},{"v":1460079.5899999999,"d":"$1,460,079.59"},{"v":1468410.2399999998,"d":"$1,468,410.24"},{"v":0.9,"d":"0.90"},{"v":1679493.34,"d":"$1,679,493.34"},{"v":402580.46,"d":"$402,580.46"},{"v":176174.93,"d":"$176,174.93"},{"v":71486.11,"d":"$71,486.11"},{"v":57402.01,"d":"$57,402.01"},{"v":121618.9,"d":"$121,618.90"},{"v":39083.15,"d":"$39,083.15"},{"v":66027.54,"d":"$66,027.54"},{"v":79710.84,"d":"$79,710.84"},{"v":47849.92,"d":"$47,849.92"},{"v":118253.52,"d":"$118,253.52"},{"v":101816.55,"d":"$101,816.55"},{"v":79229.94,"d":"$79,229.94"},{"v":3040727.209999999,"d":"$3,040,727.21"},{"v":48626.1,"d":"$48,626.10"},{"v":67712.5,"d":"$67,712.50"},{"v":176052.5,"d":"$176,052.50"},{"v":18417.8,"d":"$18,417.80"},{"v":309310.69999999995,"d":"$309,310.70"},{"v":200198.75,"d":"$200,198.75"},{"v":737253.7,"d":"$737,253.70"},{"v":507572.89999999997,"d":"$507,572.90"},{"v":1430940.3348,"d":"$1,430,940.33"},{"v":3496085.2847999996,"d":"$3,496,085.28"},{"v":515633.39,"d":"$515,633.39"},{"v":2980451.8948,"d":"$2,980,451.89"},{"v":3444521.9447999997,"d":"$3,444,521.94"},{"v":110207.47,"d":"$110,207.47"},{"v":110207.47,"d":"$110,207.47"},{"v":114826.95,"d":"$114,826.95"},{"v":114826.95,"d":"$114,826.95"},{"v":0,"d":"$0.00"},{"v":0,"d":"$0.00"},{"v":0,"d":"$0.00"},{"v":0,"d":"$0.00"},{"v":0,"d":"$0.00"},{"v":253411.2,"d":"$253,411.20"},{"v":102650.11,"d":"$102,650.11"},{"v":39295.53,"d":"$39,295.53"},{"v":845425.68,"d":"$845,425.68"},{"v":7330674.91,"d":"$7,330,674.91"},{"v":291757.9600000001,"d":"$291,757.96"},{"v":0,"d":"$0.00"},{"v":233888.46999999997,"d":"$233,888.47"},{"v":7330674.834799998,"d":"$7,330,674.83"}]
["26062170026","BUSHNELL PRAIRIE CITY CUS D 170",575.75,{"v":8085571.57,"d":"$8,085,571.57"},{"v":6685319.5,"d":"$6,685,319.50"},{"v":0.8268208922674838,"d":"83%"},2,{"v":35769.26,"d":"$35,769.26"},{"v":3545914.7800000003,"d":"$3,545,914.78"},{"v":3581684.04,"d":"$3,581,684.04"},{"v":0.9,"d":"0.90"},{"v":1825899.32,"d":"$1,825,899.32"},{"v":448700.5,"d":"$448,700.50"},{"v":188540.55,"d":"$188,540.55"},{"v":75817.18,"d":"$75,817.18"},{"v":63883.46,"d":"$63,883.46"},{"v":131735.68,"d":"$131,735.68"},{"v":41285.02,"d":"$41,285.02"},{"v":70839.27,"d":"$70,839.27"},{"v":84058.7,"d":"$84,058.70"},{"v":50790.42,"d":"$50,790.42"},{"v":124703.71,"d":"$124,703.71"},{"v":107370.18,"d":"$107,370.18"},{"v":85003.78,"d":"$85,003.78"},{"v":3298627.7700000005,"d":"$3,298,627.77"},{"v":51480,"d":"$51,480.00"},{"v":71968.75,"d":"$71,968.75"},{"v":187118.75,"d":"$187,118.75"},{"v":19575.5,"d":"$19,575.50"},{"v":328753.25,"d":"$328,753.25"},{"v":229406,"d":"$229,406.00"},{"v":783595.75,"d":"$783,595.75"},{"v":539477.75,"d":"$539,477.75"},{"v":1589589.3179999997,"d":"$1,589,589.32"},{"v":3800965.068,"d":"$3,800,965.07"},{"v":548044.91,"d":"$548,044.91"},{"v":3252920.158,"d":"$3,252,920.16"},{"v":3746160.568,"d":"$3,746,160.57"},{"v":151122.82,"d":"$151,122.82"},{"v":151122.82,"d":"$151,122.82"},{"v":157722.07,"d":"$157,722.07"},{"v":157722.07,"d":"$157,722.07"},{"v":659.92,"d":"$659.92"},{"v":659.92,"d":"$659.92"},{"v":659.92,"d":"$659.92"},{"v":659.92,"d":"$659.92"},{"v":659.92,"d":"$659.92"},{"v":269249.4,"d":"$269,249.40"},{"v":109065.74,"d":"$109,065.74"},{"v":41478.61,"d":"$41,478.61"},{"v":1040783.1300000002,"d":"$1,040,783.13"},{"v":8085571.57,"d":"$8,085,571.57"},{"v":628523.5899999999,"d":"$628,523.59"},{"v":103.17999999999999,"d":"$103.18"},{"v":320000.93,"d":"$320,000.93"},{"v":8085571.468,"d":"$8,085,571.47"}]
["26062185026","MACOMB COMM UNIT SCH DIST 185",1892,{"v":25707478.78,"d":"$25,707,478.78"},{"v":19060058.92,"d":"$19,060,058.92"},{"v":0.7414207780977891,"d":"74%"},1,{"v":455164.17,"d":"$455,164.17"},{"v":6090102.56,"d":"$6,090,102.56"},{"v":6545266.7299999995,"d":"$6,545,266.73"},{"v":0.9,"d":"0.90"},{"v":5835933.81,"d":"$5,835,933.81"},{"v":1420827.78,"d":"$1,420,827.78"},{"v":621447.81,"d":"$621,447.81"},{"v":251677.24,"d":"$251,677.24"},{"v":200432.46,"d":"$200,432.46"},{"v":433353.81,"d":"$433,353.81"},{"v":138167.21,"d":"$138,167.21"},{"v":233368.61,"d":"$233,368.61"},{"v":279712.58,"d":"$279,712.58"},{"v":168410.34,"d":"$168,410.34"},{"v":414962.35,"d":"$414,962.35"},{"v":357283.53,"d":"$357,283.53"},{"v":280031.33,"d":"$280,031.33"},{"v":10635608.86,"d":"$10,635,608.86"},{"v":169335,"d":"$169,335.00"},{"v":236500,"d":"$236,500.00"},{"v":614900,"d":"$614,900.00"},{"v":64328,"d":"$64,328.00"},{"v":1080332,"d":"$1,080,332.00"},{"v":733589.5,"d":"$733,589.50"},{"v":2575012,"d":"$2,575,012.00"},{"v":1772804,"d":"$1,772,804.00"},{"v":5015300.693999999,"d":"$5,015,300.69"},{"v":12262101.193999998,"d":"$12,262,101.19"},{"v":1800956.96,"d":"$1,800,956.96"},{"v":10461144.233999997,"d":"$10,461,144.23"},{"v":12082005.493999997,"d":"$12,082,005.49"},{"v":369558,"d":"$369,558.00"},{"v":369558,"d":"$369,558.00"},{"v":384736.27,"d":"$384,736.27"},{"v":384736.27,"d":"$384,736.27"},{"v":18477.9,"d":"$18,477.90"},{"v":18477.9,"d":"$18,477.90"},{"v":19797.75,"d":"$19,797.75"},{"v":19797.75,"d":"$19,797.75"},{"v":23757.3,"d":"$23,757.30"},{"v":884959.42,"d":"$884,959.42"},{"v":358473.43,"d":"$358,473.43"},{"v":137534.35,"d":"$137,534.35"},{"v":2989864.3400000003,"d":"$2,989,864.34"},{"v":25707478.78,"d":"$25,707,478.78"},{"v":838791.7300000001,"d":"$838,791.73"},{"v":8069.18,"d":"$8,069.18"},{"v":749740.2000000001,"d":"$749,740.20"},{"v":25707478.693999995,"d":"$25,707,478.69"}]
["26085005026","SCHUYLER-INDUSTRY",870.8,{"v":11952194.06,"d":"$11,952,194.06"},{"v":10526366.08,"d":"$10,526,366.08"},{"v":0.880705753868926,"d":"88%"},2,{"v":18068.8,"d":"$18,068.80"},{"v":3798303.1200000006,"d":"$3,798,303.12"},{"v":3816371.9200000004,"d":"$3,816,371.92"},{"v":0.9,"d":"0.90"},{"v":2680881.84,"d":"$2,680,881.84"},{"v":653855.79,"d":"$653,855.79"},{"v":285477.57,"d":"$285,477.57"},{"v":114792.48,"d":"$114,792.48"},{"v":93545.38,"d":"$93,545.38"},{"v":200559.96,"d":"$200,559.96"},{"v":63303.7,"d":"$63,303.70"},{"v":107194.51,"d":"$107,194.51"},{"v":127537.34,"d":"$127,537.34"},{"v":76987.58,"d":"$76,987.58"},{"v":189205.63,"d":"$189,205.63"},{"v":162906.48,"d":"$162,906.48"},{"v":128628.36,"d":"$128,628.36"},{"v":4884876.62,"d":"$4,884,876.62"},{"v":77772.6,"d":"$77,772.60"},{"v":108850,"d":"$108,850.00"},{"v":283010,"d":"$283,010.00"},{"v":29607.199999999997,"d":"$29,607.20"},{"v":497226.80000000005,"d":"$497,226.80"},{"v":340405.22,"d":"$340,405.22"},{"v":1185158.8,"d":"$1,185,158.80"},{"v":815939.6,"d":"$815,939.60"},{"v":2337393.8892,"d":"$2,337,393.89"},{"v":5675364.109200001,"d":"$5,675,364.11"},{"v":828897.1,"d":"$828,897.10"},{"v":4846467.0092,"d":"$4,846,467.01"},{"v":5592474.3992,"d":"$5,592,474.40"},{"v":176859.9,"d":"$176,859.90"},{"v":176859.9,"d":"$176,859.90"},{"v":184119.07,"d":"$184,119.07"},{"v":184119.07,"d":"$184,119.07"},{"v":21777.52,"d":"$21,777.52"},{"v":21777.52,"d":"$21,777.52"},{"v":23097.37,"d":"$23,097.37"},{"v":23097.37,"d":"$23,097.37"},{"v":27716.85,"d":"$27,716.85"},{"v":407173.72,"d":"$407,173.72"},{"v":164935.2,"d":"$164,935.20"},{"v":63309.46,"d":"$63,309.46"},{"v":1474842.95,"d":"$1,474,842.95"},{"v":11952194.06,"d":"$11,952,194.06"},{"v":309813.30000000005,"d":"$309,813.30"},{"v":2290.75,"d":"$2,290.75"},{"v":399970.46,"d":"$399,970.46"},{"v":11952193.9692,"d":"$11,952,193.97"}]
[null,"SAFE SCH-BUREAU/HENRY/STARK ROE",8.32,{"v":95428.82,"d":"$95,428.82"},{"v":81289.19,"d":"$81,289.19"},{"v":0.8518306105011043,"d":"85%"},2,{"v":371,"d":"$371.00"},{"v":71746.31,"d":"$71,746.31"},{"v":72117.31,"d":"$72,117.31"},{"v":0.9,"d":"0.90"},{"v":23568.11,"d":"$23,568.11"},{"v":6349.39,"d":"$6,349.39"},{"v":1977.03,"d":"$1,977.03"},{"v":0,"d":"$0.00"},{"v":735.83,"d":"$735.83"},{"v":1447.32,"d":"$1,447.32"},{"v":0,"d":"$0.00"},{"v":534.63,"d":"$534.63"},{"v":0,"d":"$0.00"},{"v":534.63,"d":"$534.63"},{"v":0,"d":"$0.00"},{"v":0,"d":"$0.00"},{"v":641.53,"d":"$641.53"},{"v":35788.469999999994,"d":"$35,788.47"},{"v":748.8,"d":"$748.80"},{"v":1040,"d":"$1,040.00"},{"v":2704,"d":"$2,704.00"},{"v":282.88,"d":"$282.88"},{"v":4750.719999999999,"d":"$4,750.72"},{"v":4505.58,"d":"$4,505.58"},{"v":11323.52,"d":"$11,323.52"},{"v":7795.84,"d":"$7,795.84"},{"v":17365.32348,"d":"$17,365.32"},{"v":50516.663479999996,"d":"$50,516.66"},{"v":7919.64,"d":"$7,919.64"},{"v":42597.02348,"d":"$42,597.02"},{"v":49724.69348,"d":"$49,724.69"},{"v":1319.85,"d":"$1,319.85"},{"v":1319.85,"d":"$1,319.85"},{"v":1319.85,"d":"$1,319.85"},{"v":1319.85,"d":"$1,319.85"},{"v":0,"d":"$0.00"},{"v":0,"d":"$0.00"},{"v":0,"d":"$0.00"},{"v":0,"d":"$0.00"},{"v":0,"d":"$0.00"},{"v":3299.62,"d":"$3,299.62"},{"v":1336.59,"d":"$1,336.59"},{"v":0,"d":"$0.00"},{"v":9915.61,"d":"$9,915.61"},{"v":95428.82,"d":"$95,428.82"},{"v":609.64,"d":"$609.64"},{"v":0,"d":"$0.00"},{"v":406.15999999999997,"d":"$406.16"},{"v":95428.77347999999,"d":"$95,428.77"}]
["28006017004","OHIO COMM CONS SCHOOL DIST 17",71,{"v":938682.25,"d":"$938,682.25"},{"v":1620827.92,"d":"$1,620,827.92"},{"v":1.7267056237613951,"d":"173%"},4,{"v":59.79,"d":"$59.79"},{"v":143498.78,"d":"$143,498.78"},{"v":143558.57,"d":"$143,558.57"},{"v":0.9,"d":"0.90"},{"v":227190.11,"d":"$227,190.11"},{"v":45438.02,"d":"$45,438.02"},{"v":21338.29,"d":"$21,338.29"},{"v":9413.95,"d":"$9,413.95"},{"v":7934.49,"d":"$7,934.49"},{"v":12174.94,"d":"$12,174.94"},{"v":4403.73,"d":"$4,403.73"},{"v":8019.54,"d":"$8,019.54"},{"v":10869.66,"d":"$10,869.66"},{"v":6148.31,"d":"$6,148.31"},{"v":16125.48,"d":"$16,125.48"},{"v":13884.07,"d":"$13,884.07"},{"v":9623.07,"d":"$9,623.07"},{"v":392563.6599999999,"d":"$392,563.66"},{"v":6390,"d":"$6,390.00"},{"v":8875,"d":"$8,875.00"},{"v":23075,"d":"$23,075.00"},{"v":2414,"d":"$2,414.00"},{"v":20270.5,"d":"$20,270.50"},{"v":11293,"d":"$11,293.00"},{"v":96631,"d":"$96,631.00"},{"v":66527,"d":"$66,527.00"},{"v":190713.936,"d":"$190,713.94"},{"v":426189.436,"d":"$426,189.44"},{"v":67583.48,"d":"$67,583.48"},{"v":358605.956,"d":"$358,605.96"},{"v":419431.086,"d":"$419,431.09"},{"v":18477.9,"d":"$18,477.90"},{"v":18477.9,"d":"$18,477.90"},{"v":19137.82,"d":"$19,137.82"},{"v":19137.82,"d":"$19,137.82"},{"v":0,"d":"$0.00"},{"v":0,"d":"$0.00"},{"v":0,"d":"$0.00"},{"v":0,"d":"$0.00"},{"v":0,"d":"$0.00"},{"v":32996.25,"d":"$32,996.25"},{"v":13365.9,"d":"$13,365.90"},{"v":5093.86,"d":"$5,093.86"},{"v":126687.45,"d":"$126,687.45"},{"v":938682.25,"d":"$938,682.25"},{"v":60400.27,"d":"$60,400.27"},{"v":0,"d":"$0.00"},{"v":50579.810000000005,"d":"$50,579.81"},{"v":938682.1959999999,"d":"$938,682.20"}]
["28006084004","MALDEN COMM CONS SCH DIST 84",79.03,{"v":1002866.51,"d":"$1,002,866.51"},{"v":958663.47,"d":"$958,663.47"},{"v":0.9559233062833058,"d":"96%"},3,{"v":1139.66,"d":"$1,139.66"},{"v":163443.17999999996,"d":"$163,443.18"},{"v":164582.83999999997,"d":"$164,582.84"},{"v":0.9,"d":"0.90"},{"v":239114.45,"d":"$239,114.45"},{"v":47822.88,"d":"$47,822.88"},{"v":24476.28,"d":"$24,476.28"},{"v":10669.14,"d":"$10,669.14"},{"v":8283.01,"d":"$8,283.01"},{"v":14880.49,"d":"$14,880.49"},{"v":5504.67,"d":"$5,504.67"},{"v":9088.81,"d":"$9,088.81"},{"v":12318.94,"d":"$12,318.94"},{"v":6682.95,"d":"$6,682.95"},{"v":18275.54,"d":"$18,275.54"},{"v":15735.28,"d":"$15,735.28"},{"v":10906.14,"d":"$10,906.14"},{"v":423758.58,"d":"$423,758.58"},{"v":7075.800000000001,"d":"$7,075.80"},{"v":9878.75,"d":"$9,878.75"},{"v":25684.75,"d":"$25,684.75"},{"v":2687.02,"d":"$2,687.02"},{"v":22563.059999999998,"d":"$22,563.06"},{"v":13814.100000000002,"d":"$13,814.10"},{"v":107559.83,"d":"$107,559.83"},{"v":74051.11,"d":"$74,051.11"},{"v":201624.03792000003,"d":"$201,624.04"},{"v":464938.45792,"d":"$464,938.46"},{"v":75227.07,"d":"$75,227.07"},{"v":389711.38792,"d":"$389,711.39"},{"v":457415.74792,"d":"$457,415.75"},{"v":15838.2,"d":"$15,838.20"},{"v":15838.2,"d":"$15,838.20"},{"v":16498.12,"d":"$16,498.12"},{"v":16498.12,"d":"$16,498.12"},{"v":0,"d":"$0.00"},{"v":0,"d":"$0.00"},{"v":0,"d":"$0.00"},{"v":0,"d":"$0.00"},{"v":0,"d":"$0.00"},{"v":36955.8,"d":"$36,955.80"},{"v":14969.8,"d":"$14,969.80"},{"v":5093.86,"d":"$5,093.86"},{"v":121692.1,"d":"$121,692.10"},{"v":1002866.51,"d":"$1,002,866.51"},{"v":29751.349999999995,"d":"$29,751.35"},{"v":0,"d":"$0.00"},{"v":67238.45999999998,"d":"$67,238.46"},{"v":1002866.42792,"d":"$1,002,866.43"}]
["28006094004","LADD COMM CONS SCHOOL DIST 94",178.75,{"v":2354964.12,"d":"$2,354,964.12"},{"v":1927314.5999999999,"d":"$1,927,314.60"},{"v":0.8184050804137092,"d":"82%"},2,{"v":8419.54,"d":"$8,419.54"},{"v":508151.05000000005,"d":"$508,151.05"},{"v":516570.59,"d":"$516,570.59"},{"v":0.9,"d":"0.90"},{"v":550402.56,"d":"$550,402.56"},{"v":110080.51,"d":"$110,080.51"},{"v":55228.53,"d":"$55,228.53"},{"v":24476.28,"d":"$24,476.28"},{"v":19148.58,"d":"$19,148.58"},{"v":33142.91,"d":"$33,142.91"},{"v":12660.74,"d":"$12,660.74"},{"v":21118.12,"d":"$21,118.12"},{"v":28261.11,"d":"$28,261.11"},{"v":15771.76,"d":"$15,771.76"},{"v":41926.24,"d":"$41,926.24"},{"v":36098.59,"d":"$36,098.59"},{"v":25340.75,"d":"$25,340.75"},{"v":973656.68,"d":"$973,656.68"},{"v":15795,"d":"$15,795.00"},{"v":22343.75,"d":"$22,343.75"},{"v":58093.75,"d":"$58,093.75"},{"v":6077.5,"d":"$6,077.50"},{"v":102066.25,"d":"$102,066.25"},{"v":28757.5,"d":"$28,757.50"},{"v":243278.75,"d":"$243,278.75"},{"v":167488.75,"d":"$167,488.75"},{"v":465515.709,"d":"$465,515.71"},{"v":1109416.959,"d":"$1,109,416.96"},{"v":170148.55,"d":"$170,148.55"},{"v":939268.409,"d":"$939,268.41"},{"v":1092402.099,"d":"$1,092,402.10"},{"v":38935.57,"d":"$38,935.57"},{"v":38935.57,"d":"$38,935.57"},{"v":40915.35,"d":"$40,915.35"},{"v":40915.35,"d":"$40,915.35"},{"v":0,"d":"$0.00"},{"v":0,"d":"$0.00"},{"v":0,"d":"$0.00"},{"v":0,"d":"$0.00"},{"v":0,"d":"$0.00"},{"v":83150.55,"d":"$83,150.55"},{"v":33682.06,"d":"$33,682.06"},{"v":12370.81,"d":"$12,370.81"},{"v":288905.26,"d":"$288,905.26"},{"v":2354964.12,"d":"$2,354,964.12"},{"v":45068.95,"d":"$45,068.95"},{"v":2.73,"d":"$2.73"},{"v":61320.729999999996,"d":"$61,320.73"},{"v":2354964.039,"d":"$2,354,964.04"}]
["28006098002","DALZELL SCHOOL DISTRICT 98",61.62,{"v":816679.08,"d":"$816,679.08"},{"v":598191.09,"d":"$598,191.09"},{"v":0.7324677522044521,"d":"73%"},1,{"v":18372.85,"d":"$18,372.85"},{"v":359685.48,"d":"$359,685.48"},{"v":378058.32999999996,"d":"$378,058.33"},{"v":0.9,"d":"0.90"},{"v":190161.89,"d":"$190,161.89"},{"v":38032.37,"d":"$38,032.37"},{"v":18827.91,"d":"$18,827.91"},{"v":8158.76,"d":"$8,158.76"},{"v":6637.08,"d":"$6,637.08"},{"v":12174.94,"d":"$12,174.94"},{"v":3853.26,"d":"$3,853.26"},{"v":7217.58,"d":"$7,217.58"},{"v":9420.37,"d":"$9,420.37"},{"v":5346.36,"d":"$5,346.36"},{"v":13975.41,"d":"$13,975.41"},{"v":12032.86,"d":"$12,032.86"},{"v":8660.76,"d":"$8,660.76"},{"v":334499.55,"d":"$334,499.55"},{"v":5531.4,"d":"$5,531.40"},{"v":7702.5,"d":"$7,702.50"},{"v":20026.5,"d":"$20,026.50"},{"v":2095.08,"d":"$2,095.08"},{"v":35185.020000000004,"d":"$35,185.02"},{"v":10843.26,"d":"$10,843.26"},{"v":83864.81999999999,"d":"$83,864.82"},{"v":57737.94,"d":"$57,737.94"},{"v":161427.58067999998,"d":"$161,427.58"},{"v":384414.10068,"d":"$384,414.10"},{"v":58654.84,"d":"$58,654.84"},{"v":325759.26068000006,"d":"$325,759.26"},{"v":378548.61068000004,"d":"$378,548.61"},{"v":14518.35,"d":"$14,518.35"},{"v":14518.35,"d":"$14,518.35"},{"v":15178.27,"d":"$15,178.27"},{"v":15178.27,"d":"$15,178.27"},{"v":0,"d":"$0.00"},{"v":0,"d":"$0.00"},{"v":0,"d":"$0.00"},{"v":0,"d":"$0.00"},{"v":0,"d":"$0.00"},{"v":28376.77,"d":"$28,376.77"},{"v":11494.67,"d":"$11,494.67"},{"v":4366.17,"d":"$4,366.17"},{"v":103630.85,"d":"$103,630.85"},{"v":816679.08,"d":"$816,679.08"},{"v":28546.850000000002,"d":"$28,546.85"},{"v":0,"d":"$0.00"},{"v":37163.25,"d":"$37,163.25"},{"v":816679.01068,"d":"$816,679.01"}]
["28006099004","SPRING VALLEY C C SCH DIST 99",572.04,{"v":8135697.57,"d":"$8,135,697.57"},{"v":5823799.77,"d":"$5,823,799.77"},{"v":0.7158328735663658,"d":"72%"},1,{"v":236592.68,"d":"$236,592.68"},{"v":4056457.730000001,"d":"$4,056,457.73"},{"v":4293050.410000001,"d":"$4,293,050.41"},{"v":0.9,"d":"0.90"},{"v":1826307.27,"d":"$1,826,307.27"},{"v":365261.45,"d":"$365,261.45"},{"v":178865.14,"d":"$178,865.14"},{"v":79077.22,"d":"$79,077.22"},{"v":68036.52,"d":"$68,036.52"},{"v":109574.53,"d":"$109,574.53"},{"v":41285.02,"d":"$41,285.02"},{"v":67631.45,"d":"$67,631.45"},{"v":91305.14,"d":"$91,305.14"},{"v":50523.1,"d":"$50,523.10"},{"v":135454.03,"d":"$135,454.03"},{"v":116626.23,"d":"$116,626.23"},{"v":81154.55,"d":"$81,154.55"},{"v":3211101.6500000004,"d":"$3,211,101.65"},{"v":51086.7,"d":"$51,086.70"},{"v":71505,"d":"$71,505.00"},{"v":185913,"d":"$185,913.00"},{"v":19449.36,"d":"$19,449.36"},{"v":326634.83999999997,"d":"$326,634.84"},{"v":95462.34999999999,"d":"$95,462.35"},{"v":778546.44,"d":"$778,546.44"},{"v":536001.48,"d":"$536,001.48"},{"v":1636893.82956,"d":"$1,636,893.83"},{"v":3701492.99956,"d":"$3,701,493.00"},{"v":544513.43,"d":"$544,513.43"},{"v":3156979.5695599997,"d":"$3,156,979.57"},{"v":3647041.64956,"d":"$3,647,041.65"},{"v":158382,"d":"$158,382.00"},{"v":158382,"d":"$158,382.00"},{"v":164981.25,"d":"$164,981.25"},{"v":164981.25,"d":"$164,981.25"},{"v":40255.42,"d":"$40,255.42"},{"v":40255.42,"d":"$40,255.42"},{"v":41575.27,"d":"$41,575.27"},{"v":41575.27,"d":"$41,575.27"},{"v":50154.3,"d":"$50,154.30"},{"v":267269.62,"d":"$267,269.62"},{"v":108263.79,"d":"$108,263.79"},{"v":41478.61,"d":"$41,478.61"},{"v":1277554.2000000004,"d":"$1,277,554.20"},{"v":8135697.57,"d":"$8,135,697.57"},{"v":741859.85,"d":"$741,859.85"},{"v":52868.52999999999,"d":"$52,868.53"},{"v":267577.9,"d":"$267,577.90"},{"v":8135697.49956,"d":"$8,135,697.50"}]
["28006103022","DEPUE UNIT SCHOOL DIST 103",311.7,{"v":4918742.37,"d":"$4,918,742.37"},{"v":3884173.62,"d":"$3,884,173.62"},{"v":0.7896680345955993,"d":"79%"},2,{"v":45149.27,"d":"$45,149.27"},{"v":3286700.5,"d":"$3,286,700.50"},{"v":3331849.77,"d":"$3,331,849.77"},{"v":0.9,"d":"0.90"},{"v":1000533.75,"d":"$1,000,533.75"},{"v":244465.05,"d":"$244,465.05"},{"v":101362.33,"d":"$101,362.33"},{"v":39791.38,"d":"$39,791.38"},{"v":40791.12,"d":"$40,791.12"},{"v":70744.37,"d":"$70,744.37"},{"v":22018.68,"d":"$22,018.68"},{"v":37959.15,"d":"$37,959.15"},{"v":44203.28,"d":"$44,203.28"},{"v":27266.43,"d":"$27,266.43"},{"v":65576.95,"d":"$65,576.95"},{"v":56461.9,"d":"$56,461.90"},{"v":45549.19,"d":"$45,549.19"},{"v":1796723.5799999996,"d":"$1,796,723.58"},{"v":27985.5,"d":"$27,985.50"},{"v":38962.5,"d":"$38,962.50"},{"v":101302.5,"d":"$101,302.50"},{"v":10597.8,"d":"$10,597.80"},{"v":177980.7,"d":"$177,980.70"},{"v":123377.52999999998,"d":"$123,377.53"},{"v":424223.69999999995,"d":"$424,223.70"},{"v":292062.89999999997,"d":"$292,062.90"},{"v":994539.7788,"d":"$994,539.78"},{"v":2191032.9088,"d":"$2,191,032.91"},{"v":296700.99,"d":"$296,700.99"},{"v":1894331.9187999999,"d":"$1,894,331.92"},{"v":2161362.8087999998,"d":"$2,161,362.81"},{"v":89089.87,"d":"$89,089.87"},{"v":89089.87,"d":"$89,089.87"},{"v":93049.42,"d":"$93,049.42"},{"v":93049.42,"d":"$93,049.42"},{"v":69292.12,"d":"$69,292.12"},{"v":69292.12,"d":"$69,292.12"},{"v":71931.82,"d":"$71,931.82"},{"v":71931.82,"d":"$71,931.82"},{"v":86450.17,"d":"$86,450.17"},{"v":145843.42,"d":"$145,843.42"},{"v":59077.27,"d":"$59,077.27"},{"v":22558.54,"d":"$22,558.54"},{"v":960655.8600000001,"d":"$960,655.86"},{"v":4918742.37,"d":"$4,918,742.37"},{"v":417165.12,"d":"$417,165.12"},{"v":105405.66,"d":"$105,405.66"},{"v":199032.88,"d":"$199,032.88"},{"v":4918742.248799999,"d":"$4,918,742.25"}]
["28006115002","PRINCETON ELEM SCHOOL DIST 115",983.2,{"v":12955248.91,"d":"$12,955,248.91"},{"v":11045377.959999999,"d":"$11,045,377.96"},{"v":0.8525793704723191,"d":"85%"},2,{"v":21018.19,"d":"$21,018.19"},{"v":1933994.97,"d":"$1,933,994.97"},{"v":1955013.16,"d":"$1,955,013.16"},{"v":0.9,"d":"0.90"},{"v":3032548.7,"d":"$3,032,548.70"},{"v":606509.73,"d":"$606,509.73"},{"v":308150.12,"d":"$308,150.12"},{"v":136816.14,"d":"$136,816.14"},{"v":105122.59,"d":"$105,122.59"},{"v":187358.92,"d":"$187,358.92"},{"v":71560.71,"d":"$71,560.71"},{"v":116550.64,"d":"$116,550.64"},{"v":157972.39,"d":"$157,972.39"},{"v":87412.98,"d":"$87,412.98"},{"v":234356.97,"d":"$234,356.97"},{"v":201781.89,"d":"$201,781.89"},{"v":139855.28,"d":"$139,855.28"},{"v":5385997.06,"d":"$5,385,997.06"},{"v":87708.59999999999,"d":"$87,708.60"},{"v":122900,"d":"$122,900.00"},{"v":319539.99999999994,"d":"$319,540.00"},{"v":33428.799999999996,"d":"$33,428.80"},{"v":561407.2,"d":"$561,407.20"},{"v":163128.09999999998,"d":"$163,128.10"},{"v":1338135.2,"d":"$1,338,135.20"},{"v":921258.3999999999,"d":"$921,258.40"},{"v":2559627.1097999997,"d":"$2,559,627.11"},{"v":6107133.409799999,"d":"$6,107,133.41"},{"v":935888.41,"d":"$935,888.41"},{"v":5171244.9997999985,"d":"$5,171,245.00"},{"v":6013544.559799999,"d":"$6,013,544.56"},{"v":205236.67,"d":"$205,236.67"},{"v":205236.67,"d":"$205,236.67"},{"v":213815.7,"d":"$213,815.70"},{"v":213815.7,"d":"$213,815.70"},{"v":0,"d":"$0.00"},{"v":0,"d":"$0.00"},{"v":0,"d":"$0.00"},{"v":0,"d":"$0.00"},{"v":0,"d":"$0.00"},{"v":459967.72,"d":"$459,967.72"},{"v":186320.64,"d":"$186,320.64"},{"v":71314.11,"d":"$71,314.11"},{"v":1555707.2100000002,"d":"$1,555,707.21"},{"v":12955248.91,"d":"$12,955,248.91"},{"v":552213.8099999999,"d":"$552,213.81"},{"v":0,"d":"$0.00"},{"v":519899.6,"d":"$519,899.60"},{"v":12955248.829799999,"d":"$12,955,248.83"}]
["28006303026","LA MOILLE C U SCHOOL DIST 303",187.11,{"v":2490952.03,"d":"$2,490,952.03"},{"v":3519317.59,"d":"$3,519,317.59"},{"v":1.412840370916336,"d":"141%"},4,{"v":158.66,"d":"$158.66"},{"v":569186.74,"d":"$569,186.74"},{"v":569345.4,"d":"$569,345.40"},{"v":0.9,"d":"0.90"},{"v":581123.07,"d":"$581,123.07"},{"v":143744.08,"d":"$143,744.08"},{"v":60754.86,"d":"$60,754.86"},{"v":23535.97,"d":"$23,535.97"},{"v":19852.61,"d":"$19,852.61"},{"v":42270.62,"d":"$42,270.62"},{"v":12660.74,"d":"$12,660.74"},{"v":22722.03,"d":"$22,722.03"},{"v":26087.18,"d":"$26,087.18"},{"v":16306.39,"d":"$16,306.39"},{"v":38701.15,"d":"$38,701.15"},{"v":33321.78,"d":"$33,321.78"},{"v":27265.36,"d":"$27,265.36"},{"v":1048345.84,"d":"$1,048,345.84"},{"v":16720.2,"d":"$16,720.20"},{"v":23388.75,"d":"$23,388.75"},{"v":60810.75,"d":"$60,810.75"},{"v":6361.74,"d":"$6,361.74"},{"v":53419.9,"d":"$53,419.90"},{"v":76358.84,"d":"$76,358.84"},{"v":254656.71000000002,"d":"$254,656.71"},{"v":175322.07,"d":"$175,322.07"},{"v":495541.6820400001,"d":"$495,541.68"},{"v":1162580.64204,"d":"$1,162,580.64"},{"v":178106.26,"d":"$178,106.26"},{"v":984474.38204,"d":"$984,474.38"},{"v":1144770.01204,"d":"$1,144,770.01"},{"v":39595.5,"d":"$39,595.50"},{"v":39595.5,"d":"$39,595.50"},{"v":41575.27,"d":"$41,575.27"},{"v":41575.27,"d":"$41,575.27"},{"v":0,"d":"$0.00"},{"v":0,"d":"$0.00"},{"v":0,"d":"$0.00"},{"v":0,"d":"$0.00"},{"v":0,"d":"$0.00"},{"v":87110.1,"d":"$87,110.10"},{"v":35285.97,"d":"$35,285.97"},{"v":13098.51,"d":"$13,098.51"},{"v":297836.12,"d":"$297,836.12"},{"v":2490952.03,"d":"$2,490,952.03"},{"v":110491.28,"d":"$110,491.28"},{"v":0,"d":"$0.00"},{"v":138397.51999999996,"d":"$138,397.52"},{"v":2490951.97204,"d":"$2,490,951.97"}]
["28006340026","BUREAU VALLEY CUSD 340",911.53,{"v":12107723.23,"d":"$12,107,723.23"},{"v":14010454.61,"d":"$14,010,454.61"},{"v":1.157150220884261,"d":"116%"},4,{"v":771.24,"d":"$771.24"},{"v":3029181.1299999994,"d":"$3,029,181.13"},{"v":3029952.3699999996,"d":"$3,029,952.37"},{"v":0.9,"d":"0.90"},{"v":2809428.02,"d":"$2,809,428.02"},{"v":692266.32,"d":"$692,266.32"},{"v":299443.23,"d":"$299,443.23"},{"v":119656.89,"d":"$119,656.89"},{"v":96104.35,"d":"$96,104.35"},{"v":210487.62,"d":"$210,487.62"},{"v":66056.04,"d":"$66,056.04"},{"v":112273.56,"d":"$112,273.56"},{"v":132609.85,"d":"$132,609.85"},{"v":80462.71,"d":"$80,462.71"},{"v":196730.85,"d":"$196,730.85"},{"v":169385.71,"d":"$169,385.71"},{"v":134722.98,"d":"$134,722.98"},{"v":5119628.129999999,"d":"$5,119,628.13"},{"v":81280.8,"d":"$81,280.80"},{"v":113941.25,"d":"$113,941.25"},{"v":296247.25,"d":"$296,247.25"},{"v":30992.019999999997,"d":"$30,992.02"},{"v":260241.81,"d":"$260,241.81"},{"v":366450.34,"d":"$366,450.34"},{"v":1240592.33,"d":"$1,240,592.33"},{"v":854103.6099999999,"d":"$854,103.61"},{"v":2408859.16092,"d":"$2,408,859.16"},{"v":5652708.57092,"d":"$5,652,708.57"},{"v":867667.17,"d":"$867,667.17"},{"v":4785041.400919999,"d":"$4,785,041.40"},{"v":5565941.850919999,"d":"$5,565,941.85"},{"v":183459.15,"d":"$183,459.15"},{"v":183459.15,"d":"$183,459.15"},{"v":191378.25,"d":"$191,378.25"},{"v":191378.25,"d":"$191,378.25"},{"v":1319.85,"d":"$1,319.85"},{"v":1319.85,"d":"$1,319.85"},{"v":1319.85,"d":"$1,319.85"},{"v":1319.85,"d":"$1,319.85"},{"v":1979.77,"d":"$1,979.77"},{"v":426311.55,"d":"$426,311.55"},{"v":172687.42,"d":"$172,687.42"},{"v":66220.24,"d":"$66,220.24"},{"v":1422153.18,"d":"$1,422,153.18"},{"v":12107723.23,"d":"$12,107,723.23"},{"v":433107.9,"d":"$433,107.90"},{"v":73.71,"d":"$73.71"},{"v":397612.62999999995,"d":"$397,612.63"},{"v":12107723.160919998,"d":"$12,107,723.16"}]
["28006500015","PRINCETON HIGH SCH DIST 500",495.66,{"v":7156108.52,"d":"$7,156,108.52"},{"v":5952949.8,"d":"$5,952,949.80"},{"v":0.8318696933343879,"d":"83%"},2,{"v":21463.38,"d":"$21,463.38"},{"v":853945.2100000001,"d":"$853,945.21"},{"v":875408.5900000001,"d":"$875,408.59"},{"v":0.9,"d":"0.90"},{"v":1558463.35,"d":"$1,558,463.35"},{"v":519435.82,"d":"$519,435.82"},{"v":178295.71,"d":"$178,295.71"},{"v":59191.29,"d":"$59,191.29"},{"v":51501.06,"d":"$51,501.06"},{"v":152646.12,"d":"$152,646.12"},{"v":36330.82,"d":"$36,330.82"},{"v":66027.54,"d":"$66,027.54"},{"v":59420.8,"d":"$59,420.80"},{"v":44107.47,"d":"$44,107.47"},{"v":88152.62,"d":"$88,152.62"},{"v":75899.61,"d":"$75,899.61"},{"v":79229.94,"d":"$79,229.94"},{"v":2968702.1500000004,"d":"$2,968,702.15"},{"v":44609.4,"d":"$44,609.40"},{"v":61957.5,"d":"$61,957.50"},{"v":161089.5,"d":"$161,089.50"},{"v":16852.440000000002,"d":"$16,852.44"},{"v":283021.86,"d":"$283,021.86"},{"v":425771.94,"d":"$425,771.94"},{"v":674593.26,"d":"$674,593.26"},{"v":464433.42000000004,"d":"$464,433.42"},{"v":1361021.74524,"d":"$1,361,021.75"},{"v":3493351.06524,"d":"$3,493,351.07"},{"v":471808.84,"d":"$471,808.84"},{"v":3021542.2252399996,"d":"$3,021,542.23"},{"v":3446170.17524,"d":"$3,446,170.18"},{"v":93049.42,"d":"$93,049.42"},{"v":93049.42,"d":"$93,049.42"},{"v":97008.97,"d":"$97,008.97"},{"v":97008.97,"d":"$97,008.97"},{"v":0,"d":"$0.00"},{"v":0,"d":"$0.00"},{"v":0,"d":"$0.00"},{"v":0,"d":"$0.00"},{"v":0,"d":"$0.00"},{"v":231633.67,"d":"$231,633.67"},{"v":93828.61,"d":"$93,828.61"},{"v":35657.05,"d":"$35,657.05"},{"v":741236.1100000001,"d":"$741,236.11"},{"v":7156108.52,"d":"$7,156,108.52"},{"v":142802.12000000002,"d":"$142,802.12"},{"v":0,"d":"$0.00"},{"v":204051.39999999997,"d":"$204,051.40"},{"v":7156108.4352400005,"d":"$7,156,108.44"}]
["28006502017","HALL HIGH SCH DIST 502",399.5,{"v":6039323.18,"d":"$6,039,323.18"},{"v":4504626.4,"d":"$4,504,626.40"},{"v":0.7458826536916676,"d":"75%"},1,{"v":109890.9,"d":"$109,890.90"},{"v":2250810.5300000003,"d":"$2,250,810.53"},{"v":2360701.43,"d":"$2,360,701.43"},{"v":0.9,"d":"0.90"},{"v":1281996.72,"d":"$1,281,996.72"},{"v":427289.49,"d":"$427,289.49"},{"v":143647.15,"d":"$143,647.15"},{"v":47641.77,"d":"$47,641.77"},{"v":44543.7,"d":"$44,543.70"},{"v":122579.46,"d":"$122,579.46"},{"v":29174.75,"d":"$29,174.75"},{"v":53196.28,"d":"$53,196.28"},{"v":47826.5,"d":"$47,826.50"},{"v":35553.29,"d":"$35,553.29"},{"v":70952.11,"d":"$70,952.11"},{"v":61089.93,"d":"$61,089.93"},{"v":63833.03,"d":"$63,833.03"},{"v":2429324.1799999997,"d":"$2,429,324.18"},{"v":35955,"d":"$35,955.00"},{"v":49937.5,"d":"$49,937.50"},{"v":129837.5,"d":"$129,837.50"},{"v":13583,"d":"$13,583.00"},{"v":228114.5,"d":"$228,114.50"},{"v":343170.5,"d":"$343,170.50"},{"v":543719.5,"d":"$543,719.50"},{"v":374331.5,"d":"$374,331.50"},{"v":1164101.6369999999,"d":"$1,164,101.64"},{"v":2882750.637,"d":"$2,882,750.64"},{"v":380276.06,"d":"$380,276.06"},{"v":2502474.577,"d":"$2,502,474.58"},{"v":2844723.0270000002,"d":"$2,844,723.03"},{"v":93709.35,"d":"$93,709.35"},{"v":93709.35,"d":"$93,709.35"},{"v":97668.9,"d":"$97,668.90"},{"v":97668.9,"d":"$97,668.90"},{"v":17158.05,"d":"$17,158.05"},{"v":17158.05,"d":"$17,158.05"},{"v":17817.97,"d":"$17,817.97"},{"v":17817.97,"d":"$17,817.97"},{"v":21777.52,"d":"$21,777.52"},{"v":186758.77,"d":"$186,758.77"},{"v":75650.99,"d":"$75,650.99"},{"v":28380.1,"d":"$28,380.10"},{"v":765275.9199999999,"d":"$765,275.92"},{"v":6039323.18,"d":"$6,039,323.18"},{"v":346385.6,"d":"$346,385.60"},{"v":4990.870000000001,"d":"$4,990.87"},{"v":206048.19,"d":"$206,048.19"},{"v":6039323.127,"d":"$6,039,323.13"}]
["28006505016","OHIO COMMUNITY H S DIST 505",29.81,{"v":427229.18,"d":"$427,229.18"},{"v":1371615.71,"d":"$1,371,615.71"},{"v":3.21049163823501,"d":"321%"},4,{"v":27.21,"d":"$27.21"},{"v":53316.27,"d":"$53,316.27"},{"v":53343.479999999996,"d":"$53,343.48"},{"v":0.9,"d":"0.90"},{"v":96005.38,"d":"$96,005.38"},{"v":31998.59,"d":"$31,998.59"},{"v":10105.83,"d":"$10,105.83"},{"v":2887.38,"d":"$2,887.38"},{"v":3217.98,"d":"$3,217.98"},{"v":8480.34,"d":"$8,480.34"},{"v":1651.4,"d":"$1,651.40"},{"v":3742.45,"d":"$3,742.45"},{"v":2898.57,"d":"$2,898.57"},{"v":2405.86,"d":"$2,405.86"},{"v":4300.12,"d":"$4,300.12"},{"v":3702.42,"d":"$3,702.42"},{"v":4490.76,"d":"$4,490.76"},{"v":175887.08000000002,"d":"$175,887.08"},{"v":2682.9,"d":"$2,682.90"},{"v":3726.2500000000005,"d":"$3,726.25"},{"v":9688.25,"d":"$9,688.25"},{"v":1013.5400000000001,"d":"$1,013.54"},{"v":8510.75,"d":"$8,510.75"},{"v":25606.79,"d":"$25,606.79"},{"v":40571.41,"d":"$40,571.41"},{"v":27931.97,"d":"$27,931.97"},{"v":83163.72084,"d":"$83,163.72"},{"v":202895.58084,"d":"$202,895.58"},{"v":28375.54,"d":"$28,375.54"},{"v":174520.04084,"d":"$174,520.04"},{"v":200058.02084,"d":"$200,058.02"},{"v":7259.17,"d":"$7,259.17"},{"v":7259.17,"d":"$7,259.17"},{"v":7919.1,"d":"$7,919.10"},{"v":7919.1,"d":"$7,919.10"},{"v":0,"d":"$0.00"},{"v":0,"d":"$0.00"},{"v":0,"d":"$0.00"},{"v":0,"d":"$0.00"},{"v":0,"d":"$0.00"},{"v":13858.42,"d":"$13,858.42"},{"v":5613.67,"d":"$5,613.67"},{"v":1455.39,"d":"$1,455.39"},{"v":51284.02,"d":"$51,284.02"},{"v":427229.18,"d":"$427,229.18"},{"v":13496.76,"d":"$13,496.76"},{"v":0,"d":"$0.00"},{"v":8195.47,"d":"$8,195.47"},{"v":427229.12084000005,"d":"$427,229.12"}]
["28037190002","COLONA SCHOOL DISTRICT 190",357.72,{"v":4744325.16,"d":"$4,744,325.16"},{"v":3583969.21,"d":"$3,583,969.21"},{"v":0.7554223391383232,"d":"76%"},1,{"v":72476.79,"d":"$72,476.79"},{"v":2337258.25,"d":"$2,337,258.25"},{"v":2409735.04,"d":"$2,409,735.04"},{"v":0.9,"d":"0.90"},{"v":1105825.91,"d":"$1,105,825.91"},{"v":221165.18,"d":"$221,165.18"},{"v":111712.26,"d":"$111,712.26"},{"v":48952.56,"d":"$48,952.56"},{"v":38657.64,"d":"$38,657.64"},{"v":67638.6,"d":"$67,638.60"},{"v":25871.94,"d":"$25,871.94"},{"v":42236.24,"d":"$42,236.24"},{"v":56522.23,"d":"$56,522.23"},{"v":31543.52,"d":"$31,543.52"},{"v":83852.49,"d":"$83,852.49"},{"v":72197.19,"d":"$72,197.19"},{"v":50681.5,"d":"$50,681.50"},{"v":1956857.2599999998,"d":"$1,956,857.26"},{"v":31902.299999999996,"d":"$31,902.30"},{"v":44715,"d":"$44,715.00"},{"v":116258.99999999999,"d":"$116,259.00"},{"v":12162.48,"d":"$12,162.48"},{"v":204258.12,"d":"$204,258.12"},{"v":59290.42999999999,"d":"$59,290.43"},{"v":486856.9199999999,"d":"$486,856.92"},{"v":335183.64,"d":"$335,183.64"},{"v":938886.53508,"d":"$938,886.54"},{"v":2229514.42508,"d":"$2,229,514.43"},{"v":340506.51,"d":"$340,506.51"},{"v":1889007.9150799995,"d":"$1,889,007.92"},{"v":2195463.7650799993,"d":"$2,195,463.77"},{"v":77871.15,"d":"$77,871.15"},{"v":77871.15,"d":"$77,871.15"},{"v":81170.77,"d":"$81,170.77"},{"v":81170.77,"d":"$81,170.77"},{"v":2639.7,"d":"$2,639.70"},{"v":2639.7,"d":"$2,639.70"},{"v":2639.7,"d":"$2,639.70"},{"v":2639.7,"d":"$2,639.70"},{"v":3299.62,"d":"$3,299.62"},{"v":166961.02,"d":"$166,961.02"},{"v":67631.45,"d":"$67,631.45"},{"v":25469.32,"d":"$25,469.32"},{"v":592004.0499999999,"d":"$592,004.05"},{"v":4744325.16,"d":"$4,744,325.16"},{"v":247887.09999999998,"d":"$247,887.10"},{"v":816.28,"d":"$816.28"},{"v":160924.63999999998,"d":"$160,924.64"},{"v":4744325.075079999,"d":"$4,744,325.08"}]
["28037223026","ORION COMM UNIT SCHOOL DIST 223",967.25,{"v":12157470.32,"d":"$12,157,470.32"},{"v":10082415.08,"d":"$10,082,415.08"},{"v":0.8293185025024186,"d":"83%"},2,{"v":33868.47,"d":"$33,868.47"},{"v":2303809.4299999997,"d":"$2,303,809.43"},{"v":2337677.9,"d":"$2,337,677.90"},{"v":0.9,"d":"0.90"},{"v":2822440.35,"d":"$2,822,440.35"},{"v":685727.71,"d":"$685,727.71"},{"v":317455.04,"d":"$317,455.04"},{"v":128349,"d":"$128,349.00"},{"v":91357.75,"d":"$91,357.75"},{"v":219091.53,"d":"$219,091.53"},{"v":69909.3,"d":"$69,909.30"},{"v":119223.82,"d":"$119,223.82"},{"v":142754.86,"d":"$142,754.86"},{"v":86076.39,"d":"$86,076.39"},{"v":211781.3,"d":"$211,781.30"},{"v":182344.18,"d":"$182,344.18"},{"v":143062.97,"d":"$143,062.97"},{"v":5219574.199999999,"d":"$5,219,574.20"},{"v":86850,"d":"$86,850.00"},{"v":120906.25,"d":"$120,906.25"},{"v":314356.25,"d":"$314,356.25"},{"v":32886.5,"d":"$32,886.50"},{"v":552299.75,"d":"$552,299.75"},{"v":371289,"d":"$371,289.00"},{"v":1316427.25,"d":"$1,316,427.25"},{"v":906313.25,"d":"$906,313.25"},{"v":2321372.562,"d":"$2,321,372.56"},{"v":6022700.812,"d":"$6,022,700.81"},{"v":920705.93,"d":"$920,705.93"},{"v":5101994.882,"d":"$5,101,994.88"},{"v":5930630.212,"d":"$5,930,630.21"},{"v":73911.6,"d":"$73,911.60"},{"v":73911.6,"d":"$73,911.60"},{"v":77211.22,"d":"$77,211.22"},{"v":77211.22,"d":"$77,211.22"},{"v":0,"d":"$0.00"},{"v":0,"d":"$0.00"},{"v":0,"d":"$0.00"},{"v":0,"d":"$0.00"},{"v":0,"d":"$0.00"},{"v":452048.62,"d":"$452,048.62"},{"v":183112.83,"d":"$183,112.83"},{"v":69858.72,"d":"$69,858.72"},{"v":1007265.8099999999,"d":"$1,007,265.81"},{"v":12157470.32,"d":"$12,157,470.32"},{"v":81306.92999999998,"d":"$81,306.93"},{"v":0,"d":"$0.00"},{"v":266430.95,"d":"$266,430.95"},{"v":12157470.222000001,"d":"$12,157,470.22"}]
["28037224026","GALVA COMM UNIT SCH DIST 224",441.46,{"v":6099812.62,"d":"$6,099,812.62"},{"v":5492883.82,"d":"$5,492,883.82"},{"v":0.900500418978444,"d":"90%"},3,{"v":6931.89,"d":"$6,931.89"},{"v":1199507.3899999997,"d":"$1,199,507.39"},{"v":1206439.2799999996,"d":"$1,206,439.28"},{"v":0.9,"d":"0.90"},{"v":1385486.53,"d":"$1,385,486.53"},{"v":335792.68,"d":"$335,792.68"},{"v":143852.6,"d":"$143,852.60"},{"v":57301.99,"d":"$57,301.99"},{"v":48112.84,"d":"$48,112.84"},{"v":99123.57,"d":"$99,123.57"},{"v":31927.08,"d":"$31,927.08"},{"v":53998.23,"d":"$53,998.23"},{"v":63768.67,"d":"$63,768.67"},{"v":38761.11,"d":"$38,761.11"},{"v":94602.81,"d":"$94,602.81"},{"v":81453.24,"d":"$81,453.24"},{"v":64795.33,"d":"$64,795.33"},{"v":2498976.68,"d":"$2,498,976.68"},{"v":39303.9,"d":"$39,303.90"},{"v":55182.5,"d":"$55,182.50"},{"v":143474.5,"d":"$143,474.50"},{"v":15009.64,"d":"$15,009.64"},{"v":252073.65999999997,"d":"$252,073.66"},{"v":168163.95,"d":"$168,163.95"},{"v":600827.0599999999,"d":"$600,827.06"},{"v":413648.01999999996,"d":"$413,648.02"},{"v":1196058.3734399998,"d":"$1,196,058.37"},{"v":2883741.6034399997,"d":"$2,883,741.60"},{"v":420216.94,"d":"$420,216.94"},{"v":2463524.6634400003,"d":"$2,463,524.66"},{"v":2841719.9034400005,"d":"$2,841,719.90"},{"v":106907.85,"d":"$106,907.85"},{"v":106907.85,"d":"$106,907.85"},{"v":111527.32,"d":"$111,527.32"},{"v":111527.32,"d":"$111,527.32"},{"v":0,"d":"$0.00"},{"v":0,"d":"$0.00"},{"v":0,"d":"$0.00"},{"v":0,"d":"$0.00"},{"v":0,"d":"$0.00"},{"v":206556.52,"d":"$206,556.52"},{"v":83670.53,"d":"$83,670.53"},{"v":32018.58,"d":"$32,018.58"},{"v":759115.97,"d":"$759,115.97"},{"v":6099812.62,"d":"$6,099,812.62"},{"v":230134.2,"d":"$230,134.20"},{"v":0,"d":"$0.00"},{"v":102278.03,"d":"$102,278.03"},{"v":6099812.55344,"d":"$6,099,812.55"}]
["28037225026","ALWOOD COMM UNIT SCH DIST 225",339.19,{"v":4341178.28,"d":"$4,341,178.28"},{"v":5417046.18,"d":"$5,417,046.18"},{"v":1.2478285457560152,"d":"125%"},4,{"v":276.52,"d":"$276.52"},{"v":511353.59,"d":"$511,353.59"},{"v":511630.11000000004,"d":"$511,630.11"},{"v":0.9,"d":"0.90"},{"v":1021336.53,"d":"$1,021,336.53"},{"v":246797.39,"d":"$246,797.39"},{"v":110242.94,"d":"$110,242.94"},{"v":44278.81,"d":"$44,278.81"},{"v":34179.95,"d":"$34,179.95"},{"v":75573.63,"d":"$75,573.63"},{"v":24220.54,"d":"$24,220.54"},{"v":41166.97,"d":"$41,166.97"},{"v":49275.79,"d":"$49,275.79"},{"v":29939.61,"d":"$29,939.61"},{"v":73102.17,"d":"$73,102.17"},{"v":62941.14,"d":"$62,941.14"},{"v":49398.42,"d":"$49,398.42"},{"v":1862453.89,"d":"$1,862,453.89"},{"v":30265.199999999997,"d":"$30,265.20"},{"v":42398.75,"d":"$42,398.75"},{"v":110236.75,"d":"$110,236.75"},{"v":11532.46,"d":"$11,532.46"},{"v":96838.73999999999,"d":"$96,838.74"},{"v":127210.77999999998,"d":"$127,210.78"},{"v":461637.58999999997,"d":"$461,637.59"},{"v":317821.02999999997,"d":"$317,821.03"},{"v":857981.3001600001,"d":"$857,981.30"},{"v":2055922.6001600001,"d":"$2,055,922.60"},{"v":322868.17,"d":"$322,868.17"},{"v":1733054.4301600002,"d":"$1,733,054.43"},{"v":2023635.78016,"d":"$2,023,635.78"},{"v":50814.22,"d":"$50,814.22"},{"v":50814.22,"d":"$50,814.22"},{"v":53453.92,"d":"$53,453.92"},{"v":53453.92,"d":"$53,453.92"},{"v":0,"d":"$0.00"},{"v":0,"d":"$0.00"},{"v":0,"d":"$0.00"},{"v":0,"d":"$0.00"},{"v":0,"d":"$0.00"},{"v":158382,"d":"$158,382.00"},{"v":64156.32,"d":"$64,156.32"},{"v":24013.93,"d":"$24,013.93"},{"v":455088.52999999997,"d":"$455,088.53"},{"v":4341178.28,"d":"$4,341,178.28"},{"v":65082.46,"d":"$65,082.46"},{"v":11,"d":"$11.00"},{"v":110401.45,"d":"$110,401.45"},{"v":4341178.2001600005,"d":"$4,341,178.20"}]
["28037226026","ANNAWAN COMM UNIT SCH DIST 226",316.25,{"v":4017076.14,"d":"$4,017,076.14"},{"v":4217039.04,"d":"$4,217,039.04"},{"v":1.0497782200364267,"d":"105%"},4,{"v":255.88,"d":"$255.88"},{"v":866221.3799999999,"d":"$866,221.38"},{"v":866477.2599999999,"d":"$866,477.26"},{"v":0.9,"d":"0.90"},{"v":940155.88,"d":"$940,155.88"},{"v":229695.27,"d":"$229,695.27"},{"v":102617.53,"d":"$102,617.53"},{"v":41046.57,"d":"$41,046.57"},{"v":31366.8,"d":"$31,366.80"},{"v":71420.76,"d":"$71,420.76"},{"v":22018.68,"d":"$22,018.68"},{"v":38493.79,"d":"$38,493.79"},{"v":45652.57,"d":"$45,652.57"},{"v":27801.07,"d":"$27,801.07"},{"v":67727.01,"d":"$67,727.01"},{"v":58313.11,"d":"$58,313.11"},{"v":46190.73,"d":"$46,190.73"},{"v":1722499.7700000003,"d":"$1,722,499.77"},{"v":28080,"d":"$28,080.00"},{"v":39531.25,"d":"$39,531.25"},{"v":102781.25,"d":"$102,781.25"},{"v":10752.5,"d":"$10,752.50"},{"v":90289.37,"d":"$90,289.37"},{"v":122615,"d":"$122,615.00"},{"v":430416.25,"d":"$430,416.25"},{"v":296326.25,"d":"$296,326.25"},{"v":791487.3779999999,"d":"$791,487.38"},{"v":1912279.2480000001,"d":"$1,912,279.25"},{"v":301032.05,"d":"$301,032.05"},{"v":1611247.198,"d":"$1,611,247.20"},{"v":1882176.0380000002,"d":"$1,882,176.04"},{"v":44874.9,"d":"$44,874.90"},{"v":44874.9,"d":"$44,874.90"},{"v":46194.75,"d":"$46,194.75"},{"v":46194.75,"d":"$46,194.75"},{"v":0,"d":"$0.00"},{"v":0,"d":"$0.00"},{"v":0,"d":"$0.00"},{"v":0,"d":"$0.00"},{"v":0,"d":"$0.00"},{"v":147823.2,"d":"$147,823.20"},{"v":59879.23,"d":"$59,879.23"},{"v":22558.54,"d":"$22,558.54"},{"v":412400.26999999996,"d":"$412,400.27"},{"v":4017076.14,"d":"$4,017,076.14"},{"v":60785.950000000004,"d":"$60,785.95"},{"v":4.09,"d":"$4.09"},{"v":83961.89000000001,"d":"$83,961.89"},{"v":4017076.078,"d":"$4,017,076.08"}]
["28037227026","CAMBRIDGE C U SCH DIST 227",428.57,{"v":5638160.13,"d":"$5,638,160.13"},{"v":4299563.87,"d":"$4,299,563.87"},{"v":0.7625827878003174,"d":"76%"},1,{"v":54177.54,"d":"$54,177.54"},{"v":1291408.2700000003,"d":"$1,291,408.27"},{"v":1345585.8100000003,"d":"$1,345,585.81"},{"v":0.9,"d":"0.90"},{"v":1298998.02,"d":"$1,298,998.02"},{"v":313491.43,"d":"$313,491.43"},{"v":139804.28,"d":"$139,804.28"},{"v":56580.14,"d":"$56,580.14"},{"v":43478.43,"d":"$43,478.43"},{"v":96228.91,"d":"$96,228.91"},{"v":30826.15,"d":"$30,826.15"},{"v":52661.64,"d":"$52,661.64"},{"v":63044.02,"d":"$63,044.02"},{"v":37959.15,"d":"$37,959.15"},{"v":93527.78,"d":"$93,527.78"},{"v":80527.63,"d":"$80,527.63"},{"v":63191.49,"d":"$63,191.49"},{"v":2370319.0699999994,"d":"$2,370,319.07"},{"v":38331.9,"d":"$38,331.90"},{"v":53571.25,"d":"$53,571.25"},{"v":139285.25,"d":"$139,285.25"},{"v":14571.38,"d":"$14,571.38"},{"v":244713.47,"d":"$244,713.47"},{"v":160954.59,"d":"$160,954.59"},{"v":583283.77,"d":"$583,283.77"},{"v":401570.08999999997,"d":"$401,570.09"},{"v":1091586.8044799997,"d":"$1,091,586.80"},{"v":2727868.5044799997,"d":"$2,727,868.50"},{"v":407947.21,"d":"$407,947.21"},{"v":2319921.2944799997,"d":"$2,319,921.29"},{"v":2687073.7744799997,"d":"$2,687,073.77"},{"v":65992.5,"d":"$65,992.50"},{"v":65992.5,"d":"$65,992.50"},{"v":68632.2,"d":"$68,632.20"},{"v":68632.2,"d":"$68,632.20"},{"v":0,"d":"$0.00"},{"v":0,"d":"$0.00"},{"v":0,"d":"$0.00"},{"v":0,"d":"$0.00"},{"v":0,"d":"$0.00"},{"v":199957.27,"d":"$199,957.27"},{"v":80997.35,"d":"$80,997.35"},{"v":30563.19,"d":"$30,563.19"},{"v":580767.21,"d":"$580,767.21"},{"v":5638160.13,"d":"$5,638,160.13"},{"v":128258.65999999999,"d":"$128,258.66"},{"v":0,"d":"$0.00"},{"v":114486.69999999998,"d":"$114,486.70"},{"v":5638160.054479999,"d":"$5,638,160.05"}]
["28037228026","GENESEO COMM UNIT SCH DIST 228",2439.7,{"v":31099435.77,"d":"$31,099,435.77"},{"v":24096640.04,"d":"$24,096,640.04"},{"v":0.7748256340793414,"d":"77%"},2,{"v":158807.74,"d":"$158,807.74"},{"v":5465945.82,"d":"$5,465,945.82"},{"v":5624753.5600000005,"d":"$5,624,753.56"},{"v":0.9,"d":"0.90"},{"v":7149675.34,"d":"$7,149,675.34"},{"v":1760649.86,"d":"$1,760,649.86"},{"v":803776.67,"d":"$803,776.67"},{"v":324200.08,"d":"$324,200.08"},{"v":234016.11,"d":"$234,016.11"},{"v":567482.36,"d":"$567,482.36"},{"v":178351.3,"d":"$178,351.30"},{"v":301802.02,"d":"$301,802.02"},{"v":359423.42,"d":"$359,423.42"},{"v":217062.21,"d":"$217,062.21"},{"v":533215.87,"d":"$533,215.87"},{"v":459100.08,"d":"$459,100.08"},{"v":362148.2,"d":"$362,148.20"},{"v":13250903.519999998,"d":"$13,250,903.52"},{"v":218456.09999999998,"d":"$218,456.10"},{"v":304962.5,"d":"$304,962.50"},{"v":792902.5,"d":"$792,902.50"},{"v":82949.79999999999,"d":"$82,949.80"},{"v":1393068.7,"d":"$1,393,068.70"},{"v":980912.19,"d":"$980,912.19"},{"v":3320431.6999999997,"d":"$3,320,431.70"},{"v":2285998.9,"d":"$2,285,998.90"},{"v":5952009.7277999995,"d":"$5,952,009.73"},{"v":15331692.117800001,"d":"$15,331,692.12"},{"v":2322301.63,"d":"$2,322,301.63"},{"v":13009390.487799998,"d":"$13,009,390.49"},{"v":15099461.9478,"d":"$15,099,461.95"},{"v":228334.05,"d":"$228,334.05"},{"v":228334.05,"d":"$228,334.05"},{"v":238232.92,"d":"$238,232.92"},{"v":238232.92,"d":"$238,232.92"},{"v":6599.25,"d":"$6,599.25"},{"v":6599.25,"d":"$6,599.25"},{"v":6599.25,"d":"$6,599.25"},{"v":6599.25,"d":"$6,599.25"},{"v":8579.02,"d":"$8,579.02"},{"v":1141670.25,"d":"$1,141,670.25"},{"v":462460.14,"d":"$462,460.14"},{"v":176829.88,"d":"$176,829.88"},{"v":2749070.23,"d":"$2,749,070.23"},{"v":31099435.77,"d":"$31,099,435.77"},{"v":260584.80000000005,"d":"$260,584.80"},{"v":642.39,"d":"$642.39"},{"v":535663.91,"d":"$535,663.91"},{"v":31099435.6978,"d":"$31,099,435.70"}]
["28037229026","KEWANEE COMM UNIT SCH DIST 229",1781.37,{"v":26497845.58,"d":"$26,497,845.58"},{"v":18826847.45,"d":"$18,826,847.45"},{"v":0.7105048368237944,"d":"71%"},1,{"v":860769.4,"d":"$860,769.40"},{"v":15007844.67,"d":"$15,007,844.67"},{"v":15868614.07,"d":"$15,868,614.07"},{"v":0.9,"d":"0.90"},{"v":5824476.37,"d":"$5,824,476.37"},{"v":1415168.53,"d":"$1,415,168.53"},{"v":584417.42,"d":"$584,417.42"},{"v":236582.77,"d":"$236,582.77"},{"v":214988.5,"d":"$214,988.50"},{"v":406814.67,"d":"$406,814.67"},{"v":130460.67,"d":"$130,460.67"},{"v":219735.39,"d":"$219,735.39"},{"v":263045.77,"d":"$263,045.77"},{"v":158252.25,"d":"$158,252.25"},{"v":390236.61,"d":"$390,236.61"},{"v":335994.61,"d":"$335,994.61"},{"v":263672.11,"d":"$263,672.11"},{"v":10443845.669999998,"d":"$10,443,845.67"},{"v":158756.40000000002,"d":"$158,756.40"},{"v":222671.25,"d":"$222,671.25"},{"v":578945.25,"d":"$578,945.25"},{"v":60566.579999999994,"d":"$60,566.58"},{"v":1017162.27,"d":"$1,017,162.27"},{"v":685723.78,"d":"$685,723.78"},{"v":2424444.57,"d":"$2,424,444.57"},{"v":1669143.69,"d":"$1,669,143.69"},{"v":5290273.441679999,"d":"$5,290,273.44"},{"v":12107687.231679998,"d":"$12,107,687.23"},{"v":1695650.47,"d":"$1,695,650.47"},{"v":10412036.761679998,"d":"$10,412,036.76"},{"v":11938122.181679998,"d":"$11,938,122.18"},{"v":580734,"d":"$580,734.00"},{"v":580734,"d":"$580,734.00"},{"v":605151.22,"d":"$605,151.22"},{"v":605151.22,"d":"$605,151.22"},{"v":83150.55,"d":"$83,150.55"},{"v":83150.55,"d":"$83,150.55"},{"v":86450.17,"d":"$86,450.17"},{"v":86450.17,"d":"$86,450.17"},{"v":104268.15,"d":"$104,268.15"},{"v":833485.27,"d":"$833,485.27"},{"v":337622.63,"d":"$337,622.63"},{"v":129529.71,"d":"$129,529.71"},{"v":4115877.639999999,"d":"$4,115,877.64"},{"v":26497845.58,"d":"$26,497,845.58"},{"v":3295784.15,"d":"$3,295,784.15"},{"v":172000.63,"d":"$172,000.63"},{"v":705538.44,"d":"$705,538.44"},{"v":26497845.491679996,"d":"$26,497,845.49"}]
["28037230026","WETHERSFIELD C U SCH DIST 230",495.78,{"v":6819074.37,"d":"$6,819,074.37"},{"v":5219041.449999999,"d":"$5,219,041.45"},{"v":0.7653592213278646,"d":"77%"},1,{"v":69531.76,"d":"$69,531.76"},{"v":2386213.5000000005,"d":"$2,386,213.50"},{"v":2455745.2600000002,"d":"$2,455,745.26"},{"v":0.9,"d":"0.90"},{"v":1550204.02,"d":"$1,550,204.02"},{"v":372873.72,"d":"$372,873.72"},{"v":161268.96,"d":"$161,268.96"},{"v":65021.65,"d":"$65,021.65"},{"v":53781.19,"d":"$53,781.19"},{"v":110323.96,"d":"$110,323.96"},{"v":35229.88,"d":"$35,229.88"},{"v":60413.86,"d":"$60,413.86"},{"v":72464.4,"d":"$72,464.40"},{"v":43840.15,"d":"$43,840.15"},{"v":107503.2,"d":"$107,503.20"},{"v":92560.5,"d":"$92,560.50"},{"v":72493.79,"d":"$72,493.79"},{"v":2797979.28,"d":"$2,797,979.28"},{"v":44260.2,"d":"$44,260.20"},{"v":61972.49999999999,"d":"$61,972.50"},{"v":161128.5,"d":"$161,128.50"},{"v":16856.519999999997,"d":"$16,856.52"},{"v":283090.38,"d":"$283,090.38"},{"v":184187.41999999998,"d":"$184,187.42"},{"v":674756.58,"d":"$674,756.58"},{"v":464545.86,"d":"$464,545.86"},{"v":1336604.57292,"d":"$1,336,604.57"},{"v":3227402.53292,"d":"$3,227,402.53"},{"v":471923.06,"d":"$471,923.06"},{"v":2755479.47292,"d":"$2,755,479.47"},{"v":3180210.22292,"d":"$3,180,210.22"},{"v":111527.32,"d":"$111,527.32"},{"v":111527.32,"d":"$111,527.32"},{"v":116146.8,"d":"$116,146.80"},{"v":116146.8,"d":"$116,146.80"},{"v":4619.47,"d":"$4,619.47"},{"v":4619.47,"d":"$4,619.47"},{"v":4619.47,"d":"$4,619.47"},{"v":4619.47,"d":"$4,619.47"},{"v":5939.32,"d":"$5,939.32"},{"v":231633.67,"d":"$231,633.67"},{"v":93828.61,"d":"$93,828.61"},{"v":35657.05,"d":"$35,657.05"},{"v":840884.7699999999,"d":"$840,884.77"},{"v":6819074.37,"d":"$6,819,074.37"},{"v":274795.82999999996,"d":"$274,795.83"},{"v":798.3,"d":"$798.30"},{"v":126324.6,"d":"$126,324.60"},{"v":6819074.272919999,"d":"$6,819,074.27"}]
["28088001026","BRADFORD COMM UNIT SCH DIST 1",211.75,{"v":2753394.76,"d":"$2,753,394.76"},{"v":3332425.1,"d":"$3,332,425.10"},{"v":1.2102968845629678,"d":"121%"},4,{"v":175.38,"d":"$175.38"},{"v":262706.85,"d":"$262,706.85"},{"v":262882.23,"d":"$262,882.23"},{"v":0.9,"d":"0.90"},{"v":650156.58,"d":"$650,156.58"},{"v":155626.34,"d":"$155,626.34"},{"v":68097.52,"d":"$68,097.52"},{"v":27929.15,"d":"$27,929.15"},{"v":21903.39,"d":"$21,903.39"},{"v":46234.38,"d":"$46,234.38"},{"v":15413.07,"d":"$15,413.07"},{"v":25662.52,"d":"$25,662.52"},{"v":31159.69,"d":"$31,159.69"},{"v":18712.26,"d":"$18,712.26"},{"v":46226.37,"d":"$46,226.37"},{"v":39801.01,"d":"$39,801.01"},{"v":30793.82,"d":"$30,793.82"},{"v":1177716.1,"d":"$1,177,716.10"},{"v":18900,"d":"$18,900.00"},{"v":26468.75,"d":"$26,468.75"},{"v":68818.75,"d":"$68,818.75"},{"v":7199.5,"d":"$7,199.50"},{"v":60454.619999999995,"d":"$60,454.62"},{"v":76971,"d":"$76,971.00"},{"v":288191.75,"d":"$288,191.75"},{"v":198409.75,"d":"$198,409.75"},{"v":546909.4619999999,"d":"$546,909.46"},{"v":1292323.582,"d":"$1,292,323.58"},{"v":201560.59,"d":"$201,560.59"},{"v":1090762.9919999999,"d":"$1,090,762.99"},{"v":1272167.5219999999,"d":"$1,272,167.52"},{"v":36295.87,"d":"$36,295.87"},{"v":36295.87,"d":"$36,295.87"},{"v":38275.65,"d":"$38,275.65"},{"v":38275.65,"d":"$38,275.65"},{"v":0,"d":"$0.00"},{"v":0,"d":"$0.00"},{"v":0,"d":"$0.00"},{"v":0,"d":"$0.00"},{"v":0,"d":"$0.00"},{"v":98988.75,"d":"$98,988.75"},{"v":40097.7,"d":"$40,097.70"},{"v":15281.59,"d":"$15,281.59"},{"v":303511.08,"d":"$303,511.08"},{"v":2753394.76,"d":"$2,753,394.76"},{"v":96113.13,"d":"$96,113.13"},{"v":0,"d":"$0.00"},{"v":61495.770000000004,"d":"$61,495.77"},{"v":2753394.702,"d":"$2,753,394.70"}]
["28088100026","STARK COUNTY C U SCH DIST 100",613.94,{"v":8358343.02,"d":"$8,358,343.02"},{"v":7920982.6,"d":"$7,920,982.60"},{"v":0.9476737890568172,"d":"95%"},3,{"v":9498.51,"d":"$9,498.51"},{"v":1506763.1000000003,"d":"$1,506,763.10"},{"v":1516261.6100000003,"d":"$1,516,261.61"},{"v":0.9,"d":"0.90"},{"v":1902523.93,"d":"$1,902,523.93"},{"v":459599.21,"d":"$459,599.21"},{"v":200182.14,"d":"$200,182.14"},{"v":81371.31,"d":"$81,371.31"},{"v":65415.03,"d":"$65,415.03"},{"v":138892.26,"d":"$138,892.26"},{"v":44037.36,"d":"$44,037.36"},{"v":75383.67,"d":"$75,383.67"},{"v":90580.5,"d":"$90,580.50"},{"v":54265.55,"d":"$54,265.55"},{"v":134379,"d":"$134,379.00"},{"v":115700.62,"d":"$115,700.62"},{"v":90456.85,"d":"$90,456.85"},{"v":3452787.4299999997,"d":"$3,452,787.43"},{"v":54835.2,"d":"$54,835.20"},{"v":76742.5,"d":"$76,742.50"},{"v":199530.5,"d":"$199,530.50"},{"v":20873.96,"d":"$20,873.96"},{"v":350559.74,"d":"$350,559.74"},{"v":232070.64,"d":"$232,070.64"},{"v":835572.3400000001,"d":"$835,572.34"},{"v":575261.78,"d":"$575,261.78"},{"v":1632969.63516,"d":"$1,632,969.64"},{"v":3978416.29516,"d":"$3,978,416.30"},{"v":584397.2,"d":"$584,397.20"},{"v":3394019.09516,"d":"$3,394,019.10"},{"v":3919976.57516,"d":"$3,919,976.58"},{"v":130005.22,"d":"$130,005.22"},{"v":130005.22,"d":"$130,005.22"},{"v":135284.62,"d":"$135,284.62"},{"v":135284.62,"d":"$135,284.62"},{"v":1319.85,"d":"$1,319.85"},{"v":1319.85,"d":"$1,319.85"},{"v":1319.85,"d":"$1,319.85"},{"v":1319.85,"d":"$1,319.85"},{"v":1979.77,"d":"$1,979.77"},{"v":287067.37,"d":"$287,067.37"},{"v":116283.33,"d":"$116,283.33"},{"v":44389.39,"d":"$44,389.39"},{"v":985578.9399999998,"d":"$985,578.94"},{"v":8358343.02,"d":"$8,358,343.02"},{"v":211724.01,"d":"$211,724.01"},{"v":3664.1599999999994,"d":"$3,664.16"},{"v":184416.73,"d":"$184,416.73"},{"v":8358342.94516,"d":"$8,358,342.95"}]
[null,"ALT SCH-JACKSON/PERRY ROE",5,{"v":61177.13,"d":"$61,177.13"},{"v":68453.95,"d":"$68,453.95"},{"v":1.1189467371221893,"d":"112%"},4,{"v":3.89,"d":"$3.89"},{"v":62336.240000000005,"d":"$62,336.24"},{"v":62340.130000000005,"d":"$62,340.13"},{"v":0.9,"d":"0.90"},{"v":13807.13,"d":"$13,807.13"},{"v":2761.42,"d":"$2,761.42"},{"v":1255.19,"d":"$1,255.19"},{"v":627.59,"d":"$627.59"},{"v":480.72,"d":"$480.72"},{"v":1352.77,"d":"$1,352.77"},{"v":0,"d":"$0.00"},{"v":534.63,"d":"$534.63"},{"v":724.64,"d":"$724.64"},{"v":267.31,"d":"$267.31"},{"v":1075.03,"d":"$1,075.03"},{"v":925.6,"d":"$925.60"},{"v":641.53,"d":"$641.53"},{"v":24453.559999999998,"d":"$24,453.56"},{"v":450,"d":"$450.00"},{"v":625,"d":"$625.00"},{"v":1625,"d":"$1,625.00"},{"v":170,"d":"$170.00"},{"v":1427.5,"d":"$1,427.50"},{"v":1245,"d":"$1,245.00"},{"v":6805,"d":"$6,805.00"},{"v":4685,"d":"$4,685.00"},{"v":12105.828,"d":"$12,105.83"},{"v":29138.328,"d":"$29,138.33"},{"v":4759.4,"d":"$4,759.40"},{"v":24378.928,"d":"$24,378.93"},{"v":28662.388,"d":"$28,662.39"},{"v":1319.85,"d":"$1,319.85"},{"v":1319.85,"d":"$1,319.85"},{"v":1319.85,"d":"$1,319.85"},{"v":1319.85,"d":"$1,319.85"},{"v":0,"d":"$0.00"},{"v":0,"d":"$0.00"},{"v":0,"d":"$0.00"},{"v":0,"d":"$0.00"},{"v":0,"d":"$0.00"},{"v":1979.77,"d":"$1,979.77"},{"v":801.95,"d":"$801.95"},{"v":0,"d":"$0.00"},{"v":8061.12,"d":"$8,061.12"},{"v":61177.13,"d":"$61,177.13"},{"v":45.99999999999999,"d":"$46.00"},{"v":0,"d":"$0.00"},{"v":19.39,"d":"$19.39"},{"v":61177.068,"d":"$61,177.07"}]
[null,"SAFE SCH-JACKSON/PERRY ROE",21,{"v":287788.66,"d":"$287,788.66"},{"v":126320.71,"d":"$126,320.71"},{"v":0.4389356759227414,"d":"44%"},1,{"v":37210.11,"d":"$37,210.11"},{"v":97541.85,"d":"$97,541.85"},{"v":134751.96000000002,"d":"$134,751.96"},{"v":0.9,"d":"0.90"},{"v":64083.51,"d":"$64,083.51"},{"v":18012.68,"d":"$18,012.68"},{"v":6841.45,"d":"$6,841.45"},{"v":2698.88,"d":"$2,698.88"},{"v":2190.27,"d":"$2,190.27"},{"v":5112.91,"d":"$5,112.91"},{"v":1100.93,"d":"$1,100.93"},{"v":2673.18,"d":"$2,673.18"},{"v":2898.57,"d":"$2,898.57"},{"v":1871.22,"d":"$1,871.22"},{"v":4300.12,"d":"$4,300.12"},{"v":3702.42,"d":"$3,702.42"},{"v":3207.69,"d":"$3,207.69"},{"v":118693.83,"d":"$118,693.83"},{"v":1890,"d":"$1,890.00"},{"v":2625,"d":"$2,625.00"},{"v":6825,"d":"$6,825.00"},{"v":714,"d":"$714.00"},{"v":5995.5,"d":"$5,995.50"},{"v":12549,"d":"$12,549.00"},{"v":28581,"d":"$28,581.00"},{"v":19677,"d":"$19,677.00"},{"v":56682.84299999999,"d":"$56,682.84"},{"v":135539.343,"d":"$135,539.34"},{"v":19989.48,"d":"$19,989.48"},{"v":115549.863,"d":"$115,549.86"},{"v":133540.39299999998,"d":"$133,540.39"},{"v":5279.4,"d":"$5,279.40"},{"v":5279.4,"d":"$5,279.40"},{"v":5279.4,"d":"$5,279.40"},{"v":5279.4,"d":"$5,279.40"},{"v":0,"d":"$0.00"},{"v":0,"d":"$0.00"},{"v":0,"d":"$0.00"},{"v":0,"d":"$0.00"},{"v":0,"d":"$0.00"},{"v":9238.95,"d":"$9,238.95"},{"v":3742.45,"d":"$3,742.45"},{"v":1455.39,"d":"$1,455.39"},{"v":35554.39,"d":"$35,554.39"},{"v":287788.66,"d":"$287,788.66"},{"v":5562.4800000000005,"d":"$5,562.48"},{"v":0,"d":"$0.00"},{"v":2667.2400000000002,"d":"$2,667.24"},{"v":287788.613,"d":"$287,788.61"}]
[null,"ALOP-JACKSON/PERRY ROE",4.98,{"v":64946.23,"d":"$64,946.23"},{"v":78825.26,"d":"$78,825.26"},{"v":1.2137003179399326,"d":"121%"},4,{"v":4.13,"d":"$4.13"},{"v":72330.64000000001,"d":"$72,330.64"},{"v":72334.77000000002,"d":"$72,334.77"},{"v":0.9,"d":"0.90"},{"v":15064.49,"d":"$15,064.49"},{"v":4937.33,"d":"$4,937.33"},{"v":1443.69,"d":"$1,443.69"},{"v":0,"d":"$0.00"},{"v":480.72,"d":"$480.72"},{"v":770.94,"d":"$770.94"},{"v":0,"d":"$0.00"},{"v":534.63,"d":"$534.63"},{"v":0,"d":"$0.00"},{"v":267.31,"d":"$267.31"},{"v":0,"d":"$0.00"},{"v":0,"d":"$0.00"},{"v":641.53,"d":"$641.53"},{"v":24140.64,"d":"$24,140.64"},{"v":448.20000000000005,"d":"$448.20"},{"v":622.5,"d":"$622.50"},{"v":1618.5000000000002,"d":"$1,618.50"},{"v":169.32000000000002,"d":"$169.32"},{"v":2843.58,"d":"$2,843.58"},{"v":4076.5200000000004,"d":"$4,076.52"},{"v":6777.780000000001,"d":"$6,777.78"},{"v":4666.26,"d":"$4,666.26"},{"v":11995.80372,"d":"$11,995.80"},{"v":33218.46372,"d":"$33,218.46"},{"v":4740.36,"d":"$4,740.36"},{"v":28478.103719999992,"d":"$28,478.10"},{"v":32744.42371999999,"d":"$32,744.42"},{"v":1319.85,"d":"$1,319.85"},{"v":1319.85,"d":"$1,319.85"},{"v":1319.85,"d":"$1,319.85"},{"v":1319.85,"d":"$1,319.85"},{"v":0,"d":"$0.00"},{"v":0,"d":"$0.00"},{"v":0,"d":"$0.00"},{"v":0,"d":"$0.00"},{"v":0,"d":"$0.00"},{"v":1979.77,"d":"$1,979.77"},{"v":801.95,"d":"$801.95"},{"v":0,"d":"$0.00"},{"v":8061.12,"d":"$8,061.12"},{"v":64946.23,"d":"$64,946.23"},{"v":1002.4000000000001,"d":"$1,002.40"},{"v":0,"d":"$0.00"},{"v":458.32,"d":"$458.32"},{"v":64946.18371999999,"d":"$64,946.18"}]
["30002001022","CAIRO UNIT SCHOOL DISTRICT 1",270,{"v":4007907.22,"d":"$4,007,907.22"},{"v":5058167.75,"d":"$5,058,167.75"},{"v":1.262047116449966,"d":"126%"},4,{"v":255.29,"d":"$255.29"},{"v":3570427.7899999996,"d":"$3,570,427.79"},{"v":3570683.0799999996,"d":"$3,570,683.08"},{"v":0.9,"d":"0.90"},{"v":911971.79,"d":"$911,971.79"},{"v":219632.24,"d":"$219,632.24"},{"v":87240.32,"d":"$87,240.32"},{"v":35115.46,"d":"$35,115.46"},{"v":33532.1,"d":"$33,532.10"},{"v":59842.15,"d":"$59,842.15"},{"v":18715.87,"d":"$18,715.87"},{"v":32880.11,"d":"$32,880.11"},{"v":39130.77,"d":"$39,130.77"},{"v":23791.3,"d":"$23,791.30"},{"v":58051.72,"d":"$58,051.72"},{"v":49982.67,"d":"$49,982.67"},{"v":39454.58,"d":"$39,454.58"},{"v":1609341.0800000003,"d":"$1,609,341.08"},{"v":24120,"d":"$24,120.00"},{"v":33750,"d":"$33,750.00"},{"v":87750,"d":"$87,750.00"},{"v":9180,"d":"$9,180.00"},{"v":77085,"d":"$77,085.00"},{"v":100084,"d":"$100,084.00"},{"v":367470,"d":"$367,470.00"},{"v":252990,"d":"$252,990.00"},{"v":819738.4319999998,"d":"$819,738.43"},{"v":1772167.4319999998,"d":"$1,772,167.43"},{"v":257007.6,"d":"$257,007.60"},{"v":1515159.8319999997,"d":"$1,515,159.83"},{"v":1746466.6719999998,"d":"$1,746,466.67"},{"v":111527.32,"d":"$111,527.32"},{"v":111527.32,"d":"$111,527.32"},{"v":116146.8,"d":"$116,146.80"},{"v":116146.8,"d":"$116,146.80"},{"v":0,"d":"$0.00"},{"v":0,"d":"$0.00"},{"v":0,"d":"$0.00"},{"v":0,"d":"$0.00"},{"v":0,"d":"$0.00"},{"v":126045.67,"d":"$126,045.67"},{"v":51057.73,"d":"$51,057.73"},{"v":19647.76,"d":"$19,647.76"},{"v":652099.4,"d":"$652,099.40"},{"v":4007907.22,"d":"$4,007,907.22"},{"v":1399723.41,"d":"$1,399,723.41"},{"v":0,"d":"$0.00"},{"v":179371.80000000005,"d":"$179,371.80"},{"v":4007907.1520000002,"d":"$4,007,907.15"}]
["30002005026","EGYPTIAN COMM UNIT SCH DIST 5",343.25,{"v":4803397.89,"d":"$4,803,397.89"},{"v":4202798.9399999995,"d":"$4,202,798.94"},{"v":0.874963731143247,"d":"87%"},2,{"v":9302.83,"d":"$9,302.83"},{"v":3044291.0999999996,"d":"$3,044,291.10"},{"v":3053593.9299999997,"d":"$3,053,593.93"},{"v":0.9,"d":"0.90"},{"v":1097661.43,"d":"$1,097,661.43"},{"v":270145.02,"d":"$270,145.02"},{"v":112157.87,"d":"$112,157.87"},{"v":44467.3,"d":"$44,467.30"},{"v":38007.31,"d":"$38,007.31"},{"v":76817.34,"d":"$76,817.34"},{"v":24220.54,"d":"$24,220.54"},{"v":42236.24,"d":"$42,236.24"},{"v":49275.79,"d":"$49,275.79"},{"v":30206.93,"d":"$30,206.93"},{"v":73102.17,"d":"$73,102.17"},{"v":62941.14,"d":"$62,941.14"},{"v":50681.5,"d":"$50,681.50"},{"v":1971920.5799999998,"d":"$1,971,920.58"},{"v":30735,"d":"$30,735.00"},{"v":42906.25,"d":"$42,906.25"},{"v":111556.25,"d":"$111,556.25"},{"v":11670.5,"d":"$11,670.50"},{"v":195995.75,"d":"$195,995.75"},{"v":136558.5,"d":"$136,558.50"},{"v":467163.25,"d":"$467,163.25"},{"v":321625.25,"d":"$321,625.25"},{"v":943478.16,"d":"$943,478.16"},{"v":2261688.91,"d":"$2,261,688.91"},{"v":326732.81,"d":"$326,732.81"},{"v":1934956.1,"d":"$1,934,956.10"},{"v":2229015.62,"d":"$2,229,015.62"},{"v":86450.17,"d":"$86,450.17"},{"v":86450.17,"d":"$86,450.17"},{"v":89749.8,"d":"$89,749.80"},{"v":89749.8,"d":"$89,749.80"},{"v":0,"d":"$0.00"},{"v":0,"d":"$0.00"},{"v":0,"d":"$0.00"},{"v":0,"d":"$0.00"},{"v":0,"d":"$0.00"},{"v":160361.77,"d":"$160,361.77"},{"v":64958.27,"d":"$64,958.27"},{"v":24741.63,"d":"$24,741.63"},{"v":602461.61,"d":"$602,461.61"},{"v":4803397.89,"d":"$4,803,397.89"},{"v":626186.4900000001,"d":"$626,186.49"},{"v":0,"d":"$0.00"},{"v":150048.86000000002,"d":"$150,048.86"},{"v":4803397.8100000005,"d":"$4,803,397.81"}]
["30039086003","DESOTO CONS SCHOOL DISTRICT 86",168.8,{"v":2260521.12,"d":"$2,260,521.12"},{"v":2277360.88,"d":"$2,277,360.88"},{"v":1.007449503502095,"d":"101%"},4,{"v":143.99,"d":"$143.99"},{"v":1011588.57,"d":"$1,011,588.57"},{"v":1011732.5599999999,"d":"$1,011,732.56"},{"v":0.9,"d":"0.90"},{"v":525926.28,"d":"$525,926.28"},{"v":105185.25,"d":"$105,185.25"},{"v":52718.14,"d":"$52,718.14"},{"v":23221.08,"d":"$23,221.08"},{"v":18476.37,"d":"$18,476.37"},{"v":32466.52,"d":"$32,466.52"},{"v":12110.27,"d":"$12,110.27"},{"v":19781.53,"d":"$19,781.53"},{"v":26811.82,"d":"$26,811.82"},{"v":14969.8,"d":"$14,969.80"},{"v":39776.18,"d":"$39,776.18"},{"v":34247.38,"d":"$34,247.38"},{"v":23736.9,"d":"$23,736.90"},{"v":929427.5200000001,"d":"$929,427.52"},{"v":14952.599999999999,"d":"$14,952.60"},{"v":21100,"d":"$21,100.00"},{"v":54860,"d":"$54,860.00"},{"v":5739.2,"d":"$5,739.20"},{"v":96384.8,"d":"$96,384.80"},{"v":28227.339999999997,"d":"$28,227.34"},{"v":229736.8,"d":"$229,736.80"},{"v":158165.6,"d":"$158,165.60"},{"v":448388.9382,"d":"$448,388.94"},{"v":1057555.2782,"d":"$1,057,555.28"},{"v":160677.34,"d":"$160,677.34"},{"v":896877.9381999999,"d":"$896,877.94"},{"v":1041487.5381999998,"d":"$1,041,487.54"},{"v":40915.35,"d":"$40,915.35"},{"v":40915.35,"d":"$40,915.35"},{"v":42895.12,"d":"$42,895.12"},{"v":42895.12,"d":"$42,895.12"},{"v":0,"d":"$0.00"},{"v":0,"d":"$0.00"},{"v":0,"d":"$0.00"},{"v":0,"d":"$0.00"},{"v":0,"d":"$0.00"},{"v":78531.07,"d":"$78,531.07"},{"v":31810.84,"d":"$31,810.84"},{"v":11643.12,"d":"$11,643.12"},{"v":289605.97000000003,"d":"$289,605.97"},{"v":2260521.12,"d":"$2,260,521.12"},{"v":166035.96,"d":"$166,035.96"},{"v":0,"d":"$0.00"},{"v":80588.15999999999,"d":"$80,588.16"},{"v":2260521.0282,"d":"$2,260,521.03"}]
["30039095002","CARBONDALE ELEM SCH DIST 95",1462.3,{"v":21443496.93,"d":"$21,443,496.93"},{"v":15261452.56,"d":"$15,261,452.56"},{"v":0.7117054000016592,"d":"71%"},1,{"v":597557.8,"d":"$597,557.80"},{"v":4226518.57,"d":"$4,226,518.57"},{"v":4824076.37,"d":"$4,824,076.37"},{"v":0.9,"d":"0.90"},{"v":4880821.86,"d":"$4,880,821.86"},{"v":976164.37,"d":"$976,164.37"},{"v":458145.81,"d":"$458,145.81"},{"v":203341.42,"d":"$203,341.42"},{"v":181846.5,"d":"$181,846.50"},{"v":273936.33,"d":"$273,936.33"},{"v":106790.59,"d":"$106,790.59"},{"v":173489.38,"d":"$173,489.38"},{"v":234784.65,"d":"$234,784.65"},{"v":129916.54,"d":"$129,916.54"},{"v":348310.36,"d":"$348,310.36"},{"v":299896.02,"d":"$299,896.02"},{"v":208179.08,"d":"$208,179.08"},{"v":8475622.91,"d":"$8,475,622.91"},{"v":130167,"d":"$130,167.00"},{"v":182787.5,"d":"$182,787.50"},{"v":475247.5,"d":"$475,247.50"},{"v":49718.2,"d":"$49,718.20"},{"v":834973.2999999999,"d":"$834,973.30"},{"v":236917.34,"d":"$236,917.34"},{"v":1990190.3,"d":"$1,990,190.30"},{"v":1370175.0999999999,"d":"$1,370,175.10"},{"v":4345852.078199999,"d":"$4,345,852.08"},{"v":9616028.3182,"d":"$9,616,028.32"},{"v":1391934.12,"d":"$1,391,934.12"},{"v":8224094.198199998,"d":"$8,224,094.20"},{"v":9476834.898199998,"d":"$9,476,834.90"},{"v":524640.37,"d":"$524,640.37"},{"v":524640.37,"d":"$524,640.37"},{"v":546417.9,"d":"$546,417.90"},{"v":546417.9,"d":"$546,417.90"},{"v":52794,"d":"$52,794.00"},{"v":52794,"d":"$52,794.00"},{"v":54773.77,"d":"$54,773.77"},{"v":54773.77,"d":"$54,773.77"},{"v":65992.5,"d":"$65,992.50"},{"v":684342.22,"d":"$684,342.22"},{"v":277208.76,"d":"$277,208.76"},{"v":106243.47,"d":"$106,243.47"},{"v":3491039.03,"d":"$3,491,039.03"},{"v":21443496.93,"d":"$21,443,496.93"},{"v":2291390.82,"d":"$2,291,390.82"},{"v":106829.73000000001,"d":"$106,829.73"},{"v":573365.8099999999,"d":"$573,365.81"},{"v":21443496.8382,"d":"$21,443,496.84"}]
["30039130004","GIANT CITY C C SCHOOL DIST 130",215.05,{"v":2714957.19,"d":"$2,714,957.19"},{"v":1862334.94,"d":"$1,862,334.94"},{"v":0.6859537037488241,"d":"69%"},1,{"v":97191.87,"d":"$97,191.87"},{"v":712957.63,"d":"$712,957.63"},{"v":810149.5,"d":"$810,149.50"},{"v":0.9,"d":"0.90"},{"v":635128.16,"d":"$635,128.16"},{"v":127025.63,"d":"$127,025.63"},{"v":66525.28,"d":"$66,525.28"},{"v":29497.05,"d":"$29,497.05"},{"v":21570.07,"d":"$21,570.07"},{"v":41935.93,"d":"$41,935.93"},{"v":15413.07,"d":"$15,413.07"},{"v":25395.21,"d":"$25,395.21"},{"v":34058.26,"d":"$34,058.26"},{"v":18712.26,"d":"$18,712.26"},{"v":50526.5,"d":"$50,526.50"},{"v":43503.43,"d":"$43,503.43"},{"v":30473.05,"d":"$30,473.05"},{"v":1139763.9,"d":"$1,139,763.90"},{"v":19167.3,"d":"$19,167.30"},{"v":26881.25,"d":"$26,881.25"},{"v":69891.25,"d":"$69,891.25"},{"v":7311.699999999999,"d":"$7,311.70"},{"v":122793.55,"d":"$122,793.55"},{"v":37014.92999999999,"d":"$37,014.93"},{"v":292683.05,"d":"$292,683.05"},{"v":201501.84999999998,"d":"$201,501.85"},{"v":530211.0072,"d":"$530,211.01"},{"v":1307455.8872,"d":"$1,307,455.89"},{"v":204701.79,"d":"$204,701.79"},{"v":1102754.0972,"d":"$1,102,754.10"},{"v":1286985.7072,"d":"$1,286,985.71"},{"v":32336.32,"d":"$32,336.32"},{"v":32336.32,"d":"$32,336.32"},{"v":33656.17,"d":"$33,656.17"},{"v":33656.17,"d":"$33,656.17"},{"v":0,"d":"$0.00"},{"v":0,"d":"$0.00"},{"v":0,"d":"$0.00"},{"v":0,"d":"$0.00"},{"v":0,"d":"$0.00"},{"v":100308.6,"d":"$100,308.60"},{"v":40632.33,"d":"$40,632.33"},{"v":15281.59,"d":"$15,281.59"},{"v":288207.5,"d":"$288,207.50"},{"v":2714957.19,"d":"$2,714,957.19"},{"v":90144.97999999998,"d":"$90,144.98"},{"v":139.69,"d":"$139.69"},{"v":84049.86,"d":"$84,049.86"},{"v":2714957.1072,"d":"$2,714,957.11"}]
["30039140004","UNITY POINT C C SCHOOL DIST 140",556.25,{"v":7530933.05,"d":"$7,530,933.05"},{"v":5243223.279999999,"d":"$5,243,223.28"},{"v":0.6962249226209758,"d":"70%"},1,{"v":267299.66,"d":"$267,299.66"},{"v":3498450.34,"d":"$3,498,450.34"},{"v":3765750,"d":"$3,765,750.00"},{"v":0.9,"d":"0.90"},{"v":1697649.88,"d":"$1,697,649.88"},{"v":339529.97,"d":"$339,529.97"},{"v":173844.36,"d":"$173,844.36"},{"v":77194.43,"d":"$77,194.43"},{"v":61680.92,"d":"$61,680.92"},{"v":105516.21,"d":"$105,516.21"},{"v":40184.09,"d":"$40,184.09"},{"v":65760.22,"d":"$65,760.22"},{"v":89131.21,"d":"$89,131.21"},{"v":49186.51,"d":"$49,186.51"},{"v":132228.93,"d":"$132,228.93"},{"v":113849.41,"d":"$113,849.41"},{"v":78909.17,"d":"$78,909.17"},{"v":3024665.31,"d":"$3,024,665.31"},{"v":49522.5,"d":"$49,522.50"},{"v":69531.25,"d":"$69,531.25"},{"v":180781.25,"d":"$180,781.25"},{"v":18912.5,"d":"$18,912.50"},{"v":317618.75,"d":"$317,618.75"},{"v":91783.25,"d":"$91,783.25"},{"v":757056.25,"d":"$757,056.25"},{"v":521206.25,"d":"$521,206.25"},{"v":1498080.8460000001,"d":"$1,498,080.85"},{"v":3504492.846,"d":"$3,504,492.85"},{"v":529483.25,"d":"$529,483.25"},{"v":2975009.596,"d":"$2,975,009.60"},{"v":3451544.516,"d":"$3,451,544.52"},{"v":113507.1,"d":"$113,507.10"},{"v":113507.1,"d":"$113,507.10"},{"v":118126.57,"d":"$118,126.57"},{"v":118126.57,"d":"$118,126.57"},{"v":34976.02,"d":"$34,976.02"},{"v":34976.02,"d":"$34,976.02"},{"v":36295.87,"d":"$36,295.87"},{"v":36295.87,"d":"$36,295.87"},{"v":43555.05,"d":"$43,555.05"},{"v":260010.45,"d":"$260,010.45"},{"v":105323.29,"d":"$105,323.29"},{"v":40023.22,"d":"$40,023.22"},{"v":1054723.1300000001,"d":"$1,054,723.13"},{"v":7530933.05,"d":"$7,530,933.05"},{"v":483099.82999999996,"d":"$483,099.83"},{"v":84461.89000000001,"d":"$84,461.89"},{"v":258494.31999999995,"d":"$258,494.32"},{"v":7530932.955999999,"d":"$7,530,932.96"}]
["30039165016","CARBONDALE COMM H S DISTRICT 165",969.5,{"v":14746235.07,"d":"$14,746,235.07"},{"v":11338663.61,"d":"$11,338,663.61"},{"v":0.7689192228508263,"d":"77%"},1,{"v":131323.06,"d":"$131,323.06"},{"v":1856240.5300000003,"d":"$1,856,240.53"},{"v":1987563.5900000003,"d":"$1,987,563.59"},{"v":0.9,"d":"0.90"},{"v":3152297.11,"d":"$3,152,297.11"},{"v":1050660.62,"d":"$1,050,660.62"},{"v":349372.98,"d":"$349,372.98"},{"v":116217.04,"d":"$116,217.04"},{"v":109032.49,"d":"$109,032.49"},{"v":298353.78,"d":"$298,353.78"},{"v":71010.24,"d":"$71,010.24"},{"v":129381.91,"d":"$129,381.91"},{"v":116667.68,"d":"$116,667.68"},{"v":86343.71,"d":"$86,343.71"},{"v":173080.15,"d":"$173,080.15"},{"v":149022.4,"d":"$149,022.40"},{"v":155252.19,"d":"$155,252.19"},{"v":5956692.300000003,"d":"$5,956,692.30"},{"v":87255,"d":"$87,255.00"},{"v":121187.5,"d":"$121,187.50"},{"v":315087.5,"d":"$315,087.50"},{"v":32963,"d":"$32,963.00"},{"v":553584.5,"d":"$553,584.50"},{"v":832800.5,"d":"$832,800.50"},{"v":1319489.5,"d":"$1,319,489.50"},{"v":908421.5,"d":"$908,421.50"},{"v":2847315.3090000004,"d":"$2,847,315.31"},{"v":7018104.309,"d":"$7,018,104.31"},{"v":922847.66,"d":"$922,847.66"},{"v":6095256.649,"d":"$6,095,256.65"},{"v":6925819.539,"d":"$6,925,819.54"},{"v":258030.67,"d":"$258,030.67"},{"v":258030.67,"d":"$258,030.67"},{"v":269249.4,"d":"$269,249.40"},{"v":269249.4,"d":"$269,249.40"},{"v":19137.82,"d":"$19,137.82"},{"v":19137.82,"d":"$19,137.82"},{"v":19797.75,"d":"$19,797.75"},{"v":19797.75,"d":"$19,797.75"},{"v":24417.22,"d":"$24,417.22"},{"v":453368.47,"d":"$453,368.47"},{"v":183647.46,"d":"$183,647.46"},{"v":69858.72,"d":"$69,858.72"},{"v":1863723.1500000001,"d":"$1,863,723.15"},{"v":14746235.07,"d":"$14,746,235.07"},{"v":765885.8,"d":"$765,885.80"},{"v":5032.01,"d":"$5,032.01"},{"v":296678.48,"d":"$296,678.48"},{"v":14746234.989000002,"d":"$14,746,234.99"}]
["30039176026","TRICO COMM UNIT SCH DISTRICT 176",818.54,{"v":11633713.56,"d":"$11,633,713.56"},{"v":11678049.94,"d":"$11,678,049.94"},{"v":1.003811025582789,"d":"100%"},4,{"v":741.04,"d":"$741.04"},{"v":4035866.99,"d":"$4,035,866.99"},{"v":4036608.0300000003,"d":"$4,036,608.03"},{"v":0.9,"d":"0.90"},{"v":2585097.09,"d":"$2,585,097.09"},{"v":622767.32,"d":"$622,767.32"},{"v":267024.48,"d":"$267,024.48"},{"v":108672.86,"d":"$108,672.86"},{"v":92920.34,"d":"$92,920.34"},{"v":183097.49,"d":"$183,097.49"},{"v":58899.96,"d":"$58,899.96"},{"v":100511.56,"d":"$100,511.56"},{"v":121015.54,"d":"$121,015.54"},{"v":72710.49,"d":"$72,710.49"},{"v":179530.34,"d":"$179,530.34"},{"v":154576.03,"d":"$154,576.03"},{"v":120609.14,"d":"$120,609.14"},{"v":4667432.639999999,"d":"$4,667,432.64"},{"v":73136.7,"d":"$73,136.70"},{"v":102317.5,"d":"$102,317.50"},{"v":266025.49999999994,"d":"$266,025.50"},{"v":27830.359999999997,"d":"$27,830.36"},{"v":467386.33999999997,"d":"$467,386.34"},{"v":305768.02999999997,"d":"$305,768.03"},{"v":1114032.94,"d":"$1,114,032.94"},{"v":766971.9799999997,"d":"$766,971.98"},{"v":2299118.9295599996,"d":"$2,299,118.93"},{"v":5422588.27956,"d":"$5,422,588.28"},{"v":779151.85,"d":"$779,151.85"},{"v":4643436.42956,"d":"$4,643,436.43"},{"v":5344673.08956,"d":"$5,344,673.09"},{"v":192698.1,"d":"$192,698.10"},{"v":192698.1,"d":"$192,698.10"},{"v":200617.2,"d":"$200,617.20"},{"v":200617.2,"d":"$200,617.20"},{"v":44874.9,"d":"$44,874.90"},{"v":44874.9,"d":"$44,874.90"},{"v":46194.75,"d":"$46,194.75"},{"v":46194.75,"d":"$46,194.75"},{"v":56093.62,"d":"$56,093.62"},{"v":382756.5,"d":"$382,756.50"},{"v":155044.44,"d":"$155,044.44"},{"v":58943.29,"d":"$58,943.29"},{"v":1621607.75,"d":"$1,621,607.75"},{"v":11633713.56,"d":"$11,633,713.56"},{"v":676791.9999999999,"d":"$676,792.00"},{"v":13154.66,"d":"$13,154.66"},{"v":354499.99000000005,"d":"$354,499.99"},{"v":11633713.479559999,"d":"$11,633,713.48"}]
["30039186026","MURPHYSBORO C U SCH DIST 186",1858.46,{"v":27042774.99,"d":"$27,042,774.99"},{"v":19172762.53,"d":"$19,172,762.53"},{"v":0.7089791094697121,"d":"71%"},1,{"v":856126.97,"d":"$856,126.97"},{"v":12988154.67,"d":"$12,988,154.67"},{"v":13844281.64,"d":"$13,844,281.64"},{"v":0.9,"d":"0.90"},{"v":6053680,"d":"$6,053,680.00"},{"v":1465627.91,"d":"$1,465,627.91"},{"v":608925.84,"d":"$608,925.84"},{"v":247534.66,"d":"$247,534.66"},{"v":217750.14,"d":"$217,750.14"},{"v":422167.93,"d":"$422,167.93"},{"v":135414.88,"d":"$135,414.88"},{"v":229091.52,"d":"$229,091.52"},{"v":275364.72,"d":"$275,364.72"},{"v":165202.52,"d":"$165,202.52"},{"v":408512.16,"d":"$408,512.16"},{"v":351729.9,"d":"$351,729.90"},{"v":274899.03,"d":"$274,899.03"},{"v":10855901.21,"d":"$10,855,901.21"},{"v":166167,"d":"$166,167.00"},{"v":232307.5,"d":"$232,307.50"},{"v":603999.5,"d":"$603,999.50"},{"v":63187.64,"d":"$63,187.64"},{"v":1061180.66,"d":"$1,061,180.66"},{"v":708683.88,"d":"$708,683.88"},{"v":2529364.06,"d":"$2,529,364.06"},{"v":1741377.02,"d":"$1,741,377.02"},{"v":5371947.12444,"d":"$5,371,947.12"},{"v":12478214.384440001,"d":"$12,478,214.38"},{"v":1769030.9,"d":"$1,769,030.90"},{"v":10709183.484440003,"d":"$10,709,183.48"},{"v":12301311.294440003,"d":"$12,301,311.29"},{"v":578094.3,"d":"$578,094.30"},{"v":578094.3,"d":"$578,094.30"},{"v":601851.6,"d":"$601,851.60"},{"v":601851.6,"d":"$601,851.60"},{"v":31676.4,"d":"$31,676.40"},{"v":31676.4,"d":"$31,676.40"},{"v":32996.25,"d":"$32,996.25"},{"v":32996.25,"d":"$32,996.25"},{"v":39595.5,"d":"$39,595.50"},{"v":869781.15,"d":"$869,781.15"},{"v":352325.12,"d":"$352,325.12"},{"v":134623.57,"d":"$134,623.57"},{"v":3885562.44,"d":"$3,885,562.44"},{"v":27042774.99,"d":"$27,042,774.99"},{"v":2940470.9600000004,"d":"$2,940,470.96"},{"v":43672.44,"d":"$43,672.44"},{"v":1017391.3500000001,"d":"$1,017,391.35"},{"v":27042774.944440003,"d":"$27,042,774.94"}]
["30039196026","ELVERADO C U SCHOOL DIST 196",366.21,{"v":5147590.17,"d":"$5,147,590.17"},{"v":3910419.81,"d":"$3,910,419.81"},{"v":0.7596602839110635,"d":"76%"},1,{"v":72225.03,"d":"$72,225.03"},{"v":2816686.64,"d":"$2,816,686.64"},{"v":2888911.67,"d":"$2,888,911.67"},{"v":0.9,"d":"0.90"},{"v":1167071.93,"d":"$1,167,071.93"},{"v":282487.57,"d":"$282,487.57"},{"v":118872.94,"d":"$118,872.94"},{"v":47511.04,"d":"$47,511.04"},{"v":40943.04,"d":"$40,943.04"},{"v":82039.32,"d":"$82,039.32"},{"v":26422.41,"d":"$26,422.41"},{"v":44909.42,"d":"$44,909.42"},{"v":52899.01,"d":"$52,899.01"},{"v":32078.16,"d":"$32,078.16"},{"v":78477.33,"d":"$78,477.33"},{"v":67569.16,"d":"$67,569.16"},{"v":53889.19,"d":"$53,889.19"},{"v":2095170.5199999998,"d":"$2,095,170.52"},{"v":32584.499999999993,"d":"$32,584.50"},{"v":45776.25,"d":"$45,776.25"},{"v":119018.25,"d":"$119,018.25"},{"v":12451.14,"d":"$12,451.14"},{"v":209105.91000000003,"d":"$209,105.91"},{"v":138557.40999999997,"d":"$138,557.41"},{"v":498411.80999999994,"d":"$498,411.81"},{"v":343138.77,"d":"$343,138.77"},{"v":1014047.76744,"d":"$1,014,047.77"},{"v":2413091.80744,"d":"$2,413,091.81"},{"v":348587.97,"d":"$348,587.97"},{"v":2064503.8374400001,"d":"$2,064,503.84"},{"v":2378233.0074400003,"d":"$2,378,233.01"},{"v":98328.82,"d":"$98,328.82"},{"v":98328.82,"d":"$98,328.82"},{"v":102288.37,"d":"$102,288.37"},{"v":102288.37,"d":"$102,288.37"},{"v":1319.85,"d":"$1,319.85"},{"v":1319.85,"d":"$1,319.85"},{"v":1319.85,"d":"$1,319.85"},{"v":1319.85,"d":"$1,319.85"},{"v":1319.85,"d":"$1,319.85"},{"v":170920.57,"d":"$170,920.57"},{"v":69235.36,"d":"$69,235.36"},{"v":26197.02,"d":"$26,197.02"},{"v":674186.58,"d":"$674,186.58"},{"v":5147590.17,"d":"$5,147,590.17"},{"v":436853.44,"d":"$436,853.44"},{"v":261.02,"d":"$261.02"},{"v":154783.66,"d":"$154,783.66"},{"v":5147590.10744,"d":"$5,147,590.11"}]
["30073005002","TAMAROA SCHOOL DIST 5",93,{"v":1189114.35,"d":"$1,189,114.35"},{"v":980102.54,"d":"$980,102.54"},{"v":0.8242290070757282,"d":"82%"},2,{"v":6679.78,"d":"$6,679.78"},{"v":714072.7899999999,"d":"$714,072.79"},{"v":720752.57,"d":"$720,752.57"},{"v":0.9,"d":"0.90"},{"v":280535.85,"d":"$280,535.85"},{"v":56107.17,"d":"$56,107.17"},{"v":28869.46,"d":"$28,869.46"},{"v":12551.94,"d":"$12,551.94"},{"v":9553.57,"d":"$9,553.57"},{"v":16909.65,"d":"$16,909.65"},{"v":6605.6,"d":"$6,605.60"},{"v":10960.03,"d":"$10,960.03"},{"v":14492.88,"d":"$14,492.88"},{"v":8019.54,"d":"$8,019.54"},{"v":21500.64,"d":"$21,500.64"},{"v":18512.1,"d":"$18,512.10"},{"v":13151.52,"d":"$13,151.52"},{"v":497769.95,"d":"$497,769.95"},{"v":8280,"d":"$8,280.00"},{"v":11625,"d":"$11,625.00"},{"v":30225,"d":"$30,225.00"},{"v":3162,"d":"$3,162.00"},{"v":53103,"d":"$53,103.00"},{"v":15468,"d":"$15,468.00"},{"v":126573,"d":"$126,573.00"},{"v":87141,"d":"$87,141.00"},{"v":233127.156,"d":"$233,127.16"},{"v":568704.156,"d":"$568,704.16"},{"v":88524.84,"d":"$88,524.84"},{"v":480179.316,"d":"$480,179.32"},{"v":559851.666,"d":"$559,851.67"},{"v":15838.2,"d":"$15,838.20"},{"v":15838.2,"d":"$15,838.20"},{"v":16498.12,"d":"$16,498.12"},{"v":16498.12,"d":"$16,498.12"},{"v":0,"d":"$0.00"},{"v":0,"d":"$0.00"},{"v":0,"d":"$0.00"},{"v":0,"d":"$0.00"},{"v":0,"d":"$0.00"},{"v":42895.12,"d":"$42,895.12"},{"v":17375.67,"d":"$17,375.67"},{"v":6549.25,"d":"$6,549.25"},{"v":131492.68,"d":"$131,492.68"},{"v":1189114.35,"d":"$1,189,114.35"},{"v":105103.79999999999,"d":"$105,103.80"},{"v":0,"d":"$0.00"},{"v":42479.05999999999,"d":"$42,479.06"},{"v":1189114.2959999999,"d":"$1,189,114.30"}]
["30073050002","PINCKNEYVILLE SCH DIST 50",502.39,{"v":6579968.58,"d":"$6,579,968.58"},{"v":5329033.32,"d":"$5,329,033.32"},{"v":0.8098873505563153,"d":"81%"},2,{"v":34589.53,"d":"$34,589.53"},{"v":2545389.33,"d":"$2,545,389.33"},{"v":2579978.86,"d":"$2,579,978.86"},{"v":0.9,"d":"0.90"},{"v":1543888.62,"d":"$1,543,888.62"},{"v":308777.72,"d":"$308,777.72"},{"v":156899.25,"d":"$156,899.25"},{"v":69663.26,"d":"$69,663.26"},{"v":53291.15,"d":"$53,291.15"},{"v":94694.04,"d":"$94,694.04"},{"v":36330.82,"d":"$36,330.82"},{"v":59611.91,"d":"$59,611.91"},{"v":80435.48,"d":"$80,435.48"},{"v":44374.78,"d":"$44,374.78"},{"v":119328.55,"d":"$119,328.55"},{"v":102742.15,"d":"$102,742.15"},{"v":71531.48,"d":"$71,531.48"},{"v":2741569.2099999995,"d":"$2,741,569.21"},{"v":44908.2,"d":"$44,908.20"},{"v":62798.749999999985,"d":"$62,798.75"},{"v":163276.74999999997,"d":"$163,276.75"},{"v":17081.259999999995,"d":"$17,081.26"},{"v":286864.69,"d":"$286,864.69"},{"v":83059.42,"d":"$83,059.42"},{"v":683752.7899999999,"d":"$683,752.79"},{"v":470739.42999999993,"d":"$470,739.43"},{"v":1298102.78496,"d":"$1,298,102.78"},{"v":3110584.07496,"d":"$3,110,584.07"},{"v":478214.99,"d":"$478,214.99"},{"v":2632369.0849599997,"d":"$2,632,369.08"},{"v":3062762.57496,"d":"$3,062,762.57"},{"v":100308.6,"d":"$100,308.60"},{"v":100308.6,"d":"$100,308.60"},{"v":104268.15,"d":"$104,268.15"},{"v":104268.15,"d":"$104,268.15"},{"v":0,"d":"$0.00"},{"v":0,"d":"$0.00"},{"v":0,"d":"$0.00"},{"v":0,"d":"$0.00"},{"v":0,"d":"$0.00"},{"v":234933.3,"d":"$234,933.30"},{"v":95165.2,"d":"$95,165.20"},{"v":36384.75,"d":"$36,384.75"},{"v":775636.75,"d":"$775,636.75"},{"v":6579968.58,"d":"$6,579,968.58"},{"v":311182.89,"d":"$311,182.89"},{"v":43.99,"d":"$43.99"},{"v":151495.26,"d":"$151,495.26"},{"v":6579968.53496,"d":"$6,579,968.53"}]
["30073101016","PINCKNEYVILLE COMM H S DIST 101",416.16,{"v":5940208.43,"d":"$5,940,208.43"},{"v":4854788.699999999,"d":"$4,854,788.70"},{"v":0.8172758173739704,"d":"82%"},2,{"v":33755.98,"d":"$33,755.98"},{"v":2244565.97,"d":"$2,244,565.97"},{"v":2278321.95,"d":"$2,278,321.95"},{"v":0.9,"d":"0.90"},{"v":1296433.62,"d":"$1,296,433.62"},{"v":432101.32,"d":"$432,101.32"},{"v":150143.76,"d":"$150,143.76"},{"v":49807.3,"d":"$49,807.30"},{"v":42482.52,"d":"$42,482.52"},{"v":127976.04,"d":"$127,976.04"},{"v":30275.68,"d":"$30,275.68"},{"v":55602.14,"d":"$55,602.14"},{"v":50000.43,"d":"$50,000.43"},{"v":36889.88,"d":"$36,889.88"},{"v":74177.2,"d":"$74,177.20"},{"v":63866.74,"d":"$63,866.74"},{"v":66719.95,"d":"$66,719.95"},{"v":2476476.580000001,"d":"$2,476,476.58"},{"v":37454.399999999994,"d":"$37,454.40"},{"v":52019.99999999999,"d":"$52,020.00"},{"v":135252,"d":"$135,252.00"},{"v":14149.439999999999,"d":"$14,149.44"},{"v":237627.36,"d":"$237,627.36"},{"v":357481.43999999994,"d":"$357,481.44"},{"v":566393.76,"d":"$566,393.76"},{"v":389941.92,"d":"$389,941.92"},{"v":1125884.99124,"d":"$1,125,884.99"},{"v":2916205.3112399997,"d":"$2,916,205.31"},{"v":396134.38,"d":"$396,134.38"},{"v":2520070.9312399994,"d":"$2,520,070.93"},{"v":2876591.8712399993,"d":"$2,876,591.87"},{"v":69292.12,"d":"$69,292.12"},{"v":69292.12,"d":"$69,292.12"},{"v":72591.75,"d":"$72,591.75"},{"v":72591.75,"d":"$72,591.75"},{"v":0,"d":"$0.00"},{"v":0,"d":"$0.00"},{"v":0,"d":"$0.00"},{"v":0,"d":"$0.00"},{"v":0,"d":"$0.00"},{"v":194677.87,"d":"$194,677.87"},{"v":78858.81,"d":"$78,858.81"},{"v":29835.49,"d":"$29,835.49"},{"v":587139.9099999999,"d":"$587,139.91"},{"v":5940208.43,"d":"$5,940,208.43"},{"v":192388.28999999998,"d":"$192,388.29"},{"v":0,"d":"$0.00"},{"v":168799.81,"d":"$168,799.81"},{"v":5940208.36124,"d":"$5,940,208.36"}]
["30073204004","COMMUNITY CONS SCH DIST 204",181.25,{"v":2240064.79,"d":"$2,240,064.79"},{"v":2030376.4200000002,"d":"$2,030,376.42"},{"v":0.9063918280685087,"d":"91%"},3,{"v":2545.63,"d":"$2,545.63"},{"v":218165.79999999996,"d":"$218,165.80"},{"v":220711.42999999996,"d":"$220,711.43"},{"v":0.9,"d":"0.90"},{"v":536595.43,"d":"$536,595.43"},{"v":107319.08,"d":"$107,319.08"},{"v":55856.13,"d":"$55,856.13"},{"v":24476.28,"d":"$24,476.28"},{"v":17761.02,"d":"$17,761.02"},{"v":33142.91,"d":"$33,142.91"},{"v":12660.74,"d":"$12,660.74"},{"v":21118.12,"d":"$21,118.12"},{"v":28261.11,"d":"$28,261.11"},{"v":15771.76,"d":"$15,771.76"},{"v":41926.24,"d":"$41,926.24"},{"v":36098.59,"d":"$36,098.59"},{"v":25340.75,"d":"$25,340.75"},{"v":956328.16,"d":"$956,328.16"},{"v":16200,"d":"$16,200.00"},{"v":22656.25,"d":"$22,656.25"},{"v":58906.25,"d":"$58,906.25"},{"v":6162.5,"d":"$6,162.50"},{"v":103493.75,"d":"$103,493.75"},{"v":29382,"d":"$29,382.00"},{"v":246681.25,"d":"$246,681.25"},{"v":169831.25,"d":"$169,831.25"},{"v":435379.6919999999,"d":"$435,379.69"},{"v":1088692.9419999998,"d":"$1,088,692.94"},{"v":172528.25,"d":"$172,528.25"},{"v":916164.6919999998,"d":"$916,164.69"},{"v":1071440.1119999997,"d":"$1,071,440.11"},{"v":19797.75,"d":"$19,797.75"},{"v":19797.75,"d":"$19,797.75"},{"v":20457.67,"d":"$20,457.67"},{"v":20457.67,"d":"$20,457.67"},{"v":0,"d":"$0.00"},{"v":0,"d":"$0.00"},{"v":0,"d":"$0.00"},{"v":0,"d":"$0.00"},{"v":0,"d":"$0.00"},{"v":84470.4,"d":"$84,470.40"},{"v":34216.7,"d":"$34,216.70"},{"v":13098.51,"d":"$13,098.51"},{"v":212296.45,"d":"$212,296.45"},{"v":2240064.79,"d":"$2,240,064.79"},{"v":26769.41,"d":"$26,769.41"},{"v":0,"d":"$0.00"},{"v":38373.380000000005,"d":"$38,373.38"},{"v":2240064.722,"d":"$2,240,064.72"}]
["30073300026","DU QUOIN C U SCHOOL DISTRICT 300",1352.11,{"v":18739209.88,"d":"$18,739,209.88"},{"v":13912832.190000001,"d":"$13,912,832.19"},{"v":0.7424449738859535,"d":"74%"},1,{"v":381834.45,"d":"$381,834.45"},{"v":9797081.32,"d":"$9,797,081.32"},{"v":10178915.77,"d":"$10,178,915.77"},{"v":0.9,"d":"0.90"},{"v":4255853.57,"d":"$4,255,853.57"},{"v":1039669.48,"d":"$1,039,669.48"},{"v":443640.69,"d":"$443,640.69"},{"v":178841.68,"d":"$178,841.68"},{"v":147424.03,"d":"$147,424.03"},{"v":308745.7,"d":"$308,745.70"},{"v":97983.12,"d":"$97,983.12"},{"v":166539.11,"d":"$166,539.11"},{"v":198552.45,"d":"$198,552.45"},{"v":120025.78,"d":"$120,025.78"},{"v":294558.76,"d":"$294,558.76"},{"v":253615.77,"d":"$253,615.77"},{"v":199839.08,"d":"$199,839.08"},{"v":7705289.220000002,"d":"$7,705,289.22"},{"v":120730.5,"d":"$120,730.50"},{"v":169013.75,"d":"$169,013.75"},{"v":439435.75,"d":"$439,435.75"},{"v":45971.74,"d":"$45,971.74"},{"v":772054.8099999999,"d":"$772,054.81"},{"v":529443.89,"d":"$529,443.89"},{"v":1840221.71,"d":"$1,840,221.71"},{"v":1266927.0699999998,"d":"$1,266,927.07"},{"v":3673758.2750399997,"d":"$3,673,758.28"},{"v":8857557.49504,"d":"$8,857,557.50"},{"v":1287046.46,"d":"$1,287,046.46"},{"v":7570511.0350399995,"d":"$7,570,511.04"},{"v":8728852.84504,"d":"$8,728,852.85"},{"v":322703.32,"d":"$322,703.32"},{"v":322703.32,"d":"$322,703.32"},{"v":336561.75,"d":"$336,561.75"},{"v":336561.75,"d":"$336,561.75"},{"v":0,"d":"$0.00"},{"v":0,"d":"$0.00"},{"v":0,"d":"$0.00"},{"v":0,"d":"$0.00"},{"v":0,"d":"$0.00"},{"v":632208.15,"d":"$632,208.15"},{"v":256090.64,"d":"$256,090.64"},{"v":98238.82,"d":"$98,238.82"},{"v":2305067.75,"d":"$2,305,067.75"},{"v":18739209.88,"d":"$18,739,209.88"},{"v":1445294.99,"d":"$1,445,294.99"},{"v":0,"d":"$0.00"},{"v":622921.6000000001,"d":"$622,921.60"},{"v":18739209.81504,"d":"$18,739,209.82"}]
["30077100026","CENTURY COMM UNIT SCH DIST 100",319.12,{"v":4373666.93,"d":"$4,373,666.93"},{"v":3543863.92,"d":"$3,543,863.92"},{"v":0.8102729304080776,"d":"81%"},2,{"v":29805,"d":"$29,805.00"},{"v":2471563.9899999998,"d":"$2,471,563.99"},{"v":2501368.9899999998,"d":"$2,501,368.99"},{"v":0.9,"d":"0.90"},{"v":995046.07,"d":"$995,046.07"},{"v":246735.28,"d":"$246,735.28"},{"v":105065.81,"d":"$105,065.81"},{"v":41235.07,"d":"$41,235.07"},{"v":34147.21,"d":"$34,147.21"},{"v":73151.74,"d":"$73,151.74"},{"v":22569.14,"d":"$22,569.14"},{"v":39295.74,"d":"$39,295.74"},{"v":45652.57,"d":"$45,652.57"},{"v":28068.39,"d":"$28,068.39"},{"v":67727.01,"d":"$67,727.01"},{"v":58313.11,"d":"$58,313.11"},{"v":47153.04,"d":"$47,153.04"},{"v":1804160.18,"d":"$1,804,160.18"},{"v":28436.399999999998,"d":"$28,436.40"},{"v":39890,"d":"$39,890.00"},{"v":103714,"d":"$103,714.00"},{"v":10850.079999999998,"d":"$10,850.08"},{"v":182217.52000000002,"d":"$182,217.52"},{"v":130699.71999999999,"d":"$130,699.72"},{"v":434322.31999999995,"d":"$434,322.32"},{"v":299015.43999999994,"d":"$299,015.44"},{"v":853534.54668,"d":"$853,534.55"},{"v":2082680.0266800001,"d":"$2,082,680.03"},{"v":303763.94,"d":"$303,763.94"},{"v":1778916.08668,"d":"$1,778,916.09"},{"v":2052303.62668,"d":"$2,052,303.63"},{"v":69952.05,"d":"$69,952.05"},{"v":69952.05,"d":"$69,952.05"},{"v":72591.75,"d":"$72,591.75"},{"v":72591.75,"d":"$72,591.75"},{"v":0,"d":"$0.00"},{"v":0,"d":"$0.00"},{"v":0,"d":"$0.00"},{"v":0,"d":"$0.00"},{"v":0,"d":"$0.00"},{"v":149143.05,"d":"$149,143.05"},{"v":60413.86,"d":"$60,413.86"},{"v":22558.54,"d":"$22,558.54"},{"v":517203.04999999993,"d":"$517,203.05"},{"v":4373666.93,"d":"$4,373,666.93"},{"v":327762.02999999997,"d":"$327,762.03"},{"v":0,"d":"$0.00"},{"v":125599.46,"d":"$125,599.46"},{"v":4373666.85668,"d":"$4,373,666.86"}]
["30077101026","MERIDIAN C U SCH DISTRICT 101",425.25,{"v":6321528.16,"d":"$6,321,528.16"},{"v":5028235.53,"d":"$5,028,235.53"},{"v":0.7954145584317068,"d":"80%"},2,{"v":51422.17,"d":"$51,422.17"},{"v":3990466.5400000005,"d":"$3,990,466.54"},{"v":4041888.7100000004,"d":"$4,041,888.71"},{"v":0.9,"d":"0.90"},{"v":1433438.84,"d":"$1,433,438.84"},{"v":348847.13,"d":"$348,847.13"},{"v":139553.67,"d":"$139,553.67"},{"v":56141.04,"d":"$56,141.04"},{"v":51436.66,"d":"$51,436.66"},{"v":95159.8,"d":"$95,159.80"},{"v":30275.68,"d":"$30,275.68"},{"v":52394.32,"d":"$52,394.32"},{"v":62319.38,"d":"$62,319.38"},{"v":37424.52,"d":"$37,424.52"},{"v":92452.75,"d":"$92,452.75"},{"v":79602.03,"d":"$79,602.03"},{"v":62870.72,"d":"$62,870.72"},{"v":2541916.54,"d":"$2,541,916.54"},{"v":37935,"d":"$37,935.00"},{"v":53156.25,"d":"$53,156.25"},{"v":138206.25,"d":"$138,206.25"},{"v":14458.5,"d":"$14,458.50"},{"v":242817.75,"d":"$242,817.75"},{"v":164705.5,"d":"$164,705.50"},{"v":578765.25,"d":"$578,765.25"},{"v":398459.25,"d":"$398,459.25"},{"v":1261593.681,"d":"$1,261,593.68"},{"v":2890097.431,"d":"$2,890,097.43"},{"v":404786.97,"d":"$404,786.97"},{"v":2485310.461,"d":"$2,485,310.46"},{"v":2849618.731,"d":"$2,849,618.73"},{"v":151782.75,"d":"$151,782.75"},{"v":151782.75,"d":"$151,782.75"},{"v":158382,"d":"$158,382.00"},{"v":158382,"d":"$158,382.00"},{"v":0,"d":"$0.00"},{"v":0,"d":"$0.00"},{"v":0,"d":"$0.00"},{"v":0,"d":"$0.00"},{"v":0,"d":"$0.00"},{"v":198637.42,"d":"$198,637.42"},{"v":80462.71,"d":"$80,462.71"},{"v":30563.19,"d":"$30,563.19"},{"v":929992.82,"d":"$929,992.82"},{"v":6321528.16,"d":"$6,321,528.16"},{"v":1335454.1400000001,"d":"$1,335,454.14"},{"v":0,"d":"$0.00"},{"v":181830.69,"d":"$181,830.69"},{"v":6321528.091,"d":"$6,321,528.09"}]
["30091016004","LICK CREEK C C SCH DISTRICT 16",127.29,{"v":1604329.85,"d":"$1,604,329.85"},{"v":1147898.94,"d":"$1,147,898.94"},{"v":0.715500581130495,"d":"72%"},1,{"v":44054.58,"d":"$44,054.58"},{"v":601003.9200000002,"d":"$601,003.92"},{"v":645058.5000000001,"d":"$645,058.50"},{"v":0.9,"d":"0.90"},{"v":380951.37,"d":"$380,951.37"},{"v":76190.27,"d":"$76,190.27"},{"v":38911.01,"d":"$38,911.01"},{"v":17572.71,"d":"$17,572.71"},{"v":12791.43,"d":"$12,791.43"},{"v":23673.51,"d":"$23,673.51"},{"v":8807.47,"d":"$8,807.47"},{"v":14969.8,"d":"$14,969.80"},{"v":20290.03,"d":"$20,290.03"},{"v":10960.03,"d":"$10,960.03"},{"v":30100.89,"d":"$30,100.89"},{"v":25916.94,"d":"$25,916.94"},{"v":17963.06,"d":"$17,963.06"},{"v":679098.5200000001,"d":"$679,098.52"},{"v":11396.7,"d":"$11,396.70"},{"v":15911.25,"d":"$15,911.25"},{"v":41369.25,"d":"$41,369.25"},{"v":4327.86,"d":"$4,327.86"},{"v":72682.59,"d":"$72,682.59"},{"v":20994.589999999997,"d":"$20,994.59"},{"v":173241.69,"d":"$173,241.69"},{"v":119270.73,"d":"$119,270.73"},{"v":313377.14256,"d":"$313,377.14"},{"v":772571.80256,"d":"$772,571.80"},{"v":121164.8,"d":"$121,164.80"},{"v":651407.0025599998,"d":"$651,407.00"},{"v":760455.3225599998,"d":"$760,455.32"},{"v":17817.97,"d":"$17,817.97"},{"v":17817.97,"d":"$17,817.97"},{"v":18477.9,"d":"$18,477.90"},{"v":18477.9,"d":"$18,477.90"},{"v":0,"d":"$0.00"},{"v":0,"d":"$0.00"},{"v":0,"d":"$0.00"},{"v":0,"d":"$0.00"},{"v":0,"d":"$0.00"},{"v":59393.25,"d":"$59,393.25"},{"v":24058.62,"d":"$24,058.62"},{"v":8732.34,"d":"$8,732.34"},{"v":164775.94999999998,"d":"$164,775.95"},{"v":1604329.85,"d":"$1,604,329.85"},{"v":54604.13,"d":"$54,604.13"},{"v":0,"d":"$0.00"},{"v":44177.44,"d":"$44,177.44"},{"v":1604329.7925599997,"d":"$1,604,329.79"}]
["30091017022","COBDEN SCH UNIT DIST 17",463.45,{"v":6669058.73,"d":"$6,669,058.73"},{"v":4993284.15,"d":"$4,993,284.15"},{"v":0.748723973225529,"d":"75%"},1,{"v":118743.68,"d":"$118,743.68"},{"v":3650007.9899999993,"d":"$3,650,007.99"},{"v":3768751.6699999995,"d":"$3,768,751.67"},{"v":0.9,"d":"0.90"},{"v":1465962.68,"d":"$1,465,962.68"},{"v":368053.2,"d":"$368,053.20"},{"v":152546.88,"d":"$152,546.88"},{"v":60472.11,"d":"$60,472.11"},{"v":52906.94,"d":"$52,906.94"},{"v":108658.51,"d":"$108,658.51"},{"v":33028.02,"d":"$33,028.02"},{"v":57206.05,"d":"$57,206.05"},{"v":66667.24,"d":"$66,667.24"},{"v":40899.65,"d":"$40,899.65"},{"v":98902.94,"d":"$98,902.94"},{"v":85155.66,"d":"$85,155.66"},{"v":68644.56,"d":"$68,644.56"},{"v":2659104.44,"d":"$2,659,104.44"},{"v":41561.1,"d":"$41,561.10"},{"v":57931.25,"d":"$57,931.25"},{"v":150621.25,"d":"$150,621.25"},{"v":15757.3,"d":"$15,757.30"},{"v":264629.94999999995,"d":"$264,629.95"},{"v":198708.68999999997,"d":"$198,708.69"},{"v":630755.45,"d":"$630,755.45"},{"v":434252.64999999997,"d":"$434,252.65"},{"v":1315770.7337999998,"d":"$1,315,770.73"},{"v":3109988.3737999992,"d":"$3,109,988.37"},{"v":441148.78,"d":"$441,148.78"},{"v":2668839.5938,"d":"$2,668,839.59"},{"v":3065873.4938,"d":"$3,065,873.49"},{"v":110867.4,"d":"$110,867.40"},{"v":110867.4,"d":"$110,867.40"},{"v":115486.87,"d":"$115,486.87"},{"v":115486.87,"d":"$115,486.87"},{"v":29036.7,"d":"$29,036.70"},{"v":29036.7,"d":"$29,036.70"},{"v":29696.62,"d":"$29,696.62"},{"v":29696.62,"d":"$29,696.62"},{"v":36295.87,"d":"$36,295.87"},{"v":216455.4,"d":"$216,455.40"},{"v":87680.3,"d":"$87,680.30"},{"v":33473.97,"d":"$33,473.97"},{"v":944080.7200000001,"d":"$944,080.72"},{"v":6669058.73,"d":"$6,669,058.73"},{"v":635257.86,"d":"$635,257.86"},{"v":34720.46,"d":"$34,720.46"},{"v":204630.24999999994,"d":"$204,630.25"},{"v":6669058.6537999995,"d":"$6,669,058.65"}]
["30091037004","ANNA C C SCH DIST 37",581.23,{"v":7938652.3,"d":"$7,938,652.30"},{"v":6118580.52,"d":"$6,118,580.52"},{"v":0.7707329013515304,"d":"77%"},1,{"v":72354.06,"d":"$72,354.06"},{"v":3671621.71,"d":"$3,671,621.71"},{"v":3743975.77,"d":"$3,743,975.77"},{"v":0.9,"d":"0.90"},{"v":1826307.27,"d":"$1,826,307.27"},{"v":365261.45,"d":"$365,261.45"},{"v":182003.13,"d":"$182,003.13"},{"v":80332.41,"d":"$80,332.41"},{"v":65349.85,"d":"$65,349.85"},{"v":110927.3,"d":"$110,927.30"},{"v":42385.95,"d":"$42,385.95"},{"v":68700.72,"d":"$68,700.72"},{"v":92754.43,"d":"$92,754.43"},{"v":51592.37,"d":"$51,592.37"},{"v":137604.09,"d":"$137,604.09"},{"v":118477.44,"d":"$118,477.44"},{"v":82437.63,"d":"$82,437.63"},{"v":3224134.0400000005,"d":"$3,224,134.04"},{"v":51613.2,"d":"$51,613.20"},{"v":72653.75,"d":"$72,653.75"},{"v":188899.75,"d":"$188,899.75"},{"v":19761.82,"d":"$19,761.82"},{"v":331882.33,"d":"$331,882.33"},{"v":97000.84,"d":"$97,000.84"},{"v":791054.03,"d":"$791,054.03"},{"v":544612.51,"d":"$544,612.51"},{"v":1582271.3587200001,"d":"$1,582,271.36"},{"v":3679749.5887200003,"d":"$3,679,749.59"},{"v":553261.21,"d":"$553,261.21"},{"v":3126488.37872,"d":"$3,126,488.38"},{"v":3624423.45872,"d":"$3,624,423.46"},{"v":153102.6,"d":"$153,102.60"},{"v":153102.6,"d":"$153,102.60"},{"v":159041.92,"d":"$159,041.92"},{"v":159041.92,"d":"$159,041.92"},{"v":7919.1,"d":"$7,919.10"},{"v":7919.1,"d":"$7,919.10"},{"v":7919.1,"d":"$7,919.10"},{"v":7919.1,"d":"$7,919.10"},{"v":9898.87,"d":"$9,898.87"},{"v":271889.1,"d":"$271,889.10"},{"v":110135.01,"d":"$110,135.01"},{"v":42206.31,"d":"$42,206.31"},{"v":1090094.73,"d":"$1,090,094.73"},{"v":7938652.3,"d":"$7,938,652.30"},{"v":515402.12,"d":"$515,402.12"},{"v":2282.7,"d":"$2,282.70"},{"v":255443.19,"d":"$255,443.19"},{"v":7938652.22872,"d":"$7,938,652.23"}]
["30091043004","JONESBORO C C SCHOOL DIST 43",327.46,{"v":4272394.27,"d":"$4,272,394.27"},{"v":3314377.19,"d":"$3,314,377.19"},{"v":0.7757657604947589,"d":"78%"},2,{"v":40407.03,"d":"$40,407.03"},{"v":2550833.4700000007,"d":"$2,550,833.47"},{"v":2591240.5000000005,"d":"$2,591,240.50"},{"v":0.9,"d":"0.90"},{"v":995368.84,"d":"$995,368.84"},{"v":199073.76,"d":"$199,073.76"},{"v":102298.31,"d":"$102,298.31"},{"v":45186.98,"d":"$45,186.98"},{"v":34495.73,"d":"$34,495.73"},{"v":62903.89,"d":"$62,903.89"},{"v":23119.61,"d":"$23,119.61"},{"v":38493.79,"d":"$38,493.79"},{"v":52174.36,"d":"$52,174.36"},{"v":28870.34,"d":"$28,870.34"},{"v":77402.3,"d":"$77,402.30"},{"v":66643.56,"d":"$66,643.56"},{"v":46190.73,"d":"$46,190.73"},{"v":1772222.2000000004,"d":"$1,772,222.20"},{"v":29246.399999999994,"d":"$29,246.40"},{"v":40932.5,"d":"$40,932.50"},{"v":106424.49999999999,"d":"$106,424.50"},{"v":11133.64,"d":"$11,133.64"},{"v":186979.65999999997,"d":"$186,979.66"},{"v":55374.759999999995,"d":"$55,374.76"},{"v":445673.05999999994,"d":"$445,673.06"},{"v":306830.01999999996,"d":"$306,830.02"},{"v":841751.6564399998,"d":"$841,751.66"},{"v":2024346.1964399996,"d":"$2,024,346.20"},{"v":311702.62,"d":"$311,702.62"},{"v":1712643.5764399995,"d":"$1,712,643.58"},{"v":1993175.9264399996,"d":"$1,993,175.93"},{"v":64012.72,"d":"$64,012.72"},{"v":64012.72,"d":"$64,012.72"},{"v":66652.42,"d":"$66,652.42"},{"v":66652.42,"d":"$66,652.42"},{"v":1319.85,"d":"$1,319.85"},{"v":1319.85,"d":"$1,319.85"},{"v":1319.85,"d":"$1,319.85"},{"v":1319.85,"d":"$1,319.85"},{"v":1979.77,"d":"$1,979.77"},{"v":153102.6,"d":"$153,102.60"},{"v":62017.77,"d":"$62,017.77"},{"v":23286.24,"d":"$23,286.24"},{"v":506996.05999999994,"d":"$506,996.06"},{"v":4272394.27,"d":"$4,272,394.27"},{"v":379467.73000000004,"d":"$379,467.73"},{"v":559.12,"d":"$559.12"},{"v":123161.85,"d":"$123,161.85"},{"v":4272394.186439999,"d":"$4,272,394.19"}]
["30091066022","DONGOLA SCH UNIT DIST 66",235.03,{"v":3297763.1,"d":"$3,297,763.10"},{"v":2550516.2,"d":"$2,550,516.20"},{"v":0.7734079503770298,"d":"77%"},2,{"v":31021.2,"d":"$31,021.20"},{"v":1858124.3900000004,"d":"$1,858,124.39"},{"v":1889145.5900000003,"d":"$1,889,145.59"},{"v":0.9,"d":"0.90"},{"v":750231.58,"d":"$750,231.58"},{"v":179778.88,"d":"$179,778.88"},{"v":76005.68,"d":"$76,005.68"},{"v":30533.78,"d":"$30,533.78"},{"v":26297.91,"d":"$26,297.91"},{"v":51929.13,"d":"$51,929.13"},{"v":17064.47,"d":"$17,064.47"},{"v":28603.02,"d":"$28,603.02"},{"v":34058.26,"d":"$34,058.26"},{"v":20316.16,"d":"$20,316.16"},{"v":50526.5,"d":"$50,526.50"},{"v":43503.43,"d":"$43,503.43"},{"v":34322.28,"d":"$34,322.28"},{"v":1343171.0799999996,"d":"$1,343,171.08"},{"v":20935.8,"d":"$20,935.80"},{"v":29378.749999999996,"d":"$29,378.75"},{"v":76384.75,"d":"$76,384.75"},{"v":7991.019999999999,"d":"$7,991.02"},{"v":134202.13,"d":"$134,202.13"},{"v":85912.58,"d":"$85,912.58"},{"v":319875.82999999996,"d":"$319,875.83"},{"v":220223.11,"d":"$220,223.11"},{"v":650070.39492,"d":"$650,070.39"},{"v":1544974.3649199998,"d":"$1,544,974.36"},{"v":223720.35,"d":"$223,720.35"},{"v":1321254.0149199998,"d":"$1,321,254.01"},{"v":1522602.3249199998,"d":"$1,522,602.32"},{"v":64012.72,"d":"$64,012.72"},{"v":64012.72,"d":"$64,012.72"},{"v":66652.42,"d":"$66,652.42"},{"v":66652.42,"d":"$66,652.42"},{"v":0,"d":"$0.00"},{"v":0,"d":"$0.00"},{"v":0,"d":"$0.00"},{"v":0,"d":"$0.00"},{"v":0,"d":"$0.00"},{"v":109547.55,"d":"$109,547.55"},{"v":44374.78,"d":"$44,374.78"},{"v":16736.98,"d":"$16,736.98"},{"v":431989.58999999997,"d":"$431,989.59"},{"v":3297763.1,"d":"$3,297,763.10"},{"v":281249.04000000004,"d":"$281,249.04"},{"v":0,"d":"$0.00"},{"v":99095.99,"d":"$99,095.99"},{"v":3297762.9949199995,"d":"$3,297,762.99"}]
["30091081016","ANNA JONESBORO COMM H S DIST 81",505.15,{"v":7382431.99,"d":"$7,382,431.99"},{"v":5237254.95,"d":"$5,237,254.95"},{"v":0.7094213610222504,"d":"71%"},1,{"v":233227.91,"d":"$233,227.91"},{"v":3173231.2700000005,"d":"$3,173,231.27"},{"v":3406459.1800000006,"d":"$3,406,459.18"},{"v":0.9,"d":"0.90"},{"v":1601774.05,"d":"$1,601,774.05"},{"v":533871.28,"d":"$533,871.28"},{"v":181904.94,"d":"$181,904.94"},{"v":60634.98,"d":"$60,634.98"},{"v":53460.45,"d":"$53,460.45"},{"v":155729.88,"d":"$155,729.88"},{"v":36881.28,"d":"$36,881.28"},{"v":67364.13,"d":"$67,364.13"},{"v":60870.09,"d":"$60,870.09"},{"v":44909.42,"d":"$44,909.42"},{"v":90302.68,"d":"$90,302.68"},{"v":77750.82,"d":"$77,750.82"},{"v":80833.78,"d":"$80,833.78"},{"v":3046287.7799999993,"d":"$3,046,287.78"},{"v":45463.5,"d":"$45,463.50"},{"v":63143.75,"d":"$63,143.75"},{"v":164173.75,"d":"$164,173.75"},{"v":17175.1,"d":"$17,175.10"},{"v":288440.65,"d":"$288,440.65"},{"v":433923.85,"d":"$433,923.85"},{"v":687509.15,"d":"$687,509.15"},{"v":473325.55,"d":"$473,325.55"},{"v":1409164.6056,"d":"$1,409,164.61"},{"v":3582319.9055999997,"d":"$3,582,319.91"},{"v":480842.18,"d":"$480,842.18"},{"v":3101477.7256,"d":"$3,101,477.73"},{"v":3534235.6856,"d":"$3,534,235.69"},{"v":104268.15,"d":"$104,268.15"},{"v":104268.15,"d":"$104,268.15"},{"v":108887.62,"d":"$108,887.62"},{"v":108887.62,"d":"$108,887.62"},{"v":1319.85,"d":"$1,319.85"},{"v":1319.85,"d":"$1,319.85"},{"v":1319.85,"d":"$1,319.85"},{"v":1319.85,"d":"$1,319.85"},{"v":1979.77,"d":"$1,979.77"},{"v":236253.15,"d":"$236,253.15"},{"v":95699.84,"d":"$95,699.84"},{"v":36384.75,"d":"$36,384.75"},{"v":801908.4499999998,"d":"$801,908.45"},{"v":7382431.99,"d":"$7,382,431.99"},{"v":360461.23000000004,"d":"$360,461.23"},{"v":1104.33,"d":"$1,104.33"},{"v":209021.64,"d":"$209,021.64"},{"v":7382431.915599999,"d":"$7,382,431.92"}]
["30091084026","SHAWNEE C U SCH DIST 84",270.75,{"v":3800074.38,"d":"$3,800,074.38"},{"v":5299615.31,"d":"$5,299,615.31"},{"v":1.394608310272074,"d":"139%"},4,{"v":242.05,"d":"$242.05"},{"v":882777.2100000001,"d":"$882,777.21"},{"v":883019.2600000001,"d":"$883,019.26"},{"v":0.9,"d":"0.90"},{"v":875783.12,"d":"$875,783.12"},{"v":205562.75,"d":"$205,562.75"},{"v":87302.43,"d":"$87,302.43"},{"v":35554.56,"d":"$35,554.56"},{"v":31330.5,"d":"$31,330.50"},{"v":58692.99,"d":"$58,692.99"},{"v":19266.34,"d":"$19,266.34"},{"v":32880.11,"d":"$32,880.11"},{"v":39855.42,"d":"$39,855.42"},{"v":23523.98,"d":"$23,523.98"},{"v":59126.76,"d":"$59,126.76"},{"v":50908.27,"d":"$50,908.27"},{"v":39454.58,"d":"$39,454.58"},{"v":1559241.8100000003,"d":"$1,559,241.81"},{"v":24120,"d":"$24,120.00"},{"v":33843.75,"d":"$33,843.75"},{"v":87993.75,"d":"$87,993.75"},{"v":9205.5,"d":"$9,205.50"},{"v":77299.12,"d":"$77,299.12"},{"v":91901,"d":"$91,901.00"},{"v":368490.75,"d":"$368,490.75"},{"v":253692.75,"d":"$253,692.75"},{"v":769979.694,"d":"$769,979.69"},{"v":1716526.314,"d":"$1,716,526.31"},{"v":257721.51,"d":"$257,721.51"},{"v":1458804.8040000002,"d":"$1,458,804.80"},{"v":1690754.1540000003,"d":"$1,690,754.15"},{"v":86450.17,"d":"$86,450.17"},{"v":86450.17,"d":"$86,450.17"},{"v":89749.8,"d":"$89,749.80"},{"v":89749.8,"d":"$89,749.80"},{"v":0,"d":"$0.00"},{"v":0,"d":"$0.00"},{"v":0,"d":"$0.00"},{"v":0,"d":"$0.00"},{"v":0,"d":"$0.00"},{"v":126705.6,"d":"$126,705.60"},{"v":51325.05,"d":"$51,325.05"},{"v":19647.76,"d":"$19,647.76"},{"v":550078.3500000001,"d":"$550,078.35"},{"v":3800074.38,"d":"$3,800,074.38"},{"v":502910.87,"d":"$502,910.87"},{"v":0,"d":"$0.00"},{"v":132227.63999999998,"d":"$132,227.64"},{"v":3800074.3140000007,"d":"$3,800,074.31"}]
[null,"SAFE SCH-KANE ROE",88.98,{"v":1470802.1,"d":"$1,470,802.10"},{"v":1334268.48,"d":"$1,334,268.48"},{"v":0.9071706383884004,"d":"91%"},3,{"v":1671.43,"d":"$1,671.43"},{"v":1187188.27,"d":"$1,187,188.27"},{"v":1188859.7,"d":"$1,188,859.70"},{"v":1.05749,"d":"1.06"},{"v":328159.78,"d":"$328,159.78"},{"v":105542.02,"d":"$105,542.02"},{"v":36027.91,"d":"$36,027.91"},{"v":11763.49,"d":"$11,763.49"},{"v":11746.62,"d":"$11,746.62"},{"v":30465.46,"d":"$30,465.46"},{"v":7114.71,"d":"$7,114.71"},{"v":13192.01,"d":"$13,192.01"},{"v":11920.28,"d":"$11,920.28"},{"v":8794.67,"d":"$8,794.67"},{"v":17684.1,"d":"$17,684.10"},{"v":15226.05,"d":"$15,226.05"},{"v":15829.8,"d":"$15,829.80"},{"v":613466.9000000003,"d":"$613,466.90"},{"v":8008.2,"d":"$8,008.20"},{"v":11122.5,"d":"$11,122.50"},{"v":28918.5,"d":"$28,918.50"},{"v":3025.3199999999997,"d":"$3,025.32"},{"v":50807.58,"d":"$50,807.58"},{"v":70949.91999999998,"d":"$70,949.92"},{"v":121101.78,"d":"$121,101.78"},{"v":83374.26,"d":"$83,374.26"},{"v":257779.95671999996,"d":"$257,779.96"},{"v":635088.01672,"d":"$635,088.02"},{"v":84698.28,"d":"$84,698.28"},{"v":550389.7367199997,"d":"$550,389.74"},{"v":639957.3167199997,"d":"$639,957.32"},{"v":22486.73,"d":"$22,486.73"},{"v":22486.73,"d":"$22,486.73"},{"v":23262.13,"d":"$23,262.13"},{"v":23262.13,"d":"$23,262.13"},{"v":9304.85,"d":"$9,304.85"},{"v":9304.85,"d":"$9,304.85"},{"v":10080.25,"d":"$10,080.25"},{"v":10080.25,"d":"$10,080.25"},{"v":11631.06,"d":"$11,631.06"},{"v":48850.48,"d":"$48,850.48"},{"v":19788.02,"d":"$19,788.02"},{"v":6840.26,"d":"$6,840.26"},{"v":217377.74000000002,"d":"$217,377.74"},{"v":1470802.1,"d":"$1,470,802.10"},{"v":2726.44,"d":"$2,726.44"},{"v":646.2,"d":"$646.20"},{"v":1470.4,"d":"$1,470.40"},{"v":1470801.95672,"d":"$1,470,801.96"}]
[null,"ALOP-KANE ROE",1057,{"v":17415299.64,"d":"$17,415,299.64"},{"v":9294408.690000001,"d":"$9,294,408.69"},{"v":0.5336921489798726,"d":"53%"},1,{"v":1663443.85,"d":"$1,663,443.85"},{"v":7552878.73,"d":"$7,552,878.73"},{"v":9216322.58,"d":"$9,216,322.58"},{"v":1.05749,"d":"1.06"},{"v":3899375.19,"d":"$3,899,375.19"},{"v":1248055.29,"d":"$1,248,055.29"},{"v":441294.72,"d":"$441,294.72"},{"v":151485.84,"d":"$151,485.84"},{"v":137922.64,"d":"$137,922.64"},{"v":374661.05,"d":"$374,661.05"},{"v":90550.96,"d":"$90,550.96"},{"v":163643.84,"d":"$163,643.84"},{"v":154963.65,"d":"$154,963.65"},{"v":110247.58,"d":"$110,247.58"},{"v":229893.41,"d":"$229,893.41"},{"v":197938.75,"d":"$197,938.75"},{"v":196364.9,"d":"$196,364.90"},{"v":7396397.82,"d":"$7,396,397.82"},{"v":95130,"d":"$95,130.00"},{"v":132125,"d":"$132,125.00"},{"v":343525,"d":"$343,525.00"},{"v":35938,"d":"$35,938.00"},{"v":603547,"d":"$603,547.00"},{"v":833141,"d":"$833,141.00"},{"v":1438577,"d":"$1,438,577.00"},{"v":990409,"d":"$990,409.00"},{"v":3052204.176,"d":"$3,052,204.18"},{"v":7524596.176,"d":"$7,524,596.18"},{"v":1006137.16,"d":"$1,006,137.16"},{"v":6518459.016,"d":"$6,518,459.02"},{"v":7582438.995999999,"d":"$7,582,439.00"},{"v":271391.58,"d":"$271,391.58"},{"v":271391.58,"d":"$271,391.58"},{"v":283022.65,"d":"$283,022.65"},{"v":283022.65,"d":"$283,022.65"},{"v":79091.26,"d":"$79,091.26"},{"v":79091.26,"d":"$79,091.26"},{"v":82192.88,"d":"$82,192.88"},{"v":82192.88,"d":"$82,192.88"},{"v":99251.78,"d":"$99,251.78"},{"v":580778,"d":"$580,778.00"},{"v":235257.66,"d":"$235,257.66"},{"v":89778.52,"d":"$89,778.52"},{"v":2436462.6999999997,"d":"$2,436,462.70"},{"v":17415299.64,"d":"$17,415,299.64"},{"v":599325.88,"d":"$599,325.88"},{"v":118176.95999999999,"d":"$118,176.96"},{"v":330913.1,"d":"$330,913.10"},{"v":17415299.516,"d":"$17,415,299.52"}]
["31045046022","SCHOOL DISTRICT 46",35452.05,{"v":597930849.34,"d":"$597,930,849.34"},{"v":378731434.15,"d":"$378,731,434.15"},{"v":0.6334034020289239,"d":"63%"},1,{"v":35018726.64,"d":"$35,018,726.64"},{"v":247450742.77999997,"d":"$247,450,742.78"},{"v":282469469.41999996,"d":"$282,469,469.42"},{"v":1.05749,"d":"1.06"},{"v":132998964.49,"d":"$132,998,964.49"},{"v":32628927.97,"d":"$32,628,927.97"},{"v":13724682.45,"d":"$13,724,682.45"},{"v":5542105.81,"d":"$5,542,105.81"},{"v":5178527.26,"d":"$5,178,527.26"},{"v":9611167.33,"d":"$9,611,167.33"},{"v":3056095.07,"d":"$3,056,095.07"},{"v":5154624.2,"d":"$5,154,624.20"},{"v":6147459.24,"d":"$6,147,459.24"},{"v":3711354.55,"d":"$3,711,354.55"},{"v":9119947.73,"d":"$9,119,947.73"},{"v":7852295.76,"d":"$7,852,295.76"},{"v":6185306.07,"d":"$6,185,306.07"},{"v":240911457.92999995,"d":"$240,911,457.93"},{"v":3166685.1,"d":"$3,166,685.10"},{"v":4431506.25,"d":"$4,431,506.25"},{"v":11521916.25,"d":"$11,521,916.25"},{"v":1205369.7,"d":"$1,205,369.70"},{"v":20243120.55,"d":"$20,243,120.55"},{"v":14083025.25,"d":"$14,083,025.25"},{"v":48250240.05,"d":"$48,250,240.05"},{"v":33218570.849999998,"d":"$33,218,570.85"},{"v":108371623.82819998,"d":"$108,371,623.83"},{"v":244492057.82819998,"d":"$244,492,057.83"},{"v":33746097.35,"d":"$33,746,097.35"},{"v":210745960.47819996,"d":"$210,745,960.48"},{"v":246432120.95819995,"d":"$246,432,120.96"},{"v":11245692.07,"d":"$11,245,692.07"},{"v":11245692.07,"d":"$11,245,692.07"},{"v":11714811.82,"d":"$11,714,811.82"},{"v":11714811.82,"d":"$11,714,811.82"},{"v":6420349.61,"d":"$6,420,349.61"},{"v":6420349.61,"d":"$6,420,349.61"},{"v":6687864.17,"d":"$6,687,864.17"},{"v":6687864.17,"d":"$6,687,864.17"},{"v":8025437.01,"d":"$8,025,437.01"},{"v":19495996.41,"d":"$19,495,996.41"},{"v":7897307.67,"d":"$7,897,307.67"},{"v":3031093.89,"d":"$3,031,093.89"},{"v":110587270.32000001,"d":"$110,587,270.32"},{"v":597930849.34,"d":"$597,930,849.34"},{"v":50953184.760000005,"d":"$50,953,184.76"},{"v":15165825.529999997,"d":"$15,165,825.53"},{"v":21167574.08,"d":"$21,167,574.08"},{"v":597930849.2082,"d":"$597,930,849.21"}]
["31045101022","BATAVIA UNIT SCHOOL DIST 101",5105.62,{"v":71561192.88,"d":"$71,561,192.88"},{"v":74129560.07000001,"d":"$74,129,560.07"},{"v":1.0358905027520555,"d":"104%"},4,{"v":4558.33,"d":"$4,558.33"},{"v":5251878.300000002,"d":"$5,251,878.30"},{"v":5256436.630000002,"d":"$5,256,436.63"},{"v":1.05749,"d":"1.06"},{"v":17542807.11,"d":"$17,542,807.11"},{"v":4394271.17,"d":"$4,394,271.17"},{"v":1984810.11,"d":"$1,984,810.11"},{"v":794093.07,"d":"$794,093.07"},{"v":587356.99,"d":"$587,356.99"},{"v":1420771.4,"d":"$1,420,771.40"},{"v":439172.18,"d":"$439,172.18"},{"v":745034.95,"d":"$745,034.95"},{"v":876992.1,"d":"$876,992.10"},{"v":534276.75,"d":"$534,276.75"},{"v":1301045.17,"d":"$1,301,045.17"},{"v":1120202.85,"d":"$1,120,202.85"},{"v":894006.82,"d":"$894,006.82"},{"v":32634840.67,"d":"$32,634,840.67"},{"v":456108.3,"d":"$456,108.30"},{"v":638202.5,"d":"$638,202.50"},{"v":1659326.5,"d":"$1,659,326.50"},{"v":173591.08000000002,"d":"$173,591.08"},{"v":1457654.5,"d":"$1,457,654.50"},{"v":2159246.6900000004,"d":"$2,159,246.69"},{"v":6948748.82,"d":"$6,948,748.82"},{"v":4783965.94,"d":"$4,783,965.94"},{"v":12719857.04268,"d":"$12,719,857.04"},{"v":30996701.37268,"d":"$30,996,701.37"},{"v":4859937.56,"d":"$4,859,937.56"},{"v":26136763.812680002,"d":"$26,136,763.81"},{"v":31276099.182680003,"d":"$31,276,099.18"},{"v":576900.97,"d":"$576,900.97"},{"v":576900.97,"d":"$576,900.97"},{"v":600938.52,"d":"$600,938.52"},{"v":600938.52,"d":"$600,938.52"},{"v":171364.4,"d":"$171,364.40"},{"v":171364.4,"d":"$171,364.40"},{"v":178343.04,"d":"$178,343.04"},{"v":178343.04,"d":"$178,343.04"},{"v":214011.65,"d":"$214,011.65"},{"v":2807739.84,"d":"$2,807,739.84"},{"v":1137340.45,"d":"$1,137,340.45"},{"v":436067.1,"d":"$436,067.10"},{"v":7650252.899999999,"d":"$7,650,252.90"},{"v":71561192.88,"d":"$71,561,192.88"},{"v":574007.7200000001,"d":"$574,007.72"},{"v":31989.559999999998,"d":"$31,989.56"},{"v":1807965.5399999998,"d":"$1,807,965.54"},{"v":71561192.75268,"d":"$71,561,192.75"}]
["31045129022","AURORA WEST UNIT SCHOOL DIST 129",10857.88,{"v":183960433.02,"d":"$183,960,433.02"},{"v":133815865.41,"d":"$133,815,865.41"},{"v":0.7274165602526694,"d":"73%"},1,{"v":4365610.14,"d":"$4,365,610.14"},{"v":68139289.18,"d":"$68,139,289.18"},{"v":72504899.32000001,"d":"$72,504,899.32"},{"v":1.05749,"d":"1.06"},{"v":41145412.16,"d":"$41,145,412.16"},{"v":10113109.4,"d":"$10,113,109.40"},{"v":4204076.77,"d":"$4,204,076.77"},{"v":1696289.81,"d":"$1,696,289.81"},{"v":1595198.8,"d":"$1,595,198.80"},{"v":2957327.65,"d":"$2,957,327.65"},{"v":935262.11,"d":"$935,262.11"},{"v":1578958.98,"d":"$1,578,958.98"},{"v":1880850.06,"d":"$1,880,850.06"},{"v":1136398.16,"d":"$1,136,398.16"},{"v":2790299.79,"d":"$2,790,299.79"},{"v":2402454.47,"d":"$2,402,454.47"},{"v":1894676.35,"d":"$1,894,676.35"},{"v":74330314.50999999,"d":"$74,330,314.51"},{"v":969372,"d":"$969,372.00"},{"v":1357235,"d":"$1,357,235.00"},{"v":3528811,"d":"$3,528,811.00"},{"v":369167.92,"d":"$369,167.92"},{"v":6199849.4799999995,"d":"$6,199,849.48"},{"v":4345010.8,"d":"$4,345,010.80"},{"v":14777574.68,"d":"$14,777,574.68"},{"v":10173833.56,"d":"$10,173,833.56"},{"v":33365942.71632,"d":"$33,365,942.72"},{"v":75086797.15632,"d":"$75,086,797.16"},{"v":10335398.81,"d":"$10,335,398.81"},{"v":64751398.34632,"d":"$64,751,398.35"},{"v":75680979.22632,"d":"$75,680,979.23"},{"v":3763038.24,"d":"$3,763,038.24"},{"v":3763038.24,"d":"$3,763,038.24"},{"v":3919669.96,"d":"$3,919,669.96"},{"v":3919669.96,"d":"$3,919,669.96"},{"v":1737681.57,"d":"$1,737,681.57"},{"v":1737681.57,"d":"$1,737,681.57"},{"v":1809794.2,"d":"$1,809,794.20"},{"v":1809794.2,"d":"$1,809,794.20"},{"v":2171908.12,"d":"$2,171,908.12"},{"v":5970614.97,"d":"$5,970,614.97"},{"v":2418536.73,"d":"$2,418,536.73"},{"v":927711.39,"d":"$927,711.39"},{"v":33949139.15,"d":"$33,949,139.15"},{"v":183960433.02,"d":"$183,960,433.02"},{"v":14781619.059999999,"d":"$14,781,619.06"},{"v":2423593.91,"d":"$2,423,593.91"},{"v":6054289.41,"d":"$6,054,289.41"},{"v":183960432.88632,"d":"$183,960,432.89"}]
["31045131022","AURORA EAST UNIT SCHOOL DIST 131",12483.8,{"v":237369229.79,"d":"$237,369,229.79"},{"v":172100524.27,"d":"$172,100,524.27"},{"v":0.7250329978416198,"d":"73%"},1,{"v":6530984.72,"d":"$6,530,984.72"},{"v":148242831.48,"d":"$148,242,831.48"},{"v":154773816.2,"d":"$154,773,816.20"},{"v":1.05749,"d":"1.06"},{"v":50069179.72,"d":"$50,069,179.72"},{"v":12254227.12,"d":"$12,254,227.12"},{"v":4830470.97,"d":"$4,830,470.97"},{"v":1952073.83,"d":"$1,952,073.83"},{"v":2140169.28,"d":"$2,140,169.28"},{"v":3388303.39,"d":"$3,388,303.39"},{"v":1075616.1,"d":"$1,075,616.10"},{"v":1814216.64,"d":"$1,814,216.64"},{"v":2166085.36,"d":"$2,166,085.36"},{"v":1306638.02,"d":"$1,306,638.02"},{"v":3213455.26,"d":"$3,213,455.26"},{"v":2766792.3,"d":"$2,766,792.30"},{"v":2176974.46,"d":"$2,176,974.46"},{"v":89154202.44999999,"d":"$89,154,202.45"},{"v":1116499.5,"d":"$1,116,499.50"},{"v":1560475,"d":"$1,560,475.00"},{"v":4057235,"d":"$4,057,235.00"},{"v":424449.19999999995,"d":"$424,449.20"},{"v":7128249.800000001,"d":"$7,128,249.80"},{"v":4944183.65,"d":"$4,944,183.65"},{"v":16990451.8,"d":"$16,990,451.80"},{"v":11697320.600000001,"d":"$11,697,320.60"},{"v":44020937.65020001,"d":"$44,020,937.65"},{"v":91939802.20020002,"d":"$91,939,802.20"},{"v":11883079.54,"d":"$11,883,079.54"},{"v":80056722.66020003,"d":"$80,056,722.66"},{"v":92622960.44020003,"d":"$92,622,960.44"},{"v":6211765.78,"d":"$6,211,765.78"},{"v":6211765.78,"d":"$6,211,765.78"},{"v":6470750.9,"d":"$6,470,750.90"},{"v":6470750.9,"d":"$6,470,750.90"},{"v":3659134.03,"d":"$3,659,134.03"},{"v":3659134.03,"d":"$3,659,134.03"},{"v":3811113.32,"d":"$3,811,113.32"},{"v":3811113.32,"d":"$3,811,113.32"},{"v":4574111.39,"d":"$4,574,111.39"},{"v":6864656.41,"d":"$6,864,656.41"},{"v":2780689.05,"d":"$2,780,689.05"},{"v":1067081.85,"d":"$1,067,081.85"},{"v":55592066.76,"d":"$55,592,066.76"},{"v":237369229.79,"d":"$237,369,229.79"},{"v":49188865.46,"d":"$49,188,865.46"},{"v":6701471.09,"d":"$6,701,471.09"},{"v":7442481.239999999,"d":"$7,442,481.24"},{"v":237369229.6502,"d":"$237,369,229.65"}]
["31045300026","COMM UNIT SCH DIST 300",19900.45,{"v":311379554.48,"d":"$311,379,554.48"},{"v":227641701.95999998,"d":"$227,641,701.96"},{"v":0.7310746601206967,"d":"73%"},1,{"v":6321393.61,"d":"$6,321,393.61"},{"v":67402294.81,"d":"$67,402,294.81"},{"v":73723688.42,"d":"$73,723,688.42"},{"v":1.05749,"d":"1.06"},{"v":71721551.12,"d":"$71,721,551.12"},{"v":17535081.31,"d":"$17,535,081.31"},{"v":7695717.58,"d":"$7,695,717.58"},{"v":3114370.91,"d":"$3,114,370.91"},{"v":2623313.19,"d":"$2,623,313.19"},{"v":5380130.98,"d":"$5,380,130.98"},{"v":1714647.2,"d":"$1,714,647.20"},{"v":2890936.63,"d":"$2,890,936.63"},{"v":3457732.96,"d":"$3,457,732.96"},{"v":2083082.54,"d":"$2,083,082.54"},{"v":5129654.81,"d":"$5,129,654.81"},{"v":4416644.47,"d":"$4,416,644.47"},{"v":3468987.7,"d":"$3,468,987.70"},{"v":131231851.4,"d":"$131,231,851.40"},{"v":1779970.5,"d":"$1,779,970.50"},{"v":2487556.25,"d":"$2,487,556.25"},{"v":6467646.25,"d":"$6,467,646.25"},{"v":676615.3,"d":"$676,615.30"},{"v":11363156.95,"d":"$11,363,156.95"},{"v":7814611.59,"d":"$7,814,611.59"},{"v":27084512.45,"d":"$27,084,512.45"},{"v":18646721.65,"d":"$18,646,721.65"},{"v":55553622.649799995,"d":"$55,553,622.65"},{"v":131874413.5898,"d":"$131,874,413.59"},{"v":18942840.34,"d":"$18,942,840.34"},{"v":112931573.2498,"d":"$112,931,573.25"},{"v":132963437.4798,"d":"$132,963,437.48"},{"v":4301944.4,"d":"$4,301,944.40"},{"v":4301944.4,"d":"$4,301,944.40"},{"v":4481062.85,"d":"$4,481,062.85"},{"v":4481062.85,"d":"$4,481,062.85"},{"v":2351026.57,"d":"$2,351,026.57"},{"v":2351026.57,"d":"$2,351,026.57"},{"v":2449502.94,"d":"$2,449,502.94"},{"v":2449502.94,"d":"$2,449,502.94"},{"v":2939558.62,"d":"$2,939,558.62"},{"v":10943284.3,"d":"$10,943,284.30"},{"v":4432832.32,"d":"$4,432,832.32"},{"v":1701516.74,"d":"$1,701,516.74"},{"v":47184265.50000001,"d":"$47,184,265.50"},{"v":311379554.48,"d":"$311,379,554.48"},{"v":8521367.520000001,"d":"$8,521,367.52"},{"v":2559410.41,"d":"$2,559,410.41"},{"v":8191836.4799999995,"d":"$8,191,836.48"},{"v":311379554.3798,"d":"$311,379,554.38"}]
["31045301026","CENTRAL COMM UNIT SCH DIST 301",4728.5,{"v":66374760.15,"d":"$66,374,760.15"},{"v":43714319.849999994,"d":"$43,714,319.85"},{"v":0.6585985358170819,"d":"66%"},1,{"v":2992207.85,"d":"$2,992,207.85"},{"v":9066540.12,"d":"$9,066,540.12"},{"v":12058747.969999999,"d":"$12,058,747.97"},{"v":1.05749,"d":"1.06"},{"v":15984427.24,"d":"$15,984,427.24"},{"v":3828663.09,"d":"$3,828,663.09"},{"v":1817825.72,"d":"$1,817,825.72"},{"v":743273.91,"d":"$743,273.91"},{"v":536589.75,"d":"$536,589.75"},{"v":1257325.87,"d":"$1,257,325.87"},{"v":406832.55,"d":"$406,832.55"},{"v":683472.19,"d":"$683,472.19"},{"v":829310.98,"d":"$829,310.98"},{"v":494700.69,"d":"$494,700.69"},{"v":1230308.73,"d":"$1,230,308.73"},{"v":1059298.62,"d":"$1,059,298.62"},{"v":820134.42,"d":"$820,134.42"},{"v":29692163.760000005,"d":"$29,692,163.76"},{"v":423180,"d":"$423,180.00"},{"v":591062.5,"d":"$591,062.50"},{"v":1536762.5,"d":"$1,536,762.50"},{"v":160769,"d":"$160,769.00"},{"v":2699973.5,"d":"$2,699,973.50"},{"v":1735658,"d":"$1,735,658.00"},{"v":6435488.5,"d":"$6,435,488.50"},{"v":4430604.5,"d":"$4,430,604.50"},{"v":11563761.752999997,"d":"$11,563,761.75"},{"v":29577260.253,"d":"$29,577,260.25"},{"v":4500964.58,"d":"$4,500,964.58"},{"v":25076295.673,"d":"$25,076,295.67"},{"v":29836020.703,"d":"$29,836,020.70"},{"v":318691.26,"d":"$318,691.26"},{"v":318691.26,"d":"$318,691.26"},{"v":331873.14,"d":"$331,873.14"},{"v":331873.14,"d":"$331,873.14"},{"v":279145.63,"d":"$279,145.63"},{"v":279145.63,"d":"$279,145.63"},{"v":290776.7,"d":"$290,776.70"},{"v":290776.7,"d":"$290,776.70"},{"v":348932.04,"d":"$348,932.04"},{"v":2599931.43,"d":"$2,599,931.43"},{"v":1053162.81,"d":"$1,053,162.81"},{"v":403575.83,"d":"$403,575.83"},{"v":6846575.57,"d":"$6,846,575.57"},{"v":66374760.15,"d":"$66,374,760.15"},{"v":371864.78,"d":"$371,864.78"},{"v":215662.24,"d":"$215,662.24"},{"v":1452026.12,"d":"$1,452,026.12"},{"v":66374760.03300001,"d":"$66,374,760.03"}]
["31045302026","KANELAND C U SCHOOL DIST 302",3915.44,{"v":53373577.07,"d":"$53,373,577.07"},{"v":52517414.46000001,"d":"$52,517,414.46"},{"v":0.9839590550793115,"d":"98%"},3,{"v":60654.31,"d":"$60,654.31"},{"v":7282262.63,"d":"$7,282,262.63"},{"v":7342916.9399999995,"d":"$7,342,916.94"},{"v":1.05749,"d":"1.06"},{"v":13274251.88,"d":"$13,274,251.88"},{"v":3276678.76,"d":"$3,276,678.76"},{"v":1515924.13,"d":"$1,515,924.13"},{"v":610722.12,"d":"$610,722.12"},{"v":434729.63,"d":"$434,729.63"},{"v":1073884.73,"d":"$1,073,884.73"},{"v":336978.94,"d":"$336,978.94"},{"v":569141.37,"d":"$569,141.37"},{"v":676901.67,"d":"$676,901.67"},{"v":409266.67,"d":"$409,266.67"},{"v":1004204.77,"d":"$1,004,204.77"},{"v":864622.59,"d":"$864,622.59"},{"v":682942.81,"d":"$682,942.81"},{"v":24730250.070000004,"d":"$24,730,250.07"},{"v":349839.9,"d":"$349,839.90"},{"v":489430,"d":"$489,430.00"},{"v":1272518,"d":"$1,272,518.00"},{"v":133124.96000000002,"d":"$133,124.96"},{"v":1117858.11,"d":"$1,117,858.11"},{"v":1581514.83,"d":"$1,581,514.83"},{"v":5328913.840000001,"d":"$5,328,913.84"},{"v":3668767.2800000003,"d":"$3,668,767.28"},{"v":9441817.52016,"d":"$9,441,817.52"},{"v":23383784.440160003,"d":"$23,383,784.44"},{"v":3727029.02,"d":"$3,727,029.02"},{"v":19656755.42016,"d":"$19,656,755.42"},{"v":23598051.33016,"d":"$23,598,051.33"},{"v":334974.76,"d":"$334,974.76"},{"v":334974.76,"d":"$334,974.76"},{"v":348932.04,"d":"$348,932.04"},{"v":348932.04,"d":"$348,932.04"},{"v":59706.14,"d":"$59,706.14"},{"v":59706.14,"d":"$59,706.14"},{"v":62032.36,"d":"$62,032.36"},{"v":62032.36,"d":"$62,032.36"},{"v":75214.24,"d":"$75,214.24"},{"v":2152523,"d":"$2,152,523.00"},{"v":871929.6,"d":"$871,929.60"},{"v":334318.11,"d":"$334,318.11"},{"v":5045275.55,"d":"$5,045,275.55"},{"v":53373577.07,"d":"$53,373,577.07"},{"v":295186.96,"d":"$295,186.96"},{"v":19640.110000000004,"d":"$19,640.11"},{"v":1388205.88,"d":"$1,388,205.88"},{"v":53373576.95016,"d":"$53,373,576.95"}]
["31045303026","ST CHARLES C U SCHOOL DIST 303",11715.3,{"v":162182941.03,"d":"$162,182,941.03"},{"v":170849487.39999998,"d":"$170,849,487.40"},{"v":1.053436855411303,"d":"105%"},4,{"v":10330.79,"d":"$10,330.79"},{"v":9655286.069999997,"d":"$9,655,286.07"},{"v":9665616.859999996,"d":"$9,665,616.86"},{"v":1.05749,"d":"1.06"},{"v":39900515.29,"d":"$39,900,515.29"},{"v":9909919.21,"d":"$9,909,919.21"},{"v":4546896.69,"d":"$4,546,896.69"},{"v":1826085.84,"d":"$1,826,085.84"},{"v":1328169.87,"d":"$1,328,169.87"},{"v":3216176.8,"d":"$3,216,176.80"},{"v":1008996.46,"d":"$1,008,996.46"},{"v":1707110.01,"d":"$1,707,110.01"},{"v":2020487.64,"d":"$2,020,487.64"},{"v":1225915.43,"d":"$1,225,915.43"},{"v":2997456.5,"d":"$2,997,456.50"},{"v":2580816.87,"d":"$2,580,816.87"},{"v":2048451.55,"d":"$2,048,451.55"},{"v":74316998.16,"d":"$74,316,998.16"},{"v":1047446.9999999999,"d":"$1,047,447.00"},{"v":1464412.5,"d":"$1,464,412.50"},{"v":3807472.5,"d":"$3,807,472.50"},{"v":398320.19999999995,"d":"$398,320.20"},{"v":3344718.1399999997,"d":"$3,344,718.14"},{"v":4821578,"d":"$4,821,578.00"},{"v":15944523.3,"d":"$15,944,523.30"},{"v":10977236.1,"d":"$10,977,236.10"},{"v":28773830.344199993,"d":"$28,773,830.34"},{"v":70579538.0842,"d":"$70,579,538.08"},{"v":11151559.76,"d":"$11,151,559.76"},{"v":59427978.3242,"d":"$59,427,978.32"},{"v":71220641.2542,"d":"$71,220,641.25"},{"v":959950.82,"d":"$959,950.82"},{"v":959950.82,"d":"$959,950.82"},{"v":1000271.85,"d":"$1,000,271.85"},{"v":1000271.85,"d":"$1,000,271.85"},{"v":500911.33,"d":"$500,911.33"},{"v":500911.33,"d":"$500,911.33"},{"v":521847.25,"d":"$521,847.25"},{"v":521847.25,"d":"$521,847.25"},{"v":626526.87,"d":"$626,526.87"},{"v":6442060.93,"d":"$6,442,060.93"},{"v":2609506.9,"d":"$2,609,506.90"},{"v":1001244.27,"d":"$1,001,244.27"},{"v":16645301.47,"d":"$16,645,301.47"},{"v":162182941.03,"d":"$162,182,941.03"},{"v":697737.5,"d":"$697,737.50"},{"v":166772.19999999998,"d":"$166,772.20"},{"v":3873411.75,"d":"$3,873,411.75"},{"v":162182940.8842,"d":"$162,182,940.88"}]
["31045304026","GENEVA COMM UNIT SCH DIST 304",5168.95,{"v":68861137.33,"d":"$68,861,137.33"},{"v":81991594.33,"d":"$81,991,594.33"},{"v":1.1906802226788025,"d":"119%"},4,{"v":4386.34,"d":"$4,386.34"},{"v":4279264.78,"d":"$4,279,264.78"},{"v":4283651.12,"d":"$4,283,651.12"},{"v":1.05749,"d":"1.06"},{"v":17307682.18,"d":"$17,307,682.18"},{"v":4250240.95,"d":"$4,250,240.95"},{"v":1998810.89,"d":"$1,998,810.89"},{"v":807326.31,"d":"$807,326.31"},{"v":556357.35,"d":"$556,357.35"},{"v":1401739.81,"d":"$1,401,739.81"},{"v":444993.31,"d":"$444,993.31"},{"v":751002.77,"d":"$751,002.77"},{"v":895723.97,"d":"$895,723.97"},{"v":540872.76,"d":"$540,872.76"},{"v":1328834.48,"d":"$1,328,834.48"},{"v":1144129.52,"d":"$1,144,129.52"},{"v":901167.92,"d":"$901,167.92"},{"v":32328882.22,"d":"$32,328,882.22"},{"v":462685.5,"d":"$462,685.50"},{"v":646118.75,"d":"$646,118.75"},{"v":1679908.75,"d":"$1,679,908.75"},{"v":175744.30000000002,"d":"$175,744.30"},{"v":1475735.2200000002,"d":"$1,475,735.22"},{"v":2051039.93,"d":"$2,051,039.93"},{"v":7034940.950000001,"d":"$7,034,940.95"},{"v":4843306.15,"d":"$4,843,306.15"},{"v":12122856.2778,"d":"$12,122,856.28"},{"v":30492335.8278,"d":"$30,492,335.83"},{"v":4920220.12,"d":"$4,920,220.12"},{"v":25572115.7078,"d":"$25,572,115.71"},{"v":30775199.2778,"d":"$30,775,199.28"},{"v":228744.34,"d":"$228,744.34"},{"v":228744.34,"d":"$228,744.34"},{"v":238049.19,"d":"$238,049.19"},{"v":238049.19,"d":"$238,049.19"},{"v":72888.02,"d":"$72,888.02"},{"v":72888.02,"d":"$72,888.02"},{"v":75989.64,"d":"$75,989.64"},{"v":75989.64,"d":"$75,989.64"},{"v":91497.73,"d":"$91,497.73"},{"v":2841857.64,"d":"$2,841,857.64"},{"v":1151160.66,"d":"$1,151,160.66"},{"v":441197.3,"d":"$441,197.30"},{"v":5757055.71,"d":"$5,757,055.71"},{"v":68861137.33,"d":"$68,861,137.33"},{"v":195078.16,"d":"$195,078.16"},{"v":19382.120000000003,"d":"$19,382.12"},{"v":1823794.3399999999,"d":"$1,823,794.34"},{"v":68861137.2078,"d":"$68,861,137.21"}]
[null,"ALT SCH-IROQUOIS/KANKAKEE ROE",119.98,{"v":1863528.77,"d":"$1,863,528.77"},{"v":1241601.46,"d":"$1,241,601.46"},{"v":0.6662636391709691,"d":"67%"},1,{"v":89924.29,"d":"$89,924.29"},{"v":1055248.5899999999,"d":"$1,055,248.59"},{"v":1145172.88,"d":"$1,145,172.88"},{"v":0.96694,"d":"0.97"},{"v":414910.81,"d":"$414,910.81"},{"v":138289.76,"d":"$138,289.76"},{"v":45756.51,"d":"$45,756.51"},{"v":14735.15,"d":"$14,735.15"},{"v":14098.1,"d":"$14,098.10"},{"v":38929.19,"d":"$38,929.19"},{"v":8871.14,"d":"$8,871.14"},{"v":16944.83,"d":"$16,944.83"},{"v":14792.28,"d":"$14,792.28"},{"v":11200.82,"d":"$11,200.82"},{"v":21944.81,"d":"$21,944.81"},{"v":18894.53,"d":"$18,894.53"},{"v":20332.99,"d":"$20,332.99"},{"v":779700.92,"d":"$779,700.92"},{"v":10798.199999999999,"d":"$10,798.20"},{"v":14997.499999999998,"d":"$14,997.50"},{"v":38993.5,"d":"$38,993.50"},{"v":4079.3199999999997,"d":"$4,079.32"},{"v":68508.58,"d":"$68,508.58"},{"v":103062.81999999999,"d":"$103,062.82"},{"v":163292.78,"d":"$163,292.78"},{"v":112421.26,"d":"$112,421.26"},{"v":342751.02371999994,"d":"$342,751.02"},{"v":858904.9837199999,"d":"$858,904.98"},{"v":114206.56,"d":"$114,206.56"},{"v":744698.4237199998,"d":"$744,698.42"},{"v":855129.3137199999,"d":"$855,129.31"},{"v":31196.38,"d":"$31,196.38"},{"v":31196.38,"d":"$31,196.38"},{"v":32614.4,"d":"$32,614.40"},{"v":32614.4,"d":"$32,614.40"},{"v":1418.01,"d":"$1,418.01"},{"v":1418.01,"d":"$1,418.01"},{"v":1418.01,"d":"$1,418.01"},{"v":1418.01,"d":"$1,418.01"},{"v":2127.02,"d":"$2,127.02"},{"v":60265.74,"d":"$60,265.74"},{"v":24412.04,"d":"$24,412.04"},{"v":8600.01,"d":"$8,600.01"},{"v":228698.41,"d":"$228,698.41"},{"v":1863528.77,"d":"$1,863,528.77"},{"v":73184.64,"d":"$73,184.64"},{"v":2416.34,"d":"$2,416.34"},{"v":35035.62,"d":"$35,035.62"},{"v":1863528.6437199998,"d":"$1,863,528.64"}]
[null,"SAFE SCH-IROQUOIS/KANKAKEE ROE",30,{"v":450256.32,"d":"$450,256.32"},{"v":295898.36,"d":"$295,898.36"},{"v":0.657177582759971,"d":"66%"},1,{"v":23185.49,"d":"$23,185.49"},{"v":250872.73,"d":"$250,872.73"},{"v":274058.22000000003,"d":"$274,058.22"},{"v":0.96694,"d":"0.97"},{"v":100918.37,"d":"$100,918.37"},{"v":31658.7,"d":"$31,658.70"},{"v":10654.96,"d":"$10,654.96"},{"v":3776.41,"d":"$3,776.41"},{"v":3404.65,"d":"$3,404.65"},{"v":9736.19,"d":"$9,736.19"},{"v":1774.22,"d":"$1,774.22"},{"v":4020.8,"d":"$4,020.80"},{"v":3892.7,"d":"$3,892.70"},{"v":2584.8,"d":"$2,584.80"},{"v":5774.95,"d":"$5,774.95"},{"v":4972.24,"d":"$4,972.24"},{"v":4824.77,"d":"$4,824.77"},{"v":187993.75999999998,"d":"$187,993.76"},{"v":2700,"d":"$2,700.00"},{"v":3750,"d":"$3,750.00"},{"v":9750,"d":"$9,750.00"},{"v":1020,"d":"$1,020.00"},{"v":17130,"d":"$17,130.00"},{"v":22720,"d":"$22,720.00"},{"v":40830,"d":"$40,830.00"},{"v":28110,"d":"$28,110.00"},{"v":82734.321,"d":"$82,734.32"},{"v":208744.321,"d":"$208,744.32"},{"v":28556.4,"d":"$28,556.40"},{"v":180187.921,"d":"$180,187.92"},{"v":207800.241,"d":"$207,800.24"},{"v":7799.09,"d":"$7,799.09"},{"v":7799.09,"d":"$7,799.09"},{"v":7799.09,"d":"$7,799.09"},{"v":7799.09,"d":"$7,799.09"},{"v":0,"d":"$0.00"},{"v":0,"d":"$0.00"},{"v":0,"d":"$0.00"},{"v":0,"d":"$0.00"},{"v":0,"d":"$0.00"},{"v":14889.18,"d":"$14,889.18"},{"v":6031.21,"d":"$6,031.21"},{"v":2345.45,"d":"$2,345.45"},{"v":54462.2,"d":"$54,462.20"},{"v":450256.32,"d":"$450,256.32"},{"v":7175.66,"d":"$7,175.66"},{"v":0,"d":"$0.00"},{"v":3569.5199999999995,"d":"$3,569.52"},{"v":450256.201,"d":"$450,256.20"}]
["32038003026","DONOVAN COMM UNIT SCHOOL DIST 3",268.75,{"v":3537191.55,"d":"$3,537,191.55"},{"v":3873115.89,"d":"$3,873,115.89"},{"v":1.0949692249490985,"d":"109%"},4,{"v":225.31,"d":"$225.31"},{"v":1193175.7500000005,"d":"$1,193,175.75"},{"v":1193401.0600000005,"d":"$1,193,401.06"},{"v":0.9,"d":"0.90"},{"v":836653.64,"d":"$836,653.64"},{"v":198795.29,"d":"$198,795.29"},{"v":86957.57,"d":"$86,957.57"},{"v":35021.21,"d":"$35,021.21"},{"v":28402.99,"d":"$28,402.99"},{"v":58300.27,"d":"$58,300.27"},{"v":18715.87,"d":"$18,715.87"},{"v":32612.79,"d":"$32,612.79"},{"v":39130.77,"d":"$39,130.77"},{"v":23523.98,"d":"$23,523.98"},{"v":58051.72,"d":"$58,051.72"},{"v":49982.67,"d":"$49,982.67"},{"v":39133.81,"d":"$39,133.81"},{"v":1505282.58,"d":"$1,505,282.58"},{"v":23985,"d":"$23,985.00"},{"v":33593.75,"d":"$33,593.75"},{"v":87343.75,"d":"$87,343.75"},{"v":9137.5,"d":"$9,137.50"},{"v":76728.12,"d":"$76,728.12"},{"v":95740.5,"d":"$95,740.50"},{"v":365768.75,"d":"$365,768.75"},{"v":251818.75,"d":"$251,818.75"},{"v":705122.547,"d":"$705,122.55"},{"v":1649238.667,"d":"$1,649,238.67"},{"v":255817.75,"d":"$255,817.75"},{"v":1393420.917,"d":"$1,393,420.92"},{"v":1623656.8869999999,"d":"$1,623,656.89"},{"v":50154.3,"d":"$50,154.30"},{"v":50154.3,"d":"$50,154.30"},{"v":52794,"d":"$52,794.00"},{"v":52794,"d":"$52,794.00"},{"v":1319.85,"d":"$1,319.85"},{"v":1319.85,"d":"$1,319.85"},{"v":1319.85,"d":"$1,319.85"},{"v":1319.85,"d":"$1,319.85"},{"v":1979.77,"d":"$1,979.77"},{"v":125385.75,"d":"$125,385.75"},{"v":50790.42,"d":"$50,790.42"},{"v":18920.07,"d":"$18,920.07"},{"v":408252.01,"d":"$408,252.01"},{"v":3537191.55,"d":"$3,537,191.55"},{"v":155956.63999999998,"d":"$155,956.64"},{"v":24.720000000000002,"d":"$24.72"},{"v":48962.77,"d":"$48,962.77"},{"v":3537191.477,"d":"$3,537,191.48"}]
["32038004026","CENTRAL COMM UNIT SCHOOL DIST 4",938.63,{"v":12417535.62,"d":"$12,417,535.62"},{"v":10150681.98,"d":"$10,150,681.98"},{"v":0.8174473817213017,"d":"82%"},2,{"v":49338.47,"d":"$49,338.47"},{"v":3664161.93,"d":"$3,664,161.93"},{"v":3713500.4000000004,"d":"$3,713,500.40"},{"v":0.9,"d":"0.90"},{"v":2838762.21,"d":"$2,838,762.21"},{"v":692840.96,"d":"$692,840.96"},{"v":307224.99,"d":"$307,224.99"},{"v":124583.42,"d":"$124,583.42"},{"v":95561.25,"d":"$95,561.25"},{"v":214262.28,"d":"$214,262.28"},{"v":68257.9,"d":"$68,257.90"},{"v":115481.37,"d":"$115,481.37"},{"v":138407,"d":"$138,407.00"},{"v":83135.89,"d":"$83,135.89"},{"v":205331.11,"d":"$205,331.11"},{"v":176790.55,"d":"$176,790.55"},{"v":138572.2,"d":"$138,572.20"},{"v":5199211.130000001,"d":"$5,199,211.13"},{"v":83734.2,"d":"$83,734.20"},{"v":117328.75,"d":"$117,328.75"},{"v":305054.75,"d":"$305,054.75"},{"v":31913.42,"d":"$31,913.42"},{"v":535957.73,"d":"$535,957.73"},{"v":365319.22,"d":"$365,319.22"},{"v":1277475.43,"d":"$1,277,475.43"},{"v":879496.3099999999,"d":"$879,496.31"},{"v":2404789.4203199996,"d":"$2,404,789.42"},{"v":6001069.230319999,"d":"$6,001,069.23"},{"v":893463.12,"d":"$893,463.12"},{"v":5107606.11032,"d":"$5,107,606.11"},{"v":5911722.91032,"d":"$5,911,722.91"},{"v":150462.9,"d":"$150,462.90"},{"v":150462.9,"d":"$150,462.90"},{"v":157062.15,"d":"$157,062.15"},{"v":157062.15,"d":"$157,062.15"},{"v":1319.85,"d":"$1,319.85"},{"v":1319.85,"d":"$1,319.85"},{"v":1319.85,"d":"$1,319.85"},{"v":1319.85,"d":"$1,319.85"},{"v":1979.77,"d":"$1,979.77"},{"v":438850.12,"d":"$438,850.12"},{"v":177766.47,"d":"$177,766.47"},{"v":67675.63,"d":"$67,675.63"},{"v":1306601.4899999998,"d":"$1,306,601.49"},{"v":12417535.62,"d":"$12,417,535.62"},{"v":322237.24000000005,"d":"$322,237.24"},{"v":161.78,"d":"$161.78"},{"v":368578.26,"d":"$368,578.26"},{"v":12417535.530320002,"d":"$12,417,535.53"}]
["32038006026","CISSNA PARK COMM UNIT SCH DIST 6",273,{"v":3650506.24,"d":"$3,650,506.24"},{"v":2864756.83,"d":"$2,864,756.83"},{"v":0.7847560424934378,"d":"78%"},2,{"v":20678.49,"d":"$20,678.49"},{"v":800523.6100000001,"d":"$800,523.61"},{"v":821202.1000000001,"d":"$821,202.10"},{"v":0.9,"d":"0.90"},{"v":837917.51,"d":"$837,917.51"},{"v":206745.83,"d":"$206,745.83"},{"v":89782.84,"d":"$89,782.84"},{"v":35303.95,"d":"$35,303.95"},{"v":28246.26,"d":"$28,246.26"},{"v":60991.3,"d":"$60,991.30"},{"v":19266.34,"d":"$19,266.34"},{"v":33682.06,"d":"$33,682.06"},{"v":39130.77,"d":"$39,130.77"},{"v":24058.62,"d":"$24,058.62"},{"v":58051.72,"d":"$58,051.72"},{"v":49982.67,"d":"$49,982.67"},{"v":40416.89,"d":"$40,416.89"},{"v":1523576.76,"d":"$1,523,576.76"},{"v":24435,"d":"$24,435.00"},{"v":34125,"d":"$34,125.00"},{"v":88725,"d":"$88,725.00"},{"v":9282,"d":"$9,282.00"},{"v":155883,"d":"$155,883.00"},{"v":109691.5,"d":"$109,691.50"},{"v":371553,"d":"$371,553.00"},{"v":255801,"d":"$255,801.00"},{"v":708156.9299999999,"d":"$708,156.93"},{"v":1757652.43,"d":"$1,757,652.43"},{"v":259863.24,"d":"$259,863.24"},{"v":1497789.19,"d":"$1,497,789.19"},{"v":1731666.0999999999,"d":"$1,731,666.10"},{"v":48174.52,"d":"$48,174.52"},{"v":48174.52,"d":"$48,174.52"},{"v":50154.3,"d":"$50,154.30"},{"v":50154.3,"d":"$50,154.30"},{"v":0,"d":"$0.00"},{"v":0,"d":"$0.00"},{"v":0,"d":"$0.00"},{"v":0,"d":"$0.00"},{"v":0,"d":"$0.00"},{"v":127365.52,"d":"$127,365.52"},{"v":51592.37,"d":"$51,592.37"},{"v":19647.76,"d":"$19,647.76"},{"v":395263.29000000004,"d":"$395,263.29"},{"v":3650506.24,"d":"$3,650,506.24"},{"v":54874.530000000006,"d":"$54,874.53"},{"v":0,"d":"$0.00"},{"v":47790.97000000001,"d":"$47,790.97"},{"v":3650506.15,"d":"$3,650,506.15"}]
["32038009026","IROQUOIS CO C U SCHOOL DIST 9",851.71,{"v":12073071.06,"d":"$12,073,071.06"},{"v":9752398.61,"d":"$9,752,398.61"},{"v":0.8077810990702475,"d":"81%"},2,{"v":75682.37,"d":"$75,682.37"},{"v":5319631.54,"d":"$5,319,631.54"},{"v":5395313.91,"d":"$5,395,313.91"},{"v":0.9,"d":"0.90"},{"v":2709312.2,"d":"$2,709,312.20"},{"v":659734.3,"d":"$659,734.30"},{"v":278824.6,"d":"$278,824.60"},{"v":112815.44,"d":"$112,815.44"},{"v":95944.83,"d":"$95,944.83"},{"v":194865.21,"d":"$194,865.21"},{"v":61652.3,"d":"$61,652.30"},{"v":104788.65,"d":"$104,788.65"},{"v":125363.41,"d":"$125,363.41"},{"v":75383.67,"d":"$75,383.67"},{"v":185980.53,"d":"$185,980.53"},{"v":160129.66,"d":"$160,129.66"},{"v":125741.44,"d":"$125,741.44"},{"v":4890536.240000001,"d":"$4,890,536.24"},{"v":76001.4,"d":"$76,001.40"},{"v":106463.75,"d":"$106,463.75"},{"v":276805.75,"d":"$276,805.75"},{"v":28958.14,"d":"$28,958.14"},{"v":486326.41000000003,"d":"$486,326.41"},{"v":330786.83999999997,"d":"$330,786.84"},{"v":1159177.31,"d":"$1,159,177.31"},{"v":798052.27,"d":"$798,052.27"},{"v":2381320.01844,"d":"$2,381,320.02"},{"v":5643891.88844,"d":"$5,643,891.89"},{"v":810725.71,"d":"$810,725.71"},{"v":4833166.17844,"d":"$4,833,166.18"},{"v":5562819.30844,"d":"$5,562,819.31"},{"v":229653.9,"d":"$229,653.90"},{"v":229653.9,"d":"$229,653.90"},{"v":238892.85,"d":"$238,892.85"},{"v":238892.85,"d":"$238,892.85"},{"v":11218.72,"d":"$11,218.72"},{"v":11218.72,"d":"$11,218.72"},{"v":11878.65,"d":"$11,878.65"},{"v":11878.65,"d":"$11,878.65"},{"v":14518.35,"d":"$14,518.35"},{"v":398594.7,"d":"$398,594.70"},{"v":161460.07,"d":"$161,460.07"},{"v":61854.07,"d":"$61,854.07"},{"v":1619715.4300000002,"d":"$1,619,715.43"},{"v":12073071.06,"d":"$12,073,071.06"},{"v":1063930.66,"d":"$1,063,930.66"},{"v":4531.21,"d":"$4,531.21"},{"v":234219.41999999998,"d":"$234,219.42"},{"v":12073070.978440002,"d":"$12,073,070.98"}]
["32038010026","IROQUOIS WEST C U S DIST 10",822.37,{"v":11757623.41,"d":"$11,757,623.41"},{"v":9003830.08,"d":"$9,003,830.08"},{"v":0.7657865680867219,"d":"77%"},1,{"v":122292.64,"d":"$122,292.64"},{"v":4689501.970000001,"d":"$4,689,501.97"},{"v":4811794.61,"d":"$4,811,794.61"},{"v":0.9,"d":"0.90"},{"v":2624843.71,"d":"$2,624,843.71"},{"v":648229.04,"d":"$648,229.04"},{"v":270603.73,"d":"$270,603.73"},{"v":107983.16,"d":"$107,983.16"},{"v":93462.36,"d":"$93,462.36"},{"v":189926.89,"d":"$189,926.89"},{"v":59450.43,"d":"$59,450.43"},{"v":101313.52,"d":"$101,313.52"},{"v":119566.26,"d":"$119,566.26"},{"v":72710.49,"d":"$72,710.49"},{"v":177380.28,"d":"$177,380.28"},{"v":152724.82,"d":"$152,724.82"},{"v":121571.45,"d":"$121,571.45"},{"v":4739766.1400000015,"d":"$4,739,766.14"},{"v":73495.8,"d":"$73,495.80"},{"v":102796.25,"d":"$102,796.25"},{"v":267270.25,"d":"$267,270.25"},{"v":27960.579999999998,"d":"$27,960.58"},{"v":469573.27,"d":"$469,573.27"},{"v":333282.36,"d":"$333,282.36"},{"v":1119245.57,"d":"$1,119,245.57"},{"v":770560.69,"d":"$770,560.69"},{"v":2320693.45968,"d":"$2,320,693.46"},{"v":5484878.22968,"d":"$5,484,878.23"},{"v":782797.55,"d":"$782,797.55"},{"v":4702080.679680001,"d":"$4,702,080.68"},{"v":5406598.469680001,"d":"$5,406,598.47"},{"v":227014.2,"d":"$227,014.20"},{"v":227014.2,"d":"$227,014.20"},{"v":236253.15,"d":"$236,253.15"},{"v":236253.15,"d":"$236,253.15"},{"v":15838.2,"d":"$15,838.20"},{"v":15838.2,"d":"$15,838.20"},{"v":16498.12,"d":"$16,498.12"},{"v":16498.12,"d":"$16,498.12"},{"v":19797.75,"d":"$19,797.75"},{"v":384736.27,"d":"$384,736.27"},{"v":155846.39,"d":"$155,846.39"},{"v":59670.99,"d":"$59,670.99"},{"v":1611258.74,"d":"$1,611,258.74"},{"v":11757623.41,"d":"$11,757,623.41"},{"v":780153.9000000001,"d":"$780,153.90"},{"v":34957.74,"d":"$34,957.74"},{"v":239122.61000000002,"d":"$239,122.61"},{"v":11757623.349680003,"d":"$11,757,623.35"}]
["32038124026","MILFORD AREA PUBLIC SCHL DIST 124",490.2,{"v":6724112.14,"d":"$6,724,112.14"},{"v":6795209.16,"d":"$6,795,209.16"},{"v":1.0105734435297506,"d":"101%"},4,{"v":428.31,"d":"$428.31"},{"v":1714836.24,"d":"$1,714,836.24"},{"v":1715264.55,"d":"$1,715,264.55"},{"v":0.9,"d":"0.90"},{"v":1547674.51,"d":"$1,547,674.51"},{"v":383240.9,"d":"$383,240.90"},{"v":160517.15,"d":"$160,517.15"},{"v":64143.45,"d":"$64,143.45"},{"v":54067.79,"d":"$54,067.79"},{"v":112622.27,"d":"$112,622.27"},{"v":34679.42,"d":"$34,679.42"},{"v":60146.55,"d":"$60,146.55"},{"v":71015.11,"d":"$71,015.11"},{"v":43305.51,"d":"$43,305.51"},{"v":105353.13,"d":"$105,353.13"},{"v":90709.29,"d":"$90,709.29"},{"v":72173.02,"d":"$72,173.02"},{"v":2799648.0999999996,"d":"$2,799,648.10"},{"v":43788.6,"d":"$43,788.60"},{"v":61275,"d":"$61,275.00"},{"v":159315,"d":"$159,315.00"},{"v":16666.8,"d":"$16,666.80"},{"v":139952.09,"d":"$139,952.09"},{"v":200322.57999999996,"d":"$200,322.58"},{"v":667162.2,"d":"$667,162.20"},{"v":459317.3999999999,"d":"$459,317.40"},{"v":1347214.0638000001,"d":"$1,347,214.06"},{"v":3095013.7338,"d":"$3,095,013.73"},{"v":466611.57,"d":"$466,611.57"},{"v":2628402.1638,"d":"$2,628,402.16"},{"v":3048352.5738000004,"d":"$3,048,352.57"},{"v":120106.35,"d":"$120,106.35"},{"v":120106.35,"d":"$120,106.35"},{"v":125385.75,"d":"$125,385.75"},{"v":125385.75,"d":"$125,385.75"},{"v":5279.4,"d":"$5,279.40"},{"v":5279.4,"d":"$5,279.40"},{"v":5279.4,"d":"$5,279.40"},{"v":5279.4,"d":"$5,279.40"},{"v":6599.25,"d":"$6,599.25"},{"v":228993.97,"d":"$228,993.97"},{"v":92759.34,"d":"$92,759.34"},{"v":35657.05,"d":"$35,657.05"},{"v":876111.4100000001,"d":"$876,111.41"},{"v":6724112.14,"d":"$6,724,112.14"},{"v":467891.57,"d":"$467,891.57"},{"v":75.09,"d":"$75.09"},{"v":93686.02,"d":"$93,686.02"},{"v":6724112.0838,"d":"$6,724,112.08"}]
["32038249026","CRESCENT-IROQUOIS",101.6,{"v":1273938.99,"d":"$1,273,938.99"},{"v":1684377.51,"d":"$1,684,377.51"},{"v":1.3221806720901133,"d":"132%"},4,{"v":81.14,"d":"$81.14"},{"v":235587,"d":"$235,587.00"},{"v":235668.14,"d":"$235,668.14"},{"v":0.9,"d":"0.90"},{"v":305811.27,"d":"$305,811.27"},{"v":74152.21,"d":"$74,152.21"},{"v":31538.37,"d":"$31,538.37"},{"v":12395.58,"d":"$12,395.58"},{"v":10017.38,"d":"$10,017.38"},{"v":21426.22,"d":"$21,426.22"},{"v":6605.6,"d":"$6,605.60"},{"v":12029.31,"d":"$12,029.31"},{"v":13768.23,"d":"$13,768.23"},{"v":8554.17,"d":"$8,554.17"},{"v":20425.6,"d":"$20,425.60"},{"v":17586.49,"d":"$17,586.49"},{"v":14434.6,"d":"$14,434.60"},{"v":548745.0299999999,"d":"$548,745.03"},{"v":9084.6,"d":"$9,084.60"},{"v":12700,"d":"$12,700.00"},{"v":33020,"d":"$33,020.00"},{"v":3454.4,"d":"$3,454.40"},{"v":29006.8,"d":"$29,006.80"},{"v":38183.06,"d":"$38,183.06"},{"v":138277.6,"d":"$138,277.60"},{"v":95199.2,"d":"$95,199.20"},{"v":250426.7394,"d":"$250,426.74"},{"v":609352.3994,"d":"$609,352.40"},{"v":96711,"d":"$96,711.00"},{"v":512641.3994,"d":"$512,641.40"},{"v":599681.2994,"d":"$599,681.30"},{"v":12538.57,"d":"$12,538.57"},{"v":12538.57,"d":"$12,538.57"},{"v":13198.5,"d":"$13,198.50"},{"v":13198.5,"d":"$13,198.50"},{"v":0,"d":"$0.00"},{"v":0,"d":"$0.00"},{"v":0,"d":"$0.00"},{"v":0,"d":"$0.00"},{"v":0,"d":"$0.00"},{"v":47514.6,"d":"$47,514.60"},{"v":19246.89,"d":"$19,246.89"},{"v":7276.95,"d":"$7,276.95"},{"v":125512.57999999999,"d":"$125,512.58"},{"v":1273938.99,"d":"$1,273,938.99"},{"v":28953.909999999996,"d":"$28,953.91"},{"v":0,"d":"$0.00"},{"v":17810.820000000003,"d":"$17,810.82"},{"v":1273938.9094,"d":"$1,273,938.91"}]
["32046001026","MOMENCE COMM UNIT SCH DIST 1",936.25,{"v":14172419.82,"d":"$14,172,419.82"},{"v":10609688.1,"d":"$10,609,688.10"},{"v":0.7486151436911075,"d":"75%"},1,{"v":225774.93,"d":"$225,774.93"},{"v":5335901.8,"d":"$5,335,901.80"},{"v":5561676.7299999995,"d":"$5,561,676.73"},{"v":0.96694,"d":"0.97"},{"v":3198805.61,"d":"$3,198,805.61"},{"v":794002.15,"d":"$794,002.15"},{"v":330920.3,"d":"$330,920.30"},{"v":133007.4,"d":"$133,007.40"},{"v":116295,"d":"$116,295.00"},{"v":232144.36,"d":"$232,144.36"},{"v":73334.77,"d":"$73,334.77"},{"v":124357.82,"d":"$124,357.82"},{"v":147144.32,"d":"$147,144.32"},{"v":89319.36,"d":"$89,319.36"},{"v":218293.2,"d":"$218,293.20"},{"v":187950.94,"d":"$187,950.94"},{"v":149223.52,"d":"$149,223.52"},{"v":5794798.750000001,"d":"$5,794,798.75"},{"v":83295,"d":"$83,295.00"},{"v":117031.25,"d":"$117,031.25"},{"v":304281.25,"d":"$304,281.25"},{"v":31832.5,"d":"$31,832.50"},{"v":534598.75,"d":"$534,598.75"},{"v":383746.5,"d":"$383,746.50"},{"v":1274236.25,"d":"$1,274,236.25"},{"v":877266.25,"d":"$877,266.25"},{"v":2685455.0459999996,"d":"$2,685,455.05"},{"v":6291742.796,"d":"$6,291,742.80"},{"v":891197.65,"d":"$891,197.65"},{"v":5400545.146,"d":"$5,400,545.15"},{"v":6262279.796,"d":"$6,262,279.80"},{"v":262333.23,"d":"$262,333.23"},{"v":262333.23,"d":"$262,333.23"},{"v":273677.37,"d":"$273,677.37"},{"v":273677.37,"d":"$273,677.37"},{"v":58138.71,"d":"$58,138.71"},{"v":58138.71,"d":"$58,138.71"},{"v":60265.74,"d":"$60,265.74"},{"v":60265.74,"d":"$60,265.74"},{"v":72318.89,"d":"$72,318.89"},{"v":470781.81,"d":"$470,781.81"},{"v":190701.14,"d":"$190,701.14"},{"v":72709.19,"d":"$72,709.19"},{"v":2115341.13,"d":"$2,115,341.13"},{"v":14172419.82,"d":"$14,172,419.82"},{"v":948140.7199999999,"d":"$948,140.72"},{"v":70587.02,"d":"$70,587.02"},{"v":488407.2599999999,"d":"$488,407.26"},{"v":14172419.675999999,"d":"$14,172,419.68"}]
["32046002026","HERSCHER COMM UNIT SCH DIST 2",1627.78,{"v":21440125.06,"d":"$21,440,125.06"},{"v":23177185.75,"d":"$23,177,185.75"},{"v":1.081019149148564,"d":"108%"},4,{"v":1365.7,"d":"$1,365.70"},{"v":2850693.7299999995,"d":"$2,850,693.73"},{"v":2852059.4299999997,"d":"$2,852,059.43"},{"v":0.96694,"d":"0.97"},{"v":5171034.68,"d":"$5,171,034.68"},{"v":1252439.39,"d":"$1,252,439.39"},{"v":572725.56,"d":"$572,725.56"},{"v":232938.4,"d":"$232,938.40"},{"v":171709.65,"d":"$171,709.65"},{"v":397369.98,"d":"$397,369.98"},{"v":127744.45,"d":"$127,744.45"},{"v":215113.18,"d":"$215,113.18"},{"v":259254.28,"d":"$259,254.28"},{"v":155375.48,"d":"$155,375.48"},{"v":384611.83,"d":"$384,611.83"},{"v":331151.66,"d":"$331,151.66"},{"v":258125.68,"d":"$258,125.68"},{"v":9529594.22,"d":"$9,529,594.22"},{"v":144820.8,"d":"$144,820.80"},{"v":203472.49999999997,"d":"$203,472.50"},{"v":529028.5,"d":"$529,028.50"},{"v":55344.51999999999,"d":"$55,344.52"},{"v":464731.18,"d":"$464,731.18"},{"v":616475.3400000001,"d":"$616,475.34"},{"v":2215408.58,"d":"$2,215,408.58"},{"v":1525229.8599999999,"d":"$1,525,229.86"},{"v":4040449.1179199996,"d":"$4,040,449.12"},{"v":9794960.39792,"d":"$9,794,960.40"},{"v":1549451.22,"d":"$1,549,451.22"},{"v":8245509.17792,"d":"$8,245,509.18"},{"v":9743735.53792,"d":"$9,743,735.54"},{"v":207739.56,"d":"$207,739.56"},{"v":207739.56,"d":"$207,739.56"},{"v":216956.67,"d":"$216,956.67"},{"v":216956.67,"d":"$216,956.67"},{"v":7799.09,"d":"$7,799.09"},{"v":7799.09,"d":"$7,799.09"},{"v":7799.09,"d":"$7,799.09"},{"v":7799.09,"d":"$7,799.09"},{"v":9926.12,"d":"$9,926.12"},{"v":818196.1,"d":"$818,196.10"},{"v":331429.39,"d":"$331,429.39"},{"v":126654.73,"d":"$126,654.73"},{"v":2166795.16,"d":"$2,166,795.16"},{"v":21440125.06,"d":"$21,440,125.06"},{"v":255642.98,"d":"$255,642.98"},{"v":214.25,"d":"$214.25"},{"v":534088.32,"d":"$534,088.32"},{"v":21440124.91792,"d":"$21,440,124.92"}]
["32046005026","MANTENO COMM UNIT SCH DIST 5",1793.95,{"v":24610688.22,"d":"$24,610,688.22"},{"v":18487046.29,"d":"$18,487,046.29"},{"v":0.7511795738802789,"d":"75%"},1,{"v":321250.21,"d":"$321,250.21"},{"v":5464878.779999999,"d":"$5,464,878.78"},{"v":5786128.989999999,"d":"$5,786,128.99"},{"v":0.96694,"d":"0.97"},{"v":5768531.58,"d":"$5,768,531.58"},{"v":1420216.63,"d":"$1,420,216.63"},{"v":634057.16,"d":"$634,057.16"},{"v":254888.08,"d":"$254,888.08"},{"v":193793.92,"d":"$193,793.92"},{"v":444511.58,"d":"$444,511.58"},{"v":140755.46,"d":"$140,755.46"},{"v":238089.23,"d":"$238,089.23"},{"v":282610.53,"d":"$282,610.53"},{"v":171171.5,"d":"$171,171.50"},{"v":419261.54,"d":"$419,261.54"},{"v":360985.14,"d":"$360,985.14"},{"v":285695.85,"d":"$285,695.85"},{"v":10614568.2,"d":"$10,614,568.20"},{"v":160345.8,"d":"$160,345.80"},{"v":224243.75,"d":"$224,243.75"},{"v":583033.75,"d":"$583,033.75"},{"v":60994.29999999999,"d":"$60,994.30"},{"v":1024345.45,"d":"$1,024,345.45"},{"v":718030.5799999998,"d":"$718,030.58"},{"v":2441565.9499999997,"d":"$2,441,565.95"},{"v":1680931.15,"d":"$1,680,931.15"},{"v":4553734.675799999,"d":"$4,553,734.68"},{"v":11447225.4058,"d":"$11,447,225.41"},{"v":1707625.12,"d":"$1,707,625.12"},{"v":9739600.285799999,"d":"$9,739,600.29"},{"v":11390771.315799998,"d":"$11,390,771.32"},{"v":263751.25,"d":"$263,751.25"},{"v":263751.25,"d":"$263,751.25"},{"v":275095.39,"d":"$275,095.39"},{"v":275095.39,"d":"$275,095.39"},{"v":22688.28,"d":"$22,688.28"},{"v":22688.28,"d":"$22,688.28"},{"v":23397.28,"d":"$23,397.28"},{"v":23397.28,"d":"$23,397.28"},{"v":28360.35,"d":"$28,360.35"},{"v":901859.13,"d":"$901,859.13"},{"v":365319.05,"d":"$365,319.05"},{"v":139945.66,"d":"$139,945.66"},{"v":2605348.5900000003,"d":"$2,605,348.59"},{"v":24610688.22,"d":"$24,610,688.22"},{"v":451423.7,"d":"$451,423.70"},{"v":4995.2,"d":"$4,995.20"},{"v":751432.8600000001,"d":"$751,432.86"},{"v":24610688.1058,"d":"$24,610,688.11"}]
["32046006026","GRANT PARK C U  SCHOOL DIST 6",424.5,{"v":5830131.82,"d":"$5,830,131.82"},{"v":5719116.68,"d":"$5,719,116.68"},{"v":0.9809583825156117,"d":"98%"},3,{"v":6625.42,"d":"$6,625.42"},{"v":833212.4399999998,"d":"$833,212.44"},{"v":839837.8599999999,"d":"$839,837.86"},{"v":0.96694,"d":"0.97"},{"v":1367808.28,"d":"$1,367,808.28"},{"v":337966.58,"d":"$337,966.58"},{"v":149664.12,"d":"$149,664.12"},{"v":59743.67,"d":"$59,743.67"},{"v":45950.87,"d":"$45,950.87"},{"v":103995.73,"d":"$103,995.73"},{"v":32527.52,"d":"$32,527.52"},{"v":56291.3,"d":"$56,291.30"},{"v":66176.01,"d":"$66,176.01"},{"v":40208.07,"d":"$40,208.07"},{"v":98174.19,"d":"$98,174.19"},{"v":84528.2,"d":"$84,528.20"},{"v":67546.9,"d":"$67,546.90"},{"v":2510581.4399999995,"d":"$2,510,581.44"},{"v":37845,"d":"$37,845.00"},{"v":53062.5,"d":"$53,062.50"},{"v":137962.5,"d":"$137,962.50"},{"v":14433,"d":"$14,433.00"},{"v":242389.5,"d":"$242,389.50"},{"v":171811.5,"d":"$171,811.50"},{"v":577744.5,"d":"$577,744.50"},{"v":397756.5,"d":"$397,756.50"},{"v":1078642.005,"d":"$1,078,642.01"},{"v":2711647.005,"d":"$2,711,647.01"},{"v":404073.06,"d":"$404,073.06"},{"v":2307573.945,"d":"$2,307,573.95"},{"v":2698288.3449999997,"d":"$2,698,288.35"},{"v":61683.76,"d":"$61,683.76"},{"v":61683.76,"d":"$61,683.76"},{"v":63810.78,"d":"$63,810.78"},{"v":63810.78,"d":"$63,810.78"},{"v":7090.08,"d":"$7,090.08"},{"v":7090.08,"d":"$7,090.08"},{"v":7090.08,"d":"$7,090.08"},{"v":7090.08,"d":"$7,090.08"},{"v":9217.11,"d":"$9,217.11"},{"v":213411.63,"d":"$213,411.63"},{"v":86447.35,"d":"$86,447.35"},{"v":32836.41,"d":"$32,836.41"},{"v":621261.9,"d":"$621,261.90"},{"v":5830131.82,"d":"$5,830,131.82"},{"v":90365.96,"d":"$90,365.96"},{"v":142.9,"d":"$142.90"},{"v":162517.08999999997,"d":"$162,517.09"},{"v":5830131.685,"d":"$5,830,131.69"}]
["32046024027","ST. ANNE UNIT DISTRICT 24",466.53999999999996,{"v":7000807.4399999995,"d":"$7,000,807.44"},{"v":6137177.92,"d":"$6,137,177.92"},{"v":0.8787278332375503,"d":"88%"},2,{"v":12793,"d":"$12,793.00"},{"v":2910068.23,"d":"$2,910,068.23"},{"v":2922861.23,"d":"$2,922,861.23"},0.97,{"v":1603328.98,"d":"$1,603,328.98"},{"v":411432.28,"d":"$411,432.28"},{"v":165950.33000000002,"d":"$165,950.33"},{"v":64498.130000000005,"d":"$64,498.13"},{"v":56865.86,"d":"$56,865.86"},{"v":118076.5,"d":"$118,076.50"},{"v":36075.97,"d":"$36,075.97"},{"v":62035.3,"d":"$62,035.30"},{"v":70847.26000000001,"d":"$70,847.26"},{"v":44228.87,"d":"$44,228.87"},{"v":105104.12,"d":"$105,104.12"},{"v":90494.89,"d":"$90,494.89"},{"v":74439.44,"d":"$74,439.44"},{"v":2903377.9299999997,"d":"$2,903,377.93"},{"v":41741.1,"d":"$41,741.10"},{"v":58317.5,"d":"$58,317.50"},{"v":151625.5,"d":"$151,625.50"},{"v":15862.359999999999,"d":"$15,862.36"},{"v":266394.33999999997,"d":"$266,394.34"},{"v":208340.61,"d":"$208,340.61"},{"v":634960.94,"d":"$634,960.94"},{"v":437147.98,"d":"$437,147.98"},{"v":1319788.15056,"d":"$1,319,788.15"},{"v":3134178.48056,"d":"$3,134,178.48"},{"v":444090.08999999997,"d":"$444,090.09"},{"v":2690088.39056,"d":"$2,690,088.39"},{"v":3119496.85056,"d":"$3,119,496.85"},{"v":134002.64,"d":"$134,002.64"},{"v":134002.64,"d":"$134,002.64"},{"v":139674.72,"d":"$139,674.72"},{"v":139674.72,"d":"$139,674.72"},{"v":12762.150000000001,"d":"$12,762.15"},{"v":12762.150000000001,"d":"$12,762.15"},{"v":12762.150000000001,"d":"$12,762.15"},{"v":12762.150000000001,"d":"$12,762.15"},{"v":15598.18,"d":"$15,598.18"},{"v":233972.88,"d":"$233,972.88"},{"v":94776.16,"d":"$94,776.16"},{"v":35181.86,"d":"$35,181.86"},{"v":977932.4000000001,"d":"$977,932.40"},{"v":7000807.4399999995,"d":"$7,000,807.44"},{"v":613628.0700000001,"d":"$613,628.07"},{"v":795.18,"d":"$795.18"},{"v":228286.56,"d":"$228,286.56"},{"v":7000807.18056,"d":"$7,000,807.18"}]
["32046053002","BOURBONNAIS SCHOOL DIST 53",2257.89,{"v":31164804.7,"d":"$31,164,804.70"},{"v":22455315.28,"d":"$22,455,315.28"},{"v":0.7205344457043878,"d":"72%"},1,{"v":766552.72,"d":"$766,552.72"},{"v":8684949.009999998,"d":"$8,684,949.01"},{"v":9451501.729999999,"d":"$9,451,501.73"},{"v":0.96694,"d":"0.97"},{"v":7408273.38,"d":"$7,408,273.38"},{"v":1481654.67,"d":"$1,481,654.67"},{"v":760583.63,"d":"$760,583.63"},{"v":337812.41,"d":"$337,812.41"},{"v":259952.83,"d":"$259,952.83"},{"v":465084.21,"d":"$465,084.21"},{"v":177422.85,"d":"$177,422.85"},{"v":288062.12,"d":"$288,062.12"},{"v":390049.24,"d":"$390,049.24"},{"v":215974.79,"d":"$215,974.79"},{"v":578650.23,"d":"$578,650.23"},{"v":498219.17,"d":"$498,219.17"},{"v":345660.96,"d":"$345,660.96"},{"v":13207400.490000002,"d":"$13,207,400.49"},{"v":201095.10000000003,"d":"$201,095.10"},{"v":282236.25000000006,"d":"$282,236.25"},{"v":733814.2500000001,"d":"$733,814.25"},{"v":76768.26000000001,"d":"$76,768.26"},{"v":1289255.19,"d":"$1,289,255.19"},{"v":376162.5900000001,"d":"$376,162.59"},{"v":3072988.29,"d":"$3,072,988.29"},{"v":2115642.93,"d":"$2,115,642.93"},{"v":5897547.47796,"d":"$5,897,547.48"},{"v":14045510.33796,"d":"$14,045,510.34"},{"v":2149240.33,"d":"$2,149,240.33"},{"v":11896270.00796,"d":"$11,896,270.01"},{"v":13974456.447959999,"d":"$13,974,456.45"},{"v":482834.96,"d":"$482,834.96"},{"v":482834.96,"d":"$482,834.96"},{"v":502687.2,"d":"$502,687.20"},{"v":502687.2,"d":"$502,687.20"},{"v":45376.56,"d":"$45,376.56"},{"v":45376.56,"d":"$45,376.56"},{"v":46794.57,"d":"$46,794.57"},{"v":46794.57,"d":"$46,794.57"},{"v":56720.7,"d":"$56,720.70"},{"v":1135123.01,"d":"$1,135,123.01"},{"v":459808.03,"d":"$459,808.03"},{"v":175909.35,"d":"$175,909.35"},{"v":3982947.6700000004,"d":"$3,982,947.67"},{"v":31164804.7,"d":"$31,164,804.70"},{"v":1255966.63,"d":"$1,255,966.63"},{"v":56592.44,"d":"$56,592.44"},{"v":1071291.8899999997,"d":"$1,071,291.89"},{"v":31164804.60796,"d":"$31,164,804.61"}]
["32046061002","BRADLEY SCHOOL DIST 61",1223.72,{"v":18069951.14,"d":"$18,069,951.14"},{"v":14533601.37,"d":"$14,533,601.37"},{"v":0.8042966612028148,"d":"80%"},2,{"v":103411.17,"d":"$103,411.17"},{"v":6135088.660000001,"d":"$6,135,088.66"},{"v":6238499.830000001,"d":"$6,238,499.83"},{"v":0.96694,"d":"0.97"},{"v":4204786.82,"d":"$4,204,786.82"},{"v":840957.35,"d":"$840,957.35"},{"v":411982.8,"d":"$411,982.80"},{"v":182728.86,"d":"$182,728.86"},{"v":154769.03,"d":"$154,769.03"},{"v":252889.54,"d":"$252,889.54"},{"v":95808.34,"d":"$95,808.34"},{"v":155949.88,"d":"$155,949.88"},{"v":210984.72,"d":"$210,984.72"},{"v":116890.61,"d":"$116,890.61"},{"v":313002.42,"d":"$313,002.42"},{"v":269495.79,"d":"$269,495.79"},{"v":187132.5,"d":"$187,132.50"},{"v":7397378.66,"d":"$7,397,378.66"},{"v":108627.29999999999,"d":"$108,627.30"},{"v":152965,"d":"$152,965.00"},{"v":397709,"d":"$397,709.00"},{"v":41606.479999999996,"d":"$41,606.48"},{"v":698744.12,"d":"$698,744.12"},{"v":204769.09,"d":"$204,769.09"},{"v":1665482.92,"d":"$1,665,482.92"},{"v":1146625.64,"d":"$1,146,625.64"},{"v":3472181.90808,"d":"$3,472,181.91"},{"v":7888711.458079999,"d":"$7,888,711.46"},{"v":1164834.59,"d":"$1,164,834.59"},{"v":6723876.86808,"d":"$6,723,876.87"},{"v":7850202.01808,"d":"$7,850,202.02"},{"v":391372.83,"d":"$391,372.83"},{"v":391372.83,"d":"$391,372.83"},{"v":407680.03,"d":"$407,680.03"},{"v":407680.03,"d":"$407,680.03"},{"v":49630.61,"d":"$49,630.61"},{"v":49630.61,"d":"$49,630.61"},{"v":51757.63,"d":"$51,757.63"},{"v":51757.63,"d":"$51,757.63"},{"v":62392.77,"d":"$62,392.77"},{"v":614710.59,"d":"$614,710.59"},{"v":249002.84,"d":"$249,002.84"},{"v":95381.95,"d":"$95,381.95"},{"v":2822370.35,"d":"$2,822,370.35"},{"v":18069951.14,"d":"$18,069,951.14"},{"v":1270514.09,"d":"$1,270,514.09"},{"v":48776.95999999999,"d":"$48,776.96"},{"v":673956.7000000001,"d":"$673,956.70"},{"v":18069951.02808,"d":"$18,069,951.03"}]
["32046111025","KANKAKEE SCHOOL DIST 111",4489.52,{"v":73877154.63,"d":"$73,877,154.63"},{"v":55466957.45999999,"d":"$55,466,957.46"},{"v":0.750799861442904,"d":"75%"},1,{"v":1309024.74,"d":"$1,309,024.74"},{"v":40728957.92000001,"d":"$40,728,957.92"},{"v":42037982.66000001,"d":"$42,037,982.66"},{"v":0.96694,"d":"0.97"},{"v":16210573.48,"d":"$16,210,573.48"},{"v":3954910.91,"d":"$3,954,910.91"},{"v":1586791.74,"d":"$1,586,791.74"},{"v":641467.21,"d":"$641,467.21"},{"v":628518.87,"d":"$628,518.87"},{"v":1106289.64,"d":"$1,106,289.64"},{"v":353071.47,"d":"$353,071.47"},{"v":595941.07,"d":"$595,941.07"},{"v":712365.39,"d":"$712,365.39"},{"v":429364.77,"d":"$429,364.77"},{"v":1056816.29,"d":"$1,056,816.29"},{"v":909921.24,"d":"$909,921.24"},{"v":715101.2,"d":"$715,101.20"},{"v":28901133.279999997,"d":"$28,901,133.28"},{"v":400734.9,"d":"$400,734.90"},{"v":561190,"d":"$561,190.00"},{"v":1459094,"d":"$1,459,094.00"},{"v":152643.68,"d":"$152,643.68"},{"v":2563515.92,"d":"$2,563,515.92"},{"v":1755466.67,"d":"$1,755,466.67"},{"v":6110236.72,"d":"$6,110,236.72"},{"v":4206680.24,"d":"$4,206,680.24"},{"v":14281471.40328,"d":"$14,281,471.40"},{"v":31491033.53328,"d":"$31,491,033.53"},{"v":4273484.29,"d":"$4,273,484.29"},{"v":27217549.24328,"d":"$27,217,549.24"},{"v":31349752.13328,"d":"$31,349,752.13"},{"v":1854766.9,"d":"$1,854,766.90"},{"v":1854766.9,"d":"$1,854,766.90"},{"v":1932048.85,"d":"$1,932,048.85"},{"v":1932048.85,"d":"$1,932,048.85"},{"v":474326.85,"d":"$474,326.85"},{"v":474326.85,"d":"$474,326.85"},{"v":494179.1,"d":"$494,179.10"},{"v":494179.1,"d":"$494,179.10"},{"v":593440.32,"d":"$593,440.32"},{"v":2257483.87,"d":"$2,257,483.87"},{"v":914446.45,"d":"$914,446.45"},{"v":350255.06,"d":"$350,255.06"},{"v":13626269.1,"d":"$13,626,269.10"},{"v":73877154.63,"d":"$73,877,154.63"},{"v":13123261.230000002,"d":"$13,123,261.23"},{"v":618501.46,"d":"$618,501.46"},{"v":2615510.8499999996,"d":"$2,615,510.85"},{"v":73877154.51327999,"d":"$73,877,154.51"}]
["32046256004","ST ANNE C C SCHOOL DIST 256"]
["32046258004","ST GEORGE C C SCHOOL DIST 258",383.47,{"v":4920949.54,"d":"$4,920,949.54"},{"v":3920972.92,"d":"$3,920,972.92"},{"v":0.7967919378421425,"d":"80%"},2,{"v":22672.8,"d":"$22,672.80"},{"v":1430867.9100000001,"d":"$1,430,867.91"},{"v":1453540.7100000002,"d":"$1,453,540.71"},{"v":0.96694,"d":"0.97"},{"v":1181332.02,"d":"$1,181,332.02"},{"v":236266.4,"d":"$236,266.40"},{"v":128112.49,"d":"$128,112.49"},{"v":56639.2,"d":"$56,639.20"},{"v":39719.22,"d":"$39,719.22"},{"v":79936.34,"d":"$79,936.34"},{"v":29570.47,"d":"$29,570.47"},{"v":48536.88,"d":"$48,536.88"},{"v":65397.47,"d":"$65,397.47"},{"v":36187.26,"d":"$36,187.26"},{"v":97019.2,"d":"$97,019.20"},{"v":83533.75,"d":"$83,533.75"},{"v":58241.97,"d":"$58,241.97"},{"v":2140492.67,"d":"$2,140,492.67"},{"v":34047.9,"d":"$34,047.90"},{"v":47933.75,"d":"$47,933.75"},{"v":124627.74999999999,"d":"$124,627.75"},{"v":13037.98,"d":"$13,037.98"},{"v":218961.37,"d":"$218,961.37"},{"v":65143.51,"d":"$65,143.51"},{"v":521902.67,"d":"$521,902.67"},{"v":359311.38999999996,"d":"$359,311.39"},{"v":914316.7210799998,"d":"$914,316.72"},{"v":2299283.04108,"d":"$2,299,283.04"},{"v":365017.42,"d":"$365,017.42"},{"v":1934265.6210799995,"d":"$1,934,265.62"},{"v":2287215.5610799994,"d":"$2,287,215.56"},{"v":38286.47,"d":"$38,286.47"},{"v":38286.47,"d":"$38,286.47"},{"v":39704.49,"d":"$39,704.49"},{"v":39704.49,"d":"$39,704.49"},{"v":7090.08,"d":"$7,090.08"},{"v":7090.08,"d":"$7,090.08"},{"v":7090.08,"d":"$7,090.08"},{"v":7090.08,"d":"$7,090.08"},{"v":9217.11,"d":"$9,217.11"},{"v":192141.37,"d":"$192,141.37"},{"v":77831.34,"d":"$77,831.34"},{"v":29709.13,"d":"$29,709.13"},{"v":493241.18999999994,"d":"$493,241.19"},{"v":4920949.54,"d":"$4,920,949.54"},{"v":71442.71,"d":"$71,442.71"},{"v":6696.22,"d":"$6,696.22"},{"v":144015.3,"d":"$144,015.30"},{"v":4920949.421079999,"d":"$4,920,949.42"}]
["32046259004","PEMBROKE C C SCHOOL DISTRICT 259",162.21,{"v":2630639.97,"d":"$2,630,639.97"},{"v":2654645.2800000003,"d":"$2,654,645.28"},{"v":1.0091252738017207,"d":"101%"},4,{"v":167.56,"d":"$167.56"},{"v":2148013.3899999997,"d":"$2,148,013.39"},{"v":2148180.9499999997,"d":"$2,148,180.95"},{"v":0.96694,"d":"0.97"},{"v":600780.15,"d":"$600,780.15"},{"v":120156.02,"d":"$120,156.02"},{"v":53942.1,"d":"$53,942.10"},{"v":23599.66,"d":"$23,599.66"},{"v":23925.28,"d":"$23,925.28"},{"v":32701.23,"d":"$32,701.23"},{"v":12419.59,"d":"$12,419.59"},{"v":20391.23,"d":"$20,391.23"},{"v":27248.94,"d":"$27,248.94"},{"v":15221.62,"d":"$15,221.62"},{"v":40424.66,"d":"$40,424.66"},{"v":34805.73,"d":"$34,805.73"},{"v":24468.52,"d":"$24,468.52"},{"v":1030084.73,"d":"$1,030,084.73"},{"v":14576.399999999998,"d":"$14,576.40"},{"v":20276.249999999996,"d":"$20,276.25"},{"v":52718.249999999985,"d":"$52,718.25"},{"v":5515.139999999999,"d":"$5,515.14"},{"v":46310.95,"d":"$46,310.95"},{"v":26918.679999999997,"d":"$26,918.68"},{"v":220767.80999999997,"d":"$220,767.81"},{"v":151990.77,"d":"$151,990.77"},{"v":526160.2514399999,"d":"$526,160.25"},{"v":1065234.5014399998,"d":"$1,065,234.50"},{"v":154404.45,"d":"$154,404.45"},{"v":910830.0514399998,"d":"$910,830.05"},{"v":1060129.88144,"d":"$1,060,129.88"},{"v":72318.89,"d":"$72,318.89"},{"v":72318.89,"d":"$72,318.89"},{"v":75863.93,"d":"$75,863.93"},{"v":75863.93,"d":"$75,863.93"},{"v":21979.27,"d":"$21,979.27"},{"v":21979.27,"d":"$21,979.27"},{"v":22688.28,"d":"$22,688.28"},{"v":22688.28,"d":"$22,688.28"},{"v":27651.34,"d":"$27,651.34"},{"v":81536,"d":"$81,536.00"},{"v":33028.05,"d":"$33,028.05"},{"v":12509.1,"d":"$12,509.10"},{"v":540425.2300000001,"d":"$540,425.23"},{"v":2630639.97,"d":"$2,630,639.97"},{"v":743451.08,"d":"$743,451.08"},{"v":519.9399999999999,"d":"$519.94"},{"v":111481.97999999998,"d":"$111,481.98"},{"v":2630639.84144,"d":"$2,630,639.84"}]
["32046302016","ST ANNE COMM H S DIST 302"]
["32046307016","BRADLEY BOURBONNAIS C HS D 307",1912.5,{"v":28828628.87,"d":"$28,828,628.87"},{"v":21272791.55,"d":"$21,272,791.55"},{"v":0.7379050750532625,"d":"74%"},1,{"v":577462.08,"d":"$577,462.08"},{"v":8757121.620000001,"d":"$8,757,121.62"},{"v":9334583.700000001,"d":"$9,334,583.70"},{"v":0.96694,"d":"0.97"},{"v":6419872.33,"d":"$6,419,872.33"},{"v":2139743.44,"d":"$2,139,743.44"},{"v":741410.72,"d":"$741,410.72"},{"v":246619.88,"d":"$246,619.88"},{"v":213773.89,"d":"$213,773.89"},{"v":633634.81,"d":"$633,634.81"},{"v":150809.42,"d":"$150,809.42"},{"v":274563.69,"d":"$274,563.69"},{"v":247576.16,"d":"$247,576.16"},{"v":182946.73,"d":"$182,946.73"},{"v":367286.97,"d":"$367,286.97"},{"v":316234.92,"d":"$316,234.92"},{"v":329463.49,"d":"$329,463.49"},{"v":12263936.450000003,"d":"$12,263,936.45"},{"v":172125,"d":"$172,125.00"},{"v":239062.5,"d":"$239,062.50"},{"v":621562.5,"d":"$621,562.50"},{"v":65025,"d":"$65,025.00"},{"v":1092037.5,"d":"$1,092,037.50"},{"v":1642837.5,"d":"$1,642,837.50"},{"v":2602912.5,"d":"$2,602,912.50"},{"v":1792012.5,"d":"$1,792,012.50"},{"v":5258595.627,"d":"$5,258,595.63"},{"v":13486170.627,"d":"$13,486,170.63"},{"v":1820470.5,"d":"$1,820,470.50"},{"v":11665700.127,"d":"$11,665,700.13"},{"v":13425985.867,"d":"$13,425,985.87"},{"v":355922.39,"d":"$355,922.39"},{"v":355922.39,"d":"$355,922.39"},{"v":370811.57,"d":"$370,811.57"},{"v":370811.57,"d":"$370,811.57"},{"v":34741.42,"d":"$34,741.42"},{"v":34741.42,"d":"$34,741.42"},{"v":36159.44,"d":"$36,159.44"},{"v":36159.44,"d":"$36,159.44"},{"v":43249.53,"d":"$43,249.53"},{"v":961415.87,"d":"$961,415.87"},{"v":389443.9,"d":"$389,443.90"},{"v":149327.49,"d":"$149,327.49"},{"v":3138706.4299999997,"d":"$3,138,706.43"},{"v":28828628.87,"d":"$28,828,628.87"},{"v":913167.3899999999,"d":"$913,167.39"},{"v":29699.379999999997,"d":"$29,699.38"},{"v":888995.8999999999,"d":"$888,995.90"},{"v":28828628.747,"d":"$28,828,628.75"}]
[null,"ALT-HENDERSON/KNOX/MERCER/WARREN",68,{"v":974352.81,"d":"$974,352.81"},{"v":604002.23,"d":"$604,002.23"},{"v":0.6199009473785989,"d":"62%"},1,{"v":63121.52,"d":"$63,121.52"},{"v":506566.95000000007,"d":"$506,566.95"},{"v":569688.4700000001,"d":"$569,688.47"},{"v":0.9,"d":"0.90"},{"v":212027.42,"d":"$212,027.42"},{"v":64728.97,"d":"$64,728.97"},{"v":23788.74,"d":"$23,788.74"},{"v":7657.55,"d":"$7,657.55"},{"v":7250.32,"d":"$7,250.32"},{"v":19477.11,"d":"$19,477.11"},{"v":4403.73,"d":"$4,403.73"},{"v":8821.49,"d":"$8,821.49"},{"v":7971.08,"d":"$7,971.08"},{"v":5880.99,"d":"$5,880.99"},{"v":11825.35,"d":"$11,825.35"},{"v":10181.65,"d":"$10,181.65"},{"v":10585.37,"d":"$10,585.37"},{"v":394599.76999999996,"d":"$394,599.77"},{"v":6120,"d":"$6,120.00"},{"v":8500,"d":"$8,500.00"},{"v":22100,"d":"$22,100.00"},{"v":2312,"d":"$2,312.00"},{"v":38828,"d":"$38,828.00"},{"v":48652,"d":"$48,652.00"},{"v":92548,"d":"$92,548.00"},{"v":63716,"d":"$63,716.00"},{"v":187263.582,"d":"$187,263.58"},{"v":470039.582,"d":"$470,039.58"},{"v":64727.84,"d":"$64,727.84"},{"v":405311.74199999997,"d":"$405,311.74"},{"v":463566.79199999996,"d":"$463,566.79"},{"v":16498.12,"d":"$16,498.12"},{"v":16498.12,"d":"$16,498.12"},{"v":17158.05,"d":"$17,158.05"},{"v":17158.05,"d":"$17,158.05"},{"v":0,"d":"$0.00"},{"v":0,"d":"$0.00"},{"v":0,"d":"$0.00"},{"v":0,"d":"$0.00"},{"v":0,"d":"$0.00"},{"v":31676.4,"d":"$31,676.40"},{"v":12831.26,"d":"$12,831.26"},{"v":4366.17,"d":"$4,366.17"},{"v":116186.16999999998,"d":"$116,186.17"},{"v":974352.81,"d":"$974,352.81"},{"v":36905.159999999996,"d":"$36,905.16"},{"v":0,"d":"$0.00"},{"v":17591.5,"d":"$17,591.50"},{"v":974352.7319999998,"d":"$974,352.73"}]
[null,"SAFE SCH-KNOX ROE",12.63,{"v":166594.81,"d":"$166,594.81"},{"v":347943.94999999995,"d":"$347,943.95"},{"v":2.088564163553474,"d":"209%"},4,{"v":10.61,"d":"$10.61"},{"v":331284.4700000001,"d":"$331,284.47"},{"v":331295.0800000001,"d":"$331,295.08"},{"v":0.9,"d":"0.90"},{"v":37816.51,"d":"$37,816.51"},{"v":10931.06,"d":"$10,931.06"},{"v":3420.72,"d":"$3,420.72"},{"v":1349.44,"d":"$1,349.44"},{"v":1265.58,"d":"$1,265.58"},{"v":2989.2,"d":"$2,989.20"},{"v":550.46,"d":"$550.46"},{"v":1336.59,"d":"$1,336.59"},{"v":1449.28,"d":"$1,449.28"},{"v":801.95,"d":"$801.95"},{"v":2150.06,"d":"$2,150.06"},{"v":1851.21,"d":"$1,851.21"},{"v":1603.84,"d":"$1,603.84"},{"v":67515.9,"d":"$67,515.90"},{"v":1136.7,"d":"$1,136.70"},{"v":1578.75,"d":"$1,578.75"},{"v":4104.75,"d":"$4,104.75"},{"v":429.42,"d":"$429.42"},{"v":3605.8599999999997,"d":"$3,605.86"},{"v":8012.670000000001,"d":"$8,012.67"},{"v":17189.43,"d":"$17,189.43"},{"v":11834.310000000001,"d":"$11,834.31"},{"v":32364.895319999996,"d":"$32,364.90"},{"v":80256.78532,"d":"$80,256.79"},{"v":12022.24,"d":"$12,022.24"},{"v":68234.54531999999,"d":"$68,234.55"},{"v":79054.55531999998,"d":"$79,054.56"},{"v":2639.7,"d":"$2,639.70"},{"v":2639.7,"d":"$2,639.70"},{"v":3299.62,"d":"$3,299.62"},{"v":3299.62,"d":"$3,299.62"},{"v":0,"d":"$0.00"},{"v":0,"d":"$0.00"},{"v":0,"d":"$0.00"},{"v":0,"d":"$0.00"},{"v":0,"d":"$0.00"},{"v":5279.4,"d":"$5,279.40"},{"v":2138.54,"d":"$2,138.54"},{"v":727.69,"d":"$727.69"},{"v":20024.27,"d":"$20,024.27"},{"v":166594.81,"d":"$166,594.81"},{"v":9.83,"d":"$9.83"},{"v":0,"d":"$0.00"},{"v":4.65,"d":"$4.65"},{"v":166594.72531999997,"d":"$166,594.73"}]
["33036235026","WEST CENTRAL",693.12,{"v":9120138.05,"d":"$9,120,138.05"},{"v":9967744.49,"d":"$9,967,744.49"},{"v":1.0929378958249432,"d":"109%"},4,{"v":580.93,"d":"$580.93"},{"v":1962221.9999999998,"d":"$1,962,222.00"},{"v":1962802.9299999997,"d":"$1,962,802.93"},{"v":0.9,"d":"0.90"},{"v":2137191.77,"d":"$2,137,191.77"},{"v":514807.87,"d":"$514,807.87"},{"v":226950.35,"d":"$226,950.35"},{"v":91068.01,"d":"$91,068.01"},{"v":72631.53,"d":"$72,631.53"},{"v":156652.9,"d":"$156,652.90"},{"v":49542.03,"d":"$49,542.03"},{"v":85007.12,"d":"$85,007.12"},{"v":101450.16,"d":"$101,450.16"},{"v":61215.82,"d":"$61,215.82"},{"v":150504.48,"d":"$150,504.48"},{"v":129584.7,"d":"$129,584.70"},{"v":102004.54,"d":"$102,004.54"},{"v":3878611.28,"d":"$3,878,611.28"},{"v":62253.899999999994,"d":"$62,253.90"},{"v":86640,"d":"$86,640.00"},{"v":225263.99999999997,"d":"$225,264.00"},{"v":23566.079999999998,"d":"$23,566.08"},{"v":197885.76,"d":"$197,885.76"},{"v":260532.47,"d":"$260,532.47"},{"v":943336.32,"d":"$943,336.32"},{"v":649453.44,"d":"$649,453.44"},{"v":1814585.4016799997,"d":"$1,814,585.40"},{"v":4263517.371679999,"d":"$4,263,517.37"},{"v":659767.06,"d":"$659,767.06"},{"v":3603750.31168,"d":"$3,603,750.31"},{"v":4197540.66168,"d":"$4,197,540.66"},{"v":131985,"d":"$131,985.00"},{"v":131985,"d":"$131,985.00"},{"v":137264.4,"d":"$137,264.40"},{"v":137264.4,"d":"$137,264.40"},{"v":0,"d":"$0.00"},{"v":0,"d":"$0.00"},{"v":0,"d":"$0.00"},{"v":0,"d":"$0.00"},{"v":0,"d":"$0.00"},{"v":324023.17,"d":"$324,023.17"},{"v":131253.13,"d":"$131,253.13"},{"v":50210.95,"d":"$50,210.95"},{"v":1043986.0499999999,"d":"$1,043,986.05"},{"v":9120138.05,"d":"$9,120,138.05"},{"v":374046.7,"d":"$374,046.70"},{"v":0,"d":"$0.00"},{"v":250989.97,"d":"$250,989.97"},{"v":9120137.99168,"d":"$9,120,137.99"}]
["33048202026","KNOXVILLE C U SCHOOL DIST 202",941.19,{"v":12691334.8,"d":"$12,691,334.80"},{"v":9778098.3,"d":"$9,778,098.30"},{"v":0.7704546806219311,"d":"77%"},1,{"v":103887.05,"d":"$103,887.05"},{"v":4612672.65,"d":"$4,612,672.65"},{"v":4716559.7,"d":"$4,716,559.70"},{"v":0.9,"d":"0.90"},{"v":2910134.96,"d":"$2,910,134.96"},{"v":720394.13,"d":"$720,394.13"},{"v":309893.91,"d":"$309,893.91"},{"v":123799.47,"d":"$123,799.47"},{"v":98280.36,"d":"$98,280.36"},{"v":216749.7,"d":"$216,749.70"},{"v":68257.9,"d":"$68,257.90"},{"v":116283.33,"d":"$116,283.33"},{"v":136957.71,"d":"$136,957.71"},{"v":83670.53,"d":"$83,670.53"},{"v":203181.04,"d":"$203,181.04"},{"v":174939.34,"d":"$174,939.34"},{"v":139534.51,"d":"$139,534.51"},{"v":5302076.890000001,"d":"$5,302,076.89"},{"v":84355.20000000001,"d":"$84,355.20"},{"v":117648.75,"d":"$117,648.75"},{"v":305886.75,"d":"$305,886.75"},{"v":32000.46,"d":"$32,000.46"},{"v":537419.49,"d":"$537,419.49"},{"v":385027.4,"d":"$385,027.40"},{"v":1280959.59,"d":"$1,280,959.59"},{"v":881895.0299999999,"d":"$881,895.03"},{"v":2465940.4281599997,"d":"$2,465,940.43"},{"v":6091133.098159999,"d":"$6,091,133.10"},{"v":895899.93,"d":"$895,899.93"},{"v":5195233.168160001,"d":"$5,195,233.17"},{"v":6001543.0981600005,"d":"$6,001,543.10"},{"v":171580.5,"d":"$171,580.50"},{"v":171580.5,"d":"$171,580.50"},{"v":178839.67,"d":"$178,839.67"},{"v":178839.67,"d":"$178,839.67"},{"v":0,"d":"$0.00"},{"v":0,"d":"$0.00"},{"v":0,"d":"$0.00"},{"v":0,"d":"$0.00"},{"v":0,"d":"$0.00"},{"v":440169.97,"d":"$440,169.97"},{"v":178301.1,"d":"$178,301.10"},{"v":68403.33,"d":"$68,403.33"},{"v":1387714.7400000002,"d":"$1,387,714.74"},{"v":12691334.8,"d":"$12,691,334.80"},{"v":417622.73,"d":"$417,622.73"},{"v":43.11,"d":"$43.11"},{"v":272278.46,"d":"$272,278.46"},{"v":12691334.728160001,"d":"$12,691,334.73"}]
["33048205026","GALESBURG C U SCHOOL DIST 205",3796.88,{"v":56328639.46,"d":"$56,328,639.46"},{"v":43654503.91,"d":"$43,654,503.91"},{"v":0.7749965972638103,"d":"77%"},2,{"v":450160.65,"d":"$450,160.65"},{"v":22630104.81,"d":"$22,630,104.81"},{"v":23080265.459999997,"d":"$23,080,265.46"},{"v":0.9,"d":"0.90"},{"v":12511519.86,"d":"$12,511,519.86"},{"v":3028734.19,"d":"$3,028,734.19"},{"v":1246252.07,"d":"$1,246,252.07"},{"v":506209.72,"d":"$506,209.72"},{"v":457304.67,"d":"$457,304.67"},{"v":861798.33,"d":"$861,798.33"},{"v":277435.36,"d":"$277,435.36"},{"v":468073.81,"d":"$468,073.81"},{"v":563048.38,"d":"$563,048.38"},{"v":337889.95,"d":"$337,889.95"},{"v":835299.86,"d":"$835,299.86"},{"v":719195.08,"d":"$719,195.08"},{"v":561666.51,"d":"$561,666.51"},{"v":22374427.78999999,"d":"$22,374,427.79"},{"v":340189.19999999995,"d":"$340,189.20"},{"v":474610,"d":"$474,610.00"},{"v":1233986,"d":"$1,233,986.00"},{"v":129093.91999999998,"d":"$129,093.92"},{"v":2168018.48,"d":"$2,168,018.48"},{"v":1449824.56,"d":"$1,449,824.56"},{"v":5167553.68,"d":"$5,167,553.68"},{"v":3557676.56,"d":"$3,557,676.56"},{"v":11241139.13232,"d":"$11,241,139.13"},{"v":25762091.53232,"d":"$25,762,091.53"},{"v":3614174.13,"d":"$3,614,174.13"},{"v":22147917.40232,"d":"$22,147,917.40"},{"v":25400674.112320002,"d":"$25,400,674.11"},{"v":1239999.07,"d":"$1,239,999.07"},{"v":1239999.07,"d":"$1,239,999.07"},{"v":1292133.15,"d":"$1,292,133.15"},{"v":1292133.15,"d":"$1,292,133.15"},{"v":134624.7,"d":"$134,624.70"},{"v":134624.7,"d":"$134,624.70"},{"v":139904.1,"d":"$139,904.10"},{"v":139904.1,"d":"$139,904.10"},{"v":168280.87,"d":"$168,280.87"},{"v":1776518.1,"d":"$1,776,518.10"},{"v":719620.05,"d":"$719,620.05"},{"v":275796.4,"d":"$275,796.40"},{"v":8553537.459999999,"d":"$8,553,537.46"},{"v":56328639.46,"d":"$56,328,639.46"},{"v":5498096.739999999,"d":"$5,498,096.74"},{"v":143945.69,"d":"$143,945.69"},{"v":1940828.31,"d":"$1,940,828.31"},{"v":56328639.36232,"d":"$56,328,639.36"}]
["33048208026","R O W V A COMM UNIT SCH DIST 208",563.53,{"v":7358439.96,"d":"$7,358,439.96"},{"v":7253663.260000001,"d":"$7,253,663.26"},{"v":0.9857610172034346,"d":"99%"},3,{"v":8362.21,"d":"$8,362.21"},{"v":1527330.28,"d":"$1,527,330.28"},{"v":1535692.49,"d":"$1,535,692.49"},{"v":0.9,"d":"0.90"},{"v":1699865.7,"d":"$1,699,865.70"},{"v":412716.92,"d":"$412,716.92"},{"v":184020.98,"d":"$184,020.98"},{"v":74279.25,"d":"$74,279.25"},{"v":56471.28,"d":"$56,471.28"},{"v":126339.1,"d":"$126,339.10"},{"v":40734.55,"d":"$40,734.55"},{"v":69235.36,"d":"$69,235.36"},{"v":82609.41,"d":"$82,609.41"},{"v":49988.46,"d":"$49,988.46"},{"v":122553.64,"d":"$122,553.64"},{"v":105518.97,"d":"$105,518.97"},{"v":83079.17,"d":"$83,079.17"},{"v":3107412.79,"d":"$3,107,412.79"},{"v":50365.799999999996,"d":"$50,365.80"},{"v":70441.25,"d":"$70,441.25"},{"v":183147.25,"d":"$183,147.25"},{"v":19160.019999999997,"d":"$19,160.02"},{"v":321775.63,"d":"$321,775.63"},{"v":215142.49999999997,"d":"$215,142.50"},{"v":766964.33,"d":"$766,964.33"},{"v":528027.61,"d":"$528,027.61"},{"v":1420839.3079199998,"d":"$1,420,839.31"},{"v":3575863.6979199992,"d":"$3,575,863.70"},{"v":536412.93,"d":"$536,412.93"},{"v":3039450.7679199995,"d":"$3,039,450.77"},{"v":3522222.3979199994,"d":"$3,522,222.40"},{"v":77871.15,"d":"$77,871.15"},{"v":77871.15,"d":"$77,871.15"},{"v":81170.77,"d":"$81,170.77"},{"v":81170.77,"d":"$81,170.77"},{"v":0,"d":"$0.00"},{"v":0,"d":"$0.00"},{"v":0,"d":"$0.00"},{"v":0,"d":"$0.00"},{"v":0,"d":"$0.00"},{"v":263310.07,"d":"$263,310.07"},{"v":106659.88,"d":"$106,659.88"},{"v":40750.92,"d":"$40,750.92"},{"v":728804.7100000001,"d":"$728,804.71"},{"v":7358439.96,"d":"$7,358,439.96"},{"v":183020.74,"d":"$183,020.74"},{"v":1.62,"d":"$1.62"},{"v":136398.97000000003,"d":"$136,398.97"},{"v":7358439.897919999,"d":"$7,358,439.90"}]
["33048210026","WILLIAMSFIELD C U S DIST 210",264.12,{"v":3374415.41,"d":"$3,374,415.41"},{"v":4056842.27,"d":"$4,056,842.27"},{"v":1.2022355807105563,"d":"120%"},4,{"v":214.94,"d":"$214.94"},{"v":204945.05000000002,"d":"$204,945.05"},{"v":205159.99000000002,"d":"$205,159.99"},{"v":0.9,"d":"0.90"},{"v":791818.02,"d":"$791,818.02"},{"v":195312.82,"d":"$195,312.82"},{"v":85734.52,"d":"$85,734.52"},{"v":33326.91,"d":"$33,326.91"},{"v":26389.92,"d":"$26,389.92"},{"v":60125.81,"d":"$60,125.81"},{"v":18165.41,"d":"$18,165.41"},{"v":32078.16,"d":"$32,078.16"},{"v":36956.84,"d":"$36,956.84"},{"v":22989.34,"d":"$22,989.34"},{"v":54826.63,"d":"$54,826.63"},{"v":47205.85,"d":"$47,205.85"},{"v":38492.28,"d":"$38,492.28"},{"v":1443422.51,"d":"$1,443,422.51"},{"v":23590.8,"d":"$23,590.80"},{"v":33015,"d":"$33,015.00"},{"v":85839,"d":"$85,839.00"},{"v":8980.079999999998,"d":"$8,980.08"},{"v":75406.25,"d":"$75,406.25"},{"v":106992.3,"d":"$106,992.30"},{"v":359467.31999999995,"d":"$359,467.32"},{"v":247480.44,"d":"$247,480.44"},{"v":664666.21068,"d":"$664,666.21"},{"v":1605437.40068,"d":"$1,605,437.40"},{"v":251410.54,"d":"$251,410.54"},{"v":1354026.86068,"d":"$1,354,026.86"},{"v":1580296.34068,"d":"$1,580,296.34"},{"v":38935.57,"d":"$38,935.57"},{"v":38935.57,"d":"$38,935.57"},{"v":40255.42,"d":"$40,255.42"},{"v":40255.42,"d":"$40,255.42"},{"v":0,"d":"$0.00"},{"v":0,"d":"$0.00"},{"v":0,"d":"$0.00"},{"v":0,"d":"$0.00"},{"v":0,"d":"$0.00"},{"v":123405.97,"d":"$123,405.97"},{"v":49988.46,"d":"$49,988.46"},{"v":18920.07,"d":"$18,920.07"},{"v":350696.48,"d":"$350,696.48"},{"v":3374415.41,"d":"$3,374,415.41"},{"v":55467.08,"d":"$55,467.08"},{"v":0,"d":"$0.00"},{"v":57055.49,"d":"$57,055.49"},{"v":3374415.33068,"d":"$3,374,415.33"}]
["33048276026","ABINGDON - AVON CUSD 276",862.21,{"v":11908491.76,"d":"$11,908,491.76"},{"v":8839494.52,"d":"$8,839,494.52"},{"v":0.742284975977512,"d":"74%"},1,{"v":214751.34,"d":"$214,751.34"},{"v":4210161.030000001,"d":"$4,210,161.03"},{"v":4424912.370000001,"d":"$4,424,912.37"},{"v":0.9,"d":"0.90"},{"v":2709091.56,"d":"$2,709,091.56"},{"v":658824.18,"d":"$658,824.18"},{"v":282056.84,"d":"$282,056.84"},{"v":114070.63,"d":"$114,070.63"},{"v":93638.17,"d":"$93,638.17"},{"v":196988.92,"d":"$196,988.92"},{"v":62202.77,"d":"$62,202.77"},{"v":106125.24,"d":"$106,125.24"},{"v":126812.7,"d":"$126,812.70"},{"v":76452.94,"d":"$76,452.94"},{"v":188130.6,"d":"$188,130.60"},{"v":161980.87,"d":"$161,980.87"},{"v":127345.29,"d":"$127,345.29"},{"v":4903720.71,"d":"$4,903,720.71"},{"v":77202,"d":"$77,202.00"},{"v":107776.25,"d":"$107,776.25"},{"v":280218.25,"d":"$280,218.25"},{"v":29315.139999999996,"d":"$29,315.14"},{"v":492321.91,"d":"$492,321.91"},{"v":333882.19999999995,"d":"$333,882.20"},{"v":1173467.8099999998,"d":"$1,173,467.81"},{"v":807890.77,"d":"$807,890.77"},{"v":2333374.92744,"d":"$2,333,374.93"},{"v":5635449.25744,"d":"$5,635,449.26"},{"v":820720.45,"d":"$820,720.45"},{"v":4814728.80744,"d":"$4,814,728.81"},{"v":5553377.20744,"d":"$5,553,377.21"},{"v":201277.12,"d":"$201,277.12"},{"v":201277.12,"d":"$201,277.12"},{"v":209856.15,"d":"$209,856.15"},{"v":209856.15,"d":"$209,856.15"},{"v":0,"d":"$0.00"},{"v":0,"d":"$0.00"},{"v":0,"d":"$0.00"},{"v":0,"d":"$0.00"},{"v":0,"d":"$0.00"},{"v":403214.17,"d":"$403,214.17"},{"v":163331.29,"d":"$163,331.29"},{"v":62581.77,"d":"$62,581.77"},{"v":1451393.77,"d":"$1,451,393.77"},{"v":11908491.76,"d":"$11,908,491.76"},{"v":606969.52,"d":"$606,969.52"},{"v":47.72,"d":"$47.72"},{"v":288148.74,"d":"$288,148.74"},{"v":11908491.68744,"d":"$11,908,491.69"}]
["33066404026","MERCER COUNTY SD 404",1220.12,{"v":16401325.98,"d":"$16,401,325.98"},{"v":14110692.7,"d":"$14,110,692.70"},{"v":0.860338530994797,"d":"86%"},2,{"v":33753.12,"d":"$33,753.12"},{"v":4011694.96,"d":"$4,011,694.96"},{"v":4045448.08,"d":"$4,045,448.08"},{"v":0.9,"d":"0.90"},{"v":3734825.61,"d":"$3,734,825.61"},{"v":910349.97,"d":"$910,349.97"},{"v":399863.08,"d":"$399,863.08"},{"v":161675.92,"d":"$161,675.92"},{"v":127176.66,"d":"$127,176.66"},{"v":280475.56,"d":"$280,475.56"},{"v":88625.18,"d":"$88,625.18"},{"v":150232.71,"d":"$150,232.71"},{"v":179711.71,"d":"$179,711.71"},{"v":108263.79,"d":"$108,263.79"},{"v":266607.93,"d":"$266,607.93"},{"v":229550.04,"d":"$229,550.04"},{"v":180272.17,"d":"$180,272.17"},{"v":6817630.329999999,"d":"$6,817,630.33"},{"v":109000.79999999999,"d":"$109,000.80"},{"v":152515,"d":"$152,515.00"},{"v":396539,"d":"$396,539.00"},{"v":41484.079999999994,"d":"$41,484.08"},{"v":696688.52,"d":"$696,688.52"},{"v":475150.63999999996,"d":"$475,150.64"},{"v":1660583.3199999998,"d":"$1,660,583.32"},{"v":1143252.44,"d":"$1,143,252.44"},{"v":3190085.8366799997,"d":"$3,190,085.84"},{"v":7865299.636679999,"d":"$7,865,299.64"},{"v":1161407.82,"d":"$1,161,407.82"},{"v":6703891.81668,"d":"$6,703,891.82"},{"v":7749158.84668,"d":"$7,749,158.85"},{"v":228334.05,"d":"$228,334.05"},{"v":228334.05,"d":"$228,334.05"},{"v":238232.92,"d":"$238,232.92"},{"v":238232.92,"d":"$238,232.92"},{"v":1979.77,"d":"$1,979.77"},{"v":1979.77,"d":"$1,979.77"},{"v":1979.77,"d":"$1,979.77"},{"v":1979.77,"d":"$1,979.77"},{"v":2639.7,"d":"$2,639.70"},{"v":570835.12,"d":"$570,835.12"},{"v":231230.07,"d":"$231,230.07"},{"v":88778.79,"d":"$88,778.79"},{"v":1834536.7000000002,"d":"$1,834,536.70"},{"v":16401325.98,"d":"$16,401,325.98"},{"v":436284.7899999999,"d":"$436,284.79"},{"v":27,"d":"$27.00"},{"v":444114.36,"d":"$444,114.36"},{"v":16401325.876679998,"d":"$16,401,325.88"}]
["33094238026","MONMOUTH-ROSEVILLE",1495,{"v":22746470.22,"d":"$22,746,470.22"},{"v":16491750.3,"d":"$16,491,750.30"},{"v":0.7250245924090459,"d":"73%"},1,{"v":585874.06,"d":"$585,874.06"},{"v":10707351.64,"d":"$10,707,351.64"},{"v":11293225.700000001,"d":"$11,293,225.70"},{"v":0.9,"d":"0.90"},{"v":4864250.4,"d":"$4,864,250.40"},{"v":1193005.87,"d":"$1,193,005.87"},{"v":492471.2,"d":"$492,471.20"},{"v":197984.47,"d":"$197,984.47"},{"v":185797.69,"d":"$185,797.69"},{"v":341546.92,"d":"$341,546.92"},{"v":108441.99,"d":"$108,441.99"},{"v":184984.05,"d":"$184,984.05"},{"v":219567.13,"d":"$219,567.13"},{"v":132857.04,"d":"$132,857.04"},{"v":325734.69,"d":"$325,734.69"},{"v":280458.31,"d":"$280,458.31"},{"v":221972.14,"d":"$221,972.14"},{"v":8749071.900000002,"d":"$8,749,071.90"},{"v":133695,"d":"$133,695.00"},{"v":186875,"d":"$186,875.00"},{"v":485875,"d":"$485,875.00"},{"v":50830,"d":"$50,830.00"},{"v":853645,"d":"$853,645.00"},{"v":593835.5,"d":"$593,835.50"},{"v":2034695,"d":"$2,034,695.00"},{"v":1400815,"d":"$1,400,815.00"},{"v":4560866.907000001,"d":"$4,560,866.91"},{"v":10301132.407000002,"d":"$10,301,132.41"},{"v":1423060.6,"d":"$1,423,060.60"},{"v":8878071.807000002,"d":"$8,878,071.81"},{"v":10158826.347000003,"d":"$10,158,826.35"},{"v":437530.27,"d":"$437,530.27"},{"v":437530.27,"d":"$437,530.27"},{"v":456008.17,"d":"$456,008.17"},{"v":456008.17,"d":"$456,008.17"},{"v":180159.52,"d":"$180,159.52"},{"v":180159.52,"d":"$180,159.52"},{"v":187418.7,"d":"$187,418.70"},{"v":187418.7,"d":"$187,418.70"},{"v":225034.42,"d":"$225,034.42"},{"v":699520.5,"d":"$699,520.50"},{"v":283357.08,"d":"$283,357.08"},{"v":108426.55,"d":"$108,426.55"},{"v":3838571.87,"d":"$3,838,571.87"},{"v":22746470.22,"d":"$22,746,470.22"},{"v":2131818.5199999996,"d":"$2,131,818.52"},{"v":345495.87999999995,"d":"$345,495.88"},{"v":562485.8099999999,"d":"$562,485.81"},{"v":22746470.117000006,"d":"$22,746,470.12"}]
["33094304026","UNITED CUSD 304",887.87,{"v":11488255.82,"d":"$11,488,255.82"},{"v":12252891.43,"d":"$12,252,891.43"},{"v":1.066558024297199,"d":"107%"},4,{"v":731.78,"d":"$731.78"},{"v":1485122.9200000002,"d":"$1,485,122.92"},{"v":1485854.7000000002,"d":"$1,485,854.70"},{"v":0.9,"d":"0.90"},{"v":2695117.23,"d":"$2,695,117.23"},{"v":646888.23,"d":"$646,888.23"},{"v":289555.86,"d":"$289,555.86"},{"v":117647.72,"d":"$117,647.72"},{"v":90883.53,"d":"$90,883.53"},{"v":198450.75,"d":"$198,450.75"},{"v":64404.63,"d":"$64,404.63"},{"v":108798.42,"d":"$108,798.42"},{"v":131160.56,"d":"$131,160.56"},{"v":78858.81,"d":"$78,858.81"},{"v":194580.79,"d":"$194,580.79"},{"v":167534.5,"d":"$167,534.50"},{"v":130552.98,"d":"$130,552.98"},{"v":4914434.01,"d":"$4,914,434.01"},{"v":79255.8,"d":"$79,255.80"},{"v":110983.75,"d":"$110,983.75"},{"v":288557.75,"d":"$288,557.75"},{"v":30187.579999999994,"d":"$30,187.58"},{"v":253486.88,"d":"$253,486.88"},{"v":326886.14,"d":"$326,886.14"},{"v":1208391.0699999998,"d":"$1,208,391.07"},{"v":831934.19,"d":"$831,934.19"},{"v":2278208.70468,"d":"$2,278,208.70"},{"v":5407891.86468,"d":"$5,407,891.86"},{"v":845145.69,"d":"$845,145.69"},{"v":4562746.174679998,"d":"$4,562,746.17"},{"v":5323377.294679998,"d":"$5,323,377.29"},{"v":147823.2,"d":"$147,823.20"},{"v":147823.2,"d":"$147,823.20"},{"v":153762.52,"d":"$153,762.52"},{"v":153762.52,"d":"$153,762.52"},{"v":0,"d":"$0.00"},{"v":0,"d":"$0.00"},{"v":0,"d":"$0.00"},{"v":0,"d":"$0.00"},{"v":0,"d":"$0.00"},{"v":415092.82,"d":"$415,092.82"},{"v":168143.02,"d":"$168,143.02"},{"v":64037.16,"d":"$64,037.16"},{"v":1250444.44,"d":"$1,250,444.44"},{"v":11488255.82,"d":"$11,488,255.82"},{"v":379837.1,"d":"$379,837.10"},{"v":0,"d":"$0.00"},{"v":223874.67999999996,"d":"$223,874.68"},{"v":11488255.744679997,"d":"$11,488,255.74"}]
[null,"SAFE SCH-LAKE ROE",55,{"v":857833.04,"d":"$857,833.04"},{"v":526159.81,"d":"$526,159.81"},{"v":0.6133592266392538,"d":"61%"},1,{"v":57573.57,"d":"$57,573.57"},{"v":440376.51,"d":"$440,376.51"},{"v":497950.08,"d":"$497,950.08"},{"v":1.04526,"d":"1.05"},{"v":190260.74,"d":"$190,260.74"},{"v":55932.48,"d":"$55,932.48"},{"v":21650.33,"d":"$21,650.33"},{"v":7945.66,"d":"$7,945.66"},{"v":6973.37,"d":"$6,973.37"},{"v":18034.05,"d":"$18,034.05"},{"v":3835.87,"d":"$3,835.87"},{"v":8072.04,"d":"$8,072.04"},{"v":8416.01,"d":"$8,416.01"},{"v":5588.33,"d":"$5,588.33"},{"v":12485.42,"d":"$12,485.42"},{"v":10749.97,"d":"$10,749.97"},{"v":9686.06,"d":"$9,686.06"},{"v":359630.3299999999,"d":"$359,630.33"},{"v":4950,"d":"$4,950.00"},{"v":6875,"d":"$6,875.00"},{"v":17875,"d":"$17,875.00"},{"v":1870,"d":"$1,870.00"},{"v":15702.5,"d":"$15,702.50"},{"v":36265,"d":"$36,265.00"},{"v":74855,"d":"$74,855.00"},{"v":51535,"d":"$51,535.00"},{"v":154606.29899999997,"d":"$154,606.30"},{"v":364533.799,"d":"$364,533.80"},{"v":52353.4,"d":"$52,353.40"},{"v":312180.399,"d":"$312,180.40"},{"v":366903.309,"d":"$366,903.31"},{"v":10730.11,"d":"$10,730.11"},{"v":10730.11,"d":"$10,730.11"},{"v":11496.55,"d":"$11,496.55"},{"v":11496.55,"d":"$11,496.55"},{"v":7664.36,"d":"$7,664.36"},{"v":7664.36,"d":"$7,664.36"},{"v":7664.36,"d":"$7,664.36"},{"v":7664.36,"d":"$7,664.36"},{"v":9963.67,"d":"$9,963.67"},{"v":29891.03,"d":"$29,891.03"},{"v":12108.06,"d":"$12,108.06"},{"v":4225.72,"d":"$4,225.72"},{"v":131299.24,"d":"$131,299.24"},{"v":857833.04,"d":"$857,833.04"},{"v":5446.86,"d":"$5,446.86"},{"v":3549.2900000000004,"d":"$3,549.29"},{"v":4049.8799999999997,"d":"$4,049.88"},{"v":857832.879,"d":"$857,832.88"}]
[null,"ALOP SCH-LAKE ROE",220.31,{"v":3433412.4,"d":"$3,433,412.40"},{"v":4645377.51,"d":"$4,645,377.51"},{"v":1.3529914175180353,"d":"135%"},4,{"v":218.7,"d":"$218.70"},{"v":4302036.27,"d":"$4,302,036.27"},{"v":4302254.97,"d":"$4,302,254.97"},{"v":1.04526,"d":"1.05"},{"v":781835.26,"d":"$781,835.26"},{"v":244651.25,"d":"$244,651.25"},{"v":89409.96,"d":"$89,409.96"},{"v":30981.65,"d":"$30,981.65"},{"v":27409.46,"d":"$27,409.46"},{"v":76249.94,"d":"$76,249.94"},{"v":18540.05,"d":"$18,540.05"},{"v":33219.55,"d":"$33,219.55"},{"v":31980.85,"d":"$31,980.85"},{"v":22353.34,"d":"$22,353.34"},{"v":47444.6,"d":"$47,444.60"},{"v":40849.91,"d":"$40,849.91"},{"v":39861.89,"d":"$39,861.89"},{"v":1484787.71,"d":"$1,484,787.71"},{"v":19827.899999999998,"d":"$19,827.90"},{"v":27538.75,"d":"$27,538.75"},{"v":71600.75,"d":"$71,600.75"},{"v":7490.54,"d":"$7,490.54"},{"v":62898.5,"d":"$62,898.50"},{"v":166072.39,"d":"$166,072.39"},{"v":299841.91,"d":"$299,841.91"},{"v":206430.47,"d":"$206,430.47"},{"v":614158.6928399999,"d":"$614,158.69"},{"v":1475859.9028399999,"d":"$1,475,859.90"},{"v":209708.68,"d":"$209,708.68"},{"v":1266151.2228399997,"d":"$1,266,151.22"},{"v":1485351.3128399998,"d":"$1,485,351.31"},{"v":44453.33,"d":"$44,453.33"},{"v":44453.33,"d":"$44,453.33"},{"v":46752.65,"d":"$46,752.65"},{"v":46752.65,"d":"$46,752.65"},{"v":17628.04,"d":"$17,628.04"},{"v":17628.04,"d":"$17,628.04"},{"v":18394.48,"d":"$18,394.48"},{"v":18394.48,"d":"$18,394.48"},{"v":22226.66,"d":"$22,226.66"},{"v":119564.15,"d":"$119,564.15"},{"v":48432.24,"d":"$48,432.24"},{"v":18593.18,"d":"$18,593.18"},{"v":463273.23000000004,"d":"$463,273.23"},{"v":3433412.4,"d":"$3,433,412.40"},{"v":126207.86,"d":"$126,207.86"},{"v":10566.75,"d":"$10,566.75"},{"v":85517.7,"d":"$85,517.70"},{"v":3433412.2528399997,"d":"$3,433,412.25"}]
["34049001002","WINTHROP HARBOR SCHOOL DIST 1",572.75,{"v":8402648.22,"d":"$8,402,648.22"},{"v":5409957.4399999995,"d":"$5,409,957.44"},{"v":0.6438395727579321,"d":"64%"},1,{"v":430706.91,"d":"$430,706.91"},{"v":1697575.57,"d":"$1,697,575.57"},{"v":2128282.48,"d":"$2,128,282.48"},{"v":1.04526,"d":"1.05"},{"v":2045268.58,"d":"$2,045,268.58"},{"v":409053.71,"d":"$409,053.71"},{"v":208462.87,"d":"$208,462.87"},{"v":91840.28,"d":"$91,840.28"},{"v":72659.33,"d":"$72,659.33"},{"v":125688.75,"d":"$125,688.75"},{"v":48587.74,"d":"$48,587.74"},{"v":78547.17,"d":"$78,547.17"},{"v":106041.79,"d":"$106,041.79"},{"v":58987.99,"d":"$58,987.99"},{"v":157316.31,"d":"$157,316.31"},{"v":135449.7,"d":"$135,449.70"},{"v":94252.9,"d":"$94,252.90"},{"v":3632157.1200000006,"d":"$3,632,157.12"},{"v":51120,"d":"$51,120.00"},{"v":71593.75,"d":"$71,593.75"},{"v":186143.75,"d":"$186,143.75"},{"v":19473.5,"d":"$19,473.50"},{"v":327040.25,"d":"$327,040.25"},{"v":94374,"d":"$94,374.00"},{"v":779512.75,"d":"$779,512.75"},{"v":536666.75,"d":"$536,666.75"},{"v":1518499.044,"d":"$1,518,499.04"},{"v":3584423.7939999998,"d":"$3,584,423.79"},{"v":545189.27,"d":"$545,189.27"},{"v":3039234.5239999997,"d":"$3,039,234.52"},{"v":3609099.0539999995,"d":"$3,609,099.05"},{"v":127228.52,"d":"$127,228.52"},{"v":127228.52,"d":"$127,228.52"},{"v":132593.58,"d":"$132,593.58"},{"v":132593.58,"d":"$132,593.58"},{"v":29124.6,"d":"$29,124.60"},{"v":29124.6,"d":"$29,124.60"},{"v":30657.47,"d":"$30,657.47"},{"v":30657.47,"d":"$30,657.47"},{"v":36788.97,"d":"$36,788.97"},{"v":311173.37,"d":"$311,173.37"},{"v":126048.02,"d":"$126,048.02"},{"v":48173.26,"d":"$48,173.26"},{"v":1161391.9599999997,"d":"$1,161,391.96"},{"v":8402648.22,"d":"$8,402,648.22"},{"v":221963.49,"d":"$221,963.49"},{"v":17661.42,"d":"$17,661.42"},{"v":260697.19000000003,"d":"$260,697.19"},{"v":8402648.134,"d":"$8,402,648.13"}]
["34049003004","BEACH PARK C C SCHOOL DIST 3",2021.96,{"v":33167761.84,"d":"$33,167,761.84"},{"v":22273388.229999997,"d":"$22,273,388.23"},{"v":0.671537269757482,"d":"67%"},1,{"v":1459967.17,"d":"$1,459,967.17"},{"v":13198968.73,"d":"$13,198,968.73"},{"v":14658935.9,"d":"$14,658,935.90"},{"v":1.04526,"d":"1.05"},{"v":7447080.93,"d":"$7,447,080.93"},{"v":1489416.18,"d":"$1,489,416.18"},{"v":736180.06,"d":"$736,180.06"},{"v":327272.12,"d":"$327,272.12"},{"v":296759.88,"d":"$296,759.88"},{"v":457192.83,"d":"$457,192.83"},{"v":171975.02,"d":"$171,975.02"},{"v":278795.88,"d":"$278,795.88"},{"v":377879.09,"d":"$377,879.09"},{"v":208941.68,"d":"$208,941.68"},{"v":560595.43,"d":"$560,595.43"},{"v":482673.94,"d":"$482,673.94"},{"v":334541.92,"d":"$334,541.92"},{"v":13169304.959999999,"d":"$13,169,304.96"},{"v":180297,"d":"$180,297.00"},{"v":252745,"d":"$252,745.00"},{"v":657137,"d":"$657,137.00"},{"v":68746.64,"d":"$68,746.64"},{"v":1154539.1600000001,"d":"$1,154,539.16"},{"v":343679.1,"d":"$343,679.10"},{"v":2751887.56,"d":"$2,751,887.56"},{"v":1894576.52,"d":"$1,894,576.52"},{"v":6130872.23244,"d":"$6,130,872.23"},{"v":13434480.21244,"d":"$13,434,480.21"},{"v":1924663.28,"d":"$1,924,663.28"},{"v":11509816.932440002,"d":"$11,509,816.93"},{"v":13521590.47244,"d":"$13,521,590.47"},{"v":676763.77,"d":"$676,763.77"},{"v":676763.77,"d":"$676,763.77"},{"v":705121.94,"d":"$705,121.94"},{"v":705121.94,"d":"$705,121.94"},{"v":374787.64,"d":"$374,787.64"},{"v":374787.64,"d":"$374,787.64"},{"v":390116.37,"d":"$390,116.37"},{"v":390116.37,"d":"$390,116.37"},{"v":468292.94,"d":"$468,292.94"},{"v":1099070.5,"d":"$1,099,070.50"},{"v":445204.12,"d":"$445,204.12"},{"v":170719.28,"d":"$170,719.28"},{"v":6476866.280000001,"d":"$6,476,866.28"},{"v":33167761.84,"d":"$33,167,761.84"},{"v":2412442.6,"d":"$2,412,442.60"},{"v":507864.91,"d":"$507,864.91"},{"v":1150065.46,"d":"$1,150,065.46"},{"v":33167761.71244,"d":"$33,167,761.71"}]
["34049006002","ZION ELEMENTARY SCHOOL DISTRICT 6",2131.21,{"v":37879697.73,"d":"$37,879,697.73"},{"v":35823377.95,"d":"$35,823,377.95"},{"v":0.9457144617505374,"d":"95%"},3,{"v":43046.89,"d":"$43,046.89"},{"v":25936101.87,"d":"$25,936,101.87"},{"v":25979148.76,"d":"$25,979,148.76"},{"v":1.04526,"d":"1.05"},{"v":8383706.07,"d":"$8,383,706.07"},{"v":1676741.21,"d":"$1,676,741.21"},{"v":776269.08,"d":"$776,269.08"},{"v":344765.51,"d":"$344,765.51"},{"v":348144.9,"d":"$348,144.90"},{"v":479188.36,"d":"$479,188.36"},{"v":180925.4,"d":"$180,925.40"},{"v":293698.11,"d":"$293,698.11"},{"v":398077.52,"d":"$398,077.52"},{"v":220428.81,"d":"$220,428.81"},{"v":590560.44,"d":"$590,560.44"},{"v":508473.88,"d":"$508,473.88"},{"v":352423.89,"d":"$352,423.89"},{"v":14553403.180000002,"d":"$14,553,403.18"},{"v":190602,"d":"$190,602.00"},{"v":266401.25,"d":"$266,401.25"},{"v":692643.25,"d":"$692,643.25"},{"v":72461.14,"d":"$72,461.14"},{"v":1216920.91,"d":"$1,216,920.91"},{"v":360823.76,"d":"$360,823.76"},{"v":2900576.8099999996,"d":"$2,900,576.81"},{"v":1996943.77,"d":"$1,996,943.77"},{"v":7105578.724439999,"d":"$7,105,578.72"},{"v":14802951.614439998,"d":"$14,802,951.61"},{"v":2028656.17,"d":"$2,028,656.17"},{"v":12774295.44444,"d":"$12,774,295.44"},{"v":14894768.58444,"d":"$14,894,768.58"},{"v":1032390.49,"d":"$1,032,390.49"},{"v":1032390.49,"d":"$1,032,390.49"},{"v":1075310.96,"d":"$1,075,310.96"},{"v":1075310.96,"d":"$1,075,310.96"},{"v":451431.33,"d":"$451,431.33"},{"v":451431.33,"d":"$451,431.33"},{"v":470592.25,"d":"$470,592.25"},{"v":470592.25,"d":"$470,592.25"},{"v":564863.99,"d":"$564,863.99"},{"v":1158086.14,"d":"$1,158,086.14"},{"v":469109.78,"d":"$469,109.78"},{"v":180015.87,"d":"$180,015.87"},{"v":8431525.84,"d":"$8,431,525.84"},{"v":37879697.73,"d":"$37,879,697.73"},{"v":5958497.200000001,"d":"$5,958,497.20"},{"v":529897.7599999999,"d":"$529,897.76"},{"v":1318568.2,"d":"$1,318,568.20"},{"v":37879697.60444,"d":"$37,879,697.60"}]
["34049024004","MILLBURN C C SCHOOL DIST 24",1102,{"v":14605391.45,"d":"$14,605,391.45"},{"v":13017891.66,"d":"$13,017,891.66"},{"v":0.8913072754376604,"d":"89%"},2,{"v":22866.12,"d":"$22,866.12"},{"v":4489360.82,"d":"$4,489,360.82"},{"v":4512226.94,"d":"$4,512,226.94"},{"v":1.04526,"d":"1.05"},{"v":3605824.54,"d":"$3,605,824.54"},{"v":721164.9,"d":"$721,164.90"},{"v":401619.02,"d":"$401,619.02"},{"v":177849.44,"d":"$177,849.44"},{"v":120509.4,"d":"$120,509.40"},{"v":246664.17,"d":"$246,664.17"},{"v":93339.6,"d":"$93,339.60"},{"v":151816.46,"d":"$151,816.46"},{"v":205350.77,"d":"$205,350.77"},{"v":113939.96,"d":"$113,939.96"},{"v":304644.28,"d":"$304,644.28"},{"v":262299.42,"d":"$262,299.42"},{"v":182172.6,"d":"$182,172.60"},{"v":6587194.5600000005,"d":"$6,587,194.56"},{"v":98100,"d":"$98,100.00"},{"v":137750,"d":"$137,750.00"},{"v":358150,"d":"$358,150.00"},{"v":37468,"d":"$37,468.00"},{"v":629242,"d":"$629,242.00"},{"v":185354,"d":"$185,354.00"},{"v":1499822,"d":"$1,499,822.00"},{"v":1032574,"d":"$1,032,574.00"},{"v":2576913.1199999996,"d":"$2,576,913.12"},{"v":6555373.119999999,"d":"$6,555,373.12"},{"v":1048971.76,"d":"$1,048,971.76"},{"v":5506401.359999999,"d":"$5,506,401.36"},{"v":6602849.579999999,"d":"$6,602,849.58"},{"v":66680,"d":"$66,680.00"},{"v":66680,"d":"$66,680.00"},{"v":69745.75,"d":"$69,745.75"},{"v":69745.75,"d":"$69,745.75"},{"v":39088.28,"d":"$39,088.28"},{"v":39088.28,"d":"$39,088.28"},{"v":40621.15,"d":"$40,621.15"},{"v":40621.15,"d":"$40,621.15"},{"v":49051.96,"d":"$49,051.96"},{"v":598587.21,"d":"$598,587.21"},{"v":242471.7,"d":"$242,471.70"},{"v":92965.94,"d":"$92,965.94"},{"v":1415347.17,"d":"$1,415,347.17"},{"v":14605391.45,"d":"$14,605,391.45"},{"v":43640.67,"d":"$43,640.67"},{"v":22163.9,"d":"$22,163.90"},{"v":546222.1900000001,"d":"$546,222.19"},{"v":14605391.31,"d":"$14,605,391.31"}]
["34049033002","EMMONS SCHOOL DISTRICT 33",301.63,{"v":3974421.68,"d":"$3,974,421.68"},{"v":4258424.68,"d":"$4,258,424.68"},{"v":1.0714576919276466,"d":"107%"},4,{"v":253.16,"d":"$253.16"},{"v":219185.68000000002,"d":"$219,185.68"},{"v":219438.84000000003,"d":"$219,438.84"},{"v":1.04526,"d":"1.05"},{"v":1003683.12,"d":"$1,003,683.12"},{"v":200736.62,"d":"$200,736.62"},{"v":109333.67,"d":"$109,333.67"},{"v":48106.81,"d":"$48,106.81"},{"v":33789.03,"d":"$33,789.03"},{"v":67557.7,"d":"$67,557.70"},{"v":25572.49,"d":"$25,572.49"},{"v":41291.59,"d":"$41,291.59"},{"v":55545.7,"d":"$55,545.70"},{"v":30735.84,"d":"$30,735.84"},{"v":82403.78,"d":"$82,403.78"},{"v":70949.84,"d":"$70,949.84"},{"v":49547.96,"d":"$49,547.96"},{"v":1819254.1500000001,"d":"$1,819,254.15"},{"v":26952.300000000003,"d":"$26,952.30"},{"v":37703.75,"d":"$37,703.75"},{"v":98029.75,"d":"$98,029.75"},{"v":10255.419999999998,"d":"$10,255.42"},{"v":86115.36,"d":"$86,115.36"},{"v":51465.59,"d":"$51,465.59"},{"v":410518.42999999993,"d":"$410,518.43"},{"v":282627.31,"d":"$282,627.31"},{"v":718986.73332,"d":"$718,986.73"},{"v":1722654.6433199998,"d":"$1,722,654.64"},{"v":287115.56,"d":"$287,115.56"},{"v":1435539.08332,"d":"$1,435,539.08"},{"v":1735649.49332,"d":"$1,735,649.49"},{"v":29891.03,"d":"$29,891.03"},{"v":29891.03,"d":"$29,891.03"},{"v":31423.91,"d":"$31,423.91"},{"v":31423.91,"d":"$31,423.91"},{"v":7664.36,"d":"$7,664.36"},{"v":7664.36,"d":"$7,664.36"},{"v":8430.8,"d":"$8,430.80"},{"v":8430.8,"d":"$8,430.80"},{"v":9963.67,"d":"$9,963.67"},{"v":163251.05,"d":"$163,251.05"},{"v":66128.64,"d":"$66,128.64"},{"v":25354.34,"d":"$25,354.34"},{"v":419517.9,"d":"$419,517.90"},{"v":3974421.68,"d":"$3,974,421.68"},{"v":21106.27,"d":"$21,106.27"},{"v":12.4,"d":"$12.40"},{"v":95375.49,"d":"$95,375.49"},{"v":3974421.5433199997,"d":"$3,974,421.54"}]
["34049034004","ANTIOCH C C SCHOOL DISTRICT 34",2607.21,{"v":36212649.62,"d":"$36,212,649.62"},{"v":28882390.310000002,"d":"$28,882,390.31"},{"v":0.7975773828504517,"d":"80%"},2,{"v":177184.89,"d":"$177,184.89"},{"v":6411745.360000001,"d":"$6,411,745.36"},{"v":6588930.250000001,"d":"$6,588,930.25"},{"v":1.04526,"d":"1.05"},{"v":8842907.5,"d":"$8,842,907.50"},{"v":1768581.49,"d":"$1,768,581.49"},{"v":949745.17,"d":"$949,745.17"},{"v":421299.08,"d":"$421,299.08"},{"v":305075.94,"d":"$305,075.94"},{"v":586023.8,"d":"$586,023.80"},{"v":221841.39,"d":"$221,841.39"},{"v":359205.83,"d":"$359,205.83"},{"v":486445.69,"d":"$486,445.69"},{"v":269481.99,"d":"$269,481.99"},{"v":721657.37,"d":"$721,657.37"},{"v":621348.63,"d":"$621,348.63"},{"v":431030.07,"d":"$431,030.07"},{"v":15984643.950000001,"d":"$15,984,643.95"},{"v":232691.4,"d":"$232,691.40"},{"v":325901.25,"d":"$325,901.25"},{"v":847343.25,"d":"$847,343.25"},{"v":88645.14,"d":"$88,645.14"},{"v":1488716.91,"d":"$1,488,716.91"},{"v":439782.18,"d":"$439,782.18"},{"v":3548412.81,"d":"$3,548,412.81"},{"v":2442955.77,"d":"$2,442,955.77"},{"v":6461548.552440001,"d":"$6,461,548.55"},{"v":15875997.26244,"d":"$15,875,997.26"},{"v":2481751.05,"d":"$2,481,751.05"},{"v":13394246.212440003,"d":"$13,394,246.21"},{"v":15988321.312440002,"d":"$15,988,321.31"},{"v":348728.78,"d":"$348,728.78"},{"v":348728.78,"d":"$348,728.78"},{"v":363291.08,"d":"$363,291.08"},{"v":363291.08,"d":"$363,291.08"},{"v":113432.66,"d":"$113,432.66"},{"v":113432.66,"d":"$113,432.66"},{"v":118031.28,"d":"$118,031.28"},{"v":118031.28,"d":"$118,031.28"},{"v":141790.82,"d":"$141,790.82"},{"v":1417141.81,"d":"$1,417,141.81"},{"v":574046.31,"d":"$574,046.31"},{"v":219737.69,"d":"$219,737.69"},{"v":4239684.23,"d":"$4,239,684.23"},{"v":36212649.62,"d":"$36,212,649.62"},{"v":414477.58,"d":"$414,477.58"},{"v":11749.470000000001,"d":"$11,749.47"},{"v":1127594.5499999998,"d":"$1,127,594.55"},{"v":36212649.49244,"d":"$36,212,649.49"}]
["34049036002","GRASS LAKE SCHOOL DIST 36",172,{"v":2393275.59,"d":"$2,393,275.59"},{"v":3562482.16,"d":"$3,562,482.16"},{"v":1.4885382088403787,"d":"149%"},4,{"v":152.44,"d":"$152.44"},{"v":151943.96000000002,"d":"$151,943.96"},{"v":152096.40000000002,"d":"$152,096.40"},{"v":1.04526,"d":"1.05"},{"v":597690.74,"d":"$597,690.74"},{"v":119538.14,"d":"$119,538.14"},{"v":61955.74,"d":"$61,955.74"},{"v":26968.97,"d":"$26,968.97"},{"v":20857.79,"d":"$20,857.79"},{"v":37706.62,"d":"$37,706.62"},{"v":14064.87,"d":"$14,064.87"},{"v":23284.73,"d":"$23,284.73"},{"v":31139.25,"d":"$31,139.25"},{"v":17696.39,"d":"$17,696.39"},{"v":46196.06,"d":"$46,196.06"},{"v":39774.91,"d":"$39,774.91"},{"v":27940.58,"d":"$27,940.58"},{"v":1064814.79,"d":"$1,064,814.79"},{"v":15210,"d":"$15,210.00"},{"v":21500,"d":"$21,500.00"},{"v":55900,"d":"$55,900.00"},{"v":5848,"d":"$5,848.00"},{"v":49106,"d":"$49,106.00"},{"v":28255,"d":"$28,255.00"},{"v":234092,"d":"$234,092.00"},{"v":161164,"d":"$161,164.00"},{"v":438220.00800000003,"d":"$438,220.01"},{"v":1009295.008,"d":"$1,009,295.01"},{"v":163723.36,"d":"$163,723.36"},{"v":845571.648,"d":"$845,571.65"},{"v":1016705.118,"d":"$1,016,705.12"},{"v":32956.78,"d":"$32,956.78"},{"v":32956.78,"d":"$32,956.78"},{"v":34489.66,"d":"$34,489.66"},{"v":34489.66,"d":"$34,489.66"},{"v":6131.49,"d":"$6,131.49"},{"v":6131.49,"d":"$6,131.49"},{"v":6131.49,"d":"$6,131.49"},{"v":6131.49,"d":"$6,131.49"},{"v":7664.36,"d":"$7,664.36"},{"v":92738.86,"d":"$92,738.86"},{"v":37566.03,"d":"$37,566.03"},{"v":14367.46,"d":"$14,367.46"},{"v":311755.55,"d":"$311,755.55"},{"v":2393275.59,"d":"$2,393,275.59"},{"v":27202.29,"d":"$27,202.29"},{"v":5.11,"d":"$5.11"},{"v":67109.28,"d":"$67,109.28"},{"v":2393275.458,"d":"$2,393,275.46"}]
["34049037002","GAVIN SCHOOL DIST 37",734.8,{"v":11747754.13,"d":"$11,747,754.13"},{"v":7867187.800000001,"d":"$7,867,187.80"},{"v":0.6696758982986989,"d":"67%"},1,{"v":495105.16,"d":"$495,105.16"},{"v":3107519.4799999995,"d":"$3,107,519.48"},{"v":3602624.6399999997,"d":"$3,602,624.64"},{"v":1.04526,"d":"1.05"},{"v":2713661.77,"d":"$2,713,661.77"},{"v":542732.34,"d":"$542,732.34"},{"v":266774.16,"d":"$266,774.16"},{"v":118080.36,"d":"$118,080.36"},{"v":104601.83,"d":"$104,601.83"},{"v":161038.71,"d":"$161,038.71"},{"v":62013.3,"d":"$62,013.30"},{"v":101210.97,"d":"$101,210.97"},{"v":136339.44,"d":"$136,339.44"},{"v":75753,"d":"$75,753.00"},{"v":202263.83,"d":"$202,263.83"},{"v":174149.61,"d":"$174,149.61"},{"v":121448.4,"d":"$121,448.40"},{"v":4780067.720000001,"d":"$4,780,067.72"},{"v":65562.3,"d":"$65,562.30"},{"v":91850,"d":"$91,850.00"},{"v":238810,"d":"$238,810.00"},{"v":24983.2,"d":"$24,983.20"},{"v":419570.80000000005,"d":"$419,570.80"},{"v":121065.51,"d":"$121,065.51"},{"v":1000062.8,"d":"$1,000,062.80"},{"v":688507.6000000001,"d":"$688,507.60"},{"v":2161407.0552000003,"d":"$2,161,407.06"},{"v":4811819.2652,"d":"$4,811,819.27"},{"v":699441.42,"d":"$699,441.42"},{"v":4112377.8452000003,"d":"$4,112,377.85"},{"v":4843475.9752,"d":"$4,843,475.98"},{"v":226098.88,"d":"$226,098.88"},{"v":226098.88,"d":"$226,098.88"},{"v":236062.56,"d":"$236,062.56"},{"v":236062.56,"d":"$236,062.56"},{"v":108067.6,"d":"$108,067.60"},{"v":108067.6,"d":"$108,067.60"},{"v":112666.22,"d":"$112,666.22"},{"v":112666.22,"d":"$112,666.22"},{"v":135659.33,"d":"$135,659.33"},{"v":399313.62,"d":"$399,313.62"},{"v":161751.28,"d":"$161,751.28"},{"v":61695.58,"d":"$61,695.58"},{"v":2124210.33,"d":"$2,124,210.33"},{"v":11747754.13,"d":"$11,747,754.13"},{"v":795731.6,"d":"$795,731.60"},{"v":67288.63,"d":"$67,288.63"},{"v":413460.61,"d":"$413,460.61"},{"v":11747754.0252,"d":"$11,747,754.03"}]
["34049038002","BIG HOLLOW SCHOOL DIST 38",1711.12,{"v":24570091.96,"d":"$24,570,091.96"},{"v":16915647.48,"d":"$16,915,647.48"},{"v":0.6884649641335734,"d":"69%"},1,{"v":887265.18,"d":"$887,265.18"},{"v":6974809.749999999,"d":"$6,974,809.75"},{"v":7862074.929999999,"d":"$7,862,074.93"},{"v":1.04526,"d":"1.05"},{"v":5863200.45,"d":"$5,863,200.45"},{"v":1172640.08,"d":"$1,172,640.08"},{"v":622473.04,"d":"$622,473.04"},{"v":276249.74,"d":"$276,249.74"},{"v":209705.78,"d":"$209,705.78"},{"v":383350.69,"d":"$383,350.69"},{"v":145123.9,"d":"$145,123.90"},{"v":235641.51,"d":"$235,641.51"},{"v":318966.98,"d":"$318,966.98"},{"v":176653.51,"d":"$176,653.51"},{"v":473197.48,"d":"$473,197.48"},{"v":407424.1,"d":"$407,424.10"},{"v":282758.7,"d":"$282,758.70"},{"v":10567385.96,"d":"$10,567,385.96"},{"v":152591.40000000002,"d":"$152,591.40"},{"v":213890,"d":"$213,890.00"},{"v":556114,"d":"$556,114.00"},{"v":58178.08,"d":"$58,178.08"},{"v":977049.52,"d":"$977,049.52"},{"v":287798.18000000005,"d":"$287,798.18"},{"v":2328834.3200000003,"d":"$2,328,834.32"},{"v":1603319.44,"d":"$1,603,319.44"},{"v":4418043.8296799995,"d":"$4,418,043.83"},{"v":10595818.769679999,"d":"$10,595,818.77"},{"v":1628780.9,"d":"$1,628,780.90"},{"v":8967037.869679999,"d":"$8,967,037.87"},{"v":10669537.389679998,"d":"$10,669,537.39"},{"v":270552.22,"d":"$270,552.22"},{"v":270552.22,"d":"$270,552.22"},{"v":282048.77,"d":"$282,048.77"},{"v":282048.77,"d":"$282,048.77"},{"v":145623.01,"d":"$145,623.01"},{"v":145623.01,"d":"$145,623.01"},{"v":151754.5,"d":"$151,754.50"},{"v":151754.5,"d":"$151,754.50"},{"v":182411.98,"d":"$182,411.98"},{"v":929687.95,"d":"$929,687.95"},{"v":376591.77,"d":"$376,591.77"},{"v":144519.79,"d":"$144,519.79"},{"v":3333168.4899999998,"d":"$3,333,168.49"},{"v":24570091.96,"d":"$24,570,091.96"},{"v":519074.37,"d":"$519,074.37"},{"v":155308.7,"d":"$155,308.70"},{"v":809647,"d":"$809,647.00"},{"v":24570091.839679997,"d":"$24,570,091.84"}]
["34049041004","LAKE VILLA C C SCHOOL DIST 41",2403.06,{"v":34520192.14,"d":"$34,520,192.14"},{"v":24116569.01,"d":"$24,116,569.01"},{"v":0.6986220966613659,"d":"70%"},1,{"v":1100206.7,"d":"$1,100,206.70"},{"v":8397259.06,"d":"$8,397,259.06"},{"v":9497465.76,"d":"$9,497,465.76"},{"v":1.04526,"d":"1.05"},{"v":8225536.69,"d":"$8,225,536.69"},{"v":1645107.33,"d":"$1,645,107.33"},{"v":874669.38,"d":"$874,669.38"},{"v":388498.98,"d":"$388,498.98"},{"v":294643.79,"d":"$294,643.79"},{"v":537319.41,"d":"$537,319.41"},{"v":203940.64,"d":"$203,940.64"},{"v":331264.15,"d":"$331,264.15"},{"v":448573.62,"d":"$448,573.62"},{"v":248370.5,"d":"$248,370.50"},{"v":665472.97,"d":"$665,472.97"},{"v":572973.74,"d":"$572,973.74"},{"v":397501.37,"d":"$397,501.37"},{"v":14833872.57,"d":"$14,833,872.57"},{"v":213838.2,"d":"$213,838.20"},{"v":300382.5,"d":"$300,382.50"},{"v":780994.5,"d":"$780,994.50"},{"v":81704.04000000001,"d":"$81,704.04"},{"v":1372147.26,"d":"$1,372,147.26"},{"v":401818.42,"d":"$401,818.42"},{"v":3270564.66,"d":"$3,270,564.66"},{"v":2251667.22,"d":"$2,251,667.22"},{"v":6208433.23284,"d":"$6,208,433.23"},{"v":14881550.03284,"d":"$14,881,550.03"},{"v":2287424.75,"d":"$2,287,424.75"},{"v":12594125.282839999,"d":"$12,594,125.28"},{"v":14985078.872839998,"d":"$14,985,078.87"},{"v":380919.13,"d":"$380,919.13"},{"v":380919.13,"d":"$380,919.13"},{"v":397014.31,"d":"$397,014.31"},{"v":397014.31,"d":"$397,014.31"},{"v":207704.39,"d":"$207,704.39"},{"v":207704.39,"d":"$207,704.39"},{"v":216135.2,"d":"$216,135.20"},{"v":216135.2,"d":"$216,135.20"},{"v":259822.1,"d":"$259,822.10"},{"v":1306008.46,"d":"$1,306,008.46"},{"v":529029.16,"d":"$529,029.16"},{"v":202834.79,"d":"$202,834.79"},{"v":4701240.57,"d":"$4,701,240.57"},{"v":34520192.14,"d":"$34,520,192.14"},{"v":587235.9800000001,"d":"$587,235.98"},{"v":194778.24,"d":"$194,778.24"},{"v":1121096.1199999999,"d":"$1,121,096.12"},{"v":34520192.01284,"d":"$34,520,192.01"}]
["34049046004","GRAYSLAKE C C SCHOOL DISTRICT 46",3583.8,{"v":52073204.21,"d":"$52,073,204.21"},{"v":35208100.269999996,"d":"$35,208,100.27"},{"v":0.6761270178038847,"d":"68%"},1,{"v":2164793.77,"d":"$2,164,793.77"},{"v":16332839.78,"d":"$16,332,839.78"},{"v":18497633.55,"d":"$18,497,633.55"},{"v":1.04526,"d":"1.05"},{"v":12204553.51,"d":"$12,204,553.51"},{"v":2440910.69,"d":"$2,440,910.69"},{"v":1305444.06,"d":"$1,305,444.06"},{"v":580197.36,"d":"$580,197.36"},{"v":445915.45,"d":"$445,915.45"},{"v":804408.01,"d":"$804,408.01"},{"v":304952,"d":"$304,952.00"},{"v":494257.29,"d":"$494,257.29"},{"v":669914.82,"d":"$669,914.82"},{"v":370382.5,"d":"$370,382.50"},{"v":993839.56,"d":"$993,839.56"},{"v":855698.12,"d":"$855,698.12"},{"v":593085.45,"d":"$593,085.45"},{"v":22063558.82,"d":"$22,063,558.82"},{"v":317397.6,"d":"$317,397.60"},{"v":447975,"d":"$447,975.00"},{"v":1164735,"d":"$1,164,735.00"},{"v":121849.20000000001,"d":"$121,849.20"},{"v":2046349.8,"d":"$2,046,349.80"},{"v":599961.6799999999,"d":"$599,961.68"},{"v":4877551.8,"d":"$4,877,551.80"},{"v":3358020.6000000006,"d":"$3,358,020.60"},{"v":9389589.142199999,"d":"$9,389,589.14"},{"v":22323429.8222,"d":"$22,323,429.82"},{"v":3411347.54,"d":"$3,411,347.54"},{"v":18912082.2822,"d":"$18,912,082.28"},{"v":22477827.402200002,"d":"$22,477,827.40"},{"v":552601,"d":"$552,601.00"},{"v":552601,"d":"$552,601.00"},{"v":575594.1,"d":"$575,594.10"},{"v":575594.1,"d":"$575,594.10"},{"v":419240.98,"d":"$419,240.98"},{"v":419240.98,"d":"$419,240.98"},{"v":436869.03,"d":"$436,869.03"},{"v":436869.03,"d":"$436,869.03"},{"v":524242.83,"d":"$524,242.83"},{"v":1947516.15,"d":"$1,947,516.15"},{"v":788886.8,"d":"$788,886.80"},{"v":302561.9,"d":"$302,561.90"},{"v":7531817.900000001,"d":"$7,531,817.90"},{"v":52073204.21,"d":"$52,073,204.21"},{"v":1173656.94,"d":"$1,173,656.94"},{"v":584317.91,"d":"$584,317.91"},{"v":2055494.3399999999,"d":"$2,055,494.34"},{"v":52073204.122200005,"d":"$52,073,204.12"}]
["34049050004","WOODLAND C C SCHOOL DIST 50",5283.05,{"v":79148991.97,"d":"$79,148,991.97"},{"v":72886537.84,"d":"$72,886,537.84"},{"v":0.9208776514503979,"d":"92%"},3,{"v":89945.77,"d":"$89,945.77"},{"v":10830576.679999998,"d":"$10,830,576.68"},{"v":10920522.449999997,"d":"$10,920,522.45"},{"v":1.04526,"d":"1.05"},{"v":18251434.54,"d":"$18,251,434.54"},{"v":3650286.9,"d":"$3,650,286.90"},{"v":1924272.65,"d":"$1,924,272.65"},{"v":854989.32,"d":"$854,989.32"},{"v":685644.22,"d":"$685,644.22"},{"v":1190115.37,"d":"$1,190,115.37"},{"v":449436.59,"d":"$449,436.59"},{"v":728656.95,"d":"$728,656.95"},{"v":987198.6,"d":"$987,198.60"},{"v":546415.1,"d":"$546,415.10"},{"v":1464539.95,"d":"$1,464,539.95"},{"v":1260972.23,"d":"$1,260,972.23"},{"v":874354,"d":"$874,354.00"},{"v":32868316.419999998,"d":"$32,868,316.42"},{"v":470757.6,"d":"$470,757.60"},{"v":660381.25,"d":"$660,381.25"},{"v":1716991.25,"d":"$1,716,991.25"},{"v":179623.69999999998,"d":"$179,623.70"},{"v":3016621.55,"d":"$3,016,621.55"},{"v":892797.84,"d":"$892,797.84"},{"v":7190231.05,"d":"$7,190,231.05"},{"v":4950217.85,"d":"$4,950,217.85"},{"v":14364781.9662,"d":"$14,364,781.97"},{"v":33442404.056199998,"d":"$33,442,404.06"},{"v":5028829.63,"d":"$5,028,829.63"},{"v":28413574.426200002,"d":"$28,413,574.43"},{"v":33670008.876200005,"d":"$33,670,008.88"},{"v":941950.94,"d":"$941,950.94"},{"v":941950.94,"d":"$941,950.94"},{"v":981039.22,"d":"$981,039.22"},{"v":981039.22,"d":"$981,039.22"},{"v":803225.86,"d":"$803,225.86"},{"v":803225.86,"d":"$803,225.86"},{"v":836949.08,"d":"$836,949.08"},{"v":836949.08,"d":"$836,949.08"},{"v":1004032.33,"d":"$1,004,032.33"},{"v":2871072.6,"d":"$2,871,072.60"},{"v":1162994.86,"d":"$1,162,994.86"},{"v":446236.54,"d":"$446,236.54"},{"v":12610666.53,"d":"$12,610,666.53"},{"v":79148991.97,"d":"$79,148,991.97"},{"v":1170490.1099999999,"d":"$1,170,490.11"},{"v":518819.92,"d":"$518,819.92"},{"v":2188922.21,"d":"$2,188,922.21"},{"v":79148991.82620001,"d":"$79,148,991.83"}]
["34049056002","GURNEE SCHOOL DIST 56",1887.31,{"v":29328234.14,"d":"$29,328,234.14"},{"v":23791227.39,"d":"$23,791,227.39"},{"v":0.8112055869586698,"d":"81%"},2,{"v":108081.84,"d":"$108,081.84"},{"v":3007424.03,"d":"$3,007,424.03"},{"v":3115505.8699999996,"d":"$3,115,505.87"},{"v":1.04526,"d":"1.05"},{"v":6740056.51,"d":"$6,740,056.51"},{"v":1348011.3,"d":"$1,348,011.30"},{"v":687344.35,"d":"$687,344.35"},{"v":304676.5,"d":"$304,676.50"},{"v":257552.04,"d":"$257,552.04"},{"v":429698.42,"d":"$429,698.42"},{"v":160467.4,"d":"$160,467.40"},{"v":260168.09,"d":"$260,168.09"},{"v":351789.44,"d":"$351,789.44"},{"v":194970.84,"d":"$194,970.84"},{"v":521890.62,"d":"$521,890.62"},{"v":449349.01,"d":"$449,349.01"},{"v":312189.45,"d":"$312,189.45"},{"v":12018163.969999997,"d":"$12,018,163.97"},{"v":168192.9,"d":"$168,192.90"},{"v":235913.75,"d":"$235,913.75"},{"v":613375.75,"d":"$613,375.75"},{"v":64168.54,"d":"$64,168.54"},{"v":1077654.01,"d":"$1,077,654.01"},{"v":323230.93,"d":"$323,230.93"},{"v":2568628.9099999997,"d":"$2,568,628.91"},{"v":1768409.4700000002,"d":"$1,768,409.47"},{"v":5362740.396839999,"d":"$5,362,740.40"},{"v":12182314.656839998,"d":"$12,182,314.66"},{"v":1796492.64,"d":"$1,796,492.64"},{"v":10385822.016839998,"d":"$10,385,822.02"},{"v":12263623.906839998,"d":"$12,263,623.91"},{"v":495884.67,"d":"$495,884.67"},{"v":495884.67,"d":"$495,884.67"},{"v":516578.46,"d":"$516,578.46"},{"v":516578.46,"d":"$516,578.46"},{"v":266720.03,"d":"$266,720.03"},{"v":266720.03,"d":"$266,720.03"},{"v":277450.15,"d":"$277,450.15"},{"v":277450.15,"d":"$277,450.15"},{"v":333400.04,"d":"$333,400.04"},{"v":1025492.56,"d":"$1,025,492.56"},{"v":415399.66,"d":"$415,399.66"},{"v":158887.25,"d":"$158,887.25"},{"v":5046446.130000001,"d":"$5,046,446.13"},{"v":29328234.14,"d":"$29,328,234.14"},{"v":894410.47,"d":"$894,410.47"},{"v":173195.40999999997,"d":"$173,195.41"},{"v":723394.6200000001,"d":"$723,394.62"},{"v":29328234.006839998,"d":"$29,328,234.01"}]
["34049060026","WAUKEGAN C U SCHOOL DIST 60",14361.29,{"v":264346192.92,"d":"$264,346,192.92"},{"v":199052360.07999998,"d":"$199,052,360.08"},{"v":0.7529987774033874,"d":"75%"},1,{"v":4642698.08,"d":"$4,642,698.08"},{"v":158844455.97,"d":"$158,844,455.97"},{"v":163487154.05,"d":"$163,487,154.05"},{"v":1.04526,"d":"1.05"},{"v":56806558.29,"d":"$56,806,558.29"},{"v":13711794.82,"d":"$13,711,794.82"},{"v":5472973.48,"d":"$5,472,973.48"},{"v":2227328.33,"d":"$2,227,328.33"},{"v":2364222.2,"d":"$2,364,222.20"},{"v":3797745.68,"d":"$3,797,745.68"},{"v":1223004.57,"d":"$1,223,004.57"},{"v":2056818.2,"d":"$2,056,818.20"},{"v":2479358.14,"d":"$2,479,358.14"},{"v":1485566.05,"d":"$1,485,566.05"},{"v":3678205.21,"d":"$3,678,205.21"},{"v":3166943.06,"d":"$3,166,943.06"},{"v":2468084.89,"d":"$2,468,084.89"},{"v":100938602.92,"d":"$100,938,602.92"},{"v":1285841.7,"d":"$1,285,841.70"},{"v":1795161.25,"d":"$1,795,161.25"},{"v":4667419.25,"d":"$4,667,419.25"},{"v":488283.86,"d":"$488,283.86"},{"v":8200296.59,"d":"$8,200,296.59"},{"v":5440848.31,"d":"$5,440,848.31"},{"v":19545715.689999998,"d":"$19,545,715.69"},{"v":13456528.73,"d":"$13,456,528.73"},{"v":49233330.37356,"d":"$49,233,330.37"},{"v":104113425.75355999,"d":"$104,113,425.75"},{"v":13670224.72,"d":"$13,670,224.72"},{"v":90443201.03356001,"d":"$90,443,201.03"},{"v":104732140.12356001,"d":"$104,732,140.12"},{"v":6912494.35,"d":"$6,912,494.35"},{"v":6912494.35,"d":"$6,912,494.35"},{"v":7200674.62,"d":"$7,200,674.62"},{"v":7200674.62,"d":"$7,200,674.62"},{"v":3425206.48,"d":"$3,425,206.48"},{"v":3425206.48,"d":"$3,425,206.48"},{"v":3567763.74,"d":"$3,567,763.74"},{"v":3567763.74,"d":"$3,567,763.74"},{"v":4281316.49,"d":"$4,281,316.49"},{"v":7806159.77,"d":"$7,806,159.77"},{"v":3162066.93,"d":"$3,162,066.93"},{"v":1213628.18,"d":"$1,213,628.18"},{"v":58675449.75,"d":"$58,675,449.75"},{"v":264346192.92,"d":"$264,346,192.92"},{"v":46097364.78,"d":"$46,097,364.78"},{"v":6115615.6899999995,"d":"$6,115,615.69"},{"v":9211050.680000002,"d":"$9,211,050.68"},{"v":264346192.79356003,"d":"$264,346,192.79"}]
["34049065002","LAKE BLUFF ELEM SCHOOL DIST 65",852.96,{"v":11243833.81,"d":"$11,243,833.81"},{"v":16759775.850000001,"d":"$16,759,775.85"},{"v":1.4905748460186465,"d":"149%"},4,{"v":716.21,"d":"$716.21"},{"v":565077.0700000001,"d":"$565,077.07"},{"v":565793.28,"d":"$565,793.28"},{"v":1.04526,"d":"1.05"},{"v":2814248.75,"d":"$2,814,248.75"},{"v":562849.74,"d":"$562,849.74"},{"v":309778.74,"d":"$309,778.74"},{"v":137031.53,"d":"$137,031.53"},{"v":95513.05,"d":"$95,513.05"},{"v":190889.79,"d":"$190,889.79"},{"v":72242.29,"d":"$72,242.29"},{"v":117355.06,"d":"$117,355.06"},{"v":158221.08,"d":"$158,221.08"},{"v":87861.06,"d":"$87,861.06"},{"v":234725.92,"d":"$234,725.92"},{"v":202099.55,"d":"$202,099.55"},{"v":140820.54,"d":"$140,820.54"},{"v":5123637.1,"d":"$5,123,637.10"},{"v":76167,"d":"$76,167.00"},{"v":106619.99999999999,"d":"$106,620.00"},{"v":277212,"d":"$277,212.00"},{"v":29000.639999999996,"d":"$29,000.64"},{"v":243520.07,"d":"$243,520.07"},{"v":144226.26,"d":"$144,226.26"},{"v":1160878.56,"d":"$1,160,878.56"},{"v":799223.5199999999,"d":"$799,223.52"},{"v":2034563.1944399998,"d":"$2,034,563.19"},{"v":4871411.24444,"d":"$4,871,411.24"},{"v":811915.56,"d":"$811,915.56"},{"v":4059495.6844399995,"d":"$4,059,495.68"},{"v":4908158.53444,"d":"$4,908,158.53"},{"v":59782.07,"d":"$59,782.07"},{"v":59782.07,"d":"$59,782.07"},{"v":62847.82,"d":"$62,847.82"},{"v":62847.82,"d":"$62,847.82"},{"v":45986.21,"d":"$45,986.21"},{"v":45986.21,"d":"$45,986.21"},{"v":47519.08,"d":"$47,519.08"},{"v":47519.08,"d":"$47,519.08"},{"v":57482.76,"d":"$57,482.76"},{"v":462927.88,"d":"$462,927.88"},{"v":187519.72,"d":"$187,519.72"},{"v":71837.32,"d":"$71,837.32"},{"v":1212038.04,"d":"$1,212,038.04"},{"v":11243833.81,"d":"$11,243,833.81"},{"v":30750.88,"d":"$30,750.88"},{"v":10347.08,"d":"$10,347.08"},{"v":347882.26999999996,"d":"$347,882.27"},{"v":11243833.67444,"d":"$11,243,833.67"}]
["34049067005","LAKE FOREST SCHOOL DIST 67",1628.75,{"v":20479061.59,"d":"$20,479,061.59"},{"v":35877621.76,"d":"$35,877,621.76"},{"v":1.7519172742524087,"d":"175%"},4,{"v":1304.48,"d":"$1,304.48"},{"v":1014839.7899999999,"d":"$1,014,839.79"},{"v":1016144.2699999999,"d":"$1,016,144.27"},{"v":1.04526,"d":"1.05"},{"v":5234896.28,"d":"$5,234,896.28"},{"v":1046979.25,"d":"$1,046,979.25"},{"v":592588.5,"d":"$592,588.50"},{"v":263129.7,"d":"$263,129.70"},{"v":170475.06,"d":"$170,475.06"},{"v":364497.38,"d":"$364,497.38"},{"v":138091.47,"d":"$138,091.47"},{"v":224464.83,"d":"$224,464.83"},{"v":303818.15,"d":"$303,818.15"},{"v":168271.01,"d":"$168,271.01"},{"v":450723.72,"d":"$450,723.72"},{"v":388074.15,"d":"$388,074.15"},{"v":269347.22,"d":"$269,347.22"},{"v":9615356.720000003,"d":"$9,615,356.72"},{"v":145260,"d":"$145,260.00"},{"v":203593.75,"d":"$203,593.75"},{"v":529343.75,"d":"$529,343.75"},{"v":55377.5,"d":"$55,377.50"},{"v":465008.12,"d":"$465,008.12"},{"v":273050,"d":"$273,050.00"},{"v":2216728.75,"d":"$2,216,728.75"},{"v":1526138.75,"d":"$1,526,138.75"},{"v":3667200.4949999996,"d":"$3,667,200.50"},{"v":9081701.115,"d":"$9,081,701.12"},{"v":1550374.55,"d":"$1,550,374.55"},{"v":7531326.564999999,"d":"$7,531,326.57"},{"v":9151871.064999998,"d":"$9,151,871.07"},{"v":25292.41,"d":"$25,292.41"},{"v":25292.41,"d":"$25,292.41"},{"v":26058.85,"d":"$26,058.85"},{"v":26058.85,"d":"$26,058.85"},{"v":42920.46,"d":"$42,920.46"},{"v":42920.46,"d":"$42,920.46"},{"v":44453.33,"d":"$44,453.33"},{"v":44453.33,"d":"$44,453.33"},{"v":53650.58,"d":"$53,650.58"},{"v":885234.61,"d":"$885,234.61"},{"v":358584.9,"d":"$358,584.90"},{"v":136913.48,"d":"$136,913.48"},{"v":1711833.67,"d":"$1,711,833.67"},{"v":20479061.59,"d":"$20,479,061.59"},{"v":25804.179999999997,"d":"$25,804.18"},{"v":268.94,"d":"$268.94"},{"v":602084.4300000002,"d":"$602,084.43"},{"v":20479061.455,"d":"$20,479,061.46"}]
["34049068002","OAK GROVE SCHOOL DIST 68 GREEN OAKS",935,{"v":11928068.91,"d":"$11,928,068.91"},{"v":16539411.8,"d":"$16,539,411.80"},{"v":1.3865959297178474,"d":"139%"},4,{"v":759.79,"d":"$759.79"},{"v":435237.01,"d":"$435,237.01"},{"v":435996.8,"d":"$435,996.80"},{"v":1.04526,"d":"1.05"},{"v":3028542.75,"d":"$3,028,542.75"},{"v":605708.55,"d":"$605,708.55"},{"v":340392.16,"d":"$340,392.16"},{"v":150151.57,"d":"$150,151.57"},{"v":99939.42,"d":"$99,939.42"},{"v":210528.65,"d":"$210,528.65"},{"v":79274.73,"d":"$79,274.73"},{"v":128531.73,"d":"$128,531.73"},{"v":173369.91,"d":"$173,369.91"},{"v":96554.03,"d":"$96,554.03"},{"v":257199.68,"d":"$257,199.68"},{"v":221449.51,"d":"$221,449.51"},{"v":154232.02,"d":"$154,232.02"},{"v":5545874.710000001,"d":"$5,545,874.71"},{"v":84150,"d":"$84,150.00"},{"v":116875,"d":"$116,875.00"},{"v":303875,"d":"$303,875.00"},{"v":31790,"d":"$31,790.00"},{"v":266942.5,"d":"$266,942.50"},{"v":159779,"d":"$159,779.00"},{"v":1272535,"d":"$1,272,535.00"},{"v":876095,"d":"$876,095.00"},{"v":2142209.4899999998,"d":"$2,142,209.49"},{"v":5254250.99,"d":"$5,254,250.99"},{"v":890007.8,"d":"$890,007.80"},{"v":4364243.19,"d":"$4,364,243.19"},{"v":5294532.74,"d":"$5,294,532.74"},{"v":25292.41,"d":"$25,292.41"},{"v":25292.41,"d":"$25,292.41"},{"v":26058.85,"d":"$26,058.85"},{"v":26058.85,"d":"$26,058.85"},{"v":36022.53,"d":"$36,022.53"},{"v":36022.53,"d":"$36,022.53"},{"v":37555.4,"d":"$37,555.40"},{"v":37555.4,"d":"$37,555.40"},{"v":45219.77,"d":"$45,219.77"},{"v":508147.66,"d":"$508,147.66"},{"v":205837.05,"d":"$205,837.05"},{"v":78598.48,"d":"$78,598.48"},{"v":1087661.3399999999,"d":"$1,087,661.34"},{"v":11928068.91,"d":"$11,928,068.91"},{"v":10699.79,"d":"$10,699.79"},{"v":137.54999999999998,"d":"$137.55"},{"v":245264.65000000002,"d":"$245,264.65"},{"v":11928068.790000001,"d":"$11,928,068.79"}]
["34049070002","LIBERTYVILLE SCHOOL DIST 70",2160.14,{"v":27681517.6,"d":"$27,681,517.60"},{"v":33841703.739999995,"d":"$33,841,703.74"},{"v":1.222537876319324,"d":"122%"},4,{"v":1763.26,"d":"$1,763.26"},{"v":1798307,"d":"$1,798,307.00"},{"v":1800070.26,"d":"$1,800,070.26"},{"v":1.04526,"d":"1.05"},{"v":7046919.69,"d":"$7,046,919.69"},{"v":1409383.93,"d":"$1,409,383.93"},{"v":786473.55,"d":"$786,473.55"},{"v":349138.86,"d":"$349,138.86"},{"v":232303.44,"d":"$232,303.44"},{"v":487829.46,"d":"$487,829.46"},{"v":183482.65,"d":"$183,482.65"},{"v":297734.13,"d":"$297,734.13"},{"v":403127.13,"d":"$403,127.13"},{"v":223222.98,"d":"$223,222.98"},{"v":598051.69,"d":"$598,051.69"},{"v":514923.87,"d":"$514,923.87"},{"v":357266.93,"d":"$357,266.93"},{"v":12889858.310000002,"d":"$12,889,858.31"},{"v":193445.09999999998,"d":"$193,445.10"},{"v":270017.5,"d":"$270,017.50"},{"v":702045.5,"d":"$702,045.50"},{"v":73444.76,"d":"$73,444.76"},{"v":616719.97,"d":"$616,719.97"},{"v":367397.58999999997,"d":"$367,397.59"},{"v":2939950.54,"d":"$2,939,950.54"},{"v":2024051.1799999997,"d":"$2,024,051.18"},{"v":4977105.411959999,"d":"$4,977,105.41"},{"v":12164177.551959999,"d":"$12,164,177.55"},{"v":2056194.06,"d":"$2,056,194.06"},{"v":10107983.491959998,"d":"$10,107,983.49"},{"v":12257240.891959999,"d":"$12,257,240.89"},{"v":85840.93,"d":"$85,840.93"},{"v":85840.93,"d":"$85,840.93"},{"v":88906.67,"d":"$88,906.67"},{"v":88906.67,"d":"$88,906.67"},{"v":65913.57,"d":"$65,913.57"},{"v":65913.57,"d":"$65,913.57"},{"v":68979.32,"d":"$68,979.32"},{"v":68979.32,"d":"$68,979.32"},{"v":82775.18,"d":"$82,775.18"},{"v":1174181.32,"d":"$1,174,181.32"},{"v":475629.5,"d":"$475,629.50"},{"v":182551.31,"d":"$182,551.31"},{"v":2534418.29,"d":"$2,534,418.29"},{"v":27681517.6,"d":"$27,681,517.60"},{"v":63431.689999999995,"d":"$63,431.69"},{"v":137.68,"d":"$137.68"},{"v":764630.45,"d":"$764,630.45"},{"v":27681517.49196,"d":"$27,681,517.49"}]
["34049072002","RONDOUT SCHOOL DIST 72",152,{"v":2022323.07,"d":"$2,022,323.07"},{"v":5304542.5,"d":"$5,304,542.50"},{"v":2.622994603923497,"d":"262%"},4,{"v":128.81,"d":"$128.81"},{"v":103892.56999999999,"d":"$103,892.57"},{"v":104021.37999999999,"d":"$104,021.38"},{"v":1.04526,"d":"1.05"},{"v":498561.55,"d":"$498,561.55"},{"v":99712.3,"d":"$99,712.30"},{"v":54666.83,"d":"$54,666.83"},{"v":24053.4,"d":"$24,053.40"},{"v":17217.73,"d":"$17,217.73"},{"v":34564.4,"d":"$34,564.40"},{"v":12146.93,"d":"$12,146.93"},{"v":20801.02,"d":"$20,801.02"},{"v":27772.85,"d":"$27,772.85"},{"v":15523.15,"d":"$15,523.15"},{"v":41201.89,"d":"$41,201.89"},{"v":35474.92,"d":"$35,474.92"},{"v":24960.25,"d":"$24,960.25"},{"v":906657.2200000001,"d":"$906,657.22"},{"v":13545,"d":"$13,545.00"},{"v":19000,"d":"$19,000.00"},{"v":49400,"d":"$49,400.00"},{"v":5168,"d":"$5,168.00"},{"v":43396,"d":"$43,396.00"},{"v":25942.5,"d":"$25,942.50"},{"v":206872,"d":"$206,872.00"},{"v":142424,"d":"$142,424.00"},{"v":366630.303,"d":"$366,630.30"},{"v":872377.8030000001,"d":"$872,377.80"},{"v":144685.76,"d":"$144,685.76"},{"v":727692.0430000001,"d":"$727,692.04"},{"v":878926.273,"d":"$878,926.27"},{"v":10730.11,"d":"$10,730.11"},{"v":10730.11,"d":"$10,730.11"},{"v":10730.11,"d":"$10,730.11"},{"v":10730.11,"d":"$10,730.11"},{"v":12262.99,"d":"$12,262.99"},{"v":12262.99,"d":"$12,262.99"},{"v":13029.42,"d":"$13,029.42"},{"v":13029.42,"d":"$13,029.42"},{"v":15328.73,"d":"$15,328.73"},{"v":82008.74,"d":"$82,008.74"},{"v":33219.55,"d":"$33,219.55"},{"v":12677.17,"d":"$12,677.17"},{"v":236739.44999999998,"d":"$236,739.45"},{"v":2022323.07,"d":"$2,022,323.07"},{"v":5483.57,"d":"$5,483.57"},{"v":13.629999999999999,"d":"$13.63"},{"v":67237.76000000002,"d":"$67,237.76"},{"v":2022322.9430000002,"d":"$2,022,322.94"}]
["34049073004","HAWTHORN C C SCHOOL DIST 73",3630.54,{"v":52840875.22,"d":"$52,840,875.22"},{"v":48910446.35,"d":"$48,910,446.35"},{"v":0.9256176425232194,"d":"93%"},3,{"v":60048.94,"d":"$60,048.94"},{"v":4441171.260000001,"d":"$4,441,171.26"},{"v":4501220.200000001,"d":"$4,501,220.20"},{"v":1.04526,"d":"1.05"},{"v":12399896.34,"d":"$12,399,896.34"},{"v":2479979.26,"d":"$2,479,979.26"},{"v":1322208.55,"d":"$1,322,208.55"},{"v":587486.27,"d":"$587,486.27"},{"v":464842.01,"d":"$464,842.01"},{"v":818547.99,"d":"$818,547.99"},{"v":308787.87,"d":"$308,787.87"},{"v":500466.55,"d":"$500,466.55"},{"v":678330.84,"d":"$678,330.84"},{"v":375349.91,"d":"$375,349.91"},{"v":1006324.98,"d":"$1,006,324.98"},{"v":866448.1,"d":"$866,448.10"},{"v":600536.27,"d":"$600,536.27"},{"v":22409204.940000005,"d":"$22,409,204.94"},{"v":324176.4,"d":"$324,176.40"},{"v":453817.50000000006,"d":"$453,817.50"},{"v":1179925.5000000002,"d":"$1,179,925.50"},{"v":123438.36000000002,"d":"$123,438.36"},{"v":1036519.1599999999,"d":"$1,036,519.16"},{"v":615121.6000000001,"d":"$615,121.60"},{"v":4941164.94,"d":"$4,941,164.94"},{"v":3401815.9800000004,"d":"$3,401,815.98"},{"v":9757792.288559997,"d":"$9,757,792.29"},{"v":21833771.72856,"d":"$21,833,771.73"},{"v":3455838.41,"d":"$3,455,838.41"},{"v":18377933.318559997,"d":"$18,377,933.32"},{"v":21990182.968559995,"d":"$21,990,182.97"},{"v":551834.56,"d":"$551,834.56"},{"v":551834.56,"d":"$551,834.56"},{"v":574827.67,"d":"$574,827.67"},{"v":574827.67,"d":"$574,827.67"},{"v":583258.47,"d":"$583,258.47"},{"v":583258.47,"d":"$583,258.47"},{"v":607018.02,"d":"$607,018.02"},{"v":607018.02,"d":"$607,018.02"},{"v":728881.48,"d":"$728,881.48"},{"v":1972808.56,"d":"$1,972,808.56"},{"v":799132.08,"d":"$799,132.08"},{"v":306787.62,"d":"$306,787.62"},{"v":8441487.18,"d":"$8,441,487.18"},{"v":52840875.22,"d":"$52,840,875.22"},{"v":613976.62,"d":"$613,976.62"},{"v":360401.42,"d":"$360,401.42"},{"v":1446349.68,"d":"$1,446,349.68"},{"v":52840875.08856,"d":"$52,840,875.09"}]
["34049075002","MUNDELEIN ELEM SCHOOL DIST 75",1582.7,{"v":25025451.58,"d":"$25,025,451.58"},{"v":17364239.68,"d":"$17,364,239.68"},{"v":0.6938631906197954,"d":"69%"},1,{"v":859865.98,"d":"$859,865.98"},{"v":6407440.04,"d":"$6,407,440.04"},{"v":7267306.02,"d":"$7,267,306.02"},{"v":1.04526,"d":"1.05"},{"v":5649635.34,"d":"$5,649,635.34"},{"v":1129927.06,"d":"$1,129,927.06"},{"v":575824.01,"d":"$575,824.01"},{"v":255840.79,"d":"$255,840.79"},{"v":221211.47,"d":"$221,211.47"},{"v":354285.16,"d":"$354,285.16"},{"v":134255.59,"d":"$134,255.59"},{"v":218255.57,"d":"$218,255.57"},{"v":295402.14,"d":"$295,402.14"},{"v":163303.6,"d":"$163,303.60"},{"v":438238.29,"d":"$438,238.29"},{"v":377324.17,"d":"$377,324.17"},{"v":261896.4,"d":"$261,896.40"},{"v":10075399.59,"d":"$10,075,399.59"},{"v":140943.6,"d":"$140,943.60"},{"v":197837.5,"d":"$197,837.50"},{"v":514377.5,"d":"$514,377.50"},{"v":53811.8,"d":"$53,811.80"},{"v":903721.7,"d":"$903,721.70"},{"v":265316.52,"d":"$265,316.52"},{"v":2154054.7,"d":"$2,154,054.70"},{"v":1482989.9,"d":"$1,482,989.90"},{"v":4593400.6877999995,"d":"$4,593,400.69"},{"v":10306453.9078,"d":"$10,306,453.91"},{"v":1506540.47,"d":"$1,506,540.47"},{"v":8799913.4378,"d":"$8,799,913.44"},{"v":10374639.9278,"d":"$10,374,639.93"},{"v":390882.81,"d":"$390,882.81"},{"v":390882.81,"d":"$390,882.81"},{"v":407744.42,"d":"$407,744.42"},{"v":407744.42,"d":"$407,744.42"},{"v":306574.75,"d":"$306,574.75"},{"v":306574.75,"d":"$306,574.75"},{"v":319604.18,"d":"$319,604.18"},{"v":319604.18,"d":"$319,604.18"},{"v":383984.88,"d":"$383,984.88"},{"v":859942.19,"d":"$859,942.19"},{"v":348339.62,"d":"$348,339.62"},{"v":133532.9,"d":"$133,532.90"},{"v":4575411.91,"d":"$4,575,411.91"},{"v":25025451.58,"d":"$25,025,451.58"},{"v":1001156.9299999999,"d":"$1,001,156.93"},{"v":484949.68000000005,"d":"$484,949.68"},{"v":710771.8300000001,"d":"$710,771.83"},{"v":25025451.4278,"d":"$25,025,451.43"}]
["34049076002","DIAMOND LAKE SCHOOL DIST 76",839.3,{"v":14196373.46,"d":"$14,196,373.46"},{"v":13339863.87,"d":"$13,339,863.87"},{"v":0.939667014789846,"d":"94%"},3,{"v":16132.91,"d":"$16,132.91"},{"v":1987432.43,"d":"$1,987,432.43"},{"v":2003565.3399999999,"d":"$2,003,565.34"},{"v":1.04526,"d":"1.05"},{"v":3123298.6,"d":"$3,123,298.60"},{"v":624659.72,"d":"$624,659.72"},{"v":305405.39,"d":"$305,405.39"},{"v":134844.86,"d":"$134,844.86"},{"v":131153.99,"d":"$131,153.99"},{"v":187747.57,"d":"$187,747.57"},{"v":70963.67,"d":"$70,963.67"},{"v":115492.28,"d":"$115,492.28"},{"v":155696.28,"d":"$155,696.28"},{"v":86619.21,"d":"$86,619.21"},{"v":230980.3,"d":"$230,980.30"},{"v":198874.56,"d":"$198,874.56"},{"v":138585.29,"d":"$138,585.29"},{"v":5504321.720000001,"d":"$5,504,321.72"},{"v":74697.29999999999,"d":"$74,697.30"},{"v":104912.5,"d":"$104,912.50"},{"v":272772.5,"d":"$272,772.50"},{"v":28536.199999999997,"d":"$28,536.20"},{"v":239620.14,"d":"$239,620.14"},{"v":141522.84999999998,"d":"$141,522.85"},{"v":1142287.3,"d":"$1,142,287.30"},{"v":786424.1,"d":"$786,424.10"},{"v":2692422.1632,"d":"$2,692,422.16"},{"v":5483195.0532,"d":"$5,483,195.05"},{"v":798912.88,"d":"$798,912.88"},{"v":4684282.173199999,"d":"$4,684,282.17"},{"v":5519353.843199999,"d":"$5,519,353.84"},{"v":298143.95,"d":"$298,143.95"},{"v":298143.95,"d":"$298,143.95"},{"v":311173.37,"d":"$311,173.37"},{"v":311173.37,"d":"$311,173.37"},{"v":232996.81,"d":"$232,996.81"},{"v":232996.81,"d":"$232,996.81"},{"v":242960.49,"d":"$242,960.49"},{"v":242960.49,"d":"$242,960.49"},{"v":291246.02,"d":"$291,246.02"},{"v":456029.95,"d":"$456,029.95"},{"v":184725.55,"d":"$184,725.55"},{"v":70147.03,"d":"$70,147.03"},{"v":3172697.79,"d":"$3,172,697.79"},{"v":14196373.46,"d":"$14,196,373.46"},{"v":923170.7799999999,"d":"$923,170.78"},{"v":173875.25999999998,"d":"$173,875.26"},{"v":370122.81,"d":"$370,122.81"},{"v":14196373.3532,"d":"$14,196,373.35"}]
["34049079002","FREMONT SCHOOL DIST 79",2083.14,{"v":27779141.54,"d":"$27,779,141.54"},{"v":27406644.810000002,"d":"$27,406,644.81"},{"v":0.9865907760517499,"d":"99%"},3,{"v":31568.51,"d":"$31,568.51"},{"v":1806543.41,"d":"$1,806,543.41"},{"v":1838111.92,"d":"$1,838,111.92"},{"v":1.04526,"d":"1.05"},{"v":6839914.6,"d":"$6,839,914.60"},{"v":1367982.91,"d":"$1,367,982.91"},{"v":758046.8,"d":"$758,046.80"},{"v":336018.82,"d":"$336,018.82"},{"v":236499.47,"d":"$236,499.47"},{"v":472118.37,"d":"$472,118.37"},{"v":176450.21,"d":"$176,450.21"},{"v":286867.92,"d":"$286,867.92"},{"v":387978.31,"d":"$387,978.31"},{"v":215150.94,"d":"$215,150.94"},{"v":575577.93,"d":"$575,577.93"},{"v":495573.91,"d":"$495,573.91"},{"v":344227.99,"d":"$344,227.99"},{"v":12492408.180000002,"d":"$12,492,408.18"},{"v":185630.40000000002,"d":"$185,630.40"},{"v":260392.5,"d":"$260,392.50"},{"v":677020.5,"d":"$677,020.50"},{"v":70826.76000000001,"d":"$70,826.76"},{"v":594736.46,"d":"$594,736.46"},{"v":355448.92000000004,"d":"$355,448.92"},{"v":2835153.54,"d":"$2,835,153.54"},{"v":1951902.1800000002,"d":"$1,951,902.18"},{"v":5038675.82196,"d":"$5,038,675.82"},{"v":11969787.08196,"d":"$11,969,787.08"},{"v":1982899.3,"d":"$1,982,899.30"},{"v":9986887.78196,"d":"$9,986,887.78"},{"v":12059533.10196,"d":"$12,059,533.10"},{"v":162484.62,"d":"$162,484.62"},{"v":162484.62,"d":"$162,484.62"},{"v":169382.55,"d":"$169,382.55"},{"v":169382.55,"d":"$169,382.55"},{"v":149455.19,"d":"$149,455.19"},{"v":149455.19,"d":"$149,455.19"},{"v":155586.68,"d":"$155,586.68"},{"v":155586.68,"d":"$155,586.68"},{"v":187010.6,"d":"$187,010.60"},{"v":1132027.29,"d":"$1,132,027.29"},{"v":458554.03,"d":"$458,554.03"},{"v":175790.15,"d":"$175,790.15"},{"v":3227200.15,"d":"$3,227,200.15"},{"v":27779141.54,"d":"$27,779,141.54"},{"v":119156.63999999998,"d":"$119,156.64"},{"v":60103.7,"d":"$60,103.70"},{"v":630057.4400000001,"d":"$630,057.44"},{"v":27779141.43196,"d":"$27,779,141.43"}]
["34049095026","LAKE ZURICH C U SCH DIST 95",5553.5,{"v":77689247.12,"d":"$77,689,247.12"},{"v":81991308.22,"d":"$81,991,308.22"},{"v":1.0553752450883578,"d":"106%"},4,{"v":4948.68,"d":"$4,948.68"},{"v":4051404.4999999995,"d":"$4,051,404.50"},{"v":4056353.1799999997,"d":"$4,056,353.18"},{"v":1.04526,"d":"1.05"},{"v":18810955.98,"d":"$18,810,955.98"},{"v":4592397.98,"d":"$4,592,397.98"},{"v":2121477.67,"d":"$2,121,477.67"},{"v":858452.64,"d":"$858,452.64"},{"v":641847.16,"d":"$641,847.16"},{"v":1479271.58,"d":"$1,479,271.58"},{"v":472451.84,"d":"$472,451.84"},{"v":796958.84,"d":"$796,958.84"},{"v":953534.54,"d":"$953,534.54"},{"v":574356.78,"d":"$574,356.78"},{"v":1414598.27,"d":"$1,414,598.27"},{"v":1217972.33,"d":"$1,217,972.33"},{"v":956313.04,"d":"$956,313.04"},{"v":34890588.650000006,"d":"$34,890,588.65"},{"v":497610,"d":"$497,610.00"},{"v":694187.5,"d":"$694,187.50"},{"v":1804887.5,"d":"$1,804,887.50"},{"v":188819,"d":"$188,819.00"},{"v":1585524.25,"d":"$1,585,524.25"},{"v":2168273,"d":"$2,168,273.00"},{"v":7558313.5,"d":"$7,558,313.50"},{"v":5203629.5,"d":"$5,203,629.50"},{"v":13967356.785,"d":"$13,967,356.79"},{"v":33668601.035,"d":"$33,668,601.04"},{"v":5286265.58,"d":"$5,286,265.58"},{"v":28382335.455,"d":"$28,382,335.46"},{"v":33907857.415,"d":"$33,907,857.42"},{"v":494351.79,"d":"$494,351.79"},{"v":494351.79,"d":"$494,351.79"},{"v":515045.59,"d":"$515,045.59"},{"v":515045.59,"d":"$515,045.59"},{"v":405445.11,"d":"$405,445.11"},{"v":405445.11,"d":"$405,445.11"},{"v":422306.72,"d":"$422,306.72"},{"v":422306.72,"d":"$422,306.72"},{"v":506614.78,"d":"$506,614.78"},{"v":3018228.49,"d":"$3,018,228.49"},{"v":1222603.78,"d":"$1,222,603.78"},{"v":469055.46,"d":"$469,055.46"},{"v":8890800.930000002,"d":"$8,890,800.93"},{"v":77689247.12,"d":"$77,689,247.12"},{"v":263996.48999999993,"d":"$263,996.49"},{"v":73658.34,"d":"$73,658.34"},{"v":1710717.02,"d":"$1,710,717.02"},{"v":77689246.995,"d":"$77,689,247.00"}]
["34049096004","KILDEER COUNTRYSIDE C C S DIST 96",3422,{"v":46558688.57,"d":"$46,558,688.57"},{"v":53204609.309999995,"d":"$53,204,609.31"},{"v":1.142742868068717,"d":"114%"},4,{"v":2965.71,"d":"$2,965.71"},{"v":2488588.0199999996,"d":"$2,488,588.02"},{"v":2491553.7299999995,"d":"$2,491,553.73"},{"v":1.04526,"d":"1.05"},{"v":11178274.76,"d":"$11,178,274.76"},{"v":2235654.94,"d":"$2,235,654.94"},{"v":1246403.87,"d":"$1,246,403.87"},{"v":553228.38,"d":"$553,228.38"},{"v":399080.75,"d":"$399,080.75"},{"v":777699.15,"d":"$777,699.15"},{"v":291526.44,"d":"$291,526.44"},{"v":471903.95,"d":"$471,903.95"},{"v":638775.57,"d":"$638,775.57"},{"v":353927.96,"d":"$353,927.96"},{"v":947643.5,"d":"$947,643.50"},{"v":815923.21,"d":"$815,923.21"},{"v":566262.49,"d":"$566,262.49"},{"v":20476304.970000003,"d":"$20,476,304.97"},{"v":305190,"d":"$305,190.00"},{"v":427750,"d":"$427,750.00"},{"v":1112150,"d":"$1,112,150.00"},{"v":116348,"d":"$116,348.00"},{"v":976981,"d":"$976,981.00"},{"v":584951,"d":"$584,951.00"},{"v":4657342,"d":"$4,657,342.00"},{"v":3206414,"d":"$3,206,414.00"},{"v":8480847.237000002,"d":"$8,480,847.24"},{"v":19867973.237000003,"d":"$19,867,973.24"},{"v":3257333.36,"d":"$3,257,333.36"},{"v":16610639.877000004,"d":"$16,610,639.88"},{"v":20015400.137000002,"d":"$20,015,400.14"},{"v":202339.34,"d":"$202,339.34"},{"v":202339.34,"d":"$202,339.34"},{"v":210770.14,"d":"$210,770.14"},{"v":210770.14,"d":"$210,770.14"},{"v":438401.9,"d":"$438,401.90"},{"v":438401.9,"d":"$438,401.90"},{"v":456796.38,"d":"$456,796.38"},{"v":456796.38,"d":"$456,796.38"},{"v":548768.81,"d":"$548,768.81"},{"v":1859375.9,"d":"$1,859,375.90"},{"v":753183.54,"d":"$753,183.54"},{"v":289039.58,"d":"$289,039.58"},{"v":6066983.350000001,"d":"$6,066,983.35"},{"v":46558688.57,"d":"$46,558,688.57"},{"v":118980.26,"d":"$118,980.26"},{"v":85627.51,"d":"$85,627.51"},{"v":1222529.98,"d":"$1,222,529.98"},{"v":46558688.45700001,"d":"$46,558,688.46"}]
["34049102004","APTAKISIC-TRIPP C C S DIST 102",2425.81,{"v":34598753.06,"d":"$34,598,753.06"},{"v":34458997.32,"d":"$34,458,997.32"},{"v":0.9959606711907322,"d":"100%"},3,{"v":39318.39,"d":"$39,318.39"},{"v":1835830.0599999998,"d":"$1,835,830.06"},{"v":1875148.4499999997,"d":"$1,875,148.45"},{"v":1.04526,"d":"1.05"},{"v":8044771.68,"d":"$8,044,771.68"},{"v":1608954.33,"d":"$1,608,954.33"},{"v":882687.18,"d":"$882,687.18"},{"v":392143.44,"d":"$392,143.44"},{"v":301911.65,"d":"$301,911.65"},{"v":544389.4,"d":"$544,389.40"},{"v":206497.89,"d":"$206,497.89"},{"v":334368.78,"d":"$334,368.78"},{"v":452781.62,"d":"$452,781.62"},{"v":250543.74,"d":"$250,543.74"},{"v":671715.68,"d":"$671,715.68"},{"v":578348.73,"d":"$578,348.73"},{"v":401226.78,"d":"$401,226.78"},{"v":14670340.899999999,"d":"$14,670,340.90"},{"v":216432.9,"d":"$216,432.90"},{"v":303226.25,"d":"$303,226.25"},{"v":788388.25,"d":"$788,388.25"},{"v":82477.54,"d":"$82,477.54"},{"v":692568.75,"d":"$692,568.75"},{"v":408728.01,"d":"$408,728.01"},{"v":3301527.41,"d":"$3,301,527.41"},{"v":2272983.9699999997,"d":"$2,272,983.97"},{"v":6364477.13184,"d":"$6,364,477.13"},{"v":14430810.21184,"d":"$14,430,810.21"},{"v":2309080.02,"d":"$2,309,080.02"},{"v":12121730.19184,"d":"$12,121,730.19"},{"v":14535319.17184,"d":"$14,535,319.17"},{"v":209237.27,"d":"$209,237.27"},{"v":209237.27,"d":"$209,237.27"},{"v":218434.51,"d":"$218,434.51"},{"v":218434.51,"d":"$218,434.51"},{"v":465227.19,"d":"$465,227.19"},{"v":465227.19,"d":"$465,227.19"},{"v":484388.11,"d":"$484,388.11"},{"v":484388.11,"d":"$484,388.11"},{"v":581725.6,"d":"$581,725.60"},{"v":1318271.45,"d":"$1,318,271.45"},{"v":533996.57,"d":"$533,996.57"},{"v":204525.08,"d":"$204,525.08"},{"v":5393092.86,"d":"$5,393,092.86"},{"v":34598753.06,"d":"$34,598,753.06"},{"v":136605.30999999997,"d":"$136,605.31"},{"v":121836.76,"d":"$121,836.76"},{"v":788478.7000000001,"d":"$788,478.70"},{"v":34598752.93184,"d":"$34,598,752.93"}]
["34049103002","LINCOLNSHIRE-PRAIRIEVIEW S D 103",1914,{"v":24617238.09,"d":"$24,617,238.09"},{"v":31544473.09,"d":"$31,544,473.09"},{"v":1.2813977333555537,"d":"128%"},4,{"v":1568.07,"d":"$1,568.07"},{"v":1037595.0900000002,"d":"$1,037,595.09"},{"v":1039163.1600000001,"d":"$1,039,163.16"},{"v":1.04526,"d":"1.05"},{"v":6099361.19,"d":"$6,099,361.19"},{"v":1219872.22,"d":"$1,219,872.22"},{"v":697548.83,"d":"$697,548.83"},{"v":309049.85,"d":"$309,049.85"},{"v":206079.99,"d":"$206,079.99"},{"v":440696.18,"d":"$440,696.18"},{"v":162385.34,"d":"$162,385.34"},{"v":263893.65,"d":"$263,893.65"},{"v":356839.05,"d":"$356,839.05"},{"v":197765.01,"d":"$197,765.01"},{"v":529381.87,"d":"$529,381.87"},{"v":455799,"d":"$455,799.00"},{"v":316659.94,"d":"$316,659.94"},{"v":11255332.12,"d":"$11,255,332.12"},{"v":170505,"d":"$170,505.00"},{"v":239250,"d":"$239,250.00"},{"v":622050,"d":"$622,050.00"},{"v":65076,"d":"$65,076.00"},{"v":546447,"d":"$546,447.00"},{"v":332540.5,"d":"$332,540.50"},{"v":2604954,"d":"$2,604,954.00"},{"v":1793418,"d":"$1,793,418.00"},{"v":4428619.581,"d":"$4,428,619.58"},{"v":10802860.081,"d":"$10,802,860.08"},{"v":1821898.32,"d":"$1,821,898.32"},{"v":8980961.761,"d":"$8,980,961.76"},{"v":10885319.191,"d":"$10,885,319.19"},{"v":44453.33,"d":"$44,453.33"},{"v":44453.33,"d":"$44,453.33"},{"v":46752.65,"d":"$46,752.65"},{"v":46752.65,"d":"$46,752.65"},{"v":125695.65,"d":"$125,695.65"},{"v":125695.65,"d":"$125,695.65"},{"v":131060.7,"d":"$131,060.70"},{"v":131060.7,"d":"$131,060.70"},{"v":157886,"d":"$157,886.00"},{"v":1040054.86,"d":"$1,040,054.86"},{"v":421298.46,"d":"$421,298.46"},{"v":161422.68,"d":"$161,422.68"},{"v":2476586.66,"d":"$2,476,586.66"},{"v":24617238.09,"d":"$24,617,238.09"},{"v":29031.33,"d":"$29,031.33"},{"v":34774.41,"d":"$34,774.41"},{"v":611677.0200000001,"d":"$611,677.02"},{"v":24617237.970999997,"d":"$24,617,237.97"}]
["34049106002","BANNOCKBURN SCHOOL DIST 106",177,{"v":2388146.42,"d":"$2,388,146.42"},{"v":4897739.37,"d":"$4,897,739.37"},{"v":2.0508538877612037,"d":"205%"},4,{"v":152.12,"d":"$152.12"},{"v":140906.95,"d":"$140,906.95"},{"v":141059.07,"d":"$141,059.07"},{"v":1.04526,"d":"1.05"},{"v":612268.57,"d":"$612,268.57"},{"v":122453.71,"d":"$122,453.71"},{"v":64142.42,"d":"$64,142.42"},{"v":27697.86,"d":"$27,697.86"},{"v":20624.58,"d":"$20,624.58"},{"v":39277.73,"d":"$39,277.73"},{"v":14704.18,"d":"$14,704.18"},{"v":23905.66,"d":"$23,905.66"},{"v":31980.85,"d":"$31,980.85"},{"v":18006.86,"d":"$18,006.86"},{"v":47444.6,"d":"$47,444.60"},{"v":40849.91,"d":"$40,849.91"},{"v":28685.66,"d":"$28,685.66"},{"v":1092042.5899999999,"d":"$1,092,042.59"},{"v":15930,"d":"$15,930.00"},{"v":22125,"d":"$22,125.00"},{"v":57525,"d":"$57,525.00"},{"v":6018,"d":"$6,018.00"},{"v":50533.5,"d":"$50,533.50"},{"v":29875,"d":"$29,875.00"},{"v":240897,"d":"$240,897.00"},{"v":165849,"d":"$165,849.00"},{"v":434247.37799999997,"d":"$434,247.38"},{"v":1022999.878,"d":"$1,022,999.88"},{"v":168482.76,"d":"$168,482.76"},{"v":854517.118,"d":"$854,517.12"},{"v":1030625.398,"d":"$1,030,625.40"},{"v":25292.41,"d":"$25,292.41"},{"v":25292.41,"d":"$25,292.41"},{"v":26825.29,"d":"$26,825.29"},{"v":26825.29,"d":"$26,825.29"},{"v":2299.31,"d":"$2,299.31"},{"v":2299.31,"d":"$2,299.31"},{"v":2299.31,"d":"$2,299.31"},{"v":2299.31,"d":"$2,299.31"},{"v":3065.74,"d":"$3,065.74"},{"v":95804.61,"d":"$95,804.61"},{"v":38807.89,"d":"$38,807.89"},{"v":14367.46,"d":"$14,367.46"},{"v":265478.34,"d":"$265,478.34"},{"v":2388146.42,"d":"$2,388,146.42"},{"v":38050.979999999996,"d":"$38,050.98"},{"v":12.9,"d":"$12.90"},{"v":59766.829999999994,"d":"$59,766.83"},{"v":2388146.3279999997,"d":"$2,388,146.33"}]
["34049109002","DEERFIELD SCHOOL DIST 109",2731.8,{"v":34724212.19,"d":"$34,724,212.19"},{"v":57454797.01,"d":"$57,454,797.01"},{"v":1.6546033267976066,"d":"165%"},4,{"v":2211.87,"d":"$2,211.87"},{"v":1829408.71,"d":"$1,829,408.71"},{"v":1831620.58,"d":"$1,831,620.58"},{"v":1.04526,"d":"1.05"},{"v":8888098.75,"d":"$8,888,098.75"},{"v":1777619.74,"d":"$1,777,619.74"},{"v":994936.42,"d":"$994,936.42"},{"v":441708.04,"d":"$441,708.04"},{"v":290648.55,"d":"$290,648.55"},{"v":608804.89,"d":"$608,804.89"},{"v":232070.39,"d":"$232,070.39"},{"v":376591.77,"d":"$376,591.77"},{"v":510010.53,"d":"$510,010.53"},{"v":282521.44,"d":"$282,521.44"},{"v":756616.55,"d":"$756,616.55"},{"v":651448.57,"d":"$651,448.57"},{"v":451892.37,"d":"$451,892.37"},{"v":16262968.01,"d":"$16,262,968.01"},{"v":244077.3,"d":"$244,077.30"},{"v":341475,"d":"$341,475.00"},{"v":887835,"d":"$887,835.00"},{"v":92881.2,"d":"$92,881.20"},{"v":779928.8999999999,"d":"$779,928.90"},{"v":457393.93,"d":"$457,393.93"},{"v":3717979.8,"d":"$3,717,979.80"},{"v":2559696.6,"d":"$2,559,696.60"},{"v":6233584.963199999,"d":"$6,233,584.96"},{"v":15314852.6932,"d":"$15,314,852.69"},{"v":2600345.78,"d":"$2,600,345.78"},{"v":12714506.913199998,"d":"$12,714,506.91"},{"v":15432544.343199998,"d":"$15,432,544.34"},{"v":90439.55,"d":"$90,439.55"},{"v":90439.55,"d":"$90,439.55"},{"v":94271.73,"d":"$94,271.73"},{"v":94271.73,"d":"$94,271.73"},{"v":64380.69,"d":"$64,380.69"},{"v":64380.69,"d":"$64,380.69"},{"v":66680,"d":"$66,680.00"},{"v":66680,"d":"$66,680.00"},{"v":80475.87,"d":"$80,475.87"},{"v":1484588.26,"d":"$1,484,588.26"},{"v":601367.07,"d":"$601,367.07"},{"v":230724.57,"d":"$230,724.57"},{"v":3028699.7099999995,"d":"$3,028,699.71"},{"v":34724212.19,"d":"$34,724,212.19"},{"v":53820.079999999994,"d":"$53,820.08"},{"v":184.84,"d":"$184.84"},{"v":1142564.17,"d":"$1,142,564.17"},{"v":34724212.0632,"d":"$34,724,212.06"}]
["34049112002","NORTH SHORE SD 112",3642.72,{"v":50479754.05,"d":"$50,479,754.05"},{"v":78210149.27999999,"d":"$78,210,149.28"},{"v":1.5493369718587207,"d":"155%"},4,{"v":3215.48,"d":"$3,215.48"},{"v":3373338.44,"d":"$3,373,338.44"},{"v":3376553.92,"d":"$3,376,553.92"},{"v":1.04526,"d":"1.05"},{"v":12273798.17,"d":"$12,273,798.17"},{"v":2454759.63,"d":"$2,454,759.63"},{"v":1326581.9,"d":"$1,326,581.90"},{"v":589672.94,"d":"$589,672.94"},{"v":437102.77,"d":"$437,102.77"},{"v":808335.78,"d":"$808,335.78"},{"v":310066.5,"d":"$310,066.50"},{"v":502329.33,"d":"$502,329.33"},{"v":680855.64,"d":"$680,855.64"},{"v":376591.77,"d":"$376,591.77"},{"v":1010070.61,"d":"$1,010,070.61"},{"v":869673.09,"d":"$869,673.09"},{"v":602771.52,"d":"$602,771.52"},{"v":22242609.65,"d":"$22,242,609.65"},{"v":324807.3,"d":"$324,807.30"},{"v":455339.99999999994,"d":"$455,340.00"},{"v":1183884,"d":"$1,183,884.00"},{"v":123852.48,"d":"$123,852.48"},{"v":1039996.55,"d":"$1,039,996.55"},{"v":604589.85,"d":"$604,589.85"},{"v":4957741.92,"d":"$4,957,741.92"},{"v":3413228.6399999997,"d":"$3,413,228.64"},{"v":9233897.431079999,"d":"$9,233,897.43"},{"v":21337338.171079997,"d":"$21,337,338.17"},{"v":3467432.31,"d":"$3,467,432.31"},{"v":17869905.861080006,"d":"$17,869,905.86"},{"v":21494274.151080005,"d":"$21,494,274.15"},{"v":396247.87,"d":"$396,247.87"},{"v":396247.87,"d":"$396,247.87"},{"v":412343.04,"d":"$412,343.04"},{"v":412343.04,"d":"$412,343.04"},{"v":381685.57,"d":"$381,685.57"},{"v":381685.57,"d":"$381,685.57"},{"v":397780.74,"d":"$397,780.74"},{"v":397780.74,"d":"$397,780.74"},{"v":477490.18,"d":"$477,490.18"},{"v":1979706.49,"d":"$1,979,706.49"},{"v":801926.25,"d":"$801,926.25"},{"v":307632.77,"d":"$307,632.77"},{"v":6742870.130000001,"d":"$6,742,870.13"},{"v":50479754.05,"d":"$50,479,754.05"},{"v":417207,"d":"$417,207.00"},{"v":234399.92,"d":"$234,399.92"},{"v":1852628.3599999999,"d":"$1,852,628.36"},{"v":50479753.931080006,"d":"$50,479,753.93"}]
["34049113017","TOWNSHIP HIGH SCHOOL DIST 113",3349.82,{"v":49110896.08,"d":"$49,110,896.08"},{"v":98236810.94999999,"d":"$98,236,810.95"},{"v":2.000305813805057,"d":"200%"},4,{"v":3128.28,"d":"$3,128.28"},{"v":1854468.5199999998,"d":"$1,854,468.52"},{"v":1857596.7999999998,"d":"$1,857,596.80"},{"v":1.04526,"d":"1.05"},{"v":11595229.67,"d":"$11,595,229.67"},{"v":3864690.04,"d":"$3,864,690.04"},{"v":1403399.21,"d":"$1,403,399.21"},{"v":467799.73,"d":"$467,799.73"},{"v":371920.91,"d":"$371,920.91"},{"v":1198900.04,"d":"$1,198,900.04"},{"v":285133.31,"d":"$285,133.31"},{"v":519715.27,"d":"$519,715.27"},{"v":469613.66,"d":"$469,613.66"},{"v":346476.84,"d":"$346,476.84"},{"v":696686.52,"d":"$696,686.52"},{"v":599848.68,"d":"$599,848.68"},{"v":623633.82,"d":"$623,633.82"},{"v":22443047.7,"d":"$22,443,047.70"},{"v":301483.8,"d":"$301,483.80"},{"v":418727.49999999994,"d":"$418,727.50"},{"v":1088691.5,"d":"$1,088,691.50"},{"v":113893.87999999999,"d":"$113,893.88"},{"v":956373.61,"d":"$956,373.61"},{"v":2877495.38,"d":"$2,877,495.38"},{"v":4559105.02,"d":"$4,559,105.02"},{"v":3138781.34,"d":"$3,138,781.34"},{"v":8579690.87148,"d":"$8,579,690.87"},{"v":22034242.901479997,"d":"$22,034,242.90"},{"v":3188626.66,"d":"$3,188,626.66"},{"v":18845616.241479997,"d":"$18,845,616.24"},{"v":22178560.141479995,"d":"$22,178,560.14"},{"v":264420.72,"d":"$264,420.72"},{"v":264420.72,"d":"$264,420.72"},{"v":275917.28,"d":"$275,917.28"},{"v":275917.28,"d":"$275,917.28"},{"v":106534.72,"d":"$106,534.72"},{"v":106534.72,"d":"$106,534.72"},{"v":111133.34,"d":"$111,133.34"},{"v":111133.34,"d":"$111,133.34"},{"v":133360.01,"d":"$133,360.01"},{"v":1820287.62,"d":"$1,820,287.62"},{"v":737349.92,"d":"$737,349.92"},{"v":282278.42,"d":"$282,278.42"},{"v":4489288.09,"d":"$4,489,288.09"},{"v":49110896.08,"d":"$49,110,896.08"},{"v":147399.68999999997,"d":"$147,399.69"},{"v":28945.149999999994,"d":"$28,945.15"},{"v":916583.0599999999,"d":"$916,583.06"},{"v":49110895.93147999,"d":"$49,110,895.93"}]
["34049114002","FOX LAKE GRADE SCHOOL DIST 114",626.71,{"v":9460023.12,"d":"$9,460,023.12"},{"v":9305275.08,"d":"$9,305,275.08"},{"v":0.9836418962155772,"d":"98%"},3,{"v":10750.47,"d":"$10,750.47"},{"v":1244181.1500000004,"d":"$1,244,181.15"},{"v":1254931.6200000003,"d":"$1,254,931.62"},{"v":1.04526,"d":"1.05"},{"v":2279242.64,"d":"$2,279,242.64"},{"v":455848.52,"d":"$455,848.52"},{"v":228142.93,"d":"$228,142.93"},{"v":100586.97,"d":"$100,586.97"},{"v":84481.85,"d":"$84,481.85"},{"v":142970.95,"d":"$142,970.95"},{"v":52423.61,"d":"$52,423.61"},{"v":85998.28,"d":"$85,998.28"},{"v":116141.01,"d":"$116,141.01"},{"v":64576.33,"d":"$64,576.33"},{"v":172298.81,"d":"$172,298.81"},{"v":148349.67,"d":"$148,349.67"},{"v":103193.88,"d":"$103,193.88"},{"v":4034255.45,"d":"$4,034,255.45"},{"v":55886.399999999994,"d":"$55,886.40"},{"v":78338.75,"d":"$78,338.75"},{"v":203680.74999999997,"d":"$203,680.75"},{"v":21308.14,"d":"$21,308.14"},{"v":178925.7,"d":"$178,925.70"},{"v":108184.76,"d":"$108,184.76"},{"v":852952.3099999998,"d":"$852,952.31"},{"v":587227.2699999999,"d":"$587,227.27"},{"v":1758527.69844,"d":"$1,758,527.70"},{"v":3845031.7784399996,"d":"$3,845,031.78"},{"v":596552.71,"d":"$596,552.71"},{"v":3248479.0684399996,"d":"$3,248,479.07"},{"v":3872031.7484399998,"d":"$3,872,031.75"},{"v":195441.4,"d":"$195,441.40"},{"v":195441.4,"d":"$195,441.40"},{"v":203872.21,"d":"$203,872.21"},{"v":203872.21,"d":"$203,872.21"},{"v":42154.02,"d":"$42,154.02"},{"v":42154.02,"d":"$42,154.02"},{"v":43686.9,"d":"$43,686.90"},{"v":43686.9,"d":"$43,686.90"},{"v":52884.14,"d":"$52,884.14"},{"v":340297.98,"d":"$340,297.98"},{"v":137845.62,"d":"$137,845.62"},{"v":52398.98,"d":"$52,398.98"},{"v":1553735.7800000003,"d":"$1,553,735.78"},{"v":9460023.12,"d":"$9,460,023.12"},{"v":470764.99000000005,"d":"$470,764.99"},{"v":2911.87,"d":"$2,911.87"},{"v":339619.01999999996,"d":"$339,619.02"},{"v":9460022.978440002,"d":"$9,460,022.98"}]
["34049115016","LAKE FOREST COMM H S DISTRICT 115",1482.16,{"v":21014648.73,"d":"$21,014,648.73"},{"v":39764371.57999999,"d":"$39,764,371.58"},{"v":1.892221568435419,"d":"189%"},4,{"v":1338.6,"d":"$1,338.60"},{"v":881134.4200000002,"d":"$881,134.42"},{"v":882473.0200000001,"d":"$882,473.02"},{"v":1.04526,"d":"1.05"},{"v":5034296.45,"d":"$5,034,296.45"},{"v":1677931,"d":"$1,677,931.00"},{"v":621217.93,"d":"$621,217.93"},{"v":207072.64,"d":"$207,072.64"},{"v":156335.64,"d":"$156,335.64"},{"v":530058.87,"d":"$530,058.87"},{"v":125944.53,"d":"$125,944.53"},{"v":230053.17,"d":"$230,053.17"},{"v":207875.58,"d":"$207,875.58"},{"v":153368.78,"d":"$153,368.78"},{"v":308389.91,"d":"$308,389.91"},{"v":265524.41,"d":"$265,524.41"},{"v":276052.96,"d":"$276,052.96"},{"v":9794121.870000001,"d":"$9,794,121.87"},{"v":133394.4,"d":"$133,394.40"},{"v":185269.99999999997,"d":"$185,270.00"},{"v":481701.99999999994,"d":"$481,702.00"},{"v":50393.439999999995,"d":"$50,393.44"},{"v":423156.68,"d":"$423,156.68"},{"v":1273175.44,"d":"$1,273,175.44"},{"v":2017219.7599999998,"d":"$2,017,219.76"},{"v":1388783.92,"d":"$1,388,783.92"},{"v":3638565.60924,"d":"$3,638,565.61"},{"v":9591661.24924,"d":"$9,591,661.25"},{"v":1410838.46,"d":"$1,410,838.46"},{"v":8180822.78924,"d":"$8,180,822.79"},{"v":9655515.789239999,"d":"$9,655,515.79"},{"v":46752.65,"d":"$46,752.65"},{"v":46752.65,"d":"$46,752.65"},{"v":49051.96,"d":"$49,051.96"},{"v":49051.96,"d":"$49,051.96"},{"v":21460.23,"d":"$21,460.23"},{"v":21460.23,"d":"$21,460.23"},{"v":22993.1,"d":"$22,993.10"},{"v":22993.1,"d":"$22,993.10"},{"v":27591.72,"d":"$27,591.72"},{"v":805525.17,"d":"$805,525.17"},{"v":326296.74,"d":"$326,296.74"},{"v":125081.45,"d":"$125,081.45"},{"v":1565010.96,"d":"$1,565,010.96"},{"v":21014648.73,"d":"$21,014,648.73"},{"v":32370.229999999996,"d":"$32,370.23"},{"v":27.990000000000002,"d":"$27.99"},{"v":498065.09,"d":"$498,065.09"},{"v":21014648.61924,"d":"$21,014,648.62"}]
["34049116026","ROUND LAKE AREA SCHS - DIST 116",6502.03,{"v":117315678.58,"d":"$117,315,678.58"},{"v":85176129.39999999,"d":"$85,176,129.40"},{"v":0.726042166153577,"d":"73%"},1,{"v":3161453.25,"d":"$3,161,453.25"},{"v":74387961.55000001,"d":"$74,387,961.55"},{"v":77549414.80000001,"d":"$77,549,414.80"},{"v":1.04526,"d":"1.05"},{"v":25158567.95,"d":"$25,158,567.95"},{"v":6209134.33,"d":"$6,209,134.33"},{"v":2490433.76,"d":"$2,490,433.76"},{"v":1002855.3,"d":"$1,002,855.30"},{"v":1036598.47,"d":"$1,036,598.47"},{"v":1759622.81,"d":"$1,759,622.81"},{"v":553644.51,"d":"$553,644.51"},{"v":935425.39,"d":"$935,425.39"},{"v":1110914.03,"d":"$1,110,914.03"},{"v":672463.12,"d":"$672,463.12"},{"v":1648075.65,"d":"$1,648,075.65"},{"v":1418996.89,"d":"$1,418,996.89"},{"v":1122466.38,"d":"$1,122,466.38"},{"v":45119198.589999996,"d":"$45,119,198.59"},{"v":580060.7999999999,"d":"$580,060.80"},{"v":812753.75,"d":"$812,753.75"},{"v":2113159.75,"d":"$2,113,159.75"},{"v":221069.02000000002,"d":"$221,069.02"},{"v":3712659.13,"d":"$3,712,659.13"},{"v":2636730.8200000003,"d":"$2,636,730.82"},{"v":8849262.83,"d":"$8,849,262.83"},{"v":6092402.11,"d":"$6,092,402.11"},{"v":21731888.45592,"d":"$21,731,888.46"},{"v":46749986.665920004,"d":"$46,749,986.67"},{"v":6189152.31,"d":"$6,189,152.31"},{"v":40560834.35592,"d":"$40,560,834.36"},{"v":47030107.695920005,"d":"$47,030,107.70"},{"v":2820487.77,"d":"$2,820,487.77"},{"v":2820487.77,"d":"$2,820,487.77"},{"v":2937752.61,"d":"$2,937,752.61"},{"v":2937752.61,"d":"$2,937,752.61"},{"v":1525209.42,"d":"$1,525,209.42"},{"v":1525209.42,"d":"$1,525,209.42"},{"v":1588823.68,"d":"$1,588,823.68"},{"v":1588823.68,"d":"$1,588,823.68"},{"v":1906894.99,"d":"$1,906,894.99"},{"v":3534040.52,"d":"$3,534,040.52"},{"v":1431545.47,"d":"$1,431,545.47"},{"v":549344.23,"d":"$549,344.23"},{"v":25166372.169999998,"d":"$25,166,372.17"},{"v":117315678.58,"d":"$117,315,678.58"},{"v":16099514.14,"d":"$16,099,514.14"},{"v":2541350.24,"d":"$2,541,350.24"},{"v":3886821.44,"d":"$3,886,821.44"},{"v":117315678.45592,"d":"$117,315,678.46"}]
["34049117016","ANTIOCH COMM HIGH SCH DIST 117",2584.49,{"v":39070181.38,"d":"$39,070,181.38"},{"v":31359304.88,"d":"$31,359,304.88"},{"v":0.8026403710542487,"d":"80%"},2,{"v":222071.66,"d":"$222,071.66"},{"v":9066793.3,"d":"$9,066,793.30"},{"v":9288864.96,"d":"$9,288,864.96"},{"v":1.04526,"d":"1.05"},{"v":9061733.61,"d":"$9,061,733.61"},{"v":3020275.81,"d":"$3,020,275.81"},{"v":1083149.21,"d":"$1,083,149.21"},{"v":360490.83,"d":"$360,490.83"},{"v":292007.75,"d":"$292,007.75"},{"v":924916.91,"d":"$924,916.91"},{"v":219923.45,"d":"$219,923.45"},{"v":401118.35,"d":"$401,118.35"},{"v":361888.66,"d":"$361,888.66"},{"v":267308.75,"d":"$267,308.75"},{"v":536873.13,"d":"$536,873.13"},{"v":462248.98,"d":"$462,248.98"},{"v":481323.12,"d":"$481,323.12"},{"v":17473258.56,"d":"$17,473,258.56"},{"v":232604.09999999998,"d":"$232,604.10"},{"v":323061.25,"d":"$323,061.25"},{"v":839959.2499999999,"d":"$839,959.25"},{"v":87872.65999999999,"d":"$87,872.66"},{"v":1475743.79,"d":"$1,475,743.79"},{"v":2220076.9099999997,"d":"$2,220,076.91"},{"v":3517490.8899999997,"d":"$3,517,490.89"},{"v":2421667.13,"d":"$2,421,667.13"},{"v":6716877.480359999,"d":"$6,716,877.48"},{"v":17835353.460359998,"d":"$17,835,353.46"},{"v":2460124.34,"d":"$2,460,124.34"},{"v":15375229.120360002,"d":"$15,375,229.12"},{"v":17946698.68036,"d":"$17,946,698.68"},{"v":288946.7,"d":"$288,946.70"},{"v":288946.7,"d":"$288,946.70"},{"v":301209.69,"d":"$301,209.69"},{"v":301209.69,"d":"$301,209.69"},{"v":52117.7,"d":"$52,117.70"},{"v":52117.7,"d":"$52,117.70"},{"v":54417.01,"d":"$54,417.01"},{"v":54417.01,"d":"$54,417.01"},{"v":65913.57,"d":"$65,913.57"},{"v":1404112.39,"d":"$1,404,112.39"},{"v":568768.44,"d":"$568,768.44"},{"v":218047.4,"d":"$218,047.40"},{"v":3650224,"d":"$3,650,224.00"},{"v":39070181.38,"d":"$39,070,181.38"},{"v":246875.75,"d":"$246,875.75"},{"v":3233.04,"d":"$3,233.04"},{"v":827417.62,"d":"$827,417.62"},{"v":39070181.24036,"d":"$39,070,181.24"}]
["34049118026","WAUCONDA COMM UNIT S DIST 118",4225.05,{"v":64313708.04,"d":"$64,313,708.04"},{"v":47606490.65,"d":"$47,606,490.65"},{"v":0.7402230737557703,"d":"74%"},1,{"v":1087037.56,"d":"$1,087,037.56"},{"v":11550558.459999997,"d":"$11,550,558.46"},{"v":12637596.019999998,"d":"$12,637,596.02"},{"v":1.04526,"d":"1.05"},{"v":14825802.55,"d":"$14,825,802.55"},{"v":3653665.55,"d":"$3,653,665.55"},{"v":1616515.02,"d":"$1,616,515.02"},{"v":652059.43,"d":"$652,059.43"},{"v":533350.91,"d":"$533,350.91"},{"v":1147335.78,"d":"$1,147,335.78"},{"v":359293.55,"d":"$359,293.55"},{"v":606955.4,"d":"$606,955.40"},{"v":722935.72,"d":"$722,935.72"},{"v":436821.61,"d":"$436,821.61"},{"v":1072497.71,"d":"$1,072,497.71"},{"v":923422.97,"d":"$923,422.97"},{"v":728317.88,"d":"$728,317.88"},{"v":27278974.08,"d":"$27,278,974.08"},{"v":377082,"d":"$377,082.00"},{"v":528131.25,"d":"$528,131.25"},{"v":1373141.2499999998,"d":"$1,373,141.25"},{"v":143651.69999999998,"d":"$143,651.70"},{"v":2412503.55,"d":"$2,412,503.55"},{"v":1700838.2799999998,"d":"$1,700,838.28"},{"v":5750293.05,"d":"$5,750,293.05"},{"v":3958871.8499999996,"d":"$3,958,871.85"},{"v":11497610.452199997,"d":"$11,497,610.45"},{"v":27742123.382199995,"d":"$27,742,123.38"},{"v":4021740.59,"d":"$4,021,740.59"},{"v":23720382.7922,"d":"$23,720,382.79"},{"v":27924147.352199998,"d":"$27,924,147.35"},{"v":846146.33,"d":"$846,146.33"},{"v":846146.33,"d":"$846,146.33"},{"v":881402.42,"d":"$881,402.42"},{"v":881402.42,"d":"$881,402.42"},{"v":388583.5,"d":"$388,583.50"},{"v":388583.5,"d":"$388,583.50"},{"v":404678.68,"d":"$404,678.68"},{"v":404678.68,"d":"$404,678.68"},{"v":485920.99,"d":"$485,920.99"},{"v":2296244.93,"d":"$2,296,244.93"},{"v":930147.52,"d":"$930,147.52"},{"v":356651.17,"d":"$356,651.17"},{"v":9110586.469999999,"d":"$9,110,586.47"},{"v":64313708.04,"d":"$64,313,708.04"},{"v":1298360.21,"d":"$1,298,360.21"},{"v":327818.76,"d":"$327,818.76"},{"v":1620790.36,"d":"$1,620,790.36"},{"v":64313707.9022,"d":"$64,313,707.90"}]
["34049120013","MUNDELEIN CONS HIGH SCH DIST 120",2187,{"v":35862506.72,"d":"$35,862,506.72"},{"v":26607342.64,"d":"$26,607,342.64"},{"v":0.741926459512142,"d":"74%"},1,{"v":592591.66,"d":"$592,591.66"},{"v":2301666.49,"d":"$2,301,666.49"},{"v":2894258.1500000004,"d":"$2,894,258.15"},{"v":1.04526,"d":"1.05"},{"v":7991998.01,"d":"$7,991,998.01"},{"v":2663732.93,"d":"$2,663,732.93"},{"v":916317.4,"d":"$916,317.40"},{"v":305159.68,"d":"$305,159.68"},{"v":279353.3,"d":"$279,353.30"},{"v":782553.13,"d":"$782,553.13"},{"v":186039.9,"d":"$186,039.90"},{"v":339336.19,"d":"$339,336.19"},{"v":306342.96,"d":"$306,342.96"},{"v":226327.61,"d":"$226,327.61"},{"v":454469.34,"d":"$454,469.34"},{"v":391299.14,"d":"$391,299.14"},{"v":407187.44,"d":"$407,187.44"},{"v":15250117.030000001,"d":"$15,250,117.03"},{"v":196830,"d":"$196,830.00"},{"v":273375,"d":"$273,375.00"},{"v":710775,"d":"$710,775.00"},{"v":74358,"d":"$74,358.00"},{"v":1248777,"d":"$1,248,777.00"},{"v":1878633,"d":"$1,878,633.00"},{"v":2976507,"d":"$2,976,507.00"},{"v":2049219,"d":"$2,049,219.00"},{"v":6301333.791,"d":"$6,301,333.79"},{"v":15709807.791000001,"d":"$15,709,807.79"},{"v":2081761.56,"d":"$2,081,761.56"},{"v":13628046.231,"d":"$13,628,046.23"},{"v":15804028.311,"d":"$15,804,028.31"},{"v":481322.37,"d":"$481,322.37"},{"v":481322.37,"d":"$481,322.37"},{"v":501249.72,"d":"$501,249.72"},{"v":501249.72,"d":"$501,249.72"},{"v":185477.72,"d":"$185,477.72"},{"v":185477.72,"d":"$185,477.72"},{"v":193142.09,"d":"$193,142.09"},{"v":193142.09,"d":"$193,142.09"},{"v":231463.94,"d":"$231,463.94"},{"v":1188743.62,"d":"$1,188,743.62"},{"v":481528.3,"d":"$481,528.30"},{"v":184241.6,"d":"$184,241.60"},{"v":4808361.26,"d":"$4,808,361.26"},{"v":35862506.72,"d":"$35,862,506.72"},{"v":600828.23,"d":"$600,828.23"},{"v":40315.369999999995,"d":"$40,315.37"},{"v":623097.07,"d":"$623,097.07"},{"v":35862506.601,"d":"$35,862,506.60"}]
["34049121017","WARREN TWP HIGH SCH DIST 121",3798.15,{"v":60561071.87,"d":"$60,561,071.87"},{"v":43388074.85,"d":"$43,388,074.85"},{"v":0.7164350549002263,"d":"72%"},1,{"v":1546746.62,"d":"$1,546,746.62"},{"v":8104766.880000002,"d":"$8,104,766.88"},{"v":9651513.500000002,"d":"$9,651,513.50"},{"v":1.04526,"d":"1.05"},{"v":13707873.65,"d":"$13,707,873.65"},{"v":4568834.28,"d":"$4,568,834.28"},{"v":1592028.13,"d":"$1,592,028.13"},{"v":530676.04,"d":"$530,676.04"},{"v":465257.8,"d":"$465,257.80"},{"v":1360066.59,"d":"$1,360,066.59"},{"v":323492.06,"d":"$323,492.06"},{"v":589569.47,"d":"$589,569.47"},{"v":532733.77,"d":"$532,733.77"},{"v":393046.31,"d":"$393,046.31"},{"v":790327.19,"d":"$790,327.19"},{"v":680473.51,"d":"$680,473.51"},{"v":707455.58,"d":"$707,455.58"},{"v":26241834.379999995,"d":"$26,241,834.38"},{"v":341833.5,"d":"$341,833.50"},{"v":474768.75,"d":"$474,768.75"},{"v":1234398.75,"d":"$1,234,398.75"},{"v":129137.1,"d":"$129,137.10"},{"v":2168743.65,"d":"$2,168,743.65"},{"v":3262610.85,"d":"$3,262,610.85"},{"v":5169282.15,"d":"$5,169,282.15"},{"v":3558866.5500000003,"d":"$3,558,866.55"},{"v":10564104.141600002,"d":"$10,564,104.14"},{"v":26903745.441600002,"d":"$26,903,745.44"},{"v":3615383.02,"d":"$3,615,383.02"},{"v":23288362.421600003,"d":"$23,288,362.42"},{"v":27067377.671600003,"d":"$27,067,377.67"},{"v":710487,"d":"$710,487.00"},{"v":710487,"d":"$710,487.00"},{"v":740378.04,"d":"$740,378.04"},{"v":740378.04,"d":"$740,378.04"},{"v":211536.58,"d":"$211,536.58"},{"v":211536.58,"d":"$211,536.58"},{"v":220733.82,"d":"$220,733.82"},{"v":220733.82,"d":"$220,733.82"},{"v":265187.16,"d":"$265,187.16"},{"v":2064014.55,"d":"$2,064,014.55"},{"v":836077.19,"d":"$836,077.19"},{"v":320309.94,"d":"$320,309.94"},{"v":7251859.72,"d":"$7,251,859.72"},{"v":60561071.87,"d":"$60,561,071.87"},{"v":898410.14,"d":"$898,410.14"},{"v":112457.91,"d":"$112,457.91"},{"v":1465707.71,"d":"$1,465,707.71"},{"v":60561071.77159999,"d":"$60,561,071.77"}]
["34049124016","GRANT COMM H S DISTRICT 124",1815,{"v":28701098.21,"d":"$28,701,098.21"},{"v":19326400.42,"d":"$19,326,400.42"},{"v":0.6733679763259485,"d":"67%"},1,{"v":1202817.52,"d":"$1,202,817.52"},{"v":5872879.869999999,"d":"$5,872,879.87"},{"v":7075697.389999999,"d":"$7,075,697.39"},{"v":1.04526,"d":"1.05"},{"v":6577700.24,"d":"$6,577,700.24"},{"v":2192347.48,"d":"$2,192,347.48"},{"v":760384.16,"d":"$760,384.16"},{"v":253181.93,"d":"$253,181.93"},{"v":219571.87,"d":"$219,571.87"},{"v":650038.41,"d":"$650,038.41"},{"v":154713.59,"d":"$154,713.59"},{"v":281590.05,"d":"$281,590.05"},{"v":254163.66,"d":"$254,163.66"},{"v":187830.19,"d":"$187,830.19"},{"v":377059.73,"d":"$377,059.73"},{"v":324649.28,"d":"$324,649.28"},{"v":337894.79,"d":"$337,894.79"},{"v":12571125.379999999,"d":"$12,571,125.38"},{"v":163350,"d":"$163,350.00"},{"v":226875,"d":"$226,875.00"},{"v":589875,"d":"$589,875.00"},{"v":61710,"d":"$61,710.00"},{"v":1036365,"d":"$1,036,365.00"},{"v":1559085,"d":"$1,559,085.00"},{"v":2470215,"d":"$2,470,215.00"},{"v":1700655,"d":"$1,700,655.00"},{"v":4995552.950999999,"d":"$4,995,552.95"},{"v":12803682.951,"d":"$12,803,682.95"},{"v":1727662.2,"d":"$1,727,662.20"},{"v":11076020.751,"d":"$11,076,020.75"},{"v":12881876.941,"d":"$12,881,876.94"},{"v":359458.9,"d":"$359,458.90"},{"v":359458.9,"d":"$359,458.90"},{"v":374021.2,"d":"$374,021.20"},{"v":374021.2,"d":"$374,021.20"},{"v":45219.77,"d":"$45,219.77"},{"v":45219.77,"d":"$45,219.77"},{"v":47519.08,"d":"$47,519.08"},{"v":47519.08,"d":"$47,519.08"},{"v":56716.33,"d":"$56,716.33"},{"v":986404.28,"d":"$986,404.28"},{"v":399566.04,"d":"$399,566.04"},{"v":152971.24,"d":"$152,971.24"},{"v":3248095.79,"d":"$3,248,095.79"},{"v":28701098.21,"d":"$28,701,098.21"},{"v":670960.25,"d":"$670,960.25"},{"v":26478.28,"d":"$26,478.28"},{"v":729805.4900000001,"d":"$729,805.49"},{"v":28701098.110999998,"d":"$28,701,098.11"}]
["34049125013","ADLAI E STEVENSON DIST 125",4495.5,{"v":65437633.45,"d":"$65,437,633.45"},{"v":94732352.51,"d":"$94,732,352.51"},{"v":1.4476738768736754,"d":"145%"},4,{"v":4168.27,"d":"$4,168.27"},{"v":2566165.6299999994,"d":"$2,566,165.63"},{"v":2570333.8999999994,"d":"$2,570,333.90"},{"v":1.04526,"d":"1.05"},{"v":15451643.28,"d":"$15,451,643.28"},{"v":5150032.69,"d":"$5,150,032.69"},{"v":1883774.2,"d":"$1,883,774.20"},{"v":627924.73,"d":"$627,924.73"},{"v":493725.38,"d":"$493,725.38"},{"v":1609874.74,"d":"$1,609,874.74"},{"v":382948.11,"d":"$382,948.11"},{"v":697610.64,"d":"$697,610.64"},{"v":630359.55,"d":"$630,359.55"},{"v":465073.76,"d":"$465,073.76"},{"v":935158.08,"d":"$935,158.08"},{"v":805173.23,"d":"$805,173.23"},{"v":837099.88,"d":"$837,099.88"},{"v":29970398.269999996,"d":"$29,970,398.27"},{"v":404595,"d":"$404,595.00"},{"v":561937.5,"d":"$561,937.50"},{"v":1461037.5,"d":"$1,461,037.50"},{"v":152847,"d":"$152,847.00"},{"v":1283465.25,"d":"$1,283,465.25"},{"v":3861634.5,"d":"$3,861,634.50"},{"v":6118375.5,"d":"$6,118,375.50"},{"v":4212283.5,"d":"$4,212,283.50"},{"v":11410487.681999998,"d":"$11,410,487.68"},{"v":29466663.431999996,"d":"$29,466,663.43"},{"v":4279176.54,"d":"$4,279,176.54"},{"v":25187486.891999997,"d":"$25,187,486.89"},{"v":29660338.961999997,"d":"$29,660,338.96"},{"v":275150.84,"d":"$275,150.84"},{"v":275150.84,"d":"$275,150.84"},{"v":286647.39,"d":"$286,647.39"},{"v":286647.39,"d":"$286,647.39"},{"v":163251.05,"d":"$163,251.05"},{"v":163251.05,"d":"$163,251.05"},{"v":170148.99,"d":"$170,148.99"},{"v":170148.99,"d":"$170,148.99"},{"v":203872.21,"d":"$203,872.21"},{"v":2443400.82,"d":"$2,443,400.82"},{"v":989756.44,"d":"$989,756.44"},{"v":379470.09,"d":"$379,470.09"},{"v":5806896.1,"d":"$5,806,896.10"},{"v":65437633.45,"d":"$65,437,633.45"},{"v":159819.18000000002,"d":"$159,819.18"},{"v":36337.04,"d":"$36,337.04"},{"v":932127.1599999999,"d":"$932,127.16"},{"v":65437633.331999995,"d":"$65,437,633.33"}]
["34049126017","ZION-BENTON TWP H S DIST 126",2539.48,{"v":43648796.24,"d":"$43,648,796.24"},{"v":36478130.28,"d":"$36,478,130.28"},{"v":0.8357190443334893,"d":"84%"},2,{"v":212743.36,"d":"$212,743.36"},{"v":22599900.409999996,"d":"$22,599,900.41"},{"v":22812643.769999996,"d":"$22,812,643.77"},{"v":1.04526,"d":"1.05"},{"v":9671214.63,"d":"$9,671,214.63"},{"v":3223415.83,"d":"$3,223,415.83"},{"v":1063867.14,"d":"$1,063,867.14"},{"v":354622.38,"d":"$354,622.38"},{"v":347368.56,"d":"$347,368.56"},{"v":908800.26,"d":"$908,800.26"},{"v":216087.58,"d":"$216,087.58"},{"v":393977.7,"d":"$393,977.70"},{"v":355997.45,"d":"$355,997.45"},{"v":262651.8,"d":"$262,651.80"},{"v":528133.33,"d":"$528,133.33"},{"v":454724,"d":"$454,724.00"},{"v":472754.67,"d":"$472,754.67"},{"v":18253615.330000002,"d":"$18,253,615.33"},{"v":228553.2,"d":"$228,553.20"},{"v":317435,"d":"$317,435.00"},{"v":825331,"d":"$825,331.00"},{"v":86342.32,"d":"$86,342.32"},{"v":1450043.08,"d":"$1,450,043.08"},{"v":2181413.32,"d":"$2,181,413.32"},{"v":3456232.28,"d":"$3,456,232.28"},{"v":2379492.7600000002,"d":"$2,379,492.76"},{"v":7759213.44672,"d":"$7,759,213.45"},{"v":18684056.406719998,"d":"$18,684,056.41"},{"v":2417280.22,"d":"$2,417,280.22"},{"v":16266776.18672,"d":"$16,266,776.19"},{"v":18793462.50672,"d":"$18,793,462.51"},{"v":844613.45,"d":"$844,613.45"},{"v":844613.45,"d":"$844,613.45"},{"v":879869.55,"d":"$879,869.55"},{"v":879869.55,"d":"$879,869.55"},{"v":187010.6,"d":"$187,010.60"},{"v":187010.6,"d":"$187,010.60"},{"v":195441.4,"d":"$195,441.40"},{"v":195441.4,"d":"$195,441.40"},{"v":234529.68,"d":"$234,529.68"},{"v":1380352.84,"d":"$1,380,352.84"},{"v":559144.08,"d":"$559,144.08"},{"v":213821.67,"d":"$213,821.67"},{"v":6601718.27,"d":"$6,601,718.27"},{"v":43648796.24,"d":"$43,648,796.24"},{"v":2595062.32,"d":"$2,595,062.32"},{"v":144105.08,"d":"$144,105.08"},{"v":1211428.5700000003,"d":"$1,211,428.57"},{"v":43648796.10672,"d":"$43,648,796.11"}]
["34049127016","GRAYSLAKE COMM HIGH SCH DIST 127",2705.49,{"v":41403004.69,"d":"$41,403,004.69"},{"v":33743577.23,"d":"$33,743,577.23"},{"v":0.8150031014089668,"d":"82%"},2,{"v":244361.07,"d":"$244,361.07"},{"v":17361430.490000002,"d":"$17,361,430.49"},{"v":17605791.560000002,"d":"$17,605,791.56"},{"v":1.04526,"d":"1.05"},{"v":9520311.49,"d":"$9,520,311.49"},{"v":3173119.81,"d":"$3,173,119.81"},{"v":1133450.25,"d":"$1,133,450.25"},{"v":377257.85,"d":"$377,257.85"},{"v":311496.24,"d":"$311,496.24"},{"v":968790.03,"d":"$968,790.03"},{"v":230152.45,"d":"$230,152.45"},{"v":419746.14,"d":"$419,746.14"},{"v":378720.69,"d":"$378,720.69"},{"v":279727.27,"d":"$279,727.27"},{"v":561843.97,"d":"$561,843.97"},{"v":483748.94,"d":"$483,748.94"},{"v":503675.58,"d":"$503,675.58"},{"v":18342040.709999997,"d":"$18,342,040.71"},{"v":243494.10000000003,"d":"$243,494.10"},{"v":338186.25000000006,"d":"$338,186.25"},{"v":879284.2500000001,"d":"$879,284.25"},{"v":91986.66,"d":"$91,986.66"},{"v":1544834.79,"d":"$1,544,834.79"},{"v":2324015.91,"d":"$2,324,015.91"},{"v":3682171.89,"d":"$3,682,171.89"},{"v":2535044.1300000004,"d":"$2,535,044.13"},{"v":7142364.81036,"d":"$7,142,364.81"},{"v":18781382.79036,"d":"$18,781,382.79"},{"v":2575301.82,"d":"$2,575,301.82"},{"v":16206080.970360003,"d":"$16,206,080.97"},{"v":18897940.950360004,"d":"$18,897,940.95"},{"v":327268.55,"d":"$327,268.55"},{"v":327268.55,"d":"$327,268.55"},{"v":341064.41,"d":"$341,064.41"},{"v":341064.41,"d":"$341,064.41"},{"v":99636.79,"d":"$99,636.79"},{"v":99636.79,"d":"$99,636.79"},{"v":104235.41,"d":"$104,235.41"},{"v":104235.41,"d":"$104,235.41"},{"v":124929.21,"d":"$124,929.21"},{"v":1470025.96,"d":"$1,470,025.96"},{"v":595468.27,"d":"$595,468.27"},{"v":228189.14,"d":"$228,189.14"},{"v":4163022.9,"d":"$4,163,022.90"},{"v":41403004.69,"d":"$41,403,004.69"},{"v":368989.57000000007,"d":"$368,989.57"},{"v":32680.010000000002,"d":"$32,680.01"},{"v":791884.16,"d":"$791,884.16"},{"v":41403004.56036,"d":"$41,403,004.56"}]
["34049128016","LIBERTYVILLE COMM H SCH DIST 128",3344.49,{"v":48300986.92,"d":"$48,300,986.92"},{"v":80806748.28999999,"d":"$80,806,748.29"},{"v":1.6729833786592945,"d":"167%"},4,{"v":3076.69,"d":"$3,076.69"},{"v":2131116.3100000005,"d":"$2,131,116.31"},{"v":2134193.0000000005,"d":"$2,134,193.00"},{"v":1.04526,"d":"1.05"},{"v":11497142.63,"d":"$11,497,142.63"},{"v":3831997.63,"d":"$3,831,997.63"},{"v":1401722.5,"d":"$1,401,722.50"},{"v":466961.38,"d":"$466,961.38"},{"v":362885.65,"d":"$362,885.65"},{"v":1197109.31,"d":"$1,197,109.31"},{"v":284494,"d":"$284,494.00"},{"v":519094.34,"d":"$519,094.34"},{"v":468772.05,"d":"$468,772.05"},{"v":345855.92,"d":"$345,855.92"},{"v":695437.98,"d":"$695,437.98"},{"v":598773.68,"d":"$598,773.68"},{"v":622888.74,"d":"$622,888.74"},{"v":22293135.81,"d":"$22,293,135.81"},{"v":301004.1,"d":"$301,004.10"},{"v":418061.25,"d":"$418,061.25"},{"v":1086959.25,"d":"$1,086,959.25"},{"v":113712.65999999999,"d":"$113,712.66"},{"v":954851.89,"d":"$954,851.89"},{"v":2872916.9099999997,"d":"$2,872,916.91"},{"v":4551850.89,"d":"$4,551,850.89"},{"v":3133787.13,"d":"$3,133,787.13"},{"v":8404734.474359998,"d":"$8,404,734.47"},{"v":21837878.554359995,"d":"$21,837,878.55"},{"v":3183553.14,"d":"$3,183,553.14"},{"v":18654325.41436,"d":"$18,654,325.41"},{"v":21981966.16436,"d":"$21,981,966.16"},{"v":206171.52,"d":"$206,171.52"},{"v":206171.52,"d":"$206,171.52"},{"v":214602.33,"d":"$214,602.33"},{"v":214602.33,"d":"$214,602.33"},{"v":65147.13,"d":"$65,147.13"},{"v":65147.13,"d":"$65,147.13"},{"v":68212.88,"d":"$68,212.88"},{"v":68212.88,"d":"$68,212.88"},{"v":82008.74,"d":"$82,008.74"},{"v":1817221.87,"d":"$1,817,221.87"},{"v":736108.06,"d":"$736,108.06"},{"v":282278.42,"d":"$282,278.42"},{"v":4025884.81,"d":"$4,025,884.81"},{"v":48300986.92,"d":"$48,300,986.92"},{"v":124806.69,"d":"$124,806.69"},{"v":11635.770000000002,"d":"$11,635.77"},{"v":897919.37,"d":"$897,919.37"},{"v":48300986.78436001,"d":"$48,300,986.78"}]
["34049187026","NORTH CHICAGO SCHOOL DIST 187",3274,{"v":59298746.82,"d":"$59,298,746.82"},{"v":48518906.120000005,"d":"$48,518,906.12"},{"v":0.8182113235424358,"d":"82%"},2,{"v":388442.38,"d":"$388,442.38"},{"v":38068364.010000005,"d":"$38,068,364.01"},{"v":38456806.39000001,"d":"$38,456,806.39"},{"v":1.04526,"d":"1.05"},{"v":12880455.93,"d":"$12,880,455.93"},{"v":3030251.96,"d":"$3,030,251.96"},{"v":1239424.11,"d":"$1,239,424.11"},{"v":510569.82,"d":"$510,569.82"},{"v":531308.95,"d":"$531,308.95"},{"v":832647.9,"d":"$832,647.90"},{"v":278100.88,"d":"$278,100.88"},{"v":466315.61,"d":"$466,315.61"},{"v":571447.44,"d":"$571,447.44"},{"v":338404.8,"d":"$338,404.80"},{"v":847760.12,"d":"$847,760.12"},{"v":729923.4,"d":"$729,923.40"},{"v":559556.75,"d":"$559,556.75"},{"v":22816167.669999998,"d":"$22,816,167.67"},{"v":292635,"d":"$292,635.00"},{"v":409250,"d":"$409,250.00"},{"v":1064050,"d":"$1,064,050.00"},{"v":111316,"d":"$111,316.00"},{"v":1869454,"d":"$1,869,454.00"},{"v":1129323.5,"d":"$1,129,323.50"},{"v":4455914,"d":"$4,455,914.00"},{"v":3067738,"d":"$3,067,738.00"},{"v":11035237.611,"d":"$11,035,237.61"},{"v":23434918.111,"d":"$23,434,918.11"},{"v":3116455.12,"d":"$3,116,455.12"},{"v":20318462.991,"d":"$20,318,462.99"},{"v":23575968.861,"d":"$23,575,968.86"},{"v":1459295.84,"d":"$1,459,295.84"},{"v":1459295.84,"d":"$1,459,295.84"},{"v":1519844.36,"d":"$1,519,844.36"},{"v":1519844.36,"d":"$1,519,844.36"},{"v":782532.06,"d":"$782,532.06"},{"v":782532.06,"d":"$782,532.06"},{"v":814722.41,"d":"$814,722.41"},{"v":814722.41,"d":"$814,722.41"},{"v":977973.47,"d":"$977,973.47"},{"v":1778900.03,"d":"$1,778,900.03"},{"v":720584.91,"d":"$720,584.91"},{"v":276362.4,"d":"$276,362.40"},{"v":12906610.150000002,"d":"$12,906,610.15"},{"v":59298746.82,"d":"$59,298,746.82"},{"v":9344275.52,"d":"$9,344,275.52"},{"v":865994.85,"d":"$865,994.85"},{"v":1561485.4100000001,"d":"$1,561,485.41"},{"v":59298746.68100001,"d":"$59,298,746.68"}]
["34049220026","BARRINGTON C U SCHOOL DIST 220",8010.63,{"v":111707873.01,"d":"$111,707,873.01"},{"v":147621371.47000003,"d":"$147,621,371.47"},{"v":1.321494783602093,"d":"132%"},4,{"v":7115.61,"d":"$7,115.61"},{"v":6554117.530000001,"d":"$6,554,117.53"},{"v":6561233.1400000015,"d":"$6,561,233.14"},{"v":1.04526,"d":"1.05"},{"v":26909501,"d":"$26,909,501.00"},{"v":6712756.65,"d":"$6,712,756.65"},{"v":3075335.83,"d":"$3,075,335.83"},{"v":1232287.02,"d":"$1,232,287.02"},{"v":914477.26,"d":"$914,477.26"},{"v":2194999.08,"d":"$2,194,999.08"},{"v":682146.3,"d":"$682,146.30"},{"v":1154301.89,"d":"$1,154,301.89"},{"v":1362552.89,"d":"$1,362,552.89"},{"v":828626.08,"d":"$828,626.08"},{"v":2021389.76,"d":"$2,021,389.76"},{"v":1740421.19,"d":"$1,740,421.19"},{"v":1385107.87,"d":"$1,385,107.87"},{"v":50213902.819999985,"d":"$50,213,902.82"},{"v":714844.7999999999,"d":"$714,844.80"},{"v":1001328.75,"d":"$1,001,328.75"},{"v":2603454.75,"d":"$2,603,454.75"},{"v":272361.42,"d":"$272,361.42"},{"v":2287034.8600000003,"d":"$2,287,034.86"},{"v":3337553.28,"d":"$3,337,553.28"},{"v":10902467.43,"d":"$10,902,467.43"},{"v":7505960.31,"d":"$7,505,960.31"},{"v":20024429.91732,"d":"$20,024,429.92"},{"v":48649435.51731999,"d":"$48,649,435.52"},{"v":7625158.48,"d":"$7,625,158.48"},{"v":41024277.03731999,"d":"$41,024,277.04"},{"v":48994550.18731999,"d":"$48,994,550.19"},{"v":755706.77,"d":"$755,706.77"},{"v":755706.77,"d":"$755,706.77"},{"v":787130.69,"d":"$787,130.69"},{"v":787130.69,"d":"$787,130.69"},{"v":491286.04,"d":"$491,286.04"},{"v":491286.04,"d":"$491,286.04"},{"v":511213.4,"d":"$511,213.40"},{"v":511213.4,"d":"$511,213.40"},{"v":613915.95,"d":"$613,915.95"},{"v":4354128,"d":"$4,354,128.00"},{"v":1763741.01,"d":"$1,763,741.01"},{"v":676961.12,"d":"$676,961.12"},{"v":12499419.879999999,"d":"$12,499,419.88"},{"v":111707873.01,"d":"$111,707,873.01"},{"v":499127.29000000004,"d":"$499,127.29"},{"v":200384.90999999997,"d":"$200,384.91"},{"v":3184416.86,"d":"$3,184,416.86"},{"v":111707872.88731997,"d":"$111,707,872.89"}]
[null,"La Salle/Marshall/Putnam ROE TAOEP",33,{"v":452292.46,"d":"$452,292.46"},{"v":277831.29,"d":"$277,831.29"},{"v":0.6142735388513882,"d":"61%"},1,{"v":30208.24,"d":"$30,208.24"},{"v":232602.05000000002,"d":"$232,602.05"},{"v":262810.29000000004,"d":"$262,810.29"},{"v":0.9,"d":"0.90"},{"v":97661.03,"d":"$97,661.03"},{"v":25690.41,"d":"$25,690.41"},{"v":10701.28,"d":"$10,701.28"},{"v":3954.07,"d":"$3,954.07"},{"v":3436.31,"d":"$3,436.31"},{"v":8589.4,"d":"$8,589.40"},{"v":1651.4,"d":"$1,651.40"},{"v":4009.77,"d":"$4,009.77"},{"v":4347.86,"d":"$4,347.86"},{"v":2673.18,"d":"$2,673.18"},{"v":6450.19,"d":"$6,450.19"},{"v":5553.63,"d":"$5,553.63"},{"v":4811.53,"d":"$4,811.53"},{"v":179530.05999999997,"d":"$179,530.06"},{"v":2970,"d":"$2,970.00"},{"v":4125,"d":"$4,125.00"},{"v":10725,"d":"$10,725.00"},{"v":1122,"d":"$1,122.00"},{"v":18843,"d":"$18,843.00"},{"v":17062,"d":"$17,062.00"},{"v":44913,"d":"$44,913.00"},{"v":30921,"d":"$30,921.00"},{"v":87396.798,"d":"$87,396.80"},{"v":218077.798,"d":"$218,077.80"},{"v":31412.04,"d":"$31,412.04"},{"v":186665.758,"d":"$186,665.76"},{"v":214936.588,"d":"$214,936.59"},{"v":7259.17,"d":"$7,259.17"},{"v":7259.17,"d":"$7,259.17"},{"v":7919.1,"d":"$7,919.10"},{"v":7919.1,"d":"$7,919.10"},{"v":659.92,"d":"$659.92"},{"v":659.92,"d":"$659.92"},{"v":659.92,"d":"$659.92"},{"v":659.92,"d":"$659.92"},{"v":1319.85,"d":"$1,319.85"},{"v":15178.27,"d":"$15,178.27"},{"v":6148.31,"d":"$6,148.31"},{"v":2183.08,"d":"$2,183.08"},{"v":57825.729999999996,"d":"$57,825.73"},{"v":452292.46,"d":"$452,292.46"},{"v":10898.9,"d":"$10,898.90"},{"v":356.45,"d":"$356.45"},{"v":6017.32,"d":"$6,017.32"},{"v":452292.3779999999,"d":"$452,292.38"}]
[null,"SAFE SCH-LA SALLE ROE",33.32,{"v":455685.95,"d":"$455,685.95"},{"v":421722.79000000004,"d":"$421,722.79"},{"v":0.9254680553569844,"d":"93%"},3,{"v":517.84,"d":"$517.84"},{"v":376154.19999999995,"d":"$376,154.20"},{"v":376672.04,"d":"$376,672.04"},{"v":0.9,"d":"0.90"},{"v":99325.35,"d":"$99,325.35"},{"v":27081.71,"d":"$27,081.71"},{"v":10795.53,"d":"$10,795.53"},{"v":3326.48,"d":"$3,326.48"},{"v":3473.09,"d":"$3,473.09"},{"v":8683.95,"d":"$8,683.95"},{"v":2201.86,"d":"$2,201.86"},{"v":4009.77,"d":"$4,009.77"},{"v":3623.22,"d":"$3,623.22"},{"v":2673.18,"d":"$2,673.18"},{"v":5375.16,"d":"$5,375.16"},{"v":4628.02,"d":"$4,628.02"},{"v":4811.53,"d":"$4,811.53"},{"v":180008.84999999998,"d":"$180,008.85"},{"v":2998.8,"d":"$2,998.80"},{"v":4165,"d":"$4,165.00"},{"v":10829,"d":"$10,829.00"},{"v":1132.88,"d":"$1,132.88"},{"v":19025.72,"d":"$19,025.72"},{"v":18666.68,"d":"$18,666.68"},{"v":45348.520000000004,"d":"$45,348.52"},{"v":31220.84,"d":"$31,220.84"},{"v":87635.51748,"d":"$87,635.52"},{"v":221022.95747999998,"d":"$221,022.96"},{"v":31716.64,"d":"$31,716.64"},{"v":189306.31747999997,"d":"$189,306.32"},{"v":217851.28747999997,"d":"$217,851.29"},{"v":7259.17,"d":"$7,259.17"},{"v":7259.17,"d":"$7,259.17"},{"v":7919.1,"d":"$7,919.10"},{"v":7919.1,"d":"$7,919.10"},{"v":659.92,"d":"$659.92"},{"v":659.92,"d":"$659.92"},{"v":659.92,"d":"$659.92"},{"v":659.92,"d":"$659.92"},{"v":1319.85,"d":"$1,319.85"},{"v":15178.27,"d":"$15,178.27"},{"v":6148.31,"d":"$6,148.31"},{"v":2183.08,"d":"$2,183.08"},{"v":57825.729999999996,"d":"$57,825.73"},{"v":455685.95,"d":"$455,685.95"},{"v":9350.499999999998,"d":"$9,350.50"},{"v":70.08,"d":"$70.08"},{"v":4661.33,"d":"$4,661.33"},{"v":455685.8674799999,"d":"$455,685.87"}]
[null,"LaSalle/Marshall/Putnam ROE",12,{"v":160887.37,"d":"$160,887.37"},{"v":66853.05,"d":"$66,853.05"},{"v":0.41552702365636285,"d":"42%"},1,{"v":22144.82,"d":"$22,144.82"},{"v":50764.32,"d":"$50,764.32"},{"v":72909.14,"d":"$72,909.14"},{"v":0.9,"d":"0.90"},{"v":36781.95,"d":"$36,781.95"},{"v":11590.15,"d":"$11,590.15"},{"v":4236.82,"d":"$4,236.82"},{"v":721.84,"d":"$721.84"},{"v":1228.81,"d":"$1,228.81"},{"v":3083.76,"d":"$3,083.76"},{"v":550.46,"d":"$550.46"},{"v":1336.59,"d":"$1,336.59"},{"v":724.64,"d":"$724.64"},{"v":801.95,"d":"$801.95"},{"v":1075.03,"d":"$1,075.03"},{"v":925.6,"d":"$925.60"},{"v":1603.84,"d":"$1,603.84"},{"v":64661.43999999998,"d":"$64,661.44"},{"v":1080,"d":"$1,080.00"},{"v":1500,"d":"$1,500.00"},{"v":3900,"d":"$3,900.00"},{"v":408,"d":"$408.00"},{"v":3426,"d":"$3,426.00"},{"v":9088,"d":"$9,088.00"},{"v":16332,"d":"$16,332.00"},{"v":11244,"d":"$11,244.00"},{"v":31025.780999999995,"d":"$31,025.78"},{"v":78003.78099999999,"d":"$78,003.78"},{"v":11422.56,"d":"$11,422.56"},{"v":66581.22099999999,"d":"$66,581.22"},{"v":76861.521,"d":"$76,861.52"},{"v":2639.7,"d":"$2,639.70"},{"v":2639.7,"d":"$2,639.70"},{"v":2639.7,"d":"$2,639.70"},{"v":2639.7,"d":"$2,639.70"},{"v":0,"d":"$0.00"},{"v":0,"d":"$0.00"},{"v":0,"d":"$0.00"},{"v":0,"d":"$0.00"},{"v":659.92,"d":"$659.92"},{"v":5279.4,"d":"$5,279.40"},{"v":2138.54,"d":"$2,138.54"},{"v":727.69,"d":"$727.69"},{"v":19364.35,"d":"$19,364.35"},{"v":160887.37,"d":"$160,887.37"},{"v":2677.3,"d":"$2,677.30"},{"v":121.79,"d":"$121.79"},{"v":1514.7,"d":"$1,514.70"},{"v":160887.311,"d":"$160,887.31"}]
["35050001026","LELAND COMM UNIT SCH DIST 1",248.28,{"v":3225195.43,"d":"$3,225,195.43"},{"v":3730490.67,"d":"$3,730,490.67"},{"v":1.1566712005417916,"d":"116%"},4,{"v":205.43,"d":"$205.43"},{"v":352300.67999999993,"d":"$352,300.68"},{"v":352506.1099999999,"d":"$352,506.11"},{"v":0.9,"d":"0.90"},{"v":756096.25,"d":"$756,096.25"},{"v":177968.94,"d":"$177,968.94"},{"v":80210.36,"d":"$80,210.36"},{"v":32322.33,"d":"$32,322.33"},{"v":25759.14,"d":"$25,759.14"},{"v":53769.18,"d":"$53,769.18"},{"v":17064.47,"d":"$17,064.47"},{"v":30206.93,"d":"$30,206.93"},{"v":36232.2,"d":"$36,232.20"},{"v":21652.75,"d":"$21,652.75"},{"v":53751.6,"d":"$53,751.60"},{"v":46280.25,"d":"$46,280.25"},{"v":36246.89,"d":"$36,246.89"},{"v":1367561.2899999996,"d":"$1,367,561.29"},{"v":22180.5,"d":"$22,180.50"},{"v":31035,"d":"$31,035.00"},{"v":80690.99999999999,"d":"$80,691.00"},{"v":8441.52,"d":"$8,441.52"},{"v":70883.93,"d":"$70,883.93"},{"v":85910.18999999999,"d":"$85,910.19"},{"v":337909.07999999996,"d":"$337,909.08"},{"v":232638.36,"d":"$232,638.36"},{"v":641519.86992,"d":"$641,519.87"},{"v":1511209.44992,"d":"$1,511,209.45"},{"v":236332.76,"d":"$236,332.76"},{"v":1274876.6899199998,"d":"$1,274,876.69"},{"v":1487576.1699199998,"d":"$1,487,576.17"},{"v":42895.12,"d":"$42,895.12"},{"v":42895.12,"d":"$42,895.12"},{"v":44874.9,"d":"$44,874.90"},{"v":44874.9,"d":"$44,874.90"},{"v":2639.7,"d":"$2,639.70"},{"v":2639.7,"d":"$2,639.70"},{"v":2639.7,"d":"$2,639.70"},{"v":2639.7,"d":"$2,639.70"},{"v":3299.62,"d":"$3,299.62"},{"v":116146.8,"d":"$116,146.80"},{"v":47047.96,"d":"$47,047.96"},{"v":17464.68,"d":"$17,464.68"},{"v":370057.9000000001,"d":"$370,057.90"},{"v":3225195.43,"d":"$3,225,195.43"},{"v":60192.75999999999,"d":"$60,192.76"},{"v":174.81,"d":"$174.81"},{"v":101002.03,"d":"$101,002.03"},{"v":3225195.3599199993,"d":"$3,225,195.36"}]
["35050002026","COMMUNITY UNIT SCH DIST 2",622.27,{"v":8208528.41,"d":"$8,208,528.41"},{"v":12227730.51,"d":"$12,227,730.51"},{"v":1.4896373502348639,"d":"149%"},4,{"v":522.87,"d":"$522.87"},{"v":869414.5599999998,"d":"$869,414.56"},{"v":869937.4299999998,"d":"$869,937.43"},{"v":0.9,"d":"0.90"},{"v":1915544.94,"d":"$1,915,544.94"},{"v":460760.08,"d":"$460,760.08"},{"v":202598.28,"d":"$202,598.28"},{"v":81904.66,"d":"$81,904.66"},{"v":65506.11,"d":"$65,506.11"},{"v":138892.26,"d":"$138,892.26"},{"v":44587.82,"d":"$44,587.82"},{"v":76185.63,"d":"$76,185.63"},{"v":91305.14,"d":"$91,305.14"},{"v":55067.5,"d":"$55,067.50"},{"v":135454.03,"d":"$135,454.03"},{"v":116626.23,"d":"$116,626.23"},{"v":91419.16,"d":"$91,419.16"},{"v":3475851.84,"d":"$3,475,851.84"},{"v":55584.899999999994,"d":"$55,584.90"},{"v":77783.75,"d":"$77,783.75"},{"v":202237.75,"d":"$202,237.75"},{"v":21157.18,"d":"$21,157.18"},{"v":177658.07,"d":"$177,658.07"},{"v":231013.11,"d":"$231,013.11"},{"v":846909.4700000001,"d":"$846,909.47"},{"v":583066.99,"d":"$583,066.99"},{"v":1634984.36328,"d":"$1,634,984.36"},{"v":3830395.58328,"d":"$3,830,395.58"},{"v":592326.36,"d":"$592,326.36"},{"v":3238069.22328,"d":"$3,238,069.22"},{"v":3771162.9432800002,"d":"$3,771,162.94"},{"v":114167.02,"d":"$114,167.02"},{"v":114167.02,"d":"$114,167.02"},{"v":118786.5,"d":"$118,786.50"},{"v":118786.5,"d":"$118,786.50"},{"v":7919.1,"d":"$7,919.10"},{"v":7919.1,"d":"$7,919.10"},{"v":7919.1,"d":"$7,919.10"},{"v":7919.1,"d":"$7,919.10"},{"v":9898.87,"d":"$9,898.87"},{"v":291026.92,"d":"$291,026.92"},{"v":117887.23,"d":"$117,887.23"},{"v":45117.09,"d":"$45,117.09"},{"v":961513.5499999999,"d":"$961,513.55"},{"v":8208528.41,"d":"$8,208,528.41"},{"v":264376.9800000001,"d":"$264,376.98"},{"v":6.449999999999999,"d":"$6.45"},{"v":228852.33000000002,"d":"$228,852.33"},{"v":8208528.33328,"d":"$8,208,528.33"}]
["35050009026","EARLVILLE COMM UNIT SCH DIST 9",357.78,{"v":4917480.97,"d":"$4,917,480.97"},{"v":5137086.38,"d":"$5,137,086.38"},{"v":1.0446581107969188,"d":"104%"},4,{"v":313.23,"d":"$313.23"},{"v":1402395.8,"d":"$1,402,395.80"},{"v":1402709.03,"d":"$1,402,709.03"},{"v":0.9,"d":"0.90"},{"v":1131455.25,"d":"$1,131,455.25"},{"v":274883.13,"d":"$274,883.13"},{"v":116362.55,"d":"$116,362.55"},{"v":46255.85,"d":"$46,255.85"},{"v":39859,"d":"$39,859.00"},{"v":79239.22,"d":"$79,239.22"},{"v":25321.48,"d":"$25,321.48"},{"v":43840.15,"d":"$43,840.15"},{"v":51449.72,"d":"$51,449.72"},{"v":31543.52,"d":"$31,543.52"},{"v":76327.27,"d":"$76,327.27"},{"v":65717.95,"d":"$65,717.95"},{"v":52606.11,"d":"$52,606.11"},{"v":2034861.2,"d":"$2,034,861.20"},{"v":31840.199999999997,"d":"$31,840.20"},{"v":44722.5,"d":"$44,722.50"},{"v":116278.5,"d":"$116,278.50"},{"v":12164.519999999999,"d":"$12,164.52"},{"v":102146.18000000001,"d":"$102,146.18"},{"v":136687.83999999997,"d":"$136,687.84"},{"v":486938.57999999996,"d":"$486,938.58"},{"v":335239.86,"d":"$335,239.86"},{"v":988041.85392,"d":"$988,041.85"},{"v":2254060.03392,"d":"$2,254,060.03"},{"v":340563.62,"d":"$340,563.62"},{"v":1913496.4139200002,"d":"$1,913,496.41"},{"v":2220003.66392,"d":"$2,220,003.66"},{"v":91729.57,"d":"$91,729.57"},{"v":91729.57,"d":"$91,729.57"},{"v":95689.12,"d":"$95,689.12"},{"v":95689.12,"d":"$95,689.12"},{"v":5279.4,"d":"$5,279.40"},{"v":5279.4,"d":"$5,279.40"},{"v":5279.4,"d":"$5,279.40"},{"v":5279.4,"d":"$5,279.40"},{"v":6599.25,"d":"$6,599.25"},{"v":166961.02,"d":"$166,961.02"},{"v":67631.45,"d":"$67,631.45"},{"v":25469.32,"d":"$25,469.32"},{"v":662616.02,"d":"$662,616.02"},{"v":4917480.97,"d":"$4,917,480.97"},{"v":210396.32000000004,"d":"$210,396.32"},{"v":441.76000000000005,"d":"$441.76"},{"v":163861.51,"d":"$163,861.51"},{"v":4917480.883920001,"d":"$4,917,480.88"}]
["35050017504","DIMMICK C C SCHOOL DIST 175",155.45,{"v":1935437.92,"d":"$1,935,437.92"},{"v":2833841.87,"d":"$2,833,841.87"},{"v":1.464186394570589,"d":"146%"},4,{"v":123.28,"d":"$123.28"},{"v":214214.17,"d":"$214,214.17"},{"v":214337.45,"d":"$214,337.45"},{"v":0.9,"d":"0.90"},{"v":456263.01,"d":"$456,263.01"},{"v":91252.6,"d":"$91,252.60"},{"v":48324.96,"d":"$48,324.96"},{"v":21338.29,"d":"$21,338.29"},{"v":15796.06,"d":"$15,796.06"},{"v":29760.98,"d":"$29,760.98"},{"v":11009.34,"d":"$11,009.34"},{"v":18177.62,"d":"$18,177.62"},{"v":24637.89,"d":"$24,637.89"},{"v":13633.21,"d":"$13,633.21"},{"v":36551.08,"d":"$36,551.08"},{"v":31470.57,"d":"$31,470.57"},{"v":21812.29,"d":"$21,812.29"},{"v":820027.8999999999,"d":"$820,027.90"},{"v":13780.8,"d":"$13,780.80"},{"v":19431.25,"d":"$19,431.25"},{"v":50521.25,"d":"$50,521.25"},{"v":5285.299999999999,"d":"$5,285.30"},{"v":44380.97,"d":"$44,380.97"},{"v":26102.6,"d":"$26,102.60"},{"v":211567.44999999998,"d":"$211,567.45"},{"v":145656.65,"d":"$145,656.65"},{"v":387721.33379999996,"d":"$387,721.33"},{"v":904447.6037999999,"d":"$904,447.60"},{"v":147969.74,"d":"$147,969.74"},{"v":756477.8637999999,"d":"$756,477.86"},{"v":889650.6238,"d":"$889,650.62"},{"v":21777.52,"d":"$21,777.52"},{"v":21777.52,"d":"$21,777.52"},{"v":22437.45,"d":"$22,437.45"},{"v":22437.45,"d":"$22,437.45"},{"v":4619.47,"d":"$4,619.47"},{"v":4619.47,"d":"$4,619.47"},{"v":4619.47,"d":"$4,619.47"},{"v":4619.47,"d":"$4,619.47"},{"v":5939.32,"d":"$5,939.32"},{"v":72591.75,"d":"$72,591.75"},{"v":29404.98,"d":"$29,404.98"},{"v":10915.42,"d":"$10,915.42"},{"v":225759.29000000004,"d":"$225,759.29"},{"v":1935437.92,"d":"$1,935,437.92"},{"v":23395.289999999994,"d":"$23,395.29"},{"v":8.05,"d":"$8.05"},{"v":37080.490000000005,"d":"$37,080.49"},{"v":1935437.8138,"d":"$1,935,437.81"}]
["35050040017","STREATOR TWP H S DIST 40",798.5,{"v":11907618.68,"d":"$11,907,618.68"},{"v":9963501.02,"d":"$9,963,501.02"},{"v":0.8367332955273976,"d":"84%"},2,{"v":55013.89,"d":"$55,013.89"},{"v":5331175,"d":"$5,331,175.00"},{"v":5386188.89,"d":"$5,386,188.89"},{"v":0.9,"d":"0.90"},{"v":2565437.13,"d":"$2,565,437.13"},{"v":855060.19,"d":"$855,060.19"},{"v":288016.15,"d":"$288,016.15"},{"v":96005.38,"d":"$96,005.38"},{"v":87138.26,"d":"$87,138.26"},{"v":245929.86,"d":"$245,929.86"},{"v":58349.5,"d":"$58,349.50"},{"v":106659.88,"d":"$106,659.88"},{"v":96377.65,"d":"$96,377.65"},{"v":71106.58,"d":"$71,106.58"},{"v":142979.25,"d":"$142,979.25"},{"v":123105.46,"d":"$123,105.46"},{"v":127986.83,"d":"$127,986.83"},{"v":4864152.119999999,"d":"$4,864,152.12"},{"v":71865,"d":"$71,865.00"},{"v":99812.5,"d":"$99,812.50"},{"v":259512.5,"d":"$259,512.50"},{"v":27149,"d":"$27,149.00"},{"v":455943.5,"d":"$455,943.50"},{"v":685911.5,"d":"$685,911.50"},{"v":1086758.5,"d":"$1,086,758.50"},{"v":748194.5,"d":"$748,194.50"},{"v":2286352.4009999996,"d":"$2,286,352.40"},{"v":5721499.401,"d":"$5,721,499.40"},{"v":760076.18,"d":"$760,076.18"},{"v":4961423.221,"d":"$4,961,423.22"},{"v":5645491.7809999995,"d":"$5,645,491.78"},{"v":190058.4,"d":"$190,058.40"},{"v":190058.4,"d":"$190,058.40"},{"v":197977.5,"d":"$197,977.50"},{"v":197977.5,"d":"$197,977.50"},{"v":7259.17,"d":"$7,259.17"},{"v":7259.17,"d":"$7,259.17"},{"v":7919.1,"d":"$7,919.10"},{"v":7919.1,"d":"$7,919.10"},{"v":9238.95,"d":"$9,238.95"},{"v":373517.55,"d":"$373,517.55"},{"v":151301.98,"d":"$151,301.98"},{"v":57487.9,"d":"$57,487.90"},{"v":1397974.72,"d":"$1,397,974.72"},{"v":11907618.68,"d":"$11,907,618.68"},{"v":842686.7999999999,"d":"$842,686.80"},{"v":15007.389999999998,"d":"$15,007.39"},{"v":469222,"d":"$469,222.00"},{"v":11907618.621,"d":"$11,907,618.62"}]
["35050044002","STREATOR ELEM SCHOOL DIST 44",1445.79,{"v":20799295.06,"d":"$20,799,295.06"},{"v":15939274.81,"d":"$15,939,274.81"},{"v":0.7663372611436958,"d":"77%"},1,{"v":247750.48,"d":"$247,750.48"},{"v":10789007.31,"d":"$10,789,007.31"},{"v":11036757.790000001,"d":"$11,036,757.79"},{"v":0.9,"d":"0.90"},{"v":4682501.21,"d":"$4,682,501.21"},{"v":936500.23,"d":"$936,500.23"},{"v":453125.03,"d":"$453,125.03"},{"v":200831.04,"d":"$200,831.04"},{"v":174713.64,"d":"$174,713.64"},{"v":274612.71,"d":"$274,612.71"},{"v":105689.66,"d":"$105,689.66"},{"v":171350.83,"d":"$171,350.83"},{"v":231886.08,"d":"$231,886.08"},{"v":128579.95,"d":"$128,579.95"},{"v":344010.24,"d":"$344,010.24"},{"v":296193.6,"d":"$296,193.60"},{"v":205612.92,"d":"$205,612.92"},{"v":8205607.14,"d":"$8,205,607.14"},{"v":127924.20000000001,"d":"$127,924.20"},{"v":180723.75,"d":"$180,723.75"},{"v":469881.75,"d":"$469,881.75"},{"v":49156.86,"d":"$49,156.86"},{"v":825546.0900000001,"d":"$825,546.09"},{"v":237295.42,"d":"$237,295.42"},{"v":1967720.19,"d":"$1,967,720.19"},{"v":1354705.23,"d":"$1,354,705.23"},{"v":4196961.62856,"d":"$4,196,961.63"},{"v":9409915.118560001,"d":"$9,409,915.12"},{"v":1376218.58,"d":"$1,376,218.58"},{"v":8033696.538559997,"d":"$8,033,696.54"},{"v":9272293.258559998,"d":"$9,272,293.26"},{"v":463927.27,"d":"$463,927.27"},{"v":463927.27,"d":"$463,927.27"},{"v":483065.1,"d":"$483,065.10"},{"v":483065.1,"d":"$483,065.10"},{"v":69952.05,"d":"$69,952.05"},{"v":69952.05,"d":"$69,952.05"},{"v":72591.75,"d":"$72,591.75"},{"v":72591.75,"d":"$72,591.75"},{"v":87110.1,"d":"$87,110.10"},{"v":676423.12,"d":"$676,423.12"},{"v":274000.95,"d":"$274,000.95"},{"v":104788.08,"d":"$104,788.08"},{"v":3321394.590000001,"d":"$3,321,394.59"},{"v":20799295.06,"d":"$20,799,295.06"},{"v":2321120.64,"d":"$2,321,120.64"},{"v":62325.73999999999,"d":"$62,325.74"},{"v":745663.24,"d":"$745,663.24"},{"v":20799294.98856,"d":"$20,799,294.99"}]
["35050065004","Allen Otter Creek CCSD 65",96,{"v":1193144.95,"d":"$1,193,144.95"},{"v":1566831.35,"d":"$1,566,831.35"},{"v":1.3131944697917886,"d":"131%"},4,{"v":76,"d":"$76.00"},{"v":62728.329999999994,"d":"$62,728.33"},{"v":62804.329999999994,"d":"$62,804.33"},{"v":0.9,"d":"0.90"},{"v":291205,"d":"$291,205.00"},{"v":58240.99,"d":"$58,240.99"},{"v":29497.05,"d":"$29,497.05"},{"v":13179.53,"d":"$13,179.53"},{"v":9776.87,"d":"$9,776.87"},{"v":18262.42,"d":"$18,262.42"},{"v":6605.6,"d":"$6,605.60"},{"v":11227.35,"d":"$11,227.35"},{"v":15217.52,"d":"$15,217.52"},{"v":8554.17,"d":"$8,554.17"},{"v":22575.67,"d":"$22,575.67"},{"v":19437.7,"d":"$19,437.70"},{"v":13472.29,"d":"$13,472.29"},{"v":517252.1599999999,"d":"$517,252.16"},{"v":8595,"d":"$8,595.00"},{"v":12000,"d":"$12,000.00"},{"v":31200,"d":"$31,200.00"},{"v":3264,"d":"$3,264.00"},{"v":27408,"d":"$27,408.00"},{"v":16029.5,"d":"$16,029.50"},{"v":130656,"d":"$130,656.00"},{"v":89952,"d":"$89,952.00"},{"v":238911.015,"d":"$238,911.02"},{"v":558015.515,"d":"$558,015.52"},{"v":91380.48,"d":"$91,380.48"},{"v":466635.03500000003,"d":"$466,635.04"},{"v":548877.4650000001,"d":"$548,877.47"},{"v":13858.42,"d":"$13,858.42"},{"v":13858.42,"d":"$13,858.42"},{"v":14518.35,"d":"$14,518.35"},{"v":14518.35,"d":"$14,518.35"},{"v":0,"d":"$0.00"},{"v":0,"d":"$0.00"},{"v":0,"d":"$0.00"},{"v":0,"d":"$0.00"},{"v":659.92,"d":"$659.92"},{"v":44874.9,"d":"$44,874.90"},{"v":18177.62,"d":"$18,177.62"},{"v":6549.25,"d":"$6,549.25"},{"v":127015.23,"d":"$127,015.23"},{"v":1193144.95,"d":"$1,193,144.95"},{"v":15503.31,"d":"$15,503.31"},{"v":0.05,"d":"$0.05"},{"v":25541.469999999998,"d":"$25,541.47"},{"v":1193144.855,"d":"$1,193,144.86"}]
["35050079004","TONICA COMM CONS SCH DIST 79",126.3,{"v":1575813.68,"d":"$1,575,813.68"},{"v":2171233.89,"d":"$2,171,233.89"},{"v":1.3778493723953458,"d":"138%"},4,{"v":100.37,"d":"$100.37"},{"v":605377.6200000001,"d":"$605,377.62"},{"v":605477.9900000001,"d":"$605,477.99"},{"v":0.9,"d":"0.90"},{"v":374675.4,"d":"$374,675.40"},{"v":74935.08,"d":"$74,935.08"},{"v":38911.01,"d":"$38,911.01"},{"v":16945.11,"d":"$16,945.11"},{"v":12921.3,"d":"$12,921.30"},{"v":23673.51,"d":"$23,673.51"},{"v":8807.47,"d":"$8,807.47"},{"v":14702.49,"d":"$14,702.49"},{"v":19565.38,"d":"$19,565.38"},{"v":10960.03,"d":"$10,960.03"},{"v":29025.86,"d":"$29,025.86"},{"v":24991.33,"d":"$24,991.33"},{"v":17642.29,"d":"$17,642.29"},{"v":667756.26,"d":"$667,756.26"},{"v":11254.499999999998,"d":"$11,254.50"},{"v":15787.499999999996,"d":"$15,787.50"},{"v":41047.49999999999,"d":"$41,047.50"},{"v":4294.199999999999,"d":"$4,294.20"},{"v":36058.65,"d":"$36,058.65"},{"v":21312.929999999997,"d":"$21,312.93"},{"v":171894.3,"d":"$171,894.30"},{"v":118343.09999999999,"d":"$118,343.10"},{"v":315780.5351999999,"d":"$315,780.54"},{"v":735773.2151999999,"d":"$735,773.22"},{"v":120222.44,"d":"$120,222.44"},{"v":615550.7752,"d":"$615,550.78"},{"v":723750.9652,"d":"$723,750.97"},{"v":18477.9,"d":"$18,477.90"},{"v":18477.9,"d":"$18,477.90"},{"v":19137.82,"d":"$19,137.82"},{"v":19137.82,"d":"$19,137.82"},{"v":3299.62,"d":"$3,299.62"},{"v":3299.62,"d":"$3,299.62"},{"v":3299.62,"d":"$3,299.62"},{"v":3299.62,"d":"$3,299.62"},{"v":4619.47,"d":"$4,619.47"},{"v":58733.32,"d":"$58,733.32"},{"v":23791.3,"d":"$23,791.30"},{"v":8732.34,"d":"$8,732.34"},{"v":184306.34999999998,"d":"$184,306.35"},{"v":1575813.68,"d":"$1,575,813.68"},{"v":25705.539999999997,"d":"$25,705.54"},{"v":86.03,"d":"$86.03"},{"v":93932.45999999999,"d":"$93,932.46"},{"v":1575813.5751999998,"d":"$1,575,813.58"}]
["35050082004","DEER PARK C C SCHOOL DIST 82",47.54,{"v":572219.28,"d":"$572,219.28"},{"v":1184938.4100000001,"d":"$1,184,938.41"},{"v":2.070776800809648,"d":"207%"},4,{"v":36.44,"d":"$36.44"},{"v":102628.61,"d":"$102,628.61"},{"v":102665.05,"d":"$102,665.05"},{"v":0.9,"d":"0.90"},{"v":137443.74,"d":"$137,443.74"},{"v":27488.74,"d":"$27,488.74"},{"v":14434.73,"d":"$14,434.73"},{"v":6275.97,"d":"$6,275.97"},{"v":4601.52,"d":"$4,601.52"},{"v":9469.4,"d":"$9,469.40"},{"v":2752.33,"d":"$2,752.33"},{"v":5613.67,"d":"$5,613.67"},{"v":7246.44,"d":"$7,246.44"},{"v":4009.77,"d":"$4,009.77"},{"v":10750.32,"d":"$10,750.32"},{"v":9256.05,"d":"$9,256.05"},{"v":6736.14,"d":"$6,736.14"},{"v":246078.81999999998,"d":"$246,078.82"},{"v":4241.7,"d":"$4,241.70"},{"v":5942.5,"d":"$5,942.50"},{"v":15450.5,"d":"$15,450.50"},{"v":1616.3600000000001,"d":"$1,616.36"},{"v":13572.67,"d":"$13,572.67"},{"v":8410.93,"d":"$8,410.93"},{"v":64701.94,"d":"$64,701.94"},{"v":44544.979999999996,"d":"$44,544.98"},{"v":113597.14055999999,"d":"$113,597.14"},{"v":272078.72056,"d":"$272,078.72"},{"v":45252.37,"d":"$45,252.37"},{"v":226826.35056,"d":"$226,826.35"},{"v":267553.48056,"d":"$267,553.48"},{"v":5939.32,"d":"$5,939.32"},{"v":5939.32,"d":"$5,939.32"},{"v":6599.25,"d":"$6,599.25"},{"v":6599.25,"d":"$6,599.25"},{"v":0,"d":"$0.00"},{"v":0,"d":"$0.00"},{"v":0,"d":"$0.00"},{"v":0,"d":"$0.00"},{"v":0,"d":"$0.00"},{"v":21777.52,"d":"$21,777.52"},{"v":8821.49,"d":"$8,821.49"},{"v":2910.78,"d":"$2,910.78"},{"v":58586.93,"d":"$58,586.93"},{"v":572219.28,"d":"$572,219.28"},{"v":49685.76,"d":"$49,685.76"},{"v":0,"d":"$0.00"},{"v":24668.760000000002,"d":"$24,668.76"},{"v":572219.23056,"d":"$572,219.23"}]
["35050095004","GRAND RIDGE C C SCHOOL DIST 95",198.75,{"v":2439903.35,"d":"$2,439,903.35"},{"v":2677593.03,"d":"$2,677,593.03"},{"v":1.0974176620561629,"d":"110%"},4,{"v":155.41,"d":"$155.41"},{"v":247866.47999999998,"d":"$247,866.48"},{"v":248021.88999999998,"d":"$248,021.89"},{"v":0.9,"d":"0.90"},{"v":591196.37,"d":"$591,196.37"},{"v":118239.27,"d":"$118,239.27"},{"v":62132.1,"d":"$62,132.10"},{"v":27614.26,"d":"$27,614.26"},{"v":19892.34,"d":"$19,892.34"},{"v":35848.45,"d":"$35,848.45"},{"v":14312.14,"d":"$14,312.14"},{"v":23523.98,"d":"$23,523.98"},{"v":31884.33,"d":"$31,884.33"},{"v":17642.98,"d":"$17,642.98"},{"v":47301.4,"d":"$47,301.40"},{"v":40726.62,"d":"$40,726.62"},{"v":28227.67,"d":"$28,227.67"},{"v":1058541.91,"d":"$1,058,541.91"},{"v":17415,"d":"$17,415.00"},{"v":24843.75,"d":"$24,843.75"},{"v":64593.75,"d":"$64,593.75"},{"v":6757.5,"d":"$6,757.50"},{"v":56743.12,"d":"$56,743.12"},{"v":30883.5,"d":"$30,883.50"},{"v":270498.75,"d":"$270,498.75"},{"v":186228.75,"d":"$186,228.75"},{"v":487808.26199999993,"d":"$487,808.26"},{"v":1145772.382,"d":"$1,145,772.38"},{"v":189186.15,"d":"$189,186.15"},{"v":956586.2319999997,"d":"$956,586.23"},{"v":1126853.7619999996,"d":"$1,126,853.76"},{"v":27056.92,"d":"$27,056.92"},{"v":27056.92,"d":"$27,056.92"},{"v":28376.77,"d":"$28,376.77"},{"v":28376.77,"d":"$28,376.77"},{"v":0,"d":"$0.00"},{"v":0,"d":"$0.00"},{"v":0,"d":"$0.00"},{"v":0,"d":"$0.00"},{"v":0,"d":"$0.00"},{"v":92389.5,"d":"$92,389.50"},{"v":37424.52,"d":"$37,424.52"},{"v":13826.2,"d":"$13,826.20"},{"v":254507.6,"d":"$254,507.60"},{"v":2439903.35,"d":"$2,439,903.35"},{"v":31131.729999999996,"d":"$31,131.73"},{"v":0,"d":"$0.00"},{"v":106227.80000000002,"d":"$106,227.80"},{"v":2439903.2719999994,"d":"$2,439,903.27"}]
["35050120017","LA SALLE-PERU TWP H S D 120",1181.48,{"v":17562984.22,"d":"$17,562,984.22"},{"v":15577619.9,"d":"$15,577,619.90"},{"v":0.8869574614922703,"d":"89%"},2,{"v":24515.31,"d":"$24,515.31"},{"v":2571056.82,"d":"$2,571,056.82"},{"v":2595572.13,"d":"$2,595,572.13"},{"v":0.9,"d":"0.90"},{"v":3781745.95,"d":"$3,781,745.95"},{"v":1260455.92,"d":"$1,260,455.92"},{"v":425888.55,"d":"$425,888.55"},{"v":141481.62,"d":"$141,481.62"},{"v":128349.29,"d":"$128,349.29"},{"v":363883.68,"d":"$363,883.68"},{"v":86423.31,"d":"$86,423.31"},{"v":157717.62,"d":"$157,717.62"},{"v":142030.22,"d":"$142,030.22"},{"v":105055.97,"d":"$105,055.97"},{"v":210706.27,"d":"$210,706.27"},{"v":181418.58,"d":"$181,418.58"},{"v":189253.71,"d":"$189,253.71"},{"v":7174410.689999999,"d":"$7,174,410.69"},{"v":106333.20000000003,"d":"$106,333.20"},{"v":147685.00000000003,"d":"$147,685.00"},{"v":383981.00000000006,"d":"$383,981.00"},{"v":40170.32000000001,"d":"$40,170.32"},{"v":674625.08,"d":"$674,625.08"},{"v":1014891.3200000002,"d":"$1,014,891.32"},{"v":1607994.2800000003,"d":"$1,607,994.28"},{"v":1107046.7600000002,"d":"$1,107,046.76"},{"v":3369133.78872,"d":"$3,369,133.79"},{"v":8451860.748720001,"d":"$8,451,860.75"},{"v":1124627.18,"d":"$1,124,627.18"},{"v":7327233.568720002,"d":"$7,327,233.57"},{"v":8339398.028720002,"d":"$8,339,398.03"},{"v":270569.25,"d":"$270,569.25"},{"v":270569.25,"d":"$270,569.25"},{"v":282447.9,"d":"$282,447.90"},{"v":282447.9,"d":"$282,447.90"},{"v":15178.27,"d":"$15,178.27"},{"v":15178.27,"d":"$15,178.27"},{"v":15838.2,"d":"$15,838.20"},{"v":15838.2,"d":"$15,838.20"},{"v":19137.82,"d":"$19,137.82"},{"v":552357.22,"d":"$552,357.22"},{"v":223745.16,"d":"$223,745.16"},{"v":85868.01,"d":"$85,868.01"},{"v":2049175.45,"d":"$2,049,175.45"},{"v":17562984.22,"d":"$17,562,984.22"},{"v":563258.43,"d":"$563,258.43"},{"v":5562.33,"d":"$5,562.33"},{"v":437975.99000000005,"d":"$437,975.99"},{"v":17562984.16872,"d":"$17,562,984.17"}]
["35050122002","LASALLE ELEM SCHOOL DIST 122",846.88,{"v":12741033.78,"d":"$12,741,033.78"},{"v":9441814.870000001,"d":"$9,441,814.87"},{"v":0.7410556343411564,"d":"74%"},1,{"v":265215.97,"d":"$265,215.97"},{"v":6804115.709999998,"d":"$6,804,115.71"},{"v":7069331.679999998,"d":"$7,069,331.68"},{"v":0.9,"d":"0.90"},{"v":2814144.94,"d":"$2,814,144.94"},{"v":562828.98,"d":"$562,828.98"},{"v":265473.53,"d":"$265,473.53"},{"v":117360.63,"d":"$117,360.63"},{"v":108808.88,"d":"$108,808.88"},{"v":160303.48,"d":"$160,303.48"},{"v":61652.3,"d":"$61,652.30"},{"v":100244.25,"d":"$100,244.25"},{"v":135508.42,"d":"$135,508.42"},{"v":75116.35,"d":"$75,116.35"},{"v":201030.98,"d":"$201,030.98"},{"v":173088.13,"d":"$173,088.13"},{"v":120288.37,"d":"$120,288.37"},{"v":4895849.24,"d":"$4,895,849.24"},{"v":75116.7,"d":"$75,116.70"},{"v":105860,"d":"$105,860.00"},{"v":275236,"d":"$275,236.00"},{"v":28793.92,"d":"$28,793.92"},{"v":483568.48,"d":"$483,568.48"},{"v":139088.43,"d":"$139,088.43"},{"v":1152603.68,"d":"$1,152,603.68"},{"v":793526.5599999999,"d":"$793,526.56"},{"v":2596139.81532,"d":"$2,596,139.82"},{"v":5649933.58532,"d":"$5,649,933.59"},{"v":806128.13,"d":"$806,128.13"},{"v":4843805.455320001,"d":"$4,843,805.46"},{"v":5569320.765320001,"d":"$5,569,320.77"},{"v":312144.52,"d":"$312,144.52"},{"v":312144.52,"d":"$312,144.52"},{"v":324683.1,"d":"$324,683.10"},{"v":324683.1,"d":"$324,683.10"},{"v":71931.82,"d":"$71,931.82"},{"v":71931.82,"d":"$71,931.82"},{"v":75231.45,"d":"$75,231.45"},{"v":75231.45,"d":"$75,231.45"},{"v":90409.72,"d":"$90,409.72"},{"v":395955,"d":"$395,955.00"},{"v":160390.8,"d":"$160,390.80"},{"v":61126.38,"d":"$61,126.38"},{"v":2275863.6799999997,"d":"$2,275,863.68"},{"v":12741033.78,"d":"$12,741,033.78"},{"v":1870179.28,"d":"$1,870,179.28"},{"v":130017.65000000001,"d":"$130,017.65"},{"v":508386.97000000003,"d":"$508,386.97"},{"v":12741033.685320001,"d":"$12,741,033.69"}]
["35050124002","PERU ELEM SCHOOL DISTRICT 124",856.65,{"v":11641875,"d":"$11,641,875.00"},{"v":8987069.49,"d":"$8,987,069.49"},{"v":0.7719606583990981,"d":"77%"},1,{"v":73943.49,"d":"$73,943.49"},{"v":1907782.12,"d":"$1,907,782.12"},{"v":1981725.61,"d":"$1,981,725.61"},{"v":0.9,"d":"0.90"},{"v":2653480.11,"d":"$2,653,480.11"},{"v":530696.01,"d":"$530,696.01"},{"v":268611.51,"d":"$268,611.51"},{"v":118615.83,"d":"$118,615.83"},{"v":95677.78,"d":"$95,677.78"},{"v":161656.25,"d":"$161,656.25"},{"v":62753.23,"d":"$62,753.23"},{"v":101313.52,"d":"$101,313.52"},{"v":136957.71,"d":"$136,957.71"},{"v":75918.31,"d":"$75,918.31"},{"v":203181.04,"d":"$203,181.04"},{"v":174939.34,"d":"$174,939.34"},{"v":121571.45,"d":"$121,571.45"},{"v":4705372.09,"d":"$4,705,372.09"},{"v":76018.5,"d":"$76,018.50"},{"v":107081.25,"d":"$107,081.25"},{"v":278411.25,"d":"$278,411.25"},{"v":29126.1,"d":"$29,126.10"},{"v":489147.15,"d":"$489,147.15"},{"v":140115.25,"d":"$140,115.25"},{"v":1165900.65,"d":"$1,165,900.65"},{"v":802681.0499999999,"d":"$802,681.05"},{"v":2318286.0065999995,"d":"$2,318,286.01"},{"v":5406767.206599999,"d":"$5,406,767.21"},{"v":815428,"d":"$815,428.00"},{"v":4591339.206599999,"d":"$4,591,339.21"},{"v":5325224.406599999,"d":"$5,325,224.41"},{"v":188738.55,"d":"$188,738.55"},{"v":188738.55,"d":"$188,738.55"},{"v":196657.65,"d":"$196,657.65"},{"v":196657.65,"d":"$196,657.65"},{"v":40255.42,"d":"$40,255.42"},{"v":40255.42,"d":"$40,255.42"},{"v":42235.2,"d":"$42,235.20"},{"v":42235.2,"d":"$42,235.20"},{"v":50814.22,"d":"$50,814.22"},{"v":400574.47,"d":"$400,574.47"},{"v":162262.02,"d":"$162,262.02"},{"v":61854.07,"d":"$61,854.07"},{"v":1611278.4200000002,"d":"$1,611,278.42"},{"v":11641875,"d":"$11,641,875.00"},{"v":394478.1100000001,"d":"$394,478.11"},{"v":1848.58,"d":"$1,848.58"},{"v":329568.78,"d":"$329,568.78"},{"v":11641874.916599998,"d":"$11,641,874.92"}]
["35050125002","OGLESBY ELEM SCH DIST 125",396.38,{"v":5347626.61,"d":"$5,347,626.61"},{"v":4777660.82,"d":"$4,777,660.82"},{"v":0.8934170555337259,"d":"89%"},2,{"v":8224.75,"d":"$8,224.75"},{"v":2361109.41,"d":"$2,361,109.41"},{"v":2369334.16,"d":"$2,369,334.16"},{"v":0.9,"d":"0.90"},{"v":1227579.73,"d":"$1,227,579.73"},{"v":245515.94,"d":"$245,515.94"},{"v":123636.6,"d":"$123,636.60"},{"v":54600.93,"d":"$54,600.93"},{"v":43785.98,"d":"$43,785.98"},{"v":75755.23,"d":"$75,755.23"},{"v":28624.28,"d":"$28,624.28"},{"v":46780.65,"d":"$46,780.65"},{"v":63044.02,"d":"$63,044.02"},{"v":35018.65,"d":"$35,018.65"},{"v":93527.78,"d":"$93,527.78"},{"v":80527.63,"d":"$80,527.63"},{"v":56134.57,"d":"$56,134.57"},{"v":2174531.9899999998,"d":"$2,174,531.99"},{"v":35097.3,"d":"$35,097.30"},{"v":49547.5,"d":"$49,547.50"},{"v":128823.5,"d":"$128,823.50"},{"v":13476.92,"d":"$13,476.92"},{"v":226332.97999999998,"d":"$226,332.98"},{"v":66043.01000000001,"d":"$66,043.01"},{"v":539473.1799999999,"d":"$539,473.18"},{"v":371408.06,"d":"$371,408.06"},{"v":1062736.09332,"d":"$1,062,736.09"},{"v":2492938.54332,"d":"$2,492,938.54"},{"v":377306.19,"d":"$377,306.19"},{"v":2115632.3533199998,"d":"$2,115,632.35"},{"v":2455207.9233199996,"d":"$2,455,207.92"},{"v":95689.12,"d":"$95,689.12"},{"v":95689.12,"d":"$95,689.12"},{"v":99648.67,"d":"$99,648.67"},{"v":99648.67,"d":"$99,648.67"},{"v":7259.17,"d":"$7,259.17"},{"v":7259.17,"d":"$7,259.17"},{"v":7259.17,"d":"$7,259.17"},{"v":7259.17,"d":"$7,259.17"},{"v":9238.95,"d":"$9,238.95"},{"v":185438.92,"d":"$185,438.92"},{"v":75116.35,"d":"$75,116.35"},{"v":28380.1,"d":"$28,380.10"},{"v":717886.5799999998,"d":"$717,886.58"},{"v":5347626.61,"d":"$5,347,626.61"},{"v":252251.94,"d":"$252,251.94"},{"v":2964.97,"d":"$2,964.97"},{"v":203938.77000000002,"d":"$203,938.77"},{"v":5347626.493319999,"d":"$5,347,626.49"}]
["35050140017","OTTAWA TWP H S DIST 140",1215.82,{"v":18014974.85,"d":"$18,014,974.85"},{"v":17710837.82,"d":"$17,710,837.82"},{"v":0.9831175434585744,"d":"98%"},3,{"v":20472.41,"d":"$20,472.41"},{"v":2675769.6,"d":"$2,675,769.60"},{"v":2696242.0100000002,"d":"$2,696,242.01"},{"v":0.9,"d":"0.90"},{"v":3877751.34,"d":"$3,877,751.34"},{"v":1292454.51,"d":"$1,292,454.51"},{"v":438159.91,"d":"$438,159.91"},{"v":145812.69,"d":"$145,812.69"},{"v":131415.53,"d":"$131,415.53"},{"v":374676.84,"d":"$374,676.84"},{"v":89175.65,"d":"$89,175.65"},{"v":162262.02,"d":"$162,262.02"},{"v":146378.08,"d":"$146,378.08"},{"v":108263.79,"d":"$108,263.79"},{"v":217156.46,"d":"$217,156.46"},{"v":186972.21,"d":"$186,972.21"},{"v":194706.78,"d":"$194,706.78"},{"v":7365185.8100000005,"d":"$7,365,185.81"},{"v":109423.79999999999,"d":"$109,423.80"},{"v":151977.5,"d":"$151,977.50"},{"v":395141.5,"d":"$395,141.50"},{"v":41337.88,"d":"$41,337.88"},{"v":694233.22,"d":"$694,233.22"},{"v":1044389.3799999999,"d":"$1,044,389.38"},{"v":1654731.02,"d":"$1,654,731.02"},{"v":1139223.3399999999,"d":"$1,139,223.34"},{"v":3452604.10548,"d":"$3,452,604.11"},{"v":8683061.74548,"d":"$8,683,061.75"},{"v":1157314.74,"d":"$1,157,314.74"},{"v":7525747.005480001,"d":"$7,525,747.01"},{"v":8567330.26548,"d":"$8,567,330.27"},{"v":268589.47,"d":"$268,589.47"},{"v":268589.47,"d":"$268,589.47"},{"v":279808.2,"d":"$279,808.20"},{"v":279808.2,"d":"$279,808.20"},{"v":18477.9,"d":"$18,477.90"},{"v":18477.9,"d":"$18,477.90"},{"v":19137.82,"d":"$19,137.82"},{"v":19137.82,"d":"$19,137.82"},{"v":23097.37,"d":"$23,097.37"},{"v":568855.35,"d":"$568,855.35"},{"v":230428.11,"d":"$230,428.11"},{"v":88051.09,"d":"$88,051.09"},{"v":2082458.7,"d":"$2,082,458.70"},{"v":18014974.85,"d":"$18,014,974.85"},{"v":567862.51,"d":"$567,862.51"},{"v":3159.44,"d":"$3,159.44"},{"v":528229.0200000001,"d":"$528,229.02"},{"v":18014974.775480002,"d":"$18,014,974.78"}]
["35050141002","OTTAWA ELEM SCHOOL DIST 141",1680.03,{"v":23131722.21,"d":"$23,131,722.21"},{"v":20531866.57,"d":"$20,531,866.57"},{"v":0.8876064818521785,"d":"89%"},2,{"v":34860.05,"d":"$34,860.05"},{"v":7224484.18,"d":"$7,224,484.18"},{"v":7259344.2299999995,"d":"$7,259,344.23"},{"v":0.9,"d":"0.90"},{"v":5261773.24,"d":"$5,261,773.24"},{"v":1052354.64,"d":"$1,052,354.64"},{"v":526553.88,"d":"$526,553.88"},{"v":234093.68,"d":"$234,093.68"},{"v":190775.52,"d":"$190,775.52"},{"v":321959.73,"d":"$321,959.73"},{"v":122754.14,"d":"$122,754.14"},{"v":199419.22,"d":"$199,419.22"},{"v":270292.21,"d":"$270,292.21"},{"v":149430.76,"d":"$149,430.76"},{"v":400986.93,"d":"$400,986.93"},{"v":345250.66,"d":"$345,250.66"},{"v":239293.67,"d":"$239,293.67"},{"v":9314938.28,"d":"$9,314,938.28"},{"v":148780.8,"d":"$148,780.80"},{"v":210003.75,"d":"$210,003.75"},{"v":546009.75,"d":"$546,009.75"},{"v":57121.02,"d":"$57,121.02"},{"v":959297.1300000001,"d":"$959,297.13"},{"v":278805.52,"d":"$278,805.52"},{"v":2286520.83,"d":"$2,286,520.83"},{"v":1574188.1099999999,"d":"$1,574,188.11"},{"v":4619851.681919999,"d":"$4,619,851.68"},{"v":10680578.59192,"d":"$10,680,578.59"},{"v":1599186.95,"d":"$1,599,186.95"},{"v":9081391.64192,"d":"$9,081,391.64"},{"v":10520659.89192,"d":"$10,520,659.89"},{"v":434230.65,"d":"$434,230.65"},{"v":434230.65,"d":"$434,230.65"},{"v":452048.62,"d":"$452,048.62"},{"v":452048.62,"d":"$452,048.62"},{"v":55433.7,"d":"$55,433.70"},{"v":55433.7,"d":"$55,433.70"},{"v":58073.4,"d":"$58,073.40"},{"v":58073.4,"d":"$58,073.40"},{"v":69952.05,"d":"$69,952.05"},{"v":785970.67,"d":"$785,970.67"},{"v":318375.73,"d":"$318,375.73"},{"v":122252.76,"d":"$122,252.76"},{"v":3296123.9499999997,"d":"$3,296,123.95"},{"v":23131722.21,"d":"$23,131,722.21"},{"v":1399634.59,"d":"$1,399,634.59"},{"v":20599.44,"d":"$20,599.44"},{"v":958849.73,"d":"$958,849.73"},{"v":23131722.12192,"d":"$23,131,722.12"}]
["35050150002","MARSEILLES ELEM SCHOOL DIST 150",476.89,{"v":6567094.29,"d":"$6,567,094.29"},{"v":5559885.33,"d":"$5,559,885.33"},{"v":0.8466279125101461,"d":"85%"},2,{"v":24699.45,"d":"$24,699.45"},{"v":3025189.08,"d":"$3,025,189.08"},{"v":3049888.5300000003,"d":"$3,049,888.53"},{"v":0.9,"d":"0.90"},{"v":1493680.86,"d":"$1,493,680.86"},{"v":298736.17,"d":"$298,736.17"},{"v":148740.48,"d":"$148,740.48"},{"v":65897.68,"d":"$65,897.68"},{"v":54206.98,"d":"$54,206.98"},{"v":91312.11,"d":"$91,312.11"},{"v":34679.42,"d":"$34,679.42"},{"v":56404.09,"d":"$56,404.09"},{"v":76087.62,"d":"$76,087.62"},{"v":42236.24,"d":"$42,236.24"},{"v":112878.36,"d":"$112,878.36"},{"v":97188.52,"d":"$97,188.52"},{"v":67682.25,"d":"$67,682.25"},{"v":2639730.78,"d":"$2,639,730.78"},{"v":42132.6,"d":"$42,132.60"},{"v":59611.25,"d":"$59,611.25"},{"v":154989.25,"d":"$154,989.25"},{"v":16214.259999999998,"d":"$16,214.26"},{"v":272304.19,"d":"$272,304.19"},{"v":79079.18,"d":"$79,079.18"},{"v":649047.29,"d":"$649,047.29"},{"v":446845.92999999993,"d":"$446,845.93"},{"v":1311651.3549599997,"d":"$1,311,651.35"},{"v":3031875.3049599994,"d":"$3,031,875.30"},{"v":453942.05,"d":"$453,942.05"},{"v":2577933.25496,"d":"$2,577,933.25"},{"v":2986481.09496,"d":"$2,986,481.09"},{"v":125385.75,"d":"$125,385.75"},{"v":125385.75,"d":"$125,385.75"},{"v":130665.15,"d":"$130,665.15"},{"v":130665.15,"d":"$130,665.15"},{"v":15178.27,"d":"$15,178.27"},{"v":15178.27,"d":"$15,178.27"},{"v":15838.2,"d":"$15,838.20"},{"v":15838.2,"d":"$15,838.20"},{"v":19137.82,"d":"$19,137.82"},{"v":223054.65,"d":"$223,054.65"},{"v":90353.48,"d":"$90,353.48"},{"v":34201.66,"d":"$34,201.66"},{"v":940882.35,"d":"$940,882.35"},{"v":6567094.29,"d":"$6,567,094.29"},{"v":469034.86,"d":"$469,034.86"},{"v":2070.24,"d":"$2,070.24"},{"v":191524.27000000002,"d":"$191,524.27"},{"v":6567094.224959999,"d":"$6,567,094.22"}]
["35050160017","SENECA TWP H S DIST 160",392.31,{"v":5389497.08,"d":"$5,389,497.08"},{"v":13888638.540000001,"d":"$13,888,638.54"},{"v":2.576982292381166,"d":"258%"},4,{"v":343.3,"d":"$343.30"},{"v":305213.33,"d":"$305,213.33"},{"v":305556.63,"d":"$305,556.63"},{"v":0.9,"d":"0.90"},{"v":1202593.77,"d":"$1,202,593.77"},{"v":400824.49,"d":"$400,824.49"},{"v":141481.62,"d":"$141,481.62"},{"v":46919.92,"d":"$46,919.92"},{"v":38965.67,"d":"$38,965.67"},{"v":120266.64,"d":"$120,266.64"},{"v":28624.28,"d":"$28,624.28"},{"v":52394.32,"d":"$52,394.32"},{"v":47101.86,"d":"$47,101.86"},{"v":34751.34,"d":"$34,751.34"},{"v":69877.08,"d":"$69,877.08"},{"v":60164.32,"d":"$60,164.32"},{"v":62870.72,"d":"$62,870.72"},{"v":2306836.03,"d":"$2,306,836.03"},{"v":35307.9,"d":"$35,307.90"},{"v":49038.75,"d":"$49,038.75"},{"v":127500.75,"d":"$127,500.75"},{"v":13338.54,"d":"$13,338.54"},{"v":112004.5,"d":"$112,004.50"},{"v":336994.29,"d":"$336,994.29"},{"v":533933.91,"d":"$533,933.91"},{"v":367594.47000000003,"d":"$367,594.47"},{"v":1037062.5878399999,"d":"$1,037,062.59"},{"v":2612775.69784,"d":"$2,612,775.70"},{"v":373432.04,"d":"$373,432.04"},{"v":2239343.65784,"d":"$2,239,343.66"},{"v":2575432.48784,"d":"$2,575,432.49"},{"v":50814.22,"d":"$50,814.22"},{"v":50814.22,"d":"$50,814.22"},{"v":52794,"d":"$52,794.00"},{"v":52794,"d":"$52,794.00"},{"v":2639.7,"d":"$2,639.70"},{"v":2639.7,"d":"$2,639.70"},{"v":2639.7,"d":"$2,639.70"},{"v":2639.7,"d":"$2,639.70"},{"v":3299.62,"d":"$3,299.62"},{"v":183459.15,"d":"$183,459.15"},{"v":74314.4,"d":"$74,314.40"},{"v":28380.1,"d":"$28,380.10"},{"v":507228.51,"d":"$507,228.51"},{"v":5389497.08,"d":"$5,389,497.08"},{"v":71963.04,"d":"$71,963.04"},{"v":4.22,"d":"$4.22"},{"v":131670.79,"d":"$131,670.79"},{"v":5389497.02784,"d":"$5,389,497.03"}]
["35050170004","SENECA COMM CONS SCH DIST 170",441.98,{"v":5489519.35,"d":"$5,489,519.35"},{"v":9446430.39,"d":"$9,446,430.39"},{"v":1.7208119304652785,"d":"172%"},4,{"v":349.67,"d":"$349.67"},{"v":438332.0800000001,"d":"$438,332.08"},{"v":438681.75000000006,"d":"$438,681.75"},{"v":0.9,"d":"0.90"},{"v":1320464.08,"d":"$1,320,464.08"},{"v":264092.81,"d":"$264,092.81"},{"v":138071.34,"d":"$138,071.34"},{"v":60876.9,"d":"$60,876.90"},{"v":44876.54,"d":"$44,876.54"},{"v":83195.47,"d":"$83,195.47"},{"v":31927.08,"d":"$31,927.08"},{"v":52127.01,"d":"$52,127.01"},{"v":70290.46,"d":"$70,290.46"},{"v":39028.42,"d":"$39,028.42"},{"v":104278.1,"d":"$104,278.10"},{"v":89783.68,"d":"$89,783.68"},{"v":62549.95,"d":"$62,549.95"},{"v":2361561.840000001,"d":"$2,361,561.84"},{"v":39148.2,"d":"$39,148.20"},{"v":55247.5,"d":"$55,247.50"},{"v":143643.5,"d":"$143,643.50"},{"v":15027.32,"d":"$15,027.32"},{"v":126185.29,"d":"$126,185.29"},{"v":72166.5,"d":"$72,166.50"},{"v":601534.78,"d":"$601,534.78"},{"v":414135.26,"d":"$414,135.26"},{"v":1099566.5947199997,"d":"$1,099,566.59"},{"v":2566654.94472,"d":"$2,566,654.94"},{"v":420711.92,"d":"$420,711.92"},{"v":2145943.0247199996,"d":"$2,145,943.02"},{"v":2524583.74472,"d":"$2,524,583.74"},{"v":68632.2,"d":"$68,632.20"},{"v":68632.2,"d":"$68,632.20"},{"v":71931.82,"d":"$71,931.82"},{"v":71931.82,"d":"$71,931.82"},{"v":0,"d":"$0.00"},{"v":0,"d":"$0.00"},{"v":0,"d":"$0.00"},{"v":0,"d":"$0.00"},{"v":0,"d":"$0.00"},{"v":206556.52,"d":"$206,556.52"},{"v":83670.53,"d":"$83,670.53"},{"v":32018.58,"d":"$32,018.58"},{"v":603373.67,"d":"$603,373.67"},{"v":5489519.35,"d":"$5,489,519.35"},{"v":101546.61000000002,"d":"$101,546.61"},{"v":0.08,"d":"$0.08"},{"v":222138.04,"d":"$222,138.04"},{"v":5489519.254720001,"d":"$5,489,519.25"}]
["35050185004","WALTHAM C C SCHOOL DIST 185",222,{"v":2619638.13,"d":"$2,619,638.13"},{"v":2905130.75,"d":"$2,905,130.75"},{"v":1.1089817012245122,"d":"111%"},4,{"v":166.86,"d":"$166.86"},{"v":166315.06000000003,"d":"$166,315.06"},{"v":166481.92,"d":"$166,481.92"},{"v":0.9,"d":"0.90"},{"v":635755.76,"d":"$635,755.76"},{"v":127151.14,"d":"$127,151.14"},{"v":69663.26,"d":"$69,663.26"},{"v":30752.25,"d":"$30,752.25"},{"v":20883.89,"d":"$20,883.89"},{"v":43288.7,"d":"$43,288.70"},{"v":15963.54,"d":"$15,963.54"},{"v":26197.16,"d":"$26,197.16"},{"v":35507.55,"d":"$35,507.55"},{"v":19514.21,"d":"$19,514.21"},{"v":52676.56,"d":"$52,676.56"},{"v":45354.64,"d":"$45,354.64"},{"v":31435.36,"d":"$31,435.36"},{"v":1154144.02,"d":"$1,154,144.02"},{"v":19620,"d":"$19,620.00"},{"v":27750,"d":"$27,750.00"},{"v":72150,"d":"$72,150.00"},{"v":7548,"d":"$7,548.00"},{"v":63381,"d":"$63,381.00"},{"v":37914,"d":"$37,914.00"},{"v":302142,"d":"$302,142.00"},{"v":208014,"d":"$208,014.00"},{"v":517888.14900000003,"d":"$517,888.15"},{"v":1256407.149,"d":"$1,256,407.15"},{"v":211317.36,"d":"$211,317.36"},{"v":1045089.789,"d":"$1,045,089.79"},{"v":1235275.409,"d":"$1,235,275.41"},{"v":15838.2,"d":"$15,838.20"},{"v":15838.2,"d":"$15,838.20"},{"v":16498.12,"d":"$16,498.12"},{"v":16498.12,"d":"$16,498.12"},{"v":659.92,"d":"$659.92"},{"v":659.92,"d":"$659.92"},{"v":659.92,"d":"$659.92"},{"v":659.92,"d":"$659.92"},{"v":1319.85,"d":"$1,319.85"},{"v":103608.22,"d":"$103,608.22"},{"v":41968.92,"d":"$41,968.92"},{"v":16009.29,"d":"$16,009.29"},{"v":230218.6,"d":"$230,218.60"},{"v":2619638.13,"d":"$2,619,638.13"},{"v":27172.14,"d":"$27,172.14"},{"v":1.04,"d":"$1.04"},{"v":37995.759999999995,"d":"$37,995.76"},{"v":2619638.029,"d":"$2,619,638.03"}]
["35050195004","WALLACE C C SCHOOL DIST 195",352.31,{"v":4362518.81,"d":"$4,362,518.81"},{"v":3832063.19,"d":"$3,832,063.19"},{"v":0.8784061128208638,"d":"88%"},2,{"v":7310.31,"d":"$7,310.31"},{"v":355868.29000000004,"d":"$355,868.29"},{"v":363178.60000000003,"d":"$363,178.60"},{"v":0.9,"d":"0.90"},{"v":1028631.48,"d":"$1,028,631.48"},{"v":205726.29,"d":"$205,726.29"},{"v":109829.47,"d":"$109,829.47"},{"v":48324.96,"d":"$48,324.96"},{"v":34469.82,"d":"$34,469.82"},{"v":65609.44,"d":"$65,609.44"},{"v":25321.48,"d":"$25,321.48"},{"v":41434.29,"d":"$41,434.29"},{"v":55797.58,"d":"$55,797.58"},{"v":31276.2,"d":"$31,276.20"},{"v":82777.46,"d":"$82,777.46"},{"v":71271.58,"d":"$71,271.58"},{"v":49719.19,"d":"$49,719.19"},{"v":1850189.24,"d":"$1,850,189.24"},{"v":31093.199999999997,"d":"$31,093.20"},{"v":44038.75,"d":"$44,038.75"},{"v":114500.75,"d":"$114,500.75"},{"v":11978.539999999999,"d":"$11,978.54"},{"v":201169.00999999998,"d":"$201,169.01"},{"v":57051.92,"d":"$57,051.92"},{"v":479493.91,"d":"$479,493.91"},{"v":330114.47,"d":"$330,114.47"},{"v":848491.3208400001,"d":"$848,491.32"},{"v":2117931.87084,"d":"$2,117,931.87"},{"v":335356.84,"d":"$335,356.84"},{"v":1782575.03084,"d":"$1,782,575.03"},{"v":2084396.18084,"d":"$2,084,396.18"},{"v":37615.72,"d":"$37,615.72"},{"v":37615.72,"d":"$37,615.72"},{"v":39595.5,"d":"$39,595.50"},{"v":39595.5,"d":"$39,595.50"},{"v":3299.62,"d":"$3,299.62"},{"v":3299.62,"d":"$3,299.62"},{"v":3299.62,"d":"$3,299.62"},{"v":3299.62,"d":"$3,299.62"},{"v":3959.55,"d":"$3,959.55"},{"v":164321.32,"d":"$164,321.32"},{"v":66562.18,"d":"$66,562.18"},{"v":25469.32,"d":"$25,469.32"},{"v":427933.29,"d":"$427,933.29"},{"v":4362518.81,"d":"$4,362,518.81"},{"v":44163.13,"d":"$44,163.13"},{"v":90.74000000000001,"d":"$90.74"},{"v":154854.88,"d":"$154,854.88"},{"v":4362518.71084,"d":"$4,362,518.71"}]
["35050210004","MILLER TWP CC SCH DIST 210",193.25,{"v":2361714.03,"d":"$2,361,714.03"},{"v":2203796.8400000003,"d":"$2,203,796.84"},{"v":0.9331344997768424,"d":"93%"},3,{"v":2683.87,"d":"$2,683.87"},{"v":208803.56,"d":"$208,803.56"},{"v":211487.43,"d":"$211,487.43"},{"v":0.9,"d":"0.90"},{"v":573623.65,"d":"$573,623.65"},{"v":114724.72,"d":"$114,724.72"},{"v":60249.31,"d":"$60,249.31"},{"v":26359.07,"d":"$26,359.07"},{"v":19227.72,"d":"$19,227.72"},{"v":35172.07,"d":"$35,172.07"},{"v":13211.2,"d":"$13,211.20"},{"v":22722.03,"d":"$22,722.03"},{"v":30435.04,"d":"$30,435.04"},{"v":16841.03,"d":"$16,841.03"},{"v":45151.34,"d":"$45,151.34"},{"v":38875.41,"d":"$38,875.41"},{"v":27265.36,"d":"$27,265.36"},{"v":1023857.9499999998,"d":"$1,023,857.95"},{"v":17190,"d":"$17,190.00"},{"v":24156.25,"d":"$24,156.25"},{"v":62806.25,"d":"$62,806.25"},{"v":6570.5,"d":"$6,570.50"},{"v":55172.87,"d":"$55,172.87"},{"v":31129,"d":"$31,129.00"},{"v":263013.25,"d":"$263,013.25"},{"v":181075.25,"d":"$181,075.25"},{"v":471330.936,"d":"$471,330.94"},{"v":1112444.3059999999,"d":"$1,112,444.31"},{"v":183950.81,"d":"$183,950.81"},{"v":928493.4959999998,"d":"$928,493.50"},{"v":1094049.2159999998,"d":"$1,094,049.22"},{"v":25077.15,"d":"$25,077.15"},{"v":25077.15,"d":"$25,077.15"},{"v":26397,"d":"$26,397.00"},{"v":26397,"d":"$26,397.00"},{"v":0,"d":"$0.00"},{"v":0,"d":"$0.00"},{"v":0,"d":"$0.00"},{"v":0,"d":"$0.00"},{"v":0,"d":"$0.00"},{"v":90409.72,"d":"$90,409.72"},{"v":36622.56,"d":"$36,622.56"},{"v":13826.2,"d":"$13,826.20"},{"v":243806.78000000003,"d":"$243,806.78"},{"v":2361714.03,"d":"$2,361,714.03"},{"v":27228.820000000003,"d":"$27,228.82"},{"v":1.96,"d":"$1.96"},{"v":68170.23999999999,"d":"$68,170.24"},{"v":2361713.9459999995,"d":"$2,361,713.95"}]
["35050230004","RUTLAND C C SCHOOL DIST 230",69.3,{"v":836397.96,"d":"$836,397.96"},{"v":1899443.29,"d":"$1,899,443.29"},{"v":2.270980299856303,"d":"227%"},4,{"v":53.27,"d":"$53.27"},{"v":72740.73,"d":"$72,740.73"},{"v":72794,"d":"$72,794.00"},{"v":0.9,"d":"0.90"},{"v":203341.42,"d":"$203,341.42"},{"v":40668.28,"d":"$40,668.28"},{"v":21338.29,"d":"$21,338.29"},{"v":9413.95,"d":"$9,413.95"},{"v":6777.2,"d":"$6,777.20"},{"v":12851.33,"d":"$12,851.33"},{"v":4954.2,"d":"$4,954.20"},{"v":8019.54,"d":"$8,019.54"},{"v":10869.66,"d":"$10,869.66"},{"v":5880.99,"d":"$5,880.99"},{"v":16125.48,"d":"$16,125.48"},{"v":13884.07,"d":"$13,884.07"},{"v":9623.07,"d":"$9,623.07"},{"v":363747.48,"d":"$363,747.48"},{"v":6147.000000000001,"d":"$6,147.00"},{"v":8662.5,"d":"$8,662.50"},{"v":22522.5,"d":"$22,522.50"},{"v":2356.2,"d":"$2,356.20"},{"v":19785.14,"d":"$19,785.14"},{"v":11346.1,"d":"$11,346.10"},{"v":94317.3,"d":"$94,317.30"},{"v":64934.100000000006,"d":"$64,934.10"},{"v":166378.80120000002,"d":"$166,378.80"},{"v":396449.6412,"d":"$396,449.64"},{"v":65965.28,"d":"$65,965.28"},{"v":330484.36120000004,"d":"$330,484.36"},{"v":389853.11120000004,"d":"$389,853.11"},{"v":7919.1,"d":"$7,919.10"},{"v":7919.1,"d":"$7,919.10"},{"v":8579.02,"d":"$8,579.02"},{"v":8579.02,"d":"$8,579.02"},{"v":0,"d":"$0.00"},{"v":0,"d":"$0.00"},{"v":0,"d":"$0.00"},{"v":0,"d":"$0.00"},{"v":0,"d":"$0.00"},{"v":32336.32,"d":"$32,336.32"},{"v":13098.58,"d":"$13,098.58"},{"v":4366.17,"d":"$4,366.17"},{"v":82797.31,"d":"$82,797.31"},{"v":836397.96,"d":"$836,397.96"},{"v":27571.239999999998,"d":"$27,571.24"},{"v":0.33,"d":"$0.33"},{"v":26978.099999999995,"d":"$26,978.10"},{"v":836397.9012,"d":"$836,397.90"}]
["35050280017","MENDOTA TWP H S DIST 280",495.65,{"v":7558194.79,"d":"$7,558,194.79"},{"v":7024646.58,"d":"$7,024,646.58"},{"v":0.9294079836754247,"d":"93%"},3,{"v":8589.21,"d":"$8,589.21"},{"v":1891418.2799999996,"d":"$1,891,418.28"},{"v":1900007.4899999995,"d":"$1,900,007.49"},{"v":0.9,"d":"0.90"},{"v":1594555.6,"d":"$1,594,555.60"},{"v":531465.38,"d":"$531,465.38"},{"v":178295.71,"d":"$178,295.71"},{"v":59191.29,"d":"$59,191.29"},{"v":55987.75,"d":"$55,987.75"},{"v":152646.12,"d":"$152,646.12"},{"v":36330.82,"d":"$36,330.82"},{"v":66027.54,"d":"$66,027.54"},{"v":59420.8,"d":"$59,420.80"},{"v":44107.47,"d":"$44,107.47"},{"v":88152.62,"d":"$88,152.62"},{"v":75899.61,"d":"$75,899.61"},{"v":79229.94,"d":"$79,229.94"},{"v":3021310.65,"d":"$3,021,310.65"},{"v":44608.5,"d":"$44,608.50"},{"v":61956.25,"d":"$61,956.25"},{"v":161086.25,"d":"$161,086.25"},{"v":16852.1,"d":"$16,852.10"},{"v":283016.15,"d":"$283,016.15"},{"v":425763.35,"d":"$425,763.35"},{"v":674579.65,"d":"$674,579.65"},{"v":464424.05,"d":"$464,424.05"},{"v":1460430.0155999998,"d":"$1,460,430.02"},{"v":3592716.3155999994,"d":"$3,592,716.32"},{"v":471799.32,"d":"$471,799.32"},{"v":3120916.9956,"d":"$3,120,917.00"},{"v":3545536.3756,"d":"$3,545,536.38"},{"v":119446.42,"d":"$119,446.42"},{"v":119446.42,"d":"$119,446.42"},{"v":124725.82,"d":"$124,725.82"},{"v":124725.82,"d":"$124,725.82"},{"v":26397,"d":"$26,397.00"},{"v":26397,"d":"$26,397.00"},{"v":27716.85,"d":"$27,716.85"},{"v":27716.85,"d":"$27,716.85"},{"v":33656.17,"d":"$33,656.17"},{"v":231633.67,"d":"$231,633.67"},{"v":93828.61,"d":"$93,828.61"},{"v":35657.05,"d":"$35,657.05"},{"v":991347.68,"d":"$991,347.68"},{"v":7558194.79,"d":"$7,558,194.79"},{"v":360315.55999999994,"d":"$360,315.56"},{"v":16918.13,"d":"$16,918.13"},{"v":187487.55,"d":"$187,487.55"},{"v":7558194.705599999,"d":"$7,558,194.71"}]
["35050289004","MENDOTA C C SCHOOL DIST 289",1004.05,{"v":14679217.22,"d":"$14,679,217.22"},{"v":12657010.049999999,"d":"$12,657,010.05"},{"v":0.8622401222290788,"d":"86%"},2,{"v":27468.32,"d":"$27,468.32"},{"v":3895940.97,"d":"$3,895,940.97"},{"v":3923409.29,"d":"$3,923,409.29"},{"v":0.9,"d":"0.90"},{"v":3185682.37,"d":"$3,185,682.37"},{"v":637136.46,"d":"$637,136.46"},{"v":314426.09,"d":"$314,426.09"},{"v":139326.53,"d":"$139,326.53"},{"v":123830.31,"d":"$123,830.31"},{"v":190064.46,"d":"$190,064.46"},{"v":73212.11,"d":"$73,212.11"},{"v":118956.51,"d":"$118,956.51"},{"v":160870.96,"d":"$160,870.96"},{"v":89284.21,"d":"$89,284.21"},{"v":238657.1,"d":"$238,657.10"},{"v":205484.31,"d":"$205,484.31"},{"v":142742.2,"d":"$142,742.20"},{"v":5619673.619999999,"d":"$5,619,673.62"},{"v":89082,"d":"$89,082.00"},{"v":125506.25,"d":"$125,506.25"},{"v":326316.25,"d":"$326,316.25"},{"v":34137.7,"d":"$34,137.70"},{"v":573312.55,"d":"$573,312.55"},{"v":164415.59999999998,"d":"$164,415.60"},{"v":1366512.05,"d":"$1,366,512.05"},{"v":940794.8499999999,"d":"$940,794.85"},{"v":2972761.1922,"d":"$2,972,761.19"},{"v":6592838.4421999995,"d":"$6,592,838.44"},{"v":955735.11,"d":"$955,735.11"},{"v":5637103.332199999,"d":"$5,637,103.33"},{"v":6497264.922199999,"d":"$6,497,264.92"},{"v":277168.5,"d":"$277,168.50"},{"v":277168.5,"d":"$277,168.50"},{"v":289047.15,"d":"$289,047.15"},{"v":289047.15,"d":"$289,047.15"},{"v":130665.15,"d":"$130,665.15"},{"v":130665.15,"d":"$130,665.15"},{"v":135944.55,"d":"$135,944.55"},{"v":135944.55,"d":"$135,944.55"},{"v":163661.4,"d":"$163,661.40"},{"v":469866.6,"d":"$469,866.60"},{"v":190330.41,"d":"$190,330.41"},{"v":72769.5,"d":"$72,769.50"},{"v":2562278.61,"d":"$2,562,278.61"},{"v":14679217.22,"d":"$14,679,217.22"},{"v":1041510.84,"d":"$1,041,510.84"},{"v":127625.61000000002,"d":"$127,625.61"},{"v":457050.86,"d":"$457,050.86"},{"v":14679217.152199998,"d":"$14,679,217.15"}]
["35050425026","LOSTANT COMM UNIT SCH DIST 425",96.75,{"v":1246509.15,"d":"$1,246,509.15"},{"v":1964542.47,"d":"$1,964,542.47"},{"v":1.5760353383687558,"d":"158%"},4,{"v":79.4,"d":"$79.40"},{"v":178692.71999999997,"d":"$178,692.72"},{"v":178772.11999999997,"d":"$178,772.12"},{"v":0.9,"d":"0.90"},{"v":293602.02,"d":"$293,602.02"},{"v":69497.25,"d":"$69,497.25"},{"v":30722.28,"d":"$30,722.28"},{"v":12301.33,"d":"$12,301.33"},{"v":9936.23,"d":"$9,936.23"},{"v":20560.73,"d":"$20,560.73"},{"v":6605.6,"d":"$6,605.60"},{"v":11761.99,"d":"$11,761.99"},{"v":13768.23,"d":"$13,768.23"},{"v":8019.54,"d":"$8,019.54"},{"v":20425.6,"d":"$20,425.60"},{"v":17586.49,"d":"$17,586.49"},{"v":14113.83,"d":"$14,113.83"},{"v":528901.1199999999,"d":"$528,901.12"},{"v":8595,"d":"$8,595.00"},{"v":12093.75,"d":"$12,093.75"},{"v":31443.75,"d":"$31,443.75"},{"v":3289.5,"d":"$3,289.50"},{"v":27622.120000000003,"d":"$27,622.12"},{"v":33873.5,"d":"$33,873.50"},{"v":131676.75,"d":"$131,676.75"},{"v":90654.75,"d":"$90,654.75"},{"v":247354.548,"d":"$247,354.55"},{"v":586603.6680000001,"d":"$586,603.67"},{"v":92094.39,"d":"$92,094.39"},{"v":494509.27800000005,"d":"$494,509.28"},{"v":577394.228,"d":"$577,394.23"},{"v":17158.05,"d":"$17,158.05"},{"v":17158.05,"d":"$17,158.05"},{"v":17817.97,"d":"$17,817.97"},{"v":17817.97,"d":"$17,817.97"},{"v":0,"d":"$0.00"},{"v":0,"d":"$0.00"},{"v":0,"d":"$0.00"},{"v":0,"d":"$0.00"},{"v":659.92,"d":"$659.92"},{"v":44874.9,"d":"$44,874.90"},{"v":18177.62,"d":"$18,177.62"},{"v":6549.25,"d":"$6,549.25"},{"v":140213.73,"d":"$140,213.73"},{"v":1246509.15,"d":"$1,246,509.15"},{"v":70179.98,"d":"$70,179.98"},{"v":0.05,"d":"$0.05"},{"v":49480.44,"d":"$49,480.44"},{"v":1246509.0779999997,"d":"$1,246,509.08"}]
["35059005026","HENRY-SENACHWINE CUSD 5",481.87,{"v":6416317.95,"d":"$6,416,317.95"},{"v":7673481.63,"d":"$7,673,481.63"},{"v":1.1959322604952891,"d":"120%"},4,{"v":408.7,"d":"$408.70"},{"v":698265.0399999999,"d":"$698,265.04"},{"v":698673.7399999999,"d":"$698,673.74"},{"v":0.9,"d":"0.90"},{"v":1498017.06,"d":"$1,498,017.06"},{"v":360415.67,"d":"$360,415.67"},{"v":156687.29,"d":"$156,687.29"},{"v":63044.61,"d":"$63,044.61"},{"v":51402.37,"d":"$51,402.37"},{"v":108200.25,"d":"$108,200.25"},{"v":34679.42,"d":"$34,679.42"},{"v":59077.27,"d":"$59,077.27"},{"v":70290.46,"d":"$70,290.46"},{"v":42236.24,"d":"$42,236.24"},{"v":104278.1,"d":"$104,278.10"},{"v":89783.68,"d":"$89,783.68"},{"v":70889.94,"d":"$70,889.94"},{"v":2709002.3600000003,"d":"$2,709,002.36"},{"v":43016.4,"d":"$43,016.40"},{"v":60233.75,"d":"$60,233.75"},{"v":156607.75,"d":"$156,607.75"},{"v":16383.579999999998,"d":"$16,383.58"},{"v":137573.88,"d":"$137,573.88"},{"v":179904.5,"d":"$179,904.50"},{"v":655825.0700000001,"d":"$655,825.07"},{"v":451512.19,"d":"$451,512.19"},{"v":1280635.2196799999,"d":"$1,280,635.22"},{"v":2981692.33968,"d":"$2,981,692.34"},{"v":458682.41,"d":"$458,682.41"},{"v":2523009.9296799996,"d":"$2,523,009.93"},{"v":2935824.0896799997,"d":"$2,935,824.09"},{"v":102948.3,"d":"$102,948.30"},{"v":102948.3,"d":"$102,948.30"},{"v":106907.85,"d":"$106,907.85"},{"v":106907.85,"d":"$106,907.85"},{"v":0,"d":"$0.00"},{"v":0,"d":"$0.00"},{"v":0,"d":"$0.00"},{"v":0,"d":"$0.00"},{"v":659.92,"d":"$659.92"},{"v":225034.42,"d":"$225,034.42"},{"v":91155.43,"d":"$91,155.43"},{"v":34929.36,"d":"$34,929.36"},{"v":771491.43,"d":"$771,491.43"},{"v":6416317.95,"d":"$6,416,317.95"},{"v":250157.93,"d":"$250,157.93"},{"v":0.32,"d":"$0.32"},{"v":199460.3,"d":"$199,460.30"},{"v":6416317.87968,"d":"$6,416,317.88"}]
["35059007026","MIDLAND COMMUNITY UNIT DIST 7",638.79,{"v":8701081.36,"d":"$8,701,081.36"},{"v":6816426.5200000005,"d":"$6,816,426.52"},{"v":0.7833999290405441,"d":"78%"},2,{"v":37275.7,"d":"$37,275.70"},{"v":1244971.2500000002,"d":"$1,244,971.25"},{"v":1282246.9500000002,"d":"$1,282,246.95"},{"v":0.9,"d":"0.90"},{"v":1975428.1,"d":"$1,975,428.10"},{"v":481974.03,"d":"$481,974.03"},{"v":209189.14,"d":"$209,189.14"},{"v":84164.44,"d":"$84,164.44"},{"v":67931.64,"d":"$67,931.64"},{"v":144965.23,"d":"$144,965.23"},{"v":46239.22,"d":"$46,239.22"},{"v":78591.49,"d":"$78,591.49"},{"v":93479.07,"d":"$93,479.07"},{"v":56404.09,"d":"$56,404.09"},{"v":138679.12,"d":"$138,679.12"},{"v":119403.04,"d":"$119,403.04"},{"v":94306.08,"d":"$94,306.08"},{"v":3590754.6900000004,"d":"$3,590,754.69"},{"v":56928.600000000006,"d":"$56,928.60"},{"v":79848.75,"d":"$79,848.75"},{"v":207606.75,"d":"$207,606.75"},{"v":21718.86,"d":"$21,718.86"},{"v":364749.08999999997,"d":"$364,749.09"},{"v":248314.14,"d":"$248,314.14"},{"v":869393.1900000001,"d":"$869,393.19"},{"v":598546.23,"d":"$598,546.23"},{"v":1698523.8855599998,"d":"$1,698,523.89"},{"v":4145629.4955599997,"d":"$4,145,629.50"},{"v":608051.42,"d":"$608,051.42"},{"v":3537578.07556,"d":"$3,537,578.08"},{"v":4084824.34556,"d":"$4,084,824.35"},{"v":137264.4,"d":"$137,264.40"},{"v":137264.4,"d":"$137,264.40"},{"v":142543.8,"d":"$142,543.80"},{"v":142543.8,"d":"$142,543.80"},{"v":0,"d":"$0.00"},{"v":0,"d":"$0.00"},{"v":0,"d":"$0.00"},{"v":0,"d":"$0.00"},{"v":0,"d":"$0.00"},{"v":298946.02,"d":"$298,946.02"},{"v":121095.05,"d":"$121,095.05"},{"v":45844.78,"d":"$45,844.78"},{"v":1025502.25,"d":"$1,025,502.25"},{"v":8701081.36,"d":"$8,701,081.36"},{"v":248049.47000000003,"d":"$248,049.47"},{"v":0,"d":"$0.00"},{"v":248077.00000000003,"d":"$248,077.00"},{"v":8701081.28556,"d":"$8,701,081.29"}]
["35078535026","PUTNAM CO C U SCHOOL DIST 535",712.62,{"v":9368079.64,"d":"$9,368,079.64"},{"v":16949585.3,"d":"$16,949,585.30"},{"v":1.8092913330527578,"d":"181%"},4,{"v":596.73,"d":"$596.73"},{"v":902335.38,"d":"$902,335.38"},{"v":902932.11,"d":"$902,932.11"},{"v":0.9,"d":"0.90"},{"v":2172001.03,"d":"$2,172,001.03"},{"v":529756.14,"d":"$529,756.14"},{"v":233541.2,"d":"$233,541.20"},{"v":93955.39,"d":"$93,955.39"},{"v":74245.65,"d":"$74,245.65"},{"v":162144.03,"d":"$162,144.03"},{"v":51743.89,"d":"$51,743.89"},{"v":87680.3,"d":"$87,680.30"},{"v":104348.73,"d":"$104,348.73"},{"v":63354.36,"d":"$63,354.36"},{"v":154804.6,"d":"$154,804.60"},{"v":133287.12,"d":"$133,287.12"},{"v":105212.23,"d":"$105,212.23"},{"v":3966074.67,"d":"$3,966,074.67"},{"v":63550.799999999996,"d":"$63,550.80"},{"v":89077.5,"d":"$89,077.50"},{"v":231601.5,"d":"$231,601.50"},{"v":24229.079999999998,"d":"$24,229.08"},{"v":203453.00999999998,"d":"$203,453.01"},{"v":276643.28,"d":"$276,643.28"},{"v":969875.82,"d":"$969,875.82"},{"v":667724.94,"d":"$667,724.94"},{"v":1861501.6966799998,"d":"$1,861,501.70"},{"v":4387657.62668,"d":"$4,387,657.63"},{"v":678328.72,"d":"$678,328.72"},{"v":3709328.906679999,"d":"$3,709,328.91"},{"v":4319824.746679999,"d":"$4,319,824.75"},{"v":125385.75,"d":"$125,385.75"},{"v":125385.75,"d":"$125,385.75"},{"v":130665.15,"d":"$130,665.15"},{"v":130665.15,"d":"$130,665.15"},{"v":9238.95,"d":"$9,238.95"},{"v":9238.95,"d":"$9,238.95"},{"v":9898.87,"d":"$9,898.87"},{"v":9898.87,"d":"$9,898.87"},{"v":11878.65,"d":"$11,878.65"},{"v":333262.12,"d":"$333,262.12"},{"v":134995.59,"d":"$134,995.59"},{"v":51666.34,"d":"$51,666.34"},{"v":1082180.1400000001,"d":"$1,082,180.14"},{"v":9368079.64,"d":"$9,368,079.64"},{"v":188072.69000000003,"d":"$188,072.69"},{"v":430.95000000000005,"d":"$430.95"},{"v":332452.07000000007,"d":"$332,452.07"},{"v":9368079.55668,"d":"$9,368,079.56"}]
[null,"ALT SCH-MACON/PIATT ROE",125,{"v":1872218.91,"d":"$1,872,218.91"},{"v":1126301.23,"d":"$1,126,301.23"},{"v":0.601586290996281,"d":"60%"},1,{"v":133511.95,"d":"$133,511.95"},{"v":939079.34,"d":"$939,079.34"},{"v":1072591.29,"d":"$1,072,591.29"},{"v":0.91435,"d":"0.91"},{"v":409211.76,"d":"$409,211.76"},{"v":136390.27,"d":"$136,390.27"},{"v":45467.97,"d":"$45,467.97"},{"v":14667.08,"d":"$14,667.08"},{"v":13782.36,"d":"$13,782.36"},{"v":39161.61,"d":"$39,161.61"},{"v":8947.9,"d":"$8,947.90"},{"v":16837.97,"d":"$16,837.97"},{"v":14723.96,"d":"$14,723.96"},{"v":11134.78,"d":"$11,134.78"},{"v":21843.45,"d":"$21,843.45"},{"v":18807.26,"d":"$18,807.26"},{"v":20204.77,"d":"$20,204.77"},{"v":771181.1399999999,"d":"$771,181.14"},{"v":11250,"d":"$11,250.00"},{"v":15625,"d":"$15,625.00"},{"v":40625,"d":"$40,625.00"},{"v":4250,"d":"$4,250.00"},{"v":71375,"d":"$71,375.00"},{"v":107375,"d":"$107,375.00"},{"v":170125,"d":"$170,125.00"},{"v":117125,"d":"$117,125.00"},{"v":355664.73000000004,"d":"$355,664.73"},{"v":893414.73,"d":"$893,414.73"},{"v":118985,"d":"$118,985.00"},{"v":774429.73,"d":"$774,429.73"},{"v":883223.6599999999,"d":"$883,223.66"},{"v":30840.56,"d":"$30,840.56"},{"v":30840.56,"d":"$30,840.56"},{"v":32181.46,"d":"$32,181.46"},{"v":32181.46,"d":"$32,181.46"},{"v":0,"d":"$0.00"},{"v":0,"d":"$0.00"},{"v":0,"d":"$0.00"},{"v":0,"d":"$0.00"},{"v":0,"d":"$0.00"},{"v":58999.34,"d":"$58,999.34"},{"v":23899.06,"d":"$23,899.06"},{"v":8871.57,"d":"$8,871.57"},{"v":217814.01,"d":"$217,814.01"},{"v":1872218.91,"d":"$1,872,218.91"},{"v":39291.600000000006,"d":"$39,291.60"},{"v":30.72,"d":"$30.72"},{"v":19043.45,"d":"$19,043.45"},{"v":1872218.8099999998,"d":"$1,872,218.81"}]
[null,"SAFE SCH-MACON/PIATT ROE",56,{"v":804776.42,"d":"$804,776.42"},{"v":511515.54000000004,"d":"$511,515.54"},{"v":0.6355995619255346,"d":"64%"},1,{"v":47631.9,"d":"$47,631.90"},{"v":431037.9,"d":"$431,037.90"},{"v":478669.80000000005,"d":"$478,669.80"},{"v":0.91435,"d":"0.91"},{"v":176923.3,"d":"$176,923.30"},{"v":53274.02,"d":"$53,274.02"},{"v":19130.31,"d":"$19,130.31"},{"v":6312.93,"d":"$6,312.93"},{"v":6037.75,"d":"$6,037.75"},{"v":16654.73,"d":"$16,654.73"},{"v":3914.7,"d":"$3,914.70"},{"v":7061.08,"d":"$7,061.08"},{"v":6625.78,"d":"$6,625.78"},{"v":4888.44,"d":"$4,888.44"},{"v":9829.55,"d":"$9,829.55"},{"v":8463.26,"d":"$8,463.26"},{"v":8472.97,"d":"$8,472.97"},{"v":327588.82,"d":"$327,588.82"},{"v":5040,"d":"$5,040.00"},{"v":7000,"d":"$7,000.00"},{"v":18200,"d":"$18,200.00"},{"v":1904,"d":"$1,904.00"},{"v":31976,"d":"$31,976.00"},{"v":38954,"d":"$38,954.00"},{"v":76216,"d":"$76,216.00"},{"v":52472,"d":"$52,472.00"},{"v":153238.017,"d":"$153,238.02"},{"v":385000.017,"d":"$385,000.02"},{"v":53305.28,"d":"$53,305.28"},{"v":331694.73699999996,"d":"$331,694.74"},{"v":380434.41699999996,"d":"$380,434.42"},{"v":14079.38,"d":"$14,079.38"},{"v":14079.38,"d":"$14,079.38"},{"v":14079.38,"d":"$14,079.38"},{"v":14079.38,"d":"$14,079.38"},{"v":0,"d":"$0.00"},{"v":0,"d":"$0.00"},{"v":0,"d":"$0.00"},{"v":0,"d":"$0.00"},{"v":0,"d":"$0.00"},{"v":26147.43,"d":"$26,147.43"},{"v":10591.62,"d":"$10,591.62"},{"v":3696.48,"d":"$3,696.48"},{"v":96753.04999999999,"d":"$96,753.05"},{"v":804776.42,"d":"$804,776.42"},{"v":25462.309999999998,"d":"$25,462.31"},{"v":0,"d":"$0.00"},{"v":12325.56,"d":"$12,325.56"},{"v":804776.287,"d":"$804,776.29"}]
["39055001026","ARGENTA-OREANA COMM UNIT SCH D 1",872.29,{"v":11742712.3,"d":"$11,742,712.30"},{"v":8720981.120000001,"d":"$8,720,981.12"},{"v":0.7426717863129458,"d":"74%"},1,{"v":186380.86,"d":"$186,380.86"},{"v":2577882.55,"d":"$2,577,882.55"},{"v":2764263.4099999997,"d":"$2,764,263.41"},{"v":0.91435,"d":"0.91"},{"v":2710487.52,"d":"$2,710,487.52"},{"v":657351.99,"d":"$657,351.99"},{"v":290379.7,"d":"$290,379.70"},{"v":117164.63,"d":"$117,164.63"},{"v":91542.33,"d":"$91,542.33"},{"v":201408.08,"d":"$201,408.08"},{"v":64313.04,"d":"$64,313.04"},{"v":108903.67,"d":"$108,903.67"},{"v":130307.05,"d":"$130,307.05"},{"v":78215.1,"d":"$78,215.10"},{"v":193314.58,"d":"$193,314.58"},{"v":166444.29,"d":"$166,444.29"},{"v":130679.27,"d":"$130,679.27"},{"v":4940511.249999999,"d":"$4,940,511.25"},{"v":78101.09999999999,"d":"$78,101.10"},{"v":109036.25,"d":"$109,036.25"},{"v":283494.25,"d":"$283,494.25"},{"v":29657.86,"d":"$29,657.86"},{"v":498077.58999999997,"d":"$498,077.59"},{"v":334773.49,"d":"$334,773.49"},{"v":1187186.69,"d":"$1,187,186.69"},{"v":817335.7299999999,"d":"$817,335.73"},{"v":2258942.41656,"d":"$2,258,942.42"},{"v":5596605.37656,"d":"$5,596,605.38"},{"v":830315.4,"d":"$830,315.40"},{"v":4766289.976559999,"d":"$4,766,289.98"},{"v":5525488.856559999,"d":"$5,525,488.86"},{"v":154202.84,"d":"$154,202.84"},{"v":154202.84,"d":"$154,202.84"},{"v":160907.31,"d":"$160,907.31"},{"v":160907.31,"d":"$160,907.31"},{"v":0,"d":"$0.00"},{"v":0,"d":"$0.00"},{"v":0,"d":"$0.00"},{"v":0,"d":"$0.00"},{"v":0,"d":"$0.00"},{"v":414336.33,"d":"$414,336.33"},{"v":167836.58,"d":"$167,836.58"},{"v":64318.89,"d":"$64,318.89"},{"v":1276712.1,"d":"$1,276,712.10"},{"v":11742712.3,"d":"$11,742,712.30"},{"v":424030.92,"d":"$424,030.92"},{"v":33.24,"d":"$33.24"},{"v":231529.61000000004,"d":"$231,529.61"},{"v":11742712.206559999,"d":"$11,742,712.21"}]
["39055002026","MAROA FORSYTH C U SCH DIST 2",1126.13,{"v":14504097.38,"d":"$14,504,097.38"},{"v":12246112.940000001,"d":"$12,246,112.94"},{"v":0.8443209266428685,"d":"84%"},2,{"v":23366.81,"d":"$23,366.81"},{"v":1697518.28,"d":"$1,697,518.28"},{"v":1720885.09,"d":"$1,720,885.09"},{"v":0.91435,"d":"0.91"},{"v":3349810.72,"d":"$3,349,810.72"},{"v":811708.55,"d":"$811,708.55"},{"v":374260.54,"d":"$374,260.54"},{"v":151469.03,"d":"$151,469.03"},{"v":110645.95,"d":"$110,645.95"},{"v":258576.4,"d":"$258,576.40"},{"v":83327.33,"d":"$83,327.33"},{"v":140678.56,"d":"$140,678.56"},{"v":168589.35,"d":"$168,589.35"},{"v":101299.42,"d":"$101,299.42"},{"v":250107.56,"d":"$250,107.56"},{"v":215343.18,"d":"$215,343.18"},{"v":168807.64,"d":"$168,807.64"},{"v":6184624.2299999995,"d":"$6,184,624.23"},{"v":100527.29999999999,"d":"$100,527.30"},{"v":140766.25,"d":"$140,766.25"},{"v":365992.25,"d":"$365,992.25"},{"v":38288.42,"d":"$38,288.42"},{"v":643020.2300000001,"d":"$643,020.23"},{"v":427289.67,"d":"$427,289.67"},{"v":1532662.93,"d":"$1,532,662.93"},{"v":1055183.8099999998,"d":"$1,055,183.81"},{"v":2757440.8993200003,"d":"$2,757,440.90"},{"v":7061171.75932,"d":"$7,061,171.76"},{"v":1071940.62,"d":"$1,071,940.62"},{"v":5989231.13932,"d":"$5,989,231.14"},{"v":6969360.03932,"d":"$6,969,360.04"},{"v":104589.75,"d":"$104,589.75"},{"v":104589.75,"d":"$104,589.75"},{"v":108612.43,"d":"$108,612.43"},{"v":108612.43,"d":"$108,612.43"},{"v":16761.17,"d":"$16,761.17"},{"v":16761.17,"d":"$16,761.17"},{"v":17431.62,"d":"$17,431.62"},{"v":17431.62,"d":"$17,431.62"},{"v":20783.86,"d":"$20,783.86"},{"v":535016.81,"d":"$535,016.81"},{"v":216721.02,"d":"$216,721.02"},{"v":82801.34,"d":"$82,801.34"},{"v":1350112.97,"d":"$1,350,112.97"},{"v":14504097.38,"d":"$14,504,097.38"},{"v":100092.68,"d":"$100,092.68"},{"v":858.28,"d":"$858.28"},{"v":241598.88,"d":"$241,598.88"},{"v":14504097.23932,"d":"$14,504,097.24"}]
["39055003026","MT ZION COMM UNIT SCH DIST 3",2370.77,{"v":30449563.02,"d":"$30,449,563.02"},{"v":21205101.130000003,"d":"$21,205,101.13"},{"v":0.6964008355742901,"d":"70%"},1,{"v":1008200.05,"d":"$1,008,200.05"},{"v":9098484.59,"d":"$9,098,484.59"},{"v":10106684.64,"d":"$10,106,684.64"},{"v":0.91435,"d":"0.91"},{"v":7054821.38,"d":"$7,054,821.38"},{"v":1714692.61,"d":"$1,714,692.61"},{"v":790542.03,"d":"$790,542.03"},{"v":320473.27,"d":"$320,473.27"},{"v":231459.89,"d":"$231,459.89"},{"v":552841.46,"d":"$552,841.46"},{"v":176161.82,"d":"$176,161.82"},{"v":296837.19,"d":"$296,837.19"},{"v":356319.85,"d":"$356,319.85"},{"v":214276.8,"d":"$214,276.80"},{"v":528611.62,"d":"$528,611.62"},{"v":455135.81,"d":"$455,135.81"},{"v":356190.64,"d":"$356,190.64"},{"v":13048364.370000001,"d":"$13,048,364.37"},{"v":212491.80000000005,"d":"$212,491.80"},{"v":296346.25,"d":"$296,346.25"},{"v":770500.25,"d":"$770,500.25"},{"v":80606.18000000001,"d":"$80,606.18"},{"v":1353709.67,"d":"$1,353,709.67"},{"v":915602.1200000001,"d":"$915,602.12"},{"v":3226617.9700000007,"d":"$3,226,617.97"},{"v":2221411.49,"d":"$2,221,411.49"},{"v":5780254.28028,"d":"$5,780,254.28"},{"v":14857540.01028,"d":"$14,857,540.01"},{"v":2256688.54,"d":"$2,256,688.54"},{"v":12600851.47028,"d":"$12,600,851.47"},{"v":14664254.63028,"d":"$14,664,254.63"},{"v":219236.21,"d":"$219,236.21"},{"v":219236.21,"d":"$219,236.21"},{"v":228622.47,"d":"$228,622.47"},{"v":228622.47,"d":"$228,622.47"},{"v":15420.28,"d":"$15,420.28"},{"v":15420.28,"d":"$15,420.28"},{"v":16090.73,"d":"$16,090.73"},{"v":16090.73,"d":"$16,090.73"},{"v":19442.96,"d":"$19,442.96"},{"v":1127021.63,"d":"$1,127,021.63"},{"v":456526.37,"d":"$456,526.37"},{"v":175213.55,"d":"$175,213.55"},{"v":2736943.8899999997,"d":"$2,736,943.89"},{"v":30449563.02,"d":"$30,449,563.02"},{"v":371080.51,"d":"$371,080.51"},{"v":7734.35,"d":"$7,734.35"},{"v":736103.9600000001,"d":"$736,103.96"},{"v":30449562.89028,"d":"$30,449,562.89"}]
["39055009026","SANGAMON VALLEY CUSD 9",613.7,{"v":8225702.86,"d":"$8,225,702.86"},{"v":7563187.43,"d":"$7,563,187.43"},{"v":0.9194578942035841,"d":"92%"},3,{"v":9347.77,"d":"$9,347.77"},{"v":1613611.77,"d":"$1,613,611.77"},{"v":1622959.54,"d":"$1,622,959.54"},{"v":0.91435,"d":"0.91"},{"v":1884052.59,"d":"$1,884,052.59"},{"v":459414.45,"d":"$459,414.45"},{"v":203756.94,"d":"$203,756.94"},{"v":82126.88,"d":"$82,126.88"},{"v":63830.2,"d":"$63,830.20"},{"v":142865.41,"d":"$142,865.41"},{"v":45298.75,"d":"$45,298.75"},{"v":76585.62,"d":"$76,585.62"},{"v":91288.55,"d":"$91,288.55"},{"v":55130.78,"d":"$55,130.78"},{"v":135429.42,"d":"$135,429.42"},{"v":116605.04,"d":"$116,605.04"},{"v":91899.14,"d":"$91,899.14"},{"v":3448283.77,"d":"$3,448,283.77"},{"v":54775.8,"d":"$54,775.80"},{"v":76712.5,"d":"$76,712.50"},{"v":199452.5,"d":"$199,452.50"},{"v":20865.8,"d":"$20,865.80"},{"v":350422.7,"d":"$350,422.70"},{"v":238330.84,"d":"$238,330.84"},{"v":835245.7,"d":"$835,245.70"},{"v":575036.9,"d":"$575,036.90"},{"v":1579906.6187999998,"d":"$1,579,906.62"},{"v":3930749.3587999996,"d":"$3,930,749.36"},{"v":584168.75,"d":"$584,168.75"},{"v":3346580.6087999996,"d":"$3,346,580.61"},{"v":3880715.2987999995,"d":"$3,880,715.30"},{"v":106601.09,"d":"$106,601.09"},{"v":106601.09,"d":"$106,601.09"},{"v":110623.77,"d":"$110,623.77"},{"v":110623.77,"d":"$110,623.77"},{"v":1340.89,"d":"$1,340.89"},{"v":1340.89,"d":"$1,340.89"},{"v":1340.89,"d":"$1,340.89"},{"v":1340.89,"d":"$1,340.89"},{"v":2011.34,"d":"$2,011.34"},{"v":291644.5,"d":"$291,644.50"},{"v":118137.4,"d":"$118,137.40"},{"v":45097.15,"d":"$45,097.15"},{"v":896703.6700000002,"d":"$896,703.67"},{"v":8225702.86,"d":"$8,225,702.86"},{"v":172049.54,"d":"$172,049.54"},{"v":42.55,"d":"$42.55"},{"v":176137.09000000003,"d":"$176,137.09"},{"v":8225702.7387999995,"d":"$8,225,702.74"}]
["39055011026","WARRENSBURG-LATHAM C U DIST 11",928.21,{"v":12131616.82,"d":"$12,131,616.82"},{"v":9260786.27,"d":"$9,260,786.27"},{"v":0.7633596088142849,"d":"76%"},1,{"v":101096.17,"d":"$101,096.17"},{"v":2172690.05,"d":"$2,172,690.05"},{"v":2273786.2199999997,"d":"$2,273,786.22"},{"v":0.91435,"d":"0.91"},{"v":2795626.35,"d":"$2,795,626.35"},{"v":690998.3,"d":"$690,998.30"},{"v":309797.26,"d":"$309,797.26"},{"v":124944.28,"d":"$124,944.28"},{"v":92516.29,"d":"$92,516.29"},{"v":220412.51,"d":"$220,412.51"},{"v":68227.75,"d":"$68,227.75"},{"v":116507.92,"d":"$116,507.92"},{"v":138405.23,"d":"$138,405.23"},{"v":83646.71,"d":"$83,646.71"},{"v":205328.48,"d":"$205,328.48"},{"v":176788.29,"d":"$176,788.29"},{"v":139804.01,"d":"$139,804.01"},{"v":5163003.380000001,"d":"$5,163,003.38"},{"v":83081.70000000001,"d":"$83,081.70"},{"v":116026.25,"d":"$116,026.25"},{"v":301668.25,"d":"$301,668.25"},{"v":31559.14,"d":"$31,559.14"},{"v":530007.91,"d":"$530,007.91"},{"v":378910.89,"d":"$378,910.89"},{"v":1263293.81,"d":"$1,263,293.81"},{"v":869732.7699999999,"d":"$869,732.77"},{"v":2309473.63044,"d":"$2,309,473.63"},{"v":5883754.35044,"d":"$5,883,754.35"},{"v":883544.53,"d":"$883,544.53"},{"v":5000209.82044,"d":"$5,000,209.82"},{"v":5808078.760439999,"d":"$5,808,078.76"},{"v":111294.22,"d":"$111,294.22"},{"v":111294.22,"d":"$111,294.22"},{"v":115987.35,"d":"$115,987.35"},{"v":115987.35,"d":"$115,987.35"},{"v":3352.23,"d":"$3,352.23"},{"v":3352.23,"d":"$3,352.23"},{"v":3352.23,"d":"$3,352.23"},{"v":3352.23,"d":"$3,352.23"},{"v":4693.12,"d":"$4,693.12"},{"v":441154.21,"d":"$441,154.21"},{"v":178699.79,"d":"$178,699.79"},{"v":68015.38,"d":"$68,015.38"},{"v":1160534.56,"d":"$1,160,534.56"},{"v":12131616.82,"d":"$12,131,616.82"},{"v":138326.97999999998,"d":"$138,326.98"},{"v":333.58000000000004,"d":"$333.58"},{"v":211943.65,"d":"$211,943.65"},{"v":12131616.70044,"d":"$12,131,616.70"}]
["39055015026","MERIDIAN COMM UNIT SCH DIST 15",909.63,{"v":12211236.89,"d":"$12,211,236.89"},{"v":9107653.44,"d":"$9,107,653.44"},{"v":0.7458420078197335,"d":"75%"},1,{"v":192760.72,"d":"$192,760.72"},{"v":3417647.74,"d":"$3,417,647.74"},{"v":3610408.4600000004,"d":"$3,610,408.46"},{"v":0.91435,"d":"0.91"},{"v":2804413.38,"d":"$2,804,413.38"},{"v":682198.04,"d":"$682,198.04"},{"v":302526.82,"d":"$302,526.82"},{"v":121819.36,"d":"$121,819.36"},{"v":94929.08,"d":"$94,929.08"},{"v":210917.66,"d":"$210,917.66"},{"v":67109.26,"d":"$67,109.26"},{"v":113792.11,"d":"$113,792.11"},{"v":135460.44,"d":"$135,460.44"},{"v":82017.23,"d":"$82,017.23"},{"v":200959.79,"d":"$200,959.79"},{"v":173026.83,"d":"$173,026.83"},{"v":136545.17,"d":"$136,545.17"},{"v":5125715.170000001,"d":"$5,125,715.17"},{"v":80959.5,"d":"$80,959.50"},{"v":113703.75,"d":"$113,703.75"},{"v":295629.75,"d":"$295,629.75"},{"v":30927.42,"d":"$30,927.42"},{"v":519398.73,"d":"$519,398.73"},{"v":350419.08999999997,"d":"$350,419.09"},{"v":1238006.4300000002,"d":"$1,238,006.43"},{"v":852323.3099999999,"d":"$852,323.31"},{"v":2347131.82332,"d":"$2,347,131.82"},{"v":5828499.80332,"d":"$5,828,499.80"},{"v":865858.6,"d":"$865,858.60"},{"v":4962641.20332,"d":"$4,962,641.20"},{"v":5754339.013320001,"d":"$5,754,339.01"},{"v":160907.31,"d":"$160,907.31"},{"v":160907.31,"d":"$160,907.31"},{"v":167611.78,"d":"$167,611.78"},{"v":167611.78,"d":"$167,611.78"},{"v":0,"d":"$0.00"},{"v":0,"d":"$0.00"},{"v":0,"d":"$0.00"},{"v":0,"d":"$0.00"},{"v":0,"d":"$0.00"},{"v":432438.4,"d":"$432,438.40"},{"v":175169.25,"d":"$175,169.25"},{"v":66536.79,"d":"$66,536.79"},{"v":1331182.62,"d":"$1,331,182.62"},{"v":12211236.89,"d":"$12,211,236.89"},{"v":399793.95,"d":"$399,793.95"},{"v":196.99,"d":"$196.99"},{"v":257524.2,"d":"$257,524.20"},{"v":12211236.803320002,"d":"$12,211,236.80"}]
["39055061025","DECATUR SCHOOL DISTRICT 61",7689.12,{"v":117397572.91,"d":"$117,397,572.91"},{"v":91921993.75,"d":"$91,921,993.75"},{"v":0.7829973948479307,"d":"78%"},2,{"v":1000226.83,"d":"$1,000,226.83"},{"v":59100508.989999995,"d":"$59,100,508.99"},{"v":60100735.81999999,"d":"$60,100,735.82"},{"v":0.91435,"d":"0.91"},{"v":26455824.56,"d":"$26,455,824.56"},{"v":6243896.28,"d":"$6,243,896.28"},{"v":2548455.46,"d":"$2,548,455.46"},{"v":1047716.06,"d":"$1,047,716.06"},{"v":973677.96,"d":"$973,677.96"},{"v":1716985.22,"d":"$1,716,985.22"},{"v":572665.74,"d":"$572,665.74"},{"v":958406.65,"d":"$958,406.65"},{"v":1172027.28,"d":"$1,172,027.28"},{"v":695516.98,"d":"$695,516.98"},{"v":1738739.07,"d":"$1,738,739.07"},{"v":1497058.3,"d":"$1,497,058.30"},{"v":1150042.81,"d":"$1,150,042.81"},{"v":46771012.37,"d":"$46,771,012.37"},{"v":684648.9,"d":"$684,648.90"},{"v":961140,"d":"$961,140.00"},{"v":2498964,"d":"$2,498,964.00"},{"v":261430.08000000002,"d":"$261,430.08"},{"v":4390487.52,"d":"$4,390,487.52"},{"v":2674622.1100000003,"d":"$2,674,622.11"},{"v":10464892.32,"d":"$10,464,892.32"},{"v":7204705.44,"d":"$7,204,705.44"},{"v":23371052.197679996,"d":"$23,371,052.20"},{"v":52511942.56768,"d":"$52,511,942.57"},{"v":7319119.54,"d":"$7,319,119.54"},{"v":45192823.027679995,"d":"$45,192,823.03"},{"v":51885059.97768,"d":"$51,885,059.98"},{"v":3067295.65,"d":"$3,067,295.65"},{"v":3067295.65,"d":"$3,067,295.65"},{"v":3195351.05,"d":"$3,195,351.05"},{"v":3195351.05,"d":"$3,195,351.05"},{"v":95873.94,"d":"$95,873.94"},{"v":95873.94,"d":"$95,873.94"},{"v":99896.62,"d":"$99,896.62"},{"v":99896.62,"d":"$99,896.62"},{"v":120010.03,"d":"$120,010.03"},{"v":3655948.24,"d":"$3,655,948.24"},{"v":1480927.03,"d":"$1,480,927.03"},{"v":567780.62,"d":"$567,780.62"},{"v":18741500.439999998,"d":"$18,741,500.44"},{"v":117397572.91,"d":"$117,397,572.91"},{"v":22893669.16,"d":"$22,893,669.16"},{"v":89514.62,"d":"$89,514.62"},{"v":3001814.4599999995,"d":"$3,001,814.46"},{"v":117397572.78768,"d":"$117,397,572.79"}]
["39074005026","BEMENT COMM UNIT SCHOOL DIST 5",273,{"v":3599748.73,"d":"$3,599,748.73"},{"v":3849408.09,"d":"$3,849,408.09"},{"v":1.0693546629850468,"d":"107%"},4,{"v":229.29,"d":"$229.29"},{"v":432836.9700000001,"d":"$432,836.97"},{"v":433066.26000000007,"d":"$433,066.26"},{"v":0.9,"d":"0.90"},{"v":835400.61,"d":"$835,400.61"},{"v":200469.13,"d":"$200,469.13"},{"v":88401.26,"d":"$88,401.26"},{"v":35743.05,"d":"$35,743.05"},{"v":28712.09,"d":"$28,712.09"},{"v":61100.37,"d":"$61,100.37"},{"v":19266.34,"d":"$19,266.34"},{"v":33147.43,"d":"$33,147.43"},{"v":39855.42,"d":"$39,855.42"},{"v":24058.62,"d":"$24,058.62"},{"v":59126.76,"d":"$59,126.76"},{"v":50908.27,"d":"$50,908.27"},{"v":39775.35,"d":"$39,775.35"},{"v":1515964.7000000004,"d":"$1,515,964.70"},{"v":24255,"d":"$24,255.00"},{"v":34125,"d":"$34,125.00"},{"v":88725,"d":"$88,725.00"},{"v":9282,"d":"$9,282.00"},{"v":77941.5,"d":"$77,941.50"},{"v":100725.5,"d":"$100,725.50"},{"v":371553,"d":"$371,553.00"},{"v":255801,"d":"$255,801.00"},{"v":717122.97,"d":"$717,122.97"},{"v":1679530.97,"d":"$1,679,530.97"},{"v":259863.24,"d":"$259,863.24"},{"v":1419667.73,"d":"$1,419,667.73"},{"v":1653544.64,"d":"$1,653,544.64"},{"v":56753.55,"d":"$56,753.55"},{"v":56753.55,"d":"$56,753.55"},{"v":58733.32,"d":"$58,733.32"},{"v":58733.32,"d":"$58,733.32"},{"v":0,"d":"$0.00"},{"v":0,"d":"$0.00"},{"v":0,"d":"$0.00"},{"v":0,"d":"$0.00"},{"v":659.92,"d":"$659.92"},{"v":127365.52,"d":"$127,365.52"},{"v":51592.37,"d":"$51,592.37"},{"v":19647.76,"d":"$19,647.76"},{"v":430239.31000000006,"d":"$430,239.31"},{"v":3599748.73,"d":"$3,599,748.73"},{"v":161345.91999999998,"d":"$161,345.92"},{"v":1.6800000000000002,"d":"$1.68"},{"v":79139.73999999999,"d":"$79,139.74"},{"v":3599748.6500000004,"d":"$3,599,748.65"}]
["39074025026","MONTICELLO C U SCHOOL DIST 25",1603,{"v":19906074.45,"d":"$19,906,074.45"},{"v":37323901.75,"d":"$37,323,901.75"},{"v":1.875000610680425,"d":"188%"},4,{"v":1267.98,"d":"$1,267.98"},{"v":1021084.93,"d":"$1,021,084.93"},{"v":1022352.91,"d":"$1,022,352.91"},{"v":0.9,"d":"0.90"},{"v":4721277.77,"d":"$4,721,277.77"},{"v":1131214.77,"d":"$1,131,214.77"},{"v":523943.13,"d":"$523,943.13"},{"v":213736.5,"d":"$213,736.50"},{"v":154547.6,"d":"$154,547.60"},{"v":358391.03,"d":"$358,391.03"},{"v":116699,"d":"$116,699.00"},{"v":197013.36,"d":"$197,013.36"},{"v":238407.87,"d":"$238,407.87"},{"v":142480.49,"d":"$142,480.49"},{"v":353685.52,"d":"$353,685.52"},{"v":304524.04,"d":"$304,524.04"},{"v":236406.75,"d":"$236,406.75"},{"v":8692327.829999998,"d":"$8,692,327.83"},{"v":143730,"d":"$143,730.00"},{"v":200375,"d":"$200,375.00"},{"v":520975,"d":"$520,975.00"},{"v":54502,"d":"$54,502.00"},{"v":457656.5,"d":"$457,656.50"},{"v":587626,"d":"$587,626.00"},{"v":2181683,"d":"$2,181,683.00"},{"v":1502011,"d":"$1,502,011.00"},{"v":3907207.998,"d":"$3,907,208.00"},{"v":9555766.498,"d":"$9,555,766.50"},{"v":1525863.64,"d":"$1,525,863.64"},{"v":8029902.858,"d":"$8,029,902.86"},{"v":9403180.128,"d":"$9,403,180.13"},{"v":154422.45,"d":"$154,422.45"},{"v":154422.45,"d":"$154,422.45"},{"v":161021.7,"d":"$161,021.70"},{"v":161021.7,"d":"$161,021.70"},{"v":1979.77,"d":"$1,979.77"},{"v":1979.77,"d":"$1,979.77"},{"v":1979.77,"d":"$1,979.77"},{"v":1979.77,"d":"$1,979.77"},{"v":1979.77,"d":"$1,979.77"},{"v":749674.8,"d":"$749,674.80"},{"v":303673.24,"d":"$303,673.24"},{"v":116431.2,"d":"$116,431.20"},{"v":1810566.3900000001,"d":"$1,810,566.39"},{"v":19906074.45,"d":"$19,906,074.45"},{"v":108468.03,"d":"$108,468.03"},{"v":3.51,"d":"$3.51"},{"v":405973.23,"d":"$405,973.23"},{"v":19906074.347999997,"d":"$19,906,074.35"}]
["39074057026","DELAND-WELDON C U SCH DIST 57",163.38,{"v":2152532.87,"d":"$2,152,532.87"},{"v":3282749.06,"d":"$3,282,749.06"},{"v":1.525063382655801,"d":"153%"},4,{"v":137.11,"d":"$137.11"},{"v":191132.93999999997,"d":"$191,132.94"},{"v":191270.04999999996,"d":"$191,270.05"},{"v":0.9,"d":"0.90"},{"v":504455.49,"d":"$504,455.49"},{"v":122541.03,"d":"$122,541.03"},{"v":52563.96,"d":"$52,563.96"},{"v":20209.49,"d":"$20,209.49"},{"v":17193.86,"d":"$17,193.86"},{"v":36386.76,"d":"$36,386.76"},{"v":11009.34,"d":"$11,009.34"},{"v":19514.21,"d":"$19,514.21"},{"v":22463.96,"d":"$22,463.96"},{"v":14167.85,"d":"$14,167.85"},{"v":33325.99,"d":"$33,325.99"},{"v":28693.75,"d":"$28,693.75"},{"v":23416.13,"d":"$23,416.13"},{"v":905941.8199999998,"d":"$905,941.82"},{"v":14517,"d":"$14,517.00"},{"v":20422.5,"d":"$20,422.50"},{"v":53098.5,"d":"$53,098.50"},{"v":5554.92,"d":"$5,554.92"},{"v":46644.979999999996,"d":"$46,644.98"},{"v":62832.299999999996,"d":"$62,832.30"},{"v":222360.18,"d":"$222,360.18"},{"v":153087.06,"d":"$153,087.06"},{"v":428084.93232,"d":"$428,084.93"},{"v":1006602.37232,"d":"$1,006,602.37"},{"v":155518.15,"d":"$155,518.15"},{"v":851084.22232,"d":"$851,084.22"},{"v":991050.5523199999,"d":"$991,050.55"},{"v":33656.17,"d":"$33,656.17"},{"v":33656.17,"d":"$33,656.17"},{"v":34976.02,"d":"$34,976.02"},{"v":34976.02,"d":"$34,976.02"},{"v":0,"d":"$0.00"},{"v":0,"d":"$0.00"},{"v":0,"d":"$0.00"},{"v":0,"d":"$0.00"},{"v":0,"d":"$0.00"},{"v":75891.37,"d":"$75,891.37"},{"v":30741.57,"d":"$30,741.57"},{"v":11643.12,"d":"$11,643.12"},{"v":255540.43999999997,"d":"$255,540.44"},{"v":2152532.87,"d":"$2,152,532.87"},{"v":74432.79000000001,"d":"$74,432.79"},{"v":0,"d":"$0.00"},{"v":50886.01000000001,"d":"$50,886.01"},{"v":2152532.8123199996,"d":"$2,152,532.81"}]
["39074100026","CERRO GORDO C U SCHOOL DIST 100",428.22,{"v":5461909.5,"d":"$5,461,909.50"},{"v":5287236.18,"d":"$5,287,236.18"},{"v":0.9680197337579467,"d":"97%"},3,{"v":6206.97,"d":"$6,206.97"},{"v":1398775.8299999996,"d":"$1,398,775.83"},{"v":1404982.7999999996,"d":"$1,404,982.80"},{"v":0.9,"d":"0.90"},{"v":1290275.94,"d":"$1,290,275.94"},{"v":313094.13,"d":"$313,094.13"},{"v":139992.77,"d":"$139,992.77"},{"v":56674.39,"d":"$56,674.39"},{"v":42816.46,"d":"$42,816.46"},{"v":96323.47,"d":"$96,323.47"},{"v":30275.68,"d":"$30,275.68"},{"v":52661.64,"d":"$52,661.64"},{"v":63044.02,"d":"$63,044.02"},{"v":37691.83,"d":"$37,691.83"},{"v":93527.78,"d":"$93,527.78"},{"v":80527.63,"d":"$80,527.63"},{"v":63191.49,"d":"$63,191.49"},{"v":2360097.2299999995,"d":"$2,360,097.23"},{"v":38352.6,"d":"$38,352.60"},{"v":53527.5,"d":"$53,527.50"},{"v":139171.5,"d":"$139,171.50"},{"v":14559.48,"d":"$14,559.48"},{"v":122256.8,"d":"$122,256.80"},{"v":163823.91999999998,"d":"$163,823.92"},{"v":582807.42,"d":"$582,807.42"},{"v":401242.14,"d":"$401,242.14"},{"v":1077741.4330799999,"d":"$1,077,741.43"},{"v":2593482.79308,"d":"$2,593,482.79"},{"v":407614.05,"d":"$407,614.05"},{"v":2185868.74308,"d":"$2,185,868.74"},{"v":2552721.38308,"d":"$2,552,721.38"},{"v":58073.4,"d":"$58,073.40"},{"v":58073.4,"d":"$58,073.40"},{"v":60713.1,"d":"$60,713.10"},{"v":60713.1,"d":"$60,713.10"},{"v":0,"d":"$0.00"},{"v":0,"d":"$0.00"},{"v":0,"d":"$0.00"},{"v":0,"d":"$0.00"},{"v":0,"d":"$0.00"},{"v":199957.27,"d":"$199,957.27"},{"v":80997.35,"d":"$80,997.35"},{"v":30563.19,"d":"$30,563.19"},{"v":549090.8099999999,"d":"$549,090.81"},{"v":5461909.5,"d":"$5,461,909.50"},{"v":142490.23999999996,"d":"$142,490.24"},{"v":0,"d":"$0.00"},{"v":117584.19999999998,"d":"$117,584.20"},{"v":5461909.423079999,"d":"$5,461,909.42"}]
[null,"ALT SCH-CALHOUN/GREENE/JERSY/MACO",13,{"v":174028.23,"d":"$174,028.23"},{"v":109275.09,"d":"$109,275.09"},{"v":0.627915884681468,"d":"63%"},1,{"v":10776.82,"d":"$10,776.82"},{"v":91872.26999999999,"d":"$91,872.27"},{"v":102649.09,"d":"$102,649.09"},{"v":0.93051,"d":"0.93"},{"v":40137.13,"d":"$40,137.13"},{"v":11907.28,"d":"$11,907.28"},{"v":4283,"d":"$4,283.00"},{"v":746.31,"d":"$746.31"},{"v":1326.3,"d":"$1,326.30"},{"v":3090.54,"d":"$3,090.54"},{"v":569.12,"d":"$569.12"},{"v":1381.9,"d":"$1,381.90"},{"v":749.2,"d":"$749.20"},{"v":1105.52,"d":"$1,105.52"},{"v":1111.47,"d":"$1,111.47"},{"v":956.98,"d":"$956.98"},{"v":1658.21,"d":"$1,658.21"},{"v":69022.95999999999,"d":"$69,022.96"},{"v":1170,"d":"$1,170.00"},{"v":1625,"d":"$1,625.00"},{"v":4225,"d":"$4,225.00"},{"v":442,"d":"$442.00"},{"v":7423,"d":"$7,423.00"},{"v":8727,"d":"$8,727.00"},{"v":17693,"d":"$17,693.00"},{"v":12181,"d":"$12,181.00"},{"v":32081.909999999996,"d":"$32,081.91"},{"v":85567.91,"d":"$85,567.91"},{"v":12374.44,"d":"$12,374.44"},{"v":73193.47,"d":"$73,193.47"},{"v":84708.01000000001,"d":"$84,708.01"},{"v":2729.18,"d":"$2,729.18"},{"v":2729.18,"d":"$2,729.18"},{"v":2729.18,"d":"$2,729.18"},{"v":2729.18,"d":"$2,729.18"},{"v":0,"d":"$0.00"},{"v":0,"d":"$0.00"},{"v":0,"d":"$0.00"},{"v":0,"d":"$0.00"},{"v":0,"d":"$0.00"},{"v":6140.66,"d":"$6,140.66"},{"v":2487.42,"d":"$2,487.42"},{"v":752.36,"d":"$752.36"},{"v":20297.159999999996,"d":"$20,297.16"},{"v":174028.23,"d":"$174,028.23"},{"v":2396.37,"d":"$2,396.37"},{"v":0,"d":"$0.00"},{"v":1482.04,"d":"$1,482.04"},{"v":174028.13,"d":"$174,028.13"}]
[null,"SAFE SCH-CALHOUN/GREENE/JERSY/MAC",81,{"v":1161538.38,"d":"$1,161,538.38"},{"v":526337.82,"d":"$526,337.82"},{"v":0.4531385523395275,"d":"45%"},1,{"v":144301.84,"d":"$144,301.84"},{"v":410183.99,"d":"$410,183.99"},{"v":554485.83,"d":"$554,485.83"},{"v":0.93051,"d":"0.93"},{"v":256107.93,"d":"$256,107.93"},{"v":78181.71,"d":"$78,181.71"},{"v":28975.63,"d":"$28,975.63"},{"v":10058.64,"d":"$10,058.64"},{"v":8632.31,"d":"$8,632.31"},{"v":24025,"d":"$24,025.00"},{"v":5691.27,"d":"$5,691.27"},{"v":10778.82,"d":"$10,778.82"},{"v":10488.93,"d":"$10,488.93"},{"v":7185.88,"d":"$7,185.88"},{"v":15560.65,"d":"$15,560.65"},{"v":13397.76,"d":"$13,397.76"},{"v":12934.07,"d":"$12,934.07"},{"v":482018.6000000001,"d":"$482,018.60"},{"v":7290,"d":"$7,290.00"},{"v":10125,"d":"$10,125.00"},{"v":26325,"d":"$26,325.00"},{"v":2754,"d":"$2,754.00"},{"v":46251,"d":"$46,251.00"},{"v":57989,"d":"$57,989.00"},{"v":110241,"d":"$110,241.00"},{"v":75897,"d":"$75,897.00"},{"v":217747.84799999997,"d":"$217,747.85"},{"v":554619.848,"d":"$554,619.85"},{"v":77102.28,"d":"$77,102.28"},{"v":477517.56799999997,"d":"$477,517.57"},{"v":549262.0079999999,"d":"$549,262.01"},{"v":17057.41,"d":"$17,057.41"},{"v":17057.41,"d":"$17,057.41"},{"v":17739.7,"d":"$17,739.70"},{"v":17739.7,"d":"$17,739.70"},{"v":0,"d":"$0.00"},{"v":0,"d":"$0.00"},{"v":0,"d":"$0.00"},{"v":0,"d":"$0.00"},{"v":0,"d":"$0.00"},{"v":38890.89,"d":"$38,890.89"},{"v":15753.66,"d":"$15,753.66"},{"v":6018.91,"d":"$6,018.91"},{"v":130257.68000000001,"d":"$130,257.68"},{"v":1161538.38,"d":"$1,161,538.38"},{"v":34603.92,"d":"$34,603.92"},{"v":0,"d":"$0.00"},{"v":20229.879999999997,"d":"$20,229.88"},{"v":1161538.288,"d":"$1,161,538.29"}]
["40007040026","CALHOUN COMM UNIT SCH DIST 40",483.5,{"v":6439110.9,"d":"$6,439,110.90"},{"v":4281569.609999999,"d":"$4,281,569.61"},{"v":0.6649318013764911,"d":"66%"},1,{"v":293690.12,"d":"$293,690.12"},{"v":2236196.42,"d":"$2,236,196.42"},{"v":2529886.54,"d":"$2,529,886.54"},{"v":0.93051,"d":"0.93"},{"v":1491282.78,"d":"$1,491,282.78"},{"v":366005.06,"d":"$366,005.06"},{"v":163427.4,"d":"$163,427.40"},{"v":66123.02,"d":"$66,123.02"},{"v":49778.69,"d":"$49,778.69"},{"v":115252.05,"d":"$115,252.05"},{"v":36424.18,"d":"$36,424.18"},{"v":61632.75,"d":"$61,632.75"},{"v":73422.52,"d":"$73,422.52"},{"v":44220.81,"d":"$44,220.81"},{"v":108924.6,"d":"$108,924.60"},{"v":93784.33,"d":"$93,784.33"},{"v":73956.4,"d":"$73,956.40"},{"v":2744234.5900000003,"d":"$2,744,234.59"},{"v":43065,"d":"$43,065.00"},{"v":60437.5,"d":"$60,437.50"},{"v":157137.5,"d":"$157,137.50"},{"v":16439,"d":"$16,439.00"},{"v":276078.5,"d":"$276,078.50"},{"v":191951.5,"d":"$191,951.50"},{"v":658043.5,"d":"$658,043.50"},{"v":453039.5,"d":"$453,039.50"},{"v":1217391.372,"d":"$1,217,391.37"},{"v":3073583.372,"d":"$3,073,583.37"},{"v":460233.98,"d":"$460,233.98"},{"v":2613349.392,"d":"$2,613,349.39"},{"v":3041601.712,"d":"$3,041,601.71"},{"v":70958.83,"d":"$70,958.83"},{"v":70958.83,"d":"$70,958.83"},{"v":73688.01,"d":"$73,688.01"},{"v":73688.01,"d":"$73,688.01"},{"v":0,"d":"$0.00"},{"v":0,"d":"$0.00"},{"v":0,"d":"$0.00"},{"v":0,"d":"$0.00"},{"v":0,"d":"$0.00"},{"v":233345.38,"d":"$233,345.38"},{"v":94521.98,"d":"$94,521.98"},{"v":36113.46,"d":"$36,113.46"},{"v":653274.5,"d":"$653,274.50"},{"v":6439110.9,"d":"$6,439,110.90"},{"v":236056.94999999998,"d":"$236,056.95"},{"v":0,"d":"$0.00"},{"v":206910.61000000002,"d":"$206,910.61"},{"v":6439110.802,"d":"$6,439,110.80"}]
["40007042026","BRUSSELS COMM UNIT SCHOOL DIST 42",102.62,{"v":1322934.45,"d":"$1,322,934.45"},{"v":1587555.63,"d":"$1,587,555.63"},{"v":1.2000259196515746,"d":"120%"},4,{"v":84.26,"d":"$84.26"},{"v":307220.9600000001,"d":"$307,220.96"},{"v":307305.2200000001,"d":"$307,305.22"},{"v":0.93051,"d":"0.93"},{"v":314369.06,"d":"$314,369.06"},{"v":83069.02,"d":"$83,069.02"},{"v":34782.25,"d":"$34,782.25"},{"v":13108.12,"d":"$13,108.12"},{"v":10217.56,"d":"$10,217.56"},{"v":24934.83,"d":"$24,934.83"},{"v":6829.53,"d":"$6,829.53"},{"v":12989.86,"d":"$12,989.86"},{"v":14234.97,"d":"$14,234.97"},{"v":9120.54,"d":"$9,120.54"},{"v":21118.03,"d":"$21,118.03"},{"v":18182.67,"d":"$18,182.67"},{"v":15587.22,"d":"$15,587.22"},{"v":578543.66,"d":"$578,543.66"},{"v":9131.400000000001,"d":"$9,131.40"},{"v":12827.5,"d":"$12,827.50"},{"v":33351.5,"d":"$33,351.50"},{"v":3489.08,"d":"$3,489.08"},{"v":29298,"d":"$29,298.00"},{"v":50338.44,"d":"$50,338.44"},{"v":139665.82,"d":"$139,665.82"},{"v":96154.94,"d":"$96,154.94"},{"v":252612.85068000006,"d":"$252,612.85"},{"v":626869.5306800001,"d":"$626,869.53"},{"v":97681.92,"d":"$97,681.92"},{"v":529187.61068,"d":"$529,187.61"},{"v":620081.61068,"d":"$620,081.61"},{"v":11599.03,"d":"$11,599.03"},{"v":11599.03,"d":"$11,599.03"},{"v":12281.33,"d":"$12,281.33"},{"v":12281.33,"d":"$12,281.33"},{"v":0,"d":"$0.00"},{"v":0,"d":"$0.00"},{"v":0,"d":"$0.00"},{"v":0,"d":"$0.00"},{"v":0,"d":"$0.00"},{"v":49125.34,"d":"$49,125.34"},{"v":19899.36,"d":"$19,899.36"},{"v":7523.63,"d":"$7,523.63"},{"v":124309.05,"d":"$124,309.05"},{"v":1322934.45,"d":"$1,322,934.45"},{"v":40474.439999999995,"d":"$40,474.44"},{"v":0,"d":"$0.00"},{"v":38471.56999999999,"d":"$38,471.57"},{"v":1322934.3206800001,"d":"$1,322,934.32"}]
["40031001026","CARROLLTON C U SCHOOL DIST 1",464.28,{"v":6460511.18,"d":"$6,460,511.18"},{"v":5360055.390000001,"d":"$5,360,055.39"},{"v":0.829664285171936,"d":"83%"},2,{"v":23325.46,"d":"$23,325.46"},{"v":2258322.41,"d":"$2,258,322.41"},{"v":2281647.87,"d":"$2,281,647.87"},{"v":0.9,"d":"0.90"},{"v":1460477.17,"d":"$1,460,477.17"},{"v":372248.3,"d":"$372,248.30"},{"v":153112.37,"d":"$153,112.37"},{"v":60033.01,"d":"$60,033.01"},{"v":50337.57,"d":"$50,337.57"},{"v":109131.28,"d":"$109,131.28"},{"v":33028.02,"d":"$33,028.02"},{"v":57473.37,"d":"$57,473.37"},{"v":65942.6,"d":"$65,942.60"},{"v":41166.97,"d":"$41,166.97"},{"v":97827.91,"d":"$97,827.91"},{"v":84230.05,"d":"$84,230.05"},{"v":68965.33,"d":"$68,965.33"},{"v":2653973.95,"d":"$2,653,973.95"},{"v":41485.5,"d":"$41,485.50"},{"v":58035,"d":"$58,035.00"},{"v":150891,"d":"$150,891.00"},{"v":15785.52,"d":"$15,785.52"},{"v":265103.88,"d":"$265,103.88"},{"v":206739.21000000002,"d":"$206,739.21"},{"v":631885.08,"d":"$631,885.08"},{"v":435030.36,"d":"$435,030.36"},{"v":1261789.2259199999,"d":"$1,261,789.23"},{"v":3066744.77592,"d":"$3,066,744.78"},{"v":441938.84,"d":"$441,938.84"},{"v":2624805.93592,"d":"$2,624,805.94"},{"v":3022550.8859200003,"d":"$3,022,550.89"},{"v":108887.62,"d":"$108,887.62"},{"v":108887.62,"d":"$108,887.62"},{"v":113507.1,"d":"$113,507.10"},{"v":113507.1,"d":"$113,507.10"},{"v":0,"d":"$0.00"},{"v":0,"d":"$0.00"},{"v":0,"d":"$0.00"},{"v":0,"d":"$0.00"},{"v":659.92,"d":"$659.92"},{"v":217115.32,"d":"$217,115.32"},{"v":87947.62,"d":"$87,947.62"},{"v":33473.97,"d":"$33,473.97"},{"v":783986.2699999999,"d":"$783,986.27"},{"v":6460511.18,"d":"$6,460,511.18"},{"v":319822.20999999996,"d":"$319,822.21"},{"v":34.21,"d":"$34.21"},{"v":189427.47999999998,"d":"$189,427.48"},{"v":6460511.10592,"d":"$6,460,511.11"}]
["40031003026","NORTH GREENE UNIT SCHOOL DIST 3",764.96,{"v":10734212.95,"d":"$10,734,212.95"},{"v":8154299.380000001,"d":"$8,154,299.38"},{"v":0.7596550783911923,"d":"76%"},1,{"v":139968.58,"d":"$139,968.58"},{"v":5003480.39,"d":"$5,003,480.39"},{"v":5143448.97,"d":"$5,143,448.97"},{"v":0.9,"d":"0.90"},{"v":2428510.55,"d":"$2,428,510.55"},{"v":590487.79,"d":"$590,487.79"},{"v":249796.62,"d":"$249,796.62"},{"v":101047.45,"d":"$101,047.45"},{"v":85033.17,"d":"$85,033.17"},{"v":174115.36,"d":"$174,115.36"},{"v":55046.7,"d":"$55,046.70"},{"v":93828.61,"d":"$93,828.61"},{"v":112319.82,"d":"$112,319.82"},{"v":67631.45,"d":"$67,631.45"},{"v":166629.96,"d":"$166,629.96"},{"v":143468.77,"d":"$143,468.77"},{"v":112589.91,"d":"$112,589.91"},{"v":4380506.16,"d":"$4,380,506.16"},{"v":68157,"d":"$68,157.00"},{"v":95620,"d":"$95,620.00"},{"v":248612,"d":"$248,612.00"},{"v":26008.64,"d":"$26,008.64"},{"v":436792.16,"d":"$436,792.16"},{"v":295082.62,"d":"$295,082.62"},{"v":1041110.56,"d":"$1,041,110.56"},{"v":716767.52,"d":"$716,767.52"},{"v":2112294.85044,"d":"$2,112,294.85"},{"v":5040445.35044,"d":"$5,040,445.35"},{"v":728150.12,"d":"$728,150.12"},{"v":4312295.23044,"d":"$4,312,295.23"},{"v":4967630.33044,"d":"$4,967,630.33"},{"v":202596.97,"d":"$202,596.97"},{"v":202596.97,"d":"$202,596.97"},{"v":211176,"d":"$211,176.00"},{"v":211176,"d":"$211,176.00"},{"v":0,"d":"$0.00"},{"v":0,"d":"$0.00"},{"v":0,"d":"$0.00"},{"v":0,"d":"$0.00"},{"v":659.92,"d":"$659.92"},{"v":357679.35,"d":"$357,679.35"},{"v":144886.35,"d":"$144,886.35"},{"v":55304.82,"d":"$55,304.82"},{"v":1386076.3800000001,"d":"$1,386,076.38"},{"v":10734212.95,"d":"$10,734,212.95"},{"v":1003907.46,"d":"$1,003,907.46"},{"v":0,"d":"$0.00"},{"v":396046.32,"d":"$396,046.32"},{"v":10734212.87044,"d":"$10,734,212.87"}]
["40031010026","GREENFIELD C U SCHOOL DIST 10",394.28,{"v":5220398.94,"d":"$5,220,398.94"},{"v":4090119.38,"d":"$4,090,119.38"},{"v":0.7834878956587942,"d":"78%"},2,{"v":29367.54,"d":"$29,367.54"},{"v":1359494.6400000001,"d":"$1,359,494.64"},{"v":1388862.1800000002,"d":"$1,388,862.18"},{"v":0.9,"d":"0.90"},{"v":1202941.37,"d":"$1,202,941.37"},{"v":291682.11,"d":"$291,682.11"},{"v":128758.14,"d":"$128,758.14"},{"v":51465.12,"d":"$51,465.12"},{"v":40392.64,"d":"$40,392.64"},{"v":87828.62,"d":"$87,828.62"},{"v":28073.81,"d":"$28,073.81"},{"v":48384.55,"d":"$48,384.55"},{"v":57246.87,"d":"$57,246.87"},{"v":35018.65,"d":"$35,018.65"},{"v":84927.52,"d":"$84,927.52"},{"v":73122.79,"d":"$73,122.79"},{"v":58059.18,"d":"$58,059.18"},{"v":2187901.37,"d":"$2,187,901.37"},{"v":35170.2,"d":"$35,170.20"},{"v":49284.99999999999,"d":"$49,285.00"},{"v":128140.99999999999,"d":"$128,141.00"},{"v":13405.519999999997,"d":"$13,405.52"},{"v":225133.88,"d":"$225,133.88"},{"v":149674.19999999998,"d":"$149,674.20"},{"v":536615.08,"d":"$536,615.08"},{"v":369440.3599999999,"d":"$369,440.36"},{"v":1012112.0749199999,"d":"$1,012,112.07"},{"v":2518977.31492,"d":"$2,518,977.31"},{"v":375307.24,"d":"$375,307.24"},{"v":2143670.0749200005,"d":"$2,143,670.07"},{"v":2481446.5849200003,"d":"$2,481,446.58"},{"v":64672.65,"d":"$64,672.65"},{"v":64672.65,"d":"$64,672.65"},{"v":67312.35,"d":"$67,312.35"},{"v":67312.35,"d":"$67,312.35"},{"v":0,"d":"$0.00"},{"v":0,"d":"$0.00"},{"v":0,"d":"$0.00"},{"v":0,"d":"$0.00"},{"v":0,"d":"$0.00"},{"v":184119.07,"d":"$184,119.07"},{"v":74581.72,"d":"$74,581.72"},{"v":28380.1,"d":"$28,380.10"},{"v":551050.89,"d":"$551,050.89"},{"v":5220398.94,"d":"$5,220,398.94"},{"v":151190.55,"d":"$151,190.55"},{"v":0,"d":"$0.00"},{"v":129020.04000000001,"d":"$129,020.04"},{"v":5220398.84492,"d":"$5,220,398.84"}]
["40042100026","JERSEY C U SCH DIST 100",2305.12,{"v":31672953.09,"d":"$31,672,953.09"},{"v":24356037.51,"d":"$24,356,037.51"},{"v":0.7689853687084788,"d":"77%"},1,{"v":240368.97,"d":"$240,368.97"},{"v":8371908.1899999995,"d":"$8,371,908.19"},{"v":8612277.16,"d":"$8,612,277.16"},{"v":0.93051,"d":"0.93"},{"v":7292818.52,"d":"$7,292,818.52"},{"v":1813124.18,"d":"$1,813,124.18"},{"v":786706.48,"d":"$786,706.48"},{"v":314977.97,"d":"$314,977.97"},{"v":247755.5,"d":"$247,755.50"},{"v":554355.98,"d":"$554,355.98"},{"v":174153.11,"d":"$174,153.11"},{"v":295173.92,"d":"$295,173.92"},{"v":348382.38,"d":"$348,382.38"},{"v":211707.14,"d":"$211,707.14"},{"v":516836.14,"d":"$516,836.14"},{"v":444997.09,"d":"$444,997.09"},{"v":354194.79,"d":"$354,194.79"},{"v":13355183.200000001,"d":"$13,355,183.20"},{"v":205496.09999999998,"d":"$205,496.10"},{"v":288140,"d":"$288,140.00"},{"v":749164,"d":"$749,164.00"},{"v":78374.07999999999,"d":"$78,374.08"},{"v":1316223.52,"d":"$1,316,223.52"},{"v":950242.97,"d":"$950,242.97"},{"v":3137268.3200000003,"d":"$3,137,268.32"},{"v":2159897.44,"d":"$2,159,897.44"},{"v":6030326.15268,"d":"$6,030,326.15"},{"v":14915132.58268,"d":"$14,915,132.58"},{"v":2194197.62,"d":"$2,194,197.62"},{"v":12720934.96268,"d":"$12,720,934.96"},{"v":14762657.782680001,"d":"$14,762,657.78"},{"v":440081.21,"d":"$440,081.21"},{"v":440081.21,"d":"$440,081.21"},{"v":458503.21,"d":"$458,503.21"},{"v":458503.21,"d":"$458,503.21"},{"v":3411.48,"d":"$3,411.48"},{"v":3411.48,"d":"$3,411.48"},{"v":3411.48,"d":"$3,411.48"},{"v":3411.48,"d":"$3,411.48"},{"v":4776.07,"d":"$4,776.07"},{"v":1114872.41,"d":"$1,114,872.41"},{"v":451605.05,"d":"$451,605.05"},{"v":173043.68,"d":"$173,043.68"},{"v":3555111.97,"d":"$3,555,111.97"},{"v":31672953.09,"d":"$31,672,953.09"},{"v":1349174.4600000004,"d":"$1,349,174.46"},{"v":1243.71,"d":"$1,243.71"},{"v":812205.62,"d":"$812,205.62"},{"v":31672952.95268,"d":"$31,672,952.95"}]
["40056001026","CARLINVILLE C U SCHOOL DIST 1",1260.95,{"v":17546446.97,"d":"$17,546,446.97"},{"v":13320444.23,"d":"$13,320,444.23"},{"v":0.7591533632292966,"d":"76%"},1,{"v":210115.89,"d":"$210,115.89"},{"v":5769384.279999999,"d":"$5,769,384.28"},{"v":5979500.169999999,"d":"$5,979,500.17"},{"v":0.93051,"d":"0.93"},{"v":4045401.66,"d":"$4,045,401.66"},{"v":986957.47,"d":"$986,957.47"},{"v":428570.62,"d":"$428,570.62"},{"v":172640.05,"d":"$172,640.05"},{"v":138911.87,"d":"$138,911.87"},{"v":297661.16,"d":"$297,661.16"},{"v":95044.34,"d":"$95,044.34"},{"v":160853.2,"d":"$160,853.20"},{"v":191797.61,"d":"$191,797.61"},{"v":115803.25,"d":"$115,803.25"},{"v":284537.74,"d":"$284,537.74"},{"v":244987.65,"d":"$244,987.65"},{"v":193016.26,"d":"$193,016.26"},{"v":7356182.880000001,"d":"$7,356,182.88"},{"v":112495.5,"d":"$112,495.50"},{"v":157618.75,"d":"$157,618.75"},{"v":409808.75,"d":"$409,808.75"},{"v":42872.299999999996,"d":"$42,872.30"},{"v":720002.45,"d":"$720,002.45"},{"v":490647.68999999994,"d":"$490,647.69"},{"v":1716152.9500000002,"d":"$1,716,152.95"},{"v":1181510.15,"d":"$1,181,510.15"},{"v":3358777.9817999997,"d":"$3,358,777.98"},{"v":8189886.5218,"d":"$8,189,886.52"},{"v":1200273.08,"d":"$1,200,273.08"},{"v":6989613.4418,"d":"$6,989,613.44"},{"v":8106479.5418,"d":"$8,106,479.54"},{"v":274965.47,"d":"$274,965.47"},{"v":274965.47,"d":"$274,965.47"},{"v":286564.51,"d":"$286,564.51"},{"v":286564.51,"d":"$286,564.51"},{"v":1364.59,"d":"$1,364.59"},{"v":1364.59,"d":"$1,364.59"},{"v":2046.88,"d":"$2,046.88"},{"v":2046.88,"d":"$2,046.88"},{"v":2046.88,"d":"$2,046.88"},{"v":609973.03,"d":"$609,973.03"},{"v":247083.79,"d":"$247,083.79"},{"v":94797.84,"d":"$94,797.84"},{"v":2083784.44,"d":"$2,083,784.44"},{"v":17546446.97,"d":"$17,546,446.97"},{"v":752748.0599999999,"d":"$752,748.06"},{"v":1174.23,"d":"$1,174.23"},{"v":322261.14,"d":"$322,261.14"},{"v":17546446.8618,"d":"$17,546,446.86"}]
["40056002026","NORTHWESTERN C U SCH DIST 2",301.64,{"v":4235337.3,"d":"$4,235,337.30"},{"v":3171132.19,"d":"$3,171,132.19"},{"v":0.7487319109153361,"d":"75%"},1,{"v":72039.96,"d":"$72,039.96"},{"v":1778379.8,"d":"$1,778,379.80"},{"v":1850419.76,"d":"$1,850,419.76"},{"v":0.93051,"d":"0.93"},{"v":979939.82,"d":"$979,939.82"},{"v":235880.99,"d":"$235,880.99"},{"v":101066.94,"d":"$101,066.94"},{"v":41042.86,"d":"$41,042.86"},{"v":33843.89,"d":"$33,843.89"},{"v":69254.99,"d":"$69,254.99"},{"v":22195.98,"d":"$22,195.98"},{"v":38140.45,"d":"$38,140.45"},{"v":45701.77,"d":"$45,701.77"},{"v":27638,"d":"$27,638.00"},{"v":67800.01,"d":"$67,800.01"},{"v":58375.96,"d":"$58,375.96"},{"v":45766.74,"d":"$45,766.74"},{"v":1766648.4,"d":"$1,766,648.40"},{"v":26922.6,"d":"$26,922.60"},{"v":37705,"d":"$37,705.00"},{"v":98033,"d":"$98,033.00"},{"v":10255.76,"d":"$10,255.76"},{"v":172236.44,"d":"$172,236.44"},{"v":112248.7,"d":"$112,248.70"},{"v":410532.04000000004,"d":"$410,532.04"},{"v":282636.68,"d":"$282,636.68"},{"v":813820.6779599999,"d":"$813,820.68"},{"v":1964390.8979599997,"d":"$1,964,390.90"},{"v":287125.08,"d":"$287,125.08"},{"v":1677265.81796,"d":"$1,677,265.82"},{"v":1944438.56796,"d":"$1,944,438.57"},{"v":73005.72,"d":"$73,005.72"},{"v":73005.72,"d":"$73,005.72"},{"v":75734.9,"d":"$75,734.90"},{"v":75734.9,"d":"$75,734.90"},{"v":0,"d":"$0.00"},{"v":0,"d":"$0.00"},{"v":0,"d":"$0.00"},{"v":0,"d":"$0.00"},{"v":0,"d":"$0.00"},{"v":145329.14,"d":"$145,329.14"},{"v":58868.95,"d":"$58,868.95"},{"v":22570.91,"d":"$22,570.91"},{"v":524250.24,"d":"$524,250.24"},{"v":4235337.3,"d":"$4,235,337.30"},{"v":224107.88999999996,"d":"$224,107.89"},{"v":0,"d":"$0.00"},{"v":152207.18,"d":"$152,207.18"},{"v":4235337.20796,"d":"$4,235,337.21"}]
["40056005026","MOUNT OLIVE C U SCHOOL DIST 5",445.12,{"v":6116460.73,"d":"$6,116,460.73"},{"v":4511553.99,"d":"$4,511,553.99"},{"v":0.7376085924776304,"d":"74%"},1,{"v":128929.77,"d":"$128,929.77"},{"v":2554914.34,"d":"$2,554,914.34"},{"v":2683844.11,"d":"$2,683,844.11"},{"v":0.93051,"d":"0.93"},{"v":1413825.38,"d":"$1,413,825.38"},{"v":337680.16,"d":"$337,680.16"},{"v":149442.29,"d":"$149,442.29"},{"v":60347.38,"d":"$60,347.38"},{"v":48461.36,"d":"$48,461.36"},{"v":103491.45,"d":"$103,491.45"},{"v":33009.41,"d":"$33,009.41"},{"v":56105.15,"d":"$56,105.15"},{"v":67428.84,"d":"$67,428.84"},{"v":40351.49,"d":"$40,351.49"},{"v":100032.8,"d":"$100,032.80"},{"v":86128.47,"d":"$86,128.47"},{"v":67323.54,"d":"$67,323.54"},{"v":2563627.72,"d":"$2,563,627.72"},{"v":39686.399999999994,"d":"$39,686.40"},{"v":55640,"d":"$55,640.00"},{"v":144664,"d":"$144,664.00"},{"v":15134.079999999998,"d":"$15,134.08"},{"v":254163.52,"d":"$254,163.52"},{"v":161895.56,"d":"$161,895.56"},{"v":605808.32,"d":"$605,808.32"},{"v":417077.43999999994,"d":"$417,077.44"},{"v":1169668.88868,"d":"$1,169,668.89"},{"v":2863738.20868,"d":"$2,863,738.21"},{"v":423700.82,"d":"$423,700.82"},{"v":2440037.3886800003,"d":"$2,440,037.39"},{"v":2834295.2386800004,"d":"$2,834,295.24"},{"v":94156.91,"d":"$94,156.91"},{"v":94156.91,"d":"$94,156.91"},{"v":97568.39,"d":"$97,568.39"},{"v":97568.39,"d":"$97,568.39"},{"v":0,"d":"$0.00"},{"v":0,"d":"$0.00"},{"v":0,"d":"$0.00"},{"v":0,"d":"$0.00"},{"v":0,"d":"$0.00"},{"v":214923.38,"d":"$214,923.38"},{"v":87059.72,"d":"$87,059.72"},{"v":33104,"d":"$33,104.00"},{"v":718537.7,"d":"$718,537.70"},{"v":6116460.73,"d":"$6,116,460.73"},{"v":293871.92,"d":"$293,871.92"},{"v":0,"d":"$0.00"},{"v":154379.97,"d":"$154,379.97"},{"v":6116460.65868,"d":"$6,116,460.66"}]
["40056006026","STAUNTON COMM UNIT SCH DIST 6",1164.69,{"v":15894878.25,"d":"$15,894,878.25"},{"v":11237965.27,"d":"$11,237,965.27"},{"v":0.7070180150640663,"d":"71%"},1,{"v":494856.92,"d":"$494,856.92"},{"v":6356406.38,"d":"$6,356,406.38"},{"v":6851263.3,"d":"$6,851,263.30"},{"v":0.93051,"d":"0.93"},{"v":3667937.03,"d":"$3,667,937.03"},{"v":897735.77,"d":"$897,735.77"},{"v":394762.8,"d":"$394,762.80"},{"v":159272.82,"d":"$159,272.82"},{"v":124506.97,"d":"$124,506.97"},{"v":277004.97,"d":"$277,004.97"},{"v":87076.55,"d":"$87,076.55"},{"v":148139.72,"d":"$148,139.72"},{"v":176813.42,"d":"$176,813.42"},{"v":106959.09,"d":"$106,959.09"},{"v":262308.23,"d":"$262,308.23"},{"v":225847.99,"d":"$225,847.99"},{"v":177760.68,"d":"$177,760.68"},{"v":6706126.039999999,"d":"$6,706,126.04"},{"v":103689.9,"d":"$103,689.90"},{"v":145586.25,"d":"$145,586.25"},{"v":378524.25,"d":"$378,524.25"},{"v":39599.46,"d":"$39,599.46"},{"v":665037.99,"d":"$665,037.99"},{"v":457808.52999999997,"d":"$457,808.53"},{"v":1585143.0899999999,"d":"$1,585,143.09"},{"v":1091314.53,"d":"$1,091,314.53"},{"v":3026138.52816,"d":"$3,026,138.53"},{"v":7492842.52816,"d":"$7,492,842.53"},{"v":1108645.11,"d":"$1,108,645.11"},{"v":6384197.418160001,"d":"$6,384,197.42"},{"v":7415802.778160001,"d":"$7,415,802.78"},{"v":219017.16,"d":"$219,017.16"},{"v":219017.16,"d":"$219,017.16"},{"v":227887.01,"d":"$227,887.01"},{"v":227887.01,"d":"$227,887.01"},{"v":0,"d":"$0.00"},{"v":0,"d":"$0.00"},{"v":0,"d":"$0.00"},{"v":0,"d":"$0.00"},{"v":0,"d":"$0.00"},{"v":563576.87,"d":"$563,576.87"},{"v":228289.94,"d":"$228,289.94"},{"v":87274.2,"d":"$87,274.20"},{"v":1772949.3499999999,"d":"$1,772,949.35"},{"v":15894878.25,"d":"$15,894,878.25"},{"v":664761.36,"d":"$664,761.36"},{"v":0,"d":"$0.00"},{"v":438165.19,"d":"$438,165.19"},{"v":15894878.16816,"d":"$15,894,878.17"}]
["40056007026","GILLESPIE COMM UNIT SCH DIST 7",1083.62,{"v":15467516.26,"d":"$15,467,516.26"},{"v":11447181.84,"d":"$11,447,181.84"},{"v":0.7400788625387228,"d":"74%"},1,{"v":334421.63,"d":"$334,421.63"},{"v":9239995.24,"d":"$9,239,995.24"},{"v":9574416.870000001,"d":"$9,574,416.87"},{"v":0.93051,"d":"0.93"},{"v":3552324.57,"d":"$3,552,324.57"},{"v":860586.06,"d":"$860,586.06"},{"v":366015.28,"d":"$366,015.28"},{"v":148111.32,"d":"$148,111.32"},{"v":124095.13,"d":"$124,095.13"},{"v":255062.91,"d":"$255,062.91"},{"v":81385.27,"d":"$81,385.27"},{"v":137913.66,"d":"$137,913.66"},{"v":164826.07,"d":"$164,826.07"},{"v":99220.44,"d":"$99,220.44"},{"v":244524.62,"d":"$244,524.62"},{"v":210536.26,"d":"$210,536.26"},{"v":165489.89,"d":"$165,489.89"},{"v":6410091.48,"d":"$6,410,091.48"},{"v":96776.09999999999,"d":"$96,776.10"},{"v":135452.5,"d":"$135,452.50"},{"v":352176.5,"d":"$352,176.50"},{"v":36843.079999999994,"d":"$36,843.08"},{"v":618747.02,"d":"$618,747.02"},{"v":413637.89,"d":"$413,637.89"},{"v":1474806.8199999998,"d":"$1,474,806.82"},{"v":1015351.94,"d":"$1,015,351.94"},{"v":2981960.0386799993,"d":"$2,981,960.04"},{"v":7125751.888679999,"d":"$7,125,751.89"},{"v":1031476.2,"d":"$1,031,476.20"},{"v":6094275.688679998,"d":"$6,094,275.69"},{"v":7054074.598679998,"d":"$7,054,074.60"},{"v":290658.29,"d":"$290,658.29"},{"v":290658.29,"d":"$290,658.29"},{"v":302257.33,"d":"$302,257.33"},{"v":302257.33,"d":"$302,257.33"},{"v":0,"d":"$0.00"},{"v":0,"d":"$0.00"},{"v":0,"d":"$0.00"},{"v":0,"d":"$0.00"},{"v":0,"d":"$0.00"},{"v":524003.67,"d":"$524,003.67"},{"v":212259.9,"d":"$212,259.90"},{"v":81255.29,"d":"$81,255.29"},{"v":2003350.0999999999,"d":"$2,003,350.10"},{"v":15467516.26,"d":"$15,467,516.26"},{"v":1444840.1500000004,"d":"$1,444,840.15"},{"v":198.97,"d":"$198.97"},{"v":452025.22000000003,"d":"$452,025.22"},{"v":15467516.178679997,"d":"$15,467,516.18"}]
["40056008026","BUNKER HILL C U SCHOOL DIST 8",540.14,{"v":7468689.89,"d":"$7,468,689.89"},{"v":5395198.05,"d":"$5,395,198.05"},{"v":0.7223754272116392,"d":"72%"},1,{"v":195000.81,"d":"$195,000.81"},{"v":3324449.1899999995,"d":"$3,324,449.19"},{"v":3519449.9999999995,"d":"$3,519,450.00"},{"v":0.93051,"d":"0.93"},{"v":1725113.98,"d":"$1,725,113.98"},{"v":421625.36,"d":"$421,625.36"},{"v":182375.38,"d":"$182,375.38"},{"v":73552.95,"d":"$73,552.95"},{"v":58962.57,"d":"$58,962.57"},{"v":127125.42,"d":"$127,125.42"},{"v":40408.07,"d":"$40,408.07"},{"v":68542.25,"d":"$68,542.25"},{"v":81663.82,"d":"$81,663.82"},{"v":49472.03,"d":"$49,472.03"},{"v":121150.83,"d":"$121,150.83"},{"v":104311.14,"d":"$104,311.14"},{"v":82247.48,"d":"$82,247.48"},{"v":3136551.2799999993,"d":"$3,136,551.28"},{"v":48148.200000000004,"d":"$48,148.20"},{"v":67517.5,"d":"$67,517.50"},{"v":175545.5,"d":"$175,545.50"},{"v":18364.76,"d":"$18,364.76"},{"v":308419.94,"d":"$308,419.94"},{"v":211140.78,"d":"$211,140.78"},{"v":735130.54,"d":"$735,130.54"},{"v":506111.18,"d":"$506,111.18"},{"v":1427090.56896,"d":"$1,427,090.57"},{"v":3497468.96896,"d":"$3,497,468.97"},{"v":514148.46,"d":"$514,148.46"},{"v":2983320.50896,"d":"$2,983,320.51"},{"v":3461740.7889599996,"d":"$3,461,740.79"},{"v":113261.21,"d":"$113,261.21"},{"v":113261.21,"d":"$113,261.21"},{"v":118037.28,"d":"$118,037.28"},{"v":118037.28,"d":"$118,037.28"},{"v":0,"d":"$0.00"},{"v":0,"d":"$0.00"},{"v":0,"d":"$0.00"},{"v":0,"d":"$0.00"},{"v":0,"d":"$0.00"},{"v":261319.54,"d":"$261,319.54"},{"v":105853.57,"d":"$105,853.57"},{"v":40627.64,"d":"$40,627.64"},{"v":870397.7300000001,"d":"$870,397.73"},{"v":7468689.89,"d":"$7,468,689.89"},{"v":401598.6500000001,"d":"$401,598.65"},{"v":0,"d":"$0.00"},{"v":177763.84999999998,"d":"$177,763.85"},{"v":7468689.798959999,"d":"$7,468,689.80"}]
["40056009026","SOUTHWESTERN C U SCH DIST 9",1210.46,{"v":16278121.95,"d":"$16,278,121.95"},{"v":12643051.93,"d":"$12,643,051.93"},{"v":0.7766898398251648,"d":"78%"},2,{"v":117274.98,"d":"$117,274.98"},{"v":6672357.28,"d":"$6,672,357.28"},{"v":6789632.260000001,"d":"$6,789,632.26"},{"v":0.93051,"d":"0.93"},{"v":3782989.08,"d":"$3,782,989.08"},{"v":926914.18,"d":"$926,914.18"},{"v":411310.17,"d":"$411,310.17"},{"v":166053.88,"d":"$166,053.88"},{"v":126585.08,"d":"$126,585.08"},{"v":288976.09,"d":"$288,976.09"},{"v":91629.58,"d":"$91,629.58"},{"v":154496.46,"d":"$154,496.46"},{"v":184305.52,"d":"$184,305.52"},{"v":111104.79,"d":"$111,104.79"},{"v":273422.99,"d":"$273,422.99"},{"v":235417.82,"d":"$235,417.82"},{"v":185388.47,"d":"$185,388.47"},{"v":6938594.109999999,"d":"$6,938,594.11"},{"v":108521.99999999999,"d":"$108,522.00"},{"v":151307.5,"d":"$151,307.50"},{"v":393399.49999999994,"d":"$393,399.50"},{"v":41155.63999999999,"d":"$41,155.64"},{"v":691172.6599999999,"d":"$691,172.66"},{"v":480123.05999999994,"d":"$480,123.06"},{"v":1647436.06,"d":"$1,647,436.06"},{"v":1134201.0199999998,"d":"$1,134,201.02"},{"v":3085655.2394399997,"d":"$3,085,655.24"},{"v":7732972.679439999,"d":"$7,732,972.68"},{"v":1152212.66,"d":"$1,152,212.66"},{"v":6580760.019439999,"d":"$6,580,760.02"},{"v":7652905.419439999,"d":"$7,652,905.42"},{"v":188996.11,"d":"$188,996.11"},{"v":188996.11,"d":"$188,996.11"},{"v":197183.67,"d":"$197,183.67"},{"v":197183.67,"d":"$197,183.67"},{"v":0,"d":"$0.00"},{"v":0,"d":"$0.00"},{"v":0,"d":"$0.00"},{"v":0,"d":"$0.00"},{"v":682.29,"d":"$682.29"},{"v":585410.36,"d":"$585,410.36"},{"v":237134.1,"d":"$237,134.10"},{"v":91036.02,"d":"$91,036.02"},{"v":1686622.33,"d":"$1,686,622.33"},{"v":16278121.95,"d":"$16,278,121.95"},{"v":509362.77,"d":"$509,362.77"},{"v":213.86,"d":"$213.86"},{"v":431796.29000000004,"d":"$431,796.29"},{"v":16278121.859439999,"d":"$16,278,121.86"}]
["40056034026","NORTH MAC CUSD 34",1102.96,{"v":15532949.33,"d":"$15,532,949.33"},{"v":12463291.3,"d":"$12,463,291.30"},{"v":0.8023776447869222,"d":"80%"},2,{"v":90103.66,"d":"$90,103.66"},{"v":6339220.549999999,"d":"$6,339,220.55"},{"v":6429324.209999999,"d":"$6,429,324.21"},{"v":0.93051,"d":"0.93"},{"v":3564088.68,"d":"$3,564,088.68"},{"v":880249.06,"d":"$880,249.06"},{"v":374647.75,"d":"$374,647.75"},{"v":150837.48,"d":"$150,837.48"},{"v":123102.36,"d":"$123,102.36"},{"v":265116.61,"d":"$265,116.61"},{"v":83092.66,"d":"$83,092.66"},{"v":140953.84,"d":"$140,953.84"},{"v":167073.7,"d":"$167,073.70"},{"v":101155.1,"d":"$101,155.10"},{"v":247859.05,"d":"$247,859.05"},{"v":213407.21,"d":"$213,407.21"},{"v":169137.96,"d":"$169,137.96"},{"v":6480721.460000001,"d":"$6,480,721.46"},{"v":98546.4,"d":"$98,546.40"},{"v":137870,"d":"$137,870.00"},{"v":358461.99999999994,"d":"$358,462.00"},{"v":37500.64,"d":"$37,500.64"},{"v":629790.1599999999,"d":"$629,790.16"},{"v":448136.3599999999,"d":"$448,136.36"},{"v":1501128.5599999998,"d":"$1,501,128.56"},{"v":1033473.5199999998,"d":"$1,033,473.52"},{"v":2977990.8074400006,"d":"$2,977,990.81"},{"v":7222898.447439999,"d":"$7,222,898.45"},{"v":1049885.56,"d":"$1,049,885.56"},{"v":6173012.88744,"d":"$6,173,012.89"},{"v":7149941.8974399995,"d":"$7,149,941.90"},{"v":262001.83,"d":"$262,001.83"},{"v":262001.83,"d":"$262,001.83"},{"v":272918.58,"d":"$272,918.58"},{"v":272918.58,"d":"$272,918.58"},{"v":0,"d":"$0.00"},{"v":0,"d":"$0.00"},{"v":0,"d":"$0.00"},{"v":0,"d":"$0.00"},{"v":0,"d":"$0.00"},{"v":533555.82,"d":"$533,555.82"},{"v":216129.22,"d":"$216,129.22"},{"v":82760.02,"d":"$82,760.02"},{"v":1902285.8800000001,"d":"$1,902,285.88"},{"v":15532949.33,"d":"$15,532,949.33"},{"v":924283.8200000001,"d":"$924,283.82"},{"v":0,"d":"$0.00"},{"v":280390.91,"d":"$280,390.91"},{"v":15532949.237440001,"d":"$15,532,949.24"}]
[null,"SAFE SCH-MADISON ROE",56,{"v":798479.21,"d":"$798,479.21"},{"v":545027.9500000001,"d":"$545,027.95"},{"v":0.6825825183350737,"d":"68%"},1,{"v":33885.22,"d":"$33,885.22"},{"v":465180.03,"d":"$465,180.03"},{"v":499065.25,"d":"$499,065.25"},{"v":0.93051,"d":"0.93"},{"v":176026.29,"d":"$176,026.29"},{"v":52614.93,"d":"$52,614.93"},{"v":20117.29,"d":"$20,117.29"},{"v":6424.51,"d":"$6,424.51"},{"v":5992.37,"d":"$5,992.37"},{"v":16949.09,"d":"$16,949.09"},{"v":3983.89,"d":"$3,983.89"},{"v":7462.26,"d":"$7,462.26"},{"v":6742.88,"d":"$6,742.88"},{"v":4974.84,"d":"$4,974.84"},{"v":10003.28,"d":"$10,003.28"},{"v":8612.84,"d":"$8,612.84"},{"v":8954.36,"d":"$8,954.36"},{"v":328858.83000000013,"d":"$328,858.83"},{"v":5040,"d":"$5,040.00"},{"v":7000,"d":"$7,000.00"},{"v":18200,"d":"$18,200.00"},{"v":1904,"d":"$1,904.00"},{"v":31976,"d":"$31,976.00"},{"v":38344,"d":"$38,344.00"},{"v":76216,"d":"$76,216.00"},{"v":52472,"d":"$52,472.00"},{"v":149850.093,"d":"$149,850.09"},{"v":381002.093,"d":"$381,002.09"},{"v":53305.28,"d":"$53,305.28"},{"v":327696.81299999997,"d":"$327,696.81"},{"v":377297.90299999993,"d":"$377,297.90"},{"v":11599.03,"d":"$11,599.03"},{"v":11599.03,"d":"$11,599.03"},{"v":12281.33,"d":"$12,281.33"},{"v":12281.33,"d":"$12,281.33"},{"v":682.29,"d":"$682.29"},{"v":682.29,"d":"$682.29"},{"v":682.29,"d":"$682.29"},{"v":682.29,"d":"$682.29"},{"v":682.29,"d":"$682.29"},{"v":26609.56,"d":"$26,609.56"},{"v":10778.82,"d":"$10,778.82"},{"v":3761.81,"d":"$3,761.81"},{"v":92322.36000000002,"d":"$92,322.36"},{"v":798479.21,"d":"$798,479.21"},{"v":16909.66,"d":"$16,909.66"},{"v":398.15999999999997,"d":"$398.16"},{"v":9588.93,"d":"$9,588.93"},{"v":798479.093,"d":"$798,479.09"}]
["41057001026","ROXANA COMM UNIT SCHOOL DIST 1",1637.87,{"v":22526138.58,"d":"$22,526,138.58"},{"v":26774838.66,"d":"$26,774,838.66"},{"v":1.1886120013384025,"d":"119%"},4,{"v":1434.87,"d":"$1,434.87"},{"v":2086248.4600000002,"d":"$2,086,248.46"},{"v":2087683.3300000003,"d":"$2,087,683.33"},{"v":0.93051,"d":"0.93"},{"v":5285517.35,"d":"$5,285,517.35"},{"v":1284125.63,"d":"$1,284,125.63"},{"v":555171.71,"d":"$555,171.71"},{"v":224357.21,"d":"$224,357.21"},{"v":182969.64,"d":"$182,969.64"},{"v":384384.04,"d":"$384,384.04"},{"v":122931.61,"d":"$122,931.61"},{"v":208666.96,"d":"$208,666.96"},{"v":249486.74,"d":"$249,486.74"},{"v":150627.14,"d":"$150,627.14"},{"v":370121.36,"d":"$370,121.36"},{"v":318675.34,"d":"$318,675.34"},{"v":250390.51,"d":"$250,390.51"},{"v":9587425.239999998,"d":"$9,587,425.24"},{"v":145855.8,"d":"$145,855.80"},{"v":204733.75,"d":"$204,733.75"},{"v":532307.75,"d":"$532,307.75"},{"v":55687.579999999994,"d":"$55,687.58"},{"v":467611.88,"d":"$467,611.88"},{"v":627414.22,"d":"$627,414.22"},{"v":2229141.07,"d":"$2,229,141.07"},{"v":1534684.19,"d":"$1,534,684.19"},{"v":4413971.8636799995,"d":"$4,413,971.86"},{"v":10211408.10368,"d":"$10,211,408.10"},{"v":1559055.69,"d":"$1,559,055.69"},{"v":8652352.413680002,"d":"$8,652,352.41"},{"v":10103069.323680002,"d":"$10,103,069.32"},{"v":387544.38,"d":"$387,544.38"},{"v":387544.38,"d":"$387,544.38"},{"v":403237.2,"d":"$403,237.20"},{"v":403237.2,"d":"$403,237.20"},{"v":3411.48,"d":"$3,411.48"},{"v":3411.48,"d":"$3,411.48"},{"v":3411.48,"d":"$3,411.48"},{"v":3411.48,"d":"$3,411.48"},{"v":4776.07,"d":"$4,776.07"},{"v":792146.18,"d":"$792,146.18"},{"v":320877.27,"d":"$320,877.27"},{"v":122635.3,"d":"$122,635.30"},{"v":2835643.9,"d":"$2,835,643.90"},{"v":22526138.58,"d":"$22,526,138.58"},{"v":870361.29,"d":"$870,361.29"},{"v":4.04,"d":"$4.04"},{"v":581231.6399999999,"d":"$581,231.64"},{"v":22526138.46368,"d":"$22,526,138.46"}]
["41057002026","TRIAD COMM UNIT SCHOOL DIST 2",3875.25,{"v":49520780.18,"d":"$49,520,780.18"},{"v":35456430.9,"d":"$35,456,430.90"},{"v":0.715990959171516,"d":"72%"},1,{"v":1236875.65,"d":"$1,236,875.65"},{"v":11217108.34,"d":"$11,217,108.34"},{"v":12453983.99,"d":"$12,453,983.99"},{"v":0.93051,"d":"0.93"},{"v":11621666.17,"d":"$11,621,666.17"},{"v":2815584.53,"d":"$2,815,584.53"},{"v":1314293.26,"d":"$1,314,293.26"},{"v":533849.63,"d":"$533,849.63"},{"v":376846.28,"d":"$376,846.28"},{"v":908187.9,"d":"$908,187.90"},{"v":293669.96,"d":"$293,669.96"},{"v":493891.2,"d":"$493,891.20"},{"v":594123.07,"d":"$594,123.07"},{"v":356530.3,"d":"$356,530.30"},{"v":881400.13,"d":"$881,400.13"},{"v":758887.52,"d":"$758,887.52"},{"v":592646.16,"d":"$592,646.16"},{"v":21541576.11,"d":"$21,541,576.11"},{"v":345870,"d":"$345,870.00"},{"v":484406.25,"d":"$484,406.25"},{"v":1259456.25,"d":"$1,259,456.25"},{"v":131758.5,"d":"$131,758.50"},{"v":2212767.75,"d":"$2,212,767.75"},{"v":1467394,"d":"$1,467,394.00"},{"v":5274215.25,"d":"$5,274,215.25"},{"v":3631109.25,"d":"$3,631,109.25"},{"v":9270724.241999999,"d":"$9,270,724.24"},{"v":24077701.492,"d":"$24,077,701.49"},{"v":3688772.97,"d":"$3,688,772.97"},{"v":20388928.522,"d":"$20,388,928.52"},{"v":23821368.652,"d":"$23,821,368.65"},{"v":296116.66,"d":"$296,116.66"},{"v":296116.66,"d":"$296,116.66"},{"v":308397.99,"d":"$308,397.99"},{"v":308397.99,"d":"$308,397.99"},{"v":4093.77,"d":"$4,093.77"},{"v":4093.77,"d":"$4,093.77"},{"v":4776.07,"d":"$4,776.07"},{"v":4776.07,"d":"$4,776.07"},{"v":5458.37,"d":"$5,458.37"},{"v":1874950.66,"d":"$1,874,950.66"},{"v":759492.46,"d":"$759,492.46"},{"v":291164.81,"d":"$291,164.81"},{"v":4157835.28,"d":"$4,157,835.28"},{"v":49520780.18,"d":"$49,520,780.18"},{"v":463437.67000000004,"d":"$463,437.67"},{"v":2181.85,"d":"$2,181.85"},{"v":1377386.9199999997,"d":"$1,377,386.92"},{"v":49520780.041999996,"d":"$49,520,780.04"}]
["41057003026","VENICE COMM UNIT SCHOOL DIST 3",87.5,{"v":1299294.25,"d":"$1,299,294.25"},{"v":4880121.029999999,"d":"$4,880,121.03"},{"v":3.7559783166900025,"d":"376%"},4,{"v":82.76,"d":"$82.76"},{"v":660389.0199999999,"d":"$660,389.02"},{"v":660471.7799999999,"d":"$660,471.78"},{"v":0.93051,"d":"0.93"},{"v":314902.55,"d":"$314,902.55"},{"v":67158.82,"d":"$67,158.82"},{"v":28291.29,"d":"$28,291.29"},{"v":11128.27,"d":"$11,128.27"},{"v":11408.3,"d":"$11,408.30"},{"v":16377.53,"d":"$16,377.53"},{"v":5691.27,"d":"$5,691.27"},{"v":10502.44,"d":"$10,502.44"},{"v":12736.56,"d":"$12,736.56"},{"v":7738.64,"d":"$7,738.64"},{"v":18895.08,"d":"$18,895.08"},{"v":16268.71,"d":"$16,268.71"},{"v":12602.43,"d":"$12,602.43"},{"v":533701.8900000001,"d":"$533,701.89"},{"v":7875,"d":"$7,875.00"},{"v":10937.5,"d":"$10,937.50"},{"v":28437.5,"d":"$28,437.50"},{"v":2975,"d":"$2,975.00"},{"v":24981.25,"d":"$24,981.25"},{"v":20271.5,"d":"$20,271.50"},{"v":119087.5,"d":"$119,087.50"},{"v":81987.5,"d":"$81,987.50"},{"v":261994.467,"d":"$261,994.47"},{"v":558547.217,"d":"$558,547.22"},{"v":83289.5,"d":"$83,289.50"},{"v":475257.71699999995,"d":"$475,257.72"},{"v":552759.4269999999,"d":"$552,759.43"},{"v":36161.71,"d":"$36,161.71"},{"v":36161.71,"d":"$36,161.71"},{"v":37526.3,"d":"$37,526.30"},{"v":37526.3,"d":"$37,526.30"},{"v":0,"d":"$0.00"},{"v":0,"d":"$0.00"},{"v":0,"d":"$0.00"},{"v":0,"d":"$0.00"},{"v":0,"d":"$0.00"},{"v":42302.38,"d":"$42,302.38"},{"v":17135.56,"d":"$17,135.56"},{"v":6018.91,"d":"$6,018.91"},{"v":212832.87000000002,"d":"$212,832.87"},{"v":1299294.25,"d":"$1,299,294.25"},{"v":476297.55000000005,"d":"$476,297.55"},{"v":0,"d":"$0.00"},{"v":46560.92000000001,"d":"$46,560.92"},{"v":1299294.1870000002,"d":"$1,299,294.19"}]
["41057005026","HIGHLAND COMM UNIT SCH DIST 5",2719.95,{"v":35591383.88,"d":"$35,591,383.88"},{"v":27360190.53,"d":"$27,360,190.53"},{"v":0.7687307305118477,"d":"77%"},1,{"v":252054.71,"d":"$252,054.71"},{"v":7788505.409999999,"d":"$7,788,505.41"},{"v":8040560.119999999,"d":"$8,040,560.12"},{"v":0.93051,"d":"0.93"},{"v":8311236.31,"d":"$8,311,236.31"},{"v":2027750.96,"d":"$2,027,750.96"},{"v":923751.5,"d":"$923,751.50"},{"v":373604.62,"d":"$373,604.62"},{"v":273642.69,"d":"$273,642.69"},{"v":639725.23,"d":"$639,725.23"},{"v":205455.14,"d":"$205,455.14"},{"v":347133.38,"d":"$347,133.38"},{"v":415062.02,"d":"$415,062.02"},{"v":250123.97,"d":"$250,123.97"},{"v":615757.47,"d":"$615,757.47"},{"v":530168.58,"d":"$530,168.58"},{"v":416543.69,"d":"$416,543.69"},{"v":15329955.56,"d":"$15,329,955.56"},{"v":242920.8,"d":"$242,920.80"},{"v":339993.75,"d":"$339,993.75"},{"v":883983.75,"d":"$883,983.75"},{"v":92478.3,"d":"$92,478.30"},{"v":1553091.45,"d":"$1,553,091.45"},{"v":1055043.72,"d":"$1,055,043.72"},{"v":3701851.95,"d":"$3,701,851.95"},{"v":2548593.15,"d":"$2,548,593.15"},{"v":6701818.8378,"d":"$6,701,818.84"},{"v":17119775.7078,"d":"$17,119,775.71"},{"v":2589066,"d":"$2,589,066.00"},{"v":14530709.707800005,"d":"$14,530,709.71"},{"v":16939861.507800005,"d":"$16,939,861.51"},{"v":295434.36,"d":"$295,434.36"},{"v":295434.36,"d":"$295,434.36"},{"v":307715.7,"d":"$307,715.70"},{"v":307715.7,"d":"$307,715.70"},{"v":11599.03,"d":"$11,599.03"},{"v":11599.03,"d":"$11,599.03"},{"v":12281.33,"d":"$12,281.33"},{"v":12281.33,"d":"$12,281.33"},{"v":14328.22,"d":"$14,328.22"},{"v":1316149.86,"d":"$1,316,149.86"},{"v":533137.17,"d":"$533,137.17"},{"v":203890.6,"d":"$203,890.60"},{"v":3321566.69,"d":"$3,321,566.69"},{"v":35591383.88,"d":"$35,591,383.88"},{"v":469199.19999999995,"d":"$469,199.20"},{"v":1848.5800000000002,"d":"$1,848.58"},{"v":1034807.4399999998,"d":"$1,034,807.44"},{"v":35591383.757800005,"d":"$35,591,383.76"}]
["41057007026","EDWARDSVILLE C U SCHOOL DIST 7",7221.64,{"v":93214353.02,"d":"$93,214,353.02"},{"v":82485951.55,"d":"$82,485,951.55"},{"v":0.884906120973686,"d":"88%"},2,{"v":149846.59,"d":"$149,846.59"},{"v":9492747.090000002,"d":"$9,492,747.09"},{"v":9642593.680000002,"d":"$9,642,593.68"},{"v":0.93051,"d":"0.93"},{"v":21746941.16,"d":"$21,746,941.16"},{"v":5308611.63,"d":"$5,308,611.63"},{"v":2455561.19,"d":"$2,455,561.19"},{"v":994797.43,"d":"$994,797.43"},{"v":710740.65,"d":"$710,740.65"},{"v":1715929.89,"d":"$1,715,929.89"},{"v":546931.84,"d":"$546,931.84"},{"v":922556.7,"d":"$922,556.70"},{"v":1105083.91,"d":"$1,105,083.91"},{"v":664970.47,"d":"$664,970.47"},{"v":1639426.48,"d":"$1,639,426.48"},{"v":1411549.93,"d":"$1,411,549.93"},{"v":1107024.56,"d":"$1,107,024.56"},{"v":40330125.839999996,"d":"$40,330,125.84"},{"v":646317.8999999999,"d":"$646,317.90"},{"v":902705,"d":"$902,705.00"},{"v":2347033,"d":"$2,347,033.00"},{"v":245535.75999999998,"d":"$245,535.76"},{"v":4123556.4400000004,"d":"$4,123,556.44"},{"v":2817267.95,"d":"$2,817,267.95"},{"v":9828652.04,"d":"$9,828,652.04"},{"v":6766676.68,"d":"$6,766,676.68"},{"v":17480557.39896,"d":"$17,480,557.40"},{"v":45158302.168960005,"d":"$45,158,302.17"},{"v":6874134.68,"d":"$6,874,134.68"},{"v":38284167.48896,"d":"$38,284,167.49"},{"v":44680618.54896,"d":"$44,680,618.55"},{"v":597009.4,"d":"$597,009.40"},{"v":597009.4,"d":"$597,009.40"},{"v":621572.07,"d":"$621,572.07"},{"v":621572.07,"d":"$621,572.07"},{"v":58677.49,"d":"$58,677.49"},{"v":58677.49,"d":"$58,677.49"},{"v":61406.68,"d":"$61,406.68"},{"v":61406.68,"d":"$61,406.68"},{"v":73688.01,"d":"$73,688.01"},{"v":3494040.15,"d":"$3,494,040.15"},{"v":1415342.39,"d":"$1,415,342.39"},{"v":543206.7,"d":"$543,206.70"},{"v":8203608.53,"d":"$8,203,608.53"},{"v":93214353.02,"d":"$93,214,353.02"},{"v":618607.35,"d":"$618,607.35"},{"v":16985.21,"d":"$16,985.21"},{"v":2170158.3499999996,"d":"$2,170,158.35"},{"v":93214352.91896,"d":"$93,214,352.92"}]
["41057008026","BETHALTO C U SCHOOL DIST 8",2319.88,{"v":31877150.94,"d":"$31,877,150.94"},{"v":22554529.13,"d":"$22,554,529.13"},{"v":0.7075453252535874,"d":"71%"},1,{"v":998033.93,"d":"$998,033.93"},{"v":13659225.07,"d":"$13,659,225.07"},{"v":14657259,"d":"$14,657,259.00"},{"v":0.93051,"d":"0.93"},{"v":7358256.8,"d":"$7,358,256.80"},{"v":1796963.58,"d":"$1,796,963.58"},{"v":788584.39,"d":"$788,584.39"},{"v":319097.08,"d":"$319,097.08"},{"v":250689.04,"d":"$250,689.04"},{"v":549618.53,"d":"$549,618.53"},{"v":175860.49,"d":"$175,860.49"},{"v":296279.44,"d":"$296,279.44"},{"v":354376.06,"d":"$354,376.06"},{"v":213365.42,"d":"$213,365.42"},{"v":525727.95,"d":"$525,727.95"},{"v":452652.96,"d":"$452,652.96"},{"v":355521.37,"d":"$355,521.37"},{"v":13436993.109999998,"d":"$13,436,993.11"},{"v":207177.30000000002,"d":"$207,177.30"},{"v":289985,"d":"$289,985.00"},{"v":753961,"d":"$753,961.00"},{"v":78875.92,"d":"$78,875.92"},{"v":1324651.48,"d":"$1,324,651.48"},{"v":905668.8300000001,"d":"$905,668.83"},{"v":3157356.68,"d":"$3,157,356.68"},{"v":2173727.56,"d":"$2,173,727.56"},{"v":6081211.57332,"d":"$6,081,211.57"},{"v":14972615.34332,"d":"$14,972,615.34"},{"v":2208247.37,"d":"$2,208,247.37"},{"v":12764367.97332,"d":"$12,764,367.97"},{"v":14819164.23332,"d":"$14,819,164.23"},{"v":448951.06,"d":"$448,951.06"},{"v":448951.06,"d":"$448,951.06"},{"v":467373.07,"d":"$467,373.07"},{"v":467373.07,"d":"$467,373.07"},{"v":6822.96,"d":"$6,822.96"},{"v":6822.96,"d":"$6,822.96"},{"v":7505.26,"d":"$7,505.26"},{"v":7505.26,"d":"$7,505.26"},{"v":8869.85,"d":"$8,869.85"},{"v":1122377.67,"d":"$1,122,377.67"},{"v":454645.23,"d":"$454,645.23"},{"v":173796.05,"d":"$173,796.05"},{"v":3620993.4999999995,"d":"$3,620,993.50"},{"v":31877150.94,"d":"$31,877,150.94"},{"v":1586212.23,"d":"$1,586,212.23"},{"v":9957.06,"d":"$9,957.06"},{"v":1174394.4300000002,"d":"$1,174,394.43"},{"v":31877150.843319997,"d":"$31,877,150.84"}]
["41057009026","GRANITE CITY C U SCHOOL DIST 9",5668.81,{"v":84415369.98,"d":"$84,415,369.98"},{"v":79039192.75,"d":"$79,039,192.75"},{"v":0.9363128156486935,"d":"94%"},3,{"v":95930.53,"d":"$95,930.53"},{"v":32137026.790000003,"d":"$32,137,026.79"},{"v":32232957.320000004,"d":"$32,232,957.32"},{"v":0.93051,"d":"0.93"},{"v":18957531.68,"d":"$18,957,531.68"},{"v":4632244.44,"d":"$4,632,244.44"},{"v":1928098.35,"d":"$1,928,098.35"},{"v":779362.78,"d":"$779,362.78"},{"v":687420.16,"d":"$687,420.16"},{"v":1343501.97,"d":"$1,343,501.97"},{"v":429122.38,"d":"$429,122.38"},{"v":724115.81,"d":"$724,115.81"},{"v":865336.89,"d":"$865,336.89"},{"v":521805.59,"d":"$521,805.59"},{"v":1283754.3,"d":"$1,283,754.30"},{"v":1105315.37,"d":"$1,105,315.37"},{"v":868904.84,"d":"$868,904.84"},{"v":34126514.56,"d":"$34,126,514.56"},{"v":504403.19999999995,"d":"$504,403.20"},{"v":708601.2499999999,"d":"$708,601.25"},{"v":1842363.25,"d":"$1,842,363.25"},{"v":192739.53999999998,"d":"$192,739.54"},{"v":3236890.51,"d":"$3,236,890.51"},{"v":2216706.36,"d":"$2,216,706.36"},{"v":7715250.409999999,"d":"$7,715,250.41"},{"v":5311674.97,"d":"$5,311,674.97"},{"v":16431076.67484,"d":"$16,431,076.67"},{"v":38159706.16484,"d":"$38,159,706.16"},{"v":5396026.86,"d":"$5,396,026.86"},{"v":32763679.30484,"d":"$32,763,679.30"},{"v":37784736.25484,"d":"$37,784,736.25"},{"v":1774653.08,"d":"$1,774,653.08"},{"v":1774653.08,"d":"$1,774,653.08"},{"v":1849023.39,"d":"$1,849,023.39"},{"v":1849023.39,"d":"$1,849,023.39"},{"v":182855.45,"d":"$182,855.45"},{"v":182855.45,"d":"$182,855.45"},{"v":191043,"d":"$191,043.00"},{"v":191043,"d":"$191,043.00"},{"v":229251.6,"d":"$229,251.60"},{"v":2742831.75,"d":"$2,742,831.75"},{"v":1111047.92,"d":"$1,111,047.92"},{"v":425837.94,"d":"$425,837.94"},{"v":12504119.049999999,"d":"$12,504,119.05"},{"v":84415369.98,"d":"$84,415,369.98"},{"v":8218486.209999999,"d":"$8,218,486.21"},{"v":152504.33,"d":"$152,504.33"},{"v":2429276.62,"d":"$2,429,276.62"},{"v":84415369.86484,"d":"$84,415,369.86"}]
["41057010026","COLLINSVILLE C U SCH DIST 10",5980.38,{"v":88977576.15,"d":"$88,977,576.15"},{"v":64039033.849999994,"d":"$64,039,033.85"},{"v":0.7197210423224143,"d":"72%"},1,{"v":2281087.04,"d":"$2,281,087.04"},{"v":30662809.480000004,"d":"$30,662,809.48"},{"v":32943896.520000003,"d":"$32,943,896.52"},{"v":0.93051,"d":"0.93"},{"v":19663682.35,"d":"$19,663,682.35"},{"v":4786904.9,"d":"$4,786,904.90"},{"v":2031791.77,"d":"$2,031,791.77"},{"v":823260.24,"d":"$823,260.24"},{"v":724448.35,"d":"$724,448.35"},{"v":1417975.45,"d":"$1,417,975.45"},{"v":452456.62,"d":"$452,456.62"},{"v":763361.78,"d":"$763,361.78"},{"v":914784.71,"d":"$914,784.71"},{"v":550272.73,"d":"$550,272.73"},{"v":1357111.68,"d":"$1,357,111.68"},{"v":1168476.25,"d":"$1,168,476.25"},{"v":915998.15,"d":"$915,998.15"},{"v":35570524.98,"d":"$35,570,524.98"},{"v":535032,"d":"$535,032.00"},{"v":747547.5,"d":"$747,547.50"},{"v":1943623.5,"d":"$1,943,623.50"},{"v":203332.92,"d":"$203,332.92"},{"v":3414796.98,"d":"$3,414,796.98"},{"v":2322108.42,"d":"$2,322,108.42"},{"v":8139297.18,"d":"$8,139,297.18"},{"v":5603616.0600000005,"d":"$5,603,616.06"},{"v":17318764.744319998,"d":"$17,318,764.74"},{"v":40228119.30432,"d":"$40,228,119.30"},{"v":5692604.11,"d":"$5,692,604.11"},{"v":34535515.19432,"d":"$34,535,515.19"},{"v":39832540.24432,"d":"$39,832,540.24"},{"v":1611584.23,"d":"$1,611,584.23"},{"v":1611584.23,"d":"$1,611,584.23"},{"v":1679131.58,"d":"$1,679,131.58"},{"v":1679131.58,"d":"$1,679,131.58"},{"v":464643.88,"d":"$464,643.88"},{"v":464643.88,"d":"$464,643.88"},{"v":483748.18,"d":"$483,748.18"},{"v":483748.18,"d":"$483,748.18"},{"v":580634.28,"d":"$580,634.28"},{"v":2893619.27,"d":"$2,893,619.27"},{"v":1172127.92,"d":"$1,172,127.92"},{"v":449913.58,"d":"$449,913.58"},{"v":13574510.79,"d":"$13,574,510.79"},{"v":88977576.15,"d":"$88,977,576.15"},{"v":6112274.33,"d":"$6,112,274.33"},{"v":547377.24,"d":"$547,377.24"},{"v":3095244.74,"d":"$3,095,244.74"},{"v":88977576.01431999,"d":"$88,977,576.01"}]
["41057011026","ALTON COMM UNIT SCHOOL DIST 11",5675.52,{"v":82685580.19,"d":"$82,685,580.19"},{"v":70490725.64,"d":"$70,490,725.64"},{"v":0.8525153415870348,"d":"85%"},2,{"v":234606.87,"d":"$234,606.87"},{"v":25685100.380000003,"d":"$25,685,100.38"},{"v":25919707.250000004,"d":"$25,919,707.25"},{"v":0.93051,"d":"0.93"},{"v":18836363.55,"d":"$18,836,363.55"},{"v":4644620.89,"d":"$4,644,620.89"},{"v":1935468.55,"d":"$1,935,468.55"},{"v":778326.38,"d":"$778,326.38"},{"v":665582.69,"d":"$665,582.69"},{"v":1359804.51,"d":"$1,359,804.51"},{"v":429122.38,"d":"$429,122.38"},{"v":726603.23,"d":"$726,603.23"},{"v":862340.05,"d":"$862,340.05"},{"v":522358.35,"d":"$522,358.35"},{"v":1279308.39,"d":"$1,279,308.39"},{"v":1101487.44,"d":"$1,101,487.44"},{"v":871889.62,"d":"$871,889.62"},{"v":34013276.03000001,"d":"$34,013,276.03"},{"v":506844.9,"d":"$506,844.90"},{"v":709440,"d":"$709,440.00"},{"v":1844544,"d":"$1,844,544.00"},{"v":192967.68,"d":"$192,967.68"},{"v":3240721.92,"d":"$3,240,721.92"},{"v":2291244.87,"d":"$2,291,244.87"},{"v":7724382.720000001,"d":"$7,724,382.72"},{"v":5317962.239999999,"d":"$5,317,962.24"},{"v":15991979.70228,"d":"$15,991,979.70"},{"v":37820088.03228,"d":"$37,820,088.03"},{"v":5402413.97,"d":"$5,402,413.97"},{"v":32417674.06228,"d":"$32,417,674.06"},{"v":37444674.28228,"d":"$37,444,674.28"},{"v":1662756.46,"d":"$1,662,756.46"},{"v":1662756.46,"d":"$1,662,756.46"},{"v":1731668.4,"d":"$1,731,668.40"},{"v":1731668.4,"d":"$1,731,668.40"},{"v":28656.45,"d":"$28,656.45"},{"v":28656.45,"d":"$28,656.45"},{"v":30021.04,"d":"$30,021.04"},{"v":30021.04,"d":"$30,021.04"},{"v":36161.71,"d":"$36,161.71"},{"v":2746243.24,"d":"$2,746,243.24"},{"v":1112429.82,"d":"$1,112,429.82"},{"v":426590.3,"d":"$426,590.30"},{"v":11227629.770000003,"d":"$11,227,629.77"},{"v":82685580.19,"d":"$82,685,580.19"},{"v":7344474.79,"d":"$7,344,474.79"},{"v":11140.13,"d":"$11,140.13"},{"v":3280868.4799999995,"d":"$3,280,868.48"},{"v":82685580.08228001,"d":"$82,685,580.08"}]
["41057012026","MADISON COMM UNIT SCH DIST 12",618.75,{"v":9886744.9,"d":"$9,886,744.90"},{"v":9402818.620000001,"d":"$9,402,818.62"},{"v":0.9510530225170472,"d":"95%"},3,{"v":11235.4,"d":"$11,235.40"},{"v":5433026.279999998,"d":"$5,433,026.28"},{"v":5444261.679999999,"d":"$5,444,261.68"},{"v":0.93051,"d":"0.93"},{"v":2258230.34,"d":"$2,258,230.34"},{"v":530636.25,"d":"$530,636.25"},{"v":207745.62,"d":"$207,745.62"},{"v":85037.77,"d":"$85,037.77"},{"v":83959.8,"d":"$83,959.80"},{"v":137825.67,"d":"$137,825.67"},{"v":46099.35,"d":"$46,099.35"},{"v":78215.56,"d":"$78,215.56"},{"v":95149.59,"d":"$95,149.59"},{"v":56381.53,"d":"$56,381.53"},{"v":141157.39,"d":"$141,157.39"},{"v":121536.84,"d":"$121,536.84"},{"v":93854.98,"d":"$93,854.98"},{"v":3935830.6899999995,"d":"$3,935,830.69"},{"v":55485,"d":"$55,485.00"},{"v":77343.75,"d":"$77,343.75"},{"v":201093.75,"d":"$201,093.75"},{"v":21037.5,"d":"$21,037.50"},{"v":353306.25,"d":"$353,306.25"},{"v":213005.5,"d":"$213,005.50"},{"v":842118.75,"d":"$842,118.75"},{"v":579768.75,"d":"$579,768.75"},{"v":1962259.9410000003,"d":"$1,962,259.94"},{"v":4305419.191000001,"d":"$4,305,419.19"},{"v":588975.75,"d":"$588,975.75"},{"v":3716443.4410000006,"d":"$3,716,443.44"},{"v":4264491.261000001,"d":"$4,264,491.26"},{"v":289975.99,"d":"$289,975.99"},{"v":289975.99,"d":"$289,975.99"},{"v":301575.03,"d":"$301,575.03"},{"v":301575.03,"d":"$301,575.03"},{"v":6822.96,"d":"$6,822.96"},{"v":6822.96,"d":"$6,822.96"},{"v":7505.26,"d":"$7,505.26"},{"v":7505.26,"d":"$7,505.26"},{"v":8869.85,"d":"$8,869.85"},{"v":298845.84,"d":"$298,845.84"},{"v":121054.47,"d":"$121,054.47"},{"v":45894.19,"d":"$45,894.19"},{"v":1686422.83,"d":"$1,686,422.83"},{"v":9886744.9,"d":"$9,886,744.90"},{"v":2186153.6200000006,"d":"$2,186,153.62"},{"v":56.17,"d":"$56.17"},{"v":321598.13,"d":"$321,598.13"},{"v":9886744.781,"d":"$9,886,744.78"}]
["41057013002","EAST ALTON SCHOOL DISTRICT 13",643.31,{"v":9248816.57,"d":"$9,248,816.57"},{"v":8479305.13,"d":"$8,479,305.13"},{"v":0.9167989294440079,"d":"92%"},3,{"v":10510.45,"d":"$10,510.45"},{"v":4405862.02,"d":"$4,405,862.02"},{"v":4416372.47,"d":"$4,416,372.47"},{"v":0.93051,"d":"0.93"},{"v":2169180.89,"d":"$2,169,180.89"},{"v":433836.17,"d":"$433,836.17"},{"v":208288.08,"d":"$208,288.08"},{"v":92139.9,"d":"$92,139.90"},{"v":78247.39,"d":"$78,247.39"},{"v":125177.47,"d":"$125,177.47"},{"v":47806.73,"d":"$47,806.73"},{"v":78491.94,"d":"$78,491.94"},{"v":106387.73,"d":"$106,387.73"},{"v":58868.95,"d":"$58,868.95"},{"v":157829.53,"d":"$157,829.53"},{"v":135891.58,"d":"$135,891.58"},{"v":94186.63,"d":"$94,186.63"},{"v":3786332.99,"d":"$3,786,332.99"},{"v":57042.899999999994,"d":"$57,042.90"},{"v":80413.75,"d":"$80,413.75"},{"v":209075.74999999997,"d":"$209,075.75"},{"v":21872.539999999997,"d":"$21,872.54"},{"v":367330.01,"d":"$367,330.01"},{"v":105162.09,"d":"$105,162.09"},{"v":875544.9099999999,"d":"$875,544.91"},{"v":602781.47,"d":"$602,781.47"},{"v":1819660.0628399998,"d":"$1,819,660.06"},{"v":4138883.4828399997,"d":"$4,138,883.48"},{"v":612353.92,"d":"$612,353.92"},{"v":3526529.5628399993,"d":"$3,526,529.56"},{"v":4096331.0028399993,"d":"$4,096,331.00"},{"v":215605.68,"d":"$215,605.68"},{"v":215605.68,"d":"$215,605.68"},{"v":224475.53,"d":"$224,475.53"},{"v":224475.53,"d":"$224,475.53"},{"v":0,"d":"$0.00"},{"v":0,"d":"$0.00"},{"v":0,"d":"$0.00"},{"v":0,"d":"$0.00"},{"v":682.29,"d":"$682.29"},{"v":311127.18,"d":"$311,127.18"},{"v":126029.31,"d":"$126,029.31"},{"v":48151.28,"d":"$48,151.28"},{"v":1366152.4800000002,"d":"$1,366,152.48"},{"v":9248816.57,"d":"$9,248,816.57"},{"v":1060372.66,"d":"$1,060,372.66"},{"v":0,"d":"$0.00"},{"v":366390.9,"d":"$366,390.90"},{"v":9248816.47284,"d":"$9,248,816.47"}]
["41057014016","EAST ALTON-WOOD RIVER C H S D 14",549.15,{"v":8519418.62,"d":"$8,519,418.62"},{"v":8532123.66,"d":"$8,532,123.66"},{"v":1.0014913036401538,"d":"100%"},4,{"v":542.67,"d":"$542.67"},{"v":2545956.7700000005,"d":"$2,545,956.77"},{"v":2546499.4400000004,"d":"$2,546,499.44"},{"v":0.93051,"d":"0.93"},{"v":1859818.33,"d":"$1,859,818.33"},{"v":619877.44,"d":"$619,877.44"},{"v":204490.45,"d":"$204,490.45"},{"v":67914.71,"d":"$67,914.71"},{"v":63860.3,"d":"$63,860.30"},{"v":174559.39,"d":"$174,559.39"},{"v":41546.33,"d":"$41,546.33"},{"v":75728.14,"d":"$75,728.14"},{"v":68178.05,"d":"$68,178.05"},{"v":50577.55,"d":"$50,577.55"},{"v":101144.27,"d":"$101,144.27"},{"v":87085.45,"d":"$87,085.45"},{"v":90870.2,"d":"$90,870.20"},{"v":3505650.6100000003,"d":"$3,505,650.61"},{"v":49423.5,"d":"$49,423.50"},{"v":68643.75,"d":"$68,643.75"},{"v":178473.75,"d":"$178,473.75"},{"v":18671.1,"d":"$18,671.10"},{"v":313564.65,"d":"$313,564.65"},{"v":471719.85,"d":"$471,719.85"},{"v":747393.15,"d":"$747,393.15"},{"v":514553.55,"d":"$514,553.55"},{"v":1612950.7086000002,"d":"$1,612,950.71"},{"v":3975394.0086000003,"d":"$3,975,394.01"},{"v":522724.9,"d":"$522,724.90"},{"v":3452669.1086000004,"d":"$3,452,669.11"},{"v":3939069.8486,"d":"$3,939,069.85"},{"v":161021.96,"d":"$161,021.96"},{"v":161021.96,"d":"$161,021.96"},{"v":167844.92,"d":"$167,844.92"},{"v":167844.92,"d":"$167,844.92"},{"v":682.29,"d":"$682.29"},{"v":682.29,"d":"$682.29"},{"v":682.29,"d":"$682.29"},{"v":682.29,"d":"$682.29"},{"v":682.29,"d":"$682.29"},{"v":265413.32,"d":"$265,413.32"},{"v":107511.85,"d":"$107,511.85"},{"v":40627.64,"d":"$40,627.64"},{"v":1074698.0200000003,"d":"$1,074,698.02"},{"v":8519418.62,"d":"$8,519,418.62"},{"v":721091.51,"d":"$721,091.51"},{"v":309.23,"d":"$309.23"},{"v":265239.7700000001,"d":"$265,239.77"},{"v":8519418.478600001,"d":"$8,519,418.48"}]
["41057015003","WOOD RIVER-HARTFORD ELEM S D 15",570.87,{"v":7827160.08,"d":"$7,827,160.08"},{"v":9026402.42,"d":"$9,026,402.42"},{"v":1.1532155121069148,"d":"115%"},4,{"v":498.57,"d":"$498.57"},{"v":2026759.94,"d":"$2,026,759.94"},{"v":2027258.51,"d":"$2,027,258.51"},{"v":0.93051,"d":"0.93"},{"v":1835011.53,"d":"$1,835,011.53"},{"v":367002.3,"d":"$367,002.30"},{"v":184928.67,"d":"$184,928.67"},{"v":81757.93,"d":"$81,757.93"},{"v":64799.17,"d":"$64,799.17"},{"v":113289.1,"d":"$113,289.10"},{"v":42684.58,"d":"$42,684.58"},{"v":69647.78,"d":"$69,647.78"},{"v":94400.38,"d":"$94,400.38"},{"v":52512.21,"d":"$52,512.21"},{"v":140045.92,"d":"$140,045.92"},{"v":120579.85,"d":"$120,579.85"},{"v":83574.05,"d":"$83,574.05"},{"v":3250233.4699999997,"d":"$3,250,233.47"},{"v":50441.399999999994,"d":"$50,441.40"},{"v":71358.75,"d":"$71,358.75"},{"v":185532.75,"d":"$185,532.75"},{"v":19409.58,"d":"$19,409.58"},{"v":325966.77,"d":"$325,966.77"},{"v":95414.26,"d":"$95,414.26"},{"v":776954.0700000001,"d":"$776,954.07"},{"v":534905.19,"d":"$534,905.19"},{"v":1522729.08168,"d":"$1,522,729.08"},{"v":3582711.8516800003,"d":"$3,582,711.85"},{"v":543399.73,"d":"$543,399.73"},{"v":3039312.12168,"d":"$3,039,312.12"},{"v":3544951.0016799998,"d":"$3,544,951.00"},{"v":147376.03,"d":"$147,376.03"},{"v":147376.03,"d":"$147,376.03"},{"v":153516.7,"d":"$153,516.70"},{"v":153516.7,"d":"$153,516.70"},{"v":0,"d":"$0.00"},{"v":0,"d":"$0.00"},{"v":0,"d":"$0.00"},{"v":0,"d":"$0.00"},{"v":0,"d":"$0.00"},{"v":275647.76,"d":"$275,647.76"},{"v":111657.55,"d":"$111,657.55"},{"v":42884.74,"d":"$42,884.74"},{"v":1031975.51,"d":"$1,031,975.51"},{"v":7827160.08,"d":"$7,827,160.08"},{"v":693198.0800000002,"d":"$693,198.08"},{"v":204.21,"d":"$204.21"},{"v":274270.75,"d":"$274,270.75"},{"v":7827159.981679999,"d":"$7,827,159.98"}]
[null,"SAFE SCH-MC HENRY ROE",17.64,{"v":254339.83,"d":"$254,339.83"},{"v":234300.1,"d":"$234,300.10"},{"v":0.9212088409432373,"d":"92%"},3,{"v":289.03,"d":"$289.03"},{"v":208866.11999999997,"d":"$208,866.12"},{"v":209155.14999999997,"d":"$209,155.15"},{"v":1.05749,"d":"1.06"},{"v":59884.58,"d":"$59,884.58"},{"v":17403.77,"d":"$17,403.77"},{"v":6453.05,"d":"$6,453.05"},{"v":1585.57,"d":"$1,585.57"},{"v":2028.93,"d":"$2,028.93"},{"v":5212.87,"d":"$5,212.87"},{"v":646.79,"d":"$646.79"},{"v":2198.66,"d":"$2,198.66"},{"v":1702.89,"d":"$1,702.89"},{"v":1570.47,"d":"$1,570.47"},{"v":2526.3,"d":"$2,526.30"},{"v":2175.15,"d":"$2,175.15"},{"v":2638.3,"d":"$2,638.30"},{"v":106027.33,"d":"$106,027.33"},{"v":1587.6000000000001,"d":"$1,587.60"},{"v":2205,"d":"$2,205.00"},{"v":5733,"d":"$5,733.00"},{"v":599.76,"d":"$599.76"},{"v":10072.44,"d":"$10,072.44"},{"v":11297.560000000001,"d":"$11,297.56"},{"v":24008.04,"d":"$24,008.04"},{"v":16528.68,"d":"$16,528.68"},{"v":43551.69996,"d":"$43,551.70"},{"v":115583.77996000001,"d":"$115,583.78"},{"v":16791.16,"d":"$16,791.16"},{"v":98792.61996,"d":"$98,792.62"},{"v":116549.09995999999,"d":"$116,549.10"},{"v":2326.21,"d":"$2,326.21"},{"v":2326.21,"d":"$2,326.21"},{"v":2326.21,"d":"$2,326.21"},{"v":2326.21,"d":"$2,326.21"},{"v":1550.8,"d":"$1,550.80"},{"v":1550.8,"d":"$1,550.80"},{"v":1550.8,"d":"$1,550.80"},{"v":1550.8,"d":"$1,550.80"},{"v":2326.21,"d":"$2,326.21"},{"v":9304.85,"d":"$9,304.85"},{"v":3769.14,"d":"$3,769.14"},{"v":855.03,"d":"$855.03"},{"v":31763.269999999997,"d":"$31,763.27"},{"v":254339.83,"d":"$254,339.83"},{"v":5433.38,"d":"$5,433.38"},{"v":1071.24,"d":"$1,071.24"},{"v":4805.36,"d":"$4,805.36"},{"v":254339.69995999997,"d":"$254,339.70"}]
["44063002003","NIPPERSINK SCHOOL DISTRICT 2",1093.54,{"v":14493232.29,"d":"$14,493,232.29"},{"v":13803673.900000002,"d":"$13,803,673.90"},{"v":0.9524220424952564,"d":"95%"},3,{"v":16470.26,"d":"$16,470.26"},{"v":1202223.8199999996,"d":"$1,202,223.82"},{"v":1218694.0799999996,"d":"$1,218,694.08"},{"v":1.05749,"d":"1.06"},{"v":3694471.7,"d":"$3,694,471.70"},{"v":738894.34,"d":"$738,894.34"},{"v":402631.04,"d":"$402,631.04"},{"v":178455.51,"d":"$178,455.51"},{"v":123612.87,"d":"$123,612.87"},{"v":246371.27,"d":"$246,371.27"},{"v":93784.92,"d":"$93,784.92"},{"v":152336.4,"d":"$152,336.40"},{"v":206050.57,"d":"$206,050.57"},{"v":114016.73,"d":"$114,016.73"},{"v":305682.45,"d":"$305,682.45"},{"v":263193.29,"d":"$263,193.29"},{"v":182796.5,"d":"$182,796.50"},{"v":6702297.590000001,"d":"$6,702,297.59"},{"v":96858.9,"d":"$96,858.90"},{"v":136692.5,"d":"$136,692.50"},{"v":355400.5,"d":"$355,400.50"},{"v":37180.36,"d":"$37,180.36"},{"v":312205.67,"d":"$312,205.67"},{"v":181995.93,"d":"$181,995.93"},{"v":1488307.94,"d":"$1,488,307.94"},{"v":1024646.98,"d":"$1,024,646.98"},{"v":2602726.24356,"d":"$2,602,726.24"},{"v":6236015.02356,"d":"$6,236,015.02"},{"v":1040918.85,"d":"$1,040,918.85"},{"v":5195096.17356,"d":"$5,195,096.17"},{"v":6295857.4435600005,"d":"$6,295,857.44"},{"v":120963.1,"d":"$120,963.10"},{"v":120963.1,"d":"$120,963.10"},{"v":126390.94,"d":"$126,390.94"},{"v":126390.94,"d":"$126,390.94"},{"v":11631.06,"d":"$11,631.06"},{"v":11631.06,"d":"$11,631.06"},{"v":12406.47,"d":"$12,406.47"},{"v":12406.47,"d":"$12,406.47"},{"v":14732.68,"d":"$14,732.68"},{"v":600938.52,"d":"$600,938.52"},{"v":243424.15,"d":"$243,424.15"},{"v":93198.65,"d":"$93,198.65"},{"v":1495077.14,"d":"$1,495,077.14"},{"v":14493232.29,"d":"$14,493,232.29"},{"v":125600.86,"d":"$125,600.86"},{"v":539.37,"d":"$539.37"},{"v":475083.34,"d":"$475,083.34"},{"v":14493232.173560001,"d":"$14,493,232.17"}]
["44063003003","FOX RIVER GROVE CONS S D 3",406.47,{"v":5472733.64,"d":"$5,472,733.64"},{"v":5895590.51,"d":"$5,895,590.51"},{"v":1.0772661155860674,"d":"108%"},4,{"v":348.6,"d":"$348.60"},{"v":1262430.3599999999,"d":"$1,262,430.36"},{"v":1262778.96,"d":"$1,262,778.96"},{"v":1.05749,"d":"1.06"},{"v":1381186.72,"d":"$1,381,186.72"},{"v":276237.33,"d":"$276,237.33"},{"v":148958.73,"d":"$148,958.73"},{"v":65630.33,"d":"$65,630.33"},{"v":47052.49,"d":"$47,052.49"},{"v":89806.3,"d":"$89,806.30"},{"v":34280,"d":"$34,280.00"},{"v":56537.22,"d":"$56,537.22"},{"v":75778.92,"d":"$75,778.92"},{"v":42088.82,"d":"$42,088.82"},{"v":112420.4,"d":"$112,420.40"},{"v":96794.22,"d":"$96,794.22"},{"v":67842,"d":"$67,842.00"},{"v":2494613.48,"d":"$2,494,613.48"},{"v":35982.899999999994,"d":"$35,982.90"},{"v":50808.74999999999,"d":"$50,808.75"},{"v":132102.75,"d":"$132,102.75"},{"v":13819.979999999996,"d":"$13,819.98"},{"v":116047.18,"d":"$116,047.18"},{"v":66550.09,"d":"$66,550.09"},{"v":553205.6699999999,"d":"$553,205.67"},{"v":380862.38999999996,"d":"$380,862.39"},{"v":986352.48108,"d":"$986,352.48"},{"v":2335732.1910800003,"d":"$2,335,732.19"},{"v":386910.66,"d":"$386,910.66"},{"v":1948821.5310799999,"d":"$1,948,821.53"},{"v":2357975.68108,"d":"$2,357,975.68"},{"v":46524.27,"d":"$46,524.27"},{"v":46524.27,"d":"$46,524.27"},{"v":48850.48,"d":"$48,850.48"},{"v":48850.48,"d":"$48,850.48"},{"v":15508.09,"d":"$15,508.09"},{"v":15508.09,"d":"$15,508.09"},{"v":15508.09,"d":"$15,508.09"},{"v":15508.09,"d":"$15,508.09"},{"v":19385.11,"d":"$19,385.11"},{"v":223316.5,"d":"$223,316.50"},{"v":90459.55,"d":"$90,459.55"},{"v":34201.34,"d":"$34,201.34"},{"v":620144.36,"d":"$620,144.36"},{"v":5472733.64,"d":"$5,472,733.64"},{"v":47896.44999999999,"d":"$47,896.45"},{"v":6978.110000000001,"d":"$6,978.11"},{"v":179726.33,"d":"$179,726.33"},{"v":5472733.52108,"d":"$5,472,733.52"}]
["44063012026","JOHNSBURG C U SCHOOL DIST 12",1653.36,{"v":23299278.56,"d":"$23,299,278.56"},{"v":20292597.06,"d":"$20,292,597.06"},{"v":0.8709538798698323,"d":"87%"},2,{"v":34306.66,"d":"$34,306.66"},{"v":3320314.12,"d":"$3,320,314.12"},{"v":3354620.7800000003,"d":"$3,354,620.78"},{"v":1.05749,"d":"1.06"},{"v":5749970.77,"d":"$5,749,970.77"},{"v":1425859.84,"d":"$1,425,859.84"},{"v":640375.05,"d":"$640,375.05"},{"v":256929.18,"d":"$256,929.18"},{"v":192575.84,"d":"$192,575.84"},{"v":450853.2,"d":"$450,853.20"},{"v":141647.58,"d":"$141,647.58"},{"v":240283.19,"d":"$240,283.19"},{"v":284383.84,"d":"$284,383.84"},{"v":172752.62,"d":"$172,752.62"},{"v":421892.31,"d":"$421,892.31"},{"v":363250.24,"d":"$363,250.24"},{"v":288328.5,"d":"$288,328.50"},{"v":10629102.159999998,"d":"$10,629,102.16"},{"v":147820.5,"d":"$147,820.50"},{"v":206670,"d":"$206,670.00"},{"v":537342,"d":"$537,342.00"},{"v":56214.24,"d":"$56,214.24"},{"v":472034.27,"d":"$472,034.27"},{"v":676710.11,"d":"$676,710.11"},{"v":2250222.96,"d":"$2,250,222.96"},{"v":1549198.3199999998,"d":"$1,549,198.32"},{"v":4151255.03004,"d":"$4,151,255.03"},{"v":10047467.43004,"d":"$10,047,467.43"},{"v":1573800.31,"d":"$1,573,800.31"},{"v":8473667.12004,"d":"$8,473,667.12"},{"v":10137945.20004,"d":"$10,137,945.20"},{"v":214011.65,"d":"$214,011.65"},{"v":214011.65,"d":"$214,011.65"},{"v":222541.1,"d":"$222,541.10"},{"v":222541.1,"d":"$222,541.10"},{"v":44973.46,"d":"$44,973.46"},{"v":44973.46,"d":"$44,973.46"},{"v":47299.67,"d":"$47,299.67"},{"v":47299.67,"d":"$47,299.67"},{"v":56604.53,"d":"$56,604.53"},{"v":908774.12,"d":"$908,774.12"},{"v":368120.13,"d":"$368,120.13"},{"v":141080.53,"d":"$141,080.53"},{"v":2532231.07,"d":"$2,532,231.07"},{"v":23299278.56,"d":"$23,299,278.56"},{"v":260534.09,"d":"$260,534.09"},{"v":14011.680000000002,"d":"$14,011.68"},{"v":762449.0499999998,"d":"$762,449.05"},{"v":23299278.43004,"d":"$23,299,278.43"}]
["44063015004","MCHENRY C C SCHOOL DIST 15",4071.47,{"v":61384973.64,"d":"$61,384,973.64"},{"v":48424071.36,"d":"$48,424,071.36"},{"v":0.7888587139254818,"d":"79%"},2,{"v":336012.81,"d":"$336,012.81"},{"v":10265053.679999998,"d":"$10,265,053.68"},{"v":10601066.489999998,"d":"$10,601,066.49"},{"v":1.05749,"d":"1.06"},{"v":14535275.79,"d":"$14,535,275.79"},{"v":2907055.15,"d":"$2,907,055.15"},{"v":1499911.26,"d":"$1,499,911.26"},{"v":666627.22,"d":"$666,627.22"},{"v":534634.22,"d":"$534,634.22"},{"v":924289.63,"d":"$924,289.63"},{"v":350561.59,"d":"$350,561.59"},{"v":567884.98,"d":"$567,884.98"},{"v":769709.57,"d":"$769,709.57"},{"v":425913.74,"d":"$425,913.74"},{"v":1141888.19,"d":"$1,141,888.19"},{"v":983168.33,"d":"$983,168.33"},{"v":681435.21,"d":"$681,435.21"},{"v":25988354.879999995,"d":"$25,988,354.88"},{"v":362067.30000000005,"d":"$362,067.30"},{"v":508933.75,"d":"$508,933.75"},{"v":1323227.75,"d":"$1,323,227.75"},{"v":138429.98,"d":"$138,429.98"},{"v":2324809.37,"d":"$2,324,809.37"},{"v":683352.01,"d":"$683,352.01"},{"v":5541270.67,"d":"$5,541,270.67"},{"v":3814967.3900000006,"d":"$3,814,967.39"},{"v":11056176.928080002,"d":"$11,056,176.93"},{"v":25753235.148080003,"d":"$25,753,235.15"},{"v":3875550.86,"d":"$3,875,550.86"},{"v":21877684.288080007,"d":"$21,877,684.29"},{"v":25976040.558080006,"d":"$25,976,040.56"},{"v":935137.87,"d":"$935,137.87"},{"v":935137.87,"d":"$935,137.87"},{"v":973908.1,"d":"$973,908.10"},{"v":973908.1,"d":"$973,908.10"},{"v":395456.31,"d":"$395,456.31"},{"v":395456.31,"d":"$395,456.31"},{"v":411739.81,"d":"$411,739.81"},{"v":411739.81,"d":"$411,739.81"},{"v":494708.09,"d":"$494,708.09"},{"v":2238592.91,"d":"$2,238,592.91"},{"v":906794.22,"d":"$906,794.22"},{"v":347998.65,"d":"$347,998.65"},{"v":9420578.049999999,"d":"$9,420,578.05"},{"v":61384973.64,"d":"$61,384,973.64"},{"v":1787974.96,"d":"$1,787,974.96"},{"v":299839.45,"d":"$299,839.45"},{"v":2033293.46,"d":"$2,033,293.46"},{"v":61384973.488079995,"d":"$61,384,973.49"}]
["44063018004","RILEY C C SCHOOL DIST 18",277.3,{"v":3797908.99,"d":"$3,797,908.99"},{"v":3710734.91,"d":"$3,710,734.91"},{"v":0.9770468222831217,"d":"98%"},3,{"v":4315.98,"d":"$4,315.98"},{"v":240529.51,"d":"$240,529.51"},{"v":244845.49000000002,"d":"$244,845.49"},{"v":1.05749,"d":"1.06"},{"v":942422.12,"d":"$942,422.12"},{"v":188484.41,"d":"$188,484.41"},{"v":101763.89,"d":"$101,763.89"},{"v":44245.17,"d":"$44,245.17"},{"v":32817.64,"d":"$32,817.64"},{"v":62784.93,"d":"$62,784.93"},{"v":23284.53,"d":"$23,284.53"},{"v":38319.67,"d":"$38,319.67"},{"v":51086.91,"d":"$51,086.91"},{"v":28582.7,"d":"$28,582.70"},{"v":75789.03,"d":"$75,789.03"},{"v":65254.53,"d":"$65,254.53"},{"v":45981.8,"d":"$45,981.80"},{"v":1700817.3299999996,"d":"$1,700,817.33"},{"v":24822,"d":"$24,822.00"},{"v":34662.5,"d":"$34,662.50"},{"v":90122.5,"d":"$90,122.50"},{"v":9428.199999999999,"d":"$9,428.20"},{"v":79169.14,"d":"$79,169.14"},{"v":47741.759999999995,"d":"$47,741.76"},{"v":377405.29999999993,"d":"$377,405.30"},{"v":259830.09999999998,"d":"$259,830.10"},{"v":686384.3202,"d":"$686,384.32"},{"v":1609565.8202,"d":"$1,609,565.82"},{"v":263956.32,"d":"$263,956.32"},{"v":1345609.5001999997,"d":"$1,345,609.50"},{"v":1624740.6601999996,"d":"$1,624,740.66"},{"v":36444.01,"d":"$36,444.01"},{"v":36444.01,"d":"$36,444.01"},{"v":37994.82,"d":"$37,994.82"},{"v":37994.82,"d":"$37,994.82"},{"v":16283.49,"d":"$16,283.49"},{"v":16283.49,"d":"$16,283.49"},{"v":17058.89,"d":"$17,058.89"},{"v":17058.89,"d":"$17,058.89"},{"v":20160.51,"d":"$20,160.51"},{"v":151979.29,"d":"$151,979.29"},{"v":61562.75,"d":"$61,562.75"},{"v":23085.9,"d":"$23,085.90"},{"v":472350.87,"d":"$472,350.87"},{"v":3797908.99,"d":"$3,797,908.99"},{"v":39957.89000000001,"d":"$39,957.89"},{"v":312.01,"d":"$312.01"},{"v":78049.07999999999,"d":"$78,049.08"},{"v":3797908.860199999,"d":"$3,797,908.86"}]
["44063019024","ALDEN HEBRON SCHOOL DIST 19",392.75,{"v":6206872.15,"d":"$6,206,872.15"},{"v":4850343.140000001,"d":"$4,850,343.14"},{"v":0.7814472447285707,"d":"78%"},2,{"v":29378.35,"d":"$29,378.35"},{"v":604245.5300000001,"d":"$604,245.53"},{"v":633623.8800000001,"d":"$633,623.88"},{"v":1.05749,"d":"1.06"},{"v":1447988.17,"d":"$1,447,988.17"},{"v":347258.07,"d":"$347,258.07"},{"v":150846.42,"d":"$150,846.42"},{"v":61097.62,"d":"$61,097.62"},{"v":52885.32,"d":"$52,885.32"},{"v":101163.76,"d":"$101,163.76"},{"v":32986.42,"d":"$32,986.42"},{"v":56537.22,"d":"$56,537.22"},{"v":68115.89,"d":"$68,115.89"},{"v":40832.43,"d":"$40,832.43"},{"v":101052.05,"d":"$101,052.05"},{"v":87006.04,"d":"$87,006.04"},{"v":67842,"d":"$67,842.00"},{"v":2615611.41,"d":"$2,615,611.41"},{"v":34920,"d":"$34,920.00"},{"v":49093.75,"d":"$49,093.75"},{"v":127643.75,"d":"$127,643.75"},{"v":13353.5,"d":"$13,353.50"},{"v":224260.25,"d":"$224,260.25"},{"v":142902,"d":"$142,902.00"},{"v":534532.75,"d":"$534,532.75"},{"v":368006.75,"d":"$368,006.75"},{"v":1112301,"d":"$1,112,301.00"},{"v":2607013.75,"d":"$2,607,013.75"},{"v":373850.87,"d":"$373,850.87"},{"v":2233162.88,"d":"$2,233,162.88"},{"v":2628506.4299999997,"d":"$2,628,506.43"},{"v":114759.87,"d":"$114,759.87"},{"v":114759.87,"d":"$114,759.87"},{"v":119412.29,"d":"$119,412.29"},{"v":119412.29,"d":"$119,412.29"},{"v":29465.37,"d":"$29,465.37"},{"v":29465.37,"d":"$29,465.37"},{"v":31016.18,"d":"$31,016.18"},{"v":31016.18,"d":"$31,016.18"},{"v":37219.41,"d":"$37,219.41"},{"v":215562.46,"d":"$215,562.46"},{"v":87318.59,"d":"$87,318.59"},{"v":33346.3,"d":"$33,346.30"},{"v":962754.18,"d":"$962,754.18"},{"v":6206872.15,"d":"$6,206,872.15"},{"v":205643.14,"d":"$205,643.14"},{"v":17678.39,"d":"$17,678.39"},{"v":158948.73000000004,"d":"$158,948.73"},{"v":6206872.02,"d":"$6,206,872.02"}]
["44063026004","CARY C C SCHOOL DIST 26",2280.89,{"v":32878865.01,"d":"$32,878,865.01"},{"v":23888740.61,"d":"$23,888,740.61"},{"v":0.7265682864275976,"d":"73%"},1,{"v":676205.15,"d":"$676,205.15"},{"v":3734372.0899999994,"d":"$3,734,372.09"},{"v":4410577.239999999,"d":"$4,410,577.24"},{"v":1.05749,"d":"1.06"},{"v":7883751.89,"d":"$7,883,751.89"},{"v":1576750.37,"d":"$1,576,750.37"},{"v":840658.23,"d":"$840,658.23"},{"v":373134.26,"d":"$373,134.26"},{"v":281580.96,"d":"$281,580.96"},{"v":511816.44,"d":"$511,816.44"},{"v":195978.16,"d":"$195,978.16"},{"v":317864.82,"d":"$317,864.82"},{"v":430833.01,"d":"$430,833.01"},{"v":238398.62,"d":"$238,398.62"},{"v":639154.23,"d":"$639,154.23"},{"v":550313.24,"d":"$550,313.24"},{"v":381422.81,"d":"$381,422.81"},{"v":14221657.040000001,"d":"$14,221,657.04"},{"v":202332.60000000003,"d":"$202,332.60"},{"v":285111.25,"d":"$285,111.25"},{"v":741289.25,"d":"$741,289.25"},{"v":77550.26000000001,"d":"$77,550.26"},{"v":1302388.19,"d":"$1,302,388.19"},{"v":377260.10000000003,"d":"$377,260.10"},{"v":3104291.29,"d":"$3,104,291.29"},{"v":2137193.93,"d":"$2,137,193.93"},{"v":5865457.740960001,"d":"$5,865,457.74"},{"v":14092874.61096,"d":"$14,092,874.61"},{"v":2171133.57,"d":"$2,171,133.57"},{"v":11921741.040959999,"d":"$11,921,741.04"},{"v":14217693.070959998,"d":"$14,217,693.07"},{"v":338851.78,"d":"$338,851.78"},{"v":338851.78,"d":"$338,851.78"},{"v":352809.06,"d":"$352,809.06"},{"v":352809.06,"d":"$352,809.06"},{"v":206257.6,"d":"$206,257.60"},{"v":206257.6,"d":"$206,257.60"},{"v":214787.05,"d":"$214,787.05"},{"v":214787.05,"d":"$214,787.05"},{"v":257434.3,"d":"$257,434.30"},{"v":1253829.14,"d":"$1,253,829.14"},{"v":507892.71,"d":"$507,892.71"},{"v":194947.64,"d":"$194,947.64"},{"v":4439514.77,"d":"$4,439,514.77"},{"v":32878865.01,"d":"$32,878,865.01"},{"v":362656.65,"d":"$362,656.65"},{"v":126777.23000000001,"d":"$126,777.23"},{"v":1239069.1300000004,"d":"$1,239,069.13"},{"v":32878864.88096,"d":"$32,878,864.88"}]
["44063036002","HARRISON SCHOOL DISTRICT 36",368.25,{"v":5827920.88,"d":"$5,827,920.88"},{"v":3899858.6399999997,"d":"$3,899,858.64"},{"v":0.6691680824603096,"d":"67%"},1,{"v":252684.93,"d":"$252,684.93"},{"v":1678136.1099999999,"d":"$1,678,136.11"},{"v":1930821.0399999998,"d":"$1,930,821.04"},{"v":1.05749,"d":"1.06"},{"v":1392248.01,"d":"$1,392,248.01"},{"v":278449.59,"d":"$278,449.59"},{"v":135685.18,"d":"$135,685.18"},{"v":59730.97,"d":"$59,730.97"},{"v":51835.48,"d":"$51,835.48"},{"v":83448.33,"d":"$83,448.33"},{"v":31046.04,"d":"$31,046.04"},{"v":51197.59,"d":"$51,197.59"},{"v":68967.34,"d":"$68,967.34"},{"v":38319.67,"d":"$38,319.67"},{"v":102315.2,"d":"$102,315.20"},{"v":88093.62,"d":"$88,093.62"},{"v":61434.7,"d":"$61,434.70"},{"v":2442771.7200000007,"d":"$2,442,771.72"},{"v":32895,"d":"$32,895.00"},{"v":46031.25,"d":"$46,031.25"},{"v":119681.25,"d":"$119,681.25"},{"v":12520.5,"d":"$12,520.50"},{"v":210270.75,"d":"$210,270.75"},{"v":62303.5,"d":"$62,303.50"},{"v":501188.25,"d":"$501,188.25"},{"v":345050.25,"d":"$345,050.25"},{"v":1060046.3639999998,"d":"$1,060,046.36"},{"v":2389987.114,"d":"$2,389,987.11"},{"v":350529.81,"d":"$350,529.81"},{"v":2039457.304,"d":"$2,039,457.30"},{"v":2410139.0640000002,"d":"$2,410,139.06"},{"v":123289.32,"d":"$123,289.32"},{"v":123289.32,"d":"$123,289.32"},{"v":128717.15,"d":"$128,717.15"},{"v":128717.15,"d":"$128,717.15"},{"v":29465.37,"d":"$29,465.37"},{"v":29465.37,"d":"$29,465.37"},{"v":30240.77,"d":"$30,240.77"},{"v":30240.77,"d":"$30,240.77"},{"v":36444.01,"d":"$36,444.01"},{"v":202380.58,"d":"$202,380.58"},{"v":81978.97,"d":"$81,978.97"},{"v":30781.2,"d":"$30,781.20"},{"v":975009.98,"d":"$975,009.98"},{"v":5827920.88,"d":"$5,827,920.88"},{"v":415294.08999999997,"d":"$415,294.09"},{"v":15086.6,"d":"$15,086.60"},{"v":171242.47000000003,"d":"$171,242.47"},{"v":5827920.764,"d":"$5,827,920.76"}]
["44063046003","PRAIRIE GROVE C SCH DIST 46",775.5,{"v":10269830.65,"d":"$10,269,830.65"},{"v":11377599.49,"d":"$11,377,599.49"},{"v":1.107866320074129,"d":"111%"},4,{"v":654.17,"d":"$654.17"},{"v":717002.9699999999,"d":"$717,002.97"},{"v":717657.1399999999,"d":"$717,657.14"},{"v":1.05749,"d":"1.06"},{"v":2611202.45,"d":"$2,611,202.45"},{"v":522240.48,"d":"$522,240.48"},{"v":285381.34,"d":"$285,381.34"},{"v":126098.73,"d":"$126,098.73"},{"v":87788.45,"d":"$87,788.45"},{"v":169280.9,"d":"$169,280.90"},{"v":66619.63,"d":"$66,619.63"},{"v":108048.91,"d":"$108,048.91"},{"v":145597.71,"d":"$145,597.71"},{"v":80722.58,"d":"$80,722.58"},{"v":215998.76,"d":"$215,998.76"},{"v":185975.42,"d":"$185,975.42"},{"v":129653.6,"d":"$129,653.60"},{"v":4734608.959999999,"d":"$4,734,608.96"},{"v":68670,"d":"$68,670.00"},{"v":96937.5,"d":"$96,937.50"},{"v":252037.5,"d":"$252,037.50"},{"v":26367,"d":"$26,367.00"},{"v":221405.25,"d":"$221,405.25"},{"v":124267,"d":"$124,267.00"},{"v":1055455.5,"d":"$1,055,455.50"},{"v":726643.5,"d":"$726,643.50"},{"v":1844973.1259999997,"d":"$1,844,973.13"},{"v":4416756.376,"d":"$4,416,756.38"},{"v":738182.94,"d":"$738,182.94"},{"v":3678573.436,"d":"$3,678,573.44"},{"v":4459194.506,"d":"$4,459,194.51"},{"v":63583.17,"d":"$63,583.17"},{"v":63583.17,"d":"$63,583.17"},{"v":66684.79,"d":"$66,684.79"},{"v":66684.79,"d":"$66,684.79"},{"v":27914.56,"d":"$27,914.56"},{"v":27914.56,"d":"$27,914.56"},{"v":29465.37,"d":"$29,465.37"},{"v":29465.37,"d":"$29,465.37"},{"v":35668.6,"d":"$35,668.60"},{"v":426472.49,"d":"$426,472.49"},{"v":172752.62,"d":"$172,752.62"},{"v":65837.58,"d":"$65,837.58"},{"v":1076027.0699999998,"d":"$1,076,027.07"},{"v":10269830.65,"d":"$10,269,830.65"},{"v":51733.44,"d":"$51,733.44"},{"v":4416.97,"d":"$4,416.97"},{"v":344254.35,"d":"$344,254.35"},{"v":10269830.535999998,"d":"$10,269,830.54"}]
["44063047004","CRYSTAL LAKE C C SCH DIST 47",7030.71,{"v":101682408.45,"d":"$101,682,408.45"},{"v":78468404.54,"d":"$78,468,404.54"},{"v":0.7717008845102744,"d":"77%"},1,{"v":618587.45,"d":"$618,587.45"},{"v":14030179.72,"d":"$14,030,179.72"},{"v":14648767.17,"d":"$14,648,767.17"},{"v":1.05749,"d":"1.06"},{"v":24352541.62,"d":"$24,352,541.62"},{"v":4870508.32,"d":"$4,870,508.32"},{"v":2591292.12,"d":"$2,591,292.12"},{"v":1151849.26,"d":"$1,151,849.26"},{"v":871385.48,"d":"$871,385.48"},{"v":1591081.56,"d":"$1,591,081.56"},{"v":606044.67,"d":"$606,044.67"},{"v":981234.9,"d":"$981,234.90"},{"v":1329962.78,"d":"$1,329,962.78"},{"v":735926.17,"d":"$735,926.17"},{"v":1973041.32,"d":"$1,973,041.32"},{"v":1698793.07,"d":"$1,698,793.07"},{"v":1177435.63,"d":"$1,177,435.63"},{"v":43931096.90000001,"d":"$43,931,096.90"},{"v":626591.7,"d":"$626,591.70"},{"v":878838.75,"d":"$878,838.75"},{"v":2284980.75,"d":"$2,284,980.75"},{"v":239044.13999999998,"d":"$239,044.14"},{"v":4014535.41,"d":"$4,014,535.41"},{"v":1177225.77,"d":"$1,177,225.77"},{"v":9568796.309999999,"d":"$9,568,796.31"},{"v":6587775.27,"d":"$6,587,775.27"},{"v":18149443.55544,"d":"$18,149,443.56"},{"v":43527231.65544,"d":"$43,527,231.66"},{"v":6692392.23,"d":"$6,692,392.23"},{"v":36834839.42544,"d":"$36,834,839.43"},{"v":43911977.27544,"d":"$43,911,977.28"},{"v":1090994.19,"d":"$1,090,994.19"},{"v":1090994.19,"d":"$1,090,994.19"},{"v":1136743.05,"d":"$1,136,743.05"},{"v":1136743.05,"d":"$1,136,743.05"},{"v":628077.67,"d":"$628,077.67"},{"v":628077.67,"d":"$628,077.67"},{"v":654441.43,"d":"$654,441.43"},{"v":654441.43,"d":"$654,441.43"},{"v":785484.8,"d":"$785,484.80"},{"v":3866167.04,"d":"$3,866,167.04"},{"v":1566081.05,"d":"$1,566,081.05"},{"v":601088.57,"d":"$601,088.57"},{"v":13839334.14,"d":"$13,839,334.14"},{"v":101682408.45,"d":"$101,682,408.45"},{"v":1226796.09,"d":"$1,226,796.09"},{"v":354878.56000000006,"d":"$354,878.56"},{"v":3512479.2199999993,"d":"$3,512,479.22"},{"v":101682408.31544001,"d":"$101,682,408.32"}]
["44063050026","HARVARD C U SCHOOL DIST 50",2441.46,{"v":43213460.62,"d":"$43,213,460.62"},{"v":30550758.68,"d":"$30,550,758.68"},{"v":0.7069732032953764,"d":"71%"},1,{"v":1411575.1,"d":"$1,411,575.10"},{"v":20730477.990000002,"d":"$20,730,477.99"},{"v":22142053.090000004,"d":"$22,142,053.09"},{"v":1.05749,"d":"1.06"},{"v":9334269.28,"d":"$9,334,269.28"},{"v":2271155.36,"d":"$2,271,155.36"},{"v":941881.62,"d":"$941,881.62"},{"v":381520.41,"d":"$381,520.41"},{"v":381243.78,"d":"$381,243.78"},{"v":655932.36,"d":"$655,932.36"},{"v":209560.8,"d":"$209,560.80"},{"v":353985.83,"d":"$353,985.83"},{"v":424021.42,"d":"$424,021.42"},{"v":255045.69,"d":"$255,045.69"},{"v":629049.02,"d":"$629,049.02"},{"v":541612.64,"d":"$541,612.64"},{"v":424766.31,"d":"$424,766.31"},{"v":16804044.519999996,"d":"$16,804,044.52"},{"v":218097,"d":"$218,097.00"},{"v":305182.5,"d":"$305,182.50"},{"v":793474.5,"d":"$793,474.50"},{"v":83009.64,"d":"$83,009.64"},{"v":1394073.6600000001,"d":"$1,394,073.66"},{"v":944780.7000000001,"d":"$944,780.70"},{"v":3322827.0599999996,"d":"$3,322,827.06"},{"v":2287648.02,"d":"$2,287,648.02"},{"v":7913229.71844,"d":"$7,913,229.72"},{"v":17262322.798440002,"d":"$17,262,322.80"},{"v":2323976.94,"d":"$2,323,976.94"},{"v":14938345.858439999,"d":"$14,938,345.86"},{"v":17395928.228439998,"d":"$17,395,928.23"},{"v":912651.14,"d":"$912,651.14"},{"v":912651.14,"d":"$912,651.14"},{"v":950645.96,"d":"$950,645.96"},{"v":950645.96,"d":"$950,645.96"},{"v":598612.3,"d":"$598,612.30"},{"v":598612.3,"d":"$598,612.30"},{"v":623425.25,"d":"$623,425.25"},{"v":623425.25,"d":"$623,425.25"},{"v":748265.38,"d":"$748,265.38"},{"v":1342225.26,"d":"$1,342,225.26"},{"v":543699.62,"d":"$543,699.62"},{"v":208628.18,"d":"$208,628.18"},{"v":9013487.739999998,"d":"$9,013,487.74"},{"v":43213460.62,"d":"$43,213,460.62"},{"v":4772523,"d":"$4,772,523.00"},{"v":1256635.4500000002,"d":"$1,256,635.45"},{"v":1635129.4400000002,"d":"$1,635,129.44"},{"v":43213460.48843999,"d":"$43,213,460.49"}]
["44063154016","MARENGO COMM HS DIST 154",665,{"v":10378051.52,"d":"$10,378,051.52"},{"v":8191024.5200000005,"d":"$8,191,024.52"},{"v":0.7892641989890604,"d":"79%"},2,{"v":64598.24,"d":"$64,598.24"},{"v":1319509.1400000001,"d":"$1,319,509.14"},{"v":1384107.3800000001,"d":"$1,384,107.38"},{"v":1.05749,"d":"1.06"},{"v":2413862.94,"d":"$2,413,862.94"},{"v":804540.51,"d":"$804,540.51"},{"v":281589.07,"d":"$281,589.07"},{"v":93297.58,"d":"$93,297.58"},{"v":78958.88,"d":"$78,958.88"},{"v":240955.01,"d":"$240,955.01"},{"v":56917.74,"d":"$56,917.74"},{"v":104279.76,"d":"$104,279.76"},{"v":93659.35,"d":"$93,659.35"},{"v":69415.14,"d":"$69,415.14"},{"v":138946.57,"d":"$138,946.57"},{"v":119633.31,"d":"$119,633.31"},{"v":125130.8,"d":"$125,130.80"},{"v":4621186.66,"d":"$4,621,186.66"},{"v":59850,"d":"$59,850.00"},{"v":83125,"d":"$83,125.00"},{"v":216125,"d":"$216,125.00"},{"v":22610,"d":"$22,610.00"},{"v":379715,"d":"$379,715.00"},{"v":571235,"d":"$571,235.00"},{"v":905065,"d":"$905,065.00"},{"v":623105,"d":"$623,105.00"},{"v":1783717.6349999995,"d":"$1,783,717.64"},{"v":4644547.635,"d":"$4,644,547.64"},{"v":633000.2,"d":"$633,000.20"},{"v":4011547.4349999996,"d":"$4,011,547.44"},{"v":4680938.8149999995,"d":"$4,680,938.82"},{"v":115535.27,"d":"$115,535.27"},{"v":115535.27,"d":"$115,535.27"},{"v":120187.7,"d":"$120,187.70"},{"v":120187.7,"d":"$120,187.70"},{"v":6203.23,"d":"$6,203.23"},{"v":6203.23,"d":"$6,203.23"},{"v":6978.64,"d":"$6,978.64"},{"v":6978.64,"d":"$6,978.64"},{"v":8529.44,"d":"$8,529.44"},{"v":365215.53,"d":"$365,215.53"},{"v":147939.06,"d":"$147,939.06"},{"v":56432.21,"d":"$56,432.21"},{"v":1075925.92,"d":"$1,075,925.92"},{"v":10378051.52,"d":"$10,378,051.52"},{"v":190902.11999999997,"d":"$190,902.12"},{"v":1859.71,"d":"$1,859.71"},{"v":223956.12,"d":"$223,956.12"},{"v":10378051.395,"d":"$10,378,051.40"}]
["44063155016","COMMUNITY HIGH SCHOOL DIST 155",5543.31,{"v":84854152.86,"d":"$84,854,152.86"},{"v":67919890.28,"d":"$67,919,890.28"},{"v":0.8004309511175055,"d":"80%"},2,{"v":473246.34,"d":"$473,246.34"},{"v":15947696.199999997,"d":"$15,947,696.20"},{"v":16420942.539999997,"d":"$16,420,942.54"},{"v":1.05749,"d":"1.06"},{"v":19713779.49,"d":"$19,713,779.49"},{"v":6570602.69,"d":"$6,570,602.69"},{"v":2350250.95,"d":"$2,350,250.95"},{"v":782851.54,"d":"$782,851.54"},{"v":638902.23,"d":"$638,902.23"},{"v":2008260.43,"d":"$2,008,260.43"},{"v":477979.73,"d":"$477,979.73"},{"v":870359.12,"d":"$870,359.12"},{"v":785887.1,"d":"$785,887.10"},{"v":580134.72,"d":"$580,134.72"},{"v":1165888.05,"d":"$1,165,888.05"},{"v":1003832.27,"d":"$1,003,832.27"},{"v":1044389.93,"d":"$1,044,389.93"},{"v":37993118.25,"d":"$37,993,118.25"},{"v":498897.89999999997,"d":"$498,897.90"},{"v":692913.7499999999,"d":"$692,913.75"},{"v":1801575.7499999998,"d":"$1,801,575.75"},{"v":188472.53999999998,"d":"$188,472.54"},{"v":3165230.01,"d":"$3,165,230.01"},{"v":4761703.289999999,"d":"$4,761,703.29"},{"v":7544444.909999999,"d":"$7,544,444.91"},{"v":5194081.47,"d":"$5,194,081.47"},{"v":14507178.012839999,"d":"$14,507,178.01"},{"v":38354497.63283999,"d":"$38,354,497.63"},{"v":5276565.92,"d":"$5,276,565.92"},{"v":33077931.71283999,"d":"$33,077,931.71"},{"v":38657847.40283999,"d":"$38,657,847.40"},{"v":663746.28,"d":"$663,746.28"},{"v":663746.28,"d":"$663,746.28"},{"v":690885.44,"d":"$690,885.44"},{"v":690885.44,"d":"$690,885.44"},{"v":138022,"d":"$138,022.00"},{"v":138022,"d":"$138,022.00"},{"v":144225.24,"d":"$144,225.24"},{"v":144225.24,"d":"$144,225.24"},{"v":172915.21,"d":"$172,915.21"},{"v":3048115.25,"d":"$3,048,115.25"},{"v":1234710.11,"d":"$1,234,710.11"},{"v":473688.58,"d":"$473,688.58"},{"v":8203187.07,"d":"$8,203,187.07"},{"v":84854152.86,"d":"$84,854,152.86"},{"v":540929.2,"d":"$540,929.20"},{"v":58462.96,"d":"$58,462.96"},{"v":1899525.0500000003,"d":"$1,899,525.05"},{"v":84854152.72283998,"d":"$84,854,152.72"}]
["44063156016","MCHENRY COMM H S DIST 156",2187,{"v":35251390.35,"d":"$35,251,390.35"},{"v":23974796.35,"d":"$23,974,796.35"},{"v":0.6801092414217359,"d":"68%"},1,{"v":1383570.45,"d":"$1,383,570.45"},{"v":7020436.889999999,"d":"$7,020,436.89"},{"v":8404007.339999998,"d":"$8,404,007.34"},{"v":1.05749,"d":"1.06"},{"v":8048188.85,"d":"$8,048,188.85"},{"v":2682461.34,"d":"$2,682,461.34"},{"v":927038.72,"d":"$927,038.72"},{"v":308730.18,"d":"$308,730.18"},{"v":272524.75,"d":"$272,524.75"},{"v":791709.34,"d":"$791,709.34"},{"v":188216.64,"d":"$188,216.64"},{"v":343306.57,"d":"$343,306.57"},{"v":309927.3,"d":"$309,927.30"},{"v":228975.75,"d":"$228,975.75"},{"v":459786.83,"d":"$459,786.83"},{"v":395877.51,"d":"$395,877.51"},{"v":411951.71,"d":"$411,951.71"},{"v":15368695.490000002,"d":"$15,368,695.49"},{"v":196830,"d":"$196,830.00"},{"v":273375,"d":"$273,375.00"},{"v":710775,"d":"$710,775.00"},{"v":74358,"d":"$74,358.00"},{"v":1248777,"d":"$1,248,777.00"},{"v":1878633,"d":"$1,878,633.00"},{"v":2976507,"d":"$2,976,507.00"},{"v":2049219,"d":"$2,049,219.00"},{"v":6111018.090000001,"d":"$6,111,018.09"},{"v":15519492.09,"d":"$15,519,492.09"},{"v":2081761.56,"d":"$2,081,761.56"},{"v":13437730.53,"d":"$13,437,730.53"},{"v":15639172.559999999,"d":"$15,639,172.56"},{"v":459039.48,"d":"$459,039.48"},{"v":459039.48,"d":"$459,039.48"},{"v":478424.6,"d":"$478,424.60"},{"v":478424.6,"d":"$478,424.60"},{"v":92273.14,"d":"$92,273.14"},{"v":92273.14,"d":"$92,273.14"},{"v":96150.16,"d":"$96,150.16"},{"v":96150.16,"d":"$96,150.16"},{"v":115535.27,"d":"$115,535.27"},{"v":1202652.44,"d":"$1,202,652.44"},{"v":487162.39,"d":"$487,162.39"},{"v":186397.31,"d":"$186,397.31"},{"v":4243522.17,"d":"$4,243,522.17"},{"v":35251390.35,"d":"$35,251,390.35"},{"v":838426.0499999999,"d":"$838,426.05"},{"v":72453.70999999999,"d":"$72,453.71"},{"v":977146.16,"d":"$977,146.16"},{"v":35251390.22,"d":"$35,251,390.22"}]
["44063157016","RICHMOND-BURTON COMM H SC D 157",572.82,{"v":8441543.17,"d":"$8,441,543.17"},{"v":9244977.79,"d":"$9,244,977.79"},{"v":1.0951762733211254,"d":"110%"},4,{"v":537.71,"d":"$537.71"},{"v":1456512.19,"d":"$1,456,512.19"},{"v":1457049.9,"d":"$1,457,049.90"},{"v":1.05749,"d":"1.06"},{"v":2020316.77,"d":"$2,020,316.77"},{"v":673371.57,"d":"$673,371.57"},{"v":242573.71,"d":"$242,573.71"},{"v":80575.18,"d":"$80,575.18"},{"v":64146.97,"d":"$64,146.97"},{"v":207438.71,"d":"$207,438.71"},{"v":49156.23,"d":"$49,156.23"},{"v":89831.36,"d":"$89,831.36"},{"v":80887.62,"d":"$80,887.62"},{"v":59678.17,"d":"$59,678.17"},{"v":119999.31,"d":"$119,999.31"},{"v":103319.68,"d":"$103,319.68"},{"v":107793.4,"d":"$107,793.40"},{"v":3899088.68,"d":"$3,899,088.68"},{"v":51553.8,"d":"$51,553.80"},{"v":71602.5,"d":"$71,602.50"},{"v":186166.50000000003,"d":"$186,166.50"},{"v":19475.88,"d":"$19,475.88"},{"v":163540.11,"d":"$163,540.11"},{"v":492052.38000000006,"d":"$492,052.38"},{"v":779608.02,"d":"$779,608.02"},{"v":536732.3400000001,"d":"$536,732.34"},{"v":1463418.64248,"d":"$1,463,418.64"},{"v":3764150.17248,"d":"$3,764,150.17"},{"v":545255.9,"d":"$545,255.90"},{"v":3218894.27248,"d":"$3,218,894.27"},{"v":3795496.93248,"d":"$3,795,496.93"},{"v":56604.53,"d":"$56,604.53"},{"v":56604.53,"d":"$56,604.53"},{"v":58930.74,"d":"$58,930.74"},{"v":58930.74,"d":"$58,930.74"},{"v":4652.42,"d":"$4,652.42"},{"v":4652.42,"d":"$4,652.42"},{"v":4652.42,"d":"$4,652.42"},{"v":4652.42,"d":"$4,652.42"},{"v":6203.23,"d":"$6,203.23"},{"v":314814.24,"d":"$314,814.24"},{"v":127522.84,"d":"$127,522.84"},{"v":48736.91,"d":"$48,736.91"},{"v":746957.4400000001,"d":"$746,957.44"},{"v":8441543.17,"d":"$8,441,543.17"},{"v":57369.920000000006,"d":"$57,369.92"},{"v":50.43,"d":"$50.43"},{"v":237088.72000000003,"d":"$237,088.72"},{"v":8441543.05248,"d":"$8,441,543.05"}]
["44063158022","HUNTLEY CONS SCHOOL DIST 158",8658.28,{"v":122781155.04,"d":"$122,781,155.04"},{"v":88781697.36,"d":"$88,781,697.36"},{"v":0.7230889571862753,"d":"72%"},1,{"v":2823016.57,"d":"$2,823,016.57"},{"v":29115645.689999998,"d":"$29,115,645.69"},{"v":31938662.259999998,"d":"$31,938,662.26"},{"v":1.05749,"d":"1.06"},{"v":29449174.54,"d":"$29,449,174.54"},{"v":7292001.4,"d":"$7,292,001.40"},{"v":3357662.13,"d":"$3,357,662.13"},{"v":1350278.82,"d":"$1,350,278.82"},{"v":987458.28,"d":"$987,458.28"},{"v":2374503.69,"d":"$2,374,503.69"},{"v":746398.67,"d":"$746,398.67"},{"v":1260465.96,"d":"$1,260,465.96"},{"v":1495143.82,"d":"$1,495,143.82"},{"v":906166.03,"d":"$906,166.03"},{"v":2218092.55,"d":"$2,218,092.55"},{"v":1909782.73,"d":"$1,909,782.73"},{"v":1512499.74,"d":"$1,512,499.74"},{"v":54859628.36,"d":"$54,859,628.36"},{"v":774280.7999999999,"d":"$774,280.80"},{"v":1082285,"d":"$1,082,285.00"},{"v":2813941,"d":"$2,813,941.00"},{"v":294381.51999999996,"d":"$294,381.52"},{"v":4943877.88,"d":"$4,943,877.88"},{"v":3531636.8599999994,"d":"$3,531,636.86"},{"v":11783919.079999998,"d":"$11,783,919.08"},{"v":8112808.359999999,"d":"$8,112,808.36"},{"v":21369927.547919996,"d":"$21,369,927.55"},{"v":54707058.04791999,"d":"$54,707,058.05"},{"v":8241643.56,"d":"$8,241,643.56"},{"v":46465414.48791999,"d":"$46,465,414.49"},{"v":55180870.127919994,"d":"$55,180,870.13"},{"v":714147.58,"d":"$714,147.58"},{"v":714147.58,"d":"$714,147.58"},{"v":744388.36,"d":"$744,388.36"},{"v":744388.36,"d":"$744,388.36"},{"v":448959.23,"d":"$448,959.23"},{"v":448959.23,"d":"$448,959.23"},{"v":467568.93,"d":"$467,568.93"},{"v":467568.93,"d":"$467,568.93"},{"v":561392.88,"d":"$561,392.88"},{"v":4760983.89,"d":"$4,760,983.89"},{"v":1928547.47,"d":"$1,928,547.47"},{"v":739604.01,"d":"$739,604.01"},{"v":12740656.45,"d":"$12,740,656.45"},{"v":122781155.04,"d":"$122,781,155.04"},{"v":747721.1,"d":"$747,721.10"},{"v":258396.93,"d":"$258,396.93"},{"v":3608353.810000001,"d":"$3,608,353.81"},{"v":122781154.93791999,"d":"$122,781,154.94"}]
["44063165003","MARENGO-UNION ELEM CONS DIST 165",999.75,{"v":15067163.07,"d":"$15,067,163.07"},{"v":10984269.57,"d":"$10,984,269.57"},{"v":0.729020421360582,"d":"73%"},1,{"v":328784.85,"d":"$328,784.85"},{"v":2735379.35,"d":"$2,735,379.35"},{"v":3064164.2,"d":"$3,064,164.20"},{"v":1.05749,"d":"1.06"},{"v":3645802.01,"d":"$3,645,802.01"},{"v":729160.39,"d":"$729,160.39"},{"v":367972.33,"d":"$367,972.33"},{"v":162969.7,"d":"$162,969.70"},{"v":131783.68,"d":"$131,783.68"},{"v":219349.9,"d":"$219,349.90"},{"v":86023.41,"d":"$86,023.41"},{"v":139144.38,"d":"$139,144.38"},{"v":188170.15,"d":"$188,170.15"},{"v":104279.76,"d":"$104,279.76"},{"v":279156.29,"d":"$279,156.29"},{"v":240354.2,"d":"$240,354.20"},{"v":166966.7,"d":"$166,966.70"},{"v":6461132.9,"d":"$6,461,132.90"},{"v":89122.5,"d":"$89,122.50"},{"v":124968.75,"d":"$124,968.75"},{"v":324918.75,"d":"$324,918.75"},{"v":33991.5,"d":"$33,991.50"},{"v":570857.25,"d":"$570,857.25"},{"v":161911.25,"d":"$161,911.25"},{"v":1360659.75,"d":"$1,360,659.75"},{"v":936765.75,"d":"$936,765.75"},{"v":2714677.659,"d":"$2,714,677.66"},{"v":6317873.159,"d":"$6,317,873.16"},{"v":951642.03,"d":"$951,642.03"},{"v":5366231.129,"d":"$5,366,231.13"},{"v":6372583.058999999,"d":"$6,372,583.06"},{"v":244252.43,"d":"$244,252.43"},{"v":244252.43,"d":"$244,252.43"},{"v":254332.68,"d":"$254,332.68"},{"v":254332.68,"d":"$254,332.68"},{"v":71337.21,"d":"$71,337.21"},{"v":71337.21,"d":"$71,337.21"},{"v":73663.43,"d":"$73,663.43"},{"v":73663.43,"d":"$73,663.43"},{"v":89171.52,"d":"$89,171.52"},{"v":549761.82,"d":"$549,761.82"},{"v":222693.83,"d":"$222,693.83"},{"v":84648.32,"d":"$84,648.32"},{"v":2233446.9899999998,"d":"$2,233,446.99"},{"v":15067163.07,"d":"$15,067,163.07"},{"v":708935.5299999999,"d":"$708,935.53"},{"v":77130.73,"d":"$77,130.73"},{"v":432204.13999999996,"d":"$432,204.14"},{"v":15067162.949,"d":"$15,067,162.95"}]
["44063200026","WOODSTOCK C U SCHOOL DIST 200",5815.2,{"v":91317684.24,"d":"$91,317,684.24"},{"v":64950920.39,"d":"$64,950,920.39"},{"v":0.7112633322949452,"d":"71%"},1,{"v":2586297.21,"d":"$2,586,297.21"},{"v":23765788.65,"d":"$23,765,788.65"},{"v":26352085.86,"d":"$26,352,085.86"},{"v":1.05749,"d":"1.06"},{"v":20962119.18,"d":"$20,962,119.18"},{"v":5151057.09,"d":"$5,151,057.09"},{"v":2250359.21,"d":"$2,250,359.21"},{"v":908136.4,"d":"$908,136.40"},{"v":769259.67,"d":"$769,259.67"},{"v":1579541.32,"d":"$1,579,541.32"},{"v":500617.47,"d":"$500,617.47"},{"v":845231.47,"d":"$845,231.47"},{"v":1007263.75,"d":"$1,007,263.75"},{"v":608403.33,"d":"$608,403.33"},{"v":1494307.22,"d":"$1,494,307.22"},{"v":1286601.92,"d":"$1,286,601.92"},{"v":1014237.92,"d":"$1,014,237.92"},{"v":38377135.95,"d":"$38,377,135.95"},{"v":518561.1000000001,"d":"$518,561.10"},{"v":726900,"d":"$726,900.00"},{"v":1889940,"d":"$1,889,940.00"},{"v":197716.8,"d":"$197,716.80"},{"v":3320479.2,"d":"$3,320,479.20"},{"v":2314964.39,"d":"$2,314,964.39"},{"v":7914487.199999999,"d":"$7,914,487.20"},{"v":5448842.399999999,"d":"$5,448,842.40"},{"v":16298883.8328,"d":"$16,298,883.83"},{"v":38630774.9228,"d":"$38,630,774.92"},{"v":5535372.57,"d":"$5,535,372.57"},{"v":33095402.352799997,"d":"$33,095,402.35"},{"v":38949003.4828,"d":"$38,949,003.48"},{"v":1311209.08,"d":"$1,311,209.08"},{"v":1311209.08,"d":"$1,311,209.08"},{"v":1365487.39,"d":"$1,365,487.39"},{"v":1365487.39,"d":"$1,365,487.39"},{"v":683906.8,"d":"$683,906.80"},{"v":683906.8,"d":"$683,906.80"},{"v":712596.77,"d":"$712,596.77"},{"v":712596.77,"d":"$712,596.77"},{"v":855271.21,"d":"$855,271.21"},{"v":3197768.33,"d":"$3,197,768.33"},{"v":1295330.58,"d":"$1,295,330.58"},{"v":496774.48,"d":"$496,774.48"},{"v":13991544.68,"d":"$13,991,544.68"},{"v":91317684.24,"d":"$91,317,684.24"},{"v":3103985.2499999995,"d":"$3,103,985.25"},{"v":845019.24,"d":"$845,019.24"},{"v":3247324.4899999998,"d":"$3,247,324.49"},{"v":91317684.1128,"d":"$91,317,684.11"}]
[null,"ALT SCH-MONROE/RANDOLPH ROE",3.33,{"v":38550.3,"d":"$38,550.30"},{"v":465457.19,"d":"$465,457.19"},{"v":12.07402251084946,"d":"1207%"},4,{"v":2.45,"d":"$2.45"},{"v":461602.16000000003,"d":"$461,602.16"},{"v":461604.61000000004,"d":"$461,604.61"},{"v":0.93051,"d":"0.93"},{"v":10448.41,"d":"$10,448.41"},{"v":3482.45,"d":"$3,482.45"},{"v":746.31,"d":"$746.31"},{"v":0,"d":"$0.00"},{"v":276.42,"d":"$276.42"},{"v":797.07,"d":"$797.07"},{"v":0,"d":"$0.00"},{"v":276.38,"d":"$276.38"},{"v":0,"d":"$0.00"},{"v":276.38,"d":"$276.38"},{"v":0,"d":"$0.00"},{"v":0,"d":"$0.00"},{"v":331.64,"d":"$331.64"},{"v":16635.059999999998,"d":"$16,635.06"},{"v":299.7,"d":"$299.70"},{"v":416.25,"d":"$416.25"},{"v":1082.25,"d":"$1,082.25"},{"v":113.22,"d":"$113.22"},{"v":950.71,"d":"$950.71"},{"v":2860.4700000000003,"d":"$2,860.47"},{"v":4532.13,"d":"$4,532.13"},{"v":3120.21,"d":"$3,120.21"},{"v":6843.186119999999,"d":"$6,843.19"},{"v":20218.126119999997,"d":"$20,218.13"},{"v":3169.76,"d":"$3,169.76"},{"v":17048.36612,"d":"$17,048.37"},{"v":19997.856119999997,"d":"$19,997.86"},{"v":0,"d":"$0.00"},{"v":0,"d":"$0.00"},{"v":0,"d":"$0.00"},{"v":0,"d":"$0.00"},{"v":0,"d":"$0.00"},{"v":0,"d":"$0.00"},{"v":0,"d":"$0.00"},{"v":0,"d":"$0.00"},{"v":0,"d":"$0.00"},{"v":1364.59,"d":"$1,364.59"},{"v":552.76,"d":"$552.76"},{"v":0,"d":"$0.00"},{"v":1917.35,"d":"$1,917.35"},{"v":38550.3,"d":"$38,550.30"},{"v":572.14,"d":"$572.14"},{"v":0,"d":"$0.00"},{"v":474.79,"d":"$474.79"},{"v":38550.26611999999,"d":"$38,550.27"}]
[null,"SAFE SCH-MONROE/RANDOLPH ROE",32.65,{"v":428463.38,"d":"$428,463.38"},{"v":284612.98,"d":"$284,612.98"},{"v":0.6642644232512939,"d":"66%"},1,{"v":20980.8,"d":"$20,980.80"},{"v":241766.65000000002,"d":"$241,766.65"},{"v":262747.45,"d":"$262,747.45"},{"v":0.93051,"d":"0.93"},{"v":97080.75,"d":"$97,080.75"},{"v":27772.79,"d":"$27,772.79"},{"v":10610.07,"d":"$10,610.07"},{"v":3536.69,"d":"$3,536.69"},{"v":3147.23,"d":"$3,147.23"},{"v":9076.1,"d":"$9,076.10"},{"v":1707.38,"d":"$1,707.38"},{"v":3869.32,"d":"$3,869.32"},{"v":3746.04,"d":"$3,746.04"},{"v":2763.8,"d":"$2,763.80"},{"v":5557.37,"d":"$5,557.37"},{"v":4784.91,"d":"$4,784.91"},{"v":4643,"d":"$4,643.00"},{"v":178295.45000000004,"d":"$178,295.45"},{"v":2938.5,"d":"$2,938.50"},{"v":4081.2500000000005,"d":"$4,081.25"},{"v":10611.25,"d":"$10,611.25"},{"v":1110.1000000000001,"d":"$1,110.10"},{"v":18643.15,"d":"$18,643.15"},{"v":20323.750000000004,"d":"$20,323.75"},{"v":44436.65,"d":"$44,436.65"},{"v":30593.050000000003,"d":"$30,593.05"},{"v":78908.09460000001,"d":"$78,908.09"},{"v":211645.79460000002,"d":"$211,645.79"},{"v":31078.88,"d":"$31,078.88"},{"v":180566.91460000002,"d":"$180,566.91"},{"v":209486.11460000003,"d":"$209,486.11"},{"v":4093.77,"d":"$4,093.77"},{"v":4093.77,"d":"$4,093.77"},{"v":4093.77,"d":"$4,093.77"},{"v":4093.77,"d":"$4,093.77"},{"v":0,"d":"$0.00"},{"v":0,"d":"$0.00"},{"v":0,"d":"$0.00"},{"v":0,"d":"$0.00"},{"v":0,"d":"$0.00"},{"v":15692.81,"d":"$15,692.81"},{"v":6356.74,"d":"$6,356.74"},{"v":2257.09,"d":"$2,257.09"},{"v":40681.72,"d":"$40,681.72"},{"v":428463.38,"d":"$428,463.38"},{"v":8017.969999999999,"d":"$8,017.97"},{"v":92.91,"d":"$92.91"},{"v":7850.5199999999995,"d":"$7,850.52"},{"v":428463.2846,"d":"$428,463.28"}]
["45067003026","VALMEYER COMM UNIT SCH DIST 3",355.12,{"v":4589180.4,"d":"$4,589,180.40"},{"v":4645535.949999999,"d":"$4,645,535.95"},{"v":1.0122800903621045,"d":"101%"},4,{"v":292.32,"d":"$292.32"},{"v":1057343.4,"d":"$1,057,343.40"},{"v":1057635.72,"d":"$1,057,635.72"},{"v":0.93051,"d":"0.93"},{"v":1073973.34,"d":"$1,073,973.34"},{"v":265232.97,"d":"$265,232.97"},{"v":119399.27,"d":"$119,399.27"},{"v":48018.81,"d":"$48,018.81"},{"v":34951.52,"d":"$34,951.52"},{"v":84414.41,"d":"$84,414.41"},{"v":26179.88,"d":"$26,179.88"},{"v":45049.95,"d":"$45,049.95"},{"v":53193.86,"d":"$53,193.86"},{"v":32060.08,"d":"$32,060.08"},{"v":78914.76,"d":"$78,914.76"},{"v":67945.79,"d":"$67,945.79"},{"v":54057.82,"d":"$54,057.82"},{"v":1983392.4600000002,"d":"$1,983,392.46"},{"v":31780.799999999996,"d":"$31,780.80"},{"v":44390,"d":"$44,390.00"},{"v":115414,"d":"$115,414.00"},{"v":12074.08,"d":"$12,074.08"},{"v":202773.52000000002,"d":"$202,773.52"},{"v":143701.24,"d":"$143,701.24"},{"v":483318.32000000007,"d":"$483,318.32"},{"v":332747.44,"d":"$332,747.44"},{"v":859658.45868,"d":"$859,658.46"},{"v":2225857.85868,"d":"$2,225,857.86"},{"v":338031.62,"d":"$338,031.62"},{"v":1887826.23868,"d":"$1,887,826.24"},{"v":2202368.0386799998,"d":"$2,202,368.04"},{"v":33432.52,"d":"$33,432.52"},{"v":33432.52,"d":"$33,432.52"},{"v":34797.11,"d":"$34,797.11"},{"v":34797.11,"d":"$34,797.11"},{"v":0,"d":"$0.00"},{"v":0,"d":"$0.00"},{"v":0,"d":"$0.00"},{"v":0,"d":"$0.00"},{"v":0,"d":"$0.00"},{"v":171256.41,"d":"$171,256.41"},{"v":69371.4,"d":"$69,371.40"},{"v":26332.73,"d":"$26,332.73"},{"v":403419.80000000005,"d":"$403,419.80"},{"v":4589180.4,"d":"$4,589,180.40"},{"v":30541.78,"d":"$30,541.78"},{"v":0,"d":"$0.00"},{"v":118155.69,"d":"$118,155.69"},{"v":4589180.29868,"d":"$4,589,180.30"}]
["45067004026","COLUMBIA COMM UNIT SCH DIST 4",1972.5,{"v":24969324.18,"d":"$24,969,324.18"},{"v":21996279.169999998,"d":"$21,996,279.17"},{"v":0.8809320993805126,"d":"88%"},2,{"v":40928.7,"d":"$40,928.70"},{"v":3378908.1,"d":"$3,378,908.10"},{"v":3419836.8000000003,"d":"$3,419,836.80"},{"v":0.93051,"d":"0.93"},{"v":5867038.23,"d":"$5,867,038.23"},{"v":1430374.45,"d":"$1,430,374.45"},{"v":669736.55,"d":"$669,736.55"},{"v":270980.83,"d":"$270,980.83"},{"v":188761.81,"d":"$188,761.81"},{"v":463008.41,"d":"$463,008.41"},{"v":148542.36,"d":"$148,542.36"},{"v":251505.87,"d":"$251,505.87"},{"v":301182.19,"d":"$301,182.19"},{"v":181305.33,"d":"$181,305.33"},{"v":446813.18,"d":"$446,813.18"},{"v":384707.16,"d":"$384,707.16"},{"v":301795.19,"d":"$301,795.19"},{"v":10905751.559999999,"d":"$10,905,751.56"},{"v":176040,"d":"$176,040.00"},{"v":246562.5,"d":"$246,562.50"},{"v":641062.5,"d":"$641,062.50"},{"v":67065,"d":"$67,065.00"},{"v":1126297.5,"d":"$1,126,297.50"},{"v":760560,"d":"$760,560.00"},{"v":2684572.5,"d":"$2,684,572.50"},{"v":1848232.5,"d":"$1,848,232.50"},{"v":4658496.03,"d":"$4,658,496.03"},{"v":12208888.530000001,"d":"$12,208,888.53"},{"v":1877583.3,"d":"$1,877,583.30"},{"v":10331305.23,"d":"$10,331,305.23"},{"v":12078415.26,"d":"$12,078,415.26"},{"v":114625.8,"d":"$114,625.80"},{"v":114625.8,"d":"$114,625.80"},{"v":119401.88,"d":"$119,401.88"},{"v":119401.88,"d":"$119,401.88"},{"v":5458.37,"d":"$5,458.37"},{"v":5458.37,"d":"$5,458.37"},{"v":5458.37,"d":"$5,458.37"},{"v":5458.37,"d":"$5,458.37"},{"v":6822.96,"d":"$6,822.96"},{"v":953850.44,"d":"$953,850.44"},{"v":386379.35,"d":"$386,379.35"},{"v":148215.68,"d":"$148,215.68"},{"v":1985157.2699999998,"d":"$1,985,157.27"},{"v":24969324.18,"d":"$24,969,324.18"},{"v":92002.45000000001,"d":"$92,002.45"},{"v":345.23,"d":"$345.23"},{"v":511526.63,"d":"$511,526.63"},{"v":24969324.09,"d":"$24,969,324.09"}]
["45067005026","WATERLOO COMM UNIT SCH DIST 5",2707.25,{"v":34769483.73,"d":"$34,769,483.73"},{"v":28365977.26,"d":"$28,365,977.26"},{"v":0.8158296936553335,"d":"82%"},2,{"v":91489.73,"d":"$91,489.73"},{"v":4643609.169999999,"d":"$4,643,609.17"},{"v":4735098.899999999,"d":"$4,735,098.90"},{"v":0.93051,"d":"0.93"},{"v":8131562.83,"d":"$8,131,562.83"},{"v":1991219.36,"d":"$1,991,219.36"},{"v":920248.03,"d":"$920,248.03"},{"v":371852.89,"d":"$371,852.89"},{"v":264331.58,"d":"$264,331.58"},{"v":640815.58,"d":"$640,815.58"},{"v":204886.01,"d":"$204,886.01"},{"v":345751.48,"d":"$345,751.48"},{"v":412814.39,"d":"$412,814.39"},{"v":249294.83,"d":"$249,294.83"},{"v":612423.04,"d":"$612,423.04"},{"v":527297.63,"d":"$527,297.63"},{"v":414885.47,"d":"$414,885.47"},{"v":15087383.120000001,"d":"$15,087,383.12"},{"v":240975,"d":"$240,975.00"},{"v":338406.25,"d":"$338,406.25"},{"v":879856.25,"d":"$879,856.25"},{"v":92046.5,"d":"$92,046.50"},{"v":1545839.75,"d":"$1,545,839.75"},{"v":1059069.5,"d":"$1,059,069.50"},{"v":3684567.25,"d":"$3,684,567.25"},{"v":2536693.25,"d":"$2,536,693.25"},{"v":6510635.963999999,"d":"$6,510,635.96"},{"v":16888089.713999998,"d":"$16,888,089.71"},{"v":2576977.13,"d":"$2,576,977.13"},{"v":14311112.583999999,"d":"$14,311,112.58"},{"v":16709015.564,"d":"$16,709,015.56"},{"v":225157.83,"d":"$225,157.83"},{"v":225157.83,"d":"$225,157.83"},{"v":234027.68,"d":"$234,027.68"},{"v":234027.68,"d":"$234,027.68"},{"v":2046.88,"d":"$2,046.88"},{"v":2046.88,"d":"$2,046.88"},{"v":2046.88,"d":"$2,046.88"},{"v":2046.88,"d":"$2,046.88"},{"v":2729.18,"d":"$2,729.18"},{"v":1310009.19,"d":"$1,310,009.19"},{"v":530649.75,"d":"$530,649.75"},{"v":203138.24,"d":"$203,138.24"},{"v":2973084.9000000004,"d":"$2,973,084.90"},{"v":34769483.73,"d":"$34,769,483.73"},{"v":237095.37999999995,"d":"$237,095.38"},{"v":36.59,"d":"$36.59"},{"v":761954.51,"d":"$761,954.51"},{"v":34769483.584,"d":"$34,769,483.58"}]
["45079001022","COULTERVILLE UNIT SCHOOL DIST 1",211.78,{"v":2924610.92,"d":"$2,924,610.92"},{"v":2028891.69,"d":"$2,028,891.69"},{"v":0.693730463811576,"d":"69%"},1,{"v":107079.36,"d":"$107,079.36"},{"v":1342252.82,"d":"$1,342,252.82"},{"v":1449332.1800000002,"d":"$1,449,332.18"},{"v":0.9,"d":"0.90"},{"v":663464.67,"d":"$663,464.67"},{"v":160982.18,"d":"$160,982.18"},{"v":68286.02,"d":"$68,286.02"},{"v":26673.95,"d":"$26,673.95"},{"v":23067.96,"d":"$23,067.96"},{"v":48452.65,"d":"$48,452.65"},{"v":14312.14,"d":"$14,312.14"},{"v":25395.21,"d":"$25,395.21"},{"v":29710.4,"d":"$29,710.40"},{"v":18444.94,"d":"$18,444.94"},{"v":44076.31,"d":"$44,076.31"},{"v":37949.8,"d":"$37,949.80"},{"v":30473.05,"d":"$30,473.05"},{"v":1191289.28,"d":"$1,191,289.28"},{"v":18955.799999999996,"d":"$18,955.80"},{"v":26472.5,"d":"$26,472.50"},{"v":68828.5,"d":"$68,828.50"},{"v":7200.519999999999,"d":"$7,200.52"},{"v":120926.38,"d":"$120,926.38"},{"v":81871.06,"d":"$81,871.06"},{"v":288232.57999999996,"d":"$288,232.58"},{"v":198437.86000000002,"d":"$198,437.86"},{"v":573051.72792,"d":"$573,051.73"},{"v":1383976.92792,"d":"$1,383,976.93"},{"v":201589.14,"d":"$201,589.14"},{"v":1182387.78792,"d":"$1,182,387.79"},{"v":1363818.00792,"d":"$1,363,818.01"},{"v":52794,"d":"$52,794.00"},{"v":52794,"d":"$52,794.00"},{"v":54773.77,"d":"$54,773.77"},{"v":54773.77,"d":"$54,773.77"},{"v":0,"d":"$0.00"},{"v":0,"d":"$0.00"},{"v":0,"d":"$0.00"},{"v":0,"d":"$0.00"},{"v":0,"d":"$0.00"},{"v":98988.75,"d":"$98,988.75"},{"v":40097.7,"d":"$40,097.70"},{"v":15281.59,"d":"$15,281.59"},{"v":369503.58,"d":"$369,503.58"},{"v":2924610.92,"d":"$2,924,610.92"},{"v":276405.96,"d":"$276,405.96"},{"v":0,"d":"$0.00"},{"v":97994.45,"d":"$97,994.45"},{"v":2924610.86792,"d":"$2,924,610.87"}]
["45079122019","CHESTER N H SCHOOL DIST 122",38.99,{"v":566168.47,"d":"$566,168.47"},{"v":526370.0700000001,"d":"$526,370.07"},{"v":0.9297057287559657,"d":"93%"},3,{"v":643.39,"d":"$643.39"},{"v":307313.64,"d":"$307,313.64"},{"v":307957.03,"d":"$307,957.03"},{"v":0.9,"d":"0.90"},{"v":124157.34,"d":"$124,157.34"},{"v":41381.64,"d":"$41,381.64"},{"v":13715.05,"d":"$13,715.05"},{"v":4331.07,"d":"$4,331.07"},{"v":4118.14,"d":"$4,118.14"},{"v":11564.1,"d":"$11,564.10"},{"v":2752.33,"d":"$2,752.33"},{"v":5079.04,"d":"$5,079.04"},{"v":4347.86,"d":"$4,347.86"},{"v":3207.81,"d":"$3,207.81"},{"v":6450.19,"d":"$6,450.19"},{"v":5553.63,"d":"$5,553.63"},{"v":6094.61,"d":"$6,094.61"},{"v":232752.80999999997,"d":"$232,752.81"},{"v":3509.1000000000004,"d":"$3,509.10"},{"v":4873.75,"d":"$4,873.75"},{"v":12671.75,"d":"$12,671.75"},{"v":1325.66,"d":"$1,325.66"},{"v":22263.29,"d":"$22,263.29"},{"v":33492.41,"d":"$33,492.41"},{"v":53065.39,"d":"$53,065.39"},{"v":36533.630000000005,"d":"$36,533.63"},{"v":107857.28736,"d":"$107,857.29"},{"v":275592.26736,"d":"$275,592.27"},{"v":37113.8,"d":"$37,113.80"},{"v":238478.46736000007,"d":"$238,478.47"},{"v":271880.88736000005,"d":"$271,880.89"},{"v":8579.02,"d":"$8,579.02"},{"v":8579.02,"d":"$8,579.02"},{"v":8579.02,"d":"$8,579.02"},{"v":8579.02,"d":"$8,579.02"},{"v":0,"d":"$0.00"},{"v":0,"d":"$0.00"},{"v":0,"d":"$0.00"},{"v":0,"d":"$0.00"},{"v":0,"d":"$0.00"},{"v":17817.97,"d":"$17,817.97"},{"v":7217.58,"d":"$7,217.58"},{"v":2183.08,"d":"$2,183.08"},{"v":61534.71000000001,"d":"$61,534.71"},{"v":566168.47,"d":"$566,168.47"},{"v":43373.16000000001,"d":"$43,373.16"},{"v":0,"d":"$0.00"},{"v":17348.44,"d":"$17,348.44"},{"v":566168.40736,"d":"$566,168.41"}]
["45079132026","RED BUD C U SCHOOL DIST 132",952.87,{"v":12466342.43,"d":"$12,466,342.43"},{"v":18592340.41,"d":"$18,592,340.41"},{"v":1.4914029928504058,"d":"149%"},4,{"v":794.08,"d":"$794.08"},{"v":823117.7,"d":"$823,117.70"},{"v":823911.7799999999,"d":"$823,911.78"},{"v":0.9,"d":"0.90"},{"v":2898377.82,"d":"$2,898,377.82"},{"v":727183.79,"d":"$727,183.79"},{"v":315418.06,"d":"$315,418.06"},{"v":125431.65,"d":"$125,431.65"},{"v":97694.89,"d":"$97,694.89"},{"v":223011.77,"d":"$223,011.77"},{"v":69358.84,"d":"$69,358.84"},{"v":118154.55,"d":"$118,154.55"},{"v":138407,"d":"$138,407.00"},{"v":84472.48,"d":"$84,472.48"},{"v":205331.11,"d":"$205,331.11"},{"v":176790.55,"d":"$176,790.55"},{"v":141779.89,"d":"$141,779.89"},{"v":5321412.399999999,"d":"$5,321,412.40"},{"v":84806.1,"d":"$84,806.10"},{"v":119108.75,"d":"$119,108.75"},{"v":309682.75,"d":"$309,682.75"},{"v":32397.58,"d":"$32,397.58"},{"v":272044.38,"d":"$272,044.38"},{"v":403559.48999999993,"d":"$403,559.49"},{"v":1296856.07,"d":"$1,296,856.07"},{"v":892839.19,"d":"$892,839.19"},{"v":2466092.7826799997,"d":"$2,466,092.78"},{"v":5877387.09268,"d":"$5,877,387.09"},{"v":907017.89,"d":"$907,017.89"},{"v":4970369.20268,"d":"$4,970,369.20"},{"v":5786685.30268,"d":"$5,786,685.30"},{"v":162341.55,"d":"$162,341.55"},{"v":162341.55,"d":"$162,341.55"},{"v":168940.8,"d":"$168,940.80"},{"v":168940.8,"d":"$168,940.80"},{"v":0,"d":"$0.00"},{"v":0,"d":"$0.00"},{"v":0,"d":"$0.00"},{"v":0,"d":"$0.00"},{"v":659.92,"d":"$659.92"},{"v":445449.37,"d":"$445,449.37"},{"v":180439.65,"d":"$180,439.65"},{"v":69131.02,"d":"$69,131.02"},{"v":1358244.66,"d":"$1,358,244.66"},{"v":12466342.43,"d":"$12,466,342.43"},{"v":260021.29,"d":"$260,021.29"},{"v":0.47,"d":"$0.47"},{"v":270425.87999999995,"d":"$270,425.88"},{"v":12466342.36268,"d":"$12,466,342.36"}]
["45079134004","PRAIRIE DU ROCHER C C S D 134",114.5,{"v":1426836.13,"d":"$1,426,836.13"},{"v":1292230.55,"d":"$1,292,230.55"},{"v":0.9056615001752164,"d":"91%"},3,{"v":1621.47,"d":"$1,621.47"},{"v":833019.76,"d":"$833,019.76"},{"v":834641.23,"d":"$834,641.23"},{"v":0.9,"d":"0.90"},{"v":333254,"d":"$333,254.00"},{"v":66650.79,"d":"$66,650.79"},{"v":35145.43,"d":"$35,145.43"},{"v":15689.92,"d":"$15,689.92"},{"v":11275.69,"d":"$11,275.69"},{"v":21644.35,"d":"$21,644.35"},{"v":7706.53,"d":"$7,706.53"},{"v":13365.9,"d":"$13,365.90"},{"v":18116.1,"d":"$18,116.10"},{"v":9890.76,"d":"$9,890.76"},{"v":26875.8,"d":"$26,875.80"},{"v":23140.12,"d":"$23,140.12"},{"v":16038.45,"d":"$16,038.45"},{"v":598793.84,"d":"$598,793.84"},{"v":10170,"d":"$10,170.00"},{"v":14312.5,"d":"$14,312.50"},{"v":37212.5,"d":"$37,212.50"},{"v":3893,"d":"$3,893.00"},{"v":65379.5,"d":"$65,379.50"},{"v":19271,"d":"$19,271.00"},{"v":155834.5,"d":"$155,834.50"},{"v":107286.5,"d":"$107,286.50"},{"v":277797.801,"d":"$277,797.80"},{"v":691157.301,"d":"$691,157.30"},{"v":108990.26,"d":"$108,990.26"},{"v":582167.041,"d":"$582,167.04"},{"v":680258.271,"d":"$680,258.27"},{"v":15838.2,"d":"$15,838.20"},{"v":15838.2,"d":"$15,838.20"},{"v":16498.12,"d":"$16,498.12"},{"v":16498.12,"d":"$16,498.12"},{"v":0,"d":"$0.00"},{"v":0,"d":"$0.00"},{"v":0,"d":"$0.00"},{"v":0,"d":"$0.00"},{"v":0,"d":"$0.00"},{"v":53453.92,"d":"$53,453.92"},{"v":21652.75,"d":"$21,652.75"},{"v":8004.64,"d":"$8,004.64"},{"v":147783.95,"d":"$147,783.95"},{"v":1426836.13,"d":"$1,426,836.13"},{"v":46984.07,"d":"$46,984.07"},{"v":0,"d":"$0.00"},{"v":51985.52999999999,"d":"$51,985.53"},{"v":1426836.061,"d":"$1,426,836.06"}]
["45079138026","STEELEVILLE C U SCH DIST 138",396.45,{"v":5260761.07,"d":"$5,260,761.07"},{"v":3844936.95,"d":"$3,844,936.95"},{"v":0.7308708566762565,"d":"73%"},1,{"v":118000.5,"d":"$118,000.50"},{"v":2048256.0000000005,"d":"$2,048,256.00"},{"v":2166256.5000000005,"d":"$2,166,256.50"},{"v":0.9,"d":"0.90"},{"v":1205773.15,"d":"$1,205,773.15"},{"v":298984.01,"d":"$298,984.01"},{"v":129512.12,"d":"$129,512.12"},{"v":51747.86,"d":"$51,747.86"},{"v":40414.84,"d":"$40,414.84"},{"v":91101.49,"d":"$91,101.49"},{"v":28073.81,"d":"$28,073.81"},{"v":48651.87,"d":"$48,651.87"},{"v":57246.87,"d":"$57,246.87"},{"v":34751.34,"d":"$34,751.34"},{"v":84927.52,"d":"$84,927.52"},{"v":73122.79,"d":"$73,122.79"},{"v":58379.95,"d":"$58,379.95"},{"v":2202687.6200000006,"d":"$2,202,687.62"},{"v":35568,"d":"$35,568.00"},{"v":49556.25,"d":"$49,556.25"},{"v":128846.25,"d":"$128,846.25"},{"v":13479.3,"d":"$13,479.30"},{"v":226372.94999999998,"d":"$226,372.95"},{"v":163288.77999999997,"d":"$163,288.78"},{"v":539568.45,"d":"$539,568.45"},{"v":371473.64999999997,"d":"$371,473.65"},{"v":1017391.3578,"d":"$1,017,391.36"},{"v":2545544.9878,"d":"$2,545,544.99"},{"v":377372.82,"d":"$377,372.82"},{"v":2168172.1678,"d":"$2,168,172.17"},{"v":2507807.6978,"d":"$2,507,807.70"},{"v":64012.72,"d":"$64,012.72"},{"v":64012.72,"d":"$64,012.72"},{"v":66652.42,"d":"$66,652.42"},{"v":66652.42,"d":"$66,652.42"},{"v":0,"d":"$0.00"},{"v":0,"d":"$0.00"},{"v":0,"d":"$0.00"},{"v":0,"d":"$0.00"},{"v":0,"d":"$0.00"},{"v":185438.92,"d":"$185,438.92"},{"v":75116.35,"d":"$75,116.35"},{"v":28380.1,"d":"$28,380.10"},{"v":550265.6499999999,"d":"$550,265.65"},{"v":5260761.07,"d":"$5,260,761.07"},{"v":169422.72,"d":"$169,422.72"},{"v":0,"d":"$0.00"},{"v":171636.25999999998,"d":"$171,636.26"},{"v":5260760.967800001,"d":"$5,260,760.97"}]
["45079139026","CHESTER COMM UNIT SCH DIST 139",913.04,{"v":12890532.74,"d":"$12,890,532.74"},{"v":9442836.8,"d":"$9,442,836.80"},{"v":0.7325404613184359,"d":"73%"},1,{"v":292188.16,"d":"$292,188.16"},{"v":5774066.29,"d":"$5,774,066.29"},{"v":6066254.45,"d":"$6,066,254.45"},{"v":0.9,"d":"0.90"},{"v":2856919.94,"d":"$2,856,919.94"},{"v":714369.78,"d":"$714,369.78"},{"v":301201.8,"d":"$301,201.80"},{"v":120033.89,"d":"$120,033.89"},{"v":101405.08,"d":"$101,405.08"},{"v":214815.09,"d":"$214,815.09"},{"v":66056.04,"d":"$66,056.04"},{"v":113075.51,"d":"$113,075.51"},{"v":132609.85,"d":"$132,609.85"},{"v":80997.35,"d":"$80,997.35"},{"v":196730.85,"d":"$196,730.85"},{"v":169385.71,"d":"$169,385.71"},{"v":135685.28,"d":"$135,685.28"},{"v":5203286.169999999,"d":"$5,203,286.17"},{"v":81206.09999999999,"d":"$81,206.10"},{"v":114130,"d":"$114,130.00"},{"v":296738,"d":"$296,738.00"},{"v":31043.359999999993,"d":"$31,043.36"},{"v":521345.83999999997,"d":"$521,345.84"},{"v":383812.97,"d":"$383,812.97"},{"v":1242647.44,"d":"$1,242,647.44"},{"v":855518.4799999999,"d":"$855,518.48"},{"v":2532947.4945599996,"d":"$2,532,947.49"},{"v":6059389.684559999,"d":"$6,059,389.68"},{"v":869104.51,"d":"$869,104.51"},{"v":5190285.174559999,"d":"$5,190,285.17"},{"v":5972479.224559999,"d":"$5,972,479.22"},{"v":219095.1,"d":"$219,095.10"},{"v":219095.1,"d":"$219,095.10"},{"v":228334.05,"d":"$228,334.05"},{"v":228334.05,"d":"$228,334.05"},{"v":29036.7,"d":"$29,036.70"},{"v":29036.7,"d":"$29,036.70"},{"v":29696.62,"d":"$29,696.62"},{"v":29696.62,"d":"$29,696.62"},{"v":36295.87,"d":"$36,295.87"},{"v":426971.47,"d":"$426,971.47"},{"v":172954.74,"d":"$172,954.74"},{"v":66220.24,"d":"$66,220.24"},{"v":1714767.26,"d":"$1,714,767.26"},{"v":12890532.74,"d":"$12,890,532.74"},{"v":876635.85,"d":"$876,635.85"},{"v":15826.16,"d":"$15,826.16"},{"v":467114.65,"d":"$467,114.65"},{"v":12890532.654559998,"d":"$12,890,532.65"}]
["45079140026","SPARTA C U SCHOOL DIST 140",1124.27,{"v":15535407.14,"d":"$15,535,407.14"},{"v":12140689.21,"d":"$12,140,689.21"},{"v":0.7814851004928346,"d":"78%"},2,{"v":126411.13,"d":"$126,411.13"},{"v":6680772.5600000005,"d":"$6,680,772.56"},{"v":6807183.69,"d":"$6,807,183.69"},{"v":0.9,"d":"0.90"},{"v":3548028.45,"d":"$3,548,028.45"},{"v":851436.82,"d":"$851,436.82"},{"v":367632.83,"d":"$367,632.83"},{"v":149530.95,"d":"$149,530.95"},{"v":122830.38,"d":"$122,830.38"},{"v":249216.22,"d":"$249,216.22"},{"v":82019.58,"d":"$82,019.58"},{"v":137936.08,"d":"$137,936.08"},{"v":166668.12,"d":"$166,668.12"},{"v":99709.61,"d":"$99,709.61"},{"v":247257.36,"d":"$247,257.36"},{"v":212889.15,"d":"$212,889.15"},{"v":165516.8,"d":"$165,516.80"},{"v":6400672.3500000015,"d":"$6,400,672.35"},{"v":100284.3,"d":"$100,284.30"},{"v":140533.75,"d":"$140,533.75"},{"v":365387.75,"d":"$365,387.75"},{"v":38225.18,"d":"$38,225.18"},{"v":641958.1699999999,"d":"$641,958.17"},{"v":412270.75,"d":"$412,270.75"},{"v":1530131.47,"d":"$1,530,131.47"},{"v":1053440.99,"d":"$1,053,440.99"},{"v":3050128.63128,"d":"$3,050,128.63"},{"v":7332360.991280001,"d":"$7,332,360.99"},{"v":1070170.12,"d":"$1,070,170.12"},{"v":6262190.871279999,"d":"$6,262,190.87"},{"v":7225343.971279998,"d":"$7,225,343.97"},{"v":266609.7,"d":"$266,609.70"},{"v":266609.7,"d":"$266,609.70"},{"v":277828.42,"d":"$277,828.42"},{"v":277828.42,"d":"$277,828.42"},{"v":0,"d":"$0.00"},{"v":0,"d":"$0.00"},{"v":0,"d":"$0.00"},{"v":0,"d":"$0.00"},{"v":0,"d":"$0.00"},{"v":525960.22,"d":"$525,960.22"},{"v":213052.44,"d":"$213,052.44"},{"v":81501.84,"d":"$81,501.84"},{"v":1909390.74,"d":"$1,909,390.74"},{"v":15535407.14,"d":"$15,535,407.14"},{"v":1223623.8800000001,"d":"$1,223,623.88"},{"v":0,"d":"$0.00"},{"v":468520.22000000003,"d":"$468,520.22"},{"v":15535407.06128,"d":"$15,535,407.06"}]
[null,"SAFE SCH-LEE/OGLE ROE",39,{"v":535712.21,"d":"$535,712.21"},{"v":308285.82,"d":"$308,285.82"},{"v":0.5754690937509153,"d":"58%"},1,{"v":43190.65,"d":"$43,190.65"},{"v":254714.6,"d":"$254,714.60"},{"v":297905.25,"d":"$297,905.25"},{"v":0.9,"d":"0.90"},{"v":116587.53,"d":"$116,587.53"},{"v":33420.8,"d":"$33,420.80"},{"v":13055.31,"d":"$13,055.31"},{"v":4770.17,"d":"$4,770.17"},{"v":3958.78,"d":"$3,958.78"},{"v":10996.77,"d":"$10,996.77"},{"v":2752.33,"d":"$2,752.33"},{"v":4811.72,"d":"$4,811.72"},{"v":5072.5,"d":"$5,072.50"},{"v":3475.13,"d":"$3,475.13"},{"v":7525.22,"d":"$7,525.22"},{"v":6479.23,"d":"$6,479.23"},{"v":5773.84,"d":"$5,773.84"},{"v":218679.33000000002,"d":"$218,679.33"},{"v":3510,"d":"$3,510.00"},{"v":4875,"d":"$4,875.00"},{"v":12675,"d":"$12,675.00"},{"v":1326,"d":"$1,326.00"},{"v":22269,"d":"$22,269.00"},{"v":24351,"d":"$24,351.00"},{"v":53079,"d":"$53,079.00"},{"v":36543,"d":"$36,543.00"},{"v":102562.188,"d":"$102,562.19"},{"v":261190.188,"d":"$261,190.19"},{"v":37123.32,"d":"$37,123.32"},{"v":224066.868,"d":"$224,066.87"},{"v":257477.848,"d":"$257,477.85"},{"v":7919.1,"d":"$7,919.10"},{"v":7919.1,"d":"$7,919.10"},{"v":7919.1,"d":"$7,919.10"},{"v":7919.1,"d":"$7,919.10"},{"v":0,"d":"$0.00"},{"v":0,"d":"$0.00"},{"v":0,"d":"$0.00"},{"v":0,"d":"$0.00"},{"v":659.92,"d":"$659.92"},{"v":17817.97,"d":"$17,817.97"},{"v":7217.58,"d":"$7,217.58"},{"v":2183.08,"d":"$2,183.08"},{"v":59554.950000000004,"d":"$59,554.95"},{"v":535712.21,"d":"$535,712.21"},{"v":9330.14,"d":"$9,330.14"},{"v":132.70999999999998,"d":"$132.71"},{"v":5584.83,"d":"$5,584.83"},{"v":535712.128,"d":"$535,712.13"}]
[null,"ALOP-LEE/OGLE ROE",85.32,{"v":1221472.86,"d":"$1,221,472.86"},{"v":731400.02,"d":"$731,400.02"},{"v":0.5987853221724467,"d":"60%"},1,{"v":88325.54,"d":"$88,325.54"},{"v":609252.74,"d":"$609,252.74"},{"v":697578.28,"d":"$697,578.28"},{"v":0.9,"d":"0.90"},{"v":266388.6,"d":"$266,388.60"},{"v":85608.28,"d":"$85,608.28"},{"v":29940.49,"d":"$29,940.49"},{"v":9289.73,"d":"$9,289.73"},{"v":8952.58,"d":"$8,952.58"},{"v":25157.35,"d":"$25,157.35"},{"v":6055.13,"d":"$6,055.13"},{"v":10960.03,"d":"$10,960.03"},{"v":9420.37,"d":"$9,420.37"},{"v":7217.58,"d":"$7,217.58"},{"v":13975.41,"d":"$13,975.41"},{"v":12032.86,"d":"$12,032.86"},{"v":13151.52,"d":"$13,151.52"},{"v":498149.93,"d":"$498,149.93"},{"v":7678.799999999999,"d":"$7,678.80"},{"v":10665,"d":"$10,665.00"},{"v":27729,"d":"$27,729.00"},{"v":2900.88,"d":"$2,900.88"},{"v":48717.72,"d":"$48,717.72"},{"v":68007.28,"d":"$68,007.28"},{"v":116120.51999999999,"d":"$116,120.52"},{"v":79944.84,"d":"$79,944.84"},{"v":232992.66048,"d":"$232,992.66"},{"v":594756.7004799999,"d":"$594,756.70"},{"v":81214.4,"d":"$81,214.40"},{"v":513542.30048,"d":"$513,542.30"},{"v":586635.2604799999,"d":"$586,635.26"},{"v":17158.05,"d":"$17,158.05"},{"v":17158.05,"d":"$17,158.05"},{"v":18477.9,"d":"$18,477.90"},{"v":18477.9,"d":"$18,477.90"},{"v":659.92,"d":"$659.92"},{"v":659.92,"d":"$659.92"},{"v":659.92,"d":"$659.92"},{"v":659.92,"d":"$659.92"},{"v":1319.85,"d":"$1,319.85"},{"v":39595.5,"d":"$39,595.50"},{"v":16039.08,"d":"$16,039.08"},{"v":5821.56,"d":"$5,821.56"},{"v":136687.57,"d":"$136,687.57"},{"v":1221472.86,"d":"$1,221,472.86"},{"v":45080.020000000004,"d":"$45,080.02"},{"v":463.35,"d":"$463.35"},{"v":25491.23,"d":"$25,491.23"},{"v":1221472.76048,"d":"$1,221,472.76"}]
["47052170022","DIXON UNIT SCHOOL DIST 170",2462.53,{"v":34871861.11,"d":"$34,871,861.11"},{"v":29383435.349999998,"d":"$29,383,435.35"},{"v":0.8426116190734048,"d":"84%"},2,{"v":98976.57,"d":"$98,976.57"},{"v":6815424.49,"d":"$6,815,424.49"},{"v":6914401.0600000005,"d":"$6,914,401.06"},{"v":0.9,"d":"0.90"},{"v":7833325.65,"d":"$7,833,325.65"},{"v":1905270.12,"d":"$1,905,270.12"},{"v":808073.43,"d":"$808,073.43"},{"v":327305.93,"d":"$327,305.93"},{"v":277160.42,"d":"$277,160.42"},{"v":561816.63,"d":"$561,816.63"},{"v":180002.7,"d":"$180,002.70"},{"v":303673.24,"d":"$303,673.24"},{"v":363771.28,"d":"$363,771.28"},{"v":218933.44,"d":"$218,933.44"},{"v":539666.06,"d":"$539,666.06"},{"v":464653.71,"d":"$464,653.71"},{"v":364393.58,"d":"$364,393.58"},{"v":14148046.19,"d":"$14,148,046.19"},{"v":219955.5,"d":"$219,955.50"},{"v":307816.25,"d":"$307,816.25"},{"v":800322.25,"d":"$800,322.25"},{"v":83726.02,"d":"$83,726.02"},{"v":1406104.6300000001,"d":"$1,406,104.63"},{"v":950807.99,"d":"$950,807.99"},{"v":3351503.3299999996,"d":"$3,351,503.33"},{"v":2307390.61,"d":"$2,307,390.61"},{"v":6877776.790920001,"d":"$6,877,776.79"},{"v":16305403.370920002,"d":"$16,305,403.37"},{"v":2344033.05,"d":"$2,344,033.05"},{"v":13961370.320920002,"d":"$13,961,370.32"},{"v":16071000.060920002,"d":"$16,071,000.06"},{"v":645406.65,"d":"$645,406.65"},{"v":645406.65,"d":"$645,406.65"},{"v":672463.57,"d":"$672,463.57"},{"v":672463.57,"d":"$672,463.57"},{"v":40915.35,"d":"$40,915.35"},{"v":40915.35,"d":"$40,915.35"},{"v":42895.12,"d":"$42,895.12"},{"v":42895.12,"d":"$42,895.12"},{"v":51474.15,"d":"$51,474.15"},{"v":1152229.05,"d":"$1,152,229.05"},{"v":466737.22,"d":"$466,737.22"},{"v":179012.97,"d":"$179,012.97"},{"v":4652814.77,"d":"$4,652,814.77"},{"v":34871861.11,"d":"$34,871,861.11"},{"v":1531556.15,"d":"$1,531,556.15"},{"v":9703.949999999999,"d":"$9,703.95"},{"v":908031.5500000002,"d":"$908,031.55"},{"v":34871861.02092,"d":"$34,871,861.02"}]
["47052220002","STEWARD ELEM SCHOOL DIST 220",68.5,{"v":826140.25,"d":"$826,140.25"},{"v":988404.04,"d":"$988,404.04"},{"v":1.1964119167417397,"d":"120%"},4,{"v":52.62,"d":"$52.62"},{"v":53960.88,"d":"$53,960.88"},{"v":54013.5,"d":"$54,013.50"},{"v":0.9,"d":"0.90"},{"v":201458.63,"d":"$201,458.63"},{"v":40291.72,"d":"$40,291.72"},{"v":21338.29,"d":"$21,338.29"},{"v":8786.35,"d":"$8,786.35"},{"v":6710.94,"d":"$6,710.94"},{"v":13527.72,"d":"$13,527.72"},{"v":4954.2,"d":"$4,954.20"},{"v":7752.22,"d":"$7,752.22"},{"v":10145.01,"d":"$10,145.01"},{"v":5880.99,"d":"$5,880.99"},{"v":15050.44,"d":"$15,050.44"},{"v":12958.47,"d":"$12,958.47"},{"v":9302.3,"d":"$9,302.30"},{"v":358157.2799999999,"d":"$358,157.28"},{"v":6165,"d":"$6,165.00"},{"v":8562.5,"d":"$8,562.50"},{"v":22262.5,"d":"$22,262.50"},{"v":2329,"d":"$2,329.00"},{"v":19556.75,"d":"$19,556.75"},{"v":12344.5,"d":"$12,344.50"},{"v":93228.5,"d":"$93,228.50"},{"v":64184.5,"d":"$64,184.50"},{"v":163999.95899999997,"d":"$163,999.96"},{"v":392633.209,"d":"$392,633.21"},{"v":65203.78,"d":"$65,203.78"},{"v":327429.429,"d":"$327,429.43"},{"v":386112.829,"d":"$386,112.83"},{"v":7919.1,"d":"$7,919.10"},{"v":7919.1,"d":"$7,919.10"},{"v":8579.02,"d":"$8,579.02"},{"v":8579.02,"d":"$8,579.02"},{"v":0,"d":"$0.00"},{"v":0,"d":"$0.00"},{"v":0,"d":"$0.00"},{"v":0,"d":"$0.00"},{"v":0,"d":"$0.00"},{"v":31676.4,"d":"$31,676.40"},{"v":12831.26,"d":"$12,831.26"},{"v":4366.17,"d":"$4,366.17"},{"v":81870.07,"d":"$81,870.07"},{"v":826140.25,"d":"$826,140.25"},{"v":16197.13,"d":"$16,197.13"},{"v":0,"d":"$0.00"},{"v":18341.880000000005,"d":"$18,341.88"},{"v":826140.179,"d":"$826,140.18"}]
["47052271026","PAW PAW CUSD 271",171.03,{"v":2244240.25,"d":"$2,244,240.25"},{"v":3169691.96,"d":"$3,169,691.96"},{"v":1.412367486056807,"d":"141%"},4,{"v":142.95,"d":"$142.95"},{"v":283816.01999999996,"d":"$283,816.02"},{"v":283958.97,"d":"$283,958.97"},{"v":0.9,"d":"0.90"},{"v":524632.84,"d":"$524,632.84"},{"v":126672.72,"d":"$126,672.72"},{"v":55796.19,"d":"$55,796.19"},{"v":22092.28,"d":"$22,092.28"},{"v":17873.37,"d":"$17,873.37"},{"v":37739.53,"d":"$37,739.53"},{"v":11559.8,"d":"$11,559.80"},{"v":20850.8,"d":"$20,850.80"},{"v":24637.89,"d":"$24,637.89"},{"v":14969.8,"d":"$14,969.80"},{"v":36551.08,"d":"$36,551.08"},{"v":31470.57,"d":"$31,470.57"},{"v":25019.98,"d":"$25,019.98"},{"v":949866.8500000001,"d":"$949,866.85"},{"v":15295.5,"d":"$15,295.50"},{"v":21378.75,"d":"$21,378.75"},{"v":55584.75,"d":"$55,584.75"},{"v":5815.02,"d":"$5,815.02"},{"v":48829.060000000005,"d":"$48,829.06"},{"v":64749.69,"d":"$64,749.69"},{"v":232771.83000000002,"d":"$232,771.83"},{"v":160255.11,"d":"$160,255.11"},{"v":446121.80291999993,"d":"$446,121.80"},{"v":1050801.51292,"d":"$1,050,801.51"},{"v":162800.03,"d":"$162,800.03"},{"v":888001.4829199999,"d":"$888,001.48"},{"v":1034521.5029199999,"d":"$1,034,521.50"},{"v":29696.62,"d":"$29,696.62"},{"v":29696.62,"d":"$29,696.62"},{"v":31016.47,"d":"$31,016.47"},{"v":31016.47,"d":"$31,016.47"},{"v":2639.7,"d":"$2,639.70"},{"v":2639.7,"d":"$2,639.70"},{"v":2639.7,"d":"$2,639.70"},{"v":2639.7,"d":"$2,639.70"},{"v":3299.62,"d":"$3,299.62"},{"v":79850.92,"d":"$79,850.92"},{"v":32345.47,"d":"$32,345.47"},{"v":12370.81,"d":"$12,370.81"},{"v":259851.79999999996,"d":"$259,851.80"},{"v":2244240.25,"d":"$2,244,240.25"},{"v":133689.25999999998,"d":"$133,689.26"},{"v":12.98,"d":"$12.98"},{"v":54549.5,"d":"$54,549.50"},{"v":2244240.15292,"d":"$2,244,240.15"}]
["47052272026","AMBOY COMM UNIT SCHOOL DIST 272",689.6,{"v":9082149.8,"d":"$9,082,149.80"},{"v":8886584.78,"d":"$8,886,584.78"},{"v":0.9784671003774897,"d":"98%"},3,{"v":10321.05,"d":"$10,321.05"},{"v":881450.2599999999,"d":"$881,450.26"},{"v":891771.3099999999,"d":"$891,771.31"},{"v":0.9,"d":"0.90"},{"v":2113876.44,"d":"$2,113,876.44"},{"v":510048.58,"d":"$510,048.58"},{"v":224973.31,"d":"$224,973.31"},{"v":91068.01,"d":"$91,068.01"},{"v":72266.1,"d":"$72,266.10"},{"v":155976.51,"d":"$155,976.51"},{"v":49542.03,"d":"$49,542.03"},{"v":84472.48,"d":"$84,472.48"},{"v":101450.16,"d":"$101,450.16"},{"v":61215.82,"d":"$61,215.82"},{"v":150504.48,"d":"$150,504.48"},{"v":129584.7,"d":"$129,584.70"},{"v":101363,"d":"$101,363.00"},{"v":3846341.62,"d":"$3,846,341.62"},{"v":61464.59999999999,"d":"$61,464.60"},{"v":86200,"d":"$86,200.00"},{"v":224119.99999999997,"d":"$224,120.00"},{"v":23446.399999999998,"d":"$23,446.40"},{"v":196880.8,"d":"$196,880.80"},{"v":259151.06,"d":"$259,151.06"},{"v":938545.5999999999,"d":"$938,545.60"},{"v":646155.1999999998,"d":"$646,155.20"},{"v":1807584.1223999998,"d":"$1,807,584.12"},{"v":4243547.782399999,"d":"$4,243,547.78"},{"v":656416.44,"d":"$656,416.44"},{"v":3587131.342399999,"d":"$3,587,131.34"},{"v":4177906.132399999,"d":"$4,177,906.13"},{"v":132644.92,"d":"$132,644.92"},{"v":132644.92,"d":"$132,644.92"},{"v":137924.32,"d":"$137,924.32"},{"v":137924.32,"d":"$137,924.32"},{"v":2639.7,"d":"$2,639.70"},{"v":2639.7,"d":"$2,639.70"},{"v":2639.7,"d":"$2,639.70"},{"v":2639.7,"d":"$2,639.70"},{"v":3299.62,"d":"$3,299.62"},{"v":322703.32,"d":"$322,703.32"},{"v":130718.5,"d":"$130,718.50"},{"v":49483.26,"d":"$49,483.26"},{"v":1057901.9799999997,"d":"$1,057,901.98"},{"v":9082149.8,"d":"$9,082,149.80"},{"v":268285.87,"d":"$268,285.87"},{"v":88.92999999999999,"d":"$88.93"},{"v":215194.18,"d":"$215,194.18"},{"v":9082149.7324,"d":"$9,082,149.73"}]
["47052275026","ASHTON COMM UNIT SCH DIST 275",486.7,{"v":6578062.14,"d":"$6,578,062.14"},{"v":6303699.63,"d":"$6,303,699.63"},{"v":0.9582912863757168,"d":"96%"},3,{"v":7475.38,"d":"$7,475.38"},{"v":734058.59,"d":"$734,058.59"},{"v":741533.97,"d":"$741,533.97"},{"v":0.9,"d":"0.90"},{"v":1506584.95,"d":"$1,506,584.95"},{"v":363187.69,"d":"$363,187.69"},{"v":158758.57,"d":"$158,758.57"},{"v":63766.45,"d":"$63,766.45"},{"v":51434.49,"d":"$51,434.49"},{"v":108971.19,"d":"$108,971.19"},{"v":34679.42,"d":"$34,679.42"},{"v":59611.91,"d":"$59,611.91"},{"v":71015.11,"d":"$71,015.11"},{"v":42770.88,"d":"$42,770.88"},{"v":105353.13,"d":"$105,353.13"},{"v":90709.29,"d":"$90,709.29"},{"v":71531.48,"d":"$71,531.48"},{"v":2728374.5599999996,"d":"$2,728,374.56"},{"v":43645.5,"d":"$43,645.50"},{"v":60837.5,"d":"$60,837.50"},{"v":158177.5,"d":"$158,177.50"},{"v":16547.8,"d":"$16,547.80"},{"v":277905.7,"d":"$277,905.70"},{"v":182843.90999999997,"d":"$182,843.91"},{"v":662398.7,"d":"$662,398.70"},{"v":456037.9,"d":"$456,037.90"},{"v":1282878.2837999999,"d":"$1,282,878.28"},{"v":3141272.7937999996,"d":"$3,141,272.79"},{"v":463279.99,"d":"$463,279.99"},{"v":2677992.8038,"d":"$2,677,992.80"},{"v":3094944.7938,"d":"$3,094,944.79"},{"v":97008.97,"d":"$97,008.97"},{"v":97008.97,"d":"$97,008.97"},{"v":100968.52,"d":"$100,968.52"},{"v":100968.52,"d":"$100,968.52"},{"v":659.92,"d":"$659.92"},{"v":659.92,"d":"$659.92"},{"v":659.92,"d":"$659.92"},{"v":659.92,"d":"$659.92"},{"v":1319.85,"d":"$1,319.85"},{"v":227674.12,"d":"$227,674.12"},{"v":92224.71,"d":"$92,224.71"},{"v":34929.36,"d":"$34,929.36"},{"v":754742.6999999998,"d":"$754,742.70"},{"v":6578062.14,"d":"$6,578,062.14"},{"v":150992.75999999998,"d":"$150,992.76"},{"v":40.230000000000004,"d":"$40.23"},{"v":154617.82000000007,"d":"$154,617.82"},{"v":6578062.0538,"d":"$6,578,062.05"}]
["47071144003","KINGS CONSOLIDATED SCH DIST 144",87.98,{"v":1113834.05,"d":"$1,113,834.05"},{"v":1356615.64,"d":"$1,356,615.64"},{"v":1.2179692657088368,"d":"122%"},4,{"v":70.94,"d":"$70.94"},{"v":115077.15999999999,"d":"$115,077.16"},{"v":115148.09999999999,"d":"$115,148.10"},{"v":0.9,"d":"0.90"},{"v":267983.91,"d":"$267,983.91"},{"v":53596.78,"d":"$53,596.78"},{"v":26986.67,"d":"$26,986.67"},{"v":11924.34,"d":"$11,924.34"},{"v":9195.43,"d":"$9,195.43"},{"v":16909.65,"d":"$16,909.65"},{"v":6055.13,"d":"$6,055.13"},{"v":10158.08,"d":"$10,158.08"},{"v":13768.23,"d":"$13,768.23"},{"v":7484.9,"d":"$7,484.90"},{"v":20425.6,"d":"$20,425.60"},{"v":17586.49,"d":"$17,586.49"},{"v":12189.22,"d":"$12,189.22"},{"v":474264.42999999993,"d":"$474,264.43"},{"v":7888.5,"d":"$7,888.50"},{"v":10997.5,"d":"$10,997.50"},{"v":28593.5,"d":"$28,593.50"},{"v":2991.3199999999997,"d":"$2,991.32"},{"v":25118.29,"d":"$25,118.29"},{"v":14986.25,"d":"$14,986.25"},{"v":119740.78,"d":"$119,740.78"},{"v":82437.26,"d":"$82,437.26"},{"v":223907.90472000002,"d":"$223,907.90"},{"v":516661.30472,"d":"$516,661.30"},{"v":83746.4,"d":"$83,746.40"},{"v":432914.90472,"d":"$432,914.90"},{"v":508286.66472,"d":"$508,286.66"},{"v":16498.12,"d":"$16,498.12"},{"v":16498.12,"d":"$16,498.12"},{"v":17158.05,"d":"$17,158.05"},{"v":17158.05,"d":"$17,158.05"},{"v":0,"d":"$0.00"},{"v":0,"d":"$0.00"},{"v":0,"d":"$0.00"},{"v":0,"d":"$0.00"},{"v":659.92,"d":"$659.92"},{"v":40915.35,"d":"$40,915.35"},{"v":16573.71,"d":"$16,573.71"},{"v":5821.56,"d":"$5,821.56"},{"v":131282.87999999998,"d":"$131,282.88"},{"v":1113834.05,"d":"$1,113,834.05"},{"v":64942.46,"d":"$64,942.46"},{"v":0.05,"d":"$0.05"},{"v":16051.550000000001,"d":"$16,051.55"},{"v":1113833.9747199998,"d":"$1,113,833.97"}]
["47071161004","CRESTON COMM CONS SCHOOL DIST 161",89.8,{"v":1117511.04,"d":"$1,117,511.04"},{"v":1470617.64,"d":"$1,470,617.64"},{"v":1.3159759388148862,"d":"132%"},4,{"v":71.18,"d":"$71.18"},{"v":111848.66,"d":"$111,848.66"},{"v":111919.84,"d":"$111,919.84"},{"v":0.9,"d":"0.90"},{"v":271121.9,"d":"$271,121.90"},{"v":54224.37,"d":"$54,224.37"},{"v":27614.26,"d":"$27,614.26"},{"v":11924.34,"d":"$11,924.34"},{"v":9200.4,"d":"$9,200.40"},{"v":16233.26,"d":"$16,233.26"},{"v":6055.13,"d":"$6,055.13"},{"v":10425.4,"d":"$10,425.40"},{"v":13768.23,"d":"$13,768.23"},{"v":7752.22,"d":"$7,752.22"},{"v":20425.6,"d":"$20,425.60"},{"v":17586.49,"d":"$17,586.49"},{"v":12509.99,"d":"$12,509.99"},{"v":478841.59,"d":"$478,841.59"},{"v":8082.000000000001,"d":"$8,082.00"},{"v":11225,"d":"$11,225.00"},{"v":29185,"d":"$29,185.00"},{"v":3053.2,"d":"$3,053.20"},{"v":25637.89,"d":"$25,637.89"},{"v":14881.76,"d":"$14,881.76"},{"v":122217.8,"d":"$122,217.80"},{"v":84142.6,"d":"$84,142.60"},{"v":223841.05319999997,"d":"$223,841.05"},{"v":522266.30319999997,"d":"$522,266.30"},{"v":85478.82,"d":"$85,478.82"},{"v":436787.48319999996,"d":"$436,787.48"},{"v":513718.41319999995,"d":"$513,718.41"},{"v":13198.5,"d":"$13,198.50"},{"v":13198.5,"d":"$13,198.50"},{"v":13858.42,"d":"$13,858.42"},{"v":13858.42,"d":"$13,858.42"},{"v":1319.85,"d":"$1,319.85"},{"v":1319.85,"d":"$1,319.85"},{"v":1319.85,"d":"$1,319.85"},{"v":1319.85,"d":"$1,319.85"},{"v":1319.85,"d":"$1,319.85"},{"v":41575.27,"d":"$41,575.27"},{"v":16841.03,"d":"$16,841.03"},{"v":5821.56,"d":"$5,821.56"},{"v":124950.94999999998,"d":"$124,950.95"},{"v":1117511.04,"d":"$1,117,511.04"},{"v":40393.34,"d":"$40,393.34"},{"v":2.02,"d":"$2.02"},{"v":23032.859999999997,"d":"$23,032.86"},{"v":1117510.9531999999,"d":"$1,117,510.95"}]
["47071212017","ROCHELLE TWP HIGH SCH DIST 212",867.99,{"v":13093437.1,"d":"$13,093,437.10"},{"v":11221577.170000002,"d":"$11,221,577.17"},{"v":0.8570383073822535,"d":"86%"},2,{"v":30232.01,"d":"$30,232.01"},{"v":2305199.5099999993,"d":"$2,305,199.51"},{"v":2335431.519999999,"d":"$2,335,431.52"},{"v":0.9,"d":"0.90"},{"v":2751673.14,"d":"$2,751,673.14"},{"v":917132.65,"d":"$917,132.65"},{"v":312558.88,"d":"$312,558.88"},{"v":103945.68,"d":"$103,945.68"},{"v":96440.76,"d":"$96,440.76"},{"v":267516.18,"d":"$267,516.18"},{"v":63303.7,"d":"$63,303.70"},{"v":115748.69,"d":"$115,748.69"},{"v":104348.73,"d":"$104,348.73"},{"v":77254.9,"d":"$77,254.90"},{"v":154804.6,"d":"$154,804.60"},{"v":133287.12,"d":"$133,287.12"},{"v":138892.97,"d":"$138,892.97"},{"v":5236908.000000001,"d":"$5,236,908.00"},{"v":78119.1,"d":"$78,119.10"},{"v":108498.75,"d":"$108,498.75"},{"v":282096.75,"d":"$282,096.75"},{"v":29511.66,"d":"$29,511.66"},{"v":495622.29,"d":"$495,622.29"},{"v":745603.41,"d":"$745,603.41"},{"v":1181334.39,"d":"$1,181,334.39"},{"v":813306.63,"d":"$813,306.63"},{"v":2522281.4193599997,"d":"$2,522,281.42"},{"v":6256374.399359999,"d":"$6,256,374.40"},{"v":826222.32,"d":"$826,222.32"},{"v":5430152.079359999,"d":"$5,430,152.08"},{"v":6173752.159359999,"d":"$6,173,752.16"},{"v":179499.6,"d":"$179,499.60"},{"v":179499.6,"d":"$179,499.60"},{"v":186758.77,"d":"$186,758.77"},{"v":186758.77,"d":"$186,758.77"},{"v":59393.25,"d":"$59,393.25"},{"v":59393.25,"d":"$59,393.25"},{"v":62032.95,"d":"$62,032.95"},{"v":62032.95,"d":"$62,032.95"},{"v":74571.52,"d":"$74,571.52"},{"v":405853.87,"d":"$405,853.87"},{"v":164400.57,"d":"$164,400.57"},{"v":62581.77,"d":"$62,581.77"},{"v":1682776.8699999999,"d":"$1,682,776.87"},{"v":13093437.1,"d":"$13,093,437.10"},{"v":343803.27,"d":"$343,803.27"},{"v":20587.230000000003,"d":"$20,587.23"},{"v":229873.17000000004,"d":"$229,873.17"},{"v":13093437.029359998,"d":"$13,093,437.03"}]
["47071220026","OREGON C U SCHOOL DIST-220",1328.71,{"v":18160114.5,"d":"$18,160,114.50"},{"v":15497060.53,"d":"$15,497,060.53"},{"v":0.8533569835146139,"d":"85%"},2,{"v":39856.95,"d":"$39,856.95"},{"v":3525852.69,"d":"$3,525,852.69"},{"v":3565709.64,"d":"$3,565,709.64"},{"v":0.9,"d":"0.90"},{"v":4124895.58,"d":"$4,124,895.58"},{"v":1004721.69,"d":"$1,004,721.69"},{"v":436077.38,"d":"$436,077.38"},{"v":175420.95,"d":"$175,420.95"},{"v":142097.85,"d":"$142,097.85"},{"v":302767.29,"d":"$302,767.29"},{"v":96331.72,"d":"$96,331.72"},{"v":163598.61,"d":"$163,598.61"},{"v":194929.23,"d":"$194,929.23"},{"v":117887.23,"d":"$117,887.23"},{"v":289183.6,"d":"$289,183.60"},{"v":248987.74,"d":"$248,987.74"},{"v":196310.62,"d":"$196,310.62"},{"v":7493209.49,"d":"$7,493,209.49"},{"v":118692,"d":"$118,692.00"},{"v":166088.75,"d":"$166,088.75"},{"v":431830.75,"d":"$431,830.75"},{"v":45176.14,"d":"$45,176.14"},{"v":758693.41,"d":"$758,693.41"},{"v":515851.42000000004,"d":"$515,851.42"},{"v":1808374.31,"d":"$1,808,374.31"},{"v":1245001.27,"d":"$1,245,001.27"},{"v":3548270.2694399995,"d":"$3,548,270.27"},{"v":8637978.31944,"d":"$8,637,978.32"},{"v":1264772.47,"d":"$1,264,772.47"},{"v":7373205.84944,"d":"$7,373,205.85"},{"v":8511501.06944,"d":"$8,511,501.07"},{"v":276508.57,"d":"$276,508.57"},{"v":276508.57,"d":"$276,508.57"},{"v":287727.3,"d":"$287,727.30"},{"v":287727.3,"d":"$287,727.30"},{"v":10558.8,"d":"$10,558.80"},{"v":10558.8,"d":"$10,558.80"},{"v":11218.72,"d":"$11,218.72"},{"v":11218.72,"d":"$11,218.72"},{"v":13858.42,"d":"$13,858.42"},{"v":621649.35,"d":"$621,649.35"},{"v":251813.55,"d":"$251,813.55"},{"v":96055.74,"d":"$96,055.74"},{"v":2155403.84,"d":"$2,155,403.84"},{"v":18160114.5,"d":"$18,160,114.50"},{"v":831020.9499999998,"d":"$831,020.95"},{"v":9507.659999999998,"d":"$9,507.66"},{"v":406302.89,"d":"$406,302.89"},{"v":18160114.399439998,"d":"$18,160,114.40"}]
["47071221026","FORRESTVILLE VALLEY C U S D 221",744.69,{"v":9907026.07,"d":"$9,907,026.07"},{"v":7984467.85,"d":"$7,984,467.85"},{"v":0.805939925219153,"d":"81%"},2,{"v":41741.87,"d":"$41,741.87"},{"v":2369845.9,"d":"$2,369,845.90"},{"v":2411587.77,"d":"$2,411,587.77"},{"v":0.9,"d":"0.90"},{"v":2256420.42,"d":"$2,256,420.42"},{"v":553375.55,"d":"$553,375.55"},{"v":244336.74,"d":"$244,336.74"},{"v":97909.47,"d":"$97,909.47"},{"v":76309,"d":"$76,309.00"},{"v":171504.37,"d":"$171,504.37"},{"v":53395.29,"d":"$53,395.29"},{"v":91957.39,"d":"$91,957.39"},{"v":108696.6,"d":"$108,696.60"},{"v":66027.54,"d":"$66,027.54"},{"v":161254.8,"d":"$161,254.80"},{"v":138840.75,"d":"$138,840.75"},{"v":110344.53,"d":"$110,344.53"},{"v":4130372.45,"d":"$4,130,372.45"},{"v":66400.2,"d":"$66,400.20"},{"v":93086.25,"d":"$93,086.25"},{"v":242024.25,"d":"$242,024.25"},{"v":25319.46,"d":"$25,319.46"},{"v":425217.99,"d":"$425,217.99"},{"v":295203.5,"d":"$295,203.50"},{"v":1013523.0899999999,"d":"$1,013,523.09"},{"v":697774.53,"d":"$697,774.53"},{"v":1920255.8301599994,"d":"$1,920,255.83"},{"v":4778805.100159999,"d":"$4,778,805.10"},{"v":708855.51,"d":"$708,855.51"},{"v":4069949.59016,"d":"$4,069,949.59"},{"v":4707919.54016,"d":"$4,707,919.54"},{"v":128685.37,"d":"$128,685.37"},{"v":128685.37,"d":"$128,685.37"},{"v":133964.77,"d":"$133,964.77"},{"v":133964.77,"d":"$133,964.77"},{"v":0,"d":"$0.00"},{"v":0,"d":"$0.00"},{"v":0,"d":"$0.00"},{"v":0,"d":"$0.00"},{"v":0,"d":"$0.00"},{"v":348440.4,"d":"$348,440.40"},{"v":141143.9,"d":"$141,143.90"},{"v":53849.43,"d":"$53,849.43"},{"v":1068734.01,"d":"$1,068,734.01"},{"v":9907026.07,"d":"$9,907,026.07"},{"v":266587.8900000001,"d":"$266,587.89"},{"v":0,"d":"$0.00"},{"v":214229.50000000006,"d":"$214,229.50"},{"v":9907026.00016,"d":"$9,907,026.00"}]
["47071222026","POLO COMM UNIT SCHOOL DIST 222",542.02,{"v":7458141.98,"d":"$7,458,141.98"},{"v":6131010.65,"d":"$6,131,010.65"},{"v":0.8220560384129346,"d":"82%"},2,{"v":24694.73,"d":"$24,694.73"},{"v":1635185.5299999998,"d":"$1,635,185.53"},{"v":1659880.2599999998,"d":"$1,659,880.26"},{"v":0.9,"d":"0.90"},{"v":1693313.49,"d":"$1,693,313.49"},{"v":416891.13,"d":"$416,891.13"},{"v":178027.75,"d":"$178,027.75"},{"v":71235.51,"d":"$71,235.51"},{"v":58345.93,"d":"$58,345.93"},{"v":125269.99,"d":"$125,269.99"},{"v":39083.15,"d":"$39,083.15"},{"v":66829.5,"d":"$66,829.50"},{"v":78986.19,"d":"$78,986.19"},{"v":47849.92,"d":"$47,849.92"},{"v":117178.48,"d":"$117,178.48"},{"v":100890.94,"d":"$100,890.94"},{"v":80192.25,"d":"$80,192.25"},{"v":3074094.23,"d":"$3,074,094.23"},{"v":48249.899999999994,"d":"$48,249.90"},{"v":67752.5,"d":"$67,752.50"},{"v":176156.5,"d":"$176,156.50"},{"v":18428.68,"d":"$18,428.68"},{"v":309493.42,"d":"$309,493.42"},{"v":217620.83,"d":"$217,620.83"},{"v":737689.22,"d":"$737,689.22"},{"v":507872.74,"d":"$507,872.74"},{"v":1458117.5632799997,"d":"$1,458,117.56"},{"v":3541381.3532799995,"d":"$3,541,381.35"},{"v":515937.99,"d":"$515,937.99"},{"v":3025443.3632799992,"d":"$3,025,443.36"},{"v":3489787.553279999,"d":"$3,489,787.55"},{"v":122086.12,"d":"$122,086.12"},{"v":122086.12,"d":"$122,086.12"},{"v":127365.52,"d":"$127,365.52"},{"v":127365.52,"d":"$127,365.52"},{"v":0,"d":"$0.00"},{"v":0,"d":"$0.00"},{"v":0,"d":"$0.00"},{"v":0,"d":"$0.00"},{"v":0,"d":"$0.00"},{"v":253411.2,"d":"$253,411.20"},{"v":102650.11,"d":"$102,650.11"},{"v":39295.53,"d":"$39,295.53"},{"v":894260.12,"d":"$894,260.12"},{"v":7458141.98,"d":"$7,458,141.98"},{"v":265917.86,"d":"$265,917.86"},{"v":0,"d":"$0.00"},{"v":156765.06000000006,"d":"$156,765.06"},{"v":7458141.903279999,"d":"$7,458,141.90"}]
["47071223026","MERIDIAN C U SCH DIST 223",1476.12,{"v":19350733.47,"d":"$19,350,733.47"},{"v":15815481.489999998,"d":"$15,815,481.49"},{"v":0.8173065643490567,"d":"82%"},2,{"v":86086.52,"d":"$86,086.52"},{"v":6714135.249999999,"d":"$6,714,135.25"},{"v":6800221.769999999,"d":"$6,800,221.77"},{"v":0.9,"d":"0.90"},{"v":4404489.36,"d":"$4,404,489.36"},{"v":1087871.25,"d":"$1,087,871.25"},{"v":485756.13,"d":"$485,756.13"},{"v":194940.73,"d":"$194,940.73"},{"v":147689.38,"d":"$147,689.38"},{"v":341154.19,"d":"$341,154.19"},{"v":107341.06,"d":"$107,341.06"},{"v":182578.19,"d":"$182,578.19"},{"v":215943.91,"d":"$215,943.91"},{"v":131253.13,"d":"$131,253.13"},{"v":320359.53,"d":"$320,359.53"},{"v":275830.29,"d":"$275,830.29"},{"v":219085.22,"d":"$219,085.22"},{"v":8114292.370000001,"d":"$8,114,292.37"},{"v":132071.4,"d":"$132,071.40"},{"v":184515,"d":"$184,515.00"},{"v":479739,"d":"$479,739.00"},{"v":50188.08,"d":"$50,188.08"},{"v":842864.52,"d":"$842,864.52"},{"v":597338.68,"d":"$597,338.68"},{"v":2008999.3200000003,"d":"$2,008,999.32"},{"v":1383124.44,"d":"$1,383,124.44"},{"v":3732323.18868,"d":"$3,732,323.19"},{"v":9411163.62868,"d":"$9,411,163.63"},{"v":1405089.1,"d":"$1,405,089.10"},{"v":8006074.52868,"d":"$8,006,074.53"},{"v":9270654.71868,"d":"$9,270,654.72"},{"v":182799.22,"d":"$182,799.22"},{"v":182799.22,"d":"$182,799.22"},{"v":190058.4,"d":"$190,058.40"},{"v":190058.4,"d":"$190,058.40"},{"v":27056.92,"d":"$27,056.92"},{"v":27056.92,"d":"$27,056.92"},{"v":27716.85,"d":"$27,716.85"},{"v":27716.85,"d":"$27,716.85"},{"v":33656.17,"d":"$33,656.17"},{"v":690281.55,"d":"$690,281.55"},{"v":279614.62,"d":"$279,614.62"},{"v":106971.16,"d":"$106,971.16"},{"v":1965786.28,"d":"$1,965,786.28"},{"v":19350733.47,"d":"$19,350,733.47"},{"v":311650.64,"d":"$311,650.64"},{"v":38261.409999999996,"d":"$38,261.41"},{"v":516783.22000000015,"d":"$516,783.22"},{"v":19350733.36868,"d":"$19,350,733.37"}]
["47071226026","BYRON COMM UNIT SCHOOL DIST 226",1440.7,{"v":17955059.66,"d":"$17,955,059.66"},{"v":21539063.21,"d":"$21,539,063.21"},{"v":1.1996096709154571,"d":"120%"},4,{"v":1143.7,"d":"$1,143.70"},{"v":982864.47,"d":"$982,864.47"},{"v":984008.1699999999,"d":"$984,008.17"},{"v":0.9,"d":"0.90"},{"v":4222867.16,"d":"$4,222,867.16"},{"v":1027587.55,"d":"$1,027,587.55"},{"v":472636.53,"d":"$472,636.53"},{"v":191582.11,"d":"$191,582.11"},{"v":138800.26,"d":"$138,800.26"},{"v":328928.22,"d":"$328,928.22"},{"v":105139.19,"d":"$105,139.19"},{"v":177766.47,"d":"$177,766.47"},{"v":213045.33,"d":"$213,045.33"},{"v":128045.32,"d":"$128,045.32"},{"v":316059.4,"d":"$316,059.40"},{"v":272127.87,"d":"$272,127.87"},{"v":213311.38,"d":"$213,311.38"},{"v":7807896.790000001,"d":"$7,807,896.79"},{"v":128965.5,"d":"$128,965.50"},{"v":180087.5,"d":"$180,087.50"},{"v":468227.5,"d":"$468,227.50"},{"v":48983.799999999996,"d":"$48,983.80"},{"v":411319.84,"d":"$411,319.84"},{"v":555817.69,"d":"$555,817.69"},{"v":1960792.7000000002,"d":"$1,960,792.70"},{"v":1349935.9,"d":"$1,349,935.90"},{"v":3520875.6198,"d":"$3,520,875.62"},{"v":8625006.0498,"d":"$8,625,006.05"},{"v":1371373.51,"d":"$1,371,373.51"},{"v":7253632.539800001,"d":"$7,253,632.54"},{"v":8487868.689800002,"d":"$8,487,868.69"},{"v":138584.25,"d":"$138,584.25"},{"v":138584.25,"d":"$138,584.25"},{"v":144523.57,"d":"$144,523.57"},{"v":144523.57,"d":"$144,523.57"},{"v":7919.1,"d":"$7,919.10"},{"v":7919.1,"d":"$7,919.10"},{"v":7919.1,"d":"$7,919.10"},{"v":7919.1,"d":"$7,919.10"},{"v":9898.87,"d":"$9,898.87"},{"v":673783.42,"d":"$673,783.42"},{"v":272931.67,"d":"$272,931.67"},{"v":104788.08,"d":"$104,788.08"},{"v":1659294.08,"d":"$1,659,294.08"},{"v":17955059.66,"d":"$17,955,059.66"},{"v":135000.12,"d":"$135,000.12"},{"v":13.989999999999998,"d":"$13.99"},{"v":533763.9899999998,"d":"$533,763.99"},{"v":17955059.559800003,"d":"$17,955,059.56"}]
["47071231004","ROCHELLE COMM CONS DIST 231",1431.22,{"v":20518120.12,"d":"$20,518,120.12"},{"v":16672858.88,"d":"$16,672,858.88"},{"v":0.8125919325205705,"d":"81%"},2,{"v":93058.34,"d":"$93,058.34"},{"v":5657110.45,"d":"$5,657,110.45"},{"v":5750168.79,"d":"$5,750,168.79"},{"v":0.9,"d":"0.90"},{"v":4446524.74,"d":"$4,446,524.74"},{"v":889304.94,"d":"$889,304.94"},{"v":448731.85,"d":"$448,731.85"},{"v":198948.24,"d":"$198,948.24"},{"v":171587.04,"d":"$171,587.04"},{"v":272583.55,"d":"$272,583.55"},{"v":104038.26,"d":"$104,038.26"},{"v":169746.93,"d":"$169,746.93"},{"v":229712.14,"d":"$229,712.14"},{"v":127243.36,"d":"$127,243.36"},{"v":340785.14,"d":"$340,785.14"},{"v":293416.78,"d":"$293,416.78"},{"v":203688.31,"d":"$203,688.31"},{"v":7896311.279999998,"d":"$7,896,311.28"},{"v":126792.90000000001,"d":"$126,792.90"},{"v":178902.5,"d":"$178,902.50"},{"v":465146.5,"d":"$465,146.50"},{"v":48661.479999999996,"d":"$48,661.48"},{"v":817226.62,"d":"$817,226.62"},{"v":236466.93,"d":"$236,466.93"},{"v":1947890.42,"d":"$1,947,890.42"},{"v":1341053.14,"d":"$1,341,053.14"},{"v":4136685.57108,"d":"$4,136,685.57"},{"v":9298826.06108,"d":"$9,298,826.06"},{"v":1362349.69,"d":"$1,362,349.69"},{"v":7936476.37108,"d":"$7,936,476.37"},{"v":9162591.09108,"d":"$9,162,591.09"},{"v":348440.4,"d":"$348,440.40"},{"v":348440.4,"d":"$348,440.40"},{"v":362958.75,"d":"$362,958.75"},{"v":362958.75,"d":"$362,958.75"},{"v":186098.85,"d":"$186,098.85"},{"v":186098.85,"d":"$186,098.85"},{"v":193358.02,"d":"$193,358.02"},{"v":193358.02,"d":"$193,358.02"},{"v":232293.6,"d":"$232,293.60"},{"v":669823.87,"d":"$669,823.87"},{"v":271327.77,"d":"$271,327.77"},{"v":104060.38,"d":"$104,060.38"},{"v":3459217.66,"d":"$3,459,217.66"},{"v":20518120.12,"d":"$20,518,120.12"},{"v":1348433.9500000002,"d":"$1,348,433.95"},{"v":197922.43000000002,"d":"$197,922.43"},{"v":576312.2500000001,"d":"$576,312.25"},{"v":20518120.03108,"d":"$20,518,120.03"}]
["47071269004","ESWOOD C C DISTRICT 269",73.47,{"v":937061.46,"d":"$937,061.46"},{"v":1279618.37,"d":"$1,279,618.37"},{"v":1.3655650398854309,"d":"137%"},4,{"v":59.68,"d":"$59.68"},{"v":96947.81000000001,"d":"$96,947.81"},{"v":97007.49,"d":"$97,007.49"},{"v":0.9,"d":"0.90"},{"v":225934.92,"d":"$225,934.92"},{"v":45186.98,"d":"$45,186.98"},{"v":22593.49,"d":"$22,593.49"},{"v":10041.55,"d":"$10,041.55"},{"v":7772.8,"d":"$7,772.80"},{"v":13527.72,"d":"$13,527.72"},{"v":4954.2,"d":"$4,954.20"},{"v":8554.17,"d":"$8,554.17"},{"v":11594.3,"d":"$11,594.30"},{"v":6148.31,"d":"$6,148.31"},{"v":17200.51,"d":"$17,200.51"},{"v":14809.68,"d":"$14,809.68"},{"v":10264.6,"d":"$10,264.60"},{"v":398583.2299999999,"d":"$398,583.23"},{"v":6567.299999999999,"d":"$6,567.30"},{"v":9183.75,"d":"$9,183.75"},{"v":23877.749999999996,"d":"$23,877.75"},{"v":2497.9799999999996,"d":"$2,497.98"},{"v":20975.68,"d":"$20,975.68"},{"v":12012.93,"d":"$12,012.93"},{"v":99992.67,"d":"$99,992.67"},{"v":68841.39,"d":"$68,841.39"},{"v":188818.45908,"d":"$188,818.46"},{"v":432767.90908,"d":"$432,767.91"},{"v":69934.62,"d":"$69,934.62"},{"v":362833.28907999996,"d":"$362,833.29"},{"v":425774.43908,"d":"$425,774.44"},{"v":14518.35,"d":"$14,518.35"},{"v":14518.35,"d":"$14,518.35"},{"v":15178.27,"d":"$15,178.27"},{"v":15178.27,"d":"$15,178.27"},{"v":0,"d":"$0.00"},{"v":0,"d":"$0.00"},{"v":0,"d":"$0.00"},{"v":0,"d":"$0.00"},{"v":0,"d":"$0.00"},{"v":34316.1,"d":"$34,316.10"},{"v":13900.53,"d":"$13,900.53"},{"v":5093.86,"d":"$5,093.86"},{"v":112703.73,"d":"$112,703.73"},{"v":937061.46,"d":"$937,061.46"},{"v":32742.96,"d":"$32,742.96"},{"v":0.06,"d":"$0.06"},{"v":21786.37,"d":"$21,786.37"},{"v":937061.3990799999,"d":"$937,061.40"}]
["47098001026","ERIE COMM UNIT SCH DIST 1",574.21,{"v":7195508.17,"d":"$7,195,508.17"},{"v":22731661.62,"d":"$22,731,661.62"},{"v":3.1591461065633117,"d":"316%"},4,{"v":458.34,"d":"$458.34"},{"v":415785.27999999997,"d":"$415,785.28"},{"v":416243.62,"d":"$416,243.62"},{"v":0.9,"d":"0.90"},{"v":1696292.95,"d":"$1,696,292.95"},{"v":416043.69,"d":"$416,043.69"},{"v":187724.45,"d":"$187,724.45"},{"v":75095.34,"d":"$75,095.34"},{"v":55714.19,"d":"$55,714.19"},{"v":131546.57,"d":"$131,546.57"},{"v":41285.02,"d":"$41,285.02"},{"v":70571.95,"d":"$70,571.95"},{"v":83334.06,"d":"$83,334.06"},{"v":50790.42,"d":"$50,790.42"},{"v":123628.68,"d":"$123,628.68"},{"v":106444.57,"d":"$106,444.57"},{"v":84683.01,"d":"$84,683.01"},{"v":3123154.9,"d":"$3,123,154.90"},{"v":51386.399999999994,"d":"$51,386.40"},{"v":71776.25,"d":"$71,776.25"},{"v":186618.25,"d":"$186,618.25"},{"v":19523.14,"d":"$19,523.14"},{"v":163936.95,"d":"$163,936.95"},{"v":227891.72,"d":"$227,891.72"},{"v":781499.8099999999,"d":"$781,499.81"},{"v":538034.7699999999,"d":"$538,034.77"},{"v":1411426.42644,"d":"$1,411,426.43"},{"v":3452093.71644,"d":"$3,452,093.72"},{"v":546579.01,"d":"$546,579.01"},{"v":2905514.706440001,"d":"$2,905,514.71"},{"v":3397435.806440001,"d":"$3,397,435.81"},{"v":62692.87,"d":"$62,692.87"},{"v":62692.87,"d":"$62,692.87"},{"v":65332.57,"d":"$65,332.57"},{"v":65332.57,"d":"$65,332.57"},{"v":0,"d":"$0.00"},{"v":0,"d":"$0.00"},{"v":0,"d":"$0.00"},{"v":0,"d":"$0.00"},{"v":0,"d":"$0.00"},{"v":268589.47,"d":"$268,589.47"},{"v":108798.42,"d":"$108,798.42"},{"v":41478.61,"d":"$41,478.61"},{"v":674917.38,"d":"$674,917.38"},{"v":7195508.17,"d":"$7,195,508.17"},{"v":96773.89000000001,"d":"$96,773.89"},{"v":0,"d":"$0.00"},{"v":190534.83999999997,"d":"$190,534.84"},{"v":7195508.086440001,"d":"$7,195,508.09"}]
["47098002026","RIVER BEND COMM UNIT DIST 2",897,{"v":11697915.84,"d":"$11,697,915.84"},{"v":8775826.129999999,"d":"$8,775,826.13"},{"v":0.7502042457846918,"d":"75%"},1,{"v":165203.25,"d":"$165,203.25"},{"v":2864647.9499999997,"d":"$2,864,647.95"},{"v":3029851.1999999997,"d":"$3,029,851.20"},{"v":0.9,"d":"0.90"},{"v":2688059.47,"d":"$2,688,059.47"},{"v":647882.23,"d":"$647,882.23"},{"v":293165.09,"d":"$293,165.09"},{"v":118997.16,"d":"$118,997.16"},{"v":89753.72,"d":"$89,753.72"},{"v":202210.9,"d":"$202,210.90"},{"v":64404.63,"d":"$64,404.63"},{"v":110135.01,"d":"$110,135.01"},{"v":132609.85,"d":"$132,609.85"},{"v":79660.76,"d":"$79,660.76"},{"v":196730.85,"d":"$196,730.85"},{"v":169385.71,"d":"$169,385.71"},{"v":132156.82,"d":"$132,156.82"},{"v":4925152.199999999,"d":"$4,925,152.20"},{"v":80235,"d":"$80,235.00"},{"v":112125,"d":"$112,125.00"},{"v":291525,"d":"$291,525.00"},{"v":30498,"d":"$30,498.00"},{"v":512187,"d":"$512,187.00"},{"v":335424.5,"d":"$335,424.50"},{"v":1220817,"d":"$1,220,817.00"},{"v":840489,"d":"$840,489.00"},{"v":2259674.496,"d":"$2,259,674.50"},{"v":5682974.995999999,"d":"$5,682,975.00"},{"v":853836.36,"d":"$853,836.36"},{"v":4829138.635999999,"d":"$4,829,138.64"},{"v":5597591.355999999,"d":"$5,597,591.36"},{"v":127365.52,"d":"$127,365.52"},{"v":127365.52,"d":"$127,365.52"},{"v":132644.92,"d":"$132,644.92"},{"v":132644.92,"d":"$132,644.92"},{"v":0,"d":"$0.00"},{"v":0,"d":"$0.00"},{"v":0,"d":"$0.00"},{"v":0,"d":"$0.00"},{"v":659.92,"d":"$659.92"},{"v":419712.3,"d":"$419,712.30"},{"v":170014.24,"d":"$170,014.24"},{"v":64764.85,"d":"$64,764.85"},{"v":1175172.19,"d":"$1,175,172.19"},{"v":11697915.84,"d":"$11,697,915.84"},{"v":196539.14999999997,"d":"$196,539.15"},{"v":49.38,"d":"$49.38"},{"v":290644.12,"d":"$290,644.12"},{"v":11697915.745999997,"d":"$11,697,915.75"}]
["47098003026","PROPHETSTOWN-LYNDON-TAMPICO CUSD3",714.95,{"v":9711401.92,"d":"$9,711,401.92"},{"v":8295601.0600000005,"d":"$8,295,601.06"},{"v":0.8542125151792709,"d":"85%"},2,{"v":21537.27,"d":"$21,537.27"},{"v":2817314.75,"d":"$2,817,314.75"},{"v":2838852.02,"d":"$2,838,852.02"},{"v":0.9,"d":"0.90"},{"v":2212317.09,"d":"$2,212,317.09"},{"v":531564.93,"d":"$531,564.93"},{"v":233226.32,"d":"$233,226.32"},{"v":94205.99,"d":"$94,205.99"},{"v":76106.65,"d":"$76,106.65"},{"v":160034.83,"d":"$160,034.83"},{"v":51193.43,"d":"$51,193.43"},{"v":87412.98,"d":"$87,412.98"},{"v":105073.38,"d":"$105,073.38"},{"v":63087.04,"d":"$63,087.04"},{"v":155879.64,"d":"$155,879.64"},{"v":134212.72,"d":"$134,212.72"},{"v":104891.46,"d":"$104,891.46"},{"v":4009206.4600000004,"d":"$4,009,206.46"},{"v":63595.79999999999,"d":"$63,595.80"},{"v":89368.75,"d":"$89,368.75"},{"v":232358.75,"d":"$232,358.75"},{"v":24308.3,"d":"$24,308.30"},{"v":408236.45,"d":"$408,236.45"},{"v":264379.74,"d":"$264,379.74"},{"v":973046.95,"d":"$973,046.95"},{"v":669908.15,"d":"$669,908.15"},{"v":1897659.7457999997,"d":"$1,897,659.75"},{"v":4622862.6358,"d":"$4,622,862.64"},{"v":680546.6,"d":"$680,546.60"},{"v":3942316.0357999993,"d":"$3,942,316.04"},{"v":4554807.975799999,"d":"$4,554,807.98"},{"v":153102.6,"d":"$153,102.60"},{"v":153102.6,"d":"$153,102.60"},{"v":159701.85,"d":"$159,701.85"},{"v":159701.85,"d":"$159,701.85"},{"v":0,"d":"$0.00"},{"v":0,"d":"$0.00"},{"v":0,"d":"$0.00"},{"v":0,"d":"$0.00"},{"v":0,"d":"$0.00"},{"v":334581.97,"d":"$334,581.97"},{"v":135530.22,"d":"$135,530.22"},{"v":51666.34,"d":"$51,666.34"},{"v":1147387.4300000002,"d":"$1,147,387.43"},{"v":9711401.92,"d":"$9,711,401.92"},{"v":403102.22,"d":"$403,102.22"},{"v":0,"d":"$0.00"},{"v":265473.63999999996,"d":"$265,473.64"},{"v":9711401.865799999,"d":"$9,711,401.87"}]
["47098005026","STERLING C U DIST 5",3139.95,{"v":44107229.81,"d":"$44,107,229.81"},{"v":36203747.64,"d":"$36,203,747.64"},{"v":0.8208120935264875,"d":"82%"},2,{"v":232694.87,"d":"$232,694.87"},{"v":16168920.160000002,"d":"$16,168,920.16"},{"v":16401615.030000001,"d":"$16,401,615.03"},{"v":0.9,"d":"0.90"},{"v":9869076.02,"d":"$9,869,076.02"},{"v":2408353.47,"d":"$2,408,353.47"},{"v":1032389.18,"d":"$1,032,389.18"},{"v":417495.74,"d":"$417,495.74"},{"v":348768.9,"d":"$348,768.90"},{"v":721444.23,"d":"$721,444.23"},{"v":230095.2,"d":"$230,095.20"},{"v":387611.1,"d":"$387,611.10"},{"v":463772.16,"d":"$463,772.16"},{"v":279347.31,"d":"$279,347.31"},{"v":688020.48,"d":"$688,020.48"},{"v":592387.2,"d":"$592,387.20"},{"v":465115.05,"d":"$465,115.05"},{"v":17903876.04,"d":"$17,903,876.04"},{"v":280608.3,"d":"$280,608.30"},{"v":392493.75,"d":"$392,493.75"},{"v":1020483.75,"d":"$1,020,483.75"},{"v":106758.3,"d":"$106,758.30"},{"v":1792911.4499999997,"d":"$1,792,911.45"},{"v":1226680.87,"d":"$1,226,680.87"},{"v":4273471.949999999,"d":"$4,273,471.95"},{"v":2942133.15,"d":"$2,942,133.15"},{"v":8677943.746799998,"d":"$8,677,943.75"},{"v":20713485.266799998,"d":"$20,713,485.27"},{"v":2988855.6,"d":"$2,988,855.60"},{"v":17724629.666799996,"d":"$17,724,629.67"},{"v":20414599.706799995,"d":"$20,414,599.71"},{"v":753634.35,"d":"$753,634.35"},{"v":753634.35,"d":"$753,634.35"},{"v":785310.75,"d":"$785,310.75"},{"v":785310.75,"d":"$785,310.75"},{"v":78531.07,"d":"$78,531.07"},{"v":78531.07,"d":"$78,531.07"},{"v":81830.7,"d":"$81,830.70"},{"v":81830.7,"d":"$81,830.70"},{"v":98328.82,"d":"$98,328.82"},{"v":1468993.05,"d":"$1,468,993.05"},{"v":595049.86,"d":"$595,049.86"},{"v":227768.53,"d":"$227,768.53"},{"v":5788754.000000001,"d":"$5,788,754.00"},{"v":44107229.81,"d":"$44,107,229.81"},{"v":2825384.0000000005,"d":"$2,825,384.00"},{"v":124598.8,"d":"$124,598.80"},{"v":1296834.5799999998,"d":"$1,296,834.58"},{"v":44107229.74679999,"d":"$44,107,229.75"}]
["47098006026","MORRISON COMM UNIT SCH DIST 6",952.79,{"v":12610217.96,"d":"$12,610,217.96"},{"v":9725178.15,"d":"$9,725,178.15"},{"v":0.7712141202355554,"d":"77%"},1,{"v":91052.63,"d":"$91,052.63"},{"v":3348001.11,"d":"$3,348,001.11"},{"v":3439053.7399999998,"d":"$3,439,053.74"},{"v":0.9,"d":"0.90"},{"v":2893517.34,"d":"$2,893,517.34"},{"v":701386.43,"d":"$701,386.43"},{"v":312057.27,"d":"$312,057.27"},{"v":126371.97,"d":"$126,371.97"},{"v":97278.09,"d":"$97,278.09"},{"v":216778.71,"d":"$216,778.71"},{"v":69358.84,"d":"$69,358.84"},{"v":117352.6,"d":"$117,352.60"},{"v":140580.93,"d":"$140,580.93"},{"v":84472.48,"d":"$84,472.48"},{"v":208556.2,"d":"$208,556.20"},{"v":179567.37,"d":"$179,567.37"},{"v":140817.59,"d":"$140,817.59"},{"v":5288095.82,"d":"$5,288,095.82"},{"v":85406.4,"d":"$85,406.40"},{"v":119098.75,"d":"$119,098.75"},{"v":309656.75,"d":"$309,656.75"},{"v":32394.859999999997,"d":"$32,394.86"},{"v":544043.09,"d":"$544,043.09"},{"v":365111.77999999997,"d":"$365,111.78"},{"v":1296747.19,"d":"$1,296,747.19"},{"v":892764.23,"d":"$892,764.23"},{"v":2443664.64156,"d":"$2,443,664.64"},{"v":6088887.69156,"d":"$6,088,887.69"},{"v":906941.74,"d":"$906,941.74"},{"v":5181945.95156,"d":"$5,181,945.95"},{"v":5998193.5115600005,"d":"$5,998,193.51"},{"v":153762.52,"d":"$153,762.52"},{"v":153762.52,"d":"$153,762.52"},{"v":160361.77,"d":"$160,361.77"},{"v":160361.77,"d":"$160,361.77"},{"v":0,"d":"$0.00"},{"v":0,"d":"$0.00"},{"v":0,"d":"$0.00"},{"v":0,"d":"$0.00"},{"v":659.92,"d":"$659.92"},{"v":445449.37,"d":"$445,449.37"},{"v":180439.65,"d":"$180,439.65"},{"v":69131.02,"d":"$69,131.02"},{"v":1323928.54,"d":"$1,323,928.54"},{"v":12610217.96,"d":"$12,610,217.96"},{"v":228253.89,"d":"$228,253.89"},{"v":0,"d":"$0.00"},{"v":282072.8,"d":"$282,072.80"},{"v":12610217.87156,"d":"$12,610,217.87"}]
["47098013002","ROCK FALLS ELEMENTARY SCH DIST 13",774.38,{"v":11506016.9,"d":"$11,506,016.90"},{"v":9139586.41,"d":"$9,139,586.41"},{"v":0.7943310434386724,"d":"79%"},2,{"v":94564.81,"d":"$94,564.81"},{"v":7135971.600000001,"d":"$7,135,971.60"},{"v":7230536.41,"d":"$7,230,536.41"},{"v":0.9,"d":"0.90"},{"v":2591975.61,"d":"$2,591,975.61"},{"v":518395.12,"d":"$518,395.12"},{"v":242252.44,"d":"$242,252.44"},{"v":107319.08,"d":"$107,319.08"},{"v":97890.55,"d":"$97,890.55"},{"v":147452.14,"d":"$147,452.14"},{"v":56698.1,"d":"$56,698.10"},{"v":91690.07,"d":"$91,690.07"},{"v":123914.12,"d":"$123,914.12"},{"v":68700.72,"d":"$68,700.72"},{"v":183830.47,"d":"$183,830.47"},{"v":158278.45,"d":"$158,278.45"},{"v":110023.76,"d":"$110,023.76"},{"v":4498420.63,"d":"$4,498,420.63"},{"v":68584.5,"d":"$68,584.50"},{"v":96797.5,"d":"$96,797.50"},{"v":251673.5,"d":"$251,673.50"},{"v":26328.92,"d":"$26,328.92"},{"v":442170.98,"d":"$442,170.98"},{"v":127886.84999999999,"d":"$127,886.85"},{"v":1053931.18,"d":"$1,053,931.18"},{"v":725594.0599999999,"d":"$725,594.06"},{"v":2338068.9253199995,"d":"$2,338,068.93"},{"v":5131036.41532,"d":"$5,131,036.42"},{"v":737116.83,"d":"$737,116.83"},{"v":4393919.58532,"d":"$4,393,919.59"},{"v":5057324.725319999,"d":"$5,057,324.73"},{"v":302905.57,"d":"$302,905.57"},{"v":302905.57,"d":"$302,905.57"},{"v":315444.15,"d":"$315,444.15"},{"v":315444.15,"d":"$315,444.15"},{"v":27716.85,"d":"$27,716.85"},{"v":27716.85,"d":"$27,716.85"},{"v":29036.7,"d":"$29,036.70"},{"v":29036.7,"d":"$29,036.70"},{"v":34976.02,"d":"$34,976.02"},{"v":362298.82,"d":"$362,298.82"},{"v":146757.58,"d":"$146,757.58"},{"v":56032.51,"d":"$56,032.51"},{"v":1950271.4700000002,"d":"$1,950,271.47"},{"v":11506016.9,"d":"$11,506,016.90"},{"v":1841505.5199999998,"d":"$1,841,505.52"},{"v":35397.219999999994,"d":"$35,397.22"},{"v":384586.37,"d":"$384,586.37"},{"v":11506016.82532,"d":"$11,506,016.83"}]
["47098020002","EAST COLOMA - NELSON CESD 20",226.38,{"v":3014645.71,"d":"$3,014,645.71"},{"v":3237873.33,"d":"$3,237,873.33"},{"v":1.074047712890282,"d":"107%"},4,{"v":192.02,"d":"$192.02"},{"v":797725.34,"d":"$797,725.34"},{"v":797917.36,"d":"$797,917.36"},{"v":0.9,"d":"0.90"},{"v":713577.78,"d":"$713,577.78"},{"v":142715.55,"d":"$142,715.55"},{"v":70290.86,"d":"$70,290.86"},{"v":31379.85,"d":"$31,379.85"},{"v":25348.7,"d":"$25,348.70"},{"v":42612.31,"d":"$42,612.31"},{"v":15963.54,"d":"$15,963.54"},{"v":26731.8,"d":"$26,731.80"},{"v":36232.2,"d":"$36,232.20"},{"v":19781.53,"d":"$19,781.53"},{"v":53751.6,"d":"$53,751.60"},{"v":46280.25,"d":"$46,280.25"},{"v":32076.9,"d":"$32,076.90"},{"v":1256742.87,"d":"$1,256,742.87"},{"v":20367,"d":"$20,367.00"},{"v":28297.499999999996,"d":"$28,297.50"},{"v":73573.5,"d":"$73,573.50"},{"v":7696.919999999998,"d":"$7,696.92"},{"v":64631.49,"d":"$64,631.49"},{"v":37793.34,"d":"$37,793.34"},{"v":308103.17999999993,"d":"$308,103.18"},{"v":212118.06,"d":"$212,118.06"},{"v":613050.65232,"d":"$613,050.65"},{"v":1365631.64232,"d":"$1,365,631.64"},{"v":215486.59,"d":"$215,486.59"},{"v":1150145.0523199998,"d":"$1,150,145.05"},{"v":1344082.9823199997,"d":"$1,344,082.98"},{"v":54113.85,"d":"$54,113.85"},{"v":54113.85,"d":"$54,113.85"},{"v":56753.55,"d":"$56,753.55"},{"v":56753.55,"d":"$56,753.55"},{"v":5279.4,"d":"$5,279.40"},{"v":5279.4,"d":"$5,279.40"},{"v":5279.4,"d":"$5,279.40"},{"v":5279.4,"d":"$5,279.40"},{"v":6599.25,"d":"$6,599.25"},{"v":105588,"d":"$105,588.00"},{"v":42770.88,"d":"$42,770.88"},{"v":16009.29,"d":"$16,009.29"},{"v":413819.81999999995,"d":"$413,819.82"},{"v":3014645.71,"d":"$3,014,645.71"},{"v":138777.27,"d":"$138,777.27"},{"v":130.56,"d":"$130.56"},{"v":82352.62999999998,"d":"$82,352.63"},{"v":3014645.6723199994,"d":"$3,014,645.67"}]
["47098145004","MONTMORENCY C C SCH DIST 145",222.63,{"v":2755234.6,"d":"$2,755,234.60"},{"v":2784533.1500000004,"d":"$2,784,533.15"},{"v":1.01063377688419,"d":"101%"},4,{"v":175.5,"d":"$175.50"},{"v":970575.5299999999,"d":"$970,575.53"},{"v":970751.0299999999,"d":"$970,751.03"},{"v":0.9,"d":"0.90"},{"v":666508.01,"d":"$666,508.01"},{"v":133301.6,"d":"$133,301.60"},{"v":69035.67,"d":"$69,035.67"},{"v":30124.65,"d":"$30,124.65"},{"v":22514.31,"d":"$22,514.31"},{"v":42612.31,"d":"$42,612.31"},{"v":15413.07,"d":"$15,413.07"},{"v":26197.16,"d":"$26,197.16"},{"v":34782.91,"d":"$34,782.91"},{"v":19514.21,"d":"$19,514.21"},{"v":51601.53,"d":"$51,601.53"},{"v":44429.04,"d":"$44,429.04"},{"v":31435.36,"d":"$31,435.36"},{"v":1187469.8300000003,"d":"$1,187,469.83"},{"v":19856.699999999997,"d":"$19,856.70"},{"v":27828.75,"d":"$27,828.75"},{"v":72354.75,"d":"$72,354.75"},{"v":7569.42,"d":"$7,569.42"},{"v":63560.86,"d":"$63,560.86"},{"v":37580.59,"d":"$37,580.59"},{"v":302999.43,"d":"$302,999.43"},{"v":208604.31,"d":"$208,604.31"},{"v":551070.6313199999,"d":"$551,070.63"},{"v":1291425.44132,"d":"$1,291,425.44"},{"v":211917.04,"d":"$211,917.04"},{"v":1079508.40132,"d":"$1,079,508.40"},{"v":1270233.73132,"d":"$1,270,233.73"},{"v":32996.25,"d":"$32,996.25"},{"v":32996.25,"d":"$32,996.25"},{"v":34976.02,"d":"$34,976.02"},{"v":34976.02,"d":"$34,976.02"},{"v":0,"d":"$0.00"},{"v":0,"d":"$0.00"},{"v":0,"d":"$0.00"},{"v":0,"d":"$0.00"},{"v":0,"d":"$0.00"},{"v":103608.22,"d":"$103,608.22"},{"v":41968.92,"d":"$41,968.92"},{"v":16009.29,"d":"$16,009.29"},{"v":297530.97,"d":"$297,530.97"},{"v":2755234.6,"d":"$2,755,234.60"},{"v":59473.42,"d":"$59,473.42"},{"v":0,"d":"$0.00"},{"v":82571.21,"d":"$82,571.21"},{"v":2755234.53132,"d":"$2,755,234.53"}]
["47098301017","ROCK FALLS TWP H S DIST 301",593.49,{"v":9000889.87,"d":"$9,000,889.87"},{"v":7466379.95,"d":"$7,466,379.95"},{"v":0.8295157543128567,"d":"83%"},2,{"v":45338.7,"d":"$45,338.70"},{"v":3827421.569999999,"d":"$3,827,421.57"},{"v":3872760.269999999,"d":"$3,872,760.27"},{"v":0.9,"d":"0.90"},{"v":1933100.91,"d":"$1,933,100.91"},{"v":644302.53,"d":"$644,302.53"},{"v":213666.12,"d":"$213,666.12"},{"v":70740.81,"d":"$70,740.81"},{"v":66468.34,"d":"$66,468.34"},{"v":182712.78,"d":"$182,712.78"},{"v":43486.89,"d":"$43,486.89"},{"v":79126.12,"d":"$79,126.12"},{"v":71015.11,"d":"$71,015.11"},{"v":52661.64,"d":"$52,661.64"},{"v":105353.13,"d":"$105,353.13"},{"v":90709.29,"d":"$90,709.29"},{"v":94947.62,"d":"$94,947.62"},{"v":3648291.29,"d":"$3,648,291.29"},{"v":53414.1,"d":"$53,414.10"},{"v":74186.25,"d":"$74,186.25"},{"v":192884.25,"d":"$192,884.25"},{"v":20178.66,"d":"$20,178.66"},{"v":338882.79,"d":"$338,882.79"},{"v":509807.91000000003,"d":"$509,807.91"},{"v":807739.89,"d":"$807,739.89"},{"v":556100.13,"d":"$556,100.13"},{"v":1736539.70136,"d":"$1,736,539.70"},{"v":4289733.68136,"d":"$4,289,733.68"},{"v":564931.26,"d":"$564,931.26"},{"v":3724802.421360001,"d":"$3,724,802.42"},{"v":4233240.551360001,"d":"$4,233,240.55"},{"v":161021.7,"d":"$161,021.70"},{"v":161021.7,"d":"$161,021.70"},{"v":167620.95,"d":"$167,620.95"},{"v":167620.95,"d":"$167,620.95"},{"v":5279.4,"d":"$5,279.40"},{"v":5279.4,"d":"$5,279.40"},{"v":5939.32,"d":"$5,939.32"},{"v":5939.32,"d":"$5,939.32"},{"v":7259.17,"d":"$7,259.17"},{"v":277168.5,"d":"$277,168.50"},{"v":112273.56,"d":"$112,273.56"},{"v":42934,"d":"$42,934.00"},{"v":1119357.97,"d":"$1,119,357.97"},{"v":9000889.87,"d":"$9,000,889.87"},{"v":595025.87,"d":"$595,025.87"},{"v":2068.23,"d":"$2,068.23"},{"v":230170.04,"d":"$230,170.04"},{"v":9000889.811360002,"d":"$9,000,889.81"}]
[null,"ALT SCH-PEORIA ROE",34.99,{"v":514136.4,"d":"$514,136.40"},{"v":449638.44,"d":"$449,638.44"},{"v":0.874550877938228,"d":"87%"},2,{"v":1056.04,"d":"$1,056.04"},{"v":398224.8,"d":"$398,224.80"},{"v":399280.83999999997,"d":"$399,280.84"},{"v":0.9,"d":"0.90"},{"v":112607.82,"d":"$112,607.82"},{"v":37532.17,"d":"$37,532.17"},{"v":12271.36,"d":"$12,271.36"},{"v":3609.22,"d":"$3,609.22"},{"v":3772.26,"d":"$3,772.26"},{"v":10022.22,"d":"$10,022.22"},{"v":2201.86,"d":"$2,201.86"},{"v":4544.4,"d":"$4,544.40"},{"v":3623.22,"d":"$3,623.22"},{"v":2940.49,"d":"$2,940.49"},{"v":5375.16,"d":"$5,375.16"},{"v":4628.02,"d":"$4,628.02"},{"v":5453.07,"d":"$5,453.07"},{"v":208581.26999999996,"d":"$208,581.27"},{"v":3149.1000000000004,"d":"$3,149.10"},{"v":4373.75,"d":"$4,373.75"},{"v":11371.75,"d":"$11,371.75"},{"v":1189.66,"d":"$1,189.66"},{"v":19979.29,"d":"$19,979.29"},{"v":30056.410000000003,"d":"$30,056.41"},{"v":47621.39,"d":"$47,621.39"},{"v":32785.630000000005,"d":"$32,785.63"},{"v":98285.85935999999,"d":"$98,285.86"},{"v":248812.83935999998,"d":"$248,812.84"},{"v":33306.28,"d":"$33,306.28"},{"v":215506.55936,"d":"$215,506.56"},{"v":245482.20936,"d":"$245,482.21"},{"v":8579.02,"d":"$8,579.02"},{"v":8579.02,"d":"$8,579.02"},{"v":9238.95,"d":"$9,238.95"},{"v":9238.95,"d":"$9,238.95"},{"v":0,"d":"$0.00"},{"v":0,"d":"$0.00"},{"v":0,"d":"$0.00"},{"v":0,"d":"$0.00"},{"v":0,"d":"$0.00"},{"v":15838.2,"d":"$15,838.20"},{"v":6415.63,"d":"$6,415.63"},{"v":2183.08,"d":"$2,183.08"},{"v":60072.85,"d":"$60,072.85"},{"v":514136.4,"d":"$514,136.40"},{"v":6745.080000000001,"d":"$6,745.08"},{"v":0,"d":"$0.00"},{"v":2947.32,"d":"$2,947.32"},{"v":514136.32936,"d":"$514,136.33"}]
[null,"SAFE SCH-PEORIA ROE",48,{"v":626674.25,"d":"$626,674.25"},{"v":352146.94,"d":"$352,146.94"},{"v":0.5619298064345232,"d":"56%"},1,{"v":53549.05,"d":"$53,549.05"},{"v":289479.52,"d":"$289,479.52"},{"v":343028.57,"d":"$343,028.57"},{"v":0.9,"d":"0.90"},{"v":136379.21,"d":"$136,379.21"},{"v":29392.72,"d":"$29,392.72"},{"v":14623.22,"d":"$14,623.22"},{"v":5648.37,"d":"$5,648.37"},{"v":4900.68,"d":"$4,900.68"},{"v":12364.05,"d":"$12,364.05"},{"v":2752.33,"d":"$2,752.33"},{"v":5346.36,"d":"$5,346.36"},{"v":6521.79,"d":"$6,521.79"},{"v":3742.45,"d":"$3,742.45"},{"v":9675.28,"d":"$9,675.28"},{"v":8330.44,"d":"$8,330.44"},{"v":6415.38,"d":"$6,415.38"},{"v":246092.27999999997,"d":"$246,092.28"},{"v":4320,"d":"$4,320.00"},{"v":6000,"d":"$6,000.00"},{"v":15600,"d":"$15,600.00"},{"v":1632,"d":"$1,632.00"},{"v":27408,"d":"$27,408.00"},{"v":14754,"d":"$14,754.00"},{"v":65328,"d":"$65,328.00"},{"v":44976,"d":"$44,976.00"},{"v":121861.45199999999,"d":"$121,861.45"},{"v":301879.452,"d":"$301,879.45"},{"v":45690.24,"d":"$45,690.24"},{"v":256189.212,"d":"$256,189.21"},{"v":297310.422,"d":"$297,310.42"},{"v":11878.65,"d":"$11,878.65"},{"v":11878.65,"d":"$11,878.65"},{"v":12538.57,"d":"$12,538.57"},{"v":12538.57,"d":"$12,538.57"},{"v":0,"d":"$0.00"},{"v":0,"d":"$0.00"},{"v":0,"d":"$0.00"},{"v":0,"d":"$0.00"},{"v":0,"d":"$0.00"},{"v":22437.45,"d":"$22,437.45"},{"v":9088.81,"d":"$9,088.81"},{"v":2910.78,"d":"$2,910.78"},{"v":83271.48,"d":"$83,271.48"},{"v":626674.25,"d":"$626,674.25"},{"v":9323.68,"d":"$9,323.68"},{"v":0,"d":"$0.00"},{"v":4778.3,"d":"$4,778.30"},{"v":626674.182,"d":"$626,674.18"}]
["48072062002","PLEASANT VALLEY SCH DIST 62",430.81,{"v":6368485.5,"d":"$6,368,485.50"},{"v":4544106.46,"d":"$4,544,106.46"},{"v":0.7135301572092768,"d":"71%"},1,{"v":195625.18,"d":"$195,625.18"},{"v":3655436.2999999993,"d":"$3,655,436.30"},{"v":3851061.4799999995,"d":"$3,851,061.48"},{"v":0.9,"d":"0.90"},{"v":1462301.01,"d":"$1,462,301.01"},{"v":292460.2,"d":"$292,460.20"},{"v":134305.75,"d":"$134,305.75"},{"v":59621.71,"d":"$59,621.71"},{"v":54202.48,"d":"$54,202.48"},{"v":81166.32,"d":"$81,166.32"},{"v":31376.61,"d":"$31,376.61"},{"v":51057.73,"d":"$51,057.73"},{"v":68841.18,"d":"$68,841.18"},{"v":37959.15,"d":"$37,959.15"},{"v":102128.04,"d":"$102,128.04"},{"v":87932.47,"d":"$87,932.47"},{"v":61266.87,"d":"$61,266.87"},{"v":2524619.5200000005,"d":"$2,524,619.52"},{"v":38097.9,"d":"$38,097.90"},{"v":53851.25,"d":"$53,851.25"},{"v":140013.25,"d":"$140,013.25"},{"v":14647.54,"d":"$14,647.54"},{"v":245992.51,"d":"$245,992.51"},{"v":69963.75,"d":"$69,963.75"},{"v":586332.4099999999,"d":"$586,332.41"},{"v":403668.97000000003,"d":"$403,668.97"},{"v":1292948.71584,"d":"$1,292,948.72"},{"v":2845516.29584,"d":"$2,845,516.30"},{"v":410079.42,"d":"$410,079.42"},{"v":2435436.8758399994,"d":"$2,435,436.88"},{"v":2804508.3458399996,"d":"$2,804,508.35"},{"v":174220.2,"d":"$174,220.20"},{"v":174220.2,"d":"$174,220.20"},{"v":181479.37,"d":"$181,479.37"},{"v":181479.37,"d":"$181,479.37"},{"v":2639.7,"d":"$2,639.70"},{"v":2639.7,"d":"$2,639.70"},{"v":2639.7,"d":"$2,639.70"},{"v":2639.7,"d":"$2,639.70"},{"v":3299.62,"d":"$3,299.62"},{"v":201277.12,"d":"$201,277.12"},{"v":81531.99,"d":"$81,531.99"},{"v":31290.88,"d":"$31,290.88"},{"v":1039357.5499999998,"d":"$1,039,357.55"},{"v":6368485.5,"d":"$6,368,485.50"},{"v":1214545.51,"d":"$1,214,545.51"},{"v":1248.02,"d":"$1,248.02"},{"v":162702.24000000002,"d":"$162,702.24"},{"v":6368485.41584,"d":"$6,368,485.42"}]
["48072063002","NORWOOD ELEM SCHOOL DIST 63",386.73,{"v":5162795.88,"d":"$5,162,795.88"},{"v":3720090.45,"d":"$3,720,090.45"},{"v":0.7205573368513651,"d":"72%"},1,{"v":139829.78,"d":"$139,829.78"},{"v":2313477.3400000003,"d":"$2,313,477.34"},{"v":2453307.12,"d":"$2,453,307.12"},{"v":0.9,"d":"0.90"},{"v":1200593.06,"d":"$1,200,593.06"},{"v":240118.6,"d":"$240,118.60"},{"v":121126.22,"d":"$121,126.22"},{"v":53345.74,"d":"$53,345.74"},{"v":42145.33,"d":"$42,145.33"},{"v":73049.68,"d":"$73,049.68"},{"v":28073.81,"d":"$28,073.81"},{"v":45711.37,"d":"$45,711.37"},{"v":61594.74,"d":"$61,594.74"},{"v":34216.7,"d":"$34,216.70"},{"v":91377.72,"d":"$91,377.72"},{"v":78676.42,"d":"$78,676.42"},{"v":54851.49,"d":"$54,851.49"},{"v":2124880.8800000004,"d":"$2,124,880.88"},{"v":34213.5,"d":"$34,213.50"},{"v":48341.25,"d":"$48,341.25"},{"v":125687.25,"d":"$125,687.25"},{"v":13148.82,"d":"$13,148.82"},{"v":220822.83000000002,"d":"$220,822.83"},{"v":63720.59,"d":"$63,720.59"},{"v":526339.53,"d":"$526,339.53"},{"v":362366.01,"d":"$362,366.01"},{"v":1023532.83072,"d":"$1,023,532.83"},{"v":2418172.61072,"d":"$2,418,172.61"},{"v":368120.55,"d":"$368,120.55"},{"v":2050052.0607199997,"d":"$2,050,052.06"},{"v":2381360.5507199997,"d":"$2,381,360.55"},{"v":91729.57,"d":"$91,729.57"},{"v":91729.57,"d":"$91,729.57"},{"v":95689.12,"d":"$95,689.12"},{"v":95689.12,"d":"$95,689.12"},{"v":0,"d":"$0.00"},{"v":0,"d":"$0.00"},{"v":0,"d":"$0.00"},{"v":0,"d":"$0.00"},{"v":0,"d":"$0.00"},{"v":180819.45,"d":"$180,819.45"},{"v":73245.13,"d":"$73,245.13"},{"v":27652.41,"d":"$27,652.41"},{"v":656554.3700000001,"d":"$656,554.37"},{"v":5162795.88,"d":"$5,162,795.88"},{"v":389036.57999999996,"d":"$389,036.58"},{"v":0,"d":"$0.00"},{"v":168462.31000000003,"d":"$168,462.31"},{"v":5162795.80072,"d":"$5,162,795.80"}]
["48072066002","BARTONVILLE SCHOOL DIST 66",212.57,{"v":2863761.34,"d":"$2,863,761.34"},{"v":2781353.5,"d":"$2,781,353.50"},{"v":0.9712239149090546,"d":"97%"},3,{"v":3254.4,"d":"$3,254.40"},{"v":869514.63,"d":"$869,514.63"},{"v":872769.03,"d":"$872,769.03"},{"v":0.9,"d":"0.90"},{"v":668390.8,"d":"$668,390.80"},{"v":133678.16,"d":"$133,678.16"},{"v":65897.68,"d":"$65,897.68"},{"v":28869.46,"d":"$28,869.46"},{"v":23521.53,"d":"$23,521.53"},{"v":39906.77,"d":"$39,906.77"},{"v":14862.6,"d":"$14,862.60"},{"v":24860.57,"d":"$24,860.57"},{"v":33333.62,"d":"$33,333.62"},{"v":18444.94,"d":"$18,444.94"},{"v":49451.47,"d":"$49,451.47"},{"v":42577.83,"d":"$42,577.83"},{"v":29831.51,"d":"$29,831.51"},{"v":1173626.9400000002,"d":"$1,173,626.94"},{"v":18809.1,"d":"$18,809.10"},{"v":26571.25,"d":"$26,571.25"},{"v":69085.25,"d":"$69,085.25"},{"v":7227.379999999999,"d":"$7,227.38"},{"v":121377.47,"d":"$121,377.47"},{"v":35030.67,"d":"$35,030.67"},{"v":289307.77,"d":"$289,307.77"},{"v":199178.09,"d":"$199,178.09"},{"v":568998.4894799999,"d":"$568,998.49"},{"v":1335585.46948,"d":"$1,335,585.47"},{"v":202341.13,"d":"$202,341.13"},{"v":1133244.3394799996,"d":"$1,133,244.34"},{"v":1315351.3494799996,"d":"$1,315,351.35"},{"v":54113.85,"d":"$54,113.85"},{"v":54113.85,"d":"$54,113.85"},{"v":56093.62,"d":"$56,093.62"},{"v":56093.62,"d":"$56,093.62"},{"v":0,"d":"$0.00"},{"v":0,"d":"$0.00"},{"v":0,"d":"$0.00"},{"v":0,"d":"$0.00"},{"v":0,"d":"$0.00"},{"v":98988.75,"d":"$98,988.75"},{"v":40097.7,"d":"$40,097.70"},{"v":15281.59,"d":"$15,281.59"},{"v":374782.98000000004,"d":"$374,782.98"},{"v":2863761.34,"d":"$2,863,761.34"},{"v":261861.25,"d":"$261,861.25"},{"v":0,"d":"$0.00"},{"v":69948.23000000001,"d":"$69,948.23"},{"v":2863761.26948,"d":"$2,863,761.27"}]
["48072068002","OAK GROVE SCHOOL DIST 68 BARTONVILLE",275.75,{"v":3588245.77,"d":"$3,588,245.77"},{"v":3201669.3200000003,"d":"$3,201,669.32"},{"v":0.8922658940388022,"d":"89%"},2,{"v":5721.71,"d":"$5,721.71"},{"v":1206274.01,"d":"$1,206,274.01"},{"v":1211995.72,"d":"$1,211,995.72"},{"v":0.9,"d":"0.90"},{"v":852904.32,"d":"$852,904.32"},{"v":170580.86,"d":"$170,580.86"},{"v":85980.78,"d":"$85,980.78"},{"v":37655.82,"d":"$37,655.82"},{"v":29911.12,"d":"$29,911.12"},{"v":51405.33,"d":"$51,405.33"},{"v":19266.34,"d":"$19,266.34"},{"v":32612.79,"d":"$32,612.79"},{"v":43478.64,"d":"$43,478.64"},{"v":24325.93,"d":"$24,325.93"},{"v":64501.92,"d":"$64,501.92"},{"v":55536.3,"d":"$55,536.30"},{"v":39133.81,"d":"$39,133.81"},{"v":1507293.9600000002,"d":"$1,507,293.96"},{"v":24345,"d":"$24,345.00"},{"v":34468.75,"d":"$34,468.75"},{"v":89618.75,"d":"$89,618.75"},{"v":9375.5,"d":"$9,375.50"},{"v":78726.62,"d":"$78,726.62"},{"v":44786.5,"d":"$44,786.50"},{"v":375295.75,"d":"$375,295.75"},{"v":258377.75,"d":"$258,377.75"},{"v":726455.235,"d":"$726,455.24"},{"v":1641449.855,"d":"$1,641,449.86"},{"v":262480.91,"d":"$262,480.91"},{"v":1378968.945,"d":"$1,378,968.95"},{"v":1615201.7550000001,"d":"$1,615,201.76"},{"v":64672.65,"d":"$64,672.65"},{"v":64672.65,"d":"$64,672.65"},{"v":67972.27,"d":"$67,972.27"},{"v":67972.27,"d":"$67,972.27"},{"v":0,"d":"$0.00"},{"v":0,"d":"$0.00"},{"v":0,"d":"$0.00"},{"v":0,"d":"$0.00"},{"v":0,"d":"$0.00"},{"v":128685.37,"d":"$128,685.37"},{"v":52127.01,"d":"$52,127.01"},{"v":19647.76,"d":"$19,647.76"},{"v":465749.98000000004,"d":"$465,749.98"},{"v":3588245.77,"d":"$3,588,245.77"},{"v":118210.25000000003,"d":"$118,210.25"},{"v":0,"d":"$0.00"},{"v":92256.87999999999,"d":"$92,256.88"},{"v":3588245.6950000003,"d":"$3,588,245.70"}]
["48072069002","PLEASANT HILL SCHOOL DIST 69",179.47,{"v":2586523.6,"d":"$2,586,523.60"},{"v":2115341.0300000003,"d":"$2,115,341.03"},{"v":0.8178317143520362,"d":"82%"},2,{"v":16606.42,"d":"$16,606.42"},{"v":1633859.82,"d":"$1,633,859.82"},{"v":1650466.24,"d":"$1,650,466.24"},{"v":0.9,"d":"0.90"},{"v":585548,"d":"$585,548.00"},{"v":117109.59,"d":"$117,109.59"},{"v":55856.13,"d":"$55,856.13"},{"v":24476.28,"d":"$24,476.28"},{"v":21752.39,"d":"$21,752.39"},{"v":34495.68,"d":"$34,495.68"},{"v":12660.74,"d":"$12,660.74"},{"v":21118.12,"d":"$21,118.12"},{"v":28261.11,"d":"$28,261.11"},{"v":15771.76,"d":"$15,771.76"},{"v":41926.24,"d":"$41,926.24"},{"v":36098.59,"d":"$36,098.59"},{"v":25340.75,"d":"$25,340.75"},{"v":1020415.38,"d":"$1,020,415.38"},{"v":15949.8,"d":"$15,949.80"},{"v":22433.75,"d":"$22,433.75"},{"v":58327.74999999999,"d":"$58,327.75"},{"v":6101.98,"d":"$6,101.98"},{"v":102477.37,"d":"$102,477.37"},{"v":30356.339999999997,"d":"$30,356.34"},{"v":244258.66999999998,"d":"$244,258.67"},{"v":168163.38999999998,"d":"$168,163.39"},{"v":521884.0150799999,"d":"$521,884.02"},{"v":1169953.0650799999,"d":"$1,169,953.07"},{"v":170833.9,"d":"$170,833.90"},{"v":999119.1650799998,"d":"$999,119.17"},{"v":1152869.67508,"d":"$1,152,869.68"},{"v":63352.8,"d":"$63,352.80"},{"v":63352.8,"d":"$63,352.80"},{"v":65992.5,"d":"$65,992.50"},{"v":65992.5,"d":"$65,992.50"},{"v":4619.47,"d":"$4,619.47"},{"v":4619.47,"d":"$4,619.47"},{"v":4619.47,"d":"$4,619.47"},{"v":4619.47,"d":"$4,619.47"},{"v":5939.32,"d":"$5,939.32"},{"v":83810.47,"d":"$83,810.47"},{"v":33949.38,"d":"$33,949.38"},{"v":12370.81,"d":"$12,370.81"},{"v":413238.4599999999,"d":"$413,238.46"},{"v":2586523.6,"d":"$2,586,523.60"},{"v":323069.35000000003,"d":"$323,069.35"},{"v":1453.74,"d":"$1,453.74"},{"v":83785,"d":"$83,785.00"},{"v":2586523.51508,"d":"$2,586,523.52"}]
["48072070002","MONROE SCHOOL DIST 70",284.64,{"v":3633860.58,"d":"$3,633,860.58"},{"v":2639354.79,"d":"$2,639,354.79"},{"v":0.7263225244596478,"d":"73%"},1,{"v":84144.26,"d":"$84,144.26"},{"v":1014947.9599999998,"d":"$1,014,947.96"},{"v":1099092.2199999997,"d":"$1,099,092.22"},{"v":0.9,"d":"0.90"},{"v":847255.95,"d":"$847,255.95"},{"v":169451.19,"d":"$169,451.19"},{"v":88491.17,"d":"$88,491.17"},{"v":38911.01,"d":"$38,911.01"},{"v":29021.51,"d":"$29,021.51"},{"v":55463.65,"d":"$55,463.65"},{"v":20367.27,"d":"$20,367.27"},{"v":33682.06,"d":"$33,682.06"},{"v":44927.92,"d":"$44,927.92"},{"v":25127.89,"d":"$25,127.89"},{"v":66651.98,"d":"$66,651.98"},{"v":57387.51,"d":"$57,387.51"},{"v":40416.89,"d":"$40,416.89"},{"v":1517155.9999999995,"d":"$1,517,156.00"},{"v":25288.199999999997,"d":"$25,288.20"},{"v":35580,"d":"$35,580.00"},{"v":92507.99999999999,"d":"$92,508.00"},{"v":9677.759999999998,"d":"$9,677.76"},{"v":162529.44,"d":"$162,529.44"},{"v":48906.34,"d":"$48,906.34"},{"v":387395.0399999999,"d":"$387,395.04"},{"v":266707.67999999993,"d":"$266,707.68"},{"v":711797.4339600002,"d":"$711,797.43"},{"v":1740389.89396,"d":"$1,740,389.89"},{"v":270943.12,"d":"$270,943.12"},{"v":1469446.77396,"d":"$1,469,446.77"},{"v":1713295.57396,"d":"$1,713,295.57"},{"v":48174.52,"d":"$48,174.52"},{"v":48174.52,"d":"$48,174.52"},{"v":50154.3,"d":"$50,154.30"},{"v":50154.3,"d":"$50,154.30"},{"v":0,"d":"$0.00"},{"v":0,"d":"$0.00"},{"v":0,"d":"$0.00"},{"v":0,"d":"$0.00"},{"v":0,"d":"$0.00"},{"v":132644.92,"d":"$132,644.92"},{"v":53730.91,"d":"$53,730.91"},{"v":20375.46,"d":"$20,375.46"},{"v":403408.9300000001,"d":"$403,408.93"},{"v":3633860.58,"d":"$3,633,860.58"},{"v":72059.16999999998,"d":"$72,059.17"},{"v":0,"d":"$0.00"},{"v":84686.26999999999,"d":"$84,686.27"},{"v":3633860.50396,"d":"$3,633,860.50"}]
["48072150025","PEORIA SCHOOL DISTRICT 150",12197.55,{"v":186779374.77,"d":"$186,779,374.77"},{"v":153525609.3,"d":"$153,525,609.30"},{"v":0.8219623258138182,"d":"82%"},2,{"v":1009240.36,"d":"$1,009,240.36"},{"v":71033713.47000001,"d":"$71,033,713.47"},{"v":72042953.83000001,"d":"$72,042,953.83"},{"v":0.9,"d":"0.90"},{"v":41122317.33,"d":"$41,122,317.33"},{"v":9947702.16,"d":"$9,947,702.16"},{"v":4004587.62,"d":"$4,004,587.62"},{"v":1627741.14,"d":"$1,627,741.14"},{"v":1535794.78,"d":"$1,535,794.78"},{"v":2760579.46,"d":"$2,760,579.46"},{"v":894508.87,"d":"$894,508.87"},{"v":1504733.02,"d":"$1,504,733.02"},{"v":1810885.35,"d":"$1,810,885.35"},{"v":1086380.35,"d":"$1,086,380.35"},{"v":2686504.96,"d":"$2,686,504.96"},{"v":2313086.89,"d":"$2,313,086.89"},{"v":1805608.7,"d":"$1,805,608.70"},{"v":73100430.63,"d":"$73,100,430.63"},{"v":1088464.5,"d":"$1,088,464.50"},{"v":1524693.75,"d":"$1,524,693.75"},{"v":3964203.75,"d":"$3,964,203.75"},{"v":414716.69999999995,"d":"$414,716.70"},{"v":6964801.050000001,"d":"$6,964,801.05"},{"v":4628722.39,"d":"$4,628,722.39"},{"v":16600865.549999997,"d":"$16,600,865.55"},{"v":11429104.35,"d":"$11,429,104.35"},{"v":37559652.9612,"d":"$37,559,652.96"},{"v":84175225.00119999,"d":"$84,175,225.00"},{"v":11610603.89,"d":"$11,610,603.89"},{"v":72564621.11119999,"d":"$72,564,621.11"},{"v":83014164.61119999,"d":"$83,014,164.61"},{"v":4697346.15,"d":"$4,697,346.15"},{"v":4697346.15,"d":"$4,697,346.15"},{"v":4893343.87,"d":"$4,893,343.87"},{"v":4893343.87,"d":"$4,893,343.87"},{"v":483065.1,"d":"$483,065.10"},{"v":483065.1,"d":"$483,065.10"},{"v":502862.85,"d":"$502,862.85"},{"v":502862.85,"d":"$502,862.85"},{"v":603831.37,"d":"$603,831.37"},{"v":5708351.25,"d":"$5,708,351.25"},{"v":2312300.7,"d":"$2,312,300.70"},{"v":887060.2,"d":"$887,060.20"},{"v":30664779.46000001,"d":"$30,664,779.46"},{"v":186779374.77,"d":"$186,779,374.77"},{"v":31867429.099999998,"d":"$31,867,429.10"},{"v":537746.35,"d":"$537,746.35"},{"v":6270552.990000001,"d":"$6,270,552.99"},{"v":186779374.70119998,"d":"$186,779,374.70"}]
["48072265026","FARMINGTON CENTRAL C U S D 265",1165.61,{"v":15302431.86,"d":"$15,302,431.86"},{"v":11749150.129999999,"d":"$11,749,150.13"},{"v":0.7677962716966478,"d":"77%"},1,{"v":124266.19,"d":"$124,266.19"},{"v":4339751.48,"d":"$4,339,751.48"},{"v":4464017.670000001,"d":"$4,464,017.67"},{"v":0.9,"d":"0.90"},{"v":3500530.42,"d":"$3,500,530.42"},{"v":851751.85,"d":"$851,751.85"},{"v":381881.24,"d":"$381,881.24"},{"v":155117.21,"d":"$155,117.21"},{"v":117384.41,"d":"$117,384.41"},{"v":266096.86,"d":"$266,096.86"},{"v":84771.91,"d":"$84,771.91"},{"v":143549.76,"d":"$143,549.76"},{"v":172465.27,"d":"$172,465.27"},{"v":103452.06,"d":"$103,452.06"},{"v":255857.61,"d":"$255,857.61"},{"v":220293.99,"d":"$220,293.99"},{"v":172252.95,"d":"$172,252.95"},{"v":6425405.54,"d":"$6,425,405.54"},{"v":103697.99999999999,"d":"$103,698.00"},{"v":145701.25,"d":"$145,701.25"},{"v":378823.25,"d":"$378,823.25"},{"v":39630.74,"d":"$39,630.74"},{"v":665563.3099999999,"d":"$665,563.31"},{"v":448495.1599999999,"d":"$448,495.16"},{"v":1586395.21,"d":"$1,586,395.21"},{"v":1092176.57,"d":"$1,092,176.57"},{"v":2958521.20104,"d":"$2,958,521.20"},{"v":7419004.69104,"d":"$7,419,004.69"},{"v":1109520.84,"d":"$1,109,520.84"},{"v":6309483.85104,"d":"$6,309,483.85"},{"v":7308052.60104,"d":"$7,308,052.60"},{"v":175540.05,"d":"$175,540.05"},{"v":175540.05,"d":"$175,540.05"},{"v":183459.15,"d":"$183,459.15"},{"v":183459.15,"d":"$183,459.15"},{"v":0,"d":"$0.00"},{"v":0,"d":"$0.00"},{"v":0,"d":"$0.00"},{"v":0,"d":"$0.00"},{"v":659.92,"d":"$659.92"},{"v":545098.05,"d":"$545,098.05"},{"v":220804.66,"d":"$220,804.66"},{"v":84412.62,"d":"$84,412.62"},{"v":1568973.65,"d":"$1,568,973.65"},{"v":15302431.86,"d":"$15,302,431.86"},{"v":382416.29000000004,"d":"$382,416.29"},{"v":0,"d":"$0.00"},{"v":369407.0500000001,"d":"$369,407.05"},{"v":15302431.791040001,"d":"$15,302,431.79"}]
["48072309026","BRIMFIELD C U SCHOOL DIST 309",616.62,{"v":7715983.96,"d":"$7,715,983.96"},{"v":7049926.760000001,"d":"$7,049,926.76"},{"v":0.9136782549765695,"d":"91%"},3,{"v":8768.52,"d":"$8,768.52"},{"v":1253544.9000000001,"d":"$1,253,544.90"},{"v":1262313.4200000002,"d":"$1,262,313.42"},{"v":0.9,"d":"0.90"},{"v":1782500.88,"d":"$1,782,500.88"},{"v":439924.59,"d":"$439,924.59"},{"v":202568.31,"d":"$202,568.31"},{"v":81120.7,"d":"$81,120.70"},{"v":57518.09,"d":"$57,518.09"},{"v":143219.73,"d":"$143,219.73"},{"v":44587.82,"d":"$44,587.82"},{"v":75918.31,"d":"$75,918.31"},{"v":89855.85,"d":"$89,855.85"},{"v":54800.19,"d":"$54,800.19"},{"v":133303.96,"d":"$133,303.96"},{"v":114775.02,"d":"$114,775.02"},{"v":91098.39,"d":"$91,098.39"},{"v":3311191.84,"d":"$3,311,191.84"},{"v":55196.1,"d":"$55,196.10"},{"v":77077.5,"d":"$77,077.50"},{"v":200401.5,"d":"$200,401.50"},{"v":20965.079999999998,"d":"$20,965.08"},{"v":352090.02,"d":"$352,090.02"},{"v":249248.37,"d":"$249,248.37"},{"v":839219.82,"d":"$839,219.82"},{"v":577772.94,"d":"$577,772.94"},{"v":1468360.69668,"d":"$1,468,360.70"},{"v":3840332.02668,"d":"$3,840,332.03"},{"v":586948.24,"d":"$586,948.24"},{"v":3253383.78668,"d":"$3,253,383.79"},{"v":3781637.19668,"d":"$3,781,637.20"},{"v":41575.27,"d":"$41,575.27"},{"v":41575.27,"d":"$41,575.27"},{"v":43555.05,"d":"$43,555.05"},{"v":43555.05,"d":"$43,555.05"},{"v":659.92,"d":"$659.92"},{"v":659.92,"d":"$659.92"},{"v":659.92,"d":"$659.92"},{"v":659.92,"d":"$659.92"},{"v":659.92,"d":"$659.92"},{"v":288387.22,"d":"$288,387.22"},{"v":116817.96,"d":"$116,817.96"},{"v":44389.39,"d":"$44,389.39"},{"v":623154.81,"d":"$623,154.81"},{"v":7715983.96,"d":"$7,715,983.96"},{"v":46969.00999999999,"d":"$46,969.01"},{"v":20.81,"d":"$20.81"},{"v":158103.06999999995,"d":"$158,103.07"},{"v":7715983.84668,"d":"$7,715,983.85"}]
["48072310016","LIMESTONE COMM HIGH SCH DIST 310",904.15,{"v":13219620.78,"d":"$13,219,620.78"},{"v":13995801.27,"d":"$13,995,801.27"},{"v":1.05871427803544,"d":"106%"},4,{"v":842.06,"d":"$842.06"},{"v":2952909.4,"d":"$2,952,909.40"},{"v":2953751.46,"d":"$2,953,751.46"},{"v":0.9,"d":"0.90"},{"v":2870055.72,"d":"$2,870,055.72"},{"v":956589.57,"d":"$956,589.57"},{"v":326273.94,"d":"$326,273.94"},{"v":108276.75,"d":"$108,276.75"},{"v":95760.8,"d":"$95,760.80"},{"v":278309.34,"d":"$278,309.34"},{"v":66056.04,"d":"$66,056.04"},{"v":120827.73,"d":"$120,827.73"},{"v":108696.6,"d":"$108,696.60"},{"v":80462.71,"d":"$80,462.71"},{"v":161254.8,"d":"$161,254.80"},{"v":138840.75,"d":"$138,840.75"},{"v":144987.58,"d":"$144,987.58"},{"v":5456392.33,"d":"$5,456,392.33"},{"v":81373.5,"d":"$81,373.50"},{"v":113018.75,"d":"$113,018.75"},{"v":293848.75,"d":"$293,848.75"},{"v":30741.1,"d":"$30,741.10"},{"v":516269.65,"d":"$516,269.65"},{"v":776664.85,"d":"$776,664.85"},{"v":1230548.15,"d":"$1,230,548.15"},{"v":847188.5499999999,"d":"$847,188.55"},{"v":2523712.2456,"d":"$2,523,712.25"},{"v":6413365.5456,"d":"$6,413,365.55"},{"v":860642.3,"d":"$860,642.30"},{"v":5552723.245599999,"d":"$5,552,723.25"},{"v":6327301.315599999,"d":"$6,327,301.32"},{"v":190058.4,"d":"$190,058.40"},{"v":190058.4,"d":"$190,058.40"},{"v":197977.5,"d":"$197,977.50"},{"v":197977.5,"d":"$197,977.50"},{"v":0,"d":"$0.00"},{"v":0,"d":"$0.00"},{"v":0,"d":"$0.00"},{"v":0,"d":"$0.00"},{"v":0,"d":"$0.00"},{"v":423011.92,"d":"$423,011.92"},{"v":171350.83,"d":"$171,350.83"},{"v":65492.55,"d":"$65,492.55"},{"v":1435927.1,"d":"$1,435,927.10"},{"v":13219620.78,"d":"$13,219,620.78"},{"v":501567.36999999994,"d":"$501,567.37"},{"v":0,"d":"$0.00"},{"v":265954.11,"d":"$265,954.11"},{"v":13219620.745599998,"d":"$13,219,620.75"}]
["48072316004","LIMESTONE WALTERS C C S DIST 316",194.14,{"v":2357039.52,"d":"$2,357,039.52"},{"v":1750004.2999999998,"d":"$1,750,004.30"},{"v":0.7424586160523943,"d":"74%"},1,{"v":32765.12,"d":"$32,765.12"},{"v":138042.75,"d":"$138,042.75"},{"v":170807.87,"d":"$170,807.87"},{"v":0.9,"d":"0.90"},{"v":562954.5,"d":"$562,954.50"},{"v":112590.9,"d":"$112,590.90"},{"v":60249.31,"d":"$60,249.31"},{"v":26359.07,"d":"$26,359.07"},{"v":18492.2,"d":"$18,492.20"},{"v":35848.45,"d":"$35,848.45"},{"v":13761.67,"d":"$13,761.67"},{"v":22722.03,"d":"$22,722.03"},{"v":30435.04,"d":"$30,435.04"},{"v":17108.35,"d":"$17,108.35"},{"v":45151.34,"d":"$45,151.34"},{"v":38875.41,"d":"$38,875.41"},{"v":27265.36,"d":"$27,265.36"},{"v":1011813.6299999999,"d":"$1,011,813.63"},{"v":17427.6,"d":"$17,427.60"},{"v":24267.5,"d":"$24,267.50"},{"v":63095.5,"d":"$63,095.50"},{"v":6600.76,"d":"$6,600.76"},{"v":110853.94,"d":"$110,853.94"},{"v":32098.839999999997,"d":"$32,098.84"},{"v":264224.54,"d":"$264,224.54"},{"v":181909.18,"d":"$181,909.18"},{"v":455716.86095999996,"d":"$455,716.86"},{"v":1156194.7209599998,"d":"$1,156,194.72"},{"v":184797.98,"d":"$184,797.98"},{"v":971396.7409600001,"d":"$971,396.74"},{"v":1137714.92096,"d":"$1,137,714.92"},{"v":14518.35,"d":"$14,518.35"},{"v":14518.35,"d":"$14,518.35"},{"v":15178.27,"d":"$15,178.27"},{"v":15178.27,"d":"$15,178.27"},{"v":1319.85,"d":"$1,319.85"},{"v":1319.85,"d":"$1,319.85"},{"v":1319.85,"d":"$1,319.85"},{"v":1319.85,"d":"$1,319.85"},{"v":1979.77,"d":"$1,979.77"},{"v":90409.72,"d":"$90,409.72"},{"v":36622.56,"d":"$36,622.56"},{"v":13826.2,"d":"$13,826.20"},{"v":207510.89,"d":"$207,510.89"},{"v":2357039.52,"d":"$2,357,039.52"},{"v":12650.46,"d":"$12,650.46"},{"v":236.34,"d":"$236.34"},{"v":27823.360000000004,"d":"$27,823.36"},{"v":2357039.44096,"d":"$2,357,039.44"}]
["48072321026","IL VALLEY CENTRAL UNIT DIST 321",1924.46,{"v":25495382.81,"d":"$25,495,382.81"},{"v":19480644.6,"d":"$19,480,644.60"},{"v":0.764085197118874,"d":"76%"},1,{"v":243924.71,"d":"$243,924.71"},{"v":5203823.180000001,"d":"$5,203,823.18"},{"v":5447747.890000001,"d":"$5,447,747.89"},{"v":0.9,"d":"0.90"},{"v":5814638.5,"d":"$5,814,638.50"},{"v":1426864.47,"d":"$1,426,864.47"},{"v":633091.58,"d":"$633,091.58"},{"v":255380.71,"d":"$255,380.71"},{"v":195974.17,"d":"$195,974.17"},{"v":441346.87,"d":"$441,346.87"},{"v":140369.08,"d":"$140,369.08"},{"v":237913.02,"d":"$237,913.02"},{"v":283335.8,"d":"$283,335.80"},{"v":171083.52,"d":"$171,083.52"},{"v":420337.51,"d":"$420,337.51"},{"v":361911.55,"d":"$361,911.55"},{"v":285484.41,"d":"$285,484.41"},{"v":10667731.19,"d":"$10,667,731.19"},{"v":171056.7,"d":"$171,056.70"},{"v":240557.5,"d":"$240,557.50"},{"v":625449.5,"d":"$625,449.50"},{"v":65431.64,"d":"$65,431.64"},{"v":1098866.6600000001,"d":"$1,098,866.66"},{"v":759362.8700000001,"d":"$759,362.87"},{"v":2619190.06,"d":"$2,619,190.06"},{"v":1803219.02,"d":"$1,803,219.02"},{"v":4937032.42044,"d":"$4,937,032.42"},{"v":12320166.370439999,"d":"$12,320,166.37"},{"v":1831854.98,"d":"$1,831,854.98"},{"v":10488311.390439998,"d":"$10,488,311.39"},{"v":12136980.870439999,"d":"$12,136,980.87"},{"v":310164.75,"d":"$310,164.75"},{"v":310164.75,"d":"$310,164.75"},{"v":323363.25,"d":"$323,363.25"},{"v":323363.25,"d":"$323,363.25"},{"v":3299.62,"d":"$3,299.62"},{"v":3299.62,"d":"$3,299.62"},{"v":3959.55,"d":"$3,959.55"},{"v":3959.55,"d":"$3,959.55"},{"v":4619.47,"d":"$4,619.47"},{"v":900137.7,"d":"$900,137.70"},{"v":364621.75,"d":"$364,621.75"},{"v":139717.44,"d":"$139,717.44"},{"v":2690670.7,"d":"$2,690,670.70"},{"v":25495382.81,"d":"$25,495,382.81"},{"v":526025.4500000001,"d":"$526,025.45"},{"v":1392.6000000000001,"d":"$1,392.60"},{"v":682970.6,"d":"$682,970.60"},{"v":25495382.760439996,"d":"$25,495,382.76"}]
["48072322026","ELMWOOD C U SCHOOL DISTRICT 322",628.12,{"v":8032123.89,"d":"$8,032,123.89"},{"v":6208217.89,"d":"$6,208,217.89"},{"v":0.7729235722732359,"d":"77%"},2,{"v":50792.3,"d":"$50,792.30"},{"v":1851303.39,"d":"$1,851,303.39"},{"v":1902095.69,"d":"$1,902,095.69"},{"v":0.9,"d":"0.90"},{"v":1849865.72,"d":"$1,849,865.72"},{"v":446565.8,"d":"$446,565.80"},{"v":204669.57,"d":"$204,669.57"},{"v":83254.1,"d":"$83,254.10"},{"v":60965.73,"d":"$60,965.73"},{"v":142368.75,"d":"$142,368.75"},{"v":45688.76,"d":"$45,688.76"},{"v":77254.9,"d":"$77,254.90"},{"v":92754.43,"d":"$92,754.43"},{"v":55602.14,"d":"$55,602.14"},{"v":137604.09,"d":"$137,604.09"},{"v":118477.44,"d":"$118,477.44"},{"v":92702.24,"d":"$92,702.24"},{"v":3407773.67,"d":"$3,407,773.67"},{"v":56141.100000000006,"d":"$56,141.10"},{"v":78514.99999999999,"d":"$78,515.00"},{"v":204138.99999999997,"d":"$204,139.00"},{"v":21356.079999999994,"d":"$21,356.08"},{"v":358656.52,"d":"$358,656.52"},{"v":236503.99,"d":"$236,503.99"},{"v":854871.32,"d":"$854,871.32"},{"v":588548.44,"d":"$588,548.44"},{"v":1542580.39368,"d":"$1,542,580.39"},{"v":3941311.84368,"d":"$3,941,311.84"},{"v":597894.86,"d":"$597,894.86"},{"v":3343416.98368,"d":"$3,343,416.98"},{"v":3881522.35368,"d":"$3,881,522.35"},{"v":69952.05,"d":"$69,952.05"},{"v":69952.05,"d":"$69,952.05"},{"v":72591.75,"d":"$72,591.75"},{"v":72591.75,"d":"$72,591.75"},{"v":0,"d":"$0.00"},{"v":0,"d":"$0.00"},{"v":0,"d":"$0.00"},{"v":0,"d":"$0.00"},{"v":0,"d":"$0.00"},{"v":293666.62,"d":"$293,666.62"},{"v":118956.51,"d":"$118,956.51"},{"v":45117.09,"d":"$45,117.09"},{"v":742827.82,"d":"$742,827.82"},{"v":8032123.89,"d":"$8,032,123.89"},{"v":78981.9,"d":"$78,981.90"},{"v":64.11,"d":"$64.11"},{"v":186780.56000000003,"d":"$186,780.56"},{"v":8032123.84368,"d":"$8,032,123.84"}]
["48072323026","DUNLAP C U SCHOOL DIST 323",4653.75,{"v":59026308.14,"d":"$59,026,308.14"},{"v":44683413.349999994,"d":"$44,683,413.35"},{"v":0.7570084384071389,"d":"76%"},1,{"v":538721.76,"d":"$538,721.76"},{"v":3776608.2200000007,"d":"$3,776,608.22"},{"v":4315329.98,"d":"$4,315,329.98"},{"v":0.9,"d":"0.90"},{"v":13485096.52,"d":"$13,485,096.52"},{"v":3238363.92,"d":"$3,238,363.92"},{"v":1523345.91,"d":"$1,523,345.91"},{"v":622004.62,"d":"$622,004.62"},{"v":446814.7,"d":"$446,814.70"},{"v":1047848.5,"d":"$1,047,848.50"},{"v":340739.07,"d":"$340,739.07"},{"v":572595.15,"d":"$572,595.15"},{"v":693484.3,"d":"$693,484.30"},{"v":414342.9,"d":"$414,342.90"},{"v":1028805.62,"d":"$1,028,805.62"},{"v":885803.98,"d":"$885,803.98"},{"v":687087.19,"d":"$687,087.19"},{"v":24986332.38,"d":"$24,986,332.38"},{"v":415710,"d":"$415,710.00"},{"v":581718.75,"d":"$581,718.75"},{"v":1512468.75,"d":"$1,512,468.75"},{"v":158227.5,"d":"$158,227.50"},{"v":2657291.25,"d":"$2,657,291.25"},{"v":1715948,"d":"$1,715,948.00"},{"v":6333753.75,"d":"$6,333,753.75"},{"v":4360563.75,"d":"$4,360,563.75"},{"v":11318405.810999999,"d":"$11,318,405.81"},{"v":29054087.560999997,"d":"$29,054,087.56"},{"v":4429811.55,"d":"$4,429,811.55"},{"v":24624276.010999996,"d":"$24,624,276.01"},{"v":28611106.400999997,"d":"$28,611,106.40"},{"v":307525.05,"d":"$307,525.05"},{"v":307525.05,"d":"$307,525.05"},{"v":320723.55,"d":"$320,723.55"},{"v":320723.55,"d":"$320,723.55"},{"v":145183.5,"d":"$145,183.50"},{"v":145183.5,"d":"$145,183.50"},{"v":151122.82,"d":"$151,122.82"},{"v":151122.82,"d":"$151,122.82"},{"v":181479.37,"d":"$181,479.37"},{"v":2177752.5,"d":"$2,177,752.50"},{"v":882149.4,"d":"$882,149.40"},{"v":338378.17,"d":"$338,378.17"},{"v":5428869.28,"d":"$5,428,869.28"},{"v":59026308.14,"d":"$59,026,308.14"},{"v":228493.41999999998,"d":"$228,493.42"},{"v":101885.54999999999,"d":"$101,885.55"},{"v":1145009.4500000002,"d":"$1,145,009.45"},{"v":59026308.061,"d":"$59,026,308.06"}]
["48072325026","PEORIA HGHTS C U SCH DIST 325",699.75,{"v":10024273.74,"d":"$10,024,273.74"},{"v":8509883.82,"d":"$8,509,883.82"},{"v":0.8489277169320398,"d":"85%"},2,{"v":26335.11,"d":"$26,335.11"},{"v":1429785.3899999997,"d":"$1,429,785.39"},{"v":1456120.4999999998,"d":"$1,456,120.50"},{"v":0.9,"d":"0.90"},{"v":2264062.78,"d":"$2,264,062.78"},{"v":542202.73,"d":"$542,202.73"},{"v":228550.4,"d":"$228,550.40"},{"v":92228.95,"d":"$92,228.95"},{"v":80526.46,"d":"$80,526.46"},{"v":157140.18,"d":"$157,140.18"},{"v":50642.96,"d":"$50,642.96"},{"v":85809.07,"d":"$85,809.07"},{"v":102899.44,"d":"$102,899.44"},{"v":61750.45,"d":"$61,750.45"},{"v":152654.54,"d":"$152,654.54"},{"v":131435.91,"d":"$131,435.91"},{"v":102966.84,"d":"$102,966.84"},{"v":4052870.71,"d":"$4,052,870.71"},{"v":62370,"d":"$62,370.00"},{"v":87468.75,"d":"$87,468.75"},{"v":227418.75,"d":"$227,418.75"},{"v":23791.5,"d":"$23,791.50"},{"v":399557.25,"d":"$399,557.25"},{"v":256769,"d":"$256,769.00"},{"v":952359.75,"d":"$952,359.75"},{"v":655665.75,"d":"$655,665.75"},{"v":1986106.1400000001,"d":"$1,986,106.14"},{"v":4651506.890000001,"d":"$4,651,506.89"},{"v":666078.03,"d":"$666,078.03"},{"v":3985428.8600000003,"d":"$3,985,428.86"},{"v":4584899.08,"d":"$4,584,899.08"},{"v":211835.92,"d":"$211,835.92"},{"v":211835.92,"d":"$211,835.92"},{"v":221074.87,"d":"$221,074.87"},{"v":221074.87,"d":"$221,074.87"},{"v":1979.77,"d":"$1,979.77"},{"v":1979.77,"d":"$1,979.77"},{"v":1979.77,"d":"$1,979.77"},{"v":1979.77,"d":"$1,979.77"},{"v":2639.7,"d":"$2,639.70"},{"v":327322.8,"d":"$327,322.80"},{"v":132589.72,"d":"$132,589.72"},{"v":50210.95,"d":"$50,210.95"},{"v":1386503.8299999998,"d":"$1,386,503.83"},{"v":10024273.74,"d":"$10,024,273.74"},{"v":480479.9099999999,"d":"$480,479.91"},{"v":36.86,"d":"$36.86"},{"v":144633.88,"d":"$144,633.88"},{"v":10024273.62,"d":"$10,024,273.62"}]
["48072326026","PRINCEVILLE C U SCH DIST 326",641.61,{"v":8273036.51,"d":"$8,273,036.51"},{"v":7354092.16,"d":"$7,354,092.16"},{"v":0.8889229669312798,"d":"89%"},2,{"v":13313.19,"d":"$13,313.19"},{"v":1922353.51,"d":"$1,922,353.51"},{"v":1935666.7,"d":"$1,935,666.70"},{"v":0.9,"d":"0.90"},{"v":1895438.37,"d":"$1,895,438.37"},{"v":463762.98,"d":"$463,762.98"},{"v":210005.23,"d":"$210,005.23"},{"v":84164.44,"d":"$84,164.44"},{"v":62878.71,"d":"$62,878.71"},{"v":145830.72,"d":"$145,830.72"},{"v":46239.22,"d":"$46,239.22"},{"v":78858.81,"d":"$78,858.81"},{"v":93479.07,"d":"$93,479.07"},{"v":56671.41,"d":"$56,671.41"},{"v":138679.12,"d":"$138,679.12"},{"v":119403.04,"d":"$119,403.04"},{"v":94626.85,"d":"$94,626.85"},{"v":3490037.9700000007,"d":"$3,490,037.97"},{"v":57175.2,"d":"$57,175.20"},{"v":80201.24999999999,"d":"$80,201.25"},{"v":208523.24999999994,"d":"$208,523.25"},{"v":21814.739999999994,"d":"$21,814.74"},{"v":366359.31,"d":"$366,359.31"},{"v":250676.69999999995,"d":"$250,676.70"},{"v":873231.2099999997,"d":"$873,231.21"},{"v":601188.57,"d":"$601,188.57"},{"v":1590430.8230399997,"d":"$1,590,430.82"},{"v":4049601.053039999,"d":"$4,049,601.05"},{"v":610735.72,"d":"$610,735.72"},{"v":3438865.33304,"d":"$3,438,865.33"},{"v":3988527.47304,"d":"$3,988,527.47"},{"v":70611.97,"d":"$70,611.97"},{"v":70611.97,"d":"$70,611.97"},{"v":73251.67,"d":"$73,251.67"},{"v":73251.67,"d":"$73,251.67"},{"v":7259.17,"d":"$7,259.17"},{"v":7259.17,"d":"$7,259.17"},{"v":7259.17,"d":"$7,259.17"},{"v":7259.17,"d":"$7,259.17"},{"v":9238.95,"d":"$9,238.95"},{"v":300265.87,"d":"$300,265.87"},{"v":121629.69,"d":"$121,629.69"},{"v":46572.48,"d":"$46,572.48"},{"v":794470.95,"d":"$794,470.95"},{"v":8273036.51,"d":"$8,273,036.51"},{"v":102632.26999999999,"d":"$102,632.27"},{"v":3740.78,"d":"$3,740.78"},{"v":146849.24000000002,"d":"$146,849.24"},{"v":8273036.39304,"d":"$8,273,036.39"}]
["48072327026","ILLINI BLUFFS CU SCH DIST 327",845.63,{"v":10860478.89,"d":"$10,860,478.89"},{"v":10933907.05,"d":"$10,933,907.05"},{"v":1.0067610425602513,"d":"101%"},4,{"v":691.79,"d":"$691.79"},{"v":1281605.9300000002,"d":"$1,281,605.93"},{"v":1282297.7200000002,"d":"$1,282,297.72"},{"v":0.9,"d":"0.90"},{"v":2495946.17,"d":"$2,495,946.17"},{"v":604263.59,"d":"$604,263.59"},{"v":277003.92,"d":"$277,003.92"},{"v":111999.34,"d":"$111,999.34"},{"v":82570.26,"d":"$82,570.26"},{"v":191686.89,"d":"$191,686.89"},{"v":61101.83,"d":"$61,101.83"},{"v":103986.7,"d":"$103,986.70"},{"v":124638.76,"d":"$124,638.76"},{"v":74849.04,"d":"$74,849.04"},{"v":184905.5,"d":"$184,905.50"},{"v":159204.06,"d":"$159,204.06"},{"v":124779.14,"d":"$124,779.14"},{"v":4596935.199999999,"d":"$4,596,935.20"},{"v":75147.29999999999,"d":"$75,147.30"},{"v":105703.74999999999,"d":"$105,703.75"},{"v":274829.75,"d":"$274,829.75"},{"v":28751.41999999999,"d":"$28,751.42"},{"v":482854.73,"d":"$482,854.73"},{"v":319625.05,"d":"$319,625.05"},{"v":1150902.43,"d":"$1,150,902.43"},{"v":792355.3099999998,"d":"$792,355.31"},{"v":2088169.2943199996,"d":"$2,088,169.29"},{"v":5318339.034319999,"d":"$5,318,339.03"},{"v":804938.28,"d":"$804,938.28"},{"v":4513400.754319999,"d":"$4,513,400.75"},{"v":5237845.20432,"d":"$5,237,845.20"},{"v":100308.6,"d":"$100,308.60"},{"v":100308.6,"d":"$100,308.60"},{"v":104268.15,"d":"$104,268.15"},{"v":104268.15,"d":"$104,268.15"},{"v":0,"d":"$0.00"},{"v":0,"d":"$0.00"},{"v":0,"d":"$0.00"},{"v":0,"d":"$0.00"},{"v":0,"d":"$0.00"},{"v":395295.07,"d":"$395,295.07"},{"v":160123.48,"d":"$160,123.48"},{"v":61126.38,"d":"$61,126.38"},{"v":1025698.43,"d":"$1,025,698.43"},{"v":10860478.89,"d":"$10,860,478.89"},{"v":112168.06,"d":"$112,168.06"},{"v":0,"d":"$0.00"},{"v":186782.99999999994,"d":"$186,783.00"},{"v":10860478.834319998,"d":"$10,860,478.83"}]
["48072328003","HOLLIS CONS SCHOOL DIST 328",82.71,{"v":964807.36,"d":"$964,807.36"},{"v":3569545.52,"d":"$3,569,545.52"},{"v":3.699749471231231,"d":"370%"},4,{"v":61.45,"d":"$61.45"},{"v":45852.94000000001,"d":"$45,852.94"},{"v":45914.39000000001,"d":"$45,914.39"},{"v":0.9,"d":"0.90"},{"v":233466.08,"d":"$233,466.08"},{"v":46693.21,"d":"$46,693.21"},{"v":25103.88,"d":"$25,103.88"},{"v":11296.74,"d":"$11,296.74"},{"v":7655.49,"d":"$7,655.49"},{"v":15556.87,"d":"$15,556.87"},{"v":5504.67,"d":"$5,504.67"},{"v":9623.44,"d":"$9,623.44"},{"v":13043.59,"d":"$13,043.59"},{"v":7217.58,"d":"$7,217.58"},{"v":19350.57,"d":"$19,350.57"},{"v":16660.89,"d":"$16,660.89"},{"v":11547.68,"d":"$11,547.68"},{"v":422720.69,"d":"$422,720.69"},{"v":7301.700000000001,"d":"$7,301.70"},{"v":10338.75,"d":"$10,338.75"},{"v":26880.75,"d":"$26,880.75"},{"v":2812.14,"d":"$2,812.14"},{"v":23613.699999999997,"d":"$23,613.70"},{"v":14065.85,"d":"$14,065.85"},{"v":112568.31,"d":"$112,568.31"},{"v":77499.27,"d":"$77,499.27"},{"v":190200.34944,"d":"$190,200.35"},{"v":465280.81944,"d":"$465,280.82"},{"v":78729.99,"d":"$78,729.99"},{"v":386550.82944,"d":"$386,550.83"},{"v":457407.81944,"d":"$457,407.82"},{"v":5939.32,"d":"$5,939.32"},{"v":5939.32,"d":"$5,939.32"},{"v":6599.25,"d":"$6,599.25"},{"v":6599.25,"d":"$6,599.25"},{"v":0,"d":"$0.00"},{"v":0,"d":"$0.00"},{"v":0,"d":"$0.00"},{"v":0,"d":"$0.00"},{"v":0,"d":"$0.00"},{"v":38275.65,"d":"$38,275.65"},{"v":15504.44,"d":"$15,504.44"},{"v":5821.56,"d":"$5,821.56"},{"v":84678.79,"d":"$84,678.79"},{"v":964807.36,"d":"$964,807.36"},{"v":5878.98,"d":"$5,878.98"},{"v":0,"d":"$0.00"},{"v":20123.899999999998,"d":"$20,123.90"},{"v":964807.29944,"d":"$964,807.30"}]
[null,"SAFE SCH-ROCK ISLAND ROE",10.33,{"v":130938.98,"d":"$130,938.98"},{"v":113165.81999999999,"d":"$113,165.82"},{"v":0.8642637967700679,"d":"86%"},2,{"v":377.66,"d":"$377.66"},{"v":100071.93000000001,"d":"$100,071.93"},{"v":100449.59000000001,"d":"$100,449.59"},{"v":0.9,"d":"0.90"},{"v":28869.46,"d":"$28,869.46"},{"v":5773.88,"d":"$5,773.88"},{"v":3137.98,"d":"$3,137.98"},{"v":1255.19,"d":"$1,255.19"},{"v":1027.71,"d":"$1,027.71"},{"v":2705.54,"d":"$2,705.54"},{"v":550.46,"d":"$550.46"},{"v":1069.27,"d":"$1,069.27"},{"v":1449.28,"d":"$1,449.28"},{"v":801.95,"d":"$801.95"},{"v":2150.06,"d":"$2,150.06"},{"v":1851.21,"d":"$1,851.21"},{"v":1283.07,"d":"$1,283.07"},{"v":51925.05999999999,"d":"$51,925.06"},{"v":929.7,"d":"$929.70"},{"v":1291.25,"d":"$1,291.25"},{"v":3357.25,"d":"$3,357.25"},{"v":351.22,"d":"$351.22"},{"v":5898.43,"d":"$5,898.43"},{"v":2572.17,"d":"$2,572.17"},{"v":14059.13,"d":"$14,059.13"},{"v":9679.210000000001,"d":"$9,679.21"},{"v":25401.45912,"d":"$25,401.46"},{"v":63539.81912,"d":"$63,539.82"},{"v":9832.92,"d":"$9,832.92"},{"v":53706.899119999995,"d":"$53,706.90"},{"v":62556.51912,"d":"$62,556.52"},{"v":1979.77,"d":"$1,979.77"},{"v":1979.77,"d":"$1,979.77"},{"v":2639.7,"d":"$2,639.70"},{"v":2639.7,"d":"$2,639.70"},{"v":0,"d":"$0.00"},{"v":0,"d":"$0.00"},{"v":0,"d":"$0.00"},{"v":0,"d":"$0.00"},{"v":0,"d":"$0.00"},{"v":4619.47,"d":"$4,619.47"},{"v":1871.22,"d":"$1,871.22"},{"v":727.69,"d":"$727.69"},{"v":16457.32,"d":"$16,457.32"},{"v":130938.98,"d":"$130,938.98"},{"v":417.03,"d":"$417.03"},{"v":5.65,"d":"$5.65"},{"v":209.79000000000002,"d":"$209.79"},{"v":130938.89911999999,"d":"$130,938.90"}]
["49081029002","HAMPTON SCHOOL DISTRICT 29",235.5,{"v":2903423.77,"d":"$2,903,423.77"},{"v":2105391.6399999997,"d":"$2,105,391.64"},{"v":0.7251410082655622,"d":"73%"},1,{"v":65868.92,"d":"$65,868.92"},{"v":733773.8600000001,"d":"$733,773.86"},{"v":799642.7800000001,"d":"$799,642.78"},{"v":0.9,"d":"0.90"},{"v":686591.11,"d":"$686,591.11"},{"v":137318.22,"d":"$137,318.22"},{"v":73428.84,"d":"$73,428.84"},{"v":32007.44,"d":"$32,007.44"},{"v":22907.2,"d":"$22,907.20"},{"v":44641.47,"d":"$44,641.47"},{"v":17064.47,"d":"$17,064.47"},{"v":27801.07,"d":"$27,801.07"},{"v":36956.84,"d":"$36,956.84"},{"v":20583.48,"d":"$20,583.48"},{"v":54826.63,"d":"$54,826.63"},{"v":47205.85,"d":"$47,205.85"},{"v":33359.97,"d":"$33,359.97"},{"v":1234692.5899999996,"d":"$1,234,692.59"},{"v":21105,"d":"$21,105.00"},{"v":29437.5,"d":"$29,437.50"},{"v":76537.5,"d":"$76,537.50"},{"v":8007,"d":"$8,007.00"},{"v":134470.5,"d":"$134,470.50"},{"v":39666.5,"d":"$39,666.50"},{"v":320515.5,"d":"$320,515.50"},{"v":220663.5,"d":"$220,663.50"},{"v":563570.328,"d":"$563,570.33"},{"v":1413973.328,"d":"$1,413,973.33"},{"v":224167.74,"d":"$224,167.74"},{"v":1189805.588,"d":"$1,189,805.59"},{"v":1391556.548,"d":"$1,391,556.55"},{"v":21777.52,"d":"$21,777.52"},{"v":21777.52,"d":"$21,777.52"},{"v":23097.37,"d":"$23,097.37"},{"v":23097.37,"d":"$23,097.37"},{"v":2639.7,"d":"$2,639.70"},{"v":2639.7,"d":"$2,639.70"},{"v":3299.62,"d":"$3,299.62"},{"v":3299.62,"d":"$3,299.62"},{"v":3959.55,"d":"$3,959.55"},{"v":110207.47,"d":"$110,207.47"},{"v":44642.1,"d":"$44,642.10"},{"v":16736.98,"d":"$16,736.98"},{"v":277174.52,"d":"$277,174.52"},{"v":2903423.77,"d":"$2,903,423.77"},{"v":48846.04,"d":"$48,846.04"},{"v":895.06,"d":"$895.06"},{"v":66557.48,"d":"$66,557.48"},{"v":2903423.6579999994,"d":"$2,903,423.66"}]
["49081030017","UNITED TWP HS DISTRICT 30",1743.5,{"v":26578016.85,"d":"$26,578,016.85"},{"v":22092479.4,"d":"$22,092,479.40"},{"v":0.8312312963260086,"d":"83%"},2,{"v":128930.35,"d":"$128,930.35"},{"v":8054745.43,"d":"$8,054,745.43"},{"v":8183675.779999999,"d":"$8,183,675.78"},{"v":0.9,"d":"0.90"},{"v":5644106.05,"d":"$5,644,106.05"},{"v":1881180.54,"d":"$1,881,180.54"},{"v":628726.99,"d":"$628,726.99"},{"v":209335.05,"d":"$209,335.05"},{"v":196711.54,"d":"$196,711.54"},{"v":537345.18,"d":"$537,345.18"},{"v":127708.34,"d":"$127,708.34"},{"v":232833.97,"d":"$232,833.97"},{"v":210146.76,"d":"$210,146.76"},{"v":155311.75,"d":"$155,311.75"},{"v":311759.28,"d":"$311,759.28"},{"v":268425.45,"d":"$268,425.45"},{"v":279389.79,"d":"$279,389.79"},{"v":10682980.689999998,"d":"$10,682,980.69"},{"v":156915,"d":"$156,915.00"},{"v":217937.5,"d":"$217,937.50"},{"v":566637.5,"d":"$566,637.50"},{"v":59279,"d":"$59,279.00"},{"v":995538.5,"d":"$995,538.50"},{"v":1497666.5,"d":"$1,497,666.50"},{"v":2372903.5,"d":"$2,372,903.50"},{"v":1633659.5,"d":"$1,633,659.50"},{"v":5135092.772999999,"d":"$5,135,092.77"},{"v":12635629.772999998,"d":"$12,635,629.77"},{"v":1659602.78,"d":"$1,659,602.78"},{"v":10976026.992999999,"d":"$10,976,026.99"},{"v":12469669.492999999,"d":"$12,469,669.49"},{"v":446109.3,"d":"$446,109.30"},{"v":446109.3,"d":"$446,109.30"},{"v":464587.2,"d":"$464,587.20"},{"v":464587.2,"d":"$464,587.20"},{"v":62032.95,"d":"$62,032.95"},{"v":62032.95,"d":"$62,032.95"},{"v":64672.65,"d":"$64,672.65"},{"v":64672.65,"d":"$64,672.65"},{"v":77871.15,"d":"$77,871.15"},{"v":815667.3,"d":"$815,667.30"},{"v":330405.04,"d":"$330,405.04"},{"v":126618.93,"d":"$126,618.93"},{"v":3425366.6199999996,"d":"$3,425,366.62"},{"v":26578016.85,"d":"$26,578,016.85"},{"v":1732295.78,"d":"$1,732,295.78"},{"v":76713.48,"d":"$76,713.48"},{"v":667574.32,"d":"$667,574.32"},{"v":26578016.803,"d":"$26,578,016.80"}]
["49081034002","SILVIS SCHOOL DISTRICT 34",594.13,{"v":8549821.01,"d":"$8,549,821.01"},{"v":6552395.949999999,"d":"$6,552,395.95"},{"v":0.7663781431606835,"d":"77%"},1,{"v":96356.28,"d":"$96,356.28"},{"v":3344798.1099999994,"d":"$3,344,798.11"},{"v":3441154.389999999,"d":"$3,441,154.39"},{"v":0.9,"d":"0.90"},{"v":1895342.94,"d":"$1,895,342.94"},{"v":379068.58,"d":"$379,068.58"},{"v":185768.71,"d":"$185,768.71"},{"v":82215.2,"d":"$82,215.20"},{"v":71769.07,"d":"$71,769.07"},{"v":112956.46,"d":"$112,956.46"},{"v":42936.42,"d":"$42,936.42"},{"v":70304.63,"d":"$70,304.63"},{"v":94928.36,"d":"$94,928.36"},{"v":52661.64,"d":"$52,661.64"},{"v":140829.19,"d":"$140,829.19"},{"v":121254.25,"d":"$121,254.25"},{"v":84362.24,"d":"$84,362.24"},{"v":3334397.69,"d":"$3,334,397.69"},{"v":52962.299999999996,"d":"$52,962.30"},{"v":74266.25,"d":"$74,266.25"},{"v":193092.25,"d":"$193,092.25"},{"v":20200.42,"d":"$20,200.42"},{"v":339248.23,"d":"$339,248.23"},{"v":98501.34999999999,"d":"$98,501.35"},{"v":808610.93,"d":"$808,610.93"},{"v":556699.81,"d":"$556,699.81"},{"v":1725002.7163200004,"d":"$1,725,002.72"},{"v":3868584.2563200006,"d":"$3,868,584.26"},{"v":565540.46,"d":"$565,540.46"},{"v":3303043.79632,"d":"$3,303,043.80"},{"v":3812030.2063200003,"d":"$3,812,030.21"},{"v":171580.5,"d":"$171,580.50"},{"v":171580.5,"d":"$171,580.50"},{"v":178839.67,"d":"$178,839.67"},{"v":178839.67,"d":"$178,839.67"},{"v":50154.3,"d":"$50,154.30"},{"v":50154.3,"d":"$50,154.30"},{"v":52794,"d":"$52,794.00"},{"v":52794,"d":"$52,794.00"},{"v":63352.8,"d":"$63,352.80"},{"v":277828.42,"d":"$277,828.42"},{"v":112540.87,"d":"$112,540.87"},{"v":42934,"d":"$42,934.00"},{"v":1403393.0300000003,"d":"$1,403,393.03"},{"v":8549821.01,"d":"$8,549,821.01"},{"v":740206.8700000001,"d":"$740,206.87"},{"v":60910.69,"d":"$60,910.69"},{"v":226148.00999999998,"d":"$226,148.01"},{"v":8549820.926320001,"d":"$8,549,820.93"}]
["49081036002","CARBON CLIFF-BARSTOW SCH DIST 36",263.25,{"v":3666115.71,"d":"$3,666,115.71"},{"v":2931875.2800000003,"d":"$2,931,875.28"},{"v":0.7997225161232023,"d":"80%"},2,{"v":27518.69,"d":"$27,518.69"},{"v":2131230.33,"d":"$2,131,230.33"},{"v":2158749.02,"d":"$2,158,749.02"},{"v":0.9,"d":"0.90"},{"v":844117.96,"d":"$844,117.96"},{"v":168823.59,"d":"$168,823.59"},{"v":82215.2,"d":"$82,215.20"},{"v":35773.02,"d":"$35,773.02"},{"v":30528.4,"d":"$30,528.40"},{"v":48699.79,"d":"$48,699.79"},{"v":18715.87,"d":"$18,715.87"},{"v":31008.88,"d":"$31,008.88"},{"v":41304.7,"d":"$41,304.70"},{"v":23256.66,"d":"$23,256.66"},{"v":61276.82,"d":"$61,276.82"},{"v":52759.48,"d":"$52,759.48"},{"v":37209.2,"d":"$37,209.20"},{"v":1475689.5699999998,"d":"$1,475,689.57"},{"v":23535,"d":"$23,535.00"},{"v":32906.25,"d":"$32,906.25"},{"v":85556.25,"d":"$85,556.25"},{"v":8950.5,"d":"$8,950.50"},{"v":150315.75,"d":"$150,315.75"},{"v":43165.5,"d":"$43,165.50"},{"v":358283.25,"d":"$358,283.25"},{"v":246665.25,"d":"$246,665.25"},{"v":734197.992,"d":"$734,197.99"},{"v":1683575.742,"d":"$1,683,575.74"},{"v":250582.41,"d":"$250,582.41"},{"v":1432993.3320000002,"d":"$1,432,993.33"},{"v":1658517.492,"d":"$1,658,517.49"},{"v":75231.45,"d":"$75,231.45"},{"v":75231.45,"d":"$75,231.45"},{"v":78531.07,"d":"$78,531.07"},{"v":78531.07,"d":"$78,531.07"},{"v":5939.32,"d":"$5,939.32"},{"v":5939.32,"d":"$5,939.32"},{"v":6599.25,"d":"$6,599.25"},{"v":6599.25,"d":"$6,599.25"},{"v":7919.1,"d":"$7,919.10"},{"v":122746.05,"d":"$122,746.05"},{"v":49721.14,"d":"$49,721.14"},{"v":18920.07,"d":"$18,920.07"},{"v":531908.54,"d":"$531,908.54"},{"v":3666115.71,"d":"$3,666,115.71"},{"v":878220.8499999999,"d":"$878,220.85"},{"v":3566.79,"d":"$3,566.79"},{"v":125897.82999999997,"d":"$125,897.83"},{"v":3666115.602,"d":"$3,666,115.60"}]
["49081037002","EAST MOLINE SCHOOL DISTRICT 37",2518.71,{"v":37976055.84,"d":"$37,976,055.84"},{"v":31713570.909999996,"d":"$31,713,570.91"},{"v":0.8350938560764448,"d":"84%"},2,{"v":171819.38,"d":"$171,819.38"},{"v":14719759.440000001,"d":"$14,719,759.44"},{"v":14891578.820000002,"d":"$14,891,578.82"},{"v":0.9,"d":"0.90"},{"v":8142443.47,"d":"$8,142,443.47"},{"v":1628488.69,"d":"$1,628,488.69"},{"v":789517.02,"d":"$789,517.02"},{"v":350199.12,"d":"$350,199.12"},{"v":323623.44,"d":"$323,623.44"},{"v":482939.6,"d":"$482,939.60"},{"v":183855.97,"d":"$183,855.97"},{"v":298861.52,"d":"$298,861.52"},{"v":404351.35,"d":"$404,351.35"},{"v":224279.8,"d":"$224,279.80"},{"v":599867.85,"d":"$599,867.85"},{"v":516487.59,"d":"$516,487.59"},{"v":358619.74,"d":"$358,619.74"},{"v":14303535.159999998,"d":"$14,303,535.16"},{"v":224276.4,"d":"$224,276.40"},{"v":314838.75,"d":"$314,838.75"},{"v":818580.75,"d":"$818,580.75"},{"v":85636.14,"d":"$85,636.14"},{"v":1438183.41,"d":"$1,438,183.41"},{"v":420241.76,"d":"$420,241.76"},{"v":3427964.3099999996,"d":"$3,427,964.31"},{"v":2360031.27,"d":"$2,360,031.27"},{"v":7740047.3234399995,"d":"$7,740,047.32"},{"v":16829800.11344,"d":"$16,829,800.11"},{"v":2397509.67,"d":"$2,397,509.67"},{"v":14432290.44344,"d":"$14,432,290.44"},{"v":16590049.14344,"d":"$16,590,049.14"},{"v":799829.1,"d":"$799,829.10"},{"v":799829.1,"d":"$799,829.10"},{"v":833485.27,"d":"$833,485.27"},{"v":833485.27,"d":"$833,485.27"},{"v":370877.85,"d":"$370,877.85"},{"v":370877.85,"d":"$370,877.85"},{"v":386056.12,"d":"$386,056.12"},{"v":386056.12,"d":"$386,056.12"},{"v":463267.35,"d":"$463,267.35"},{"v":1178626.05,"d":"$1,178,626.05"},{"v":477429.94,"d":"$477,429.94"},{"v":182651.44,"d":"$182,651.44"},{"v":7082471.46,"d":"$7,082,471.46"},{"v":37976055.84,"d":"$37,976,055.84"},{"v":3643555.13,"d":"$3,643,555.13"},{"v":549377.3,"d":"$549,377.30"},{"v":1148873.1800000002,"d":"$1,148,873.18"},{"v":37976055.76344,"d":"$37,976,055.76"}]
["49081040022","MOLINE UNIT SCHOOL DISTRICT 40",6914.75,{"v":101552839.34,"d":"$101,552,839.34"},{"v":77581671.22,"d":"$77,581,671.22"},{"v":0.7639537380166764,"d":"76%"},1,{"v":1100599.31,"d":"$1,100,599.31"},{"v":26575034.950000003,"d":"$26,575,034.95"},{"v":27675634.26,"d":"$27,675,634.26"},{"v":0.9,"d":"0.90"},{"v":22088008.9,"d":"$22,088,008.90"},{"v":5349607.47,"d":"$5,349,607.47"},{"v":2270668.82,"d":"$2,270,668.82"},{"v":921884.78,"d":"$921,884.78"},{"v":820248.68,"d":"$820,248.68"},{"v":1568972.91,"d":"$1,568,972.91"},{"v":506980.1,"d":"$506,980.10"},{"v":853279.05,"d":"$853,279.05"},{"v":1025371.26,"d":"$1,025,371.26"},{"v":615900.67,"d":"$615,900.67"},{"v":1521170.28,"d":"$1,521,170.28"},{"v":1309731.07,"d":"$1,309,731.07"},{"v":1023894.64,"d":"$1,023,894.64"},{"v":39875718.63,"d":"$39,875,718.63"},{"v":619875,"d":"$619,875.00"},{"v":864343.75,"d":"$864,343.75"},{"v":2247293.75,"d":"$2,247,293.75"},{"v":235101.5,"d":"$235,101.50"},{"v":3948322.25,"d":"$3,948,322.25"},{"v":2640943.5,"d":"$2,640,943.50"},{"v":9410974.75,"d":"$9,410,974.75"},{"v":6479120.75,"d":"$6,479,120.75"},{"v":20217156.908999998,"d":"$20,217,156.91"},{"v":46663132.158999994,"d":"$46,663,132.16"},{"v":6582012.23,"d":"$6,582,012.23"},{"v":40081119.92899999,"d":"$40,081,119.93"},{"v":46004930.92899999,"d":"$46,004,930.93"},{"v":1768599,"d":"$1,768,599.00"},{"v":1768599,"d":"$1,768,599.00"},{"v":1842510.6,"d":"$1,842,510.60"},{"v":1842510.6,"d":"$1,842,510.60"},{"v":637487.55,"d":"$637,487.55"},{"v":637487.55,"d":"$637,487.55"},{"v":663884.55,"d":"$663,884.55"},{"v":663884.55,"d":"$663,884.55"},{"v":797189.4,"d":"$797,189.40"},{"v":3236272.2,"d":"$3,236,272.20"},{"v":1310927.47,"d":"$1,310,927.47"},{"v":502837.24,"d":"$502,837.24"},{"v":15672189.71,"d":"$15,672,189.71"},{"v":101552839.34,"d":"$101,552,839.34"},{"v":5966711.499999999,"d":"$5,966,711.50"},{"v":786225.2299999999,"d":"$786,225.23"},{"v":2638440.64,"d":"$2,638,440.64"},{"v":101552839.269,"d":"$101,552,839.27"}]
["49081041025","ROCK ISLAND SCHOOL DISTRICT 41",5863.78,{"v":86853095.8,"d":"$86,853,095.80"},{"v":70217921.65,"d":"$70,217,921.65"},{"v":0.8084676890699849,"d":"81%"},2,{"v":558724.09,"d":"$558,724.09"},{"v":33960354.809999995,"d":"$33,960,354.81"},{"v":34519078.9,"d":"$34,519,078.90"},{"v":0.9,"d":"0.90"},{"v":18976102.2,"d":"$18,976,102.20"},{"v":4561628.17,"d":"$4,561,628.17"},{"v":1920854.97,"d":"$1,920,854.97"},{"v":783586.3,"d":"$783,586.30"},{"v":705198.39,"d":"$705,198.39"},{"v":1323887.54,"d":"$1,323,887.54"},{"v":429364.26,"d":"$429,364.26"},{"v":722025.91,"d":"$722,025.91"},{"v":873196.02,"d":"$873,196.02"},{"v":522339.37,"d":"$522,339.37"},{"v":1295413.56,"d":"$1,295,413.56"},{"v":1115354.02,"d":"$1,115,354.02"},{"v":866397.06,"d":"$866,397.06"},{"v":34095347.769999996,"d":"$34,095,347.77"},{"v":522947.7,"d":"$522,947.70"},{"v":732972.5,"d":"$732,972.50"},{"v":1905728.5,"d":"$1,905,728.50"},{"v":199368.52000000002,"d":"$199,368.52"},{"v":3348218.38,"d":"$3,348,218.38"},{"v":2177939.41,"d":"$2,177,939.41"},{"v":7980604.58,"d":"$7,980,604.58"},{"v":5494361.86,"d":"$5,494,361.86"},{"v":17341842.715919998,"d":"$17,341,842.72"},{"v":39703984.16592,"d":"$39,703,984.17"},{"v":5581614.9,"d":"$5,581,614.90"},{"v":34122369.265920006,"d":"$34,122,369.27"},{"v":39145822.67592001,"d":"$39,145,822.68"},{"v":1765299.37,"d":"$1,765,299.37"},{"v":1765299.37,"d":"$1,765,299.37"},{"v":1838551.05,"d":"$1,838,551.05"},{"v":1838551.05,"d":"$1,838,551.05"},{"v":397934.77,"d":"$397,934.77"},{"v":397934.77,"d":"$397,934.77"},{"v":414432.9,"d":"$414,432.90"},{"v":414432.9,"d":"$414,432.90"},{"v":497583.45,"d":"$497,583.45"},{"v":2743968.15,"d":"$2,743,968.15"},{"v":1111508.24,"d":"$1,111,508.24"},{"v":426429.27,"d":"$426,429.27"},{"v":13611925.29,"d":"$13,611,925.29"},{"v":86853095.8,"d":"$86,853,095.80"},{"v":8226036.869999999,"d":"$8,226,036.87"},{"v":568898.8,"d":"$568,898.80"},{"v":2598540.68,"d":"$2,598,540.68"},{"v":86853095.73592001,"d":"$86,853,095.74"}]
["49081100026","RIVERDALE C U SCHOOL DIST 100",1036.63,{"v":13031547.66,"d":"$13,031,547.66"},{"v":10664398.01,"d":"$10,664,398.01"},{"v":0.818352377494969,"d":"82%"},2,{"v":41668.75,"d":"$41,668.75"},{"v":2266311.66,"d":"$2,266,311.66"},{"v":2307980.41,"d":"$2,307,980.41"},{"v":0.9,"d":"0.90"},{"v":3009785.65,"d":"$3,009,785.65"},{"v":729932.3,"d":"$729,932.30"},{"v":339547.32,"d":"$339,547.32"},{"v":138045.7,"d":"$138,045.70"},{"v":97833.46,"d":"$97,833.46"},{"v":237339.45,"d":"$237,339.45"},{"v":74863.51,"d":"$74,863.51"},{"v":127778,"d":"$127,778.00"},{"v":153624.52,"d":"$153,624.52"},{"v":91957.39,"d":"$91,957.39"},{"v":227906.78,"d":"$227,906.78"},{"v":196228.26,"d":"$196,228.26"},{"v":153327.58,"d":"$153,327.58"},{"v":5578169.919999999,"d":"$5,578,169.92"},{"v":92727,"d":"$92,727.00"},{"v":129578.74999999999,"d":"$129,578.75"},{"v":336904.75,"d":"$336,904.75"},{"v":35245.42,"d":"$35,245.42"},{"v":591915.73,"d":"$591,915.73"},{"v":396278.88,"d":"$396,278.88"},{"v":1410853.43,"d":"$1,410,853.43"},{"v":971322.31,"d":"$971,322.31"},{"v":2488908.82332,"d":"$2,488,908.82"},{"v":6453735.09332,"d":"$6,453,735.09"},{"v":986747.36,"d":"$986,747.36"},{"v":5466987.733319999,"d":"$5,466,987.73"},{"v":6355060.353319999,"d":"$6,355,060.35"},{"v":83810.47,"d":"$83,810.47"},{"v":83810.47,"d":"$83,810.47"},{"v":87110.1,"d":"$87,110.10"},{"v":87110.1,"d":"$87,110.10"},{"v":0,"d":"$0.00"},{"v":0,"d":"$0.00"},{"v":0,"d":"$0.00"},{"v":0,"d":"$0.00"},{"v":0,"d":"$0.00"},{"v":485044.87,"d":"$485,044.87"},{"v":196478.73,"d":"$196,478.73"},{"v":74952.58,"d":"$74,952.58"},{"v":1098317.32,"d":"$1,098,317.32"},{"v":13031547.66,"d":"$13,031,547.66"},{"v":130795.45999999999,"d":"$130,795.46"},{"v":12.71,"d":"$12.71"},{"v":326033.14999999997,"d":"$326,033.15"},{"v":13031547.593319997,"d":"$13,031,547.59"}]
["49081200026","SHERRARD COMM UNIT SCH DIST 200",1328.61,{"v":17364112.81,"d":"$17,364,112.81"},{"v":13427951.309999999,"d":"$13,427,951.31"},{"v":0.7733162907273233,"d":"77%"},2,{"v":116468.24,"d":"$116,468.24"},{"v":5679231.120000001,"d":"$5,679,231.12"},{"v":5795699.360000001,"d":"$5,795,699.36"},{"v":0.9,"d":"0.90"},{"v":3982741.61,"d":"$3,982,741.61"},{"v":973404.24,"d":"$973,404.24"},{"v":436360.13,"d":"$436,360.13"},{"v":175515.2,"d":"$175,515.20"},{"v":132744.44,"d":"$132,744.44"},{"v":307109.26,"d":"$307,109.26"},{"v":96331.72,"d":"$96,331.72"},{"v":163865.93,"d":"$163,865.93"},{"v":194929.23,"d":"$194,929.23"},{"v":117887.23,"d":"$117,887.23"},{"v":289183.6,"d":"$289,183.60"},{"v":248987.74,"d":"$248,987.74"},{"v":196631.39,"d":"$196,631.39"},{"v":7315691.72,"d":"$7,315,691.72"},{"v":119297.7,"d":"$119,297.70"},{"v":166076.25,"d":"$166,076.25"},{"v":431798.25,"d":"$431,798.25"},{"v":45172.74,"d":"$45,172.74"},{"v":758636.31,"d":"$758,636.31"},{"v":524226.02999999997,"d":"$524,226.03"},{"v":1808238.21,"d":"$1,808,238.21"},{"v":1244907.5699999998,"d":"$1,244,907.57"},{"v":3349423.14804,"d":"$3,349,423.15"},{"v":8447776.20804,"d":"$8,447,776.21"},{"v":1264677.28,"d":"$1,264,677.28"},{"v":7183098.928039999,"d":"$7,183,098.93"},{"v":8321308.478039999,"d":"$8,321,308.48"},{"v":180159.52,"d":"$180,159.52"},{"v":180159.52,"d":"$180,159.52"},{"v":188078.62,"d":"$188,078.62"},{"v":188078.62,"d":"$188,078.62"},{"v":3959.55,"d":"$3,959.55"},{"v":3959.55,"d":"$3,959.55"},{"v":3959.55,"d":"$3,959.55"},{"v":3959.55,"d":"$3,959.55"},{"v":5279.4,"d":"$5,279.40"},{"v":621649.35,"d":"$621,649.35"},{"v":251813.55,"d":"$251,813.55"},{"v":96055.74,"d":"$96,055.74"},{"v":1727112.52,"d":"$1,727,112.52"},{"v":17364112.81,"d":"$17,364,112.81"},{"v":284158.45,"d":"$284,158.45"},{"v":578.34,"d":"$578.34"},{"v":406361.37000000005,"d":"$406,361.37"},{"v":17364112.718039997,"d":"$17,364,112.72"}]
["49081300026","ROCKRIDGE C U SCHOOL DIST 300",1038.61,{"v":12820798.88,"d":"$12,820,798.88"},{"v":12777195.97,"d":"$12,777,195.97"},{"v":0.9965990489041975,"d":"100%"},3,{"v":14569.69,"d":"$14,569.69"},{"v":1357663.5999999996,"d":"$1,357,663.60"},{"v":1372233.2899999996,"d":"$1,372,233.29"},{"v":0.9,"d":"0.90"},{"v":3039364.34,"d":"$3,039,364.34"},{"v":752590.65,"d":"$752,590.65"},{"v":342154.13,"d":"$342,154.13"},{"v":136822.65,"d":"$136,822.65"},{"v":98206.19,"d":"$98,206.19"},{"v":240976.02,"d":"$240,976.02"},{"v":75413.97,"d":"$75,413.97"},{"v":128579.95,"d":"$128,579.95"},{"v":151450.59,"d":"$151,450.59"},{"v":91957.39,"d":"$91,957.39"},{"v":224681.68,"d":"$224,681.68"},{"v":193451.44,"d":"$193,451.44"},{"v":154289.88,"d":"$154,289.88"},{"v":5629938.879999999,"d":"$5,629,938.88"},{"v":93325.49999999999,"d":"$93,325.50"},{"v":129826.25,"d":"$129,826.25"},{"v":337548.24999999994,"d":"$337,548.25"},{"v":35312.74,"d":"$35,312.74"},{"v":296523.15,"d":"$296,523.15"},{"v":425419.08999999997,"d":"$425,419.09"},{"v":1413548.21,"d":"$1,413,548.21"},{"v":973177.5699999998,"d":"$973,177.57"},{"v":2501636.00604,"d":"$2,501,636.01"},{"v":6206316.766039999,"d":"$6,206,316.77"},{"v":988632.08,"d":"$988,632.08"},{"v":5217684.68604,"d":"$5,217,684.69"},{"v":6107453.55604,"d":"$6,107,453.56"},{"v":79850.92,"d":"$79,850.92"},{"v":79850.92,"d":"$79,850.92"},{"v":83150.55,"d":"$83,150.55"},{"v":83150.55,"d":"$83,150.55"},{"v":0,"d":"$0.00"},{"v":0,"d":"$0.00"},{"v":0,"d":"$0.00"},{"v":0,"d":"$0.00"},{"v":0,"d":"$0.00"},{"v":485704.8,"d":"$485,704.80"},{"v":196746.04,"d":"$196,746.04"},{"v":74952.58,"d":"$74,952.58"},{"v":1083406.36,"d":"$1,083,406.36"},{"v":12820798.88,"d":"$12,820,798.88"},{"v":82178.26,"d":"$82,178.26"},{"v":63.92,"d":"$63.92"},{"v":344789.63,"d":"$344,789.63"},{"v":12820798.796039999,"d":"$12,820,798.80"}]
[null,"SAFE SCH-ST CLAIR ROE",62,{"v":865877.28,"d":"$865,877.28"},{"v":495264.52,"d":"$495,264.52"},{"v":0.571980038556965,"d":"57%"},1,{"v":70886.51,"d":"$70,886.51"},{"v":408676.80000000005,"d":"$408,676.80"},{"v":479563.31000000006,"d":"$479,563.31"},{"v":0.93051,"d":"0.93"},{"v":192407.52,"d":"$192,407.52"},{"v":53404.08,"d":"$53,404.08"},{"v":21122.7,"d":"$21,122.70"},{"v":6975.94,"d":"$6,975.94"},{"v":6595.92,"d":"$6,595.92"},{"v":17355.12,"d":"$17,355.12"},{"v":3983.89,"d":"$3,983.89"},{"v":8015.02,"d":"$8,015.02"},{"v":7492.09,"d":"$7,492.09"},{"v":5527.6,"d":"$5,527.60"},{"v":11114.75,"d":"$11,114.75"},{"v":9569.83,"d":"$9,569.83"},{"v":9617.64,"d":"$9,617.64"},{"v":353182.10000000003,"d":"$353,182.10"},{"v":5580,"d":"$5,580.00"},{"v":7750,"d":"$7,750.00"},{"v":20150,"d":"$20,150.00"},{"v":2108,"d":"$2,108.00"},{"v":35402,"d":"$35,402.00"},{"v":35806,"d":"$35,806.00"},{"v":84382,"d":"$84,382.00"},{"v":58094,"d":"$58,094.00"},{"v":163109.424,"d":"$163,109.42"},{"v":412381.424,"d":"$412,381.42"},{"v":59016.56,"d":"$59,016.56"},{"v":353364.864,"d":"$353,364.86"},{"v":408280.354,"d":"$408,280.35"},{"v":14328.22,"d":"$14,328.22"},{"v":14328.22,"d":"$14,328.22"},{"v":15010.52,"d":"$15,010.52"},{"v":15010.52,"d":"$15,010.52"},{"v":0,"d":"$0.00"},{"v":0,"d":"$0.00"},{"v":0,"d":"$0.00"},{"v":0,"d":"$0.00"},{"v":0,"d":"$0.00"},{"v":29338.74,"d":"$29,338.74"},{"v":11884.34,"d":"$11,884.34"},{"v":4514.18,"d":"$4,514.18"},{"v":104414.73999999999,"d":"$104,414.74"},{"v":865877.28,"d":"$865,877.28"},{"v":25963.739999999998,"d":"$25,963.74"},{"v":0,"d":"$0.00"},{"v":13569.51,"d":"$13,569.51"},{"v":865877.194,"d":"$865,877.19"}]
["50082009026","LEBANON COMM UNIT SCH DIST 9",510.2,{"v":7025256.39,"d":"$7,025,256.39"},{"v":6119832.890000001,"d":"$6,119,832.89"},{"v":0.8711187962778396,"d":"87%"},2,{"v":10586.47,"d":"$10,586.47"},{"v":1801292.9199999997,"d":"$1,801,292.92"},{"v":1811879.3899999997,"d":"$1,811,879.39"},{"v":0.93051,"d":"0.93"},{"v":1643400.07,"d":"$1,643,400.07"},{"v":386778.58,"d":"$386,778.58"},{"v":170595.99,"d":"$170,595.99"},{"v":69626.49,"d":"$69,626.49"},{"v":56073.96,"d":"$56,073.96"},{"v":114973.77,"d":"$114,973.77"},{"v":38131.56,"d":"$38,131.56"},{"v":64120.17,"d":"$64,120.17"},{"v":77917.78,"d":"$77,917.78"},{"v":46708.23,"d":"$46,708.23"},{"v":115593.46,"d":"$115,593.46"},{"v":99526.23,"d":"$99,526.23"},{"v":76941.19,"d":"$76,941.19"},{"v":2960387.48,"d":"$2,960,387.48"},{"v":45580.5,"d":"$45,580.50"},{"v":63775,"d":"$63,775.00"},{"v":165815,"d":"$165,815.00"},{"v":17346.8,"d":"$17,346.80"},{"v":291324.19999999995,"d":"$291,324.20"},{"v":176227.88999999998,"d":"$176,227.89"},{"v":694382.2,"d":"$694,382.20"},{"v":478057.3999999999,"d":"$478,057.40"},{"v":1346349.7127999999,"d":"$1,346,349.71"},{"v":3278858.7027999996,"d":"$3,278,858.70"},{"v":485649.17,"d":"$485,649.17"},{"v":2793209.532799999,"d":"$2,793,209.53"},{"v":3245110.932799999,"d":"$3,245,110.93"},{"v":106438.24,"d":"$106,438.24"},{"v":106438.24,"d":"$106,438.24"},{"v":111214.32,"d":"$111,214.32"},{"v":111214.32,"d":"$111,214.32"},{"v":0,"d":"$0.00"},{"v":0,"d":"$0.00"},{"v":0,"d":"$0.00"},{"v":0,"d":"$0.00"},{"v":0,"d":"$0.00"},{"v":246309.02,"d":"$246,309.02"},{"v":99773.2,"d":"$99,773.20"},{"v":38370.55,"d":"$38,370.55"},{"v":819757.89,"d":"$819,757.89"},{"v":7025256.39,"d":"$7,025,256.39"},{"v":234324.52000000002,"d":"$234,324.52"},{"v":0,"d":"$0.00"},{"v":240994.93,"d":"$240,994.93"},{"v":7025256.302799999,"d":"$7,025,256.30"}]
["50082019026","MASCOUTAH C U DISTRICT 19",4036.29,{"v":51299929.41,"d":"$51,299,929.41"},{"v":32996197.619999997,"d":"$32,996,197.62"},{"v":0.6432016183938059,"d":"64%"},1,{"v":2832875.09,"d":"$2,832,875.09"},{"v":23859657.14,"d":"$23,859,657.14"},{"v":26692532.23,"d":"$26,692,532.23"},{"v":0.93051,"d":"0.93"},{"v":12011177.86,"d":"$12,011,177.86"},{"v":2887716.81,"d":"$2,887,716.81"},{"v":1366657.05,"d":"$1,366,657.05"},{"v":557857.92,"d":"$557,857.92"},{"v":390283.28,"d":"$390,283.28"},{"v":935265.68,"d":"$935,265.68"},{"v":305052.51,"d":"$305,052.51"},{"v":513514.18,"d":"$513,514.18"},{"v":621843.82,"d":"$621,843.82"},{"v":371454.82,"d":"$371,454.82"},{"v":922524.73,"d":"$922,524.73"},{"v":794295.89,"d":"$794,295.89"},{"v":616192.82,"d":"$616,192.82"},{"v":22293837.370000005,"d":"$22,293,837.37"},{"v":360288.9,"d":"$360,288.90"},{"v":504536.25,"d":"$504,536.25"},{"v":1311794.25,"d":"$1,311,794.25"},{"v":137233.86,"d":"$137,233.86"},{"v":2304721.59,"d":"$2,304,721.59"},{"v":1486970.19,"d":"$1,486,970.19"},{"v":5493390.69,"d":"$5,493,390.69"},{"v":3782003.7299999995,"d":"$3,782,003.73"},{"v":9598646.998559998,"d":"$9,598,647.00"},{"v":24979586.458559997,"d":"$24,979,586.46"},{"v":3842063.72,"d":"$3,842,063.72"},{"v":21137522.73856,"d":"$21,137,522.74"},{"v":24712601.44856,"d":"$24,712,601.45"},{"v":231980.79,"d":"$231,980.79"},{"v":231980.79,"d":"$231,980.79"},{"v":241532.94,"d":"$241,532.94"},{"v":241532.94,"d":"$241,532.94"},{"v":55948.3,"d":"$55,948.30"},{"v":55948.3,"d":"$55,948.30"},{"v":58677.49,"d":"$58,677.49"},{"v":58677.49,"d":"$58,677.49"},{"v":70276.53,"d":"$70,276.53"},{"v":1952732.46,"d":"$1,952,732.46"},{"v":790999.78,"d":"$790,999.78"},{"v":303202.63,"d":"$303,202.63"},{"v":4293490.44,"d":"$4,293,490.44"},{"v":51299929.41,"d":"$51,299,929.41"},{"v":604099.1,"d":"$604,099.10"},{"v":45703.72,"d":"$45,703.72"},{"v":1942583.21,"d":"$1,942,583.21"},{"v":51299929.25856,"d":"$51,299,929.26"}]
["50082030003","ST LIBORY CONS SCH DIST 30",65.5,{"v":797455.47,"d":"$797,455.47"},{"v":737575.1599999999,"d":"$737,575.16"},{"v":0.9249107790307087,"d":"92%"},3,{"v":906.23,"d":"$906.23"},{"v":271118.94999999995,"d":"$271,118.95"},{"v":272025.17999999993,"d":"$272,025.18"},{"v":0.93051,"d":"0.93"},{"v":199852.74,"d":"$199,852.74"},{"v":39970.54,"d":"$39,970.54"},{"v":20763.92,"d":"$20,763.92"},{"v":9084.21,"d":"$9,084.21"},{"v":6547.95,"d":"$6,547.95"},{"v":11888.36,"d":"$11,888.36"},{"v":4553.02,"d":"$4,553.02"},{"v":7738.64,"d":"$7,738.64"},{"v":10488.93,"d":"$10,488.93"},{"v":5803.98,"d":"$5,803.98"},{"v":15560.65,"d":"$15,560.65"},{"v":13397.76,"d":"$13,397.76"},{"v":9286,"d":"$9,286.00"},{"v":354936.70000000007,"d":"$354,936.70"},{"v":5850,"d":"$5,850.00"},{"v":8187.5,"d":"$8,187.50"},{"v":21287.5,"d":"$21,287.50"},{"v":2227,"d":"$2,227.00"},{"v":18700.25,"d":"$18,700.25"},{"v":10481,"d":"$10,481.00"},{"v":89145.5,"d":"$89,145.50"},{"v":61373.5,"d":"$61,373.50"},{"v":155058.492,"d":"$155,058.49"},{"v":372310.74199999997,"d":"$372,310.74"},{"v":62348.14,"d":"$62,348.14"},{"v":309962.60199999996,"d":"$309,962.60"},{"v":367978.16199999995,"d":"$367,978.16"},{"v":6140.66,"d":"$6,140.66"},{"v":6140.66,"d":"$6,140.66"},{"v":6822.96,"d":"$6,822.96"},{"v":6822.96,"d":"$6,822.96"},{"v":0,"d":"$0.00"},{"v":0,"d":"$0.00"},{"v":0,"d":"$0.00"},{"v":0,"d":"$0.00"},{"v":0,"d":"$0.00"},{"v":31385.63,"d":"$31,385.63"},{"v":12713.48,"d":"$12,713.48"},{"v":4514.18,"d":"$4,514.18"},{"v":74540.53,"d":"$74,540.53"},{"v":797455.47,"d":"$797,455.47"},{"v":8944.710000000001,"d":"$8,944.71"},{"v":0,"d":"$0.00"},{"v":22311.86,"d":"$22,311.86"},{"v":797455.392,"d":"$797,455.39"}]
["50082040026","MARISSA C U SCH DIST 40",487.38,{"v":6808977.76,"d":"$6,808,977.76"},{"v":5354916.62,"d":"$5,354,916.62"},{"v":0.7864494214473686,"d":"79%"},2,{"v":56543.54,"d":"$56,543.54"},{"v":3340662.0800000005,"d":"$3,340,662.08"},{"v":3397205.6200000006,"d":"$3,397,205.62"},{"v":0.93051,"d":"0.93"},{"v":1560131.97,"d":"$1,560,131.97"},{"v":383157.34,"d":"$383,157.34"},{"v":164822.59,"d":"$164,822.59"},{"v":65474.15,"d":"$65,474.15"},{"v":53900.56,"d":"$53,900.56"},{"v":116049.13,"d":"$116,049.13"},{"v":35855.05,"d":"$35,855.05"},{"v":61909.13,"d":"$61,909.13"},{"v":72673.31,"d":"$72,673.31"},{"v":44497.19,"d":"$44,497.19"},{"v":107813.13,"d":"$107,813.13"},{"v":92827.35,"d":"$92,827.35"},{"v":74288.04,"d":"$74,288.04"},{"v":2833398.9399999995,"d":"$2,833,398.94"},{"v":43481.7,"d":"$43,481.70"},{"v":60922.5,"d":"$60,922.50"},{"v":158398.5,"d":"$158,398.50"},{"v":16570.92,"d":"$16,570.92"},{"v":278293.98,"d":"$278,293.98"},{"v":194369.01,"d":"$194,369.01"},{"v":663324.1799999999,"d":"$663,324.18"},{"v":456675.06,"d":"$456,675.06"},{"v":1303598.17332,"d":"$1,303,598.17"},{"v":3175634.02332,"d":"$3,175,634.02"},{"v":463927.27,"d":"$463,927.27"},{"v":2711706.75332,"d":"$2,711,706.75"},{"v":3143395.71332,"d":"$3,143,395.71"},{"v":113943.5,"d":"$113,943.50"},{"v":113943.5,"d":"$113,943.50"},{"v":118719.58,"d":"$118,719.58"},{"v":118719.58,"d":"$118,719.58"},{"v":0,"d":"$0.00"},{"v":0,"d":"$0.00"},{"v":0,"d":"$0.00"},{"v":0,"d":"$0.00"},{"v":0,"d":"$0.00"},{"v":235392.27,"d":"$235,392.27"},{"v":95351.12,"d":"$95,351.12"},{"v":36113.46,"d":"$36,113.46"},{"v":832183.01,"d":"$832,183.01"},{"v":6808977.76,"d":"$6,808,977.76"},{"v":534114.0599999999,"d":"$534,114.06"},{"v":0,"d":"$0.00"},{"v":229478.74999999997,"d":"$229,478.75"},{"v":6808977.663319999,"d":"$6,808,977.66"}]
["50082060026","NEW ATHENS C U SCHOOL DIST 60",465.45,{"v":6295032.27,"d":"$6,295,032.27"},{"v":4917282.680000001,"d":"$4,917,282.68"},{"v":0.7811370091673893,"d":"78%"},2,{"v":38865.2,"d":"$38,865.20"},{"v":1385136.06,"d":"$1,385,136.06"},{"v":1424001.26,"d":"$1,424,001.26"},{"v":0.93051,"d":"0.93"},{"v":1457215.85,"d":"$1,457,215.85"},{"v":358196.83,"d":"$358,196.83"},{"v":157392.66,"d":"$157,392.66"},{"v":62132.34,"d":"$62,132.34"},{"v":49134.06,"d":"$49,134.06"},{"v":110958.4,"d":"$110,958.40"},{"v":34147.66,"d":"$34,147.66"},{"v":58868.95,"d":"$58,868.95"},{"v":68927.26,"d":"$68,927.26"},{"v":42286.15,"d":"$42,286.15"},{"v":102255.75,"d":"$102,255.75"},{"v":88042.43,"d":"$88,042.43"},{"v":70639.97,"d":"$70,639.97"},{"v":2660198.3100000005,"d":"$2,660,198.31"},{"v":41500.799999999996,"d":"$41,500.80"},{"v":58181.25,"d":"$58,181.25"},{"v":151271.25,"d":"$151,271.25"},{"v":15825.3,"d":"$15,825.30"},{"v":265771.95,"d":"$265,771.95"},{"v":186103.38,"d":"$186,103.38"},{"v":633477.45,"d":"$633,477.45"},{"v":436126.65,"d":"$436,126.65"},{"v":1194795.5058000002,"d":"$1,194,795.51"},{"v":2983053.5357999997,"d":"$2,983,053.54"},{"v":443052.54,"d":"$443,052.54"},{"v":2540000.9957999997,"d":"$2,540,001.00"},{"v":2952265.8057999997,"d":"$2,952,265.81"},{"v":81193.27,"d":"$81,193.27"},{"v":81193.27,"d":"$81,193.27"},{"v":84604.76,"d":"$84,604.76"},{"v":84604.76,"d":"$84,604.76"},{"v":0,"d":"$0.00"},{"v":0,"d":"$0.00"},{"v":0,"d":"$0.00"},{"v":0,"d":"$0.00"},{"v":0,"d":"$0.00"},{"v":225157.83,"d":"$225,157.83"},{"v":91205.42,"d":"$91,205.42"},{"v":34608.73,"d":"$34,608.73"},{"v":682568.04,"d":"$682,568.04"},{"v":6295032.27,"d":"$6,295,032.27"},{"v":165939.92000000004,"d":"$165,939.92"},{"v":69.12,"d":"$69.12"},{"v":151995.60000000003,"d":"$151,995.60"},{"v":6295032.155800001,"d":"$6,295,032.16"}]
["50082070004","FREEBURG C C SCHOOL DIST 70",773.25,{"v":9712183.22,"d":"$9,712,183.22"},{"v":7354639.07,"d":"$7,354,639.07"},{"v":0.7572590944181137,"d":"76%"},1,{"v":102407.72,"d":"$102,407.72"},{"v":1497684.74,"d":"$1,497,684.74"},{"v":1600092.46,"d":"$1,600,092.46"},{"v":0.93051,"d":"0.93"},{"v":2312581.72,"d":"$2,312,581.72"},{"v":462516.34,"d":"$462,516.34"},{"v":250464.79,"d":"$250,464.79"},{"v":110957.2,"d":"$110,957.20"},{"v":77274.85,"d":"$77,274.85"},{"v":153849.4,"d":"$153,849.40"},{"v":58051.03,"d":"$58,051.03"},{"v":94798.36,"d":"$94,798.36"},{"v":128114.81,"d":"$128,114.81"},{"v":71029.68,"d":"$71,029.68"},{"v":190062.32,"d":"$190,062.32"},{"v":163644.09,"d":"$163,644.09"},{"v":113753.57,"d":"$113,753.57"},{"v":4187098.1599999997,"d":"$4,187,098.16"},{"v":68535,"d":"$68,535.00"},{"v":96656.25,"d":"$96,656.25"},{"v":251306.25,"d":"$251,306.25"},{"v":26290.5,"d":"$26,290.50"},{"v":441525.75,"d":"$441,525.75"},{"v":129535.5,"d":"$129,535.50"},{"v":1052393.25,"d":"$1,052,393.25"},{"v":724535.25,"d":"$724,535.25"},{"v":1848056.1300000001,"d":"$1,848,056.13"},{"v":4638833.88,"d":"$4,638,833.88"},{"v":736041.21,"d":"$736,041.21"},{"v":3902792.67,"d":"$3,902,792.67"},{"v":4587686.37,"d":"$4,587,686.37"},{"v":85969.35,"d":"$85,969.35"},{"v":85969.35,"d":"$85,969.35"},{"v":89380.83,"d":"$89,380.83"},{"v":89380.83,"d":"$89,380.83"},{"v":682.29,"d":"$682.29"},{"v":682.29,"d":"$682.29"},{"v":682.29,"d":"$682.29"},{"v":682.29,"d":"$682.29"},{"v":682.29,"d":"$682.29"},{"v":373898.45,"d":"$373,898.45"},{"v":151456.28,"d":"$151,456.28"},{"v":57932.01,"d":"$57,932.01"},{"v":937398.55,"d":"$937,398.55"},{"v":9712183.22,"d":"$9,712,183.22"},{"v":121733.4,"d":"$121,733.40"},{"v":358.43999999999994,"d":"$358.44"},{"v":231362.52999999997,"d":"$231,362.53"},{"v":9712183.08,"d":"$9,712,183.08"}]
["50082077016","FREEBURG COMM H S DIST 77",685.65,{"v":9502471.41,"d":"$9,502,471.41"},{"v":7026831.49,"d":"$7,026,831.49"},{"v":0.7394740996121555,"d":"74%"},1,{"v":175771.68,"d":"$175,771.68"},{"v":1717177.6699999997,"d":"$1,717,177.67"},{"v":1892949.3499999996,"d":"$1,892,949.35"},{"v":0.93051,"d":"0.93"},{"v":2126252.98,"d":"$2,126,252.98"},{"v":708680.11,"d":"$708,680.11"},{"v":255239.91,"d":"$255,239.91"},{"v":85079.97,"d":"$85,079.97"},{"v":67032.58,"d":"$67,032.58"},{"v":218398.51,"d":"$218,398.51"},{"v":51790.63,"d":"$51,790.63"},{"v":94521.98,"d":"$94,521.98"},{"v":85409.87,"d":"$85,409.87"},{"v":63014.65,"d":"$63,014.65"},{"v":126708.21,"d":"$126,708.21"},{"v":109096.06,"d":"$109,096.06"},{"v":113421.92,"d":"$113,421.92"},{"v":4104647.3800000004,"d":"$4,104,647.38"},{"v":61708.5,"d":"$61,708.50"},{"v":85706.25,"d":"$85,706.25"},{"v":222836.25,"d":"$222,836.25"},{"v":23312.1,"d":"$23,312.10"},{"v":391506.15,"d":"$391,506.15"},{"v":588973.35,"d":"$588,973.35"},{"v":933169.65,"d":"$933,169.65"},{"v":642454.0499999999,"d":"$642,454.05"},{"v":1740358.6446000002,"d":"$1,740,358.64"},{"v":4690024.9446,"d":"$4,690,024.94"},{"v":652656.52,"d":"$652,656.52"},{"v":4037368.4246,"d":"$4,037,368.42"},{"v":4644671.8346,"d":"$4,644,671.83"},{"v":57995.19,"d":"$57,995.19"},{"v":57995.19,"d":"$57,995.19"},{"v":60042.08,"d":"$60,042.08"},{"v":60042.08,"d":"$60,042.08"},{"v":0,"d":"$0.00"},{"v":0,"d":"$0.00"},{"v":0,"d":"$0.00"},{"v":0,"d":"$0.00"},{"v":0,"d":"$0.00"},{"v":331596.07,"d":"$331,596.07"},{"v":134320.71,"d":"$134,320.71"},{"v":51160.74,"d":"$51,160.74"},{"v":753152.06,"d":"$753,152.06"},{"v":9502471.41,"d":"$9,502,471.41"},{"v":68980.26000000001,"d":"$68,980.26"},{"v":169.77,"d":"$169.77"},{"v":219817.28999999998,"d":"$219,817.29"},{"v":9502471.274600001,"d":"$9,502,471.27"}]
["50082085002","SHILOH VILLAGE SCHOOL DIST 85",566.25,{"v":7155075.29,"d":"$7,155,075.29"},{"v":4912739.949999999,"d":"$4,912,739.95"},{"v":0.6866091202235273,"d":"69%"},1,{"v":264299.71,"d":"$264,299.71"},{"v":2415438.1500000004,"d":"$2,415,438.15"},{"v":2679737.8600000003,"d":"$2,679,737.86"},{"v":0.93051,"d":"0.93"},{"v":1701992.66,"d":"$1,701,992.66"},{"v":340398.52,"d":"$340,398.52"},{"v":182982.05,"d":"$182,982.05"},{"v":81109.06,"d":"$81,109.06"},{"v":57153.85,"d":"$57,153.85"},{"v":110491.84,"d":"$110,491.84"},{"v":42684.58,"d":"$42,684.58"},{"v":69371.4,"d":"$69,371.40"},{"v":93651.17,"d":"$93,651.17"},{"v":51959.45,"d":"$51,959.45"},{"v":138934.44,"d":"$138,934.44"},{"v":119622.87,"d":"$119,622.87"},{"v":83242.41,"d":"$83,242.41"},{"v":3073594.3000000003,"d":"$3,073,594.30"},{"v":50355,"d":"$50,355.00"},{"v":70781.25,"d":"$70,781.25"},{"v":184031.25,"d":"$184,031.25"},{"v":19252.5,"d":"$19,252.50"},{"v":323328.75,"d":"$323,328.75"},{"v":92691.5,"d":"$92,691.50"},{"v":770666.25,"d":"$770,666.25"},{"v":530576.25,"d":"$530,576.25"},{"v":1364127.2519999999,"d":"$1,364,127.25"},{"v":3405810.002,"d":"$3,405,810.00"},{"v":539002.05,"d":"$539,002.05"},{"v":2866807.9519999996,"d":"$2,866,807.95"},{"v":3368354.7419999996,"d":"$3,368,354.74"},{"v":70276.53,"d":"$70,276.53"},{"v":70276.53,"d":"$70,276.53"},{"v":73005.72,"d":"$73,005.72"},{"v":73005.72,"d":"$73,005.72"},{"v":0,"d":"$0.00"},{"v":0,"d":"$0.00"},{"v":0,"d":"$0.00"},{"v":0,"d":"$0.00"},{"v":0,"d":"$0.00"},{"v":273600.87,"d":"$273,600.87"},{"v":110828.41,"d":"$110,828.41"},{"v":42132.37,"d":"$42,132.37"},{"v":713126.15,"d":"$713,126.15"},{"v":7155075.29,"d":"$7,155,075.29"},{"v":143332.3,"d":"$143,332.30"},{"v":29.15,"d":"$29.15"},{"v":238129.43,"d":"$238,129.43"},{"v":7155075.192,"d":"$7,155,075.19"}]
["50082090004","O FALLON C C SCHOOL DIST 90",3869.75,{"v":48086987.36,"d":"$48,086,987.36"},{"v":31661500.159999996,"d":"$31,661,500.16"},{"v":0.6584213713154518,"d":"66%"},1,{"v":2173691.61,"d":"$2,173,691.61"},{"v":11300791.96,"d":"$11,300,791.96"},{"v":13474483.57,"d":"$13,474,483.57"},{"v":0.93051,"d":"0.93"},{"v":11520731.91,"d":"$11,520,731.91"},{"v":2304146.38,"d":"$2,304,146.38"},{"v":1254919.48,"d":"$1,254,919.48"},{"v":557381.51,"d":"$557,381.51"},{"v":380982.91,"d":"$380,982.91"},{"v":765750.45,"d":"$765,750.45"},{"v":293100.83,"d":"$293,100.83"},{"v":475097.35,"d":"$475,097.35"},{"v":643570.9,"d":"$643,570.90"},{"v":356253.92,"d":"$356,253.92"},{"v":954757.52,"d":"$954,757.52"},{"v":822048.4,"d":"$822,048.40"},{"v":570094.43,"d":"$570,094.43"},{"v":20898835.99,"d":"$20,898,835.99"},{"v":344835,"d":"$344,835.00"},{"v":483718.75,"d":"$483,718.75"},{"v":1257668.75,"d":"$1,257,668.75"},{"v":131571.5,"d":"$131,571.50"},{"v":2209627.25,"d":"$2,209,627.25"},{"v":643671.5,"d":"$643,671.50"},{"v":5266729.75,"d":"$5,266,729.75"},{"v":3625955.75,"d":"$3,625,955.75"},{"v":9124451.772,"d":"$9,124,451.77"},{"v":23088230.022,"d":"$23,088,230.02"},{"v":3683537.63,"d":"$3,683,537.63"},{"v":19404692.392,"d":"$19,404,692.39"},{"v":22832260.992000002,"d":"$22,832,260.99"},{"v":345242,"d":"$345,242.00"},{"v":345242,"d":"$345,242.00"},{"v":359570.23,"d":"$359,570.23"},{"v":359570.23,"d":"$359,570.23"},{"v":4776.07,"d":"$4,776.07"},{"v":4776.07,"d":"$4,776.07"},{"v":4776.07,"d":"$4,776.07"},{"v":4776.07,"d":"$4,776.07"},{"v":6140.66,"d":"$6,140.66"},{"v":1872221.47,"d":"$1,872,221.47"},{"v":758386.94,"d":"$758,386.94"},{"v":290412.45,"d":"$290,412.45"},{"v":4355890.26,"d":"$4,355,890.26"},{"v":48086987.36,"d":"$48,086,987.36"},{"v":674211.1599999999,"d":"$674,211.16"},{"v":4226.639999999999,"d":"$4,226.64"},{"v":1628499.4200000002,"d":"$1,628,499.42"},{"v":48086987.242,"d":"$48,086,987.24"}]
["50082104002","CENTRAL SCHOOL DIST 104",570,{"v":7793262.9,"d":"$7,793,262.90"},{"v":6731574.27,"d":"$6,731,574.27"},{"v":0.8637684056571477,"d":"86%"},2,{"v":11827.3,"d":"$11,827.30"},{"v":790476.27,"d":"$790,476.27"},{"v":802303.5700000001,"d":"$802,303.57"},{"v":0.93051,"d":"0.93"},{"v":1851882.22,"d":"$1,851,882.22"},{"v":370376.44,"d":"$370,376.44"},{"v":184279.8,"d":"$184,279.80"},{"v":81757.93,"d":"$81,757.93"},{"v":64634.4,"d":"$64,634.40"},{"v":111191.16,"d":"$111,191.16"},{"v":42684.58,"d":"$42,684.58"},{"v":69924.16,"d":"$69,924.16"},{"v":94400.38,"d":"$94,400.38"},{"v":52235.83,"d":"$52,235.83"},{"v":140045.92,"d":"$140,045.92"},{"v":120579.85,"d":"$120,579.85"},{"v":83905.69,"d":"$83,905.69"},{"v":3267898.3600000003,"d":"$3,267,898.36"},{"v":50670,"d":"$50,670.00"},{"v":71250,"d":"$71,250.00"},{"v":185250,"d":"$185,250.00"},{"v":19380,"d":"$19,380.00"},{"v":325470,"d":"$325,470.00"},{"v":93315,"d":"$93,315.00"},{"v":775770,"d":"$775,770.00"},{"v":534090,"d":"$534,090.00"},{"v":1515470.439,"d":"$1,515,470.44"},{"v":3570665.4390000002,"d":"$3,570,665.44"},{"v":542571.6,"d":"$542,571.60"},{"v":3028093.839,"d":"$3,028,093.84"},{"v":3532962.129,"d":"$3,532,962.13"},{"v":136459.29,"d":"$136,459.29"},{"v":136459.29,"d":"$136,459.29"},{"v":142599.95,"d":"$142,599.95"},{"v":142599.95,"d":"$142,599.95"},{"v":682.29,"d":"$682.29"},{"v":682.29,"d":"$682.29"},{"v":682.29,"d":"$682.29"},{"v":682.29,"d":"$682.29"},{"v":1364.59,"d":"$1,364.59"},{"v":275647.76,"d":"$275,647.76"},{"v":111657.55,"d":"$111,657.55"},{"v":42884.74,"d":"$42,884.74"},{"v":992402.2800000001,"d":"$992,402.28"},{"v":7793262.9,"d":"$7,793,262.90"},{"v":257158.68,"d":"$257,158.68"},{"v":449.01,"d":"$449.01"},{"v":214727.01000000004,"d":"$214,727.01"},{"v":7793262.769,"d":"$7,793,262.77"}]
["50082105002","PONTIAC-W HOLLIDAY SCH DIST 105",630.23,{"v":8385012.52,"d":"$8,385,012.52"},{"v":9086691.03,"d":"$9,086,691.03"},{"v":1.0836824641974416,"d":"108%"},4,{"v":534.11,"d":"$534.11"},{"v":677467.62,"d":"$677,467.62"},{"v":678001.73,"d":"$678,001.73"},{"v":0.93051,"d":"0.93"},{"v":2013451.48,"d":"$2,013,451.48"},{"v":402690.28,"d":"$402,690.28"},{"v":203745.97,"d":"$203,745.97"},{"v":90193.28,"d":"$90,193.28"},{"v":70642.17,"d":"$70,642.17"},{"v":125177.47,"d":"$125,177.47"},{"v":47237.6,"d":"$47,237.60"},{"v":77110.04,"d":"$77,110.04"},{"v":104140.11,"d":"$104,140.11"},{"v":57763.43,"d":"$57,763.43"},{"v":154495.1,"d":"$154,495.10"},{"v":133020.63,"d":"$133,020.63"},{"v":92528.41,"d":"$92,528.41"},{"v":3572195.97,"d":"$3,572,195.97"},{"v":56233.799999999996,"d":"$56,233.80"},{"v":78778.75,"d":"$78,778.75"},{"v":204824.75,"d":"$204,824.75"},{"v":21427.82,"d":"$21,427.82"},{"v":179930.66,"d":"$179,930.66"},{"v":106084.34,"d":"$106,084.34"},{"v":857743.03,"d":"$857,743.03"},{"v":590525.51,"d":"$590,525.51"},{"v":1662414.36972,"d":"$1,662,414.37"},{"v":3757963.02972,"d":"$3,757,963.03"},{"v":599903.33,"d":"$599,903.33"},{"v":3158059.6997199995,"d":"$3,158,059.70"},{"v":3716275.7397199995,"d":"$3,716,275.74"},{"v":152152.11,"d":"$152,152.11"},{"v":152152.11,"d":"$152,152.11"},{"v":158292.77,"d":"$158,292.77"},{"v":158292.77,"d":"$158,292.77"},{"v":0,"d":"$0.00"},{"v":0,"d":"$0.00"},{"v":0,"d":"$0.00"},{"v":0,"d":"$0.00"},{"v":682.29,"d":"$682.29"},{"v":304304.22,"d":"$304,304.22"},{"v":123265.51,"d":"$123,265.51"},{"v":47398.92,"d":"$47,398.92"},{"v":1096540.7,"d":"$1,096,540.70"},{"v":8385012.52,"d":"$8,385,012.52"},{"v":221856.73999999996,"d":"$221,856.74"},{"v":7.36,"d":"$7.36"},{"v":200130.38999999998,"d":"$200,130.39"},{"v":8385012.40972,"d":"$8,385,012.41"}]
["50082110004","GRANT COMM CONS SCH DIST 110",541.14,{"v":7600122.03,"d":"$7,600,122.03"},{"v":5611376.47,"d":"$5,611,376.47"},{"v":0.7383271542022858,"d":"74%"},1,{"v":140767.94,"d":"$140,767.94"},{"v":2046555.96,"d":"$2,046,555.96"},{"v":2187323.9,"d":"$2,187,323.90"},{"v":0.93051,"d":"0.93"},{"v":1779857.37,"d":"$1,779,857.37"},{"v":355971.46,"d":"$355,971.46"},{"v":175195.58,"d":"$175,195.58"},{"v":77215.83,"d":"$77,215.83"},{"v":63588.68,"d":"$63,588.68"},{"v":107694.58,"d":"$107,694.58"},{"v":40408.07,"d":"$40,408.07"},{"v":66054.83,"d":"$66,054.83"},{"v":89155.92,"d":"$89,155.92"},{"v":49748.41,"d":"$49,748.41"},{"v":132265.59,"d":"$132,265.59"},{"v":113880.97,"d":"$113,880.97"},{"v":79262.69,"d":"$79,262.69"},{"v":3130299.9800000004,"d":"$3,130,299.98"},{"v":48117.59999999999,"d":"$48,117.60"},{"v":67642.5,"d":"$67,642.50"},{"v":175870.5,"d":"$175,870.50"},{"v":18398.76,"d":"$18,398.76"},{"v":308990.94,"d":"$308,990.94"},{"v":90739.68,"d":"$90,739.68"},{"v":736491.5399999999,"d":"$736,491.54"},{"v":507048.17999999993,"d":"$507,048.18"},{"v":1486782.0639599997,"d":"$1,486,782.06"},{"v":3440081.7639599997,"d":"$3,440,081.76"},{"v":515100.34,"d":"$515,100.34"},{"v":2924981.42396,"d":"$2,924,981.42"},{"v":3404287.43396,"d":"$3,404,287.43"},{"v":161021.96,"d":"$161,021.96"},{"v":161021.96,"d":"$161,021.96"},{"v":167844.92,"d":"$167,844.92"},{"v":167844.92,"d":"$167,844.92"},{"v":0,"d":"$0.00"},{"v":0,"d":"$0.00"},{"v":0,"d":"$0.00"},{"v":0,"d":"$0.00"},{"v":0,"d":"$0.00"},{"v":261319.54,"d":"$261,319.54"},{"v":105853.57,"d":"$105,853.57"},{"v":40627.64,"d":"$40,627.64"},{"v":1065534.51,"d":"$1,065,534.51"},{"v":7600122.03,"d":"$7,600,122.03"},{"v":472011.41,"d":"$472,011.41"},{"v":5.42,"d":"$5.42"},{"v":308820.24000000005,"d":"$308,820.24"},{"v":7600121.92396,"d":"$7,600,121.92"}]
["50082113002","WOLF BRANCH SCH DIST 113",756.25,{"v":9372062.92,"d":"$9,372,062.92"},{"v":7126105.329999999,"d":"$7,126,105.33"},{"v":0.760356112718031,"d":"76%"},1,{"v":79026.76,"d":"$79,026.76"},{"v":1273243.22,"d":"$1,273,243.22"},{"v":1352269.98,"d":"$1,352,269.98"},{"v":0.93051,"d":"0.93"},{"v":2258725.3,"d":"$2,258,725.30"},{"v":451745.05,"d":"$451,745.05"},{"v":244624.94,"d":"$244,624.94"},{"v":108361.71,"d":"$108,361.71"},{"v":74348.85,"d":"$74,348.85"},{"v":146156.93,"d":"$146,156.93"},{"v":56912.78,"d":"$56,912.78"},{"v":92587.32,"d":"$92,587.32"},{"v":125117.97,"d":"$125,117.97"},{"v":69647.78,"d":"$69,647.78"},{"v":185616.42,"d":"$185,616.42"},{"v":159816.16,"d":"$159,816.16"},{"v":111100.42,"d":"$111,100.42"},{"v":4084761.6299999994,"d":"$4,084,761.63"},{"v":67725,"d":"$67,725.00"},{"v":94531.25,"d":"$94,531.25"},{"v":245781.25,"d":"$245,781.25"},{"v":25712.5,"d":"$25,712.50"},{"v":431818.75,"d":"$431,818.75"},{"v":123450.5,"d":"$123,450.50"},{"v":1029256.25,"d":"$1,029,256.25"},{"v":708606.25,"d":"$708,606.25"},{"v":1777480.4519999998,"d":"$1,777,480.45"},{"v":4504362.202,"d":"$4,504,362.20"},{"v":719859.25,"d":"$719,859.25"},{"v":3784502.9519999996,"d":"$3,784,502.95"},{"v":4454339.182,"d":"$4,454,339.18"},{"v":60724.38,"d":"$60,724.38"},{"v":60724.38,"d":"$60,724.38"},{"v":63453.57,"d":"$63,453.57"},{"v":63453.57,"d":"$63,453.57"},{"v":2729.18,"d":"$2,729.18"},{"v":2729.18,"d":"$2,729.18"},{"v":2729.18,"d":"$2,729.18"},{"v":2729.18,"d":"$2,729.18"},{"v":3411.48,"d":"$3,411.48"},{"v":365710.9,"d":"$365,710.90"},{"v":148139.72,"d":"$148,139.72"},{"v":56427.28,"d":"$56,427.28"},{"v":832962,"d":"$832,962.00"},{"v":9372062.92,"d":"$9,372,062.92"},{"v":52950.07,"d":"$52,950.07"},{"v":346.47,"d":"$346.47"},{"v":224259.19,"d":"$224,259.19"},{"v":9372062.811999999,"d":"$9,372,062.81"}]
["50082115002","WHITESIDE SCHOOL DIST 115",1148.23,{"v":15460250.08,"d":"$15,460,250.08"},{"v":11087665.88,"d":"$11,087,665.88"},{"v":0.7171724792694945,"d":"72%"},1,{"v":386350.26,"d":"$386,350.26"},{"v":4072790.72,"d":"$4,072,790.72"},{"v":4459140.98,"d":"$4,459,140.98"},{"v":0.93051,"d":"0.93"},{"v":3637579.44,"d":"$3,637,579.44"},{"v":727515.88,"d":"$727,515.88"},{"v":372452.83,"d":"$372,452.83"},{"v":165462.49,"d":"$165,462.49"},{"v":126942.2,"d":"$126,942.20"},{"v":229375.47,"d":"$229,375.47"},{"v":86507.43,"d":"$86,507.43"},{"v":140953.84,"d":"$140,953.84"},{"v":191048.4,"d":"$191,048.40"},{"v":105577.19,"d":"$105,577.19"},{"v":283426.27,"d":"$283,426.27"},{"v":244030.66,"d":"$244,030.66"},{"v":169137.96,"d":"$169,137.96"},{"v":6480010.060000001,"d":"$6,480,010.06"},{"v":101893.5,"d":"$101,893.50"},{"v":143528.75,"d":"$143,528.75"},{"v":373174.75,"d":"$373,174.75"},{"v":39039.82,"d":"$39,039.82"},{"v":655639.3300000001,"d":"$655,639.33"},{"v":192358.75,"d":"$192,358.75"},{"v":1562741.03,"d":"$1,562,741.03"},{"v":1075891.51,"d":"$1,075,891.51"},{"v":2994372.4837200004,"d":"$2,994,372.48"},{"v":7138639.92372,"d":"$7,138,639.92"},{"v":1092977.17,"d":"$1,092,977.17"},{"v":6045662.753720001,"d":"$6,045,662.75"},{"v":7062688.933720001,"d":"$7,062,688.93"},{"v":257225.76,"d":"$257,225.76"},{"v":257225.76,"d":"$257,225.76"},{"v":268142.5,"d":"$268,142.50"},{"v":268142.5,"d":"$268,142.50"},{"v":0,"d":"$0.00"},{"v":0,"d":"$0.00"},{"v":0,"d":"$0.00"},{"v":0,"d":"$0.00"},{"v":682.29,"d":"$682.29"},{"v":555389.31,"d":"$555,389.31"},{"v":224973.38,"d":"$224,973.38"},{"v":85769.48,"d":"$85,769.48"},{"v":1917550.98,"d":"$1,917,550.98"},{"v":15460250.08,"d":"$15,460,250.08"},{"v":645249.0800000001,"d":"$645,249.08"},{"v":0,"d":"$0.00"},{"v":562436.3,"d":"$562,436.30"},{"v":15460249.973720003,"d":"$15,460,249.97"}]
["50082116002","HIGH MOUNT SCHOOL DIST 116",326.96,{"v":4601249.76,"d":"$4,601,249.76"},{"v":3674179.98,"d":"$3,674,179.98"},{"v":0.7985178313815332,"d":"80%"},2,{"v":31682.51,"d":"$31,682.51"},{"v":2344191.0700000003,"d":"$2,344,191.07"},{"v":2375873.58,"d":"$2,375,873.58"},{"v":0.93051,"d":"0.93"},{"v":1078426.15,"d":"$1,078,426.15"},{"v":215685.22,"d":"$215,685.22"},{"v":105117.35,"d":"$105,117.35"},{"v":46718.82,"d":"$46,718.82"},{"v":38537.07,"d":"$38,537.07"},{"v":65036.34,"d":"$65,036.34"},{"v":24472.49,"d":"$24,472.49"},{"v":40075.11,"d":"$40,075.11"},{"v":53943.07,"d":"$53,943.07"},{"v":29849.04,"d":"$29,849.04"},{"v":80026.24,"d":"$80,026.24"},{"v":68902.77,"d":"$68,902.77"},{"v":48088.24,"d":"$48,088.24"},{"v":1894877.9100000004,"d":"$1,894,877.91"},{"v":29066.399999999998,"d":"$29,066.40"},{"v":40869.99999999999,"d":"$40,870.00"},{"v":106261.99999999999,"d":"$106,262.00"},{"v":11116.64,"d":"$11,116.64"},{"v":186694.15999999997,"d":"$186,694.16"},{"v":54648.59999999999,"d":"$54,648.60"},{"v":444992.55999999994,"d":"$444,992.56"},{"v":306361.51999999996,"d":"$306,361.52"},{"v":900584.51244,"d":"$900,584.51"},{"v":2080596.3924399999,"d":"$2,080,596.39"},{"v":311226.68,"d":"$311,226.68"},{"v":1769369.7124399997,"d":"$1,769,369.71"},{"v":2058969.2424399997,"d":"$2,058,969.24"},{"v":98250.68,"d":"$98,250.68"},{"v":98250.68,"d":"$98,250.68"},{"v":102344.46,"d":"$102,344.46"},{"v":102344.46,"d":"$102,344.46"},{"v":0,"d":"$0.00"},{"v":0,"d":"$0.00"},{"v":0,"d":"$0.00"},{"v":0,"d":"$0.00"},{"v":682.29,"d":"$682.29"},{"v":157610.48,"d":"$157,610.48"},{"v":63843.79,"d":"$63,843.79"},{"v":24075.64,"d":"$24,075.64"},{"v":647402.4800000001,"d":"$647,402.48"},{"v":4601249.76,"d":"$4,601,249.76"},{"v":329395.49,"d":"$329,395.49"},{"v":155.51999999999998,"d":"$155.52"},{"v":176355.84,"d":"$176,355.84"},{"v":4601249.632440001,"d":"$4,601,249.63"}]
["50082118002","BELLEVILLE SCHOOL DIST 118",3305.21,{"v":46868965.39,"d":"$46,868,965.39"},{"v":35523211.45,"d":"$35,523,211.45"},{"v":0.7579260850844227,"d":"76%"},1,{"v":693140.36,"d":"$693,140.36"},{"v":24709329.36,"d":"$24,709,329.36"},{"v":25402469.72,"d":"$25,402,469.72"},{"v":0.93051,"d":"0.93"},{"v":10901707.51,"d":"$10,901,707.51"},{"v":2180341.49,"d":"$2,180,341.49"},{"v":1071288.56,"d":"$1,071,288.56"},{"v":475623.57,"d":"$475,623.57"},{"v":393061.13,"d":"$393,061.13"},{"v":660853.13,"d":"$660,853.13"},{"v":249847.11,"d":"$249,847.11"},{"v":405725.95,"d":"$405,725.95"},{"v":549170.51,"d":"$549,170.51"},{"v":304294.46,"d":"$304,294.46"},{"v":814711.6,"d":"$814,711.60"},{"v":701468.54,"d":"$701,468.54"},{"v":486852.02,"d":"$486,852.02"},{"v":19194945.580000002,"d":"$19,194,945.58"},{"v":292894.20000000007,"d":"$292,894.20"},{"v":413151.25000000006,"d":"$413,151.25"},{"v":1074193.25,"d":"$1,074,193.25"},{"v":112377.14000000001,"d":"$112,377.14"},{"v":1887274.9100000001,"d":"$1,887,274.91"},{"v":554542.26,"d":"$554,542.26"},{"v":4498390.8100000005,"d":"$4,498,390.81"},{"v":3096981.7700000005,"d":"$3,096,981.77"},{"v":9189424.37544,"d":"$9,189,424.38"},{"v":21119229.965439998,"d":"$21,119,229.97"},{"v":3146163.29,"d":"$3,146,163.29"},{"v":17973066.675440002,"d":"$17,973,066.68"},{"v":20900603.07544,"d":"$20,900,603.08"},{"v":1045278.17,"d":"$1,045,278.17"},{"v":1045278.17,"d":"$1,045,278.17"},{"v":1088262.84,"d":"$1,088,262.84"},{"v":1088262.84,"d":"$1,088,262.84"},{"v":2046.88,"d":"$2,046.88"},{"v":2046.88,"d":"$2,046.88"},{"v":2046.88,"d":"$2,046.88"},{"v":2046.88,"d":"$2,046.88"},{"v":2729.18,"d":"$2,729.18"},{"v":1599302.89,"d":"$1,599,302.89"},{"v":647834.9,"d":"$647,834.90"},{"v":248280.07,"d":"$248,280.07"},{"v":6773416.58,"d":"$6,773,416.58"},{"v":46868965.39,"d":"$46,868,965.39"},{"v":4906116.3,"d":"$4,906,116.30"},{"v":1874.9099999999999,"d":"$1,874.91"},{"v":1930888.3900000001,"d":"$1,930,888.39"},{"v":46868965.23544,"d":"$46,868,965.24"}]
["50082119002","BELLE VALLEY SCHOOL DIST 119",968.89,{"v":13708793.58,"d":"$13,708,793.58"},{"v":9382885.66,"d":"$9,382,885.66"},{"v":0.6844428435839064,"d":"68%"},1,{"v":561655.3,"d":"$561,655.30"},{"v":7029414.83,"d":"$7,029,414.83"},{"v":7591070.13,"d":"$7,591,070.13"},{"v":0.93051,"d":"0.93"},{"v":3194399.5,"d":"$3,194,399.50"},{"v":638879.89,"d":"$638,879.89"},{"v":313405.43,"d":"$313,405.43"},{"v":138858.72,"d":"$138,858.72"},{"v":114997.39,"d":"$114,997.39"},{"v":192311.75,"d":"$192,311.75"},{"v":72848.36,"d":"$72,848.36"},{"v":118567.05,"d":"$118,567.05"},{"v":160330.81,"d":"$160,330.81"},{"v":88994.38,"d":"$88,994.38"},{"v":237855.77,"d":"$237,855.77"},{"v":204794.36,"d":"$204,794.36"},{"v":142274.87,"d":"$142,274.87"},{"v":5618518.279999999,"d":"$5,618,518.28"},{"v":85903.2,"d":"$85,903.20"},{"v":121111.25,"d":"$121,111.25"},{"v":314889.25,"d":"$314,889.25"},{"v":32942.26,"d":"$32,942.26"},{"v":553236.19,"d":"$553,236.19"},{"v":161943.68,"d":"$161,943.68"},{"v":1318659.29,"d":"$1,318,659.29"},{"v":907849.93,"d":"$907,849.93"},{"v":2686575.8469599998,"d":"$2,686,575.85"},{"v":6183110.89696,"d":"$6,183,110.90"},{"v":922267.01,"d":"$922,267.01"},{"v":5260843.886959999,"d":"$5,260,843.89"},{"v":6119022.556959999,"d":"$6,119,022.56"},{"v":292705.18,"d":"$292,705.18"},{"v":292705.18,"d":"$292,705.18"},{"v":304304.22,"d":"$304,304.22"},{"v":304304.22,"d":"$304,304.22"},{"v":8869.85,"d":"$8,869.85"},{"v":8869.85,"d":"$8,869.85"},{"v":8869.85,"d":"$8,869.85"},{"v":8869.85,"d":"$8,869.85"},{"v":10916.74,"d":"$10,916.74"},{"v":468737.66,"d":"$468,737.66"},{"v":189873.11,"d":"$189,873.11"},{"v":72226.93,"d":"$72,226.93"},{"v":1971252.64,"d":"$1,971,252.64"},{"v":13708793.58,"d":"$13,708,793.58"},{"v":1174156.0600000003,"d":"$1,174,156.06"},{"v":9725.71,"d":"$9,725.71"},{"v":577264.0300000001,"d":"$577,264.03"},{"v":13708793.47696,"d":"$13,708,793.48"}]
["50082130004","SMITHTON C C SCHOOL DIST 130",557.72,{"v":6746951.83,"d":"$6,746,951.83"},{"v":4713097.37,"d":"$4,713,097.37"},{"v":0.6985521000822086,"d":"70%"},1,{"v":208646.56,"d":"$208,646.56"},{"v":1483793.3699999996,"d":"$1,483,793.37"},{"v":1692439.9299999997,"d":"$1,692,439.93"},{"v":0.93051,"d":"0.93"},{"v":1628670.07,"d":"$1,628,670.07"},{"v":325734.01,"d":"$325,734.01"},{"v":180386.56,"d":"$180,386.56"},{"v":79811.32,"d":"$79,811.32"},{"v":52801.11,"d":"$52,801.11"},{"v":110491.84,"d":"$110,491.84"},{"v":42115.45,"d":"$42,115.45"},{"v":68265.87,"d":"$68,265.87"},{"v":92152.76,"d":"$92,152.76"},{"v":51130.31,"d":"$51,130.31"},{"v":136711.49,"d":"$136,711.49"},{"v":117708.91,"d":"$117,708.91"},{"v":81915.83,"d":"$81,915.83"},{"v":2967895.5300000003,"d":"$2,967,895.53"},{"v":49782.6,"d":"$49,782.60"},{"v":69715,"d":"$69,715.00"},{"v":181259,"d":"$181,259.00"},{"v":18962.48,"d":"$18,962.48"},{"v":318458.12,"d":"$318,458.12"},{"v":93569.26000000001,"d":"$93,569.26"},{"v":759056.92,"d":"$759,056.92"},{"v":522583.64,"d":"$522,583.64"},{"v":1270606.38708,"d":"$1,270,606.39"},{"v":3283993.4070800003,"d":"$3,283,993.41"},{"v":530882.51,"d":"$530,882.51"},{"v":2753110.8970800005,"d":"$2,753,110.90"},{"v":3247102.3770800005,"d":"$3,247,102.38"},{"v":27291.85,"d":"$27,291.85"},{"v":27291.85,"d":"$27,291.85"},{"v":28656.45,"d":"$28,656.45"},{"v":28656.45,"d":"$28,656.45"},{"v":0,"d":"$0.00"},{"v":0,"d":"$0.00"},{"v":0,"d":"$0.00"},{"v":0,"d":"$0.00"},{"v":0,"d":"$0.00"},{"v":269507.1,"d":"$269,507.10"},{"v":109170.13,"d":"$109,170.13"},{"v":41380.01,"d":"$41,380.01"},{"v":531953.84,"d":"$531,953.84"},{"v":6746951.83,"d":"$6,746,951.83"},{"v":46072.17,"d":"$46,072.17"},{"v":0,"d":"$0.00"},{"v":167017.52,"d":"$167,017.52"},{"v":6746951.74708,"d":"$6,746,951.75"}]
["50082160004","MILLSTADT C C  SCH DIST 160",706.63,{"v":8832744.28,"d":"$8,832,744.28"},{"v":7938282.77,"d":"$7,938,282.77"},{"v":0.8987334534267758,"d":"90%"},2,{"v":14662.33,"d":"$14,662.33"},{"v":1106890.8699999999,"d":"$1,106,890.87"},{"v":1121553.2,"d":"$1,121,553.20"},{"v":0.93051,"d":"0.93"},{"v":2102995.89,"d":"$2,102,995.89"},{"v":420599.17,"d":"$420,599.17"},{"v":228403.13,"d":"$228,403.13"},{"v":101224.11,"d":"$101,224.11"},{"v":70138.74,"d":"$70,138.74"},{"v":139863.09,"d":"$139,863.09"},{"v":52928.88,"d":"$52,928.88"},{"v":86506.96,"d":"$86,506.96"},{"v":116876.67,"d":"$116,876.67"},{"v":64949.31,"d":"$64,949.31"},{"v":173390.19,"d":"$173,390.19"},{"v":149289.34,"d":"$149,289.34"},{"v":103804.28,"d":"$103,804.28"},{"v":3810969.7599999993,"d":"$3,810,969.76"},{"v":62592.29999999999,"d":"$62,592.30"},{"v":88328.75,"d":"$88,328.75"},{"v":229654.75,"d":"$229,654.75"},{"v":24025.42,"d":"$24,025.42"},{"v":403485.73,"d":"$403,485.73"},{"v":117932.50999999998,"d":"$117,932.51"},{"v":961723.43,"d":"$961,723.43"},{"v":662112.31,"d":"$662,112.31"},{"v":1678664.2873200001,"d":"$1,678,664.29"},{"v":4228519.48732,"d":"$4,228,519.49"},{"v":672626.96,"d":"$672,626.96"},{"v":3555892.5273200003,"d":"$3,555,892.53"},{"v":4181778.63732,"d":"$4,181,778.64"},{"v":75052.61,"d":"$75,052.61"},{"v":75052.61,"d":"$75,052.61"},{"v":78464.09,"d":"$78,464.09"},{"v":78464.09,"d":"$78,464.09"},{"v":0,"d":"$0.00"},{"v":0,"d":"$0.00"},{"v":0,"d":"$0.00"},{"v":0,"d":"$0.00"},{"v":0,"d":"$0.00"},{"v":341830.52,"d":"$341,830.52"},{"v":138466.42,"d":"$138,466.42"},{"v":52665.47,"d":"$52,665.47"},{"v":839995.81,"d":"$839,995.81"},{"v":8832744.28,"d":"$8,832,744.28"},{"v":93384.27,"d":"$93,384.27"},{"v":0,"d":"$0.00"},{"v":275171.6,"d":"$275,171.60"},{"v":8832744.20732,"d":"$8,832,744.21"}]
["50082175002","HARMONY EMGE SCHOOL DIST 175",719.97,{"v":10187364.27,"d":"$10,187,364.27"},{"v":7437206.49,"d":"$7,437,206.49"},{"v":0.7300422653876497,"d":"73%"},1,{"v":224447.73,"d":"$224,447.73"},{"v":3137287.84,"d":"$3,137,287.84"},{"v":3361735.57,"d":"$3,361,735.57"},{"v":0.93051,"d":"0.93"},{"v":2376171.23,"d":"$2,376,171.23"},{"v":475234.24,"d":"$475,234.24"},{"v":232945.24,"d":"$232,945.24"},{"v":103170.73,"d":"$103,170.73"},{"v":85432.11,"d":"$85,432.11"},{"v":143359.67,"d":"$143,359.67"},{"v":54067.14,"d":"$54,067.14"},{"v":88165.24,"d":"$88,165.24"},{"v":119124.29,"d":"$119,124.29"},{"v":66054.83,"d":"$66,054.83"},{"v":176724.61,"d":"$176,724.61"},{"v":152160.29,"d":"$152,160.29"},{"v":105794.13,"d":"$105,794.13"},{"v":4178403.75,"d":"$4,178,403.75"},{"v":64137.59999999999,"d":"$64,137.60"},{"v":89996.25,"d":"$89,996.25"},{"v":233990.25,"d":"$233,990.25"},{"v":24478.979999999996,"d":"$24,478.98"},{"v":411102.87,"d":"$411,102.87"},{"v":121545.68,"d":"$121,545.68"},{"v":979879.17,"d":"$979,879.17"},{"v":674611.89,"d":"$674,611.89"},{"v":1996127.09808,"d":"$1,996,127.10"},{"v":4595869.788079999,"d":"$4,595,869.79"},{"v":685325.04,"d":"$685,325.04"},{"v":3910544.7480800003,"d":"$3,910,544.75"},{"v":4548246.54808,"d":"$4,548,246.55"},{"v":223110.94,"d":"$223,110.94"},{"v":223110.94,"d":"$223,110.94"},{"v":232663.09,"d":"$232,663.09"},{"v":232663.09,"d":"$232,663.09"},{"v":1364.59,"d":"$1,364.59"},{"v":1364.59,"d":"$1,364.59"},{"v":1364.59,"d":"$1,364.59"},{"v":1364.59,"d":"$1,364.59"},{"v":1364.59,"d":"$1,364.59"},{"v":347971.19,"d":"$347,971.19"},{"v":140953.84,"d":"$140,953.84"},{"v":53417.83,"d":"$53,417.83"},{"v":1460713.8699999999,"d":"$1,460,713.87"},{"v":10187364.27,"d":"$10,187,364.27"},{"v":700133.08,"d":"$700,133.08"},{"v":1654.87,"d":"$1,654.87"},{"v":349769.86,"d":"$349,769.86"},{"v":10187364.16808,"d":"$10,187,364.17"}]
["50082181002","SIGNAL HILL SCH DIST 181",279.38,{"v":3857633.06,"d":"$3,857,633.06"},{"v":2954000.15,"d":"$2,954,000.15"},{"v":0.7657545712758901,"d":"77%"},1,{"v":42712.11,"d":"$42,712.11"},{"v":1725946.7200000002,"d":"$1,725,946.72"},{"v":1768658.8300000003,"d":"$1,768,658.83"},{"v":0.93051,"d":"0.93"},{"v":899986.21,"d":"$899,986.21"},{"v":179997.24,"d":"$179,997.24"},{"v":90193.28,"d":"$90,193.28"},{"v":39581.22,"d":"$39,581.22"},{"v":32043.18,"d":"$32,043.18"},{"v":55245.92,"d":"$55,245.92"},{"v":20488.6,"d":"$20,488.60"},{"v":33994.74,"d":"$33,994.74"},{"v":45701.77,"d":"$45,701.77"},{"v":25426.96,"d":"$25,426.96"},{"v":67800.01,"d":"$67,800.01"},{"v":58375.96,"d":"$58,375.96"},{"v":40792.09,"d":"$40,792.09"},{"v":1589627.18,"d":"$1,589,627.18"},{"v":24792.299999999996,"d":"$24,792.30"},{"v":34922.5,"d":"$34,922.50"},{"v":90798.5,"d":"$90,798.50"},{"v":9498.92,"d":"$9,498.92"},{"v":159525.97999999998,"d":"$159,525.98"},{"v":47349.59,"d":"$47,349.59"},{"v":380236.18000000005,"d":"$380,236.18"},{"v":261779.06,"d":"$261,779.06"},{"v":751547.67132,"d":"$751,547.67"},{"v":1760450.70132,"d":"$1,760,450.70"},{"v":265936.23,"d":"$265,936.23"},{"v":1494514.47132,"d":"$1,494,514.47"},{"v":1741970.79132,"d":"$1,741,970.79"},{"v":75734.9,"d":"$75,734.90"},{"v":75734.9,"d":"$75,734.90"},{"v":78464.09,"d":"$78,464.09"},{"v":78464.09,"d":"$78,464.09"},{"v":1364.59,"d":"$1,364.59"},{"v":1364.59,"d":"$1,364.59"},{"v":1364.59,"d":"$1,364.59"},{"v":1364.59,"d":"$1,364.59"},{"v":2046.88,"d":"$2,046.88"},{"v":135094.69,"d":"$135,094.69"},{"v":54723.25,"d":"$54,723.25"},{"v":20313.82,"d":"$20,313.82"},{"v":526034.9800000001,"d":"$526,034.98"},{"v":3857633.06,"d":"$3,857,633.06"},{"v":238763.95,"d":"$238,763.95"},{"v":161.16,"d":"$161.16"},{"v":126227.71,"d":"$126,227.71"},{"v":3857632.95132,"d":"$3,857,632.95"}]
["50082187026","CAHOKIA COMM UNIT SCH DIST 187",3027.29,{"v":48549934.4,"d":"$48,549,934.40"},{"v":42716725.480000004,"d":"$42,716,725.48"},{"v":0.8798513532080078,"d":"88%"},2,{"v":82057.77,"d":"$82,057.77"},{"v":33449357.110000007,"d":"$33,449,357.11"},{"v":33531414.880000006,"d":"$33,531,414.88"},{"v":0.93051,"d":"0.93"},{"v":10966454.13,"d":"$10,966,454.13"},{"v":2586650.01,"d":"$2,586,650.01"},{"v":1021013.68,"d":"$1,021,013.68"},{"v":419251.57,"d":"$419,251.57"},{"v":411099.18,"d":"$411,099.18"},{"v":695828.23,"d":"$695,828.23"},{"v":228789.38,"d":"$228,789.38"},{"v":383891.93,"d":"$383,891.93"},{"v":469005.1,"d":"$469,005.10"},{"v":278314.74,"d":"$278,314.74"},{"v":695783.71,"d":"$695,783.71"},{"v":599071.36,"d":"$599,071.36"},{"v":460652.22,"d":"$460,652.22"},{"v":19215805.24,"d":"$19,215,805.24"},{"v":271136.7,"d":"$271,136.70"},{"v":378411.25,"d":"$378,411.25"},{"v":983869.25,"d":"$983,869.25"},{"v":102927.86,"d":"$102,927.86"},{"v":1728582.5899999999,"d":"$1,728,582.59"},{"v":1062600.9500000002,"d":"$1,062,600.95"},{"v":4120141.6899999995,"d":"$4,120,141.69"},{"v":2836570.73,"d":"$2,836,570.73"},{"v":9638981.64156,"d":"$9,638,981.64"},{"v":21123222.66156,"d":"$21,123,222.66"},{"v":2881616.8,"d":"$2,881,616.80"},{"v":18241605.86156,"d":"$18,241,605.86"},{"v":20922979.101559997,"d":"$20,922,979.10"},{"v":1488770.87,"d":"$1,488,770.87"},{"v":1488770.87,"d":"$1,488,770.87"},{"v":1550859.84,"d":"$1,550,859.84"},{"v":1550859.84,"d":"$1,550,859.84"},{"v":8869.85,"d":"$8,869.85"},{"v":8869.85,"d":"$8,869.85"},{"v":8869.85,"d":"$8,869.85"},{"v":8869.85,"d":"$8,869.85"},{"v":10916.74,"d":"$10,916.74"},{"v":1464890.49,"d":"$1,464,890.49"},{"v":593388.03,"d":"$593,388.03"},{"v":227213.88,"d":"$227,213.88"},{"v":8411149.959999999,"d":"$8,411,149.96"},{"v":48549934.4,"d":"$48,549,934.40"},{"v":10635357.450000001,"d":"$10,635,357.45"},{"v":2327.54,"d":"$2,327.54"},{"v":1647286.7899999996,"d":"$1,647,286.79"},{"v":48549934.30155999,"d":"$48,549,934.30"}]
["50082188022","BROOKLYN UNIT DISTRICT 188",146.45,{"v":2061662.11,"d":"$2,061,662.11"},{"v":2045582.83,"d":"$2,045,582.83"},{"v":0.9922008170388309,"d":"99%"},3,{"v":2342.89,"d":"$2,342.89"},{"v":1076675.65,"d":"$1,076,675.65"},{"v":1079018.5399999998,"d":"$1,079,018.54"},{"v":0.93051,"d":"0.93"},{"v":492217.62,"d":"$492,217.62"},{"v":112072.81,"d":"$112,072.81"},{"v":47531.59,"d":"$47,531.59"},{"v":19953.39,"d":"$19,953.39"},{"v":16853.27,"d":"$16,853.27"},{"v":30544.36,"d":"$30,544.36"},{"v":10244.3,"d":"$10,244.30"},{"v":18241.08,"d":"$18,241.08"},{"v":22476.28,"d":"$22,476.28"},{"v":13266.24,"d":"$13,266.24"},{"v":33344.26,"d":"$33,344.26"},{"v":28709.49,"d":"$28,709.49"},{"v":21888.44,"d":"$21,888.44"},{"v":867343.1299999999,"d":"$867,343.13"},{"v":13180.5,"d":"$13,180.50"},{"v":18306.25,"d":"$18,306.25"},{"v":47596.25,"d":"$47,596.25"},{"v":4979.299999999999,"d":"$4,979.30"},{"v":83622.95000000001,"d":"$83,622.95"},{"v":44357.97,"d":"$44,357.97"},{"v":199318.44999999998,"d":"$199,318.45"},{"v":137223.65,"d":"$137,223.65"},{"v":398767.9128,"d":"$398,767.91"},{"v":947353.2327999999,"d":"$947,353.23"},{"v":139402.82,"d":"$139,402.82"},{"v":807950.4127999998,"d":"$807,950.41"},{"v":937666.1227999998,"d":"$937,666.12"},{"v":36161.71,"d":"$36,161.71"},{"v":36161.71,"d":"$36,161.71"},{"v":37526.3,"d":"$37,526.30"},{"v":37526.3,"d":"$37,526.30"},{"v":0,"d":"$0.00"},{"v":0,"d":"$0.00"},{"v":0,"d":"$0.00"},{"v":0,"d":"$0.00"},{"v":0,"d":"$0.00"},{"v":70276.53,"d":"$70,276.53"},{"v":28467.14,"d":"$28,467.14"},{"v":10533.09,"d":"$10,533.09"},{"v":256652.78,"d":"$256,652.78"},{"v":2061662.11,"d":"$2,061,662.11"},{"v":453778.41000000003,"d":"$453,778.41"},{"v":0,"d":"$0.00"},{"v":36369.88,"d":"$36,369.88"},{"v":2061662.0327999997,"d":"$2,061,662.03"}]
["50082189022","EAST ST LOUIS SCHOOL DIST 189",4441.86,{"v":70918718.55,"d":"$70,918,718.55"},{"v":76726154.28,"d":"$76,726,154.28"},{"v":1.081888616274215,"d":"108%"},4,{"v":4517.41,"d":"$4,517.41"},{"v":60510001.17000001,"d":"$60,510,001.17"},{"v":60514518.580000006,"d":"$60,514,518.58"},{"v":0.93051,"d":"0.93"},{"v":16257181.23,"d":"$16,257,181.23"},{"v":3946032.57,"d":"$3,946,032.57"},{"v":1508935.25,"d":"$1,508,935.25"},{"v":611523.94,"d":"$611,523.94"},{"v":610190.5,"d":"$610,190.50"},{"v":1042863.03,"d":"$1,042,863.03"},{"v":336354.54,"d":"$336,354.54"},{"v":566855.54,"d":"$566,855.54"},{"v":679532.95,"d":"$679,532.95"},{"v":409042.51,"d":"$409,042.51"},{"v":1008108.35,"d":"$1,008,108.35"},{"v":867983.58,"d":"$867,983.58"},{"v":680199.93,"d":"$680,199.93"},{"v":28524803.92,"d":"$28,524,803.92"},{"v":398320.2,"d":"$398,320.20"},{"v":555232.5,"d":"$555,232.50"},{"v":1443604.5,"d":"$1,443,604.50"},{"v":151023.24,"d":"$151,023.24"},{"v":1268151.02,"d":"$1,268,151.02"},{"v":1716778.42,"d":"$1,716,778.42"},{"v":6045371.46,"d":"$6,045,371.46"},{"v":4162022.8199999994,"d":"$4,162,022.82"},{"v":14334578.73204,"d":"$14,334,578.73"},{"v":30075082.89204,"d":"$30,075,082.89"},{"v":4228117.69,"d":"$4,228,117.69"},{"v":25846965.202039994,"d":"$25,846,965.20"},{"v":29781270.992039993,"d":"$29,781,270.99"},{"v":2216098.89,"d":"$2,216,098.89"},{"v":2216098.89,"d":"$2,216,098.89"},{"v":2308208.91,"d":"$2,308,208.91"},{"v":2308208.91,"d":"$2,308,208.91"},{"v":39573.19,"d":"$39,573.19"},{"v":39573.19,"d":"$39,573.19"},{"v":40937.78,"d":"$40,937.78"},{"v":40937.78,"d":"$40,937.78"},{"v":49125.34,"d":"$49,125.34"},{"v":2149233.84,"d":"$2,149,233.84"},{"v":870597.25,"d":"$870,597.25"},{"v":334049.55,"d":"$334,049.55"},{"v":12612643.52,"d":"$12,612,643.52"},{"v":70918718.55,"d":"$70,918,718.55"},{"v":19427379.860000003,"d":"$19,427,379.86"},{"v":27821.26,"d":"$27,821.26"},{"v":2357065.1600000006,"d":"$2,357,065.16"},{"v":70918718.43203999,"d":"$70,918,718.43"}]
["50082196026","DUPO COMM UNIT SCH DISTRICT 196",888.28,{"v":12831009.84,"d":"$12,831,009.84"},{"v":9902121.33,"d":"$9,902,121.33"},{"v":0.7717335933396806,"d":"77%"},1,{"v":122597.75,"d":"$122,597.75"},{"v":6445899.5600000005,"d":"$6,445,899.56"},{"v":6568497.3100000005,"d":"$6,568,497.31"},{"v":0.93051,"d":"0.93"},{"v":2941276.63,"d":"$2,941,276.63"},{"v":705447.31,"d":"$705,447.31"},{"v":300118.12,"d":"$300,118.12"},{"v":122284.85,"d":"$122,284.85"},{"v":103761.7,"d":"$103,761.70"},{"v":207373.94,"d":"$207,373.94"},{"v":66587.95,"d":"$66,587.95"},{"v":112763.07,"d":"$112,763.07"},{"v":136356.11,"d":"$136,356.11"},{"v":81255.74,"d":"$81,255.74"},{"v":202288.55,"d":"$202,288.55"},{"v":174170.9,"d":"$174,170.90"},{"v":135310.37,"d":"$135,310.37"},{"v":5288995.240000002,"d":"$5,288,995.24"},{"v":79360.2,"d":"$79,360.20"},{"v":111035,"d":"$111,035.00"},{"v":288691,"d":"$288,691.00"},{"v":30201.519999999997,"d":"$30,201.52"},{"v":507207.88,"d":"$507,207.88"},{"v":328700.14,"d":"$328,700.14"},{"v":1208949.08,"d":"$1,208,949.08"},{"v":832318.36,"d":"$832,318.36"},{"v":2483438.7979200003,"d":"$2,483,438.80"},{"v":5869901.97792,"d":"$5,869,901.98"},{"v":845535.96,"d":"$845,535.96"},{"v":5024366.01792,"d":"$5,024,366.02"},{"v":5811145.67792,"d":"$5,811,145.68"},{"v":253131.98,"d":"$253,131.98"},{"v":253131.98,"d":"$253,131.98"},{"v":263366.43,"d":"$263,366.43"},{"v":263366.43,"d":"$263,366.43"},{"v":5458.37,"d":"$5,458.37"},{"v":5458.37,"d":"$5,458.37"},{"v":5458.37,"d":"$5,458.37"},{"v":5458.37,"d":"$5,458.37"},{"v":6822.96,"d":"$6,822.96"},{"v":429164.47,"d":"$429,164.47"},{"v":173843.07,"d":"$173,843.07"},{"v":66208.01,"d":"$66,208.01"},{"v":1730868.8100000003,"d":"$1,730,868.81"},{"v":12831009.84,"d":"$12,831,009.84"},{"v":933318.97,"d":"$933,318.97"},{"v":1219.61,"d":"$1,219.61"},{"v":430069.35,"d":"$430,069.35"},{"v":12831009.727920001,"d":"$12,831,009.73"}]
["50082201017","BELLEVILLE TWP HS DIST 201",4701,{"v":70269153.61,"d":"$70,269,153.61"},{"v":48503139.44,"d":"$48,503,139.44"},{"v":0.6902479530235515,"d":"69%"},1,{"v":2622380.16,"d":"$2,622,380.16"},{"v":24740585.77,"d":"$24,740,585.77"},{"v":27362965.93,"d":"$27,362,965.93"},{"v":0.93051,"d":"0.93"},{"v":15454702.31,"d":"$15,454,702.31"},{"v":5151052.28,"d":"$5,151,052.28"},{"v":1753841.53,"d":"$1,753,841.53"},{"v":584365.07,"d":"$584,365.07"},{"v":516661.04,"d":"$516,661.04"},{"v":1498500.74,"d":"$1,498,500.74"},{"v":356274.02,"d":"$356,274.02"},{"v":649493.18,"d":"$649,493.18"},{"v":586630.98,"d":"$586,630.98"},{"v":433087.58,"d":"$433,087.58"},{"v":870285.38,"d":"$870,285.38"},{"v":749317.69,"d":"$749,317.69"},{"v":779361.21,"d":"$779,361.21"},{"v":29383573.009999998,"d":"$29,383,573.01"},{"v":423090,"d":"$423,090.00"},{"v":587625,"d":"$587,625.00"},{"v":1527825,"d":"$1,527,825.00"},{"v":159834,"d":"$159,834.00"},{"v":2684271,"d":"$2,684,271.00"},{"v":4038159,"d":"$4,038,159.00"},{"v":6398061,"d":"$6,398,061.00"},{"v":4404837,"d":"$4,404,837.00"},{"v":13166145.366,"d":"$13,166,145.37"},{"v":33389847.366,"d":"$33,389,847.37"},{"v":4474787.88,"d":"$4,474,787.88"},{"v":28915059.486,"d":"$28,915,059.49"},{"v":33078894.356000002,"d":"$33,078,894.36"},{"v":1039137.5,"d":"$1,039,137.50"},{"v":1039137.5,"d":"$1,039,137.50"},{"v":1082122.18,"d":"$1,082,122.18"},{"v":1082122.18,"d":"$1,082,122.18"},{"v":2729.18,"d":"$2,729.18"},{"v":2729.18,"d":"$2,729.18"},{"v":2729.18,"d":"$2,729.18"},{"v":2729.18,"d":"$2,729.18"},{"v":3411.48,"d":"$3,411.48"},{"v":2274776.38,"d":"$2,274,776.38"},{"v":921451.18,"d":"$921,451.18"},{"v":353611.01,"d":"$353,611.01"},{"v":7806686.129999998,"d":"$7,806,686.13"},{"v":70269153.61,"d":"$70,269,153.61"},{"v":3232821.58,"d":"$3,232,821.58"},{"v":10456.08,"d":"$10,456.08"},{"v":2416009.9899999998,"d":"$2,416,009.99"},{"v":70269153.49599999,"d":"$70,269,153.50"}]
["50082203017","O FALLON TWP HIGH SCH DIST 203",2484.5,{"v":34740918.78,"d":"$34,740,918.78"},{"v":23364016.82,"d":"$23,364,016.82"},{"v":0.6725215578768869,"d":"67%"},1,{"v":1447756.63,"d":"$1,447,756.63"},{"v":9243753.179999998,"d":"$9,243,753.18"},{"v":10691509.809999999,"d":"$10,691,509.81"},{"v":0.93051,"d":"0.93"},{"v":7749740.62,"d":"$7,749,740.62"},{"v":2582988.54,"d":"$2,582,988.54"},{"v":926923.9,"d":"$926,923.90"},{"v":308974.63,"d":"$308,974.63"},{"v":246296.05,"d":"$246,296.05"},{"v":791495.34,"d":"$791,495.34"},{"v":188381.31,"d":"$188,381.31"},{"v":343264.05,"d":"$343,264.05"},{"v":310172.7,"d":"$310,172.70"},{"v":228842.7,"d":"$228,842.70"},{"v":460150.89,"d":"$460,150.89"},{"v":396190.96,"d":"$396,190.96"},{"v":411900.69,"d":"$411,900.69"},{"v":14945322.380000003,"d":"$14,945,322.38"},{"v":223605,"d":"$223,605.00"},{"v":310562.5,"d":"$310,562.50"},{"v":807462.5,"d":"$807,462.50"},{"v":84473,"d":"$84,473.00"},{"v":1418649.5,"d":"$1,418,649.50"},{"v":2134185.5,"d":"$2,134,185.50"},{"v":3381404.5,"d":"$3,381,404.50"},{"v":2327976.5,"d":"$2,327,976.50"},{"v":6380585.996999999,"d":"$6,380,586.00"},{"v":17068904.996999998,"d":"$17,068,905.00"},{"v":2364945.86,"d":"$2,364,945.86"},{"v":14703959.136999998,"d":"$14,703,959.14"},{"v":16904564.906999998,"d":"$16,904,564.91"},{"v":242897.53,"d":"$242,897.53"},{"v":242897.53,"d":"$242,897.53"},{"v":253131.98,"d":"$253,131.98"},{"v":253131.98,"d":"$253,131.98"},{"v":4093.77,"d":"$4,093.77"},{"v":4093.77,"d":"$4,093.77"},{"v":4776.07,"d":"$4,776.07"},{"v":4776.07,"d":"$4,776.07"},{"v":5458.37,"d":"$5,458.37"},{"v":1202206.35,"d":"$1,202,206.35"},{"v":486981.7,"d":"$486,981.70"},{"v":186586.23,"d":"$186,586.23"},{"v":2891031.35,"d":"$2,891,031.35"},{"v":34740918.78,"d":"$34,740,918.78"},{"v":451281.13,"d":"$451,281.13"},{"v":5429.249999999999,"d":"$5,429.25"},{"v":1002331.8800000001,"d":"$1,002,331.88"},{"v":34740918.637,"d":"$34,740,918.64"}]
[null,"ALT SCH-SANGAMON ROE",59,{"v":874282.87,"d":"$874,282.87"},{"v":526411.93,"d":"$526,411.93"},{"v":0.6021071075085802,"d":"60%"},1,{"v":62184.66,"d":"$62,184.66"},{"v":438983.65,"d":"$438,983.65"},{"v":501168.31000000006,"d":"$501,168.31"},{"v":0.93776,"d":"0.94"},{"v":194801.77,"d":"$194,801.77"},{"v":64927.42,"d":"$64,927.42"},{"v":21811.78,"d":"$21,811.78"},{"v":6769.17,"d":"$6,769.17"},{"v":6445.37,"d":"$6,445.37"},{"v":18475.55,"d":"$18,475.55"},{"v":4014.93,"d":"$4,014.93"},{"v":8077.47,"d":"$8,077.47"},{"v":6795.42,"d":"$6,795.42"},{"v":5292.13,"d":"$5,292.13"},{"v":10081.22,"d":"$10,081.22"},{"v":8679.95,"d":"$8,679.95"},{"v":9692.58,"d":"$9,692.58"},{"v":365864.7599999999,"d":"$365,864.76"},{"v":5310,"d":"$5,310.00"},{"v":7375,"d":"$7,375.00"},{"v":19175,"d":"$19,175.00"},{"v":2006,"d":"$2,006.00"},{"v":33689,"d":"$33,689.00"},{"v":50681,"d":"$50,681.00"},{"v":80299,"d":"$80,299.00"},{"v":55283,"d":"$55,283.00"},{"v":162433.85400000002,"d":"$162,433.85"},{"v":416251.85400000005,"d":"$416,251.85"},{"v":56160.92,"d":"$56,160.92"},{"v":360090.93400000007,"d":"$360,090.93"},{"v":412756.3940000001,"d":"$412,756.39"},{"v":13064.63,"d":"$13,064.63"},{"v":13064.63,"d":"$13,064.63"},{"v":13064.63,"d":"$13,064.63"},{"v":13064.63,"d":"$13,064.63"},{"v":0,"d":"$0.00"},{"v":0,"d":"$0.00"},{"v":0,"d":"$0.00"},{"v":0,"d":"$0.00"},{"v":0,"d":"$0.00"},{"v":28192.11,"d":"$28,192.11"},{"v":11419.87,"d":"$11,419.87"},{"v":3791.12,"d":"$3,791.12"},{"v":95661.62,"d":"$95,661.62"},{"v":874282.87,"d":"$874,282.87"},{"v":23834.8,"d":"$23,834.80"},{"v":0,"d":"$0.00"},{"v":12854.68,"d":"$12,854.68"},{"v":874282.774,"d":"$874,282.77"}]
[null,"SAFE SCH-SANGAMON ROE",45,{"v":633246.71,"d":"$633,246.71"},{"v":385964.82,"d":"$385,964.82"},{"v":0.6095015006078753,"d":"61%"},1,{"v":43371.31,"d":"$43,371.31"},{"v":322640.15,"d":"$322,640.15"},{"v":366011.46,"d":"$366,011.46"},{"v":0.93776,"d":"0.94"},{"v":140411.71,"d":"$140,411.71"},{"v":39912.89,"d":"$39,912.89"},{"v":15663.04,"d":"$15,663.04"},{"v":5624.23,"d":"$5,624.23"},{"v":4784.22,"d":"$4,784.22"},{"v":12966.2,"d":"$12,966.20"},{"v":2867.81,"d":"$2,867.81"},{"v":5849.2,"d":"$5,849.20"},{"v":6040.37,"d":"$6,040.37"},{"v":4178,"d":"$4,178.00"},{"v":8961.08,"d":"$8,961.08"},{"v":7715.51,"d":"$7,715.51"},{"v":7018.76,"d":"$7,018.76"},{"v":261993.02000000002,"d":"$261,993.02"},{"v":4050,"d":"$4,050.00"},{"v":5625,"d":"$5,625.00"},{"v":14625,"d":"$14,625.00"},{"v":1530,"d":"$1,530.00"},{"v":25695,"d":"$25,695.00"},{"v":27675,"d":"$27,675.00"},{"v":61245,"d":"$61,245.00"},{"v":42165,"d":"$42,165.00"},{"v":118444.71299999999,"d":"$118,444.71"},{"v":301054.713,"d":"$301,054.71"},{"v":42834.6,"d":"$42,834.60"},{"v":258220.11299999998,"d":"$258,220.11"},{"v":298388.68299999996,"d":"$298,388.68"},{"v":9626.57,"d":"$9,626.57"},{"v":9626.57,"d":"$9,626.57"},{"v":10314.18,"d":"$10,314.18"},{"v":10314.18,"d":"$10,314.18"},{"v":0,"d":"$0.00"},{"v":0,"d":"$0.00"},{"v":0,"d":"$0.00"},{"v":0,"d":"$0.00"},{"v":0,"d":"$0.00"},{"v":21315.98,"d":"$21,315.98"},{"v":8634.53,"d":"$8,634.53"},{"v":3032.9,"d":"$3,032.90"},{"v":72864.90999999999,"d":"$72,864.91"},{"v":633246.71,"d":"$633,246.71"},{"v":20936.550000000003,"d":"$20,936.55"},{"v":0,"d":"$0.00"},{"v":11425.71,"d":"$11,425.71"},{"v":633246.613,"d":"$633,246.61"}]
[null,"ALOP - SANGAMON ROE",163,{"v":2125690.03,"d":"$2,125,690.03"},{"v":1075563.15,"d":"$1,075,563.15"},{"v":0.5059830618860267,"d":"51%"},1,{"v":224035.93,"d":"$224,035.93"},{"v":862994.1499999999,"d":"$862,994.15"},{"v":1087030.0799999998,"d":"$1,087,030.08"},{"v":0.93776,"d":"0.94"},{"v":469520.43,"d":"$469,520.43"},{"v":93904.07,"d":"$93,904.07"},{"v":52968.18,"d":"$52,968.18"},{"v":22887.48,"d":"$22,887.48"},{"v":16880.62,"d":"$16,880.62"},{"v":38762.02,"d":"$38,762.02"},{"v":12044.8,"d":"$12,044.80"},{"v":19775.87,"d":"$19,775.87"},{"v":26426.63,"d":"$26,426.63"},{"v":15040.8,"d":"$15,040.80"},{"v":39204.74,"d":"$39,204.74"},{"v":33755.37,"d":"$33,755.37"},{"v":23730.11,"d":"$23,730.11"},{"v":864901.1200000001,"d":"$864,901.12"},{"v":14670,"d":"$14,670.00"},{"v":20375,"d":"$20,375.00"},{"v":52975,"d":"$52,975.00"},{"v":5542,"d":"$5,542.00"},{"v":93073,"d":"$93,073.00"},{"v":34511,"d":"$34,511.00"},{"v":221843,"d":"$221,843.00"},{"v":152731,"d":"$152,731.00"},{"v":404338.284,"d":"$404,338.28"},{"v":1000058.284,"d":"$1,000,058.28"},{"v":155156.44,"d":"$155,156.44"},{"v":844901.844,"d":"$844,901.84"},{"v":990401.344,"d":"$990,401.34"},{"v":35755.85,"d":"$35,755.85"},{"v":35755.85,"d":"$35,755.85"},{"v":37818.68,"d":"$37,818.68"},{"v":37818.68,"d":"$37,818.68"},{"v":0,"d":"$0.00"},{"v":0,"d":"$0.00"},{"v":0,"d":"$0.00"},{"v":0,"d":"$0.00"},{"v":0,"d":"$0.00"},{"v":79075.43,"d":"$79,075.43"},{"v":32031.34,"d":"$32,031.34"},{"v":12131.61,"d":"$12,131.61"},{"v":270387.44,"d":"$270,387.44"},{"v":2125690.03,"d":"$2,125,690.03"},{"v":104747.06000000001,"d":"$104,747.06"},{"v":129.29,"d":"$129.29"},{"v":61491.240000000005,"d":"$61,491.24"},{"v":2125689.904,"d":"$2,125,689.90"}]
["51065200026","GREENVIEW C U SCH DIST 200",194.5,{"v":2550365.73,"d":"$2,550,365.73"},{"v":2665255.58,"d":"$2,665,255.58"},{"v":1.0450483821392942,"d":"105%"},4,{"v":162.45,"d":"$162.45"},{"v":572868.2599999999,"d":"$572,868.26"},{"v":573030.7099999998,"d":"$573,030.71"},{"v":0.93776,"d":"0.94"},{"v":614918.27,"d":"$614,918.27"},{"v":149251.49,"d":"$149,251.49"},{"v":65723.17,"d":"$65,723.17"},{"v":26485.22,"d":"$26,485.22"},{"v":20379.3,"d":"$20,379.30"},{"v":45355.11,"d":"$45,355.11"},{"v":14339.05,"d":"$14,339.05"},{"v":24789.47,"d":"$24,789.47"},{"v":29446.82,"d":"$29,446.82"},{"v":17826.14,"d":"$17,826.14"},{"v":43685.28,"d":"$43,685.28"},{"v":37613.13,"d":"$37,613.13"},{"v":29746.2,"d":"$29,746.20"},{"v":1119558.65,"d":"$1,119,558.65"},{"v":17415,"d":"$17,415.00"},{"v":24312.5,"d":"$24,312.50"},{"v":63212.5,"d":"$63,212.50"},{"v":6613,"d":"$6,613.00"},{"v":55529.75,"d":"$55,529.75"},{"v":74908.5,"d":"$74,908.50"},{"v":264714.5,"d":"$264,714.50"},{"v":182246.5,"d":"$182,246.50"},{"v":491090.721,"d":"$491,090.72"},{"v":1180042.971,"d":"$1,180,042.97"},{"v":185140.66,"d":"$185,140.66"},{"v":994902.3109999999,"d":"$994,902.31"},{"v":1168519.8109999998,"d":"$1,168,519.81"},{"v":28192.11,"d":"$28,192.11"},{"v":28192.11,"d":"$28,192.11"},{"v":29567.33,"d":"$29,567.33"},{"v":29567.33,"d":"$29,567.33"},{"v":0,"d":"$0.00"},{"v":0,"d":"$0.00"},{"v":0,"d":"$0.00"},{"v":0,"d":"$0.00"},{"v":0,"d":"$0.00"},{"v":94202.91,"d":"$94,202.91"},{"v":38159.08,"d":"$38,159.08"},{"v":14406.29,"d":"$14,406.29"},{"v":262287.16,"d":"$262,287.16"},{"v":2550365.73,"d":"$2,550,365.73"},{"v":99398.28999999998,"d":"$99,398.29"},{"v":0,"d":"$0.00"},{"v":35605.00000000001,"d":"$35,605.00"},{"v":2550365.621,"d":"$2,550,365.62"}]
["51065202026","PORTA COMM UNIT SCHOOL DIST 202",971.78,{"v":13244920.57,"d":"$13,244,920.57"},{"v":10308441.81,"d":"$10,308,441.81"},{"v":0.778293969791621,"d":"78%"},2,{"v":62883.76,"d":"$62,883.76"},{"v":2108035.06,"d":"$2,108,035.06"},{"v":2170918.82,"d":"$2,170,918.82"},{"v":0.93776,"d":"0.94"},{"v":3091091.19,"d":"$3,091,091.19"},{"v":739030.31,"d":"$739,030.31"},{"v":330053.14,"d":"$330,053.14"},{"v":135302.93,"d":"$135,302.93"},{"v":104586.82,"d":"$104,586.82"},{"v":226593.66,"d":"$226,593.66"},{"v":73415.95,"d":"$73,415.95"},{"v":124225.92,"d":"$124,225.92"},{"v":151009.36,"d":"$151,009.36"},{"v":89687.77,"d":"$89,687.77"},{"v":224027.11,"d":"$224,027.11"},{"v":192887.85,"d":"$192,887.85"},{"v":149065.26,"d":"$149,065.26"},{"v":5630977.2700000005,"d":"$5,630,977.27"},{"v":86410.8,"d":"$86,410.80"},{"v":121472.5,"d":"$121,472.50"},{"v":315828.5,"d":"$315,828.50"},{"v":33040.52,"d":"$33,040.52"},{"v":554886.38,"d":"$554,886.38"},{"v":352592.16,"d":"$352,592.16"},{"v":1322592.58,"d":"$1,322,592.58"},{"v":910557.8599999999,"d":"$910,557.86"},{"v":2512919.40192,"d":"$2,512,919.40"},{"v":6210300.70192,"d":"$6,210,300.70"},{"v":925017.94,"d":"$925,017.94"},{"v":5285282.7619199995,"d":"$5,285,282.76"},{"v":6152727.58192,"d":"$6,152,727.58"},{"v":176716.41,"d":"$176,716.41"},{"v":176716.41,"d":"$176,716.41"},{"v":184280.15,"d":"$184,280.15"},{"v":184280.15,"d":"$184,280.15"},{"v":0,"d":"$0.00"},{"v":0,"d":"$0.00"},{"v":0,"d":"$0.00"},{"v":0,"d":"$0.00"},{"v":0,"d":"$0.00"},{"v":473765.02,"d":"$473,765.02"},{"v":191909.56,"d":"$191,909.56"},{"v":73547.9,"d":"$73,547.90"},{"v":1461215.6,"d":"$1,461,215.60"},{"v":13244920.57,"d":"$13,244,920.57"},{"v":294194.68,"d":"$294,194.68"},{"v":0,"d":"$0.00"},{"v":200706.28000000003,"d":"$200,706.28"},{"v":13244920.45192,"d":"$13,244,920.45"}]
["51065213026","ATHENS COMM UNIT SCH DIST 213",985.28,{"v":13172011.73,"d":"$13,172,011.73"},{"v":9511489.55,"d":"$9,511,489.55"},{"v":0.7220984725011326,"d":"72%"},1,{"v":316389.68,"d":"$316,389.68"},{"v":3954990.7199999997,"d":"$3,954,990.72"},{"v":4271380.399999999,"d":"$4,271,380.40"},{"v":0.93776,"d":"0.94"},{"v":3073747.81,"d":"$3,073,747.81"},{"v":751903.84,"d":"$751,903.84"},{"v":336791.09,"d":"$336,791.09"},{"v":135990.35,"d":"$135,990.35"},{"v":102295.92,"d":"$102,295.92"},{"v":236020.93,"d":"$236,020.93"},{"v":74563.07,"d":"$74,563.07"},{"v":126454.19,"d":"$126,454.19"},{"v":151009.36,"d":"$151,009.36"},{"v":91080.44,"d":"$91,080.44"},{"v":224027.11,"d":"$224,027.11"},{"v":192887.85,"d":"$192,887.85"},{"v":151739.07,"d":"$151,739.07"},{"v":5648511.030000001,"d":"$5,648,511.03"},{"v":88210.79999999999,"d":"$88,210.80"},{"v":123160,"d":"$123,160.00"},{"v":320216,"d":"$320,216.00"},{"v":33499.52,"d":"$33,499.52"},{"v":562594.88,"d":"$562,594.88"},{"v":387432.52,"d":"$387,432.52"},{"v":1340966.08,"d":"$1,340,966.08"},{"v":923207.3599999999,"d":"$923,207.36"},{"v":2479066.2919199993,"d":"$2,479,066.29"},{"v":6258353.451919999,"d":"$6,258,353.45"},{"v":937868.32,"d":"$937,868.32"},{"v":5320485.131919999,"d":"$5,320,485.13"},{"v":6199980.521919998,"d":"$6,199,980.52"},{"v":140960.56,"d":"$140,960.56"},{"v":140960.56,"d":"$140,960.56"},{"v":146461.46,"d":"$146,461.46"},{"v":146461.46,"d":"$146,461.46"},{"v":0,"d":"$0.00"},{"v":0,"d":"$0.00"},{"v":0,"d":"$0.00"},{"v":0,"d":"$0.00"},{"v":0,"d":"$0.00"},{"v":479953.53,"d":"$479,953.53"},{"v":194416.36,"d":"$194,416.36"},{"v":74306.13,"d":"$74,306.13"},{"v":1323520.0599999996,"d":"$1,323,520.06"},{"v":13172011.73,"d":"$13,172,011.73"},{"v":259518.52,"d":"$259,518.52"},{"v":0,"d":"$0.00"},{"v":292339.36,"d":"$292,339.36"},{"v":13172011.61192,"d":"$13,172,011.61"}]
["51084001026","TRI CITY COMM UNIT SCH DIST 1",526.22,{"v":7067343.17,"d":"$7,067,343.17"},{"v":5252940.48,"d":"$5,252,940.48"},{"v":0.7432694795829478,"d":"74%"},1,{"v":108520.76,"d":"$108,520.76"},{"v":1353451.6100000003,"d":"$1,353,451.61"},{"v":1461972.3700000003,"d":"$1,461,972.37"},{"v":0.93776,"d":"0.94"},{"v":1647029.58,"d":"$1,647,029.58"},{"v":399286.42,"d":"$399,286.42"},{"v":179283.56,"d":"$179,283.56"},{"v":71967.84,"d":"$71,967.84"},{"v":55257.32,"d":"$55,257.32"},{"v":122591.43,"d":"$122,591.43"},{"v":39575.78,"d":"$39,575.78"},{"v":67126.56,"d":"$67,126.56"},{"v":80034.96,"d":"$80,034.96"},{"v":48464.82,"d":"$48,464.82"},{"v":118734.36,"d":"$118,734.36"},{"v":102230.56,"d":"$102,230.56"},{"v":80548.71,"d":"$80,548.71"},{"v":3012131.8999999994,"d":"$3,012,131.90"},{"v":46797.299999999996,"d":"$46,797.30"},{"v":65777.5,"d":"$65,777.50"},{"v":171021.5,"d":"$171,021.50"},{"v":17891.48,"d":"$17,891.48"},{"v":300471.62,"d":"$300,471.62"},{"v":199287.75,"d":"$199,287.75"},{"v":716185.42,"d":"$716,185.42"},{"v":493068.14,"d":"$493,068.14"},{"v":1333655.1760800001,"d":"$1,333,655.18"},{"v":3344155.88608,"d":"$3,344,155.89"},{"v":500898.29,"d":"$500,898.29"},{"v":2843257.59608,"d":"$2,843,257.60"},{"v":3312979.97608,"d":"$3,312,979.98"},{"v":83888.72,"d":"$83,888.72"},{"v":83888.72,"d":"$83,888.72"},{"v":87326.79,"d":"$87,326.79"},{"v":87326.79,"d":"$87,326.79"},{"v":0,"d":"$0.00"},{"v":0,"d":"$0.00"},{"v":0,"d":"$0.00"},{"v":0,"d":"$0.00"},{"v":0,"d":"$0.00"},{"v":256479.46,"d":"$256,479.46"},{"v":103892.98,"d":"$103,892.98"},{"v":39427.74,"d":"$39,427.74"},{"v":742231.2,"d":"$742,231.20"},{"v":7067343.17,"d":"$7,067,343.17"},{"v":186950.55,"d":"$186,950.55"},{"v":0,"d":"$0.00"},{"v":196435.09,"d":"$196,435.09"},{"v":7067343.076079999,"d":"$7,067,343.08"}]
["51084003A26","ROCHESTER COMM UNIT SCH DIST 3A",2065.46,{"v":26521094,"d":"$26,521,094.00"},{"v":19250055.74,"d":"$19,250,055.74"},{"v":0.7258394295499273,"d":"73%"},1,{"v":594374.91,"d":"$594,374.91"},{"v":7659320.489999998,"d":"$7,659,320.49"},{"v":8253695.3999999985,"d":"$8,253,695.40"},{"v":0.93776,"d":"0.94"},{"v":6181768.21,"d":"$6,181,768.21"},{"v":1545652.6,"d":"$1,545,652.60"},{"v":711581.51,"d":"$711,581.51"},{"v":284211.19,"d":"$284,211.19"},{"v":200128.26,"d":"$200,128.26"},{"v":508697.42,"d":"$508,697.42"},{"v":156582.46,"d":"$156,582.46"},{"v":266835.06,"d":"$266,835.06"},{"v":314099.48,"d":"$314,099.48"},{"v":191352.49,"d":"$191,352.49"},{"v":465976.39,"d":"$465,976.39"},{"v":401206.73,"d":"$401,206.73"},{"v":320189.5,"d":"$320,189.50"},{"v":11548281.300000003,"d":"$11,548,281.30"},{"v":184241.7,"d":"$184,241.70"},{"v":258182.50000000003,"d":"$258,182.50"},{"v":671274.5,"d":"$671,274.50"},{"v":70225.64000000001,"d":"$70,225.64"},{"v":1179377.6600000001,"d":"$1,179,377.66"},{"v":867136.27,"d":"$867,136.27"},{"v":2811091.06,"d":"$2,811,091.06"},{"v":1935336.02,"d":"$1,935,336.02"},{"v":4922643.43344,"d":"$4,922,643.43"},{"v":12899508.78344,"d":"$12,899,508.78"},{"v":1966070.06,"d":"$1,966,070.06"},{"v":10933438.723439999,"d":"$10,933,438.72"},{"v":12777140.573439999,"d":"$12,777,140.57"},{"v":139585.34,"d":"$139,585.34"},{"v":139585.34,"d":"$139,585.34"},{"v":145773.85,"d":"$145,773.85"},{"v":145773.85,"d":"$145,773.85"},{"v":10314.18,"d":"$10,314.18"},{"v":10314.18,"d":"$10,314.18"},{"v":10314.18,"d":"$10,314.18"},{"v":10314.18,"d":"$10,314.18"},{"v":13064.63,"d":"$13,064.63"},{"v":1006664.72,"d":"$1,006,664.72"},{"v":407773,"d":"$407,773.00"},{"v":156194.52,"d":"$156,194.52"},{"v":2195671.97,"d":"$2,195,671.97"},{"v":26521094,"d":"$26,521,094.00"},{"v":158463.3,"d":"$158,463.30"},{"v":4096.360000000001,"d":"$4,096.36"},{"v":681656.4900000001,"d":"$681,656.49"},{"v":26521093.84344,"d":"$26,521,093.84"}]
["51084005026","BALL CHATHAM C U SCHOOL DIST 5",4586.61,{"v":59995160.34,"d":"$59,995,160.34"},{"v":43925925.650000006,"d":"$43,925,925.65"},{"v":0.7321578174150439,"d":"73%"},1,{"v":1082670.57,"d":"$1,082,670.57"},{"v":8266393.040000001,"d":"$8,266,393.04"},{"v":9349063.610000001,"d":"$9,349,063.61"},{"v":0.93776,"d":"0.94"},{"v":13943187.98,"d":"$13,943,187.98"},{"v":3398312.47,"d":"$3,398,312.47"},{"v":1570491.01,"d":"$1,570,491.01"},{"v":636593.84,"d":"$636,593.84"},{"v":461020.96,"d":"$461,020.96"},{"v":1098472.95,"d":"$1,098,472.95"},{"v":349872.91,"d":"$349,872.91"},{"v":590212.43,"d":"$590,212.43"},{"v":707478.89,"d":"$707,478.89"},{"v":425599.15,"d":"$425,599.15"},{"v":1049567.02,"d":"$1,049,567.02"},{"v":903679.59,"d":"$903,679.59"},{"v":708227.1,"d":"$708,227.10"},{"v":25842716.3,"d":"$25,842,716.30"},{"v":410650.20000000007,"d":"$410,650.20"},{"v":573326.25,"d":"$573,326.25"},{"v":1490648.25,"d":"$1,490,648.25"},{"v":155944.74000000002,"d":"$155,944.74"},{"v":2618954.31,"d":"$2,618,954.31"},{"v":1781503.2800000003,"d":"$1,781,503.28"},{"v":6242376.210000001,"d":"$6,242,376.21"},{"v":4297653.57,"d":"$4,297,653.57"},{"v":11228909.86104,"d":"$11,228,909.86"},{"v":28799966.671040002,"d":"$28,799,966.67"},{"v":4365902.32,"d":"$4,365,902.32"},{"v":24434064.35104,"d":"$24,434,064.35"},{"v":28528232.90104,"d":"$28,528,232.90"},{"v":406378.99,"d":"$406,378.99"},{"v":406378.99,"d":"$406,378.99"},{"v":422881.69,"d":"$422,881.69"},{"v":422881.69,"d":"$422,881.69"},{"v":89389.62,"d":"$89,389.62"},{"v":89389.62,"d":"$89,389.62"},{"v":92827.69,"d":"$92,827.69"},{"v":92827.69,"d":"$92,827.69"},{"v":112080.84,"d":"$112,080.84"},{"v":2236115.91,"d":"$2,236,115.91"},{"v":905790.86,"d":"$905,790.86"},{"v":347267.43,"d":"$347,267.43"},{"v":5624211.0200000005,"d":"$5,624,211.02"},{"v":59995160.34,"d":"$59,995,160.34"},{"v":412575.87,"d":"$412,575.87"},{"v":19303.93,"d":"$19,303.93"},{"v":1320158.3699999999,"d":"$1,320,158.37"},{"v":59995160.22104,"d":"$59,995,160.22"}]
["51084008026","PLEASANT PLAINS C U SCHOOL DIST 8",1234.53,{"v":15829008.98,"d":"$15,829,008.98"},{"v":12992652.620000001,"d":"$12,992,652.62"},{"v":0.8208127644893155,"d":"82%"},2,{"v":39353.99,"d":"$39,353.99"},{"v":1816609.4,"d":"$1,816,609.40"},{"v":1855963.39,"d":"$1,855,963.39"},{"v":0.93776,"d":"0.94"},{"v":3730095.72,"d":"$3,730,095.72"},{"v":912348.79,"d":"$912,348.79"},{"v":422460.2,"d":"$422,460.20"},{"v":170617.32,"d":"$170,617.32"},{"v":120404.22,"d":"$120,404.22"},{"v":294849.97,"d":"$294,849.97"},{"v":93490.63,"d":"$93,490.63"},{"v":158764.08,"d":"$158,764.08"},{"v":189516.75,"d":"$189,516.75"},{"v":114198.72,"d":"$114,198.72"},{"v":281154.02,"d":"$281,154.02"},{"v":242074.25,"d":"$242,074.25"},{"v":190509.41,"d":"$190,509.41"},{"v":6920484.08,"d":"$6,920,484.08"},{"v":110485.79999999999,"d":"$110,485.80"},{"v":154316.25,"d":"$154,316.25"},{"v":401222.25,"d":"$401,222.25"},{"v":41974.020000000004,"d":"$41,974.02"},{"v":704916.63,"d":"$704,916.63"},{"v":483897.84,"d":"$483,897.84"},{"v":1680195.33,"d":"$1,680,195.33"},{"v":1156754.6099999999,"d":"$1,156,754.61"},{"v":2944827.6979199997,"d":"$2,944,827.70"},{"v":7678590.427920001,"d":"$7,678,590.43"},{"v":1175124.41,"d":"$1,175,124.41"},{"v":6503466.017919999,"d":"$6,503,466.02"},{"v":7605450.677919999,"d":"$7,605,450.68"},{"v":89389.62,"d":"$89,389.62"},{"v":89389.62,"d":"$89,389.62"},{"v":92827.69,"d":"$92,827.69"},{"v":92827.69,"d":"$92,827.69"},{"v":0,"d":"$0.00"},{"v":0,"d":"$0.00"},{"v":0,"d":"$0.00"},{"v":0,"d":"$0.00"},{"v":0,"d":"$0.00"},{"v":601660.95,"d":"$601,660.95"},{"v":243716.79,"d":"$243,716.79"},{"v":93261.77,"d":"$93,261.77"},{"v":1303074.13,"d":"$1,303,074.13"},{"v":15829008.98,"d":"$15,829,008.98"},{"v":73824.22,"d":"$73,824.22"},{"v":0,"d":"$0.00"},{"v":233557.85999999996,"d":"$233,557.86"},{"v":15829008.88792,"d":"$15,829,008.89"}]
["51084010026","AUBURN COMM UNIT SCHOOL DIST 10",1090.95,{"v":14892047.98,"d":"$14,892,047.98"},{"v":11377232.52,"d":"$11,377,232.52"},{"v":0.7639803830392977,"d":"76%"},1,{"v":164144.84,"d":"$164,144.84"},{"v":6061627.05,"d":"$6,061,627.05"},{"v":6225771.89,"d":"$6,225,771.89"},{"v":0.93776,"d":"0.94"},{"v":3454071.05,"d":"$3,454,071.05"},{"v":855740.23,"d":"$855,740.23"},{"v":374395.35,"d":"$374,395.35"},{"v":150050.94,"d":"$150,050.94"},{"v":116338.35,"d":"$116,338.35"},{"v":265166.47,"d":"$265,166.47"},{"v":82592.94,"d":"$82,592.94"},{"v":140659.4,"d":"$140,659.40"},{"v":166110.3,"d":"$166,110.30"},{"v":100829.11,"d":"$100,829.11"},{"v":246429.82,"d":"$246,429.82"},{"v":212176.63,"d":"$212,176.63"},{"v":168784.65,"d":"$168,784.65"},{"v":6333345.24,"d":"$6,333,345.24"},{"v":97645.5,"d":"$97,645.50"},{"v":136368.75,"d":"$136,368.75"},{"v":354558.75,"d":"$354,558.75"},{"v":37092.299999999996,"d":"$37,092.30"},{"v":622932.45,"d":"$622,932.45"},{"v":446897.91000000003,"d":"$446,897.91"},{"v":1484782.95,"d":"$1,484,782.95"},{"v":1022220.1499999999,"d":"$1,022,220.15"},{"v":2814357.6348,"d":"$2,814,357.63"},{"v":7016856.3948,"d":"$7,016,856.39"},{"v":1038453.48,"d":"$1,038,453.48"},{"v":5978402.914799999,"d":"$5,978,402.91"},{"v":6952223.044799999,"d":"$6,952,223.04"},{"v":190468.66,"d":"$190,468.66"},{"v":190468.66,"d":"$190,468.66"},{"v":198032.4,"d":"$198,032.40"},{"v":198032.4,"d":"$198,032.40"},{"v":0,"d":"$0.00"},{"v":0,"d":"$0.00"},{"v":0,"d":"$0.00"},{"v":0,"d":"$0.00"},{"v":0,"d":"$0.00"},{"v":531524.47,"d":"$531,524.47"},{"v":215306.37,"d":"$215,306.37"},{"v":82646.61,"d":"$82,646.61"},{"v":1606479.57,"d":"$1,606,479.57"},{"v":14892047.98,"d":"$14,892,047.98"},{"v":496067.48,"d":"$496,067.48"},{"v":0,"d":"$0.00"},{"v":475397.11,"d":"$475,397.11"},{"v":14892047.8548,"d":"$14,892,047.85"}]
["51084011026","PAWNEE COMM UNIT SCHOOL DIST 11",529.94,{"v":6846446.28,"d":"$6,846,446.28"},{"v":11267173.77,"d":"$11,267,173.77"},{"v":1.645696659143289,"d":"165%"},4,{"v":436.1,"d":"$436.10"},{"v":525171.99,"d":"$525,171.99"},{"v":525608.09,"d":"$525,608.09"},{"v":0.93776,"d":"0.94"},{"v":1644507.55,"d":"$1,644,507.55"},{"v":394871.91,"d":"$394,871.91"},{"v":179544.68,"d":"$179,544.68"},{"v":72425.37,"d":"$72,425.37"},{"v":54411.88,"d":"$54,411.88"},{"v":124508.68,"d":"$124,508.68"},{"v":39575.78,"d":"$39,575.78"},{"v":67405.1,"d":"$67,405.10"},{"v":80790.01,"d":"$80,790.01"},{"v":48743.35,"d":"$48,743.35"},{"v":119854.5,"d":"$119,854.50"},{"v":103195,"d":"$103,195.00"},{"v":80882.94,"d":"$80,882.94"},{"v":3010716.75,"d":"$3,010,716.75"},{"v":47439.899999999994,"d":"$47,439.90"},{"v":66242.5,"d":"$66,242.50"},{"v":172230.5,"d":"$172,230.50"},{"v":18017.96,"d":"$18,017.96"},{"v":151297.87,"d":"$151,297.87"},{"v":196460.90999999997,"d":"$196,460.91"},{"v":721248.34,"d":"$721,248.34"},{"v":496553.7799999999,"d":"$496,553.78"},{"v":1315355.6241600001,"d":"$1,315,355.62"},{"v":3184847.38416,"d":"$3,184,847.38"},{"v":504439.28,"d":"$504,439.28"},{"v":2680408.1041599996,"d":"$2,680,408.10"},{"v":3153451.0741599994,"d":"$3,153,451.07"},{"v":68761.25,"d":"$68,761.25"},{"v":68761.25,"d":"$68,761.25"},{"v":71511.7,"d":"$71,511.70"},{"v":71511.7,"d":"$71,511.70"},{"v":0,"d":"$0.00"},{"v":0,"d":"$0.00"},{"v":0,"d":"$0.00"},{"v":0,"d":"$0.00"},{"v":0,"d":"$0.00"},{"v":257854.69,"d":"$257,854.69"},{"v":104450.05,"d":"$104,450.05"},{"v":39427.74,"d":"$39,427.74"},{"v":682278.3800000001,"d":"$682,278.38"},{"v":6846446.28,"d":"$6,846,446.28"},{"v":101357.98999999999,"d":"$101,357.99"},{"v":0,"d":"$0.00"},{"v":116541.83000000002,"d":"$116,541.83"},{"v":6846446.204159999,"d":"$6,846,446.20"}]
["51084014026","RIVERTON C U SCHOOL DIST 14",1210.11,{"v":17256757.81,"d":"$17,256,757.81"},{"v":12380724.469999999,"d":"$12,380,724.47"},{"v":0.7174420946457033,"d":"72%"},1,{"v":479300.94,"d":"$479,300.94"},{"v":7878797.090000002,"d":"$7,878,797.09"},{"v":8358098.030000002,"d":"$8,358,098.03"},{"v":0.93776,"d":"0.94"},{"v":3957274.43,"d":"$3,957,274.43"},{"v":961393.85,"d":"$961,393.85"},{"v":413532.84,"d":"$413,532.84"},{"v":167053.07,"d":"$167,053.07"},{"v":138326.25,"d":"$138,326.25"},{"v":287620.4,"d":"$287,620.40"},{"v":91769.94,"d":"$91,769.94"},{"v":155143.14,"d":"$155,143.14"},{"v":185741.52,"d":"$185,741.52"},{"v":111970.45,"d":"$111,970.45"},{"v":275553.34,"d":"$275,553.34"},{"v":237252.06,"d":"$237,252.06"},{"v":186164.46,"d":"$186,164.46"},{"v":7168795.75,"d":"$7,168,795.75"},{"v":107620.2,"d":"$107,620.20"},{"v":151263.75,"d":"$151,263.75"},{"v":393285.74999999994,"d":"$393,285.75"},{"v":41143.73999999999,"d":"$41,143.74"},{"v":690972.81,"d":"$690,972.81"},{"v":463819.19999999995,"d":"$463,819.20"},{"v":1646959.7099999997,"d":"$1,646,959.71"},{"v":1133873.07,"d":"$1,133,873.07"},{"v":3306304.81704,"d":"$3,306,304.82"},{"v":7935243.04704,"d":"$7,935,243.05"},{"v":1151879.5,"d":"$1,151,879.50"},{"v":6783363.5470400015,"d":"$6,783,363.55"},{"v":7863550.057040001,"d":"$7,863,550.06"},{"v":318364.59,"d":"$318,364.59"},{"v":318364.59,"d":"$318,364.59"},{"v":331429.23,"d":"$331,429.23"},{"v":331429.23,"d":"$331,429.23"},{"v":687.61,"d":"$687.61"},{"v":687.61,"d":"$687.61"},{"v":687.61,"d":"$687.61"},{"v":687.61,"d":"$687.61"},{"v":1375.22,"d":"$1,375.22"},{"v":589971.54,"d":"$589,971.54"},{"v":238981.72,"d":"$238,981.72"},{"v":91745.32,"d":"$91,745.32"},{"v":2224411.8800000004,"d":"$2,224,411.88"},{"v":17256757.81,"d":"$17,256,757.81"},{"v":1014807.5499999999,"d":"$1,014,807.55"},{"v":873.49,"d":"$873.49"},{"v":654546.18,"d":"$654,546.18"},{"v":17256757.68704,"d":"$17,256,757.69"}]
["51084015026","WILLIAMSVILLE C U SCHOOL DIST 15",1452.86,{"v":18297362.11,"d":"$18,297,362.11"},{"v":13081846.959999999,"d":"$13,081,846.96"},{"v":0.7149580841956676,"d":"71%"},1,{"v":474727.44,"d":"$474,727.44"},{"v":4938764.55,"d":"$4,938,764.55"},{"v":5413491.99,"d":"$5,413,491.99"},{"v":0.93776,"d":"0.94"},{"v":4309768.84,"d":"$4,309,768.84"},{"v":1055954.89,"d":"$1,055,954.89"},{"v":496619.72,"d":"$496,619.72"},{"v":200568.58,"d":"$200,568.58"},{"v":137683.42,"d":"$137,683.42"},{"v":349154.86,"d":"$349,154.86"},{"v":110697.49,"d":"$110,697.49"},{"v":186895.96,"d":"$186,895.96"},{"v":222738.81,"d":"$222,738.81"},{"v":134253.13,"d":"$134,253.13"},{"v":330439.99,"d":"$330,439.99"},{"v":284509.58,"d":"$284,509.58"},{"v":224266.34,"d":"$224,266.34"},{"v":8043551.609999999,"d":"$8,043,551.61"},{"v":129865.5,"d":"$129,865.50"},{"v":181607.5,"d":"$181,607.50"},{"v":472179.5,"d":"$472,179.50"},{"v":49397.24,"d":"$49,397.24"},{"v":829583.06,"d":"$829,583.06"},{"v":571978.05,"d":"$571,978.05"},{"v":1977342.46,"d":"$1,977,342.46"},{"v":1361329.82,"d":"$1,361,329.82"},{"v":3385796.26104,"d":"$3,385,796.26"},{"v":8959079.391040001,"d":"$8,959,079.39"},{"v":1382948.37,"d":"$1,382,948.37"},{"v":7576131.021039999,"d":"$7,576,131.02"},{"v":8873004.681039998,"d":"$8,873,004.68"},{"v":67386.02,"d":"$67,386.02"},{"v":67386.02,"d":"$67,386.02"},{"v":70136.47,"d":"$70,136.47"},{"v":70136.47,"d":"$70,136.47"},{"v":0,"d":"$0.00"},{"v":0,"d":"$0.00"},{"v":0,"d":"$0.00"},{"v":0,"d":"$0.00"},{"v":687.61,"d":"$687.61"},{"v":708240.89,"d":"$708,240.89"},{"v":286889.47,"d":"$286,889.47"},{"v":109942.74,"d":"$109,942.74"},{"v":1380805.69,"d":"$1,380,805.69"},{"v":18297362.11,"d":"$18,297,362.11"},{"v":99949.33,"d":"$99,949.33"},{"v":0,"d":"$0.00"},{"v":428468.16,"d":"$428,468.16"},{"v":18297361.981039997,"d":"$18,297,361.98"}]
["51084016026","COMMUNITY UNIT SCHOOL DIST 16",813.27,{"v":10815927.8,"d":"$10,815,927.80"},{"v":9652831.599999998,"d":"$9,652,831.60"},{"v":0.8924645003639907,"d":"89%"},2,{"v":16875.07,"d":"$16,875.07"},{"v":849024.8099999999,"d":"$849,024.81"},{"v":865899.8799999999,"d":"$865,899.88"},{"v":0.93776,"d":"0.94"},{"v":2532855.11,"d":"$2,532,855.11"},{"v":618259.52,"d":"$618,259.52"},{"v":277705.4,"d":"$277,705.40"},{"v":112120.84,"d":"$112,120.84"},{"v":83910.18,"d":"$83,910.18"},{"v":192780.1,"d":"$192,780.10"},{"v":60797.58,"d":"$60,797.58"},{"v":104450.05,"d":"$104,450.05"},{"v":124582.72,"d":"$124,582.72"},{"v":74925.5,"d":"$74,925.50"},{"v":184822.36,"d":"$184,822.36"},{"v":159132.47,"d":"$159,132.47"},{"v":125335.14,"d":"$125,335.14"},{"v":4651676.97,"d":"$4,651,676.97"},{"v":72624.6,"d":"$72,624.60"},{"v":101658.75,"d":"$101,658.75"},{"v":264312.75,"d":"$264,312.75"},{"v":27651.18,"d":"$27,651.18"},{"v":464377.17000000004,"d":"$464,377.17"},{"v":316589.33999999997,"d":"$316,589.34"},{"v":1106860.47,"d":"$1,106,860.47"},{"v":762033.99,"d":"$762,033.99"},{"v":2033523.0142800002,"d":"$2,033,523.01"},{"v":5149631.264280001,"d":"$5,149,631.26"},{"v":774135.44,"d":"$774,135.44"},{"v":4375495.824279999,"d":"$4,375,495.82"},{"v":5101449.074279999,"d":"$5,101,449.07"},{"v":108642.77,"d":"$108,642.77"},{"v":108642.77,"d":"$108,642.77"},{"v":113456.06,"d":"$113,456.06"},{"v":113456.06,"d":"$113,456.06"},{"v":0,"d":"$0.00"},{"v":0,"d":"$0.00"},{"v":0,"d":"$0.00"},{"v":0,"d":"$0.00"},{"v":687.61,"d":"$687.61"},{"v":396064.81,"d":"$396,064.81"},{"v":160435.28,"d":"$160,435.28"},{"v":61416.29,"d":"$61,416.29"},{"v":1062801.65,"d":"$1,062,801.65"},{"v":10815927.8,"d":"$10,815,927.80"},{"v":170173.85,"d":"$170,173.85"},{"v":0,"d":"$0.00"},{"v":211593.44,"d":"$211,593.44"},{"v":10815927.69428,"d":"$10,815,927.69"}]
["51084186025","SPRINGFIELD SCHOOL DISTRICT 186",12452.03,{"v":187941446.48,"d":"$187,941,446.48"},{"v":157477674.05,"d":"$157,477,674.05"},{"v":0.8379081729944979,"d":"84%"},2,{"v":607919.68,"d":"$607,919.68"},{"v":50354875.41999999,"d":"$50,354,875.42"},{"v":50962795.09999999,"d":"$50,962,795.10"},{"v":0.93776,"d":"0.94"},{"v":42856428.62,"d":"$42,856,428.62"},{"v":10314388.4,"d":"$10,314,388.40"},{"v":4253588.95,"d":"$4,253,588.95"},{"v":1733928.27,"d":"$1,733,928.27"},{"v":1548260.48,"d":"$1,548,260.48"},{"v":2920535.92,"d":"$2,920,535.92"},{"v":951539.6,"d":"$951,539.60"},{"v":1598782.14,"d":"$1,598,782.14"},{"v":1931409.82,"d":"$1,931,409.82"},{"v":1155635.38,"d":"$1,155,635.38"},{"v":2865306.77,"d":"$2,865,306.77"},{"v":2467035.65,"d":"$2,467,035.65"},{"v":1918463.21,"d":"$1,918,463.21"},{"v":76515303.21,"d":"$76,515,303.21"},{"v":1110385.8,"d":"$1,110,385.80"},{"v":1556503.75,"d":"$1,556,503.75"},{"v":4046909.75,"d":"$4,046,909.75"},{"v":423369.01999999996,"d":"$423,369.02"},{"v":7110109.13,"d":"$7,110,109.13"},{"v":4640064.58,"d":"$4,640,064.58"},{"v":16947212.83,"d":"$16,947,212.83"},{"v":11667552.11,"d":"$11,667,552.11"},{"v":36536303.64792,"d":"$36,536,303.65"},{"v":84038410.61792,"d":"$84,038,410.62"},{"v":11852838.31,"d":"$11,852,838.31"},{"v":72185572.30791998,"d":"$72,185,572.31"},{"v":83300689.95791999,"d":"$83,300,689.96"},{"v":4402095.35,"d":"$4,402,095.35"},{"v":4402095.35,"d":"$4,402,095.35"},{"v":4585687.89,"d":"$4,585,687.89"},{"v":4585687.89,"d":"$4,585,687.89"},{"v":126520.7,"d":"$126,520.70"},{"v":126520.7,"d":"$126,520.70"},{"v":131333.99,"d":"$131,333.99"},{"v":131333.99,"d":"$131,333.99"},{"v":158150.87,"d":"$158,150.87"},{"v":6072306.16,"d":"$6,072,306.16"},{"v":2459729.11,"d":"$2,459,729.11"},{"v":943991.18,"d":"$943,991.18"},{"v":28125453.179999996,"d":"$28,125,453.18"},{"v":187941446.48,"d":"$187,941,446.48"},{"v":22960295.090000004,"d":"$22,960,295.09"},{"v":87513.59,"d":"$87,513.59"},{"v":6110105.26,"d":"$6,110,105.26"},{"v":187941446.34792,"d":"$187,941,446.35"}]
[null,"ALT SCH-TAZEWELL ROE",7.65,{"v":100197.34,"d":"$100,197.34"},{"v":85346.17,"d":"$85,346.17"},{"v":0.8517807957776125,"d":"85%"},2,{"v":389.94,"d":"$389.94"},{"v":75326.43999999999,"d":"$75,326.44"},{"v":75716.37999999999,"d":"$75,716.38"},{"v":0.9,"d":"0.90"},{"v":23099.04,"d":"$23,099.04"},{"v":7698.9,"d":"$7,698.90"},{"v":2165.53,"d":"$2,165.53"},{"v":721.84,"d":"$721.84"},{"v":699.05,"d":"$699.05"},{"v":2312.82,"d":"$2,312.82"},{"v":550.46,"d":"$550.46"},{"v":801.95,"d":"$801.95"},{"v":724.64,"d":"$724.64"},{"v":534.63,"d":"$534.63"},{"v":1075.03,"d":"$1,075.03"},{"v":925.6,"d":"$925.60"},{"v":962.3,"d":"$962.30"},{"v":42271.78999999999,"d":"$42,271.79"},{"v":688.5,"d":"$688.50"},{"v":956.25,"d":"$956.25"},{"v":2486.25,"d":"$2,486.25"},{"v":260.1,"d":"$260.10"},{"v":4368.15,"d":"$4,368.15"},{"v":6571.35,"d":"$6,571.35"},{"v":10411.65,"d":"$10,411.65"},{"v":7168.05,"d":"$7,168.05"},{"v":18467.466599999996,"d":"$18,467.47"},{"v":51377.7666,"d":"$51,377.77"},{"v":7281.88,"d":"$7,281.88"},{"v":44095.8866,"d":"$44,095.89"},{"v":50649.5766,"d":"$50,649.58"},{"v":659.92,"d":"$659.92"},{"v":659.92,"d":"$659.92"},{"v":659.92,"d":"$659.92"},{"v":659.92,"d":"$659.92"},{"v":0,"d":"$0.00"},{"v":0,"d":"$0.00"},{"v":0,"d":"$0.00"},{"v":0,"d":"$0.00"},{"v":0,"d":"$0.00"},{"v":3299.62,"d":"$3,299.62"},{"v":1336.59,"d":"$1,336.59"},{"v":0,"d":"$0.00"},{"v":7275.889999999999,"d":"$7,275.89"},{"v":100197.34,"d":"$100,197.34"},{"v":1859.68,"d":"$1,859.68"},{"v":0,"d":"$0.00"},{"v":1476.01,"d":"$1,476.01"},{"v":100197.2566,"d":"$100,197.26"}]
[null,"SAFE SCH-TAZEWELL ROE",13.66,{"v":168833.95,"d":"$168,833.95"},{"v":320717.96,"d":"$320,717.96"},{"v":1.8996058553389292,"d":"190%"},4,{"v":10.75,"d":"$10.75"},{"v":303834.57000000007,"d":"$303,834.57"},{"v":303845.32000000007,"d":"$303,845.32"},{"v":0.9,"d":"0.90"},{"v":40264.79,"d":"$40,264.79"},{"v":11998.05,"d":"$11,998.05"},{"v":4142.57,"d":"$4,142.57"},{"v":721.84,"d":"$721.84"},{"v":1282.81,"d":"$1,282.81"},{"v":2989.2,"d":"$2,989.20"},{"v":550.46,"d":"$550.46"},{"v":1336.59,"d":"$1,336.59"},{"v":724.64,"d":"$724.64"},{"v":1069.27,"d":"$1,069.27"},{"v":1075.03,"d":"$1,075.03"},{"v":925.6,"d":"$925.60"},{"v":1603.84,"d":"$1,603.84"},{"v":68684.68999999999,"d":"$68,684.69"},{"v":1229.4,"d":"$1,229.40"},{"v":1707.5,"d":"$1,707.50"},{"v":4439.5,"d":"$4,439.50"},{"v":464.44,"d":"$464.44"},{"v":3899.93,"d":"$3,899.93"},{"v":9293.94,"d":"$9,293.94"},{"v":18591.260000000002,"d":"$18,591.26"},{"v":12799.42,"d":"$12,799.42"},{"v":32032.107239999998,"d":"$32,032.11"},{"v":84457.49724,"d":"$84,457.50"},{"v":13002.68,"d":"$13,002.68"},{"v":71454.81723999997,"d":"$71,454.82"},{"v":83157.22723999998,"d":"$83,157.23"},{"v":1979.77,"d":"$1,979.77"},{"v":1979.77,"d":"$1,979.77"},{"v":1979.77,"d":"$1,979.77"},{"v":1979.77,"d":"$1,979.77"},{"v":0,"d":"$0.00"},{"v":0,"d":"$0.00"},{"v":0,"d":"$0.00"},{"v":0,"d":"$0.00"},{"v":0,"d":"$0.00"},{"v":5939.32,"d":"$5,939.32"},{"v":2405.86,"d":"$2,405.86"},{"v":727.69,"d":"$727.69"},{"v":16991.95,"d":"$16,991.95"},{"v":168833.95,"d":"$168,833.95"},{"v":6.56,"d":"$6.56"},{"v":0,"d":"$0.00"},{"v":4.96,"d":"$4.96"},{"v":168833.86724,"d":"$168,833.87"}]
["53060126026","HAVANA COMM UNIT SCHOOL DIST 126",812.63,{"v":11187396.89,"d":"$11,187,396.89"},{"v":12342795.42,"d":"$12,342,795.42"},{"v":1.1032767981113432,"d":"110%"},4,{"v":712.61,"d":"$712.61"},{"v":3170783.4300000006,"d":"$3,170,783.43"},{"v":3171496.0400000005,"d":"$3,171,496.04"},{"v":0.9,"d":"0.90"},{"v":2531920.71,"d":"$2,531,920.71"},{"v":623197.57,"d":"$623,197.57"},{"v":266994.51,"d":"$266,994.51"},{"v":106539.47,"d":"$106,539.47"},{"v":87567.93,"d":"$87,567.93"},{"v":186843.13,"d":"$186,843.13"},{"v":58899.96,"d":"$58,899.96"},{"v":99976.93,"d":"$99,976.93"},{"v":118116.97,"d":"$118,116.97"},{"v":71908.54,"d":"$71,908.54"},{"v":175230.21,"d":"$175,230.21"},{"v":150873.61,"d":"$150,873.61"},{"v":119967.6,"d":"$119,967.60"},{"v":4598037.140000001,"d":"$4,598,037.14"},{"v":72252,"d":"$72,252.00"},{"v":101578.75,"d":"$101,578.75"},{"v":264104.75,"d":"$264,104.75"},{"v":27629.42,"d":"$27,629.42"},{"v":464011.73,"d":"$464,011.73"},{"v":324526.42000000004,"d":"$324,526.42"},{"v":1105989.4300000002,"d":"$1,105,989.43"},{"v":761434.31,"d":"$761,434.31"},{"v":2187957.09732,"d":"$2,187,957.10"},{"v":5309483.90732,"d":"$5,309,483.91"},{"v":773526.24,"d":"$773,526.24"},{"v":4535957.66732,"d":"$4,535,957.67"},{"v":5232131.27732,"d":"$5,232,131.28"},{"v":186098.85,"d":"$186,098.85"},{"v":186098.85,"d":"$186,098.85"},{"v":194017.95,"d":"$194,017.95"},{"v":194017.95,"d":"$194,017.95"},{"v":659.92,"d":"$659.92"},{"v":659.92,"d":"$659.92"},{"v":659.92,"d":"$659.92"},{"v":659.92,"d":"$659.92"},{"v":1319.85,"d":"$1,319.85"},{"v":380116.8,"d":"$380,116.80"},{"v":153975.16,"d":"$153,975.16"},{"v":58943.29,"d":"$58,943.29"},{"v":1357228.3800000001,"d":"$1,357,228.38"},{"v":11187396.89,"d":"$11,187,396.89"},{"v":577359.36,"d":"$577,359.36"},{"v":25.76,"d":"$25.76"},{"v":400913.50000000006,"d":"$400,913.50"},{"v":11187396.797320003,"d":"$11,187,396.80"}]
["53060189026","ILLINI CENTRAL C U SCH DIST 189",607.14,{"v":8123677.44,"d":"$8,123,677.44"},{"v":7962060.819999999,"d":"$7,962,060.82"},{"v":0.980105485330545,"d":"98%"},3,{"v":9231.83,"d":"$9,231.83"},{"v":2246153.24,"d":"$2,246,153.24"},{"v":2255385.0700000003,"d":"$2,255,385.07"},{"v":0.9,"d":"0.90"},{"v":1847166.84,"d":"$1,847,166.84"},{"v":445833.58,"d":"$445,833.58"},{"v":197389.01,"d":"$197,389.01"},{"v":80021.87,"d":"$80,021.87"},{"v":63097.82,"d":"$63,097.82"},{"v":135997.61,"d":"$135,997.61"},{"v":44037.36,"d":"$44,037.36"},{"v":74314.4,"d":"$74,314.40"},{"v":89131.21,"d":"$89,131.21"},{"v":53730.91,"d":"$53,730.91"},{"v":132228.93,"d":"$132,228.93"},{"v":113849.41,"d":"$113,849.41"},{"v":89173.78,"d":"$89,173.78"},{"v":3365972.7299999995,"d":"$3,365,972.73"},{"v":53810.1,"d":"$53,810.10"},{"v":75892.5,"d":"$75,892.50"},{"v":197320.5,"d":"$197,320.50"},{"v":20642.76,"d":"$20,642.76"},{"v":346676.94,"d":"$346,676.94"},{"v":226488.22999999998,"d":"$226,488.23"},{"v":826317.54,"d":"$826,317.54"},{"v":568890.1799999999,"d":"$568,890.18"},{"v":1580616.3249599999,"d":"$1,580,616.32"},{"v":3896655.07496,"d":"$3,896,655.07"},{"v":577924.42,"d":"$577,924.42"},{"v":3318730.6549599995,"d":"$3,318,730.65"},{"v":3838862.6249599997,"d":"$3,838,862.62"},{"v":116806.72,"d":"$116,806.72"},{"v":116806.72,"d":"$116,806.72"},{"v":121426.2,"d":"$121,426.20"},{"v":121426.2,"d":"$121,426.20"},{"v":0,"d":"$0.00"},{"v":0,"d":"$0.00"},{"v":0,"d":"$0.00"},{"v":0,"d":"$0.00"},{"v":0,"d":"$0.00"},{"v":283767.75,"d":"$283,767.75"},{"v":114946.74,"d":"$114,946.74"},{"v":43661.7,"d":"$43,661.70"},{"v":918842.03,"d":"$918,842.03"},{"v":8123677.44,"d":"$8,123,677.44"},{"v":341237.38,"d":"$341,237.38"},{"v":0,"d":"$0.00"},{"v":307080.96,"d":"$307,080.96"},{"v":8123677.3849599995,"d":"$8,123,677.38"}]
["53060191026","MIDWEST CENTRAL CUSD 191",825.29,{"v":11285374.01,"d":"$11,285,374.01"},{"v":8675498.79,"d":"$8,675,498.79"},{"v":0.7687382608952629,"d":"77%"},1,{"v":100923.64,"d":"$100,923.64"},{"v":4329808.08,"d":"$4,329,808.08"},{"v":4430731.72,"d":"$4,430,731.72"},{"v":0.9,"d":"0.90"},{"v":2569732.89,"d":"$2,569,732.89"},{"v":630278.9,"d":"$630,278.90"},{"v":271481.94,"d":"$271,481.94"},{"v":109049.85,"d":"$109,049.85"},{"v":88164.27,"d":"$88,164.27"},{"v":188195.9,"d":"$188,195.90"},{"v":60000.9,"d":"$60,000.90"},{"v":101848.15,"d":"$101,848.15"},{"v":121015.54,"d":"$121,015.54"},{"v":73245.13,"d":"$73,245.13"},{"v":179530.34,"d":"$179,530.34"},{"v":154576.03,"d":"$154,576.03"},{"v":122212.98,"d":"$122,212.98"},{"v":4669332.82,"d":"$4,669,332.82"},{"v":73481.4,"d":"$73,481.40"},{"v":103161.25,"d":"$103,161.25"},{"v":268219.25,"d":"$268,219.25"},{"v":28059.86,"d":"$28,059.86"},{"v":471240.58999999997,"d":"$471,240.59"},{"v":325769.3,"d":"$325,769.30"},{"v":1123219.69,"d":"$1,123,219.69"},{"v":773296.73,"d":"$773,296.73"},{"v":2204084.6805600002,"d":"$2,204,084.68"},{"v":5370532.750560001,"d":"$5,370,532.75"},{"v":785577.04,"d":"$785,577.04"},{"v":4584955.7105600005,"d":"$4,584,955.71"},{"v":5291975.040560001,"d":"$5,291,975.04"},{"v":176859.9,"d":"$176,859.90"},{"v":176859.9,"d":"$176,859.90"},{"v":184119.07,"d":"$184,119.07"},{"v":184119.07,"d":"$184,119.07"},{"v":0,"d":"$0.00"},{"v":0,"d":"$0.00"},{"v":0,"d":"$0.00"},{"v":0,"d":"$0.00"},{"v":0,"d":"$0.00"},{"v":386056.12,"d":"$386,056.12"},{"v":156381.03,"d":"$156,381.03"},{"v":59670.99,"d":"$59,670.99"},{"v":1324066.08,"d":"$1,324,066.08"},{"v":11285374.01,"d":"$11,285,374.01"},{"v":601850.7,"d":"$601,850.70"},{"v":0,"d":"$0.00"},{"v":339537.05000000005,"d":"$339,537.05"},{"v":11285373.94056,"d":"$11,285,373.94"}]
["53090050002","DISTRICT 50 SCHOOLS",624.72,{"v":8479681.53,"d":"$8,479,681.53"},{"v":6342212.82,"d":"$6,342,212.82"},{"v":0.7479305440377784,"d":"75%"},1,{"v":146737.64,"d":"$146,737.64"},{"v":4058724.86,"d":"$4,058,724.86"},{"v":4205462.5,"d":"$4,205,462.50"},{"v":0.9,"d":"0.90"},{"v":1959357.83,"d":"$1,959,357.83"},{"v":391871.56,"d":"$391,871.56"},{"v":195182.66,"d":"$195,182.66"},{"v":86608.38,"d":"$86,608.38"},{"v":69622.72,"d":"$69,622.72"},{"v":119043.93,"d":"$119,043.93"},{"v":45138.29,"d":"$45,138.29"},{"v":74047.08,"d":"$74,047.08"},{"v":100000.87,"d":"$100,000.87"},{"v":55334.82,"d":"$55,334.82"},{"v":148354.41,"d":"$148,354.41"},{"v":127733.49,"d":"$127,733.49"},{"v":88853.01,"d":"$88,853.01"},{"v":3461149.0500000007,"d":"$3,461,149.05"},{"v":55437.3,"d":"$55,437.30"},{"v":78090,"d":"$78,090.00"},{"v":203034,"d":"$203,034.00"},{"v":21240.48,"d":"$21,240.48"},{"v":356715.12,"d":"$356,715.12"},{"v":103943.93,"d":"$103,943.93"},{"v":850243.92,"d":"$850,243.92"},{"v":585362.64,"d":"$585,362.64"},{"v":1687662.4750799998,"d":"$1,687,662.48"},{"v":3941729.86508,"d":"$3,941,729.87"},{"v":594658.47,"d":"$594,658.47"},{"v":3347071.39508,"d":"$3,347,071.40"},{"v":3882264.0150800003,"d":"$3,882,264.02"},{"v":163001.47,"d":"$163,001.47"},{"v":163001.47,"d":"$163,001.47"},{"v":170260.65,"d":"$170,260.65"},{"v":170260.65,"d":"$170,260.65"},{"v":2639.7,"d":"$2,639.70"},{"v":2639.7,"d":"$2,639.70"},{"v":2639.7,"d":"$2,639.70"},{"v":2639.7,"d":"$2,639.70"},{"v":3299.62,"d":"$3,299.62"},{"v":292346.77,"d":"$292,346.77"},{"v":118421.87,"d":"$118,421.87"},{"v":45117.09,"d":"$45,117.09"},{"v":1136268.39,"d":"$1,136,268.39"},{"v":8479681.53,"d":"$8,479,681.53"},{"v":633295.5599999999,"d":"$633,295.56"},{"v":735.78,"d":"$735.78"},{"v":332187.13,"d":"$332,187.13"},{"v":8479681.45508,"d":"$8,479,681.46"}]
["53090051002","CENTRAL SCHOOL DISTRICT 51",1336.32,{"v":15926547.18,"d":"$15,926,547.18"},{"v":11032608.7,"d":"$11,032,608.70"},{"v":0.6927181752146732,"d":"69%"},1,{"v":520391.94,"d":"$520,391.94"},{"v":3223164.77,"d":"$3,223,164.77"},{"v":3743556.71,"d":"$3,743,556.71"},{"v":0.9,"d":"0.90"},{"v":3768092.38,"d":"$3,768,092.38"},{"v":753618.47,"d":"$753,618.47"},{"v":418607.19,"d":"$418,607.19"},{"v":185768.71,"d":"$185,768.71"},{"v":123072.63,"d":"$123,072.63"},{"v":256350.29,"d":"$256,350.29"},{"v":97983.12,"d":"$97,983.12"},{"v":158519.57,"d":"$158,519.57"},{"v":214494.62,"d":"$214,494.62"},{"v":118956.51,"d":"$118,956.51"},{"v":318209.47,"d":"$318,209.47"},{"v":273979.08,"d":"$273,979.08"},{"v":190216.01,"d":"$190,216.01"},{"v":6877868.05,"d":"$6,877,868.05"},{"v":118799.1,"d":"$118,799.10"},{"v":167040,"d":"$167,040.00"},{"v":434304,"d":"$434,304.00"},{"v":45434.880000000005,"d":"$45,434.88"},{"v":763038.72,"d":"$763,038.72"},{"v":222761.67,"d":"$222,761.67"},{"v":1818731.52,"d":"$1,818,731.52"},{"v":1252131.84,"d":"$1,252,131.84"},{"v":3063312.27648,"d":"$3,063,312.28"},{"v":7885554.006479999,"d":"$7,885,554.01"},{"v":1272016.28,"d":"$1,272,016.28"},{"v":6613537.726479999,"d":"$6,613,537.73"},{"v":7758352.376479998,"d":"$7,758,352.38"},{"v":69292.12,"d":"$69,292.12"},{"v":69292.12,"d":"$69,292.12"},{"v":71931.82,"d":"$71,931.82"},{"v":71931.82,"d":"$71,931.82"},{"v":5939.32,"d":"$5,939.32"},{"v":5939.32,"d":"$5,939.32"},{"v":6599.25,"d":"$6,599.25"},{"v":6599.25,"d":"$6,599.25"},{"v":7919.1,"d":"$7,919.10"},{"v":624948.97,"d":"$624,948.97"},{"v":253150.14,"d":"$253,150.14"},{"v":96783.43,"d":"$96,783.43"},{"v":1290326.66,"d":"$1,290,326.66"},{"v":15926547.18,"d":"$15,926,547.18"},{"v":102929.99,"d":"$102,929.99"},{"v":3731.0199999999995,"d":"$3,731.02"},{"v":420826.87,"d":"$420,826.87"},{"v":15926547.08648,"d":"$15,926,547.09"}]
["53090052002","WASHINGTON SCHOOL DIST 52",868.72,{"v":10748502.59,"d":"$10,748,502.59"},{"v":7729659.540000001,"d":"$7,729,659.54"},{"v":0.7191382683566904,"d":"72%"},1,{"v":271198.45,"d":"$271,198.45"},{"v":3316336.6799999997,"d":"$3,316,336.68"},{"v":3587535.13,"d":"$3,587,535.13"},{"v":0.9,"d":"0.90"},{"v":2538629.86,"d":"$2,538,629.86"},{"v":507725.97,"d":"$507,725.97"},{"v":271749.5,"d":"$271,749.50"},{"v":120498.62,"d":"$120,498.62"},{"v":84726.4,"d":"$84,726.40"},{"v":165714.57,"d":"$165,714.57"},{"v":62753.23,"d":"$62,753.23"},{"v":102917.43,"d":"$102,917.43"},{"v":139131.64,"d":"$139,131.64"},{"v":76987.58,"d":"$76,987.58"},{"v":206406.14,"d":"$206,406.14"},{"v":177716.16,"d":"$177,716.16"},{"v":123496.06,"d":"$123,496.06"},{"v":4578453.16,"d":"$4,578,453.16"},{"v":77352.3,"d":"$77,352.30"},{"v":108590,"d":"$108,590.00"},{"v":282334,"d":"$282,334.00"},{"v":29536.48,"d":"$29,536.48"},{"v":496039.12,"d":"$496,039.12"},{"v":144508.51,"d":"$144,508.51"},{"v":1182327.92,"d":"$1,182,327.92"},{"v":813990.64,"d":"$813,990.64"},{"v":2089003.60308,"d":"$2,089,003.60"},{"v":5223682.5730800005,"d":"$5,223,682.57"},{"v":826917.19,"d":"$826,917.19"},{"v":4396765.38308,"d":"$4,396,765.38"},{"v":5140990.85308,"d":"$5,140,990.85"},{"v":95029.2,"d":"$95,029.20"},{"v":95029.2,"d":"$95,029.20"},{"v":98988.75,"d":"$98,988.75"},{"v":98988.75,"d":"$98,988.75"},{"v":1319.85,"d":"$1,319.85"},{"v":1319.85,"d":"$1,319.85"},{"v":1319.85,"d":"$1,319.85"},{"v":1319.85,"d":"$1,319.85"},{"v":1979.77,"d":"$1,979.77"},{"v":406513.8,"d":"$406,513.80"},{"v":164667.88,"d":"$164,667.88"},{"v":62581.77,"d":"$62,581.77"},{"v":1029058.5199999999,"d":"$1,029,058.52"},{"v":10748502.59,"d":"$10,748,502.59"},{"v":150832.28,"d":"$150,832.28"},{"v":985,"d":"$985.00"},{"v":315206.57,"d":"$315,206.57"},{"v":10748502.53308,"d":"$10,748,502.53"}]
["53090076002","CREVE COEUR SCHOOL DISTRICT 76",493.32,{"v":6990821.82,"d":"$6,990,821.82"},{"v":5357085.18,"d":"$5,357,085.18"},{"v":0.7663026347880798,"d":"77%"},1,{"v":80754.9,"d":"$80,754.90"},{"v":3938833.97,"d":"$3,938,833.97"},{"v":4019588.87,"d":"$4,019,588.87"},{"v":0.9,"d":"0.90"},{"v":1607903.51,"d":"$1,607,903.51"},{"v":321580.7,"d":"$321,580.70"},{"v":154388.86,"d":"$154,388.86"},{"v":68408.07,"d":"$68,408.07"},{"v":58441.82,"d":"$58,441.82"},{"v":93341.26,"d":"$93,341.26"},{"v":35229.88,"d":"$35,229.88"},{"v":58542.64,"d":"$58,542.64"},{"v":78986.19,"d":"$78,986.19"},{"v":43572.83,"d":"$43,572.83"},{"v":117178.48,"d":"$117,178.48"},{"v":100890.94,"d":"$100,890.94"},{"v":70248.41,"d":"$70,248.41"},{"v":2808713.5899999994,"d":"$2,808,713.59"},{"v":43768.799999999996,"d":"$43,768.80"},{"v":61664.99999999999,"d":"$61,665.00"},{"v":160329,"d":"$160,329.00"},{"v":16772.879999999997,"d":"$16,772.88"},{"v":281685.72,"d":"$281,685.72"},{"v":81207.84,"d":"$81,207.84"},{"v":671408.52,"d":"$671,408.52"},{"v":462240.83999999997,"d":"$462,240.84"},{"v":1405720.71048,"d":"$1,405,720.71"},{"v":3184799.3104799995,"d":"$3,184,799.31"},{"v":469581.44,"d":"$469,581.44"},{"v":2715217.8704799996,"d":"$2,715,217.87"},{"v":3137841.1604799996,"d":"$3,137,841.16"},{"v":167620.95,"d":"$167,620.95"},{"v":167620.95,"d":"$167,620.95"},{"v":174880.12,"d":"$174,880.12"},{"v":174880.12,"d":"$174,880.12"},{"v":0,"d":"$0.00"},{"v":0,"d":"$0.00"},{"v":0,"d":"$0.00"},{"v":0,"d":"$0.00"},{"v":0,"d":"$0.00"},{"v":230313.82,"d":"$230,313.82"},{"v":93293.98,"d":"$93,293.98"},{"v":35657.05,"d":"$35,657.05"},{"v":1044266.99,"d":"$1,044,266.99"},{"v":6990821.82,"d":"$6,990,821.82"},{"v":1105597.4200000004,"d":"$1,105,597.42"},{"v":0,"d":"$0.00"},{"v":267790.3,"d":"$267,790.30"},{"v":6990821.740479999,"d":"$6,990,821.74"}]
["53090085002","ROBEIN SCHOOL DISTRICT 85",160.04,{"v":2032635.65,"d":"$2,032,635.65"},{"v":1546825.33,"d":"$1,546,825.33"},{"v":0.7609948836625,"d":"76%"},1,{"v":22908.69,"d":"$22,908.69"},{"v":397550.51,"d":"$397,550.51"},{"v":420459.2,"d":"$420,459.20"},{"v":0.9,"d":"0.90"},{"v":478228.91,"d":"$478,228.91"},{"v":95645.78,"d":"$95,645.78"},{"v":49580.16,"d":"$49,580.16"},{"v":21338.29,"d":"$21,338.29"},{"v":16289.04,"d":"$16,289.04"},{"v":29760.98,"d":"$29,760.98"},{"v":11559.8,"d":"$11,559.80"},{"v":18712.26,"d":"$18,712.26"},{"v":24637.89,"d":"$24,637.89"},{"v":13900.53,"d":"$13,900.53"},{"v":36551.08,"d":"$36,551.08"},{"v":31470.57,"d":"$31,470.57"},{"v":22453.83,"d":"$22,453.83"},{"v":850129.12,"d":"$850,129.12"},{"v":14186.699999999997,"d":"$14,186.70"},{"v":20004.999999999996,"d":"$20,005.00"},{"v":52012.99999999999,"d":"$52,013.00"},{"v":5441.359999999999,"d":"$5,441.36"},{"v":91382.84,"d":"$91,382.84"},{"v":26398.509999999995,"d":"$26,398.51"},{"v":217814.44,"d":"$217,814.44"},{"v":149957.47999999998,"d":"$149,957.48"},{"v":397871.53956,"d":"$397,871.54"},{"v":975070.86956,"d":"$975,070.87"},{"v":152338.87,"d":"$152,338.87"},{"v":822731.9995599998,"d":"$822,732.00"},{"v":959836.9795599998,"d":"$959,836.98"},{"v":25737.07,"d":"$25,737.07"},{"v":25737.07,"d":"$25,737.07"},{"v":27056.92,"d":"$27,056.92"},{"v":27056.92,"d":"$27,056.92"},{"v":0,"d":"$0.00"},{"v":0,"d":"$0.00"},{"v":0,"d":"$0.00"},{"v":0,"d":"$0.00"},{"v":659.92,"d":"$659.92"},{"v":74571.52,"d":"$74,571.52"},{"v":30206.93,"d":"$30,206.93"},{"v":11643.12,"d":"$11,643.12"},{"v":222669.46999999997,"d":"$222,669.47"},{"v":2032635.65,"d":"$2,032,635.65"},{"v":44829.509999999995,"d":"$44,829.51"},{"v":184.85,"d":"$184.85"},{"v":67326.81999999999,"d":"$67,326.82"},{"v":2032635.5695599997,"d":"$2,032,635.57"}]
["53090086002","EAST PEORIA SCHOOL DISTRICT 86",1415.97,{"v":18434279.01,"d":"$18,434,279.01"},{"v":22545604.54,"d":"$22,545,604.54"},{"v":1.2230261095521955,"d":"122%"},4,{"v":1174.23,"d":"$1,174.23"},{"v":2509024.4200000004,"d":"$2,509,024.42"},{"v":2510198.6500000004,"d":"$2,510,198.65"},{"v":0.9,"d":"0.90"},{"v":4355523.18,"d":"$4,355,523.18"},{"v":871104.63,"d":"$871,104.63"},{"v":443711.07,"d":"$443,711.07"},{"v":196437.86,"d":"$196,437.86"},{"v":153291.45,"d":"$153,291.45"},{"v":271907.17,"d":"$271,907.17"},{"v":103487.79,"d":"$103,487.79"},{"v":167875.7,"d":"$167,875.70"},{"v":226813.57,"d":"$226,813.57"},{"v":125906.77,"d":"$125,906.77"},{"v":336485.01,"d":"$336,485.01"},{"v":289714.36,"d":"$289,714.36"},{"v":201442.93,"d":"$201,442.93"},{"v":7743701.49,"d":"$7,743,701.49"},{"v":125254.79999999999,"d":"$125,254.80"},{"v":176996.25,"d":"$176,996.25"},{"v":460190.25,"d":"$460,190.25"},{"v":48142.979999999996,"d":"$48,142.98"},{"v":404259.43,"d":"$404,259.43"},{"v":235860.84000000003,"d":"$235,860.84"},{"v":1927135.17,"d":"$1,927,135.17"},{"v":1326763.8900000001,"d":"$1,326,763.89"},{"v":3731054.36808,"d":"$3,731,054.37"},{"v":8435657.978079999,"d":"$8,435,657.98"},{"v":1347833.52,"d":"$1,347,833.52"},{"v":7087824.458080001,"d":"$7,087,824.46"},{"v":8300874.618080001,"d":"$8,300,874.62"},{"v":314784.22,"d":"$314,784.22"},{"v":314784.22,"d":"$314,784.22"},{"v":327982.72,"d":"$327,982.72"},{"v":327982.72,"d":"$327,982.72"},{"v":13198.5,"d":"$13,198.50"},{"v":13198.5,"d":"$13,198.50"},{"v":13858.42,"d":"$13,858.42"},{"v":13858.42,"d":"$13,858.42"},{"v":16498.12,"d":"$16,498.12"},{"v":662564.7,"d":"$662,564.70"},{"v":268387.27,"d":"$268,387.27"},{"v":102604.99,"d":"$102,604.99"},{"v":2389702.8,"d":"$2,389,702.80"},{"v":18434279.01,"d":"$18,434,279.01"},{"v":1029683.8300000001,"d":"$1,029,683.83"},{"v":2215.28,"d":"$2,215.28"},{"v":613874.34,"d":"$613,874.34"},{"v":18434278.90808,"d":"$18,434,278.91"}]
["53090098002","RANKIN COMMUNITY SCHOOL DIST 98",189.5,{"v":2290694.29,"d":"$2,290,694.29"},{"v":2970044.26,"d":"$2,970,044.26"},{"v":1.2965694606066354,"d":"130%"},4,{"v":145.91,"d":"$145.91"},{"v":407737.55999999994,"d":"$407,737.56"},{"v":407883.4699999999,"d":"$407,883.47"},{"v":0.9,"d":"0.90"},{"v":549147.37,"d":"$549,147.37"},{"v":109829.47,"d":"$109,829.47"},{"v":58994.11,"d":"$58,994.11"},{"v":25731.47,"d":"$25,731.47"},{"v":18477.3,"d":"$18,477.30"},{"v":37201.23,"d":"$37,201.23"},{"v":13211.2,"d":"$13,211.20"},{"v":22187.39,"d":"$22,187.39"},{"v":29710.4,"d":"$29,710.40"},{"v":16573.71,"d":"$16,573.71"},{"v":44076.31,"d":"$44,076.31"},{"v":37949.8,"d":"$37,949.80"},{"v":26623.82,"d":"$26,623.82"},{"v":989713.58,"d":"$989,713.58"},{"v":16920,"d":"$16,920.00"},{"v":23687.5,"d":"$23,687.50"},{"v":61587.5,"d":"$61,587.50"},{"v":6443,"d":"$6,443.00"},{"v":54102.25,"d":"$54,102.25"},{"v":33110,"d":"$33,110.00"},{"v":257909.5,"d":"$257,909.50"},{"v":177561.5,"d":"$177,561.50"},{"v":455319.249,"d":"$455,319.25"},{"v":1086640.499,"d":"$1,086,640.50"},{"v":180381.26,"d":"$180,381.26"},{"v":906259.2390000001,"d":"$906,259.24"},{"v":1068602.369,"d":"$1,068,602.37"},{"v":20457.67,"d":"$20,457.67"},{"v":20457.67,"d":"$20,457.67"},{"v":21777.52,"d":"$21,777.52"},{"v":21777.52,"d":"$21,777.52"},{"v":1979.77,"d":"$1,979.77"},{"v":1979.77,"d":"$1,979.77"},{"v":1979.77,"d":"$1,979.77"},{"v":1979.77,"d":"$1,979.77"},{"v":2639.7,"d":"$2,639.70"},{"v":88429.95,"d":"$88,429.95"},{"v":35820.61,"d":"$35,820.61"},{"v":13098.51,"d":"$13,098.51"},{"v":232378.23000000004,"d":"$232,378.23"},{"v":2290694.29,"d":"$2,290,694.29"},{"v":202604.63,"d":"$202,604.63"},{"v":1.28,"d":"$1.28"},{"v":66311.25,"d":"$66,311.25"},{"v":2290694.179,"d":"$2,290,694.18"}]
["53090102002","N PEKIN & MARQUETTE HGHT S D 102",414.97,{"v":5511946.38,"d":"$5,511,946.38"},{"v":4673652.6899999995,"d":"$4,673,652.69"},{"v":0.8479133082568193,"d":"85%"},2,{"v":18025.18,"d":"$18,025.18"},{"v":2515910.97,"d":"$2,515,910.97"},{"v":2533936.1500000004,"d":"$2,533,936.15"},{"v":0.9,"d":"0.90"},{"v":1277159.89,"d":"$1,277,159.89"},{"v":255431.97,"d":"$255,431.97"},{"v":129284.98,"d":"$129,284.98"},{"v":57111.32,"d":"$57,111.32"},{"v":44880.27,"d":"$44,880.27"},{"v":78460.77,"d":"$78,460.77"},{"v":29725.21,"d":"$29,725.21"},{"v":49186.51,"d":"$49,186.51"},{"v":65942.6,"d":"$65,942.60"},{"v":36622.56,"d":"$36,622.56"},{"v":97827.91,"d":"$97,827.91"},{"v":84230.05,"d":"$84,230.05"},{"v":59021.49,"d":"$59,021.49"},{"v":2264885.5300000003,"d":"$2,264,885.53"},{"v":36777.6,"d":"$36,777.60"},{"v":51871.25,"d":"$51,871.25"},{"v":134865.25,"d":"$134,865.25"},{"v":14108.98,"d":"$14,108.98"},{"v":236947.87,"d":"$236,947.87"},{"v":68686.76000000001,"d":"$68,686.76"},{"v":564774.17,"d":"$564,774.17"},{"v":388826.89,"d":"$388,826.89"},{"v":1091302.24608,"d":"$1,091,302.25"},{"v":2588161.01608,"d":"$2,588,161.02"},{"v":395001.64,"d":"$395,001.64"},{"v":2193159.3760800003,"d":"$2,193,159.38"},{"v":2548660.8460800005,"d":"$2,548,660.85"},{"v":93049.42,"d":"$93,049.42"},{"v":93049.42,"d":"$93,049.42"},{"v":97008.97,"d":"$97,008.97"},{"v":97008.97,"d":"$97,008.97"},{"v":2639.7,"d":"$2,639.70"},{"v":2639.7,"d":"$2,639.70"},{"v":3299.62,"d":"$3,299.62"},{"v":3299.62,"d":"$3,299.62"},{"v":3959.55,"d":"$3,959.55"},{"v":194017.95,"d":"$194,017.95"},{"v":78591.49,"d":"$78,591.49"},{"v":29835.49,"d":"$29,835.49"},{"v":698399.9,"d":"$698,399.90"},{"v":5511946.38,"d":"$5,511,946.38"},{"v":317327.62000000005,"d":"$317,327.62"},{"v":523.6,"d":"$523.60"},{"v":188808.91999999998,"d":"$188,808.92"},{"v":5511946.276080001,"d":"$5,511,946.28"}]
["53090108002","PEKIN PUBLIC SCHOOL DIST 108",3106.9,{"v":42524188.49,"d":"$42,524,188.49"},{"v":39016366.45,"d":"$39,016,366.45"},{"v":0.9175099592829409,"d":"92%"},3,{"v":48324.94,"d":"$48,324.94"},{"v":13432781.859999998,"d":"$13,432,781.86"},{"v":13481106.799999997,"d":"$13,481,106.80"},{"v":0.9,"d":"0.90"},{"v":9796161.57,"d":"$9,796,161.57"},{"v":1959232.31,"d":"$1,959,232.31"},{"v":974658.14,"d":"$974,658.14"},{"v":433041.93,"d":"$433,041.93"},{"v":350211.55,"d":"$350,211.55"},{"v":593866.9,"d":"$593,866.90"},{"v":227893.33,"d":"$227,893.33"},{"v":368898.84,"d":"$368,898.84"},{"v":500004.36,"d":"$500,004.36"},{"v":276406.81,"d":"$276,406.81"},{"v":741772.08,"d":"$741,772.08"},{"v":638667.45,"d":"$638,667.45"},{"v":442661.22,"d":"$442,661.22"},{"v":17303476.490000002,"d":"$17,303,476.49"},{"v":274693.5,"d":"$274,693.50"},{"v":388362.5,"d":"$388,362.50"},{"v":1009742.4999999999,"d":"$1,009,742.50"},{"v":105634.59999999999,"d":"$105,634.60"},{"v":1774039.9,"d":"$1,774,039.90"},{"v":512792.59,"d":"$512,792.59"},{"v":4228490.899999999,"d":"$4,228,490.90"},{"v":2911165.3,"d":"$2,911,165.30"},{"v":8481612.7806,"d":"$8,481,612.78"},{"v":19686534.5706,"d":"$19,686,534.57"},{"v":2957395.97,"d":"$2,957,395.97"},{"v":16729138.600599999,"d":"$16,729,138.60"},{"v":19390794.970599998,"d":"$19,390,794.97"},{"v":842724.22,"d":"$842,724.22"},{"v":842724.22,"d":"$842,724.22"},{"v":877700.25,"d":"$877,700.25"},{"v":877700.25,"d":"$877,700.25"},{"v":22437.45,"d":"$22,437.45"},{"v":22437.45,"d":"$22,437.45"},{"v":23757.3,"d":"$23,757.30"},{"v":23757.3,"d":"$23,757.30"},{"v":28376.77,"d":"$28,376.77"},{"v":1453814.77,"d":"$1,453,814.77"},{"v":588901.55,"d":"$588,901.55"},{"v":225585.45,"d":"$225,585.45"},{"v":5829916.98,"d":"$5,829,916.98"},{"v":42524188.49,"d":"$42,524,188.49"},{"v":3207350.04,"d":"$3,207,350.04"},{"v":5620.2699999999995,"d":"$5,620.27"},{"v":1522958.34,"d":"$1,522,958.34"},{"v":42524188.44060001,"d":"$42,524,188.44"}]
["53090137002","SOUTH PEKIN SCHOOL DIST 137",172.13,{"v":2273801.61,"d":"$2,273,801.61"},{"v":1946909.43,"d":"$1,946,909.43"},{"v":0.8562353995342629,"d":"86%"},2,{"v":7652.39,"d":"$7,652.39"},{"v":1547698.0900000003,"d":"$1,547,698.09"},{"v":1555350.4800000002,"d":"$1,555,350.48"},{"v":0.9,"d":"0.90"},{"v":527809.07,"d":"$527,809.07"},{"v":105561.81,"d":"$105,561.81"},{"v":53345.74,"d":"$53,345.74"},{"v":23221.08,"d":"$23,221.08"},{"v":18491.27,"d":"$18,491.27"},{"v":32466.52,"d":"$32,466.52"},{"v":12110.27,"d":"$12,110.27"},{"v":20048.85,"d":"$20,048.85"},{"v":26811.82,"d":"$26,811.82"},{"v":15237.12,"d":"$15,237.12"},{"v":39776.18,"d":"$39,776.18"},{"v":34247.38,"d":"$34,247.38"},{"v":24057.67,"d":"$24,057.67"},{"v":933184.7799999999,"d":"$933,184.78"},{"v":15176.699999999999,"d":"$15,176.70"},{"v":21516.25,"d":"$21,516.25"},{"v":55942.25,"d":"$55,942.25"},{"v":5852.42,"d":"$5,852.42"},{"v":98286.23000000001,"d":"$98,286.23"},{"v":28599.35,"d":"$28,599.35"},{"v":234268.93,"d":"$234,268.93"},{"v":161285.81,"d":"$161,285.81"},{"v":449557.37532000005,"d":"$449,557.38"},{"v":1070485.31532,"d":"$1,070,485.32"},{"v":163847.1,"d":"$163,847.10"},{"v":906638.2153200001,"d":"$906,638.22"},{"v":1054100.60532,"d":"$1,054,100.61"},{"v":39595.5,"d":"$39,595.50"},{"v":39595.5,"d":"$39,595.50"},{"v":40915.35,"d":"$40,915.35"},{"v":40915.35,"d":"$40,915.35"},{"v":0,"d":"$0.00"},{"v":0,"d":"$0.00"},{"v":0,"d":"$0.00"},{"v":0,"d":"$0.00"},{"v":0,"d":"$0.00"},{"v":80510.85,"d":"$80,510.85"},{"v":32612.79,"d":"$32,612.79"},{"v":12370.81,"d":"$12,370.81"},{"v":286516.15,"d":"$286,516.15"},{"v":2273801.61,"d":"$2,273,801.61"},{"v":204986.62,"d":"$204,986.62"},{"v":0,"d":"$0.00"},{"v":120032.52,"d":"$120,032.52"},{"v":2273801.53532,"d":"$2,273,801.54"}]
["53090303016","PEKIN COMM H S DIST 303",1778.66,{"v":26411599.35,"d":"$26,411,599.35"},{"v":25596914.28,"d":"$25,596,914.28"},{"v":0.9691542697129396,"d":"97%"},3,{"v":30014.42,"d":"$30,014.42"},{"v":5490182.209999999,"d":"$5,490,182.21"},{"v":5520196.629999999,"d":"$5,520,196.63"},{"v":0.9,"d":"0.90"},{"v":5709072.1,"d":"$5,709,072.10"},{"v":1902833.73,"d":"$1,902,833.73"},{"v":641720.2,"d":"$641,720.20"},{"v":213666.12,"d":"$213,666.12"},{"v":192851.6,"d":"$192,851.60"},{"v":548138.34,"d":"$548,138.34"},{"v":130460.67,"d":"$130,460.67"},{"v":237645.7,"d":"$237,645.70"},{"v":214494.62,"d":"$214,494.62"},{"v":158252.25,"d":"$158,252.25"},{"v":318209.47,"d":"$318,209.47"},{"v":273979.08,"d":"$273,979.08"},{"v":285163.64,"d":"$285,163.64"},{"v":10826487.52,"d":"$10,826,487.52"},{"v":160079.4,"d":"$160,079.40"},{"v":222332.5,"d":"$222,332.50"},{"v":578064.5,"d":"$578,064.50"},{"v":60474.44,"d":"$60,474.44"},{"v":1015614.86,"d":"$1,015,614.86"},{"v":1527868.9400000002,"d":"$1,527,868.94"},{"v":2420756.2600000002,"d":"$2,420,756.26"},{"v":1666604.4200000002,"d":"$1,666,604.42"},{"v":5065005.82824,"d":"$5,065,005.83"},{"v":12716801.14824,"d":"$12,716,801.15"},{"v":1693070.88,"d":"$1,693,070.88"},{"v":11023730.268239997,"d":"$11,023,730.27"},{"v":12547494.058239996,"d":"$12,547,494.06"},{"v":419052.37,"d":"$419,052.37"},{"v":419052.37,"d":"$419,052.37"},{"v":436870.35,"d":"$436,870.35"},{"v":436870.35,"d":"$436,870.35"},{"v":5279.4,"d":"$5,279.40"},{"v":5279.4,"d":"$5,279.40"},{"v":5279.4,"d":"$5,279.40"},{"v":5279.4,"d":"$5,279.40"},{"v":6599.25,"d":"$6,599.25"},{"v":832165.42,"d":"$832,165.42"},{"v":337087.99,"d":"$337,087.99"},{"v":128802.01,"d":"$128,802.01"},{"v":3037617.709999999,"d":"$3,037,617.71"},{"v":26411599.35,"d":"$26,411,599.35"},{"v":1212449.29,"d":"$1,212,449.29"},{"v":483.25,"d":"$483.25"},{"v":764870.65,"d":"$764,870.65"},{"v":26411599.288239993,"d":"$26,411,599.29"}]
["53090308016","WASHINGTON COMM H S DIST 308",1471.5,{"v":20166679.44,"d":"$20,166,679.44"},{"v":12504974.510000002,"d":"$12,504,974.51"},{"v":0.6200809879090338,"d":"62%"},1,{"v":1235901.95,"d":"$1,235,901.95"},{"v":4674294.11,"d":"$4,674,294.11"},{"v":5910196.0600000005,"d":"$5,910,196.06"},{"v":0.9,"d":"0.90"},{"v":4439346.75,"d":"$4,439,346.75"},{"v":1479634.26,"d":"$1,479,634.26"},{"v":530556.07,"d":"$530,556.07"},{"v":176852.02,"d":"$176,852.02"},{"v":140870.9,"d":"$140,870.90"},{"v":453312.72,"d":"$453,312.72"},{"v":107891.53,"d":"$107,891.53"},{"v":196478.73,"d":"$196,478.73"},{"v":177537.78,"d":"$177,537.78"},{"v":130985.82,"d":"$130,985.82"},{"v":263382.84,"d":"$263,382.84"},{"v":226773.22,"d":"$226,773.22"},{"v":235765.21,"d":"$235,765.21"},{"v":8559387.850000001,"d":"$8,559,387.85"},{"v":132435,"d":"$132,435.00"},{"v":183937.5,"d":"$183,937.50"},{"v":478237.5,"d":"$478,237.50"},{"v":50031,"d":"$50,031.00"},{"v":840226.5,"d":"$840,226.50"},{"v":1264018.5,"d":"$1,264,018.50"},{"v":2002711.5,"d":"$2,002,711.50"},{"v":1378795.5,"d":"$1,378,795.50"},{"v":3774026.739,"d":"$3,774,026.74"},{"v":10104419.739,"d":"$10,104,419.74"},{"v":1400691.42,"d":"$1,400,691.42"},{"v":8703728.319,"d":"$8,703,728.32"},{"v":9964350.589,"d":"$9,964,350.59"},{"v":139244.17,"d":"$139,244.17"},{"v":139244.17,"d":"$139,244.17"},{"v":145183.5,"d":"$145,183.50"},{"v":145183.5,"d":"$145,183.50"},{"v":0,"d":"$0.00"},{"v":0,"d":"$0.00"},{"v":0,"d":"$0.00"},{"v":0,"d":"$0.00"},{"v":0,"d":"$0.00"},{"v":688301.77,"d":"$688,301.77"},{"v":278812.67,"d":"$278,812.67"},{"v":106971.16,"d":"$106,971.16"},{"v":1642940.94,"d":"$1,642,940.94"},{"v":20166679.44,"d":"$20,166,679.44"},{"v":282094.94,"d":"$282,094.94"},{"v":18.96,"d":"$18.96"},{"v":571403.3900000001,"d":"$571,403.39"},{"v":20166679.379000004,"d":"$20,166,679.38"}]
["53090309016","EAST PEORIA COMM H S DIST 309",957.66,{"v":14331965.38,"d":"$14,331,965.38"},{"v":14197413.82,"d":"$14,197,413.82"},{"v":0.9906117858624076,"d":"99%"},3,{"v":16287,"d":"$16,287.00"},{"v":1562999.32,"d":"$1,562,999.32"},{"v":1579286.32,"d":"$1,579,286.32"},{"v":0.9,"d":"0.90"},{"v":3095271.36,"d":"$3,095,271.36"},{"v":1031653.94,"d":"$1,031,653.94"},{"v":345041.91,"d":"$345,041.91"},{"v":114773.35,"d":"$114,773.35"},{"v":105082.24,"d":"$105,082.24"},{"v":295270.02,"d":"$295,270.02"},{"v":69909.3,"d":"$69,909.30"},{"v":127778,"d":"$127,778.00"},{"v":115218.39,"d":"$115,218.39"},{"v":85274.44,"d":"$85,274.44"},{"v":170930.08,"d":"$170,930.08"},{"v":147171.19,"d":"$147,171.19"},{"v":153327.58,"d":"$153,327.58"},{"v":5856701.800000001,"d":"$5,856,701.80"},{"v":86189.40000000001,"d":"$86,189.40"},{"v":119707.50000000001,"d":"$119,707.50"},{"v":311239.5,"d":"$311,239.50"},{"v":32560.440000000002,"d":"$32,560.44"},{"v":546823.86,"d":"$546,823.86"},{"v":822629.9400000001,"d":"$822,629.94"},{"v":1303375.26,"d":"$1,303,375.26"},{"v":897327.42,"d":"$897,327.42"},{"v":2754651.80424,"d":"$2,754,651.80"},{"v":6874505.12424,"d":"$6,874,505.12"},{"v":911577.4,"d":"$911,577.40"},{"v":5962927.724240001,"d":"$5,962,927.72"},{"v":6783347.384240001,"d":"$6,783,347.38"},{"v":241532.55,"d":"$241,532.55"},{"v":241532.55,"d":"$241,532.55"},{"v":251431.42,"d":"$251,431.42"},{"v":251431.42,"d":"$251,431.42"},{"v":1319.85,"d":"$1,319.85"},{"v":1319.85,"d":"$1,319.85"},{"v":1319.85,"d":"$1,319.85"},{"v":1319.85,"d":"$1,319.85"},{"v":1979.77,"d":"$1,979.77"},{"v":448089.07,"d":"$448,089.07"},{"v":181508.92,"d":"$181,508.92"},{"v":69131.02,"d":"$69,131.02"},{"v":1691916.1199999999,"d":"$1,691,916.12"},{"v":14331965.38,"d":"$14,331,965.38"},{"v":575469.35,"d":"$575,469.35"},{"v":88.04,"d":"$88.04"},{"v":348712.62,"d":"$348,712.62"},{"v":14331965.304240001,"d":"$14,331,965.30"}]
["53090606004","SPRING LAKE C C SCH DIST 606",61.75,{"v":716264.33,"d":"$716,264.33"},{"v":720780.1799999999,"d":"$720,780.18"},{"v":1.0063047255194182,"d":"101%"},4,{"v":45.62,"d":"$45.62"},{"v":252197.26999999996,"d":"$252,197.27"},{"v":252242.88999999996,"d":"$252,242.89"},{"v":0.9,"d":"0.90"},{"v":171961.57,"d":"$171,961.57"},{"v":34392.31,"d":"$34,392.31"},{"v":18827.91,"d":"$18,827.91"},{"v":8158.76,"d":"$8,158.76"},{"v":5668.65,"d":"$5,668.65"},{"v":11498.56,"d":"$11,498.56"},{"v":3853.26,"d":"$3,853.26"},{"v":6950.26,"d":"$6,950.26"},{"v":9420.37,"d":"$9,420.37"},{"v":5346.36,"d":"$5,346.36"},{"v":13975.41,"d":"$13,975.41"},{"v":12032.86,"d":"$12,032.86"},{"v":8339.99,"d":"$8,339.99"},{"v":310426.26999999996,"d":"$310,426.27"},{"v":5400,"d":"$5,400.00"},{"v":7718.75,"d":"$7,718.75"},{"v":20068.75,"d":"$20,068.75"},{"v":2099.5,"d":"$2,099.50"},{"v":17629.620000000003,"d":"$17,629.62"},{"v":10538,"d":"$10,538.00"},{"v":84041.75,"d":"$84,041.75"},{"v":57859.75,"d":"$57,859.75"},{"v":141004.539,"d":"$141,004.54"},{"v":346360.659,"d":"$346,360.66"},{"v":58778.59,"d":"$58,778.59"},{"v":287582.069,"d":"$287,582.07"},{"v":340482.799,"d":"$340,482.80"},{"v":5279.4,"d":"$5,279.40"},{"v":5279.4,"d":"$5,279.40"},{"v":5279.4,"d":"$5,279.40"},{"v":5279.4,"d":"$5,279.40"},{"v":0,"d":"$0.00"},{"v":0,"d":"$0.00"},{"v":0,"d":"$0.00"},{"v":0,"d":"$0.00"},{"v":0,"d":"$0.00"},{"v":28376.77,"d":"$28,376.77"},{"v":11494.67,"d":"$11,494.67"},{"v":4366.17,"d":"$4,366.17"},{"v":65355.20999999999,"d":"$65,355.21"},{"v":716264.33,"d":"$716,264.33"},{"v":11514.6,"d":"$11,514.60"},{"v":0,"d":"$0.00"},{"v":16993.76,"d":"$16,993.76"},{"v":716264.2789999999,"d":"$716,264.28"}]
["53090701026","DEER CREEK-MACKINAW CUSD 701",964.53,{"v":12403683.58,"d":"$12,403,683.58"},{"v":9441800.450000001,"d":"$9,441,800.45"},{"v":0.7612093930890166,"d":"76%"},1,{"v":134029.27,"d":"$134,029.27"},{"v":3833225.5400000005,"d":"$3,833,225.54"},{"v":3967254.8100000005,"d":"$3,967,254.81"},{"v":0.9,"d":"0.90"},{"v":2860031.89,"d":"$2,860,031.89"},{"v":691898.91,"d":"$691,898.91"},{"v":315728.61,"d":"$315,728.61"},{"v":128254.76,"d":"$128,254.76"},{"v":94429.72,"d":"$94,429.72"},{"v":218131.48,"d":"$218,131.48"},{"v":70459.77,"d":"$70,459.77"},{"v":118421.87,"d":"$118,421.87"},{"v":142754.86,"d":"$142,754.86"},{"v":85541.76,"d":"$85,541.76"},{"v":211781.3,"d":"$211,781.30"},{"v":182344.18,"d":"$182,344.18"},{"v":142100.66,"d":"$142,100.66"},{"v":5261879.77,"d":"$5,261,879.77"},{"v":86125.5,"d":"$86,125.50"},{"v":120566.25,"d":"$120,566.25"},{"v":313472.25,"d":"$313,472.25"},{"v":32794.02,"d":"$32,794.02"},{"v":550746.63,"d":"$550,746.63"},{"v":364301.44999999995,"d":"$364,301.45"},{"v":1312725.3299999998,"d":"$1,312,725.33"},{"v":903764.6099999999,"d":"$903,764.61"},{"v":2385718.6579200006,"d":"$2,385,718.66"},{"v":6070214.69792,"d":"$6,070,214.70"},{"v":918116.81,"d":"$918,116.81"},{"v":5152097.88792,"d":"$5,152,097.89"},{"v":5978403.00792,"d":"$5,978,403.01"},{"v":112187.25,"d":"$112,187.25"},{"v":112187.25,"d":"$112,187.25"},{"v":117466.65,"d":"$117,466.65"},{"v":117466.65,"d":"$117,466.65"},{"v":0,"d":"$0.00"},{"v":0,"d":"$0.00"},{"v":0,"d":"$0.00"},{"v":0,"d":"$0.00"},{"v":0,"d":"$0.00"},{"v":451388.7,"d":"$451,388.70"},{"v":182845.51,"d":"$182,845.51"},{"v":69858.72,"d":"$69,858.72"},{"v":1163400.73,"d":"$1,163,400.73"},{"v":12403683.58,"d":"$12,403,683.58"},{"v":128206.65999999999,"d":"$128,206.66"},{"v":0,"d":"$0.00"},{"v":416273.42000000004,"d":"$416,273.42"},{"v":12403683.50792,"d":"$12,403,683.51"}]
["53090702026","TREMONT COMM UNIT DIST 702",942.94,{"v":11831127.81,"d":"$11,831,127.81"},{"v":8687329.56,"d":"$8,687,329.56"},{"v":0.7342773824704375,"d":"73%"},1,{"v":233225.21,"d":"$233,225.21"},{"v":2993187.1199999996,"d":"$2,993,187.12"},{"v":3226412.3299999996,"d":"$3,226,412.33"},{"v":0.9,"d":"0.90"},{"v":2725205.8,"d":"$2,725,205.80"},{"v":676576.54,"d":"$676,576.54"},{"v":310521.51,"d":"$310,521.51"},{"v":124427.07,"d":"$124,427.07"},{"v":88122.85,"d":"$88,122.85"},{"v":218778.85,"d":"$218,778.85"},{"v":68257.9,"d":"$68,257.90"},{"v":116550.64,"d":"$116,550.64"},{"v":137682.36,"d":"$137,682.36"},{"v":83670.53,"d":"$83,670.53"},{"v":204256.08,"d":"$204,256.08"},{"v":175864.95,"d":"$175,864.95"},{"v":139855.28,"d":"$139,855.28"},{"v":5069770.36,"d":"$5,069,770.36"},{"v":84189.59999999999,"d":"$84,189.60"},{"v":117867.5,"d":"$117,867.50"},{"v":306455.5,"d":"$306,455.50"},{"v":32059.96,"d":"$32,059.96"},{"v":538418.74,"d":"$538,418.74"},{"v":386161.08,"d":"$386,161.08"},{"v":1283341.3399999999,"d":"$1,283,341.34"},{"v":883534.7799999999,"d":"$883,534.78"},{"v":2252135.5461599994,"d":"$2,252,135.55"},{"v":5884164.046159999,"d":"$5,884,164.05"},{"v":897565.72,"d":"$897,565.72"},{"v":4986598.326159999,"d":"$4,986,598.33"},{"v":5794407.466159998,"d":"$5,794,407.47"},{"v":67972.27,"d":"$67,972.27"},{"v":67972.27,"d":"$67,972.27"},{"v":71271.9,"d":"$71,271.90"},{"v":71271.9,"d":"$71,271.90"},{"v":0,"d":"$0.00"},{"v":0,"d":"$0.00"},{"v":0,"d":"$0.00"},{"v":0,"d":"$0.00"},{"v":659.92,"d":"$659.92"},{"v":440829.9,"d":"$440,829.90"},{"v":178568.42,"d":"$178,568.42"},{"v":68403.33,"d":"$68,403.33"},{"v":966949.9099999999,"d":"$966,949.91"},{"v":11831127.81,"d":"$11,831,127.81"},{"v":88423.35,"d":"$88,423.35"},{"v":0,"d":"$0.00"},{"v":360525.31,"d":"$360,525.31"},{"v":11831127.736159999,"d":"$11,831,127.74"}]
["53090703026","DELAVAN COMM UNIT DIST 703",421.12,{"v":5521980.39,"d":"$5,521,980.39"},{"v":5119540.76,"d":"$5,119,540.76"},{"v":0.9271204166663113,"d":"93%"},3,{"v":6275.23,"d":"$6,275.23"},{"v":1204144.1600000001,"d":"$1,204,144.16"},{"v":1210419.3900000001,"d":"$1,210,419.39"},{"v":0.9,"d":"0.90"},{"v":1264859.35,"d":"$1,264,859.35"},{"v":308973.03,"d":"$308,973.03"},{"v":136854.79,"d":"$136,854.79"},{"v":54791.6,"d":"$54,791.60"},{"v":42362.57,"d":"$42,362.57"},{"v":95741.64,"d":"$95,741.64"},{"v":30275.68,"d":"$30,275.68"},{"v":51592.37,"d":"$51,592.37"},{"v":60870.09,"d":"$60,870.09"},{"v":37157.2,"d":"$37,157.20"},{"v":90302.68,"d":"$90,302.68"},{"v":77750.82,"d":"$77,750.82"},{"v":61908.41,"d":"$61,908.41"},{"v":2313440.2300000004,"d":"$2,313,440.23"},{"v":37481.4,"d":"$37,481.40"},{"v":52640,"d":"$52,640.00"},{"v":136864,"d":"$136,864.00"},{"v":14318.08,"d":"$14,318.08"},{"v":240459.52,"d":"$240,459.52"},{"v":164230.44,"d":"$164,230.44"},{"v":573144.32,"d":"$573,144.32"},{"v":394589.43999999994,"d":"$394,589.44"},{"v":1066686.5806800001,"d":"$1,066,686.58"},{"v":2680413.78068,"d":"$2,680,413.78"},{"v":400855.7,"d":"$400,855.70"},{"v":2279558.0806799997,"d":"$2,279,558.08"},{"v":2640328.2106799996,"d":"$2,640,328.21"},{"v":64012.72,"d":"$64,012.72"},{"v":64012.72,"d":"$64,012.72"},{"v":66652.42,"d":"$66,652.42"},{"v":66652.42,"d":"$66,652.42"},{"v":0,"d":"$0.00"},{"v":0,"d":"$0.00"},{"v":0,"d":"$0.00"},{"v":0,"d":"$0.00"},{"v":0,"d":"$0.00"},{"v":196657.65,"d":"$196,657.65"},{"v":79660.76,"d":"$79,660.76"},{"v":30563.19,"d":"$30,563.19"},{"v":568211.8799999999,"d":"$568,211.88"},{"v":5521980.39,"d":"$5,521,980.39"},{"v":127483.21,"d":"$127,483.21"},{"v":5.11,"d":"$5.11"},{"v":221331.42,"d":"$221,331.42"},{"v":5521980.32068,"d":"$5,521,980.32"}]
["53090709026","MORTON C U SCHOOL DISTRICT 709",3185.5,{"v":39987610.37,"d":"$39,987,610.37"},{"v":36216561.67,"d":"$36,216,561.67"},{"v":0.9056945722660847,"d":"91%"},3,{"v":45442.35,"d":"$45,442.35"},{"v":2582259.7800000003,"d":"$2,582,259.78"},{"v":2627702.1300000004,"d":"$2,627,702.13"},{"v":0.9,"d":"0.90"},{"v":9203461,"d":"$9,203,461.00"},{"v":2260123.62,"d":"$2,260,123.62"},{"v":1048175.52,"d":"$1,048,175.52"},{"v":422548.65,"d":"$422,548.65"},{"v":298978.51,"d":"$298,978.51"},{"v":733197.43,"d":"$733,197.43"},{"v":232847.54,"d":"$232,847.54"},{"v":393492.09,"d":"$393,492.09"},{"v":468844.66,"d":"$468,844.66"},{"v":283357.08,"d":"$283,357.08"},{"v":695545.7,"d":"$695,545.70"},{"v":598866.43,"d":"$598,866.43"},{"v":472171.96,"d":"$472,171.96"},{"v":17111610.189999998,"d":"$17,111,610.19"},{"v":283500,"d":"$283,500.00"},{"v":398187.5,"d":"$398,187.50"},{"v":1035287.5,"d":"$1,035,287.50"},{"v":108307,"d":"$108,307.00"},{"v":1818920.5,"d":"$1,818,920.50"},{"v":1259379,"d":"$1,259,379.00"},{"v":4335465.5,"d":"$4,335,465.50"},{"v":2984813.5,"d":"$2,984,813.50"},{"v":7624246.2749999985,"d":"$7,624,246.28"},{"v":19848106.775,"d":"$19,848,106.78"},{"v":3032213.74,"d":"$3,032,213.74"},{"v":16815893.034999996,"d":"$16,815,893.04"},{"v":19544885.394999996,"d":"$19,544,885.40"},{"v":216455.4,"d":"$216,455.40"},{"v":216455.4,"d":"$216,455.40"},{"v":225694.35,"d":"$225,694.35"},{"v":225694.35,"d":"$225,694.35"},{"v":22437.45,"d":"$22,437.45"},{"v":22437.45,"d":"$22,437.45"},{"v":23757.3,"d":"$23,757.30"},{"v":23757.3,"d":"$23,757.30"},{"v":28376.77,"d":"$28,376.77"},{"v":1490770.57,"d":"$1,490,770.57"},{"v":603871.36,"d":"$603,871.36"},{"v":231407.01,"d":"$231,407.01"},{"v":3331114.71,"d":"$3,331,114.71"},{"v":39987610.37,"d":"$39,987,610.37"},{"v":206608.54,"d":"$206,608.54"},{"v":1241.93,"d":"$1,241.93"},{"v":925933.1500000001,"d":"$925,933.15"},{"v":39987610.294999994,"d":"$39,987,610.30"}]
["53102001004","METAMORA C C SCH DIST 1",825.21,{"v":10034598.92,"d":"$10,034,598.92"},{"v":7296331.47,"d":"$7,296,331.47"},{"v":0.7271173993270077,"d":"73%"},1,{"v":207183.64,"d":"$207,183.64"},{"v":1952700.7399999995,"d":"$1,952,700.74"},{"v":2159884.3799999994,"d":"$2,159,884.38"},{"v":0.9,"d":"0.90"},{"v":2378592.63,"d":"$2,378,592.63"},{"v":475718.52,"d":"$475,718.52"},{"v":258569.96,"d":"$258,569.96"},{"v":114850.25,"d":"$114,850.25"},{"v":78381.81,"d":"$78,381.81"},{"v":158274.32,"d":"$158,274.32"},{"v":60000.9,"d":"$60,000.90"},{"v":97838.38,"d":"$97,838.38"},{"v":132609.85,"d":"$132,609.85"},{"v":73245.13,"d":"$73,245.13"},{"v":196730.85,"d":"$196,730.85"},{"v":169385.71,"d":"$169,385.71"},{"v":117401.45,"d":"$117,401.45"},{"v":4311599.76,"d":"$4,311,599.76"},{"v":73781.99999999999,"d":"$73,782.00"},{"v":103151.25,"d":"$103,151.25"},{"v":268193.25,"d":"$268,193.25"},{"v":28057.14,"d":"$28,057.14"},{"v":471194.91000000003,"d":"$471,194.91"},{"v":138226.68,"d":"$138,226.68"},{"v":1123110.81,"d":"$1,123,110.81"},{"v":773221.77,"d":"$773,221.77"},{"v":1940695.0484399998,"d":"$1,940,695.05"},{"v":4919632.85844,"d":"$4,919,632.86"},{"v":785500.89,"d":"$785,500.89"},{"v":4134131.9684399995,"d":"$4,134,131.97"},{"v":4841082.76844,"d":"$4,841,082.77"},{"v":68632.2,"d":"$68,632.20"},{"v":68632.2,"d":"$68,632.20"},{"v":71271.9,"d":"$71,271.90"},{"v":71271.9,"d":"$71,271.90"},{"v":0,"d":"$0.00"},{"v":0,"d":"$0.00"},{"v":0,"d":"$0.00"},{"v":0,"d":"$0.00"},{"v":0,"d":"$0.00"},{"v":386056.12,"d":"$386,056.12"},{"v":156381.03,"d":"$156,381.03"},{"v":59670.99,"d":"$59,670.99"},{"v":881916.34,"d":"$881,916.34"},{"v":10034598.92,"d":"$10,034,598.92"},{"v":99934.63000000002,"d":"$99,934.63"},{"v":0,"d":"$0.00"},{"v":215844.63999999998,"d":"$215,844.64"},{"v":10034598.868439998,"d":"$10,034,598.87"}]
["53102002004","RIVERVIEW C C SCHOOL DISTRICT 2",211.75,{"v":2779774.98,"d":"$2,779,774.98"},{"v":1947543.42,"d":"$1,947,543.42"},{"v":0.7006118962909724,"d":"70%"},1,{"v":84030.15,"d":"$84,030.15"},{"v":569771.94,"d":"$569,771.94"},{"v":653802.09,"d":"$653,802.09"},{"v":0.9,"d":"0.90"},{"v":648935.29,"d":"$648,935.29"},{"v":129787.05,"d":"$129,787.05"},{"v":65897.68,"d":"$65,897.68"},{"v":28869.46,"d":"$28,869.46"},{"v":22565.35,"d":"$22,565.35"},{"v":39230.38,"d":"$39,230.38"},{"v":14862.6,"d":"$14,862.60"},{"v":24860.57,"d":"$24,860.57"},{"v":33333.62,"d":"$33,333.62"},{"v":18712.26,"d":"$18,712.26"},{"v":49451.47,"d":"$49,451.47"},{"v":42577.83,"d":"$42,577.83"},{"v":29831.51,"d":"$29,831.51"},{"v":1148915.07,"d":"$1,148,915.07"},{"v":18720,"d":"$18,720.00"},{"v":26468.75,"d":"$26,468.75"},{"v":68818.75,"d":"$68,818.75"},{"v":7199.5,"d":"$7,199.50"},{"v":120909.25,"d":"$120,909.25"},{"v":34184,"d":"$34,184.00"},{"v":288191.75,"d":"$288,191.75"},{"v":198409.75,"d":"$198,409.75"},{"v":548967.117,"d":"$548,967.12"},{"v":1311868.867,"d":"$1,311,868.87"},{"v":201560.59,"d":"$201,560.59"},{"v":1110308.277,"d":"$1,110,308.28"},{"v":1291712.807,"d":"$1,291,712.81"},{"v":44214.97,"d":"$44,214.97"},{"v":44214.97,"d":"$44,214.97"},{"v":46194.75,"d":"$46,194.75"},{"v":46194.75,"d":"$46,194.75"},{"v":659.92,"d":"$659.92"},{"v":659.92,"d":"$659.92"},{"v":659.92,"d":"$659.92"},{"v":659.92,"d":"$659.92"},{"v":1319.85,"d":"$1,319.85"},{"v":98988.75,"d":"$98,988.75"},{"v":40097.7,"d":"$40,097.70"},{"v":15281.59,"d":"$15,281.59"},{"v":339147.0100000001,"d":"$339,147.01"},{"v":2779774.98,"d":"$2,779,774.98"},{"v":99234,"d":"$99,234.00"},{"v":302.28,"d":"$302.28"},{"v":75847.51999999999,"d":"$75,847.52"},{"v":2779774.8870000006,"d":"$2,779,774.89"}]
["53102006026","FIELDCREST CUSD #6",856.19,{"v":11361384.73,"d":"$11,361,384.73"},{"v":12575669.959999999,"d":"$12,575,669.96"},{"v":1.1068782775037669,"d":"111%"},4,{"v":723.7,"d":"$723.70"},{"v":2659043.8299999996,"d":"$2,659,043.83"},{"v":2659767.53,"d":"$2,659,767.53"},{"v":0.9,"d":"0.90"},{"v":2633878.51,"d":"$2,633,878.51"},{"v":647726.67,"d":"$647,726.67"},{"v":280928.03,"d":"$280,928.03"},{"v":113098.18,"d":"$113,098.18"},{"v":90173.61,"d":"$90,173.61"},{"v":196879.86,"d":"$196,879.86"},{"v":62202.77,"d":"$62,202.77"},{"v":105590.61,"d":"$105,590.61"},{"v":125363.41,"d":"$125,363.41"},{"v":75918.31,"d":"$75,918.31"},{"v":185980.53,"d":"$185,980.53"},{"v":160129.66,"d":"$160,129.66"},{"v":126703.75,"d":"$126,703.75"},{"v":4804573.899999999,"d":"$4,804,573.90"},{"v":76637.7,"d":"$76,637.70"},{"v":107023.75,"d":"$107,023.75"},{"v":278261.75,"d":"$278,261.75"},{"v":29110.46,"d":"$29,110.46"},{"v":244442.24,"d":"$244,442.24"},{"v":343171.89,"d":"$343,171.89"},{"v":1165274.5899999999,"d":"$1,165,274.59"},{"v":802250.0299999999,"d":"$802,250.03"},{"v":2260007.21016,"d":"$2,260,007.21"},{"v":5306179.6201599995,"d":"$5,306,179.62"},{"v":814990.13,"d":"$814,990.13"},{"v":4491189.49016,"d":"$4,491,189.49"},{"v":5224680.60016,"d":"$5,224,680.60"},{"v":159701.85,"d":"$159,701.85"},{"v":159701.85,"d":"$159,701.85"},{"v":166301.1,"d":"$166,301.10"},{"v":166301.1,"d":"$166,301.10"},{"v":10558.8,"d":"$10,558.80"},{"v":10558.8,"d":"$10,558.80"},{"v":10558.8,"d":"$10,558.80"},{"v":10558.8,"d":"$10,558.80"},{"v":13198.5,"d":"$13,198.50"},{"v":400574.47,"d":"$400,574.47"},{"v":162262.02,"d":"$162,262.02"},{"v":61854.07,"d":"$61,854.07"},{"v":1332130.1600000004,"d":"$1,332,130.16"},{"v":11361384.73,"d":"$11,361,384.73"},{"v":436632.18000000005,"d":"$436,632.18"},{"v":119.37,"d":"$119.37"},{"v":315204.35000000003,"d":"$315,204.35"},{"v":11361384.66016,"d":"$11,361,384.66"}]
["53102011026","EL PASO-GRIDLEY CUSD 11",1157.27,{"v":15117346.18,"d":"$15,117,346.18"},{"v":12645806.209999999,"d":"$12,645,806.21"},{"v":0.8365096664075995,"d":"84%"},2,{"v":41263.78,"d":"$41,263.78"},{"v":2733305.72,"d":"$2,733,305.72"},{"v":2774569.5,"d":"$2,774,569.50"},{"v":0.9,"d":"0.90"},{"v":3465764.15,"d":"$3,465,764.15"},{"v":847107.92,"d":"$847,107.92"},{"v":379747.84,"d":"$379,747.84"},{"v":153328.67,"d":"$153,328.67"},{"v":115540.33,"d":"$115,540.33"},{"v":265798.69,"d":"$265,798.69"},{"v":84221.45,"d":"$84,221.45"},{"v":142747.81,"d":"$142,747.81"},{"v":170291.34,"d":"$170,291.34"},{"v":102650.11,"d":"$102,650.11"},{"v":252632.52,"d":"$252,632.52"},{"v":217517.17,"d":"$217,517.17"},{"v":171290.64,"d":"$171,290.64"},{"v":6368638.64,"d":"$6,368,638.64"},{"v":103464.9,"d":"$103,464.90"},{"v":144658.75,"d":"$144,658.75"},{"v":376112.75,"d":"$376,112.75"},{"v":39347.17999999999,"d":"$39,347.18"},{"v":660801.17,"d":"$660,801.17"},{"v":453208.36999999994,"d":"$453,208.37"},{"v":1575044.47,"d":"$1,575,044.47"},{"v":1084361.99,"d":"$1,084,361.99"},{"v":2916597.110279999,"d":"$2,916,597.11"},{"v":7353596.69028,"d":"$7,353,596.69"},{"v":1101582.16,"d":"$1,101,582.16"},{"v":6252014.530279999,"d":"$6,252,014.53"},{"v":7243438.470279999,"d":"$7,243,438.47"},{"v":161021.7,"d":"$161,021.70"},{"v":161021.7,"d":"$161,021.70"},{"v":167620.95,"d":"$167,620.95"},{"v":167620.95,"d":"$167,620.95"},{"v":659.92,"d":"$659.92"},{"v":659.92,"d":"$659.92"},{"v":659.92,"d":"$659.92"},{"v":659.92,"d":"$659.92"},{"v":1319.85,"d":"$1,319.85"},{"v":541138.5,"d":"$541,138.50"},{"v":219200.76,"d":"$219,200.76"},{"v":83684.92,"d":"$83,684.92"},{"v":1505269.01,"d":"$1,505,269.01"},{"v":15117346.18,"d":"$15,117,346.18"},{"v":215043.03999999998,"d":"$215,043.04"},{"v":75.96000000000001,"d":"$75.96"},{"v":392888.44999999995,"d":"$392,888.45"},{"v":15117346.12028,"d":"$15,117,346.12"}]
["53102021026","LOWPOINT-WASHBURN C U S DIST 21",311.79,{"v":4250450.93,"d":"$4,250,450.93"},{"v":3847526.17,"d":"$3,847,526.17"},{"v":0.90520423206015,"d":"91%"},3,{"v":4830.25,"d":"$4,830.25"},{"v":997866.51,"d":"$997,866.51"},{"v":1002696.76,"d":"$1,002,696.76"},{"v":0.9,"d":"0.90"},{"v":976644.25,"d":"$976,644.25"},{"v":231315.84,"d":"$231,315.84"},{"v":100608.35,"d":"$100,608.35"},{"v":41485.68,"d":"$41,485.68"},{"v":33558.48,"d":"$33,558.48"},{"v":66700.56,"d":"$66,700.56"},{"v":22018.68,"d":"$22,018.68"},{"v":37959.15,"d":"$37,959.15"},{"v":46377.21,"d":"$46,377.21"},{"v":27533.75,"d":"$27,533.75"},{"v":68802.04,"d":"$68,802.04"},{"v":59238.72,"d":"$59,238.72"},{"v":45549.19,"d":"$45,549.19"},{"v":1757791.9,"d":"$1,757,791.90"},{"v":27866.7,"d":"$27,866.70"},{"v":38973.75,"d":"$38,973.75"},{"v":101331.74999999999,"d":"$101,331.75"},{"v":10600.859999999999,"d":"$10,600.86"},{"v":178032.09,"d":"$178,032.09"},{"v":108875.31,"d":"$108,875.31"},{"v":424346.18999999994,"d":"$424,346.19"},{"v":292147.23,"d":"$292,147.23"},{"v":832876.30656,"d":"$832,876.31"},{"v":2015050.1865599998,"d":"$2,015,050.19"},{"v":296786.66,"d":"$296,786.66"},{"v":1718263.5265600001,"d":"$1,718,263.53"},{"v":1985371.5165600001,"d":"$1,985,371.52"},{"v":68632.2,"d":"$68,632.20"},{"v":68632.2,"d":"$68,632.20"},{"v":71271.9,"d":"$71,271.90"},{"v":71271.9,"d":"$71,271.90"},{"v":0,"d":"$0.00"},{"v":0,"d":"$0.00"},{"v":0,"d":"$0.00"},{"v":0,"d":"$0.00"},{"v":0,"d":"$0.00"},{"v":145843.42,"d":"$145,843.42"},{"v":59077.27,"d":"$59,077.27"},{"v":22558.54,"d":"$22,558.54"},{"v":507287.43,"d":"$507,287.43"},{"v":4250450.93,"d":"$4,250,450.93"},{"v":191815.97999999998,"d":"$191,815.98"},{"v":0,"d":"$0.00"},{"v":95311.21999999999,"d":"$95,311.22"},{"v":4250450.8465599995,"d":"$4,250,450.85"}]
["53102060026","ROANOKE BENSON C U S DIST 60",457.85,{"v":5681457.72,"d":"$5,681,457.72"},{"v":6211366.720000001,"d":"$6,211,366.72"},{"v":1.0932699011619154,"d":"109%"},4,{"v":361.89,"d":"$361.89"},{"v":950187.69,"d":"$950,187.69"},{"v":950549.58,"d":"$950,549.58"},{"v":0.9,"d":"0.90"},{"v":1345977.89,"d":"$1,345,977.89"},{"v":326640.06,"d":"$326,640.06"},{"v":149783.72,"d":"$149,783.72"},{"v":59906.62,"d":"$59,906.62"},{"v":43974.99,"d":"$43,974.99"},{"v":103465.54,"d":"$103,465.54"},{"v":33028.02,"d":"$33,028.02"},{"v":56136.78,"d":"$56,136.78"},{"v":66667.24,"d":"$66,667.24"},{"v":40365.01,"d":"$40,365.01"},{"v":98902.94,"d":"$98,902.94"},{"v":85155.66,"d":"$85,155.66"},{"v":67361.49,"d":"$67,361.49"},{"v":2477365.9600000004,"d":"$2,477,365.96"},{"v":41034.59999999999,"d":"$41,034.60"},{"v":57231.25,"d":"$57,231.25"},{"v":148801.25,"d":"$148,801.25"},{"v":15566.900000000001,"d":"$15,566.90"},{"v":130716.17,"d":"$130,716.17"},{"v":174984.97999999998,"d":"$174,984.98"},{"v":623133.85,"d":"$623,133.85"},{"v":429005.44999999995,"d":"$429,005.45"},{"v":1113206.6364,"d":"$1,113,206.64"},{"v":2733681.0864,"d":"$2,733,681.09"},{"v":435818.25,"d":"$435,818.25"},{"v":2297862.8364,"d":"$2,297,862.84"},{"v":2690099.2564,"d":"$2,690,099.26"},{"v":44214.97,"d":"$44,214.97"},{"v":44214.97,"d":"$44,214.97"},{"v":46194.75,"d":"$46,194.75"},{"v":46194.75,"d":"$46,194.75"},{"v":0,"d":"$0.00"},{"v":0,"d":"$0.00"},{"v":0,"d":"$0.00"},{"v":0,"d":"$0.00"},{"v":0,"d":"$0.00"},{"v":213815.7,"d":"$213,815.70"},{"v":86611.03,"d":"$86,611.03"},{"v":32746.27,"d":"$32,746.27"},{"v":513992.44000000006,"d":"$513,992.44"},{"v":5681457.72,"d":"$5,681,457.72"},{"v":87021,"d":"$87,021.00"},{"v":0,"d":"$0.00"},{"v":156298.16,"d":"$156,298.16"},{"v":5681457.656400001,"d":"$5,681,457.66"}]
["53102069002","GERMANTOWN HILLS SCHOOL DIST 69",823.46,{"v":9930867.77,"d":"$9,930,867.77"},{"v":6685682.24,"d":"$6,685,682.24"},{"v":0.6732223603053775,"d":"67%"},1,{"v":394465.77,"d":"$394,465.77"},{"v":2251282,"d":"$2,251,282.00"},{"v":2645747.77,"d":"$2,645,747.77"},{"v":0.9,"d":"0.90"},{"v":2356626.73,"d":"$2,356,626.73"},{"v":471325.34,"d":"$471,325.34"},{"v":257942.36,"d":"$257,942.36"},{"v":114222.65,"d":"$114,222.65"},{"v":77298.08,"d":"$77,298.08"},{"v":157597.93,"d":"$157,597.93"},{"v":60000.9,"d":"$60,000.90"},{"v":97571.07,"d":"$97,571.07"},{"v":131885.2,"d":"$131,885.20"},{"v":72977.81,"d":"$72,977.81"},{"v":195655.82,"d":"$195,655.82"},{"v":168460.11,"d":"$168,460.11"},{"v":117080.68,"d":"$117,080.68"},{"v":4278644.68,"d":"$4,278,644.68"},{"v":73541.7,"d":"$73,541.70"},{"v":102932.5,"d":"$102,932.50"},{"v":267624.5,"d":"$267,624.50"},{"v":27997.64,"d":"$27,997.64"},{"v":470195.66000000003,"d":"$470,195.66"},{"v":137666.01,"d":"$137,666.01"},{"v":1120729.06,"d":"$1,120,729.06"},{"v":771582.02,"d":"$771,582.02"},{"v":1916283.9254400001,"d":"$1,916,283.93"},{"v":4888553.01544,"d":"$4,888,553.02"},{"v":783835.1,"d":"$783,835.10"},{"v":4104717.91544,"d":"$4,104,717.92"},{"v":4810169.50544,"d":"$4,810,169.51"},{"v":55433.7,"d":"$55,433.70"},{"v":55433.7,"d":"$55,433.70"},{"v":58073.4,"d":"$58,073.40"},{"v":58073.4,"d":"$58,073.40"},{"v":2639.7,"d":"$2,639.70"},{"v":2639.7,"d":"$2,639.70"},{"v":2639.7,"d":"$2,639.70"},{"v":2639.7,"d":"$2,639.70"},{"v":3299.62,"d":"$3,299.62"},{"v":385396.2,"d":"$385,396.20"},{"v":156113.71,"d":"$156,113.71"},{"v":59670.99,"d":"$59,670.99"},{"v":842053.52,"d":"$842,053.52"},{"v":9930867.77,"d":"$9,930,867.77"},{"v":75587.37000000001,"d":"$75,587.37"},{"v":949.56,"d":"$949.56"},{"v":289411.9,"d":"$289,411.90"},{"v":9930867.70544,"d":"$9,930,867.71"}]
["53102122017","METAMORA TWP H S DIST 122",935.83,{"v":12650915.76,"d":"$12,650,915.76"},{"v":8998648.37,"d":"$8,998,648.37"},{"v":0.7113041095769654,"d":"71%"},1,{"v":359764.93,"d":"$359,764.93"},{"v":2503666.2699999996,"d":"$2,503,666.27"},{"v":2863431.1999999997,"d":"$2,863,431.20"},{"v":0.9,"d":"0.90"},{"v":2793540.15,"d":"$2,793,540.15"},{"v":931086.92,"d":"$931,086.92"},{"v":337101.61,"d":"$337,101.61"},{"v":111885.97,"d":"$111,885.97"},{"v":87693.48,"d":"$87,693.48"},{"v":288331.56,"d":"$288,331.56"},{"v":68257.9,"d":"$68,257.90"},{"v":124837.5,"d":"$124,837.50"},{"v":112319.82,"d":"$112,319.82"},{"v":83135.89,"d":"$83,135.89"},{"v":166629.96,"d":"$166,629.96"},{"v":143468.77,"d":"$143,468.77"},{"v":149799.12,"d":"$149,799.12"},{"v":5398088.649999999,"d":"$5,398,088.65"},{"v":84224.7,"d":"$84,224.70"},{"v":116978.75,"d":"$116,978.75"},{"v":304144.75,"d":"$304,144.75"},{"v":31818.22,"d":"$31,818.22"},{"v":534358.93,"d":"$534,358.93"},{"v":803877.9700000001,"d":"$803,877.97"},{"v":1273664.6300000001,"d":"$1,273,664.63"},{"v":876872.7100000001,"d":"$876,872.71"},{"v":2357019.8701199996,"d":"$2,357,019.87"},{"v":6382960.53012,"d":"$6,382,960.53"},{"v":890797.86,"d":"$890,797.86"},{"v":5492162.670119999,"d":"$5,492,162.67"},{"v":6293880.740119999,"d":"$6,293,880.74"},{"v":66652.42,"d":"$66,652.42"},{"v":66652.42,"d":"$66,652.42"},{"v":69952.05,"d":"$69,952.05"},{"v":69952.05,"d":"$69,952.05"},{"v":659.92,"d":"$659.92"},{"v":659.92,"d":"$659.92"},{"v":659.92,"d":"$659.92"},{"v":659.92,"d":"$659.92"},{"v":659.92,"d":"$659.92"},{"v":437530.27,"d":"$437,530.27"},{"v":177231.83,"d":"$177,231.83"},{"v":67675.63,"d":"$67,675.63"},{"v":958946.2699999999,"d":"$958,946.27"},{"v":12650915.76,"d":"$12,650,915.76"},{"v":80101.19,"d":"$80,101.19"},{"v":192.29000000000002,"d":"$192.29"},{"v":234844.01,"d":"$234,844.01"},{"v":12650915.66012,"d":"$12,650,915.66"}]
["53102140026","EUREKA C U DIST 140",1518.04,{"v":19316729.31,"d":"$19,316,729.31"},{"v":15616935.66,"d":"$15,616,935.66"},{"v":0.808466868763095,"d":"81%"},2,{"v":80105.63,"d":"$80,105.63"},{"v":3963476.16,"d":"$3,963,476.16"},{"v":4043581.79,"d":"$4,043,581.79"},{"v":0.9,"d":"0.90"},{"v":4460133.14,"d":"$4,460,133.14"},{"v":1077638.74,"d":"$1,077,638.74"},{"v":497395.56,"d":"$497,395.56"},{"v":201717.91,"d":"$201,717.91"},{"v":146244.72,"d":"$146,244.72"},{"v":344768.76,"d":"$344,768.76"},{"v":110643.86,"d":"$110,643.86"},{"v":186855.28,"d":"$186,855.28"},{"v":224639.64,"d":"$224,639.64"},{"v":134728.27,"d":"$134,728.27"},{"v":333259.92,"d":"$333,259.92"},{"v":286937.55,"d":"$286,937.55"},{"v":224217.53,"d":"$224,217.53"},{"v":8229180.879999999,"d":"$8,229,180.88"},{"v":135821.7,"d":"$135,821.70"},{"v":189755,"d":"$189,755.00"},{"v":493363,"d":"$493,363.00"},{"v":51613.36,"d":"$51,613.36"},{"v":866800.84,"d":"$866,800.84"},{"v":572768.45,"d":"$572,768.45"},{"v":2066052.4400000002,"d":"$2,066,052.44"},{"v":1422403.48,"d":"$1,422,403.48"},{"v":3704224.5585600003,"d":"$3,704,224.56"},{"v":9502802.82856,"d":"$9,502,802.83"},{"v":1444991.91,"d":"$1,444,991.91"},{"v":8057810.91856,"d":"$8,057,810.92"},{"v":9358303.62856,"d":"$9,358,303.63"},{"v":150462.9,"d":"$150,462.90"},{"v":150462.9,"d":"$150,462.90"},{"v":157062.15,"d":"$157,062.15"},{"v":157062.15,"d":"$157,062.15"},{"v":1319.85,"d":"$1,319.85"},{"v":1319.85,"d":"$1,319.85"},{"v":1319.85,"d":"$1,319.85"},{"v":1319.85,"d":"$1,319.85"},{"v":1319.85,"d":"$1,319.85"},{"v":710079.3,"d":"$710,079.30"},{"v":287634.16,"d":"$287,634.16"},{"v":109881.94,"d":"$109,881.94"},{"v":1729244.7499999998,"d":"$1,729,244.75"},{"v":19316729.31,"d":"$19,316,729.31"},{"v":205676.27000000002,"d":"$205,676.27"},{"v":127.56,"d":"$127.56"},{"v":435293.05999999994,"d":"$435,293.06"},{"v":19316729.258559998,"d":"$19,316,729.26"}]
[null,"Vermilion ROE TAOEP",6,{"v":86811.55,"d":"$86,811.55"},{"v":37790.88,"d":"$37,790.88"},{"v":0.43532087608158127,"d":"44%"},1,{"v":11336.31,"d":"$11,336.31"},{"v":29109.730000000003,"d":"$29,109.73"},{"v":40446.04,"d":"$40,446.04"},{"v":0.9,"d":"0.90"},{"v":19489.81,"d":"$19,489.81"},{"v":6495.94,"d":"$6,495.94"},{"v":2165.53,"d":"$2,165.53"},{"v":721.84,"d":"$721.84"},{"v":620.53,"d":"$620.53"},{"v":1541.88,"d":"$1,541.88"},{"v":0,"d":"$0.00"},{"v":801.95,"d":"$801.95"},{"v":724.64,"d":"$724.64"},{"v":534.63,"d":"$534.63"},{"v":1075.03,"d":"$1,075.03"},{"v":925.6,"d":"$925.60"},{"v":962.3,"d":"$962.30"},{"v":36059.68,"d":"$36,059.68"},{"v":540,"d":"$540.00"},{"v":750,"d":"$750.00"},{"v":1950,"d":"$1,950.00"},{"v":204,"d":"$204.00"},{"v":3426,"d":"$3,426.00"},{"v":5154,"d":"$5,154.00"},{"v":8166,"d":"$8,166.00"},{"v":5622,"d":"$5,622.00"},{"v":16522.574999999997,"d":"$16,522.58"},{"v":42334.575,"d":"$42,334.58"},{"v":5711.28,"d":"$5,711.28"},{"v":36623.295,"d":"$36,623.30"},{"v":41763.445,"d":"$41,763.45"},{"v":1319.85,"d":"$1,319.85"},{"v":1319.85,"d":"$1,319.85"},{"v":1319.85,"d":"$1,319.85"},{"v":1319.85,"d":"$1,319.85"},{"v":0,"d":"$0.00"},{"v":0,"d":"$0.00"},{"v":0,"d":"$0.00"},{"v":0,"d":"$0.00"},{"v":0,"d":"$0.00"},{"v":2639.7,"d":"$2,639.70"},{"v":1069.27,"d":"$1,069.27"},{"v":0,"d":"$0.00"},{"v":8988.369999999999,"d":"$8,988.37"},{"v":86811.55,"d":"$86,811.55"},{"v":2419.03,"d":"$2,419.03"},{"v":0,"d":"$0.00"},{"v":1031.99,"d":"$1,031.99"},{"v":86811.495,"d":"$86,811.50"}]
[null,"SAFE SCH-VERMILION ROE",28.99,{"v":415688.25,"d":"$415,688.25"},{"v":284810.32,"d":"$284,810.32"},{"v":0.6851536457910465,"d":"69%"},1,{"v":17259.62,"d":"$17,259.62"},{"v":243241.49999999997,"d":"$243,241.50"},{"v":260501.11999999997,"d":"$260,501.12"},{"v":0.9,"d":"0.90"},{"v":91419.37,"d":"$91,419.37"},{"v":27040.06,"d":"$27,040.06"},{"v":9728.83,"d":"$9,728.83"},{"v":2793.13,"d":"$2,793.13"},{"v":3163.98,"d":"$3,163.98"},{"v":8196.67,"d":"$8,196.67"},{"v":1651.4,"d":"$1,651.40"},{"v":3475.13,"d":"$3,475.13"},{"v":2898.57,"d":"$2,898.57"},{"v":2138.54,"d":"$2,138.54"},{"v":4300.12,"d":"$4,300.12"},{"v":3702.42,"d":"$3,702.42"},{"v":4169.99,"d":"$4,169.99"},{"v":164678.21000000002,"d":"$164,678.21"},{"v":2609.1,"d":"$2,609.10"},{"v":3623.75,"d":"$3,623.75"},{"v":9421.75,"d":"$9,421.75"},{"v":985.6600000000001,"d":"$985.66"},{"v":16553.29,"d":"$16,553.29"},{"v":19418.510000000002,"d":"$19,418.51"},{"v":39455.39,"d":"$39,455.39"},{"v":27163.63,"d":"$27,163.63"},{"v":80222.04635999998,"d":"$80,222.05"},{"v":199453.12636,"d":"$199,453.13"},{"v":27595,"d":"$27,595.00"},{"v":171858.12636000002,"d":"$171,858.13"},{"v":196693.62636000002,"d":"$196,693.63"},{"v":8579.02,"d":"$8,579.02"},{"v":8579.02,"d":"$8,579.02"},{"v":8579.02,"d":"$8,579.02"},{"v":8579.02,"d":"$8,579.02"},{"v":0,"d":"$0.00"},{"v":0,"d":"$0.00"},{"v":0,"d":"$0.00"},{"v":0,"d":"$0.00"},{"v":0,"d":"$0.00"},{"v":13198.5,"d":"$13,198.50"},{"v":5346.36,"d":"$5,346.36"},{"v":1455.39,"d":"$1,455.39"},{"v":54316.33,"d":"$54,316.33"},{"v":415688.25,"d":"$415,688.25"},{"v":26607.1,"d":"$26,607.10"},{"v":0,"d":"$0.00"},{"v":10671.73,"d":"$10,671.73"},{"v":415688.1663600001,"d":"$415,688.17"}]
["54092001026","BISMARCK HENNING C U SCHOOL DIST",796.62,{"v":10645888.65,"d":"$10,645,888.65"},{"v":7375669.68,"d":"$7,375,669.68"},{"v":0.6928186009159507,"d":"69%"},1,{"v":377799.9,"d":"$377,799.90"},{"v":3691583.3600000003,"d":"$3,691,583.36"},{"v":4069383.2600000002,"d":"$4,069,383.26"},{"v":0.9,"d":"0.90"},{"v":2425280.49,"d":"$2,425,280.49"},{"v":591669.99,"d":"$591,669.99"},{"v":260497.9,"d":"$260,497.90"},{"v":105001.53,"d":"$105,001.53"},{"v":82335.17,"d":"$82,335.17"},{"v":183475.71,"d":"$183,475.71"},{"v":57799.03,"d":"$57,799.03"},{"v":97838.38,"d":"$97,838.38"},{"v":116667.68,"d":"$116,667.68"},{"v":70571.95,"d":"$70,571.95"},{"v":173080.15,"d":"$173,080.15"},{"v":149022.4,"d":"$149,022.40"},{"v":117401.45,"d":"$117,401.45"},{"v":4430641.83,"d":"$4,430,641.83"},{"v":71306.1,"d":"$71,306.10"},{"v":99577.5,"d":"$99,577.50"},{"v":258901.5,"d":"$258,901.50"},{"v":27085.08,"d":"$27,085.08"},{"v":454870.02,"d":"$454,870.02"},{"v":311213.03,"d":"$311,213.03"},{"v":1084199.8199999998,"d":"$1,084,199.82"},{"v":746432.9400000001,"d":"$746,432.94"},{"v":2067063.5326799995,"d":"$2,067,063.53"},{"v":5120649.5226799995,"d":"$5,120,649.52"},{"v":758286.64,"d":"$758,286.64"},{"v":4362362.88268,"d":"$4,362,362.88"},{"v":5044820.85268,"d":"$5,044,820.85"},{"v":140564.02,"d":"$140,564.02"},{"v":140564.02,"d":"$140,564.02"},{"v":146503.35,"d":"$146,503.35"},{"v":146503.35,"d":"$146,503.35"},{"v":2639.7,"d":"$2,639.70"},{"v":2639.7,"d":"$2,639.70"},{"v":3299.62,"d":"$3,299.62"},{"v":3299.62,"d":"$3,299.62"},{"v":3959.55,"d":"$3,959.55"},{"v":372197.7,"d":"$372,197.70"},{"v":150767.35,"d":"$150,767.35"},{"v":57487.9,"d":"$57,487.90"},{"v":1170425.88,"d":"$1,170,425.88"},{"v":10645888.65,"d":"$10,645,888.65"},{"v":314795.95999999996,"d":"$314,795.96"},{"v":2025.8200000000002,"d":"$2,025.82"},{"v":321399.14999999997,"d":"$321,399.15"},{"v":10645888.562679999,"d":"$10,645,888.56"}]
["54092002026","WESTVILLE C U SCHOOL DIST 2",1180.3,{"v":16326818.23,"d":"$16,326,818.23"},{"v":11753921.7,"d":"$11,753,921.70"},{"v":0.719915021679028,"d":"72%"},1,{"v":473528.26,"d":"$473,528.26"},{"v":9419471.17,"d":"$9,419,471.17"},{"v":9892999.43,"d":"$9,892,999.43"},{"v":0.9,"d":"0.90"},{"v":3696090.08,"d":"$3,696,090.08"},{"v":891248.67,"d":"$891,248.67"},{"v":385614.68,"d":"$385,614.68"},{"v":156717.26,"d":"$156,717.26"},{"v":128741.58,"d":"$128,741.58"},{"v":266976.86,"d":"$266,976.86"},{"v":86423.31,"d":"$86,423.31"},{"v":144886.35,"d":"$144,886.35"},{"v":174639.2,"d":"$174,639.20"},{"v":104788.65,"d":"$104,788.65"},{"v":259082.71,"d":"$259,082.71"},{"v":223070.8,"d":"$223,070.80"},{"v":173856.79,"d":"$173,856.79"},{"v":6692136.9399999995,"d":"$6,692,136.94"},{"v":105192,"d":"$105,192.00"},{"v":147537.5,"d":"$147,537.50"},{"v":383597.5,"d":"$383,597.50"},{"v":40130.2,"d":"$40,130.20"},{"v":673951.3,"d":"$673,951.30"},{"v":441288.5,"d":"$441,288.50"},{"v":1606388.2999999998,"d":"$1,606,388.30"},{"v":1105941.1,"d":"$1,105,941.10"},{"v":3204388.5551999994,"d":"$3,204,388.56"},{"v":7708414.9552,"d":"$7,708,414.96"},{"v":1123503.96,"d":"$1,123,503.96"},{"v":6584910.995199999,"d":"$6,584,911.00"},{"v":7596064.555199999,"d":"$7,596,064.56"},{"v":286407.45,"d":"$286,407.45"},{"v":286407.45,"d":"$286,407.45"},{"v":298286.1,"d":"$298,286.10"},{"v":298286.1,"d":"$298,286.10"},{"v":1319.85,"d":"$1,319.85"},{"v":1319.85,"d":"$1,319.85"},{"v":1319.85,"d":"$1,319.85"},{"v":1319.85,"d":"$1,319.85"},{"v":1979.77,"d":"$1,979.77"},{"v":552357.22,"d":"$552,357.22"},{"v":223745.16,"d":"$223,745.16"},{"v":85868.01,"d":"$85,868.01"},{"v":2038616.6600000004,"d":"$2,038,616.66"},{"v":16326818.23,"d":"$16,326,818.23"},{"v":1059026.59,"d":"$1,059,026.59"},{"v":284.11,"d":"$284.11"},{"v":660604.01,"d":"$660,604.01"},{"v":16326818.155199999,"d":"$16,326,818.16"}]
["54092004026","GEORGETOWN-RIDGE FARM C U D 4",856.96,{"v":12245678.99,"d":"$12,245,678.99"},{"v":9300145.69,"d":"$9,300,145.69"},{"v":0.7594634562603375,"d":"76%"},1,{"v":168766.82,"d":"$168,766.82"},{"v":6364307.5,"d":"$6,364,307.50"},{"v":6533074.32,"d":"$6,533,074.32"},{"v":0.9,"d":"0.90"},{"v":2765101.88,"d":"$2,765,101.88"},{"v":667620.7,"d":"$667,620.70"},{"v":280236.15,"d":"$280,236.15"},{"v":113254.54,"d":"$113,254.54"},{"v":98006.94,"d":"$98,006.94"},{"v":193134.22,"d":"$193,134.22"},{"v":62202.77,"d":"$62,202.77"},{"v":105323.29,"d":"$105,323.29"},{"v":126088.05,"d":"$126,088.05"},{"v":75918.31,"d":"$75,918.31"},{"v":187055.56,"d":"$187,055.56"},{"v":161055.27,"d":"$161,055.27"},{"v":126382.98,"d":"$126,382.98"},{"v":4961380.659999999,"d":"$4,961,380.66"},{"v":76338.9,"d":"$76,338.90"},{"v":107120,"d":"$107,120.00"},{"v":278512,"d":"$278,512.00"},{"v":29136.639999999996,"d":"$29,136.64"},{"v":489324.16000000003,"d":"$489,324.16"},{"v":322741.02999999997,"d":"$322,741.03"},{"v":1166322.5599999998,"d":"$1,166,322.56"},{"v":802971.52,"d":"$802,971.52"},{"v":2422732.0814400003,"d":"$2,422,732.08"},{"v":5695198.89144,"d":"$5,695,198.89"},{"v":815723.08,"d":"$815,723.08"},{"v":4879475.81144,"d":"$4,879,475.81"},{"v":5613626.58144,"d":"$5,613,626.58"},{"v":255390.97,"d":"$255,390.97"},{"v":255390.97,"d":"$255,390.97"},{"v":265949.77,"d":"$265,949.77"},{"v":265949.77,"d":"$265,949.77"},{"v":659.92,"d":"$659.92"},{"v":659.92,"d":"$659.92"},{"v":659.92,"d":"$659.92"},{"v":659.92,"d":"$659.92"},{"v":659.92,"d":"$659.92"},{"v":400574.47,"d":"$400,574.47"},{"v":162262.02,"d":"$162,262.02"},{"v":61854.07,"d":"$61,854.07"},{"v":1670671.6400000004,"d":"$1,670,671.64"},{"v":12245678.99,"d":"$12,245,678.99"},{"v":1066742.56,"d":"$1,066,742.56"},{"v":1297.44,"d":"$1,297.44"},{"v":429562.45999999996,"d":"$429,562.46"},{"v":12245678.881439999,"d":"$12,245,678.88"}]
["54092007026","ROSSVILLE-ALVIN CU SCH DIST 7",349.87,{"v":4867014.79,"d":"$4,867,014.79"},{"v":4115062.73,"d":"$4,115,062.73"},{"v":0.8455003544380024,"d":"85%"},2,{"v":15497.39,"d":"$15,497.39"},{"v":1918350.1500000001,"d":"$1,918,350.15"},{"v":1933847.54,"d":"$1,933,847.54"},{"v":0.9,"d":"0.90"},{"v":1107413.73,"d":"$1,107,413.73"},{"v":266033.5,"d":"$266,033.50"},{"v":113380.92,"d":"$113,380.92"},{"v":45534,"d":"$45,534.00"},{"v":38608.29,"d":"$38,608.29"},{"v":78279.17,"d":"$78,279.17"},{"v":24771.01,"d":"$24,771.01"},{"v":42503.56,"d":"$42,503.56"},{"v":50725.08,"d":"$50,725.08"},{"v":30741.57,"d":"$30,741.57"},{"v":75252.24,"d":"$75,252.24"},{"v":64792.35,"d":"$64,792.35"},{"v":51002.27,"d":"$51,002.27"},{"v":1989037.6900000002,"d":"$1,989,037.69"},{"v":31285.8,"d":"$31,285.80"},{"v":43733.75,"d":"$43,733.75"},{"v":113707.75,"d":"$113,707.75"},{"v":11895.58,"d":"$11,895.58"},{"v":199775.77,"d":"$199,775.77"},{"v":129765.35999999999,"d":"$129,765.36"},{"v":476173.06999999995,"d":"$476,173.07"},{"v":327828.18999999994,"d":"$327,828.19"},{"v":956818.8706799998,"d":"$956,818.87"},{"v":2290984.1406799997,"d":"$2,290,984.14"},{"v":333034.25,"d":"$333,034.25"},{"v":1957949.8906799993,"d":"$1,957,949.89"},{"v":2257680.710679999,"d":"$2,257,680.71"},{"v":89749.8,"d":"$89,749.80"},{"v":89749.8,"d":"$89,749.80"},{"v":93049.42,"d":"$93,049.42"},{"v":93049.42,"d":"$93,049.42"},{"v":0,"d":"$0.00"},{"v":0,"d":"$0.00"},{"v":0,"d":"$0.00"},{"v":0,"d":"$0.00"},{"v":0,"d":"$0.00"},{"v":163661.4,"d":"$163,661.40"},{"v":66294.86,"d":"$66,294.86"},{"v":24741.63,"d":"$24,741.63"},{"v":620296.33,"d":"$620,296.33"},{"v":4867014.79,"d":"$4,867,014.79"},{"v":185443.28,"d":"$185,443.28"},{"v":0,"d":"$0.00"},{"v":117908.62000000001,"d":"$117,908.62"},{"v":4867014.730679999,"d":"$4,867,014.73"}]
["54092010026","POTOMAC C U SCH DIST 10",195.97,{"v":2613111.57,"d":"$2,613,111.57"},{"v":2382357.2,"d":"$2,382,357.20"},{"v":0.9116936403905633,"d":"91%"},3,{"v":2969.56,"d":"$2,969.56"},{"v":1031635.05,"d":"$1,031,635.05"},{"v":1034604.6100000001,"d":"$1,034,604.61"},{"v":0.9,"d":"0.90"},{"v":598098.16,"d":"$598,098.16"},{"v":145888.21,"d":"$145,888.21"},{"v":63798.59,"d":"$63,798.59"},{"v":25418.76,"d":"$25,418.76"},{"v":20237.9,"d":"$20,237.90"},{"v":44299.78,"d":"$44,299.78"},{"v":13761.67,"d":"$13,761.67"},{"v":23791.3,"d":"$23,791.30"},{"v":28261.11,"d":"$28,261.11"},{"v":16841.03,"d":"$16,841.03"},{"v":41926.24,"d":"$41,926.24"},{"v":36098.59,"d":"$36,098.59"},{"v":28548.44,"d":"$28,548.44"},{"v":1086969.78,"d":"$1,086,969.78"},{"v":17457.3,"d":"$17,457.30"},{"v":24496.25,"d":"$24,496.25"},{"v":63690.25,"d":"$63,690.25"},{"v":6662.98,"d":"$6,662.98"},{"v":111898.87,"d":"$111,898.87"},{"v":76086.07,"d":"$76,086.07"},{"v":266715.17000000004,"d":"$266,715.17"},{"v":183623.88999999998,"d":"$183,623.89"},{"v":507195.70307999995,"d":"$507,195.70"},{"v":1257826.48308,"d":"$1,257,826.48"},{"v":186539.92,"d":"$186,539.92"},{"v":1071286.56308,"d":"$1,071,286.56"},{"v":1239172.48308,"d":"$1,239,172.48"},{"v":35635.95,"d":"$35,635.95"},{"v":35635.95,"d":"$35,635.95"},{"v":36955.8,"d":"$36,955.80"},{"v":36955.8,"d":"$36,955.80"},{"v":0,"d":"$0.00"},{"v":0,"d":"$0.00"},{"v":0,"d":"$0.00"},{"v":0,"d":"$0.00"},{"v":0,"d":"$0.00"},{"v":91069.65,"d":"$91,069.65"},{"v":36889.88,"d":"$36,889.88"},{"v":13826.2,"d":"$13,826.20"},{"v":286969.23,"d":"$286,969.23"},{"v":2613111.57,"d":"$2,613,111.57"},{"v":71417.7,"d":"$71,417.70"},{"v":0,"d":"$0.00"},{"v":47055.45,"d":"$47,055.45"},{"v":2613111.49308,"d":"$2,613,111.49"}]
["54092011026","HOOPESTON AREA C U SCH DIST 11",1092,{"v":15578088.84,"d":"$15,578,088.84"},{"v":12579718.59,"d":"$12,579,718.59"},{"v":0.8075264378836345,"d":"81%"},2,{"v":105688.07,"d":"$105,688.07"},{"v":7646068.09,"d":"$7,646,068.09"},{"v":7751756.16,"d":"$7,751,756.16"},{"v":0.9,"d":"0.90"},{"v":3531837.32,"d":"$3,531,837.32"},{"v":848968.37,"d":"$848,968.37"},{"v":357402.78,"d":"$357,402.78"},{"v":145043.52,"d":"$145,043.52"},{"v":124812.42,"d":"$124,812.42"},{"v":243616.03,"d":"$243,616.03"},{"v":79817.71,"d":"$79,817.71"},{"v":134460.95,"d":"$134,460.95"},{"v":161595.61,"d":"$161,595.61"},{"v":97036.43,"d":"$97,036.43"},{"v":239732.13,"d":"$239,732.13"},{"v":206409.91,"d":"$206,409.91"},{"v":161346.8,"d":"$161,346.80"},{"v":6332079.9799999995,"d":"$6,332,079.98"},{"v":97380,"d":"$97,380.00"},{"v":136500,"d":"$136,500.00"},{"v":354900,"d":"$354,900.00"},{"v":37128,"d":"$37,128.00"},{"v":623532,"d":"$623,532.00"},{"v":404418,"d":"$404,418.00"},{"v":1486212,"d":"$1,486,212.00"},{"v":1023204,"d":"$1,023,204.00"},{"v":3082363.8450000007,"d":"$3,082,363.85"},{"v":7245637.845000001,"d":"$7,245,637.85"},{"v":1039452.96,"d":"$1,039,452.96"},{"v":6206184.885000001,"d":"$6,206,184.89"},{"v":7141692.545000001,"d":"$7,141,692.55"},{"v":312804.45,"d":"$312,804.45"},{"v":312804.45,"d":"$312,804.45"},{"v":325343.02,"d":"$325,343.02"},{"v":325343.02,"d":"$325,343.02"},{"v":5939.32,"d":"$5,939.32"},{"v":5939.32,"d":"$5,939.32"},{"v":5939.32,"d":"$5,939.32"},{"v":5939.32,"d":"$5,939.32"},{"v":7259.17,"d":"$7,259.17"},{"v":510781.95,"d":"$510,781.95"},{"v":206904.13,"d":"$206,904.13"},{"v":79318.75,"d":"$79,318.75"},{"v":2104316.22,"d":"$2,104,316.22"},{"v":15578088.84,"d":"$15,578,088.84"},{"v":1496347.7700000003,"d":"$1,496,347.77"},{"v":860.8499999999999,"d":"$860.85"},{"v":526377.75,"d":"$526,377.75"},{"v":15578088.745000001,"d":"$15,578,088.75"}]
["54092061003","ARMSTRONG-ELLIS CONS SCH DIST 61",85.25,{"v":1055490.19,"d":"$1,055,490.19"},{"v":1296850.9100000001,"d":"$1,296,850.91"},{"v":1.2286716847647823,"d":"123%"},4,{"v":67.23,"d":"$67.23"},{"v":90318.3,"d":"$90,318.30"},{"v":90385.53,"d":"$90,385.53"},{"v":0.9,"d":"0.90"},{"v":256059.57,"d":"$256,059.57"},{"v":51211.9,"d":"$51,211.90"},{"v":26359.07,"d":"$26,359.07"},{"v":11296.74,"d":"$11,296.74"},{"v":8658.37,"d":"$8,658.37"},{"v":15556.87,"d":"$15,556.87"},{"v":6055.13,"d":"$6,055.13"},{"v":9890.76,"d":"$9,890.76"},{"v":13043.59,"d":"$13,043.59"},{"v":7217.58,"d":"$7,217.58"},{"v":19350.57,"d":"$19,350.57"},{"v":16660.89,"d":"$16,660.89"},{"v":11868.45,"d":"$11,868.45"},{"v":453229.4900000001,"d":"$453,229.49"},{"v":7650,"d":"$7,650.00"},{"v":10656.25,"d":"$10,656.25"},{"v":27706.25,"d":"$27,706.25"},{"v":2898.5,"d":"$2,898.50"},{"v":24338.870000000003,"d":"$24,338.87"},{"v":14593,"d":"$14,593.00"},{"v":116025.25,"d":"$116,025.25"},{"v":79879.25,"d":"$79,879.25"},{"v":211058.055,"d":"$211,058.06"},{"v":494805.425,"d":"$494,805.43"},{"v":81147.77,"d":"$81,147.77"},{"v":413657.65499999997,"d":"$413,657.66"},{"v":486690.64499999996,"d":"$486,690.65"},{"v":13198.5,"d":"$13,198.50"},{"v":13198.5,"d":"$13,198.50"},{"v":13858.42,"d":"$13,858.42"},{"v":13858.42,"d":"$13,858.42"},{"v":0,"d":"$0.00"},{"v":0,"d":"$0.00"},{"v":0,"d":"$0.00"},{"v":0,"d":"$0.00"},{"v":0,"d":"$0.00"},{"v":39595.5,"d":"$39,595.50"},{"v":16039.08,"d":"$16,039.08"},{"v":5821.56,"d":"$5,821.56"},{"v":115569.98,"d":"$115,569.98"},{"v":1055490.19,"d":"$1,055,490.19"},{"v":37781.52999999999,"d":"$37,781.53"},{"v":0,"d":"$0.00"},{"v":27184.219999999998,"d":"$27,184.22"},{"v":1055490.115,"d":"$1,055,490.12"}]
["54092076026","OAKWOOD COMM UNIT DIST #76",868.71,{"v":11704687.6,"d":"$11,704,687.60"},{"v":9342776.969999999,"d":"$9,342,776.97"},{"v":0.798208144401906,"d":"80%"},2,{"v":77666.78,"d":"$77,666.78"},{"v":4678583.000000001,"d":"$4,678,583.00"},{"v":4756249.780000001,"d":"$4,756,249.78"},{"v":0.9,"d":"0.90"},{"v":2668651.29,"d":"$2,668,651.29"},{"v":658145.22,"d":"$658,145.22"},{"v":285698.2,"d":"$285,698.20"},{"v":114447.62,"d":"$114,447.62"},{"v":90586.07,"d":"$90,586.07"},{"v":201898.22,"d":"$201,898.22"},{"v":63303.7,"d":"$63,303.70"},{"v":107194.51,"d":"$107,194.51"},{"v":126812.7,"d":"$126,812.70"},{"v":76987.58,"d":"$76,987.58"},{"v":188130.6,"d":"$188,130.60"},{"v":161980.87,"d":"$161,980.87"},{"v":128628.36,"d":"$128,628.36"},{"v":4872464.94,"d":"$4,872,464.94"},{"v":77846.4,"d":"$77,846.40"},{"v":108588.75,"d":"$108,588.75"},{"v":282330.75,"d":"$282,330.75"},{"v":29536.14,"d":"$29,536.14"},{"v":496033.41,"d":"$496,033.41"},{"v":352053.05999999994,"d":"$352,053.06"},{"v":1182314.31,"d":"$1,182,314.31"},{"v":813981.2699999999,"d":"$813,981.27"},{"v":2274581.27844,"d":"$2,274,581.28"},{"v":5617265.36844,"d":"$5,617,265.37"},{"v":826907.67,"d":"$826,907.67"},{"v":4790357.69844,"d":"$4,790,357.70"},{"v":5534574.598440001,"d":"$5,534,574.60"},{"v":162341.55,"d":"$162,341.55"},{"v":162341.55,"d":"$162,341.55"},{"v":169600.72,"d":"$169,600.72"},{"v":169600.72,"d":"$169,600.72"},{"v":0,"d":"$0.00"},{"v":0,"d":"$0.00"},{"v":0,"d":"$0.00"},{"v":0,"d":"$0.00"},{"v":0,"d":"$0.00"},{"v":406513.8,"d":"$406,513.80"},{"v":164667.88,"d":"$164,667.88"},{"v":62581.77,"d":"$62,581.77"},{"v":1297647.9899999998,"d":"$1,297,647.99"},{"v":11704687.6,"d":"$11,704,687.60"},{"v":406102.6100000001,"d":"$406,102.61"},{"v":66.37,"d":"$66.37"},{"v":360671.1600000001,"d":"$360,671.16"},{"v":11704687.52844,"d":"$11,704,687.53"}]
["54092118024","DANVILLE C C SCHOOL DIST 118",4689.3,{"v":70929696.09,"d":"$70,929,696.09"},{"v":61790787.98,"d":"$61,790,787.98"},{"v":0.8711554029724871,"d":"87%"},2,{"v":156377,"d":"$156,377.00"},{"v":39278402.37,"d":"$39,278,402.37"},{"v":39434779.37,"d":"$39,434,779.37"},{"v":0.9,"d":"0.90"},{"v":15857325.83,"d":"$15,857,325.83"},{"v":3746679.91,"d":"$3,746,679.91"},{"v":1529836.01,"d":"$1,529,836.01"},{"v":629188.76,"d":"$629,188.76"},{"v":584493.86,"d":"$584,493.86"},{"v":1033826,"d":"$1,033,826.00"},{"v":343491.4,"d":"$343,491.40"},{"v":575268.33,"d":"$575,268.33"},{"v":703629.32,"d":"$703,629.32"},{"v":417283.39,"d":"$417,283.39"},{"v":1043856.07,"d":"$1,043,856.07"},{"v":898762.45,"d":"$898,762.45"},{"v":690294.88,"d":"$690,294.88"},{"v":28053936.21,"d":"$28,053,936.21"},{"v":418587.30000000005,"d":"$418,587.30"},{"v":586162.5,"d":"$586,162.50"},{"v":1524022.5,"d":"$1,524,022.50"},{"v":159436.2,"d":"$159,436.20"},{"v":2677590.3,"d":"$2,677,590.30"},{"v":1642030.4500000002,"d":"$1,642,030.45"},{"v":6382137.3,"d":"$6,382,137.30"},{"v":4393874.100000001,"d":"$4,393,874.10"},{"v":14256253.1142,"d":"$14,256,253.11"},{"v":32040093.764200002,"d":"$32,040,093.76"},{"v":4463650.88,"d":"$4,463,650.88"},{"v":27576442.884200003,"d":"$27,576,442.88"},{"v":31593728.674200002,"d":"$31,593,728.67"},{"v":1812813.97,"d":"$1,812,813.97"},{"v":1812813.97,"d":"$1,812,813.97"},{"v":1888045.42,"d":"$1,888,045.42"},{"v":1888045.42,"d":"$1,888,045.42"},{"v":85790.25,"d":"$85,790.25"},{"v":85790.25,"d":"$85,790.25"},{"v":89089.87,"d":"$89,089.87"},{"v":89089.87,"d":"$89,089.87"},{"v":106907.85,"d":"$106,907.85"},{"v":2194250.62,"d":"$2,194,250.62"},{"v":888832.35,"d":"$888,832.35"},{"v":340561.26,"d":"$340,561.26"},{"v":11282031.099999998,"d":"$11,282,031.10"},{"v":70929696.09,"d":"$70,929,696.09"},{"v":12145635.549999999,"d":"$12,145,635.55"},{"v":102137.15,"d":"$102,137.15"},{"v":2279892.66,"d":"$2,279,892.66"},{"v":70929695.9842,"d":"$70,929,695.98"}]
["54092225017","ARMSTRONG TWP HS DIST 225",74.5,{"v":1013087.23,"d":"$1,013,087.23"},{"v":1971941.9200000002,"d":"$1,971,941.92"},{"v":1.9464680450073388,"d":"195%"},4,{"v":64.53,"d":"$64.53"},{"v":49744.80999999999,"d":"$49,744.81"},{"v":49809.33999999999,"d":"$49,809.34"},{"v":0.9,"d":"0.90"},{"v":228103.02,"d":"$228,103.02"},{"v":76026.73,"d":"$76,026.73"},{"v":26708.26,"d":"$26,708.26"},{"v":8662.14,"d":"$8,662.14"},{"v":7306.97,"d":"$7,306.97"},{"v":22357.26,"d":"$22,357.26"},{"v":4954.2,"d":"$4,954.20"},{"v":9890.76,"d":"$9,890.76"},{"v":8695.72,"d":"$8,695.72"},{"v":6415.63,"d":"$6,415.63"},{"v":12900.38,"d":"$12,900.38"},{"v":11107.26,"d":"$11,107.26"},{"v":11868.45,"d":"$11,868.45"},{"v":434996.78,"d":"$434,996.78"},{"v":6705,"d":"$6,705.00"},{"v":9312.5,"d":"$9,312.50"},{"v":24212.5,"d":"$24,212.50"},{"v":2533,"d":"$2,533.00"},{"v":21269.75,"d":"$21,269.75"},{"v":63995.5,"d":"$63,995.50"},{"v":101394.5,"d":"$101,394.50"},{"v":69806.5,"d":"$69,806.50"},{"v":194366.517,"d":"$194,366.52"},{"v":493595.767,"d":"$493,595.77"},{"v":70915.06,"d":"$70,915.06"},{"v":422680.707,"d":"$422,680.71"},{"v":486504.257,"d":"$486,504.26"},{"v":9238.95,"d":"$9,238.95"},{"v":9238.95,"d":"$9,238.95"},{"v":9898.87,"d":"$9,898.87"},{"v":9898.87,"d":"$9,898.87"},{"v":0,"d":"$0.00"},{"v":0,"d":"$0.00"},{"v":0,"d":"$0.00"},{"v":0,"d":"$0.00"},{"v":0,"d":"$0.00"},{"v":34316.1,"d":"$34,316.10"},{"v":13900.53,"d":"$13,900.53"},{"v":5093.86,"d":"$5,093.86"},{"v":91586.13,"d":"$91,586.13"},{"v":1013087.23,"d":"$1,013,087.23"},{"v":7266.16,"d":"$7,266.16"},{"v":0,"d":"$0.00"},{"v":26834.43,"d":"$26,834.43"},{"v":1013087.167,"d":"$1,013,087.17"}]
["54092512026","SALT FORK CUD 512",823.2,{"v":10780760.17,"d":"$10,780,760.17"},{"v":8650952.540000001,"d":"$8,650,952.54"},{"v":0.8024436499453267,"d":"80%"},2,{"v":52119.9,"d":"$52,119.90"},{"v":2787716.97,"d":"$2,787,716.97"},{"v":2839836.87,"d":"$2,839,836.87"},{"v":0.9,"d":"0.90"},{"v":2479341.57,"d":"$2,479,341.57"},{"v":596805.12,"d":"$596,805.12"},{"v":268813.02,"d":"$268,813.02"},{"v":109206.21,"d":"$109,206.21"},{"v":82993.41,"d":"$82,993.41"},{"v":183679.32,"d":"$183,679.32"},{"v":59450.43,"d":"$59,450.43"},{"v":101046.2,"d":"$101,046.20"},{"v":121740.19,"d":"$121,740.19"},{"v":72977.81,"d":"$72,977.81"},{"v":180605.37,"d":"$180,605.37"},{"v":155501.64,"d":"$155,501.64"},{"v":121250.68,"d":"$121,250.68"},{"v":4533410.97,"d":"$4,533,410.97"},{"v":73360.8,"d":"$73,360.80"},{"v":102900,"d":"$102,900.00"},{"v":267540,"d":"$267,540.00"},{"v":27988.799999999996,"d":"$27,988.80"},{"v":470047.19999999995,"d":"$470,047.20"},{"v":304546.48,"d":"$304,546.48"},{"v":1120375.2,"d":"$1,120,375.20"},{"v":771338.4,"d":"$771,338.40"},{"v":2085814.3728000002,"d":"$2,085,814.37"},{"v":5223911.2528,"d":"$5,223,911.25"},{"v":783587.61,"d":"$783,587.61"},{"v":4440323.6428,"d":"$4,440,323.64"},{"v":5145552.482799999,"d":"$5,145,552.48"},{"v":122746.05,"d":"$122,746.05"},{"v":122746.05,"d":"$122,746.05"},{"v":128025.45,"d":"$128,025.45"},{"v":128025.45,"d":"$128,025.45"},{"v":0,"d":"$0.00"},{"v":0,"d":"$0.00"},{"v":0,"d":"$0.00"},{"v":0,"d":"$0.00"},{"v":0,"d":"$0.00"},{"v":384736.27,"d":"$384,736.27"},{"v":155846.39,"d":"$155,846.39"},{"v":59670.99,"d":"$59,670.99"},{"v":1101796.6500000001,"d":"$1,101,796.65"},{"v":10780760.17,"d":"$10,780,760.17"},{"v":237865.08000000002,"d":"$237,865.08"},{"v":0,"d":"$0.00"},{"v":259916.81000000003,"d":"$259,916.81"},{"v":10780760.102799999,"d":"$10,780,760.10"}]
[null,"ALT SCH-WILL ROE",44.63999999999999,{"v":689716.66,"d":"$689,716.66"},{"v":581966.7,"d":"$581,966.70"},{"v":0.8437764864198002,"d":"84%"},2,{"v":3129.81,"d":"$3,129.81"},{"v":512995.04,"d":"$512,995.04"},{"v":516124.85,"d":"$516,124.85"},{"v":1.05749,"d":"1.06"},{"v":162476.7,"d":"$162,476.70"},{"v":53072.2,"d":"$53,072.20"},{"v":17700.61,"d":"$17,700.61"},{"v":5088.95,"d":"$5,088.95"},{"v":5337.44,"d":"$5,337.44"},{"v":15288.28,"d":"$15,288.28"},{"v":3233.96,"d":"$3,233.96"},{"v":6596,"d":"$6,596.00"},{"v":5108.69,"d":"$5,108.69"},{"v":4083.24,"d":"$4,083.24"},{"v":7578.9,"d":"$7,578.90"},{"v":6525.45,"d":"$6,525.45"},{"v":7914.9,"d":"$7,914.90"},{"v":300005.32000000007,"d":"$300,005.32"},{"v":4017.5999999999995,"d":"$4,017.60"},{"v":5579.999999999999,"d":"$5,580.00"},{"v":14507.999999999998,"d":"$14,508.00"},{"v":1517.7599999999998,"d":"$1,517.76"},{"v":25489.440000000002,"d":"$25,489.44"},{"v":36729.259999999995,"d":"$36,729.26"},{"v":60755.03999999999,"d":"$60,755.04"},{"v":41827.68,"d":"$41,827.68"},{"v":118552.55495999998,"d":"$118,552.55"},{"v":308977.33495999995,"d":"$308,977.33"},{"v":42491.92,"d":"$42,491.92"},{"v":266485.41495999997,"d":"$266,485.41"},{"v":311420.19496,"d":"$311,420.19"},{"v":9304.85,"d":"$9,304.85"},{"v":9304.85,"d":"$9,304.85"},{"v":9304.85,"d":"$9,304.85"},{"v":9304.85,"d":"$9,304.85"},{"v":775.4,"d":"$775.40"},{"v":775.4,"d":"$775.40"},{"v":775.4,"d":"$775.40"},{"v":775.4,"d":"$775.40"},{"v":775.4,"d":"$775.40"},{"v":24037.54,"d":"$24,037.54"},{"v":9736.96,"d":"$9,736.96"},{"v":3420.13,"d":"$3,420.13"},{"v":78291.03000000001,"d":"$78,291.03"},{"v":689716.66,"d":"$689,716.66"},{"v":14531.4,"d":"$14,531.40"},{"v":1164.21,"d":"$1,164.21"},{"v":9777.42,"d":"$9,777.42"},{"v":689716.5449600001,"d":"$689,716.54"}]
[null,"SAFE SCH-WILL ROE",53,{"v":791336.86,"d":"$791,336.86"},{"v":622147.6299999999,"d":"$622,147.63"},{"v":0.7861982190492174,"d":"79%"},2,{"v":7268.43,"d":"$7,268.43"},{"v":543013.9500000001,"d":"$543,013.95"},{"v":550282.3800000001,"d":"$550,282.38"},{"v":1.05749,"d":"1.06"},{"v":187584.18,"d":"$187,584.18"},{"v":56623.92,"d":"$56,623.92"},{"v":21276.97,"d":"$21,276.97"},{"v":7301.21,"d":"$7,301.21"},{"v":6294.29,"d":"$6,294.29"},{"v":17561.41,"d":"$17,561.41"},{"v":3880.75,"d":"$3,880.75"},{"v":7852.39,"d":"$7,852.39"},{"v":7663.03,"d":"$7,663.03"},{"v":5339.62,"d":"$5,339.62"},{"v":11368.35,"d":"$11,368.35"},{"v":9788.18,"d":"$9,788.18"},{"v":9422.5,"d":"$9,422.50"},{"v":351956.79999999993,"d":"$351,956.80"},{"v":4770,"d":"$4,770.00"},{"v":6625,"d":"$6,625.00"},{"v":17225,"d":"$17,225.00"},{"v":1802,"d":"$1,802.00"},{"v":15131.5,"d":"$15,131.50"},{"v":36987,"d":"$36,987.00"},{"v":72133,"d":"$72,133.00"},{"v":49661,"d":"$49,661.00"},{"v":139483.39500000002,"d":"$139,483.40"},{"v":343817.895,"d":"$343,817.90"},{"v":50449.64,"d":"$50,449.64"},{"v":293368.255,"d":"$293,368.26"},{"v":346718.235,"d":"$346,718.24"},{"v":10855.66,"d":"$10,855.66"},{"v":10855.66,"d":"$10,855.66"},{"v":10855.66,"d":"$10,855.66"},{"v":10855.66,"d":"$10,855.66"},{"v":775.4,"d":"$775.40"},{"v":775.4,"d":"$775.40"},{"v":775.4,"d":"$775.40"},{"v":775.4,"d":"$775.40"},{"v":1550.8,"d":"$1,550.80"},{"v":28689.96,"d":"$28,689.96"},{"v":11621.54,"d":"$11,621.54"},{"v":4275.16,"d":"$4,275.16"},{"v":92661.70000000001,"d":"$92,661.70"},{"v":791336.86,"d":"$791,336.86"},{"v":907.9300000000001,"d":"$907.93"},{"v":56.06,"d":"$56.06"},{"v":646.65,"d":"$646.65"},{"v":791336.7349999999,"d":"$791,336.74"}]
[null,"ALOP-WILL ROE",18,{"v":286362.26,"d":"$286,362.26"},{"v":137512.27000000002,"d":"$137,512.27"},{"v":0.48020388580534323,"d":"48%"},1,{"v":32812.72,"d":"$32,812.72"},{"v":108876.05000000002,"d":"$108,876.05"},{"v":141688.77000000002,"d":"$141,688.77"},{"v":1.05749,"d":"1.06"},{"v":66156.46,"d":"$66,156.46"},{"v":22049.94,"d":"$22,049.94"},{"v":7633.43,"d":"$7,633.43"},{"v":2544.47,"d":"$2,544.47"},{"v":2201.77,"d":"$2,201.77"},{"v":6340.92,"d":"$6,340.92"},{"v":1293.58,"d":"$1,293.58"},{"v":2826.86,"d":"$2,826.86"},{"v":2554.34,"d":"$2,554.34"},{"v":1884.57,"d":"$1,884.57"},{"v":3789.45,"d":"$3,789.45"},{"v":3262.72,"d":"$3,262.72"},{"v":3392.1,"d":"$3,392.10"},{"v":125930.61000000003,"d":"$125,930.61"},{"v":1620,"d":"$1,620.00"},{"v":2250,"d":"$2,250.00"},{"v":5850,"d":"$5,850.00"},{"v":612,"d":"$612.00"},{"v":10278,"d":"$10,278.00"},{"v":15462,"d":"$15,462.00"},{"v":24498,"d":"$24,498.00"},{"v":16866,"d":"$16,866.00"},{"v":49471.81799999999,"d":"$49,471.82"},{"v":126907.818,"d":"$126,907.82"},{"v":17133.84,"d":"$17,133.84"},{"v":109773.978,"d":"$109,773.98"},{"v":127892.838,"d":"$127,892.84"},{"v":3101.61,"d":"$3,101.61"},{"v":3101.61,"d":"$3,101.61"},{"v":3877.02,"d":"$3,877.02"},{"v":3877.02,"d":"$3,877.02"},{"v":775.4,"d":"$775.40"},{"v":775.4,"d":"$775.40"},{"v":775.4,"d":"$775.40"},{"v":775.4,"d":"$775.40"},{"v":1550.8,"d":"$1,550.80"},{"v":9304.85,"d":"$9,304.85"},{"v":3769.14,"d":"$3,769.14"},{"v":855.03,"d":"$855.03"},{"v":32538.68,"d":"$32,538.68"},{"v":286362.26,"d":"$286,362.26"},{"v":3427.1499999999996,"d":"$3,427.15"},{"v":689.06,"d":"$689.06"},{"v":2337.53,"d":"$2,337.53"},{"v":286362.128,"d":"$286,362.13"}]
["56099017002","CHANNAHON SCHOOL DISTRICT 17",1186.21,{"v":15538589.79,"d":"$15,538,589.79"},{"v":20973860.91,"d":"$20,973,860.91"},{"v":1.3497917889239808,"d":"135%"},4,{"v":989.78,"d":"$989.78"},{"v":560669.11,"d":"$560,669.11"},{"v":561658.89,"d":"$561,658.89"},{"v":1.05749,"d":"1.06"},{"v":3974691.11,"d":"$3,974,691.11"},{"v":794938.22,"d":"$794,938.22"},{"v":436552.34,"d":"$436,552.34"},{"v":193941.32,"d":"$193,941.32"},{"v":131804.84,"d":"$131,804.84"},{"v":270213.65,"d":"$270,213.65"},{"v":101546.43,"d":"$101,546.43"},{"v":165214.32,"d":"$165,214.32"},{"v":223930.99,"d":"$223,930.99"},{"v":123753.69,"d":"$123,753.69"},{"v":332208.62,"d":"$332,208.62"},{"v":286032.38,"d":"$286,032.38"},{"v":198249.4,"d":"$198,249.40"},{"v":7233077.310000001,"d":"$7,233,077.31"},{"v":105529.5,"d":"$105,529.50"},{"v":148276.25,"d":"$148,276.25"},{"v":385518.25,"d":"$385,518.25"},{"v":40331.14,"d":"$40,331.14"},{"v":338662.95,"d":"$338,662.95"},{"v":200300.43,"d":"$200,300.43"},{"v":1614431.81,"d":"$1,614,431.81"},{"v":1111478.77,"d":"$1,111,478.77"},{"v":2782647.11244,"d":"$2,782,647.11"},{"v":6727176.21244,"d":"$6,727,176.21"},{"v":1129129.57,"d":"$1,129,129.57"},{"v":5598046.642439999,"d":"$5,598,046.64"},{"v":6792089.862439998,"d":"$6,792,089.86"},{"v":103904.2,"d":"$103,904.20"},{"v":103904.2,"d":"$103,904.20"},{"v":108556.63,"d":"$108,556.63"},{"v":108556.63,"d":"$108,556.63"},{"v":13181.87,"d":"$13,181.87"},{"v":13181.87,"d":"$13,181.87"},{"v":13957.28,"d":"$13,957.28"},{"v":13957.28,"d":"$13,957.28"},{"v":17058.89,"d":"$17,058.89"},{"v":652115.22,"d":"$652,115.22"},{"v":264154.46,"d":"$264,154.46"},{"v":100893.95,"d":"$100,893.95"},{"v":1513422.48,"d":"$1,513,422.48"},{"v":15538589.79,"d":"$15,538,589.79"},{"v":78561.96,"d":"$78,561.96"},{"v":40.449999999999996,"d":"$40.45"},{"v":200428.69,"d":"$200,428.69"},{"v":15538589.65244,"d":"$15,538,589.65"}]
["56099030C04","TROY COMM CONS SCH DIST 30C",3908.87,{"v":57173030.2,"d":"$57,173,030.20"},{"v":47278193.15,"d":"$47,278,193.15"},{"v":0.8269317366005203,"d":"83%"},2,{"v":133969.31,"d":"$133,969.31"},{"v":5251688.929999999,"d":"$5,251,688.93"},{"v":5385658.239999998,"d":"$5,385,658.24"},{"v":1.05749,"d":"1.06"},{"v":13736650.47,"d":"$13,736,650.47"},{"v":2747330.08,"d":"$2,747,330.08"},{"v":1440917.7,"d":"$1,440,917.70"},{"v":640080.12,"d":"$640,080.12"},{"v":492091.25,"d":"$492,091.25"},{"v":891705.05,"d":"$891,705.05"},{"v":336332.15,"d":"$336,332.15"},{"v":545584.19,"d":"$545,584.19"},{"v":739057.42,"d":"$739,057.42"},{"v":408952.57,"d":"$408,952.57"},{"v":1096414.76,"d":"$1,096,414.76"},{"v":944015.61,"d":"$944,015.61"},{"v":654675.31,"d":"$654,675.31"},{"v":24673806.680000003,"d":"$24,673,806.68"},{"v":347756.4,"d":"$347,756.40"},{"v":488608.75,"d":"$488,608.75"},{"v":1270382.75,"d":"$1,270,382.75"},{"v":132901.58000000002,"d":"$132,901.58"},{"v":2231964.77,"d":"$2,231,964.77"},{"v":660168.68,"d":"$660,168.68"},{"v":5319972.07,"d":"$5,319,972.07"},{"v":3662611.19,"d":"$3,662,611.19"},{"v":10229323.516679997,"d":"$10,229,323.52"},{"v":24343689.706679996,"d":"$24,343,689.71"},{"v":3720775.17,"d":"$3,720,775.17"},{"v":20622914.53667999,"d":"$20,622,914.54"},{"v":24557597.06667999,"d":"$24,557,597.07"},{"v":773078.32,"d":"$773,078.32"},{"v":773078.32,"d":"$773,078.32"},{"v":805645.31,"d":"$805,645.31"},{"v":805645.31,"d":"$805,645.31"},{"v":268289.97,"d":"$268,289.97"},{"v":268289.97,"d":"$268,289.97"},{"v":279145.63,"d":"$279,145.63"},{"v":279145.63,"d":"$279,145.63"},{"v":335750.16,"d":"$335,750.16"},{"v":2149421.39,"d":"$2,149,421.39"},{"v":870673.22,"d":"$870,673.22"},{"v":333463.08,"d":"$333,463.08"},{"v":7941626.31,"d":"$7,941,626.31"},{"v":57173030.2,"d":"$57,173,030.20"},{"v":929798.9,"d":"$929,798.90"},{"v":147283.04000000004,"d":"$147,283.04"},{"v":1323857.8099999998,"d":"$1,323,857.81"},{"v":57173030.056679994,"d":"$57,173,030.06"}]
["56099033C04","HOMER COMM CONS SCH DIST 33C",3661.64,{"v":49075777.78,"d":"$49,075,777.78"},{"v":47108285.73,"d":"$47,108,285.73"},{"v":0.9599091010066106,"d":"96%"},3,{"v":55770.24,"d":"$55,770.24"},{"v":3732200.17,"d":"$3,732,200.17"},{"v":3787970.41,"d":"$3,787,970.41"},{"v":1.05749,"d":"1.06"},{"v":12366525.04,"d":"$12,366,525.04"},{"v":2473305,"d":"$2,473,305.00"},{"v":1348740.26,"d":"$1,348,740.26"},{"v":599522.05,"d":"$599,522.05"},{"v":420096.57,"d":"$420,096.57"},{"v":825741.12,"d":"$825,741.12"},{"v":314988,"d":"$314,988.00"},{"v":511033.67,"d":"$511,033.67"},{"v":692227.75,"d":"$692,227.75"},{"v":382882.63,"d":"$382,882.63"},{"v":1026941.48,"d":"$1,026,941.48"},{"v":884198.95,"d":"$884,198.95"},{"v":613216.31,"d":"$613,216.31"},{"v":22459418.83,"d":"$22,459,418.83"},{"v":325295.1,"d":"$325,295.10"},{"v":457704.99999999994,"d":"$457,705.00"},{"v":1190033,"d":"$1,190,033.00"},{"v":124495.75999999998,"d":"$124,495.76"},{"v":1045398.22,"d":"$1,045,398.22"},{"v":609732.59,"d":"$609,732.59"},{"v":4983492.039999999,"d":"$4,983,492.04"},{"v":3430956.6799999997,"d":"$3,430,956.68"},{"v":8834101.47396,"d":"$8,834,101.47"},{"v":21001209.863959998,"d":"$21,001,209.86"},{"v":3485441.88,"d":"$3,485,441.88"},{"v":17515767.98396,"d":"$17,515,767.98"},{"v":21201587.91396,"d":"$21,201,587.91"},{"v":388477.67,"d":"$388,477.67"},{"v":388477.67,"d":"$388,477.67"},{"v":404761.17,"d":"$404,761.17"},{"v":404761.17,"d":"$404,761.17"},{"v":128717.15,"d":"$128,717.15"},{"v":128717.15,"d":"$128,717.15"},{"v":134144.98,"d":"$134,144.98"},{"v":134144.98,"d":"$134,144.98"},{"v":161284.14,"d":"$161,284.14"},{"v":2012950.19,"d":"$2,012,950.19"},{"v":815392.38,"d":"$815,392.38"},{"v":312942.27,"d":"$312,942.27"},{"v":5414770.92,"d":"$5,414,770.92"},{"v":49075777.78,"d":"$49,075,777.78"},{"v":312279.26999999996,"d":"$312,279.27"},{"v":53461.46000000001,"d":"$53,461.46"},{"v":1534970.1500000001,"d":"$1,534,970.15"},{"v":49075777.663959995,"d":"$49,075,777.66"}]
["56099070C04","LARAWAY C C SCHOOL DIST 70C",408.21,{"v":6660747.56,"d":"$6,660,747.56"},{"v":17186248.040000003,"d":"$17,186,248.04"},{"v":2.5802281028047256,"d":"258%"},4,{"v":424.27,"d":"$424.27"},{"v":1004468.51,"d":"$1,004,468.51"},{"v":1004892.78,"d":"$1,004,892.78"},{"v":1.05749,"d":"1.06"},{"v":1567016.44,"d":"$1,567,016.44"},{"v":313403.28,"d":"$313,403.28"},{"v":149696.15,"d":"$149,696.15"},{"v":66367.75,"d":"$66,367.75"},{"v":61202.92,"d":"$61,202.92"},{"v":90601.04,"d":"$90,601.04"},{"v":34280,"d":"$34,280.00"},{"v":56851.31,"d":"$56,851.31"},{"v":76630.37,"d":"$76,630.37"},{"v":42402.91,"d":"$42,402.91"},{"v":113683.55,"d":"$113,683.55"},{"v":97881.8,"d":"$97,881.80"},{"v":68218.9,"d":"$68,218.90"},{"v":2738236.42,"d":"$2,738,236.42"},{"v":35996.4,"d":"$35,996.40"},{"v":51026.25,"d":"$51,026.25"},{"v":132668.25,"d":"$132,668.25"},{"v":13879.140000000001,"d":"$13,879.14"},{"v":116543.95,"d":"$116,543.95"},{"v":66547.76000000001,"d":"$66,547.76"},{"v":555573.81,"d":"$555,573.81"},{"v":382492.77,"d":"$382,492.77"},{"v":1244955.7454399997,"d":"$1,244,955.75"},{"v":2599684.07544,"d":"$2,599,684.08"},{"v":388566.93,"d":"$388,566.93"},{"v":2211117.1454399996,"d":"$2,211,117.15"},{"v":2622022.78544,"d":"$2,622,022.79"},{"v":164385.76,"d":"$164,385.76"},{"v":164385.76,"d":"$164,385.76"},{"v":171364.4,"d":"$171,364.40"},{"v":171364.4,"d":"$171,364.40"},{"v":52727.5,"d":"$52,727.50"},{"v":52727.5,"d":"$52,727.50"},{"v":54278.31,"d":"$54,278.31"},{"v":54278.31,"d":"$54,278.31"},{"v":65909.38,"d":"$65,909.38"},{"v":224091.91,"d":"$224,091.91"},{"v":90773.65,"d":"$90,773.65"},{"v":34201.34,"d":"$34,201.34"},{"v":1300488.2200000002,"d":"$1,300,488.22"},{"v":6660747.56,"d":"$6,660,747.56"},{"v":792067.5499999999,"d":"$792,067.55"},{"v":22865.1,"d":"$22,865.10"},{"v":106845.96999999999,"d":"$106,845.97"},{"v":6660747.42544,"d":"$6,660,747.43"}]
["56099081002","UNION SCHOOL DIST 81",113.05,{"v":1686441.39,"d":"$1,686,441.39"},{"v":3661794.9000000004,"d":"$3,661,794.90"},{"v":2.171314652091171,"d":"217%"},4,{"v":107.42,"d":"$107.42"},{"v":130829.71999999999,"d":"$130,829.72"},{"v":130937.13999999998,"d":"$130,937.14"},{"v":1.05749,"d":"1.06"},{"v":425491.05,"d":"$425,491.05"},{"v":85098.2,"d":"$85,098.20"},{"v":41295.49,"d":"$41,295.49"},{"v":17698.06,"d":"$17,698.06"},{"v":15201.9,"d":"$15,201.90"},{"v":23842.38,"d":"$23,842.38"},{"v":9701.88,"d":"$9,701.88"},{"v":15390.68,"d":"$15,390.68"},{"v":20434.76,"d":"$20,434.76"},{"v":11621.54,"d":"$11,621.54"},{"v":30315.61,"d":"$30,315.61"},{"v":26101.81,"d":"$26,101.81"},{"v":18468.1,"d":"$18,468.10"},{"v":740661.4600000002,"d":"$740,661.46"},{"v":10032.300000000001,"d":"$10,032.30"},{"v":14131.25,"d":"$14,131.25"},{"v":36741.25,"d":"$36,741.25"},{"v":3843.7000000000003,"d":"$3,843.70"},{"v":32275.77,"d":"$32,275.77"},{"v":17673.59,"d":"$17,673.59"},{"v":153861.05,"d":"$153,861.05"},{"v":105927.85,"d":"$105,927.85"},{"v":310358.6982,"d":"$310,358.70"},{"v":684845.4582,"d":"$684,845.46"},{"v":107610.03,"d":"$107,610.03"},{"v":577235.4281999998,"d":"$577,235.43"},{"v":691031.9581999999,"d":"$691,031.96"},{"v":32566.99,"d":"$32,566.99"},{"v":32566.99,"d":"$32,566.99"},{"v":33342.39,"d":"$33,342.39"},{"v":33342.39,"d":"$33,342.39"},{"v":4652.42,"d":"$4,652.42"},{"v":4652.42,"d":"$4,652.42"},{"v":5427.83,"d":"$5,427.83"},{"v":5427.83,"d":"$5,427.83"},{"v":6203.23,"d":"$6,203.23"},{"v":62032.36,"d":"$62,032.36"},{"v":25127.65,"d":"$25,127.65"},{"v":9405.36,"d":"$9,405.36"},{"v":254747.86000000004,"d":"$254,747.86"},{"v":1686441.39,"d":"$1,686,441.39"},{"v":67600.92000000001,"d":"$67,600.92"},{"v":10.25,"d":"$10.25"},{"v":32820.03999999999,"d":"$32,820.04"},{"v":1686441.2782000003,"d":"$1,686,441.28"}]
["56099084002","ROCKDALE SCHOOL DISTRICT 84",244.06,{"v":4022764.51,"d":"$4,022,764.51"},{"v":7425367.289999999,"d":"$7,425,367.29"},{"v":1.8458369291917611,"d":"185%"},4,{"v":256.24,"d":"$256.24"},{"v":672462.0199999999,"d":"$672,462.02"},{"v":672718.2599999999,"d":"$672,718.26"},{"v":1.05749,"d":"1.06"},{"v":959382.77,"d":"$959,382.77"},{"v":191876.54,"d":"$191,876.54"},{"v":89227.75,"d":"$89,227.75"},{"v":39083.23,"d":"$39,083.23"},{"v":37206.26,"d":"$37,206.26"},{"v":53247.98,"d":"$53,247.98"},{"v":20697.36,"d":"$20,697.36"},{"v":33608.23,"d":"$33,608.23"},{"v":45126.77,"d":"$45,126.77"},{"v":25127.65,"d":"$25,127.65"},{"v":66946.98,"d":"$66,946.98"},{"v":57641.5,"d":"$57,641.50"},{"v":40328.3,"d":"$40,328.30"},{"v":1659501.32,"d":"$1,659,501.32"},{"v":21762.899999999998,"d":"$21,762.90"},{"v":30507.5,"d":"$30,507.50"},{"v":79319.5,"d":"$79,319.50"},{"v":8298.04,"d":"$8,298.04"},{"v":69679.12,"d":"$69,679.12"},{"v":39711.009999999995,"d":"$39,711.01"},{"v":332165.66,"d":"$332,165.66"},{"v":228684.21999999997,"d":"$228,684.22"},{"v":753098.61684,"d":"$753,098.62"},{"v":1563226.56684,"d":"$1,563,226.57"},{"v":232315.83,"d":"$232,315.83"},{"v":1330910.73684,"d":"$1,330,910.74"},{"v":1576582.3968399998,"d":"$1,576,582.40"},{"v":105455.01,"d":"$105,455.01"},{"v":105455.01,"d":"$105,455.01"},{"v":109332.04,"d":"$109,332.04"},{"v":109332.04,"d":"$109,332.04"},{"v":27914.56,"d":"$27,914.56"},{"v":27914.56,"d":"$27,914.56"},{"v":28689.96,"d":"$28,689.96"},{"v":28689.96,"d":"$28,689.96"},{"v":34893.2,"d":"$34,893.20"},{"v":134144.98,"d":"$134,144.98"},{"v":54338.55,"d":"$54,338.55"},{"v":20520.8,"d":"$20,520.80"},{"v":786680.67,"d":"$786,680.67"},{"v":4022764.51,"d":"$4,022,764.51"},{"v":402874.06000000006,"d":"$402,874.06"},{"v":7883.530000000001,"d":"$7,883.53"},{"v":84095.71999999999,"d":"$84,095.72"},{"v":4022764.38684,"d":"$4,022,764.39"}]
["56099086005","JOLIET SCHOOL DIST 86",9751.13,{"v":169022418.07,"d":"$169,022,418.07"},{"v":123196889.97,"d":"$123,196,889.97"},{"v":0.7288789935485273,"d":"73%"},1,{"v":4337711.92,"d":"$4,337,711.92"},{"v":102045119.49,"d":"$102,045,119.49"},{"v":106382831.41,"d":"$106,382,831.41"},{"v":1.05749,"d":"1.06"},{"v":38634145.11,"d":"$38,634,145.11"},{"v":7726829.01,"d":"$7,726,829.01"},{"v":3594920.07,"d":"$3,594,920.07"},{"v":1596513.22,"d":"$1,596,513.22"},{"v":1546427.61,"d":"$1,546,427.61"},{"v":2194293.8,"d":"$2,194,293.80"},{"v":840183.59,"d":"$840,183.59"},{"v":1360662.48,"d":"$1,360,662.48"},{"v":1843386.32,"d":"$1,843,386.32"},{"v":1020496.86,"d":"$1,020,496.86"},{"v":2734721.16,"d":"$2,734,721.16"},{"v":2354601.15,"d":"$2,354,601.15"},{"v":1632730.84,"d":"$1,632,730.84"},{"v":67079911.21999999,"d":"$67,079,911.22"},{"v":868947.3,"d":"$868,947.30"},{"v":1218891.25,"d":"$1,218,891.25"},{"v":3169117.25,"d":"$3,169,117.25"},{"v":331538.42,"d":"$331,538.42"},{"v":5567895.2299999995,"d":"$5,567,895.23"},{"v":1622560.17,"d":"$1,622,560.17"},{"v":13271287.93,"d":"$13,271,287.93"},{"v":9136808.809999999,"d":"$9,136,808.81"},{"v":31286606.10132,"d":"$31,286,606.10"},{"v":66473652.46132,"d":"$66,473,652.46"},{"v":9281905.62,"d":"$9,281,905.62"},{"v":57191746.84132,"d":"$57,191,746.84"},{"v":67007269.21132,"d":"$67,007,269.21"},{"v":4634592.95,"d":"$4,634,592.95"},{"v":4634592.95,"d":"$4,634,592.95"},{"v":4827668.68,"d":"$4,827,668.68"},{"v":4827668.68,"d":"$4,827,668.68"},{"v":1432947.59,"d":"$1,432,947.59"},{"v":1432947.59,"d":"$1,432,947.59"},{"v":1492653.74,"d":"$1,492,653.74"},{"v":1492653.74,"d":"$1,492,653.74"},{"v":1791959.89,"d":"$1,791,959.89"},{"v":5361922.41,"d":"$5,361,922.41"},{"v":2171971.62,"d":"$2,171,971.62"},{"v":833657.7,"d":"$833,657.70"},{"v":34935237.54,"d":"$34,935,237.54"},{"v":169022418.07,"d":"$169,022,418.07"},{"v":31393285.589999996,"d":"$31,393,285.59"},{"v":2035377.6,"d":"$2,035,377.60"},{"v":6465753.14,"d":"$6,465,753.14"},{"v":169022417.97131997,"d":"$169,022,417.97"}]
["56099088002","CHANEY-MONGE SCH DISTRICT 88",456.05,{"v":7692891.39,"d":"$7,692,891.39"},{"v":5097965.8,"d":"$5,097,965.80"},{"v":0.6626852689779102,"d":"66%"},1,{"v":368899.41,"d":"$368,899.41"},{"v":3612691.1099999994,"d":"$3,612,691.11"},{"v":3981590.5199999996,"d":"$3,981,590.52"},{"v":1.05749,"d":"1.06"},{"v":1747684.21,"d":"$1,747,684.21"},{"v":349536.84,"d":"$349,536.84"},{"v":167394.22,"d":"$167,394.22"},{"v":74479.36,"d":"$74,479.36"},{"v":69640.29,"d":"$69,640.29"},{"v":104111.73,"d":"$104,111.73"},{"v":38807.55,"d":"$38,807.55"},{"v":63447.32,"d":"$63,447.32"},{"v":85996.31,"d":"$85,996.31"},{"v":47428.44,"d":"$47,428.44"},{"v":127578.21,"d":"$127,578.21"},{"v":109845.13,"d":"$109,845.13"},{"v":76133.8,"d":"$76,133.80"},{"v":3062083.409999999,"d":"$3,062,083.41"},{"v":40377.6,"d":"$40,377.60"},{"v":57006.24999999999,"d":"$57,006.25"},{"v":148216.25,"d":"$148,216.25"},{"v":15505.699999999997,"d":"$15,505.70"},{"v":260404.55,"d":"$260,404.55"},{"v":76910.76000000001,"d":"$76,910.76"},{"v":620684.0499999999,"d":"$620,684.05"},{"v":427318.85,"d":"$427,318.85"},{"v":1416790.9812000003,"d":"$1,416,790.98"},{"v":3063214.9912,"d":"$3,063,214.99"},{"v":434104.87,"d":"$434,104.87"},{"v":2629110.1212000004,"d":"$2,629,110.12"},{"v":3088171.6712,"d":"$3,088,171.67"},{"v":194626.54,"d":"$194,626.54"},{"v":194626.54,"d":"$194,626.54"},{"v":203155.99,"d":"$203,155.99"},{"v":203155.99,"d":"$203,155.99"},{"v":66684.79,"d":"$66,684.79"},{"v":66684.79,"d":"$66,684.79"},{"v":69786.4,"d":"$69,786.40"},{"v":69786.4,"d":"$69,786.40"},{"v":83743.69,"d":"$83,743.69"},{"v":250455.66,"d":"$250,455.66"},{"v":101452.9,"d":"$101,452.90"},{"v":38476.5,"d":"$38,476.50"},{"v":1542636.19,"d":"$1,542,636.19"},{"v":7692891.39,"d":"$7,692,891.39"},{"v":984854.43,"d":"$984,854.43"},{"v":82248.81,"d":"$82,248.81"},{"v":274467.97,"d":"$274,467.97"},{"v":7692891.271199999,"d":"$7,692,891.27"}]
["56099088A02","RICHLAND SCHOOL DIST 88A",812.72,{"v":12305879.96,"d":"$12,305,879.96"},{"v":10991049.57,"d":"$10,991,049.57"},{"v":0.8931542974355489,"d":"89%"},2,{"v":16863.66,"d":"$16,863.66"},{"v":1156239.74,"d":"$1,156,239.74"},{"v":1173103.4,"d":"$1,173,103.40"},{"v":1.05749,"d":"1.06"},{"v":2901008.31,"d":"$2,901,008.31"},{"v":580201.65,"d":"$580,201.65"},{"v":299392.31,"d":"$299,392.31"},{"v":131998.09,"d":"$131,998.09"},{"v":107255.72,"d":"$107,255.72"},{"v":186765.31,"d":"$186,765.31"},{"v":69206.8,"d":"$69,206.80"},{"v":113074.44,"d":"$113,074.44"},{"v":152409.3,"d":"$152,409.30"},{"v":84805.83,"d":"$84,805.83"},{"v":226103.96,"d":"$226,103.96"},{"v":194676.03,"d":"$194,676.03"},{"v":135684,"d":"$135,684.00"},{"v":5182581.75,"d":"$5,182,581.75"},{"v":72282.59999999999,"d":"$72,282.60"},{"v":101589.99999999999,"d":"$101,590.00"},{"v":264133.99999999994,"d":"$264,134.00"},{"v":27632.479999999996,"d":"$27,632.48"},{"v":464063.12,"d":"$464,063.12"},{"v":139410.33999999997,"d":"$139,410.34"},{"v":1106111.92,"d":"$1,106,111.92"},{"v":761518.6399999999,"d":"$761,518.64"},{"v":2217804.85908,"d":"$2,217,804.86"},{"v":5154547.9590799995,"d":"$5,154,547.96"},{"v":773611.91,"d":"$773,611.91"},{"v":4380936.049079999,"d":"$4,380,936.05"},{"v":5199022.899079999,"d":"$5,199,022.90"},{"v":203155.99,"d":"$203,155.99"},{"v":203155.99,"d":"$203,155.99"},{"v":211685.44,"d":"$211,685.44"},{"v":211685.44,"d":"$211,685.44"},{"v":74438.83,"d":"$74,438.83"},{"v":74438.83,"d":"$74,438.83"},{"v":77540.45,"d":"$77,540.45"},{"v":77540.45,"d":"$77,540.45"},{"v":93823.94,"d":"$93,823.94"},{"v":446633.01,"d":"$446,633.01"},{"v":180919.11,"d":"$180,919.11"},{"v":69257.71,"d":"$69,257.71"},{"v":1924275.1899999995,"d":"$1,924,275.19"},{"v":12305879.96,"d":"$12,305,879.96"},{"v":332003.79,"d":"$332,003.79"},{"v":51149.08,"d":"$51,149.08"},{"v":275810.0399999999,"d":"$275,810.04"},{"v":12305879.839079998,"d":"$12,305,879.84"}]
["56099089002","FAIRMONT SCHOOL DISTRICT 89",281.47,{"v":5005512.79,"d":"$5,005,512.79"},{"v":3755287.76,"d":"$3,755,287.76"},{"v":0.7502303794932467,"d":"75%"},1,{"v":75107.1,"d":"$75,107.10"},{"v":1741199.08,"d":"$1,741,199.08"},{"v":1816306.1800000002,"d":"$1,816,306.18"},{"v":1.05749,"d":"1.06"},{"v":1113503.44,"d":"$1,113,503.44"},{"v":222700.68,"d":"$222,700.68"},{"v":102501.31,"d":"$102,501.31"},{"v":45720,"d":"$45,720.00"},{"v":46072.3,"d":"$46,072.30"},{"v":64374.42,"d":"$64,374.42"},{"v":23931.32,"d":"$23,931.32"},{"v":39261.95,"d":"$39,261.95"},{"v":52789.81,"d":"$52,789.81"},{"v":29210.89,"d":"$29,210.89"},{"v":78315.34,"d":"$78,315.34"},{"v":67429.68,"d":"$67,429.68"},{"v":47112.5,"d":"$47,112.50"},{"v":1932923.64,"d":"$1,932,923.64"},{"v":25017.3,"d":"$25,017.30"},{"v":35183.75,"d":"$35,183.75"},{"v":91477.75,"d":"$91,477.75"},{"v":9569.98,"d":"$9,569.98"},{"v":160719.37,"d":"$160,719.37"},{"v":47869.17,"d":"$47,869.17"},{"v":383080.67,"d":"$383,080.67"},{"v":263737.39,"d":"$263,737.39"},{"v":930550.6720799999,"d":"$930,550.67"},{"v":1947206.0520799998,"d":"$1,947,206.05"},{"v":267925.66,"d":"$267,925.66"},{"v":1679280.3920800001,"d":"$1,679,280.39"},{"v":1962609.09208,"d":"$1,962,609.09"},{"v":138797.41,"d":"$138,797.41"},{"v":138797.41,"d":"$138,797.41"},{"v":145000.64,"d":"$145,000.64"},{"v":145000.64,"d":"$145,000.64"},{"v":56604.53,"d":"$56,604.53"},{"v":56604.53,"d":"$56,604.53"},{"v":58930.74,"d":"$58,930.74"},{"v":58930.74,"d":"$58,930.74"},{"v":70561.81,"d":"$70,561.81"},{"v":154305.5,"d":"$154,305.50"},{"v":62505.04,"d":"$62,505.04"},{"v":23940.93,"d":"$23,940.93"},{"v":1109979.9200000002,"d":"$1,109,979.92"},{"v":5005512.79,"d":"$5,005,512.79"},{"v":1059747.05,"d":"$1,059,747.05"},{"v":38656.16,"d":"$38,656.16"},{"v":126170.76000000001,"d":"$126,170.76"},{"v":5005512.65208,"d":"$5,005,512.65"}]
["56099090002","TAFT SCHOOL DISTRICT 90",273.88,{"v":4058833.33,"d":"$4,058,833.33"},{"v":2849877.4299999997,"d":"$2,849,877.43"},{"v":0.7021420192191039,"d":"70%"},1,{"v":124647.46,"d":"$124,647.46"},{"v":1179092.8299999998,"d":"$1,179,092.83"},{"v":1303740.2899999998,"d":"$1,303,740.29"},{"v":1.05749,"d":"1.06"},{"v":982242.77,"d":"$982,242.77"},{"v":196448.55,"d":"$196,448.55"},{"v":100289.05,"d":"$100,289.05"},{"v":44245.17,"d":"$44,245.17"},{"v":35240.23,"d":"$35,240.23"},{"v":61195.44,"d":"$61,195.44"},{"v":22637.74,"d":"$22,637.74"},{"v":37691.48,"d":"$37,691.48"},{"v":51086.91,"d":"$51,086.91"},{"v":28582.7,"d":"$28,582.70"},{"v":75789.03,"d":"$75,789.03"},{"v":65254.53,"d":"$65,254.53"},{"v":45228,"d":"$45,228.00"},{"v":1745931.5999999999,"d":"$1,745,931.60"},{"v":24387.3,"d":"$24,387.30"},{"v":34235,"d":"$34,235.00"},{"v":89011,"d":"$89,011.00"},{"v":9311.92,"d":"$9,311.92"},{"v":156385.47999999998,"d":"$156,385.48"},{"v":45795.09,"d":"$45,795.09"},{"v":372750.68,"d":"$372,750.68"},{"v":256625.56,"d":"$256,625.56"},{"v":728357.18232,"d":"$728,357.18"},{"v":1716859.21232,"d":"$1,716,859.21"},{"v":260700.89,"d":"$260,700.89"},{"v":1456158.3223199998,"d":"$1,456,158.32"},{"v":1731846.9023199999,"d":"$1,731,846.90"},{"v":61256.95,"d":"$61,256.95"},{"v":61256.95,"d":"$61,256.95"},{"v":64358.57,"d":"$64,358.57"},{"v":64358.57,"d":"$64,358.57"},{"v":17834.3,"d":"$17,834.30"},{"v":17834.3,"d":"$17,834.30"},{"v":18609.7,"d":"$18,609.70"},{"v":18609.7,"d":"$18,609.70"},{"v":22486.73,"d":"$22,486.73"},{"v":150428.48,"d":"$150,428.48"},{"v":60934.56,"d":"$60,934.56"},{"v":23085.9,"d":"$23,085.90"},{"v":581054.7100000001,"d":"$581,054.71"},{"v":4058833.33,"d":"$4,058,833.33"},{"v":161982.35,"d":"$161,982.35"},{"v":7968.110000000001,"d":"$7,968.11"},{"v":128441.38000000002,"d":"$128,441.38"},{"v":4058833.21232,"d":"$4,058,833.21"}]
["56099091002","LOCKPORT SCHOOL DIST 91",534.23,{"v":7532097.12,"d":"$7,532,097.12"},{"v":6156248.05,"d":"$6,156,248.05"},{"v":0.8173351925658653,"d":"82%"},2,{"v":24417.65,"d":"$24,417.65"},{"v":1039899.1300000001,"d":"$1,039,899.13"},{"v":1064316.78,"d":"$1,064,316.78"},{"v":1.05749,"d":"1.06"},{"v":1856822.3,"d":"$1,856,822.30"},{"v":371364.45,"d":"$371,364.45"},{"v":196153.58,"d":"$196,153.58"},{"v":87015.5,"d":"$87,015.50"},{"v":63925.98,"d":"$63,925.98"},{"v":122390.88,"d":"$122,390.88"},{"v":45922.27,"d":"$45,922.27"},{"v":74440.67,"d":"$74,440.67"},{"v":100470.94,"d":"$100,470.94"},{"v":55594.93,"d":"$55,594.93"},{"v":149051.77,"d":"$149,051.77"},{"v":128333.91,"d":"$128,333.91"},{"v":89325.3,"d":"$89,325.30"},{"v":3340812.48,"d":"$3,340,812.48"},{"v":47413.799999999996,"d":"$47,413.80"},{"v":66778.75,"d":"$66,778.75"},{"v":173624.75,"d":"$173,624.75"},{"v":18163.82,"d":"$18,163.82"},{"v":305045.32999999996,"d":"$305,045.33"},{"v":90962.5,"d":"$90,962.50"},{"v":727087.03,"d":"$727,087.03"},{"v":500573.51,"d":"$500,573.51"},{"v":1336373.26872,"d":"$1,336,373.27"},{"v":3266022.7587200003,"d":"$3,266,022.76"},{"v":508522.85,"d":"$508,522.85"},{"v":2757499.9087199997,"d":"$2,757,499.91"},{"v":3295257.7287199995,"d":"$3,295,257.73"},{"v":96150.16,"d":"$96,150.16"},{"v":96150.16,"d":"$96,150.16"},{"v":100027.18,"d":"$100,027.18"},{"v":100027.18,"d":"$100,027.18"},{"v":8529.44,"d":"$8,529.44"},{"v":8529.44,"d":"$8,529.44"},{"v":9304.85,"d":"$9,304.85"},{"v":9304.85,"d":"$9,304.85"},{"v":10855.66,"d":"$10,855.66"},{"v":293102.91,"d":"$293,102.91"},{"v":118728.16,"d":"$118,728.16"},{"v":45316.77,"d":"$45,316.77"},{"v":896026.7599999999,"d":"$896,026.76"},{"v":7532097.12,"d":"$7,532,097.12"},{"v":169081.97,"d":"$169,081.97"},{"v":4250.99,"d":"$4,250.99"},{"v":199982.37999999995,"d":"$199,982.38"},{"v":7532096.968719999,"d":"$7,532,096.97"}]
["56099092002","WILL COUNTY SCHOOL DISTRICT 92",1385.47,{"v":19035723.31,"d":"$19,035,723.31"},{"v":25456358.49,"d":"$25,456,358.49"},{"v":1.337293995895972,"d":"134%"},4,{"v":1212.54,"d":"$1,212.54"},{"v":1445063.1499999997,"d":"$1,445,063.15"},{"v":1446275.6899999997,"d":"$1,446,275.69"},{"v":1.05749,"d":"1.06"},{"v":4775528.69,"d":"$4,775,528.69"},{"v":955105.73,"d":"$955,105.73"},{"v":510294.29,"d":"$510,294.29"},{"v":226387.78,"d":"$226,387.78"},{"v":164618.48,"d":"$164,618.48"},{"v":313924.68,"d":"$313,924.68"},{"v":119009.84,"d":"$119,009.84"},{"v":193168.84,"d":"$193,168.84"},{"v":261394.73,"d":"$261,394.73"},{"v":144798.1,"d":"$144,798.10"},{"v":387787.25,"d":"$387,787.25"},{"v":333885.7,"d":"$333,885.70"},{"v":231793.5,"d":"$231,793.50"},{"v":8617697.61,"d":"$8,617,697.61"},{"v":122727.59999999999,"d":"$122,727.60"},{"v":173183.75,"d":"$173,183.75"},{"v":450277.75,"d":"$450,277.75"},{"v":47105.979999999996,"d":"$47,105.98"},{"v":395551.68,"d":"$395,551.68"},{"v":231564.68,"d":"$231,564.68"},{"v":1885624.67,"d":"$1,885,624.67"},{"v":1298185.39,"d":"$1,298,185.39"},{"v":3444375.5410800003,"d":"$3,444,375.54"},{"v":8048597.04108,"d":"$8,048,597.04"},{"v":1318801.18,"d":"$1,318,801.18"},{"v":6729795.86108,"d":"$6,729,795.86"},{"v":8124414.91108,"d":"$8,124,414.91"},{"v":210910.03,"d":"$210,910.03"},{"v":210910.03,"d":"$210,910.03"},{"v":219439.48,"d":"$219,439.48"},{"v":219439.48,"d":"$219,439.48"},{"v":45748.86,"d":"$45,748.86"},{"v":45748.86,"d":"$45,748.86"},{"v":48075.08,"d":"$48,075.08"},{"v":48075.08,"d":"$48,075.08"},{"v":57379.93,"d":"$57,379.93"},{"v":761447.26,"d":"$761,447.26"},{"v":308441.95,"d":"$308,441.95"},{"v":117994.62,"d":"$117,994.62"},{"v":2293610.66,"d":"$2,293,610.66"},{"v":19035723.31,"d":"$19,035,723.31"},{"v":226941.31999999998,"d":"$226,941.32"},{"v":10901.49,"d":"$10,901.49"},{"v":697891.6399999999,"d":"$697,891.64"},{"v":19035723.18108,"d":"$19,035,723.18"}]
["56099114002","MANHATTAN SCHOOL DIST 114",1793.5,{"v":23516660.42,"d":"$23,516,660.42"},{"v":15253259.56,"d":"$15,253,259.56"},{"v":0.6486150366413294,"d":"65%"},1,{"v":1169138.14,"d":"$1,169,138.14"},{"v":5143079.369999999,"d":"$5,143,079.37"},{"v":6312217.509999999,"d":"$6,312,217.51"},{"v":1.05749,"d":"1.06"},{"v":5950237.95,"d":"$5,950,237.95"},{"v":1190047.58,"d":"$1,190,047.58"},{"v":660727.87,"d":"$660,727.87"},{"v":293492.96,"d":"$293,492.96"},{"v":193830.45,"d":"$193,830.45"},{"v":397373.01,"d":"$397,373.01"},{"v":153936.64,"d":"$153,936.64"},{"v":250020.16,"d":"$250,020.16"},{"v":338876.56,"d":"$338,876.56"},{"v":187515.12,"d":"$187,515.12"},{"v":502733.96,"d":"$502,733.96"},{"v":432855.08,"d":"$432,855.08"},{"v":300012.4,"d":"$300,012.40"},{"v":10851659.740000002,"d":"$10,851,659.74"},{"v":158760,"d":"$158,760.00"},{"v":224187.5,"d":"$224,187.50"},{"v":582887.5,"d":"$582,887.50"},{"v":60979,"d":"$60,979.00"},{"v":1024088.5,"d":"$1,024,088.50"},{"v":291490,"d":"$291,490.00"},{"v":2440953.5,"d":"$2,440,953.50"},{"v":1680509.5,"d":"$1,680,509.50"},{"v":4103051.496,"d":"$4,103,051.50"},{"v":10566906.996,"d":"$10,566,907.00"},{"v":1707196.78,"d":"$1,707,196.78"},{"v":8859710.216,"d":"$8,859,710.22"},{"v":10665053.736,"d":"$10,665,053.74"},{"v":90722.33,"d":"$90,722.33"},{"v":90722.33,"d":"$90,722.33"},{"v":94599.35,"d":"$94,599.35"},{"v":94599.35,"d":"$94,599.35"},{"v":17058.89,"d":"$17,058.89"},{"v":17058.89,"d":"$17,058.89"},{"v":17834.3,"d":"$17,834.30"},{"v":17834.3,"d":"$17,834.30"},{"v":21711.32,"d":"$21,711.32"},{"v":985539.17,"d":"$985,539.17"},{"v":399215.6,"d":"$399,215.60"},{"v":153051,"d":"$153,051.00"},{"v":1999946.83,"d":"$1,999,946.83"},{"v":23516660.42,"d":"$23,516,660.42"},{"v":177961.73,"d":"$177,961.73"},{"v":12885.779999999999,"d":"$12,885.78"},{"v":733973.6500000001,"d":"$733,973.65"},{"v":23516660.306,"d":"$23,516,660.31"}]
["56099122002","NEW LENOX SCHOOL DIST 122",4835.29,{"v":63593162.58,"d":"$63,593,162.58"},{"v":51544362.92,"d":"$51,544,362.92"},{"v":0.8105330955219809,"d":"81%"},2,{"v":152301.78,"d":"$152,301.78"},{"v":5368965.29,"d":"$5,368,965.29"},{"v":5521267.07,"d":"$5,521,267.07"},{"v":1.05749,"d":"1.06"},{"v":15940797.36,"d":"$15,940,797.36"},{"v":3188159.47,"d":"$3,188,159.47"},{"v":1781605.51,"d":"$1,781,605.51"},{"v":791988.54,"d":"$791,988.54"},{"v":523075.85,"d":"$523,075.85"},{"v":1103107.49,"d":"$1,103,107.49"},{"v":415887.64,"d":"$415,887.64"},{"v":674677.52,"d":"$674,677.52"},{"v":914455.84,"d":"$914,455.84"},{"v":505694.04,"d":"$505,694.04"},{"v":1356623.8,"d":"$1,356,623.80"},{"v":1168056.18,"d":"$1,168,056.18"},{"v":809581.22,"d":"$809,581.22"},{"v":29173710.459999997,"d":"$29,173,710.46"},{"v":429784.2,"d":"$429,784.20"},{"v":604411.25,"d":"$604,411.25"},{"v":1571469.25,"d":"$1,571,469.25"},{"v":164399.86,"d":"$164,399.86"},{"v":2760950.59,"d":"$2,760,950.59"},{"v":816400.02,"d":"$816,400.02"},{"v":6580829.6899999995,"d":"$6,580,829.69"},{"v":4530666.7299999995,"d":"$4,530,666.73"},{"v":11097052.129560001,"d":"$11,097,052.13"},{"v":28555963.71956,"d":"$28,555,963.72"},{"v":4602615.84,"d":"$4,602,615.84"},{"v":23953347.87956,"d":"$23,953,347.88"},{"v":28820568.09956,"d":"$28,820,568.10"},{"v":316365.05,"d":"$316,365.05"},{"v":316365.05,"d":"$316,365.05"},{"v":329546.93,"d":"$329,546.93"},{"v":329546.93,"d":"$329,546.93"},{"v":29465.37,"d":"$29,465.37"},{"v":29465.37,"d":"$29,465.37"},{"v":31016.18,"d":"$31,016.18"},{"v":31016.18,"d":"$31,016.18"},{"v":37219.41,"d":"$37,219.41"},{"v":2658862.17,"d":"$2,658,862.17"},{"v":1077034.08,"d":"$1,077,034.08"},{"v":412981.19,"d":"$412,981.19"},{"v":5598883.91,"d":"$5,598,883.91"},{"v":63593162.58,"d":"$63,593,162.58"},{"v":298235.85000000003,"d":"$298,235.85"},{"v":1745.15,"d":"$1,745.15"},{"v":1759496.4800000002,"d":"$1,759,496.48"},{"v":63593162.46956,"d":"$63,593,162.47"}]
["56099157C04","FRANKFORT C C SCH DIST 157C",2625.75,{"v":33557100.84,"d":"$33,557,100.84"},{"v":33047965.63,"d":"$33,047,965.63"},{"v":0.9848277950938743,"d":"98%"},3,{"v":38134.65,"d":"$38,134.65"},{"v":1859331.22,"d":"$1,859,331.22"},{"v":1897465.8699999999,"d":"$1,897,465.87"},{"v":1.05749,"d":"1.06"},{"v":8638869.46,"d":"$8,638,869.46"},{"v":1727773.89,"d":"$1,727,773.89"},{"v":967494.38,"d":"$967,494.38"},{"v":429178.14,"d":"$429,178.14"},{"v":281843.73,"d":"$281,843.73"},{"v":591291.04,"d":"$591,291.04"},{"v":225730.62,"d":"$225,730.62"},{"v":366235.56,"d":"$366,235.56"},{"v":495543.11,"d":"$495,543.11"},{"v":274519.62,"d":"$274,519.62"},{"v":735153.68,"d":"$735,153.68"},{"v":632968.99,"d":"$632,968.99"},{"v":439465.41,"d":"$439,465.41"},{"v":15806067.630000003,"d":"$15,806,067.63"},{"v":234450,"d":"$234,450.00"},{"v":328218.75,"d":"$328,218.75"},{"v":853368.75,"d":"$853,368.75"},{"v":89275.5,"d":"$89,275.50"},{"v":749651.62,"d":"$749,651.62"},{"v":438651,"d":"$438,651.00"},{"v":3573645.75,"d":"$3,573,645.75"},{"v":2460327.75,"d":"$2,460,327.75"},{"v":5977296.384,"d":"$5,977,296.38"},{"v":14704885.504,"d":"$14,704,885.50"},{"v":2499398.91,"d":"$2,499,398.91"},{"v":12205486.593999999,"d":"$12,205,486.59"},{"v":14848575.943999998,"d":"$14,848,575.94"},{"v":100802.59,"d":"$100,802.59"},{"v":100802.59,"d":"$100,802.59"},{"v":104679.61,"d":"$104,679.61"},{"v":104679.61,"d":"$104,679.61"},{"v":44973.46,"d":"$44,973.46"},{"v":44973.46,"d":"$44,973.46"},{"v":46524.27,"d":"$46,524.27"},{"v":46524.27,"d":"$46,524.27"},{"v":55829.12,"d":"$55,829.12"},{"v":1443803.25,"d":"$1,443,803.25"},{"v":584846.15,"d":"$584,846.15"},{"v":224018.78,"d":"$224,018.78"},{"v":2902457.1599999997,"d":"$2,902,457.16"},{"v":33557100.84,"d":"$33,557,100.84"},{"v":72101.49,"d":"$72,101.49"},{"v":6497.47,"d":"$6,497.47"},{"v":852252.6699999998,"d":"$852,252.67"},{"v":33557100.734,"d":"$33,557,100.73"}]
["56099159002","MOKENA SCHOOL DIST 159",1512.75,{"v":20100396.32,"d":"$20,100,396.32"},{"v":20003324,"d":"$20,003,324.00"},{"v":0.9951706265660338,"d":"100%"},3,{"v":22842.3,"d":"$22,842.30"},{"v":1485263.9099999997,"d":"$1,485,263.91"},{"v":1508106.2099999997,"d":"$1,508,106.21"},{"v":1.05749,"d":"1.06"},{"v":5118428.76,"d":"$5,118,428.76"},{"v":1023685.74,"d":"$1,023,685.74"},{"v":556751.72,"d":"$556,751.72"},{"v":247035.53,"d":"$247,035.53"},{"v":171841.39,"d":"$171,841.39"},{"v":336972.31,"d":"$336,972.31"},{"v":129358.52,"d":"$129,358.52"},{"v":210758.2,"d":"$210,758.20"},{"v":285235.29,"d":"$285,235.29"},{"v":158304.22,"d":"$158,304.22"},{"v":423155.46,"d":"$423,155.46"},{"v":364337.82,"d":"$364,337.82"},{"v":252899.9,"d":"$252,899.90"},{"v":9278764.86,"d":"$9,278,764.86"},{"v":135045,"d":"$135,045.00"},{"v":189093.75,"d":"$189,093.75"},{"v":491643.75,"d":"$491,643.75"},{"v":51433.5,"d":"$51,433.50"},{"v":431890.12,"d":"$431,890.12"},{"v":249686.5,"d":"$249,686.50"},{"v":2058852.75,"d":"$2,058,852.75"},{"v":1417446.75,"d":"$1,417,446.75"},{"v":3611831.9729999998,"d":"$3,611,831.97"},{"v":8636924.093,"d":"$8,636,924.09"},{"v":1439956.47,"d":"$1,439,956.47"},{"v":7196967.622999999,"d":"$7,196,967.62"},{"v":8719707.182999998,"d":"$8,719,707.18"},{"v":127166.34,"d":"$127,166.34"},{"v":127166.34,"d":"$127,166.34"},{"v":132594.17,"d":"$132,594.17"},{"v":132594.17,"d":"$132,594.17"},{"v":53502.91,"d":"$53,502.91"},{"v":53502.91,"d":"$53,502.91"},{"v":55829.12,"d":"$55,829.12"},{"v":55829.12,"d":"$55,829.12"},{"v":66684.79,"d":"$66,684.79"},{"v":831233.66,"d":"$831,233.66"},{"v":336710.56,"d":"$336,710.56"},{"v":129110.06,"d":"$129,110.06"},{"v":2101924.1500000004,"d":"$2,101,924.15"},{"v":20100396.32,"d":"$20,100,396.32"},{"v":138918.53000000006,"d":"$138,918.53"},{"v":11093.36,"d":"$11,093.36"},{"v":593602.6100000002,"d":"$593,602.61"},{"v":20100396.192999996,"d":"$20,100,396.19"}]
["56099161002","SUMMIT HILL SCHOOL DIST 161",2564.2,{"v":34074065.14,"d":"$34,074,065.14"},{"v":34395093.730000004,"d":"$34,395,093.73"},{"v":1.0094214936985357,"d":"101%"},4,{"v":2170.46,"d":"$2,170.46"},{"v":3039663.64,"d":"$3,039,663.64"},{"v":3041834.1,"d":"$3,041,834.10"},{"v":1.05749,"d":"1.06"},{"v":8517932.66,"d":"$8,517,932.66"},{"v":1703586.52,"d":"$1,703,586.52"},{"v":944634.38,"d":"$944,634.38"},{"v":418854.27,"d":"$418,854.27"},{"v":289984.45,"d":"$289,984.45"},{"v":592085.79,"d":"$592,085.79"},{"v":220556.27,"d":"$220,556.27"},{"v":357440.88,"d":"$357,440.88"},{"v":483622.83,"d":"$483,622.83"},{"v":268237.71,"d":"$268,237.71"},{"v":717469.57,"d":"$717,469.57"},{"v":617742.93,"d":"$617,742.93"},{"v":428912.21,"d":"$428,912.21"},{"v":15561060.470000003,"d":"$15,561,060.47"},{"v":228018.59999999998,"d":"$228,018.60"},{"v":320525,"d":"$320,525.00"},{"v":833365,"d":"$833,365.00"},{"v":87182.8,"d":"$87,182.80"},{"v":732079.1,"d":"$732,079.10"},{"v":439926.18,"d":"$439,926.18"},{"v":3489876.2,"d":"$3,489,876.20"},{"v":2402655.4,"d":"$2,402,655.40"},{"v":6119661.2358,"d":"$6,119,661.24"},{"v":14653289.515800001,"d":"$14,653,289.52"},{"v":2440810.69,"d":"$2,440,810.69"},{"v":12212478.8258,"d":"$12,212,478.83"},{"v":14793611.7158,"d":"$14,793,611.72"},{"v":217113.27,"d":"$217,113.27"},{"v":217113.27,"d":"$217,113.27"},{"v":225642.72,"d":"$225,642.72"},{"v":225642.72,"d":"$225,642.72"},{"v":118636.89,"d":"$118,636.89"},{"v":118636.89,"d":"$118,636.89"},{"v":124064.72,"d":"$124,064.72"},{"v":124064.72,"d":"$124,064.72"},{"v":148877.67,"d":"$148,877.67"},{"v":1409685.45,"d":"$1,409,685.45"},{"v":571025.94,"d":"$571,025.94"},{"v":218888.58,"d":"$218,888.58"},{"v":3719392.84,"d":"$3,719,392.84"},{"v":34074065.14,"d":"$34,074,065.14"},{"v":209594.46000000002,"d":"$209,594.46"},{"v":31929.7,"d":"$31,929.70"},{"v":1130361.08,"d":"$1,130,361.08"},{"v":34074065.025800005,"d":"$34,074,065.03"}]
["56099200U26","BEECHER C U SCH DIST 200U",1059.05,{"v":15383327.71,"d":"$15,383,327.71"},{"v":10627111.04,"d":"$10,627,111.04"},{"v":0.6908200384427745,"d":"69%"},1,{"v":530241.46,"d":"$530,241.46"},{"v":2925093.8000000003,"d":"$2,925,093.80"},{"v":3455335.2600000002,"d":"$3,455,335.26"},{"v":1.05749,"d":"1.06"},{"v":3692823.11,"d":"$3,692,823.11"},{"v":911545.97,"d":"$911,545.97"},{"v":409401.5,"d":"$409,401.50"},{"v":164452.19,"d":"$164,452.19"},{"v":125359.75,"d":"$125,359.75"},{"v":288707.37,"d":"$288,707.37"},{"v":90550.96,"d":"$90,550.96"},{"v":153592.78,"d":"$153,592.78"},{"v":182210.01,"d":"$182,210.01"},{"v":110247.58,"d":"$110,247.58"},{"v":270314.24,"d":"$270,314.24"},{"v":232741.17,"d":"$232,741.17"},{"v":184304.1,"d":"$184,304.10"},{"v":6816250.73,"d":"$6,816,250.73"},{"v":94932,"d":"$94,932.00"},{"v":132381.25,"d":"$132,381.25"},{"v":344191.25,"d":"$344,191.25"},{"v":36007.700000000004,"d":"$36,007.70"},{"v":604717.55,"d":"$604,717.55"},{"v":429001.05999999994,"d":"$429,001.06"},{"v":1441367.05,"d":"$1,441,367.05"},{"v":992329.85,"d":"$992,329.85"},{"v":2694191.9502,"d":"$2,694,191.95"},{"v":6769119.6602,"d":"$6,769,119.66"},{"v":1008088.51,"d":"$1,008,088.51"},{"v":5761031.1502,"d":"$5,761,031.15"},{"v":6827074.6602,"d":"$6,827,074.66"},{"v":141899.03,"d":"$141,899.03"},{"v":141899.03,"d":"$141,899.03"},{"v":147326.86,"d":"$147,326.86"},{"v":147326.86,"d":"$147,326.86"},{"v":47299.67,"d":"$47,299.67"},{"v":47299.67,"d":"$47,299.67"},{"v":49625.89,"d":"$49,625.89"},{"v":49625.89,"d":"$49,625.89"},{"v":59706.14,"d":"$59,706.14"},{"v":582328.81,"d":"$582,328.81"},{"v":235885.85,"d":"$235,885.85"},{"v":89778.52,"d":"$89,778.52"},{"v":1740002.2200000002,"d":"$1,740,002.22"},{"v":15383327.71,"d":"$15,383,327.71"},{"v":249106.24000000002,"d":"$249,106.24"},{"v":29297.51,"d":"$29,297.51"},{"v":412474.17000000004,"d":"$412,474.17"},{"v":15383327.6102,"d":"$15,383,327.61"}]
["56099201U26","CRETE MONEE C U SCHOOL DIST 201U",4320.96,{"v":68015820.13,"d":"$68,015,820.13"},{"v":49600210.49,"d":"$49,600,210.49"},{"v":0.7292452020015069,"d":"73%"},1,{"v":1527202.32,"d":"$1,527,202.32"},{"v":18982624.67,"d":"$18,982,624.67"},{"v":20509826.990000002,"d":"$20,509,826.99"},{"v":1.05749,"d":"1.06"},{"v":16097797.8,"d":"$16,097,797.80"},{"v":3975363.7,"d":"$3,975,363.70"},{"v":1674147.3,"d":"$1,674,147.30"},{"v":673332.35,"d":"$673,332.35"},{"v":573376.24,"d":"$573,376.24"},{"v":1180116.18,"d":"$1,180,116.18"},{"v":371258.95,"d":"$371,258.95"},{"v":628505.45,"d":"$628,505.45"},{"v":745869.01,"d":"$745,869.01"},{"v":451983.68,"d":"$451,983.68"},{"v":1106519.97,"d":"$1,106,519.97"},{"v":952716.21,"d":"$952,716.21"},{"v":754176.92,"d":"$754,176.92"},{"v":29185163.76,"d":"$29,185,163.76"},{"v":385016.39999999997,"d":"$385,016.40"},{"v":540120,"d":"$540,120.00"},{"v":1404312,"d":"$1,404,312.00"},{"v":146912.64,"d":"$146,912.64"},{"v":2467268.16,"d":"$2,467,268.16"},{"v":1749273.02,"d":"$1,749,273.02"},{"v":5880826.56,"d":"$5,880,826.56"},{"v":4048739.5199999996,"d":"$4,048,739.52"},{"v":12139981.360439997,"d":"$12,139,981.36"},{"v":28762449.660439998,"d":"$28,762,449.66"},{"v":4113035.4,"d":"$4,113,035.40"},{"v":24649414.260439996,"d":"$24,649,414.26"},{"v":28998908.060439996,"d":"$28,998,908.06"},{"v":1343000.66,"d":"$1,343,000.66"},{"v":1343000.66,"d":"$1,343,000.66"},{"v":1398829.79,"d":"$1,398,829.79"},{"v":1398829.79,"d":"$1,398,829.79"},{"v":120187.7,"d":"$120,187.70"},{"v":120187.7,"d":"$120,187.70"},{"v":124840.13,"d":"$124,840.13"},{"v":124840.13,"d":"$124,840.13"},{"v":150428.48,"d":"$150,428.48"},{"v":2375839.51,"d":"$2,375,839.51"},{"v":962389.16,"d":"$962,389.16"},{"v":369374.48,"d":"$369,374.48"},{"v":9831748.190000001,"d":"$9,831,748.19"},{"v":68015820.13,"d":"$68,015,820.13"},{"v":3766146.17,"d":"$3,766,146.17"},{"v":71346.12,"d":"$71,346.12"},{"v":2368807.61,"d":"$2,368,807.61"},{"v":68015820.01043999,"d":"$68,015,820.01"}]
["56099202022","PLAINFIELD SCHOOL DIST 202",24751.8,{"v":365842209.93,"d":"$365,842,209.93"},{"v":252082538.72,"d":"$252,082,538.72"},{"v":0.689047168089853,"d":"69%"},1,{"v":13186759.8,"d":"$13,186,759.80"},{"v":111443449.02000001,"d":"$111,443,449.02"},{"v":124630208.82000001,"d":"$124,630,208.82"},{"v":1.05749,"d":"1.06"},{"v":86122092.58,"d":"$86,122,092.58"},{"v":21455112.81,"d":"$21,455,112.81"},{"v":9614965.71,"d":"$9,614,965.71"},{"v":3855601.46,"d":"$3,855,601.46"},{"v":2991704.07,"d":"$2,991,704.07"},{"v":6845947.79,"d":"$6,845,947.79"},{"v":2133122.02,"d":"$2,133,122.02"},{"v":3609273.45,"d":"$3,609,273.45"},{"v":4263203.38,"d":"$4,263,203.38"},{"v":2590975.26,"d":"$2,590,975.26"},{"v":6324595.33,"d":"$6,324,595.33"},{"v":5445490.98,"d":"$5,445,490.98"},{"v":4330958.02,"d":"$4,330,958.02"},{"v":159583042.85999998,"d":"$159,583,042.86"},{"v":2211597,"d":"$2,211,597.00"},{"v":3093975,"d":"$3,093,975.00"},{"v":8044335,"d":"$8,044,335.00"},{"v":841561.2,"d":"$841,561.20"},{"v":14133277.8,"d":"$14,133,277.80"},{"v":10300539.92,"d":"$10,300,539.92"},{"v":33687199.8,"d":"$33,687,199.80"},{"v":23192436.599999998,"d":"$23,192,436.60"},{"v":64289164.6182,"d":"$64,289,164.62"},{"v":159794086.9382,"d":"$159,794,086.94"},{"v":23560743.38,"d":"$23,560,743.38"},{"v":136233343.5582,"d":"$136,233,343.56"},{"v":161148594.0682,"d":"$161,148,594.07"},{"v":3451325.61,"d":"$3,451,325.61"},{"v":3451325.61,"d":"$3,451,325.61"},{"v":3595550.86,"d":"$3,595,550.86"},{"v":3595550.86,"d":"$3,595,550.86"},{"v":1833056.33,"d":"$1,833,056.33"},{"v":1833056.33,"d":"$1,833,056.33"},{"v":1909045.98,"d":"$1,909,045.98"},{"v":1909045.98,"d":"$1,909,045.98"},{"v":2291320.42,"d":"$2,291,320.42"},{"v":13611451.33,"d":"$13,611,451.33"},{"v":5513635.56,"d":"$5,513,635.56"},{"v":2116208.01,"d":"$2,116,208.01"},{"v":45110572.88,"d":"$45,110,572.88"},{"v":365842209.93,"d":"$365,842,209.93"},{"v":6010086.42,"d":"$6,010,086.42"},{"v":1568515.7000000002,"d":"$1,568,515.70"},{"v":11761812.11,"d":"$11,761,812.11"},{"v":365842209.8082,"d":"$365,842,209.81"}]
["56099203004","ELWOOD C C SCH DIST 203",280.54,{"v":3991787.2,"d":"$3,991,787.20"},{"v":4380751.7,"d":"$4,380,751.70"},{"v":1.0974411912538824,"d":"110%"},4,{"v":254.27,"d":"$254.27"},{"v":318917.51,"d":"$318,917.51"},{"v":319171.78,"d":"$319,171.78"},{"v":1.05749,"d":"1.06"},{"v":991829.22,"d":"$991,829.22"},{"v":198365.84,"d":"$198,365.84"},{"v":103238.73,"d":"$103,238.73"},{"v":45720,"d":"$45,720.00"},{"v":34975.49,"d":"$34,975.49"},{"v":63579.68,"d":"$63,579.68"},{"v":23284.53,"d":"$23,284.53"},{"v":38947.86,"d":"$38,947.86"},{"v":52789.81,"d":"$52,789.81"},{"v":28896.8,"d":"$28,896.80"},{"v":78315.34,"d":"$78,315.34"},{"v":67429.68,"d":"$67,429.68"},{"v":46735.6,"d":"$46,735.60"},{"v":1774108.5800000003,"d":"$1,774,108.58"},{"v":24896.699999999997,"d":"$24,896.70"},{"v":35067.5,"d":"$35,067.50"},{"v":91175.5,"d":"$91,175.50"},{"v":9538.36,"d":"$9,538.36"},{"v":80094.16,"d":"$80,094.16"},{"v":47535.509999999995,"d":"$47,535.51"},{"v":381814.94,"d":"$381,814.94"},{"v":262865.98,"d":"$262,865.98"},{"v":727268.0025599998,"d":"$727,268.00"},{"v":1660256.6525599998,"d":"$1,660,256.65"},{"v":267040.41,"d":"$267,040.41"},{"v":1393216.24256,"d":"$1,393,216.24"},{"v":1675608.80256,"d":"$1,675,608.80"},{"v":61256.95,"d":"$61,256.95"},{"v":61256.95,"d":"$61,256.95"},{"v":63583.17,"d":"$63,583.17"},{"v":63583.17,"d":"$63,583.17"},{"v":10080.25,"d":"$10,080.25"},{"v":10080.25,"d":"$10,080.25"},{"v":10080.25,"d":"$10,080.25"},{"v":10080.25,"d":"$10,080.25"},{"v":12406.47,"d":"$12,406.47"},{"v":153530.09,"d":"$153,530.09"},{"v":62190.94,"d":"$62,190.94"},{"v":23940.93,"d":"$23,940.93"},{"v":542069.6699999999,"d":"$542,069.67"},{"v":3991787.2,"d":"$3,991,787.20"},{"v":64115.899999999994,"d":"$64,115.90"},{"v":139.28,"d":"$139.28"},{"v":56951.90999999999,"d":"$56,951.91"},{"v":3991787.05256,"d":"$3,991,787.05"}]
["56099204017","JOLIET TWP HS DIST 204",6814,{"v":117503724.25,"d":"$117,503,724.25"},{"v":96113907.46,"d":"$96,113,907.46"},{"v":0.8179647757845427,"d":"82%"},2,{"v":609869.4,"d":"$609,869.40"},{"v":24692901.02,"d":"$24,692,901.02"},{"v":25302770.419999998,"d":"$25,302,770.42"},{"v":1.05749,"d":"1.06"},{"v":26471069.05,"d":"$26,471,069.05"},{"v":8822807.31,"d":"$8,822,807.31"},{"v":2889680.62,"d":"$2,889,680.62"},{"v":962661.43,"d":"$962,661.43"},{"v":937248.81,"d":"$937,248.81"},{"v":2468430.17,"d":"$2,468,430.17"},{"v":587287.68,"d":"$587,287.68"},{"v":1070123.98,"d":"$1,070,123.98"},{"v":966394.21,"d":"$966,394.21"},{"v":713311.28,"d":"$713,311.28"},{"v":1433675.99,"d":"$1,433,675.99"},{"v":1234398.29,"d":"$1,234,398.29"},{"v":1284098.33,"d":"$1,284,098.33"},{"v":49841187.15,"d":"$49,841,187.15"},{"v":613260,"d":"$613,260.00"},{"v":851750,"d":"$851,750.00"},{"v":2214550,"d":"$2,214,550.00"},{"v":231676,"d":"$231,676.00"},{"v":3890794,"d":"$3,890,794.00"},{"v":5853226,"d":"$5,853,226.00"},{"v":9273854,"d":"$9,273,854.00"},{"v":6384718,"d":"$6,384,718.00"},{"v":20715900.173999995,"d":"$20,715,900.17"},{"v":50029728.173999995,"d":"$50,029,728.17"},{"v":6486110.32,"d":"$6,486,110.32"},{"v":43543617.853999995,"d":"$43,543,617.85"},{"v":50402614.65399999,"d":"$50,402,614.65"},{"v":2452604.56,"d":"$2,452,604.56"},{"v":2452604.56,"d":"$2,452,604.56"},{"v":2554957.96,"d":"$2,554,957.96"},{"v":2554957.96,"d":"$2,554,957.96"},{"v":262086.73,"d":"$262,086.73"},{"v":262086.73,"d":"$262,086.73"},{"v":272942.39,"d":"$272,942.39"},{"v":272942.39,"d":"$272,942.39"},{"v":327996.12,"d":"$327,996.12"},{"v":3746754.74,"d":"$3,746,754.74"},{"v":1517710.32,"d":"$1,517,710.32"},{"v":582277.84,"d":"$582,277.84"},{"v":17259922.3,"d":"$17,259,922.30"},{"v":117503724.25,"d":"$117,503,724.25"},{"v":8367039.08,"d":"$8,367,039.08"},{"v":177965.34,"d":"$177,965.34"},{"v":3079183.3,"d":"$3,079,183.30"},{"v":117503724.10399999,"d":"$117,503,724.10"}]
["56099205017","LOCKPORT TWP HS DIST 205",3838.5,{"v":59411952.77,"d":"$59,411,952.77"},{"v":49858559.52,"d":"$49,858,559.52"},{"v":0.8392008206331172,"d":"84%"},2,{"v":133979.97,"d":"$133,979.97"},{"v":3626801.7399999993,"d":"$3,626,801.74"},{"v":3760781.7099999995,"d":"$3,760,781.71"},{"v":1.05749,"d":"1.06"},{"v":13821612.98,"d":"$13,821,612.98"},{"v":4606743.6,"d":"$4,606,743.60"},{"v":1627618.76,"d":"$1,627,618.76"},{"v":541974.14,"d":"$541,974.14"},{"v":449913.11,"d":"$449,913.11"},{"v":1390473.5,"d":"$1,390,473.50"},{"v":330511.02,"d":"$330,511.02"},{"v":602749.6,"d":"$602,749.60"},{"v":544075.68,"d":"$544,075.68"},{"v":401728.37,"d":"$401,728.37"},{"v":807153.26,"d":"$807,153.26"},{"v":694960.8,"d":"$694,960.80"},{"v":723271.12,"d":"$723,271.12"},{"v":26542785.940000005,"d":"$26,542,785.94"},{"v":345465,"d":"$345,465.00"},{"v":479812.5,"d":"$479,812.50"},{"v":1247512.5,"d":"$1,247,512.50"},{"v":130509,"d":"$130,509.00"},{"v":2191783.5,"d":"$2,191,783.50"},{"v":3297271.5,"d":"$3,297,271.50"},{"v":5224198.5,"d":"$5,224,198.50"},{"v":3596674.5,"d":"$3,596,674.50"},{"v":10188495.834,"d":"$10,188,495.83"},{"v":26701722.834,"d":"$26,701,722.83"},{"v":3653791.38,"d":"$3,653,791.38"},{"v":23047931.454,"d":"$23,047,931.45"},{"v":26911779.294,"d":"$26,911,779.29"},{"v":584655.02,"d":"$584,655.02"},{"v":584655.02,"d":"$584,655.02"},{"v":608692.56,"d":"$608,692.56"},{"v":608692.56,"d":"$608,692.56"},{"v":51952.1,"d":"$51,952.10"},{"v":51952.1,"d":"$51,952.10"},{"v":54278.31,"d":"$54,278.31"},{"v":54278.31,"d":"$54,278.31"},{"v":65133.98,"d":"$65,133.98"},{"v":2110651.16,"d":"$2,110,651.16"},{"v":854968.44,"d":"$854,968.44"},{"v":327477.84,"d":"$327,477.84"},{"v":5957387.4,"d":"$5,957,387.40"},{"v":59411952.77,"d":"$59,411,952.77"},{"v":551582.3,"d":"$551,582.30"},{"v":30177.530000000002,"d":"$30,177.53"},{"v":1152208.06,"d":"$1,152,208.06"},{"v":59411952.634,"d":"$59,411,952.63"}]
["56099207U26","PEOTONE C U SCH DIST 207U",1294.78,{"v":18223297.93,"d":"$18,223,297.93"},{"v":20132700.15,"d":"$20,132,700.15"},{"v":1.1047780828330012,"d":"110%"},4,{"v":1160.79,"d":"$1,160.79"},{"v":1566401.54,"d":"$1,566,401.54"},{"v":1567562.33,"d":"$1,567,562.33"},{"v":1.05749,"d":"1.06"},{"v":4451054.62,"d":"$4,451,054.62"},{"v":1110790.41,"d":"$1,110,790.41"},{"v":501954.01,"d":"$501,954.01"},{"v":200993.49,"d":"$200,993.49"},{"v":149985.25,"d":"$149,985.25"},{"v":358209.44,"d":"$358,209.44"},{"v":110601.53,"d":"$110,601.53"},{"v":188457.4,"d":"$188,457.40"},{"v":222228.09,"d":"$222,228.09"},{"v":135061.14,"d":"$135,061.14"},{"v":329682.32,"d":"$329,682.32"},{"v":283857.22,"d":"$283,857.22"},{"v":226140,"d":"$226,140.00"},{"v":8269014.920000001,"d":"$8,269,014.92"},{"v":114970.5,"d":"$114,970.50"},{"v":161847.5,"d":"$161,847.50"},{"v":420803.5,"d":"$420,803.50"},{"v":44022.52,"d":"$44,022.52"},{"v":369659.68,"d":"$369,659.68"},{"v":538579.6699999999,"d":"$538,579.67"},{"v":1762195.5799999998,"d":"$1,762,195.58"},{"v":1213208.8599999999,"d":"$1,213,208.86"},{"v":3244333.30392,"d":"$3,244,333.30"},{"v":7869621.113919999,"d":"$7,869,621.11"},{"v":1232475.18,"d":"$1,232,475.18"},{"v":6637145.93392,"d":"$6,637,145.93"},{"v":7940476.10392,"d":"$7,940,476.10"},{"v":173690.61,"d":"$173,690.61"},{"v":173690.61,"d":"$173,690.61"},{"v":180669.25,"d":"$180,669.25"},{"v":180669.25,"d":"$180,669.25"},{"v":36444.01,"d":"$36,444.01"},{"v":36444.01,"d":"$36,444.01"},{"v":37994.82,"d":"$37,994.82"},{"v":37994.82,"d":"$37,994.82"},{"v":45748.86,"d":"$45,748.86"},{"v":711821.37,"d":"$711,821.37"},{"v":288339.83,"d":"$288,339.83"},{"v":110299.32,"d":"$110,299.32"},{"v":2013806.76,"d":"$2,013,806.76"},{"v":18223297.93,"d":"$18,223,297.93"},{"v":200241.86000000002,"d":"$200,241.86"},{"v":648.26,"d":"$648.26"},{"v":587515.78,"d":"$587,515.78"},{"v":18223297.78392,"d":"$18,223,297.78"}]
["56099209U26","WILMINGTON C U SCH DIST 209U",1252.75,{"v":18288312.44,"d":"$18,288,312.44"},{"v":13954741.89,"d":"$13,954,741.89"},{"v":0.7630415291614517,"d":"76%"},1,{"v":155830.57,"d":"$155,830.57"},{"v":2691215.7699999996,"d":"$2,691,215.77"},{"v":2847046.3399999994,"d":"$2,847,046.34"},{"v":1.05749,"d":"1.06"},{"v":4428881.53,"d":"$4,428,881.53"},{"v":1094258.4,"d":"$1,094,258.40"},{"v":484585.62,"d":"$484,585.62"},{"v":194429.69,"d":"$194,429.69"},{"v":149363.7,"d":"$149,363.70"},{"v":340870.22,"d":"$340,870.22"},{"v":107367.57,"d":"$107,367.57"},{"v":181861.39,"d":"$181,861.39"},{"v":215416.5,"d":"$215,416.50"},{"v":130977.89,"d":"$130,977.89"},{"v":319577.11,"d":"$319,577.11"},{"v":275156.62,"d":"$275,156.62"},{"v":218225.1,"d":"$218,225.10"},{"v":8140971.34,"d":"$8,140,971.34"},{"v":111105,"d":"$111,105.00"},{"v":156593.75,"d":"$156,593.75"},{"v":407143.75,"d":"$407,143.75"},{"v":42593.5,"d":"$42,593.50"},{"v":715320.25,"d":"$715,320.25"},{"v":506021.5,"d":"$506,021.50"},{"v":1704992.75,"d":"$1,704,992.75"},{"v":1173826.75,"d":"$1,173,826.75"},{"v":3207497.475,"d":"$3,207,497.48"},{"v":8025094.725,"d":"$8,025,094.73"},{"v":1192467.67,"d":"$1,192,467.67"},{"v":6832627.055,"d":"$6,832,627.06"},{"v":8093649.685,"d":"$8,093,649.69"},{"v":224867.31,"d":"$224,867.31"},{"v":224867.31,"d":"$224,867.31"},{"v":234172.17,"d":"$234,172.17"},{"v":234172.17,"d":"$234,172.17"},{"v":11631.06,"d":"$11,631.06"},{"v":11631.06,"d":"$11,631.06"},{"v":11631.06,"d":"$11,631.06"},{"v":11631.06,"d":"$11,631.06"},{"v":14732.68,"d":"$14,732.68"},{"v":688559.23,"d":"$688,559.23"},{"v":278916.96,"d":"$278,916.96"},{"v":106879.19,"d":"$106,879.19"},{"v":2053691.2600000002,"d":"$2,053,691.26"},{"v":18288312.44,"d":"$18,288,312.44"},{"v":447363.80000000005,"d":"$447,363.80"},{"v":1667.56,"d":"$1,667.56"},{"v":254227.10000000003,"d":"$254,227.10"},{"v":18288312.285,"d":"$18,288,312.29"}]
["56099210016","LINCOLN WAY COMM H S DIST 210",6695.48,{"v":98579273.55,"d":"$98,579,273.55"},{"v":72004996.69,"d":"$72,004,996.69"},{"v":0.730427341336398,"d":"73%"},1,{"v":1865817.89,"d":"$1,865,817.89"},{"v":9528219.76,"d":"$9,528,219.76"},{"v":11394037.65,"d":"$11,394,037.65"},{"v":1.05749,"d":"1.06"},{"v":23252302.41,"d":"$23,252,302.41"},{"v":7749992.38,"d":"$7,749,992.38"},{"v":2838791.03,"d":"$2,838,791.03"},{"v":945698.23,"d":"$945,698.23"},{"v":726606.49,"d":"$726,606.49"},{"v":2425855.41,"d":"$2,425,855.41"},{"v":576939,"d":"$576,939.00"},{"v":1051278.24,"d":"$1,051,278.24"},{"v":949365.24,"d":"$949,365.24"},{"v":700747.46,"d":"$700,747.46"},{"v":1408412.98,"d":"$1,408,412.98"},{"v":1212646.78,"d":"$1,212,646.78"},{"v":1261484.33,"d":"$1,261,484.33"},{"v":45100119.980000004,"d":"$45,100,119.98"},{"v":602593.2,"d":"$602,593.20"},{"v":836935,"d":"$836,935.00"},{"v":2176031,"d":"$2,176,031.00"},{"v":227646.31999999998,"d":"$227,646.32"},{"v":3823119.08,"d":"$3,823,119.08"},{"v":5751417.319999999,"d":"$5,751,417.32"},{"v":9112548.28,"d":"$9,112,548.28"},{"v":6273664.76,"d":"$6,273,664.76"},{"v":16667969.32572,"d":"$16,667,969.33"},{"v":45471924.28571999,"d":"$45,471,924.29"},{"v":6373293.5,"d":"$6,373,293.50"},{"v":39098630.78572,"d":"$39,098,630.79"},{"v":45838324.92572,"d":"$45,838,324.93"},{"v":392354.69,"d":"$392,354.69"},{"v":392354.69,"d":"$392,354.69"},{"v":408638.19,"d":"$408,638.19"},{"v":408638.19,"d":"$408,638.19"},{"v":55053.72,"d":"$55,053.72"},{"v":55053.72,"d":"$55,053.72"},{"v":57379.93,"d":"$57,379.93"},{"v":57379.93,"d":"$57,379.93"},{"v":69011,"d":"$69,011.00"},{"v":3681620.76,"d":"$3,681,620.76"},{"v":1491326.28,"d":"$1,491,326.28"},{"v":572017.43,"d":"$572,017.43"},{"v":7640828.529999999,"d":"$7,640,828.53"},{"v":98579273.55,"d":"$98,579,273.55"},{"v":428002.36000000004,"d":"$428,002.36"},{"v":23739.879999999997,"d":"$23,739.88"},{"v":2091253.4699999997,"d":"$2,091,253.47"},{"v":98579273.43572,"d":"$98,579,273.44"}]
["56099255U26","REED CUSTER C U SCH DIST 255U",1341.69,{"v":19347537.19,"d":"$19,347,537.19"},{"v":27243716.580000002,"d":"$27,243,716.58"},{"v":1.4081232310064369,"d":"141%"},4,{"v":1232.4,"d":"$1,232.40"},{"v":1174033.5199999998,"d":"$1,174,033.52"},{"v":1175265.9199999997,"d":"$1,175,265.92"},{"v":1.05749,"d":"1.06"},{"v":4784997.46,"d":"$4,784,997.46"},{"v":1179727.11,"d":"$1,179,727.11"},{"v":519319.86,"d":"$519,319.86"},{"v":208256.95,"d":"$208,256.95"},{"v":161902.53,"d":"$161,902.53"},{"v":361960.97,"d":"$361,960.97"},{"v":114482.29,"d":"$114,482.29"},{"v":194739.32,"d":"$194,739.32"},{"v":230742.58,"d":"$230,742.58"},{"v":140086.67,"d":"$140,086.67"},{"v":342313.82,"d":"$342,313.82"},{"v":294732.98,"d":"$294,732.98"},{"v":233678,"d":"$233,678.00"},{"v":8766940.540000001,"d":"$8,766,940.54"},{"v":119455.19999999998,"d":"$119,455.20"},{"v":167711.25,"d":"$167,711.25"},{"v":436049.25,"d":"$436,049.25"},{"v":45617.45999999999,"d":"$45,617.46"},{"v":383052.48,"d":"$383,052.48"},{"v":538298.1399999999,"d":"$538,298.14"},{"v":1826040.0899999999,"d":"$1,826,040.09"},{"v":1257163.53,"d":"$1,257,163.53"},{"v":3467290.76616,"d":"$3,467,290.77"},{"v":8240678.16616,"d":"$8,240,678.17"},{"v":1277127.87,"d":"$1,277,127.87"},{"v":6963550.29616,"d":"$6,963,550.30"},{"v":8314100.246160001,"d":"$8,314,100.25"},{"v":255108.09,"d":"$255,108.09"},{"v":255108.09,"d":"$255,108.09"},{"v":265188.35,"d":"$265,188.35"},{"v":265188.35,"d":"$265,188.35"},{"v":13957.28,"d":"$13,957.28"},{"v":13957.28,"d":"$13,957.28"},{"v":14732.68,"d":"$14,732.68"},{"v":14732.68,"d":"$14,732.68"},{"v":17834.3,"d":"$17,834.30"},{"v":737409.71,"d":"$737,409.71"},{"v":298704.99,"d":"$298,704.99"},{"v":114574.49,"d":"$114,574.49"},{"v":2266496.29,"d":"$2,266,496.29"},{"v":19347537.19,"d":"$19,347,537.19"},{"v":387384.69,"d":"$387,384.69"},{"v":45.730000000000004,"d":"$45.73"},{"v":386610.59,"d":"$386,610.59"},{"v":19347537.07616,"d":"$19,347,537.08"}]
["56099365U26","VALLEY VIEW CUSD #365U",15070.44,{"v":245910973.35,"d":"$245,910,973.35"},{"v":205292969.39,"d":"$205,292,969.39"},{"v":0.8348263869372383,"d":"83%"},2,{"v":857329.91,"d":"$857,329.91"},{"v":51122956.77,"d":"$51,122,956.77"},{"v":51980286.68,"d":"$51,980,286.68"},{"v":1.05749,"d":"1.06"},{"v":55767852.93,"d":"$55,767,852.93"},{"v":13824493.13,"d":"$13,824,493.13"},{"v":5847114.15,"d":"$5,847,114.15"},{"v":2349419.92,"d":"$2,349,419.92"},{"v":2097394.3,"d":"$2,097,394.30"},{"v":4154108.23,"d":"$4,154,108.23"},{"v":1298759.55,"d":"$1,298,759.55"},{"v":2195214.7,"d":"$2,195,214.70"},{"v":2600324.17,"d":"$2,600,324.17"},{"v":1577074.4,"d":"$1,577,074.40"},{"v":3857662.1,"d":"$3,857,662.10"},{"v":3321455.85,"d":"$3,321,455.85"},{"v":2634154.17,"d":"$2,634,154.17"},{"v":101525027.60000001,"d":"$101,525,027.60"},{"v":1345187.7,"d":"$1,345,187.70"},{"v":1883805,"d":"$1,883,805.00"},{"v":4897893,"d":"$4,897,893.00"},{"v":512394.95999999996,"d":"$512,394.96"},{"v":8605221.24,"d":"$8,605,221.24"},{"v":6192357.549999999,"d":"$6,192,357.55"},{"v":20510868.84,"d":"$20,510,868.84"},{"v":14121002.279999997,"d":"$14,121,002.28"},{"v":44219132.12916,"d":"$44,219,132.13"},{"v":102287862.69916,"d":"$102,287,862.70"},{"v":14345250.42,"d":"$14,345,250.42"},{"v":87942612.27916,"d":"$87,942,612.28"},{"v":103112571.13915999,"d":"$103,112,571.14"},{"v":4422907.51,"d":"$4,422,907.51"},{"v":4422907.51,"d":"$4,422,907.51"},{"v":4607453.79,"d":"$4,607,453.79"},{"v":4607453.79,"d":"$4,607,453.79"},{"v":1927655.69,"d":"$1,927,655.69"},{"v":1927655.69,"d":"$1,927,655.69"},{"v":2007522.36,"d":"$2,007,522.36"},{"v":2007522.36,"d":"$2,007,522.36"},{"v":2409181.91,"d":"$2,409,181.91"},{"v":8287523.75,"d":"$8,287,523.75"},{"v":3357054.62,"d":"$3,357,054.62"},{"v":1288535.54,"d":"$1,288,535.54"},{"v":41273374.519999996,"d":"$41,273,374.52"},{"v":245910973.35,"d":"$245,910,973.35"},{"v":10650471.680000002,"d":"$10,650,471.68"},{"v":1394158.6,"d":"$1,394,158.60"},{"v":7470743.940000001,"d":"$7,470,743.94"},{"v":245910973.25915998,"d":"$245,910,973.26"}]
[null,"ILLINOIS STATE UNIVERSITY LAB SCH",1042,{"v":12899513.34,"d":"$12,899,513.34"},{"v":8248428.55,"d":"$8,248,428.55"},{"v":0.6394371890311948,"d":"64%"},1,{"v":745829.27,"d":"$745,829.27"},{"v":6958477.22,"d":"$6,958,477.22"},{"v":7704306.49,"d":"$7,704,306.49"},{"v":0.90122,"d":"0.90"},{"v":2963273.86,"d":"$2,963,273.86"},{"v":830837.83,"d":"$830,837.83"},{"v":356583.38,"d":"$356,583.38"},{"v":132896.46,"d":"$132,896.46"},{"v":91308.19,"d":"$91,308.19"},{"v":271956.65,"d":"$271,956.65"},{"v":76067.42,"d":"$76,067.42"},{"v":132769.46,"d":"$132,769.46"},{"v":142222.75,"d":"$142,222.75"},{"v":92885.08,"d":"$92,885.08"},{"v":210991.89,"d":"$210,991.89"},{"v":181664.5,"d":"$181,664.50"},{"v":159317.09,"d":"$159,317.09"},{"v":5642774.5600000005,"d":"$5,642,774.56"},{"v":93780,"d":"$93,780.00"},{"v":130250,"d":"$130,250.00"},{"v":338650,"d":"$338,650.00"},{"v":35428,"d":"$35,428.00"},{"v":594982,"d":"$594,982.00"},{"v":602462,"d":"$602,462.00"},{"v":1418162,"d":"$1,418,162.00"},{"v":976354,"d":"$976,354.00"},{"v":2400058.9679999994,"d":"$2,400,058.97"},{"v":6590126.967999999,"d":"$6,590,126.97"},{"v":991858.96,"d":"$991,858.96"},{"v":5598268.007999999,"d":"$5,598,268.01"},{"v":6492151.137999999,"d":"$6,492,151.14"},{"v":660.81,"d":"$660.81"},{"v":660.81,"d":"$660.81"},{"v":660.81,"d":"$660.81"},{"v":660.81,"d":"$660.81"},{"v":0,"d":"$0.00"},{"v":0,"d":"$0.00"},{"v":0,"d":"$0.00"},{"v":0,"d":"$0.00"},{"v":0,"d":"$0.00"},{"v":488345.65,"d":"$488,345.65"},{"v":197815.78,"d":"$197,815.78"},{"v":75782.86,"d":"$75,782.86"},{"v":764587.53,"d":"$764,587.53"},{"v":12899513.34,"d":"$12,899,513.34"},{"v":973.51,"d":"$973.51"},{"v":0,"d":"$0.00"},{"v":149896.63,"d":"$149,896.63"},{"v":12899513.227999998,"d":"$12,899,513.23"}]
[null,"UNIVERSITY OF ILLINOIS LAB SCHOOL",310.81,{"v":3913544.39,"d":"$3,913,544.39"},{"v":2622933.9000000004,"d":"$2,622,933.90"},{"v":0.6702195346760843,"d":"67%"},1,{"v":183328.33,"d":"$183,328.33"},{"v":2231579.47,"d":"$2,231,579.47"},{"v":2414907.8000000003,"d":"$2,414,907.80"},{"v":0.9,"d":"0.90"},{"v":873314.34,"d":"$873,314.34"},{"v":269826.36,"d":"$269,826.36"},{"v":108242.44,"d":"$108,242.44"},{"v":38382,"d":"$38,382.00"},{"v":26737.67,"d":"$26,737.67"},{"v":92461.77,"d":"$92,461.77"},{"v":22018.68,"d":"$22,018.68"},{"v":40365.01,"d":"$40,365.01"},{"v":39855.42,"d":"$39,855.42"},{"v":27533.75,"d":"$27,533.75"},{"v":59126.76,"d":"$59,126.76"},{"v":50908.27,"d":"$50,908.27"},{"v":48436.11,"d":"$48,436.11"},{"v":1697208.5799999998,"d":"$1,697,208.58"},{"v":27972.899999999994,"d":"$27,972.90"},{"v":38851.25,"d":"$38,851.25"},{"v":101013.24999999999,"d":"$101,013.25"},{"v":10567.539999999999,"d":"$10,567.54"},{"v":177472.51,"d":"$177,472.51"},{"v":228153.18999999997,"d":"$228,153.19"},{"v":423012.41,"d":"$423,012.41"},{"v":291228.97,"d":"$291,228.97"},{"v":721097.13084,"d":"$721,097.13"},{"v":2019369.1508399998,"d":"$2,019,369.15"},{"v":295853.82,"d":"$295,853.82"},{"v":1723515.3308399997,"d":"$1,723,515.33"},{"v":1989783.7608399997,"d":"$1,989,783.76"},{"v":0,"d":"$0.00"},{"v":0,"d":"$0.00"},{"v":0,"d":"$0.00"},{"v":0,"d":"$0.00"},{"v":0,"d":"$0.00"},{"v":0,"d":"$0.00"},{"v":0,"d":"$0.00"},{"v":0,"d":"$0.00"},{"v":0,"d":"$0.00"},{"v":145183.5,"d":"$145,183.50"},{"v":58809.96,"d":"$58,809.96"},{"v":22558.54,"d":"$22,558.54"},{"v":226552,"d":"$226,552.00"},{"v":3913544.39,"d":"$3,913,544.39"},{"v":223.57,"d":"$223.57"},{"v":0,"d":"$0.00"},{"v":41979.770000000004,"d":"$41,979.77"},{"v":3913544.3408399997,"d":"$3,913,544.34"}]
[null,null,{"$f":"SUM(C3:C932)","v":1825203.3799999985},{"$f":"SUM(D3:D932)","v":{"v":28085929931.529984,"d":"$28,085,929,931.53"}},{"$f":"SUM(E3:E932)","v":{"v":24646145895.130005,"d":"$24,646,145,895.13"}},null,null,{"$f":"SUM(H3:H932)","v":{"v":299999995.2699996,"d":"$299,999,995.27"}},{"$f":"SUM(I3:I932)","v":{"v":7843003362.360007,"d":"$7,843,003,362.36"}},{"$f":"SUM(J3:J932)","v":{"v":8143003357.63,"d":"$8,143,003,357.63"}},null,{"$f":"SUM(L3:L932)","v":{"v":6437701420.3,"d":"$6,437,701,420.30"}},{"v":1575220418.530002,"d":"$1,575,220,418.53"},{"v":674557854.3799998,"d":"$674,557,854.38"},{"v":272316885.72999996,"d":"$272,316,885.73"},{"v":235396834.40999973,"d":"$235,396,834.41"},{"v":472043502.36,"d":"$472,043,502.36"},{"v":149889853.91000018,"d":"$149,889,853.91"},{"v":253346105.4399997,"d":"$253,346,105.44"},{"v":302215265.7999996,"d":"$302,215,265.80"},{"v":182420662.73999998,"d":"$182,420,662.74"},{"v":448345784.8800002,"d":"$448,345,784.88"},{"v":386026741.84000075,"d":"$386,026,741.84"},{"v":304003385.7499998,"d":"$304,003,385.75"},{"v":11693484716.070002,"d":"$11,693,484,716.07"},{"v":163161398.70000005,"d":"$163,161,398.70"},{"v":228150422.5,"d":"$228,150,422.50"},{"v":593191098.5,"d":"$593,191,098.50"},{"v":62056914.92000001,"d":"$62,056,914.92"},{"v":928415296.1999998,"d":"$928,415,296.20"},{"v":720033204.2099992,"d":"$720,033,204.21"},{"v":2484101800.180001,"d":"$2,484,101,800.18"},{"v":1710215567.060001,"d":"$1,710,215,567.06"},{"v":5186567145.763319,"d":"$5,186,567,145.76"},null,{"$f":"SUM(AJ3:AJ932)","v":{"v":1737374590.3899987,"d":"$1,737,374,590.39"}},{"v":10338518257.64333,"d":"$10,338,518,257.64"},{"v":12095241959.153326,"d":"$12,095,241,959.15"},{"v":479084719.6100002,"d":"$479,084,719.61"},{"v":479084719.6100002,"d":"$479,084,719.61"},{"v":499068578.50000006,"d":"$499,068,578.50"},{"v":499068578.50000006,"d":"$499,068,578.50"},{"v":158226919.90999967,"d":"$158,226,919.91"},{"v":158226919.90999967,"d":"$158,226,919.91"},{"v":164804621.36999995,"d":"$164,804,621.37"},{"v":164804621.36999995,"d":"$164,804,621.37"},{"v":197915625.75999993,"d":"$197,915,625.76"},{"v":959412606.67,"d":"$959,412,606.67"},{"v":388632431.5400002,"d":"$388,632,431.54"},{"v":148872820.99000022,"d":"$148,872,820.99"},{"v":4297203163.739994,"d":"$4,297,203,163.74"},{"v":28085929931.529984,"d":"$28,085,929,931.53"},{"v":2049010515.0000002,"d":"$2,049,010,515.00"},{"v":163238611.60000017,"d":"$163,238,611.60"},{"v":1017802629.040001,"d":"$1,017,802,629.04"},{"v":28085929838.963284,"d":"$28,085,929,838.96"}]
[{"$nulls":52},"Totals from FY24 Tier Funding and Student Allocations File"]
[null,"Column Totals Full Calc",6,14,19,null,null,40,42,43,{"$nulls":14},8,15,20,25,30,35,40,45,50,58,null,62,63,{"$nulls":15},6,5,4]
[null,null,1825203.3799999983,{"v":28085929931.529984,"d":"$28,085,929,931.53"},{"v":24646145895.130005,"d":"$24,646,145,895.13"},null,null,{"v":299999995.2699996,"d":"$299,999,995.27"},{"v":7843003362.360007,"d":"$7,843,003,362.36"},{"v":8143003357.63,"d":"$8,143,003,357.63"},{"$nulls":14},{"v":11693484770.428982,"d":"$11,693,484,770.43"},{"v":163161398.70000005,"d":"$163,161,398.70"},{"v":228150422.5,"d":"$228,150,422.50"},{"v":593191098.5,"d":"$593,191,098.50"},{"v":62056914.92000001,"d":"$62,056,914.92"},{"v":928415296.1999998,"d":"$928,415,296.20"},{"v":720033204.2099992,"d":"$720,033,204.21"},{"v":2484101800.180001,"d":"$2,484,101,800.18"},{"v":1710215567.060001,"d":"$1,710,215,567.06"},{"v":5186567145.763319,"d":"$5,186,567,145.76"},null,{"v":1737374590.3899987,"d":"$1,737,374,590.39"},{"v":10338518257.64333,"d":"$10,338,518,257.64"},{"$nulls":15},{"v":2049010515.0000002,"d":"$2,049,010,515.00"},{"v":163238611.60000014,"d":"$163,238,611.60"},{"v":1017802629.0400012,"d":"$1,017,802,629.04"},"Difference (AZ-BD)"]
[null,"Difference",{"$f":"C933-C936","v":0},{"$f":"D933-D936","v":0},{"$f":"E933-E936","v":0},null,null,0,0,0,{"$nulls":14},{"$f":"Y933-Y936","v":{"v":-54.35898017883301,"d":"$(54.36)"}},{"$f":"Z933-Z936","v":0},0,0,0,0,0,0,0,0,null,{"$f":"AJ933-AJ936","v":0},{"$f":"AK933-AK936","v":0},{"$nulls":15},{"$f":"BA933-BA936","v":0},{"$f":"BB933-BB936","v":0},0,{"$f":"AZ933-BD933","v":{"v":92.56669998168945,"d":"$92.57"}}]
[]
[null,"*Note that St. Anne 24 is added to the list of Org Units. EBF values are calculated as (in general) the sum of prior year distributions to the consolidated districts (256 and 302). Values are removed from the consolidated districts."]

{"sheet":"EBF Spending Plan Data Table","index":15,"n_rows":204,"n_cols":3,"rows_kept":204,"hidden":true,"merged":[[0,0,0,1]]}
["Spending Plan Responses for Reporting"]
[]
["FieldName","FieldValue","Item Tag"]
["distname",{"$f":"'EBF Spending Plan 30-34'!A2","v":"HOOVER-SCHRUM MEMORIAL SD 157"},"Part I"]
["distid",{"$f":"IF('EBF Spending Plan 30-34'!O1=\"\",\"\",'EBF Spending Plan 30-34'!O1&\"00\")","v":"0701615700200"},"Part I"]
["1_1",{"$f":"'EBF Spending Plan 30-34'!B7","v":"Hoover Schrum Memorial School District 157 will set goals for student success that align with broader educational objectives.  These goals will focus on academic achievement, standardized test scores, student well-being, and more. Creating a nurturing learning community where excellence is expected of everyone.\nCreating a nurturing learning community where excellence is expected of everyone requires a comprehensive approach that involves strategies and initiatives.  Some steps we include in this process is:\n1. Clear Vision and Mission\n2. Leadership Support\n3. High Expectations\n4. Inclusive Environment\n5. Effective Teaching\n6. Student Support Services\n7. Parent and Community Engagement\n8. Positive Behavior Supports\n9. Safe and Well-Maintained Facilities\n10. Technology Integration\nJust to name a few. Student success will be measured using a combination of academic performance (grades, test scores), personal growth (skills development, critical thinking) and overall well-being (attendance, engagement, mental helath). "},"Part I"]
["1_2a",{"$f":"'EBF Spending Plan 30-34'!G11","v":"Maintain or expand early childhood programming"},"Part I"]
["1_2b",{"$f":"'EBF Spending Plan 30-34'!I11","v":"Increase the number of high-quality educators dedicated to special student groups"},"Part I"]
["1_2c",{"$f":"'EBF Spending Plan 30-34'!L11","v":"Improve programs, curriculum, and/or learning tools"},"Part I"]
["1_2d",{"$f":"IF('EBF Spending Plan 30-34'!G12=\"\",\"\",'EBF Spending Plan 30-34'!G12)","v":""},"Part I"]
["PYD_ASE",{"$f":"'EBF Spending Plan 30-34'!G18","v":803.81},"PY Distribution"]
["PYD_AT",{"$f":"'EBF Spending Plan 30-34'!J18","v":13556327.83},"PY Distribution"]
["PYD_FR",{"$f":"'EBF Spending Plan 30-34'!G20","v":10877534.83},"PY Distribution"]
["PYD_AP",{"$f":"'EBF Spending Plan 30-34'!J20","v":{"v":0.8023953806965437,"d":"80%"}},"PY Distribution"]
["PYD_Tier",{"$f":"'EBF Spending Plan 30-34'!G22","v":2},"PY Distribution"]
["PYD_BFM",{"$f":"'EBF Spending Plan 30-34'!G24","v":7352394.44},"PY Distribution"]
["PDY_GSC",{"$f":"'EBF Spending Plan 30-34'!J22","v":7452400.140000001},"PY Distribution"]
["PYD_TF",{"$f":"'EBF Spending Plan 30-34'!J24","v":100005.7},"PY Distribution"]
["PYD_LIA",{"$f":"'EBF Spending Plan 30-34'!G26","v":1959131.7299999997},"PY Distribution"]
["PYD_ELA",{"$f":"'EBF Spending Plan 30-34'!G27","v":41951.83},"PY Distribution"]
["PYD_SPEDA",{"$f":"'EBF Spending Plan 30-34'!G28","v":317522.38999999996},"PY Distribution"]
["2_1a",{"$f":"'EBF Spending Plan 30-34'!G31","v":107412},"Part II"]
["2_1b",{"$f":"'EBF Spending Plan 30-34'!H31","v":"Estimated"},"Part II"]
["2_2a",{"$f":"'EBF Spending Plan 30-34'!G35","v":"EBF student allocations and/or cost factors"},"Part II"]
["2_2b",{"$f":"'EBF Spending Plan 30-34'!I35","v":"Attendance data (e.g., chronic absenteeism, graduation or dropout rates)"},"Part II"]
["2_2c",{"$f":"'EBF Spending Plan 30-34'!L35","v":"Student growth and achievement data, disaggregated by student groups"},"Part II"]
["2_3a",{"$f":"IF('EBF Spending Plan 30-34'!H37=\"\",\"\",'EBF Spending Plan 30-34'!H37)","v":"Yes"},"Part II"]
["2_3b",{"$f":"IF('EBF Spending Plan 30-34'!H38=\"\",\"\",'EBF Spending Plan 30-34'!H38)","v":"Yes"},"Part II"]
["2_3c",{"$f":"IF('EBF Spending Plan 30-34'!H39=\"\",\"\",'EBF Spending Plan 30-34'!H39)","v":"Yes"},"Part II"]
["2_3d",{"$f":"IF('EBF Spending Plan 30-34'!H40=\"\",\"\",'EBF Spending Plan 30-34'!H40)","v":"Yes"},"Part II"]
["2_3e",{"$f":"IF('EBF Spending Plan 30-34'!K37=\"\",\"\",'EBF Spending Plan 30-34'!K37)","v":"Yes"},"Part II"]
["2_3f",{"$f":"IF('EBF Spending Plan 30-34'!K38=\"\",\"\",'EBF Spending Plan 30-34'!K38)","v":""},"Part II"]
["2_3g",{"$f":"IF('EBF Spending Plan 30-34'!K39=\"\",\"\",'EBF Spending Plan 30-34'!K39)","v":"Yes"},"Part II"]
["2_3h",{"$f":"IF('EBF Spending Plan 30-34'!K40=\"\",\"\",'EBF Spending Plan 30-34'!K40)","v":""},"Part II"]
["2_3i",{"$f":"IF('EBF Spending Plan 30-34'!M37=\"\",\"\",'EBF Spending Plan 30-34'!M37)","v":"Yes"},"Part II"]
["2_3j",{"$f":"IF('EBF Spending Plan 30-34'!M38=\"\",\"\",'EBF Spending Plan 30-34'!M38)","v":""},"Part II"]
["2_3k",{"$f":"IF('EBF Spending Plan 30-34'!M39=\"\",\"\",'EBF Spending Plan 30-34'!M39)","v":""},"Part II"]
["2_3l",{"$f":"IF('EBF Spending Plan 30-34'!M40=\"\",\"\",'EBF Spending Plan 30-34'!M40)","v":""},"Part II"]
["2_3m",{"$f":"IF('EBF Spending Plan 30-34'!G41=\"\",\"\",'EBF Spending Plan 30-34'!G41)","v":""},"Part II"]
["2_4a",{"$f":"'EBF Spending Plan 30-34'!G43","v":"Core Teachers"},"Part II"]
["2_4b",{"$f":"'EBF Spending Plan 30-34'!I43","v":"Instructional Materials"},"Part II"]
["2_4c",{"$f":"'EBF Spending Plan 30-34'!L43","v":"Assessments"},"Part II"]
["2_4d",{"$f":"IF('EBF Spending Plan 30-34'!G44=\"\",\"\",'EBF Spending Plan 30-34'!G44)","v":""},"Part II"]
["PYAT_1",{"$f":"'EBF Spending Plan 30-34'!F52","v":3150256.11},"PY Adequacy"]
["PYAT_2",{"$f":"'EBF Spending Plan 30-34'!F53","v":630051.22},"PY Adequacy"]
["PYAT_3",{"$f":"'EBF Spending Plan 30-34'!F54","v":295705.22},"PY Adequacy"]
["PYAT_4",{"$f":"'EBF Spending Plan 30-34'!F55","v":130523.25},"PY Adequacy"]
["PYAT_5",{"$f":"'EBF Spending Plan 30-34'!F56","v":123021.74},"PY Adequacy"]
["PYAT_6",{"$f":"'EBF Spending Plan 30-34'!F57","v":182791.58},"PY Adequacy"]
["PYAT_7",{"$f":"'EBF Spending Plan 30-34'!F58","v":68560.01},"PY Adequacy"]
["PYAT_8",{"$f":"'EBF Spending Plan 30-34'!F59","v":111818.06},"PY Adequacy"]
["PYAT_9",{"$f":"'EBF Spending Plan 30-34'!F60","v":150706.41},"PY Adequacy"]
["PYAT_10",{"$f":"'EBF Spending Plan 30-34'!F61","v":83863.54},"PY Adequacy"]
["PYAT_11",{"$f":"'EBF Spending Plan 30-34'!F62","v":223577.66},"PY Adequacy"]
["PYAT_12",{"$f":"'EBF Spending Plan 30-34'!F63","v":192500.87},"PY Adequacy"]
["PYAT_13",{"$f":"'EBF Spending Plan 30-34'!F64","v":134176.4},"PY Adequacy"]
["PYAT_STCI",{"$f":"'EBF Spending Plan 30-34'!F65","v":5477552.07},"PY Adequacy"]
["PYAT_14",{"$f":"'EBF Spending Plan 30-34'!F66","v":71998.2},"PY Adequacy"]
["PYAT_15",{"$f":"'EBF Spending Plan 30-34'!F67","v":100476.25},"PY Adequacy"]
["PYAT_16",{"$f":"'EBF Spending Plan 30-34'!F68","v":261238.25},"PY Adequacy"]
["PYAT_17",{"$f":"'EBF Spending Plan 30-34'!F69","v":27329.54},"PY Adequacy"]
["PYAT_18",{"$f":"'EBF Spending Plan 30-34'!F70","v":458975.51},"PY Adequacy"]
["PYAT_19",{"$f":"'EBF Spending Plan 30-34'!F71","v":136639.5},"PY Adequacy"]
["PYAT_20",{"$f":"'EBF Spending Plan 30-34'!F72","v":1093985.4100000001},"PY Adequacy"]
["PYAT_21",{"$f":"'EBF Spending Plan 30-34'!F73","v":753169.97},"PY Adequacy"]
["PYAT_22",{"$f":"'EBF Spending Plan 30-34'!F74","v":2496067.9178400002},"PY Adequacy"]
["PYAT_STPSI",{"$f":"'EBF Spending Plan 30-34'!F75","v":5443867.90784},"PY Adequacy"]
["PYAT_23",{"$f":"'EBF Spending Plan 30-34'!F76","v":360563.11},"PY Adequacy"]
["PYAT_24",{"$f":"'EBF Spending Plan 30-34'!F77","v":360563.11},"PY Adequacy"]
["PYAT_25",{"$f":"'EBF Spending Plan 30-34'!F78","v":376071.2},"PY Adequacy"]
["PYAT_26",{"$f":"'EBF Spending Plan 30-34'!F79","v":376071.2},"PY Adequacy"]
["PYAT_27",{"$f":"'EBF Spending Plan 30-34'!F80","v":88396.11},"PY Adequacy"]
["PYAT_28",{"$f":"'EBF Spending Plan 30-34'!F81","v":88396.11},"PY Adequacy"]
["PYAT_29",{"$f":"'EBF Spending Plan 30-34'!F82","v":92273.14},"PY Adequacy"]
["PYAT_30",{"$f":"'EBF Spending Plan 30-34'!F83","v":92273.14},"PY Adequacy"]
["PYAT_31",{"$f":"'EBF Spending Plan 30-34'!F84","v":110882.84},"PY Adequacy"]
["PYAT_32",{"$f":"'EBF Spending Plan 30-34'!F85","v":441980.58},"PY Adequacy"]
["PYAT_33",{"$f":"'EBF Spending Plan 30-34'!F86","v":179034.53},"PY Adequacy"]
["PYAT_34",{"$f":"'EBF Spending Plan 30-34'!F87","v":68402.68},"PY Adequacy"]
["PYAT_STAI",{"$f":"'EBF Spending Plan 30-34'!F88","v":2634907.75},"PY Adequacy"]
["PYAT_T",{"$f":"'EBF Spending Plan 30-34'!F90","v":13556327.83},"PY Adequacy"]
["CYTF_1",{"$f":"IF('EBF Spending Plan 30-34'!G52=\"\",\"\",'EBF Spending Plan 30-34'!G52)","v":27412},"Tier Investments"]
["CYTF_2",{"$f":"IF('EBF Spending Plan 30-34'!G53=\"\",\"\",'EBF Spending Plan 30-34'!G53)","v":""},"Tier Investments"]
["CYTF_3",{"$f":"IF('EBF Spending Plan 30-34'!G54=\"\",\"\",'EBF Spending Plan 30-34'!G54)","v":30000},"Tier Investments"]
["CYTF_4",{"$f":"IF('EBF Spending Plan 30-34'!G55=\"\",\"\",'EBF Spending Plan 30-34'!G55)","v":""},"Tier Investments"]
["CYTF_5",{"$f":"IF('EBF Spending Plan 30-34'!G56=\"\",\"\",'EBF Spending Plan 30-34'!G56)","v":""},"Tier Investments"]
["CYTF_6",{"$f":"IF('EBF Spending Plan 30-34'!G57=\"\",\"\",'EBF Spending Plan 30-34'!G57)","v":""},"Tier Investments"]
["CYTF_7",{"$f":"IF('EBF Spending Plan 30-34'!G58=\"\",\"\",'EBF Spending Plan 30-34'!G58)","v":""},"Tier Investments"]
["CYTF_8",{"$f":"IF('EBF Spending Plan 30-34'!G59=\"\",\"\",'EBF Spending Plan 30-34'!G59)","v":""},"Tier Investments"]
["CYTF_9",{"$f":"IF('EBF Spending Plan 30-34'!G60=\"\",\"\",'EBF Spending Plan 30-34'!G60)","v":""},"Tier Investments"]
["CYTF_10",{"$f":"IF('EBF Spending Plan 30-34'!G61=\"\",\"\",'EBF Spending Plan 30-34'!G61)","v":""},"Tier Investments"]
["CYTF_11",{"$f":"IF('EBF Spending Plan 30-34'!G62=\"\",\"\",'EBF Spending Plan 30-34'!G62)","v":""},"Tier Investments"]
["CYTF_12",{"$f":"IF('EBF Spending Plan 30-34'!G63=\"\",\"\",'EBF Spending Plan 30-34'!G63)","v":""},"Tier Investments"]
["CYTF_13",{"$f":"IF('EBF Spending Plan 30-34'!G64=\"\",\"\",'EBF Spending Plan 30-34'!G64)","v":""},"Tier Investments"]
["CYTF_STCI",{"$f":"'EBF Spending Plan 30-34'!G65","v":57412},"Tier Investments"]
["CYTF_14",{"$f":"IF('EBF Spending Plan 30-34'!G66=\"\",\"\",'EBF Spending Plan 30-34'!G66)","v":""},"Tier Investments"]
["CYTF_15",{"$f":"IF('EBF Spending Plan 30-34'!G67=\"\",\"\",'EBF Spending Plan 30-34'!G67)","v":""},"Tier Investments"]
["CYTF_16",{"$f":"IF('EBF Spending Plan 30-34'!G68=\"\",\"\",'EBF Spending Plan 30-34'!G68)","v":40000},"Tier Investments"]
["CYTF_17",{"$f":"IF('EBF Spending Plan 30-34'!G69=\"\",\"\",'EBF Spending Plan 30-34'!G69)","v":10000},"Tier Investments"]
["CYTF_18",{"$f":"IF('EBF Spending Plan 30-34'!G70=\"\",\"\",'EBF Spending Plan 30-34'!G70)","v":""},"Tier Investments"]
["CYTF_19",{"$f":"IF('EBF Spending Plan 30-34'!G71=\"\",\"\",'EBF Spending Plan 30-34'!G71)","v":""},"Tier Investments"]
["CYTF_20",{"$f":"IF('EBF Spending Plan 30-34'!G72=\"\",\"\",'EBF Spending Plan 30-34'!G72)","v":""},"Tier Investments"]
["CYTF_21",{"$f":"IF('EBF Spending Plan 30-34'!G73=\"\",\"\",'EBF Spending Plan 30-34'!G73)","v":""},"Tier Investments"]
["CYTF_22",{"$f":"IF('EBF Spending Plan 30-34'!G74=\"\",\"\",'EBF Spending Plan 30-34'!G74)","v":""},"Tier Investments"]
["CYTF_STPSI",{"$f":"'EBF Spending Plan 30-34'!G75","v":50000},"Tier Investments"]
["CYTF_23",{"$f":"IF('EBF Spending Plan 30-34'!G76=\"\",\"\",'EBF Spending Plan 30-34'!G76)","v":""},"Tier Investments"]
["CYTF_24",{"$f":"IF('EBF Spending Plan 30-34'!G77=\"\",\"\",'EBF Spending Plan 30-34'!G77)","v":""},"Tier Investments"]
["CYTF_25",{"$f":"IF('EBF Spending Plan 30-34'!G78=\"\",\"\",'EBF Spending Plan 30-34'!G78)","v":""},"Tier Investments"]
["CYTF_26",{"$f":"IF('EBF Spending Plan 30-34'!G79=\"\",\"\",'EBF Spending Plan 30-34'!G79)","v":""},"Tier Investments"]
["CYTF_27",{"$f":"IF('EBF Spending Plan 30-34'!G80=\"\",\"\",'EBF Spending Plan 30-34'!G80)","v":""},"Tier Investments"]
["CYTF_28",{"$f":"IF('EBF Spending Plan 30-34'!G81=\"\",\"\",'EBF Spending Plan 30-34'!G81)","v":""},"Tier Investments"]
["CYTF_29",{"$f":"IF('EBF Spending Plan 30-34'!G82=\"\",\"\",'EBF Spending Plan 30-34'!G82)","v":""},"Tier Investments"]
["CYTF_30",{"$f":"IF('EBF Spending Plan 30-34'!G83=\"\",\"\",'EBF Spending Plan 30-34'!G83)","v":""},"Tier Investments"]
["CYTF_31",{"$f":"IF('EBF Spending Plan 30-34'!G84=\"\",\"\",'EBF Spending Plan 30-34'!G84)","v":""},"Tier Investments"]
["CYTF_32",{"$f":"IF('EBF Spending Plan 30-34'!G85=\"\",\"\",'EBF Spending Plan 30-34'!G85)","v":""},"Tier Investments"]
["CYTF_33",{"$f":"IF('EBF Spending Plan 30-34'!G86=\"\",\"\",'EBF Spending Plan 30-34'!G86)","v":""},"Tier Investments"]
["CYTF_34",{"$f":"IF('EBF Spending Plan 30-34'!G87=\"\",\"\",'EBF Spending Plan 30-34'!G87)","v":""},"Tier Investments"]
["CYTF_STAI",{"$f":"'EBF Spending Plan 30-34'!G88","v":""},"Tier Investments"]
["CYTF_Other",{"$f":"IF('EBF Spending Plan 30-34'!G89=\"\",\"\",'EBF Spending Plan 30-34'!G89)","v":""},"Tier Investments"]
["CYTF_T",{"$f":"'EBF Spending Plan 30-34'!G90","v":107412},"Tier Investments"]
["CYBE_1",{"$f":"IF('EBF Spending Plan 30-34'!H52=\"\",\"\",'EBF Spending Plan 30-34'!H52)","v":""},"Budget Investments"]
["CYBE_2",{"$f":"IF('EBF Spending Plan 30-34'!H53=\"\",\"\",'EBF Spending Plan 30-34'!H53)","v":""},"Budget Investments"]
["CYBE_3",{"$f":"IF('EBF Spending Plan 30-34'!H54=\"\",\"\",'EBF Spending Plan 30-34'!H54)","v":""},"Budget Investments"]
["CYBE_4",{"$f":"IF('EBF Spending Plan 30-34'!H55=\"\",\"\",'EBF Spending Plan 30-34'!H55)","v":""},"Budget Investments"]
["CYBE_5",{"$f":"IF('EBF Spending Plan 30-34'!H56=\"\",\"\",'EBF Spending Plan 30-34'!H56)","v":""},"Budget Investments"]
["CYBE_6",{"$f":"IF('EBF Spending Plan 30-34'!H57=\"\",\"\",'EBF Spending Plan 30-34'!H57)","v":""},"Budget Investments"]
["CYBE_7",{"$f":"IF('EBF Spending Plan 30-34'!H58=\"\",\"\",'EBF Spending Plan 30-34'!H58)","v":""},"Budget Investments"]
["CYBE_8",{"$f":"IF('EBF Spending Plan 30-34'!H59=\"\",\"\",'EBF Spending Plan 30-34'!H59)","v":""},"Budget Investments"]
["CYBE_9",{"$f":"IF('EBF Spending Plan 30-34'!H60=\"\",\"\",'EBF Spending Plan 30-34'!H60)","v":""},"Budget Investments"]
["CYBE_10",{"$f":"IF('EBF Spending Plan 30-34'!H61=\"\",\"\",'EBF Spending Plan 30-34'!H61)","v":""},"Budget Investments"]
["CYBE_11",{"$f":"IF('EBF Spending Plan 30-34'!H62=\"\",\"\",'EBF Spending Plan 30-34'!H62)","v":""},"Budget Investments"]
["CYBE_12",{"$f":"IF('EBF Spending Plan 30-34'!H63=\"\",\"\",'EBF Spending Plan 30-34'!H63)","v":""},"Budget Investments"]
["CYBE_13",{"$f":"IF('EBF Spending Plan 30-34'!H64=\"\",\"\",'EBF Spending Plan 30-34'!H64)","v":""},"Budget Investments"]
["CYBE_STCI",{"$f":"'EBF Spending Plan 30-34'!H65","v":""},"Budget Investments"]
["CYBE_14",{"$f":"IF('EBF Spending Plan 30-34'!H66=\"\",\"\",'EBF Spending Plan 30-34'!H66)","v":""},"Budget Investments"]
["CYBE_15",{"$f":"IF('EBF Spending Plan 30-34'!H67=\"\",\"\",'EBF Spending Plan 30-34'!H67)","v":""},"Budget Investments"]
["CYBE_16",{"$f":"IF('EBF Spending Plan 30-34'!H68=\"\",\"\",'EBF Spending Plan 30-34'!H68)","v":""},"Budget Investments"]
["CYBE_17",{"$f":"IF('EBF Spending Plan 30-34'!H69=\"\",\"\",'EBF Spending Plan 30-34'!H69)","v":""},"Budget Investments"]
["CYBE_18",{"$f":"IF('EBF Spending Plan 30-34'!H70=\"\",\"\",'EBF Spending Plan 30-34'!H70)","v":""},"Budget Investments"]
["CYBE_19",{"$f":"IF('EBF Spending Plan 30-34'!H71=\"\",\"\",'EBF Spending Plan 30-34'!H71)","v":""},"Budget Investments"]
["CYBE_20",{"$f":"IF('EBF Spending Plan 30-34'!H72=\"\",\"\",'EBF Spending Plan 30-34'!H72)","v":""},"Budget Investments"]
["CYBE_21",{"$f":"IF('EBF Spending Plan 30-34'!H73=\"\",\"\",'EBF Spending Plan 30-34'!H73)","v":""},"Budget Investments"]
["CYBE_22",{"$f":"IF('EBF Spending Plan 30-34'!H74=\"\",\"\",'EBF Spending Plan 30-34'!H74)","v":""},"Budget Investments"]
["CYBE_STPSI",{"$f":"'EBF Spending Plan 30-34'!H75","v":""},"Budget Investments"]
["CYBE_23",{"$f":"IF('EBF Spending Plan 30-34'!H76=\"\",\"\",'EBF Spending Plan 30-34'!H76)","v":""},"Budget Investments"]
["CYBE_24",{"$f":"IF('EBF Spending Plan 30-34'!H77=\"\",\"\",'EBF Spending Plan 30-34'!H77)","v":""},"Budget Investments"]
["CYBE_25",{"$f":"IF('EBF Spending Plan 30-34'!H78=\"\",\"\",'EBF Spending Plan 30-34'!H78)","v":""},"Budget Investments"]
["CYBE_26",{"$f":"IF('EBF Spending Plan 30-34'!H79=\"\",\"\",'EBF Spending Plan 30-34'!H79)","v":""},"Budget Investments"]
["CYBE_27",{"$f":"IF('EBF Spending Plan 30-34'!H80=\"\",\"\",'EBF Spending Plan 30-34'!H80)","v":""},"Budget Investments"]
["CYBE_28",{"$f":"IF('EBF Spending Plan 30-34'!H81=\"\",\"\",'EBF Spending Plan 30-34'!H81)","v":""},"Budget Investments"]
["CYBE_29",{"$f":"IF('EBF Spending Plan 30-34'!H82=\"\",\"\",'EBF Spending Plan 30-34'!H82)","v":""},"Budget Investments"]
["CYBE_30",{"$f":"IF('EBF Spending Plan 30-34'!H83=\"\",\"\",'EBF Spending Plan 30-34'!H83)","v":""},"Budget Investments"]
["CYBE_31",{"$f":"IF('EBF Spending Plan 30-34'!H84=\"\",\"\",'EBF Spending Plan 30-34'!H84)","v":""},"Budget Investments"]
["CYBE_32",{"$f":"IF('EBF Spending Plan 30-34'!H85=\"\",\"\",'EBF Spending Plan 30-34'!H85)","v":""},"Budget Investments"]
["CYBE_33",{"$f":"IF('EBF Spending Plan 30-34'!H86=\"\",\"\",'EBF Spending Plan 30-34'!H86)","v":""},"Budget Investments"]
["CYBE_34",{"$f":"IF('EBF Spending Plan 30-34'!H87=\"\",\"\",'EBF Spending Plan 30-34'!H87)","v":""},"Budget Investments"]
["CYBE_STAI",{"$f":"'EBF Spending Plan 30-34'!H88","v":""},"Budget Investments"]
["CYBE_Other",{"$f":"IF('EBF Spending Plan 30-34'!H89=\"\",\"\",'EBF Spending Plan 30-34'!H89)","v":""},"Budget Investments"]
["CYBE_T",{"$f":"'EBF Spending Plan 30-34'!H90","v":""},"Budget Investments"]
["CYTF_Nar",{"$f":"IF('EBF Spending Plan 30-34'!G93=\"\",\"\",'EBF Spending Plan 30-34'!G93)","v":""},"Tier Investments"]
["3_1a",{"$f":"'EBF Spending Plan 30-34'!G100","v":1980313.44},"Part III"]
["3_1b",{"$f":"'EBF Spending Plan 30-34'!H100","v":"Actual"}]
["3_1c",{"$f":"'EBF Spending Plan 30-34'!G101","v":46667.23},"Part III"]
["3_1d",{"$f":"'EBF Spending Plan 30-34'!H101","v":"Actual"}]
["3_1e",{"$f":"'EBF Spending Plan 30-34'!G102","v":324633.08},"Part III"]
["3_1f",{"$f":"'EBF Spending Plan 30-34'!H102","v":"Actual"}]
["3_2a",{"$f":"IF('EBF Spending Plan 30-34'!H104=\"\",\"\",'EBF Spending Plan 30-34'!H104)","v":"Yes"},"Part III"]
["3_2b",{"$f":"IF('EBF Spending Plan 30-34'!G105=\"[Optional - Enter $]\",\"\",'EBF Spending Plan 30-34'!G105)","v":340000},"Part III"]
["3_2c",{"$f":"IF('EBF Spending Plan 30-34'!H106=\"\",\"\",'EBF Spending Plan 30-34'!H106)","v":""},"Part III"]
["3_2d",{"$f":"IF('EBF Spending Plan 30-34'!G107=\"[Optional - Enter $]\",\"\",'EBF Spending Plan 30-34'!G107)","v":""},"Part III"]
["3_2e",{"$f":"IF('EBF Spending Plan 30-34'!K104=\"\",\"\",'EBF Spending Plan 30-34'!K104)","v":""},"Part III"]
["3_2f",{"$f":"IF('EBF Spending Plan 30-34'!I105=\"[Optional - Enter $]\",\"\",'EBF Spending Plan 30-34'!I105)","v":""},"Part III"]
["3_2g",{"$f":"IF('EBF Spending Plan 30-34'!K106=\"\",\"\",'EBF Spending Plan 30-34'!K106)","v":""},"Part III"]
["3_2h",{"$f":"IF('EBF Spending Plan 30-34'!I107=\"[Optional - Enter $]\",\"\",'EBF Spending Plan 30-34'!I107)","v":""},"Part III"]
["3_2i",{"$f":"IF('EBF Spending Plan 30-34'!M104=\"\",\"\",'EBF Spending Plan 30-34'!M104)","v":""},"Part III"]
["3_2j",{"$f":"IF('EBF Spending Plan 30-34'!L105=\"[Optional - Enter $]\",\"\",'EBF Spending Plan 30-34'!L105)","v":""},"Part III"]
["3_2k",{"$f":"IF('EBF Spending Plan 30-34'!G108=\"\",\"\",'EBF Spending Plan 30-34'!G108)","v":""},"Part III"]
["3_3a",{"$f":"IF('EBF Spending Plan 30-34'!H111=\"\",\"\",'EBF Spending Plan 30-34'!H111)","v":"Yes"},"Part III"]
["3_3b",{"$f":"IF('EBF Spending Plan 30-34'!G112=\"[Optional - Enter $]\",\"\",'EBF Spending Plan 30-34'!G112)","v":""},"Part III"]
["3_3c",{"$f":"IF('EBF Spending Plan 30-34'!H113=\"\",\"\",'EBF Spending Plan 30-34'!H113)","v":""},"Part III"]
["3_3d",{"$f":"IF('EBF Spending Plan 30-34'!G114=\"[Optional - Enter $]\",\"\",'EBF Spending Plan 30-34'!G114)","v":""},"Part III"]
["3_3e",{"$f":"IF('EBF Spending Plan 30-34'!K111=\"\",\"\",'EBF Spending Plan 30-34'!K111)","v":""},"Part III"]
["3_3f",{"$f":"IF('EBF Spending Plan 30-34'!I112=\"[Optional - Enter $]\",\"\",'EBF Spending Plan 30-34'!I112)","v":""},"Part III"]
["3_3g",{"$f":"IF('EBF Spending Plan 30-34'!K113=\"\",\"\",'EBF Spending Plan 30-34'!K113)","v":""},"Part III"]
["3_3h",{"$f":"IF('EBF Spending Plan 30-34'!I114=\"[Optional - Enter $]\",\"\",'EBF Spending Plan 30-34'!I114)","v":""},"Part III"]
["3_3i",{"$f":"IF('EBF Spending Plan 30-34'!M111=\"\",\"\",'EBF Spending Plan 30-34'!M111)","v":""},"Part III"]
["3_3j",{"$f":"IF('EBF Spending Plan 30-34'!L112=\"[Optional - Enter $]\",\"\",'EBF Spending Plan 30-34'!L112)","v":""},"Part III"]
["3_3k",{"$f":"IF('EBF Spending Plan 30-34'!M113=\"\",\"\",'EBF Spending Plan 30-34'!M113)","v":""},"Part III"]
["3_3l",{"$f":"IF('EBF Spending Plan 30-34'!L114=\"[Optional - Enter $]\",\"\",'EBF Spending Plan 30-34'!L114)","v":""},"Part III"]
["3_3m",{"$f":"IF('EBF Spending Plan 30-34'!G115=\"\",\"\",'EBF Spending Plan 30-34'!G115)","v":""},"Part III"]
["3_4a",{"$f":"IF('EBF Spending Plan 30-34'!H118=\"\",\"\",'EBF Spending Plan 30-34'!H118)","v":"Yes"},"Part III"]
["3_4b",{"$f":"IF('EBF Spending Plan 30-34'!G119=\"[Optional - Enter $]\",\"\",'EBF Spending Plan 30-34'!G119)","v":""},"Part III"]
["3_4c",{"$f":"IF('EBF Spending Plan 30-34'!H120=\"\",\"\",'EBF Spending Plan 30-34'!H120)","v":""},"Part III"]
["3_4d",{"$f":"IF('EBF Spending Plan 30-34'!G121=\"[Optional - Enter $]\",\"\",'EBF Spending Plan 30-34'!G121)","v":""},"Part III"]
["3_4e",{"$f":"IF('EBF Spending Plan 30-34'!K118=\"\",\"\",'EBF Spending Plan 30-34'!K118)","v":""},"Part III"]
["3_4f",{"$f":"IF('EBF Spending Plan 30-34'!I119=\"[Optional - Enter $]\",\"\",'EBF Spending Plan 30-34'!I119)","v":""},"Part III"]
["3_4g",{"$f":"IF('EBF Spending Plan 30-34'!K120=\"\",\"\",'EBF Spending Plan 30-34'!K120)","v":""},"Part III"]
["3_4h",{"$f":"IF('EBF Spending Plan 30-34'!I121=\"[Optional - Enter $]\",\"\",'EBF Spending Plan 30-34'!I121)","v":""},"Part III"]
["3_4i",{"$f":"IF('EBF Spending Plan 30-34'!G122=\"\",\"\",'EBF Spending Plan 30-34'!G122)","v":""},"Part III"]
["a_1",{"$f":"IF('EBF Spending Plan 30-34'!E130=\"\",\"\",'EBF Spending Plan 30-34'!E130)","v":"Yes"},"Assurances"]
["a_2",{"$f":"IF('EBF Spending Plan 30-34'!E133=\"\",\"\",'EBF Spending Plan 30-34'!E133)","v":"Yes"},"Assurances"]
["a_3",{"$f":"IF('EBF Spending Plan 30-34'!E135=\"\",\"\",'EBF Spending Plan 30-34'!E135)","v":"Yes"},"Assurances"]
["a_4",{"$f":"IF('EBF Spending Plan 30-34'!F137=\"\",\"\",'EBF Spending Plan 30-34'!F137)","v":"2024-09-11"},"Assurances"]
["a_5",{"$f":"IF('EBF Spending Plan 30-34'!F138=\"\",\"\",'EBF Spending Plan 30-34'!F138)","v":"Nellie Sandavol"},"Assurances"]

{"sheet":"District Drop-down","index":16,"n_rows":1001,"n_cols":6,"rows_kept":1001,"hidden":true}
["RCDT","Type Code","School District/Joint Agreement (H13 Result)","RCDT - H14 Result ","County - N24 Result","SD or JA -(formula in N14) B2 & B3 Result"]
["07016806060","60","A E R O  Spec Educ Coop","07016806060","Cook","JA"]
["33048276026","26","Abingdon-Avon CUSD 276","33048276026","Knox","SD"]
["01009262026","26","A-C Central CUSD 262","01009262026","Cass","SD"]
["19022004002","02","Addison SD 4","19022004002","Dupage","SD"]
["34049125013","13","Adlai E Stevenson HSD 125","34049125013","Lake","SD"]
["21028091004","04","Akin CCSD 91","21028091004","Franklin","SD"]
["13014063002","02","Albers SD 63","13014063002","Clinton","SD"]
["44063019024","24","Alden Hebron SD 19","44063019024","McHenry","SD"]
["20093017024","24","Allendale CCSD 17","20093017024","Wabash","SD"]
["35050065004","04","Allen-Otter Creek CCSD 65","35050065004","La Salle","SD"]
["07016126002","02","Alsip-Hazlgrn-Oaklwn SD 126","07016126002","Cook","SD"]
["03025010026","26","Altamont CUSD 10","03025010026","Effingham","SD"]
["41057011026","26","Alton CUSD 11","41057011026","Madison","SD"]
["28037225026","26","AlWood CUSD 225","28037225026","Henry","SD"]
["47052272026","26","Amboy CUSD 272","47052272026","Lee","SD"]
["30091037004","04","Anna CCSD 37","30091037004","Union","SD"]
["30091081016","16","Anna Jonesboro CHSD 81","30091081016","Union","SD"]
["28037226026","26","Annawan CUSD 226","28037226026","Henry","SD"]
["34049034004","04","Antioch CCSD 34","34049034004","Lake","SD"]
["34049102004","04","Aptakisic-Tripp CCSD 102","34049102004","Lake","SD"]
["07016145002","02","Arbor Park SD 145","07016145002","Cook","SD"]
["11021306026","26","Arcola CUSD 306","11021306026","Douglas","SD"]
["39055001026","26","Argenta-Oreana CUSD 1","39055001026","Macon","SD"]
["07016217016","16","Argo CHSD 217","07016217016","Cook","SD"]
["05016025002","02","Arlington Heights SD 25","05016025002","Cook","SD"]
["54092225017","17","Armstrong Twp HSD 225","54092225017","Vermilion","SD"]
["54092061003","03","Armstrong-Ellis Cons SD 61","54092061003","Vermilion","SD"]
["11021305026","26","Arthur CUSD 305","11021305026","Douglas","SD"]
["13095015004","04","Ashley CCSD 15","13095015004","Washington","SD"]
["47052275026","26","Ashton-Franklin Center CUSD 275","47052275026","Lee","SD"]
["26029001026","26","Astoria CUSD 1","26029001026","Fulton","SD"]
["51065213026","26","Athens CUSD 213","51065213026","Menard","SD"]
["07016125002","02","Atwood Heights SD 125","07016125002","Cook","SD"]
["51084010026","26","Auburn CUSD 10","51084010026","Sangamon","SD"]
["31045131022","22","Aurora East USD 131","31045131022","Kane","SD"]
["31045129022","22","Aurora West USD 129","31045129022","Kane","SD"]
["13014021002","02","Aviston SD 21","13014021002","Clinton","SD"]
["05016037002","02","Avoca SD 37","05016037002","Cook","SD"]
["51084005026","26","Ball Chatham CUSD 5","51084005026","Sangamon","SD"]
["34049106002","02","Bannockburn SD 106","34049106002","Lake","SD"]
["34049220026","26","Barrington CUSD 220","34049220026","Lake","SD"]
["13014057002","02","Bartelso SD 57","13014057002","Clinton","SD"]
["48072066002","02","Bartonville SD 66","48072066002","Peoria","SD"]
["31045101022","22","Batavia USD 101","31045101022","Kane","SD"]
["34049003004","04","Beach Park CCSD 3","34049003004","Lake","SD"]
["01009015026","26","Beardstown CUSD 15","01009015026","Cass","SD"]
["03025020026","26","Beecher City CUSD 20","03025020026","Effingham","SD"]
["56099200U26","26","Beecher CUSD 200U","56099200U26","Will","SD"]
["50082119002","02","Belle Valley SD 119","50082119002","Saint Clair","SD"]
["50082801060","60","Belleville Area Special Services","50082801060","Saint Clair","JA"]
["50082118002","02","Belleville SD 118","50082118002","Saint Clair","SD"]
["50082201017","17","Belleville Twp HSD 201","50082201017","Saint Clair","SD"]
["06016088002","02","Bellwood SD 88","06016088002","Cook","SD"]
["04004100026","26","Belvidere CUSD 100","04004100026","Boone","SD"]
["39074005026","26","Bement CUSD 5","39074005026","Piatt","SD"]
["19022025002","02","Benjamin SD 25","19022025002","Dupage","SD"]
["19022002002","02","Bensenville SD 2","19022002002","Dupage","SD"]
["21028047004","04","Benton CCSD 47","21028047004","Franklin","SD"]
["21028103013","13","Benton Cons HSD 103","21028103013","Franklin","SD"]
["06016087002","02","Berkeley SD 87","06016087002","Cook","SD"]
["06016098002","02","Berwyn North SD 98","06016098002","Cook","SD"]
["06016100002","02","Berwyn South SD 100","06016100002","Cook","SD"]
["41057008026","26","Bethalto CUSD 8","41057008026","Madison","SD"]
["13041082002","02","Bethel SD 82","13041082002","Jefferson","SD"]
["47098000061","61","Bi-County Special Educ Coop","47098000061","Whiteside","JA"]
["34049038002","02","Big Hollow SD 38","34049038002","Lake","SD"]
["54092001026","26","Bismarck Henning CUSD","54092001026","Vermilion","SD"]
[54092800080,80,"Bismarck Henning Rossville Alvin Cooperative High School",54092800080,"Vermilion","JA"]
["49081865060","60","Black Hawk Area Sp Ed District","49081865060","Rock Island","JA"]
["07016206017","17","Bloom Twp HSD 206","07016206017","Cook","SD"]
["19022013002","02","Bloomingdale SD 13","19022013002","Dupage","SD"]
["17064087041","41","Bloomington Area Career Center","17064087041","McLean","JA"]
["17064087025","25","Bloomington SD 87","17064087025","McLean","SD"]
["17020018026","26","Blue Ridge CUSD 18","17020018026","Dewitt","SD"]
["13041318027","27","Bluford Unit School District 318","13041318027","Jefferson","SD"]
["35059005061","61","BMP Tri County Special Ed Coop","35059005061","Marshall","JA"]
["03003002026","26","Bond County CUSD 2","03003002026","Bond","SD"]
["03026741045","45","Bond Fayette Effingham EFE 410","03026741045","Fayette","JA"]
["32046053002","02","Bourbonnais SD 53","32046053002","Kankakee","SD"]
["24032075002","02","Braceville SD 75","24032075002","Grundy","SD"]
["28088001026","26","Bradford CUSD 1","28088001026","Stark","SD"]
["32046307016","16","Bradley Bourbonnais CHSD 307","32046307016","Kankakee","SD"]
["32046061002","02","Bradley SD 61","32046061002","Kankakee","SD"]
["13014012004","04","Breese ESD 12","13014012004","Clinton","SD"]
["07016228016","16","Bremen CHSD 228","07016228016","Cook","SD"]
["48072309026","26","Brimfield CUSD 309","48072309026","Peoria","SD"]
["06016095002","02","Brookfield Lagrange Park SD 95","06016095002","Cook","SD"]
["50082188022","22","Brooklyn UD 188","50082188022","Saint Clair","SD"]
["07016167002","02","Brookwood SD 167","07016167002","Cook","SD"]
["01005001026","26","Brown County CUSD 1","01005001026","Brown","SD"]
["03026201026","26","Brownstown CUSD 201","03026201026","Fayette","SD"]
["40007042026","26","Brussels CUSD 42","40007042026","Calhoun","SD"]
["21044043003","03","Buncombe Cons SD 43","21044043003","Johnson","SD"]
["40056008026","26","Bunker Hill CUSD 8","40056008026","Macoupin","SD"]
["07016111002","02","Burbank SD 111","07016111002","Cook","SD"]
["28006340026","26","Bureau Valley CUSD 340","28006340026","Bureau","SD"]
["07016154502","02","Burnham SD 154-5","07016154502","Cook","SD"]
["26062170026","26","Bushnell Prairie City CUSD 170","26062170026","McDonough","SD"]
["19022053002","02","Butler SD 53","19022053002","Dupage","SD"]
["47071226026","26","Byron CUSD 226","47071226026","Ogle","SD"]
["50082187026","26","Cahokia CUSD 187","50082187026","Saint Clair","SD"]
["30002001022","22","Cairo USD 1","30002001022","Alexander","SD"]
["40007040026","26","Calhoun CUSD 40","40007040026","Calhoun","SD"]
["07016155002","02","Calumet City SD 155","07016155002","Cook","SD"]
["07016132002","02","Calumet Public SD 132","07016132002","Cook","SD"]
["28037227026","26","Cambridge CUSD 227","28037227026","Henry","SD"]
["26029066025","25","Canton Union SD 66","26029066025","Fulton","SD"]
["51084790040","40","Capital Area Career Center","51084790040","Sangamon","JA"]
["49081036002","02","Carbon Cliff-Barstow SD 36","49081036002","Rock Island","SD"]
["30039165016","16","Carbondale CHSD 165","30039165016","Jackson","SD"]
["30039095002","02","Carbondale ESD 95","30039095002","Jackson","SD"]
["08089723045","45","Career & Tech Educ Consortium","08089723045","Stephenson","JA"]
["45000000040","40","Career Center of Southern IL","45000000040","Monroe","JA"]
["07016228046","46","Career Development System","07016228046","Cook","JA"]
["04000000046","46","Career Educ Assoc of N Central IL","04000000046","Winnebago/Boone/Ogle","JA"]
["07016790045","45","Career Preparation Network","07016790045","Cook","JA"]
["40056001026","26","Carlinville CUSD 1","40056001026","Macoupin","SD"]
["13014001026","26","Carlyle CUSD 1","13014001026","Clinton","SD"]
["20097005026","26","Carmi-White County CUSD 5","20097005026","White","SD"]
["20083002026","26","Carrier Mills-Stonefort CUSD 2","20083002026","Saline","SD"]
["40031001026","26","Carrollton CUSD 1","40031001026","Greene","SD"]
["21100005026","26","Carterville CUSD 5","21100005026","Williamson","SD"]
["26034317004","04","Carthage ESD 317","26034317004","Hancock","SD"]
["44063026004","04","Cary CCSD 26","44063026004","McHenry","SD"]
["11012004C26","26","Casey-Westfield CUSD 4C","11012004C26","Clark","SD"]
["19022063002","02","Cass SD 63","19022063002","Dupage","SD"]
["07016146004","04","CCSD 146","07016146004","Cook","SD"]
["07016168004","04","CCSD 168","07016168004","Cook","SD"]
["19022180004","04","CCSD 180","19022180004","Dupage","SD"]
["30073204004","04","CCSD 204","30073204004","Perry","SD"]
["05016062004","04","CCSD 62","05016062004","Cook","SD"]
["19022089004","04","CCSD 89","19022089004","Dupage","SD"]
["19022093004","04","CCSD 93","19022093004","Dupage","SD"]
["19022066002","02","Center Cass SD 66","19022066002","Dupage","SD"]
["11087021026","26","Central A & M CUD 21","11087021026","Shelby","SD"]
["13014071016","16","Central CHSD 71","13014071016","Clinton","SD"]
["13058133002","02","Central City SD 133","13058133002","Marion","SD"]
["01001003026","26","Central CUSD 3","01001003026","Adams","SD"]
["31045301026","26","Central CUSD 301","31045301026","Kane","SD"]
["32038004026","26","Central CUSD 4","32038004026","Iroquois","SD"]
["53102721045","45","Central IL Voc Ed Coop","53102721045","Woodford","JA"]
["40000000046","46","Central Ill Rural Region","40000000046","Calhoun/Greene/Jersey/Macoupin","JA"]
["50082104002","02","Central SD 104","50082104002","Saint Clair","SD"]
["53090051002","02","Central SD 51","53090051002","Tazewell","SD"]
["07016110002","02","Central Stickney SD 110","07016110002","Cook","SD"]
["13058200017","17","Centralia HSD 200","13058200017","Marion","SD"]
["13058135002","02","Centralia SD 135","13058135002","Marion","SD"]
["30077100026","26","Century CUSD 100","30077100026","Pulaski","SD"]
["39074100026","26","Cerro Gordo CUSD 100","39074100026","Piatt","SD"]
["08008399026","26","Chadwick-Milledgeville CUSD 399","08008399026","Carroll","SD"]
["09010004026","26","Champaign CUSD 4","09010004026","Champaign","SD"]
["56099088002","02","Chaney-Monge SD 88","56099088002","Will","SD"]
["56099017002","02","Channahon SD 17","56099017002","Will","SD"]
["11015001026","26","Charleston CUSD 1","11015001026","Coles","SD"]
["45079139026","26","Chester CUSD 139","45079139026","Randolph","SD"]
["45079122019","19","Chester N HSD 122","45079122019","Randolph","SD"]
["17054061004","04","Chester-East Lincoln CCSD 61","17054061004","Logan","SD"]
["07016170002","02","Chicago Heights SD 170","07016170002","Cook","SD"]
["15016299025","25","Chicago Public Schools District 299","15016299025","Cook","SD"]
["07016127502","02","Chicago Ridge SD 127-5","07016127502","Cook","SD"]
["21028099026","26","Christopher USD 99","21028099026","Franklin","SD"]
["34049117016","16","CHSD 117","34049117016","Lake","SD"]
["34049128016","16","CHSD 128","34049128016","Lake","SD"]
["44063155016","16","CHSD 155","44063155016","McHenry","SD"]
["07016218016","16","CHSD 218","07016218016","Cook","SD"]
["19022094016","16","CHSD 94","19022094016","Dupage","SD"]
["19022099016","16","CHSD 99","19022099016","Dupage","SD"]
["06016099002","02","Cicero SD 99","06016099002","Cook","SD"]
["32038006026","26","Cissna Park CUSD 6","32038006026","Iroquois","SD"]
["12013010026","26","Clay City CUSD 10","12013010026","Clay","SD"]
["12013035046","46","Clay/Jasper/Richland/N Wayne RDS","12013035046","Clay","JA"]
["17020015026","26","Clinton CUSD 15","17020015026","Dewitt","SD"]
["24032001026","26","Coal City CUSD 1","24032001026","Grundy","SD"]
["30091017022","22","Cobden SUD 17","30091017022","Union","SD"]
["41057010041","41","Collinsville Area Career Ctr","41057010041","Madison","JA"]
["41057010026","26","Collinsville CUSD 10","41057010026","Madison","SD"]
["28037190002","02","Colona SD 190","28037190002","Henry","SD"]
["45067004026","26","Columbia CUSD 4","45067004026","Monroe","SD"]
["05016059004","04","Comm Cons SD 59","05016059004","Cook","SD"]
["50082196026","26","Community Unit School District No 196","50082196026","Saint Clair","SD"]
["07016230013","13","Cons HSD 230","07016230013","Cook","SD"]
["07016130002","02","Cook County SD 130","07016130002","Cook","SD"]
["19022015061","61","Coop Assoc for Spec Educ","19022015061","Dupage","JA"]
["17053426004","04","Cornell CCSD 426","17053426004","Livingston","SD"]
["45079001022","22","Coulterville USD 1","45079001022","Randolph","SD"]
["07016160002","02","Country Club Hills SD 160","07016160002","Cook","SD"]
["30091043004","04","County of Union Sch Dist No43","30091043004","Union","SD"]
["04101320026","26","County of Winnebago SD 320","04101320026","Winnebago","SD"]
["53102122017","17","County of Woodford School","53102122017","Woodford","SD"]
["11087003A26","26","Cowden-Herrick CUSD 3A","11087003A26","Shelby","SD"]
["21100003026","26","Crab Orchard CUSD 3","21100003026","Williamson","SD"]
["32038249026","26","Crescent Iroquois CUSD 249","32038249026","Iroquois","SD"]
["47071161004","04","Creston CCSD 161","47071161004","Ogle","SD"]
["56099201U26","26","Crete Monee CUSD 201U","56099201U26","Will","SD"]
["53090076002","02","Creve Coeur SD 76","53090076002","Tazewell","SD"]
["44063047004","04","Crystal Lake CCSD 47","44063047004","McHenry","SD"]
["11018077026","26","Cumberland CUSD 77","11018077026","Cumberland","SD"]
["19022200026","26","CUSD 200","19022200026","Dupage","SD"]
["19022201026","26","CUSD 201","19022201026","Dupage","SD"]
["26029003026","26","CUSD 3 Fulton County","26029003026","Fulton","SD"]
["31045300026","26","CUSD 300","31045300026","Kane","SD"]
["24047308026","26","CUSD 308","24047308026","Kendall","SD"]
["01001004026","26","CUSD 4","01001004026","Adams","SD"]
["21044064002","02","Cypress SD 64","21044064002","Johnson","SD"]
["08089201026","26","Dakota CUSD 201","08089201026","Stephenson","SD"]
["26034327004","04","Dallas ESD 327","26034327004","Hancock","SD"]
["28006098002","02","Dalzell SD 98","28006098002","Bureau","SD"]
["13014062002","02","Damiansville SD 62","13014062002","Clinton","SD"]
["54092118024","24","Danville CCSD 118","54092118024","Vermilion","SD"]
["19022061002","02","Darien SD 61","19022061002","Dupage","SD"]
["39055061025","25","Decatur SD 61","39055061025","Macon","SD"]
["53090701026","26","Deer Creek-Mackinaw CUSD 701","53090701026","Tazewell","SD"]
["35050082004","04","Deer Park CCSD 82","35050082004","La Salle","SD"]
["34049109002","02","Deerfield SD 109","34049109002","Lake","SD"]
["16019428026","26","DeKalb CUSD 428","16019428026","Dekalb","SD"]
["33094729045","45","Delabar CTE System","33094729045","Warren","JA"]
["39074057026","26","Deland-Weldon CUSD 57","39074057026","Piatt","SD"]
["53090703026","26","Delavan CUSD 703","53090703026","Tazewell","SD"]
["28006103022","22","DePue USD 103","28006103022","Bureau","SD"]
["06016212046","46","Des Plaines Valley EFE","06016212046","Cook","JA"]
["30039086003","03","DeSoto Cons SD 86","30039086003","Jackson","SD"]
["34049076002","02","Diamond Lake SD 76","34049076002","Lake","SD"]
["03025030026","26","Dieterich CUSD 30","03025030026","Effingham","SD"]
["35050017504","04","Dimmick Community Consolidated SD #175","35050017504","La Salle","SD"]
["53090050002","02","District 50 Schools","53090050002","Tazewell","SD"]
["47052170022","22","Dixon USD 170","47052170022","Lee","SD"]
["07016148002","02","Dolton SD 148","07016148002","Cook","SD"]
["07016149002","02","Dolton SD 149","07016149002","Cook","SD"]
["30091066022","22","Dongola USD 66","30091066022","Union","SD"]
["32038003026","26","Donovan CUSD 3","32038003026","Iroquois","SD"]
["19022058002","02","Downers Grove GSD 58","19022058002","Dupage","SD"]
["30073300026","26","Du Quoin CUSD 300","30073300026","Perry","SD"]
["48072323026","26","Dunlap CUSD 323","48072323026","Peoria","SD"]
["19022502046","46","DuPage Area Occup Educ Sys","19022502046","Dupage","JA"]
["19022088016","16","DuPage HSD 88","19022088016","Dupage","SD"]
["04101322026","26","Durand CUSD 322","04101322026","Winnebago","SD"]
["17053232002","02","Dwight Common SD 232","17053232002","Livingston","SD"]
["17053230017","17","Dwight Twp HSD 230","17053230017","Livingston","SD"]
["50082189061","61","E St Louis Area Joint Agreement","50082189061","Saint Clair","JA"]
["08000000046","46","Eagle Ridge Vocational Del Sys","08000000046","Jo Daviess","JA"]
["35050009026","26","Earlville CUSD 9","35050009026","La Salle","SD"]
["41057013002","02","East Alton SD 13","41057013002","Madison","SD"]
["41057014016","16","East Alton-Wood River CHSD 14","41057014016","Madison","SD"]
["47098020002","02","East Coloma - Nelson CESD 20","47098020002","Whiteside","SD"]
["08043119022","22","East Dubuque USD 119","08043119022","Jo Daviess","SD"]
["05016063002","02","East Maine SD 63","05016063002","Cook","SD"]
["49081037002","02","East Moline SD 37","49081037002","Rock Island","SD"]
["53090309016","16","East Peoria CHSD 309","53090309016","Tazewell","SD"]
["53090086002","02","East Peoria SD 86","53090086002","Tazewell","SD"]
["05016073002","02","East Prairie SD 73","05016073002","Cook","SD"]
["50082189022","22","East St Louis SD 189","50082189022","Saint Clair","SD"]
["11015801060","60","Eastern IL Area of Spec Educ","11015801060","Coles","JA"]
["11015735045","45","Eastern IL EFE System","11015735045","Coles","JA"]
["08008308026","26","Eastland CUSD 308","08008308026","Carroll","SD"]
["11023006026","26","Edgar County CUD 6","11023006026","Edgar","SD"]
["03011004026","26","Edinburg CUSD 4","03011004026","Christian","SD"]
["09010008046","46","Educ for Employment Sys 330","09010008046","Champaign","JA"]
["20024001026","26","Edwards County CUSD 1","20024001026","Edwards","SD"]
["41057007026","26","Edwardsville CUSD 7","41057007026","Madison","SD"]
["03025040026","26","Effingham CUSD 40","03025040026","Effingham","SD"]
["30002005026","26","Egyptian CUSD 5","30002005026","Alexander","SD"]
["07016127561","61","Eisenhower Cooperative","07016127561","Cook","JA"]
["53102011026","26","El Paso-Gridley CUSD 11","53102011026","Woodford","SD"]
["20083004026","26","Eldorado CUSD 4","20083004026","Saline","SD"]
["19022205026","26","Elmhurst SD 205","19022205026","Dupage","SD"]
["48072322026","26","Elmwood CUSD 322","48072322026","Peoria","SD"]
["06016401026","26","Elmwood Park CUSD 401","06016401026","Cook","SD"]
["30039196026","26","Elverado CUSD 196","30039196026","Jackson","SD"]
["56099203004","04","Elwood CCSD 203","56099203004","Will","SD"]
["34049033002","02","Emmons SD 33","34049033002","Lake","SD"]
["47098001026","26","Erie CUSD 1","47098001026","Whiteside","SD"]
["07016159002","02","ESD 159","07016159002","Cook","SD"]
["50082747045","45","ESL Regional Vocational System","50082747045","Saint Clair","JA"]
["47071269004","04","Eswood CCSD 269","47071269004","Ogle","SD"]
["53102140026","26","Eureka CUD 140","53102140026","Woodford","SD"]
["05016065004","04","Evanston CCSD 65","05016065004","Cook","SD"]
["05016065061","61","Evanston Dists 65/202 Jnt Agr","05016065061","Cook","JA"]
["05016202017","17","Evanston Twp HSD 202","05016202017","Cook","SD"]
["07016231016","16","Evergreen Park CHSD 231","07016231016","Cook","SD"]
["07016124002","02","Evergreen Park ESD 124","07016124002","Cook","SD"]
["21028115004","04","Ewing Northern CCSD 115","21028115004","Franklin","SD"]
["07016171061","61","Exc Children Have Opportunities","07016171061","Cook","JA"]
["34049801060","60","Exceptional Learners","34049801060","Lake","JA"]
["20096225016","16","Fairfield Comm H S Dist 225","20096225016","Wayne","SD"]
["20096112004","04","Fairfield PSD 112","20096112004","Wayne","SD"]
["56099089002","02","Fairmont SD 89","56099089002","Will","SD"]
["05016072002","02","Fairview SD 72","05016072002","Cook","SD"]
["48072265026","26","Farmington Central CUSD 265","48072265026","Peoria","SD"]
["13041099004","04","Farrington CCSD 99","13041099004","Jefferson","SD"]
["19022100016","16","Fenton CHSD 100","19022100016","Dupage","SD"]
["13041003004","04","Field CCSD 3","13041003004","Jefferson","SD"]
["53102006026","26","Fieldcrest CUSD 6","53102006026","Woodford","SD"]
["09010001026","26","Fisher CUSD 1","09010001026","Champaign","SD"]
["30002748040","40","Five County Reg Voc Center","30002748040","Alexander","JA"]
["30002748045","45","Five County Reg Voc System","30002748045","Alexander","JA"]
["17053074027","27","Flanagan-Cornell Dist 74","17053074027","Livingston","SD"]
["12013035026","26","Flora CUSD 35","12013035026","Clay","SD"]
["07016161002","02","Flossmoor SD 161","07016161002","Cook","SD"]
["07016169002","02","Ford Heights SD 169","07016169002","Cook","SD"]
["09027005061","61","Ford Special Education Coop","09027005061","Ford","JA"]
["06016091002","02","Forest Park SD 91","06016091002","Cook","SD"]
["07016142002","02","Forest Ridge SD 142","07016142002","Cook","SD"]
["47071221026","26","Forrestville Valley CUSD 221","47071221026","Ogle","SD"]
["01069801060","60","Four Rivers Spec Educ Dist","01069801060","Morgan","JA"]
["34049114002","02","Fox Lake GSD 114","34049114002","Lake","SD"]
["44063003003","03","Fox River Grove Cons SD 3","44063003003","McHenry","SD"]
["31045302041","41","Fox Valley Career Center","31045302041","Kane","JA"]
["56099157C04","04","Frankfort CCSD 157C","56099157C04","Will","SD"]
["21028168026","26","Frankfort CUSD 168","21028168026","Franklin","SD"]
["21000000046","46","Franklin County Reg Del System","21000000046","Franklin","JA"]
["01069001026","26","Franklin CUSD 1","01069001026","Morgan","SD"]
["06016084002","02","Franklin Park SD 84","06016084002","Cook","SD"]
["13041801060","60","Franklin-Jefferson Co Sp Ed Dist","13041801060","Jefferson","JA"]
["50082070004","04","Freeburg CCSD 70","50082070004","Saint Clair","SD"]
["50082077016","16","Freeburg CHSD 77","50082077016","Saint Clair","SD"]
["08089145022","22","Freeport SD 145","08089145022","Stephenson","SD"]
["34049079002","02","Fremont SD 79","34049079002","Lake","SD"]
["20083001026","26","Galatia CUSD 1","20083001026","Saline","SD"]
["08043120022","22","Galena USD 120","08043120022","Jo Daviess","SD"]
["33048205041","41","Galesburg Area Voc Ctr","33048205041","Knox","JA"]
["33048205026","26","Galesburg CUSD 205","33048205026","Knox","SD"]
["20030007026","26","Gallatin CUSD 7","20030007026","Gallatin","SD"]
["28037224026","26","Galva CUSD 224","28037224026","Henry","SD"]
["24032072C04","04","Gardner CCSD 72C","24032072C04","Grundy","SD"]
["24032073017","17","Gardner S Wilmington Twp HSD 73","24032073017","Grundy","SD"]
["34049037002","02","Gavin SD 37","34049037002","Lake","SD"]
["20096014004","04","Geff CCSD 14","20096014004","Wayne","SD"]
["07016133002","02","Gen George Patton SD 133","07016133002","Cook","SD"]
["28037228026","26","Geneseo CUSD 228","28037228026","Henry","SD"]
["31045304026","26","Geneva CUSD 304","31045304026","Kane","SD"]
["16019424026","26","Genoa Kingston CUSD 424","16019424026","Dekalb","SD"]
["54092004026","26","Georgetown-Ridge Farm CUD 4","54092004026","Vermilion","SD"]
["53102069002","02","Germantown Hills SD 69","53102069002","Woodford","SD"]
["13014060002","02","Germantown SD 60","13014060002","Clinton","SD"]
["30039130004","04","Giant City CCSD 130","30039130004","Jackson","SD"]
["09027005026","26","Gibson City-Melvin-Sibley CUSD 5","09027005026","Ford","SD"]
["09010188004","04","Gifford CCSD 188","09010188004","Champaign","SD"]
["40056007026","26","Gillespie CUSD 7","40056007026","Macoupin","SD"]
["19022041002","02","Glen Ellyn SD 41","19022041002","Dupage","SD"]
["19022087017","17","Glenbard Twp HSD 87","19022087017","Dupage","SD"]
["05016225017","17","Glenbrook HSD 225","05016225017","Cook","SD"]
["05016035002","02","Glencoe SD 35","05016035002","Cook","SD"]
["05016034004","04","Glenview CCSD 34","05016034004","Cook","SD"]
["05016067002","02","Golf ESD 67","05016067002","Cook","SD"]
["21044001026","26","Goreville CUD 1","21044001026","Johnson","SD"]
["19022062002","02","Gower SD 62","19022062002","Dupage","SD"]
["13041006004","04","Grand Prairie CCSD 6","13041006004","Jefferson","SD"]
["35050095004","04","Grand Ridge CCSD 95","35050095004","La Salle","SD"]
["41057009026","26","Granite City CUSD 9","41057009026","Madison","SD"]
["50082110004","04","Grant CCSD 110","50082110004","Saint Clair","SD"]
["34049124016","16","Grant CHSD 124","34049124016","Lake","SD"]
["32046006026","26","Grant Park CUSD 6","32046006026","Kankakee","SD"]
["34049036002","02","Grass Lake SD 36","34049036002","Lake","SD"]
["34049046004","04","Grayslake CCSD 46","34049046004","Lake","SD"]
["34049127016","16","Grayslake CHSD 127","34049127016","Lake","SD"]
["20097001026","26","Grayville CUSD 1","20097001026","White","SD"]
["40031010026","26","Greenfield CUSD 10","40031010026","Greene","SD"]
["51065200026","26","Greenview CUSD 200","51065200026","Menard","SD"]
["01075004026","26","Griggsville-Perry CUSD 4","01075004026","Pike","SD"]
["24032790040","40","Grundy Area Vocational Center","24032790040","Grundy","JA"]
["24032101061","61","Grundy County Spec Educ Coop","24032101061","Grundy","JA"]
["34049056002","02","Gurnee SD 56","34049056002","Lake","SD"]
["28006502017","17","Hall HSD 502","28006502017","Bureau","SD"]
["26034328024","24","Hamilton CCSD 328","26034328024","Hancock","SD"]
["20033010026","26","Hamilton Co CUSD 10","20033010026","Hamilton","SD"]
["49081029002","02","Hampton SD 29","49081029002","Rock Island","SD"]
["20035001026","26","Hardin County CUSD 1","20035001026","Hardin","SD"]
["04101122022","22","Harlem UD 122","04101122022","Winnebago","SD"]
["50082175002","02","Harmony Emge SD 175","50082175002","Saint Clair","SD"]
["20083003026","26","Harrisburg CUSD 3","20083003026","Saline","SD"]
["44063036002","02","Harrison SD 36","44063036002","McHenry","SD"]
["17054021026","26","Hartsburg Emden CUSD 21","17054021026","Logan","SD"]
["44063050026","26","Harvard CUSD 50","44063050026","McHenry","SD"]
["07016152002","02","Harvey SD 152","07016152002","Cook","SD"]
["53060126026","26","Havana CUSD 126","53060126026","Mason","SD"]
["34049073004","04","Hawthorn CCSD 73","34049073004","Lake","SD"]
["07016152502","02","Hazel Crest SD 152-5","07016152502","Cook","SD"]
["17064000063","63","Heart of IL Low Incidence  Hilia","17064000063","McLean","JA"]
["39000000046","46","Heartland Region","39000000046","Macon/Piatt","JA"]
["39055061041","41","Heartland Technical Academy","39055061041","Macon","JA"]
["35059005026","26","Henry-Senachwine CUSD 5","35059005026","Marshall","SD"]
["28037801060","60","Henry-Stark County Spec Ed Dist","28037801060","Henry","JA"]
["09010008026","26","Heritage CUSD 8","09010008026","Champaign","SD"]
["21100004026","26","Herrin CUSD 4","21100004026","Williamson","SD"]
["32046002026","26","Herscher CUSD 2","32046002026","Kankakee","SD"]
["17064004026","26","Heyworth CUSD 4","17064004026","McLean","SD"]
["16019426026","26","Hiawatha CUSD 426","16019426026","Dekalb","SD"]
["50082116002","02","High Mount SD 116","50082116002","Saint Clair","SD"]
["41057005026","26","Highland CUSD 5","41057005026","Madison","SD"]
["03068003026","26","Hillsboro CUSD 3","03068003026","Montgomery","SD"]
["06016093002","02","Hillside SD 93","06016093002","Cook","SD"]
["16019429026","26","Hinckley Big Rock CUSD 429","16019429026","Dekalb","SD"]
["19022181004","04","Hinsdale CCSD 181","19022181004","Dupage","SD"]
["19022086017","17","Hinsdale Twp HSD 86","19022086017","Dupage","SD"]
["48072328003","03","Hollis Cons SD 328","48072328003","Peoria","SD"]
["56099033C04","04","Homer CCSD 33C","56099033C04","Will","SD"]
["07016233016","16","Homewood Flossmoor CHSD 233","07016233016","Cook","SD"]
["07016153002","02","Homewood SD 153","07016153002","Cook","SD"]
["04101207016","16","Hononegah CHD 207","04101207016","Winnebago","SD"]
["54092011026","26","Hoopeston Area CUSD 11","54092011026","Vermilion","SD"]
["07016157002","02","Hoover-Schrum Memorial SD 157","07016157002","Cook","SD"]
["44063158022","22","Huntley Community School District 158","44063158022","McHenry","SD"]
["12017001026","26","Hutsonville CUSD 1","12017001026","Crawford","SD"]
["15016225061","61","IL Spec Ed Charter Coop","15016225061","Cook","JA"]
["48072321026","26","Il Valley Central USD 321","48072321026","Peoria","SD"]
["48072327026","26","Illini Bluffs CUSD 327","48072327026","Peoria","SD"]
["53060189026","26","Illini Central CUSD 189","53060189026","Mason","SD"]
["26034307016","16","Illini West H S Dist 307","26034307016","Hancock","SD"]
["16019425026","26","Indian Creek CUSD 425","16019425026","Dekalb","SD"]
["19022204026","26","Indian Prairie CUSD 204","19022204026","Dupage","SD"]
["07016109002","02","Indian Springs SD 109","07016109002","Cook","SD"]
["16019430040","40","Indian Valley Area Voc Ctr","16019430040","Dekalb","JA"]
["32000000047","47","Iroquois Area Reg Del System","32000000047","Iroquois","JA"]
["32038009026","26","Iroquois County CUSD 9","32038009026","Iroquois","SD"]
["32038801060","60","Iroquois Special Education","32038801060","Iroquois","JA"]
["32038010026","26","Iroquois West CUSD 10","32038010026","Iroquois","SD"]
["13095011004","04","Irvington CCSD 11","13095011004","Washington","SD"]
["19022010002","02","Itasca SD 10","19022010002","Dupage","SD"]
["13058007004","04","Iuka CCSD 7","13058007004","Marion","SD"]
["06016201017","17","J S Morton HSD 201","06016201017","Cook","SD"]
["30000000046","46","Jackson/Perry Co Reg Del System","30000000046","Jackson/Perry","JA"]
["01069117022","22","Jacksonville SD 117","01069117022","Morgan","SD"]
["30077801060","60","Jamp Spec Educ Services","30077801060","Pulaski","JA"]
["20096017004","04","Jasper CCSD 17","20096017004","Wayne","SD"]
["12040001026","26","Jasper County CUD 1","12040001026","Jasper","SD"]
["40042100026","26","Jersey CUSD 100","40042100026","Jersey","SD"]
["08043790040","40","Jo Daviess Carroll CTE Academy","08043790040","Jo Daviess","JA"]
["44063012026","26","Johnsburg CUSD 12","44063012026","McHenry","SD"]
["21100001026","26","Johnston City CUSD 1","21100001026","Williamson","SD"]
["56099086005","05","Joliet PSD 86","56099086005","Will","SD"]
["56099204017","17","Joliet Twp HSD 204","56099204017","Will","SD"]
["21061038026","26","Joppa-Maple Grove UD 38","21061038026","Massac","SD"]
["31045302026","26","Kaneland CUSD 302","31045302026","Kane","SD"]
["32000000040","40","Kankakee Area Career Center","32000000040","Kankakee","JA"]
["32000000046","46","Kankakee Area Reg Voc Ed System","32000000046","Kankakee","JA"]
["32046850060","60","Kankakee Area Spec Educ Coop","32046850060","Kankakee","JA"]
["32046111025","25","Kankakee SD 111","32046111025","Kankakee","SD"]
["11023003026","26","Kansas CUSD 3","11023003026","Edgar","SD"]
["13058801060","60","Kaskaskia Spec Educ District","13058801060","Marion","JA"]
["16000000040","40","KEC  Area Voc Center","16000000040","Dekalb","JA"]
["19022020002","02","Keeneyville SD 20","19022020002","Dupage","SD"]
["13058002003","03","Kell Cons SD 2","13058002003","Marion","SD"]
["05016038002","02","Kenilworth SD 38","05016038002","Cook","SD"]
["28037229026","26","Kewanee CUSD 229","28037229026","Henry","SD"]
["34049096004","04","Kildeer Countryside CCSD 96","34049096004","Lake","SD"]
["47071144003","03","Kings Cons SD 144","47071144003","Ogle","SD"]
["04101131004","04","Kinnikinnick CCSD 131","04101131004","Winnebago","SD"]
["07016140002","02","Kirby SD 140","07016140002","Cook","SD"]
["16000000046","46","Kishwaukee Educ Consortium","16000000046","DeKalb","JA"]
["33048801060","60","Knox Warren Special Education Districts","33048801060","Knox","JA"]
["33048202026","26","Knoxville CUSD 202","33048202026","Knox","SD"]
["06016094002","02","Komarek SD 94","06016094002","Cook","SD"]
["06016102002","02","La Grange SD 102","06016102002","Cook","SD"]
["06016105002","02","La Grange SD 105 South","06016105002","Cook","SD"]
["26034347004","04","La Harpe CSD 347","26034347004","Hancock","SD"]
["28006303026","26","La Moille CUSD 303","28006303026","Bureau","SD"]
["35050122002","02","La Salle ESD 122","35050122002","La Salle","SD"]
["35050120040","40","La Salle-Peru Area Career Ctr","35050120040","La Salle","JA"]
["35050120017","17","La Salle-Peru Twp HSD 120","35050120017","La Salle","SD"]
["28006094004","04","Ladd CCSD 94","28006094004","Bureau","SD"]
["06016204061","61","Lagrange Area Dept Spec Ed-Ladse","06016204061","Cook","JA"]
["06016106002","02","LaGrange Highlands SD 106","06016106002","Cook","SD"]
["34049065002","02","Lake Bluff ESD 65","34049065002","Lake","SD"]
["34049790040","40","Lake Co High Schools Tech Campus","34049790040","Lake","JA"]
["34049790046","46","Lake County Area Voc System","34049790046","Lake","JA"]
["34049115016","16","Lake Forest CHSD 115","34049115016","Lake","SD"]
["34049067005","05","Lake Forest SD 67","34049067005","Lake","SD"]
["19022108016","16","Lake Park CHSD 108","19022108016","Dupage","SD"]
["34049041004","04","Lake Villa CCSD 41","34049041004","Lake","SD"]
["34049095026","26","Lake Zurich CUSD 95","34049095026","Lake","SD"]
["07016158002","02","Lansing SD 158","07016158002","Cook","SD"]
["56099070C04","04","Laraway CCSD 70C","56099070C04","Will","SD"]
["35050000061","61","LaSalle Putnam Alliance","35050000061","La Salle","JA"]
["12051020026","26","Lawrence County CUD 20","12051020026","Lawrence","SD"]
["50082009026","26","Lebanon CUSD 9","50082009026","Saint Clair","SD"]
["47052170061","61","Lee County Spec Educ Assoc","47052170061","Lee","JA"]
["35050001026","26","Leland CUSD 1","35050001026","La Salle","SD"]
["07016210017","17","Lemont Twp HSD 210","07016210017","Cook","SD"]
["07016113A02","02","Lemont-Bromberek CSD 113A","07016113A02","Cook","SD"]
["08089202026","26","Lena Winslow CUSD 202","08089202026","Stephenson","SD"]
["17064002026","26","LeRoy CUSD 2","17064002026","McLean","SD"]
["26029097026","26","Lewistown CUSD 97","26029097026","Fulton","SD"]
["17064007026","26","Lexington CUSD 7","17064007026","McLean","SD"]
["06016083061","61","Leyden Area Spec Educ Coop","06016083061","Cook","JA"]
["06016212016","16","Leyden CHSD 212","06016212016","Cook","SD"]
["01001002026","26","Liberty CUSD 2","01001002026","Adams","SD"]
["34049070002","02","Libertyville SD 70","34049070002","Lake","SD"]
["30091016004","04","Lick Creek CCSD 16","30091016004","Union","SD"]
["48072310016","16","Limestone CHSD 310","48072310016","Peoria","SD"]
["48072316004","04","Limestone Walters CCSD 316","48072316004","Peoria","SD"]
["17054404016","16","Lincoln CHSD 404","17054404016","Logan","SD"]
["07016156002","02","Lincoln ESD 156","07016156002","Cook","SD"]
["17054027002","02","Lincoln ESD 27","17054027002","Logan","SD"]
["56099210016","16","Lincoln Way CHSD 210","56099210016","Will","SD"]
["17054404046","46","Lincolnland Reg Del System","17054404046","Logan","JA"]
["17054404041","41","Lincolnland Technical Ed Ctr","17054404041","Logan","JA"]
["34049103002","02","Lincolnshire-Prairieview SD 103","34049103002","Lake","SD"]
["56099843060","60","Lincoln-Way Area Spec Ed JA Dist","56099843060","Will","JA"]
["05016074002","02","Lincolnwood SD 74","05016074002","Cook","SD"]
["06016092002","02","Lindop SD 92","06016092002","Cook","SD"]
["24047090004","04","Lisbon CCSD 90","24047090004","Kendall","SD"]
["19022202026","26","Lisle CUSD 202","19022202026","Dupage","SD"]
["03068012026","26","Litchfield CUSD 12","03068012026","Montgomery","SD"]
["17053090041","41","Livingston Area Career Cntr","17053090041","Livingston","JA"]
["17053090046","46","Livingston Area Educ for Employ","17053090046","Livingston","JA"]
["17053000061","61","Livingston Co Spec Services Unit","17053000061","Livingston","JA"]
["56099088061","61","Lockport Area Spec Educ Coop","56099088061","Will","JA"]
["56099091002","02","Lockport SD 91","56099091002","Will","SD"]
["56099205017","17","Lockport Twp HSD 205","56099205017","Will","SD"]
["19022044002","02","Lombard SD 44","19022044002","Dupage","SD"]
["35050425026","26","Lostant CUSD 425","35050425026","La Salle","SD"]
["53102021026","26","Lowpoint-Washburn CUSD 21","53102021026","Woodford","SD"]
["09010142004","04","Ludlow CCSD 142","09010142004","Champaign","SD"]
["06016103002","02","Lyons SD 103","06016103002","Cook","SD"]
["06016204017","17","Lyons Twp HSD 204","06016204017","Cook","SD"]
["26062185026","26","Macomb CUSD 185","26062185026","McDonough","SD"]
["39055061061","61","Macon-Piatt Spec Educ Jnt Agr","39055061061","Macon","JA"]
["41057745045","45","Madison Co Career & Tech Ed Sys","41057745045","Madison","JA"]
["41057009061","61","Madison Co Reg I Spec Educ Coop","41057009061","Madison","JA"]
["41057000063","63","Madison County Voc Adj Counseling","41057000063","Madison","JA"]
["41057012026","26","Madison CUSD 12","41057012026","Madison","SD"]
["19022060002","02","Maercker SD 60","19022060002","Dupage","SD"]
["09010003026","26","Mahomet-Seymour CUSD 3","09010003026","Champaign","SD"]
["05016207017","17","Maine Township HSD 207","05016207017","Cook","SD"]
["28006084004","04","Malden CCSD 84","28006084004","Bureau","SD"]
["56099114002","02","Manhattan SD 114","56099114002","Will","SD"]
["06016083002","02","Mannheim SD 83","06016083002","Cook","SD"]
["32046005026","26","Manteno CUSD 5","32046005026","Kankakee","SD"]
["44063154016","16","Marengo CHSD 154","44063154016","McHenry","SD"]
["44063165003","03","Marengo-Union E Cons D 165","44063165003","McHenry","SD"]
["21100002026","26","Marion CUSD 2","21100002026","Williamson","SD"]
["13000000046","46","Marion/Clinton/Wash Co CTES","13000000046","Marion","JA"]
["50082040026","26","Marissa CUSD 40","50082040026","Saint Clair","SD"]
["39055002026","26","Maroa Forsyth CUSD 2","39055002026","Macon","SD"]
["19022015002","02","Marquardt SD 15","19022015002","Dupage","SD"]
["35050150002","02","Marseilles ESD 150","35050150002","La Salle","SD"]
["11012002C26","26","Marshall CUSD 2C","11012002C26","Clark","SD"]
["11012003C26","26","Martinsville CUSD 3C","11012003C26","Clark","SD"]
["50082019026","26","Mascoutah CUD 19","50082019026","Saint Clair","SD"]
["21061001026","26","Massac UD 1","21061001026","Massac","SD"]
["07016162002","02","Matteson ESD 162","07016162002","Cook","SD"]
["11015002026","26","Mattoon CUSD 2","11015002026","Coles","SD"]
["06016089002","02","Maywood-Melrose Park-Broadview 89","06016089002","Cook","SD"]
["24032002C02","02","Mazon-Verona-Kinsman ESD 2C","24032002C02","Grundy","SD"]
["13041012004","04","McClellan CCSD 12","13041012004","Jefferson","SD"]
["44063015004","04","McHenry CCSD 15","44063015004","McHenry","SD"]
["44063156016","16","McHenry CHSD 156","44063156016","McHenry","SD"]
["44000000046","46","McHenry Co Coop for Employ Educ","44000000046","McHenry","JA"]
["17064005026","26","McLean County USD 5","17064005026","McLean","SD"]
["17064087046","46","McLean/Dewitt Reg Voc System","17064087046","McLean","JA"]
["19022011002","02","Medinah SD 11","19022011002","Dupage","SD"]
["35050289004","04","Mendota CCSD 289","35050289004","La Salle","SD"]
["35050280017","17","Mendota Twp HSD 280","35050280017","La Salle","SD"]
["33066404026","26","Mercer County School District 404","33066404026","Mercer","SD"]
["01069011026","26","Meredosia-Chambersburg CUSD 11","01069011026","Morgan","SD"]
["30077101026","26","Meridian CUSD 101","30077101026","Pulaski","SD"]
["39055015026","26","Meridian CUSD 15","39055015026","Macon","SD"]
["47071223026","26","Meridian CUSD 223","47071223026","Ogle","SD"]
["53102001004","04","Metamora CCSD 1","53102001004","Woodford","SD"]
["35059007026","26","Midland CUSD 7","35059007026","Marshall","SD"]
["07016143002","02","Midlothian SD 143","07016143002","Cook","SD"]
["03011801060","60","Mid-State Spec Educ Jnt Agr","03011801060","Christian","JA"]
["31045303061","61","Mid-Valley Special Ed Coop","31045303061","Kane","JA"]
["53060191026","26","Midwest Central CUSD 191","53060191026","Mason","SD"]
["32038124026","26","Milford Area Public Schools District 124","32038124026","Iroquois","SD"]
["34049024004","04","Millburn CCSD 24","34049024004","Lake","SD"]
["35050210004","04","Miller Twp CCSD 210","35050210004","La Salle","SD"]
["50082160004","04","Millstadt CCSD 160","50082160004","Saint Clair","SD"]
["24032201004","04","Minooka CCSD 201","24032201004","Grundy","SD"]
["24032111016","16","Minooka CHSD 111","24032111016","Grundy","SD"]
["56099159002","02","Mokena SD 159","56099159002","Will","SD"]
["49081040022","22","Moline-Coal Valley CUSD 40","49081040022","Rock Island","SD"]
["32046001026","26","Momence CUSD 1","32046001026","Kankakee","SD"]
["33094238026","26","Monmouth-Roseville CUSD 238","33094238026","Warren","SD"]
["48072070002","02","Monroe SD 70","48072070002","Peoria","SD"]
["39074025026","26","Monticello CUSD 25","39074025026","Piatt","SD"]
["47098145004","04","Montmorency CCSD 145","47098145004","Whiteside","SD"]
["07016218046","46","Moraine Area Career System","07016218046","Cook","JA"]
["24032101016","16","Morris CHSD 101","24032101016","Grundy","SD"]
["24032054002","02","Morris SD 54","24032054002","Grundy","SD"]
["47098006026","26","Morrison CUSD 6","47098006026","Whiteside","SD"]
["03011001026","26","Morrisonville CUSD 1","03011001026","Christian","SD"]
["53090709026","26","Morton CUSD 709","53090709026","Tazewell","SD"]
["05016070002","02","Morton Grove SD 70","05016070002","Cook","SD"]
["06016201046","46","Morton Regional Del Sys","06016201046","Cook","JA"]
["40056005026","26","Mount Olive CUSD 5","40056005026","Macoupin","SD"]
["05016057002","02","Mount Prospect SD 57","05016057002","Cook","SD"]
["13041080002","02","Mount Vernon SD 80","13041080002","Jefferson","SD"]
["17054023026","26","Mt Pulaski CUSD 23","17054023026","Logan","SD"]
["13000000041","41","Mt Vernon Area Career Center","13000000041","Jefferson","JA"]
["13041201017","17","Mt Vernon Twp HSD 201","13041201017","Jefferson","SD"]
["39055003026","26","Mt Zion CUSD 3","39055003026","Macon","SD"]
["03003001026","26","Mulberry Grove CUSD 1","03003001026","Bond","SD"]
["34049120013","13","Mundelein Cons HSD 120","34049120013","Lake","SD"]
["34049075002","02","Mundelein ESD 75","34049075002","Lake","SD"]
["30039186026","26","Murphysboro CUSD 186","30039186026","Jackson","SD"]
["53090102002","02","N Pekin & Marquette Hght SD 102","53090102002","Tazewell","SD"]
["19022203026","26","Naperville CUSD 203","19022203026","Dupage","SD"]
["13095049004","04","Nashville CCSD 49","13095049004","Washington","SD"]
["13095099016","16","Nashville CHSD 99","13095099016","Washington","SD"]
["26034325026","26","Nauvoo-Colusa CUSD 325","26034325026","Hancock","SD"]
["11018003026","26","Neoga CUSD 3","11018003026","Cumberland","SD"]
["24032024C04","04","Nettle Creek CCSD 24C","24032024C04","Grundy","SD"]
["50082060026","26","New Athens CUSD 60","50082060026","Saint Clair","SD"]
["51084016026","26","New Berlin CUSD 16","51084016026","Sangamon","SD"]
["17054088002","02","New Holland-Middletown ED 88","17054088002","Logan","SD"]
["20096006004","04","New Hope CCSD 6","20096006004","Wayne","SD"]
["56099122002","02","New Lenox SD 122","56099122002","Will","SD"]
["21044032003","03","New Simpson Hill SD 32","21044032003","Johnson","SD"]
["05016203017","17","New Trier Twp HSD 203","05016203017","Cook","SD"]
["24047066004","04","Newark CCSD 66","24047066004","Kendall","SD"]
["24047018016","16","Newark CHSD 18","24047018016","Kendall","SD"]
["05016071002","02","Niles ESD 71","05016071002","Cook","SD"]
["05016807060","60","Niles Twp District for Spec Educ","05016807060","Cook","JA"]
["05016219017","17","Niles Twp HSD 219","05016219017","Cook","SD"]
["44063002003","03","Nippersink SD 2","44063002003","McHenry","SD"]
["03068022026","26","Nokomis CUSD 22","03068022026","Montgomery","SD"]
["06016080002","02","Norridge SD 80","06016080002","Cook","SD"]
["20097003026","26","Norris City-Omaha-Enfield CUSD 3","20097003026","White","SD"]
["04004200026","26","North Boone CUSD 200","04004200026","Boone","SD"]
["34049187026","26","North Chicago SD 187","34049187026","Lake","SD"]
["12013025026","26","North Clay CUSD 25","12013025026","Clay","SD"]
["19022802060","60","North DuPage Sp Ed Cooperative","19022802060","Dupage","JA"]
["40031003026","26","North Greene CUSD 3","40031003026","Greene","SD"]
["40056034026","26","North Mac CUSD 34","40056034026","Macoupin","SD"]
["07016117002","02","North Palos SD 117","07016117002","Cook","SD"]
["34049112002","02","North Shore SD 112","34049112002","Lake","SD"]
["05016207046","46","North Suburban Educ Reg for Voc","05016207046","Cook","JA"]
["13014186002","02","North Wamac SD 186","13014186002","Clinton","SD"]
["20096200026","26","North Wayne CUSD 200","20096200026","Wayne","SD"]
["05016027002","02","Northbrook ESD 27","05016027002","Cook","SD"]
["05016028002","02","Northbrook SD 28","05016028002","Cook","SD"]
["05016030002","02","Northbrook/Glenview SD 30","05016030002","Cook","SD"]
["31045301046","46","Northern Kane Co Reg Voc System","31045301046","Kane","JA"]
["05016214046","46","Northwest Educational Council for Student Success","05016214046","Cook","JA"]
["08043210061","61","Northwest Sp Ed Cooperative","08043210061","Jo Daviess","JA"]
["40056002026","26","Northwestern CUSD 2","40056002026","Macoupin","SD"]
["16019427061","61","Northwestern Illinois Assn","16019427061","Dekalb","JA"]
["48072063002","02","Norwood ESD 63","48072063002","Peoria","SD"]
["03011802060","60","NPT Special Education Coop","03011802060","Christian","JA"]
["05016805060","60","NW Suburban Spec Educ Org","05016805060","Cook","JA"]
["50082090004","04","O Fallon CCSD 90","50082090004","Saint Clair","SD"]
["50082203017","17","O Fallon Twp HSD 203","50082203017","Saint Clair","SD"]
["48072068002","02","Oak Grove SD 68  Bartonville","48072068002","Peoria","SD"]
["34049068002","02","Oak Grove SD 68 Green Oaks","34049068002","Lake","SD"]
["07016229016","16","Oak Lawn CHSD 229","07016229016","Cook","SD"]
["07016123002","02","Oak Lawn-Hometown SD 123","07016123002","Cook","SD"]
["06016200013","13","Oak Park - River Forest SD 200","06016200013","Cook","SD"]
["06016097002","02","Oak Park ESD 97","06016097002","Cook","SD"]
["13095001004","04","Oakdale CCSD 1","13095001004","Washington","SD"]
["11015005026","26","Oakland CUSD 5","11015005026","Coles","SD"]
["54092076026","26","Oakwood CUSD 76","54092076026","Vermilion","SD"]
["12017004026","26","Oblong CUSD 4","12017004026","Crawford","SD"]
["17053435004","04","Odell CCSD 435","17053435004","Livingston","SD"]
["13058722026","26","Odin PSD 722","13058722026","Marion","SD"]
["47071801060","60","Ogle Co Education Cooperative","47071801060","Ogle","JA"]
["35050125002","02","Oglesby ESD 125","35050125002","La Salle","SD"]
["20000000046","46","Ohio & Wabash Valley Reg Voc Sys","20000000046","Edw/Gal/Har/Ppe/Sal/Wab/Way/Whi","JA"]
["28006017004","04","Ohio CCSD 17","28006017004","Bureau","SD"]
["28006505016","16","Ohio CHSD 505","28006505016","Bureau","SD"]
["03026203041","41","Okaw Area Vocational Center","03026203041","Fayette","JA"]
["45000000046","46","Okaw Regional Voc System","45000000046","Monroe/Randolph/St. Clair","JA"]
["11070302026","26","Okaw Valley CUSD 302","11070302026","Moultrie","SD"]
["17064016026","26","Olympia CUSD 16","17064016026","McLean","SD"]
["13041005004","04","Opdyke-Belle-Rive CCSD 5","13041005004","Jefferson","SD"]
["08089203026","26","Orangeville CUSD 203","08089203026","Stephenson","SD"]
["47071220026","26","Oregon CUSD 220","47071220026","Ogle","SD"]
["28037223026","26","Orion CUSD 223","28037223026","Henry","SD"]
["07016135002","02","Orland SD 135","07016135002","Cook","SD"]
["35050141002","02","Ottawa ESD 141","35050141002","La Salle","SD"]
["35050140017","17","Ottawa Twp HSD 140","35050140017","La Salle","SD"]
["05016015004","04","Palatine CCSD 15","05016015004","Cook","SD"]
["12017003026","26","Palestine CUSD 3","12017003026","Crawford","SD"]
["07016118004","04","Palos CCSD 118","07016118004","Cook","SD"]
["07016128002","02","Palos Heights SD 128","07016128002","Cook","SD"]
["03011008026","26","Pana CUSD 8","03011008026","Christian","SD"]
["03068002026","26","Panhandle CUSD 2","03068002026","Montgomery","SD"]
["11023004026","26","Paris CUSD 4","11023004026","Edgar","SD"]
["11023095025","25","Paris-Union SD 95","11023095025","Edgar","SD"]
["07016163002","02","Park Forest SD 163","07016163002","Cook","SD"]
["05016064004","04","Park Ridge CCSD 64","05016064004","Cook","SD"]
["13058100026","26","Patoka CUSD 100","13058100026","Marion","SD"]
["47052271026","26","Paw Paw CUSD 271","47052271026","Lee","SD"]
["51084011026","26","Pawnee CUSD 11","51084011026","Sangamon","SD"]
["09027010026","26","Paxton-Buckley-Loda CUD 10","09027010026","Ford","SD"]
["01001001026","26","Payson CUSD 1","01001001026","Adams","SD"]
["08089200026","26","Pearl City CUSD 200","08089200026","Stephenson","SD"]
["04101321026","26","Pecatonica CUSD 321","04101321026","Winnebago","SD"]
["53090303016","16","Pekin CSD 303","53090303016","Tazewell","SD"]
["53090108002","02","Pekin PSD 108","53090108002","Tazewell","SD"]
["32046259004","04","Pembroke CCSD 259","32046259004","Kankakee","SD"]
["06016079002","02","Pennoyer SD 79","06016079002","Cook","SD"]
["48000000046","46","Peoria Educ Reg for Empl Traing","48000000046","Peoria","JA"]
["48072325026","26","Peoria Heights CUSD 325","48072325026","Peoria","SD"]
["48072150025","25","Peoria SD 150","48072150025","Peoria","SD"]
["56099207U26","26","Peotone CUSD 207U","56099207U26","Will","SD"]
["45079132061","61","Perandoe Spec Educ District","45079132061","Randolph","JA"]
["35050124002","02","Peru ESD 124","35050124002","La Salle","SD"]
["19000000063","63","Philip J Rock Center and School","19000000063",0,"JA"]
["01075010026","26","Pikeland CUSD 10","01075010026","Pike","SD"]
["30073101016","16","Pinckneyville CHSD 101","30073101016","Perry","SD"]
["30073050002","02","Pinckneyville SD 50","30073050002","Perry","SD"]
["56099202022","22","Plainfield SD 202","56099202022","Will","SD"]
["24047088061","61","Plano Area Special Ed Coop","24047088061","Kendall","JA"]
["24047088026","26","Plano CUSD 88","24047088026","Kendall","SD"]
["01075003026","26","Pleasant Hill CUSD 3","01075003026","Pike","SD"]
["48072069002","02","Pleasant Hill SD 69","48072069002","Peoria","SD"]
["51084008026","26","Pleasant Plains CUSD 8","51084008026","Sangamon","SD"]
["48072062002","02","Pleasant Valley SD 62","48072062002","Peoria","SD"]
["06016107002","02","Pleasantdale SD 107","06016107002","Cook","SD"]
["47071222026","26","Polo CUSD 222","47071222026","Ogle","SD"]
["17053429004","04","Pontiac CCSD 429","17053429004","Livingston","SD"]
["17053090017","17","Pontiac Twp HSD 90","17053090017","Livingston","SD"]
["50082105002","02","Pontiac-W Holliday SD 105","50082105002","Saint Clair","SD"]
["20076001026","26","Pope Co CUD 1","20076001026","Pope","SD"]
["51065202026","26","Porta CUSD 202","51065202026","Menard","SD"]
["07016143502","02","Posen-Robbins ESD 143-5","07016143502","Cook","SD"]
["54092010026","26","Potomac CUSD 10","54092010026","Vermilion","SD"]
["17053008026","26","Prairie Central CUSD 8","17053008026","Livingston","SD"]
["45079134004","04","Prairie Du Rocher CCSD 134","45079134004","Randolph","SD"]
["44063046003","03","Prairie Grove CSD 46","44063046003","McHenry","SD"]
["04101133004","04","Prairie Hill CCSD 133","04101133004","Winnebago","SD"]
["07016144002","02","Prairie-Hills ESD 144","07016144002","Cook","SD"]
["09010197004","04","Prairieview-Ogden CCSD 197","09010197004","Champaign","SD"]
["28006115002","02","Princeton ESD 115","28006115002","Bureau","SD"]
["28006500015","15","Princeton HSD 500","28006500015","Bureau","SD"]
["48072326026","26","Princeville CUSD 326","48072326026","Peoria","SD"]
["47098003026","26","Prophetstown-Lyndon-Tampico CUSD3","47098003026","Whiteside","SD"]
["05016023002","02","Prospect Heights SD 23","05016023002","Cook","SD"]
["06016803060","60","Proviso Area Exceptional Child","06016803060","Cook","JA"]
["06016209017","17","Proviso Twp HSD 209","06016209017","Cook","SD"]
["35078535026","26","Putnam County CUSD 535","35078535026","Putnam","SD"]
["49081030046","46","Quad City Career and Tech Ed Cons","49081030046","Rock Island","JA"]
["19022016002","02","Queen Bee SD 16","19022016002","Dupage","SD"]
["01001172041","41","Quincy Area Voc Ctr","01001172041","Adams","JA"]
["01001172022","22","Quincy SD 172","01001172022","Adams","SD"]
["33048208026","26","R O W V A CUSD 208","33048208026","Knox","SD"]
["13058001003","03","Raccoon Cons SD 1","13058001003","Marion","SD"]
["03026204026","26","Ramsey CUSD 204","03026204026","Fayette","SD"]
["53090098002","02","Rankin CSD 98","53090098002","Tazewell","SD"]
["09010137002","02","Rantoul City SD 137","09010137002","Champaign","SD"]
["09010193017","17","Rantoul Township HSD 193","09010193017","Champaign","SD"]
["07016220017","17","Reavis Twp HSD 220","07016220017","Cook","SD"]
["45079132026","26","Red Bud CUSD 132","45079132026","Randolph","SD"]
["12051010026","26","Red Hill CUSD 10","12051010026","Lawrence","SD"]
["56099255U26","26","Reed Custer CUSD 255U","56099255U26","Will","SD"]
["41057801060","60","Region III Spec Ed Coop","41057801060","Madison","JA"]
["51084731045","45","Regional Office of Car/Tech Educ","51084731045","Sangamon","JA"]
["13000000047","47","Rend Lake Area Reg Del System","13000000047","Jefferson/Hamilton/Wayne","JA"]
["06016084502","02","Rhodes SD 84-5","06016084502","Cook","SD"]
["07016227017","17","Rich Twp HSD 227","07016227017","Cook","SD"]
["12080001026","26","Richland County CUSD 1","12080001026","Richland","SD"]
["56099088A02","02","Richland GSD 88A","56099088A02","Will","SD"]
["44063157016","16","Richmond-Burton CHSD 157","44063157016","McHenry","SD"]
["07016122002","02","Ridgeland SD 122","07016122002","Cook","SD"]
["17064019026","26","Ridgeview CUSD 19","17064019026","McLean","SD"]
["06016234016","16","Ridgewood CHSD 234","06016234016","Cook","SD"]
["44063018004","04","Riley CCSD 18","44063018004","McHenry","SD"]
["47098002026","26","River Bend CUSD 2","47098002026","Whiteside","SD"]
["06016090002","02","River Forest SD 90","06016090002","Cook","SD"]
["06016085502","02","River Grove SD 85-5","06016085502","Cook","SD"]
["08043210026","26","River Ridge CUSD 210","08043210026","Jo Daviess","SD"]
["05016026002","02","River Trails SD 26","05016026002","Cook","SD"]
["49081100026","26","Riverdale CUSD 100","49081100026","Rock Island","SD"]
["06016096002","02","Riverside SD 96","06016096002","Cook","SD"]
["06016208017","17","Riverside-Brookfield Twp SD 208","06016208017","Cook","SD"]
["51084014026","26","Riverton CUSD 14","51084014026","Sangamon","SD"]
["53102002004","04","Riverview CCSD 2","53102002004","Woodford","SD"]
["53102060026","26","Roanoke Benson CUSD 60","53102060026","Woodford","SD"]
["53090085002","02","Robein SD 85","53090085002","Tazewell","SD"]
["12017002026","26","Robinson CUSD 2","12017002026","Crawford","SD"]
["47071231004","04","Rochelle CCSD 231","47071231004","Ogle","SD"]
["47071212017","17","Rochelle Twp HSD 212","47071212017","Ogle","SD"]
["51084003A26","26","Rochester CUSD 3A","51084003A26","Sangamon","SD"]
["47098013002","02","Rock Falls ESD 13","47098013002","Whiteside","SD"]
["47098301017","17","Rock Falls Twp HSD 301","47098301017","Whiteside","SD"]
["49081041025","25","Rock Island SD 41","49081041025","Rock Island","SD"]
["56099084002","02","Rockdale SD 84","56099084002","Will","SD"]
["04101205025","25","Rockford SD 205","04101205025","Winnebago","SD"]
["49081300026","26","Rockridge CUSD 300","49081300026","Rock Island","SD"]
["04101140004","04","Rockton SD 140","04101140004","Winnebago","SD"]
["13041002004","04","Rome CCSD 2","13041002004","Jefferson","SD"]
["34049072002","02","Rondout SD 72","34049072002","Lake","SD"]
["17053425004","04","Rooks Creek CCSD 425","17053425004","Livingston","SD"]
["19022012002","02","Roselle SD 12","19022012002","Dupage","SD"]
["06016078002","02","Rosemont ESD 78","06016078002","Cook","SD"]
["54092007026","26","Rossville-Alvin CUSD 7","54092007026","Vermilion","SD"]
["34049116026","26","Round Lake CUSD 116","34049116026","Lake","SD"]
["41057001026","26","Roxana CUSD 1","41057001026","Madison","SD"]
["09010801060","60","Rural Champaign Co Spec Ed Coop","09010801060","Champaign","JA"]
["35050230004","04","Rutland CCSD 230","35050230004","La Salle","SD"]
["56099030C61","61","S Will Co Coop for Spec Ed","56099030C61","Will","JA"]
["13058600016","16","Salem CHSD 600","13058600016","Marion","SD"]
["13058111002","02","Salem SD 111","13058111002","Marion","SD"]
["19022048002","02","Salt Creek SD 48","19022048002","Dupage","SD"]
["54092512026","26","Salt Fork Community Unit District  512","54092512026","Vermilion","SD"]
["13058501026","26","Sandoval CUSD 501","13058501026","Marion","SD"]
["07016172002","02","Sandridge SD 172","07016172002","Cook","SD"]
["16019430026","26","Sandwich CUSD 430","16019430026","Dekalb","SD"]
["51084010061","61","Sangamon Area Spec Ed Dist","51084010061","Sangamon","JA"]
["39055009026","26","Sangamon Valley CUSD 9","39055009026","Macon","SD"]
["24032060C04","04","Saratoga CCSD 60C","24032060C04","Grundy","SD"]
["17053438004","04","Saunemin CCSD 438","17053438004","Livingston","SD"]
["08043211026","26","Scales Mound CUSD 211","08043211026","Jo Daviess","SD"]
["05016054004","04","Schaumburg CCSD 54","05016054004","Cook","SD"]
["06016081002","02","Schiller Park SD 81","06016081002","Cook","SD"]
["19022803060","60","School Assn For Special Educ","19022803060","Dupage","JA"]
["26085005026","26","Schuyler-Industry CUSD 5","26085005026","Schuyler","SD"]
["01086002026","26","Scott-Morgan CUSD 2","01086002026","Scott","SD"]
["19022045002","02","SD 45 DuPage County","19022045002","Dupage","SD"]
["31045046022","22","SD U-46","31045046022","Kane","SD"]
["13058010004","04","Selmaville CCSD 10","13058010004","Marion","SD"]
["35050170004","04","Seneca CCSD 170","35050170004","La Salle","SD"]
["35050160017","17","Seneca Twp HSD 160","35050160017","La Salle","SD"]
["35050002026","26","Serena CUSD 2","35050002026","La Salle","SD"]
["21028196026","26","Sesser-Valier CUSD 196","21028196026","Franklin","SD"]
["30091084026","26","Shawnee CUSD 84","30091084026","Union","SD"]
["11087004026","26","Shelbyville CUSD 4","11087004026","Shelby","SD"]
["49081200026","26","Sherrard CUSD 200","49081200026","Rock Island","SD"]
["11023001026","26","Shiloh CUSD 1","11023001026","Edgar","SD"]
["50082085002","02","Shiloh Village SD 85","50082085002","Saint Clair","SD"]
["04101134004","04","Shirland CCSD 134","04101134004","Winnebago","SD"]
["50082181002","02","Signal Hill SD 181","50082181002","Saint Clair","SD"]
["49081034002","02","Silvis SD 34","49081034002","Rock Island","SD"]
["05016068002","02","Skokie SD 68","05016068002","Cook","SD"]
["05016069002","02","Skokie SD 69","05016069002","Cook","SD"]
["05016073502","02","Skokie SD 73-5","05016073502","Cook","SD"]
["50082130004","04","Smithton CCSD 130","50082130004","Saint Clair","SD"]
["16019432026","26","Somonauk CUSD 432","16019432026","Dekalb","SD"]
["13058401026","26","South Central CUD 401","13058401026","Marion","SD"]
["03068012040","40","South Central IL Reg Workforce Trng and Innovation Ctr","03068012040","Montgomery","JA"]
["12017801060","60","South Eastern Sp Ed Program","12017801060","Crawford","JA"]
["03011014024","24","South Fork SD 14","03011014024","Christian","SD"]
["07016150002","02","South Holland SD 150","07016150002","Cook","SD"]
["07016151002","02","South Holland SD 151","07016151002","Cook","SD"]
["40056801060","60","South Macoupin Association","40056801060","Macoupin","JA"]
["53090137002","02","South Pekin SD 137","53090137002","Tazewell","SD"]
["24032074003","03","South Wilmington CCSD 74","24032074003","Grundy","SD"]
["26034337026","26","Southeastern CUSD 337","26034337026","Hancock","SD"]
["07016142061","61","Southwest Cook Coop Spec Ed","07016142061","Cook","JA"]
["40056009026","26","Southwestern CUSD 9","40056009026","Macoupin","SD"]
["50082746045","45","Southwestern Illinois Career & Technical Education System","50082746045","Saint Clair","JA"]
["45079140026","26","Sparta CUSD 140","45079140026","Randolph","SD"]
["44063801060","60","Spec Ed Dist of McHenry Co-Sedom","44063801060","McHenry","JA"]
["01001172061","61","Spec Educ Assoc of Adams County","01001172061","Adams","JA"]
["48072000061","61","Spec Educ Assoc of Peoria County","48072000061","Peoria","JA"]
["34049825060","60","Spec Educ Dist Lake County/Sedol","34049825060","Lake","JA"]
["07016802060","60","Speed SEJA #802","07016802060","Cook","JA"]
["26029004026","26","Spoon River Valley CUSD 4","26029004026","Fulton","SD"]
["13041178004","04","Spring Garden Community Consolidated School District 178","13041178004","Jefferson","SD"]
["53090606004","04","Spring Lake CCSD 606","53090606004","Tazewell","SD"]
["28006099004","04","Spring Valley CCSD 99","28006099004","Bureau","SD"]
["51084186025","25","Springfield SD 186","51084186025","Sangamon","SD"]
["31045303026","26","St Charles CUSD 303","31045303026","Kane","SD"]
["50082000061","61","St Clair ROE Special Education","50082000061","Saint Clair","JA"]
["03026202026","26","St Elmo CUSD 202","03026202026","Fayette","SD"]
["32046258004","04","St George CCSD 258","32046258004","Kankakee","SD"]
["09010169004","04","St Joseph CCSD 169","09010169004","Champaign","SD"]
["09010305016","16","St Joseph Ogden CHSD 305","09010305016","Champaign","SD"]
["50082030003","03","St Libory Cons SD 30","50082030003","Saint Clair","SD"]
["13014141502","02","St Rose SD 14-15","13014141502","Clinton","SD"]
[32046024027,"27","St. Anne Unit District 24",32046024027,"Kankakee","SD"]
["28088100026","26","Stark County CUSD 100","28088100026","Stark","SD"]
["35050720045","45","Starved Rock for Voc Tech Ed","35050720045","La Salle","JA"]
["40056006026","26","Staunton CUSD 6","40056006026","Macoupin","SD"]
["45079138026","26","Steeleville CUSD 138","45079138026","Randolph","SD"]
["07016194002","02","Steger SD 194","07016194002","Cook","SD"]
["47098005026","26","Sterling CUSD 5","47098005026","Whiteside","SD"]
["47052220002","02","Steward ESD 220","47052220002","Lee","SD"]
["11087005A26","26","Stewardson-Strasburg CUD 5A","11087005A26","Shelby","SD"]
["08043206026","26","Stockton CUSD 206","08043206026","Jo Daviess","SD"]
["35050044002","02","Streator ESD 44","35050044002","La Salle","SD"]
["35050040017","17","Streator Twp HSD 40","35050040017","La Salle","SD"]
["11070300026","26","Sullivan CUSD 300","11070300026","Moultrie","SD"]
["13041079002","02","Summersville SD 79","13041079002","Jefferson","SD"]
["56099161002","02","Summit Hill SD 161","56099161002","Will","SD"]
["07016104002","02","Summit SD 104","07016104002","Cook","SD"]
["07016171002","02","Sunnybrook SD 171","07016171002","Cook","SD"]
["05016029002","02","Sunset Ridge SD 29","05016029002","Cook","SD"]
["16019427026","26","Sycamore CUSD 427","16019427026","Dekalb","SD"]
["56099090002","02","Taft SD 90","56099090002","Will","SD"]
["30073005002","02","Tamaroa School Dist 5","30073005002","Perry","SD"]
["03011003026","26","Taylorville CUSD 3","03011003026","Christian","SD"]
["53000000046","46","Tazewell Co Area EFE RDS","53000000046","Tazewell","JA"]
["53090309061","61","Tazewell-Mason Cntys Sp Ed Assoc","53090309061","Tazewell","JA"]
["19022502040","40","Technology Center of DuPage","19022502040","Dupage","JA"]
["03025050026","26","Teutopolis CUSD 50","03025050026","Effingham","SD"]
["09010130004","04","Thomasboro CCSD 130","09010130004","Champaign","SD"]
["21028174026","26","Thompsonville CUSD 174","21028174026","Franklin","SD"]
["07016215017","17","Thornton Fractional Twp HSD 215","07016215017","Cook","SD"]
["07016154002","02","Thornton SD 154","07016154002","Cook","SD"]
["07016205017","17","Thornton Twp HSD 205","07016205017","Cook","SD"]
["56099711045","45","Three Rivers EFE System","56099711045","Will","JA"]
["09010007026","26","Tolono CUSD 7","09010007026","Champaign","SD"]
["35050079004","04","Tonica CCSD 79","35050079004","La Salle","SD"]
["05016211017","17","Township HSD 211","05016211017","Cook","SD"]
["05016214017","17","Township HSD 214","05016214017","Cook","SD"]
["53090702026","26","Tremont CUSD 702","53090702026","Tazewell","SD"]
["51084001026","26","Tri City CUSD 1","51084001026","Sangamon","SD"]
["17053006J26","26","Tri Point CUSD 6-J","17053006J26","Livingston","SD"]
["17064003026","26","Tri Valley CUSD 3","17064003026","McLean","SD"]
["41057002026","26","Triad CUSD 2","41057002026","Madison","SD"]
["30039176026","26","Trico CUSD 176","30039176026","Jackson","SD"]
["30039186061","61","Tri-County Sp Ed Jnt Agreement","30039186061","Jackson","JA"]
["17064007061","61","Tri-County Spec Educ Assoc","17064007061","McLean","JA"]
["01069027026","26","Triopia CUSD 27","01069027026","Morgan","SD"]
["56099030C04","04","Troy CCSD 30C","56099030C04","Will","SD"]
["34049804060","60","TrueNorth Educl Cooprtv 804","34049804060","Lake","JA"]
["11021301026","26","Tuscola CUSD 301","11021301026","Douglas","SD"]
["12000000046","46","Twin Rivers Career & Tech Ed Sys","12000000046","Crawford","JA"]
["01009700045","45","Two Rivers Career Educ System","01009700045","Cass","JA"]
["34049113017","17","Twp HSD 113","34049113017","Lake","SD"]
["06016086002","02","Union Ridge SD 86","06016086002","Cook","SD"]
["56099081002","02","Union SD 81","56099081002","Will","SD"]
["33094304026","26","United CUSD 304","33094304026","Warren","SD"]
["49081030041","41","United Twp Area Career Ctr","49081030041","Rock Island","JA"]
["49081030017","17","United Twp HSD 30","49081030017","Rock Island","SD"]
["30039140004","04","Unity Point CCSD 140","30039140004","Jackson","SD"]
["09010116022","22","Urbana SD 116","09010116022","Champaign","SD"]
["26029002026","26","V I T CUSD 2","26029002026","Fulton","SD"]
["31000000046","46","Valley Educ for Employ System","31000000046","Kane","JA"]
["56099365U26","26","Valley View CUSD 365U","56099365U26","Will","SD"]
["45067003026","26","Valmeyer CUSD 3","45067003026","Monroe","SD"]
["03026203026","26","Vandalia CUSD 203","03026203026","Fayette","SD"]
["41057003026","26","Venice CUSD 3","41057003026","Madison","SD"]
["54092801060","60","Vermilion Assoc for Spec Educ","54092801060","Vermilion","JA"]
["54092740045","45","Vermilion Voc Ed Deliver System","54092740045","Vermilion","JA"]
["21044133017","17","Vienna HSD 133","21044133017","Johnson","SD"]
["21044055002","02","Vienna SD 55","21044055002","Johnson","SD"]
["11021302026","26","Villa Grove CUSD 302","11021302026","Douglas","SD"]
["01009064026","26","Virginia CUSD 64","01009064026","Cass","SD"]
["07016147002","02","W Harvey-Dixmoor PSD 147","07016147002","Cook","SD"]
["20097801060","60","Wabash & Ohio Valley Sp Ed Dist","20097801060","White","JA"]
["20093348026","26","Wabash CUSD 348","20093348026","Wabash","SD"]
["35050195004","04","Wallace CCSD 195","35050195004","La Salle","SD"]
["35050185004","04","Waltham CCSD 185","35050185004","La Salle","SD"]
["13041001026","26","Waltonville CUSD 1","13041001026","Jefferson","SD"]
["08043205026","26","Warren CUSD 205","08043205026","Jo Daviess","SD"]
["34049121017","17","Warren Twp HSD 121","34049121017","Lake","SD"]
["39055011026","26","Warrensburg-Latham CUSD 11","39055011026","Macon","SD"]
["26034316026","26","Warsaw CUSD 316","26034316026","Hancock","SD"]
["53090308016","16","Washington CHSD 308","53090308016","Tazewell","SD"]
["53090052002","02","Washington SD 52","53090052002","Tazewell","SD"]
["45067005026","26","Waterloo CUSD 5","45067005026","Monroe","SD"]
["34049118026","26","Wauconda CUSD 118","34049118026","Lake","SD"]
["34049060026","26","Waukegan CUSD 60","34049060026","Lake","SD"]
["01069006026","26","Waverly CUSD 6","01069006026","Morgan","SD"]
["20096100026","26","Wayne City CUSD 100","20096100026","Wayne","SD"]
["13014003026","26","Wesclin CUSD 3","13014003026","Clinton","SD"]
["08008314026","26","West Carroll CUSD 314","08008314026","Carroll","SD"]
["33036235026","26","West Central CUSD 235","33036235026","Henderson","SD"]
["26062000061","61","West Central IL Spec Educ Coop","26062000061","McDonough","JA"]
["01001172046","46","West Central Regional System","01001172046","Adams","JA"]
["19022033002","02","West Chicago ESD 33","19022033002","Dupage","SD"]
["17054092004","04","West Lincoln-Broadwell ESD 92","17054092004","Logan","SD"]
["05016031002","02","West Northfield SD 31","05016031002","Cook","SD"]
["26062103026","26","West Prairie CUSD 103","26062103026","McDonough","SD"]
["13095010026","26","West Washington Co CUD 10","13095010026","Washington","SD"]
["06016092502","02","Westchester SD 92-5","06016092502","Cook","SD"]
["26000000046","46","Western Area Career System 265","26000000046","McD/Ful/Han/Sch/Mas","JA"]
["01075012026","26","Western CUSD 12","01075012026","Pike","SD"]
["06016101002","02","Western Springs SD 101","06016101002","Cook","SD"]
["54092002026","26","Westville CUSD 2","54092002026","Vermilion","SD"]
["28037230026","26","Wethersfield CUSD 230","28037230026","Henry","SD"]
["05016021004","04","Wheeling CCSD 21","05016021004","Cook","SD"]
["47098005040","40","Whiteside Area Career","47098005040","Whiteside","JA"]
["47098005046","46","Whiteside Regional Voc System","47098005046","Whiteside","JA"]
["50082115002","02","Whiteside SD 115","50082115002","Saint Clair","SD"]
["56000000040","40","Wilco Area Career Center","56000000040","Will","JA"]
["56099092002","02","Will County SD 92","56099092002","Will","SD"]
["33048210026","26","Williamsfield CUSD 210","33048210026","Knox","SD"]
["21100801046","46","Williamson Co CTE System","21100801046","Williamson","JA"]
["21100801060","60","Williamson Co Spec Educ District","21100801060","Williamson","JA"]
["51084015026","26","Williamsville CUSD 15","51084015026","Sangamon","SD"]
["13014046002","02","Willow Grove SD 46","13014046002","Clinton","SD"]
["07016108002","02","Willow Springs SD 108","07016108002","Cook","SD"]
["05016039061","61","Wilmette Community Sp Ed Agreement","05016039061","Cook","JA"]
["05016039002","02","Wilmette SD 39","05016039002","Cook","SD"]
["56099209U26","26","Wilmington CUSD 209U","56099209U26","Will","SD"]
["01086001026","26","Winchester CUSD 1","01086001026","Scott","SD"]
["11087001026","26","Windsor CUSD 1","11087001026","Shelby","SD"]
["19022034002","02","Winfield SD 34","19022034002","Dupage","SD"]
["04101140061","61","Winnebago County Spec Educ Coop","04101140061","Winnebago","JA"]
["04101323026","26","Winnebago CUSD 323","04101323026","Winnebago","SD"]
["05016036002","02","Winnetka SD 36","05016036002","Cook","SD"]
["34049001002","02","Winthrop Harbor SD 1","34049001002","Lake","SD"]
["50082113002","02","Wolf Branch SD 113","50082113002","Saint Clair","SD"]
["19022007002","02","Wood Dale SD 7","19022007002","Dupage","SD"]
["41057015003","03","Wood River-Hartford ESD 15","41057015003","Madison","SD"]
["53102801060","60","Woodford Cty Special Ed Assoc","53102801060","Woodford","JA"]
["34049050004","04","Woodland CCSD 50","34049050004","Lake","SD"]
["17053005026","26","Woodland CUSD 5","17053005026","Livingston","SD"]
["13041209027","27","Woodlawn Unit School District 209","13041209027","Jefferson","SD"]
["19022068002","02","Woodridge SD 68","19022068002","Dupage","SD"]
["44063200026","26","Woodstock CUSD 200","44063200026","McHenry","SD"]
["07016127002","02","Worth SD 127","07016127002","Cook","SD"]
["24047115026","26","Yorkville CUSD 115","24047115026","Kendall","SD"]
["21028188026","26","Zeigler-Royalton CUSD 188","21028188026","Franklin","SD"]
["34049006002","02","Zion ESD 6","34049006002","Lake","SD"]
["34049126017","17","Zion-Benton Twp HSD 126","34049126017","Lake","SD"]

{"sheet":"B25","index":17,"n_rows":8000,"n_cols":17,"rows_kept":8000,"hidden":true}
["School District Name",{"$f":"Cover!H13","v":"Hoover-Schrum Memorial SD 157"},null,null,{"$f":"F1=B1","v":true},{"$f":"IF(G1<>\"\",INDIRECT(\"'\"&G1&\"'!\"&H1),\"\")","v":"Hoover-Schrum Memorial SD 157"},"Cover","H13",null,{"$f":"IF(COUNTIF(E:E,\"FALSE\")<>0,\"Problem\",IF(COUNTIF(E:E,\"#REF!\")<>0,\"Problem\",\"All Good\"))","v":"All Good"},null,"Fiscal Year"]
["School District ID",{"$f":"Cover!H14","v":"07016157002"},null,null,{"$f":"F2=B2","v":true},{"$f":"IF(G2<>\"\",INDIRECT(\"'\"&G2&\"'!\"&H2),\"\")","v":"07016157002"},"Cover","H14",{"$nulls":3},2025]
["Accounting Basis",{"$f":"Cover!B6","v":"x"},null,null,true,{"$f":"IF(G3<>\"\",INDIRECT(\"'\"&G3&\"'!\"&H3),\"\")","v":"x"},"Cover","B6",{"$nulls":3},"JA Due to ISBE",null,"SD Due to ISBE",null,null,{"$f":"IF(Cover!B2=\"x\",1,0)","v":1}]
["Is this a School District? (YES)",{"$f":"IF(Q3=0,0,\"x\")","v":"x"},null,null,true,{"$f":"IF(Q3=0,0,\"x\")","v":"x"},{"$nulls":5},"2022-09-30",2024,"2022-10-31",2024,null,{"$f":"IF(Cover!B3=\"x\",1,0)","v":0}]
["Is this a Joint Agreement? (YES) ",{"$f":"IF(Q4=0,0,\"x\")","v":0},null,null,true,{"$f":"IF(Q4=0,0,\"x\")","v":0}]
[1,{"$f":"'BudgetSum 2-4'!C18","v":0},{"$f":"A6-B6","v":1},null,true,{"$f":"IF(G6<>\"\",INDIRECT(\"'\"&G6&\"'!\"&H6),\"\")","v":0},"BudgetSum 2-4","C18"]
[2,{"$f":"'BudgetSum 2-4'!D18","v":0},{"$f":"A7-B7","v":2},null,true,{"$f":"IF(G7<>\"\",INDIRECT(\"'\"&G7&\"'!\"&H7),\"\")","v":0},"BudgetSum 2-4","D18"]
[3,{"$f":"'BudgetSum 2-4'!E18","v":0},3,null,true,{"$f":"IF(G8<>\"\",INDIRECT(\"'\"&G8&\"'!\"&H8),\"\")","v":0},"BudgetSum 2-4","E18"]
[4,{"$f":"'BudgetSum 2-4'!F18","v":0},4,null,true,{"$f":"IF(G9<>\"\",INDIRECT(\"'\"&G9&\"'!\"&H9),\"\")","v":0},"BudgetSum 2-4","F18"]
[5,{"$f":"'BudgetSum 2-4'!G18","v":0},5,null,true,{"$f":"IF(G10<>\"\",INDIRECT(\"'\"&G10&\"'!\"&H10),\"\")","v":0},"BudgetSum 2-4","G18"]
[6,{"$f":"'BudgetSum 2-4'!H18","v":0},6,null,true,{"$f":"IF(G11<>\"\",INDIRECT(\"'\"&G11&\"'!\"&H11),\"\")","v":0},"BudgetSum 2-4","H18"]
[7,{"$f":"'BudgetSum 2-4'!K18","v":0},7,null,true,{"$f":"IF(G12<>\"\",INDIRECT(\"'\"&G12&\"'!\"&H12),\"\")","v":0},"BudgetSum 2-4","K18"]
[8,{"$f":"'CashSum 5'!C4","v":{"v":12817900,"d":"12,817,900 "}},-12817892,null,true,{"$f":"IF(G13<>\"\",INDIRECT(\"'\"&G13&\"'!\"&H13),\"\")","v":12817900},"CashSum 5","C4"]
[9,{"$f":"'CashSum 5'!C7","v":{"v":0,"d":"0 "}},9,null,true,{"$f":"IF(G14<>\"\",INDIRECT(\"'\"&G14&\"'!\"&H14),\"\")","v":0},"CashSum 5","C7"]
[10,{"$f":"'CashSum 5'!C10","v":{"v":0,"d":"0 "}},10,null,true,{"$f":"IF(G15<>\"\",INDIRECT(\"'\"&G15&\"'!\"&H15),\"\")","v":0},"CashSum 5","C10"]
[11,{"$f":"'CashSum 5'!C11","v":{"v":12817900,"d":"12,817,900 "}},-12817889,null,true,{"$f":"IF(G16<>\"\",INDIRECT(\"'\"&G16&\"'!\"&H16),\"\")","v":12817900},"CashSum 5","C11"]
[12,{"$f":"'CashSum 5'!C12","v":{"v":20194398,"d":"20,194,398 "}},-20194386,null,true,{"$f":"IF(G17<>\"\",INDIRECT(\"'\"&G17&\"'!\"&H17),\"\")","v":20194398},"CashSum 5","C12"]
[13,{"$f":"'CashSum 5'!C13","v":{"v":13733956,"d":"13,733,956 "}},-13733943,null,true,{"$f":"IF(G18<>\"\",INDIRECT(\"'\"&G18&\"'!\"&H18),\"\")","v":13733956},"CashSum 5","C13"]
[14,{"$f":"'CashSum 5'!C15","v":{"v":0,"d":"0 "}},14,null,true,{"$f":"IF(G19<>\"\",INDIRECT(\"'\"&G19&\"'!\"&H19),\"\")","v":0},"CashSum 5","C15"]
[15,{"$f":"'CashSum 5'!C16","v":{"v":0,"d":"0 "}},15,null,true,{"$f":"IF(G20<>\"\",INDIRECT(\"'\"&G20&\"'!\"&H20),\"\")","v":0},"CashSum 5","C16"]
[16,null,null,"Close 2008",true,{"$f":"IF(G21<>\"\",INDIRECT(\"'\"&G21&\"'!\"&H21),\"\")","v":""}]
[17,{"$f":"'CashSum 5'!C17","v":{"v":0,"d":"0 "}},17,null,true,{"$f":"IF(G22<>\"\",INDIRECT(\"'\"&G22&\"'!\"&H22),\"\")","v":0},"CashSum 5","C17"]
[18,{"$f":"'CashSum 5'!C8","v":{"v":0,"d":"0 "}},18,null,true,{"$f":"IF(G23<>\"\",INDIRECT(\"'\"&G23&\"'!\"&H23),\"\")","v":0},"CashSum 5","C8"]
[19,null,null,"Close 2008",true,{"$f":"IF(G24<>\"\",INDIRECT(\"'\"&G24&\"'!\"&H24),\"\")","v":""}]
[20,null,null,"Close 2008",true,{"$f":"IF(G25<>\"\",INDIRECT(\"'\"&G25&\"'!\"&H25),\"\")","v":""}]
[21,{"$f":"'CashSum 5'!C18","v":{"v":0,"d":"0 "}},21,null,true,{"$f":"IF(G26<>\"\",INDIRECT(\"'\"&G26&\"'!\"&H26),\"\")","v":0},"CashSum 5","C18"]
[22,{"$f":"'CashSum 5'!C19","v":{"v":0,"d":"0 "}},22,null,true,{"$f":"IF(G27<>\"\",INDIRECT(\"'\"&G27&\"'!\"&H27),\"\")","v":0},"CashSum 5","C19"]
[23,{"$f":"'CashSum 5'!C20","v":{"v":13733956,"d":"13,733,956 "}},-13733933,null,true,{"$f":"IF(G28<>\"\",INDIRECT(\"'\"&G28&\"'!\"&H28),\"\")","v":13733956},"CashSum 5","C20"]
[24,{"$f":"'CashSum 5'!C21","v":{"v":6460442,"d":"6,460,442 "}},-6460418,null,true,{"$f":"IF(G29<>\"\",INDIRECT(\"'\"&G29&\"'!\"&H29),\"\")","v":6460442},"CashSum 5","C21"]
[25,{"$f":"'CashSum 5'!D4","v":{"v":1597000,"d":"1,597,000 "}},-1596975,null,true,{"$f":"IF(G30<>\"\",INDIRECT(\"'\"&G30&\"'!\"&H30),\"\")","v":1597000},"CashSum 5","D4"]
[26,{"$f":"'CashSum 5'!D7","v":{"v":0,"d":"0 "}},26,null,true,{"$f":"IF(G31<>\"\",INDIRECT(\"'\"&G31&\"'!\"&H31),\"\")","v":0},"CashSum 5","D7"]
[27,{"$f":"'CashSum 5'!D10","v":{"v":0,"d":"0 "}},27,null,true,{"$f":"IF(G32<>\"\",INDIRECT(\"'\"&G32&\"'!\"&H32),\"\")","v":0},"CashSum 5","D10"]
[28,{"$f":"'CashSum 5'!D11","v":{"v":1597000,"d":"1,597,000 "}},-1596972,null,true,{"$f":"IF(G33<>\"\",INDIRECT(\"'\"&G33&\"'!\"&H33),\"\")","v":1597000},"CashSum 5","D11"]
[29,{"$f":"'CashSum 5'!D12","v":{"v":1597000,"d":"1,597,000 "}},-1596971,null,true,{"$f":"IF(G34<>\"\",INDIRECT(\"'\"&G34&\"'!\"&H34),\"\")","v":1597000},"CashSum 5","D12"]
[30,{"$f":"'CashSum 5'!D13","v":{"v":1564500,"d":"1,564,500 "}},-1564470,null,true,{"$f":"IF(G35<>\"\",INDIRECT(\"'\"&G35&\"'!\"&H35),\"\")","v":1564500},"CashSum 5","D13"]
[31,{"$f":"'CashSum 5'!D15","v":{"v":0,"d":"0 "}},31,null,true,{"$f":"IF(G36<>\"\",INDIRECT(\"'\"&G36&\"'!\"&H36),\"\")","v":0},"CashSum 5","D15"]
[32,{"$f":"'CashSum 5'!D16","v":{"v":0,"d":"0 "}},32,null,true,{"$f":"IF(G37<>\"\",INDIRECT(\"'\"&G37&\"'!\"&H37),\"\")","v":0},"CashSum 5","D16"]
[33,null,null,"Close 2008",true,{"$f":"IF(G38<>\"\",INDIRECT(\"'\"&G38&\"'!\"&H38),\"\")","v":""}]
[34,{"$f":"'CashSum 5'!D17","v":{"v":0,"d":"0 "}},34,null,true,{"$f":"IF(G39<>\"\",INDIRECT(\"'\"&G39&\"'!\"&H39),\"\")","v":0},"CashSum 5","D17"]
[35,null,null,"Close 2008",true,{"$f":"IF(G40<>\"\",INDIRECT(\"'\"&G40&\"'!\"&H40),\"\")","v":""}]
[36,null,null,"Close 2008",true,{"$f":"IF(G41<>\"\",INDIRECT(\"'\"&G41&\"'!\"&H41),\"\")","v":""}]
[37,null,null,"Close 2008",true,{"$f":"IF(G42<>\"\",INDIRECT(\"'\"&G42&\"'!\"&H42),\"\")","v":""}]
[38,{"$f":"'CashSum 5'!D18","v":{"v":0,"d":"0 "}},38,null,true,{"$f":"IF(G43<>\"\",INDIRECT(\"'\"&G43&\"'!\"&H43),\"\")","v":0},"CashSum 5","D18"]
[39,{"$f":"'CashSum 5'!D19","v":{"v":0,"d":"0 "}},39,null,true,{"$f":"IF(G44<>\"\",INDIRECT(\"'\"&G44&\"'!\"&H44),\"\")","v":0},"CashSum 5","D19"]
[40,{"$f":"'CashSum 5'!D20","v":{"v":1564500,"d":"1,564,500 "}},-1564460,null,true,{"$f":"IF(G45<>\"\",INDIRECT(\"'\"&G45&\"'!\"&H45),\"\")","v":1564500},"CashSum 5","D20"]
[41,{"$f":"'CashSum 5'!D21","v":{"v":32500,"d":"32,500 "}},-32459,null,true,{"$f":"IF(G46<>\"\",INDIRECT(\"'\"&G46&\"'!\"&H46),\"\")","v":32500},"CashSum 5","D21"]
[42,{"$f":"'CashSum 5'!E4","v":{"v":2195000,"d":"2,195,000 "}},-2194958,null,true,{"$f":"IF(G47<>\"\",INDIRECT(\"'\"&G47&\"'!\"&H47),\"\")","v":2195000},"CashSum 5","E4"]
[43,{"$f":"'CashSum 5'!E10","v":{"v":0,"d":"0 "}},43,null,true,{"$f":"IF(G48<>\"\",INDIRECT(\"'\"&G48&\"'!\"&H48),\"\")","v":0},"CashSum 5","E10"]
[44,{"$f":"'CashSum 5'!E11","v":{"v":2195000,"d":"2,195,000 "}},-2194956,null,true,{"$f":"IF(G49<>\"\",INDIRECT(\"'\"&G49&\"'!\"&H49),\"\")","v":2195000},"CashSum 5","E11"]
[45,{"$f":"'CashSum 5'!E12","v":{"v":5252750,"d":"5,252,750 "}},-5252705,null,true,{"$f":"IF(G50<>\"\",INDIRECT(\"'\"&G50&\"'!\"&H50),\"\")","v":5252750},"CashSum 5","E12"]
[46,{"$f":"'CashSum 5'!E13","v":{"v":1437000,"d":"1,437,000 "}},-1436954,null,true,{"$f":"IF(G51<>\"\",INDIRECT(\"'\"&G51&\"'!\"&H51),\"\")","v":1437000},"CashSum 5","E13"]
[47,{"$f":"'CashSum 5'!E16","v":{"v":0,"d":"0 "}},47,null,true,{"$f":"IF(G52<>\"\",INDIRECT(\"'\"&G52&\"'!\"&H52),\"\")","v":0},"CashSum 5","E16"]
[48,null,null,"Close 2008",true,{"$f":"IF(G53<>\"\",INDIRECT(\"'\"&G53&\"'!\"&H53),\"\")","v":""}]
[49,null,null,"Close 2008",true,{"$f":"IF(G54<>\"\",INDIRECT(\"'\"&G54&\"'!\"&H54),\"\")","v":""}]
[50,{"$f":"'CashSum 5'!D8","v":{"v":0,"d":"0 "}},50,null,true,{"$f":"IF(G55<>\"\",INDIRECT(\"'\"&G55&\"'!\"&H55),\"\")","v":0},"CashSum 5","D8"]
[51,null,null,"Closed 2008",true,{"$f":"IF(G56<>\"\",INDIRECT(\"'\"&G56&\"'!\"&H56),\"\")","v":""}]
[52,{"$f":"'CashSum 5'!E18","v":{"v":0,"d":"0 "}},52,null,true,{"$f":"IF(G57<>\"\",INDIRECT(\"'\"&G57&\"'!\"&H57),\"\")","v":0},"CashSum 5","E18"]
[53,{"$f":"'CashSum 5'!E19","v":{"v":0,"d":"0 "}},53,null,true,{"$f":"IF(G58<>\"\",INDIRECT(\"'\"&G58&\"'!\"&H58),\"\")","v":0},"CashSum 5","E19"]
[54,{"$f":"'CashSum 5'!E20","v":{"v":1437000,"d":"1,437,000 "}},-1436946,null,true,{"$f":"IF(G59<>\"\",INDIRECT(\"'\"&G59&\"'!\"&H59),\"\")","v":1437000},"CashSum 5","E20"]
[55,{"$f":"'CashSum 5'!E21","v":{"v":3815750,"d":"3,815,750 "}},-3815695,null,true,{"$f":"IF(G60<>\"\",INDIRECT(\"'\"&G60&\"'!\"&H60),\"\")","v":3815750},"CashSum 5","E21"]
[56,{"$f":"'CashSum 5'!F4","v":{"v":510000,"d":"510,000 "}},-509944,null,true,{"$f":"IF(G61<>\"\",INDIRECT(\"'\"&G61&\"'!\"&H61),\"\")","v":510000},"CashSum 5","F4"]
[57,{"$f":"'CashSum 5'!F7","v":{"v":0,"d":"0 "}},57,null,true,{"$f":"IF(G62<>\"\",INDIRECT(\"'\"&G62&\"'!\"&H62),\"\")","v":0},"CashSum 5","F7"]
[58,{"$f":"'CashSum 5'!F10","v":{"v":0,"d":"0 "}},58,null,true,{"$f":"IF(G63<>\"\",INDIRECT(\"'\"&G63&\"'!\"&H63),\"\")","v":0},"CashSum 5","F10"]
[59,{"$f":"'CashSum 5'!F11","v":{"v":510000,"d":"510,000 "}},-509941,null,true,{"$f":"IF(G64<>\"\",INDIRECT(\"'\"&G64&\"'!\"&H64),\"\")","v":510000},"CashSum 5","F11"]
[60,{"$f":"'CashSum 5'!F12","v":{"v":510969,"d":"510,969 "}},-510909,null,true,{"$f":"IF(G65<>\"\",INDIRECT(\"'\"&G65&\"'!\"&H65),\"\")","v":510969},"CashSum 5","F12"]
[61,{"$f":"'CashSum 5'!F13","v":{"v":450000,"d":"450,000 "}},-449939,null,{"$f":"F66=B66","v":true},{"$f":"IF(G66<>\"\",INDIRECT(\"'\"&G66&\"'!\"&H66),\"\")","v":450000},"CashSum 5","F13"]
[62,{"$f":"'CashSum 5'!F15","v":{"v":0,"d":"0 "}},62,null,true,{"$f":"IF(G67<>\"\",INDIRECT(\"'\"&G67&\"'!\"&H67),\"\")","v":0},"CashSum 5","F15"]
[63,{"$f":"'CashSum 5'!F16","v":{"v":0,"d":"0 "}},63,null,true,{"$f":"IF(G68<>\"\",INDIRECT(\"'\"&G68&\"'!\"&H68),\"\")","v":0},"CashSum 5","F16"]
[64,null,null,"Close 2008",true,{"$f":"IF(G69<>\"\",INDIRECT(\"'\"&G69&\"'!\"&H69),\"\")","v":""}]
[65,{"$f":"'CashSum 5'!F17","v":{"v":0,"d":"0 "}},65,null,true,{"$f":"IF(G70<>\"\",INDIRECT(\"'\"&G70&\"'!\"&H70),\"\")","v":0},"CashSum 5","F17"]
[66,null,null,"Close 2008",true,{"$f":"IF(G71<>\"\",INDIRECT(\"'\"&G71&\"'!\"&H71),\"\")","v":""}]
[67,null,null,"Close 2008",true,{"$f":"IF(G72<>\"\",INDIRECT(\"'\"&G72&\"'!\"&H72),\"\")","v":""}]
[68,null,null,"Close 2008",true,{"$f":"IF(G73<>\"\",INDIRECT(\"'\"&G73&\"'!\"&H73),\"\")","v":""}]
[69,{"$f":"'CashSum 5'!F18","v":{"v":0,"d":"0 "}},{"$f":"A74-B74","v":69},null,true,{"$f":"IF(G74<>\"\",INDIRECT(\"'\"&G74&\"'!\"&H74),\"\")","v":0},"CashSum 5","F18"]
[70,{"$f":"'CashSum 5'!F19","v":{"v":0,"d":"0 "}},70,null,true,{"$f":"IF(G75<>\"\",INDIRECT(\"'\"&G75&\"'!\"&H75),\"\")","v":0},"CashSum 5","F19"]
[71,{"$f":"'CashSum 5'!F20","v":{"v":450000,"d":"450,000 "}},-449929,null,true,{"$f":"IF(G76<>\"\",INDIRECT(\"'\"&G76&\"'!\"&H76),\"\")","v":450000},"CashSum 5","F20"]
[72,{"$f":"'CashSum 5'!F21","v":{"v":60969,"d":"60,969 "}},-60897,null,true,{"$f":"IF(G77<>\"\",INDIRECT(\"'\"&G77&\"'!\"&H77),\"\")","v":60969},"CashSum 5","F21"]
[73,{"$f":"'CashSum 5'!G4","v":{"v":605000,"d":"605,000 "}},-604927,null,true,{"$f":"IF(G78<>\"\",INDIRECT(\"'\"&G78&\"'!\"&H78),\"\")","v":605000},"CashSum 5","G4"]
[74,{"$f":"'CashSum 5'!G10","v":{"v":0,"d":"0 "}},74,null,true,{"$f":"IF(G79<>\"\",INDIRECT(\"'\"&G79&\"'!\"&H79),\"\")","v":0},"CashSum 5","G10"]
[75,{"$f":"'CashSum 5'!G11","v":{"v":605000,"d":"605,000 "}},-604925,null,true,{"$f":"IF(G80<>\"\",INDIRECT(\"'\"&G80&\"'!\"&H80),\"\")","v":605000},"CashSum 5","G11"]
[76,{"$f":"'CashSum 5'!G12","v":{"v":617048,"d":"617,048 "}},-616972,null,true,{"$f":"IF(G81<>\"\",INDIRECT(\"'\"&G81&\"'!\"&H81),\"\")","v":617048},"CashSum 5","G12"]
[77,{"$f":"'CashSum 5'!G13","v":{"v":600900,"d":"600,900 "}},-600823,null,true,{"$f":"IF(G82<>\"\",INDIRECT(\"'\"&G82&\"'!\"&H82),\"\")","v":600900},"CashSum 5","G13"]
[78,{"$f":"'CashSum 5'!G16","v":{"v":0,"d":"0 "}},78,null,true,{"$f":"IF(G83<>\"\",INDIRECT(\"'\"&G83&\"'!\"&H83),\"\")","v":0},"CashSum 5","G16"]
[79,null,null,"Close 2008",true,{"$f":"IF(G84<>\"\",INDIRECT(\"'\"&G84&\"'!\"&H84),\"\")","v":""}]
[80,{"$f":"'CashSum 5'!G17","v":{"v":0,"d":"0 "}},80,null,true,{"$f":"IF(G85<>\"\",INDIRECT(\"'\"&G85&\"'!\"&H85),\"\")","v":0},"CashSum 5","G17"]
[81,{"$nulls":3},true,{"$f":"IF(G86<>\"\",INDIRECT(\"'\"&G86&\"'!\"&H86),\"\")","v":""}]
[82,null,null,"Close 2008",true,{"$f":"IF(G87<>\"\",INDIRECT(\"'\"&G87&\"'!\"&H87),\"\")","v":""}]
[83,{"$f":"'CashSum 5'!G18","v":{"v":0,"d":"0 "}},83,null,true,{"$f":"IF(G88<>\"\",INDIRECT(\"'\"&G88&\"'!\"&H88),\"\")","v":0},"CashSum 5","G18"]
[84,{"$f":"'CashSum 5'!G19","v":{"v":0,"d":"0 "}},84,null,true,{"$f":"IF(G89<>\"\",INDIRECT(\"'\"&G89&\"'!\"&H89),\"\")","v":0},"CashSum 5","G19"]
[85,{"$f":"'CashSum 5'!G20","v":{"v":600900,"d":"600,900 "}},-600815,null,true,{"$f":"IF(G90<>\"\",INDIRECT(\"'\"&G90&\"'!\"&H90),\"\")","v":600900},"CashSum 5","G20"]
[86,{"$f":"'CashSum 5'!G21","v":{"v":16148,"d":"16,148 "}},-16062,null,true,{"$f":"IF(G91<>\"\",INDIRECT(\"'\"&G91&\"'!\"&H91),\"\")","v":16148},"CashSum 5","G21"]
[87,{"$f":"'CashSum 5'!H4","v":{"v":203000,"d":"203,000 "}},-202913,null,true,{"$f":"IF(G92<>\"\",INDIRECT(\"'\"&G92&\"'!\"&H92),\"\")","v":203000},"CashSum 5","H4"]
[88,{"$f":"'CashSum 5'!H10","v":{"v":0,"d":"0 "}},88,null,true,{"$f":"IF(G93<>\"\",INDIRECT(\"'\"&G93&\"'!\"&H93),\"\")","v":0},"CashSum 5","H10"]
[89,{"$f":"'CashSum 5'!H11","v":{"v":203000,"d":"203,000 "}},-202911,null,true,{"$f":"IF(G94<>\"\",INDIRECT(\"'\"&G94&\"'!\"&H94),\"\")","v":203000},"CashSum 5","H11"]
[90,{"$f":"'CashSum 5'!H12","v":{"v":203000,"d":"203,000 "}},-202910,null,true,{"$f":"IF(G95<>\"\",INDIRECT(\"'\"&G95&\"'!\"&H95),\"\")","v":203000},"CashSum 5","H12"]
[91,{"$f":"'CashSum 5'!H13","v":{"v":203000,"d":"203,000 "}},-202909,null,true,{"$f":"IF(G96<>\"\",INDIRECT(\"'\"&G96&\"'!\"&H96),\"\")","v":203000},"CashSum 5","H13"]
[92,{"$f":"'CashSum 5'!H16","v":{"v":0,"d":"0 "}},92,null,true,{"$f":"IF(G97<>\"\",INDIRECT(\"'\"&G97&\"'!\"&H97),\"\")","v":0},"CashSum 5","H16"]
[93,null,null,"Close 2008",true,{"$f":"IF(G98<>\"\",INDIRECT(\"'\"&G98&\"'!\"&H98),\"\")","v":""}]
[94,{"$f":"'CashSum 5'!H19","v":{"v":0,"d":"0 "}},94,null,true,{"$f":"IF(G99<>\"\",INDIRECT(\"'\"&G99&\"'!\"&H99),\"\")","v":0},"CashSum 5","H19"]
[95,{"$f":"'CashSum 5'!H20","v":{"v":203000,"d":"203,000 "}},-202905,null,true,{"$f":"IF(G100<>\"\",INDIRECT(\"'\"&G100&\"'!\"&H100),\"\")","v":203000},"CashSum 5","H20"]
[96,{"$f":"'CashSum 5'!H21","v":{"v":0,"d":"0 "}},96,null,true,{"$f":"IF(G101<>\"\",INDIRECT(\"'\"&G101&\"'!\"&H101),\"\")","v":0},"CashSum 5","H21"]
[97,{"$f":"'CashSum 5'!I4","v":{"v":27000,"d":"27,000 "}},-26903,null,true,{"$f":"IF(G102<>\"\",INDIRECT(\"'\"&G102&\"'!\"&H102),\"\")","v":27000},"CashSum 5","I4"]
[98,{"$f":"'CashSum 5'!I7","v":{"v":0,"d":"0 "}},98,null,true,{"$f":"IF(G103<>\"\",INDIRECT(\"'\"&G103&\"'!\"&H103),\"\")","v":0},"CashSum 5","I7"]
[99,{"$f":"'CashSum 5'!I10","v":{"v":0,"d":"0 "}},99,null,true,{"$f":"IF(G104<>\"\",INDIRECT(\"'\"&G104&\"'!\"&H104),\"\")","v":0},"CashSum 5","I10"]
[100,{"$f":"'CashSum 5'!I11","v":{"v":27000,"d":"27,000 "}},-26900,null,true,{"$f":"IF(G105<>\"\",INDIRECT(\"'\"&G105&\"'!\"&H105),\"\")","v":27000},"CashSum 5","I11"]
[101,{"$f":"'CashSum 5'!I12","v":{"v":5031949,"d":"5,031,949 "}},-5031848,null,true,{"$f":"IF(G106<>\"\",INDIRECT(\"'\"&G106&\"'!\"&H106),\"\")","v":5031949},"CashSum 5","I12"]
[102,{"$f":"'CashSum 5'!I13","v":{"v":0,"d":"0 "}},102,null,true,{"$f":"IF(G107<>\"\",INDIRECT(\"'\"&G107&\"'!\"&H107),\"\")","v":0},"CashSum 5","I13"]
[103,{"$f":"'CashSum 5'!I15","v":{"v":0,"d":"0 "}},103,null,true,{"$f":"IF(G108<>\"\",INDIRECT(\"'\"&G108&\"'!\"&H108),\"\")","v":0},"CashSum 5","I15"]
[104,null,null,"Close 2008",true,{"$f":"IF(G109<>\"\",INDIRECT(\"'\"&G109&\"'!\"&H109),\"\")","v":""}]
[105,{"$f":"'CashSum 5'!I19","v":{"v":0,"d":"0 "}},105,null,true,{"$f":"IF(G110<>\"\",INDIRECT(\"'\"&G110&\"'!\"&H110),\"\")","v":0},"CashSum 5","I19"]
[106,{"$f":"'CashSum 5'!I20","v":{"v":0,"d":"0 "}},106,null,true,{"$f":"IF(G111<>\"\",INDIRECT(\"'\"&G111&\"'!\"&H111),\"\")","v":0},"CashSum 5","I20"]
[107,{"$f":"'CashSum 5'!I21","v":{"v":5031949,"d":"5,031,949 "}},-5031842,null,true,{"$f":"IF(G112<>\"\",INDIRECT(\"'\"&G112&\"'!\"&H112),\"\")","v":5031949},"CashSum 5","I21"]
[108,null,null,"Close 2008",true,{"$f":"IF(G113<>\"\",INDIRECT(\"'\"&G113&\"'!\"&H113),\"\")","v":""}]
[109,null,null,"Close 2008",true,{"$f":"IF(G114<>\"\",INDIRECT(\"'\"&G114&\"'!\"&H114),\"\")","v":""}]
[110,null,null,"Close 2008",true,{"$f":"IF(G115<>\"\",INDIRECT(\"'\"&G115&\"'!\"&H115),\"\")","v":""}]
[111,null,null,"Close 2008",true,{"$f":"IF(G116<>\"\",INDIRECT(\"'\"&G116&\"'!\"&H116),\"\")","v":""}]
[112,null,null,"Close 2008",true,{"$f":"IF(G117<>\"\",INDIRECT(\"'\"&G117&\"'!\"&H117),\"\")","v":""}]
[113,null,null,"Close 2008",true,{"$f":"IF(G118<>\"\",INDIRECT(\"'\"&G118&\"'!\"&H118),\"\")","v":""}]
[114,null,null,"Close 2008",true,{"$f":"IF(G119<>\"\",INDIRECT(\"'\"&G119&\"'!\"&H119),\"\")","v":""}]
[115,null,null,"Close 2008",true,{"$f":"IF(G120<>\"\",INDIRECT(\"'\"&G120&\"'!\"&H120),\"\")","v":""}]
[116,null,null,"Close 2008",true,{"$f":"IF(G121<>\"\",INDIRECT(\"'\"&G121&\"'!\"&H121),\"\")","v":""}]
[117,null,null,"Close 2008",true,{"$f":"IF(G122<>\"\",INDIRECT(\"'\"&G122&\"'!\"&H122),\"\")","v":""}]
[118,null,null,"Close 2008",true,{"$f":"IF(G123<>\"\",INDIRECT(\"'\"&G123&\"'!\"&H123),\"\")","v":""}]
[119,null,null,"Close 2008",true,{"$f":"IF(G124<>\"\",INDIRECT(\"'\"&G124&\"'!\"&H124),\"\")","v":""}]
[120,{"$f":"'CashSum 5'!K4","v":{"v":178000,"d":"178,000 "}},-177880,null,true,{"$f":"IF(G125<>\"\",INDIRECT(\"'\"&G125&\"'!\"&H125),\"\")","v":178000},"CashSum 5","K4"]
[121,{"$f":"'CashSum 5'!K10","v":{"v":0,"d":"0 "}},121,null,true,{"$f":"IF(G126<>\"\",INDIRECT(\"'\"&G126&\"'!\"&H126),\"\")","v":0},"CashSum 5","K10"]
[122,{"$f":"'CashSum 5'!K11","v":{"v":178000,"d":"178,000 "}},-177878,null,true,{"$f":"IF(G127<>\"\",INDIRECT(\"'\"&G127&\"'!\"&H127),\"\")","v":178000},"CashSum 5","K11"]
[123,{"$f":"'CashSum 5'!K12","v":{"v":178000,"d":"178,000 "}},-177877,null,true,{"$f":"IF(G128<>\"\",INDIRECT(\"'\"&G128&\"'!\"&H128),\"\")","v":178000},"CashSum 5","K12"]
[124,{"$f":"'CashSum 5'!K13","v":{"v":150000,"d":"150,000 "}},-149876,null,true,{"$f":"IF(G129<>\"\",INDIRECT(\"'\"&G129&\"'!\"&H129),\"\")","v":150000},"CashSum 5","K13"]
[125,{"$f":"'CashSum 5'!K16","v":{"v":0,"d":"0 "}},125,null,{"$f":"F130=B130","v":true},{"$f":"IF(G130<>\"\",INDIRECT(\"'\"&G130&\"'!\"&H130),\"\")","v":0},"CashSum 5","K16"]
[126,null,null,"Close 2008",true,{"$f":"IF(G131<>\"\",INDIRECT(\"'\"&G131&\"'!\"&H131),\"\")","v":""}]
[127,{"$f":"'CashSum 5'!K17","v":{"v":0,"d":"0 "}},127,null,true,{"$f":"IF(G132<>\"\",INDIRECT(\"'\"&G132&\"'!\"&H132),\"\")","v":0},"CashSum 5","K17"]
[128,null,null,"Close 2008",true,{"$f":"IF(G133<>\"\",INDIRECT(\"'\"&G133&\"'!\"&H133),\"\")","v":""}]
[129,null,null,"Close 2008",true,{"$f":"IF(G134<>\"\",INDIRECT(\"'\"&G134&\"'!\"&H134),\"\")","v":""}]
[130,{"$f":"'CashSum 5'!K19","v":{"v":0,"d":"0 "}},{"$f":"A135-B135","v":130},null,true,{"$f":"IF(G135<>\"\",INDIRECT(\"'\"&G135&\"'!\"&H135),\"\")","v":0},"CashSum 5","K19"]
[131,{"$f":"'CashSum 5'!K20","v":{"v":150000,"d":"150,000 "}},-149869,null,true,{"$f":"IF(G136<>\"\",INDIRECT(\"'\"&G136&\"'!\"&H136),\"\")","v":150000},"CashSum 5","K20"]
[132,{"$f":"'CashSum 5'!K21","v":{"v":28000,"d":"28,000 "}},-27868,null,true,{"$f":"IF(G137<>\"\",INDIRECT(\"'\"&G137&\"'!\"&H137),\"\")","v":28000},"CashSum 5","K21"]
[133,null,null,"Close 2008",true,{"$f":"IF(G138<>\"\",INDIRECT(\"'\"&G138&\"'!\"&H138),\"\")","v":""}]
[134,null,null,"Close 2008",true,{"$f":"IF(G139<>\"\",INDIRECT(\"'\"&G139&\"'!\"&H139),\"\")","v":""}]
[135,null,null,"Close 2008",true,{"$f":"IF(G140<>\"\",INDIRECT(\"'\"&G140&\"'!\"&H140),\"\")","v":""}]
[136,null,null,"Close 2008",true,{"$f":"IF(G141<>\"\",INDIRECT(\"'\"&G141&\"'!\"&H141),\"\")","v":""}]
[137,null,null,"Close 2008",true,{"$f":"IF(G142<>\"\",INDIRECT(\"'\"&G142&\"'!\"&H142),\"\")","v":""}]
[138,{"$f":"'EstExp 12-20'!H115","v":0},138,null,true,{"$f":"IF(G143<>\"\",INDIRECT(\"'\"&G143&\"'!\"&H143),\"\")","v":0},"EstExp 12-20","H115"]
[139,null,null,"Close 2008",true,{"$f":"IF(G144<>\"\",INDIRECT(\"'\"&G144&\"'!\"&H144),\"\")","v":""}]
[140,null,null,"Close 2008",true,{"$f":"IF(G145<>\"\",INDIRECT(\"'\"&G145&\"'!\"&H145),\"\")","v":""}]
[141,{"$f":"'EstExp 12-20'!K115","v":0},141,null,true,{"$f":"IF(G146<>\"\",INDIRECT(\"'\"&G146&\"'!\"&H146),\"\")","v":0},"EstExp 12-20","K115"]
[142,{"$f":"'EstExp 12-20'!H154","v":0},142,null,true,{"$f":"IF(G147<>\"\",INDIRECT(\"'\"&G147&\"'!\"&H147),\"\")","v":0},"EstExp 12-20","H154"]
[143,{"$f":"'EstExp 12-20'!K154","v":0},143,null,true,{"$f":"IF(G148<>\"\",INDIRECT(\"'\"&G148&\"'!\"&H148),\"\")","v":0},"EstExp 12-20","K154"]
[144,{"$f":"'EstExp 12-20'!H177","v":0},144,null,true,{"$f":"IF(G149<>\"\",INDIRECT(\"'\"&G149&\"'!\"&H149),\"\")","v":0},"EstExp 12-20","H177"]
[145,{"$f":"'EstExp 12-20'!K177","v":0},145,null,true,{"$f":"IF(G150<>\"\",INDIRECT(\"'\"&G150&\"'!\"&H150),\"\")","v":0},"EstExp 12-20","K177"]
[146,{"$f":"'EstExp 12-20'!H213","v":0},146,null,true,{"$f":"IF(G151<>\"\",INDIRECT(\"'\"&G151&\"'!\"&H151),\"\")","v":0},"EstExp 12-20","H213"]
[147,{"$f":"'EstExp 12-20'!K213","v":0},147,null,true,{"$f":"IF(G152<>\"\",INDIRECT(\"'\"&G152&\"'!\"&H152),\"\")","v":0},"EstExp 12-20","K213"]
[148,{"$f":"'EstExp 12-20'!H291","v":0},148,null,true,{"$f":"IF(G153<>\"\",INDIRECT(\"'\"&G153&\"'!\"&H153),\"\")","v":0},"EstExp 12-20","H291"]
[149,{"$f":"'EstExp 12-20'!K291","v":0},149,null,true,{"$f":"IF(G154<>\"\",INDIRECT(\"'\"&G154&\"'!\"&H154),\"\")","v":0},"EstExp 12-20","K291"]
[150,{"$f":"'EstExp 12-20'!H308","v":0},150,null,true,{"$f":"IF(G155<>\"\",INDIRECT(\"'\"&G155&\"'!\"&H155),\"\")","v":0},"EstExp 12-20","H308"]
[151,{"$f":"'EstExp 12-20'!K308","v":0},151,null,true,{"$f":"IF(G156<>\"\",INDIRECT(\"'\"&G156&\"'!\"&H156),\"\")","v":0},"EstExp 12-20","K308"]
[152,{"$f":"'EstExp 12-20'!H452","v":0},152,null,true,{"$f":"IF(G157<>\"\",INDIRECT(\"'\"&G157&\"'!\"&H157),\"\")","v":0},"EstExp 12-20","H452"]
[153,{"$f":"'EstExp 12-20'!K452","v":0},153,null,true,{"$f":"IF(G158<>\"\",INDIRECT(\"'\"&G158&\"'!\"&H158),\"\")","v":0},"EstExp 12-20","K452"]
[154,{"$f":"'EstExp 12-20'!J18","v":{"v":0,"d":"0 "}},154,null,true,{"$f":"IF(G159<>\"\",INDIRECT(\"'\"&G159&\"'!\"&H159),\"\")","v":0},"EstExp 12-20","J18"]
[155,{"$nulls":3},true,{"$f":"IF(G160<>\"\",INDIRECT(\"'\"&G160&\"'!\"&H160),\"\")","v":""}]
[156,{"$nulls":3},true,{"$f":"IF(G161<>\"\",INDIRECT(\"'\"&G161&\"'!\"&H161),\"\")","v":""}]
[157,{"$nulls":3},true,{"$f":"IF(G162<>\"\",INDIRECT(\"'\"&G162&\"'!\"&H162),\"\")","v":""}]
[158,{"$nulls":3},true,{"$f":"IF(G163<>\"\",INDIRECT(\"'\"&G163&\"'!\"&H163),\"\")","v":""}]
[159,{"$nulls":3},true,{"$f":"IF(G164<>\"\",INDIRECT(\"'\"&G164&\"'!\"&H164),\"\")","v":""}]
[160,{"$nulls":3},true,{"$f":"IF(G165<>\"\",INDIRECT(\"'\"&G165&\"'!\"&H165),\"\")","v":""}]
[161,{"$nulls":3},true,{"$f":"IF(G166<>\"\",INDIRECT(\"'\"&G166&\"'!\"&H166),\"\")","v":""}]
[162,{"$nulls":3},true,{"$f":"IF(G167<>\"\",INDIRECT(\"'\"&G167&\"'!\"&H167),\"\")","v":""}]
[163,{"$nulls":3},true,{"$f":"IF(G168<>\"\",INDIRECT(\"'\"&G168&\"'!\"&H168),\"\")","v":""}]
[164,{"$nulls":3},true,{"$f":"IF(G169<>\"\",INDIRECT(\"'\"&G169&\"'!\"&H169),\"\")","v":""}]
[165,{"$nulls":3},true,{"$f":"IF(G170<>\"\",INDIRECT(\"'\"&G170&\"'!\"&H170),\"\")","v":""}]
[166,{"$nulls":3},true,{"$f":"IF(G171<>\"\",INDIRECT(\"'\"&G171&\"'!\"&H171),\"\")","v":""}]
[167,{"$nulls":3},true,{"$f":"IF(G172<>\"\",INDIRECT(\"'\"&G172&\"'!\"&H172),\"\")","v":""}]
[168,{"$nulls":3},true,{"$f":"IF(G173<>\"\",INDIRECT(\"'\"&G173&\"'!\"&H173),\"\")","v":""}]
[169,{"$nulls":3},true,{"$f":"IF(G174<>\"\",INDIRECT(\"'\"&G174&\"'!\"&H174),\"\")","v":""}]
[170,{"$nulls":3},true,{"$f":"IF(G175<>\"\",INDIRECT(\"'\"&G175&\"'!\"&H175),\"\")","v":""}]
[171,{"$nulls":3},true,{"$f":"IF(G176<>\"\",INDIRECT(\"'\"&G176&\"'!\"&H176),\"\")","v":""}]
[172,{"$nulls":3},true,{"$f":"IF(G177<>\"\",INDIRECT(\"'\"&G177&\"'!\"&H177),\"\")","v":""}]
[173,{"$nulls":3},true,{"$f":"IF(G178<>\"\",INDIRECT(\"'\"&G178&\"'!\"&H178),\"\")","v":""}]
[174,{"$nulls":3},true,{"$f":"IF(G179<>\"\",INDIRECT(\"'\"&G179&\"'!\"&H179),\"\")","v":""}]
[175,{"$nulls":3},true,{"$f":"IF(G180<>\"\",INDIRECT(\"'\"&G180&\"'!\"&H180),\"\")","v":""}]
[176,{"$nulls":3},true,{"$f":"IF(G181<>\"\",INDIRECT(\"'\"&G181&\"'!\"&H181),\"\")","v":""}]
[177,{"$nulls":3},true,{"$f":"IF(G182<>\"\",INDIRECT(\"'\"&G182&\"'!\"&H182),\"\")","v":""}]
[178,{"$nulls":3},true,{"$f":"IF(G183<>\"\",INDIRECT(\"'\"&G183&\"'!\"&H183),\"\")","v":""}]
[179,{"$nulls":3},true,{"$f":"IF(G184<>\"\",INDIRECT(\"'\"&G184&\"'!\"&H184),\"\")","v":""}]
[180,{"$nulls":3},true,{"$f":"IF(G185<>\"\",INDIRECT(\"'\"&G185&\"'!\"&H185),\"\")","v":""}]
[181,{"$nulls":3},true,{"$f":"IF(G186<>\"\",INDIRECT(\"'\"&G186&\"'!\"&H186),\"\")","v":""}]
[182,{"$nulls":3},true,{"$f":"IF(G187<>\"\",INDIRECT(\"'\"&G187&\"'!\"&H187),\"\")","v":""}]
[183,{"$nulls":3},true,{"$f":"IF(G188<>\"\",INDIRECT(\"'\"&G188&\"'!\"&H188),\"\")","v":""}]
[184,null,null,"Close 2008",true,{"$f":"IF(G189<>\"\",INDIRECT(\"'\"&G189&\"'!\"&H189),\"\")","v":""}]
[185,{"$nulls":3},true,{"$f":"IF(G190<>\"\",INDIRECT(\"'\"&G190&\"'!\"&H190),\"\")","v":""}]
[186,{"$nulls":3},true,{"$f":"IF(G191<>\"\",INDIRECT(\"'\"&G191&\"'!\"&H191),\"\")","v":""}]
[187,{"$nulls":3},true,{"$f":"IF(G192<>\"\",INDIRECT(\"'\"&G192&\"'!\"&H192),\"\")","v":""}]
[188,{"$nulls":3},true,{"$f":"IF(G193<>\"\",INDIRECT(\"'\"&G193&\"'!\"&H193),\"\")","v":""}]
[189,{"$nulls":3},{"$f":"F194=B194","v":true},{"$f":"IF(G194<>\"\",INDIRECT(\"'\"&G194&\"'!\"&H194),\"\")","v":""}]
[190,{"$nulls":3},true,{"$f":"IF(G195<>\"\",INDIRECT(\"'\"&G195&\"'!\"&H195),\"\")","v":""}]
[191,{"$nulls":3},true,{"$f":"IF(G196<>\"\",INDIRECT(\"'\"&G196&\"'!\"&H196),\"\")","v":""}]
[192,{"$nulls":3},true,{"$f":"IF(G197<>\"\",INDIRECT(\"'\"&G197&\"'!\"&H197),\"\")","v":""}]
[193,{"$nulls":3},true,{"$f":"IF(G198<>\"\",INDIRECT(\"'\"&G198&\"'!\"&H198),\"\")","v":""}]
[194,{"$nulls":3},true,{"$f":"IF(G199<>\"\",INDIRECT(\"'\"&G199&\"'!\"&H199),\"\")","v":""}]
[195,{"$nulls":3},true,{"$f":"IF(G200<>\"\",INDIRECT(\"'\"&G200&\"'!\"&H200),\"\")","v":""}]
[196,{"$nulls":3},true,{"$f":"IF(G201<>\"\",INDIRECT(\"'\"&G201&\"'!\"&H201),\"\")","v":""}]
[197,{"$nulls":3},true,{"$f":"IF(G202<>\"\",INDIRECT(\"'\"&G202&\"'!\"&H202),\"\")","v":""}]
[198,{"$nulls":3},true,{"$f":"IF(G203<>\"\",INDIRECT(\"'\"&G203&\"'!\"&H203),\"\")","v":""}]
[199,{"$nulls":3},true,{"$f":"IF(G204<>\"\",INDIRECT(\"'\"&G204&\"'!\"&H204),\"\")","v":""}]
[200,{"$nulls":3},true,{"$f":"IF(G205<>\"\",INDIRECT(\"'\"&G205&\"'!\"&H205),\"\")","v":""}]
[201,{"$nulls":3},true,{"$f":"IF(G206<>\"\",INDIRECT(\"'\"&G206&\"'!\"&H206),\"\")","v":""}]
[202,{"$nulls":3},true,{"$f":"IF(G207<>\"\",INDIRECT(\"'\"&G207&\"'!\"&H207),\"\")","v":""}]
[203,{"$nulls":3},true,{"$f":"IF(G208<>\"\",INDIRECT(\"'\"&G208&\"'!\"&H208),\"\")","v":""}]
[204,{"$nulls":3},true,{"$f":"IF(G209<>\"\",INDIRECT(\"'\"&G209&\"'!\"&H209),\"\")","v":""}]
[205,{"$nulls":3},true,{"$f":"IF(G210<>\"\",INDIRECT(\"'\"&G210&\"'!\"&H210),\"\")","v":""}]
[206,{"$nulls":3},true,{"$f":"IF(G211<>\"\",INDIRECT(\"'\"&G211&\"'!\"&H211),\"\")","v":""}]
[207,{"$nulls":3},true,{"$f":"IF(G212<>\"\",INDIRECT(\"'\"&G212&\"'!\"&H212),\"\")","v":""}]
[208,{"$nulls":3},true,{"$f":"IF(G213<>\"\",INDIRECT(\"'\"&G213&\"'!\"&H213),\"\")","v":""}]
[209,{"$nulls":3},true,{"$f":"IF(G214<>\"\",INDIRECT(\"'\"&G214&\"'!\"&H214),\"\")","v":""}]
[210,{"$nulls":3},true,{"$f":"IF(G215<>\"\",INDIRECT(\"'\"&G215&\"'!\"&H215),\"\")","v":""}]
[211,{"$nulls":3},true,{"$f":"IF(G216<>\"\",INDIRECT(\"'\"&G216&\"'!\"&H216),\"\")","v":""}]
[212,{"$nulls":3},true,{"$f":"IF(G217<>\"\",INDIRECT(\"'\"&G217&\"'!\"&H217),\"\")","v":""}]
[213,{"$nulls":3},true,{"$f":"IF(G218<>\"\",INDIRECT(\"'\"&G218&\"'!\"&H218),\"\")","v":""}]
[214,{"$nulls":3},true,{"$f":"IF(G219<>\"\",INDIRECT(\"'\"&G219&\"'!\"&H219),\"\")","v":""}]
[215,{"$nulls":3},true,{"$f":"IF(G220<>\"\",INDIRECT(\"'\"&G220&\"'!\"&H220),\"\")","v":""}]
[216,{"$nulls":3},true,{"$f":"IF(G221<>\"\",INDIRECT(\"'\"&G221&\"'!\"&H221),\"\")","v":""}]
[217,{"$nulls":3},true,{"$f":"IF(G222<>\"\",INDIRECT(\"'\"&G222&\"'!\"&H222),\"\")","v":""}]
[218,{"$nulls":3},true,{"$f":"IF(G223<>\"\",INDIRECT(\"'\"&G223&\"'!\"&H223),\"\")","v":""}]
[219,{"$nulls":3},true,{"$f":"IF(G224<>\"\",INDIRECT(\"'\"&G224&\"'!\"&H224),\"\")","v":""}]
[220,{"$nulls":3},true,{"$f":"IF(G225<>\"\",INDIRECT(\"'\"&G225&\"'!\"&H225),\"\")","v":""}]
[221,{"$nulls":3},true,{"$f":"IF(G226<>\"\",INDIRECT(\"'\"&G226&\"'!\"&H226),\"\")","v":""}]
[222,{"$nulls":3},true,{"$f":"IF(G227<>\"\",INDIRECT(\"'\"&G227&\"'!\"&H227),\"\")","v":""}]
[223,{"$nulls":3},true,{"$f":"IF(G228<>\"\",INDIRECT(\"'\"&G228&\"'!\"&H228),\"\")","v":""}]
[224,{"$nulls":3},true,{"$f":"IF(G229<>\"\",INDIRECT(\"'\"&G229&\"'!\"&H229),\"\")","v":""}]
[225,{"$nulls":3},true,{"$f":"IF(G230<>\"\",INDIRECT(\"'\"&G230&\"'!\"&H230),\"\")","v":""}]
[226,{"$nulls":3},true,{"$f":"IF(G231<>\"\",INDIRECT(\"'\"&G231&\"'!\"&H231),\"\")","v":""}]
[227,{"$nulls":3},true,{"$f":"IF(G232<>\"\",INDIRECT(\"'\"&G232&\"'!\"&H232),\"\")","v":""}]
[228,{"$nulls":3},true,{"$f":"IF(G233<>\"\",INDIRECT(\"'\"&G233&\"'!\"&H233),\"\")","v":""}]
[229,{"$nulls":3},true,{"$f":"IF(G234<>\"\",INDIRECT(\"'\"&G234&\"'!\"&H234),\"\")","v":""}]
[230,{"$nulls":3},true,{"$f":"IF(G235<>\"\",INDIRECT(\"'\"&G235&\"'!\"&H235),\"\")","v":""}]
[231,{"$nulls":3},true,{"$f":"IF(G236<>\"\",INDIRECT(\"'\"&G236&\"'!\"&H236),\"\")","v":""}]
[232,{"$nulls":3},true,{"$f":"IF(G237<>\"\",INDIRECT(\"'\"&G237&\"'!\"&H237),\"\")","v":""}]
[233,{"$nulls":3},true,{"$f":"IF(G238<>\"\",INDIRECT(\"'\"&G238&\"'!\"&H238),\"\")","v":""}]
[234,{"$nulls":3},true,{"$f":"IF(G239<>\"\",INDIRECT(\"'\"&G239&\"'!\"&H239),\"\")","v":""}]
[235,{"$nulls":3},true,{"$f":"IF(G240<>\"\",INDIRECT(\"'\"&G240&\"'!\"&H240),\"\")","v":""}]
[236,{"$nulls":3},true,{"$f":"IF(G241<>\"\",INDIRECT(\"'\"&G241&\"'!\"&H241),\"\")","v":""}]
[237,{"$nulls":3},true,{"$f":"IF(G242<>\"\",INDIRECT(\"'\"&G242&\"'!\"&H242),\"\")","v":""}]
[238,{"$nulls":3},true,{"$f":"IF(G243<>\"\",INDIRECT(\"'\"&G243&\"'!\"&H243),\"\")","v":""}]
[239,{"$nulls":3},true,{"$f":"IF(G244<>\"\",INDIRECT(\"'\"&G244&\"'!\"&H244),\"\")","v":""}]
[240,{"$nulls":3},true,{"$f":"IF(G245<>\"\",INDIRECT(\"'\"&G245&\"'!\"&H245),\"\")","v":""}]
[241,{"$nulls":3},true,{"$f":"IF(G246<>\"\",INDIRECT(\"'\"&G246&\"'!\"&H246),\"\")","v":""}]
[242,{"$nulls":3},true,{"$f":"IF(G247<>\"\",INDIRECT(\"'\"&G247&\"'!\"&H247),\"\")","v":""}]
[243,{"$nulls":3},true,{"$f":"IF(G248<>\"\",INDIRECT(\"'\"&G248&\"'!\"&H248),\"\")","v":""}]
[244,{"$nulls":3},true,{"$f":"IF(G249<>\"\",INDIRECT(\"'\"&G249&\"'!\"&H249),\"\")","v":""}]
[245,{"$nulls":3},true,{"$f":"IF(G250<>\"\",INDIRECT(\"'\"&G250&\"'!\"&H250),\"\")","v":""}]
[246,{"$nulls":3},true,{"$f":"IF(G251<>\"\",INDIRECT(\"'\"&G251&\"'!\"&H251),\"\")","v":""}]
[247,{"$nulls":3},true,{"$f":"IF(G252<>\"\",INDIRECT(\"'\"&G252&\"'!\"&H252),\"\")","v":""}]
[248,{"$nulls":3},true,{"$f":"IF(G253<>\"\",INDIRECT(\"'\"&G253&\"'!\"&H253),\"\")","v":""}]
[249,{"$nulls":3},true,{"$f":"IF(G254<>\"\",INDIRECT(\"'\"&G254&\"'!\"&H254),\"\")","v":""}]
[250,{"$nulls":3},true,{"$f":"IF(G255<>\"\",INDIRECT(\"'\"&G255&\"'!\"&H255),\"\")","v":""}]
[251,{"$nulls":3},true,{"$f":"IF(G256<>\"\",INDIRECT(\"'\"&G256&\"'!\"&H256),\"\")","v":""}]
[252,{"$nulls":3},true,{"$f":"IF(G257<>\"\",INDIRECT(\"'\"&G257&\"'!\"&H257),\"\")","v":""}]
[253,{"$nulls":3},{"$f":"F258=B258","v":true},{"$f":"IF(G258<>\"\",INDIRECT(\"'\"&G258&\"'!\"&H258),\"\")","v":""}]
[254,{"$nulls":3},true,{"$f":"IF(G259<>\"\",INDIRECT(\"'\"&G259&\"'!\"&H259),\"\")","v":""}]
[255,{"$nulls":3},true,{"$f":"IF(G260<>\"\",INDIRECT(\"'\"&G260&\"'!\"&H260),\"\")","v":""}]
[256,{"$nulls":3},true,{"$f":"IF(G261<>\"\",INDIRECT(\"'\"&G261&\"'!\"&H261),\"\")","v":""}]
[257,{"$nulls":3},true,{"$f":"IF(G262<>\"\",INDIRECT(\"'\"&G262&\"'!\"&H262),\"\")","v":""}]
[258,{"$nulls":3},true,{"$f":"IF(G263<>\"\",INDIRECT(\"'\"&G263&\"'!\"&H263),\"\")","v":""}]
[259,{"$f":"'BudgetSum 2-4'!C26","v":0},{"$f":"A264-B264","v":259},null,true,{"$f":"IF(G264<>\"\",INDIRECT(\"'\"&G264&\"'!\"&H264),\"\")","v":0},"BudgetSum 2-4","C26"]
[260,{"$f":"'BudgetSum 2-4'!C28","v":0},260,null,true,{"$f":"IF(G265<>\"\",INDIRECT(\"'\"&G265&\"'!\"&H265),\"\")","v":0},"BudgetSum 2-4","C28"]
[261,{"$nulls":3},true,{"$f":"IF(G266<>\"\",INDIRECT(\"'\"&G266&\"'!\"&H266),\"\")","v":""}]
[262,{"$f":"'BudgetSum 2-4'!C35","v":0},262,null,true,{"$f":"IF(G267<>\"\",INDIRECT(\"'\"&G267&\"'!\"&H267),\"\")","v":0},"BudgetSum 2-4","C35"]
[263,{"$f":"'BudgetSum 2-4'!C36","v":0},263,null,true,{"$f":"IF(G268<>\"\",INDIRECT(\"'\"&G268&\"'!\"&H268),\"\")","v":0},"BudgetSum 2-4","C36"]
[264,{"$f":"'BudgetSum 2-4'!C37","v":0},264,null,true,{"$f":"IF(G269<>\"\",INDIRECT(\"'\"&G269&\"'!\"&H269),\"\")","v":0},"BudgetSum 2-4","C37"]
[265,{"$nulls":3},true,{"$f":"IF(G270<>\"\",INDIRECT(\"'\"&G270&\"'!\"&H270),\"\")","v":""}]
[266,{"$nulls":3},true,{"$f":"IF(G271<>\"\",INDIRECT(\"'\"&G271&\"'!\"&H271),\"\")","v":""}]
[267,{"$nulls":3},true,{"$f":"IF(G272<>\"\",INDIRECT(\"'\"&G272&\"'!\"&H272),\"\")","v":""}]
[268,{"$nulls":3},true,{"$f":"IF(G273<>\"\",INDIRECT(\"'\"&G273&\"'!\"&H273),\"\")","v":""}]
[269,{"$nulls":3},true,{"$f":"IF(G274<>\"\",INDIRECT(\"'\"&G274&\"'!\"&H274),\"\")","v":""}]
[270,{"$nulls":3},true,{"$f":"IF(G275<>\"\",INDIRECT(\"'\"&G275&\"'!\"&H275),\"\")","v":""}]
[271,{"$nulls":3},true,{"$f":"IF(G276<>\"\",INDIRECT(\"'\"&G276&\"'!\"&H276),\"\")","v":""}]
[272,{"$nulls":3},true,{"$f":"IF(G277<>\"\",INDIRECT(\"'\"&G277&\"'!\"&H277),\"\")","v":""}]
[273,{"$nulls":3},true,{"$f":"IF(G278<>\"\",INDIRECT(\"'\"&G278&\"'!\"&H278),\"\")","v":""}]
[274,{"$nulls":3},true,{"$f":"IF(G279<>\"\",INDIRECT(\"'\"&G279&\"'!\"&H279),\"\")","v":""}]
[275,{"$nulls":3},true,{"$f":"IF(G280<>\"\",INDIRECT(\"'\"&G280&\"'!\"&H280),\"\")","v":""}]
[276,{"$nulls":3},true,{"$f":"IF(G281<>\"\",INDIRECT(\"'\"&G281&\"'!\"&H281),\"\")","v":""}]
[277,{"$nulls":3},true,{"$f":"IF(G282<>\"\",INDIRECT(\"'\"&G282&\"'!\"&H282),\"\")","v":""}]
[278,{"$nulls":3},true,{"$f":"IF(G283<>\"\",INDIRECT(\"'\"&G283&\"'!\"&H283),\"\")","v":""}]
[279,{"$nulls":3},true,{"$f":"IF(G284<>\"\",INDIRECT(\"'\"&G284&\"'!\"&H284),\"\")","v":""}]
[280,{"$nulls":3},true,{"$f":"IF(G285<>\"\",INDIRECT(\"'\"&G285&\"'!\"&H285),\"\")","v":""}]
[281,{"$nulls":3},true,{"$f":"IF(G286<>\"\",INDIRECT(\"'\"&G286&\"'!\"&H286),\"\")","v":""}]
[282,{"$nulls":3},true,{"$f":"IF(G287<>\"\",INDIRECT(\"'\"&G287&\"'!\"&H287),\"\")","v":""}]
[283,{"$nulls":3},true,{"$f":"IF(G288<>\"\",INDIRECT(\"'\"&G288&\"'!\"&H288),\"\")","v":""}]
[284,{"$nulls":3},true,{"$f":"IF(G289<>\"\",INDIRECT(\"'\"&G289&\"'!\"&H289),\"\")","v":""}]
[285,{"$nulls":3},true,{"$f":"IF(G290<>\"\",INDIRECT(\"'\"&G290&\"'!\"&H290),\"\")","v":""}]
[286,{"$nulls":3},true,{"$f":"IF(G291<>\"\",INDIRECT(\"'\"&G291&\"'!\"&H291),\"\")","v":""}]
[287,{"$nulls":3},true,{"$f":"IF(G292<>\"\",INDIRECT(\"'\"&G292&\"'!\"&H292),\"\")","v":""}]
[288,{"$nulls":3},true,{"$f":"IF(G293<>\"\",INDIRECT(\"'\"&G293&\"'!\"&H293),\"\")","v":""}]
[289,{"$nulls":3},true,{"$f":"IF(G294<>\"\",INDIRECT(\"'\"&G294&\"'!\"&H294),\"\")","v":""}]
[290,{"$nulls":3},true,{"$f":"IF(G295<>\"\",INDIRECT(\"'\"&G295&\"'!\"&H295),\"\")","v":""}]
[291,{"$nulls":3},true,{"$f":"IF(G296<>\"\",INDIRECT(\"'\"&G296&\"'!\"&H296),\"\")","v":""}]
[292,{"$nulls":3},true,{"$f":"IF(G297<>\"\",INDIRECT(\"'\"&G297&\"'!\"&H297),\"\")","v":""}]
[293,{"$nulls":3},true,{"$f":"IF(G298<>\"\",INDIRECT(\"'\"&G298&\"'!\"&H298),\"\")","v":""}]
[294,{"$nulls":3},true,{"$f":"IF(G299<>\"\",INDIRECT(\"'\"&G299&\"'!\"&H299),\"\")","v":""}]
[295,{"$nulls":3},true,{"$f":"IF(G300<>\"\",INDIRECT(\"'\"&G300&\"'!\"&H300),\"\")","v":""}]
[296,{"$nulls":3},true,{"$f":"IF(G301<>\"\",INDIRECT(\"'\"&G301&\"'!\"&H301),\"\")","v":""}]
[297,{"$nulls":3},true,{"$f":"IF(G302<>\"\",INDIRECT(\"'\"&G302&\"'!\"&H302),\"\")","v":""}]
[298,{"$nulls":3},true,{"$f":"IF(G303<>\"\",INDIRECT(\"'\"&G303&\"'!\"&H303),\"\")","v":""}]
[299,{"$nulls":3},true,{"$f":"IF(G304<>\"\",INDIRECT(\"'\"&G304&\"'!\"&H304),\"\")","v":""}]
[300,{"$nulls":3},true,{"$f":"IF(G305<>\"\",INDIRECT(\"'\"&G305&\"'!\"&H305),\"\")","v":""}]
[301,{"$nulls":3},true,{"$f":"IF(G306<>\"\",INDIRECT(\"'\"&G306&\"'!\"&H306),\"\")","v":""}]
[302,{"$nulls":3},true,{"$f":"IF(G307<>\"\",INDIRECT(\"'\"&G307&\"'!\"&H307),\"\")","v":""}]
[303,{"$nulls":3},true,{"$f":"IF(G308<>\"\",INDIRECT(\"'\"&G308&\"'!\"&H308),\"\")","v":""}]
[304,{"$nulls":3},true,{"$f":"IF(G309<>\"\",INDIRECT(\"'\"&G309&\"'!\"&H309),\"\")","v":""}]
[305,{"$nulls":3},true,{"$f":"IF(G310<>\"\",INDIRECT(\"'\"&G310&\"'!\"&H310),\"\")","v":""}]
[306,{"$nulls":3},true,{"$f":"IF(G311<>\"\",INDIRECT(\"'\"&G311&\"'!\"&H311),\"\")","v":""}]
[307,{"$nulls":3},true,{"$f":"IF(G312<>\"\",INDIRECT(\"'\"&G312&\"'!\"&H312),\"\")","v":""}]
[308,{"$nulls":3},true,{"$f":"IF(G313<>\"\",INDIRECT(\"'\"&G313&\"'!\"&H313),\"\")","v":""}]
[309,{"$nulls":3},true,{"$f":"IF(G314<>\"\",INDIRECT(\"'\"&G314&\"'!\"&H314),\"\")","v":""}]
[310,{"$nulls":3},true,{"$f":"IF(G315<>\"\",INDIRECT(\"'\"&G315&\"'!\"&H315),\"\")","v":""}]
[311,{"$nulls":3},true,{"$f":"IF(G316<>\"\",INDIRECT(\"'\"&G316&\"'!\"&H316),\"\")","v":""}]
[312,{"$nulls":3},true,{"$f":"IF(G317<>\"\",INDIRECT(\"'\"&G317&\"'!\"&H317),\"\")","v":""}]
[313,{"$nulls":3},true,{"$f":"IF(G318<>\"\",INDIRECT(\"'\"&G318&\"'!\"&H318),\"\")","v":""}]
[314,{"$nulls":3},true,{"$f":"IF(G319<>\"\",INDIRECT(\"'\"&G319&\"'!\"&H319),\"\")","v":""}]
[315,{"$nulls":3},true,{"$f":"IF(G320<>\"\",INDIRECT(\"'\"&G320&\"'!\"&H320),\"\")","v":""}]
[316,{"$nulls":3},true,{"$f":"IF(G321<>\"\",INDIRECT(\"'\"&G321&\"'!\"&H321),\"\")","v":""}]
[317,{"$nulls":3},{"$f":"F322=B322","v":true},{"$f":"IF(G322<>\"\",INDIRECT(\"'\"&G322&\"'!\"&H322),\"\")","v":""}]
[318,{"$nulls":3},true,{"$f":"IF(G323<>\"\",INDIRECT(\"'\"&G323&\"'!\"&H323),\"\")","v":""}]
[319,{"$nulls":3},true,{"$f":"IF(G324<>\"\",INDIRECT(\"'\"&G324&\"'!\"&H324),\"\")","v":""}]
[320,{"$nulls":3},true,{"$f":"IF(G325<>\"\",INDIRECT(\"'\"&G325&\"'!\"&H325),\"\")","v":""}]
[321,{"$nulls":3},true,{"$f":"IF(G326<>\"\",INDIRECT(\"'\"&G326&\"'!\"&H326),\"\")","v":""}]
[322,{"$nulls":3},true,{"$f":"IF(G327<>\"\",INDIRECT(\"'\"&G327&\"'!\"&H327),\"\")","v":""}]
[323,{"$nulls":3},true,{"$f":"IF(G328<>\"\",INDIRECT(\"'\"&G328&\"'!\"&H328),\"\")","v":""}]
[324,{"$nulls":3},true,{"$f":"IF(G329<>\"\",INDIRECT(\"'\"&G329&\"'!\"&H329),\"\")","v":""}]
[325,{"$nulls":3},true,{"$f":"IF(G330<>\"\",INDIRECT(\"'\"&G330&\"'!\"&H330),\"\")","v":""}]
[326,{"$nulls":3},true,{"$f":"IF(G331<>\"\",INDIRECT(\"'\"&G331&\"'!\"&H331),\"\")","v":""}]
[327,{"$nulls":3},true,{"$f":"IF(G332<>\"\",INDIRECT(\"'\"&G332&\"'!\"&H332),\"\")","v":""}]
[328,{"$nulls":3},true,{"$f":"IF(G333<>\"\",INDIRECT(\"'\"&G333&\"'!\"&H333),\"\")","v":""}]
[329,{"$nulls":3},true,{"$f":"IF(G334<>\"\",INDIRECT(\"'\"&G334&\"'!\"&H334),\"\")","v":""}]
[330,{"$nulls":3},true,{"$f":"IF(G335<>\"\",INDIRECT(\"'\"&G335&\"'!\"&H335),\"\")","v":""}]
[331,{"$nulls":3},true,{"$f":"IF(G336<>\"\",INDIRECT(\"'\"&G336&\"'!\"&H336),\"\")","v":""}]
[332,{"$nulls":3},true,{"$f":"IF(G337<>\"\",INDIRECT(\"'\"&G337&\"'!\"&H337),\"\")","v":""}]
[333,{"$nulls":3},true,{"$f":"IF(G338<>\"\",INDIRECT(\"'\"&G338&\"'!\"&H338),\"\")","v":""}]
[334,{"$nulls":3},true,{"$f":"IF(G339<>\"\",INDIRECT(\"'\"&G339&\"'!\"&H339),\"\")","v":""}]
[335,{"$nulls":3},true,{"$f":"IF(G340<>\"\",INDIRECT(\"'\"&G340&\"'!\"&H340),\"\")","v":""}]
[336,{"$nulls":3},true,{"$f":"IF(G341<>\"\",INDIRECT(\"'\"&G341&\"'!\"&H341),\"\")","v":""}]
[337,{"$nulls":3},true,{"$f":"IF(G342<>\"\",INDIRECT(\"'\"&G342&\"'!\"&H342),\"\")","v":""}]
[338,{"$nulls":3},true,{"$f":"IF(G343<>\"\",INDIRECT(\"'\"&G343&\"'!\"&H343),\"\")","v":""}]
[339,{"$nulls":3},true,{"$f":"IF(G344<>\"\",INDIRECT(\"'\"&G344&\"'!\"&H344),\"\")","v":""}]
[340,{"$nulls":3},true,{"$f":"IF(G345<>\"\",INDIRECT(\"'\"&G345&\"'!\"&H345),\"\")","v":""}]
[341,{"$nulls":3},true,{"$f":"IF(G346<>\"\",INDIRECT(\"'\"&G346&\"'!\"&H346),\"\")","v":""}]
[342,{"$nulls":3},true,{"$f":"IF(G347<>\"\",INDIRECT(\"'\"&G347&\"'!\"&H347),\"\")","v":""}]
[343,{"$nulls":3},true,{"$f":"IF(G348<>\"\",INDIRECT(\"'\"&G348&\"'!\"&H348),\"\")","v":""}]
[344,{"$nulls":3},true,{"$f":"IF(G349<>\"\",INDIRECT(\"'\"&G349&\"'!\"&H349),\"\")","v":""}]
[345,{"$nulls":3},true,{"$f":"IF(G350<>\"\",INDIRECT(\"'\"&G350&\"'!\"&H350),\"\")","v":""}]
[346,{"$nulls":3},true,{"$f":"IF(G351<>\"\",INDIRECT(\"'\"&G351&\"'!\"&H351),\"\")","v":""}]
[347,{"$nulls":3},true,{"$f":"IF(G352<>\"\",INDIRECT(\"'\"&G352&\"'!\"&H352),\"\")","v":""}]
[348,{"$nulls":3},true,{"$f":"IF(G353<>\"\",INDIRECT(\"'\"&G353&\"'!\"&H353),\"\")","v":""}]
[349,{"$nulls":3},true,{"$f":"IF(G354<>\"\",INDIRECT(\"'\"&G354&\"'!\"&H354),\"\")","v":""}]
[350,{"$nulls":3},true,{"$f":"IF(G355<>\"\",INDIRECT(\"'\"&G355&\"'!\"&H355),\"\")","v":""}]
[351,{"$nulls":3},true,{"$f":"IF(G356<>\"\",INDIRECT(\"'\"&G356&\"'!\"&H356),\"\")","v":""}]
[352,{"$nulls":3},true,{"$f":"IF(G357<>\"\",INDIRECT(\"'\"&G357&\"'!\"&H357),\"\")","v":""}]
[353,{"$nulls":3},true,{"$f":"IF(G358<>\"\",INDIRECT(\"'\"&G358&\"'!\"&H358),\"\")","v":""}]
[354,{"$nulls":3},true,{"$f":"IF(G359<>\"\",INDIRECT(\"'\"&G359&\"'!\"&H359),\"\")","v":""}]
[355,{"$nulls":3},true,{"$f":"IF(G360<>\"\",INDIRECT(\"'\"&G360&\"'!\"&H360),\"\")","v":""}]
[356,{"$nulls":3},true,{"$f":"IF(G361<>\"\",INDIRECT(\"'\"&G361&\"'!\"&H361),\"\")","v":""}]
[357,{"$nulls":3},true,{"$f":"IF(G362<>\"\",INDIRECT(\"'\"&G362&\"'!\"&H362),\"\")","v":""}]
[358,{"$nulls":3},true,{"$f":"IF(G363<>\"\",INDIRECT(\"'\"&G363&\"'!\"&H363),\"\")","v":""}]
[359,{"$nulls":3},true,{"$f":"IF(G364<>\"\",INDIRECT(\"'\"&G364&\"'!\"&H364),\"\")","v":""}]
[360,{"$nulls":3},true,{"$f":"IF(G365<>\"\",INDIRECT(\"'\"&G365&\"'!\"&H365),\"\")","v":""}]
[361,{"$nulls":3},true,{"$f":"IF(G366<>\"\",INDIRECT(\"'\"&G366&\"'!\"&H366),\"\")","v":""}]
[362,{"$nulls":3},true,{"$f":"IF(G367<>\"\",INDIRECT(\"'\"&G367&\"'!\"&H367),\"\")","v":""}]
[363,{"$nulls":3},true,{"$f":"IF(G368<>\"\",INDIRECT(\"'\"&G368&\"'!\"&H368),\"\")","v":""}]
[364,{"$nulls":3},true,{"$f":"IF(G369<>\"\",INDIRECT(\"'\"&G369&\"'!\"&H369),\"\")","v":""}]
[365,{"$nulls":3},true,{"$f":"IF(G370<>\"\",INDIRECT(\"'\"&G370&\"'!\"&H370),\"\")","v":""}]
[366,{"$nulls":3},true,{"$f":"IF(G371<>\"\",INDIRECT(\"'\"&G371&\"'!\"&H371),\"\")","v":""}]
[367,{"$nulls":3},true,{"$f":"IF(G372<>\"\",INDIRECT(\"'\"&G372&\"'!\"&H372),\"\")","v":""}]
[368,{"$nulls":3},true,{"$f":"IF(G373<>\"\",INDIRECT(\"'\"&G373&\"'!\"&H373),\"\")","v":""}]
[369,{"$nulls":3},true,{"$f":"IF(G374<>\"\",INDIRECT(\"'\"&G374&\"'!\"&H374),\"\")","v":""}]
[370,{"$nulls":3},true,{"$f":"IF(G375<>\"\",INDIRECT(\"'\"&G375&\"'!\"&H375),\"\")","v":""}]
[371,{"$f":"'BudgetSum 2-4'!D28","v":0},{"$f":"A376-B376","v":371},null,true,{"$f":"IF(G376<>\"\",INDIRECT(\"'\"&G376&\"'!\"&H376),\"\")","v":0},"BudgetSum 2-4","D28"]
[372,{"$nulls":3},true,{"$f":"IF(G377<>\"\",INDIRECT(\"'\"&G377&\"'!\"&H377),\"\")","v":""}]
[373,{"$nulls":3},true,{"$f":"IF(G378<>\"\",INDIRECT(\"'\"&G378&\"'!\"&H378),\"\")","v":""}]
[374,{"$nulls":3},true,{"$f":"IF(G379<>\"\",INDIRECT(\"'\"&G379&\"'!\"&H379),\"\")","v":""}]
[375,{"$nulls":3},true,{"$f":"IF(G380<>\"\",INDIRECT(\"'\"&G380&\"'!\"&H380),\"\")","v":""}]
[376,{"$nulls":3},true,{"$f":"IF(G381<>\"\",INDIRECT(\"'\"&G381&\"'!\"&H381),\"\")","v":""}]
[377,{"$nulls":3},true,{"$f":"IF(G382<>\"\",INDIRECT(\"'\"&G382&\"'!\"&H382),\"\")","v":""}]
[378,{"$nulls":3},true,{"$f":"IF(G383<>\"\",INDIRECT(\"'\"&G383&\"'!\"&H383),\"\")","v":""}]
[379,{"$nulls":3},true,{"$f":"IF(G384<>\"\",INDIRECT(\"'\"&G384&\"'!\"&H384),\"\")","v":""}]
[380,{"$nulls":3},true,{"$f":"IF(G385<>\"\",INDIRECT(\"'\"&G385&\"'!\"&H385),\"\")","v":""}]
[381,{"$nulls":3},{"$f":"F386=B386","v":true},{"$f":"IF(G386<>\"\",INDIRECT(\"'\"&G386&\"'!\"&H386),\"\")","v":""}]
[382,{"$nulls":3},true,{"$f":"IF(G387<>\"\",INDIRECT(\"'\"&G387&\"'!\"&H387),\"\")","v":""}]
[383,{"$nulls":3},true,{"$f":"IF(G388<>\"\",INDIRECT(\"'\"&G388&\"'!\"&H388),\"\")","v":""}]
[384,{"$nulls":3},true,{"$f":"IF(G389<>\"\",INDIRECT(\"'\"&G389&\"'!\"&H389),\"\")","v":""}]
[385,{"$nulls":3},true,{"$f":"IF(G390<>\"\",INDIRECT(\"'\"&G390&\"'!\"&H390),\"\")","v":""}]
[386,{"$nulls":3},true,{"$f":"IF(G391<>\"\",INDIRECT(\"'\"&G391&\"'!\"&H391),\"\")","v":""}]
[387,{"$nulls":3},true,{"$f":"IF(G392<>\"\",INDIRECT(\"'\"&G392&\"'!\"&H392),\"\")","v":""}]
[388,{"$nulls":3},true,{"$f":"IF(G393<>\"\",INDIRECT(\"'\"&G393&\"'!\"&H393),\"\")","v":""}]
[389,{"$nulls":3},true,{"$f":"IF(G394<>\"\",INDIRECT(\"'\"&G394&\"'!\"&H394),\"\")","v":""}]
[390,{"$nulls":3},true,{"$f":"IF(G395<>\"\",INDIRECT(\"'\"&G395&\"'!\"&H395),\"\")","v":""}]
[391,{"$nulls":3},true,{"$f":"IF(G396<>\"\",INDIRECT(\"'\"&G396&\"'!\"&H396),\"\")","v":""}]
[392,{"$nulls":3},true,{"$f":"IF(G397<>\"\",INDIRECT(\"'\"&G397&\"'!\"&H397),\"\")","v":""}]
[393,{"$nulls":3},true,{"$f":"IF(G398<>\"\",INDIRECT(\"'\"&G398&\"'!\"&H398),\"\")","v":""}]
[394,{"$nulls":3},true,{"$f":"IF(G399<>\"\",INDIRECT(\"'\"&G399&\"'!\"&H399),\"\")","v":""}]
[395,{"$nulls":3},true,{"$f":"IF(G400<>\"\",INDIRECT(\"'\"&G400&\"'!\"&H400),\"\")","v":""}]
[396,{"$nulls":3},true,{"$f":"IF(G401<>\"\",INDIRECT(\"'\"&G401&\"'!\"&H401),\"\")","v":""}]
[397,{"$nulls":3},true,{"$f":"IF(G402<>\"\",INDIRECT(\"'\"&G402&\"'!\"&H402),\"\")","v":""}]
[398,{"$nulls":3},true,{"$f":"IF(G403<>\"\",INDIRECT(\"'\"&G403&\"'!\"&H403),\"\")","v":""}]
[399,{"$nulls":3},true,{"$f":"IF(G404<>\"\",INDIRECT(\"'\"&G404&\"'!\"&H404),\"\")","v":""}]
[400,{"$nulls":3},true,{"$f":"IF(G405<>\"\",INDIRECT(\"'\"&G405&\"'!\"&H405),\"\")","v":""}]
[401,{"$nulls":3},true,{"$f":"IF(G406<>\"\",INDIRECT(\"'\"&G406&\"'!\"&H406),\"\")","v":""}]
[402,{"$nulls":3},true,{"$f":"IF(G407<>\"\",INDIRECT(\"'\"&G407&\"'!\"&H407),\"\")","v":""}]
[403,{"$nulls":3},true,{"$f":"IF(G408<>\"\",INDIRECT(\"'\"&G408&\"'!\"&H408),\"\")","v":""}]
[404,{"$nulls":3},true,{"$f":"IF(G409<>\"\",INDIRECT(\"'\"&G409&\"'!\"&H409),\"\")","v":""}]
[405,{"$nulls":3},true,{"$f":"IF(G410<>\"\",INDIRECT(\"'\"&G410&\"'!\"&H410),\"\")","v":""}]
[406,{"$nulls":3},true,{"$f":"IF(G411<>\"\",INDIRECT(\"'\"&G411&\"'!\"&H411),\"\")","v":""}]
[407,{"$nulls":3},true,{"$f":"IF(G412<>\"\",INDIRECT(\"'\"&G412&\"'!\"&H412),\"\")","v":""}]
[408,{"$nulls":3},true,{"$f":"IF(G413<>\"\",INDIRECT(\"'\"&G413&\"'!\"&H413),\"\")","v":""}]
[409,{"$nulls":3},true,{"$f":"IF(G414<>\"\",INDIRECT(\"'\"&G414&\"'!\"&H414),\"\")","v":""}]
[410,{"$nulls":3},true,{"$f":"IF(G415<>\"\",INDIRECT(\"'\"&G415&\"'!\"&H415),\"\")","v":""}]
[411,{"$nulls":3},true,{"$f":"IF(G416<>\"\",INDIRECT(\"'\"&G416&\"'!\"&H416),\"\")","v":""}]
[412,{"$nulls":3},true,{"$f":"IF(G417<>\"\",INDIRECT(\"'\"&G417&\"'!\"&H417),\"\")","v":""}]
[413,{"$nulls":3},true,{"$f":"IF(G418<>\"\",INDIRECT(\"'\"&G418&\"'!\"&H418),\"\")","v":""}]
[414,{"$nulls":3},true,{"$f":"IF(G419<>\"\",INDIRECT(\"'\"&G419&\"'!\"&H419),\"\")","v":""}]
[415,{"$nulls":3},true,{"$f":"IF(G420<>\"\",INDIRECT(\"'\"&G420&\"'!\"&H420),\"\")","v":""}]
[416,{"$nulls":3},true,{"$f":"IF(G421<>\"\",INDIRECT(\"'\"&G421&\"'!\"&H421),\"\")","v":""}]
[417,{"$nulls":3},true,{"$f":"IF(G422<>\"\",INDIRECT(\"'\"&G422&\"'!\"&H422),\"\")","v":""}]
[418,{"$nulls":3},true,{"$f":"IF(G423<>\"\",INDIRECT(\"'\"&G423&\"'!\"&H423),\"\")","v":""}]
[419,{"$nulls":3},true,{"$f":"IF(G424<>\"\",INDIRECT(\"'\"&G424&\"'!\"&H424),\"\")","v":""}]
[420,{"$nulls":3},true,{"$f":"IF(G425<>\"\",INDIRECT(\"'\"&G425&\"'!\"&H425),\"\")","v":""}]
[421,{"$nulls":3},true,{"$f":"IF(G426<>\"\",INDIRECT(\"'\"&G426&\"'!\"&H426),\"\")","v":""}]
[422,{"$nulls":3},true,{"$f":"IF(G427<>\"\",INDIRECT(\"'\"&G427&\"'!\"&H427),\"\")","v":""}]
[423,{"$nulls":3},true,{"$f":"IF(G428<>\"\",INDIRECT(\"'\"&G428&\"'!\"&H428),\"\")","v":""}]
[424,{"$nulls":3},true,{"$f":"IF(G429<>\"\",INDIRECT(\"'\"&G429&\"'!\"&H429),\"\")","v":""}]
[425,{"$nulls":3},true,{"$f":"IF(G430<>\"\",INDIRECT(\"'\"&G430&\"'!\"&H430),\"\")","v":""}]
[426,{"$nulls":3},true,{"$f":"IF(G431<>\"\",INDIRECT(\"'\"&G431&\"'!\"&H431),\"\")","v":""}]
[427,{"$nulls":3},true,{"$f":"IF(G432<>\"\",INDIRECT(\"'\"&G432&\"'!\"&H432),\"\")","v":""}]
[428,{"$nulls":3},true,{"$f":"IF(G433<>\"\",INDIRECT(\"'\"&G433&\"'!\"&H433),\"\")","v":""}]
[429,{"$nulls":3},true,{"$f":"IF(G434<>\"\",INDIRECT(\"'\"&G434&\"'!\"&H434),\"\")","v":""}]
[430,{"$nulls":3},true,{"$f":"IF(G435<>\"\",INDIRECT(\"'\"&G435&\"'!\"&H435),\"\")","v":""}]
[431,{"$nulls":3},true,{"$f":"IF(G436<>\"\",INDIRECT(\"'\"&G436&\"'!\"&H436),\"\")","v":""}]
[432,{"$nulls":3},true,{"$f":"IF(G437<>\"\",INDIRECT(\"'\"&G437&\"'!\"&H437),\"\")","v":""}]
[433,{"$nulls":3},true,{"$f":"IF(G438<>\"\",INDIRECT(\"'\"&G438&\"'!\"&H438),\"\")","v":""}]
[434,{"$nulls":3},true,{"$f":"IF(G439<>\"\",INDIRECT(\"'\"&G439&\"'!\"&H439),\"\")","v":""}]
[435,{"$nulls":3},true,{"$f":"IF(G440<>\"\",INDIRECT(\"'\"&G440&\"'!\"&H440),\"\")","v":""}]
[436,{"$nulls":3},true,{"$f":"IF(G441<>\"\",INDIRECT(\"'\"&G441&\"'!\"&H441),\"\")","v":""}]
[437,{"$nulls":3},true,{"$f":"IF(G442<>\"\",INDIRECT(\"'\"&G442&\"'!\"&H442),\"\")","v":""}]
[438,{"$nulls":3},true,{"$f":"IF(G443<>\"\",INDIRECT(\"'\"&G443&\"'!\"&H443),\"\")","v":""}]
[439,{"$f":"'BudgetSum 2-4'!E36","v":0},{"$f":"A444-B444","v":439},null,true,{"$f":"IF(G444<>\"\",INDIRECT(\"'\"&G444&\"'!\"&H444),\"\")","v":0},"BudgetSum 2-4","E36"]
[440,{"$f":"'BudgetSum 2-4'!E37","v":0},440,null,true,{"$f":"IF(G445<>\"\",INDIRECT(\"'\"&G445&\"'!\"&H445),\"\")","v":0},"BudgetSum 2-4","E37"]
[441,{"$nulls":3},true,{"$f":"IF(G446<>\"\",INDIRECT(\"'\"&G446&\"'!\"&H446),\"\")","v":""}]
[442,{"$nulls":3},true,{"$f":"IF(G447<>\"\",INDIRECT(\"'\"&G447&\"'!\"&H447),\"\")","v":""}]
[443,{"$nulls":3},true,{"$f":"IF(G448<>\"\",INDIRECT(\"'\"&G448&\"'!\"&H448),\"\")","v":""}]
[444,{"$nulls":3},true,{"$f":"IF(G449<>\"\",INDIRECT(\"'\"&G449&\"'!\"&H449),\"\")","v":""}]
[445,{"$nulls":3},{"$f":"F450=B450","v":true},{"$f":"IF(G450<>\"\",INDIRECT(\"'\"&G450&\"'!\"&H450),\"\")","v":""}]
[446,{"$nulls":3},true,{"$f":"IF(G451<>\"\",INDIRECT(\"'\"&G451&\"'!\"&H451),\"\")","v":""}]
[447,{"$nulls":3},true,{"$f":"IF(G452<>\"\",INDIRECT(\"'\"&G452&\"'!\"&H452),\"\")","v":""}]
[448,{"$nulls":3},true,{"$f":"IF(G453<>\"\",INDIRECT(\"'\"&G453&\"'!\"&H453),\"\")","v":""}]
[449,{"$nulls":3},true,{"$f":"IF(G454<>\"\",INDIRECT(\"'\"&G454&\"'!\"&H454),\"\")","v":""}]
[450,{"$nulls":3},true,{"$f":"IF(G455<>\"\",INDIRECT(\"'\"&G455&\"'!\"&H455),\"\")","v":""}]
[451,{"$nulls":3},true,{"$f":"IF(G456<>\"\",INDIRECT(\"'\"&G456&\"'!\"&H456),\"\")","v":""}]
[452,{"$nulls":3},true,{"$f":"IF(G457<>\"\",INDIRECT(\"'\"&G457&\"'!\"&H457),\"\")","v":""}]
[453,{"$nulls":3},true,{"$f":"IF(G458<>\"\",INDIRECT(\"'\"&G458&\"'!\"&H458),\"\")","v":""}]
[454,{"$nulls":3},true,{"$f":"IF(G459<>\"\",INDIRECT(\"'\"&G459&\"'!\"&H459),\"\")","v":""}]
[455,{"$nulls":3},true,{"$f":"IF(G460<>\"\",INDIRECT(\"'\"&G460&\"'!\"&H460),\"\")","v":""}]
[456,{"$nulls":3},true,{"$f":"IF(G461<>\"\",INDIRECT(\"'\"&G461&\"'!\"&H461),\"\")","v":""}]
[457,{"$nulls":3},true,{"$f":"IF(G462<>\"\",INDIRECT(\"'\"&G462&\"'!\"&H462),\"\")","v":""}]
[458,{"$nulls":3},true,{"$f":"IF(G463<>\"\",INDIRECT(\"'\"&G463&\"'!\"&H463),\"\")","v":""}]
[459,{"$nulls":3},true,{"$f":"IF(G464<>\"\",INDIRECT(\"'\"&G464&\"'!\"&H464),\"\")","v":""}]
[460,{"$nulls":3},true,{"$f":"IF(G465<>\"\",INDIRECT(\"'\"&G465&\"'!\"&H465),\"\")","v":""}]
[461,{"$nulls":3},true,{"$f":"IF(G466<>\"\",INDIRECT(\"'\"&G466&\"'!\"&H466),\"\")","v":""}]
[462,{"$nulls":3},true,{"$f":"IF(G467<>\"\",INDIRECT(\"'\"&G467&\"'!\"&H467),\"\")","v":""}]
[463,{"$nulls":3},true,{"$f":"IF(G468<>\"\",INDIRECT(\"'\"&G468&\"'!\"&H468),\"\")","v":""}]
[464,{"$nulls":3},true,{"$f":"IF(G469<>\"\",INDIRECT(\"'\"&G469&\"'!\"&H469),\"\")","v":""}]
[465,{"$nulls":3},true,{"$f":"IF(G470<>\"\",INDIRECT(\"'\"&G470&\"'!\"&H470),\"\")","v":""}]
[466,{"$nulls":3},true,{"$f":"IF(G471<>\"\",INDIRECT(\"'\"&G471&\"'!\"&H471),\"\")","v":""}]
[467,{"$nulls":3},true,{"$f":"IF(G472<>\"\",INDIRECT(\"'\"&G472&\"'!\"&H472),\"\")","v":""}]
[468,{"$nulls":3},true,{"$f":"IF(G473<>\"\",INDIRECT(\"'\"&G473&\"'!\"&H473),\"\")","v":""}]
[469,{"$nulls":3},true,{"$f":"IF(G474<>\"\",INDIRECT(\"'\"&G474&\"'!\"&H474),\"\")","v":""}]
[470,{"$nulls":3},true,{"$f":"IF(G475<>\"\",INDIRECT(\"'\"&G475&\"'!\"&H475),\"\")","v":""}]
[471,{"$nulls":3},true,{"$f":"IF(G476<>\"\",INDIRECT(\"'\"&G476&\"'!\"&H476),\"\")","v":""}]
[472,{"$nulls":3},true,{"$f":"IF(G477<>\"\",INDIRECT(\"'\"&G477&\"'!\"&H477),\"\")","v":""}]
[473,{"$nulls":3},true,{"$f":"IF(G478<>\"\",INDIRECT(\"'\"&G478&\"'!\"&H478),\"\")","v":""}]
[474,{"$nulls":3},true,{"$f":"IF(G479<>\"\",INDIRECT(\"'\"&G479&\"'!\"&H479),\"\")","v":""}]
[475,{"$nulls":3},true,{"$f":"IF(G480<>\"\",INDIRECT(\"'\"&G480&\"'!\"&H480),\"\")","v":""}]
[476,{"$nulls":3},true,{"$f":"IF(G481<>\"\",INDIRECT(\"'\"&G481&\"'!\"&H481),\"\")","v":""}]
[477,{"$nulls":3},true,{"$f":"IF(G482<>\"\",INDIRECT(\"'\"&G482&\"'!\"&H482),\"\")","v":""}]
[478,{"$nulls":3},true,{"$f":"IF(G483<>\"\",INDIRECT(\"'\"&G483&\"'!\"&H483),\"\")","v":""}]
[479,{"$nulls":3},true,{"$f":"IF(G484<>\"\",INDIRECT(\"'\"&G484&\"'!\"&H484),\"\")","v":""}]
[480,{"$nulls":3},true,{"$f":"IF(G485<>\"\",INDIRECT(\"'\"&G485&\"'!\"&H485),\"\")","v":""}]
[481,{"$nulls":3},true,{"$f":"IF(G486<>\"\",INDIRECT(\"'\"&G486&\"'!\"&H486),\"\")","v":""}]
[482,{"$nulls":3},true,{"$f":"IF(G487<>\"\",INDIRECT(\"'\"&G487&\"'!\"&H487),\"\")","v":""}]
[483,{"$nulls":3},true,{"$f":"IF(G488<>\"\",INDIRECT(\"'\"&G488&\"'!\"&H488),\"\")","v":""}]
[484,{"$nulls":3},true,{"$f":"IF(G489<>\"\",INDIRECT(\"'\"&G489&\"'!\"&H489),\"\")","v":""}]
[485,{"$nulls":3},true,{"$f":"IF(G490<>\"\",INDIRECT(\"'\"&G490&\"'!\"&H490),\"\")","v":""}]
[486,{"$nulls":3},true,{"$f":"IF(G491<>\"\",INDIRECT(\"'\"&G491&\"'!\"&H491),\"\")","v":""}]
[487,{"$nulls":3},true,{"$f":"IF(G492<>\"\",INDIRECT(\"'\"&G492&\"'!\"&H492),\"\")","v":""}]
[488,{"$nulls":3},true,{"$f":"IF(G493<>\"\",INDIRECT(\"'\"&G493&\"'!\"&H493),\"\")","v":""}]
[489,{"$nulls":3},true,{"$f":"IF(G494<>\"\",INDIRECT(\"'\"&G494&\"'!\"&H494),\"\")","v":""}]
[490,{"$nulls":3},true,{"$f":"IF(G495<>\"\",INDIRECT(\"'\"&G495&\"'!\"&H495),\"\")","v":""}]
[491,{"$nulls":3},true,{"$f":"IF(G496<>\"\",INDIRECT(\"'\"&G496&\"'!\"&H496),\"\")","v":""}]
[492,{"$nulls":3},true,{"$f":"IF(G497<>\"\",INDIRECT(\"'\"&G497&\"'!\"&H497),\"\")","v":""}]
[493,{"$nulls":3},true,{"$f":"IF(G498<>\"\",INDIRECT(\"'\"&G498&\"'!\"&H498),\"\")","v":""}]
[494,{"$nulls":3},true,{"$f":"IF(G499<>\"\",INDIRECT(\"'\"&G499&\"'!\"&H499),\"\")","v":""}]
[495,{"$nulls":3},true,{"$f":"IF(G500<>\"\",INDIRECT(\"'\"&G500&\"'!\"&H500),\"\")","v":""}]
[496,{"$nulls":3},true,{"$f":"IF(G501<>\"\",INDIRECT(\"'\"&G501&\"'!\"&H501),\"\")","v":""}]
[497,{"$nulls":3},true,{"$f":"IF(G502<>\"\",INDIRECT(\"'\"&G502&\"'!\"&H502),\"\")","v":""}]
[498,{"$nulls":3},true,{"$f":"IF(G503<>\"\",INDIRECT(\"'\"&G503&\"'!\"&H503),\"\")","v":""}]
[499,{"$nulls":3},true,{"$f":"IF(G504<>\"\",INDIRECT(\"'\"&G504&\"'!\"&H504),\"\")","v":""}]
[500,{"$nulls":3},true,{"$f":"IF(G505<>\"\",INDIRECT(\"'\"&G505&\"'!\"&H505),\"\")","v":""}]
[501,{"$nulls":3},true,{"$f":"IF(G506<>\"\",INDIRECT(\"'\"&G506&\"'!\"&H506),\"\")","v":""}]
[502,{"$nulls":3},true,{"$f":"IF(G507<>\"\",INDIRECT(\"'\"&G507&\"'!\"&H507),\"\")","v":""}]
[503,{"$nulls":3},true,{"$f":"IF(G508<>\"\",INDIRECT(\"'\"&G508&\"'!\"&H508),\"\")","v":""}]
[504,{"$nulls":3},true,{"$f":"IF(G509<>\"\",INDIRECT(\"'\"&G509&\"'!\"&H509),\"\")","v":""}]
[505,{"$nulls":3},true,{"$f":"IF(G510<>\"\",INDIRECT(\"'\"&G510&\"'!\"&H510),\"\")","v":""}]
[506,{"$nulls":3},true,{"$f":"IF(G511<>\"\",INDIRECT(\"'\"&G511&\"'!\"&H511),\"\")","v":""}]
[507,{"$nulls":3},true,{"$f":"IF(G512<>\"\",INDIRECT(\"'\"&G512&\"'!\"&H512),\"\")","v":""}]
[508,{"$nulls":3},true,{"$f":"IF(G513<>\"\",INDIRECT(\"'\"&G513&\"'!\"&H513),\"\")","v":""}]
[509,{"$nulls":3},{"$f":"F514=B514","v":true},{"$f":"IF(G514<>\"\",INDIRECT(\"'\"&G514&\"'!\"&H514),\"\")","v":""}]
[510,{"$nulls":3},true,{"$f":"IF(G515<>\"\",INDIRECT(\"'\"&G515&\"'!\"&H515),\"\")","v":""}]
[511,{"$nulls":3},true,{"$f":"IF(G516<>\"\",INDIRECT(\"'\"&G516&\"'!\"&H516),\"\")","v":""}]
[512,{"$nulls":3},true,{"$f":"IF(G517<>\"\",INDIRECT(\"'\"&G517&\"'!\"&H517),\"\")","v":""}]
[513,{"$nulls":3},true,{"$f":"IF(G518<>\"\",INDIRECT(\"'\"&G518&\"'!\"&H518),\"\")","v":""}]
[514,{"$nulls":3},true,{"$f":"IF(G519<>\"\",INDIRECT(\"'\"&G519&\"'!\"&H519),\"\")","v":""}]
[515,{"$nulls":3},true,{"$f":"IF(G520<>\"\",INDIRECT(\"'\"&G520&\"'!\"&H520),\"\")","v":""}]
[516,{"$nulls":3},true,{"$f":"IF(G521<>\"\",INDIRECT(\"'\"&G521&\"'!\"&H521),\"\")","v":""}]
[517,{"$nulls":3},true,{"$f":"IF(G522<>\"\",INDIRECT(\"'\"&G522&\"'!\"&H522),\"\")","v":""}]
[518,{"$nulls":3},true,{"$f":"IF(G523<>\"\",INDIRECT(\"'\"&G523&\"'!\"&H523),\"\")","v":""}]
[519,{"$nulls":3},true,{"$f":"IF(G524<>\"\",INDIRECT(\"'\"&G524&\"'!\"&H524),\"\")","v":""}]
[520,{"$nulls":3},true,{"$f":"IF(G525<>\"\",INDIRECT(\"'\"&G525&\"'!\"&H525),\"\")","v":""}]
[521,{"$nulls":3},true,{"$f":"IF(G526<>\"\",INDIRECT(\"'\"&G526&\"'!\"&H526),\"\")","v":""}]
[522,{"$nulls":3},true,{"$f":"IF(G527<>\"\",INDIRECT(\"'\"&G527&\"'!\"&H527),\"\")","v":""}]
[523,{"$nulls":3},true,{"$f":"IF(G528<>\"\",INDIRECT(\"'\"&G528&\"'!\"&H528),\"\")","v":""}]
[524,{"$nulls":3},true,{"$f":"IF(G529<>\"\",INDIRECT(\"'\"&G529&\"'!\"&H529),\"\")","v":""}]
[525,{"$nulls":3},true,{"$f":"IF(G530<>\"\",INDIRECT(\"'\"&G530&\"'!\"&H530),\"\")","v":""}]
[526,{"$nulls":3},true,{"$f":"IF(G531<>\"\",INDIRECT(\"'\"&G531&\"'!\"&H531),\"\")","v":""}]
[527,{"$nulls":3},true,{"$f":"IF(G532<>\"\",INDIRECT(\"'\"&G532&\"'!\"&H532),\"\")","v":""}]
[528,{"$nulls":3},true,{"$f":"IF(G533<>\"\",INDIRECT(\"'\"&G533&\"'!\"&H533),\"\")","v":""}]
[529,{"$nulls":3},true,{"$f":"IF(G534<>\"\",INDIRECT(\"'\"&G534&\"'!\"&H534),\"\")","v":""}]
[530,{"$nulls":3},true,{"$f":"IF(G535<>\"\",INDIRECT(\"'\"&G535&\"'!\"&H535),\"\")","v":""}]
[531,{"$nulls":3},true,{"$f":"IF(G536<>\"\",INDIRECT(\"'\"&G536&\"'!\"&H536),\"\")","v":""}]
[532,{"$nulls":3},true,{"$f":"IF(G537<>\"\",INDIRECT(\"'\"&G537&\"'!\"&H537),\"\")","v":""}]
[533,{"$nulls":3},true,{"$f":"IF(G538<>\"\",INDIRECT(\"'\"&G538&\"'!\"&H538),\"\")","v":""}]
[534,{"$nulls":3},true,{"$f":"IF(G539<>\"\",INDIRECT(\"'\"&G539&\"'!\"&H539),\"\")","v":""}]
[535,{"$nulls":3},true,{"$f":"IF(G540<>\"\",INDIRECT(\"'\"&G540&\"'!\"&H540),\"\")","v":""}]
[536,{"$nulls":3},true,{"$f":"IF(G541<>\"\",INDIRECT(\"'\"&G541&\"'!\"&H541),\"\")","v":""}]
[537,{"$nulls":3},true,{"$f":"IF(G542<>\"\",INDIRECT(\"'\"&G542&\"'!\"&H542),\"\")","v":""}]
[538,{"$nulls":3},true,{"$f":"IF(G543<>\"\",INDIRECT(\"'\"&G543&\"'!\"&H543),\"\")","v":""}]
[539,{"$nulls":3},true,{"$f":"IF(G544<>\"\",INDIRECT(\"'\"&G544&\"'!\"&H544),\"\")","v":""}]
[540,{"$nulls":3},true,{"$f":"IF(G545<>\"\",INDIRECT(\"'\"&G545&\"'!\"&H545),\"\")","v":""}]
[541,{"$nulls":3},true,{"$f":"IF(G546<>\"\",INDIRECT(\"'\"&G546&\"'!\"&H546),\"\")","v":""}]
[542,{"$nulls":3},true,{"$f":"IF(G547<>\"\",INDIRECT(\"'\"&G547&\"'!\"&H547),\"\")","v":""}]
[543,{"$nulls":3},true,{"$f":"IF(G548<>\"\",INDIRECT(\"'\"&G548&\"'!\"&H548),\"\")","v":""}]
[544,{"$nulls":3},true,{"$f":"IF(G549<>\"\",INDIRECT(\"'\"&G549&\"'!\"&H549),\"\")","v":""}]
[545,{"$nulls":3},true,{"$f":"IF(G550<>\"\",INDIRECT(\"'\"&G550&\"'!\"&H550),\"\")","v":""}]
[546,{"$nulls":3},true,{"$f":"IF(G551<>\"\",INDIRECT(\"'\"&G551&\"'!\"&H551),\"\")","v":""}]
[547,{"$nulls":3},true,{"$f":"IF(G552<>\"\",INDIRECT(\"'\"&G552&\"'!\"&H552),\"\")","v":""}]
[548,{"$nulls":3},true,{"$f":"IF(G553<>\"\",INDIRECT(\"'\"&G553&\"'!\"&H553),\"\")","v":""}]
[549,{"$nulls":3},true,{"$f":"IF(G554<>\"\",INDIRECT(\"'\"&G554&\"'!\"&H554),\"\")","v":""}]
[550,{"$nulls":3},true,{"$f":"IF(G555<>\"\",INDIRECT(\"'\"&G555&\"'!\"&H555),\"\")","v":""}]
[551,{"$nulls":3},true,{"$f":"IF(G556<>\"\",INDIRECT(\"'\"&G556&\"'!\"&H556),\"\")","v":""}]
[552,{"$nulls":3},true,{"$f":"IF(G557<>\"\",INDIRECT(\"'\"&G557&\"'!\"&H557),\"\")","v":""}]
[553,{"$nulls":3},true,{"$f":"IF(G558<>\"\",INDIRECT(\"'\"&G558&\"'!\"&H558),\"\")","v":""}]
[554,{"$nulls":3},true,{"$f":"IF(G559<>\"\",INDIRECT(\"'\"&G559&\"'!\"&H559),\"\")","v":""}]
[555,{"$nulls":3},true,{"$f":"IF(G560<>\"\",INDIRECT(\"'\"&G560&\"'!\"&H560),\"\")","v":""}]
[556,{"$nulls":3},true,{"$f":"IF(G561<>\"\",INDIRECT(\"'\"&G561&\"'!\"&H561),\"\")","v":""}]
[557,{"$f":"'BudgetSum 2-4'!H35","v":0},{"$f":"A562-B562","v":557},null,true,{"$f":"IF(G562<>\"\",INDIRECT(\"'\"&G562&\"'!\"&H562),\"\")","v":0},"BudgetSum 2-4","H35"]
[558,{"$f":"'BudgetSum 2-4'!H36","v":0},558,null,true,{"$f":"IF(G563<>\"\",INDIRECT(\"'\"&G563&\"'!\"&H563),\"\")","v":0},"BudgetSum 2-4","H36"]
[559,{"$f":"'BudgetSum 2-4'!H37","v":0},559,null,true,{"$f":"IF(G564<>\"\",INDIRECT(\"'\"&G564&\"'!\"&H564),\"\")","v":0},"BudgetSum 2-4","H37"]
[560,{"$nulls":3},true,{"$f":"IF(G565<>\"\",INDIRECT(\"'\"&G565&\"'!\"&H565),\"\")","v":""}]
[561,{"$nulls":3},true,{"$f":"IF(G566<>\"\",INDIRECT(\"'\"&G566&\"'!\"&H566),\"\")","v":""}]
[562,{"$nulls":3},true,{"$f":"IF(G567<>\"\",INDIRECT(\"'\"&G567&\"'!\"&H567),\"\")","v":""}]
[563,{"$nulls":3},true,{"$f":"IF(G568<>\"\",INDIRECT(\"'\"&G568&\"'!\"&H568),\"\")","v":""}]
[564,{"$nulls":3},true,{"$f":"IF(G569<>\"\",INDIRECT(\"'\"&G569&\"'!\"&H569),\"\")","v":""}]
[565,{"$nulls":3},true,{"$f":"IF(G570<>\"\",INDIRECT(\"'\"&G570&\"'!\"&H570),\"\")","v":""}]
[566,{"$nulls":3},true,{"$f":"IF(G571<>\"\",INDIRECT(\"'\"&G571&\"'!\"&H571),\"\")","v":""}]
[567,{"$nulls":3},true,{"$f":"IF(G572<>\"\",INDIRECT(\"'\"&G572&\"'!\"&H572),\"\")","v":""}]
[568,{"$nulls":3},true,{"$f":"IF(G573<>\"\",INDIRECT(\"'\"&G573&\"'!\"&H573),\"\")","v":""}]
[569,{"$nulls":3},true,{"$f":"IF(G574<>\"\",INDIRECT(\"'\"&G574&\"'!\"&H574),\"\")","v":""}]
[570,{"$nulls":3},true,{"$f":"IF(G575<>\"\",INDIRECT(\"'\"&G575&\"'!\"&H575),\"\")","v":""}]
[571,{"$nulls":3},true,{"$f":"IF(G576<>\"\",INDIRECT(\"'\"&G576&\"'!\"&H576),\"\")","v":""}]
[572,{"$nulls":3},true,{"$f":"IF(G577<>\"\",INDIRECT(\"'\"&G577&\"'!\"&H577),\"\")","v":""}]
[573,{"$nulls":3},{"$f":"F578=B578","v":true},{"$f":"IF(G578<>\"\",INDIRECT(\"'\"&G578&\"'!\"&H578),\"\")","v":""}]
[574,{"$nulls":3},true,{"$f":"IF(G579<>\"\",INDIRECT(\"'\"&G579&\"'!\"&H579),\"\")","v":""}]
[575,{"$nulls":3},true,{"$f":"IF(G580<>\"\",INDIRECT(\"'\"&G580&\"'!\"&H580),\"\")","v":""}]
[576,{"$nulls":3},true,{"$f":"IF(G581<>\"\",INDIRECT(\"'\"&G581&\"'!\"&H581),\"\")","v":""}]
[577,{"$nulls":3},true,{"$f":"IF(G582<>\"\",INDIRECT(\"'\"&G582&\"'!\"&H582),\"\")","v":""}]
[578,{"$nulls":3},true,{"$f":"IF(G583<>\"\",INDIRECT(\"'\"&G583&\"'!\"&H583),\"\")","v":""}]
[579,{"$nulls":3},true,{"$f":"IF(G584<>\"\",INDIRECT(\"'\"&G584&\"'!\"&H584),\"\")","v":""}]
[580,{"$nulls":3},true,{"$f":"IF(G585<>\"\",INDIRECT(\"'\"&G585&\"'!\"&H585),\"\")","v":""}]
[581,{"$nulls":3},true,{"$f":"IF(G586<>\"\",INDIRECT(\"'\"&G586&\"'!\"&H586),\"\")","v":""}]
[582,{"$nulls":3},true,{"$f":"IF(G587<>\"\",INDIRECT(\"'\"&G587&\"'!\"&H587),\"\")","v":""}]
[583,{"$nulls":3},true,{"$f":"IF(G588<>\"\",INDIRECT(\"'\"&G588&\"'!\"&H588),\"\")","v":""}]
[584,{"$nulls":3},true,{"$f":"IF(G589<>\"\",INDIRECT(\"'\"&G589&\"'!\"&H589),\"\")","v":""}]
[585,{"$nulls":3},true,{"$f":"IF(G590<>\"\",INDIRECT(\"'\"&G590&\"'!\"&H590),\"\")","v":""}]
[586,{"$nulls":3},true,{"$f":"IF(G591<>\"\",INDIRECT(\"'\"&G591&\"'!\"&H591),\"\")","v":""}]
[587,{"$nulls":3},true,{"$f":"IF(G592<>\"\",INDIRECT(\"'\"&G592&\"'!\"&H592),\"\")","v":""}]
[588,{"$nulls":3},true,{"$f":"IF(G593<>\"\",INDIRECT(\"'\"&G593&\"'!\"&H593),\"\")","v":""}]
[589,{"$nulls":3},true,{"$f":"IF(G594<>\"\",INDIRECT(\"'\"&G594&\"'!\"&H594),\"\")","v":""}]
[590,{"$f":"'BudgetSum 2-4'!I35","v":0},{"$f":"A595-B595","v":590},null,true,{"$f":"IF(G595<>\"\",INDIRECT(\"'\"&G595&\"'!\"&H595),\"\")","v":0},"BudgetSum 2-4","I35"]
[591,{"$f":"'BudgetSum 2-4'!I36","v":0},591,null,true,{"$f":"IF(G596<>\"\",INDIRECT(\"'\"&G596&\"'!\"&H596),\"\")","v":0},"BudgetSum 2-4","I36"]
[592,{"$f":"'BudgetSum 2-4'!I37","v":0},592,null,true,{"$f":"IF(G597<>\"\",INDIRECT(\"'\"&G597&\"'!\"&H597),\"\")","v":0},"BudgetSum 2-4","I37"]
[593,{"$nulls":3},true,{"$f":"IF(G598<>\"\",INDIRECT(\"'\"&G598&\"'!\"&H598),\"\")","v":""}]
[594,{"$nulls":3},true,{"$f":"IF(G599<>\"\",INDIRECT(\"'\"&G599&\"'!\"&H599),\"\")","v":""}]
[595,{"$nulls":3},true,{"$f":"IF(G600<>\"\",INDIRECT(\"'\"&G600&\"'!\"&H600),\"\")","v":""}]
[596,{"$nulls":3},true,{"$f":"IF(G601<>\"\",INDIRECT(\"'\"&G601&\"'!\"&H601),\"\")","v":""}]
[597,{"$nulls":3},true,{"$f":"IF(G602<>\"\",INDIRECT(\"'\"&G602&\"'!\"&H602),\"\")","v":""}]
[598,{"$nulls":3},true,{"$f":"IF(G603<>\"\",INDIRECT(\"'\"&G603&\"'!\"&H603),\"\")","v":""}]
[599,{"$nulls":3},true,{"$f":"IF(G604<>\"\",INDIRECT(\"'\"&G604&\"'!\"&H604),\"\")","v":""}]
[600,{"$nulls":3},true,{"$f":"IF(G605<>\"\",INDIRECT(\"'\"&G605&\"'!\"&H605),\"\")","v":""}]
[601,{"$nulls":3},true,{"$f":"IF(G606<>\"\",INDIRECT(\"'\"&G606&\"'!\"&H606),\"\")","v":""}]
[602,{"$nulls":3},true,{"$f":"IF(G607<>\"\",INDIRECT(\"'\"&G607&\"'!\"&H607),\"\")","v":""}]
[603,{"$nulls":3},true,{"$f":"IF(G608<>\"\",INDIRECT(\"'\"&G608&\"'!\"&H608),\"\")","v":""}]
[604,{"$nulls":3},true,{"$f":"IF(G609<>\"\",INDIRECT(\"'\"&G609&\"'!\"&H609),\"\")","v":""}]
[605,{"$nulls":3},true,{"$f":"IF(G610<>\"\",INDIRECT(\"'\"&G610&\"'!\"&H610),\"\")","v":""}]
[606,{"$nulls":3},true,{"$f":"IF(G611<>\"\",INDIRECT(\"'\"&G611&\"'!\"&H611),\"\")","v":""}]
[607,{"$nulls":3},true,{"$f":"IF(G612<>\"\",INDIRECT(\"'\"&G612&\"'!\"&H612),\"\")","v":""}]
[608,{"$nulls":3},true,{"$f":"IF(G613<>\"\",INDIRECT(\"'\"&G613&\"'!\"&H613),\"\")","v":""}]
[609,{"$nulls":3},true,{"$f":"IF(G614<>\"\",INDIRECT(\"'\"&G614&\"'!\"&H614),\"\")","v":""}]
[610,{"$nulls":3},true,{"$f":"IF(G615<>\"\",INDIRECT(\"'\"&G615&\"'!\"&H615),\"\")","v":""}]
[611,{"$nulls":3},true,{"$f":"IF(G616<>\"\",INDIRECT(\"'\"&G616&\"'!\"&H616),\"\")","v":""}]
[612,{"$nulls":3},true,{"$f":"IF(G617<>\"\",INDIRECT(\"'\"&G617&\"'!\"&H617),\"\")","v":""}]
[613,{"$nulls":3},true,{"$f":"IF(G618<>\"\",INDIRECT(\"'\"&G618&\"'!\"&H618),\"\")","v":""}]
[614,{"$nulls":3},true,{"$f":"IF(G619<>\"\",INDIRECT(\"'\"&G619&\"'!\"&H619),\"\")","v":""}]
[615,{"$nulls":3},true,{"$f":"IF(G620<>\"\",INDIRECT(\"'\"&G620&\"'!\"&H620),\"\")","v":""}]
[616,{"$nulls":3},true,{"$f":"IF(G621<>\"\",INDIRECT(\"'\"&G621&\"'!\"&H621),\"\")","v":""}]
[617,{"$nulls":3},true,{"$f":"IF(G622<>\"\",INDIRECT(\"'\"&G622&\"'!\"&H622),\"\")","v":""}]
[618,{"$nulls":3},true,{"$f":"IF(G623<>\"\",INDIRECT(\"'\"&G623&\"'!\"&H623),\"\")","v":""}]
[619,{"$nulls":3},true,{"$f":"IF(G624<>\"\",INDIRECT(\"'\"&G624&\"'!\"&H624),\"\")","v":""}]
[620,{"$nulls":3},true,{"$f":"IF(G625<>\"\",INDIRECT(\"'\"&G625&\"'!\"&H625),\"\")","v":""}]
[621,{"$nulls":3},true,{"$f":"IF(G626<>\"\",INDIRECT(\"'\"&G626&\"'!\"&H626),\"\")","v":""}]
[622,{"$nulls":3},true,{"$f":"IF(G627<>\"\",INDIRECT(\"'\"&G627&\"'!\"&H627),\"\")","v":""}]
[623,{"$nulls":3},true,{"$f":"IF(G628<>\"\",INDIRECT(\"'\"&G628&\"'!\"&H628),\"\")","v":""}]
[624,{"$nulls":3},true,{"$f":"IF(G629<>\"\",INDIRECT(\"'\"&G629&\"'!\"&H629),\"\")","v":""}]
[625,{"$nulls":3},true,{"$f":"IF(G630<>\"\",INDIRECT(\"'\"&G630&\"'!\"&H630),\"\")","v":""}]
[626,{"$nulls":3},true,{"$f":"IF(G631<>\"\",INDIRECT(\"'\"&G631&\"'!\"&H631),\"\")","v":""}]
[627,{"$nulls":3},true,{"$f":"IF(G632<>\"\",INDIRECT(\"'\"&G632&\"'!\"&H632),\"\")","v":""}]
[628,{"$nulls":3},true,{"$f":"IF(G633<>\"\",INDIRECT(\"'\"&G633&\"'!\"&H633),\"\")","v":""}]
[629,{"$nulls":3},true,{"$f":"IF(G634<>\"\",INDIRECT(\"'\"&G634&\"'!\"&H634),\"\")","v":""}]
[630,{"$nulls":3},true,{"$f":"IF(G635<>\"\",INDIRECT(\"'\"&G635&\"'!\"&H635),\"\")","v":""}]
[631,{"$nulls":3},true,{"$f":"IF(G636<>\"\",INDIRECT(\"'\"&G636&\"'!\"&H636),\"\")","v":""}]
[632,{"$nulls":3},true,{"$f":"IF(G637<>\"\",INDIRECT(\"'\"&G637&\"'!\"&H637),\"\")","v":""}]
[633,{"$nulls":3},true,{"$f":"IF(G638<>\"\",INDIRECT(\"'\"&G638&\"'!\"&H638),\"\")","v":""}]
[634,{"$nulls":3},true,{"$f":"IF(G639<>\"\",INDIRECT(\"'\"&G639&\"'!\"&H639),\"\")","v":""}]
[635,{"$nulls":3},true,{"$f":"IF(G640<>\"\",INDIRECT(\"'\"&G640&\"'!\"&H640),\"\")","v":""}]
[636,{"$nulls":3},true,{"$f":"IF(G641<>\"\",INDIRECT(\"'\"&G641&\"'!\"&H641),\"\")","v":""}]
[637,{"$nulls":3},{"$f":"F642=B642","v":true},{"$f":"IF(G642<>\"\",INDIRECT(\"'\"&G642&\"'!\"&H642),\"\")","v":""}]
[638,{"$nulls":3},true,{"$f":"IF(G643<>\"\",INDIRECT(\"'\"&G643&\"'!\"&H643),\"\")","v":""}]
[639,{"$nulls":3},true,{"$f":"IF(G644<>\"\",INDIRECT(\"'\"&G644&\"'!\"&H644),\"\")","v":""}]
[640,{"$nulls":3},true,{"$f":"IF(G645<>\"\",INDIRECT(\"'\"&G645&\"'!\"&H645),\"\")","v":""}]
[641,{"$nulls":3},true,{"$f":"IF(G646<>\"\",INDIRECT(\"'\"&G646&\"'!\"&H646),\"\")","v":""}]
[642,{"$nulls":3},true,{"$f":"IF(G647<>\"\",INDIRECT(\"'\"&G647&\"'!\"&H647),\"\")","v":""}]
[643,{"$nulls":3},true,{"$f":"IF(G648<>\"\",INDIRECT(\"'\"&G648&\"'!\"&H648),\"\")","v":""}]
[644,{"$f":"'EstExp 12-20'!C5","v":3754899},{"$f":"A649-B649","v":-3754255},null,true,{"$f":"IF(G649<>\"\",INDIRECT(\"'\"&G649&\"'!\"&H649),\"\")","v":3754899},"EstExp 12-20","C5"]
[645,{"$f":"'EstExp 12-20'!C16","v":0},645,null,true,{"$f":"IF(G650<>\"\",INDIRECT(\"'\"&G650&\"'!\"&H650),\"\")","v":0},"EstExp 12-20","C16"]
[646,{"$nulls":3},true,{"$f":"IF(G651<>\"\",INDIRECT(\"'\"&G651&\"'!\"&H651),\"\")","v":""}]
[647,{"$nulls":3},true,{"$f":"IF(G652<>\"\",INDIRECT(\"'\"&G652&\"'!\"&H652),\"\")","v":""}]
[648,{"$nulls":3},true,{"$f":"IF(G653<>\"\",INDIRECT(\"'\"&G653&\"'!\"&H653),\"\")","v":""}]
[649,{"$nulls":3},true,{"$f":"IF(G654<>\"\",INDIRECT(\"'\"&G654&\"'!\"&H654),\"\")","v":""}]
[650,{"$nulls":3},true,{"$f":"IF(G655<>\"\",INDIRECT(\"'\"&G655&\"'!\"&H655),\"\")","v":""}]
[651,{"$f":"'EstExp 12-20'!C18","v":115000},-114349,null,true,{"$f":"IF(G656<>\"\",INDIRECT(\"'\"&G656&\"'!\"&H656),\"\")","v":115000},"EstExp 12-20","C18"]
[652,{"$nulls":3},true,{"$f":"IF(G657<>\"\",INDIRECT(\"'\"&G657&\"'!\"&H657),\"\")","v":""}]
[653,{"$nulls":3},true,{"$f":"IF(G658<>\"\",INDIRECT(\"'\"&G658&\"'!\"&H658),\"\")","v":""}]
[654,{"$nulls":3},true,{"$f":"IF(G659<>\"\",INDIRECT(\"'\"&G659&\"'!\"&H659),\"\")","v":""}]
[655,{"$f":"'EstExp 12-20'!C12","v":0},655,null,true,{"$f":"IF(G660<>\"\",INDIRECT(\"'\"&G660&\"'!\"&H660),\"\")","v":0},"EstExp 12-20","C12"]
[656,{"$f":"'EstExp 12-20'!C13","v":0},656,null,true,{"$f":"IF(G661<>\"\",INDIRECT(\"'\"&G661&\"'!\"&H661),\"\")","v":0},"EstExp 12-20","C13"]
[657,{"$f":"'EstExp 12-20'!C14","v":235000},-234343,null,true,{"$f":"IF(G662<>\"\",INDIRECT(\"'\"&G662&\"'!\"&H662),\"\")","v":235000},"EstExp 12-20","C14"]
[658,{"$f":"'EstExp 12-20'!C15","v":109000},-108342,null,true,{"$f":"IF(G663<>\"\",INDIRECT(\"'\"&G663&\"'!\"&H663),\"\")","v":109000},"EstExp 12-20","C15"]
[659,{"$f":"'EstExp 12-20'!C34","v":5456287},-5455628,null,true,{"$f":"IF(G664<>\"\",INDIRECT(\"'\"&G664&\"'!\"&H664),\"\")","v":5456287},"EstExp 12-20","C34"]
[660,{"$f":"'EstExp 12-20'!C38","v":130000},-129340,null,true,{"$f":"IF(G665<>\"\",INDIRECT(\"'\"&G665&\"'!\"&H665),\"\")","v":130000},"EstExp 12-20","C38"]
[661,{"$f":"'EstExp 12-20'!C39","v":0},661,null,true,{"$f":"IF(G666<>\"\",INDIRECT(\"'\"&G666&\"'!\"&H666),\"\")","v":0},"EstExp 12-20","C39"]
[662,{"$f":"'EstExp 12-20'!C40","v":30000},-29338,null,true,{"$f":"IF(G667<>\"\",INDIRECT(\"'\"&G667&\"'!\"&H667),\"\")","v":30000},"EstExp 12-20","C40"]
[663,{"$f":"'EstExp 12-20'!C41","v":0},663,null,true,{"$f":"IF(G668<>\"\",INDIRECT(\"'\"&G668&\"'!\"&H668),\"\")","v":0},"EstExp 12-20","C41"]
[664,{"$f":"'EstExp 12-20'!C42","v":0},664,null,true,{"$f":"IF(G669<>\"\",INDIRECT(\"'\"&G669&\"'!\"&H669),\"\")","v":0},"EstExp 12-20","C42"]
[665,{"$f":"'EstExp 12-20'!C43","v":0},665,null,true,{"$f":"IF(G670<>\"\",INDIRECT(\"'\"&G670&\"'!\"&H670),\"\")","v":0},"EstExp 12-20","C43"]
[666,{"$f":"'EstExp 12-20'!C44","v":160000},-159334,null,true,{"$f":"IF(G671<>\"\",INDIRECT(\"'\"&G671&\"'!\"&H671),\"\")","v":160000},"EstExp 12-20","C44"]
[667,{"$f":"'EstExp 12-20'!C46","v":182500},-181833,null,true,{"$f":"IF(G672<>\"\",INDIRECT(\"'\"&G672&\"'!\"&H672),\"\")","v":182500},"EstExp 12-20","C46"]
[668,{"$f":"'EstExp 12-20'!C47","v":27500},-26832,null,true,{"$f":"IF(G673<>\"\",INDIRECT(\"'\"&G673&\"'!\"&H673),\"\")","v":27500},"EstExp 12-20","C47"]
[669,{"$f":"'EstExp 12-20'!C48","v":0},669,null,true,{"$f":"IF(G674<>\"\",INDIRECT(\"'\"&G674&\"'!\"&H674),\"\")","v":0},"EstExp 12-20","C48"]
[670,{"$f":"'EstExp 12-20'!C49","v":210000},-209330,null,true,{"$f":"IF(G675<>\"\",INDIRECT(\"'\"&G675&\"'!\"&H675),\"\")","v":210000},"EstExp 12-20","C49"]
[671,{"$f":"'EstExp 12-20'!C51","v":500},171,null,true,{"$f":"IF(G676<>\"\",INDIRECT(\"'\"&G676&\"'!\"&H676),\"\")","v":500},"EstExp 12-20","C51"]
[672,{"$f":"'EstExp 12-20'!C52","v":260000},-259328,null,true,{"$f":"IF(G677<>\"\",INDIRECT(\"'\"&G677&\"'!\"&H677),\"\")","v":260000},"EstExp 12-20","C52"]
[673,{"$f":"'EstExp 12-20'!C55","v":528319},-527646,null,true,{"$f":"IF(G678<>\"\",INDIRECT(\"'\"&G678&\"'!\"&H678),\"\")","v":528319},"EstExp 12-20","C55"]
[674,{"$f":"'EstExp 12-20'!C57","v":775000},-774326,null,true,{"$f":"IF(G679<>\"\",INDIRECT(\"'\"&G679&\"'!\"&H679),\"\")","v":775000},"EstExp 12-20","C57"]
[675,{"$f":"'EstExp 12-20'!C58","v":0},675,null,true,{"$f":"IF(G680<>\"\",INDIRECT(\"'\"&G680&\"'!\"&H680),\"\")","v":0},"EstExp 12-20","C58"]
[676,{"$f":"'EstExp 12-20'!C59","v":775000},-774324,null,true,{"$f":"IF(G681<>\"\",INDIRECT(\"'\"&G681&\"'!\"&H681),\"\")","v":775000},"EstExp 12-20","C59"]
[677,{"$f":"'EstExp 12-20'!C61","v":100000},-99323,null,true,{"$f":"IF(G682<>\"\",INDIRECT(\"'\"&G682&\"'!\"&H682),\"\")","v":100000},"EstExp 12-20","C61"]
[678,{"$f":"'EstExp 12-20'!C62","v":155000},-154322,null,true,{"$f":"IF(G683<>\"\",INDIRECT(\"'\"&G683&\"'!\"&H683),\"\")","v":155000},"EstExp 12-20","C62"]
[679,{"$f":"'EstExp 12-20'!C63","v":0},679,null,true,{"$f":"IF(G684<>\"\",INDIRECT(\"'\"&G684&\"'!\"&H684),\"\")","v":0},"EstExp 12-20","C63"]
[680,{"$f":"'EstExp 12-20'!C64","v":0},680,null,true,{"$f":"IF(G685<>\"\",INDIRECT(\"'\"&G685&\"'!\"&H685),\"\")","v":0},"EstExp 12-20","C64"]
[681,{"$f":"'EstExp 12-20'!C65","v":386000},-385319,null,true,{"$f":"IF(G686<>\"\",INDIRECT(\"'\"&G686&\"'!\"&H686),\"\")","v":386000},"EstExp 12-20","C65"]
[682,{"$f":"'EstExp 12-20'!C66","v":0},682,null,true,{"$f":"IF(G687<>\"\",INDIRECT(\"'\"&G687&\"'!\"&H687),\"\")","v":0},"EstExp 12-20","C66"]
[683,{"$nulls":3},true,{"$f":"IF(G688<>\"\",INDIRECT(\"'\"&G688&\"'!\"&H688),\"\")","v":""}]
[684,{"$f":"'EstExp 12-20'!C67","v":641000},-640316,null,true,{"$f":"IF(G689<>\"\",INDIRECT(\"'\"&G689&\"'!\"&H689),\"\")","v":641000},"EstExp 12-20","C67"]
[685,{"$f":"'EstExp 12-20'!C69","v":0},685,null,true,{"$f":"IF(G690<>\"\",INDIRECT(\"'\"&G690&\"'!\"&H690),\"\")","v":0},"EstExp 12-20","C69"]
[686,{"$f":"'EstExp 12-20'!C70","v":0},686,null,true,{"$f":"IF(G691<>\"\",INDIRECT(\"'\"&G691&\"'!\"&H691),\"\")","v":0},"EstExp 12-20","C70"]
[687,{"$f":"'EstExp 12-20'!C71","v":329000},-328313,null,true,{"$f":"IF(G692<>\"\",INDIRECT(\"'\"&G692&\"'!\"&H692),\"\")","v":329000},"EstExp 12-20","C71"]
[688,{"$f":"'EstExp 12-20'!C72","v":2500},-1812,null,true,{"$f":"IF(G693<>\"\",INDIRECT(\"'\"&G693&\"'!\"&H693),\"\")","v":2500},"EstExp 12-20","C72"]
[689,{"$nulls":3},true,{"$f":"IF(G694<>\"\",INDIRECT(\"'\"&G694&\"'!\"&H694),\"\")","v":""}]
[690,{"$f":"'EstExp 12-20'!C73","v":0},690,null,true,{"$f":"IF(G695<>\"\",INDIRECT(\"'\"&G695&\"'!\"&H695),\"\")","v":0},"EstExp 12-20","C73"]
[691,{"$nulls":3},true,{"$f":"IF(G696<>\"\",INDIRECT(\"'\"&G696&\"'!\"&H696),\"\")","v":""}]
[692,{"$f":"'EstExp 12-20'!C74","v":331500},-330808,null,true,{"$f":"IF(G697<>\"\",INDIRECT(\"'\"&G697&\"'!\"&H697),\"\")","v":331500},"EstExp 12-20","C74"]
[693,{"$f":"'EstExp 12-20'!C75","v":70000},-69307,null,true,{"$f":"IF(G698<>\"\",INDIRECT(\"'\"&G698&\"'!\"&H698),\"\")","v":70000},"EstExp 12-20","C75"]
[694,{"$f":"'EstExp 12-20'!C76","v":2715819},-2715125,null,true,{"$f":"IF(G699<>\"\",INDIRECT(\"'\"&G699&\"'!\"&H699),\"\")","v":2715819},"EstExp 12-20","C76"]
[695,{"$f":"'EstExp 12-20'!C77","v":185500},-184805,null,true,{"$f":"IF(G700<>\"\",INDIRECT(\"'\"&G700&\"'!\"&H700),\"\")","v":185500},"EstExp 12-20","C77"]
[696,{"$f":"'EstExp 12-20'!C116","v":8357606},-8356910,null,true,{"$f":"IF(G701<>\"\",INDIRECT(\"'\"&G701&\"'!\"&H701),\"\")","v":8357606},"EstExp 12-20","C116"]
[697,{"$nulls":3},true,{"$f":"IF(G702<>\"\",INDIRECT(\"'\"&G702&\"'!\"&H702),\"\")","v":""}]
[698,{"$nulls":3},true,{"$f":"IF(G703<>\"\",INDIRECT(\"'\"&G703&\"'!\"&H703),\"\")","v":""}]
[699,{"$nulls":3},true,{"$f":"IF(G704<>\"\",INDIRECT(\"'\"&G704&\"'!\"&H704),\"\")","v":""}]
[700,{"$nulls":3},true,{"$f":"IF(G705<>\"\",INDIRECT(\"'\"&G705&\"'!\"&H705),\"\")","v":""}]
[701,{"$nulls":3},{"$f":"F706=B706","v":true},{"$f":"IF(G706<>\"\",INDIRECT(\"'\"&G706&\"'!\"&H706),\"\")","v":""}]
[702,{"$f":"'EstExp 12-20'!D5","v":510650},-509948,null,true,{"$f":"IF(G707<>\"\",INDIRECT(\"'\"&G707&\"'!\"&H707),\"\")","v":510650},"EstExp 12-20","D5"]
[703,{"$f":"'EstExp 12-20'!D16","v":0},703,null,true,{"$f":"IF(G708<>\"\",INDIRECT(\"'\"&G708&\"'!\"&H708),\"\")","v":0},"EstExp 12-20","D16"]
[704,{"$nulls":3},true,{"$f":"IF(G709<>\"\",INDIRECT(\"'\"&G709&\"'!\"&H709),\"\")","v":""}]
[705,{"$nulls":3},true,{"$f":"IF(G710<>\"\",INDIRECT(\"'\"&G710&\"'!\"&H710),\"\")","v":""}]
[706,{"$nulls":3},true,{"$f":"IF(G711<>\"\",INDIRECT(\"'\"&G711&\"'!\"&H711),\"\")","v":""}]
[707,{"$nulls":3},true,{"$f":"IF(G712<>\"\",INDIRECT(\"'\"&G712&\"'!\"&H712),\"\")","v":""}]
[708,{"$nulls":3},true,{"$f":"IF(G713<>\"\",INDIRECT(\"'\"&G713&\"'!\"&H713),\"\")","v":""}]
[709,{"$f":"'EstExp 12-20'!D18","v":36500},{"$f":"A714-B714","v":-35791},null,true,{"$f":"IF(G714<>\"\",INDIRECT(\"'\"&G714&\"'!\"&H714),\"\")","v":36500},"EstExp 12-20","D18"]
[710,{"$nulls":3},true,{"$f":"IF(G715<>\"\",INDIRECT(\"'\"&G715&\"'!\"&H715),\"\")","v":""}]
[711,{"$nulls":3},true,{"$f":"IF(G716<>\"\",INDIRECT(\"'\"&G716&\"'!\"&H716),\"\")","v":""}]
[712,{"$nulls":3},true,{"$f":"IF(G717<>\"\",INDIRECT(\"'\"&G717&\"'!\"&H717),\"\")","v":""}]
[713,{"$f":"'EstExp 12-20'!D12","v":0},713,null,true,{"$f":"IF(G718<>\"\",INDIRECT(\"'\"&G718&\"'!\"&H718),\"\")","v":0},"EstExp 12-20","D12"]
[714,{"$f":"'EstExp 12-20'!D13","v":0},714,null,true,{"$f":"IF(G719<>\"\",INDIRECT(\"'\"&G719&\"'!\"&H719),\"\")","v":0},"EstExp 12-20","D13"]
[715,{"$f":"'EstExp 12-20'!D14","v":12100},-11385,null,true,{"$f":"IF(G720<>\"\",INDIRECT(\"'\"&G720&\"'!\"&H720),\"\")","v":12100},"EstExp 12-20","D14"]
[716,{"$f":"'EstExp 12-20'!D15","v":9000},-8284,null,true,{"$f":"IF(G721<>\"\",INDIRECT(\"'\"&G721&\"'!\"&H721),\"\")","v":9000},"EstExp 12-20","D15"]
[717,{"$f":"'EstExp 12-20'!D34","v":780950},-780233,null,true,{"$f":"IF(G722<>\"\",INDIRECT(\"'\"&G722&\"'!\"&H722),\"\")","v":780950},"EstExp 12-20","D34"]
[718,{"$f":"'EstExp 12-20'!D38","v":20000},-19282,null,true,{"$f":"IF(G723<>\"\",INDIRECT(\"'\"&G723&\"'!\"&H723),\"\")","v":20000},"EstExp 12-20","D38"]
[719,{"$f":"'EstExp 12-20'!D39","v":0},719,null,true,{"$f":"IF(G724<>\"\",INDIRECT(\"'\"&G724&\"'!\"&H724),\"\")","v":0},"EstExp 12-20","D39"]
[720,{"$f":"'EstExp 12-20'!D40","v":8000},-7280,null,true,{"$f":"IF(G725<>\"\",INDIRECT(\"'\"&G725&\"'!\"&H725),\"\")","v":8000},"EstExp 12-20","D40"]
[721,{"$f":"'EstExp 12-20'!D41","v":0},721,null,true,{"$f":"IF(G726<>\"\",INDIRECT(\"'\"&G726&\"'!\"&H726),\"\")","v":0},"EstExp 12-20","D41"]
[722,{"$f":"'EstExp 12-20'!D42","v":0},722,null,true,{"$f":"IF(G727<>\"\",INDIRECT(\"'\"&G727&\"'!\"&H727),\"\")","v":0},"EstExp 12-20","D42"]
[723,{"$f":"'EstExp 12-20'!D43","v":0},723,null,true,{"$f":"IF(G728<>\"\",INDIRECT(\"'\"&G728&\"'!\"&H728),\"\")","v":0},"EstExp 12-20","D43"]
[724,{"$f":"'EstExp 12-20'!D44","v":28000},-27276,null,true,{"$f":"IF(G729<>\"\",INDIRECT(\"'\"&G729&\"'!\"&H729),\"\")","v":28000},"EstExp 12-20","D44"]
[725,{"$f":"'EstExp 12-20'!D46","v":85500},-84775,null,true,{"$f":"IF(G730<>\"\",INDIRECT(\"'\"&G730&\"'!\"&H730),\"\")","v":85500},"EstExp 12-20","D46"]
[726,{"$f":"'EstExp 12-20'!D47","v":2000},-1274,null,true,{"$f":"IF(G731<>\"\",INDIRECT(\"'\"&G731&\"'!\"&H731),\"\")","v":2000},"EstExp 12-20","D47"]
[727,{"$f":"'EstExp 12-20'!D48","v":0},727,null,true,{"$f":"IF(G732<>\"\",INDIRECT(\"'\"&G732&\"'!\"&H732),\"\")","v":0},"EstExp 12-20","D48"]
[728,{"$f":"'EstExp 12-20'!D49","v":87500},-86772,null,true,{"$f":"IF(G733<>\"\",INDIRECT(\"'\"&G733&\"'!\"&H733),\"\")","v":87500},"EstExp 12-20","D49"]
[729,{"$f":"'EstExp 12-20'!D51","v":3000},-2271,null,true,{"$f":"IF(G734<>\"\",INDIRECT(\"'\"&G734&\"'!\"&H734),\"\")","v":3000},"EstExp 12-20","D51"]
[730,{"$f":"'EstExp 12-20'!D52","v":45000},-44270,null,true,{"$f":"IF(G735<>\"\",INDIRECT(\"'\"&G735&\"'!\"&H735),\"\")","v":45000},"EstExp 12-20","D52"]
[731,{"$f":"'EstExp 12-20'!D55","v":138000},-137269,null,true,{"$f":"IF(G736<>\"\",INDIRECT(\"'\"&G736&\"'!\"&H736),\"\")","v":138000},"EstExp 12-20","D55"]
[732,{"$f":"'EstExp 12-20'!D57","v":200000},-199268,null,true,{"$f":"IF(G737<>\"\",INDIRECT(\"'\"&G737&\"'!\"&H737),\"\")","v":200000},"EstExp 12-20","D57"]
[733,{"$f":"'EstExp 12-20'!D58","v":0},733,null,true,{"$f":"IF(G738<>\"\",INDIRECT(\"'\"&G738&\"'!\"&H738),\"\")","v":0},"EstExp 12-20","D58"]
[734,{"$f":"'EstExp 12-20'!D59","v":200000},-199266,null,true,{"$f":"IF(G739<>\"\",INDIRECT(\"'\"&G739&\"'!\"&H739),\"\")","v":200000},"EstExp 12-20","D59"]
[735,{"$f":"'EstExp 12-20'!D61","v":35000},-34265,null,true,{"$f":"IF(G740<>\"\",INDIRECT(\"'\"&G740&\"'!\"&H740),\"\")","v":35000},"EstExp 12-20","D61"]
[736,{"$f":"'EstExp 12-20'!D62","v":25000},-24264,null,true,{"$f":"IF(G741<>\"\",INDIRECT(\"'\"&G741&\"'!\"&H741),\"\")","v":25000},"EstExp 12-20","D62"]
[737,{"$f":"'EstExp 12-20'!D63","v":0},737,null,true,{"$f":"IF(G742<>\"\",INDIRECT(\"'\"&G742&\"'!\"&H742),\"\")","v":0},"EstExp 12-20","D63"]
[738,{"$f":"'EstExp 12-20'!D64","v":0},738,null,true,{"$f":"IF(G743<>\"\",INDIRECT(\"'\"&G743&\"'!\"&H743),\"\")","v":0},"EstExp 12-20","D64"]
[739,{"$f":"'EstExp 12-20'!D65","v":40000},-39261,null,true,{"$f":"IF(G744<>\"\",INDIRECT(\"'\"&G744&\"'!\"&H744),\"\")","v":40000},"EstExp 12-20","D65"]
[740,{"$f":"'EstExp 12-20'!D66","v":0},740,null,true,{"$f":"IF(G745<>\"\",INDIRECT(\"'\"&G745&\"'!\"&H745),\"\")","v":0},"EstExp 12-20","D66"]
[741,{"$nulls":3},true,{"$f":"IF(G746<>\"\",INDIRECT(\"'\"&G746&\"'!\"&H746),\"\")","v":""}]
[742,{"$f":"'EstExp 12-20'!D67","v":100000},-99258,null,true,{"$f":"IF(G747<>\"\",INDIRECT(\"'\"&G747&\"'!\"&H747),\"\")","v":100000},"EstExp 12-20","D67"]
[743,{"$f":"'EstExp 12-20'!D69","v":0},743,null,true,{"$f":"IF(G748<>\"\",INDIRECT(\"'\"&G748&\"'!\"&H748),\"\")","v":0},"EstExp 12-20","D69"]
[744,{"$f":"'EstExp 12-20'!D70","v":0},744,null,true,{"$f":"IF(G749<>\"\",INDIRECT(\"'\"&G749&\"'!\"&H749),\"\")","v":0},"EstExp 12-20","D70"]
[745,{"$f":"'EstExp 12-20'!D71","v":67000},-66255,null,true,{"$f":"IF(G750<>\"\",INDIRECT(\"'\"&G750&\"'!\"&H750),\"\")","v":67000},"EstExp 12-20","D71"]
[746,{"$f":"'EstExp 12-20'!D72","v":0},746,null,true,{"$f":"IF(G751<>\"\",INDIRECT(\"'\"&G751&\"'!\"&H751),\"\")","v":0},"EstExp 12-20","D72"]
[747,{"$nulls":3},true,{"$f":"IF(G752<>\"\",INDIRECT(\"'\"&G752&\"'!\"&H752),\"\")","v":""}]
[748,{"$f":"'EstExp 12-20'!D73","v":0},748,null,true,{"$f":"IF(G753<>\"\",INDIRECT(\"'\"&G753&\"'!\"&H753),\"\")","v":0},"EstExp 12-20","D73"]
[749,{"$nulls":3},true,{"$f":"IF(G754<>\"\",INDIRECT(\"'\"&G754&\"'!\"&H754),\"\")","v":""}]
[750,{"$f":"'EstExp 12-20'!D74","v":67000},-66250,null,true,{"$f":"IF(G755<>\"\",INDIRECT(\"'\"&G755&\"'!\"&H755),\"\")","v":67000},"EstExp 12-20","D74"]
[751,{"$f":"'EstExp 12-20'!D75","v":5000},-4249,null,true,{"$f":"IF(G756<>\"\",INDIRECT(\"'\"&G756&\"'!\"&H756),\"\")","v":5000},"EstExp 12-20","D75"]
[752,{"$f":"'EstExp 12-20'!D76","v":625500},-624748,null,true,{"$f":"IF(G757<>\"\",INDIRECT(\"'\"&G757&\"'!\"&H757),\"\")","v":625500},"EstExp 12-20","D76"]
[753,{"$f":"'EstExp 12-20'!D77","v":37000},-36247,null,true,{"$f":"IF(G758<>\"\",INDIRECT(\"'\"&G758&\"'!\"&H758),\"\")","v":37000},"EstExp 12-20","D77"]
[754,{"$f":"'EstExp 12-20'!D116","v":1443450},-1442696,null,true,{"$f":"IF(G759<>\"\",INDIRECT(\"'\"&G759&\"'!\"&H759),\"\")","v":1443450},"EstExp 12-20","D116"]
[755,{"$nulls":3},true,{"$f":"IF(G760<>\"\",INDIRECT(\"'\"&G760&\"'!\"&H760),\"\")","v":""}]
[756,{"$nulls":3},true,{"$f":"IF(G761<>\"\",INDIRECT(\"'\"&G761&\"'!\"&H761),\"\")","v":""}]
[757,{"$nulls":3},true,{"$f":"IF(G762<>\"\",INDIRECT(\"'\"&G762&\"'!\"&H762),\"\")","v":""}]
[758,{"$nulls":3},true,{"$f":"IF(G763<>\"\",INDIRECT(\"'\"&G763&\"'!\"&H763),\"\")","v":""}]
[759,{"$nulls":3},true,{"$f":"IF(G764<>\"\",INDIRECT(\"'\"&G764&\"'!\"&H764),\"\")","v":""}]
[760,{"$f":"'EstExp 12-20'!E5","v":178400},-177640,null,true,{"$f":"IF(G765<>\"\",INDIRECT(\"'\"&G765&\"'!\"&H765),\"\")","v":178400},"EstExp 12-20","E5"]
[761,{"$f":"'EstExp 12-20'!E16","v":0},761,null,true,{"$f":"IF(G766<>\"\",INDIRECT(\"'\"&G766&\"'!\"&H766),\"\")","v":0},"EstExp 12-20","E16"]
[762,{"$nulls":3},true,{"$f":"IF(G767<>\"\",INDIRECT(\"'\"&G767&\"'!\"&H767),\"\")","v":""}]
[763,{"$nulls":3},true,{"$f":"IF(G768<>\"\",INDIRECT(\"'\"&G768&\"'!\"&H768),\"\")","v":""}]
[764,{"$nulls":3},true,{"$f":"IF(G769<>\"\",INDIRECT(\"'\"&G769&\"'!\"&H769),\"\")","v":""}]
[765,{"$nulls":3},{"$f":"F770=B770","v":true},{"$f":"IF(G770<>\"\",INDIRECT(\"'\"&G770&\"'!\"&H770),\"\")","v":""}]
[766,{"$nulls":3},true,{"$f":"IF(G771<>\"\",INDIRECT(\"'\"&G771&\"'!\"&H771),\"\")","v":""}]
[767,{"$f":"'EstExp 12-20'!E18","v":0},767,null,true,{"$f":"IF(G772<>\"\",INDIRECT(\"'\"&G772&\"'!\"&H772),\"\")","v":0},"EstExp 12-20","E18"]
[768,{"$nulls":3},true,{"$f":"IF(G773<>\"\",INDIRECT(\"'\"&G773&\"'!\"&H773),\"\")","v":""}]
[769,{"$nulls":3},true,{"$f":"IF(G774<>\"\",INDIRECT(\"'\"&G774&\"'!\"&H774),\"\")","v":""}]
[770,{"$nulls":3},true,{"$f":"IF(G775<>\"\",INDIRECT(\"'\"&G775&\"'!\"&H775),\"\")","v":""}]
[771,{"$f":"'EstExp 12-20'!E12","v":0},{"$f":"A776-B776","v":771},null,true,{"$f":"IF(G776<>\"\",INDIRECT(\"'\"&G776&\"'!\"&H776),\"\")","v":0},"EstExp 12-20","E12"]
[772,{"$f":"'EstExp 12-20'!E13","v":0},772,null,true,{"$f":"IF(G777<>\"\",INDIRECT(\"'\"&G777&\"'!\"&H777),\"\")","v":0},"EstExp 12-20","E13"]
[773,{"$f":"'EstExp 12-20'!E14","v":21000},-20227,null,true,{"$f":"IF(G778<>\"\",INDIRECT(\"'\"&G778&\"'!\"&H778),\"\")","v":21000},"EstExp 12-20","E14"]
[774,{"$f":"'EstExp 12-20'!E15","v":0},774,null,true,{"$f":"IF(G779<>\"\",INDIRECT(\"'\"&G779&\"'!\"&H779),\"\")","v":0},"EstExp 12-20","E15"]
[775,{"$f":"'EstExp 12-20'!E34","v":654400},-653625,null,true,{"$f":"IF(G780<>\"\",INDIRECT(\"'\"&G780&\"'!\"&H780),\"\")","v":654400},"EstExp 12-20","E34"]
[776,{"$f":"'EstExp 12-20'!E38","v":2000},-1224,null,true,{"$f":"IF(G781<>\"\",INDIRECT(\"'\"&G781&\"'!\"&H781),\"\")","v":2000},"EstExp 12-20","E38"]
[777,{"$f":"'EstExp 12-20'!E39","v":0},777,null,true,{"$f":"IF(G782<>\"\",INDIRECT(\"'\"&G782&\"'!\"&H782),\"\")","v":0},"EstExp 12-20","E39"]
[778,{"$f":"'EstExp 12-20'!E40","v":350000},-349222,null,true,{"$f":"IF(G783<>\"\",INDIRECT(\"'\"&G783&\"'!\"&H783),\"\")","v":350000},"EstExp 12-20","E40"]
[779,{"$f":"'EstExp 12-20'!E41","v":42000},-41221,null,true,{"$f":"IF(G784<>\"\",INDIRECT(\"'\"&G784&\"'!\"&H784),\"\")","v":42000},"EstExp 12-20","E41"]
[780,{"$f":"'EstExp 12-20'!E42","v":29000},-28220,null,true,{"$f":"IF(G785<>\"\",INDIRECT(\"'\"&G785&\"'!\"&H785),\"\")","v":29000},"EstExp 12-20","E42"]
[781,{"$f":"'EstExp 12-20'!E43","v":0},781,null,true,{"$f":"IF(G786<>\"\",INDIRECT(\"'\"&G786&\"'!\"&H786),\"\")","v":0},"EstExp 12-20","E43"]
[782,{"$f":"'EstExp 12-20'!E44","v":423000},-422218,null,true,{"$f":"IF(G787<>\"\",INDIRECT(\"'\"&G787&\"'!\"&H787),\"\")","v":423000},"EstExp 12-20","E44"]
[783,{"$f":"'EstExp 12-20'!E46","v":229500},-228717,null,true,{"$f":"IF(G788<>\"\",INDIRECT(\"'\"&G788&\"'!\"&H788),\"\")","v":229500},"EstExp 12-20","E46"]
[784,{"$f":"'EstExp 12-20'!E47","v":0},784,null,true,{"$f":"IF(G789<>\"\",INDIRECT(\"'\"&G789&\"'!\"&H789),\"\")","v":0},"EstExp 12-20","E47"]
[785,{"$f":"'EstExp 12-20'!E48","v":2000},-1215,null,true,{"$f":"IF(G790<>\"\",INDIRECT(\"'\"&G790&\"'!\"&H790),\"\")","v":2000},"EstExp 12-20","E48"]
[786,{"$f":"'EstExp 12-20'!E49","v":231500},-230714,null,true,{"$f":"IF(G791<>\"\",INDIRECT(\"'\"&G791&\"'!\"&H791),\"\")","v":231500},"EstExp 12-20","E49"]
[787,{"$f":"'EstExp 12-20'!E51","v":217500},-216713,null,true,{"$f":"IF(G792<>\"\",INDIRECT(\"'\"&G792&\"'!\"&H792),\"\")","v":217500},"EstExp 12-20","E51"]
[788,{"$f":"'EstExp 12-20'!E52","v":29000},-28212,null,true,{"$f":"IF(G793<>\"\",INDIRECT(\"'\"&G793&\"'!\"&H793),\"\")","v":29000},"EstExp 12-20","E52"]
[789,{"$f":"'EstExp 12-20'!E55","v":246500},-245711,null,true,{"$f":"IF(G794<>\"\",INDIRECT(\"'\"&G794&\"'!\"&H794),\"\")","v":246500},"EstExp 12-20","E55"]
[790,{"$f":"'EstExp 12-20'!E57","v":0},790,null,true,{"$f":"IF(G795<>\"\",INDIRECT(\"'\"&G795&\"'!\"&H795),\"\")","v":0},"EstExp 12-20","E57"]
[791,{"$f":"'EstExp 12-20'!E58","v":0},791,null,true,{"$f":"IF(G796<>\"\",INDIRECT(\"'\"&G796&\"'!\"&H796),\"\")","v":0},"EstExp 12-20","E58"]
[792,{"$f":"'EstExp 12-20'!E59","v":0},792,null,true,{"$f":"IF(G797<>\"\",INDIRECT(\"'\"&G797&\"'!\"&H797),\"\")","v":0},"EstExp 12-20","E59"]
[793,{"$f":"'EstExp 12-20'!E61","v":37000},-36207,null,true,{"$f":"IF(G798<>\"\",INDIRECT(\"'\"&G798&\"'!\"&H798),\"\")","v":37000},"EstExp 12-20","E61"]
[794,{"$f":"'EstExp 12-20'!E62","v":2000},-1206,null,true,{"$f":"IF(G799<>\"\",INDIRECT(\"'\"&G799&\"'!\"&H799),\"\")","v":2000},"EstExp 12-20","E62"]
[795,{"$f":"'EstExp 12-20'!E63","v":99000},-98205,null,true,{"$f":"IF(G800<>\"\",INDIRECT(\"'\"&G800&\"'!\"&H800),\"\")","v":99000},"EstExp 12-20","E63"]
[796,{"$f":"'EstExp 12-20'!E64","v":0},796,null,true,{"$f":"IF(G801<>\"\",INDIRECT(\"'\"&G801&\"'!\"&H801),\"\")","v":0},"EstExp 12-20","E64"]
[797,{"$f":"'EstExp 12-20'!E65","v":31000},-30203,null,true,{"$f":"IF(G802<>\"\",INDIRECT(\"'\"&G802&\"'!\"&H802),\"\")","v":31000},"EstExp 12-20","E65"]
[798,{"$f":"'EstExp 12-20'!E66","v":0},798,null,true,{"$f":"IF(G803<>\"\",INDIRECT(\"'\"&G803&\"'!\"&H803),\"\")","v":0},"EstExp 12-20","E66"]
[799,{"$nulls":3},true,{"$f":"IF(G804<>\"\",INDIRECT(\"'\"&G804&\"'!\"&H804),\"\")","v":""}]
[800,{"$f":"'EstExp 12-20'!E67","v":169000},-168200,null,true,{"$f":"IF(G805<>\"\",INDIRECT(\"'\"&G805&\"'!\"&H805),\"\")","v":169000},"EstExp 12-20","E67"]
[801,{"$f":"'EstExp 12-20'!E69","v":0},801,null,true,{"$f":"IF(G806<>\"\",INDIRECT(\"'\"&G806&\"'!\"&H806),\"\")","v":0},"EstExp 12-20","E69"]
[802,{"$f":"'EstExp 12-20'!E70","v":0},802,null,true,{"$f":"IF(G807<>\"\",INDIRECT(\"'\"&G807&\"'!\"&H807),\"\")","v":0},"EstExp 12-20","E70"]
[803,{"$f":"'EstExp 12-20'!E71","v":189000},-188197,null,true,{"$f":"IF(G808<>\"\",INDIRECT(\"'\"&G808&\"'!\"&H808),\"\")","v":189000},"EstExp 12-20","E71"]
[804,{"$f":"'EstExp 12-20'!E72","v":5000},-4196,null,true,{"$f":"IF(G809<>\"\",INDIRECT(\"'\"&G809&\"'!\"&H809),\"\")","v":5000},"EstExp 12-20","E72"]
[805,{"$nulls":3},true,{"$f":"IF(G810<>\"\",INDIRECT(\"'\"&G810&\"'!\"&H810),\"\")","v":""}]
[806,{"$f":"'EstExp 12-20'!E73","v":0},806,null,true,{"$f":"IF(G811<>\"\",INDIRECT(\"'\"&G811&\"'!\"&H811),\"\")","v":0},"EstExp 12-20","E73"]
[807,{"$nulls":3},true,{"$f":"IF(G812<>\"\",INDIRECT(\"'\"&G812&\"'!\"&H812),\"\")","v":""}]
[808,{"$f":"'EstExp 12-20'!E74","v":194000},-193192,null,true,{"$f":"IF(G813<>\"\",INDIRECT(\"'\"&G813&\"'!\"&H813),\"\")","v":194000},"EstExp 12-20","E74"]
[809,{"$f":"'EstExp 12-20'!E75","v":50000},-49191,null,true,{"$f":"IF(G814<>\"\",INDIRECT(\"'\"&G814&\"'!\"&H814),\"\")","v":50000},"EstExp 12-20","E75"]
[810,{"$f":"'EstExp 12-20'!E76","v":1314000},-1313190,null,true,{"$f":"IF(G815<>\"\",INDIRECT(\"'\"&G815&\"'!\"&H815),\"\")","v":1314000},"EstExp 12-20","E76"]
[811,{"$f":"'EstExp 12-20'!E77","v":60000},-59189,null,true,{"$f":"IF(G816<>\"\",INDIRECT(\"'\"&G816&\"'!\"&H816),\"\")","v":60000},"EstExp 12-20","E77"]
[812,{"$f":"'EstExp 12-20'!E116","v":2028400},-2027588,null,true,{"$f":"IF(G817<>\"\",INDIRECT(\"'\"&G817&\"'!\"&H817),\"\")","v":2028400},"EstExp 12-20","E116"]
[813,{"$nulls":3},true,{"$f":"IF(G818<>\"\",INDIRECT(\"'\"&G818&\"'!\"&H818),\"\")","v":""}]
[814,{"$nulls":3},true,{"$f":"IF(G819<>\"\",INDIRECT(\"'\"&G819&\"'!\"&H819),\"\")","v":""}]
[815,{"$nulls":3},true,{"$f":"IF(G820<>\"\",INDIRECT(\"'\"&G820&\"'!\"&H820),\"\")","v":""}]
[816,{"$nulls":3},true,{"$f":"IF(G821<>\"\",INDIRECT(\"'\"&G821&\"'!\"&H821),\"\")","v":""}]
[817,{"$nulls":3},true,{"$f":"IF(G822<>\"\",INDIRECT(\"'\"&G822&\"'!\"&H822),\"\")","v":""}]
[818,{"$f":"'EstExp 12-20'!F5","v":156500},-155682,null,true,{"$f":"IF(G823<>\"\",INDIRECT(\"'\"&G823&\"'!\"&H823),\"\")","v":156500},"EstExp 12-20","F5"]
[819,{"$f":"'EstExp 12-20'!F16","v":0},819,null,true,{"$f":"IF(G824<>\"\",INDIRECT(\"'\"&G824&\"'!\"&H824),\"\")","v":0},"EstExp 12-20","F16"]
[820,{"$nulls":3},true,{"$f":"IF(G825<>\"\",INDIRECT(\"'\"&G825&\"'!\"&H825),\"\")","v":""}]
[821,{"$nulls":3},true,{"$f":"IF(G826<>\"\",INDIRECT(\"'\"&G826&\"'!\"&H826),\"\")","v":""}]
[822,{"$nulls":3},true,{"$f":"IF(G827<>\"\",INDIRECT(\"'\"&G827&\"'!\"&H827),\"\")","v":""}]
[823,{"$nulls":3},true,{"$f":"IF(G828<>\"\",INDIRECT(\"'\"&G828&\"'!\"&H828),\"\")","v":""}]
[824,{"$nulls":3},true,{"$f":"IF(G829<>\"\",INDIRECT(\"'\"&G829&\"'!\"&H829),\"\")","v":""}]
[825,{"$f":"'EstExp 12-20'!F18","v":0},825,null,true,{"$f":"IF(G830<>\"\",INDIRECT(\"'\"&G830&\"'!\"&H830),\"\")","v":0},"EstExp 12-20","F18"]
[826,{"$nulls":3},true,{"$f":"IF(G831<>\"\",INDIRECT(\"'\"&G831&\"'!\"&H831),\"\")","v":""}]
[827,{"$nulls":3},true,{"$f":"IF(G832<>\"\",INDIRECT(\"'\"&G832&\"'!\"&H832),\"\")","v":""}]
[828,{"$nulls":3},true,{"$f":"IF(G833<>\"\",INDIRECT(\"'\"&G833&\"'!\"&H833),\"\")","v":""}]
[829,{"$f":"'EstExp 12-20'!F12","v":0},829,null,{"$f":"F834=B834","v":true},{"$f":"IF(G834<>\"\",INDIRECT(\"'\"&G834&\"'!\"&H834),\"\")","v":0},"EstExp 12-20","F12"]
[830,{"$f":"'EstExp 12-20'!F13","v":0},830,null,true,{"$f":"IF(G835<>\"\",INDIRECT(\"'\"&G835&\"'!\"&H835),\"\")","v":0},"EstExp 12-20","F13"]
[831,{"$f":"'EstExp 12-20'!F14","v":15000},-14169,null,true,{"$f":"IF(G836<>\"\",INDIRECT(\"'\"&G836&\"'!\"&H836),\"\")","v":15000},"EstExp 12-20","F14"]
[832,{"$f":"'EstExp 12-20'!F15","v":0},832,null,true,{"$f":"IF(G837<>\"\",INDIRECT(\"'\"&G837&\"'!\"&H837),\"\")","v":0},"EstExp 12-20","F15"]
[833,{"$f":"'EstExp 12-20'!F34","v":200500},-199667,null,true,{"$f":"IF(G838<>\"\",INDIRECT(\"'\"&G838&\"'!\"&H838),\"\")","v":200500},"EstExp 12-20","F34"]
[834,{"$f":"'EstExp 12-20'!F38","v":2000},-1166,null,true,{"$f":"IF(G839<>\"\",INDIRECT(\"'\"&G839&\"'!\"&H839),\"\")","v":2000},"EstExp 12-20","F38"]
[835,{"$f":"'EstExp 12-20'!F39","v":0},{"$f":"A840-B840","v":835},null,true,{"$f":"IF(G840<>\"\",INDIRECT(\"'\"&G840&\"'!\"&H840),\"\")","v":0},"EstExp 12-20","F39"]
[836,{"$f":"'EstExp 12-20'!F40","v":5000},-4164,null,true,{"$f":"IF(G841<>\"\",INDIRECT(\"'\"&G841&\"'!\"&H841),\"\")","v":5000},"EstExp 12-20","F40"]
[837,{"$f":"'EstExp 12-20'!F41","v":0},837,null,true,{"$f":"IF(G842<>\"\",INDIRECT(\"'\"&G842&\"'!\"&H842),\"\")","v":0},"EstExp 12-20","F41"]
[838,{"$f":"'EstExp 12-20'!F42","v":0},838,null,true,{"$f":"IF(G843<>\"\",INDIRECT(\"'\"&G843&\"'!\"&H843),\"\")","v":0},"EstExp 12-20","F42"]
[839,{"$f":"'EstExp 12-20'!F43","v":0},839,null,true,{"$f":"IF(G844<>\"\",INDIRECT(\"'\"&G844&\"'!\"&H844),\"\")","v":0},"EstExp 12-20","F43"]
[840,{"$f":"'EstExp 12-20'!F44","v":7000},-6160,null,true,{"$f":"IF(G845<>\"\",INDIRECT(\"'\"&G845&\"'!\"&H845),\"\")","v":7000},"EstExp 12-20","F44"]
[841,{"$f":"'EstExp 12-20'!F46","v":13500},-12659,null,true,{"$f":"IF(G846<>\"\",INDIRECT(\"'\"&G846&\"'!\"&H846),\"\")","v":13500},"EstExp 12-20","F46"]
[842,{"$f":"'EstExp 12-20'!F47","v":13000},-12158,null,true,{"$f":"IF(G847<>\"\",INDIRECT(\"'\"&G847&\"'!\"&H847),\"\")","v":13000},"EstExp 12-20","F47"]
[843,{"$f":"'EstExp 12-20'!F48","v":0},843,null,true,{"$f":"IF(G848<>\"\",INDIRECT(\"'\"&G848&\"'!\"&H848),\"\")","v":0},"EstExp 12-20","F48"]
[844,{"$f":"'EstExp 12-20'!F49","v":26500},-25656,null,true,{"$f":"IF(G849<>\"\",INDIRECT(\"'\"&G849&\"'!\"&H849),\"\")","v":26500},"EstExp 12-20","F49"]
[845,{"$f":"'EstExp 12-20'!F51","v":33500},-32655,null,true,{"$f":"IF(G850<>\"\",INDIRECT(\"'\"&G850&\"'!\"&H850),\"\")","v":33500},"EstExp 12-20","F51"]
[846,{"$f":"'EstExp 12-20'!F52","v":12500},-11654,null,true,{"$f":"IF(G851<>\"\",INDIRECT(\"'\"&G851&\"'!\"&H851),\"\")","v":12500},"EstExp 12-20","F52"]
[847,{"$f":"'EstExp 12-20'!F55","v":46500},-45653,null,true,{"$f":"IF(G852<>\"\",INDIRECT(\"'\"&G852&\"'!\"&H852),\"\")","v":46500},"EstExp 12-20","F55"]
[848,{"$f":"'EstExp 12-20'!F57","v":20000},-19152,null,true,{"$f":"IF(G853<>\"\",INDIRECT(\"'\"&G853&\"'!\"&H853),\"\")","v":20000},"EstExp 12-20","F57"]
[849,{"$f":"'EstExp 12-20'!F58","v":0},849,null,true,{"$f":"IF(G854<>\"\",INDIRECT(\"'\"&G854&\"'!\"&H854),\"\")","v":0},"EstExp 12-20","F58"]
[850,{"$f":"'EstExp 12-20'!F59","v":20000},-19150,null,true,{"$f":"IF(G855<>\"\",INDIRECT(\"'\"&G855&\"'!\"&H855),\"\")","v":20000},"EstExp 12-20","F59"]
[851,{"$f":"'EstExp 12-20'!F61","v":8000},-7149,null,true,{"$f":"IF(G856<>\"\",INDIRECT(\"'\"&G856&\"'!\"&H856),\"\")","v":8000},"EstExp 12-20","F61"]
[852,{"$f":"'EstExp 12-20'!F62","v":20000},-19148,null,true,{"$f":"IF(G857<>\"\",INDIRECT(\"'\"&G857&\"'!\"&H857),\"\")","v":20000},"EstExp 12-20","F62"]
[853,{"$f":"'EstExp 12-20'!F63","v":0},853,null,true,{"$f":"IF(G858<>\"\",INDIRECT(\"'\"&G858&\"'!\"&H858),\"\")","v":0},"EstExp 12-20","F63"]
[854,{"$f":"'EstExp 12-20'!F64","v":0},854,null,true,{"$f":"IF(G859<>\"\",INDIRECT(\"'\"&G859&\"'!\"&H859),\"\")","v":0},"EstExp 12-20","F64"]
[855,{"$f":"'EstExp 12-20'!F65","v":235000},-234145,null,true,{"$f":"IF(G860<>\"\",INDIRECT(\"'\"&G860&\"'!\"&H860),\"\")","v":235000},"EstExp 12-20","F65"]
[856,{"$f":"'EstExp 12-20'!F66","v":0},856,null,true,{"$f":"IF(G861<>\"\",INDIRECT(\"'\"&G861&\"'!\"&H861),\"\")","v":0},"EstExp 12-20","F66"]
[857,{"$nulls":3},true,{"$f":"IF(G862<>\"\",INDIRECT(\"'\"&G862&\"'!\"&H862),\"\")","v":""}]
[858,{"$f":"'EstExp 12-20'!F67","v":263000},-262142,null,true,{"$f":"IF(G863<>\"\",INDIRECT(\"'\"&G863&\"'!\"&H863),\"\")","v":263000},"EstExp 12-20","F67"]
[859,{"$f":"'EstExp 12-20'!F69","v":0},859,null,true,{"$f":"IF(G864<>\"\",INDIRECT(\"'\"&G864&\"'!\"&H864),\"\")","v":0},"EstExp 12-20","F69"]
[860,{"$f":"'EstExp 12-20'!F70","v":0},860,null,true,{"$f":"IF(G865<>\"\",INDIRECT(\"'\"&G865&\"'!\"&H865),\"\")","v":0},"EstExp 12-20","F70"]
[861,{"$f":"'EstExp 12-20'!F71","v":187000},-186139,null,true,{"$f":"IF(G866<>\"\",INDIRECT(\"'\"&G866&\"'!\"&H866),\"\")","v":187000},"EstExp 12-20","F71"]
[862,{"$f":"'EstExp 12-20'!F72","v":20000},-19138,null,true,{"$f":"IF(G867<>\"\",INDIRECT(\"'\"&G867&\"'!\"&H867),\"\")","v":20000},"EstExp 12-20","F72"]
[863,{"$nulls":3},true,{"$f":"IF(G868<>\"\",INDIRECT(\"'\"&G868&\"'!\"&H868),\"\")","v":""}]
[864,{"$f":"'EstExp 12-20'!F73","v":0},864,null,true,{"$f":"IF(G869<>\"\",INDIRECT(\"'\"&G869&\"'!\"&H869),\"\")","v":0},"EstExp 12-20","F73"]
[865,{"$nulls":3},true,{"$f":"IF(G870<>\"\",INDIRECT(\"'\"&G870&\"'!\"&H870),\"\")","v":""}]
[866,{"$f":"'EstExp 12-20'!F74","v":207000},-206134,null,true,{"$f":"IF(G871<>\"\",INDIRECT(\"'\"&G871&\"'!\"&H871),\"\")","v":207000},"EstExp 12-20","F74"]
[867,{"$f":"'EstExp 12-20'!F75","v":0},867,null,true,{"$f":"IF(G872<>\"\",INDIRECT(\"'\"&G872&\"'!\"&H872),\"\")","v":0},"EstExp 12-20","F75"]
[868,{"$f":"'EstExp 12-20'!F76","v":570000},-569132,null,true,{"$f":"IF(G873<>\"\",INDIRECT(\"'\"&G873&\"'!\"&H873),\"\")","v":570000},"EstExp 12-20","F76"]
[869,{"$f":"'EstExp 12-20'!F77","v":7500},-6631,null,true,{"$f":"IF(G874<>\"\",INDIRECT(\"'\"&G874&\"'!\"&H874),\"\")","v":7500},"EstExp 12-20","F77"]
[870,{"$f":"'EstExp 12-20'!F116","v":778000},-777130,null,true,{"$f":"IF(G875<>\"\",INDIRECT(\"'\"&G875&\"'!\"&H875),\"\")","v":778000},"EstExp 12-20","F116"]
[871,{"$nulls":3},true,{"$f":"IF(G876<>\"\",INDIRECT(\"'\"&G876&\"'!\"&H876),\"\")","v":""}]
[872,{"$nulls":3},true,{"$f":"IF(G877<>\"\",INDIRECT(\"'\"&G877&\"'!\"&H877),\"\")","v":""}]
[873,{"$nulls":3},true,{"$f":"IF(G878<>\"\",INDIRECT(\"'\"&G878&\"'!\"&H878),\"\")","v":""}]
[874,{"$nulls":3},true,{"$f":"IF(G879<>\"\",INDIRECT(\"'\"&G879&\"'!\"&H879),\"\")","v":""}]
[875,{"$nulls":3},true,{"$f":"IF(G880<>\"\",INDIRECT(\"'\"&G880&\"'!\"&H880),\"\")","v":""}]
[876,{"$f":"'EstExp 12-20'!G5","v":125000},-124124,null,true,{"$f":"IF(G881<>\"\",INDIRECT(\"'\"&G881&\"'!\"&H881),\"\")","v":125000},"EstExp 12-20","G5"]
[877,{"$f":"'EstExp 12-20'!G16","v":0},877,null,true,{"$f":"IF(G882<>\"\",INDIRECT(\"'\"&G882&\"'!\"&H882),\"\")","v":0},"EstExp 12-20","G16"]
[878,{"$nulls":3},true,{"$f":"IF(G883<>\"\",INDIRECT(\"'\"&G883&\"'!\"&H883),\"\")","v":""}]
[879,{"$nulls":3},true,{"$f":"IF(G884<>\"\",INDIRECT(\"'\"&G884&\"'!\"&H884),\"\")","v":""}]
[880,{"$nulls":3},true,{"$f":"IF(G885<>\"\",INDIRECT(\"'\"&G885&\"'!\"&H885),\"\")","v":""}]
[881,{"$nulls":3},true,{"$f":"IF(G886<>\"\",INDIRECT(\"'\"&G886&\"'!\"&H886),\"\")","v":""}]
[882,{"$nulls":3},true,{"$f":"IF(G887<>\"\",INDIRECT(\"'\"&G887&\"'!\"&H887),\"\")","v":""}]
[883,{"$f":"'EstExp 12-20'!G18","v":0},883,null,true,{"$f":"IF(G888<>\"\",INDIRECT(\"'\"&G888&\"'!\"&H888),\"\")","v":0},"EstExp 12-20","G18"]
[884,{"$nulls":3},true,{"$f":"IF(G889<>\"\",INDIRECT(\"'\"&G889&\"'!\"&H889),\"\")","v":""}]
[885,{"$nulls":3},true,{"$f":"IF(G890<>\"\",INDIRECT(\"'\"&G890&\"'!\"&H890),\"\")","v":""}]
[886,{"$nulls":3},true,{"$f":"IF(G891<>\"\",INDIRECT(\"'\"&G891&\"'!\"&H891),\"\")","v":""}]
[887,{"$f":"'EstExp 12-20'!G12","v":0},887,null,true,{"$f":"IF(G892<>\"\",INDIRECT(\"'\"&G892&\"'!\"&H892),\"\")","v":0},"EstExp 12-20","G12"]
[888,{"$f":"'EstExp 12-20'!G13","v":0},888,null,true,{"$f":"IF(G893<>\"\",INDIRECT(\"'\"&G893&\"'!\"&H893),\"\")","v":0},"EstExp 12-20","G13"]
[889,{"$f":"'EstExp 12-20'!G14","v":0},889,null,true,{"$f":"IF(G894<>\"\",INDIRECT(\"'\"&G894&\"'!\"&H894),\"\")","v":0},"EstExp 12-20","G14"]
[890,{"$f":"'EstExp 12-20'!G15","v":0},890,null,true,{"$f":"IF(G895<>\"\",INDIRECT(\"'\"&G895&\"'!\"&H895),\"\")","v":0},"EstExp 12-20","G15"]
[891,{"$f":"'EstExp 12-20'!G34","v":128000},-127109,null,true,{"$f":"IF(G896<>\"\",INDIRECT(\"'\"&G896&\"'!\"&H896),\"\")","v":128000},"EstExp 12-20","G34"]
[892,{"$f":"'EstExp 12-20'!G38","v":0},892,null,true,{"$f":"IF(G897<>\"\",INDIRECT(\"'\"&G897&\"'!\"&H897),\"\")","v":0},"EstExp 12-20","G38"]
[893,{"$f":"'EstExp 12-20'!G39","v":0},893,null,{"$f":"F898=B898","v":true},{"$f":"IF(G898<>\"\",INDIRECT(\"'\"&G898&\"'!\"&H898),\"\")","v":0},"EstExp 12-20","G39"]
[894,{"$f":"'EstExp 12-20'!G40","v":0},894,null,true,{"$f":"IF(G899<>\"\",INDIRECT(\"'\"&G899&\"'!\"&H899),\"\")","v":0},"EstExp 12-20","G40"]
[895,{"$f":"'EstExp 12-20'!G41","v":0},895,null,true,{"$f":"IF(G900<>\"\",INDIRECT(\"'\"&G900&\"'!\"&H900),\"\")","v":0},"EstExp 12-20","G41"]
[896,{"$f":"'EstExp 12-20'!G42","v":0},896,null,true,{"$f":"IF(G901<>\"\",INDIRECT(\"'\"&G901&\"'!\"&H901),\"\")","v":0},"EstExp 12-20","G42"]
[897,{"$f":"'EstExp 12-20'!G43","v":0},897,null,true,{"$f":"IF(G902<>\"\",INDIRECT(\"'\"&G902&\"'!\"&H902),\"\")","v":0},"EstExp 12-20","G43"]
[898,{"$f":"'EstExp 12-20'!G44","v":0},898,null,true,{"$f":"IF(G903<>\"\",INDIRECT(\"'\"&G903&\"'!\"&H903),\"\")","v":0},"EstExp 12-20","G44"]
[899,{"$f":"'EstExp 12-20'!G46","v":0},{"$f":"A904-B904","v":899},null,true,{"$f":"IF(G904<>\"\",INDIRECT(\"'\"&G904&\"'!\"&H904),\"\")","v":0},"EstExp 12-20","G46"]
[900,{"$f":"'EstExp 12-20'!G47","v":0},900,null,true,{"$f":"IF(G905<>\"\",INDIRECT(\"'\"&G905&\"'!\"&H905),\"\")","v":0},"EstExp 12-20","G47"]
[901,{"$f":"'EstExp 12-20'!G48","v":0},901,null,true,{"$f":"IF(G906<>\"\",INDIRECT(\"'\"&G906&\"'!\"&H906),\"\")","v":0},"EstExp 12-20","G48"]
[902,{"$f":"'EstExp 12-20'!G49","v":0},902,null,true,{"$f":"IF(G907<>\"\",INDIRECT(\"'\"&G907&\"'!\"&H907),\"\")","v":0},"EstExp 12-20","G49"]
[903,{"$f":"'EstExp 12-20'!G51","v":0},903,null,true,{"$f":"IF(G908<>\"\",INDIRECT(\"'\"&G908&\"'!\"&H908),\"\")","v":0},"EstExp 12-20","G51"]
[904,{"$f":"'EstExp 12-20'!G52","v":0},904,null,true,{"$f":"IF(G909<>\"\",INDIRECT(\"'\"&G909&\"'!\"&H909),\"\")","v":0},"EstExp 12-20","G52"]
[905,{"$f":"'EstExp 12-20'!G55","v":0},905,null,true,{"$f":"IF(G910<>\"\",INDIRECT(\"'\"&G910&\"'!\"&H910),\"\")","v":0},"EstExp 12-20","G55"]
[906,{"$f":"'EstExp 12-20'!G57","v":0},906,null,true,{"$f":"IF(G911<>\"\",INDIRECT(\"'\"&G911&\"'!\"&H911),\"\")","v":0},"EstExp 12-20","G57"]
[907,{"$f":"'EstExp 12-20'!G58","v":0},907,null,true,{"$f":"IF(G912<>\"\",INDIRECT(\"'\"&G912&\"'!\"&H912),\"\")","v":0},"EstExp 12-20","G58"]
[908,{"$f":"'EstExp 12-20'!G59","v":0},908,null,true,{"$f":"IF(G913<>\"\",INDIRECT(\"'\"&G913&\"'!\"&H913),\"\")","v":0},"EstExp 12-20","G59"]
[909,{"$f":"'EstExp 12-20'!G61","v":0},909,null,true,{"$f":"IF(G914<>\"\",INDIRECT(\"'\"&G914&\"'!\"&H914),\"\")","v":0},"EstExp 12-20","G61"]
[910,{"$f":"'EstExp 12-20'!G62","v":0},910,null,true,{"$f":"IF(G915<>\"\",INDIRECT(\"'\"&G915&\"'!\"&H915),\"\")","v":0},"EstExp 12-20","G62"]
[911,{"$f":"'EstExp 12-20'!G63","v":0},911,null,true,{"$f":"IF(G916<>\"\",INDIRECT(\"'\"&G916&\"'!\"&H916),\"\")","v":0},"EstExp 12-20","G63"]
[912,{"$f":"'EstExp 12-20'!G64","v":0},912,null,true,{"$f":"IF(G917<>\"\",INDIRECT(\"'\"&G917&\"'!\"&H917),\"\")","v":0},"EstExp 12-20","G64"]
[913,{"$f":"'EstExp 12-20'!G65","v":0},913,null,true,{"$f":"IF(G918<>\"\",INDIRECT(\"'\"&G918&\"'!\"&H918),\"\")","v":0},"EstExp 12-20","G65"]
[914,{"$f":"'EstExp 12-20'!G66","v":0},914,null,true,{"$f":"IF(G919<>\"\",INDIRECT(\"'\"&G919&\"'!\"&H919),\"\")","v":0},"EstExp 12-20","G66"]
[915,{"$nulls":3},true,{"$f":"IF(G920<>\"\",INDIRECT(\"'\"&G920&\"'!\"&H920),\"\")","v":""}]
[916,{"$f":"'EstExp 12-20'!G67","v":0},916,null,true,{"$f":"IF(G921<>\"\",INDIRECT(\"'\"&G921&\"'!\"&H921),\"\")","v":0},"EstExp 12-20","G67"]
[917,{"$f":"'EstExp 12-20'!G69","v":0},917,null,true,{"$f":"IF(G922<>\"\",INDIRECT(\"'\"&G922&\"'!\"&H922),\"\")","v":0},"EstExp 12-20","G69"]
[918,{"$f":"'EstExp 12-20'!G70","v":0},918,null,true,{"$f":"IF(G923<>\"\",INDIRECT(\"'\"&G923&\"'!\"&H923),\"\")","v":0},"EstExp 12-20","G70"]
[919,{"$f":"'EstExp 12-20'!G71","v":42500},-41581,null,true,{"$f":"IF(G924<>\"\",INDIRECT(\"'\"&G924&\"'!\"&H924),\"\")","v":42500},"EstExp 12-20","G71"]
[920,{"$f":"'EstExp 12-20'!G72","v":0},920,null,true,{"$f":"IF(G925<>\"\",INDIRECT(\"'\"&G925&\"'!\"&H925),\"\")","v":0},"EstExp 12-20","G72"]
[921,{"$nulls":3},true,{"$f":"IF(G926<>\"\",INDIRECT(\"'\"&G926&\"'!\"&H926),\"\")","v":""}]
[922,{"$f":"'EstExp 12-20'!G73","v":0},922,null,true,{"$f":"IF(G927<>\"\",INDIRECT(\"'\"&G927&\"'!\"&H927),\"\")","v":0},"EstExp 12-20","G73"]
[923,{"$nulls":3},true,{"$f":"IF(G928<>\"\",INDIRECT(\"'\"&G928&\"'!\"&H928),\"\")","v":""}]
[924,{"$f":"'EstExp 12-20'!G74","v":42500},-41576,null,true,{"$f":"IF(G929<>\"\",INDIRECT(\"'\"&G929&\"'!\"&H929),\"\")","v":42500},"EstExp 12-20","G74"]
[925,{"$f":"'EstExp 12-20'!G75","v":0},925,null,true,{"$f":"IF(G930<>\"\",INDIRECT(\"'\"&G930&\"'!\"&H930),\"\")","v":0},"EstExp 12-20","G75"]
[926,{"$f":"'EstExp 12-20'!G76","v":42500},-41574,null,true,{"$f":"IF(G931<>\"\",INDIRECT(\"'\"&G931&\"'!\"&H931),\"\")","v":42500},"EstExp 12-20","G76"]
[927,{"$f":"'EstExp 12-20'!G77","v":25000},-24073,null,true,{"$f":"IF(G932<>\"\",INDIRECT(\"'\"&G932&\"'!\"&H932),\"\")","v":25000},"EstExp 12-20","G77"]
[928,{"$f":"'EstExp 12-20'!G116","v":195500},-194572,null,true,{"$f":"IF(G933<>\"\",INDIRECT(\"'\"&G933&\"'!\"&H933),\"\")","v":195500},"EstExp 12-20","G116"]
[929,{"$nulls":3},true,{"$f":"IF(G934<>\"\",INDIRECT(\"'\"&G934&\"'!\"&H934),\"\")","v":""}]
[930,{"$nulls":3},true,{"$f":"IF(G935<>\"\",INDIRECT(\"'\"&G935&\"'!\"&H935),\"\")","v":""}]
[931,{"$nulls":3},true,{"$f":"IF(G936<>\"\",INDIRECT(\"'\"&G936&\"'!\"&H936),\"\")","v":""}]
[932,{"$nulls":3},true,{"$f":"IF(G937<>\"\",INDIRECT(\"'\"&G937&\"'!\"&H937),\"\")","v":""}]
[933,{"$nulls":3},true,{"$f":"IF(G938<>\"\",INDIRECT(\"'\"&G938&\"'!\"&H938),\"\")","v":""}]
[934,{"$f":"'EstExp 12-20'!H5","v":0},934,null,true,{"$f":"IF(G939<>\"\",INDIRECT(\"'\"&G939&\"'!\"&H939),\"\")","v":0},"EstExp 12-20","H5"]
[935,{"$f":"'EstExp 12-20'!H16","v":0},935,null,true,{"$f":"IF(G940<>\"\",INDIRECT(\"'\"&G940&\"'!\"&H940),\"\")","v":0},"EstExp 12-20","H16"]
[936,{"$nulls":3},true,{"$f":"IF(G941<>\"\",INDIRECT(\"'\"&G941&\"'!\"&H941),\"\")","v":""}]
[937,{"$nulls":3},true,{"$f":"IF(G942<>\"\",INDIRECT(\"'\"&G942&\"'!\"&H942),\"\")","v":""}]
[938,{"$nulls":3},true,{"$f":"IF(G943<>\"\",INDIRECT(\"'\"&G943&\"'!\"&H943),\"\")","v":""}]
[939,{"$nulls":3},true,{"$f":"IF(G944<>\"\",INDIRECT(\"'\"&G944&\"'!\"&H944),\"\")","v":""}]
[940,{"$nulls":3},true,{"$f":"IF(G945<>\"\",INDIRECT(\"'\"&G945&\"'!\"&H945),\"\")","v":""}]
[941,{"$f":"'EstExp 12-20'!H18","v":0},941,null,true,{"$f":"IF(G946<>\"\",INDIRECT(\"'\"&G946&\"'!\"&H946),\"\")","v":0},"EstExp 12-20","H18"]
[942,{"$nulls":3},true,{"$f":"IF(G947<>\"\",INDIRECT(\"'\"&G947&\"'!\"&H947),\"\")","v":""}]
[943,{"$nulls":3},true,{"$f":"IF(G948<>\"\",INDIRECT(\"'\"&G948&\"'!\"&H948),\"\")","v":""}]
[944,{"$nulls":3},true,{"$f":"IF(G949<>\"\",INDIRECT(\"'\"&G949&\"'!\"&H949),\"\")","v":""}]
[945,{"$f":"'EstExp 12-20'!H12","v":0},945,null,true,{"$f":"IF(G950<>\"\",INDIRECT(\"'\"&G950&\"'!\"&H950),\"\")","v":0},"EstExp 12-20","H12"]
[946,{"$f":"'EstExp 12-20'!H13","v":0},946,null,true,{"$f":"IF(G951<>\"\",INDIRECT(\"'\"&G951&\"'!\"&H951),\"\")","v":0},"EstExp 12-20","H13"]
[947,{"$f":"'EstExp 12-20'!H14","v":13000},-12053,null,true,{"$f":"IF(G952<>\"\",INDIRECT(\"'\"&G952&\"'!\"&H952),\"\")","v":13000},"EstExp 12-20","H14"]
[948,{"$f":"'EstExp 12-20'!H15","v":0},948,null,true,{"$f":"IF(G953<>\"\",INDIRECT(\"'\"&G953&\"'!\"&H953),\"\")","v":0},"EstExp 12-20","H15"]
[949,{"$f":"'EstExp 12-20'!H34","v":13000},-12051,null,true,{"$f":"IF(G954<>\"\",INDIRECT(\"'\"&G954&\"'!\"&H954),\"\")","v":13000},"EstExp 12-20","H34"]
[950,{"$f":"'EstExp 12-20'!H38","v":0},950,null,true,{"$f":"IF(G955<>\"\",INDIRECT(\"'\"&G955&\"'!\"&H955),\"\")","v":0},"EstExp 12-20","H38"]
[951,{"$f":"'EstExp 12-20'!H39","v":0},951,null,true,{"$f":"IF(G956<>\"\",INDIRECT(\"'\"&G956&\"'!\"&H956),\"\")","v":0},"EstExp 12-20","H39"]
[952,{"$f":"'EstExp 12-20'!H40","v":0},952,null,true,{"$f":"IF(G957<>\"\",INDIRECT(\"'\"&G957&\"'!\"&H957),\"\")","v":0},"EstExp 12-20","H40"]
[953,{"$f":"'EstExp 12-20'!H41","v":0},953,null,true,{"$f":"IF(G958<>\"\",INDIRECT(\"'\"&G958&\"'!\"&H958),\"\")","v":0},"EstExp 12-20","H41"]
[954,{"$f":"'EstExp 12-20'!H42","v":0},954,null,true,{"$f":"IF(G959<>\"\",INDIRECT(\"'\"&G959&\"'!\"&H959),\"\")","v":0},"EstExp 12-20","H42"]
[955,{"$f":"'EstExp 12-20'!H43","v":0},955,null,true,{"$f":"IF(G960<>\"\",INDIRECT(\"'\"&G960&\"'!\"&H960),\"\")","v":0},"EstExp 12-20","H43"]
[956,{"$f":"'EstExp 12-20'!H44","v":0},956,null,true,{"$f":"IF(G961<>\"\",INDIRECT(\"'\"&G961&\"'!\"&H961),\"\")","v":0},"EstExp 12-20","H44"]
[957,{"$f":"'EstExp 12-20'!H46","v":0},957,null,{"$f":"F962=B962","v":true},{"$f":"IF(G962<>\"\",INDIRECT(\"'\"&G962&\"'!\"&H962),\"\")","v":0},"EstExp 12-20","H46"]
[958,{"$f":"'EstExp 12-20'!H47","v":0},958,null,true,{"$f":"IF(G963<>\"\",INDIRECT(\"'\"&G963&\"'!\"&H963),\"\")","v":0},"EstExp 12-20","H47"]
[959,{"$f":"'EstExp 12-20'!H48","v":0},959,null,true,{"$f":"IF(G964<>\"\",INDIRECT(\"'\"&G964&\"'!\"&H964),\"\")","v":0},"EstExp 12-20","H48"]
[960,{"$f":"'EstExp 12-20'!H49","v":0},960,null,true,{"$f":"IF(G965<>\"\",INDIRECT(\"'\"&G965&\"'!\"&H965),\"\")","v":0},"EstExp 12-20","H49"]
[961,{"$f":"'EstExp 12-20'!H51","v":10000},-9039,null,true,{"$f":"IF(G966<>\"\",INDIRECT(\"'\"&G966&\"'!\"&H966),\"\")","v":10000},"EstExp 12-20","H51"]
[962,{"$f":"'EstExp 12-20'!H52","v":6000},-5038,null,true,{"$f":"IF(G967<>\"\",INDIRECT(\"'\"&G967&\"'!\"&H967),\"\")","v":6000},"EstExp 12-20","H52"]
[963,{"$f":"'EstExp 12-20'!H55","v":16000},{"$f":"A968-B968","v":-15037},null,true,{"$f":"IF(G968<>\"\",INDIRECT(\"'\"&G968&\"'!\"&H968),\"\")","v":16000},"EstExp 12-20","H55"]
[964,{"$f":"'EstExp 12-20'!H57","v":8000},-7036,null,true,{"$f":"IF(G969<>\"\",INDIRECT(\"'\"&G969&\"'!\"&H969),\"\")","v":8000},"EstExp 12-20","H57"]
[965,{"$f":"'EstExp 12-20'!H58","v":0},965,null,true,{"$f":"IF(G970<>\"\",INDIRECT(\"'\"&G970&\"'!\"&H970),\"\")","v":0},"EstExp 12-20","H58"]
[966,{"$f":"'EstExp 12-20'!H59","v":8000},-7034,null,true,{"$f":"IF(G971<>\"\",INDIRECT(\"'\"&G971&\"'!\"&H971),\"\")","v":8000},"EstExp 12-20","H59"]
[967,{"$f":"'EstExp 12-20'!H61","v":2000},-1033,null,true,{"$f":"IF(G972<>\"\",INDIRECT(\"'\"&G972&\"'!\"&H972),\"\")","v":2000},"EstExp 12-20","H61"]
[968,{"$f":"'EstExp 12-20'!H62","v":0},968,null,true,{"$f":"IF(G973<>\"\",INDIRECT(\"'\"&G973&\"'!\"&H973),\"\")","v":0},"EstExp 12-20","H62"]
[969,{"$f":"'EstExp 12-20'!H63","v":0},969,null,true,{"$f":"IF(G974<>\"\",INDIRECT(\"'\"&G974&\"'!\"&H974),\"\")","v":0},"EstExp 12-20","H63"]
[970,{"$f":"'EstExp 12-20'!H64","v":0},970,null,true,{"$f":"IF(G975<>\"\",INDIRECT(\"'\"&G975&\"'!\"&H975),\"\")","v":0},"EstExp 12-20","H64"]
[971,{"$f":"'EstExp 12-20'!H65","v":500},471,null,true,{"$f":"IF(G976<>\"\",INDIRECT(\"'\"&G976&\"'!\"&H976),\"\")","v":500},"EstExp 12-20","H65"]
[972,{"$f":"'EstExp 12-20'!H66","v":0},972,null,true,{"$f":"IF(G977<>\"\",INDIRECT(\"'\"&G977&\"'!\"&H977),\"\")","v":0},"EstExp 12-20","H66"]
[973,{"$nulls":3},true,{"$f":"IF(G978<>\"\",INDIRECT(\"'\"&G978&\"'!\"&H978),\"\")","v":""}]
[974,{"$f":"'EstExp 12-20'!H67","v":2500},-1526,null,true,{"$f":"IF(G979<>\"\",INDIRECT(\"'\"&G979&\"'!\"&H979),\"\")","v":2500},"EstExp 12-20","H67"]
[975,{"$f":"'EstExp 12-20'!H69","v":0},975,null,true,{"$f":"IF(G980<>\"\",INDIRECT(\"'\"&G980&\"'!\"&H980),\"\")","v":0},"EstExp 12-20","H69"]
[976,{"$f":"'EstExp 12-20'!H70","v":0},976,null,true,{"$f":"IF(G981<>\"\",INDIRECT(\"'\"&G981&\"'!\"&H981),\"\")","v":0},"EstExp 12-20","H70"]
[977,{"$f":"'EstExp 12-20'!H71","v":1500},-523,null,true,{"$f":"IF(G982<>\"\",INDIRECT(\"'\"&G982&\"'!\"&H982),\"\")","v":1500},"EstExp 12-20","H71"]
[978,{"$f":"'EstExp 12-20'!H72","v":0},978,null,true,{"$f":"IF(G983<>\"\",INDIRECT(\"'\"&G983&\"'!\"&H983),\"\")","v":0},"EstExp 12-20","H72"]
[979,{"$nulls":3},true,{"$f":"IF(G984<>\"\",INDIRECT(\"'\"&G984&\"'!\"&H984),\"\")","v":""}]
[980,{"$f":"'EstExp 12-20'!H73","v":0},980,null,true,{"$f":"IF(G985<>\"\",INDIRECT(\"'\"&G985&\"'!\"&H985),\"\")","v":0},"EstExp 12-20","H73"]
[981,{"$nulls":3},true,{"$f":"IF(G986<>\"\",INDIRECT(\"'\"&G986&\"'!\"&H986),\"\")","v":""}]
[982,{"$f":"'EstExp 12-20'!H74","v":1500},-518,null,true,{"$f":"IF(G987<>\"\",INDIRECT(\"'\"&G987&\"'!\"&H987),\"\")","v":1500},"EstExp 12-20","H74"]
[983,{"$f":"'EstExp 12-20'!H75","v":0},983,null,true,{"$f":"IF(G988<>\"\",INDIRECT(\"'\"&G988&\"'!\"&H988),\"\")","v":0},"EstExp 12-20","H75"]
[984,{"$f":"'EstExp 12-20'!H76","v":28000},-27016,null,true,{"$f":"IF(G989<>\"\",INDIRECT(\"'\"&G989&\"'!\"&H989),\"\")","v":28000},"EstExp 12-20","H76"]
[985,{"$f":"'EstExp 12-20'!H77","v":0},985,null,true,{"$f":"IF(G990<>\"\",INDIRECT(\"'\"&G990&\"'!\"&H990),\"\")","v":0},"EstExp 12-20","H77"]
[986,{"$f":"'EstExp 12-20'!H104","v":{"v":890000,"d":"890,000 "}},-889014,null,true,{"$f":"IF(G991<>\"\",INDIRECT(\"'\"&G991&\"'!\"&H991),\"\")","v":890000},"EstExp 12-20","H104"]
[987,{"$f":"'EstExp 12-20'!H107","v":0},987,null,true,{"$f":"IF(G992<>\"\",INDIRECT(\"'\"&G992&\"'!\"&H992),\"\")","v":0},"EstExp 12-20","H107"]
[988,{"$f":"'EstExp 12-20'!H108","v":0},988,null,true,{"$f":"IF(G993<>\"\",INDIRECT(\"'\"&G993&\"'!\"&H993),\"\")","v":0},"EstExp 12-20","H108"]
[989,null,null,"Closed 2008",true,{"$f":"IF(G994<>\"\",INDIRECT(\"'\"&G994&\"'!\"&H994),\"\")","v":""}]
[990,{"$f":"'EstExp 12-20'!H111","v":0},990,null,true,{"$f":"IF(G995<>\"\",INDIRECT(\"'\"&G995&\"'!\"&H995),\"\")","v":0},"EstExp 12-20","H111"]
[991,{"$nulls":3},true,{"$f":"IF(G996<>\"\",INDIRECT(\"'\"&G996&\"'!\"&H996),\"\")","v":""}]
[992,{"$f":"'EstExp 12-20'!H114","v":0},992,null,true,{"$f":"IF(G997<>\"\",INDIRECT(\"'\"&G997&\"'!\"&H997),\"\")","v":0},"EstExp 12-20","H114"]
[993,{"$f":"'EstExp 12-20'!H116","v":931000},-930007,null,true,{"$f":"IF(G998<>\"\",INDIRECT(\"'\"&G998&\"'!\"&H998),\"\")","v":931000},"EstExp 12-20","H116"]
[994,{"$nulls":3},true,{"$f":"IF(G999<>\"\",INDIRECT(\"'\"&G999&\"'!\"&H999),\"\")","v":""}]
[995,null,null,"Closed 2008",true,{"$f":"IF(G1000<>\"\",INDIRECT(\"'\"&G1000&\"'!\"&H1000),\"\")","v":""}]
[996,null,null,"Closed 2008",true,{"$f":"IF(G1001<>\"\",INDIRECT(\"'\"&G1001&\"'!\"&H1001),\"\")","v":""}]
[997,{"$nulls":3},true,{"$f":"IF(G1002<>\"\",INDIRECT(\"'\"&G1002&\"'!\"&H1002),\"\")","v":""}]
[998,{"$nulls":3},true,{"$f":"IF(G1003<>\"\",INDIRECT(\"'\"&G1003&\"'!\"&H1003),\"\")","v":""}]
[999,{"$nulls":3},true,{"$f":"IF(G1004<>\"\",INDIRECT(\"'\"&G1004&\"'!\"&H1004),\"\")","v":""}]
[1000,{"$nulls":3},true,{"$f":"IF(G1005<>\"\",INDIRECT(\"'\"&G1005&\"'!\"&H1005),\"\")","v":""}]
[1001,{"$nulls":3},true,{"$f":"IF(G1006<>\"\",INDIRECT(\"'\"&G1006&\"'!\"&H1006),\"\")","v":""}]
[1002,null,null,"Closed 2008",true,{"$f":"IF(G1007<>\"\",INDIRECT(\"'\"&G1007&\"'!\"&H1007),\"\")","v":""}]
[1003,null,null,"Closed 2008",true,{"$f":"IF(G1008<>\"\",INDIRECT(\"'\"&G1008&\"'!\"&H1008),\"\")","v":""}]
[1004,{"$nulls":3},true,{"$f":"IF(G1009<>\"\",INDIRECT(\"'\"&G1009&\"'!\"&H1009),\"\")","v":""}]
[1005,{"$nulls":3},true,{"$f":"IF(G1010<>\"\",INDIRECT(\"'\"&G1010&\"'!\"&H1010),\"\")","v":""}]
[1006,{"$nulls":3},true,{"$f":"IF(G1011<>\"\",INDIRECT(\"'\"&G1011&\"'!\"&H1011),\"\")","v":""}]
[1007,{"$nulls":3},true,{"$f":"IF(G1012<>\"\",INDIRECT(\"'\"&G1012&\"'!\"&H1012),\"\")","v":""}]
[1008,{"$nulls":3},true,{"$f":"IF(G1013<>\"\",INDIRECT(\"'\"&G1013&\"'!\"&H1013),\"\")","v":""}]
[1009,null,null,"Closed 2008",true,{"$f":"IF(G1014<>\"\",INDIRECT(\"'\"&G1014&\"'!\"&H1014),\"\")","v":""}]
[1010,{"$nulls":3},true,{"$f":"IF(G1015<>\"\",INDIRECT(\"'\"&G1015&\"'!\"&H1015),\"\")","v":""}]
[1011,{"$nulls":3},true,{"$f":"IF(G1016<>\"\",INDIRECT(\"'\"&G1016&\"'!\"&H1016),\"\")","v":""}]
[1012,{"$nulls":3},true,{"$f":"IF(G1017<>\"\",INDIRECT(\"'\"&G1017&\"'!\"&H1017),\"\")","v":""}]
[1013,null,null,"Closed 2008",true,{"$f":"IF(G1018<>\"\",INDIRECT(\"'\"&G1018&\"'!\"&H1018),\"\")","v":""}]
[1014,null,null,"Closed 2008",true,{"$f":"IF(G1019<>\"\",INDIRECT(\"'\"&G1019&\"'!\"&H1019),\"\")","v":""}]
[1015,null,null,"Closed 2008",true,{"$f":"IF(G1020<>\"\",INDIRECT(\"'\"&G1020&\"'!\"&H1020),\"\")","v":""}]
[1016,null,null,"Closed 2008",true,{"$f":"IF(G1021<>\"\",INDIRECT(\"'\"&G1021&\"'!\"&H1021),\"\")","v":""}]
[1017,null,null,"Closed 2008",true,{"$f":"IF(G1022<>\"\",INDIRECT(\"'\"&G1022&\"'!\"&H1022),\"\")","v":""}]
[1018,{"$nulls":3},true,{"$f":"IF(G1023<>\"\",INDIRECT(\"'\"&G1023&\"'!\"&H1023),\"\")","v":""}]
[1019,{"$nulls":3},true,{"$f":"IF(G1024<>\"\",INDIRECT(\"'\"&G1024&\"'!\"&H1024),\"\")","v":""}]
[1020,{"$nulls":3},true,{"$f":"IF(G1025<>\"\",INDIRECT(\"'\"&G1025&\"'!\"&H1025),\"\")","v":""}]
[1021,{"$nulls":3},{"$f":"F1026=B1026","v":true},{"$f":"IF(G1026<>\"\",INDIRECT(\"'\"&G1026&\"'!\"&H1026),\"\")","v":""}]
[1022,{"$nulls":3},true,{"$f":"IF(G1027<>\"\",INDIRECT(\"'\"&G1027&\"'!\"&H1027),\"\")","v":""}]
[1023,{"$nulls":3},true,{"$f":"IF(G1028<>\"\",INDIRECT(\"'\"&G1028&\"'!\"&H1028),\"\")","v":""}]
[1024,{"$nulls":3},true,{"$f":"IF(G1029<>\"\",INDIRECT(\"'\"&G1029&\"'!\"&H1029),\"\")","v":""}]
[1025,null,null,"Closed 2008",true,{"$f":"IF(G1030<>\"\",INDIRECT(\"'\"&G1030&\"'!\"&H1030),\"\")","v":""}]
[1026,null,null,"Closed 2008",true,{"$f":"IF(G1031<>\"\",INDIRECT(\"'\"&G1031&\"'!\"&H1031),\"\")","v":""}]
[1027,{"$nulls":3},true,{"$f":"IF(G1032<>\"\",INDIRECT(\"'\"&G1032&\"'!\"&H1032),\"\")","v":""}]
[1028,{"$nulls":3},true,{"$f":"IF(G1033<>\"\",INDIRECT(\"'\"&G1033&\"'!\"&H1033),\"\")","v":""}]
[1029,{"$nulls":3},true,{"$f":"IF(G1034<>\"\",INDIRECT(\"'\"&G1034&\"'!\"&H1034),\"\")","v":""}]
[1030,{"$nulls":3},true,{"$f":"IF(G1035<>\"\",INDIRECT(\"'\"&G1035&\"'!\"&H1035),\"\")","v":""}]
[1031,{"$nulls":3},true,{"$f":"IF(G1036<>\"\",INDIRECT(\"'\"&G1036&\"'!\"&H1036),\"\")","v":""}]
[1032,{"$f":"'EstExp 12-20'!K5","v":4725449},{"$f":"A1037-B1037","v":-4724417},null,true,{"$f":"IF(G1037<>\"\",INDIRECT(\"'\"&G1037&\"'!\"&H1037),\"\")","v":4725449},"EstExp 12-20","K5"]
[1033,{"$f":"'EstExp 12-20'!K16","v":0},1033,null,true,{"$f":"IF(G1038<>\"\",INDIRECT(\"'\"&G1038&\"'!\"&H1038),\"\")","v":0},"EstExp 12-20","K16"]
[1034,{"$nulls":3},true,{"$f":"IF(G1039<>\"\",INDIRECT(\"'\"&G1039&\"'!\"&H1039),\"\")","v":""}]
[1035,{"$nulls":3},true,{"$f":"IF(G1040<>\"\",INDIRECT(\"'\"&G1040&\"'!\"&H1040),\"\")","v":""}]
[1036,{"$nulls":3},true,{"$f":"IF(G1041<>\"\",INDIRECT(\"'\"&G1041&\"'!\"&H1041),\"\")","v":""}]
[1037,{"$nulls":3},true,{"$f":"IF(G1042<>\"\",INDIRECT(\"'\"&G1042&\"'!\"&H1042),\"\")","v":""}]
[1038,{"$nulls":3},true,{"$f":"IF(G1043<>\"\",INDIRECT(\"'\"&G1043&\"'!\"&H1043),\"\")","v":""}]
[1039,{"$f":"'EstExp 12-20'!K18","v":151500},-150461,null,true,{"$f":"IF(G1044<>\"\",INDIRECT(\"'\"&G1044&\"'!\"&H1044),\"\")","v":151500},"EstExp 12-20","K18"]
[1040,{"$nulls":3},true,{"$f":"IF(G1045<>\"\",INDIRECT(\"'\"&G1045&\"'!\"&H1045),\"\")","v":""}]
[1041,{"$nulls":3},true,{"$f":"IF(G1046<>\"\",INDIRECT(\"'\"&G1046&\"'!\"&H1046),\"\")","v":""}]
[1042,{"$nulls":3},true,{"$f":"IF(G1047<>\"\",INDIRECT(\"'\"&G1047&\"'!\"&H1047),\"\")","v":""}]
[1043,{"$f":"'EstExp 12-20'!K12","v":0},1043,null,true,{"$f":"IF(G1048<>\"\",INDIRECT(\"'\"&G1048&\"'!\"&H1048),\"\")","v":0},"EstExp 12-20","K12"]
[1044,{"$f":"'EstExp 12-20'!K13","v":0},1044,null,true,{"$f":"IF(G1049<>\"\",INDIRECT(\"'\"&G1049&\"'!\"&H1049),\"\")","v":0},"EstExp 12-20","K13"]
[1045,{"$f":"'EstExp 12-20'!K14","v":296100},-295055,null,true,{"$f":"IF(G1050<>\"\",INDIRECT(\"'\"&G1050&\"'!\"&H1050),\"\")","v":296100},"EstExp 12-20","K14"]
[1046,{"$f":"'EstExp 12-20'!K15","v":118000},-116954,null,true,{"$f":"IF(G1051<>\"\",INDIRECT(\"'\"&G1051&\"'!\"&H1051),\"\")","v":118000},"EstExp 12-20","K15"]
[1047,{"$f":"'EstExp 12-20'!K34","v":7233137},-7232090,null,true,{"$f":"IF(G1052<>\"\",INDIRECT(\"'\"&G1052&\"'!\"&H1052),\"\")","v":7233137},"EstExp 12-20","K34"]
[1048,{"$f":"'EstExp 12-20'!K38","v":154000},-152952,null,true,{"$f":"IF(G1053<>\"\",INDIRECT(\"'\"&G1053&\"'!\"&H1053),\"\")","v":154000},"EstExp 12-20","K38"]
[1049,{"$f":"'EstExp 12-20'!K39","v":0},1049,null,true,{"$f":"IF(G1054<>\"\",INDIRECT(\"'\"&G1054&\"'!\"&H1054),\"\")","v":0},"EstExp 12-20","K39"]
[1050,{"$f":"'EstExp 12-20'!K40","v":393000},-391950,null,true,{"$f":"IF(G1055<>\"\",INDIRECT(\"'\"&G1055&\"'!\"&H1055),\"\")","v":393000},"EstExp 12-20","K40"]
[1051,{"$f":"'EstExp 12-20'!K41","v":42000},-40949,null,true,{"$f":"IF(G1056<>\"\",INDIRECT(\"'\"&G1056&\"'!\"&H1056),\"\")","v":42000},"EstExp 12-20","K41"]
[1052,{"$f":"'EstExp 12-20'!K42","v":29000},-27948,null,true,{"$f":"IF(G1057<>\"\",INDIRECT(\"'\"&G1057&\"'!\"&H1057),\"\")","v":29000},"EstExp 12-20","K42"]
[1053,{"$f":"'EstExp 12-20'!K43","v":0},1053,null,true,{"$f":"IF(G1058<>\"\",INDIRECT(\"'\"&G1058&\"'!\"&H1058),\"\")","v":0},"EstExp 12-20","K43"]
[1054,{"$f":"'EstExp 12-20'!K44","v":618000},-616946,null,true,{"$f":"IF(G1059<>\"\",INDIRECT(\"'\"&G1059&\"'!\"&H1059),\"\")","v":618000},"EstExp 12-20","K44"]
[1055,{"$f":"'EstExp 12-20'!K46","v":511000},-509945,null,true,{"$f":"IF(G1060<>\"\",INDIRECT(\"'\"&G1060&\"'!\"&H1060),\"\")","v":511000},"EstExp 12-20","K46"]
[1056,{"$f":"'EstExp 12-20'!K47","v":42500},-41444,null,true,{"$f":"IF(G1061<>\"\",INDIRECT(\"'\"&G1061&\"'!\"&H1061),\"\")","v":42500},"EstExp 12-20","K47"]
[1057,{"$f":"'EstExp 12-20'!K48","v":2000},-943,null,true,{"$f":"IF(G1062<>\"\",INDIRECT(\"'\"&G1062&\"'!\"&H1062),\"\")","v":2000},"EstExp 12-20","K48"]
[1058,{"$f":"'EstExp 12-20'!K49","v":555500},-554442,null,true,{"$f":"IF(G1063<>\"\",INDIRECT(\"'\"&G1063&\"'!\"&H1063),\"\")","v":555500},"EstExp 12-20","K49"]
[1059,{"$f":"'EstExp 12-20'!K51","v":264500},-263441,null,true,{"$f":"IF(G1064<>\"\",INDIRECT(\"'\"&G1064&\"'!\"&H1064),\"\")","v":264500},"EstExp 12-20","K51"]
[1060,{"$f":"'EstExp 12-20'!K52","v":352500},-351440,null,true,{"$f":"IF(G1065<>\"\",INDIRECT(\"'\"&G1065&\"'!\"&H1065),\"\")","v":352500},"EstExp 12-20","K52"]
[1061,{"$f":"'EstExp 12-20'!K55","v":975319},-974258,null,true,{"$f":"IF(G1066<>\"\",INDIRECT(\"'\"&G1066&\"'!\"&H1066),\"\")","v":975319},"EstExp 12-20","K55"]
[1062,{"$f":"'EstExp 12-20'!K57","v":1003000},-1001938,null,true,{"$f":"IF(G1067<>\"\",INDIRECT(\"'\"&G1067&\"'!\"&H1067),\"\")","v":1003000},"EstExp 12-20","K57"]
[1063,{"$f":"'EstExp 12-20'!K58","v":0},1063,null,true,{"$f":"IF(G1068<>\"\",INDIRECT(\"'\"&G1068&\"'!\"&H1068),\"\")","v":0},"EstExp 12-20","K58"]
[1064,{"$f":"'EstExp 12-20'!K59","v":1003000},-1001936,null,true,{"$f":"IF(G1069<>\"\",INDIRECT(\"'\"&G1069&\"'!\"&H1069),\"\")","v":1003000},"EstExp 12-20","K59"]
[1065,{"$f":"'EstExp 12-20'!K61","v":182000},-180935,null,true,{"$f":"IF(G1070<>\"\",INDIRECT(\"'\"&G1070&\"'!\"&H1070),\"\")","v":182000},"EstExp 12-20","K61"]
[1066,{"$f":"'EstExp 12-20'!K62","v":202000},-200934,null,true,{"$f":"IF(G1071<>\"\",INDIRECT(\"'\"&G1071&\"'!\"&H1071),\"\")","v":202000},"EstExp 12-20","K62"]
[1067,{"$f":"'EstExp 12-20'!K63","v":99000},-97933,null,true,{"$f":"IF(G1072<>\"\",INDIRECT(\"'\"&G1072&\"'!\"&H1072),\"\")","v":99000},"EstExp 12-20","K63"]
[1068,{"$f":"'EstExp 12-20'!K64","v":0},1068,null,true,{"$f":"IF(G1073<>\"\",INDIRECT(\"'\"&G1073&\"'!\"&H1073),\"\")","v":0},"EstExp 12-20","K64"]
[1069,{"$f":"'EstExp 12-20'!K65","v":692500},-691431,null,true,{"$f":"IF(G1074<>\"\",INDIRECT(\"'\"&G1074&\"'!\"&H1074),\"\")","v":692500},"EstExp 12-20","K65"]
[1070,{"$f":"'EstExp 12-20'!K66","v":0},1070,null,true,{"$f":"IF(G1075<>\"\",INDIRECT(\"'\"&G1075&\"'!\"&H1075),\"\")","v":0},"EstExp 12-20","K66"]
[1071,{"$nulls":3},true,{"$f":"IF(G1076<>\"\",INDIRECT(\"'\"&G1076&\"'!\"&H1076),\"\")","v":""}]
[1072,{"$f":"'EstExp 12-20'!K67","v":1175500},-1174428,null,true,{"$f":"IF(G1077<>\"\",INDIRECT(\"'\"&G1077&\"'!\"&H1077),\"\")","v":1175500},"EstExp 12-20","K67"]
[1073,{"$f":"'EstExp 12-20'!K69","v":0},1073,null,true,{"$f":"IF(G1078<>\"\",INDIRECT(\"'\"&G1078&\"'!\"&H1078),\"\")","v":0},"EstExp 12-20","K69"]
[1074,{"$f":"'EstExp 12-20'!K70","v":0},1074,null,true,{"$f":"IF(G1079<>\"\",INDIRECT(\"'\"&G1079&\"'!\"&H1079),\"\")","v":0},"EstExp 12-20","K70"]
[1075,{"$f":"'EstExp 12-20'!K71","v":816000},-814925,null,true,{"$f":"IF(G1080<>\"\",INDIRECT(\"'\"&G1080&\"'!\"&H1080),\"\")","v":816000},"EstExp 12-20","K71"]
[1076,{"$f":"'EstExp 12-20'!K72","v":27500},-26424,null,true,{"$f":"IF(G1081<>\"\",INDIRECT(\"'\"&G1081&\"'!\"&H1081),\"\")","v":27500},"EstExp 12-20","K72"]
[1077,{"$nulls":3},true,{"$f":"IF(G1082<>\"\",INDIRECT(\"'\"&G1082&\"'!\"&H1082),\"\")","v":""}]
[1078,{"$f":"'EstExp 12-20'!K73","v":0},1078,null,true,{"$f":"IF(G1083<>\"\",INDIRECT(\"'\"&G1083&\"'!\"&H1083),\"\")","v":0},"EstExp 12-20","K73"]
[1079,{"$nulls":3},true,{"$f":"IF(G1084<>\"\",INDIRECT(\"'\"&G1084&\"'!\"&H1084),\"\")","v":""}]
[1080,{"$f":"'EstExp 12-20'!K74","v":843500},-842420,null,true,{"$f":"IF(G1085<>\"\",INDIRECT(\"'\"&G1085&\"'!\"&H1085),\"\")","v":843500},"EstExp 12-20","K74"]
[1081,{"$f":"'EstExp 12-20'!K75","v":125000},-123919,null,true,{"$f":"IF(G1086<>\"\",INDIRECT(\"'\"&G1086&\"'!\"&H1086),\"\")","v":125000},"EstExp 12-20","K75"]
[1082,{"$f":"'EstExp 12-20'!K76","v":5295819},-5294737,null,true,{"$f":"IF(G1087<>\"\",INDIRECT(\"'\"&G1087&\"'!\"&H1087),\"\")","v":5295819},"EstExp 12-20","K76"]
[1083,{"$f":"'EstExp 12-20'!K77","v":315000},-313917,null,true,{"$f":"IF(G1088<>\"\",INDIRECT(\"'\"&G1088&\"'!\"&H1088),\"\")","v":315000},"EstExp 12-20","K77"]
[1084,{"$f":"'EstExp 12-20'!K104","v":890000},-888916,null,true,{"$f":"IF(G1089<>\"\",INDIRECT(\"'\"&G1089&\"'!\"&H1089),\"\")","v":890000},"EstExp 12-20","K104"]
[1085,{"$f":"'EstExp 12-20'!K107","v":0},1085,null,{"$f":"F1090=B1090","v":true},{"$f":"IF(G1090<>\"\",INDIRECT(\"'\"&G1090&\"'!\"&H1090),\"\")","v":0},"EstExp 12-20","K107"]
[1086,{"$f":"'EstExp 12-20'!K108","v":0},1086,null,true,{"$f":"IF(G1091<>\"\",INDIRECT(\"'\"&G1091&\"'!\"&H1091),\"\")","v":0},"EstExp 12-20","K108"]
[1087,null,null,"Closed 2008",true,{"$f":"IF(G1092<>\"\",INDIRECT(\"'\"&G1092&\"'!\"&H1092),\"\")","v":""}]
[1088,{"$f":"'EstExp 12-20'!K111","v":0},1088,null,true,{"$f":"IF(G1093<>\"\",INDIRECT(\"'\"&G1093&\"'!\"&H1093),\"\")","v":0},"EstExp 12-20","K111"]
[1089,{"$nulls":3},true,{"$f":"IF(G1094<>\"\",INDIRECT(\"'\"&G1094&\"'!\"&H1094),\"\")","v":""}]
[1090,{"$f":"'EstExp 12-20'!K114","v":0},1090,null,true,{"$f":"IF(G1095<>\"\",INDIRECT(\"'\"&G1095&\"'!\"&H1095),\"\")","v":0},"EstExp 12-20","K114"]
[1091,{"$f":"'EstExp 12-20'!K116","v":13733956},{"$f":"A1096-B1096","v":-13732865},null,true,{"$f":"IF(G1096<>\"\",INDIRECT(\"'\"&G1096&\"'!\"&H1096),\"\")","v":13733956},"EstExp 12-20","K116"]
[1092,{"$f":"'EstExp 12-20'!K118","v":-916056},917148,null,true,{"$f":"IF(G1097<>\"\",INDIRECT(\"'\"&G1097&\"'!\"&H1097),\"\")","v":-916056},"EstExp 12-20","K118"]
[1093,{"$nulls":3},true,{"$f":"IF(G1098<>\"\",INDIRECT(\"'\"&G1098&\"'!\"&H1098),\"\")","v":""}]
[1094,{"$nulls":3},true,{"$f":"IF(G1099<>\"\",INDIRECT(\"'\"&G1099&\"'!\"&H1099),\"\")","v":""}]
[1095,{"$nulls":3},true,{"$f":"IF(G1100<>\"\",INDIRECT(\"'\"&G1100&\"'!\"&H1100),\"\")","v":""}]
[1096,{"$nulls":3},true,{"$f":"IF(G1101<>\"\",INDIRECT(\"'\"&G1101&\"'!\"&H1101),\"\")","v":""}]
[1097,{"$nulls":3},true,{"$f":"IF(G1102<>\"\",INDIRECT(\"'\"&G1102&\"'!\"&H1102),\"\")","v":""}]
[1098,{"$nulls":3},true,{"$f":"IF(G1103<>\"\",INDIRECT(\"'\"&G1103&\"'!\"&H1103),\"\")","v":""}]
[1099,{"$nulls":3},true,{"$f":"IF(G1104<>\"\",INDIRECT(\"'\"&G1104&\"'!\"&H1104),\"\")","v":""}]
[1100,{"$nulls":3},true,{"$f":"IF(G1105<>\"\",INDIRECT(\"'\"&G1105&\"'!\"&H1105),\"\")","v":""}]
[1101,{"$nulls":3},true,{"$f":"IF(G1106<>\"\",INDIRECT(\"'\"&G1106&\"'!\"&H1106),\"\")","v":""}]
[1102,{"$nulls":3},true,{"$f":"IF(G1107<>\"\",INDIRECT(\"'\"&G1107&\"'!\"&H1107),\"\")","v":""}]
[1103,{"$nulls":3},true,{"$f":"IF(G1108<>\"\",INDIRECT(\"'\"&G1108&\"'!\"&H1108),\"\")","v":""}]
[1104,{"$nulls":3},true,{"$f":"IF(G1109<>\"\",INDIRECT(\"'\"&G1109&\"'!\"&H1109),\"\")","v":""}]
[1105,{"$nulls":3},true,{"$f":"IF(G1110<>\"\",INDIRECT(\"'\"&G1110&\"'!\"&H1110),\"\")","v":""}]
[1106,{"$nulls":3},true,{"$f":"IF(G1111<>\"\",INDIRECT(\"'\"&G1111&\"'!\"&H1111),\"\")","v":""}]
[1107,{"$nulls":3},true,{"$f":"IF(G1112<>\"\",INDIRECT(\"'\"&G1112&\"'!\"&H1112),\"\")","v":""}]
[1108,{"$nulls":3},true,{"$f":"IF(G1113<>\"\",INDIRECT(\"'\"&G1113&\"'!\"&H1113),\"\")","v":""}]
[1109,{"$nulls":3},true,{"$f":"IF(G1114<>\"\",INDIRECT(\"'\"&G1114&\"'!\"&H1114),\"\")","v":""}]
[1110,{"$nulls":3},true,{"$f":"IF(G1115<>\"\",INDIRECT(\"'\"&G1115&\"'!\"&H1115),\"\")","v":""}]
[1111,{"$nulls":3},true,{"$f":"IF(G1116<>\"\",INDIRECT(\"'\"&G1116&\"'!\"&H1116),\"\")","v":""}]
[1112,{"$nulls":3},true,{"$f":"IF(G1117<>\"\",INDIRECT(\"'\"&G1117&\"'!\"&H1117),\"\")","v":""}]
[1113,{"$nulls":3},true,{"$f":"IF(G1118<>\"\",INDIRECT(\"'\"&G1118&\"'!\"&H1118),\"\")","v":""}]
[1114,{"$nulls":3},true,{"$f":"IF(G1119<>\"\",INDIRECT(\"'\"&G1119&\"'!\"&H1119),\"\")","v":""}]
[1115,{"$nulls":3},true,{"$f":"IF(G1120<>\"\",INDIRECT(\"'\"&G1120&\"'!\"&H1120),\"\")","v":""}]
[1116,{"$nulls":3},true,{"$f":"IF(G1121<>\"\",INDIRECT(\"'\"&G1121&\"'!\"&H1121),\"\")","v":""}]
[1117,{"$nulls":3},true,{"$f":"IF(G1122<>\"\",INDIRECT(\"'\"&G1122&\"'!\"&H1122),\"\")","v":""}]
[1118,{"$nulls":3},true,{"$f":"IF(G1123<>\"\",INDIRECT(\"'\"&G1123&\"'!\"&H1123),\"\")","v":""}]
[1119,{"$nulls":3},true,{"$f":"IF(G1124<>\"\",INDIRECT(\"'\"&G1124&\"'!\"&H1124),\"\")","v":""}]
[1120,{"$nulls":3},true,{"$f":"IF(G1125<>\"\",INDIRECT(\"'\"&G1125&\"'!\"&H1125),\"\")","v":""}]
[1121,{"$nulls":3},true,{"$f":"IF(G1126<>\"\",INDIRECT(\"'\"&G1126&\"'!\"&H1126),\"\")","v":""}]
[1122,{"$nulls":3},true,{"$f":"IF(G1127<>\"\",INDIRECT(\"'\"&G1127&\"'!\"&H1127),\"\")","v":""}]
[1123,{"$nulls":3},true,{"$f":"IF(G1128<>\"\",INDIRECT(\"'\"&G1128&\"'!\"&H1128),\"\")","v":""}]
[1124,{"$nulls":3},true,{"$f":"IF(G1129<>\"\",INDIRECT(\"'\"&G1129&\"'!\"&H1129),\"\")","v":""}]
[1125,{"$nulls":3},true,{"$f":"IF(G1130<>\"\",INDIRECT(\"'\"&G1130&\"'!\"&H1130),\"\")","v":""}]
[1126,{"$nulls":3},true,{"$f":"IF(G1131<>\"\",INDIRECT(\"'\"&G1131&\"'!\"&H1131),\"\")","v":""}]
[1127,{"$nulls":3},true,{"$f":"IF(G1132<>\"\",INDIRECT(\"'\"&G1132&\"'!\"&H1132),\"\")","v":""}]
[1128,{"$nulls":3},true,{"$f":"IF(G1133<>\"\",INDIRECT(\"'\"&G1133&\"'!\"&H1133),\"\")","v":""}]
[1129,{"$nulls":3},true,{"$f":"IF(G1134<>\"\",INDIRECT(\"'\"&G1134&\"'!\"&H1134),\"\")","v":""}]
[1130,{"$nulls":3},true,{"$f":"IF(G1135<>\"\",INDIRECT(\"'\"&G1135&\"'!\"&H1135),\"\")","v":""}]
[1131,{"$nulls":3},true,{"$f":"IF(G1136<>\"\",INDIRECT(\"'\"&G1136&\"'!\"&H1136),\"\")","v":""}]
[1132,{"$nulls":3},true,{"$f":"IF(G1137<>\"\",INDIRECT(\"'\"&G1137&\"'!\"&H1137),\"\")","v":""}]
[1133,{"$nulls":3},true,{"$f":"IF(G1138<>\"\",INDIRECT(\"'\"&G1138&\"'!\"&H1138),\"\")","v":""}]
[1134,{"$nulls":3},true,{"$f":"IF(G1139<>\"\",INDIRECT(\"'\"&G1139&\"'!\"&H1139),\"\")","v":""}]
[1135,{"$nulls":3},true,{"$f":"IF(G1140<>\"\",INDIRECT(\"'\"&G1140&\"'!\"&H1140),\"\")","v":""}]
[1136,{"$nulls":3},true,{"$f":"IF(G1141<>\"\",INDIRECT(\"'\"&G1141&\"'!\"&H1141),\"\")","v":""}]
[1137,{"$nulls":3},true,{"$f":"IF(G1142<>\"\",INDIRECT(\"'\"&G1142&\"'!\"&H1142),\"\")","v":""}]
[1138,{"$nulls":3},true,{"$f":"IF(G1143<>\"\",INDIRECT(\"'\"&G1143&\"'!\"&H1143),\"\")","v":""}]
[1139,{"$nulls":3},true,{"$f":"IF(G1144<>\"\",INDIRECT(\"'\"&G1144&\"'!\"&H1144),\"\")","v":""}]
[1140,{"$nulls":3},true,{"$f":"IF(G1145<>\"\",INDIRECT(\"'\"&G1145&\"'!\"&H1145),\"\")","v":""}]
[1141,{"$nulls":3},true,{"$f":"IF(G1146<>\"\",INDIRECT(\"'\"&G1146&\"'!\"&H1146),\"\")","v":""}]
[1142,{"$nulls":3},true,{"$f":"IF(G1147<>\"\",INDIRECT(\"'\"&G1147&\"'!\"&H1147),\"\")","v":""}]
[1143,{"$nulls":3},true,{"$f":"IF(G1148<>\"\",INDIRECT(\"'\"&G1148&\"'!\"&H1148),\"\")","v":""}]
[1144,{"$nulls":3},true,{"$f":"IF(G1149<>\"\",INDIRECT(\"'\"&G1149&\"'!\"&H1149),\"\")","v":""}]
[1145,{"$nulls":3},true,{"$f":"IF(G1150<>\"\",INDIRECT(\"'\"&G1150&\"'!\"&H1150),\"\")","v":""}]
[1146,{"$nulls":3},true,{"$f":"IF(G1151<>\"\",INDIRECT(\"'\"&G1151&\"'!\"&H1151),\"\")","v":""}]
[1147,{"$nulls":3},true,{"$f":"IF(G1152<>\"\",INDIRECT(\"'\"&G1152&\"'!\"&H1152),\"\")","v":""}]
[1148,{"$nulls":3},true,{"$f":"IF(G1153<>\"\",INDIRECT(\"'\"&G1153&\"'!\"&H1153),\"\")","v":""}]
[1149,{"$nulls":3},{"$f":"F1154=B1154","v":true},{"$f":"IF(G1154<>\"\",INDIRECT(\"'\"&G1154&\"'!\"&H1154),\"\")","v":""}]
[1150,{"$nulls":3},true,{"$f":"IF(G1155<>\"\",INDIRECT(\"'\"&G1155&\"'!\"&H1155),\"\")","v":""}]
[1151,{"$nulls":3},true,{"$f":"IF(G1156<>\"\",INDIRECT(\"'\"&G1156&\"'!\"&H1156),\"\")","v":""}]
[1152,{"$nulls":3},true,{"$f":"IF(G1157<>\"\",INDIRECT(\"'\"&G1157&\"'!\"&H1157),\"\")","v":""}]
[1153,{"$nulls":3},true,{"$f":"IF(G1158<>\"\",INDIRECT(\"'\"&G1158&\"'!\"&H1158),\"\")","v":""}]
[1154,{"$nulls":3},true,{"$f":"IF(G1159<>\"\",INDIRECT(\"'\"&G1159&\"'!\"&H1159),\"\")","v":""}]
[1155,{"$nulls":3},true,{"$f":"IF(G1160<>\"\",INDIRECT(\"'\"&G1160&\"'!\"&H1160),\"\")","v":""}]
[1156,{"$nulls":3},true,{"$f":"IF(G1161<>\"\",INDIRECT(\"'\"&G1161&\"'!\"&H1161),\"\")","v":""}]
[1157,{"$nulls":3},true,{"$f":"IF(G1162<>\"\",INDIRECT(\"'\"&G1162&\"'!\"&H1162),\"\")","v":""}]
[1158,{"$f":"'EstExp 12-20'!C126","v":0},{"$f":"A1163-B1163","v":1158},null,true,{"$f":"IF(G1163<>\"\",INDIRECT(\"'\"&G1163&\"'!\"&H1163),\"\")","v":0},"EstExp 12-20","C126"]
[1159,{"$f":"'EstExp 12-20'!C127","v":0},1159,null,true,{"$f":"IF(G1164<>\"\",INDIRECT(\"'\"&G1164&\"'!\"&H1164),\"\")","v":0},"EstExp 12-20","C127"]
[1160,{"$f":"'EstExp 12-20'!C128","v":818000},-816840,null,true,{"$f":"IF(G1165<>\"\",INDIRECT(\"'\"&G1165&\"'!\"&H1165),\"\")","v":818000},"EstExp 12-20","C128"]
[1161,{"$nulls":3},true,{"$f":"IF(G1166<>\"\",INDIRECT(\"'\"&G1166&\"'!\"&H1166),\"\")","v":""}]
[1162,{"$f":"'EstExp 12-20'!C131","v":818000},-816838,null,true,{"$f":"IF(G1167<>\"\",INDIRECT(\"'\"&G1167&\"'!\"&H1167),\"\")","v":818000},"EstExp 12-20","C131"]
[1163,{"$f":"'EstExp 12-20'!C132","v":0},1163,null,true,{"$f":"IF(G1168<>\"\",INDIRECT(\"'\"&G1168&\"'!\"&H1168),\"\")","v":0},"EstExp 12-20","C132"]
[1164,{"$f":"'EstExp 12-20'!C133","v":818000},-816836,null,true,{"$f":"IF(G1169<>\"\",INDIRECT(\"'\"&G1169&\"'!\"&H1169),\"\")","v":818000},"EstExp 12-20","C133"]
[1165,{"$f":"'EstExp 12-20'!C155","v":818000},-816835,null,true,{"$f":"IF(G1170<>\"\",INDIRECT(\"'\"&G1170&\"'!\"&H1170),\"\")","v":818000},"EstExp 12-20","C155"]
[1166,{"$f":"'EstExp 12-20'!D126","v":0},1166,null,true,{"$f":"IF(G1171<>\"\",INDIRECT(\"'\"&G1171&\"'!\"&H1171),\"\")","v":0},"EstExp 12-20","D126"]
[1167,{"$f":"'EstExp 12-20'!D127","v":0},1167,null,true,{"$f":"IF(G1172<>\"\",INDIRECT(\"'\"&G1172&\"'!\"&H1172),\"\")","v":0},"EstExp 12-20","D127"]
[1168,{"$f":"'EstExp 12-20'!D128","v":85000},-83832,null,true,{"$f":"IF(G1173<>\"\",INDIRECT(\"'\"&G1173&\"'!\"&H1173),\"\")","v":85000},"EstExp 12-20","D128"]
[1169,{"$nulls":3},true,{"$f":"IF(G1174<>\"\",INDIRECT(\"'\"&G1174&\"'!\"&H1174),\"\")","v":""}]
[1170,{"$f":"'EstExp 12-20'!D131","v":85000},-83830,null,true,{"$f":"IF(G1175<>\"\",INDIRECT(\"'\"&G1175&\"'!\"&H1175),\"\")","v":85000},"EstExp 12-20","D131"]
[1171,{"$f":"'EstExp 12-20'!D132","v":0},1171,null,true,{"$f":"IF(G1176<>\"\",INDIRECT(\"'\"&G1176&\"'!\"&H1176),\"\")","v":0},"EstExp 12-20","D132"]
[1172,{"$f":"'EstExp 12-20'!D133","v":85000},-83828,null,true,{"$f":"IF(G1177<>\"\",INDIRECT(\"'\"&G1177&\"'!\"&H1177),\"\")","v":85000},"EstExp 12-20","D133"]
[1173,{"$f":"'EstExp 12-20'!D155","v":85000},-83827,null,true,{"$f":"IF(G1178<>\"\",INDIRECT(\"'\"&G1178&\"'!\"&H1178),\"\")","v":85000},"EstExp 12-20","D155"]
[1174,{"$f":"'EstExp 12-20'!E126","v":0},1174,null,true,{"$f":"IF(G1179<>\"\",INDIRECT(\"'\"&G1179&\"'!\"&H1179),\"\")","v":0},"EstExp 12-20","E126"]
[1175,{"$f":"'EstExp 12-20'!E127","v":0},1175,null,true,{"$f":"IF(G1180<>\"\",INDIRECT(\"'\"&G1180&\"'!\"&H1180),\"\")","v":0},"EstExp 12-20","E127"]
[1176,{"$f":"'EstExp 12-20'!E128","v":209500},-208324,null,true,{"$f":"IF(G1181<>\"\",INDIRECT(\"'\"&G1181&\"'!\"&H1181),\"\")","v":209500},"EstExp 12-20","E128"]
[1177,{"$nulls":3},true,{"$f":"IF(G1182<>\"\",INDIRECT(\"'\"&G1182&\"'!\"&H1182),\"\")","v":""}]
[1178,{"$f":"'EstExp 12-20'!E131","v":209500},-208322,null,true,{"$f":"IF(G1183<>\"\",INDIRECT(\"'\"&G1183&\"'!\"&H1183),\"\")","v":209500},"EstExp 12-20","E131"]
[1179,{"$f":"'EstExp 12-20'!E132","v":0},1179,null,true,{"$f":"IF(G1184<>\"\",INDIRECT(\"'\"&G1184&\"'!\"&H1184),\"\")","v":0},"EstExp 12-20","E132"]
[1180,{"$f":"'EstExp 12-20'!E133","v":209500},-208320,null,true,{"$f":"IF(G1185<>\"\",INDIRECT(\"'\"&G1185&\"'!\"&H1185),\"\")","v":209500},"EstExp 12-20","E133"]
[1181,{"$f":"'EstExp 12-20'!E155","v":209500},-208319,null,true,{"$f":"IF(G1186<>\"\",INDIRECT(\"'\"&G1186&\"'!\"&H1186),\"\")","v":209500},"EstExp 12-20","E155"]
[1182,{"$f":"'EstExp 12-20'!F126","v":0},1182,null,true,{"$f":"IF(G1187<>\"\",INDIRECT(\"'\"&G1187&\"'!\"&H1187),\"\")","v":0},"EstExp 12-20","F126"]
[1183,{"$f":"'EstExp 12-20'!F127","v":0},1183,null,true,{"$f":"IF(G1188<>\"\",INDIRECT(\"'\"&G1188&\"'!\"&H1188),\"\")","v":0},"EstExp 12-20","F127"]
[1184,{"$f":"'EstExp 12-20'!F128","v":442000},-440816,null,true,{"$f":"IF(G1189<>\"\",INDIRECT(\"'\"&G1189&\"'!\"&H1189),\"\")","v":442000},"EstExp 12-20","F128"]
[1185,{"$nulls":3},true,{"$f":"IF(G1190<>\"\",INDIRECT(\"'\"&G1190&\"'!\"&H1190),\"\")","v":""}]
[1186,{"$f":"'EstExp 12-20'!F131","v":442000},-440814,null,true,{"$f":"IF(G1191<>\"\",INDIRECT(\"'\"&G1191&\"'!\"&H1191),\"\")","v":442000},"EstExp 12-20","F131"]
[1187,{"$f":"'EstExp 12-20'!F132","v":0},1187,null,true,{"$f":"IF(G1192<>\"\",INDIRECT(\"'\"&G1192&\"'!\"&H1192),\"\")","v":0},"EstExp 12-20","F132"]
[1188,{"$f":"'EstExp 12-20'!F133","v":442000},-440812,null,true,{"$f":"IF(G1193<>\"\",INDIRECT(\"'\"&G1193&\"'!\"&H1193),\"\")","v":442000},"EstExp 12-20","F133"]
[1189,{"$f":"'EstExp 12-20'!F155","v":442000},-440811,null,true,{"$f":"IF(G1194<>\"\",INDIRECT(\"'\"&G1194&\"'!\"&H1194),\"\")","v":442000},"EstExp 12-20","F155"]
[1190,{"$f":"'EstExp 12-20'!G126","v":0},1190,null,true,{"$f":"IF(G1195<>\"\",INDIRECT(\"'\"&G1195&\"'!\"&H1195),\"\")","v":0},"EstExp 12-20","G126"]
[1191,{"$f":"'EstExp 12-20'!G127","v":0},1191,null,true,{"$f":"IF(G1196<>\"\",INDIRECT(\"'\"&G1196&\"'!\"&H1196),\"\")","v":0},"EstExp 12-20","G127"]
[1192,{"$f":"'EstExp 12-20'!G128","v":10000},-8808,null,true,{"$f":"IF(G1197<>\"\",INDIRECT(\"'\"&G1197&\"'!\"&H1197),\"\")","v":10000},"EstExp 12-20","G128"]
[1193,{"$f":"'EstExp 12-20'!G130","v":0},1193,null,true,{"$f":"IF(G1198<>\"\",INDIRECT(\"'\"&G1198&\"'!\"&H1198),\"\")","v":0},"EstExp 12-20","G130"]
[1194,{"$nulls":3},true,{"$f":"IF(G1199<>\"\",INDIRECT(\"'\"&G1199&\"'!\"&H1199),\"\")","v":""}]
[1195,{"$f":"'EstExp 12-20'!G131","v":10000},-8805,null,true,{"$f":"IF(G1200<>\"\",INDIRECT(\"'\"&G1200&\"'!\"&H1200),\"\")","v":10000},"EstExp 12-20","G131"]
[1196,{"$f":"'EstExp 12-20'!G132","v":0},1196,null,true,{"$f":"IF(G1201<>\"\",INDIRECT(\"'\"&G1201&\"'!\"&H1201),\"\")","v":0},"EstExp 12-20","G132"]
[1197,{"$f":"'EstExp 12-20'!G133","v":10000},-8803,null,true,{"$f":"IF(G1202<>\"\",INDIRECT(\"'\"&G1202&\"'!\"&H1202),\"\")","v":10000},"EstExp 12-20","G133"]
[1198,{"$f":"'EstExp 12-20'!G155","v":10000},-8802,null,true,{"$f":"IF(G1203<>\"\",INDIRECT(\"'\"&G1203&\"'!\"&H1203),\"\")","v":10000},"EstExp 12-20","G155"]
[1199,{"$f":"'EstExp 12-20'!H126","v":0},1199,null,true,{"$f":"IF(G1204<>\"\",INDIRECT(\"'\"&G1204&\"'!\"&H1204),\"\")","v":0},"EstExp 12-20","H126"]
[1200,{"$f":"'EstExp 12-20'!H127","v":0},1200,null,true,{"$f":"IF(G1205<>\"\",INDIRECT(\"'\"&G1205&\"'!\"&H1205),\"\")","v":0},"EstExp 12-20","H127"]
[1201,{"$f":"'EstExp 12-20'!H128","v":0},1201,null,true,{"$f":"IF(G1206<>\"\",INDIRECT(\"'\"&G1206&\"'!\"&H1206),\"\")","v":0},"EstExp 12-20","H128"]
[1202,{"$nulls":3},true,{"$f":"IF(G1207<>\"\",INDIRECT(\"'\"&G1207&\"'!\"&H1207),\"\")","v":""}]
[1203,{"$f":"'EstExp 12-20'!H131","v":0},1203,null,true,{"$f":"IF(G1208<>\"\",INDIRECT(\"'\"&G1208&\"'!\"&H1208),\"\")","v":0},"EstExp 12-20","H131"]
[1204,{"$f":"'EstExp 12-20'!H132","v":0},1204,null,true,{"$f":"IF(G1209<>\"\",INDIRECT(\"'\"&G1209&\"'!\"&H1209),\"\")","v":0},"EstExp 12-20","H132"]
[1205,{"$f":"'EstExp 12-20'!H133","v":0},1205,null,true,{"$f":"IF(G1210<>\"\",INDIRECT(\"'\"&G1210&\"'!\"&H1210),\"\")","v":0},"EstExp 12-20","H133"]
[1206,{"$f":"'EstExp 12-20'!H143","v":0},1206,null,true,{"$f":"IF(G1211<>\"\",INDIRECT(\"'\"&G1211&\"'!\"&H1211),\"\")","v":0},"EstExp 12-20","H143"]
[1207,{"$f":"'EstExp 12-20'!H146","v":0},1207,null,true,{"$f":"IF(G1212<>\"\",INDIRECT(\"'\"&G1212&\"'!\"&H1212),\"\")","v":0},"EstExp 12-20","H146"]
[1208,{"$f":"'EstExp 12-20'!H147","v":0},1208,null,true,{"$f":"IF(G1213<>\"\",INDIRECT(\"'\"&G1213&\"'!\"&H1213),\"\")","v":0},"EstExp 12-20","H147"]
[1209,{"$f":"'EstExp 12-20'!H150","v":0},1209,null,true,{"$f":"IF(G1214<>\"\",INDIRECT(\"'\"&G1214&\"'!\"&H1214),\"\")","v":0},"EstExp 12-20","H150"]
[1210,{"$nulls":3},true,{"$f":"IF(G1215<>\"\",INDIRECT(\"'\"&G1215&\"'!\"&H1215),\"\")","v":""}]
[1211,{"$f":"'EstExp 12-20'!H153","v":0},1211,null,true,{"$f":"IF(G1216<>\"\",INDIRECT(\"'\"&G1216&\"'!\"&H1216),\"\")","v":0},"EstExp 12-20","H153"]
[1212,{"$f":"'EstExp 12-20'!H155","v":0},1212,null,true,{"$f":"IF(G1217<>\"\",INDIRECT(\"'\"&G1217&\"'!\"&H1217),\"\")","v":0},"EstExp 12-20","H155"]
[1213,{"$f":"'EstExp 12-20'!K126","v":0},1213,null,{"$f":"F1218=B1218","v":true},{"$f":"IF(G1218<>\"\",INDIRECT(\"'\"&G1218&\"'!\"&H1218),\"\")","v":0},"EstExp 12-20","K126"]
[1214,{"$f":"'EstExp 12-20'!K127","v":0},1214,null,true,{"$f":"IF(G1219<>\"\",INDIRECT(\"'\"&G1219&\"'!\"&H1219),\"\")","v":0},"EstExp 12-20","K127"]
[1215,{"$f":"'EstExp 12-20'!K128","v":1564500},-1563285,null,true,{"$f":"IF(G1220<>\"\",INDIRECT(\"'\"&G1220&\"'!\"&H1220),\"\")","v":1564500},"EstExp 12-20","K128"]
[1216,{"$f":"'EstExp 12-20'!K130","v":0},1216,null,true,{"$f":"IF(G1221<>\"\",INDIRECT(\"'\"&G1221&\"'!\"&H1221),\"\")","v":0},"EstExp 12-20","K130"]
[1217,{"$nulls":3},true,{"$f":"IF(G1222<>\"\",INDIRECT(\"'\"&G1222&\"'!\"&H1222),\"\")","v":""}]
[1218,{"$f":"'EstExp 12-20'!K131","v":1564500},-1563282,null,true,{"$f":"IF(G1223<>\"\",INDIRECT(\"'\"&G1223&\"'!\"&H1223),\"\")","v":1564500},"EstExp 12-20","K131"]
[1219,{"$f":"'EstExp 12-20'!K132","v":0},{"$f":"A1224-B1224","v":1219},null,true,{"$f":"IF(G1224<>\"\",INDIRECT(\"'\"&G1224&\"'!\"&H1224),\"\")","v":0},"EstExp 12-20","K132"]
[1220,{"$f":"'EstExp 12-20'!K133","v":1564500},-1563280,null,true,{"$f":"IF(G1225<>\"\",INDIRECT(\"'\"&G1225&\"'!\"&H1225),\"\")","v":1564500},"EstExp 12-20","K133"]
[1221,{"$f":"'EstExp 12-20'!K143","v":0},1221,null,true,{"$f":"IF(G1226<>\"\",INDIRECT(\"'\"&G1226&\"'!\"&H1226),\"\")","v":0},"EstExp 12-20","K143"]
[1222,{"$f":"'EstExp 12-20'!K146","v":0},1222,null,true,{"$f":"IF(G1227<>\"\",INDIRECT(\"'\"&G1227&\"'!\"&H1227),\"\")","v":0},"EstExp 12-20","K146"]
[1223,{"$f":"'EstExp 12-20'!K147","v":0},1223,null,true,{"$f":"IF(G1228<>\"\",INDIRECT(\"'\"&G1228&\"'!\"&H1228),\"\")","v":0},"EstExp 12-20","K147"]
[1224,{"$f":"'EstExp 12-20'!K150","v":0},1224,null,true,{"$f":"IF(G1229<>\"\",INDIRECT(\"'\"&G1229&\"'!\"&H1229),\"\")","v":0},"EstExp 12-20","K150"]
[1225,{"$nulls":3},true,{"$f":"IF(G1230<>\"\",INDIRECT(\"'\"&G1230&\"'!\"&H1230),\"\")","v":""}]
[1226,{"$f":"'EstExp 12-20'!K153","v":0},1226,null,true,{"$f":"IF(G1231<>\"\",INDIRECT(\"'\"&G1231&\"'!\"&H1231),\"\")","v":0},"EstExp 12-20","K153"]
[1227,{"$f":"'EstExp 12-20'!K155","v":1564500},-1563273,null,true,{"$f":"IF(G1232<>\"\",INDIRECT(\"'\"&G1232&\"'!\"&H1232),\"\")","v":1564500},"EstExp 12-20","K155"]
[1228,{"$f":"'EstExp 12-20'!K156","v":32500},-31272,null,true,{"$f":"IF(G1233<>\"\",INDIRECT(\"'\"&G1233&\"'!\"&H1233),\"\")","v":32500},"EstExp 12-20","K156"]
[1229,{"$nulls":3},true,{"$f":"IF(G1234<>\"\",INDIRECT(\"'\"&G1234&\"'!\"&H1234),\"\")","v":""}]
[1230,{"$nulls":3},true,{"$f":"IF(G1235<>\"\",INDIRECT(\"'\"&G1235&\"'!\"&H1235),\"\")","v":""}]
[1231,{"$nulls":3},true,{"$f":"IF(G1236<>\"\",INDIRECT(\"'\"&G1236&\"'!\"&H1236),\"\")","v":""}]
[1232,{"$nulls":3},true,{"$f":"IF(G1237<>\"\",INDIRECT(\"'\"&G1237&\"'!\"&H1237),\"\")","v":""}]
[1233,{"$nulls":3},true,{"$f":"IF(G1238<>\"\",INDIRECT(\"'\"&G1238&\"'!\"&H1238),\"\")","v":""}]
[1234,{"$nulls":3},true,{"$f":"IF(G1239<>\"\",INDIRECT(\"'\"&G1239&\"'!\"&H1239),\"\")","v":""}]
[1235,{"$nulls":3},true,{"$f":"IF(G1240<>\"\",INDIRECT(\"'\"&G1240&\"'!\"&H1240),\"\")","v":""}]
[1236,{"$nulls":3},true,{"$f":"IF(G1241<>\"\",INDIRECT(\"'\"&G1241&\"'!\"&H1241),\"\")","v":""}]
[1237,{"$nulls":3},true,{"$f":"IF(G1242<>\"\",INDIRECT(\"'\"&G1242&\"'!\"&H1242),\"\")","v":""}]
[1238,{"$nulls":3},true,{"$f":"IF(G1243<>\"\",INDIRECT(\"'\"&G1243&\"'!\"&H1243),\"\")","v":""}]
[1239,{"$nulls":3},true,{"$f":"IF(G1244<>\"\",INDIRECT(\"'\"&G1244&\"'!\"&H1244),\"\")","v":""}]
[1240,{"$nulls":3},true,{"$f":"IF(G1245<>\"\",INDIRECT(\"'\"&G1245&\"'!\"&H1245),\"\")","v":""}]
[1241,{"$nulls":3},true,{"$f":"IF(G1246<>\"\",INDIRECT(\"'\"&G1246&\"'!\"&H1246),\"\")","v":""}]
[1242,{"$nulls":3},true,{"$f":"IF(G1247<>\"\",INDIRECT(\"'\"&G1247&\"'!\"&H1247),\"\")","v":""}]
[1243,{"$nulls":3},true,{"$f":"IF(G1248<>\"\",INDIRECT(\"'\"&G1248&\"'!\"&H1248),\"\")","v":""}]
[1244,{"$nulls":3},true,{"$f":"IF(G1249<>\"\",INDIRECT(\"'\"&G1249&\"'!\"&H1249),\"\")","v":""}]
[1245,{"$nulls":3},true,{"$f":"IF(G1250<>\"\",INDIRECT(\"'\"&G1250&\"'!\"&H1250),\"\")","v":""}]
[1246,{"$f":"'EstExp 12-20'!E175","v":0},1246,null,true,{"$f":"IF(G1251<>\"\",INDIRECT(\"'\"&G1251&\"'!\"&H1251),\"\")","v":0},"EstExp 12-20","E175"]
[1247,{"$f":"'EstExp 12-20'!E176","v":0},1247,null,true,{"$f":"IF(G1252<>\"\",INDIRECT(\"'\"&G1252&\"'!\"&H1252),\"\")","v":0},"EstExp 12-20","E176"]
[1248,{"$f":"'EstExp 12-20'!E178","v":0},1248,null,true,{"$f":"IF(G1253<>\"\",INDIRECT(\"'\"&G1253&\"'!\"&H1253),\"\")","v":0},"EstExp 12-20","E178"]
[1249,{"$f":"'EstExp 12-20'!H167","v":0},1249,null,true,{"$f":"IF(G1254<>\"\",INDIRECT(\"'\"&G1254&\"'!\"&H1254),\"\")","v":0},"EstExp 12-20","H167"]
[1250,{"$f":"'EstExp 12-20'!H168","v":0},1250,null,true,{"$f":"IF(G1255<>\"\",INDIRECT(\"'\"&G1255&\"'!\"&H1255),\"\")","v":0},"EstExp 12-20","H168"]
[1251,{"$f":"'EstExp 12-20'!H173","v":1300000},-1298749,null,true,{"$f":"IF(G1256<>\"\",INDIRECT(\"'\"&G1256&\"'!\"&H1256),\"\")","v":1300000},"EstExp 12-20","H173"]
[1252,{"$f":"'EstExp 12-20'!H171","v":0},1252,null,true,{"$f":"IF(G1257<>\"\",INDIRECT(\"'\"&G1257&\"'!\"&H1257),\"\")","v":0},"EstExp 12-20","H171"]
[1253,{"$f":"'EstExp 12-20'!H172","v":0},1253,null,true,{"$f":"IF(G1258<>\"\",INDIRECT(\"'\"&G1258&\"'!\"&H1258),\"\")","v":0},"EstExp 12-20","H172"]
[1254,{"$f":"'EstExp 12-20'!H174","v":20000},-18746,null,true,{"$f":"IF(G1259<>\"\",INDIRECT(\"'\"&G1259&\"'!\"&H1259),\"\")","v":20000},"EstExp 12-20","H174"]
[1255,{"$f":"'EstExp 12-20'!H175","v":2000},-745,null,true,{"$f":"IF(G1260<>\"\",INDIRECT(\"'\"&G1260&\"'!\"&H1260),\"\")","v":2000},"EstExp 12-20","H175"]
[1256,{"$f":"'EstExp 12-20'!H176","v":1322000},-1320744,null,true,{"$f":"IF(G1261<>\"\",INDIRECT(\"'\"&G1261&\"'!\"&H1261),\"\")","v":1322000},"EstExp 12-20","H176"]
[1257,{"$f":"'EstExp 12-20'!H178","v":1322000},-1320743,null,true,{"$f":"IF(G1262<>\"\",INDIRECT(\"'\"&G1262&\"'!\"&H1262),\"\")","v":1322000},"EstExp 12-20","H178"]
[1258,null,null,"Closed 2008",true,{"$f":"IF(G1263<>\"\",INDIRECT(\"'\"&G1263&\"'!\"&H1263),\"\")","v":""}]
[1259,null,null,"Closed 2008",true,{"$f":"IF(G1264<>\"\",INDIRECT(\"'\"&G1264&\"'!\"&H1264),\"\")","v":""}]
[1260,null,null,"Closed 2008",true,{"$f":"IF(G1265<>\"\",INDIRECT(\"'\"&G1265&\"'!\"&H1265),\"\")","v":""}]
[1261,null,null,"Closed 2008",true,{"$f":"IF(G1266<>\"\",INDIRECT(\"'\"&G1266&\"'!\"&H1266),\"\")","v":""}]
[1262,null,null,"Closed   ",true,{"$f":"IF(G1267<>\"\",INDIRECT(\"'\"&G1267&\"'!\"&H1267),\"\")","v":""}]
[1263,{"$f":"'EstExp 12-20'!K167","v":0},1263,null,true,{"$f":"IF(G1268<>\"\",INDIRECT(\"'\"&G1268&\"'!\"&H1268),\"\")","v":0},"EstExp 12-20","K167"]
[1264,{"$f":"'EstExp 12-20'!K168","v":0},1264,null,true,{"$f":"IF(G1269<>\"\",INDIRECT(\"'\"&G1269&\"'!\"&H1269),\"\")","v":0},"EstExp 12-20","K168"]
[1265,{"$f":"'EstExp 12-20'!K173","v":1300000},-1298735,null,true,{"$f":"IF(G1270<>\"\",INDIRECT(\"'\"&G1270&\"'!\"&H1270),\"\")","v":1300000},"EstExp 12-20","K173"]
[1266,{"$f":"'EstExp 12-20'!K171","v":0},1266,null,true,{"$f":"IF(G1271<>\"\",INDIRECT(\"'\"&G1271&\"'!\"&H1271),\"\")","v":0},"EstExp 12-20","K171"]
[1267,{"$f":"'EstExp 12-20'!K172","v":0},1267,null,true,{"$f":"IF(G1272<>\"\",INDIRECT(\"'\"&G1272&\"'!\"&H1272),\"\")","v":0},"EstExp 12-20","K172"]
[1268,{"$f":"'EstExp 12-20'!K174","v":20000},-18732,null,true,{"$f":"IF(G1273<>\"\",INDIRECT(\"'\"&G1273&\"'!\"&H1273),\"\")","v":20000},"EstExp 12-20","K174"]
[1269,{"$f":"'EstExp 12-20'!K175","v":2000},-731,null,true,{"$f":"IF(G1274<>\"\",INDIRECT(\"'\"&G1274&\"'!\"&H1274),\"\")","v":2000},"EstExp 12-20","K175"]
[1270,{"$f":"'EstExp 12-20'!K176","v":1322000},-1320730,null,true,{"$f":"IF(G1275<>\"\",INDIRECT(\"'\"&G1275&\"'!\"&H1275),\"\")","v":1322000},"EstExp 12-20","K176"]
[1271,{"$f":"'EstExp 12-20'!K178","v":1322000},-1320729,null,true,{"$f":"IF(G1276<>\"\",INDIRECT(\"'\"&G1276&\"'!\"&H1276),\"\")","v":1322000},"EstExp 12-20","K178"]
[1272,{"$f":"'EstExp 12-20'!K179","v":873000},-871728,null,true,{"$f":"IF(G1277<>\"\",INDIRECT(\"'\"&G1277&\"'!\"&H1277),\"\")","v":873000},"EstExp 12-20","K179"]
[1273,{"$nulls":3},true,{"$f":"IF(G1278<>\"\",INDIRECT(\"'\"&G1278&\"'!\"&H1278),\"\")","v":""}]
[1274,{"$f":"'EstExp 12-20'!C186","v":0},1274,null,true,{"$f":"IF(G1279<>\"\",INDIRECT(\"'\"&G1279&\"'!\"&H1279),\"\")","v":0},"EstExp 12-20","C186"]
[1275,{"$nulls":3},true,{"$f":"IF(G1280<>\"\",INDIRECT(\"'\"&G1280&\"'!\"&H1280),\"\")","v":""}]
[1276,{"$nulls":3},true,{"$f":"IF(G1281<>\"\",INDIRECT(\"'\"&G1281&\"'!\"&H1281),\"\")","v":""}]
[1277,{"$f":"'EstExp 12-20'!C187","v":0},1277,null,{"$f":"F1282=B1282","v":true},{"$f":"IF(G1282<>\"\",INDIRECT(\"'\"&G1282&\"'!\"&H1282),\"\")","v":0},"EstExp 12-20","C187"]
[1278,{"$f":"'EstExp 12-20'!C188","v":0},1278,null,true,{"$f":"IF(G1283<>\"\",INDIRECT(\"'\"&G1283&\"'!\"&H1283),\"\")","v":0},"EstExp 12-20","C188"]
[1279,{"$f":"'EstExp 12-20'!C214","v":0},1279,null,true,{"$f":"IF(G1284<>\"\",INDIRECT(\"'\"&G1284&\"'!\"&H1284),\"\")","v":0},"EstExp 12-20","C214"]
[1280,{"$f":"'EstExp 12-20'!D186","v":0},1280,null,true,{"$f":"IF(G1285<>\"\",INDIRECT(\"'\"&G1285&\"'!\"&H1285),\"\")","v":0},"EstExp 12-20","D186"]
[1281,{"$nulls":3},true,{"$f":"IF(G1286<>\"\",INDIRECT(\"'\"&G1286&\"'!\"&H1286),\"\")","v":""}]
[1282,{"$nulls":3},true,{"$f":"IF(G1287<>\"\",INDIRECT(\"'\"&G1287&\"'!\"&H1287),\"\")","v":""}]
[1283,{"$f":"'EstExp 12-20'!D187","v":0},{"$f":"A1288-B1288","v":1283},null,true,{"$f":"IF(G1288<>\"\",INDIRECT(\"'\"&G1288&\"'!\"&H1288),\"\")","v":0},"EstExp 12-20","D187"]
[1284,{"$f":"'EstExp 12-20'!D188","v":0},1284,null,true,{"$f":"IF(G1289<>\"\",INDIRECT(\"'\"&G1289&\"'!\"&H1289),\"\")","v":0},"EstExp 12-20","D188"]
[1285,{"$f":"'EstExp 12-20'!D214","v":0},1285,null,true,{"$f":"IF(G1290<>\"\",INDIRECT(\"'\"&G1290&\"'!\"&H1290),\"\")","v":0},"EstExp 12-20","D214"]
[1286,{"$f":"'EstExp 12-20'!E186","v":450000},-448714,null,true,{"$f":"IF(G1291<>\"\",INDIRECT(\"'\"&G1291&\"'!\"&H1291),\"\")","v":450000},"EstExp 12-20","E186"]
[1287,{"$nulls":3},true,{"$f":"IF(G1292<>\"\",INDIRECT(\"'\"&G1292&\"'!\"&H1292),\"\")","v":""}]
[1288,{"$nulls":3},true,{"$f":"IF(G1293<>\"\",INDIRECT(\"'\"&G1293&\"'!\"&H1293),\"\")","v":""}]
[1289,{"$f":"'EstExp 12-20'!E187","v":0},1289,null,true,{"$f":"IF(G1294<>\"\",INDIRECT(\"'\"&G1294&\"'!\"&H1294),\"\")","v":0},"EstExp 12-20","E187"]
[1290,{"$f":"'EstExp 12-20'!E188","v":450000},-448710,null,true,{"$f":"IF(G1295<>\"\",INDIRECT(\"'\"&G1295&\"'!\"&H1295),\"\")","v":450000},"EstExp 12-20","E188"]
[1291,{"$f":"'EstExp 12-20'!E200","v":0},1291,null,true,{"$f":"IF(G1296<>\"\",INDIRECT(\"'\"&G1296&\"'!\"&H1296),\"\")","v":0},"EstExp 12-20","E200"]
[1292,{"$f":"'EstExp 12-20'!E214","v":450000},-448708,null,true,{"$f":"IF(G1297<>\"\",INDIRECT(\"'\"&G1297&\"'!\"&H1297),\"\")","v":450000},"EstExp 12-20","E214"]
[1293,{"$f":"'EstExp 12-20'!F186","v":0},1293,null,true,{"$f":"IF(G1298<>\"\",INDIRECT(\"'\"&G1298&\"'!\"&H1298),\"\")","v":0},"EstExp 12-20","F186"]
[1294,{"$nulls":3},true,{"$f":"IF(G1299<>\"\",INDIRECT(\"'\"&G1299&\"'!\"&H1299),\"\")","v":""}]
[1295,{"$nulls":3},true,{"$f":"IF(G1300<>\"\",INDIRECT(\"'\"&G1300&\"'!\"&H1300),\"\")","v":""}]
[1296,{"$f":"'EstExp 12-20'!F187","v":0},1296,null,true,{"$f":"IF(G1301<>\"\",INDIRECT(\"'\"&G1301&\"'!\"&H1301),\"\")","v":0},"EstExp 12-20","F187"]
[1297,{"$f":"'EstExp 12-20'!F188","v":0},1297,null,true,{"$f":"IF(G1302<>\"\",INDIRECT(\"'\"&G1302&\"'!\"&H1302),\"\")","v":0},"EstExp 12-20","F188"]
[1298,{"$f":"'EstExp 12-20'!F214","v":0},1298,null,true,{"$f":"IF(G1303<>\"\",INDIRECT(\"'\"&G1303&\"'!\"&H1303),\"\")","v":0},"EstExp 12-20","F214"]
[1299,{"$f":"'EstExp 12-20'!G186","v":0},1299,null,true,{"$f":"IF(G1304<>\"\",INDIRECT(\"'\"&G1304&\"'!\"&H1304),\"\")","v":0},"EstExp 12-20","G186"]
[1300,{"$nulls":3},true,{"$f":"IF(G1305<>\"\",INDIRECT(\"'\"&G1305&\"'!\"&H1305),\"\")","v":""}]
[1301,{"$nulls":3},true,{"$f":"IF(G1306<>\"\",INDIRECT(\"'\"&G1306&\"'!\"&H1306),\"\")","v":""}]
[1302,{"$f":"'EstExp 12-20'!G187","v":0},1302,null,true,{"$f":"IF(G1307<>\"\",INDIRECT(\"'\"&G1307&\"'!\"&H1307),\"\")","v":0},"EstExp 12-20","G187"]
[1303,{"$f":"'EstExp 12-20'!G188","v":0},1303,null,true,{"$f":"IF(G1308<>\"\",INDIRECT(\"'\"&G1308&\"'!\"&H1308),\"\")","v":0},"EstExp 12-20","G188"]
[1304,{"$f":"'EstExp 12-20'!G214","v":0},1304,null,true,{"$f":"IF(G1309<>\"\",INDIRECT(\"'\"&G1309&\"'!\"&H1309),\"\")","v":0},"EstExp 12-20","G214"]
[1305,{"$f":"'EstExp 12-20'!H186","v":0},1305,null,true,{"$f":"IF(G1310<>\"\",INDIRECT(\"'\"&G1310&\"'!\"&H1310),\"\")","v":0},"EstExp 12-20","H186"]
[1306,{"$nulls":3},true,{"$f":"IF(G1311<>\"\",INDIRECT(\"'\"&G1311&\"'!\"&H1311),\"\")","v":""}]
[1307,{"$nulls":3},true,{"$f":"IF(G1312<>\"\",INDIRECT(\"'\"&G1312&\"'!\"&H1312),\"\")","v":""}]
[1308,{"$f":"'EstExp 12-20'!H187","v":0},1308,null,true,{"$f":"IF(G1313<>\"\",INDIRECT(\"'\"&G1313&\"'!\"&H1313),\"\")","v":0},"EstExp 12-20","H187"]
[1309,{"$f":"'EstExp 12-20'!H188","v":0},1309,null,true,{"$f":"IF(G1314<>\"\",INDIRECT(\"'\"&G1314&\"'!\"&H1314),\"\")","v":0},"EstExp 12-20","H188"]
[1310,{"$f":"'EstExp 12-20'!H203","v":0},1310,null,true,{"$f":"IF(G1315<>\"\",INDIRECT(\"'\"&G1315&\"'!\"&H1315),\"\")","v":0},"EstExp 12-20","H203"]
[1311,{"$f":"'EstExp 12-20'!H204","v":0},1311,null,true,{"$f":"IF(G1316<>\"\",INDIRECT(\"'\"&G1316&\"'!\"&H1316),\"\")","v":0},"EstExp 12-20","H204"]
[1312,{"$f":"'EstExp 12-20'!H207","v":0},1312,null,true,{"$f":"IF(G1317<>\"\",INDIRECT(\"'\"&G1317&\"'!\"&H1317),\"\")","v":0},"EstExp 12-20","H207"]
[1313,{"$nulls":3},true,{"$f":"IF(G1318<>\"\",INDIRECT(\"'\"&G1318&\"'!\"&H1318),\"\")","v":""}]
[1314,{"$f":"'EstExp 12-20'!H212","v":0},1314,null,true,{"$f":"IF(G1319<>\"\",INDIRECT(\"'\"&G1319&\"'!\"&H1319),\"\")","v":0},"EstExp 12-20","H212"]
[1315,{"$f":"'EstExp 12-20'!H214","v":0},1315,null,true,{"$f":"IF(G1320<>\"\",INDIRECT(\"'\"&G1320&\"'!\"&H1320),\"\")","v":0},"EstExp 12-20","H214"]
[1316,{"$f":"'EstExp 12-20'!K186","v":450000},-448684,null,true,{"$f":"IF(G1321<>\"\",INDIRECT(\"'\"&G1321&\"'!\"&H1321),\"\")","v":450000},"EstExp 12-20","K186"]
[1317,{"$nulls":3},true,{"$f":"IF(G1322<>\"\",INDIRECT(\"'\"&G1322&\"'!\"&H1322),\"\")","v":""}]
[1318,{"$nulls":3},true,{"$f":"IF(G1323<>\"\",INDIRECT(\"'\"&G1323&\"'!\"&H1323),\"\")","v":""}]
[1319,{"$f":"'EstExp 12-20'!K187","v":0},1319,null,true,{"$f":"IF(G1324<>\"\",INDIRECT(\"'\"&G1324&\"'!\"&H1324),\"\")","v":0},"EstExp 12-20","K187"]
[1320,{"$f":"'EstExp 12-20'!K188","v":450000},-448680,null,true,{"$f":"IF(G1325<>\"\",INDIRECT(\"'\"&G1325&\"'!\"&H1325),\"\")","v":450000},"EstExp 12-20","K188"]
[1321,{"$f":"'EstExp 12-20'!K200","v":0},1321,null,true,{"$f":"IF(G1326<>\"\",INDIRECT(\"'\"&G1326&\"'!\"&H1326),\"\")","v":0},"EstExp 12-20","K200"]
[1322,{"$f":"'EstExp 12-20'!K203","v":0},1322,null,true,{"$f":"IF(G1327<>\"\",INDIRECT(\"'\"&G1327&\"'!\"&H1327),\"\")","v":0},"EstExp 12-20","K203"]
[1323,{"$f":"'EstExp 12-20'!K204","v":0},1323,null,true,{"$f":"IF(G1328<>\"\",INDIRECT(\"'\"&G1328&\"'!\"&H1328),\"\")","v":0},"EstExp 12-20","K204"]
[1324,{"$f":"'EstExp 12-20'!K207","v":0},1324,null,true,{"$f":"IF(G1329<>\"\",INDIRECT(\"'\"&G1329&\"'!\"&H1329),\"\")","v":0},"EstExp 12-20","K207"]
[1325,{"$nulls":3},true,{"$f":"IF(G1330<>\"\",INDIRECT(\"'\"&G1330&\"'!\"&H1330),\"\")","v":""}]
[1326,{"$f":"'EstExp 12-20'!K212","v":0},1326,null,true,{"$f":"IF(G1331<>\"\",INDIRECT(\"'\"&G1331&\"'!\"&H1331),\"\")","v":0},"EstExp 12-20","K212"]
[1327,{"$f":"'EstExp 12-20'!K214","v":450000},-448673,null,true,{"$f":"IF(G1332<>\"\",INDIRECT(\"'\"&G1332&\"'!\"&H1332),\"\")","v":450000},"EstExp 12-20","K214"]
[1328,{"$f":"'EstExp 12-20'!K215","v":60000},-58672,null,true,{"$f":"IF(G1333<>\"\",INDIRECT(\"'\"&G1333&\"'!\"&H1333),\"\")","v":60000},"EstExp 12-20","K215"]
[1329,{"$nulls":3},true,{"$f":"IF(G1334<>\"\",INDIRECT(\"'\"&G1334&\"'!\"&H1334),\"\")","v":""}]
[1330,{"$nulls":3},true,{"$f":"IF(G1335<>\"\",INDIRECT(\"'\"&G1335&\"'!\"&H1335),\"\")","v":""}]
[1331,{"$nulls":3},true,{"$f":"IF(G1336<>\"\",INDIRECT(\"'\"&G1336&\"'!\"&H1336),\"\")","v":""}]
[1332,{"$nulls":3},true,{"$f":"IF(G1337<>\"\",INDIRECT(\"'\"&G1337&\"'!\"&H1337),\"\")","v":""}]
[1333,{"$nulls":3},true,{"$f":"IF(G1338<>\"\",INDIRECT(\"'\"&G1338&\"'!\"&H1338),\"\")","v":""}]
[1334,{"$nulls":3},true,{"$f":"IF(G1339<>\"\",INDIRECT(\"'\"&G1339&\"'!\"&H1339),\"\")","v":""}]
[1335,{"$f":"'EstExp 12-20'!D229","v":0},1335,null,true,{"$f":"IF(G1340<>\"\",INDIRECT(\"'\"&G1340&\"'!\"&H1340),\"\")","v":0},"EstExp 12-20","D229"]
[1336,{"$nulls":3},true,{"$f":"IF(G1341<>\"\",INDIRECT(\"'\"&G1341&\"'!\"&H1341),\"\")","v":""}]
[1337,{"$nulls":3},true,{"$f":"IF(G1342<>\"\",INDIRECT(\"'\"&G1342&\"'!\"&H1342),\"\")","v":""}]
[1338,{"$nulls":3},true,{"$f":"IF(G1343<>\"\",INDIRECT(\"'\"&G1343&\"'!\"&H1343),\"\")","v":""}]
[1339,{"$nulls":3},true,{"$f":"IF(G1344<>\"\",INDIRECT(\"'\"&G1344&\"'!\"&H1344),\"\")","v":""}]
[1340,{"$nulls":3},true,{"$f":"IF(G1345<>\"\",INDIRECT(\"'\"&G1345&\"'!\"&H1345),\"\")","v":""}]
[1341,{"$f":"'EstExp 12-20'!D231","v":12000},-10659,null,{"$f":"F1346=B1346","v":true},{"$f":"IF(G1346<>\"\",INDIRECT(\"'\"&G1346&\"'!\"&H1346),\"\")","v":12000},"EstExp 12-20","D231"]
[1342,{"$nulls":3},true,{"$f":"IF(G1347<>\"\",INDIRECT(\"'\"&G1347&\"'!\"&H1347),\"\")","v":""}]
[1343,{"$nulls":3},true,{"$f":"IF(G1348<>\"\",INDIRECT(\"'\"&G1348&\"'!\"&H1348),\"\")","v":""}]
[1344,{"$nulls":3},true,{"$f":"IF(G1349<>\"\",INDIRECT(\"'\"&G1349&\"'!\"&H1349),\"\")","v":""}]
[1345,{"$f":"'EstExp 12-20'!D225","v":0},1345,null,true,{"$f":"IF(G1350<>\"\",INDIRECT(\"'\"&G1350&\"'!\"&H1350),\"\")","v":0},"EstExp 12-20","D225"]
[1346,{"$f":"'EstExp 12-20'!D226","v":0},1346,null,true,{"$f":"IF(G1351<>\"\",INDIRECT(\"'\"&G1351&\"'!\"&H1351),\"\")","v":0},"EstExp 12-20","D226"]
[1347,{"$f":"'EstExp 12-20'!D227","v":22000},{"$f":"A1352-B1352","v":-20653},null,true,{"$f":"IF(G1352<>\"\",INDIRECT(\"'\"&G1352&\"'!\"&H1352),\"\")","v":22000},"EstExp 12-20","D227"]
[1348,{"$f":"'EstExp 12-20'!D228","v":5000},-3652,null,true,{"$f":"IF(G1353<>\"\",INDIRECT(\"'\"&G1353&\"'!\"&H1353),\"\")","v":5000},"EstExp 12-20","D228"]
[1349,{"$f":"'EstExp 12-20'!D233","v":212500},-211151,null,true,{"$f":"IF(G1354<>\"\",INDIRECT(\"'\"&G1354&\"'!\"&H1354),\"\")","v":212500},"EstExp 12-20","D233"]
[1350,{"$f":"'EstExp 12-20'!D236","v":2000},-650,null,true,{"$f":"IF(G1355<>\"\",INDIRECT(\"'\"&G1355&\"'!\"&H1355),\"\")","v":2000},"EstExp 12-20","D236"]
[1351,{"$f":"'EstExp 12-20'!D237","v":0},1351,null,true,{"$f":"IF(G1356<>\"\",INDIRECT(\"'\"&G1356&\"'!\"&H1356),\"\")","v":0},"EstExp 12-20","D237"]
[1352,{"$f":"'EstExp 12-20'!D238","v":4500},-3148,null,true,{"$f":"IF(G1357<>\"\",INDIRECT(\"'\"&G1357&\"'!\"&H1357),\"\")","v":4500},"EstExp 12-20","D238"]
[1353,{"$f":"'EstExp 12-20'!D239","v":0},1353,null,true,{"$f":"IF(G1358<>\"\",INDIRECT(\"'\"&G1358&\"'!\"&H1358),\"\")","v":0},"EstExp 12-20","D239"]
[1354,{"$f":"'EstExp 12-20'!D240","v":0},1354,null,true,{"$f":"IF(G1359<>\"\",INDIRECT(\"'\"&G1359&\"'!\"&H1359),\"\")","v":0},"EstExp 12-20","D240"]
[1355,{"$f":"'EstExp 12-20'!D241","v":0},1355,null,true,{"$f":"IF(G1360<>\"\",INDIRECT(\"'\"&G1360&\"'!\"&H1360),\"\")","v":0},"EstExp 12-20","D241"]
[1356,{"$f":"'EstExp 12-20'!D242","v":6500},-5144,null,true,{"$f":"IF(G1361<>\"\",INDIRECT(\"'\"&G1361&\"'!\"&H1361),\"\")","v":6500},"EstExp 12-20","D242"]
[1357,{"$f":"'EstExp 12-20'!D244","v":6300},-4943,null,true,{"$f":"IF(G1362<>\"\",INDIRECT(\"'\"&G1362&\"'!\"&H1362),\"\")","v":6300},"EstExp 12-20","D244"]
[1358,{"$f":"'EstExp 12-20'!D245","v":5500},-4142,null,true,{"$f":"IF(G1363<>\"\",INDIRECT(\"'\"&G1363&\"'!\"&H1363),\"\")","v":5500},"EstExp 12-20","D245"]
[1359,{"$f":"'EstExp 12-20'!D246","v":0},1359,null,true,{"$f":"IF(G1364<>\"\",INDIRECT(\"'\"&G1364&\"'!\"&H1364),\"\")","v":0},"EstExp 12-20","D246"]
[1360,{"$f":"'EstExp 12-20'!D247","v":11800},-10440,null,true,{"$f":"IF(G1365<>\"\",INDIRECT(\"'\"&G1365&\"'!\"&H1365),\"\")","v":11800},"EstExp 12-20","D247"]
[1361,{"$f":"'EstExp 12-20'!D249","v":0},1361,null,true,{"$f":"IF(G1366<>\"\",INDIRECT(\"'\"&G1366&\"'!\"&H1366),\"\")","v":0},"EstExp 12-20","D249"]
[1362,{"$f":"'EstExp 12-20'!D250","v":16000},-14638,null,true,{"$f":"IF(G1367<>\"\",INDIRECT(\"'\"&G1367&\"'!\"&H1367),\"\")","v":16000},"EstExp 12-20","D250"]
[1363,{"$f":"'EstExp 12-20'!D254","v":26000},-24637,null,true,{"$f":"IF(G1368<>\"\",INDIRECT(\"'\"&G1368&\"'!\"&H1368),\"\")","v":26000},"EstExp 12-20","D254"]
[1364,{"$f":"'EstExp 12-20'!D256","v":39000},-37636,null,true,{"$f":"IF(G1369<>\"\",INDIRECT(\"'\"&G1369&\"'!\"&H1369),\"\")","v":39000},"EstExp 12-20","D256"]
[1365,{"$f":"'EstExp 12-20'!D257","v":0},1365,null,true,{"$f":"IF(G1370<>\"\",INDIRECT(\"'\"&G1370&\"'!\"&H1370),\"\")","v":0},"EstExp 12-20","D257"]
[1366,{"$f":"'EstExp 12-20'!D258","v":39000},-37634,null,true,{"$f":"IF(G1371<>\"\",INDIRECT(\"'\"&G1371&\"'!\"&H1371),\"\")","v":39000},"EstExp 12-20","D258"]
[1367,{"$f":"'EstExp 12-20'!D260","v":2000},-633,null,true,{"$f":"IF(G1372<>\"\",INDIRECT(\"'\"&G1372&\"'!\"&H1372),\"\")","v":2000},"EstExp 12-20","D260"]
[1368,{"$f":"'EstExp 12-20'!D261","v":25000},-23632,null,true,{"$f":"IF(G1373<>\"\",INDIRECT(\"'\"&G1373&\"'!\"&H1373),\"\")","v":25000},"EstExp 12-20","D261"]
[1369,{"$f":"'EstExp 12-20'!D262","v":0},1369,null,true,{"$f":"IF(G1374<>\"\",INDIRECT(\"'\"&G1374&\"'!\"&H1374),\"\")","v":0},"EstExp 12-20","D262"]
[1370,{"$f":"'EstExp 12-20'!D263","v":140000},-138630,null,true,{"$f":"IF(G1375<>\"\",INDIRECT(\"'\"&G1375&\"'!\"&H1375),\"\")","v":140000},"EstExp 12-20","D263"]
[1371,{"$f":"'EstExp 12-20'!D264","v":0},1371,null,true,{"$f":"IF(G1376<>\"\",INDIRECT(\"'\"&G1376&\"'!\"&H1376),\"\")","v":0},"EstExp 12-20","D264"]
[1372,{"$f":"'EstExp 12-20'!D265","v":63000},-61628,null,true,{"$f":"IF(G1377<>\"\",INDIRECT(\"'\"&G1377&\"'!\"&H1377),\"\")","v":63000},"EstExp 12-20","D265"]
[1373,{"$f":"'EstExp 12-20'!D266","v":0},1373,null,true,{"$f":"IF(G1378<>\"\",INDIRECT(\"'\"&G1378&\"'!\"&H1378),\"\")","v":0},"EstExp 12-20","D266"]
[1374,{"$nulls":3},true,{"$f":"IF(G1379<>\"\",INDIRECT(\"'\"&G1379&\"'!\"&H1379),\"\")","v":""}]
[1375,{"$f":"'EstExp 12-20'!D267","v":230000},-228625,null,true,{"$f":"IF(G1380<>\"\",INDIRECT(\"'\"&G1380&\"'!\"&H1380),\"\")","v":230000},"EstExp 12-20","D267"]
[1376,{"$f":"'EstExp 12-20'!D269","v":0},1376,null,true,{"$f":"IF(G1381<>\"\",INDIRECT(\"'\"&G1381&\"'!\"&H1381),\"\")","v":0},"EstExp 12-20","D269"]
[1377,{"$f":"'EstExp 12-20'!D270","v":0},1377,null,true,{"$f":"IF(G1382<>\"\",INDIRECT(\"'\"&G1382&\"'!\"&H1382),\"\")","v":0},"EstExp 12-20","D270"]
[1378,{"$f":"'EstExp 12-20'!D271","v":48000},-46622,null,true,{"$f":"IF(G1383<>\"\",INDIRECT(\"'\"&G1383&\"'!\"&H1383),\"\")","v":48000},"EstExp 12-20","D271"]
[1379,{"$f":"'EstExp 12-20'!D272","v":0},1379,null,true,{"$f":"IF(G1384<>\"\",INDIRECT(\"'\"&G1384&\"'!\"&H1384),\"\")","v":0},"EstExp 12-20","D272"]
[1380,{"$nulls":3},true,{"$f":"IF(G1385<>\"\",INDIRECT(\"'\"&G1385&\"'!\"&H1385),\"\")","v":""}]
[1381,{"$f":"'EstExp 12-20'!D273","v":0},1381,null,true,{"$f":"IF(G1386<>\"\",INDIRECT(\"'\"&G1386&\"'!\"&H1386),\"\")","v":0},"EstExp 12-20","D273"]
[1382,{"$nulls":3},true,{"$f":"IF(G1387<>\"\",INDIRECT(\"'\"&G1387&\"'!\"&H1387),\"\")","v":""}]
[1383,{"$f":"'EstExp 12-20'!D274","v":48000},-46617,null,true,{"$f":"IF(G1388<>\"\",INDIRECT(\"'\"&G1388&\"'!\"&H1388),\"\")","v":48000},"EstExp 12-20","D274"]
[1384,{"$f":"'EstExp 12-20'!D275","v":5000},-3616,null,true,{"$f":"IF(G1389<>\"\",INDIRECT(\"'\"&G1389&\"'!\"&H1389),\"\")","v":5000},"EstExp 12-20","D275"]
[1385,{"$f":"'EstExp 12-20'!D276","v":366300},-364915,null,true,{"$f":"IF(G1390<>\"\",INDIRECT(\"'\"&G1390&\"'!\"&H1390),\"\")","v":366300},"EstExp 12-20","D276"]
[1386,{"$f":"'EstExp 12-20'!D277","v":22100},-20714,null,true,{"$f":"IF(G1391<>\"\",INDIRECT(\"'\"&G1391&\"'!\"&H1391),\"\")","v":22100},"EstExp 12-20","D277"]
[1387,{"$f":"'EstExp 12-20'!D292","v":600900},-599513,null,true,{"$f":"IF(G1392<>\"\",INDIRECT(\"'\"&G1392&\"'!\"&H1392),\"\")","v":600900},"EstExp 12-20","D292"]
[1388,{"$f":"'EstExp 12-20'!H285","v":0},1388,null,true,{"$f":"IF(G1393<>\"\",INDIRECT(\"'\"&G1393&\"'!\"&H1393),\"\")","v":0},"EstExp 12-20","H285"]
[1389,{"$f":"'EstExp 12-20'!H286","v":0},1389,null,true,{"$f":"IF(G1394<>\"\",INDIRECT(\"'\"&G1394&\"'!\"&H1394),\"\")","v":0},"EstExp 12-20","H286"]
[1390,{"$f":"'EstExp 12-20'!H289","v":0},1390,null,true,{"$f":"IF(G1395<>\"\",INDIRECT(\"'\"&G1395&\"'!\"&H1395),\"\")","v":0},"EstExp 12-20","H289"]
[1391,{"$f":"'EstExp 12-20'!H290","v":0},1391,null,true,{"$f":"IF(G1396<>\"\",INDIRECT(\"'\"&G1396&\"'!\"&H1396),\"\")","v":0},"EstExp 12-20","H290"]
[1392,{"$nulls":3},true,{"$f":"IF(G1397<>\"\",INDIRECT(\"'\"&G1397&\"'!\"&H1397),\"\")","v":""}]
[1393,{"$f":"'EstExp 12-20'!H292","v":0},1393,null,true,{"$f":"IF(G1398<>\"\",INDIRECT(\"'\"&G1398&\"'!\"&H1398),\"\")","v":0},"EstExp 12-20","H292"]
[1394,{"$nulls":3},true,{"$f":"IF(G1399<>\"\",INDIRECT(\"'\"&G1399&\"'!\"&H1399),\"\")","v":""}]
[1395,{"$nulls":3},true,{"$f":"IF(G1400<>\"\",INDIRECT(\"'\"&G1400&\"'!\"&H1400),\"\")","v":""}]
[1396,{"$nulls":3},true,{"$f":"IF(G1401<>\"\",INDIRECT(\"'\"&G1401&\"'!\"&H1401),\"\")","v":""}]
[1397,{"$nulls":3},true,{"$f":"IF(G1402<>\"\",INDIRECT(\"'\"&G1402&\"'!\"&H1402),\"\")","v":""}]
[1398,{"$nulls":3},true,{"$f":"IF(G1403<>\"\",INDIRECT(\"'\"&G1403&\"'!\"&H1403),\"\")","v":""}]
[1399,{"$f":"'EstExp 12-20'!K229","v":0},1399,null,true,{"$f":"IF(G1404<>\"\",INDIRECT(\"'\"&G1404&\"'!\"&H1404),\"\")","v":0},"EstExp 12-20","K229"]
[1400,{"$nulls":3},true,{"$f":"IF(G1405<>\"\",INDIRECT(\"'\"&G1405&\"'!\"&H1405),\"\")","v":""}]
[1401,{"$nulls":3},true,{"$f":"IF(G1406<>\"\",INDIRECT(\"'\"&G1406&\"'!\"&H1406),\"\")","v":""}]
[1402,{"$nulls":3},true,{"$f":"IF(G1407<>\"\",INDIRECT(\"'\"&G1407&\"'!\"&H1407),\"\")","v":""}]
[1403,{"$nulls":3},true,{"$f":"IF(G1408<>\"\",INDIRECT(\"'\"&G1408&\"'!\"&H1408),\"\")","v":""}]
[1404,{"$nulls":3},true,{"$f":"IF(G1409<>\"\",INDIRECT(\"'\"&G1409&\"'!\"&H1409),\"\")","v":""}]
[1405,{"$f":"'EstExp 12-20'!K231","v":12000},-10595,null,{"$f":"F1410=B1410","v":true},{"$f":"IF(G1410<>\"\",INDIRECT(\"'\"&G1410&\"'!\"&H1410),\"\")","v":12000},"EstExp 12-20","K231"]
[1406,{"$nulls":3},true,{"$f":"IF(G1411<>\"\",INDIRECT(\"'\"&G1411&\"'!\"&H1411),\"\")","v":""}]
[1407,{"$nulls":3},true,{"$f":"IF(G1412<>\"\",INDIRECT(\"'\"&G1412&\"'!\"&H1412),\"\")","v":""}]
[1408,{"$nulls":3},true,{"$f":"IF(G1413<>\"\",INDIRECT(\"'\"&G1413&\"'!\"&H1413),\"\")","v":""}]
[1409,{"$f":"'EstExp 12-20'!K225","v":0},1409,null,true,{"$f":"IF(G1414<>\"\",INDIRECT(\"'\"&G1414&\"'!\"&H1414),\"\")","v":0},"EstExp 12-20","K225"]
[1410,{"$f":"'EstExp 12-20'!K226","v":0},1410,null,true,{"$f":"IF(G1415<>\"\",INDIRECT(\"'\"&G1415&\"'!\"&H1415),\"\")","v":0},"EstExp 12-20","K226"]
[1411,{"$f":"'EstExp 12-20'!K227","v":22000},{"$f":"A1416-B1416","v":-20589},null,true,{"$f":"IF(G1416<>\"\",INDIRECT(\"'\"&G1416&\"'!\"&H1416),\"\")","v":22000},"EstExp 12-20","K227"]
[1412,{"$f":"'EstExp 12-20'!K228","v":5000},-3588,null,true,{"$f":"IF(G1417<>\"\",INDIRECT(\"'\"&G1417&\"'!\"&H1417),\"\")","v":5000},"EstExp 12-20","K228"]
[1413,{"$f":"'EstExp 12-20'!K233","v":212500},-211087,null,true,{"$f":"IF(G1418<>\"\",INDIRECT(\"'\"&G1418&\"'!\"&H1418),\"\")","v":212500},"EstExp 12-20","K233"]
[1414,{"$f":"'EstExp 12-20'!K236","v":2000},-586,null,true,{"$f":"IF(G1419<>\"\",INDIRECT(\"'\"&G1419&\"'!\"&H1419),\"\")","v":2000},"EstExp 12-20","K236"]
[1415,{"$f":"'EstExp 12-20'!K237","v":0},1415,null,true,{"$f":"IF(G1420<>\"\",INDIRECT(\"'\"&G1420&\"'!\"&H1420),\"\")","v":0},"EstExp 12-20","K237"]
[1416,{"$f":"'EstExp 12-20'!K238","v":4500},-3084,null,true,{"$f":"IF(G1421<>\"\",INDIRECT(\"'\"&G1421&\"'!\"&H1421),\"\")","v":4500},"EstExp 12-20","K238"]
[1417,{"$f":"'EstExp 12-20'!K239","v":0},1417,null,true,{"$f":"IF(G1422<>\"\",INDIRECT(\"'\"&G1422&\"'!\"&H1422),\"\")","v":0},"EstExp 12-20","K239"]
[1418,{"$f":"'EstExp 12-20'!K240","v":0},1418,null,true,{"$f":"IF(G1423<>\"\",INDIRECT(\"'\"&G1423&\"'!\"&H1423),\"\")","v":0},"EstExp 12-20","K240"]
[1419,{"$f":"'EstExp 12-20'!K241","v":0},1419,null,true,{"$f":"IF(G1424<>\"\",INDIRECT(\"'\"&G1424&\"'!\"&H1424),\"\")","v":0},"EstExp 12-20","K241"]
[1420,{"$f":"'EstExp 12-20'!K242","v":6500},-5080,null,true,{"$f":"IF(G1425<>\"\",INDIRECT(\"'\"&G1425&\"'!\"&H1425),\"\")","v":6500},"EstExp 12-20","K242"]
[1421,{"$f":"'EstExp 12-20'!K244","v":6300},-4879,null,true,{"$f":"IF(G1426<>\"\",INDIRECT(\"'\"&G1426&\"'!\"&H1426),\"\")","v":6300},"EstExp 12-20","K244"]
[1422,{"$f":"'EstExp 12-20'!K245","v":5500},-4078,null,true,{"$f":"IF(G1427<>\"\",INDIRECT(\"'\"&G1427&\"'!\"&H1427),\"\")","v":5500},"EstExp 12-20","K245"]
[1423,{"$f":"'EstExp 12-20'!K246","v":0},1423,null,true,{"$f":"IF(G1428<>\"\",INDIRECT(\"'\"&G1428&\"'!\"&H1428),\"\")","v":0},"EstExp 12-20","K246"]
[1424,{"$f":"'EstExp 12-20'!K247","v":11800},-10376,null,true,{"$f":"IF(G1429<>\"\",INDIRECT(\"'\"&G1429&\"'!\"&H1429),\"\")","v":11800},"EstExp 12-20","K247"]
[1425,{"$f":"'EstExp 12-20'!K249","v":0},1425,null,true,{"$f":"IF(G1430<>\"\",INDIRECT(\"'\"&G1430&\"'!\"&H1430),\"\")","v":0},"EstExp 12-20","K249"]
[1426,{"$f":"'EstExp 12-20'!K250","v":16000},-14574,null,true,{"$f":"IF(G1431<>\"\",INDIRECT(\"'\"&G1431&\"'!\"&H1431),\"\")","v":16000},"EstExp 12-20","K250"]
[1427,{"$f":"'EstExp 12-20'!K254","v":26000},-24573,null,true,{"$f":"IF(G1432<>\"\",INDIRECT(\"'\"&G1432&\"'!\"&H1432),\"\")","v":26000},"EstExp 12-20","K254"]
[1428,{"$f":"'EstExp 12-20'!K256","v":39000},-37572,null,true,{"$f":"IF(G1433<>\"\",INDIRECT(\"'\"&G1433&\"'!\"&H1433),\"\")","v":39000},"EstExp 12-20","K256"]
[1429,{"$f":"'EstExp 12-20'!K257","v":0},1429,null,true,{"$f":"IF(G1434<>\"\",INDIRECT(\"'\"&G1434&\"'!\"&H1434),\"\")","v":0},"EstExp 12-20","K257"]
[1430,{"$f":"'EstExp 12-20'!K258","v":39000},-37570,null,true,{"$f":"IF(G1435<>\"\",INDIRECT(\"'\"&G1435&\"'!\"&H1435),\"\")","v":39000},"EstExp 12-20","K258"]
[1431,{"$f":"'EstExp 12-20'!K260","v":2000},-569,null,true,{"$f":"IF(G1436<>\"\",INDIRECT(\"'\"&G1436&\"'!\"&H1436),\"\")","v":2000},"EstExp 12-20","K260"]
[1432,{"$f":"'EstExp 12-20'!K261","v":25000},-23568,null,true,{"$f":"IF(G1437<>\"\",INDIRECT(\"'\"&G1437&\"'!\"&H1437),\"\")","v":25000},"EstExp 12-20","K261"]
[1433,{"$f":"'EstExp 12-20'!K262","v":0},1433,null,true,{"$f":"IF(G1438<>\"\",INDIRECT(\"'\"&G1438&\"'!\"&H1438),\"\")","v":0},"EstExp 12-20","K262"]
[1434,{"$f":"'EstExp 12-20'!K263","v":140000},-138566,null,true,{"$f":"IF(G1439<>\"\",INDIRECT(\"'\"&G1439&\"'!\"&H1439),\"\")","v":140000},"EstExp 12-20","K263"]
[1435,{"$f":"'EstExp 12-20'!K264","v":0},1435,null,true,{"$f":"IF(G1440<>\"\",INDIRECT(\"'\"&G1440&\"'!\"&H1440),\"\")","v":0},"EstExp 12-20","K264"]
[1436,{"$f":"'EstExp 12-20'!K265","v":63000},-61564,null,true,{"$f":"IF(G1441<>\"\",INDIRECT(\"'\"&G1441&\"'!\"&H1441),\"\")","v":63000},"EstExp 12-20","K265"]
[1437,{"$f":"'EstExp 12-20'!K266","v":0},1437,null,true,{"$f":"IF(G1442<>\"\",INDIRECT(\"'\"&G1442&\"'!\"&H1442),\"\")","v":0},"EstExp 12-20","K266"]
[1438,{"$nulls":3},true,{"$f":"IF(G1443<>\"\",INDIRECT(\"'\"&G1443&\"'!\"&H1443),\"\")","v":""}]
[1439,{"$f":"'EstExp 12-20'!K267","v":230000},-228561,null,true,{"$f":"IF(G1444<>\"\",INDIRECT(\"'\"&G1444&\"'!\"&H1444),\"\")","v":230000},"EstExp 12-20","K267"]
[1440,{"$f":"'EstExp 12-20'!K269","v":0},1440,null,true,{"$f":"IF(G1445<>\"\",INDIRECT(\"'\"&G1445&\"'!\"&H1445),\"\")","v":0},"EstExp 12-20","K269"]
[1441,{"$f":"'EstExp 12-20'!K270","v":0},1441,null,true,{"$f":"IF(G1446<>\"\",INDIRECT(\"'\"&G1446&\"'!\"&H1446),\"\")","v":0},"EstExp 12-20","K270"]
[1442,{"$f":"'EstExp 12-20'!K271","v":48000},-46558,null,true,{"$f":"IF(G1447<>\"\",INDIRECT(\"'\"&G1447&\"'!\"&H1447),\"\")","v":48000},"EstExp 12-20","K271"]
[1443,{"$f":"'EstExp 12-20'!K272","v":0},1443,null,true,{"$f":"IF(G1448<>\"\",INDIRECT(\"'\"&G1448&\"'!\"&H1448),\"\")","v":0},"EstExp 12-20","K272"]
[1444,{"$nulls":3},true,{"$f":"IF(G1449<>\"\",INDIRECT(\"'\"&G1449&\"'!\"&H1449),\"\")","v":""}]
[1445,{"$f":"'EstExp 12-20'!K273","v":0},1445,null,true,{"$f":"IF(G1450<>\"\",INDIRECT(\"'\"&G1450&\"'!\"&H1450),\"\")","v":0},"EstExp 12-20","K273"]
[1446,{"$nulls":3},true,{"$f":"IF(G1451<>\"\",INDIRECT(\"'\"&G1451&\"'!\"&H1451),\"\")","v":""}]
[1447,{"$f":"'EstExp 12-20'!K274","v":48000},-46553,null,true,{"$f":"IF(G1452<>\"\",INDIRECT(\"'\"&G1452&\"'!\"&H1452),\"\")","v":48000},"EstExp 12-20","K274"]
[1448,{"$f":"'EstExp 12-20'!K275","v":5000},-3552,null,true,{"$f":"IF(G1453<>\"\",INDIRECT(\"'\"&G1453&\"'!\"&H1453),\"\")","v":5000},"EstExp 12-20","K275"]
[1449,{"$f":"'EstExp 12-20'!K276","v":366300},-364851,null,true,{"$f":"IF(G1454<>\"\",INDIRECT(\"'\"&G1454&\"'!\"&H1454),\"\")","v":366300},"EstExp 12-20","K276"]
[1450,{"$f":"'EstExp 12-20'!K277","v":22100},-20650,null,true,{"$f":"IF(G1455<>\"\",INDIRECT(\"'\"&G1455&\"'!\"&H1455),\"\")","v":22100},"EstExp 12-20","K277"]
[1451,{"$f":"'EstExp 12-20'!K285","v":0},1451,null,true,{"$f":"IF(G1456<>\"\",INDIRECT(\"'\"&G1456&\"'!\"&H1456),\"\")","v":0},"EstExp 12-20","K285"]
[1452,{"$f":"'EstExp 12-20'!K286","v":0},1452,null,true,{"$f":"IF(G1457<>\"\",INDIRECT(\"'\"&G1457&\"'!\"&H1457),\"\")","v":0},"EstExp 12-20","K286"]
[1453,{"$f":"'EstExp 12-20'!K289","v":0},1453,null,true,{"$f":"IF(G1458<>\"\",INDIRECT(\"'\"&G1458&\"'!\"&H1458),\"\")","v":0},"EstExp 12-20","K289"]
[1454,{"$f":"'EstExp 12-20'!K290","v":0},1454,null,true,{"$f":"IF(G1459<>\"\",INDIRECT(\"'\"&G1459&\"'!\"&H1459),\"\")","v":0},"EstExp 12-20","K290"]
[1455,{"$nulls":3},true,{"$f":"IF(G1460<>\"\",INDIRECT(\"'\"&G1460&\"'!\"&H1460),\"\")","v":""}]
[1456,{"$f":"'EstExp 12-20'!K292","v":600900},-599444,null,true,{"$f":"IF(G1461<>\"\",INDIRECT(\"'\"&G1461&\"'!\"&H1461),\"\")","v":600900},"EstExp 12-20","K292"]
[1457,{"$f":"'EstExp 12-20'!K293","v":4100},-2643,null,true,{"$f":"IF(G1462<>\"\",INDIRECT(\"'\"&G1462&\"'!\"&H1462),\"\")","v":4100},"EstExp 12-20","K293"]
[1458,{"$f":"'EstExp 12-20'!C298","v":0},1458,null,true,{"$f":"IF(G1463<>\"\",INDIRECT(\"'\"&G1463&\"'!\"&H1463),\"\")","v":0},"EstExp 12-20","C298"]
[1459,{"$nulls":3},true,{"$f":"IF(G1464<>\"\",INDIRECT(\"'\"&G1464&\"'!\"&H1464),\"\")","v":""}]
[1460,{"$nulls":3},true,{"$f":"IF(G1465<>\"\",INDIRECT(\"'\"&G1465&\"'!\"&H1465),\"\")","v":""}]
[1461,{"$f":"'EstExp 12-20'!C299","v":0},1461,null,true,{"$f":"IF(G1466<>\"\",INDIRECT(\"'\"&G1466&\"'!\"&H1466),\"\")","v":0},"EstExp 12-20","C299"]
[1462,{"$f":"'EstExp 12-20'!C300","v":0},1462,null,true,{"$f":"IF(G1467<>\"\",INDIRECT(\"'\"&G1467&\"'!\"&H1467),\"\")","v":0},"EstExp 12-20","C300"]
[1463,{"$f":"'EstExp 12-20'!C309","v":0},1463,null,true,{"$f":"IF(G1468<>\"\",INDIRECT(\"'\"&G1468&\"'!\"&H1468),\"\")","v":0},"EstExp 12-20","C309"]
[1464,{"$f":"'EstExp 12-20'!D298","v":0},1464,null,true,{"$f":"IF(G1469<>\"\",INDIRECT(\"'\"&G1469&\"'!\"&H1469),\"\")","v":0},"EstExp 12-20","D298"]
[1465,{"$nulls":3},true,{"$f":"IF(G1470<>\"\",INDIRECT(\"'\"&G1470&\"'!\"&H1470),\"\")","v":""}]
[1466,{"$nulls":3},true,{"$f":"IF(G1471<>\"\",INDIRECT(\"'\"&G1471&\"'!\"&H1471),\"\")","v":""}]
[1467,{"$f":"'EstExp 12-20'!D299","v":0},1467,null,true,{"$f":"IF(G1472<>\"\",INDIRECT(\"'\"&G1472&\"'!\"&H1472),\"\")","v":0},"EstExp 12-20","D299"]
[1468,{"$f":"'EstExp 12-20'!D300","v":0},1468,null,true,{"$f":"IF(G1473<>\"\",INDIRECT(\"'\"&G1473&\"'!\"&H1473),\"\")","v":0},"EstExp 12-20","D300"]
[1469,{"$f":"'EstExp 12-20'!D309","v":0},1469,null,{"$f":"F1474=B1474","v":true},{"$f":"IF(G1474<>\"\",INDIRECT(\"'\"&G1474&\"'!\"&H1474),\"\")","v":0},"EstExp 12-20","D309"]
[1470,{"$f":"'EstExp 12-20'!E298","v":0},1470,null,true,{"$f":"IF(G1475<>\"\",INDIRECT(\"'\"&G1475&\"'!\"&H1475),\"\")","v":0},"EstExp 12-20","E298"]
[1471,{"$nulls":3},true,{"$f":"IF(G1476<>\"\",INDIRECT(\"'\"&G1476&\"'!\"&H1476),\"\")","v":""}]
[1472,{"$nulls":3},true,{"$f":"IF(G1477<>\"\",INDIRECT(\"'\"&G1477&\"'!\"&H1477),\"\")","v":""}]
[1473,{"$f":"'EstExp 12-20'!E299","v":0},1473,null,true,{"$f":"IF(G1478<>\"\",INDIRECT(\"'\"&G1478&\"'!\"&H1478),\"\")","v":0},"EstExp 12-20","E299"]
[1474,{"$f":"'EstExp 12-20'!E300","v":0},1474,null,true,{"$f":"IF(G1479<>\"\",INDIRECT(\"'\"&G1479&\"'!\"&H1479),\"\")","v":0},"EstExp 12-20","E300"]
[1475,{"$f":"'EstExp 12-20'!E309","v":0},{"$f":"A1480-B1480","v":1475},null,true,{"$f":"IF(G1480<>\"\",INDIRECT(\"'\"&G1480&\"'!\"&H1480),\"\")","v":0},"EstExp 12-20","E309"]
[1476,{"$f":"'EstExp 12-20'!F298","v":0},1476,null,true,{"$f":"IF(G1481<>\"\",INDIRECT(\"'\"&G1481&\"'!\"&H1481),\"\")","v":0},"EstExp 12-20","F298"]
[1477,{"$nulls":3},true,{"$f":"IF(G1482<>\"\",INDIRECT(\"'\"&G1482&\"'!\"&H1482),\"\")","v":""}]
[1478,{"$nulls":3},true,{"$f":"IF(G1483<>\"\",INDIRECT(\"'\"&G1483&\"'!\"&H1483),\"\")","v":""}]
[1479,{"$f":"'EstExp 12-20'!F299","v":0},1479,null,true,{"$f":"IF(G1484<>\"\",INDIRECT(\"'\"&G1484&\"'!\"&H1484),\"\")","v":0},"EstExp 12-20","F299"]
[1480,{"$f":"'EstExp 12-20'!F300","v":0},1480,null,true,{"$f":"IF(G1485<>\"\",INDIRECT(\"'\"&G1485&\"'!\"&H1485),\"\")","v":0},"EstExp 12-20","F300"]
[1481,{"$f":"'EstExp 12-20'!F309","v":0},1481,null,true,{"$f":"IF(G1486<>\"\",INDIRECT(\"'\"&G1486&\"'!\"&H1486),\"\")","v":0},"EstExp 12-20","F309"]
[1482,{"$f":"'EstExp 12-20'!G298","v":203000},-201518,null,true,{"$f":"IF(G1487<>\"\",INDIRECT(\"'\"&G1487&\"'!\"&H1487),\"\")","v":203000},"EstExp 12-20","G298"]
[1483,{"$nulls":3},true,{"$f":"IF(G1488<>\"\",INDIRECT(\"'\"&G1488&\"'!\"&H1488),\"\")","v":""}]
[1484,{"$nulls":3},true,{"$f":"IF(G1489<>\"\",INDIRECT(\"'\"&G1489&\"'!\"&H1489),\"\")","v":""}]
[1485,{"$f":"'EstExp 12-20'!G299","v":0},1485,null,true,{"$f":"IF(G1490<>\"\",INDIRECT(\"'\"&G1490&\"'!\"&H1490),\"\")","v":0},"EstExp 12-20","G299"]
[1486,{"$f":"'EstExp 12-20'!G300","v":203000},-201514,null,true,{"$f":"IF(G1491<>\"\",INDIRECT(\"'\"&G1491&\"'!\"&H1491),\"\")","v":203000},"EstExp 12-20","G300"]
[1487,{"$f":"'EstExp 12-20'!G309","v":203000},-201513,null,true,{"$f":"IF(G1492<>\"\",INDIRECT(\"'\"&G1492&\"'!\"&H1492),\"\")","v":203000},"EstExp 12-20","G309"]
[1488,{"$f":"'EstExp 12-20'!H298","v":0},1488,null,true,{"$f":"IF(G1493<>\"\",INDIRECT(\"'\"&G1493&\"'!\"&H1493),\"\")","v":0},"EstExp 12-20","H298"]
[1489,{"$nulls":3},true,{"$f":"IF(G1494<>\"\",INDIRECT(\"'\"&G1494&\"'!\"&H1494),\"\")","v":""}]
[1490,{"$nulls":3},true,{"$f":"IF(G1495<>\"\",INDIRECT(\"'\"&G1495&\"'!\"&H1495),\"\")","v":""}]
[1491,{"$f":"'EstExp 12-20'!H299","v":0},1491,null,true,{"$f":"IF(G1496<>\"\",INDIRECT(\"'\"&G1496&\"'!\"&H1496),\"\")","v":0},"EstExp 12-20","H299"]
[1492,{"$f":"'EstExp 12-20'!H300","v":0},1492,null,true,{"$f":"IF(G1497<>\"\",INDIRECT(\"'\"&G1497&\"'!\"&H1497),\"\")","v":0},"EstExp 12-20","H300"]
[1493,{"$f":"'EstExp 12-20'!H309","v":0},1493,null,true,{"$f":"IF(G1498<>\"\",INDIRECT(\"'\"&G1498&\"'!\"&H1498),\"\")","v":0},"EstExp 12-20","H309"]
[1494,{"$f":"'EstExp 12-20'!K298","v":203000},-201506,null,true,{"$f":"IF(G1499<>\"\",INDIRECT(\"'\"&G1499&\"'!\"&H1499),\"\")","v":203000},"EstExp 12-20","K298"]
[1495,{"$nulls":3},true,{"$f":"IF(G1500<>\"\",INDIRECT(\"'\"&G1500&\"'!\"&H1500),\"\")","v":""}]
[1496,{"$nulls":3},true,{"$f":"IF(G1501<>\"\",INDIRECT(\"'\"&G1501&\"'!\"&H1501),\"\")","v":""}]
[1497,{"$f":"'EstExp 12-20'!K299","v":0},1497,null,true,{"$f":"IF(G1502<>\"\",INDIRECT(\"'\"&G1502&\"'!\"&H1502),\"\")","v":0},"EstExp 12-20","K299"]
[1498,{"$f":"'EstExp 12-20'!K300","v":203000},-201502,null,true,{"$f":"IF(G1503<>\"\",INDIRECT(\"'\"&G1503&\"'!\"&H1503),\"\")","v":203000},"EstExp 12-20","K300"]
[1499,{"$f":"'EstExp 12-20'!K309","v":203000},-201501,null,true,{"$f":"IF(G1504<>\"\",INDIRECT(\"'\"&G1504&\"'!\"&H1504),\"\")","v":203000},"EstExp 12-20","K309"]
[1500,{"$f":"'EstExp 12-20'!K310","v":0},1500,null,true,{"$f":"IF(G1505<>\"\",INDIRECT(\"'\"&G1505&\"'!\"&H1505),\"\")","v":0},"EstExp 12-20","K310"]
[1501,{"$nulls":3},true,{"$f":"IF(G1506<>\"\",INDIRECT(\"'\"&G1506&\"'!\"&H1506),\"\")","v":""}]
[1502,{"$nulls":3},true,{"$f":"IF(G1507<>\"\",INDIRECT(\"'\"&G1507&\"'!\"&H1507),\"\")","v":""}]
[1503,{"$nulls":3},true,{"$f":"IF(G1508<>\"\",INDIRECT(\"'\"&G1508&\"'!\"&H1508),\"\")","v":""}]
[1504,{"$nulls":3},true,{"$f":"IF(G1509<>\"\",INDIRECT(\"'\"&G1509&\"'!\"&H1509),\"\")","v":""}]
[1505,{"$nulls":3},true,{"$f":"IF(G1510<>\"\",INDIRECT(\"'\"&G1510&\"'!\"&H1510),\"\")","v":""}]
[1506,{"$nulls":3},true,{"$f":"IF(G1511<>\"\",INDIRECT(\"'\"&G1511&\"'!\"&H1511),\"\")","v":""}]
[1507,null,null,"Closed 2008",true,{"$f":"IF(G1512<>\"\",INDIRECT(\"'\"&G1512&\"'!\"&H1512),\"\")","v":""}]
[1508,null,null,"Closed 2008",true,{"$f":"IF(G1513<>\"\",INDIRECT(\"'\"&G1513&\"'!\"&H1513),\"\")","v":""}]
[1509,null,null,"Closed 2008",true,{"$f":"IF(G1514<>\"\",INDIRECT(\"'\"&G1514&\"'!\"&H1514),\"\")","v":""}]
[1510,null,null,"Closed 2008",true,{"$f":"IF(G1515<>\"\",INDIRECT(\"'\"&G1515&\"'!\"&H1515),\"\")","v":""}]
[1511,null,null,"Closed 2008",true,{"$f":"IF(G1516<>\"\",INDIRECT(\"'\"&G1516&\"'!\"&H1516),\"\")","v":""}]
[1512,null,null,"Closed 2008",true,{"$f":"IF(G1517<>\"\",INDIRECT(\"'\"&G1517&\"'!\"&H1517),\"\")","v":""}]
[1513,null,null,"Closed 2008",true,{"$f":"IF(G1518<>\"\",INDIRECT(\"'\"&G1518&\"'!\"&H1518),\"\")","v":""}]
[1514,null,null,"Closed 2008",true,{"$f":"IF(G1519<>\"\",INDIRECT(\"'\"&G1519&\"'!\"&H1519),\"\")","v":""}]
[1515,null,null,"Closed 2008",true,{"$f":"IF(G1520<>\"\",INDIRECT(\"'\"&G1520&\"'!\"&H1520),\"\")","v":""}]
[1516,null,null,"Closed 2008",true,{"$f":"IF(G1521<>\"\",INDIRECT(\"'\"&G1521&\"'!\"&H1521),\"\")","v":""}]
[1517,{"$nulls":3},true,{"$f":"IF(G1522<>\"\",INDIRECT(\"'\"&G1522&\"'!\"&H1522),\"\")","v":""}]
[1518,{"$nulls":3},true,{"$f":"IF(G1523<>\"\",INDIRECT(\"'\"&G1523&\"'!\"&H1523),\"\")","v":""}]
[1519,{"$nulls":3},true,{"$f":"IF(G1524<>\"\",INDIRECT(\"'\"&G1524&\"'!\"&H1524),\"\")","v":""}]
[1520,{"$nulls":3},true,{"$f":"IF(G1525<>\"\",INDIRECT(\"'\"&G1525&\"'!\"&H1525),\"\")","v":""}]
[1521,{"$nulls":3},true,{"$f":"IF(G1526<>\"\",INDIRECT(\"'\"&G1526&\"'!\"&H1526),\"\")","v":""}]
[1522,{"$nulls":3},true,{"$f":"IF(G1527<>\"\",INDIRECT(\"'\"&G1527&\"'!\"&H1527),\"\")","v":""}]
[1523,{"$nulls":3},true,{"$f":"IF(G1528<>\"\",INDIRECT(\"'\"&G1528&\"'!\"&H1528),\"\")","v":""}]
[1524,{"$nulls":3},true,{"$f":"IF(G1529<>\"\",INDIRECT(\"'\"&G1529&\"'!\"&H1529),\"\")","v":""}]
[1525,{"$nulls":3},true,{"$f":"IF(G1530<>\"\",INDIRECT(\"'\"&G1530&\"'!\"&H1530),\"\")","v":""}]
[1526,{"$nulls":3},true,{"$f":"IF(G1531<>\"\",INDIRECT(\"'\"&G1531&\"'!\"&H1531),\"\")","v":""}]
[1527,{"$nulls":3},true,{"$f":"IF(G1532<>\"\",INDIRECT(\"'\"&G1532&\"'!\"&H1532),\"\")","v":""}]
[1528,{"$nulls":3},true,{"$f":"IF(G1533<>\"\",INDIRECT(\"'\"&G1533&\"'!\"&H1533),\"\")","v":""}]
[1529,{"$nulls":3},true,{"$f":"IF(G1534<>\"\",INDIRECT(\"'\"&G1534&\"'!\"&H1534),\"\")","v":""}]
[1530,{"$nulls":3},true,{"$f":"IF(G1535<>\"\",INDIRECT(\"'\"&G1535&\"'!\"&H1535),\"\")","v":""}]
[1531,{"$nulls":3},true,{"$f":"IF(G1536<>\"\",INDIRECT(\"'\"&G1536&\"'!\"&H1536),\"\")","v":""}]
[1532,{"$nulls":3},true,{"$f":"IF(G1537<>\"\",INDIRECT(\"'\"&G1537&\"'!\"&H1537),\"\")","v":""}]
[1533,{"$nulls":3},{"$f":"F1538=B1538","v":true},{"$f":"IF(G1538<>\"\",INDIRECT(\"'\"&G1538&\"'!\"&H1538),\"\")","v":""}]
[1534,{"$nulls":3},true,{"$f":"IF(G1539<>\"\",INDIRECT(\"'\"&G1539&\"'!\"&H1539),\"\")","v":""}]
[1535,{"$nulls":3},true,{"$f":"IF(G1540<>\"\",INDIRECT(\"'\"&G1540&\"'!\"&H1540),\"\")","v":""}]
[1536,{"$nulls":3},true,{"$f":"IF(G1541<>\"\",INDIRECT(\"'\"&G1541&\"'!\"&H1541),\"\")","v":""}]
[1537,{"$nulls":3},true,{"$f":"IF(G1542<>\"\",INDIRECT(\"'\"&G1542&\"'!\"&H1542),\"\")","v":""}]
[1538,{"$nulls":3},true,{"$f":"IF(G1543<>\"\",INDIRECT(\"'\"&G1543&\"'!\"&H1543),\"\")","v":""}]
[1539,{"$nulls":3},true,{"$f":"IF(G1544<>\"\",INDIRECT(\"'\"&G1544&\"'!\"&H1544),\"\")","v":""}]
[1540,{"$nulls":3},true,{"$f":"IF(G1545<>\"\",INDIRECT(\"'\"&G1545&\"'!\"&H1545),\"\")","v":""}]
[1541,{"$nulls":3},true,{"$f":"IF(G1546<>\"\",INDIRECT(\"'\"&G1546&\"'!\"&H1546),\"\")","v":""}]
[1542,{"$nulls":3},true,{"$f":"IF(G1547<>\"\",INDIRECT(\"'\"&G1547&\"'!\"&H1547),\"\")","v":""}]
[1543,{"$nulls":3},true,{"$f":"IF(G1548<>\"\",INDIRECT(\"'\"&G1548&\"'!\"&H1548),\"\")","v":""}]
[1544,{"$nulls":3},true,{"$f":"IF(G1549<>\"\",INDIRECT(\"'\"&G1549&\"'!\"&H1549),\"\")","v":""}]
[1545,{"$nulls":3},true,{"$f":"IF(G1550<>\"\",INDIRECT(\"'\"&G1550&\"'!\"&H1550),\"\")","v":""}]
[1546,{"$nulls":3},true,{"$f":"IF(G1551<>\"\",INDIRECT(\"'\"&G1551&\"'!\"&H1551),\"\")","v":""}]
[1547,{"$nulls":3},true,{"$f":"IF(G1552<>\"\",INDIRECT(\"'\"&G1552&\"'!\"&H1552),\"\")","v":""}]
[1548,{"$nulls":3},true,{"$f":"IF(G1553<>\"\",INDIRECT(\"'\"&G1553&\"'!\"&H1553),\"\")","v":""}]
[1549,{"$nulls":3},true,{"$f":"IF(G1554<>\"\",INDIRECT(\"'\"&G1554&\"'!\"&H1554),\"\")","v":""}]
[1550,{"$nulls":3},true,{"$f":"IF(G1555<>\"\",INDIRECT(\"'\"&G1555&\"'!\"&H1555),\"\")","v":""}]
[1551,{"$nulls":3},true,{"$f":"IF(G1556<>\"\",INDIRECT(\"'\"&G1556&\"'!\"&H1556),\"\")","v":""}]
[1552,{"$nulls":3},true,{"$f":"IF(G1557<>\"\",INDIRECT(\"'\"&G1557&\"'!\"&H1557),\"\")","v":""}]
[1553,{"$nulls":3},true,{"$f":"IF(G1558<>\"\",INDIRECT(\"'\"&G1558&\"'!\"&H1558),\"\")","v":""}]
[1554,{"$nulls":3},true,{"$f":"IF(G1559<>\"\",INDIRECT(\"'\"&G1559&\"'!\"&H1559),\"\")","v":""}]
[1555,{"$nulls":3},true,{"$f":"IF(G1560<>\"\",INDIRECT(\"'\"&G1560&\"'!\"&H1560),\"\")","v":""}]
[1556,{"$f":"'BudgetSum 2-4'!C3","v":7376498},{"$f":"A1561-B1561","v":-7374942},null,true,{"$f":"IF(G1561<>\"\",INDIRECT(\"'\"&G1561&\"'!\"&H1561),\"\")","v":7376498},"BudgetSum 2-4","C3"]
[1557,{"$nulls":3},true,{"$f":"IF(G1562<>\"\",INDIRECT(\"'\"&G1562&\"'!\"&H1562),\"\")","v":""}]
[1558,{"$nulls":3},true,{"$f":"IF(G1563<>\"\",INDIRECT(\"'\"&G1563&\"'!\"&H1563),\"\")","v":""}]
[1559,{"$nulls":3},true,{"$f":"IF(G1564<>\"\",INDIRECT(\"'\"&G1564&\"'!\"&H1564),\"\")","v":""}]
[1560,{"$nulls":3},true,{"$f":"IF(G1565<>\"\",INDIRECT(\"'\"&G1565&\"'!\"&H1565),\"\")","v":""}]
[1561,{"$nulls":3},true,{"$f":"IF(G1566<>\"\",INDIRECT(\"'\"&G1566&\"'!\"&H1566),\"\")","v":""}]
[1562,{"$nulls":3},true,{"$f":"IF(G1567<>\"\",INDIRECT(\"'\"&G1567&\"'!\"&H1567),\"\")","v":""}]
[1563,{"$nulls":3},true,{"$f":"IF(G1568<>\"\",INDIRECT(\"'\"&G1568&\"'!\"&H1568),\"\")","v":""}]
[1564,{"$nulls":3},true,{"$f":"IF(G1569<>\"\",INDIRECT(\"'\"&G1569&\"'!\"&H1569),\"\")","v":""}]
[1565,{"$nulls":3},true,{"$f":"IF(G1570<>\"\",INDIRECT(\"'\"&G1570&\"'!\"&H1570),\"\")","v":""}]
[1566,{"$nulls":3},true,{"$f":"IF(G1571<>\"\",INDIRECT(\"'\"&G1571&\"'!\"&H1571),\"\")","v":""}]
[1567,{"$nulls":3},true,{"$f":"IF(G1572<>\"\",INDIRECT(\"'\"&G1572&\"'!\"&H1572),\"\")","v":""}]
[1568,{"$nulls":3},true,{"$f":"IF(G1573<>\"\",INDIRECT(\"'\"&G1573&\"'!\"&H1573),\"\")","v":""}]
[1569,{"$f":"'BudgetSum 2-4'!C81","v":6460442},-6458873,null,true,{"$f":"IF(G1574<>\"\",INDIRECT(\"'\"&G1574&\"'!\"&H1574),\"\")","v":6460442},"BudgetSum 2-4","C81"]
[1570,{"$f":"'BudgetSum 2-4'!D3","v":0},1570,null,true,{"$f":"IF(G1575<>\"\",INDIRECT(\"'\"&G1575&\"'!\"&H1575),\"\")","v":0},"BudgetSum 2-4","D3"]
[1571,{"$nulls":3},true,{"$f":"IF(G1576<>\"\",INDIRECT(\"'\"&G1576&\"'!\"&H1576),\"\")","v":""}]
[1572,{"$nulls":3},true,{"$f":"IF(G1577<>\"\",INDIRECT(\"'\"&G1577&\"'!\"&H1577),\"\")","v":""}]
[1573,{"$nulls":3},true,{"$f":"IF(G1578<>\"\",INDIRECT(\"'\"&G1578&\"'!\"&H1578),\"\")","v":""}]
[1574,{"$nulls":3},true,{"$f":"IF(G1579<>\"\",INDIRECT(\"'\"&G1579&\"'!\"&H1579),\"\")","v":""}]
[1575,{"$nulls":3},true,{"$f":"IF(G1580<>\"\",INDIRECT(\"'\"&G1580&\"'!\"&H1580),\"\")","v":""}]
[1576,{"$nulls":3},true,{"$f":"IF(G1581<>\"\",INDIRECT(\"'\"&G1581&\"'!\"&H1581),\"\")","v":""}]
[1577,{"$nulls":3},true,{"$f":"IF(G1582<>\"\",INDIRECT(\"'\"&G1582&\"'!\"&H1582),\"\")","v":""}]
[1578,{"$nulls":3},true,{"$f":"IF(G1583<>\"\",INDIRECT(\"'\"&G1583&\"'!\"&H1583),\"\")","v":""}]
[1579,{"$nulls":3},true,{"$f":"IF(G1584<>\"\",INDIRECT(\"'\"&G1584&\"'!\"&H1584),\"\")","v":""}]
[1580,{"$nulls":3},true,{"$f":"IF(G1585<>\"\",INDIRECT(\"'\"&G1585&\"'!\"&H1585),\"\")","v":""}]
[1581,{"$nulls":3},true,{"$f":"IF(G1586<>\"\",INDIRECT(\"'\"&G1586&\"'!\"&H1586),\"\")","v":""}]
[1582,{"$nulls":3},true,{"$f":"IF(G1587<>\"\",INDIRECT(\"'\"&G1587&\"'!\"&H1587),\"\")","v":""}]
[1583,{"$f":"'BudgetSum 2-4'!D81","v":32500},-30917,null,true,{"$f":"IF(G1588<>\"\",INDIRECT(\"'\"&G1588&\"'!\"&H1588),\"\")","v":32500},"BudgetSum 2-4","D81"]
[1584,{"$f":"'BudgetSum 2-4'!E3","v":3057750},-3056166,null,true,{"$f":"IF(G1589<>\"\",INDIRECT(\"'\"&G1589&\"'!\"&H1589),\"\")","v":3057750},"BudgetSum 2-4","E3"]
[1585,{"$nulls":3},true,{"$f":"IF(G1590<>\"\",INDIRECT(\"'\"&G1590&\"'!\"&H1590),\"\")","v":""}]
[1586,{"$nulls":3},true,{"$f":"IF(G1591<>\"\",INDIRECT(\"'\"&G1591&\"'!\"&H1591),\"\")","v":""}]
[1587,{"$nulls":3},true,{"$f":"IF(G1592<>\"\",INDIRECT(\"'\"&G1592&\"'!\"&H1592),\"\")","v":""}]
[1588,{"$nulls":3},true,{"$f":"IF(G1593<>\"\",INDIRECT(\"'\"&G1593&\"'!\"&H1593),\"\")","v":""}]
[1589,{"$nulls":3},true,{"$f":"IF(G1594<>\"\",INDIRECT(\"'\"&G1594&\"'!\"&H1594),\"\")","v":""}]
[1590,{"$nulls":3},true,{"$f":"IF(G1595<>\"\",INDIRECT(\"'\"&G1595&\"'!\"&H1595),\"\")","v":""}]
[1591,{"$nulls":3},true,{"$f":"IF(G1596<>\"\",INDIRECT(\"'\"&G1596&\"'!\"&H1596),\"\")","v":""}]
[1592,{"$nulls":3},true,{"$f":"IF(G1597<>\"\",INDIRECT(\"'\"&G1597&\"'!\"&H1597),\"\")","v":""}]
[1593,{"$nulls":3},true,{"$f":"IF(G1598<>\"\",INDIRECT(\"'\"&G1598&\"'!\"&H1598),\"\")","v":""}]
[1594,{"$nulls":3},true,{"$f":"IF(G1599<>\"\",INDIRECT(\"'\"&G1599&\"'!\"&H1599),\"\")","v":""}]
[1595,{"$nulls":3},true,{"$f":"IF(G1600<>\"\",INDIRECT(\"'\"&G1600&\"'!\"&H1600),\"\")","v":""}]
[1596,{"$nulls":3},true,{"$f":"IF(G1601<>\"\",INDIRECT(\"'\"&G1601&\"'!\"&H1601),\"\")","v":""}]
[1597,{"$f":"'BudgetSum 2-4'!E81","v":3815750},-3814153,null,{"$f":"F1602=B1602","v":true},{"$f":"IF(G1602<>\"\",INDIRECT(\"'\"&G1602&\"'!\"&H1602),\"\")","v":3815750},"BudgetSum 2-4","E81"]
[1598,{"$f":"'BudgetSum 2-4'!F3","v":969},629,null,true,{"$f":"IF(G1603<>\"\",INDIRECT(\"'\"&G1603&\"'!\"&H1603),\"\")","v":969},"BudgetSum 2-4","F3"]
[1599,{"$nulls":3},true,{"$f":"IF(G1604<>\"\",INDIRECT(\"'\"&G1604&\"'!\"&H1604),\"\")","v":""}]
[1600,{"$nulls":3},true,{"$f":"IF(G1605<>\"\",INDIRECT(\"'\"&G1605&\"'!\"&H1605),\"\")","v":""}]
[1601,{"$nulls":3},true,{"$f":"IF(G1606<>\"\",INDIRECT(\"'\"&G1606&\"'!\"&H1606),\"\")","v":""}]
[1602,{"$nulls":3},true,{"$f":"IF(G1607<>\"\",INDIRECT(\"'\"&G1607&\"'!\"&H1607),\"\")","v":""}]
[1603,{"$nulls":3},true,{"$f":"IF(G1608<>\"\",INDIRECT(\"'\"&G1608&\"'!\"&H1608),\"\")","v":""}]
[1604,{"$nulls":3},true,{"$f":"IF(G1609<>\"\",INDIRECT(\"'\"&G1609&\"'!\"&H1609),\"\")","v":""}]
[1605,{"$nulls":3},true,{"$f":"IF(G1610<>\"\",INDIRECT(\"'\"&G1610&\"'!\"&H1610),\"\")","v":""}]
[1606,{"$nulls":3},true,{"$f":"IF(G1611<>\"\",INDIRECT(\"'\"&G1611&\"'!\"&H1611),\"\")","v":""}]
[1607,{"$nulls":3},true,{"$f":"IF(G1612<>\"\",INDIRECT(\"'\"&G1612&\"'!\"&H1612),\"\")","v":""}]
[1608,{"$nulls":3},true,{"$f":"IF(G1613<>\"\",INDIRECT(\"'\"&G1613&\"'!\"&H1613),\"\")","v":""}]
[1609,{"$nulls":3},true,{"$f":"IF(G1614<>\"\",INDIRECT(\"'\"&G1614&\"'!\"&H1614),\"\")","v":""}]
[1610,{"$nulls":3},true,{"$f":"IF(G1615<>\"\",INDIRECT(\"'\"&G1615&\"'!\"&H1615),\"\")","v":""}]
[1611,{"$f":"'BudgetSum 2-4'!F81","v":60969},{"$f":"A1616-B1616","v":-59358},null,true,{"$f":"IF(G1616<>\"\",INDIRECT(\"'\"&G1616&\"'!\"&H1616),\"\")","v":60969},"BudgetSum 2-4","F81"]
[1612,{"$f":"'BudgetSum 2-4'!G3","v":12048},-10436,null,true,{"$f":"IF(G1617<>\"\",INDIRECT(\"'\"&G1617&\"'!\"&H1617),\"\")","v":12048},"BudgetSum 2-4","G3"]
[1613,{"$nulls":3},true,{"$f":"IF(G1618<>\"\",INDIRECT(\"'\"&G1618&\"'!\"&H1618),\"\")","v":""}]
[1614,{"$nulls":3},true,{"$f":"IF(G1619<>\"\",INDIRECT(\"'\"&G1619&\"'!\"&H1619),\"\")","v":""}]
[1615,{"$nulls":3},true,{"$f":"IF(G1620<>\"\",INDIRECT(\"'\"&G1620&\"'!\"&H1620),\"\")","v":""}]
[1616,{"$nulls":3},true,{"$f":"IF(G1621<>\"\",INDIRECT(\"'\"&G1621&\"'!\"&H1621),\"\")","v":""}]
[1617,{"$nulls":3},true,{"$f":"IF(G1622<>\"\",INDIRECT(\"'\"&G1622&\"'!\"&H1622),\"\")","v":""}]
[1618,{"$nulls":3},true,{"$f":"IF(G1623<>\"\",INDIRECT(\"'\"&G1623&\"'!\"&H1623),\"\")","v":""}]
[1619,{"$nulls":3},true,{"$f":"IF(G1624<>\"\",INDIRECT(\"'\"&G1624&\"'!\"&H1624),\"\")","v":""}]
[1620,{"$nulls":3},true,{"$f":"IF(G1625<>\"\",INDIRECT(\"'\"&G1625&\"'!\"&H1625),\"\")","v":""}]
[1621,{"$nulls":3},true,{"$f":"IF(G1626<>\"\",INDIRECT(\"'\"&G1626&\"'!\"&H1626),\"\")","v":""}]
[1622,{"$nulls":3},true,{"$f":"IF(G1627<>\"\",INDIRECT(\"'\"&G1627&\"'!\"&H1627),\"\")","v":""}]
[1623,{"$nulls":3},true,{"$f":"IF(G1628<>\"\",INDIRECT(\"'\"&G1628&\"'!\"&H1628),\"\")","v":""}]
[1624,{"$nulls":3},true,{"$f":"IF(G1629<>\"\",INDIRECT(\"'\"&G1629&\"'!\"&H1629),\"\")","v":""}]
[1625,{"$f":"'BudgetSum 2-4'!G81","v":16148},-14523,null,true,{"$f":"IF(G1630<>\"\",INDIRECT(\"'\"&G1630&\"'!\"&H1630),\"\")","v":16148},"BudgetSum 2-4","G81"]
[1626,{"$f":"'BudgetSum 2-4'!H3","v":0},1626,null,true,{"$f":"IF(G1631<>\"\",INDIRECT(\"'\"&G1631&\"'!\"&H1631),\"\")","v":0},"BudgetSum 2-4","H3"]
[1627,{"$nulls":3},true,{"$f":"IF(G1632<>\"\",INDIRECT(\"'\"&G1632&\"'!\"&H1632),\"\")","v":""}]
[1628,{"$nulls":3},true,{"$f":"IF(G1633<>\"\",INDIRECT(\"'\"&G1633&\"'!\"&H1633),\"\")","v":""}]
[1629,{"$nulls":3},true,{"$f":"IF(G1634<>\"\",INDIRECT(\"'\"&G1634&\"'!\"&H1634),\"\")","v":""}]
[1630,{"$nulls":3},true,{"$f":"IF(G1635<>\"\",INDIRECT(\"'\"&G1635&\"'!\"&H1635),\"\")","v":""}]
[1631,{"$nulls":3},true,{"$f":"IF(G1636<>\"\",INDIRECT(\"'\"&G1636&\"'!\"&H1636),\"\")","v":""}]
[1632,{"$nulls":3},true,{"$f":"IF(G1637<>\"\",INDIRECT(\"'\"&G1637&\"'!\"&H1637),\"\")","v":""}]
[1633,{"$nulls":3},true,{"$f":"IF(G1638<>\"\",INDIRECT(\"'\"&G1638&\"'!\"&H1638),\"\")","v":""}]
[1634,{"$nulls":3},true,{"$f":"IF(G1639<>\"\",INDIRECT(\"'\"&G1639&\"'!\"&H1639),\"\")","v":""}]
[1635,{"$nulls":3},true,{"$f":"IF(G1640<>\"\",INDIRECT(\"'\"&G1640&\"'!\"&H1640),\"\")","v":""}]
[1636,{"$nulls":3},true,{"$f":"IF(G1641<>\"\",INDIRECT(\"'\"&G1641&\"'!\"&H1641),\"\")","v":""}]
[1637,{"$nulls":3},true,{"$f":"IF(G1642<>\"\",INDIRECT(\"'\"&G1642&\"'!\"&H1642),\"\")","v":""}]
[1638,{"$nulls":3},true,{"$f":"IF(G1643<>\"\",INDIRECT(\"'\"&G1643&\"'!\"&H1643),\"\")","v":""}]
[1639,{"$f":"'BudgetSum 2-4'!H81","v":0},1639,null,true,{"$f":"IF(G1644<>\"\",INDIRECT(\"'\"&G1644&\"'!\"&H1644),\"\")","v":0},"BudgetSum 2-4","H81"]
[1640,{"$nulls":3},true,{"$f":"IF(G1645<>\"\",INDIRECT(\"'\"&G1645&\"'!\"&H1645),\"\")","v":""}]
[1641,{"$nulls":3},true,{"$f":"IF(G1646<>\"\",INDIRECT(\"'\"&G1646&\"'!\"&H1646),\"\")","v":""}]
[1642,{"$nulls":3},true,{"$f":"IF(G1647<>\"\",INDIRECT(\"'\"&G1647&\"'!\"&H1647),\"\")","v":""}]
[1643,{"$nulls":3},true,{"$f":"IF(G1648<>\"\",INDIRECT(\"'\"&G1648&\"'!\"&H1648),\"\")","v":""}]
[1644,{"$nulls":3},true,{"$f":"IF(G1649<>\"\",INDIRECT(\"'\"&G1649&\"'!\"&H1649),\"\")","v":""}]
[1645,{"$nulls":3},true,{"$f":"IF(G1650<>\"\",INDIRECT(\"'\"&G1650&\"'!\"&H1650),\"\")","v":""}]
[1646,{"$nulls":3},true,{"$f":"IF(G1651<>\"\",INDIRECT(\"'\"&G1651&\"'!\"&H1651),\"\")","v":""}]
[1647,{"$nulls":3},true,{"$f":"IF(G1652<>\"\",INDIRECT(\"'\"&G1652&\"'!\"&H1652),\"\")","v":""}]
[1648,{"$nulls":3},true,{"$f":"IF(G1653<>\"\",INDIRECT(\"'\"&G1653&\"'!\"&H1653),\"\")","v":""}]
[1649,{"$nulls":3},true,{"$f":"IF(G1654<>\"\",INDIRECT(\"'\"&G1654&\"'!\"&H1654),\"\")","v":""}]
[1650,{"$nulls":3},true,{"$f":"IF(G1655<>\"\",INDIRECT(\"'\"&G1655&\"'!\"&H1655),\"\")","v":""}]
[1651,{"$nulls":3},true,{"$f":"IF(G1656<>\"\",INDIRECT(\"'\"&G1656&\"'!\"&H1656),\"\")","v":""}]
[1652,{"$nulls":3},true,{"$f":"IF(G1657<>\"\",INDIRECT(\"'\"&G1657&\"'!\"&H1657),\"\")","v":""}]
[1653,{"$nulls":3},true,{"$f":"IF(G1658<>\"\",INDIRECT(\"'\"&G1658&\"'!\"&H1658),\"\")","v":""}]
[1654,null,null,"Closed 2008",true,{"$f":"IF(G1659<>\"\",INDIRECT(\"'\"&G1659&\"'!\"&H1659),\"\")","v":""}]
[1655,{"$nulls":3},true,{"$f":"IF(G1660<>\"\",INDIRECT(\"'\"&G1660&\"'!\"&H1660),\"\")","v":""}]
[1656,{"$nulls":3},true,{"$f":"IF(G1661<>\"\",INDIRECT(\"'\"&G1661&\"'!\"&H1661),\"\")","v":""}]
[1657,{"$nulls":3},true,{"$f":"IF(G1662<>\"\",INDIRECT(\"'\"&G1662&\"'!\"&H1662),\"\")","v":""}]
[1658,{"$nulls":3},true,{"$f":"IF(G1663<>\"\",INDIRECT(\"'\"&G1663&\"'!\"&H1663),\"\")","v":""}]
[1659,{"$nulls":3},true,{"$f":"IF(G1664<>\"\",INDIRECT(\"'\"&G1664&\"'!\"&H1664),\"\")","v":""}]
[1660,{"$nulls":3},true,{"$f":"IF(G1665<>\"\",INDIRECT(\"'\"&G1665&\"'!\"&H1665),\"\")","v":""}]
[1661,{"$nulls":3},{"$f":"F1666=B1666","v":true},{"$f":"IF(G1666<>\"\",INDIRECT(\"'\"&G1666&\"'!\"&H1666),\"\")","v":""}]
[1662,{"$nulls":3},true,{"$f":"IF(G1667<>\"\",INDIRECT(\"'\"&G1667&\"'!\"&H1667),\"\")","v":""}]
[1663,{"$nulls":3},true,{"$f":"IF(G1668<>\"\",INDIRECT(\"'\"&G1668&\"'!\"&H1668),\"\")","v":""}]
[1664,{"$nulls":3},true,{"$f":"IF(G1669<>\"\",INDIRECT(\"'\"&G1669&\"'!\"&H1669),\"\")","v":""}]
[1665,{"$nulls":3},true,{"$f":"IF(G1670<>\"\",INDIRECT(\"'\"&G1670&\"'!\"&H1670),\"\")","v":""}]
[1666,{"$nulls":3},true,{"$f":"IF(G1671<>\"\",INDIRECT(\"'\"&G1671&\"'!\"&H1671),\"\")","v":""}]
[1667,null,null,"Closed 2008",true,{"$f":"IF(G1672<>\"\",INDIRECT(\"'\"&G1672&\"'!\"&H1672),\"\")","v":""}]
[1668,{"$nulls":3},true,{"$f":"IF(G1673<>\"\",INDIRECT(\"'\"&G1673&\"'!\"&H1673),\"\")","v":""}]
[1669,{"$nulls":3},true,{"$f":"IF(G1674<>\"\",INDIRECT(\"'\"&G1674&\"'!\"&H1674),\"\")","v":""}]
[1670,{"$nulls":3},true,{"$f":"IF(G1675<>\"\",INDIRECT(\"'\"&G1675&\"'!\"&H1675),\"\")","v":""}]
[1671,{"$nulls":3},true,{"$f":"IF(G1676<>\"\",INDIRECT(\"'\"&G1676&\"'!\"&H1676),\"\")","v":""}]
[1672,{"$nulls":3},true,{"$f":"IF(G1677<>\"\",INDIRECT(\"'\"&G1677&\"'!\"&H1677),\"\")","v":""}]
[1673,{"$nulls":3},true,{"$f":"IF(G1678<>\"\",INDIRECT(\"'\"&G1678&\"'!\"&H1678),\"\")","v":""}]
[1674,{"$nulls":3},true,{"$f":"IF(G1679<>\"\",INDIRECT(\"'\"&G1679&\"'!\"&H1679),\"\")","v":""}]
[1675,{"$nulls":3},true,{"$f":"IF(G1680<>\"\",INDIRECT(\"'\"&G1680&\"'!\"&H1680),\"\")","v":""}]
[1676,{"$nulls":3},true,{"$f":"IF(G1681<>\"\",INDIRECT(\"'\"&G1681&\"'!\"&H1681),\"\")","v":""}]
[1677,{"$nulls":3},true,{"$f":"IF(G1682<>\"\",INDIRECT(\"'\"&G1682&\"'!\"&H1682),\"\")","v":""}]
[1678,{"$nulls":3},true,{"$f":"IF(G1683<>\"\",INDIRECT(\"'\"&G1683&\"'!\"&H1683),\"\")","v":""}]
[1679,{"$nulls":3},true,{"$f":"IF(G1684<>\"\",INDIRECT(\"'\"&G1684&\"'!\"&H1684),\"\")","v":""}]
[1680,{"$nulls":3},true,{"$f":"IF(G1685<>\"\",INDIRECT(\"'\"&G1685&\"'!\"&H1685),\"\")","v":""}]
[1681,{"$nulls":3},true,{"$f":"IF(G1686<>\"\",INDIRECT(\"'\"&G1686&\"'!\"&H1686),\"\")","v":""}]
[1682,{"$nulls":3},true,{"$f":"IF(G1687<>\"\",INDIRECT(\"'\"&G1687&\"'!\"&H1687),\"\")","v":""}]
[1683,{"$nulls":3},true,{"$f":"IF(G1688<>\"\",INDIRECT(\"'\"&G1688&\"'!\"&H1688),\"\")","v":""}]
[1684,{"$nulls":3},true,{"$f":"IF(G1689<>\"\",INDIRECT(\"'\"&G1689&\"'!\"&H1689),\"\")","v":""}]
[1685,{"$nulls":3},true,{"$f":"IF(G1690<>\"\",INDIRECT(\"'\"&G1690&\"'!\"&H1690),\"\")","v":""}]
[1686,{"$nulls":3},true,{"$f":"IF(G1691<>\"\",INDIRECT(\"'\"&G1691&\"'!\"&H1691),\"\")","v":""}]
[1687,{"$nulls":3},true,{"$f":"IF(G1692<>\"\",INDIRECT(\"'\"&G1692&\"'!\"&H1692),\"\")","v":""}]
[1688,{"$nulls":3},true,{"$f":"IF(G1693<>\"\",INDIRECT(\"'\"&G1693&\"'!\"&H1693),\"\")","v":""}]
[1689,{"$nulls":3},true,{"$f":"IF(G1694<>\"\",INDIRECT(\"'\"&G1694&\"'!\"&H1694),\"\")","v":""}]
[1690,{"$nulls":3},true,{"$f":"IF(G1695<>\"\",INDIRECT(\"'\"&G1695&\"'!\"&H1695),\"\")","v":""}]
[1691,{"$nulls":3},true,{"$f":"IF(G1696<>\"\",INDIRECT(\"'\"&G1696&\"'!\"&H1696),\"\")","v":""}]
[1692,{"$nulls":3},true,{"$f":"IF(G1697<>\"\",INDIRECT(\"'\"&G1697&\"'!\"&H1697),\"\")","v":""}]
[1693,{"$nulls":3},true,{"$f":"IF(G1698<>\"\",INDIRECT(\"'\"&G1698&\"'!\"&H1698),\"\")","v":""}]
[1694,{"$nulls":3},true,{"$f":"IF(G1699<>\"\",INDIRECT(\"'\"&G1699&\"'!\"&H1699),\"\")","v":""}]
[1695,{"$nulls":3},true,{"$f":"IF(G1700<>\"\",INDIRECT(\"'\"&G1700&\"'!\"&H1700),\"\")","v":""}]
[1696,{"$nulls":3},true,{"$f":"IF(G1701<>\"\",INDIRECT(\"'\"&G1701&\"'!\"&H1701),\"\")","v":""}]
[1697,{"$nulls":3},true,{"$f":"IF(G1702<>\"\",INDIRECT(\"'\"&G1702&\"'!\"&H1702),\"\")","v":""}]
[1698,{"$nulls":3},true,{"$f":"IF(G1703<>\"\",INDIRECT(\"'\"&G1703&\"'!\"&H1703),\"\")","v":""}]
[1699,{"$nulls":3},true,{"$f":"IF(G1704<>\"\",INDIRECT(\"'\"&G1704&\"'!\"&H1704),\"\")","v":""}]
[1700,{"$nulls":3},true,{"$f":"IF(G1705<>\"\",INDIRECT(\"'\"&G1705&\"'!\"&H1705),\"\")","v":""}]
[1701,{"$nulls":3},true,{"$f":"IF(G1706<>\"\",INDIRECT(\"'\"&G1706&\"'!\"&H1706),\"\")","v":""}]
[1702,{"$nulls":3},true,{"$f":"IF(G1707<>\"\",INDIRECT(\"'\"&G1707&\"'!\"&H1707),\"\")","v":""}]
[1703,{"$nulls":3},true,{"$f":"IF(G1708<>\"\",INDIRECT(\"'\"&G1708&\"'!\"&H1708),\"\")","v":""}]
[1704,{"$nulls":3},true,{"$f":"IF(G1709<>\"\",INDIRECT(\"'\"&G1709&\"'!\"&H1709),\"\")","v":""}]
[1705,{"$nulls":3},true,{"$f":"IF(G1710<>\"\",INDIRECT(\"'\"&G1710&\"'!\"&H1710),\"\")","v":""}]
[1706,{"$nulls":3},true,{"$f":"IF(G1711<>\"\",INDIRECT(\"'\"&G1711&\"'!\"&H1711),\"\")","v":""}]
[1707,{"$nulls":3},true,{"$f":"IF(G1712<>\"\",INDIRECT(\"'\"&G1712&\"'!\"&H1712),\"\")","v":""}]
[1708,{"$nulls":3},true,{"$f":"IF(G1713<>\"\",INDIRECT(\"'\"&G1713&\"'!\"&H1713),\"\")","v":""}]
[1709,{"$nulls":3},true,{"$f":"IF(G1714<>\"\",INDIRECT(\"'\"&G1714&\"'!\"&H1714),\"\")","v":""}]
[1710,{"$nulls":3},true,{"$f":"IF(G1715<>\"\",INDIRECT(\"'\"&G1715&\"'!\"&H1715),\"\")","v":""}]
[1711,{"$nulls":3},true,{"$f":"IF(G1716<>\"\",INDIRECT(\"'\"&G1716&\"'!\"&H1716),\"\")","v":""}]
[1712,{"$nulls":3},true,{"$f":"IF(G1717<>\"\",INDIRECT(\"'\"&G1717&\"'!\"&H1717),\"\")","v":""}]
[1713,{"$nulls":3},true,{"$f":"IF(G1718<>\"\",INDIRECT(\"'\"&G1718&\"'!\"&H1718),\"\")","v":""}]
[1714,{"$nulls":3},true,{"$f":"IF(G1719<>\"\",INDIRECT(\"'\"&G1719&\"'!\"&H1719),\"\")","v":""}]
[1715,{"$nulls":3},true,{"$f":"IF(G1720<>\"\",INDIRECT(\"'\"&G1720&\"'!\"&H1720),\"\")","v":""}]
[1716,{"$nulls":3},true,{"$f":"IF(G1721<>\"\",INDIRECT(\"'\"&G1721&\"'!\"&H1721),\"\")","v":""}]
[1717,{"$nulls":3},true,{"$f":"IF(G1722<>\"\",INDIRECT(\"'\"&G1722&\"'!\"&H1722),\"\")","v":""}]
[1718,{"$nulls":3},true,{"$f":"IF(G1723<>\"\",INDIRECT(\"'\"&G1723&\"'!\"&H1723),\"\")","v":""}]
[1719,{"$nulls":3},true,{"$f":"IF(G1724<>\"\",INDIRECT(\"'\"&G1724&\"'!\"&H1724),\"\")","v":""}]
[1720,{"$nulls":3},true,{"$f":"IF(G1725<>\"\",INDIRECT(\"'\"&G1725&\"'!\"&H1725),\"\")","v":""}]
[1721,{"$nulls":3},true,{"$f":"IF(G1726<>\"\",INDIRECT(\"'\"&G1726&\"'!\"&H1726),\"\")","v":""}]
[1722,{"$nulls":3},true,{"$f":"IF(G1727<>\"\",INDIRECT(\"'\"&G1727&\"'!\"&H1727),\"\")","v":""}]
[1723,{"$nulls":3},true,{"$f":"IF(G1728<>\"\",INDIRECT(\"'\"&G1728&\"'!\"&H1728),\"\")","v":""}]
[1724,{"$nulls":3},true,{"$f":"IF(G1729<>\"\",INDIRECT(\"'\"&G1729&\"'!\"&H1729),\"\")","v":""}]
[1725,{"$nulls":3},{"$f":"F1730=B1730","v":true},{"$f":"IF(G1730<>\"\",INDIRECT(\"'\"&G1730&\"'!\"&H1730),\"\")","v":""}]
[1726,{"$nulls":3},true,{"$f":"IF(G1731<>\"\",INDIRECT(\"'\"&G1731&\"'!\"&H1731),\"\")","v":""}]
[1727,{"$nulls":3},true,{"$f":"IF(G1732<>\"\",INDIRECT(\"'\"&G1732&\"'!\"&H1732),\"\")","v":""}]
[1728,{"$nulls":3},true,{"$f":"IF(G1733<>\"\",INDIRECT(\"'\"&G1733&\"'!\"&H1733),\"\")","v":""}]
[1729,{"$nulls":3},true,{"$f":"IF(G1734<>\"\",INDIRECT(\"'\"&G1734&\"'!\"&H1734),\"\")","v":""}]
[1730,{"$nulls":3},true,{"$f":"IF(G1735<>\"\",INDIRECT(\"'\"&G1735&\"'!\"&H1735),\"\")","v":""}]
[1731,{"$nulls":3},true,{"$f":"IF(G1736<>\"\",INDIRECT(\"'\"&G1736&\"'!\"&H1736),\"\")","v":""}]
[1732,{"$nulls":3},true,{"$f":"IF(G1737<>\"\",INDIRECT(\"'\"&G1737&\"'!\"&H1737),\"\")","v":""}]
[1733,{"$nulls":3},true,{"$f":"IF(G1738<>\"\",INDIRECT(\"'\"&G1738&\"'!\"&H1738),\"\")","v":""}]
[1734,{"$nulls":3},true,{"$f":"IF(G1739<>\"\",INDIRECT(\"'\"&G1739&\"'!\"&H1739),\"\")","v":""}]
[1735,{"$nulls":3},true,{"$f":"IF(G1740<>\"\",INDIRECT(\"'\"&G1740&\"'!\"&H1740),\"\")","v":""}]
[1736,{"$nulls":3},true,{"$f":"IF(G1741<>\"\",INDIRECT(\"'\"&G1741&\"'!\"&H1741),\"\")","v":""}]
[1737,{"$nulls":3},true,{"$f":"IF(G1742<>\"\",INDIRECT(\"'\"&G1742&\"'!\"&H1742),\"\")","v":""}]
[1738,{"$nulls":3},true,{"$f":"IF(G1743<>\"\",INDIRECT(\"'\"&G1743&\"'!\"&H1743),\"\")","v":""}]
[1739,{"$nulls":3},true,{"$f":"IF(G1744<>\"\",INDIRECT(\"'\"&G1744&\"'!\"&H1744),\"\")","v":""}]
[1740,{"$nulls":3},true,{"$f":"IF(G1745<>\"\",INDIRECT(\"'\"&G1745&\"'!\"&H1745),\"\")","v":""}]
[1741,{"$nulls":3},true,{"$f":"IF(G1746<>\"\",INDIRECT(\"'\"&G1746&\"'!\"&H1746),\"\")","v":""}]
[1742,{"$nulls":3},true,{"$f":"IF(G1747<>\"\",INDIRECT(\"'\"&G1747&\"'!\"&H1747),\"\")","v":""}]
[1743,{"$nulls":3},true,{"$f":"IF(G1748<>\"\",INDIRECT(\"'\"&G1748&\"'!\"&H1748),\"\")","v":""}]
[1744,{"$nulls":3},true,{"$f":"IF(G1749<>\"\",INDIRECT(\"'\"&G1749&\"'!\"&H1749),\"\")","v":""}]
[1745,{"$nulls":3},true,{"$f":"IF(G1750<>\"\",INDIRECT(\"'\"&G1750&\"'!\"&H1750),\"\")","v":""}]
[1746,{"$nulls":3},true,{"$f":"IF(G1751<>\"\",INDIRECT(\"'\"&G1751&\"'!\"&H1751),\"\")","v":""}]
[1747,{"$nulls":3},true,{"$f":"IF(G1752<>\"\",INDIRECT(\"'\"&G1752&\"'!\"&H1752),\"\")","v":""}]
[1748,{"$nulls":3},true,{"$f":"IF(G1753<>\"\",INDIRECT(\"'\"&G1753&\"'!\"&H1753),\"\")","v":""}]
[1749,{"$nulls":3},true,{"$f":"IF(G1754<>\"\",INDIRECT(\"'\"&G1754&\"'!\"&H1754),\"\")","v":""}]
[1750,{"$nulls":3},true,{"$f":"IF(G1755<>\"\",INDIRECT(\"'\"&G1755&\"'!\"&H1755),\"\")","v":""}]
[1751,{"$nulls":3},true,{"$f":"IF(G1756<>\"\",INDIRECT(\"'\"&G1756&\"'!\"&H1756),\"\")","v":""}]
[1752,{"$nulls":3},true,{"$f":"IF(G1757<>\"\",INDIRECT(\"'\"&G1757&\"'!\"&H1757),\"\")","v":""}]
[1753,{"$nulls":3},true,{"$f":"IF(G1758<>\"\",INDIRECT(\"'\"&G1758&\"'!\"&H1758),\"\")","v":""}]
[1754,{"$nulls":3},true,{"$f":"IF(G1759<>\"\",INDIRECT(\"'\"&G1759&\"'!\"&H1759),\"\")","v":""}]
[1755,{"$nulls":3},true,{"$f":"IF(G1760<>\"\",INDIRECT(\"'\"&G1760&\"'!\"&H1760),\"\")","v":""}]
[1756,{"$nulls":3},true,{"$f":"IF(G1761<>\"\",INDIRECT(\"'\"&G1761&\"'!\"&H1761),\"\")","v":""}]
[1757,{"$nulls":3},true,{"$f":"IF(G1762<>\"\",INDIRECT(\"'\"&G1762&\"'!\"&H1762),\"\")","v":""}]
[1758,{"$nulls":3},true,{"$f":"IF(G1763<>\"\",INDIRECT(\"'\"&G1763&\"'!\"&H1763),\"\")","v":""}]
[1759,{"$nulls":3},true,{"$f":"IF(G1764<>\"\",INDIRECT(\"'\"&G1764&\"'!\"&H1764),\"\")","v":""}]
[1760,{"$nulls":3},true,{"$f":"IF(G1765<>\"\",INDIRECT(\"'\"&G1765&\"'!\"&H1765),\"\")","v":""}]
[1761,{"$nulls":3},true,{"$f":"IF(G1766<>\"\",INDIRECT(\"'\"&G1766&\"'!\"&H1766),\"\")","v":""}]
[1762,{"$nulls":3},true,{"$f":"IF(G1767<>\"\",INDIRECT(\"'\"&G1767&\"'!\"&H1767),\"\")","v":""}]
[1763,{"$nulls":3},true,{"$f":"IF(G1768<>\"\",INDIRECT(\"'\"&G1768&\"'!\"&H1768),\"\")","v":""}]
[1764,{"$nulls":3},true,{"$f":"IF(G1769<>\"\",INDIRECT(\"'\"&G1769&\"'!\"&H1769),\"\")","v":""}]
[1765,{"$nulls":3},true,{"$f":"IF(G1770<>\"\",INDIRECT(\"'\"&G1770&\"'!\"&H1770),\"\")","v":""}]
[1766,{"$nulls":3},true,{"$f":"IF(G1771<>\"\",INDIRECT(\"'\"&G1771&\"'!\"&H1771),\"\")","v":""}]
[1767,{"$nulls":3},true,{"$f":"IF(G1772<>\"\",INDIRECT(\"'\"&G1772&\"'!\"&H1772),\"\")","v":""}]
[1768,{"$nulls":3},true,{"$f":"IF(G1773<>\"\",INDIRECT(\"'\"&G1773&\"'!\"&H1773),\"\")","v":""}]
[1769,{"$nulls":3},true,{"$f":"IF(G1774<>\"\",INDIRECT(\"'\"&G1774&\"'!\"&H1774),\"\")","v":""}]
[1770,{"$nulls":3},true,{"$f":"IF(G1775<>\"\",INDIRECT(\"'\"&G1775&\"'!\"&H1775),\"\")","v":""}]
[1771,{"$nulls":3},true,{"$f":"IF(G1776<>\"\",INDIRECT(\"'\"&G1776&\"'!\"&H1776),\"\")","v":""}]
[1772,{"$nulls":3},true,{"$f":"IF(G1777<>\"\",INDIRECT(\"'\"&G1777&\"'!\"&H1777),\"\")","v":""}]
[1773,{"$nulls":3},true,{"$f":"IF(G1778<>\"\",INDIRECT(\"'\"&G1778&\"'!\"&H1778),\"\")","v":""}]
[1774,{"$nulls":3},true,{"$f":"IF(G1779<>\"\",INDIRECT(\"'\"&G1779&\"'!\"&H1779),\"\")","v":""}]
[1775,{"$nulls":3},true,{"$f":"IF(G1780<>\"\",INDIRECT(\"'\"&G1780&\"'!\"&H1780),\"\")","v":""}]
[1776,{"$nulls":3},true,{"$f":"IF(G1781<>\"\",INDIRECT(\"'\"&G1781&\"'!\"&H1781),\"\")","v":""}]
[1777,{"$nulls":3},true,{"$f":"IF(G1782<>\"\",INDIRECT(\"'\"&G1782&\"'!\"&H1782),\"\")","v":""}]
[1778,{"$nulls":3},true,{"$f":"IF(G1783<>\"\",INDIRECT(\"'\"&G1783&\"'!\"&H1783),\"\")","v":""}]
[1779,{"$nulls":3},true,{"$f":"IF(G1784<>\"\",INDIRECT(\"'\"&G1784&\"'!\"&H1784),\"\")","v":""}]
[1780,{"$nulls":3},true,{"$f":"IF(G1785<>\"\",INDIRECT(\"'\"&G1785&\"'!\"&H1785),\"\")","v":""}]
[1781,{"$nulls":3},true,{"$f":"IF(G1786<>\"\",INDIRECT(\"'\"&G1786&\"'!\"&H1786),\"\")","v":""}]
[1782,{"$nulls":3},true,{"$f":"IF(G1787<>\"\",INDIRECT(\"'\"&G1787&\"'!\"&H1787),\"\")","v":""}]
[1783,{"$nulls":3},true,{"$f":"IF(G1788<>\"\",INDIRECT(\"'\"&G1788&\"'!\"&H1788),\"\")","v":""}]
[1784,{"$nulls":3},true,{"$f":"IF(G1789<>\"\",INDIRECT(\"'\"&G1789&\"'!\"&H1789),\"\")","v":""}]
[1785,{"$nulls":3},true,{"$f":"IF(G1790<>\"\",INDIRECT(\"'\"&G1790&\"'!\"&H1790),\"\")","v":""}]
[1786,{"$nulls":3},true,{"$f":"IF(G1791<>\"\",INDIRECT(\"'\"&G1791&\"'!\"&H1791),\"\")","v":""}]
[1787,{"$nulls":3},true,{"$f":"IF(G1792<>\"\",INDIRECT(\"'\"&G1792&\"'!\"&H1792),\"\")","v":""}]
[1788,{"$nulls":3},true,{"$f":"IF(G1793<>\"\",INDIRECT(\"'\"&G1793&\"'!\"&H1793),\"\")","v":""}]
[1789,{"$nulls":3},{"$f":"F1794=B1794","v":true},{"$f":"IF(G1794<>\"\",INDIRECT(\"'\"&G1794&\"'!\"&H1794),\"\")","v":""}]
[1790,{"$nulls":3},true,{"$f":"IF(G1795<>\"\",INDIRECT(\"'\"&G1795&\"'!\"&H1795),\"\")","v":""}]
[1791,{"$nulls":3},true,{"$f":"IF(G1796<>\"\",INDIRECT(\"'\"&G1796&\"'!\"&H1796),\"\")","v":""}]
[1792,{"$nulls":3},true,{"$f":"IF(G1797<>\"\",INDIRECT(\"'\"&G1797&\"'!\"&H1797),\"\")","v":""}]
[1793,{"$nulls":3},true,{"$f":"IF(G1798<>\"\",INDIRECT(\"'\"&G1798&\"'!\"&H1798),\"\")","v":""}]
[1794,{"$nulls":3},true,{"$f":"IF(G1799<>\"\",INDIRECT(\"'\"&G1799&\"'!\"&H1799),\"\")","v":""}]
[1795,{"$nulls":3},true,{"$f":"IF(G1800<>\"\",INDIRECT(\"'\"&G1800&\"'!\"&H1800),\"\")","v":""}]
[1796,{"$nulls":3},true,{"$f":"IF(G1801<>\"\",INDIRECT(\"'\"&G1801&\"'!\"&H1801),\"\")","v":""}]
[1797,{"$nulls":3},true,{"$f":"IF(G1802<>\"\",INDIRECT(\"'\"&G1802&\"'!\"&H1802),\"\")","v":""}]
[1798,{"$nulls":3},true,{"$f":"IF(G1803<>\"\",INDIRECT(\"'\"&G1803&\"'!\"&H1803),\"\")","v":""}]
[1799,{"$nulls":3},true,{"$f":"IF(G1804<>\"\",INDIRECT(\"'\"&G1804&\"'!\"&H1804),\"\")","v":""}]
[1800,{"$nulls":3},true,{"$f":"IF(G1805<>\"\",INDIRECT(\"'\"&G1805&\"'!\"&H1805),\"\")","v":""}]
[1801,{"$nulls":3},true,{"$f":"IF(G1806<>\"\",INDIRECT(\"'\"&G1806&\"'!\"&H1806),\"\")","v":""}]
[1802,{"$nulls":3},true,{"$f":"IF(G1807<>\"\",INDIRECT(\"'\"&G1807&\"'!\"&H1807),\"\")","v":""}]
[1803,{"$nulls":3},true,{"$f":"IF(G1808<>\"\",INDIRECT(\"'\"&G1808&\"'!\"&H1808),\"\")","v":""}]
[1804,{"$nulls":3},true,{"$f":"IF(G1809<>\"\",INDIRECT(\"'\"&G1809&\"'!\"&H1809),\"\")","v":""}]
[1805,{"$nulls":3},true,{"$f":"IF(G1810<>\"\",INDIRECT(\"'\"&G1810&\"'!\"&H1810),\"\")","v":""}]
[1806,{"$nulls":3},true,{"$f":"IF(G1811<>\"\",INDIRECT(\"'\"&G1811&\"'!\"&H1811),\"\")","v":""}]
[1807,{"$nulls":3},true,{"$f":"IF(G1812<>\"\",INDIRECT(\"'\"&G1812&\"'!\"&H1812),\"\")","v":""}]
[1808,{"$nulls":3},true,{"$f":"IF(G1813<>\"\",INDIRECT(\"'\"&G1813&\"'!\"&H1813),\"\")","v":""}]
[1809,{"$nulls":3},true,{"$f":"IF(G1814<>\"\",INDIRECT(\"'\"&G1814&\"'!\"&H1814),\"\")","v":""}]
[1810,{"$nulls":3},true,{"$f":"IF(G1815<>\"\",INDIRECT(\"'\"&G1815&\"'!\"&H1815),\"\")","v":""}]
[1811,{"$nulls":3},true,{"$f":"IF(G1816<>\"\",INDIRECT(\"'\"&G1816&\"'!\"&H1816),\"\")","v":""}]
[1812,{"$nulls":3},true,{"$f":"IF(G1817<>\"\",INDIRECT(\"'\"&G1817&\"'!\"&H1817),\"\")","v":""}]
[1813,{"$nulls":3},true,{"$f":"IF(G1818<>\"\",INDIRECT(\"'\"&G1818&\"'!\"&H1818),\"\")","v":""}]
[1814,{"$nulls":3},true,{"$f":"IF(G1819<>\"\",INDIRECT(\"'\"&G1819&\"'!\"&H1819),\"\")","v":""}]
[1815,{"$nulls":3},true,{"$f":"IF(G1820<>\"\",INDIRECT(\"'\"&G1820&\"'!\"&H1820),\"\")","v":""}]
[1816,{"$nulls":3},true,{"$f":"IF(G1821<>\"\",INDIRECT(\"'\"&G1821&\"'!\"&H1821),\"\")","v":""}]
[1817,{"$nulls":3},true,{"$f":"IF(G1822<>\"\",INDIRECT(\"'\"&G1822&\"'!\"&H1822),\"\")","v":""}]
[1818,{"$nulls":3},true,{"$f":"IF(G1823<>\"\",INDIRECT(\"'\"&G1823&\"'!\"&H1823),\"\")","v":""}]
[1819,{"$nulls":3},true,{"$f":"IF(G1824<>\"\",INDIRECT(\"'\"&G1824&\"'!\"&H1824),\"\")","v":""}]
[1820,{"$nulls":3},true,{"$f":"IF(G1825<>\"\",INDIRECT(\"'\"&G1825&\"'!\"&H1825),\"\")","v":""}]
[1821,{"$nulls":3},true,{"$f":"IF(G1826<>\"\",INDIRECT(\"'\"&G1826&\"'!\"&H1826),\"\")","v":""}]
[1822,{"$nulls":3},true,{"$f":"IF(G1827<>\"\",INDIRECT(\"'\"&G1827&\"'!\"&H1827),\"\")","v":""}]
[1823,{"$nulls":3},true,{"$f":"IF(G1828<>\"\",INDIRECT(\"'\"&G1828&\"'!\"&H1828),\"\")","v":""}]
[1824,{"$nulls":3},true,{"$f":"IF(G1829<>\"\",INDIRECT(\"'\"&G1829&\"'!\"&H1829),\"\")","v":""}]
[1825,{"$nulls":3},true,{"$f":"IF(G1830<>\"\",INDIRECT(\"'\"&G1830&\"'!\"&H1830),\"\")","v":""}]
[1826,{"$nulls":3},true,{"$f":"IF(G1831<>\"\",INDIRECT(\"'\"&G1831&\"'!\"&H1831),\"\")","v":""}]
[1827,{"$nulls":3},true,{"$f":"IF(G1832<>\"\",INDIRECT(\"'\"&G1832&\"'!\"&H1832),\"\")","v":""}]
[1828,{"$nulls":3},true,{"$f":"IF(G1833<>\"\",INDIRECT(\"'\"&G1833&\"'!\"&H1833),\"\")","v":""}]
[1829,{"$nulls":3},true,{"$f":"IF(G1834<>\"\",INDIRECT(\"'\"&G1834&\"'!\"&H1834),\"\")","v":""}]
[1830,{"$nulls":3},true,{"$f":"IF(G1835<>\"\",INDIRECT(\"'\"&G1835&\"'!\"&H1835),\"\")","v":""}]
[1831,{"$nulls":3},true,{"$f":"IF(G1836<>\"\",INDIRECT(\"'\"&G1836&\"'!\"&H1836),\"\")","v":""}]
[1832,{"$nulls":3},true,{"$f":"IF(G1837<>\"\",INDIRECT(\"'\"&G1837&\"'!\"&H1837),\"\")","v":""}]
[1833,{"$nulls":3},true,{"$f":"IF(G1838<>\"\",INDIRECT(\"'\"&G1838&\"'!\"&H1838),\"\")","v":""}]
[1834,{"$nulls":3},true,{"$f":"IF(G1839<>\"\",INDIRECT(\"'\"&G1839&\"'!\"&H1839),\"\")","v":""}]
[1835,{"$nulls":3},true,{"$f":"IF(G1840<>\"\",INDIRECT(\"'\"&G1840&\"'!\"&H1840),\"\")","v":""}]
[1836,{"$nulls":3},true,{"$f":"IF(G1841<>\"\",INDIRECT(\"'\"&G1841&\"'!\"&H1841),\"\")","v":""}]
[1837,{"$nulls":3},true,{"$f":"IF(G1842<>\"\",INDIRECT(\"'\"&G1842&\"'!\"&H1842),\"\")","v":""}]
[1838,{"$nulls":3},true,{"$f":"IF(G1843<>\"\",INDIRECT(\"'\"&G1843&\"'!\"&H1843),\"\")","v":""}]
[1839,{"$nulls":3},true,{"$f":"IF(G1844<>\"\",INDIRECT(\"'\"&G1844&\"'!\"&H1844),\"\")","v":""}]
[1840,{"$nulls":3},true,{"$f":"IF(G1845<>\"\",INDIRECT(\"'\"&G1845&\"'!\"&H1845),\"\")","v":""}]
[1841,{"$nulls":3},true,{"$f":"IF(G1846<>\"\",INDIRECT(\"'\"&G1846&\"'!\"&H1846),\"\")","v":""}]
[1842,{"$nulls":3},true,{"$f":"IF(G1847<>\"\",INDIRECT(\"'\"&G1847&\"'!\"&H1847),\"\")","v":""}]
[1843,{"$nulls":3},true,{"$f":"IF(G1848<>\"\",INDIRECT(\"'\"&G1848&\"'!\"&H1848),\"\")","v":""}]
[1844,{"$nulls":3},true,{"$f":"IF(G1849<>\"\",INDIRECT(\"'\"&G1849&\"'!\"&H1849),\"\")","v":""}]
[1845,{"$nulls":3},true,{"$f":"IF(G1850<>\"\",INDIRECT(\"'\"&G1850&\"'!\"&H1850),\"\")","v":""}]
[1846,{"$nulls":3},true,{"$f":"IF(G1851<>\"\",INDIRECT(\"'\"&G1851&\"'!\"&H1851),\"\")","v":""}]
[1847,{"$nulls":3},true,{"$f":"IF(G1852<>\"\",INDIRECT(\"'\"&G1852&\"'!\"&H1852),\"\")","v":""}]
[1848,{"$nulls":3},true,{"$f":"IF(G1853<>\"\",INDIRECT(\"'\"&G1853&\"'!\"&H1853),\"\")","v":""}]
[1849,{"$nulls":3},true,{"$f":"IF(G1854<>\"\",INDIRECT(\"'\"&G1854&\"'!\"&H1854),\"\")","v":""}]
[1850,{"$nulls":3},true,{"$f":"IF(G1855<>\"\",INDIRECT(\"'\"&G1855&\"'!\"&H1855),\"\")","v":""}]
[1851,{"$nulls":3},true,{"$f":"IF(G1856<>\"\",INDIRECT(\"'\"&G1856&\"'!\"&H1856),\"\")","v":""}]
[1852,{"$nulls":3},true,{"$f":"IF(G1857<>\"\",INDIRECT(\"'\"&G1857&\"'!\"&H1857),\"\")","v":""}]
[1853,{"$nulls":3},{"$f":"F1858=B1858","v":true},{"$f":"IF(G1858<>\"\",INDIRECT(\"'\"&G1858&\"'!\"&H1858),\"\")","v":""}]
[1854,{"$nulls":3},true,{"$f":"IF(G1859<>\"\",INDIRECT(\"'\"&G1859&\"'!\"&H1859),\"\")","v":""}]
[1855,{"$nulls":3},true,{"$f":"IF(G1860<>\"\",INDIRECT(\"'\"&G1860&\"'!\"&H1860),\"\")","v":""}]
[1856,{"$nulls":3},true,{"$f":"IF(G1861<>\"\",INDIRECT(\"'\"&G1861&\"'!\"&H1861),\"\")","v":""}]
[1857,{"$nulls":3},true,{"$f":"IF(G1862<>\"\",INDIRECT(\"'\"&G1862&\"'!\"&H1862),\"\")","v":""}]
[1858,{"$nulls":3},true,{"$f":"IF(G1863<>\"\",INDIRECT(\"'\"&G1863&\"'!\"&H1863),\"\")","v":""}]
[1859,{"$nulls":3},true,{"$f":"IF(G1864<>\"\",INDIRECT(\"'\"&G1864&\"'!\"&H1864),\"\")","v":""}]
[1860,{"$nulls":3},true,{"$f":"IF(G1865<>\"\",INDIRECT(\"'\"&G1865&\"'!\"&H1865),\"\")","v":""}]
[1861,{"$nulls":3},true,{"$f":"IF(G1866<>\"\",INDIRECT(\"'\"&G1866&\"'!\"&H1866),\"\")","v":""}]
[1862,{"$nulls":3},true,{"$f":"IF(G1867<>\"\",INDIRECT(\"'\"&G1867&\"'!\"&H1867),\"\")","v":""}]
[1863,{"$nulls":3},true,{"$f":"IF(G1868<>\"\",INDIRECT(\"'\"&G1868&\"'!\"&H1868),\"\")","v":""}]
[1864,{"$nulls":3},true,{"$f":"IF(G1869<>\"\",INDIRECT(\"'\"&G1869&\"'!\"&H1869),\"\")","v":""}]
[1865,{"$nulls":3},true,{"$f":"IF(G1870<>\"\",INDIRECT(\"'\"&G1870&\"'!\"&H1870),\"\")","v":""}]
[1866,{"$nulls":3},true,{"$f":"IF(G1871<>\"\",INDIRECT(\"'\"&G1871&\"'!\"&H1871),\"\")","v":""}]
[1867,{"$nulls":3},true,{"$f":"IF(G1872<>\"\",INDIRECT(\"'\"&G1872&\"'!\"&H1872),\"\")","v":""}]
[1868,{"$nulls":3},true,{"$f":"IF(G1873<>\"\",INDIRECT(\"'\"&G1873&\"'!\"&H1873),\"\")","v":""}]
[1869,{"$nulls":3},true,{"$f":"IF(G1874<>\"\",INDIRECT(\"'\"&G1874&\"'!\"&H1874),\"\")","v":""}]
[1870,{"$nulls":3},true,{"$f":"IF(G1875<>\"\",INDIRECT(\"'\"&G1875&\"'!\"&H1875),\"\")","v":""}]
[1871,{"$nulls":3},true,{"$f":"IF(G1876<>\"\",INDIRECT(\"'\"&G1876&\"'!\"&H1876),\"\")","v":""}]
[1872,{"$nulls":3},true,{"$f":"IF(G1877<>\"\",INDIRECT(\"'\"&G1877&\"'!\"&H1877),\"\")","v":""}]
[1873,{"$nulls":3},true,{"$f":"IF(G1878<>\"\",INDIRECT(\"'\"&G1878&\"'!\"&H1878),\"\")","v":""}]
[1874,{"$nulls":3},true,{"$f":"IF(G1879<>\"\",INDIRECT(\"'\"&G1879&\"'!\"&H1879),\"\")","v":""}]
[1875,{"$nulls":3},true,{"$f":"IF(G1880<>\"\",INDIRECT(\"'\"&G1880&\"'!\"&H1880),\"\")","v":""}]
[1876,{"$nulls":3},true,{"$f":"IF(G1881<>\"\",INDIRECT(\"'\"&G1881&\"'!\"&H1881),\"\")","v":""}]
[1877,{"$nulls":3},true,{"$f":"IF(G1882<>\"\",INDIRECT(\"'\"&G1882&\"'!\"&H1882),\"\")","v":""}]
[1878,{"$nulls":3},true,{"$f":"IF(G1883<>\"\",INDIRECT(\"'\"&G1883&\"'!\"&H1883),\"\")","v":""}]
[1879,{"$nulls":3},true,{"$f":"IF(G1884<>\"\",INDIRECT(\"'\"&G1884&\"'!\"&H1884),\"\")","v":""}]
[1880,{"$nulls":3},true,{"$f":"IF(G1885<>\"\",INDIRECT(\"'\"&G1885&\"'!\"&H1885),\"\")","v":""}]
[1881,{"$nulls":3},true,{"$f":"IF(G1886<>\"\",INDIRECT(\"'\"&G1886&\"'!\"&H1886),\"\")","v":""}]
[1882,{"$nulls":3},true,{"$f":"IF(G1887<>\"\",INDIRECT(\"'\"&G1887&\"'!\"&H1887),\"\")","v":""}]
[1883,{"$nulls":3},true,{"$f":"IF(G1888<>\"\",INDIRECT(\"'\"&G1888&\"'!\"&H1888),\"\")","v":""}]
[1884,{"$nulls":3},true,{"$f":"IF(G1889<>\"\",INDIRECT(\"'\"&G1889&\"'!\"&H1889),\"\")","v":""}]
[1885,{"$nulls":3},true,{"$f":"IF(G1890<>\"\",INDIRECT(\"'\"&G1890&\"'!\"&H1890),\"\")","v":""}]
[1886,{"$nulls":3},true,{"$f":"IF(G1891<>\"\",INDIRECT(\"'\"&G1891&\"'!\"&H1891),\"\")","v":""}]
[1887,{"$nulls":3},true,{"$f":"IF(G1892<>\"\",INDIRECT(\"'\"&G1892&\"'!\"&H1892),\"\")","v":""}]
[1888,{"$nulls":3},true,{"$f":"IF(G1893<>\"\",INDIRECT(\"'\"&G1893&\"'!\"&H1893),\"\")","v":""}]
[1889,{"$nulls":3},true,{"$f":"IF(G1894<>\"\",INDIRECT(\"'\"&G1894&\"'!\"&H1894),\"\")","v":""}]
[1890,{"$nulls":3},true,{"$f":"IF(G1895<>\"\",INDIRECT(\"'\"&G1895&\"'!\"&H1895),\"\")","v":""}]
[1891,{"$nulls":3},true,{"$f":"IF(G1896<>\"\",INDIRECT(\"'\"&G1896&\"'!\"&H1896),\"\")","v":""}]
[1892,{"$nulls":3},true,{"$f":"IF(G1897<>\"\",INDIRECT(\"'\"&G1897&\"'!\"&H1897),\"\")","v":""}]
[1893,{"$nulls":3},true,{"$f":"IF(G1898<>\"\",INDIRECT(\"'\"&G1898&\"'!\"&H1898),\"\")","v":""}]
[1894,{"$nulls":3},true,{"$f":"IF(G1899<>\"\",INDIRECT(\"'\"&G1899&\"'!\"&H1899),\"\")","v":""}]
[1895,{"$nulls":3},true,{"$f":"IF(G1900<>\"\",INDIRECT(\"'\"&G1900&\"'!\"&H1900),\"\")","v":""}]
[1896,{"$nulls":3},true,{"$f":"IF(G1901<>\"\",INDIRECT(\"'\"&G1901&\"'!\"&H1901),\"\")","v":""}]
[1897,{"$nulls":3},true,{"$f":"IF(G1902<>\"\",INDIRECT(\"'\"&G1902&\"'!\"&H1902),\"\")","v":""}]
[1898,{"$nulls":3},true,{"$f":"IF(G1903<>\"\",INDIRECT(\"'\"&G1903&\"'!\"&H1903),\"\")","v":""}]
[1899,{"$nulls":3},true,{"$f":"IF(G1904<>\"\",INDIRECT(\"'\"&G1904&\"'!\"&H1904),\"\")","v":""}]
[1900,{"$nulls":3},true,{"$f":"IF(G1905<>\"\",INDIRECT(\"'\"&G1905&\"'!\"&H1905),\"\")","v":""}]
[1901,{"$nulls":3},true,{"$f":"IF(G1906<>\"\",INDIRECT(\"'\"&G1906&\"'!\"&H1906),\"\")","v":""}]
[1902,{"$nulls":3},true,{"$f":"IF(G1907<>\"\",INDIRECT(\"'\"&G1907&\"'!\"&H1907),\"\")","v":""}]
[1903,{"$nulls":3},true,{"$f":"IF(G1908<>\"\",INDIRECT(\"'\"&G1908&\"'!\"&H1908),\"\")","v":""}]
[1904,{"$nulls":3},true,{"$f":"IF(G1909<>\"\",INDIRECT(\"'\"&G1909&\"'!\"&H1909),\"\")","v":""}]
[1905,{"$nulls":3},true,{"$f":"IF(G1910<>\"\",INDIRECT(\"'\"&G1910&\"'!\"&H1910),\"\")","v":""}]
[1906,{"$nulls":3},true,{"$f":"IF(G1911<>\"\",INDIRECT(\"'\"&G1911&\"'!\"&H1911),\"\")","v":""}]
[1907,{"$nulls":3},true,{"$f":"IF(G1912<>\"\",INDIRECT(\"'\"&G1912&\"'!\"&H1912),\"\")","v":""}]
[1908,{"$nulls":3},true,{"$f":"IF(G1913<>\"\",INDIRECT(\"'\"&G1913&\"'!\"&H1913),\"\")","v":""}]
[1909,{"$nulls":3},true,{"$f":"IF(G1914<>\"\",INDIRECT(\"'\"&G1914&\"'!\"&H1914),\"\")","v":""}]
[1910,{"$nulls":3},true,{"$f":"IF(G1915<>\"\",INDIRECT(\"'\"&G1915&\"'!\"&H1915),\"\")","v":""}]
[1911,{"$nulls":3},true,{"$f":"IF(G1916<>\"\",INDIRECT(\"'\"&G1916&\"'!\"&H1916),\"\")","v":""}]
[1912,{"$nulls":3},true,{"$f":"IF(G1917<>\"\",INDIRECT(\"'\"&G1917&\"'!\"&H1917),\"\")","v":""}]
[1913,{"$nulls":3},true,{"$f":"IF(G1918<>\"\",INDIRECT(\"'\"&G1918&\"'!\"&H1918),\"\")","v":""}]
[1914,{"$nulls":3},true,{"$f":"IF(G1919<>\"\",INDIRECT(\"'\"&G1919&\"'!\"&H1919),\"\")","v":""}]
[1915,{"$nulls":3},true,{"$f":"IF(G1920<>\"\",INDIRECT(\"'\"&G1920&\"'!\"&H1920),\"\")","v":""}]
[1916,{"$nulls":3},true,{"$f":"IF(G1921<>\"\",INDIRECT(\"'\"&G1921&\"'!\"&H1921),\"\")","v":""}]
[1917,{"$nulls":3},{"$f":"F1922=B1922","v":true},{"$f":"IF(G1922<>\"\",INDIRECT(\"'\"&G1922&\"'!\"&H1922),\"\")","v":""}]
[1918,{"$nulls":3},true,{"$f":"IF(G1923<>\"\",INDIRECT(\"'\"&G1923&\"'!\"&H1923),\"\")","v":""}]
[1919,{"$nulls":3},true,{"$f":"IF(G1924<>\"\",INDIRECT(\"'\"&G1924&\"'!\"&H1924),\"\")","v":""}]
[1920,{"$nulls":3},true,{"$f":"IF(G1925<>\"\",INDIRECT(\"'\"&G1925&\"'!\"&H1925),\"\")","v":""}]
[1921,{"$nulls":3},true,{"$f":"IF(G1926<>\"\",INDIRECT(\"'\"&G1926&\"'!\"&H1926),\"\")","v":""}]
[1922,{"$nulls":3},true,{"$f":"IF(G1927<>\"\",INDIRECT(\"'\"&G1927&\"'!\"&H1927),\"\")","v":""}]
[1923,{"$nulls":3},true,{"$f":"IF(G1928<>\"\",INDIRECT(\"'\"&G1928&\"'!\"&H1928),\"\")","v":""}]
[1924,{"$nulls":3},true,{"$f":"IF(G1929<>\"\",INDIRECT(\"'\"&G1929&\"'!\"&H1929),\"\")","v":""}]
[1925,{"$nulls":3},true,{"$f":"IF(G1930<>\"\",INDIRECT(\"'\"&G1930&\"'!\"&H1930),\"\")","v":""}]
[1926,{"$nulls":3},true,{"$f":"IF(G1931<>\"\",INDIRECT(\"'\"&G1931&\"'!\"&H1931),\"\")","v":""}]
[1927,{"$nulls":3},true,{"$f":"IF(G1932<>\"\",INDIRECT(\"'\"&G1932&\"'!\"&H1932),\"\")","v":""}]
[1928,{"$nulls":3},true,{"$f":"IF(G1933<>\"\",INDIRECT(\"'\"&G1933&\"'!\"&H1933),\"\")","v":""}]
[1929,{"$nulls":3},true,{"$f":"IF(G1934<>\"\",INDIRECT(\"'\"&G1934&\"'!\"&H1934),\"\")","v":""}]
[1930,{"$nulls":3},true,{"$f":"IF(G1935<>\"\",INDIRECT(\"'\"&G1935&\"'!\"&H1935),\"\")","v":""}]
[1931,{"$nulls":3},true,{"$f":"IF(G1936<>\"\",INDIRECT(\"'\"&G1936&\"'!\"&H1936),\"\")","v":""}]
[1932,{"$nulls":3},true,{"$f":"IF(G1937<>\"\",INDIRECT(\"'\"&G1937&\"'!\"&H1937),\"\")","v":""}]
[1933,{"$nulls":3},true,{"$f":"IF(G1938<>\"\",INDIRECT(\"'\"&G1938&\"'!\"&H1938),\"\")","v":""}]
[1934,{"$nulls":3},true,{"$f":"IF(G1939<>\"\",INDIRECT(\"'\"&G1939&\"'!\"&H1939),\"\")","v":""}]
[1935,{"$nulls":3},true,{"$f":"IF(G1940<>\"\",INDIRECT(\"'\"&G1940&\"'!\"&H1940),\"\")","v":""}]
[1936,{"$nulls":3},true,{"$f":"IF(G1941<>\"\",INDIRECT(\"'\"&G1941&\"'!\"&H1941),\"\")","v":""}]
[1937,{"$nulls":3},true,{"$f":"IF(G1942<>\"\",INDIRECT(\"'\"&G1942&\"'!\"&H1942),\"\")","v":""}]
[1938,{"$nulls":3},true,{"$f":"IF(G1943<>\"\",INDIRECT(\"'\"&G1943&\"'!\"&H1943),\"\")","v":""}]
[1939,{"$nulls":3},true,{"$f":"IF(G1944<>\"\",INDIRECT(\"'\"&G1944&\"'!\"&H1944),\"\")","v":""}]
[1940,{"$nulls":3},true,{"$f":"IF(G1945<>\"\",INDIRECT(\"'\"&G1945&\"'!\"&H1945),\"\")","v":""}]
[1941,{"$nulls":3},true,{"$f":"IF(G1946<>\"\",INDIRECT(\"'\"&G1946&\"'!\"&H1946),\"\")","v":""}]
[1942,{"$nulls":3},true,{"$f":"IF(G1947<>\"\",INDIRECT(\"'\"&G1947&\"'!\"&H1947),\"\")","v":""}]
[1943,{"$nulls":3},true,{"$f":"IF(G1948<>\"\",INDIRECT(\"'\"&G1948&\"'!\"&H1948),\"\")","v":""}]
[1944,{"$nulls":3},true,{"$f":"IF(G1949<>\"\",INDIRECT(\"'\"&G1949&\"'!\"&H1949),\"\")","v":""}]
[1945,{"$nulls":3},true,{"$f":"IF(G1950<>\"\",INDIRECT(\"'\"&G1950&\"'!\"&H1950),\"\")","v":""}]
[1946,{"$nulls":3},true,{"$f":"IF(G1951<>\"\",INDIRECT(\"'\"&G1951&\"'!\"&H1951),\"\")","v":""}]
[1947,{"$nulls":3},true,{"$f":"IF(G1952<>\"\",INDIRECT(\"'\"&G1952&\"'!\"&H1952),\"\")","v":""}]
[1948,{"$nulls":3},true,{"$f":"IF(G1953<>\"\",INDIRECT(\"'\"&G1953&\"'!\"&H1953),\"\")","v":""}]
[1949,{"$nulls":3},true,{"$f":"IF(G1954<>\"\",INDIRECT(\"'\"&G1954&\"'!\"&H1954),\"\")","v":""}]
[1950,{"$nulls":3},true,{"$f":"IF(G1955<>\"\",INDIRECT(\"'\"&G1955&\"'!\"&H1955),\"\")","v":""}]
[1951,{"$nulls":3},true,{"$f":"IF(G1956<>\"\",INDIRECT(\"'\"&G1956&\"'!\"&H1956),\"\")","v":""}]
[1952,{"$nulls":3},true,{"$f":"IF(G1957<>\"\",INDIRECT(\"'\"&G1957&\"'!\"&H1957),\"\")","v":""}]
[1953,{"$nulls":3},true,{"$f":"IF(G1958<>\"\",INDIRECT(\"'\"&G1958&\"'!\"&H1958),\"\")","v":""}]
[1954,{"$nulls":3},true,{"$f":"IF(G1959<>\"\",INDIRECT(\"'\"&G1959&\"'!\"&H1959),\"\")","v":""}]
[1955,{"$nulls":3},true,{"$f":"IF(G1960<>\"\",INDIRECT(\"'\"&G1960&\"'!\"&H1960),\"\")","v":""}]
[1956,{"$nulls":3},true,{"$f":"IF(G1961<>\"\",INDIRECT(\"'\"&G1961&\"'!\"&H1961),\"\")","v":""}]
[1957,{"$nulls":3},true,{"$f":"IF(G1962<>\"\",INDIRECT(\"'\"&G1962&\"'!\"&H1962),\"\")","v":""}]
[1958,{"$nulls":3},true,{"$f":"IF(G1963<>\"\",INDIRECT(\"'\"&G1963&\"'!\"&H1963),\"\")","v":""}]
[1959,{"$nulls":3},true,{"$f":"IF(G1964<>\"\",INDIRECT(\"'\"&G1964&\"'!\"&H1964),\"\")","v":""}]
[1960,{"$nulls":3},true,{"$f":"IF(G1965<>\"\",INDIRECT(\"'\"&G1965&\"'!\"&H1965),\"\")","v":""}]
[1961,{"$nulls":3},true,{"$f":"IF(G1966<>\"\",INDIRECT(\"'\"&G1966&\"'!\"&H1966),\"\")","v":""}]
[1962,{"$nulls":3},true,{"$f":"IF(G1967<>\"\",INDIRECT(\"'\"&G1967&\"'!\"&H1967),\"\")","v":""}]
[1963,{"$nulls":3},true,{"$f":"IF(G1968<>\"\",INDIRECT(\"'\"&G1968&\"'!\"&H1968),\"\")","v":""}]
[1964,{"$nulls":3},true,{"$f":"IF(G1969<>\"\",INDIRECT(\"'\"&G1969&\"'!\"&H1969),\"\")","v":""}]
[1965,{"$nulls":3},true,{"$f":"IF(G1970<>\"\",INDIRECT(\"'\"&G1970&\"'!\"&H1970),\"\")","v":""}]
[1966,{"$nulls":3},true,{"$f":"IF(G1971<>\"\",INDIRECT(\"'\"&G1971&\"'!\"&H1971),\"\")","v":""}]
[1967,{"$nulls":3},true,{"$f":"IF(G1972<>\"\",INDIRECT(\"'\"&G1972&\"'!\"&H1972),\"\")","v":""}]
[1968,{"$nulls":3},true,{"$f":"IF(G1973<>\"\",INDIRECT(\"'\"&G1973&\"'!\"&H1973),\"\")","v":""}]
[1969,{"$nulls":3},true,{"$f":"IF(G1974<>\"\",INDIRECT(\"'\"&G1974&\"'!\"&H1974),\"\")","v":""}]
[1970,{"$nulls":3},true,{"$f":"IF(G1975<>\"\",INDIRECT(\"'\"&G1975&\"'!\"&H1975),\"\")","v":""}]
[1971,{"$nulls":3},true,{"$f":"IF(G1976<>\"\",INDIRECT(\"'\"&G1976&\"'!\"&H1976),\"\")","v":""}]
[1972,{"$nulls":3},true,{"$f":"IF(G1977<>\"\",INDIRECT(\"'\"&G1977&\"'!\"&H1977),\"\")","v":""}]
[1973,{"$nulls":3},true,{"$f":"IF(G1978<>\"\",INDIRECT(\"'\"&G1978&\"'!\"&H1978),\"\")","v":""}]
[1974,{"$nulls":3},true,{"$f":"IF(G1979<>\"\",INDIRECT(\"'\"&G1979&\"'!\"&H1979),\"\")","v":""}]
[1975,{"$nulls":3},true,{"$f":"IF(G1980<>\"\",INDIRECT(\"'\"&G1980&\"'!\"&H1980),\"\")","v":""}]
[1976,{"$nulls":3},true,{"$f":"IF(G1981<>\"\",INDIRECT(\"'\"&G1981&\"'!\"&H1981),\"\")","v":""}]
[1977,{"$nulls":3},true,{"$f":"IF(G1982<>\"\",INDIRECT(\"'\"&G1982&\"'!\"&H1982),\"\")","v":""}]
[1978,{"$nulls":3},true,{"$f":"IF(G1983<>\"\",INDIRECT(\"'\"&G1983&\"'!\"&H1983),\"\")","v":""}]
[1979,{"$nulls":3},true,{"$f":"IF(G1984<>\"\",INDIRECT(\"'\"&G1984&\"'!\"&H1984),\"\")","v":""}]
[1980,{"$nulls":3},true,{"$f":"IF(G1985<>\"\",INDIRECT(\"'\"&G1985&\"'!\"&H1985),\"\")","v":""}]
[1981,{"$nulls":3},{"$f":"F1986=B1986","v":true},{"$f":"IF(G1986<>\"\",INDIRECT(\"'\"&G1986&\"'!\"&H1986),\"\")","v":""}]
[1982,{"$nulls":3},true,{"$f":"IF(G1987<>\"\",INDIRECT(\"'\"&G1987&\"'!\"&H1987),\"\")","v":""}]
[1983,{"$nulls":3},true,{"$f":"IF(G1988<>\"\",INDIRECT(\"'\"&G1988&\"'!\"&H1988),\"\")","v":""}]
[1984,{"$nulls":3},true,{"$f":"IF(G1989<>\"\",INDIRECT(\"'\"&G1989&\"'!\"&H1989),\"\")","v":""}]
[1985,{"$nulls":3},true,{"$f":"IF(G1990<>\"\",INDIRECT(\"'\"&G1990&\"'!\"&H1990),\"\")","v":""}]
[1986,{"$nulls":3},true,{"$f":"IF(G1991<>\"\",INDIRECT(\"'\"&G1991&\"'!\"&H1991),\"\")","v":""}]
[1987,{"$nulls":3},true,{"$f":"IF(G1992<>\"\",INDIRECT(\"'\"&G1992&\"'!\"&H1992),\"\")","v":""}]
[1988,{"$nulls":3},true,{"$f":"IF(G1993<>\"\",INDIRECT(\"'\"&G1993&\"'!\"&H1993),\"\")","v":""}]
[1989,{"$nulls":3},true,{"$f":"IF(G1994<>\"\",INDIRECT(\"'\"&G1994&\"'!\"&H1994),\"\")","v":""}]
[1990,{"$nulls":3},true,{"$f":"IF(G1995<>\"\",INDIRECT(\"'\"&G1995&\"'!\"&H1995),\"\")","v":""}]
[1991,{"$nulls":3},true,{"$f":"IF(G1996<>\"\",INDIRECT(\"'\"&G1996&\"'!\"&H1996),\"\")","v":""}]
[1992,{"$nulls":3},true,{"$f":"IF(G1997<>\"\",INDIRECT(\"'\"&G1997&\"'!\"&H1997),\"\")","v":""}]
[1993,{"$nulls":3},true,{"$f":"IF(G1998<>\"\",INDIRECT(\"'\"&G1998&\"'!\"&H1998),\"\")","v":""}]
[1994,{"$nulls":3},true,{"$f":"IF(G1999<>\"\",INDIRECT(\"'\"&G1999&\"'!\"&H1999),\"\")","v":""}]
[1995,{"$nulls":3},true,{"$f":"IF(G2000<>\"\",INDIRECT(\"'\"&G2000&\"'!\"&H2000),\"\")","v":""}]
[1996,{"$nulls":3},true,{"$f":"IF(G2001<>\"\",INDIRECT(\"'\"&G2001&\"'!\"&H2001),\"\")","v":""}]
[1997,{"$nulls":3},true,{"$f":"IF(G2002<>\"\",INDIRECT(\"'\"&G2002&\"'!\"&H2002),\"\")","v":""}]
[1998,{"$nulls":3},true,{"$f":"IF(G2003<>\"\",INDIRECT(\"'\"&G2003&\"'!\"&H2003),\"\")","v":""}]
[1999,{"$nulls":3},true,{"$f":"IF(G2004<>\"\",INDIRECT(\"'\"&G2004&\"'!\"&H2004),\"\")","v":""}]
[2000,{"$nulls":3},true,{"$f":"IF(G2005<>\"\",INDIRECT(\"'\"&G2005&\"'!\"&H2005),\"\")","v":""}]
[2001,{"$nulls":3},true,{"$f":"IF(G2006<>\"\",INDIRECT(\"'\"&G2006&\"'!\"&H2006),\"\")","v":""}]
[2002,{"$nulls":3},true,{"$f":"IF(G2007<>\"\",INDIRECT(\"'\"&G2007&\"'!\"&H2007),\"\")","v":""}]
[2003,{"$nulls":3},true,{"$f":"IF(G2008<>\"\",INDIRECT(\"'\"&G2008&\"'!\"&H2008),\"\")","v":""}]
[2004,{"$nulls":3},true,{"$f":"IF(G2009<>\"\",INDIRECT(\"'\"&G2009&\"'!\"&H2009),\"\")","v":""}]
[2005,{"$nulls":3},true,{"$f":"IF(G2010<>\"\",INDIRECT(\"'\"&G2010&\"'!\"&H2010),\"\")","v":""}]
[2006,{"$nulls":3},true,{"$f":"IF(G2011<>\"\",INDIRECT(\"'\"&G2011&\"'!\"&H2011),\"\")","v":""}]
[2007,{"$nulls":3},true,{"$f":"IF(G2012<>\"\",INDIRECT(\"'\"&G2012&\"'!\"&H2012),\"\")","v":""}]
[2008,{"$nulls":3},true,{"$f":"IF(G2013<>\"\",INDIRECT(\"'\"&G2013&\"'!\"&H2013),\"\")","v":""}]
[2009,{"$nulls":3},true,{"$f":"IF(G2014<>\"\",INDIRECT(\"'\"&G2014&\"'!\"&H2014),\"\")","v":""}]
[2010,{"$nulls":3},true,{"$f":"IF(G2015<>\"\",INDIRECT(\"'\"&G2015&\"'!\"&H2015),\"\")","v":""}]
[2011,{"$nulls":3},true,{"$f":"IF(G2016<>\"\",INDIRECT(\"'\"&G2016&\"'!\"&H2016),\"\")","v":""}]
[2012,{"$nulls":3},true,{"$f":"IF(G2017<>\"\",INDIRECT(\"'\"&G2017&\"'!\"&H2017),\"\")","v":""}]
[2013,{"$nulls":3},true,{"$f":"IF(G2018<>\"\",INDIRECT(\"'\"&G2018&\"'!\"&H2018),\"\")","v":""}]
[2014,{"$nulls":3},true,{"$f":"IF(G2019<>\"\",INDIRECT(\"'\"&G2019&\"'!\"&H2019),\"\")","v":""}]
[2015,{"$nulls":3},true,{"$f":"IF(G2020<>\"\",INDIRECT(\"'\"&G2020&\"'!\"&H2020),\"\")","v":""}]
[2016,null,null,"Closed 2008",true,{"$f":"IF(G2021<>\"\",INDIRECT(\"'\"&G2021&\"'!\"&H2021),\"\")","v":""}]
[2017,null,null,"Closed 2008",true,{"$f":"IF(G2022<>\"\",INDIRECT(\"'\"&G2022&\"'!\"&H2022),\"\")","v":""}]
[2018,{"$nulls":3},true,{"$f":"IF(G2023<>\"\",INDIRECT(\"'\"&G2023&\"'!\"&H2023),\"\")","v":""}]
[2019,{"$nulls":3},true,{"$f":"IF(G2024<>\"\",INDIRECT(\"'\"&G2024&\"'!\"&H2024),\"\")","v":""}]
[2020,{"$f":"'EstExp 12-20'!H86","v":160000},{"$f":"A2025-B2025","v":-157980},null,true,{"$f":"IF(G2025<>\"\",INDIRECT(\"'\"&G2025&\"'!\"&H2025),\"\")","v":160000},"EstExp 12-20","H86"]
[2021,null,null,"Closed 2008",true,{"$f":"IF(G2026<>\"\",INDIRECT(\"'\"&G2026&\"'!\"&H2026),\"\")","v":""}]
[2022,null,null,"Closed 2008",true,{"$f":"IF(G2027<>\"\",INDIRECT(\"'\"&G2027&\"'!\"&H2027),\"\")","v":""}]
[2023,null,null,"Closed 2008",true,{"$f":"IF(G2028<>\"\",INDIRECT(\"'\"&G2028&\"'!\"&H2028),\"\")","v":""}]
[2024,null,null,"Closed 2008",true,{"$f":"IF(G2029<>\"\",INDIRECT(\"'\"&G2029&\"'!\"&H2029),\"\")","v":""}]
[2025,null,null,"Closed 2008",true,{"$f":"IF(G2030<>\"\",INDIRECT(\"'\"&G2030&\"'!\"&H2030),\"\")","v":""}]
[2026,{"$f":"'EstExp 12-20'!K103","v":{"v":0,"d":"0 "}},2026,"to fix link error 2019",true,{"$f":"IF(G2031<>\"\",INDIRECT(\"'\"&G2031&\"'!\"&H2031),\"\")","v":0},"EstExp 12-20","K103"]
[2027,{"$f":"'EstExp 12-20'!K86","v":160000},-157973,null,true,{"$f":"IF(G2032<>\"\",INDIRECT(\"'\"&G2032&\"'!\"&H2032),\"\")","v":160000},"EstExp 12-20","K86"]
[2028,{"$f":"'EstExp 12-20'!K94","v":730000},-727972,null,true,{"$f":"IF(G2033<>\"\",INDIRECT(\"'\"&G2033&\"'!\"&H2033),\"\")","v":730000},"EstExp 12-20","K94"]
[2029,{"$f":"'EstExp 12-20'!K102","v":{"v":0,"d":"0 "}},2029,"to fix link error 2019",true,{"$f":"IF(G2034<>\"\",INDIRECT(\"'\"&G2034&\"'!\"&H2034),\"\")","v":0},"EstExp 12-20","K102"]
[2030,{"$f":"'EstExp 12-20'!H141","v":0},2030,null,true,{"$f":"IF(G2035<>\"\",INDIRECT(\"'\"&G2035&\"'!\"&H2035),\"\")","v":0},"EstExp 12-20","H141"]
[2031,{"$f":"'EstExp 12-20'!H142","v":0},2031,null,true,{"$f":"IF(G2036<>\"\",INDIRECT(\"'\"&G2036&\"'!\"&H2036),\"\")","v":0},"EstExp 12-20","H142"]
[2032,{"$f":"'EstExp 12-20'!K141","v":0},2032,null,true,{"$f":"IF(G2037<>\"\",INDIRECT(\"'\"&G2037&\"'!\"&H2037),\"\")","v":0},"EstExp 12-20","K141"]
[2033,{"$f":"'EstExp 12-20'!K142","v":0},2033,null,true,{"$f":"IF(G2038<>\"\",INDIRECT(\"'\"&G2038&\"'!\"&H2038),\"\")","v":0},"EstExp 12-20","K142"]
[2034,{"$nulls":3},true,{"$f":"IF(G2039<>\"\",INDIRECT(\"'\"&G2039&\"'!\"&H2039),\"\")","v":""}]
[2035,{"$nulls":3},true,{"$f":"IF(G2040<>\"\",INDIRECT(\"'\"&G2040&\"'!\"&H2040),\"\")","v":""}]
[2036,{"$nulls":3},true,{"$f":"IF(G2041<>\"\",INDIRECT(\"'\"&G2041&\"'!\"&H2041),\"\")","v":""}]
[2037,null,null,"Closed 2008",true,{"$f":"IF(G2042<>\"\",INDIRECT(\"'\"&G2042&\"'!\"&H2042),\"\")","v":""}]
[2038,null,null,"Closed 2008",true,{"$f":"IF(G2043<>\"\",INDIRECT(\"'\"&G2043&\"'!\"&H2043),\"\")","v":""}]
[2039,{"$nulls":3},true,{"$f":"IF(G2044<>\"\",INDIRECT(\"'\"&G2044&\"'!\"&H2044),\"\")","v":""}]
[2040,null,null,"Closed 2008",true,{"$f":"IF(G2045<>\"\",INDIRECT(\"'\"&G2045&\"'!\"&H2045),\"\")","v":""}]
[2041,{"$f":"'EstExp 12-20'!K307","v":0},2041,null,true,{"$f":"IF(G2046<>\"\",INDIRECT(\"'\"&G2046&\"'!\"&H2046),\"\")","v":0},"EstExp 12-20","K307"]
[2042,{"$nulls":3},true,{"$f":"IF(G2047<>\"\",INDIRECT(\"'\"&G2047&\"'!\"&H2047),\"\")","v":""}]
[2043,{"$nulls":3},true,{"$f":"IF(G2048<>\"\",INDIRECT(\"'\"&G2048&\"'!\"&H2048),\"\")","v":""}]
[2044,{"$f":"'BudgetSum 2-4'!I50","v":0},2044,null,true,{"$f":"IF(G2049<>\"\",INDIRECT(\"'\"&G2049&\"'!\"&H2049),\"\")","v":0},"BudgetSum 2-4","I50"]
[2045,{"$f":"'BudgetSum 2-4'!I51","v":0},2045,null,{"$f":"F2050=B2050","v":true},{"$f":"IF(G2050<>\"\",INDIRECT(\"'\"&G2050&\"'!\"&H2050),\"\")","v":0},"BudgetSum 2-4","I51"]
[2046,{"$nulls":3},true,{"$f":"IF(G2051<>\"\",INDIRECT(\"'\"&G2051&\"'!\"&H2051),\"\")","v":""}]
[2047,null,null,"Closed 2008",true,{"$f":"IF(G2052<>\"\",INDIRECT(\"'\"&G2052&\"'!\"&H2052),\"\")","v":""}]
[2048,null,null,"Closed 2008",true,{"$f":"IF(G2053<>\"\",INDIRECT(\"'\"&G2053&\"'!\"&H2053),\"\")","v":""}]
[2049,null,null,"Closed 2008",true,{"$f":"IF(G2054<>\"\",INDIRECT(\"'\"&G2054&\"'!\"&H2054),\"\")","v":""}]
[2050,null,null,"Closed 2008",true,{"$f":"IF(G2055<>\"\",INDIRECT(\"'\"&G2055&\"'!\"&H2055),\"\")","v":""}]
[2051,null,null,"Closed 2008",true,{"$f":"IF(G2056<>\"\",INDIRECT(\"'\"&G2056&\"'!\"&H2056),\"\")","v":""}]
[2052,{"$nulls":3},true,{"$f":"IF(G2057<>\"\",INDIRECT(\"'\"&G2057&\"'!\"&H2057),\"\")","v":""}]
[2053,null,null,"Closed 2008",true,{"$f":"IF(G2058<>\"\",INDIRECT(\"'\"&G2058&\"'!\"&H2058),\"\")","v":""}]
[2054,{"$nulls":3},true,{"$f":"IF(G2059<>\"\",INDIRECT(\"'\"&G2059&\"'!\"&H2059),\"\")","v":""}]
[2055,{"$nulls":3},true,{"$f":"IF(G2060<>\"\",INDIRECT(\"'\"&G2060&\"'!\"&H2060),\"\")","v":""}]
[2056,{"$nulls":3},true,{"$f":"IF(G2061<>\"\",INDIRECT(\"'\"&G2061&\"'!\"&H2061),\"\")","v":""}]
[2057,{"$nulls":3},true,{"$f":"IF(G2062<>\"\",INDIRECT(\"'\"&G2062&\"'!\"&H2062),\"\")","v":""}]
[2058,{"$nulls":3},true,{"$f":"IF(G2063<>\"\",INDIRECT(\"'\"&G2063&\"'!\"&H2063),\"\")","v":""}]
[2059,{"$nulls":3},true,{"$f":"IF(G2064<>\"\",INDIRECT(\"'\"&G2064&\"'!\"&H2064),\"\")","v":""}]
[2060,{"$nulls":3},true,{"$f":"IF(G2065<>\"\",INDIRECT(\"'\"&G2065&\"'!\"&H2065),\"\")","v":""}]
[2061,{"$nulls":3},true,{"$f":"IF(G2066<>\"\",INDIRECT(\"'\"&G2066&\"'!\"&H2066),\"\")","v":""}]
[2062,{"$nulls":3},true,{"$f":"IF(G2067<>\"\",INDIRECT(\"'\"&G2067&\"'!\"&H2067),\"\")","v":""}]
[2063,{"$nulls":3},true,{"$f":"IF(G2068<>\"\",INDIRECT(\"'\"&G2068&\"'!\"&H2068),\"\")","v":""}]
[2064,{"$nulls":3},true,{"$f":"IF(G2069<>\"\",INDIRECT(\"'\"&G2069&\"'!\"&H2069),\"\")","v":""}]
[2065,{"$nulls":3},true,{"$f":"IF(G2070<>\"\",INDIRECT(\"'\"&G2070&\"'!\"&H2070),\"\")","v":""}]
[2066,{"$nulls":3},true,{"$f":"IF(G2071<>\"\",INDIRECT(\"'\"&G2071&\"'!\"&H2071),\"\")","v":""}]
[2067,{"$nulls":3},true,{"$f":"IF(G2072<>\"\",INDIRECT(\"'\"&G2072&\"'!\"&H2072),\"\")","v":""}]
[2068,{"$nulls":3},true,{"$f":"IF(G2073<>\"\",INDIRECT(\"'\"&G2073&\"'!\"&H2073),\"\")","v":""}]
[2069,{"$nulls":3},true,{"$f":"IF(G2074<>\"\",INDIRECT(\"'\"&G2074&\"'!\"&H2074),\"\")","v":""}]
[2070,null,null,"Closed 2008",true,{"$f":"IF(G2075<>\"\",INDIRECT(\"'\"&G2075&\"'!\"&H2075),\"\")","v":""}]
[2071,{"$nulls":3},true,{"$f":"IF(G2076<>\"\",INDIRECT(\"'\"&G2076&\"'!\"&H2076),\"\")","v":""}]
[2072,{"$nulls":3},true,{"$f":"IF(G2077<>\"\",INDIRECT(\"'\"&G2077&\"'!\"&H2077),\"\")","v":""}]
[2073,{"$nulls":3},true,{"$f":"IF(G2078<>\"\",INDIRECT(\"'\"&G2078&\"'!\"&H2078),\"\")","v":""}]
[2074,{"$nulls":3},true,{"$f":"IF(G2079<>\"\",INDIRECT(\"'\"&G2079&\"'!\"&H2079),\"\")","v":""}]
[2075,{"$nulls":3},true,{"$f":"IF(G2080<>\"\",INDIRECT(\"'\"&G2080&\"'!\"&H2080),\"\")","v":""}]
[2076,{"$nulls":3},true,{"$f":"IF(G2081<>\"\",INDIRECT(\"'\"&G2081&\"'!\"&H2081),\"\")","v":""}]
[2077,{"$nulls":3},true,{"$f":"IF(G2082<>\"\",INDIRECT(\"'\"&G2082&\"'!\"&H2082),\"\")","v":""}]
[2078,{"$nulls":3},true,{"$f":"IF(G2083<>\"\",INDIRECT(\"'\"&G2083&\"'!\"&H2083),\"\")","v":""}]
[2079,{"$nulls":3},true,{"$f":"IF(G2084<>\"\",INDIRECT(\"'\"&G2084&\"'!\"&H2084),\"\")","v":""}]
[2080,{"$nulls":3},true,{"$f":"IF(G2085<>\"\",INDIRECT(\"'\"&G2085&\"'!\"&H2085),\"\")","v":""}]
[2081,{"$nulls":3},true,{"$f":"IF(G2086<>\"\",INDIRECT(\"'\"&G2086&\"'!\"&H2086),\"\")","v":""}]
[2082,{"$nulls":3},true,{"$f":"IF(G2087<>\"\",INDIRECT(\"'\"&G2087&\"'!\"&H2087),\"\")","v":""}]
[2083,{"$nulls":3},true,{"$f":"IF(G2088<>\"\",INDIRECT(\"'\"&G2088&\"'!\"&H2088),\"\")","v":""}]
[2084,{"$nulls":3},true,{"$f":"IF(G2089<>\"\",INDIRECT(\"'\"&G2089&\"'!\"&H2089),\"\")","v":""}]
[2085,{"$nulls":3},true,{"$f":"IF(G2090<>\"\",INDIRECT(\"'\"&G2090&\"'!\"&H2090),\"\")","v":""}]
[2086,{"$nulls":3},true,{"$f":"IF(G2091<>\"\",INDIRECT(\"'\"&G2091&\"'!\"&H2091),\"\")","v":""}]
[2087,{"$nulls":3},true,{"$f":"IF(G2092<>\"\",INDIRECT(\"'\"&G2092&\"'!\"&H2092),\"\")","v":""}]
[2088,{"$nulls":3},true,{"$f":"IF(G2093<>\"\",INDIRECT(\"'\"&G2093&\"'!\"&H2093),\"\")","v":""}]
[2089,{"$nulls":3},true,{"$f":"IF(G2094<>\"\",INDIRECT(\"'\"&G2094&\"'!\"&H2094),\"\")","v":""}]
[2090,{"$nulls":3},true,{"$f":"IF(G2095<>\"\",INDIRECT(\"'\"&G2095&\"'!\"&H2095),\"\")","v":""}]
[2091,{"$nulls":3},true,{"$f":"IF(G2096<>\"\",INDIRECT(\"'\"&G2096&\"'!\"&H2096),\"\")","v":""}]
[2092,{"$nulls":3},true,{"$f":"IF(G2097<>\"\",INDIRECT(\"'\"&G2097&\"'!\"&H2097),\"\")","v":""}]
[2093,{"$nulls":3},true,{"$f":"IF(G2098<>\"\",INDIRECT(\"'\"&G2098&\"'!\"&H2098),\"\")","v":""}]
[2094,{"$nulls":3},true,{"$f":"IF(G2099<>\"\",INDIRECT(\"'\"&G2099&\"'!\"&H2099),\"\")","v":""}]
[2095,{"$nulls":3},true,{"$f":"IF(G2100<>\"\",INDIRECT(\"'\"&G2100&\"'!\"&H2100),\"\")","v":""}]
[2096,{"$nulls":3},true,{"$f":"IF(G2101<>\"\",INDIRECT(\"'\"&G2101&\"'!\"&H2101),\"\")","v":""}]
[2097,{"$nulls":3},true,{"$f":"IF(G2102<>\"\",INDIRECT(\"'\"&G2102&\"'!\"&H2102),\"\")","v":""}]
[2098,{"$nulls":3},true,{"$f":"IF(G2103<>\"\",INDIRECT(\"'\"&G2103&\"'!\"&H2103),\"\")","v":""}]
[2099,{"$nulls":3},true,{"$f":"IF(G2104<>\"\",INDIRECT(\"'\"&G2104&\"'!\"&H2104),\"\")","v":""}]
[2100,{"$nulls":3},true,{"$f":"IF(G2105<>\"\",INDIRECT(\"'\"&G2105&\"'!\"&H2105),\"\")","v":""}]
[2101,{"$nulls":3},true,{"$f":"IF(G2106<>\"\",INDIRECT(\"'\"&G2106&\"'!\"&H2106),\"\")","v":""}]
[2102,{"$nulls":3},true,{"$f":"IF(G2107<>\"\",INDIRECT(\"'\"&G2107&\"'!\"&H2107),\"\")","v":""}]
[2103,{"$nulls":3},true,{"$f":"IF(G2108<>\"\",INDIRECT(\"'\"&G2108&\"'!\"&H2108),\"\")","v":""}]
[2104,{"$nulls":3},true,{"$f":"IF(G2109<>\"\",INDIRECT(\"'\"&G2109&\"'!\"&H2109),\"\")","v":""}]
[2105,{"$nulls":3},true,{"$f":"IF(G2110<>\"\",INDIRECT(\"'\"&G2110&\"'!\"&H2110),\"\")","v":""}]
[2106,{"$nulls":3},true,{"$f":"IF(G2111<>\"\",INDIRECT(\"'\"&G2111&\"'!\"&H2111),\"\")","v":""}]
[2107,{"$nulls":3},true,{"$f":"IF(G2112<>\"\",INDIRECT(\"'\"&G2112&\"'!\"&H2112),\"\")","v":""}]
[2108,{"$nulls":3},true,{"$f":"IF(G2113<>\"\",INDIRECT(\"'\"&G2113&\"'!\"&H2113),\"\")","v":""}]
[2109,{"$nulls":3},{"$f":"F2114=B2114","v":true},{"$f":"IF(G2114<>\"\",INDIRECT(\"'\"&G2114&\"'!\"&H2114),\"\")","v":""}]
[2110,{"$nulls":3},true,{"$f":"IF(G2115<>\"\",INDIRECT(\"'\"&G2115&\"'!\"&H2115),\"\")","v":""}]
[2111,{"$nulls":3},true,{"$f":"IF(G2116<>\"\",INDIRECT(\"'\"&G2116&\"'!\"&H2116),\"\")","v":""}]
[2112,{"$nulls":3},true,{"$f":"IF(G2117<>\"\",INDIRECT(\"'\"&G2117&\"'!\"&H2117),\"\")","v":""}]
[2113,{"$nulls":3},true,{"$f":"IF(G2118<>\"\",INDIRECT(\"'\"&G2118&\"'!\"&H2118),\"\")","v":""}]
[2114,{"$nulls":3},true,{"$f":"IF(G2119<>\"\",INDIRECT(\"'\"&G2119&\"'!\"&H2119),\"\")","v":""}]
[2115,{"$nulls":3},true,{"$f":"IF(G2120<>\"\",INDIRECT(\"'\"&G2120&\"'!\"&H2120),\"\")","v":""}]
[2116,{"$nulls":3},true,{"$f":"IF(G2121<>\"\",INDIRECT(\"'\"&G2121&\"'!\"&H2121),\"\")","v":""}]
[2117,{"$nulls":3},true,{"$f":"IF(G2122<>\"\",INDIRECT(\"'\"&G2122&\"'!\"&H2122),\"\")","v":""}]
[2118,{"$nulls":3},true,{"$f":"IF(G2123<>\"\",INDIRECT(\"'\"&G2123&\"'!\"&H2123),\"\")","v":""}]
[2119,{"$nulls":3},true,{"$f":"IF(G2124<>\"\",INDIRECT(\"'\"&G2124&\"'!\"&H2124),\"\")","v":""}]
[2120,{"$nulls":3},true,{"$f":"IF(G2125<>\"\",INDIRECT(\"'\"&G2125&\"'!\"&H2125),\"\")","v":""}]
[2121,{"$nulls":3},true,{"$f":"IF(G2126<>\"\",INDIRECT(\"'\"&G2126&\"'!\"&H2126),\"\")","v":""}]
[2122,{"$nulls":3},true,{"$f":"IF(G2127<>\"\",INDIRECT(\"'\"&G2127&\"'!\"&H2127),\"\")","v":""}]
[2123,{"$nulls":3},true,{"$f":"IF(G2128<>\"\",INDIRECT(\"'\"&G2128&\"'!\"&H2128),\"\")","v":""}]
[2124,{"$nulls":3},true,{"$f":"IF(G2129<>\"\",INDIRECT(\"'\"&G2129&\"'!\"&H2129),\"\")","v":""}]
[2125,{"$nulls":3},true,{"$f":"IF(G2130<>\"\",INDIRECT(\"'\"&G2130&\"'!\"&H2130),\"\")","v":""}]
[2126,{"$nulls":3},true,{"$f":"IF(G2131<>\"\",INDIRECT(\"'\"&G2131&\"'!\"&H2131),\"\")","v":""}]
[2127,{"$nulls":3},true,{"$f":"IF(G2132<>\"\",INDIRECT(\"'\"&G2132&\"'!\"&H2132),\"\")","v":""}]
[2128,{"$nulls":3},true,{"$f":"IF(G2133<>\"\",INDIRECT(\"'\"&G2133&\"'!\"&H2133),\"\")","v":""}]
[2129,{"$nulls":3},true,{"$f":"IF(G2134<>\"\",INDIRECT(\"'\"&G2134&\"'!\"&H2134),\"\")","v":""}]
[2130,{"$nulls":3},true,{"$f":"IF(G2135<>\"\",INDIRECT(\"'\"&G2135&\"'!\"&H2135),\"\")","v":""}]
[2131,{"$nulls":3},true,{"$f":"IF(G2136<>\"\",INDIRECT(\"'\"&G2136&\"'!\"&H2136),\"\")","v":""}]
[2132,{"$nulls":3},true,{"$f":"IF(G2137<>\"\",INDIRECT(\"'\"&G2137&\"'!\"&H2137),\"\")","v":""}]
[2133,{"$nulls":3},true,{"$f":"IF(G2138<>\"\",INDIRECT(\"'\"&G2138&\"'!\"&H2138),\"\")","v":""}]
[2134,{"$nulls":3},true,{"$f":"IF(G2139<>\"\",INDIRECT(\"'\"&G2139&\"'!\"&H2139),\"\")","v":""}]
[2135,{"$nulls":3},true,{"$f":"IF(G2140<>\"\",INDIRECT(\"'\"&G2140&\"'!\"&H2140),\"\")","v":""}]
[2136,{"$nulls":3},true,{"$f":"IF(G2141<>\"\",INDIRECT(\"'\"&G2141&\"'!\"&H2141),\"\")","v":""}]
[2137,{"$nulls":3},true,{"$f":"IF(G2142<>\"\",INDIRECT(\"'\"&G2142&\"'!\"&H2142),\"\")","v":""}]
[2138,{"$nulls":3},true,{"$f":"IF(G2143<>\"\",INDIRECT(\"'\"&G2143&\"'!\"&H2143),\"\")","v":""}]
[2139,{"$nulls":3},true,{"$f":"IF(G2144<>\"\",INDIRECT(\"'\"&G2144&\"'!\"&H2144),\"\")","v":""}]
[2140,{"$nulls":3},true,{"$f":"IF(G2145<>\"\",INDIRECT(\"'\"&G2145&\"'!\"&H2145),\"\")","v":""}]
[2141,{"$nulls":3},true,{"$f":"IF(G2146<>\"\",INDIRECT(\"'\"&G2146&\"'!\"&H2146),\"\")","v":""}]
[2142,{"$nulls":3},true,{"$f":"IF(G2147<>\"\",INDIRECT(\"'\"&G2147&\"'!\"&H2147),\"\")","v":""}]
[2143,{"$nulls":3},true,{"$f":"IF(G2148<>\"\",INDIRECT(\"'\"&G2148&\"'!\"&H2148),\"\")","v":""}]
[2144,{"$nulls":3},true,{"$f":"IF(G2149<>\"\",INDIRECT(\"'\"&G2149&\"'!\"&H2149),\"\")","v":""}]
[2145,{"$nulls":3},true,{"$f":"IF(G2150<>\"\",INDIRECT(\"'\"&G2150&\"'!\"&H2150),\"\")","v":""}]
[2146,{"$nulls":3},true,{"$f":"IF(G2151<>\"\",INDIRECT(\"'\"&G2151&\"'!\"&H2151),\"\")","v":""}]
[2147,{"$nulls":3},true,{"$f":"IF(G2152<>\"\",INDIRECT(\"'\"&G2152&\"'!\"&H2152),\"\")","v":""}]
[2148,{"$nulls":3},true,{"$f":"IF(G2153<>\"\",INDIRECT(\"'\"&G2153&\"'!\"&H2153),\"\")","v":""}]
[2149,{"$nulls":3},true,{"$f":"IF(G2154<>\"\",INDIRECT(\"'\"&G2154&\"'!\"&H2154),\"\")","v":""}]
[2150,{"$nulls":3},true,{"$f":"IF(G2155<>\"\",INDIRECT(\"'\"&G2155&\"'!\"&H2155),\"\")","v":""}]
[2151,{"$nulls":3},true,{"$f":"IF(G2156<>\"\",INDIRECT(\"'\"&G2156&\"'!\"&H2156),\"\")","v":""}]
[2152,{"$nulls":3},true,{"$f":"IF(G2157<>\"\",INDIRECT(\"'\"&G2157&\"'!\"&H2157),\"\")","v":""}]
[2153,{"$nulls":3},true,{"$f":"IF(G2158<>\"\",INDIRECT(\"'\"&G2158&\"'!\"&H2158),\"\")","v":""}]
[2154,{"$nulls":3},true,{"$f":"IF(G2159<>\"\",INDIRECT(\"'\"&G2159&\"'!\"&H2159),\"\")","v":""}]
[2155,{"$nulls":3},true,{"$f":"IF(G2160<>\"\",INDIRECT(\"'\"&G2160&\"'!\"&H2160),\"\")","v":""}]
[2156,{"$nulls":3},true,{"$f":"IF(G2161<>\"\",INDIRECT(\"'\"&G2161&\"'!\"&H2161),\"\")","v":""}]
[2157,{"$nulls":3},true,{"$f":"IF(G2162<>\"\",INDIRECT(\"'\"&G2162&\"'!\"&H2162),\"\")","v":""}]
[2158,{"$nulls":3},true,{"$f":"IF(G2163<>\"\",INDIRECT(\"'\"&G2163&\"'!\"&H2163),\"\")","v":""}]
[2159,{"$nulls":3},true,{"$f":"IF(G2164<>\"\",INDIRECT(\"'\"&G2164&\"'!\"&H2164),\"\")","v":""}]
[2160,{"$nulls":3},true,{"$f":"IF(G2165<>\"\",INDIRECT(\"'\"&G2165&\"'!\"&H2165),\"\")","v":""}]
[2161,{"$nulls":3},true,{"$f":"IF(G2166<>\"\",INDIRECT(\"'\"&G2166&\"'!\"&H2166),\"\")","v":""}]
[2162,{"$nulls":3},true,{"$f":"IF(G2167<>\"\",INDIRECT(\"'\"&G2167&\"'!\"&H2167),\"\")","v":""}]
[2163,{"$nulls":3},true,{"$f":"IF(G2168<>\"\",INDIRECT(\"'\"&G2168&\"'!\"&H2168),\"\")","v":""}]
[2164,{"$nulls":3},true,{"$f":"IF(G2169<>\"\",INDIRECT(\"'\"&G2169&\"'!\"&H2169),\"\")","v":""}]
[2165,{"$nulls":3},true,{"$f":"IF(G2170<>\"\",INDIRECT(\"'\"&G2170&\"'!\"&H2170),\"\")","v":""}]
[2166,{"$nulls":3},true,{"$f":"IF(G2171<>\"\",INDIRECT(\"'\"&G2171&\"'!\"&H2171),\"\")","v":""}]
[2167,{"$nulls":3},true,{"$f":"IF(G2172<>\"\",INDIRECT(\"'\"&G2172&\"'!\"&H2172),\"\")","v":""}]
[2168,{"$nulls":3},true,{"$f":"IF(G2173<>\"\",INDIRECT(\"'\"&G2173&\"'!\"&H2173),\"\")","v":""}]
[2169,{"$nulls":3},true,{"$f":"IF(G2174<>\"\",INDIRECT(\"'\"&G2174&\"'!\"&H2174),\"\")","v":""}]
[2170,{"$nulls":3},true,{"$f":"IF(G2175<>\"\",INDIRECT(\"'\"&G2175&\"'!\"&H2175),\"\")","v":""}]
[2171,{"$nulls":3},true,{"$f":"IF(G2176<>\"\",INDIRECT(\"'\"&G2176&\"'!\"&H2176),\"\")","v":""}]
[2172,{"$nulls":3},true,{"$f":"IF(G2177<>\"\",INDIRECT(\"'\"&G2177&\"'!\"&H2177),\"\")","v":""}]
[2173,{"$nulls":3},{"$f":"F2178=B2178","v":true},{"$f":"IF(G2178<>\"\",INDIRECT(\"'\"&G2178&\"'!\"&H2178),\"\")","v":""}]
[2174,{"$nulls":3},true,{"$f":"IF(G2179<>\"\",INDIRECT(\"'\"&G2179&\"'!\"&H2179),\"\")","v":""}]
[2175,{"$nulls":3},true,{"$f":"IF(G2180<>\"\",INDIRECT(\"'\"&G2180&\"'!\"&H2180),\"\")","v":""}]
[2176,{"$nulls":3},true,{"$f":"IF(G2181<>\"\",INDIRECT(\"'\"&G2181&\"'!\"&H2181),\"\")","v":""}]
[2177,{"$nulls":3},true,{"$f":"IF(G2182<>\"\",INDIRECT(\"'\"&G2182&\"'!\"&H2182),\"\")","v":""}]
[2178,{"$nulls":3},true,{"$f":"IF(G2183<>\"\",INDIRECT(\"'\"&G2183&\"'!\"&H2183),\"\")","v":""}]
[2179,{"$nulls":3},true,{"$f":"IF(G2184<>\"\",INDIRECT(\"'\"&G2184&\"'!\"&H2184),\"\")","v":""}]
[2180,{"$nulls":3},true,{"$f":"IF(G2185<>\"\",INDIRECT(\"'\"&G2185&\"'!\"&H2185),\"\")","v":""}]
[2181,{"$nulls":3},true,{"$f":"IF(G2186<>\"\",INDIRECT(\"'\"&G2186&\"'!\"&H2186),\"\")","v":""}]
[2182,{"$nulls":3},true,{"$f":"IF(G2187<>\"\",INDIRECT(\"'\"&G2187&\"'!\"&H2187),\"\")","v":""}]
[2183,{"$nulls":3},true,{"$f":"IF(G2188<>\"\",INDIRECT(\"'\"&G2188&\"'!\"&H2188),\"\")","v":""}]
[2184,{"$nulls":3},true,{"$f":"IF(G2189<>\"\",INDIRECT(\"'\"&G2189&\"'!\"&H2189),\"\")","v":""}]
[2185,{"$nulls":3},true,{"$f":"IF(G2190<>\"\",INDIRECT(\"'\"&G2190&\"'!\"&H2190),\"\")","v":""}]
[2186,{"$nulls":3},true,{"$f":"IF(G2191<>\"\",INDIRECT(\"'\"&G2191&\"'!\"&H2191),\"\")","v":""}]
[2187,{"$nulls":3},true,{"$f":"IF(G2192<>\"\",INDIRECT(\"'\"&G2192&\"'!\"&H2192),\"\")","v":""}]
[2188,{"$nulls":3},true,{"$f":"IF(G2193<>\"\",INDIRECT(\"'\"&G2193&\"'!\"&H2193),\"\")","v":""}]
[2189,{"$nulls":3},true,{"$f":"IF(G2194<>\"\",INDIRECT(\"'\"&G2194&\"'!\"&H2194),\"\")","v":""}]
[2190,{"$nulls":3},true,{"$f":"IF(G2195<>\"\",INDIRECT(\"'\"&G2195&\"'!\"&H2195),\"\")","v":""}]
[2191,{"$nulls":3},true,{"$f":"IF(G2196<>\"\",INDIRECT(\"'\"&G2196&\"'!\"&H2196),\"\")","v":""}]
[2192,{"$nulls":3},true,{"$f":"IF(G2197<>\"\",INDIRECT(\"'\"&G2197&\"'!\"&H2197),\"\")","v":""}]
[2193,{"$nulls":3},true,{"$f":"IF(G2198<>\"\",INDIRECT(\"'\"&G2198&\"'!\"&H2198),\"\")","v":""}]
[2194,{"$nulls":3},true,{"$f":"IF(G2199<>\"\",INDIRECT(\"'\"&G2199&\"'!\"&H2199),\"\")","v":""}]
[2195,{"$nulls":3},true,{"$f":"IF(G2200<>\"\",INDIRECT(\"'\"&G2200&\"'!\"&H2200),\"\")","v":""}]
[2196,{"$nulls":3},true,{"$f":"IF(G2201<>\"\",INDIRECT(\"'\"&G2201&\"'!\"&H2201),\"\")","v":""}]
[2197,{"$nulls":3},true,{"$f":"IF(G2202<>\"\",INDIRECT(\"'\"&G2202&\"'!\"&H2202),\"\")","v":""}]
[2198,{"$nulls":3},true,{"$f":"IF(G2203<>\"\",INDIRECT(\"'\"&G2203&\"'!\"&H2203),\"\")","v":""}]
[2199,{"$nulls":3},true,{"$f":"IF(G2204<>\"\",INDIRECT(\"'\"&G2204&\"'!\"&H2204),\"\")","v":""}]
[2200,{"$nulls":3},true,{"$f":"IF(G2205<>\"\",INDIRECT(\"'\"&G2205&\"'!\"&H2205),\"\")","v":""}]
[2201,{"$nulls":3},true,{"$f":"IF(G2206<>\"\",INDIRECT(\"'\"&G2206&\"'!\"&H2206),\"\")","v":""}]
[2202,{"$nulls":3},true,{"$f":"IF(G2207<>\"\",INDIRECT(\"'\"&G2207&\"'!\"&H2207),\"\")","v":""}]
[2203,{"$nulls":3},true,{"$f":"IF(G2208<>\"\",INDIRECT(\"'\"&G2208&\"'!\"&H2208),\"\")","v":""}]
[2204,{"$nulls":3},true,{"$f":"IF(G2209<>\"\",INDIRECT(\"'\"&G2209&\"'!\"&H2209),\"\")","v":""}]
[2205,{"$nulls":3},true,{"$f":"IF(G2210<>\"\",INDIRECT(\"'\"&G2210&\"'!\"&H2210),\"\")","v":""}]
[2206,{"$nulls":3},true,{"$f":"IF(G2211<>\"\",INDIRECT(\"'\"&G2211&\"'!\"&H2211),\"\")","v":""}]
[2207,{"$nulls":3},true,{"$f":"IF(G2212<>\"\",INDIRECT(\"'\"&G2212&\"'!\"&H2212),\"\")","v":""}]
[2208,{"$nulls":3},true,{"$f":"IF(G2213<>\"\",INDIRECT(\"'\"&G2213&\"'!\"&H2213),\"\")","v":""}]
[2209,{"$nulls":3},true,{"$f":"IF(G2214<>\"\",INDIRECT(\"'\"&G2214&\"'!\"&H2214),\"\")","v":""}]
[2210,{"$nulls":3},true,{"$f":"IF(G2215<>\"\",INDIRECT(\"'\"&G2215&\"'!\"&H2215),\"\")","v":""}]
[2211,{"$nulls":3},true,{"$f":"IF(G2216<>\"\",INDIRECT(\"'\"&G2216&\"'!\"&H2216),\"\")","v":""}]
[2212,{"$nulls":3},true,{"$f":"IF(G2217<>\"\",INDIRECT(\"'\"&G2217&\"'!\"&H2217),\"\")","v":""}]
[2213,{"$nulls":3},true,{"$f":"IF(G2218<>\"\",INDIRECT(\"'\"&G2218&\"'!\"&H2218),\"\")","v":""}]
[2214,{"$nulls":3},true,{"$f":"IF(G2219<>\"\",INDIRECT(\"'\"&G2219&\"'!\"&H2219),\"\")","v":""}]
[2215,{"$nulls":3},true,{"$f":"IF(G2220<>\"\",INDIRECT(\"'\"&G2220&\"'!\"&H2220),\"\")","v":""}]
[2216,{"$nulls":3},true,{"$f":"IF(G2221<>\"\",INDIRECT(\"'\"&G2221&\"'!\"&H2221),\"\")","v":""}]
[2217,{"$nulls":3},true,{"$f":"IF(G2222<>\"\",INDIRECT(\"'\"&G2222&\"'!\"&H2222),\"\")","v":""}]
[2218,{"$nulls":3},true,{"$f":"IF(G2223<>\"\",INDIRECT(\"'\"&G2223&\"'!\"&H2223),\"\")","v":""}]
[2219,{"$nulls":3},true,{"$f":"IF(G2224<>\"\",INDIRECT(\"'\"&G2224&\"'!\"&H2224),\"\")","v":""}]
[2220,{"$nulls":3},true,{"$f":"IF(G2225<>\"\",INDIRECT(\"'\"&G2225&\"'!\"&H2225),\"\")","v":""}]
[2221,{"$nulls":3},true,{"$f":"IF(G2226<>\"\",INDIRECT(\"'\"&G2226&\"'!\"&H2226),\"\")","v":""}]
[2222,{"$nulls":3},true,{"$f":"IF(G2227<>\"\",INDIRECT(\"'\"&G2227&\"'!\"&H2227),\"\")","v":""}]
[2223,{"$nulls":3},true,{"$f":"IF(G2228<>\"\",INDIRECT(\"'\"&G2228&\"'!\"&H2228),\"\")","v":""}]
[2224,{"$nulls":3},true,{"$f":"IF(G2229<>\"\",INDIRECT(\"'\"&G2229&\"'!\"&H2229),\"\")","v":""}]
[2225,{"$nulls":3},true,{"$f":"IF(G2230<>\"\",INDIRECT(\"'\"&G2230&\"'!\"&H2230),\"\")","v":""}]
[2226,{"$nulls":3},true,{"$f":"IF(G2231<>\"\",INDIRECT(\"'\"&G2231&\"'!\"&H2231),\"\")","v":""}]
[2227,{"$nulls":3},true,{"$f":"IF(G2232<>\"\",INDIRECT(\"'\"&G2232&\"'!\"&H2232),\"\")","v":""}]
[2228,{"$nulls":3},true,{"$f":"IF(G2233<>\"\",INDIRECT(\"'\"&G2233&\"'!\"&H2233),\"\")","v":""}]
[2229,{"$nulls":3},true,{"$f":"IF(G2234<>\"\",INDIRECT(\"'\"&G2234&\"'!\"&H2234),\"\")","v":""}]
[2230,{"$nulls":3},true,{"$f":"IF(G2235<>\"\",INDIRECT(\"'\"&G2235&\"'!\"&H2235),\"\")","v":""}]
[2231,{"$nulls":3},true,{"$f":"IF(G2236<>\"\",INDIRECT(\"'\"&G2236&\"'!\"&H2236),\"\")","v":""}]
[2232,{"$nulls":3},true,{"$f":"IF(G2237<>\"\",INDIRECT(\"'\"&G2237&\"'!\"&H2237),\"\")","v":""}]
[2233,{"$nulls":3},true,{"$f":"IF(G2238<>\"\",INDIRECT(\"'\"&G2238&\"'!\"&H2238),\"\")","v":""}]
[2234,{"$nulls":3},true,{"$f":"IF(G2239<>\"\",INDIRECT(\"'\"&G2239&\"'!\"&H2239),\"\")","v":""}]
[2235,{"$nulls":3},true,{"$f":"IF(G2240<>\"\",INDIRECT(\"'\"&G2240&\"'!\"&H2240),\"\")","v":""}]
[2236,{"$nulls":3},true,{"$f":"IF(G2241<>\"\",INDIRECT(\"'\"&G2241&\"'!\"&H2241),\"\")","v":""}]
[2237,{"$nulls":3},{"$f":"F2242=B2242","v":true},{"$f":"IF(G2242<>\"\",INDIRECT(\"'\"&G2242&\"'!\"&H2242),\"\")","v":""}]
[2238,{"$nulls":3},true,{"$f":"IF(G2243<>\"\",INDIRECT(\"'\"&G2243&\"'!\"&H2243),\"\")","v":""}]
[2239,{"$nulls":3},true,{"$f":"IF(G2244<>\"\",INDIRECT(\"'\"&G2244&\"'!\"&H2244),\"\")","v":""}]
[2240,{"$nulls":3},true,{"$f":"IF(G2245<>\"\",INDIRECT(\"'\"&G2245&\"'!\"&H2245),\"\")","v":""}]
[2241,{"$nulls":3},true,{"$f":"IF(G2246<>\"\",INDIRECT(\"'\"&G2246&\"'!\"&H2246),\"\")","v":""}]
[2242,{"$nulls":3},true,{"$f":"IF(G2247<>\"\",INDIRECT(\"'\"&G2247&\"'!\"&H2247),\"\")","v":""}]
[2243,{"$nulls":3},true,{"$f":"IF(G2248<>\"\",INDIRECT(\"'\"&G2248&\"'!\"&H2248),\"\")","v":""}]
[2244,{"$nulls":3},true,{"$f":"IF(G2249<>\"\",INDIRECT(\"'\"&G2249&\"'!\"&H2249),\"\")","v":""}]
[2245,{"$nulls":3},true,{"$f":"IF(G2250<>\"\",INDIRECT(\"'\"&G2250&\"'!\"&H2250),\"\")","v":""}]
[2246,{"$nulls":3},true,{"$f":"IF(G2251<>\"\",INDIRECT(\"'\"&G2251&\"'!\"&H2251),\"\")","v":""}]
[2247,{"$nulls":3},true,{"$f":"IF(G2252<>\"\",INDIRECT(\"'\"&G2252&\"'!\"&H2252),\"\")","v":""}]
[2248,{"$nulls":3},true,{"$f":"IF(G2253<>\"\",INDIRECT(\"'\"&G2253&\"'!\"&H2253),\"\")","v":""}]
[2249,{"$nulls":3},true,{"$f":"IF(G2254<>\"\",INDIRECT(\"'\"&G2254&\"'!\"&H2254),\"\")","v":""}]
[2250,{"$nulls":3},true,{"$f":"IF(G2255<>\"\",INDIRECT(\"'\"&G2255&\"'!\"&H2255),\"\")","v":""}]
[2251,{"$nulls":3},true,{"$f":"IF(G2256<>\"\",INDIRECT(\"'\"&G2256&\"'!\"&H2256),\"\")","v":""}]
[2252,{"$nulls":3},true,{"$f":"IF(G2257<>\"\",INDIRECT(\"'\"&G2257&\"'!\"&H2257),\"\")","v":""}]
[2253,{"$nulls":3},true,{"$f":"IF(G2258<>\"\",INDIRECT(\"'\"&G2258&\"'!\"&H2258),\"\")","v":""}]
[2254,{"$nulls":3},true,{"$f":"IF(G2259<>\"\",INDIRECT(\"'\"&G2259&\"'!\"&H2259),\"\")","v":""}]
[2255,{"$nulls":3},true,{"$f":"IF(G2260<>\"\",INDIRECT(\"'\"&G2260&\"'!\"&H2260),\"\")","v":""}]
[2256,{"$nulls":3},true,{"$f":"IF(G2261<>\"\",INDIRECT(\"'\"&G2261&\"'!\"&H2261),\"\")","v":""}]
[2257,{"$nulls":3},true,{"$f":"IF(G2262<>\"\",INDIRECT(\"'\"&G2262&\"'!\"&H2262),\"\")","v":""}]
[2258,{"$nulls":3},true,{"$f":"IF(G2263<>\"\",INDIRECT(\"'\"&G2263&\"'!\"&H2263),\"\")","v":""}]
[2259,{"$nulls":3},true,{"$f":"IF(G2264<>\"\",INDIRECT(\"'\"&G2264&\"'!\"&H2264),\"\")","v":""}]
[2260,{"$nulls":3},true,{"$f":"IF(G2265<>\"\",INDIRECT(\"'\"&G2265&\"'!\"&H2265),\"\")","v":""}]
[2261,{"$nulls":3},true,{"$f":"IF(G2266<>\"\",INDIRECT(\"'\"&G2266&\"'!\"&H2266),\"\")","v":""}]
[2262,{"$nulls":3},true,{"$f":"IF(G2267<>\"\",INDIRECT(\"'\"&G2267&\"'!\"&H2267),\"\")","v":""}]
[2263,{"$nulls":3},true,{"$f":"IF(G2268<>\"\",INDIRECT(\"'\"&G2268&\"'!\"&H2268),\"\")","v":""}]
[2264,{"$nulls":3},true,{"$f":"IF(G2269<>\"\",INDIRECT(\"'\"&G2269&\"'!\"&H2269),\"\")","v":""}]
[2265,{"$nulls":3},true,{"$f":"IF(G2270<>\"\",INDIRECT(\"'\"&G2270&\"'!\"&H2270),\"\")","v":""}]
[2266,{"$nulls":3},true,{"$f":"IF(G2271<>\"\",INDIRECT(\"'\"&G2271&\"'!\"&H2271),\"\")","v":""}]
[2267,{"$nulls":3},true,{"$f":"IF(G2272<>\"\",INDIRECT(\"'\"&G2272&\"'!\"&H2272),\"\")","v":""}]
[2268,{"$nulls":3},true,{"$f":"IF(G2273<>\"\",INDIRECT(\"'\"&G2273&\"'!\"&H2273),\"\")","v":""}]
[2269,{"$nulls":3},true,{"$f":"IF(G2274<>\"\",INDIRECT(\"'\"&G2274&\"'!\"&H2274),\"\")","v":""}]
[2270,{"$nulls":3},true,{"$f":"IF(G2275<>\"\",INDIRECT(\"'\"&G2275&\"'!\"&H2275),\"\")","v":""}]
[2271,{"$nulls":3},true,{"$f":"IF(G2276<>\"\",INDIRECT(\"'\"&G2276&\"'!\"&H2276),\"\")","v":""}]
[2272,{"$nulls":3},true,{"$f":"IF(G2277<>\"\",INDIRECT(\"'\"&G2277&\"'!\"&H2277),\"\")","v":""}]
[2273,{"$nulls":3},true,{"$f":"IF(G2278<>\"\",INDIRECT(\"'\"&G2278&\"'!\"&H2278),\"\")","v":""}]
[2274,{"$nulls":3},true,{"$f":"IF(G2279<>\"\",INDIRECT(\"'\"&G2279&\"'!\"&H2279),\"\")","v":""}]
[2275,{"$nulls":3},true,{"$f":"IF(G2280<>\"\",INDIRECT(\"'\"&G2280&\"'!\"&H2280),\"\")","v":""}]
[2276,{"$nulls":3},true,{"$f":"IF(G2281<>\"\",INDIRECT(\"'\"&G2281&\"'!\"&H2281),\"\")","v":""}]
[2277,{"$nulls":3},true,{"$f":"IF(G2282<>\"\",INDIRECT(\"'\"&G2282&\"'!\"&H2282),\"\")","v":""}]
[2278,{"$nulls":3},true,{"$f":"IF(G2283<>\"\",INDIRECT(\"'\"&G2283&\"'!\"&H2283),\"\")","v":""}]
[2279,{"$nulls":3},true,{"$f":"IF(G2284<>\"\",INDIRECT(\"'\"&G2284&\"'!\"&H2284),\"\")","v":""}]
[2280,{"$nulls":3},true,{"$f":"IF(G2285<>\"\",INDIRECT(\"'\"&G2285&\"'!\"&H2285),\"\")","v":""}]
[2281,{"$nulls":3},true,{"$f":"IF(G2286<>\"\",INDIRECT(\"'\"&G2286&\"'!\"&H2286),\"\")","v":""}]
[2282,{"$nulls":3},true,{"$f":"IF(G2287<>\"\",INDIRECT(\"'\"&G2287&\"'!\"&H2287),\"\")","v":""}]
[2283,{"$nulls":3},true,{"$f":"IF(G2288<>\"\",INDIRECT(\"'\"&G2288&\"'!\"&H2288),\"\")","v":""}]
[2284,{"$nulls":3},true,{"$f":"IF(G2289<>\"\",INDIRECT(\"'\"&G2289&\"'!\"&H2289),\"\")","v":""}]
[2285,{"$nulls":3},true,{"$f":"IF(G2290<>\"\",INDIRECT(\"'\"&G2290&\"'!\"&H2290),\"\")","v":""}]
[2286,{"$nulls":3},true,{"$f":"IF(G2291<>\"\",INDIRECT(\"'\"&G2291&\"'!\"&H2291),\"\")","v":""}]
[2287,{"$nulls":3},true,{"$f":"IF(G2292<>\"\",INDIRECT(\"'\"&G2292&\"'!\"&H2292),\"\")","v":""}]
[2288,{"$nulls":3},true,{"$f":"IF(G2293<>\"\",INDIRECT(\"'\"&G2293&\"'!\"&H2293),\"\")","v":""}]
[2289,{"$nulls":3},true,{"$f":"IF(G2294<>\"\",INDIRECT(\"'\"&G2294&\"'!\"&H2294),\"\")","v":""}]
[2290,{"$nulls":3},true,{"$f":"IF(G2295<>\"\",INDIRECT(\"'\"&G2295&\"'!\"&H2295),\"\")","v":""}]
[2291,{"$nulls":3},true,{"$f":"IF(G2296<>\"\",INDIRECT(\"'\"&G2296&\"'!\"&H2296),\"\")","v":""}]
[2292,{"$nulls":3},true,{"$f":"IF(G2297<>\"\",INDIRECT(\"'\"&G2297&\"'!\"&H2297),\"\")","v":""}]
[2293,{"$nulls":3},true,{"$f":"IF(G2298<>\"\",INDIRECT(\"'\"&G2298&\"'!\"&H2298),\"\")","v":""}]
[2294,{"$nulls":3},true,{"$f":"IF(G2299<>\"\",INDIRECT(\"'\"&G2299&\"'!\"&H2299),\"\")","v":""}]
[2295,{"$nulls":3},true,{"$f":"IF(G2300<>\"\",INDIRECT(\"'\"&G2300&\"'!\"&H2300),\"\")","v":""}]
[2296,{"$nulls":3},true,{"$f":"IF(G2301<>\"\",INDIRECT(\"'\"&G2301&\"'!\"&H2301),\"\")","v":""}]
[2297,{"$nulls":3},true,{"$f":"IF(G2302<>\"\",INDIRECT(\"'\"&G2302&\"'!\"&H2302),\"\")","v":""}]
[2298,{"$nulls":3},true,{"$f":"IF(G2303<>\"\",INDIRECT(\"'\"&G2303&\"'!\"&H2303),\"\")","v":""}]
[2299,{"$nulls":3},true,{"$f":"IF(G2304<>\"\",INDIRECT(\"'\"&G2304&\"'!\"&H2304),\"\")","v":""}]
[2300,{"$nulls":3},true,{"$f":"IF(G2305<>\"\",INDIRECT(\"'\"&G2305&\"'!\"&H2305),\"\")","v":""}]
[2301,{"$nulls":3},{"$f":"F2306=B2306","v":true},{"$f":"IF(G2306<>\"\",INDIRECT(\"'\"&G2306&\"'!\"&H2306),\"\")","v":""}]
[2302,{"$nulls":3},true,{"$f":"IF(G2307<>\"\",INDIRECT(\"'\"&G2307&\"'!\"&H2307),\"\")","v":""}]
[2303,{"$nulls":3},true,{"$f":"IF(G2308<>\"\",INDIRECT(\"'\"&G2308&\"'!\"&H2308),\"\")","v":""}]
[2304,{"$nulls":3},true,{"$f":"IF(G2309<>\"\",INDIRECT(\"'\"&G2309&\"'!\"&H2309),\"\")","v":""}]
[2305,{"$nulls":3},true,{"$f":"IF(G2310<>\"\",INDIRECT(\"'\"&G2310&\"'!\"&H2310),\"\")","v":""}]
[2306,{"$nulls":3},true,{"$f":"IF(G2311<>\"\",INDIRECT(\"'\"&G2311&\"'!\"&H2311),\"\")","v":""}]
[2307,{"$nulls":3},true,{"$f":"IF(G2312<>\"\",INDIRECT(\"'\"&G2312&\"'!\"&H2312),\"\")","v":""}]
[2308,{"$nulls":3},true,{"$f":"IF(G2313<>\"\",INDIRECT(\"'\"&G2313&\"'!\"&H2313),\"\")","v":""}]
[2309,{"$nulls":3},true,{"$f":"IF(G2314<>\"\",INDIRECT(\"'\"&G2314&\"'!\"&H2314),\"\")","v":""}]
[2310,{"$nulls":3},true,{"$f":"IF(G2315<>\"\",INDIRECT(\"'\"&G2315&\"'!\"&H2315),\"\")","v":""}]
[2311,{"$nulls":3},true,{"$f":"IF(G2316<>\"\",INDIRECT(\"'\"&G2316&\"'!\"&H2316),\"\")","v":""}]
[2312,{"$nulls":3},true,{"$f":"IF(G2317<>\"\",INDIRECT(\"'\"&G2317&\"'!\"&H2317),\"\")","v":""}]
[2313,{"$nulls":3},true,{"$f":"IF(G2318<>\"\",INDIRECT(\"'\"&G2318&\"'!\"&H2318),\"\")","v":""}]
[2314,{"$nulls":3},true,{"$f":"IF(G2319<>\"\",INDIRECT(\"'\"&G2319&\"'!\"&H2319),\"\")","v":""}]
[2315,{"$nulls":3},true,{"$f":"IF(G2320<>\"\",INDIRECT(\"'\"&G2320&\"'!\"&H2320),\"\")","v":""}]
[2316,{"$nulls":3},true,{"$f":"IF(G2321<>\"\",INDIRECT(\"'\"&G2321&\"'!\"&H2321),\"\")","v":""}]
[2317,{"$nulls":3},true,{"$f":"IF(G2322<>\"\",INDIRECT(\"'\"&G2322&\"'!\"&H2322),\"\")","v":""}]
[2318,{"$nulls":3},true,{"$f":"IF(G2323<>\"\",INDIRECT(\"'\"&G2323&\"'!\"&H2323),\"\")","v":""}]
[2319,{"$nulls":3},true,{"$f":"IF(G2324<>\"\",INDIRECT(\"'\"&G2324&\"'!\"&H2324),\"\")","v":""}]
[2320,{"$nulls":3},true,{"$f":"IF(G2325<>\"\",INDIRECT(\"'\"&G2325&\"'!\"&H2325),\"\")","v":""}]
[2321,{"$nulls":3},true,{"$f":"IF(G2326<>\"\",INDIRECT(\"'\"&G2326&\"'!\"&H2326),\"\")","v":""}]
[2322,{"$nulls":3},true,{"$f":"IF(G2327<>\"\",INDIRECT(\"'\"&G2327&\"'!\"&H2327),\"\")","v":""}]
[2323,{"$nulls":3},true,{"$f":"IF(G2328<>\"\",INDIRECT(\"'\"&G2328&\"'!\"&H2328),\"\")","v":""}]
[2324,{"$nulls":3},true,{"$f":"IF(G2329<>\"\",INDIRECT(\"'\"&G2329&\"'!\"&H2329),\"\")","v":""}]
[2325,{"$nulls":3},true,{"$f":"IF(G2330<>\"\",INDIRECT(\"'\"&G2330&\"'!\"&H2330),\"\")","v":""}]
[2326,{"$nulls":3},true,{"$f":"IF(G2331<>\"\",INDIRECT(\"'\"&G2331&\"'!\"&H2331),\"\")","v":""}]
[2327,{"$nulls":3},true,{"$f":"IF(G2332<>\"\",INDIRECT(\"'\"&G2332&\"'!\"&H2332),\"\")","v":""}]
[2328,{"$nulls":3},true,{"$f":"IF(G2333<>\"\",INDIRECT(\"'\"&G2333&\"'!\"&H2333),\"\")","v":""}]
[2329,{"$nulls":3},true,{"$f":"IF(G2334<>\"\",INDIRECT(\"'\"&G2334&\"'!\"&H2334),\"\")","v":""}]
[2330,{"$nulls":3},true,{"$f":"IF(G2335<>\"\",INDIRECT(\"'\"&G2335&\"'!\"&H2335),\"\")","v":""}]
[2331,{"$nulls":3},true,{"$f":"IF(G2336<>\"\",INDIRECT(\"'\"&G2336&\"'!\"&H2336),\"\")","v":""}]
[2332,{"$nulls":3},true,{"$f":"IF(G2337<>\"\",INDIRECT(\"'\"&G2337&\"'!\"&H2337),\"\")","v":""}]
[2333,{"$nulls":3},true,{"$f":"IF(G2338<>\"\",INDIRECT(\"'\"&G2338&\"'!\"&H2338),\"\")","v":""}]
[2334,{"$nulls":3},true,{"$f":"IF(G2339<>\"\",INDIRECT(\"'\"&G2339&\"'!\"&H2339),\"\")","v":""}]
[2335,{"$nulls":3},true,{"$f":"IF(G2340<>\"\",INDIRECT(\"'\"&G2340&\"'!\"&H2340),\"\")","v":""}]
[2336,{"$nulls":3},true,{"$f":"IF(G2341<>\"\",INDIRECT(\"'\"&G2341&\"'!\"&H2341),\"\")","v":""}]
[2337,{"$nulls":3},true,{"$f":"IF(G2342<>\"\",INDIRECT(\"'\"&G2342&\"'!\"&H2342),\"\")","v":""}]
[2338,{"$nulls":3},true,{"$f":"IF(G2343<>\"\",INDIRECT(\"'\"&G2343&\"'!\"&H2343),\"\")","v":""}]
[2339,{"$nulls":3},true,{"$f":"IF(G2344<>\"\",INDIRECT(\"'\"&G2344&\"'!\"&H2344),\"\")","v":""}]
[2340,{"$nulls":3},true,{"$f":"IF(G2345<>\"\",INDIRECT(\"'\"&G2345&\"'!\"&H2345),\"\")","v":""}]
[2341,{"$nulls":3},true,{"$f":"IF(G2346<>\"\",INDIRECT(\"'\"&G2346&\"'!\"&H2346),\"\")","v":""}]
[2342,{"$nulls":3},true,{"$f":"IF(G2347<>\"\",INDIRECT(\"'\"&G2347&\"'!\"&H2347),\"\")","v":""}]
[2343,{"$nulls":3},true,{"$f":"IF(G2348<>\"\",INDIRECT(\"'\"&G2348&\"'!\"&H2348),\"\")","v":""}]
[2344,{"$nulls":3},true,{"$f":"IF(G2349<>\"\",INDIRECT(\"'\"&G2349&\"'!\"&H2349),\"\")","v":""}]
[2345,{"$nulls":3},true,{"$f":"IF(G2350<>\"\",INDIRECT(\"'\"&G2350&\"'!\"&H2350),\"\")","v":""}]
[2346,{"$nulls":3},true,{"$f":"IF(G2351<>\"\",INDIRECT(\"'\"&G2351&\"'!\"&H2351),\"\")","v":""}]
[2347,{"$nulls":3},true,{"$f":"IF(G2352<>\"\",INDIRECT(\"'\"&G2352&\"'!\"&H2352),\"\")","v":""}]
[2348,{"$nulls":3},true,{"$f":"IF(G2353<>\"\",INDIRECT(\"'\"&G2353&\"'!\"&H2353),\"\")","v":""}]
[2349,{"$nulls":3},true,{"$f":"IF(G2354<>\"\",INDIRECT(\"'\"&G2354&\"'!\"&H2354),\"\")","v":""}]
[2350,{"$nulls":3},true,{"$f":"IF(G2355<>\"\",INDIRECT(\"'\"&G2355&\"'!\"&H2355),\"\")","v":""}]
[2351,{"$nulls":3},true,{"$f":"IF(G2356<>\"\",INDIRECT(\"'\"&G2356&\"'!\"&H2356),\"\")","v":""}]
[2352,{"$nulls":3},true,{"$f":"IF(G2357<>\"\",INDIRECT(\"'\"&G2357&\"'!\"&H2357),\"\")","v":""}]
[2353,{"$nulls":3},true,{"$f":"IF(G2358<>\"\",INDIRECT(\"'\"&G2358&\"'!\"&H2358),\"\")","v":""}]
[2354,{"$nulls":3},true,{"$f":"IF(G2359<>\"\",INDIRECT(\"'\"&G2359&\"'!\"&H2359),\"\")","v":""}]
[2355,{"$nulls":3},true,{"$f":"IF(G2360<>\"\",INDIRECT(\"'\"&G2360&\"'!\"&H2360),\"\")","v":""}]
[2356,{"$nulls":3},true,{"$f":"IF(G2361<>\"\",INDIRECT(\"'\"&G2361&\"'!\"&H2361),\"\")","v":""}]
[2357,{"$nulls":3},true,{"$f":"IF(G2362<>\"\",INDIRECT(\"'\"&G2362&\"'!\"&H2362),\"\")","v":""}]
[2358,{"$nulls":3},true,{"$f":"IF(G2363<>\"\",INDIRECT(\"'\"&G2363&\"'!\"&H2363),\"\")","v":""}]
[2359,{"$nulls":3},true,{"$f":"IF(G2364<>\"\",INDIRECT(\"'\"&G2364&\"'!\"&H2364),\"\")","v":""}]
[2360,{"$nulls":3},true,{"$f":"IF(G2365<>\"\",INDIRECT(\"'\"&G2365&\"'!\"&H2365),\"\")","v":""}]
[2361,{"$nulls":3},true,{"$f":"IF(G2366<>\"\",INDIRECT(\"'\"&G2366&\"'!\"&H2366),\"\")","v":""}]
[2362,{"$nulls":3},true,{"$f":"IF(G2367<>\"\",INDIRECT(\"'\"&G2367&\"'!\"&H2367),\"\")","v":""}]
[2363,{"$nulls":3},true,{"$f":"IF(G2368<>\"\",INDIRECT(\"'\"&G2368&\"'!\"&H2368),\"\")","v":""}]
[2364,{"$nulls":3},true,{"$f":"IF(G2369<>\"\",INDIRECT(\"'\"&G2369&\"'!\"&H2369),\"\")","v":""}]
[2365,{"$nulls":3},{"$f":"F2370=B2370","v":true},{"$f":"IF(G2370<>\"\",INDIRECT(\"'\"&G2370&\"'!\"&H2370),\"\")","v":""}]
[2366,{"$nulls":3},true,{"$f":"IF(G2371<>\"\",INDIRECT(\"'\"&G2371&\"'!\"&H2371),\"\")","v":""}]
[2367,{"$nulls":3},true,{"$f":"IF(G2372<>\"\",INDIRECT(\"'\"&G2372&\"'!\"&H2372),\"\")","v":""}]
[2368,{"$nulls":3},true,{"$f":"IF(G2373<>\"\",INDIRECT(\"'\"&G2373&\"'!\"&H2373),\"\")","v":""}]
[2369,{"$nulls":3},true,{"$f":"IF(G2374<>\"\",INDIRECT(\"'\"&G2374&\"'!\"&H2374),\"\")","v":""}]
[2370,{"$nulls":3},true,{"$f":"IF(G2375<>\"\",INDIRECT(\"'\"&G2375&\"'!\"&H2375),\"\")","v":""}]
[2371,{"$nulls":3},true,{"$f":"IF(G2376<>\"\",INDIRECT(\"'\"&G2376&\"'!\"&H2376),\"\")","v":""}]
[2372,{"$nulls":3},true,{"$f":"IF(G2377<>\"\",INDIRECT(\"'\"&G2377&\"'!\"&H2377),\"\")","v":""}]
[2373,null,null,"Close 2008",true,{"$f":"IF(G2378<>\"\",INDIRECT(\"'\"&G2378&\"'!\"&H2378),\"\")","v":""}]
[2374,{"$nulls":3},true,{"$f":"IF(G2379<>\"\",INDIRECT(\"'\"&G2379&\"'!\"&H2379),\"\")","v":""}]
[2375,null,null,"Close 2008",true,{"$f":"IF(G2380<>\"\",INDIRECT(\"'\"&G2380&\"'!\"&H2380),\"\")","v":""}]
[2376,{"$nulls":3},true,{"$f":"IF(G2381<>\"\",INDIRECT(\"'\"&G2381&\"'!\"&H2381),\"\")","v":""}]
[2377,{"$nulls":3},true,{"$f":"IF(G2382<>\"\",INDIRECT(\"'\"&G2382&\"'!\"&H2382),\"\")","v":""}]
[2378,{"$nulls":3},true,{"$f":"IF(G2383<>\"\",INDIRECT(\"'\"&G2383&\"'!\"&H2383),\"\")","v":""}]
[2379,{"$nulls":3},true,{"$f":"IF(G2384<>\"\",INDIRECT(\"'\"&G2384&\"'!\"&H2384),\"\")","v":""}]
[2380,{"$nulls":3},true,{"$f":"IF(G2385<>\"\",INDIRECT(\"'\"&G2385&\"'!\"&H2385),\"\")","v":""}]
[2381,{"$nulls":3},true,{"$f":"IF(G2386<>\"\",INDIRECT(\"'\"&G2386&\"'!\"&H2386),\"\")","v":""}]
[2382,{"$nulls":3},true,{"$f":"IF(G2387<>\"\",INDIRECT(\"'\"&G2387&\"'!\"&H2387),\"\")","v":""}]
[2383,{"$nulls":3},true,{"$f":"IF(G2388<>\"\",INDIRECT(\"'\"&G2388&\"'!\"&H2388),\"\")","v":""}]
[2384,{"$nulls":3},true,{"$f":"IF(G2389<>\"\",INDIRECT(\"'\"&G2389&\"'!\"&H2389),\"\")","v":""}]
[2385,{"$nulls":3},true,{"$f":"IF(G2390<>\"\",INDIRECT(\"'\"&G2390&\"'!\"&H2390),\"\")","v":""}]
[2386,{"$nulls":3},true,{"$f":"IF(G2391<>\"\",INDIRECT(\"'\"&G2391&\"'!\"&H2391),\"\")","v":""}]
[2387,{"$nulls":3},true,{"$f":"IF(G2392<>\"\",INDIRECT(\"'\"&G2392&\"'!\"&H2392),\"\")","v":""}]
[2388,{"$nulls":3},true,{"$f":"IF(G2393<>\"\",INDIRECT(\"'\"&G2393&\"'!\"&H2393),\"\")","v":""}]
[2389,{"$nulls":3},true,{"$f":"IF(G2394<>\"\",INDIRECT(\"'\"&G2394&\"'!\"&H2394),\"\")","v":""}]
[2390,{"$nulls":3},true,{"$f":"IF(G2395<>\"\",INDIRECT(\"'\"&G2395&\"'!\"&H2395),\"\")","v":""}]
[2391,{"$nulls":3},true,{"$f":"IF(G2396<>\"\",INDIRECT(\"'\"&G2396&\"'!\"&H2396),\"\")","v":""}]
[2392,{"$nulls":3},true,{"$f":"IF(G2397<>\"\",INDIRECT(\"'\"&G2397&\"'!\"&H2397),\"\")","v":""}]
[2393,{"$nulls":3},true,{"$f":"IF(G2398<>\"\",INDIRECT(\"'\"&G2398&\"'!\"&H2398),\"\")","v":""}]
[2394,{"$nulls":3},true,{"$f":"IF(G2399<>\"\",INDIRECT(\"'\"&G2399&\"'!\"&H2399),\"\")","v":""}]
[2395,{"$nulls":3},true,{"$f":"IF(G2400<>\"\",INDIRECT(\"'\"&G2400&\"'!\"&H2400),\"\")","v":""}]
[2396,{"$nulls":3},true,{"$f":"IF(G2401<>\"\",INDIRECT(\"'\"&G2401&\"'!\"&H2401),\"\")","v":""}]
[2397,{"$nulls":3},true,{"$f":"IF(G2402<>\"\",INDIRECT(\"'\"&G2402&\"'!\"&H2402),\"\")","v":""}]
[2398,{"$nulls":3},true,{"$f":"IF(G2403<>\"\",INDIRECT(\"'\"&G2403&\"'!\"&H2403),\"\")","v":""}]
[2399,{"$nulls":3},true,{"$f":"IF(G2404<>\"\",INDIRECT(\"'\"&G2404&\"'!\"&H2404),\"\")","v":""}]
[2400,{"$nulls":3},true,{"$f":"IF(G2405<>\"\",INDIRECT(\"'\"&G2405&\"'!\"&H2405),\"\")","v":""}]
[2401,{"$nulls":3},true,{"$f":"IF(G2406<>\"\",INDIRECT(\"'\"&G2406&\"'!\"&H2406),\"\")","v":""}]
[2402,{"$nulls":3},true,{"$f":"IF(G2407<>\"\",INDIRECT(\"'\"&G2407&\"'!\"&H2407),\"\")","v":""}]
[2403,{"$nulls":3},true,{"$f":"IF(G2408<>\"\",INDIRECT(\"'\"&G2408&\"'!\"&H2408),\"\")","v":""}]
[2404,{"$nulls":3},true,{"$f":"IF(G2409<>\"\",INDIRECT(\"'\"&G2409&\"'!\"&H2409),\"\")","v":""}]
[2405,{"$nulls":3},true,{"$f":"IF(G2410<>\"\",INDIRECT(\"'\"&G2410&\"'!\"&H2410),\"\")","v":""}]
[2406,{"$nulls":3},true,{"$f":"IF(G2411<>\"\",INDIRECT(\"'\"&G2411&\"'!\"&H2411),\"\")","v":""}]
[2407,{"$nulls":3},true,{"$f":"IF(G2412<>\"\",INDIRECT(\"'\"&G2412&\"'!\"&H2412),\"\")","v":""}]
[2408,{"$nulls":3},true,{"$f":"IF(G2413<>\"\",INDIRECT(\"'\"&G2413&\"'!\"&H2413),\"\")","v":""}]
[2409,{"$nulls":3},true,{"$f":"IF(G2414<>\"\",INDIRECT(\"'\"&G2414&\"'!\"&H2414),\"\")","v":""}]
[2410,{"$nulls":3},true,{"$f":"IF(G2415<>\"\",INDIRECT(\"'\"&G2415&\"'!\"&H2415),\"\")","v":""}]
[2411,{"$nulls":3},true,{"$f":"IF(G2416<>\"\",INDIRECT(\"'\"&G2416&\"'!\"&H2416),\"\")","v":""}]
[2412,{"$nulls":3},true,{"$f":"IF(G2417<>\"\",INDIRECT(\"'\"&G2417&\"'!\"&H2417),\"\")","v":""}]
[2413,null,null,"Close 2008",true,{"$f":"IF(G2418<>\"\",INDIRECT(\"'\"&G2418&\"'!\"&H2418),\"\")","v":""}]
[2414,{"$nulls":3},true,{"$f":"IF(G2419<>\"\",INDIRECT(\"'\"&G2419&\"'!\"&H2419),\"\")","v":""}]
[2415,null,null,"Close 2008",true,{"$f":"IF(G2420<>\"\",INDIRECT(\"'\"&G2420&\"'!\"&H2420),\"\")","v":""}]
[2416,{"$nulls":3},true,{"$f":"IF(G2421<>\"\",INDIRECT(\"'\"&G2421&\"'!\"&H2421),\"\")","v":""}]
[2417,{"$nulls":3},true,{"$f":"IF(G2422<>\"\",INDIRECT(\"'\"&G2422&\"'!\"&H2422),\"\")","v":""}]
[2418,{"$nulls":3},true,{"$f":"IF(G2423<>\"\",INDIRECT(\"'\"&G2423&\"'!\"&H2423),\"\")","v":""}]
[2419,{"$nulls":3},true,{"$f":"IF(G2424<>\"\",INDIRECT(\"'\"&G2424&\"'!\"&H2424),\"\")","v":""}]
[2420,{"$nulls":3},true,{"$f":"IF(G2425<>\"\",INDIRECT(\"'\"&G2425&\"'!\"&H2425),\"\")","v":""}]
[2421,{"$nulls":3},true,{"$f":"IF(G2426<>\"\",INDIRECT(\"'\"&G2426&\"'!\"&H2426),\"\")","v":""}]
[2422,{"$nulls":3},true,{"$f":"IF(G2427<>\"\",INDIRECT(\"'\"&G2427&\"'!\"&H2427),\"\")","v":""}]
[2423,{"$nulls":3},true,{"$f":"IF(G2428<>\"\",INDIRECT(\"'\"&G2428&\"'!\"&H2428),\"\")","v":""}]
[2424,{"$nulls":3},true,{"$f":"IF(G2429<>\"\",INDIRECT(\"'\"&G2429&\"'!\"&H2429),\"\")","v":""}]
[2425,{"$nulls":3},true,{"$f":"IF(G2430<>\"\",INDIRECT(\"'\"&G2430&\"'!\"&H2430),\"\")","v":""}]
[2426,{"$nulls":3},true,{"$f":"IF(G2431<>\"\",INDIRECT(\"'\"&G2431&\"'!\"&H2431),\"\")","v":""}]
[2427,{"$nulls":3},true,{"$f":"IF(G2432<>\"\",INDIRECT(\"'\"&G2432&\"'!\"&H2432),\"\")","v":""}]
[2428,{"$nulls":3},true,{"$f":"IF(G2433<>\"\",INDIRECT(\"'\"&G2433&\"'!\"&H2433),\"\")","v":""}]
[2429,{"$nulls":3},{"$f":"F2434=B2434","v":true},{"$f":"IF(G2434<>\"\",INDIRECT(\"'\"&G2434&\"'!\"&H2434),\"\")","v":""}]
[2430,{"$nulls":3},true,{"$f":"IF(G2435<>\"\",INDIRECT(\"'\"&G2435&\"'!\"&H2435),\"\")","v":""}]
[2431,{"$nulls":3},true,{"$f":"IF(G2436<>\"\",INDIRECT(\"'\"&G2436&\"'!\"&H2436),\"\")","v":""}]
[2432,{"$nulls":3},true,{"$f":"IF(G2437<>\"\",INDIRECT(\"'\"&G2437&\"'!\"&H2437),\"\")","v":""}]
[2433,{"$nulls":3},true,{"$f":"IF(G2438<>\"\",INDIRECT(\"'\"&G2438&\"'!\"&H2438),\"\")","v":""}]
[2434,{"$nulls":3},true,{"$f":"IF(G2439<>\"\",INDIRECT(\"'\"&G2439&\"'!\"&H2439),\"\")","v":""}]
[2435,{"$nulls":3},true,{"$f":"IF(G2440<>\"\",INDIRECT(\"'\"&G2440&\"'!\"&H2440),\"\")","v":""}]
[2436,{"$nulls":3},true,{"$f":"IF(G2441<>\"\",INDIRECT(\"'\"&G2441&\"'!\"&H2441),\"\")","v":""}]
[2437,{"$nulls":3},true,{"$f":"IF(G2442<>\"\",INDIRECT(\"'\"&G2442&\"'!\"&H2442),\"\")","v":""}]
[2438,{"$nulls":3},true,{"$f":"IF(G2443<>\"\",INDIRECT(\"'\"&G2443&\"'!\"&H2443),\"\")","v":""}]
[2439,{"$nulls":3},true,{"$f":"IF(G2444<>\"\",INDIRECT(\"'\"&G2444&\"'!\"&H2444),\"\")","v":""}]
[2440,{"$nulls":3},true,{"$f":"IF(G2445<>\"\",INDIRECT(\"'\"&G2445&\"'!\"&H2445),\"\")","v":""}]
[2441,{"$nulls":3},true,{"$f":"IF(G2446<>\"\",INDIRECT(\"'\"&G2446&\"'!\"&H2446),\"\")","v":""}]
[2442,null,null,"Close 2008",true,{"$f":"IF(G2447<>\"\",INDIRECT(\"'\"&G2447&\"'!\"&H2447),\"\")","v":""}]
[2443,{"$nulls":3},true,{"$f":"IF(G2448<>\"\",INDIRECT(\"'\"&G2448&\"'!\"&H2448),\"\")","v":""}]
[2444,null,null,"Close 2008",true,{"$f":"IF(G2449<>\"\",INDIRECT(\"'\"&G2449&\"'!\"&H2449),\"\")","v":""}]
[2445,{"$nulls":3},true,{"$f":"IF(G2450<>\"\",INDIRECT(\"'\"&G2450&\"'!\"&H2450),\"\")","v":""}]
[2446,{"$nulls":3},true,{"$f":"IF(G2451<>\"\",INDIRECT(\"'\"&G2451&\"'!\"&H2451),\"\")","v":""}]
[2447,{"$nulls":3},true,{"$f":"IF(G2452<>\"\",INDIRECT(\"'\"&G2452&\"'!\"&H2452),\"\")","v":""}]
[2448,{"$nulls":3},true,{"$f":"IF(G2453<>\"\",INDIRECT(\"'\"&G2453&\"'!\"&H2453),\"\")","v":""}]
[2449,{"$nulls":3},true,{"$f":"IF(G2454<>\"\",INDIRECT(\"'\"&G2454&\"'!\"&H2454),\"\")","v":""}]
[2450,{"$nulls":3},true,{"$f":"IF(G2455<>\"\",INDIRECT(\"'\"&G2455&\"'!\"&H2455),\"\")","v":""}]
[2451,{"$nulls":3},true,{"$f":"IF(G2456<>\"\",INDIRECT(\"'\"&G2456&\"'!\"&H2456),\"\")","v":""}]
[2452,{"$nulls":3},true,{"$f":"IF(G2457<>\"\",INDIRECT(\"'\"&G2457&\"'!\"&H2457),\"\")","v":""}]
[2453,{"$nulls":3},true,{"$f":"IF(G2458<>\"\",INDIRECT(\"'\"&G2458&\"'!\"&H2458),\"\")","v":""}]
[2454,{"$nulls":3},true,{"$f":"IF(G2459<>\"\",INDIRECT(\"'\"&G2459&\"'!\"&H2459),\"\")","v":""}]
[2455,{"$nulls":3},true,{"$f":"IF(G2460<>\"\",INDIRECT(\"'\"&G2460&\"'!\"&H2460),\"\")","v":""}]
[2456,{"$nulls":3},true,{"$f":"IF(G2461<>\"\",INDIRECT(\"'\"&G2461&\"'!\"&H2461),\"\")","v":""}]
[2457,{"$nulls":3},true,{"$f":"IF(G2462<>\"\",INDIRECT(\"'\"&G2462&\"'!\"&H2462),\"\")","v":""}]
[2458,{"$nulls":3},true,{"$f":"IF(G2463<>\"\",INDIRECT(\"'\"&G2463&\"'!\"&H2463),\"\")","v":""}]
[2459,{"$nulls":3},true,{"$f":"IF(G2464<>\"\",INDIRECT(\"'\"&G2464&\"'!\"&H2464),\"\")","v":""}]
[2460,{"$nulls":3},true,{"$f":"IF(G2465<>\"\",INDIRECT(\"'\"&G2465&\"'!\"&H2465),\"\")","v":""}]
[2461,{"$nulls":3},true,{"$f":"IF(G2466<>\"\",INDIRECT(\"'\"&G2466&\"'!\"&H2466),\"\")","v":""}]
[2462,{"$nulls":3},true,{"$f":"IF(G2467<>\"\",INDIRECT(\"'\"&G2467&\"'!\"&H2467),\"\")","v":""}]
[2463,{"$nulls":3},true,{"$f":"IF(G2468<>\"\",INDIRECT(\"'\"&G2468&\"'!\"&H2468),\"\")","v":""}]
[2464,{"$nulls":3},true,{"$f":"IF(G2469<>\"\",INDIRECT(\"'\"&G2469&\"'!\"&H2469),\"\")","v":""}]
[2465,{"$nulls":3},true,{"$f":"IF(G2470<>\"\",INDIRECT(\"'\"&G2470&\"'!\"&H2470),\"\")","v":""}]
[2466,{"$nulls":3},true,{"$f":"IF(G2471<>\"\",INDIRECT(\"'\"&G2471&\"'!\"&H2471),\"\")","v":""}]
[2467,{"$nulls":3},true,{"$f":"IF(G2472<>\"\",INDIRECT(\"'\"&G2472&\"'!\"&H2472),\"\")","v":""}]
[2468,{"$nulls":3},true,{"$f":"IF(G2473<>\"\",INDIRECT(\"'\"&G2473&\"'!\"&H2473),\"\")","v":""}]
[2469,{"$nulls":3},true,{"$f":"IF(G2474<>\"\",INDIRECT(\"'\"&G2474&\"'!\"&H2474),\"\")","v":""}]
[2470,{"$nulls":3},true,{"$f":"IF(G2475<>\"\",INDIRECT(\"'\"&G2475&\"'!\"&H2475),\"\")","v":""}]
[2471,{"$nulls":3},true,{"$f":"IF(G2476<>\"\",INDIRECT(\"'\"&G2476&\"'!\"&H2476),\"\")","v":""}]
[2472,{"$nulls":3},true,{"$f":"IF(G2477<>\"\",INDIRECT(\"'\"&G2477&\"'!\"&H2477),\"\")","v":""}]
[2473,{"$nulls":3},true,{"$f":"IF(G2478<>\"\",INDIRECT(\"'\"&G2478&\"'!\"&H2478),\"\")","v":""}]
[2474,{"$nulls":3},true,{"$f":"IF(G2479<>\"\",INDIRECT(\"'\"&G2479&\"'!\"&H2479),\"\")","v":""}]
[2475,{"$nulls":3},true,{"$f":"IF(G2480<>\"\",INDIRECT(\"'\"&G2480&\"'!\"&H2480),\"\")","v":""}]
[2476,{"$nulls":3},true,{"$f":"IF(G2481<>\"\",INDIRECT(\"'\"&G2481&\"'!\"&H2481),\"\")","v":""}]
[2477,{"$nulls":3},true,{"$f":"IF(G2482<>\"\",INDIRECT(\"'\"&G2482&\"'!\"&H2482),\"\")","v":""}]
[2478,{"$nulls":3},true,{"$f":"IF(G2483<>\"\",INDIRECT(\"'\"&G2483&\"'!\"&H2483),\"\")","v":""}]
[2479,{"$nulls":3},true,{"$f":"IF(G2484<>\"\",INDIRECT(\"'\"&G2484&\"'!\"&H2484),\"\")","v":""}]
[2480,{"$nulls":3},true,{"$f":"IF(G2485<>\"\",INDIRECT(\"'\"&G2485&\"'!\"&H2485),\"\")","v":""}]
[2481,{"$nulls":3},true,{"$f":"IF(G2486<>\"\",INDIRECT(\"'\"&G2486&\"'!\"&H2486),\"\")","v":""}]
[2482,{"$nulls":3},true,{"$f":"IF(G2487<>\"\",INDIRECT(\"'\"&G2487&\"'!\"&H2487),\"\")","v":""}]
[2483,{"$nulls":3},true,{"$f":"IF(G2488<>\"\",INDIRECT(\"'\"&G2488&\"'!\"&H2488),\"\")","v":""}]
[2484,{"$nulls":3},true,{"$f":"IF(G2489<>\"\",INDIRECT(\"'\"&G2489&\"'!\"&H2489),\"\")","v":""}]
[2485,{"$nulls":3},true,{"$f":"IF(G2490<>\"\",INDIRECT(\"'\"&G2490&\"'!\"&H2490),\"\")","v":""}]
[2486,{"$nulls":3},true,{"$f":"IF(G2491<>\"\",INDIRECT(\"'\"&G2491&\"'!\"&H2491),\"\")","v":""}]
[2487,{"$nulls":3},true,{"$f":"IF(G2492<>\"\",INDIRECT(\"'\"&G2492&\"'!\"&H2492),\"\")","v":""}]
[2488,{"$nulls":3},true,{"$f":"IF(G2493<>\"\",INDIRECT(\"'\"&G2493&\"'!\"&H2493),\"\")","v":""}]
[2489,{"$nulls":3},true,{"$f":"IF(G2494<>\"\",INDIRECT(\"'\"&G2494&\"'!\"&H2494),\"\")","v":""}]
[2490,{"$f":"'BudgetSum 2-4'!C5","v":5003900},{"$f":"A2495-B2495","v":-5001410},null,true,{"$f":"IF(G2495<>\"\",INDIRECT(\"'\"&G2495&\"'!\"&H2495),\"\")","v":5003900},"BudgetSum 2-4","C5"]
[2491,{"$nulls":3},true,{"$f":"IF(G2496<>\"\",INDIRECT(\"'\"&G2496&\"'!\"&H2496),\"\")","v":""}]
[2492,{"$f":"'BudgetSum 2-4'!C7","v":6057000},-6054508,null,true,{"$f":"IF(G2497<>\"\",INDIRECT(\"'\"&G2497&\"'!\"&H2497),\"\")","v":6057000},"BudgetSum 2-4","C7"]
[2493,{"$f":"'BudgetSum 2-4'!C8","v":1757000},-1754507,null,{"$f":"F2498=B2498","v":true},{"$f":"IF(G2498<>\"\",INDIRECT(\"'\"&G2498&\"'!\"&H2498),\"\")","v":1757000},"BudgetSum 2-4","C8"]
[2494,{"$f":"'BudgetSum 2-4'!C9","v":12817900},-12815406,null,true,{"$f":"IF(G2499<>\"\",INDIRECT(\"'\"&G2499&\"'!\"&H2499),\"\")","v":12817900},"BudgetSum 2-4","C9"]
[2495,{"$f":"'BudgetSum 2-4'!C13","v":7233137},-7230642,null,true,{"$f":"IF(G2500<>\"\",INDIRECT(\"'\"&G2500&\"'!\"&H2500),\"\")","v":7233137},"BudgetSum 2-4","C13"]
[2496,{"$f":"'BudgetSum 2-4'!C14","v":5295819},-5293323,null,true,{"$f":"IF(G2501<>\"\",INDIRECT(\"'\"&G2501&\"'!\"&H2501),\"\")","v":5295819},"BudgetSum 2-4","C14"]
[2497,{"$f":"'BudgetSum 2-4'!C15","v":315000},-312503,null,true,{"$f":"IF(G2502<>\"\",INDIRECT(\"'\"&G2502&\"'!\"&H2502),\"\")","v":315000},"BudgetSum 2-4","C15"]
[2498,{"$f":"'BudgetSum 2-4'!C16","v":890000},-887502,null,true,{"$f":"IF(G2503<>\"\",INDIRECT(\"'\"&G2503&\"'!\"&H2503),\"\")","v":890000},"BudgetSum 2-4","C16"]
[2499,{"$f":"'BudgetSum 2-4'!C17","v":0},{"$f":"A2504-B2504","v":2499},null,true,{"$f":"IF(G2504<>\"\",INDIRECT(\"'\"&G2504&\"'!\"&H2504),\"\")","v":0},"BudgetSum 2-4","C17"]
[2500,{"$f":"'BudgetSum 2-4'!C19","v":13733956},-13731456,null,true,{"$f":"IF(G2505<>\"\",INDIRECT(\"'\"&G2505&\"'!\"&H2505),\"\")","v":13733956},"BudgetSum 2-4","C19"]
[2501,{"$f":"'BudgetSum 2-4'!C22","v":-916056},918557,null,true,{"$f":"IF(G2506<>\"\",INDIRECT(\"'\"&G2506&\"'!\"&H2506),\"\")","v":-916056},"BudgetSum 2-4","C22"]
[2502,{"$nulls":3},true,{"$f":"IF(G2507<>\"\",INDIRECT(\"'\"&G2507&\"'!\"&H2507),\"\")","v":""}]
[2503,{"$f":"'BudgetSum 2-4'!D5","v":247000},-244497,null,true,{"$f":"IF(G2508<>\"\",INDIRECT(\"'\"&G2508&\"'!\"&H2508),\"\")","v":247000},"BudgetSum 2-4","D5"]
[2504,{"$nulls":3},true,{"$f":"IF(G2509<>\"\",INDIRECT(\"'\"&G2509&\"'!\"&H2509),\"\")","v":""}]
[2505,{"$f":"'BudgetSum 2-4'!D7","v":1350000},-1347495,null,true,{"$f":"IF(G2510<>\"\",INDIRECT(\"'\"&G2510&\"'!\"&H2510),\"\")","v":1350000},"BudgetSum 2-4","D7"]
[2506,{"$f":"'BudgetSum 2-4'!D8","v":0},2506,null,true,{"$f":"IF(G2511<>\"\",INDIRECT(\"'\"&G2511&\"'!\"&H2511),\"\")","v":0},"BudgetSum 2-4","D8"]
[2507,{"$f":"'BudgetSum 2-4'!D9","v":1597000},-1594493,null,true,{"$f":"IF(G2512<>\"\",INDIRECT(\"'\"&G2512&\"'!\"&H2512),\"\")","v":1597000},"BudgetSum 2-4","D9"]
[2508,{"$f":"'BudgetSum 2-4'!D14","v":1564500},-1561992,null,true,{"$f":"IF(G2513<>\"\",INDIRECT(\"'\"&G2513&\"'!\"&H2513),\"\")","v":1564500},"BudgetSum 2-4","D14"]
[2509,{"$f":"'BudgetSum 2-4'!D15","v":0},2509,null,true,{"$f":"IF(G2514<>\"\",INDIRECT(\"'\"&G2514&\"'!\"&H2514),\"\")","v":0},"BudgetSum 2-4","D15"]
[2510,{"$f":"'BudgetSum 2-4'!D16","v":0},2510,null,true,{"$f":"IF(G2515<>\"\",INDIRECT(\"'\"&G2515&\"'!\"&H2515),\"\")","v":0},"BudgetSum 2-4","D16"]
[2511,{"$f":"'BudgetSum 2-4'!D17","v":0},2511,null,true,{"$f":"IF(G2516<>\"\",INDIRECT(\"'\"&G2516&\"'!\"&H2516),\"\")","v":0},"BudgetSum 2-4","D17"]
[2512,{"$f":"'BudgetSum 2-4'!D19","v":1564500},-1561988,null,true,{"$f":"IF(G2517<>\"\",INDIRECT(\"'\"&G2517&\"'!\"&H2517),\"\")","v":1564500},"BudgetSum 2-4","D19"]
[2513,{"$f":"'BudgetSum 2-4'!D22","v":32500},-29987,null,true,{"$f":"IF(G2518<>\"\",INDIRECT(\"'\"&G2518&\"'!\"&H2518),\"\")","v":32500},"BudgetSum 2-4","D22"]
[2514,{"$nulls":3},true,{"$f":"IF(G2519<>\"\",INDIRECT(\"'\"&G2519&\"'!\"&H2519),\"\")","v":""}]
[2515,{"$nulls":3},true,{"$f":"IF(G2520<>\"\",INDIRECT(\"'\"&G2520&\"'!\"&H2520),\"\")","v":""}]
[2516,{"$nulls":3},true,{"$f":"IF(G2521<>\"\",INDIRECT(\"'\"&G2521&\"'!\"&H2521),\"\")","v":""}]
[2517,{"$nulls":3},true,{"$f":"IF(G2522<>\"\",INDIRECT(\"'\"&G2522&\"'!\"&H2522),\"\")","v":""}]
[2518,{"$nulls":3},true,{"$f":"IF(G2523<>\"\",INDIRECT(\"'\"&G2523&\"'!\"&H2523),\"\")","v":""}]
[2519,{"$nulls":3},true,{"$f":"IF(G2524<>\"\",INDIRECT(\"'\"&G2524&\"'!\"&H2524),\"\")","v":""}]
[2520,{"$nulls":3},true,{"$f":"IF(G2525<>\"\",INDIRECT(\"'\"&G2525&\"'!\"&H2525),\"\")","v":""}]
[2521,{"$nulls":3},true,{"$f":"IF(G2526<>\"\",INDIRECT(\"'\"&G2526&\"'!\"&H2526),\"\")","v":""}]
[2522,{"$nulls":3},true,{"$f":"IF(G2527<>\"\",INDIRECT(\"'\"&G2527&\"'!\"&H2527),\"\")","v":""}]
[2523,{"$nulls":3},true,{"$f":"IF(G2528<>\"\",INDIRECT(\"'\"&G2528&\"'!\"&H2528),\"\")","v":""}]
[2524,{"$nulls":3},true,{"$f":"IF(G2529<>\"\",INDIRECT(\"'\"&G2529&\"'!\"&H2529),\"\")","v":""}]
[2525,{"$nulls":3},true,{"$f":"IF(G2530<>\"\",INDIRECT(\"'\"&G2530&\"'!\"&H2530),\"\")","v":""}]
[2526,{"$nulls":3},true,{"$f":"IF(G2531<>\"\",INDIRECT(\"'\"&G2531&\"'!\"&H2531),\"\")","v":""}]
[2527,{"$nulls":3},true,{"$f":"IF(G2532<>\"\",INDIRECT(\"'\"&G2532&\"'!\"&H2532),\"\")","v":""}]
[2528,{"$nulls":3},true,{"$f":"IF(G2533<>\"\",INDIRECT(\"'\"&G2533&\"'!\"&H2533),\"\")","v":""}]
[2529,{"$nulls":3},true,{"$f":"IF(G2534<>\"\",INDIRECT(\"'\"&G2534&\"'!\"&H2534),\"\")","v":""}]
[2530,{"$f":"'BudgetSum 2-4'!F5","v":25000},-22470,null,true,{"$f":"IF(G2535<>\"\",INDIRECT(\"'\"&G2535&\"'!\"&H2535),\"\")","v":25000},"BudgetSum 2-4","F5"]
[2531,{"$nulls":3},true,{"$f":"IF(G2536<>\"\",INDIRECT(\"'\"&G2536&\"'!\"&H2536),\"\")","v":""}]
[2532,{"$f":"'BudgetSum 2-4'!F7","v":485000},-482468,null,true,{"$f":"IF(G2537<>\"\",INDIRECT(\"'\"&G2537&\"'!\"&H2537),\"\")","v":485000},"BudgetSum 2-4","F7"]
[2533,{"$f":"'BudgetSum 2-4'!F8","v":0},2533,null,true,{"$f":"IF(G2538<>\"\",INDIRECT(\"'\"&G2538&\"'!\"&H2538),\"\")","v":0},"BudgetSum 2-4","F8"]
[2534,{"$f":"'BudgetSum 2-4'!F9","v":510000},-507466,null,true,{"$f":"IF(G2539<>\"\",INDIRECT(\"'\"&G2539&\"'!\"&H2539),\"\")","v":510000},"BudgetSum 2-4","F9"]
[2535,{"$f":"'BudgetSum 2-4'!F14","v":450000},-447465,null,true,{"$f":"IF(G2540<>\"\",INDIRECT(\"'\"&G2540&\"'!\"&H2540),\"\")","v":450000},"BudgetSum 2-4","F14"]
[2536,{"$f":"'BudgetSum 2-4'!F15","v":0},2536,null,true,{"$f":"IF(G2541<>\"\",INDIRECT(\"'\"&G2541&\"'!\"&H2541),\"\")","v":0},"BudgetSum 2-4","F15"]
[2537,{"$f":"'BudgetSum 2-4'!F16","v":0},2537,null,true,{"$f":"IF(G2542<>\"\",INDIRECT(\"'\"&G2542&\"'!\"&H2542),\"\")","v":0},"BudgetSum 2-4","F16"]
[2538,{"$f":"'BudgetSum 2-4'!F17","v":0},2538,null,true,{"$f":"IF(G2543<>\"\",INDIRECT(\"'\"&G2543&\"'!\"&H2543),\"\")","v":0},"BudgetSum 2-4","F17"]
[2539,{"$f":"'BudgetSum 2-4'!F19","v":450000},-447461,null,true,{"$f":"IF(G2544<>\"\",INDIRECT(\"'\"&G2544&\"'!\"&H2544),\"\")","v":450000},"BudgetSum 2-4","F19"]
[2540,{"$f":"'BudgetSum 2-4'!F22","v":60000},-57460,null,true,{"$f":"IF(G2545<>\"\",INDIRECT(\"'\"&G2545&\"'!\"&H2545),\"\")","v":60000},"BudgetSum 2-4","F22"]
[2541,{"$nulls":3},true,{"$f":"IF(G2546<>\"\",INDIRECT(\"'\"&G2546&\"'!\"&H2546),\"\")","v":""}]
[2542,{"$f":"'BudgetSum 2-4'!G5","v":390000},-387458,null,true,{"$f":"IF(G2547<>\"\",INDIRECT(\"'\"&G2547&\"'!\"&H2547),\"\")","v":390000},"BudgetSum 2-4","G5"]
[2543,{"$f":"'BudgetSum 2-4'!G7","v":215000},-212457,null,true,{"$f":"IF(G2548<>\"\",INDIRECT(\"'\"&G2548&\"'!\"&H2548),\"\")","v":215000},"BudgetSum 2-4","G7"]
[2544,{"$f":"'BudgetSum 2-4'!G8","v":0},2544,null,true,{"$f":"IF(G2549<>\"\",INDIRECT(\"'\"&G2549&\"'!\"&H2549),\"\")","v":0},"BudgetSum 2-4","G8"]
[2545,{"$f":"'BudgetSum 2-4'!G9","v":605000},-602455,null,true,{"$f":"IF(G2550<>\"\",INDIRECT(\"'\"&G2550&\"'!\"&H2550),\"\")","v":605000},"BudgetSum 2-4","G9"]
[2546,{"$f":"'BudgetSum 2-4'!G13","v":212500},-209954,null,true,{"$f":"IF(G2551<>\"\",INDIRECT(\"'\"&G2551&\"'!\"&H2551),\"\")","v":212500},"BudgetSum 2-4","G13"]
[2547,{"$f":"'BudgetSum 2-4'!G14","v":366300},-363753,null,true,{"$f":"IF(G2552<>\"\",INDIRECT(\"'\"&G2552&\"'!\"&H2552),\"\")","v":366300},"BudgetSum 2-4","G14"]
[2548,{"$f":"'BudgetSum 2-4'!G15","v":22100},-19552,null,true,{"$f":"IF(G2553<>\"\",INDIRECT(\"'\"&G2553&\"'!\"&H2553),\"\")","v":22100},"BudgetSum 2-4","G15"]
[2549,{"$nulls":3},true,{"$f":"IF(G2554<>\"\",INDIRECT(\"'\"&G2554&\"'!\"&H2554),\"\")","v":""}]
[2550,{"$f":"'BudgetSum 2-4'!G17","v":0},2550,null,true,{"$f":"IF(G2555<>\"\",INDIRECT(\"'\"&G2555&\"'!\"&H2555),\"\")","v":0},"BudgetSum 2-4","G17"]
[2551,{"$f":"'BudgetSum 2-4'!G19","v":600900},-598349,null,true,{"$f":"IF(G2556<>\"\",INDIRECT(\"'\"&G2556&\"'!\"&H2556),\"\")","v":600900},"BudgetSum 2-4","G19"]
[2552,{"$f":"'BudgetSum 2-4'!G22","v":4100},-1548,null,true,{"$f":"IF(G2557<>\"\",INDIRECT(\"'\"&G2557&\"'!\"&H2557),\"\")","v":4100},"BudgetSum 2-4","G22"]
[2553,{"$nulls":3},true,{"$f":"IF(G2558<>\"\",INDIRECT(\"'\"&G2558&\"'!\"&H2558),\"\")","v":""}]
[2554,{"$nulls":3},true,{"$f":"IF(G2559<>\"\",INDIRECT(\"'\"&G2559&\"'!\"&H2559),\"\")","v":""}]
[2555,{"$nulls":3},true,{"$f":"IF(G2560<>\"\",INDIRECT(\"'\"&G2560&\"'!\"&H2560),\"\")","v":""}]
[2556,{"$nulls":3},true,{"$f":"IF(G2561<>\"\",INDIRECT(\"'\"&G2561&\"'!\"&H2561),\"\")","v":""}]
[2557,{"$nulls":3},{"$f":"F2562=B2562","v":true},{"$f":"IF(G2562<>\"\",INDIRECT(\"'\"&G2562&\"'!\"&H2562),\"\")","v":""}]
[2558,{"$nulls":3},true,{"$f":"IF(G2563<>\"\",INDIRECT(\"'\"&G2563&\"'!\"&H2563),\"\")","v":""}]
[2559,{"$nulls":3},true,{"$f":"IF(G2564<>\"\",INDIRECT(\"'\"&G2564&\"'!\"&H2564),\"\")","v":""}]
[2560,{"$nulls":3},true,{"$f":"IF(G2565<>\"\",INDIRECT(\"'\"&G2565&\"'!\"&H2565),\"\")","v":""}]
[2561,{"$nulls":3},true,{"$f":"IF(G2566<>\"\",INDIRECT(\"'\"&G2566&\"'!\"&H2566),\"\")","v":""}]
[2562,{"$nulls":3},true,{"$f":"IF(G2567<>\"\",INDIRECT(\"'\"&G2567&\"'!\"&H2567),\"\")","v":""}]
[2563,{"$nulls":3},true,{"$f":"IF(G2568<>\"\",INDIRECT(\"'\"&G2568&\"'!\"&H2568),\"\")","v":""}]
[2564,{"$nulls":3},true,{"$f":"IF(G2569<>\"\",INDIRECT(\"'\"&G2569&\"'!\"&H2569),\"\")","v":""}]
[2565,{"$nulls":3},true,{"$f":"IF(G2570<>\"\",INDIRECT(\"'\"&G2570&\"'!\"&H2570),\"\")","v":""}]
[2566,{"$nulls":3},true,{"$f":"IF(G2571<>\"\",INDIRECT(\"'\"&G2571&\"'!\"&H2571),\"\")","v":""}]
[2567,{"$nulls":3},true,{"$f":"IF(G2572<>\"\",INDIRECT(\"'\"&G2572&\"'!\"&H2572),\"\")","v":""}]
[2568,{"$nulls":3},true,{"$f":"IF(G2573<>\"\",INDIRECT(\"'\"&G2573&\"'!\"&H2573),\"\")","v":""}]
[2569,{"$f":"'BudgetSum 2-4'!E5","v":1695000},{"$f":"A2574-B2574","v":-1692431},null,true,{"$f":"IF(G2574<>\"\",INDIRECT(\"'\"&G2574&\"'!\"&H2574),\"\")","v":1695000},"BudgetSum 2-4","E5"]
[2570,{"$f":"'BudgetSum 2-4'!E7","v":500000},-497430,null,true,{"$f":"IF(G2575<>\"\",INDIRECT(\"'\"&G2575&\"'!\"&H2575),\"\")","v":500000},"BudgetSum 2-4","E7"]
[2571,{"$f":"'BudgetSum 2-4'!E9","v":2195000},-2192429,null,true,{"$f":"IF(G2576<>\"\",INDIRECT(\"'\"&G2576&\"'!\"&H2576),\"\")","v":2195000},"BudgetSum 2-4","E9"]
[2572,{"$f":"'BudgetSum 2-4'!E16","v":0},2572,null,true,{"$f":"IF(G2577<>\"\",INDIRECT(\"'\"&G2577&\"'!\"&H2577),\"\")","v":0},"BudgetSum 2-4","E16"]
[2573,{"$f":"'BudgetSum 2-4'!E17","v":1322000},-1319427,null,true,{"$f":"IF(G2578<>\"\",INDIRECT(\"'\"&G2578&\"'!\"&H2578),\"\")","v":1322000},"BudgetSum 2-4","E17"]
[2574,{"$f":"'BudgetSum 2-4'!E19","v":1322000},-1319426,null,true,{"$f":"IF(G2579<>\"\",INDIRECT(\"'\"&G2579&\"'!\"&H2579),\"\")","v":1322000},"BudgetSum 2-4","E19"]
[2575,{"$f":"'BudgetSum 2-4'!E22","v":873000},-870425,null,true,{"$f":"IF(G2580<>\"\",INDIRECT(\"'\"&G2580&\"'!\"&H2580),\"\")","v":873000},"BudgetSum 2-4","E22"]
[2576,{"$nulls":3},true,{"$f":"IF(G2581<>\"\",INDIRECT(\"'\"&G2581&\"'!\"&H2581),\"\")","v":""}]
[2577,null,null,"Closed 2008",true,{"$f":"IF(G2582<>\"\",INDIRECT(\"'\"&G2582&\"'!\"&H2582),\"\")","v":""}]
[2578,null,null,"Closed 2008",true,{"$f":"IF(G2583<>\"\",INDIRECT(\"'\"&G2583&\"'!\"&H2583),\"\")","v":""}]
[2579,null,null,"Closed 2008",true,{"$f":"IF(G2584<>\"\",INDIRECT(\"'\"&G2584&\"'!\"&H2584),\"\")","v":""}]
[2580,null,null,"Closed 2008",true,{"$f":"IF(G2585<>\"\",INDIRECT(\"'\"&G2585&\"'!\"&H2585),\"\")","v":""}]
[2581,null,null,"Closed 2008",true,{"$f":"IF(G2586<>\"\",INDIRECT(\"'\"&G2586&\"'!\"&H2586),\"\")","v":""}]
[2582,null,null,"Closed 2008",true,{"$f":"IF(G2587<>\"\",INDIRECT(\"'\"&G2587&\"'!\"&H2587),\"\")","v":""}]
[2583,{"$nulls":3},true,{"$f":"IF(G2588<>\"\",INDIRECT(\"'\"&G2588&\"'!\"&H2588),\"\")","v":""}]
[2584,{"$nulls":3},true,{"$f":"IF(G2589<>\"\",INDIRECT(\"'\"&G2589&\"'!\"&H2589),\"\")","v":""}]
[2585,{"$nulls":3},true,{"$f":"IF(G2590<>\"\",INDIRECT(\"'\"&G2590&\"'!\"&H2590),\"\")","v":""}]
[2586,{"$nulls":3},true,{"$f":"IF(G2591<>\"\",INDIRECT(\"'\"&G2591&\"'!\"&H2591),\"\")","v":""}]
[2587,{"$nulls":3},true,{"$f":"IF(G2592<>\"\",INDIRECT(\"'\"&G2592&\"'!\"&H2592),\"\")","v":""}]
[2588,{"$nulls":3},true,{"$f":"IF(G2593<>\"\",INDIRECT(\"'\"&G2593&\"'!\"&H2593),\"\")","v":""}]
[2589,{"$nulls":3},true,{"$f":"IF(G2594<>\"\",INDIRECT(\"'\"&G2594&\"'!\"&H2594),\"\")","v":""}]
[2590,{"$nulls":3},true,{"$f":"IF(G2595<>\"\",INDIRECT(\"'\"&G2595&\"'!\"&H2595),\"\")","v":""}]
[2591,{"$nulls":3},true,{"$f":"IF(G2596<>\"\",INDIRECT(\"'\"&G2596&\"'!\"&H2596),\"\")","v":""}]
[2592,{"$nulls":3},true,{"$f":"IF(G2597<>\"\",INDIRECT(\"'\"&G2597&\"'!\"&H2597),\"\")","v":""}]
[2593,{"$nulls":3},true,{"$f":"IF(G2598<>\"\",INDIRECT(\"'\"&G2598&\"'!\"&H2598),\"\")","v":""}]
[2594,{"$f":"'BudgetSum 2-4'!H5","v":0},2594,null,true,{"$f":"IF(G2599<>\"\",INDIRECT(\"'\"&G2599&\"'!\"&H2599),\"\")","v":0},"BudgetSum 2-4","H5"]
[2595,{"$f":"'BudgetSum 2-4'!H7","v":0},2595,null,true,{"$f":"IF(G2600<>\"\",INDIRECT(\"'\"&G2600&\"'!\"&H2600),\"\")","v":0},"BudgetSum 2-4","H7"]
[2596,{"$f":"'BudgetSum 2-4'!H8","v":203000},-200404,null,true,{"$f":"IF(G2601<>\"\",INDIRECT(\"'\"&G2601&\"'!\"&H2601),\"\")","v":203000},"BudgetSum 2-4","H8"]
[2597,{"$f":"'BudgetSum 2-4'!H9","v":203000},-200403,null,true,{"$f":"IF(G2602<>\"\",INDIRECT(\"'\"&G2602&\"'!\"&H2602),\"\")","v":203000},"BudgetSum 2-4","H9"]
[2598,{"$f":"'BudgetSum 2-4'!H14","v":203000},-200402,null,true,{"$f":"IF(G2603<>\"\",INDIRECT(\"'\"&G2603&\"'!\"&H2603),\"\")","v":203000},"BudgetSum 2-4","H14"]
[2599,{"$f":"'BudgetSum 2-4'!H16","v":0},2599,null,true,{"$f":"IF(G2604<>\"\",INDIRECT(\"'\"&G2604&\"'!\"&H2604),\"\")","v":0},"BudgetSum 2-4","H16"]
[2600,{"$f":"'BudgetSum 2-4'!H19","v":203000},-200400,null,true,{"$f":"IF(G2605<>\"\",INDIRECT(\"'\"&G2605&\"'!\"&H2605),\"\")","v":203000},"BudgetSum 2-4","H19"]
[2601,{"$f":"'BudgetSum 2-4'!H22","v":0},2601,null,true,{"$f":"IF(G2606<>\"\",INDIRECT(\"'\"&G2606&\"'!\"&H2606),\"\")","v":0},"BudgetSum 2-4","H22"]
[2602,{"$nulls":3},true,{"$f":"IF(G2607<>\"\",INDIRECT(\"'\"&G2607&\"'!\"&H2607),\"\")","v":""}]
[2603,{"$nulls":3},true,{"$f":"IF(G2608<>\"\",INDIRECT(\"'\"&G2608&\"'!\"&H2608),\"\")","v":""}]
[2604,{"$nulls":3},true,{"$f":"IF(G2609<>\"\",INDIRECT(\"'\"&G2609&\"'!\"&H2609),\"\")","v":""}]
[2605,{"$nulls":3},true,{"$f":"IF(G2610<>\"\",INDIRECT(\"'\"&G2610&\"'!\"&H2610),\"\")","v":""}]
[2606,{"$nulls":3},true,{"$f":"IF(G2611<>\"\",INDIRECT(\"'\"&G2611&\"'!\"&H2611),\"\")","v":""}]
[2607,{"$nulls":3},true,{"$f":"IF(G2612<>\"\",INDIRECT(\"'\"&G2612&\"'!\"&H2612),\"\")","v":""}]
[2608,{"$nulls":3},true,{"$f":"IF(G2613<>\"\",INDIRECT(\"'\"&G2613&\"'!\"&H2613),\"\")","v":""}]
[2609,{"$nulls":3},true,{"$f":"IF(G2614<>\"\",INDIRECT(\"'\"&G2614&\"'!\"&H2614),\"\")","v":""}]
[2610,{"$nulls":3},true,{"$f":"IF(G2615<>\"\",INDIRECT(\"'\"&G2615&\"'!\"&H2615),\"\")","v":""}]
[2611,{"$nulls":3},true,{"$f":"IF(G2616<>\"\",INDIRECT(\"'\"&G2616&\"'!\"&H2616),\"\")","v":""}]
[2612,{"$nulls":3},true,{"$f":"IF(G2617<>\"\",INDIRECT(\"'\"&G2617&\"'!\"&H2617),\"\")","v":""}]
[2613,{"$nulls":3},true,{"$f":"IF(G2618<>\"\",INDIRECT(\"'\"&G2618&\"'!\"&H2618),\"\")","v":""}]
[2614,{"$nulls":3},true,{"$f":"IF(G2619<>\"\",INDIRECT(\"'\"&G2619&\"'!\"&H2619),\"\")","v":""}]
[2615,{"$nulls":3},true,{"$f":"IF(G2620<>\"\",INDIRECT(\"'\"&G2620&\"'!\"&H2620),\"\")","v":""}]
[2616,{"$nulls":3},true,{"$f":"IF(G2621<>\"\",INDIRECT(\"'\"&G2621&\"'!\"&H2621),\"\")","v":""}]
[2617,{"$nulls":3},true,{"$f":"IF(G2622<>\"\",INDIRECT(\"'\"&G2622&\"'!\"&H2622),\"\")","v":""}]
[2618,{"$nulls":3},true,{"$f":"IF(G2623<>\"\",INDIRECT(\"'\"&G2623&\"'!\"&H2623),\"\")","v":""}]
[2619,{"$nulls":3},true,{"$f":"IF(G2624<>\"\",INDIRECT(\"'\"&G2624&\"'!\"&H2624),\"\")","v":""}]
[2620,{"$nulls":3},true,{"$f":"IF(G2625<>\"\",INDIRECT(\"'\"&G2625&\"'!\"&H2625),\"\")","v":""}]
[2621,{"$nulls":3},{"$f":"F2626=B2626","v":true},{"$f":"IF(G2626<>\"\",INDIRECT(\"'\"&G2626&\"'!\"&H2626),\"\")","v":""}]
[2622,{"$nulls":3},true,{"$f":"IF(G2627<>\"\",INDIRECT(\"'\"&G2627&\"'!\"&H2627),\"\")","v":""}]
[2623,{"$nulls":3},true,{"$f":"IF(G2628<>\"\",INDIRECT(\"'\"&G2628&\"'!\"&H2628),\"\")","v":""}]
[2624,{"$nulls":3},true,{"$f":"IF(G2629<>\"\",INDIRECT(\"'\"&G2629&\"'!\"&H2629),\"\")","v":""}]
[2625,{"$nulls":3},true,{"$f":"IF(G2630<>\"\",INDIRECT(\"'\"&G2630&\"'!\"&H2630),\"\")","v":""}]
[2626,{"$nulls":3},true,{"$f":"IF(G2631<>\"\",INDIRECT(\"'\"&G2631&\"'!\"&H2631),\"\")","v":""}]
[2627,{"$nulls":3},true,{"$f":"IF(G2632<>\"\",INDIRECT(\"'\"&G2632&\"'!\"&H2632),\"\")","v":""}]
[2628,{"$nulls":3},true,{"$f":"IF(G2633<>\"\",INDIRECT(\"'\"&G2633&\"'!\"&H2633),\"\")","v":""}]
[2629,{"$nulls":3},true,{"$f":"IF(G2634<>\"\",INDIRECT(\"'\"&G2634&\"'!\"&H2634),\"\")","v":""}]
[2630,{"$nulls":3},true,{"$f":"IF(G2635<>\"\",INDIRECT(\"'\"&G2635&\"'!\"&H2635),\"\")","v":""}]
[2631,{"$nulls":3},true,{"$f":"IF(G2636<>\"\",INDIRECT(\"'\"&G2636&\"'!\"&H2636),\"\")","v":""}]
[2632,{"$nulls":3},true,{"$f":"IF(G2637<>\"\",INDIRECT(\"'\"&G2637&\"'!\"&H2637),\"\")","v":""}]
[2633,{"$nulls":3},true,{"$f":"IF(G2638<>\"\",INDIRECT(\"'\"&G2638&\"'!\"&H2638),\"\")","v":""}]
[2634,{"$nulls":3},true,{"$f":"IF(G2639<>\"\",INDIRECT(\"'\"&G2639&\"'!\"&H2639),\"\")","v":""}]
[2635,{"$nulls":3},true,{"$f":"IF(G2640<>\"\",INDIRECT(\"'\"&G2640&\"'!\"&H2640),\"\")","v":""}]
[2636,{"$nulls":3},true,{"$f":"IF(G2641<>\"\",INDIRECT(\"'\"&G2641&\"'!\"&H2641),\"\")","v":""}]
[2637,{"$nulls":3},true,{"$f":"IF(G2642<>\"\",INDIRECT(\"'\"&G2642&\"'!\"&H2642),\"\")","v":""}]
[2638,{"$nulls":3},true,{"$f":"IF(G2643<>\"\",INDIRECT(\"'\"&G2643&\"'!\"&H2643),\"\")","v":""}]
[2639,{"$nulls":3},true,{"$f":"IF(G2644<>\"\",INDIRECT(\"'\"&G2644&\"'!\"&H2644),\"\")","v":""}]
[2640,{"$nulls":3},true,{"$f":"IF(G2645<>\"\",INDIRECT(\"'\"&G2645&\"'!\"&H2645),\"\")","v":""}]
[2641,{"$nulls":3},true,{"$f":"IF(G2646<>\"\",INDIRECT(\"'\"&G2646&\"'!\"&H2646),\"\")","v":""}]
[2642,{"$nulls":3},true,{"$f":"IF(G2647<>\"\",INDIRECT(\"'\"&G2647&\"'!\"&H2647),\"\")","v":""}]
[2643,{"$nulls":3},true,{"$f":"IF(G2648<>\"\",INDIRECT(\"'\"&G2648&\"'!\"&H2648),\"\")","v":""}]
[2644,{"$nulls":3},true,{"$f":"IF(G2649<>\"\",INDIRECT(\"'\"&G2649&\"'!\"&H2649),\"\")","v":""}]
[2645,{"$nulls":3},true,{"$f":"IF(G2650<>\"\",INDIRECT(\"'\"&G2650&\"'!\"&H2650),\"\")","v":""}]
[2646,{"$nulls":3},true,{"$f":"IF(G2651<>\"\",INDIRECT(\"'\"&G2651&\"'!\"&H2651),\"\")","v":""}]
[2647,{"$nulls":3},true,{"$f":"IF(G2652<>\"\",INDIRECT(\"'\"&G2652&\"'!\"&H2652),\"\")","v":""}]
[2648,{"$nulls":3},true,{"$f":"IF(G2653<>\"\",INDIRECT(\"'\"&G2653&\"'!\"&H2653),\"\")","v":""}]
[2649,{"$nulls":3},true,{"$f":"IF(G2654<>\"\",INDIRECT(\"'\"&G2654&\"'!\"&H2654),\"\")","v":""}]
[2650,{"$nulls":3},true,{"$f":"IF(G2655<>\"\",INDIRECT(\"'\"&G2655&\"'!\"&H2655),\"\")","v":""}]
[2651,{"$nulls":3},true,{"$f":"IF(G2656<>\"\",INDIRECT(\"'\"&G2656&\"'!\"&H2656),\"\")","v":""}]
[2652,{"$nulls":3},true,{"$f":"IF(G2657<>\"\",INDIRECT(\"'\"&G2657&\"'!\"&H2657),\"\")","v":""}]
[2653,{"$nulls":3},true,{"$f":"IF(G2658<>\"\",INDIRECT(\"'\"&G2658&\"'!\"&H2658),\"\")","v":""}]
[2654,{"$nulls":3},true,{"$f":"IF(G2659<>\"\",INDIRECT(\"'\"&G2659&\"'!\"&H2659),\"\")","v":""}]
[2655,{"$nulls":3},true,{"$f":"IF(G2660<>\"\",INDIRECT(\"'\"&G2660&\"'!\"&H2660),\"\")","v":""}]
[2656,{"$nulls":3},true,{"$f":"IF(G2661<>\"\",INDIRECT(\"'\"&G2661&\"'!\"&H2661),\"\")","v":""}]
[2657,{"$f":"'EstExp 12-20'!C53","v":267819},{"$f":"A2662-B2662","v":-265162},null,true,{"$f":"IF(G2662<>\"\",INDIRECT(\"'\"&G2662&\"'!\"&H2662),\"\")","v":267819},"EstExp 12-20","C53"]
[2658,{"$f":"'EstExp 12-20'!D53","v":90000},-87342,null,true,{"$f":"IF(G2663<>\"\",INDIRECT(\"'\"&G2663&\"'!\"&H2663),\"\")","v":90000},"EstExp 12-20","D53"]
[2659,{"$f":"'EstExp 12-20'!E53","v":0},2659,null,true,{"$f":"IF(G2664<>\"\",INDIRECT(\"'\"&G2664&\"'!\"&H2664),\"\")","v":0},"EstExp 12-20","E53"]
[2660,{"$f":"'EstExp 12-20'!F53","v":500},2160,null,true,{"$f":"IF(G2665<>\"\",INDIRECT(\"'\"&G2665&\"'!\"&H2665),\"\")","v":500},"EstExp 12-20","F53"]
[2661,{"$f":"'EstExp 12-20'!G53","v":0},2661,null,true,{"$f":"IF(G2666<>\"\",INDIRECT(\"'\"&G2666&\"'!\"&H2666),\"\")","v":0},"EstExp 12-20","G53"]
[2662,{"$f":"'EstExp 12-20'!H53","v":0},2662,null,true,{"$f":"IF(G2667<>\"\",INDIRECT(\"'\"&G2667&\"'!\"&H2667),\"\")","v":0},"EstExp 12-20","H53"]
[2663,{"$f":"'EstExp 12-20'!K53","v":358319},-355656,null,true,{"$f":"IF(G2668<>\"\",INDIRECT(\"'\"&G2668&\"'!\"&H2668),\"\")","v":358319},"EstExp 12-20","K53"]
[2664,{"$f":"'EstExp 12-20'!D251","v":10000},-7336,null,true,{"$f":"IF(G2669<>\"\",INDIRECT(\"'\"&G2669&\"'!\"&H2669),\"\")","v":10000},"EstExp 12-20","D251"]
[2665,{"$f":"'EstExp 12-20'!K251","v":10000},-7335,null,true,{"$f":"IF(G2670<>\"\",INDIRECT(\"'\"&G2670&\"'!\"&H2670),\"\")","v":10000},"EstExp 12-20","K251"]
[2666,{"$nulls":3},true,{"$f":"IF(G2671<>\"\",INDIRECT(\"'\"&G2671&\"'!\"&H2671),\"\")","v":""}]
[2667,{"$nulls":3},true,{"$f":"IF(G2672<>\"\",INDIRECT(\"'\"&G2672&\"'!\"&H2672),\"\")","v":""}]
[2668,{"$nulls":3},true,{"$f":"IF(G2673<>\"\",INDIRECT(\"'\"&G2673&\"'!\"&H2673),\"\")","v":""}]
[2669,{"$nulls":3},true,{"$f":"IF(G2674<>\"\",INDIRECT(\"'\"&G2674&\"'!\"&H2674),\"\")","v":""}]
[2670,{"$nulls":3},true,{"$f":"IF(G2675<>\"\",INDIRECT(\"'\"&G2675&\"'!\"&H2675),\"\")","v":""}]
[2671,{"$nulls":3},true,{"$f":"IF(G2676<>\"\",INDIRECT(\"'\"&G2676&\"'!\"&H2676),\"\")","v":""}]
[2672,{"$nulls":3},true,{"$f":"IF(G2677<>\"\",INDIRECT(\"'\"&G2677&\"'!\"&H2677),\"\")","v":""}]
[2673,{"$nulls":3},true,{"$f":"IF(G2678<>\"\",INDIRECT(\"'\"&G2678&\"'!\"&H2678),\"\")","v":""}]
[2674,{"$nulls":3},true,{"$f":"IF(G2679<>\"\",INDIRECT(\"'\"&G2679&\"'!\"&H2679),\"\")","v":""}]
[2675,{"$nulls":3},true,{"$f":"IF(G2680<>\"\",INDIRECT(\"'\"&G2680&\"'!\"&H2680),\"\")","v":""}]
[2676,{"$nulls":3},true,{"$f":"IF(G2681<>\"\",INDIRECT(\"'\"&G2681&\"'!\"&H2681),\"\")","v":""}]
[2677,{"$nulls":3},true,{"$f":"IF(G2682<>\"\",INDIRECT(\"'\"&G2682&\"'!\"&H2682),\"\")","v":""}]
[2678,{"$nulls":3},true,{"$f":"IF(G2683<>\"\",INDIRECT(\"'\"&G2683&\"'!\"&H2683),\"\")","v":""}]
[2679,{"$nulls":3},true,{"$f":"IF(G2684<>\"\",INDIRECT(\"'\"&G2684&\"'!\"&H2684),\"\")","v":""}]
[2680,{"$nulls":3},true,{"$f":"IF(G2685<>\"\",INDIRECT(\"'\"&G2685&\"'!\"&H2685),\"\")","v":""}]
[2681,{"$nulls":3},true,{"$f":"IF(G2686<>\"\",INDIRECT(\"'\"&G2686&\"'!\"&H2686),\"\")","v":""}]
[2682,{"$nulls":3},true,{"$f":"IF(G2687<>\"\",INDIRECT(\"'\"&G2687&\"'!\"&H2687),\"\")","v":""}]
[2683,{"$nulls":3},true,{"$f":"IF(G2688<>\"\",INDIRECT(\"'\"&G2688&\"'!\"&H2688),\"\")","v":""}]
[2684,{"$nulls":3},true,{"$f":"IF(G2689<>\"\",INDIRECT(\"'\"&G2689&\"'!\"&H2689),\"\")","v":""}]
[2685,{"$nulls":3},{"$f":"F2690=B2690","v":true},{"$f":"IF(G2690<>\"\",INDIRECT(\"'\"&G2690&\"'!\"&H2690),\"\")","v":""}]
[2686,{"$nulls":3},true,{"$f":"IF(G2691<>\"\",INDIRECT(\"'\"&G2691&\"'!\"&H2691),\"\")","v":""}]
[2687,{"$nulls":3},true,{"$f":"IF(G2692<>\"\",INDIRECT(\"'\"&G2692&\"'!\"&H2692),\"\")","v":""}]
[2688,{"$nulls":3},true,{"$f":"IF(G2693<>\"\",INDIRECT(\"'\"&G2693&\"'!\"&H2693),\"\")","v":""}]
[2689,{"$nulls":3},true,{"$f":"IF(G2694<>\"\",INDIRECT(\"'\"&G2694&\"'!\"&H2694),\"\")","v":""}]
[2690,{"$nulls":3},true,{"$f":"IF(G2695<>\"\",INDIRECT(\"'\"&G2695&\"'!\"&H2695),\"\")","v":""}]
[2691,{"$nulls":3},true,{"$f":"IF(G2696<>\"\",INDIRECT(\"'\"&G2696&\"'!\"&H2696),\"\")","v":""}]
[2692,{"$nulls":3},true,{"$f":"IF(G2697<>\"\",INDIRECT(\"'\"&G2697&\"'!\"&H2697),\"\")","v":""}]
[2693,{"$nulls":3},true,{"$f":"IF(G2698<>\"\",INDIRECT(\"'\"&G2698&\"'!\"&H2698),\"\")","v":""}]
[2694,{"$nulls":3},true,{"$f":"IF(G2699<>\"\",INDIRECT(\"'\"&G2699&\"'!\"&H2699),\"\")","v":""}]
[2695,{"$nulls":3},true,{"$f":"IF(G2700<>\"\",INDIRECT(\"'\"&G2700&\"'!\"&H2700),\"\")","v":""}]
[2696,{"$f":"'BudgetSum 2-4'!C30","v":0},{"$f":"A2701-B2701","v":2696},null,true,{"$f":"IF(G2701<>\"\",INDIRECT(\"'\"&G2701&\"'!\"&H2701),\"\")","v":0},"BudgetSum 2-4","C30"]
[2697,{"$f":"'BudgetSum 2-4'!D30","v":0},2697,null,true,{"$f":"IF(G2702<>\"\",INDIRECT(\"'\"&G2702&\"'!\"&H2702),\"\")","v":0},"BudgetSum 2-4","D30"]
[2698,{"$nulls":3},true,{"$f":"IF(G2703<>\"\",INDIRECT(\"'\"&G2703&\"'!\"&H2703),\"\")","v":""}]
[2699,{"$f":"'BudgetSum 2-4'!E30","v":0},2699,null,true,{"$f":"IF(G2704<>\"\",INDIRECT(\"'\"&G2704&\"'!\"&H2704),\"\")","v":0},"BudgetSum 2-4","E30"]
[2700,{"$nulls":3},true,{"$f":"IF(G2705<>\"\",INDIRECT(\"'\"&G2705&\"'!\"&H2705),\"\")","v":""}]
[2701,{"$f":"'BudgetSum 2-4'!F28","v":0},2701,null,true,{"$f":"IF(G2706<>\"\",INDIRECT(\"'\"&G2706&\"'!\"&H2706),\"\")","v":0},"BudgetSum 2-4","F28"]
[2702,{"$f":"'BudgetSum 2-4'!F30","v":0},2702,null,true,{"$f":"IF(G2707<>\"\",INDIRECT(\"'\"&G2707&\"'!\"&H2707),\"\")","v":0},"BudgetSum 2-4","F30"]
[2703,{"$nulls":3},true,{"$f":"IF(G2708<>\"\",INDIRECT(\"'\"&G2708&\"'!\"&H2708),\"\")","v":""}]
[2704,{"$nulls":3},true,{"$f":"IF(G2709<>\"\",INDIRECT(\"'\"&G2709&\"'!\"&H2709),\"\")","v":""}]
[2705,{"$f":"'BudgetSum 2-4'!G30","v":0},2705,null,true,{"$f":"IF(G2710<>\"\",INDIRECT(\"'\"&G2710&\"'!\"&H2710),\"\")","v":0},"BudgetSum 2-4","G30"]
[2706,{"$nulls":3},true,{"$f":"IF(G2711<>\"\",INDIRECT(\"'\"&G2711&\"'!\"&H2711),\"\")","v":""}]
[2707,{"$nulls":3},true,{"$f":"IF(G2712<>\"\",INDIRECT(\"'\"&G2712&\"'!\"&H2712),\"\")","v":""}]
[2708,{"$f":"'BudgetSum 2-4'!H30","v":0},2708,null,true,{"$f":"IF(G2713<>\"\",INDIRECT(\"'\"&G2713&\"'!\"&H2713),\"\")","v":0},"BudgetSum 2-4","H30"]
[2709,{"$nulls":3},true,{"$f":"IF(G2714<>\"\",INDIRECT(\"'\"&G2714&\"'!\"&H2714),\"\")","v":""}]
[2710,{"$nulls":3},true,{"$f":"IF(G2715<>\"\",INDIRECT(\"'\"&G2715&\"'!\"&H2715),\"\")","v":""}]
[2711,{"$f":"'BudgetSum 2-4'!I30","v":0},2711,null,true,{"$f":"IF(G2716<>\"\",INDIRECT(\"'\"&G2716&\"'!\"&H2716),\"\")","v":0},"BudgetSum 2-4","I30"]
[2712,{"$nulls":3},true,{"$f":"IF(G2717<>\"\",INDIRECT(\"'\"&G2717&\"'!\"&H2717),\"\")","v":""}]
[2713,{"$nulls":3},true,{"$f":"IF(G2718<>\"\",INDIRECT(\"'\"&G2718&\"'!\"&H2718),\"\")","v":""}]
[2714,{"$nulls":3},true,{"$f":"IF(G2719<>\"\",INDIRECT(\"'\"&G2719&\"'!\"&H2719),\"\")","v":""}]
[2715,null,null,"Closed 2008",true,{"$f":"IF(G2720<>\"\",INDIRECT(\"'\"&G2720&\"'!\"&H2720),\"\")","v":""}]
[2716,{"$nulls":3},true,{"$f":"IF(G2721<>\"\",INDIRECT(\"'\"&G2721&\"'!\"&H2721),\"\")","v":""}]
[2717,{"$nulls":3},true,{"$f":"IF(G2722<>\"\",INDIRECT(\"'\"&G2722&\"'!\"&H2722),\"\")","v":""}]
[2718,{"$nulls":3},true,{"$f":"IF(G2723<>\"\",INDIRECT(\"'\"&G2723&\"'!\"&H2723),\"\")","v":""}]
[2719,{"$nulls":3},true,{"$f":"IF(G2724<>\"\",INDIRECT(\"'\"&G2724&\"'!\"&H2724),\"\")","v":""}]
[2720,{"$nulls":3},true,{"$f":"IF(G2725<>\"\",INDIRECT(\"'\"&G2725&\"'!\"&H2725),\"\")","v":""}]
[2721,{"$nulls":3},true,{"$f":"IF(G2726<>\"\",INDIRECT(\"'\"&G2726&\"'!\"&H2726),\"\")","v":""}]
[2722,{"$nulls":3},true,{"$f":"IF(G2727<>\"\",INDIRECT(\"'\"&G2727&\"'!\"&H2727),\"\")","v":""}]
[2723,{"$nulls":3},true,{"$f":"IF(G2728<>\"\",INDIRECT(\"'\"&G2728&\"'!\"&H2728),\"\")","v":""}]
[2724,{"$nulls":3},true,{"$f":"IF(G2729<>\"\",INDIRECT(\"'\"&G2729&\"'!\"&H2729),\"\")","v":""}]
[2725,{"$nulls":3},true,{"$f":"IF(G2730<>\"\",INDIRECT(\"'\"&G2730&\"'!\"&H2730),\"\")","v":""}]
[2726,{"$nulls":3},true,{"$f":"IF(G2731<>\"\",INDIRECT(\"'\"&G2731&\"'!\"&H2731),\"\")","v":""}]
[2727,{"$nulls":3},true,{"$f":"IF(G2732<>\"\",INDIRECT(\"'\"&G2732&\"'!\"&H2732),\"\")","v":""}]
[2728,{"$f":"'EstExp 12-20'!E86","v":0},2728,null,true,{"$f":"IF(G2733<>\"\",INDIRECT(\"'\"&G2733&\"'!\"&H2733),\"\")","v":0},"EstExp 12-20","E86"]
[2729,{"$f":"'EstExp 12-20'!E104","v":0},2729,null,true,{"$f":"IF(G2734<>\"\",INDIRECT(\"'\"&G2734&\"'!\"&H2734),\"\")","v":0},"EstExp 12-20","E104"]
[2730,{"$f":"'EstExp 12-20'!H109","v":0},2730,null,true,{"$f":"IF(G2735<>\"\",INDIRECT(\"'\"&G2735&\"'!\"&H2735),\"\")","v":0},"EstExp 12-20","H109"]
[2731,{"$f":"'EstExp 12-20'!H110","v":0},2731,null,true,{"$f":"IF(G2736<>\"\",INDIRECT(\"'\"&G2736&\"'!\"&H2736),\"\")","v":0},"EstExp 12-20","H110"]
[2732,{"$nulls":3},true,{"$f":"IF(G2737<>\"\",INDIRECT(\"'\"&G2737&\"'!\"&H2737),\"\")","v":""}]
[2733,{"$f":"'BudgetSum 2-4'!C53","v":0},2733,null,true,{"$f":"IF(G2738<>\"\",INDIRECT(\"'\"&G2738&\"'!\"&H2738),\"\")","v":0},"BudgetSum 2-4","C53"]
[2734,{"$f":"'EstExp 12-20'!K109","v":0},2734,null,true,{"$f":"IF(G2739<>\"\",INDIRECT(\"'\"&G2739&\"'!\"&H2739),\"\")","v":0},"EstExp 12-20","K109"]
[2735,{"$f":"'EstExp 12-20'!K110","v":0},2735,null,true,{"$f":"IF(G2740<>\"\",INDIRECT(\"'\"&G2740&\"'!\"&H2740),\"\")","v":0},"EstExp 12-20","K110"]
[2736,{"$f":"'EstExp 12-20'!C134","v":0},2736,null,true,{"$f":"IF(G2741<>\"\",INDIRECT(\"'\"&G2741&\"'!\"&H2741),\"\")","v":0},"EstExp 12-20","C134"]
[2737,{"$f":"'EstExp 12-20'!D134","v":0},2737,null,true,{"$f":"IF(G2742<>\"\",INDIRECT(\"'\"&G2742&\"'!\"&H2742),\"\")","v":0},"EstExp 12-20","D134"]
[2738,{"$f":"'EstExp 12-20'!E134","v":0},2738,null,true,{"$f":"IF(G2743<>\"\",INDIRECT(\"'\"&G2743&\"'!\"&H2743),\"\")","v":0},"EstExp 12-20","E134"]
[2739,{"$f":"'EstExp 12-20'!F134","v":0},2739,null,true,{"$f":"IF(G2744<>\"\",INDIRECT(\"'\"&G2744&\"'!\"&H2744),\"\")","v":0},"EstExp 12-20","F134"]
[2740,{"$f":"'EstExp 12-20'!G134","v":0},2740,null,true,{"$f":"IF(G2745<>\"\",INDIRECT(\"'\"&G2745&\"'!\"&H2745),\"\")","v":0},"EstExp 12-20","G134"]
[2741,{"$f":"'EstExp 12-20'!H134","v":0},2741,null,true,{"$f":"IF(G2746<>\"\",INDIRECT(\"'\"&G2746&\"'!\"&H2746),\"\")","v":0},"EstExp 12-20","H134"]
[2742,{"$nulls":3},true,{"$f":"IF(G2747<>\"\",INDIRECT(\"'\"&G2747&\"'!\"&H2747),\"\")","v":""}]
[2743,null,null,"Closed 2008",true,{"$f":"IF(G2748<>\"\",INDIRECT(\"'\"&G2748&\"'!\"&H2748),\"\")","v":""}]
[2744,{"$f":"'EstExp 12-20'!K134","v":0},2744,null,true,{"$f":"IF(G2749<>\"\",INDIRECT(\"'\"&G2749&\"'!\"&H2749),\"\")","v":0},"EstExp 12-20","K134"]
[2745,{"$f":"'BudgetSum 2-4'!D53","v":0},2745,null,true,{"$f":"IF(G2750<>\"\",INDIRECT(\"'\"&G2750&\"'!\"&H2750),\"\")","v":0},"BudgetSum 2-4","D53"]
[2746,{"$f":"'EstExp 12-20'!H148","v":0},2746,null,true,{"$f":"IF(G2751<>\"\",INDIRECT(\"'\"&G2751&\"'!\"&H2751),\"\")","v":0},"EstExp 12-20","H148"]
[2747,{"$f":"'EstExp 12-20'!H149","v":0},2747,null,true,{"$f":"IF(G2752<>\"\",INDIRECT(\"'\"&G2752&\"'!\"&H2752),\"\")","v":0},"EstExp 12-20","H149"]
[2748,null,null,"Closed 2008",true,{"$f":"IF(G2753<>\"\",INDIRECT(\"'\"&G2753&\"'!\"&H2753),\"\")","v":""}]
[2749,{"$f":"'EstExp 12-20'!K148","v":0},2749,null,{"$f":"F2754=B2754","v":true},{"$f":"IF(G2754<>\"\",INDIRECT(\"'\"&G2754&\"'!\"&H2754),\"\")","v":0},"EstExp 12-20","K148"]
[2750,{"$f":"'EstExp 12-20'!K149","v":0},2750,null,true,{"$f":"IF(G2755<>\"\",INDIRECT(\"'\"&G2755&\"'!\"&H2755),\"\")","v":0},"EstExp 12-20","K149"]
[2751,{"$f":"'EstExp 12-20'!H169","v":0},2751,null,true,{"$f":"IF(G2756<>\"\",INDIRECT(\"'\"&G2756&\"'!\"&H2756),\"\")","v":0},"EstExp 12-20","H169"]
[2752,{"$f":"'EstExp 12-20'!H170","v":0},2752,null,true,{"$f":"IF(G2757<>\"\",INDIRECT(\"'\"&G2757&\"'!\"&H2757),\"\")","v":0},"EstExp 12-20","H170"]
[2753,null,null,"Closed 2008",true,{"$f":"IF(G2758<>\"\",INDIRECT(\"'\"&G2758&\"'!\"&H2758),\"\")","v":""}]
[2754,{"$nulls":3},true,{"$f":"IF(G2759<>\"\",INDIRECT(\"'\"&G2759&\"'!\"&H2759),\"\")","v":""}]
[2755,null,null,"Closed 2008",true,{"$f":"IF(G2760<>\"\",INDIRECT(\"'\"&G2760&\"'!\"&H2760),\"\")","v":""}]
[2756,{"$f":"'BudgetSum 2-4'!E53","v":0},{"$f":"A2761-B2761","v":2756},null,true,{"$f":"IF(G2761<>\"\",INDIRECT(\"'\"&G2761&\"'!\"&H2761),\"\")","v":0},"BudgetSum 2-4","E53"]
[2757,{"$f":"'EstExp 12-20'!K169","v":0},2757,null,true,{"$f":"IF(G2762<>\"\",INDIRECT(\"'\"&G2762&\"'!\"&H2762),\"\")","v":0},"EstExp 12-20","K169"]
[2758,{"$f":"'EstExp 12-20'!K170","v":0},2758,null,true,{"$f":"IF(G2763<>\"\",INDIRECT(\"'\"&G2763&\"'!\"&H2763),\"\")","v":0},"EstExp 12-20","K170"]
[2759,{"$f":"'EstExp 12-20'!C189","v":0},2759,null,true,{"$f":"IF(G2764<>\"\",INDIRECT(\"'\"&G2764&\"'!\"&H2764),\"\")","v":0},"EstExp 12-20","C189"]
[2760,{"$f":"'EstExp 12-20'!D189","v":0},2760,null,true,{"$f":"IF(G2765<>\"\",INDIRECT(\"'\"&G2765&\"'!\"&H2765),\"\")","v":0},"EstExp 12-20","D189"]
[2761,{"$f":"'EstExp 12-20'!E189","v":0},2761,null,true,{"$f":"IF(G2766<>\"\",INDIRECT(\"'\"&G2766&\"'!\"&H2766),\"\")","v":0},"EstExp 12-20","E189"]
[2762,{"$f":"'EstExp 12-20'!E198","v":0},2762,null,true,{"$f":"IF(G2767<>\"\",INDIRECT(\"'\"&G2767&\"'!\"&H2767),\"\")","v":0},"EstExp 12-20","E198"]
[2763,{"$f":"'EstExp 12-20'!E199","v":0},2763,null,true,{"$f":"IF(G2768<>\"\",INDIRECT(\"'\"&G2768&\"'!\"&H2768),\"\")","v":0},"EstExp 12-20","E199"]
[2764,{"$f":"'EstExp 12-20'!F189","v":0},2764,null,true,{"$f":"IF(G2769<>\"\",INDIRECT(\"'\"&G2769&\"'!\"&H2769),\"\")","v":0},"EstExp 12-20","F189"]
[2765,{"$f":"'EstExp 12-20'!G189","v":0},2765,null,true,{"$f":"IF(G2770<>\"\",INDIRECT(\"'\"&G2770&\"'!\"&H2770),\"\")","v":0},"EstExp 12-20","G189"]
[2766,{"$f":"'EstExp 12-20'!H189","v":0},2766,null,true,{"$f":"IF(G2771<>\"\",INDIRECT(\"'\"&G2771&\"'!\"&H2771),\"\")","v":0},"EstExp 12-20","H189"]
[2767,{"$f":"'EstExp 12-20'!H198","v":0},2767,null,true,{"$f":"IF(G2772<>\"\",INDIRECT(\"'\"&G2772&\"'!\"&H2772),\"\")","v":0},"EstExp 12-20","H198"]
[2768,{"$f":"'EstExp 12-20'!H199","v":0},2768,null,true,{"$f":"IF(G2773<>\"\",INDIRECT(\"'\"&G2773&\"'!\"&H2773),\"\")","v":0},"EstExp 12-20","H199"]
[2769,{"$f":"'EstExp 12-20'!H200","v":0},2769,null,true,{"$f":"IF(G2774<>\"\",INDIRECT(\"'\"&G2774&\"'!\"&H2774),\"\")","v":0},"EstExp 12-20","H200"]
[2770,{"$f":"'EstExp 12-20'!H205","v":0},2770,null,true,{"$f":"IF(G2775<>\"\",INDIRECT(\"'\"&G2775&\"'!\"&H2775),\"\")","v":0},"EstExp 12-20","H205"]
[2771,{"$f":"'EstExp 12-20'!H206","v":0},2771,null,true,{"$f":"IF(G2776<>\"\",INDIRECT(\"'\"&G2776&\"'!\"&H2776),\"\")","v":0},"EstExp 12-20","H206"]
[2772,null,null,"Closed 2008",true,{"$f":"IF(G2777<>\"\",INDIRECT(\"'\"&G2777&\"'!\"&H2777),\"\")","v":""}]
[2773,null,null,"Closed 2008",true,{"$f":"IF(G2778<>\"\",INDIRECT(\"'\"&G2778&\"'!\"&H2778),\"\")","v":""}]
[2774,{"$nulls":3},true,{"$f":"IF(G2779<>\"\",INDIRECT(\"'\"&G2779&\"'!\"&H2779),\"\")","v":""}]
[2775,{"$f":"'EstExp 12-20'!K189","v":0},2775,null,true,{"$f":"IF(G2780<>\"\",INDIRECT(\"'\"&G2780&\"'!\"&H2780),\"\")","v":0},"EstExp 12-20","K189"]
[2776,{"$f":"'EstExp 12-20'!K198","v":0},2776,null,true,{"$f":"IF(G2781<>\"\",INDIRECT(\"'\"&G2781&\"'!\"&H2781),\"\")","v":0},"EstExp 12-20","K198"]
[2777,{"$nulls":3},true,{"$f":"IF(G2782<>\"\",INDIRECT(\"'\"&G2782&\"'!\"&H2782),\"\")","v":""}]
[2778,{"$f":"'EstExp 12-20'!K199","v":0},2778,null,true,{"$f":"IF(G2783<>\"\",INDIRECT(\"'\"&G2783&\"'!\"&H2783),\"\")","v":0},"EstExp 12-20","K199"]
[2779,{"$f":"'BudgetSum 2-4'!F53","v":0},2779,null,true,{"$f":"IF(G2784<>\"\",INDIRECT(\"'\"&G2784&\"'!\"&H2784),\"\")","v":0},"BudgetSum 2-4","F53"]
[2780,{"$f":"'EstExp 12-20'!K205","v":0},2780,null,true,{"$f":"IF(G2785<>\"\",INDIRECT(\"'\"&G2785&\"'!\"&H2785),\"\")","v":0},"EstExp 12-20","K205"]
[2781,{"$f":"'EstExp 12-20'!K206","v":0},2781,null,true,{"$f":"IF(G2786<>\"\",INDIRECT(\"'\"&G2786&\"'!\"&H2786),\"\")","v":0},"EstExp 12-20","K206"]
[2782,{"$f":"'EstExp 12-20'!H287","v":0},2782,null,true,{"$f":"IF(G2787<>\"\",INDIRECT(\"'\"&G2787&\"'!\"&H2787),\"\")","v":0},"EstExp 12-20","H287"]
[2783,{"$f":"'EstExp 12-20'!H288","v":0},2783,null,true,{"$f":"IF(G2788<>\"\",INDIRECT(\"'\"&G2788&\"'!\"&H2788),\"\")","v":0},"EstExp 12-20","H288"]
[2784,{"$f":"'EstExp 12-20'!K287","v":0},2784,null,true,{"$f":"IF(G2789<>\"\",INDIRECT(\"'\"&G2789&\"'!\"&H2789),\"\")","v":0},"EstExp 12-20","K287"]
[2785,{"$f":"'EstExp 12-20'!K288","v":0},2785,null,true,{"$f":"IF(G2790<>\"\",INDIRECT(\"'\"&G2790&\"'!\"&H2790),\"\")","v":0},"EstExp 12-20","K288"]
[2786,{"$nulls":3},true,{"$f":"IF(G2791<>\"\",INDIRECT(\"'\"&G2791&\"'!\"&H2791),\"\")","v":""}]
[2787,{"$f":"'BudgetSum 2-4'!H53","v":0},2787,null,true,{"$f":"IF(G2792<>\"\",INDIRECT(\"'\"&G2792&\"'!\"&H2792),\"\")","v":0},"BudgetSum 2-4","H53"]
[2788,{"$nulls":3},true,{"$f":"IF(G2793<>\"\",INDIRECT(\"'\"&G2793&\"'!\"&H2793),\"\")","v":""}]
[2789,{"$nulls":3},true,{"$f":"IF(G2794<>\"\",INDIRECT(\"'\"&G2794&\"'!\"&H2794),\"\")","v":""}]
[2790,{"$nulls":3},true,{"$f":"IF(G2795<>\"\",INDIRECT(\"'\"&G2795&\"'!\"&H2795),\"\")","v":""}]
[2791,null,null,"Closed 2008",true,{"$f":"IF(G2796<>\"\",INDIRECT(\"'\"&G2796&\"'!\"&H2796),\"\")","v":""}]
[2792,{"$nulls":3},true,{"$f":"IF(G2797<>\"\",INDIRECT(\"'\"&G2797&\"'!\"&H2797),\"\")","v":""}]
[2793,{"$nulls":3},true,{"$f":"IF(G2798<>\"\",INDIRECT(\"'\"&G2798&\"'!\"&H2798),\"\")","v":""}]
[2794,{"$nulls":3},true,{"$f":"IF(G2799<>\"\",INDIRECT(\"'\"&G2799&\"'!\"&H2799),\"\")","v":""}]
[2795,{"$nulls":3},true,{"$f":"IF(G2800<>\"\",INDIRECT(\"'\"&G2800&\"'!\"&H2800),\"\")","v":""}]
[2796,{"$nulls":3},true,{"$f":"IF(G2801<>\"\",INDIRECT(\"'\"&G2801&\"'!\"&H2801),\"\")","v":""}]
[2797,{"$nulls":3},true,{"$f":"IF(G2802<>\"\",INDIRECT(\"'\"&G2802&\"'!\"&H2802),\"\")","v":""}]
[2798,{"$nulls":3},true,{"$f":"IF(G2803<>\"\",INDIRECT(\"'\"&G2803&\"'!\"&H2803),\"\")","v":""}]
[2799,{"$nulls":3},true,{"$f":"IF(G2804<>\"\",INDIRECT(\"'\"&G2804&\"'!\"&H2804),\"\")","v":""}]
[2800,{"$nulls":3},true,{"$f":"IF(G2805<>\"\",INDIRECT(\"'\"&G2805&\"'!\"&H2805),\"\")","v":""}]
[2801,{"$nulls":3},true,{"$f":"IF(G2806<>\"\",INDIRECT(\"'\"&G2806&\"'!\"&H2806),\"\")","v":""}]
[2802,{"$nulls":3},true,{"$f":"IF(G2807<>\"\",INDIRECT(\"'\"&G2807&\"'!\"&H2807),\"\")","v":""}]
[2803,{"$nulls":3},true,{"$f":"IF(G2808<>\"\",INDIRECT(\"'\"&G2808&\"'!\"&H2808),\"\")","v":""}]
[2804,{"$nulls":3},true,{"$f":"IF(G2809<>\"\",INDIRECT(\"'\"&G2809&\"'!\"&H2809),\"\")","v":""}]
[2805,{"$nulls":3},true,{"$f":"IF(G2810<>\"\",INDIRECT(\"'\"&G2810&\"'!\"&H2810),\"\")","v":""}]
[2806,{"$nulls":3},true,{"$f":"IF(G2811<>\"\",INDIRECT(\"'\"&G2811&\"'!\"&H2811),\"\")","v":""}]
[2807,{"$nulls":3},true,{"$f":"IF(G2812<>\"\",INDIRECT(\"'\"&G2812&\"'!\"&H2812),\"\")","v":""}]
[2808,{"$nulls":3},true,{"$f":"IF(G2813<>\"\",INDIRECT(\"'\"&G2813&\"'!\"&H2813),\"\")","v":""}]
[2809,{"$nulls":3},true,{"$f":"IF(G2814<>\"\",INDIRECT(\"'\"&G2814&\"'!\"&H2814),\"\")","v":""}]
[2810,{"$nulls":3},true,{"$f":"IF(G2815<>\"\",INDIRECT(\"'\"&G2815&\"'!\"&H2815),\"\")","v":""}]
[2811,{"$nulls":3},true,{"$f":"IF(G2816<>\"\",INDIRECT(\"'\"&G2816&\"'!\"&H2816),\"\")","v":""}]
[2812,{"$nulls":3},true,{"$f":"IF(G2817<>\"\",INDIRECT(\"'\"&G2817&\"'!\"&H2817),\"\")","v":""}]
[2813,{"$nulls":3},{"$f":"F2818=B2818","v":true},{"$f":"IF(G2818<>\"\",INDIRECT(\"'\"&G2818&\"'!\"&H2818),\"\")","v":""}]
[2814,{"$nulls":3},true,{"$f":"IF(G2819<>\"\",INDIRECT(\"'\"&G2819&\"'!\"&H2819),\"\")","v":""}]
[2815,{"$nulls":3},true,{"$f":"IF(G2820<>\"\",INDIRECT(\"'\"&G2820&\"'!\"&H2820),\"\")","v":""}]
[2816,{"$nulls":3},true,{"$f":"IF(G2821<>\"\",INDIRECT(\"'\"&G2821&\"'!\"&H2821),\"\")","v":""}]
[2817,{"$nulls":3},true,{"$f":"IF(G2822<>\"\",INDIRECT(\"'\"&G2822&\"'!\"&H2822),\"\")","v":""}]
[2818,{"$nulls":3},true,{"$f":"IF(G2823<>\"\",INDIRECT(\"'\"&G2823&\"'!\"&H2823),\"\")","v":""}]
[2819,{"$nulls":3},true,{"$f":"IF(G2824<>\"\",INDIRECT(\"'\"&G2824&\"'!\"&H2824),\"\")","v":""}]
[2820,{"$nulls":3},true,{"$f":"IF(G2825<>\"\",INDIRECT(\"'\"&G2825&\"'!\"&H2825),\"\")","v":""}]
[2821,{"$nulls":3},true,{"$f":"IF(G2826<>\"\",INDIRECT(\"'\"&G2826&\"'!\"&H2826),\"\")","v":""}]
[2822,{"$nulls":3},true,{"$f":"IF(G2827<>\"\",INDIRECT(\"'\"&G2827&\"'!\"&H2827),\"\")","v":""}]
[2823,{"$nulls":3},true,{"$f":"IF(G2828<>\"\",INDIRECT(\"'\"&G2828&\"'!\"&H2828),\"\")","v":""}]
[2824,{"$nulls":3},true,{"$f":"IF(G2829<>\"\",INDIRECT(\"'\"&G2829&\"'!\"&H2829),\"\")","v":""}]
[2825,{"$nulls":3},true,{"$f":"IF(G2830<>\"\",INDIRECT(\"'\"&G2830&\"'!\"&H2830),\"\")","v":""}]
[2826,{"$nulls":3},true,{"$f":"IF(G2831<>\"\",INDIRECT(\"'\"&G2831&\"'!\"&H2831),\"\")","v":""}]
[2827,{"$nulls":3},true,{"$f":"IF(G2832<>\"\",INDIRECT(\"'\"&G2832&\"'!\"&H2832),\"\")","v":""}]
[2828,{"$nulls":3},true,{"$f":"IF(G2833<>\"\",INDIRECT(\"'\"&G2833&\"'!\"&H2833),\"\")","v":""}]
[2829,{"$nulls":3},true,{"$f":"IF(G2834<>\"\",INDIRECT(\"'\"&G2834&\"'!\"&H2834),\"\")","v":""}]
[2830,{"$nulls":3},true,{"$f":"IF(G2835<>\"\",INDIRECT(\"'\"&G2835&\"'!\"&H2835),\"\")","v":""}]
[2831,{"$nulls":3},true,{"$f":"IF(G2836<>\"\",INDIRECT(\"'\"&G2836&\"'!\"&H2836),\"\")","v":""}]
[2832,{"$nulls":3},true,{"$f":"IF(G2837<>\"\",INDIRECT(\"'\"&G2837&\"'!\"&H2837),\"\")","v":""}]
[2833,{"$nulls":3},true,{"$f":"IF(G2838<>\"\",INDIRECT(\"'\"&G2838&\"'!\"&H2838),\"\")","v":""}]
[2834,{"$nulls":3},true,{"$f":"IF(G2839<>\"\",INDIRECT(\"'\"&G2839&\"'!\"&H2839),\"\")","v":""}]
[2835,{"$nulls":3},true,{"$f":"IF(G2840<>\"\",INDIRECT(\"'\"&G2840&\"'!\"&H2840),\"\")","v":""}]
[2836,{"$nulls":3},true,{"$f":"IF(G2841<>\"\",INDIRECT(\"'\"&G2841&\"'!\"&H2841),\"\")","v":""}]
[2837,{"$nulls":3},true,{"$f":"IF(G2842<>\"\",INDIRECT(\"'\"&G2842&\"'!\"&H2842),\"\")","v":""}]
[2838,{"$nulls":3},true,{"$f":"IF(G2843<>\"\",INDIRECT(\"'\"&G2843&\"'!\"&H2843),\"\")","v":""}]
[2839,{"$nulls":3},true,{"$f":"IF(G2844<>\"\",INDIRECT(\"'\"&G2844&\"'!\"&H2844),\"\")","v":""}]
[2840,{"$nulls":3},true,{"$f":"IF(G2845<>\"\",INDIRECT(\"'\"&G2845&\"'!\"&H2845),\"\")","v":""}]
[2841,{"$nulls":3},true,{"$f":"IF(G2846<>\"\",INDIRECT(\"'\"&G2846&\"'!\"&H2846),\"\")","v":""}]
[2842,{"$nulls":3},true,{"$f":"IF(G2847<>\"\",INDIRECT(\"'\"&G2847&\"'!\"&H2847),\"\")","v":""}]
[2843,{"$nulls":3},true,{"$f":"IF(G2848<>\"\",INDIRECT(\"'\"&G2848&\"'!\"&H2848),\"\")","v":""}]
[2844,{"$nulls":3},true,{"$f":"IF(G2849<>\"\",INDIRECT(\"'\"&G2849&\"'!\"&H2849),\"\")","v":""}]
[2845,{"$nulls":3},true,{"$f":"IF(G2850<>\"\",INDIRECT(\"'\"&G2850&\"'!\"&H2850),\"\")","v":""}]
[2846,{"$nulls":3},true,{"$f":"IF(G2851<>\"\",INDIRECT(\"'\"&G2851&\"'!\"&H2851),\"\")","v":""}]
[2847,{"$nulls":3},true,{"$f":"IF(G2852<>\"\",INDIRECT(\"'\"&G2852&\"'!\"&H2852),\"\")","v":""}]
[2848,null,null,"Closed 2008",true,{"$f":"IF(G2853<>\"\",INDIRECT(\"'\"&G2853&\"'!\"&H2853),\"\")","v":""}]
[2849,{"$nulls":3},true,{"$f":"IF(G2854<>\"\",INDIRECT(\"'\"&G2854&\"'!\"&H2854),\"\")","v":""}]
[2850,{"$nulls":3},true,{"$f":"IF(G2855<>\"\",INDIRECT(\"'\"&G2855&\"'!\"&H2855),\"\")","v":""}]
[2851,{"$nulls":3},true,{"$f":"IF(G2856<>\"\",INDIRECT(\"'\"&G2856&\"'!\"&H2856),\"\")","v":""}]
[2852,{"$nulls":3},true,{"$f":"IF(G2857<>\"\",INDIRECT(\"'\"&G2857&\"'!\"&H2857),\"\")","v":""}]
[2853,{"$nulls":3},true,{"$f":"IF(G2858<>\"\",INDIRECT(\"'\"&G2858&\"'!\"&H2858),\"\")","v":""}]
[2854,{"$nulls":3},true,{"$f":"IF(G2859<>\"\",INDIRECT(\"'\"&G2859&\"'!\"&H2859),\"\")","v":""}]
[2855,{"$nulls":3},true,{"$f":"IF(G2860<>\"\",INDIRECT(\"'\"&G2860&\"'!\"&H2860),\"\")","v":""}]
[2856,{"$nulls":3},true,{"$f":"IF(G2861<>\"\",INDIRECT(\"'\"&G2861&\"'!\"&H2861),\"\")","v":""}]
[2857,{"$nulls":3},true,{"$f":"IF(G2862<>\"\",INDIRECT(\"'\"&G2862&\"'!\"&H2862),\"\")","v":""}]
[2858,{"$nulls":3},true,{"$f":"IF(G2863<>\"\",INDIRECT(\"'\"&G2863&\"'!\"&H2863),\"\")","v":""}]
[2859,{"$nulls":3},true,{"$f":"IF(G2864<>\"\",INDIRECT(\"'\"&G2864&\"'!\"&H2864),\"\")","v":""}]
[2860,{"$nulls":3},true,{"$f":"IF(G2865<>\"\",INDIRECT(\"'\"&G2865&\"'!\"&H2865),\"\")","v":""}]
[2861,{"$nulls":3},true,{"$f":"IF(G2866<>\"\",INDIRECT(\"'\"&G2866&\"'!\"&H2866),\"\")","v":""}]
[2862,{"$nulls":3},true,{"$f":"IF(G2867<>\"\",INDIRECT(\"'\"&G2867&\"'!\"&H2867),\"\")","v":""}]
[2863,{"$nulls":3},true,{"$f":"IF(G2868<>\"\",INDIRECT(\"'\"&G2868&\"'!\"&H2868),\"\")","v":""}]
[2864,{"$nulls":3},true,{"$f":"IF(G2869<>\"\",INDIRECT(\"'\"&G2869&\"'!\"&H2869),\"\")","v":""}]
[2865,{"$nulls":3},true,{"$f":"IF(G2870<>\"\",INDIRECT(\"'\"&G2870&\"'!\"&H2870),\"\")","v":""}]
[2866,{"$nulls":3},true,{"$f":"IF(G2871<>\"\",INDIRECT(\"'\"&G2871&\"'!\"&H2871),\"\")","v":""}]
[2867,{"$nulls":3},true,{"$f":"IF(G2872<>\"\",INDIRECT(\"'\"&G2872&\"'!\"&H2872),\"\")","v":""}]
[2868,{"$nulls":3},true,{"$f":"IF(G2873<>\"\",INDIRECT(\"'\"&G2873&\"'!\"&H2873),\"\")","v":""}]
[2869,{"$nulls":3},true,{"$f":"IF(G2874<>\"\",INDIRECT(\"'\"&G2874&\"'!\"&H2874),\"\")","v":""}]
[2870,{"$nulls":3},true,{"$f":"IF(G2875<>\"\",INDIRECT(\"'\"&G2875&\"'!\"&H2875),\"\")","v":""}]
[2871,{"$nulls":3},true,{"$f":"IF(G2876<>\"\",INDIRECT(\"'\"&G2876&\"'!\"&H2876),\"\")","v":""}]
[2872,{"$nulls":3},true,{"$f":"IF(G2877<>\"\",INDIRECT(\"'\"&G2877&\"'!\"&H2877),\"\")","v":""}]
[2873,{"$nulls":3},true,{"$f":"IF(G2878<>\"\",INDIRECT(\"'\"&G2878&\"'!\"&H2878),\"\")","v":""}]
[2874,{"$nulls":3},true,{"$f":"IF(G2879<>\"\",INDIRECT(\"'\"&G2879&\"'!\"&H2879),\"\")","v":""}]
[2875,{"$nulls":3},true,{"$f":"IF(G2880<>\"\",INDIRECT(\"'\"&G2880&\"'!\"&H2880),\"\")","v":""}]
[2876,{"$nulls":3},true,{"$f":"IF(G2881<>\"\",INDIRECT(\"'\"&G2881&\"'!\"&H2881),\"\")","v":""}]
[2877,{"$nulls":3},{"$f":"F2882=B2882","v":true},{"$f":"IF(G2882<>\"\",INDIRECT(\"'\"&G2882&\"'!\"&H2882),\"\")","v":""}]
[2878,{"$nulls":3},true,{"$f":"IF(G2883<>\"\",INDIRECT(\"'\"&G2883&\"'!\"&H2883),\"\")","v":""}]
[2879,{"$nulls":3},true,{"$f":"IF(G2884<>\"\",INDIRECT(\"'\"&G2884&\"'!\"&H2884),\"\")","v":""}]
[2880,{"$nulls":3},true,{"$f":"IF(G2885<>\"\",INDIRECT(\"'\"&G2885&\"'!\"&H2885),\"\")","v":""}]
[2881,{"$nulls":3},true,{"$f":"IF(G2886<>\"\",INDIRECT(\"'\"&G2886&\"'!\"&H2886),\"\")","v":""}]
[2882,{"$nulls":3},true,{"$f":"IF(G2887<>\"\",INDIRECT(\"'\"&G2887&\"'!\"&H2887),\"\")","v":""}]
[2883,{"$nulls":3},true,{"$f":"IF(G2888<>\"\",INDIRECT(\"'\"&G2888&\"'!\"&H2888),\"\")","v":""}]
[2884,{"$nulls":3},true,{"$f":"IF(G2889<>\"\",INDIRECT(\"'\"&G2889&\"'!\"&H2889),\"\")","v":""}]
[2885,{"$nulls":3},true,{"$f":"IF(G2890<>\"\",INDIRECT(\"'\"&G2890&\"'!\"&H2890),\"\")","v":""}]
[2886,{"$f":"'EstExp 12-20'!E103","v":0},{"$f":"A2891-B2891","v":2886},null,true,{"$f":"IF(G2891<>\"\",INDIRECT(\"'\"&G2891&\"'!\"&H2891),\"\")","v":0},"EstExp 12-20","E103"]
[2887,{"$nulls":3},true,{"$f":"IF(G2892<>\"\",INDIRECT(\"'\"&G2892&\"'!\"&H2892),\"\")","v":""}]
[2888,{"$f":"'EstExp 12-20'!E80","v":0},2888,null,true,{"$f":"IF(G2893<>\"\",INDIRECT(\"'\"&G2893&\"'!\"&H2893),\"\")","v":0},"EstExp 12-20","E80"]
[2889,{"$f":"'EstExp 12-20'!E81","v":0},2889,null,true,{"$f":"IF(G2894<>\"\",INDIRECT(\"'\"&G2894&\"'!\"&H2894),\"\")","v":0},"EstExp 12-20","E81"]
[2890,{"$f":"'EstExp 12-20'!E82","v":0},2890,null,true,{"$f":"IF(G2895<>\"\",INDIRECT(\"'\"&G2895&\"'!\"&H2895),\"\")","v":0},"EstExp 12-20","E82"]
[2891,{"$f":"'EstExp 12-20'!E83","v":0},2891,null,true,{"$f":"IF(G2896<>\"\",INDIRECT(\"'\"&G2896&\"'!\"&H2896),\"\")","v":0},"EstExp 12-20","E83"]
[2892,{"$f":"'EstExp 12-20'!E84","v":0},2892,null,true,{"$f":"IF(G2897<>\"\",INDIRECT(\"'\"&G2897&\"'!\"&H2897),\"\")","v":0},"EstExp 12-20","E84"]
[2893,{"$f":"'EstExp 12-20'!E85","v":0},2893,null,true,{"$f":"IF(G2898<>\"\",INDIRECT(\"'\"&G2898&\"'!\"&H2898),\"\")","v":0},"EstExp 12-20","E85"]
[2894,{"$f":"'EstExp 12-20'!H80","v":0},2894,null,true,{"$f":"IF(G2899<>\"\",INDIRECT(\"'\"&G2899&\"'!\"&H2899),\"\")","v":0},"EstExp 12-20","H80"]
[2895,{"$f":"'EstExp 12-20'!H81","v":50000},-47105,null,true,{"$f":"IF(G2900<>\"\",INDIRECT(\"'\"&G2900&\"'!\"&H2900),\"\")","v":50000},"EstExp 12-20","H81"]
[2896,{"$f":"'EstExp 12-20'!H82","v":0},2896,null,true,{"$f":"IF(G2901<>\"\",INDIRECT(\"'\"&G2901&\"'!\"&H2901),\"\")","v":0},"EstExp 12-20","H82"]
[2897,{"$f":"'EstExp 12-20'!H83","v":0},2897,null,true,{"$f":"IF(G2902<>\"\",INDIRECT(\"'\"&G2902&\"'!\"&H2902),\"\")","v":0},"EstExp 12-20","H83"]
[2898,{"$f":"'EstExp 12-20'!H84","v":0},2898,null,true,{"$f":"IF(G2903<>\"\",INDIRECT(\"'\"&G2903&\"'!\"&H2903),\"\")","v":0},"EstExp 12-20","H84"]
[2899,{"$f":"'EstExp 12-20'!H85","v":110000},-107101,null,true,{"$f":"IF(G2904<>\"\",INDIRECT(\"'\"&G2904&\"'!\"&H2904),\"\")","v":110000},"EstExp 12-20","H85"]
[2900,null,null,"Closed 2008",true,{"$f":"IF(G2905<>\"\",INDIRECT(\"'\"&G2905&\"'!\"&H2905),\"\")","v":""}]
[2901,null,null,"Closed 2008",true,{"$f":"IF(G2906<>\"\",INDIRECT(\"'\"&G2906&\"'!\"&H2906),\"\")","v":""}]
[2902,null,null,"Closed 2008",true,{"$f":"IF(G2907<>\"\",INDIRECT(\"'\"&G2907&\"'!\"&H2907),\"\")","v":""}]
[2903,null,null,"Closed 2008",true,{"$f":"IF(G2908<>\"\",INDIRECT(\"'\"&G2908&\"'!\"&H2908),\"\")","v":""}]
[2904,null,null,"Closed 2008",true,{"$f":"IF(G2909<>\"\",INDIRECT(\"'\"&G2909&\"'!\"&H2909),\"\")","v":""}]
[2905,null,null,"Closed 2008",true,{"$f":"IF(G2910<>\"\",INDIRECT(\"'\"&G2910&\"'!\"&H2910),\"\")","v":""}]
[2906,null,null,"Closed 2008",true,{"$f":"IF(G2911<>\"\",INDIRECT(\"'\"&G2911&\"'!\"&H2911),\"\")","v":""}]
[2907,null,null,"Closed 2008",true,{"$f":"IF(G2912<>\"\",INDIRECT(\"'\"&G2912&\"'!\"&H2912),\"\")","v":""}]
[2908,null,null,"Closed 2008",true,{"$f":"IF(G2913<>\"\",INDIRECT(\"'\"&G2913&\"'!\"&H2913),\"\")","v":""}]
[2909,null,null,"Closed 2008",true,{"$f":"IF(G2914<>\"\",INDIRECT(\"'\"&G2914&\"'!\"&H2914),\"\")","v":""}]
[2910,null,null,"Closed 2008",true,{"$f":"IF(G2915<>\"\",INDIRECT(\"'\"&G2915&\"'!\"&H2915),\"\")","v":""}]
[2911,null,null,"Closed 2008",true,{"$f":"IF(G2916<>\"\",INDIRECT(\"'\"&G2916&\"'!\"&H2916),\"\")","v":""}]
[2912,{"$f":"'EstExp 12-20'!K80","v":0},2912,null,true,{"$f":"IF(G2917<>\"\",INDIRECT(\"'\"&G2917&\"'!\"&H2917),\"\")","v":0},"EstExp 12-20","K80"]
[2913,{"$f":"'EstExp 12-20'!K81","v":50000},-47087,null,true,{"$f":"IF(G2918<>\"\",INDIRECT(\"'\"&G2918&\"'!\"&H2918),\"\")","v":50000},"EstExp 12-20","K81"]
[2914,{"$f":"'EstExp 12-20'!K82","v":0},2914,null,true,{"$f":"IF(G2919<>\"\",INDIRECT(\"'\"&G2919&\"'!\"&H2919),\"\")","v":0},"EstExp 12-20","K82"]
[2915,{"$f":"'EstExp 12-20'!K83","v":0},2915,null,true,{"$f":"IF(G2920<>\"\",INDIRECT(\"'\"&G2920&\"'!\"&H2920),\"\")","v":0},"EstExp 12-20","K83"]
[2916,{"$f":"'EstExp 12-20'!K84","v":0},2916,null,true,{"$f":"IF(G2921<>\"\",INDIRECT(\"'\"&G2921&\"'!\"&H2921),\"\")","v":0},"EstExp 12-20","K84"]
[2917,{"$f":"'EstExp 12-20'!K85","v":110000},-107083,null,true,{"$f":"IF(G2922<>\"\",INDIRECT(\"'\"&G2922&\"'!\"&H2922),\"\")","v":110000},"EstExp 12-20","K85"]
[2918,{"$f":"'EstExp 12-20'!H138","v":0},2918,null,true,{"$f":"IF(G2923<>\"\",INDIRECT(\"'\"&G2923&\"'!\"&H2923),\"\")","v":0},"EstExp 12-20","H138"]
[2919,{"$f":"'EstExp 12-20'!H139","v":0},2919,null,true,{"$f":"IF(G2924<>\"\",INDIRECT(\"'\"&G2924&\"'!\"&H2924),\"\")","v":0},"EstExp 12-20","H139"]
[2920,{"$f":"'EstExp 12-20'!H140","v":0},2920,null,true,{"$f":"IF(G2925<>\"\",INDIRECT(\"'\"&G2925&\"'!\"&H2925),\"\")","v":0},"EstExp 12-20","H140"]
[2921,null,null,"Closed 2008",true,{"$f":"IF(G2926<>\"\",INDIRECT(\"'\"&G2926&\"'!\"&H2926),\"\")","v":""}]
[2922,null,null,"Closed 2008",true,{"$f":"IF(G2927<>\"\",INDIRECT(\"'\"&G2927&\"'!\"&H2927),\"\")","v":""}]
[2923,null,null,"Closed 2008",true,{"$f":"IF(G2928<>\"\",INDIRECT(\"'\"&G2928&\"'!\"&H2928),\"\")","v":""}]
[2924,null,null,"Closed 2008",true,{"$f":"IF(G2929<>\"\",INDIRECT(\"'\"&G2929&\"'!\"&H2929),\"\")","v":""}]
[2925,{"$f":"'EstExp 12-20'!K138","v":0},2925,null,true,{"$f":"IF(G2930<>\"\",INDIRECT(\"'\"&G2930&\"'!\"&H2930),\"\")","v":0},"EstExp 12-20","K138"]
[2926,{"$f":"'EstExp 12-20'!K139","v":0},2926,null,true,{"$f":"IF(G2931<>\"\",INDIRECT(\"'\"&G2931&\"'!\"&H2931),\"\")","v":0},"EstExp 12-20","K139"]
[2927,{"$f":"'EstExp 12-20'!K140","v":0},2927,null,true,{"$f":"IF(G2932<>\"\",INDIRECT(\"'\"&G2932&\"'!\"&H2932),\"\")","v":0},"EstExp 12-20","K140"]
[2928,{"$f":"'EstExp 12-20'!E192","v":0},2928,null,true,{"$f":"IF(G2933<>\"\",INDIRECT(\"'\"&G2933&\"'!\"&H2933),\"\")","v":0},"EstExp 12-20","E192"]
[2929,{"$f":"'EstExp 12-20'!E193","v":0},2929,null,true,{"$f":"IF(G2934<>\"\",INDIRECT(\"'\"&G2934&\"'!\"&H2934),\"\")","v":0},"EstExp 12-20","E193"]
[2930,{"$f":"'EstExp 12-20'!E194","v":0},2930,null,true,{"$f":"IF(G2935<>\"\",INDIRECT(\"'\"&G2935&\"'!\"&H2935),\"\")","v":0},"EstExp 12-20","E194"]
[2931,{"$f":"'EstExp 12-20'!E195","v":0},2931,null,true,{"$f":"IF(G2936<>\"\",INDIRECT(\"'\"&G2936&\"'!\"&H2936),\"\")","v":0},"EstExp 12-20","E195"]
[2932,{"$f":"'EstExp 12-20'!E196","v":0},2932,null,true,{"$f":"IF(G2937<>\"\",INDIRECT(\"'\"&G2937&\"'!\"&H2937),\"\")","v":0},"EstExp 12-20","E196"]
[2933,{"$f":"'EstExp 12-20'!E197","v":0},2933,null,true,{"$f":"IF(G2938<>\"\",INDIRECT(\"'\"&G2938&\"'!\"&H2938),\"\")","v":0},"EstExp 12-20","E197"]
[2934,{"$f":"'EstExp 12-20'!H192","v":0},2934,null,true,{"$f":"IF(G2939<>\"\",INDIRECT(\"'\"&G2939&\"'!\"&H2939),\"\")","v":0},"EstExp 12-20","H192"]
[2935,{"$f":"'EstExp 12-20'!H193","v":0},2935,null,true,{"$f":"IF(G2940<>\"\",INDIRECT(\"'\"&G2940&\"'!\"&H2940),\"\")","v":0},"EstExp 12-20","H193"]
[2936,{"$f":"'EstExp 12-20'!H194","v":0},2936,null,true,{"$f":"IF(G2941<>\"\",INDIRECT(\"'\"&G2941&\"'!\"&H2941),\"\")","v":0},"EstExp 12-20","H194"]
[2937,{"$f":"'EstExp 12-20'!H195","v":0},2937,null,true,{"$f":"IF(G2942<>\"\",INDIRECT(\"'\"&G2942&\"'!\"&H2942),\"\")","v":0},"EstExp 12-20","H195"]
[2938,{"$f":"'EstExp 12-20'!H196","v":0},2938,null,true,{"$f":"IF(G2943<>\"\",INDIRECT(\"'\"&G2943&\"'!\"&H2943),\"\")","v":0},"EstExp 12-20","H196"]
[2939,{"$f":"'EstExp 12-20'!H197","v":0},2939,null,true,{"$f":"IF(G2944<>\"\",INDIRECT(\"'\"&G2944&\"'!\"&H2944),\"\")","v":0},"EstExp 12-20","H197"]
[2940,{"$nulls":3},true,{"$f":"IF(G2945<>\"\",INDIRECT(\"'\"&G2945&\"'!\"&H2945),\"\")","v":""}]
[2941,{"$nulls":3},{"$f":"F2946=B2946","v":true},{"$f":"IF(G2946<>\"\",INDIRECT(\"'\"&G2946&\"'!\"&H2946),\"\")","v":""}]
[2942,{"$nulls":3},true,{"$f":"IF(G2947<>\"\",INDIRECT(\"'\"&G2947&\"'!\"&H2947),\"\")","v":""}]
[2943,{"$nulls":3},true,{"$f":"IF(G2948<>\"\",INDIRECT(\"'\"&G2948&\"'!\"&H2948),\"\")","v":""}]
[2944,{"$nulls":3},true,{"$f":"IF(G2949<>\"\",INDIRECT(\"'\"&G2949&\"'!\"&H2949),\"\")","v":""}]
[2945,{"$nulls":3},true,{"$f":"IF(G2950<>\"\",INDIRECT(\"'\"&G2950&\"'!\"&H2950),\"\")","v":""}]
[2946,{"$f":"'EstExp 12-20'!K192","v":0},2946,null,true,{"$f":"IF(G2951<>\"\",INDIRECT(\"'\"&G2951&\"'!\"&H2951),\"\")","v":0},"EstExp 12-20","K192"]
[2947,{"$f":"'EstExp 12-20'!K193","v":0},{"$f":"A2952-B2952","v":2947},null,true,{"$f":"IF(G2952<>\"\",INDIRECT(\"'\"&G2952&\"'!\"&H2952),\"\")","v":0},"EstExp 12-20","K193"]
[2948,{"$f":"'EstExp 12-20'!K194","v":0},2948,null,true,{"$f":"IF(G2953<>\"\",INDIRECT(\"'\"&G2953&\"'!\"&H2953),\"\")","v":0},"EstExp 12-20","K194"]
[2949,{"$f":"'EstExp 12-20'!K195","v":0},2949,null,true,{"$f":"IF(G2954<>\"\",INDIRECT(\"'\"&G2954&\"'!\"&H2954),\"\")","v":0},"EstExp 12-20","K195"]
[2950,{"$f":"'EstExp 12-20'!K196","v":0},2950,null,true,{"$f":"IF(G2955<>\"\",INDIRECT(\"'\"&G2955&\"'!\"&H2955),\"\")","v":0},"EstExp 12-20","K196"]
[2951,{"$f":"'EstExp 12-20'!K197","v":0},2951,null,true,{"$f":"IF(G2956<>\"\",INDIRECT(\"'\"&G2956&\"'!\"&H2956),\"\")","v":0},"EstExp 12-20","K197"]
[2952,{"$nulls":3},true,{"$f":"IF(G2957<>\"\",INDIRECT(\"'\"&G2957&\"'!\"&H2957),\"\")","v":""}]
[2953,{"$nulls":3},true,{"$f":"IF(G2958<>\"\",INDIRECT(\"'\"&G2958&\"'!\"&H2958),\"\")","v":""}]
[2954,{"$nulls":3},true,{"$f":"IF(G2959<>\"\",INDIRECT(\"'\"&G2959&\"'!\"&H2959),\"\")","v":""}]
[2955,{"$nulls":3},true,{"$f":"IF(G2960<>\"\",INDIRECT(\"'\"&G2960&\"'!\"&H2960),\"\")","v":""}]
[2956,{"$nulls":3},true,{"$f":"IF(G2961<>\"\",INDIRECT(\"'\"&G2961&\"'!\"&H2961),\"\")","v":""}]
[2957,{"$nulls":3},true,{"$f":"IF(G2962<>\"\",INDIRECT(\"'\"&G2962&\"'!\"&H2962),\"\")","v":""}]
[2958,{"$nulls":3},true,{"$f":"IF(G2963<>\"\",INDIRECT(\"'\"&G2963&\"'!\"&H2963),\"\")","v":""}]
[2959,{"$nulls":3},true,{"$f":"IF(G2964<>\"\",INDIRECT(\"'\"&G2964&\"'!\"&H2964),\"\")","v":""}]
[2960,{"$nulls":3},true,{"$f":"IF(G2965<>\"\",INDIRECT(\"'\"&G2965&\"'!\"&H2965),\"\")","v":""}]
[2961,{"$nulls":3},true,{"$f":"IF(G2966<>\"\",INDIRECT(\"'\"&G2966&\"'!\"&H2966),\"\")","v":""}]
[2962,{"$nulls":3},true,{"$f":"IF(G2967<>\"\",INDIRECT(\"'\"&G2967&\"'!\"&H2967),\"\")","v":""}]
[2963,{"$nulls":3},true,{"$f":"IF(G2968<>\"\",INDIRECT(\"'\"&G2968&\"'!\"&H2968),\"\")","v":""}]
[2964,{"$nulls":3},true,{"$f":"IF(G2969<>\"\",INDIRECT(\"'\"&G2969&\"'!\"&H2969),\"\")","v":""}]
[2965,{"$nulls":3},true,{"$f":"IF(G2970<>\"\",INDIRECT(\"'\"&G2970&\"'!\"&H2970),\"\")","v":""}]
[2966,{"$nulls":3},true,{"$f":"IF(G2971<>\"\",INDIRECT(\"'\"&G2971&\"'!\"&H2971),\"\")","v":""}]
[2967,{"$nulls":3},true,{"$f":"IF(G2972<>\"\",INDIRECT(\"'\"&G2972&\"'!\"&H2972),\"\")","v":""}]
[2968,{"$nulls":3},true,{"$f":"IF(G2973<>\"\",INDIRECT(\"'\"&G2973&\"'!\"&H2973),\"\")","v":""}]
[2969,{"$nulls":3},true,{"$f":"IF(G2974<>\"\",INDIRECT(\"'\"&G2974&\"'!\"&H2974),\"\")","v":""}]
[2970,{"$nulls":3},true,{"$f":"IF(G2975<>\"\",INDIRECT(\"'\"&G2975&\"'!\"&H2975),\"\")","v":""}]
[2971,{"$nulls":3},true,{"$f":"IF(G2976<>\"\",INDIRECT(\"'\"&G2976&\"'!\"&H2976),\"\")","v":""}]
[2972,{"$nulls":3},true,{"$f":"IF(G2977<>\"\",INDIRECT(\"'\"&G2977&\"'!\"&H2977),\"\")","v":""}]
[2973,{"$nulls":3},true,{"$f":"IF(G2978<>\"\",INDIRECT(\"'\"&G2978&\"'!\"&H2978),\"\")","v":""}]
[2974,{"$nulls":3},true,{"$f":"IF(G2979<>\"\",INDIRECT(\"'\"&G2979&\"'!\"&H2979),\"\")","v":""}]
[2975,{"$nulls":3},true,{"$f":"IF(G2980<>\"\",INDIRECT(\"'\"&G2980&\"'!\"&H2980),\"\")","v":""}]
[2976,{"$nulls":3},true,{"$f":"IF(G2981<>\"\",INDIRECT(\"'\"&G2981&\"'!\"&H2981),\"\")","v":""}]
[2977,{"$nulls":3},true,{"$f":"IF(G2982<>\"\",INDIRECT(\"'\"&G2982&\"'!\"&H2982),\"\")","v":""}]
[2978,{"$nulls":3},true,{"$f":"IF(G2983<>\"\",INDIRECT(\"'\"&G2983&\"'!\"&H2983),\"\")","v":""}]
[2979,{"$nulls":3},true,{"$f":"IF(G2984<>\"\",INDIRECT(\"'\"&G2984&\"'!\"&H2984),\"\")","v":""}]
[2980,{"$nulls":3},true,{"$f":"IF(G2985<>\"\",INDIRECT(\"'\"&G2985&\"'!\"&H2985),\"\")","v":""}]
[2981,{"$nulls":3},true,{"$f":"IF(G2986<>\"\",INDIRECT(\"'\"&G2986&\"'!\"&H2986),\"\")","v":""}]
[2982,{"$nulls":3},true,{"$f":"IF(G2987<>\"\",INDIRECT(\"'\"&G2987&\"'!\"&H2987),\"\")","v":""}]
[2983,{"$nulls":3},true,{"$f":"IF(G2988<>\"\",INDIRECT(\"'\"&G2988&\"'!\"&H2988),\"\")","v":""}]
[2984,{"$nulls":3},true,{"$f":"IF(G2989<>\"\",INDIRECT(\"'\"&G2989&\"'!\"&H2989),\"\")","v":""}]
[2985,{"$nulls":3},true,{"$f":"IF(G2990<>\"\",INDIRECT(\"'\"&G2990&\"'!\"&H2990),\"\")","v":""}]
[2986,{"$nulls":3},true,{"$f":"IF(G2991<>\"\",INDIRECT(\"'\"&G2991&\"'!\"&H2991),\"\")","v":""}]
[2987,{"$nulls":3},true,{"$f":"IF(G2992<>\"\",INDIRECT(\"'\"&G2992&\"'!\"&H2992),\"\")","v":""}]
[2988,{"$nulls":3},true,{"$f":"IF(G2993<>\"\",INDIRECT(\"'\"&G2993&\"'!\"&H2993),\"\")","v":""}]
[2989,{"$nulls":3},true,{"$f":"IF(G2994<>\"\",INDIRECT(\"'\"&G2994&\"'!\"&H2994),\"\")","v":""}]
[2990,{"$nulls":3},true,{"$f":"IF(G2995<>\"\",INDIRECT(\"'\"&G2995&\"'!\"&H2995),\"\")","v":""}]
[2991,{"$nulls":3},true,{"$f":"IF(G2996<>\"\",INDIRECT(\"'\"&G2996&\"'!\"&H2996),\"\")","v":""}]
[2992,{"$nulls":3},true,{"$f":"IF(G2997<>\"\",INDIRECT(\"'\"&G2997&\"'!\"&H2997),\"\")","v":""}]
[2993,{"$nulls":3},true,{"$f":"IF(G2998<>\"\",INDIRECT(\"'\"&G2998&\"'!\"&H2998),\"\")","v":""}]
[2994,{"$f":"'EstExp 12-20'!C10","v":0},2994,null,true,{"$f":"IF(G2999<>\"\",INDIRECT(\"'\"&G2999&\"'!\"&H2999),\"\")","v":0},"EstExp 12-20","C10"]
[2995,{"$f":"'EstExp 12-20'!D10","v":0},2995,null,true,{"$f":"IF(G3000<>\"\",INDIRECT(\"'\"&G3000&\"'!\"&H3000),\"\")","v":0},"EstExp 12-20","D10"]
[2996,{"$f":"'EstExp 12-20'!E10","v":0},2996,null,true,{"$f":"IF(G3001<>\"\",INDIRECT(\"'\"&G3001&\"'!\"&H3001),\"\")","v":0},"EstExp 12-20","E10"]
[2997,{"$f":"'EstExp 12-20'!F10","v":0},2997,null,true,{"$f":"IF(G3002<>\"\",INDIRECT(\"'\"&G3002&\"'!\"&H3002),\"\")","v":0},"EstExp 12-20","F10"]
[2998,{"$f":"'EstExp 12-20'!G10","v":0},2998,null,true,{"$f":"IF(G3003<>\"\",INDIRECT(\"'\"&G3003&\"'!\"&H3003),\"\")","v":0},"EstExp 12-20","G10"]
[2999,{"$f":"'EstExp 12-20'!H10","v":0},2999,null,true,{"$f":"IF(G3004<>\"\",INDIRECT(\"'\"&G3004&\"'!\"&H3004),\"\")","v":0},"EstExp 12-20","H10"]
[3000,null,null,"Closed 2008",true,{"$f":"IF(G3005<>\"\",INDIRECT(\"'\"&G3005&\"'!\"&H3005),\"\")","v":""}]
[3001,{"$f":"'EstExp 12-20'!K10","v":0},3001,null,true,{"$f":"IF(G3006<>\"\",INDIRECT(\"'\"&G3006&\"'!\"&H3006),\"\")","v":0},"EstExp 12-20","K10"]
[3002,null,null,"Closed 2008",true,{"$f":"IF(G3007<>\"\",INDIRECT(\"'\"&G3007&\"'!\"&H3007),\"\")","v":""}]
[3003,{"$f":"'EstExp 12-20'!D223","v":0},3003,null,true,{"$f":"IF(G3008<>\"\",INDIRECT(\"'\"&G3008&\"'!\"&H3008),\"\")","v":0},"EstExp 12-20","D223"]
[3004,{"$f":"'EstExp 12-20'!K223","v":0},3004,null,true,{"$f":"IF(G3009<>\"\",INDIRECT(\"'\"&G3009&\"'!\"&H3009),\"\")","v":0},"EstExp 12-20","K223"]
[3005,{"$nulls":3},{"$f":"F3010=B3010","v":true},{"$f":"IF(G3010<>\"\",INDIRECT(\"'\"&G3010&\"'!\"&H3010),\"\")","v":""}]
[3006,{"$nulls":3},true,{"$f":"IF(G3011<>\"\",INDIRECT(\"'\"&G3011&\"'!\"&H3011),\"\")","v":""}]
[3007,{"$nulls":3},true,{"$f":"IF(G3012<>\"\",INDIRECT(\"'\"&G3012&\"'!\"&H3012),\"\")","v":""}]
[3008,{"$nulls":3},true,{"$f":"IF(G3013<>\"\",INDIRECT(\"'\"&G3013&\"'!\"&H3013),\"\")","v":""}]
[3009,{"$nulls":3},true,{"$f":"IF(G3014<>\"\",INDIRECT(\"'\"&G3014&\"'!\"&H3014),\"\")","v":""}]
[3010,{"$nulls":3},true,{"$f":"IF(G3015<>\"\",INDIRECT(\"'\"&G3015&\"'!\"&H3015),\"\")","v":""}]
[3011,{"$nulls":3},true,{"$f":"IF(G3016<>\"\",INDIRECT(\"'\"&G3016&\"'!\"&H3016),\"\")","v":""}]
[3012,{"$nulls":3},true,{"$f":"IF(G3017<>\"\",INDIRECT(\"'\"&G3017&\"'!\"&H3017),\"\")","v":""}]
[3013,{"$nulls":3},true,{"$f":"IF(G3018<>\"\",INDIRECT(\"'\"&G3018&\"'!\"&H3018),\"\")","v":""}]
[3014,{"$nulls":3},true,{"$f":"IF(G3019<>\"\",INDIRECT(\"'\"&G3019&\"'!\"&H3019),\"\")","v":""}]
[3015,{"$nulls":3},true,{"$f":"IF(G3020<>\"\",INDIRECT(\"'\"&G3020&\"'!\"&H3020),\"\")","v":""}]
[3016,{"$nulls":3},true,{"$f":"IF(G3021<>\"\",INDIRECT(\"'\"&G3021&\"'!\"&H3021),\"\")","v":""}]
[3017,{"$f":"'BudgetSum 2-4'!D35","v":0},{"$f":"A3022-B3022","v":3017},null,true,{"$f":"IF(G3022<>\"\",INDIRECT(\"'\"&G3022&\"'!\"&H3022),\"\")","v":0},"BudgetSum 2-4","D35"]
[3018,{"$f":"'BudgetSum 2-4'!D36","v":0},3018,null,true,{"$f":"IF(G3023<>\"\",INDIRECT(\"'\"&G3023&\"'!\"&H3023),\"\")","v":0},"BudgetSum 2-4","D36"]
[3019,{"$f":"'BudgetSum 2-4'!D37","v":0},3019,null,true,{"$f":"IF(G3024<>\"\",INDIRECT(\"'\"&G3024&\"'!\"&H3024),\"\")","v":0},"BudgetSum 2-4","D37"]
[3020,{"$nulls":3},true,{"$f":"IF(G3025<>\"\",INDIRECT(\"'\"&G3025&\"'!\"&H3025),\"\")","v":""}]
[3021,{"$f":"'BudgetSum 2-4'!E35","v":0},3021,null,true,{"$f":"IF(G3026<>\"\",INDIRECT(\"'\"&G3026&\"'!\"&H3026),\"\")","v":0},"BudgetSum 2-4","E35"]
[3022,{"$f":"'BudgetSum 2-4'!F35","v":0},3022,null,true,{"$f":"IF(G3027<>\"\",INDIRECT(\"'\"&G3027&\"'!\"&H3027),\"\")","v":0},"BudgetSum 2-4","F35"]
[3023,{"$f":"'BudgetSum 2-4'!F36","v":0},3023,null,true,{"$f":"IF(G3028<>\"\",INDIRECT(\"'\"&G3028&\"'!\"&H3028),\"\")","v":0},"BudgetSum 2-4","F36"]
[3024,{"$f":"'BudgetSum 2-4'!F37","v":0},3024,null,true,{"$f":"IF(G3029<>\"\",INDIRECT(\"'\"&G3029&\"'!\"&H3029),\"\")","v":0},"BudgetSum 2-4","F37"]
[3025,{"$nulls":3},true,{"$f":"IF(G3030<>\"\",INDIRECT(\"'\"&G3030&\"'!\"&H3030),\"\")","v":""}]
[3026,{"$nulls":3},true,{"$f":"IF(G3031<>\"\",INDIRECT(\"'\"&G3031&\"'!\"&H3031),\"\")","v":""}]
[3027,{"$nulls":3},true,{"$f":"IF(G3032<>\"\",INDIRECT(\"'\"&G3032&\"'!\"&H3032),\"\")","v":""}]
[3028,{"$nulls":3},true,{"$f":"IF(G3033<>\"\",INDIRECT(\"'\"&G3033&\"'!\"&H3033),\"\")","v":""}]
[3029,{"$nulls":3},true,{"$f":"IF(G3034<>\"\",INDIRECT(\"'\"&G3034&\"'!\"&H3034),\"\")","v":""}]
[3030,{"$nulls":3},true,{"$f":"IF(G3035<>\"\",INDIRECT(\"'\"&G3035&\"'!\"&H3035),\"\")","v":""}]
[3031,{"$nulls":3},true,{"$f":"IF(G3036<>\"\",INDIRECT(\"'\"&G3036&\"'!\"&H3036),\"\")","v":""}]
[3032,{"$nulls":3},true,{"$f":"IF(G3037<>\"\",INDIRECT(\"'\"&G3037&\"'!\"&H3037),\"\")","v":""}]
[3033,{"$nulls":3},true,{"$f":"IF(G3038<>\"\",INDIRECT(\"'\"&G3038&\"'!\"&H3038),\"\")","v":""}]
[3034,{"$nulls":3},true,{"$f":"IF(G3039<>\"\",INDIRECT(\"'\"&G3039&\"'!\"&H3039),\"\")","v":""}]
[3035,{"$nulls":3},true,{"$f":"IF(G3040<>\"\",INDIRECT(\"'\"&G3040&\"'!\"&H3040),\"\")","v":""}]
[3036,{"$nulls":3},true,{"$f":"IF(G3041<>\"\",INDIRECT(\"'\"&G3041&\"'!\"&H3041),\"\")","v":""}]
[3037,{"$nulls":3},true,{"$f":"IF(G3042<>\"\",INDIRECT(\"'\"&G3042&\"'!\"&H3042),\"\")","v":""}]
[3038,{"$nulls":3},true,{"$f":"IF(G3043<>\"\",INDIRECT(\"'\"&G3043&\"'!\"&H3043),\"\")","v":""}]
[3039,{"$nulls":3},true,{"$f":"IF(G3044<>\"\",INDIRECT(\"'\"&G3044&\"'!\"&H3044),\"\")","v":""}]
[3040,{"$nulls":3},true,{"$f":"IF(G3045<>\"\",INDIRECT(\"'\"&G3045&\"'!\"&H3045),\"\")","v":""}]
[3041,{"$nulls":3},true,{"$f":"IF(G3046<>\"\",INDIRECT(\"'\"&G3046&\"'!\"&H3046),\"\")","v":""}]
[3042,{"$nulls":3},true,{"$f":"IF(G3047<>\"\",INDIRECT(\"'\"&G3047&\"'!\"&H3047),\"\")","v":""}]
[3043,{"$nulls":3},true,{"$f":"IF(G3048<>\"\",INDIRECT(\"'\"&G3048&\"'!\"&H3048),\"\")","v":""}]
[3044,{"$nulls":3},true,{"$f":"IF(G3049<>\"\",INDIRECT(\"'\"&G3049&\"'!\"&H3049),\"\")","v":""}]
[3045,{"$nulls":3},true,{"$f":"IF(G3050<>\"\",INDIRECT(\"'\"&G3050&\"'!\"&H3050),\"\")","v":""}]
[3046,{"$nulls":3},true,{"$f":"IF(G3051<>\"\",INDIRECT(\"'\"&G3051&\"'!\"&H3051),\"\")","v":""}]
[3047,{"$nulls":3},true,{"$f":"IF(G3052<>\"\",INDIRECT(\"'\"&G3052&\"'!\"&H3052),\"\")","v":""}]
[3048,{"$nulls":3},true,{"$f":"IF(G3053<>\"\",INDIRECT(\"'\"&G3053&\"'!\"&H3053),\"\")","v":""}]
[3049,{"$nulls":3},true,{"$f":"IF(G3054<>\"\",INDIRECT(\"'\"&G3054&\"'!\"&H3054),\"\")","v":""}]
[3050,{"$nulls":3},true,{"$f":"IF(G3055<>\"\",INDIRECT(\"'\"&G3055&\"'!\"&H3055),\"\")","v":""}]
[3051,{"$nulls":3},true,{"$f":"IF(G3056<>\"\",INDIRECT(\"'\"&G3056&\"'!\"&H3056),\"\")","v":""}]
[3052,{"$nulls":3},true,{"$f":"IF(G3057<>\"\",INDIRECT(\"'\"&G3057&\"'!\"&H3057),\"\")","v":""}]
[3053,{"$nulls":3},true,{"$f":"IF(G3058<>\"\",INDIRECT(\"'\"&G3058&\"'!\"&H3058),\"\")","v":""}]
[3054,{"$nulls":3},true,{"$f":"IF(G3059<>\"\",INDIRECT(\"'\"&G3059&\"'!\"&H3059),\"\")","v":""}]
[3055,{"$nulls":3},true,{"$f":"IF(G3060<>\"\",INDIRECT(\"'\"&G3060&\"'!\"&H3060),\"\")","v":""}]
[3056,{"$nulls":3},true,{"$f":"IF(G3061<>\"\",INDIRECT(\"'\"&G3061&\"'!\"&H3061),\"\")","v":""}]
[3057,{"$nulls":3},true,{"$f":"IF(G3062<>\"\",INDIRECT(\"'\"&G3062&\"'!\"&H3062),\"\")","v":""}]
[3058,{"$nulls":3},true,{"$f":"IF(G3063<>\"\",INDIRECT(\"'\"&G3063&\"'!\"&H3063),\"\")","v":""}]
[3059,{"$nulls":3},true,{"$f":"IF(G3064<>\"\",INDIRECT(\"'\"&G3064&\"'!\"&H3064),\"\")","v":""}]
[3060,{"$nulls":3},true,{"$f":"IF(G3065<>\"\",INDIRECT(\"'\"&G3065&\"'!\"&H3065),\"\")","v":""}]
[3061,{"$nulls":3},true,{"$f":"IF(G3066<>\"\",INDIRECT(\"'\"&G3066&\"'!\"&H3066),\"\")","v":""}]
[3062,{"$nulls":3},true,{"$f":"IF(G3067<>\"\",INDIRECT(\"'\"&G3067&\"'!\"&H3067),\"\")","v":""}]
[3063,{"$nulls":3},true,{"$f":"IF(G3068<>\"\",INDIRECT(\"'\"&G3068&\"'!\"&H3068),\"\")","v":""}]
[3064,{"$nulls":3},true,{"$f":"IF(G3069<>\"\",INDIRECT(\"'\"&G3069&\"'!\"&H3069),\"\")","v":""}]
[3065,{"$nulls":3},true,{"$f":"IF(G3070<>\"\",INDIRECT(\"'\"&G3070&\"'!\"&H3070),\"\")","v":""}]
[3066,{"$nulls":3},true,{"$f":"IF(G3071<>\"\",INDIRECT(\"'\"&G3071&\"'!\"&H3071),\"\")","v":""}]
[3067,{"$nulls":3},true,{"$f":"IF(G3072<>\"\",INDIRECT(\"'\"&G3072&\"'!\"&H3072),\"\")","v":""}]
[3068,{"$nulls":3},true,{"$f":"IF(G3073<>\"\",INDIRECT(\"'\"&G3073&\"'!\"&H3073),\"\")","v":""}]
[3069,{"$nulls":3},{"$f":"F3074=B3074","v":true},{"$f":"IF(G3074<>\"\",INDIRECT(\"'\"&G3074&\"'!\"&H3074),\"\")","v":""}]
[3070,{"$nulls":3},true,{"$f":"IF(G3075<>\"\",INDIRECT(\"'\"&G3075&\"'!\"&H3075),\"\")","v":""}]
[3071,{"$nulls":3},true,{"$f":"IF(G3076<>\"\",INDIRECT(\"'\"&G3076&\"'!\"&H3076),\"\")","v":""}]
[3072,{"$nulls":3},true,{"$f":"IF(G3077<>\"\",INDIRECT(\"'\"&G3077&\"'!\"&H3077),\"\")","v":""}]
[3073,{"$nulls":3},true,{"$f":"IF(G3078<>\"\",INDIRECT(\"'\"&G3078&\"'!\"&H3078),\"\")","v":""}]
[3074,{"$nulls":3},true,{"$f":"IF(G3079<>\"\",INDIRECT(\"'\"&G3079&\"'!\"&H3079),\"\")","v":""}]
[3075,{"$nulls":3},true,{"$f":"IF(G3080<>\"\",INDIRECT(\"'\"&G3080&\"'!\"&H3080),\"\")","v":""}]
[3076,{"$nulls":3},true,{"$f":"IF(G3081<>\"\",INDIRECT(\"'\"&G3081&\"'!\"&H3081),\"\")","v":""}]
[3077,{"$nulls":3},true,{"$f":"IF(G3082<>\"\",INDIRECT(\"'\"&G3082&\"'!\"&H3082),\"\")","v":""}]
[3078,{"$nulls":3},true,{"$f":"IF(G3083<>\"\",INDIRECT(\"'\"&G3083&\"'!\"&H3083),\"\")","v":""}]
[3079,{"$nulls":3},true,{"$f":"IF(G3084<>\"\",INDIRECT(\"'\"&G3084&\"'!\"&H3084),\"\")","v":""}]
[3080,{"$nulls":3},true,{"$f":"IF(G3085<>\"\",INDIRECT(\"'\"&G3085&\"'!\"&H3085),\"\")","v":""}]
[3081,{"$nulls":3},true,{"$f":"IF(G3086<>\"\",INDIRECT(\"'\"&G3086&\"'!\"&H3086),\"\")","v":""}]
[3082,{"$nulls":3},true,{"$f":"IF(G3087<>\"\",INDIRECT(\"'\"&G3087&\"'!\"&H3087),\"\")","v":""}]
[3083,{"$nulls":3},true,{"$f":"IF(G3088<>\"\",INDIRECT(\"'\"&G3088&\"'!\"&H3088),\"\")","v":""}]
[3084,{"$nulls":3},true,{"$f":"IF(G3089<>\"\",INDIRECT(\"'\"&G3089&\"'!\"&H3089),\"\")","v":""}]
[3085,{"$nulls":3},true,{"$f":"IF(G3090<>\"\",INDIRECT(\"'\"&G3090&\"'!\"&H3090),\"\")","v":""}]
[3086,{"$nulls":3},true,{"$f":"IF(G3091<>\"\",INDIRECT(\"'\"&G3091&\"'!\"&H3091),\"\")","v":""}]
[3087,{"$nulls":3},true,{"$f":"IF(G3092<>\"\",INDIRECT(\"'\"&G3092&\"'!\"&H3092),\"\")","v":""}]
[3088,{"$nulls":3},true,{"$f":"IF(G3093<>\"\",INDIRECT(\"'\"&G3093&\"'!\"&H3093),\"\")","v":""}]
[3089,{"$nulls":3},true,{"$f":"IF(G3094<>\"\",INDIRECT(\"'\"&G3094&\"'!\"&H3094),\"\")","v":""}]
[3090,{"$nulls":3},true,{"$f":"IF(G3095<>\"\",INDIRECT(\"'\"&G3095&\"'!\"&H3095),\"\")","v":""}]
[3091,{"$nulls":3},true,{"$f":"IF(G3096<>\"\",INDIRECT(\"'\"&G3096&\"'!\"&H3096),\"\")","v":""}]
[3092,{"$nulls":3},true,{"$f":"IF(G3097<>\"\",INDIRECT(\"'\"&G3097&\"'!\"&H3097),\"\")","v":""}]
[3093,{"$nulls":3},true,{"$f":"IF(G3098<>\"\",INDIRECT(\"'\"&G3098&\"'!\"&H3098),\"\")","v":""}]
[3094,{"$nulls":3},true,{"$f":"IF(G3099<>\"\",INDIRECT(\"'\"&G3099&\"'!\"&H3099),\"\")","v":""}]
[3095,{"$nulls":3},true,{"$f":"IF(G3100<>\"\",INDIRECT(\"'\"&G3100&\"'!\"&H3100),\"\")","v":""}]
[3096,{"$nulls":3},true,{"$f":"IF(G3101<>\"\",INDIRECT(\"'\"&G3101&\"'!\"&H3101),\"\")","v":""}]
[3097,{"$nulls":3},true,{"$f":"IF(G3102<>\"\",INDIRECT(\"'\"&G3102&\"'!\"&H3102),\"\")","v":""}]
[3098,{"$nulls":3},true,{"$f":"IF(G3103<>\"\",INDIRECT(\"'\"&G3103&\"'!\"&H3103),\"\")","v":""}]
[3099,{"$nulls":3},true,{"$f":"IF(G3104<>\"\",INDIRECT(\"'\"&G3104&\"'!\"&H3104),\"\")","v":""}]
[3100,{"$f":"'BudgetSum 2-4'!D31","v":0},{"$f":"A3105-B3105","v":3100},null,true,{"$f":"IF(G3105<>\"\",INDIRECT(\"'\"&G3105&\"'!\"&H3105),\"\")","v":0},"BudgetSum 2-4","D31"]
[3101,null,null,"Closed 2008",true,{"$f":"IF(G3106<>\"\",INDIRECT(\"'\"&G3106&\"'!\"&H3106),\"\")","v":""}]
[3102,{"$nulls":3},true,{"$f":"IF(G3107<>\"\",INDIRECT(\"'\"&G3107&\"'!\"&H3107),\"\")","v":""}]
[3103,{"$nulls":3},true,{"$f":"IF(G3108<>\"\",INDIRECT(\"'\"&G3108&\"'!\"&H3108),\"\")","v":""}]
[3104,{"$nulls":3},true,{"$f":"IF(G3109<>\"\",INDIRECT(\"'\"&G3109&\"'!\"&H3109),\"\")","v":""}]
[3105,{"$nulls":3},true,{"$f":"IF(G3110<>\"\",INDIRECT(\"'\"&G3110&\"'!\"&H3110),\"\")","v":""}]
[3106,{"$nulls":3},true,{"$f":"IF(G3111<>\"\",INDIRECT(\"'\"&G3111&\"'!\"&H3111),\"\")","v":""}]
[3107,null,null,"Closed 2008",true,{"$f":"IF(G3112<>\"\",INDIRECT(\"'\"&G3112&\"'!\"&H3112),\"\")","v":""}]
[3108,{"$nulls":3},true,{"$f":"IF(G3113<>\"\",INDIRECT(\"'\"&G3113&\"'!\"&H3113),\"\")","v":""}]
[3109,{"$f":"'BudgetSum 2-4'!H54","v":0},3109,null,true,{"$f":"IF(G3114<>\"\",INDIRECT(\"'\"&G3114&\"'!\"&H3114),\"\")","v":0},"BudgetSum 2-4","H54"]
[3110,{"$nulls":3},true,{"$f":"IF(G3115<>\"\",INDIRECT(\"'\"&G3115&\"'!\"&H3115),\"\")","v":""}]
[3111,{"$nulls":3},true,{"$f":"IF(G3116<>\"\",INDIRECT(\"'\"&G3116&\"'!\"&H3116),\"\")","v":""}]
[3112,{"$nulls":3},true,{"$f":"IF(G3117<>\"\",INDIRECT(\"'\"&G3117&\"'!\"&H3117),\"\")","v":""}]
[3113,{"$nulls":3},true,{"$f":"IF(G3118<>\"\",INDIRECT(\"'\"&G3118&\"'!\"&H3118),\"\")","v":""}]
[3114,{"$nulls":3},true,{"$f":"IF(G3119<>\"\",INDIRECT(\"'\"&G3119&\"'!\"&H3119),\"\")","v":""}]
[3115,{"$nulls":3},true,{"$f":"IF(G3120<>\"\",INDIRECT(\"'\"&G3120&\"'!\"&H3120),\"\")","v":""}]
[3116,{"$nulls":3},true,{"$f":"IF(G3121<>\"\",INDIRECT(\"'\"&G3121&\"'!\"&H3121),\"\")","v":""}]
[3117,{"$nulls":3},true,{"$f":"IF(G3122<>\"\",INDIRECT(\"'\"&G3122&\"'!\"&H3122),\"\")","v":""}]
[3118,{"$nulls":3},true,{"$f":"IF(G3123<>\"\",INDIRECT(\"'\"&G3123&\"'!\"&H3123),\"\")","v":""}]
[3119,{"$nulls":3},true,{"$f":"IF(G3124<>\"\",INDIRECT(\"'\"&G3124&\"'!\"&H3124),\"\")","v":""}]
[3120,{"$nulls":3},true,{"$f":"IF(G3125<>\"\",INDIRECT(\"'\"&G3125&\"'!\"&H3125),\"\")","v":""}]
[3121,{"$nulls":3},true,{"$f":"IF(G3126<>\"\",INDIRECT(\"'\"&G3126&\"'!\"&H3126),\"\")","v":""}]
[3122,{"$nulls":3},true,{"$f":"IF(G3127<>\"\",INDIRECT(\"'\"&G3127&\"'!\"&H3127),\"\")","v":""}]
[3123,{"$nulls":3},true,{"$f":"IF(G3128<>\"\",INDIRECT(\"'\"&G3128&\"'!\"&H3128),\"\")","v":""}]
[3124,{"$nulls":3},true,{"$f":"IF(G3129<>\"\",INDIRECT(\"'\"&G3129&\"'!\"&H3129),\"\")","v":""}]
[3125,{"$nulls":3},true,{"$f":"IF(G3130<>\"\",INDIRECT(\"'\"&G3130&\"'!\"&H3130),\"\")","v":""}]
[3126,{"$nulls":3},true,{"$f":"IF(G3131<>\"\",INDIRECT(\"'\"&G3131&\"'!\"&H3131),\"\")","v":""}]
[3127,{"$nulls":3},true,{"$f":"IF(G3132<>\"\",INDIRECT(\"'\"&G3132&\"'!\"&H3132),\"\")","v":""}]
[3128,{"$nulls":3},true,{"$f":"IF(G3133<>\"\",INDIRECT(\"'\"&G3133&\"'!\"&H3133),\"\")","v":""}]
[3129,{"$nulls":3},true,{"$f":"IF(G3134<>\"\",INDIRECT(\"'\"&G3134&\"'!\"&H3134),\"\")","v":""}]
[3130,{"$nulls":3},true,{"$f":"IF(G3135<>\"\",INDIRECT(\"'\"&G3135&\"'!\"&H3135),\"\")","v":""}]
[3131,{"$nulls":3},true,{"$f":"IF(G3136<>\"\",INDIRECT(\"'\"&G3136&\"'!\"&H3136),\"\")","v":""}]
[3132,{"$nulls":3},true,{"$f":"IF(G3137<>\"\",INDIRECT(\"'\"&G3137&\"'!\"&H3137),\"\")","v":""}]
[3133,{"$nulls":3},{"$f":"F3138=B3138","v":true},{"$f":"IF(G3138<>\"\",INDIRECT(\"'\"&G3138&\"'!\"&H3138),\"\")","v":""}]
[3134,{"$nulls":3},true,{"$f":"IF(G3139<>\"\",INDIRECT(\"'\"&G3139&\"'!\"&H3139),\"\")","v":""}]
[3135,{"$nulls":3},true,{"$f":"IF(G3140<>\"\",INDIRECT(\"'\"&G3140&\"'!\"&H3140),\"\")","v":""}]
[3136,{"$nulls":3},true,{"$f":"IF(G3141<>\"\",INDIRECT(\"'\"&G3141&\"'!\"&H3141),\"\")","v":""}]
[3137,{"$nulls":3},true,{"$f":"IF(G3142<>\"\",INDIRECT(\"'\"&G3142&\"'!\"&H3142),\"\")","v":""}]
[3138,{"$nulls":3},true,{"$f":"IF(G3143<>\"\",INDIRECT(\"'\"&G3143&\"'!\"&H3143),\"\")","v":""}]
[3139,{"$nulls":3},true,{"$f":"IF(G3144<>\"\",INDIRECT(\"'\"&G3144&\"'!\"&H3144),\"\")","v":""}]
[3140,{"$nulls":3},true,{"$f":"IF(G3145<>\"\",INDIRECT(\"'\"&G3145&\"'!\"&H3145),\"\")","v":""}]
[3141,{"$nulls":3},true,{"$f":"IF(G3146<>\"\",INDIRECT(\"'\"&G3146&\"'!\"&H3146),\"\")","v":""}]
[3142,{"$nulls":3},true,{"$f":"IF(G3147<>\"\",INDIRECT(\"'\"&G3147&\"'!\"&H3147),\"\")","v":""}]
[3143,{"$nulls":3},true,{"$f":"IF(G3148<>\"\",INDIRECT(\"'\"&G3148&\"'!\"&H3148),\"\")","v":""}]
[3144,{"$nulls":3},true,{"$f":"IF(G3149<>\"\",INDIRECT(\"'\"&G3149&\"'!\"&H3149),\"\")","v":""}]
[3145,{"$nulls":3},true,{"$f":"IF(G3150<>\"\",INDIRECT(\"'\"&G3150&\"'!\"&H3150),\"\")","v":""}]
[3146,{"$nulls":3},true,{"$f":"IF(G3151<>\"\",INDIRECT(\"'\"&G3151&\"'!\"&H3151),\"\")","v":""}]
[3147,{"$nulls":3},true,{"$f":"IF(G3152<>\"\",INDIRECT(\"'\"&G3152&\"'!\"&H3152),\"\")","v":""}]
[3148,{"$nulls":3},true,{"$f":"IF(G3153<>\"\",INDIRECT(\"'\"&G3153&\"'!\"&H3153),\"\")","v":""}]
[3149,{"$nulls":3},true,{"$f":"IF(G3154<>\"\",INDIRECT(\"'\"&G3154&\"'!\"&H3154),\"\")","v":""}]
[3150,{"$nulls":3},true,{"$f":"IF(G3155<>\"\",INDIRECT(\"'\"&G3155&\"'!\"&H3155),\"\")","v":""}]
[3151,{"$nulls":3},true,{"$f":"IF(G3156<>\"\",INDIRECT(\"'\"&G3156&\"'!\"&H3156),\"\")","v":""}]
[3152,{"$nulls":3},true,{"$f":"IF(G3157<>\"\",INDIRECT(\"'\"&G3157&\"'!\"&H3157),\"\")","v":""}]
[3153,{"$nulls":3},true,{"$f":"IF(G3158<>\"\",INDIRECT(\"'\"&G3158&\"'!\"&H3158),\"\")","v":""}]
[3154,{"$nulls":3},true,{"$f":"IF(G3159<>\"\",INDIRECT(\"'\"&G3159&\"'!\"&H3159),\"\")","v":""}]
[3155,{"$nulls":3},true,{"$f":"IF(G3160<>\"\",INDIRECT(\"'\"&G3160&\"'!\"&H3160),\"\")","v":""}]
[3156,{"$nulls":3},true,{"$f":"IF(G3161<>\"\",INDIRECT(\"'\"&G3161&\"'!\"&H3161),\"\")","v":""}]
[3157,{"$nulls":3},true,{"$f":"IF(G3162<>\"\",INDIRECT(\"'\"&G3162&\"'!\"&H3162),\"\")","v":""}]
[3158,{"$nulls":3},true,{"$f":"IF(G3163<>\"\",INDIRECT(\"'\"&G3163&\"'!\"&H3163),\"\")","v":""}]
[3159,{"$nulls":3},true,{"$f":"IF(G3164<>\"\",INDIRECT(\"'\"&G3164&\"'!\"&H3164),\"\")","v":""}]
[3160,{"$nulls":3},true,{"$f":"IF(G3165<>\"\",INDIRECT(\"'\"&G3165&\"'!\"&H3165),\"\")","v":""}]
[3161,{"$nulls":3},true,{"$f":"IF(G3166<>\"\",INDIRECT(\"'\"&G3166&\"'!\"&H3166),\"\")","v":""}]
[3162,{"$nulls":3},true,{"$f":"IF(G3167<>\"\",INDIRECT(\"'\"&G3167&\"'!\"&H3167),\"\")","v":""}]
[3163,{"$nulls":3},true,{"$f":"IF(G3168<>\"\",INDIRECT(\"'\"&G3168&\"'!\"&H3168),\"\")","v":""}]
[3164,{"$f":"'BudgetSum 2-4'!I5","v":27000},{"$f":"A3169-B3169","v":-23836},null,true,{"$f":"IF(G3169<>\"\",INDIRECT(\"'\"&G3169&\"'!\"&H3169),\"\")","v":27000},"BudgetSum 2-4","I5"]
[3165,{"$f":"'BudgetSum 2-4'!I9","v":27000},-23835,null,true,{"$f":"IF(G3170<>\"\",INDIRECT(\"'\"&G3170&\"'!\"&H3170),\"\")","v":27000},"BudgetSum 2-4","I9"]
[3166,{"$f":"'BudgetSum 2-4'!I22","v":27000},-23834,null,true,{"$f":"IF(G3171<>\"\",INDIRECT(\"'\"&G3171&\"'!\"&H3171),\"\")","v":27000},"BudgetSum 2-4","I22"]
[3167,{"$f":"'BudgetSum 2-4'!C45","v":0},3167,null,true,{"$f":"IF(G3172<>\"\",INDIRECT(\"'\"&G3172&\"'!\"&H3172),\"\")","v":0},"BudgetSum 2-4","C45"]
[3168,{"$f":"'BudgetSum 2-4'!C46","v":0},3168,null,true,{"$f":"IF(G3173<>\"\",INDIRECT(\"'\"&G3173&\"'!\"&H3173),\"\")","v":0},"BudgetSum 2-4","C46"]
[3169,{"$f":"'BudgetSum 2-4'!C78","v":0},3169,null,true,{"$f":"IF(G3174<>\"\",INDIRECT(\"'\"&G3174&\"'!\"&H3174),\"\")","v":0},"BudgetSum 2-4","C78"]
[3170,{"$f":"'BudgetSum 2-4'!C79","v":0},3170,null,true,{"$f":"IF(G3175<>\"\",INDIRECT(\"'\"&G3175&\"'!\"&H3175),\"\")","v":0},"BudgetSum 2-4","C79"]
[3171,{"$f":"'BudgetSum 2-4'!C80","v":0},3171,null,true,{"$f":"IF(G3176<>\"\",INDIRECT(\"'\"&G3176&\"'!\"&H3176),\"\")","v":0},"BudgetSum 2-4","C80"]
[3172,{"$nulls":3},true,{"$f":"IF(G3177<>\"\",INDIRECT(\"'\"&G3177&\"'!\"&H3177),\"\")","v":""}]
[3173,{"$f":"'BudgetSum 2-4'!D45","v":0},3173,null,true,{"$f":"IF(G3178<>\"\",INDIRECT(\"'\"&G3178&\"'!\"&H3178),\"\")","v":0},"BudgetSum 2-4","D45"]
[3174,{"$f":"'BudgetSum 2-4'!D46","v":0},3174,null,true,{"$f":"IF(G3179<>\"\",INDIRECT(\"'\"&G3179&\"'!\"&H3179),\"\")","v":0},"BudgetSum 2-4","D46"]
[3175,{"$f":"'BudgetSum 2-4'!D78","v":0},3175,null,true,{"$f":"IF(G3180<>\"\",INDIRECT(\"'\"&G3180&\"'!\"&H3180),\"\")","v":0},"BudgetSum 2-4","D78"]
[3176,{"$f":"'BudgetSum 2-4'!D79","v":0},3176,null,true,{"$f":"IF(G3181<>\"\",INDIRECT(\"'\"&G3181&\"'!\"&H3181),\"\")","v":0},"BudgetSum 2-4","D79"]
[3177,{"$f":"'BudgetSum 2-4'!D80","v":0},3177,null,true,{"$f":"IF(G3182<>\"\",INDIRECT(\"'\"&G3182&\"'!\"&H3182),\"\")","v":0},"BudgetSum 2-4","D80"]
[3178,{"$nulls":3},true,{"$f":"IF(G3183<>\"\",INDIRECT(\"'\"&G3183&\"'!\"&H3183),\"\")","v":""}]
[3179,{"$nulls":3},true,{"$f":"IF(G3184<>\"\",INDIRECT(\"'\"&G3184&\"'!\"&H3184),\"\")","v":""}]
[3180,{"$nulls":3},true,{"$f":"IF(G3185<>\"\",INDIRECT(\"'\"&G3185&\"'!\"&H3185),\"\")","v":""}]
[3181,{"$nulls":3},true,{"$f":"IF(G3186<>\"\",INDIRECT(\"'\"&G3186&\"'!\"&H3186),\"\")","v":""}]
[3182,{"$nulls":3},true,{"$f":"IF(G3187<>\"\",INDIRECT(\"'\"&G3187&\"'!\"&H3187),\"\")","v":""}]
[3183,{"$nulls":3},true,{"$f":"IF(G3188<>\"\",INDIRECT(\"'\"&G3188&\"'!\"&H3188),\"\")","v":""}]
[3184,{"$nulls":3},true,{"$f":"IF(G3189<>\"\",INDIRECT(\"'\"&G3189&\"'!\"&H3189),\"\")","v":""}]
[3185,{"$nulls":3},true,{"$f":"IF(G3190<>\"\",INDIRECT(\"'\"&G3190&\"'!\"&H3190),\"\")","v":""}]
[3186,{"$nulls":3},true,{"$f":"IF(G3191<>\"\",INDIRECT(\"'\"&G3191&\"'!\"&H3191),\"\")","v":""}]
[3187,{"$nulls":3},true,{"$f":"IF(G3192<>\"\",INDIRECT(\"'\"&G3192&\"'!\"&H3192),\"\")","v":""}]
[3188,{"$nulls":3},true,{"$f":"IF(G3193<>\"\",INDIRECT(\"'\"&G3193&\"'!\"&H3193),\"\")","v":""}]
[3189,{"$nulls":3},true,{"$f":"IF(G3194<>\"\",INDIRECT(\"'\"&G3194&\"'!\"&H3194),\"\")","v":""}]
[3190,{"$f":"'BudgetSum 2-4'!F45","v":0},3190,null,true,{"$f":"IF(G3195<>\"\",INDIRECT(\"'\"&G3195&\"'!\"&H3195),\"\")","v":0},"BudgetSum 2-4","F45"]
[3191,{"$f":"'BudgetSum 2-4'!F46","v":0},3191,null,true,{"$f":"IF(G3196<>\"\",INDIRECT(\"'\"&G3196&\"'!\"&H3196),\"\")","v":0},"BudgetSum 2-4","F46"]
[3192,{"$f":"'BudgetSum 2-4'!F78","v":0},3192,null,true,{"$f":"IF(G3197<>\"\",INDIRECT(\"'\"&G3197&\"'!\"&H3197),\"\")","v":0},"BudgetSum 2-4","F78"]
[3193,{"$f":"'BudgetSum 2-4'!F79","v":0},3193,null,true,{"$f":"IF(G3198<>\"\",INDIRECT(\"'\"&G3198&\"'!\"&H3198),\"\")","v":0},"BudgetSum 2-4","F79"]
[3194,{"$f":"'BudgetSum 2-4'!F80","v":0},3194,null,true,{"$f":"IF(G3199<>\"\",INDIRECT(\"'\"&G3199&\"'!\"&H3199),\"\")","v":0},"BudgetSum 2-4","F80"]
[3195,{"$nulls":3},true,{"$f":"IF(G3200<>\"\",INDIRECT(\"'\"&G3200&\"'!\"&H3200),\"\")","v":""}]
[3196,{"$f":"'BudgetSum 2-4'!G45","v":0},3196,null,true,{"$f":"IF(G3201<>\"\",INDIRECT(\"'\"&G3201&\"'!\"&H3201),\"\")","v":0},"BudgetSum 2-4","G45"]
[3197,{"$f":"'BudgetSum 2-4'!G46","v":0},3197,null,{"$f":"F3202=B3202","v":true},{"$f":"IF(G3202<>\"\",INDIRECT(\"'\"&G3202&\"'!\"&H3202),\"\")","v":0},"BudgetSum 2-4","G46"]
[3198,{"$f":"'BudgetSum 2-4'!G53","v":0},3198,null,true,{"$f":"IF(G3203<>\"\",INDIRECT(\"'\"&G3203&\"'!\"&H3203),\"\")","v":0},"BudgetSum 2-4","G53"]
[3199,{"$f":"'BudgetSum 2-4'!G79","v":0},3199,null,true,{"$f":"IF(G3204<>\"\",INDIRECT(\"'\"&G3204&\"'!\"&H3204),\"\")","v":0},"BudgetSum 2-4","G79"]
[3200,{"$f":"'BudgetSum 2-4'!G80","v":0},3200,null,true,{"$f":"IF(G3205<>\"\",INDIRECT(\"'\"&G3205&\"'!\"&H3205),\"\")","v":0},"BudgetSum 2-4","G80"]
[3201,{"$nulls":3},true,{"$f":"IF(G3206<>\"\",INDIRECT(\"'\"&G3206&\"'!\"&H3206),\"\")","v":""}]
[3202,{"$nulls":3},true,{"$f":"IF(G3207<>\"\",INDIRECT(\"'\"&G3207&\"'!\"&H3207),\"\")","v":""}]
[3203,{"$nulls":3},true,{"$f":"IF(G3208<>\"\",INDIRECT(\"'\"&G3208&\"'!\"&H3208),\"\")","v":""}]
[3204,{"$nulls":3},true,{"$f":"IF(G3209<>\"\",INDIRECT(\"'\"&G3209&\"'!\"&H3209),\"\")","v":""}]
[3205,{"$nulls":3},true,{"$f":"IF(G3210<>\"\",INDIRECT(\"'\"&G3210&\"'!\"&H3210),\"\")","v":""}]
[3206,{"$nulls":3},true,{"$f":"IF(G3211<>\"\",INDIRECT(\"'\"&G3211&\"'!\"&H3211),\"\")","v":""}]
[3207,{"$nulls":3},true,{"$f":"IF(G3212<>\"\",INDIRECT(\"'\"&G3212&\"'!\"&H3212),\"\")","v":""}]
[3208,{"$nulls":3},true,{"$f":"IF(G3213<>\"\",INDIRECT(\"'\"&G3213&\"'!\"&H3213),\"\")","v":""}]
[3209,{"$nulls":3},true,{"$f":"IF(G3214<>\"\",INDIRECT(\"'\"&G3214&\"'!\"&H3214),\"\")","v":""}]
[3210,{"$nulls":3},true,{"$f":"IF(G3215<>\"\",INDIRECT(\"'\"&G3215&\"'!\"&H3215),\"\")","v":""}]
[3211,{"$nulls":3},true,{"$f":"IF(G3216<>\"\",INDIRECT(\"'\"&G3216&\"'!\"&H3216),\"\")","v":""}]
[3212,{"$f":"'BudgetSum 2-4'!E45","v":0},{"$f":"A3217-B3217","v":3212},null,true,{"$f":"IF(G3217<>\"\",INDIRECT(\"'\"&G3217&\"'!\"&H3217),\"\")","v":0},"BudgetSum 2-4","E45"]
[3213,{"$f":"'BudgetSum 2-4'!E46","v":0},3213,null,true,{"$f":"IF(G3218<>\"\",INDIRECT(\"'\"&G3218&\"'!\"&H3218),\"\")","v":0},"BudgetSum 2-4","E46"]
[3214,{"$f":"'BudgetSum 2-4'!E78","v":115000},-111786,null,true,{"$f":"IF(G3219<>\"\",INDIRECT(\"'\"&G3219&\"'!\"&H3219),\"\")","v":115000},"BudgetSum 2-4","E78"]
[3215,{"$f":"'BudgetSum 2-4'!E79","v":115000},-111785,null,true,{"$f":"IF(G3220<>\"\",INDIRECT(\"'\"&G3220&\"'!\"&H3220),\"\")","v":115000},"BudgetSum 2-4","E79"]
[3216,{"$f":"'BudgetSum 2-4'!E80","v":-115000},118216,null,true,{"$f":"IF(G3221<>\"\",INDIRECT(\"'\"&G3221&\"'!\"&H3221),\"\")","v":-115000},"BudgetSum 2-4","E80"]
[3217,{"$nulls":3},true,{"$f":"IF(G3222<>\"\",INDIRECT(\"'\"&G3222&\"'!\"&H3222),\"\")","v":""}]
[3218,null,null,"Closed 2008",true,{"$f":"IF(G3223<>\"\",INDIRECT(\"'\"&G3223&\"'!\"&H3223),\"\")","v":""}]
[3219,null,null,"Closed 2008",true,{"$f":"IF(G3224<>\"\",INDIRECT(\"'\"&G3224&\"'!\"&H3224),\"\")","v":""}]
[3220,null,null,"Closed 2008",true,{"$f":"IF(G3225<>\"\",INDIRECT(\"'\"&G3225&\"'!\"&H3225),\"\")","v":""}]
[3221,null,null,"Closed 2008",true,{"$f":"IF(G3226<>\"\",INDIRECT(\"'\"&G3226&\"'!\"&H3226),\"\")","v":""}]
[3222,null,null,"Closed 2008",true,{"$f":"IF(G3227<>\"\",INDIRECT(\"'\"&G3227&\"'!\"&H3227),\"\")","v":""}]
[3223,{"$nulls":3},true,{"$f":"IF(G3228<>\"\",INDIRECT(\"'\"&G3228&\"'!\"&H3228),\"\")","v":""}]
[3224,{"$nulls":3},true,{"$f":"IF(G3229<>\"\",INDIRECT(\"'\"&G3229&\"'!\"&H3229),\"\")","v":""}]
[3225,{"$nulls":3},true,{"$f":"IF(G3230<>\"\",INDIRECT(\"'\"&G3230&\"'!\"&H3230),\"\")","v":""}]
[3226,{"$nulls":3},true,{"$f":"IF(G3231<>\"\",INDIRECT(\"'\"&G3231&\"'!\"&H3231),\"\")","v":""}]
[3227,{"$nulls":3},true,{"$f":"IF(G3232<>\"\",INDIRECT(\"'\"&G3232&\"'!\"&H3232),\"\")","v":""}]
[3228,{"$nulls":3},true,{"$f":"IF(G3233<>\"\",INDIRECT(\"'\"&G3233&\"'!\"&H3233),\"\")","v":""}]
[3229,{"$nulls":3},true,{"$f":"IF(G3234<>\"\",INDIRECT(\"'\"&G3234&\"'!\"&H3234),\"\")","v":""}]
[3230,{"$nulls":3},true,{"$f":"IF(G3235<>\"\",INDIRECT(\"'\"&G3235&\"'!\"&H3235),\"\")","v":""}]
[3231,{"$nulls":3},true,{"$f":"IF(G3236<>\"\",INDIRECT(\"'\"&G3236&\"'!\"&H3236),\"\")","v":""}]
[3232,{"$nulls":3},true,{"$f":"IF(G3237<>\"\",INDIRECT(\"'\"&G3237&\"'!\"&H3237),\"\")","v":""}]
[3233,{"$nulls":3},true,{"$f":"IF(G3238<>\"\",INDIRECT(\"'\"&G3238&\"'!\"&H3238),\"\")","v":""}]
[3234,{"$f":"'BudgetSum 2-4'!H45","v":0},3234,null,true,{"$f":"IF(G3239<>\"\",INDIRECT(\"'\"&G3239&\"'!\"&H3239),\"\")","v":0},"BudgetSum 2-4","H45"]
[3235,{"$f":"'BudgetSum 2-4'!H46","v":0},3235,null,true,{"$f":"IF(G3240<>\"\",INDIRECT(\"'\"&G3240&\"'!\"&H3240),\"\")","v":0},"BudgetSum 2-4","H46"]
[3236,{"$f":"'BudgetSum 2-4'!H78","v":0},3236,null,true,{"$f":"IF(G3241<>\"\",INDIRECT(\"'\"&G3241&\"'!\"&H3241),\"\")","v":0},"BudgetSum 2-4","H78"]
[3237,{"$f":"'BudgetSum 2-4'!H79","v":0},3237,null,true,{"$f":"IF(G3242<>\"\",INDIRECT(\"'\"&G3242&\"'!\"&H3242),\"\")","v":0},"BudgetSum 2-4","H79"]
[3238,{"$f":"'BudgetSum 2-4'!H80","v":0},3238,null,true,{"$f":"IF(G3243<>\"\",INDIRECT(\"'\"&G3243&\"'!\"&H3243),\"\")","v":0},"BudgetSum 2-4","H80"]
[3239,{"$nulls":3},true,{"$f":"IF(G3244<>\"\",INDIRECT(\"'\"&G3244&\"'!\"&H3244),\"\")","v":""}]
[3240,{"$nulls":3},true,{"$f":"IF(G3245<>\"\",INDIRECT(\"'\"&G3245&\"'!\"&H3245),\"\")","v":""}]
[3241,{"$nulls":3},true,{"$f":"IF(G3246<>\"\",INDIRECT(\"'\"&G3246&\"'!\"&H3246),\"\")","v":""}]
[3242,{"$nulls":3},true,{"$f":"IF(G3247<>\"\",INDIRECT(\"'\"&G3247&\"'!\"&H3247),\"\")","v":""}]
[3243,{"$nulls":3},true,{"$f":"IF(G3248<>\"\",INDIRECT(\"'\"&G3248&\"'!\"&H3248),\"\")","v":""}]
[3244,{"$nulls":3},true,{"$f":"IF(G3249<>\"\",INDIRECT(\"'\"&G3249&\"'!\"&H3249),\"\")","v":""}]
[3245,{"$nulls":3},true,{"$f":"IF(G3250<>\"\",INDIRECT(\"'\"&G3250&\"'!\"&H3250),\"\")","v":""}]
[3246,{"$nulls":3},true,{"$f":"IF(G3251<>\"\",INDIRECT(\"'\"&G3251&\"'!\"&H3251),\"\")","v":""}]
[3247,{"$nulls":3},true,{"$f":"IF(G3252<>\"\",INDIRECT(\"'\"&G3252&\"'!\"&H3252),\"\")","v":""}]
[3248,{"$nulls":3},true,{"$f":"IF(G3253<>\"\",INDIRECT(\"'\"&G3253&\"'!\"&H3253),\"\")","v":""}]
[3249,{"$nulls":3},true,{"$f":"IF(G3254<>\"\",INDIRECT(\"'\"&G3254&\"'!\"&H3254),\"\")","v":""}]
[3250,{"$nulls":3},true,{"$f":"IF(G3255<>\"\",INDIRECT(\"'\"&G3255&\"'!\"&H3255),\"\")","v":""}]
[3251,{"$nulls":3},true,{"$f":"IF(G3256<>\"\",INDIRECT(\"'\"&G3256&\"'!\"&H3256),\"\")","v":""}]
[3252,{"$nulls":3},true,{"$f":"IF(G3257<>\"\",INDIRECT(\"'\"&G3257&\"'!\"&H3257),\"\")","v":""}]
[3253,{"$nulls":3},true,{"$f":"IF(G3258<>\"\",INDIRECT(\"'\"&G3258&\"'!\"&H3258),\"\")","v":""}]
[3254,{"$nulls":3},true,{"$f":"IF(G3259<>\"\",INDIRECT(\"'\"&G3259&\"'!\"&H3259),\"\")","v":""}]
[3255,{"$f":"'BudgetSum 2-4'!I45","v":0},3255,null,true,{"$f":"IF(G3260<>\"\",INDIRECT(\"'\"&G3260&\"'!\"&H3260),\"\")","v":0},"BudgetSum 2-4","I45"]
[3256,{"$f":"'BudgetSum 2-4'!I46","v":0},3256,null,true,{"$f":"IF(G3261<>\"\",INDIRECT(\"'\"&G3261&\"'!\"&H3261),\"\")","v":0},"BudgetSum 2-4","I46"]
[3257,{"$f":"'BudgetSum 2-4'!I79","v":0},3257,null,true,{"$f":"IF(G3262<>\"\",INDIRECT(\"'\"&G3262&\"'!\"&H3262),\"\")","v":0},"BudgetSum 2-4","I79"]
[3258,{"$f":"'BudgetSum 2-4'!I80","v":0},3258,null,true,{"$f":"IF(G3263<>\"\",INDIRECT(\"'\"&G3263&\"'!\"&H3263),\"\")","v":0},"BudgetSum 2-4","I80"]
[3259,{"$nulls":3},true,{"$f":"IF(G3264<>\"\",INDIRECT(\"'\"&G3264&\"'!\"&H3264),\"\")","v":""}]
[3260,{"$f":"'BudgetSum 2-4'!I3","v":5004949},-5001689,null,true,{"$f":"IF(G3265<>\"\",INDIRECT(\"'\"&G3265&\"'!\"&H3265),\"\")","v":5004949},"BudgetSum 2-4","I3"]
[3261,{"$nulls":3},{"$f":"F3266=B3266","v":true},{"$f":"IF(G3266<>\"\",INDIRECT(\"'\"&G3266&\"'!\"&H3266),\"\")","v":""}]
[3262,{"$f":"'BudgetSum 2-4'!I81","v":5031949},-5028687,null,true,{"$f":"IF(G3267<>\"\",INDIRECT(\"'\"&G3267&\"'!\"&H3267),\"\")","v":5031949},"BudgetSum 2-4","I81"]
[3263,{"$nulls":3},true,{"$f":"IF(G3268<>\"\",INDIRECT(\"'\"&G3268&\"'!\"&H3268),\"\")","v":""}]
[3264,{"$nulls":3},true,{"$f":"IF(G3269<>\"\",INDIRECT(\"'\"&G3269&\"'!\"&H3269),\"\")","v":""}]
[3265,{"$nulls":3},true,{"$f":"IF(G3270<>\"\",INDIRECT(\"'\"&G3270&\"'!\"&H3270),\"\")","v":""}]
[3266,{"$nulls":3},true,{"$f":"IF(G3271<>\"\",INDIRECT(\"'\"&G3271&\"'!\"&H3271),\"\")","v":""}]
[3267,{"$nulls":3},true,{"$f":"IF(G3272<>\"\",INDIRECT(\"'\"&G3272&\"'!\"&H3272),\"\")","v":""}]
[3268,{"$nulls":3},true,{"$f":"IF(G3273<>\"\",INDIRECT(\"'\"&G3273&\"'!\"&H3273),\"\")","v":""}]
[3269,{"$nulls":3},true,{"$f":"IF(G3274<>\"\",INDIRECT(\"'\"&G3274&\"'!\"&H3274),\"\")","v":""}]
[3270,{"$nulls":3},true,{"$f":"IF(G3275<>\"\",INDIRECT(\"'\"&G3275&\"'!\"&H3275),\"\")","v":""}]
[3271,{"$nulls":3},true,{"$f":"IF(G3276<>\"\",INDIRECT(\"'\"&G3276&\"'!\"&H3276),\"\")","v":""}]
[3272,{"$nulls":3},true,{"$f":"IF(G3277<>\"\",INDIRECT(\"'\"&G3277&\"'!\"&H3277),\"\")","v":""}]
[3273,{"$nulls":3},true,{"$f":"IF(G3278<>\"\",INDIRECT(\"'\"&G3278&\"'!\"&H3278),\"\")","v":""}]
[3274,{"$nulls":3},true,{"$f":"IF(G3279<>\"\",INDIRECT(\"'\"&G3279&\"'!\"&H3279),\"\")","v":""}]
[3275,{"$nulls":3},true,{"$f":"IF(G3280<>\"\",INDIRECT(\"'\"&G3280&\"'!\"&H3280),\"\")","v":""}]
[3276,{"$nulls":3},true,{"$f":"IF(G3281<>\"\",INDIRECT(\"'\"&G3281&\"'!\"&H3281),\"\")","v":""}]
[3277,{"$nulls":3},true,{"$f":"IF(G3282<>\"\",INDIRECT(\"'\"&G3282&\"'!\"&H3282),\"\")","v":""}]
[3278,{"$nulls":3},true,{"$f":"IF(G3283<>\"\",INDIRECT(\"'\"&G3283&\"'!\"&H3283),\"\")","v":""}]
[3279,{"$nulls":3},true,{"$f":"IF(G3284<>\"\",INDIRECT(\"'\"&G3284&\"'!\"&H3284),\"\")","v":""}]
[3280,{"$nulls":3},true,{"$f":"IF(G3285<>\"\",INDIRECT(\"'\"&G3285&\"'!\"&H3285),\"\")","v":""}]
[3281,{"$nulls":3},true,{"$f":"IF(G3286<>\"\",INDIRECT(\"'\"&G3286&\"'!\"&H3286),\"\")","v":""}]
[3282,{"$nulls":3},true,{"$f":"IF(G3287<>\"\",INDIRECT(\"'\"&G3287&\"'!\"&H3287),\"\")","v":""}]
[3283,{"$nulls":3},true,{"$f":"IF(G3288<>\"\",INDIRECT(\"'\"&G3288&\"'!\"&H3288),\"\")","v":""}]
[3284,{"$nulls":3},true,{"$f":"IF(G3289<>\"\",INDIRECT(\"'\"&G3289&\"'!\"&H3289),\"\")","v":""}]
[3285,{"$nulls":3},true,{"$f":"IF(G3290<>\"\",INDIRECT(\"'\"&G3290&\"'!\"&H3290),\"\")","v":""}]
[3286,{"$nulls":3},true,{"$f":"IF(G3291<>\"\",INDIRECT(\"'\"&G3291&\"'!\"&H3291),\"\")","v":""}]
[3287,{"$nulls":3},true,{"$f":"IF(G3292<>\"\",INDIRECT(\"'\"&G3292&\"'!\"&H3292),\"\")","v":""}]
[3288,{"$nulls":3},true,{"$f":"IF(G3293<>\"\",INDIRECT(\"'\"&G3293&\"'!\"&H3293),\"\")","v":""}]
[3289,{"$nulls":3},true,{"$f":"IF(G3294<>\"\",INDIRECT(\"'\"&G3294&\"'!\"&H3294),\"\")","v":""}]
[3290,{"$nulls":3},true,{"$f":"IF(G3295<>\"\",INDIRECT(\"'\"&G3295&\"'!\"&H3295),\"\")","v":""}]
[3291,{"$nulls":3},true,{"$f":"IF(G3296<>\"\",INDIRECT(\"'\"&G3296&\"'!\"&H3296),\"\")","v":""}]
[3292,{"$nulls":3},true,{"$f":"IF(G3297<>\"\",INDIRECT(\"'\"&G3297&\"'!\"&H3297),\"\")","v":""}]
[3293,{"$nulls":3},true,{"$f":"IF(G3298<>\"\",INDIRECT(\"'\"&G3298&\"'!\"&H3298),\"\")","v":""}]
[3294,{"$nulls":3},true,{"$f":"IF(G3299<>\"\",INDIRECT(\"'\"&G3299&\"'!\"&H3299),\"\")","v":""}]
[3295,{"$nulls":3},true,{"$f":"IF(G3300<>\"\",INDIRECT(\"'\"&G3300&\"'!\"&H3300),\"\")","v":""}]
[3296,{"$nulls":3},true,{"$f":"IF(G3301<>\"\",INDIRECT(\"'\"&G3301&\"'!\"&H3301),\"\")","v":""}]
[3297,{"$nulls":3},true,{"$f":"IF(G3302<>\"\",INDIRECT(\"'\"&G3302&\"'!\"&H3302),\"\")","v":""}]
[3298,{"$nulls":3},true,{"$f":"IF(G3303<>\"\",INDIRECT(\"'\"&G3303&\"'!\"&H3303),\"\")","v":""}]
[3299,{"$nulls":3},true,{"$f":"IF(G3304<>\"\",INDIRECT(\"'\"&G3304&\"'!\"&H3304),\"\")","v":""}]
[3300,{"$nulls":3},true,{"$f":"IF(G3305<>\"\",INDIRECT(\"'\"&G3305&\"'!\"&H3305),\"\")","v":""}]
[3301,{"$nulls":3},true,{"$f":"IF(G3306<>\"\",INDIRECT(\"'\"&G3306&\"'!\"&H3306),\"\")","v":""}]
[3302,{"$nulls":3},true,{"$f":"IF(G3307<>\"\",INDIRECT(\"'\"&G3307&\"'!\"&H3307),\"\")","v":""}]
[3303,{"$nulls":3},true,{"$f":"IF(G3308<>\"\",INDIRECT(\"'\"&G3308&\"'!\"&H3308),\"\")","v":""}]
[3304,{"$nulls":3},true,{"$f":"IF(G3309<>\"\",INDIRECT(\"'\"&G3309&\"'!\"&H3309),\"\")","v":""}]
[3305,{"$f":"'EstExp 12-20'!C8","v":1000000},{"$f":"A3310-B3310","v":-996695},null,true,{"$f":"IF(G3310<>\"\",INDIRECT(\"'\"&G3310&\"'!\"&H3310),\"\")","v":1000000},"EstExp 12-20","C8"]
[3306,{"$f":"'EstExp 12-20'!C19","v":0},3306,null,true,{"$f":"IF(G3311<>\"\",INDIRECT(\"'\"&G3311&\"'!\"&H3311),\"\")","v":0},"EstExp 12-20","C19"]
[3307,{"$f":"'EstExp 12-20'!D8","v":176500},-173193,null,true,{"$f":"IF(G3312<>\"\",INDIRECT(\"'\"&G3312&\"'!\"&H3312),\"\")","v":176500},"EstExp 12-20","D8"]
[3308,{"$f":"'EstExp 12-20'!D19","v":0},3308,null,true,{"$f":"IF(G3313<>\"\",INDIRECT(\"'\"&G3313&\"'!\"&H3313),\"\")","v":0},"EstExp 12-20","D19"]
[3309,{"$f":"'EstExp 12-20'!E8","v":448000},-444691,null,true,{"$f":"IF(G3314<>\"\",INDIRECT(\"'\"&G3314&\"'!\"&H3314),\"\")","v":448000},"EstExp 12-20","E8"]
[3310,{"$f":"'EstExp 12-20'!E19","v":0},3310,null,true,{"$f":"IF(G3315<>\"\",INDIRECT(\"'\"&G3315&\"'!\"&H3315),\"\")","v":0},"EstExp 12-20","E19"]
[3311,{"$f":"'EstExp 12-20'!F8","v":11000},-7689,null,true,{"$f":"IF(G3316<>\"\",INDIRECT(\"'\"&G3316&\"'!\"&H3316),\"\")","v":11000},"EstExp 12-20","F8"]
[3312,{"$f":"'EstExp 12-20'!F19","v":0},3312,null,true,{"$f":"IF(G3317<>\"\",INDIRECT(\"'\"&G3317&\"'!\"&H3317),\"\")","v":0},"EstExp 12-20","F19"]
[3313,{"$f":"'EstExp 12-20'!G8","v":3000},313,null,true,{"$f":"IF(G3318<>\"\",INDIRECT(\"'\"&G3318&\"'!\"&H3318),\"\")","v":3000},"EstExp 12-20","G8"]
[3314,{"$f":"'EstExp 12-20'!G19","v":0},3314,null,true,{"$f":"IF(G3319<>\"\",INDIRECT(\"'\"&G3319&\"'!\"&H3319),\"\")","v":0},"EstExp 12-20","G19"]
[3315,{"$f":"'EstExp 12-20'!H8","v":0},3315,null,true,{"$f":"IF(G3320<>\"\",INDIRECT(\"'\"&G3320&\"'!\"&H3320),\"\")","v":0},"EstExp 12-20","H8"]
[3316,{"$f":"'EstExp 12-20'!H19","v":0},3316,null,true,{"$f":"IF(G3321<>\"\",INDIRECT(\"'\"&G3321&\"'!\"&H3321),\"\")","v":0},"EstExp 12-20","H19"]
[3317,null,null,"Closed 2008",true,{"$f":"IF(G3322<>\"\",INDIRECT(\"'\"&G3322&\"'!\"&H3322),\"\")","v":""}]
[3318,null,null,"Closed 2008",true,{"$f":"IF(G3323<>\"\",INDIRECT(\"'\"&G3323&\"'!\"&H3323),\"\")","v":""}]
[3319,{"$f":"'EstExp 12-20'!K8","v":1638500},-1635181,null,true,{"$f":"IF(G3324<>\"\",INDIRECT(\"'\"&G3324&\"'!\"&H3324),\"\")","v":1638500},"EstExp 12-20","K8"]
[3320,{"$f":"'EstExp 12-20'!K19","v":0},3320,null,true,{"$f":"IF(G3325<>\"\",INDIRECT(\"'\"&G3325&\"'!\"&H3325),\"\")","v":0},"EstExp 12-20","K19"]
[3321,{"$nulls":3},true,{"$f":"IF(G3326<>\"\",INDIRECT(\"'\"&G3326&\"'!\"&H3326),\"\")","v":""}]
[3322,{"$nulls":3},true,{"$f":"IF(G3327<>\"\",INDIRECT(\"'\"&G3327&\"'!\"&H3327),\"\")","v":""}]
[3323,{"$nulls":3},true,{"$f":"IF(G3328<>\"\",INDIRECT(\"'\"&G3328&\"'!\"&H3328),\"\")","v":""}]
[3324,{"$nulls":3},true,{"$f":"IF(G3329<>\"\",INDIRECT(\"'\"&G3329&\"'!\"&H3329),\"\")","v":""}]
[3325,{"$nulls":3},{"$f":"F3330=B3330","v":true},{"$f":"IF(G3330<>\"\",INDIRECT(\"'\"&G3330&\"'!\"&H3330),\"\")","v":""}]
[3326,{"$f":"'EstExp 12-20'!D219","v":70000},-66674,null,true,{"$f":"IF(G3331<>\"\",INDIRECT(\"'\"&G3331&\"'!\"&H3331),\"\")","v":70000},"EstExp 12-20","D219"]
[3327,{"$f":"'EstExp 12-20'!D221","v":94000},-90673,null,true,{"$f":"IF(G3332<>\"\",INDIRECT(\"'\"&G3332&\"'!\"&H3332),\"\")","v":94000},"EstExp 12-20","D221"]
[3328,{"$f":"'EstExp 12-20'!D232","v":0},3328,null,true,{"$f":"IF(G3333<>\"\",INDIRECT(\"'\"&G3333&\"'!\"&H3333),\"\")","v":0},"EstExp 12-20","D232"]
[3329,{"$f":"'EstExp 12-20'!K219","v":70000},-66671,null,true,{"$f":"IF(G3334<>\"\",INDIRECT(\"'\"&G3334&\"'!\"&H3334),\"\")","v":70000},"EstExp 12-20","K219"]
[3330,{"$f":"'EstExp 12-20'!K221","v":94000},-90670,null,true,{"$f":"IF(G3335<>\"\",INDIRECT(\"'\"&G3335&\"'!\"&H3335),\"\")","v":94000},"EstExp 12-20","K221"]
[3331,{"$f":"'EstExp 12-20'!K232","v":0},{"$f":"A3336-B3336","v":3331},null,true,{"$f":"IF(G3336<>\"\",INDIRECT(\"'\"&G3336&\"'!\"&H3336),\"\")","v":0},"EstExp 12-20","K232"]
[3332,{"$nulls":3},true,{"$f":"IF(G3337<>\"\",INDIRECT(\"'\"&G3337&\"'!\"&H3337),\"\")","v":""}]
[3333,{"$nulls":3},true,{"$f":"IF(G3338<>\"\",INDIRECT(\"'\"&G3338&\"'!\"&H3338),\"\")","v":""}]
[3334,{"$nulls":3},true,{"$f":"IF(G3339<>\"\",INDIRECT(\"'\"&G3339&\"'!\"&H3339),\"\")","v":""}]
[3335,{"$nulls":3},true,{"$f":"IF(G3340<>\"\",INDIRECT(\"'\"&G3340&\"'!\"&H3340),\"\")","v":""}]
[3336,{"$nulls":3},true,{"$f":"IF(G3341<>\"\",INDIRECT(\"'\"&G3341&\"'!\"&H3341),\"\")","v":""}]
[3337,{"$nulls":3},true,{"$f":"IF(G3342<>\"\",INDIRECT(\"'\"&G3342&\"'!\"&H3342),\"\")","v":""}]
[3338,{"$nulls":3},true,{"$f":"IF(G3343<>\"\",INDIRECT(\"'\"&G3343&\"'!\"&H3343),\"\")","v":""}]
[3339,{"$nulls":3},true,{"$f":"IF(G3344<>\"\",INDIRECT(\"'\"&G3344&\"'!\"&H3344),\"\")","v":""}]
[3340,{"$nulls":3},true,{"$f":"IF(G3345<>\"\",INDIRECT(\"'\"&G3345&\"'!\"&H3345),\"\")","v":""}]
[3341,{"$nulls":3},true,{"$f":"IF(G3346<>\"\",INDIRECT(\"'\"&G3346&\"'!\"&H3346),\"\")","v":""}]
[3342,{"$nulls":3},true,{"$f":"IF(G3347<>\"\",INDIRECT(\"'\"&G3347&\"'!\"&H3347),\"\")","v":""}]
[3343,{"$nulls":3},true,{"$f":"IF(G3348<>\"\",INDIRECT(\"'\"&G3348&\"'!\"&H3348),\"\")","v":""}]
[3344,{"$f":"'BudgetSum 2-4'!C6","v":0},3344,null,true,{"$f":"IF(G3349<>\"\",INDIRECT(\"'\"&G3349&\"'!\"&H3349),\"\")","v":0},"BudgetSum 2-4","C6"]
[3345,{"$f":"'BudgetSum 2-4'!D6","v":0},3345,null,true,{"$f":"IF(G3350<>\"\",INDIRECT(\"'\"&G3350&\"'!\"&H3350),\"\")","v":0},"BudgetSum 2-4","D6"]
[3346,{"$nulls":3},true,{"$f":"IF(G3351<>\"\",INDIRECT(\"'\"&G3351&\"'!\"&H3351),\"\")","v":""}]
[3347,{"$f":"'BudgetSum 2-4'!F6","v":0},3347,null,true,{"$f":"IF(G3352<>\"\",INDIRECT(\"'\"&G3352&\"'!\"&H3352),\"\")","v":0},"BudgetSum 2-4","F6"]
[3348,{"$f":"'BudgetSum 2-4'!G6","v":0},3348,null,true,{"$f":"IF(G3353<>\"\",INDIRECT(\"'\"&G3353&\"'!\"&H3353),\"\")","v":0},"BudgetSum 2-4","G6"]
[3349,{"$nulls":3},true,{"$f":"IF(G3354<>\"\",INDIRECT(\"'\"&G3354&\"'!\"&H3354),\"\")","v":""}]
[3350,{"$f":"'CashSum 5'!C3","v":{"v":7376498,"d":"7,376,498 "}},-7373148,null,true,{"$f":"IF(G3355<>\"\",INDIRECT(\"'\"&G3355&\"'!\"&H3355),\"\")","v":7376498},"CashSum 5","C3"]
[3351,{"$nulls":3},true,{"$f":"IF(G3356<>\"\",INDIRECT(\"'\"&G3356&\"'!\"&H3356),\"\")","v":""}]
[3352,{"$nulls":3},true,{"$f":"IF(G3357<>\"\",INDIRECT(\"'\"&G3357&\"'!\"&H3357),\"\")","v":""}]
[3353,{"$f":"'CashSum 5'!D3","v":{"v":0,"d":"0 "}},3353,null,true,{"$f":"IF(G3358<>\"\",INDIRECT(\"'\"&G3358&\"'!\"&H3358),\"\")","v":0},"CashSum 5","D3"]
[3354,{"$nulls":3},true,{"$f":"IF(G3359<>\"\",INDIRECT(\"'\"&G3359&\"'!\"&H3359),\"\")","v":""}]
[3355,{"$nulls":3},true,{"$f":"IF(G3360<>\"\",INDIRECT(\"'\"&G3360&\"'!\"&H3360),\"\")","v":""}]
[3356,{"$f":"'CashSum 5'!E3","v":{"v":3057750,"d":"3,057,750 "}},-3054394,null,true,{"$f":"IF(G3361<>\"\",INDIRECT(\"'\"&G3361&\"'!\"&H3361),\"\")","v":3057750},"CashSum 5","E3"]
[3357,{"$nulls":3},true,{"$f":"IF(G3362<>\"\",INDIRECT(\"'\"&G3362&\"'!\"&H3362),\"\")","v":""}]
[3358,{"$f":"'CashSum 5'!F3","v":{"v":969,"d":"969 "}},2389,null,true,{"$f":"IF(G3363<>\"\",INDIRECT(\"'\"&G3363&\"'!\"&H3363),\"\")","v":969},"CashSum 5","F3"]
[3359,{"$nulls":3},true,{"$f":"IF(G3364<>\"\",INDIRECT(\"'\"&G3364&\"'!\"&H3364),\"\")","v":""}]
[3360,{"$nulls":3},true,{"$f":"IF(G3365<>\"\",INDIRECT(\"'\"&G3365&\"'!\"&H3365),\"\")","v":""}]
[3361,{"$f":"'CashSum 5'!G3","v":{"v":12048,"d":"12,048 "}},-8687,null,true,{"$f":"IF(G3366<>\"\",INDIRECT(\"'\"&G3366&\"'!\"&H3366),\"\")","v":12048},"CashSum 5","G3"]
[3362,{"$nulls":3},true,{"$f":"IF(G3367<>\"\",INDIRECT(\"'\"&G3367&\"'!\"&H3367),\"\")","v":""}]
[3363,{"$nulls":3},true,{"$f":"IF(G3368<>\"\",INDIRECT(\"'\"&G3368&\"'!\"&H3368),\"\")","v":""}]
[3364,{"$f":"'CashSum 5'!H3","v":{"v":0,"d":"0 "}},3364,null,true,{"$f":"IF(G3369<>\"\",INDIRECT(\"'\"&G3369&\"'!\"&H3369),\"\")","v":0},"CashSum 5","H3"]
[3365,{"$nulls":3},true,{"$f":"IF(G3370<>\"\",INDIRECT(\"'\"&G3370&\"'!\"&H3370),\"\")","v":""}]
[3366,{"$f":"'CashSum 5'!I3","v":{"v":5004949,"d":"5,004,949 "}},-5001583,null,true,{"$f":"IF(G3371<>\"\",INDIRECT(\"'\"&G3371&\"'!\"&H3371),\"\")","v":5004949},"CashSum 5","I3"]
[3367,{"$nulls":3},true,{"$f":"IF(G3372<>\"\",INDIRECT(\"'\"&G3372&\"'!\"&H3372),\"\")","v":""}]
[3368,{"$nulls":3},true,{"$f":"IF(G3373<>\"\",INDIRECT(\"'\"&G3373&\"'!\"&H3373),\"\")","v":""}]
[3369,null,null,"Closed 2008",true,{"$f":"IF(G3374<>\"\",INDIRECT(\"'\"&G3374&\"'!\"&H3374),\"\")","v":""}]
[3370,{"$nulls":3},true,{"$f":"IF(G3375<>\"\",INDIRECT(\"'\"&G3375&\"'!\"&H3375),\"\")","v":""}]
[3371,{"$nulls":3},true,{"$f":"IF(G3376<>\"\",INDIRECT(\"'\"&G3376&\"'!\"&H3376),\"\")","v":""}]
[3372,{"$nulls":3},true,{"$f":"IF(G3377<>\"\",INDIRECT(\"'\"&G3377&\"'!\"&H3377),\"\")","v":""}]
[3373,{"$nulls":3},true,{"$f":"IF(G3378<>\"\",INDIRECT(\"'\"&G3378&\"'!\"&H3378),\"\")","v":""}]
[3374,{"$nulls":3},true,{"$f":"IF(G3379<>\"\",INDIRECT(\"'\"&G3379&\"'!\"&H3379),\"\")","v":""}]
[3375,{"$nulls":3},true,{"$f":"IF(G3380<>\"\",INDIRECT(\"'\"&G3380&\"'!\"&H3380),\"\")","v":""}]
[3376,{"$nulls":3},true,{"$f":"IF(G3381<>\"\",INDIRECT(\"'\"&G3381&\"'!\"&H3381),\"\")","v":""}]
[3377,{"$nulls":3},true,{"$f":"IF(G3382<>\"\",INDIRECT(\"'\"&G3382&\"'!\"&H3382),\"\")","v":""}]
[3378,{"$nulls":3},true,{"$f":"IF(G3383<>\"\",INDIRECT(\"'\"&G3383&\"'!\"&H3383),\"\")","v":""}]
[3379,{"$nulls":3},true,{"$f":"IF(G3384<>\"\",INDIRECT(\"'\"&G3384&\"'!\"&H3384),\"\")","v":""}]
[3380,{"$nulls":3},true,{"$f":"IF(G3385<>\"\",INDIRECT(\"'\"&G3385&\"'!\"&H3385),\"\")","v":""}]
[3381,null,null,"Closed 2008",true,{"$f":"IF(G3386<>\"\",INDIRECT(\"'\"&G3386&\"'!\"&H3386),\"\")","v":""}]
[3382,null,null,"Closed 2008",true,{"$f":"IF(G3387<>\"\",INDIRECT(\"'\"&G3387&\"'!\"&H3387),\"\")","v":""}]
[3383,null,null,"Closed 2008",true,{"$f":"IF(G3388<>\"\",INDIRECT(\"'\"&G3388&\"'!\"&H3388),\"\")","v":""}]
[3384,null,null,"Closed 2008",true,{"$f":"IF(G3389<>\"\",INDIRECT(\"'\"&G3389&\"'!\"&H3389),\"\")","v":""}]
[3385,{"$nulls":3},true,{"$f":"IF(G3390<>\"\",INDIRECT(\"'\"&G3390&\"'!\"&H3390),\"\")","v":""}]
[3386,{"$nulls":3},true,{"$f":"IF(G3391<>\"\",INDIRECT(\"'\"&G3391&\"'!\"&H3391),\"\")","v":""}]
[3387,{"$nulls":3},true,{"$f":"IF(G3392<>\"\",INDIRECT(\"'\"&G3392&\"'!\"&H3392),\"\")","v":""}]
[3388,{"$nulls":3},true,{"$f":"IF(G3393<>\"\",INDIRECT(\"'\"&G3393&\"'!\"&H3393),\"\")","v":""}]
[3389,{"$nulls":3},{"$f":"F3394=B3394","v":true},{"$f":"IF(G3394<>\"\",INDIRECT(\"'\"&G3394&\"'!\"&H3394),\"\")","v":""}]
[3390,{"$nulls":3},true,{"$f":"IF(G3395<>\"\",INDIRECT(\"'\"&G3395&\"'!\"&H3395),\"\")","v":""}]
[3391,{"$nulls":3},true,{"$f":"IF(G3396<>\"\",INDIRECT(\"'\"&G3396&\"'!\"&H3396),\"\")","v":""}]
[3392,{"$nulls":3},true,{"$f":"IF(G3397<>\"\",INDIRECT(\"'\"&G3397&\"'!\"&H3397),\"\")","v":""}]
[3393,{"$nulls":3},true,{"$f":"IF(G3398<>\"\",INDIRECT(\"'\"&G3398&\"'!\"&H3398),\"\")","v":""}]
[3394,{"$nulls":3},true,{"$f":"IF(G3399<>\"\",INDIRECT(\"'\"&G3399&\"'!\"&H3399),\"\")","v":""}]
[3395,{"$nulls":3},true,{"$f":"IF(G3400<>\"\",INDIRECT(\"'\"&G3400&\"'!\"&H3400),\"\")","v":""}]
[3396,{"$nulls":3},true,{"$f":"IF(G3401<>\"\",INDIRECT(\"'\"&G3401&\"'!\"&H3401),\"\")","v":""}]
[3397,{"$nulls":3},true,{"$f":"IF(G3402<>\"\",INDIRECT(\"'\"&G3402&\"'!\"&H3402),\"\")","v":""}]
[3398,{"$nulls":3},true,{"$f":"IF(G3403<>\"\",INDIRECT(\"'\"&G3403&\"'!\"&H3403),\"\")","v":""}]
[3399,{"$nulls":3},true,{"$f":"IF(G3404<>\"\",INDIRECT(\"'\"&G3404&\"'!\"&H3404),\"\")","v":""}]
[3400,{"$nulls":3},true,{"$f":"IF(G3405<>\"\",INDIRECT(\"'\"&G3405&\"'!\"&H3405),\"\")","v":""}]
[3401,{"$nulls":3},true,{"$f":"IF(G3406<>\"\",INDIRECT(\"'\"&G3406&\"'!\"&H3406),\"\")","v":""}]
[3402,{"$nulls":3},true,{"$f":"IF(G3407<>\"\",INDIRECT(\"'\"&G3407&\"'!\"&H3407),\"\")","v":""}]
[3403,{"$nulls":3},true,{"$f":"IF(G3408<>\"\",INDIRECT(\"'\"&G3408&\"'!\"&H3408),\"\")","v":""}]
[3404,{"$nulls":3},true,{"$f":"IF(G3409<>\"\",INDIRECT(\"'\"&G3409&\"'!\"&H3409),\"\")","v":""}]
[3405,{"$nulls":3},true,{"$f":"IF(G3410<>\"\",INDIRECT(\"'\"&G3410&\"'!\"&H3410),\"\")","v":""}]
[3406,{"$nulls":3},true,{"$f":"IF(G3411<>\"\",INDIRECT(\"'\"&G3411&\"'!\"&H3411),\"\")","v":""}]
[3407,{"$nulls":3},true,{"$f":"IF(G3412<>\"\",INDIRECT(\"'\"&G3412&\"'!\"&H3412),\"\")","v":""}]
[3408,{"$nulls":3},true,{"$f":"IF(G3413<>\"\",INDIRECT(\"'\"&G3413&\"'!\"&H3413),\"\")","v":""}]
[3409,{"$nulls":3},true,{"$f":"IF(G3414<>\"\",INDIRECT(\"'\"&G3414&\"'!\"&H3414),\"\")","v":""}]
[3410,{"$nulls":3},true,{"$f":"IF(G3415<>\"\",INDIRECT(\"'\"&G3415&\"'!\"&H3415),\"\")","v":""}]
[3411,{"$nulls":3},true,{"$f":"IF(G3416<>\"\",INDIRECT(\"'\"&G3416&\"'!\"&H3416),\"\")","v":""}]
[3412,{"$nulls":3},true,{"$f":"IF(G3417<>\"\",INDIRECT(\"'\"&G3417&\"'!\"&H3417),\"\")","v":""}]
[3413,{"$nulls":3},true,{"$f":"IF(G3418<>\"\",INDIRECT(\"'\"&G3418&\"'!\"&H3418),\"\")","v":""}]
[3414,{"$nulls":3},true,{"$f":"IF(G3419<>\"\",INDIRECT(\"'\"&G3419&\"'!\"&H3419),\"\")","v":""}]
[3415,{"$nulls":3},true,{"$f":"IF(G3420<>\"\",INDIRECT(\"'\"&G3420&\"'!\"&H3420),\"\")","v":""}]
[3416,{"$nulls":3},true,{"$f":"IF(G3421<>\"\",INDIRECT(\"'\"&G3421&\"'!\"&H3421),\"\")","v":""}]
[3417,{"$nulls":3},true,{"$f":"IF(G3422<>\"\",INDIRECT(\"'\"&G3422&\"'!\"&H3422),\"\")","v":""}]
[3418,{"$nulls":3},true,{"$f":"IF(G3423<>\"\",INDIRECT(\"'\"&G3423&\"'!\"&H3423),\"\")","v":""}]
[3419,{"$nulls":3},true,{"$f":"IF(G3424<>\"\",INDIRECT(\"'\"&G3424&\"'!\"&H3424),\"\")","v":""}]
[3420,{"$nulls":3},true,{"$f":"IF(G3425<>\"\",INDIRECT(\"'\"&G3425&\"'!\"&H3425),\"\")","v":""}]
[3421,{"$f":"'EstExp 12-20'!C129","v":0},{"$f":"A3426-B3426","v":3421},null,true,{"$f":"IF(G3426<>\"\",INDIRECT(\"'\"&G3426&\"'!\"&H3426),\"\")","v":0},"EstExp 12-20","C129"]
[3422,{"$f":"'EstExp 12-20'!D129","v":0},3422,null,true,{"$f":"IF(G3427<>\"\",INDIRECT(\"'\"&G3427&\"'!\"&H3427),\"\")","v":0},"EstExp 12-20","D129"]
[3423,{"$f":"'EstExp 12-20'!E129","v":0},3423,null,true,{"$f":"IF(G3428<>\"\",INDIRECT(\"'\"&G3428&\"'!\"&H3428),\"\")","v":0},"EstExp 12-20","E129"]
[3424,{"$f":"'EstExp 12-20'!F129","v":0},3424,null,true,{"$f":"IF(G3429<>\"\",INDIRECT(\"'\"&G3429&\"'!\"&H3429),\"\")","v":0},"EstExp 12-20","F129"]
[3425,{"$f":"'EstExp 12-20'!G129","v":0},3425,null,true,{"$f":"IF(G3430<>\"\",INDIRECT(\"'\"&G3430&\"'!\"&H3430),\"\")","v":0},"EstExp 12-20","G129"]
[3426,{"$f":"'EstExp 12-20'!H129","v":0},3426,null,true,{"$f":"IF(G3431<>\"\",INDIRECT(\"'\"&G3431&\"'!\"&H3431),\"\")","v":0},"EstExp 12-20","H129"]
[3427,{"$f":"'EstExp 12-20'!K129","v":0},3427,null,true,{"$f":"IF(G3432<>\"\",INDIRECT(\"'\"&G3432&\"'!\"&H3432),\"\")","v":0},"EstExp 12-20","K129"]
[3428,{"$nulls":3},true,{"$f":"IF(G3433<>\"\",INDIRECT(\"'\"&G3433&\"'!\"&H3433),\"\")","v":""}]
[3429,{"$f":"'BudgetSum 2-4'!E28","v":0},3429,null,true,{"$f":"IF(G3434<>\"\",INDIRECT(\"'\"&G3434&\"'!\"&H3434),\"\")","v":0},"BudgetSum 2-4","E28"]
[3430,{"$nulls":3},true,{"$f":"IF(G3435<>\"\",INDIRECT(\"'\"&G3435&\"'!\"&H3435),\"\")","v":""}]
[3431,{"$f":"'BudgetSum 2-4'!G28","v":0},3431,null,true,{"$f":"IF(G3436<>\"\",INDIRECT(\"'\"&G3436&\"'!\"&H3436),\"\")","v":0},"BudgetSum 2-4","G28"]
[3432,{"$f":"'BudgetSum 2-4'!H28","v":0},3432,null,true,{"$f":"IF(G3437<>\"\",INDIRECT(\"'\"&G3437&\"'!\"&H3437),\"\")","v":0},"BudgetSum 2-4","H28"]
[3433,{"$nulls":3},true,{"$f":"IF(G3438<>\"\",INDIRECT(\"'\"&G3438&\"'!\"&H3438),\"\")","v":""}]
[3434,null,null,"Closed 2008",true,{"$f":"IF(G3439<>\"\",INDIRECT(\"'\"&G3439&\"'!\"&H3439),\"\")","v":""}]
[3435,{"$nulls":3},true,{"$f":"IF(G3440<>\"\",INDIRECT(\"'\"&G3440&\"'!\"&H3440),\"\")","v":""}]
[3436,{"$nulls":3},true,{"$f":"IF(G3441<>\"\",INDIRECT(\"'\"&G3441&\"'!\"&H3441),\"\")","v":""}]
[3437,{"$nulls":3},true,{"$f":"IF(G3442<>\"\",INDIRECT(\"'\"&G3442&\"'!\"&H3442),\"\")","v":""}]
[3438,{"$nulls":3},true,{"$f":"IF(G3443<>\"\",INDIRECT(\"'\"&G3443&\"'!\"&H3443),\"\")","v":""}]
[3439,{"$nulls":3},true,{"$f":"IF(G3444<>\"\",INDIRECT(\"'\"&G3444&\"'!\"&H3444),\"\")","v":""}]
[3440,{"$nulls":3},true,{"$f":"IF(G3445<>\"\",INDIRECT(\"'\"&G3445&\"'!\"&H3445),\"\")","v":""}]
[3441,{"$nulls":3},true,{"$f":"IF(G3446<>\"\",INDIRECT(\"'\"&G3446&\"'!\"&H3446),\"\")","v":""}]
[3442,{"$nulls":3},true,{"$f":"IF(G3447<>\"\",INDIRECT(\"'\"&G3447&\"'!\"&H3447),\"\")","v":""}]
[3443,{"$nulls":3},true,{"$f":"IF(G3448<>\"\",INDIRECT(\"'\"&G3448&\"'!\"&H3448),\"\")","v":""}]
[3444,{"$nulls":3},true,{"$f":"IF(G3449<>\"\",INDIRECT(\"'\"&G3449&\"'!\"&H3449),\"\")","v":""}]
[3445,{"$nulls":3},true,{"$f":"IF(G3450<>\"\",INDIRECT(\"'\"&G3450&\"'!\"&H3450),\"\")","v":""}]
[3446,{"$nulls":3},true,{"$f":"IF(G3451<>\"\",INDIRECT(\"'\"&G3451&\"'!\"&H3451),\"\")","v":""}]
[3447,{"$nulls":3},true,{"$f":"IF(G3452<>\"\",INDIRECT(\"'\"&G3452&\"'!\"&H3452),\"\")","v":""}]
[3448,{"$nulls":3},true,{"$f":"IF(G3453<>\"\",INDIRECT(\"'\"&G3453&\"'!\"&H3453),\"\")","v":""}]
[3449,{"$nulls":3},true,{"$f":"IF(G3454<>\"\",INDIRECT(\"'\"&G3454&\"'!\"&H3454),\"\")","v":""}]
[3450,{"$nulls":3},true,{"$f":"IF(G3455<>\"\",INDIRECT(\"'\"&G3455&\"'!\"&H3455),\"\")","v":""}]
[3451,{"$nulls":3},true,{"$f":"IF(G3456<>\"\",INDIRECT(\"'\"&G3456&\"'!\"&H3456),\"\")","v":""}]
[3452,null,null,"Closed 2008",true,{"$f":"IF(G3457<>\"\",INDIRECT(\"'\"&G3457&\"'!\"&H3457),\"\")","v":""}]
[3453,{"$nulls":3},{"$f":"F3458=B3458","v":true},{"$f":"IF(G3458<>\"\",INDIRECT(\"'\"&G3458&\"'!\"&H3458),\"\")","v":""}]
[3454,{"$nulls":3},true,{"$f":"IF(G3459<>\"\",INDIRECT(\"'\"&G3459&\"'!\"&H3459),\"\")","v":""}]
[3455,{"$nulls":3},true,{"$f":"IF(G3460<>\"\",INDIRECT(\"'\"&G3460&\"'!\"&H3460),\"\")","v":""}]
[3456,{"$nulls":3},true,{"$f":"IF(G3461<>\"\",INDIRECT(\"'\"&G3461&\"'!\"&H3461),\"\")","v":""}]
[3457,{"$nulls":3},true,{"$f":"IF(G3462<>\"\",INDIRECT(\"'\"&G3462&\"'!\"&H3462),\"\")","v":""}]
[3458,{"$nulls":3},true,{"$f":"IF(G3463<>\"\",INDIRECT(\"'\"&G3463&\"'!\"&H3463),\"\")","v":""}]
[3459,{"$nulls":3},true,{"$f":"IF(G3464<>\"\",INDIRECT(\"'\"&G3464&\"'!\"&H3464),\"\")","v":""}]
[3460,{"$nulls":3},true,{"$f":"IF(G3465<>\"\",INDIRECT(\"'\"&G3465&\"'!\"&H3465),\"\")","v":""}]
[3461,{"$nulls":3},true,{"$f":"IF(G3466<>\"\",INDIRECT(\"'\"&G3466&\"'!\"&H3466),\"\")","v":""}]
[3462,{"$nulls":3},true,{"$f":"IF(G3467<>\"\",INDIRECT(\"'\"&G3467&\"'!\"&H3467),\"\")","v":""}]
[3463,{"$nulls":3},true,{"$f":"IF(G3468<>\"\",INDIRECT(\"'\"&G3468&\"'!\"&H3468),\"\")","v":""}]
[3464,{"$nulls":3},true,{"$f":"IF(G3469<>\"\",INDIRECT(\"'\"&G3469&\"'!\"&H3469),\"\")","v":""}]
[3465,{"$nulls":3},true,{"$f":"IF(G3470<>\"\",INDIRECT(\"'\"&G3470&\"'!\"&H3470),\"\")","v":""}]
[3466,{"$nulls":3},true,{"$f":"IF(G3471<>\"\",INDIRECT(\"'\"&G3471&\"'!\"&H3471),\"\")","v":""}]
[3467,{"$nulls":3},true,{"$f":"IF(G3472<>\"\",INDIRECT(\"'\"&G3472&\"'!\"&H3472),\"\")","v":""}]
[3468,{"$nulls":3},true,{"$f":"IF(G3473<>\"\",INDIRECT(\"'\"&G3473&\"'!\"&H3473),\"\")","v":""}]
[3469,{"$f":"'BudgetSum 2-4'!C38","v":0},{"$f":"A3474-B3474","v":3469},null,true,{"$f":"IF(G3474<>\"\",INDIRECT(\"'\"&G3474&\"'!\"&H3474),\"\")","v":0},"BudgetSum 2-4","C38"]
[3470,{"$f":"'BudgetSum 2-4'!D38","v":0},3470,null,true,{"$f":"IF(G3475<>\"\",INDIRECT(\"'\"&G3475&\"'!\"&H3475),\"\")","v":0},"BudgetSum 2-4","D38"]
[3471,{"$f":"'BudgetSum 2-4'!F38","v":0},3471,null,true,{"$f":"IF(G3476<>\"\",INDIRECT(\"'\"&G3476&\"'!\"&H3476),\"\")","v":0},"BudgetSum 2-4","F38"]
[3472,{"$f":"'BudgetSum 2-4'!G38","v":0},3472,null,true,{"$f":"IF(G3477<>\"\",INDIRECT(\"'\"&G3477&\"'!\"&H3477),\"\")","v":0},"BudgetSum 2-4","G38"]
[3473,{"$f":"'BudgetSum 2-4'!H38","v":0},3473,null,true,{"$f":"IF(G3478<>\"\",INDIRECT(\"'\"&G3478&\"'!\"&H3478),\"\")","v":0},"BudgetSum 2-4","H38"]
[3474,{"$nulls":3},true,{"$f":"IF(G3479<>\"\",INDIRECT(\"'\"&G3479&\"'!\"&H3479),\"\")","v":""}]
[3475,null,null,"Closed 2008",true,{"$f":"IF(G3480<>\"\",INDIRECT(\"'\"&G3480&\"'!\"&H3480),\"\")","v":""}]
[3476,{"$nulls":3},true,{"$f":"IF(G3481<>\"\",INDIRECT(\"'\"&G3481&\"'!\"&H3481),\"\")","v":""}]
[3477,{"$nulls":3},true,{"$f":"IF(G3482<>\"\",INDIRECT(\"'\"&G3482&\"'!\"&H3482),\"\")","v":""}]
[3478,{"$nulls":3},true,{"$f":"IF(G3483<>\"\",INDIRECT(\"'\"&G3483&\"'!\"&H3483),\"\")","v":""}]
[3479,{"$nulls":3},true,{"$f":"IF(G3484<>\"\",INDIRECT(\"'\"&G3484&\"'!\"&H3484),\"\")","v":""}]
[3480,{"$nulls":3},true,{"$f":"IF(G3485<>\"\",INDIRECT(\"'\"&G3485&\"'!\"&H3485),\"\")","v":""}]
[3481,{"$nulls":3},true,{"$f":"IF(G3486<>\"\",INDIRECT(\"'\"&G3486&\"'!\"&H3486),\"\")","v":""}]
[3482,{"$nulls":3},true,{"$f":"IF(G3487<>\"\",INDIRECT(\"'\"&G3487&\"'!\"&H3487),\"\")","v":""}]
[3483,{"$nulls":3},true,{"$f":"IF(G3488<>\"\",INDIRECT(\"'\"&G3488&\"'!\"&H3488),\"\")","v":""}]
[3484,{"$nulls":3},true,{"$f":"IF(G3489<>\"\",INDIRECT(\"'\"&G3489&\"'!\"&H3489),\"\")","v":""}]
[3485,{"$f":"'CashSum 5'!K3","v":{"v":0,"d":"0 "}},3485,null,true,{"$f":"IF(G3490<>\"\",INDIRECT(\"'\"&G3490&\"'!\"&H3490),\"\")","v":0},"CashSum 5","K3"]
[3486,{"$nulls":3},true,{"$f":"IF(G3491<>\"\",INDIRECT(\"'\"&G3491&\"'!\"&H3491),\"\")","v":""}]
[3487,{"$nulls":3},true,{"$f":"IF(G3492<>\"\",INDIRECT(\"'\"&G3492&\"'!\"&H3492),\"\")","v":""}]
[3488,{"$nulls":3},true,{"$f":"IF(G3493<>\"\",INDIRECT(\"'\"&G3493&\"'!\"&H3493),\"\")","v":""}]
[3489,{"$nulls":3},true,{"$f":"IF(G3494<>\"\",INDIRECT(\"'\"&G3494&\"'!\"&H3494),\"\")","v":""}]
[3490,{"$nulls":3},true,{"$f":"IF(G3495<>\"\",INDIRECT(\"'\"&G3495&\"'!\"&H3495),\"\")","v":""}]
[3491,{"$nulls":3},true,{"$f":"IF(G3496<>\"\",INDIRECT(\"'\"&G3496&\"'!\"&H3496),\"\")","v":""}]
[3492,{"$nulls":3},true,{"$f":"IF(G3497<>\"\",INDIRECT(\"'\"&G3497&\"'!\"&H3497),\"\")","v":""}]
[3493,null,null,"Closed 2008",true,{"$f":"IF(G3498<>\"\",INDIRECT(\"'\"&G3498&\"'!\"&H3498),\"\")","v":""}]
[3494,{"$nulls":3},true,{"$f":"IF(G3499<>\"\",INDIRECT(\"'\"&G3499&\"'!\"&H3499),\"\")","v":""}]
[3495,null,null,"Closed 2008",true,{"$f":"IF(G3500<>\"\",INDIRECT(\"'\"&G3500&\"'!\"&H3500),\"\")","v":""}]
[3496,{"$nulls":3},true,{"$f":"IF(G3501<>\"\",INDIRECT(\"'\"&G3501&\"'!\"&H3501),\"\")","v":""}]
[3497,{"$nulls":3},true,{"$f":"IF(G3502<>\"\",INDIRECT(\"'\"&G3502&\"'!\"&H3502),\"\")","v":""}]
[3498,{"$nulls":3},true,{"$f":"IF(G3503<>\"\",INDIRECT(\"'\"&G3503&\"'!\"&H3503),\"\")","v":""}]
[3499,{"$nulls":3},true,{"$f":"IF(G3504<>\"\",INDIRECT(\"'\"&G3504&\"'!\"&H3504),\"\")","v":""}]
[3500,{"$nulls":3},true,{"$f":"IF(G3505<>\"\",INDIRECT(\"'\"&G3505&\"'!\"&H3505),\"\")","v":""}]
[3501,{"$nulls":3},true,{"$f":"IF(G3506<>\"\",INDIRECT(\"'\"&G3506&\"'!\"&H3506),\"\")","v":""}]
[3502,{"$nulls":3},true,{"$f":"IF(G3507<>\"\",INDIRECT(\"'\"&G3507&\"'!\"&H3507),\"\")","v":""}]
[3503,{"$nulls":3},true,{"$f":"IF(G3508<>\"\",INDIRECT(\"'\"&G3508&\"'!\"&H3508),\"\")","v":""}]
[3504,{"$nulls":3},true,{"$f":"IF(G3509<>\"\",INDIRECT(\"'\"&G3509&\"'!\"&H3509),\"\")","v":""}]
[3505,{"$nulls":3},true,{"$f":"IF(G3510<>\"\",INDIRECT(\"'\"&G3510&\"'!\"&H3510),\"\")","v":""}]
[3506,{"$nulls":3},true,{"$f":"IF(G3511<>\"\",INDIRECT(\"'\"&G3511&\"'!\"&H3511),\"\")","v":""}]
[3507,{"$nulls":3},true,{"$f":"IF(G3512<>\"\",INDIRECT(\"'\"&G3512&\"'!\"&H3512),\"\")","v":""}]
[3508,{"$f":"'BudgetSum 2-4'!K5","v":28000},-24492,null,true,{"$f":"IF(G3513<>\"\",INDIRECT(\"'\"&G3513&\"'!\"&H3513),\"\")","v":28000},"BudgetSum 2-4","K5"]
[3509,{"$f":"'BudgetSum 2-4'!K7","v":150000},-146491,null,true,{"$f":"IF(G3514<>\"\",INDIRECT(\"'\"&G3514&\"'!\"&H3514),\"\")","v":150000},"BudgetSum 2-4","K7"]
[3510,{"$f":"'BudgetSum 2-4'!K9","v":178000},-174490,null,true,{"$f":"IF(G3515<>\"\",INDIRECT(\"'\"&G3515&\"'!\"&H3515),\"\")","v":178000},"BudgetSum 2-4","K9"]
[3511,{"$f":"'BudgetSum 2-4'!K14","v":150000},-146489,null,true,{"$f":"IF(G3516<>\"\",INDIRECT(\"'\"&G3516&\"'!\"&H3516),\"\")","v":150000},"BudgetSum 2-4","K14"]
[3512,{"$f":"'BudgetSum 2-4'!K16","v":0},3512,null,true,{"$f":"IF(G3517<>\"\",INDIRECT(\"'\"&G3517&\"'!\"&H3517),\"\")","v":0},"BudgetSum 2-4","K16"]
[3513,{"$f":"'BudgetSum 2-4'!K17","v":0},3513,null,true,{"$f":"IF(G3518<>\"\",INDIRECT(\"'\"&G3518&\"'!\"&H3518),\"\")","v":0},"BudgetSum 2-4","K17"]
[3514,{"$f":"'BudgetSum 2-4'!K19","v":150000},-146486,null,true,{"$f":"IF(G3519<>\"\",INDIRECT(\"'\"&G3519&\"'!\"&H3519),\"\")","v":150000},"BudgetSum 2-4","K19"]
[3515,{"$f":"'BudgetSum 2-4'!K22","v":28000},-24485,null,true,{"$f":"IF(G3520<>\"\",INDIRECT(\"'\"&G3520&\"'!\"&H3520),\"\")","v":28000},"BudgetSum 2-4","K22"]
[3516,{"$f":"'BudgetSum 2-4'!K28","v":0},3516,null,true,{"$f":"IF(G3521<>\"\",INDIRECT(\"'\"&G3521&\"'!\"&H3521),\"\")","v":0},"BudgetSum 2-4","K28"]
[3517,{"$f":"'BudgetSum 2-4'!K30","v":0},3517,null,{"$f":"F3522=B3522","v":true},{"$f":"IF(G3522<>\"\",INDIRECT(\"'\"&G3522&\"'!\"&H3522),\"\")","v":0},"BudgetSum 2-4","K30"]
[3518,{"$f":"'BudgetSum 2-4'!K35","v":0},3518,null,true,{"$f":"IF(G3523<>\"\",INDIRECT(\"'\"&G3523&\"'!\"&H3523),\"\")","v":0},"BudgetSum 2-4","K35"]
[3519,{"$f":"'BudgetSum 2-4'!K36","v":0},3519,null,true,{"$f":"IF(G3524<>\"\",INDIRECT(\"'\"&G3524&\"'!\"&H3524),\"\")","v":0},"BudgetSum 2-4","K36"]
[3520,{"$f":"'BudgetSum 2-4'!K37","v":0},3520,null,true,{"$f":"IF(G3525<>\"\",INDIRECT(\"'\"&G3525&\"'!\"&H3525),\"\")","v":0},"BudgetSum 2-4","K37"]
[3521,{"$f":"'BudgetSum 2-4'!K38","v":0},3521,null,true,{"$f":"IF(G3526<>\"\",INDIRECT(\"'\"&G3526&\"'!\"&H3526),\"\")","v":0},"BudgetSum 2-4","K38"]
[3522,{"$f":"'BudgetSum 2-4'!K45","v":0},3522,null,true,{"$f":"IF(G3527<>\"\",INDIRECT(\"'\"&G3527&\"'!\"&H3527),\"\")","v":0},"BudgetSum 2-4","K45"]
[3523,{"$f":"'BudgetSum 2-4'!K46","v":0},{"$f":"A3528-B3528","v":3523},null,true,{"$f":"IF(G3528<>\"\",INDIRECT(\"'\"&G3528&\"'!\"&H3528),\"\")","v":0},"BudgetSum 2-4","K46"]
[3524,{"$nulls":3},true,{"$f":"IF(G3529<>\"\",INDIRECT(\"'\"&G3529&\"'!\"&H3529),\"\")","v":""}]
[3525,{"$f":"'BudgetSum 2-4'!K79","v":0},3525,null,true,{"$f":"IF(G3530<>\"\",INDIRECT(\"'\"&G3530&\"'!\"&H3530),\"\")","v":0},"BudgetSum 2-4","K79"]
[3526,{"$f":"'BudgetSum 2-4'!K80","v":0},3526,null,true,{"$f":"IF(G3531<>\"\",INDIRECT(\"'\"&G3531&\"'!\"&H3531),\"\")","v":0},"BudgetSum 2-4","K80"]
[3527,{"$nulls":3},true,{"$f":"IF(G3532<>\"\",INDIRECT(\"'\"&G3532&\"'!\"&H3532),\"\")","v":""}]
[3528,{"$f":"'BudgetSum 2-4'!K3","v":0},3528,null,true,{"$f":"IF(G3533<>\"\",INDIRECT(\"'\"&G3533&\"'!\"&H3533),\"\")","v":0},"BudgetSum 2-4","K3"]
[3529,{"$nulls":3},true,{"$f":"IF(G3534<>\"\",INDIRECT(\"'\"&G3534&\"'!\"&H3534),\"\")","v":""}]
[3530,{"$f":"'BudgetSum 2-4'!K81","v":28000},-24470,null,true,{"$f":"IF(G3535<>\"\",INDIRECT(\"'\"&G3535&\"'!\"&H3535),\"\")","v":28000},"BudgetSum 2-4","K81"]
[3531,{"$nulls":3},true,{"$f":"IF(G3536<>\"\",INDIRECT(\"'\"&G3536&\"'!\"&H3536),\"\")","v":""}]
[3532,{"$nulls":3},true,{"$f":"IF(G3537<>\"\",INDIRECT(\"'\"&G3537&\"'!\"&H3537),\"\")","v":""}]
[3533,{"$nulls":3},true,{"$f":"IF(G3538<>\"\",INDIRECT(\"'\"&G3538&\"'!\"&H3538),\"\")","v":""}]
[3534,{"$nulls":3},true,{"$f":"IF(G3539<>\"\",INDIRECT(\"'\"&G3539&\"'!\"&H3539),\"\")","v":""}]
[3535,{"$nulls":3},true,{"$f":"IF(G3540<>\"\",INDIRECT(\"'\"&G3540&\"'!\"&H3540),\"\")","v":""}]
[3536,{"$nulls":3},true,{"$f":"IF(G3541<>\"\",INDIRECT(\"'\"&G3541&\"'!\"&H3541),\"\")","v":""}]
[3537,{"$nulls":3},true,{"$f":"IF(G3542<>\"\",INDIRECT(\"'\"&G3542&\"'!\"&H3542),\"\")","v":""}]
[3538,{"$nulls":3},true,{"$f":"IF(G3543<>\"\",INDIRECT(\"'\"&G3543&\"'!\"&H3543),\"\")","v":""}]
[3539,{"$nulls":3},true,{"$f":"IF(G3544<>\"\",INDIRECT(\"'\"&G3544&\"'!\"&H3544),\"\")","v":""}]
[3540,{"$nulls":3},true,{"$f":"IF(G3545<>\"\",INDIRECT(\"'\"&G3545&\"'!\"&H3545),\"\")","v":""}]
[3541,{"$nulls":3},true,{"$f":"IF(G3546<>\"\",INDIRECT(\"'\"&G3546&\"'!\"&H3546),\"\")","v":""}]
[3542,{"$nulls":3},true,{"$f":"IF(G3547<>\"\",INDIRECT(\"'\"&G3547&\"'!\"&H3547),\"\")","v":""}]
[3543,{"$nulls":3},true,{"$f":"IF(G3548<>\"\",INDIRECT(\"'\"&G3548&\"'!\"&H3548),\"\")","v":""}]
[3544,{"$nulls":3},true,{"$f":"IF(G3549<>\"\",INDIRECT(\"'\"&G3549&\"'!\"&H3549),\"\")","v":""}]
[3545,{"$nulls":3},true,{"$f":"IF(G3550<>\"\",INDIRECT(\"'\"&G3550&\"'!\"&H3550),\"\")","v":""}]
[3546,{"$nulls":3},true,{"$f":"IF(G3551<>\"\",INDIRECT(\"'\"&G3551&\"'!\"&H3551),\"\")","v":""}]
[3547,{"$nulls":3},true,{"$f":"IF(G3552<>\"\",INDIRECT(\"'\"&G3552&\"'!\"&H3552),\"\")","v":""}]
[3548,{"$nulls":3},true,{"$f":"IF(G3553<>\"\",INDIRECT(\"'\"&G3553&\"'!\"&H3553),\"\")","v":""}]
[3549,{"$nulls":3},true,{"$f":"IF(G3554<>\"\",INDIRECT(\"'\"&G3554&\"'!\"&H3554),\"\")","v":""}]
[3550,{"$nulls":3},true,{"$f":"IF(G3555<>\"\",INDIRECT(\"'\"&G3555&\"'!\"&H3555),\"\")","v":""}]
[3551,{"$nulls":3},true,{"$f":"IF(G3556<>\"\",INDIRECT(\"'\"&G3556&\"'!\"&H3556),\"\")","v":""}]
[3552,{"$nulls":3},true,{"$f":"IF(G3557<>\"\",INDIRECT(\"'\"&G3557&\"'!\"&H3557),\"\")","v":""}]
[3553,{"$nulls":3},true,{"$f":"IF(G3558<>\"\",INDIRECT(\"'\"&G3558&\"'!\"&H3558),\"\")","v":""}]
[3554,{"$nulls":3},true,{"$f":"IF(G3559<>\"\",INDIRECT(\"'\"&G3559&\"'!\"&H3559),\"\")","v":""}]
[3555,{"$nulls":3},true,{"$f":"IF(G3560<>\"\",INDIRECT(\"'\"&G3560&\"'!\"&H3560),\"\")","v":""}]
[3556,{"$f":"'EstExp 12-20'!C434","v":0},3556,null,true,{"$f":"IF(G3561<>\"\",INDIRECT(\"'\"&G3561&\"'!\"&H3561),\"\")","v":0},"EstExp 12-20","C434"]
[3557,{"$f":"'EstExp 12-20'!C435","v":115000},-111443,null,true,{"$f":"IF(G3562<>\"\",INDIRECT(\"'\"&G3562&\"'!\"&H3562),\"\")","v":115000},"EstExp 12-20","C435"]
[3558,{"$f":"'EstExp 12-20'!C436","v":115000},-111442,null,true,{"$f":"IF(G3563<>\"\",INDIRECT(\"'\"&G3563&\"'!\"&H3563),\"\")","v":115000},"EstExp 12-20","C436"]
[3559,{"$f":"'EstExp 12-20'!C437","v":0},3559,null,true,{"$f":"IF(G3564<>\"\",INDIRECT(\"'\"&G3564&\"'!\"&H3564),\"\")","v":0},"EstExp 12-20","C437"]
[3560,{"$f":"'EstExp 12-20'!C438","v":115000},-111440,null,true,{"$f":"IF(G3565<>\"\",INDIRECT(\"'\"&G3565&\"'!\"&H3565),\"\")","v":115000},"EstExp 12-20","C438"]
[3561,{"$f":"'EstExp 12-20'!C453","v":115000},-111439,null,true,{"$f":"IF(G3566<>\"\",INDIRECT(\"'\"&G3566&\"'!\"&H3566),\"\")","v":115000},"EstExp 12-20","C453"]
[3562,{"$nulls":3},true,{"$f":"IF(G3567<>\"\",INDIRECT(\"'\"&G3567&\"'!\"&H3567),\"\")","v":""}]
[3563,{"$f":"'EstExp 12-20'!D434","v":0},3563,null,true,{"$f":"IF(G3568<>\"\",INDIRECT(\"'\"&G3568&\"'!\"&H3568),\"\")","v":0},"EstExp 12-20","D434"]
[3564,{"$f":"'EstExp 12-20'!D435","v":20000},-16436,null,true,{"$f":"IF(G3569<>\"\",INDIRECT(\"'\"&G3569&\"'!\"&H3569),\"\")","v":20000},"EstExp 12-20","D435"]
[3565,{"$f":"'EstExp 12-20'!D436","v":20000},-16435,null,true,{"$f":"IF(G3570<>\"\",INDIRECT(\"'\"&G3570&\"'!\"&H3570),\"\")","v":20000},"EstExp 12-20","D436"]
[3566,{"$f":"'EstExp 12-20'!D437","v":0},3566,null,true,{"$f":"IF(G3571<>\"\",INDIRECT(\"'\"&G3571&\"'!\"&H3571),\"\")","v":0},"EstExp 12-20","D437"]
[3567,{"$f":"'EstExp 12-20'!D438","v":20000},-16433,null,true,{"$f":"IF(G3572<>\"\",INDIRECT(\"'\"&G3572&\"'!\"&H3572),\"\")","v":20000},"EstExp 12-20","D438"]
[3568,{"$f":"'EstExp 12-20'!D453","v":20000},-16432,null,true,{"$f":"IF(G3573<>\"\",INDIRECT(\"'\"&G3573&\"'!\"&H3573),\"\")","v":20000},"EstExp 12-20","D453"]
[3569,{"$nulls":3},true,{"$f":"IF(G3574<>\"\",INDIRECT(\"'\"&G3574&\"'!\"&H3574),\"\")","v":""}]
[3570,{"$f":"'EstExp 12-20'!E434","v":0},3570,null,true,{"$f":"IF(G3575<>\"\",INDIRECT(\"'\"&G3575&\"'!\"&H3575),\"\")","v":0},"EstExp 12-20","E434"]
[3571,{"$f":"'EstExp 12-20'!E435","v":15000},-11429,null,true,{"$f":"IF(G3576<>\"\",INDIRECT(\"'\"&G3576&\"'!\"&H3576),\"\")","v":15000},"EstExp 12-20","E435"]
[3572,{"$f":"'EstExp 12-20'!E436","v":15000},-11428,null,true,{"$f":"IF(G3577<>\"\",INDIRECT(\"'\"&G3577&\"'!\"&H3577),\"\")","v":15000},"EstExp 12-20","E436"]
[3573,{"$f":"'EstExp 12-20'!E437","v":0},3573,null,true,{"$f":"IF(G3578<>\"\",INDIRECT(\"'\"&G3578&\"'!\"&H3578),\"\")","v":0},"EstExp 12-20","E437"]
[3574,{"$f":"'EstExp 12-20'!E438","v":15000},-11426,null,true,{"$f":"IF(G3579<>\"\",INDIRECT(\"'\"&G3579&\"'!\"&H3579),\"\")","v":15000},"EstExp 12-20","E438"]
[3575,{"$f":"'EstExp 12-20'!E453","v":15000},-11425,null,true,{"$f":"IF(G3580<>\"\",INDIRECT(\"'\"&G3580&\"'!\"&H3580),\"\")","v":15000},"EstExp 12-20","E453"]
[3576,{"$nulls":3},true,{"$f":"IF(G3581<>\"\",INDIRECT(\"'\"&G3581&\"'!\"&H3581),\"\")","v":""}]
[3577,{"$f":"'EstExp 12-20'!F434","v":0},3577,null,true,{"$f":"IF(G3582<>\"\",INDIRECT(\"'\"&G3582&\"'!\"&H3582),\"\")","v":0},"EstExp 12-20","F434"]
[3578,{"$f":"'EstExp 12-20'!F435","v":0},3578,null,true,{"$f":"IF(G3583<>\"\",INDIRECT(\"'\"&G3583&\"'!\"&H3583),\"\")","v":0},"EstExp 12-20","F435"]
[3579,{"$f":"'EstExp 12-20'!F436","v":0},3579,null,true,{"$f":"IF(G3584<>\"\",INDIRECT(\"'\"&G3584&\"'!\"&H3584),\"\")","v":0},"EstExp 12-20","F436"]
[3580,{"$f":"'EstExp 12-20'!F437","v":0},3580,null,true,{"$f":"IF(G3585<>\"\",INDIRECT(\"'\"&G3585&\"'!\"&H3585),\"\")","v":0},"EstExp 12-20","F437"]
[3581,{"$f":"'EstExp 12-20'!F438","v":0},3581,null,{"$f":"F3586=B3586","v":true},{"$f":"IF(G3586<>\"\",INDIRECT(\"'\"&G3586&\"'!\"&H3586),\"\")","v":0},"EstExp 12-20","F438"]
[3582,{"$f":"'EstExp 12-20'!F453","v":0},3582,null,true,{"$f":"IF(G3587<>\"\",INDIRECT(\"'\"&G3587&\"'!\"&H3587),\"\")","v":0},"EstExp 12-20","F453"]
[3583,{"$nulls":3},true,{"$f":"IF(G3588<>\"\",INDIRECT(\"'\"&G3588&\"'!\"&H3588),\"\")","v":""}]
[3584,{"$f":"'EstExp 12-20'!G434","v":0},3584,null,true,{"$f":"IF(G3589<>\"\",INDIRECT(\"'\"&G3589&\"'!\"&H3589),\"\")","v":0},"EstExp 12-20","G434"]
[3585,{"$f":"'EstExp 12-20'!G435","v":0},3585,null,true,{"$f":"IF(G3590<>\"\",INDIRECT(\"'\"&G3590&\"'!\"&H3590),\"\")","v":0},"EstExp 12-20","G435"]
[3586,{"$f":"'EstExp 12-20'!G436","v":0},3586,null,true,{"$f":"IF(G3591<>\"\",INDIRECT(\"'\"&G3591&\"'!\"&H3591),\"\")","v":0},"EstExp 12-20","G436"]
[3587,{"$f":"'EstExp 12-20'!G437","v":0},{"$f":"A3592-B3592","v":3587},null,true,{"$f":"IF(G3592<>\"\",INDIRECT(\"'\"&G3592&\"'!\"&H3592),\"\")","v":0},"EstExp 12-20","G437"]
[3588,{"$f":"'EstExp 12-20'!G438","v":0},3588,null,true,{"$f":"IF(G3593<>\"\",INDIRECT(\"'\"&G3593&\"'!\"&H3593),\"\")","v":0},"EstExp 12-20","G438"]
[3589,{"$f":"'EstExp 12-20'!G453","v":0},3589,null,true,{"$f":"IF(G3594<>\"\",INDIRECT(\"'\"&G3594&\"'!\"&H3594),\"\")","v":0},"EstExp 12-20","G453"]
[3590,{"$nulls":3},true,{"$f":"IF(G3595<>\"\",INDIRECT(\"'\"&G3595&\"'!\"&H3595),\"\")","v":""}]
[3591,{"$f":"'EstExp 12-20'!H434","v":0},3591,null,true,{"$f":"IF(G3596<>\"\",INDIRECT(\"'\"&G3596&\"'!\"&H3596),\"\")","v":0},"EstExp 12-20","H434"]
[3592,{"$f":"'EstExp 12-20'!H435","v":0},3592,null,true,{"$f":"IF(G3597<>\"\",INDIRECT(\"'\"&G3597&\"'!\"&H3597),\"\")","v":0},"EstExp 12-20","H435"]
[3593,{"$f":"'EstExp 12-20'!H436","v":0},3593,null,true,{"$f":"IF(G3598<>\"\",INDIRECT(\"'\"&G3598&\"'!\"&H3598),\"\")","v":0},"EstExp 12-20","H436"]
[3594,{"$f":"'EstExp 12-20'!H437","v":0},3594,null,true,{"$f":"IF(G3599<>\"\",INDIRECT(\"'\"&G3599&\"'!\"&H3599),\"\")","v":0},"EstExp 12-20","H437"]
[3595,{"$f":"'EstExp 12-20'!H438","v":0},3595,null,true,{"$f":"IF(G3600<>\"\",INDIRECT(\"'\"&G3600&\"'!\"&H3600),\"\")","v":0},"EstExp 12-20","H438"]
[3596,{"$f":"'EstExp 12-20'!H446","v":0},3596,null,true,{"$f":"IF(G3601<>\"\",INDIRECT(\"'\"&G3601&\"'!\"&H3601),\"\")","v":0},"EstExp 12-20","H446"]
[3597,{"$f":"'EstExp 12-20'!H451","v":0},3597,null,true,{"$f":"IF(G3602<>\"\",INDIRECT(\"'\"&G3602&\"'!\"&H3602),\"\")","v":0},"EstExp 12-20","H451"]
[3598,{"$nulls":3},true,{"$f":"IF(G3603<>\"\",INDIRECT(\"'\"&G3603&\"'!\"&H3603),\"\")","v":""}]
[3599,{"$f":"'EstExp 12-20'!H453","v":0},3599,null,true,{"$f":"IF(G3604<>\"\",INDIRECT(\"'\"&G3604&\"'!\"&H3604),\"\")","v":0},"EstExp 12-20","H453"]
[3600,{"$nulls":3},true,{"$f":"IF(G3605<>\"\",INDIRECT(\"'\"&G3605&\"'!\"&H3605),\"\")","v":""}]
[3601,{"$f":"'EstExp 12-20'!H442","v":{"v":0,"d":"0 "}},3601,"Closed 2008",true,{"$f":"IF(G3606<>\"\",INDIRECT(\"'\"&G3606&\"'!\"&H3606),\"\")","v":0},"EstExp 12-20","H442"]
[3602,{"$f":"'EstExp 12-20'!H443","v":{"v":0,"d":"0 "}},3602,"Closed 2008",true,{"$f":"IF(G3607<>\"\",INDIRECT(\"'\"&G3607&\"'!\"&H3607),\"\")","v":0},"EstExp 12-20","H443"]
[3603,null,null,"Closed 2008",true,{"$f":"IF(G3608<>\"\",INDIRECT(\"'\"&G3608&\"'!\"&H3608),\"\")","v":""}]
[3604,{"$nulls":3},true,{"$f":"IF(G3609<>\"\",INDIRECT(\"'\"&G3609&\"'!\"&H3609),\"\")","v":""}]
[3605,{"$nulls":3},true,{"$f":"IF(G3610<>\"\",INDIRECT(\"'\"&G3610&\"'!\"&H3610),\"\")","v":""}]
[3606,{"$nulls":3},true,{"$f":"IF(G3611<>\"\",INDIRECT(\"'\"&G3611&\"'!\"&H3611),\"\")","v":""}]
[3607,{"$f":"'EstExp 12-20'!K434","v":0},3607,null,true,{"$f":"IF(G3612<>\"\",INDIRECT(\"'\"&G3612&\"'!\"&H3612),\"\")","v":0},"EstExp 12-20","K434"]
[3608,{"$f":"'EstExp 12-20'!K435","v":150000},-146392,null,true,{"$f":"IF(G3613<>\"\",INDIRECT(\"'\"&G3613&\"'!\"&H3613),\"\")","v":150000},"EstExp 12-20","K435"]
[3609,{"$f":"'EstExp 12-20'!K436","v":150000},-146391,null,true,{"$f":"IF(G3614<>\"\",INDIRECT(\"'\"&G3614&\"'!\"&H3614),\"\")","v":150000},"EstExp 12-20","K436"]
[3610,{"$f":"'EstExp 12-20'!K437","v":0},3610,null,true,{"$f":"IF(G3615<>\"\",INDIRECT(\"'\"&G3615&\"'!\"&H3615),\"\")","v":0},"EstExp 12-20","K437"]
[3611,{"$f":"'EstExp 12-20'!K438","v":150000},-146389,null,true,{"$f":"IF(G3616<>\"\",INDIRECT(\"'\"&G3616&\"'!\"&H3616),\"\")","v":150000},"EstExp 12-20","K438"]
[3612,{"$f":"'EstExp 12-20'!K442","v":0},3612,null,true,{"$f":"IF(G3617<>\"\",INDIRECT(\"'\"&G3617&\"'!\"&H3617),\"\")","v":0},"EstExp 12-20","K442"]
[3613,{"$f":"'EstExp 12-20'!K443","v":0},3613,null,true,{"$f":"IF(G3618<>\"\",INDIRECT(\"'\"&G3618&\"'!\"&H3618),\"\")","v":0},"EstExp 12-20","K443"]
[3614,{"$f":"'EstExp 12-20'!K446","v":0},3614,null,true,{"$f":"IF(G3619<>\"\",INDIRECT(\"'\"&G3619&\"'!\"&H3619),\"\")","v":0},"EstExp 12-20","K446"]
[3615,{"$f":"'EstExp 12-20'!K451","v":0},3615,null,true,{"$f":"IF(G3620<>\"\",INDIRECT(\"'\"&G3620&\"'!\"&H3620),\"\")","v":0},"EstExp 12-20","K451"]
[3616,{"$nulls":3},true,{"$f":"IF(G3621<>\"\",INDIRECT(\"'\"&G3621&\"'!\"&H3621),\"\")","v":""}]
[3617,{"$f":"'EstExp 12-20'!K453","v":150000},-146383,null,true,{"$f":"IF(G3622<>\"\",INDIRECT(\"'\"&G3622&\"'!\"&H3622),\"\")","v":150000},"EstExp 12-20","K453"]
[3618,{"$nulls":3},true,{"$f":"IF(G3623<>\"\",INDIRECT(\"'\"&G3623&\"'!\"&H3623),\"\")","v":""}]
[3619,{"$nulls":3},true,{"$f":"IF(G3624<>\"\",INDIRECT(\"'\"&G3624&\"'!\"&H3624),\"\")","v":""}]
[3620,{"$f":"'EstExp 12-20'!K454","v":28000},-24380,null,true,{"$f":"IF(G3625<>\"\",INDIRECT(\"'\"&G3625&\"'!\"&H3625),\"\")","v":28000},"EstExp 12-20","K454"]
[3621,{"$nulls":3},true,{"$f":"IF(G3626<>\"\",INDIRECT(\"'\"&G3626&\"'!\"&H3626),\"\")","v":""}]
[3622,{"$nulls":3},true,{"$f":"IF(G3627<>\"\",INDIRECT(\"'\"&G3627&\"'!\"&H3627),\"\")","v":""}]
[3623,{"$nulls":3},true,{"$f":"IF(G3628<>\"\",INDIRECT(\"'\"&G3628&\"'!\"&H3628),\"\")","v":""}]
[3624,{"$nulls":3},true,{"$f":"IF(G3629<>\"\",INDIRECT(\"'\"&G3629&\"'!\"&H3629),\"\")","v":""}]
[3625,{"$nulls":3},true,{"$f":"IF(G3630<>\"\",INDIRECT(\"'\"&G3630&\"'!\"&H3630),\"\")","v":""}]
[3626,{"$nulls":3},true,{"$f":"IF(G3631<>\"\",INDIRECT(\"'\"&G3631&\"'!\"&H3631),\"\")","v":""}]
[3627,{"$nulls":3},true,{"$f":"IF(G3632<>\"\",INDIRECT(\"'\"&G3632&\"'!\"&H3632),\"\")","v":""}]
[3628,{"$nulls":3},true,{"$f":"IF(G3633<>\"\",INDIRECT(\"'\"&G3633&\"'!\"&H3633),\"\")","v":""}]
[3629,{"$nulls":3},true,{"$f":"IF(G3634<>\"\",INDIRECT(\"'\"&G3634&\"'!\"&H3634),\"\")","v":""}]
[3630,{"$nulls":3},true,{"$f":"IF(G3635<>\"\",INDIRECT(\"'\"&G3635&\"'!\"&H3635),\"\")","v":""}]
[3631,{"$nulls":3},true,{"$f":"IF(G3636<>\"\",INDIRECT(\"'\"&G3636&\"'!\"&H3636),\"\")","v":""}]
[3632,{"$nulls":3},true,{"$f":"IF(G3637<>\"\",INDIRECT(\"'\"&G3637&\"'!\"&H3637),\"\")","v":""}]
[3633,{"$nulls":3},true,{"$f":"IF(G3638<>\"\",INDIRECT(\"'\"&G3638&\"'!\"&H3638),\"\")","v":""}]
[3634,{"$nulls":3},true,{"$f":"IF(G3639<>\"\",INDIRECT(\"'\"&G3639&\"'!\"&H3639),\"\")","v":""}]
[3635,{"$nulls":3},true,{"$f":"IF(G3640<>\"\",INDIRECT(\"'\"&G3640&\"'!\"&H3640),\"\")","v":""}]
[3636,{"$nulls":3},true,{"$f":"IF(G3641<>\"\",INDIRECT(\"'\"&G3641&\"'!\"&H3641),\"\")","v":""}]
[3637,{"$f":"'BudgetSum 2-4'!D32","v":0},3637,null,true,{"$f":"IF(G3642<>\"\",INDIRECT(\"'\"&G3642&\"'!\"&H3642),\"\")","v":0},"BudgetSum 2-4","D32"]
[3638,{"$f":"'BudgetSum 2-4'!E33","v":0},3638,null,true,{"$f":"IF(G3643<>\"\",INDIRECT(\"'\"&G3643&\"'!\"&H3643),\"\")","v":0},"BudgetSum 2-4","E33"]
[3639,{"$nulls":3},true,{"$f":"IF(G3644<>\"\",INDIRECT(\"'\"&G3644&\"'!\"&H3644),\"\")","v":""}]
[3640,{"$nulls":3},true,{"$f":"IF(G3645<>\"\",INDIRECT(\"'\"&G3645&\"'!\"&H3645),\"\")","v":""}]
[3641,{"$f":"'BudgetSum 2-4'!K55","v":0},3641,null,true,{"$f":"IF(G3646<>\"\",INDIRECT(\"'\"&G3646&\"'!\"&H3646),\"\")","v":0},"BudgetSum 2-4","K55"]
[3642,{"$f":"'BudgetSum 2-4'!K56","v":0},3642,null,true,{"$f":"IF(G3647<>\"\",INDIRECT(\"'\"&G3647&\"'!\"&H3647),\"\")","v":0},"BudgetSum 2-4","K56"]
[3643,{"$nulls":3},true,{"$f":"IF(G3648<>\"\",INDIRECT(\"'\"&G3648&\"'!\"&H3648),\"\")","v":""}]
[3644,{"$nulls":3},true,{"$f":"IF(G3649<>\"\",INDIRECT(\"'\"&G3649&\"'!\"&H3649),\"\")","v":""}]
[3645,{"$nulls":3},{"$f":"F3650=B3650","v":true},{"$f":"IF(G3650<>\"\",INDIRECT(\"'\"&G3650&\"'!\"&H3650),\"\")","v":""}]
[3646,{"$nulls":3},true,{"$f":"IF(G3651<>\"\",INDIRECT(\"'\"&G3651&\"'!\"&H3651),\"\")","v":""}]
[3647,{"$nulls":3},true,{"$f":"IF(G3652<>\"\",INDIRECT(\"'\"&G3652&\"'!\"&H3652),\"\")","v":""}]
[3648,{"$nulls":3},true,{"$f":"IF(G3653<>\"\",INDIRECT(\"'\"&G3653&\"'!\"&H3653),\"\")","v":""}]
[3649,{"$nulls":3},true,{"$f":"IF(G3654<>\"\",INDIRECT(\"'\"&G3654&\"'!\"&H3654),\"\")","v":""}]
[3650,{"$nulls":3},true,{"$f":"IF(G3655<>\"\",INDIRECT(\"'\"&G3655&\"'!\"&H3655),\"\")","v":""}]
[3651,{"$nulls":3},true,{"$f":"IF(G3656<>\"\",INDIRECT(\"'\"&G3656&\"'!\"&H3656),\"\")","v":""}]
[3652,{"$nulls":3},true,{"$f":"IF(G3657<>\"\",INDIRECT(\"'\"&G3657&\"'!\"&H3657),\"\")","v":""}]
[3653,{"$nulls":3},true,{"$f":"IF(G3658<>\"\",INDIRECT(\"'\"&G3658&\"'!\"&H3658),\"\")","v":""}]
[3654,{"$nulls":3},true,{"$f":"IF(G3659<>\"\",INDIRECT(\"'\"&G3659&\"'!\"&H3659),\"\")","v":""}]
[3655,null,null,"Closed 2008",true,{"$f":"IF(G3660<>\"\",INDIRECT(\"'\"&G3660&\"'!\"&H3660),\"\")","v":""}]
[3656,{"$f":"'EstExp 12-20'!K306","v":0},{"$f":"A3661-B3661","v":3656},null,true,{"$f":"IF(G3661<>\"\",INDIRECT(\"'\"&G3661&\"'!\"&H3661),\"\")","v":0},"EstExp 12-20","K306"]
[3657,{"$f":"'BudgetSum 2-4'!K8","v":0},3657,null,true,{"$f":"IF(G3662<>\"\",INDIRECT(\"'\"&G3662&\"'!\"&H3662),\"\")","v":0},"BudgetSum 2-4","K8"]
[3658,{"$nulls":3},true,{"$f":"IF(G3663<>\"\",INDIRECT(\"'\"&G3663&\"'!\"&H3663),\"\")","v":""}]
[3659,{"$nulls":3},true,{"$f":"IF(G3664<>\"\",INDIRECT(\"'\"&G3664&\"'!\"&H3664),\"\")","v":""}]
[3660,{"$f":"'EstExp 12-20'!D280","v":0},3660,null,true,{"$f":"IF(G3665<>\"\",INDIRECT(\"'\"&G3665&\"'!\"&H3665),\"\")","v":0},"EstExp 12-20","D280"]
[3661,{"$f":"'EstExp 12-20'!D282","v":0},3661,null,true,{"$f":"IF(G3666<>\"\",INDIRECT(\"'\"&G3666&\"'!\"&H3666),\"\")","v":0},"EstExp 12-20","D282"]
[3662,{"$f":"'EstExp 12-20'!K280","v":0},3662,null,true,{"$f":"IF(G3667<>\"\",INDIRECT(\"'\"&G3667&\"'!\"&H3667),\"\")","v":0},"EstExp 12-20","K280"]
[3663,{"$f":"'EstExp 12-20'!K282","v":0},3663,null,true,{"$f":"IF(G3668<>\"\",INDIRECT(\"'\"&G3668&\"'!\"&H3668),\"\")","v":0},"EstExp 12-20","K282"]
[3664,{"$nulls":3},true,{"$f":"IF(G3669<>\"\",INDIRECT(\"'\"&G3669&\"'!\"&H3669),\"\")","v":""}]
[3665,{"$nulls":3},true,{"$f":"IF(G3670<>\"\",INDIRECT(\"'\"&G3670&\"'!\"&H3670),\"\")","v":""}]
[3666,{"$nulls":3},true,{"$f":"IF(G3671<>\"\",INDIRECT(\"'\"&G3671&\"'!\"&H3671),\"\")","v":""}]
[3667,{"$nulls":3},true,{"$f":"IF(G3672<>\"\",INDIRECT(\"'\"&G3672&\"'!\"&H3672),\"\")","v":""}]
[3668,{"$nulls":3},true,{"$f":"IF(G3673<>\"\",INDIRECT(\"'\"&G3673&\"'!\"&H3673),\"\")","v":""}]
[3669,{"$nulls":3},true,{"$f":"IF(G3674<>\"\",INDIRECT(\"'\"&G3674&\"'!\"&H3674),\"\")","v":""}]
[3670,{"$nulls":3},true,{"$f":"IF(G3675<>\"\",INDIRECT(\"'\"&G3675&\"'!\"&H3675),\"\")","v":""}]
[3671,{"$nulls":3},true,{"$f":"IF(G3676<>\"\",INDIRECT(\"'\"&G3676&\"'!\"&H3676),\"\")","v":""}]
[3672,{"$nulls":3},true,{"$f":"IF(G3677<>\"\",INDIRECT(\"'\"&G3677&\"'!\"&H3677),\"\")","v":""}]
[3673,{"$nulls":3},true,{"$f":"IF(G3678<>\"\",INDIRECT(\"'\"&G3678&\"'!\"&H3678),\"\")","v":""}]
[3674,{"$nulls":3},true,{"$f":"IF(G3679<>\"\",INDIRECT(\"'\"&G3679&\"'!\"&H3679),\"\")","v":""}]
[3675,{"$nulls":3},true,{"$f":"IF(G3680<>\"\",INDIRECT(\"'\"&G3680&\"'!\"&H3680),\"\")","v":""}]
[3676,{"$nulls":3},true,{"$f":"IF(G3681<>\"\",INDIRECT(\"'\"&G3681&\"'!\"&H3681),\"\")","v":""}]
[3677,{"$nulls":3},true,{"$f":"IF(G3682<>\"\",INDIRECT(\"'\"&G3682&\"'!\"&H3682),\"\")","v":""}]
[3678,{"$nulls":3},true,{"$f":"IF(G3683<>\"\",INDIRECT(\"'\"&G3683&\"'!\"&H3683),\"\")","v":""}]
[3679,{"$nulls":3},true,{"$f":"IF(G3684<>\"\",INDIRECT(\"'\"&G3684&\"'!\"&H3684),\"\")","v":""}]
[3680,{"$nulls":3},true,{"$f":"IF(G3685<>\"\",INDIRECT(\"'\"&G3685&\"'!\"&H3685),\"\")","v":""}]
[3681,{"$nulls":3},true,{"$f":"IF(G3686<>\"\",INDIRECT(\"'\"&G3686&\"'!\"&H3686),\"\")","v":""}]
[3682,{"$nulls":3},true,{"$f":"IF(G3687<>\"\",INDIRECT(\"'\"&G3687&\"'!\"&H3687),\"\")","v":""}]
[3683,{"$nulls":3},true,{"$f":"IF(G3688<>\"\",INDIRECT(\"'\"&G3688&\"'!\"&H3688),\"\")","v":""}]
[3684,{"$nulls":3},true,{"$f":"IF(G3689<>\"\",INDIRECT(\"'\"&G3689&\"'!\"&H3689),\"\")","v":""}]
[3685,{"$nulls":3},true,{"$f":"IF(G3690<>\"\",INDIRECT(\"'\"&G3690&\"'!\"&H3690),\"\")","v":""}]
[3686,{"$nulls":3},true,{"$f":"IF(G3691<>\"\",INDIRECT(\"'\"&G3691&\"'!\"&H3691),\"\")","v":""}]
[3687,{"$nulls":3},true,{"$f":"IF(G3692<>\"\",INDIRECT(\"'\"&G3692&\"'!\"&H3692),\"\")","v":""}]
[3688,{"$nulls":3},true,{"$f":"IF(G3693<>\"\",INDIRECT(\"'\"&G3693&\"'!\"&H3693),\"\")","v":""}]
[3689,{"$nulls":3},true,{"$f":"IF(G3694<>\"\",INDIRECT(\"'\"&G3694&\"'!\"&H3694),\"\")","v":""}]
[3690,{"$nulls":3},true,{"$f":"IF(G3695<>\"\",INDIRECT(\"'\"&G3695&\"'!\"&H3695),\"\")","v":""}]
[3691,{"$nulls":3},true,{"$f":"IF(G3696<>\"\",INDIRECT(\"'\"&G3696&\"'!\"&H3696),\"\")","v":""}]
[3692,{"$nulls":3},true,{"$f":"IF(G3697<>\"\",INDIRECT(\"'\"&G3697&\"'!\"&H3697),\"\")","v":""}]
[3693,{"$nulls":3},true,{"$f":"IF(G3698<>\"\",INDIRECT(\"'\"&G3698&\"'!\"&H3698),\"\")","v":""}]
[3694,{"$nulls":3},true,{"$f":"IF(G3699<>\"\",INDIRECT(\"'\"&G3699&\"'!\"&H3699),\"\")","v":""}]
[3695,{"$nulls":3},true,{"$f":"IF(G3700<>\"\",INDIRECT(\"'\"&G3700&\"'!\"&H3700),\"\")","v":""}]
[3696,{"$nulls":3},true,{"$f":"IF(G3701<>\"\",INDIRECT(\"'\"&G3701&\"'!\"&H3701),\"\")","v":""}]
[3697,{"$nulls":3},true,{"$f":"IF(G3702<>\"\",INDIRECT(\"'\"&G3702&\"'!\"&H3702),\"\")","v":""}]
[3698,{"$nulls":3},true,{"$f":"IF(G3703<>\"\",INDIRECT(\"'\"&G3703&\"'!\"&H3703),\"\")","v":""}]
[3699,{"$nulls":3},true,{"$f":"IF(G3704<>\"\",INDIRECT(\"'\"&G3704&\"'!\"&H3704),\"\")","v":""}]
[3700,{"$nulls":3},true,{"$f":"IF(G3705<>\"\",INDIRECT(\"'\"&G3705&\"'!\"&H3705),\"\")","v":""}]
[3701,{"$nulls":3},true,{"$f":"IF(G3706<>\"\",INDIRECT(\"'\"&G3706&\"'!\"&H3706),\"\")","v":""}]
[3702,{"$nulls":3},true,{"$f":"IF(G3707<>\"\",INDIRECT(\"'\"&G3707&\"'!\"&H3707),\"\")","v":""}]
[3703,{"$nulls":3},true,{"$f":"IF(G3708<>\"\",INDIRECT(\"'\"&G3708&\"'!\"&H3708),\"\")","v":""}]
[3704,{"$nulls":3},true,{"$f":"IF(G3709<>\"\",INDIRECT(\"'\"&G3709&\"'!\"&H3709),\"\")","v":""}]
[3705,{"$nulls":3},true,{"$f":"IF(G3710<>\"\",INDIRECT(\"'\"&G3710&\"'!\"&H3710),\"\")","v":""}]
[3706,{"$nulls":3},true,{"$f":"IF(G3711<>\"\",INDIRECT(\"'\"&G3711&\"'!\"&H3711),\"\")","v":""}]
[3707,{"$nulls":3},true,{"$f":"IF(G3712<>\"\",INDIRECT(\"'\"&G3712&\"'!\"&H3712),\"\")","v":""}]
[3708,{"$nulls":3},true,{"$f":"IF(G3713<>\"\",INDIRECT(\"'\"&G3713&\"'!\"&H3713),\"\")","v":""}]
[3709,{"$nulls":3},{"$f":"F3714=B3714","v":true},{"$f":"IF(G3714<>\"\",INDIRECT(\"'\"&G3714&\"'!\"&H3714),\"\")","v":""}]
[3710,{"$nulls":3},true,{"$f":"IF(G3715<>\"\",INDIRECT(\"'\"&G3715&\"'!\"&H3715),\"\")","v":""}]
[3711,{"$nulls":3},true,{"$f":"IF(G3716<>\"\",INDIRECT(\"'\"&G3716&\"'!\"&H3716),\"\")","v":""}]
[3712,{"$nulls":3},true,{"$f":"IF(G3717<>\"\",INDIRECT(\"'\"&G3717&\"'!\"&H3717),\"\")","v":""}]
[3713,{"$nulls":3},true,{"$f":"IF(G3718<>\"\",INDIRECT(\"'\"&G3718&\"'!\"&H3718),\"\")","v":""}]
[3714,{"$nulls":3},true,{"$f":"IF(G3719<>\"\",INDIRECT(\"'\"&G3719&\"'!\"&H3719),\"\")","v":""}]
[3715,{"$nulls":3},true,{"$f":"IF(G3720<>\"\",INDIRECT(\"'\"&G3720&\"'!\"&H3720),\"\")","v":""}]
[3716,{"$nulls":3},true,{"$f":"IF(G3721<>\"\",INDIRECT(\"'\"&G3721&\"'!\"&H3721),\"\")","v":""}]
[3717,{"$nulls":3},true,{"$f":"IF(G3722<>\"\",INDIRECT(\"'\"&G3722&\"'!\"&H3722),\"\")","v":""}]
[3718,{"$nulls":3},true,{"$f":"IF(G3723<>\"\",INDIRECT(\"'\"&G3723&\"'!\"&H3723),\"\")","v":""}]
[3719,{"$nulls":3},true,{"$f":"IF(G3724<>\"\",INDIRECT(\"'\"&G3724&\"'!\"&H3724),\"\")","v":""}]
[3720,{"$nulls":3},true,{"$f":"IF(G3725<>\"\",INDIRECT(\"'\"&G3725&\"'!\"&H3725),\"\")","v":""}]
[3721,{"$nulls":3},true,{"$f":"IF(G3726<>\"\",INDIRECT(\"'\"&G3726&\"'!\"&H3726),\"\")","v":""}]
[3722,{"$nulls":3},true,{"$f":"IF(G3727<>\"\",INDIRECT(\"'\"&G3727&\"'!\"&H3727),\"\")","v":""}]
[3723,{"$nulls":3},true,{"$f":"IF(G3728<>\"\",INDIRECT(\"'\"&G3728&\"'!\"&H3728),\"\")","v":""}]
[3724,{"$nulls":3},true,{"$f":"IF(G3729<>\"\",INDIRECT(\"'\"&G3729&\"'!\"&H3729),\"\")","v":""}]
[3725,{"$nulls":3},true,{"$f":"IF(G3730<>\"\",INDIRECT(\"'\"&G3730&\"'!\"&H3730),\"\")","v":""}]
[3726,{"$nulls":3},true,{"$f":"IF(G3731<>\"\",INDIRECT(\"'\"&G3731&\"'!\"&H3731),\"\")","v":""}]
[3727,{"$nulls":3},true,{"$f":"IF(G3732<>\"\",INDIRECT(\"'\"&G3732&\"'!\"&H3732),\"\")","v":""}]
[3728,{"$nulls":3},true,{"$f":"IF(G3733<>\"\",INDIRECT(\"'\"&G3733&\"'!\"&H3733),\"\")","v":""}]
[3729,{"$nulls":3},true,{"$f":"IF(G3734<>\"\",INDIRECT(\"'\"&G3734&\"'!\"&H3734),\"\")","v":""}]
[3730,{"$nulls":3},true,{"$f":"IF(G3735<>\"\",INDIRECT(\"'\"&G3735&\"'!\"&H3735),\"\")","v":""}]
[3731,{"$nulls":3},true,{"$f":"IF(G3736<>\"\",INDIRECT(\"'\"&G3736&\"'!\"&H3736),\"\")","v":""}]
[3732,{"$nulls":3},true,{"$f":"IF(G3737<>\"\",INDIRECT(\"'\"&G3737&\"'!\"&H3737),\"\")","v":""}]
[3733,{"$nulls":3},true,{"$f":"IF(G3738<>\"\",INDIRECT(\"'\"&G3738&\"'!\"&H3738),\"\")","v":""}]
[3734,{"$nulls":3},true,{"$f":"IF(G3739<>\"\",INDIRECT(\"'\"&G3739&\"'!\"&H3739),\"\")","v":""}]
[3735,{"$nulls":3},true,{"$f":"IF(G3740<>\"\",INDIRECT(\"'\"&G3740&\"'!\"&H3740),\"\")","v":""}]
[3736,{"$nulls":3},true,{"$f":"IF(G3741<>\"\",INDIRECT(\"'\"&G3741&\"'!\"&H3741),\"\")","v":""}]
[3737,{"$nulls":3},true,{"$f":"IF(G3742<>\"\",INDIRECT(\"'\"&G3742&\"'!\"&H3742),\"\")","v":""}]
[3738,{"$nulls":3},true,{"$f":"IF(G3743<>\"\",INDIRECT(\"'\"&G3743&\"'!\"&H3743),\"\")","v":""}]
[3739,{"$nulls":3},true,{"$f":"IF(G3744<>\"\",INDIRECT(\"'\"&G3744&\"'!\"&H3744),\"\")","v":""}]
[3740,{"$nulls":3},true,{"$f":"IF(G3745<>\"\",INDIRECT(\"'\"&G3745&\"'!\"&H3745),\"\")","v":""}]
[3741,{"$nulls":3},true,{"$f":"IF(G3746<>\"\",INDIRECT(\"'\"&G3746&\"'!\"&H3746),\"\")","v":""}]
[3742,{"$nulls":3},true,{"$f":"IF(G3747<>\"\",INDIRECT(\"'\"&G3747&\"'!\"&H3747),\"\")","v":""}]
[3743,{"$nulls":3},true,{"$f":"IF(G3748<>\"\",INDIRECT(\"'\"&G3748&\"'!\"&H3748),\"\")","v":""}]
[3744,{"$nulls":3},true,{"$f":"IF(G3749<>\"\",INDIRECT(\"'\"&G3749&\"'!\"&H3749),\"\")","v":""}]
[3745,{"$nulls":3},true,{"$f":"IF(G3750<>\"\",INDIRECT(\"'\"&G3750&\"'!\"&H3750),\"\")","v":""}]
[3746,{"$nulls":3},true,{"$f":"IF(G3751<>\"\",INDIRECT(\"'\"&G3751&\"'!\"&H3751),\"\")","v":""}]
[3747,{"$nulls":3},true,{"$f":"IF(G3752<>\"\",INDIRECT(\"'\"&G3752&\"'!\"&H3752),\"\")","v":""}]
[3748,{"$nulls":3},true,{"$f":"IF(G3753<>\"\",INDIRECT(\"'\"&G3753&\"'!\"&H3753),\"\")","v":""}]
[3749,{"$nulls":3},true,{"$f":"IF(G3754<>\"\",INDIRECT(\"'\"&G3754&\"'!\"&H3754),\"\")","v":""}]
[3750,{"$nulls":3},true,{"$f":"IF(G3755<>\"\",INDIRECT(\"'\"&G3755&\"'!\"&H3755),\"\")","v":""}]
[3751,{"$nulls":3},true,{"$f":"IF(G3756<>\"\",INDIRECT(\"'\"&G3756&\"'!\"&H3756),\"\")","v":""}]
[3752,{"$nulls":3},true,{"$f":"IF(G3757<>\"\",INDIRECT(\"'\"&G3757&\"'!\"&H3757),\"\")","v":""}]
[3753,{"$nulls":3},true,{"$f":"IF(G3758<>\"\",INDIRECT(\"'\"&G3758&\"'!\"&H3758),\"\")","v":""}]
[3754,{"$nulls":3},true,{"$f":"IF(G3759<>\"\",INDIRECT(\"'\"&G3759&\"'!\"&H3759),\"\")","v":""}]
[3755,{"$nulls":3},true,{"$f":"IF(G3760<>\"\",INDIRECT(\"'\"&G3760&\"'!\"&H3760),\"\")","v":""}]
[3756,{"$nulls":3},true,{"$f":"IF(G3761<>\"\",INDIRECT(\"'\"&G3761&\"'!\"&H3761),\"\")","v":""}]
[3757,{"$nulls":3},true,{"$f":"IF(G3762<>\"\",INDIRECT(\"'\"&G3762&\"'!\"&H3762),\"\")","v":""}]
[3758,{"$nulls":3},true,{"$f":"IF(G3763<>\"\",INDIRECT(\"'\"&G3763&\"'!\"&H3763),\"\")","v":""}]
[3759,{"$nulls":3},true,{"$f":"IF(G3764<>\"\",INDIRECT(\"'\"&G3764&\"'!\"&H3764),\"\")","v":""}]
[3760,{"$nulls":3},true,{"$f":"IF(G3765<>\"\",INDIRECT(\"'\"&G3765&\"'!\"&H3765),\"\")","v":""}]
[3761,{"$nulls":3},true,{"$f":"IF(G3766<>\"\",INDIRECT(\"'\"&G3766&\"'!\"&H3766),\"\")","v":""}]
[3762,{"$nulls":3},true,{"$f":"IF(G3767<>\"\",INDIRECT(\"'\"&G3767&\"'!\"&H3767),\"\")","v":""}]
[3763,{"$nulls":3},true,{"$f":"IF(G3768<>\"\",INDIRECT(\"'\"&G3768&\"'!\"&H3768),\"\")","v":""}]
[3764,{"$nulls":3},true,{"$f":"IF(G3769<>\"\",INDIRECT(\"'\"&G3769&\"'!\"&H3769),\"\")","v":""}]
[3765,{"$nulls":3},true,{"$f":"IF(G3770<>\"\",INDIRECT(\"'\"&G3770&\"'!\"&H3770),\"\")","v":""}]
[3766,{"$nulls":3},true,{"$f":"IF(G3771<>\"\",INDIRECT(\"'\"&G3771&\"'!\"&H3771),\"\")","v":""}]
[3767,{"$nulls":3},true,{"$f":"IF(G3772<>\"\",INDIRECT(\"'\"&G3772&\"'!\"&H3772),\"\")","v":""}]
[3768,{"$nulls":3},true,{"$f":"IF(G3773<>\"\",INDIRECT(\"'\"&G3773&\"'!\"&H3773),\"\")","v":""}]
[3769,{"$nulls":3},true,{"$f":"IF(G3774<>\"\",INDIRECT(\"'\"&G3774&\"'!\"&H3774),\"\")","v":""}]
[3770,{"$nulls":3},true,{"$f":"IF(G3775<>\"\",INDIRECT(\"'\"&G3775&\"'!\"&H3775),\"\")","v":""}]
[3771,{"$nulls":3},true,{"$f":"IF(G3776<>\"\",INDIRECT(\"'\"&G3776&\"'!\"&H3776),\"\")","v":""}]
[3772,{"$nulls":3},true,{"$f":"IF(G3777<>\"\",INDIRECT(\"'\"&G3777&\"'!\"&H3777),\"\")","v":""}]
[3773,{"$nulls":3},{"$f":"F3778=B3778","v":true},{"$f":"IF(G3778<>\"\",INDIRECT(\"'\"&G3778&\"'!\"&H3778),\"\")","v":""}]
[3774,{"$nulls":3},true,{"$f":"IF(G3779<>\"\",INDIRECT(\"'\"&G3779&\"'!\"&H3779),\"\")","v":""}]
[3775,{"$nulls":3},true,{"$f":"IF(G3780<>\"\",INDIRECT(\"'\"&G3780&\"'!\"&H3780),\"\")","v":""}]
[3776,{"$nulls":3},true,{"$f":"IF(G3781<>\"\",INDIRECT(\"'\"&G3781&\"'!\"&H3781),\"\")","v":""}]
[3777,{"$nulls":3},true,{"$f":"IF(G3782<>\"\",INDIRECT(\"'\"&G3782&\"'!\"&H3782),\"\")","v":""}]
[3778,{"$nulls":3},true,{"$f":"IF(G3783<>\"\",INDIRECT(\"'\"&G3783&\"'!\"&H3783),\"\")","v":""}]
[3779,{"$nulls":3},true,{"$f":"IF(G3784<>\"\",INDIRECT(\"'\"&G3784&\"'!\"&H3784),\"\")","v":""}]
[3780,{"$nulls":3},true,{"$f":"IF(G3785<>\"\",INDIRECT(\"'\"&G3785&\"'!\"&H3785),\"\")","v":""}]
[3781,{"$nulls":3},true,{"$f":"IF(G3786<>\"\",INDIRECT(\"'\"&G3786&\"'!\"&H3786),\"\")","v":""}]
[3782,{"$nulls":3},true,{"$f":"IF(G3787<>\"\",INDIRECT(\"'\"&G3787&\"'!\"&H3787),\"\")","v":""}]
[3783,{"$nulls":3},true,{"$f":"IF(G3788<>\"\",INDIRECT(\"'\"&G3788&\"'!\"&H3788),\"\")","v":""}]
[3784,{"$nulls":3},true,{"$f":"IF(G3789<>\"\",INDIRECT(\"'\"&G3789&\"'!\"&H3789),\"\")","v":""}]
[3785,{"$nulls":3},true,{"$f":"IF(G3790<>\"\",INDIRECT(\"'\"&G3790&\"'!\"&H3790),\"\")","v":""}]
[3786,{"$nulls":3},true,{"$f":"IF(G3791<>\"\",INDIRECT(\"'\"&G3791&\"'!\"&H3791),\"\")","v":""}]
[3787,{"$nulls":3},true,{"$f":"IF(G3792<>\"\",INDIRECT(\"'\"&G3792&\"'!\"&H3792),\"\")","v":""}]
[3788,{"$nulls":3},true,{"$f":"IF(G3793<>\"\",INDIRECT(\"'\"&G3793&\"'!\"&H3793),\"\")","v":""}]
[3789,{"$nulls":3},true,{"$f":"IF(G3794<>\"\",INDIRECT(\"'\"&G3794&\"'!\"&H3794),\"\")","v":""}]
[3790,{"$nulls":3},true,{"$f":"IF(G3795<>\"\",INDIRECT(\"'\"&G3795&\"'!\"&H3795),\"\")","v":""}]
[3791,{"$nulls":3},true,{"$f":"IF(G3796<>\"\",INDIRECT(\"'\"&G3796&\"'!\"&H3796),\"\")","v":""}]
[3792,{"$nulls":3},true,{"$f":"IF(G3797<>\"\",INDIRECT(\"'\"&G3797&\"'!\"&H3797),\"\")","v":""}]
[3793,{"$nulls":3},true,{"$f":"IF(G3798<>\"\",INDIRECT(\"'\"&G3798&\"'!\"&H3798),\"\")","v":""}]
[3794,{"$nulls":3},true,{"$f":"IF(G3799<>\"\",INDIRECT(\"'\"&G3799&\"'!\"&H3799),\"\")","v":""}]
[3795,{"$nulls":3},true,{"$f":"IF(G3800<>\"\",INDIRECT(\"'\"&G3800&\"'!\"&H3800),\"\")","v":""}]
[3796,{"$nulls":3},true,{"$f":"IF(G3801<>\"\",INDIRECT(\"'\"&G3801&\"'!\"&H3801),\"\")","v":""}]
[3797,{"$nulls":3},true,{"$f":"IF(G3802<>\"\",INDIRECT(\"'\"&G3802&\"'!\"&H3802),\"\")","v":""}]
[3798,{"$nulls":3},true,{"$f":"IF(G3803<>\"\",INDIRECT(\"'\"&G3803&\"'!\"&H3803),\"\")","v":""}]
[3799,{"$nulls":3},true,{"$f":"IF(G3804<>\"\",INDIRECT(\"'\"&G3804&\"'!\"&H3804),\"\")","v":""}]
[3800,{"$nulls":3},true,{"$f":"IF(G3805<>\"\",INDIRECT(\"'\"&G3805&\"'!\"&H3805),\"\")","v":""}]
[3801,{"$nulls":3},true,{"$f":"IF(G3806<>\"\",INDIRECT(\"'\"&G3806&\"'!\"&H3806),\"\")","v":""}]
[3802,{"$nulls":3},true,{"$f":"IF(G3807<>\"\",INDIRECT(\"'\"&G3807&\"'!\"&H3807),\"\")","v":""}]
[3803,{"$nulls":3},true,{"$f":"IF(G3808<>\"\",INDIRECT(\"'\"&G3808&\"'!\"&H3808),\"\")","v":""}]
[3804,{"$nulls":3},true,{"$f":"IF(G3809<>\"\",INDIRECT(\"'\"&G3809&\"'!\"&H3809),\"\")","v":""}]
[3805,{"$nulls":3},true,{"$f":"IF(G3810<>\"\",INDIRECT(\"'\"&G3810&\"'!\"&H3810),\"\")","v":""}]
[3806,{"$nulls":3},true,{"$f":"IF(G3811<>\"\",INDIRECT(\"'\"&G3811&\"'!\"&H3811),\"\")","v":""}]
[3807,{"$nulls":3},true,{"$f":"IF(G3812<>\"\",INDIRECT(\"'\"&G3812&\"'!\"&H3812),\"\")","v":""}]
[3808,{"$nulls":3},true,{"$f":"IF(G3813<>\"\",INDIRECT(\"'\"&G3813&\"'!\"&H3813),\"\")","v":""}]
[3809,{"$nulls":3},true,{"$f":"IF(G3814<>\"\",INDIRECT(\"'\"&G3814&\"'!\"&H3814),\"\")","v":""}]
[3810,{"$nulls":3},true,{"$f":"IF(G3815<>\"\",INDIRECT(\"'\"&G3815&\"'!\"&H3815),\"\")","v":""}]
[3811,{"$nulls":3},true,{"$f":"IF(G3816<>\"\",INDIRECT(\"'\"&G3816&\"'!\"&H3816),\"\")","v":""}]
[3812,{"$nulls":3},true,{"$f":"IF(G3817<>\"\",INDIRECT(\"'\"&G3817&\"'!\"&H3817),\"\")","v":""}]
[3813,{"$nulls":3},true,{"$f":"IF(G3818<>\"\",INDIRECT(\"'\"&G3818&\"'!\"&H3818),\"\")","v":""}]
[3814,{"$nulls":3},true,{"$f":"IF(G3819<>\"\",INDIRECT(\"'\"&G3819&\"'!\"&H3819),\"\")","v":""}]
[3815,{"$nulls":3},true,{"$f":"IF(G3820<>\"\",INDIRECT(\"'\"&G3820&\"'!\"&H3820),\"\")","v":""}]
[3816,{"$nulls":3},true,{"$f":"IF(G3821<>\"\",INDIRECT(\"'\"&G3821&\"'!\"&H3821),\"\")","v":""}]
[3817,{"$nulls":3},true,{"$f":"IF(G3822<>\"\",INDIRECT(\"'\"&G3822&\"'!\"&H3822),\"\")","v":""}]
[3818,{"$nulls":3},true,{"$f":"IF(G3823<>\"\",INDIRECT(\"'\"&G3823&\"'!\"&H3823),\"\")","v":""}]
[3819,{"$nulls":3},true,{"$f":"IF(G3824<>\"\",INDIRECT(\"'\"&G3824&\"'!\"&H3824),\"\")","v":""}]
[3820,{"$nulls":3},true,{"$f":"IF(G3825<>\"\",INDIRECT(\"'\"&G3825&\"'!\"&H3825),\"\")","v":""}]
[3821,{"$nulls":3},true,{"$f":"IF(G3826<>\"\",INDIRECT(\"'\"&G3826&\"'!\"&H3826),\"\")","v":""}]
[3822,{"$nulls":3},true,{"$f":"IF(G3827<>\"\",INDIRECT(\"'\"&G3827&\"'!\"&H3827),\"\")","v":""}]
[3823,{"$nulls":3},true,{"$f":"IF(G3828<>\"\",INDIRECT(\"'\"&G3828&\"'!\"&H3828),\"\")","v":""}]
[3824,{"$nulls":3},true,{"$f":"IF(G3829<>\"\",INDIRECT(\"'\"&G3829&\"'!\"&H3829),\"\")","v":""}]
[3825,{"$nulls":3},true,{"$f":"IF(G3830<>\"\",INDIRECT(\"'\"&G3830&\"'!\"&H3830),\"\")","v":""}]
[3826,{"$nulls":3},true,{"$f":"IF(G3831<>\"\",INDIRECT(\"'\"&G3831&\"'!\"&H3831),\"\")","v":""}]
[3827,{"$nulls":3},true,{"$f":"IF(G3832<>\"\",INDIRECT(\"'\"&G3832&\"'!\"&H3832),\"\")","v":""}]
[3828,{"$nulls":3},true,{"$f":"IF(G3833<>\"\",INDIRECT(\"'\"&G3833&\"'!\"&H3833),\"\")","v":""}]
[3829,{"$nulls":3},true,{"$f":"IF(G3834<>\"\",INDIRECT(\"'\"&G3834&\"'!\"&H3834),\"\")","v":""}]
[3830,{"$nulls":3},true,{"$f":"IF(G3835<>\"\",INDIRECT(\"'\"&G3835&\"'!\"&H3835),\"\")","v":""}]
[3831,{"$nulls":3},true,{"$f":"IF(G3836<>\"\",INDIRECT(\"'\"&G3836&\"'!\"&H3836),\"\")","v":""}]
[3832,{"$nulls":3},true,{"$f":"IF(G3837<>\"\",INDIRECT(\"'\"&G3837&\"'!\"&H3837),\"\")","v":""}]
[3833,{"$nulls":3},true,{"$f":"IF(G3838<>\"\",INDIRECT(\"'\"&G3838&\"'!\"&H3838),\"\")","v":""}]
[3834,{"$nulls":3},true,{"$f":"IF(G3839<>\"\",INDIRECT(\"'\"&G3839&\"'!\"&H3839),\"\")","v":""}]
[3835,{"$nulls":3},true,{"$f":"IF(G3840<>\"\",INDIRECT(\"'\"&G3840&\"'!\"&H3840),\"\")","v":""}]
[3836,{"$nulls":3},true,{"$f":"IF(G3841<>\"\",INDIRECT(\"'\"&G3841&\"'!\"&H3841),\"\")","v":""}]
[3837,{"$nulls":3},{"$f":"F3842=B3842","v":true},{"$f":"IF(G3842<>\"\",INDIRECT(\"'\"&G3842&\"'!\"&H3842),\"\")","v":""}]
[3838,{"$nulls":3},true,{"$f":"IF(G3843<>\"\",INDIRECT(\"'\"&G3843&\"'!\"&H3843),\"\")","v":""}]
[3839,{"$nulls":3},true,{"$f":"IF(G3844<>\"\",INDIRECT(\"'\"&G3844&\"'!\"&H3844),\"\")","v":""}]
[3840,{"$nulls":3},true,{"$f":"IF(G3845<>\"\",INDIRECT(\"'\"&G3845&\"'!\"&H3845),\"\")","v":""}]
[3841,{"$nulls":3},true,{"$f":"IF(G3846<>\"\",INDIRECT(\"'\"&G3846&\"'!\"&H3846),\"\")","v":""}]
[3842,{"$nulls":3},true,{"$f":"IF(G3847<>\"\",INDIRECT(\"'\"&G3847&\"'!\"&H3847),\"\")","v":""}]
[3843,{"$nulls":3},true,{"$f":"IF(G3848<>\"\",INDIRECT(\"'\"&G3848&\"'!\"&H3848),\"\")","v":""}]
[3844,{"$nulls":3},true,{"$f":"IF(G3849<>\"\",INDIRECT(\"'\"&G3849&\"'!\"&H3849),\"\")","v":""}]
[3845,{"$nulls":3},true,{"$f":"IF(G3850<>\"\",INDIRECT(\"'\"&G3850&\"'!\"&H3850),\"\")","v":""}]
[3846,{"$nulls":3},true,{"$f":"IF(G3851<>\"\",INDIRECT(\"'\"&G3851&\"'!\"&H3851),\"\")","v":""}]
[3847,{"$nulls":3},true,{"$f":"IF(G3852<>\"\",INDIRECT(\"'\"&G3852&\"'!\"&H3852),\"\")","v":""}]
[3848,{"$nulls":3},true,{"$f":"IF(G3853<>\"\",INDIRECT(\"'\"&G3853&\"'!\"&H3853),\"\")","v":""}]
[3849,{"$nulls":3},true,{"$f":"IF(G3854<>\"\",INDIRECT(\"'\"&G3854&\"'!\"&H3854),\"\")","v":""}]
[3850,{"$nulls":3},true,{"$f":"IF(G3855<>\"\",INDIRECT(\"'\"&G3855&\"'!\"&H3855),\"\")","v":""}]
[3851,{"$nulls":3},true,{"$f":"IF(G3856<>\"\",INDIRECT(\"'\"&G3856&\"'!\"&H3856),\"\")","v":""}]
[3852,{"$nulls":3},true,{"$f":"IF(G3857<>\"\",INDIRECT(\"'\"&G3857&\"'!\"&H3857),\"\")","v":""}]
[3853,{"$nulls":3},true,{"$f":"IF(G3858<>\"\",INDIRECT(\"'\"&G3858&\"'!\"&H3858),\"\")","v":""}]
[3854,{"$nulls":3},true,{"$f":"IF(G3859<>\"\",INDIRECT(\"'\"&G3859&\"'!\"&H3859),\"\")","v":""}]
[3855,{"$nulls":3},true,{"$f":"IF(G3860<>\"\",INDIRECT(\"'\"&G3860&\"'!\"&H3860),\"\")","v":""}]
[3856,{"$nulls":3},true,{"$f":"IF(G3861<>\"\",INDIRECT(\"'\"&G3861&\"'!\"&H3861),\"\")","v":""}]
[3857,{"$nulls":3},true,{"$f":"IF(G3862<>\"\",INDIRECT(\"'\"&G3862&\"'!\"&H3862),\"\")","v":""}]
[3858,{"$nulls":3},true,{"$f":"IF(G3863<>\"\",INDIRECT(\"'\"&G3863&\"'!\"&H3863),\"\")","v":""}]
[3859,{"$nulls":3},true,{"$f":"IF(G3864<>\"\",INDIRECT(\"'\"&G3864&\"'!\"&H3864),\"\")","v":""}]
[3860,{"$nulls":3},true,{"$f":"IF(G3865<>\"\",INDIRECT(\"'\"&G3865&\"'!\"&H3865),\"\")","v":""}]
[3861,{"$nulls":3},true,{"$f":"IF(G3866<>\"\",INDIRECT(\"'\"&G3866&\"'!\"&H3866),\"\")","v":""}]
[3862,{"$nulls":3},true,{"$f":"IF(G3867<>\"\",INDIRECT(\"'\"&G3867&\"'!\"&H3867),\"\")","v":""}]
[3863,{"$nulls":3},true,{"$f":"IF(G3868<>\"\",INDIRECT(\"'\"&G3868&\"'!\"&H3868),\"\")","v":""}]
[3864,{"$nulls":3},true,{"$f":"IF(G3869<>\"\",INDIRECT(\"'\"&G3869&\"'!\"&H3869),\"\")","v":""}]
[3865,{"$nulls":3},true,{"$f":"IF(G3870<>\"\",INDIRECT(\"'\"&G3870&\"'!\"&H3870),\"\")","v":""}]
[3866,{"$nulls":3},true,{"$f":"IF(G3871<>\"\",INDIRECT(\"'\"&G3871&\"'!\"&H3871),\"\")","v":""}]
[3867,{"$nulls":3},true,{"$f":"IF(G3872<>\"\",INDIRECT(\"'\"&G3872&\"'!\"&H3872),\"\")","v":""}]
[3868,{"$nulls":3},true,{"$f":"IF(G3873<>\"\",INDIRECT(\"'\"&G3873&\"'!\"&H3873),\"\")","v":""}]
[3869,{"$nulls":3},true,{"$f":"IF(G3874<>\"\",INDIRECT(\"'\"&G3874&\"'!\"&H3874),\"\")","v":""}]
[3870,{"$nulls":3},true,{"$f":"IF(G3875<>\"\",INDIRECT(\"'\"&G3875&\"'!\"&H3875),\"\")","v":""}]
[3871,{"$nulls":3},true,{"$f":"IF(G3876<>\"\",INDIRECT(\"'\"&G3876&\"'!\"&H3876),\"\")","v":""}]
[3872,{"$nulls":3},true,{"$f":"IF(G3877<>\"\",INDIRECT(\"'\"&G3877&\"'!\"&H3877),\"\")","v":""}]
[3873,{"$nulls":3},true,{"$f":"IF(G3878<>\"\",INDIRECT(\"'\"&G3878&\"'!\"&H3878),\"\")","v":""}]
[3874,{"$nulls":3},true,{"$f":"IF(G3879<>\"\",INDIRECT(\"'\"&G3879&\"'!\"&H3879),\"\")","v":""}]
[3875,{"$nulls":3},true,{"$f":"IF(G3880<>\"\",INDIRECT(\"'\"&G3880&\"'!\"&H3880),\"\")","v":""}]
[3876,{"$nulls":3},true,{"$f":"IF(G3881<>\"\",INDIRECT(\"'\"&G3881&\"'!\"&H3881),\"\")","v":""}]
[3877,{"$nulls":3},true,{"$f":"IF(G3882<>\"\",INDIRECT(\"'\"&G3882&\"'!\"&H3882),\"\")","v":""}]
[3878,{"$nulls":3},true,{"$f":"IF(G3883<>\"\",INDIRECT(\"'\"&G3883&\"'!\"&H3883),\"\")","v":""}]
[3879,{"$nulls":3},true,{"$f":"IF(G3884<>\"\",INDIRECT(\"'\"&G3884&\"'!\"&H3884),\"\")","v":""}]
[3880,{"$nulls":3},true,{"$f":"IF(G3885<>\"\",INDIRECT(\"'\"&G3885&\"'!\"&H3885),\"\")","v":""}]
[3881,{"$nulls":3},true,{"$f":"IF(G3886<>\"\",INDIRECT(\"'\"&G3886&\"'!\"&H3886),\"\")","v":""}]
[3882,{"$nulls":3},true,{"$f":"IF(G3887<>\"\",INDIRECT(\"'\"&G3887&\"'!\"&H3887),\"\")","v":""}]
[3883,{"$nulls":3},true,{"$f":"IF(G3888<>\"\",INDIRECT(\"'\"&G3888&\"'!\"&H3888),\"\")","v":""}]
[3884,{"$nulls":3},true,{"$f":"IF(G3889<>\"\",INDIRECT(\"'\"&G3889&\"'!\"&H3889),\"\")","v":""}]
[3885,{"$nulls":3},true,{"$f":"IF(G3890<>\"\",INDIRECT(\"'\"&G3890&\"'!\"&H3890),\"\")","v":""}]
[3886,{"$nulls":3},true,{"$f":"IF(G3891<>\"\",INDIRECT(\"'\"&G3891&\"'!\"&H3891),\"\")","v":""}]
[3887,{"$nulls":3},true,{"$f":"IF(G3892<>\"\",INDIRECT(\"'\"&G3892&\"'!\"&H3892),\"\")","v":""}]
[3888,{"$nulls":3},true,{"$f":"IF(G3893<>\"\",INDIRECT(\"'\"&G3893&\"'!\"&H3893),\"\")","v":""}]
[3889,{"$nulls":3},true,{"$f":"IF(G3894<>\"\",INDIRECT(\"'\"&G3894&\"'!\"&H3894),\"\")","v":""}]
[3890,{"$nulls":3},true,{"$f":"IF(G3895<>\"\",INDIRECT(\"'\"&G3895&\"'!\"&H3895),\"\")","v":""}]
[3891,{"$nulls":3},true,{"$f":"IF(G3896<>\"\",INDIRECT(\"'\"&G3896&\"'!\"&H3896),\"\")","v":""}]
[3892,{"$nulls":3},true,{"$f":"IF(G3897<>\"\",INDIRECT(\"'\"&G3897&\"'!\"&H3897),\"\")","v":""}]
[3893,{"$nulls":3},true,{"$f":"IF(G3898<>\"\",INDIRECT(\"'\"&G3898&\"'!\"&H3898),\"\")","v":""}]
[3894,{"$nulls":3},true,{"$f":"IF(G3899<>\"\",INDIRECT(\"'\"&G3899&\"'!\"&H3899),\"\")","v":""}]
[3895,{"$nulls":3},true,{"$f":"IF(G3900<>\"\",INDIRECT(\"'\"&G3900&\"'!\"&H3900),\"\")","v":""}]
[3896,{"$nulls":3},true,{"$f":"IF(G3901<>\"\",INDIRECT(\"'\"&G3901&\"'!\"&H3901),\"\")","v":""}]
[3897,{"$nulls":3},true,{"$f":"IF(G3902<>\"\",INDIRECT(\"'\"&G3902&\"'!\"&H3902),\"\")","v":""}]
[3898,{"$nulls":3},true,{"$f":"IF(G3903<>\"\",INDIRECT(\"'\"&G3903&\"'!\"&H3903),\"\")","v":""}]
[3899,{"$nulls":3},true,{"$f":"IF(G3904<>\"\",INDIRECT(\"'\"&G3904&\"'!\"&H3904),\"\")","v":""}]
[3900,{"$nulls":3},true,{"$f":"IF(G3905<>\"\",INDIRECT(\"'\"&G3905&\"'!\"&H3905),\"\")","v":""}]
[3901,{"$nulls":3},{"$f":"F3906=B3906","v":true},{"$f":"IF(G3906<>\"\",INDIRECT(\"'\"&G3906&\"'!\"&H3906),\"\")","v":""}]
[3902,{"$nulls":3},true,{"$f":"IF(G3907<>\"\",INDIRECT(\"'\"&G3907&\"'!\"&H3907),\"\")","v":""}]
[3903,{"$nulls":3},true,{"$f":"IF(G3908<>\"\",INDIRECT(\"'\"&G3908&\"'!\"&H3908),\"\")","v":""}]
[3904,{"$nulls":3},true,{"$f":"IF(G3909<>\"\",INDIRECT(\"'\"&G3909&\"'!\"&H3909),\"\")","v":""}]
[3905,{"$nulls":3},true,{"$f":"IF(G3910<>\"\",INDIRECT(\"'\"&G3910&\"'!\"&H3910),\"\")","v":""}]
[3906,{"$nulls":3},true,{"$f":"IF(G3911<>\"\",INDIRECT(\"'\"&G3911&\"'!\"&H3911),\"\")","v":""}]
[3907,{"$nulls":3},true,{"$f":"IF(G3912<>\"\",INDIRECT(\"'\"&G3912&\"'!\"&H3912),\"\")","v":""}]
[3908,{"$nulls":3},true,{"$f":"IF(G3913<>\"\",INDIRECT(\"'\"&G3913&\"'!\"&H3913),\"\")","v":""}]
[3909,{"$nulls":3},true,{"$f":"IF(G3914<>\"\",INDIRECT(\"'\"&G3914&\"'!\"&H3914),\"\")","v":""}]
[3910,{"$nulls":3},true,{"$f":"IF(G3915<>\"\",INDIRECT(\"'\"&G3915&\"'!\"&H3915),\"\")","v":""}]
[3911,{"$nulls":3},true,{"$f":"IF(G3916<>\"\",INDIRECT(\"'\"&G3916&\"'!\"&H3916),\"\")","v":""}]
[3912,{"$nulls":3},true,{"$f":"IF(G3917<>\"\",INDIRECT(\"'\"&G3917&\"'!\"&H3917),\"\")","v":""}]
[3913,{"$nulls":3},true,{"$f":"IF(G3918<>\"\",INDIRECT(\"'\"&G3918&\"'!\"&H3918),\"\")","v":""}]
[3914,{"$nulls":3},true,{"$f":"IF(G3919<>\"\",INDIRECT(\"'\"&G3919&\"'!\"&H3919),\"\")","v":""}]
[3915,{"$nulls":3},true,{"$f":"IF(G3920<>\"\",INDIRECT(\"'\"&G3920&\"'!\"&H3920),\"\")","v":""}]
[3916,{"$nulls":3},true,{"$f":"IF(G3921<>\"\",INDIRECT(\"'\"&G3921&\"'!\"&H3921),\"\")","v":""}]
[3917,{"$nulls":3},true,{"$f":"IF(G3922<>\"\",INDIRECT(\"'\"&G3922&\"'!\"&H3922),\"\")","v":""}]
[3918,{"$nulls":3},true,{"$f":"IF(G3923<>\"\",INDIRECT(\"'\"&G3923&\"'!\"&H3923),\"\")","v":""}]
[3919,{"$nulls":3},true,{"$f":"IF(G3924<>\"\",INDIRECT(\"'\"&G3924&\"'!\"&H3924),\"\")","v":""}]
[3920,{"$nulls":3},true,{"$f":"IF(G3925<>\"\",INDIRECT(\"'\"&G3925&\"'!\"&H3925),\"\")","v":""}]
[3921,{"$nulls":3},true,{"$f":"IF(G3926<>\"\",INDIRECT(\"'\"&G3926&\"'!\"&H3926),\"\")","v":""}]
[3922,{"$nulls":3},true,{"$f":"IF(G3927<>\"\",INDIRECT(\"'\"&G3927&\"'!\"&H3927),\"\")","v":""}]
[3923,{"$nulls":3},true,{"$f":"IF(G3928<>\"\",INDIRECT(\"'\"&G3928&\"'!\"&H3928),\"\")","v":""}]
[3924,{"$nulls":3},true,{"$f":"IF(G3929<>\"\",INDIRECT(\"'\"&G3929&\"'!\"&H3929),\"\")","v":""}]
[3925,{"$nulls":3},true,{"$f":"IF(G3930<>\"\",INDIRECT(\"'\"&G3930&\"'!\"&H3930),\"\")","v":""}]
[3926,{"$nulls":3},true,{"$f":"IF(G3931<>\"\",INDIRECT(\"'\"&G3931&\"'!\"&H3931),\"\")","v":""}]
[3927,{"$nulls":3},true,{"$f":"IF(G3932<>\"\",INDIRECT(\"'\"&G3932&\"'!\"&H3932),\"\")","v":""}]
[3928,{"$nulls":3},true,{"$f":"IF(G3933<>\"\",INDIRECT(\"'\"&G3933&\"'!\"&H3933),\"\")","v":""}]
[3929,{"$nulls":3},true,{"$f":"IF(G3934<>\"\",INDIRECT(\"'\"&G3934&\"'!\"&H3934),\"\")","v":""}]
[3930,{"$nulls":3},true,{"$f":"IF(G3935<>\"\",INDIRECT(\"'\"&G3935&\"'!\"&H3935),\"\")","v":""}]
[3931,{"$nulls":3},true,{"$f":"IF(G3936<>\"\",INDIRECT(\"'\"&G3936&\"'!\"&H3936),\"\")","v":""}]
[3932,{"$nulls":3},true,{"$f":"IF(G3937<>\"\",INDIRECT(\"'\"&G3937&\"'!\"&H3937),\"\")","v":""}]
[3933,{"$nulls":3},true,{"$f":"IF(G3938<>\"\",INDIRECT(\"'\"&G3938&\"'!\"&H3938),\"\")","v":""}]
[3934,{"$nulls":3},true,{"$f":"IF(G3939<>\"\",INDIRECT(\"'\"&G3939&\"'!\"&H3939),\"\")","v":""}]
[3935,{"$nulls":3},true,{"$f":"IF(G3940<>\"\",INDIRECT(\"'\"&G3940&\"'!\"&H3940),\"\")","v":""}]
[3936,{"$nulls":3},true,{"$f":"IF(G3941<>\"\",INDIRECT(\"'\"&G3941&\"'!\"&H3941),\"\")","v":""}]
[3937,{"$nulls":3},true,{"$f":"IF(G3942<>\"\",INDIRECT(\"'\"&G3942&\"'!\"&H3942),\"\")","v":""}]
[3938,{"$nulls":3},true,{"$f":"IF(G3943<>\"\",INDIRECT(\"'\"&G3943&\"'!\"&H3943),\"\")","v":""}]
[3939,{"$nulls":3},true,{"$f":"IF(G3944<>\"\",INDIRECT(\"'\"&G3944&\"'!\"&H3944),\"\")","v":""}]
[3940,{"$nulls":3},true,{"$f":"IF(G3945<>\"\",INDIRECT(\"'\"&G3945&\"'!\"&H3945),\"\")","v":""}]
[3941,{"$nulls":3},true,{"$f":"IF(G3946<>\"\",INDIRECT(\"'\"&G3946&\"'!\"&H3946),\"\")","v":""}]
[3942,{"$nulls":3},true,{"$f":"IF(G3947<>\"\",INDIRECT(\"'\"&G3947&\"'!\"&H3947),\"\")","v":""}]
[3943,{"$nulls":3},true,{"$f":"IF(G3948<>\"\",INDIRECT(\"'\"&G3948&\"'!\"&H3948),\"\")","v":""}]
[3944,{"$nulls":3},true,{"$f":"IF(G3949<>\"\",INDIRECT(\"'\"&G3949&\"'!\"&H3949),\"\")","v":""}]
[3945,{"$nulls":3},true,{"$f":"IF(G3950<>\"\",INDIRECT(\"'\"&G3950&\"'!\"&H3950),\"\")","v":""}]
[3946,{"$nulls":3},true,{"$f":"IF(G3951<>\"\",INDIRECT(\"'\"&G3951&\"'!\"&H3951),\"\")","v":""}]
[3947,{"$nulls":3},true,{"$f":"IF(G3952<>\"\",INDIRECT(\"'\"&G3952&\"'!\"&H3952),\"\")","v":""}]
[3948,{"$nulls":3},true,{"$f":"IF(G3953<>\"\",INDIRECT(\"'\"&G3953&\"'!\"&H3953),\"\")","v":""}]
[3949,{"$nulls":3},true,{"$f":"IF(G3954<>\"\",INDIRECT(\"'\"&G3954&\"'!\"&H3954),\"\")","v":""}]
[3950,{"$nulls":3},true,{"$f":"IF(G3955<>\"\",INDIRECT(\"'\"&G3955&\"'!\"&H3955),\"\")","v":""}]
[3951,{"$nulls":3},true,{"$f":"IF(G3956<>\"\",INDIRECT(\"'\"&G3956&\"'!\"&H3956),\"\")","v":""}]
[3952,{"$nulls":3},true,{"$f":"IF(G3957<>\"\",INDIRECT(\"'\"&G3957&\"'!\"&H3957),\"\")","v":""}]
[3953,{"$nulls":3},true,{"$f":"IF(G3958<>\"\",INDIRECT(\"'\"&G3958&\"'!\"&H3958),\"\")","v":""}]
[3954,{"$nulls":3},true,{"$f":"IF(G3959<>\"\",INDIRECT(\"'\"&G3959&\"'!\"&H3959),\"\")","v":""}]
[3955,{"$nulls":3},true,{"$f":"IF(G3960<>\"\",INDIRECT(\"'\"&G3960&\"'!\"&H3960),\"\")","v":""}]
[3956,{"$nulls":3},true,{"$f":"IF(G3961<>\"\",INDIRECT(\"'\"&G3961&\"'!\"&H3961),\"\")","v":""}]
[3957,{"$nulls":3},true,{"$f":"IF(G3962<>\"\",INDIRECT(\"'\"&G3962&\"'!\"&H3962),\"\")","v":""}]
[3958,{"$nulls":3},true,{"$f":"IF(G3963<>\"\",INDIRECT(\"'\"&G3963&\"'!\"&H3963),\"\")","v":""}]
[3959,{"$nulls":3},true,{"$f":"IF(G3964<>\"\",INDIRECT(\"'\"&G3964&\"'!\"&H3964),\"\")","v":""}]
[3960,{"$nulls":3},true,{"$f":"IF(G3965<>\"\",INDIRECT(\"'\"&G3965&\"'!\"&H3965),\"\")","v":""}]
[3961,{"$nulls":3},true,{"$f":"IF(G3966<>\"\",INDIRECT(\"'\"&G3966&\"'!\"&H3966),\"\")","v":""}]
[3962,{"$nulls":3},true,{"$f":"IF(G3967<>\"\",INDIRECT(\"'\"&G3967&\"'!\"&H3967),\"\")","v":""}]
[3963,{"$nulls":3},true,{"$f":"IF(G3968<>\"\",INDIRECT(\"'\"&G3968&\"'!\"&H3968),\"\")","v":""}]
[3964,{"$nulls":3},true,{"$f":"IF(G3969<>\"\",INDIRECT(\"'\"&G3969&\"'!\"&H3969),\"\")","v":""}]
[3965,{"$nulls":3},{"$f":"F3970=B3970","v":true},{"$f":"IF(G3970<>\"\",INDIRECT(\"'\"&G3970&\"'!\"&H3970),\"\")","v":""}]
[3966,{"$nulls":3},true,{"$f":"IF(G3971<>\"\",INDIRECT(\"'\"&G3971&\"'!\"&H3971),\"\")","v":""}]
[3967,{"$nulls":3},true,{"$f":"IF(G3972<>\"\",INDIRECT(\"'\"&G3972&\"'!\"&H3972),\"\")","v":""}]
[3968,{"$nulls":3},true,{"$f":"IF(G3973<>\"\",INDIRECT(\"'\"&G3973&\"'!\"&H3973),\"\")","v":""}]
[3969,{"$nulls":3},true,{"$f":"IF(G3974<>\"\",INDIRECT(\"'\"&G3974&\"'!\"&H3974),\"\")","v":""}]
[3970,{"$nulls":3},true,{"$f":"IF(G3975<>\"\",INDIRECT(\"'\"&G3975&\"'!\"&H3975),\"\")","v":""}]
[3971,{"$nulls":3},true,{"$f":"IF(G3976<>\"\",INDIRECT(\"'\"&G3976&\"'!\"&H3976),\"\")","v":""}]
[3972,{"$nulls":3},true,{"$f":"IF(G3977<>\"\",INDIRECT(\"'\"&G3977&\"'!\"&H3977),\"\")","v":""}]
[3973,{"$nulls":3},true,{"$f":"IF(G3978<>\"\",INDIRECT(\"'\"&G3978&\"'!\"&H3978),\"\")","v":""}]
[3974,{"$nulls":3},true,{"$f":"IF(G3979<>\"\",INDIRECT(\"'\"&G3979&\"'!\"&H3979),\"\")","v":""}]
[3975,{"$nulls":3},true,{"$f":"IF(G3980<>\"\",INDIRECT(\"'\"&G3980&\"'!\"&H3980),\"\")","v":""}]
[3976,{"$nulls":3},true,{"$f":"IF(G3981<>\"\",INDIRECT(\"'\"&G3981&\"'!\"&H3981),\"\")","v":""}]
[3977,{"$nulls":3},true,{"$f":"IF(G3982<>\"\",INDIRECT(\"'\"&G3982&\"'!\"&H3982),\"\")","v":""}]
[3978,{"$nulls":3},true,{"$f":"IF(G3983<>\"\",INDIRECT(\"'\"&G3983&\"'!\"&H3983),\"\")","v":""}]
[3979,{"$nulls":3},true,{"$f":"IF(G3984<>\"\",INDIRECT(\"'\"&G3984&\"'!\"&H3984),\"\")","v":""}]
[3980,{"$nulls":3},true,{"$f":"IF(G3985<>\"\",INDIRECT(\"'\"&G3985&\"'!\"&H3985),\"\")","v":""}]
[3981,{"$nulls":3},true,{"$f":"IF(G3986<>\"\",INDIRECT(\"'\"&G3986&\"'!\"&H3986),\"\")","v":""}]
[3982,{"$nulls":3},true,{"$f":"IF(G3987<>\"\",INDIRECT(\"'\"&G3987&\"'!\"&H3987),\"\")","v":""}]
[3983,{"$nulls":3},true,{"$f":"IF(G3988<>\"\",INDIRECT(\"'\"&G3988&\"'!\"&H3988),\"\")","v":""}]
[3984,{"$nulls":3},true,{"$f":"IF(G3989<>\"\",INDIRECT(\"'\"&G3989&\"'!\"&H3989),\"\")","v":""}]
[3985,{"$nulls":3},true,{"$f":"IF(G3990<>\"\",INDIRECT(\"'\"&G3990&\"'!\"&H3990),\"\")","v":""}]
[3986,{"$nulls":3},true,{"$f":"IF(G3991<>\"\",INDIRECT(\"'\"&G3991&\"'!\"&H3991),\"\")","v":""}]
[3987,{"$nulls":3},true,{"$f":"IF(G3992<>\"\",INDIRECT(\"'\"&G3992&\"'!\"&H3992),\"\")","v":""}]
[3988,{"$nulls":3},true,{"$f":"IF(G3993<>\"\",INDIRECT(\"'\"&G3993&\"'!\"&H3993),\"\")","v":""}]
[3989,{"$nulls":3},true,{"$f":"IF(G3994<>\"\",INDIRECT(\"'\"&G3994&\"'!\"&H3994),\"\")","v":""}]
[3990,{"$nulls":3},true,{"$f":"IF(G3995<>\"\",INDIRECT(\"'\"&G3995&\"'!\"&H3995),\"\")","v":""}]
[3991,{"$nulls":3},true,{"$f":"IF(G3996<>\"\",INDIRECT(\"'\"&G3996&\"'!\"&H3996),\"\")","v":""}]
[3992,{"$nulls":3},true,{"$f":"IF(G3997<>\"\",INDIRECT(\"'\"&G3997&\"'!\"&H3997),\"\")","v":""}]
[3993,{"$nulls":3},true,{"$f":"IF(G3998<>\"\",INDIRECT(\"'\"&G3998&\"'!\"&H3998),\"\")","v":""}]
[3994,{"$nulls":3},true,{"$f":"IF(G3999<>\"\",INDIRECT(\"'\"&G3999&\"'!\"&H3999),\"\")","v":""}]
[3995,{"$nulls":3},true,{"$f":"IF(G4000<>\"\",INDIRECT(\"'\"&G4000&\"'!\"&H4000),\"\")","v":""}]
[3996,{"$nulls":3},true,{"$f":"IF(G4001<>\"\",INDIRECT(\"'\"&G4001&\"'!\"&H4001),\"\")","v":""}]
[3997,{"$nulls":3},true,{"$f":"IF(G4002<>\"\",INDIRECT(\"'\"&G4002&\"'!\"&H4002),\"\")","v":""}]
[3998,{"$nulls":3},true,{"$f":"IF(G4003<>\"\",INDIRECT(\"'\"&G4003&\"'!\"&H4003),\"\")","v":""}]
[3999,{"$nulls":3},true,{"$f":"IF(G4004<>\"\",INDIRECT(\"'\"&G4004&\"'!\"&H4004),\"\")","v":""}]
[4000,{"$nulls":3},true,{"$f":"IF(G4005<>\"\",INDIRECT(\"'\"&G4005&\"'!\"&H4005),\"\")","v":""}]
[4001,{"$nulls":3},true,{"$f":"IF(G4006<>\"\",INDIRECT(\"'\"&G4006&\"'!\"&H4006),\"\")","v":""}]
[4002,{"$nulls":3},true,{"$f":"IF(G4007<>\"\",INDIRECT(\"'\"&G4007&\"'!\"&H4007),\"\")","v":""}]
[4003,{"$nulls":3},true,{"$f":"IF(G4008<>\"\",INDIRECT(\"'\"&G4008&\"'!\"&H4008),\"\")","v":""}]
[4004,{"$nulls":3},true,{"$f":"IF(G4009<>\"\",INDIRECT(\"'\"&G4009&\"'!\"&H4009),\"\")","v":""}]
[4005,{"$nulls":3},true,{"$f":"IF(G4010<>\"\",INDIRECT(\"'\"&G4010&\"'!\"&H4010),\"\")","v":""}]
[4006,{"$nulls":3},true,{"$f":"IF(G4011<>\"\",INDIRECT(\"'\"&G4011&\"'!\"&H4011),\"\")","v":""}]
[4007,{"$nulls":3},true,{"$f":"IF(G4012<>\"\",INDIRECT(\"'\"&G4012&\"'!\"&H4012),\"\")","v":""}]
[4008,{"$nulls":3},true,{"$f":"IF(G4013<>\"\",INDIRECT(\"'\"&G4013&\"'!\"&H4013),\"\")","v":""}]
[4009,{"$nulls":3},true,{"$f":"IF(G4014<>\"\",INDIRECT(\"'\"&G4014&\"'!\"&H4014),\"\")","v":""}]
[4010,{"$nulls":3},true,{"$f":"IF(G4015<>\"\",INDIRECT(\"'\"&G4015&\"'!\"&H4015),\"\")","v":""}]
[4011,{"$nulls":3},true,{"$f":"IF(G4016<>\"\",INDIRECT(\"'\"&G4016&\"'!\"&H4016),\"\")","v":""}]
[4012,{"$nulls":3},true,{"$f":"IF(G4017<>\"\",INDIRECT(\"'\"&G4017&\"'!\"&H4017),\"\")","v":""}]
[4013,{"$f":"'EstExp 12-20'!C124","v":0},{"$f":"A4018-B4018","v":4013},null,true,{"$f":"IF(G4018<>\"\",INDIRECT(\"'\"&G4018&\"'!\"&H4018),\"\")","v":0},"EstExp 12-20","C124"]
[4014,{"$f":"'EstExp 12-20'!D124","v":0},4014,null,true,{"$f":"IF(G4019<>\"\",INDIRECT(\"'\"&G4019&\"'!\"&H4019),\"\")","v":0},"EstExp 12-20","D124"]
[4015,{"$f":"'EstExp 12-20'!E124","v":0},4015,null,true,{"$f":"IF(G4020<>\"\",INDIRECT(\"'\"&G4020&\"'!\"&H4020),\"\")","v":0},"EstExp 12-20","E124"]
[4016,{"$f":"'EstExp 12-20'!F124","v":0},4016,null,true,{"$f":"IF(G4021<>\"\",INDIRECT(\"'\"&G4021&\"'!\"&H4021),\"\")","v":0},"EstExp 12-20","F124"]
[4017,{"$f":"'EstExp 12-20'!G124","v":0},4017,null,true,{"$f":"IF(G4022<>\"\",INDIRECT(\"'\"&G4022&\"'!\"&H4022),\"\")","v":0},"EstExp 12-20","G124"]
[4018,{"$f":"'EstExp 12-20'!H124","v":0},4018,null,true,{"$f":"IF(G4023<>\"\",INDIRECT(\"'\"&G4023&\"'!\"&H4023),\"\")","v":0},"EstExp 12-20","H124"]
[4019,{"$f":"'EstExp 12-20'!K124","v":0},4019,null,true,{"$f":"IF(G4024<>\"\",INDIRECT(\"'\"&G4024&\"'!\"&H4024),\"\")","v":0},"EstExp 12-20","K124"]
[4020,{"$f":"'EstExp 12-20'!C184","v":0},4020,null,true,{"$f":"IF(G4025<>\"\",INDIRECT(\"'\"&G4025&\"'!\"&H4025),\"\")","v":0},"EstExp 12-20","C184"]
[4021,{"$f":"'EstExp 12-20'!D184","v":0},4021,null,true,{"$f":"IF(G4026<>\"\",INDIRECT(\"'\"&G4026&\"'!\"&H4026),\"\")","v":0},"EstExp 12-20","D184"]
[4022,{"$f":"'EstExp 12-20'!E184","v":0},4022,null,true,{"$f":"IF(G4027<>\"\",INDIRECT(\"'\"&G4027&\"'!\"&H4027),\"\")","v":0},"EstExp 12-20","E184"]
[4023,{"$f":"'EstExp 12-20'!F184","v":0},4023,null,true,{"$f":"IF(G4028<>\"\",INDIRECT(\"'\"&G4028&\"'!\"&H4028),\"\")","v":0},"EstExp 12-20","F184"]
[4024,{"$f":"'EstExp 12-20'!G184","v":0},4024,null,true,{"$f":"IF(G4029<>\"\",INDIRECT(\"'\"&G4029&\"'!\"&H4029),\"\")","v":0},"EstExp 12-20","G184"]
[4025,{"$f":"'EstExp 12-20'!H184","v":0},4025,null,true,{"$f":"IF(G4030<>\"\",INDIRECT(\"'\"&G4030&\"'!\"&H4030),\"\")","v":0},"EstExp 12-20","H184"]
[4026,{"$f":"'EstExp 12-20'!K184","v":0},4026,null,true,{"$f":"IF(G4031<>\"\",INDIRECT(\"'\"&G4031&\"'!\"&H4031),\"\")","v":0},"EstExp 12-20","K184"]
[4027,{"$nulls":3},true,{"$f":"IF(G4032<>\"\",INDIRECT(\"'\"&G4032&\"'!\"&H4032),\"\")","v":""}]
[4028,{"$nulls":3},true,{"$f":"IF(G4033<>\"\",INDIRECT(\"'\"&G4033&\"'!\"&H4033),\"\")","v":""}]
[4029,{"$nulls":3},{"$f":"F4034=B4034","v":true},{"$f":"IF(G4034<>\"\",INDIRECT(\"'\"&G4034&\"'!\"&H4034),\"\")","v":""}]
[4030,{"$nulls":3},true,{"$f":"IF(G4035<>\"\",INDIRECT(\"'\"&G4035&\"'!\"&H4035),\"\")","v":""}]
[4031,{"$nulls":3},true,{"$f":"IF(G4036<>\"\",INDIRECT(\"'\"&G4036&\"'!\"&H4036),\"\")","v":""}]
[4032,{"$nulls":3},true,{"$f":"IF(G4037<>\"\",INDIRECT(\"'\"&G4037&\"'!\"&H4037),\"\")","v":""}]
[4033,{"$nulls":3},true,{"$f":"IF(G4038<>\"\",INDIRECT(\"'\"&G4038&\"'!\"&H4038),\"\")","v":""}]
[4034,{"$nulls":3},true,{"$f":"IF(G4039<>\"\",INDIRECT(\"'\"&G4039&\"'!\"&H4039),\"\")","v":""}]
[4035,null,null,"Closed 2008",true,{"$f":"IF(G4040<>\"\",INDIRECT(\"'\"&G4040&\"'!\"&H4040),\"\")","v":""}]
[4036,null,null,"Closed 2008",true,{"$f":"IF(G4041<>\"\",INDIRECT(\"'\"&G4041&\"'!\"&H4041),\"\")","v":""}]
[4037,null,null,"Closed 2008",true,{"$f":"IF(G4042<>\"\",INDIRECT(\"'\"&G4042&\"'!\"&H4042),\"\")","v":""}]
[4038,{"$f":"'EstExp 12-20'!K304","v":0},{"$f":"A4043-B4043","v":4038},null,true,{"$f":"IF(G4043<>\"\",INDIRECT(\"'\"&G4043&\"'!\"&H4043),\"\")","v":0},"EstExp 12-20","K304"]
[4039,{"$f":"'EstExp 12-20'!K305","v":0},4039,null,true,{"$f":"IF(G4044<>\"\",INDIRECT(\"'\"&G4044&\"'!\"&H4044),\"\")","v":0},"EstExp 12-20","K305"]
[4040,null,null,"Closed 04/09",true,{"$f":"IF(G4045<>\"\",INDIRECT(\"'\"&G4045&\"'!\"&H4045),\"\")","v":""}]
[4041,null,null,"Closed 2008",true,{"$f":"IF(G4046<>\"\",INDIRECT(\"'\"&G4046&\"'!\"&H4046),\"\")","v":""}]
[4042,{"$nulls":3},true,{"$f":"IF(G4047<>\"\",INDIRECT(\"'\"&G4047&\"'!\"&H4047),\"\")","v":""}]
[4043,{"$nulls":3},true,{"$f":"IF(G4048<>\"\",INDIRECT(\"'\"&G4048&\"'!\"&H4048),\"\")","v":""}]
[4044,{"$nulls":3},true,{"$f":"IF(G4049<>\"\",INDIRECT(\"'\"&G4049&\"'!\"&H4049),\"\")","v":""}]
[4045,{"$nulls":3},true,{"$f":"IF(G4050<>\"\",INDIRECT(\"'\"&G4050&\"'!\"&H4050),\"\")","v":""}]
[4046,{"$nulls":3},true,{"$f":"IF(G4051<>\"\",INDIRECT(\"'\"&G4051&\"'!\"&H4051),\"\")","v":""}]
[4047,{"$nulls":3},true,{"$f":"IF(G4052<>\"\",INDIRECT(\"'\"&G4052&\"'!\"&H4052),\"\")","v":""}]
[4048,{"$nulls":3},true,{"$f":"IF(G4053<>\"\",INDIRECT(\"'\"&G4053&\"'!\"&H4053),\"\")","v":""}]
[4049,{"$nulls":3},true,{"$f":"IF(G4054<>\"\",INDIRECT(\"'\"&G4054&\"'!\"&H4054),\"\")","v":""}]
[4050,{"$nulls":3},true,{"$f":"IF(G4055<>\"\",INDIRECT(\"'\"&G4055&\"'!\"&H4055),\"\")","v":""}]
[4051,{"$nulls":3},true,{"$f":"IF(G4056<>\"\",INDIRECT(\"'\"&G4056&\"'!\"&H4056),\"\")","v":""}]
[4052,{"$f":"'BudgetSum 2-4'!C10","v":0},4052,null,true,{"$f":"IF(G4057<>\"\",INDIRECT(\"'\"&G4057&\"'!\"&H4057),\"\")","v":0},"BudgetSum 2-4","C10"]
[4053,{"$f":"'BudgetSum 2-4'!D10","v":0},4053,null,true,{"$f":"IF(G4058<>\"\",INDIRECT(\"'\"&G4058&\"'!\"&H4058),\"\")","v":0},"BudgetSum 2-4","D10"]
[4054,{"$f":"'BudgetSum 2-4'!E10","v":0},4054,null,true,{"$f":"IF(G4059<>\"\",INDIRECT(\"'\"&G4059&\"'!\"&H4059),\"\")","v":0},"BudgetSum 2-4","E10"]
[4055,{"$f":"'BudgetSum 2-4'!F10","v":0},4055,null,true,{"$f":"IF(G4060<>\"\",INDIRECT(\"'\"&G4060&\"'!\"&H4060),\"\")","v":0},"BudgetSum 2-4","F10"]
[4056,{"$f":"'BudgetSum 2-4'!G10","v":0},4056,null,true,{"$f":"IF(G4061<>\"\",INDIRECT(\"'\"&G4061&\"'!\"&H4061),\"\")","v":0},"BudgetSum 2-4","G10"]
[4057,{"$f":"'BudgetSum 2-4'!H10","v":0},4057,null,true,{"$f":"IF(G4062<>\"\",INDIRECT(\"'\"&G4062&\"'!\"&H4062),\"\")","v":0},"BudgetSum 2-4","H10"]
[4058,{"$nulls":3},true,{"$f":"IF(G4063<>\"\",INDIRECT(\"'\"&G4063&\"'!\"&H4063),\"\")","v":""}]
[4059,{"$nulls":3},true,{"$f":"IF(G4064<>\"\",INDIRECT(\"'\"&G4064&\"'!\"&H4064),\"\")","v":""}]
[4060,{"$f":"'BudgetSum 2-4'!K10","v":0},4060,null,true,{"$f":"IF(G4065<>\"\",INDIRECT(\"'\"&G4065&\"'!\"&H4065),\"\")","v":0},"BudgetSum 2-4","K10"]
[4061,{"$f":"'BudgetSum 2-4'!C11","v":12817900},-12813839,null,true,{"$f":"IF(G4066<>\"\",INDIRECT(\"'\"&G4066&\"'!\"&H4066),\"\")","v":12817900},"BudgetSum 2-4","C11"]
[4062,{"$f":"'BudgetSum 2-4'!D11","v":1597000},-1592938,null,true,{"$f":"IF(G4067<>\"\",INDIRECT(\"'\"&G4067&\"'!\"&H4067),\"\")","v":1597000},"BudgetSum 2-4","D11"]
[4063,{"$f":"'BudgetSum 2-4'!E11","v":2195000},-2190937,null,true,{"$f":"IF(G4068<>\"\",INDIRECT(\"'\"&G4068&\"'!\"&H4068),\"\")","v":2195000},"BudgetSum 2-4","E11"]
[4064,{"$f":"'BudgetSum 2-4'!F11","v":510000},-505936,null,true,{"$f":"IF(G4069<>\"\",INDIRECT(\"'\"&G4069&\"'!\"&H4069),\"\")","v":510000},"BudgetSum 2-4","F11"]
[4065,{"$f":"'BudgetSum 2-4'!G11","v":605000},-600935,null,true,{"$f":"IF(G4070<>\"\",INDIRECT(\"'\"&G4070&\"'!\"&H4070),\"\")","v":605000},"BudgetSum 2-4","G11"]
[4066,{"$f":"'BudgetSum 2-4'!H11","v":203000},-198934,null,true,{"$f":"IF(G4071<>\"\",INDIRECT(\"'\"&G4071&\"'!\"&H4071),\"\")","v":203000},"BudgetSum 2-4","H11"]
[4067,{"$f":"'BudgetSum 2-4'!I11","v":27000},-22933,null,true,{"$f":"IF(G4072<>\"\",INDIRECT(\"'\"&G4072&\"'!\"&H4072),\"\")","v":27000},"BudgetSum 2-4","I11"]
[4068,null,null,"Closed 2008",true,{"$f":"IF(G4073<>\"\",INDIRECT(\"'\"&G4073&\"'!\"&H4073),\"\")","v":""}]
[4069,{"$f":"'BudgetSum 2-4'!K11","v":178000},-173931,null,true,{"$f":"IF(G4074<>\"\",INDIRECT(\"'\"&G4074&\"'!\"&H4074),\"\")","v":178000},"BudgetSum 2-4","K11"]
[4070,{"$f":"'BudgetSum 2-4'!C20","v":0},4070,null,true,{"$f":"IF(G4075<>\"\",INDIRECT(\"'\"&G4075&\"'!\"&H4075),\"\")","v":0},"BudgetSum 2-4","C20"]
[4071,{"$f":"'BudgetSum 2-4'!D20","v":0},4071,null,true,{"$f":"IF(G4076<>\"\",INDIRECT(\"'\"&G4076&\"'!\"&H4076),\"\")","v":0},"BudgetSum 2-4","D20"]
[4072,{"$f":"'BudgetSum 2-4'!F20","v":0},4072,null,true,{"$f":"IF(G4077<>\"\",INDIRECT(\"'\"&G4077&\"'!\"&H4077),\"\")","v":0},"BudgetSum 2-4","F20"]
[4073,{"$f":"'BudgetSum 2-4'!H20","v":0},4073,null,true,{"$f":"IF(G4078<>\"\",INDIRECT(\"'\"&G4078&\"'!\"&H4078),\"\")","v":0},"BudgetSum 2-4","H20"]
[4074,{"$f":"'BudgetSum 2-4'!K20","v":0},4074,null,true,{"$f":"IF(G4079<>\"\",INDIRECT(\"'\"&G4079&\"'!\"&H4079),\"\")","v":0},"BudgetSum 2-4","K20"]
[4075,{"$f":"'BudgetSum 2-4'!C21","v":13733956},-13729881,null,true,{"$f":"IF(G4080<>\"\",INDIRECT(\"'\"&G4080&\"'!\"&H4080),\"\")","v":13733956},"BudgetSum 2-4","C21"]
[4076,{"$f":"'BudgetSum 2-4'!D21","v":1564500},-1560424,null,true,{"$f":"IF(G4081<>\"\",INDIRECT(\"'\"&G4081&\"'!\"&H4081),\"\")","v":1564500},"BudgetSum 2-4","D21"]
[4077,{"$f":"'BudgetSum 2-4'!E21","v":1322000},-1317923,null,true,{"$f":"IF(G4082<>\"\",INDIRECT(\"'\"&G4082&\"'!\"&H4082),\"\")","v":1322000},"BudgetSum 2-4","E21"]
[4078,{"$f":"'BudgetSum 2-4'!F21","v":450000},-445922,null,true,{"$f":"IF(G4083<>\"\",INDIRECT(\"'\"&G4083&\"'!\"&H4083),\"\")","v":450000},"BudgetSum 2-4","F21"]
[4079,{"$f":"'BudgetSum 2-4'!G21","v":600900},-596821,null,true,{"$f":"IF(G4084<>\"\",INDIRECT(\"'\"&G4084&\"'!\"&H4084),\"\")","v":600900},"BudgetSum 2-4","G21"]
[4080,{"$f":"'BudgetSum 2-4'!H21","v":203000},-198920,null,true,{"$f":"IF(G4085<>\"\",INDIRECT(\"'\"&G4085&\"'!\"&H4085),\"\")","v":203000},"BudgetSum 2-4","H21"]
[4081,{"$nulls":3},true,{"$f":"IF(G4086<>\"\",INDIRECT(\"'\"&G4086&\"'!\"&H4086),\"\")","v":""}]
[4082,null,null,"Closed 2008",true,{"$f":"IF(G4087<>\"\",INDIRECT(\"'\"&G4087&\"'!\"&H4087),\"\")","v":""}]
[4083,{"$f":"'BudgetSum 2-4'!K21","v":150000},-145917,null,true,{"$f":"IF(G4088<>\"\",INDIRECT(\"'\"&G4088&\"'!\"&H4088),\"\")","v":150000},"BudgetSum 2-4","K21"]
[4084,null,null,"Closed 2008",true,{"$f":"IF(G4089<>\"\",INDIRECT(\"'\"&G4089&\"'!\"&H4089),\"\")","v":""}]
[4085,{"$nulls":3},true,{"$f":"IF(G4090<>\"\",INDIRECT(\"'\"&G4090&\"'!\"&H4090),\"\")","v":""}]
[4086,{"$nulls":3},true,{"$f":"IF(G4091<>\"\",INDIRECT(\"'\"&G4091&\"'!\"&H4091),\"\")","v":""}]
[4087,{"$nulls":3},true,{"$f":"IF(G4092<>\"\",INDIRECT(\"'\"&G4092&\"'!\"&H4092),\"\")","v":""}]
[4088,{"$nulls":3},true,{"$f":"IF(G4093<>\"\",INDIRECT(\"'\"&G4093&\"'!\"&H4093),\"\")","v":""}]
[4089,null,null,"Closed 2008",true,{"$f":"IF(G4094<>\"\",INDIRECT(\"'\"&G4094&\"'!\"&H4094),\"\")","v":""}]
[4090,null,null,"Closed 2008",true,{"$f":"IF(G4095<>\"\",INDIRECT(\"'\"&G4095&\"'!\"&H4095),\"\")","v":""}]
[4091,{"$nulls":3},true,{"$f":"IF(G4096<>\"\",INDIRECT(\"'\"&G4096&\"'!\"&H4096),\"\")","v":""}]
[4092,{"$nulls":3},true,{"$f":"IF(G4097<>\"\",INDIRECT(\"'\"&G4097&\"'!\"&H4097),\"\")","v":""}]
[4093,{"$nulls":3},{"$f":"F4098=B4098","v":true},{"$f":"IF(G4098<>\"\",INDIRECT(\"'\"&G4098&\"'!\"&H4098),\"\")","v":""}]
[4094,{"$nulls":3},true,{"$f":"IF(G4099<>\"\",INDIRECT(\"'\"&G4099&\"'!\"&H4099),\"\")","v":""}]
[4095,{"$f":"'EstExp 12-20'!H208","v":0},4095,null,true,{"$f":"IF(G4100<>\"\",INDIRECT(\"'\"&G4100&\"'!\"&H4100),\"\")","v":0},"EstExp 12-20","H208"]
[4096,{"$f":"'EstExp 12-20'!K208","v":0},4096,null,true,{"$f":"IF(G4101<>\"\",INDIRECT(\"'\"&G4101&\"'!\"&H4101),\"\")","v":0},"EstExp 12-20","K208"]
[4097,{"$nulls":3},true,{"$f":"IF(G4102<>\"\",INDIRECT(\"'\"&G4102&\"'!\"&H4102),\"\")","v":""}]
[4098,{"$nulls":3},true,{"$f":"IF(G4103<>\"\",INDIRECT(\"'\"&G4103&\"'!\"&H4103),\"\")","v":""}]
[4099,{"$nulls":3},true,{"$f":"IF(G4104<>\"\",INDIRECT(\"'\"&G4104&\"'!\"&H4104),\"\")","v":""}]
[4100,null,null,"Closed 2008",true,{"$f":"IF(G4105<>\"\",INDIRECT(\"'\"&G4105&\"'!\"&H4105),\"\")","v":""}]
[4101,null,null,"Closed 2008",true,{"$f":"IF(G4106<>\"\",INDIRECT(\"'\"&G4106&\"'!\"&H4106),\"\")","v":""}]
[4102,null,null,"Closed 2008",true,{"$f":"IF(G4107<>\"\",INDIRECT(\"'\"&G4107&\"'!\"&H4107),\"\")","v":""}]
[4103,{"$nulls":3},true,{"$f":"IF(G4108<>\"\",INDIRECT(\"'\"&G4108&\"'!\"&H4108),\"\")","v":""}]
[4104,{"$f":"'EstExp 12-20'!D281","v":0},{"$f":"A4109-B4109","v":4104},null,true,{"$f":"IF(G4109<>\"\",INDIRECT(\"'\"&G4109&\"'!\"&H4109),\"\")","v":0},"EstExp 12-20","D281"]
[4105,{"$f":"'EstExp 12-20'!K281","v":0},4105,null,true,{"$f":"IF(G4110<>\"\",INDIRECT(\"'\"&G4110&\"'!\"&H4110),\"\")","v":0},"EstExp 12-20","K281"]
[4106,{"$nulls":3},true,{"$f":"IF(G4111<>\"\",INDIRECT(\"'\"&G4111&\"'!\"&H4111),\"\")","v":""}]
[4107,{"$nulls":3},true,{"$f":"IF(G4112<>\"\",INDIRECT(\"'\"&G4112&\"'!\"&H4112),\"\")","v":""}]
[4108,{"$nulls":3},true,{"$f":"IF(G4113<>\"\",INDIRECT(\"'\"&G4113&\"'!\"&H4113),\"\")","v":""}]
[4109,null,null,"Closed 2008",true,{"$f":"IF(G4114<>\"\",INDIRECT(\"'\"&G4114&\"'!\"&H4114),\"\")","v":""}]
[4110,{"$nulls":3},true,{"$f":"IF(G4115<>\"\",INDIRECT(\"'\"&G4115&\"'!\"&H4115),\"\")","v":""}]
[4111,{"$nulls":3},true,{"$f":"IF(G4116<>\"\",INDIRECT(\"'\"&G4116&\"'!\"&H4116),\"\")","v":""}]
[4112,{"$nulls":3},true,{"$f":"IF(G4117<>\"\",INDIRECT(\"'\"&G4117&\"'!\"&H4117),\"\")","v":""}]
[4113,{"$nulls":3},true,{"$f":"IF(G4118<>\"\",INDIRECT(\"'\"&G4118&\"'!\"&H4118),\"\")","v":""}]
[4114,{"$f":"'BudgetSum 2-4'!E20","v":0},4114,null,true,{"$f":"IF(G4119<>\"\",INDIRECT(\"'\"&G4119&\"'!\"&H4119),\"\")","v":0},"BudgetSum 2-4","E20"]
[4115,{"$f":"'BudgetSum 2-4'!G20","v":0},4115,null,true,{"$f":"IF(G4120<>\"\",INDIRECT(\"'\"&G4120&\"'!\"&H4120),\"\")","v":0},"BudgetSum 2-4","G20"]
[4116,{"$nulls":3},true,{"$f":"IF(G4121<>\"\",INDIRECT(\"'\"&G4121&\"'!\"&H4121),\"\")","v":""}]
[4117,null,null,"Closed 2008",true,{"$f":"IF(G4122<>\"\",INDIRECT(\"'\"&G4122&\"'!\"&H4122),\"\")","v":""}]
[4118,{"$f":"'EstRev 6-11'!D163","v":0},4118,null,true,{"$f":"IF(G4123<>\"\",INDIRECT(\"'\"&G4123&\"'!\"&H4123),\"\")","v":0},"EstRev 6-11","D163"]
[4119,{"$f":"'EstRev 6-11'!F163","v":0},4119,null,true,{"$f":"IF(G4124<>\"\",INDIRECT(\"'\"&G4124&\"'!\"&H4124),\"\")","v":0},"EstRev 6-11","F163"]
[4120,{"$f":"'EstRev 6-11'!G163","v":0},4120,null,true,{"$f":"IF(G4125<>\"\",INDIRECT(\"'\"&G4125&\"'!\"&H4125),\"\")","v":0},"EstRev 6-11","G163"]
[4121,{"$nulls":3},true,{"$f":"IF(G4126<>\"\",INDIRECT(\"'\"&G4126&\"'!\"&H4126),\"\")","v":""}]
[4122,{"$nulls":3},true,{"$f":"IF(G4127<>\"\",INDIRECT(\"'\"&G4127&\"'!\"&H4127),\"\")","v":""}]
[4123,{"$nulls":3},true,{"$f":"IF(G4128<>\"\",INDIRECT(\"'\"&G4128&\"'!\"&H4128),\"\")","v":""}]
[4124,{"$nulls":3},true,{"$f":"IF(G4129<>\"\",INDIRECT(\"'\"&G4129&\"'!\"&H4129),\"\")","v":""}]
[4125,{"$nulls":3},true,{"$f":"IF(G4130<>\"\",INDIRECT(\"'\"&G4130&\"'!\"&H4130),\"\")","v":""}]
[4126,{"$nulls":3},true,{"$f":"IF(G4131<>\"\",INDIRECT(\"'\"&G4131&\"'!\"&H4131),\"\")","v":""}]
[4127,{"$nulls":3},true,{"$f":"IF(G4132<>\"\",INDIRECT(\"'\"&G4132&\"'!\"&H4132),\"\")","v":""}]
[4128,{"$f":"'EstRev 6-11'!C264","v":0},4128,null,true,{"$f":"IF(G4133<>\"\",INDIRECT(\"'\"&G4133&\"'!\"&H4133),\"\")","v":0},"EstRev 6-11","C264"]
[4129,{"$f":"'EstRev 6-11'!D264","v":0},4129,null,true,{"$f":"IF(G4134<>\"\",INDIRECT(\"'\"&G4134&\"'!\"&H4134),\"\")","v":0},"EstRev 6-11","D264"]
[4130,{"$f":"'EstRev 6-11'!F264","v":0},4130,null,true,{"$f":"IF(G4135<>\"\",INDIRECT(\"'\"&G4135&\"'!\"&H4135),\"\")","v":0},"EstRev 6-11","F264"]
[4131,{"$f":"'EstRev 6-11'!G264","v":0},4131,null,true,{"$f":"IF(G4136<>\"\",INDIRECT(\"'\"&G4136&\"'!\"&H4136),\"\")","v":0},"EstRev 6-11","G264"]
[4132,{"$nulls":3},true,{"$f":"IF(G4137<>\"\",INDIRECT(\"'\"&G4137&\"'!\"&H4137),\"\")","v":""}]
[4133,{"$nulls":3},true,{"$f":"IF(G4138<>\"\",INDIRECT(\"'\"&G4138&\"'!\"&H4138),\"\")","v":""}]
[4134,{"$nulls":3},true,{"$f":"IF(G4139<>\"\",INDIRECT(\"'\"&G4139&\"'!\"&H4139),\"\")","v":""}]
[4135,{"$nulls":3},true,{"$f":"IF(G4140<>\"\",INDIRECT(\"'\"&G4140&\"'!\"&H4140),\"\")","v":""}]
[4136,null,null,"Closed 2008",true,{"$f":"IF(G4141<>\"\",INDIRECT(\"'\"&G4141&\"'!\"&H4141),\"\")","v":""}]
[4137,null,null,"Closed 2008",true,{"$f":"IF(G4142<>\"\",INDIRECT(\"'\"&G4142&\"'!\"&H4142),\"\")","v":""}]
[4138,{"$f":"'EstExp 12-20'!E138","v":0},4138,null,true,{"$f":"IF(G4143<>\"\",INDIRECT(\"'\"&G4143&\"'!\"&H4143),\"\")","v":0},"EstExp 12-20","E138"]
[4139,{"$f":"'EstExp 12-20'!E139","v":0},4139,null,true,{"$f":"IF(G4144<>\"\",INDIRECT(\"'\"&G4144&\"'!\"&H4144),\"\")","v":0},"EstExp 12-20","E139"]
[4140,{"$f":"'EstExp 12-20'!E140","v":0},4140,null,true,{"$f":"IF(G4145<>\"\",INDIRECT(\"'\"&G4145&\"'!\"&H4145),\"\")","v":0},"EstExp 12-20","E140"]
[4141,{"$f":"'EstExp 12-20'!E141","v":0},4141,null,true,{"$f":"IF(G4146<>\"\",INDIRECT(\"'\"&G4146&\"'!\"&H4146),\"\")","v":0},"EstExp 12-20","E141"]
[4142,{"$f":"'EstExp 12-20'!E143","v":0},4142,null,true,{"$f":"IF(G4147<>\"\",INDIRECT(\"'\"&G4147&\"'!\"&H4147),\"\")","v":0},"EstExp 12-20","E143"]
[4143,null,null,"Closed 2008",true,{"$f":"IF(G4148<>\"\",INDIRECT(\"'\"&G4148&\"'!\"&H4148),\"\")","v":""}]
[4144,null,null,"Closed 2008",true,{"$f":"IF(G4149<>\"\",INDIRECT(\"'\"&G4149&\"'!\"&H4149),\"\")","v":""}]
[4145,null,null,"Closed 2008",true,{"$f":"IF(G4150<>\"\",INDIRECT(\"'\"&G4150&\"'!\"&H4150),\"\")","v":""}]
[4146,null,null,"Closed 2008",true,{"$f":"IF(G4151<>\"\",INDIRECT(\"'\"&G4151&\"'!\"&H4151),\"\")","v":""}]
[4147,null,null,"Closed 2008",true,{"$f":"IF(G4152<>\"\",INDIRECT(\"'\"&G4152&\"'!\"&H4152),\"\")","v":""}]
[4148,null,null,"Closed 2008",true,{"$f":"IF(G4153<>\"\",INDIRECT(\"'\"&G4153&\"'!\"&H4153),\"\")","v":""}]
[4149,{"$f":"'EstExp 12-20'!H210","v":0},4149,null,true,{"$f":"IF(G4154<>\"\",INDIRECT(\"'\"&G4154&\"'!\"&H4154),\"\")","v":0},"EstExp 12-20","H210"]
[4150,{"$f":"'EstExp 12-20'!K210","v":0},4150,null,true,{"$f":"IF(G4155<>\"\",INDIRECT(\"'\"&G4155&\"'!\"&H4155),\"\")","v":0},"EstExp 12-20","K210"]
[4151,null,null,"Closed 2008",true,{"$f":"IF(G4156<>\"\",INDIRECT(\"'\"&G4156&\"'!\"&H4156),\"\")","v":""}]
[4152,null,null,"Closed 2008",true,{"$f":"IF(G4157<>\"\",INDIRECT(\"'\"&G4157&\"'!\"&H4157),\"\")","v":""}]
[4153,null,null,"Closed 2008",true,{"$f":"IF(G4158<>\"\",INDIRECT(\"'\"&G4158&\"'!\"&H4158),\"\")","v":""}]
[4154,{"$f":"'EstRev 6-11'!I170","v":0},4154,null,true,{"$f":"IF(G4159<>\"\",INDIRECT(\"'\"&G4159&\"'!\"&H4159),\"\")","v":0},"EstRev 6-11","I170"]
[4155,{"$f":"'EstRev 6-11'!I172","v":0},4155,null,true,{"$f":"IF(G4160<>\"\",INDIRECT(\"'\"&G4160&\"'!\"&H4160),\"\")","v":0},"EstRev 6-11","I172"]
[4156,{"$f":"'BudgetSum 2-4'!E38","v":0},4156,null,true,{"$f":"IF(G4161<>\"\",INDIRECT(\"'\"&G4161&\"'!\"&H4161),\"\")","v":0},"BudgetSum 2-4","E38"]
[4157,null,null,"Closed 2008",{"$f":"F4162=B4162","v":true},{"$f":"IF(G4162<>\"\",INDIRECT(\"'\"&G4162&\"'!\"&H4162),\"\")","v":""}]
[4158,null,null,"Closed 2008",true,{"$f":"IF(G4163<>\"\",INDIRECT(\"'\"&G4163&\"'!\"&H4163),\"\")","v":""}]
[4159,{"$nulls":3},true,{"$f":"IF(G4164<>\"\",INDIRECT(\"'\"&G4164&\"'!\"&H4164),\"\")","v":""}]
[4160,{"$nulls":3},true,{"$f":"IF(G4165<>\"\",INDIRECT(\"'\"&G4165&\"'!\"&H4165),\"\")","v":""}]
[4161,{"$nulls":3},true,{"$f":"IF(G4166<>\"\",INDIRECT(\"'\"&G4166&\"'!\"&H4166),\"\")","v":""}]
[4162,{"$nulls":3},true,{"$f":"IF(G4167<>\"\",INDIRECT(\"'\"&G4167&\"'!\"&H4167),\"\")","v":""}]
[4163,{"$nulls":3},true,{"$f":"IF(G4168<>\"\",INDIRECT(\"'\"&G4168&\"'!\"&H4168),\"\")","v":""}]
[4164,{"$nulls":3},true,{"$f":"IF(G4169<>\"\",INDIRECT(\"'\"&G4169&\"'!\"&H4169),\"\")","v":""}]
[4165,{"$nulls":3},true,{"$f":"IF(G4170<>\"\",INDIRECT(\"'\"&G4170&\"'!\"&H4170),\"\")","v":""}]
[4166,{"$f":"'EstRev 6-11'!C142","v":0},{"$f":"A4171-B4171","v":4166},null,true,{"$f":"IF(G4171<>\"\",INDIRECT(\"'\"&G4171&\"'!\"&H4171),\"\")","v":0},"EstRev 6-11","C142"]
[4167,{"$f":"'EstRev 6-11'!D142","v":0},4167,null,true,{"$f":"IF(G4172<>\"\",INDIRECT(\"'\"&G4172&\"'!\"&H4172),\"\")","v":0},"EstRev 6-11","D142"]
[4168,null,null,"Closed 2008",true,{"$f":"IF(G4173<>\"\",INDIRECT(\"'\"&G4173&\"'!\"&H4173),\"\")","v":""}]
[4169,{"$f":"'EstRev 6-11'!G142","v":0},4169,null,true,{"$f":"IF(G4174<>\"\",INDIRECT(\"'\"&G4174&\"'!\"&H4174),\"\")","v":0},"EstRev 6-11","G142"]
[4170,{"$nulls":3},true,{"$f":"IF(G4175<>\"\",INDIRECT(\"'\"&G4175&\"'!\"&H4175),\"\")","v":""}]
[4171,{"$nulls":3},true,{"$f":"IF(G4176<>\"\",INDIRECT(\"'\"&G4176&\"'!\"&H4176),\"\")","v":""}]
[4172,{"$nulls":3},true,{"$f":"IF(G4177<>\"\",INDIRECT(\"'\"&G4177&\"'!\"&H4177),\"\")","v":""}]
[4173,{"$nulls":3},true,{"$f":"IF(G4178<>\"\",INDIRECT(\"'\"&G4178&\"'!\"&H4178),\"\")","v":""}]
[4174,{"$nulls":3},true,{"$f":"IF(G4179<>\"\",INDIRECT(\"'\"&G4179&\"'!\"&H4179),\"\")","v":""}]
[4175,{"$nulls":3},true,{"$f":"IF(G4180<>\"\",INDIRECT(\"'\"&G4180&\"'!\"&H4180),\"\")","v":""}]
[4176,{"$nulls":3},true,{"$f":"IF(G4181<>\"\",INDIRECT(\"'\"&G4181&\"'!\"&H4181),\"\")","v":""}]
[4177,{"$nulls":3},true,{"$f":"IF(G4182<>\"\",INDIRECT(\"'\"&G4182&\"'!\"&H4182),\"\")","v":""}]
[4178,{"$nulls":3},true,{"$f":"IF(G4183<>\"\",INDIRECT(\"'\"&G4183&\"'!\"&H4183),\"\")","v":""}]
[4179,{"$nulls":3},true,{"$f":"IF(G4184<>\"\",INDIRECT(\"'\"&G4184&\"'!\"&H4184),\"\")","v":""}]
[4180,{"$nulls":3},true,{"$f":"IF(G4185<>\"\",INDIRECT(\"'\"&G4185&\"'!\"&H4185),\"\")","v":""}]
[4181,{"$nulls":3},true,{"$f":"IF(G4186<>\"\",INDIRECT(\"'\"&G4186&\"'!\"&H4186),\"\")","v":""}]
[4182,{"$nulls":3},true,{"$f":"IF(G4187<>\"\",INDIRECT(\"'\"&G4187&\"'!\"&H4187),\"\")","v":""}]
[4183,{"$nulls":3},true,{"$f":"IF(G4188<>\"\",INDIRECT(\"'\"&G4188&\"'!\"&H4188),\"\")","v":""}]
[4184,{"$nulls":3},true,{"$f":"IF(G4189<>\"\",INDIRECT(\"'\"&G4189&\"'!\"&H4189),\"\")","v":""}]
[4185,{"$nulls":3},true,{"$f":"IF(G4190<>\"\",INDIRECT(\"'\"&G4190&\"'!\"&H4190),\"\")","v":""}]
[4186,{"$nulls":3},true,{"$f":"IF(G4191<>\"\",INDIRECT(\"'\"&G4191&\"'!\"&H4191),\"\")","v":""}]
[4187,{"$nulls":3},true,{"$f":"IF(G4192<>\"\",INDIRECT(\"'\"&G4192&\"'!\"&H4192),\"\")","v":""}]
[4188,{"$nulls":3},true,{"$f":"IF(G4193<>\"\",INDIRECT(\"'\"&G4193&\"'!\"&H4193),\"\")","v":""}]
[4189,{"$nulls":3},true,{"$f":"IF(G4194<>\"\",INDIRECT(\"'\"&G4194&\"'!\"&H4194),\"\")","v":""}]
[4190,null,null,"Closed 2008",true,{"$f":"IF(G4195<>\"\",INDIRECT(\"'\"&G4195&\"'!\"&H4195),\"\")","v":""}]
[4191,null,null,"Closed 2008",true,{"$f":"IF(G4196<>\"\",INDIRECT(\"'\"&G4196&\"'!\"&H4196),\"\")","v":""}]
[4192,null,null,"Closed 2008",true,{"$f":"IF(G4197<>\"\",INDIRECT(\"'\"&G4197&\"'!\"&H4197),\"\")","v":""}]
[4193,null,null,"Closed 2008",true,{"$f":"IF(G4198<>\"\",INDIRECT(\"'\"&G4198&\"'!\"&H4198),\"\")","v":""}]
[4194,null,null,"Closed 2008",true,{"$f":"IF(G4199<>\"\",INDIRECT(\"'\"&G4199&\"'!\"&H4199),\"\")","v":""}]
[4195,null,null,"Closed 2008",true,{"$f":"IF(G4200<>\"\",INDIRECT(\"'\"&G4200&\"'!\"&H4200),\"\")","v":""}]
[4196,null,null,"Closed 2008",true,{"$f":"IF(G4201<>\"\",INDIRECT(\"'\"&G4201&\"'!\"&H4201),\"\")","v":""}]
[4197,{"$nulls":3},true,{"$f":"IF(G4202<>\"\",INDIRECT(\"'\"&G4202&\"'!\"&H4202),\"\")","v":""}]
[4198,{"$nulls":3},true,{"$f":"IF(G4203<>\"\",INDIRECT(\"'\"&G4203&\"'!\"&H4203),\"\")","v":""}]
[4199,{"$nulls":3},true,{"$f":"IF(G4204<>\"\",INDIRECT(\"'\"&G4204&\"'!\"&H4204),\"\")","v":""}]
[4200,{"$nulls":3},true,{"$f":"IF(G4205<>\"\",INDIRECT(\"'\"&G4205&\"'!\"&H4205),\"\")","v":""}]
[4201,null,null,"Closed 2008",true,{"$f":"IF(G4206<>\"\",INDIRECT(\"'\"&G4206&\"'!\"&H4206),\"\")","v":""}]
[4202,null,null,"Closed 2008",true,{"$f":"IF(G4207<>\"\",INDIRECT(\"'\"&G4207&\"'!\"&H4207),\"\")","v":""}]
[4203,{"$nulls":3},true,{"$f":"IF(G4208<>\"\",INDIRECT(\"'\"&G4208&\"'!\"&H4208),\"\")","v":""}]
[4204,{"$nulls":3},true,{"$f":"IF(G4209<>\"\",INDIRECT(\"'\"&G4209&\"'!\"&H4209),\"\")","v":""}]
[4205,{"$nulls":3},true,{"$f":"IF(G4210<>\"\",INDIRECT(\"'\"&G4210&\"'!\"&H4210),\"\")","v":""}]
[4206,{"$nulls":3},true,{"$f":"IF(G4211<>\"\",INDIRECT(\"'\"&G4211&\"'!\"&H4211),\"\")","v":""}]
[4207,{"$nulls":3},true,{"$f":"IF(G4212<>\"\",INDIRECT(\"'\"&G4212&\"'!\"&H4212),\"\")","v":""}]
[4208,{"$nulls":3},true,{"$f":"IF(G4213<>\"\",INDIRECT(\"'\"&G4213&\"'!\"&H4213),\"\")","v":""}]
[4209,{"$nulls":3},true,{"$f":"IF(G4214<>\"\",INDIRECT(\"'\"&G4214&\"'!\"&H4214),\"\")","v":""}]
[4210,{"$nulls":3},true,{"$f":"IF(G4215<>\"\",INDIRECT(\"'\"&G4215&\"'!\"&H4215),\"\")","v":""}]
[4211,{"$nulls":3},true,{"$f":"IF(G4216<>\"\",INDIRECT(\"'\"&G4216&\"'!\"&H4216),\"\")","v":""}]
[4212,{"$nulls":3},true,{"$f":"IF(G4217<>\"\",INDIRECT(\"'\"&G4217&\"'!\"&H4217),\"\")","v":""}]
[4213,{"$nulls":3},true,{"$f":"IF(G4218<>\"\",INDIRECT(\"'\"&G4218&\"'!\"&H4218),\"\")","v":""}]
[4214,{"$nulls":3},true,{"$f":"IF(G4219<>\"\",INDIRECT(\"'\"&G4219&\"'!\"&H4219),\"\")","v":""}]
[4215,{"$nulls":3},true,{"$f":"IF(G4220<>\"\",INDIRECT(\"'\"&G4220&\"'!\"&H4220),\"\")","v":""}]
[4216,{"$nulls":3},true,{"$f":"IF(G4221<>\"\",INDIRECT(\"'\"&G4221&\"'!\"&H4221),\"\")","v":""}]
[4217,{"$nulls":3},true,{"$f":"IF(G4222<>\"\",INDIRECT(\"'\"&G4222&\"'!\"&H4222),\"\")","v":""}]
[4218,{"$nulls":3},true,{"$f":"IF(G4223<>\"\",INDIRECT(\"'\"&G4223&\"'!\"&H4223),\"\")","v":""}]
[4219,{"$nulls":3},true,{"$f":"IF(G4224<>\"\",INDIRECT(\"'\"&G4224&\"'!\"&H4224),\"\")","v":""}]
[4220,{"$nulls":3},true,{"$f":"IF(G4225<>\"\",INDIRECT(\"'\"&G4225&\"'!\"&H4225),\"\")","v":""}]
[4221,{"$nulls":3},{"$f":"F4226=B4226","v":true},{"$f":"IF(G4226<>\"\",INDIRECT(\"'\"&G4226&\"'!\"&H4226),\"\")","v":""}]
[4222,{"$nulls":3},true,{"$f":"IF(G4227<>\"\",INDIRECT(\"'\"&G4227&\"'!\"&H4227),\"\")","v":""}]
[4223,{"$nulls":3},true,{"$f":"IF(G4228<>\"\",INDIRECT(\"'\"&G4228&\"'!\"&H4228),\"\")","v":""}]
[4224,{"$nulls":3},true,{"$f":"IF(G4229<>\"\",INDIRECT(\"'\"&G4229&\"'!\"&H4229),\"\")","v":""}]
[4225,{"$nulls":3},true,{"$f":"IF(G4230<>\"\",INDIRECT(\"'\"&G4230&\"'!\"&H4230),\"\")","v":""}]
[4226,{"$nulls":3},true,{"$f":"IF(G4231<>\"\",INDIRECT(\"'\"&G4231&\"'!\"&H4231),\"\")","v":""}]
[4227,{"$nulls":3},true,{"$f":"IF(G4232<>\"\",INDIRECT(\"'\"&G4232&\"'!\"&H4232),\"\")","v":""}]
[4228,{"$nulls":3},true,{"$f":"IF(G4233<>\"\",INDIRECT(\"'\"&G4233&\"'!\"&H4233),\"\")","v":""}]
[4229,{"$nulls":3},true,{"$f":"IF(G4234<>\"\",INDIRECT(\"'\"&G4234&\"'!\"&H4234),\"\")","v":""}]
[4230,{"$nulls":3},true,{"$f":"IF(G4235<>\"\",INDIRECT(\"'\"&G4235&\"'!\"&H4235),\"\")","v":""}]
[4231,{"$nulls":3},true,{"$f":"IF(G4236<>\"\",INDIRECT(\"'\"&G4236&\"'!\"&H4236),\"\")","v":""}]
[4232,{"$nulls":3},true,{"$f":"IF(G4237<>\"\",INDIRECT(\"'\"&G4237&\"'!\"&H4237),\"\")","v":""}]
[4233,{"$nulls":3},true,{"$f":"IF(G4238<>\"\",INDIRECT(\"'\"&G4238&\"'!\"&H4238),\"\")","v":""}]
[4234,{"$nulls":3},true,{"$f":"IF(G4239<>\"\",INDIRECT(\"'\"&G4239&\"'!\"&H4239),\"\")","v":""}]
[4235,{"$nulls":3},true,{"$f":"IF(G4240<>\"\",INDIRECT(\"'\"&G4240&\"'!\"&H4240),\"\")","v":""}]
[4236,{"$nulls":3},true,{"$f":"IF(G4241<>\"\",INDIRECT(\"'\"&G4241&\"'!\"&H4241),\"\")","v":""}]
[4237,{"$nulls":3},true,{"$f":"IF(G4242<>\"\",INDIRECT(\"'\"&G4242&\"'!\"&H4242),\"\")","v":""}]
[4238,{"$nulls":3},true,{"$f":"IF(G4243<>\"\",INDIRECT(\"'\"&G4243&\"'!\"&H4243),\"\")","v":""}]
[4239,{"$nulls":3},true,{"$f":"IF(G4244<>\"\",INDIRECT(\"'\"&G4244&\"'!\"&H4244),\"\")","v":""}]
[4240,{"$nulls":3},true,{"$f":"IF(G4245<>\"\",INDIRECT(\"'\"&G4245&\"'!\"&H4245),\"\")","v":""}]
[4241,{"$nulls":3},true,{"$f":"IF(G4246<>\"\",INDIRECT(\"'\"&G4246&\"'!\"&H4246),\"\")","v":""}]
[4242,{"$nulls":3},true,{"$f":"IF(G4247<>\"\",INDIRECT(\"'\"&G4247&\"'!\"&H4247),\"\")","v":""}]
[4243,{"$nulls":3},true,{"$f":"IF(G4248<>\"\",INDIRECT(\"'\"&G4248&\"'!\"&H4248),\"\")","v":""}]
[4244,{"$nulls":3},true,{"$f":"IF(G4249<>\"\",INDIRECT(\"'\"&G4249&\"'!\"&H4249),\"\")","v":""}]
[4245,{"$nulls":3},true,{"$f":"IF(G4250<>\"\",INDIRECT(\"'\"&G4250&\"'!\"&H4250),\"\")","v":""}]
[4246,{"$nulls":3},true,{"$f":"IF(G4251<>\"\",INDIRECT(\"'\"&G4251&\"'!\"&H4251),\"\")","v":""}]
[4247,{"$nulls":3},true,{"$f":"IF(G4252<>\"\",INDIRECT(\"'\"&G4252&\"'!\"&H4252),\"\")","v":""}]
[4248,{"$f":"'EstRev 6-11'!C133","v":0},{"$f":"A4253-B4253","v":4248},null,true,{"$f":"IF(G4253<>\"\",INDIRECT(\"'\"&G4253&\"'!\"&H4253),\"\")","v":0},"EstRev 6-11","C133"]
[4249,{"$f":"'EstRev 6-11'!D133","v":0},4249,null,true,{"$f":"IF(G4254<>\"\",INDIRECT(\"'\"&G4254&\"'!\"&H4254),\"\")","v":0},"EstRev 6-11","D133"]
[4250,{"$f":"'EstRev 6-11'!F133","v":0},4250,null,true,{"$f":"IF(G4255<>\"\",INDIRECT(\"'\"&G4255&\"'!\"&H4255),\"\")","v":0},"EstRev 6-11","F133"]
[4251,{"$f":"'EstRev 6-11'!C152","v":0},4251,null,true,{"$f":"IF(G4256<>\"\",INDIRECT(\"'\"&G4256&\"'!\"&H4256),\"\")","v":0},"EstRev 6-11","C152"]
[4252,{"$f":"'EstRev 6-11'!D152","v":0},4252,null,true,{"$f":"IF(G4257<>\"\",INDIRECT(\"'\"&G4257&\"'!\"&H4257),\"\")","v":0},"EstRev 6-11","D152"]
[4253,{"$f":"'EstRev 6-11'!C156","v":0},4253,null,true,{"$f":"IF(G4258<>\"\",INDIRECT(\"'\"&G4258&\"'!\"&H4258),\"\")","v":0},"EstRev 6-11","C156"]
[4254,{"$f":"'EstRev 6-11'!D156","v":0},4254,null,true,{"$f":"IF(G4259<>\"\",INDIRECT(\"'\"&G4259&\"'!\"&H4259),\"\")","v":0},"EstRev 6-11","D156"]
[4255,{"$f":"'EstRev 6-11'!F156","v":0},4255,null,true,{"$f":"IF(G4260<>\"\",INDIRECT(\"'\"&G4260&\"'!\"&H4260),\"\")","v":0},"EstRev 6-11","F156"]
[4256,{"$f":"'EstRev 6-11'!C166","v":0},4256,null,true,{"$f":"IF(G4261<>\"\",INDIRECT(\"'\"&G4261&\"'!\"&H4261),\"\")","v":0},"EstRev 6-11","C166"]
[4257,{"$f":"'EstRev 6-11'!F166","v":0},4257,null,true,{"$f":"IF(G4262<>\"\",INDIRECT(\"'\"&G4262&\"'!\"&H4262),\"\")","v":0},"EstRev 6-11","F166"]
[4258,{"$nulls":3},true,{"$f":"IF(G4263<>\"\",INDIRECT(\"'\"&G4263&\"'!\"&H4263),\"\")","v":""}]
[4259,{"$nulls":3},true,{"$f":"IF(G4264<>\"\",INDIRECT(\"'\"&G4264&\"'!\"&H4264),\"\")","v":""}]
[4260,{"$f":"'EstRev 6-11'!C167","v":0},4260,null,true,{"$f":"IF(G4265<>\"\",INDIRECT(\"'\"&G4265&\"'!\"&H4265),\"\")","v":0},"EstRev 6-11","C167"]
[4261,{"$f":"'EstRev 6-11'!F167","v":0},4261,null,true,{"$f":"IF(G4266<>\"\",INDIRECT(\"'\"&G4266&\"'!\"&H4266),\"\")","v":0},"EstRev 6-11","F167"]
[4262,null,null,"Closed 2008",true,{"$f":"IF(G4267<>\"\",INDIRECT(\"'\"&G4267&\"'!\"&H4267),\"\")","v":""}]
[4263,null,null,"Closed 2008",true,{"$f":"IF(G4268<>\"\",INDIRECT(\"'\"&G4268&\"'!\"&H4268),\"\")","v":""}]
[4264,{"$nulls":3},true,{"$f":"IF(G4269<>\"\",INDIRECT(\"'\"&G4269&\"'!\"&H4269),\"\")","v":""}]
[4265,{"$nulls":3},true,{"$f":"IF(G4270<>\"\",INDIRECT(\"'\"&G4270&\"'!\"&H4270),\"\")","v":""}]
[4266,{"$f":"'EstRev 6-11'!D168","v":0},4266,null,true,{"$f":"IF(G4271<>\"\",INDIRECT(\"'\"&G4271&\"'!\"&H4271),\"\")","v":0},"EstRev 6-11","D168"]
[4267,{"$f":"'EstRev 6-11'!H168","v":0},4267,null,true,{"$f":"IF(G4272<>\"\",INDIRECT(\"'\"&G4272&\"'!\"&H4272),\"\")","v":0},"EstRev 6-11","H168"]
[4268,{"$f":"'EstRev 6-11'!D169","v":50000},-45732,null,true,{"$f":"IF(G4273<>\"\",INDIRECT(\"'\"&G4273&\"'!\"&H4273),\"\")","v":50000},"EstRev 6-11","D169"]
[4269,{"$f":"'EstRev 6-11'!K169","v":0},4269,null,true,{"$f":"IF(G4274<>\"\",INDIRECT(\"'\"&G4274&\"'!\"&H4274),\"\")","v":0},"EstRev 6-11","K169"]
[4270,{"$f":"'EstRev 6-11'!C199","v":0},4270,null,true,{"$f":"IF(G4275<>\"\",INDIRECT(\"'\"&G4275&\"'!\"&H4275),\"\")","v":0},"EstRev 6-11","C199"]
[4271,{"$f":"'EstRev 6-11'!C205","v":0},4271,null,true,{"$f":"IF(G4276<>\"\",INDIRECT(\"'\"&G4276&\"'!\"&H4276),\"\")","v":0},"EstRev 6-11","C205"]
[4272,{"$f":"'EstRev 6-11'!D205","v":0},4272,null,true,{"$f":"IF(G4277<>\"\",INDIRECT(\"'\"&G4277&\"'!\"&H4277),\"\")","v":0},"EstRev 6-11","D205"]
[4273,{"$f":"'EstRev 6-11'!F205","v":0},4273,null,true,{"$f":"IF(G4278<>\"\",INDIRECT(\"'\"&G4278&\"'!\"&H4278),\"\")","v":0},"EstRev 6-11","F205"]
[4274,{"$f":"'EstRev 6-11'!G205","v":0},4274,null,true,{"$f":"IF(G4279<>\"\",INDIRECT(\"'\"&G4279&\"'!\"&H4279),\"\")","v":0},"EstRev 6-11","G205"]
[4275,{"$f":"'EstRev 6-11'!C211","v":0},4275,null,true,{"$f":"IF(G4280<>\"\",INDIRECT(\"'\"&G4280&\"'!\"&H4280),\"\")","v":0},"EstRev 6-11","C211"]
[4276,{"$f":"'EstRev 6-11'!D211","v":0},4276,null,true,{"$f":"IF(G4281<>\"\",INDIRECT(\"'\"&G4281&\"'!\"&H4281),\"\")","v":0},"EstRev 6-11","D211"]
[4277,{"$f":"'EstRev 6-11'!F211","v":0},4277,null,true,{"$f":"IF(G4282<>\"\",INDIRECT(\"'\"&G4282&\"'!\"&H4282),\"\")","v":0},"EstRev 6-11","F211"]
[4278,{"$f":"'EstRev 6-11'!G211","v":0},4278,null,true,{"$f":"IF(G4283<>\"\",INDIRECT(\"'\"&G4283&\"'!\"&H4283),\"\")","v":0},"EstRev 6-11","G211"]
[4279,{"$f":"'EstRev 6-11'!C219","v":0},4279,null,true,{"$f":"IF(G4284<>\"\",INDIRECT(\"'\"&G4284&\"'!\"&H4284),\"\")","v":0},"EstRev 6-11","C219"]
[4280,{"$f":"'EstRev 6-11'!D219","v":0},4280,null,true,{"$f":"IF(G4285<>\"\",INDIRECT(\"'\"&G4285&\"'!\"&H4285),\"\")","v":0},"EstRev 6-11","D219"]
[4281,{"$f":"'EstRev 6-11'!F219","v":0},4281,null,true,{"$f":"IF(G4286<>\"\",INDIRECT(\"'\"&G4286&\"'!\"&H4286),\"\")","v":0},"EstRev 6-11","F219"]
[4282,{"$f":"'EstRev 6-11'!G219","v":0},4282,null,true,{"$f":"IF(G4287<>\"\",INDIRECT(\"'\"&G4287&\"'!\"&H4287),\"\")","v":0},"EstRev 6-11","G219"]
[4283,{"$f":"'EstRev 6-11'!C223","v":0},4283,null,true,{"$f":"IF(G4288<>\"\",INDIRECT(\"'\"&G4288&\"'!\"&H4288),\"\")","v":0},"EstRev 6-11","C223"]
[4284,{"$f":"'EstRev 6-11'!D223","v":0},4284,null,true,{"$f":"IF(G4289<>\"\",INDIRECT(\"'\"&G4289&\"'!\"&H4289),\"\")","v":0},"EstRev 6-11","D223"]
[4285,{"$f":"'EstRev 6-11'!G223","v":0},4285,null,{"$f":"F4290=B4290","v":true},{"$f":"IF(G4290<>\"\",INDIRECT(\"'\"&G4290&\"'!\"&H4290),\"\")","v":0},"EstRev 6-11","G223"]
[4286,{"$nulls":3},true,{"$f":"IF(G4291<>\"\",INDIRECT(\"'\"&G4291&\"'!\"&H4291),\"\")","v":""}]
[4287,{"$nulls":3},true,{"$f":"IF(G4292<>\"\",INDIRECT(\"'\"&G4292&\"'!\"&H4292),\"\")","v":""}]
[4288,{"$nulls":3},true,{"$f":"IF(G4293<>\"\",INDIRECT(\"'\"&G4293&\"'!\"&H4293),\"\")","v":""}]
[4289,{"$nulls":3},true,{"$f":"IF(G4294<>\"\",INDIRECT(\"'\"&G4294&\"'!\"&H4294),\"\")","v":""}]
[4290,{"$f":"'EstRev 6-11'!C149","v":0},4290,null,true,{"$f":"IF(G4295<>\"\",INDIRECT(\"'\"&G4295&\"'!\"&H4295),\"\")","v":0},"EstRev 6-11","C149"]
[4291,{"$f":"'EstRev 6-11'!D149","v":0},{"$f":"A4296-B4296","v":4291},null,true,{"$f":"IF(G4296<>\"\",INDIRECT(\"'\"&G4296&\"'!\"&H4296),\"\")","v":0},"EstRev 6-11","D149"]
[4292,{"$f":"'EstRev 6-11'!G149","v":0},4292,null,true,{"$f":"IF(G4297<>\"\",INDIRECT(\"'\"&G4297&\"'!\"&H4297),\"\")","v":0},"EstRev 6-11","G149"]
[4293,{"$f":"'EstRev 6-11'!F152","v":0},4293,null,true,{"$f":"IF(G4298<>\"\",INDIRECT(\"'\"&G4298&\"'!\"&H4298),\"\")","v":0},"EstRev 6-11","F152"]
[4294,{"$f":"'EstRev 6-11'!G152","v":0},4294,null,true,{"$f":"IF(G4299<>\"\",INDIRECT(\"'\"&G4299&\"'!\"&H4299),\"\")","v":0},"EstRev 6-11","G152"]
[4295,{"$f":"'EstRev 6-11'!G156","v":0},4295,null,true,{"$f":"IF(G4300<>\"\",INDIRECT(\"'\"&G4300&\"'!\"&H4300),\"\")","v":0},"EstRev 6-11","G156"]
[4296,{"$f":"'EstRev 6-11'!G157","v":0},4296,null,true,{"$f":"IF(G4301<>\"\",INDIRECT(\"'\"&G4301&\"'!\"&H4301),\"\")","v":0},"EstRev 6-11","G157"]
[4297,{"$f":"'EstRev 6-11'!C267","v":40000},-35703,null,true,{"$f":"IF(G4302<>\"\",INDIRECT(\"'\"&G4302&\"'!\"&H4302),\"\")","v":40000},"EstRev 6-11","C267"]
[4298,{"$f":"'EstRev 6-11'!D267","v":0},4298,null,true,{"$f":"IF(G4303<>\"\",INDIRECT(\"'\"&G4303&\"'!\"&H4303),\"\")","v":0},"EstRev 6-11","D267"]
[4299,{"$f":"'EstRev 6-11'!F267","v":0},4299,null,true,{"$f":"IF(G4304<>\"\",INDIRECT(\"'\"&G4304&\"'!\"&H4304),\"\")","v":0},"EstRev 6-11","F267"]
[4300,{"$f":"'EstRev 6-11'!G267","v":0},4300,null,true,{"$f":"IF(G4305<>\"\",INDIRECT(\"'\"&G4305&\"'!\"&H4305),\"\")","v":0},"EstRev 6-11","G267"]
[4301,{"$f":"'EstRev 6-11'!C268","v":0},4301,null,true,{"$f":"IF(G4306<>\"\",INDIRECT(\"'\"&G4306&\"'!\"&H4306),\"\")","v":0},"EstRev 6-11","C268"]
[4302,{"$f":"'EstRev 6-11'!I171","v":0},4302,null,true,{"$f":"IF(G4307<>\"\",INDIRECT(\"'\"&G4307&\"'!\"&H4307),\"\")","v":0},"EstRev 6-11","I171"]
[4303,{"$f":"'EstRev 6-11'!E175","v":0},4303,null,true,{"$f":"IF(G4308<>\"\",INDIRECT(\"'\"&G4308&\"'!\"&H4308),\"\")","v":0},"EstRev 6-11","E175"]
[4304,{"$f":"'EstRev 6-11'!H175","v":0},4304,null,true,{"$f":"IF(G4309<>\"\",INDIRECT(\"'\"&G4309&\"'!\"&H4309),\"\")","v":0},"EstRev 6-11","H175"]
[4305,{"$f":"'EstRev 6-11'!I175","v":0},4305,null,true,{"$f":"IF(G4310<>\"\",INDIRECT(\"'\"&G4310&\"'!\"&H4310),\"\")","v":0},"EstRev 6-11","I175"]
[4306,null,null,"Closed 2008",true,{"$f":"IF(G4311<>\"\",INDIRECT(\"'\"&G4311&\"'!\"&H4311),\"\")","v":""}]
[4307,{"$f":"'EstRev 6-11'!K175","v":0},4307,null,true,{"$f":"IF(G4312<>\"\",INDIRECT(\"'\"&G4312&\"'!\"&H4312),\"\")","v":0},"EstRev 6-11","K175"]
[4308,{"$f":"'EstRev 6-11'!E176","v":0},4308,null,true,{"$f":"IF(G4313<>\"\",INDIRECT(\"'\"&G4313&\"'!\"&H4313),\"\")","v":0},"EstRev 6-11","E176"]
[4309,{"$f":"'EstRev 6-11'!I176","v":0},4309,null,true,{"$f":"IF(G4314<>\"\",INDIRECT(\"'\"&G4314&\"'!\"&H4314),\"\")","v":0},"EstRev 6-11","I176"]
[4310,null,null,"Closed 2008",true,{"$f":"IF(G4315<>\"\",INDIRECT(\"'\"&G4315&\"'!\"&H4315),\"\")","v":""}]
[4311,{"$f":"'EstRev 6-11'!E177","v":0},4311,null,true,{"$f":"IF(G4316<>\"\",INDIRECT(\"'\"&G4316&\"'!\"&H4316),\"\")","v":0},"EstRev 6-11","E177"]
[4312,{"$f":"'EstRev 6-11'!I177","v":0},4312,null,true,{"$f":"IF(G4317<>\"\",INDIRECT(\"'\"&G4317&\"'!\"&H4317),\"\")","v":0},"EstRev 6-11","I177"]
[4313,null,null,"Closed 2008",true,{"$f":"IF(G4318<>\"\",INDIRECT(\"'\"&G4318&\"'!\"&H4318),\"\")","v":""}]
[4314,{"$f":"'EstRev 6-11'!C187","v":0},4314,null,true,{"$f":"IF(G4319<>\"\",INDIRECT(\"'\"&G4319&\"'!\"&H4319),\"\")","v":0},"EstRev 6-11","C187"]
[4315,{"$f":"'EstRev 6-11'!D187","v":0},4315,null,true,{"$f":"IF(G4320<>\"\",INDIRECT(\"'\"&G4320&\"'!\"&H4320),\"\")","v":0},"EstRev 6-11","D187"]
[4316,{"$f":"'EstRev 6-11'!F187","v":0},4316,null,true,{"$f":"IF(G4321<>\"\",INDIRECT(\"'\"&G4321&\"'!\"&H4321),\"\")","v":0},"EstRev 6-11","F187"]
[4317,{"$f":"'EstRev 6-11'!G187","v":0},4317,null,true,{"$f":"IF(G4322<>\"\",INDIRECT(\"'\"&G4322&\"'!\"&H4322),\"\")","v":0},"EstRev 6-11","G187"]
[4318,{"$f":"'EstRev 6-11'!C188","v":0},4318,null,true,{"$f":"IF(G4323<>\"\",INDIRECT(\"'\"&G4323&\"'!\"&H4323),\"\")","v":0},"EstRev 6-11","C188"]
[4319,{"$f":"'EstRev 6-11'!D188","v":0},4319,null,true,{"$f":"IF(G4324<>\"\",INDIRECT(\"'\"&G4324&\"'!\"&H4324),\"\")","v":0},"EstRev 6-11","D188"]
[4320,{"$f":"'EstRev 6-11'!F188","v":0},4320,null,true,{"$f":"IF(G4325<>\"\",INDIRECT(\"'\"&G4325&\"'!\"&H4325),\"\")","v":0},"EstRev 6-11","F188"]
[4321,{"$f":"'EstRev 6-11'!G188","v":0},4321,null,true,{"$f":"IF(G4326<>\"\",INDIRECT(\"'\"&G4326&\"'!\"&H4326),\"\")","v":0},"EstRev 6-11","G188"]
[4322,null,null,"Closed 2008",true,{"$f":"IF(G4327<>\"\",INDIRECT(\"'\"&G4327&\"'!\"&H4327),\"\")","v":""}]
[4323,null,null,"Closed 2008",true,{"$f":"IF(G4328<>\"\",INDIRECT(\"'\"&G4328&\"'!\"&H4328),\"\")","v":""}]
[4324,null,null,"Closed 2008",true,{"$f":"IF(G4329<>\"\",INDIRECT(\"'\"&G4329&\"'!\"&H4329),\"\")","v":""}]
[4325,null,null,"Closed 2008",true,{"$f":"IF(G4330<>\"\",INDIRECT(\"'\"&G4330&\"'!\"&H4330),\"\")","v":""}]
[4326,null,null,"Closed 2008",true,{"$f":"IF(G4331<>\"\",INDIRECT(\"'\"&G4331&\"'!\"&H4331),\"\")","v":""}]
[4327,null,null,"Closed 2008",true,{"$f":"IF(G4332<>\"\",INDIRECT(\"'\"&G4332&\"'!\"&H4332),\"\")","v":""}]
[4328,null,null,"Closed 2008",true,{"$f":"IF(G4333<>\"\",INDIRECT(\"'\"&G4333&\"'!\"&H4333),\"\")","v":""}]
[4329,null,null,"Closed 2008",true,{"$f":"IF(G4334<>\"\",INDIRECT(\"'\"&G4334&\"'!\"&H4334),\"\")","v":""}]
[4330,{"$f":"'EstRev 6-11'!C189","v":0},4330,null,true,{"$f":"IF(G4335<>\"\",INDIRECT(\"'\"&G4335&\"'!\"&H4335),\"\")","v":0},"EstRev 6-11","C189"]
[4331,{"$f":"'EstRev 6-11'!D189","v":0},4331,null,true,{"$f":"IF(G4336<>\"\",INDIRECT(\"'\"&G4336&\"'!\"&H4336),\"\")","v":0},"EstRev 6-11","D189"]
[4332,{"$f":"'EstRev 6-11'!F189","v":0},4332,null,true,{"$f":"IF(G4337<>\"\",INDIRECT(\"'\"&G4337&\"'!\"&H4337),\"\")","v":0},"EstRev 6-11","F189"]
[4333,{"$f":"'EstRev 6-11'!G189","v":0},4333,null,true,{"$f":"IF(G4338<>\"\",INDIRECT(\"'\"&G4338&\"'!\"&H4338),\"\")","v":0},"EstRev 6-11","G189"]
[4334,{"$f":"'EstRev 6-11'!C190","v":0},4334,null,true,{"$f":"IF(G4339<>\"\",INDIRECT(\"'\"&G4339&\"'!\"&H4339),\"\")","v":0},"EstRev 6-11","C190"]
[4335,{"$f":"'EstRev 6-11'!D190","v":0},4335,null,true,{"$f":"IF(G4340<>\"\",INDIRECT(\"'\"&G4340&\"'!\"&H4340),\"\")","v":0},"EstRev 6-11","D190"]
[4336,{"$f":"'EstRev 6-11'!F190","v":0},4336,null,true,{"$f":"IF(G4341<>\"\",INDIRECT(\"'\"&G4341&\"'!\"&H4341),\"\")","v":0},"EstRev 6-11","F190"]
[4337,{"$f":"'EstRev 6-11'!G190","v":0},4337,null,true,{"$f":"IF(G4342<>\"\",INDIRECT(\"'\"&G4342&\"'!\"&H4342),\"\")","v":0},"EstRev 6-11","G190"]
[4338,null,null,"Closed 2018",true,{"$f":"IF(G4343<>\"\",INDIRECT(\"'\"&G4343&\"'!\"&H4343),\"\")","v":""}]
[4339,null,null,"Closed 2018",true,{"$f":"IF(G4344<>\"\",INDIRECT(\"'\"&G4344&\"'!\"&H4344),\"\")","v":""}]
[4340,null,null,"Closed 2018",true,{"$f":"IF(G4345<>\"\",INDIRECT(\"'\"&G4345&\"'!\"&H4345),\"\")","v":""}]
[4341,null,null,"Closed 2018",true,{"$f":"IF(G4346<>\"\",INDIRECT(\"'\"&G4346&\"'!\"&H4346),\"\")","v":""}]
[4342,null,null,"Closed 2008",true,{"$f":"IF(G4347<>\"\",INDIRECT(\"'\"&G4347&\"'!\"&H4347),\"\")","v":""}]
[4343,null,null,"Closed 2008",true,{"$f":"IF(G4348<>\"\",INDIRECT(\"'\"&G4348&\"'!\"&H4348),\"\")","v":""}]
[4344,null,null,"Closed 2008",true,{"$f":"IF(G4349<>\"\",INDIRECT(\"'\"&G4349&\"'!\"&H4349),\"\")","v":""}]
[4345,null,null,"Closed 2008",true,{"$f":"IF(G4350<>\"\",INDIRECT(\"'\"&G4350&\"'!\"&H4350),\"\")","v":""}]
[4346,{"$f":"'EstRev 6-11'!C210","v":0},4346,null,true,{"$f":"IF(G4351<>\"\",INDIRECT(\"'\"&G4351&\"'!\"&H4351),\"\")","v":0},"EstRev 6-11","C210"]
[4347,{"$f":"'EstRev 6-11'!D210","v":0},4347,null,true,{"$f":"IF(G4352<>\"\",INDIRECT(\"'\"&G4352&\"'!\"&H4352),\"\")","v":0},"EstRev 6-11","D210"]
[4348,{"$f":"'EstRev 6-11'!F210","v":0},4348,null,true,{"$f":"IF(G4353<>\"\",INDIRECT(\"'\"&G4353&\"'!\"&H4353),\"\")","v":0},"EstRev 6-11","F210"]
[4349,{"$f":"'EstRev 6-11'!G210","v":0},4349,null,{"$f":"F4354=B4354","v":true},{"$f":"IF(G4354<>\"\",INDIRECT(\"'\"&G4354&\"'!\"&H4354),\"\")","v":0},"EstRev 6-11","G210"]
[4350,{"$f":"'EstRev 6-11'!C212","v":37000},-32650,null,true,{"$f":"IF(G4355<>\"\",INDIRECT(\"'\"&G4355&\"'!\"&H4355),\"\")","v":37000},"EstRev 6-11","C212"]
[4351,{"$f":"'EstRev 6-11'!D212","v":0},4351,null,true,{"$f":"IF(G4356<>\"\",INDIRECT(\"'\"&G4356&\"'!\"&H4356),\"\")","v":0},"EstRev 6-11","D212"]
[4352,{"$f":"'EstRev 6-11'!F212","v":0},4352,null,true,{"$f":"IF(G4357<>\"\",INDIRECT(\"'\"&G4357&\"'!\"&H4357),\"\")","v":0},"EstRev 6-11","F212"]
[4353,{"$f":"'EstRev 6-11'!G212","v":0},4353,null,true,{"$f":"IF(G4358<>\"\",INDIRECT(\"'\"&G4358&\"'!\"&H4358),\"\")","v":0},"EstRev 6-11","G212"]
[4354,{"$f":"'EstRev 6-11'!C259","v":12000},-7646,null,true,{"$f":"IF(G4359<>\"\",INDIRECT(\"'\"&G4359&\"'!\"&H4359),\"\")","v":12000},"EstRev 6-11","C259"]
[4355,{"$f":"'EstRev 6-11'!F259","v":0},{"$f":"A4360-B4360","v":4355},null,true,{"$f":"IF(G4360<>\"\",INDIRECT(\"'\"&G4360&\"'!\"&H4360),\"\")","v":0},"EstRev 6-11","F259"]
[4356,{"$f":"'EstRev 6-11'!G259","v":0},4356,null,true,{"$f":"IF(G4361<>\"\",INDIRECT(\"'\"&G4361&\"'!\"&H4361),\"\")","v":0},"EstRev 6-11","G259"]
[4357,{"$f":"'EstRev 6-11'!C262","v":53000},-48643,null,true,{"$f":"IF(G4362<>\"\",INDIRECT(\"'\"&G4362&\"'!\"&H4362),\"\")","v":53000},"EstRev 6-11","C262"]
[4358,{"$f":"'EstRev 6-11'!D262","v":0},4358,null,true,{"$f":"IF(G4363<>\"\",INDIRECT(\"'\"&G4363&\"'!\"&H4363),\"\")","v":0},"EstRev 6-11","D262"]
[4359,{"$f":"'EstRev 6-11'!F262","v":0},4359,null,true,{"$f":"IF(G4364<>\"\",INDIRECT(\"'\"&G4364&\"'!\"&H4364),\"\")","v":0},"EstRev 6-11","F262"]
[4360,{"$f":"'EstRev 6-11'!G262","v":0},4360,null,true,{"$f":"IF(G4365<>\"\",INDIRECT(\"'\"&G4365&\"'!\"&H4365),\"\")","v":0},"EstRev 6-11","G262"]
[4361,null,null,"Closed 2008",true,{"$f":"IF(G4366<>\"\",INDIRECT(\"'\"&G4366&\"'!\"&H4366),\"\")","v":""}]
[4362,null,null,"Closed 2008",true,{"$f":"IF(G4367<>\"\",INDIRECT(\"'\"&G4367&\"'!\"&H4367),\"\")","v":""}]
[4363,null,null,"Closed 2008",true,{"$f":"IF(G4368<>\"\",INDIRECT(\"'\"&G4368&\"'!\"&H4368),\"\")","v":""}]
[4364,null,null,"Closed 2008",true,{"$f":"IF(G4369<>\"\",INDIRECT(\"'\"&G4369&\"'!\"&H4369),\"\")","v":""}]
[4365,null,null,"Closed 2008",true,{"$f":"IF(G4370<>\"\",INDIRECT(\"'\"&G4370&\"'!\"&H4370),\"\")","v":""}]
[4366,null,null,"Closed 2008",true,{"$f":"IF(G4371<>\"\",INDIRECT(\"'\"&G4371&\"'!\"&H4371),\"\")","v":""}]
[4367,null,null,"Closed 2008",true,{"$f":"IF(G4372<>\"\",INDIRECT(\"'\"&G4372&\"'!\"&H4372),\"\")","v":""}]
[4368,null,null,"Closed 2008",true,{"$f":"IF(G4373<>\"\",INDIRECT(\"'\"&G4373&\"'!\"&H4373),\"\")","v":""}]
[4369,null,null,"Closed 2008",true,{"$f":"IF(G4374<>\"\",INDIRECT(\"'\"&G4374&\"'!\"&H4374),\"\")","v":""}]
[4370,null,null,"Closed 2008",true,{"$f":"IF(G4375<>\"\",INDIRECT(\"'\"&G4375&\"'!\"&H4375),\"\")","v":""}]
[4371,null,null,"Closed 2008",true,{"$f":"IF(G4376<>\"\",INDIRECT(\"'\"&G4376&\"'!\"&H4376),\"\")","v":""}]
[4372,null,null,"Closed 2008",true,{"$f":"IF(G4377<>\"\",INDIRECT(\"'\"&G4377&\"'!\"&H4377),\"\")","v":""}]
[4373,{"$f":"'EstRev 6-11'!E271","v":0},4373,null,true,{"$f":"IF(G4378<>\"\",INDIRECT(\"'\"&G4378&\"'!\"&H4378),\"\")","v":0},"EstRev 6-11","E271"]
[4374,{"$f":"'EstRev 6-11'!I271","v":0},4374,null,true,{"$f":"IF(G4379<>\"\",INDIRECT(\"'\"&G4379&\"'!\"&H4379),\"\")","v":0},"EstRev 6-11","I271"]
[4375,null,null,"Closed 2008",true,{"$f":"IF(G4380<>\"\",INDIRECT(\"'\"&G4380&\"'!\"&H4380),\"\")","v":""}]
[4376,{"$nulls":3},true,{"$f":"IF(G4381<>\"\",INDIRECT(\"'\"&G4381&\"'!\"&H4381),\"\")","v":""}]
[4377,null,null,"Closed 2008",true,{"$f":"IF(G4382<>\"\",INDIRECT(\"'\"&G4382&\"'!\"&H4382),\"\")","v":""}]
[4378,null,null,"Closed 2008",true,{"$f":"IF(G4383<>\"\",INDIRECT(\"'\"&G4383&\"'!\"&H4383),\"\")","v":""}]
[4379,null,null,"Closed 2008",true,{"$f":"IF(G4384<>\"\",INDIRECT(\"'\"&G4384&\"'!\"&H4384),\"\")","v":""}]
[4380,{"$f":"'EstRev 6-11'!H270","v":203000},-198620,null,true,{"$f":"IF(G4385<>\"\",INDIRECT(\"'\"&G4385&\"'!\"&H4385),\"\")","v":203000},"EstRev 6-11","H270"]
[4381,{"$f":"'EstRev 6-11'!K270","v":0},4381,null,true,{"$f":"IF(G4386<>\"\",INDIRECT(\"'\"&G4386&\"'!\"&H4386),\"\")","v":0},"EstRev 6-11","K270"]
[4382,{"$f":"'BudgetSum 2-4'!E8","v":0},4382,null,true,{"$f":"IF(G4387<>\"\",INDIRECT(\"'\"&G4387&\"'!\"&H4387),\"\")","v":0},"BudgetSum 2-4","E8"]
[4383,{"$f":"'BudgetSum 2-4'!I8","v":0},4383,null,true,{"$f":"IF(G4388<>\"\",INDIRECT(\"'\"&G4388&\"'!\"&H4388),\"\")","v":0},"BudgetSum 2-4","I8"]
[4384,null,null,"Closed 2008",true,{"$f":"IF(G4389<>\"\",INDIRECT(\"'\"&G4389&\"'!\"&H4389),\"\")","v":""}]
[4385,{"$f":"'EstRev 6-11'!D268","v":0},4385,null,true,{"$f":"IF(G4390<>\"\",INDIRECT(\"'\"&G4390&\"'!\"&H4390),\"\")","v":0},"EstRev 6-11","D268"]
[4386,{"$f":"'EstRev 6-11'!F268","v":0},4386,null,true,{"$f":"IF(G4391<>\"\",INDIRECT(\"'\"&G4391&\"'!\"&H4391),\"\")","v":0},"EstRev 6-11","F268"]
[4387,{"$f":"'EstRev 6-11'!G268","v":0},4387,null,true,{"$f":"IF(G4392<>\"\",INDIRECT(\"'\"&G4392&\"'!\"&H4392),\"\")","v":0},"EstRev 6-11","G268"]
[4388,{"$nulls":3},true,{"$f":"IF(G4393<>\"\",INDIRECT(\"'\"&G4393&\"'!\"&H4393),\"\")","v":""}]
[4389,{"$nulls":3},true,{"$f":"IF(G4394<>\"\",INDIRECT(\"'\"&G4394&\"'!\"&H4394),\"\")","v":""}]
[4390,{"$nulls":3},true,{"$f":"IF(G4395<>\"\",INDIRECT(\"'\"&G4395&\"'!\"&H4395),\"\")","v":""}]
[4391,{"$nulls":3},true,{"$f":"IF(G4396<>\"\",INDIRECT(\"'\"&G4396&\"'!\"&H4396),\"\")","v":""}]
[4392,{"$nulls":3},true,{"$f":"IF(G4397<>\"\",INDIRECT(\"'\"&G4397&\"'!\"&H4397),\"\")","v":""}]
[4393,{"$nulls":3},true,{"$f":"IF(G4398<>\"\",INDIRECT(\"'\"&G4398&\"'!\"&H4398),\"\")","v":""}]
[4394,{"$nulls":3},true,{"$f":"IF(G4399<>\"\",INDIRECT(\"'\"&G4399&\"'!\"&H4399),\"\")","v":""}]
[4395,{"$nulls":3},true,{"$f":"IF(G4400<>\"\",INDIRECT(\"'\"&G4400&\"'!\"&H4400),\"\")","v":""}]
[4396,{"$nulls":3},true,{"$f":"IF(G4401<>\"\",INDIRECT(\"'\"&G4401&\"'!\"&H4401),\"\")","v":""}]
[4397,{"$nulls":3},true,{"$f":"IF(G4402<>\"\",INDIRECT(\"'\"&G4402&\"'!\"&H4402),\"\")","v":""}]
[4398,{"$nulls":3},true,{"$f":"IF(G4403<>\"\",INDIRECT(\"'\"&G4403&\"'!\"&H4403),\"\")","v":""}]
[4399,{"$nulls":3},true,{"$f":"IF(G4404<>\"\",INDIRECT(\"'\"&G4404&\"'!\"&H4404),\"\")","v":""}]
[4400,{"$nulls":3},true,{"$f":"IF(G4405<>\"\",INDIRECT(\"'\"&G4405&\"'!\"&H4405),\"\")","v":""}]
[4401,{"$nulls":3},true,{"$f":"IF(G4406<>\"\",INDIRECT(\"'\"&G4406&\"'!\"&H4406),\"\")","v":""}]
[4402,{"$nulls":3},true,{"$f":"IF(G4407<>\"\",INDIRECT(\"'\"&G4407&\"'!\"&H4407),\"\")","v":""}]
[4403,{"$nulls":3},true,{"$f":"IF(G4408<>\"\",INDIRECT(\"'\"&G4408&\"'!\"&H4408),\"\")","v":""}]
[4404,{"$nulls":3},true,{"$f":"IF(G4409<>\"\",INDIRECT(\"'\"&G4409&\"'!\"&H4409),\"\")","v":""}]
[4405,{"$nulls":3},true,{"$f":"IF(G4410<>\"\",INDIRECT(\"'\"&G4410&\"'!\"&H4410),\"\")","v":""}]
[4406,{"$nulls":3},true,{"$f":"IF(G4411<>\"\",INDIRECT(\"'\"&G4411&\"'!\"&H4411),\"\")","v":""}]
[4407,{"$nulls":3},true,{"$f":"IF(G4412<>\"\",INDIRECT(\"'\"&G4412&\"'!\"&H4412),\"\")","v":""}]
[4408,{"$nulls":3},true,{"$f":"IF(G4413<>\"\",INDIRECT(\"'\"&G4413&\"'!\"&H4413),\"\")","v":""}]
[4409,{"$nulls":3},true,{"$f":"IF(G4414<>\"\",INDIRECT(\"'\"&G4414&\"'!\"&H4414),\"\")","v":""}]
[4410,{"$nulls":3},true,{"$f":"IF(G4415<>\"\",INDIRECT(\"'\"&G4415&\"'!\"&H4415),\"\")","v":""}]
[4411,{"$nulls":3},true,{"$f":"IF(G4416<>\"\",INDIRECT(\"'\"&G4416&\"'!\"&H4416),\"\")","v":""}]
[4412,{"$nulls":3},true,{"$f":"IF(G4417<>\"\",INDIRECT(\"'\"&G4417&\"'!\"&H4417),\"\")","v":""}]
[4413,{"$nulls":3},{"$f":"F4418=B4418","v":true},{"$f":"IF(G4418<>\"\",INDIRECT(\"'\"&G4418&\"'!\"&H4418),\"\")","v":""}]
[4414,{"$nulls":3},true,{"$f":"IF(G4419<>\"\",INDIRECT(\"'\"&G4419&\"'!\"&H4419),\"\")","v":""}]
[4415,{"$nulls":3},true,{"$f":"IF(G4420<>\"\",INDIRECT(\"'\"&G4420&\"'!\"&H4420),\"\")","v":""}]
[4416,{"$nulls":3},true,{"$f":"IF(G4421<>\"\",INDIRECT(\"'\"&G4421&\"'!\"&H4421),\"\")","v":""}]
[4417,{"$nulls":3},true,{"$f":"IF(G4422<>\"\",INDIRECT(\"'\"&G4422&\"'!\"&H4422),\"\")","v":""}]
[4418,{"$nulls":3},true,{"$f":"IF(G4423<>\"\",INDIRECT(\"'\"&G4423&\"'!\"&H4423),\"\")","v":""}]
[4419,{"$nulls":3},true,{"$f":"IF(G4424<>\"\",INDIRECT(\"'\"&G4424&\"'!\"&H4424),\"\")","v":""}]
[4420,{"$nulls":3},true,{"$f":"IF(G4425<>\"\",INDIRECT(\"'\"&G4425&\"'!\"&H4425),\"\")","v":""}]
[4421,{"$nulls":3},true,{"$f":"IF(G4426<>\"\",INDIRECT(\"'\"&G4426&\"'!\"&H4426),\"\")","v":""}]
[4422,{"$nulls":3},true,{"$f":"IF(G4427<>\"\",INDIRECT(\"'\"&G4427&\"'!\"&H4427),\"\")","v":""}]
[4423,{"$nulls":3},true,{"$f":"IF(G4428<>\"\",INDIRECT(\"'\"&G4428&\"'!\"&H4428),\"\")","v":""}]
[4424,{"$nulls":3},true,{"$f":"IF(G4429<>\"\",INDIRECT(\"'\"&G4429&\"'!\"&H4429),\"\")","v":""}]
[4425,{"$nulls":3},true,{"$f":"IF(G4430<>\"\",INDIRECT(\"'\"&G4430&\"'!\"&H4430),\"\")","v":""}]
[4426,{"$nulls":3},true,{"$f":"IF(G4431<>\"\",INDIRECT(\"'\"&G4431&\"'!\"&H4431),\"\")","v":""}]
[4427,{"$nulls":3},true,{"$f":"IF(G4432<>\"\",INDIRECT(\"'\"&G4432&\"'!\"&H4432),\"\")","v":""}]
[4428,{"$nulls":3},true,{"$f":"IF(G4433<>\"\",INDIRECT(\"'\"&G4433&\"'!\"&H4433),\"\")","v":""}]
[4429,{"$nulls":3},true,{"$f":"IF(G4434<>\"\",INDIRECT(\"'\"&G4434&\"'!\"&H4434),\"\")","v":""}]
[4430,{"$nulls":3},true,{"$f":"IF(G4435<>\"\",INDIRECT(\"'\"&G4435&\"'!\"&H4435),\"\")","v":""}]
[4431,{"$nulls":3},true,{"$f":"IF(G4436<>\"\",INDIRECT(\"'\"&G4436&\"'!\"&H4436),\"\")","v":""}]
[4432,{"$nulls":3},true,{"$f":"IF(G4437<>\"\",INDIRECT(\"'\"&G4437&\"'!\"&H4437),\"\")","v":""}]
[4433,{"$nulls":3},true,{"$f":"IF(G4438<>\"\",INDIRECT(\"'\"&G4438&\"'!\"&H4438),\"\")","v":""}]
[4434,{"$nulls":3},true,{"$f":"IF(G4439<>\"\",INDIRECT(\"'\"&G4439&\"'!\"&H4439),\"\")","v":""}]
[4435,{"$nulls":3},true,{"$f":"IF(G4440<>\"\",INDIRECT(\"'\"&G4440&\"'!\"&H4440),\"\")","v":""}]
[4436,{"$nulls":3},true,{"$f":"IF(G4441<>\"\",INDIRECT(\"'\"&G4441&\"'!\"&H4441),\"\")","v":""}]
[4437,{"$nulls":3},true,{"$f":"IF(G4442<>\"\",INDIRECT(\"'\"&G4442&\"'!\"&H4442),\"\")","v":""}]
[4438,{"$nulls":3},true,{"$f":"IF(G4443<>\"\",INDIRECT(\"'\"&G4443&\"'!\"&H4443),\"\")","v":""}]
[4439,{"$nulls":3},true,{"$f":"IF(G4444<>\"\",INDIRECT(\"'\"&G4444&\"'!\"&H4444),\"\")","v":""}]
[4440,{"$nulls":3},true,{"$f":"IF(G4445<>\"\",INDIRECT(\"'\"&G4445&\"'!\"&H4445),\"\")","v":""}]
[4441,{"$nulls":3},true,{"$f":"IF(G4446<>\"\",INDIRECT(\"'\"&G4446&\"'!\"&H4446),\"\")","v":""}]
[4442,{"$nulls":3},true,{"$f":"IF(G4447<>\"\",INDIRECT(\"'\"&G4447&\"'!\"&H4447),\"\")","v":""}]
[4443,{"$nulls":3},true,{"$f":"IF(G4448<>\"\",INDIRECT(\"'\"&G4448&\"'!\"&H4448),\"\")","v":""}]
[4444,{"$nulls":3},true,{"$f":"IF(G4449<>\"\",INDIRECT(\"'\"&G4449&\"'!\"&H4449),\"\")","v":""}]
[4445,{"$nulls":3},true,{"$f":"IF(G4450<>\"\",INDIRECT(\"'\"&G4450&\"'!\"&H4450),\"\")","v":""}]
[4446,{"$nulls":3},true,{"$f":"IF(G4451<>\"\",INDIRECT(\"'\"&G4451&\"'!\"&H4451),\"\")","v":""}]
[4447,{"$nulls":3},true,{"$f":"IF(G4452<>\"\",INDIRECT(\"'\"&G4452&\"'!\"&H4452),\"\")","v":""}]
[4448,{"$nulls":3},true,{"$f":"IF(G4453<>\"\",INDIRECT(\"'\"&G4453&\"'!\"&H4453),\"\")","v":""}]
[4449,{"$nulls":3},true,{"$f":"IF(G4454<>\"\",INDIRECT(\"'\"&G4454&\"'!\"&H4454),\"\")","v":""}]
[4450,{"$nulls":3},true,{"$f":"IF(G4455<>\"\",INDIRECT(\"'\"&G4455&\"'!\"&H4455),\"\")","v":""}]
[4451,{"$nulls":3},true,{"$f":"IF(G4456<>\"\",INDIRECT(\"'\"&G4456&\"'!\"&H4456),\"\")","v":""}]
[4452,{"$nulls":3},true,{"$f":"IF(G4457<>\"\",INDIRECT(\"'\"&G4457&\"'!\"&H4457),\"\")","v":""}]
[4453,{"$nulls":3},true,{"$f":"IF(G4458<>\"\",INDIRECT(\"'\"&G4458&\"'!\"&H4458),\"\")","v":""}]
[4454,{"$nulls":3},true,{"$f":"IF(G4459<>\"\",INDIRECT(\"'\"&G4459&\"'!\"&H4459),\"\")","v":""}]
[4455,{"$nulls":3},true,{"$f":"IF(G4460<>\"\",INDIRECT(\"'\"&G4460&\"'!\"&H4460),\"\")","v":""}]
[4456,{"$nulls":3},true,{"$f":"IF(G4461<>\"\",INDIRECT(\"'\"&G4461&\"'!\"&H4461),\"\")","v":""}]
[4457,{"$nulls":3},true,{"$f":"IF(G4462<>\"\",INDIRECT(\"'\"&G4462&\"'!\"&H4462),\"\")","v":""}]
[4458,{"$nulls":3},true,{"$f":"IF(G4463<>\"\",INDIRECT(\"'\"&G4463&\"'!\"&H4463),\"\")","v":""}]
[4459,{"$nulls":3},true,{"$f":"IF(G4464<>\"\",INDIRECT(\"'\"&G4464&\"'!\"&H4464),\"\")","v":""}]
[4460,{"$nulls":3},true,{"$f":"IF(G4465<>\"\",INDIRECT(\"'\"&G4465&\"'!\"&H4465),\"\")","v":""}]
[4461,{"$nulls":3},true,{"$f":"IF(G4466<>\"\",INDIRECT(\"'\"&G4466&\"'!\"&H4466),\"\")","v":""}]
[4462,{"$nulls":3},true,{"$f":"IF(G4467<>\"\",INDIRECT(\"'\"&G4467&\"'!\"&H4467),\"\")","v":""}]
[4463,{"$nulls":3},true,{"$f":"IF(G4468<>\"\",INDIRECT(\"'\"&G4468&\"'!\"&H4468),\"\")","v":""}]
[4464,{"$nulls":3},true,{"$f":"IF(G4469<>\"\",INDIRECT(\"'\"&G4469&\"'!\"&H4469),\"\")","v":""}]
[4465,{"$nulls":3},true,{"$f":"IF(G4470<>\"\",INDIRECT(\"'\"&G4470&\"'!\"&H4470),\"\")","v":""}]
[4466,{"$nulls":3},true,{"$f":"IF(G4471<>\"\",INDIRECT(\"'\"&G4471&\"'!\"&H4471),\"\")","v":""}]
[4467,{"$nulls":3},true,{"$f":"IF(G4472<>\"\",INDIRECT(\"'\"&G4472&\"'!\"&H4472),\"\")","v":""}]
[4468,{"$nulls":3},true,{"$f":"IF(G4473<>\"\",INDIRECT(\"'\"&G4473&\"'!\"&H4473),\"\")","v":""}]
[4469,{"$nulls":3},true,{"$f":"IF(G4474<>\"\",INDIRECT(\"'\"&G4474&\"'!\"&H4474),\"\")","v":""}]
[4470,{"$nulls":3},true,{"$f":"IF(G4475<>\"\",INDIRECT(\"'\"&G4475&\"'!\"&H4475),\"\")","v":""}]
[4471,{"$nulls":3},true,{"$f":"IF(G4476<>\"\",INDIRECT(\"'\"&G4476&\"'!\"&H4476),\"\")","v":""}]
[4472,{"$nulls":3},true,{"$f":"IF(G4477<>\"\",INDIRECT(\"'\"&G4477&\"'!\"&H4477),\"\")","v":""}]
[4473,{"$nulls":3},true,{"$f":"IF(G4478<>\"\",INDIRECT(\"'\"&G4478&\"'!\"&H4478),\"\")","v":""}]
[4474,{"$nulls":3},true,{"$f":"IF(G4479<>\"\",INDIRECT(\"'\"&G4479&\"'!\"&H4479),\"\")","v":""}]
[4475,{"$nulls":3},true,{"$f":"IF(G4480<>\"\",INDIRECT(\"'\"&G4480&\"'!\"&H4480),\"\")","v":""}]
[4476,{"$nulls":3},true,{"$f":"IF(G4481<>\"\",INDIRECT(\"'\"&G4481&\"'!\"&H4481),\"\")","v":""}]
[4477,{"$nulls":3},{"$f":"F4482=B4482","v":true},{"$f":"IF(G4482<>\"\",INDIRECT(\"'\"&G4482&\"'!\"&H4482),\"\")","v":""}]
[4478,{"$nulls":3},true,{"$f":"IF(G4483<>\"\",INDIRECT(\"'\"&G4483&\"'!\"&H4483),\"\")","v":""}]
[4479,{"$nulls":3},true,{"$f":"IF(G4484<>\"\",INDIRECT(\"'\"&G4484&\"'!\"&H4484),\"\")","v":""}]
[4480,{"$nulls":3},true,{"$f":"IF(G4485<>\"\",INDIRECT(\"'\"&G4485&\"'!\"&H4485),\"\")","v":""}]
[4481,{"$nulls":3},true,{"$f":"IF(G4486<>\"\",INDIRECT(\"'\"&G4486&\"'!\"&H4486),\"\")","v":""}]
[4482,{"$nulls":3},true,{"$f":"IF(G4487<>\"\",INDIRECT(\"'\"&G4487&\"'!\"&H4487),\"\")","v":""}]
[4483,{"$nulls":3},true,{"$f":"IF(G4488<>\"\",INDIRECT(\"'\"&G4488&\"'!\"&H4488),\"\")","v":""}]
[4484,{"$nulls":3},true,{"$f":"IF(G4489<>\"\",INDIRECT(\"'\"&G4489&\"'!\"&H4489),\"\")","v":""}]
[4485,{"$nulls":3},true,{"$f":"IF(G4490<>\"\",INDIRECT(\"'\"&G4490&\"'!\"&H4490),\"\")","v":""}]
[4486,{"$nulls":3},true,{"$f":"IF(G4491<>\"\",INDIRECT(\"'\"&G4491&\"'!\"&H4491),\"\")","v":""}]
[4487,{"$nulls":3},true,{"$f":"IF(G4492<>\"\",INDIRECT(\"'\"&G4492&\"'!\"&H4492),\"\")","v":""}]
[4488,{"$nulls":3},true,{"$f":"IF(G4493<>\"\",INDIRECT(\"'\"&G4493&\"'!\"&H4493),\"\")","v":""}]
[4489,{"$nulls":3},true,{"$f":"IF(G4494<>\"\",INDIRECT(\"'\"&G4494&\"'!\"&H4494),\"\")","v":""}]
[4490,{"$nulls":3},true,{"$f":"IF(G4495<>\"\",INDIRECT(\"'\"&G4495&\"'!\"&H4495),\"\")","v":""}]
[4491,{"$nulls":3},true,{"$f":"IF(G4496<>\"\",INDIRECT(\"'\"&G4496&\"'!\"&H4496),\"\")","v":""}]
[4492,{"$nulls":3},true,{"$f":"IF(G4497<>\"\",INDIRECT(\"'\"&G4497&\"'!\"&H4497),\"\")","v":""}]
[4493,{"$nulls":3},true,{"$f":"IF(G4498<>\"\",INDIRECT(\"'\"&G4498&\"'!\"&H4498),\"\")","v":""}]
[4494,{"$nulls":3},true,{"$f":"IF(G4499<>\"\",INDIRECT(\"'\"&G4499&\"'!\"&H4499),\"\")","v":""}]
[4495,{"$nulls":3},true,{"$f":"IF(G4500<>\"\",INDIRECT(\"'\"&G4500&\"'!\"&H4500),\"\")","v":""}]
[4496,{"$nulls":3},true,{"$f":"IF(G4501<>\"\",INDIRECT(\"'\"&G4501&\"'!\"&H4501),\"\")","v":""}]
[4497,{"$nulls":3},true,{"$f":"IF(G4502<>\"\",INDIRECT(\"'\"&G4502&\"'!\"&H4502),\"\")","v":""}]
[4498,{"$nulls":3},true,{"$f":"IF(G4503<>\"\",INDIRECT(\"'\"&G4503&\"'!\"&H4503),\"\")","v":""}]
[4499,{"$nulls":3},true,{"$f":"IF(G4504<>\"\",INDIRECT(\"'\"&G4504&\"'!\"&H4504),\"\")","v":""}]
[4500,{"$nulls":3},true,{"$f":"IF(G4505<>\"\",INDIRECT(\"'\"&G4505&\"'!\"&H4505),\"\")","v":""}]
[4501,{"$nulls":3},true,{"$f":"IF(G4506<>\"\",INDIRECT(\"'\"&G4506&\"'!\"&H4506),\"\")","v":""}]
[4502,{"$nulls":3},true,{"$f":"IF(G4507<>\"\",INDIRECT(\"'\"&G4507&\"'!\"&H4507),\"\")","v":""}]
[4503,{"$nulls":3},true,{"$f":"IF(G4508<>\"\",INDIRECT(\"'\"&G4508&\"'!\"&H4508),\"\")","v":""}]
[4504,{"$nulls":3},true,{"$f":"IF(G4509<>\"\",INDIRECT(\"'\"&G4509&\"'!\"&H4509),\"\")","v":""}]
[4505,{"$nulls":3},true,{"$f":"IF(G4510<>\"\",INDIRECT(\"'\"&G4510&\"'!\"&H4510),\"\")","v":""}]
[4506,{"$nulls":3},true,{"$f":"IF(G4511<>\"\",INDIRECT(\"'\"&G4511&\"'!\"&H4511),\"\")","v":""}]
[4507,{"$nulls":3},true,{"$f":"IF(G4512<>\"\",INDIRECT(\"'\"&G4512&\"'!\"&H4512),\"\")","v":""}]
[4508,{"$nulls":3},true,{"$f":"IF(G4513<>\"\",INDIRECT(\"'\"&G4513&\"'!\"&H4513),\"\")","v":""}]
[4509,{"$nulls":3},true,{"$f":"IF(G4514<>\"\",INDIRECT(\"'\"&G4514&\"'!\"&H4514),\"\")","v":""}]
[4510,{"$nulls":3},true,{"$f":"IF(G4515<>\"\",INDIRECT(\"'\"&G4515&\"'!\"&H4515),\"\")","v":""}]
[4511,{"$nulls":3},true,{"$f":"IF(G4516<>\"\",INDIRECT(\"'\"&G4516&\"'!\"&H4516),\"\")","v":""}]
[4512,{"$nulls":3},true,{"$f":"IF(G4517<>\"\",INDIRECT(\"'\"&G4517&\"'!\"&H4517),\"\")","v":""}]
[4513,{"$nulls":3},true,{"$f":"IF(G4518<>\"\",INDIRECT(\"'\"&G4518&\"'!\"&H4518),\"\")","v":""}]
[4514,{"$nulls":3},true,{"$f":"IF(G4519<>\"\",INDIRECT(\"'\"&G4519&\"'!\"&H4519),\"\")","v":""}]
[4515,{"$nulls":3},true,{"$f":"IF(G4520<>\"\",INDIRECT(\"'\"&G4520&\"'!\"&H4520),\"\")","v":""}]
[4516,{"$nulls":3},true,{"$f":"IF(G4521<>\"\",INDIRECT(\"'\"&G4521&\"'!\"&H4521),\"\")","v":""}]
[4517,{"$nulls":3},true,{"$f":"IF(G4522<>\"\",INDIRECT(\"'\"&G4522&\"'!\"&H4522),\"\")","v":""}]
[4518,{"$nulls":3},true,{"$f":"IF(G4523<>\"\",INDIRECT(\"'\"&G4523&\"'!\"&H4523),\"\")","v":""}]
[4519,{"$nulls":3},true,{"$f":"IF(G4524<>\"\",INDIRECT(\"'\"&G4524&\"'!\"&H4524),\"\")","v":""}]
[4520,{"$nulls":3},true,{"$f":"IF(G4525<>\"\",INDIRECT(\"'\"&G4525&\"'!\"&H4525),\"\")","v":""}]
[4521,{"$nulls":3},true,{"$f":"IF(G4526<>\"\",INDIRECT(\"'\"&G4526&\"'!\"&H4526),\"\")","v":""}]
[4522,{"$nulls":3},true,{"$f":"IF(G4527<>\"\",INDIRECT(\"'\"&G4527&\"'!\"&H4527),\"\")","v":""}]
[4523,{"$nulls":3},true,{"$f":"IF(G4528<>\"\",INDIRECT(\"'\"&G4528&\"'!\"&H4528),\"\")","v":""}]
[4524,{"$nulls":3},true,{"$f":"IF(G4529<>\"\",INDIRECT(\"'\"&G4529&\"'!\"&H4529),\"\")","v":""}]
[4525,{"$nulls":3},true,{"$f":"IF(G4530<>\"\",INDIRECT(\"'\"&G4530&\"'!\"&H4530),\"\")","v":""}]
[4526,{"$nulls":3},true,{"$f":"IF(G4531<>\"\",INDIRECT(\"'\"&G4531&\"'!\"&H4531),\"\")","v":""}]
[4527,{"$nulls":3},true,{"$f":"IF(G4532<>\"\",INDIRECT(\"'\"&G4532&\"'!\"&H4532),\"\")","v":""}]
[4528,{"$nulls":3},true,{"$f":"IF(G4533<>\"\",INDIRECT(\"'\"&G4533&\"'!\"&H4533),\"\")","v":""}]
[4529,{"$nulls":3},true,{"$f":"IF(G4534<>\"\",INDIRECT(\"'\"&G4534&\"'!\"&H4534),\"\")","v":""}]
[4530,{"$nulls":3},true,{"$f":"IF(G4535<>\"\",INDIRECT(\"'\"&G4535&\"'!\"&H4535),\"\")","v":""}]
[4531,{"$nulls":3},true,{"$f":"IF(G4536<>\"\",INDIRECT(\"'\"&G4536&\"'!\"&H4536),\"\")","v":""}]
[4532,{"$nulls":3},true,{"$f":"IF(G4537<>\"\",INDIRECT(\"'\"&G4537&\"'!\"&H4537),\"\")","v":""}]
[4533,{"$nulls":3},true,{"$f":"IF(G4538<>\"\",INDIRECT(\"'\"&G4538&\"'!\"&H4538),\"\")","v":""}]
[4534,{"$nulls":3},true,{"$f":"IF(G4539<>\"\",INDIRECT(\"'\"&G4539&\"'!\"&H4539),\"\")","v":""}]
[4535,{"$nulls":3},true,{"$f":"IF(G4540<>\"\",INDIRECT(\"'\"&G4540&\"'!\"&H4540),\"\")","v":""}]
[4536,{"$nulls":3},true,{"$f":"IF(G4541<>\"\",INDIRECT(\"'\"&G4541&\"'!\"&H4541),\"\")","v":""}]
[4537,{"$nulls":3},true,{"$f":"IF(G4542<>\"\",INDIRECT(\"'\"&G4542&\"'!\"&H4542),\"\")","v":""}]
[4538,{"$nulls":3},true,{"$f":"IF(G4543<>\"\",INDIRECT(\"'\"&G4543&\"'!\"&H4543),\"\")","v":""}]
[4539,{"$nulls":3},true,{"$f":"IF(G4544<>\"\",INDIRECT(\"'\"&G4544&\"'!\"&H4544),\"\")","v":""}]
[4540,{"$nulls":3},true,{"$f":"IF(G4545<>\"\",INDIRECT(\"'\"&G4545&\"'!\"&H4545),\"\")","v":""}]
[4541,{"$nulls":3},{"$f":"F4546=B4546","v":true},{"$f":"IF(G4546<>\"\",INDIRECT(\"'\"&G4546&\"'!\"&H4546),\"\")","v":""}]
[4542,{"$nulls":3},true,{"$f":"IF(G4547<>\"\",INDIRECT(\"'\"&G4547&\"'!\"&H4547),\"\")","v":""}]
[4543,{"$nulls":3},true,{"$f":"IF(G4548<>\"\",INDIRECT(\"'\"&G4548&\"'!\"&H4548),\"\")","v":""}]
[4544,{"$nulls":3},true,{"$f":"IF(G4549<>\"\",INDIRECT(\"'\"&G4549&\"'!\"&H4549),\"\")","v":""}]
[4545,{"$nulls":3},true,{"$f":"IF(G4550<>\"\",INDIRECT(\"'\"&G4550&\"'!\"&H4550),\"\")","v":""}]
[4546,{"$nulls":3},true,{"$f":"IF(G4551<>\"\",INDIRECT(\"'\"&G4551&\"'!\"&H4551),\"\")","v":""}]
[4547,{"$nulls":3},true,{"$f":"IF(G4552<>\"\",INDIRECT(\"'\"&G4552&\"'!\"&H4552),\"\")","v":""}]
[4548,{"$nulls":3},true,{"$f":"IF(G4553<>\"\",INDIRECT(\"'\"&G4553&\"'!\"&H4553),\"\")","v":""}]
[4549,{"$nulls":3},true,{"$f":"IF(G4554<>\"\",INDIRECT(\"'\"&G4554&\"'!\"&H4554),\"\")","v":""}]
[4550,{"$nulls":3},true,{"$f":"IF(G4555<>\"\",INDIRECT(\"'\"&G4555&\"'!\"&H4555),\"\")","v":""}]
[4551,{"$nulls":3},true,{"$f":"IF(G4556<>\"\",INDIRECT(\"'\"&G4556&\"'!\"&H4556),\"\")","v":""}]
[4552,{"$nulls":3},true,{"$f":"IF(G4557<>\"\",INDIRECT(\"'\"&G4557&\"'!\"&H4557),\"\")","v":""}]
[4553,{"$nulls":3},true,{"$f":"IF(G4558<>\"\",INDIRECT(\"'\"&G4558&\"'!\"&H4558),\"\")","v":""}]
[4554,{"$nulls":3},true,{"$f":"IF(G4559<>\"\",INDIRECT(\"'\"&G4559&\"'!\"&H4559),\"\")","v":""}]
[4555,{"$nulls":3},true,{"$f":"IF(G4560<>\"\",INDIRECT(\"'\"&G4560&\"'!\"&H4560),\"\")","v":""}]
[4556,{"$nulls":3},true,{"$f":"IF(G4561<>\"\",INDIRECT(\"'\"&G4561&\"'!\"&H4561),\"\")","v":""}]
[4557,{"$nulls":3},true,{"$f":"IF(G4562<>\"\",INDIRECT(\"'\"&G4562&\"'!\"&H4562),\"\")","v":""}]
[4558,{"$nulls":3},true,{"$f":"IF(G4563<>\"\",INDIRECT(\"'\"&G4563&\"'!\"&H4563),\"\")","v":""}]
[4559,{"$nulls":3},true,{"$f":"IF(G4564<>\"\",INDIRECT(\"'\"&G4564&\"'!\"&H4564),\"\")","v":""}]
[4560,{"$nulls":3},true,{"$f":"IF(G4565<>\"\",INDIRECT(\"'\"&G4565&\"'!\"&H4565),\"\")","v":""}]
[4561,{"$nulls":3},true,{"$f":"IF(G4566<>\"\",INDIRECT(\"'\"&G4566&\"'!\"&H4566),\"\")","v":""}]
[4562,{"$nulls":3},true,{"$f":"IF(G4567<>\"\",INDIRECT(\"'\"&G4567&\"'!\"&H4567),\"\")","v":""}]
[4563,{"$nulls":3},true,{"$f":"IF(G4568<>\"\",INDIRECT(\"'\"&G4568&\"'!\"&H4568),\"\")","v":""}]
[4564,{"$nulls":3},true,{"$f":"IF(G4569<>\"\",INDIRECT(\"'\"&G4569&\"'!\"&H4569),\"\")","v":""}]
[4565,{"$nulls":3},true,{"$f":"IF(G4570<>\"\",INDIRECT(\"'\"&G4570&\"'!\"&H4570),\"\")","v":""}]
[4566,{"$nulls":3},true,{"$f":"IF(G4571<>\"\",INDIRECT(\"'\"&G4571&\"'!\"&H4571),\"\")","v":""}]
[4567,{"$nulls":3},true,{"$f":"IF(G4572<>\"\",INDIRECT(\"'\"&G4572&\"'!\"&H4572),\"\")","v":""}]
[4568,{"$nulls":3},true,{"$f":"IF(G4573<>\"\",INDIRECT(\"'\"&G4573&\"'!\"&H4573),\"\")","v":""}]
[4569,{"$nulls":3},true,{"$f":"IF(G4574<>\"\",INDIRECT(\"'\"&G4574&\"'!\"&H4574),\"\")","v":""}]
[4570,{"$nulls":3},true,{"$f":"IF(G4575<>\"\",INDIRECT(\"'\"&G4575&\"'!\"&H4575),\"\")","v":""}]
[4571,{"$nulls":3},true,{"$f":"IF(G4576<>\"\",INDIRECT(\"'\"&G4576&\"'!\"&H4576),\"\")","v":""}]
[4572,{"$nulls":3},true,{"$f":"IF(G4577<>\"\",INDIRECT(\"'\"&G4577&\"'!\"&H4577),\"\")","v":""}]
[4573,{"$nulls":3},true,{"$f":"IF(G4578<>\"\",INDIRECT(\"'\"&G4578&\"'!\"&H4578),\"\")","v":""}]
[4574,{"$nulls":3},true,{"$f":"IF(G4579<>\"\",INDIRECT(\"'\"&G4579&\"'!\"&H4579),\"\")","v":""}]
[4575,{"$nulls":3},true,{"$f":"IF(G4580<>\"\",INDIRECT(\"'\"&G4580&\"'!\"&H4580),\"\")","v":""}]
[4576,{"$nulls":3},true,{"$f":"IF(G4581<>\"\",INDIRECT(\"'\"&G4581&\"'!\"&H4581),\"\")","v":""}]
[4577,{"$nulls":3},true,{"$f":"IF(G4582<>\"\",INDIRECT(\"'\"&G4582&\"'!\"&H4582),\"\")","v":""}]
[4578,{"$nulls":3},true,{"$f":"IF(G4583<>\"\",INDIRECT(\"'\"&G4583&\"'!\"&H4583),\"\")","v":""}]
[4579,{"$nulls":3},true,{"$f":"IF(G4584<>\"\",INDIRECT(\"'\"&G4584&\"'!\"&H4584),\"\")","v":""}]
[4580,{"$nulls":3},true,{"$f":"IF(G4585<>\"\",INDIRECT(\"'\"&G4585&\"'!\"&H4585),\"\")","v":""}]
[4581,{"$nulls":3},true,{"$f":"IF(G4586<>\"\",INDIRECT(\"'\"&G4586&\"'!\"&H4586),\"\")","v":""}]
[4582,{"$nulls":3},true,{"$f":"IF(G4587<>\"\",INDIRECT(\"'\"&G4587&\"'!\"&H4587),\"\")","v":""}]
[4583,{"$nulls":3},true,{"$f":"IF(G4588<>\"\",INDIRECT(\"'\"&G4588&\"'!\"&H4588),\"\")","v":""}]
[4584,{"$nulls":3},true,{"$f":"IF(G4589<>\"\",INDIRECT(\"'\"&G4589&\"'!\"&H4589),\"\")","v":""}]
[4585,{"$nulls":3},true,{"$f":"IF(G4590<>\"\",INDIRECT(\"'\"&G4590&\"'!\"&H4590),\"\")","v":""}]
[4586,{"$nulls":3},true,{"$f":"IF(G4591<>\"\",INDIRECT(\"'\"&G4591&\"'!\"&H4591),\"\")","v":""}]
[4587,{"$nulls":3},true,{"$f":"IF(G4592<>\"\",INDIRECT(\"'\"&G4592&\"'!\"&H4592),\"\")","v":""}]
[4588,{"$nulls":3},true,{"$f":"IF(G4593<>\"\",INDIRECT(\"'\"&G4593&\"'!\"&H4593),\"\")","v":""}]
[4589,{"$nulls":3},true,{"$f":"IF(G4594<>\"\",INDIRECT(\"'\"&G4594&\"'!\"&H4594),\"\")","v":""}]
[4590,{"$nulls":3},true,{"$f":"IF(G4595<>\"\",INDIRECT(\"'\"&G4595&\"'!\"&H4595),\"\")","v":""}]
[4591,{"$nulls":3},true,{"$f":"IF(G4596<>\"\",INDIRECT(\"'\"&G4596&\"'!\"&H4596),\"\")","v":""}]
[4592,{"$nulls":3},true,{"$f":"IF(G4597<>\"\",INDIRECT(\"'\"&G4597&\"'!\"&H4597),\"\")","v":""}]
[4593,{"$nulls":3},true,{"$f":"IF(G4598<>\"\",INDIRECT(\"'\"&G4598&\"'!\"&H4598),\"\")","v":""}]
[4594,{"$nulls":3},true,{"$f":"IF(G4599<>\"\",INDIRECT(\"'\"&G4599&\"'!\"&H4599),\"\")","v":""}]
[4595,{"$nulls":3},true,{"$f":"IF(G4600<>\"\",INDIRECT(\"'\"&G4600&\"'!\"&H4600),\"\")","v":""}]
[4596,{"$nulls":3},true,{"$f":"IF(G4601<>\"\",INDIRECT(\"'\"&G4601&\"'!\"&H4601),\"\")","v":""}]
[4597,{"$nulls":3},true,{"$f":"IF(G4602<>\"\",INDIRECT(\"'\"&G4602&\"'!\"&H4602),\"\")","v":""}]
[4598,{"$nulls":3},true,{"$f":"IF(G4603<>\"\",INDIRECT(\"'\"&G4603&\"'!\"&H4603),\"\")","v":""}]
[4599,{"$nulls":3},true,{"$f":"IF(G4604<>\"\",INDIRECT(\"'\"&G4604&\"'!\"&H4604),\"\")","v":""}]
[4600,{"$nulls":3},true,{"$f":"IF(G4605<>\"\",INDIRECT(\"'\"&G4605&\"'!\"&H4605),\"\")","v":""}]
[4601,{"$nulls":3},true,{"$f":"IF(G4606<>\"\",INDIRECT(\"'\"&G4606&\"'!\"&H4606),\"\")","v":""}]
[4602,{"$nulls":3},true,{"$f":"IF(G4607<>\"\",INDIRECT(\"'\"&G4607&\"'!\"&H4607),\"\")","v":""}]
[4603,{"$nulls":3},true,{"$f":"IF(G4608<>\"\",INDIRECT(\"'\"&G4608&\"'!\"&H4608),\"\")","v":""}]
[4604,{"$nulls":3},true,{"$f":"IF(G4609<>\"\",INDIRECT(\"'\"&G4609&\"'!\"&H4609),\"\")","v":""}]
[4605,{"$nulls":3},{"$f":"F4610=B4610","v":true},{"$f":"IF(G4610<>\"\",INDIRECT(\"'\"&G4610&\"'!\"&H4610),\"\")","v":""}]
[4606,{"$nulls":3},true,{"$f":"IF(G4611<>\"\",INDIRECT(\"'\"&G4611&\"'!\"&H4611),\"\")","v":""}]
[4607,{"$nulls":3},true,{"$f":"IF(G4612<>\"\",INDIRECT(\"'\"&G4612&\"'!\"&H4612),\"\")","v":""}]
[4608,{"$nulls":3},true,{"$f":"IF(G4613<>\"\",INDIRECT(\"'\"&G4613&\"'!\"&H4613),\"\")","v":""}]
[4609,{"$nulls":3},true,{"$f":"IF(G4614<>\"\",INDIRECT(\"'\"&G4614&\"'!\"&H4614),\"\")","v":""}]
[4610,{"$nulls":3},true,{"$f":"IF(G4615<>\"\",INDIRECT(\"'\"&G4615&\"'!\"&H4615),\"\")","v":""}]
[4611,{"$nulls":3},true,{"$f":"IF(G4616<>\"\",INDIRECT(\"'\"&G4616&\"'!\"&H4616),\"\")","v":""}]
[4612,{"$nulls":3},true,{"$f":"IF(G4617<>\"\",INDIRECT(\"'\"&G4617&\"'!\"&H4617),\"\")","v":""}]
[4613,{"$nulls":3},true,{"$f":"IF(G4618<>\"\",INDIRECT(\"'\"&G4618&\"'!\"&H4618),\"\")","v":""}]
[4614,{"$nulls":3},true,{"$f":"IF(G4619<>\"\",INDIRECT(\"'\"&G4619&\"'!\"&H4619),\"\")","v":""}]
[4615,{"$nulls":3},true,{"$f":"IF(G4620<>\"\",INDIRECT(\"'\"&G4620&\"'!\"&H4620),\"\")","v":""}]
[4616,{"$nulls":3},true,{"$f":"IF(G4621<>\"\",INDIRECT(\"'\"&G4621&\"'!\"&H4621),\"\")","v":""}]
[4617,{"$nulls":3},true,{"$f":"IF(G4622<>\"\",INDIRECT(\"'\"&G4622&\"'!\"&H4622),\"\")","v":""}]
[4618,{"$nulls":3},true,{"$f":"IF(G4623<>\"\",INDIRECT(\"'\"&G4623&\"'!\"&H4623),\"\")","v":""}]
[4619,{"$nulls":3},true,{"$f":"IF(G4624<>\"\",INDIRECT(\"'\"&G4624&\"'!\"&H4624),\"\")","v":""}]
[4620,{"$nulls":3},true,{"$f":"IF(G4625<>\"\",INDIRECT(\"'\"&G4625&\"'!\"&H4625),\"\")","v":""}]
[4621,{"$nulls":3},true,{"$f":"IF(G4626<>\"\",INDIRECT(\"'\"&G4626&\"'!\"&H4626),\"\")","v":""}]
[4622,{"$nulls":3},true,{"$f":"IF(G4627<>\"\",INDIRECT(\"'\"&G4627&\"'!\"&H4627),\"\")","v":""}]
[4623,{"$nulls":3},true,{"$f":"IF(G4628<>\"\",INDIRECT(\"'\"&G4628&\"'!\"&H4628),\"\")","v":""}]
[4624,{"$nulls":3},true,{"$f":"IF(G4629<>\"\",INDIRECT(\"'\"&G4629&\"'!\"&H4629),\"\")","v":""}]
[4625,{"$nulls":3},true,{"$f":"IF(G4630<>\"\",INDIRECT(\"'\"&G4630&\"'!\"&H4630),\"\")","v":""}]
[4626,{"$nulls":3},true,{"$f":"IF(G4631<>\"\",INDIRECT(\"'\"&G4631&\"'!\"&H4631),\"\")","v":""}]
[4627,{"$nulls":3},true,{"$f":"IF(G4632<>\"\",INDIRECT(\"'\"&G4632&\"'!\"&H4632),\"\")","v":""}]
[4628,{"$nulls":3},true,{"$f":"IF(G4633<>\"\",INDIRECT(\"'\"&G4633&\"'!\"&H4633),\"\")","v":""}]
[4629,{"$nulls":3},true,{"$f":"IF(G4634<>\"\",INDIRECT(\"'\"&G4634&\"'!\"&H4634),\"\")","v":""}]
[4630,{"$nulls":3},true,{"$f":"IF(G4635<>\"\",INDIRECT(\"'\"&G4635&\"'!\"&H4635),\"\")","v":""}]
[4631,{"$nulls":3},true,{"$f":"IF(G4636<>\"\",INDIRECT(\"'\"&G4636&\"'!\"&H4636),\"\")","v":""}]
[4632,{"$nulls":3},true,{"$f":"IF(G4637<>\"\",INDIRECT(\"'\"&G4637&\"'!\"&H4637),\"\")","v":""}]
[4633,{"$nulls":3},true,{"$f":"IF(G4638<>\"\",INDIRECT(\"'\"&G4638&\"'!\"&H4638),\"\")","v":""}]
[4634,{"$nulls":3},true,{"$f":"IF(G4639<>\"\",INDIRECT(\"'\"&G4639&\"'!\"&H4639),\"\")","v":""}]
[4635,{"$nulls":3},true,{"$f":"IF(G4640<>\"\",INDIRECT(\"'\"&G4640&\"'!\"&H4640),\"\")","v":""}]
[4636,{"$nulls":3},true,{"$f":"IF(G4641<>\"\",INDIRECT(\"'\"&G4641&\"'!\"&H4641),\"\")","v":""}]
[4637,{"$nulls":3},true,{"$f":"IF(G4642<>\"\",INDIRECT(\"'\"&G4642&\"'!\"&H4642),\"\")","v":""}]
[4638,{"$nulls":3},true,{"$f":"IF(G4643<>\"\",INDIRECT(\"'\"&G4643&\"'!\"&H4643),\"\")","v":""}]
[4639,{"$nulls":3},true,{"$f":"IF(G4644<>\"\",INDIRECT(\"'\"&G4644&\"'!\"&H4644),\"\")","v":""}]
[4640,{"$nulls":3},true,{"$f":"IF(G4645<>\"\",INDIRECT(\"'\"&G4645&\"'!\"&H4645),\"\")","v":""}]
[4641,{"$nulls":3},true,{"$f":"IF(G4646<>\"\",INDIRECT(\"'\"&G4646&\"'!\"&H4646),\"\")","v":""}]
[4642,{"$nulls":3},true,{"$f":"IF(G4647<>\"\",INDIRECT(\"'\"&G4647&\"'!\"&H4647),\"\")","v":""}]
[4643,{"$nulls":3},true,{"$f":"IF(G4648<>\"\",INDIRECT(\"'\"&G4648&\"'!\"&H4648),\"\")","v":""}]
[4644,{"$nulls":3},true,{"$f":"IF(G4649<>\"\",INDIRECT(\"'\"&G4649&\"'!\"&H4649),\"\")","v":""}]
[4645,{"$nulls":3},true,{"$f":"IF(G4650<>\"\",INDIRECT(\"'\"&G4650&\"'!\"&H4650),\"\")","v":""}]
[4646,{"$nulls":3},true,{"$f":"IF(G4651<>\"\",INDIRECT(\"'\"&G4651&\"'!\"&H4651),\"\")","v":""}]
[4647,{"$nulls":3},true,{"$f":"IF(G4652<>\"\",INDIRECT(\"'\"&G4652&\"'!\"&H4652),\"\")","v":""}]
[4648,{"$nulls":3},true,{"$f":"IF(G4653<>\"\",INDIRECT(\"'\"&G4653&\"'!\"&H4653),\"\")","v":""}]
[4649,{"$nulls":3},true,{"$f":"IF(G4654<>\"\",INDIRECT(\"'\"&G4654&\"'!\"&H4654),\"\")","v":""}]
[4650,{"$nulls":3},true,{"$f":"IF(G4655<>\"\",INDIRECT(\"'\"&G4655&\"'!\"&H4655),\"\")","v":""}]
[4651,{"$nulls":3},true,{"$f":"IF(G4656<>\"\",INDIRECT(\"'\"&G4656&\"'!\"&H4656),\"\")","v":""}]
[4652,{"$nulls":3},true,{"$f":"IF(G4657<>\"\",INDIRECT(\"'\"&G4657&\"'!\"&H4657),\"\")","v":""}]
[4653,{"$nulls":3},true,{"$f":"IF(G4658<>\"\",INDIRECT(\"'\"&G4658&\"'!\"&H4658),\"\")","v":""}]
[4654,{"$nulls":3},true,{"$f":"IF(G4659<>\"\",INDIRECT(\"'\"&G4659&\"'!\"&H4659),\"\")","v":""}]
[4655,{"$nulls":3},true,{"$f":"IF(G4660<>\"\",INDIRECT(\"'\"&G4660&\"'!\"&H4660),\"\")","v":""}]
[4656,{"$nulls":3},true,{"$f":"IF(G4661<>\"\",INDIRECT(\"'\"&G4661&\"'!\"&H4661),\"\")","v":""}]
[4657,{"$nulls":3},true,{"$f":"IF(G4662<>\"\",INDIRECT(\"'\"&G4662&\"'!\"&H4662),\"\")","v":""}]
[4658,{"$nulls":3},true,{"$f":"IF(G4663<>\"\",INDIRECT(\"'\"&G4663&\"'!\"&H4663),\"\")","v":""}]
[4659,{"$nulls":3},true,{"$f":"IF(G4664<>\"\",INDIRECT(\"'\"&G4664&\"'!\"&H4664),\"\")","v":""}]
[4660,{"$nulls":3},true,{"$f":"IF(G4665<>\"\",INDIRECT(\"'\"&G4665&\"'!\"&H4665),\"\")","v":""}]
[4661,{"$nulls":3},true,{"$f":"IF(G4666<>\"\",INDIRECT(\"'\"&G4666&\"'!\"&H4666),\"\")","v":""}]
[4662,{"$nulls":3},true,{"$f":"IF(G4667<>\"\",INDIRECT(\"'\"&G4667&\"'!\"&H4667),\"\")","v":""}]
[4663,{"$nulls":3},true,{"$f":"IF(G4668<>\"\",INDIRECT(\"'\"&G4668&\"'!\"&H4668),\"\")","v":""}]
[4664,{"$nulls":3},true,{"$f":"IF(G4669<>\"\",INDIRECT(\"'\"&G4669&\"'!\"&H4669),\"\")","v":""}]
[4665,{"$nulls":3},true,{"$f":"IF(G4670<>\"\",INDIRECT(\"'\"&G4670&\"'!\"&H4670),\"\")","v":""}]
[4666,{"$nulls":3},true,{"$f":"IF(G4671<>\"\",INDIRECT(\"'\"&G4671&\"'!\"&H4671),\"\")","v":""}]
[4667,{"$nulls":3},true,{"$f":"IF(G4672<>\"\",INDIRECT(\"'\"&G4672&\"'!\"&H4672),\"\")","v":""}]
[4668,{"$nulls":3},true,{"$f":"IF(G4673<>\"\",INDIRECT(\"'\"&G4673&\"'!\"&H4673),\"\")","v":""}]
[4669,{"$nulls":3},{"$f":"F4674=B4674","v":true},{"$f":"IF(G4674<>\"\",INDIRECT(\"'\"&G4674&\"'!\"&H4674),\"\")","v":""}]
[4670,{"$nulls":3},true,{"$f":"IF(G4675<>\"\",INDIRECT(\"'\"&G4675&\"'!\"&H4675),\"\")","v":""}]
[4671,{"$nulls":3},true,{"$f":"IF(G4676<>\"\",INDIRECT(\"'\"&G4676&\"'!\"&H4676),\"\")","v":""}]
[4672,{"$nulls":3},true,{"$f":"IF(G4677<>\"\",INDIRECT(\"'\"&G4677&\"'!\"&H4677),\"\")","v":""}]
[4673,{"$nulls":3},true,{"$f":"IF(G4678<>\"\",INDIRECT(\"'\"&G4678&\"'!\"&H4678),\"\")","v":""}]
[4674,{"$nulls":3},true,{"$f":"IF(G4679<>\"\",INDIRECT(\"'\"&G4679&\"'!\"&H4679),\"\")","v":""}]
[4675,{"$nulls":3},true,{"$f":"IF(G4680<>\"\",INDIRECT(\"'\"&G4680&\"'!\"&H4680),\"\")","v":""}]
[4676,{"$nulls":3},true,{"$f":"IF(G4681<>\"\",INDIRECT(\"'\"&G4681&\"'!\"&H4681),\"\")","v":""}]
[4677,{"$nulls":3},true,{"$f":"IF(G4682<>\"\",INDIRECT(\"'\"&G4682&\"'!\"&H4682),\"\")","v":""}]
[4678,{"$nulls":3},true,{"$f":"IF(G4683<>\"\",INDIRECT(\"'\"&G4683&\"'!\"&H4683),\"\")","v":""}]
[4679,{"$nulls":3},true,{"$f":"IF(G4684<>\"\",INDIRECT(\"'\"&G4684&\"'!\"&H4684),\"\")","v":""}]
[4680,{"$nulls":3},true,{"$f":"IF(G4685<>\"\",INDIRECT(\"'\"&G4685&\"'!\"&H4685),\"\")","v":""}]
[4681,{"$nulls":3},true,{"$f":"IF(G4686<>\"\",INDIRECT(\"'\"&G4686&\"'!\"&H4686),\"\")","v":""}]
[4682,{"$nulls":3},true,{"$f":"IF(G4687<>\"\",INDIRECT(\"'\"&G4687&\"'!\"&H4687),\"\")","v":""}]
[4683,{"$nulls":3},true,{"$f":"IF(G4688<>\"\",INDIRECT(\"'\"&G4688&\"'!\"&H4688),\"\")","v":""}]
[4684,{"$nulls":3},true,{"$f":"IF(G4689<>\"\",INDIRECT(\"'\"&G4689&\"'!\"&H4689),\"\")","v":""}]
[4685,{"$nulls":3},true,{"$f":"IF(G4690<>\"\",INDIRECT(\"'\"&G4690&\"'!\"&H4690),\"\")","v":""}]
[4686,{"$nulls":3},true,{"$f":"IF(G4691<>\"\",INDIRECT(\"'\"&G4691&\"'!\"&H4691),\"\")","v":""}]
[4687,{"$nulls":3},true,{"$f":"IF(G4692<>\"\",INDIRECT(\"'\"&G4692&\"'!\"&H4692),\"\")","v":""}]
[4688,{"$nulls":3},true,{"$f":"IF(G4693<>\"\",INDIRECT(\"'\"&G4693&\"'!\"&H4693),\"\")","v":""}]
[4689,{"$nulls":3},true,{"$f":"IF(G4694<>\"\",INDIRECT(\"'\"&G4694&\"'!\"&H4694),\"\")","v":""}]
[4690,{"$nulls":3},true,{"$f":"IF(G4695<>\"\",INDIRECT(\"'\"&G4695&\"'!\"&H4695),\"\")","v":""}]
[4691,{"$nulls":3},true,{"$f":"IF(G4696<>\"\",INDIRECT(\"'\"&G4696&\"'!\"&H4696),\"\")","v":""}]
[4692,{"$nulls":3},true,{"$f":"IF(G4697<>\"\",INDIRECT(\"'\"&G4697&\"'!\"&H4697),\"\")","v":""}]
[4693,{"$nulls":3},true,{"$f":"IF(G4698<>\"\",INDIRECT(\"'\"&G4698&\"'!\"&H4698),\"\")","v":""}]
[4694,{"$nulls":3},true,{"$f":"IF(G4699<>\"\",INDIRECT(\"'\"&G4699&\"'!\"&H4699),\"\")","v":""}]
[4695,{"$nulls":3},true,{"$f":"IF(G4700<>\"\",INDIRECT(\"'\"&G4700&\"'!\"&H4700),\"\")","v":""}]
[4696,{"$nulls":3},true,{"$f":"IF(G4701<>\"\",INDIRECT(\"'\"&G4701&\"'!\"&H4701),\"\")","v":""}]
[4697,{"$nulls":3},true,{"$f":"IF(G4702<>\"\",INDIRECT(\"'\"&G4702&\"'!\"&H4702),\"\")","v":""}]
[4698,{"$nulls":3},true,{"$f":"IF(G4703<>\"\",INDIRECT(\"'\"&G4703&\"'!\"&H4703),\"\")","v":""}]
[4699,{"$nulls":3},true,{"$f":"IF(G4704<>\"\",INDIRECT(\"'\"&G4704&\"'!\"&H4704),\"\")","v":""}]
[4700,{"$f":"'EstRev 6-11'!C106","v":0},{"$f":"A4705-B4705","v":4700},null,true,{"$f":"IF(G4705<>\"\",INDIRECT(\"'\"&G4705&\"'!\"&H4705),\"\")","v":0},"EstRev 6-11","C106"]
[4701,{"$nulls":3},true,{"$f":"IF(G4706<>\"\",INDIRECT(\"'\"&G4706&\"'!\"&H4706),\"\")","v":""}]
[4702,{"$nulls":3},true,{"$f":"IF(G4707<>\"\",INDIRECT(\"'\"&G4707&\"'!\"&H4707),\"\")","v":""}]
[4703,{"$nulls":3},true,{"$f":"IF(G4708<>\"\",INDIRECT(\"'\"&G4708&\"'!\"&H4708),\"\")","v":""}]
[4704,{"$nulls":3},true,{"$f":"IF(G4709<>\"\",INDIRECT(\"'\"&G4709&\"'!\"&H4709),\"\")","v":""}]
[4705,{"$nulls":3},true,{"$f":"IF(G4710<>\"\",INDIRECT(\"'\"&G4710&\"'!\"&H4710),\"\")","v":""}]
[4706,null,null,"Close 2008",true,{"$f":"IF(G4711<>\"\",INDIRECT(\"'\"&G4711&\"'!\"&H4711),\"\")","v":""}]
[4707,null,null,"Close 2008",true,{"$f":"IF(G4712<>\"\",INDIRECT(\"'\"&G4712&\"'!\"&H4712),\"\")","v":""}]
[4708,null,null,"Close 2008",true,{"$f":"IF(G4713<>\"\",INDIRECT(\"'\"&G4713&\"'!\"&H4713),\"\")","v":""}]
[4709,null,null,"Close 2008",true,{"$f":"IF(G4714<>\"\",INDIRECT(\"'\"&G4714&\"'!\"&H4714),\"\")","v":""}]
[4710,{"$f":"'EstRev 6-11'!G138","v":0},4710,null,true,{"$f":"IF(G4715<>\"\",INDIRECT(\"'\"&G4715&\"'!\"&H4715),\"\")","v":0},"EstRev 6-11","G138"]
[4711,{"$nulls":3},true,{"$f":"IF(G4716<>\"\",INDIRECT(\"'\"&G4716&\"'!\"&H4716),\"\")","v":""}]
[4712,{"$nulls":3},true,{"$f":"IF(G4717<>\"\",INDIRECT(\"'\"&G4717&\"'!\"&H4717),\"\")","v":""}]
[4713,{"$nulls":3},true,{"$f":"IF(G4718<>\"\",INDIRECT(\"'\"&G4718&\"'!\"&H4718),\"\")","v":""}]
[4714,{"$nulls":3},true,{"$f":"IF(G4719<>\"\",INDIRECT(\"'\"&G4719&\"'!\"&H4719),\"\")","v":""}]
[4715,{"$nulls":3},true,{"$f":"IF(G4720<>\"\",INDIRECT(\"'\"&G4720&\"'!\"&H4720),\"\")","v":""}]
[4716,{"$nulls":3},true,{"$f":"IF(G4721<>\"\",INDIRECT(\"'\"&G4721&\"'!\"&H4721),\"\")","v":""}]
[4717,{"$nulls":3},true,{"$f":"IF(G4722<>\"\",INDIRECT(\"'\"&G4722&\"'!\"&H4722),\"\")","v":""}]
[4718,{"$nulls":3},true,{"$f":"IF(G4723<>\"\",INDIRECT(\"'\"&G4723&\"'!\"&H4723),\"\")","v":""}]
[4719,{"$nulls":3},true,{"$f":"IF(G4724<>\"\",INDIRECT(\"'\"&G4724&\"'!\"&H4724),\"\")","v":""}]
[4720,{"$nulls":3},true,{"$f":"IF(G4725<>\"\",INDIRECT(\"'\"&G4725&\"'!\"&H4725),\"\")","v":""}]
[4721,{"$nulls":3},true,{"$f":"IF(G4726<>\"\",INDIRECT(\"'\"&G4726&\"'!\"&H4726),\"\")","v":""}]
[4722,{"$nulls":3},true,{"$f":"IF(G4727<>\"\",INDIRECT(\"'\"&G4727&\"'!\"&H4727),\"\")","v":""}]
[4723,{"$nulls":3},true,{"$f":"IF(G4728<>\"\",INDIRECT(\"'\"&G4728&\"'!\"&H4728),\"\")","v":""}]
[4724,{"$nulls":3},true,{"$f":"IF(G4729<>\"\",INDIRECT(\"'\"&G4729&\"'!\"&H4729),\"\")","v":""}]
[4725,{"$nulls":3},true,{"$f":"IF(G4730<>\"\",INDIRECT(\"'\"&G4730&\"'!\"&H4730),\"\")","v":""}]
[4726,{"$nulls":3},true,{"$f":"IF(G4731<>\"\",INDIRECT(\"'\"&G4731&\"'!\"&H4731),\"\")","v":""}]
[4727,{"$nulls":3},true,{"$f":"IF(G4732<>\"\",INDIRECT(\"'\"&G4732&\"'!\"&H4732),\"\")","v":""}]
[4728,{"$nulls":3},true,{"$f":"IF(G4733<>\"\",INDIRECT(\"'\"&G4733&\"'!\"&H4733),\"\")","v":""}]
[4729,null,null,"Close 2008",true,{"$f":"IF(G4734<>\"\",INDIRECT(\"'\"&G4734&\"'!\"&H4734),\"\")","v":""}]
[4730,null,null,"Close 2008",true,{"$f":"IF(G4735<>\"\",INDIRECT(\"'\"&G4735&\"'!\"&H4735),\"\")","v":""}]
[4731,{"$f":"'EstRev 6-11'!C170","v":170000},-165269,null,true,{"$f":"IF(G4736<>\"\",INDIRECT(\"'\"&G4736&\"'!\"&H4736),\"\")","v":170000},"EstRev 6-11","C170"]
[4732,{"$f":"'EstRev 6-11'!D170","v":0},4732,null,true,{"$f":"IF(G4737<>\"\",INDIRECT(\"'\"&G4737&\"'!\"&H4737),\"\")","v":0},"EstRev 6-11","D170"]
[4733,{"$f":"'EstRev 6-11'!E170","v":0},4733,null,{"$f":"F4738=B4738","v":true},{"$f":"IF(G4738<>\"\",INDIRECT(\"'\"&G4738&\"'!\"&H4738),\"\")","v":0},"EstRev 6-11","E170"]
[4734,{"$f":"'EstRev 6-11'!F170","v":0},4734,null,true,{"$f":"IF(G4739<>\"\",INDIRECT(\"'\"&G4739&\"'!\"&H4739),\"\")","v":0},"EstRev 6-11","F170"]
[4735,{"$f":"'EstRev 6-11'!G170","v":0},4735,null,true,{"$f":"IF(G4740<>\"\",INDIRECT(\"'\"&G4740&\"'!\"&H4740),\"\")","v":0},"EstRev 6-11","G170"]
[4736,{"$f":"'EstRev 6-11'!H170","v":0},4736,null,true,{"$f":"IF(G4741<>\"\",INDIRECT(\"'\"&G4741&\"'!\"&H4741),\"\")","v":0},"EstRev 6-11","H170"]
[4737,null,null,"Close 2008",true,{"$f":"IF(G4742<>\"\",INDIRECT(\"'\"&G4742&\"'!\"&H4742),\"\")","v":""}]
[4738,{"$f":"'EstRev 6-11'!K170","v":0},4738,null,true,{"$f":"IF(G4743<>\"\",INDIRECT(\"'\"&G4743&\"'!\"&H4743),\"\")","v":0},"EstRev 6-11","K170"]
[4739,null,null,"Close 2008",true,{"$f":"IF(G4744<>\"\",INDIRECT(\"'\"&G4744&\"'!\"&H4744),\"\")","v":""}]
[4740,{"$f":"'EstRev 6-11'!C181","v":0},{"$f":"A4745-B4745","v":4740},null,true,{"$f":"IF(G4745<>\"\",INDIRECT(\"'\"&G4745&\"'!\"&H4745),\"\")","v":0},"EstRev 6-11","C181"]
[4741,{"$f":"'EstRev 6-11'!D181","v":0},4741,null,true,{"$f":"IF(G4746<>\"\",INDIRECT(\"'\"&G4746&\"'!\"&H4746),\"\")","v":0},"EstRev 6-11","D181"]
[4742,{"$nulls":3},true,{"$f":"IF(G4747<>\"\",INDIRECT(\"'\"&G4747&\"'!\"&H4747),\"\")","v":""}]
[4743,{"$f":"'EstRev 6-11'!F181","v":0},4743,null,true,{"$f":"IF(G4748<>\"\",INDIRECT(\"'\"&G4748&\"'!\"&H4748),\"\")","v":0},"EstRev 6-11","F181"]
[4744,{"$f":"'EstRev 6-11'!C182","v":0},4744,null,true,{"$f":"IF(G4749<>\"\",INDIRECT(\"'\"&G4749&\"'!\"&H4749),\"\")","v":0},"EstRev 6-11","C182"]
[4745,{"$f":"'EstRev 6-11'!D182","v":0},4745,null,true,{"$f":"IF(G4750<>\"\",INDIRECT(\"'\"&G4750&\"'!\"&H4750),\"\")","v":0},"EstRev 6-11","D182"]
[4746,{"$nulls":3},true,{"$f":"IF(G4751<>\"\",INDIRECT(\"'\"&G4751&\"'!\"&H4751),\"\")","v":""}]
[4747,{"$f":"'EstRev 6-11'!F182","v":0},4747,null,true,{"$f":"IF(G4752<>\"\",INDIRECT(\"'\"&G4752&\"'!\"&H4752),\"\")","v":0},"EstRev 6-11","F182"]
[4748,{"$nulls":3},true,{"$f":"IF(G4753<>\"\",INDIRECT(\"'\"&G4753&\"'!\"&H4753),\"\")","v":""}]
[4749,{"$f":"'EstRev 6-11'!G181","v":0},4749,null,true,{"$f":"IF(G4754<>\"\",INDIRECT(\"'\"&G4754&\"'!\"&H4754),\"\")","v":0},"EstRev 6-11","G181"]
[4750,{"$f":"'EstRev 6-11'!H181","v":0},4750,null,true,{"$f":"IF(G4755<>\"\",INDIRECT(\"'\"&G4755&\"'!\"&H4755),\"\")","v":0},"EstRev 6-11","H181"]
[4751,{"$nulls":3},true,{"$f":"IF(G4756<>\"\",INDIRECT(\"'\"&G4756&\"'!\"&H4756),\"\")","v":""}]
[4752,{"$f":"'EstRev 6-11'!G182","v":0},4752,null,true,{"$f":"IF(G4757<>\"\",INDIRECT(\"'\"&G4757&\"'!\"&H4757),\"\")","v":0},"EstRev 6-11","G182"]
[4753,{"$f":"'EstRev 6-11'!H182","v":0},4753,null,true,{"$f":"IF(G4758<>\"\",INDIRECT(\"'\"&G4758&\"'!\"&H4758),\"\")","v":0},"EstRev 6-11","H182"]
[4754,{"$nulls":3},true,{"$f":"IF(G4759<>\"\",INDIRECT(\"'\"&G4759&\"'!\"&H4759),\"\")","v":""}]
[4755,{"$f":"'EstRev 6-11'!K182","v":0},4755,null,true,{"$f":"IF(G4760<>\"\",INDIRECT(\"'\"&G4760&\"'!\"&H4760),\"\")","v":0},"EstRev 6-11","K182"]
[4756,{"$nulls":3},true,{"$f":"IF(G4761<>\"\",INDIRECT(\"'\"&G4761&\"'!\"&H4761),\"\")","v":""}]
[4757,{"$nulls":3},true,{"$f":"IF(G4762<>\"\",INDIRECT(\"'\"&G4762&\"'!\"&H4762),\"\")","v":""}]
[4758,{"$nulls":3},true,{"$f":"IF(G4763<>\"\",INDIRECT(\"'\"&G4763&\"'!\"&H4763),\"\")","v":""}]
[4759,{"$nulls":3},true,{"$f":"IF(G4764<>\"\",INDIRECT(\"'\"&G4764&\"'!\"&H4764),\"\")","v":""}]
[4760,{"$nulls":3},true,{"$f":"IF(G4765<>\"\",INDIRECT(\"'\"&G4765&\"'!\"&H4765),\"\")","v":""}]
[4761,{"$nulls":3},true,{"$f":"IF(G4766<>\"\",INDIRECT(\"'\"&G4766&\"'!\"&H4766),\"\")","v":""}]
[4762,{"$nulls":3},true,{"$f":"IF(G4767<>\"\",INDIRECT(\"'\"&G4767&\"'!\"&H4767),\"\")","v":""}]
[4763,{"$nulls":3},true,{"$f":"IF(G4768<>\"\",INDIRECT(\"'\"&G4768&\"'!\"&H4768),\"\")","v":""}]
[4764,{"$nulls":3},true,{"$f":"IF(G4769<>\"\",INDIRECT(\"'\"&G4769&\"'!\"&H4769),\"\")","v":""}]
[4765,{"$nulls":3},true,{"$f":"IF(G4770<>\"\",INDIRECT(\"'\"&G4770&\"'!\"&H4770),\"\")","v":""}]
[4766,{"$nulls":3},true,{"$f":"IF(G4771<>\"\",INDIRECT(\"'\"&G4771&\"'!\"&H4771),\"\")","v":""}]
[4767,{"$nulls":3},true,{"$f":"IF(G4772<>\"\",INDIRECT(\"'\"&G4772&\"'!\"&H4772),\"\")","v":""}]
[4768,{"$nulls":3},true,{"$f":"IF(G4773<>\"\",INDIRECT(\"'\"&G4773&\"'!\"&H4773),\"\")","v":""}]
[4769,{"$nulls":3},true,{"$f":"IF(G4774<>\"\",INDIRECT(\"'\"&G4774&\"'!\"&H4774),\"\")","v":""}]
[4770,null,null,"Close 2008",true,{"$f":"IF(G4775<>\"\",INDIRECT(\"'\"&G4775&\"'!\"&H4775),\"\")","v":""}]
[4771,null,null,"Close 2008",true,{"$f":"IF(G4776<>\"\",INDIRECT(\"'\"&G4776&\"'!\"&H4776),\"\")","v":""}]
[4772,null,null,"Close 2008",true,{"$f":"IF(G4777<>\"\",INDIRECT(\"'\"&G4777&\"'!\"&H4777),\"\")","v":""}]
[4773,{"$nulls":3},true,{"$f":"IF(G4778<>\"\",INDIRECT(\"'\"&G4778&\"'!\"&H4778),\"\")","v":""}]
[4774,{"$nulls":3},true,{"$f":"IF(G4779<>\"\",INDIRECT(\"'\"&G4779&\"'!\"&H4779),\"\")","v":""}]
[4775,{"$nulls":3},true,{"$f":"IF(G4780<>\"\",INDIRECT(\"'\"&G4780&\"'!\"&H4780),\"\")","v":""}]
[4776,{"$nulls":3},true,{"$f":"IF(G4781<>\"\",INDIRECT(\"'\"&G4781&\"'!\"&H4781),\"\")","v":""}]
[4777,{"$nulls":3},true,{"$f":"IF(G4782<>\"\",INDIRECT(\"'\"&G4782&\"'!\"&H4782),\"\")","v":""}]
[4778,{"$nulls":3},true,{"$f":"IF(G4783<>\"\",INDIRECT(\"'\"&G4783&\"'!\"&H4783),\"\")","v":""}]
[4779,{"$nulls":3},true,{"$f":"IF(G4784<>\"\",INDIRECT(\"'\"&G4784&\"'!\"&H4784),\"\")","v":""}]
[4780,{"$nulls":3},true,{"$f":"IF(G4785<>\"\",INDIRECT(\"'\"&G4785&\"'!\"&H4785),\"\")","v":""}]
[4781,{"$nulls":3},true,{"$f":"IF(G4786<>\"\",INDIRECT(\"'\"&G4786&\"'!\"&H4786),\"\")","v":""}]
[4782,{"$nulls":3},true,{"$f":"IF(G4787<>\"\",INDIRECT(\"'\"&G4787&\"'!\"&H4787),\"\")","v":""}]
[4783,{"$nulls":3},true,{"$f":"IF(G4788<>\"\",INDIRECT(\"'\"&G4788&\"'!\"&H4788),\"\")","v":""}]
[4784,{"$nulls":3},true,{"$f":"IF(G4789<>\"\",INDIRECT(\"'\"&G4789&\"'!\"&H4789),\"\")","v":""}]
[4785,null,null,"Close 2008",true,{"$f":"IF(G4790<>\"\",INDIRECT(\"'\"&G4790&\"'!\"&H4790),\"\")","v":""}]
[4786,null,null,"Close 2008",true,{"$f":"IF(G4791<>\"\",INDIRECT(\"'\"&G4791&\"'!\"&H4791),\"\")","v":""}]
[4787,null,null,"Close 2008",true,{"$f":"IF(G4792<>\"\",INDIRECT(\"'\"&G4792&\"'!\"&H4792),\"\")","v":""}]
[4788,{"$nulls":3},true,{"$f":"IF(G4793<>\"\",INDIRECT(\"'\"&G4793&\"'!\"&H4793),\"\")","v":""}]
[4789,{"$nulls":3},true,{"$f":"IF(G4794<>\"\",INDIRECT(\"'\"&G4794&\"'!\"&H4794),\"\")","v":""}]
[4790,{"$nulls":3},true,{"$f":"IF(G4795<>\"\",INDIRECT(\"'\"&G4795&\"'!\"&H4795),\"\")","v":""}]
[4791,{"$f":"'EstRev 6-11'!C269","v":200000},-195209,null,true,{"$f":"IF(G4796<>\"\",INDIRECT(\"'\"&G4796&\"'!\"&H4796),\"\")","v":200000},"EstRev 6-11","C269"]
[4792,{"$f":"'EstRev 6-11'!D269","v":0},4792,null,true,{"$f":"IF(G4797<>\"\",INDIRECT(\"'\"&G4797&\"'!\"&H4797),\"\")","v":0},"EstRev 6-11","D269"]
[4793,{"$nulls":3},true,{"$f":"IF(G4798<>\"\",INDIRECT(\"'\"&G4798&\"'!\"&H4798),\"\")","v":""}]
[4794,{"$f":"'EstRev 6-11'!F269","v":0},4794,null,true,{"$f":"IF(G4799<>\"\",INDIRECT(\"'\"&G4799&\"'!\"&H4799),\"\")","v":0},"EstRev 6-11","F269"]
[4795,{"$nulls":3},true,{"$f":"IF(G4800<>\"\",INDIRECT(\"'\"&G4800&\"'!\"&H4800),\"\")","v":""}]
[4796,null,null,"Close 2008",true,{"$f":"IF(G4801<>\"\",INDIRECT(\"'\"&G4801&\"'!\"&H4801),\"\")","v":""}]
[4797,{"$nulls":3},{"$f":"F4802=B4802","v":true},{"$f":"IF(G4802<>\"\",INDIRECT(\"'\"&G4802&\"'!\"&H4802),\"\")","v":""}]
[4798,{"$nulls":3},true,{"$f":"IF(G4803<>\"\",INDIRECT(\"'\"&G4803&\"'!\"&H4803),\"\")","v":""}]
[4799,{"$nulls":3},true,{"$f":"IF(G4804<>\"\",INDIRECT(\"'\"&G4804&\"'!\"&H4804),\"\")","v":""}]
[4800,{"$nulls":3},true,{"$f":"IF(G4805<>\"\",INDIRECT(\"'\"&G4805&\"'!\"&H4805),\"\")","v":""}]
[4801,null,null,"Closed 2008",true,{"$f":"IF(G4806<>\"\",INDIRECT(\"'\"&G4806&\"'!\"&H4806),\"\")","v":""}]
[4802,{"$nulls":3},true,{"$f":"IF(G4807<>\"\",INDIRECT(\"'\"&G4807&\"'!\"&H4807),\"\")","v":""}]
[4803,{"$f":"'EstRev 6-11'!G269","v":0},{"$f":"A4808-B4808","v":4803},null,true,{"$f":"IF(G4808<>\"\",INDIRECT(\"'\"&G4808&\"'!\"&H4808),\"\")","v":0},"EstRev 6-11","G269"]
[4804,{"$f":"'EstRev 6-11'!H269","v":203000},-198196,null,true,{"$f":"IF(G4809<>\"\",INDIRECT(\"'\"&G4809&\"'!\"&H4809),\"\")","v":203000},"EstRev 6-11","H269"]
[4805,{"$nulls":3},true,{"$f":"IF(G4810<>\"\",INDIRECT(\"'\"&G4810&\"'!\"&H4810),\"\")","v":""}]
[4806,{"$nulls":3},true,{"$f":"IF(G4811<>\"\",INDIRECT(\"'\"&G4811&\"'!\"&H4811),\"\")","v":""}]
[4807,{"$f":"'EstRev 6-11'!K269","v":0},4807,null,true,{"$f":"IF(G4812<>\"\",INDIRECT(\"'\"&G4812&\"'!\"&H4812),\"\")","v":0},"EstRev 6-11","K269"]
[4808,{"$nulls":3},true,{"$f":"IF(G4813<>\"\",INDIRECT(\"'\"&G4813&\"'!\"&H4813),\"\")","v":""}]
[4809,{"$nulls":3},true,{"$f":"IF(G4814<>\"\",INDIRECT(\"'\"&G4814&\"'!\"&H4814),\"\")","v":""}]
[4810,{"$nulls":3},true,{"$f":"IF(G4815<>\"\",INDIRECT(\"'\"&G4815&\"'!\"&H4815),\"\")","v":""}]
[4811,null,null,"Close 2008",true,{"$f":"IF(G4816<>\"\",INDIRECT(\"'\"&G4816&\"'!\"&H4816),\"\")","v":""}]
[4812,{"$nulls":3},true,{"$f":"IF(G4817<>\"\",INDIRECT(\"'\"&G4817&\"'!\"&H4817),\"\")","v":""}]
[4813,null,null,"Closed 2018",true,{"$f":"IF(G4818<>\"\",INDIRECT(\"'\"&G4818&\"'!\"&H4818),\"\")","v":""}]
[4814,null,null,"Closed 2018",true,{"$f":"IF(G4819<>\"\",INDIRECT(\"'\"&G4819&\"'!\"&H4819),\"\")","v":""}]
[4815,null,null,"Closed 2018",true,{"$f":"IF(G4820<>\"\",INDIRECT(\"'\"&G4820&\"'!\"&H4820),\"\")","v":""}]
[4816,null,null,"Closed 2018",true,{"$f":"IF(G4821<>\"\",INDIRECT(\"'\"&G4821&\"'!\"&H4821),\"\")","v":""}]
[4817,null,null,"Closed 2018",true,{"$f":"IF(G4822<>\"\",INDIRECT(\"'\"&G4822&\"'!\"&H4822),\"\")","v":""}]
[4818,null,null,"Closed 2018",true,{"$f":"IF(G4823<>\"\",INDIRECT(\"'\"&G4823&\"'!\"&H4823),\"\")","v":""}]
[4819,null,null,"Close 2008",true,{"$f":"IF(G4824<>\"\",INDIRECT(\"'\"&G4824&\"'!\"&H4824),\"\")","v":""}]
[4820,null,null,"Closed 2018",true,{"$f":"IF(G4825<>\"\",INDIRECT(\"'\"&G4825&\"'!\"&H4825),\"\")","v":""}]
[4821,{"$f":"'EstRev 6-11'!C123","v":0},4821,null,true,{"$f":"IF(G4826<>\"\",INDIRECT(\"'\"&G4826&\"'!\"&H4826),\"\")","v":0},"EstRev 6-11","C123"]
[4822,{"$f":"'EstRev 6-11'!D123","v":0},4822,null,true,{"$f":"IF(G4827<>\"\",INDIRECT(\"'\"&G4827&\"'!\"&H4827),\"\")","v":0},"EstRev 6-11","D123"]
[4823,{"$f":"'EstRev 6-11'!E123","v":0},4823,null,true,{"$f":"IF(G4828<>\"\",INDIRECT(\"'\"&G4828&\"'!\"&H4828),\"\")","v":0},"EstRev 6-11","E123"]
[4824,{"$f":"'EstRev 6-11'!F123","v":0},4824,null,true,{"$f":"IF(G4829<>\"\",INDIRECT(\"'\"&G4829&\"'!\"&H4829),\"\")","v":0},"EstRev 6-11","F123"]
[4825,{"$f":"'EstRev 6-11'!G123","v":0},4825,null,true,{"$f":"IF(G4830<>\"\",INDIRECT(\"'\"&G4830&\"'!\"&H4830),\"\")","v":0},"EstRev 6-11","G123"]
[4826,{"$f":"'EstRev 6-11'!H123","v":0},4826,null,true,{"$f":"IF(G4831<>\"\",INDIRECT(\"'\"&G4831&\"'!\"&H4831),\"\")","v":0},"EstRev 6-11","H123"]
[4827,null,null,"Close 2008",true,{"$f":"IF(G4832<>\"\",INDIRECT(\"'\"&G4832&\"'!\"&H4832),\"\")","v":""}]
[4828,{"$f":"'EstRev 6-11'!K123","v":0},4828,null,true,{"$f":"IF(G4833<>\"\",INDIRECT(\"'\"&G4833&\"'!\"&H4833),\"\")","v":0},"EstRev 6-11","K123"]
[4829,{"$nulls":3},true,{"$f":"IF(G4834<>\"\",INDIRECT(\"'\"&G4834&\"'!\"&H4834),\"\")","v":""}]
[4830,{"$nulls":3},true,{"$f":"IF(G4835<>\"\",INDIRECT(\"'\"&G4835&\"'!\"&H4835),\"\")","v":""}]
[4831,{"$nulls":3},true,{"$f":"IF(G4836<>\"\",INDIRECT(\"'\"&G4836&\"'!\"&H4836),\"\")","v":""}]
[4832,{"$nulls":3},true,{"$f":"IF(G4837<>\"\",INDIRECT(\"'\"&G4837&\"'!\"&H4837),\"\")","v":""}]
[4833,{"$nulls":3},true,{"$f":"IF(G4838<>\"\",INDIRECT(\"'\"&G4838&\"'!\"&H4838),\"\")","v":""}]
[4834,{"$nulls":3},true,{"$f":"IF(G4839<>\"\",INDIRECT(\"'\"&G4839&\"'!\"&H4839),\"\")","v":""}]
[4835,{"$nulls":3},true,{"$f":"IF(G4840<>\"\",INDIRECT(\"'\"&G4840&\"'!\"&H4840),\"\")","v":""}]
[4836,{"$nulls":3},true,{"$f":"IF(G4841<>\"\",INDIRECT(\"'\"&G4841&\"'!\"&H4841),\"\")","v":""}]
[4837,{"$nulls":3},true,{"$f":"IF(G4842<>\"\",INDIRECT(\"'\"&G4842&\"'!\"&H4842),\"\")","v":""}]
[4838,null,null,"Close 2008",true,{"$f":"IF(G4843<>\"\",INDIRECT(\"'\"&G4843&\"'!\"&H4843),\"\")","v":""}]
[4839,null,null,"Close 2008",true,{"$f":"IF(G4844<>\"\",INDIRECT(\"'\"&G4844&\"'!\"&H4844),\"\")","v":""}]
[4840,null,null,"Close 2008",true,{"$f":"IF(G4845<>\"\",INDIRECT(\"'\"&G4845&\"'!\"&H4845),\"\")","v":""}]
[4841,{"$nulls":3},true,{"$f":"IF(G4846<>\"\",INDIRECT(\"'\"&G4846&\"'!\"&H4846),\"\")","v":""}]
[4842,{"$nulls":3},true,{"$f":"IF(G4847<>\"\",INDIRECT(\"'\"&G4847&\"'!\"&H4847),\"\")","v":""}]
[4843,{"$nulls":3},true,{"$f":"IF(G4848<>\"\",INDIRECT(\"'\"&G4848&\"'!\"&H4848),\"\")","v":""}]
[4844,{"$nulls":3},true,{"$f":"IF(G4849<>\"\",INDIRECT(\"'\"&G4849&\"'!\"&H4849),\"\")","v":""}]
[4845,{"$nulls":3},true,{"$f":"IF(G4850<>\"\",INDIRECT(\"'\"&G4850&\"'!\"&H4850),\"\")","v":""}]
[4846,{"$nulls":3},true,{"$f":"IF(G4851<>\"\",INDIRECT(\"'\"&G4851&\"'!\"&H4851),\"\")","v":""}]
[4847,{"$nulls":3},true,{"$f":"IF(G4852<>\"\",INDIRECT(\"'\"&G4852&\"'!\"&H4852),\"\")","v":""}]
[4848,{"$nulls":3},true,{"$f":"IF(G4853<>\"\",INDIRECT(\"'\"&G4853&\"'!\"&H4853),\"\")","v":""}]
[4849,{"$nulls":3},true,{"$f":"IF(G4854<>\"\",INDIRECT(\"'\"&G4854&\"'!\"&H4854),\"\")","v":""}]
[4850,{"$nulls":3},true,{"$f":"IF(G4855<>\"\",INDIRECT(\"'\"&G4855&\"'!\"&H4855),\"\")","v":""}]
[4851,{"$nulls":3},true,{"$f":"IF(G4856<>\"\",INDIRECT(\"'\"&G4856&\"'!\"&H4856),\"\")","v":""}]
[4852,{"$nulls":3},true,{"$f":"IF(G4857<>\"\",INDIRECT(\"'\"&G4857&\"'!\"&H4857),\"\")","v":""}]
[4853,{"$nulls":3},true,{"$f":"IF(G4858<>\"\",INDIRECT(\"'\"&G4858&\"'!\"&H4858),\"\")","v":""}]
[4854,{"$f":"'EstRev 6-11'!C164","v":0},4854,null,true,{"$f":"IF(G4859<>\"\",INDIRECT(\"'\"&G4859&\"'!\"&H4859),\"\")","v":0},"EstRev 6-11","C164"]
[4855,{"$f":"'EstRev 6-11'!D164","v":0},4855,null,true,{"$f":"IF(G4860<>\"\",INDIRECT(\"'\"&G4860&\"'!\"&H4860),\"\")","v":0},"EstRev 6-11","D164"]
[4856,{"$f":"'EstRev 6-11'!E164","v":0},4856,null,true,{"$f":"IF(G4861<>\"\",INDIRECT(\"'\"&G4861&\"'!\"&H4861),\"\")","v":0},"EstRev 6-11","E164"]
[4857,{"$f":"'EstRev 6-11'!F164","v":0},4857,null,true,{"$f":"IF(G4862<>\"\",INDIRECT(\"'\"&G4862&\"'!\"&H4862),\"\")","v":0},"EstRev 6-11","F164"]
[4858,{"$f":"'EstRev 6-11'!G164","v":0},4858,null,true,{"$f":"IF(G4863<>\"\",INDIRECT(\"'\"&G4863&\"'!\"&H4863),\"\")","v":0},"EstRev 6-11","G164"]
[4859,{"$f":"'EstRev 6-11'!H164","v":0},4859,null,true,{"$f":"IF(G4864<>\"\",INDIRECT(\"'\"&G4864&\"'!\"&H4864),\"\")","v":0},"EstRev 6-11","H164"]
[4860,{"$nulls":3},true,{"$f":"IF(G4865<>\"\",INDIRECT(\"'\"&G4865&\"'!\"&H4865),\"\")","v":""}]
[4861,{"$f":"'EstRev 6-11'!K164","v":0},4861,null,{"$f":"F4866=B4866","v":true},{"$f":"IF(G4866<>\"\",INDIRECT(\"'\"&G4866&\"'!\"&H4866),\"\")","v":0},"EstRev 6-11","K164"]
[4862,{"$nulls":3},true,{"$f":"IF(G4867<>\"\",INDIRECT(\"'\"&G4867&\"'!\"&H4867),\"\")","v":""}]
[4863,{"$nulls":3},true,{"$f":"IF(G4868<>\"\",INDIRECT(\"'\"&G4868&\"'!\"&H4868),\"\")","v":""}]
[4864,{"$nulls":3},true,{"$f":"IF(G4869<>\"\",INDIRECT(\"'\"&G4869&\"'!\"&H4869),\"\")","v":""}]
[4865,{"$nulls":3},true,{"$f":"IF(G4870<>\"\",INDIRECT(\"'\"&G4870&\"'!\"&H4870),\"\")","v":""}]
[4866,{"$nulls":3},true,{"$f":"IF(G4871<>\"\",INDIRECT(\"'\"&G4871&\"'!\"&H4871),\"\")","v":""}]
[4867,{"$nulls":3},true,{"$f":"IF(G4872<>\"\",INDIRECT(\"'\"&G4872&\"'!\"&H4872),\"\")","v":""}]
[4868,{"$nulls":3},true,{"$f":"IF(G4873<>\"\",INDIRECT(\"'\"&G4873&\"'!\"&H4873),\"\")","v":""}]
[4869,{"$nulls":3},true,{"$f":"IF(G4874<>\"\",INDIRECT(\"'\"&G4874&\"'!\"&H4874),\"\")","v":""}]
[4870,{"$nulls":3},true,{"$f":"IF(G4875<>\"\",INDIRECT(\"'\"&G4875&\"'!\"&H4875),\"\")","v":""}]
[4871,null,null,"Close 2008",true,{"$f":"IF(G4876<>\"\",INDIRECT(\"'\"&G4876&\"'!\"&H4876),\"\")","v":""}]
[4872,null,null,"Close 2008",true,{"$f":"IF(G4877<>\"\",INDIRECT(\"'\"&G4877&\"'!\"&H4877),\"\")","v":""}]
[4873,null,null,"Close 2008",true,{"$f":"IF(G4878<>\"\",INDIRECT(\"'\"&G4878&\"'!\"&H4878),\"\")","v":""}]
[4874,{"$nulls":3},true,{"$f":"IF(G4879<>\"\",INDIRECT(\"'\"&G4879&\"'!\"&H4879),\"\")","v":""}]
[4875,{"$nulls":3},true,{"$f":"IF(G4880<>\"\",INDIRECT(\"'\"&G4880&\"'!\"&H4880),\"\")","v":""}]
[4876,{"$nulls":3},true,{"$f":"IF(G4881<>\"\",INDIRECT(\"'\"&G4881&\"'!\"&H4881),\"\")","v":""}]
[4877,{"$nulls":3},true,{"$f":"IF(G4882<>\"\",INDIRECT(\"'\"&G4882&\"'!\"&H4882),\"\")","v":""}]
[4878,{"$nulls":3},true,{"$f":"IF(G4883<>\"\",INDIRECT(\"'\"&G4883&\"'!\"&H4883),\"\")","v":""}]
[4879,{"$nulls":3},true,{"$f":"IF(G4884<>\"\",INDIRECT(\"'\"&G4884&\"'!\"&H4884),\"\")","v":""}]
[4880,{"$nulls":3},true,{"$f":"IF(G4885<>\"\",INDIRECT(\"'\"&G4885&\"'!\"&H4885),\"\")","v":""}]
[4881,{"$nulls":3},true,{"$f":"IF(G4886<>\"\",INDIRECT(\"'\"&G4886&\"'!\"&H4886),\"\")","v":""}]
[4882,{"$nulls":3},true,{"$f":"IF(G4887<>\"\",INDIRECT(\"'\"&G4887&\"'!\"&H4887),\"\")","v":""}]
[4883,{"$f":"'EstRev 6-11'!C176","v":0},{"$f":"A4888-B4888","v":4883},null,true,{"$f":"IF(G4888<>\"\",INDIRECT(\"'\"&G4888&\"'!\"&H4888),\"\")","v":0},"EstRev 6-11","C176"]
[4884,{"$f":"'EstRev 6-11'!D176","v":0},4884,null,true,{"$f":"IF(G4889<>\"\",INDIRECT(\"'\"&G4889&\"'!\"&H4889),\"\")","v":0},"EstRev 6-11","D176"]
[4885,{"$f":"'EstRev 6-11'!F176","v":0},4885,null,true,{"$f":"IF(G4890<>\"\",INDIRECT(\"'\"&G4890&\"'!\"&H4890),\"\")","v":0},"EstRev 6-11","F176"]
[4886,{"$f":"'EstRev 6-11'!G176","v":0},4886,null,true,{"$f":"IF(G4891<>\"\",INDIRECT(\"'\"&G4891&\"'!\"&H4891),\"\")","v":0},"EstRev 6-11","G176"]
[4887,{"$f":"'EstRev 6-11'!H176","v":0},4887,null,true,{"$f":"IF(G4892<>\"\",INDIRECT(\"'\"&G4892&\"'!\"&H4892),\"\")","v":0},"EstRev 6-11","H176"]
[4888,{"$f":"'EstRev 6-11'!K176","v":0},4888,null,true,{"$f":"IF(G4893<>\"\",INDIRECT(\"'\"&G4893&\"'!\"&H4893),\"\")","v":0},"EstRev 6-11","K176"]
[4889,{"$f":"'EstRev 6-11'!H177","v":0},4889,null,true,{"$f":"IF(G4894<>\"\",INDIRECT(\"'\"&G4894&\"'!\"&H4894),\"\")","v":0},"EstRev 6-11","H177"]
[4890,{"$f":"'EstRev 6-11'!K177","v":0},4890,null,true,{"$f":"IF(G4895<>\"\",INDIRECT(\"'\"&G4895&\"'!\"&H4895),\"\")","v":0},"EstRev 6-11","K177"]
[4891,{"$nulls":3},true,{"$f":"IF(G4896<>\"\",INDIRECT(\"'\"&G4896&\"'!\"&H4896),\"\")","v":""}]
[4892,{"$nulls":3},true,{"$f":"IF(G4897<>\"\",INDIRECT(\"'\"&G4897&\"'!\"&H4897),\"\")","v":""}]
[4893,{"$nulls":3},true,{"$f":"IF(G4898<>\"\",INDIRECT(\"'\"&G4898&\"'!\"&H4898),\"\")","v":""}]
[4894,{"$nulls":3},true,{"$f":"IF(G4899<>\"\",INDIRECT(\"'\"&G4899&\"'!\"&H4899),\"\")","v":""}]
[4895,{"$nulls":3},true,{"$f":"IF(G4900<>\"\",INDIRECT(\"'\"&G4900&\"'!\"&H4900),\"\")","v":""}]
[4896,{"$nulls":3},true,{"$f":"IF(G4901<>\"\",INDIRECT(\"'\"&G4901&\"'!\"&H4901),\"\")","v":""}]
[4897,{"$nulls":3},true,{"$f":"IF(G4902<>\"\",INDIRECT(\"'\"&G4902&\"'!\"&H4902),\"\")","v":""}]
[4898,{"$nulls":3},true,{"$f":"IF(G4903<>\"\",INDIRECT(\"'\"&G4903&\"'!\"&H4903),\"\")","v":""}]
[4899,{"$nulls":3},true,{"$f":"IF(G4904<>\"\",INDIRECT(\"'\"&G4904&\"'!\"&H4904),\"\")","v":""}]
[4900,{"$nulls":3},true,{"$f":"IF(G4905<>\"\",INDIRECT(\"'\"&G4905&\"'!\"&H4905),\"\")","v":""}]
[4901,{"$nulls":3},true,{"$f":"IF(G4906<>\"\",INDIRECT(\"'\"&G4906&\"'!\"&H4906),\"\")","v":""}]
[4902,{"$nulls":3},true,{"$f":"IF(G4907<>\"\",INDIRECT(\"'\"&G4907&\"'!\"&H4907),\"\")","v":""}]
[4903,{"$nulls":3},true,{"$f":"IF(G4908<>\"\",INDIRECT(\"'\"&G4908&\"'!\"&H4908),\"\")","v":""}]
[4904,{"$nulls":3},true,{"$f":"IF(G4909<>\"\",INDIRECT(\"'\"&G4909&\"'!\"&H4909),\"\")","v":""}]
[4905,{"$nulls":3},true,{"$f":"IF(G4910<>\"\",INDIRECT(\"'\"&G4910&\"'!\"&H4910),\"\")","v":""}]
[4906,{"$nulls":3},true,{"$f":"IF(G4911<>\"\",INDIRECT(\"'\"&G4911&\"'!\"&H4911),\"\")","v":""}]
[4907,{"$nulls":3},true,{"$f":"IF(G4912<>\"\",INDIRECT(\"'\"&G4912&\"'!\"&H4912),\"\")","v":""}]
[4908,{"$nulls":3},true,{"$f":"IF(G4913<>\"\",INDIRECT(\"'\"&G4913&\"'!\"&H4913),\"\")","v":""}]
[4909,{"$nulls":3},true,{"$f":"IF(G4914<>\"\",INDIRECT(\"'\"&G4914&\"'!\"&H4914),\"\")","v":""}]
[4910,{"$nulls":3},true,{"$f":"IF(G4915<>\"\",INDIRECT(\"'\"&G4915&\"'!\"&H4915),\"\")","v":""}]
[4911,{"$nulls":3},true,{"$f":"IF(G4916<>\"\",INDIRECT(\"'\"&G4916&\"'!\"&H4916),\"\")","v":""}]
[4912,{"$nulls":3},true,{"$f":"IF(G4917<>\"\",INDIRECT(\"'\"&G4917&\"'!\"&H4917),\"\")","v":""}]
[4913,{"$nulls":3},true,{"$f":"IF(G4918<>\"\",INDIRECT(\"'\"&G4918&\"'!\"&H4918),\"\")","v":""}]
[4914,{"$nulls":3},true,{"$f":"IF(G4919<>\"\",INDIRECT(\"'\"&G4919&\"'!\"&H4919),\"\")","v":""}]
[4915,{"$nulls":3},true,{"$f":"IF(G4920<>\"\",INDIRECT(\"'\"&G4920&\"'!\"&H4920),\"\")","v":""}]
[4916,{"$nulls":3},true,{"$f":"IF(G4921<>\"\",INDIRECT(\"'\"&G4921&\"'!\"&H4921),\"\")","v":""}]
[4917,{"$nulls":3},true,{"$f":"IF(G4922<>\"\",INDIRECT(\"'\"&G4922&\"'!\"&H4922),\"\")","v":""}]
[4918,{"$nulls":3},true,{"$f":"IF(G4923<>\"\",INDIRECT(\"'\"&G4923&\"'!\"&H4923),\"\")","v":""}]
[4919,{"$nulls":3},true,{"$f":"IF(G4924<>\"\",INDIRECT(\"'\"&G4924&\"'!\"&H4924),\"\")","v":""}]
[4920,{"$nulls":3},true,{"$f":"IF(G4925<>\"\",INDIRECT(\"'\"&G4925&\"'!\"&H4925),\"\")","v":""}]
[4921,{"$nulls":3},true,{"$f":"IF(G4926<>\"\",INDIRECT(\"'\"&G4926&\"'!\"&H4926),\"\")","v":""}]
[4922,{"$nulls":3},true,{"$f":"IF(G4927<>\"\",INDIRECT(\"'\"&G4927&\"'!\"&H4927),\"\")","v":""}]
[4923,{"$nulls":3},true,{"$f":"IF(G4928<>\"\",INDIRECT(\"'\"&G4928&\"'!\"&H4928),\"\")","v":""}]
[4924,{"$nulls":3},true,{"$f":"IF(G4929<>\"\",INDIRECT(\"'\"&G4929&\"'!\"&H4929),\"\")","v":""}]
[4925,{"$nulls":3},{"$f":"F4930=B4930","v":true},{"$f":"IF(G4930<>\"\",INDIRECT(\"'\"&G4930&\"'!\"&H4930),\"\")","v":""}]
[4926,{"$nulls":3},true,{"$f":"IF(G4931<>\"\",INDIRECT(\"'\"&G4931&\"'!\"&H4931),\"\")","v":""}]
[4927,{"$nulls":3},true,{"$f":"IF(G4932<>\"\",INDIRECT(\"'\"&G4932&\"'!\"&H4932),\"\")","v":""}]
[4928,{"$nulls":3},true,{"$f":"IF(G4933<>\"\",INDIRECT(\"'\"&G4933&\"'!\"&H4933),\"\")","v":""}]
[4929,{"$nulls":3},true,{"$f":"IF(G4934<>\"\",INDIRECT(\"'\"&G4934&\"'!\"&H4934),\"\")","v":""}]
[4930,{"$nulls":3},true,{"$f":"IF(G4935<>\"\",INDIRECT(\"'\"&G4935&\"'!\"&H4935),\"\")","v":""}]
[4931,{"$nulls":3},true,{"$f":"IF(G4936<>\"\",INDIRECT(\"'\"&G4936&\"'!\"&H4936),\"\")","v":""}]
[4932,{"$nulls":3},true,{"$f":"IF(G4937<>\"\",INDIRECT(\"'\"&G4937&\"'!\"&H4937),\"\")","v":""}]
[4933,{"$nulls":3},true,{"$f":"IF(G4938<>\"\",INDIRECT(\"'\"&G4938&\"'!\"&H4938),\"\")","v":""}]
[4934,{"$nulls":3},true,{"$f":"IF(G4939<>\"\",INDIRECT(\"'\"&G4939&\"'!\"&H4939),\"\")","v":""}]
[4935,{"$nulls":3},true,{"$f":"IF(G4940<>\"\",INDIRECT(\"'\"&G4940&\"'!\"&H4940),\"\")","v":""}]
[4936,{"$nulls":3},true,{"$f":"IF(G4941<>\"\",INDIRECT(\"'\"&G4941&\"'!\"&H4941),\"\")","v":""}]
[4937,{"$nulls":3},true,{"$f":"IF(G4942<>\"\",INDIRECT(\"'\"&G4942&\"'!\"&H4942),\"\")","v":""}]
[4938,null,null,"Close 2008",true,{"$f":"IF(G4943<>\"\",INDIRECT(\"'\"&G4943&\"'!\"&H4943),\"\")","v":""}]
[4939,{"$f":"'EstRev 6-11'!K171","v":0},{"$f":"A4944-B4944","v":4939},null,true,{"$f":"IF(G4944<>\"\",INDIRECT(\"'\"&G4944&\"'!\"&H4944),\"\")","v":0},"EstRev 6-11","K171"]
[4940,{"$nulls":3},true,{"$f":"IF(G4945<>\"\",INDIRECT(\"'\"&G4945&\"'!\"&H4945),\"\")","v":""}]
[4941,{"$nulls":3},true,{"$f":"IF(G4946<>\"\",INDIRECT(\"'\"&G4946&\"'!\"&H4946),\"\")","v":""}]
[4942,{"$nulls":3},true,{"$f":"IF(G4947<>\"\",INDIRECT(\"'\"&G4947&\"'!\"&H4947),\"\")","v":""}]
[4943,{"$nulls":3},true,{"$f":"IF(G4948<>\"\",INDIRECT(\"'\"&G4948&\"'!\"&H4948),\"\")","v":""}]
[4944,{"$nulls":3},true,{"$f":"IF(G4949<>\"\",INDIRECT(\"'\"&G4949&\"'!\"&H4949),\"\")","v":""}]
[4945,{"$nulls":3},true,{"$f":"IF(G4950<>\"\",INDIRECT(\"'\"&G4950&\"'!\"&H4950),\"\")","v":""}]
[4946,{"$nulls":3},true,{"$f":"IF(G4951<>\"\",INDIRECT(\"'\"&G4951&\"'!\"&H4951),\"\")","v":""}]
[4947,{"$nulls":3},true,{"$f":"IF(G4952<>\"\",INDIRECT(\"'\"&G4952&\"'!\"&H4952),\"\")","v":""}]
[4948,{"$nulls":3},true,{"$f":"IF(G4953<>\"\",INDIRECT(\"'\"&G4953&\"'!\"&H4953),\"\")","v":""}]
[4949,{"$nulls":3},true,{"$f":"IF(G4954<>\"\",INDIRECT(\"'\"&G4954&\"'!\"&H4954),\"\")","v":""}]
[4950,{"$f":"'BudgetSum 2-4'!I7","v":{"v":0,"d":"0 "}},4950,"fixed B16",true,{"$f":"IF(G4955<>\"\",INDIRECT(\"'\"&G4955&\"'!\"&H4955),\"\")","v":0},"BudgetSum 2-4","I7"]
[4951,{"$f":"'BudgetSum 2-4'!C29","v":0},4951,null,true,{"$f":"IF(G4956<>\"\",INDIRECT(\"'\"&G4956&\"'!\"&H4956),\"\")","v":0},"BudgetSum 2-4","C29"]
[4952,{"$f":"'BudgetSum 2-4'!D29","v":0},4952,null,true,{"$f":"IF(G4957<>\"\",INDIRECT(\"'\"&G4957&\"'!\"&H4957),\"\")","v":0},"BudgetSum 2-4","D29"]
[4953,{"$f":"'BudgetSum 2-4'!F29","v":0},4953,null,true,{"$f":"IF(G4958<>\"\",INDIRECT(\"'\"&G4958&\"'!\"&H4958),\"\")","v":0},"BudgetSum 2-4","F29"]
[4954,null,null,"Close 2008",true,{"$f":"IF(G4959<>\"\",INDIRECT(\"'\"&G4959&\"'!\"&H4959),\"\")","v":""}]
[4955,null,null,"Close 2008",true,{"$f":"IF(G4960<>\"\",INDIRECT(\"'\"&G4960&\"'!\"&H4960),\"\")","v":""}]
[4956,null,null,"Close 2008",true,{"$f":"IF(G4961<>\"\",INDIRECT(\"'\"&G4961&\"'!\"&H4961),\"\")","v":""}]
[4957,null,null,"Close 2008",true,{"$f":"IF(G4962<>\"\",INDIRECT(\"'\"&G4962&\"'!\"&H4962),\"\")","v":""}]
[4958,null,null,"Close 2008",true,{"$f":"IF(G4963<>\"\",INDIRECT(\"'\"&G4963&\"'!\"&H4963),\"\")","v":""}]
[4959,null,null,"Close 2008",true,{"$f":"IF(G4964<>\"\",INDIRECT(\"'\"&G4964&\"'!\"&H4964),\"\")","v":""}]
[4960,null,null,"Close 2008",true,{"$f":"IF(G4965<>\"\",INDIRECT(\"'\"&G4965&\"'!\"&H4965),\"\")","v":""}]
[4961,{"$f":"'BudgetSum 2-4'!C52","v":0},4961,null,true,{"$f":"IF(G4966<>\"\",INDIRECT(\"'\"&G4966&\"'!\"&H4966),\"\")","v":0},"BudgetSum 2-4","C52"]
[4962,{"$f":"'BudgetSum 2-4'!D52","v":0},4962,null,true,{"$f":"IF(G4967<>\"\",INDIRECT(\"'\"&G4967&\"'!\"&H4967),\"\")","v":0},"BudgetSum 2-4","D52"]
[4963,{"$f":"'BudgetSum 2-4'!F52","v":0},4963,null,true,{"$f":"IF(G4968<>\"\",INDIRECT(\"'\"&G4968&\"'!\"&H4968),\"\")","v":0},"BudgetSum 2-4","F52"]
[4964,null,null,"Close 2008",true,{"$f":"IF(G4969<>\"\",INDIRECT(\"'\"&G4969&\"'!\"&H4969),\"\")","v":""}]
[4965,{"$f":"'EstRev 6-11'!C6","v":0},4965,null,true,{"$f":"IF(G4970<>\"\",INDIRECT(\"'\"&G4970&\"'!\"&H4970),\"\")","v":0},"EstRev 6-11","C6"]
[4966,{"$f":"'EstRev 6-11'!F106","v":0},4966,null,true,{"$f":"IF(G4971<>\"\",INDIRECT(\"'\"&G4971&\"'!\"&H4971),\"\")","v":0},"EstRev 6-11","F106"]
[4967,{"$nulls":3},true,{"$f":"IF(G4972<>\"\",INDIRECT(\"'\"&G4972&\"'!\"&H4972),\"\")","v":""}]
[4968,{"$nulls":3},true,{"$f":"IF(G4973<>\"\",INDIRECT(\"'\"&G4973&\"'!\"&H4973),\"\")","v":""}]
[4969,{"$nulls":3},true,{"$f":"IF(G4974<>\"\",INDIRECT(\"'\"&G4974&\"'!\"&H4974),\"\")","v":""}]
[4970,{"$nulls":3},true,{"$f":"IF(G4975<>\"\",INDIRECT(\"'\"&G4975&\"'!\"&H4975),\"\")","v":""}]
[4971,{"$nulls":3},true,{"$f":"IF(G4976<>\"\",INDIRECT(\"'\"&G4976&\"'!\"&H4976),\"\")","v":""}]
[4972,{"$nulls":3},true,{"$f":"IF(G4977<>\"\",INDIRECT(\"'\"&G4977&\"'!\"&H4977),\"\")","v":""}]
[4973,{"$nulls":3},true,{"$f":"IF(G4978<>\"\",INDIRECT(\"'\"&G4978&\"'!\"&H4978),\"\")","v":""}]
[4974,{"$nulls":3},true,{"$f":"IF(G4979<>\"\",INDIRECT(\"'\"&G4979&\"'!\"&H4979),\"\")","v":""}]
[4975,{"$nulls":3},true,{"$f":"IF(G4980<>\"\",INDIRECT(\"'\"&G4980&\"'!\"&H4980),\"\")","v":""}]
[4976,{"$nulls":3},true,{"$f":"IF(G4981<>\"\",INDIRECT(\"'\"&G4981&\"'!\"&H4981),\"\")","v":""}]
[4977,{"$nulls":3},true,{"$f":"IF(G4982<>\"\",INDIRECT(\"'\"&G4982&\"'!\"&H4982),\"\")","v":""}]
[4978,{"$nulls":3},true,{"$f":"IF(G4983<>\"\",INDIRECT(\"'\"&G4983&\"'!\"&H4983),\"\")","v":""}]
[4979,{"$nulls":3},true,{"$f":"IF(G4984<>\"\",INDIRECT(\"'\"&G4984&\"'!\"&H4984),\"\")","v":""}]
[4980,{"$nulls":3},true,{"$f":"IF(G4985<>\"\",INDIRECT(\"'\"&G4985&\"'!\"&H4985),\"\")","v":""}]
[4981,{"$nulls":3},true,{"$f":"IF(G4986<>\"\",INDIRECT(\"'\"&G4986&\"'!\"&H4986),\"\")","v":""}]
[4982,{"$nulls":3},true,{"$f":"IF(G4987<>\"\",INDIRECT(\"'\"&G4987&\"'!\"&H4987),\"\")","v":""}]
[4983,{"$nulls":3},true,{"$f":"IF(G4988<>\"\",INDIRECT(\"'\"&G4988&\"'!\"&H4988),\"\")","v":""}]
[4984,{"$nulls":3},true,{"$f":"IF(G4989<>\"\",INDIRECT(\"'\"&G4989&\"'!\"&H4989),\"\")","v":""}]
[4985,{"$nulls":3},true,{"$f":"IF(G4990<>\"\",INDIRECT(\"'\"&G4990&\"'!\"&H4990),\"\")","v":""}]
[4986,{"$nulls":3},true,{"$f":"IF(G4991<>\"\",INDIRECT(\"'\"&G4991&\"'!\"&H4991),\"\")","v":""}]
[4987,{"$nulls":3},true,{"$f":"IF(G4992<>\"\",INDIRECT(\"'\"&G4992&\"'!\"&H4992),\"\")","v":""}]
[4988,{"$nulls":3},true,{"$f":"IF(G4993<>\"\",INDIRECT(\"'\"&G4993&\"'!\"&H4993),\"\")","v":""}]
[4989,{"$nulls":3},{"$f":"F4994=B4994","v":true},{"$f":"IF(G4994<>\"\",INDIRECT(\"'\"&G4994&\"'!\"&H4994),\"\")","v":""}]
[4990,{"$nulls":3},true,{"$f":"IF(G4995<>\"\",INDIRECT(\"'\"&G4995&\"'!\"&H4995),\"\")","v":""}]
[4991,{"$nulls":3},true,{"$f":"IF(G4996<>\"\",INDIRECT(\"'\"&G4996&\"'!\"&H4996),\"\")","v":""}]
[4992,{"$nulls":3},true,{"$f":"IF(G4997<>\"\",INDIRECT(\"'\"&G4997&\"'!\"&H4997),\"\")","v":""}]
[4993,{"$nulls":3},true,{"$f":"IF(G4998<>\"\",INDIRECT(\"'\"&G4998&\"'!\"&H4998),\"\")","v":""}]
[4994,{"$nulls":3},true,{"$f":"IF(G4999<>\"\",INDIRECT(\"'\"&G4999&\"'!\"&H4999),\"\")","v":""}]
[4995,{"$f":"'EstRev 6-11'!C162","v":0},{"$f":"A5000-B5000","v":4995},null,true,{"$f":"IF(G5000<>\"\",INDIRECT(\"'\"&G5000&\"'!\"&H5000),\"\")","v":0},"EstRev 6-11","C162"]
[4996,{"$f":"'EstRev 6-11'!D162","v":0},4996,null,true,{"$f":"IF(G5001<>\"\",INDIRECT(\"'\"&G5001&\"'!\"&H5001),\"\")","v":0},"EstRev 6-11","D162"]
[4997,{"$f":"'EstRev 6-11'!F162","v":0},4997,null,true,{"$f":"IF(G5002<>\"\",INDIRECT(\"'\"&G5002&\"'!\"&H5002),\"\")","v":0},"EstRev 6-11","F162"]
[4998,{"$f":"'EstRev 6-11'!G162","v":0},4998,null,true,{"$f":"IF(G5003<>\"\",INDIRECT(\"'\"&G5003&\"'!\"&H5003),\"\")","v":0},"EstRev 6-11","G162"]
[4999,{"$f":"'EstRev 6-11'!C163","v":0},4999,null,true,{"$f":"IF(G5004<>\"\",INDIRECT(\"'\"&G5004&\"'!\"&H5004),\"\")","v":0},"EstRev 6-11","C163"]
[5000,{"$f":"'EstRev 6-11'!C5","v":4220000},-4215000,null,true,{"$f":"IF(G5005<>\"\",INDIRECT(\"'\"&G5005&\"'!\"&H5005),\"\")","v":4220000},"EstRev 6-11","C5"]
[5001,null,null,"Close 2008",true,{"$f":"IF(G5006<>\"\",INDIRECT(\"'\"&G5006&\"'!\"&H5006),\"\")","v":""}]
[5002,{"$f":"'EstRev 6-11'!C7","v":212000},-206998,null,true,{"$f":"IF(G5007<>\"\",INDIRECT(\"'\"&G5007&\"'!\"&H5007),\"\")","v":212000},"EstRev 6-11","C7"]
[5003,{"$f":"'EstRev 6-11'!C10","v":0},5003,null,true,{"$f":"IF(G5008<>\"\",INDIRECT(\"'\"&G5008&\"'!\"&H5008),\"\")","v":0},"EstRev 6-11","C10"]
[5004,{"$f":"'EstRev 6-11'!C11","v":0},5004,null,true,{"$f":"IF(G5009<>\"\",INDIRECT(\"'\"&G5009&\"'!\"&H5009),\"\")","v":0},"EstRev 6-11","C11"]
[5005,{"$f":"'EstRev 6-11'!C12","v":4432000},-4426995,null,true,{"$f":"IF(G5010<>\"\",INDIRECT(\"'\"&G5010&\"'!\"&H5010),\"\")","v":4432000},"EstRev 6-11","C12"]
[5006,{"$f":"'EstRev 6-11'!C14","v":0},5006,null,true,{"$f":"IF(G5011<>\"\",INDIRECT(\"'\"&G5011&\"'!\"&H5011),\"\")","v":0},"EstRev 6-11","C14"]
[5007,{"$f":"'EstRev 6-11'!C15","v":0},5007,null,true,{"$f":"IF(G5012<>\"\",INDIRECT(\"'\"&G5012&\"'!\"&H5012),\"\")","v":0},"EstRev 6-11","C15"]
[5008,{"$f":"'EstRev 6-11'!C16","v":550000},-544992,null,true,{"$f":"IF(G5013<>\"\",INDIRECT(\"'\"&G5013&\"'!\"&H5013),\"\")","v":550000},"EstRev 6-11","C16"]
[5009,{"$f":"'EstRev 6-11'!C17","v":0},5009,null,true,{"$f":"IF(G5014<>\"\",INDIRECT(\"'\"&G5014&\"'!\"&H5014),\"\")","v":0},"EstRev 6-11","C17"]
[5010,{"$f":"'EstRev 6-11'!C18","v":550000},-544990,null,true,{"$f":"IF(G5015<>\"\",INDIRECT(\"'\"&G5015&\"'!\"&H5015),\"\")","v":550000},"EstRev 6-11","C18"]
[5011,{"$f":"'EstRev 6-11'!C20","v":3000},2011,null,true,{"$f":"IF(G5016<>\"\",INDIRECT(\"'\"&G5016&\"'!\"&H5016),\"\")","v":3000},"EstRev 6-11","C20"]
[5012,{"$f":"'EstRev 6-11'!C21","v":0},5012,null,true,{"$f":"IF(G5017<>\"\",INDIRECT(\"'\"&G5017&\"'!\"&H5017),\"\")","v":0},"EstRev 6-11","C21"]
[5013,{"$f":"'EstRev 6-11'!C22","v":0},5013,null,true,{"$f":"IF(G5018<>\"\",INDIRECT(\"'\"&G5018&\"'!\"&H5018),\"\")","v":0},"EstRev 6-11","C22"]
[5014,{"$f":"'EstRev 6-11'!C24","v":0},5014,null,true,{"$f":"IF(G5019<>\"\",INDIRECT(\"'\"&G5019&\"'!\"&H5019),\"\")","v":0},"EstRev 6-11","C24"]
[5015,{"$f":"'EstRev 6-11'!C25","v":0},5015,null,true,{"$f":"IF(G5020<>\"\",INDIRECT(\"'\"&G5020&\"'!\"&H5020),\"\")","v":0},"EstRev 6-11","C25"]
[5016,{"$f":"'EstRev 6-11'!C26","v":0},5016,null,true,{"$f":"IF(G5021<>\"\",INDIRECT(\"'\"&G5021&\"'!\"&H5021),\"\")","v":0},"EstRev 6-11","C26"]
[5017,{"$f":"'EstRev 6-11'!C28","v":0},5017,null,true,{"$f":"IF(G5022<>\"\",INDIRECT(\"'\"&G5022&\"'!\"&H5022),\"\")","v":0},"EstRev 6-11","C28"]
[5018,{"$f":"'EstRev 6-11'!C29","v":0},5018,null,true,{"$f":"IF(G5023<>\"\",INDIRECT(\"'\"&G5023&\"'!\"&H5023),\"\")","v":0},"EstRev 6-11","C29"]
[5019,{"$f":"'EstRev 6-11'!C30","v":0},5019,null,true,{"$f":"IF(G5024<>\"\",INDIRECT(\"'\"&G5024&\"'!\"&H5024),\"\")","v":0},"EstRev 6-11","C30"]
[5020,{"$f":"'EstRev 6-11'!C32","v":0},5020,null,true,{"$f":"IF(G5025<>\"\",INDIRECT(\"'\"&G5025&\"'!\"&H5025),\"\")","v":0},"EstRev 6-11","C32"]
[5021,{"$f":"'EstRev 6-11'!C33","v":0},5021,null,true,{"$f":"IF(G5026<>\"\",INDIRECT(\"'\"&G5026&\"'!\"&H5026),\"\")","v":0},"EstRev 6-11","C33"]
[5022,{"$f":"'EstRev 6-11'!C34","v":0},5022,null,true,{"$f":"IF(G5027<>\"\",INDIRECT(\"'\"&G5027&\"'!\"&H5027),\"\")","v":0},"EstRev 6-11","C34"]
[5023,{"$f":"'EstRev 6-11'!C36","v":0},5023,null,true,{"$f":"IF(G5028<>\"\",INDIRECT(\"'\"&G5028&\"'!\"&H5028),\"\")","v":0},"EstRev 6-11","C36"]
[5024,{"$f":"'EstRev 6-11'!C37","v":0},5024,null,true,{"$f":"IF(G5029<>\"\",INDIRECT(\"'\"&G5029&\"'!\"&H5029),\"\")","v":0},"EstRev 6-11","C37"]
[5025,{"$f":"'EstRev 6-11'!C38","v":0},5025,null,true,{"$f":"IF(G5030<>\"\",INDIRECT(\"'\"&G5030&\"'!\"&H5030),\"\")","v":0},"EstRev 6-11","C38"]
[5026,{"$f":"'EstRev 6-11'!C40","v":3000},2026,null,true,{"$f":"IF(G5031<>\"\",INDIRECT(\"'\"&G5031&\"'!\"&H5031),\"\")","v":3000},"EstRev 6-11","C40"]
[5027,{"$f":"'EstRev 6-11'!C65","v":0},5027,null,true,{"$f":"IF(G5032<>\"\",INDIRECT(\"'\"&G5032&\"'!\"&H5032),\"\")","v":0},"EstRev 6-11","C65"]
[5028,{"$f":"'EstRev 6-11'!C66","v":0},5028,null,true,{"$f":"IF(G5033<>\"\",INDIRECT(\"'\"&G5033&\"'!\"&H5033),\"\")","v":0},"EstRev 6-11","C66"]
[5029,{"$f":"'EstRev 6-11'!C67","v":0},5029,null,true,{"$f":"IF(G5034<>\"\",INDIRECT(\"'\"&G5034&\"'!\"&H5034),\"\")","v":0},"EstRev 6-11","C67"]
[5030,{"$f":"'EstRev 6-11'!C70","v":0},5030,null,true,{"$f":"IF(G5035<>\"\",INDIRECT(\"'\"&G5035&\"'!\"&H5035),\"\")","v":0},"EstRev 6-11","C70"]
[5031,{"$f":"'EstRev 6-11'!C71","v":0},5031,null,true,{"$f":"IF(G5036<>\"\",INDIRECT(\"'\"&G5036&\"'!\"&H5036),\"\")","v":0},"EstRev 6-11","C71"]
[5032,{"$f":"'EstRev 6-11'!C72","v":0},5032,null,true,{"$f":"IF(G5037<>\"\",INDIRECT(\"'\"&G5037&\"'!\"&H5037),\"\")","v":0},"EstRev 6-11","C72"]
[5033,{"$f":"'EstRev 6-11'!C73","v":1900},3133,null,true,{"$f":"IF(G5038<>\"\",INDIRECT(\"'\"&G5038&\"'!\"&H5038),\"\")","v":1900},"EstRev 6-11","C73"]
[5034,{"$f":"'EstRev 6-11'!C74","v":0},5034,null,true,{"$f":"IF(G5039<>\"\",INDIRECT(\"'\"&G5039&\"'!\"&H5039),\"\")","v":0},"EstRev 6-11","C74"]
[5035,{"$f":"'EstRev 6-11'!C75","v":1900},3135,null,true,{"$f":"IF(G5040<>\"\",INDIRECT(\"'\"&G5040&\"'!\"&H5040),\"\")","v":1900},"EstRev 6-11","C75"]
[5036,{"$f":"'EstRev 6-11'!C77","v":0},5036,null,true,{"$f":"IF(G5041<>\"\",INDIRECT(\"'\"&G5041&\"'!\"&H5041),\"\")","v":0},"EstRev 6-11","C77"]
[5037,{"$f":"'EstRev 6-11'!C78","v":0},5037,null,true,{"$f":"IF(G5042<>\"\",INDIRECT(\"'\"&G5042&\"'!\"&H5042),\"\")","v":0},"EstRev 6-11","C78"]
[5038,{"$f":"'EstRev 6-11'!C79","v":0},5038,null,true,{"$f":"IF(G5043<>\"\",INDIRECT(\"'\"&G5043&\"'!\"&H5043),\"\")","v":0},"EstRev 6-11","C79"]
[5039,{"$f":"'EstRev 6-11'!C80","v":0},5039,null,true,{"$f":"IF(G5044<>\"\",INDIRECT(\"'\"&G5044&\"'!\"&H5044),\"\")","v":0},"EstRev 6-11","C80"]
[5040,{"$f":"'EstRev 6-11'!C81","v":0},5040,null,true,{"$f":"IF(G5045<>\"\",INDIRECT(\"'\"&G5045&\"'!\"&H5045),\"\")","v":0},"EstRev 6-11","C81"]
[5041,{"$f":"'EstRev 6-11'!C83","v":0},5041,null,true,{"$f":"IF(G5046<>\"\",INDIRECT(\"'\"&G5046&\"'!\"&H5046),\"\")","v":0},"EstRev 6-11","C83"]
[5042,{"$f":"'EstRev 6-11'!C86","v":0},5042,null,true,{"$f":"IF(G5047<>\"\",INDIRECT(\"'\"&G5047&\"'!\"&H5047),\"\")","v":0},"EstRev 6-11","C86"]
[5043,{"$f":"'EstRev 6-11'!C87","v":0},5043,null,true,{"$f":"IF(G5048<>\"\",INDIRECT(\"'\"&G5048&\"'!\"&H5048),\"\")","v":0},"EstRev 6-11","C87"]
[5044,{"$f":"'EstRev 6-11'!C88","v":0},5044,null,true,{"$f":"IF(G5049<>\"\",INDIRECT(\"'\"&G5049&\"'!\"&H5049),\"\")","v":0},"EstRev 6-11","C88"]
[5045,{"$f":"'EstRev 6-11'!C89","v":0},5045,null,true,{"$f":"IF(G5050<>\"\",INDIRECT(\"'\"&G5050&\"'!\"&H5050),\"\")","v":0},"EstRev 6-11","C89"]
[5046,{"$f":"'EstRev 6-11'!C90","v":0},5046,null,true,{"$f":"IF(G5051<>\"\",INDIRECT(\"'\"&G5051&\"'!\"&H5051),\"\")","v":0},"EstRev 6-11","C90"]
[5047,{"$f":"'EstRev 6-11'!C91","v":0},5047,null,true,{"$f":"IF(G5052<>\"\",INDIRECT(\"'\"&G5052&\"'!\"&H5052),\"\")","v":0},"EstRev 6-11","C91"]
[5048,{"$f":"'EstRev 6-11'!C92","v":0},5048,null,true,{"$f":"IF(G5053<>\"\",INDIRECT(\"'\"&G5053&\"'!\"&H5053),\"\")","v":0},"EstRev 6-11","C92"]
[5049,{"$f":"'EstRev 6-11'!C93","v":0},5049,null,true,{"$f":"IF(G5054<>\"\",INDIRECT(\"'\"&G5054&\"'!\"&H5054),\"\")","v":0},"EstRev 6-11","C93"]
[5050,{"$f":"'EstRev 6-11'!C94","v":0},5050,null,true,{"$f":"IF(G5055<>\"\",INDIRECT(\"'\"&G5055&\"'!\"&H5055),\"\")","v":0},"EstRev 6-11","C94"]
[5051,{"$f":"'EstRev 6-11'!C95","v":0},5051,null,true,{"$f":"IF(G5056<>\"\",INDIRECT(\"'\"&G5056&\"'!\"&H5056),\"\")","v":0},"EstRev 6-11","C95"]
[5052,{"$f":"'EstRev 6-11'!C97","v":0},5052,null,true,{"$f":"IF(G5057<>\"\",INDIRECT(\"'\"&G5057&\"'!\"&H5057),\"\")","v":0},"EstRev 6-11","C97"]
[5053,{"$f":"'EstRev 6-11'!C98","v":0},5053,null,{"$f":"F5058=B5058","v":true},{"$f":"IF(G5058<>\"\",INDIRECT(\"'\"&G5058&\"'!\"&H5058),\"\")","v":0},"EstRev 6-11","C98"]
[5054,{"$f":"'EstRev 6-11'!C100","v":0},5054,null,true,{"$f":"IF(G5059<>\"\",INDIRECT(\"'\"&G5059&\"'!\"&H5059),\"\")","v":0},"EstRev 6-11","C100"]
[5055,{"$f":"'EstRev 6-11'!C101","v":0},5055,null,true,{"$f":"IF(G5060<>\"\",INDIRECT(\"'\"&G5060&\"'!\"&H5060),\"\")","v":0},"EstRev 6-11","C101"]
[5056,{"$f":"'EstRev 6-11'!C107","v":0},5056,null,true,{"$f":"IF(G5061<>\"\",INDIRECT(\"'\"&G5061&\"'!\"&H5061),\"\")","v":0},"EstRev 6-11","C107"]
[5057,{"$f":"'EstRev 6-11'!C108","v":0},5057,null,true,{"$f":"IF(G5062<>\"\",INDIRECT(\"'\"&G5062&\"'!\"&H5062),\"\")","v":0},"EstRev 6-11","C108"]
[5058,{"$f":"'EstRev 6-11'!C109","v":17000},-11942,null,true,{"$f":"IF(G5063<>\"\",INDIRECT(\"'\"&G5063&\"'!\"&H5063),\"\")","v":17000},"EstRev 6-11","C109"]
[5059,{"$f":"'EstRev 6-11'!C110","v":17000},{"$f":"A5064-B5064","v":-11941},null,true,{"$f":"IF(G5064<>\"\",INDIRECT(\"'\"&G5064&\"'!\"&H5064),\"\")","v":17000},"EstRev 6-11","C110"]
[5060,{"$f":"'EstRev 6-11'!C111","v":5003900},-4998840,null,true,{"$f":"IF(G5065<>\"\",INDIRECT(\"'\"&G5065&\"'!\"&H5065),\"\")","v":5003900},"EstRev 6-11","C111"]
[5061,{"$f":"'EstRev 6-11'!C114","v":0},5061,null,true,{"$f":"IF(G5066<>\"\",INDIRECT(\"'\"&G5066&\"'!\"&H5066),\"\")","v":0},"EstRev 6-11","C114"]
[5062,{"$f":"'EstRev 6-11'!C115","v":0},5062,null,true,{"$f":"IF(G5067<>\"\",INDIRECT(\"'\"&G5067&\"'!\"&H5067),\"\")","v":0},"EstRev 6-11","C115"]
[5063,{"$f":"'EstRev 6-11'!C116","v":0},5063,null,true,{"$f":"IF(G5068<>\"\",INDIRECT(\"'\"&G5068&\"'!\"&H5068),\"\")","v":0},"EstRev 6-11","C116"]
[5064,{"$f":"'EstRev 6-11'!C117","v":0},5064,null,true,{"$f":"IF(G5069<>\"\",INDIRECT(\"'\"&G5069&\"'!\"&H5069),\"\")","v":0},"EstRev 6-11","C117"]
[5065,{"$f":"'EstRev 6-11'!C120","v":5500000},-5494935,null,true,{"$f":"IF(G5070<>\"\",INDIRECT(\"'\"&G5070&\"'!\"&H5070),\"\")","v":5500000},"EstRev 6-11","C120"]
[5066,{"$f":"'EstRev 6-11'!C121","v":0},5066,null,true,{"$f":"IF(G5071<>\"\",INDIRECT(\"'\"&G5071&\"'!\"&H5071),\"\")","v":0},"EstRev 6-11","C121"]
[5067,{"$nulls":3},true,{"$f":"IF(G5072<>\"\",INDIRECT(\"'\"&G5072&\"'!\"&H5072),\"\")","v":""}]
[5068,{"$nulls":3},true,{"$f":"IF(G5073<>\"\",INDIRECT(\"'\"&G5073&\"'!\"&H5073),\"\")","v":""}]
[5069,{"$nulls":3},true,{"$f":"IF(G5074<>\"\",INDIRECT(\"'\"&G5074&\"'!\"&H5074),\"\")","v":""}]
[5070,{"$nulls":3},true,{"$f":"IF(G5075<>\"\",INDIRECT(\"'\"&G5075&\"'!\"&H5075),\"\")","v":""}]
[5071,{"$f":"'EstRev 6-11'!C124","v":5500000},-5494929,null,true,{"$f":"IF(G5076<>\"\",INDIRECT(\"'\"&G5076&\"'!\"&H5076),\"\")","v":5500000},"EstRev 6-11","C124"]
[5072,{"$f":"'EstRev 6-11'!C127","v":5000},72,null,true,{"$f":"IF(G5077<>\"\",INDIRECT(\"'\"&G5077&\"'!\"&H5077),\"\")","v":5000},"EstRev 6-11","C127"]
[5073,{"$f":"'EstRev 6-11'!C128","v":0},5073,null,true,{"$f":"IF(G5078<>\"\",INDIRECT(\"'\"&G5078&\"'!\"&H5078),\"\")","v":0},"EstRev 6-11","C128"]
[5074,{"$f":"'EstRev 6-11'!C129","v":0},5074,null,true,{"$f":"IF(G5079<>\"\",INDIRECT(\"'\"&G5079&\"'!\"&H5079),\"\")","v":0},"EstRev 6-11","C129"]
[5075,{"$nulls":3},true,{"$f":"IF(G5080<>\"\",INDIRECT(\"'\"&G5080&\"'!\"&H5080),\"\")","v":""}]
[5076,{"$f":"'EstRev 6-11'!C130","v":40000},-34924,null,true,{"$f":"IF(G5081<>\"\",INDIRECT(\"'\"&G5081&\"'!\"&H5081),\"\")","v":40000},"EstRev 6-11","C130"]
[5077,{"$nulls":3},true,{"$f":"IF(G5082<>\"\",INDIRECT(\"'\"&G5082&\"'!\"&H5082),\"\")","v":""}]
[5078,{"$f":"'EstRev 6-11'!C131","v":0},5078,null,true,{"$f":"IF(G5083<>\"\",INDIRECT(\"'\"&G5083&\"'!\"&H5083),\"\")","v":0},"EstRev 6-11","C131"]
[5079,{"$nulls":3},true,{"$f":"IF(G5084<>\"\",INDIRECT(\"'\"&G5084&\"'!\"&H5084),\"\")","v":""}]
[5080,{"$nulls":3},true,{"$f":"IF(G5085<>\"\",INDIRECT(\"'\"&G5085&\"'!\"&H5085),\"\")","v":""}]
[5081,{"$f":"'EstRev 6-11'!C132","v":0},5081,null,true,{"$f":"IF(G5086<>\"\",INDIRECT(\"'\"&G5086&\"'!\"&H5086),\"\")","v":0},"EstRev 6-11","C132"]
[5082,{"$nulls":3},true,{"$f":"IF(G5087<>\"\",INDIRECT(\"'\"&G5087&\"'!\"&H5087),\"\")","v":""}]
[5083,{"$nulls":3},true,{"$f":"IF(G5088<>\"\",INDIRECT(\"'\"&G5088&\"'!\"&H5088),\"\")","v":""}]
[5084,{"$nulls":3},true,{"$f":"IF(G5089<>\"\",INDIRECT(\"'\"&G5089&\"'!\"&H5089),\"\")","v":""}]
[5085,{"$nulls":3},true,{"$f":"IF(G5090<>\"\",INDIRECT(\"'\"&G5090&\"'!\"&H5090),\"\")","v":""}]
[5086,{"$f":"'EstRev 6-11'!C134","v":45000},-39914,null,true,{"$f":"IF(G5091<>\"\",INDIRECT(\"'\"&G5091&\"'!\"&H5091),\"\")","v":45000},"EstRev 6-11","C134"]
[5087,{"$f":"'EstRev 6-11'!C136","v":0},5087,null,true,{"$f":"IF(G5092<>\"\",INDIRECT(\"'\"&G5092&\"'!\"&H5092),\"\")","v":0},"EstRev 6-11","C136"]
[5088,{"$nulls":3},true,{"$f":"IF(G5093<>\"\",INDIRECT(\"'\"&G5093&\"'!\"&H5093),\"\")","v":""}]
[5089,null,null,"Close 2008",true,{"$f":"IF(G5094<>\"\",INDIRECT(\"'\"&G5094&\"'!\"&H5094),\"\")","v":""}]
[5090,null,null,"Close 2008",true,{"$f":"IF(G5095<>\"\",INDIRECT(\"'\"&G5095&\"'!\"&H5095),\"\")","v":""}]
[5091,{"$f":"'EstRev 6-11'!C137","v":0},5091,null,true,{"$f":"IF(G5096<>\"\",INDIRECT(\"'\"&G5096&\"'!\"&H5096),\"\")","v":0},"EstRev 6-11","C137"]
[5092,{"$f":"'EstRev 6-11'!C138","v":0},5092,null,true,{"$f":"IF(G5097<>\"\",INDIRECT(\"'\"&G5097&\"'!\"&H5097),\"\")","v":0},"EstRev 6-11","C138"]
[5093,{"$nulls":3},true,{"$f":"IF(G5098<>\"\",INDIRECT(\"'\"&G5098&\"'!\"&H5098),\"\")","v":""}]
[5094,{"$nulls":3},true,{"$f":"IF(G5099<>\"\",INDIRECT(\"'\"&G5099&\"'!\"&H5099),\"\")","v":""}]
[5095,{"$nulls":3},true,{"$f":"IF(G5100<>\"\",INDIRECT(\"'\"&G5100&\"'!\"&H5100),\"\")","v":""}]
[5096,{"$nulls":3},true,{"$f":"IF(G5101<>\"\",INDIRECT(\"'\"&G5101&\"'!\"&H5101),\"\")","v":""}]
[5097,{"$nulls":3},true,{"$f":"IF(G5102<>\"\",INDIRECT(\"'\"&G5102&\"'!\"&H5102),\"\")","v":""}]
[5098,{"$nulls":3},true,{"$f":"IF(G5103<>\"\",INDIRECT(\"'\"&G5103&\"'!\"&H5103),\"\")","v":""}]
[5099,{"$nulls":3},true,{"$f":"IF(G5104<>\"\",INDIRECT(\"'\"&G5104&\"'!\"&H5104),\"\")","v":""}]
[5100,{"$f":"'EstRev 6-11'!C143","v":0},5100,null,true,{"$f":"IF(G5105<>\"\",INDIRECT(\"'\"&G5105&\"'!\"&H5105),\"\")","v":0},"EstRev 6-11","C143"]
[5101,{"$nulls":3},true,{"$f":"IF(G5106<>\"\",INDIRECT(\"'\"&G5106&\"'!\"&H5106),\"\")","v":""}]
[5102,{"$f":"'EstRev 6-11'!C145","v":0},5102,null,true,{"$f":"IF(G5107<>\"\",INDIRECT(\"'\"&G5107&\"'!\"&H5107),\"\")","v":0},"EstRev 6-11","C145"]
[5103,{"$f":"'EstRev 6-11'!C146","v":0},5103,null,true,{"$f":"IF(G5108<>\"\",INDIRECT(\"'\"&G5108&\"'!\"&H5108),\"\")","v":0},"EstRev 6-11","C146"]
[5104,{"$f":"'EstRev 6-11'!C147","v":0},5104,null,true,{"$f":"IF(G5109<>\"\",INDIRECT(\"'\"&G5109&\"'!\"&H5109),\"\")","v":0},"EstRev 6-11","C147"]
[5105,null,null,"Close 2008",true,{"$f":"IF(G5110<>\"\",INDIRECT(\"'\"&G5110&\"'!\"&H5110),\"\")","v":""}]
[5106,{"$f":"'EstRev 6-11'!C148","v":13000},-7894,null,true,{"$f":"IF(G5111<>\"\",INDIRECT(\"'\"&G5111&\"'!\"&H5111),\"\")","v":13000},"EstRev 6-11","C148"]
[5107,{"$f":"'EstRev 6-11'!C150","v":0},5107,null,true,{"$f":"IF(G5112<>\"\",INDIRECT(\"'\"&G5112&\"'!\"&H5112),\"\")","v":0},"EstRev 6-11","C150"]
[5108,{"$nulls":3},true,{"$f":"IF(G5113<>\"\",INDIRECT(\"'\"&G5113&\"'!\"&H5113),\"\")","v":""}]
[5109,{"$nulls":3},true,{"$f":"IF(G5114<>\"\",INDIRECT(\"'\"&G5114&\"'!\"&H5114),\"\")","v":""}]
[5110,{"$f":"'EstRev 6-11'!C151","v":0},5110,null,true,{"$f":"IF(G5115<>\"\",INDIRECT(\"'\"&G5115&\"'!\"&H5115),\"\")","v":0},"EstRev 6-11","C151"]
[5111,{"$nulls":3},true,{"$f":"IF(G5116<>\"\",INDIRECT(\"'\"&G5116&\"'!\"&H5116),\"\")","v":""}]
[5112,{"$nulls":3},true,{"$f":"IF(G5117<>\"\",INDIRECT(\"'\"&G5117&\"'!\"&H5117),\"\")","v":""}]
[5113,{"$nulls":3},true,{"$f":"IF(G5118<>\"\",INDIRECT(\"'\"&G5118&\"'!\"&H5118),\"\")","v":""}]
[5114,{"$f":"'EstRev 6-11'!C154","v":0},5114,null,true,{"$f":"IF(G5119<>\"\",INDIRECT(\"'\"&G5119&\"'!\"&H5119),\"\")","v":0},"EstRev 6-11","C154"]
[5115,{"$nulls":3},true,{"$f":"IF(G5120<>\"\",INDIRECT(\"'\"&G5120&\"'!\"&H5120),\"\")","v":""}]
[5116,{"$f":"'EstRev 6-11'!C155","v":0},5116,null,true,{"$f":"IF(G5121<>\"\",INDIRECT(\"'\"&G5121&\"'!\"&H5121),\"\")","v":0},"EstRev 6-11","C155"]
[5117,{"$f":"'EstRev 6-11'!C157","v":0},5117,null,{"$f":"F5122=B5122","v":true},{"$f":"IF(G5122<>\"\",INDIRECT(\"'\"&G5122&\"'!\"&H5122),\"\")","v":0},"EstRev 6-11","C157"]
[5118,{"$nulls":3},true,{"$f":"IF(G5123<>\"\",INDIRECT(\"'\"&G5123&\"'!\"&H5123),\"\")","v":""}]
[5119,{"$nulls":3},true,{"$f":"IF(G5124<>\"\",INDIRECT(\"'\"&G5124&\"'!\"&H5124),\"\")","v":""}]
[5120,{"$f":"'EstRev 6-11'!C158","v":0},5120,null,true,{"$f":"IF(G5125<>\"\",INDIRECT(\"'\"&G5125&\"'!\"&H5125),\"\")","v":0},"EstRev 6-11","C158"]
[5121,{"$nulls":3},true,{"$f":"IF(G5126<>\"\",INDIRECT(\"'\"&G5126&\"'!\"&H5126),\"\")","v":""}]
[5122,{"$nulls":3},true,{"$f":"IF(G5127<>\"\",INDIRECT(\"'\"&G5127&\"'!\"&H5127),\"\")","v":""}]
[5123,{"$nulls":3},true,{"$f":"IF(G5128<>\"\",INDIRECT(\"'\"&G5128&\"'!\"&H5128),\"\")","v":""}]
[5124,{"$nulls":3},true,{"$f":"IF(G5129<>\"\",INDIRECT(\"'\"&G5129&\"'!\"&H5129),\"\")","v":""}]
[5125,{"$nulls":3},true,{"$f":"IF(G5130<>\"\",INDIRECT(\"'\"&G5130&\"'!\"&H5130),\"\")","v":""}]
[5126,{"$f":"'EstRev 6-11'!C159","v":0},{"$f":"A5131-B5131","v":5126},null,true,{"$f":"IF(G5131<>\"\",INDIRECT(\"'\"&G5131&\"'!\"&H5131),\"\")","v":0},"EstRev 6-11","C159"]
[5127,{"$nulls":3},true,{"$f":"IF(G5132<>\"\",INDIRECT(\"'\"&G5132&\"'!\"&H5132),\"\")","v":""}]
[5128,{"$nulls":3},true,{"$f":"IF(G5133<>\"\",INDIRECT(\"'\"&G5133&\"'!\"&H5133),\"\")","v":""}]
[5129,{"$nulls":3},true,{"$f":"IF(G5134<>\"\",INDIRECT(\"'\"&G5134&\"'!\"&H5134),\"\")","v":""}]
[5130,{"$nulls":3},true,{"$f":"IF(G5135<>\"\",INDIRECT(\"'\"&G5135&\"'!\"&H5135),\"\")","v":""}]
[5131,{"$nulls":3},true,{"$f":"IF(G5136<>\"\",INDIRECT(\"'\"&G5136&\"'!\"&H5136),\"\")","v":""}]
[5132,{"$nulls":3},true,{"$f":"IF(G5137<>\"\",INDIRECT(\"'\"&G5137&\"'!\"&H5137),\"\")","v":""}]
[5133,{"$f":"'EstRev 6-11'!C160","v":0},5133,null,true,{"$f":"IF(G5138<>\"\",INDIRECT(\"'\"&G5138&\"'!\"&H5138),\"\")","v":0},"EstRev 6-11","C160"]
[5134,{"$nulls":3},true,{"$f":"IF(G5139<>\"\",INDIRECT(\"'\"&G5139&\"'!\"&H5139),\"\")","v":""}]
[5135,{"$f":"'EstRev 6-11'!C161","v":329000},-323865,null,true,{"$f":"IF(G5140<>\"\",INDIRECT(\"'\"&G5140&\"'!\"&H5140),\"\")","v":329000},"EstRev 6-11","C161"]
[5136,{"$nulls":3},true,{"$f":"IF(G5141<>\"\",INDIRECT(\"'\"&G5141&\"'!\"&H5141),\"\")","v":""}]
[5137,{"$nulls":3},true,{"$f":"IF(G5142<>\"\",INDIRECT(\"'\"&G5142&\"'!\"&H5142),\"\")","v":""}]
[5138,null,null,"Closed 2018",true,{"$f":"IF(G5143<>\"\",INDIRECT(\"'\"&G5143&\"'!\"&H5143),\"\")","v":""}]
[5139,null,null,"Closed 2018",true,{"$f":"IF(G5144<>\"\",INDIRECT(\"'\"&G5144&\"'!\"&H5144),\"\")","v":""}]
[5140,{"$nulls":3},true,{"$f":"IF(G5145<>\"\",INDIRECT(\"'\"&G5145&\"'!\"&H5145),\"\")","v":""}]
[5141,{"$nulls":3},true,{"$f":"IF(G5146<>\"\",INDIRECT(\"'\"&G5146&\"'!\"&H5146),\"\")","v":""}]
[5142,{"$nulls":3},true,{"$f":"IF(G5147<>\"\",INDIRECT(\"'\"&G5147&\"'!\"&H5147),\"\")","v":""}]
[5143,{"$nulls":3},true,{"$f":"IF(G5148<>\"\",INDIRECT(\"'\"&G5148&\"'!\"&H5148),\"\")","v":""}]
[5144,{"$nulls":3},true,{"$f":"IF(G5149<>\"\",INDIRECT(\"'\"&G5149&\"'!\"&H5149),\"\")","v":""}]
[5145,{"$nulls":3},true,{"$f":"IF(G5150<>\"\",INDIRECT(\"'\"&G5150&\"'!\"&H5150),\"\")","v":""}]
[5146,null,null,"Close 2008",true,{"$f":"IF(G5151<>\"\",INDIRECT(\"'\"&G5151&\"'!\"&H5151),\"\")","v":""}]
[5147,null,null,"Close 2008",true,{"$f":"IF(G5152<>\"\",INDIRECT(\"'\"&G5152&\"'!\"&H5152),\"\")","v":""}]
[5148,null,null,"Close 2008",true,{"$f":"IF(G5153<>\"\",INDIRECT(\"'\"&G5153&\"'!\"&H5153),\"\")","v":""}]
[5149,null,null,"Close 2008",true,{"$f":"IF(G5154<>\"\",INDIRECT(\"'\"&G5154&\"'!\"&H5154),\"\")","v":""}]
[5150,null,null,"Close 2008",true,{"$f":"IF(G5155<>\"\",INDIRECT(\"'\"&G5155&\"'!\"&H5155),\"\")","v":""}]
[5151,null,null,"Close 2008",true,{"$f":"IF(G5156<>\"\",INDIRECT(\"'\"&G5156&\"'!\"&H5156),\"\")","v":""}]
[5152,null,null,"Close 2008",true,{"$f":"IF(G5157<>\"\",INDIRECT(\"'\"&G5157&\"'!\"&H5157),\"\")","v":""}]
[5153,{"$f":"'EstRev 6-11'!C171","v":557000},-551847,null,true,{"$f":"IF(G5158<>\"\",INDIRECT(\"'\"&G5158&\"'!\"&H5158),\"\")","v":557000},"EstRev 6-11","C171"]
[5154,{"$nulls":3},true,{"$f":"IF(G5159<>\"\",INDIRECT(\"'\"&G5159&\"'!\"&H5159),\"\")","v":""}]
[5155,{"$nulls":3},true,{"$f":"IF(G5160<>\"\",INDIRECT(\"'\"&G5160&\"'!\"&H5160),\"\")","v":""}]
[5156,{"$nulls":3},true,{"$f":"IF(G5161<>\"\",INDIRECT(\"'\"&G5161&\"'!\"&H5161),\"\")","v":""}]
[5157,{"$nulls":3},true,{"$f":"IF(G5162<>\"\",INDIRECT(\"'\"&G5162&\"'!\"&H5162),\"\")","v":""}]
[5158,{"$nulls":3},true,{"$f":"IF(G5163<>\"\",INDIRECT(\"'\"&G5163&\"'!\"&H5163),\"\")","v":""}]
[5159,{"$nulls":3},true,{"$f":"IF(G5164<>\"\",INDIRECT(\"'\"&G5164&\"'!\"&H5164),\"\")","v":""}]
[5160,{"$nulls":3},true,{"$f":"IF(G5165<>\"\",INDIRECT(\"'\"&G5165&\"'!\"&H5165),\"\")","v":""}]
[5161,{"$nulls":3},true,{"$f":"IF(G5166<>\"\",INDIRECT(\"'\"&G5166&\"'!\"&H5166),\"\")","v":""}]
[5162,{"$f":"'EstRev 6-11'!C172","v":6057000},-6051838,null,true,{"$f":"IF(G5167<>\"\",INDIRECT(\"'\"&G5167&\"'!\"&H5167),\"\")","v":6057000},"EstRev 6-11","C172"]
[5163,{"$f":"'EstRev 6-11'!C175","v":0},5163,null,true,{"$f":"IF(G5168<>\"\",INDIRECT(\"'\"&G5168&\"'!\"&H5168),\"\")","v":0},"EstRev 6-11","C175"]
[5164,{"$f":"'EstRev 6-11'!C177","v":0},5164,null,true,{"$f":"IF(G5169<>\"\",INDIRECT(\"'\"&G5169&\"'!\"&H5169),\"\")","v":0},"EstRev 6-11","C177"]
[5165,null,null,"Close 2008",true,{"$f":"IF(G5170<>\"\",INDIRECT(\"'\"&G5170&\"'!\"&H5170),\"\")","v":""}]
[5166,null,null,"Close 2008",true,{"$f":"IF(G5171<>\"\",INDIRECT(\"'\"&G5171&\"'!\"&H5171),\"\")","v":""}]
[5167,null,null,"Close 2008",true,{"$f":"IF(G5172<>\"\",INDIRECT(\"'\"&G5172&\"'!\"&H5172),\"\")","v":""}]
[5168,null,null,"Close 2008",true,{"$f":"IF(G5173<>\"\",INDIRECT(\"'\"&G5173&\"'!\"&H5173),\"\")","v":""}]
[5169,{"$f":"'EstRev 6-11'!C179","v":0},5169,null,true,{"$f":"IF(G5174<>\"\",INDIRECT(\"'\"&G5174&\"'!\"&H5174),\"\")","v":0},"EstRev 6-11","C179"]
[5170,{"$f":"'EstRev 6-11'!C180","v":0},5170,null,true,{"$f":"IF(G5175<>\"\",INDIRECT(\"'\"&G5175&\"'!\"&H5175),\"\")","v":0},"EstRev 6-11","C180"]
[5171,{"$f":"'EstRev 6-11'!C183","v":0},5171,null,true,{"$f":"IF(G5176<>\"\",INDIRECT(\"'\"&G5176&\"'!\"&H5176),\"\")","v":0},"EstRev 6-11","C183"]
[5172,{"$f":"'EstRev 6-11'!C186","v":0},5172,null,true,{"$f":"IF(G5177<>\"\",INDIRECT(\"'\"&G5177&\"'!\"&H5177),\"\")","v":0},"EstRev 6-11","C186"]
[5173,{"$nulls":3},true,{"$f":"IF(G5178<>\"\",INDIRECT(\"'\"&G5178&\"'!\"&H5178),\"\")","v":""}]
[5174,{"$nulls":3},true,{"$f":"IF(G5179<>\"\",INDIRECT(\"'\"&G5179&\"'!\"&H5179),\"\")","v":""}]
[5175,{"$nulls":3},true,{"$f":"IF(G5180<>\"\",INDIRECT(\"'\"&G5180&\"'!\"&H5180),\"\")","v":""}]
[5176,{"$nulls":3},true,{"$f":"IF(G5181<>\"\",INDIRECT(\"'\"&G5181&\"'!\"&H5181),\"\")","v":""}]
[5177,{"$nulls":3},true,{"$f":"IF(G5182<>\"\",INDIRECT(\"'\"&G5182&\"'!\"&H5182),\"\")","v":""}]
[5178,{"$f":"'EstRev 6-11'!C193","v":480000},-474822,null,true,{"$f":"IF(G5183<>\"\",INDIRECT(\"'\"&G5183&\"'!\"&H5183),\"\")","v":480000},"EstRev 6-11","C193"]
[5179,{"$f":"'EstRev 6-11'!C194","v":0},5179,null,true,{"$f":"IF(G5184<>\"\",INDIRECT(\"'\"&G5184&\"'!\"&H5184),\"\")","v":0},"EstRev 6-11","C194"]
[5180,{"$f":"'EstRev 6-11'!C195","v":140000},-134820,null,true,{"$f":"IF(G5185<>\"\",INDIRECT(\"'\"&G5185&\"'!\"&H5185),\"\")","v":140000},"EstRev 6-11","C195"]
[5181,{"$f":"'EstRev 6-11'!C196","v":0},5181,null,{"$f":"F5186=B5186","v":true},{"$f":"IF(G5186<>\"\",INDIRECT(\"'\"&G5186&\"'!\"&H5186),\"\")","v":0},"EstRev 6-11","C196"]
[5182,{"$f":"'EstRev 6-11'!C197","v":0},5182,null,true,{"$f":"IF(G5187<>\"\",INDIRECT(\"'\"&G5187&\"'!\"&H5187),\"\")","v":0},"EstRev 6-11","C197"]
[5183,{"$nulls":3},true,{"$f":"IF(G5188<>\"\",INDIRECT(\"'\"&G5188&\"'!\"&H5188),\"\")","v":""}]
[5184,{"$nulls":3},true,{"$f":"IF(G5189<>\"\",INDIRECT(\"'\"&G5189&\"'!\"&H5189),\"\")","v":""}]
[5185,{"$f":"'EstRev 6-11'!C200","v":620000},-614815,null,true,{"$f":"IF(G5190<>\"\",INDIRECT(\"'\"&G5190&\"'!\"&H5190),\"\")","v":620000},"EstRev 6-11","C200"]
[5186,{"$f":"'EstRev 6-11'!C202","v":540000},-534814,null,true,{"$f":"IF(G5191<>\"\",INDIRECT(\"'\"&G5191&\"'!\"&H5191),\"\")","v":540000},"EstRev 6-11","C202"]
[5187,{"$f":"'EstRev 6-11'!C203","v":0},{"$f":"A5192-B5192","v":5187},null,true,{"$f":"IF(G5192<>\"\",INDIRECT(\"'\"&G5192&\"'!\"&H5192),\"\")","v":0},"EstRev 6-11","C203"]
[5188,{"$nulls":3},true,{"$f":"IF(G5193<>\"\",INDIRECT(\"'\"&G5193&\"'!\"&H5193),\"\")","v":""}]
[5189,{"$nulls":3},true,{"$f":"IF(G5194<>\"\",INDIRECT(\"'\"&G5194&\"'!\"&H5194),\"\")","v":""}]
[5190,{"$nulls":3},true,{"$f":"IF(G5195<>\"\",INDIRECT(\"'\"&G5195&\"'!\"&H5195),\"\")","v":""}]
[5191,null,null,"Closed 2008",true,{"$f":"IF(G5196<>\"\",INDIRECT(\"'\"&G5196&\"'!\"&H5196),\"\")","v":""}]
[5192,null,null,"Closed 2008",true,{"$f":"IF(G5197<>\"\",INDIRECT(\"'\"&G5197&\"'!\"&H5197),\"\")","v":""}]
[5193,null,null,"Closed 2018",true,{"$f":"IF(G5198<>\"\",INDIRECT(\"'\"&G5198&\"'!\"&H5198),\"\")","v":""}]
[5194,{"$f":"'EstRev 6-11'!C204","v":0},5194,null,true,{"$f":"IF(G5199<>\"\",INDIRECT(\"'\"&G5199&\"'!\"&H5199),\"\")","v":0},"EstRev 6-11","C204"]
[5195,{"$f":"'EstRev 6-11'!C208","v":37000},-31805,null,true,{"$f":"IF(G5200<>\"\",INDIRECT(\"'\"&G5200&\"'!\"&H5200),\"\")","v":37000},"EstRev 6-11","C208"]
[5196,null,null,"Closed 2008",true,{"$f":"IF(G5201<>\"\",INDIRECT(\"'\"&G5201&\"'!\"&H5201),\"\")","v":""}]
[5197,{"$nulls":3},true,{"$f":"IF(G5202<>\"\",INDIRECT(\"'\"&G5202&\"'!\"&H5202),\"\")","v":""}]
[5198,{"$nulls":3},true,{"$f":"IF(G5203<>\"\",INDIRECT(\"'\"&G5203&\"'!\"&H5203),\"\")","v":""}]
[5199,{"$f":"'EstRev 6-11'!C206","v":540000},-534801,null,true,{"$f":"IF(G5204<>\"\",INDIRECT(\"'\"&G5204&\"'!\"&H5204),\"\")","v":540000},"EstRev 6-11","C206"]
[5200,{"$nulls":3},true,{"$f":"IF(G5205<>\"\",INDIRECT(\"'\"&G5205&\"'!\"&H5205),\"\")","v":""}]
[5201,{"$nulls":3},true,{"$f":"IF(G5206<>\"\",INDIRECT(\"'\"&G5206&\"'!\"&H5206),\"\")","v":""}]
[5202,{"$nulls":3},true,{"$f":"IF(G5207<>\"\",INDIRECT(\"'\"&G5207&\"'!\"&H5207),\"\")","v":""}]
[5203,{"$nulls":3},true,{"$f":"IF(G5208<>\"\",INDIRECT(\"'\"&G5208&\"'!\"&H5208),\"\")","v":""}]
[5204,{"$nulls":3},true,{"$f":"IF(G5209<>\"\",INDIRECT(\"'\"&G5209&\"'!\"&H5209),\"\")","v":""}]
[5205,{"$nulls":3},true,{"$f":"IF(G5210<>\"\",INDIRECT(\"'\"&G5210&\"'!\"&H5210),\"\")","v":""}]
[5206,{"$nulls":3},true,{"$f":"IF(G5211<>\"\",INDIRECT(\"'\"&G5211&\"'!\"&H5211),\"\")","v":""}]
[5207,{"$nulls":3},true,{"$f":"IF(G5212<>\"\",INDIRECT(\"'\"&G5212&\"'!\"&H5212),\"\")","v":""}]
[5208,{"$nulls":3},true,{"$f":"IF(G5213<>\"\",INDIRECT(\"'\"&G5213&\"'!\"&H5213),\"\")","v":""}]
[5209,{"$nulls":3},true,{"$f":"IF(G5214<>\"\",INDIRECT(\"'\"&G5214&\"'!\"&H5214),\"\")","v":""}]
[5210,{"$nulls":3},true,{"$f":"IF(G5215<>\"\",INDIRECT(\"'\"&G5215&\"'!\"&H5215),\"\")","v":""}]
[5211,{"$nulls":3},true,{"$f":"IF(G5216<>\"\",INDIRECT(\"'\"&G5216&\"'!\"&H5216),\"\")","v":""}]
[5212,{"$nulls":3},true,{"$f":"IF(G5217<>\"\",INDIRECT(\"'\"&G5217&\"'!\"&H5217),\"\")","v":""}]
[5213,{"$f":"'EstRev 6-11'!C214","v":25000},-19787,null,true,{"$f":"IF(G5218<>\"\",INDIRECT(\"'\"&G5218&\"'!\"&H5218),\"\")","v":25000},"EstRev 6-11","C214"]
[5214,{"$f":"'EstRev 6-11'!C215","v":0},5214,null,true,{"$f":"IF(G5219<>\"\",INDIRECT(\"'\"&G5219&\"'!\"&H5219),\"\")","v":0},"EstRev 6-11","C215"]
[5215,{"$nulls":3},true,{"$f":"IF(G5220<>\"\",INDIRECT(\"'\"&G5220&\"'!\"&H5220),\"\")","v":""}]
[5216,{"$nulls":3},true,{"$f":"IF(G5221<>\"\",INDIRECT(\"'\"&G5221&\"'!\"&H5221),\"\")","v":""}]
[5217,{"$f":"'EstRev 6-11'!C216","v":230000},-224783,null,true,{"$f":"IF(G5222<>\"\",INDIRECT(\"'\"&G5222&\"'!\"&H5222),\"\")","v":230000},"EstRev 6-11","C216"]
[5218,{"$f":"'EstRev 6-11'!C217","v":0},5218,null,true,{"$f":"IF(G5223<>\"\",INDIRECT(\"'\"&G5223&\"'!\"&H5223),\"\")","v":0},"EstRev 6-11","C217"]
[5219,{"$f":"'EstRev 6-11'!C218","v":0},5219,null,true,{"$f":"IF(G5224<>\"\",INDIRECT(\"'\"&G5224&\"'!\"&H5224),\"\")","v":0},"EstRev 6-11","C218"]
[5220,{"$nulls":3},true,{"$f":"IF(G5225<>\"\",INDIRECT(\"'\"&G5225&\"'!\"&H5225),\"\")","v":""}]
[5221,{"$nulls":3},true,{"$f":"IF(G5226<>\"\",INDIRECT(\"'\"&G5226&\"'!\"&H5226),\"\")","v":""}]
[5222,{"$nulls":3},true,{"$f":"IF(G5227<>\"\",INDIRECT(\"'\"&G5227&\"'!\"&H5227),\"\")","v":""}]
[5223,{"$nulls":3},true,{"$f":"IF(G5228<>\"\",INDIRECT(\"'\"&G5228&\"'!\"&H5228),\"\")","v":""}]
[5224,{"$nulls":3},true,{"$f":"IF(G5229<>\"\",INDIRECT(\"'\"&G5229&\"'!\"&H5229),\"\")","v":""}]
[5225,{"$f":"'EstRev 6-11'!C220","v":255000},-249775,null,true,{"$f":"IF(G5230<>\"\",INDIRECT(\"'\"&G5230&\"'!\"&H5230),\"\")","v":255000},"EstRev 6-11","C220"]
[5226,{"$nulls":3},true,{"$f":"IF(G5231<>\"\",INDIRECT(\"'\"&G5231&\"'!\"&H5231),\"\")","v":""}]
[5227,{"$nulls":3},true,{"$f":"IF(G5232<>\"\",INDIRECT(\"'\"&G5232&\"'!\"&H5232),\"\")","v":""}]
[5228,{"$nulls":3},true,{"$f":"IF(G5233<>\"\",INDIRECT(\"'\"&G5233&\"'!\"&H5233),\"\")","v":""}]
[5229,{"$nulls":3},true,{"$f":"IF(G5234<>\"\",INDIRECT(\"'\"&G5234&\"'!\"&H5234),\"\")","v":""}]
[5230,null,null,"Closed 2008",true,{"$f":"IF(G5235<>\"\",INDIRECT(\"'\"&G5235&\"'!\"&H5235),\"\")","v":""}]
[5231,{"$nulls":3},true,{"$f":"IF(G5236<>\"\",INDIRECT(\"'\"&G5236&\"'!\"&H5236),\"\")","v":""}]
[5232,{"$nulls":3},true,{"$f":"IF(G5237<>\"\",INDIRECT(\"'\"&G5237&\"'!\"&H5237),\"\")","v":""}]
[5233,{"$nulls":3},true,{"$f":"IF(G5238<>\"\",INDIRECT(\"'\"&G5238&\"'!\"&H5238),\"\")","v":""}]
[5234,{"$nulls":3},true,{"$f":"IF(G5239<>\"\",INDIRECT(\"'\"&G5239&\"'!\"&H5239),\"\")","v":""}]
[5235,null,null,"Closed 2008",true,{"$f":"IF(G5240<>\"\",INDIRECT(\"'\"&G5240&\"'!\"&H5240),\"\")","v":""}]
[5236,null,null,"Closed 2008",true,{"$f":"IF(G5241<>\"\",INDIRECT(\"'\"&G5241&\"'!\"&H5241),\"\")","v":""}]
[5237,{"$nulls":3},true,{"$f":"IF(G5242<>\"\",INDIRECT(\"'\"&G5242&\"'!\"&H5242),\"\")","v":""}]
[5238,{"$nulls":3},true,{"$f":"IF(G5243<>\"\",INDIRECT(\"'\"&G5243&\"'!\"&H5243),\"\")","v":""}]
[5239,{"$nulls":3},true,{"$f":"IF(G5244<>\"\",INDIRECT(\"'\"&G5244&\"'!\"&H5244),\"\")","v":""}]
[5240,{"$f":"'EstRev 6-11'!C222","v":0},5240,null,true,{"$f":"IF(G5245<>\"\",INDIRECT(\"'\"&G5245&\"'!\"&H5245),\"\")","v":0},"EstRev 6-11","C222"]
[5241,{"$nulls":3},true,{"$f":"IF(G5246<>\"\",INDIRECT(\"'\"&G5246&\"'!\"&H5246),\"\")","v":""}]
[5242,{"$nulls":3},true,{"$f":"IF(G5247<>\"\",INDIRECT(\"'\"&G5247&\"'!\"&H5247),\"\")","v":""}]
[5243,{"$f":"'EstRev 6-11'!C224","v":0},5243,null,true,{"$f":"IF(G5248<>\"\",INDIRECT(\"'\"&G5248&\"'!\"&H5248),\"\")","v":0},"EstRev 6-11","C224"]
[5244,{"$nulls":3},true,{"$f":"IF(G5249<>\"\",INDIRECT(\"'\"&G5249&\"'!\"&H5249),\"\")","v":""}]
[5245,{"$nulls":3},{"$f":"F5250=B5250","v":true},{"$f":"IF(G5250<>\"\",INDIRECT(\"'\"&G5250&\"'!\"&H5250),\"\")","v":""}]
[5246,{"$nulls":3},true,{"$f":"IF(G5251<>\"\",INDIRECT(\"'\"&G5251&\"'!\"&H5251),\"\")","v":""}]
[5247,{"$nulls":3},true,{"$f":"IF(G5252<>\"\",INDIRECT(\"'\"&G5252&\"'!\"&H5252),\"\")","v":""}]
[5248,{"$nulls":3},true,{"$f":"IF(G5253<>\"\",INDIRECT(\"'\"&G5253&\"'!\"&H5253),\"\")","v":""}]
[5249,{"$f":"'EstRev 6-11'!C225","v":0},5249,null,true,{"$f":"IF(G5254<>\"\",INDIRECT(\"'\"&G5254&\"'!\"&H5254),\"\")","v":0},"EstRev 6-11","C225"]
[5250,{"$nulls":3},true,{"$f":"IF(G5255<>\"\",INDIRECT(\"'\"&G5255&\"'!\"&H5255),\"\")","v":""}]
[5251,{"$f":"'EstRev 6-11'!C258","v":0},{"$f":"A5256-B5256","v":5251},null,true,{"$f":"IF(G5256<>\"\",INDIRECT(\"'\"&G5256&\"'!\"&H5256),\"\")","v":0},"EstRev 6-11","C258"]
[5252,null,null,"Closed 2018",true,{"$f":"IF(G5257<>\"\",INDIRECT(\"'\"&G5257&\"'!\"&H5257),\"\")","v":""}]
[5253,{"$nulls":3},true,{"$f":"IF(G5258<>\"\",INDIRECT(\"'\"&G5258&\"'!\"&H5258),\"\")","v":""}]
[5254,{"$f":"'EstRev 6-11'!C260","v":0},5254,null,true,{"$f":"IF(G5259<>\"\",INDIRECT(\"'\"&G5259&\"'!\"&H5259),\"\")","v":0},"EstRev 6-11","C260"]
[5255,{"$nulls":3},true,{"$f":"IF(G5260<>\"\",INDIRECT(\"'\"&G5260&\"'!\"&H5260),\"\")","v":""}]
[5256,{"$f":"'EstRev 6-11'!C261","v":0},5256,null,true,{"$f":"IF(G5261<>\"\",INDIRECT(\"'\"&G5261&\"'!\"&H5261),\"\")","v":0},"EstRev 6-11","C261"]
[5257,{"$nulls":3},true,{"$f":"IF(G5262<>\"\",INDIRECT(\"'\"&G5262&\"'!\"&H5262),\"\")","v":""}]
[5258,null,null,"Closed 2008",true,{"$f":"IF(G5263<>\"\",INDIRECT(\"'\"&G5263&\"'!\"&H5263),\"\")","v":""}]
[5259,{"$f":"'EstRev 6-11'!C270","v":1757000},-1751741,null,true,{"$f":"IF(G5264<>\"\",INDIRECT(\"'\"&G5264&\"'!\"&H5264),\"\")","v":1757000},"EstRev 6-11","C270"]
[5260,{"$nulls":3},true,{"$f":"IF(G5265<>\"\",INDIRECT(\"'\"&G5265&\"'!\"&H5265),\"\")","v":""}]
[5261,{"$nulls":3},true,{"$f":"IF(G5266<>\"\",INDIRECT(\"'\"&G5266&\"'!\"&H5266),\"\")","v":""}]
[5262,{"$nulls":3},true,{"$f":"IF(G5267<>\"\",INDIRECT(\"'\"&G5267&\"'!\"&H5267),\"\")","v":""}]
[5263,{"$nulls":3},true,{"$f":"IF(G5268<>\"\",INDIRECT(\"'\"&G5268&\"'!\"&H5268),\"\")","v":""}]
[5264,{"$nulls":3},true,{"$f":"IF(G5269<>\"\",INDIRECT(\"'\"&G5269&\"'!\"&H5269),\"\")","v":""}]
[5265,{"$f":"'EstRev 6-11'!C271","v":1757000},-1751735,null,true,{"$f":"IF(G5270<>\"\",INDIRECT(\"'\"&G5270&\"'!\"&H5270),\"\")","v":1757000},"EstRev 6-11","C271"]
[5266,{"$f":"'EstRev 6-11'!C272","v":12817900},-12812634,null,true,{"$f":"IF(G5271<>\"\",INDIRECT(\"'\"&G5271&\"'!\"&H5271),\"\")","v":12817900},"EstRev 6-11","C272"]
[5267,{"$f":"'EstRev 6-11'!D5","v":202000},-196733,null,true,{"$f":"IF(G5272<>\"\",INDIRECT(\"'\"&G5272&\"'!\"&H5272),\"\")","v":202000},"EstRev 6-11","D5"]
[5268,null,null,"Closed 2008",true,{"$f":"IF(G5273<>\"\",INDIRECT(\"'\"&G5273&\"'!\"&H5273),\"\")","v":""}]
[5269,{"$f":"'EstRev 6-11'!D6","v":0},5269,null,true,{"$f":"IF(G5274<>\"\",INDIRECT(\"'\"&G5274&\"'!\"&H5274),\"\")","v":0},"EstRev 6-11","D6"]
[5270,{"$f":"'EstRev 6-11'!D7","v":0},5270,null,true,{"$f":"IF(G5275<>\"\",INDIRECT(\"'\"&G5275&\"'!\"&H5275),\"\")","v":0},"EstRev 6-11","D7"]
[5271,{"$f":"'EstRev 6-11'!D9","v":0},5271,null,true,{"$f":"IF(G5276<>\"\",INDIRECT(\"'\"&G5276&\"'!\"&H5276),\"\")","v":0},"EstRev 6-11","D9"]
[5272,{"$f":"'EstRev 6-11'!D11","v":0},5272,null,true,{"$f":"IF(G5277<>\"\",INDIRECT(\"'\"&G5277&\"'!\"&H5277),\"\")","v":0},"EstRev 6-11","D11"]
[5273,{"$f":"'EstRev 6-11'!D12","v":202000},-196727,null,true,{"$f":"IF(G5278<>\"\",INDIRECT(\"'\"&G5278&\"'!\"&H5278),\"\")","v":202000},"EstRev 6-11","D12"]
[5274,{"$f":"'EstRev 6-11'!D14","v":0},5274,null,true,{"$f":"IF(G5279<>\"\",INDIRECT(\"'\"&G5279&\"'!\"&H5279),\"\")","v":0},"EstRev 6-11","D14"]
[5275,{"$f":"'EstRev 6-11'!D15","v":0},5275,null,true,{"$f":"IF(G5280<>\"\",INDIRECT(\"'\"&G5280&\"'!\"&H5280),\"\")","v":0},"EstRev 6-11","D15"]
[5276,{"$f":"'EstRev 6-11'!D16","v":0},5276,null,true,{"$f":"IF(G5281<>\"\",INDIRECT(\"'\"&G5281&\"'!\"&H5281),\"\")","v":0},"EstRev 6-11","D16"]
[5277,{"$f":"'EstRev 6-11'!D17","v":0},5277,null,true,{"$f":"IF(G5282<>\"\",INDIRECT(\"'\"&G5282&\"'!\"&H5282),\"\")","v":0},"EstRev 6-11","D17"]
[5278,{"$f":"'EstRev 6-11'!D18","v":0},5278,null,true,{"$f":"IF(G5283<>\"\",INDIRECT(\"'\"&G5283&\"'!\"&H5283),\"\")","v":0},"EstRev 6-11","D18"]
[5279,{"$f":"'EstRev 6-11'!D65","v":0},5279,null,true,{"$f":"IF(G5284<>\"\",INDIRECT(\"'\"&G5284&\"'!\"&H5284),\"\")","v":0},"EstRev 6-11","D65"]
[5280,{"$f":"'EstRev 6-11'!D66","v":0},5280,null,true,{"$f":"IF(G5285<>\"\",INDIRECT(\"'\"&G5285&\"'!\"&H5285),\"\")","v":0},"EstRev 6-11","D66"]
[5281,{"$f":"'EstRev 6-11'!D67","v":0},5281,null,true,{"$f":"IF(G5286<>\"\",INDIRECT(\"'\"&G5286&\"'!\"&H5286),\"\")","v":0},"EstRev 6-11","D67"]
[5282,{"$f":"'EstRev 6-11'!D77","v":0},5282,null,true,{"$f":"IF(G5287<>\"\",INDIRECT(\"'\"&G5287&\"'!\"&H5287),\"\")","v":0},"EstRev 6-11","D77"]
[5283,{"$f":"'EstRev 6-11'!D78","v":0},5283,null,true,{"$f":"IF(G5288<>\"\",INDIRECT(\"'\"&G5288&\"'!\"&H5288),\"\")","v":0},"EstRev 6-11","D78"]
[5284,{"$f":"'EstRev 6-11'!D79","v":0},5284,null,true,{"$f":"IF(G5289<>\"\",INDIRECT(\"'\"&G5289&\"'!\"&H5289),\"\")","v":0},"EstRev 6-11","D79"]
[5285,{"$f":"'EstRev 6-11'!D80","v":0},5285,null,true,{"$f":"IF(G5290<>\"\",INDIRECT(\"'\"&G5290&\"'!\"&H5290),\"\")","v":0},"EstRev 6-11","D80"]
[5286,{"$f":"'EstRev 6-11'!D81","v":0},5286,null,true,{"$f":"IF(G5291<>\"\",INDIRECT(\"'\"&G5291&\"'!\"&H5291),\"\")","v":0},"EstRev 6-11","D81"]
[5287,{"$f":"'EstRev 6-11'!D83","v":0},5287,null,true,{"$f":"IF(G5292<>\"\",INDIRECT(\"'\"&G5292&\"'!\"&H5292),\"\")","v":0},"EstRev 6-11","D83"]
[5288,{"$f":"'EstRev 6-11'!D97","v":45000},-39712,null,true,{"$f":"IF(G5293<>\"\",INDIRECT(\"'\"&G5293&\"'!\"&H5293),\"\")","v":45000},"EstRev 6-11","D97"]
[5289,{"$f":"'EstRev 6-11'!D98","v":0},5289,null,true,{"$f":"IF(G5294<>\"\",INDIRECT(\"'\"&G5294&\"'!\"&H5294),\"\")","v":0},"EstRev 6-11","D98"]
[5290,{"$f":"'EstRev 6-11'!D100","v":0},5290,null,true,{"$f":"IF(G5295<>\"\",INDIRECT(\"'\"&G5295&\"'!\"&H5295),\"\")","v":0},"EstRev 6-11","D100"]
[5291,{"$f":"'EstRev 6-11'!D101","v":0},5291,null,true,{"$f":"IF(G5296<>\"\",INDIRECT(\"'\"&G5296&\"'!\"&H5296),\"\")","v":0},"EstRev 6-11","D101"]
[5292,{"$f":"'EstRev 6-11'!D106","v":0},5292,null,true,{"$f":"IF(G5297<>\"\",INDIRECT(\"'\"&G5297&\"'!\"&H5297),\"\")","v":0},"EstRev 6-11","D106"]
[5293,{"$f":"'EstRev 6-11'!D109","v":0},5293,null,true,{"$f":"IF(G5298<>\"\",INDIRECT(\"'\"&G5298&\"'!\"&H5298),\"\")","v":0},"EstRev 6-11","D109"]
[5294,{"$f":"'EstRev 6-11'!D110","v":45000},-39706,null,true,{"$f":"IF(G5299<>\"\",INDIRECT(\"'\"&G5299&\"'!\"&H5299),\"\")","v":45000},"EstRev 6-11","D110"]
[5295,{"$f":"'EstRev 6-11'!D111","v":247000},-241705,null,true,{"$f":"IF(G5300<>\"\",INDIRECT(\"'\"&G5300&\"'!\"&H5300),\"\")","v":247000},"EstRev 6-11","D111"]
[5296,{"$f":"'EstRev 6-11'!D114","v":0},5296,null,true,{"$f":"IF(G5301<>\"\",INDIRECT(\"'\"&G5301&\"'!\"&H5301),\"\")","v":0},"EstRev 6-11","D114"]
[5297,{"$f":"'EstRev 6-11'!D115","v":0},5297,null,true,{"$f":"IF(G5302<>\"\",INDIRECT(\"'\"&G5302&\"'!\"&H5302),\"\")","v":0},"EstRev 6-11","D115"]
[5298,{"$f":"'EstRev 6-11'!D116","v":0},5298,null,true,{"$f":"IF(G5303<>\"\",INDIRECT(\"'\"&G5303&\"'!\"&H5303),\"\")","v":0},"EstRev 6-11","D116"]
[5299,{"$f":"'EstRev 6-11'!D117","v":0},5299,null,true,{"$f":"IF(G5304<>\"\",INDIRECT(\"'\"&G5304&\"'!\"&H5304),\"\")","v":0},"EstRev 6-11","D117"]
[5300,{"$f":"'EstRev 6-11'!D120","v":1300000},-1294700,null,true,{"$f":"IF(G5305<>\"\",INDIRECT(\"'\"&G5305&\"'!\"&H5305),\"\")","v":1300000},"EstRev 6-11","D120"]
[5301,{"$f":"'EstRev 6-11'!D121","v":0},5301,null,true,{"$f":"IF(G5306<>\"\",INDIRECT(\"'\"&G5306&\"'!\"&H5306),\"\")","v":0},"EstRev 6-11","D121"]
[5302,{"$nulls":3},true,{"$f":"IF(G5307<>\"\",INDIRECT(\"'\"&G5307&\"'!\"&H5307),\"\")","v":""}]
[5303,{"$nulls":3},true,{"$f":"IF(G5308<>\"\",INDIRECT(\"'\"&G5308&\"'!\"&H5308),\"\")","v":""}]
[5304,{"$nulls":3},true,{"$f":"IF(G5309<>\"\",INDIRECT(\"'\"&G5309&\"'!\"&H5309),\"\")","v":""}]
[5305,{"$nulls":3},true,{"$f":"IF(G5310<>\"\",INDIRECT(\"'\"&G5310&\"'!\"&H5310),\"\")","v":""}]
[5306,{"$f":"'EstRev 6-11'!D124","v":1300000},-1294694,null,true,{"$f":"IF(G5311<>\"\",INDIRECT(\"'\"&G5311&\"'!\"&H5311),\"\")","v":1300000},"EstRev 6-11","D124"]
[5307,{"$f":"'EstRev 6-11'!D129","v":0},5307,null,true,{"$f":"IF(G5312<>\"\",INDIRECT(\"'\"&G5312&\"'!\"&H5312),\"\")","v":0},"EstRev 6-11","D129"]
[5308,{"$f":"'EstRev 6-11'!D134","v":0},5308,null,true,{"$f":"IF(G5313<>\"\",INDIRECT(\"'\"&G5313&\"'!\"&H5313),\"\")","v":0},"EstRev 6-11","D134"]
[5309,{"$f":"'EstRev 6-11'!D136","v":0},5309,null,{"$f":"F5314=B5314","v":true},{"$f":"IF(G5314<>\"\",INDIRECT(\"'\"&G5314&\"'!\"&H5314),\"\")","v":0},"EstRev 6-11","D136"]
[5310,{"$nulls":3},true,{"$f":"IF(G5315<>\"\",INDIRECT(\"'\"&G5315&\"'!\"&H5315),\"\")","v":""}]
[5311,null,null,"Closed 2008",true,{"$f":"IF(G5316<>\"\",INDIRECT(\"'\"&G5316&\"'!\"&H5316),\"\")","v":""}]
[5312,null,null,"Closed 2008",true,{"$f":"IF(G5317<>\"\",INDIRECT(\"'\"&G5317&\"'!\"&H5317),\"\")","v":""}]
[5313,{"$f":"'EstRev 6-11'!D137","v":0},5313,null,true,{"$f":"IF(G5318<>\"\",INDIRECT(\"'\"&G5318&\"'!\"&H5318),\"\")","v":0},"EstRev 6-11","D137"]
[5314,{"$f":"'EstRev 6-11'!D138","v":0},5314,null,true,{"$f":"IF(G5319<>\"\",INDIRECT(\"'\"&G5319&\"'!\"&H5319),\"\")","v":0},"EstRev 6-11","D138"]
[5315,{"$nulls":3},true,{"$f":"IF(G5320<>\"\",INDIRECT(\"'\"&G5320&\"'!\"&H5320),\"\")","v":""}]
[5316,{"$nulls":3},true,{"$f":"IF(G5321<>\"\",INDIRECT(\"'\"&G5321&\"'!\"&H5321),\"\")","v":""}]
[5317,{"$nulls":3},true,{"$f":"IF(G5322<>\"\",INDIRECT(\"'\"&G5322&\"'!\"&H5322),\"\")","v":""}]
[5318,{"$nulls":3},true,{"$f":"IF(G5323<>\"\",INDIRECT(\"'\"&G5323&\"'!\"&H5323),\"\")","v":""}]
[5319,{"$nulls":3},true,{"$f":"IF(G5324<>\"\",INDIRECT(\"'\"&G5324&\"'!\"&H5324),\"\")","v":""}]
[5320,{"$nulls":3},true,{"$f":"IF(G5325<>\"\",INDIRECT(\"'\"&G5325&\"'!\"&H5325),\"\")","v":""}]
[5321,{"$nulls":3},true,{"$f":"IF(G5326<>\"\",INDIRECT(\"'\"&G5326&\"'!\"&H5326),\"\")","v":""}]
[5322,{"$f":"'EstRev 6-11'!D143","v":0},{"$f":"A5327-B5327","v":5322},null,true,{"$f":"IF(G5327<>\"\",INDIRECT(\"'\"&G5327&\"'!\"&H5327),\"\")","v":0},"EstRev 6-11","D143"]
[5323,{"$f":"'EstRev 6-11'!D150","v":0},5323,null,true,{"$f":"IF(G5328<>\"\",INDIRECT(\"'\"&G5328&\"'!\"&H5328),\"\")","v":0},"EstRev 6-11","D150"]
[5324,{"$nulls":3},true,{"$f":"IF(G5329<>\"\",INDIRECT(\"'\"&G5329&\"'!\"&H5329),\"\")","v":""}]
[5325,{"$nulls":3},true,{"$f":"IF(G5330<>\"\",INDIRECT(\"'\"&G5330&\"'!\"&H5330),\"\")","v":""}]
[5326,{"$f":"'EstRev 6-11'!D151","v":0},5326,null,true,{"$f":"IF(G5331<>\"\",INDIRECT(\"'\"&G5331&\"'!\"&H5331),\"\")","v":0},"EstRev 6-11","D151"]
[5327,{"$nulls":3},true,{"$f":"IF(G5332<>\"\",INDIRECT(\"'\"&G5332&\"'!\"&H5332),\"\")","v":""}]
[5328,{"$nulls":3},true,{"$f":"IF(G5333<>\"\",INDIRECT(\"'\"&G5333&\"'!\"&H5333),\"\")","v":""}]
[5329,{"$nulls":3},true,{"$f":"IF(G5334<>\"\",INDIRECT(\"'\"&G5334&\"'!\"&H5334),\"\")","v":""}]
[5330,{"$f":"'EstRev 6-11'!D154","v":0},5330,null,true,{"$f":"IF(G5335<>\"\",INDIRECT(\"'\"&G5335&\"'!\"&H5335),\"\")","v":0},"EstRev 6-11","D154"]
[5331,{"$nulls":3},true,{"$f":"IF(G5336<>\"\",INDIRECT(\"'\"&G5336&\"'!\"&H5336),\"\")","v":""}]
[5332,{"$f":"'EstRev 6-11'!D155","v":0},5332,null,true,{"$f":"IF(G5337<>\"\",INDIRECT(\"'\"&G5337&\"'!\"&H5337),\"\")","v":0},"EstRev 6-11","D155"]
[5333,{"$f":"'EstRev 6-11'!D157","v":0},5333,null,true,{"$f":"IF(G5338<>\"\",INDIRECT(\"'\"&G5338&\"'!\"&H5338),\"\")","v":0},"EstRev 6-11","D157"]
[5334,{"$f":"'EstRev 6-11'!D159","v":0},5334,null,true,{"$f":"IF(G5339<>\"\",INDIRECT(\"'\"&G5339&\"'!\"&H5339),\"\")","v":0},"EstRev 6-11","D159"]
[5335,{"$nulls":3},true,{"$f":"IF(G5340<>\"\",INDIRECT(\"'\"&G5340&\"'!\"&H5340),\"\")","v":""}]
[5336,{"$nulls":3},true,{"$f":"IF(G5341<>\"\",INDIRECT(\"'\"&G5341&\"'!\"&H5341),\"\")","v":""}]
[5337,{"$nulls":3},true,{"$f":"IF(G5342<>\"\",INDIRECT(\"'\"&G5342&\"'!\"&H5342),\"\")","v":""}]
[5338,{"$nulls":3},true,{"$f":"IF(G5343<>\"\",INDIRECT(\"'\"&G5343&\"'!\"&H5343),\"\")","v":""}]
[5339,{"$nulls":3},true,{"$f":"IF(G5344<>\"\",INDIRECT(\"'\"&G5344&\"'!\"&H5344),\"\")","v":""}]
[5340,{"$f":"'EstRev 6-11'!D161","v":0},5340,null,true,{"$f":"IF(G5345<>\"\",INDIRECT(\"'\"&G5345&\"'!\"&H5345),\"\")","v":0},"EstRev 6-11","D161"]
[5341,{"$nulls":3},true,{"$f":"IF(G5346<>\"\",INDIRECT(\"'\"&G5346&\"'!\"&H5346),\"\")","v":""}]
[5342,{"$nulls":3},true,{"$f":"IF(G5347<>\"\",INDIRECT(\"'\"&G5347&\"'!\"&H5347),\"\")","v":""}]
[5343,{"$nulls":3},true,{"$f":"IF(G5348<>\"\",INDIRECT(\"'\"&G5348&\"'!\"&H5348),\"\")","v":""}]
[5344,{"$nulls":3},true,{"$f":"IF(G5349<>\"\",INDIRECT(\"'\"&G5349&\"'!\"&H5349),\"\")","v":""}]
[5345,{"$nulls":3},true,{"$f":"IF(G5350<>\"\",INDIRECT(\"'\"&G5350&\"'!\"&H5350),\"\")","v":""}]
[5346,null,null,"Closed 2008",true,{"$f":"IF(G5351<>\"\",INDIRECT(\"'\"&G5351&\"'!\"&H5351),\"\")","v":""}]
[5347,{"$nulls":3},true,{"$f":"IF(G5352<>\"\",INDIRECT(\"'\"&G5352&\"'!\"&H5352),\"\")","v":""}]
[5348,{"$nulls":3},true,{"$f":"IF(G5353<>\"\",INDIRECT(\"'\"&G5353&\"'!\"&H5353),\"\")","v":""}]
[5349,null,null,"Closed 2008",true,{"$f":"IF(G5354<>\"\",INDIRECT(\"'\"&G5354&\"'!\"&H5354),\"\")","v":""}]
[5350,null,null,"Closed 2008",true,{"$f":"IF(G5355<>\"\",INDIRECT(\"'\"&G5355&\"'!\"&H5355),\"\")","v":""}]
[5351,{"$f":"'EstRev 6-11'!D171","v":50000},-44649,null,true,{"$f":"IF(G5356<>\"\",INDIRECT(\"'\"&G5356&\"'!\"&H5356),\"\")","v":50000},"EstRev 6-11","D171"]
[5352,{"$nulls":3},true,{"$f":"IF(G5357<>\"\",INDIRECT(\"'\"&G5357&\"'!\"&H5357),\"\")","v":""}]
[5353,{"$nulls":3},true,{"$f":"IF(G5358<>\"\",INDIRECT(\"'\"&G5358&\"'!\"&H5358),\"\")","v":""}]
[5354,{"$nulls":3},true,{"$f":"IF(G5359<>\"\",INDIRECT(\"'\"&G5359&\"'!\"&H5359),\"\")","v":""}]
[5355,{"$nulls":3},true,{"$f":"IF(G5360<>\"\",INDIRECT(\"'\"&G5360&\"'!\"&H5360),\"\")","v":""}]
[5356,{"$nulls":3},true,{"$f":"IF(G5361<>\"\",INDIRECT(\"'\"&G5361&\"'!\"&H5361),\"\")","v":""}]
[5357,{"$nulls":3},true,{"$f":"IF(G5362<>\"\",INDIRECT(\"'\"&G5362&\"'!\"&H5362),\"\")","v":""}]
[5358,{"$nulls":3},true,{"$f":"IF(G5363<>\"\",INDIRECT(\"'\"&G5363&\"'!\"&H5363),\"\")","v":""}]
[5359,{"$nulls":3},true,{"$f":"IF(G5364<>\"\",INDIRECT(\"'\"&G5364&\"'!\"&H5364),\"\")","v":""}]
[5360,{"$f":"'EstRev 6-11'!D172","v":1350000},-1344640,null,true,{"$f":"IF(G5365<>\"\",INDIRECT(\"'\"&G5365&\"'!\"&H5365),\"\")","v":1350000},"EstRev 6-11","D172"]
[5361,{"$f":"'EstRev 6-11'!D175","v":0},5361,null,true,{"$f":"IF(G5366<>\"\",INDIRECT(\"'\"&G5366&\"'!\"&H5366),\"\")","v":0},"EstRev 6-11","D175"]
[5362,{"$f":"'EstRev 6-11'!D177","v":0},5362,null,true,{"$f":"IF(G5367<>\"\",INDIRECT(\"'\"&G5367&\"'!\"&H5367),\"\")","v":0},"EstRev 6-11","D177"]
[5363,{"$f":"'EstRev 6-11'!D180","v":0},5363,null,true,{"$f":"IF(G5368<>\"\",INDIRECT(\"'\"&G5368&\"'!\"&H5368),\"\")","v":0},"EstRev 6-11","D180"]
[5364,{"$f":"'EstRev 6-11'!D183","v":0},5364,null,true,{"$f":"IF(G5369<>\"\",INDIRECT(\"'\"&G5369&\"'!\"&H5369),\"\")","v":0},"EstRev 6-11","D183"]
[5365,{"$f":"'EstRev 6-11'!D186","v":0},5365,null,true,{"$f":"IF(G5370<>\"\",INDIRECT(\"'\"&G5370&\"'!\"&H5370),\"\")","v":0},"EstRev 6-11","D186"]
[5366,{"$nulls":3},true,{"$f":"IF(G5371<>\"\",INDIRECT(\"'\"&G5371&\"'!\"&H5371),\"\")","v":""}]
[5367,{"$nulls":3},true,{"$f":"IF(G5372<>\"\",INDIRECT(\"'\"&G5372&\"'!\"&H5372),\"\")","v":""}]
[5368,{"$nulls":3},true,{"$f":"IF(G5373<>\"\",INDIRECT(\"'\"&G5373&\"'!\"&H5373),\"\")","v":""}]
[5369,{"$nulls":3},true,{"$f":"IF(G5374<>\"\",INDIRECT(\"'\"&G5374&\"'!\"&H5374),\"\")","v":""}]
[5370,{"$f":"'EstRev 6-11'!D202","v":0},5370,null,true,{"$f":"IF(G5375<>\"\",INDIRECT(\"'\"&G5375&\"'!\"&H5375),\"\")","v":0},"EstRev 6-11","D202"]
[5371,{"$f":"'EstRev 6-11'!D203","v":0},5371,null,true,{"$f":"IF(G5376<>\"\",INDIRECT(\"'\"&G5376&\"'!\"&H5376),\"\")","v":0},"EstRev 6-11","D203"]
[5372,{"$nulls":3},true,{"$f":"IF(G5377<>\"\",INDIRECT(\"'\"&G5377&\"'!\"&H5377),\"\")","v":""}]
[5373,{"$nulls":3},{"$f":"F5378=B5378","v":true},{"$f":"IF(G5378<>\"\",INDIRECT(\"'\"&G5378&\"'!\"&H5378),\"\")","v":""}]
[5374,{"$nulls":3},true,{"$f":"IF(G5379<>\"\",INDIRECT(\"'\"&G5379&\"'!\"&H5379),\"\")","v":""}]
[5375,null,null,"Closed 2008",true,{"$f":"IF(G5380<>\"\",INDIRECT(\"'\"&G5380&\"'!\"&H5380),\"\")","v":""}]
[5376,null,null,"Closed 2008",true,{"$f":"IF(G5381<>\"\",INDIRECT(\"'\"&G5381&\"'!\"&H5381),\"\")","v":""}]
[5377,null,null,"Closed 2018",true,{"$f":"IF(G5382<>\"\",INDIRECT(\"'\"&G5382&\"'!\"&H5382),\"\")","v":""}]
[5378,{"$f":"'EstRev 6-11'!D204","v":0},5378,null,true,{"$f":"IF(G5383<>\"\",INDIRECT(\"'\"&G5383&\"'!\"&H5383),\"\")","v":0},"EstRev 6-11","D204"]
[5379,{"$f":"'EstRev 6-11'!D208","v":0},{"$f":"A5384-B5384","v":5379},null,true,{"$f":"IF(G5384<>\"\",INDIRECT(\"'\"&G5384&\"'!\"&H5384),\"\")","v":0},"EstRev 6-11","D208"]
[5380,null,null,"Closed 2008",true,{"$f":"IF(G5385<>\"\",INDIRECT(\"'\"&G5385&\"'!\"&H5385),\"\")","v":""}]
[5381,{"$nulls":3},true,{"$f":"IF(G5386<>\"\",INDIRECT(\"'\"&G5386&\"'!\"&H5386),\"\")","v":""}]
[5382,{"$nulls":3},true,{"$f":"IF(G5387<>\"\",INDIRECT(\"'\"&G5387&\"'!\"&H5387),\"\")","v":""}]
[5383,{"$f":"'EstRev 6-11'!D206","v":0},5383,null,true,{"$f":"IF(G5388<>\"\",INDIRECT(\"'\"&G5388&\"'!\"&H5388),\"\")","v":0},"EstRev 6-11","D206"]
[5384,{"$nulls":3},true,{"$f":"IF(G5389<>\"\",INDIRECT(\"'\"&G5389&\"'!\"&H5389),\"\")","v":""}]
[5385,{"$nulls":3},true,{"$f":"IF(G5390<>\"\",INDIRECT(\"'\"&G5390&\"'!\"&H5390),\"\")","v":""}]
[5386,{"$nulls":3},true,{"$f":"IF(G5391<>\"\",INDIRECT(\"'\"&G5391&\"'!\"&H5391),\"\")","v":""}]
[5387,{"$nulls":3},true,{"$f":"IF(G5392<>\"\",INDIRECT(\"'\"&G5392&\"'!\"&H5392),\"\")","v":""}]
[5388,{"$nulls":3},true,{"$f":"IF(G5393<>\"\",INDIRECT(\"'\"&G5393&\"'!\"&H5393),\"\")","v":""}]
[5389,{"$nulls":3},true,{"$f":"IF(G5394<>\"\",INDIRECT(\"'\"&G5394&\"'!\"&H5394),\"\")","v":""}]
[5390,{"$nulls":3},true,{"$f":"IF(G5395<>\"\",INDIRECT(\"'\"&G5395&\"'!\"&H5395),\"\")","v":""}]
[5391,{"$nulls":3},true,{"$f":"IF(G5396<>\"\",INDIRECT(\"'\"&G5396&\"'!\"&H5396),\"\")","v":""}]
[5392,{"$nulls":3},true,{"$f":"IF(G5397<>\"\",INDIRECT(\"'\"&G5397&\"'!\"&H5397),\"\")","v":""}]
[5393,{"$nulls":3},true,{"$f":"IF(G5398<>\"\",INDIRECT(\"'\"&G5398&\"'!\"&H5398),\"\")","v":""}]
[5394,{"$nulls":3},true,{"$f":"IF(G5399<>\"\",INDIRECT(\"'\"&G5399&\"'!\"&H5399),\"\")","v":""}]
[5395,{"$nulls":3},true,{"$f":"IF(G5400<>\"\",INDIRECT(\"'\"&G5400&\"'!\"&H5400),\"\")","v":""}]
[5396,{"$nulls":3},true,{"$f":"IF(G5401<>\"\",INDIRECT(\"'\"&G5401&\"'!\"&H5401),\"\")","v":""}]
[5397,{"$f":"'EstRev 6-11'!D214","v":0},5397,null,true,{"$f":"IF(G5402<>\"\",INDIRECT(\"'\"&G5402&\"'!\"&H5402),\"\")","v":0},"EstRev 6-11","D214"]
[5398,{"$f":"'EstRev 6-11'!D215","v":0},5398,null,true,{"$f":"IF(G5403<>\"\",INDIRECT(\"'\"&G5403&\"'!\"&H5403),\"\")","v":0},"EstRev 6-11","D215"]
[5399,{"$nulls":3},true,{"$f":"IF(G5404<>\"\",INDIRECT(\"'\"&G5404&\"'!\"&H5404),\"\")","v":""}]
[5400,{"$nulls":3},true,{"$f":"IF(G5405<>\"\",INDIRECT(\"'\"&G5405&\"'!\"&H5405),\"\")","v":""}]
[5401,{"$f":"'EstRev 6-11'!D216","v":0},5401,null,true,{"$f":"IF(G5406<>\"\",INDIRECT(\"'\"&G5406&\"'!\"&H5406),\"\")","v":0},"EstRev 6-11","D216"]
[5402,{"$f":"'EstRev 6-11'!D217","v":0},5402,null,true,{"$f":"IF(G5407<>\"\",INDIRECT(\"'\"&G5407&\"'!\"&H5407),\"\")","v":0},"EstRev 6-11","D217"]
[5403,{"$f":"'EstRev 6-11'!D218","v":0},5403,null,true,{"$f":"IF(G5408<>\"\",INDIRECT(\"'\"&G5408&\"'!\"&H5408),\"\")","v":0},"EstRev 6-11","D218"]
[5404,{"$nulls":3},true,{"$f":"IF(G5409<>\"\",INDIRECT(\"'\"&G5409&\"'!\"&H5409),\"\")","v":""}]
[5405,{"$nulls":3},true,{"$f":"IF(G5410<>\"\",INDIRECT(\"'\"&G5410&\"'!\"&H5410),\"\")","v":""}]
[5406,{"$nulls":3},true,{"$f":"IF(G5411<>\"\",INDIRECT(\"'\"&G5411&\"'!\"&H5411),\"\")","v":""}]
[5407,{"$nulls":3},true,{"$f":"IF(G5412<>\"\",INDIRECT(\"'\"&G5412&\"'!\"&H5412),\"\")","v":""}]
[5408,{"$nulls":3},true,{"$f":"IF(G5413<>\"\",INDIRECT(\"'\"&G5413&\"'!\"&H5413),\"\")","v":""}]
[5409,{"$f":"'EstRev 6-11'!D220","v":0},5409,null,true,{"$f":"IF(G5414<>\"\",INDIRECT(\"'\"&G5414&\"'!\"&H5414),\"\")","v":0},"EstRev 6-11","D220"]
[5410,{"$nulls":3},true,{"$f":"IF(G5415<>\"\",INDIRECT(\"'\"&G5415&\"'!\"&H5415),\"\")","v":""}]
[5411,{"$nulls":3},true,{"$f":"IF(G5416<>\"\",INDIRECT(\"'\"&G5416&\"'!\"&H5416),\"\")","v":""}]
[5412,{"$nulls":3},true,{"$f":"IF(G5417<>\"\",INDIRECT(\"'\"&G5417&\"'!\"&H5417),\"\")","v":""}]
[5413,{"$nulls":3},true,{"$f":"IF(G5418<>\"\",INDIRECT(\"'\"&G5418&\"'!\"&H5418),\"\")","v":""}]
[5414,null,null,"Closed 2008",true,{"$f":"IF(G5419<>\"\",INDIRECT(\"'\"&G5419&\"'!\"&H5419),\"\")","v":""}]
[5415,{"$nulls":3},true,{"$f":"IF(G5420<>\"\",INDIRECT(\"'\"&G5420&\"'!\"&H5420),\"\")","v":""}]
[5416,{"$nulls":3},true,{"$f":"IF(G5421<>\"\",INDIRECT(\"'\"&G5421&\"'!\"&H5421),\"\")","v":""}]
[5417,{"$nulls":3},true,{"$f":"IF(G5422<>\"\",INDIRECT(\"'\"&G5422&\"'!\"&H5422),\"\")","v":""}]
[5418,{"$nulls":3},true,{"$f":"IF(G5423<>\"\",INDIRECT(\"'\"&G5423&\"'!\"&H5423),\"\")","v":""}]
[5419,null,null,"Closed 2008",true,{"$f":"IF(G5424<>\"\",INDIRECT(\"'\"&G5424&\"'!\"&H5424),\"\")","v":""}]
[5420,null,null,"Closed 2008",true,{"$f":"IF(G5425<>\"\",INDIRECT(\"'\"&G5425&\"'!\"&H5425),\"\")","v":""}]
[5421,{"$nulls":3},true,{"$f":"IF(G5426<>\"\",INDIRECT(\"'\"&G5426&\"'!\"&H5426),\"\")","v":""}]
[5422,{"$nulls":3},true,{"$f":"IF(G5427<>\"\",INDIRECT(\"'\"&G5427&\"'!\"&H5427),\"\")","v":""}]
[5423,{"$nulls":3},true,{"$f":"IF(G5428<>\"\",INDIRECT(\"'\"&G5428&\"'!\"&H5428),\"\")","v":""}]
[5424,{"$f":"'EstRev 6-11'!D222","v":0},5424,null,true,{"$f":"IF(G5429<>\"\",INDIRECT(\"'\"&G5429&\"'!\"&H5429),\"\")","v":0},"EstRev 6-11","D222"]
[5425,{"$nulls":3},true,{"$f":"IF(G5430<>\"\",INDIRECT(\"'\"&G5430&\"'!\"&H5430),\"\")","v":""}]
[5426,{"$nulls":3},true,{"$f":"IF(G5431<>\"\",INDIRECT(\"'\"&G5431&\"'!\"&H5431),\"\")","v":""}]
[5427,{"$f":"'EstRev 6-11'!D224","v":0},5427,null,true,{"$f":"IF(G5432<>\"\",INDIRECT(\"'\"&G5432&\"'!\"&H5432),\"\")","v":0},"EstRev 6-11","D224"]
[5428,{"$nulls":3},true,{"$f":"IF(G5433<>\"\",INDIRECT(\"'\"&G5433&\"'!\"&H5433),\"\")","v":""}]
[5429,{"$nulls":3},true,{"$f":"IF(G5434<>\"\",INDIRECT(\"'\"&G5434&\"'!\"&H5434),\"\")","v":""}]
[5430,{"$nulls":3},true,{"$f":"IF(G5435<>\"\",INDIRECT(\"'\"&G5435&\"'!\"&H5435),\"\")","v":""}]
[5431,{"$nulls":3},true,{"$f":"IF(G5436<>\"\",INDIRECT(\"'\"&G5436&\"'!\"&H5436),\"\")","v":""}]
[5432,{"$nulls":3},true,{"$f":"IF(G5437<>\"\",INDIRECT(\"'\"&G5437&\"'!\"&H5437),\"\")","v":""}]
[5433,{"$f":"'EstRev 6-11'!D225","v":0},5433,null,true,{"$f":"IF(G5438<>\"\",INDIRECT(\"'\"&G5438&\"'!\"&H5438),\"\")","v":0},"EstRev 6-11","D225"]
[5434,{"$nulls":3},true,{"$f":"IF(G5439<>\"\",INDIRECT(\"'\"&G5439&\"'!\"&H5439),\"\")","v":""}]
[5435,{"$f":"'EstRev 6-11'!D260","v":0},5435,null,true,{"$f":"IF(G5440<>\"\",INDIRECT(\"'\"&G5440&\"'!\"&H5440),\"\")","v":0},"EstRev 6-11","D260"]
[5436,{"$nulls":3},true,{"$f":"IF(G5441<>\"\",INDIRECT(\"'\"&G5441&\"'!\"&H5441),\"\")","v":""}]
[5437,{"$f":"'EstRev 6-11'!D261","v":0},5437,null,{"$f":"F5442=B5442","v":true},{"$f":"IF(G5442<>\"\",INDIRECT(\"'\"&G5442&\"'!\"&H5442),\"\")","v":0},"EstRev 6-11","D261"]
[5438,{"$nulls":3},true,{"$f":"IF(G5443<>\"\",INDIRECT(\"'\"&G5443&\"'!\"&H5443),\"\")","v":""}]
[5439,null,null,"Closed 2008",true,{"$f":"IF(G5444<>\"\",INDIRECT(\"'\"&G5444&\"'!\"&H5444),\"\")","v":""}]
[5440,{"$f":"'EstRev 6-11'!D270","v":0},5440,null,true,{"$f":"IF(G5445<>\"\",INDIRECT(\"'\"&G5445&\"'!\"&H5445),\"\")","v":0},"EstRev 6-11","D270"]
[5441,{"$nulls":3},true,{"$f":"IF(G5446<>\"\",INDIRECT(\"'\"&G5446&\"'!\"&H5446),\"\")","v":""}]
[5442,{"$nulls":3},true,{"$f":"IF(G5447<>\"\",INDIRECT(\"'\"&G5447&\"'!\"&H5447),\"\")","v":""}]
[5443,{"$nulls":3},true,{"$f":"IF(G5448<>\"\",INDIRECT(\"'\"&G5448&\"'!\"&H5448),\"\")","v":""}]
[5444,{"$nulls":3},true,{"$f":"IF(G5449<>\"\",INDIRECT(\"'\"&G5449&\"'!\"&H5449),\"\")","v":""}]
[5445,{"$nulls":3},true,{"$f":"IF(G5450<>\"\",INDIRECT(\"'\"&G5450&\"'!\"&H5450),\"\")","v":""}]
[5446,{"$f":"'EstRev 6-11'!D271","v":0},{"$f":"A5451-B5451","v":5446},null,true,{"$f":"IF(G5451<>\"\",INDIRECT(\"'\"&G5451&\"'!\"&H5451),\"\")","v":0},"EstRev 6-11","D271"]
[5447,{"$f":"'EstRev 6-11'!D272","v":1597000},-1591553,null,true,{"$f":"IF(G5452<>\"\",INDIRECT(\"'\"&G5452&\"'!\"&H5452),\"\")","v":1597000},"EstRev 6-11","D272"]
[5448,{"$f":"'EstRev 6-11'!E5","v":1695000},-1689552,null,true,{"$f":"IF(G5453<>\"\",INDIRECT(\"'\"&G5453&\"'!\"&H5453),\"\")","v":1695000},"EstRev 6-11","E5"]
[5449,null,null,"Closed 2008",true,{"$f":"IF(G5454<>\"\",INDIRECT(\"'\"&G5454&\"'!\"&H5454),\"\")","v":""}]
[5450,{"$f":"'EstRev 6-11'!E9","v":0},5450,null,true,{"$f":"IF(G5455<>\"\",INDIRECT(\"'\"&G5455&\"'!\"&H5455),\"\")","v":0},"EstRev 6-11","E9"]
[5451,{"$f":"'EstRev 6-11'!E11","v":0},5451,null,true,{"$f":"IF(G5456<>\"\",INDIRECT(\"'\"&G5456&\"'!\"&H5456),\"\")","v":0},"EstRev 6-11","E11"]
[5452,{"$f":"'EstRev 6-11'!E12","v":1695000},-1689548,null,true,{"$f":"IF(G5457<>\"\",INDIRECT(\"'\"&G5457&\"'!\"&H5457),\"\")","v":1695000},"EstRev 6-11","E12"]
[5453,{"$f":"'EstRev 6-11'!E14","v":0},5453,null,true,{"$f":"IF(G5458<>\"\",INDIRECT(\"'\"&G5458&\"'!\"&H5458),\"\")","v":0},"EstRev 6-11","E14"]
[5454,{"$f":"'EstRev 6-11'!E15","v":0},5454,null,true,{"$f":"IF(G5459<>\"\",INDIRECT(\"'\"&G5459&\"'!\"&H5459),\"\")","v":0},"EstRev 6-11","E15"]
[5455,{"$f":"'EstRev 6-11'!E16","v":0},5455,null,true,{"$f":"IF(G5460<>\"\",INDIRECT(\"'\"&G5460&\"'!\"&H5460),\"\")","v":0},"EstRev 6-11","E16"]
[5456,{"$f":"'EstRev 6-11'!E17","v":0},5456,null,true,{"$f":"IF(G5461<>\"\",INDIRECT(\"'\"&G5461&\"'!\"&H5461),\"\")","v":0},"EstRev 6-11","E17"]
[5457,{"$f":"'EstRev 6-11'!E18","v":0},5457,null,true,{"$f":"IF(G5462<>\"\",INDIRECT(\"'\"&G5462&\"'!\"&H5462),\"\")","v":0},"EstRev 6-11","E18"]
[5458,{"$f":"'EstRev 6-11'!E65","v":0},5458,null,true,{"$f":"IF(G5463<>\"\",INDIRECT(\"'\"&G5463&\"'!\"&H5463),\"\")","v":0},"EstRev 6-11","E65"]
[5459,{"$f":"'EstRev 6-11'!E66","v":0},5459,null,true,{"$f":"IF(G5464<>\"\",INDIRECT(\"'\"&G5464&\"'!\"&H5464),\"\")","v":0},"EstRev 6-11","E66"]
[5460,{"$f":"'EstRev 6-11'!E67","v":0},5460,null,true,{"$f":"IF(G5465<>\"\",INDIRECT(\"'\"&G5465&\"'!\"&H5465),\"\")","v":0},"EstRev 6-11","E67"]
[5461,{"$f":"'EstRev 6-11'!E98","v":0},5461,null,true,{"$f":"IF(G5466<>\"\",INDIRECT(\"'\"&G5466&\"'!\"&H5466),\"\")","v":0},"EstRev 6-11","E98"]
[5462,{"$f":"'EstRev 6-11'!E101","v":0},5462,null,true,{"$f":"IF(G5467<>\"\",INDIRECT(\"'\"&G5467&\"'!\"&H5467),\"\")","v":0},"EstRev 6-11","E101"]
[5463,{"$f":"'EstRev 6-11'!E106","v":0},5463,null,true,{"$f":"IF(G5468<>\"\",INDIRECT(\"'\"&G5468&\"'!\"&H5468),\"\")","v":0},"EstRev 6-11","E106"]
[5464,{"$f":"'EstRev 6-11'!E109","v":0},5464,null,true,{"$f":"IF(G5469<>\"\",INDIRECT(\"'\"&G5469&\"'!\"&H5469),\"\")","v":0},"EstRev 6-11","E109"]
[5465,{"$f":"'EstRev 6-11'!E110","v":0},5465,null,true,{"$f":"IF(G5470<>\"\",INDIRECT(\"'\"&G5470&\"'!\"&H5470),\"\")","v":0},"EstRev 6-11","E110"]
[5466,{"$f":"'EstRev 6-11'!E111","v":1695000},-1689534,null,true,{"$f":"IF(G5471<>\"\",INDIRECT(\"'\"&G5471&\"'!\"&H5471),\"\")","v":1695000},"EstRev 6-11","E111"]
[5467,{"$f":"'EstRev 6-11'!E120","v":500000},-494533,null,true,{"$f":"IF(G5472<>\"\",INDIRECT(\"'\"&G5472&\"'!\"&H5472),\"\")","v":500000},"EstRev 6-11","E120"]
[5468,{"$f":"'EstRev 6-11'!E121","v":0},5468,null,true,{"$f":"IF(G5473<>\"\",INDIRECT(\"'\"&G5473&\"'!\"&H5473),\"\")","v":0},"EstRev 6-11","E121"]
[5469,{"$nulls":3},true,{"$f":"IF(G5474<>\"\",INDIRECT(\"'\"&G5474&\"'!\"&H5474),\"\")","v":""}]
[5470,{"$nulls":3},true,{"$f":"IF(G5475<>\"\",INDIRECT(\"'\"&G5475&\"'!\"&H5475),\"\")","v":""}]
[5471,{"$nulls":3},true,{"$f":"IF(G5476<>\"\",INDIRECT(\"'\"&G5476&\"'!\"&H5476),\"\")","v":""}]
[5472,{"$nulls":3},true,{"$f":"IF(G5477<>\"\",INDIRECT(\"'\"&G5477&\"'!\"&H5477),\"\")","v":""}]
[5473,{"$f":"'EstRev 6-11'!E124","v":500000},-494527,null,true,{"$f":"IF(G5478<>\"\",INDIRECT(\"'\"&G5478&\"'!\"&H5478),\"\")","v":500000},"EstRev 6-11","E124"]
[5474,{"$nulls":3},true,{"$f":"IF(G5479<>\"\",INDIRECT(\"'\"&G5479&\"'!\"&H5479),\"\")","v":""}]
[5475,{"$nulls":3},true,{"$f":"IF(G5480<>\"\",INDIRECT(\"'\"&G5480&\"'!\"&H5480),\"\")","v":""}]
[5476,{"$f":"'EstRev 6-11'!E171","v":0},5476,null,true,{"$f":"IF(G5481<>\"\",INDIRECT(\"'\"&G5481&\"'!\"&H5481),\"\")","v":0},"EstRev 6-11","E171"]
[5477,{"$nulls":3},true,{"$f":"IF(G5482<>\"\",INDIRECT(\"'\"&G5482&\"'!\"&H5482),\"\")","v":""}]
[5478,{"$nulls":3},true,{"$f":"IF(G5483<>\"\",INDIRECT(\"'\"&G5483&\"'!\"&H5483),\"\")","v":""}]
[5479,{"$nulls":3},true,{"$f":"IF(G5484<>\"\",INDIRECT(\"'\"&G5484&\"'!\"&H5484),\"\")","v":""}]
[5480,{"$nulls":3},true,{"$f":"IF(G5485<>\"\",INDIRECT(\"'\"&G5485&\"'!\"&H5485),\"\")","v":""}]
[5481,{"$nulls":3},true,{"$f":"IF(G5486<>\"\",INDIRECT(\"'\"&G5486&\"'!\"&H5486),\"\")","v":""}]
[5482,{"$nulls":3},true,{"$f":"IF(G5487<>\"\",INDIRECT(\"'\"&G5487&\"'!\"&H5487),\"\")","v":""}]
[5483,{"$f":"'EstRev 6-11'!E172","v":500000},-494517,null,true,{"$f":"IF(G5488<>\"\",INDIRECT(\"'\"&G5488&\"'!\"&H5488),\"\")","v":500000},"EstRev 6-11","E172"]
[5484,{"$nulls":3},true,{"$f":"IF(G5489<>\"\",INDIRECT(\"'\"&G5489&\"'!\"&H5489),\"\")","v":""}]
[5485,{"$nulls":3},true,{"$f":"IF(G5490<>\"\",INDIRECT(\"'\"&G5490&\"'!\"&H5490),\"\")","v":""}]
[5486,{"$nulls":3},true,{"$f":"IF(G5491<>\"\",INDIRECT(\"'\"&G5491&\"'!\"&H5491),\"\")","v":""}]
[5487,{"$nulls":3},true,{"$f":"IF(G5492<>\"\",INDIRECT(\"'\"&G5492&\"'!\"&H5492),\"\")","v":""}]
[5488,{"$nulls":3},true,{"$f":"IF(G5493<>\"\",INDIRECT(\"'\"&G5493&\"'!\"&H5493),\"\")","v":""}]
[5489,{"$nulls":3},true,{"$f":"IF(G5494<>\"\",INDIRECT(\"'\"&G5494&\"'!\"&H5494),\"\")","v":""}]
[5490,{"$nulls":3},true,{"$f":"IF(G5495<>\"\",INDIRECT(\"'\"&G5495&\"'!\"&H5495),\"\")","v":""}]
[5491,{"$f":"'EstRev 6-11'!E272","v":2195000},-2189509,null,true,{"$f":"IF(G5496<>\"\",INDIRECT(\"'\"&G5496&\"'!\"&H5496),\"\")","v":2195000},"EstRev 6-11","E272"]
[5492,{"$f":"'EstRev 6-11'!F5","v":25000},-19508,null,true,{"$f":"IF(G5497<>\"\",INDIRECT(\"'\"&G5497&\"'!\"&H5497),\"\")","v":25000},"EstRev 6-11","F5"]
[5493,null,null,"Closed 2008",true,{"$f":"IF(G5498<>\"\",INDIRECT(\"'\"&G5498&\"'!\"&H5498),\"\")","v":""}]
[5494,{"$f":"'EstRev 6-11'!F7","v":0},5494,null,true,{"$f":"IF(G5499<>\"\",INDIRECT(\"'\"&G5499&\"'!\"&H5499),\"\")","v":0},"EstRev 6-11","F7"]
[5495,{"$f":"'EstRev 6-11'!F11","v":0},5495,null,true,{"$f":"IF(G5500<>\"\",INDIRECT(\"'\"&G5500&\"'!\"&H5500),\"\")","v":0},"EstRev 6-11","F11"]
[5496,{"$f":"'EstRev 6-11'!F12","v":25000},-19504,null,true,{"$f":"IF(G5501<>\"\",INDIRECT(\"'\"&G5501&\"'!\"&H5501),\"\")","v":25000},"EstRev 6-11","F12"]
[5497,{"$f":"'EstRev 6-11'!F14","v":0},5497,null,true,{"$f":"IF(G5502<>\"\",INDIRECT(\"'\"&G5502&\"'!\"&H5502),\"\")","v":0},"EstRev 6-11","F14"]
[5498,{"$f":"'EstRev 6-11'!F15","v":0},5498,null,true,{"$f":"IF(G5503<>\"\",INDIRECT(\"'\"&G5503&\"'!\"&H5503),\"\")","v":0},"EstRev 6-11","F15"]
[5499,{"$f":"'EstRev 6-11'!F16","v":0},5499,null,true,{"$f":"IF(G5504<>\"\",INDIRECT(\"'\"&G5504&\"'!\"&H5504),\"\")","v":0},"EstRev 6-11","F16"]
[5500,{"$f":"'EstRev 6-11'!F17","v":0},5500,null,true,{"$f":"IF(G5505<>\"\",INDIRECT(\"'\"&G5505&\"'!\"&H5505),\"\")","v":0},"EstRev 6-11","F17"]
[5501,{"$f":"'EstRev 6-11'!F18","v":0},5501,null,{"$f":"F5506=B5506","v":true},{"$f":"IF(G5506<>\"\",INDIRECT(\"'\"&G5506&\"'!\"&H5506),\"\")","v":0},"EstRev 6-11","F18"]
[5502,{"$f":"'EstRev 6-11'!F42","v":0},5502,null,true,{"$f":"IF(G5507<>\"\",INDIRECT(\"'\"&G5507&\"'!\"&H5507),\"\")","v":0},"EstRev 6-11","F42"]
[5503,{"$f":"'EstRev 6-11'!F43","v":0},5503,null,true,{"$f":"IF(G5508<>\"\",INDIRECT(\"'\"&G5508&\"'!\"&H5508),\"\")","v":0},"EstRev 6-11","F43"]
[5504,{"$f":"'EstRev 6-11'!F44","v":0},5504,null,true,{"$f":"IF(G5509<>\"\",INDIRECT(\"'\"&G5509&\"'!\"&H5509),\"\")","v":0},"EstRev 6-11","F44"]
[5505,{"$f":"'EstRev 6-11'!F45","v":0},5505,null,true,{"$f":"IF(G5510<>\"\",INDIRECT(\"'\"&G5510&\"'!\"&H5510),\"\")","v":0},"EstRev 6-11","F45"]
[5506,{"$f":"'EstRev 6-11'!F47","v":0},5506,null,true,{"$f":"IF(G5511<>\"\",INDIRECT(\"'\"&G5511&\"'!\"&H5511),\"\")","v":0},"EstRev 6-11","F47"]
[5507,{"$f":"'EstRev 6-11'!F48","v":0},{"$f":"A5512-B5512","v":5507},null,true,{"$f":"IF(G5512<>\"\",INDIRECT(\"'\"&G5512&\"'!\"&H5512),\"\")","v":0},"EstRev 6-11","F48"]
[5508,{"$f":"'EstRev 6-11'!F49","v":0},5508,null,true,{"$f":"IF(G5513<>\"\",INDIRECT(\"'\"&G5513&\"'!\"&H5513),\"\")","v":0},"EstRev 6-11","F49"]
[5509,{"$f":"'EstRev 6-11'!F51","v":0},5509,null,true,{"$f":"IF(G5514<>\"\",INDIRECT(\"'\"&G5514&\"'!\"&H5514),\"\")","v":0},"EstRev 6-11","F51"]
[5510,{"$f":"'EstRev 6-11'!F52","v":0},5510,null,true,{"$f":"IF(G5515<>\"\",INDIRECT(\"'\"&G5515&\"'!\"&H5515),\"\")","v":0},"EstRev 6-11","F52"]
[5511,{"$f":"'EstRev 6-11'!F53","v":0},5511,null,true,{"$f":"IF(G5516<>\"\",INDIRECT(\"'\"&G5516&\"'!\"&H5516),\"\")","v":0},"EstRev 6-11","F53"]
[5512,{"$f":"'EstRev 6-11'!F55","v":0},5512,null,true,{"$f":"IF(G5517<>\"\",INDIRECT(\"'\"&G5517&\"'!\"&H5517),\"\")","v":0},"EstRev 6-11","F55"]
[5513,{"$f":"'EstRev 6-11'!F56","v":0},5513,null,true,{"$f":"IF(G5518<>\"\",INDIRECT(\"'\"&G5518&\"'!\"&H5518),\"\")","v":0},"EstRev 6-11","F56"]
[5514,{"$f":"'EstRev 6-11'!F57","v":0},5514,null,true,{"$f":"IF(G5519<>\"\",INDIRECT(\"'\"&G5519&\"'!\"&H5519),\"\")","v":0},"EstRev 6-11","F57"]
[5515,{"$f":"'EstRev 6-11'!F59","v":0},5515,null,true,{"$f":"IF(G5520<>\"\",INDIRECT(\"'\"&G5520&\"'!\"&H5520),\"\")","v":0},"EstRev 6-11","F59"]
[5516,{"$f":"'EstRev 6-11'!F60","v":0},5516,null,true,{"$f":"IF(G5521<>\"\",INDIRECT(\"'\"&G5521&\"'!\"&H5521),\"\")","v":0},"EstRev 6-11","F60"]
[5517,{"$f":"'EstRev 6-11'!F61","v":0},5517,null,true,{"$f":"IF(G5522<>\"\",INDIRECT(\"'\"&G5522&\"'!\"&H5522),\"\")","v":0},"EstRev 6-11","F61"]
[5518,{"$f":"'EstRev 6-11'!F63","v":0},5518,null,true,{"$f":"IF(G5523<>\"\",INDIRECT(\"'\"&G5523&\"'!\"&H5523),\"\")","v":0},"EstRev 6-11","F63"]
[5519,{"$f":"'EstRev 6-11'!F65","v":0},5519,null,true,{"$f":"IF(G5524<>\"\",INDIRECT(\"'\"&G5524&\"'!\"&H5524),\"\")","v":0},"EstRev 6-11","F65"]
[5520,{"$f":"'EstRev 6-11'!F66","v":0},5520,null,true,{"$f":"IF(G5525<>\"\",INDIRECT(\"'\"&G5525&\"'!\"&H5525),\"\")","v":0},"EstRev 6-11","F66"]
[5521,{"$f":"'EstRev 6-11'!F67","v":0},5521,null,true,{"$f":"IF(G5526<>\"\",INDIRECT(\"'\"&G5526&\"'!\"&H5526),\"\")","v":0},"EstRev 6-11","F67"]
[5522,{"$f":"'EstRev 6-11'!F98","v":0},5522,null,true,{"$f":"IF(G5527<>\"\",INDIRECT(\"'\"&G5527&\"'!\"&H5527),\"\")","v":0},"EstRev 6-11","F98"]
[5523,{"$f":"'EstRev 6-11'!F100","v":0},5523,null,true,{"$f":"IF(G5528<>\"\",INDIRECT(\"'\"&G5528&\"'!\"&H5528),\"\")","v":0},"EstRev 6-11","F100"]
[5524,{"$f":"'EstRev 6-11'!F101","v":0},5524,null,true,{"$f":"IF(G5529<>\"\",INDIRECT(\"'\"&G5529&\"'!\"&H5529),\"\")","v":0},"EstRev 6-11","F101"]
[5525,{"$f":"'EstRev 6-11'!F109","v":0},5525,null,true,{"$f":"IF(G5530<>\"\",INDIRECT(\"'\"&G5530&\"'!\"&H5530),\"\")","v":0},"EstRev 6-11","F109"]
[5526,{"$f":"'EstRev 6-11'!F110","v":0},5526,null,true,{"$f":"IF(G5531<>\"\",INDIRECT(\"'\"&G5531&\"'!\"&H5531),\"\")","v":0},"EstRev 6-11","F110"]
[5527,{"$f":"'EstRev 6-11'!F111","v":25000},-19473,null,true,{"$f":"IF(G5532<>\"\",INDIRECT(\"'\"&G5532&\"'!\"&H5532),\"\")","v":25000},"EstRev 6-11","F111"]
[5528,{"$f":"'EstRev 6-11'!F114","v":0},5528,null,true,{"$f":"IF(G5533<>\"\",INDIRECT(\"'\"&G5533&\"'!\"&H5533),\"\")","v":0},"EstRev 6-11","F114"]
[5529,{"$f":"'EstRev 6-11'!F115","v":0},5529,null,true,{"$f":"IF(G5534<>\"\",INDIRECT(\"'\"&G5534&\"'!\"&H5534),\"\")","v":0},"EstRev 6-11","F115"]
[5530,{"$f":"'EstRev 6-11'!F116","v":0},5530,null,true,{"$f":"IF(G5535<>\"\",INDIRECT(\"'\"&G5535&\"'!\"&H5535),\"\")","v":0},"EstRev 6-11","F116"]
[5531,{"$f":"'EstRev 6-11'!F117","v":0},5531,null,true,{"$f":"IF(G5536<>\"\",INDIRECT(\"'\"&G5536&\"'!\"&H5536),\"\")","v":0},"EstRev 6-11","F117"]
[5532,{"$f":"'EstRev 6-11'!F120","v":200000},-194468,null,true,{"$f":"IF(G5537<>\"\",INDIRECT(\"'\"&G5537&\"'!\"&H5537),\"\")","v":200000},"EstRev 6-11","F120"]
[5533,{"$f":"'EstRev 6-11'!F121","v":0},5533,null,true,{"$f":"IF(G5538<>\"\",INDIRECT(\"'\"&G5538&\"'!\"&H5538),\"\")","v":0},"EstRev 6-11","F121"]
[5534,{"$nulls":3},true,{"$f":"IF(G5539<>\"\",INDIRECT(\"'\"&G5539&\"'!\"&H5539),\"\")","v":""}]
[5535,{"$nulls":3},true,{"$f":"IF(G5540<>\"\",INDIRECT(\"'\"&G5540&\"'!\"&H5540),\"\")","v":""}]
[5536,{"$nulls":3},true,{"$f":"IF(G5541<>\"\",INDIRECT(\"'\"&G5541&\"'!\"&H5541),\"\")","v":""}]
[5537,{"$nulls":3},true,{"$f":"IF(G5542<>\"\",INDIRECT(\"'\"&G5542&\"'!\"&H5542),\"\")","v":""}]
[5538,{"$f":"'EstRev 6-11'!F124","v":200000},-194462,null,true,{"$f":"IF(G5543<>\"\",INDIRECT(\"'\"&G5543&\"'!\"&H5543),\"\")","v":200000},"EstRev 6-11","F124"]
[5539,{"$f":"'EstRev 6-11'!F127","v":0},5539,null,true,{"$f":"IF(G5544<>\"\",INDIRECT(\"'\"&G5544&\"'!\"&H5544),\"\")","v":0},"EstRev 6-11","F127"]
[5540,{"$f":"'EstRev 6-11'!F128","v":0},5540,null,true,{"$f":"IF(G5545<>\"\",INDIRECT(\"'\"&G5545&\"'!\"&H5545),\"\")","v":0},"EstRev 6-11","F128"]
[5541,{"$f":"'EstRev 6-11'!F129","v":0},5541,null,true,{"$f":"IF(G5546<>\"\",INDIRECT(\"'\"&G5546&\"'!\"&H5546),\"\")","v":0},"EstRev 6-11","F129"]
[5542,{"$nulls":3},true,{"$f":"IF(G5547<>\"\",INDIRECT(\"'\"&G5547&\"'!\"&H5547),\"\")","v":""}]
[5543,{"$f":"'EstRev 6-11'!F130","v":0},5543,null,true,{"$f":"IF(G5548<>\"\",INDIRECT(\"'\"&G5548&\"'!\"&H5548),\"\")","v":0},"EstRev 6-11","F130"]
[5544,{"$nulls":3},true,{"$f":"IF(G5549<>\"\",INDIRECT(\"'\"&G5549&\"'!\"&H5549),\"\")","v":""}]
[5545,{"$f":"'EstRev 6-11'!F131","v":0},5545,null,true,{"$f":"IF(G5550<>\"\",INDIRECT(\"'\"&G5550&\"'!\"&H5550),\"\")","v":0},"EstRev 6-11","F131"]
[5546,{"$nulls":3},true,{"$f":"IF(G5551<>\"\",INDIRECT(\"'\"&G5551&\"'!\"&H5551),\"\")","v":""}]
[5547,{"$nulls":3},true,{"$f":"IF(G5552<>\"\",INDIRECT(\"'\"&G5552&\"'!\"&H5552),\"\")","v":""}]
[5548,{"$f":"'EstRev 6-11'!F132","v":0},5548,null,true,{"$f":"IF(G5553<>\"\",INDIRECT(\"'\"&G5553&\"'!\"&H5553),\"\")","v":0},"EstRev 6-11","F132"]
[5549,{"$nulls":3},true,{"$f":"IF(G5554<>\"\",INDIRECT(\"'\"&G5554&\"'!\"&H5554),\"\")","v":""}]
[5550,{"$nulls":3},true,{"$f":"IF(G5555<>\"\",INDIRECT(\"'\"&G5555&\"'!\"&H5555),\"\")","v":""}]
[5551,{"$nulls":3},true,{"$f":"IF(G5556<>\"\",INDIRECT(\"'\"&G5556&\"'!\"&H5556),\"\")","v":""}]
[5552,{"$nulls":3},true,{"$f":"IF(G5557<>\"\",INDIRECT(\"'\"&G5557&\"'!\"&H5557),\"\")","v":""}]
[5553,{"$f":"'EstRev 6-11'!F134","v":0},5553,null,true,{"$f":"IF(G5558<>\"\",INDIRECT(\"'\"&G5558&\"'!\"&H5558),\"\")","v":0},"EstRev 6-11","F134"]
[5554,{"$f":"'EstRev 6-11'!F154","v":145000},-139446,null,true,{"$f":"IF(G5559<>\"\",INDIRECT(\"'\"&G5559&\"'!\"&H5559),\"\")","v":145000},"EstRev 6-11","F154"]
[5555,{"$nulls":3},true,{"$f":"IF(G5560<>\"\",INDIRECT(\"'\"&G5560&\"'!\"&H5560),\"\")","v":""}]
[5556,{"$f":"'EstRev 6-11'!F155","v":140000},-134444,null,true,{"$f":"IF(G5561<>\"\",INDIRECT(\"'\"&G5561&\"'!\"&H5561),\"\")","v":140000},"EstRev 6-11","F155"]
[5557,{"$f":"'EstRev 6-11'!F157","v":285000},-279443,null,true,{"$f":"IF(G5562<>\"\",INDIRECT(\"'\"&G5562&\"'!\"&H5562),\"\")","v":285000},"EstRev 6-11","F157"]
[5558,{"$f":"'EstRev 6-11'!F159","v":0},5558,null,true,{"$f":"IF(G5563<>\"\",INDIRECT(\"'\"&G5563&\"'!\"&H5563),\"\")","v":0},"EstRev 6-11","F159"]
[5559,{"$nulls":3},true,{"$f":"IF(G5564<>\"\",INDIRECT(\"'\"&G5564&\"'!\"&H5564),\"\")","v":""}]
[5560,{"$nulls":3},true,{"$f":"IF(G5565<>\"\",INDIRECT(\"'\"&G5565&\"'!\"&H5565),\"\")","v":""}]
[5561,{"$nulls":3},true,{"$f":"IF(G5566<>\"\",INDIRECT(\"'\"&G5566&\"'!\"&H5566),\"\")","v":""}]
[5562,{"$nulls":3},true,{"$f":"IF(G5567<>\"\",INDIRECT(\"'\"&G5567&\"'!\"&H5567),\"\")","v":""}]
[5563,{"$nulls":3},true,{"$f":"IF(G5568<>\"\",INDIRECT(\"'\"&G5568&\"'!\"&H5568),\"\")","v":""}]
[5564,{"$f":"'EstRev 6-11'!F160","v":0},5564,null,true,{"$f":"IF(G5569<>\"\",INDIRECT(\"'\"&G5569&\"'!\"&H5569),\"\")","v":0},"EstRev 6-11","F160"]
[5565,{"$nulls":3},{"$f":"F5570=B5570","v":true},{"$f":"IF(G5570<>\"\",INDIRECT(\"'\"&G5570&\"'!\"&H5570),\"\")","v":""}]
[5566,{"$f":"'EstRev 6-11'!F161","v":0},5566,null,true,{"$f":"IF(G5571<>\"\",INDIRECT(\"'\"&G5571&\"'!\"&H5571),\"\")","v":0},"EstRev 6-11","F161"]
[5567,{"$nulls":3},true,{"$f":"IF(G5572<>\"\",INDIRECT(\"'\"&G5572&\"'!\"&H5572),\"\")","v":""}]
[5568,{"$nulls":3},true,{"$f":"IF(G5573<>\"\",INDIRECT(\"'\"&G5573&\"'!\"&H5573),\"\")","v":""}]
[5569,null,null,"Closed 2018",true,{"$f":"IF(G5574<>\"\",INDIRECT(\"'\"&G5574&\"'!\"&H5574),\"\")","v":""}]
[5570,null,null,"Closed 2018",true,{"$f":"IF(G5575<>\"\",INDIRECT(\"'\"&G5575&\"'!\"&H5575),\"\")","v":""}]
[5571,{"$nulls":3},true,{"$f":"IF(G5576<>\"\",INDIRECT(\"'\"&G5576&\"'!\"&H5576),\"\")","v":""}]
[5572,{"$nulls":3},true,{"$f":"IF(G5577<>\"\",INDIRECT(\"'\"&G5577&\"'!\"&H5577),\"\")","v":""}]
[5573,{"$nulls":3},true,{"$f":"IF(G5578<>\"\",INDIRECT(\"'\"&G5578&\"'!\"&H5578),\"\")","v":""}]
[5574,{"$nulls":3},true,{"$f":"IF(G5579<>\"\",INDIRECT(\"'\"&G5579&\"'!\"&H5579),\"\")","v":""}]
[5575,{"$nulls":3},true,{"$f":"IF(G5580<>\"\",INDIRECT(\"'\"&G5580&\"'!\"&H5580),\"\")","v":""}]
[5576,null,null,"Closed 2008",true,{"$f":"IF(G5581<>\"\",INDIRECT(\"'\"&G5581&\"'!\"&H5581),\"\")","v":""}]
[5577,{"$nulls":3},true,{"$f":"IF(G5582<>\"\",INDIRECT(\"'\"&G5582&\"'!\"&H5582),\"\")","v":""}]
[5578,{"$nulls":3},true,{"$f":"IF(G5583<>\"\",INDIRECT(\"'\"&G5583&\"'!\"&H5583),\"\")","v":""}]
[5579,null,null,"Closed 2008",true,{"$f":"IF(G5584<>\"\",INDIRECT(\"'\"&G5584&\"'!\"&H5584),\"\")","v":""}]
[5580,null,null,"Closed 2008",true,{"$f":"IF(G5585<>\"\",INDIRECT(\"'\"&G5585&\"'!\"&H5585),\"\")","v":""}]
[5581,null,null,"Closed 2008",true,{"$f":"IF(G5586<>\"\",INDIRECT(\"'\"&G5586&\"'!\"&H5586),\"\")","v":""}]
[5582,null,null,"Closed 2008",true,{"$f":"IF(G5587<>\"\",INDIRECT(\"'\"&G5587&\"'!\"&H5587),\"\")","v":""}]
[5583,{"$f":"'EstRev 6-11'!F171","v":285000},{"$f":"A5588-B5588","v":-279417},null,true,{"$f":"IF(G5588<>\"\",INDIRECT(\"'\"&G5588&\"'!\"&H5588),\"\")","v":285000},"EstRev 6-11","F171"]
[5584,{"$nulls":3},true,{"$f":"IF(G5589<>\"\",INDIRECT(\"'\"&G5589&\"'!\"&H5589),\"\")","v":""}]
[5585,{"$nulls":3},true,{"$f":"IF(G5590<>\"\",INDIRECT(\"'\"&G5590&\"'!\"&H5590),\"\")","v":""}]
[5586,{"$nulls":3},true,{"$f":"IF(G5591<>\"\",INDIRECT(\"'\"&G5591&\"'!\"&H5591),\"\")","v":""}]
[5587,{"$nulls":3},true,{"$f":"IF(G5592<>\"\",INDIRECT(\"'\"&G5592&\"'!\"&H5592),\"\")","v":""}]
[5588,{"$nulls":3},true,{"$f":"IF(G5593<>\"\",INDIRECT(\"'\"&G5593&\"'!\"&H5593),\"\")","v":""}]
[5589,{"$nulls":3},true,{"$f":"IF(G5594<>\"\",INDIRECT(\"'\"&G5594&\"'!\"&H5594),\"\")","v":""}]
[5590,{"$nulls":3},true,{"$f":"IF(G5595<>\"\",INDIRECT(\"'\"&G5595&\"'!\"&H5595),\"\")","v":""}]
[5591,{"$nulls":3},true,{"$f":"IF(G5596<>\"\",INDIRECT(\"'\"&G5596&\"'!\"&H5596),\"\")","v":""}]
[5592,{"$f":"'EstRev 6-11'!F172","v":485000},-479408,null,true,{"$f":"IF(G5597<>\"\",INDIRECT(\"'\"&G5597&\"'!\"&H5597),\"\")","v":485000},"EstRev 6-11","F172"]
[5593,{"$f":"'EstRev 6-11'!F175","v":0},5593,null,true,{"$f":"IF(G5598<>\"\",INDIRECT(\"'\"&G5598&\"'!\"&H5598),\"\")","v":0},"EstRev 6-11","F175"]
[5594,{"$f":"'EstRev 6-11'!F177","v":0},5594,null,true,{"$f":"IF(G5599<>\"\",INDIRECT(\"'\"&G5599&\"'!\"&H5599),\"\")","v":0},"EstRev 6-11","F177"]
[5595,null,null,"Closed 2008",true,{"$f":"IF(G5600<>\"\",INDIRECT(\"'\"&G5600&\"'!\"&H5600),\"\")","v":""}]
[5596,null,null,"Closed 2008",true,{"$f":"IF(G5601<>\"\",INDIRECT(\"'\"&G5601&\"'!\"&H5601),\"\")","v":""}]
[5597,{"$f":"'EstRev 6-11'!F183","v":0},5597,null,true,{"$f":"IF(G5602<>\"\",INDIRECT(\"'\"&G5602&\"'!\"&H5602),\"\")","v":0},"EstRev 6-11","F183"]
[5598,{"$f":"'EstRev 6-11'!F186","v":0},5598,null,true,{"$f":"IF(G5603<>\"\",INDIRECT(\"'\"&G5603&\"'!\"&H5603),\"\")","v":0},"EstRev 6-11","F186"]
[5599,{"$nulls":3},true,{"$f":"IF(G5604<>\"\",INDIRECT(\"'\"&G5604&\"'!\"&H5604),\"\")","v":""}]
[5600,{"$nulls":3},true,{"$f":"IF(G5605<>\"\",INDIRECT(\"'\"&G5605&\"'!\"&H5605),\"\")","v":""}]
[5601,{"$nulls":3},true,{"$f":"IF(G5606<>\"\",INDIRECT(\"'\"&G5606&\"'!\"&H5606),\"\")","v":""}]
[5602,{"$nulls":3},true,{"$f":"IF(G5607<>\"\",INDIRECT(\"'\"&G5607&\"'!\"&H5607),\"\")","v":""}]
[5603,{"$f":"'EstRev 6-11'!F202","v":0},5603,null,true,{"$f":"IF(G5608<>\"\",INDIRECT(\"'\"&G5608&\"'!\"&H5608),\"\")","v":0},"EstRev 6-11","F202"]
[5604,{"$f":"'EstRev 6-11'!F203","v":0},5604,null,true,{"$f":"IF(G5609<>\"\",INDIRECT(\"'\"&G5609&\"'!\"&H5609),\"\")","v":0},"EstRev 6-11","F203"]
[5605,{"$nulls":3},true,{"$f":"IF(G5610<>\"\",INDIRECT(\"'\"&G5610&\"'!\"&H5610),\"\")","v":""}]
[5606,{"$nulls":3},true,{"$f":"IF(G5611<>\"\",INDIRECT(\"'\"&G5611&\"'!\"&H5611),\"\")","v":""}]
[5607,{"$nulls":3},true,{"$f":"IF(G5612<>\"\",INDIRECT(\"'\"&G5612&\"'!\"&H5612),\"\")","v":""}]
[5608,null,null,"Closed 2008",true,{"$f":"IF(G5613<>\"\",INDIRECT(\"'\"&G5613&\"'!\"&H5613),\"\")","v":""}]
[5609,null,null,"Closed 2008",true,{"$f":"IF(G5614<>\"\",INDIRECT(\"'\"&G5614&\"'!\"&H5614),\"\")","v":""}]
[5610,null,null,"Closed 2018",true,{"$f":"IF(G5615<>\"\",INDIRECT(\"'\"&G5615&\"'!\"&H5615),\"\")","v":""}]
[5611,{"$f":"'EstRev 6-11'!F204","v":0},5611,null,true,{"$f":"IF(G5616<>\"\",INDIRECT(\"'\"&G5616&\"'!\"&H5616),\"\")","v":0},"EstRev 6-11","F204"]
[5612,{"$f":"'EstRev 6-11'!F208","v":0},5612,null,true,{"$f":"IF(G5617<>\"\",INDIRECT(\"'\"&G5617&\"'!\"&H5617),\"\")","v":0},"EstRev 6-11","F208"]
[5613,null,null,"Closed 2008",true,{"$f":"IF(G5618<>\"\",INDIRECT(\"'\"&G5618&\"'!\"&H5618),\"\")","v":""}]
[5614,{"$nulls":3},true,{"$f":"IF(G5619<>\"\",INDIRECT(\"'\"&G5619&\"'!\"&H5619),\"\")","v":""}]
[5615,{"$nulls":3},true,{"$f":"IF(G5620<>\"\",INDIRECT(\"'\"&G5620&\"'!\"&H5620),\"\")","v":""}]
[5616,{"$f":"'EstRev 6-11'!F206","v":0},5616,null,true,{"$f":"IF(G5621<>\"\",INDIRECT(\"'\"&G5621&\"'!\"&H5621),\"\")","v":0},"EstRev 6-11","F206"]
[5617,{"$nulls":3},true,{"$f":"IF(G5622<>\"\",INDIRECT(\"'\"&G5622&\"'!\"&H5622),\"\")","v":""}]
[5618,{"$nulls":3},true,{"$f":"IF(G5623<>\"\",INDIRECT(\"'\"&G5623&\"'!\"&H5623),\"\")","v":""}]
[5619,{"$nulls":3},true,{"$f":"IF(G5624<>\"\",INDIRECT(\"'\"&G5624&\"'!\"&H5624),\"\")","v":""}]
[5620,{"$nulls":3},true,{"$f":"IF(G5625<>\"\",INDIRECT(\"'\"&G5625&\"'!\"&H5625),\"\")","v":""}]
[5621,{"$nulls":3},true,{"$f":"IF(G5626<>\"\",INDIRECT(\"'\"&G5626&\"'!\"&H5626),\"\")","v":""}]
[5622,{"$nulls":3},true,{"$f":"IF(G5627<>\"\",INDIRECT(\"'\"&G5627&\"'!\"&H5627),\"\")","v":""}]
[5623,{"$nulls":3},true,{"$f":"IF(G5628<>\"\",INDIRECT(\"'\"&G5628&\"'!\"&H5628),\"\")","v":""}]
[5624,{"$nulls":3},true,{"$f":"IF(G5629<>\"\",INDIRECT(\"'\"&G5629&\"'!\"&H5629),\"\")","v":""}]
[5625,{"$nulls":3},true,{"$f":"IF(G5630<>\"\",INDIRECT(\"'\"&G5630&\"'!\"&H5630),\"\")","v":""}]
[5626,{"$nulls":3},true,{"$f":"IF(G5631<>\"\",INDIRECT(\"'\"&G5631&\"'!\"&H5631),\"\")","v":""}]
[5627,{"$nulls":3},true,{"$f":"IF(G5632<>\"\",INDIRECT(\"'\"&G5632&\"'!\"&H5632),\"\")","v":""}]
[5628,{"$nulls":3},true,{"$f":"IF(G5633<>\"\",INDIRECT(\"'\"&G5633&\"'!\"&H5633),\"\")","v":""}]
[5629,{"$nulls":3},{"$f":"F5634=B5634","v":true},{"$f":"IF(G5634<>\"\",INDIRECT(\"'\"&G5634&\"'!\"&H5634),\"\")","v":""}]
[5630,{"$f":"'EstRev 6-11'!F214","v":0},5630,null,true,{"$f":"IF(G5635<>\"\",INDIRECT(\"'\"&G5635&\"'!\"&H5635),\"\")","v":0},"EstRev 6-11","F214"]
[5631,{"$f":"'EstRev 6-11'!F215","v":0},5631,null,true,{"$f":"IF(G5636<>\"\",INDIRECT(\"'\"&G5636&\"'!\"&H5636),\"\")","v":0},"EstRev 6-11","F215"]
[5632,{"$nulls":3},true,{"$f":"IF(G5637<>\"\",INDIRECT(\"'\"&G5637&\"'!\"&H5637),\"\")","v":""}]
[5633,{"$nulls":3},true,{"$f":"IF(G5638<>\"\",INDIRECT(\"'\"&G5638&\"'!\"&H5638),\"\")","v":""}]
[5634,{"$f":"'EstRev 6-11'!F216","v":0},5634,null,true,{"$f":"IF(G5639<>\"\",INDIRECT(\"'\"&G5639&\"'!\"&H5639),\"\")","v":0},"EstRev 6-11","F216"]
[5635,{"$f":"'EstRev 6-11'!F217","v":0},{"$f":"A5640-B5640","v":5635},null,true,{"$f":"IF(G5640<>\"\",INDIRECT(\"'\"&G5640&\"'!\"&H5640),\"\")","v":0},"EstRev 6-11","F217"]
[5636,{"$f":"'EstRev 6-11'!F218","v":0},5636,null,true,{"$f":"IF(G5641<>\"\",INDIRECT(\"'\"&G5641&\"'!\"&H5641),\"\")","v":0},"EstRev 6-11","F218"]
[5637,{"$nulls":3},true,{"$f":"IF(G5642<>\"\",INDIRECT(\"'\"&G5642&\"'!\"&H5642),\"\")","v":""}]
[5638,{"$nulls":3},true,{"$f":"IF(G5643<>\"\",INDIRECT(\"'\"&G5643&\"'!\"&H5643),\"\")","v":""}]
[5639,{"$nulls":3},true,{"$f":"IF(G5644<>\"\",INDIRECT(\"'\"&G5644&\"'!\"&H5644),\"\")","v":""}]
[5640,{"$nulls":3},true,{"$f":"IF(G5645<>\"\",INDIRECT(\"'\"&G5645&\"'!\"&H5645),\"\")","v":""}]
[5641,{"$nulls":3},true,{"$f":"IF(G5646<>\"\",INDIRECT(\"'\"&G5646&\"'!\"&H5646),\"\")","v":""}]
[5642,{"$f":"'EstRev 6-11'!F220","v":0},5642,null,true,{"$f":"IF(G5647<>\"\",INDIRECT(\"'\"&G5647&\"'!\"&H5647),\"\")","v":0},"EstRev 6-11","F220"]
[5643,{"$nulls":3},true,{"$f":"IF(G5648<>\"\",INDIRECT(\"'\"&G5648&\"'!\"&H5648),\"\")","v":""}]
[5644,{"$f":"'EstRev 6-11'!F258","v":0},5644,null,true,{"$f":"IF(G5649<>\"\",INDIRECT(\"'\"&G5649&\"'!\"&H5649),\"\")","v":0},"EstRev 6-11","F258"]
[5645,{"$nulls":3},true,{"$f":"IF(G5650<>\"\",INDIRECT(\"'\"&G5650&\"'!\"&H5650),\"\")","v":""}]
[5646,null,null,"Closed 2018",true,{"$f":"IF(G5651<>\"\",INDIRECT(\"'\"&G5651&\"'!\"&H5651),\"\")","v":""}]
[5647,{"$f":"'EstRev 6-11'!F260","v":0},5647,null,true,{"$f":"IF(G5652<>\"\",INDIRECT(\"'\"&G5652&\"'!\"&H5652),\"\")","v":0},"EstRev 6-11","F260"]
[5648,{"$nulls":3},true,{"$f":"IF(G5653<>\"\",INDIRECT(\"'\"&G5653&\"'!\"&H5653),\"\")","v":""}]
[5649,{"$f":"'EstRev 6-11'!F261","v":0},5649,null,true,{"$f":"IF(G5654<>\"\",INDIRECT(\"'\"&G5654&\"'!\"&H5654),\"\")","v":0},"EstRev 6-11","F261"]
[5650,{"$nulls":3},true,{"$f":"IF(G5655<>\"\",INDIRECT(\"'\"&G5655&\"'!\"&H5655),\"\")","v":""}]
[5651,null,null,"Closed 2008",true,{"$f":"IF(G5656<>\"\",INDIRECT(\"'\"&G5656&\"'!\"&H5656),\"\")","v":""}]
[5652,{"$f":"'EstRev 6-11'!F270","v":0},5652,null,true,{"$f":"IF(G5657<>\"\",INDIRECT(\"'\"&G5657&\"'!\"&H5657),\"\")","v":0},"EstRev 6-11","F270"]
[5653,{"$nulls":3},true,{"$f":"IF(G5658<>\"\",INDIRECT(\"'\"&G5658&\"'!\"&H5658),\"\")","v":""}]
[5654,{"$nulls":3},true,{"$f":"IF(G5659<>\"\",INDIRECT(\"'\"&G5659&\"'!\"&H5659),\"\")","v":""}]
[5655,{"$nulls":3},true,{"$f":"IF(G5660<>\"\",INDIRECT(\"'\"&G5660&\"'!\"&H5660),\"\")","v":""}]
[5656,{"$nulls":3},true,{"$f":"IF(G5661<>\"\",INDIRECT(\"'\"&G5661&\"'!\"&H5661),\"\")","v":""}]
[5657,{"$nulls":3},true,{"$f":"IF(G5662<>\"\",INDIRECT(\"'\"&G5662&\"'!\"&H5662),\"\")","v":""}]
[5658,{"$f":"'EstRev 6-11'!F271","v":0},5658,null,true,{"$f":"IF(G5663<>\"\",INDIRECT(\"'\"&G5663&\"'!\"&H5663),\"\")","v":0},"EstRev 6-11","F271"]
[5659,{"$f":"'EstRev 6-11'!F272","v":510000},-504341,null,true,{"$f":"IF(G5664<>\"\",INDIRECT(\"'\"&G5664&\"'!\"&H5664),\"\")","v":510000},"EstRev 6-11","F272"]
[5660,{"$f":"'EstRev 6-11'!G5","v":106000},-100340,null,true,{"$f":"IF(G5665<>\"\",INDIRECT(\"'\"&G5665&\"'!\"&H5665),\"\")","v":106000},"EstRev 6-11","G5"]
[5661,{"$f":"'EstRev 6-11'!G7","v":0},5661,null,true,{"$f":"IF(G5666<>\"\",INDIRECT(\"'\"&G5666&\"'!\"&H5666),\"\")","v":0},"EstRev 6-11","G7"]
[5662,{"$f":"'EstRev 6-11'!G8","v":254000},-248338,null,true,{"$f":"IF(G5667<>\"\",INDIRECT(\"'\"&G5667&\"'!\"&H5667),\"\")","v":254000},"EstRev 6-11","G8"]
[5663,{"$f":"'EstRev 6-11'!G11","v":0},5663,null,true,{"$f":"IF(G5668<>\"\",INDIRECT(\"'\"&G5668&\"'!\"&H5668),\"\")","v":0},"EstRev 6-11","G11"]
[5664,{"$f":"'EstRev 6-11'!G12","v":360000},-354336,null,true,{"$f":"IF(G5669<>\"\",INDIRECT(\"'\"&G5669&\"'!\"&H5669),\"\")","v":360000},"EstRev 6-11","G12"]
[5665,{"$f":"'EstRev 6-11'!G14","v":0},5665,null,true,{"$f":"IF(G5670<>\"\",INDIRECT(\"'\"&G5670&\"'!\"&H5670),\"\")","v":0},"EstRev 6-11","G14"]
[5666,{"$f":"'EstRev 6-11'!G15","v":0},5666,null,true,{"$f":"IF(G5671<>\"\",INDIRECT(\"'\"&G5671&\"'!\"&H5671),\"\")","v":0},"EstRev 6-11","G15"]
[5667,{"$f":"'EstRev 6-11'!G16","v":30000},-24333,null,true,{"$f":"IF(G5672<>\"\",INDIRECT(\"'\"&G5672&\"'!\"&H5672),\"\")","v":30000},"EstRev 6-11","G16"]
[5668,{"$f":"'EstRev 6-11'!G17","v":0},5668,null,true,{"$f":"IF(G5673<>\"\",INDIRECT(\"'\"&G5673&\"'!\"&H5673),\"\")","v":0},"EstRev 6-11","G17"]
[5669,{"$f":"'EstRev 6-11'!G18","v":30000},-24331,null,true,{"$f":"IF(G5674<>\"\",INDIRECT(\"'\"&G5674&\"'!\"&H5674),\"\")","v":30000},"EstRev 6-11","G18"]
[5670,{"$f":"'EstRev 6-11'!G65","v":0},5670,null,true,{"$f":"IF(G5675<>\"\",INDIRECT(\"'\"&G5675&\"'!\"&H5675),\"\")","v":0},"EstRev 6-11","G65"]
[5671,{"$f":"'EstRev 6-11'!G66","v":0},5671,null,true,{"$f":"IF(G5676<>\"\",INDIRECT(\"'\"&G5676&\"'!\"&H5676),\"\")","v":0},"EstRev 6-11","G66"]
[5672,{"$f":"'EstRev 6-11'!G67","v":0},5672,null,true,{"$f":"IF(G5677<>\"\",INDIRECT(\"'\"&G5677&\"'!\"&H5677),\"\")","v":0},"EstRev 6-11","G67"]
[5673,{"$f":"'EstRev 6-11'!G98","v":0},5673,null,true,{"$f":"IF(G5678<>\"\",INDIRECT(\"'\"&G5678&\"'!\"&H5678),\"\")","v":0},"EstRev 6-11","G98"]
[5674,{"$f":"'EstRev 6-11'!G101","v":0},5674,null,true,{"$f":"IF(G5679<>\"\",INDIRECT(\"'\"&G5679&\"'!\"&H5679),\"\")","v":0},"EstRev 6-11","G101"]
[5675,{"$f":"'EstRev 6-11'!G109","v":0},5675,null,true,{"$f":"IF(G5680<>\"\",INDIRECT(\"'\"&G5680&\"'!\"&H5680),\"\")","v":0},"EstRev 6-11","G109"]
[5676,{"$f":"'EstRev 6-11'!G110","v":0},5676,null,true,{"$f":"IF(G5681<>\"\",INDIRECT(\"'\"&G5681&\"'!\"&H5681),\"\")","v":0},"EstRev 6-11","G110"]
[5677,{"$f":"'EstRev 6-11'!G114","v":0},5677,null,true,{"$f":"IF(G5682<>\"\",INDIRECT(\"'\"&G5682&\"'!\"&H5682),\"\")","v":0},"EstRev 6-11","G114"]
[5678,{"$f":"'EstRev 6-11'!G115","v":0},5678,null,true,{"$f":"IF(G5683<>\"\",INDIRECT(\"'\"&G5683&\"'!\"&H5683),\"\")","v":0},"EstRev 6-11","G115"]
[5679,{"$f":"'EstRev 6-11'!G116","v":0},5679,null,true,{"$f":"IF(G5684<>\"\",INDIRECT(\"'\"&G5684&\"'!\"&H5684),\"\")","v":0},"EstRev 6-11","G116"]
[5680,{"$f":"'EstRev 6-11'!G117","v":0},5680,null,true,{"$f":"IF(G5685<>\"\",INDIRECT(\"'\"&G5685&\"'!\"&H5685),\"\")","v":0},"EstRev 6-11","G117"]
[5681,{"$f":"'EstRev 6-11'!G120","v":215000},-209319,null,true,{"$f":"IF(G5686<>\"\",INDIRECT(\"'\"&G5686&\"'!\"&H5686),\"\")","v":215000},"EstRev 6-11","G120"]
[5682,{"$f":"'EstRev 6-11'!G121","v":0},5682,null,true,{"$f":"IF(G5687<>\"\",INDIRECT(\"'\"&G5687&\"'!\"&H5687),\"\")","v":0},"EstRev 6-11","G121"]
[5683,{"$nulls":3},true,{"$f":"IF(G5688<>\"\",INDIRECT(\"'\"&G5688&\"'!\"&H5688),\"\")","v":""}]
[5684,{"$nulls":3},true,{"$f":"IF(G5689<>\"\",INDIRECT(\"'\"&G5689&\"'!\"&H5689),\"\")","v":""}]
[5685,{"$nulls":3},true,{"$f":"IF(G5690<>\"\",INDIRECT(\"'\"&G5690&\"'!\"&H5690),\"\")","v":""}]
[5686,{"$nulls":3},true,{"$f":"IF(G5691<>\"\",INDIRECT(\"'\"&G5691&\"'!\"&H5691),\"\")","v":""}]
[5687,{"$f":"'EstRev 6-11'!G124","v":215000},-209313,null,true,{"$f":"IF(G5692<>\"\",INDIRECT(\"'\"&G5692&\"'!\"&H5692),\"\")","v":215000},"EstRev 6-11","G124"]
[5688,{"$f":"'EstRev 6-11'!G136","v":0},5688,null,true,{"$f":"IF(G5693<>\"\",INDIRECT(\"'\"&G5693&\"'!\"&H5693),\"\")","v":0},"EstRev 6-11","G136"]
[5689,{"$nulls":3},true,{"$f":"IF(G5694<>\"\",INDIRECT(\"'\"&G5694&\"'!\"&H5694),\"\")","v":""}]
[5690,null,null,"Closed 2008",true,{"$f":"IF(G5695<>\"\",INDIRECT(\"'\"&G5695&\"'!\"&H5695),\"\")","v":""}]
[5691,{"$f":"'EstRev 6-11'!G143","v":0},5691,null,true,{"$f":"IF(G5696<>\"\",INDIRECT(\"'\"&G5696&\"'!\"&H5696),\"\")","v":0},"EstRev 6-11","G143"]
[5692,{"$nulls":3},true,{"$f":"IF(G5697<>\"\",INDIRECT(\"'\"&G5697&\"'!\"&H5697),\"\")","v":""}]
[5693,{"$f":"'EstRev 6-11'!G145","v":0},5693,null,{"$f":"F5698=B5698","v":true},{"$f":"IF(G5698<>\"\",INDIRECT(\"'\"&G5698&\"'!\"&H5698),\"\")","v":0},"EstRev 6-11","G145"]
[5694,{"$f":"'EstRev 6-11'!G146","v":0},5694,null,true,{"$f":"IF(G5699<>\"\",INDIRECT(\"'\"&G5699&\"'!\"&H5699),\"\")","v":0},"EstRev 6-11","G146"]
[5695,{"$f":"'EstRev 6-11'!G147","v":0},5695,null,true,{"$f":"IF(G5700<>\"\",INDIRECT(\"'\"&G5700&\"'!\"&H5700),\"\")","v":0},"EstRev 6-11","G147"]
[5696,{"$f":"'EstRev 6-11'!G159","v":0},5696,null,true,{"$f":"IF(G5701<>\"\",INDIRECT(\"'\"&G5701&\"'!\"&H5701),\"\")","v":0},"EstRev 6-11","G159"]
[5697,{"$nulls":3},true,{"$f":"IF(G5702<>\"\",INDIRECT(\"'\"&G5702&\"'!\"&H5702),\"\")","v":""}]
[5698,{"$nulls":3},true,{"$f":"IF(G5703<>\"\",INDIRECT(\"'\"&G5703&\"'!\"&H5703),\"\")","v":""}]
[5699,{"$nulls":3},true,{"$f":"IF(G5704<>\"\",INDIRECT(\"'\"&G5704&\"'!\"&H5704),\"\")","v":""}]
[5700,{"$nulls":3},true,{"$f":"IF(G5705<>\"\",INDIRECT(\"'\"&G5705&\"'!\"&H5705),\"\")","v":""}]
[5701,{"$nulls":3},true,{"$f":"IF(G5706<>\"\",INDIRECT(\"'\"&G5706&\"'!\"&H5706),\"\")","v":""}]
[5702,{"$f":"'EstRev 6-11'!G160","v":0},{"$f":"A5707-B5707","v":5702},null,true,{"$f":"IF(G5707<>\"\",INDIRECT(\"'\"&G5707&\"'!\"&H5707),\"\")","v":0},"EstRev 6-11","G160"]
[5703,{"$nulls":3},true,{"$f":"IF(G5708<>\"\",INDIRECT(\"'\"&G5708&\"'!\"&H5708),\"\")","v":""}]
[5704,{"$f":"'EstRev 6-11'!G161","v":0},5704,null,true,{"$f":"IF(G5709<>\"\",INDIRECT(\"'\"&G5709&\"'!\"&H5709),\"\")","v":0},"EstRev 6-11","G161"]
[5705,{"$nulls":3},true,{"$f":"IF(G5710<>\"\",INDIRECT(\"'\"&G5710&\"'!\"&H5710),\"\")","v":""}]
[5706,null,null,"Closed 2018",true,{"$f":"IF(G5711<>\"\",INDIRECT(\"'\"&G5711&\"'!\"&H5711),\"\")","v":""}]
[5707,null,null,"Closed 2018",true,{"$f":"IF(G5712<>\"\",INDIRECT(\"'\"&G5712&\"'!\"&H5712),\"\")","v":""}]
[5708,{"$nulls":3},true,{"$f":"IF(G5713<>\"\",INDIRECT(\"'\"&G5713&\"'!\"&H5713),\"\")","v":""}]
[5709,{"$f":"'EstRev 6-11'!G171","v":0},5709,null,true,{"$f":"IF(G5714<>\"\",INDIRECT(\"'\"&G5714&\"'!\"&H5714),\"\")","v":0},"EstRev 6-11","G171"]
[5710,{"$nulls":3},true,{"$f":"IF(G5715<>\"\",INDIRECT(\"'\"&G5715&\"'!\"&H5715),\"\")","v":""}]
[5711,{"$nulls":3},true,{"$f":"IF(G5716<>\"\",INDIRECT(\"'\"&G5716&\"'!\"&H5716),\"\")","v":""}]
[5712,{"$nulls":3},true,{"$f":"IF(G5717<>\"\",INDIRECT(\"'\"&G5717&\"'!\"&H5717),\"\")","v":""}]
[5713,{"$nulls":3},true,{"$f":"IF(G5718<>\"\",INDIRECT(\"'\"&G5718&\"'!\"&H5718),\"\")","v":""}]
[5714,{"$nulls":3},true,{"$f":"IF(G5719<>\"\",INDIRECT(\"'\"&G5719&\"'!\"&H5719),\"\")","v":""}]
[5715,{"$nulls":3},true,{"$f":"IF(G5720<>\"\",INDIRECT(\"'\"&G5720&\"'!\"&H5720),\"\")","v":""}]
[5716,{"$nulls":3},true,{"$f":"IF(G5721<>\"\",INDIRECT(\"'\"&G5721&\"'!\"&H5721),\"\")","v":""}]
[5717,{"$f":"'EstRev 6-11'!G172","v":215000},-209283,null,true,{"$f":"IF(G5722<>\"\",INDIRECT(\"'\"&G5722&\"'!\"&H5722),\"\")","v":215000},"EstRev 6-11","G172"]
[5718,{"$f":"'EstRev 6-11'!G175","v":0},5718,null,true,{"$f":"IF(G5723<>\"\",INDIRECT(\"'\"&G5723&\"'!\"&H5723),\"\")","v":0},"EstRev 6-11","G175"]
[5719,{"$f":"'EstRev 6-11'!G177","v":0},5719,null,true,{"$f":"IF(G5724<>\"\",INDIRECT(\"'\"&G5724&\"'!\"&H5724),\"\")","v":0},"EstRev 6-11","G177"]
[5720,null,null,"Closed 2008",true,{"$f":"IF(G5725<>\"\",INDIRECT(\"'\"&G5725&\"'!\"&H5725),\"\")","v":""}]
[5721,null,null,"Closed 2008",true,{"$f":"IF(G5726<>\"\",INDIRECT(\"'\"&G5726&\"'!\"&H5726),\"\")","v":""}]
[5722,null,null,"Closed 2008",true,{"$f":"IF(G5727<>\"\",INDIRECT(\"'\"&G5727&\"'!\"&H5727),\"\")","v":""}]
[5723,{"$f":"'EstRev 6-11'!G183","v":0},5723,null,true,{"$f":"IF(G5728<>\"\",INDIRECT(\"'\"&G5728&\"'!\"&H5728),\"\")","v":0},"EstRev 6-11","G183"]
[5724,{"$f":"'EstRev 6-11'!G186","v":0},5724,null,true,{"$f":"IF(G5729<>\"\",INDIRECT(\"'\"&G5729&\"'!\"&H5729),\"\")","v":0},"EstRev 6-11","G186"]
[5725,{"$nulls":3},true,{"$f":"IF(G5730<>\"\",INDIRECT(\"'\"&G5730&\"'!\"&H5730),\"\")","v":""}]
[5726,{"$nulls":3},true,{"$f":"IF(G5731<>\"\",INDIRECT(\"'\"&G5731&\"'!\"&H5731),\"\")","v":""}]
[5727,{"$nulls":3},true,{"$f":"IF(G5732<>\"\",INDIRECT(\"'\"&G5732&\"'!\"&H5732),\"\")","v":""}]
[5728,{"$nulls":3},true,{"$f":"IF(G5733<>\"\",INDIRECT(\"'\"&G5733&\"'!\"&H5733),\"\")","v":""}]
[5729,{"$f":"'EstRev 6-11'!G202","v":0},5729,null,true,{"$f":"IF(G5734<>\"\",INDIRECT(\"'\"&G5734&\"'!\"&H5734),\"\")","v":0},"EstRev 6-11","G202"]
[5730,{"$f":"'EstRev 6-11'!G203","v":0},5730,null,true,{"$f":"IF(G5735<>\"\",INDIRECT(\"'\"&G5735&\"'!\"&H5735),\"\")","v":0},"EstRev 6-11","G203"]
[5731,{"$nulls":3},true,{"$f":"IF(G5736<>\"\",INDIRECT(\"'\"&G5736&\"'!\"&H5736),\"\")","v":""}]
[5732,{"$nulls":3},true,{"$f":"IF(G5737<>\"\",INDIRECT(\"'\"&G5737&\"'!\"&H5737),\"\")","v":""}]
[5733,{"$nulls":3},true,{"$f":"IF(G5738<>\"\",INDIRECT(\"'\"&G5738&\"'!\"&H5738),\"\")","v":""}]
[5734,null,null,"Closed 2008",true,{"$f":"IF(G5739<>\"\",INDIRECT(\"'\"&G5739&\"'!\"&H5739),\"\")","v":""}]
[5735,null,null,"Closed 2008",true,{"$f":"IF(G5740<>\"\",INDIRECT(\"'\"&G5740&\"'!\"&H5740),\"\")","v":""}]
[5736,null,null,"Closed 2018",true,{"$f":"IF(G5741<>\"\",INDIRECT(\"'\"&G5741&\"'!\"&H5741),\"\")","v":""}]
[5737,{"$f":"'EstRev 6-11'!G204","v":0},5737,null,true,{"$f":"IF(G5742<>\"\",INDIRECT(\"'\"&G5742&\"'!\"&H5742),\"\")","v":0},"EstRev 6-11","G204"]
[5738,{"$f":"'EstRev 6-11'!G208","v":0},5738,null,true,{"$f":"IF(G5743<>\"\",INDIRECT(\"'\"&G5743&\"'!\"&H5743),\"\")","v":0},"EstRev 6-11","G208"]
[5739,null,null,"Closed 2008",true,{"$f":"IF(G5744<>\"\",INDIRECT(\"'\"&G5744&\"'!\"&H5744),\"\")","v":""}]
[5740,{"$nulls":3},true,{"$f":"IF(G5745<>\"\",INDIRECT(\"'\"&G5745&\"'!\"&H5745),\"\")","v":""}]
[5741,{"$nulls":3},true,{"$f":"IF(G5746<>\"\",INDIRECT(\"'\"&G5746&\"'!\"&H5746),\"\")","v":""}]
[5742,{"$f":"'EstRev 6-11'!G206","v":0},5742,null,true,{"$f":"IF(G5747<>\"\",INDIRECT(\"'\"&G5747&\"'!\"&H5747),\"\")","v":0},"EstRev 6-11","G206"]
[5743,{"$nulls":3},true,{"$f":"IF(G5748<>\"\",INDIRECT(\"'\"&G5748&\"'!\"&H5748),\"\")","v":""}]
[5744,{"$nulls":3},true,{"$f":"IF(G5749<>\"\",INDIRECT(\"'\"&G5749&\"'!\"&H5749),\"\")","v":""}]
[5745,{"$nulls":3},true,{"$f":"IF(G5750<>\"\",INDIRECT(\"'\"&G5750&\"'!\"&H5750),\"\")","v":""}]
[5746,{"$nulls":3},true,{"$f":"IF(G5751<>\"\",INDIRECT(\"'\"&G5751&\"'!\"&H5751),\"\")","v":""}]
[5747,{"$nulls":3},true,{"$f":"IF(G5752<>\"\",INDIRECT(\"'\"&G5752&\"'!\"&H5752),\"\")","v":""}]
[5748,{"$nulls":3},true,{"$f":"IF(G5753<>\"\",INDIRECT(\"'\"&G5753&\"'!\"&H5753),\"\")","v":""}]
[5749,{"$nulls":3},true,{"$f":"IF(G5754<>\"\",INDIRECT(\"'\"&G5754&\"'!\"&H5754),\"\")","v":""}]
[5750,{"$nulls":3},true,{"$f":"IF(G5755<>\"\",INDIRECT(\"'\"&G5755&\"'!\"&H5755),\"\")","v":""}]
[5751,{"$nulls":3},true,{"$f":"IF(G5756<>\"\",INDIRECT(\"'\"&G5756&\"'!\"&H5756),\"\")","v":""}]
[5752,{"$nulls":3},true,{"$f":"IF(G5757<>\"\",INDIRECT(\"'\"&G5757&\"'!\"&H5757),\"\")","v":""}]
[5753,{"$nulls":3},true,{"$f":"IF(G5758<>\"\",INDIRECT(\"'\"&G5758&\"'!\"&H5758),\"\")","v":""}]
[5754,{"$nulls":3},true,{"$f":"IF(G5759<>\"\",INDIRECT(\"'\"&G5759&\"'!\"&H5759),\"\")","v":""}]
[5755,{"$nulls":3},true,{"$f":"IF(G5760<>\"\",INDIRECT(\"'\"&G5760&\"'!\"&H5760),\"\")","v":""}]
[5756,{"$f":"'EstRev 6-11'!G214","v":0},5756,null,true,{"$f":"IF(G5761<>\"\",INDIRECT(\"'\"&G5761&\"'!\"&H5761),\"\")","v":0},"EstRev 6-11","G214"]
[5757,{"$f":"'EstRev 6-11'!G215","v":0},5757,null,{"$f":"F5762=B5762","v":true},{"$f":"IF(G5762<>\"\",INDIRECT(\"'\"&G5762&\"'!\"&H5762),\"\")","v":0},"EstRev 6-11","G215"]
[5758,{"$nulls":3},true,{"$f":"IF(G5763<>\"\",INDIRECT(\"'\"&G5763&\"'!\"&H5763),\"\")","v":""}]
[5759,{"$nulls":3},true,{"$f":"IF(G5764<>\"\",INDIRECT(\"'\"&G5764&\"'!\"&H5764),\"\")","v":""}]
[5760,{"$f":"'EstRev 6-11'!G216","v":0},5760,null,true,{"$f":"IF(G5765<>\"\",INDIRECT(\"'\"&G5765&\"'!\"&H5765),\"\")","v":0},"EstRev 6-11","G216"]
[5761,{"$f":"'EstRev 6-11'!G217","v":0},5761,null,true,{"$f":"IF(G5766<>\"\",INDIRECT(\"'\"&G5766&\"'!\"&H5766),\"\")","v":0},"EstRev 6-11","G217"]
[5762,{"$f":"'EstRev 6-11'!G218","v":0},5762,null,true,{"$f":"IF(G5767<>\"\",INDIRECT(\"'\"&G5767&\"'!\"&H5767),\"\")","v":0},"EstRev 6-11","G218"]
[5763,{"$nulls":3},true,{"$f":"IF(G5768<>\"\",INDIRECT(\"'\"&G5768&\"'!\"&H5768),\"\")","v":""}]
[5764,{"$nulls":3},true,{"$f":"IF(G5769<>\"\",INDIRECT(\"'\"&G5769&\"'!\"&H5769),\"\")","v":""}]
[5765,{"$nulls":3},true,{"$f":"IF(G5770<>\"\",INDIRECT(\"'\"&G5770&\"'!\"&H5770),\"\")","v":""}]
[5766,{"$nulls":3},true,{"$f":"IF(G5771<>\"\",INDIRECT(\"'\"&G5771&\"'!\"&H5771),\"\")","v":""}]
[5767,{"$nulls":3},true,{"$f":"IF(G5772<>\"\",INDIRECT(\"'\"&G5772&\"'!\"&H5772),\"\")","v":""}]
[5768,{"$f":"'EstRev 6-11'!G220","v":0},{"$f":"A5773-B5773","v":5768},null,true,{"$f":"IF(G5773<>\"\",INDIRECT(\"'\"&G5773&\"'!\"&H5773),\"\")","v":0},"EstRev 6-11","G220"]
[5769,{"$nulls":3},true,{"$f":"IF(G5774<>\"\",INDIRECT(\"'\"&G5774&\"'!\"&H5774),\"\")","v":""}]
[5770,{"$nulls":3},true,{"$f":"IF(G5775<>\"\",INDIRECT(\"'\"&G5775&\"'!\"&H5775),\"\")","v":""}]
[5771,{"$nulls":3},true,{"$f":"IF(G5776<>\"\",INDIRECT(\"'\"&G5776&\"'!\"&H5776),\"\")","v":""}]
[5772,{"$nulls":3},true,{"$f":"IF(G5777<>\"\",INDIRECT(\"'\"&G5777&\"'!\"&H5777),\"\")","v":""}]
[5773,null,null,"Closed 2008",true,{"$f":"IF(G5778<>\"\",INDIRECT(\"'\"&G5778&\"'!\"&H5778),\"\")","v":""}]
[5774,{"$nulls":3},true,{"$f":"IF(G5779<>\"\",INDIRECT(\"'\"&G5779&\"'!\"&H5779),\"\")","v":""}]
[5775,{"$nulls":3},true,{"$f":"IF(G5780<>\"\",INDIRECT(\"'\"&G5780&\"'!\"&H5780),\"\")","v":""}]
[5776,{"$nulls":3},true,{"$f":"IF(G5781<>\"\",INDIRECT(\"'\"&G5781&\"'!\"&H5781),\"\")","v":""}]
[5777,{"$nulls":3},true,{"$f":"IF(G5782<>\"\",INDIRECT(\"'\"&G5782&\"'!\"&H5782),\"\")","v":""}]
[5778,null,null,"Closed 2008",true,{"$f":"IF(G5783<>\"\",INDIRECT(\"'\"&G5783&\"'!\"&H5783),\"\")","v":""}]
[5779,null,null,"Closed 2008",true,{"$f":"IF(G5784<>\"\",INDIRECT(\"'\"&G5784&\"'!\"&H5784),\"\")","v":""}]
[5780,{"$nulls":3},true,{"$f":"IF(G5785<>\"\",INDIRECT(\"'\"&G5785&\"'!\"&H5785),\"\")","v":""}]
[5781,{"$nulls":3},true,{"$f":"IF(G5786<>\"\",INDIRECT(\"'\"&G5786&\"'!\"&H5786),\"\")","v":""}]
[5782,{"$nulls":3},true,{"$f":"IF(G5787<>\"\",INDIRECT(\"'\"&G5787&\"'!\"&H5787),\"\")","v":""}]
[5783,{"$f":"'EstRev 6-11'!G222","v":0},5783,null,true,{"$f":"IF(G5788<>\"\",INDIRECT(\"'\"&G5788&\"'!\"&H5788),\"\")","v":0},"EstRev 6-11","G222"]
[5784,{"$nulls":3},true,{"$f":"IF(G5789<>\"\",INDIRECT(\"'\"&G5789&\"'!\"&H5789),\"\")","v":""}]
[5785,{"$nulls":3},true,{"$f":"IF(G5790<>\"\",INDIRECT(\"'\"&G5790&\"'!\"&H5790),\"\")","v":""}]
[5786,{"$f":"'EstRev 6-11'!G224","v":0},5786,null,true,{"$f":"IF(G5791<>\"\",INDIRECT(\"'\"&G5791&\"'!\"&H5791),\"\")","v":0},"EstRev 6-11","G224"]
[5787,{"$nulls":3},true,{"$f":"IF(G5792<>\"\",INDIRECT(\"'\"&G5792&\"'!\"&H5792),\"\")","v":""}]
[5788,{"$nulls":3},true,{"$f":"IF(G5793<>\"\",INDIRECT(\"'\"&G5793&\"'!\"&H5793),\"\")","v":""}]
[5789,{"$nulls":3},true,{"$f":"IF(G5794<>\"\",INDIRECT(\"'\"&G5794&\"'!\"&H5794),\"\")","v":""}]
[5790,{"$nulls":3},true,{"$f":"IF(G5795<>\"\",INDIRECT(\"'\"&G5795&\"'!\"&H5795),\"\")","v":""}]
[5791,{"$nulls":3},true,{"$f":"IF(G5796<>\"\",INDIRECT(\"'\"&G5796&\"'!\"&H5796),\"\")","v":""}]
[5792,{"$f":"'EstRev 6-11'!G225","v":0},5792,null,true,{"$f":"IF(G5797<>\"\",INDIRECT(\"'\"&G5797&\"'!\"&H5797),\"\")","v":0},"EstRev 6-11","G225"]
[5793,{"$nulls":3},true,{"$f":"IF(G5798<>\"\",INDIRECT(\"'\"&G5798&\"'!\"&H5798),\"\")","v":""}]
[5794,{"$f":"'EstRev 6-11'!G258","v":0},5794,null,true,{"$f":"IF(G5799<>\"\",INDIRECT(\"'\"&G5799&\"'!\"&H5799),\"\")","v":0},"EstRev 6-11","G258"]
[5795,null,null,"Closed 2018",true,{"$f":"IF(G5800<>\"\",INDIRECT(\"'\"&G5800&\"'!\"&H5800),\"\")","v":""}]
[5796,{"$nulls":3},true,{"$f":"IF(G5801<>\"\",INDIRECT(\"'\"&G5801&\"'!\"&H5801),\"\")","v":""}]
[5797,{"$f":"'EstRev 6-11'!G260","v":0},5797,null,true,{"$f":"IF(G5802<>\"\",INDIRECT(\"'\"&G5802&\"'!\"&H5802),\"\")","v":0},"EstRev 6-11","G260"]
[5798,{"$nulls":3},true,{"$f":"IF(G5803<>\"\",INDIRECT(\"'\"&G5803&\"'!\"&H5803),\"\")","v":""}]
[5799,{"$f":"'EstRev 6-11'!G261","v":0},5799,null,true,{"$f":"IF(G5804<>\"\",INDIRECT(\"'\"&G5804&\"'!\"&H5804),\"\")","v":0},"EstRev 6-11","G261"]
[5800,{"$nulls":3},true,{"$f":"IF(G5805<>\"\",INDIRECT(\"'\"&G5805&\"'!\"&H5805),\"\")","v":""}]
[5801,null,null,"Closed 2008",true,{"$f":"IF(G5806<>\"\",INDIRECT(\"'\"&G5806&\"'!\"&H5806),\"\")","v":""}]
[5802,{"$f":"'EstRev 6-11'!G270","v":0},5802,null,true,{"$f":"IF(G5807<>\"\",INDIRECT(\"'\"&G5807&\"'!\"&H5807),\"\")","v":0},"EstRev 6-11","G270"]
[5803,{"$nulls":3},true,{"$f":"IF(G5808<>\"\",INDIRECT(\"'\"&G5808&\"'!\"&H5808),\"\")","v":""}]
[5804,{"$nulls":3},true,{"$f":"IF(G5809<>\"\",INDIRECT(\"'\"&G5809&\"'!\"&H5809),\"\")","v":""}]
[5805,{"$nulls":3},true,{"$f":"IF(G5810<>\"\",INDIRECT(\"'\"&G5810&\"'!\"&H5810),\"\")","v":""}]
[5806,{"$nulls":3},true,{"$f":"IF(G5811<>\"\",INDIRECT(\"'\"&G5811&\"'!\"&H5811),\"\")","v":""}]
[5807,{"$nulls":3},true,{"$f":"IF(G5812<>\"\",INDIRECT(\"'\"&G5812&\"'!\"&H5812),\"\")","v":""}]
[5808,{"$f":"'EstRev 6-11'!G271","v":0},5808,null,true,{"$f":"IF(G5813<>\"\",INDIRECT(\"'\"&G5813&\"'!\"&H5813),\"\")","v":0},"EstRev 6-11","G271"]
[5809,{"$f":"'EstRev 6-11'!G272","v":605000},-599191,null,true,{"$f":"IF(G5814<>\"\",INDIRECT(\"'\"&G5814&\"'!\"&H5814),\"\")","v":605000},"EstRev 6-11","G272"]
[5810,{"$f":"'EstRev 6-11'!H5","v":0},5810,null,true,{"$f":"IF(G5815<>\"\",INDIRECT(\"'\"&G5815&\"'!\"&H5815),\"\")","v":0},"EstRev 6-11","H5"]
[5811,{"$f":"'EstRev 6-11'!H11","v":0},5811,null,true,{"$f":"IF(G5816<>\"\",INDIRECT(\"'\"&G5816&\"'!\"&H5816),\"\")","v":0},"EstRev 6-11","H11"]
[5812,{"$f":"'EstRev 6-11'!H12","v":0},5812,null,true,{"$f":"IF(G5817<>\"\",INDIRECT(\"'\"&G5817&\"'!\"&H5817),\"\")","v":0},"EstRev 6-11","H12"]
[5813,{"$f":"'EstRev 6-11'!H14","v":0},5813,null,true,{"$f":"IF(G5818<>\"\",INDIRECT(\"'\"&G5818&\"'!\"&H5818),\"\")","v":0},"EstRev 6-11","H14"]
[5814,{"$f":"'EstRev 6-11'!H15","v":0},5814,null,true,{"$f":"IF(G5819<>\"\",INDIRECT(\"'\"&G5819&\"'!\"&H5819),\"\")","v":0},"EstRev 6-11","H15"]
[5815,{"$f":"'EstRev 6-11'!H16","v":0},5815,null,true,{"$f":"IF(G5820<>\"\",INDIRECT(\"'\"&G5820&\"'!\"&H5820),\"\")","v":0},"EstRev 6-11","H16"]
[5816,{"$f":"'EstRev 6-11'!H17","v":0},5816,null,true,{"$f":"IF(G5821<>\"\",INDIRECT(\"'\"&G5821&\"'!\"&H5821),\"\")","v":0},"EstRev 6-11","H17"]
[5817,{"$f":"'EstRev 6-11'!H18","v":0},5817,null,true,{"$f":"IF(G5822<>\"\",INDIRECT(\"'\"&G5822&\"'!\"&H5822),\"\")","v":0},"EstRev 6-11","H18"]
[5818,{"$f":"'EstRev 6-11'!H65","v":0},5818,null,true,{"$f":"IF(G5823<>\"\",INDIRECT(\"'\"&G5823&\"'!\"&H5823),\"\")","v":0},"EstRev 6-11","H65"]
[5819,{"$f":"'EstRev 6-11'!H66","v":0},5819,null,true,{"$f":"IF(G5824<>\"\",INDIRECT(\"'\"&G5824&\"'!\"&H5824),\"\")","v":0},"EstRev 6-11","H66"]
[5820,{"$f":"'EstRev 6-11'!H67","v":0},5820,null,true,{"$f":"IF(G5825<>\"\",INDIRECT(\"'\"&G5825&\"'!\"&H5825),\"\")","v":0},"EstRev 6-11","H67"]
[5821,{"$f":"'EstRev 6-11'!H98","v":0},5821,null,{"$f":"F5826=B5826","v":true},{"$f":"IF(G5826<>\"\",INDIRECT(\"'\"&G5826&\"'!\"&H5826),\"\")","v":0},"EstRev 6-11","H98"]
[5822,{"$f":"'EstRev 6-11'!H101","v":0},5822,null,true,{"$f":"IF(G5827<>\"\",INDIRECT(\"'\"&G5827&\"'!\"&H5827),\"\")","v":0},"EstRev 6-11","H101"]
[5823,{"$f":"'EstRev 6-11'!H106","v":0},5823,null,true,{"$f":"IF(G5828<>\"\",INDIRECT(\"'\"&G5828&\"'!\"&H5828),\"\")","v":0},"EstRev 6-11","H106"]
[5824,{"$f":"'EstRev 6-11'!H109","v":0},5824,null,true,{"$f":"IF(G5829<>\"\",INDIRECT(\"'\"&G5829&\"'!\"&H5829),\"\")","v":0},"EstRev 6-11","H109"]
[5825,{"$f":"'EstRev 6-11'!H110","v":0},5825,null,true,{"$f":"IF(G5830<>\"\",INDIRECT(\"'\"&G5830&\"'!\"&H5830),\"\")","v":0},"EstRev 6-11","H110"]
[5826,{"$f":"'EstRev 6-11'!H120","v":0},5826,null,true,{"$f":"IF(G5831<>\"\",INDIRECT(\"'\"&G5831&\"'!\"&H5831),\"\")","v":0},"EstRev 6-11","H120"]
[5827,{"$f":"'EstRev 6-11'!H121","v":0},{"$f":"A5832-B5832","v":5827},null,true,{"$f":"IF(G5832<>\"\",INDIRECT(\"'\"&G5832&\"'!\"&H5832),\"\")","v":0},"EstRev 6-11","H121"]
[5828,{"$nulls":3},true,{"$f":"IF(G5833<>\"\",INDIRECT(\"'\"&G5833&\"'!\"&H5833),\"\")","v":""}]
[5829,{"$nulls":3},true,{"$f":"IF(G5834<>\"\",INDIRECT(\"'\"&G5834&\"'!\"&H5834),\"\")","v":""}]
[5830,{"$nulls":3},true,{"$f":"IF(G5835<>\"\",INDIRECT(\"'\"&G5835&\"'!\"&H5835),\"\")","v":""}]
[5831,{"$nulls":3},true,{"$f":"IF(G5836<>\"\",INDIRECT(\"'\"&G5836&\"'!\"&H5836),\"\")","v":""}]
[5832,{"$f":"'EstRev 6-11'!H124","v":0},5832,null,true,{"$f":"IF(G5837<>\"\",INDIRECT(\"'\"&G5837&\"'!\"&H5837),\"\")","v":0},"EstRev 6-11","H124"]
[5833,{"$nulls":3},true,{"$f":"IF(G5838<>\"\",INDIRECT(\"'\"&G5838&\"'!\"&H5838),\"\")","v":""}]
[5834,{"$nulls":3},true,{"$f":"IF(G5839<>\"\",INDIRECT(\"'\"&G5839&\"'!\"&H5839),\"\")","v":""}]
[5835,{"$nulls":3},true,{"$f":"IF(G5840<>\"\",INDIRECT(\"'\"&G5840&\"'!\"&H5840),\"\")","v":""}]
[5836,{"$nulls":3},true,{"$f":"IF(G5841<>\"\",INDIRECT(\"'\"&G5841&\"'!\"&H5841),\"\")","v":""}]
[5837,{"$nulls":3},true,{"$f":"IF(G5842<>\"\",INDIRECT(\"'\"&G5842&\"'!\"&H5842),\"\")","v":""}]
[5838,{"$f":"'EstRev 6-11'!H171","v":0},5838,null,true,{"$f":"IF(G5843<>\"\",INDIRECT(\"'\"&G5843&\"'!\"&H5843),\"\")","v":0},"EstRev 6-11","H171"]
[5839,{"$nulls":3},true,{"$f":"IF(G5844<>\"\",INDIRECT(\"'\"&G5844&\"'!\"&H5844),\"\")","v":""}]
[5840,{"$nulls":3},true,{"$f":"IF(G5845<>\"\",INDIRECT(\"'\"&G5845&\"'!\"&H5845),\"\")","v":""}]
[5841,{"$nulls":3},true,{"$f":"IF(G5846<>\"\",INDIRECT(\"'\"&G5846&\"'!\"&H5846),\"\")","v":""}]
[5842,{"$nulls":3},true,{"$f":"IF(G5847<>\"\",INDIRECT(\"'\"&G5847&\"'!\"&H5847),\"\")","v":""}]
[5843,{"$nulls":3},true,{"$f":"IF(G5848<>\"\",INDIRECT(\"'\"&G5848&\"'!\"&H5848),\"\")","v":""}]
[5844,{"$nulls":3},true,{"$f":"IF(G5849<>\"\",INDIRECT(\"'\"&G5849&\"'!\"&H5849),\"\")","v":""}]
[5845,{"$f":"'EstRev 6-11'!H172","v":0},5845,null,true,{"$f":"IF(G5850<>\"\",INDIRECT(\"'\"&G5850&\"'!\"&H5850),\"\")","v":0},"EstRev 6-11","H172"]
[5846,{"$f":"'EstRev 6-11'!H180","v":0},5846,null,true,{"$f":"IF(G5851<>\"\",INDIRECT(\"'\"&G5851&\"'!\"&H5851),\"\")","v":0},"EstRev 6-11","H180"]
[5847,{"$f":"'EstRev 6-11'!H183","v":0},5847,null,true,{"$f":"IF(G5852<>\"\",INDIRECT(\"'\"&G5852&\"'!\"&H5852),\"\")","v":0},"EstRev 6-11","H183"]
[5848,{"$nulls":3},true,{"$f":"IF(G5853<>\"\",INDIRECT(\"'\"&G5853&\"'!\"&H5853),\"\")","v":""}]
[5849,{"$nulls":3},true,{"$f":"IF(G5854<>\"\",INDIRECT(\"'\"&G5854&\"'!\"&H5854),\"\")","v":""}]
[5850,{"$nulls":3},true,{"$f":"IF(G5855<>\"\",INDIRECT(\"'\"&G5855&\"'!\"&H5855),\"\")","v":""}]
[5851,{"$nulls":3},true,{"$f":"IF(G5856<>\"\",INDIRECT(\"'\"&G5856&\"'!\"&H5856),\"\")","v":""}]
[5852,{"$nulls":3},true,{"$f":"IF(G5857<>\"\",INDIRECT(\"'\"&G5857&\"'!\"&H5857),\"\")","v":""}]
[5853,{"$f":"'EstRev 6-11'!H271","v":203000},-197147,null,true,{"$f":"IF(G5858<>\"\",INDIRECT(\"'\"&G5858&\"'!\"&H5858),\"\")","v":203000},"EstRev 6-11","H271"]
[5854,{"$f":"'EstRev 6-11'!H272","v":203000},-197146,null,true,{"$f":"IF(G5859<>\"\",INDIRECT(\"'\"&G5859&\"'!\"&H5859),\"\")","v":203000},"EstRev 6-11","H272"]
[5855,{"$f":"'EstRev 6-11'!I5","v":27000},-21145,null,true,{"$f":"IF(G5860<>\"\",INDIRECT(\"'\"&G5860&\"'!\"&H5860),\"\")","v":27000},"EstRev 6-11","I5"]
[5856,{"$f":"'EstRev 6-11'!I11","v":0},5856,null,true,{"$f":"IF(G5861<>\"\",INDIRECT(\"'\"&G5861&\"'!\"&H5861),\"\")","v":0},"EstRev 6-11","I11"]
[5857,{"$f":"'EstRev 6-11'!I12","v":27000},-21143,null,true,{"$f":"IF(G5862<>\"\",INDIRECT(\"'\"&G5862&\"'!\"&H5862),\"\")","v":27000},"EstRev 6-11","I12"]
[5858,{"$f":"'EstRev 6-11'!I14","v":0},5858,null,true,{"$f":"IF(G5863<>\"\",INDIRECT(\"'\"&G5863&\"'!\"&H5863),\"\")","v":0},"EstRev 6-11","I14"]
[5859,{"$f":"'EstRev 6-11'!I15","v":0},5859,null,true,{"$f":"IF(G5864<>\"\",INDIRECT(\"'\"&G5864&\"'!\"&H5864),\"\")","v":0},"EstRev 6-11","I15"]
[5860,{"$f":"'EstRev 6-11'!I16","v":0},5860,null,true,{"$f":"IF(G5865<>\"\",INDIRECT(\"'\"&G5865&\"'!\"&H5865),\"\")","v":0},"EstRev 6-11","I16"]
[5861,{"$f":"'EstRev 6-11'!I17","v":0},5861,null,true,{"$f":"IF(G5866<>\"\",INDIRECT(\"'\"&G5866&\"'!\"&H5866),\"\")","v":0},"EstRev 6-11","I17"]
[5862,{"$f":"'EstRev 6-11'!I18","v":0},5862,null,true,{"$f":"IF(G5867<>\"\",INDIRECT(\"'\"&G5867&\"'!\"&H5867),\"\")","v":0},"EstRev 6-11","I18"]
[5863,{"$f":"'EstRev 6-11'!I65","v":0},5863,null,true,{"$f":"IF(G5868<>\"\",INDIRECT(\"'\"&G5868&\"'!\"&H5868),\"\")","v":0},"EstRev 6-11","I65"]
[5864,{"$f":"'EstRev 6-11'!I66","v":0},5864,null,true,{"$f":"IF(G5869<>\"\",INDIRECT(\"'\"&G5869&\"'!\"&H5869),\"\")","v":0},"EstRev 6-11","I66"]
[5865,{"$f":"'EstRev 6-11'!I67","v":0},5865,null,true,{"$f":"IF(G5870<>\"\",INDIRECT(\"'\"&G5870&\"'!\"&H5870),\"\")","v":0},"EstRev 6-11","I67"]
[5866,{"$f":"'EstRev 6-11'!I98","v":0},5866,null,true,{"$f":"IF(G5871<>\"\",INDIRECT(\"'\"&G5871&\"'!\"&H5871),\"\")","v":0},"EstRev 6-11","I98"]
[5867,{"$nulls":3},true,{"$f":"IF(G5872<>\"\",INDIRECT(\"'\"&G5872&\"'!\"&H5872),\"\")","v":""}]
[5868,{"$f":"'EstRev 6-11'!I109","v":0},5868,null,true,{"$f":"IF(G5873<>\"\",INDIRECT(\"'\"&G5873&\"'!\"&H5873),\"\")","v":0},"EstRev 6-11","I109"]
[5869,{"$f":"'EstRev 6-11'!I110","v":0},5869,null,true,{"$f":"IF(G5874<>\"\",INDIRECT(\"'\"&G5874&\"'!\"&H5874),\"\")","v":0},"EstRev 6-11","I110"]
[5870,{"$nulls":3},true,{"$f":"IF(G5875<>\"\",INDIRECT(\"'\"&G5875&\"'!\"&H5875),\"\")","v":""}]
[5871,{"$nulls":3},true,{"$f":"IF(G5876<>\"\",INDIRECT(\"'\"&G5876&\"'!\"&H5876),\"\")","v":""}]
[5872,{"$nulls":3},true,{"$f":"IF(G5877<>\"\",INDIRECT(\"'\"&G5877&\"'!\"&H5877),\"\")","v":""}]
[5873,{"$nulls":3},true,{"$f":"IF(G5878<>\"\",INDIRECT(\"'\"&G5878&\"'!\"&H5878),\"\")","v":""}]
[5874,{"$nulls":3},true,{"$f":"IF(G5879<>\"\",INDIRECT(\"'\"&G5879&\"'!\"&H5879),\"\")","v":""}]
[5875,{"$nulls":3},true,{"$f":"IF(G5880<>\"\",INDIRECT(\"'\"&G5880&\"'!\"&H5880),\"\")","v":""}]
[5876,{"$nulls":3},true,{"$f":"IF(G5881<>\"\",INDIRECT(\"'\"&G5881&\"'!\"&H5881),\"\")","v":""}]
[5877,{"$nulls":3},true,{"$f":"IF(G5882<>\"\",INDIRECT(\"'\"&G5882&\"'!\"&H5882),\"\")","v":""}]
[5878,{"$nulls":3},true,{"$f":"IF(G5883<>\"\",INDIRECT(\"'\"&G5883&\"'!\"&H5883),\"\")","v":""}]
[5879,{"$nulls":3},true,{"$f":"IF(G5884<>\"\",INDIRECT(\"'\"&G5884&\"'!\"&H5884),\"\")","v":""}]
[5880,{"$nulls":3},true,{"$f":"IF(G5885<>\"\",INDIRECT(\"'\"&G5885&\"'!\"&H5885),\"\")","v":""}]
[5881,{"$nulls":3},true,{"$f":"IF(G5886<>\"\",INDIRECT(\"'\"&G5886&\"'!\"&H5886),\"\")","v":""}]
[5882,{"$nulls":3},true,{"$f":"IF(G5887<>\"\",INDIRECT(\"'\"&G5887&\"'!\"&H5887),\"\")","v":""}]
[5883,{"$nulls":3},true,{"$f":"IF(G5888<>\"\",INDIRECT(\"'\"&G5888&\"'!\"&H5888),\"\")","v":""}]
[5884,{"$nulls":3},true,{"$f":"IF(G5889<>\"\",INDIRECT(\"'\"&G5889&\"'!\"&H5889),\"\")","v":""}]
[5885,{"$f":"'EstRev 6-11'!I272","v":27000},-21115,null,{"$f":"F5890=B5890","v":true},{"$f":"IF(G5890<>\"\",INDIRECT(\"'\"&G5890&\"'!\"&H5890),\"\")","v":27000},"EstRev 6-11","I272"]
[5886,null,null,"Closed 2008",true,{"$f":"IF(G5891<>\"\",INDIRECT(\"'\"&G5891&\"'!\"&H5891),\"\")","v":""}]
[5887,null,null,"Closed 2008",true,{"$f":"IF(G5892<>\"\",INDIRECT(\"'\"&G5892&\"'!\"&H5892),\"\")","v":""}]
[5888,null,null,"Closed 2008",true,{"$f":"IF(G5893<>\"\",INDIRECT(\"'\"&G5893&\"'!\"&H5893),\"\")","v":""}]
[5889,null,null,"Closed 2008",true,{"$f":"IF(G5894<>\"\",INDIRECT(\"'\"&G5894&\"'!\"&H5894),\"\")","v":""}]
[5890,null,null,"Closed 2008",true,{"$f":"IF(G5895<>\"\",INDIRECT(\"'\"&G5895&\"'!\"&H5895),\"\")","v":""}]
[5891,null,null,"Closed 2008",true,{"$f":"IF(G5896<>\"\",INDIRECT(\"'\"&G5896&\"'!\"&H5896),\"\")","v":""}]
[5892,null,null,"Closed 2008",true,{"$f":"IF(G5897<>\"\",INDIRECT(\"'\"&G5897&\"'!\"&H5897),\"\")","v":""}]
[5893,null,null,"Closed 2008",true,{"$f":"IF(G5898<>\"\",INDIRECT(\"'\"&G5898&\"'!\"&H5898),\"\")","v":""}]
[5894,null,null,"Closed 2008",true,{"$f":"IF(G5899<>\"\",INDIRECT(\"'\"&G5899&\"'!\"&H5899),\"\")","v":""}]
[5895,null,null,"Closed 2008",true,{"$f":"IF(G5900<>\"\",INDIRECT(\"'\"&G5900&\"'!\"&H5900),\"\")","v":""}]
[5896,null,null,"Closed 2008",true,{"$f":"IF(G5901<>\"\",INDIRECT(\"'\"&G5901&\"'!\"&H5901),\"\")","v":""}]
[5897,null,null,"Closed 2008",true,{"$f":"IF(G5902<>\"\",INDIRECT(\"'\"&G5902&\"'!\"&H5902),\"\")","v":""}]
[5898,null,null,"Closed 2008",true,{"$f":"IF(G5903<>\"\",INDIRECT(\"'\"&G5903&\"'!\"&H5903),\"\")","v":""}]
[5899,null,null,"Closed 2008",true,{"$f":"IF(G5904<>\"\",INDIRECT(\"'\"&G5904&\"'!\"&H5904),\"\")","v":""}]
[5900,null,null,"Closed 2008",true,{"$f":"IF(G5905<>\"\",INDIRECT(\"'\"&G5905&\"'!\"&H5905),\"\")","v":""}]
[5901,null,null,"Closed 2008",true,{"$f":"IF(G5906<>\"\",INDIRECT(\"'\"&G5906&\"'!\"&H5906),\"\")","v":""}]
[5902,null,null,"Closed 2008",true,{"$f":"IF(G5907<>\"\",INDIRECT(\"'\"&G5907&\"'!\"&H5907),\"\")","v":""}]
[5903,{"$nulls":3},true,{"$f":"IF(G5908<>\"\",INDIRECT(\"'\"&G5908&\"'!\"&H5908),\"\")","v":""}]
[5904,{"$nulls":3},true,{"$f":"IF(G5909<>\"\",INDIRECT(\"'\"&G5909&\"'!\"&H5909),\"\")","v":""}]
[5905,{"$nulls":3},true,{"$f":"IF(G5910<>\"\",INDIRECT(\"'\"&G5910&\"'!\"&H5910),\"\")","v":""}]
[5906,{"$nulls":3},true,{"$f":"IF(G5911<>\"\",INDIRECT(\"'\"&G5911&\"'!\"&H5911),\"\")","v":""}]
[5907,null,null,"Closed 2008",true,{"$f":"IF(G5912<>\"\",INDIRECT(\"'\"&G5912&\"'!\"&H5912),\"\")","v":""}]
[5908,{"$nulls":3},true,{"$f":"IF(G5913<>\"\",INDIRECT(\"'\"&G5913&\"'!\"&H5913),\"\")","v":""}]
[5909,{"$nulls":3},true,{"$f":"IF(G5914<>\"\",INDIRECT(\"'\"&G5914&\"'!\"&H5914),\"\")","v":""}]
[5910,{"$nulls":3},true,{"$f":"IF(G5915<>\"\",INDIRECT(\"'\"&G5915&\"'!\"&H5915),\"\")","v":""}]
[5911,{"$nulls":3},true,{"$f":"IF(G5916<>\"\",INDIRECT(\"'\"&G5916&\"'!\"&H5916),\"\")","v":""}]
[5912,{"$nulls":3},true,{"$f":"IF(G5917<>\"\",INDIRECT(\"'\"&G5917&\"'!\"&H5917),\"\")","v":""}]
[5913,{"$nulls":3},true,{"$f":"IF(G5918<>\"\",INDIRECT(\"'\"&G5918&\"'!\"&H5918),\"\")","v":""}]
[5914,{"$nulls":3},true,{"$f":"IF(G5919<>\"\",INDIRECT(\"'\"&G5919&\"'!\"&H5919),\"\")","v":""}]
[5915,null,null,"Closed 2008",true,{"$f":"IF(G5920<>\"\",INDIRECT(\"'\"&G5920&\"'!\"&H5920),\"\")","v":""}]
[5916,{"$nulls":3},true,{"$f":"IF(G5921<>\"\",INDIRECT(\"'\"&G5921&\"'!\"&H5921),\"\")","v":""}]
[5917,{"$nulls":3},true,{"$f":"IF(G5922<>\"\",INDIRECT(\"'\"&G5922&\"'!\"&H5922),\"\")","v":""}]
[5918,{"$nulls":3},true,{"$f":"IF(G5923<>\"\",INDIRECT(\"'\"&G5923&\"'!\"&H5923),\"\")","v":""}]
[5919,{"$nulls":3},true,{"$f":"IF(G5924<>\"\",INDIRECT(\"'\"&G5924&\"'!\"&H5924),\"\")","v":""}]
[5920,{"$nulls":3},true,{"$f":"IF(G5925<>\"\",INDIRECT(\"'\"&G5925&\"'!\"&H5925),\"\")","v":""}]
[5921,{"$nulls":3},true,{"$f":"IF(G5926<>\"\",INDIRECT(\"'\"&G5926&\"'!\"&H5926),\"\")","v":""}]
[5922,{"$nulls":3},true,{"$f":"IF(G5927<>\"\",INDIRECT(\"'\"&G5927&\"'!\"&H5927),\"\")","v":""}]
[5923,null,null,"Closed 2008",true,{"$f":"IF(G5928<>\"\",INDIRECT(\"'\"&G5928&\"'!\"&H5928),\"\")","v":""}]
[5924,{"$f":"'EstRev 6-11'!K5","v":28000},{"$f":"A5929-B5929","v":-22076},null,true,{"$f":"IF(G5929<>\"\",INDIRECT(\"'\"&G5929&\"'!\"&H5929),\"\")","v":28000},"EstRev 6-11","K5"]
[5925,{"$f":"'EstRev 6-11'!K11","v":0},5925,null,true,{"$f":"IF(G5930<>\"\",INDIRECT(\"'\"&G5930&\"'!\"&H5930),\"\")","v":0},"EstRev 6-11","K11"]
[5926,{"$f":"'EstRev 6-11'!K12","v":28000},-22074,null,true,{"$f":"IF(G5931<>\"\",INDIRECT(\"'\"&G5931&\"'!\"&H5931),\"\")","v":28000},"EstRev 6-11","K12"]
[5927,{"$f":"'EstRev 6-11'!K14","v":0},5927,null,true,{"$f":"IF(G5932<>\"\",INDIRECT(\"'\"&G5932&\"'!\"&H5932),\"\")","v":0},"EstRev 6-11","K14"]
[5928,{"$f":"'EstRev 6-11'!K15","v":0},5928,null,true,{"$f":"IF(G5933<>\"\",INDIRECT(\"'\"&G5933&\"'!\"&H5933),\"\")","v":0},"EstRev 6-11","K15"]
[5929,{"$f":"'EstRev 6-11'!K16","v":0},5929,null,true,{"$f":"IF(G5934<>\"\",INDIRECT(\"'\"&G5934&\"'!\"&H5934),\"\")","v":0},"EstRev 6-11","K16"]
[5930,{"$f":"'EstRev 6-11'!K17","v":0},5930,null,true,{"$f":"IF(G5935<>\"\",INDIRECT(\"'\"&G5935&\"'!\"&H5935),\"\")","v":0},"EstRev 6-11","K17"]
[5931,{"$f":"'EstRev 6-11'!K18","v":0},5931,null,true,{"$f":"IF(G5936<>\"\",INDIRECT(\"'\"&G5936&\"'!\"&H5936),\"\")","v":0},"EstRev 6-11","K18"]
[5932,{"$f":"'EstRev 6-11'!K65","v":0},5932,null,true,{"$f":"IF(G5937<>\"\",INDIRECT(\"'\"&G5937&\"'!\"&H5937),\"\")","v":0},"EstRev 6-11","K65"]
[5933,{"$f":"'EstRev 6-11'!K66","v":0},5933,null,true,{"$f":"IF(G5938<>\"\",INDIRECT(\"'\"&G5938&\"'!\"&H5938),\"\")","v":0},"EstRev 6-11","K66"]
[5934,{"$f":"'EstRev 6-11'!K67","v":0},5934,null,true,{"$f":"IF(G5939<>\"\",INDIRECT(\"'\"&G5939&\"'!\"&H5939),\"\")","v":0},"EstRev 6-11","K67"]
[5935,{"$f":"'EstRev 6-11'!K98","v":0},5935,null,true,{"$f":"IF(G5940<>\"\",INDIRECT(\"'\"&G5940&\"'!\"&H5940),\"\")","v":0},"EstRev 6-11","K98"]
[5936,{"$f":"'EstRev 6-11'!K101","v":0},5936,null,true,{"$f":"IF(G5941<>\"\",INDIRECT(\"'\"&G5941&\"'!\"&H5941),\"\")","v":0},"EstRev 6-11","K101"]
[5937,{"$f":"'EstRev 6-11'!K109","v":0},5937,null,true,{"$f":"IF(G5942<>\"\",INDIRECT(\"'\"&G5942&\"'!\"&H5942),\"\")","v":0},"EstRev 6-11","K109"]
[5938,{"$f":"'EstRev 6-11'!K110","v":0},5938,null,true,{"$f":"IF(G5943<>\"\",INDIRECT(\"'\"&G5943&\"'!\"&H5943),\"\")","v":0},"EstRev 6-11","K110"]
[5939,{"$f":"'EstRev 6-11'!K120","v":150000},-144061,null,true,{"$f":"IF(G5944<>\"\",INDIRECT(\"'\"&G5944&\"'!\"&H5944),\"\")","v":150000},"EstRev 6-11","K120"]
[5940,{"$f":"'EstRev 6-11'!K121","v":0},5940,null,true,{"$f":"IF(G5945<>\"\",INDIRECT(\"'\"&G5945&\"'!\"&H5945),\"\")","v":0},"EstRev 6-11","K121"]
[5941,{"$nulls":3},true,{"$f":"IF(G5946<>\"\",INDIRECT(\"'\"&G5946&\"'!\"&H5946),\"\")","v":""}]
[5942,{"$nulls":3},true,{"$f":"IF(G5947<>\"\",INDIRECT(\"'\"&G5947&\"'!\"&H5947),\"\")","v":""}]
[5943,{"$nulls":3},true,{"$f":"IF(G5948<>\"\",INDIRECT(\"'\"&G5948&\"'!\"&H5948),\"\")","v":""}]
[5944,{"$nulls":3},true,{"$f":"IF(G5949<>\"\",INDIRECT(\"'\"&G5949&\"'!\"&H5949),\"\")","v":""}]
[5945,{"$f":"'EstRev 6-11'!K124","v":150000},-144055,null,true,{"$f":"IF(G5950<>\"\",INDIRECT(\"'\"&G5950&\"'!\"&H5950),\"\")","v":150000},"EstRev 6-11","K124"]
[5946,{"$nulls":3},true,{"$f":"IF(G5951<>\"\",INDIRECT(\"'\"&G5951&\"'!\"&H5951),\"\")","v":""}]
[5947,{"$nulls":3},true,{"$f":"IF(G5952<>\"\",INDIRECT(\"'\"&G5952&\"'!\"&H5952),\"\")","v":""}]
[5948,{"$nulls":3},true,{"$f":"IF(G5953<>\"\",INDIRECT(\"'\"&G5953&\"'!\"&H5953),\"\")","v":""}]
[5949,{"$nulls":3},{"$f":"F5954=B5954","v":true},{"$f":"IF(G5954<>\"\",INDIRECT(\"'\"&G5954&\"'!\"&H5954),\"\")","v":""}]
[5950,{"$nulls":3},true,{"$f":"IF(G5955<>\"\",INDIRECT(\"'\"&G5955&\"'!\"&H5955),\"\")","v":""}]
[5951,{"$nulls":3},true,{"$f":"IF(G5956<>\"\",INDIRECT(\"'\"&G5956&\"'!\"&H5956),\"\")","v":""}]
[5952,{"$nulls":3},true,{"$f":"IF(G5957<>\"\",INDIRECT(\"'\"&G5957&\"'!\"&H5957),\"\")","v":""}]
[5953,{"$f":"'EstRev 6-11'!K172","v":150000},-144047,null,true,{"$f":"IF(G5958<>\"\",INDIRECT(\"'\"&G5958&\"'!\"&H5958),\"\")","v":150000},"EstRev 6-11","K172"]
[5954,{"$nulls":3},true,{"$f":"IF(G5959<>\"\",INDIRECT(\"'\"&G5959&\"'!\"&H5959),\"\")","v":""}]
[5955,{"$f":"'EstRev 6-11'!K183","v":0},{"$f":"A5960-B5960","v":5955},null,true,{"$f":"IF(G5960<>\"\",INDIRECT(\"'\"&G5960&\"'!\"&H5960),\"\")","v":0},"EstRev 6-11","K183"]
[5956,{"$nulls":3},true,{"$f":"IF(G5961<>\"\",INDIRECT(\"'\"&G5961&\"'!\"&H5961),\"\")","v":""}]
[5957,{"$nulls":3},true,{"$f":"IF(G5962<>\"\",INDIRECT(\"'\"&G5962&\"'!\"&H5962),\"\")","v":""}]
[5958,{"$nulls":3},true,{"$f":"IF(G5963<>\"\",INDIRECT(\"'\"&G5963&\"'!\"&H5963),\"\")","v":""}]
[5959,{"$nulls":3},true,{"$f":"IF(G5964<>\"\",INDIRECT(\"'\"&G5964&\"'!\"&H5964),\"\")","v":""}]
[5960,{"$nulls":3},true,{"$f":"IF(G5965<>\"\",INDIRECT(\"'\"&G5965&\"'!\"&H5965),\"\")","v":""}]
[5961,{"$f":"'EstRev 6-11'!K271","v":0},5961,null,true,{"$f":"IF(G5966<>\"\",INDIRECT(\"'\"&G5966&\"'!\"&H5966),\"\")","v":0},"EstRev 6-11","K271"]
[5962,{"$f":"'EstRev 6-11'!K272","v":178000},-172038,null,true,{"$f":"IF(G5967<>\"\",INDIRECT(\"'\"&G5967&\"'!\"&H5967),\"\")","v":178000},"EstRev 6-11","K272"]
[5963,{"$f":"'EstRev 6-11'!G111","v":390000},-384037,null,true,{"$f":"IF(G5968<>\"\",INDIRECT(\"'\"&G5968&\"'!\"&H5968),\"\")","v":390000},"EstRev 6-11","G111"]
[5964,{"$f":"'EstRev 6-11'!H111","v":0},5964,null,true,{"$f":"IF(G5969<>\"\",INDIRECT(\"'\"&G5969&\"'!\"&H5969),\"\")","v":0},"EstRev 6-11","H111"]
[5965,{"$f":"'EstRev 6-11'!I111","v":27000},-21035,null,true,{"$f":"IF(G5970<>\"\",INDIRECT(\"'\"&G5970&\"'!\"&H5970),\"\")","v":27000},"EstRev 6-11","I111"]
[5966,null,null,"Closed 2008",true,{"$f":"IF(G5971<>\"\",INDIRECT(\"'\"&G5971&\"'!\"&H5971),\"\")","v":""}]
[5967,{"$f":"'EstRev 6-11'!K111","v":28000},-22033,null,true,{"$f":"IF(G5972<>\"\",INDIRECT(\"'\"&G5972&\"'!\"&H5972),\"\")","v":28000},"EstRev 6-11","K111"]
[5968,{"$nulls":3},true,{"$f":"IF(G5973<>\"\",INDIRECT(\"'\"&G5973&\"'!\"&H5973),\"\")","v":""}]
[5969,{"$nulls":3},true,{"$f":"IF(G5974<>\"\",INDIRECT(\"'\"&G5974&\"'!\"&H5974),\"\")","v":""}]
[5970,{"$f":"'EstRev 6-11'!C69","v":0},5970,null,true,{"$f":"IF(G5975<>\"\",INDIRECT(\"'\"&G5975&\"'!\"&H5975),\"\")","v":0},"EstRev 6-11","C69"]
[5971,{"$f":"'BudgetSum 2-4'!G16","v":0},5971,null,true,{"$f":"IF(G5976<>\"\",INDIRECT(\"'\"&G5976&\"'!\"&H5976),\"\")","v":0},"BudgetSum 2-4","G16"]
[5972,{"$nulls":3},true,{"$f":"IF(G5977<>\"\",INDIRECT(\"'\"&G5977&\"'!\"&H5977),\"\")","v":""}]
[5973,{"$nulls":3},true,{"$f":"IF(G5978<>\"\",INDIRECT(\"'\"&G5978&\"'!\"&H5978),\"\")","v":""}]
[5974,{"$nulls":3},true,{"$f":"IF(G5979<>\"\",INDIRECT(\"'\"&G5979&\"'!\"&H5979),\"\")","v":""}]
[5975,{"$nulls":3},true,{"$f":"IF(G5980<>\"\",INDIRECT(\"'\"&G5980&\"'!\"&H5980),\"\")","v":""}]
[5976,{"$nulls":3},true,{"$f":"IF(G5981<>\"\",INDIRECT(\"'\"&G5981&\"'!\"&H5981),\"\")","v":""}]
[5977,{"$f":"'BudgetSum 2-4'!J14","v":15000},-9023,null,true,{"$f":"IF(G5982<>\"\",INDIRECT(\"'\"&G5982&\"'!\"&H5982),\"\")","v":15000},"BudgetSum 2-4","J14"]
[5978,{"$f":"'BudgetSum 2-4'!J45","v":0},5978,null,true,{"$f":"IF(G5983<>\"\",INDIRECT(\"'\"&G5983&\"'!\"&H5983),\"\")","v":0},"BudgetSum 2-4","J45"]
[5979,{"$f":"'BudgetSum 2-4'!J53","v":0},5979,null,true,{"$f":"IF(G5984<>\"\",INDIRECT(\"'\"&G5984&\"'!\"&H5984),\"\")","v":0},"BudgetSum 2-4","J53"]
[5980,{"$f":"'BudgetSum 2-4'!J3","v":0},5980,"New 2009",true,{"$f":"IF(G5985<>\"\",INDIRECT(\"'\"&G5985&\"'!\"&H5985),\"\")","v":0},"BudgetSum 2-4","J3"]
[5981,{"$f":"'BudgetSum 2-4'!J5","v":21000},-15019,"New 2009",true,{"$f":"IF(G5986<>\"\",INDIRECT(\"'\"&G5986&\"'!\"&H5986),\"\")","v":21000},"BudgetSum 2-4","J5"]
[5982,{"$f":"'BudgetSum 2-4'!J7","v":200000},-194018,"New 2009",true,{"$f":"IF(G5987<>\"\",INDIRECT(\"'\"&G5987&\"'!\"&H5987),\"\")","v":200000},"BudgetSum 2-4","J7"]
[5983,{"$f":"'BudgetSum 2-4'!J8","v":0},5983,"New 2009",true,{"$f":"IF(G5988<>\"\",INDIRECT(\"'\"&G5988&\"'!\"&H5988),\"\")","v":0},"BudgetSum 2-4","J8"]
[5984,{"$f":"'BudgetSum 2-4'!J9","v":221000},-215016,"New 2009",true,{"$f":"IF(G5989<>\"\",INDIRECT(\"'\"&G5989&\"'!\"&H5989),\"\")","v":221000},"BudgetSum 2-4","J9"]
[5985,{"$f":"'BudgetSum 2-4'!J10","v":0},5985,"New 2009",true,{"$f":"IF(G5990<>\"\",INDIRECT(\"'\"&G5990&\"'!\"&H5990),\"\")","v":0},"BudgetSum 2-4","J10"]
[5986,{"$f":"'BudgetSum 2-4'!J11","v":221000},-215014,"New 2009",true,{"$f":"IF(G5991<>\"\",INDIRECT(\"'\"&G5991&\"'!\"&H5991),\"\")","v":221000},"BudgetSum 2-4","J11"]
[5987,null,null,"New 2009-Closed 2021",true,{"$f":"IF(G5992<>\"\",INDIRECT(\"'\"&G5992&\"'!\"&H5992),\"\")","v":""}]
[5988,{"$f":"'BudgetSum 2-4'!J19","v":15000},-9012,"New 2009",true,{"$f":"IF(G5993<>\"\",INDIRECT(\"'\"&G5993&\"'!\"&H5993),\"\")","v":15000},"BudgetSum 2-4","J19"]
[5989,{"$f":"'BudgetSum 2-4'!J20","v":0},5989,"New 2009",true,{"$f":"IF(G5994<>\"\",INDIRECT(\"'\"&G5994&\"'!\"&H5994),\"\")","v":0},"BudgetSum 2-4","J20"]
[5990,{"$f":"'BudgetSum 2-4'!J21","v":15000},-9010,"New 2009",true,{"$f":"IF(G5995<>\"\",INDIRECT(\"'\"&G5995&\"'!\"&H5995),\"\")","v":15000},"BudgetSum 2-4","J21"]
[5991,{"$f":"'BudgetSum 2-4'!J22","v":206000},-200009,"New 2009",true,{"$f":"IF(G5996<>\"\",INDIRECT(\"'\"&G5996&\"'!\"&H5996),\"\")","v":206000},"BudgetSum 2-4","J22"]
[5992,{"$f":"'BudgetSum 2-4'!J28","v":0},5992,"New 2009",true,{"$f":"IF(G5997<>\"\",INDIRECT(\"'\"&G5997&\"'!\"&H5997),\"\")","v":0},"BudgetSum 2-4","J28"]
[5993,{"$f":"'BudgetSum 2-4'!J30","v":0},5993,"New 2009",true,{"$f":"IF(G5998<>\"\",INDIRECT(\"'\"&G5998&\"'!\"&H5998),\"\")","v":0},"BudgetSum 2-4","J30"]
[5994,{"$f":"'BudgetSum 2-4'!J35","v":0},5994,"New 2009",true,{"$f":"IF(G5999<>\"\",INDIRECT(\"'\"&G5999&\"'!\"&H5999),\"\")","v":0},"BudgetSum 2-4","J35"]
[5995,{"$f":"'BudgetSum 2-4'!J36","v":0},5995,"New 2009",true,{"$f":"IF(G6000<>\"\",INDIRECT(\"'\"&G6000&\"'!\"&H6000),\"\")","v":0},"BudgetSum 2-4","J36"]
[5996,{"$f":"'BudgetSum 2-4'!J37","v":0},5996,"New 2009",true,{"$f":"IF(G6001<>\"\",INDIRECT(\"'\"&G6001&\"'!\"&H6001),\"\")","v":0},"BudgetSum 2-4","J37"]
[5997,{"$f":"'BudgetSum 2-4'!J38","v":0},5997,"New 2009",true,{"$f":"IF(G6002<>\"\",INDIRECT(\"'\"&G6002&\"'!\"&H6002),\"\")","v":0},"BudgetSum 2-4","J38"]
[5998,{"$f":"'BudgetSum 2-4'!E39","v":0},5998,"New 2009",true,{"$f":"IF(G6003<>\"\",INDIRECT(\"'\"&G6003&\"'!\"&H6003),\"\")","v":0},"BudgetSum 2-4","E39"]
[5999,{"$f":"'BudgetSum 2-4'!E40","v":0},5999,"New 2009",true,{"$f":"IF(G6004<>\"\",INDIRECT(\"'\"&G6004&\"'!\"&H6004),\"\")","v":0},"BudgetSum 2-4","E40"]
[6000,{"$f":"'BudgetSum 2-4'!E41","v":0},6000,"New 2009",true,{"$f":"IF(G6005<>\"\",INDIRECT(\"'\"&G6005&\"'!\"&H6005),\"\")","v":0},"BudgetSum 2-4","E41"]
[6001,{"$f":"'BudgetSum 2-4'!E42","v":0},6001,"New 2009",true,{"$f":"IF(G6006<>\"\",INDIRECT(\"'\"&G6006&\"'!\"&H6006),\"\")","v":0},"BudgetSum 2-4","E42"]
[6002,{"$f":"'BudgetSum 2-4'!C44","v":0},6002,"New 2009",true,{"$f":"IF(G6007<>\"\",INDIRECT(\"'\"&G6007&\"'!\"&H6007),\"\")","v":0},"BudgetSum 2-4","C44"]
[6003,{"$f":"'BudgetSum 2-4'!D44","v":0},6003,"New 2009",true,{"$f":"IF(G6008<>\"\",INDIRECT(\"'\"&G6008&\"'!\"&H6008),\"\")","v":0},"BudgetSum 2-4","D44"]
[6004,{"$f":"'BudgetSum 2-4'!E44","v":0},6004,"New 2009",true,{"$f":"IF(G6009<>\"\",INDIRECT(\"'\"&G6009&\"'!\"&H6009),\"\")","v":0},"BudgetSum 2-4","E44"]
[6005,{"$f":"'BudgetSum 2-4'!F44","v":0},6005,"New 2009",true,{"$f":"IF(G6010<>\"\",INDIRECT(\"'\"&G6010&\"'!\"&H6010),\"\")","v":0},"BudgetSum 2-4","F44"]
[6006,{"$f":"'BudgetSum 2-4'!G44","v":0},6006,"New 2009",true,{"$f":"IF(G6011<>\"\",INDIRECT(\"'\"&G6011&\"'!\"&H6011),\"\")","v":0},"BudgetSum 2-4","G44"]
[6007,{"$f":"'BudgetSum 2-4'!H43","v":0},6007,"New 2009",true,{"$f":"IF(G6012<>\"\",INDIRECT(\"'\"&G6012&\"'!\"&H6012),\"\")","v":0},"BudgetSum 2-4","H43"]
[6008,{"$f":"'BudgetSum 2-4'!H44","v":0},6008,"New 2009",true,{"$f":"IF(G6013<>\"\",INDIRECT(\"'\"&G6013&\"'!\"&H6013),\"\")","v":0},"BudgetSum 2-4","H44"]
[6009,{"$f":"'BudgetSum 2-4'!K44","v":0},6009,"New 2009",true,{"$f":"IF(G6014<>\"\",INDIRECT(\"'\"&G6014&\"'!\"&H6014),\"\")","v":0},"BudgetSum 2-4","K44"]
[6010,{"$f":"'BudgetSum 2-4'!J46","v":0},6010,"New 2009",true,{"$f":"IF(G6015<>\"\",INDIRECT(\"'\"&G6015&\"'!\"&H6015),\"\")","v":0},"BudgetSum 2-4","J46"]
[6011,{"$f":"'BudgetSum 2-4'!C57","v":0},6011,"New 2009",true,{"$f":"IF(G6016<>\"\",INDIRECT(\"'\"&G6016&\"'!\"&H6016),\"\")","v":0},"BudgetSum 2-4","C57"]
[6012,{"$f":"'BudgetSum 2-4'!D57","v":0},6012,"New 2009",true,{"$f":"IF(G6017<>\"\",INDIRECT(\"'\"&G6017&\"'!\"&H6017),\"\")","v":0},"BudgetSum 2-4","D57"]
[6013,{"$f":"'BudgetSum 2-4'!H57","v":0},6013,"New 2009",{"$f":"F6018=B6018","v":true},{"$f":"IF(G6018<>\"\",INDIRECT(\"'\"&G6018&\"'!\"&H6018),\"\")","v":0},"BudgetSum 2-4","H57"]
[6014,{"$f":"'BudgetSum 2-4'!C61","v":{"v":0,"d":"0 "}},6014,"New 2009",true,{"$f":"IF(G6019<>\"\",INDIRECT(\"'\"&G6019&\"'!\"&H6019),\"\")","v":0},"BudgetSum 2-4","C61"]
[6015,{"$f":"'BudgetSum 2-4'!D61","v":{"v":0,"d":"0 "}},6015,"New 2009",true,{"$f":"IF(G6020<>\"\",INDIRECT(\"'\"&G6020&\"'!\"&H6020),\"\")","v":0},"BudgetSum 2-4","D61"]
[6016,{"$f":"'BudgetSum 2-4'!H61","v":{"v":0,"d":"0 "}},6016,"New 2009",true,{"$f":"IF(G6021<>\"\",INDIRECT(\"'\"&G6021&\"'!\"&H6021),\"\")","v":0},"BudgetSum 2-4","H61"]
[6017,{"$f":"'BudgetSum 2-4'!C65","v":{"v":0,"d":"0 "}},6017,"New 2009",true,{"$f":"IF(G6022<>\"\",INDIRECT(\"'\"&G6022&\"'!\"&H6022),\"\")","v":0},"BudgetSum 2-4","C65"]
[6018,{"$f":"'BudgetSum 2-4'!D65","v":{"v":0,"d":"0 "}},6018,"New 2009",true,{"$f":"IF(G6023<>\"\",INDIRECT(\"'\"&G6023&\"'!\"&H6023),\"\")","v":0},"BudgetSum 2-4","D65"]
[6019,{"$f":"'BudgetSum 2-4'!C69","v":{"v":0,"d":"0 "}},{"$f":"A6024-B6024","v":6019},"New 2009",true,{"$f":"IF(G6024<>\"\",INDIRECT(\"'\"&G6024&\"'!\"&H6024),\"\")","v":0},"BudgetSum 2-4","C69"]
[6020,{"$f":"'BudgetSum 2-4'!D69","v":{"v":0,"d":"0 "}},6020,"New 2009",true,{"$f":"IF(G6025<>\"\",INDIRECT(\"'\"&G6025&\"'!\"&H6025),\"\")","v":0},"BudgetSum 2-4","D69"]
[6021,{"$f":"'BudgetSum 2-4'!C73","v":{"v":0,"d":"0 "}},6021,"New 2009",true,{"$f":"IF(G6026<>\"\",INDIRECT(\"'\"&G6026&\"'!\"&H6026),\"\")","v":0},"BudgetSum 2-4","C73"]
[6022,{"$f":"'BudgetSum 2-4'!D73","v":{"v":0,"d":"0 "}},6022,"New 2009",true,{"$f":"IF(G6027<>\"\",INDIRECT(\"'\"&G6027&\"'!\"&H6027),\"\")","v":0},"BudgetSum 2-4","D73"]
[6023,null,null,"New 2009",true,{"$f":"IF(G6028<>\"\",INDIRECT(\"'\"&G6028&\"'!\"&H6028),\"\")","v":""}]
[6024,{"$f":"'BudgetSum 2-4'!C77","v":0},6024,"New 2009",true,{"$f":"IF(G6029<>\"\",INDIRECT(\"'\"&G6029&\"'!\"&H6029),\"\")","v":0},"BudgetSum 2-4","C77"]
[6025,{"$f":"'BudgetSum 2-4'!D77","v":0},6025,"New 2009",true,{"$f":"IF(G6030<>\"\",INDIRECT(\"'\"&G6030&\"'!\"&H6030),\"\")","v":0},"BudgetSum 2-4","D77"]
[6026,{"$f":"'BudgetSum 2-4'!F77","v":0},6026,"New 2009",true,{"$f":"IF(G6031<>\"\",INDIRECT(\"'\"&G6031&\"'!\"&H6031),\"\")","v":0},"BudgetSum 2-4","F77"]
[6027,{"$f":"'BudgetSum 2-4'!G77","v":0},6027,"New 2009",true,{"$f":"IF(G6032<>\"\",INDIRECT(\"'\"&G6032&\"'!\"&H6032),\"\")","v":0},"BudgetSum 2-4","G77"]
[6028,{"$f":"'BudgetSum 2-4'!H77","v":0},6028,"New 2009",true,{"$f":"IF(G6033<>\"\",INDIRECT(\"'\"&G6033&\"'!\"&H6033),\"\")","v":0},"BudgetSum 2-4","H77"]
[6029,{"$f":"'BudgetSum 2-4'!K77","v":0},6029,"New 2009",true,{"$f":"IF(G6034<>\"\",INDIRECT(\"'\"&G6034&\"'!\"&H6034),\"\")","v":0},"BudgetSum 2-4","K77"]
[6030,{"$f":"'BudgetSum 2-4'!G78","v":0},6030,"New 2009",true,{"$f":"IF(G6035<>\"\",INDIRECT(\"'\"&G6035&\"'!\"&H6035),\"\")","v":0},"BudgetSum 2-4","G78"]
[6031,{"$f":"'BudgetSum 2-4'!I78","v":0},6031,"New 2009",true,{"$f":"IF(G6036<>\"\",INDIRECT(\"'\"&G6036&\"'!\"&H6036),\"\")","v":0},"BudgetSum 2-4","I78"]
[6032,{"$f":"'BudgetSum 2-4'!J78","v":0},6032,"New 2009",true,{"$f":"IF(G6037<>\"\",INDIRECT(\"'\"&G6037&\"'!\"&H6037),\"\")","v":0},"BudgetSum 2-4","J78"]
[6033,{"$f":"'BudgetSum 2-4'!K78","v":0},6033,"New 2009",true,{"$f":"IF(G6038<>\"\",INDIRECT(\"'\"&G6038&\"'!\"&H6038),\"\")","v":0},"BudgetSum 2-4","K78"]
[6034,{"$f":"'BudgetSum 2-4'!J79","v":0},6034,"New 2009",true,{"$f":"IF(G6039<>\"\",INDIRECT(\"'\"&G6039&\"'!\"&H6039),\"\")","v":0},"BudgetSum 2-4","J79"]
[6035,{"$f":"'BudgetSum 2-4'!J80","v":0},6035,"New 2009",true,{"$f":"IF(G6040<>\"\",INDIRECT(\"'\"&G6040&\"'!\"&H6040),\"\")","v":0},"BudgetSum 2-4","J80"]
[6036,{"$f":"'BudgetSum 2-4'!J81","v":206000},-199964,"New 2009",true,{"$f":"IF(G6041<>\"\",INDIRECT(\"'\"&G6041&\"'!\"&H6041),\"\")","v":206000},"BudgetSum 2-4","J81"]
[6037,{"$f":"'CashSum 5'!J3","v":{"v":0,"d":"0 "}},6037,"New 2009",true,{"$f":"IF(G6042<>\"\",INDIRECT(\"'\"&G6042&\"'!\"&H6042),\"\")","v":0},"CashSum 5","J3"]
[6038,{"$f":"'CashSum 5'!J4","v":{"v":221000,"d":"221,000 "}},-214962,"New 2009",true,{"$f":"IF(G6043<>\"\",INDIRECT(\"'\"&G6043&\"'!\"&H6043),\"\")","v":221000},"CashSum 5","J4"]
[6039,{"$f":"'CashSum 5'!D6","v":{"v":0,"d":"0 "}},6039,"New 2009",true,{"$f":"IF(G6044<>\"\",INDIRECT(\"'\"&G6044&\"'!\"&H6044),\"\")","v":0},"CashSum 5","D6"]
[6040,{"$f":"'CashSum 5'!F6","v":{"v":0,"d":"0 "}},6040,"New 2009",true,{"$f":"IF(G6045<>\"\",INDIRECT(\"'\"&G6045&\"'!\"&H6045),\"\")","v":0},"CashSum 5","F6"]
[6041,{"$f":"'CashSum 5'!J6","v":{"v":0,"d":"0 "}},6041,"New 2009",true,{"$f":"IF(G6046<>\"\",INDIRECT(\"'\"&G6046&\"'!\"&H6046),\"\")","v":0},"CashSum 5","J6"]
[6042,{"$f":"'CashSum 5'!E8","v":{"v":0,"d":"0 "}},6042,"New 2009",true,{"$f":"IF(G6047<>\"\",INDIRECT(\"'\"&G6047&\"'!\"&H6047),\"\")","v":0},"CashSum 5","E8"]
[6043,{"$f":"'CashSum 5'!F8","v":{"v":0,"d":"0 "}},6043,"New 2009",true,{"$f":"IF(G6048<>\"\",INDIRECT(\"'\"&G6048&\"'!\"&H6048),\"\")","v":0},"CashSum 5","F8"]
[6044,{"$f":"'CashSum 5'!G8","v":{"v":0,"d":"0 "}},6044,"New 2009",true,{"$f":"IF(G6049<>\"\",INDIRECT(\"'\"&G6049&\"'!\"&H6049),\"\")","v":0},"CashSum 5","G8"]
[6045,{"$f":"'CashSum 5'!J8","v":{"v":0,"d":"0 "}},6045,"New 2009",true,{"$f":"IF(G6050<>\"\",INDIRECT(\"'\"&G6050&\"'!\"&H6050),\"\")","v":0},"CashSum 5","J8"]
[6046,{"$f":"'CashSum 5'!E9","v":{"v":0,"d":"0 "}},6046,"New 2009",true,{"$f":"IF(G6051<>\"\",INDIRECT(\"'\"&G6051&\"'!\"&H6051),\"\")","v":0},"CashSum 5","E9"]
[6047,{"$f":"'CashSum 5'!F9","v":{"v":0,"d":"0 "}},6047,"New 2009",true,{"$f":"IF(G6052<>\"\",INDIRECT(\"'\"&G6052&\"'!\"&H6052),\"\")","v":0},"CashSum 5","F9"]
[6048,{"$f":"'CashSum 5'!G9","v":{"v":0,"d":"0 "}},6048,"New 2009",true,{"$f":"IF(G6053<>\"\",INDIRECT(\"'\"&G6053&\"'!\"&H6053),\"\")","v":0},"CashSum 5","G9"]
[6049,{"$f":"'CashSum 5'!J10","v":{"v":0,"d":"0 "}},6049,"New 2009",true,{"$f":"IF(G6054<>\"\",INDIRECT(\"'\"&G6054&\"'!\"&H6054),\"\")","v":0},"CashSum 5","J10"]
[6050,{"$f":"'CashSum 5'!J11","v":{"v":221000,"d":"221,000 "}},-214950,"New 2009",true,{"$f":"IF(G6055<>\"\",INDIRECT(\"'\"&G6055&\"'!\"&H6055),\"\")","v":221000},"CashSum 5","J11"]
[6051,{"$f":"'CashSum 5'!J12","v":{"v":221000,"d":"221,000 "}},-214949,"New 2009",true,{"$f":"IF(G6056<>\"\",INDIRECT(\"'\"&G6056&\"'!\"&H6056),\"\")","v":221000},"CashSum 5","J12"]
[6052,{"$f":"'CashSum 5'!J13","v":{"v":15000,"d":"15,000 "}},-8948,"New 2009",true,{"$f":"IF(G6057<>\"\",INDIRECT(\"'\"&G6057&\"'!\"&H6057),\"\")","v":15000},"CashSum 5","J13"]
[6053,{"$f":"'CashSum 5'!J16","v":{"v":0,"d":"0 "}},6053,"New 2009",true,{"$f":"IF(G6058<>\"\",INDIRECT(\"'\"&G6058&\"'!\"&H6058),\"\")","v":0},"CashSum 5","J16"]
[6054,{"$f":"'CashSum 5'!J17","v":{"v":0,"d":"0 "}},6054,"New 2009",true,{"$f":"IF(G6059<>\"\",INDIRECT(\"'\"&G6059&\"'!\"&H6059),\"\")","v":0},"CashSum 5","J17"]
[6055,{"$f":"'CashSum 5'!J19","v":{"v":0,"d":"0 "}},6055,"New 2009",true,{"$f":"IF(G6060<>\"\",INDIRECT(\"'\"&G6060&\"'!\"&H6060),\"\")","v":0},"CashSum 5","J19"]
[6056,{"$f":"'CashSum 5'!J20","v":{"v":15000,"d":"15,000 "}},-8944,"New 2009",true,{"$f":"IF(G6061<>\"\",INDIRECT(\"'\"&G6061&\"'!\"&H6061),\"\")","v":15000},"CashSum 5","J20"]
[6057,{"$f":"'CashSum 5'!J21","v":{"v":206000,"d":"206,000 "}},-199943,"New 2009",true,{"$f":"IF(G6062<>\"\",INDIRECT(\"'\"&G6062&\"'!\"&H6062),\"\")","v":206000},"CashSum 5","J21"]
[6058,{"$f":"'EstRev 6-11'!J5","v":21000},-14942,"New 2009",true,{"$f":"IF(G6063<>\"\",INDIRECT(\"'\"&G6063&\"'!\"&H6063),\"\")","v":21000},"EstRev 6-11","J5"]
[6059,{"$f":"'EstRev 6-11'!H7","v":0},6059,"New 2009",true,{"$f":"IF(G6064<>\"\",INDIRECT(\"'\"&G6064&\"'!\"&H6064),\"\")","v":0},"EstRev 6-11","H7"]
[6060,{"$f":"'EstRev 6-11'!H9","v":0},6060,"New 2009",true,{"$f":"IF(G6065<>\"\",INDIRECT(\"'\"&G6065&\"'!\"&H6065),\"\")","v":0},"EstRev 6-11","H9"]
[6061,{"$f":"'EstRev 6-11'!J11","v":0},6061,"New 2009",true,{"$f":"IF(G6066<>\"\",INDIRECT(\"'\"&G6066&\"'!\"&H6066),\"\")","v":0},"EstRev 6-11","J11"]
[6062,{"$f":"'EstRev 6-11'!J12","v":21000},-14938,"New 2009",true,{"$f":"IF(G6067<>\"\",INDIRECT(\"'\"&G6067&\"'!\"&H6067),\"\")","v":21000},"EstRev 6-11","J12"]
[6063,{"$f":"'EstRev 6-11'!J14","v":0},6063,"New 2009",true,{"$f":"IF(G6068<>\"\",INDIRECT(\"'\"&G6068&\"'!\"&H6068),\"\")","v":0},"EstRev 6-11","J14"]
[6064,{"$f":"'EstRev 6-11'!J15","v":0},6064,"New 2009",true,{"$f":"IF(G6069<>\"\",INDIRECT(\"'\"&G6069&\"'!\"&H6069),\"\")","v":0},"EstRev 6-11","J15"]
[6065,{"$f":"'EstRev 6-11'!J16","v":0},6065,"New 2009",true,{"$f":"IF(G6070<>\"\",INDIRECT(\"'\"&G6070&\"'!\"&H6070),\"\")","v":0},"EstRev 6-11","J16"]
[6066,{"$f":"'EstRev 6-11'!J17","v":0},6066,"New 2009",true,{"$f":"IF(G6071<>\"\",INDIRECT(\"'\"&G6071&\"'!\"&H6071),\"\")","v":0},"EstRev 6-11","J17"]
[6067,{"$f":"'EstRev 6-11'!J18","v":0},6067,"New 2009",true,{"$f":"IF(G6072<>\"\",INDIRECT(\"'\"&G6072&\"'!\"&H6072),\"\")","v":0},"EstRev 6-11","J18"]
[6068,{"$f":"'EstRev 6-11'!C23","v":0},6068,"New 2009",true,{"$f":"IF(G6073<>\"\",INDIRECT(\"'\"&G6073&\"'!\"&H6073),\"\")","v":0},"EstRev 6-11","C23"]
[6069,{"$f":"'EstRev 6-11'!C27","v":0},6069,"New 2009",true,{"$f":"IF(G6074<>\"\",INDIRECT(\"'\"&G6074&\"'!\"&H6074),\"\")","v":0},"EstRev 6-11","C27"]
[6070,{"$f":"'EstRev 6-11'!C31","v":0},6070,"New 2009",true,{"$f":"IF(G6075<>\"\",INDIRECT(\"'\"&G6075&\"'!\"&H6075),\"\")","v":0},"EstRev 6-11","C31"]
[6071,{"$f":"'EstRev 6-11'!C35","v":0},6071,"New 2009",true,{"$f":"IF(G6076<>\"\",INDIRECT(\"'\"&G6076&\"'!\"&H6076),\"\")","v":0},"EstRev 6-11","C35"]
[6072,{"$f":"'EstRev 6-11'!C39","v":0},6072,"New 2009",true,{"$f":"IF(G6077<>\"\",INDIRECT(\"'\"&G6077&\"'!\"&H6077),\"\")","v":0},"EstRev 6-11","C39"]
[6073,{"$f":"'EstRev 6-11'!F46","v":0},6073,"New 2009",true,{"$f":"IF(G6078<>\"\",INDIRECT(\"'\"&G6078&\"'!\"&H6078),\"\")","v":0},"EstRev 6-11","F46"]
[6074,{"$f":"'EstRev 6-11'!F50","v":0},6074,"New 2009",true,{"$f":"IF(G6079<>\"\",INDIRECT(\"'\"&G6079&\"'!\"&H6079),\"\")","v":0},"EstRev 6-11","F50"]
[6075,{"$f":"'EstRev 6-11'!F54","v":0},6075,"New 2009",true,{"$f":"IF(G6080<>\"\",INDIRECT(\"'\"&G6080&\"'!\"&H6080),\"\")","v":0},"EstRev 6-11","F54"]
[6076,{"$f":"'EstRev 6-11'!F58","v":0},6076,"New 2009",true,{"$f":"IF(G6081<>\"\",INDIRECT(\"'\"&G6081&\"'!\"&H6081),\"\")","v":0},"EstRev 6-11","F58"]
[6077,{"$f":"'EstRev 6-11'!F62","v":0},6077,"New 2009",{"$f":"F6082=B6082","v":true},{"$f":"IF(G6082<>\"\",INDIRECT(\"'\"&G6082&\"'!\"&H6082),\"\")","v":0},"EstRev 6-11","F62"]
[6078,{"$f":"'EstRev 6-11'!J65","v":0},6078,"New 2009",true,{"$f":"IF(G6083<>\"\",INDIRECT(\"'\"&G6083&\"'!\"&H6083),\"\")","v":0},"EstRev 6-11","J65"]
[6079,{"$f":"'EstRev 6-11'!J66","v":0},6079,"New 2009",true,{"$f":"IF(G6084<>\"\",INDIRECT(\"'\"&G6084&\"'!\"&H6084),\"\")","v":0},"EstRev 6-11","J66"]
[6080,{"$f":"'EstRev 6-11'!J67","v":0},6080,"New 2009",true,{"$f":"IF(G6085<>\"\",INDIRECT(\"'\"&G6085&\"'!\"&H6085),\"\")","v":0},"EstRev 6-11","J67"]
[6081,{"$f":"'EstRev 6-11'!C99","v":0},6081,"New 2009",true,{"$f":"IF(G6086<>\"\",INDIRECT(\"'\"&G6086&\"'!\"&H6086),\"\")","v":0},"EstRev 6-11","C99"]
[6082,{"$f":"'EstRev 6-11'!D99","v":0},6082,"New 2009",true,{"$f":"IF(G6087<>\"\",INDIRECT(\"'\"&G6087&\"'!\"&H6087),\"\")","v":0},"EstRev 6-11","D99"]
[6083,{"$f":"'EstRev 6-11'!E99","v":0},{"$f":"A6088-B6088","v":6083},"New 2009",true,{"$f":"IF(G6088<>\"\",INDIRECT(\"'\"&G6088&\"'!\"&H6088),\"\")","v":0},"EstRev 6-11","E99"]
[6084,{"$f":"'EstRev 6-11'!F99","v":0},6084,"New 2009",true,{"$f":"IF(G6089<>\"\",INDIRECT(\"'\"&G6089&\"'!\"&H6089),\"\")","v":0},"EstRev 6-11","F99"]
[6085,{"$f":"'EstRev 6-11'!G99","v":0},6085,"New 2009",true,{"$f":"IF(G6090<>\"\",INDIRECT(\"'\"&G6090&\"'!\"&H6090),\"\")","v":0},"EstRev 6-11","G99"]
[6086,{"$f":"'EstRev 6-11'!H99","v":0},6086,"New 2009",true,{"$f":"IF(G6091<>\"\",INDIRECT(\"'\"&G6091&\"'!\"&H6091),\"\")","v":0},"EstRev 6-11","H99"]
[6087,{"$f":"'EstRev 6-11'!I99","v":0},6087,"New 2009",true,{"$f":"IF(G6092<>\"\",INDIRECT(\"'\"&G6092&\"'!\"&H6092),\"\")","v":0},"EstRev 6-11","I99"]
[6088,{"$f":"'EstRev 6-11'!J99","v":0},6088,"New 2009",true,{"$f":"IF(G6093<>\"\",INDIRECT(\"'\"&G6093&\"'!\"&H6093),\"\")","v":0},"EstRev 6-11","J99"]
[6089,{"$f":"'EstRev 6-11'!K99","v":0},6089,"New 2009",true,{"$f":"IF(G6094<>\"\",INDIRECT(\"'\"&G6094&\"'!\"&H6094),\"\")","v":0},"EstRev 6-11","K99"]
[6090,{"$f":"'EstRev 6-11'!J101","v":0},6090,"New 2009",true,{"$f":"IF(G6095<>\"\",INDIRECT(\"'\"&G6095&\"'!\"&H6095),\"\")","v":0},"EstRev 6-11","J101"]
[6091,{"$f":"'EstRev 6-11'!C102","v":0},6091,"New 2009",true,{"$f":"IF(G6096<>\"\",INDIRECT(\"'\"&G6096&\"'!\"&H6096),\"\")","v":0},"EstRev 6-11","C102"]
[6092,{"$f":"'EstRev 6-11'!D102","v":0},6092,"New 2009",true,{"$f":"IF(G6097<>\"\",INDIRECT(\"'\"&G6097&\"'!\"&H6097),\"\")","v":0},"EstRev 6-11","D102"]
[6093,{"$f":"'EstRev 6-11'!E102","v":0},6093,"New 2009",true,{"$f":"IF(G6098<>\"\",INDIRECT(\"'\"&G6098&\"'!\"&H6098),\"\")","v":0},"EstRev 6-11","E102"]
[6094,{"$f":"'EstRev 6-11'!F102","v":0},6094,"New 2009",true,{"$f":"IF(G6099<>\"\",INDIRECT(\"'\"&G6099&\"'!\"&H6099),\"\")","v":0},"EstRev 6-11","F102"]
[6095,{"$f":"'EstRev 6-11'!G102","v":0},6095,"New 2009",true,{"$f":"IF(G6100<>\"\",INDIRECT(\"'\"&G6100&\"'!\"&H6100),\"\")","v":0},"EstRev 6-11","G102"]
[6096,{"$f":"'EstRev 6-11'!H102","v":0},6096,"New 2009",true,{"$f":"IF(G6101<>\"\",INDIRECT(\"'\"&G6101&\"'!\"&H6101),\"\")","v":0},"EstRev 6-11","H102"]
[6097,{"$f":"'EstRev 6-11'!I102","v":0},6097,"New 2009",true,{"$f":"IF(G6102<>\"\",INDIRECT(\"'\"&G6102&\"'!\"&H6102),\"\")","v":0},"EstRev 6-11","I102"]
[6098,{"$f":"'EstRev 6-11'!J102","v":0},6098,"New 2009",true,{"$f":"IF(G6103<>\"\",INDIRECT(\"'\"&G6103&\"'!\"&H6103),\"\")","v":0},"EstRev 6-11","J102"]
[6099,{"$f":"'EstRev 6-11'!K102","v":0},6099,"New 2009",true,{"$f":"IF(G6104<>\"\",INDIRECT(\"'\"&G6104&\"'!\"&H6104),\"\")","v":0},"EstRev 6-11","K102"]
[6100,{"$f":"'EstRev 6-11'!C103","v":0},6100,"New 2009",true,{"$f":"IF(G6105<>\"\",INDIRECT(\"'\"&G6105&\"'!\"&H6105),\"\")","v":0},"EstRev 6-11","C103"]
[6101,{"$f":"'EstRev 6-11'!C104","v":0},6101,"New 2009",true,{"$f":"IF(G6106<>\"\",INDIRECT(\"'\"&G6106&\"'!\"&H6106),\"\")","v":0},"EstRev 6-11","C104"]
[6102,{"$f":"'EstRev 6-11'!D104","v":0},6102,"New 2009",true,{"$f":"IF(G6107<>\"\",INDIRECT(\"'\"&G6107&\"'!\"&H6107),\"\")","v":0},"EstRev 6-11","D104"]
[6103,{"$f":"'EstRev 6-11'!E104","v":0},6103,"New 2009",true,{"$f":"IF(G6108<>\"\",INDIRECT(\"'\"&G6108&\"'!\"&H6108),\"\")","v":0},"EstRev 6-11","E104"]
[6104,{"$f":"'EstRev 6-11'!F104","v":0},6104,"New 2009",true,{"$f":"IF(G6109<>\"\",INDIRECT(\"'\"&G6109&\"'!\"&H6109),\"\")","v":0},"EstRev 6-11","F104"]
[6105,{"$f":"'EstRev 6-11'!G104","v":0},6105,"New 2009",true,{"$f":"IF(G6110<>\"\",INDIRECT(\"'\"&G6110&\"'!\"&H6110),\"\")","v":0},"EstRev 6-11","G104"]
[6106,{"$f":"'EstRev 6-11'!H104","v":0},6106,"New 2009",true,{"$f":"IF(G6111<>\"\",INDIRECT(\"'\"&G6111&\"'!\"&H6111),\"\")","v":0},"EstRev 6-11","H104"]
[6107,{"$f":"'EstRev 6-11'!I104","v":0},6107,"New 2009",true,{"$f":"IF(G6112<>\"\",INDIRECT(\"'\"&G6112&\"'!\"&H6112),\"\")","v":0},"EstRev 6-11","I104"]
[6108,{"$f":"'EstRev 6-11'!J104","v":0},6108,"New 2009",true,{"$f":"IF(G6113<>\"\",INDIRECT(\"'\"&G6113&\"'!\"&H6113),\"\")","v":0},"EstRev 6-11","J104"]
[6109,{"$f":"'EstRev 6-11'!K104","v":0},6109,"New 2009",true,{"$f":"IF(G6114<>\"\",INDIRECT(\"'\"&G6114&\"'!\"&H6114),\"\")","v":0},"EstRev 6-11","K104"]
[6110,{"$f":"'EstRev 6-11'!G106","v":0},6110,"New 2009",true,{"$f":"IF(G6115<>\"\",INDIRECT(\"'\"&G6115&\"'!\"&H6115),\"\")","v":0},"EstRev 6-11","G106"]
[6111,{"$f":"'EstRev 6-11'!D108","v":0},6111,"New 2009",true,{"$f":"IF(G6116<>\"\",INDIRECT(\"'\"&G6116&\"'!\"&H6116),\"\")","v":0},"EstRev 6-11","D108"]
[6112,{"$f":"'EstRev 6-11'!E108","v":0},6112,"New 2009",true,{"$f":"IF(G6117<>\"\",INDIRECT(\"'\"&G6117&\"'!\"&H6117),\"\")","v":0},"EstRev 6-11","E108"]
[6113,{"$f":"'EstRev 6-11'!F108","v":0},6113,"New 2009",true,{"$f":"IF(G6118<>\"\",INDIRECT(\"'\"&G6118&\"'!\"&H6118),\"\")","v":0},"EstRev 6-11","F108"]
[6114,{"$f":"'EstRev 6-11'!G108","v":0},6114,"New 2009",true,{"$f":"IF(G6119<>\"\",INDIRECT(\"'\"&G6119&\"'!\"&H6119),\"\")","v":0},"EstRev 6-11","G108"]
[6115,{"$f":"'EstRev 6-11'!H108","v":0},6115,"New 2009",true,{"$f":"IF(G6120<>\"\",INDIRECT(\"'\"&G6120&\"'!\"&H6120),\"\")","v":0},"EstRev 6-11","H108"]
[6116,{"$f":"'EstRev 6-11'!J108","v":0},6116,"New 2009",true,{"$f":"IF(G6121<>\"\",INDIRECT(\"'\"&G6121&\"'!\"&H6121),\"\")","v":0},"EstRev 6-11","J108"]
[6117,{"$f":"'EstRev 6-11'!K108","v":0},6117,"New 2009",true,{"$f":"IF(G6122<>\"\",INDIRECT(\"'\"&G6122&\"'!\"&H6122),\"\")","v":0},"EstRev 6-11","K108"]
[6118,{"$f":"'EstRev 6-11'!J98","v":0},6118,"New 2009",true,{"$f":"IF(G6123<>\"\",INDIRECT(\"'\"&G6123&\"'!\"&H6123),\"\")","v":0},"EstRev 6-11","J98"]
[6119,{"$f":"'EstRev 6-11'!J109","v":0},6119,"New 2009",true,{"$f":"IF(G6124<>\"\",INDIRECT(\"'\"&G6124&\"'!\"&H6124),\"\")","v":0},"EstRev 6-11","J109"]
[6120,{"$f":"'EstRev 6-11'!J111","v":21000},-14880,"New 2009",true,{"$f":"IF(G6125<>\"\",INDIRECT(\"'\"&G6125&\"'!\"&H6125),\"\")","v":21000},"EstRev 6-11","J111"]
[6121,{"$f":"'EstRev 6-11'!J120","v":200000},-193879,"New 2009",true,{"$f":"IF(G6126<>\"\",INDIRECT(\"'\"&G6126&\"'!\"&H6126),\"\")","v":200000},"EstRev 6-11","J120"]
[6122,null,null,"New 2009-Closed 2018",true,{"$f":"IF(G6127<>\"\",INDIRECT(\"'\"&G6127&\"'!\"&H6127),\"\")","v":""}]
[6123,{"$f":"'EstRev 6-11'!J121","v":0},6123,"New 2009",true,{"$f":"IF(G6128<>\"\",INDIRECT(\"'\"&G6128&\"'!\"&H6128),\"\")","v":0},"EstRev 6-11","J121"]
[6124,{"$f":"'EstRev 6-11'!J123","v":0},6124,"New 2009",true,{"$f":"IF(G6129<>\"\",INDIRECT(\"'\"&G6129&\"'!\"&H6129),\"\")","v":0},"EstRev 6-11","J123"]
[6125,{"$f":"'EstRev 6-11'!J124","v":200000},-193875,"New 2009",true,{"$f":"IF(G6130<>\"\",INDIRECT(\"'\"&G6130&\"'!\"&H6130),\"\")","v":200000},"EstRev 6-11","J124"]
[6126,{"$f":"'EstRev 6-11'!C139","v":0},6126,"New 2009",true,{"$f":"IF(G6131<>\"\",INDIRECT(\"'\"&G6131&\"'!\"&H6131),\"\")","v":0},"EstRev 6-11","C139"]
[6127,{"$f":"'EstRev 6-11'!D139","v":0},6127,"New 2009",true,{"$f":"IF(G6132<>\"\",INDIRECT(\"'\"&G6132&\"'!\"&H6132),\"\")","v":0},"EstRev 6-11","D139"]
[6128,{"$f":"'EstRev 6-11'!G137","v":0},6128,"New 2009",true,{"$f":"IF(G6133<>\"\",INDIRECT(\"'\"&G6133&\"'!\"&H6133),\"\")","v":0},"EstRev 6-11","G137"]
[6129,{"$f":"'EstRev 6-11'!G139","v":0},6129,"New 2009",true,{"$f":"IF(G6134<>\"\",INDIRECT(\"'\"&G6134&\"'!\"&H6134),\"\")","v":0},"EstRev 6-11","G139"]
[6130,{"$f":"'EstRev 6-11'!C140","v":0},6130,"New 2009",true,{"$f":"IF(G6135<>\"\",INDIRECT(\"'\"&G6135&\"'!\"&H6135),\"\")","v":0},"EstRev 6-11","C140"]
[6131,{"$f":"'EstRev 6-11'!D140","v":0},6131,"New 2009",true,{"$f":"IF(G6136<>\"\",INDIRECT(\"'\"&G6136&\"'!\"&H6136),\"\")","v":0},"EstRev 6-11","D140"]
[6132,{"$f":"'EstRev 6-11'!G140","v":0},6132,"New 2009",true,{"$f":"IF(G6137<>\"\",INDIRECT(\"'\"&G6137&\"'!\"&H6137),\"\")","v":0},"EstRev 6-11","G140"]
[6133,{"$f":"'EstRev 6-11'!C141","v":0},6133,"New 2009",true,{"$f":"IF(G6138<>\"\",INDIRECT(\"'\"&G6138&\"'!\"&H6138),\"\")","v":0},"EstRev 6-11","C141"]
[6134,{"$f":"'EstRev 6-11'!D141","v":0},6134,"New 2009",true,{"$f":"IF(G6139<>\"\",INDIRECT(\"'\"&G6139&\"'!\"&H6139),\"\")","v":0},"EstRev 6-11","D141"]
[6135,{"$f":"'EstRev 6-11'!G141","v":0},6135,"New 2009",true,{"$f":"IF(G6140<>\"\",INDIRECT(\"'\"&G6140&\"'!\"&H6140),\"\")","v":0},"EstRev 6-11","G141"]
[6136,{"$f":"'EstRev 6-11'!E151","v":0},6136,"New 2009",true,{"$f":"IF(G6141<>\"\",INDIRECT(\"'\"&G6141&\"'!\"&H6141),\"\")","v":0},"EstRev 6-11","E151"]
[6137,{"$f":"'EstRev 6-11'!F151","v":0},6137,"New 2009",true,{"$f":"IF(G6142<>\"\",INDIRECT(\"'\"&G6142&\"'!\"&H6142),\"\")","v":0},"EstRev 6-11","F151"]
[6138,{"$f":"'EstRev 6-11'!G151","v":0},6138,"New 2009",true,{"$f":"IF(G6143<>\"\",INDIRECT(\"'\"&G6143&\"'!\"&H6143),\"\")","v":0},"EstRev 6-11","G151"]
[6139,{"$f":"'EstRev 6-11'!H151","v":0},6139,"New 2009",true,{"$f":"IF(G6144<>\"\",INDIRECT(\"'\"&G6144&\"'!\"&H6144),\"\")","v":0},"EstRev 6-11","H151"]
[6140,{"$f":"'EstRev 6-11'!I151","v":0},6140,"New 2009",true,{"$f":"IF(G6145<>\"\",INDIRECT(\"'\"&G6145&\"'!\"&H6145),\"\")","v":0},"EstRev 6-11","I151"]
[6141,{"$f":"'EstRev 6-11'!J151","v":0},6141,"New 2009",{"$f":"F6146=B6146","v":true},{"$f":"IF(G6146<>\"\",INDIRECT(\"'\"&G6146&\"'!\"&H6146),\"\")","v":0},"EstRev 6-11","J151"]
[6142,{"$f":"'EstRev 6-11'!K151","v":0},6142,"New 2009",true,{"$f":"IF(G6147<>\"\",INDIRECT(\"'\"&G6147&\"'!\"&H6147),\"\")","v":0},"EstRev 6-11","K151"]
[6143,{"$f":"'EstRev 6-11'!E152","v":0},6143,"New 2009",true,{"$f":"IF(G6148<>\"\",INDIRECT(\"'\"&G6148&\"'!\"&H6148),\"\")","v":0},"EstRev 6-11","E152"]
[6144,{"$f":"'EstRev 6-11'!H152","v":0},6144,"New 2009",true,{"$f":"IF(G6149<>\"\",INDIRECT(\"'\"&G6149&\"'!\"&H6149),\"\")","v":0},"EstRev 6-11","H152"]
[6145,{"$f":"'EstRev 6-11'!I152","v":0},6145,"New 2009",true,{"$f":"IF(G6150<>\"\",INDIRECT(\"'\"&G6150&\"'!\"&H6150),\"\")","v":0},"EstRev 6-11","I152"]
[6146,{"$f":"'EstRev 6-11'!J152","v":0},6146,"New 2009",true,{"$f":"IF(G6151<>\"\",INDIRECT(\"'\"&G6151&\"'!\"&H6151),\"\")","v":0},"EstRev 6-11","J152"]
[6147,{"$f":"'EstRev 6-11'!K152","v":0},{"$f":"A6152-B6152","v":6147},"New 2009",true,{"$f":"IF(G6152<>\"\",INDIRECT(\"'\"&G6152&\"'!\"&H6152),\"\")","v":0},"EstRev 6-11","K152"]
[6148,{"$f":"'EstRev 6-11'!G154","v":0},6148,"New 2009",true,{"$f":"IF(G6153<>\"\",INDIRECT(\"'\"&G6153&\"'!\"&H6153),\"\")","v":0},"EstRev 6-11","G154"]
[6149,{"$f":"'EstRev 6-11'!G155","v":0},6149,"New 2009",true,{"$f":"IF(G6154<>\"\",INDIRECT(\"'\"&G6154&\"'!\"&H6154),\"\")","v":0},"EstRev 6-11","G155"]
[6150,null,null,"New 2009-Closed 2018",true,{"$f":"IF(G6155<>\"\",INDIRECT(\"'\"&G6155&\"'!\"&H6155),\"\")","v":""}]
[6151,null,null,"New 2009-Closed 2018",true,{"$f":"IF(G6156<>\"\",INDIRECT(\"'\"&G6156&\"'!\"&H6156),\"\")","v":""}]
[6152,null,null,"New 2009-Closed 2018",true,{"$f":"IF(G6157<>\"\",INDIRECT(\"'\"&G6157&\"'!\"&H6157),\"\")","v":""}]
[6153,null,null,"New 2009-Closed 2018",true,{"$f":"IF(G6158<>\"\",INDIRECT(\"'\"&G6158&\"'!\"&H6158),\"\")","v":""}]
[6154,null,null,"New 2009-Closed 2018",true,{"$f":"IF(G6159<>\"\",INDIRECT(\"'\"&G6159&\"'!\"&H6159),\"\")","v":""}]
[6155,null,null,"New 2009-Closed 2018",true,{"$f":"IF(G6160<>\"\",INDIRECT(\"'\"&G6160&\"'!\"&H6160),\"\")","v":""}]
[6156,{"$f":"'EstRev 6-11'!C165","v":0},6156,"New 2009",true,{"$f":"IF(G6161<>\"\",INDIRECT(\"'\"&G6161&\"'!\"&H6161),\"\")","v":0},"EstRev 6-11","C165"]
[6157,{"$f":"'EstRev 6-11'!D165","v":0},6157,"New 2009",true,{"$f":"IF(G6162<>\"\",INDIRECT(\"'\"&G6162&\"'!\"&H6162),\"\")","v":0},"EstRev 6-11","D165"]
[6158,{"$f":"'EstRev 6-11'!E165","v":0},6158,"New 2009",true,{"$f":"IF(G6163<>\"\",INDIRECT(\"'\"&G6163&\"'!\"&H6163),\"\")","v":0},"EstRev 6-11","E165"]
[6159,{"$f":"'EstRev 6-11'!F165","v":0},6159,"New 2009",true,{"$f":"IF(G6164<>\"\",INDIRECT(\"'\"&G6164&\"'!\"&H6164),\"\")","v":0},"EstRev 6-11","F165"]
[6160,{"$f":"'EstRev 6-11'!G165","v":0},6160,"New 2009",true,{"$f":"IF(G6165<>\"\",INDIRECT(\"'\"&G6165&\"'!\"&H6165),\"\")","v":0},"EstRev 6-11","G165"]
[6161,{"$f":"'EstRev 6-11'!H165","v":0},6161,"New 2009",true,{"$f":"IF(G6166<>\"\",INDIRECT(\"'\"&G6166&\"'!\"&H6166),\"\")","v":0},"EstRev 6-11","H165"]
[6162,{"$f":"'EstRev 6-11'!K165","v":0},6162,"New 2009",true,{"$f":"IF(G6167<>\"\",INDIRECT(\"'\"&G6167&\"'!\"&H6167),\"\")","v":0},"EstRev 6-11","K165"]
[6163,{"$f":"'EstRev 6-11'!J170","v":0},6163,"New 2009",true,{"$f":"IF(G6168<>\"\",INDIRECT(\"'\"&G6168&\"'!\"&H6168),\"\")","v":0},"EstRev 6-11","J170"]
[6164,{"$f":"'EstRev 6-11'!J171","v":0},6164,"New 2009",true,{"$f":"IF(G6169<>\"\",INDIRECT(\"'\"&G6169&\"'!\"&H6169),\"\")","v":0},"EstRev 6-11","J171"]
[6165,{"$f":"'EstRev 6-11'!J172","v":200000},-193835,"New 2009",true,{"$f":"IF(G6170<>\"\",INDIRECT(\"'\"&G6170&\"'!\"&H6170),\"\")","v":200000},"EstRev 6-11","J172"]
[6166,{"$f":"'EstRev 6-11'!J175","v":0},6166,"New 2009",true,{"$f":"IF(G6171<>\"\",INDIRECT(\"'\"&G6171&\"'!\"&H6171),\"\")","v":0},"EstRev 6-11","J175"]
[6167,{"$f":"'EstRev 6-11'!J176","v":0},6167,"New 2009",true,{"$f":"IF(G6172<>\"\",INDIRECT(\"'\"&G6172&\"'!\"&H6172),\"\")","v":0},"EstRev 6-11","J176"]
[6168,{"$f":"'EstRev 6-11'!J177","v":0},6168,"New 2009",true,{"$f":"IF(G6173<>\"\",INDIRECT(\"'\"&G6173&\"'!\"&H6173),\"\")","v":0},"EstRev 6-11","J177"]
[6169,{"$f":"'EstRev 6-11'!C192","v":0},6169,"New 2009",true,{"$f":"IF(G6174<>\"\",INDIRECT(\"'\"&G6174&\"'!\"&H6174),\"\")","v":0},"EstRev 6-11","C192"]
[6170,{"$f":"'EstRev 6-11'!G192","v":0},6170,"New 2009",true,{"$f":"IF(G6175<>\"\",INDIRECT(\"'\"&G6175&\"'!\"&H6175),\"\")","v":0},"EstRev 6-11","G192"]
[6171,{"$f":"'EstRev 6-11'!G193","v":0},6171,"New 2009",true,{"$f":"IF(G6176<>\"\",INDIRECT(\"'\"&G6176&\"'!\"&H6176),\"\")","v":0},"EstRev 6-11","G193"]
[6172,{"$f":"'EstRev 6-11'!G194","v":0},6172,"New 2009",true,{"$f":"IF(G6177<>\"\",INDIRECT(\"'\"&G6177&\"'!\"&H6177),\"\")","v":0},"EstRev 6-11","G194"]
[6173,{"$f":"'EstRev 6-11'!G195","v":0},6173,"New 2009",true,{"$f":"IF(G6178<>\"\",INDIRECT(\"'\"&G6178&\"'!\"&H6178),\"\")","v":0},"EstRev 6-11","G195"]
[6174,{"$f":"'EstRev 6-11'!G196","v":0},6174,"New 2009",true,{"$f":"IF(G6179<>\"\",INDIRECT(\"'\"&G6179&\"'!\"&H6179),\"\")","v":0},"EstRev 6-11","G196"]
[6175,{"$f":"'EstRev 6-11'!G197","v":0},6175,"New 2009",true,{"$f":"IF(G6180<>\"\",INDIRECT(\"'\"&G6180&\"'!\"&H6180),\"\")","v":0},"EstRev 6-11","G197"]
[6176,{"$f":"'EstRev 6-11'!G199","v":0},6176,"New 2009",true,{"$f":"IF(G6181<>\"\",INDIRECT(\"'\"&G6181&\"'!\"&H6181),\"\")","v":0},"EstRev 6-11","G199"]
[6177,{"$f":"'EstRev 6-11'!G200","v":0},6177,"New 2009",true,{"$f":"IF(G6182<>\"\",INDIRECT(\"'\"&G6182&\"'!\"&H6182),\"\")","v":0},"EstRev 6-11","G200"]
[6178,null,null,"New 2009-Closed 2018",true,{"$f":"IF(G6183<>\"\",INDIRECT(\"'\"&G6183&\"'!\"&H6183),\"\")","v":""}]
[6179,null,null,"New 2009-Closed 2018",true,{"$f":"IF(G6184<>\"\",INDIRECT(\"'\"&G6184&\"'!\"&H6184),\"\")","v":""}]
[6180,null,null,"New 2009-Closed 2018",true,{"$f":"IF(G6185<>\"\",INDIRECT(\"'\"&G6185&\"'!\"&H6185),\"\")","v":""}]
[6181,{"$f":"'EstRev 6-11'!J271","v":0},6181,"New 2009",true,{"$f":"IF(G6186<>\"\",INDIRECT(\"'\"&G6186&\"'!\"&H6186),\"\")","v":0},"EstRev 6-11","J271"]
[6182,{"$f":"'EstRev 6-11'!J272","v":221000},-214818,"New 2009",true,{"$f":"IF(G6187<>\"\",INDIRECT(\"'\"&G6187&\"'!\"&H6187),\"\")","v":221000},"EstRev 6-11","J272"]
[6183,{"$f":"'EstExp 12-20'!I5","v":0},6183,"New 2009",true,{"$f":"IF(G6188<>\"\",INDIRECT(\"'\"&G6188&\"'!\"&H6188),\"\")","v":0},"EstExp 12-20","I5"]
[6184,{"$f":"'EstExp 12-20'!J5","v":0},6184,"New 2009",true,{"$f":"IF(G6189<>\"\",INDIRECT(\"'\"&G6189&\"'!\"&H6189),\"\")","v":0},"EstExp 12-20","J5"]
[6185,{"$f":"'EstExp 12-20'!C7","v":242388},-236203,"New 2009",true,{"$f":"IF(G6190<>\"\",INDIRECT(\"'\"&G6190&\"'!\"&H6190),\"\")","v":242388},"EstExp 12-20","C7"]
[6186,{"$f":"'EstExp 12-20'!D7","v":36200},-30014,"New 2009",true,{"$f":"IF(G6191<>\"\",INDIRECT(\"'\"&G6191&\"'!\"&H6191),\"\")","v":36200},"EstExp 12-20","D7"]
[6187,{"$f":"'EstExp 12-20'!E7","v":7000},-813,"New 2009",true,{"$f":"IF(G6192<>\"\",INDIRECT(\"'\"&G6192&\"'!\"&H6192),\"\")","v":7000},"EstExp 12-20","E7"]
[6188,{"$f":"'EstExp 12-20'!F7","v":18000},-11812,"New 2009",true,{"$f":"IF(G6193<>\"\",INDIRECT(\"'\"&G6193&\"'!\"&H6193),\"\")","v":18000},"EstExp 12-20","F7"]
[6189,{"$f":"'EstExp 12-20'!G7","v":0},6189,"New 2009",true,{"$f":"IF(G6194<>\"\",INDIRECT(\"'\"&G6194&\"'!\"&H6194),\"\")","v":0},"EstExp 12-20","G7"]
[6190,{"$f":"'EstExp 12-20'!H7","v":0},6190,"New 2009",true,{"$f":"IF(G6195<>\"\",INDIRECT(\"'\"&G6195&\"'!\"&H6195),\"\")","v":0},"EstExp 12-20","H7"]
[6191,{"$f":"'EstExp 12-20'!I7","v":0},6191,"New 2009",true,{"$f":"IF(G6196<>\"\",INDIRECT(\"'\"&G6196&\"'!\"&H6196),\"\")","v":0},"EstExp 12-20","I7"]
[6192,{"$f":"'EstExp 12-20'!J7","v":0},6192,"New 2009",true,{"$f":"IF(G6197<>\"\",INDIRECT(\"'\"&G6197&\"'!\"&H6197),\"\")","v":0},"EstExp 12-20","J7"]
[6193,{"$f":"'EstExp 12-20'!K7","v":303588},-297395,"New 2009",true,{"$f":"IF(G6198<>\"\",INDIRECT(\"'\"&G6198&\"'!\"&H6198),\"\")","v":303588},"EstExp 12-20","K7"]
[6194,{"$f":"'EstExp 12-20'!I8","v":0},6194,"New 2009",true,{"$f":"IF(G6199<>\"\",INDIRECT(\"'\"&G6199&\"'!\"&H6199),\"\")","v":0},"EstExp 12-20","I8"]
[6195,{"$f":"'EstExp 12-20'!J8","v":0},6195,"New 2009",true,{"$f":"IF(G6200<>\"\",INDIRECT(\"'\"&G6200&\"'!\"&H6200),\"\")","v":0},"EstExp 12-20","J8"]
[6196,{"$f":"'EstExp 12-20'!C9","v":0},6196,"New 2009",true,{"$f":"IF(G6201<>\"\",INDIRECT(\"'\"&G6201&\"'!\"&H6201),\"\")","v":0},"EstExp 12-20","C9"]
[6197,{"$f":"'EstExp 12-20'!D9","v":0},6197,"New 2009",true,{"$f":"IF(G6202<>\"\",INDIRECT(\"'\"&G6202&\"'!\"&H6202),\"\")","v":0},"EstExp 12-20","D9"]
[6198,{"$f":"'EstExp 12-20'!E9","v":0},6198,"New 2009",true,{"$f":"IF(G6203<>\"\",INDIRECT(\"'\"&G6203&\"'!\"&H6203),\"\")","v":0},"EstExp 12-20","E9"]
[6199,{"$f":"'EstExp 12-20'!F9","v":0},6199,"New 2009",true,{"$f":"IF(G6204<>\"\",INDIRECT(\"'\"&G6204&\"'!\"&H6204),\"\")","v":0},"EstExp 12-20","F9"]
[6200,{"$f":"'EstExp 12-20'!G9","v":0},6200,"New 2009",true,{"$f":"IF(G6205<>\"\",INDIRECT(\"'\"&G6205&\"'!\"&H6205),\"\")","v":0},"EstExp 12-20","G9"]
[6201,{"$f":"'EstExp 12-20'!H9","v":0},6201,"New 2009",true,{"$f":"IF(G6206<>\"\",INDIRECT(\"'\"&G6206&\"'!\"&H6206),\"\")","v":0},"EstExp 12-20","H9"]
[6202,{"$f":"'EstExp 12-20'!I9","v":0},6202,"New 2009",true,{"$f":"IF(G6207<>\"\",INDIRECT(\"'\"&G6207&\"'!\"&H6207),\"\")","v":0},"EstExp 12-20","I9"]
[6203,{"$f":"'EstExp 12-20'!J9","v":0},6203,"New 2009",true,{"$f":"IF(G6208<>\"\",INDIRECT(\"'\"&G6208&\"'!\"&H6208),\"\")","v":0},"EstExp 12-20","J9"]
[6204,{"$f":"'EstExp 12-20'!K9","v":0},6204,"New 2009",true,{"$f":"IF(G6209<>\"\",INDIRECT(\"'\"&G6209&\"'!\"&H6209),\"\")","v":0},"EstExp 12-20","K9"]
[6205,{"$f":"'EstExp 12-20'!I10","v":0},6205,"New 2009",{"$f":"F6210=B6210","v":true},{"$f":"IF(G6210<>\"\",INDIRECT(\"'\"&G6210&\"'!\"&H6210),\"\")","v":0},"EstExp 12-20","I10"]
[6206,{"$f":"'EstExp 12-20'!J10","v":0},6206,"New 2009",true,{"$f":"IF(G6211<>\"\",INDIRECT(\"'\"&G6211&\"'!\"&H6211),\"\")","v":0},"EstExp 12-20","J10"]
[6207,{"$f":"'EstExp 12-20'!C11","v":0},6207,"New 2009",true,{"$f":"IF(G6212<>\"\",INDIRECT(\"'\"&G6212&\"'!\"&H6212),\"\")","v":0},"EstExp 12-20","C11"]
[6208,{"$f":"'EstExp 12-20'!D11","v":0},6208,"New 2009",true,{"$f":"IF(G6213<>\"\",INDIRECT(\"'\"&G6213&\"'!\"&H6213),\"\")","v":0},"EstExp 12-20","D11"]
[6209,{"$f":"'EstExp 12-20'!E11","v":0},6209,"New 2009",true,{"$f":"IF(G6214<>\"\",INDIRECT(\"'\"&G6214&\"'!\"&H6214),\"\")","v":0},"EstExp 12-20","E11"]
[6210,{"$f":"'EstExp 12-20'!F11","v":0},6210,"New 2009",true,{"$f":"IF(G6215<>\"\",INDIRECT(\"'\"&G6215&\"'!\"&H6215),\"\")","v":0},"EstExp 12-20","F11"]
[6211,{"$f":"'EstExp 12-20'!G11","v":0},{"$f":"A6216-B6216","v":6211},"New 2009",true,{"$f":"IF(G6216<>\"\",INDIRECT(\"'\"&G6216&\"'!\"&H6216),\"\")","v":0},"EstExp 12-20","G11"]
[6212,{"$f":"'EstExp 12-20'!H11","v":0},6212,"New 2009",true,{"$f":"IF(G6217<>\"\",INDIRECT(\"'\"&G6217&\"'!\"&H6217),\"\")","v":0},"EstExp 12-20","H11"]
[6213,{"$f":"'EstExp 12-20'!I11","v":0},6213,"New 2009",true,{"$f":"IF(G6218<>\"\",INDIRECT(\"'\"&G6218&\"'!\"&H6218),\"\")","v":0},"EstExp 12-20","I11"]
[6214,{"$f":"'EstExp 12-20'!J11","v":0},6214,"New 2009",true,{"$f":"IF(G6219<>\"\",INDIRECT(\"'\"&G6219&\"'!\"&H6219),\"\")","v":0},"EstExp 12-20","J11"]
[6215,{"$f":"'EstExp 12-20'!K11","v":0},6215,"New 2009",true,{"$f":"IF(G6220<>\"\",INDIRECT(\"'\"&G6220&\"'!\"&H6220),\"\")","v":0},"EstExp 12-20","K11"]
[6216,{"$f":"'EstExp 12-20'!I12","v":0},6216,"New 2009",true,{"$f":"IF(G6221<>\"\",INDIRECT(\"'\"&G6221&\"'!\"&H6221),\"\")","v":0},"EstExp 12-20","I12"]
[6217,{"$f":"'EstExp 12-20'!J12","v":0},6217,"New 2009",true,{"$f":"IF(G6222<>\"\",INDIRECT(\"'\"&G6222&\"'!\"&H6222),\"\")","v":0},"EstExp 12-20","J12"]
[6218,{"$f":"'EstExp 12-20'!I13","v":0},6218,"New 2009",true,{"$f":"IF(G6223<>\"\",INDIRECT(\"'\"&G6223&\"'!\"&H6223),\"\")","v":0},"EstExp 12-20","I13"]
[6219,{"$f":"'EstExp 12-20'!J13","v":0},6219,"New 2009",true,{"$f":"IF(G6224<>\"\",INDIRECT(\"'\"&G6224&\"'!\"&H6224),\"\")","v":0},"EstExp 12-20","J13"]
[6220,{"$f":"'EstExp 12-20'!I14","v":0},6220,"New 2009",true,{"$f":"IF(G6225<>\"\",INDIRECT(\"'\"&G6225&\"'!\"&H6225),\"\")","v":0},"EstExp 12-20","I14"]
[6221,{"$f":"'EstExp 12-20'!J14","v":0},6221,"New 2009",true,{"$f":"IF(G6226<>\"\",INDIRECT(\"'\"&G6226&\"'!\"&H6226),\"\")","v":0},"EstExp 12-20","J14"]
[6222,{"$f":"'EstExp 12-20'!I15","v":0},6222,"New 2009",true,{"$f":"IF(G6227<>\"\",INDIRECT(\"'\"&G6227&\"'!\"&H6227),\"\")","v":0},"EstExp 12-20","I15"]
[6223,{"$f":"'EstExp 12-20'!J15","v":0},6223,"New 2009",true,{"$f":"IF(G6228<>\"\",INDIRECT(\"'\"&G6228&\"'!\"&H6228),\"\")","v":0},"EstExp 12-20","J15"]
[6224,{"$f":"'EstExp 12-20'!I16","v":0},6224,"New 2009",true,{"$f":"IF(G6229<>\"\",INDIRECT(\"'\"&G6229&\"'!\"&H6229),\"\")","v":0},"EstExp 12-20","I16"]
[6225,{"$f":"'EstExp 12-20'!J16","v":0},6225,"New 2009",true,{"$f":"IF(G6230<>\"\",INDIRECT(\"'\"&G6230&\"'!\"&H6230),\"\")","v":0},"EstExp 12-20","J16"]
[6226,{"$f":"'EstExp 12-20'!C17","v":0},6226,"New 2009",true,{"$f":"IF(G6231<>\"\",INDIRECT(\"'\"&G6231&\"'!\"&H6231),\"\")","v":0},"EstExp 12-20","C17"]
[6227,{"$f":"'EstExp 12-20'!D17","v":0},6227,"New 2009",true,{"$f":"IF(G6232<>\"\",INDIRECT(\"'\"&G6232&\"'!\"&H6232),\"\")","v":0},"EstExp 12-20","D17"]
[6228,{"$f":"'EstExp 12-20'!E17","v":0},6228,"New 2009",true,{"$f":"IF(G6233<>\"\",INDIRECT(\"'\"&G6233&\"'!\"&H6233),\"\")","v":0},"EstExp 12-20","E17"]
[6229,{"$f":"'EstExp 12-20'!F17","v":0},6229,"New 2009",true,{"$f":"IF(G6234<>\"\",INDIRECT(\"'\"&G6234&\"'!\"&H6234),\"\")","v":0},"EstExp 12-20","F17"]
[6230,{"$f":"'EstExp 12-20'!G17","v":0},6230,"New 2009",true,{"$f":"IF(G6235<>\"\",INDIRECT(\"'\"&G6235&\"'!\"&H6235),\"\")","v":0},"EstExp 12-20","G17"]
[6231,{"$f":"'EstExp 12-20'!H17","v":0},6231,"New 2009",true,{"$f":"IF(G6236<>\"\",INDIRECT(\"'\"&G6236&\"'!\"&H6236),\"\")","v":0},"EstExp 12-20","H17"]
[6232,{"$f":"'EstExp 12-20'!I17","v":0},6232,"New 2009",true,{"$f":"IF(G6237<>\"\",INDIRECT(\"'\"&G6237&\"'!\"&H6237),\"\")","v":0},"EstExp 12-20","I17"]
[6233,{"$f":"'EstExp 12-20'!J17","v":0},6233,"New 2009",true,{"$f":"IF(G6238<>\"\",INDIRECT(\"'\"&G6238&\"'!\"&H6238),\"\")","v":0},"EstExp 12-20","J17"]
[6234,{"$f":"'EstExp 12-20'!K17","v":0},6234,"New 2009",true,{"$f":"IF(G6239<>\"\",INDIRECT(\"'\"&G6239&\"'!\"&H6239),\"\")","v":0},"EstExp 12-20","K17"]
[6235,{"$f":"'EstExp 12-20'!I18","v":0},6235,"New 2009",true,{"$f":"IF(G6240<>\"\",INDIRECT(\"'\"&G6240&\"'!\"&H6240),\"\")","v":0},"EstExp 12-20","I18"]
[6236,{"$f":"'EstExp 12-20'!I19","v":0},6236,"New 2009",true,{"$f":"IF(G6241<>\"\",INDIRECT(\"'\"&G6241&\"'!\"&H6241),\"\")","v":0},"EstExp 12-20","I19"]
[6237,{"$f":"'EstExp 12-20'!J19","v":0},6237,"New 2009",true,{"$f":"IF(G6242<>\"\",INDIRECT(\"'\"&G6242&\"'!\"&H6242),\"\")","v":0},"EstExp 12-20","J19"]
[6238,{"$f":"'EstExp 12-20'!H20","v":0},6238,"New 2009",true,{"$f":"IF(G6243<>\"\",INDIRECT(\"'\"&G6243&\"'!\"&H6243),\"\")","v":0},"EstExp 12-20","H20"]
[6239,{"$f":"'EstExp 12-20'!K20","v":0},6239,"New 2009",true,{"$f":"IF(G6244<>\"\",INDIRECT(\"'\"&G6244&\"'!\"&H6244),\"\")","v":0},"EstExp 12-20","K20"]
[6240,{"$f":"'EstExp 12-20'!H21","v":0},6240,"New 2009",true,{"$f":"IF(G6245<>\"\",INDIRECT(\"'\"&G6245&\"'!\"&H6245),\"\")","v":0},"EstExp 12-20","H21"]
[6241,{"$f":"'EstExp 12-20'!K21","v":0},6241,"New 2009",true,{"$f":"IF(G6246<>\"\",INDIRECT(\"'\"&G6246&\"'!\"&H6246),\"\")","v":0},"EstExp 12-20","K21"]
[6242,{"$f":"'EstExp 12-20'!H22","v":0},6242,"New 2009",true,{"$f":"IF(G6247<>\"\",INDIRECT(\"'\"&G6247&\"'!\"&H6247),\"\")","v":0},"EstExp 12-20","H22"]
[6243,{"$f":"'EstExp 12-20'!K22","v":0},6243,"New 2009",true,{"$f":"IF(G6248<>\"\",INDIRECT(\"'\"&G6248&\"'!\"&H6248),\"\")","v":0},"EstExp 12-20","K22"]
[6244,{"$f":"'EstExp 12-20'!H23","v":0},6244,"New 2009",true,{"$f":"IF(G6249<>\"\",INDIRECT(\"'\"&G6249&\"'!\"&H6249),\"\")","v":0},"EstExp 12-20","H23"]
[6245,{"$f":"'EstExp 12-20'!K23","v":0},6245,"New 2009",true,{"$f":"IF(G6250<>\"\",INDIRECT(\"'\"&G6250&\"'!\"&H6250),\"\")","v":0},"EstExp 12-20","K23"]
[6246,{"$f":"'EstExp 12-20'!H24","v":0},6246,"New 2009",true,{"$f":"IF(G6251<>\"\",INDIRECT(\"'\"&G6251&\"'!\"&H6251),\"\")","v":0},"EstExp 12-20","H24"]
[6247,{"$f":"'EstExp 12-20'!K24","v":0},6247,"New 2009",true,{"$f":"IF(G6252<>\"\",INDIRECT(\"'\"&G6252&\"'!\"&H6252),\"\")","v":0},"EstExp 12-20","K24"]
[6248,{"$f":"'EstExp 12-20'!H25","v":0},6248,"New 2009",true,{"$f":"IF(G6253<>\"\",INDIRECT(\"'\"&G6253&\"'!\"&H6253),\"\")","v":0},"EstExp 12-20","H25"]
[6249,{"$f":"'EstExp 12-20'!K25","v":0},6249,"New 2009",true,{"$f":"IF(G6254<>\"\",INDIRECT(\"'\"&G6254&\"'!\"&H6254),\"\")","v":0},"EstExp 12-20","K25"]
[6250,{"$f":"'EstExp 12-20'!H26","v":0},6250,"New 2009",true,{"$f":"IF(G6255<>\"\",INDIRECT(\"'\"&G6255&\"'!\"&H6255),\"\")","v":0},"EstExp 12-20","H26"]
[6251,{"$f":"'EstExp 12-20'!K26","v":0},6251,"New 2009",true,{"$f":"IF(G6256<>\"\",INDIRECT(\"'\"&G6256&\"'!\"&H6256),\"\")","v":0},"EstExp 12-20","K26"]
[6252,{"$f":"'EstExp 12-20'!H27","v":0},6252,"New 2009",true,{"$f":"IF(G6257<>\"\",INDIRECT(\"'\"&G6257&\"'!\"&H6257),\"\")","v":0},"EstExp 12-20","H27"]
[6253,{"$f":"'EstExp 12-20'!K27","v":0},6253,"New 2009",true,{"$f":"IF(G6258<>\"\",INDIRECT(\"'\"&G6258&\"'!\"&H6258),\"\")","v":0},"EstExp 12-20","K27"]
[6254,{"$f":"'EstExp 12-20'!H28","v":0},6254,"New 2009",true,{"$f":"IF(G6259<>\"\",INDIRECT(\"'\"&G6259&\"'!\"&H6259),\"\")","v":0},"EstExp 12-20","H28"]
[6255,{"$f":"'EstExp 12-20'!K28","v":0},6255,"New 2009",true,{"$f":"IF(G6260<>\"\",INDIRECT(\"'\"&G6260&\"'!\"&H6260),\"\")","v":0},"EstExp 12-20","K28"]
[6256,{"$f":"'EstExp 12-20'!H29","v":0},6256,"New 2009",true,{"$f":"IF(G6261<>\"\",INDIRECT(\"'\"&G6261&\"'!\"&H6261),\"\")","v":0},"EstExp 12-20","H29"]
[6257,{"$f":"'EstExp 12-20'!K29","v":0},6257,"New 2009",true,{"$f":"IF(G6262<>\"\",INDIRECT(\"'\"&G6262&\"'!\"&H6262),\"\")","v":0},"EstExp 12-20","K29"]
[6258,{"$f":"'EstExp 12-20'!H30","v":0},6258,"New 2009",true,{"$f":"IF(G6263<>\"\",INDIRECT(\"'\"&G6263&\"'!\"&H6263),\"\")","v":0},"EstExp 12-20","H30"]
[6259,{"$f":"'EstExp 12-20'!K30","v":0},6259,"New 2009",true,{"$f":"IF(G6264<>\"\",INDIRECT(\"'\"&G6264&\"'!\"&H6264),\"\")","v":0},"EstExp 12-20","K30"]
[6260,{"$f":"'EstExp 12-20'!H31","v":0},6260,"New 2009",true,{"$f":"IF(G6265<>\"\",INDIRECT(\"'\"&G6265&\"'!\"&H6265),\"\")","v":0},"EstExp 12-20","H31"]
[6261,{"$f":"'EstExp 12-20'!K31","v":0},6261,"New 2009",true,{"$f":"IF(G6266<>\"\",INDIRECT(\"'\"&G6266&\"'!\"&H6266),\"\")","v":0},"EstExp 12-20","K31"]
[6262,{"$f":"'EstExp 12-20'!H32","v":0},6262,"New 2009",true,{"$f":"IF(G6267<>\"\",INDIRECT(\"'\"&G6267&\"'!\"&H6267),\"\")","v":0},"EstExp 12-20","H32"]
[6263,{"$f":"'EstExp 12-20'!K32","v":0},6263,"New 2009",true,{"$f":"IF(G6268<>\"\",INDIRECT(\"'\"&G6268&\"'!\"&H6268),\"\")","v":0},"EstExp 12-20","K32"]
[6264,{"$f":"'EstExp 12-20'!I34","v":0},6264,"New 2009",true,{"$f":"IF(G6269<>\"\",INDIRECT(\"'\"&G6269&\"'!\"&H6269),\"\")","v":0},"EstExp 12-20","I34"]
[6265,{"$f":"'EstExp 12-20'!J34","v":0},6265,"New 2009",true,{"$f":"IF(G6270<>\"\",INDIRECT(\"'\"&G6270&\"'!\"&H6270),\"\")","v":0},"EstExp 12-20","J34"]
[6266,{"$f":"'EstExp 12-20'!I38","v":0},6266,"New 2009",true,{"$f":"IF(G6271<>\"\",INDIRECT(\"'\"&G6271&\"'!\"&H6271),\"\")","v":0},"EstExp 12-20","I38"]
[6267,{"$f":"'EstExp 12-20'!J38","v":0},6267,"New 2009",true,{"$f":"IF(G6272<>\"\",INDIRECT(\"'\"&G6272&\"'!\"&H6272),\"\")","v":0},"EstExp 12-20","J38"]
[6268,{"$f":"'EstExp 12-20'!I39","v":0},6268,"New 2009",true,{"$f":"IF(G6273<>\"\",INDIRECT(\"'\"&G6273&\"'!\"&H6273),\"\")","v":0},"EstExp 12-20","I39"]
[6269,{"$f":"'EstExp 12-20'!J39","v":0},6269,"New 2009",{"$f":"F6274=B6274","v":true},{"$f":"IF(G6274<>\"\",INDIRECT(\"'\"&G6274&\"'!\"&H6274),\"\")","v":0},"EstExp 12-20","J39"]
[6270,{"$f":"'EstExp 12-20'!I40","v":0},6270,"New 2009",true,{"$f":"IF(G6275<>\"\",INDIRECT(\"'\"&G6275&\"'!\"&H6275),\"\")","v":0},"EstExp 12-20","I40"]
[6271,{"$f":"'EstExp 12-20'!J40","v":0},6271,"New 2009",true,{"$f":"IF(G6276<>\"\",INDIRECT(\"'\"&G6276&\"'!\"&H6276),\"\")","v":0},"EstExp 12-20","J40"]
[6272,{"$f":"'EstExp 12-20'!I41","v":0},6272,"New 2009",true,{"$f":"IF(G6277<>\"\",INDIRECT(\"'\"&G6277&\"'!\"&H6277),\"\")","v":0},"EstExp 12-20","I41"]
[6273,{"$f":"'EstExp 12-20'!J41","v":0},6273,"New 2009",true,{"$f":"IF(G6278<>\"\",INDIRECT(\"'\"&G6278&\"'!\"&H6278),\"\")","v":0},"EstExp 12-20","J41"]
[6274,{"$f":"'EstExp 12-20'!I42","v":0},6274,"New 2009",true,{"$f":"IF(G6279<>\"\",INDIRECT(\"'\"&G6279&\"'!\"&H6279),\"\")","v":0},"EstExp 12-20","I42"]
[6275,{"$f":"'EstExp 12-20'!J42","v":0},{"$f":"A6280-B6280","v":6275},"New 2009",true,{"$f":"IF(G6280<>\"\",INDIRECT(\"'\"&G6280&\"'!\"&H6280),\"\")","v":0},"EstExp 12-20","J42"]
[6276,{"$f":"'EstExp 12-20'!I43","v":0},6276,"New 2009",true,{"$f":"IF(G6281<>\"\",INDIRECT(\"'\"&G6281&\"'!\"&H6281),\"\")","v":0},"EstExp 12-20","I43"]
[6277,{"$f":"'EstExp 12-20'!J43","v":0},6277,"New 2009",true,{"$f":"IF(G6282<>\"\",INDIRECT(\"'\"&G6282&\"'!\"&H6282),\"\")","v":0},"EstExp 12-20","J43"]
[6278,{"$f":"'EstExp 12-20'!I44","v":0},6278,"New 2009",true,{"$f":"IF(G6283<>\"\",INDIRECT(\"'\"&G6283&\"'!\"&H6283),\"\")","v":0},"EstExp 12-20","I44"]
[6279,{"$f":"'EstExp 12-20'!J44","v":0},6279,"New 2009",true,{"$f":"IF(G6284<>\"\",INDIRECT(\"'\"&G6284&\"'!\"&H6284),\"\")","v":0},"EstExp 12-20","J44"]
[6280,{"$f":"'EstExp 12-20'!I46","v":0},6280,"New 2009",true,{"$f":"IF(G6285<>\"\",INDIRECT(\"'\"&G6285&\"'!\"&H6285),\"\")","v":0},"EstExp 12-20","I46"]
[6281,{"$f":"'EstExp 12-20'!J46","v":0},6281,"New 2009",true,{"$f":"IF(G6286<>\"\",INDIRECT(\"'\"&G6286&\"'!\"&H6286),\"\")","v":0},"EstExp 12-20","J46"]
[6282,{"$f":"'EstExp 12-20'!I47","v":0},6282,"New 2009",true,{"$f":"IF(G6287<>\"\",INDIRECT(\"'\"&G6287&\"'!\"&H6287),\"\")","v":0},"EstExp 12-20","I47"]
[6283,{"$f":"'EstExp 12-20'!J47","v":0},6283,"New 2009",true,{"$f":"IF(G6288<>\"\",INDIRECT(\"'\"&G6288&\"'!\"&H6288),\"\")","v":0},"EstExp 12-20","J47"]
[6284,{"$f":"'EstExp 12-20'!I48","v":0},6284,"New 2009",true,{"$f":"IF(G6289<>\"\",INDIRECT(\"'\"&G6289&\"'!\"&H6289),\"\")","v":0},"EstExp 12-20","I48"]
[6285,{"$f":"'EstExp 12-20'!J48","v":0},6285,"New 2009",true,{"$f":"IF(G6290<>\"\",INDIRECT(\"'\"&G6290&\"'!\"&H6290),\"\")","v":0},"EstExp 12-20","J48"]
[6286,{"$f":"'EstExp 12-20'!I49","v":0},6286,"New 2009",true,{"$f":"IF(G6291<>\"\",INDIRECT(\"'\"&G6291&\"'!\"&H6291),\"\")","v":0},"EstExp 12-20","I49"]
[6287,{"$f":"'EstExp 12-20'!J49","v":0},6287,"New 2009",true,{"$f":"IF(G6292<>\"\",INDIRECT(\"'\"&G6292&\"'!\"&H6292),\"\")","v":0},"EstExp 12-20","J49"]
[6288,{"$f":"'EstExp 12-20'!I51","v":0},6288,"New 2009",true,{"$f":"IF(G6293<>\"\",INDIRECT(\"'\"&G6293&\"'!\"&H6293),\"\")","v":0},"EstExp 12-20","I51"]
[6289,{"$f":"'EstExp 12-20'!J51","v":0},6289,"New 2009",true,{"$f":"IF(G6294<>\"\",INDIRECT(\"'\"&G6294&\"'!\"&H6294),\"\")","v":0},"EstExp 12-20","J51"]
[6290,{"$f":"'EstExp 12-20'!I52","v":0},6290,"New 2009",true,{"$f":"IF(G6295<>\"\",INDIRECT(\"'\"&G6295&\"'!\"&H6295),\"\")","v":0},"EstExp 12-20","I52"]
[6291,{"$f":"'EstExp 12-20'!J52","v":0},6291,"New 2009",true,{"$f":"IF(G6296<>\"\",INDIRECT(\"'\"&G6296&\"'!\"&H6296),\"\")","v":0},"EstExp 12-20","J52"]
[6292,{"$f":"'EstExp 12-20'!I53","v":0},6292,"New 2009",true,{"$f":"IF(G6297<>\"\",INDIRECT(\"'\"&G6297&\"'!\"&H6297),\"\")","v":0},"EstExp 12-20","I53"]
[6293,{"$f":"'EstExp 12-20'!J53","v":0},6293,"New 2009",true,{"$f":"IF(G6298<>\"\",INDIRECT(\"'\"&G6298&\"'!\"&H6298),\"\")","v":0},"EstExp 12-20","J53"]
[6294,{"$f":"'EstExp 12-20'!I55","v":0},6294,"New 2009",true,{"$f":"IF(G6299<>\"\",INDIRECT(\"'\"&G6299&\"'!\"&H6299),\"\")","v":0},"EstExp 12-20","I55"]
[6295,{"$f":"'EstExp 12-20'!J55","v":0},6295,"New 2009",true,{"$f":"IF(G6300<>\"\",INDIRECT(\"'\"&G6300&\"'!\"&H6300),\"\")","v":0},"EstExp 12-20","J55"]
[6296,{"$f":"'EstExp 12-20'!I57","v":0},6296,"New 2009",true,{"$f":"IF(G6301<>\"\",INDIRECT(\"'\"&G6301&\"'!\"&H6301),\"\")","v":0},"EstExp 12-20","I57"]
[6297,{"$f":"'EstExp 12-20'!J57","v":0},6297,"New 2009",true,{"$f":"IF(G6302<>\"\",INDIRECT(\"'\"&G6302&\"'!\"&H6302),\"\")","v":0},"EstExp 12-20","J57"]
[6298,{"$f":"'EstExp 12-20'!I58","v":0},6298,"New 2009",true,{"$f":"IF(G6303<>\"\",INDIRECT(\"'\"&G6303&\"'!\"&H6303),\"\")","v":0},"EstExp 12-20","I58"]
[6299,{"$f":"'EstExp 12-20'!J58","v":0},6299,"New 2009",true,{"$f":"IF(G6304<>\"\",INDIRECT(\"'\"&G6304&\"'!\"&H6304),\"\")","v":0},"EstExp 12-20","J58"]
[6300,{"$f":"'EstExp 12-20'!I59","v":0},6300,"New 2009",true,{"$f":"IF(G6305<>\"\",INDIRECT(\"'\"&G6305&\"'!\"&H6305),\"\")","v":0},"EstExp 12-20","I59"]
[6301,{"$f":"'EstExp 12-20'!J59","v":0},6301,"New 2009",true,{"$f":"IF(G6306<>\"\",INDIRECT(\"'\"&G6306&\"'!\"&H6306),\"\")","v":0},"EstExp 12-20","J59"]
[6302,{"$f":"'EstExp 12-20'!I61","v":0},6302,"New 2009",true,{"$f":"IF(G6307<>\"\",INDIRECT(\"'\"&G6307&\"'!\"&H6307),\"\")","v":0},"EstExp 12-20","I61"]
[6303,{"$f":"'EstExp 12-20'!J61","v":0},6303,"New 2009",true,{"$f":"IF(G6308<>\"\",INDIRECT(\"'\"&G6308&\"'!\"&H6308),\"\")","v":0},"EstExp 12-20","J61"]
[6304,{"$f":"'EstExp 12-20'!I62","v":0},6304,"New 2009",true,{"$f":"IF(G6309<>\"\",INDIRECT(\"'\"&G6309&\"'!\"&H6309),\"\")","v":0},"EstExp 12-20","I62"]
[6305,{"$f":"'EstExp 12-20'!J62","v":0},6305,"New 2009",true,{"$f":"IF(G6310<>\"\",INDIRECT(\"'\"&G6310&\"'!\"&H6310),\"\")","v":0},"EstExp 12-20","J62"]
[6306,{"$f":"'EstExp 12-20'!I63","v":0},6306,"New 2009",true,{"$f":"IF(G6311<>\"\",INDIRECT(\"'\"&G6311&\"'!\"&H6311),\"\")","v":0},"EstExp 12-20","I63"]
[6307,{"$f":"'EstExp 12-20'!J63","v":0},6307,"New 2009",true,{"$f":"IF(G6312<>\"\",INDIRECT(\"'\"&G6312&\"'!\"&H6312),\"\")","v":0},"EstExp 12-20","J63"]
[6308,{"$f":"'EstExp 12-20'!I64","v":0},6308,"New 2009",true,{"$f":"IF(G6313<>\"\",INDIRECT(\"'\"&G6313&\"'!\"&H6313),\"\")","v":0},"EstExp 12-20","I64"]
[6309,{"$f":"'EstExp 12-20'!J64","v":0},6309,"New 2009",true,{"$f":"IF(G6314<>\"\",INDIRECT(\"'\"&G6314&\"'!\"&H6314),\"\")","v":0},"EstExp 12-20","J64"]
[6310,{"$f":"'EstExp 12-20'!I65","v":0},6310,"New 2009",true,{"$f":"IF(G6315<>\"\",INDIRECT(\"'\"&G6315&\"'!\"&H6315),\"\")","v":0},"EstExp 12-20","I65"]
[6311,{"$f":"'EstExp 12-20'!J65","v":0},6311,"New 2009",true,{"$f":"IF(G6316<>\"\",INDIRECT(\"'\"&G6316&\"'!\"&H6316),\"\")","v":0},"EstExp 12-20","J65"]
[6312,{"$f":"'EstExp 12-20'!I66","v":0},6312,"New 2009",true,{"$f":"IF(G6317<>\"\",INDIRECT(\"'\"&G6317&\"'!\"&H6317),\"\")","v":0},"EstExp 12-20","I66"]
[6313,{"$f":"'EstExp 12-20'!J66","v":0},6313,"New 2009",true,{"$f":"IF(G6318<>\"\",INDIRECT(\"'\"&G6318&\"'!\"&H6318),\"\")","v":0},"EstExp 12-20","J66"]
[6314,{"$f":"'EstExp 12-20'!I67","v":0},6314,"New 2009",true,{"$f":"IF(G6319<>\"\",INDIRECT(\"'\"&G6319&\"'!\"&H6319),\"\")","v":0},"EstExp 12-20","I67"]
[6315,{"$f":"'EstExp 12-20'!J67","v":0},6315,"New 2009",true,{"$f":"IF(G6320<>\"\",INDIRECT(\"'\"&G6320&\"'!\"&H6320),\"\")","v":0},"EstExp 12-20","J67"]
[6316,{"$f":"'EstExp 12-20'!I69","v":0},6316,"New 2009",true,{"$f":"IF(G6321<>\"\",INDIRECT(\"'\"&G6321&\"'!\"&H6321),\"\")","v":0},"EstExp 12-20","I69"]
[6317,{"$f":"'EstExp 12-20'!J69","v":0},6317,"New 2009",true,{"$f":"IF(G6322<>\"\",INDIRECT(\"'\"&G6322&\"'!\"&H6322),\"\")","v":0},"EstExp 12-20","J69"]
[6318,{"$f":"'EstExp 12-20'!I70","v":0},6318,"New 2009",true,{"$f":"IF(G6323<>\"\",INDIRECT(\"'\"&G6323&\"'!\"&H6323),\"\")","v":0},"EstExp 12-20","I70"]
[6319,{"$f":"'EstExp 12-20'!J70","v":0},6319,"New 2009",true,{"$f":"IF(G6324<>\"\",INDIRECT(\"'\"&G6324&\"'!\"&H6324),\"\")","v":0},"EstExp 12-20","J70"]
[6320,{"$f":"'EstExp 12-20'!I71","v":0},6320,"New 2009",true,{"$f":"IF(G6325<>\"\",INDIRECT(\"'\"&G6325&\"'!\"&H6325),\"\")","v":0},"EstExp 12-20","I71"]
[6321,{"$f":"'EstExp 12-20'!J71","v":0},6321,"New 2009",true,{"$f":"IF(G6326<>\"\",INDIRECT(\"'\"&G6326&\"'!\"&H6326),\"\")","v":0},"EstExp 12-20","J71"]
[6322,{"$f":"'EstExp 12-20'!I72","v":0},6322,"New 2009",true,{"$f":"IF(G6327<>\"\",INDIRECT(\"'\"&G6327&\"'!\"&H6327),\"\")","v":0},"EstExp 12-20","I72"]
[6323,{"$f":"'EstExp 12-20'!J72","v":0},6323,"New 2009",true,{"$f":"IF(G6328<>\"\",INDIRECT(\"'\"&G6328&\"'!\"&H6328),\"\")","v":0},"EstExp 12-20","J72"]
[6324,{"$f":"'EstExp 12-20'!I73","v":0},6324,"New 2009",true,{"$f":"IF(G6329<>\"\",INDIRECT(\"'\"&G6329&\"'!\"&H6329),\"\")","v":0},"EstExp 12-20","I73"]
[6325,{"$f":"'EstExp 12-20'!J73","v":0},6325,"New 2009",true,{"$f":"IF(G6330<>\"\",INDIRECT(\"'\"&G6330&\"'!\"&H6330),\"\")","v":0},"EstExp 12-20","J73"]
[6326,{"$f":"'EstExp 12-20'!I74","v":0},6326,"New 2009",true,{"$f":"IF(G6331<>\"\",INDIRECT(\"'\"&G6331&\"'!\"&H6331),\"\")","v":0},"EstExp 12-20","I74"]
[6327,{"$f":"'EstExp 12-20'!J74","v":0},6327,"New 2009",true,{"$f":"IF(G6332<>\"\",INDIRECT(\"'\"&G6332&\"'!\"&H6332),\"\")","v":0},"EstExp 12-20","J74"]
[6328,{"$f":"'EstExp 12-20'!I75","v":0},6328,"New 2009",true,{"$f":"IF(G6333<>\"\",INDIRECT(\"'\"&G6333&\"'!\"&H6333),\"\")","v":0},"EstExp 12-20","I75"]
[6329,{"$f":"'EstExp 12-20'!J75","v":0},6329,"New 2009",true,{"$f":"IF(G6334<>\"\",INDIRECT(\"'\"&G6334&\"'!\"&H6334),\"\")","v":0},"EstExp 12-20","J75"]
[6330,{"$f":"'EstExp 12-20'!I76","v":0},6330,"New 2009",true,{"$f":"IF(G6335<>\"\",INDIRECT(\"'\"&G6335&\"'!\"&H6335),\"\")","v":0},"EstExp 12-20","I76"]
[6331,{"$f":"'EstExp 12-20'!J76","v":0},6331,"New 2009",true,{"$f":"IF(G6336<>\"\",INDIRECT(\"'\"&G6336&\"'!\"&H6336),\"\")","v":0},"EstExp 12-20","J76"]
[6332,{"$f":"'EstExp 12-20'!I77","v":0},6332,"New 2009",true,{"$f":"IF(G6337<>\"\",INDIRECT(\"'\"&G6337&\"'!\"&H6337),\"\")","v":0},"EstExp 12-20","I77"]
[6333,{"$f":"'EstExp 12-20'!J77","v":0},6333,"New 2009",{"$f":"F6338=B6338","v":true},{"$f":"IF(G6338<>\"\",INDIRECT(\"'\"&G6338&\"'!\"&H6338),\"\")","v":0},"EstExp 12-20","J77"]
[6334,{"$f":"'EstExp 12-20'!H87","v":0},6334,"New 2009",true,{"$f":"IF(G6339<>\"\",INDIRECT(\"'\"&G6339&\"'!\"&H6339),\"\")","v":0},"EstExp 12-20","H87"]
[6335,{"$f":"'EstExp 12-20'!K87","v":0},6335,"New 2009",true,{"$f":"IF(G6340<>\"\",INDIRECT(\"'\"&G6340&\"'!\"&H6340),\"\")","v":0},"EstExp 12-20","K87"]
[6336,{"$f":"'EstExp 12-20'!H88","v":600000},-593664,"New 2009",true,{"$f":"IF(G6341<>\"\",INDIRECT(\"'\"&G6341&\"'!\"&H6341),\"\")","v":600000},"EstExp 12-20","H88"]
[6337,{"$f":"'EstExp 12-20'!K88","v":600000},-593663,"New 2009",true,{"$f":"IF(G6342<>\"\",INDIRECT(\"'\"&G6342&\"'!\"&H6342),\"\")","v":600000},"EstExp 12-20","K88"]
[6338,{"$f":"'EstExp 12-20'!H89","v":0},6338,"New 2009",true,{"$f":"IF(G6343<>\"\",INDIRECT(\"'\"&G6343&\"'!\"&H6343),\"\")","v":0},"EstExp 12-20","H89"]
[6339,{"$f":"'EstExp 12-20'!K89","v":0},{"$f":"A6344-B6344","v":6339},"New 2009",true,{"$f":"IF(G6344<>\"\",INDIRECT(\"'\"&G6344&\"'!\"&H6344),\"\")","v":0},"EstExp 12-20","K89"]
[6340,{"$f":"'EstExp 12-20'!H90","v":0},6340,"New 2009",true,{"$f":"IF(G6345<>\"\",INDIRECT(\"'\"&G6345&\"'!\"&H6345),\"\")","v":0},"EstExp 12-20","H90"]
[6341,{"$f":"'EstExp 12-20'!K90","v":0},6341,"New 2009",true,{"$f":"IF(G6346<>\"\",INDIRECT(\"'\"&G6346&\"'!\"&H6346),\"\")","v":0},"EstExp 12-20","K90"]
[6342,{"$f":"'EstExp 12-20'!H91","v":0},6342,"New 2009",true,{"$f":"IF(G6347<>\"\",INDIRECT(\"'\"&G6347&\"'!\"&H6347),\"\")","v":0},"EstExp 12-20","H91"]
[6343,{"$f":"'EstExp 12-20'!K91","v":0},6343,"New 2009",true,{"$f":"IF(G6348<>\"\",INDIRECT(\"'\"&G6348&\"'!\"&H6348),\"\")","v":0},"EstExp 12-20","K91"]
[6344,{"$f":"'EstExp 12-20'!H92","v":130000},-123656,"New 2009",true,{"$f":"IF(G6349<>\"\",INDIRECT(\"'\"&G6349&\"'!\"&H6349),\"\")","v":130000},"EstExp 12-20","H92"]
[6345,{"$f":"'EstExp 12-20'!K92","v":130000},-123655,"New 2009",true,{"$f":"IF(G6350<>\"\",INDIRECT(\"'\"&G6350&\"'!\"&H6350),\"\")","v":130000},"EstExp 12-20","K92"]
[6346,{"$f":"'EstExp 12-20'!H93","v":0},6346,"New 2009",true,{"$f":"IF(G6351<>\"\",INDIRECT(\"'\"&G6351&\"'!\"&H6351),\"\")","v":0},"EstExp 12-20","H93"]
[6347,{"$f":"'EstExp 12-20'!K93","v":0},6347,"New 2009",true,{"$f":"IF(G6352<>\"\",INDIRECT(\"'\"&G6352&\"'!\"&H6352),\"\")","v":0},"EstExp 12-20","K93"]
[6348,{"$f":"'EstExp 12-20'!H95","v":0},6348,"New 2009",true,{"$f":"IF(G6353<>\"\",INDIRECT(\"'\"&G6353&\"'!\"&H6353),\"\")","v":0},"EstExp 12-20","H95"]
[6349,{"$f":"'EstExp 12-20'!K95","v":0},6349,"New 2009",true,{"$f":"IF(G6354<>\"\",INDIRECT(\"'\"&G6354&\"'!\"&H6354),\"\")","v":0},"EstExp 12-20","K95"]
[6350,{"$f":"'EstExp 12-20'!H96","v":0},6350,"New 2009",true,{"$f":"IF(G6355<>\"\",INDIRECT(\"'\"&G6355&\"'!\"&H6355),\"\")","v":0},"EstExp 12-20","H96"]
[6351,{"$f":"'EstExp 12-20'!K96","v":0},6351,"New 2009",true,{"$f":"IF(G6356<>\"\",INDIRECT(\"'\"&G6356&\"'!\"&H6356),\"\")","v":0},"EstExp 12-20","K96"]
[6352,{"$f":"'EstExp 12-20'!H97","v":0},6352,"New 2009",true,{"$f":"IF(G6357<>\"\",INDIRECT(\"'\"&G6357&\"'!\"&H6357),\"\")","v":0},"EstExp 12-20","H97"]
[6353,{"$f":"'EstExp 12-20'!K97","v":0},6353,"New 2009",true,{"$f":"IF(G6358<>\"\",INDIRECT(\"'\"&G6358&\"'!\"&H6358),\"\")","v":0},"EstExp 12-20","K97"]
[6354,{"$f":"'EstExp 12-20'!H98","v":0},6354,"New 2009",true,{"$f":"IF(G6359<>\"\",INDIRECT(\"'\"&G6359&\"'!\"&H6359),\"\")","v":0},"EstExp 12-20","H98"]
[6355,{"$f":"'EstExp 12-20'!K98","v":0},6355,"New 2009",true,{"$f":"IF(G6360<>\"\",INDIRECT(\"'\"&G6360&\"'!\"&H6360),\"\")","v":0},"EstExp 12-20","K98"]
[6356,{"$f":"'EstExp 12-20'!H99","v":0},6356,"New 2009",true,{"$f":"IF(G6361<>\"\",INDIRECT(\"'\"&G6361&\"'!\"&H6361),\"\")","v":0},"EstExp 12-20","H99"]
[6357,{"$f":"'EstExp 12-20'!K99","v":0},6357,"New 2009",true,{"$f":"IF(G6362<>\"\",INDIRECT(\"'\"&G6362&\"'!\"&H6362),\"\")","v":0},"EstExp 12-20","K99"]
[6358,{"$f":"'EstExp 12-20'!H100","v":0},6358,"New 2009",true,{"$f":"IF(G6363<>\"\",INDIRECT(\"'\"&G6363&\"'!\"&H6363),\"\")","v":0},"EstExp 12-20","H100"]
[6359,{"$f":"'EstExp 12-20'!K100","v":0},6359,"New 2009",true,{"$f":"IF(G6364<>\"\",INDIRECT(\"'\"&G6364&\"'!\"&H6364),\"\")","v":0},"EstExp 12-20","K100"]
[6360,{"$f":"'EstExp 12-20'!E101","v":0},6360,"New 2009",true,{"$f":"IF(G6365<>\"\",INDIRECT(\"'\"&G6365&\"'!\"&H6365),\"\")","v":0},"EstExp 12-20","E101"]
[6361,{"$f":"'EstExp 12-20'!H101","v":0},6361,"New 2009",true,{"$f":"IF(G6366<>\"\",INDIRECT(\"'\"&G6366&\"'!\"&H6366),\"\")","v":0},"EstExp 12-20","H101"]
[6362,{"$f":"'EstExp 12-20'!K101","v":0},6362,"New 2009",true,{"$f":"IF(G6367<>\"\",INDIRECT(\"'\"&G6367&\"'!\"&H6367),\"\")","v":0},"EstExp 12-20","K101"]
[6363,{"$f":"'EstExp 12-20'!H103","v":0},6363,"New 2009",true,{"$f":"IF(G6368<>\"\",INDIRECT(\"'\"&G6368&\"'!\"&H6368),\"\")","v":0},"EstExp 12-20","H103"]
[6364,{"$f":"'EstExp 12-20'!I116","v":0},6364,"New 2009",true,{"$f":"IF(G6369<>\"\",INDIRECT(\"'\"&G6369&\"'!\"&H6369),\"\")","v":0},"EstExp 12-20","I116"]
[6365,{"$f":"'EstExp 12-20'!J116","v":0},6365,"New 2009",true,{"$f":"IF(G6370<>\"\",INDIRECT(\"'\"&G6370&\"'!\"&H6370),\"\")","v":0},"EstExp 12-20","J116"]
[6366,{"$f":"'EstExp 12-20'!I124","v":0},6366,"New 2009",true,{"$f":"IF(G6371<>\"\",INDIRECT(\"'\"&G6371&\"'!\"&H6371),\"\")","v":0},"EstExp 12-20","I124"]
[6367,{"$f":"'EstExp 12-20'!J124","v":0},6367,"New 2009",true,{"$f":"IF(G6372<>\"\",INDIRECT(\"'\"&G6372&\"'!\"&H6372),\"\")","v":0},"EstExp 12-20","J124"]
[6368,{"$f":"'EstExp 12-20'!I126","v":0},6368,"New 2009",true,{"$f":"IF(G6373<>\"\",INDIRECT(\"'\"&G6373&\"'!\"&H6373),\"\")","v":0},"EstExp 12-20","I126"]
[6369,{"$f":"'EstExp 12-20'!J126","v":0},6369,"New 2009",true,{"$f":"IF(G6374<>\"\",INDIRECT(\"'\"&G6374&\"'!\"&H6374),\"\")","v":0},"EstExp 12-20","J126"]
[6370,{"$f":"'EstExp 12-20'!I127","v":0},6370,"New 2009",true,{"$f":"IF(G6375<>\"\",INDIRECT(\"'\"&G6375&\"'!\"&H6375),\"\")","v":0},"EstExp 12-20","I127"]
[6371,{"$f":"'EstExp 12-20'!J127","v":0},6371,"New 2009",true,{"$f":"IF(G6376<>\"\",INDIRECT(\"'\"&G6376&\"'!\"&H6376),\"\")","v":0},"EstExp 12-20","J127"]
[6372,{"$f":"'EstExp 12-20'!I128","v":0},6372,"New 2009",true,{"$f":"IF(G6377<>\"\",INDIRECT(\"'\"&G6377&\"'!\"&H6377),\"\")","v":0},"EstExp 12-20","I128"]
[6373,{"$f":"'EstExp 12-20'!J128","v":0},6373,"New 2009",true,{"$f":"IF(G6378<>\"\",INDIRECT(\"'\"&G6378&\"'!\"&H6378),\"\")","v":0},"EstExp 12-20","J128"]
[6374,{"$f":"'EstExp 12-20'!I129","v":0},6374,"New 2009",true,{"$f":"IF(G6379<>\"\",INDIRECT(\"'\"&G6379&\"'!\"&H6379),\"\")","v":0},"EstExp 12-20","I129"]
[6375,{"$f":"'EstExp 12-20'!J129","v":0},6375,"New 2009",true,{"$f":"IF(G6380<>\"\",INDIRECT(\"'\"&G6380&\"'!\"&H6380),\"\")","v":0},"EstExp 12-20","J129"]
[6376,{"$f":"'EstExp 12-20'!I130","v":0},6376,"New 2009",true,{"$f":"IF(G6381<>\"\",INDIRECT(\"'\"&G6381&\"'!\"&H6381),\"\")","v":0},"EstExp 12-20","I130"]
[6377,{"$f":"'EstExp 12-20'!I131","v":0},6377,"New 2009",true,{"$f":"IF(G6382<>\"\",INDIRECT(\"'\"&G6382&\"'!\"&H6382),\"\")","v":0},"EstExp 12-20","I131"]
[6378,{"$f":"'EstExp 12-20'!J131","v":0},6378,"New 2009",true,{"$f":"IF(G6383<>\"\",INDIRECT(\"'\"&G6383&\"'!\"&H6383),\"\")","v":0},"EstExp 12-20","J131"]
[6379,{"$f":"'EstExp 12-20'!I132","v":0},6379,"New 2009",true,{"$f":"IF(G6384<>\"\",INDIRECT(\"'\"&G6384&\"'!\"&H6384),\"\")","v":0},"EstExp 12-20","I132"]
[6380,{"$f":"'EstExp 12-20'!J132","v":0},6380,"New 2009",true,{"$f":"IF(G6385<>\"\",INDIRECT(\"'\"&G6385&\"'!\"&H6385),\"\")","v":0},"EstExp 12-20","J132"]
[6381,{"$f":"'EstExp 12-20'!I133","v":0},6381,"New 2009",true,{"$f":"IF(G6386<>\"\",INDIRECT(\"'\"&G6386&\"'!\"&H6386),\"\")","v":0},"EstExp 12-20","I133"]
[6382,{"$f":"'EstExp 12-20'!J133","v":0},6382,"New 2009",true,{"$f":"IF(G6387<>\"\",INDIRECT(\"'\"&G6387&\"'!\"&H6387),\"\")","v":0},"EstExp 12-20","J133"]
[6383,{"$f":"'EstExp 12-20'!I134","v":0},6383,"New 2009",true,{"$f":"IF(G6388<>\"\",INDIRECT(\"'\"&G6388&\"'!\"&H6388),\"\")","v":0},"EstExp 12-20","I134"]
[6384,{"$f":"'EstExp 12-20'!J134","v":0},6384,"New 2009",true,{"$f":"IF(G6389<>\"\",INDIRECT(\"'\"&G6389&\"'!\"&H6389),\"\")","v":0},"EstExp 12-20","J134"]
[6385,{"$f":"'EstExp 12-20'!I155","v":0},6385,"New 2009",true,{"$f":"IF(G6390<>\"\",INDIRECT(\"'\"&G6390&\"'!\"&H6390),\"\")","v":0},"EstExp 12-20","I155"]
[6386,{"$f":"'EstExp 12-20'!J155","v":0},6386,"New 2009",true,{"$f":"IF(G6391<>\"\",INDIRECT(\"'\"&G6391&\"'!\"&H6391),\"\")","v":0},"EstExp 12-20","J155"]
[6387,null,null,"New 2009",true,{"$f":"IF(G6392<>\"\",INDIRECT(\"'\"&G6392&\"'!\"&H6392),\"\")","v":""}]
[6388,null,null,"Deleted 2009",true,{"$f":"IF(G6393<>\"\",INDIRECT(\"'\"&G6393&\"'!\"&H6393),\"\")","v":""}]
[6389,null,null,"Deleted 2009",true,{"$f":"IF(G6394<>\"\",INDIRECT(\"'\"&G6394&\"'!\"&H6394),\"\")","v":""}]
[6390,null,null,"Deleted 2009",true,{"$f":"IF(G6395<>\"\",INDIRECT(\"'\"&G6395&\"'!\"&H6395),\"\")","v":""}]
[6391,{"$f":"'EstExp 12-20'!I184","v":0},6391,"New 2009",true,{"$f":"IF(G6396<>\"\",INDIRECT(\"'\"&G6396&\"'!\"&H6396),\"\")","v":0},"EstExp 12-20","I184"]
[6392,{"$f":"'EstExp 12-20'!J184","v":0},6392,"New 2009",true,{"$f":"IF(G6397<>\"\",INDIRECT(\"'\"&G6397&\"'!\"&H6397),\"\")","v":0},"EstExp 12-20","J184"]
[6393,{"$f":"'EstExp 12-20'!I186","v":0},6393,"New 2009",true,{"$f":"IF(G6398<>\"\",INDIRECT(\"'\"&G6398&\"'!\"&H6398),\"\")","v":0},"EstExp 12-20","I186"]
[6394,{"$f":"'EstExp 12-20'!J186","v":0},6394,"New 2009",true,{"$f":"IF(G6399<>\"\",INDIRECT(\"'\"&G6399&\"'!\"&H6399),\"\")","v":0},"EstExp 12-20","J186"]
[6395,{"$f":"'EstExp 12-20'!I187","v":0},6395,"New 2009",true,{"$f":"IF(G6400<>\"\",INDIRECT(\"'\"&G6400&\"'!\"&H6400),\"\")","v":0},"EstExp 12-20","I187"]
[6396,{"$f":"'EstExp 12-20'!J187","v":0},6396,"New 2009",true,{"$f":"IF(G6401<>\"\",INDIRECT(\"'\"&G6401&\"'!\"&H6401),\"\")","v":0},"EstExp 12-20","J187"]
[6397,{"$f":"'EstExp 12-20'!I188","v":0},6397,"New 2009",{"$f":"F6402=B6402","v":true},{"$f":"IF(G6402<>\"\",INDIRECT(\"'\"&G6402&\"'!\"&H6402),\"\")","v":0},"EstExp 12-20","I188"]
[6398,{"$f":"'EstExp 12-20'!J188","v":0},6398,"New 2009",true,{"$f":"IF(G6403<>\"\",INDIRECT(\"'\"&G6403&\"'!\"&H6403),\"\")","v":0},"EstExp 12-20","J188"]
[6399,{"$f":"'EstExp 12-20'!I189","v":0},6399,"New 2009",true,{"$f":"IF(G6404<>\"\",INDIRECT(\"'\"&G6404&\"'!\"&H6404),\"\")","v":0},"EstExp 12-20","I189"]
[6400,{"$f":"'EstExp 12-20'!J189","v":0},6400,"New 2009",true,{"$f":"IF(G6405<>\"\",INDIRECT(\"'\"&G6405&\"'!\"&H6405),\"\")","v":0},"EstExp 12-20","J189"]
[6401,{"$f":"'EstExp 12-20'!I214","v":0},6401,"New 2009",true,{"$f":"IF(G6406<>\"\",INDIRECT(\"'\"&G6406&\"'!\"&H6406),\"\")","v":0},"EstExp 12-20","I214"]
[6402,{"$f":"'EstExp 12-20'!J214","v":0},6402,"New 2009",true,{"$f":"IF(G6407<>\"\",INDIRECT(\"'\"&G6407&\"'!\"&H6407),\"\")","v":0},"EstExp 12-20","J214"]
[6403,{"$f":"'EstExp 12-20'!D220","v":9500},{"$f":"A6408-B6408","v":-3097},"New 2009",true,{"$f":"IF(G6408<>\"\",INDIRECT(\"'\"&G6408&\"'!\"&H6408),\"\")","v":9500},"EstExp 12-20","D220"]
[6404,{"$f":"'EstExp 12-20'!K220","v":9500},-3096,"New 2009",true,{"$f":"IF(G6409<>\"\",INDIRECT(\"'\"&G6409&\"'!\"&H6409),\"\")","v":9500},"EstExp 12-20","K220"]
[6405,{"$f":"'EstExp 12-20'!D222","v":0},6405,"New 2009",true,{"$f":"IF(G6410<>\"\",INDIRECT(\"'\"&G6410&\"'!\"&H6410),\"\")","v":0},"EstExp 12-20","D222"]
[6406,{"$f":"'EstExp 12-20'!K222","v":0},6406,"New 2009",true,{"$f":"IF(G6411<>\"\",INDIRECT(\"'\"&G6411&\"'!\"&H6411),\"\")","v":0},"EstExp 12-20","K222"]
[6407,{"$f":"'EstExp 12-20'!D224","v":0},6407,"New 2009",true,{"$f":"IF(G6412<>\"\",INDIRECT(\"'\"&G6412&\"'!\"&H6412),\"\")","v":0},"EstExp 12-20","D224"]
[6408,{"$f":"'EstExp 12-20'!K224","v":0},6408,"New 2009",true,{"$f":"IF(G6413<>\"\",INDIRECT(\"'\"&G6413&\"'!\"&H6413),\"\")","v":0},"EstExp 12-20","K224"]
[6409,{"$f":"'EstExp 12-20'!D230","v":0},6409,"New 2009",true,{"$f":"IF(G6414<>\"\",INDIRECT(\"'\"&G6414&\"'!\"&H6414),\"\")","v":0},"EstExp 12-20","D230"]
[6410,{"$f":"'EstExp 12-20'!K230","v":0},6410,"New 2009",true,{"$f":"IF(G6415<>\"\",INDIRECT(\"'\"&G6415&\"'!\"&H6415),\"\")","v":0},"EstExp 12-20","K230"]
[6411,null,null,"New 2009",true,{"$f":"IF(G6416<>\"\",INDIRECT(\"'\"&G6416&\"'!\"&H6416),\"\")","v":""}]
[6412,null,null,"New 2009",true,{"$f":"IF(G6417<>\"\",INDIRECT(\"'\"&G6417&\"'!\"&H6417),\"\")","v":""}]
[6413,{"$f":"'EstExp 12-20'!D252","v":0},6413,"New 2009",true,{"$f":"IF(G6418<>\"\",INDIRECT(\"'\"&G6418&\"'!\"&H6418),\"\")","v":0},"EstExp 12-20","D252"]
[6414,{"$f":"'EstExp 12-20'!K252","v":0},6414,"New 2009",true,{"$f":"IF(G6419<>\"\",INDIRECT(\"'\"&G6419&\"'!\"&H6419),\"\")","v":0},"EstExp 12-20","K252"]
[6415,null,null,"New 2009",true,{"$f":"IF(G6420<>\"\",INDIRECT(\"'\"&G6420&\"'!\"&H6420),\"\")","v":""},{"$nulls":5},"Closed 2022"]
[6416,null,null,"New 2009",true,{"$f":"IF(G6421<>\"\",INDIRECT(\"'\"&G6421&\"'!\"&H6421),\"\")","v":""},{"$nulls":5},"Closed 2022"]
[6417,null,null,"New 2009",true,{"$f":"IF(G6422<>\"\",INDIRECT(\"'\"&G6422&\"'!\"&H6422),\"\")","v":""},{"$nulls":5},"Closed 2022"]
[6418,null,null,"New 2009",true,{"$f":"IF(G6423<>\"\",INDIRECT(\"'\"&G6423&\"'!\"&H6423),\"\")","v":""},{"$nulls":5},"Closed 2022"]
[6419,null,null,"New 2009",true,{"$f":"IF(G6424<>\"\",INDIRECT(\"'\"&G6424&\"'!\"&H6424),\"\")","v":""},{"$nulls":5},"Closed 2022"]
[6420,null,null,"New 2009",true,{"$f":"IF(G6425<>\"\",INDIRECT(\"'\"&G6425&\"'!\"&H6425),\"\")","v":""},{"$nulls":5},"Closed 2022"]
[6421,{"$f":"'EstExp 12-20'!D253","v":0},6421,"New 2009",true,{"$f":"IF(G6426<>\"\",INDIRECT(\"'\"&G6426&\"'!\"&H6426),\"\")","v":0},"EstExp 12-20","D253"]
[6422,{"$f":"'EstExp 12-20'!K253","v":0},6422,"New 2009",true,{"$f":"IF(G6427<>\"\",INDIRECT(\"'\"&G6427&\"'!\"&H6427),\"\")","v":0},"EstExp 12-20","K253"]
[6423,null,null,"New 2009",true,{"$f":"IF(G6428<>\"\",INDIRECT(\"'\"&G6428&\"'!\"&H6428),\"\")","v":""},{"$nulls":5},"Closed 2022"]
[6424,null,null,"New 2009",true,{"$f":"IF(G6429<>\"\",INDIRECT(\"'\"&G6429&\"'!\"&H6429),\"\")","v":""},{"$nulls":5},"Closed 2022"]
[6425,null,null,"New 2009",true,{"$f":"IF(G6430<>\"\",INDIRECT(\"'\"&G6430&\"'!\"&H6430),\"\")","v":""},{"$nulls":5},"Closed 2022"]
[6426,null,null,"New 2009",true,{"$f":"IF(G6431<>\"\",INDIRECT(\"'\"&G6431&\"'!\"&H6431),\"\")","v":""},{"$nulls":5},"Closed 2022"]
[6427,null,null,"New 2009",true,{"$f":"IF(G6432<>\"\",INDIRECT(\"'\"&G6432&\"'!\"&H6432),\"\")","v":""},{"$nulls":5},"Closed 2022"]
[6428,null,null,"New 2009",true,{"$f":"IF(G6433<>\"\",INDIRECT(\"'\"&G6433&\"'!\"&H6433),\"\")","v":""},{"$nulls":5},"Closed 2022"]
[6429,null,null,"New 2009",true,{"$f":"IF(G6434<>\"\",INDIRECT(\"'\"&G6434&\"'!\"&H6434),\"\")","v":""},{"$nulls":5},"Closed 2022"]
[6430,null,null,"New 2009",true,{"$f":"IF(G6435<>\"\",INDIRECT(\"'\"&G6435&\"'!\"&H6435),\"\")","v":""},{"$nulls":5},"Closed 2022"]
[6431,{"$f":"'EstExp 12-20'!H94","v":{"v":730000,"d":"730,000 "}},-723569,"to correct link 2019",true,{"$f":"IF(G6436<>\"\",INDIRECT(\"'\"&G6436&\"'!\"&H6436),\"\")","v":730000},"EstExp 12-20","H94"]
[6432,{"$f":"'EstExp 12-20'!E102","v":{"v":0,"d":"0 "}},6432,"to correct link 2019",true,{"$f":"IF(G6437<>\"\",INDIRECT(\"'\"&G6437&\"'!\"&H6437),\"\")","v":0},"EstExp 12-20","E102"]
[6433,{"$f":"'EstExp 12-20'!H102","v":{"v":0,"d":"0 "}},6433,"Deleted 2009",true,{"$f":"IF(G6438<>\"\",INDIRECT(\"'\"&G6438&\"'!\"&H6438),\"\")","v":0},"EstExp 12-20","H102"]
[6434,{"$f":"'EstRev 6-11'!J110","v":{"v":0,"d":"0 "}},6434,"to correct link 2019, truly corrected in 2021",true,{"$f":"IF(G6439<>\"\",INDIRECT(\"'\"&G6439&\"'!\"&H6439),\"\")","v":0},"EstRev 6-11","J110"]
[6435,null,null,"Deleted 2009",true,{"$f":"IF(G6440<>\"\",INDIRECT(\"'\"&G6440&\"'!\"&H6440),\"\")","v":""}]
[6436,null,null,"Deleted 2009",true,{"$f":"IF(G6441<>\"\",INDIRECT(\"'\"&G6441&\"'!\"&H6441),\"\")","v":""}]
[6437,null,null,"Deleted 2009",true,{"$f":"IF(G6442<>\"\",INDIRECT(\"'\"&G6442&\"'!\"&H6442),\"\")","v":""}]
[6438,null,null,"Deleted 2009",true,{"$f":"IF(G6443<>\"\",INDIRECT(\"'\"&G6443&\"'!\"&H6443),\"\")","v":""}]
[6439,null,null,"Deleted 2009",true,{"$f":"IF(G6444<>\"\",INDIRECT(\"'\"&G6444&\"'!\"&H6444),\"\")","v":""}]
[6440,null,null,"Deleted 2009",true,{"$f":"IF(G6445<>\"\",INDIRECT(\"'\"&G6445&\"'!\"&H6445),\"\")","v":""}]
[6441,null,null,"Deleted 2009",true,{"$f":"IF(G6446<>\"\",INDIRECT(\"'\"&G6446&\"'!\"&H6446),\"\")","v":""}]
[6442,null,null,"Deleted 2009",true,{"$f":"IF(G6447<>\"\",INDIRECT(\"'\"&G6447&\"'!\"&H6447),\"\")","v":""}]
[6443,null,null,"Deleted 2009",true,{"$f":"IF(G6448<>\"\",INDIRECT(\"'\"&G6448&\"'!\"&H6448),\"\")","v":""}]
[6444,null,null,"Deleted 2009",true,{"$f":"IF(G6449<>\"\",INDIRECT(\"'\"&G6449&\"'!\"&H6449),\"\")","v":""}]
[6445,null,null,"Deleted 2009",true,{"$f":"IF(G6450<>\"\",INDIRECT(\"'\"&G6450&\"'!\"&H6450),\"\")","v":""}]
[6446,null,null,"Deleted 2009",true,{"$f":"IF(G6451<>\"\",INDIRECT(\"'\"&G6451&\"'!\"&H6451),\"\")","v":""}]
[6447,null,null,"Deleted 2009",true,{"$f":"IF(G6452<>\"\",INDIRECT(\"'\"&G6452&\"'!\"&H6452),\"\")","v":""}]
[6448,null,null,"Deleted 2009",true,{"$f":"IF(G6453<>\"\",INDIRECT(\"'\"&G6453&\"'!\"&H6453),\"\")","v":""}]
[6449,null,null,"Deleted 2009",true,{"$f":"IF(G6454<>\"\",INDIRECT(\"'\"&G6454&\"'!\"&H6454),\"\")","v":""}]
[6450,null,null,"Deleted 2009",true,{"$f":"IF(G6455<>\"\",INDIRECT(\"'\"&G6455&\"'!\"&H6455),\"\")","v":""}]
[6451,null,null,"Deleted 2009",true,{"$f":"IF(G6456<>\"\",INDIRECT(\"'\"&G6456&\"'!\"&H6456),\"\")","v":""}]
[6452,null,null,"Deleted 2009",true,{"$f":"IF(G6457<>\"\",INDIRECT(\"'\"&G6457&\"'!\"&H6457),\"\")","v":""}]
[6453,null,null,"Deleted 2009",true,{"$f":"IF(G6458<>\"\",INDIRECT(\"'\"&G6458&\"'!\"&H6458),\"\")","v":""}]
[6454,null,null,"Deleted 2009",true,{"$f":"IF(G6459<>\"\",INDIRECT(\"'\"&G6459&\"'!\"&H6459),\"\")","v":""}]
[6455,null,null,"Deleted 2009",true,{"$f":"IF(G6460<>\"\",INDIRECT(\"'\"&G6460&\"'!\"&H6460),\"\")","v":""}]
[6456,null,null,"Deleted 2009",true,{"$f":"IF(G6461<>\"\",INDIRECT(\"'\"&G6461&\"'!\"&H6461),\"\")","v":""}]
[6457,{"$f":"'EstExp 12-20'!I298","v":0},6457,"New 2009",true,{"$f":"IF(G6462<>\"\",INDIRECT(\"'\"&G6462&\"'!\"&H6462),\"\")","v":0},"EstExp 12-20","I298"]
[6458,null,null,"New 2009",true,{"$f":"IF(G6463<>\"\",INDIRECT(\"'\"&G6463&\"'!\"&H6463),\"\")","v":""}]
[6459,{"$f":"'EstExp 12-20'!I299","v":0},6459,"New 2009",true,{"$f":"IF(G6464<>\"\",INDIRECT(\"'\"&G6464&\"'!\"&H6464),\"\")","v":0},"EstExp 12-20","I299"]
[6460,null,null,"New 2009",true,{"$f":"IF(G6465<>\"\",INDIRECT(\"'\"&G6465&\"'!\"&H6465),\"\")","v":""}]
[6461,{"$f":"'EstExp 12-20'!I300","v":0},6461,"New 2009",{"$f":"F6466=B6466","v":true},{"$f":"IF(G6466<>\"\",INDIRECT(\"'\"&G6466&\"'!\"&H6466),\"\")","v":0},"EstExp 12-20","I300"]
[6462,null,null,"New 2009",true,{"$f":"IF(G6467<>\"\",INDIRECT(\"'\"&G6467&\"'!\"&H6467),\"\")","v":""}]
[6463,null,null,"New 2009",true,{"$f":"IF(G6468<>\"\",INDIRECT(\"'\"&G6468&\"'!\"&H6468),\"\")","v":""},{"$nulls":5},"Deleted 2017 to remove account 4100 from the Capital Projects expenditures."]
[6464,null,null,"New 2009",true,{"$f":"IF(G6469<>\"\",INDIRECT(\"'\"&G6469&\"'!\"&H6469),\"\")","v":""}]
[6465,null,null,"New 2009",true,{"$f":"IF(G6470<>\"\",INDIRECT(\"'\"&G6470&\"'!\"&H6470),\"\")","v":""}]
[6466,{"$f":"'EstExp 12-20'!E304","v":0},6466,"New 2009",true,{"$f":"IF(G6471<>\"\",INDIRECT(\"'\"&G6471&\"'!\"&H6471),\"\")","v":0},"EstExp 12-20","E304"]
[6467,{"$f":"'EstExp 12-20'!H304","v":0},{"$f":"A6472-B6472","v":6467},"New 2009",true,{"$f":"IF(G6472<>\"\",INDIRECT(\"'\"&G6472&\"'!\"&H6472),\"\")","v":0},"EstExp 12-20","H304"]
[6468,{"$f":"'EstExp 12-20'!E305","v":0},6468,"New 2009",true,{"$f":"IF(G6473<>\"\",INDIRECT(\"'\"&G6473&\"'!\"&H6473),\"\")","v":0},"EstExp 12-20","E305"]
[6469,{"$f":"'EstExp 12-20'!H305","v":0},6469,"New 2009",true,{"$f":"IF(G6474<>\"\",INDIRECT(\"'\"&G6474&\"'!\"&H6474),\"\")","v":0},"EstExp 12-20","H305"]
[6470,{"$f":"'EstExp 12-20'!E306","v":0},6470,"New 2009",true,{"$f":"IF(G6475<>\"\",INDIRECT(\"'\"&G6475&\"'!\"&H6475),\"\")","v":0},"EstExp 12-20","E306"]
[6471,{"$f":"'EstExp 12-20'!H306","v":0},6471,"New 2009",true,{"$f":"IF(G6476<>\"\",INDIRECT(\"'\"&G6476&\"'!\"&H6476),\"\")","v":0},"EstExp 12-20","H306"]
[6472,null,null,"Closed 2008",true,{"$f":"IF(G6477<>\"\",INDIRECT(\"'\"&G6477&\"'!\"&H6477),\"\")","v":""}]
[6473,null,null,"Closed 2008",true,{"$f":"IF(G6478<>\"\",INDIRECT(\"'\"&G6478&\"'!\"&H6478),\"\")","v":""}]
[6474,{"$f":"'EstExp 12-20'!E307","v":0},6474,"New 2009",true,{"$f":"IF(G6479<>\"\",INDIRECT(\"'\"&G6479&\"'!\"&H6479),\"\")","v":0},"EstExp 12-20","E307"]
[6475,{"$f":"'EstExp 12-20'!H307","v":0},6475,"New 2009",true,{"$f":"IF(G6480<>\"\",INDIRECT(\"'\"&G6480&\"'!\"&H6480),\"\")","v":0},"EstExp 12-20","H307"]
[6476,{"$f":"'EstExp 12-20'!I309","v":0},6476,"New 2009",true,{"$f":"IF(G6481<>\"\",INDIRECT(\"'\"&G6481&\"'!\"&H6481),\"\")","v":0},"EstExp 12-20","I309"]
[6477,null,null,"New 2009",true,{"$f":"IF(G6482<>\"\",INDIRECT(\"'\"&G6482&\"'!\"&H6482),\"\")","v":""}]
[6478,{"$f":"'EstExp 12-20'!C363","v":0},6478,"New 2009",true,{"$f":"IF(G6483<>\"\",INDIRECT(\"'\"&G6483&\"'!\"&H6483),\"\")","v":0},"EstExp 12-20","C363"]
[6479,{"$f":"'EstExp 12-20'!D363","v":0},6479,"New 2009",true,{"$f":"IF(G6484<>\"\",INDIRECT(\"'\"&G6484&\"'!\"&H6484),\"\")","v":0},"EstExp 12-20","D363"]
[6480,{"$f":"'EstExp 12-20'!E363","v":0},6480,"New 2009",true,{"$f":"IF(G6485<>\"\",INDIRECT(\"'\"&G6485&\"'!\"&H6485),\"\")","v":0},"EstExp 12-20","E363"]
[6481,{"$f":"'EstExp 12-20'!F363","v":0},6481,"New 2009",true,{"$f":"IF(G6486<>\"\",INDIRECT(\"'\"&G6486&\"'!\"&H6486),\"\")","v":0},"EstExp 12-20","F363"]
[6482,{"$f":"'EstExp 12-20'!G363","v":0},6482,"New 2009",true,{"$f":"IF(G6487<>\"\",INDIRECT(\"'\"&G6487&\"'!\"&H6487),\"\")","v":0},"EstExp 12-20","G363"]
[6483,{"$f":"'EstExp 12-20'!H363","v":0},6483,"New 2009",true,{"$f":"IF(G6488<>\"\",INDIRECT(\"'\"&G6488&\"'!\"&H6488),\"\")","v":0},"EstExp 12-20","H363"]
[6484,{"$f":"'EstExp 12-20'!I363","v":0},6484,"New 2009",true,{"$f":"IF(G6489<>\"\",INDIRECT(\"'\"&G6489&\"'!\"&H6489),\"\")","v":0},"EstExp 12-20","I363"]
[6485,null,null,"New 2009",true,{"$f":"IF(G6490<>\"\",INDIRECT(\"'\"&G6490&\"'!\"&H6490),\"\")","v":""}]
[6486,{"$f":"'EstExp 12-20'!K363","v":0},6486,"New 2009",true,{"$f":"IF(G6491<>\"\",INDIRECT(\"'\"&G6491&\"'!\"&H6491),\"\")","v":0},"EstExp 12-20","K363"]
[6487,null,null,"New 2009",true,{"$f":"IF(G6492<>\"\",INDIRECT(\"'\"&G6492&\"'!\"&H6492),\"\")","v":""}]
[6488,null,null,"New 2009",true,{"$f":"IF(G6493<>\"\",INDIRECT(\"'\"&G6493&\"'!\"&H6493),\"\")","v":""}]
[6489,null,null,"New 2009",true,{"$f":"IF(G6494<>\"\",INDIRECT(\"'\"&G6494&\"'!\"&H6494),\"\")","v":""}]
[6490,null,null,"New 2009",true,{"$f":"IF(G6495<>\"\",INDIRECT(\"'\"&G6495&\"'!\"&H6495),\"\")","v":""}]
[6491,null,null,"New 2009",true,{"$f":"IF(G6496<>\"\",INDIRECT(\"'\"&G6496&\"'!\"&H6496),\"\")","v":""}]
[6492,null,null,"New 2009",true,{"$f":"IF(G6497<>\"\",INDIRECT(\"'\"&G6497&\"'!\"&H6497),\"\")","v":""}]
[6493,null,null,"New 2009",true,{"$f":"IF(G6498<>\"\",INDIRECT(\"'\"&G6498&\"'!\"&H6498),\"\")","v":""}]
[6494,null,null,"New 2009",true,{"$f":"IF(G6499<>\"\",INDIRECT(\"'\"&G6499&\"'!\"&H6499),\"\")","v":""}]
[6495,null,null,"New 2009",true,{"$f":"IF(G6500<>\"\",INDIRECT(\"'\"&G6500&\"'!\"&H6500),\"\")","v":""}]
[6496,null,null,"New 2009",true,{"$f":"IF(G6501<>\"\",INDIRECT(\"'\"&G6501&\"'!\"&H6501),\"\")","v":""}]
[6497,null,null,"New 2009",true,{"$f":"IF(G6502<>\"\",INDIRECT(\"'\"&G6502&\"'!\"&H6502),\"\")","v":""}]
[6498,null,null,"New 2009",true,{"$f":"IF(G6503<>\"\",INDIRECT(\"'\"&G6503&\"'!\"&H6503),\"\")","v":""}]
[6499,null,null,"New 2009",true,{"$f":"IF(G6504<>\"\",INDIRECT(\"'\"&G6504&\"'!\"&H6504),\"\")","v":""}]
[6500,null,null,"New 2009",true,{"$f":"IF(G6505<>\"\",INDIRECT(\"'\"&G6505&\"'!\"&H6505),\"\")","v":""}]
[6501,null,null,"New 2009",true,{"$f":"IF(G6506<>\"\",INDIRECT(\"'\"&G6506&\"'!\"&H6506),\"\")","v":""}]
[6502,null,null,"New 2009",true,{"$f":"IF(G6507<>\"\",INDIRECT(\"'\"&G6507&\"'!\"&H6507),\"\")","v":""}]
[6503,null,null,"New 2009",true,{"$f":"IF(G6508<>\"\",INDIRECT(\"'\"&G6508&\"'!\"&H6508),\"\")","v":""}]
[6504,null,null,"New 2009",true,{"$f":"IF(G6509<>\"\",INDIRECT(\"'\"&G6509&\"'!\"&H6509),\"\")","v":""}]
[6505,null,null,"New 2009",true,{"$f":"IF(G6510<>\"\",INDIRECT(\"'\"&G6510&\"'!\"&H6510),\"\")","v":""}]
[6506,null,null,"New 2009",true,{"$f":"IF(G6511<>\"\",INDIRECT(\"'\"&G6511&\"'!\"&H6511),\"\")","v":""}]
[6507,null,null,"New 2009",true,{"$f":"IF(G6512<>\"\",INDIRECT(\"'\"&G6512&\"'!\"&H6512),\"\")","v":""}]
[6508,null,null,"New 2009",true,{"$f":"IF(G6513<>\"\",INDIRECT(\"'\"&G6513&\"'!\"&H6513),\"\")","v":""}]
[6509,null,null,"New 2009",true,{"$f":"IF(G6514<>\"\",INDIRECT(\"'\"&G6514&\"'!\"&H6514),\"\")","v":""}]
[6510,null,null,"New 2009",true,{"$f":"IF(G6515<>\"\",INDIRECT(\"'\"&G6515&\"'!\"&H6515),\"\")","v":""}]
[6511,null,null,"New 2009",true,{"$f":"IF(G6516<>\"\",INDIRECT(\"'\"&G6516&\"'!\"&H6516),\"\")","v":""}]
[6512,null,null,"New 2009",true,{"$f":"IF(G6517<>\"\",INDIRECT(\"'\"&G6517&\"'!\"&H6517),\"\")","v":""}]
[6513,null,null,"New 2009",true,{"$f":"IF(G6518<>\"\",INDIRECT(\"'\"&G6518&\"'!\"&H6518),\"\")","v":""}]
[6514,{"$f":"'EstExp 12-20'!C364","v":0},6514,"New 2009",true,{"$f":"IF(G6519<>\"\",INDIRECT(\"'\"&G6519&\"'!\"&H6519),\"\")","v":0},"EstExp 12-20","C364"]
[6515,{"$f":"'EstExp 12-20'!D364","v":0},6515,"New 2009",true,{"$f":"IF(G6520<>\"\",INDIRECT(\"'\"&G6520&\"'!\"&H6520),\"\")","v":0},"EstExp 12-20","D364"]
[6516,{"$f":"'EstExp 12-20'!E364","v":0},6516,"New 2009",true,{"$f":"IF(G6521<>\"\",INDIRECT(\"'\"&G6521&\"'!\"&H6521),\"\")","v":0},"EstExp 12-20","E364"]
[6517,{"$f":"'EstExp 12-20'!F364","v":0},6517,"New 2009",true,{"$f":"IF(G6522<>\"\",INDIRECT(\"'\"&G6522&\"'!\"&H6522),\"\")","v":0},"EstExp 12-20","F364"]
[6518,{"$f":"'EstExp 12-20'!G364","v":0},6518,"New 2009",true,{"$f":"IF(G6523<>\"\",INDIRECT(\"'\"&G6523&\"'!\"&H6523),\"\")","v":0},"EstExp 12-20","G364"]
[6519,{"$f":"'EstExp 12-20'!H364","v":0},6519,"New 2009",true,{"$f":"IF(G6524<>\"\",INDIRECT(\"'\"&G6524&\"'!\"&H6524),\"\")","v":0},"EstExp 12-20","H364"]
[6520,{"$f":"'EstExp 12-20'!I364","v":0},6520,"New 2009",true,{"$f":"IF(G6525<>\"\",INDIRECT(\"'\"&G6525&\"'!\"&H6525),\"\")","v":0},"EstExp 12-20","I364"]
[6521,null,null,"New 2009",true,{"$f":"IF(G6526<>\"\",INDIRECT(\"'\"&G6526&\"'!\"&H6526),\"\")","v":""}]
[6522,{"$f":"'EstExp 12-20'!K364","v":0},6522,"New 2009",true,{"$f":"IF(G6527<>\"\",INDIRECT(\"'\"&G6527&\"'!\"&H6527),\"\")","v":0},"EstExp 12-20","K364"]
[6523,null,null,"New 2009",true,{"$f":"IF(G6528<>\"\",INDIRECT(\"'\"&G6528&\"'!\"&H6528),\"\")","v":""}]
[6524,null,null,"New 2009",true,{"$f":"IF(G6529<>\"\",INDIRECT(\"'\"&G6529&\"'!\"&H6529),\"\")","v":""}]
[6525,null,null,"New 2009",{"$f":"F6530=B6530","v":true},{"$f":"IF(G6530<>\"\",INDIRECT(\"'\"&G6530&\"'!\"&H6530),\"\")","v":""}]
[6526,null,null,"New 2009",true,{"$f":"IF(G6531<>\"\",INDIRECT(\"'\"&G6531&\"'!\"&H6531),\"\")","v":""}]
[6527,null,null,"New 2009",true,{"$f":"IF(G6532<>\"\",INDIRECT(\"'\"&G6532&\"'!\"&H6532),\"\")","v":""}]
[6528,null,null,"New 2009",true,{"$f":"IF(G6533<>\"\",INDIRECT(\"'\"&G6533&\"'!\"&H6533),\"\")","v":""}]
[6529,null,null,"New 2009",true,{"$f":"IF(G6534<>\"\",INDIRECT(\"'\"&G6534&\"'!\"&H6534),\"\")","v":""}]
[6530,null,null,"New 2009",true,{"$f":"IF(G6535<>\"\",INDIRECT(\"'\"&G6535&\"'!\"&H6535),\"\")","v":""}]
[6531,null,null,"New 2009",true,{"$f":"IF(G6536<>\"\",INDIRECT(\"'\"&G6536&\"'!\"&H6536),\"\")","v":""}]
[6532,null,null,"New 2009",true,{"$f":"IF(G6537<>\"\",INDIRECT(\"'\"&G6537&\"'!\"&H6537),\"\")","v":""}]
[6533,null,null,"New 2009",true,{"$f":"IF(G6538<>\"\",INDIRECT(\"'\"&G6538&\"'!\"&H6538),\"\")","v":""}]
[6534,null,null,"New 2009",true,{"$f":"IF(G6539<>\"\",INDIRECT(\"'\"&G6539&\"'!\"&H6539),\"\")","v":""}]
[6535,null,null,"New 2009",true,{"$f":"IF(G6540<>\"\",INDIRECT(\"'\"&G6540&\"'!\"&H6540),\"\")","v":""}]
[6536,null,null,"New 2009",true,{"$f":"IF(G6541<>\"\",INDIRECT(\"'\"&G6541&\"'!\"&H6541),\"\")","v":""}]
[6537,null,null,"New 2009",true,{"$f":"IF(G6542<>\"\",INDIRECT(\"'\"&G6542&\"'!\"&H6542),\"\")","v":""}]
[6538,null,null,"New 2009",true,{"$f":"IF(G6543<>\"\",INDIRECT(\"'\"&G6543&\"'!\"&H6543),\"\")","v":""}]
[6539,null,null,"New 2009",true,{"$f":"IF(G6544<>\"\",INDIRECT(\"'\"&G6544&\"'!\"&H6544),\"\")","v":""}]
[6540,null,null,"New 2009",true,{"$f":"IF(G6545<>\"\",INDIRECT(\"'\"&G6545&\"'!\"&H6545),\"\")","v":""}]
[6541,null,null,"New 2009",true,{"$f":"IF(G6546<>\"\",INDIRECT(\"'\"&G6546&\"'!\"&H6546),\"\")","v":""}]
[6542,null,null,"New 2009",true,{"$f":"IF(G6547<>\"\",INDIRECT(\"'\"&G6547&\"'!\"&H6547),\"\")","v":""}]
[6543,null,null,"New 2009",true,{"$f":"IF(G6548<>\"\",INDIRECT(\"'\"&G6548&\"'!\"&H6548),\"\")","v":""}]
[6544,null,null,"New 2009",true,{"$f":"IF(G6549<>\"\",INDIRECT(\"'\"&G6549&\"'!\"&H6549),\"\")","v":""}]
[6545,null,null,"New 2009",true,{"$f":"IF(G6550<>\"\",INDIRECT(\"'\"&G6550&\"'!\"&H6550),\"\")","v":""}]
[6546,null,null,"New 2009",true,{"$f":"IF(G6551<>\"\",INDIRECT(\"'\"&G6551&\"'!\"&H6551),\"\")","v":""}]
[6547,null,null,"New 2009",true,{"$f":"IF(G6552<>\"\",INDIRECT(\"'\"&G6552&\"'!\"&H6552),\"\")","v":""}]
[6548,null,null,"New 2009",true,{"$f":"IF(G6553<>\"\",INDIRECT(\"'\"&G6553&\"'!\"&H6553),\"\")","v":""}]
[6549,null,null,"New 2009",true,{"$f":"IF(G6554<>\"\",INDIRECT(\"'\"&G6554&\"'!\"&H6554),\"\")","v":""}]
[6550,null,null,"New 2009",true,{"$f":"IF(G6555<>\"\",INDIRECT(\"'\"&G6555&\"'!\"&H6555),\"\")","v":""}]
[6551,null,null,"New 2009",true,{"$f":"IF(G6556<>\"\",INDIRECT(\"'\"&G6556&\"'!\"&H6556),\"\")","v":""}]
[6552,null,null,"New 2009",true,{"$f":"IF(G6557<>\"\",INDIRECT(\"'\"&G6557&\"'!\"&H6557),\"\")","v":""}]
[6553,null,null,"New 2009",true,{"$f":"IF(G6558<>\"\",INDIRECT(\"'\"&G6558&\"'!\"&H6558),\"\")","v":""}]
[6554,null,null,"New 2009",true,{"$f":"IF(G6559<>\"\",INDIRECT(\"'\"&G6559&\"'!\"&H6559),\"\")","v":""}]
[6555,null,null,"New 2009",true,{"$f":"IF(G6560<>\"\",INDIRECT(\"'\"&G6560&\"'!\"&H6560),\"\")","v":""}]
[6556,null,null,"New 2009",true,{"$f":"IF(G6561<>\"\",INDIRECT(\"'\"&G6561&\"'!\"&H6561),\"\")","v":""}]
[6557,null,null,"New 2009",true,{"$f":"IF(G6562<>\"\",INDIRECT(\"'\"&G6562&\"'!\"&H6562),\"\")","v":""}]
[6558,null,null,"New 2009",true,{"$f":"IF(G6563<>\"\",INDIRECT(\"'\"&G6563&\"'!\"&H6563),\"\")","v":""}]
[6559,{"$f":"'EstExp 12-20'!C365","v":{"v":0,"d":"0 "}},{"$f":"A6564-B6564","v":6559},"New 2009",true,{"$f":"IF(G6564<>\"\",INDIRECT(\"'\"&G6564&\"'!\"&H6564),\"\")","v":0},"EstExp 12-20","C365"]
[6560,{"$f":"'EstExp 12-20'!D365","v":{"v":0,"d":"0 "}},6560,"New 2009",true,{"$f":"IF(G6565<>\"\",INDIRECT(\"'\"&G6565&\"'!\"&H6565),\"\")","v":0},"EstExp 12-20","D365"]
[6561,{"$f":"'EstExp 12-20'!E365","v":{"v":15000,"d":"15,000 "}},-8439,"New 2009",true,{"$f":"IF(G6566<>\"\",INDIRECT(\"'\"&G6566&\"'!\"&H6566),\"\")","v":15000},"EstExp 12-20","E365"]
[6562,{"$f":"'EstExp 12-20'!F365","v":{"v":0,"d":"0 "}},6562,"New 2009",true,{"$f":"IF(G6567<>\"\",INDIRECT(\"'\"&G6567&\"'!\"&H6567),\"\")","v":0},"EstExp 12-20","F365"]
[6563,{"$f":"'EstExp 12-20'!G365","v":{"v":0,"d":"0 "}},6563,"New 2009",true,{"$f":"IF(G6568<>\"\",INDIRECT(\"'\"&G6568&\"'!\"&H6568),\"\")","v":0},"EstExp 12-20","G365"]
[6564,{"$f":"'EstExp 12-20'!H365","v":{"v":0,"d":"0 "}},6564,"New 2009",true,{"$f":"IF(G6569<>\"\",INDIRECT(\"'\"&G6569&\"'!\"&H6569),\"\")","v":0},"EstExp 12-20","H365"]
[6565,{"$f":"'EstExp 12-20'!I365","v":{"v":0,"d":"0 "}},6565,"New 2009",true,{"$f":"IF(G6570<>\"\",INDIRECT(\"'\"&G6570&\"'!\"&H6570),\"\")","v":0},"EstExp 12-20","I365"]
[6566,null,null,"New 2009",true,{"$f":"IF(G6571<>\"\",INDIRECT(\"'\"&G6571&\"'!\"&H6571),\"\")","v":""}]
[6567,{"$f":"'EstExp 12-20'!K365","v":{"v":15000,"d":"15,000 "}},-8433,"New 2009",true,{"$f":"IF(G6572<>\"\",INDIRECT(\"'\"&G6572&\"'!\"&H6572),\"\")","v":15000},"EstExp 12-20","K365"]
[6568,{"$f":"'EstExp 12-20'!H418","v":{"v":0,"d":"0 "}},6568,"New 2009",true,{"$f":"IF(G6573<>\"\",INDIRECT(\"'\"&G6573&\"'!\"&H6573),\"\")","v":0},"EstExp 12-20","H418"]
[6569,{"$f":"'EstExp 12-20'!K418","v":{"v":0,"d":"0 "}},6569,"New 2009",true,{"$f":"IF(G6574<>\"\",INDIRECT(\"'\"&G6574&\"'!\"&H6574),\"\")","v":0},"EstExp 12-20","K418"]
[6570,{"$f":"'EstExp 12-20'!H420","v":{"v":0,"d":"0 "}},6570,"New 2009",true,{"$f":"IF(G6575<>\"\",INDIRECT(\"'\"&G6575&\"'!\"&H6575),\"\")","v":0},"EstExp 12-20","H420"]
[6571,{"$f":"'EstExp 12-20'!K420","v":{"v":0,"d":"0 "}},6571,"New 2009",true,{"$f":"IF(G6576<>\"\",INDIRECT(\"'\"&G6576&\"'!\"&H6576),\"\")","v":0},"EstExp 12-20","K420"]
[6572,{"$f":"'EstExp 12-20'!C428","v":{"v":0,"d":"0 "}},6572,"New 2009",true,{"$f":"IF(G6577<>\"\",INDIRECT(\"'\"&G6577&\"'!\"&H6577),\"\")","v":0},"EstExp 12-20","C428"]
[6573,{"$f":"'EstExp 12-20'!D428","v":{"v":0,"d":"0 "}},6573,"New 2009",true,{"$f":"IF(G6578<>\"\",INDIRECT(\"'\"&G6578&\"'!\"&H6578),\"\")","v":0},"EstExp 12-20","D428"]
[6574,{"$f":"'EstExp 12-20'!F428","v":{"v":0,"d":"0 "}},6574,"New 2009",true,{"$f":"IF(G6579<>\"\",INDIRECT(\"'\"&G6579&\"'!\"&H6579),\"\")","v":0},"EstExp 12-20","F428"]
[6575,{"$f":"'EstExp 12-20'!G428","v":{"v":0,"d":"0 "}},6575,"New 2009",true,{"$f":"IF(G6580<>\"\",INDIRECT(\"'\"&G6580&\"'!\"&H6580),\"\")","v":0},"EstExp 12-20","G428"]
[6576,{"$f":"'EstExp 12-20'!I428","v":{"v":0,"d":"0 "}},6576,"New 2009",true,{"$f":"IF(G6581<>\"\",INDIRECT(\"'\"&G6581&\"'!\"&H6581),\"\")","v":0},"EstExp 12-20","I428"]
[6577,null,null,"New 2009",true,{"$f":"IF(G6582<>\"\",INDIRECT(\"'\"&G6582&\"'!\"&H6582),\"\")","v":""}]
[6578,{"$f":"'EstExp 12-20'!I434","v":0},6578,"New 2009",true,{"$f":"IF(G6583<>\"\",INDIRECT(\"'\"&G6583&\"'!\"&H6583),\"\")","v":0},"EstExp 12-20","I434"]
[6579,null,null,"New 2009",true,{"$f":"IF(G6584<>\"\",INDIRECT(\"'\"&G6584&\"'!\"&H6584),\"\")","v":""}]
[6580,{"$f":"'EstExp 12-20'!I435","v":0},6580,"New 2009",true,{"$f":"IF(G6585<>\"\",INDIRECT(\"'\"&G6585&\"'!\"&H6585),\"\")","v":0},"EstExp 12-20","I435"]
[6581,null,null,"New 2009",true,{"$f":"IF(G6586<>\"\",INDIRECT(\"'\"&G6586&\"'!\"&H6586),\"\")","v":""}]
[6582,{"$f":"'EstExp 12-20'!I436","v":0},6582,"New 2009",true,{"$f":"IF(G6587<>\"\",INDIRECT(\"'\"&G6587&\"'!\"&H6587),\"\")","v":0},"EstExp 12-20","I436"]
[6583,null,6583,"New 2009",true,{"$f":"IF(G6588<>\"\",INDIRECT(\"'\"&G6588&\"'!\"&H6588),\"\")","v":""}]
[6584,{"$f":"'EstExp 12-20'!I437","v":0},6584,"New 2009",true,{"$f":"IF(G6589<>\"\",INDIRECT(\"'\"&G6589&\"'!\"&H6589),\"\")","v":0},"EstExp 12-20","I437"]
[6585,null,null,"New 2009",true,{"$f":"IF(G6590<>\"\",INDIRECT(\"'\"&G6590&\"'!\"&H6590),\"\")","v":""}]
[6586,{"$f":"'EstExp 12-20'!I438","v":0},6586,"New 2009",true,{"$f":"IF(G6591<>\"\",INDIRECT(\"'\"&G6591&\"'!\"&H6591),\"\")","v":0},"EstExp 12-20","I438"]
[6587,null,null,"New 2009",true,{"$f":"IF(G6592<>\"\",INDIRECT(\"'\"&G6592&\"'!\"&H6592),\"\")","v":""}]
[6588,{"$f":"'EstExp 12-20'!H447","v":0},6588,"New 2009",true,{"$f":"IF(G6593<>\"\",INDIRECT(\"'\"&G6593&\"'!\"&H6593),\"\")","v":0},"EstExp 12-20","H447"]
[6589,{"$f":"'EstExp 12-20'!K447","v":0},6589,"New 2009",{"$f":"F6594=B6594","v":true},{"$f":"IF(G6594<>\"\",INDIRECT(\"'\"&G6594&\"'!\"&H6594),\"\")","v":0},"EstExp 12-20","K447"]
[6590,{"$f":"'EstExp 12-20'!I453","v":0},6590,"New 2009",true,{"$f":"IF(G6595<>\"\",INDIRECT(\"'\"&G6595&\"'!\"&H6595),\"\")","v":0},"EstExp 12-20","I453"]
[6591,null,null,"New 2009",true,{"$f":"IF(G6596<>\"\",INDIRECT(\"'\"&G6596&\"'!\"&H6596),\"\")","v":""}]
[6592,{"$f":"'EstExp 12-20'!H427","v":{"v":0,"d":"0 "}},6592,"New 2009",true,{"$f":"IF(G6597<>\"\",INDIRECT(\"'\"&G6597&\"'!\"&H6597),\"\")","v":0},"EstExp 12-20","H427"]
[6593,{"$f":"'EstExp 12-20'!K427","v":{"v":0,"d":"0 "}},6593,"New 2009",true,{"$f":"IF(G6598<>\"\",INDIRECT(\"'\"&G6598&\"'!\"&H6598),\"\")","v":0},"EstExp 12-20","K427"]
[6594,null,null,"New 2009-Closed 2018",true,{"$f":"IF(G6599<>\"\",INDIRECT(\"'\"&G6599&\"'!\"&H6599),\"\")","v":""}]
[6595,null,null,"New 2009-Closed 2018",true,{"$f":"IF(G6600<>\"\",INDIRECT(\"'\"&G6600&\"'!\"&H6600),\"\")","v":""}]
[6596,null,null,"New 2009-Closed 2018",true,{"$f":"IF(G6601<>\"\",INDIRECT(\"'\"&G6601&\"'!\"&H6601),\"\")","v":""}]
[6597,null,null,"New 2009-Closed 2018",true,{"$f":"IF(G6602<>\"\",INDIRECT(\"'\"&G6602&\"'!\"&H6602),\"\")","v":""}]
[6598,null,null,"New 2009-Closed 2021",true,{"$f":"IF(G6603<>\"\",INDIRECT(\"'\"&G6603&\"'!\"&H6603),\"\")","v":""}]
[6599,{"$f":"'CashSum 5'!I9","v":{"v":0,"d":"0 "}},{"$f":"A6604-B6604","v":6599},"New 2009",true,{"$f":"IF(G6604<>\"\",INDIRECT(\"'\"&G6604&\"'!\"&H6604),\"\")","v":0},"CashSum 5","I9"]
[6600,{"$f":"'CashSum 5'!J9","v":{"v":0,"d":"0 "}},6600,"New 2009",true,{"$f":"IF(G6605<>\"\",INDIRECT(\"'\"&G6605&\"'!\"&H6605),\"\")","v":0},"CashSum 5","J9"]
[6601,{"$f":"'CashSum 5'!H18","v":{"v":0,"d":"0 "}},6601,"New 2009",true,{"$f":"IF(G6606<>\"\",INDIRECT(\"'\"&G6606&\"'!\"&H6606),\"\")","v":0},"CashSum 5","H18"]
[6602,{"$f":"'CashSum 5'!I18","v":{"v":0,"d":"0 "}},6602,"New 2009",true,{"$f":"IF(G6607<>\"\",INDIRECT(\"'\"&G6607&\"'!\"&H6607),\"\")","v":0},"CashSum 5","I18"]
[6603,{"$f":"'CashSum 5'!J18","v":{"v":0,"d":"0 "}},6603,"New 2009",true,{"$f":"IF(G6608<>\"\",INDIRECT(\"'\"&G6608&\"'!\"&H6608),\"\")","v":0},"CashSum 5","J18"]
[6604,{"$f":"'EstExp 12-20'!H422","v":{"v":0,"d":"0 "}},6604,"New 2010",true,{"$f":"IF(G6609<>\"\",INDIRECT(\"'\"&G6609&\"'!\"&H6609),\"\")","v":0},"EstExp 12-20","H422"]
[6605,{"$f":"'EstExp 12-20'!K422","v":{"v":0,"d":"0 "}},6605,"New 2010",true,{"$f":"IF(G6610<>\"\",INDIRECT(\"'\"&G6610&\"'!\"&H6610),\"\")","v":0},"EstExp 12-20","K422"]
[6606,{"$f":"'EstExp 12-20'!H426","v":{"v":0,"d":"0 "}},6606,"New 2010",true,{"$f":"IF(G6611<>\"\",INDIRECT(\"'\"&G6611&\"'!\"&H6611),\"\")","v":0},"EstExp 12-20","H426"]
[6607,{"$f":"'EstExp 12-20'!K426","v":{"v":0,"d":"0 "}},6607,"New 2010",true,{"$f":"IF(G6612<>\"\",INDIRECT(\"'\"&G6612&\"'!\"&H6612),\"\")","v":0},"EstExp 12-20","K426"]
[6608,{"$f":"'EstExp 12-20'!E428","v":{"v":15000,"d":"15,000 "}},-8392,"New 2010",true,{"$f":"IF(G6613<>\"\",INDIRECT(\"'\"&G6613&\"'!\"&H6613),\"\")","v":15000},"EstExp 12-20","E428"]
[6609,{"$f":"'EstExp 12-20'!H428","v":{"v":0,"d":"0 "}},6609,"New 2010",true,{"$f":"IF(G6614<>\"\",INDIRECT(\"'\"&G6614&\"'!\"&H6614),\"\")","v":0},"EstExp 12-20","H428"]
[6610,{"$f":"'EstExp 12-20'!K428","v":{"v":15000,"d":"15,000 "}},-8390,"New 2010",true,{"$f":"IF(G6615<>\"\",INDIRECT(\"'\"&G6615&\"'!\"&H6615),\"\")","v":15000},"EstExp 12-20","K428"]
[6611,{"$f":"'EstExp 12-20'!K429","v":{"v":206000,"d":"206,000 "}},-199389,"New 2010",true,{"$f":"IF(G6616<>\"\",INDIRECT(\"'\"&G6616&\"'!\"&H6616),\"\")","v":206000},"EstExp 12-20","K429"]
[6612,null,null,"New 2010",true,{"$f":"IF(G6617<>\"\",INDIRECT(\"'\"&G6617&\"'!\"&H6617),\"\")","v":""},{"$nulls":5},"Closed 2011"]
[6613,null,null,"New 2010",true,{"$f":"IF(G6618<>\"\",INDIRECT(\"'\"&G6618&\"'!\"&H6618),\"\")","v":""},{"$nulls":5},"Closed 2011"]
[6614,{"$f":"'EstRev 6-11'!E105","v":0},6614,"New 2010",true,{"$f":"IF(G6619<>\"\",INDIRECT(\"'\"&G6619&\"'!\"&H6619),\"\")","v":0},"EstRev 6-11","E105"]
[6615,null,null,"New 2010",true,{"$f":"IF(G6620<>\"\",INDIRECT(\"'\"&G6620&\"'!\"&H6620),\"\")","v":""},{"$nulls":5},"Closed 2011"]
[6616,null,null,"New 2010",true,{"$f":"IF(G6621<>\"\",INDIRECT(\"'\"&G6621&\"'!\"&H6621),\"\")","v":""},{"$nulls":5},"Closed 2011"]
[6617,{"$f":"'EstRev 6-11'!H105","v":0},6617,"New 2010",true,{"$f":"IF(G6622<>\"\",INDIRECT(\"'\"&G6622&\"'!\"&H6622),\"\")","v":0},"EstRev 6-11","H105"]
[6618,null,null,"New 2010",true,{"$f":"IF(G6623<>\"\",INDIRECT(\"'\"&G6623&\"'!\"&H6623),\"\")","v":""},{"$nulls":5},"Closed 2011"]
[6619,null,null,"New 2010",true,{"$f":"IF(G6624<>\"\",INDIRECT(\"'\"&G6624&\"'!\"&H6624),\"\")","v":""},{"$nulls":5},"Closed 2011"]
[6620,null,null,"New 2010",true,{"$f":"IF(G6625<>\"\",INDIRECT(\"'\"&G6625&\"'!\"&H6625),\"\")","v":""}]
[6621,{"$f":"'EstExp 12-20'!C54","v":0},6621,"New 2010",true,{"$f":"IF(G6626<>\"\",INDIRECT(\"'\"&G6626&\"'!\"&H6626),\"\")","v":0},"EstExp 12-20","C54"]
[6622,{"$f":"'EstExp 12-20'!D54","v":0},6622,"New 2010",true,{"$f":"IF(G6627<>\"\",INDIRECT(\"'\"&G6627&\"'!\"&H6627),\"\")","v":0},"EstExp 12-20","D54"]
[6623,{"$f":"'EstExp 12-20'!E54","v":0},6623,"New 2010",true,{"$f":"IF(G6628<>\"\",INDIRECT(\"'\"&G6628&\"'!\"&H6628),\"\")","v":0},"EstExp 12-20","E54"]
[6624,{"$f":"'EstExp 12-20'!F54","v":0},6624,"New 2010",true,{"$f":"IF(G6629<>\"\",INDIRECT(\"'\"&G6629&\"'!\"&H6629),\"\")","v":0},"EstExp 12-20","F54"]
[6625,{"$f":"'EstExp 12-20'!G54","v":0},6625,"New 2010",true,{"$f":"IF(G6630<>\"\",INDIRECT(\"'\"&G6630&\"'!\"&H6630),\"\")","v":0},"EstExp 12-20","G54"]
[6626,{"$f":"'EstExp 12-20'!H54","v":0},6626,"New 2010",true,{"$f":"IF(G6631<>\"\",INDIRECT(\"'\"&G6631&\"'!\"&H6631),\"\")","v":0},"EstExp 12-20","H54"]
[6627,{"$f":"'EstExp 12-20'!I54","v":0},6627,"New 2010",true,{"$f":"IF(G6632<>\"\",INDIRECT(\"'\"&G6632&\"'!\"&H6632),\"\")","v":0},"EstExp 12-20","I54"]
[6628,{"$f":"'EstExp 12-20'!J54","v":0},6628,"New 2010",true,{"$f":"IF(G6633<>\"\",INDIRECT(\"'\"&G6633&\"'!\"&H6633),\"\")","v":0},"EstExp 12-20","J54"]
[6629,{"$f":"'EstExp 12-20'!K54","v":0},6629,"New 2010",true,{"$f":"IF(G6634<>\"\",INDIRECT(\"'\"&G6634&\"'!\"&H6634),\"\")","v":0},"EstExp 12-20","K54"]
[6630,{"$f":"'EstExp 12-20'!H112","v":0},6630,"New 2010",true,{"$f":"IF(G6635<>\"\",INDIRECT(\"'\"&G6635&\"'!\"&H6635),\"\")","v":0},"EstExp 12-20","H112"]
[6631,{"$f":"'EstExp 12-20'!K112","v":0},6631,"New 2010",true,{"$f":"IF(G6636<>\"\",INDIRECT(\"'\"&G6636&\"'!\"&H6636),\"\")","v":0},"EstExp 12-20","K112"]
[6632,{"$f":"'EstExp 12-20'!H113","v":0},6632,"New 2010",true,{"$f":"IF(G6637<>\"\",INDIRECT(\"'\"&G6637&\"'!\"&H6637),\"\")","v":0},"EstExp 12-20","H113"]
[6633,{"$f":"'EstExp 12-20'!K113","v":0},6633,"New 2010",true,{"$f":"IF(G6638<>\"\",INDIRECT(\"'\"&G6638&\"'!\"&H6638),\"\")","v":0},"EstExp 12-20","K113"]
[6634,{"$f":"'EstExp 12-20'!H151","v":0},6634,"New 2010",true,{"$f":"IF(G6639<>\"\",INDIRECT(\"'\"&G6639&\"'!\"&H6639),\"\")","v":0},"EstExp 12-20","H151"]
[6635,{"$f":"'EstExp 12-20'!K151","v":0},6635,"New 2010",true,{"$f":"IF(G6640<>\"\",INDIRECT(\"'\"&G6640&\"'!\"&H6640),\"\")","v":0},"EstExp 12-20","K151"]
[6636,{"$f":"'EstExp 12-20'!H152","v":0},6636,"New 2010",true,{"$f":"IF(G6641<>\"\",INDIRECT(\"'\"&G6641&\"'!\"&H6641),\"\")","v":0},"EstExp 12-20","H152"]
[6637,{"$f":"'EstExp 12-20'!K152","v":0},6637,"New 2010",true,{"$f":"IF(G6642<>\"\",INDIRECT(\"'\"&G6642&\"'!\"&H6642),\"\")","v":0},"EstExp 12-20","K152"]
[6638,{"$f":"'EstExp 12-20'!H209","v":0},6638,"New 2010",true,{"$f":"IF(G6643<>\"\",INDIRECT(\"'\"&G6643&\"'!\"&H6643),\"\")","v":0},"EstExp 12-20","H209"]
[6639,{"$f":"'EstExp 12-20'!K209","v":0},6639,"New 2010",true,{"$f":"IF(G6644<>\"\",INDIRECT(\"'\"&G6644&\"'!\"&H6644),\"\")","v":0},"EstExp 12-20","K209"]
[6640,{"$f":"'EstExp 12-20'!H211","v":0},6640,"New 2010",true,{"$f":"IF(G6645<>\"\",INDIRECT(\"'\"&G6645&\"'!\"&H6645),\"\")","v":0},"EstExp 12-20","H211"]
[6641,{"$f":"'EstExp 12-20'!K211","v":0},6641,"New 2010",true,{"$f":"IF(G6646<>\"\",INDIRECT(\"'\"&G6646&\"'!\"&H6646),\"\")","v":0},"EstExp 12-20","K211"]
[6642,null,null,"New 2010",true,{"$f":"IF(G6647<>\"\",INDIRECT(\"'\"&G6647&\"'!\"&H6647),\"\")","v":""}]
[6643,null,null,"New 2010",true,{"$f":"IF(G6648<>\"\",INDIRECT(\"'\"&G6648&\"'!\"&H6648),\"\")","v":""}]
[6644,null,null,"New 2010",true,{"$f":"IF(G6649<>\"\",INDIRECT(\"'\"&G6649&\"'!\"&H6649),\"\")","v":""}]
[6645,null,null,"New 2010",true,{"$f":"IF(G6650<>\"\",INDIRECT(\"'\"&G6650&\"'!\"&H6650),\"\")","v":""}]
[6646,null,null,"New 2010",true,{"$f":"IF(G6651<>\"\",INDIRECT(\"'\"&G6651&\"'!\"&H6651),\"\")","v":""}]
[6647,null,null,"New 2010",true,{"$f":"IF(G6652<>\"\",INDIRECT(\"'\"&G6652&\"'!\"&H6652),\"\")","v":""}]
[6648,null,null,"New 2010",true,{"$f":"IF(G6653<>\"\",INDIRECT(\"'\"&G6653&\"'!\"&H6653),\"\")","v":""}]
[6649,null,null,"New 2010",true,{"$f":"IF(G6654<>\"\",INDIRECT(\"'\"&G6654&\"'!\"&H6654),\"\")","v":""}]
[6650,null,null,"New 2010",true,{"$f":"IF(G6655<>\"\",INDIRECT(\"'\"&G6655&\"'!\"&H6655),\"\")","v":""}]
[6651,null,null,"New 2010",true,{"$f":"IF(G6656<>\"\",INDIRECT(\"'\"&G6656&\"'!\"&H6656),\"\")","v":""}]
[6652,null,null,"New 2010",true,{"$f":"IF(G6657<>\"\",INDIRECT(\"'\"&G6657&\"'!\"&H6657),\"\")","v":""}]
[6653,null,null,"New 2010",{"$f":"F6658=B6658","v":true},{"$f":"IF(G6658<>\"\",INDIRECT(\"'\"&G6658&\"'!\"&H6658),\"\")","v":""}]
[6654,null,null,"New 2010",true,{"$f":"IF(G6659<>\"\",INDIRECT(\"'\"&G6659&\"'!\"&H6659),\"\")","v":""}]
[6655,null,null,"New 2010",true,{"$f":"IF(G6660<>\"\",INDIRECT(\"'\"&G6660&\"'!\"&H6660),\"\")","v":""}]
[6656,null,null,"New 2010",true,{"$f":"IF(G6661<>\"\",INDIRECT(\"'\"&G6661&\"'!\"&H6661),\"\")","v":""}]
[6657,null,null,"New 2010",true,{"$f":"IF(G6662<>\"\",INDIRECT(\"'\"&G6662&\"'!\"&H6662),\"\")","v":""}]
[6658,null,null,"New 2010",true,{"$f":"IF(G6663<>\"\",INDIRECT(\"'\"&G6663&\"'!\"&H6663),\"\")","v":""}]
[6659,null,null,"New 2010",true,{"$f":"IF(G6664<>\"\",INDIRECT(\"'\"&G6664&\"'!\"&H6664),\"\")","v":""}]
[6660,{"$f":"'EstExp 12-20'!H448","v":0},{"$f":"A6665-B6665","v":6660},"New 2010",true,{"$f":"IF(G6665<>\"\",INDIRECT(\"'\"&G6665&\"'!\"&H6665),\"\")","v":0},"EstExp 12-20","H448"]
[6661,{"$f":"'EstExp 12-20'!K448","v":0},6661,"New 2010",true,{"$f":"IF(G6666<>\"\",INDIRECT(\"'\"&G6666&\"'!\"&H6666),\"\")","v":0},"EstExp 12-20","K448"]
[6662,{"$f":"'EstExp 12-20'!H449","v":0},6662,"New 2010",true,{"$f":"IF(G6667<>\"\",INDIRECT(\"'\"&G6667&\"'!\"&H6667),\"\")","v":0},"EstExp 12-20","H449"]
[6663,{"$f":"'EstExp 12-20'!K449","v":0},6663,"New 2010",true,{"$f":"IF(G6668<>\"\",INDIRECT(\"'\"&G6668&\"'!\"&H6668),\"\")","v":0},"EstExp 12-20","K449"]
[6664,{"$f":"'EstRev 6-11'!C226","v":0},6664,"New 2010",true,{"$f":"IF(G6669<>\"\",INDIRECT(\"'\"&G6669&\"'!\"&H6669),\"\")","v":0},"EstRev 6-11","C226"]
[6665,{"$f":"'EstRev 6-11'!C227","v":0},6665,"New 2010",true,{"$f":"IF(G6670<>\"\",INDIRECT(\"'\"&G6670&\"'!\"&H6670),\"\")","v":0},"EstRev 6-11","C227"]
[6666,{"$f":"'EstRev 6-11'!C228","v":0},6666,"New 2010",true,{"$f":"IF(G6671<>\"\",INDIRECT(\"'\"&G6671&\"'!\"&H6671),\"\")","v":0},"EstRev 6-11","C228"]
[6667,{"$f":"'EstRev 6-11'!C229","v":0},6667,"New 2010",true,{"$f":"IF(G6672<>\"\",INDIRECT(\"'\"&G6672&\"'!\"&H6672),\"\")","v":0},"EstRev 6-11","C229"]
[6668,{"$f":"'EstRev 6-11'!C230","v":0},6668,"New 2010",true,{"$f":"IF(G6673<>\"\",INDIRECT(\"'\"&G6673&\"'!\"&H6673),\"\")","v":0},"EstRev 6-11","C230"]
[6669,{"$f":"'EstRev 6-11'!C231","v":0},6669,"New 2010",true,{"$f":"IF(G6674<>\"\",INDIRECT(\"'\"&G6674&\"'!\"&H6674),\"\")","v":0},"EstRev 6-11","C231"]
[6670,{"$f":"'EstRev 6-11'!C232","v":0},6670,"New 2010",true,{"$f":"IF(G6675<>\"\",INDIRECT(\"'\"&G6675&\"'!\"&H6675),\"\")","v":0},"EstRev 6-11","C232"]
[6671,{"$f":"'EstRev 6-11'!C233","v":0},6671,"New 2010",true,{"$f":"IF(G6676<>\"\",INDIRECT(\"'\"&G6676&\"'!\"&H6676),\"\")","v":0},"EstRev 6-11","C233"]
[6672,{"$f":"'EstRev 6-11'!C234","v":0},6672,"New 2010",true,{"$f":"IF(G6677<>\"\",INDIRECT(\"'\"&G6677&\"'!\"&H6677),\"\")","v":0},"EstRev 6-11","C234"]
[6673,{"$f":"'EstRev 6-11'!C235","v":0},6673,"New 2010",true,{"$f":"IF(G6678<>\"\",INDIRECT(\"'\"&G6678&\"'!\"&H6678),\"\")","v":0},"EstRev 6-11","C235"]
[6674,{"$f":"'EstRev 6-11'!C236","v":0},6674,"New 2010",true,{"$f":"IF(G6679<>\"\",INDIRECT(\"'\"&G6679&\"'!\"&H6679),\"\")","v":0},"EstRev 6-11","C236"]
[6675,{"$f":"'EstRev 6-11'!C237","v":0},6675,"New 2010",true,{"$f":"IF(G6680<>\"\",INDIRECT(\"'\"&G6680&\"'!\"&H6680),\"\")","v":0},"EstRev 6-11","C237"]
[6676,{"$f":"'EstRev 6-11'!C238","v":0},6676,"New 2010",true,{"$f":"IF(G6681<>\"\",INDIRECT(\"'\"&G6681&\"'!\"&H6681),\"\")","v":0},"EstRev 6-11","C238"]
[6677,{"$f":"'EstRev 6-11'!C239","v":0},6677,"New 2010",true,{"$f":"IF(G6682<>\"\",INDIRECT(\"'\"&G6682&\"'!\"&H6682),\"\")","v":0},"EstRev 6-11","C239"]
[6678,{"$f":"'EstRev 6-11'!C240","v":0},6678,"New 2010",true,{"$f":"IF(G6683<>\"\",INDIRECT(\"'\"&G6683&\"'!\"&H6683),\"\")","v":0},"EstRev 6-11","C240"]
[6679,{"$f":"'EstRev 6-11'!C241","v":0},6679,"New 2010",true,{"$f":"IF(G6684<>\"\",INDIRECT(\"'\"&G6684&\"'!\"&H6684),\"\")","v":0},"EstRev 6-11","C241"]
[6680,{"$f":"'EstRev 6-11'!C242","v":0},6680,"New 2010",true,{"$f":"IF(G6685<>\"\",INDIRECT(\"'\"&G6685&\"'!\"&H6685),\"\")","v":0},"EstRev 6-11","C242"]
[6681,{"$f":"'EstRev 6-11'!C243","v":0},6681,"New 2010",true,{"$f":"IF(G6686<>\"\",INDIRECT(\"'\"&G6686&\"'!\"&H6686),\"\")","v":0},"EstRev 6-11","C243"]
[6682,{"$f":"'EstRev 6-11'!C244","v":0},6682,"New 2010",true,{"$f":"IF(G6687<>\"\",INDIRECT(\"'\"&G6687&\"'!\"&H6687),\"\")","v":0},"EstRev 6-11","C244"]
[6683,{"$f":"'EstRev 6-11'!C245","v":0},6683,"New 2010",true,{"$f":"IF(G6688<>\"\",INDIRECT(\"'\"&G6688&\"'!\"&H6688),\"\")","v":0},"EstRev 6-11","C245"]
[6684,{"$f":"'EstRev 6-11'!C246","v":0},6684,"New 2010",true,{"$f":"IF(G6689<>\"\",INDIRECT(\"'\"&G6689&\"'!\"&H6689),\"\")","v":0},"EstRev 6-11","C246"]
[6685,{"$f":"'EstRev 6-11'!C247","v":0},6685,"New 2010",true,{"$f":"IF(G6690<>\"\",INDIRECT(\"'\"&G6690&\"'!\"&H6690),\"\")","v":0},"EstRev 6-11","C247"]
[6686,{"$f":"'EstRev 6-11'!C248","v":0},6686,"New 2010",true,{"$f":"IF(G6691<>\"\",INDIRECT(\"'\"&G6691&\"'!\"&H6691),\"\")","v":0},"EstRev 6-11","C248"]
[6687,{"$f":"'EstRev 6-11'!C249","v":0},6687,"New 2010",true,{"$f":"IF(G6692<>\"\",INDIRECT(\"'\"&G6692&\"'!\"&H6692),\"\")","v":0},"EstRev 6-11","C249"]
[6688,{"$f":"'EstRev 6-11'!C250","v":0},6688,"New 2010",true,{"$f":"IF(G6693<>\"\",INDIRECT(\"'\"&G6693&\"'!\"&H6693),\"\")","v":0},"EstRev 6-11","C250"]
[6689,{"$f":"'EstRev 6-11'!C251","v":0},6689,"New 2010",true,{"$f":"IF(G6694<>\"\",INDIRECT(\"'\"&G6694&\"'!\"&H6694),\"\")","v":0},"EstRev 6-11","C251"]
[6690,{"$f":"'EstRev 6-11'!C252","v":0},6690,"New 2010",true,{"$f":"IF(G6695<>\"\",INDIRECT(\"'\"&G6695&\"'!\"&H6695),\"\")","v":0},"EstRev 6-11","C252"]
[6691,{"$f":"'EstRev 6-11'!C253","v":0},6691,"New 2010",true,{"$f":"IF(G6696<>\"\",INDIRECT(\"'\"&G6696&\"'!\"&H6696),\"\")","v":0},"EstRev 6-11","C253"]
[6692,{"$f":"'EstRev 6-11'!C254","v":0},6692,"New 2010",true,{"$f":"IF(G6697<>\"\",INDIRECT(\"'\"&G6697&\"'!\"&H6697),\"\")","v":0},"EstRev 6-11","C254"]
[6693,{"$f":"'EstRev 6-11'!C255","v":0},6693,"New 2010",true,{"$f":"IF(G6698<>\"\",INDIRECT(\"'\"&G6698&\"'!\"&H6698),\"\")","v":0},"EstRev 6-11","C255"]
[6694,{"$f":"'EstRev 6-11'!D226","v":0},6694,"New 2010",true,{"$f":"IF(G6699<>\"\",INDIRECT(\"'\"&G6699&\"'!\"&H6699),\"\")","v":0},"EstRev 6-11","D226"]
[6695,{"$f":"'EstRev 6-11'!D227","v":0},6695,"New 2010",true,{"$f":"IF(G6700<>\"\",INDIRECT(\"'\"&G6700&\"'!\"&H6700),\"\")","v":0},"EstRev 6-11","D227"]
[6696,{"$f":"'EstRev 6-11'!D228","v":0},6696,"New 2010",true,{"$f":"IF(G6701<>\"\",INDIRECT(\"'\"&G6701&\"'!\"&H6701),\"\")","v":0},"EstRev 6-11","D228"]
[6697,{"$f":"'EstRev 6-11'!D229","v":0},6697,"New 2010",true,{"$f":"IF(G6702<>\"\",INDIRECT(\"'\"&G6702&\"'!\"&H6702),\"\")","v":0},"EstRev 6-11","D229"]
[6698,{"$f":"'EstRev 6-11'!D230","v":0},6698,"New 2010",true,{"$f":"IF(G6703<>\"\",INDIRECT(\"'\"&G6703&\"'!\"&H6703),\"\")","v":0},"EstRev 6-11","D230"]
[6699,{"$nulls":3},true,{"$f":"IF(G6704<>\"\",INDIRECT(\"'\"&G6704&\"'!\"&H6704),\"\")","v":""}]
[6700,{"$f":"'EstRev 6-11'!D231","v":0},6700,"New 2010",true,{"$f":"IF(G6705<>\"\",INDIRECT(\"'\"&G6705&\"'!\"&H6705),\"\")","v":0},"EstRev 6-11","D231"]
[6701,{"$f":"'EstRev 6-11'!D232","v":0},6701,"New 2010",true,{"$f":"IF(G6706<>\"\",INDIRECT(\"'\"&G6706&\"'!\"&H6706),\"\")","v":0},"EstRev 6-11","D232"]
[6702,{"$f":"'EstRev 6-11'!D233","v":0},6702,"New 2010",true,{"$f":"IF(G6707<>\"\",INDIRECT(\"'\"&G6707&\"'!\"&H6707),\"\")","v":0},"EstRev 6-11","D233"]
[6703,{"$f":"'EstRev 6-11'!D234","v":0},6703,"New 2010",true,{"$f":"IF(G6708<>\"\",INDIRECT(\"'\"&G6708&\"'!\"&H6708),\"\")","v":0},"EstRev 6-11","D234"]
[6704,{"$f":"'EstRev 6-11'!D235","v":0},6704,"New 2010",true,{"$f":"IF(G6709<>\"\",INDIRECT(\"'\"&G6709&\"'!\"&H6709),\"\")","v":0},"EstRev 6-11","D235"]
[6705,{"$f":"'EstRev 6-11'!D236","v":0},6705,"New 2010",true,{"$f":"IF(G6710<>\"\",INDIRECT(\"'\"&G6710&\"'!\"&H6710),\"\")","v":0},"EstRev 6-11","D236"]
[6706,{"$f":"'EstRev 6-11'!D237","v":0},6706,"New 2010",true,{"$f":"IF(G6711<>\"\",INDIRECT(\"'\"&G6711&\"'!\"&H6711),\"\")","v":0},"EstRev 6-11","D237"]
[6707,{"$f":"'EstRev 6-11'!D238","v":0},6707,"New 2010",true,{"$f":"IF(G6712<>\"\",INDIRECT(\"'\"&G6712&\"'!\"&H6712),\"\")","v":0},"EstRev 6-11","D238"]
[6708,{"$f":"'EstRev 6-11'!D239","v":0},6708,"New 2010",true,{"$f":"IF(G6713<>\"\",INDIRECT(\"'\"&G6713&\"'!\"&H6713),\"\")","v":0},"EstRev 6-11","D239"]
[6709,{"$f":"'EstRev 6-11'!D240","v":0},6709,"New 2010",true,{"$f":"IF(G6714<>\"\",INDIRECT(\"'\"&G6714&\"'!\"&H6714),\"\")","v":0},"EstRev 6-11","D240"]
[6710,{"$f":"'EstRev 6-11'!D241","v":0},6710,"New 2010",true,{"$f":"IF(G6715<>\"\",INDIRECT(\"'\"&G6715&\"'!\"&H6715),\"\")","v":0},"EstRev 6-11","D241"]
[6711,{"$f":"'EstRev 6-11'!D242","v":0},6711,"New 2010",true,{"$f":"IF(G6716<>\"\",INDIRECT(\"'\"&G6716&\"'!\"&H6716),\"\")","v":0},"EstRev 6-11","D242"]
[6712,{"$f":"'EstRev 6-11'!D243","v":0},6712,"New 2010",true,{"$f":"IF(G6717<>\"\",INDIRECT(\"'\"&G6717&\"'!\"&H6717),\"\")","v":0},"EstRev 6-11","D243"]
[6713,{"$f":"'EstRev 6-11'!D244","v":0},6713,"New 2010",true,{"$f":"IF(G6718<>\"\",INDIRECT(\"'\"&G6718&\"'!\"&H6718),\"\")","v":0},"EstRev 6-11","D244"]
[6714,{"$f":"'EstRev 6-11'!D245","v":0},6714,"New 2010",true,{"$f":"IF(G6719<>\"\",INDIRECT(\"'\"&G6719&\"'!\"&H6719),\"\")","v":0},"EstRev 6-11","D245"]
[6715,{"$f":"'EstRev 6-11'!D246","v":0},6715,"New 2010",true,{"$f":"IF(G6720<>\"\",INDIRECT(\"'\"&G6720&\"'!\"&H6720),\"\")","v":0},"EstRev 6-11","D246"]
[6716,{"$f":"'EstRev 6-11'!D247","v":0},6716,"New 2010",true,{"$f":"IF(G6721<>\"\",INDIRECT(\"'\"&G6721&\"'!\"&H6721),\"\")","v":0},"EstRev 6-11","D247"]
[6717,{"$f":"'EstRev 6-11'!D248","v":0},6717,"New 2010",{"$f":"F6722=B6722","v":true},{"$f":"IF(G6722<>\"\",INDIRECT(\"'\"&G6722&\"'!\"&H6722),\"\")","v":0},"EstRev 6-11","D248"]
[6718,{"$f":"'EstRev 6-11'!D249","v":0},6718,"New 2010",true,{"$f":"IF(G6723<>\"\",INDIRECT(\"'\"&G6723&\"'!\"&H6723),\"\")","v":0},"EstRev 6-11","D249"]
[6719,{"$f":"'EstRev 6-11'!D250","v":0},6719,"New 2010",true,{"$f":"IF(G6724<>\"\",INDIRECT(\"'\"&G6724&\"'!\"&H6724),\"\")","v":0},"EstRev 6-11","D250"]
[6720,{"$f":"'EstRev 6-11'!D251","v":0},6720,"New 2010",true,{"$f":"IF(G6725<>\"\",INDIRECT(\"'\"&G6725&\"'!\"&H6725),\"\")","v":0},"EstRev 6-11","D251"]
[6721,{"$f":"'EstRev 6-11'!D252","v":0},6721,"New 2010",true,{"$f":"IF(G6726<>\"\",INDIRECT(\"'\"&G6726&\"'!\"&H6726),\"\")","v":0},"EstRev 6-11","D252"]
[6722,{"$f":"'EstRev 6-11'!D253","v":0},6722,"New 2010",true,{"$f":"IF(G6727<>\"\",INDIRECT(\"'\"&G6727&\"'!\"&H6727),\"\")","v":0},"EstRev 6-11","D253"]
[6723,{"$f":"'EstRev 6-11'!D254","v":0},{"$f":"A6728-B6728","v":6723},"New 2010",true,{"$f":"IF(G6728<>\"\",INDIRECT(\"'\"&G6728&\"'!\"&H6728),\"\")","v":0},"EstRev 6-11","D254"]
[6724,{"$f":"'EstRev 6-11'!D255","v":0},6724,"New 2010",true,{"$f":"IF(G6729<>\"\",INDIRECT(\"'\"&G6729&\"'!\"&H6729),\"\")","v":0},"EstRev 6-11","D255"]
[6725,{"$f":"'EstRev 6-11'!E226","v":0},6725,"New 2010",true,{"$f":"IF(G6730<>\"\",INDIRECT(\"'\"&G6730&\"'!\"&H6730),\"\")","v":0},"EstRev 6-11","E226"]
[6726,null,null,"New 2010",true,{"$f":"IF(G6731<>\"\",INDIRECT(\"'\"&G6731&\"'!\"&H6731),\"\")","v":""}]
[6727,{"$f":"'EstRev 6-11'!E228","v":0},6727,"New 2010",true,{"$f":"IF(G6732<>\"\",INDIRECT(\"'\"&G6732&\"'!\"&H6732),\"\")","v":0},"EstRev 6-11","E228"]
[6728,{"$f":"'EstRev 6-11'!E229","v":0},6728,"New 2010",true,{"$f":"IF(G6733<>\"\",INDIRECT(\"'\"&G6733&\"'!\"&H6733),\"\")","v":0},"EstRev 6-11","E229"]
[6729,{"$f":"'EstRev 6-11'!E230","v":0},6729,"New 2010",true,{"$f":"IF(G6734<>\"\",INDIRECT(\"'\"&G6734&\"'!\"&H6734),\"\")","v":0},"EstRev 6-11","E230"]
[6730,{"$f":"'EstRev 6-11'!E231","v":0},6730,"New 2010",true,{"$f":"IF(G6735<>\"\",INDIRECT(\"'\"&G6735&\"'!\"&H6735),\"\")","v":0},"EstRev 6-11","E231"]
[6731,{"$f":"'EstRev 6-11'!E232","v":0},6731,"New 2010",true,{"$f":"IF(G6736<>\"\",INDIRECT(\"'\"&G6736&\"'!\"&H6736),\"\")","v":0},"EstRev 6-11","E232"]
[6732,{"$f":"'EstRev 6-11'!E233","v":0},6732,"New 2010",true,{"$f":"IF(G6737<>\"\",INDIRECT(\"'\"&G6737&\"'!\"&H6737),\"\")","v":0},"EstRev 6-11","E233"]
[6733,{"$f":"'EstRev 6-11'!E234","v":0},6733,"New 2010",true,{"$f":"IF(G6738<>\"\",INDIRECT(\"'\"&G6738&\"'!\"&H6738),\"\")","v":0},"EstRev 6-11","E234"]
[6734,{"$f":"'EstRev 6-11'!E235","v":0},6734,"New 2010",true,{"$f":"IF(G6739<>\"\",INDIRECT(\"'\"&G6739&\"'!\"&H6739),\"\")","v":0},"EstRev 6-11","E235"]
[6735,null,null,"New 2010",true,{"$f":"IF(G6740<>\"\",INDIRECT(\"'\"&G6740&\"'!\"&H6740),\"\")","v":""}]
[6736,null,null,"New 2010",true,{"$f":"IF(G6741<>\"\",INDIRECT(\"'\"&G6741&\"'!\"&H6741),\"\")","v":""}]
[6737,{"$f":"'EstRev 6-11'!E238","v":0},6737,"New 2010",true,{"$f":"IF(G6742<>\"\",INDIRECT(\"'\"&G6742&\"'!\"&H6742),\"\")","v":0},"EstRev 6-11","E238"]
[6738,{"$f":"'EstRev 6-11'!E239","v":0},6738,"New 2010",true,{"$f":"IF(G6743<>\"\",INDIRECT(\"'\"&G6743&\"'!\"&H6743),\"\")","v":0},"EstRev 6-11","E239"]
[6739,{"$f":"'EstRev 6-11'!E240","v":0},6739,"New 2010",true,{"$f":"IF(G6744<>\"\",INDIRECT(\"'\"&G6744&\"'!\"&H6744),\"\")","v":0},"EstRev 6-11","E240"]
[6740,{"$f":"'EstRev 6-11'!E241","v":0},6740,"New 2010",true,{"$f":"IF(G6745<>\"\",INDIRECT(\"'\"&G6745&\"'!\"&H6745),\"\")","v":0},"EstRev 6-11","E241"]
[6741,{"$f":"'EstRev 6-11'!E242","v":0},6741,"New 2010",true,{"$f":"IF(G6746<>\"\",INDIRECT(\"'\"&G6746&\"'!\"&H6746),\"\")","v":0},"EstRev 6-11","E242"]
[6742,{"$f":"'EstRev 6-11'!E243","v":0},6742,"New 2010",true,{"$f":"IF(G6747<>\"\",INDIRECT(\"'\"&G6747&\"'!\"&H6747),\"\")","v":0},"EstRev 6-11","E243"]
[6743,{"$f":"'EstRev 6-11'!E244","v":0},6743,"New 2010",true,{"$f":"IF(G6748<>\"\",INDIRECT(\"'\"&G6748&\"'!\"&H6748),\"\")","v":0},"EstRev 6-11","E244"]
[6744,{"$f":"'EstRev 6-11'!E245","v":0},6744,"New 2010",true,{"$f":"IF(G6749<>\"\",INDIRECT(\"'\"&G6749&\"'!\"&H6749),\"\")","v":0},"EstRev 6-11","E245"]
[6745,{"$f":"'EstRev 6-11'!E246","v":0},6745,"New 2010",true,{"$f":"IF(G6750<>\"\",INDIRECT(\"'\"&G6750&\"'!\"&H6750),\"\")","v":0},"EstRev 6-11","E246"]
[6746,{"$f":"'EstRev 6-11'!E247","v":0},6746,"New 2010",true,{"$f":"IF(G6751<>\"\",INDIRECT(\"'\"&G6751&\"'!\"&H6751),\"\")","v":0},"EstRev 6-11","E247"]
[6747,{"$f":"'EstRev 6-11'!E248","v":0},6747,"New 2010",true,{"$f":"IF(G6752<>\"\",INDIRECT(\"'\"&G6752&\"'!\"&H6752),\"\")","v":0},"EstRev 6-11","E248"]
[6748,{"$f":"'EstRev 6-11'!E249","v":0},6748,"New 2010",true,{"$f":"IF(G6753<>\"\",INDIRECT(\"'\"&G6753&\"'!\"&H6753),\"\")","v":0},"EstRev 6-11","E249"]
[6749,{"$f":"'EstRev 6-11'!E250","v":0},6749,"New 2010",true,{"$f":"IF(G6754<>\"\",INDIRECT(\"'\"&G6754&\"'!\"&H6754),\"\")","v":0},"EstRev 6-11","E250"]
[6750,{"$f":"'EstRev 6-11'!E251","v":0},6750,"New 2010",true,{"$f":"IF(G6755<>\"\",INDIRECT(\"'\"&G6755&\"'!\"&H6755),\"\")","v":0},"EstRev 6-11","E251"]
[6751,{"$f":"'EstRev 6-11'!E252","v":0},6751,"New 2010",true,{"$f":"IF(G6756<>\"\",INDIRECT(\"'\"&G6756&\"'!\"&H6756),\"\")","v":0},"EstRev 6-11","E252"]
[6752,{"$f":"'EstRev 6-11'!E253","v":0},6752,"New 2010",true,{"$f":"IF(G6757<>\"\",INDIRECT(\"'\"&G6757&\"'!\"&H6757),\"\")","v":0},"EstRev 6-11","E253"]
[6753,{"$f":"'EstRev 6-11'!E254","v":0},6753,"New 2010",true,{"$f":"IF(G6758<>\"\",INDIRECT(\"'\"&G6758&\"'!\"&H6758),\"\")","v":0},"EstRev 6-11","E254"]
[6754,{"$f":"'EstRev 6-11'!E255","v":0},6754,"New 2010",true,{"$f":"IF(G6759<>\"\",INDIRECT(\"'\"&G6759&\"'!\"&H6759),\"\")","v":0},"EstRev 6-11","E255"]
[6755,{"$f":"'EstRev 6-11'!F226","v":0},6755,"New 2010",true,{"$f":"IF(G6760<>\"\",INDIRECT(\"'\"&G6760&\"'!\"&H6760),\"\")","v":0},"EstRev 6-11","F226"]
[6756,{"$f":"'EstRev 6-11'!F227","v":0},6756,"New 2010",true,{"$f":"IF(G6761<>\"\",INDIRECT(\"'\"&G6761&\"'!\"&H6761),\"\")","v":0},"EstRev 6-11","F227"]
[6757,{"$f":"'EstRev 6-11'!F228","v":0},6757,"New 2010",true,{"$f":"IF(G6762<>\"\",INDIRECT(\"'\"&G6762&\"'!\"&H6762),\"\")","v":0},"EstRev 6-11","F228"]
[6758,{"$f":"'EstRev 6-11'!F229","v":0},6758,"New 2010",true,{"$f":"IF(G6763<>\"\",INDIRECT(\"'\"&G6763&\"'!\"&H6763),\"\")","v":0},"EstRev 6-11","F229"]
[6759,{"$f":"'EstRev 6-11'!F230","v":0},6759,"New 2010",true,{"$f":"IF(G6764<>\"\",INDIRECT(\"'\"&G6764&\"'!\"&H6764),\"\")","v":0},"EstRev 6-11","F230"]
[6760,{"$f":"'EstRev 6-11'!F231","v":0},6760,"New 2010",true,{"$f":"IF(G6765<>\"\",INDIRECT(\"'\"&G6765&\"'!\"&H6765),\"\")","v":0},"EstRev 6-11","F231"]
[6761,{"$f":"'EstRev 6-11'!F232","v":0},6761,"New 2010",true,{"$f":"IF(G6766<>\"\",INDIRECT(\"'\"&G6766&\"'!\"&H6766),\"\")","v":0},"EstRev 6-11","F232"]
[6762,{"$f":"'EstRev 6-11'!F233","v":0},6762,"New 2010",true,{"$f":"IF(G6767<>\"\",INDIRECT(\"'\"&G6767&\"'!\"&H6767),\"\")","v":0},"EstRev 6-11","F233"]
[6763,{"$f":"'EstRev 6-11'!F234","v":0},6763,"New 2010",true,{"$f":"IF(G6768<>\"\",INDIRECT(\"'\"&G6768&\"'!\"&H6768),\"\")","v":0},"EstRev 6-11","F234"]
[6764,{"$f":"'EstRev 6-11'!F235","v":0},6764,"New 2010",true,{"$f":"IF(G6769<>\"\",INDIRECT(\"'\"&G6769&\"'!\"&H6769),\"\")","v":0},"EstRev 6-11","F235"]
[6765,{"$f":"'EstRev 6-11'!F236","v":0},6765,"New 2010",true,{"$f":"IF(G6770<>\"\",INDIRECT(\"'\"&G6770&\"'!\"&H6770),\"\")","v":0},"EstRev 6-11","F236"]
[6766,null,null,"New 2010",true,{"$f":"IF(G6771<>\"\",INDIRECT(\"'\"&G6771&\"'!\"&H6771),\"\")","v":""}]
[6767,{"$f":"'EstRev 6-11'!F238","v":0},6767,"New 2010",true,{"$f":"IF(G6772<>\"\",INDIRECT(\"'\"&G6772&\"'!\"&H6772),\"\")","v":0},"EstRev 6-11","F238"]
[6768,{"$f":"'EstRev 6-11'!F239","v":0},6768,"New 2010",true,{"$f":"IF(G6773<>\"\",INDIRECT(\"'\"&G6773&\"'!\"&H6773),\"\")","v":0},"EstRev 6-11","F239"]
[6769,{"$f":"'EstRev 6-11'!F240","v":0},6769,"New 2010",true,{"$f":"IF(G6774<>\"\",INDIRECT(\"'\"&G6774&\"'!\"&H6774),\"\")","v":0},"EstRev 6-11","F240"]
[6770,{"$f":"'EstRev 6-11'!F241","v":0},6770,"New 2010",true,{"$f":"IF(G6775<>\"\",INDIRECT(\"'\"&G6775&\"'!\"&H6775),\"\")","v":0},"EstRev 6-11","F241"]
[6771,{"$f":"'EstRev 6-11'!F242","v":0},6771,"New 2010",true,{"$f":"IF(G6776<>\"\",INDIRECT(\"'\"&G6776&\"'!\"&H6776),\"\")","v":0},"EstRev 6-11","F242"]
[6772,{"$f":"'EstRev 6-11'!F243","v":0},6772,"New 2010",true,{"$f":"IF(G6777<>\"\",INDIRECT(\"'\"&G6777&\"'!\"&H6777),\"\")","v":0},"EstRev 6-11","F243"]
[6773,{"$f":"'EstRev 6-11'!F244","v":0},6773,"New 2010",true,{"$f":"IF(G6778<>\"\",INDIRECT(\"'\"&G6778&\"'!\"&H6778),\"\")","v":0},"EstRev 6-11","F244"]
[6774,{"$f":"'EstRev 6-11'!F245","v":0},6774,"New 2010",true,{"$f":"IF(G6779<>\"\",INDIRECT(\"'\"&G6779&\"'!\"&H6779),\"\")","v":0},"EstRev 6-11","F245"]
[6775,{"$f":"'EstRev 6-11'!F246","v":0},6775,"New 2010",true,{"$f":"IF(G6780<>\"\",INDIRECT(\"'\"&G6780&\"'!\"&H6780),\"\")","v":0},"EstRev 6-11","F246"]
[6776,{"$f":"'EstRev 6-11'!F247","v":0},6776,"New 2010",true,{"$f":"IF(G6781<>\"\",INDIRECT(\"'\"&G6781&\"'!\"&H6781),\"\")","v":0},"EstRev 6-11","F247"]
[6777,{"$f":"'EstRev 6-11'!F248","v":0},6777,"New 2010",true,{"$f":"IF(G6782<>\"\",INDIRECT(\"'\"&G6782&\"'!\"&H6782),\"\")","v":0},"EstRev 6-11","F248"]
[6778,{"$f":"'EstRev 6-11'!F249","v":0},6778,"New 2010",true,{"$f":"IF(G6783<>\"\",INDIRECT(\"'\"&G6783&\"'!\"&H6783),\"\")","v":0},"EstRev 6-11","F249"]
[6779,{"$f":"'EstRev 6-11'!F250","v":0},6779,"New 2010",true,{"$f":"IF(G6784<>\"\",INDIRECT(\"'\"&G6784&\"'!\"&H6784),\"\")","v":0},"EstRev 6-11","F250"]
[6780,{"$f":"'EstRev 6-11'!F251","v":0},6780,"New 2010",true,{"$f":"IF(G6785<>\"\",INDIRECT(\"'\"&G6785&\"'!\"&H6785),\"\")","v":0},"EstRev 6-11","F251"]
[6781,{"$f":"'EstRev 6-11'!F252","v":0},6781,"New 2010",{"$f":"F6786=B6786","v":true},{"$f":"IF(G6786<>\"\",INDIRECT(\"'\"&G6786&\"'!\"&H6786),\"\")","v":0},"EstRev 6-11","F252"]
[6782,{"$f":"'EstRev 6-11'!F253","v":0},6782,"New 2010",true,{"$f":"IF(G6787<>\"\",INDIRECT(\"'\"&G6787&\"'!\"&H6787),\"\")","v":0},"EstRev 6-11","F253"]
[6783,{"$f":"'EstRev 6-11'!F254","v":0},6783,"New 2010",true,{"$f":"IF(G6788<>\"\",INDIRECT(\"'\"&G6788&\"'!\"&H6788),\"\")","v":0},"EstRev 6-11","F254"]
[6784,{"$f":"'EstRev 6-11'!F255","v":0},6784,"New 2010",true,{"$f":"IF(G6789<>\"\",INDIRECT(\"'\"&G6789&\"'!\"&H6789),\"\")","v":0},"EstRev 6-11","F255"]
[6785,{"$f":"'EstRev 6-11'!G226","v":0},6785,"New 2010",true,{"$f":"IF(G6790<>\"\",INDIRECT(\"'\"&G6790&\"'!\"&H6790),\"\")","v":0},"EstRev 6-11","G226"]
[6786,{"$f":"'EstRev 6-11'!G227","v":0},6786,"New 2010",true,{"$f":"IF(G6791<>\"\",INDIRECT(\"'\"&G6791&\"'!\"&H6791),\"\")","v":0},"EstRev 6-11","G227"]
[6787,{"$f":"'EstRev 6-11'!G228","v":0},{"$f":"A6792-B6792","v":6787},"New 2010",true,{"$f":"IF(G6792<>\"\",INDIRECT(\"'\"&G6792&\"'!\"&H6792),\"\")","v":0},"EstRev 6-11","G228"]
[6788,{"$f":"'EstRev 6-11'!G229","v":0},6788,"New 2010",true,{"$f":"IF(G6793<>\"\",INDIRECT(\"'\"&G6793&\"'!\"&H6793),\"\")","v":0},"EstRev 6-11","G229"]
[6789,{"$f":"'EstRev 6-11'!G230","v":0},6789,"New 2010",true,{"$f":"IF(G6794<>\"\",INDIRECT(\"'\"&G6794&\"'!\"&H6794),\"\")","v":0},"EstRev 6-11","G230"]
[6790,{"$f":"'EstRev 6-11'!G231","v":0},6790,"New 2010",true,{"$f":"IF(G6795<>\"\",INDIRECT(\"'\"&G6795&\"'!\"&H6795),\"\")","v":0},"EstRev 6-11","G231"]
[6791,{"$f":"'EstRev 6-11'!G232","v":0},6791,"New 2010",true,{"$f":"IF(G6796<>\"\",INDIRECT(\"'\"&G6796&\"'!\"&H6796),\"\")","v":0},"EstRev 6-11","G232"]
[6792,{"$f":"'EstRev 6-11'!G233","v":0},6792,"New 2010",true,{"$f":"IF(G6797<>\"\",INDIRECT(\"'\"&G6797&\"'!\"&H6797),\"\")","v":0},"EstRev 6-11","G233"]
[6793,{"$f":"'EstRev 6-11'!G234","v":0},6793,"New 2010",true,{"$f":"IF(G6798<>\"\",INDIRECT(\"'\"&G6798&\"'!\"&H6798),\"\")","v":0},"EstRev 6-11","G234"]
[6794,{"$f":"'EstRev 6-11'!G235","v":0},6794,"New 2010",true,{"$f":"IF(G6799<>\"\",INDIRECT(\"'\"&G6799&\"'!\"&H6799),\"\")","v":0},"EstRev 6-11","G235"]
[6795,{"$f":"'EstRev 6-11'!G236","v":0},6795,"New 2010",true,{"$f":"IF(G6800<>\"\",INDIRECT(\"'\"&G6800&\"'!\"&H6800),\"\")","v":0},"EstRev 6-11","G236"]
[6796,null,null,"New 2010",true,{"$f":"IF(G6801<>\"\",INDIRECT(\"'\"&G6801&\"'!\"&H6801),\"\")","v":""}]
[6797,{"$f":"'EstRev 6-11'!G238","v":0},6797,"New 2010",true,{"$f":"IF(G6802<>\"\",INDIRECT(\"'\"&G6802&\"'!\"&H6802),\"\")","v":0},"EstRev 6-11","G238"]
[6798,{"$f":"'EstRev 6-11'!G239","v":0},6798,"New 2010",true,{"$f":"IF(G6803<>\"\",INDIRECT(\"'\"&G6803&\"'!\"&H6803),\"\")","v":0},"EstRev 6-11","G239"]
[6799,{"$f":"'EstRev 6-11'!G240","v":0},6799,"New 2010",true,{"$f":"IF(G6804<>\"\",INDIRECT(\"'\"&G6804&\"'!\"&H6804),\"\")","v":0},"EstRev 6-11","G240"]
[6800,{"$f":"'EstRev 6-11'!G241","v":0},6800,"New 2010",true,{"$f":"IF(G6805<>\"\",INDIRECT(\"'\"&G6805&\"'!\"&H6805),\"\")","v":0},"EstRev 6-11","G241"]
[6801,{"$f":"'EstRev 6-11'!G242","v":0},6801,"New 2010",true,{"$f":"IF(G6806<>\"\",INDIRECT(\"'\"&G6806&\"'!\"&H6806),\"\")","v":0},"EstRev 6-11","G242"]
[6802,{"$f":"'EstRev 6-11'!G243","v":0},6802,"New 2010",true,{"$f":"IF(G6807<>\"\",INDIRECT(\"'\"&G6807&\"'!\"&H6807),\"\")","v":0},"EstRev 6-11","G243"]
[6803,{"$f":"'EstRev 6-11'!G244","v":0},6803,"New 2010",true,{"$f":"IF(G6808<>\"\",INDIRECT(\"'\"&G6808&\"'!\"&H6808),\"\")","v":0},"EstRev 6-11","G244"]
[6804,{"$f":"'EstRev 6-11'!G245","v":0},6804,"New 2010",true,{"$f":"IF(G6809<>\"\",INDIRECT(\"'\"&G6809&\"'!\"&H6809),\"\")","v":0},"EstRev 6-11","G245"]
[6805,{"$f":"'EstRev 6-11'!G246","v":0},6805,"New 2010",true,{"$f":"IF(G6810<>\"\",INDIRECT(\"'\"&G6810&\"'!\"&H6810),\"\")","v":0},"EstRev 6-11","G246"]
[6806,{"$f":"'EstRev 6-11'!G247","v":0},6806,"New 2010",true,{"$f":"IF(G6811<>\"\",INDIRECT(\"'\"&G6811&\"'!\"&H6811),\"\")","v":0},"EstRev 6-11","G247"]
[6807,{"$f":"'EstRev 6-11'!G248","v":0},6807,"New 2010",true,{"$f":"IF(G6812<>\"\",INDIRECT(\"'\"&G6812&\"'!\"&H6812),\"\")","v":0},"EstRev 6-11","G248"]
[6808,{"$f":"'EstRev 6-11'!G249","v":0},6808,"New 2010",true,{"$f":"IF(G6813<>\"\",INDIRECT(\"'\"&G6813&\"'!\"&H6813),\"\")","v":0},"EstRev 6-11","G249"]
[6809,{"$f":"'EstRev 6-11'!G250","v":0},6809,"New 2010",true,{"$f":"IF(G6814<>\"\",INDIRECT(\"'\"&G6814&\"'!\"&H6814),\"\")","v":0},"EstRev 6-11","G250"]
[6810,{"$f":"'EstRev 6-11'!G251","v":0},6810,"New 2010",true,{"$f":"IF(G6815<>\"\",INDIRECT(\"'\"&G6815&\"'!\"&H6815),\"\")","v":0},"EstRev 6-11","G251"]
[6811,{"$f":"'EstRev 6-11'!G252","v":0},6811,"New 2010",true,{"$f":"IF(G6816<>\"\",INDIRECT(\"'\"&G6816&\"'!\"&H6816),\"\")","v":0},"EstRev 6-11","G252"]
[6812,{"$f":"'EstRev 6-11'!G253","v":0},6812,"New 2010",true,{"$f":"IF(G6817<>\"\",INDIRECT(\"'\"&G6817&\"'!\"&H6817),\"\")","v":0},"EstRev 6-11","G253"]
[6813,{"$f":"'EstRev 6-11'!G254","v":0},6813,"New 2010",true,{"$f":"IF(G6818<>\"\",INDIRECT(\"'\"&G6818&\"'!\"&H6818),\"\")","v":0},"EstRev 6-11","G254"]
[6814,{"$f":"'EstRev 6-11'!G255","v":0},6814,"New 2010",true,{"$f":"IF(G6819<>\"\",INDIRECT(\"'\"&G6819&\"'!\"&H6819),\"\")","v":0},"EstRev 6-11","G255"]
[6815,{"$f":"'EstRev 6-11'!H226","v":0},6815,"New 2010",true,{"$f":"IF(G6820<>\"\",INDIRECT(\"'\"&G6820&\"'!\"&H6820),\"\")","v":0},"EstRev 6-11","H226"]
[6816,null,null,"New 2010",true,{"$f":"IF(G6821<>\"\",INDIRECT(\"'\"&G6821&\"'!\"&H6821),\"\")","v":""}]
[6817,{"$f":"'EstRev 6-11'!H228","v":0},6817,"New 2010",true,{"$f":"IF(G6822<>\"\",INDIRECT(\"'\"&G6822&\"'!\"&H6822),\"\")","v":0},"EstRev 6-11","H228"]
[6818,{"$f":"'EstRev 6-11'!H229","v":0},6818,"New 2010",true,{"$f":"IF(G6823<>\"\",INDIRECT(\"'\"&G6823&\"'!\"&H6823),\"\")","v":0},"EstRev 6-11","H229"]
[6819,{"$f":"'EstRev 6-11'!H230","v":0},6819,"New 2010",true,{"$f":"IF(G6824<>\"\",INDIRECT(\"'\"&G6824&\"'!\"&H6824),\"\")","v":0},"EstRev 6-11","H230"]
[6820,{"$f":"'EstRev 6-11'!H231","v":0},6820,"New 2010",true,{"$f":"IF(G6825<>\"\",INDIRECT(\"'\"&G6825&\"'!\"&H6825),\"\")","v":0},"EstRev 6-11","H231"]
[6821,{"$f":"'EstRev 6-11'!H232","v":0},6821,"New 2010",true,{"$f":"IF(G6826<>\"\",INDIRECT(\"'\"&G6826&\"'!\"&H6826),\"\")","v":0},"EstRev 6-11","H232"]
[6822,{"$f":"'EstRev 6-11'!H233","v":0},6822,"New 2010",true,{"$f":"IF(G6827<>\"\",INDIRECT(\"'\"&G6827&\"'!\"&H6827),\"\")","v":0},"EstRev 6-11","H233"]
[6823,{"$f":"'EstRev 6-11'!H234","v":0},6823,"New 2010",true,{"$f":"IF(G6828<>\"\",INDIRECT(\"'\"&G6828&\"'!\"&H6828),\"\")","v":0},"EstRev 6-11","H234"]
[6824,{"$f":"'EstRev 6-11'!H235","v":0},6824,"New 2010",true,{"$f":"IF(G6829<>\"\",INDIRECT(\"'\"&G6829&\"'!\"&H6829),\"\")","v":0},"EstRev 6-11","H235"]
[6825,null,null,"New 2010",true,{"$f":"IF(G6830<>\"\",INDIRECT(\"'\"&G6830&\"'!\"&H6830),\"\")","v":""}]
[6826,null,null,"New 2010",true,{"$f":"IF(G6831<>\"\",INDIRECT(\"'\"&G6831&\"'!\"&H6831),\"\")","v":""}]
[6827,{"$f":"'EstRev 6-11'!H238","v":0},6827,"New 2010",true,{"$f":"IF(G6832<>\"\",INDIRECT(\"'\"&G6832&\"'!\"&H6832),\"\")","v":0},"EstRev 6-11","H238"]
[6828,{"$f":"'EstRev 6-11'!H239","v":0},6828,"New 2010",true,{"$f":"IF(G6833<>\"\",INDIRECT(\"'\"&G6833&\"'!\"&H6833),\"\")","v":0},"EstRev 6-11","H239"]
[6829,{"$f":"'EstRev 6-11'!H240","v":0},6829,"New 2010",true,{"$f":"IF(G6834<>\"\",INDIRECT(\"'\"&G6834&\"'!\"&H6834),\"\")","v":0},"EstRev 6-11","H240"]
[6830,{"$f":"'EstRev 6-11'!H241","v":0},6830,"New 2010",true,{"$f":"IF(G6835<>\"\",INDIRECT(\"'\"&G6835&\"'!\"&H6835),\"\")","v":0},"EstRev 6-11","H241"]
[6831,{"$f":"'EstRev 6-11'!H242","v":0},6831,"New 2010",true,{"$f":"IF(G6836<>\"\",INDIRECT(\"'\"&G6836&\"'!\"&H6836),\"\")","v":0},"EstRev 6-11","H242"]
[6832,{"$f":"'EstRev 6-11'!H243","v":0},6832,"New 2010",true,{"$f":"IF(G6837<>\"\",INDIRECT(\"'\"&G6837&\"'!\"&H6837),\"\")","v":0},"EstRev 6-11","H243"]
[6833,{"$f":"'EstRev 6-11'!H244","v":0},6833,"New 2010",true,{"$f":"IF(G6838<>\"\",INDIRECT(\"'\"&G6838&\"'!\"&H6838),\"\")","v":0},"EstRev 6-11","H244"]
[6834,{"$f":"'EstRev 6-11'!H245","v":0},6834,"New 2010",true,{"$f":"IF(G6839<>\"\",INDIRECT(\"'\"&G6839&\"'!\"&H6839),\"\")","v":0},"EstRev 6-11","H245"]
[6835,{"$f":"'EstRev 6-11'!H246","v":0},6835,"New 2010",true,{"$f":"IF(G6840<>\"\",INDIRECT(\"'\"&G6840&\"'!\"&H6840),\"\")","v":0},"EstRev 6-11","H246"]
[6836,{"$f":"'EstRev 6-11'!H247","v":0},6836,"New 2010",true,{"$f":"IF(G6841<>\"\",INDIRECT(\"'\"&G6841&\"'!\"&H6841),\"\")","v":0},"EstRev 6-11","H247"]
[6837,{"$f":"'EstRev 6-11'!H248","v":0},6837,"New 2010",true,{"$f":"IF(G6842<>\"\",INDIRECT(\"'\"&G6842&\"'!\"&H6842),\"\")","v":0},"EstRev 6-11","H248"]
[6838,{"$f":"'EstRev 6-11'!H249","v":0},6838,"New 2010",true,{"$f":"IF(G6843<>\"\",INDIRECT(\"'\"&G6843&\"'!\"&H6843),\"\")","v":0},"EstRev 6-11","H249"]
[6839,{"$f":"'EstRev 6-11'!H250","v":0},6839,"New 2010",true,{"$f":"IF(G6844<>\"\",INDIRECT(\"'\"&G6844&\"'!\"&H6844),\"\")","v":0},"EstRev 6-11","H250"]
[6840,{"$f":"'EstRev 6-11'!H251","v":0},6840,"New 2010",true,{"$f":"IF(G6845<>\"\",INDIRECT(\"'\"&G6845&\"'!\"&H6845),\"\")","v":0},"EstRev 6-11","H251"]
[6841,{"$f":"'EstRev 6-11'!H252","v":0},6841,"New 2010",true,{"$f":"IF(G6846<>\"\",INDIRECT(\"'\"&G6846&\"'!\"&H6846),\"\")","v":0},"EstRev 6-11","H252"]
[6842,{"$f":"'EstRev 6-11'!H253","v":0},6842,"New 2010",true,{"$f":"IF(G6847<>\"\",INDIRECT(\"'\"&G6847&\"'!\"&H6847),\"\")","v":0},"EstRev 6-11","H253"]
[6843,{"$f":"'EstRev 6-11'!H254","v":0},6843,"New 2010",true,{"$f":"IF(G6848<>\"\",INDIRECT(\"'\"&G6848&\"'!\"&H6848),\"\")","v":0},"EstRev 6-11","H254"]
[6844,{"$f":"'EstRev 6-11'!H255","v":0},6844,"New 2010",true,{"$f":"IF(G6849<>\"\",INDIRECT(\"'\"&G6849&\"'!\"&H6849),\"\")","v":0},"EstRev 6-11","H255"]
[6845,{"$f":"'EstRev 6-11'!J226","v":0},6845,"New 2010",{"$f":"F6850=B6850","v":true},{"$f":"IF(G6850<>\"\",INDIRECT(\"'\"&G6850&\"'!\"&H6850),\"\")","v":0},"EstRev 6-11","J226"]
[6846,null,null,"New 2010",true,{"$f":"IF(G6851<>\"\",INDIRECT(\"'\"&G6851&\"'!\"&H6851),\"\")","v":""}]
[6847,{"$f":"'EstRev 6-11'!J228","v":0},6847,"New 2010",true,{"$f":"IF(G6852<>\"\",INDIRECT(\"'\"&G6852&\"'!\"&H6852),\"\")","v":0},"EstRev 6-11","J228"]
[6848,{"$f":"'EstRev 6-11'!J229","v":0},6848,"New 2010",true,{"$f":"IF(G6853<>\"\",INDIRECT(\"'\"&G6853&\"'!\"&H6853),\"\")","v":0},"EstRev 6-11","J229"]
[6849,{"$f":"'EstRev 6-11'!J230","v":0},6849,"New 2010",true,{"$f":"IF(G6854<>\"\",INDIRECT(\"'\"&G6854&\"'!\"&H6854),\"\")","v":0},"EstRev 6-11","J230"]
[6850,{"$f":"'EstRev 6-11'!J231","v":0},6850,"New 2010",true,{"$f":"IF(G6855<>\"\",INDIRECT(\"'\"&G6855&\"'!\"&H6855),\"\")","v":0},"EstRev 6-11","J231"]
[6851,{"$f":"'EstRev 6-11'!J232","v":0},{"$f":"A6856-B6856","v":6851},"New 2010",true,{"$f":"IF(G6856<>\"\",INDIRECT(\"'\"&G6856&\"'!\"&H6856),\"\")","v":0},"EstRev 6-11","J232"]
[6852,{"$f":"'EstRev 6-11'!J233","v":0},6852,"New 2010",true,{"$f":"IF(G6857<>\"\",INDIRECT(\"'\"&G6857&\"'!\"&H6857),\"\")","v":0},"EstRev 6-11","J233"]
[6853,{"$f":"'EstRev 6-11'!J234","v":0},6853,"New 2010",true,{"$f":"IF(G6858<>\"\",INDIRECT(\"'\"&G6858&\"'!\"&H6858),\"\")","v":0},"EstRev 6-11","J234"]
[6854,{"$f":"'EstRev 6-11'!J235","v":0},6854,"New 2010",true,{"$f":"IF(G6859<>\"\",INDIRECT(\"'\"&G6859&\"'!\"&H6859),\"\")","v":0},"EstRev 6-11","J235"]
[6855,null,null,"New 2010",true,{"$f":"IF(G6860<>\"\",INDIRECT(\"'\"&G6860&\"'!\"&H6860),\"\")","v":""}]
[6856,null,null,"New 2010",true,{"$f":"IF(G6861<>\"\",INDIRECT(\"'\"&G6861&\"'!\"&H6861),\"\")","v":""}]
[6857,{"$f":"'EstRev 6-11'!J238","v":0},6857,"New 2010",true,{"$f":"IF(G6862<>\"\",INDIRECT(\"'\"&G6862&\"'!\"&H6862),\"\")","v":0},"EstRev 6-11","J238"]
[6858,{"$f":"'EstRev 6-11'!J239","v":0},6858,"New 2010",true,{"$f":"IF(G6863<>\"\",INDIRECT(\"'\"&G6863&\"'!\"&H6863),\"\")","v":0},"EstRev 6-11","J239"]
[6859,{"$f":"'EstRev 6-11'!J240","v":0},6859,"New 2010",true,{"$f":"IF(G6864<>\"\",INDIRECT(\"'\"&G6864&\"'!\"&H6864),\"\")","v":0},"EstRev 6-11","J240"]
[6860,{"$f":"'EstRev 6-11'!J241","v":0},6860,"New 2010",true,{"$f":"IF(G6865<>\"\",INDIRECT(\"'\"&G6865&\"'!\"&H6865),\"\")","v":0},"EstRev 6-11","J241"]
[6861,{"$f":"'EstRev 6-11'!J242","v":0},6861,"New 2010",true,{"$f":"IF(G6866<>\"\",INDIRECT(\"'\"&G6866&\"'!\"&H6866),\"\")","v":0},"EstRev 6-11","J242"]
[6862,{"$f":"'EstRev 6-11'!J243","v":0},6862,"New 2010",true,{"$f":"IF(G6867<>\"\",INDIRECT(\"'\"&G6867&\"'!\"&H6867),\"\")","v":0},"EstRev 6-11","J243"]
[6863,{"$f":"'EstRev 6-11'!J244","v":0},6863,"New 2010",true,{"$f":"IF(G6868<>\"\",INDIRECT(\"'\"&G6868&\"'!\"&H6868),\"\")","v":0},"EstRev 6-11","J244"]
[6864,{"$f":"'EstRev 6-11'!J245","v":0},6864,"New 2010",true,{"$f":"IF(G6869<>\"\",INDIRECT(\"'\"&G6869&\"'!\"&H6869),\"\")","v":0},"EstRev 6-11","J245"]
[6865,{"$f":"'EstRev 6-11'!J246","v":0},6865,"New 2010",true,{"$f":"IF(G6870<>\"\",INDIRECT(\"'\"&G6870&\"'!\"&H6870),\"\")","v":0},"EstRev 6-11","J246"]
[6866,{"$f":"'EstRev 6-11'!J247","v":0},6866,"New 2010",true,{"$f":"IF(G6871<>\"\",INDIRECT(\"'\"&G6871&\"'!\"&H6871),\"\")","v":0},"EstRev 6-11","J247"]
[6867,{"$f":"'EstRev 6-11'!J248","v":0},6867,"New 2010",true,{"$f":"IF(G6872<>\"\",INDIRECT(\"'\"&G6872&\"'!\"&H6872),\"\")","v":0},"EstRev 6-11","J248"]
[6868,{"$f":"'EstRev 6-11'!J249","v":0},6868,"New 2010",true,{"$f":"IF(G6873<>\"\",INDIRECT(\"'\"&G6873&\"'!\"&H6873),\"\")","v":0},"EstRev 6-11","J249"]
[6869,{"$f":"'EstRev 6-11'!J250","v":0},6869,"New 2010",true,{"$f":"IF(G6874<>\"\",INDIRECT(\"'\"&G6874&\"'!\"&H6874),\"\")","v":0},"EstRev 6-11","J250"]
[6870,{"$f":"'EstRev 6-11'!J251","v":0},6870,"New 2010",true,{"$f":"IF(G6875<>\"\",INDIRECT(\"'\"&G6875&\"'!\"&H6875),\"\")","v":0},"EstRev 6-11","J251"]
[6871,{"$f":"'EstRev 6-11'!J252","v":0},6871,"New 2010",true,{"$f":"IF(G6876<>\"\",INDIRECT(\"'\"&G6876&\"'!\"&H6876),\"\")","v":0},"EstRev 6-11","J252"]
[6872,{"$f":"'EstRev 6-11'!J253","v":0},6872,"New 2010",true,{"$f":"IF(G6877<>\"\",INDIRECT(\"'\"&G6877&\"'!\"&H6877),\"\")","v":0},"EstRev 6-11","J253"]
[6873,{"$f":"'EstRev 6-11'!J254","v":0},6873,"New 2010",true,{"$f":"IF(G6878<>\"\",INDIRECT(\"'\"&G6878&\"'!\"&H6878),\"\")","v":0},"EstRev 6-11","J254"]
[6874,{"$f":"'EstRev 6-11'!J255","v":0},6874,"New 2010",true,{"$f":"IF(G6879<>\"\",INDIRECT(\"'\"&G6879&\"'!\"&H6879),\"\")","v":0},"EstRev 6-11","J255"]
[6875,{"$f":"'EstRev 6-11'!K226","v":0},6875,"New 2010",true,{"$f":"IF(G6880<>\"\",INDIRECT(\"'\"&G6880&\"'!\"&H6880),\"\")","v":0},"EstRev 6-11","K226"]
[6876,null,null,"New 2010",true,{"$f":"IF(G6881<>\"\",INDIRECT(\"'\"&G6881&\"'!\"&H6881),\"\")","v":""}]
[6877,{"$f":"'EstRev 6-11'!K228","v":0},6877,"New 2010",true,{"$f":"IF(G6882<>\"\",INDIRECT(\"'\"&G6882&\"'!\"&H6882),\"\")","v":0},"EstRev 6-11","K228"]
[6878,{"$f":"'EstRev 6-11'!K229","v":0},6878,"New 2010",true,{"$f":"IF(G6883<>\"\",INDIRECT(\"'\"&G6883&\"'!\"&H6883),\"\")","v":0},"EstRev 6-11","K229"]
[6879,{"$f":"'EstRev 6-11'!K230","v":0},6879,"New 2010",true,{"$f":"IF(G6884<>\"\",INDIRECT(\"'\"&G6884&\"'!\"&H6884),\"\")","v":0},"EstRev 6-11","K230"]
[6880,{"$f":"'EstRev 6-11'!K231","v":0},6880,"New 2010",true,{"$f":"IF(G6885<>\"\",INDIRECT(\"'\"&G6885&\"'!\"&H6885),\"\")","v":0},"EstRev 6-11","K231"]
[6881,{"$f":"'EstRev 6-11'!K232","v":0},6881,"New 2010",true,{"$f":"IF(G6886<>\"\",INDIRECT(\"'\"&G6886&\"'!\"&H6886),\"\")","v":0},"EstRev 6-11","K232"]
[6882,{"$f":"'EstRev 6-11'!K233","v":0},6882,"New 2010",true,{"$f":"IF(G6887<>\"\",INDIRECT(\"'\"&G6887&\"'!\"&H6887),\"\")","v":0},"EstRev 6-11","K233"]
[6883,{"$f":"'EstRev 6-11'!K234","v":0},6883,"New 2010",true,{"$f":"IF(G6888<>\"\",INDIRECT(\"'\"&G6888&\"'!\"&H6888),\"\")","v":0},"EstRev 6-11","K234"]
[6884,{"$f":"'EstRev 6-11'!K235","v":0},6884,"New 2010",true,{"$f":"IF(G6889<>\"\",INDIRECT(\"'\"&G6889&\"'!\"&H6889),\"\")","v":0},"EstRev 6-11","K235"]
[6885,null,null,"New 2010",true,{"$f":"IF(G6890<>\"\",INDIRECT(\"'\"&G6890&\"'!\"&H6890),\"\")","v":""}]
[6886,null,null,"New 2010",true,{"$f":"IF(G6891<>\"\",INDIRECT(\"'\"&G6891&\"'!\"&H6891),\"\")","v":""}]
[6887,{"$f":"'EstRev 6-11'!K238","v":0},6887,"New 2010",true,{"$f":"IF(G6892<>\"\",INDIRECT(\"'\"&G6892&\"'!\"&H6892),\"\")","v":0},"EstRev 6-11","K238"]
[6888,{"$f":"'EstRev 6-11'!K239","v":0},6888,"New 2010",true,{"$f":"IF(G6893<>\"\",INDIRECT(\"'\"&G6893&\"'!\"&H6893),\"\")","v":0},"EstRev 6-11","K239"]
[6889,{"$f":"'EstRev 6-11'!K240","v":0},6889,"New 2010",true,{"$f":"IF(G6894<>\"\",INDIRECT(\"'\"&G6894&\"'!\"&H6894),\"\")","v":0},"EstRev 6-11","K240"]
[6890,{"$f":"'EstRev 6-11'!K241","v":0},6890,"New 2010",true,{"$f":"IF(G6895<>\"\",INDIRECT(\"'\"&G6895&\"'!\"&H6895),\"\")","v":0},"EstRev 6-11","K241"]
[6891,{"$f":"'EstRev 6-11'!K242","v":0},6891,"New 2010",true,{"$f":"IF(G6896<>\"\",INDIRECT(\"'\"&G6896&\"'!\"&H6896),\"\")","v":0},"EstRev 6-11","K242"]
[6892,{"$f":"'EstRev 6-11'!K243","v":0},6892,"New 2010",true,{"$f":"IF(G6897<>\"\",INDIRECT(\"'\"&G6897&\"'!\"&H6897),\"\")","v":0},"EstRev 6-11","K243"]
[6893,{"$f":"'EstRev 6-11'!K244","v":0},6893,"New 2010",true,{"$f":"IF(G6898<>\"\",INDIRECT(\"'\"&G6898&\"'!\"&H6898),\"\")","v":0},"EstRev 6-11","K244"]
[6894,{"$f":"'EstRev 6-11'!K245","v":0},6894,"New 2010",true,{"$f":"IF(G6899<>\"\",INDIRECT(\"'\"&G6899&\"'!\"&H6899),\"\")","v":0},"EstRev 6-11","K245"]
[6895,{"$f":"'EstRev 6-11'!K246","v":0},6895,"New 2010",true,{"$f":"IF(G6900<>\"\",INDIRECT(\"'\"&G6900&\"'!\"&H6900),\"\")","v":0},"EstRev 6-11","K246"]
[6896,{"$f":"'EstRev 6-11'!K247","v":0},6896,"New 2010",true,{"$f":"IF(G6901<>\"\",INDIRECT(\"'\"&G6901&\"'!\"&H6901),\"\")","v":0},"EstRev 6-11","K247"]
[6897,{"$f":"'EstRev 6-11'!K248","v":0},6897,"New 2010",true,{"$f":"IF(G6902<>\"\",INDIRECT(\"'\"&G6902&\"'!\"&H6902),\"\")","v":0},"EstRev 6-11","K248"]
[6898,{"$f":"'EstRev 6-11'!K249","v":0},6898,"New 2010",true,{"$f":"IF(G6903<>\"\",INDIRECT(\"'\"&G6903&\"'!\"&H6903),\"\")","v":0},"EstRev 6-11","K249"]
[6899,{"$f":"'EstRev 6-11'!K250","v":0},6899,"New 2010",true,{"$f":"IF(G6904<>\"\",INDIRECT(\"'\"&G6904&\"'!\"&H6904),\"\")","v":0},"EstRev 6-11","K250"]
[6900,{"$f":"'EstRev 6-11'!K251","v":0},6900,"New 2010",true,{"$f":"IF(G6905<>\"\",INDIRECT(\"'\"&G6905&\"'!\"&H6905),\"\")","v":0},"EstRev 6-11","K251"]
[6901,{"$f":"'EstRev 6-11'!K252","v":0},6901,"New 2010",true,{"$f":"IF(G6906<>\"\",INDIRECT(\"'\"&G6906&\"'!\"&H6906),\"\")","v":0},"EstRev 6-11","K252"]
[6902,{"$f":"'EstRev 6-11'!K253","v":0},6902,"New 2010",true,{"$f":"IF(G6907<>\"\",INDIRECT(\"'\"&G6907&\"'!\"&H6907),\"\")","v":0},"EstRev 6-11","K253"]
[6903,{"$f":"'EstRev 6-11'!K254","v":0},6903,"New 2010",true,{"$f":"IF(G6908<>\"\",INDIRECT(\"'\"&G6908&\"'!\"&H6908),\"\")","v":0},"EstRev 6-11","K254"]
[6904,{"$f":"'EstRev 6-11'!K255","v":0},6904,"New 2010",true,{"$f":"IF(G6909<>\"\",INDIRECT(\"'\"&G6909&\"'!\"&H6909),\"\")","v":0},"EstRev 6-11","K255"]
[6905,{"$f":"'EstRev 6-11'!J270","v":0},{"$f":"A6910-B6910","v":6905},"New 2011",true,{"$f":"IF(G6910<>\"\",INDIRECT(\"'\"&G6910&\"'!\"&H6910),\"\")","v":0},"EstRev 6-11","J270"]
[6906,{"$f":"'EstRev 6-11'!H169","v":{"v":0,"d":"0 "}},{"$f":"A6911-B6911","v":{"v":6906,"d":"6,906 "}},"New 2011",true,{"$f":"IF(G6911<>\"\",INDIRECT(\"'\"&G6911&\"'!\"&H6911),\"\")","v":0},"EstRev 6-11","H169"]
[6907,{"$f":"'EstRev 6-11'!C198","v":{"v":0,"d":"0 "}},{"$f":"A6912-B6912","v":{"v":6907,"d":"6,907 "}},"New 2011",true,{"$f":"IF(G6912<>\"\",INDIRECT(\"'\"&G6912&\"'!\"&H6912),\"\")","v":0},"EstRev 6-11","C198"]
[6908,{"$nulls":3},true,{"$f":"IF(G6913<>\"\",INDIRECT(\"'\"&G6913&\"'!\"&H6913),\"\")","v":""}]
[6909,{"$nulls":3},{"$f":"F6914=B6914","v":true},{"$f":"IF(G6914<>\"\",INDIRECT(\"'\"&G6914&\"'!\"&H6914),\"\")","v":""}]
[6910,{"$f":"'EstExp 12-20'!H450","v":{"v":0,"d":"0 "}},{"$f":"A6915-B6915","v":{"v":6910,"d":"6,910 "}},"New 2011",true,{"$f":"IF(G6915<>\"\",INDIRECT(\"'\"&G6915&\"'!\"&H6915),\"\")","v":0},"EstExp 12-20","H450"]
[6911,{"$f":"'EstExp 12-20'!K450","v":{"v":0,"d":"0 "}},{"$f":"A6916-B6916","v":{"v":6911,"d":"6,911 "}},"New 2011",true,{"$f":"IF(G6916<>\"\",INDIRECT(\"'\"&G6916&\"'!\"&H6916),\"\")","v":0},"EstExp 12-20","K450",{"$nulls":3},"Deleted 2011"]
[6912,{"$f":"'BudgetSum 2-4'!C58","v":{"v":0,"d":"0 "}},{"v":6912,"d":"6,912 "},"New 2012",true,{"$f":"IF(G6917<>\"\",INDIRECT(\"'\"&G6917&\"'!\"&H6917),\"\")","v":0},"BudgetSum 2-4","C58"]
[6913,{"$f":"'BudgetSum 2-4'!D58","v":{"v":0,"d":"0 "}},{"v":6913,"d":"6,913 "},"New 2012",true,{"$f":"IF(G6918<>\"\",INDIRECT(\"'\"&G6918&\"'!\"&H6918),\"\")","v":0},"BudgetSum 2-4","D58"]
[6914,{"$f":"'BudgetSum 2-4'!H58","v":{"v":0,"d":"0 "}},{"v":6914,"d":"6,914 "},"New 2012",true,{"$f":"IF(G6919<>\"\",INDIRECT(\"'\"&G6919&\"'!\"&H6919),\"\")","v":0},"BudgetSum 2-4","H58"]
[6915,{"$f":"'BudgetSum 2-4'!C59","v":{"v":0,"d":"0 "}},{"v":6915,"d":"6,915 "},"New 2012",true,{"$f":"IF(G6920<>\"\",INDIRECT(\"'\"&G6920&\"'!\"&H6920),\"\")","v":0},"BudgetSum 2-4","C59"]
[6916,{"$f":"'BudgetSum 2-4'!D59","v":{"v":0,"d":"0 "}},{"v":6916,"d":"6,916 "},"New 2012",true,{"$f":"IF(G6921<>\"\",INDIRECT(\"'\"&G6921&\"'!\"&H6921),\"\")","v":0},"BudgetSum 2-4","D59"]
[6917,{"$f":"'BudgetSum 2-4'!H59","v":{"v":0,"d":"0 "}},{"v":6917,"d":"6,917 "},"New 2012",true,{"$f":"IF(G6922<>\"\",INDIRECT(\"'\"&G6922&\"'!\"&H6922),\"\")","v":0},"BudgetSum 2-4","H59"]
[6918,{"$f":"'BudgetSum 2-4'!C60","v":{"v":0,"d":"0 "}},{"v":6918,"d":"6,918 "},"New 2012",true,{"$f":"IF(G6923<>\"\",INDIRECT(\"'\"&G6923&\"'!\"&H6923),\"\")","v":0},"BudgetSum 2-4","C60"]
[6919,{"$f":"'BudgetSum 2-4'!D60","v":{"v":0,"d":"0 "}},{"v":6919,"d":"6,919 "},"New 2012",true,{"$f":"IF(G6924<>\"\",INDIRECT(\"'\"&G6924&\"'!\"&H6924),\"\")","v":0},"BudgetSum 2-4","D60"]
[6920,{"$f":"'BudgetSum 2-4'!H60","v":{"v":0,"d":"0 "}},{"v":6920,"d":"6,920 "},"New 2012",true,{"$f":"IF(G6925<>\"\",INDIRECT(\"'\"&G6925&\"'!\"&H6925),\"\")","v":0},"BudgetSum 2-4","H60"]
[6921,{"$f":"'BudgetSum 2-4'!C62","v":{"v":0,"d":"0 "}},{"v":6921,"d":"6,921 "},"New 2012",true,{"$f":"IF(G6926<>\"\",INDIRECT(\"'\"&G6926&\"'!\"&H6926),\"\")","v":0},"BudgetSum 2-4","C62"]
[6922,{"$f":"'BudgetSum 2-4'!D62","v":{"v":0,"d":"0 "}},{"v":6922,"d":"6,922 "},"New 2012",true,{"$f":"IF(G6927<>\"\",INDIRECT(\"'\"&G6927&\"'!\"&H6927),\"\")","v":0},"BudgetSum 2-4","D62"]
[6923,{"$f":"'BudgetSum 2-4'!H62","v":{"v":0,"d":"0 "}},{"v":6923,"d":"6,923 "},"New 2012",true,{"$f":"IF(G6928<>\"\",INDIRECT(\"'\"&G6928&\"'!\"&H6928),\"\")","v":0},"BudgetSum 2-4","H62"]
[6924,{"$f":"'BudgetSum 2-4'!C63","v":{"v":0,"d":"0 "}},{"v":6924,"d":"6,924 "},"New 2012",true,{"$f":"IF(G6929<>\"\",INDIRECT(\"'\"&G6929&\"'!\"&H6929),\"\")","v":0},"BudgetSum 2-4","C63"]
[6925,{"$f":"'BudgetSum 2-4'!D63","v":{"v":0,"d":"0 "}},{"v":6925,"d":"6,925 "},"New 2012",true,{"$f":"IF(G6930<>\"\",INDIRECT(\"'\"&G6930&\"'!\"&H6930),\"\")","v":0},"BudgetSum 2-4","D63"]
[6926,{"$f":"'BudgetSum 2-4'!H63","v":{"v":0,"d":"0 "}},{"v":6926,"d":"6,926 "},"New 2012",true,{"$f":"IF(G6931<>\"\",INDIRECT(\"'\"&G6931&\"'!\"&H6931),\"\")","v":0},"BudgetSum 2-4","H63"]
[6927,{"$f":"'BudgetSum 2-4'!C64","v":{"v":0,"d":"0 "}},{"v":6927,"d":"6,927 "},"New 2012",true,{"$f":"IF(G6932<>\"\",INDIRECT(\"'\"&G6932&\"'!\"&H6932),\"\")","v":0},"BudgetSum 2-4","C64"]
[6928,{"$f":"'BudgetSum 2-4'!D64","v":{"v":0,"d":"0 "}},{"v":6928,"d":"6,928 "},"New 2012",true,{"$f":"IF(G6933<>\"\",INDIRECT(\"'\"&G6933&\"'!\"&H6933),\"\")","v":0},"BudgetSum 2-4","D64"]
[6929,{"$f":"'BudgetSum 2-4'!H64","v":{"v":0,"d":"0 "}},{"v":6929,"d":"6,929 "},"New 2012",true,{"$f":"IF(G6934<>\"\",INDIRECT(\"'\"&G6934&\"'!\"&H6934),\"\")","v":0},"BudgetSum 2-4","H64"]
[6930,{"$f":"'BudgetSum 2-4'!C66","v":{"v":0,"d":"0 "}},{"v":6930,"d":"6,930 "},"New 2012",true,{"$f":"IF(G6935<>\"\",INDIRECT(\"'\"&G6935&\"'!\"&H6935),\"\")","v":0},"BudgetSum 2-4","C66"]
[6931,{"$f":"'BudgetSum 2-4'!D66","v":{"v":0,"d":"0 "}},{"v":6931,"d":"6,931 "},"New 2012",true,{"$f":"IF(G6936<>\"\",INDIRECT(\"'\"&G6936&\"'!\"&H6936),\"\")","v":0},"BudgetSum 2-4","D66"]
[6932,{"$f":"'BudgetSum 2-4'!C67","v":{"v":0,"d":"0 "}},{"v":6932,"d":"6,932 "},"New 2012",true,{"$f":"IF(G6937<>\"\",INDIRECT(\"'\"&G6937&\"'!\"&H6937),\"\")","v":0},"BudgetSum 2-4","C67"]
[6933,{"$f":"'BudgetSum 2-4'!D67","v":{"v":0,"d":"0 "}},{"v":6933,"d":"6,933 "},"New 2012",true,{"$f":"IF(G6938<>\"\",INDIRECT(\"'\"&G6938&\"'!\"&H6938),\"\")","v":0},"BudgetSum 2-4","D67"]
[6934,{"$f":"'BudgetSum 2-4'!C68","v":{"v":0,"d":"0 "}},{"v":6934,"d":"6,934 "},"New 2012",true,{"$f":"IF(G6939<>\"\",INDIRECT(\"'\"&G6939&\"'!\"&H6939),\"\")","v":0},"BudgetSum 2-4","C68"]
[6935,{"$f":"'BudgetSum 2-4'!D68","v":{"v":0,"d":"0 "}},{"v":6935,"d":"6,935 "},"New 2012",true,{"$f":"IF(G6940<>\"\",INDIRECT(\"'\"&G6940&\"'!\"&H6940),\"\")","v":0},"BudgetSum 2-4","D68"]
[6936,{"$f":"'BudgetSum 2-4'!C70","v":{"v":0,"d":"0 "}},{"v":6936,"d":"6,936 "},"New 2012",true,{"$f":"IF(G6941<>\"\",INDIRECT(\"'\"&G6941&\"'!\"&H6941),\"\")","v":0},"BudgetSum 2-4","C70"]
[6937,{"$f":"'BudgetSum 2-4'!D70","v":{"v":0,"d":"0 "}},{"v":6937,"d":"6,937 "},"New 2012",true,{"$f":"IF(G6942<>\"\",INDIRECT(\"'\"&G6942&\"'!\"&H6942),\"\")","v":0},"BudgetSum 2-4","D70"]
[6938,{"$f":"'BudgetSum 2-4'!C71","v":{"v":0,"d":"0 "}},{"v":6938,"d":"6,938 "},"New 2012",true,{"$f":"IF(G6943<>\"\",INDIRECT(\"'\"&G6943&\"'!\"&H6943),\"\")","v":0},"BudgetSum 2-4","C71"]
[6939,{"$f":"'BudgetSum 2-4'!D71","v":{"v":0,"d":"0 "}},{"v":6939,"d":"6,939 "},"New 2012",true,{"$f":"IF(G6944<>\"\",INDIRECT(\"'\"&G6944&\"'!\"&H6944),\"\")","v":0},"BudgetSum 2-4","D71"]
[6940,{"$f":"'BudgetSum 2-4'!C72","v":{"v":0,"d":"0 "}},{"v":6940,"d":"6,940 "},"New 2012",true,{"$f":"IF(G6945<>\"\",INDIRECT(\"'\"&G6945&\"'!\"&H6945),\"\")","v":0},"BudgetSum 2-4","C72"]
[6941,{"$f":"'BudgetSum 2-4'!D72","v":{"v":0,"d":"0 "}},{"v":6941,"d":"6,941 "},"New 2012",true,{"$f":"IF(G6946<>\"\",INDIRECT(\"'\"&G6946&\"'!\"&H6946),\"\")","v":0},"BudgetSum 2-4","D72"]
[6942,{"$f":"'BudgetSum 2-4'!C74","v":{"v":0,"d":"0 "}},{"v":6942,"d":"6,942 "},"New 2012",true,{"$f":"IF(G6947<>\"\",INDIRECT(\"'\"&G6947&\"'!\"&H6947),\"\")","v":0},"BudgetSum 2-4","C74"]
[6943,{"$f":"'BudgetSum 2-4'!D74","v":{"v":0,"d":"0 "}},{"v":6943,"d":"6,943 "},"New 2012",true,{"$f":"IF(G6948<>\"\",INDIRECT(\"'\"&G6948&\"'!\"&H6948),\"\")","v":0},"BudgetSum 2-4","D74"]
[6944,{"$f":"'BudgetSum 2-4'!C75","v":{"v":0,"d":"0 "}},{"v":6944,"d":"6,944 "},"New 2012",true,{"$f":"IF(G6949<>\"\",INDIRECT(\"'\"&G6949&\"'!\"&H6949),\"\")","v":0},"BudgetSum 2-4","C75"]
[6945,{"$f":"'BudgetSum 2-4'!D75","v":{"v":0,"d":"0 "}},{"v":6945,"d":"6,945 "},"New 2012",true,{"$f":"IF(G6950<>\"\",INDIRECT(\"'\"&G6950&\"'!\"&H6950),\"\")","v":0},"BudgetSum 2-4","D75"]
[6946,{"$f":"'BudgetSum 2-4'!C76","v":{"v":0,"d":"0 "}},{"v":6946,"d":"6,946 "},"New 2012",true,{"$f":"IF(G6951<>\"\",INDIRECT(\"'\"&G6951&\"'!\"&H6951),\"\")","v":0},"BudgetSum 2-4","C76"]
[6947,{"$f":"'BudgetSum 2-4'!D76","v":{"v":0,"d":"0 "}},{"v":6947,"d":"6,947 "},"New 2012",true,{"$f":"IF(G6952<>\"\",INDIRECT(\"'\"&G6952&\"'!\"&H6952),\"\")","v":0},"BudgetSum 2-4","D76"]
[6948,{"$f":"'BudgetSum 2-4'!C27","v":{"v":0,"d":"0 "}},{"v":6948,"d":"6,948 "},"New 2012",true,{"$f":"IF(G6953<>\"\",INDIRECT(\"'\"&G6953&\"'!\"&H6953),\"\")","v":0},"BudgetSum 2-4","C27"]
[6949,{"$f":"'BudgetSum 2-4'!D27","v":{"v":0,"d":"0 "}},{"v":6949,"d":"6,949 "},"New 2012",true,{"$f":"IF(G6954<>\"\",INDIRECT(\"'\"&G6954&\"'!\"&H6954),\"\")","v":0},"BudgetSum 2-4","D27"]
[6950,{"$f":"'BudgetSum 2-4'!E27","v":{"v":0,"d":"0 "}},{"v":6950,"d":"6,950 "},"New 2012",true,{"$f":"IF(G6955<>\"\",INDIRECT(\"'\"&G6955&\"'!\"&H6955),\"\")","v":0},"BudgetSum 2-4","E27"]
[6951,{"$f":"'BudgetSum 2-4'!F27","v":{"v":0,"d":"0 "}},{"v":6951,"d":"6,951 "},"New 2012",true,{"$f":"IF(G6956<>\"\",INDIRECT(\"'\"&G6956&\"'!\"&H6956),\"\")","v":0},"BudgetSum 2-4","F27"]
[6952,{"$f":"'BudgetSum 2-4'!G27","v":{"v":0,"d":"0 "}},{"v":6952,"d":"6,952 "},"New 2012",true,{"$f":"IF(G6957<>\"\",INDIRECT(\"'\"&G6957&\"'!\"&H6957),\"\")","v":0},"BudgetSum 2-4","G27"]
[6953,{"$f":"'BudgetSum 2-4'!H27","v":{"v":0,"d":"0 "}},{"v":6953,"d":"6,953 "},"New 2012",true,{"$f":"IF(G6958<>\"\",INDIRECT(\"'\"&G6958&\"'!\"&H6958),\"\")","v":0},"BudgetSum 2-4","H27"]
[6954,{"$f":"'BudgetSum 2-4'!J27","v":{"v":0,"d":"0 "}},{"v":6954,"d":"6,954 "},"New 2012",true,{"$f":"IF(G6959<>\"\",INDIRECT(\"'\"&G6959&\"'!\"&H6959),\"\")","v":0},"BudgetSum 2-4","J27"]
[6955,{"$f":"'BudgetSum 2-4'!K27","v":{"v":0,"d":"0 "}},{"v":6955,"d":"6,955 "},"New 2012",true,{"$f":"IF(G6960<>\"\",INDIRECT(\"'\"&G6960&\"'!\"&H6960),\"\")","v":0},"BudgetSum 2-4","K27"]
[6956,{"$f":"'EstRev 6-11'!C256","v":{"v":0,"d":"0 "}},{"v":6956,"d":"6,956 "},"New 2013",true,{"$f":"IF(G6961<>\"\",INDIRECT(\"'\"&G6961&\"'!\"&H6961),\"\")","v":0},"EstRev 6-11","C256"]
[6957,null,null,"New 2013",true,{"$f":"IF(G6962<>\"\",INDIRECT(\"'\"&G6962&\"'!\"&H6962),\"\")","v":""}]
[6958,null,null,"New 2013",true,{"$f":"IF(G6963<>\"\",INDIRECT(\"'\"&G6963&\"'!\"&H6963),\"\")","v":""}]
[6959,null,null,"New 2013",true,{"$f":"IF(G6964<>\"\",INDIRECT(\"'\"&G6964&\"'!\"&H6964),\"\")","v":""}]
[6960,null,null,"New 2013",true,{"$f":"IF(G6965<>\"\",INDIRECT(\"'\"&G6965&\"'!\"&H6965),\"\")","v":""}]
[6961,null,null,"New 2013",true,{"$f":"IF(G6966<>\"\",INDIRECT(\"'\"&G6966&\"'!\"&H6966),\"\")","v":""}]
[6962,null,null,"New 2013",true,{"$f":"IF(G6967<>\"\",INDIRECT(\"'\"&G6967&\"'!\"&H6967),\"\")","v":""}]
[6963,null,null,"New 2013",true,{"$f":"IF(G6968<>\"\",INDIRECT(\"'\"&G6968&\"'!\"&H6968),\"\")","v":""}]
[6964,{"$f":"'EstRev 6-11'!E270","v":{"v":0,"d":"0 "}},{"v":6964,"d":"6,964 "},"New 2013",true,{"$f":"IF(G6969<>\"\",INDIRECT(\"'\"&G6969&\"'!\"&H6969),\"\")","v":0},"EstRev 6-11","E270"]
[6965,{"$f":"'CashSum 5'!C6","v":{"v":0,"d":"0 "}},{"v":6965,"d":"6,965 "},"New 2013",true,{"$f":"IF(G6970<>\"\",INDIRECT(\"'\"&G6970&\"'!\"&H6970),\"\")","v":0},"CashSum 5","C6"]
[6966,{"$f":"'CashSum 5'!C9","v":{"v":0,"d":"0 "}},{"v":6966,"d":"6,966 "},"New 2013",true,{"$f":"IF(G6971<>\"\",INDIRECT(\"'\"&G6971&\"'!\"&H6971),\"\")","v":0},"CashSum 5","C9"]
[6967,{"$f":"'CashSum 5'!D9","v":{"v":0,"d":"0 "}},{"v":6967,"d":"6,967 "},"New 2013",true,{"$f":"IF(G6972<>\"\",INDIRECT(\"'\"&G6972&\"'!\"&H6972),\"\")","v":0},"CashSum 5","D9"]
[6968,{"$f":"'CashSum 5'!E6","v":{"v":0,"d":"0 "}},{"v":6968,"d":"6,968 "},"New 2013",true,{"$f":"IF(G6973<>\"\",INDIRECT(\"'\"&G6973&\"'!\"&H6973),\"\")","v":0},"CashSum 5","E6"]
[6969,{"$f":"'CashSum 5'!E17","v":{"v":0,"d":"0 "}},{"v":6969,"d":"6,969 "},"New 2013",true,{"$f":"IF(G6974<>\"\",INDIRECT(\"'\"&G6974&\"'!\"&H6974),\"\")","v":0},"CashSum 5","E17"]
[6970,{"$f":"'CashSum 5'!G6","v":{"v":0,"d":"0 "}},{"v":6970,"d":"6,970 "},"New 2013",true,{"$f":"IF(G6975<>\"\",INDIRECT(\"'\"&G6975&\"'!\"&H6975),\"\")","v":0},"CashSum 5","G6"]
[6971,{"$f":"'CashSum 5'!H6","v":{"v":0,"d":"0 "}},{"v":6971,"d":"6,971 "},"New 2013",true,{"$f":"IF(G6976<>\"\",INDIRECT(\"'\"&G6976&\"'!\"&H6976),\"\")","v":0},"CashSum 5","H6"]
[6972,{"$f":"'CashSum 5'!H9","v":{"v":0,"d":"0 "}},{"v":6972,"d":"6,972 "},"New 2013",true,{"$f":"IF(G6977<>\"\",INDIRECT(\"'\"&G6977&\"'!\"&H6977),\"\")","v":0},"CashSum 5","H9"]
[6973,{"$f":"'CashSum 5'!K6","v":{"v":0,"d":"0 "}},{"v":6973,"d":"6,973 "},"New 2013",{"$f":"F6978=B6978","v":true},{"$f":"IF(G6978<>\"\",INDIRECT(\"'\"&G6978&\"'!\"&H6978),\"\")","v":0},"CashSum 5","K6"]
[6974,{"$f":"'CashSum 5'!K8","v":{"v":0,"d":"0 "}},{"v":6974,"d":"6,974 "},"New 2013",true,{"$f":"IF(G6979<>\"\",INDIRECT(\"'\"&G6979&\"'!\"&H6979),\"\")","v":0},"CashSum 5","K8"]
[6975,{"$f":"'CashSum 5'!K9","v":{"v":0,"d":"0 "}},{"$f":"A6980-B6980","v":{"v":6975,"d":"6,975 "}},"New 2013",true,{"$f":"IF(G6980<>\"\",INDIRECT(\"'\"&G6980&\"'!\"&H6980),\"\")","v":0},"CashSum 5","K9"]
[6976,{"$f":"'CashSum 5'!K18","v":{"v":0,"d":"0 "}},{"v":6976,"d":"6,976 "},"New 2013",true,{"$f":"IF(G6981<>\"\",INDIRECT(\"'\"&G6981&\"'!\"&H6981),\"\")","v":0},"CashSum 5","K18"]
[6977,{"$f":"'EstExp 12-20'!E6","v":{"v":0,"d":"0 "}},{"v":6977,"d":"6,977 "},"New 2015 Charter School Tution Payment",true,{"$f":"IF(G6982<>\"\",INDIRECT(\"'\"&G6982&\"'!\"&H6982),\"\")","v":0},"EstExp 12-20","E6"]
[6978,{"$f":"'EstExp 12-20'!K6","v":{"v":0,"d":"0 "}},{"v":6978,"d":"6,978 "},"New 2015 Charter School Tution Payment total",true,{"$f":"IF(G6983<>\"\",INDIRECT(\"'\"&G6983&\"'!\"&H6983),\"\")","v":0},"EstExp 12-20","K6"]
[6979,{"$f":"'EstRev 6-11'!C257","v":{"v":0,"d":"0 "}},{"v":6979,"d":"6,979 "},"New 2016 Race to the Top - Preschool Expansion Grant - ED",true,{"$f":"IF(G6984<>\"\",INDIRECT(\"'\"&G6984&\"'!\"&H6984),\"\")","v":0},"EstRev 6-11","C257"]
[6980,{"$f":"'EstRev 6-11'!D257","v":{"v":0,"d":"0 "}},{"v":6980,"d":"6,980 "},"New 2016 Race to the Top - Preschool Expansion Grant-O&M",true,{"$f":"IF(G6985<>\"\",INDIRECT(\"'\"&G6985&\"'!\"&H6985),\"\")","v":0},"EstRev 6-11","D257"]
[6981,null,null,"New 2016 Race to the Top - Preschool Expansion Grant-DS",true,{"$f":"IF(G6986<>\"\",INDIRECT(\"'\"&G6986&\"'!\"&H6986),\"\")","v":""}]
[6982,{"$f":"'EstRev 6-11'!F257","v":{"v":0,"d":"0 "}},{"v":6982,"d":"6,982 "},"New 2016 Race to the Top - Preschool Expansion Grant-TR",true,{"$f":"IF(G6987<>\"\",INDIRECT(\"'\"&G6987&\"'!\"&H6987),\"\")","v":0},"EstRev 6-11","F257"]
[6983,{"$f":"'EstRev 6-11'!G257","v":{"v":0,"d":"0 "}},{"v":6983,"d":"6,983 "},"New 2016 Race to the Top - Preschool Expansion Grant-MR/SS",true,{"$f":"IF(G6988<>\"\",INDIRECT(\"'\"&G6988&\"'!\"&H6988),\"\")","v":0},"EstRev 6-11","G257"]
[6984,null,null,"New 2016 Race to the Top - Preschool Expansion Grant-CP",true,{"$f":"IF(G6989<>\"\",INDIRECT(\"'\"&G6989&\"'!\"&H6989),\"\")","v":""}]
[6985,null,null,"New 2016 Race to the Top - Preschool Expansion Grant-TORT",true,{"$f":"IF(G6990<>\"\",INDIRECT(\"'\"&G6990&\"'!\"&H6990),\"\")","v":""}]
[6986,null,null,"New 2016 Race to the Top - Preschool Expansion Grant-FP&S",true,{"$f":"IF(G6991<>\"\",INDIRECT(\"'\"&G6991&\"'!\"&H6991),\"\")","v":""}]
[6987,{"$f":"'EstExp 12-20'!E137","v":{"v":0,"d":"0 "}},{"v":6987,"d":"6,987 "},null,true,{"$f":"IF(G6992<>\"\",INDIRECT(\"'\"&G6992&\"'!\"&H6992),\"\")","v":0},"EstExp 12-20","E137"]
[6988,{"$f":"'EstExp 12-20'!H137","v":{"v":0,"d":"0 "}},{"v":6988,"d":"6,988 "},null,true,{"$f":"IF(G6993<>\"\",INDIRECT(\"'\"&G6993&\"'!\"&H6993),\"\")","v":0},"EstExp 12-20","H137"]
[6989,{"$f":"'EstExp 12-20'!K137","v":{"v":0,"d":"0 "}},{"v":6989,"d":"6,989 "},null,true,{"$f":"IF(G6994<>\"\",INDIRECT(\"'\"&G6994&\"'!\"&H6994),\"\")","v":0},"EstExp 12-20","K137"]
[6990,{"$f":"'EstExp 12-20'!H161","v":0},{"v":6990,"d":"6,990 "},"New 2017 to add account 4110 and 4120 to all fund expenditures",true,{"$f":"IF(G6995<>\"\",INDIRECT(\"'\"&G6995&\"'!\"&H6995),\"\")","v":0},"EstExp 12-20","H161"]
[6991,{"$f":"'EstExp 12-20'!K161","v":0},{"v":6991,"d":"6,991 "},"New 2017 to add account 4110 and 4120 to all fund expenditures",true,{"$f":"IF(G6996<>\"\",INDIRECT(\"'\"&G6996&\"'!\"&H6996),\"\")","v":0},"EstExp 12-20","K161"]
[6992,{"$f":"'EstExp 12-20'!H162","v":0},{"v":6992,"d":"6,992 "},"New 2017 to add account 4110 and 4120 to all fund expenditures",true,{"$f":"IF(G6997<>\"\",INDIRECT(\"'\"&G6997&\"'!\"&H6997),\"\")","v":0},"EstExp 12-20","H162"]
[6993,{"$f":"'EstExp 12-20'!K162","v":0},{"v":6993,"d":"6,993 "},"New 2017 to add account 4110 and 4120 to all fund expenditures",true,{"$f":"IF(G6998<>\"\",INDIRECT(\"'\"&G6998&\"'!\"&H6998),\"\")","v":0},"EstExp 12-20","K162"]
[6994,{"$nulls":3},true,{"$f":"IF(G6999<>\"\",INDIRECT(\"'\"&G6999&\"'!\"&H6999),\"\")","v":""}]
[6995,{"$nulls":3},true,{"$f":"IF(G7000<>\"\",INDIRECT(\"'\"&G7000&\"'!\"&H7000),\"\")","v":""}]
[6996,{"$f":"'EstExp 12-20'!H163","v":0},{"v":6996,"d":"6,996 "},"New 2017 to add account 4110 and 4120 to all fund expenditures",true,{"$f":"IF(G7001<>\"\",INDIRECT(\"'\"&G7001&\"'!\"&H7001),\"\")","v":0},"EstExp 12-20","H163"]
[6997,{"$f":"'EstExp 12-20'!K163","v":0},{"v":6997,"d":"6,997 "},"New 2017 to add account 4110 and 4120 to all fund expenditures",true,{"$f":"IF(G7002<>\"\",INDIRECT(\"'\"&G7002&\"'!\"&H7002),\"\")","v":0},"EstExp 12-20","K163"]
[6998,{"$f":"'EstExp 12-20'!H164","v":0},{"v":6998,"d":"6,998 "},"New 2017 to add account 4110 and 4120 to all fund expenditures",true,{"$f":"IF(G7003<>\"\",INDIRECT(\"'\"&G7003&\"'!\"&H7003),\"\")","v":0},"EstExp 12-20","H164"]
[6999,{"$f":"'EstExp 12-20'!K164","v":0},{"v":6999,"d":"6,999 "},"New 2017 to add account 4110 and 4120 to all fund expenditures",true,{"$f":"IF(G7004<>\"\",INDIRECT(\"'\"&G7004&\"'!\"&H7004),\"\")","v":0},"EstExp 12-20","K164"]
[7000,{"$f":"'EstExp 12-20'!D279","v":0},{"v":7000,"d":"7,000 "},"New 2017 to add account 4110 and 4120 to all fund expenditures",true,{"$f":"IF(G7005<>\"\",INDIRECT(\"'\"&G7005&\"'!\"&H7005),\"\")","v":0},"EstExp 12-20","D279"]
[7001,{"$f":"'EstExp 12-20'!K279","v":0},{"v":7001,"d":"7,001 "},"New 2017 to add account 4110 and 4120 to all fund expenditures",true,{"$f":"IF(G7006<>\"\",INDIRECT(\"'\"&G7006&\"'!\"&H7006),\"\")","v":0},"EstExp 12-20","K279"]
[7002,{"$f":"'EstExp 12-20'!E303","v":0},{"v":7002,"d":"7,002 "},"New 2017 to add account 4110 and 4120 to all fund expenditures",true,{"$f":"IF(G7007<>\"\",INDIRECT(\"'\"&G7007&\"'!\"&H7007),\"\")","v":0},"EstExp 12-20","E303"]
[7003,{"$f":"'EstExp 12-20'!H303","v":0},{"v":7003,"d":"7,003 "},"New 2017 to add account 4110 and 4120 to all fund expenditures",true,{"$f":"IF(G7008<>\"\",INDIRECT(\"'\"&G7008&\"'!\"&H7008),\"\")","v":0},"EstExp 12-20","H303"]
[7004,{"$f":"'EstExp 12-20'!K303","v":0},{"v":7004,"d":"7,004 "},"New 2017 to add account 4110 and 4120 to all fund expenditures",true,{"$f":"IF(G7009<>\"\",INDIRECT(\"'\"&G7009&\"'!\"&H7009),\"\")","v":0},"EstExp 12-20","K303"]
[7005,{"$f":"'EstExp 12-20'!H391","v":{"v":0,"d":"0 "}},{"v":7005,"d":"7,005 "},"New 2017 to add account 4110 and 4120 to all fund expenditures",true,{"$f":"IF(G7010<>\"\",INDIRECT(\"'\"&G7010&\"'!\"&H7010),\"\")","v":0},"EstExp 12-20","H391"]
[7006,{"$f":"'EstExp 12-20'!K391","v":{"v":0,"d":"0 "}},{"v":7006,"d":"7,006 "},"New 2017 to add account 4110 and 4120 to all fund expenditures",true,{"$f":"IF(G7011<>\"\",INDIRECT(\"'\"&G7011&\"'!\"&H7011),\"\")","v":0},"EstExp 12-20","K391"]
[7007,{"$f":"'EstExp 12-20'!H392","v":{"v":0,"d":"0 "}},{"v":7007,"d":"7,007 "},"New 2017 to add account 4110 and 4120 to all fund expenditures",true,{"$f":"IF(G7012<>\"\",INDIRECT(\"'\"&G7012&\"'!\"&H7012),\"\")","v":0},"EstExp 12-20","H392"]
[7008,{"$f":"'EstExp 12-20'!K392","v":{"v":0,"d":"0 "}},{"v":7008,"d":"7,008 "},"New 2017 to add account 4110 and 4120 to all fund expenditures",true,{"$f":"IF(G7013<>\"\",INDIRECT(\"'\"&G7013&\"'!\"&H7013),\"\")","v":0},"EstExp 12-20","K392"]
[7009,{"$f":"'EstExp 12-20'!H397","v":{"v":0,"d":"0 "}},{"v":7009,"d":"7,009 "},"New 2017 to add account 4110 and 4120 to all fund expenditures",true,{"$f":"IF(G7014<>\"\",INDIRECT(\"'\"&G7014&\"'!\"&H7014),\"\")","v":0},"EstExp 12-20","H397"]
[7010,{"$f":"'EstExp 12-20'!K397","v":{"v":0,"d":"0 "}},{"v":7010,"d":"7,010 "},"New 2017 to add account 4110 and 4120 to all fund expenditures",true,{"$f":"IF(G7015<>\"\",INDIRECT(\"'\"&G7015&\"'!\"&H7015),\"\")","v":0},"EstExp 12-20","K397"]
[7011,{"$f":"'EstExp 12-20'!H440","v":0},{"v":7011,"d":"7,011 "},"New 2017 to add account 4110 and 4120 to all fund expenditures",true,{"$f":"IF(G7016<>\"\",INDIRECT(\"'\"&G7016&\"'!\"&H7016),\"\")","v":0},"EstExp 12-20","H440"]
[7012,{"$f":"'EstExp 12-20'!K440","v":0},{"v":7012,"d":"7,012 "},"New 2017 to add account 4110 and 4120 to all fund expenditures",true,{"$f":"IF(G7017<>\"\",INDIRECT(\"'\"&G7017&\"'!\"&H7017),\"\")","v":0},"EstExp 12-20","K440"]
[7013,{"$f":"'EstExp 12-20'!H441","v":0},{"v":7013,"d":"7,013 "},"New 2017 to add account 4110 and 4120 to all fund expenditures",true,{"$f":"IF(G7018<>\"\",INDIRECT(\"'\"&G7018&\"'!\"&H7018),\"\")","v":0},"EstExp 12-20","H441"]
[7014,{"$f":"'EstExp 12-20'!K441","v":0},{"v":7014,"d":"7,014 "},"New 2017 to add account 4110 and 4120 to all fund expenditures",true,{"$f":"IF(G7019<>\"\",INDIRECT(\"'\"&G7019&\"'!\"&H7019),\"\")","v":0},"EstExp 12-20","K441"]
[7015,{"$f":"'BudgetSum 2-4'!J16","v":0},{"v":7015,"d":"7,015 "},"New 2017 to add account 4110 and 4120 to all fund expenditures",true,{"$f":"IF(G7020<>\"\",INDIRECT(\"'\"&G7020&\"'!\"&H7020),\"\")","v":0},"BudgetSum 2-4","J16"]
[7016,{"$f":"'EstRev 6-11'!C122","v":{"v":0,"d":"0 "}},{"v":7016,"d":"7,016 "},"new 2019 to add account 3030 in revenues",true,{"$f":"IF(G7021<>\"\",INDIRECT(\"'\"&G7021&\"'!\"&H7021),\"\")","v":0},"EstRev 6-11","C122"]
[7017,{"$f":"'EstRev 6-11'!D122","v":{"v":0,"d":"0 "}},{"v":7017,"d":"7,017 "},"new 2019 to add account 3030 in revenues",true,{"$f":"IF(G7022<>\"\",INDIRECT(\"'\"&G7022&\"'!\"&H7022),\"\")","v":0},"EstRev 6-11","D122"]
[7018,{"$f":"'EstRev 6-11'!E122","v":{"v":0,"d":"0 "}},{"v":7018,"d":"7,018 "},"new 2019 to add account 3030 in revenues",true,{"$f":"IF(G7023<>\"\",INDIRECT(\"'\"&G7023&\"'!\"&H7023),\"\")","v":0},"EstRev 6-11","E122"]
[7019,{"$f":"'EstRev 6-11'!F122","v":{"v":0,"d":"0 "}},{"v":7019,"d":"7,019 "},"new 2019 to add account 3030 in revenues",true,{"$f":"IF(G7024<>\"\",INDIRECT(\"'\"&G7024&\"'!\"&H7024),\"\")","v":0},"EstRev 6-11","F122"]
[7020,{"$f":"'EstRev 6-11'!G122","v":{"v":0,"d":"0 "}},{"v":7020,"d":"7,020 "},"new 2019 to add account 3030 in revenues",true,{"$f":"IF(G7025<>\"\",INDIRECT(\"'\"&G7025&\"'!\"&H7025),\"\")","v":0},"EstRev 6-11","G122"]
[7021,{"$f":"'EstRev 6-11'!H122","v":{"v":0,"d":"0 "}},{"v":7021,"d":"7,021 "},"new 2019 to add account 3030 in revenues",true,{"$f":"IF(G7026<>\"\",INDIRECT(\"'\"&G7026&\"'!\"&H7026),\"\")","v":0},"EstRev 6-11","H122"]
[7022,{"$f":"'EstRev 6-11'!J122","v":{"v":0,"d":"0 "}},{"v":7022,"d":"7,022 "},"new 2019 to add account 3030 in revenues",true,{"$f":"IF(G7027<>\"\",INDIRECT(\"'\"&G7027&\"'!\"&H7027),\"\")","v":0},"EstRev 6-11","J122"]
[7023,{"$f":"'EstRev 6-11'!K122","v":{"v":0,"d":"0 "}},{"v":7023,"d":"7,023 "},"new 2019 to add account 3030 in revenues",true,{"$f":"IF(G7028<>\"\",INDIRECT(\"'\"&G7028&\"'!\"&H7028),\"\")","v":0},"EstRev 6-11","K122"]
[7024,{"$f":"'EstRev 6-11'!C265","v":{"v":0,"d":"0 "}},{"v":7024,"d":"7,024 "},"new 2019 to add account 4981 in revenues",true,{"$f":"IF(G7029<>\"\",INDIRECT(\"'\"&G7029&\"'!\"&H7029),\"\")","v":0},"EstRev 6-11","C265"]
[7025,{"$f":"'EstRev 6-11'!D265","v":{"v":0,"d":"0 "}},{"v":7025,"d":"7,025 "},"new 2019 to add account 4981 in revenues",true,{"$f":"IF(G7030<>\"\",INDIRECT(\"'\"&G7030&\"'!\"&H7030),\"\")","v":0},"EstRev 6-11","D265"]
[7026,{"$f":"'EstRev 6-11'!F265","v":{"v":0,"d":"0 "}},{"v":7026,"d":"7,026 "},"new 2019 to add account 4981 in revenues",true,{"$f":"IF(G7031<>\"\",INDIRECT(\"'\"&G7031&\"'!\"&H7031),\"\")","v":0},"EstRev 6-11","F265"]
[7027,{"$f":"'EstRev 6-11'!G265","v":{"v":0,"d":"0 "}},{"v":7027,"d":"7,027 "},"new 2019 to add account 4981 in revenues",true,{"$f":"IF(G7032<>\"\",INDIRECT(\"'\"&G7032&\"'!\"&H7032),\"\")","v":0},"EstRev 6-11","G265"]
[7028,{"$f":"'EstRev 6-11'!C266","v":{"v":0,"d":"0 "}},{"v":7028,"d":"7,028 "},"new 2019 to add acount4982 in revenues",true,{"$f":"IF(G7033<>\"\",INDIRECT(\"'\"&G7033&\"'!\"&H7033),\"\")","v":0},"EstRev 6-11","C266"]
[7029,{"$f":"'EstRev 6-11'!D266","v":{"v":0,"d":"0 "}},{"v":7029,"d":"7,029 "},"new 2019 to add acount4982 in revenues",true,{"$f":"IF(G7034<>\"\",INDIRECT(\"'\"&G7034&\"'!\"&H7034),\"\")","v":0},"EstRev 6-11","D266"]
[7030,{"$f":"'EstRev 6-11'!F266","v":{"v":0,"d":"0 "}},{"v":7030,"d":"7,030 "},"new 2019 to add acount4982 in revenues",true,{"$f":"IF(G7035<>\"\",INDIRECT(\"'\"&G7035&\"'!\"&H7035),\"\")","v":0},"EstRev 6-11","F266"]
[7031,{"$f":"'EstRev 6-11'!G266","v":{"v":0,"d":"0 "}},{"v":7031,"d":"7,031 "},"new 2019 to add acount4982 in revenues",true,{"$f":"IF(G7036<>\"\",INDIRECT(\"'\"&G7036&\"'!\"&H7036),\"\")","v":0},"EstRev 6-11","G266"]
[7032,{"$f":"'BudgetSum 2-4'!J13","v":{"v":0,"d":"0 "}},{"v":7032,"d":"7,032 "},"New 2021 -BudgetSum",true,{"$f":"IF(G7037<>\"\",INDIRECT(\"'\"&G7037&\"'!\"&H7037),\"\")","v":0},"BudgetSum 2-4","J13"]
[7033,{"$f":"'BudgetSum 2-4'!J15","v":{"v":0,"d":"0 "}},{"v":7033,"d":"7,033 "},"New 2021 -BudgetSum",true,{"$f":"IF(G7038<>\"\",INDIRECT(\"'\"&G7038&\"'!\"&H7038),\"\")","v":0},"BudgetSum 2-4","J15"]
[7034,{"$f":"'BudgetSum 2-4'!C83","v":{"v":0,"d":"0 "}},{"v":7034,"d":"7,034 "},"New 2021 -BudgetSum",true,{"$f":"IF(G7039<>\"\",INDIRECT(\"'\"&G7039&\"'!\"&H7039),\"\")","v":0},"BudgetSum 2-4","C83"]
[7035,{"$f":"'BudgetSum 2-4'!C85","v":{"v":0,"d":"0 "}},{"v":7035,"d":"7,035 "},"New 2021 -BudgetSum",true,{"$f":"IF(G7040<>\"\",INDIRECT(\"'\"&G7040&\"'!\"&H7040),\"\")","v":0},"BudgetSum 2-4","C85"]
[7036,{"$f":"'BudgetSum 2-4'!C87","v":{"v":0,"d":"0 "}},{"v":7036,"d":"7,036 "},"New 2021 -BudgetSum",true,{"$f":"IF(G7041<>\"\",INDIRECT(\"'\"&G7041&\"'!\"&H7041),\"\")","v":0},"BudgetSum 2-4","C87"]
[7037,{"$f":"'BudgetSum 2-4'!C88","v":{"v":0,"d":"0 "}},{"v":7037,"d":"7,037 "},"New 2021 -BudgetSum",{"$f":"F7042=B7042","v":true},{"$f":"IF(G7042<>\"\",INDIRECT(\"'\"&G7042&\"'!\"&H7042),\"\")","v":0},"BudgetSum 2-4","C88"]
[7038,{"$f":"'BudgetSum 2-4'!C89","v":{"v":0,"d":"0 "}},{"v":7038,"d":"7,038 "},"New 2021 -BudgetSum",true,{"$f":"IF(G7043<>\"\",INDIRECT(\"'\"&G7043&\"'!\"&H7043),\"\")","v":0},"BudgetSum 2-4","C89"]
[7039,{"$f":"'BudgetSum 2-4'!J131","v":{"v":0,"d":"0 "}},{"$f":"A7044-B7044","v":{"v":7039,"d":"7,039 "}},"New 2021 -BudgetSum",true,{"$f":"IF(G7044<>\"\",INDIRECT(\"'\"&G7044&\"'!\"&H7044),\"\")","v":0},"BudgetSum 2-4","J131"]
[7040,{"$f":"'BudgetSum 2-4'!C91","v":{"v":7376498,"d":"7,376,498 "}},{"v":-7369458,"d":"(7,369,458)"},"New 2021 -BudgetSum",true,{"$f":"IF(G7045<>\"\",INDIRECT(\"'\"&G7045&\"'!\"&H7045),\"\")","v":7376498},"BudgetSum 2-4","C91"]
[7041,{"$f":"'BudgetSum 2-4'!C93","v":{"v":5003900,"d":"5,003,900 "}},{"v":-4996859,"d":"(4,996,859)"},"New 2021 -BudgetSum",true,{"$f":"IF(G7046<>\"\",INDIRECT(\"'\"&G7046&\"'!\"&H7046),\"\")","v":5003900},"BudgetSum 2-4","C93"]
[7042,{"$f":"'BudgetSum 2-4'!C94","v":{"v":0,"d":"0 "}},{"v":7042,"d":"7,042 "},"New 2021 -BudgetSum",true,{"$f":"IF(G7047<>\"\",INDIRECT(\"'\"&G7047&\"'!\"&H7047),\"\")","v":0},"BudgetSum 2-4","C94"]
[7043,{"$f":"'BudgetSum 2-4'!C95","v":{"v":6057000,"d":"6,057,000 "}},{"v":-6049957,"d":"(6,049,957)"},"New 2021 -BudgetSum",true,{"$f":"IF(G7048<>\"\",INDIRECT(\"'\"&G7048&\"'!\"&H7048),\"\")","v":6057000},"BudgetSum 2-4","C95"]
[7044,{"$f":"'BudgetSum 2-4'!C96","v":{"v":1757000,"d":"1,757,000 "}},{"v":-1749956,"d":"(1,749,956)"},"New 2021 -BudgetSum",true,{"$f":"IF(G7049<>\"\",INDIRECT(\"'\"&G7049&\"'!\"&H7049),\"\")","v":1757000},"BudgetSum 2-4","C96"]
[7045,{"$f":"'BudgetSum 2-4'!C97","v":{"v":12817900,"d":"12,817,900 "}},{"v":-12810855,"d":"(12,810,855)"},"New 2021 -BudgetSum",true,{"$f":"IF(G7050<>\"\",INDIRECT(\"'\"&G7050&\"'!\"&H7050),\"\")","v":12817900},"BudgetSum 2-4","C97"]
[7046,{"$f":"'BudgetSum 2-4'!C98","v":{"v":0,"d":"0 "}},{"v":7046,"d":"7,046 "},"New 2021 -BudgetSum",true,{"$f":"IF(G7051<>\"\",INDIRECT(\"'\"&G7051&\"'!\"&H7051),\"\")","v":0},"BudgetSum 2-4","C98"]
[7047,{"$f":"'BudgetSum 2-4'!C99","v":{"v":12817900,"d":"12,817,900 "}},{"v":-12810853,"d":"(12,810,853)"},"New 2021 -BudgetSum",true,{"$f":"IF(G7052<>\"\",INDIRECT(\"'\"&G7052&\"'!\"&H7052),\"\")","v":12817900},"BudgetSum 2-4","C99"]
[7048,{"$f":"'BudgetSum 2-4'!C101","v":{"v":7233137,"d":"7,233,137 "}},{"v":-7226089,"d":"(7,226,089)"},"New 2021 -BudgetSum",true,{"$f":"IF(G7053<>\"\",INDIRECT(\"'\"&G7053&\"'!\"&H7053),\"\")","v":7233137},"BudgetSum 2-4","C101"]
[7049,{"$f":"'BudgetSum 2-4'!C102","v":{"v":5295819,"d":"5,295,819 "}},{"v":-5288770,"d":"(5,288,770)"},"New 2021 -BudgetSum",true,{"$f":"IF(G7054<>\"\",INDIRECT(\"'\"&G7054&\"'!\"&H7054),\"\")","v":5295819},"BudgetSum 2-4","C102"]
[7050,{"$f":"'BudgetSum 2-4'!C103","v":{"v":315000,"d":"315,000 "}},{"v":-307950,"d":"(307,950)"},"New 2021 -BudgetSum",true,{"$f":"IF(G7055<>\"\",INDIRECT(\"'\"&G7055&\"'!\"&H7055),\"\")","v":315000},"BudgetSum 2-4","C103"]
[7051,{"$f":"'BudgetSum 2-4'!C104","v":{"v":890000,"d":"890,000 "}},{"v":-882949,"d":"(882,949)"},"New 2021 -BudgetSum",true,{"$f":"IF(G7056<>\"\",INDIRECT(\"'\"&G7056&\"'!\"&H7056),\"\")","v":890000},"BudgetSum 2-4","C104"]
[7052,{"$f":"'BudgetSum 2-4'!C105","v":{"v":0,"d":"0 "}},{"v":7052,"d":"7,052 "},"New 2021 -BudgetSum",true,{"$f":"IF(G7057<>\"\",INDIRECT(\"'\"&G7057&\"'!\"&H7057),\"\")","v":0},"BudgetSum 2-4","C105"]
[7053,{"$f":"'BudgetSum 2-4'!C106","v":{"v":0,"d":"0 "}},{"v":7053,"d":"7,053 "},"New 2021 -BudgetSum",true,{"$f":"IF(G7058<>\"\",INDIRECT(\"'\"&G7058&\"'!\"&H7058),\"\")","v":0},"BudgetSum 2-4","C106"]
[7054,{"$f":"'BudgetSum 2-4'!C107","v":{"v":13733956,"d":"13,733,956 "}},{"v":-13726902,"d":"(13,726,902)"},"New 2021 -BudgetSum",true,{"$f":"IF(G7059<>\"\",INDIRECT(\"'\"&G7059&\"'!\"&H7059),\"\")","v":13733956},"BudgetSum 2-4","C107"]
[7055,{"$f":"'BudgetSum 2-4'!C108","v":{"v":0,"d":"0 "}},{"v":7055,"d":"7,055 "},"New 2021 -BudgetSum",true,{"$f":"IF(G7060<>\"\",INDIRECT(\"'\"&G7060&\"'!\"&H7060),\"\")","v":0},"BudgetSum 2-4","C108"]
[7056,{"$f":"'BudgetSum 2-4'!C109","v":{"v":13733956,"d":"13,733,956 "}},{"v":-13726900,"d":"(13,726,900)"},"New 2021 -BudgetSum",true,{"$f":"IF(G7061<>\"\",INDIRECT(\"'\"&G7061&\"'!\"&H7061),\"\")","v":13733956},"BudgetSum 2-4","C109"]
[7057,{"$f":"'BudgetSum 2-4'!C110","v":{"v":-916056,"d":"(916,056)"}},{"v":923113,"d":"923,113 "},"New 2021 -BudgetSum",true,{"$f":"IF(G7062<>\"\",INDIRECT(\"'\"&G7062&\"'!\"&H7062),\"\")","v":-916056},"BudgetSum 2-4","C110"]
[7058,{"$f":"'BudgetSum 2-4'!C113","v":{"v":0,"d":"0 "}},{"v":7058,"d":"7,058 "},"New 2021 -BudgetSum",true,{"$f":"IF(G7063<>\"\",INDIRECT(\"'\"&G7063&\"'!\"&H7063),\"\")","v":0},"BudgetSum 2-4","C113"]
[7059,{"$f":"'BudgetSum 2-4'!C116","v":{"v":0,"d":"0 "}},{"v":7059,"d":"7,059 "},"New 2021 -BudgetSum",true,{"$f":"IF(G7064<>\"\",INDIRECT(\"'\"&G7064&\"'!\"&H7064),\"\")","v":0},"BudgetSum 2-4","C116"]
[7060,{"$f":"'BudgetSum 2-4'!C117","v":{"v":0,"d":"0 "}},{"v":7060,"d":"7,060 "},"New 2021 -BudgetSum",true,{"$f":"IF(G7065<>\"\",INDIRECT(\"'\"&G7065&\"'!\"&H7065),\"\")","v":0},"BudgetSum 2-4","C117"]
[7061,{"$f":"'BudgetSum 2-4'!C118","v":{"v":6460442,"d":"6,460,442 "}},{"v":-6453381,"d":"(6,453,381)"},"New 2021 -BudgetSum",true,{"$f":"IF(G7066<>\"\",INDIRECT(\"'\"&G7066&\"'!\"&H7066),\"\")","v":6460442},"BudgetSum 2-4","C118"]
[7062,{"$f":"'BudgetSum 2-4'!D91","v":{"v":0,"d":"0 "}},{"v":7062,"d":"7,062 "},"New 2021 -BudgetSum",true,{"$f":"IF(G7067<>\"\",INDIRECT(\"'\"&G7067&\"'!\"&H7067),\"\")","v":0},"BudgetSum 2-4","D91"]
[7063,{"$f":"'BudgetSum 2-4'!D93","v":{"v":247000,"d":"247,000 "}},{"v":-239937,"d":"(239,937)"},"New 2021 -BudgetSum",true,{"$f":"IF(G7068<>\"\",INDIRECT(\"'\"&G7068&\"'!\"&H7068),\"\")","v":247000},"BudgetSum 2-4","D93"]
[7064,{"$f":"'BudgetSum 2-4'!D94","v":{"v":0,"d":"0 "}},{"v":7064,"d":"7,064 "},"New 2021 -BudgetSum",true,{"$f":"IF(G7069<>\"\",INDIRECT(\"'\"&G7069&\"'!\"&H7069),\"\")","v":0},"BudgetSum 2-4","D94"]
[7065,{"$f":"'BudgetSum 2-4'!D95","v":{"v":1350000,"d":"1,350,000 "}},{"v":-1342935,"d":"(1,342,935)"},"New 2021 -BudgetSum",true,{"$f":"IF(G7070<>\"\",INDIRECT(\"'\"&G7070&\"'!\"&H7070),\"\")","v":1350000},"BudgetSum 2-4","D95"]
[7066,{"$f":"'BudgetSum 2-4'!D96","v":{"v":0,"d":"0 "}},{"v":7066,"d":"7,066 "},"New 2021 -BudgetSum",true,{"$f":"IF(G7071<>\"\",INDIRECT(\"'\"&G7071&\"'!\"&H7071),\"\")","v":0},"BudgetSum 2-4","D96"]
[7067,{"$f":"'BudgetSum 2-4'!D97","v":{"v":1597000,"d":"1,597,000 "}},{"v":-1589933,"d":"(1,589,933)"},"New 2021 -BudgetSum",true,{"$f":"IF(G7072<>\"\",INDIRECT(\"'\"&G7072&\"'!\"&H7072),\"\")","v":1597000},"BudgetSum 2-4","D97"]
[7068,{"$f":"'BudgetSum 2-4'!D98","v":{"v":0,"d":"0 "}},{"v":7068,"d":"7,068 "},"New 2021 -BudgetSum",true,{"$f":"IF(G7073<>\"\",INDIRECT(\"'\"&G7073&\"'!\"&H7073),\"\")","v":0},"BudgetSum 2-4","D98"]
[7069,{"$f":"'BudgetSum 2-4'!D99","v":{"v":1597000,"d":"1,597,000 "}},{"v":-1589931,"d":"(1,589,931)"},"New 2021 -BudgetSum",true,{"$f":"IF(G7074<>\"\",INDIRECT(\"'\"&G7074&\"'!\"&H7074),\"\")","v":1597000},"BudgetSum 2-4","D99"]
[7070,{"$f":"'BudgetSum 2-4'!D102","v":{"v":1564500,"d":"1,564,500 "}},{"v":-1557430,"d":"(1,557,430)"},"New 2021 -BudgetSum",true,{"$f":"IF(G7075<>\"\",INDIRECT(\"'\"&G7075&\"'!\"&H7075),\"\")","v":1564500},"BudgetSum 2-4","D102"]
[7071,{"$f":"'BudgetSum 2-4'!D103","v":{"v":0,"d":"0 "}},{"v":7071,"d":"7,071 "},"New 2021 -BudgetSum",true,{"$f":"IF(G7076<>\"\",INDIRECT(\"'\"&G7076&\"'!\"&H7076),\"\")","v":0},"BudgetSum 2-4","D103"]
[7072,{"$f":"'BudgetSum 2-4'!D104","v":{"v":0,"d":"0 "}},{"v":7072,"d":"7,072 "},"New 2021 -BudgetSum",true,{"$f":"IF(G7077<>\"\",INDIRECT(\"'\"&G7077&\"'!\"&H7077),\"\")","v":0},"BudgetSum 2-4","D104"]
[7073,{"$f":"'BudgetSum 2-4'!D105","v":{"v":0,"d":"0 "}},{"v":7073,"d":"7,073 "},"New 2021 -BudgetSum",true,{"$f":"IF(G7078<>\"\",INDIRECT(\"'\"&G7078&\"'!\"&H7078),\"\")","v":0},"BudgetSum 2-4","D105"]
[7074,{"$f":"'BudgetSum 2-4'!D106","v":{"v":0,"d":"0 "}},{"v":7074,"d":"7,074 "},"New 2021 -BudgetSum",true,{"$f":"IF(G7079<>\"\",INDIRECT(\"'\"&G7079&\"'!\"&H7079),\"\")","v":0},"BudgetSum 2-4","D106"]
[7075,{"$f":"'BudgetSum 2-4'!D107","v":{"v":1564500,"d":"1,564,500 "}},{"v":-1557425,"d":"(1,557,425)"},"New 2021 -BudgetSum",true,{"$f":"IF(G7080<>\"\",INDIRECT(\"'\"&G7080&\"'!\"&H7080),\"\")","v":1564500},"BudgetSum 2-4","D107"]
[7076,{"$f":"'BudgetSum 2-4'!D108","v":{"v":0,"d":"0 "}},{"v":7076,"d":"7,076 "},"New 2021 -BudgetSum",true,{"$f":"IF(G7081<>\"\",INDIRECT(\"'\"&G7081&\"'!\"&H7081),\"\")","v":0},"BudgetSum 2-4","D108"]
[7077,{"$f":"'BudgetSum 2-4'!D109","v":{"v":1564500,"d":"1,564,500 "}},{"v":-1557423,"d":"(1,557,423)"},"New 2021 -BudgetSum",true,{"$f":"IF(G7082<>\"\",INDIRECT(\"'\"&G7082&\"'!\"&H7082),\"\")","v":1564500},"BudgetSum 2-4","D109"]
[7078,{"$f":"'BudgetSum 2-4'!D110","v":{"v":32500,"d":"32,500 "}},{"v":-25422,"d":"(25,422)"},"New 2021 -BudgetSum",true,{"$f":"IF(G7083<>\"\",INDIRECT(\"'\"&G7083&\"'!\"&H7083),\"\")","v":32500},"BudgetSum 2-4","D110"]
[7079,{"$f":"'BudgetSum 2-4'!D113","v":{"v":0,"d":"0 "}},{"v":7079,"d":"7,079 "},"New 2021 -BudgetSum",true,{"$f":"IF(G7084<>\"\",INDIRECT(\"'\"&G7084&\"'!\"&H7084),\"\")","v":0},"BudgetSum 2-4","D113"]
[7080,{"$f":"'BudgetSum 2-4'!D116","v":{"v":0,"d":"0 "}},{"v":7080,"d":"7,080 "},"New 2021 -BudgetSum",true,{"$f":"IF(G7085<>\"\",INDIRECT(\"'\"&G7085&\"'!\"&H7085),\"\")","v":0},"BudgetSum 2-4","D116"]
[7081,{"$f":"'BudgetSum 2-4'!D117","v":{"v":0,"d":"0 "}},{"v":7081,"d":"7,081 "},"New 2021 -BudgetSum",true,{"$f":"IF(G7086<>\"\",INDIRECT(\"'\"&G7086&\"'!\"&H7086),\"\")","v":0},"BudgetSum 2-4","D117"]
[7082,{"$f":"'BudgetSum 2-4'!D118","v":{"v":32500,"d":"32,500 "}},{"v":-25418,"d":"(25,418)"},"New 2021 -BudgetSum",true,{"$f":"IF(G7087<>\"\",INDIRECT(\"'\"&G7087&\"'!\"&H7087),\"\")","v":32500},"BudgetSum 2-4","D118"]
[7083,{"$f":"'BudgetSum 2-4'!E91","v":{"v":3057750,"d":"3,057,750 "}},{"v":-3050667,"d":"(3,050,667)"},"New 2021 -BudgetSum",true,{"$f":"IF(G7088<>\"\",INDIRECT(\"'\"&G7088&\"'!\"&H7088),\"\")","v":3057750},"BudgetSum 2-4","E91"]
[7084,{"$f":"'BudgetSum 2-4'!E93","v":{"v":1695000,"d":"1,695,000 "}},{"v":-1687916,"d":"(1,687,916)"},"New 2021 -BudgetSum",true,{"$f":"IF(G7089<>\"\",INDIRECT(\"'\"&G7089&\"'!\"&H7089),\"\")","v":1695000},"BudgetSum 2-4","E93"]
[7085,{"$f":"'BudgetSum 2-4'!E95","v":{"v":500000,"d":"500,000 "}},{"v":-492915,"d":"(492,915)"},"New 2021 -BudgetSum",true,{"$f":"IF(G7090<>\"\",INDIRECT(\"'\"&G7090&\"'!\"&H7090),\"\")","v":500000},"BudgetSum 2-4","E95"]
[7086,{"$f":"'BudgetSum 2-4'!E96","v":{"v":0,"d":"0 "}},{"v":7086,"d":"7,086 "},"New 2021 -BudgetSum",true,{"$f":"IF(G7091<>\"\",INDIRECT(\"'\"&G7091&\"'!\"&H7091),\"\")","v":0},"BudgetSum 2-4","E96"]
[7087,{"$f":"'BudgetSum 2-4'!E97","v":{"v":2195000,"d":"2,195,000 "}},{"v":-2187913,"d":"(2,187,913)"},"New 2021 -BudgetSum",true,{"$f":"IF(G7092<>\"\",INDIRECT(\"'\"&G7092&\"'!\"&H7092),\"\")","v":2195000},"BudgetSum 2-4","E97"]
[7088,{"$f":"'BudgetSum 2-4'!E98","v":{"v":0,"d":"0 "}},{"v":7088,"d":"7,088 "},"New 2021 -BudgetSum",true,{"$f":"IF(G7093<>\"\",INDIRECT(\"'\"&G7093&\"'!\"&H7093),\"\")","v":0},"BudgetSum 2-4","E98"]
[7089,{"$f":"'BudgetSum 2-4'!E99","v":{"v":2195000,"d":"2,195,000 "}},{"v":-2187911,"d":"(2,187,911)"},"New 2021 -BudgetSum",true,{"$f":"IF(G7094<>\"\",INDIRECT(\"'\"&G7094&\"'!\"&H7094),\"\")","v":2195000},"BudgetSum 2-4","E99"]
[7090,{"$f":"'BudgetSum 2-4'!E104","v":{"v":0,"d":"0 "}},{"v":7090,"d":"7,090 "},"New 2021 -BudgetSum",true,{"$f":"IF(G7095<>\"\",INDIRECT(\"'\"&G7095&\"'!\"&H7095),\"\")","v":0},"BudgetSum 2-4","E104"]
[7091,{"$f":"'BudgetSum 2-4'!E105","v":{"v":1322000,"d":"1,322,000 "}},{"v":-1314909,"d":"(1,314,909)"},"New 2021 -BudgetSum",true,{"$f":"IF(G7096<>\"\",INDIRECT(\"'\"&G7096&\"'!\"&H7096),\"\")","v":1322000},"BudgetSum 2-4","E105"]
[7092,{"$f":"'BudgetSum 2-4'!E106","v":{"v":0,"d":"0 "}},{"v":7092,"d":"7,092 "},"New 2021 -BudgetSum",true,{"$f":"IF(G7097<>\"\",INDIRECT(\"'\"&G7097&\"'!\"&H7097),\"\")","v":0},"BudgetSum 2-4","E106"]
[7093,{"$f":"'BudgetSum 2-4'!E107","v":{"v":1322000,"d":"1,322,000 "}},{"v":-1314907,"d":"(1,314,907)"},"New 2021 -BudgetSum",true,{"$f":"IF(G7098<>\"\",INDIRECT(\"'\"&G7098&\"'!\"&H7098),\"\")","v":1322000},"BudgetSum 2-4","E107"]
[7094,{"$f":"'BudgetSum 2-4'!E108","v":{"v":0,"d":"0 "}},{"v":7094,"d":"7,094 "},"New 2021 -BudgetSum",true,{"$f":"IF(G7099<>\"\",INDIRECT(\"'\"&G7099&\"'!\"&H7099),\"\")","v":0},"BudgetSum 2-4","E108"]
[7095,{"$f":"'BudgetSum 2-4'!E109","v":{"v":1322000,"d":"1,322,000 "}},{"v":-1314905,"d":"(1,314,905)"},"New 2021 -BudgetSum",true,{"$f":"IF(G7100<>\"\",INDIRECT(\"'\"&G7100&\"'!\"&H7100),\"\")","v":1322000},"BudgetSum 2-4","E109"]
[7096,{"$f":"'BudgetSum 2-4'!E110","v":{"v":873000,"d":"873,000 "}},{"v":-865904,"d":"(865,904)"},"New 2021 -BudgetSum",true,{"$f":"IF(G7101<>\"\",INDIRECT(\"'\"&G7101&\"'!\"&H7101),\"\")","v":873000},"BudgetSum 2-4","E110"]
[7097,{"$f":"'BudgetSum 2-4'!E113","v":{"v":0,"d":"0 "}},{"v":7097,"d":"7,097 "},"New 2021 -BudgetSum",true,{"$f":"IF(G7102<>\"\",INDIRECT(\"'\"&G7102&\"'!\"&H7102),\"\")","v":0},"BudgetSum 2-4","E113"]
[7098,{"$f":"'BudgetSum 2-4'!E116","v":{"v":115000,"d":"115,000 "}},{"v":-107902,"d":"(107,902)"},"New 2021 -BudgetSum",true,{"$f":"IF(G7103<>\"\",INDIRECT(\"'\"&G7103&\"'!\"&H7103),\"\")","v":115000},"BudgetSum 2-4","E116"]
[7099,{"$f":"'BudgetSum 2-4'!E117","v":{"v":-115000,"d":"(115,000)"}},{"v":122099,"d":"122,099 "},"New 2021 -BudgetSum",true,{"$f":"IF(G7104<>\"\",INDIRECT(\"'\"&G7104&\"'!\"&H7104),\"\")","v":-115000},"BudgetSum 2-4","E117"]
[7100,{"$f":"'BudgetSum 2-4'!E118","v":{"v":3815750,"d":"3,815,750 "}},{"v":-3808650,"d":"(3,808,650)"},"New 2021 -BudgetSum",true,{"$f":"IF(G7105<>\"\",INDIRECT(\"'\"&G7105&\"'!\"&H7105),\"\")","v":3815750},"BudgetSum 2-4","E118"]
[7101,{"$f":"'BudgetSum 2-4'!F91","v":{"v":969,"d":"969 "}},{"v":6132,"d":"6,132 "},"New 2021 -BudgetSum",{"$f":"F7106=B7106","v":true},{"$f":"IF(G7106<>\"\",INDIRECT(\"'\"&G7106&\"'!\"&H7106),\"\")","v":969},"BudgetSum 2-4","F91"]
[7102,{"$f":"'BudgetSum 2-4'!F93","v":{"v":25000,"d":"25,000 "}},{"v":-17898,"d":"(17,898)"},"New 2021 -BudgetSum",true,{"$f":"IF(G7107<>\"\",INDIRECT(\"'\"&G7107&\"'!\"&H7107),\"\")","v":25000},"BudgetSum 2-4","F93"]
[7103,{"$f":"'BudgetSum 2-4'!F94","v":{"v":0,"d":"0 "}},{"$f":"A7108-B7108","v":{"v":7103,"d":"7,103 "}},"New 2021 -BudgetSum",true,{"$f":"IF(G7108<>\"\",INDIRECT(\"'\"&G7108&\"'!\"&H7108),\"\")","v":0},"BudgetSum 2-4","F94"]
[7104,{"$f":"'BudgetSum 2-4'!F95","v":{"v":485000,"d":"485,000 "}},{"v":-477896,"d":"(477,896)"},"New 2021 -BudgetSum",true,{"$f":"IF(G7109<>\"\",INDIRECT(\"'\"&G7109&\"'!\"&H7109),\"\")","v":485000},"BudgetSum 2-4","F95"]
[7105,{"$f":"'BudgetSum 2-4'!F96","v":{"v":0,"d":"0 "}},{"v":7105,"d":"7,105 "},"New 2021 -BudgetSum",true,{"$f":"IF(G7110<>\"\",INDIRECT(\"'\"&G7110&\"'!\"&H7110),\"\")","v":0},"BudgetSum 2-4","F96"]
[7106,{"$f":"'BudgetSum 2-4'!F97","v":{"v":510000,"d":"510,000 "}},{"v":-502894,"d":"(502,894)"},"New 2021 -BudgetSum",true,{"$f":"IF(G7111<>\"\",INDIRECT(\"'\"&G7111&\"'!\"&H7111),\"\")","v":510000},"BudgetSum 2-4","F97"]
[7107,{"$f":"'BudgetSum 2-4'!F98","v":{"v":0,"d":"0 "}},{"v":7107,"d":"7,107 "},"New 2021 -BudgetSum",true,{"$f":"IF(G7112<>\"\",INDIRECT(\"'\"&G7112&\"'!\"&H7112),\"\")","v":0},"BudgetSum 2-4","F98"]
[7108,{"$f":"'BudgetSum 2-4'!F99","v":{"v":510000,"d":"510,000 "}},{"v":-502892,"d":"(502,892)"},"New 2021 -BudgetSum",true,{"$f":"IF(G7113<>\"\",INDIRECT(\"'\"&G7113&\"'!\"&H7113),\"\")","v":510000},"BudgetSum 2-4","F99"]
[7109,{"$f":"'BudgetSum 2-4'!F102","v":{"v":450000,"d":"450,000 "}},{"v":-442891,"d":"(442,891)"},"New 2021 -BudgetSum",true,{"$f":"IF(G7114<>\"\",INDIRECT(\"'\"&G7114&\"'!\"&H7114),\"\")","v":450000},"BudgetSum 2-4","F102"]
[7110,{"$f":"'BudgetSum 2-4'!F103","v":{"v":0,"d":"0 "}},{"v":7110,"d":"7,110 "},"New 2021 -BudgetSum",true,{"$f":"IF(G7115<>\"\",INDIRECT(\"'\"&G7115&\"'!\"&H7115),\"\")","v":0},"BudgetSum 2-4","F103"]
[7111,{"$f":"'BudgetSum 2-4'!F104","v":{"v":0,"d":"0 "}},{"v":7111,"d":"7,111 "},"New 2021 -BudgetSum",true,{"$f":"IF(G7116<>\"\",INDIRECT(\"'\"&G7116&\"'!\"&H7116),\"\")","v":0},"BudgetSum 2-4","F104"]
[7112,{"$f":"'BudgetSum 2-4'!F105","v":{"v":0,"d":"0 "}},{"v":7112,"d":"7,112 "},"New 2021 -BudgetSum",true,{"$f":"IF(G7117<>\"\",INDIRECT(\"'\"&G7117&\"'!\"&H7117),\"\")","v":0},"BudgetSum 2-4","F105"]
[7113,{"$f":"'BudgetSum 2-4'!F106","v":{"v":0,"d":"0 "}},{"v":7113,"d":"7,113 "},"New 2021 -BudgetSum",true,{"$f":"IF(G7118<>\"\",INDIRECT(\"'\"&G7118&\"'!\"&H7118),\"\")","v":0},"BudgetSum 2-4","F106"]
[7114,{"$f":"'BudgetSum 2-4'!F107","v":{"v":450000,"d":"450,000 "}},{"v":-442886,"d":"(442,886)"},"New 2021 -BudgetSum",true,{"$f":"IF(G7119<>\"\",INDIRECT(\"'\"&G7119&\"'!\"&H7119),\"\")","v":450000},"BudgetSum 2-4","F107"]
[7115,{"$f":"'BudgetSum 2-4'!F108","v":{"v":0,"d":"0 "}},{"v":7115,"d":"7,115 "},"New 2021 -BudgetSum",true,{"$f":"IF(G7120<>\"\",INDIRECT(\"'\"&G7120&\"'!\"&H7120),\"\")","v":0},"BudgetSum 2-4","F108"]
[7116,{"$f":"'BudgetSum 2-4'!F109","v":{"v":450000,"d":"450,000 "}},{"v":-442884,"d":"(442,884)"},"New 2021 -BudgetSum",true,{"$f":"IF(G7121<>\"\",INDIRECT(\"'\"&G7121&\"'!\"&H7121),\"\")","v":450000},"BudgetSum 2-4","F109"]
[7117,{"$f":"'BudgetSum 2-4'!F110","v":{"v":60000,"d":"60,000 "}},{"v":-52883,"d":"(52,883)"},"New 2021 -BudgetSum",true,{"$f":"IF(G7122<>\"\",INDIRECT(\"'\"&G7122&\"'!\"&H7122),\"\")","v":60000},"BudgetSum 2-4","F110"]
[7118,{"$f":"'BudgetSum 2-4'!F113","v":{"v":0,"d":"0 "}},{"v":7118,"d":"7,118 "},"New 2021 -BudgetSum",true,{"$f":"IF(G7123<>\"\",INDIRECT(\"'\"&G7123&\"'!\"&H7123),\"\")","v":0},"BudgetSum 2-4","F113"]
[7119,{"$f":"'BudgetSum 2-4'!F116","v":{"v":0,"d":"0 "}},{"v":7119,"d":"7,119 "},"New 2021 -BudgetSum",true,{"$f":"IF(G7124<>\"\",INDIRECT(\"'\"&G7124&\"'!\"&H7124),\"\")","v":0},"BudgetSum 2-4","F116"]
[7120,{"$f":"'BudgetSum 2-4'!F117","v":{"v":0,"d":"0 "}},{"v":7120,"d":"7,120 "},"New 2021 -BudgetSum",true,{"$f":"IF(G7125<>\"\",INDIRECT(\"'\"&G7125&\"'!\"&H7125),\"\")","v":0},"BudgetSum 2-4","F117"]
[7121,{"$f":"'BudgetSum 2-4'!F118","v":{"v":60969,"d":"60,969 "}},{"v":-53848,"d":"(53,848)"},"New 2021 -BudgetSum",true,{"$f":"IF(G7126<>\"\",INDIRECT(\"'\"&G7126&\"'!\"&H7126),\"\")","v":60969},"BudgetSum 2-4","F118"]
[7122,{"$f":"'BudgetSum 2-4'!G91","v":{"v":12048,"d":"12,048 "}},{"v":-4926,"d":"(4,926)"},"New 2021 -BudgetSum",true,{"$f":"IF(G7127<>\"\",INDIRECT(\"'\"&G7127&\"'!\"&H7127),\"\")","v":12048},"BudgetSum 2-4","G91"]
[7123,{"$f":"'BudgetSum 2-4'!G93","v":{"v":390000,"d":"390,000 "}},{"v":-382877,"d":"(382,877)"},"New 2021 -BudgetSum",true,{"$f":"IF(G7128<>\"\",INDIRECT(\"'\"&G7128&\"'!\"&H7128),\"\")","v":390000},"BudgetSum 2-4","G93"]
[7124,{"$f":"'BudgetSum 2-4'!G94","v":{"v":0,"d":"0 "}},{"v":7124,"d":"7,124 "},"New 2021 -BudgetSum",true,{"$f":"IF(G7129<>\"\",INDIRECT(\"'\"&G7129&\"'!\"&H7129),\"\")","v":0},"BudgetSum 2-4","G94"]
[7125,{"$f":"'BudgetSum 2-4'!G95","v":{"v":215000,"d":"215,000 "}},{"v":-207875,"d":"(207,875)"},"New 2021 -BudgetSum",true,{"$f":"IF(G7130<>\"\",INDIRECT(\"'\"&G7130&\"'!\"&H7130),\"\")","v":215000},"BudgetSum 2-4","G95"]
[7126,{"$f":"'BudgetSum 2-4'!G96","v":{"v":0,"d":"0 "}},{"v":7126,"d":"7,126 "},"New 2021 -BudgetSum",true,{"$f":"IF(G7131<>\"\",INDIRECT(\"'\"&G7131&\"'!\"&H7131),\"\")","v":0},"BudgetSum 2-4","G96"]
[7127,{"$f":"'BudgetSum 2-4'!G97","v":{"v":605000,"d":"605,000 "}},{"v":-597873,"d":"(597,873)"},"New 2021 -BudgetSum",true,{"$f":"IF(G7132<>\"\",INDIRECT(\"'\"&G7132&\"'!\"&H7132),\"\")","v":605000},"BudgetSum 2-4","G97"]
[7128,{"$f":"'BudgetSum 2-4'!G98","v":{"v":0,"d":"0 "}},{"v":7128,"d":"7,128 "},"New 2021 -BudgetSum",true,{"$f":"IF(G7133<>\"\",INDIRECT(\"'\"&G7133&\"'!\"&H7133),\"\")","v":0},"BudgetSum 2-4","G98"]
[7129,{"$f":"'BudgetSum 2-4'!G99","v":{"v":605000,"d":"605,000 "}},{"v":-597871,"d":"(597,871)"},"New 2021 -BudgetSum",true,{"$f":"IF(G7134<>\"\",INDIRECT(\"'\"&G7134&\"'!\"&H7134),\"\")","v":605000},"BudgetSum 2-4","G99"]
[7130,{"$f":"'BudgetSum 2-4'!G101","v":{"v":212500,"d":"212,500 "}},{"v":-205370,"d":"(205,370)"},"New 2021 -BudgetSum",true,{"$f":"IF(G7135<>\"\",INDIRECT(\"'\"&G7135&\"'!\"&H7135),\"\")","v":212500},"BudgetSum 2-4","G101"]
[7131,{"$f":"'BudgetSum 2-4'!G102","v":{"v":366300,"d":"366,300 "}},{"v":-359169,"d":"(359,169)"},"New 2021 -BudgetSum",true,{"$f":"IF(G7136<>\"\",INDIRECT(\"'\"&G7136&\"'!\"&H7136),\"\")","v":366300},"BudgetSum 2-4","G102"]
[7132,{"$f":"'BudgetSum 2-4'!G103","v":{"v":22100,"d":"22,100 "}},{"v":-14968,"d":"(14,968)"},"New 2021 -BudgetSum",true,{"$f":"IF(G7137<>\"\",INDIRECT(\"'\"&G7137&\"'!\"&H7137),\"\")","v":22100},"BudgetSum 2-4","G103"]
[7133,{"$f":"'BudgetSum 2-4'!G104","v":{"v":0,"d":"0 "}},{"v":7133,"d":"7,133 "},"New 2021 -BudgetSum",true,{"$f":"IF(G7138<>\"\",INDIRECT(\"'\"&G7138&\"'!\"&H7138),\"\")","v":0},"BudgetSum 2-4","G104"]
[7134,{"$f":"'BudgetSum 2-4'!G105","v":{"v":0,"d":"0 "}},{"v":7134,"d":"7,134 "},"New 2021 -BudgetSum",true,{"$f":"IF(G7139<>\"\",INDIRECT(\"'\"&G7139&\"'!\"&H7139),\"\")","v":0},"BudgetSum 2-4","G105"]
[7135,{"$f":"'BudgetSum 2-4'!G106","v":{"v":0,"d":"0 "}},{"v":7135,"d":"7,135 "},"New 2021 -BudgetSum",true,{"$f":"IF(G7140<>\"\",INDIRECT(\"'\"&G7140&\"'!\"&H7140),\"\")","v":0},"BudgetSum 2-4","G106"]
[7136,{"$f":"'BudgetSum 2-4'!G107","v":{"v":600900,"d":"600,900 "}},{"v":-593764,"d":"(593,764)"},"New 2021 -BudgetSum",true,{"$f":"IF(G7141<>\"\",INDIRECT(\"'\"&G7141&\"'!\"&H7141),\"\")","v":600900},"BudgetSum 2-4","G107"]
[7137,{"$f":"'BudgetSum 2-4'!G108","v":{"v":0,"d":"0 "}},{"v":7137,"d":"7,137 "},"New 2021 -BudgetSum",true,{"$f":"IF(G7142<>\"\",INDIRECT(\"'\"&G7142&\"'!\"&H7142),\"\")","v":0},"BudgetSum 2-4","G108"]
[7138,{"$f":"'BudgetSum 2-4'!G109","v":{"v":600900,"d":"600,900 "}},{"v":-593762,"d":"(593,762)"},"New 2021 -BudgetSum",true,{"$f":"IF(G7143<>\"\",INDIRECT(\"'\"&G7143&\"'!\"&H7143),\"\")","v":600900},"BudgetSum 2-4","G109"]
[7139,{"$f":"'BudgetSum 2-4'!G110","v":{"v":4100,"d":"4,100 "}},{"v":3039,"d":"3,039 "},"New 2021 -BudgetSum",true,{"$f":"IF(G7144<>\"\",INDIRECT(\"'\"&G7144&\"'!\"&H7144),\"\")","v":4100},"BudgetSum 2-4","G110"]
[7140,{"$f":"'BudgetSum 2-4'!G113","v":{"v":0,"d":"0 "}},{"v":7140,"d":"7,140 "},"New 2021 -BudgetSum",true,{"$f":"IF(G7145<>\"\",INDIRECT(\"'\"&G7145&\"'!\"&H7145),\"\")","v":0},"BudgetSum 2-4","G113"]
[7141,{"$f":"'BudgetSum 2-4'!G116","v":{"v":0,"d":"0 "}},{"v":7141,"d":"7,141 "},"New 2021 -BudgetSum",true,{"$f":"IF(G7146<>\"\",INDIRECT(\"'\"&G7146&\"'!\"&H7146),\"\")","v":0},"BudgetSum 2-4","G116"]
[7142,{"$f":"'BudgetSum 2-4'!G117","v":{"v":0,"d":"0 "}},{"v":7142,"d":"7,142 "},"New 2021 -BudgetSum",true,{"$f":"IF(G7147<>\"\",INDIRECT(\"'\"&G7147&\"'!\"&H7147),\"\")","v":0},"BudgetSum 2-4","G117"]
[7143,{"$f":"'BudgetSum 2-4'!G118","v":{"v":16148,"d":"16,148 "}},{"v":-9005,"d":"(9,005)"},"New 2021 -BudgetSum",true,{"$f":"IF(G7148<>\"\",INDIRECT(\"'\"&G7148&\"'!\"&H7148),\"\")","v":16148},"BudgetSum 2-4","G118"]
[7144,{"$f":"'BudgetSum 2-4'!H91","v":{"v":0,"d":"0 "}},{"v":7144,"d":"7,144 "},"New 2021 -BudgetSum",true,{"$f":"IF(G7149<>\"\",INDIRECT(\"'\"&G7149&\"'!\"&H7149),\"\")","v":0},"BudgetSum 2-4","H91"]
[7145,{"$f":"'BudgetSum 2-4'!H93","v":{"v":0,"d":"0 "}},{"v":7145,"d":"7,145 "},"New 2021 -BudgetSum",true,{"$f":"IF(G7150<>\"\",INDIRECT(\"'\"&G7150&\"'!\"&H7150),\"\")","v":0},"BudgetSum 2-4","H93"]
[7146,{"$f":"'BudgetSum 2-4'!H95","v":{"v":0,"d":"0 "}},{"v":7146,"d":"7,146 "},"New 2021 -BudgetSum",true,{"$f":"IF(G7151<>\"\",INDIRECT(\"'\"&G7151&\"'!\"&H7151),\"\")","v":0},"BudgetSum 2-4","H95"]
[7147,{"$f":"'BudgetSum 2-4'!H96","v":{"v":203000,"d":"203,000 "}},{"v":-195853,"d":"(195,853)"},"New 2021 -BudgetSum",true,{"$f":"IF(G7152<>\"\",INDIRECT(\"'\"&G7152&\"'!\"&H7152),\"\")","v":203000},"BudgetSum 2-4","H96"]
[7148,{"$f":"'BudgetSum 2-4'!H97","v":{"v":203000,"d":"203,000 "}},{"v":-195852,"d":"(195,852)"},"New 2021 -BudgetSum",true,{"$f":"IF(G7153<>\"\",INDIRECT(\"'\"&G7153&\"'!\"&H7153),\"\")","v":203000},"BudgetSum 2-4","H97"]
[7149,{"$f":"'BudgetSum 2-4'!H98","v":{"v":0,"d":"0 "}},{"v":7149,"d":"7,149 "},"New 2021 -BudgetSum",true,{"$f":"IF(G7154<>\"\",INDIRECT(\"'\"&G7154&\"'!\"&H7154),\"\")","v":0},"BudgetSum 2-4","H98"]
[7150,{"$f":"'BudgetSum 2-4'!H99","v":{"v":203000,"d":"203,000 "}},{"v":-195850,"d":"(195,850)"},"New 2021 -BudgetSum",true,{"$f":"IF(G7155<>\"\",INDIRECT(\"'\"&G7155&\"'!\"&H7155),\"\")","v":203000},"BudgetSum 2-4","H99"]
[7151,{"$f":"'BudgetSum 2-4'!H102","v":{"v":203000,"d":"203,000 "}},{"v":-195849,"d":"(195,849)"},"New 2021 -BudgetSum",true,{"$f":"IF(G7156<>\"\",INDIRECT(\"'\"&G7156&\"'!\"&H7156),\"\")","v":203000},"BudgetSum 2-4","H102"]
[7152,{"$f":"'BudgetSum 2-4'!H104","v":{"v":0,"d":"0 "}},{"v":7152,"d":"7,152 "},"New 2021 -BudgetSum",true,{"$f":"IF(G7157<>\"\",INDIRECT(\"'\"&G7157&\"'!\"&H7157),\"\")","v":0},"BudgetSum 2-4","H104"]
[7153,{"$f":"'BudgetSum 2-4'!H106","v":{"v":0,"d":"0 "}},{"v":7153,"d":"7,153 "},"New 2021 -BudgetSum",true,{"$f":"IF(G7158<>\"\",INDIRECT(\"'\"&G7158&\"'!\"&H7158),\"\")","v":0},"BudgetSum 2-4","H106"]
[7154,{"$f":"'BudgetSum 2-4'!H107","v":{"v":203000,"d":"203,000 "}},{"v":-195846,"d":"(195,846)"},"New 2021 -BudgetSum",true,{"$f":"IF(G7159<>\"\",INDIRECT(\"'\"&G7159&\"'!\"&H7159),\"\")","v":203000},"BudgetSum 2-4","H107"]
[7155,{"$f":"'BudgetSum 2-4'!H108","v":{"v":0,"d":"0 "}},{"v":7155,"d":"7,155 "},"New 2021 -BudgetSum",true,{"$f":"IF(G7160<>\"\",INDIRECT(\"'\"&G7160&\"'!\"&H7160),\"\")","v":0},"BudgetSum 2-4","H108"]
[7156,{"$f":"'BudgetSum 2-4'!H109","v":{"v":203000,"d":"203,000 "}},{"v":-195844,"d":"(195,844)"},"New 2021 -BudgetSum",true,{"$f":"IF(G7161<>\"\",INDIRECT(\"'\"&G7161&\"'!\"&H7161),\"\")","v":203000},"BudgetSum 2-4","H109"]
[7157,{"$f":"'BudgetSum 2-4'!H110","v":{"v":0,"d":"0 "}},{"v":7157,"d":"7,157 "},"New 2021 -BudgetSum",true,{"$f":"IF(G7162<>\"\",INDIRECT(\"'\"&G7162&\"'!\"&H7162),\"\")","v":0},"BudgetSum 2-4","H110"]
[7158,{"$f":"'BudgetSum 2-4'!H113","v":{"v":0,"d":"0 "}},{"v":7158,"d":"7,158 "},"New 2021 -BudgetSum",true,{"$f":"IF(G7163<>\"\",INDIRECT(\"'\"&G7163&\"'!\"&H7163),\"\")","v":0},"BudgetSum 2-4","H113"]
[7159,{"$f":"'BudgetSum 2-4'!H116","v":{"v":0,"d":"0 "}},{"v":7159,"d":"7,159 "},"New 2021 -BudgetSum",true,{"$f":"IF(G7164<>\"\",INDIRECT(\"'\"&G7164&\"'!\"&H7164),\"\")","v":0},"BudgetSum 2-4","H116"]
[7160,{"$f":"'BudgetSum 2-4'!H117","v":{"v":0,"d":"0 "}},{"v":7160,"d":"7,160 "},"New 2021 -BudgetSum",true,{"$f":"IF(G7165<>\"\",INDIRECT(\"'\"&G7165&\"'!\"&H7165),\"\")","v":0},"BudgetSum 2-4","H117"]
[7161,{"$f":"'BudgetSum 2-4'!H118","v":{"v":0,"d":"0 "}},{"v":7161,"d":"7,161 "},"New 2021 -BudgetSum",true,{"$f":"IF(G7166<>\"\",INDIRECT(\"'\"&G7166&\"'!\"&H7166),\"\")","v":0},"BudgetSum 2-4","H118"]
[7162,{"$f":"'BudgetSum 2-4'!I91","v":{"v":5004949,"d":"5,004,949 "}},{"v":-4997787,"d":"(4,997,787)"},"New 2021 -BudgetSum",true,{"$f":"IF(G7167<>\"\",INDIRECT(\"'\"&G7167&\"'!\"&H7167),\"\")","v":5004949},"BudgetSum 2-4","I91"]
[7163,{"$f":"'BudgetSum 2-4'!I93","v":{"v":27000,"d":"27,000 "}},{"v":-19837,"d":"(19,837)"},"New 2021 -BudgetSum",true,{"$f":"IF(G7168<>\"\",INDIRECT(\"'\"&G7168&\"'!\"&H7168),\"\")","v":27000},"BudgetSum 2-4","I93"]
[7164,{"$f":"'BudgetSum 2-4'!I95","v":{"v":0,"d":"0 "}},{"v":7164,"d":"7,164 "},"New 2021 -BudgetSum",true,{"$f":"IF(G7169<>\"\",INDIRECT(\"'\"&G7169&\"'!\"&H7169),\"\")","v":0},"BudgetSum 2-4","I95"]
[7165,{"$f":"'BudgetSum 2-4'!I96","v":{"v":0,"d":"0 "}},{"v":7165,"d":"7,165 "},"New 2021 -BudgetSum",{"$f":"F7170=B7170","v":true},{"$f":"IF(G7170<>\"\",INDIRECT(\"'\"&G7170&\"'!\"&H7170),\"\")","v":0},"BudgetSum 2-4","I96"]
[7166,{"$f":"'BudgetSum 2-4'!I97","v":{"v":27000,"d":"27,000 "}},{"v":-19834,"d":"(19,834)"},"New 2021 -BudgetSum",true,{"$f":"IF(G7171<>\"\",INDIRECT(\"'\"&G7171&\"'!\"&H7171),\"\")","v":27000},"BudgetSum 2-4","I97"]
[7167,{"$f":"'BudgetSum 2-4'!I99","v":{"v":27000,"d":"27,000 "}},{"$f":"A7172-B7172","v":{"v":-19833,"d":"(19,833)"}},"New 2021 -BudgetSum",true,{"$f":"IF(G7172<>\"\",INDIRECT(\"'\"&G7172&\"'!\"&H7172),\"\")","v":27000},"BudgetSum 2-4","I99"]
[7168,{"$f":"'BudgetSum 2-4'!I110","v":{"v":27000,"d":"27,000 "}},{"v":-19832,"d":"(19,832)"},"New 2021 -BudgetSum",true,{"$f":"IF(G7173<>\"\",INDIRECT(\"'\"&G7173&\"'!\"&H7173),\"\")","v":27000},"BudgetSum 2-4","I110"]
[7169,{"$f":"'BudgetSum 2-4'!I113","v":{"v":0,"d":"0 "}},{"v":7169,"d":"7,169 "},"New 2021 -BudgetSum",true,{"$f":"IF(G7174<>\"\",INDIRECT(\"'\"&G7174&\"'!\"&H7174),\"\")","v":0},"BudgetSum 2-4","I113"]
[7170,{"$f":"'BudgetSum 2-4'!I116","v":{"v":0,"d":"0 "}},{"v":7170,"d":"7,170 "},"New 2021 -BudgetSum",true,{"$f":"IF(G7175<>\"\",INDIRECT(\"'\"&G7175&\"'!\"&H7175),\"\")","v":0},"BudgetSum 2-4","I116"]
[7171,{"$f":"'BudgetSum 2-4'!I117","v":{"v":0,"d":"0 "}},{"v":7171,"d":"7,171 "},"New 2021 -BudgetSum",true,{"$f":"IF(G7176<>\"\",INDIRECT(\"'\"&G7176&\"'!\"&H7176),\"\")","v":0},"BudgetSum 2-4","I117"]
[7172,{"$f":"'BudgetSum 2-4'!I118","v":{"v":5031949,"d":"5,031,949 "}},{"v":-5024777,"d":"(5,024,777)"},"New 2021 -BudgetSum",true,{"$f":"IF(G7177<>\"\",INDIRECT(\"'\"&G7177&\"'!\"&H7177),\"\")","v":5031949},"BudgetSum 2-4","I118"]
[7173,{"$f":"'BudgetSum 2-4'!J91","v":{"v":0,"d":"0 "}},{"v":7173,"d":"7,173 "},"New 2021 -BudgetSum",true,{"$f":"IF(G7178<>\"\",INDIRECT(\"'\"&G7178&\"'!\"&H7178),\"\")","v":0},"BudgetSum 2-4","J91"]
[7174,{"$f":"'BudgetSum 2-4'!J93","v":{"v":21000,"d":"21,000 "}},{"v":-13826,"d":"(13,826)"},"New 2021 -BudgetSum",true,{"$f":"IF(G7179<>\"\",INDIRECT(\"'\"&G7179&\"'!\"&H7179),\"\")","v":21000},"BudgetSum 2-4","J93"]
[7175,{"$f":"'BudgetSum 2-4'!J95","v":{"v":200000,"d":"200,000 "}},{"v":-192825,"d":"(192,825)"},"New 2021 -BudgetSum",true,{"$f":"IF(G7180<>\"\",INDIRECT(\"'\"&G7180&\"'!\"&H7180),\"\")","v":200000},"BudgetSum 2-4","J95"]
[7176,{"$f":"'BudgetSum 2-4'!J96","v":{"v":0,"d":"0 "}},{"v":7176,"d":"7,176 "},"New 2021 -BudgetSum",true,{"$f":"IF(G7181<>\"\",INDIRECT(\"'\"&G7181&\"'!\"&H7181),\"\")","v":0},"BudgetSum 2-4","J96"]
[7177,{"$f":"'BudgetSum 2-4'!J97","v":{"v":221000,"d":"221,000 "}},{"v":-213823,"d":"(213,823)"},"New 2021 -BudgetSum",true,{"$f":"IF(G7182<>\"\",INDIRECT(\"'\"&G7182&\"'!\"&H7182),\"\")","v":221000},"BudgetSum 2-4","J97"]
[7178,{"$f":"'BudgetSum 2-4'!J98","v":{"v":0,"d":"0 "}},{"v":7178,"d":"7,178 "},"New 2021 -BudgetSum",true,{"$f":"IF(G7183<>\"\",INDIRECT(\"'\"&G7183&\"'!\"&H7183),\"\")","v":0},"BudgetSum 2-4","J98"]
[7179,{"$f":"'BudgetSum 2-4'!J99","v":{"v":221000,"d":"221,000 "}},{"v":-213821,"d":"(213,821)"},"New 2021 -BudgetSum",true,{"$f":"IF(G7184<>\"\",INDIRECT(\"'\"&G7184&\"'!\"&H7184),\"\")","v":221000},"BudgetSum 2-4","J99"]
[7180,{"$f":"'BudgetSum 2-4'!J101","v":{"v":0,"d":"0 "}},{"v":7180,"d":"7,180 "},"New 2021 -BudgetSum",true,{"$f":"IF(G7185<>\"\",INDIRECT(\"'\"&G7185&\"'!\"&H7185),\"\")","v":0},"BudgetSum 2-4","J101"]
[7181,{"$f":"'BudgetSum 2-4'!J102","v":{"v":15000,"d":"15,000 "}},{"v":-7819,"d":"(7,819)"},"New 2021 -BudgetSum",true,{"$f":"IF(G7186<>\"\",INDIRECT(\"'\"&G7186&\"'!\"&H7186),\"\")","v":15000},"BudgetSum 2-4","J102"]
[7182,{"$f":"'BudgetSum 2-4'!J103","v":{"v":0,"d":"0 "}},{"v":7182,"d":"7,182 "},"New 2021 -BudgetSum",true,{"$f":"IF(G7187<>\"\",INDIRECT(\"'\"&G7187&\"'!\"&H7187),\"\")","v":0},"BudgetSum 2-4","J103"]
[7183,{"$f":"'BudgetSum 2-4'!J104","v":{"v":0,"d":"0 "}},{"v":7183,"d":"7,183 "},"New 2021 -BudgetSum",true,{"$f":"IF(G7188<>\"\",INDIRECT(\"'\"&G7188&\"'!\"&H7188),\"\")","v":0},"BudgetSum 2-4","J104"]
[7184,{"$f":"'BudgetSum 2-4'!J107","v":{"v":15000,"d":"15,000 "}},{"v":-7816,"d":"(7,816)"},"New 2021 -BudgetSum",true,{"$f":"IF(G7189<>\"\",INDIRECT(\"'\"&G7189&\"'!\"&H7189),\"\")","v":15000},"BudgetSum 2-4","J107"]
[7185,{"$f":"'BudgetSum 2-4'!J108","v":{"v":0,"d":"0 "}},{"v":7185,"d":"7,185 "},"New 2021 -BudgetSum",true,{"$f":"IF(G7190<>\"\",INDIRECT(\"'\"&G7190&\"'!\"&H7190),\"\")","v":0},"BudgetSum 2-4","J108"]
[7186,{"$f":"'BudgetSum 2-4'!J109","v":{"v":15000,"d":"15,000 "}},{"v":-7814,"d":"(7,814)"},"New 2021 -BudgetSum",true,{"$f":"IF(G7191<>\"\",INDIRECT(\"'\"&G7191&\"'!\"&H7191),\"\")","v":15000},"BudgetSum 2-4","J109"]
[7187,{"$f":"'BudgetSum 2-4'!J110","v":{"v":206000,"d":"206,000 "}},{"v":-198813,"d":"(198,813)"},"New 2021 -BudgetSum",true,{"$f":"IF(G7192<>\"\",INDIRECT(\"'\"&G7192&\"'!\"&H7192),\"\")","v":206000},"BudgetSum 2-4","J110"]
[7188,{"$f":"'BudgetSum 2-4'!J113","v":{"v":0,"d":"0 "}},{"v":7188,"d":"7,188 "},"New 2021 -BudgetSum",true,{"$f":"IF(G7193<>\"\",INDIRECT(\"'\"&G7193&\"'!\"&H7193),\"\")","v":0},"BudgetSum 2-4","J113"]
[7189,{"$f":"'BudgetSum 2-4'!J116","v":{"v":0,"d":"0 "}},{"v":7189,"d":"7,189 "},"New 2021 -BudgetSum",true,{"$f":"IF(G7194<>\"\",INDIRECT(\"'\"&G7194&\"'!\"&H7194),\"\")","v":0},"BudgetSum 2-4","J116"]
[7190,{"$f":"'BudgetSum 2-4'!J117","v":{"v":0,"d":"0 "}},{"v":7190,"d":"7,190 "},"New 2021 -BudgetSum",true,{"$f":"IF(G7195<>\"\",INDIRECT(\"'\"&G7195&\"'!\"&H7195),\"\")","v":0},"BudgetSum 2-4","J117"]
[7191,{"$f":"'BudgetSum 2-4'!J118","v":{"v":206000,"d":"206,000 "}},{"v":-198809,"d":"(198,809)"},"New 2021 -BudgetSum",true,{"$f":"IF(G7196<>\"\",INDIRECT(\"'\"&G7196&\"'!\"&H7196),\"\")","v":206000},"BudgetSum 2-4","J118"]
[7192,{"$f":"'BudgetSum 2-4'!K91","v":{"v":0,"d":"0 "}},{"v":7192,"d":"7,192 "},"New 2021 -BudgetSum",true,{"$f":"IF(G7197<>\"\",INDIRECT(\"'\"&G7197&\"'!\"&H7197),\"\")","v":0},"BudgetSum 2-4","K91"]
[7193,{"$f":"'BudgetSum 2-4'!K93","v":{"v":28000,"d":"28,000 "}},{"v":-20807,"d":"(20,807)"},"New 2021 -BudgetSum",true,{"$f":"IF(G7198<>\"\",INDIRECT(\"'\"&G7198&\"'!\"&H7198),\"\")","v":28000},"BudgetSum 2-4","K93"]
[7194,{"$f":"'BudgetSum 2-4'!K95","v":{"v":150000,"d":"150,000 "}},{"v":-142806,"d":"(142,806)"},"New 2021 -BudgetSum",true,{"$f":"IF(G7199<>\"\",INDIRECT(\"'\"&G7199&\"'!\"&H7199),\"\")","v":150000},"BudgetSum 2-4","K95"]
[7195,{"$f":"'BudgetSum 2-4'!K96","v":{"v":0,"d":"0 "}},{"v":7195,"d":"7,195 "},"New 2021 -BudgetSum",true,{"$f":"IF(G7200<>\"\",INDIRECT(\"'\"&G7200&\"'!\"&H7200),\"\")","v":0},"BudgetSum 2-4","K96"]
[7196,{"$f":"'BudgetSum 2-4'!K97","v":{"v":178000,"d":"178,000 "}},{"v":-170804,"d":"(170,804)"},"New 2021 -BudgetSum",true,{"$f":"IF(G7201<>\"\",INDIRECT(\"'\"&G7201&\"'!\"&H7201),\"\")","v":178000},"BudgetSum 2-4","K97"]
[7197,{"$f":"'BudgetSum 2-4'!K98","v":{"v":0,"d":"0 "}},{"v":7197,"d":"7,197 "},"New 2021 -BudgetSum",true,{"$f":"IF(G7202<>\"\",INDIRECT(\"'\"&G7202&\"'!\"&H7202),\"\")","v":0},"BudgetSum 2-4","K98"]
[7198,{"$f":"'BudgetSum 2-4'!K99","v":{"v":178000,"d":"178,000 "}},{"v":-170802,"d":"(170,802)"},"New 2021 -BudgetSum",true,{"$f":"IF(G7203<>\"\",INDIRECT(\"'\"&G7203&\"'!\"&H7203),\"\")","v":178000},"BudgetSum 2-4","K99"]
[7199,{"$f":"'BudgetSum 2-4'!K102","v":{"v":150000,"d":"150,000 "}},{"v":-142801,"d":"(142,801)"},"New 2021 -BudgetSum",true,{"$f":"IF(G7204<>\"\",INDIRECT(\"'\"&G7204&\"'!\"&H7204),\"\")","v":150000},"BudgetSum 2-4","K102"]
[7200,{"$f":"'BudgetSum 2-4'!K104","v":{"v":0,"d":"0 "}},{"v":7200,"d":"7,200 "},"New 2021 -BudgetSum",true,{"$f":"IF(G7205<>\"\",INDIRECT(\"'\"&G7205&\"'!\"&H7205),\"\")","v":0},"BudgetSum 2-4","K104"]
[7201,{"$f":"'BudgetSum 2-4'!K105","v":{"v":0,"d":"0 "}},{"v":7201,"d":"7,201 "},"New 2021 -BudgetSum",true,{"$f":"IF(G7206<>\"\",INDIRECT(\"'\"&G7206&\"'!\"&H7206),\"\")","v":0},"BudgetSum 2-4","K105"]
[7202,{"$f":"'BudgetSum 2-4'!K106","v":{"v":0,"d":"0 "}},{"v":7202,"d":"7,202 "},"New 2021 -BudgetSum",true,{"$f":"IF(G7207<>\"\",INDIRECT(\"'\"&G7207&\"'!\"&H7207),\"\")","v":0},"BudgetSum 2-4","K106"]
[7203,{"$f":"'BudgetSum 2-4'!K107","v":{"v":150000,"d":"150,000 "}},{"v":-142797,"d":"(142,797)"},"New 2021 -BudgetSum",true,{"$f":"IF(G7208<>\"\",INDIRECT(\"'\"&G7208&\"'!\"&H7208),\"\")","v":150000},"BudgetSum 2-4","K107"]
[7204,{"$f":"'BudgetSum 2-4'!K108","v":{"v":0,"d":"0 "}},{"v":7204,"d":"7,204 "},"New 2021 -BudgetSum",true,{"$f":"IF(G7209<>\"\",INDIRECT(\"'\"&G7209&\"'!\"&H7209),\"\")","v":0},"BudgetSum 2-4","K108"]
[7205,{"$f":"'BudgetSum 2-4'!K109","v":{"v":150000,"d":"150,000 "}},{"v":-142795,"d":"(142,795)"},"New 2021 -BudgetSum",true,{"$f":"IF(G7210<>\"\",INDIRECT(\"'\"&G7210&\"'!\"&H7210),\"\")","v":150000},"BudgetSum 2-4","K109"]
[7206,{"$f":"'BudgetSum 2-4'!K110","v":{"v":28000,"d":"28,000 "}},{"v":-20794,"d":"(20,794)"},"New 2021 -BudgetSum",true,{"$f":"IF(G7211<>\"\",INDIRECT(\"'\"&G7211&\"'!\"&H7211),\"\")","v":28000},"BudgetSum 2-4","K110"]
[7207,{"$f":"'BudgetSum 2-4'!K113","v":{"v":0,"d":"0 "}},{"v":7207,"d":"7,207 "},"New 2021 -BudgetSum",true,{"$f":"IF(G7212<>\"\",INDIRECT(\"'\"&G7212&\"'!\"&H7212),\"\")","v":0},"BudgetSum 2-4","K113"]
[7208,{"$f":"'BudgetSum 2-4'!K116","v":{"v":0,"d":"0 "}},{"v":7208,"d":"7,208 "},"New 2021 -BudgetSum",true,{"$f":"IF(G7213<>\"\",INDIRECT(\"'\"&G7213&\"'!\"&H7213),\"\")","v":0},"BudgetSum 2-4","K116"]
[7209,{"$f":"'BudgetSum 2-4'!K117","v":{"v":0,"d":"0 "}},{"v":7209,"d":"7,209 "},"New 2021 -BudgetSum",true,{"$f":"IF(G7214<>\"\",INDIRECT(\"'\"&G7214&\"'!\"&H7214),\"\")","v":0},"BudgetSum 2-4","K117"]
[7210,{"$f":"'BudgetSum 2-4'!K118","v":{"v":28000,"d":"28,000 "}},{"v":-20790,"d":"(20,790)"},"New 2021 -BudgetSum",true,{"$f":"IF(G7215<>\"\",INDIRECT(\"'\"&G7215&\"'!\"&H7215),\"\")","v":28000},"BudgetSum 2-4","K118"]
[7211,{"$f":"'CashSum 5'!C23","v":{"v":0,"d":"0 "}},{"v":7211,"d":"7,211 "},"New 2021-CashSum",true,{"$f":"IF(G7216<>\"\",INDIRECT(\"'\"&G7216&\"'!\"&H7216),\"\")","v":0},"CashSum 5","C23"]
[7212,{"$f":"'CashSum 5'!C24","v":{"v":0,"d":"0 "}},{"v":7212,"d":"7,212 "},"New 2021-CashSum",true,{"$f":"IF(G7217<>\"\",INDIRECT(\"'\"&G7217&\"'!\"&H7217),\"\")","v":0},"CashSum 5","C24"]
[7213,{"$f":"'CashSum 5'!C25","v":{"v":0,"d":"0 "}},{"v":7213,"d":"7,213 "},"New 2021-CashSum",true,{"$f":"IF(G7218<>\"\",INDIRECT(\"'\"&G7218&\"'!\"&H7218),\"\")","v":0},"CashSum 5","C25"]
[7214,{"$f":"'CashSum 5'!C26","v":{"v":0,"d":"0 "}},{"v":7214,"d":"7,214 "},"New 2021-CashSum",true,{"$f":"IF(G7219<>\"\",INDIRECT(\"'\"&G7219&\"'!\"&H7219),\"\")","v":0},"CashSum 5","C26"]
[7215,{"$f":"'CashSum 5'!C27","v":{"v":0,"d":"0 "}},{"v":7215,"d":"7,215 "},"New 2021-CashSum",true,{"$f":"IF(G7220<>\"\",INDIRECT(\"'\"&G7220&\"'!\"&H7220),\"\")","v":0},"CashSum 5","C27"]
[7216,{"$f":"'CashSum 5'!C29","v":{"v":7376498,"d":"7,376,498 "}},{"v":-7369282,"d":"(7,369,282)"},"New 2021-CashSum",true,{"$f":"IF(G7221<>\"\",INDIRECT(\"'\"&G7221&\"'!\"&H7221),\"\")","v":7376498},"CashSum 5","C29"]
[7217,{"$f":"'CashSum 5'!C30","v":{"v":12817900,"d":"12,817,900 "}},{"v":-12810683,"d":"(12,810,683)"},"New 2021-CashSum",true,{"$f":"IF(G7222<>\"\",INDIRECT(\"'\"&G7222&\"'!\"&H7222),\"\")","v":12817900},"CashSum 5","C30"]
[7218,{"$f":"'CashSum 5'!C31","v":{"v":0,"d":"0 "}},{"v":7218,"d":"7,218 "},"New 2021-CashSum",true,{"$f":"IF(G7223<>\"\",INDIRECT(\"'\"&G7223&\"'!\"&H7223),\"\")","v":0},"CashSum 5","C31"]
[7219,{"$f":"'CashSum 5'!C32","v":{"v":12817900,"d":"12,817,900 "}},{"v":-12810681,"d":"(12,810,681)"},"New 2021-CashSum",true,{"$f":"IF(G7224<>\"\",INDIRECT(\"'\"&G7224&\"'!\"&H7224),\"\")","v":12817900},"CashSum 5","C32"]
[7220,{"$f":"'CashSum 5'!C33","v":{"v":20194398,"d":"20,194,398 "}},{"v":-20187178,"d":"(20,187,178)"},"New 2021-CashSum",true,{"$f":"IF(G7225<>\"\",INDIRECT(\"'\"&G7225&\"'!\"&H7225),\"\")","v":20194398},"CashSum 5","C33"]
[7221,{"$f":"'CashSum 5'!C34","v":{"v":13733956,"d":"13,733,956 "}},{"v":-13726735,"d":"(13,726,735)"},"New 2021-CashSum",true,{"$f":"IF(G7226<>\"\",INDIRECT(\"'\"&G7226&\"'!\"&H7226),\"\")","v":13733956},"CashSum 5","C34"]
[7222,{"$f":"'CashSum 5'!C35","v":{"v":0,"d":"0 "}},{"v":7222,"d":"7,222 "},"New 2021-CashSum",true,{"$f":"IF(G7227<>\"\",INDIRECT(\"'\"&G7227&\"'!\"&H7227),\"\")","v":0},"CashSum 5","C35"]
[7223,{"$f":"'CashSum 5'!C36","v":{"v":13733956,"d":"13,733,956 "}},{"v":-13726733,"d":"(13,726,733)"},"New 2021-CashSum",true,{"$f":"IF(G7228<>\"\",INDIRECT(\"'\"&G7228&\"'!\"&H7228),\"\")","v":13733956},"CashSum 5","C36"]
[7224,{"$f":"'CashSum 5'!C37","v":{"v":6460442,"d":"6,460,442 "}},{"v":-6453218,"d":"(6,453,218)"},"New 2021-CashSum",true,{"$f":"IF(G7229<>\"\",INDIRECT(\"'\"&G7229&\"'!\"&H7229),\"\")","v":6460442},"CashSum 5","C37"]
[7225,{"$f":"'CashSum 5'!D29","v":{"v":0,"d":"0 "}},{"v":7225,"d":"7,225 "},"New 2021-CashSum",true,{"$f":"IF(G7230<>\"\",INDIRECT(\"'\"&G7230&\"'!\"&H7230),\"\")","v":0},"CashSum 5","D29"]
[7226,{"$f":"'CashSum 5'!D30","v":{"v":1597000,"d":"1,597,000 "}},{"v":-1589774,"d":"(1,589,774)"},"New 2021-CashSum",true,{"$f":"IF(G7231<>\"\",INDIRECT(\"'\"&G7231&\"'!\"&H7231),\"\")","v":1597000},"CashSum 5","D30"]
[7227,{"$f":"'CashSum 5'!D31","v":{"v":0,"d":"0 "}},{"v":7227,"d":"7,227 "},"New 2021-CashSum",true,{"$f":"IF(G7232<>\"\",INDIRECT(\"'\"&G7232&\"'!\"&H7232),\"\")","v":0},"CashSum 5","D31"]
[7228,{"$f":"'CashSum 5'!D32","v":{"v":1597000,"d":"1,597,000 "}},{"v":-1589772,"d":"(1,589,772)"},"New 2021-CashSum",true,{"$f":"IF(G7233<>\"\",INDIRECT(\"'\"&G7233&\"'!\"&H7233),\"\")","v":1597000},"CashSum 5","D32"]
[7229,{"$f":"'CashSum 5'!D33","v":{"v":1597000,"d":"1,597,000 "}},{"v":-1589771,"d":"(1,589,771)"},"New 2021-CashSum",{"$f":"F7234=B7234","v":true},{"$f":"IF(G7234<>\"\",INDIRECT(\"'\"&G7234&\"'!\"&H7234),\"\")","v":1597000},"CashSum 5","D33"]
[7230,{"$f":"'CashSum 5'!D34","v":{"v":1564500,"d":"1,564,500 "}},{"v":-1557270,"d":"(1,557,270)"},"New 2021-CashSum",true,{"$f":"IF(G7235<>\"\",INDIRECT(\"'\"&G7235&\"'!\"&H7235),\"\")","v":1564500},"CashSum 5","D34"]
[7231,{"$f":"'CashSum 5'!D35","v":{"v":0,"d":"0 "}},{"$f":"A7236-B7236","v":{"v":7231,"d":"7,231 "}},"New 2021-CashSum",true,{"$f":"IF(G7236<>\"\",INDIRECT(\"'\"&G7236&\"'!\"&H7236),\"\")","v":0},"CashSum 5","D35"]
[7232,{"$f":"'CashSum 5'!D36","v":{"v":1564500,"d":"1,564,500 "}},{"v":-1557268,"d":"(1,557,268)"},"New 2021-CashSum",true,{"$f":"IF(G7237<>\"\",INDIRECT(\"'\"&G7237&\"'!\"&H7237),\"\")","v":1564500},"CashSum 5","D36"]
[7233,{"$f":"'CashSum 5'!D37","v":{"v":32500,"d":"32,500 "}},{"v":-25267,"d":"(25,267)"},"New 2021-CashSum",true,{"$f":"IF(G7238<>\"\",INDIRECT(\"'\"&G7238&\"'!\"&H7238),\"\")","v":32500},"CashSum 5","D37"]
[7234,{"$f":"'CashSum 5'!E29","v":{"v":3057750,"d":"3,057,750 "}},{"v":-3050516,"d":"(3,050,516)"},"New 2021-CashSum",true,{"$f":"IF(G7239<>\"\",INDIRECT(\"'\"&G7239&\"'!\"&H7239),\"\")","v":3057750},"CashSum 5","E29"]
[7235,{"$f":"'CashSum 5'!E30","v":{"v":2195000,"d":"2,195,000 "}},{"v":-2187765,"d":"(2,187,765)"},"New 2021-CashSum",true,{"$f":"IF(G7240<>\"\",INDIRECT(\"'\"&G7240&\"'!\"&H7240),\"\")","v":2195000},"CashSum 5","E30"]
[7236,{"$f":"'CashSum 5'!E31","v":{"v":0,"d":"0 "}},{"v":7236,"d":"7,236 "},"New 2021-CashSum",true,{"$f":"IF(G7241<>\"\",INDIRECT(\"'\"&G7241&\"'!\"&H7241),\"\")","v":0},"CashSum 5","E31"]
[7237,{"$f":"'CashSum 5'!E32","v":{"v":2195000,"d":"2,195,000 "}},{"v":-2187763,"d":"(2,187,763)"},"New 2021-CashSum",true,{"$f":"IF(G7242<>\"\",INDIRECT(\"'\"&G7242&\"'!\"&H7242),\"\")","v":2195000},"CashSum 5","E32"]
[7238,{"$f":"'CashSum 5'!E33","v":{"v":5252750,"d":"5,252,750 "}},{"v":-5245512,"d":"(5,245,512)"},"New 2021-CashSum",true,{"$f":"IF(G7243<>\"\",INDIRECT(\"'\"&G7243&\"'!\"&H7243),\"\")","v":5252750},"CashSum 5","E33"]
[7239,{"$f":"'CashSum 5'!E34","v":{"v":1437000,"d":"1,437,000 "}},{"v":-1429761,"d":"(1,429,761)"},"New 2021-CashSum",true,{"$f":"IF(G7244<>\"\",INDIRECT(\"'\"&G7244&\"'!\"&H7244),\"\")","v":1437000},"CashSum 5","E34"]
[7240,{"$f":"'CashSum 5'!E35","v":{"v":0,"d":"0 "}},{"v":7240,"d":"7,240 "},"New 2021-CashSum",true,{"$f":"IF(G7245<>\"\",INDIRECT(\"'\"&G7245&\"'!\"&H7245),\"\")","v":0},"CashSum 5","E35"]
[7241,{"$f":"'CashSum 5'!E36","v":{"v":1437000,"d":"1,437,000 "}},{"v":-1429759,"d":"(1,429,759)"},"New 2021-CashSum",true,{"$f":"IF(G7246<>\"\",INDIRECT(\"'\"&G7246&\"'!\"&H7246),\"\")","v":1437000},"CashSum 5","E36"]
[7242,{"$f":"'CashSum 5'!E37","v":{"v":3815750,"d":"3,815,750 "}},{"v":-3808508,"d":"(3,808,508)"},"New 2021-CashSum",true,{"$f":"IF(G7247<>\"\",INDIRECT(\"'\"&G7247&\"'!\"&H7247),\"\")","v":3815750},"CashSum 5","E37"]
[7243,{"$f":"'CashSum 5'!F29","v":{"v":969,"d":"969 "}},{"v":6274,"d":"6,274 "},"New 2021-CashSum",true,{"$f":"IF(G7248<>\"\",INDIRECT(\"'\"&G7248&\"'!\"&H7248),\"\")","v":969},"CashSum 5","F29"]
[7244,{"$f":"'CashSum 5'!F30","v":{"v":510000,"d":"510,000 "}},{"v":-502756,"d":"(502,756)"},"New 2021-CashSum",true,{"$f":"IF(G7249<>\"\",INDIRECT(\"'\"&G7249&\"'!\"&H7249),\"\")","v":510000},"CashSum 5","F30"]
[7245,{"$f":"'CashSum 5'!F31","v":{"v":0,"d":"0 "}},{"v":7245,"d":"7,245 "},"New 2021-CashSum",true,{"$f":"IF(G7250<>\"\",INDIRECT(\"'\"&G7250&\"'!\"&H7250),\"\")","v":0},"CashSum 5","F31"]
[7246,{"$f":"'CashSum 5'!F32","v":{"v":510000,"d":"510,000 "}},{"v":-502754,"d":"(502,754)"},"New 2021-CashSum",true,{"$f":"IF(G7251<>\"\",INDIRECT(\"'\"&G7251&\"'!\"&H7251),\"\")","v":510000},"CashSum 5","F32"]
[7247,{"$f":"'CashSum 5'!F33","v":{"v":510969,"d":"510,969 "}},{"v":-503722,"d":"(503,722)"},"New 2021-CashSum",true,{"$f":"IF(G7252<>\"\",INDIRECT(\"'\"&G7252&\"'!\"&H7252),\"\")","v":510969},"CashSum 5","F33"]
[7248,{"$f":"'CashSum 5'!F34","v":{"v":450000,"d":"450,000 "}},{"v":-442752,"d":"(442,752)"},"New 2021-CashSum",true,{"$f":"IF(G7253<>\"\",INDIRECT(\"'\"&G7253&\"'!\"&H7253),\"\")","v":450000},"CashSum 5","F34"]
[7249,{"$f":"'CashSum 5'!F35","v":{"v":0,"d":"0 "}},{"v":7249,"d":"7,249 "},"New 2021-CashSum",true,{"$f":"IF(G7254<>\"\",INDIRECT(\"'\"&G7254&\"'!\"&H7254),\"\")","v":0},"CashSum 5","F35"]
[7250,{"$f":"'CashSum 5'!F36","v":{"v":450000,"d":"450,000 "}},{"v":-442750,"d":"(442,750)"},"New 2021-CashSum",true,{"$f":"IF(G7255<>\"\",INDIRECT(\"'\"&G7255&\"'!\"&H7255),\"\")","v":450000},"CashSum 5","F36"]
[7251,{"$f":"'CashSum 5'!F37","v":{"v":60969,"d":"60,969 "}},{"v":-53718,"d":"(53,718)"},"New 2021-CashSum",true,{"$f":"IF(G7256<>\"\",INDIRECT(\"'\"&G7256&\"'!\"&H7256),\"\")","v":60969},"CashSum 5","F37"]
[7252,{"$f":"'CashSum 5'!G29","v":{"v":12048,"d":"12,048 "}},{"v":-4796,"d":"(4,796)"},"New 2021-CashSum",true,{"$f":"IF(G7257<>\"\",INDIRECT(\"'\"&G7257&\"'!\"&H7257),\"\")","v":12048},"CashSum 5","G29"]
[7253,{"$f":"'CashSum 5'!G30","v":{"v":605000,"d":"605,000 "}},{"v":-597747,"d":"(597,747)"},"New 2021-CashSum",true,{"$f":"IF(G7258<>\"\",INDIRECT(\"'\"&G7258&\"'!\"&H7258),\"\")","v":605000},"CashSum 5","G30"]
[7254,{"$f":"'CashSum 5'!G31","v":{"v":0,"d":"0 "}},{"v":7254,"d":"7,254 "},"New 2021-CashSum",true,{"$f":"IF(G7259<>\"\",INDIRECT(\"'\"&G7259&\"'!\"&H7259),\"\")","v":0},"CashSum 5","G31"]
[7255,{"$f":"'CashSum 5'!G32","v":{"v":605000,"d":"605,000 "}},{"v":-597745,"d":"(597,745)"},"New 2021-CashSum",true,{"$f":"IF(G7260<>\"\",INDIRECT(\"'\"&G7260&\"'!\"&H7260),\"\")","v":605000},"CashSum 5","G32"]
[7256,{"$f":"'CashSum 5'!G33","v":{"v":617048,"d":"617,048 "}},{"v":-609792,"d":"(609,792)"},"New 2021-CashSum",true,{"$f":"IF(G7261<>\"\",INDIRECT(\"'\"&G7261&\"'!\"&H7261),\"\")","v":617048},"CashSum 5","G33"]
[7257,{"$f":"'CashSum 5'!G34","v":{"v":600900,"d":"600,900 "}},{"v":-593643,"d":"(593,643)"},"New 2021-CashSum",true,{"$f":"IF(G7262<>\"\",INDIRECT(\"'\"&G7262&\"'!\"&H7262),\"\")","v":600900},"CashSum 5","G34"]
[7258,{"$f":"'CashSum 5'!G35","v":{"v":0,"d":"0 "}},{"v":7258,"d":"7,258 "},"New 2021-CashSum",true,{"$f":"IF(G7263<>\"\",INDIRECT(\"'\"&G7263&\"'!\"&H7263),\"\")","v":0},"CashSum 5","G35"]
[7259,{"$f":"'CashSum 5'!G36","v":{"v":600900,"d":"600,900 "}},{"v":-593641,"d":"(593,641)"},"New 2021-CashSum",true,{"$f":"IF(G7264<>\"\",INDIRECT(\"'\"&G7264&\"'!\"&H7264),\"\")","v":600900},"CashSum 5","G36"]
[7260,{"$f":"'CashSum 5'!G37","v":{"v":16148,"d":"16,148 "}},{"v":-8888,"d":"(8,888)"},"New 2021-CashSum",true,{"$f":"IF(G7265<>\"\",INDIRECT(\"'\"&G7265&\"'!\"&H7265),\"\")","v":16148},"CashSum 5","G37"]
[7261,{"$f":"'CashSum 5'!H29","v":{"v":0,"d":"0 "}},{"v":7261,"d":"7,261 "},"New 2021-CashSum",true,{"$f":"IF(G7266<>\"\",INDIRECT(\"'\"&G7266&\"'!\"&H7266),\"\")","v":0},"CashSum 5","H29"]
[7262,{"$f":"'CashSum 5'!H30","v":{"v":203000,"d":"203,000 "}},{"v":-195738,"d":"(195,738)"},"New 2021-CashSum",true,{"$f":"IF(G7267<>\"\",INDIRECT(\"'\"&G7267&\"'!\"&H7267),\"\")","v":203000},"CashSum 5","H30"]
[7263,{"$f":"'CashSum 5'!H31","v":{"v":0,"d":"0 "}},{"v":7263,"d":"7,263 "},"New 2021-CashSum",true,{"$f":"IF(G7268<>\"\",INDIRECT(\"'\"&G7268&\"'!\"&H7268),\"\")","v":0},"CashSum 5","H31"]
[7264,{"$f":"'CashSum 5'!H32","v":{"v":203000,"d":"203,000 "}},{"v":-195736,"d":"(195,736)"},"New 2021-CashSum",true,{"$f":"IF(G7269<>\"\",INDIRECT(\"'\"&G7269&\"'!\"&H7269),\"\")","v":203000},"CashSum 5","H32"]
[7265,{"$f":"'CashSum 5'!H33","v":{"v":203000,"d":"203,000 "}},{"v":-195735,"d":"(195,735)"},"New 2021-CashSum",true,{"$f":"IF(G7270<>\"\",INDIRECT(\"'\"&G7270&\"'!\"&H7270),\"\")","v":203000},"CashSum 5","H33"]
[7266,{"$f":"'CashSum 5'!H34","v":{"v":203000,"d":"203,000 "}},{"v":-195734,"d":"(195,734)"},"New 2021-CashSum",true,{"$f":"IF(G7271<>\"\",INDIRECT(\"'\"&G7271&\"'!\"&H7271),\"\")","v":203000},"CashSum 5","H34"]
[7267,{"$f":"'CashSum 5'!H35","v":{"v":0,"d":"0 "}},{"v":7267,"d":"7,267 "},"New 2021-CashSum",true,{"$f":"IF(G7272<>\"\",INDIRECT(\"'\"&G7272&\"'!\"&H7272),\"\")","v":0},"CashSum 5","H35"]
[7268,{"$f":"'CashSum 5'!H36","v":{"v":203000,"d":"203,000 "}},{"v":-195732,"d":"(195,732)"},"New 2021-CashSum",true,{"$f":"IF(G7273<>\"\",INDIRECT(\"'\"&G7273&\"'!\"&H7273),\"\")","v":203000},"CashSum 5","H36"]
[7269,{"$f":"'CashSum 5'!H37","v":{"v":0,"d":"0 "}},{"v":7269,"d":"7,269 "},"New 2021-CashSum",true,{"$f":"IF(G7274<>\"\",INDIRECT(\"'\"&G7274&\"'!\"&H7274),\"\")","v":0},"CashSum 5","H37"]
[7270,{"$f":"'CashSum 5'!I29","v":{"v":5004949,"d":"5,004,949 "}},{"v":-4997679,"d":"(4,997,679)"},"New 2021-CashSum",true,{"$f":"IF(G7275<>\"\",INDIRECT(\"'\"&G7275&\"'!\"&H7275),\"\")","v":5004949},"CashSum 5","I29"]
[7271,{"$f":"'CashSum 5'!I30","v":{"v":27000,"d":"27,000 "}},{"v":-19729,"d":"(19,729)"},"New 2021-CashSum",true,{"$f":"IF(G7276<>\"\",INDIRECT(\"'\"&G7276&\"'!\"&H7276),\"\")","v":27000},"CashSum 5","I30"]
[7272,{"$f":"'CashSum 5'!I31","v":{"v":0,"d":"0 "}},{"v":7272,"d":"7,272 "},"New 2021-CashSum",true,{"$f":"IF(G7277<>\"\",INDIRECT(\"'\"&G7277&\"'!\"&H7277),\"\")","v":0},"CashSum 5","I31"]
[7273,{"$f":"'CashSum 5'!I32","v":{"v":27000,"d":"27,000 "}},{"v":-19727,"d":"(19,727)"},"New 2021-CashSum",true,{"$f":"IF(G7278<>\"\",INDIRECT(\"'\"&G7278&\"'!\"&H7278),\"\")","v":27000},"CashSum 5","I32"]
[7274,{"$f":"'CashSum 5'!I33","v":{"v":5031949,"d":"5,031,949 "}},{"v":-5024675,"d":"(5,024,675)"},"New 2021-CashSum",true,{"$f":"IF(G7279<>\"\",INDIRECT(\"'\"&G7279&\"'!\"&H7279),\"\")","v":5031949},"CashSum 5","I33"]
[7275,{"$f":"'CashSum 5'!I34","v":{"v":0,"d":"0 "}},{"v":7275,"d":"7,275 "},"New 2021-CashSum",true,{"$f":"IF(G7280<>\"\",INDIRECT(\"'\"&G7280&\"'!\"&H7280),\"\")","v":0},"CashSum 5","I34"]
[7276,{"$f":"'CashSum 5'!I35","v":{"v":0,"d":"0 "}},{"v":7276,"d":"7,276 "},"New 2021-CashSum",true,{"$f":"IF(G7281<>\"\",INDIRECT(\"'\"&G7281&\"'!\"&H7281),\"\")","v":0},"CashSum 5","I35"]
[7277,{"$f":"'CashSum 5'!I36","v":{"v":0,"d":"0 "}},{"v":7277,"d":"7,277 "},"New 2021-CashSum",true,{"$f":"IF(G7282<>\"\",INDIRECT(\"'\"&G7282&\"'!\"&H7282),\"\")","v":0},"CashSum 5","I36"]
[7278,{"$f":"'CashSum 5'!I37","v":{"v":5031949,"d":"5,031,949 "}},{"v":-5024671,"d":"(5,024,671)"},"New 2021-CashSum",true,{"$f":"IF(G7283<>\"\",INDIRECT(\"'\"&G7283&\"'!\"&H7283),\"\")","v":5031949},"CashSum 5","I37"]
[7279,{"$f":"'CashSum 5'!J29","v":{"v":0,"d":"0 "}},{"v":7279,"d":"7,279 "},"New 2021-CashSum",true,{"$f":"IF(G7284<>\"\",INDIRECT(\"'\"&G7284&\"'!\"&H7284),\"\")","v":0},"CashSum 5","J29"]
[7280,{"$f":"'CashSum 5'!J30","v":{"v":221000,"d":"221,000 "}},{"v":-213720,"d":"(213,720)"},"New 2021-CashSum",true,{"$f":"IF(G7285<>\"\",INDIRECT(\"'\"&G7285&\"'!\"&H7285),\"\")","v":221000},"CashSum 5","J30"]
[7281,{"$f":"'CashSum 5'!J31","v":{"v":0,"d":"0 "}},{"v":7281,"d":"7,281 "},"New 2021-CashSum",true,{"$f":"IF(G7286<>\"\",INDIRECT(\"'\"&G7286&\"'!\"&H7286),\"\")","v":0},"CashSum 5","J31"]
[7282,{"$f":"'CashSum 5'!J32","v":{"v":221000,"d":"221,000 "}},{"v":-213718,"d":"(213,718)"},"New 2021-CashSum",true,{"$f":"IF(G7287<>\"\",INDIRECT(\"'\"&G7287&\"'!\"&H7287),\"\")","v":221000},"CashSum 5","J32"]
[7283,{"$f":"'CashSum 5'!J33","v":{"v":221000,"d":"221,000 "}},{"v":-213717,"d":"(213,717)"},"New 2021-CashSum",true,{"$f":"IF(G7288<>\"\",INDIRECT(\"'\"&G7288&\"'!\"&H7288),\"\")","v":221000},"CashSum 5","J33"]
[7284,{"$f":"'CashSum 5'!J34","v":{"v":15000,"d":"15,000 "}},{"v":-7716,"d":"(7,716)"},"New 2021-CashSum",true,{"$f":"IF(G7289<>\"\",INDIRECT(\"'\"&G7289&\"'!\"&H7289),\"\")","v":15000},"CashSum 5","J34"]
[7285,{"$f":"'CashSum 5'!J35","v":{"v":0,"d":"0 "}},{"v":7285,"d":"7,285 "},"New 2021-CashSum",true,{"$f":"IF(G7290<>\"\",INDIRECT(\"'\"&G7290&\"'!\"&H7290),\"\")","v":0},"CashSum 5","J35"]
[7286,{"$f":"'CashSum 5'!J36","v":{"v":15000,"d":"15,000 "}},{"v":-7714,"d":"(7,714)"},"New 2021-CashSum",true,{"$f":"IF(G7291<>\"\",INDIRECT(\"'\"&G7291&\"'!\"&H7291),\"\")","v":15000},"CashSum 5","J36"]
[7287,{"$f":"'CashSum 5'!J37","v":{"v":206000,"d":"206,000 "}},{"v":-198713,"d":"(198,713)"},"New 2021-CashSum",true,{"$f":"IF(G7292<>\"\",INDIRECT(\"'\"&G7292&\"'!\"&H7292),\"\")","v":206000},"CashSum 5","J37"]
[7288,{"$f":"'CashSum 5'!K29","v":{"v":0,"d":"0 "}},{"v":7288,"d":"7,288 "},"New 2021-CashSum",true,{"$f":"IF(G7293<>\"\",INDIRECT(\"'\"&G7293&\"'!\"&H7293),\"\")","v":0},"CashSum 5","K29"]
[7289,{"$f":"'CashSum 5'!K30","v":{"v":178000,"d":"178,000 "}},{"v":-170711,"d":"(170,711)"},"New 2021-CashSum",true,{"$f":"IF(G7294<>\"\",INDIRECT(\"'\"&G7294&\"'!\"&H7294),\"\")","v":178000},"CashSum 5","K30"]
[7290,{"$f":"'CashSum 5'!K31","v":{"v":0,"d":"0 "}},{"v":7290,"d":"7,290 "},"New 2021-CashSum",true,{"$f":"IF(G7295<>\"\",INDIRECT(\"'\"&G7295&\"'!\"&H7295),\"\")","v":0},"CashSum 5","K31"]
[7291,{"$f":"'CashSum 5'!K32","v":{"v":178000,"d":"178,000 "}},{"v":-170709,"d":"(170,709)"},"New 2021-CashSum",true,{"$f":"IF(G7296<>\"\",INDIRECT(\"'\"&G7296&\"'!\"&H7296),\"\")","v":178000},"CashSum 5","K32"]
[7292,{"$f":"'CashSum 5'!K33","v":{"v":178000,"d":"178,000 "}},{"v":-170708,"d":"(170,708)"},"New 2021-CashSum",true,{"$f":"IF(G7297<>\"\",INDIRECT(\"'\"&G7297&\"'!\"&H7297),\"\")","v":178000},"CashSum 5","K33"]
[7293,{"$f":"'CashSum 5'!K34","v":{"v":150000,"d":"150,000 "}},{"v":-142707,"d":"(142,707)"},"New 2021-CashSum",{"$f":"F7298=B7298","v":true},{"$f":"IF(G7298<>\"\",INDIRECT(\"'\"&G7298&\"'!\"&H7298),\"\")","v":150000},"CashSum 5","K34"]
[7294,{"$f":"'CashSum 5'!K35","v":{"v":0,"d":"0 "}},{"v":7294,"d":"7,294 "},"New 2021-CashSum",true,{"$f":"IF(G7299<>\"\",INDIRECT(\"'\"&G7299&\"'!\"&H7299),\"\")","v":0},"CashSum 5","K35"]
[7295,{"$f":"'CashSum 5'!K36","v":{"v":150000,"d":"150,000 "}},{"$f":"A7300-B7300","v":{"v":-142705,"d":"(142,705)"}},"New 2021-CashSum",true,{"$f":"IF(G7300<>\"\",INDIRECT(\"'\"&G7300&\"'!\"&H7300),\"\")","v":150000},"CashSum 5","K36"]
[7296,{"$f":"'CashSum 5'!K37","v":{"v":28000,"d":"28,000 "}},{"v":-20704,"d":"(20,704)"},"New 2021-CashSum",true,{"$f":"IF(G7301<>\"\",INDIRECT(\"'\"&G7301&\"'!\"&H7301),\"\")","v":28000},"CashSum 5","K37"]
[7297,{"$f":"'EstRev 6-11'!C82","v":{"v":0,"d":"0 "}},{"v":7297,"d":"7,297 "},"New 2021 -EstRev ",true,{"$f":"IF(G7302<>\"\",INDIRECT(\"'\"&G7302&\"'!\"&H7302),\"\")","v":0},"EstRev 6-11","C82"]
[7298,{"$f":"'EstRev 6-11'!C84","v":{"v":0,"d":"0 "}},{"v":7298,"d":"7,298 "},"New 2021 -EstRev ",true,{"$f":"IF(G7303<>\"\",INDIRECT(\"'\"&G7303&\"'!\"&H7303),\"\")","v":0},"EstRev 6-11","C84"]
[7299,{"$f":"'EstRev 6-11'!C112","v":{"v":5003900,"d":"5,003,900 "}},{"v":-4996601,"d":"(4,996,601)"},"New 2021 -EstRev ",true,{"$f":"IF(G7304<>\"\",INDIRECT(\"'\"&G7304&\"'!\"&H7304),\"\")","v":5003900},"EstRev 6-11","C112"]
[7300,{"$f":"'EstExp 12-20'!H33","v":{"v":0,"d":"0 "}},{"v":7300,"d":"7,300 "},"New 2021 -EstExp",true,{"$f":"IF(G7305<>\"\",INDIRECT(\"'\"&G7305&\"'!\"&H7305),\"\")","v":0},"EstExp 12-20","H33"]
[7301,{"$f":"'EstExp 12-20'!K33","v":{"v":0,"d":"0 "}},{"v":7301,"d":"7,301 "},"New 2021 -EstExp",true,{"$f":"IF(G7306<>\"\",INDIRECT(\"'\"&G7306&\"'!\"&H7306),\"\")","v":0},"EstExp 12-20","K33"]
[7302,{"$f":"'EstExp 12-20'!C35","v":{"v":5456287,"d":"5,456,287 "}},{"v":-5448985,"d":"(5,448,985)"},"New 2021 -EstExp",true,{"$f":"IF(G7307<>\"\",INDIRECT(\"'\"&G7307&\"'!\"&H7307),\"\")","v":5456287},"EstExp 12-20","C35"]
[7303,{"$f":"'EstExp 12-20'!D35","v":{"v":780950,"d":"780,950 "}},{"v":-773647,"d":"(773,647)"},"New 2021 -EstExp",true,{"$f":"IF(G7308<>\"\",INDIRECT(\"'\"&G7308&\"'!\"&H7308),\"\")","v":780950},"EstExp 12-20","D35"]
[7304,{"$f":"'EstExp 12-20'!E35","v":{"v":654400,"d":"654,400 "}},{"v":-647096,"d":"(647,096)"},"New 2021 -EstExp",true,{"$f":"IF(G7309<>\"\",INDIRECT(\"'\"&G7309&\"'!\"&H7309),\"\")","v":654400},"EstExp 12-20","E35"]
[7305,{"$f":"'EstExp 12-20'!F35","v":{"v":200500,"d":"200,500 "}},{"v":-193195,"d":"(193,195)"},"New 2021 -EstExp",true,{"$f":"IF(G7310<>\"\",INDIRECT(\"'\"&G7310&\"'!\"&H7310),\"\")","v":200500},"EstExp 12-20","F35"]
[7306,{"$f":"'EstExp 12-20'!G35","v":{"v":128000,"d":"128,000 "}},{"v":-120694,"d":"(120,694)"},"New 2021 -EstExp",true,{"$f":"IF(G7311<>\"\",INDIRECT(\"'\"&G7311&\"'!\"&H7311),\"\")","v":128000},"EstExp 12-20","G35"]
[7307,{"$f":"'EstExp 12-20'!H35","v":{"v":13000,"d":"13,000 "}},{"v":-5693,"d":"(5,693)"},"New 2021 -EstExp",true,{"$f":"IF(G7312<>\"\",INDIRECT(\"'\"&G7312&\"'!\"&H7312),\"\")","v":13000},"EstExp 12-20","H35"]
[7308,{"$f":"'EstExp 12-20'!I35","v":{"v":0,"d":"0 "}},{"v":7308,"d":"7,308 "},"New 2021 -EstExp",true,{"$f":"IF(G7313<>\"\",INDIRECT(\"'\"&G7313&\"'!\"&H7313),\"\")","v":0},"EstExp 12-20","I35"]
[7309,{"$f":"'EstExp 12-20'!K35","v":{"v":7233137,"d":"7,233,137 "}},{"v":-7225828,"d":"(7,225,828)"},"New 2021 -EstExp",true,{"$f":"IF(G7314<>\"\",INDIRECT(\"'\"&G7314&\"'!\"&H7314),\"\")","v":7233137},"EstExp 12-20","K35"]
[7310,{"$f":"'EstExp 12-20'!C117","v":{"v":8357606,"d":"8,357,606 "}},{"v":-8350296,"d":"(8,350,296)"},"New 2021 -EstExp",true,{"$f":"IF(G7315<>\"\",INDIRECT(\"'\"&G7315&\"'!\"&H7315),\"\")","v":8357606},"EstExp 12-20","C117"]
[7311,{"$f":"'EstExp 12-20'!D117","v":{"v":1443450,"d":"1,443,450 "}},{"v":-1436139,"d":"(1,436,139)"},"New 2021 -EstExp",true,{"$f":"IF(G7316<>\"\",INDIRECT(\"'\"&G7316&\"'!\"&H7316),\"\")","v":1443450},"EstExp 12-20","D117"]
[7312,{"$f":"'EstExp 12-20'!E117","v":{"v":2028400,"d":"2,028,400 "}},{"v":-2021088,"d":"(2,021,088)"},"New 2021 -EstExp",true,{"$f":"IF(G7317<>\"\",INDIRECT(\"'\"&G7317&\"'!\"&H7317),\"\")","v":2028400},"EstExp 12-20","E117"]
[7313,{"$f":"'EstExp 12-20'!F117","v":{"v":778000,"d":"778,000 "}},{"v":-770687,"d":"(770,687)"},"New 2021 -EstExp",true,{"$f":"IF(G7318<>\"\",INDIRECT(\"'\"&G7318&\"'!\"&H7318),\"\")","v":778000},"EstExp 12-20","F117"]
[7314,{"$f":"'EstExp 12-20'!G117","v":{"v":195500,"d":"195,500 "}},{"v":-188186,"d":"(188,186)"},"New 2021 -EstExp",true,{"$f":"IF(G7319<>\"\",INDIRECT(\"'\"&G7319&\"'!\"&H7319),\"\")","v":195500},"EstExp 12-20","G117"]
[7315,{"$f":"'EstExp 12-20'!H117","v":{"v":931000,"d":"931,000 "}},{"v":-923685,"d":"(923,685)"},"New 2021 -EstExp",true,{"$f":"IF(G7320<>\"\",INDIRECT(\"'\"&G7320&\"'!\"&H7320),\"\")","v":931000},"EstExp 12-20","H117"]
[7316,{"$f":"'EstExp 12-20'!I117","v":{"v":0,"d":"0 "}},{"v":7316,"d":"7,316 "},"New 2021 -EstExp",true,{"$f":"IF(G7321<>\"\",INDIRECT(\"'\"&G7321&\"'!\"&H7321),\"\")","v":0},"EstExp 12-20","I117"]
[7317,{"$f":"'EstExp 12-20'!J117","v":{"v":0,"d":"0 "}},{"v":7317,"d":"7,317 "},"New 2021 -EstExp",true,{"$f":"IF(G7322<>\"\",INDIRECT(\"'\"&G7322&\"'!\"&H7322),\"\")","v":0},"EstExp 12-20","J117"]
[7318,{"$f":"'EstExp 12-20'!K117","v":{"v":13733956,"d":"13,733,956 "}},{"v":-13726638,"d":"(13,726,638)"},"New 2021 -EstExp",true,{"$f":"IF(G7323<>\"\",INDIRECT(\"'\"&G7323&\"'!\"&H7323),\"\")","v":13733956},"EstExp 12-20","K117"]
[7319,{"$f":"'EstExp 12-20'!K119","v":{"v":-916056,"d":"(916,056)"}},{"v":923375,"d":"923,375 "},"New 2021 -EstExp",true,{"$f":"IF(G7324<>\"\",INDIRECT(\"'\"&G7324&\"'!\"&H7324),\"\")","v":-916056},"EstExp 12-20","K119"]
[7320,{"$f":"'EstExp 12-20'!C316","v":{"v":0,"d":"0 "}},{"v":7320,"d":"7,320 "},"New 2021 -EstExp",true,{"$f":"IF(G7325<>\"\",INDIRECT(\"'\"&G7325&\"'!\"&H7325),\"\")","v":0},"EstExp 12-20","C316"]
[7321,{"$f":"'EstExp 12-20'!C318","v":{"v":0,"d":"0 "}},{"v":7321,"d":"7,321 "},"New 2021 -EstExp",true,{"$f":"IF(G7326<>\"\",INDIRECT(\"'\"&G7326&\"'!\"&H7326),\"\")","v":0},"EstExp 12-20","C318"]
[7322,{"$f":"'EstExp 12-20'!C319","v":{"v":0,"d":"0 "}},{"v":7322,"d":"7,322 "},"New 2021 -EstExp",true,{"$f":"IF(G7327<>\"\",INDIRECT(\"'\"&G7327&\"'!\"&H7327),\"\")","v":0},"EstExp 12-20","C319"]
[7323,{"$f":"'EstExp 12-20'!C320","v":{"v":0,"d":"0 "}},{"v":7323,"d":"7,323 "},"New 2021 -EstExp",true,{"$f":"IF(G7328<>\"\",INDIRECT(\"'\"&G7328&\"'!\"&H7328),\"\")","v":0},"EstExp 12-20","C320"]
[7324,{"$f":"'EstExp 12-20'!C321","v":{"v":0,"d":"0 "}},{"v":7324,"d":"7,324 "},"New 2021 -EstExp",true,{"$f":"IF(G7329<>\"\",INDIRECT(\"'\"&G7329&\"'!\"&H7329),\"\")","v":0},"EstExp 12-20","C321"]
[7325,{"$f":"'EstExp 12-20'!C322","v":{"v":0,"d":"0 "}},{"v":7325,"d":"7,325 "},"New 2021 -EstExp",true,{"$f":"IF(G7330<>\"\",INDIRECT(\"'\"&G7330&\"'!\"&H7330),\"\")","v":0},"EstExp 12-20","C322"]
[7326,{"$f":"'EstExp 12-20'!C323","v":{"v":0,"d":"0 "}},{"v":7326,"d":"7,326 "},"New 2021 -EstExp",true,{"$f":"IF(G7331<>\"\",INDIRECT(\"'\"&G7331&\"'!\"&H7331),\"\")","v":0},"EstExp 12-20","C323"]
[7327,{"$f":"'EstExp 12-20'!C324","v":{"v":0,"d":"0 "}},{"v":7327,"d":"7,327 "},"New 2021 -EstExp",true,{"$f":"IF(G7332<>\"\",INDIRECT(\"'\"&G7332&\"'!\"&H7332),\"\")","v":0},"EstExp 12-20","C324"]
[7328,{"$f":"'EstExp 12-20'!C325","v":{"v":0,"d":"0 "}},{"v":7328,"d":"7,328 "},"New 2021 -EstExp",true,{"$f":"IF(G7333<>\"\",INDIRECT(\"'\"&G7333&\"'!\"&H7333),\"\")","v":0},"EstExp 12-20","C325"]
[7329,{"$f":"'EstExp 12-20'!C326","v":{"v":0,"d":"0 "}},{"v":7329,"d":"7,329 "},"New 2021 -EstExp",true,{"$f":"IF(G7334<>\"\",INDIRECT(\"'\"&G7334&\"'!\"&H7334),\"\")","v":0},"EstExp 12-20","C326"]
[7330,{"$f":"'EstExp 12-20'!C327","v":{"v":0,"d":"0 "}},{"v":7330,"d":"7,330 "},"New 2021 -EstExp",true,{"$f":"IF(G7335<>\"\",INDIRECT(\"'\"&G7335&\"'!\"&H7335),\"\")","v":0},"EstExp 12-20","C327"]
[7331,{"$f":"'EstExp 12-20'!C328","v":{"v":0,"d":"0 "}},{"v":7331,"d":"7,331 "},"New 2021 -EstExp",true,{"$f":"IF(G7336<>\"\",INDIRECT(\"'\"&G7336&\"'!\"&H7336),\"\")","v":0},"EstExp 12-20","C328"]
[7332,{"$f":"'EstExp 12-20'!C329","v":{"v":0,"d":"0 "}},{"v":7332,"d":"7,332 "},"New 2021 -EstExp",true,{"$f":"IF(G7337<>\"\",INDIRECT(\"'\"&G7337&\"'!\"&H7337),\"\")","v":0},"EstExp 12-20","C329"]
[7333,{"$f":"'EstExp 12-20'!C330","v":{"v":0,"d":"0 "}},{"v":7333,"d":"7,333 "},"New 2021 -EstExp",true,{"$f":"IF(G7338<>\"\",INDIRECT(\"'\"&G7338&\"'!\"&H7338),\"\")","v":0},"EstExp 12-20","C330"]
[7334,{"$f":"'EstExp 12-20'!C344","v":{"v":0,"d":"0 "}},{"v":7334,"d":"7,334 "},"New 2021 -EstExp",true,{"$f":"IF(G7339<>\"\",INDIRECT(\"'\"&G7339&\"'!\"&H7339),\"\")","v":0},"EstExp 12-20","C344"]
[7335,{"$f":"'EstExp 12-20'!C347","v":{"v":0,"d":"0 "}},{"v":7335,"d":"7,335 "},"New 2021 -EstExp",true,{"$f":"IF(G7340<>\"\",INDIRECT(\"'\"&G7340&\"'!\"&H7340),\"\")","v":0},"EstExp 12-20","C347"]
[7336,{"$f":"'EstExp 12-20'!C348","v":{"v":0,"d":"0 "}},{"v":7336,"d":"7,336 "},"New 2021 -EstExp",true,{"$f":"IF(G7341<>\"\",INDIRECT(\"'\"&G7341&\"'!\"&H7341),\"\")","v":0},"EstExp 12-20","C348"]
[7337,{"$f":"'EstExp 12-20'!C349","v":{"v":0,"d":"0 "}},{"v":7337,"d":"7,337 "},"New 2021 -EstExp",true,{"$f":"IF(G7342<>\"\",INDIRECT(\"'\"&G7342&\"'!\"&H7342),\"\")","v":0},"EstExp 12-20","C349"]
[7338,{"$f":"'EstExp 12-20'!C350","v":{"v":0,"d":"0 "}},{"v":7338,"d":"7,338 "},"New 2021 -EstExp",true,{"$f":"IF(G7343<>\"\",INDIRECT(\"'\"&G7343&\"'!\"&H7343),\"\")","v":0},"EstExp 12-20","C350"]
[7339,{"$f":"'EstExp 12-20'!C351","v":{"v":0,"d":"0 "}},{"v":7339,"d":"7,339 "},"New 2021 -EstExp",true,{"$f":"IF(G7344<>\"\",INDIRECT(\"'\"&G7344&\"'!\"&H7344),\"\")","v":0},"EstExp 12-20","C351"]
[7340,{"$f":"'EstExp 12-20'!C352","v":{"v":0,"d":"0 "}},{"v":7340,"d":"7,340 "},"New 2021 -EstExp",true,{"$f":"IF(G7345<>\"\",INDIRECT(\"'\"&G7345&\"'!\"&H7345),\"\")","v":0},"EstExp 12-20","C352"]
[7341,{"$f":"'EstExp 12-20'!C353","v":{"v":0,"d":"0 "}},{"v":7341,"d":"7,341 "},"New 2021 -EstExp",true,{"$f":"IF(G7346<>\"\",INDIRECT(\"'\"&G7346&\"'!\"&H7346),\"\")","v":0},"EstExp 12-20","C353"]
[7342,{"$f":"'EstExp 12-20'!C355","v":{"v":0,"d":"0 "}},{"v":7342,"d":"7,342 "},"New 2021 -EstExp",true,{"$f":"IF(G7347<>\"\",INDIRECT(\"'\"&G7347&\"'!\"&H7347),\"\")","v":0},"EstExp 12-20","C355"]
[7343,{"$f":"'EstExp 12-20'!C356","v":{"v":0,"d":"0 "}},{"v":7343,"d":"7,343 "},"New 2021 -EstExp",true,{"$f":"IF(G7348<>\"\",INDIRECT(\"'\"&G7348&\"'!\"&H7348),\"\")","v":0},"EstExp 12-20","C356"]
[7344,{"$f":"'EstExp 12-20'!C357","v":{"v":0,"d":"0 "}},{"v":7344,"d":"7,344 "},"New 2021 -EstExp",true,{"$f":"IF(G7349<>\"\",INDIRECT(\"'\"&G7349&\"'!\"&H7349),\"\")","v":0},"EstExp 12-20","C357"]
[7345,{"$f":"'EstExp 12-20'!C358","v":{"v":0,"d":"0 "}},{"v":7345,"d":"7,345 "},"New 2021 -EstExp",true,{"$f":"IF(G7350<>\"\",INDIRECT(\"'\"&G7350&\"'!\"&H7350),\"\")","v":0},"EstExp 12-20","C358"]
[7346,{"$f":"'EstExp 12-20'!C360","v":{"v":0,"d":"0 "}},{"v":7346,"d":"7,346 "},"New 2021 -EstExp",true,{"$f":"IF(G7351<>\"\",INDIRECT(\"'\"&G7351&\"'!\"&H7351),\"\")","v":0},"EstExp 12-20","C360"]
[7347,{"$f":"'EstExp 12-20'!C361","v":{"v":0,"d":"0 "}},{"v":7347,"d":"7,347 "},"New 2021 -EstExp",true,{"$f":"IF(G7352<>\"\",INDIRECT(\"'\"&G7352&\"'!\"&H7352),\"\")","v":0},"EstExp 12-20","C361"]
[7348,{"$f":"'EstExp 12-20'!C362","v":{"v":0,"d":"0 "}},{"v":7348,"d":"7,348 "},"New 2021 -EstExp",true,{"$f":"IF(G7353<>\"\",INDIRECT(\"'\"&G7353&\"'!\"&H7353),\"\")","v":0},"EstExp 12-20","C362"]
[7349,{"$f":"'EstExp 12-20'!C367","v":{"v":0,"d":"0 "}},{"v":7349,"d":"7,349 "},"New 2021 -EstExp",true,{"$f":"IF(G7354<>\"\",INDIRECT(\"'\"&G7354&\"'!\"&H7354),\"\")","v":0},"EstExp 12-20","C367"]
[7350,{"$f":"'EstExp 12-20'!C368","v":{"v":0,"d":"0 "}},{"v":7350,"d":"7,350 "},"New 2021 -EstExp",true,{"$f":"IF(G7355<>\"\",INDIRECT(\"'\"&G7355&\"'!\"&H7355),\"\")","v":0},"EstExp 12-20","C368"]
[7351,{"$f":"'EstExp 12-20'!C369","v":{"v":0,"d":"0 "}},{"v":7351,"d":"7,351 "},"New 2021 -EstExp",true,{"$f":"IF(G7356<>\"\",INDIRECT(\"'\"&G7356&\"'!\"&H7356),\"\")","v":0},"EstExp 12-20","C369"]
[7352,{"$f":"'EstExp 12-20'!C371","v":{"v":0,"d":"0 "}},{"v":7352,"d":"7,352 "},"New 2021 -EstExp",true,{"$f":"IF(G7357<>\"\",INDIRECT(\"'\"&G7357&\"'!\"&H7357),\"\")","v":0},"EstExp 12-20","C371"]
[7353,{"$f":"'EstExp 12-20'!C372","v":{"v":0,"d":"0 "}},{"v":7353,"d":"7,353 "},"New 2021 -EstExp",true,{"$f":"IF(G7358<>\"\",INDIRECT(\"'\"&G7358&\"'!\"&H7358),\"\")","v":0},"EstExp 12-20","C372"]
[7354,{"$f":"'EstExp 12-20'!C374","v":{"v":0,"d":"0 "}},{"v":7354,"d":"7,354 "},"New 2021 -EstExp",true,{"$f":"IF(G7359<>\"\",INDIRECT(\"'\"&G7359&\"'!\"&H7359),\"\")","v":0},"EstExp 12-20","C374"]
[7355,{"$f":"'EstExp 12-20'!C375","v":{"v":0,"d":"0 "}},{"v":7355,"d":"7,355 "},"New 2021 -EstExp",true,{"$f":"IF(G7360<>\"\",INDIRECT(\"'\"&G7360&\"'!\"&H7360),\"\")","v":0},"EstExp 12-20","C375"]
[7356,{"$f":"'EstExp 12-20'!C376","v":{"v":0,"d":"0 "}},{"v":7356,"d":"7,356 "},"New 2021 -EstExp",true,{"$f":"IF(G7361<>\"\",INDIRECT(\"'\"&G7361&\"'!\"&H7361),\"\")","v":0},"EstExp 12-20","C376"]
[7357,{"$f":"'EstExp 12-20'!C377","v":{"v":0,"d":"0 "}},{"v":7357,"d":"7,357 "},"New 2021 -EstExp",{"$f":"F7362=B7362","v":true},{"$f":"IF(G7362<>\"\",INDIRECT(\"'\"&G7362&\"'!\"&H7362),\"\")","v":0},"EstExp 12-20","C377"]
[7358,{"$f":"'EstExp 12-20'!C378","v":{"v":0,"d":"0 "}},{"v":7358,"d":"7,358 "},"New 2021 -EstExp",true,{"$f":"IF(G7363<>\"\",INDIRECT(\"'\"&G7363&\"'!\"&H7363),\"\")","v":0},"EstExp 12-20","C378"]
[7359,{"$f":"'EstExp 12-20'!C380","v":{"v":0,"d":"0 "}},{"$f":"A7364-B7364","v":{"v":7359,"d":"7,359 "}},"New 2021 -EstExp",true,{"$f":"IF(G7364<>\"\",INDIRECT(\"'\"&G7364&\"'!\"&H7364),\"\")","v":0},"EstExp 12-20","C380"]
[7360,{"$f":"'EstExp 12-20'!C381","v":{"v":0,"d":"0 "}},{"v":7360,"d":"7,360 "},"New 2021 -EstExp",true,{"$f":"IF(G7365<>\"\",INDIRECT(\"'\"&G7365&\"'!\"&H7365),\"\")","v":0},"EstExp 12-20","C381"]
[7361,{"$f":"'EstExp 12-20'!C382","v":{"v":0,"d":"0 "}},{"v":7361,"d":"7,361 "},"New 2021 -EstExp",true,{"$f":"IF(G7366<>\"\",INDIRECT(\"'\"&G7366&\"'!\"&H7366),\"\")","v":0},"EstExp 12-20","C382"]
[7362,{"$f":"'EstExp 12-20'!C383","v":{"v":0,"d":"0 "}},{"v":7362,"d":"7,362 "},"New 2021 -EstExp",true,{"$f":"IF(G7367<>\"\",INDIRECT(\"'\"&G7367&\"'!\"&H7367),\"\")","v":0},"EstExp 12-20","C383"]
[7363,{"$f":"'EstExp 12-20'!C384","v":{"v":0,"d":"0 "}},{"v":7363,"d":"7,363 "},"New 2021 -EstExp",true,{"$f":"IF(G7368<>\"\",INDIRECT(\"'\"&G7368&\"'!\"&H7368),\"\")","v":0},"EstExp 12-20","C384"]
[7364,{"$f":"'EstExp 12-20'!C385","v":{"v":0,"d":"0 "}},{"v":7364,"d":"7,364 "},"New 2021 -EstExp",true,{"$f":"IF(G7369<>\"\",INDIRECT(\"'\"&G7369&\"'!\"&H7369),\"\")","v":0},"EstExp 12-20","C385"]
[7365,{"$f":"'EstExp 12-20'!C386","v":{"v":0,"d":"0 "}},{"v":7365,"d":"7,365 "},"New 2021 -EstExp",true,{"$f":"IF(G7370<>\"\",INDIRECT(\"'\"&G7370&\"'!\"&H7370),\"\")","v":0},"EstExp 12-20","C386"]
[7366,{"$f":"'EstExp 12-20'!C387","v":{"v":0,"d":"0 "}},{"v":7366,"d":"7,366 "},"New 2021 -EstExp",true,{"$f":"IF(G7371<>\"\",INDIRECT(\"'\"&G7371&\"'!\"&H7371),\"\")","v":0},"EstExp 12-20","C387"]
[7367,{"$f":"'EstExp 12-20'!C388","v":{"v":0,"d":"0 "}},{"v":7367,"d":"7,367 "},"New 2021 -EstExp",true,{"$f":"IF(G7372<>\"\",INDIRECT(\"'\"&G7372&\"'!\"&H7372),\"\")","v":0},"EstExp 12-20","C388"]
[7368,{"$f":"'EstExp 12-20'!D316","v":{"v":0,"d":"0 "}},{"v":7368,"d":"7,368 "},"New 2021 -EstExp",true,{"$f":"IF(G7373<>\"\",INDIRECT(\"'\"&G7373&\"'!\"&H7373),\"\")","v":0},"EstExp 12-20","D316"]
[7369,{"$f":"'EstExp 12-20'!D318","v":{"v":0,"d":"0 "}},{"v":7369,"d":"7,369 "},"New 2021 -EstExp",true,{"$f":"IF(G7374<>\"\",INDIRECT(\"'\"&G7374&\"'!\"&H7374),\"\")","v":0},"EstExp 12-20","D318"]
[7370,{"$f":"'EstExp 12-20'!D319","v":{"v":0,"d":"0 "}},{"v":7370,"d":"7,370 "},"New 2021 -EstExp",true,{"$f":"IF(G7375<>\"\",INDIRECT(\"'\"&G7375&\"'!\"&H7375),\"\")","v":0},"EstExp 12-20","D319"]
[7371,{"$f":"'EstExp 12-20'!D320","v":{"v":0,"d":"0 "}},{"v":7371,"d":"7,371 "},"New 2021 -EstExp",true,{"$f":"IF(G7376<>\"\",INDIRECT(\"'\"&G7376&\"'!\"&H7376),\"\")","v":0},"EstExp 12-20","D320"]
[7372,{"$f":"'EstExp 12-20'!D321","v":{"v":0,"d":"0 "}},{"v":7372,"d":"7,372 "},"New 2021 -EstExp",true,{"$f":"IF(G7377<>\"\",INDIRECT(\"'\"&G7377&\"'!\"&H7377),\"\")","v":0},"EstExp 12-20","D321"]
[7373,{"$f":"'EstExp 12-20'!D322","v":{"v":0,"d":"0 "}},{"v":7373,"d":"7,373 "},"New 2021 -EstExp",true,{"$f":"IF(G7378<>\"\",INDIRECT(\"'\"&G7378&\"'!\"&H7378),\"\")","v":0},"EstExp 12-20","D322"]
[7374,{"$f":"'EstExp 12-20'!D323","v":{"v":0,"d":"0 "}},{"v":7374,"d":"7,374 "},"New 2021 -EstExp",true,{"$f":"IF(G7379<>\"\",INDIRECT(\"'\"&G7379&\"'!\"&H7379),\"\")","v":0},"EstExp 12-20","D323"]
[7375,{"$f":"'EstExp 12-20'!D324","v":{"v":0,"d":"0 "}},{"v":7375,"d":"7,375 "},"New 2021 -EstExp",true,{"$f":"IF(G7380<>\"\",INDIRECT(\"'\"&G7380&\"'!\"&H7380),\"\")","v":0},"EstExp 12-20","D324"]
[7376,{"$f":"'EstExp 12-20'!D325","v":{"v":0,"d":"0 "}},{"v":7376,"d":"7,376 "},"New 2021 -EstExp",true,{"$f":"IF(G7381<>\"\",INDIRECT(\"'\"&G7381&\"'!\"&H7381),\"\")","v":0},"EstExp 12-20","D325"]
[7377,{"$f":"'EstExp 12-20'!D326","v":{"v":0,"d":"0 "}},{"v":7377,"d":"7,377 "},"New 2021 -EstExp",true,{"$f":"IF(G7382<>\"\",INDIRECT(\"'\"&G7382&\"'!\"&H7382),\"\")","v":0},"EstExp 12-20","D326"]
[7378,{"$f":"'EstExp 12-20'!D327","v":{"v":0,"d":"0 "}},{"v":7378,"d":"7,378 "},"New 2021 -EstExp",true,{"$f":"IF(G7383<>\"\",INDIRECT(\"'\"&G7383&\"'!\"&H7383),\"\")","v":0},"EstExp 12-20","D327"]
[7379,{"$f":"'EstExp 12-20'!D328","v":{"v":0,"d":"0 "}},{"v":7379,"d":"7,379 "},"New 2021 -EstExp",true,{"$f":"IF(G7384<>\"\",INDIRECT(\"'\"&G7384&\"'!\"&H7384),\"\")","v":0},"EstExp 12-20","D328"]
[7380,{"$f":"'EstExp 12-20'!D329","v":{"v":0,"d":"0 "}},{"v":7380,"d":"7,380 "},"New 2021 -EstExp",true,{"$f":"IF(G7385<>\"\",INDIRECT(\"'\"&G7385&\"'!\"&H7385),\"\")","v":0},"EstExp 12-20","D329"]
[7381,{"$f":"'EstExp 12-20'!D330","v":{"v":0,"d":"0 "}},{"v":7381,"d":"7,381 "},"New 2021 -EstExp",true,{"$f":"IF(G7386<>\"\",INDIRECT(\"'\"&G7386&\"'!\"&H7386),\"\")","v":0},"EstExp 12-20","D330"]
[7382,{"$f":"'EstExp 12-20'!D344","v":{"v":0,"d":"0 "}},{"v":7382,"d":"7,382 "},"New 2021 -EstExp",true,{"$f":"IF(G7387<>\"\",INDIRECT(\"'\"&G7387&\"'!\"&H7387),\"\")","v":0},"EstExp 12-20","D344"]
[7383,{"$f":"'EstExp 12-20'!D347","v":{"v":0,"d":"0 "}},{"v":7383,"d":"7,383 "},"New 2021 -EstExp",true,{"$f":"IF(G7388<>\"\",INDIRECT(\"'\"&G7388&\"'!\"&H7388),\"\")","v":0},"EstExp 12-20","D347"]
[7384,{"$f":"'EstExp 12-20'!D348","v":{"v":0,"d":"0 "}},{"v":7384,"d":"7,384 "},"New 2021 -EstExp",true,{"$f":"IF(G7389<>\"\",INDIRECT(\"'\"&G7389&\"'!\"&H7389),\"\")","v":0},"EstExp 12-20","D348"]
[7385,{"$f":"'EstExp 12-20'!D349","v":{"v":0,"d":"0 "}},{"v":7385,"d":"7,385 "},"New 2021 -EstExp",true,{"$f":"IF(G7390<>\"\",INDIRECT(\"'\"&G7390&\"'!\"&H7390),\"\")","v":0},"EstExp 12-20","D349"]
[7386,{"$f":"'EstExp 12-20'!D350","v":{"v":0,"d":"0 "}},{"v":7386,"d":"7,386 "},"New 2021 -EstExp",true,{"$f":"IF(G7391<>\"\",INDIRECT(\"'\"&G7391&\"'!\"&H7391),\"\")","v":0},"EstExp 12-20","D350"]
[7387,{"$f":"'EstExp 12-20'!D351","v":{"v":0,"d":"0 "}},{"v":7387,"d":"7,387 "},"New 2021 -EstExp",true,{"$f":"IF(G7392<>\"\",INDIRECT(\"'\"&G7392&\"'!\"&H7392),\"\")","v":0},"EstExp 12-20","D351"]
[7388,{"$f":"'EstExp 12-20'!D352","v":{"v":0,"d":"0 "}},{"v":7388,"d":"7,388 "},"New 2021 -EstExp",true,{"$f":"IF(G7393<>\"\",INDIRECT(\"'\"&G7393&\"'!\"&H7393),\"\")","v":0},"EstExp 12-20","D352"]
[7389,{"$f":"'EstExp 12-20'!D353","v":{"v":0,"d":"0 "}},{"v":7389,"d":"7,389 "},"New 2021 -EstExp",true,{"$f":"IF(G7394<>\"\",INDIRECT(\"'\"&G7394&\"'!\"&H7394),\"\")","v":0},"EstExp 12-20","D353"]
[7390,{"$f":"'EstExp 12-20'!D355","v":{"v":0,"d":"0 "}},{"v":7390,"d":"7,390 "},"New 2021 -EstExp",true,{"$f":"IF(G7395<>\"\",INDIRECT(\"'\"&G7395&\"'!\"&H7395),\"\")","v":0},"EstExp 12-20","D355"]
[7391,{"$f":"'EstExp 12-20'!D356","v":{"v":0,"d":"0 "}},{"v":7391,"d":"7,391 "},"New 2021 -EstExp",true,{"$f":"IF(G7396<>\"\",INDIRECT(\"'\"&G7396&\"'!\"&H7396),\"\")","v":0},"EstExp 12-20","D356"]
[7392,{"$f":"'EstExp 12-20'!D357","v":{"v":0,"d":"0 "}},{"v":7392,"d":"7,392 "},"New 2021 -EstExp",true,{"$f":"IF(G7397<>\"\",INDIRECT(\"'\"&G7397&\"'!\"&H7397),\"\")","v":0},"EstExp 12-20","D357"]
[7393,{"$f":"'EstExp 12-20'!D358","v":{"v":0,"d":"0 "}},{"v":7393,"d":"7,393 "},"New 2021 -EstExp",true,{"$f":"IF(G7398<>\"\",INDIRECT(\"'\"&G7398&\"'!\"&H7398),\"\")","v":0},"EstExp 12-20","D358"]
[7394,{"$f":"'EstExp 12-20'!D360","v":{"v":0,"d":"0 "}},{"v":7394,"d":"7,394 "},"New 2021 -EstExp",true,{"$f":"IF(G7399<>\"\",INDIRECT(\"'\"&G7399&\"'!\"&H7399),\"\")","v":0},"EstExp 12-20","D360"]
[7395,{"$f":"'EstExp 12-20'!D361","v":{"v":0,"d":"0 "}},{"v":7395,"d":"7,395 "},"New 2021 -EstExp",true,{"$f":"IF(G7400<>\"\",INDIRECT(\"'\"&G7400&\"'!\"&H7400),\"\")","v":0},"EstExp 12-20","D361"]
[7396,{"$f":"'EstExp 12-20'!D362","v":{"v":0,"d":"0 "}},{"v":7396,"d":"7,396 "},"New 2021 -EstExp",true,{"$f":"IF(G7401<>\"\",INDIRECT(\"'\"&G7401&\"'!\"&H7401),\"\")","v":0},"EstExp 12-20","D362"]
[7397,{"$f":"'EstExp 12-20'!D367","v":{"v":0,"d":"0 "}},{"v":7397,"d":"7,397 "},"New 2021 -EstExp",true,{"$f":"IF(G7402<>\"\",INDIRECT(\"'\"&G7402&\"'!\"&H7402),\"\")","v":0},"EstExp 12-20","D367"]
[7398,{"$f":"'EstExp 12-20'!D368","v":{"v":0,"d":"0 "}},{"v":7398,"d":"7,398 "},"New 2021 -EstExp",true,{"$f":"IF(G7403<>\"\",INDIRECT(\"'\"&G7403&\"'!\"&H7403),\"\")","v":0},"EstExp 12-20","D368"]
[7399,{"$f":"'EstExp 12-20'!D369","v":{"v":0,"d":"0 "}},{"v":7399,"d":"7,399 "},"New 2021 -EstExp",true,{"$f":"IF(G7404<>\"\",INDIRECT(\"'\"&G7404&\"'!\"&H7404),\"\")","v":0},"EstExp 12-20","D369"]
[7400,{"$f":"'EstExp 12-20'!D371","v":{"v":0,"d":"0 "}},{"v":7400,"d":"7,400 "},"New 2021 -EstExp",true,{"$f":"IF(G7405<>\"\",INDIRECT(\"'\"&G7405&\"'!\"&H7405),\"\")","v":0},"EstExp 12-20","D371"]
[7401,{"$f":"'EstExp 12-20'!D372","v":{"v":0,"d":"0 "}},{"v":7401,"d":"7,401 "},"New 2021 -EstExp",true,{"$f":"IF(G7406<>\"\",INDIRECT(\"'\"&G7406&\"'!\"&H7406),\"\")","v":0},"EstExp 12-20","D372"]
[7402,{"$f":"'EstExp 12-20'!D374","v":{"v":0,"d":"0 "}},{"v":7402,"d":"7,402 "},"New 2021 -EstExp",true,{"$f":"IF(G7407<>\"\",INDIRECT(\"'\"&G7407&\"'!\"&H7407),\"\")","v":0},"EstExp 12-20","D374"]
[7403,{"$f":"'EstExp 12-20'!D375","v":{"v":0,"d":"0 "}},{"v":7403,"d":"7,403 "},"New 2021 -EstExp",true,{"$f":"IF(G7408<>\"\",INDIRECT(\"'\"&G7408&\"'!\"&H7408),\"\")","v":0},"EstExp 12-20","D375"]
[7404,{"$f":"'EstExp 12-20'!D376","v":{"v":0,"d":"0 "}},{"v":7404,"d":"7,404 "},"New 2021 -EstExp",true,{"$f":"IF(G7409<>\"\",INDIRECT(\"'\"&G7409&\"'!\"&H7409),\"\")","v":0},"EstExp 12-20","D376"]
[7405,{"$f":"'EstExp 12-20'!D377","v":{"v":0,"d":"0 "}},{"v":7405,"d":"7,405 "},"New 2021 -EstExp",true,{"$f":"IF(G7410<>\"\",INDIRECT(\"'\"&G7410&\"'!\"&H7410),\"\")","v":0},"EstExp 12-20","D377"]
[7406,{"$f":"'EstExp 12-20'!D378","v":{"v":0,"d":"0 "}},{"v":7406,"d":"7,406 "},"New 2021 -EstExp",true,{"$f":"IF(G7411<>\"\",INDIRECT(\"'\"&G7411&\"'!\"&H7411),\"\")","v":0},"EstExp 12-20","D378"]
[7407,{"$f":"'EstExp 12-20'!D380","v":{"v":0,"d":"0 "}},{"v":7407,"d":"7,407 "},"New 2021 -EstExp",true,{"$f":"IF(G7412<>\"\",INDIRECT(\"'\"&G7412&\"'!\"&H7412),\"\")","v":0},"EstExp 12-20","D380"]
[7408,{"$f":"'EstExp 12-20'!D381","v":{"v":0,"d":"0 "}},{"v":7408,"d":"7,408 "},"New 2021 -EstExp",true,{"$f":"IF(G7413<>\"\",INDIRECT(\"'\"&G7413&\"'!\"&H7413),\"\")","v":0},"EstExp 12-20","D381"]
[7409,{"$f":"'EstExp 12-20'!D382","v":{"v":0,"d":"0 "}},{"v":7409,"d":"7,409 "},"New 2021 -EstExp",true,{"$f":"IF(G7414<>\"\",INDIRECT(\"'\"&G7414&\"'!\"&H7414),\"\")","v":0},"EstExp 12-20","D382"]
[7410,{"$f":"'EstExp 12-20'!D383","v":{"v":0,"d":"0 "}},{"v":7410,"d":"7,410 "},"New 2021 -EstExp",true,{"$f":"IF(G7415<>\"\",INDIRECT(\"'\"&G7415&\"'!\"&H7415),\"\")","v":0},"EstExp 12-20","D383"]
[7411,{"$f":"'EstExp 12-20'!D384","v":{"v":0,"d":"0 "}},{"v":7411,"d":"7,411 "},"New 2021 -EstExp",true,{"$f":"IF(G7416<>\"\",INDIRECT(\"'\"&G7416&\"'!\"&H7416),\"\")","v":0},"EstExp 12-20","D384"]
[7412,{"$f":"'EstExp 12-20'!D385","v":{"v":0,"d":"0 "}},{"v":7412,"d":"7,412 "},"New 2021 -EstExp",true,{"$f":"IF(G7417<>\"\",INDIRECT(\"'\"&G7417&\"'!\"&H7417),\"\")","v":0},"EstExp 12-20","D385"]
[7413,{"$f":"'EstExp 12-20'!D386","v":{"v":0,"d":"0 "}},{"v":7413,"d":"7,413 "},"New 2021 -EstExp",true,{"$f":"IF(G7418<>\"\",INDIRECT(\"'\"&G7418&\"'!\"&H7418),\"\")","v":0},"EstExp 12-20","D386"]
[7414,{"$f":"'EstExp 12-20'!D387","v":{"v":0,"d":"0 "}},{"v":7414,"d":"7,414 "},"New 2021 -EstExp",true,{"$f":"IF(G7419<>\"\",INDIRECT(\"'\"&G7419&\"'!\"&H7419),\"\")","v":0},"EstExp 12-20","D387"]
[7415,{"$f":"'EstExp 12-20'!D388","v":{"v":0,"d":"0 "}},{"v":7415,"d":"7,415 "},"New 2021 -EstExp",true,{"$f":"IF(G7420<>\"\",INDIRECT(\"'\"&G7420&\"'!\"&H7420),\"\")","v":0},"EstExp 12-20","D388"]
[7416,{"$f":"'EstExp 12-20'!E316","v":{"v":0,"d":"0 "}},{"v":7416,"d":"7,416 "},"New 2021 -EstExp",true,{"$f":"IF(G7421<>\"\",INDIRECT(\"'\"&G7421&\"'!\"&H7421),\"\")","v":0},"EstExp 12-20","E316"]
[7417,{"$f":"'EstExp 12-20'!E317","v":{"v":0,"d":"0 "}},{"v":7417,"d":"7,417 "},"New 2021 -EstExp",true,{"$f":"IF(G7422<>\"\",INDIRECT(\"'\"&G7422&\"'!\"&H7422),\"\")","v":0},"EstExp 12-20","E317"]
[7418,{"$f":"'EstExp 12-20'!E318","v":{"v":0,"d":"0 "}},{"v":7418,"d":"7,418 "},"New 2021 -EstExp",true,{"$f":"IF(G7423<>\"\",INDIRECT(\"'\"&G7423&\"'!\"&H7423),\"\")","v":0},"EstExp 12-20","E318"]
[7419,{"$f":"'EstExp 12-20'!E319","v":{"v":0,"d":"0 "}},{"v":7419,"d":"7,419 "},"New 2021 -EstExp",true,{"$f":"IF(G7424<>\"\",INDIRECT(\"'\"&G7424&\"'!\"&H7424),\"\")","v":0},"EstExp 12-20","E319"]
[7420,{"$f":"'EstExp 12-20'!E320","v":{"v":0,"d":"0 "}},{"v":7420,"d":"7,420 "},"New 2021 -EstExp",true,{"$f":"IF(G7425<>\"\",INDIRECT(\"'\"&G7425&\"'!\"&H7425),\"\")","v":0},"EstExp 12-20","E320"]
[7421,{"$f":"'EstExp 12-20'!E321","v":{"v":0,"d":"0 "}},{"v":7421,"d":"7,421 "},"New 2021 -EstExp",{"$f":"F7426=B7426","v":true},{"$f":"IF(G7426<>\"\",INDIRECT(\"'\"&G7426&\"'!\"&H7426),\"\")","v":0},"EstExp 12-20","E321"]
[7422,{"$f":"'EstExp 12-20'!E322","v":{"v":0,"d":"0 "}},{"v":7422,"d":"7,422 "},"New 2021 -EstExp",true,{"$f":"IF(G7427<>\"\",INDIRECT(\"'\"&G7427&\"'!\"&H7427),\"\")","v":0},"EstExp 12-20","E322"]
[7423,{"$f":"'EstExp 12-20'!E323","v":{"v":0,"d":"0 "}},{"$f":"A7428-B7428","v":{"v":7423,"d":"7,423 "}},"New 2021 -EstExp",true,{"$f":"IF(G7428<>\"\",INDIRECT(\"'\"&G7428&\"'!\"&H7428),\"\")","v":0},"EstExp 12-20","E323"]
[7424,{"$f":"'EstExp 12-20'!E324","v":{"v":0,"d":"0 "}},{"v":7424,"d":"7,424 "},"New 2021 -EstExp",true,{"$f":"IF(G7429<>\"\",INDIRECT(\"'\"&G7429&\"'!\"&H7429),\"\")","v":0},"EstExp 12-20","E324"]
[7425,{"$f":"'EstExp 12-20'!E325","v":{"v":0,"d":"0 "}},{"v":7425,"d":"7,425 "},"New 2021 -EstExp",true,{"$f":"IF(G7430<>\"\",INDIRECT(\"'\"&G7430&\"'!\"&H7430),\"\")","v":0},"EstExp 12-20","E325"]
[7426,{"$f":"'EstExp 12-20'!E326","v":{"v":0,"d":"0 "}},{"v":7426,"d":"7,426 "},"New 2021 -EstExp",true,{"$f":"IF(G7431<>\"\",INDIRECT(\"'\"&G7431&\"'!\"&H7431),\"\")","v":0},"EstExp 12-20","E326"]
[7427,{"$f":"'EstExp 12-20'!E327","v":{"v":0,"d":"0 "}},{"v":7427,"d":"7,427 "},"New 2021 -EstExp",true,{"$f":"IF(G7432<>\"\",INDIRECT(\"'\"&G7432&\"'!\"&H7432),\"\")","v":0},"EstExp 12-20","E327"]
[7428,{"$f":"'EstExp 12-20'!E328","v":{"v":0,"d":"0 "}},{"v":7428,"d":"7,428 "},"New 2021 -EstExp",true,{"$f":"IF(G7433<>\"\",INDIRECT(\"'\"&G7433&\"'!\"&H7433),\"\")","v":0},"EstExp 12-20","E328"]
[7429,{"$f":"'EstExp 12-20'!E329","v":{"v":0,"d":"0 "}},{"v":7429,"d":"7,429 "},"New 2021 -EstExp",true,{"$f":"IF(G7434<>\"\",INDIRECT(\"'\"&G7434&\"'!\"&H7434),\"\")","v":0},"EstExp 12-20","E329"]
[7430,{"$f":"'EstExp 12-20'!E330","v":{"v":0,"d":"0 "}},{"v":7430,"d":"7,430 "},"New 2021 -EstExp",true,{"$f":"IF(G7435<>\"\",INDIRECT(\"'\"&G7435&\"'!\"&H7435),\"\")","v":0},"EstExp 12-20","E330"]
[7431,{"$f":"'EstExp 12-20'!E344","v":{"v":0,"d":"0 "}},{"v":7431,"d":"7,431 "},"New 2021 -EstExp",true,{"$f":"IF(G7436<>\"\",INDIRECT(\"'\"&G7436&\"'!\"&H7436),\"\")","v":0},"EstExp 12-20","E344"]
[7432,{"$f":"'EstExp 12-20'!E347","v":{"v":0,"d":"0 "}},{"v":7432,"d":"7,432 "},"New 2021 -EstExp",true,{"$f":"IF(G7437<>\"\",INDIRECT(\"'\"&G7437&\"'!\"&H7437),\"\")","v":0},"EstExp 12-20","E347"]
[7433,{"$f":"'EstExp 12-20'!E348","v":{"v":0,"d":"0 "}},{"v":7433,"d":"7,433 "},"New 2021 -EstExp",true,{"$f":"IF(G7438<>\"\",INDIRECT(\"'\"&G7438&\"'!\"&H7438),\"\")","v":0},"EstExp 12-20","E348"]
[7434,{"$f":"'EstExp 12-20'!E349","v":{"v":0,"d":"0 "}},{"v":7434,"d":"7,434 "},"New 2021 -EstExp",true,{"$f":"IF(G7439<>\"\",INDIRECT(\"'\"&G7439&\"'!\"&H7439),\"\")","v":0},"EstExp 12-20","E349"]
[7435,{"$f":"'EstExp 12-20'!E350","v":{"v":0,"d":"0 "}},{"v":7435,"d":"7,435 "},"New 2021 -EstExp",true,{"$f":"IF(G7440<>\"\",INDIRECT(\"'\"&G7440&\"'!\"&H7440),\"\")","v":0},"EstExp 12-20","E350"]
[7436,{"$f":"'EstExp 12-20'!E351","v":{"v":0,"d":"0 "}},{"v":7436,"d":"7,436 "},"New 2021 -EstExp",true,{"$f":"IF(G7441<>\"\",INDIRECT(\"'\"&G7441&\"'!\"&H7441),\"\")","v":0},"EstExp 12-20","E351"]
[7437,{"$f":"'EstExp 12-20'!E352","v":{"v":0,"d":"0 "}},{"v":7437,"d":"7,437 "},"New 2021 -EstExp",true,{"$f":"IF(G7442<>\"\",INDIRECT(\"'\"&G7442&\"'!\"&H7442),\"\")","v":0},"EstExp 12-20","E352"]
[7438,{"$f":"'EstExp 12-20'!E353","v":{"v":0,"d":"0 "}},{"v":7438,"d":"7,438 "},"New 2021 -EstExp",true,{"$f":"IF(G7443<>\"\",INDIRECT(\"'\"&G7443&\"'!\"&H7443),\"\")","v":0},"EstExp 12-20","E353"]
[7439,{"$f":"'EstExp 12-20'!E355","v":{"v":0,"d":"0 "}},{"v":7439,"d":"7,439 "},"New 2021 -EstExp",true,{"$f":"IF(G7444<>\"\",INDIRECT(\"'\"&G7444&\"'!\"&H7444),\"\")","v":0},"EstExp 12-20","E355"]
[7440,{"$f":"'EstExp 12-20'!E356","v":{"v":0,"d":"0 "}},{"v":7440,"d":"7,440 "},"New 2021 -EstExp",true,{"$f":"IF(G7445<>\"\",INDIRECT(\"'\"&G7445&\"'!\"&H7445),\"\")","v":0},"EstExp 12-20","E356"]
[7441,{"$f":"'EstExp 12-20'!E357","v":{"v":0,"d":"0 "}},{"v":7441,"d":"7,441 "},"New 2021 -EstExp",true,{"$f":"IF(G7446<>\"\",INDIRECT(\"'\"&G7446&\"'!\"&H7446),\"\")","v":0},"EstExp 12-20","E357"]
[7442,{"$f":"'EstExp 12-20'!E358","v":{"v":0,"d":"0 "}},{"v":7442,"d":"7,442 "},"New 2021 -EstExp",true,{"$f":"IF(G7447<>\"\",INDIRECT(\"'\"&G7447&\"'!\"&H7447),\"\")","v":0},"EstExp 12-20","E358"]
[7443,{"$f":"'EstExp 12-20'!E360","v":{"v":15000,"d":"15,000 "}},{"v":-7557,"d":"(7,557)"},"New 2021 -EstExp",true,{"$f":"IF(G7448<>\"\",INDIRECT(\"'\"&G7448&\"'!\"&H7448),\"\")","v":15000},"EstExp 12-20","E360"]
[7444,{"$f":"'EstExp 12-20'!E361","v":{"v":0,"d":"0 "}},{"v":7444,"d":"7,444 "},"New 2021 -EstExp",true,{"$f":"IF(G7449<>\"\",INDIRECT(\"'\"&G7449&\"'!\"&H7449),\"\")","v":0},"EstExp 12-20","E361"]
[7445,{"$f":"'EstExp 12-20'!E362","v":{"v":0,"d":"0 "}},{"v":7445,"d":"7,445 "},"New 2021 -EstExp",true,{"$f":"IF(G7450<>\"\",INDIRECT(\"'\"&G7450&\"'!\"&H7450),\"\")","v":0},"EstExp 12-20","E362"]
[7446,{"$f":"'EstExp 12-20'!E367","v":{"v":0,"d":"0 "}},{"v":7446,"d":"7,446 "},"New 2021 -EstExp",true,{"$f":"IF(G7451<>\"\",INDIRECT(\"'\"&G7451&\"'!\"&H7451),\"\")","v":0},"EstExp 12-20","E367"]
[7447,{"$f":"'EstExp 12-20'!E368","v":{"v":0,"d":"0 "}},{"v":7447,"d":"7,447 "},"New 2021 -EstExp",true,{"$f":"IF(G7452<>\"\",INDIRECT(\"'\"&G7452&\"'!\"&H7452),\"\")","v":0},"EstExp 12-20","E368"]
[7448,{"$f":"'EstExp 12-20'!E369","v":{"v":0,"d":"0 "}},{"v":7448,"d":"7,448 "},"New 2021 -EstExp",true,{"$f":"IF(G7453<>\"\",INDIRECT(\"'\"&G7453&\"'!\"&H7453),\"\")","v":0},"EstExp 12-20","E369"]
[7449,{"$f":"'EstExp 12-20'!E371","v":{"v":0,"d":"0 "}},{"v":7449,"d":"7,449 "},"New 2021 -EstExp",true,{"$f":"IF(G7454<>\"\",INDIRECT(\"'\"&G7454&\"'!\"&H7454),\"\")","v":0},"EstExp 12-20","E371"]
[7450,{"$f":"'EstExp 12-20'!E372","v":{"v":0,"d":"0 "}},{"v":7450,"d":"7,450 "},"New 2021 -EstExp",true,{"$f":"IF(G7455<>\"\",INDIRECT(\"'\"&G7455&\"'!\"&H7455),\"\")","v":0},"EstExp 12-20","E372"]
[7451,{"$f":"'EstExp 12-20'!E374","v":{"v":0,"d":"0 "}},{"v":7451,"d":"7,451 "},"New 2021 -EstExp",true,{"$f":"IF(G7456<>\"\",INDIRECT(\"'\"&G7456&\"'!\"&H7456),\"\")","v":0},"EstExp 12-20","E374"]
[7452,{"$f":"'EstExp 12-20'!E375","v":{"v":0,"d":"0 "}},{"v":7452,"d":"7,452 "},"New 2021 -EstExp",true,{"$f":"IF(G7457<>\"\",INDIRECT(\"'\"&G7457&\"'!\"&H7457),\"\")","v":0},"EstExp 12-20","E375"]
[7453,{"$f":"'EstExp 12-20'!E376","v":{"v":0,"d":"0 "}},{"v":7453,"d":"7,453 "},"New 2021 -EstExp",true,{"$f":"IF(G7458<>\"\",INDIRECT(\"'\"&G7458&\"'!\"&H7458),\"\")","v":0},"EstExp 12-20","E376"]
[7454,{"$f":"'EstExp 12-20'!E377","v":{"v":0,"d":"0 "}},{"v":7454,"d":"7,454 "},"New 2021 -EstExp",true,{"$f":"IF(G7459<>\"\",INDIRECT(\"'\"&G7459&\"'!\"&H7459),\"\")","v":0},"EstExp 12-20","E377"]
[7455,{"$f":"'EstExp 12-20'!E378","v":{"v":0,"d":"0 "}},{"v":7455,"d":"7,455 "},"New 2021 -EstExp",true,{"$f":"IF(G7460<>\"\",INDIRECT(\"'\"&G7460&\"'!\"&H7460),\"\")","v":0},"EstExp 12-20","E378"]
[7456,{"$f":"'EstExp 12-20'!E380","v":{"v":0,"d":"0 "}},{"v":7456,"d":"7,456 "},"New 2021 -EstExp",true,{"$f":"IF(G7461<>\"\",INDIRECT(\"'\"&G7461&\"'!\"&H7461),\"\")","v":0},"EstExp 12-20","E380"]
[7457,{"$f":"'EstExp 12-20'!E381","v":{"v":0,"d":"0 "}},{"v":7457,"d":"7,457 "},"New 2021 -EstExp",true,{"$f":"IF(G7462<>\"\",INDIRECT(\"'\"&G7462&\"'!\"&H7462),\"\")","v":0},"EstExp 12-20","E381"]
[7458,{"$f":"'EstExp 12-20'!E382","v":{"v":0,"d":"0 "}},{"v":7458,"d":"7,458 "},"New 2021 -EstExp",true,{"$f":"IF(G7463<>\"\",INDIRECT(\"'\"&G7463&\"'!\"&H7463),\"\")","v":0},"EstExp 12-20","E382"]
[7459,{"$f":"'EstExp 12-20'!E383","v":{"v":0,"d":"0 "}},{"v":7459,"d":"7,459 "},"New 2021 -EstExp",true,{"$f":"IF(G7464<>\"\",INDIRECT(\"'\"&G7464&\"'!\"&H7464),\"\")","v":0},"EstExp 12-20","E383"]
[7460,{"$f":"'EstExp 12-20'!E384","v":{"v":0,"d":"0 "}},{"v":7460,"d":"7,460 "},"New 2021 -EstExp",true,{"$f":"IF(G7465<>\"\",INDIRECT(\"'\"&G7465&\"'!\"&H7465),\"\")","v":0},"EstExp 12-20","E384"]
[7461,{"$f":"'EstExp 12-20'!E385","v":{"v":0,"d":"0 "}},{"v":7461,"d":"7,461 "},"New 2021 -EstExp",true,{"$f":"IF(G7466<>\"\",INDIRECT(\"'\"&G7466&\"'!\"&H7466),\"\")","v":0},"EstExp 12-20","E385"]
[7462,{"$f":"'EstExp 12-20'!E386","v":{"v":0,"d":"0 "}},{"v":7462,"d":"7,462 "},"New 2021 -EstExp",true,{"$f":"IF(G7467<>\"\",INDIRECT(\"'\"&G7467&\"'!\"&H7467),\"\")","v":0},"EstExp 12-20","E386"]
[7463,{"$f":"'EstExp 12-20'!E387","v":{"v":15000,"d":"15,000 "}},{"v":-7537,"d":"(7,537)"},"New 2021 -EstExp",true,{"$f":"IF(G7468<>\"\",INDIRECT(\"'\"&G7468&\"'!\"&H7468),\"\")","v":15000},"EstExp 12-20","E387"]
[7464,{"$f":"'EstExp 12-20'!E388","v":{"v":0,"d":"0 "}},{"v":7464,"d":"7,464 "},"New 2021 -EstExp",true,{"$f":"IF(G7469<>\"\",INDIRECT(\"'\"&G7469&\"'!\"&H7469),\"\")","v":0},"EstExp 12-20","E388"]
[7465,{"$f":"'EstExp 12-20'!E393","v":{"v":0,"d":"0 "}},{"v":7465,"d":"7,465 "},"New 2021 -EstExp",true,{"$f":"IF(G7470<>\"\",INDIRECT(\"'\"&G7470&\"'!\"&H7470),\"\")","v":0},"EstExp 12-20","E393"]
[7466,{"$f":"'EstExp 12-20'!E394","v":{"v":0,"d":"0 "}},{"v":7466,"d":"7,466 "},"New 2021 -EstExp",true,{"$f":"IF(G7471<>\"\",INDIRECT(\"'\"&G7471&\"'!\"&H7471),\"\")","v":0},"EstExp 12-20","E394"]
[7467,{"$f":"'EstExp 12-20'!E395","v":{"v":0,"d":"0 "}},{"v":7467,"d":"7,467 "},"New 2021 -EstExp",true,{"$f":"IF(G7472<>\"\",INDIRECT(\"'\"&G7472&\"'!\"&H7472),\"\")","v":0},"EstExp 12-20","E395"]
[7468,{"$f":"'EstExp 12-20'!E396","v":{"v":0,"d":"0 "}},{"v":7468,"d":"7,468 "},"New 2021 -EstExp",true,{"$f":"IF(G7473<>\"\",INDIRECT(\"'\"&G7473&\"'!\"&H7473),\"\")","v":0},"EstExp 12-20","E396"]
[7469,{"$f":"'EstExp 12-20'!E397","v":{"v":0,"d":"0 "}},{"v":7469,"d":"7,469 "},"New 2021 -EstExp",true,{"$f":"IF(G7474<>\"\",INDIRECT(\"'\"&G7474&\"'!\"&H7474),\"\")","v":0},"EstExp 12-20","E397"]
[7470,{"$f":"'EstExp 12-20'!E412","v":{"v":0,"d":"0 "}},{"v":7470,"d":"7,470 "},"New 2021 -EstExp",true,{"$f":"IF(G7475<>\"\",INDIRECT(\"'\"&G7475&\"'!\"&H7475),\"\")","v":0},"EstExp 12-20","E412"]
[7471,{"$f":"'EstExp 12-20'!E413","v":{"v":0,"d":"0 "}},{"v":7471,"d":"7,471 "},"New 2021 -EstExp",true,{"$f":"IF(G7476<>\"\",INDIRECT(\"'\"&G7476&\"'!\"&H7476),\"\")","v":0},"EstExp 12-20","E413"]
[7472,{"$f":"'EstExp 12-20'!E414","v":{"v":0,"d":"0 "}},{"v":7472,"d":"7,472 "},"New 2021 -EstExp",true,{"$f":"IF(G7477<>\"\",INDIRECT(\"'\"&G7477&\"'!\"&H7477),\"\")","v":0},"EstExp 12-20","E414"]
[7473,{"$f":"'EstExp 12-20'!E415","v":{"v":0,"d":"0 "}},{"v":7473,"d":"7,473 "},"New 2021 -EstExp",true,{"$f":"IF(G7478<>\"\",INDIRECT(\"'\"&G7478&\"'!\"&H7478),\"\")","v":0},"EstExp 12-20","E415"]
[7474,{"$f":"'EstExp 12-20'!F316","v":{"v":0,"d":"0 "}},{"v":7474,"d":"7,474 "},"New 2021 -EstExp",true,{"$f":"IF(G7479<>\"\",INDIRECT(\"'\"&G7479&\"'!\"&H7479),\"\")","v":0},"EstExp 12-20","F316"]
[7475,{"$f":"'EstExp 12-20'!F318","v":{"v":0,"d":"0 "}},{"v":7475,"d":"7,475 "},"New 2021 -EstExp",true,{"$f":"IF(G7480<>\"\",INDIRECT(\"'\"&G7480&\"'!\"&H7480),\"\")","v":0},"EstExp 12-20","F318"]
[7476,{"$f":"'EstExp 12-20'!F319","v":{"v":0,"d":"0 "}},{"v":7476,"d":"7,476 "},"New 2021 -EstExp",true,{"$f":"IF(G7481<>\"\",INDIRECT(\"'\"&G7481&\"'!\"&H7481),\"\")","v":0},"EstExp 12-20","F319"]
[7477,{"$f":"'EstExp 12-20'!F320","v":{"v":0,"d":"0 "}},{"v":7477,"d":"7,477 "},"New 2021 -EstExp",true,{"$f":"IF(G7482<>\"\",INDIRECT(\"'\"&G7482&\"'!\"&H7482),\"\")","v":0},"EstExp 12-20","F320"]
[7478,{"$f":"'EstExp 12-20'!F321","v":{"v":0,"d":"0 "}},{"v":7478,"d":"7,478 "},"New 2021 -EstExp",true,{"$f":"IF(G7483<>\"\",INDIRECT(\"'\"&G7483&\"'!\"&H7483),\"\")","v":0},"EstExp 12-20","F321"]
[7479,{"$f":"'EstExp 12-20'!F322","v":{"v":0,"d":"0 "}},{"v":7479,"d":"7,479 "},"New 2021 -EstExp",true,{"$f":"IF(G7484<>\"\",INDIRECT(\"'\"&G7484&\"'!\"&H7484),\"\")","v":0},"EstExp 12-20","F322"]
[7480,{"$f":"'EstExp 12-20'!F323","v":{"v":0,"d":"0 "}},{"v":7480,"d":"7,480 "},"New 2021 -EstExp",true,{"$f":"IF(G7485<>\"\",INDIRECT(\"'\"&G7485&\"'!\"&H7485),\"\")","v":0},"EstExp 12-20","F323"]
[7481,{"$f":"'EstExp 12-20'!F324","v":{"v":0,"d":"0 "}},{"v":7481,"d":"7,481 "},"New 2021 -EstExp",true,{"$f":"IF(G7486<>\"\",INDIRECT(\"'\"&G7486&\"'!\"&H7486),\"\")","v":0},"EstExp 12-20","F324"]
[7482,{"$f":"'EstExp 12-20'!F325","v":{"v":0,"d":"0 "}},{"v":7482,"d":"7,482 "},"New 2021 -EstExp",true,{"$f":"IF(G7487<>\"\",INDIRECT(\"'\"&G7487&\"'!\"&H7487),\"\")","v":0},"EstExp 12-20","F325"]
[7483,{"$f":"'EstExp 12-20'!F326","v":{"v":0,"d":"0 "}},{"v":7483,"d":"7,483 "},"New 2021 -EstExp",true,{"$f":"IF(G7488<>\"\",INDIRECT(\"'\"&G7488&\"'!\"&H7488),\"\")","v":0},"EstExp 12-20","F326"]
[7484,{"$f":"'EstExp 12-20'!F327","v":{"v":0,"d":"0 "}},{"v":7484,"d":"7,484 "},"New 2021 -EstExp",true,{"$f":"IF(G7489<>\"\",INDIRECT(\"'\"&G7489&\"'!\"&H7489),\"\")","v":0},"EstExp 12-20","F327"]
[7485,{"$f":"'EstExp 12-20'!F328","v":{"v":0,"d":"0 "}},{"v":7485,"d":"7,485 "},"New 2021 -EstExp",{"$f":"F7490=B7490","v":true},{"$f":"IF(G7490<>\"\",INDIRECT(\"'\"&G7490&\"'!\"&H7490),\"\")","v":0},"EstExp 12-20","F328"]
[7486,{"$f":"'EstExp 12-20'!F329","v":{"v":0,"d":"0 "}},{"v":7486,"d":"7,486 "},"New 2021 -EstExp",true,{"$f":"IF(G7491<>\"\",INDIRECT(\"'\"&G7491&\"'!\"&H7491),\"\")","v":0},"EstExp 12-20","F329"]
[7487,{"$f":"'EstExp 12-20'!F330","v":{"v":0,"d":"0 "}},{"$f":"A7492-B7492","v":{"v":7487,"d":"7,487 "}},"New 2021 -EstExp",true,{"$f":"IF(G7492<>\"\",INDIRECT(\"'\"&G7492&\"'!\"&H7492),\"\")","v":0},"EstExp 12-20","F330"]
[7488,{"$f":"'EstExp 12-20'!F344","v":{"v":0,"d":"0 "}},{"v":7488,"d":"7,488 "},"New 2021 -EstExp",true,{"$f":"IF(G7493<>\"\",INDIRECT(\"'\"&G7493&\"'!\"&H7493),\"\")","v":0},"EstExp 12-20","F344"]
[7489,{"$f":"'EstExp 12-20'!F347","v":{"v":0,"d":"0 "}},{"v":7489,"d":"7,489 "},"New 2021 -EstExp",true,{"$f":"IF(G7494<>\"\",INDIRECT(\"'\"&G7494&\"'!\"&H7494),\"\")","v":0},"EstExp 12-20","F347"]
[7490,{"$f":"'EstExp 12-20'!F348","v":{"v":0,"d":"0 "}},{"v":7490,"d":"7,490 "},"New 2021 -EstExp",true,{"$f":"IF(G7495<>\"\",INDIRECT(\"'\"&G7495&\"'!\"&H7495),\"\")","v":0},"EstExp 12-20","F348"]
[7491,{"$f":"'EstExp 12-20'!F349","v":{"v":0,"d":"0 "}},{"v":7491,"d":"7,491 "},"New 2021 -EstExp",true,{"$f":"IF(G7496<>\"\",INDIRECT(\"'\"&G7496&\"'!\"&H7496),\"\")","v":0},"EstExp 12-20","F349"]
[7492,{"$f":"'EstExp 12-20'!F350","v":{"v":0,"d":"0 "}},{"v":7492,"d":"7,492 "},"New 2021 -EstExp",true,{"$f":"IF(G7497<>\"\",INDIRECT(\"'\"&G7497&\"'!\"&H7497),\"\")","v":0},"EstExp 12-20","F350"]
[7493,{"$f":"'EstExp 12-20'!F351","v":{"v":0,"d":"0 "}},{"v":7493,"d":"7,493 "},"New 2021 -EstExp",true,{"$f":"IF(G7498<>\"\",INDIRECT(\"'\"&G7498&\"'!\"&H7498),\"\")","v":0},"EstExp 12-20","F351"]
[7494,{"$f":"'EstExp 12-20'!F352","v":{"v":0,"d":"0 "}},{"v":7494,"d":"7,494 "},"New 2021 -EstExp",true,{"$f":"IF(G7499<>\"\",INDIRECT(\"'\"&G7499&\"'!\"&H7499),\"\")","v":0},"EstExp 12-20","F352"]
[7495,{"$f":"'EstExp 12-20'!F353","v":{"v":0,"d":"0 "}},{"v":7495,"d":"7,495 "},"New 2021 -EstExp",true,{"$f":"IF(G7500<>\"\",INDIRECT(\"'\"&G7500&\"'!\"&H7500),\"\")","v":0},"EstExp 12-20","F353"]
[7496,{"$f":"'EstExp 12-20'!F355","v":{"v":0,"d":"0 "}},{"v":7496,"d":"7,496 "},"New 2021 -EstExp",true,{"$f":"IF(G7501<>\"\",INDIRECT(\"'\"&G7501&\"'!\"&H7501),\"\")","v":0},"EstExp 12-20","F355"]
[7497,{"$f":"'EstExp 12-20'!F356","v":{"v":0,"d":"0 "}},{"v":7497,"d":"7,497 "},"New 2021 -EstExp",true,{"$f":"IF(G7502<>\"\",INDIRECT(\"'\"&G7502&\"'!\"&H7502),\"\")","v":0},"EstExp 12-20","F356"]
[7498,{"$f":"'EstExp 12-20'!F357","v":{"v":0,"d":"0 "}},{"v":7498,"d":"7,498 "},"New 2021 -EstExp",true,{"$f":"IF(G7503<>\"\",INDIRECT(\"'\"&G7503&\"'!\"&H7503),\"\")","v":0},"EstExp 12-20","F357"]
[7499,{"$f":"'EstExp 12-20'!F358","v":{"v":0,"d":"0 "}},{"v":7499,"d":"7,499 "},"New 2021 -EstExp",true,{"$f":"IF(G7504<>\"\",INDIRECT(\"'\"&G7504&\"'!\"&H7504),\"\")","v":0},"EstExp 12-20","F358"]
[7500,{"$f":"'EstExp 12-20'!F360","v":{"v":0,"d":"0 "}},{"v":7500,"d":"7,500 "},"New 2021 -EstExp",true,{"$f":"IF(G7505<>\"\",INDIRECT(\"'\"&G7505&\"'!\"&H7505),\"\")","v":0},"EstExp 12-20","F360"]
[7501,{"$f":"'EstExp 12-20'!F361","v":{"v":0,"d":"0 "}},{"v":7501,"d":"7,501 "},"New 2021 -EstExp",true,{"$f":"IF(G7506<>\"\",INDIRECT(\"'\"&G7506&\"'!\"&H7506),\"\")","v":0},"EstExp 12-20","F361"]
[7502,{"$f":"'EstExp 12-20'!F362","v":{"v":0,"d":"0 "}},{"v":7502,"d":"7,502 "},"New 2021 -EstExp",true,{"$f":"IF(G7507<>\"\",INDIRECT(\"'\"&G7507&\"'!\"&H7507),\"\")","v":0},"EstExp 12-20","F362"]
[7503,{"$f":"'EstExp 12-20'!F367","v":{"v":0,"d":"0 "}},{"v":7503,"d":"7,503 "},"New 2021 -EstExp",true,{"$f":"IF(G7508<>\"\",INDIRECT(\"'\"&G7508&\"'!\"&H7508),\"\")","v":0},"EstExp 12-20","F367"]
[7504,{"$f":"'EstExp 12-20'!F368","v":{"v":0,"d":"0 "}},{"v":7504,"d":"7,504 "},"New 2021 -EstExp",true,{"$f":"IF(G7509<>\"\",INDIRECT(\"'\"&G7509&\"'!\"&H7509),\"\")","v":0},"EstExp 12-20","F368"]
[7505,{"$f":"'EstExp 12-20'!F369","v":{"v":0,"d":"0 "}},{"v":7505,"d":"7,505 "},"New 2021 -EstExp",true,{"$f":"IF(G7510<>\"\",INDIRECT(\"'\"&G7510&\"'!\"&H7510),\"\")","v":0},"EstExp 12-20","F369"]
[7506,{"$f":"'EstExp 12-20'!F371","v":{"v":0,"d":"0 "}},{"v":7506,"d":"7,506 "},"New 2021 -EstExp",true,{"$f":"IF(G7511<>\"\",INDIRECT(\"'\"&G7511&\"'!\"&H7511),\"\")","v":0},"EstExp 12-20","F371"]
[7507,{"$f":"'EstExp 12-20'!F372","v":{"v":0,"d":"0 "}},{"v":7507,"d":"7,507 "},"New 2021 -EstExp",true,{"$f":"IF(G7512<>\"\",INDIRECT(\"'\"&G7512&\"'!\"&H7512),\"\")","v":0},"EstExp 12-20","F372"]
[7508,{"$f":"'EstExp 12-20'!F374","v":{"v":0,"d":"0 "}},{"v":7508,"d":"7,508 "},"New 2021 -EstExp",true,{"$f":"IF(G7513<>\"\",INDIRECT(\"'\"&G7513&\"'!\"&H7513),\"\")","v":0},"EstExp 12-20","F374"]
[7509,{"$f":"'EstExp 12-20'!F375","v":{"v":0,"d":"0 "}},{"v":7509,"d":"7,509 "},"New 2021 -EstExp",true,{"$f":"IF(G7514<>\"\",INDIRECT(\"'\"&G7514&\"'!\"&H7514),\"\")","v":0},"EstExp 12-20","F375"]
[7510,{"$f":"'EstExp 12-20'!F376","v":{"v":0,"d":"0 "}},{"v":7510,"d":"7,510 "},"New 2021 -EstExp",true,{"$f":"IF(G7515<>\"\",INDIRECT(\"'\"&G7515&\"'!\"&H7515),\"\")","v":0},"EstExp 12-20","F376"]
[7511,{"$f":"'EstExp 12-20'!F377","v":{"v":0,"d":"0 "}},{"v":7511,"d":"7,511 "},"New 2021 -EstExp",true,{"$f":"IF(G7516<>\"\",INDIRECT(\"'\"&G7516&\"'!\"&H7516),\"\")","v":0},"EstExp 12-20","F377"]
[7512,{"$f":"'EstExp 12-20'!F378","v":{"v":0,"d":"0 "}},{"v":7512,"d":"7,512 "},"New 2021 -EstExp",true,{"$f":"IF(G7517<>\"\",INDIRECT(\"'\"&G7517&\"'!\"&H7517),\"\")","v":0},"EstExp 12-20","F378"]
[7513,{"$f":"'EstExp 12-20'!F380","v":{"v":0,"d":"0 "}},{"v":7513,"d":"7,513 "},"New 2021 -EstExp",true,{"$f":"IF(G7518<>\"\",INDIRECT(\"'\"&G7518&\"'!\"&H7518),\"\")","v":0},"EstExp 12-20","F380"]
[7514,{"$f":"'EstExp 12-20'!F381","v":{"v":0,"d":"0 "}},{"v":7514,"d":"7,514 "},"New 2021 -EstExp",true,{"$f":"IF(G7519<>\"\",INDIRECT(\"'\"&G7519&\"'!\"&H7519),\"\")","v":0},"EstExp 12-20","F381"]
[7515,{"$f":"'EstExp 12-20'!F382","v":{"v":0,"d":"0 "}},{"v":7515,"d":"7,515 "},"New 2021 -EstExp",true,{"$f":"IF(G7520<>\"\",INDIRECT(\"'\"&G7520&\"'!\"&H7520),\"\")","v":0},"EstExp 12-20","F382"]
[7516,{"$f":"'EstExp 12-20'!F383","v":{"v":0,"d":"0 "}},{"v":7516,"d":"7,516 "},"New 2021 -EstExp",true,{"$f":"IF(G7521<>\"\",INDIRECT(\"'\"&G7521&\"'!\"&H7521),\"\")","v":0},"EstExp 12-20","F383"]
[7517,{"$f":"'EstExp 12-20'!F384","v":{"v":0,"d":"0 "}},{"v":7517,"d":"7,517 "},"New 2021 -EstExp",true,{"$f":"IF(G7522<>\"\",INDIRECT(\"'\"&G7522&\"'!\"&H7522),\"\")","v":0},"EstExp 12-20","F384"]
[7518,{"$f":"'EstExp 12-20'!F385","v":{"v":0,"d":"0 "}},{"v":7518,"d":"7,518 "},"New 2021 -EstExp",true,{"$f":"IF(G7523<>\"\",INDIRECT(\"'\"&G7523&\"'!\"&H7523),\"\")","v":0},"EstExp 12-20","F385"]
[7519,{"$f":"'EstExp 12-20'!F386","v":{"v":0,"d":"0 "}},{"v":7519,"d":"7,519 "},"New 2021 -EstExp",true,{"$f":"IF(G7524<>\"\",INDIRECT(\"'\"&G7524&\"'!\"&H7524),\"\")","v":0},"EstExp 12-20","F386"]
[7520,{"$f":"'EstExp 12-20'!F387","v":{"v":0,"d":"0 "}},{"v":7520,"d":"7,520 "},"New 2021 -EstExp",true,{"$f":"IF(G7525<>\"\",INDIRECT(\"'\"&G7525&\"'!\"&H7525),\"\")","v":0},"EstExp 12-20","F387"]
[7521,{"$f":"'EstExp 12-20'!F388","v":{"v":0,"d":"0 "}},{"v":7521,"d":"7,521 "},"New 2021 -EstExp",true,{"$f":"IF(G7526<>\"\",INDIRECT(\"'\"&G7526&\"'!\"&H7526),\"\")","v":0},"EstExp 12-20","F388"]
[7522,{"$f":"'EstExp 12-20'!G316","v":{"v":0,"d":"0 "}},{"v":7522,"d":"7,522 "},"New 2021 -EstExp",true,{"$f":"IF(G7527<>\"\",INDIRECT(\"'\"&G7527&\"'!\"&H7527),\"\")","v":0},"EstExp 12-20","G316"]
[7523,{"$f":"'EstExp 12-20'!G318","v":{"v":0,"d":"0 "}},{"v":7523,"d":"7,523 "},"New 2021 -EstExp",true,{"$f":"IF(G7528<>\"\",INDIRECT(\"'\"&G7528&\"'!\"&H7528),\"\")","v":0},"EstExp 12-20","G318"]
[7524,{"$f":"'EstExp 12-20'!G319","v":{"v":0,"d":"0 "}},{"v":7524,"d":"7,524 "},"New 2021 -EstExp",true,{"$f":"IF(G7529<>\"\",INDIRECT(\"'\"&G7529&\"'!\"&H7529),\"\")","v":0},"EstExp 12-20","G319"]
[7525,{"$f":"'EstExp 12-20'!G320","v":{"v":0,"d":"0 "}},{"v":7525,"d":"7,525 "},"New 2021 -EstExp",true,{"$f":"IF(G7530<>\"\",INDIRECT(\"'\"&G7530&\"'!\"&H7530),\"\")","v":0},"EstExp 12-20","G320"]
[7526,{"$f":"'EstExp 12-20'!G321","v":{"v":0,"d":"0 "}},{"v":7526,"d":"7,526 "},"New 2021 -EstExp",true,{"$f":"IF(G7531<>\"\",INDIRECT(\"'\"&G7531&\"'!\"&H7531),\"\")","v":0},"EstExp 12-20","G321"]
[7527,{"$f":"'EstExp 12-20'!G322","v":{"v":0,"d":"0 "}},{"v":7527,"d":"7,527 "},"New 2021 -EstExp",true,{"$f":"IF(G7532<>\"\",INDIRECT(\"'\"&G7532&\"'!\"&H7532),\"\")","v":0},"EstExp 12-20","G322"]
[7528,{"$f":"'EstExp 12-20'!G323","v":{"v":0,"d":"0 "}},{"v":7528,"d":"7,528 "},"New 2021 -EstExp",true,{"$f":"IF(G7533<>\"\",INDIRECT(\"'\"&G7533&\"'!\"&H7533),\"\")","v":0},"EstExp 12-20","G323"]
[7529,{"$f":"'EstExp 12-20'!G324","v":{"v":0,"d":"0 "}},{"v":7529,"d":"7,529 "},"New 2021 -EstExp",true,{"$f":"IF(G7534<>\"\",INDIRECT(\"'\"&G7534&\"'!\"&H7534),\"\")","v":0},"EstExp 12-20","G324"]
[7530,{"$f":"'EstExp 12-20'!G325","v":{"v":0,"d":"0 "}},{"v":7530,"d":"7,530 "},"New 2021 -EstExp",true,{"$f":"IF(G7535<>\"\",INDIRECT(\"'\"&G7535&\"'!\"&H7535),\"\")","v":0},"EstExp 12-20","G325"]
[7531,{"$f":"'EstExp 12-20'!G326","v":{"v":0,"d":"0 "}},{"v":7531,"d":"7,531 "},"New 2021 -EstExp",true,{"$f":"IF(G7536<>\"\",INDIRECT(\"'\"&G7536&\"'!\"&H7536),\"\")","v":0},"EstExp 12-20","G326"]
[7532,{"$f":"'EstExp 12-20'!G327","v":{"v":0,"d":"0 "}},{"v":7532,"d":"7,532 "},"New 2021 -EstExp",true,{"$f":"IF(G7537<>\"\",INDIRECT(\"'\"&G7537&\"'!\"&H7537),\"\")","v":0},"EstExp 12-20","G327"]
[7533,{"$f":"'EstExp 12-20'!G328","v":{"v":0,"d":"0 "}},{"v":7533,"d":"7,533 "},"New 2021 -EstExp",true,{"$f":"IF(G7538<>\"\",INDIRECT(\"'\"&G7538&\"'!\"&H7538),\"\")","v":0},"EstExp 12-20","G328"]
[7534,{"$f":"'EstExp 12-20'!G329","v":{"v":0,"d":"0 "}},{"v":7534,"d":"7,534 "},"New 2021 -EstExp",true,{"$f":"IF(G7539<>\"\",INDIRECT(\"'\"&G7539&\"'!\"&H7539),\"\")","v":0},"EstExp 12-20","G329"]
[7535,{"$f":"'EstExp 12-20'!G330","v":{"v":0,"d":"0 "}},{"v":7535,"d":"7,535 "},"New 2021 -EstExp",true,{"$f":"IF(G7540<>\"\",INDIRECT(\"'\"&G7540&\"'!\"&H7540),\"\")","v":0},"EstExp 12-20","G330"]
[7536,{"$f":"'EstExp 12-20'!G344","v":{"v":0,"d":"0 "}},{"v":7536,"d":"7,536 "},"New 2021 -EstExp",true,{"$f":"IF(G7541<>\"\",INDIRECT(\"'\"&G7541&\"'!\"&H7541),\"\")","v":0},"EstExp 12-20","G344"]
[7537,{"$f":"'EstExp 12-20'!G347","v":{"v":0,"d":"0 "}},{"v":7537,"d":"7,537 "},"New 2021 -EstExp",true,{"$f":"IF(G7542<>\"\",INDIRECT(\"'\"&G7542&\"'!\"&H7542),\"\")","v":0},"EstExp 12-20","G347"]
[7538,{"$f":"'EstExp 12-20'!G348","v":{"v":0,"d":"0 "}},{"v":7538,"d":"7,538 "},"New 2021 -EstExp",true,{"$f":"IF(G7543<>\"\",INDIRECT(\"'\"&G7543&\"'!\"&H7543),\"\")","v":0},"EstExp 12-20","G348"]
[7539,{"$f":"'EstExp 12-20'!G349","v":{"v":0,"d":"0 "}},{"v":7539,"d":"7,539 "},"New 2021 -EstExp",true,{"$f":"IF(G7544<>\"\",INDIRECT(\"'\"&G7544&\"'!\"&H7544),\"\")","v":0},"EstExp 12-20","G349"]
[7540,{"$f":"'EstExp 12-20'!G350","v":{"v":0,"d":"0 "}},{"v":7540,"d":"7,540 "},"New 2021 -EstExp",true,{"$f":"IF(G7545<>\"\",INDIRECT(\"'\"&G7545&\"'!\"&H7545),\"\")","v":0},"EstExp 12-20","G350"]
[7541,{"$f":"'EstExp 12-20'!G351","v":{"v":0,"d":"0 "}},{"v":7541,"d":"7,541 "},"New 2021 -EstExp",true,{"$f":"IF(G7546<>\"\",INDIRECT(\"'\"&G7546&\"'!\"&H7546),\"\")","v":0},"EstExp 12-20","G351"]
[7542,{"$f":"'EstExp 12-20'!G352","v":{"v":0,"d":"0 "}},{"v":7542,"d":"7,542 "},"New 2021 -EstExp",true,{"$f":"IF(G7547<>\"\",INDIRECT(\"'\"&G7547&\"'!\"&H7547),\"\")","v":0},"EstExp 12-20","G352"]
[7543,{"$f":"'EstExp 12-20'!G353","v":{"v":0,"d":"0 "}},{"v":7543,"d":"7,543 "},"New 2021 -EstExp",true,{"$f":"IF(G7548<>\"\",INDIRECT(\"'\"&G7548&\"'!\"&H7548),\"\")","v":0},"EstExp 12-20","G353"]
[7544,{"$f":"'EstExp 12-20'!G356","v":{"v":0,"d":"0 "}},{"v":7544,"d":"7,544 "},"New 2021 -EstExp",true,{"$f":"IF(G7549<>\"\",INDIRECT(\"'\"&G7549&\"'!\"&H7549),\"\")","v":0},"EstExp 12-20","G356"]
[7545,{"$f":"'EstExp 12-20'!G357","v":{"v":0,"d":"0 "}},{"v":7545,"d":"7,545 "},"New 2021 -EstExp",true,{"$f":"IF(G7550<>\"\",INDIRECT(\"'\"&G7550&\"'!\"&H7550),\"\")","v":0},"EstExp 12-20","G357"]
[7546,{"$f":"'EstExp 12-20'!G358","v":{"v":0,"d":"0 "}},{"v":7546,"d":"7,546 "},"New 2021 -EstExp",true,{"$f":"IF(G7551<>\"\",INDIRECT(\"'\"&G7551&\"'!\"&H7551),\"\")","v":0},"EstExp 12-20","G358"]
[7547,{"$f":"'EstExp 12-20'!G360","v":{"v":0,"d":"0 "}},{"v":7547,"d":"7,547 "},"New 2021 -EstExp",true,{"$f":"IF(G7552<>\"\",INDIRECT(\"'\"&G7552&\"'!\"&H7552),\"\")","v":0},"EstExp 12-20","G360"]
[7548,{"$f":"'EstExp 12-20'!G361","v":{"v":0,"d":"0 "}},{"v":7548,"d":"7,548 "},"New 2021 -EstExp",true,{"$f":"IF(G7553<>\"\",INDIRECT(\"'\"&G7553&\"'!\"&H7553),\"\")","v":0},"EstExp 12-20","G361"]
[7549,{"$f":"'EstExp 12-20'!G362","v":{"v":0,"d":"0 "}},{"v":7549,"d":"7,549 "},"New 2021 -EstExp",{"$f":"F7554=B7554","v":true},{"$f":"IF(G7554<>\"\",INDIRECT(\"'\"&G7554&\"'!\"&H7554),\"\")","v":0},"EstExp 12-20","G362"]
[7550,{"$f":"'EstExp 12-20'!G367","v":{"v":0,"d":"0 "}},{"v":7550,"d":"7,550 "},"New 2021 -EstExp",true,{"$f":"IF(G7555<>\"\",INDIRECT(\"'\"&G7555&\"'!\"&H7555),\"\")","v":0},"EstExp 12-20","G367"]
[7551,{"$f":"'EstExp 12-20'!G368","v":{"v":0,"d":"0 "}},{"$f":"A7556-B7556","v":{"v":7551,"d":"7,551 "}},"New 2021 -EstExp",true,{"$f":"IF(G7556<>\"\",INDIRECT(\"'\"&G7556&\"'!\"&H7556),\"\")","v":0},"EstExp 12-20","G368"]
[7552,{"$f":"'EstExp 12-20'!G369","v":{"v":0,"d":"0 "}},{"v":7552,"d":"7,552 "},"New 2021 -EstExp",true,{"$f":"IF(G7557<>\"\",INDIRECT(\"'\"&G7557&\"'!\"&H7557),\"\")","v":0},"EstExp 12-20","G369"]
[7553,{"$f":"'EstExp 12-20'!G371","v":{"v":0,"d":"0 "}},{"v":7553,"d":"7,553 "},"New 2021 -EstExp",true,{"$f":"IF(G7558<>\"\",INDIRECT(\"'\"&G7558&\"'!\"&H7558),\"\")","v":0},"EstExp 12-20","G371"]
[7554,{"$f":"'EstExp 12-20'!G372","v":{"v":0,"d":"0 "}},{"v":7554,"d":"7,554 "},"New 2021 -EstExp",true,{"$f":"IF(G7559<>\"\",INDIRECT(\"'\"&G7559&\"'!\"&H7559),\"\")","v":0},"EstExp 12-20","G372"]
[7555,{"$f":"'EstExp 12-20'!G374","v":{"v":0,"d":"0 "}},{"v":7555,"d":"7,555 "},"New 2021 -EstExp",true,{"$f":"IF(G7560<>\"\",INDIRECT(\"'\"&G7560&\"'!\"&H7560),\"\")","v":0},"EstExp 12-20","G374"]
[7556,{"$f":"'EstExp 12-20'!G375","v":{"v":0,"d":"0 "}},{"v":7556,"d":"7,556 "},"New 2021 -EstExp",true,{"$f":"IF(G7561<>\"\",INDIRECT(\"'\"&G7561&\"'!\"&H7561),\"\")","v":0},"EstExp 12-20","G375"]
[7557,{"$f":"'EstExp 12-20'!G376","v":{"v":0,"d":"0 "}},{"v":7557,"d":"7,557 "},"New 2021 -EstExp",true,{"$f":"IF(G7562<>\"\",INDIRECT(\"'\"&G7562&\"'!\"&H7562),\"\")","v":0},"EstExp 12-20","G376"]
[7558,{"$f":"'EstExp 12-20'!G377","v":{"v":0,"d":"0 "}},{"v":7558,"d":"7,558 "},"New 2021 -EstExp",true,{"$f":"IF(G7563<>\"\",INDIRECT(\"'\"&G7563&\"'!\"&H7563),\"\")","v":0},"EstExp 12-20","G377"]
[7559,{"$f":"'EstExp 12-20'!G378","v":{"v":0,"d":"0 "}},{"v":7559,"d":"7,559 "},"New 2021 -EstExp",true,{"$f":"IF(G7564<>\"\",INDIRECT(\"'\"&G7564&\"'!\"&H7564),\"\")","v":0},"EstExp 12-20","G378"]
[7560,{"$f":"'EstExp 12-20'!G380","v":{"v":0,"d":"0 "}},{"v":7560,"d":"7,560 "},"New 2021 -EstExp",true,{"$f":"IF(G7565<>\"\",INDIRECT(\"'\"&G7565&\"'!\"&H7565),\"\")","v":0},"EstExp 12-20","G380"]
[7561,{"$f":"'EstExp 12-20'!G381","v":{"v":0,"d":"0 "}},{"v":7561,"d":"7,561 "},"New 2021 -EstExp",true,{"$f":"IF(G7566<>\"\",INDIRECT(\"'\"&G7566&\"'!\"&H7566),\"\")","v":0},"EstExp 12-20","G381"]
[7562,{"$f":"'EstExp 12-20'!G382","v":{"v":0,"d":"0 "}},{"v":7562,"d":"7,562 "},"New 2021 -EstExp",true,{"$f":"IF(G7567<>\"\",INDIRECT(\"'\"&G7567&\"'!\"&H7567),\"\")","v":0},"EstExp 12-20","G382"]
[7563,{"$f":"'EstExp 12-20'!G383","v":{"v":0,"d":"0 "}},{"v":7563,"d":"7,563 "},"New 2021 -EstExp",true,{"$f":"IF(G7568<>\"\",INDIRECT(\"'\"&G7568&\"'!\"&H7568),\"\")","v":0},"EstExp 12-20","G383"]
[7564,{"$f":"'EstExp 12-20'!G384","v":{"v":0,"d":"0 "}},{"v":7564,"d":"7,564 "},"New 2021 -EstExp",true,{"$f":"IF(G7569<>\"\",INDIRECT(\"'\"&G7569&\"'!\"&H7569),\"\")","v":0},"EstExp 12-20","G384"]
[7565,{"$f":"'EstExp 12-20'!G385","v":{"v":0,"d":"0 "}},{"v":7565,"d":"7,565 "},"New 2021 -EstExp",true,{"$f":"IF(G7570<>\"\",INDIRECT(\"'\"&G7570&\"'!\"&H7570),\"\")","v":0},"EstExp 12-20","G385"]
[7566,{"$f":"'EstExp 12-20'!G386","v":{"v":0,"d":"0 "}},{"v":7566,"d":"7,566 "},"New 2021 -EstExp",true,{"$f":"IF(G7571<>\"\",INDIRECT(\"'\"&G7571&\"'!\"&H7571),\"\")","v":0},"EstExp 12-20","G386"]
[7567,{"$f":"'EstExp 12-20'!G387","v":{"v":0,"d":"0 "}},{"v":7567,"d":"7,567 "},"New 2021 -EstExp",true,{"$f":"IF(G7572<>\"\",INDIRECT(\"'\"&G7572&\"'!\"&H7572),\"\")","v":0},"EstExp 12-20","G387"]
[7568,{"$f":"'EstExp 12-20'!G388","v":{"v":0,"d":"0 "}},{"v":7568,"d":"7,568 "},"New 2021 -EstExp",true,{"$f":"IF(G7573<>\"\",INDIRECT(\"'\"&G7573&\"'!\"&H7573),\"\")","v":0},"EstExp 12-20","G388"]
[7569,{"$f":"'EstExp 12-20'!H316","v":{"v":0,"d":"0 "}},{"v":7569,"d":"7,569 "},"New 2021 -EstExp",true,{"$f":"IF(G7574<>\"\",INDIRECT(\"'\"&G7574&\"'!\"&H7574),\"\")","v":0},"EstExp 12-20","H316"]
[7570,{"$f":"'EstExp 12-20'!H318","v":{"v":0,"d":"0 "}},{"v":7570,"d":"7,570 "},"New 2021 -EstExp",true,{"$f":"IF(G7575<>\"\",INDIRECT(\"'\"&G7575&\"'!\"&H7575),\"\")","v":0},"EstExp 12-20","H318"]
[7571,{"$f":"'EstExp 12-20'!H319","v":{"v":0,"d":"0 "}},{"v":7571,"d":"7,571 "},"New 2021 -EstExp",true,{"$f":"IF(G7576<>\"\",INDIRECT(\"'\"&G7576&\"'!\"&H7576),\"\")","v":0},"EstExp 12-20","H319"]
[7572,{"$f":"'EstExp 12-20'!H320","v":{"v":0,"d":"0 "}},{"v":7572,"d":"7,572 "},"New 2021 -EstExp",true,{"$f":"IF(G7577<>\"\",INDIRECT(\"'\"&G7577&\"'!\"&H7577),\"\")","v":0},"EstExp 12-20","H320"]
[7573,{"$f":"'EstExp 12-20'!H321","v":{"v":0,"d":"0 "}},{"v":7573,"d":"7,573 "},"New 2021 -EstExp",true,{"$f":"IF(G7578<>\"\",INDIRECT(\"'\"&G7578&\"'!\"&H7578),\"\")","v":0},"EstExp 12-20","H321"]
[7574,{"$f":"'EstExp 12-20'!H322","v":{"v":0,"d":"0 "}},{"v":7574,"d":"7,574 "},"New 2021 -EstExp",true,{"$f":"IF(G7579<>\"\",INDIRECT(\"'\"&G7579&\"'!\"&H7579),\"\")","v":0},"EstExp 12-20","H322"]
[7575,{"$f":"'EstExp 12-20'!H323","v":{"v":0,"d":"0 "}},{"v":7575,"d":"7,575 "},"New 2021 -EstExp",true,{"$f":"IF(G7580<>\"\",INDIRECT(\"'\"&G7580&\"'!\"&H7580),\"\")","v":0},"EstExp 12-20","H323"]
[7576,{"$f":"'EstExp 12-20'!H324","v":{"v":0,"d":"0 "}},{"v":7576,"d":"7,576 "},"New 2021 -EstExp",true,{"$f":"IF(G7581<>\"\",INDIRECT(\"'\"&G7581&\"'!\"&H7581),\"\")","v":0},"EstExp 12-20","H324"]
[7577,{"$f":"'EstExp 12-20'!H325","v":{"v":0,"d":"0 "}},{"v":7577,"d":"7,577 "},"New 2021 -EstExp",true,{"$f":"IF(G7582<>\"\",INDIRECT(\"'\"&G7582&\"'!\"&H7582),\"\")","v":0},"EstExp 12-20","H325"]
[7578,{"$f":"'EstExp 12-20'!H326","v":{"v":0,"d":"0 "}},{"v":7578,"d":"7,578 "},"New 2021 -EstExp",true,{"$f":"IF(G7583<>\"\",INDIRECT(\"'\"&G7583&\"'!\"&H7583),\"\")","v":0},"EstExp 12-20","H326"]
[7579,{"$f":"'EstExp 12-20'!H327","v":{"v":0,"d":"0 "}},{"v":7579,"d":"7,579 "},"New 2021 -EstExp",true,{"$f":"IF(G7584<>\"\",INDIRECT(\"'\"&G7584&\"'!\"&H7584),\"\")","v":0},"EstExp 12-20","H327"]
[7580,{"$f":"'EstExp 12-20'!H328","v":{"v":0,"d":"0 "}},{"v":7580,"d":"7,580 "},"New 2021 -EstExp",true,{"$f":"IF(G7585<>\"\",INDIRECT(\"'\"&G7585&\"'!\"&H7585),\"\")","v":0},"EstExp 12-20","H328"]
[7581,{"$f":"'EstExp 12-20'!H329","v":{"v":0,"d":"0 "}},{"v":7581,"d":"7,581 "},"New 2021 -EstExp",true,{"$f":"IF(G7586<>\"\",INDIRECT(\"'\"&G7586&\"'!\"&H7586),\"\")","v":0},"EstExp 12-20","H329"]
[7582,{"$f":"'EstExp 12-20'!H330","v":{"v":0,"d":"0 "}},{"v":7582,"d":"7,582 "},"New 2021 -EstExp",true,{"$f":"IF(G7587<>\"\",INDIRECT(\"'\"&G7587&\"'!\"&H7587),\"\")","v":0},"EstExp 12-20","H330"]
[7583,{"$f":"'EstExp 12-20'!H331","v":{"v":0,"d":"0 "}},{"v":7583,"d":"7,583 "},"New 2021 -EstExp",true,{"$f":"IF(G7588<>\"\",INDIRECT(\"'\"&G7588&\"'!\"&H7588),\"\")","v":0},"EstExp 12-20","H331"]
[7584,{"$f":"'EstExp 12-20'!H332","v":{"v":0,"d":"0 "}},{"v":7584,"d":"7,584 "},"New 2021 -EstExp",true,{"$f":"IF(G7589<>\"\",INDIRECT(\"'\"&G7589&\"'!\"&H7589),\"\")","v":0},"EstExp 12-20","H332"]
[7585,{"$f":"'EstExp 12-20'!H333","v":{"v":0,"d":"0 "}},{"v":7585,"d":"7,585 "},"New 2021 -EstExp",true,{"$f":"IF(G7590<>\"\",INDIRECT(\"'\"&G7590&\"'!\"&H7590),\"\")","v":0},"EstExp 12-20","H333"]
[7586,{"$f":"'EstExp 12-20'!H334","v":{"v":0,"d":"0 "}},{"v":7586,"d":"7,586 "},"New 2021 -EstExp",true,{"$f":"IF(G7591<>\"\",INDIRECT(\"'\"&G7591&\"'!\"&H7591),\"\")","v":0},"EstExp 12-20","H334"]
[7587,{"$f":"'EstExp 12-20'!H335","v":{"v":0,"d":"0 "}},{"v":7587,"d":"7,587 "},"New 2021 -EstExp",true,{"$f":"IF(G7592<>\"\",INDIRECT(\"'\"&G7592&\"'!\"&H7592),\"\")","v":0},"EstExp 12-20","H335"]
[7588,{"$f":"'EstExp 12-20'!H336","v":{"v":0,"d":"0 "}},{"v":7588,"d":"7,588 "},"New 2021 -EstExp",true,{"$f":"IF(G7593<>\"\",INDIRECT(\"'\"&G7593&\"'!\"&H7593),\"\")","v":0},"EstExp 12-20","H336"]
[7589,{"$f":"'EstExp 12-20'!H337","v":{"v":0,"d":"0 "}},{"v":7589,"d":"7,589 "},"New 2021 -EstExp",true,{"$f":"IF(G7594<>\"\",INDIRECT(\"'\"&G7594&\"'!\"&H7594),\"\")","v":0},"EstExp 12-20","H337"]
[7590,{"$f":"'EstExp 12-20'!H338","v":{"v":0,"d":"0 "}},{"v":7590,"d":"7,590 "},"New 2021 -EstExp",true,{"$f":"IF(G7595<>\"\",INDIRECT(\"'\"&G7595&\"'!\"&H7595),\"\")","v":0},"EstExp 12-20","H338"]
[7591,{"$f":"'EstExp 12-20'!H339","v":{"v":0,"d":"0 "}},{"v":7591,"d":"7,591 "},"New 2021 -EstExp",true,{"$f":"IF(G7596<>\"\",INDIRECT(\"'\"&G7596&\"'!\"&H7596),\"\")","v":0},"EstExp 12-20","H339"]
[7592,{"$f":"'EstExp 12-20'!H340","v":{"v":0,"d":"0 "}},{"v":7592,"d":"7,592 "},"New 2021 -EstExp",true,{"$f":"IF(G7597<>\"\",INDIRECT(\"'\"&G7597&\"'!\"&H7597),\"\")","v":0},"EstExp 12-20","H340"]
[7593,{"$f":"'EstExp 12-20'!H341","v":{"v":0,"d":"0 "}},{"v":7593,"d":"7,593 "},"New 2021 -EstExp",true,{"$f":"IF(G7598<>\"\",INDIRECT(\"'\"&G7598&\"'!\"&H7598),\"\")","v":0},"EstExp 12-20","H341"]
[7594,{"$f":"'EstExp 12-20'!H342","v":{"v":0,"d":"0 "}},{"v":7594,"d":"7,594 "},"New 2021 -EstExp",true,{"$f":"IF(G7599<>\"\",INDIRECT(\"'\"&G7599&\"'!\"&H7599),\"\")","v":0},"EstExp 12-20","H342"]
[7595,{"$f":"'EstExp 12-20'!H343","v":{"v":0,"d":"0 "}},{"v":7595,"d":"7,595 "},"New 2021 -EstExp",true,{"$f":"IF(G7600<>\"\",INDIRECT(\"'\"&G7600&\"'!\"&H7600),\"\")","v":0},"EstExp 12-20","H343"]
[7596,{"$f":"'EstExp 12-20'!H344","v":{"v":0,"d":"0 "}},{"v":7596,"d":"7,596 "},"New 2021 -EstExp",true,{"$f":"IF(G7601<>\"\",INDIRECT(\"'\"&G7601&\"'!\"&H7601),\"\")","v":0},"EstExp 12-20","H344"]
[7597,{"$f":"'EstExp 12-20'!H347","v":{"v":0,"d":"0 "}},{"v":7597,"d":"7,597 "},"New 2021 -EstExp",true,{"$f":"IF(G7602<>\"\",INDIRECT(\"'\"&G7602&\"'!\"&H7602),\"\")","v":0},"EstExp 12-20","H347"]
[7598,{"$f":"'EstExp 12-20'!H348","v":{"v":0,"d":"0 "}},{"v":7598,"d":"7,598 "},"New 2021 -EstExp",true,{"$f":"IF(G7603<>\"\",INDIRECT(\"'\"&G7603&\"'!\"&H7603),\"\")","v":0},"EstExp 12-20","H348"]
[7599,{"$f":"'EstExp 12-20'!H349","v":{"v":0,"d":"0 "}},{"v":7599,"d":"7,599 "},"New 2021 -EstExp",true,{"$f":"IF(G7604<>\"\",INDIRECT(\"'\"&G7604&\"'!\"&H7604),\"\")","v":0},"EstExp 12-20","H349"]
[7600,{"$f":"'EstExp 12-20'!H350","v":{"v":0,"d":"0 "}},{"v":7600,"d":"7,600 "},"New 2021 -EstExp",true,{"$f":"IF(G7605<>\"\",INDIRECT(\"'\"&G7605&\"'!\"&H7605),\"\")","v":0},"EstExp 12-20","H350"]
[7601,{"$f":"'EstExp 12-20'!H351","v":{"v":0,"d":"0 "}},{"v":7601,"d":"7,601 "},"New 2021 -EstExp",true,{"$f":"IF(G7606<>\"\",INDIRECT(\"'\"&G7606&\"'!\"&H7606),\"\")","v":0},"EstExp 12-20","H351"]
[7602,{"$f":"'EstExp 12-20'!H352","v":{"v":0,"d":"0 "}},{"v":7602,"d":"7,602 "},"New 2021 -EstExp",true,{"$f":"IF(G7607<>\"\",INDIRECT(\"'\"&G7607&\"'!\"&H7607),\"\")","v":0},"EstExp 12-20","H352"]
[7603,{"$f":"'EstExp 12-20'!H353","v":{"v":0,"d":"0 "}},{"v":7603,"d":"7,603 "},"New 2021 -EstExp",true,{"$f":"IF(G7608<>\"\",INDIRECT(\"'\"&G7608&\"'!\"&H7608),\"\")","v":0},"EstExp 12-20","H353"]
[7604,{"$f":"'EstExp 12-20'!H355","v":{"v":0,"d":"0 "}},{"v":7604,"d":"7,604 "},"New 2021 -EstExp",true,{"$f":"IF(G7609<>\"\",INDIRECT(\"'\"&G7609&\"'!\"&H7609),\"\")","v":0},"EstExp 12-20","H355"]
[7605,{"$f":"'EstExp 12-20'!H356","v":{"v":0,"d":"0 "}},{"v":7605,"d":"7,605 "},"New 2021 -EstExp",true,{"$f":"IF(G7610<>\"\",INDIRECT(\"'\"&G7610&\"'!\"&H7610),\"\")","v":0},"EstExp 12-20","H356"]
[7606,{"$f":"'EstExp 12-20'!H357","v":{"v":0,"d":"0 "}},{"v":7606,"d":"7,606 "},"New 2021 -EstExp",true,{"$f":"IF(G7611<>\"\",INDIRECT(\"'\"&G7611&\"'!\"&H7611),\"\")","v":0},"EstExp 12-20","H357"]
[7607,{"$f":"'EstExp 12-20'!H358","v":{"v":0,"d":"0 "}},{"v":7607,"d":"7,607 "},"New 2021 -EstExp",true,{"$f":"IF(G7612<>\"\",INDIRECT(\"'\"&G7612&\"'!\"&H7612),\"\")","v":0},"EstExp 12-20","H358"]
[7608,{"$f":"'EstExp 12-20'!H360","v":{"v":0,"d":"0 "}},{"v":7608,"d":"7,608 "},"New 2021 -EstExp",true,{"$f":"IF(G7613<>\"\",INDIRECT(\"'\"&G7613&\"'!\"&H7613),\"\")","v":0},"EstExp 12-20","H360"]
[7609,{"$f":"'EstExp 12-20'!H361","v":{"v":0,"d":"0 "}},{"v":7609,"d":"7,609 "},"New 2021 -EstExp",true,{"$f":"IF(G7614<>\"\",INDIRECT(\"'\"&G7614&\"'!\"&H7614),\"\")","v":0},"EstExp 12-20","H361"]
[7610,{"$f":"'EstExp 12-20'!H362","v":{"v":0,"d":"0 "}},{"v":7610,"d":"7,610 "},"New 2021 -EstExp",true,{"$f":"IF(G7615<>\"\",INDIRECT(\"'\"&G7615&\"'!\"&H7615),\"\")","v":0},"EstExp 12-20","H362"]
[7611,{"$f":"'EstExp 12-20'!H367","v":{"v":0,"d":"0 "}},{"v":7611,"d":"7,611 "},"New 2021 -EstExp",true,{"$f":"IF(G7616<>\"\",INDIRECT(\"'\"&G7616&\"'!\"&H7616),\"\")","v":0},"EstExp 12-20","H367"]
[7612,{"$f":"'EstExp 12-20'!H368","v":{"v":0,"d":"0 "}},{"v":7612,"d":"7,612 "},"New 2021 -EstExp",true,{"$f":"IF(G7617<>\"\",INDIRECT(\"'\"&G7617&\"'!\"&H7617),\"\")","v":0},"EstExp 12-20","H368"]
[7613,{"$f":"'EstExp 12-20'!H369","v":{"v":0,"d":"0 "}},{"v":7613,"d":"7,613 "},"New 2021 -EstExp",{"$f":"F7618=B7618","v":true},{"$f":"IF(G7618<>\"\",INDIRECT(\"'\"&G7618&\"'!\"&H7618),\"\")","v":0},"EstExp 12-20","H369"]
[7614,{"$f":"'EstExp 12-20'!H371","v":{"v":0,"d":"0 "}},{"v":7614,"d":"7,614 "},"New 2021 -EstExp",true,{"$f":"IF(G7619<>\"\",INDIRECT(\"'\"&G7619&\"'!\"&H7619),\"\")","v":0},"EstExp 12-20","H371"]
[7615,{"$f":"'EstExp 12-20'!H372","v":{"v":0,"d":"0 "}},{"$f":"A7620-B7620","v":{"v":7615,"d":"7,615 "}},"New 2021 -EstExp",true,{"$f":"IF(G7620<>\"\",INDIRECT(\"'\"&G7620&\"'!\"&H7620),\"\")","v":0},"EstExp 12-20","H372"]
[7616,{"$f":"'EstExp 12-20'!H374","v":{"v":0,"d":"0 "}},{"v":7616,"d":"7,616 "},"New 2021 -EstExp",true,{"$f":"IF(G7621<>\"\",INDIRECT(\"'\"&G7621&\"'!\"&H7621),\"\")","v":0},"EstExp 12-20","H374"]
[7617,{"$f":"'EstExp 12-20'!H375","v":{"v":0,"d":"0 "}},{"v":7617,"d":"7,617 "},"New 2021 -EstExp",true,{"$f":"IF(G7622<>\"\",INDIRECT(\"'\"&G7622&\"'!\"&H7622),\"\")","v":0},"EstExp 12-20","H375"]
[7618,{"$f":"'EstExp 12-20'!H376","v":{"v":0,"d":"0 "}},{"v":7618,"d":"7,618 "},"New 2021 -EstExp",true,{"$f":"IF(G7623<>\"\",INDIRECT(\"'\"&G7623&\"'!\"&H7623),\"\")","v":0},"EstExp 12-20","H376"]
[7619,{"$f":"'EstExp 12-20'!H377","v":{"v":0,"d":"0 "}},{"v":7619,"d":"7,619 "},"New 2021 -EstExp",true,{"$f":"IF(G7624<>\"\",INDIRECT(\"'\"&G7624&\"'!\"&H7624),\"\")","v":0},"EstExp 12-20","H377"]
[7620,{"$f":"'EstExp 12-20'!H378","v":{"v":0,"d":"0 "}},{"v":7620,"d":"7,620 "},"New 2021 -EstExp",true,{"$f":"IF(G7625<>\"\",INDIRECT(\"'\"&G7625&\"'!\"&H7625),\"\")","v":0},"EstExp 12-20","H378"]
[7621,{"$f":"'EstExp 12-20'!H380","v":{"v":0,"d":"0 "}},{"v":7621,"d":"7,621 "},"New 2021 -EstExp",true,{"$f":"IF(G7626<>\"\",INDIRECT(\"'\"&G7626&\"'!\"&H7626),\"\")","v":0},"EstExp 12-20","H380"]
[7622,{"$f":"'EstExp 12-20'!H381","v":{"v":0,"d":"0 "}},{"v":7622,"d":"7,622 "},"New 2021 -EstExp",true,{"$f":"IF(G7627<>\"\",INDIRECT(\"'\"&G7627&\"'!\"&H7627),\"\")","v":0},"EstExp 12-20","H381"]
[7623,{"$f":"'EstExp 12-20'!H382","v":{"v":0,"d":"0 "}},{"v":7623,"d":"7,623 "},"New 2021 -EstExp",true,{"$f":"IF(G7628<>\"\",INDIRECT(\"'\"&G7628&\"'!\"&H7628),\"\")","v":0},"EstExp 12-20","H382"]
[7624,{"$f":"'EstExp 12-20'!H383","v":{"v":0,"d":"0 "}},{"v":7624,"d":"7,624 "},"New 2021 -EstExp",true,{"$f":"IF(G7629<>\"\",INDIRECT(\"'\"&G7629&\"'!\"&H7629),\"\")","v":0},"EstExp 12-20","H383"]
[7625,{"$f":"'EstExp 12-20'!H384","v":{"v":0,"d":"0 "}},{"v":7625,"d":"7,625 "},"New 2021 -EstExp",true,{"$f":"IF(G7630<>\"\",INDIRECT(\"'\"&G7630&\"'!\"&H7630),\"\")","v":0},"EstExp 12-20","H384"]
[7626,{"$f":"'EstExp 12-20'!H385","v":{"v":0,"d":"0 "}},{"v":7626,"d":"7,626 "},"New 2021 -EstExp",true,{"$f":"IF(G7631<>\"\",INDIRECT(\"'\"&G7631&\"'!\"&H7631),\"\")","v":0},"EstExp 12-20","H385"]
[7627,{"$f":"'EstExp 12-20'!H386","v":{"v":0,"d":"0 "}},{"v":7627,"d":"7,627 "},"New 2021 -EstExp",true,{"$f":"IF(G7632<>\"\",INDIRECT(\"'\"&G7632&\"'!\"&H7632),\"\")","v":0},"EstExp 12-20","H386"]
[7628,{"$f":"'EstExp 12-20'!H387","v":{"v":0,"d":"0 "}},{"v":7628,"d":"7,628 "},"New 2021 -EstExp",true,{"$f":"IF(G7633<>\"\",INDIRECT(\"'\"&G7633&\"'!\"&H7633),\"\")","v":0},"EstExp 12-20","H387"]
[7629,{"$f":"'EstExp 12-20'!H388","v":{"v":0,"d":"0 "}},{"v":7629,"d":"7,629 "},"New 2021 -EstExp",true,{"$f":"IF(G7634<>\"\",INDIRECT(\"'\"&G7634&\"'!\"&H7634),\"\")","v":0},"EstExp 12-20","H388"]
[7630,{"$f":"'EstExp 12-20'!H393","v":{"v":0,"d":"0 "}},{"v":7630,"d":"7,630 "},"New 2021 -EstExp",true,{"$f":"IF(G7635<>\"\",INDIRECT(\"'\"&G7635&\"'!\"&H7635),\"\")","v":0},"EstExp 12-20","H393"]
[7631,{"$f":"'EstExp 12-20'!H394","v":{"v":0,"d":"0 "}},{"v":7631,"d":"7,631 "},"New 2021 -EstExp",true,{"$f":"IF(G7636<>\"\",INDIRECT(\"'\"&G7636&\"'!\"&H7636),\"\")","v":0},"EstExp 12-20","H394"]
[7632,{"$f":"'EstExp 12-20'!H395","v":{"v":0,"d":"0 "}},{"v":7632,"d":"7,632 "},"New 2021 -EstExp",true,{"$f":"IF(G7637<>\"\",INDIRECT(\"'\"&G7637&\"'!\"&H7637),\"\")","v":0},"EstExp 12-20","H395"]
[7633,{"$f":"'EstExp 12-20'!H396","v":{"v":0,"d":"0 "}},{"v":7633,"d":"7,633 "},"New 2021 -EstExp",true,{"$f":"IF(G7638<>\"\",INDIRECT(\"'\"&G7638&\"'!\"&H7638),\"\")","v":0},"EstExp 12-20","H396"]
[7634,null,null,"Closed -added by mistake ",true,{"$f":"IF(G7639<>\"\",INDIRECT(\"'\"&G7639&\"'!\"&H7639),\"\")","v":""}]
[7635,{"$f":"'EstExp 12-20'!H398","v":{"v":0,"d":"0 "}},{"v":7635,"d":"7,635 "},"New 2021 -EstExp",true,{"$f":"IF(G7640<>\"\",INDIRECT(\"'\"&G7640&\"'!\"&H7640),\"\")","v":0},"EstExp 12-20","H398"]
[7636,{"$f":"'EstExp 12-20'!H399","v":{"v":0,"d":"0 "}},{"v":7636,"d":"7,636 "},"New 2021 -EstExp",true,{"$f":"IF(G7641<>\"\",INDIRECT(\"'\"&G7641&\"'!\"&H7641),\"\")","v":0},"EstExp 12-20","H399"]
[7637,{"$f":"'EstExp 12-20'!H400","v":{"v":0,"d":"0 "}},{"v":7637,"d":"7,637 "},"New 2021 -EstExp",true,{"$f":"IF(G7642<>\"\",INDIRECT(\"'\"&G7642&\"'!\"&H7642),\"\")","v":0},"EstExp 12-20","H400"]
[7638,{"$f":"'EstExp 12-20'!H401","v":{"v":0,"d":"0 "}},{"v":7638,"d":"7,638 "},"New 2021 -EstExp",true,{"$f":"IF(G7643<>\"\",INDIRECT(\"'\"&G7643&\"'!\"&H7643),\"\")","v":0},"EstExp 12-20","H401"]
[7639,{"$f":"'EstExp 12-20'!H402","v":{"v":0,"d":"0 "}},{"v":7639,"d":"7,639 "},"New 2021 -EstExp",true,{"$f":"IF(G7644<>\"\",INDIRECT(\"'\"&G7644&\"'!\"&H7644),\"\")","v":0},"EstExp 12-20","H402"]
[7640,{"$f":"'EstExp 12-20'!H403","v":{"v":0,"d":"0 "}},{"v":7640,"d":"7,640 "},"New 2021 -EstExp",true,{"$f":"IF(G7645<>\"\",INDIRECT(\"'\"&G7645&\"'!\"&H7645),\"\")","v":0},"EstExp 12-20","H403"]
[7641,{"$f":"'EstExp 12-20'!H404","v":{"v":0,"d":"0 "}},{"v":7641,"d":"7,641 "},"New 2021 -EstExp",true,{"$f":"IF(G7646<>\"\",INDIRECT(\"'\"&G7646&\"'!\"&H7646),\"\")","v":0},"EstExp 12-20","H404"]
[7642,{"$f":"'EstExp 12-20'!H405","v":{"v":0,"d":"0 "}},{"v":7642,"d":"7,642 "},"New 2021 -EstExp",true,{"$f":"IF(G7647<>\"\",INDIRECT(\"'\"&G7647&\"'!\"&H7647),\"\")","v":0},"EstExp 12-20","H405"]
[7643,{"$f":"'EstExp 12-20'!H406","v":{"v":0,"d":"0 "}},{"v":7643,"d":"7,643 "},"New 2021 -EstExp",true,{"$f":"IF(G7648<>\"\",INDIRECT(\"'\"&G7648&\"'!\"&H7648),\"\")","v":0},"EstExp 12-20","H406"]
[7644,{"$f":"'EstExp 12-20'!H407","v":{"v":0,"d":"0 "}},{"v":7644,"d":"7,644 "},"New 2021 -EstExp",true,{"$f":"IF(G7649<>\"\",INDIRECT(\"'\"&G7649&\"'!\"&H7649),\"\")","v":0},"EstExp 12-20","H407"]
[7645,{"$f":"'EstExp 12-20'!H408","v":{"v":0,"d":"0 "}},{"v":7645,"d":"7,645 "},"New 2021 -EstExp",true,{"$f":"IF(G7650<>\"\",INDIRECT(\"'\"&G7650&\"'!\"&H7650),\"\")","v":0},"EstExp 12-20","H408"]
[7646,{"$f":"'EstExp 12-20'!H409","v":{"v":0,"d":"0 "}},{"v":7646,"d":"7,646 "},"New 2021 -EstExp",true,{"$f":"IF(G7651<>\"\",INDIRECT(\"'\"&G7651&\"'!\"&H7651),\"\")","v":0},"EstExp 12-20","H409"]
[7647,{"$f":"'EstExp 12-20'!H410","v":{"v":0,"d":"0 "}},{"v":7647,"d":"7,647 "},"New 2021 -EstExp",true,{"$f":"IF(G7652<>\"\",INDIRECT(\"'\"&G7652&\"'!\"&H7652),\"\")","v":0},"EstExp 12-20","H410"]
[7648,{"$f":"'EstExp 12-20'!H411","v":{"v":0,"d":"0 "}},{"v":7648,"d":"7,648 "},"New 2021 -EstExp",true,{"$f":"IF(G7653<>\"\",INDIRECT(\"'\"&G7653&\"'!\"&H7653),\"\")","v":0},"EstExp 12-20","H411"]
[7649,{"$f":"'EstExp 12-20'!H412","v":{"v":0,"d":"0 "}},{"v":7649,"d":"7,649 "},"New 2021 -EstExp",true,{"$f":"IF(G7654<>\"\",INDIRECT(\"'\"&G7654&\"'!\"&H7654),\"\")","v":0},"EstExp 12-20","H412"]
[7650,{"$f":"'EstExp 12-20'!H413","v":{"v":0,"d":"0 "}},{"v":7650,"d":"7,650 "},"New 2021 -EstExp",true,{"$f":"IF(G7655<>\"\",INDIRECT(\"'\"&G7655&\"'!\"&H7655),\"\")","v":0},"EstExp 12-20","H413"]
[7651,{"$f":"'EstExp 12-20'!H414","v":{"v":0,"d":"0 "}},{"v":7651,"d":"7,651 "},"New 2021 -EstExp",true,{"$f":"IF(G7656<>\"\",INDIRECT(\"'\"&G7656&\"'!\"&H7656),\"\")","v":0},"EstExp 12-20","H414"]
[7652,{"$f":"'EstExp 12-20'!I316","v":{"v":0,"d":"0 "}},{"v":7652,"d":"7,652 "},"New 2021 -EstExp",true,{"$f":"IF(G7657<>\"\",INDIRECT(\"'\"&G7657&\"'!\"&H7657),\"\")","v":0},"EstExp 12-20","I316"]
[7653,{"$f":"'EstExp 12-20'!I318","v":{"v":0,"d":"0 "}},{"v":7653,"d":"7,653 "},"New 2021 -EstExp",true,{"$f":"IF(G7658<>\"\",INDIRECT(\"'\"&G7658&\"'!\"&H7658),\"\")","v":0},"EstExp 12-20","I318"]
[7654,{"$f":"'EstExp 12-20'!I319","v":{"v":0,"d":"0 "}},{"v":7654,"d":"7,654 "},"New 2021 -EstExp",true,{"$f":"IF(G7659<>\"\",INDIRECT(\"'\"&G7659&\"'!\"&H7659),\"\")","v":0},"EstExp 12-20","I319"]
[7655,{"$f":"'EstExp 12-20'!I320","v":{"v":0,"d":"0 "}},{"v":7655,"d":"7,655 "},"New 2021 -EstExp",true,{"$f":"IF(G7660<>\"\",INDIRECT(\"'\"&G7660&\"'!\"&H7660),\"\")","v":0},"EstExp 12-20","I320"]
[7656,{"$f":"'EstExp 12-20'!I321","v":{"v":0,"d":"0 "}},{"v":7656,"d":"7,656 "},"New 2021 -EstExp",true,{"$f":"IF(G7661<>\"\",INDIRECT(\"'\"&G7661&\"'!\"&H7661),\"\")","v":0},"EstExp 12-20","I321"]
[7657,{"$f":"'EstExp 12-20'!I322","v":{"v":0,"d":"0 "}},{"v":7657,"d":"7,657 "},"New 2021 -EstExp",true,{"$f":"IF(G7662<>\"\",INDIRECT(\"'\"&G7662&\"'!\"&H7662),\"\")","v":0},"EstExp 12-20","I322"]
[7658,{"$f":"'EstExp 12-20'!I323","v":{"v":0,"d":"0 "}},{"v":7658,"d":"7,658 "},"New 2021 -EstExp",true,{"$f":"IF(G7663<>\"\",INDIRECT(\"'\"&G7663&\"'!\"&H7663),\"\")","v":0},"EstExp 12-20","I323"]
[7659,{"$f":"'EstExp 12-20'!I324","v":{"v":0,"d":"0 "}},{"v":7659,"d":"7,659 "},"New 2021 -EstExp",true,{"$f":"IF(G7664<>\"\",INDIRECT(\"'\"&G7664&\"'!\"&H7664),\"\")","v":0},"EstExp 12-20","I324"]
[7660,{"$f":"'EstExp 12-20'!I325","v":{"v":0,"d":"0 "}},{"v":7660,"d":"7,660 "},"New 2021 -EstExp",true,{"$f":"IF(G7665<>\"\",INDIRECT(\"'\"&G7665&\"'!\"&H7665),\"\")","v":0},"EstExp 12-20","I325"]
[7661,{"$f":"'EstExp 12-20'!I326","v":{"v":0,"d":"0 "}},{"v":7661,"d":"7,661 "},"New 2021 -EstExp",true,{"$f":"IF(G7666<>\"\",INDIRECT(\"'\"&G7666&\"'!\"&H7666),\"\")","v":0},"EstExp 12-20","I326"]
[7662,{"$f":"'EstExp 12-20'!I327","v":{"v":0,"d":"0 "}},{"v":7662,"d":"7,662 "},"New 2021 -EstExp",true,{"$f":"IF(G7667<>\"\",INDIRECT(\"'\"&G7667&\"'!\"&H7667),\"\")","v":0},"EstExp 12-20","I327"]
[7663,{"$f":"'EstExp 12-20'!I328","v":{"v":0,"d":"0 "}},{"v":7663,"d":"7,663 "},"New 2021 -EstExp",true,{"$f":"IF(G7668<>\"\",INDIRECT(\"'\"&G7668&\"'!\"&H7668),\"\")","v":0},"EstExp 12-20","I328"]
[7664,{"$f":"'EstExp 12-20'!I329","v":{"v":0,"d":"0 "}},{"v":7664,"d":"7,664 "},"New 2021 -EstExp",true,{"$f":"IF(G7669<>\"\",INDIRECT(\"'\"&G7669&\"'!\"&H7669),\"\")","v":0},"EstExp 12-20","I329"]
[7665,{"$f":"'EstExp 12-20'!I330","v":{"v":0,"d":"0 "}},{"v":7665,"d":"7,665 "},"New 2021 -EstExp",true,{"$f":"IF(G7670<>\"\",INDIRECT(\"'\"&G7670&\"'!\"&H7670),\"\")","v":0},"EstExp 12-20","I330"]
[7666,{"$f":"'EstExp 12-20'!I344","v":{"v":0,"d":"0 "}},{"v":7666,"d":"7,666 "},"New 2021 -EstExp",true,{"$f":"IF(G7671<>\"\",INDIRECT(\"'\"&G7671&\"'!\"&H7671),\"\")","v":0},"EstExp 12-20","I344"]
[7667,{"$f":"'EstExp 12-20'!I347","v":{"v":0,"d":"0 "}},{"v":7667,"d":"7,667 "},"New 2021 -EstExp",true,{"$f":"IF(G7672<>\"\",INDIRECT(\"'\"&G7672&\"'!\"&H7672),\"\")","v":0},"EstExp 12-20","I347"]
[7668,{"$f":"'EstExp 12-20'!I348","v":{"v":0,"d":"0 "}},{"v":7668,"d":"7,668 "},"New 2021 -EstExp",true,{"$f":"IF(G7673<>\"\",INDIRECT(\"'\"&G7673&\"'!\"&H7673),\"\")","v":0},"EstExp 12-20","I348"]
[7669,{"$f":"'EstExp 12-20'!I349","v":{"v":0,"d":"0 "}},{"v":7669,"d":"7,669 "},"New 2021 -EstExp",true,{"$f":"IF(G7674<>\"\",INDIRECT(\"'\"&G7674&\"'!\"&H7674),\"\")","v":0},"EstExp 12-20","I349"]
[7670,{"$f":"'EstExp 12-20'!I350","v":{"v":0,"d":"0 "}},{"v":7670,"d":"7,670 "},"New 2021 -EstExp",true,{"$f":"IF(G7675<>\"\",INDIRECT(\"'\"&G7675&\"'!\"&H7675),\"\")","v":0},"EstExp 12-20","I350"]
[7671,{"$f":"'EstExp 12-20'!I351","v":{"v":0,"d":"0 "}},{"v":7671,"d":"7,671 "},"New 2021 -EstExp",true,{"$f":"IF(G7676<>\"\",INDIRECT(\"'\"&G7676&\"'!\"&H7676),\"\")","v":0},"EstExp 12-20","I351"]
[7672,{"$f":"'EstExp 12-20'!I352","v":{"v":0,"d":"0 "}},{"v":7672,"d":"7,672 "},"New 2021 -EstExp",true,{"$f":"IF(G7677<>\"\",INDIRECT(\"'\"&G7677&\"'!\"&H7677),\"\")","v":0},"EstExp 12-20","I352"]
[7673,{"$f":"'EstExp 12-20'!I353","v":{"v":0,"d":"0 "}},{"v":7673,"d":"7,673 "},"New 2021 -EstExp",true,{"$f":"IF(G7678<>\"\",INDIRECT(\"'\"&G7678&\"'!\"&H7678),\"\")","v":0},"EstExp 12-20","I353"]
[7674,{"$f":"'EstExp 12-20'!I355","v":{"v":0,"d":"0 "}},{"v":7674,"d":"7,674 "},"New 2021 -EstExp",true,{"$f":"IF(G7679<>\"\",INDIRECT(\"'\"&G7679&\"'!\"&H7679),\"\")","v":0},"EstExp 12-20","I355"]
[7675,{"$f":"'EstExp 12-20'!I356","v":{"v":0,"d":"0 "}},{"v":7675,"d":"7,675 "},"New 2021 -EstExp",true,{"$f":"IF(G7680<>\"\",INDIRECT(\"'\"&G7680&\"'!\"&H7680),\"\")","v":0},"EstExp 12-20","I356"]
[7676,{"$f":"'EstExp 12-20'!I357","v":{"v":0,"d":"0 "}},{"v":7676,"d":"7,676 "},"New 2021 -EstExp",true,{"$f":"IF(G7681<>\"\",INDIRECT(\"'\"&G7681&\"'!\"&H7681),\"\")","v":0},"EstExp 12-20","I357"]
[7677,{"$f":"'EstExp 12-20'!I358","v":{"v":0,"d":"0 "}},{"v":7677,"d":"7,677 "},"New 2021 -EstExp",{"$f":"F7682=B7682","v":true},{"$f":"IF(G7682<>\"\",INDIRECT(\"'\"&G7682&\"'!\"&H7682),\"\")","v":0},"EstExp 12-20","I358"]
[7678,{"$f":"'EstExp 12-20'!I360","v":{"v":0,"d":"0 "}},{"v":7678,"d":"7,678 "},"New 2021 -EstExp",true,{"$f":"IF(G7683<>\"\",INDIRECT(\"'\"&G7683&\"'!\"&H7683),\"\")","v":0},"EstExp 12-20","I360"]
[7679,{"$f":"'EstExp 12-20'!I361","v":{"v":0,"d":"0 "}},{"$f":"A7684-B7684","v":{"v":7679,"d":"7,679 "}},"New 2021 -EstExp",true,{"$f":"IF(G7684<>\"\",INDIRECT(\"'\"&G7684&\"'!\"&H7684),\"\")","v":0},"EstExp 12-20","I361"]
[7680,{"$f":"'EstExp 12-20'!I362","v":{"v":0,"d":"0 "}},{"v":7680,"d":"7,680 "},"New 2021 -EstExp",true,{"$f":"IF(G7685<>\"\",INDIRECT(\"'\"&G7685&\"'!\"&H7685),\"\")","v":0},"EstExp 12-20","I362"]
[7681,{"$f":"'EstExp 12-20'!I367","v":{"v":0,"d":"0 "}},{"v":7681,"d":"7,681 "},"New 2021 -EstExp",true,{"$f":"IF(G7686<>\"\",INDIRECT(\"'\"&G7686&\"'!\"&H7686),\"\")","v":0},"EstExp 12-20","I367"]
[7682,{"$f":"'EstExp 12-20'!I368","v":{"v":0,"d":"0 "}},{"v":7682,"d":"7,682 "},"New 2021 -EstExp",true,{"$f":"IF(G7687<>\"\",INDIRECT(\"'\"&G7687&\"'!\"&H7687),\"\")","v":0},"EstExp 12-20","I368"]
[7683,{"$f":"'EstExp 12-20'!I369","v":{"v":0,"d":"0 "}},{"v":7683,"d":"7,683 "},"New 2021 -EstExp",true,{"$f":"IF(G7688<>\"\",INDIRECT(\"'\"&G7688&\"'!\"&H7688),\"\")","v":0},"EstExp 12-20","I369"]
[7684,{"$f":"'EstExp 12-20'!I371","v":{"v":0,"d":"0 "}},{"v":7684,"d":"7,684 "},"New 2021 -EstExp",true,{"$f":"IF(G7689<>\"\",INDIRECT(\"'\"&G7689&\"'!\"&H7689),\"\")","v":0},"EstExp 12-20","I371"]
[7685,{"$f":"'EstExp 12-20'!I372","v":{"v":0,"d":"0 "}},{"v":7685,"d":"7,685 "},"New 2021 -EstExp",true,{"$f":"IF(G7690<>\"\",INDIRECT(\"'\"&G7690&\"'!\"&H7690),\"\")","v":0},"EstExp 12-20","I372"]
[7686,{"$f":"'EstExp 12-20'!I374","v":{"v":0,"d":"0 "}},{"v":7686,"d":"7,686 "},"New 2021 -EstExp",true,{"$f":"IF(G7691<>\"\",INDIRECT(\"'\"&G7691&\"'!\"&H7691),\"\")","v":0},"EstExp 12-20","I374"]
[7687,{"$f":"'EstExp 12-20'!I375","v":{"v":0,"d":"0 "}},{"v":7687,"d":"7,687 "},"New 2021 -EstExp",true,{"$f":"IF(G7692<>\"\",INDIRECT(\"'\"&G7692&\"'!\"&H7692),\"\")","v":0},"EstExp 12-20","I375"]
[7688,{"$f":"'EstExp 12-20'!I376","v":{"v":0,"d":"0 "}},{"v":7688,"d":"7,688 "},"New 2021 -EstExp",true,{"$f":"IF(G7693<>\"\",INDIRECT(\"'\"&G7693&\"'!\"&H7693),\"\")","v":0},"EstExp 12-20","I376"]
[7689,{"$f":"'EstExp 12-20'!I377","v":{"v":0,"d":"0 "}},{"v":7689,"d":"7,689 "},"New 2021 -EstExp",true,{"$f":"IF(G7694<>\"\",INDIRECT(\"'\"&G7694&\"'!\"&H7694),\"\")","v":0},"EstExp 12-20","I377"]
[7690,{"$f":"'EstExp 12-20'!I378","v":{"v":0,"d":"0 "}},{"v":7690,"d":"7,690 "},"New 2021 -EstExp",true,{"$f":"IF(G7695<>\"\",INDIRECT(\"'\"&G7695&\"'!\"&H7695),\"\")","v":0},"EstExp 12-20","I378"]
[7691,{"$f":"'EstExp 12-20'!I380","v":{"v":0,"d":"0 "}},{"v":7691,"d":"7,691 "},"New 2021 -EstExp",true,{"$f":"IF(G7696<>\"\",INDIRECT(\"'\"&G7696&\"'!\"&H7696),\"\")","v":0},"EstExp 12-20","I380"]
[7692,{"$f":"'EstExp 12-20'!I381","v":{"v":0,"d":"0 "}},{"v":7692,"d":"7,692 "},"New 2021 -EstExp",true,{"$f":"IF(G7697<>\"\",INDIRECT(\"'\"&G7697&\"'!\"&H7697),\"\")","v":0},"EstExp 12-20","I381"]
[7693,{"$f":"'EstExp 12-20'!I382","v":{"v":0,"d":"0 "}},{"v":7693,"d":"7,693 "},"New 2021 -EstExp",true,{"$f":"IF(G7698<>\"\",INDIRECT(\"'\"&G7698&\"'!\"&H7698),\"\")","v":0},"EstExp 12-20","I382"]
[7694,{"$f":"'EstExp 12-20'!I383","v":{"v":0,"d":"0 "}},{"v":7694,"d":"7,694 "},"New 2021 -EstExp",true,{"$f":"IF(G7699<>\"\",INDIRECT(\"'\"&G7699&\"'!\"&H7699),\"\")","v":0},"EstExp 12-20","I383"]
[7695,{"$f":"'EstExp 12-20'!I384","v":{"v":0,"d":"0 "}},{"v":7695,"d":"7,695 "},"New 2021 -EstExp",true,{"$f":"IF(G7700<>\"\",INDIRECT(\"'\"&G7700&\"'!\"&H7700),\"\")","v":0},"EstExp 12-20","I384"]
[7696,{"$f":"'EstExp 12-20'!I385","v":{"v":0,"d":"0 "}},{"v":7696,"d":"7,696 "},"New 2021 -EstExp",true,{"$f":"IF(G7701<>\"\",INDIRECT(\"'\"&G7701&\"'!\"&H7701),\"\")","v":0},"EstExp 12-20","I385"]
[7697,{"$f":"'EstExp 12-20'!I386","v":{"v":0,"d":"0 "}},{"v":7697,"d":"7,697 "},"New 2021 -EstExp",true,{"$f":"IF(G7702<>\"\",INDIRECT(\"'\"&G7702&\"'!\"&H7702),\"\")","v":0},"EstExp 12-20","I386"]
[7698,{"$f":"'EstExp 12-20'!I387","v":{"v":0,"d":"0 "}},{"v":7698,"d":"7,698 "},"New 2021 -EstExp",true,{"$f":"IF(G7703<>\"\",INDIRECT(\"'\"&G7703&\"'!\"&H7703),\"\")","v":0},"EstExp 12-20","I387"]
[7699,{"$f":"'EstExp 12-20'!I388","v":{"v":0,"d":"0 "}},{"v":7699,"d":"7,699 "},"New 2021 -EstExp",true,{"$f":"IF(G7704<>\"\",INDIRECT(\"'\"&G7704&\"'!\"&H7704),\"\")","v":0},"EstExp 12-20","I388"]
[7700,{"$f":"'EstExp 12-20'!J316","v":{"v":0,"d":"0 "}},{"v":7700,"d":"7,700 "},"New 2021 -EstExp",true,{"$f":"IF(G7705<>\"\",INDIRECT(\"'\"&G7705&\"'!\"&H7705),\"\")","v":0},"EstExp 12-20","J316"]
[7701,{"$f":"'EstExp 12-20'!J318","v":{"v":0,"d":"0 "}},{"v":7701,"d":"7,701 "},"New 2021 -EstExp",true,{"$f":"IF(G7706<>\"\",INDIRECT(\"'\"&G7706&\"'!\"&H7706),\"\")","v":0},"EstExp 12-20","J318"]
[7702,{"$f":"'EstExp 12-20'!J319","v":{"v":0,"d":"0 "}},{"v":7702,"d":"7,702 "},"New 2021 -EstExp",true,{"$f":"IF(G7707<>\"\",INDIRECT(\"'\"&G7707&\"'!\"&H7707),\"\")","v":0},"EstExp 12-20","J319"]
[7703,{"$f":"'EstExp 12-20'!J320","v":{"v":0,"d":"0 "}},{"v":7703,"d":"7,703 "},"New 2021 -EstExp",true,{"$f":"IF(G7708<>\"\",INDIRECT(\"'\"&G7708&\"'!\"&H7708),\"\")","v":0},"EstExp 12-20","J320"]
[7704,{"$f":"'EstExp 12-20'!J321","v":{"v":0,"d":"0 "}},{"v":7704,"d":"7,704 "},"New 2021 -EstExp",true,{"$f":"IF(G7709<>\"\",INDIRECT(\"'\"&G7709&\"'!\"&H7709),\"\")","v":0},"EstExp 12-20","J321"]
[7705,{"$f":"'EstExp 12-20'!J322","v":{"v":0,"d":"0 "}},{"v":7705,"d":"7,705 "},"New 2021 -EstExp",true,{"$f":"IF(G7710<>\"\",INDIRECT(\"'\"&G7710&\"'!\"&H7710),\"\")","v":0},"EstExp 12-20","J322"]
[7706,{"$f":"'EstExp 12-20'!J323","v":{"v":0,"d":"0 "}},{"v":7706,"d":"7,706 "},"New 2021 -EstExp",true,{"$f":"IF(G7711<>\"\",INDIRECT(\"'\"&G7711&\"'!\"&H7711),\"\")","v":0},"EstExp 12-20","J323"]
[7707,{"$f":"'EstExp 12-20'!J324","v":{"v":0,"d":"0 "}},{"v":7707,"d":"7,707 "},"New 2021 -EstExp",true,{"$f":"IF(G7712<>\"\",INDIRECT(\"'\"&G7712&\"'!\"&H7712),\"\")","v":0},"EstExp 12-20","J324"]
[7708,{"$f":"'EstExp 12-20'!J325","v":{"v":0,"d":"0 "}},{"v":7708,"d":"7,708 "},"New 2021 -EstExp",true,{"$f":"IF(G7713<>\"\",INDIRECT(\"'\"&G7713&\"'!\"&H7713),\"\")","v":0},"EstExp 12-20","J325"]
[7709,{"$f":"'EstExp 12-20'!J326","v":{"v":0,"d":"0 "}},{"v":7709,"d":"7,709 "},"New 2021 -EstExp",true,{"$f":"IF(G7714<>\"\",INDIRECT(\"'\"&G7714&\"'!\"&H7714),\"\")","v":0},"EstExp 12-20","J326"]
[7710,{"$f":"'EstExp 12-20'!J327","v":{"v":0,"d":"0 "}},{"v":7710,"d":"7,710 "},"New 2021 -EstExp",true,{"$f":"IF(G7715<>\"\",INDIRECT(\"'\"&G7715&\"'!\"&H7715),\"\")","v":0},"EstExp 12-20","J327"]
[7711,{"$f":"'EstExp 12-20'!J328","v":{"v":0,"d":"0 "}},{"v":7711,"d":"7,711 "},"New 2021 -EstExp",true,{"$f":"IF(G7716<>\"\",INDIRECT(\"'\"&G7716&\"'!\"&H7716),\"\")","v":0},"EstExp 12-20","J328"]
[7712,{"$f":"'EstExp 12-20'!J329","v":{"v":0,"d":"0 "}},{"v":7712,"d":"7,712 "},"New 2021 -EstExp",true,{"$f":"IF(G7717<>\"\",INDIRECT(\"'\"&G7717&\"'!\"&H7717),\"\")","v":0},"EstExp 12-20","J329"]
[7713,{"$f":"'EstExp 12-20'!J330","v":{"v":0,"d":"0 "}},{"v":7713,"d":"7,713 "},"New 2021 -EstExp",true,{"$f":"IF(G7718<>\"\",INDIRECT(\"'\"&G7718&\"'!\"&H7718),\"\")","v":0},"EstExp 12-20","J330"]
[7714,{"$f":"'EstExp 12-20'!J344","v":{"v":0,"d":"0 "}},{"v":7714,"d":"7,714 "},"New 2021 -EstExp",true,{"$f":"IF(G7719<>\"\",INDIRECT(\"'\"&G7719&\"'!\"&H7719),\"\")","v":0},"EstExp 12-20","J344"]
[7715,{"$f":"'EstExp 12-20'!J347","v":{"v":0,"d":"0 "}},{"v":7715,"d":"7,715 "},"New 2021 -EstExp",true,{"$f":"IF(G7720<>\"\",INDIRECT(\"'\"&G7720&\"'!\"&H7720),\"\")","v":0},"EstExp 12-20","J347"]
[7716,{"$f":"'EstExp 12-20'!J348","v":{"v":0,"d":"0 "}},{"v":7716,"d":"7,716 "},"New 2021 -EstExp",true,{"$f":"IF(G7721<>\"\",INDIRECT(\"'\"&G7721&\"'!\"&H7721),\"\")","v":0},"EstExp 12-20","J348"]
[7717,{"$f":"'EstExp 12-20'!J349","v":{"v":0,"d":"0 "}},{"v":7717,"d":"7,717 "},"New 2021 -EstExp",true,{"$f":"IF(G7722<>\"\",INDIRECT(\"'\"&G7722&\"'!\"&H7722),\"\")","v":0},"EstExp 12-20","J349"]
[7718,{"$f":"'EstExp 12-20'!J350","v":{"v":0,"d":"0 "}},{"v":7718,"d":"7,718 "},"New 2021 -EstExp",true,{"$f":"IF(G7723<>\"\",INDIRECT(\"'\"&G7723&\"'!\"&H7723),\"\")","v":0},"EstExp 12-20","J350"]
[7719,{"$f":"'EstExp 12-20'!J351","v":{"v":0,"d":"0 "}},{"v":7719,"d":"7,719 "},"New 2021 -EstExp",true,{"$f":"IF(G7724<>\"\",INDIRECT(\"'\"&G7724&\"'!\"&H7724),\"\")","v":0},"EstExp 12-20","J351"]
[7720,{"$f":"'EstExp 12-20'!J352","v":{"v":0,"d":"0 "}},{"v":7720,"d":"7,720 "},"New 2021 -EstExp",true,{"$f":"IF(G7725<>\"\",INDIRECT(\"'\"&G7725&\"'!\"&H7725),\"\")","v":0},"EstExp 12-20","J352"]
[7721,{"$f":"'EstExp 12-20'!J353","v":{"v":0,"d":"0 "}},{"v":7721,"d":"7,721 "},"New 2021 -EstExp",true,{"$f":"IF(G7726<>\"\",INDIRECT(\"'\"&G7726&\"'!\"&H7726),\"\")","v":0},"EstExp 12-20","J353"]
[7722,{"$f":"'EstExp 12-20'!J355","v":{"v":0,"d":"0 "}},{"v":7722,"d":"7,722 "},"New 2021 -EstExp",true,{"$f":"IF(G7727<>\"\",INDIRECT(\"'\"&G7727&\"'!\"&H7727),\"\")","v":0},"EstExp 12-20","J355"]
[7723,{"$f":"'EstExp 12-20'!J356","v":{"v":0,"d":"0 "}},{"v":7723,"d":"7,723 "},"New 2021 -EstExp",true,{"$f":"IF(G7728<>\"\",INDIRECT(\"'\"&G7728&\"'!\"&H7728),\"\")","v":0},"EstExp 12-20","J356"]
[7724,{"$f":"'EstExp 12-20'!J357","v":{"v":0,"d":"0 "}},{"v":7724,"d":"7,724 "},"New 2021 -EstExp",true,{"$f":"IF(G7729<>\"\",INDIRECT(\"'\"&G7729&\"'!\"&H7729),\"\")","v":0},"EstExp 12-20","J357"]
[7725,{"$f":"'EstExp 12-20'!J358","v":{"v":0,"d":"0 "}},{"v":7725,"d":"7,725 "},"New 2021 -EstExp",true,{"$f":"IF(G7730<>\"\",INDIRECT(\"'\"&G7730&\"'!\"&H7730),\"\")","v":0},"EstExp 12-20","J358"]
[7726,{"$f":"'EstExp 12-20'!J360","v":{"v":0,"d":"0 "}},{"v":7726,"d":"7,726 "},"New 2021 -EstExp",true,{"$f":"IF(G7731<>\"\",INDIRECT(\"'\"&G7731&\"'!\"&H7731),\"\")","v":0},"EstExp 12-20","J360"]
[7727,{"$f":"'EstExp 12-20'!J361","v":{"v":0,"d":"0 "}},{"v":7727,"d":"7,727 "},"New 2021 -EstExp",true,{"$f":"IF(G7732<>\"\",INDIRECT(\"'\"&G7732&\"'!\"&H7732),\"\")","v":0},"EstExp 12-20","J361"]
[7728,{"$f":"'EstExp 12-20'!J362","v":{"v":0,"d":"0 "}},{"v":7728,"d":"7,728 "},"New 2021 -EstExp",true,{"$f":"IF(G7733<>\"\",INDIRECT(\"'\"&G7733&\"'!\"&H7733),\"\")","v":0},"EstExp 12-20","J362"]
[7729,{"$f":"'EstExp 12-20'!J367","v":{"v":0,"d":"0 "}},{"v":7729,"d":"7,729 "},"New 2021 -EstExp",true,{"$f":"IF(G7734<>\"\",INDIRECT(\"'\"&G7734&\"'!\"&H7734),\"\")","v":0},"EstExp 12-20","J367"]
[7730,{"$f":"'EstExp 12-20'!J368","v":{"v":0,"d":"0 "}},{"v":7730,"d":"7,730 "},"New 2021 -EstExp",true,{"$f":"IF(G7735<>\"\",INDIRECT(\"'\"&G7735&\"'!\"&H7735),\"\")","v":0},"EstExp 12-20","J368"]
[7731,{"$f":"'EstExp 12-20'!J369","v":{"v":0,"d":"0 "}},{"v":7731,"d":"7,731 "},"New 2021 -EstExp",true,{"$f":"IF(G7736<>\"\",INDIRECT(\"'\"&G7736&\"'!\"&H7736),\"\")","v":0},"EstExp 12-20","J369"]
[7732,{"$f":"'EstExp 12-20'!J371","v":{"v":0,"d":"0 "}},{"v":7732,"d":"7,732 "},"New 2021 -EstExp",true,{"$f":"IF(G7737<>\"\",INDIRECT(\"'\"&G7737&\"'!\"&H7737),\"\")","v":0},"EstExp 12-20","J371"]
[7733,{"$f":"'EstExp 12-20'!J372","v":{"v":0,"d":"0 "}},{"v":7733,"d":"7,733 "},"New 2021 -EstExp",true,{"$f":"IF(G7738<>\"\",INDIRECT(\"'\"&G7738&\"'!\"&H7738),\"\")","v":0},"EstExp 12-20","J372"]
[7734,{"$f":"'EstExp 12-20'!J374","v":{"v":0,"d":"0 "}},{"v":7734,"d":"7,734 "},"New 2021 -EstExp",true,{"$f":"IF(G7739<>\"\",INDIRECT(\"'\"&G7739&\"'!\"&H7739),\"\")","v":0},"EstExp 12-20","J374"]
[7735,{"$f":"'EstExp 12-20'!J375","v":{"v":0,"d":"0 "}},{"v":7735,"d":"7,735 "},"New 2021 -EstExp",true,{"$f":"IF(G7740<>\"\",INDIRECT(\"'\"&G7740&\"'!\"&H7740),\"\")","v":0},"EstExp 12-20","J375"]
[7736,{"$f":"'EstExp 12-20'!J376","v":{"v":0,"d":"0 "}},{"v":7736,"d":"7,736 "},"New 2021 -EstExp",true,{"$f":"IF(G7741<>\"\",INDIRECT(\"'\"&G7741&\"'!\"&H7741),\"\")","v":0},"EstExp 12-20","J376"]
[7737,{"$f":"'EstExp 12-20'!J377","v":{"v":0,"d":"0 "}},{"v":7737,"d":"7,737 "},"New 2021 -EstExp",true,{"$f":"IF(G7742<>\"\",INDIRECT(\"'\"&G7742&\"'!\"&H7742),\"\")","v":0},"EstExp 12-20","J377"]
[7738,{"$f":"'EstExp 12-20'!J378","v":{"v":0,"d":"0 "}},{"v":7738,"d":"7,738 "},"New 2021 -EstExp",true,{"$f":"IF(G7743<>\"\",INDIRECT(\"'\"&G7743&\"'!\"&H7743),\"\")","v":0},"EstExp 12-20","J378"]
[7739,{"$f":"'EstExp 12-20'!J380","v":{"v":0,"d":"0 "}},{"v":7739,"d":"7,739 "},"New 2021 -EstExp",true,{"$f":"IF(G7744<>\"\",INDIRECT(\"'\"&G7744&\"'!\"&H7744),\"\")","v":0},"EstExp 12-20","J380"]
[7740,{"$f":"'EstExp 12-20'!J381","v":{"v":0,"d":"0 "}},{"v":7740,"d":"7,740 "},"New 2021 -EstExp",true,{"$f":"IF(G7745<>\"\",INDIRECT(\"'\"&G7745&\"'!\"&H7745),\"\")","v":0},"EstExp 12-20","J381"]
[7741,{"$f":"'EstExp 12-20'!J382","v":{"v":0,"d":"0 "}},{"v":7741,"d":"7,741 "},"New 2021 -EstExp",{"$f":"F7746=B7746","v":true},{"$f":"IF(G7746<>\"\",INDIRECT(\"'\"&G7746&\"'!\"&H7746),\"\")","v":0},"EstExp 12-20","J382"]
[7742,{"$f":"'EstExp 12-20'!J383","v":{"v":0,"d":"0 "}},{"v":7742,"d":"7,742 "},"New 2021 -EstExp",true,{"$f":"IF(G7747<>\"\",INDIRECT(\"'\"&G7747&\"'!\"&H7747),\"\")","v":0},"EstExp 12-20","J383"]
[7743,{"$f":"'EstExp 12-20'!J384","v":{"v":0,"d":"0 "}},{"$f":"A7748-B7748","v":{"v":7743,"d":"7,743 "}},"New 2021 -EstExp",true,{"$f":"IF(G7748<>\"\",INDIRECT(\"'\"&G7748&\"'!\"&H7748),\"\")","v":0},"EstExp 12-20","J384"]
[7744,{"$f":"'EstExp 12-20'!J385","v":{"v":0,"d":"0 "}},{"v":7744,"d":"7,744 "},"New 2021 -EstExp",true,{"$f":"IF(G7749<>\"\",INDIRECT(\"'\"&G7749&\"'!\"&H7749),\"\")","v":0},"EstExp 12-20","J385"]
[7745,{"$f":"'EstExp 12-20'!J386","v":{"v":0,"d":"0 "}},{"v":7745,"d":"7,745 "},"New 2021 -EstExp",true,{"$f":"IF(G7750<>\"\",INDIRECT(\"'\"&G7750&\"'!\"&H7750),\"\")","v":0},"EstExp 12-20","J386"]
[7746,{"$f":"'EstExp 12-20'!J387","v":{"v":0,"d":"0 "}},{"v":7746,"d":"7,746 "},"New 2021 -EstExp",true,{"$f":"IF(G7751<>\"\",INDIRECT(\"'\"&G7751&\"'!\"&H7751),\"\")","v":0},"EstExp 12-20","J387"]
[7747,{"$f":"'EstExp 12-20'!J388","v":{"v":0,"d":"0 "}},{"v":7747,"d":"7,747 "},"New 2021 -EstExp",true,{"$f":"IF(G7752<>\"\",INDIRECT(\"'\"&G7752&\"'!\"&H7752),\"\")","v":0},"EstExp 12-20","J388"]
[7748,{"$f":"'EstExp 12-20'!K316","v":{"v":0,"d":"0 "}},{"v":7748,"d":"7,748 "},"New 2021 -EstExp",true,{"$f":"IF(G7753<>\"\",INDIRECT(\"'\"&G7753&\"'!\"&H7753),\"\")","v":0},"EstExp 12-20","K316"]
[7749,{"$f":"'EstExp 12-20'!K317","v":{"v":0,"d":"0 "}},{"v":7749,"d":"7,749 "},"New 2021 -EstExp",true,{"$f":"IF(G7754<>\"\",INDIRECT(\"'\"&G7754&\"'!\"&H7754),\"\")","v":0},"EstExp 12-20","K317"]
[7750,{"$f":"'EstExp 12-20'!K318","v":{"v":0,"d":"0 "}},{"v":7750,"d":"7,750 "},"New 2021 -EstExp",true,{"$f":"IF(G7755<>\"\",INDIRECT(\"'\"&G7755&\"'!\"&H7755),\"\")","v":0},"EstExp 12-20","K318"]
[7751,{"$f":"'EstExp 12-20'!K319","v":{"v":0,"d":"0 "}},{"v":7751,"d":"7,751 "},"New 2021 -EstExp",true,{"$f":"IF(G7756<>\"\",INDIRECT(\"'\"&G7756&\"'!\"&H7756),\"\")","v":0},"EstExp 12-20","K319"]
[7752,{"$f":"'EstExp 12-20'!K320","v":{"v":0,"d":"0 "}},{"v":7752,"d":"7,752 "},"New 2021 -EstExp",true,{"$f":"IF(G7757<>\"\",INDIRECT(\"'\"&G7757&\"'!\"&H7757),\"\")","v":0},"EstExp 12-20","K320"]
[7753,{"$f":"'EstExp 12-20'!K321","v":{"v":0,"d":"0 "}},{"v":7753,"d":"7,753 "},"New 2021 -EstExp",true,{"$f":"IF(G7758<>\"\",INDIRECT(\"'\"&G7758&\"'!\"&H7758),\"\")","v":0},"EstExp 12-20","K321"]
[7754,{"$f":"'EstExp 12-20'!K322","v":{"v":0,"d":"0 "}},{"v":7754,"d":"7,754 "},"New 2021 -EstExp",true,{"$f":"IF(G7759<>\"\",INDIRECT(\"'\"&G7759&\"'!\"&H7759),\"\")","v":0},"EstExp 12-20","K322"]
[7755,{"$f":"'EstExp 12-20'!K323","v":{"v":0,"d":"0 "}},{"v":7755,"d":"7,755 "},"New 2021 -EstExp",true,{"$f":"IF(G7760<>\"\",INDIRECT(\"'\"&G7760&\"'!\"&H7760),\"\")","v":0},"EstExp 12-20","K323"]
[7756,{"$f":"'EstExp 12-20'!K324","v":{"v":0,"d":"0 "}},{"v":7756,"d":"7,756 "},"New 2021 -EstExp",true,{"$f":"IF(G7761<>\"\",INDIRECT(\"'\"&G7761&\"'!\"&H7761),\"\")","v":0},"EstExp 12-20","K324"]
[7757,{"$f":"'EstExp 12-20'!K325","v":{"v":0,"d":"0 "}},{"v":7757,"d":"7,757 "},"New 2021 -EstExp",true,{"$f":"IF(G7762<>\"\",INDIRECT(\"'\"&G7762&\"'!\"&H7762),\"\")","v":0},"EstExp 12-20","K325"]
[7758,{"$f":"'EstExp 12-20'!K326","v":{"v":0,"d":"0 "}},{"v":7758,"d":"7,758 "},"New 2021 -EstExp",true,{"$f":"IF(G7763<>\"\",INDIRECT(\"'\"&G7763&\"'!\"&H7763),\"\")","v":0},"EstExp 12-20","K326"]
[7759,{"$f":"'EstExp 12-20'!K327","v":{"v":0,"d":"0 "}},{"v":7759,"d":"7,759 "},"New 2021 -EstExp",true,{"$f":"IF(G7764<>\"\",INDIRECT(\"'\"&G7764&\"'!\"&H7764),\"\")","v":0},"EstExp 12-20","K327"]
[7760,{"$f":"'EstExp 12-20'!K328","v":{"v":0,"d":"0 "}},{"v":7760,"d":"7,760 "},"New 2021 -EstExp",true,{"$f":"IF(G7765<>\"\",INDIRECT(\"'\"&G7765&\"'!\"&H7765),\"\")","v":0},"EstExp 12-20","K328"]
[7761,{"$f":"'EstExp 12-20'!K329","v":{"v":0,"d":"0 "}},{"v":7761,"d":"7,761 "},"New 2021 -EstExp",true,{"$f":"IF(G7766<>\"\",INDIRECT(\"'\"&G7766&\"'!\"&H7766),\"\")","v":0},"EstExp 12-20","K329"]
[7762,{"$f":"'EstExp 12-20'!K330","v":{"v":0,"d":"0 "}},{"v":7762,"d":"7,762 "},"New 2021 -EstExp",true,{"$f":"IF(G7767<>\"\",INDIRECT(\"'\"&G7767&\"'!\"&H7767),\"\")","v":0},"EstExp 12-20","K330"]
[7763,{"$f":"'EstExp 12-20'!K331","v":{"v":0,"d":"0 "}},{"v":7763,"d":"7,763 "},"New 2021 -EstExp",true,{"$f":"IF(G7768<>\"\",INDIRECT(\"'\"&G7768&\"'!\"&H7768),\"\")","v":0},"EstExp 12-20","K331"]
[7764,{"$f":"'EstExp 12-20'!K332","v":{"v":0,"d":"0 "}},{"v":7764,"d":"7,764 "},"New 2021 -EstExp",true,{"$f":"IF(G7769<>\"\",INDIRECT(\"'\"&G7769&\"'!\"&H7769),\"\")","v":0},"EstExp 12-20","K332"]
[7765,{"$f":"'EstExp 12-20'!K333","v":{"v":0,"d":"0 "}},{"v":7765,"d":"7,765 "},"New 2021 -EstExp",true,{"$f":"IF(G7770<>\"\",INDIRECT(\"'\"&G7770&\"'!\"&H7770),\"\")","v":0},"EstExp 12-20","K333"]
[7766,{"$f":"'EstExp 12-20'!K334","v":{"v":0,"d":"0 "}},{"v":7766,"d":"7,766 "},"New 2021 -EstExp",true,{"$f":"IF(G7771<>\"\",INDIRECT(\"'\"&G7771&\"'!\"&H7771),\"\")","v":0},"EstExp 12-20","K334"]
[7767,{"$f":"'EstExp 12-20'!K335","v":{"v":0,"d":"0 "}},{"v":7767,"d":"7,767 "},"New 2021 -EstExp",true,{"$f":"IF(G7772<>\"\",INDIRECT(\"'\"&G7772&\"'!\"&H7772),\"\")","v":0},"EstExp 12-20","K335"]
[7768,{"$f":"'EstExp 12-20'!K336","v":{"v":0,"d":"0 "}},{"v":7768,"d":"7,768 "},"New 2021 -EstExp",true,{"$f":"IF(G7773<>\"\",INDIRECT(\"'\"&G7773&\"'!\"&H7773),\"\")","v":0},"EstExp 12-20","K336"]
[7769,{"$f":"'EstExp 12-20'!K337","v":{"v":0,"d":"0 "}},{"v":7769,"d":"7,769 "},"New 2021 -EstExp",true,{"$f":"IF(G7774<>\"\",INDIRECT(\"'\"&G7774&\"'!\"&H7774),\"\")","v":0},"EstExp 12-20","K337"]
[7770,{"$f":"'EstExp 12-20'!K338","v":{"v":0,"d":"0 "}},{"v":7770,"d":"7,770 "},"New 2021 -EstExp",true,{"$f":"IF(G7775<>\"\",INDIRECT(\"'\"&G7775&\"'!\"&H7775),\"\")","v":0},"EstExp 12-20","K338"]
[7771,{"$f":"'EstExp 12-20'!K339","v":{"v":0,"d":"0 "}},{"v":7771,"d":"7,771 "},"New 2021 -EstExp",true,{"$f":"IF(G7776<>\"\",INDIRECT(\"'\"&G7776&\"'!\"&H7776),\"\")","v":0},"EstExp 12-20","K339"]
[7772,{"$f":"'EstExp 12-20'!K340","v":{"v":0,"d":"0 "}},{"v":7772,"d":"7,772 "},"New 2021 -EstExp",true,{"$f":"IF(G7777<>\"\",INDIRECT(\"'\"&G7777&\"'!\"&H7777),\"\")","v":0},"EstExp 12-20","K340"]
[7773,{"$f":"'EstExp 12-20'!K341","v":{"v":0,"d":"0 "}},{"v":7773,"d":"7,773 "},"New 2021 -EstExp",true,{"$f":"IF(G7778<>\"\",INDIRECT(\"'\"&G7778&\"'!\"&H7778),\"\")","v":0},"EstExp 12-20","K341"]
[7774,{"$f":"'EstExp 12-20'!K342","v":{"v":0,"d":"0 "}},{"v":7774,"d":"7,774 "},"New 2021 -EstExp",true,{"$f":"IF(G7779<>\"\",INDIRECT(\"'\"&G7779&\"'!\"&H7779),\"\")","v":0},"EstExp 12-20","K342"]
[7775,{"$f":"'EstExp 12-20'!K343","v":{"v":0,"d":"0 "}},{"v":7775,"d":"7,775 "},"New 2021 -EstExp",true,{"$f":"IF(G7780<>\"\",INDIRECT(\"'\"&G7780&\"'!\"&H7780),\"\")","v":0},"EstExp 12-20","K343"]
[7776,{"$f":"'EstExp 12-20'!K344","v":{"v":0,"d":"0 "}},{"v":7776,"d":"7,776 "},"New 2021 -EstExp",true,{"$f":"IF(G7781<>\"\",INDIRECT(\"'\"&G7781&\"'!\"&H7781),\"\")","v":0},"EstExp 12-20","K344"]
[7777,{"$f":"'EstExp 12-20'!K347","v":{"v":0,"d":"0 "}},{"v":7777,"d":"7,777 "},"New 2021 -EstExp",true,{"$f":"IF(G7782<>\"\",INDIRECT(\"'\"&G7782&\"'!\"&H7782),\"\")","v":0},"EstExp 12-20","K347"]
[7778,{"$f":"'EstExp 12-20'!K348","v":{"v":0,"d":"0 "}},{"v":7778,"d":"7,778 "},"New 2021 -EstExp",true,{"$f":"IF(G7783<>\"\",INDIRECT(\"'\"&G7783&\"'!\"&H7783),\"\")","v":0},"EstExp 12-20","K348"]
[7779,{"$f":"'EstExp 12-20'!K349","v":{"v":0,"d":"0 "}},{"v":7779,"d":"7,779 "},"New 2021 -EstExp",true,{"$f":"IF(G7784<>\"\",INDIRECT(\"'\"&G7784&\"'!\"&H7784),\"\")","v":0},"EstExp 12-20","K349"]
[7780,{"$f":"'EstExp 12-20'!K350","v":{"v":0,"d":"0 "}},{"v":7780,"d":"7,780 "},"New 2021 -EstExp",true,{"$f":"IF(G7785<>\"\",INDIRECT(\"'\"&G7785&\"'!\"&H7785),\"\")","v":0},"EstExp 12-20","K350"]
[7781,{"$f":"'EstExp 12-20'!K351","v":{"v":0,"d":"0 "}},{"v":7781,"d":"7,781 "},"New 2021 -EstExp",true,{"$f":"IF(G7786<>\"\",INDIRECT(\"'\"&G7786&\"'!\"&H7786),\"\")","v":0},"EstExp 12-20","K351"]
[7782,{"$f":"'EstExp 12-20'!K352","v":{"v":0,"d":"0 "}},{"v":7782,"d":"7,782 "},"New 2021 -EstExp",true,{"$f":"IF(G7787<>\"\",INDIRECT(\"'\"&G7787&\"'!\"&H7787),\"\")","v":0},"EstExp 12-20","K352"]
[7783,{"$f":"'EstExp 12-20'!K353","v":{"v":0,"d":"0 "}},{"v":7783,"d":"7,783 "},"New 2021 -EstExp",true,{"$f":"IF(G7788<>\"\",INDIRECT(\"'\"&G7788&\"'!\"&H7788),\"\")","v":0},"EstExp 12-20","K353"]
[7784,{"$f":"'EstExp 12-20'!K355","v":{"v":0,"d":"0 "}},{"v":7784,"d":"7,784 "},"New 2021 -EstExp",true,{"$f":"IF(G7789<>\"\",INDIRECT(\"'\"&G7789&\"'!\"&H7789),\"\")","v":0},"EstExp 12-20","K355"]
[7785,{"$f":"'EstExp 12-20'!K356","v":{"v":0,"d":"0 "}},{"v":7785,"d":"7,785 "},"New 2021 -EstExp",true,{"$f":"IF(G7790<>\"\",INDIRECT(\"'\"&G7790&\"'!\"&H7790),\"\")","v":0},"EstExp 12-20","K356"]
[7786,{"$f":"'EstExp 12-20'!K357","v":{"v":0,"d":"0 "}},{"v":7786,"d":"7,786 "},"New 2021 -EstExp",true,{"$f":"IF(G7791<>\"\",INDIRECT(\"'\"&G7791&\"'!\"&H7791),\"\")","v":0},"EstExp 12-20","K357"]
[7787,{"$f":"'EstExp 12-20'!K358","v":{"v":0,"d":"0 "}},{"v":7787,"d":"7,787 "},"New 2021 -EstExp",true,{"$f":"IF(G7792<>\"\",INDIRECT(\"'\"&G7792&\"'!\"&H7792),\"\")","v":0},"EstExp 12-20","K358"]
[7788,{"$f":"'EstExp 12-20'!K360","v":{"v":15000,"d":"15,000 "}},{"v":-7212,"d":"(7,212)"},"New 2021 -EstExp",true,{"$f":"IF(G7793<>\"\",INDIRECT(\"'\"&G7793&\"'!\"&H7793),\"\")","v":15000},"EstExp 12-20","K360"]
[7789,{"$f":"'EstExp 12-20'!K361","v":{"v":0,"d":"0 "}},{"v":7789,"d":"7,789 "},"New 2021 -EstExp",true,{"$f":"IF(G7794<>\"\",INDIRECT(\"'\"&G7794&\"'!\"&H7794),\"\")","v":0},"EstExp 12-20","K361"]
[7790,{"$f":"'EstExp 12-20'!K362","v":{"v":0,"d":"0 "}},{"v":7790,"d":"7,790 "},"New 2021 -EstExp",true,{"$f":"IF(G7795<>\"\",INDIRECT(\"'\"&G7795&\"'!\"&H7795),\"\")","v":0},"EstExp 12-20","K362"]
[7791,{"$f":"'EstExp 12-20'!K367","v":{"v":0,"d":"0 "}},{"v":7791,"d":"7,791 "},"New 2021 -EstExp",true,{"$f":"IF(G7796<>\"\",INDIRECT(\"'\"&G7796&\"'!\"&H7796),\"\")","v":0},"EstExp 12-20","K367"]
[7792,{"$f":"'EstExp 12-20'!K368","v":{"v":0,"d":"0 "}},{"v":7792,"d":"7,792 "},"New 2021 -EstExp",true,{"$f":"IF(G7797<>\"\",INDIRECT(\"'\"&G7797&\"'!\"&H7797),\"\")","v":0},"EstExp 12-20","K368"]
[7793,{"$f":"'EstExp 12-20'!K369","v":{"v":0,"d":"0 "}},{"v":7793,"d":"7,793 "},"New 2021 -EstExp",true,{"$f":"IF(G7798<>\"\",INDIRECT(\"'\"&G7798&\"'!\"&H7798),\"\")","v":0},"EstExp 12-20","K369"]
[7794,{"$f":"'EstExp 12-20'!K371","v":{"v":0,"d":"0 "}},{"v":7794,"d":"7,794 "},"New 2021 -EstExp",true,{"$f":"IF(G7799<>\"\",INDIRECT(\"'\"&G7799&\"'!\"&H7799),\"\")","v":0},"EstExp 12-20","K371"]
[7795,{"$f":"'EstExp 12-20'!K372","v":{"v":0,"d":"0 "}},{"v":7795,"d":"7,795 "},"New 2021 -EstExp",true,{"$f":"IF(G7800<>\"\",INDIRECT(\"'\"&G7800&\"'!\"&H7800),\"\")","v":0},"EstExp 12-20","K372"]
[7796,{"$f":"'EstExp 12-20'!K374","v":{"v":0,"d":"0 "}},{"v":7796,"d":"7,796 "},"New 2021 -EstExp",true,{"$f":"IF(G7801<>\"\",INDIRECT(\"'\"&G7801&\"'!\"&H7801),\"\")","v":0},"EstExp 12-20","K374"]
[7797,{"$f":"'EstExp 12-20'!K375","v":{"v":0,"d":"0 "}},{"v":7797,"d":"7,797 "},"New 2021 -EstExp",true,{"$f":"IF(G7802<>\"\",INDIRECT(\"'\"&G7802&\"'!\"&H7802),\"\")","v":0},"EstExp 12-20","K375"]
[7798,{"$f":"'EstExp 12-20'!K376","v":{"v":0,"d":"0 "}},{"v":7798,"d":"7,798 "},"New 2021 -EstExp",true,{"$f":"IF(G7803<>\"\",INDIRECT(\"'\"&G7803&\"'!\"&H7803),\"\")","v":0},"EstExp 12-20","K376"]
[7799,{"$f":"'EstExp 12-20'!K377","v":{"v":0,"d":"0 "}},{"v":7799,"d":"7,799 "},"New 2021 -EstExp",true,{"$f":"IF(G7804<>\"\",INDIRECT(\"'\"&G7804&\"'!\"&H7804),\"\")","v":0},"EstExp 12-20","K377"]
[7800,{"$f":"'EstExp 12-20'!K378","v":{"v":0,"d":"0 "}},{"v":7800,"d":"7,800 "},"New 2021 -EstExp",true,{"$f":"IF(G7805<>\"\",INDIRECT(\"'\"&G7805&\"'!\"&H7805),\"\")","v":0},"EstExp 12-20","K378"]
[7801,{"$f":"'EstExp 12-20'!K380","v":{"v":0,"d":"0 "}},{"v":7801,"d":"7,801 "},"New 2021 -EstExp",true,{"$f":"IF(G7806<>\"\",INDIRECT(\"'\"&G7806&\"'!\"&H7806),\"\")","v":0},"EstExp 12-20","K380"]
[7802,{"$f":"'EstExp 12-20'!K381","v":{"v":0,"d":"0 "}},{"v":7802,"d":"7,802 "},"New 2021 -EstExp",true,{"$f":"IF(G7807<>\"\",INDIRECT(\"'\"&G7807&\"'!\"&H7807),\"\")","v":0},"EstExp 12-20","K381"]
[7803,{"$f":"'EstExp 12-20'!K382","v":{"v":0,"d":"0 "}},{"v":7803,"d":"7,803 "},"New 2021 -EstExp",true,{"$f":"IF(G7808<>\"\",INDIRECT(\"'\"&G7808&\"'!\"&H7808),\"\")","v":0},"EstExp 12-20","K382"]
[7804,{"$f":"'EstExp 12-20'!K383","v":{"v":0,"d":"0 "}},{"v":7804,"d":"7,804 "},"New 2021 -EstExp",true,{"$f":"IF(G7809<>\"\",INDIRECT(\"'\"&G7809&\"'!\"&H7809),\"\")","v":0},"EstExp 12-20","K383"]
[7805,{"$f":"'EstExp 12-20'!K384","v":{"v":0,"d":"0 "}},{"v":7805,"d":"7,805 "},"New 2021 -EstExp",{"$f":"F7810=B7810","v":true},{"$f":"IF(G7810<>\"\",INDIRECT(\"'\"&G7810&\"'!\"&H7810),\"\")","v":0},"EstExp 12-20","K384"]
[7806,{"$f":"'EstExp 12-20'!K385","v":{"v":0,"d":"0 "}},{"v":7806,"d":"7,806 "},"New 2021 -EstExp",true,{"$f":"IF(G7811<>\"\",INDIRECT(\"'\"&G7811&\"'!\"&H7811),\"\")","v":0},"EstExp 12-20","K385"]
[7807,{"$f":"'EstExp 12-20'!K386","v":{"v":0,"d":"0 "}},{"$f":"A7812-B7812","v":{"v":7807,"d":"7,807 "}},"New 2021 -EstExp",true,{"$f":"IF(G7812<>\"\",INDIRECT(\"'\"&G7812&\"'!\"&H7812),\"\")","v":0},"EstExp 12-20","K386"]
[7808,{"$f":"'EstExp 12-20'!K387","v":{"v":15000,"d":"15,000 "}},{"v":-7192,"d":"(7,192)"},"New 2021 -EstExp",true,{"$f":"IF(G7813<>\"\",INDIRECT(\"'\"&G7813&\"'!\"&H7813),\"\")","v":15000},"EstExp 12-20","K387"]
[7809,{"$f":"'EstExp 12-20'!K388","v":{"v":0,"d":"0 "}},{"v":7809,"d":"7,809 "},"New 2021 -EstExp",true,{"$f":"IF(G7814<>\"\",INDIRECT(\"'\"&G7814&\"'!\"&H7814),\"\")","v":0},"EstExp 12-20","K388"]
[7810,{"$f":"'EstExp 12-20'!K393","v":{"v":0,"d":"0 "}},{"v":7810,"d":"7,810 "},"New 2021 -EstExp",true,{"$f":"IF(G7815<>\"\",INDIRECT(\"'\"&G7815&\"'!\"&H7815),\"\")","v":0},"EstExp 12-20","K393"]
[7811,{"$f":"'EstExp 12-20'!K394","v":{"v":0,"d":"0 "}},{"v":7811,"d":"7,811 "},"New 2021 -EstExp",true,{"$f":"IF(G7816<>\"\",INDIRECT(\"'\"&G7816&\"'!\"&H7816),\"\")","v":0},"EstExp 12-20","K394"]
[7812,{"$f":"'EstExp 12-20'!K395","v":{"v":0,"d":"0 "}},{"v":7812,"d":"7,812 "},"New 2021 -EstExp",true,{"$f":"IF(G7817<>\"\",INDIRECT(\"'\"&G7817&\"'!\"&H7817),\"\")","v":0},"EstExp 12-20","K395"]
[7813,{"$f":"'EstExp 12-20'!K396","v":{"v":0,"d":"0 "}},{"v":7813,"d":"7,813 "},"New 2021 -EstExp",true,{"$f":"IF(G7818<>\"\",INDIRECT(\"'\"&G7818&\"'!\"&H7818),\"\")","v":0},"EstExp 12-20","K396"]
[7814,null,null,"New 2021 -EstExp, closed 2021 made in error",true,{"$f":"IF(G7819<>\"\",INDIRECT(\"'\"&G7819&\"'!\"&H7819),\"\")","v":""}]
[7815,{"$f":"'EstExp 12-20'!K398","v":{"v":0,"d":"0 "}},{"v":7815,"d":"7,815 "},"New 2021 -EstExp",true,{"$f":"IF(G7820<>\"\",INDIRECT(\"'\"&G7820&\"'!\"&H7820),\"\")","v":0},"EstExp 12-20","K398"]
[7816,{"$f":"'EstExp 12-20'!K399","v":{"v":0,"d":"0 "}},{"v":7816,"d":"7,816 "},"New 2021 -EstExp",true,{"$f":"IF(G7821<>\"\",INDIRECT(\"'\"&G7821&\"'!\"&H7821),\"\")","v":0},"EstExp 12-20","K399"]
[7817,{"$f":"'EstExp 12-20'!K400","v":{"v":0,"d":"0 "}},{"v":7817,"d":"7,817 "},"New 2021 -EstExp",true,{"$f":"IF(G7822<>\"\",INDIRECT(\"'\"&G7822&\"'!\"&H7822),\"\")","v":0},"EstExp 12-20","K400"]
[7818,{"$f":"'EstExp 12-20'!K401","v":{"v":0,"d":"0 "}},{"v":7818,"d":"7,818 "},"New 2021 -EstExp",true,{"$f":"IF(G7823<>\"\",INDIRECT(\"'\"&G7823&\"'!\"&H7823),\"\")","v":0},"EstExp 12-20","K401"]
[7819,{"$f":"'EstExp 12-20'!K402","v":{"v":0,"d":"0 "}},{"v":7819,"d":"7,819 "},"New 2021 -EstExp",true,{"$f":"IF(G7824<>\"\",INDIRECT(\"'\"&G7824&\"'!\"&H7824),\"\")","v":0},"EstExp 12-20","K402"]
[7820,{"$f":"'EstExp 12-20'!K403","v":{"v":0,"d":"0 "}},{"v":7820,"d":"7,820 "},"New 2021 -EstExp",true,{"$f":"IF(G7825<>\"\",INDIRECT(\"'\"&G7825&\"'!\"&H7825),\"\")","v":0},"EstExp 12-20","K403"]
[7821,{"$f":"'EstExp 12-20'!K404","v":{"v":0,"d":"0 "}},{"v":7821,"d":"7,821 "},"New 2021 -EstExp",true,{"$f":"IF(G7826<>\"\",INDIRECT(\"'\"&G7826&\"'!\"&H7826),\"\")","v":0},"EstExp 12-20","K404"]
[7822,{"$f":"'EstExp 12-20'!K405","v":{"v":0,"d":"0 "}},{"v":7822,"d":"7,822 "},"New 2021 -EstExp",true,{"$f":"IF(G7827<>\"\",INDIRECT(\"'\"&G7827&\"'!\"&H7827),\"\")","v":0},"EstExp 12-20","K405"]
[7823,{"$f":"'EstExp 12-20'!K406","v":{"v":0,"d":"0 "}},{"v":7823,"d":"7,823 "},"New 2021 -EstExp",true,{"$f":"IF(G7828<>\"\",INDIRECT(\"'\"&G7828&\"'!\"&H7828),\"\")","v":0},"EstExp 12-20","K406"]
[7824,{"$f":"'EstExp 12-20'!K407","v":{"v":0,"d":"0 "}},{"v":7824,"d":"7,824 "},"New 2021 -EstExp",true,{"$f":"IF(G7829<>\"\",INDIRECT(\"'\"&G7829&\"'!\"&H7829),\"\")","v":0},"EstExp 12-20","K407"]
[7825,{"$f":"'EstExp 12-20'!K408","v":{"v":0,"d":"0 "}},{"v":7825,"d":"7,825 "},"New 2021 -EstExp",true,{"$f":"IF(G7830<>\"\",INDIRECT(\"'\"&G7830&\"'!\"&H7830),\"\")","v":0},"EstExp 12-20","K408"]
[7826,{"$f":"'EstExp 12-20'!K409","v":{"v":0,"d":"0 "}},{"v":7826,"d":"7,826 "},"New 2021 -EstExp",true,{"$f":"IF(G7831<>\"\",INDIRECT(\"'\"&G7831&\"'!\"&H7831),\"\")","v":0},"EstExp 12-20","K409"]
[7827,{"$f":"'EstExp 12-20'!K410","v":{"v":0,"d":"0 "}},{"v":7827,"d":"7,827 "},"New 2021 -EstExp",true,{"$f":"IF(G7832<>\"\",INDIRECT(\"'\"&G7832&\"'!\"&H7832),\"\")","v":0},"EstExp 12-20","K410"]
[7828,{"$f":"'EstExp 12-20'!K411","v":{"v":0,"d":"0 "}},{"v":7828,"d":"7,828 "},"New 2021 -EstExp",true,{"$f":"IF(G7833<>\"\",INDIRECT(\"'\"&G7833&\"'!\"&H7833),\"\")","v":0},"EstExp 12-20","K411"]
[7829,{"$f":"'EstExp 12-20'!K412","v":{"v":0,"d":"0 "}},{"v":7829,"d":"7,829 "},"New 2021 -EstExp",true,{"$f":"IF(G7834<>\"\",INDIRECT(\"'\"&G7834&\"'!\"&H7834),\"\")","v":0},"EstExp 12-20","K412"]
[7830,{"$f":"'EstExp 12-20'!K413","v":{"v":0,"d":"0 "}},{"v":7830,"d":"7,830 "},"New 2021 -EstExp",true,{"$f":"IF(G7835<>\"\",INDIRECT(\"'\"&G7835&\"'!\"&H7835),\"\")","v":0},"EstExp 12-20","K413"]
[7831,{"$f":"'EstExp 12-20'!K414","v":{"v":0,"d":"0 "}},{"v":7831,"d":"7,831 "},"New 2021 -EstExp",true,{"$f":"IF(G7836<>\"\",INDIRECT(\"'\"&G7836&\"'!\"&H7836),\"\")","v":0},"EstExp 12-20","K414"]
[7832,{"$f":"'EstExp 12-20'!G355","v":{"v":0,"d":"0 "}},{"v":7832,"d":"7,832 "},"New 2021 -EstExp",true,{"$f":"IF(G7837<>\"\",INDIRECT(\"'\"&G7837&\"'!\"&H7837),\"\")","v":0},"EstExp 12-20","G355"]
[7833,{"$f":"'EstExp 12-20'!E391","v":{"v":0,"d":"0 "}},{"v":7833,"d":"7,833 "},"EstExp no field had been assigned fixed in 2021",true,{"$f":"IF(G7838<>\"\",INDIRECT(\"'\"&G7838&\"'!\"&H7838),\"\")","v":0},"EstExp 12-20","E391"]
[7834,{"$f":"'EstExp 12-20'!E392","v":{"v":0,"d":"0 "}},{"v":7834,"d":"7,834 "},"EstExp no field had been assigned fixed in 2021",true,{"$f":"IF(G7839<>\"\",INDIRECT(\"'\"&G7839&\"'!\"&H7839),\"\")","v":0},"EstExp 12-20","E392"]
[7835,{"$f":"'EstExp 12-20'!J365","v":{"v":0,"d":"0 "}},{"v":7835,"d":"7,835 "},"EstExp no field had been assigned fixed in 2021",true,{"$f":"IF(G7840<>\"\",INDIRECT(\"'\"&G7840&\"'!\"&H7840),\"\")","v":0},"EstExp 12-20","J365"]
[7836,{"$f":"'EstExp 12-20'!J428","v":{"v":0,"d":"0 "}},{"v":7836,"d":"7,836 "},"EstExp no field had been assigned fixed in 2021",true,{"$f":"IF(G7841<>\"\",INDIRECT(\"'\"&G7841&\"'!\"&H7841),\"\")","v":0},"EstExp 12-20","J428"]
[7837,{"$f":"'EstExp 12-20'!J35","v":{"v":0,"d":"0 "}},{"v":7837,"d":"7,837 "},"New 2021 -EstExp",true,{"$f":"IF(G7842<>\"\",INDIRECT(\"'\"&G7842&\"'!\"&H7842),\"\")","v":0},"EstExp 12-20","J35"]
[7838,{"$f":"'EstRev 6-11'!C273","v":{"v":12817900,"d":"12,817,900 "}},{"v":-12810062,"d":"(12,810,062)"},"New 2021 EstRev",true,{"$f":"IF(G7843<>\"\",INDIRECT(\"'\"&G7843&\"'!\"&H7843),\"\")","v":12817900},"EstRev 6-11","C273"]
[7839,{"$f":"'BudgetSum 2-4'!J105","v":{"v":0,"d":"0 "}},{"v":7839,"d":"7,839 "},"New 2021 BudgtSum",true,{"$f":"IF(G7844<>\"\",INDIRECT(\"'\"&G7844&\"'!\"&H7844),\"\")","v":0},"BudgetSum 2-4","J105"]
[7840,{"$f":"'BudgetSum 2-4'!J106","v":{"v":0,"d":"0 "}},{"v":7840,"d":"7,840 "},"New 2021 BudgtSum",true,{"$f":"IF(G7845<>\"\",INDIRECT(\"'\"&G7845&\"'!\"&H7845),\"\")","v":0},"BudgetSum 2-4","J106"]
[7841,{"$f":"'EstRev 6-11'!C105","v":{"v":0,"d":"0 "}},{"v":7841,"d":"7,841 "},"New 2022 EstRev",true,{"$f":"IF(G7846<>\"\",INDIRECT(\"'\"&G7846&\"'!\"&H7846),\"\")","v":0},"EstRev 6-11","C105"]
[7842,{"$f":"'EstExp 12-20'!C373","v":{"v":0,"d":"0 "}},{"v":7842,"d":"7,842 "},"New 2022 EstExp",true,{"$f":"IF(G7847<>\"\",INDIRECT(\"'\"&G7847&\"'!\"&H7847),\"\")","v":0},"EstExp 12-20","C373"]
[7843,{"$f":"'EstExp 12-20'!D373","v":{"v":0,"d":"0 "}},{"v":7843,"d":"7,843 "},"New 2022 EstExp",true,{"$f":"IF(G7848<>\"\",INDIRECT(\"'\"&G7848&\"'!\"&H7848),\"\")","v":0},"EstExp 12-20","D373"]
[7844,{"$f":"'EstExp 12-20'!E373","v":{"v":0,"d":"0 "}},{"v":7844,"d":"7,844 "},"New 2022 EstExp",true,{"$f":"IF(G7849<>\"\",INDIRECT(\"'\"&G7849&\"'!\"&H7849),\"\")","v":0},"EstExp 12-20","E373"]
[7845,{"$f":"'EstExp 12-20'!F373","v":{"v":0,"d":"0 "}},{"v":7845,"d":"7,845 "},"New 2022 EstExp",true,{"$f":"IF(G7850<>\"\",INDIRECT(\"'\"&G7850&\"'!\"&H7850),\"\")","v":0},"EstExp 12-20","F373"]
[7846,{"$f":"'EstExp 12-20'!G373","v":{"v":0,"d":"0 "}},{"v":7846,"d":"7,846 "},"New 2022 EstExp",true,{"$f":"IF(G7851<>\"\",INDIRECT(\"'\"&G7851&\"'!\"&H7851),\"\")","v":0},"EstExp 12-20","G373"]
[7847,{"$f":"'EstExp 12-20'!H373","v":{"v":0,"d":"0 "}},{"v":7847,"d":"7,847 "},"New 2022 EstExp",true,{"$f":"IF(G7852<>\"\",INDIRECT(\"'\"&G7852&\"'!\"&H7852),\"\")","v":0},"EstExp 12-20","H373"]
[7848,{"$f":"'EstExp 12-20'!I373","v":{"v":0,"d":"0 "}},{"v":7848,"d":"7,848 "},"New 2022 EstExp",true,{"$f":"IF(G7853<>\"\",INDIRECT(\"'\"&G7853&\"'!\"&H7853),\"\")","v":0},"EstExp 12-20","I373"]
[7849,{"$f":"'EstExp 12-20'!J373","v":{"v":0,"d":"0 "}},{"v":7849,"d":"7,849 "},"New 2022 EstExp",true,{"$f":"IF(G7854<>\"\",INDIRECT(\"'\"&G7854&\"'!\"&H7854),\"\")","v":0},"EstExp 12-20","J373"]
[7850,{"$f":"'EstExp 12-20'!K373","v":{"v":0,"d":"0 "}},{"v":7850,"d":"7,850 "},"New 2022 EstExp",true,{"$f":"IF(G7855<>\"\",INDIRECT(\"'\"&G7855&\"'!\"&H7855),\"\")","v":0},"EstExp 12-20","K373"]
[7851,{"$f":"'EstExp 12-20'!H419","v":{"v":0,"d":"0 "}},{"v":7851,"d":"7,851 "},"New 2022 EstExp",true,{"$f":"IF(G7856<>\"\",INDIRECT(\"'\"&G7856&\"'!\"&H7856),\"\")","v":0},"EstExp 12-20","H419"]
[7852,{"$f":"'EstExp 12-20'!K419","v":{"v":0,"d":"0 "}},{"v":7852,"d":"7,852 "},"New 2022 EstExp",true,{"$f":"IF(G7857<>\"\",INDIRECT(\"'\"&G7857&\"'!\"&H7857),\"\")","v":0},"EstExp 12-20","K419"]
[7853,{"$f":"'EstExp 12-20'!H421","v":{"v":0,"d":"0 "}},{"v":7853,"d":"7,853 "},"New 2022 EstExp",true,{"$f":"IF(G7858<>\"\",INDIRECT(\"'\"&G7858&\"'!\"&H7858),\"\")","v":0},"EstExp 12-20","H421"]
[7854,{"$f":"'EstExp 12-20'!K421","v":{"v":0,"d":"0 "}},{"v":7854,"d":"7,854 "},"New 2022 EstExp",true,{"$f":"IF(G7859<>\"\",INDIRECT(\"'\"&G7859&\"'!\"&H7859),\"\")","v":0},"EstExp 12-20","K421"]
[7855,{"$f":"'EstExp 12-20'!H423","v":{"v":0,"d":"0 "}},{"v":7855,"d":"7,855 "},"New 2022 EstExp",true,{"$f":"IF(G7860<>\"\",INDIRECT(\"'\"&G7860&\"'!\"&H7860),\"\")","v":0},"EstExp 12-20","H423"]
[7856,{"$f":"'EstExp 12-20'!K423","v":{"v":0,"d":"0 "}},{"v":7856,"d":"7,856 "},"New 2022 EstExp",true,{"$f":"IF(G7861<>\"\",INDIRECT(\"'\"&G7861&\"'!\"&H7861),\"\")","v":0},"EstExp 12-20","K423"]
[7857,{"$f":"'EstExp 12-20'!H424","v":{"v":0,"d":"0 "}},{"v":7857,"d":"7,857 "},"New 2022 EstExp",true,{"$f":"IF(G7862<>\"\",INDIRECT(\"'\"&G7862&\"'!\"&H7862),\"\")","v":0},"EstExp 12-20","H424"]
[7858,{"$f":"'EstExp 12-20'!K424","v":{"v":0,"d":"0 "}},{"v":7858,"d":"7,858 "},"New 2022 EstExp",true,{"$f":"IF(G7863<>\"\",INDIRECT(\"'\"&G7863&\"'!\"&H7863),\"\")","v":0},"EstExp 12-20","K424"]
[7859,{"$f":"'EstExp 12-20'!E425","v":{"v":0,"d":"0 "}},{"v":7859,"d":"7,859 "},"New 2022 EstExp",true,{"$f":"IF(G7864<>\"\",INDIRECT(\"'\"&G7864&\"'!\"&H7864),\"\")","v":0},"EstExp 12-20","E425"]
[7860,{"$f":"'EstExp 12-20'!H425","v":{"v":0,"d":"0 "}},{"v":7860,"d":"7,860 "},"New 2022 EstExp",true,{"$f":"IF(G7865<>\"\",INDIRECT(\"'\"&G7865&\"'!\"&H7865),\"\")","v":0},"EstExp 12-20","H425"]
[7861,{"$f":"'EstExp 12-20'!K425","v":{"v":0,"d":"0 "}},{"v":7861,"d":"7,861 "},"New 2022 EstExp",true,{"$f":"IF(G7866<>\"\",INDIRECT(\"'\"&G7866&\"'!\"&H7866),\"\")","v":0},"EstExp 12-20","K425"]
[7862,{"$f":"'EstExp 12-20'!E426","v":{"v":0,"d":"0 "}},{"v":7862,"d":"7,862 "},"New 2022 EstExp",true,{"$f":"IF(G7867<>\"\",INDIRECT(\"'\"&G7867&\"'!\"&H7867),\"\")","v":0},"EstExp 12-20","E426"]
[7863,{"$f":"'EstRev 6-11'!C209","v":{"v":0,"d":"0 "}},{"v":7863,"d":"7,863 "},"Revenue 4415 FY24",true,{"$f":"IF(G7868<>\"\",INDIRECT(\"'\"&G7868&\"'!\"&H7868),\"\")","v":0},"EstRev 6-11","C209"]
[7864,{"$f":"'EstRev 6-11'!D209","v":{"v":0,"d":"0 "}},{"v":7864,"d":"7,864 "},"Revenue 4415 FY24",true,{"$f":"IF(G7869<>\"\",INDIRECT(\"'\"&G7869&\"'!\"&H7869),\"\")","v":0},"EstRev 6-11","D209"]
[7865,{"$f":"'EstRev 6-11'!F209","v":{"v":0,"d":"0 "}},{"v":7865,"d":"7,865 "},"Revenue 4415 FY24",true,{"$f":"IF(G7870<>\"\",INDIRECT(\"'\"&G7870&\"'!\"&H7870),\"\")","v":0},"EstRev 6-11","F209"]
[7866,{"$f":"'EstRev 6-11'!G209","v":{"v":0,"d":"0 "}},{"v":7866,"d":"7,866 "},"Revenue 4415 FY24",true,{"$f":"IF(G7871<>\"\",INDIRECT(\"'\"&G7871&\"'!\"&H7871),\"\")","v":0},"EstRev 6-11","G209"]
[7867,{"$f":"'EstRev 6-11'!C263","v":{"v":0,"d":"0 "}},{"v":7867,"d":"7,867 "},"Revenue 4935 FY24",true,{"$f":"IF(G7872<>\"\",INDIRECT(\"'\"&G7872&\"'!\"&H7872),\"\")","v":0},"EstRev 6-11","C263"]
[7868,{"$f":"'EstRev 6-11'!D263","v":{"v":0,"d":"0 "}},{"v":7868,"d":"7,868 "},"Revenue 4935 FY24",true,{"$f":"IF(G7873<>\"\",INDIRECT(\"'\"&G7873&\"'!\"&H7873),\"\")","v":0},"EstRev 6-11","D263"]
[7869,{"$f":"'EstRev 6-11'!F263","v":{"v":0,"d":"0 "}},{"v":7869,"d":"7,869 "},"Revenue 4935 FY24",{"$f":"F7874=B7874","v":true},{"$f":"IF(G7874<>\"\",INDIRECT(\"'\"&G7874&\"'!\"&H7874),\"\")","v":0},"EstRev 6-11","F263"]
[7870,{"$f":"'EstRev 6-11'!G263","v":{"v":0,"d":"0 "}},{"$f":"A7875-B7875","v":{"v":7870,"d":"7,870 "}},"Revenue 4935 FY24",true,{"$f":"IF(G7875<>\"\",INDIRECT(\"'\"&G7875&\"'!\"&H7875),\"\")","v":0},"EstRev 6-11","G263"]
[7871,{"$f":"'EstExp 12-20'!E142","v":{"v":0,"d":"0 "}},{"$f":"A7876-B7876","v":{"v":7871,"d":"7,871 "}},"EstExp 4400, Fund 20, 300 Purchased Services",{"$f":"F7876=B7876","v":true},{"$f":"IF(G7876<>\"\",INDIRECT(\"'\"&G7876&\"'!\"&H7876),\"\")","v":0},"EstExp 12-20","E142"]
[7872,{"$nulls":3},true,{"$f":"IF(G7877<>\"\",INDIRECT(\"'\"&G7877&\"'!\"&H7877),\"\")","v":""}]
[7873,{"$nulls":3},true,{"$f":"IF(G7878<>\"\",INDIRECT(\"'\"&G7878&\"'!\"&H7878),\"\")","v":""}]
[7874,{"$nulls":3},true,{"$f":"IF(G7879<>\"\",INDIRECT(\"'\"&G7879&\"'!\"&H7879),\"\")","v":""}]
[7875,{"$nulls":3},true,{"$f":"IF(G7880<>\"\",INDIRECT(\"'\"&G7880&\"'!\"&H7880),\"\")","v":""}]
[7876,{"$nulls":3},true,{"$f":"IF(G7881<>\"\",INDIRECT(\"'\"&G7881&\"'!\"&H7881),\"\")","v":""}]
[7877,{"$nulls":3},true,{"$f":"IF(G7882<>\"\",INDIRECT(\"'\"&G7882&\"'!\"&H7882),\"\")","v":""}]
[7878,{"$nulls":3},true,{"$f":"IF(G7883<>\"\",INDIRECT(\"'\"&G7883&\"'!\"&H7883),\"\")","v":""}]
[7879,{"$nulls":3},true,{"$f":"IF(G7884<>\"\",INDIRECT(\"'\"&G7884&\"'!\"&H7884),\"\")","v":""}]
[7880,{"$nulls":3},true,{"$f":"IF(G7885<>\"\",INDIRECT(\"'\"&G7885&\"'!\"&H7885),\"\")","v":""}]
[7881,{"$nulls":3},true,{"$f":"IF(G7886<>\"\",INDIRECT(\"'\"&G7886&\"'!\"&H7886),\"\")","v":""}]
[7882,{"$nulls":3},true,{"$f":"IF(G7887<>\"\",INDIRECT(\"'\"&G7887&\"'!\"&H7887),\"\")","v":""}]
[7883,{"$nulls":3},true,{"$f":"IF(G7888<>\"\",INDIRECT(\"'\"&G7888&\"'!\"&H7888),\"\")","v":""}]
[7884,{"$nulls":3},true,{"$f":"IF(G7889<>\"\",INDIRECT(\"'\"&G7889&\"'!\"&H7889),\"\")","v":""}]
[7885,{"$nulls":3},true,{"$f":"IF(G7890<>\"\",INDIRECT(\"'\"&G7890&\"'!\"&H7890),\"\")","v":""}]
[7886,{"$nulls":3},true,{"$f":"IF(G7891<>\"\",INDIRECT(\"'\"&G7891&\"'!\"&H7891),\"\")","v":""}]
[7887,{"$nulls":3},true,{"$f":"IF(G7892<>\"\",INDIRECT(\"'\"&G7892&\"'!\"&H7892),\"\")","v":""}]
[7888,{"$nulls":3},true,{"$f":"IF(G7893<>\"\",INDIRECT(\"'\"&G7893&\"'!\"&H7893),\"\")","v":""}]
[7889,{"$nulls":3},true,{"$f":"IF(G7894<>\"\",INDIRECT(\"'\"&G7894&\"'!\"&H7894),\"\")","v":""}]
[7890,{"$nulls":3},true,{"$f":"IF(G7895<>\"\",INDIRECT(\"'\"&G7895&\"'!\"&H7895),\"\")","v":""}]
[7891,{"$nulls":3},true,{"$f":"IF(G7896<>\"\",INDIRECT(\"'\"&G7896&\"'!\"&H7896),\"\")","v":""}]
[7892,{"$nulls":3},true,{"$f":"IF(G7897<>\"\",INDIRECT(\"'\"&G7897&\"'!\"&H7897),\"\")","v":""}]
[7893,{"$nulls":3},true,{"$f":"IF(G7898<>\"\",INDIRECT(\"'\"&G7898&\"'!\"&H7898),\"\")","v":""}]
[7894,{"$nulls":3},true,{"$f":"IF(G7899<>\"\",INDIRECT(\"'\"&G7899&\"'!\"&H7899),\"\")","v":""}]
[7895,{"$nulls":3},true,{"$f":"IF(G7900<>\"\",INDIRECT(\"'\"&G7900&\"'!\"&H7900),\"\")","v":""}]
[7896,{"$nulls":3},true,{"$f":"IF(G7901<>\"\",INDIRECT(\"'\"&G7901&\"'!\"&H7901),\"\")","v":""}]
[7897,{"$nulls":3},true,{"$f":"IF(G7902<>\"\",INDIRECT(\"'\"&G7902&\"'!\"&H7902),\"\")","v":""}]
[7898,{"$nulls":3},true,{"$f":"IF(G7903<>\"\",INDIRECT(\"'\"&G7903&\"'!\"&H7903),\"\")","v":""}]
[7899,{"$nulls":3},true,{"$f":"IF(G7904<>\"\",INDIRECT(\"'\"&G7904&\"'!\"&H7904),\"\")","v":""}]
[7900,{"$nulls":3},true,{"$f":"IF(G7905<>\"\",INDIRECT(\"'\"&G7905&\"'!\"&H7905),\"\")","v":""}]
[7901,{"$nulls":3},true,{"$f":"IF(G7906<>\"\",INDIRECT(\"'\"&G7906&\"'!\"&H7906),\"\")","v":""}]
[7902,{"$nulls":3},true,{"$f":"IF(G7907<>\"\",INDIRECT(\"'\"&G7907&\"'!\"&H7907),\"\")","v":""}]
[7903,{"$nulls":3},true,{"$f":"IF(G7908<>\"\",INDIRECT(\"'\"&G7908&\"'!\"&H7908),\"\")","v":""}]
[7904,{"$nulls":3},true,{"$f":"IF(G7909<>\"\",INDIRECT(\"'\"&G7909&\"'!\"&H7909),\"\")","v":""}]
[7905,{"$nulls":3},true,{"$f":"IF(G7910<>\"\",INDIRECT(\"'\"&G7910&\"'!\"&H7910),\"\")","v":""}]
[7906,{"$nulls":3},true,{"$f":"IF(G7911<>\"\",INDIRECT(\"'\"&G7911&\"'!\"&H7911),\"\")","v":""}]
[7907,{"$nulls":3},true,{"$f":"IF(G7912<>\"\",INDIRECT(\"'\"&G7912&\"'!\"&H7912),\"\")","v":""}]
[7908,{"$nulls":3},true,{"$f":"IF(G7913<>\"\",INDIRECT(\"'\"&G7913&\"'!\"&H7913),\"\")","v":""}]
[7909,{"$nulls":3},true,{"$f":"IF(G7914<>\"\",INDIRECT(\"'\"&G7914&\"'!\"&H7914),\"\")","v":""}]
[7910,{"$nulls":3},true,{"$f":"IF(G7915<>\"\",INDIRECT(\"'\"&G7915&\"'!\"&H7915),\"\")","v":""}]
[7911,{"$nulls":3},true,{"$f":"IF(G7916<>\"\",INDIRECT(\"'\"&G7916&\"'!\"&H7916),\"\")","v":""}]
[7912,{"$nulls":3},true,{"$f":"IF(G7917<>\"\",INDIRECT(\"'\"&G7917&\"'!\"&H7917),\"\")","v":""}]
[7913,{"$nulls":3},true,{"$f":"IF(G7918<>\"\",INDIRECT(\"'\"&G7918&\"'!\"&H7918),\"\")","v":""}]
[7914,{"$nulls":3},true,{"$f":"IF(G7919<>\"\",INDIRECT(\"'\"&G7919&\"'!\"&H7919),\"\")","v":""}]
[7915,{"$nulls":3},true,{"$f":"IF(G7920<>\"\",INDIRECT(\"'\"&G7920&\"'!\"&H7920),\"\")","v":""}]
[7916,{"$nulls":3},true,{"$f":"IF(G7921<>\"\",INDIRECT(\"'\"&G7921&\"'!\"&H7921),\"\")","v":""}]
[7917,{"$nulls":3},true,{"$f":"IF(G7922<>\"\",INDIRECT(\"'\"&G7922&\"'!\"&H7922),\"\")","v":""}]
[7918,{"$nulls":3},true,{"$f":"IF(G7923<>\"\",INDIRECT(\"'\"&G7923&\"'!\"&H7923),\"\")","v":""}]
[7919,{"$nulls":3},true,{"$f":"IF(G7924<>\"\",INDIRECT(\"'\"&G7924&\"'!\"&H7924),\"\")","v":""}]
[7920,{"$nulls":3},true,{"$f":"IF(G7925<>\"\",INDIRECT(\"'\"&G7925&\"'!\"&H7925),\"\")","v":""}]
[7921,{"$nulls":3},true,{"$f":"IF(G7926<>\"\",INDIRECT(\"'\"&G7926&\"'!\"&H7926),\"\")","v":""}]
[7922,{"$nulls":3},true,{"$f":"IF(G7927<>\"\",INDIRECT(\"'\"&G7927&\"'!\"&H7927),\"\")","v":""}]
[7923,{"$nulls":3},true,{"$f":"IF(G7928<>\"\",INDIRECT(\"'\"&G7928&\"'!\"&H7928),\"\")","v":""}]
[7924,{"$nulls":3},true,{"$f":"IF(G7929<>\"\",INDIRECT(\"'\"&G7929&\"'!\"&H7929),\"\")","v":""}]
[7925,{"$nulls":3},true,{"$f":"IF(G7930<>\"\",INDIRECT(\"'\"&G7930&\"'!\"&H7930),\"\")","v":""}]
[7926,{"$nulls":3},true,{"$f":"IF(G7931<>\"\",INDIRECT(\"'\"&G7931&\"'!\"&H7931),\"\")","v":""}]
[7927,{"$nulls":3},true,{"$f":"IF(G7932<>\"\",INDIRECT(\"'\"&G7932&\"'!\"&H7932),\"\")","v":""}]
[7928,{"$nulls":3},true,{"$f":"IF(G7933<>\"\",INDIRECT(\"'\"&G7933&\"'!\"&H7933),\"\")","v":""}]
[7929,{"$nulls":3},true,{"$f":"IF(G7934<>\"\",INDIRECT(\"'\"&G7934&\"'!\"&H7934),\"\")","v":""}]
[7930,{"$nulls":3},true,{"$f":"IF(G7935<>\"\",INDIRECT(\"'\"&G7935&\"'!\"&H7935),\"\")","v":""}]
[7931,{"$nulls":3},true,{"$f":"IF(G7936<>\"\",INDIRECT(\"'\"&G7936&\"'!\"&H7936),\"\")","v":""}]
[7932,{"$nulls":3},true,{"$f":"IF(G7937<>\"\",INDIRECT(\"'\"&G7937&\"'!\"&H7937),\"\")","v":""}]
[7933,{"$nulls":3},{"$f":"F7938=B7938","v":true},{"$f":"IF(G7938<>\"\",INDIRECT(\"'\"&G7938&\"'!\"&H7938),\"\")","v":""}]
[7934,{"$nulls":3},true,{"$f":"IF(G7939<>\"\",INDIRECT(\"'\"&G7939&\"'!\"&H7939),\"\")","v":""}]
[7935,{"$nulls":3},true,{"$f":"IF(G7940<>\"\",INDIRECT(\"'\"&G7940&\"'!\"&H7940),\"\")","v":""}]
[7936,{"$nulls":3},true,{"$f":"IF(G7941<>\"\",INDIRECT(\"'\"&G7941&\"'!\"&H7941),\"\")","v":""}]
[7937,{"$nulls":3},true,{"$f":"IF(G7942<>\"\",INDIRECT(\"'\"&G7942&\"'!\"&H7942),\"\")","v":""}]
[7938,{"$nulls":3},true,{"$f":"IF(G7943<>\"\",INDIRECT(\"'\"&G7943&\"'!\"&H7943),\"\")","v":""}]
[7939,{"$nulls":3},true,{"$f":"IF(G7944<>\"\",INDIRECT(\"'\"&G7944&\"'!\"&H7944),\"\")","v":""}]
[7940,{"$nulls":3},true,{"$f":"IF(G7945<>\"\",INDIRECT(\"'\"&G7945&\"'!\"&H7945),\"\")","v":""}]
[7941,{"$nulls":3},true,{"$f":"IF(G7946<>\"\",INDIRECT(\"'\"&G7946&\"'!\"&H7946),\"\")","v":""}]
[7942,{"$nulls":3},true,{"$f":"IF(G7947<>\"\",INDIRECT(\"'\"&G7947&\"'!\"&H7947),\"\")","v":""}]
[7943,{"$nulls":3},true,{"$f":"IF(G7948<>\"\",INDIRECT(\"'\"&G7948&\"'!\"&H7948),\"\")","v":""}]
[7944,{"$nulls":3},true,{"$f":"IF(G7949<>\"\",INDIRECT(\"'\"&G7949&\"'!\"&H7949),\"\")","v":""}]
[7945,{"$nulls":3},true,{"$f":"IF(G7950<>\"\",INDIRECT(\"'\"&G7950&\"'!\"&H7950),\"\")","v":""}]
[7946,{"$nulls":3},true,{"$f":"IF(G7951<>\"\",INDIRECT(\"'\"&G7951&\"'!\"&H7951),\"\")","v":""}]
[7947,{"$nulls":3},true,{"$f":"IF(G7952<>\"\",INDIRECT(\"'\"&G7952&\"'!\"&H7952),\"\")","v":""}]
[7948,{"$nulls":3},true,{"$f":"IF(G7953<>\"\",INDIRECT(\"'\"&G7953&\"'!\"&H7953),\"\")","v":""}]
[7949,{"$nulls":3},true,{"$f":"IF(G7954<>\"\",INDIRECT(\"'\"&G7954&\"'!\"&H7954),\"\")","v":""}]
[7950,{"$nulls":3},true,{"$f":"IF(G7955<>\"\",INDIRECT(\"'\"&G7955&\"'!\"&H7955),\"\")","v":""}]
[7951,{"$nulls":3},true,{"$f":"IF(G7956<>\"\",INDIRECT(\"'\"&G7956&\"'!\"&H7956),\"\")","v":""}]
[7952,{"$nulls":3},true,{"$f":"IF(G7957<>\"\",INDIRECT(\"'\"&G7957&\"'!\"&H7957),\"\")","v":""}]
[7953,{"$nulls":3},true,{"$f":"IF(G7958<>\"\",INDIRECT(\"'\"&G7958&\"'!\"&H7958),\"\")","v":""}]
[7954,{"$nulls":3},true,{"$f":"IF(G7959<>\"\",INDIRECT(\"'\"&G7959&\"'!\"&H7959),\"\")","v":""}]
[7955,{"$nulls":3},true,{"$f":"IF(G7960<>\"\",INDIRECT(\"'\"&G7960&\"'!\"&H7960),\"\")","v":""}]
[7956,{"$nulls":3},true,{"$f":"IF(G7961<>\"\",INDIRECT(\"'\"&G7961&\"'!\"&H7961),\"\")","v":""}]
[7957,{"$nulls":3},true,{"$f":"IF(G7962<>\"\",INDIRECT(\"'\"&G7962&\"'!\"&H7962),\"\")","v":""}]
[7958,{"$nulls":3},true,{"$f":"IF(G7963<>\"\",INDIRECT(\"'\"&G7963&\"'!\"&H7963),\"\")","v":""}]
[7959,{"$nulls":3},true,{"$f":"IF(G7964<>\"\",INDIRECT(\"'\"&G7964&\"'!\"&H7964),\"\")","v":""}]
[7960,{"$nulls":3},true,{"$f":"IF(G7965<>\"\",INDIRECT(\"'\"&G7965&\"'!\"&H7965),\"\")","v":""}]
[7961,{"$nulls":3},true,{"$f":"IF(G7966<>\"\",INDIRECT(\"'\"&G7966&\"'!\"&H7966),\"\")","v":""}]
[7962,{"$nulls":3},true,{"$f":"IF(G7967<>\"\",INDIRECT(\"'\"&G7967&\"'!\"&H7967),\"\")","v":""}]
[7963,{"$nulls":3},true,{"$f":"IF(G7968<>\"\",INDIRECT(\"'\"&G7968&\"'!\"&H7968),\"\")","v":""}]
[7964,{"$nulls":3},true,{"$f":"IF(G7969<>\"\",INDIRECT(\"'\"&G7969&\"'!\"&H7969),\"\")","v":""}]
[7965,{"$nulls":3},true,{"$f":"IF(G7970<>\"\",INDIRECT(\"'\"&G7970&\"'!\"&H7970),\"\")","v":""}]
[7966,{"$nulls":3},true,{"$f":"IF(G7971<>\"\",INDIRECT(\"'\"&G7971&\"'!\"&H7971),\"\")","v":""}]
[7967,{"$nulls":3},true,{"$f":"IF(G7972<>\"\",INDIRECT(\"'\"&G7972&\"'!\"&H7972),\"\")","v":""}]
[7968,{"$nulls":3},true,{"$f":"IF(G7973<>\"\",INDIRECT(\"'\"&G7973&\"'!\"&H7973),\"\")","v":""}]
[7969,{"$nulls":3},true,{"$f":"IF(G7974<>\"\",INDIRECT(\"'\"&G7974&\"'!\"&H7974),\"\")","v":""}]
[7970,{"$nulls":3},true,{"$f":"IF(G7975<>\"\",INDIRECT(\"'\"&G7975&\"'!\"&H7975),\"\")","v":""}]
[7971,{"$nulls":3},true,{"$f":"IF(G7976<>\"\",INDIRECT(\"'\"&G7976&\"'!\"&H7976),\"\")","v":""}]
[7972,{"$nulls":3},true,{"$f":"IF(G7977<>\"\",INDIRECT(\"'\"&G7977&\"'!\"&H7977),\"\")","v":""}]
[7973,{"$nulls":3},true,{"$f":"IF(G7978<>\"\",INDIRECT(\"'\"&G7978&\"'!\"&H7978),\"\")","v":""}]
[7974,{"$nulls":3},true,{"$f":"IF(G7979<>\"\",INDIRECT(\"'\"&G7979&\"'!\"&H7979),\"\")","v":""}]
[7975,{"$nulls":3},true,{"$f":"IF(G7980<>\"\",INDIRECT(\"'\"&G7980&\"'!\"&H7980),\"\")","v":""}]
[7976,{"$nulls":3},true,{"$f":"IF(G7981<>\"\",INDIRECT(\"'\"&G7981&\"'!\"&H7981),\"\")","v":""}]
[7977,{"$nulls":3},true,{"$f":"IF(G7982<>\"\",INDIRECT(\"'\"&G7982&\"'!\"&H7982),\"\")","v":""}]
[7978,{"$nulls":3},true,{"$f":"IF(G7983<>\"\",INDIRECT(\"'\"&G7983&\"'!\"&H7983),\"\")","v":""}]
[7979,{"$nulls":3},true,{"$f":"IF(G7984<>\"\",INDIRECT(\"'\"&G7984&\"'!\"&H7984),\"\")","v":""}]
[7980,{"$nulls":3},true,{"$f":"IF(G7985<>\"\",INDIRECT(\"'\"&G7985&\"'!\"&H7985),\"\")","v":""}]
[7981,{"$nulls":3},true,{"$f":"IF(G7986<>\"\",INDIRECT(\"'\"&G7986&\"'!\"&H7986),\"\")","v":""}]
[7982,{"$nulls":3},true,{"$f":"IF(G7987<>\"\",INDIRECT(\"'\"&G7987&\"'!\"&H7987),\"\")","v":""}]
[7983,{"$nulls":3},true,{"$f":"IF(G7988<>\"\",INDIRECT(\"'\"&G7988&\"'!\"&H7988),\"\")","v":""}]
[7984,{"$nulls":3},true,{"$f":"IF(G7989<>\"\",INDIRECT(\"'\"&G7989&\"'!\"&H7989),\"\")","v":""}]
[7985,{"$nulls":3},true,{"$f":"IF(G7990<>\"\",INDIRECT(\"'\"&G7990&\"'!\"&H7990),\"\")","v":""}]
[7986,{"$nulls":3},true,{"$f":"IF(G7991<>\"\",INDIRECT(\"'\"&G7991&\"'!\"&H7991),\"\")","v":""}]
[7987,{"$nulls":3},true,{"$f":"IF(G7992<>\"\",INDIRECT(\"'\"&G7992&\"'!\"&H7992),\"\")","v":""}]
[7988,{"$nulls":3},true,{"$f":"IF(G7993<>\"\",INDIRECT(\"'\"&G7993&\"'!\"&H7993),\"\")","v":""}]
[7989,{"$nulls":3},true,{"$f":"IF(G7994<>\"\",INDIRECT(\"'\"&G7994&\"'!\"&H7994),\"\")","v":""}]
[7990,{"$nulls":3},true,{"$f":"IF(G7995<>\"\",INDIRECT(\"'\"&G7995&\"'!\"&H7995),\"\")","v":""}]
[7991,{"$nulls":3},true,{"$f":"IF(G7996<>\"\",INDIRECT(\"'\"&G7996&\"'!\"&H7996),\"\")","v":""}]
[7992,{"$nulls":3},true,{"$f":"IF(G7997<>\"\",INDIRECT(\"'\"&G7997&\"'!\"&H7997),\"\")","v":""}]
[7993,{"$nulls":3},true,{"$f":"IF(G7998<>\"\",INDIRECT(\"'\"&G7998&\"'!\"&H7998),\"\")","v":""}]
[7994,{"$nulls":3},true,{"$f":"IF(G7999<>\"\",INDIRECT(\"'\"&G7999&\"'!\"&H7999),\"\")","v":""}]
[7995,{"$nulls":3},true,{"$f":"IF(G8000<>\"\",INDIRECT(\"'\"&G8000&\"'!\"&H8000),\"\")","v":""}]